{"text_format":"1","workbook":"xlsx","n_sheets":25,"sheets":["RMP QC Review","Customer Information","Project Information","Processing","Revision History","Project Report Summary","Project Report Details","Fixtures Summary","Controls Summary","Lookups","CodeTables","MR Bldg Size","EquipmentLookups","General Application","Incentive Offer Letter","Help & Notes","EquipmentTable_Retrofit_ID","EquipmentTable_NCMR_ID","MeasureTable_ID","EquipmentTable_Retrofit_UT","EquipmentTable_NCMR_UT","MeasureTable_UT","EquipmentTable_Retrofit_WY","EquipmentTable_NCMR_WY","MeasureTable_WY"],"not_rendered":{"charts":1,"images":25,"macros":1,"external_links":0,"defined_names":278,"comments":17,"pivot_tables":5},"unopened":[],"bounds":{"document_bytes":16777216,"sheet_cells":100000,"rows_first":2000,"rows_last":500,"rows_between":2000,"halvings":0,"cell_chars":16384,"cell_head_chars":4096},"cells_cut":0,"cells_raw":0,"read":"whole","date_system":"1900"}

{"sheet":"RMP QC Review","index":0,"n_rows":55,"n_cols":25,"rows_kept":55,"cut":false,"hidden":true,"merged":[[0,0,0,15],[53,5,53,8],[53,11,53,12]]}
["Wattsmart Business Lighting Quality Assurance - QC Review\nRMP Schedule 140/Non Residential DSM Plan",null,null,null,null,null,null,null,null,null,null,null,null,null,null,null,null,null,null,"Additional info: "]
[]
[null,null,null,"General Application filled out and signed (or submitted online) for confirmed WSB eligible customer"]
[]
[null,null,null,"Contact info entered in Salesforce, including phone number and email address"]
[]
[null,null,null,"W-9 for Participant verified in Salesforce"]
[]
[null,null,null,"Confirm Payee address matches GA, Lighting Tool and Salesforce Payee fields"]
[]
[null,null,null,"Lighting Tool is in stage Final (Post Install) and using the correct version of the software for Incentive Offer (IO)"]
[]
[null,null,null,"Measure Effective Date matches lighting tool version and IO/invoice date (depends on which drives it)",null,null,null,null,null,null,null,null,null,null,null,null,null,null,null,"from tool:",{"$f":"MeasureEffectiveDate","v":""}]
[]
[null,null,null,"IO is in Final Docs"]
[null,null,null,"    Incentive amount in Final Tool does not exceed IO Incentive. If so, note reason below",null,null,null,null,null,null,null,null,null,null,null,null,null,null,null,"FINAL INCENTIVE EXCEEDS IO AMOUNT DUE TO XXX"]
[null,null,null,"Small segment = Post purchase, no IO"]
[null,null,null,"ID & WY Mixed  SBE/Typical = Post purchase exception granted, no IO"]
[]
[null,null,null,"Project complies with IO: Earliest labor invoice date is not prior to IO issue date (material invoice within 2 months of IO)"]
[null,null,null," & project complete prior to Expiration date"]
[null,null,null,"MR:  In \"reservation\" queue ",null,null,null,null,null,null,null,null,null,null,null,null,null,null,null,"Retrofit Inspection Thresholds as of 4/1/25",null,null,null,null,"ID & WY NC/MR as of 4/1/25"]
[null,null,null,"ID & WY: NC in \"reservation\" queue ",null,null,null,null,null,null,null,null,null,null,null,null,null,null,null,"Less than $5,000 - not required",null,null,null,null,"> $5,000 Post Inspection Required"]
[null,null,null,null,null,null,null,null,null,null,null,null,null,null,null,null,null,null,null,"$5,000 ><$10,000 Pre-Inspection Required"]
[null,null,null,"Duplicate Review is complete",null,null,null,null,null,null,null,null,null,null,null,null,null,null,null,">$10,000 Pre & Post Inspection Required"]
[]
[null,null,null,"Managed By delivery channel in Salesforce is correct"]
[]
[null,null,null,"Confirm invoice counts correspond to lighting tool or noted"]
[]
[null,null,null,"Confirm project costs (breakout) on Lighting Tool are consistent with invoices and reasonable",null,null,null,null,null,null,null,null,null,null,null,null,null,null,null,"Project costs:",null,{"$f":"ProjectCost_Total","v":0}]
[]
[null,null,null,"Confirm hours of operation seem reasonable including holidays"]
[]
[null,null,null,"Confirm installed equipment is verified, including LEDs, Custom Fixtures, Networked Lighting Controls"]
[]
[null,null,null,"Payback is less than 20 years. If not, see payback policy",null,null,null,null,null,null,null,null,null,null,null,null,null,null,null,"If project costs are over $500,000, payback should be less than 8 years."]
[]
[null,null,null,"Customer cost per kWh/yr savings is $0.35/kWh or less",null,null,null,null,null,null,null,null,null,null,null,null,null,null,null,"If more than $0.35 -put note below of \"High customer cost/kWh  "]
[null,null,null,"SBE incentive/kWh is less than $0.50, or approval in file"]
[]
[null,null,null,"Confirm Final lighting tool matches post-inspection findings or changes noted"]
[]
[null,null,null,"Project is capping?  If so, make note"]
[null,null,null," confirm measures are marked properly in Salesforce"]
[null,null,null,"Incentive >$20,000 and $20k review/notes are included in inspection report"]
[]
[null,null,null,"      PM/AM notification",null,null,"      Relationship note ",null,null,null,"      Delay note"]
[]
[null,null,null,"Overall notes in the file:  a) provides overall description of the project;   b) reasonably explains any"]
[null,null,null,"variations or changes from original project proposal to completed project;   c) explains special"]
[null,null,null,"circumstances related to this project/process."]
[]
[null,null,null,"QC Reviewer"]
[null,null,null,"Notes: "]

{"sheet":"Customer Information","index":1,"n_rows":33,"n_cols":23,"rows_kept":33,"cut":false,"hidden":false,"merged":[[8,19,9,25],[11,9,11,10],[17,2,17,3],[17,4,17,5],[15,2,15,5],[16,2,16,3],[15,7,15,10],[17,7,17,10],[13,7,13,10],[16,7,16,10],[12,7,12,10],[13,1,13,3],[10,7,10,10],[13,11,13,12],[9,7,9,8],[9,9,9,10],[25,2,25,5],[29,2,29,3],[29,4,29,5],[32,2,32,3],[28,7,28,8],[30,2,30,5],[31,2,31,5],[26,3,26,5],[27,1,27,2],[30,7,30,8],[28,1,28,2],[28,3,28,5],[31,7,31,8],[32,7,32,8],[22,2,22,5],[23,2,23,5],[24,2,24,3],[20,7,20,8],[23,7,23,8],[20,4,20,5],[21,2,21,4],[2,11,2,12],[14,2,14,5],[19,2,19,5],[18,3,18,5],[14,7,14,10],[14,11,14,12],[15,11,15,12],[18,11,18,12],[17,11,17,12],[16,11,16,12],[8,9,8,10],[9,11,9,12],[12,4,12,5],[8,2,8,3],[8,4,8,5],[9,2,9,3],[0,13,0,14],[1,13,1,14],[3,13,3,14],[4,13,4,14],[2,13,2,14],[32,11,32,14],[5,4,6,8],[6,9,6,10],[30,9,30,10],[5,13,5,14],[6,13,6,14],[7,7,7,14],[13,13,13,14],[12,13,12,14],[11,11,11,12],[12,11,12,12],[8,11,8,12],[8,13,8,14],[11,7,11,8],[11,13,11,14],[19,7,19,14],[30,11,30,14],[18,13,18,14],[17,13,17,14],[14,13,14,14],[15,13,15,14],[16,13,16,14],[9,13,9,14],[8,7,8,8],[10,2,10,5],[11,2,11,3],[9,4,9,5]]}
[null,null,null,null,null,null,null,null,null,null,null,null,null,null,null,null,"HIDE","HIDE","HIDE"]
[]
[null,null,null,null,null,null,null,null,null,null,null,"Project ID",null,null,null,null,"Category","KW Peak","KWH Mo. Ave."]
[null,null,null,null,null,null,null,null,null,null,null,null,"Lighting Coordinator","Camille Cooper",null,null,"Large",null,null,null,null,"yellow cells indicate input is required"]
[null,null,null,null,null,null,null,null,null,null,null,null,"Tool Prepared by",null,null,null,null,null,null,null,null,"light gray cells indicate auto-calculation based on other inputs"]
[null,null,null,null,null,null,null,null,null,null,null,null,null,null,null,null,"S/M Exception","M/L Exception","SBE Eligible"]
[null,null,null,null,null,null,null,null,null,{"$f":"LOOKUP(999999,1/(INDIRECT(\"RevisionHistory[\"&ProjectState&\"]\")<>\"\"),INDIRECT(\"RevisionHistory[\"&ProjectState&\"]\"))","v":111725.2},null,null,null,null,null,null,{"$f":"SegmentExceptSM & \" (\" & ROUND(100*SegmentExceptPercentSM,0) & \"%)\"","v":"FALSE (153%)"},{"$f":"SegmentExceptML & \" (\" & ROUND(100*SegmentExceptPercentML,0) & \"%)\"","v":"FALSE (132%)"},"No"]
[null,null,null,null,null,null,null,"Project Cost",null,null,null,null,null,null,null,null,"Meter Checked","DSMC User","Checked Meter"]
[null,"Project Name, Original Audit",null,null,null,null,null,"Material",null,"Labor",null,"Other",null,"Total Project Cost",null,null,false,null,null,{"$f":"IF(ProjectState=\"WA\",\"TAXES should NOT be included in the project costs.\",\"\")","v":""}]
[null,"Construction Type, Stage",null,null,"Preliminary (Pre-Install)",null,null,null,null,null,null,null,null,{"$f":"SUM(H10:M10)","v":0},null,null,"SBE Override",null,"No"]
[null,"Installation Address",null,null,null,null,null,"Space Type & Size",null,null,null,null,null,null,null,null,"Alternative Eligibility Override",null,"No"]
[null,"City, State, Zip",null,null,"ID",null,null,"Calculation Method",null,null,null,"Total Allowed Wattage",null,{"$f":"IF(OR(L19=\"\",N19=\"\"),\"\",L19*N19)","v":0},null,null,"MID Lamp Count Override",null,"No"]
[null,"Meter, Rate",null,null,"Large",null,null,"Space Types",null,null,null,"sq. ft.",null,"watts / sq. ft.",null,null,"DDF","HVAC Effects","NCMR Int Cost"]
[null,"Participant Information (As Shown On Tax Forms)",null,null,false,null,null,null,null,null,null,null,null,{"$f":"IFERROR(INDEX(INDIRECT(\"LPD_\"&ProjectState&IF(LPDCalcMethod=\"Whole Building\",\"_Whole\",IF(LPDCalcMethod=\"Multiple Spaces\",\"_Multi\",\"\"))&IF(OR(ProjectType=\"Retrofit\",ProjectType=\"Major Renovation\"),\"_RMR\",IF(ProjectType=\"New Construction\",\"_NC\",\"\"))&\"_Table[LPD]\"),MATCH(H14,INDIRECT(\"LPD_\"&ProjectState&IF(LPDCalcMethod=\"Whole Building\",\"_Whole\",IF(LPDCalcMethod=\"Multiple Spaces\",\"_Multi\",\"\"))&IF(OR(ProjectType=\"Retrofit\",ProjectType=\"Major Renovation\"),\"_RMR\",IF(ProjectType=\"New Construction\",\"_NC\",\"\"))&\"_Table[Space Types]\"),0)),\"\")","v":""},null,null,{"$f":"IFERROR(INDEX(INDIRECT(\"DDF_Table[DDF]\"),MATCH(H14,DDF_Table[Space Type],0)),\"\")","v":""},{"$f":"IFERROR(INDEX(INDIRECT(\"LPD_\"&ProjectState&\"_Multi_NC_Table[HVAC Factor]\"),MATCH(H14,INDIRECT(\"LPD_\"&ProjectState&\"_Multi_NC_Table[Space Types]\"),0)),\"\")","v":""},{"$f":"IF(AND(OR(ProjectType=\"New Construction\",ProjectType=\"Major Renovation\"),L14<>\"\"),INDEX(NCMRIntCosts_Table[],MATCH(ProjectState,NCMRIntCosts_Table[State],0),MATCH(\"m\",NCMRIntCosts_Table[#Headers],0))*EXP(INDEX(NCMRIntCosts_Table[],MATCH(ProjectState,NCMRIntCosts_Table[State],0),MATCH(\"b\",NCMRIntCosts_Table[#Headers],0))*(LPD_Code-LPD_Proposed))*L14,\"\")","v":""}]
[null,"Business Name",null,null,null,null,null,null,null,null,null,null,null,{"$f":"IFERROR(INDEX(INDIRECT(\"LPD_\"&ProjectState&IF(LPDCalcMethod=\"Whole Building\",\"_Whole\",IF(LPDCalcMethod=\"Multiple Spaces\",\"_Multi\",\"\"))&IF(OR(ProjectType=\"Retrofit\",ProjectType=\"Major Renovation\"),\"_RMR\",IF(ProjectType=\"New Construction\",\"_NC\",\"\"))&\"_Table[LPD]\"),MATCH(H15,INDIRECT(\"LPD_\"&ProjectState&IF(LPDCalcMethod=\"Whole Building\",\"_Whole\",IF(LPDCalcMethod=\"Multiple Spaces\",\"_Multi\",\"\"))&IF(OR(ProjectType=\"Retrofit\",ProjectType=\"Major Renovation\"),\"_RMR\",IF(ProjectType=\"New Construction\",\"_NC\",\"\"))&\"_Table[Space Types]\"),0)),\"\")","v":""},null,null,{"$f":"IFERROR(INDEX(INDIRECT(\"DDF_Table[DDF]\"),MATCH(H15,DDF_Table[Space Type],0)),\"\")","v":""},{"$f":"IFERROR(INDEX(INDIRECT(\"LPD_\"&ProjectState&\"_Multi_NC_Table[HVAC Factor]\"),MATCH(H15,INDIRECT(\"LPD_\"&ProjectState&\"_Multi_NC_Table[Space Types]\"),0)),\"\")","v":""},{"$f":"IF(AND(OR(ProjectType=\"New Construction\",ProjectType=\"Major Renovation\"),L15<>\"\"),INDEX(NCMRIntCosts_Table[],MATCH(ProjectState,NCMRIntCosts_Table[State],0),MATCH(\"m\",NCMRIntCosts_Table[#Headers],0))*EXP(INDEX(NCMRIntCosts_Table[],MATCH(ProjectState,NCMRIntCosts_Table[State],0),MATCH(\"b\",NCMRIntCosts_Table[#Headers],0))*(LPD_Code-LPD_Proposed))*L15,\"\")","v":""}]
[null,"Address",null,null,null,null,null,null,null,null,null,null,null,{"$f":"IFERROR(INDEX(INDIRECT(\"LPD_\"&ProjectState&IF(LPDCalcMethod=\"Whole Building\",\"_Whole\",IF(LPDCalcMethod=\"Multiple Spaces\",\"_Multi\",\"\"))&IF(OR(ProjectType=\"Retrofit\",ProjectType=\"Major Renovation\"),\"_RMR\",IF(ProjectType=\"New Construction\",\"_NC\",\"\"))&\"_Table[LPD]\"),MATCH(H16,INDIRECT(\"LPD_\"&ProjectState&IF(LPDCalcMethod=\"Whole Building\",\"_Whole\",IF(LPDCalcMethod=\"Multiple Spaces\",\"_Multi\",\"\"))&IF(OR(ProjectType=\"Retrofit\",ProjectType=\"Major Renovation\"),\"_RMR\",IF(ProjectType=\"New Construction\",\"_NC\",\"\"))&\"_Table[Space Types]\"),0)),\"\")","v":""},null,null,{"$f":"IFERROR(INDEX(INDIRECT(\"DDF_Table[DDF]\"),MATCH(H16,DDF_Table[Space Type],0)),\"\")","v":""},{"$f":"IFERROR(INDEX(INDIRECT(\"LPD_\"&ProjectState&\"_Multi_NC_Table[HVAC Factor]\"),MATCH(H16,INDIRECT(\"LPD_\"&ProjectState&\"_Multi_NC_Table[Space Types]\"),0)),\"\")","v":""},{"$f":"IF(AND(OR(ProjectType=\"New Construction\",ProjectType=\"Major Renovation\"),L16<>\"\"),INDEX(NCMRIntCosts_Table[],MATCH(ProjectState,NCMRIntCosts_Table[State],0),MATCH(\"m\",NCMRIntCosts_Table[#Headers],0))*EXP(INDEX(NCMRIntCosts_Table[],MATCH(ProjectState,NCMRIntCosts_Table[State],0),MATCH(\"b\",NCMRIntCosts_Table[#Headers],0))*(LPD_Code-LPD_Proposed))*L16,\"\")","v":""}]
[null,"City, State, Zip",null,null,null,null,null,null,null,null,null,null,null,{"$f":"IFERROR(INDEX(INDIRECT(\"LPD_\"&ProjectState&IF(LPDCalcMethod=\"Whole Building\",\"_Whole\",IF(LPDCalcMethod=\"Multiple Spaces\",\"_Multi\",\"\"))&IF(OR(ProjectType=\"Retrofit\",ProjectType=\"Major Renovation\"),\"_RMR\",IF(ProjectType=\"New Construction\",\"_NC\",\"\"))&\"_Table[LPD]\"),MATCH(H17,INDIRECT(\"LPD_\"&ProjectState&IF(LPDCalcMethod=\"Whole Building\",\"_Whole\",IF(LPDCalcMethod=\"Multiple Spaces\",\"_Multi\",\"\"))&IF(OR(ProjectType=\"Retrofit\",ProjectType=\"Major Renovation\"),\"_RMR\",IF(ProjectType=\"New Construction\",\"_NC\",\"\"))&\"_Table[Space Types]\"),0)),\"\")","v":""},null,null,{"$f":"IFERROR(INDEX(INDIRECT(\"DDF_Table[DDF]\"),MATCH(H17,DDF_Table[Space Type],0)),\"\")","v":""},{"$f":"IFERROR(INDEX(INDIRECT(\"LPD_\"&ProjectState&\"_Multi_NC_Table[HVAC Factor]\"),MATCH(H17,INDIRECT(\"LPD_\"&ProjectState&\"_Multi_NC_Table[Space Types]\"),0)),\"\")","v":""},{"$f":"IF(AND(OR(ProjectType=\"New Construction\",ProjectType=\"Major Renovation\"),L17<>\"\"),INDEX(NCMRIntCosts_Table[],MATCH(ProjectState,NCMRIntCosts_Table[State],0),MATCH(\"m\",NCMRIntCosts_Table[#Headers],0))*EXP(INDEX(NCMRIntCosts_Table[],MATCH(ProjectState,NCMRIntCosts_Table[State],0),MATCH(\"b\",NCMRIntCosts_Table[#Headers],0))*(LPD_Code-LPD_Proposed))*L17,\"\")","v":""}]
[null,"Contact, Title",null,null,null,null,null,null,null,null,null,null,null,{"$f":"IFERROR(INDEX(INDIRECT(\"LPD_\"&ProjectState&IF(LPDCalcMethod=\"Whole Building\",\"_Whole\",IF(LPDCalcMethod=\"Multiple Spaces\",\"_Multi\",\"\"))&IF(OR(ProjectType=\"Retrofit\",ProjectType=\"Major Renovation\"),\"_RMR\",IF(ProjectType=\"New Construction\",\"_NC\",\"\"))&\"_Table[LPD]\"),MATCH(H18,INDIRECT(\"LPD_\"&ProjectState&IF(LPDCalcMethod=\"Whole Building\",\"_Whole\",IF(LPDCalcMethod=\"Multiple Spaces\",\"_Multi\",\"\"))&IF(OR(ProjectType=\"Retrofit\",ProjectType=\"Major Renovation\"),\"_RMR\",IF(ProjectType=\"New Construction\",\"_NC\",\"\"))&\"_Table[Space Types]\"),0)),\"\")","v":""},null,null,{"$f":"IFERROR(INDEX(INDIRECT(\"DDF_Table[DDF]\"),MATCH(H18,DDF_Table[Space Type],0)),\"\")","v":""},{"$f":"IFERROR(INDEX(INDIRECT(\"LPD_\"&ProjectState&\"_Multi_NC_Table[HVAC Factor]\"),MATCH(H18,INDIRECT(\"LPD_\"&ProjectState&\"_Multi_NC_Table[Space Types]\"),0)),\"\")","v":""},{"$f":"IF(AND(OR(ProjectType=\"New Construction\",ProjectType=\"Major Renovation\"),L18<>\"\"),INDEX(NCMRIntCosts_Table[],MATCH(ProjectState,NCMRIntCosts_Table[State],0),MATCH(\"m\",NCMRIntCosts_Table[#Headers],0))*EXP(INDEX(NCMRIntCosts_Table[],MATCH(ProjectState,NCMRIntCosts_Table[State],0),MATCH(\"b\",NCMRIntCosts_Table[#Headers],0))*(LPD_Code-LPD_Proposed))*L18,\"\")","v":""}]
[null,"Phone, Email",null,null,null,null,null,null,null,null,null,{"$f":"SUM($L$14:$M$18)","v":0},null,{"$f":"IF(OR(L19=\"\",L19=0),\"0.00\",SUMPRODUCT($L$14:$M$18,$N$14:$O$18)/$L$19)","v":"0.00"},null,null,{"$f":"IF(OR(L19=\"\",L19=0),\"0.00\",SUMPRODUCT($L$14:$L$18,$Q$14:$Q$18)/$L$19)","v":"0.00"},{"$f":"IF(OR(L19=\"\",L19=0),\"0.00\",SUMPRODUCT($L$14:$L$18,$R$14:$R$18)/$L$19)","v":"0.00"},{"$f":"IF(OR(L19=\"\",L19=0),\"0.00\",SUMPRODUCT($L$14:$L$18,$S$14:$S$18)/$L$19)","v":"0.00"}]
[null,"Building Type",null,null,null,null,null,"Lighting Operation Schedules"]
[null,"Participant is:",false,null,null,null,null,"Standard Schedule",null,"Day","A","B","C","D","E",null,"Site Spec Downstream Override",null,"No",null,"A",{"$f":"IF(OR(OpSch_A=\"\",OpSch_A=0),\"unused\",OpSch_A)","v":"unused"},"X"]
[null,"Vendor Information",{"$f":"IFERROR(IF(SBDEligible = \"Yes\",\"Small Business Enhanced Eligible\",\"\"),\"\")","v":""},null,null,{"$f":"IFERROR(IF(SBDEligible = \"Yes\",CHAR(252),\"\"),\"\")","v":""},null,"Op Weeks/Year",null,"Mon",null,null,null,null,null,null,null,null,null,null,"B",{"$f":"IF(OR(OpSch_B=\"\",OpSch_B=0),\"unused\",OpSch_B)","v":"unused"},"Y"]
[null,"Business Name",null,null,null,null,null,"# Holidays Closed",null,"Tue",null,null,null,null,null,null,null,null,null,null,"C",{"$f":"IF(OR(OpSch_C=\"\",OpSch_C=0),\"unused\",OpSch_C)","v":"unused"}]
[null,"Address",null,null,null,null,null,"Seasonal (optional)",null,"Wed",null,null,null,null,null,null,null,null,null,null,"D",{"$f":"IF(OR(OpSch_D=\"\",OpSch_D=0),\"unused\",OpSch_D)","v":"unused"}]
[null,"City, State, Zip",null,null,null,null,null,"On Schedule",null,"Thu",null,null,null,null,null,null,null,null,null,null,"E",{"$f":"IF(OR(OpSch_E=\"\",OpSch_E=0),\"unused\",OpSch_E)","v":"unused"}]
[null,"Contact",null,null,null,null,null,"Off Schedule",null,"Fri",null,null,null,null,null,null,null,null,null,null,"S",{"$f":"IF(OR(OpSch_S=\"\",OpSch_S=0),\"unused\",OpSch_S)","v":"unused"}]
[null,"Phone, Email",null,null,null,null,null,"Weeks On per Year",null,"Sat",null,null,null,null,null,null,null,null,null,null,"X",8760]
[null,"Payee Information",null,null,null,null,null,"# Holidays Closed",null,"Sun",null,null,null,null,null,null,null,null,null,null,"Y",4380]
[null,"Incentive Should Be Addressed To:",null,null,null,null,null,{"$f":"IF(OR($I$25=\"\",$I$26=\"\",$I$28=\"\",$I$27=\"\"),\"\",(SUM(INDIRECT(\"OpSch_\"&$I$25&\"_Hrs_List\"))*IF($I$27=52,52.14285714,$I$27)+SUM(INDIRECT(\"OpSch_\"&$I$26&\"_Hrs_List\"))*(52.14285714-IF($I$27=52,52.14285714,$I$27)))*((365-$I$28)/365))","v":""},null,"Total",{"$f":"IF(OR($I$23=\"\",$I$22=\"\",SUM(K$22:K$28)=0),0,ROUND(SUM(K$22:K$28)*IF($I$22=52,52.14285714,$I$22)*((365-$I$23)/365),0))","v":0},{"$f":"IF(OR($I$23=\"\",$I$22=\"\",SUM(L$22:L$28)=0),0,ROUND(SUM(L$22:L$28)*IF($I$22=52,52.14285714,$I$22)*((365-$I$23)/365),0))","v":0},{"$f":"IF(OR($I$23=\"\",$I$22=\"\",SUM(M$22:M$28)=0),0,ROUND(SUM(M$22:M$28)*IF($I$22=52,52.14285714,$I$22)*((365-$I$23)/365),0))","v":0},{"$f":"IF(OR($I$23=\"\",$I$22=\"\",SUM(N$22:N$28)=0),0,ROUND(SUM(N$22:N$28)*IF($I$22=52,52.14285714,$I$22)*((365-$I$23)/365),0))","v":0},{"$f":"IF(AND(ProjectState=\"UT\",ProjectType=\"Major Renovation\",SpaceType_1<>\"\"),\nIF(INDEX(DDF_Table[Op Hours],MATCH(SpaceType_1,DDF_Table[Space Type],0))=\"\",INDEX(DDF_Table[Op Hours],MATCH(\"Other\",DDF_Table[Space Type],0)),INDEX(DDF_Table[Op Hours],MATCH(SpaceType_1,DDF_Table[Space Type],0))),\nIF(OR($I$23=\"\",$I$22=\"\",SUM(O$22:O$28)=0),0,ROUND(SUM(O$22:O$28)*IF($I$22=52,52.14285714,$I$22)*((365-$I$23)/365),0)))","v":0}]
[null,"Attention, Phone",null,null,null,null,null,"Admin"]
[null,"Business Name",null,null,null,null,null,"Measure Effective Date",null,true]
[null,"Address",null,null,null,null,null,{"$f":"IF(IOIssueDateOriginal=\"\",IF(IOIssueDate=\"\",IF(AuditDate=\"\",\"\",AuditDate),IOIssueDate),IOIssueDateOriginal)","v":""}]
[null,"City, State, Zip",null,null,null,null,null,{"$f":"IF(IOIssueDateOriginal=\"\",IF(IOIssueDate=\"\",IF(AuditDate=\"\",\"\",\"(Audit Date)\"),\"(IO Issue Date)\"),\"(Original IO Issue Date)\")","v":""}]

{"sheet":"Project Information","index":2,"n_rows":32,"n_cols":126,"rows_kept":32,"cut":false,"hidden":false,"merged":[[9,121,10,123],[6,1,6,3],[7,1,7,3],[7,43,8,60],[9,43,9,60],[8,1,8,3],[9,1,9,3],[6,4,6,6],[6,43,6,60],[7,4,7,6],[8,4,8,6],[10,84,10,87],[6,25,7,29],[9,4,9,6],[10,62,10,65],[5,61,10,61],[10,1,10,6],[8,30,9,30],[1,1,1,6],[2,1,2,3],[3,1,3,3],[4,1,4,3],[5,1,5,3],[2,4,2,6],[3,4,3,6],[4,4,4,6],[5,4,5,6],[8,25,8,29],[9,25,9,29]]}
[null,{"$f":"IF(ProjectName=\"\",\"<project name>\",ProjectName)","v":"<project name>"},"HIDE",null,null,null,null,"HIDE","HIDE","HIDE","HIDE",{"$f":"IF(ProjectID_DSMC=\"\",\"\",ProjectID_DSMC)","v":""},"HIDE",null,"HIDE","HIDE","HIDE","HIDE","HIDE","HIDE","HIDE","HIDE","HIDE","HIDE",{"$f":"IF(ProjectStage=\"\",\"\",\"Project Stage: \" & ProjectStage)&\"\nConstruction Type: \"&IF(ProjectType=\"\",\"\",ProjectType)&\"\nProject State: \"&IF(ProjectState=\"\",\"\",ProjectState)","v":"Project Stage: Preliminary (Pre-Install)\nConstruction Type: \nProject State: ID"},null,null,"HIDE","HIDE",null,null,"HIDE","HIDE","HIDE","HIDE","HIDE",null,"HIDE","HIDE","HIDE","HIDE","HIDE","HIDE","HIDE","HIDE","HIDE","HIDE","HIDE",null,"HIDE","HIDE","HIDE",{"$f":"IF(SBDEligible=\"Yes\",\"\",\"HIDE\")","v":"HIDE"},"HIDE","HIDE","HIDE","HIDE","HIDE","HIDE","HIDE",null,null,null,null,null,null,"HIDE","HIDE","HIDE",null,"HIDE","HIDE","HIDE","HIDE","HIDE","HIDE","HIDE","HIDE","HIDE","HIDE","HIDE","HIDE","HIDE","HIDE",null,null,null,null,"HIDE","HIDE",null,"HIDE","HIDE","HIDE","HIDE","HIDE","HIDE","HIDE","HIDE","HIDE","HIDE","HIDE","HIDE","HIDE","HIDE","HIDE","HIDE","HIDE","HIDE",null,null,null,null,"HIDE","HIDE"]
[null,"Operating Schedules",null,null,null,null,null,"Lamps (Existing)","Lamp W (Existing)",null,null,"hrs/yr","Space W (Existing, Actual)","Space W (Existing, Stipulated)",null,null,"Space kWh (Existing, Actual)",null,null,"Space kWh (Existing, Stipulated)",null,null,null,null,"Project Totals","Quantity (Exist/Prop)","Lamp Count","Lamps (Proposed)","Lamp W (Proposed)","Fixture W (Proposed)","Space W (Proposed)",null,null,"Space kWh (Proposed)",null,"% Wattage Reduction (Actual)","% Wattage Reduction","kW Demand Reduction (Actual)","kW Demand Reduction (Stipulated)","Fixture Savings","Control Savings",null,null,"Total Savings","Fixture kWh/yr Savings (Stipulated)","Control kWh/yr Savings (Stipulated)",null,null,"kWh/yr Savings (Stipulated)",null,null,null,"Project Costs","Energy Cost Savings (actual)",null,"Energy Cost Savings (actual)",null,null,"Energy Cost Savings","Pre-Cap Incentives","Incentives",{"$f":"IF(AND(BI3=0,BJ3=\"\",BJ4=\"\"),\"<~~ check project costs if incentive = $0\",\nIF(AND(SBDEligible=\"Yes\",Processing_Typical_MeasureCount > 0,ISNUMBER(FIND(\"1 year SPB\",CapMessage))),\"project costs may not allocate correctly since the 1 year SPB cap has been hit. Please review costs.\",\"\"))","v":"<~~ check project costs if incentive = $0"},null,null,null,null,"Project Flags",null,null,null,null,null,null,null,null,null,null,null,null,null,null,null,null,null,null,null,null,null,null,null,null,null,null,null,null,null,null,null,null,null,null,null,null,null,null,null,null,null,null,null,null,"SPB without Incentives (stipulated)","SPB with Incentives (stipulated)","SPB without Incentives (actual)","SPB with Incentives (actual)","% Incentives / Costs","Cost $/kWh","Cost $/kWh (actual)","Inc $/kWh"]
[null,"A",null,null,{"$f":"IF(OR(OpSch_A=\"\",OpSch_A=0), \"unused operating schedule\",IF(OR(L3=\"\",L3=0),\"\",TEXT('Customer Information'!K22,\"0.0\")&\" (Mo), \"&TEXT('Customer Information'!K23,\"0.0\")&\" (Tu), \"&TEXT('Customer Information'!K24,\"0.0\")&\" (We), \"&TEXT('Customer Information'!K25,\"0.0\")&\" (Th), \"&TEXT('Customer Information'!K26,\"0.0\")&\" (Fr), \"&TEXT('Customer Information'!K27,\"0.0\")&\" (Sa), \"&TEXT('Customer Information'!K28,\"0.0\")&\" (Su), \"&'Customer Information'!I22&\" wks/yr, \"&'Customer Information'!I23&\" holidays\"))","v":"unused operating schedule"},null,null,{"$f":"SUM(ProjectInfoTable[Lamps (Existing)])-SUMIFS(ProjectInfoTable[Lamps (Existing)],ProjectInfoTable[Fixture Measure],ProgramMeasureType)","v":0},{"$f":"SUM(ProjectInfoTable[Lamp W (Existing)])-SUMIFS(ProjectInfoTable[Lamp W (Existing)],ProjectInfoTable[Fixture Measure],ProgramMeasureType)","v":0},null,null,{"$f":"IF(OpSch_A=\"\",\"\",OpSch_A)","v":0},{"$f":"SUM(ProjectInfoTable[Space W (Existing, Actual)])-SUMIFS(ProjectInfoTable[Space W (Existing, Actual)],ProjectInfoTable[Fixture Measure],ProgramMeasureType)","v":0},{"$f":"SUM(ProjectInfoTable[Space W (Existing, Stipulated)])-SUMIFS(ProjectInfoTable[Space W (Existing, Stipulated)],ProjectInfoTable[Fixture Measure],ProgramMeasureType)","v":0},null,null,{"$f":"SUM(ProjectInfoTable[Space kWh (Existing, Actual)])-SUMIFS(ProjectInfoTable[Space kWh (Existing, Actual)],ProjectInfoTable[Fixture\nIncentive / Unit],ProgramMeasureType)","v":0},null,null,{"$f":"SUM(ProjectInfoTable[Space kWh (Existing, Stipulated)])-SUMIFS(ProjectInfoTable[Space kWh (Existing, Stipulated)],ProjectInfoTable[Fixture Measure],ProgramMeasureType)","v":0},null,null,null,null,{"$f":"\"Typical - \"&ProjectType","v":"Typical - "},{"$f":"SUM(ProjectInfoTable[Quantity (Existing)])-SUMIFS(ProjectInfoTable[Quantity (Existing)],ProjectInfoTable[Fixture Measure],ProgramMeasureType)&\" / \"&SUM(ProjectInfoTable[Quantity (Proposed)])-SUMIFS(ProjectInfoTable[Quantity (Proposed)],ProjectInfoTable[Fixture Measure],ProgramMeasureType)","v":"0 / 0"},null,{"$f":"SUM(ProjectInfoTable[Lamps (Proposed)])-IFERROR(IF(AB4<>\"\",AB4,0),0)","v":0},{"$f":"SUM(ProjectInfoTable[Lamp W (Proposed)])-IFERROR(IF(AC4<>\"\",AC4,0),0)","v":0},{"$f":"SUM(ProjectInfoTable[Fixture W (Proposed)])-IFERROR(IF(AD4<>\"\",AD4,0),0)","v":0},{"$f":"SUM(ProjectInfoTable[Space W (Proposed)])-IFERROR(IF(AE4<>\"\",AE4,0),0)","v":0},null,null,{"$f":"SUM(ProjectInfoTable[Space kWh (Proposed)])-IFERROR(IF(AH4<>\"\",AH4,0),0)","v":0},null,{"$f":"IFERROR((M3-AE3)/M3,0)","v":0},{"$f":"IF(ProjectType<>\"Retrofit\",\"n/a\",IFERROR((N3-AE3)/N3,0))","v":"n/a"},{"$f":"SUM(ProjectInfoTable[kW Demand Reduction (Actual)])-IFERROR(IF(AL4<>\"\",AL4,0),0)","v":0},{"$f":"SUM(ProjectInfoTable[kW Demand Reduction (Stipulated)])-IFERROR(IF(AM4<>\"\",AM4,0),0)","v":0},{"$f":"SUM(ProjectInfoTable[Fixture kWh/yr Savings (Actual)])-IFERROR(IF(AN4<>\"\",AN4,0),0)","v":0},{"$f":"SUM(ProjectInfoTable[Control kWh/yr Savings (Actual)])-IFERROR(IF(AO4<>\"\",AO4,0),0)","v":0},null,null,{"$f":"SUM(ProjectInfoTable[Total   kWh/yr Savings (Actual)])-IFERROR(IF(AR4<>\"\",AR4,0),0)","v":0},{"$f":"SUM(ProjectInfoTable[Fixture kWh/yr Savings (Stipulated)])-IFERROR(IF(AS4<>\"\",AS4,0),0)","v":0},{"$f":"SUM(ProjectInfoTable[Control kWh/yr Savings (Stipulated)])-IFERROR(IF(AT4<>\"\",AT4,0),0)","v":0},{"$f":"SUM(ProjectInfoTable[Fixture Measure kWh/yr Savings (Stipulated)])-IFERROR(IF(AU4<>\"\",AU4,0),0)","v":0},{"$f":"SUM(ProjectInfoTable[Control Measure kWh/yr Savings (Stipulated)])","v":0},{"$f":"SUM(ProjectInfoTable[Total   kWh/yr Savings (Stipulated)])-IFERROR(IF(AW4<>\"\",AW4,0),0)","v":0},null,null,null,{"$f":"SUM(ProjectInfoTable[Total Cost (Allocated)])-IFERROR(IF(BA4<>\"\",BA4,0),0)","v":0},{"$f":"SUM(ProjectInfoTable[Fixture Energy Cost Savings (Actual)],ProjectInfoTable[Control Energy Cost Savings (Actual)])-IFERROR(IF(BB4<>\"\",BB4,0),0)","v":0},null,{"$f":"SUM(ProjectInfoTable[Fixture Energy Cost Savings (Actual)],ProjectInfoTable[Control Energy Cost Savings (Actual)])-SUMIFS(ProjectInfoTable[Fixture Energy Cost Savings (Actual)],ProjectInfoTable[Fixture Measure],\"*MID*\")-SUMIFS(ProjectInfoTable[Fixture Energy Cost Savings (Actual)],ProjectInfoTable[Fixture Measure],ProgramMeasureType)","v":0},null,null,{"$f":"SUM(ProjectInfoTable[Total Energy Cost Savings (Stipulated)])-IFERROR(IF(BG4<>\"\",BG4,0),0)","v":0},{"$f":"SUM(ProjectInfoTable[Fixture Incentives (pre-capping)])+SUM(ProjectInfoTable[Control Incentives (pre-capping)])-IFERROR(IF(BH4<>\"\",BH4,0),0)","v":0},{"$f":"IF(OR($BH$3<0,IFERROR(error_fix_wattage=\"error\",TRUE)),0,\nIF(ProjectType=\"Retrofit\",\nIF(ProjectRecommissioning=\"only recommissioning\",\nIFERROR(MAX(MIN($BH$3,1*$BA$3),0),\"\"),\nIFERROR(MAX(MIN($BH$3,0.7*$BA$3,$BA$3-$BG$3),0),\"\")),\nIF(AND(NOT(ISNUMBER(FIND(\"Exterior\",LPDCalcMethod,1))),LPDCodeToProposed>0.1),$BH$3,SUM(ProjectInfoTable[[#All],[Fixture Incentives]])+SUM(ProjectInfoTable[Control Incentives]))))","v":0},null,null,null,null,null,"Control recommissioning project type",{"$f":"IF(COUNTIFS(ProjectInfoTable[Proposed Equipment],\"*Re-Commissioning*\") = COUNTA(ProjectInfoTable[Proposed Equipment]),\"only recommissioning\",\nIF(COUNTIFS(ProjectInfoTable[Proposed Equipment],\"*Re-Commissioning*\")>0,\"mixed recommissioning\",\"no recommissioning\"))","v":"only recommissioning"},null,null,null,null,null,null,null,null,null,null,null,null,null,null,null,null,null,null,null,null,null,null,null,null,null,null,null,null,null,null,null,null,null,null,null,null,null,null,null,null,null,null,null,{"$f":"IFERROR(BA3/BG3,0)","v":0},{"$f":"IFERROR((BA3-BI3)/BG3,0)","v":0},{"$f":"IFERROR(BA3/BB3,0)","v":0},{"$f":"IFERROR((BA3-BI3)/BB3,0)","v":0},{"$f":"IFERROR(BI3/BA3,0)","v":0},{"$f":"IFERROR(BA3/AW3,0)","v":0},{"$f":"IFERROR(BA3/AR3,0)","v":0},{"$f":"IFERROR(BI3/AW3,0)","v":0}]
[null,"B",null,null,{"$f":"IF(OR(OpSch_B=\"\",OpSch_B=0), \"unused operating schedule\",IF(OR(L4=\"\",L4=0),\"\",TEXT('Customer Information'!L22,\"0.0\")&\" (Mo), \"&TEXT('Customer Information'!L23,\"0.0\")&\" (Tu), \"&TEXT('Customer Information'!L24,\"0.0\")&\" (We), \"&TEXT('Customer Information'!L25,\"0.0\")&\" (Th), \"&TEXT('Customer Information'!L26,\"0.0\")&\" (Fr), \"&TEXT('Customer Information'!L27,\"0.0\")&\" (Sa), \"&TEXT('Customer Information'!L28,\"0.0\")&\" (Su), \"&'Customer Information'!I22&\" wks/yr, \"&'Customer Information'!I23&\" holidays\"))","v":"unused operating schedule"},null,null,{"$f":"IF(AND(ProjectState=\"UT\",ProjectType=\"Retrofit\"),SUMIFS(ProjectInfoTable[Lamps (Existing)],ProjectInfoTable[Fixture Measure],\"*Midstream*\"),\"\")","v":""},{"$f":"IF(AND(ProjectState=\"UT\",ProjectType=\"Retrofit\"),SUMIFS(ProjectInfoTable[Lamp W (Existing)],ProjectInfoTable[Fixture Measure],\"*Midstream*\"),\"\")","v":""},null,null,{"$f":"IF(OpSch_B=\"\",\"\",OpSch_B)","v":0},{"$f":"IF(AND(ProjectState=\"UT\",ProjectType=\"Retrofit\"),SUMIFS(ProjectInfoTable[Space W (Existing, Actual)],ProjectInfoTable[Fixture Measure],\"*Midstream*\"),\"\")","v":""},{"$f":"IF(AND(ProjectState=\"UT\",ProjectType=\"Retrofit\"),SUMIFS(ProjectInfoTable[Space W (Existing, Stipulated)],ProjectInfoTable[Fixture Measure],\"*Midstream*\"),\"\")","v":""},null,null,{"$f":"IF(AND(ProjectState=\"UT\",ProjectType=\"Retrofit\"),SUMIFS(ProjectInfoTable[Space kWh (Existing, Actual)],ProjectInfoTable[Fixture\nIncentive / Unit],\"*Midstream*\"),\"\")","v":""},null,null,{"$f":"IF(AND(ProjectState=\"UT\",ProjectType=\"Retrofit\"),SUMIFS(ProjectInfoTable[Space kWh (Existing, Stipulated)],ProjectInfoTable[Fixture Measure],\"*Midstream*\"),\"\")","v":""},null,null,null,{"$f":"IF(ProjectState=\"UT\",IF(SBDEligible=\"Yes\",IF(MeasureEffectiveDate>DATE(2021,8,23),\"*SBDI*\",\"*Small Bu*\"),\"\"),\nIF(AND(ProjectState=\"WY\",SBDEligible=\"Yes\"),IF(MeasureEffectiveDate>DATE(2021,8,23),\"*SBDI*\",\"*Small Bu*\"),\nIF(AND(ProjectState=\"ID\",SBDEligible=\"Yes\"),\"*SBDI*\",\"\")))","v":""},{"$f":"IF(SBDEligible=\"Yes\",\"Small Business Enhanced\",\"\")","v":""},{"$f":"IF(ProgramMeasureType<>\"\",SUMIFS(ProjectInfoTable[Quantity (Existing)],ProjectInfoTable[Fixture Measure],ProgramMeasureType),\"\")&\" / \"&IF(ProgramMeasureType<>\"\",SUMIFS(ProjectInfoTable[Quantity (Proposed)],ProjectInfoTable[Fixture Measure],ProgramMeasureType),\"\")","v":" / "},{"$f":"IF(AND(ProjectType=\"Retrofit\",ProjectState=\"UT\"),SUMPRODUCT(--(ISNUMBER(FIND(\"Midstream\",ProjectInfoTable[Fixture Measure]))),ProjectInfoTable[Quantity (Proposed)],ProjectInfoTable[Lamps (Proposed)]),\"\")","v":""},{"$f":"IF(ProgramMeasureType<>\"\",SUMIFS(ProjectInfoTable[Lamps (Proposed)],ProjectInfoTable[Fixture Measure],ProgramMeasureType),\"\")","v":""},{"$f":"IF(ProgramMeasureType<>\"\",SUMIFS(ProjectInfoTable[Lamp W (Proposed)],ProjectInfoTable[Fixture Measure],ProgramMeasureType),\"\")","v":""},{"$f":"IF(ProgramMeasureType<>\"\",SUMIFS(ProjectInfoTable[Fixture W (Proposed)],ProjectInfoTable[Fixture Measure],ProgramMeasureType),\"\")","v":""},{"$f":"IF(ProgramMeasureType<>\"\",SUMIFS(ProjectInfoTable[Space W (Proposed)],ProjectInfoTable[Fixture Measure],ProgramMeasureType),\"\")","v":""},null,null,{"$f":"IF(ProgramMeasureType<>\"\",SUMIFS(ProjectInfoTable[Space kWh (Proposed)],ProjectInfoTable[Fixture Measure],ProgramMeasureType),\"\")","v":""},null,{"$f":"IFERROR((M4-AE4)/M4,0)","v":0},{"$f":"IF(ProjectType<>\"Retrofit\",\"n/a\",IFERROR((N4-AE4)/N4,0))","v":"n/a"},{"$f":"IF(ProgramMeasureType<>\"\",SUMIFS(ProjectInfoTable[kW Demand Reduction (Actual)],ProjectInfoTable[Fixture Measure],ProgramMeasureType),\"\")","v":""},{"$f":"IF(ProgramMeasureType<>\"\",SUMIFS(ProjectInfoTable[kW Demand Reduction (Stipulated)],ProjectInfoTable[Fixture Measure],ProgramMeasureType),\"\")","v":""},{"$f":"IF(ProgramMeasureType<>\"\",SUMIFS(ProjectInfoTable[Fixture kWh/yr Savings (Actual)],ProjectInfoTable[Fixture Measure],ProgramMeasureType),\"\")","v":""},{"$f":"IF(ProgramMeasureType<>\"\",SUMIFS(ProjectInfoTable[Control kWh/yr Savings (Actual)],ProjectInfoTable[Fixture Measure],ProgramMeasureType),\"\")","v":""},null,null,{"$f":"IF(ProgramMeasureType<>\"\",SUMIFS(ProjectInfoTable[Total   kWh/yr Savings (Actual)],ProjectInfoTable[Fixture Measure],ProgramMeasureType),\"\")","v":""},{"$f":"IF(ProgramMeasureType<>\"\",SUMIFS(ProjectInfoTable[Fixture kWh/yr Savings (Stipulated)],ProjectInfoTable[Fixture Measure],ProgramMeasureType),\"\")","v":""},{"$f":"IF(ProgramMeasureType<>\"\",SUMIFS(ProjectInfoTable[Control kWh/yr Savings (Stipulated)],ProjectInfoTable[Fixture Measure],ProgramMeasureType),\"\")","v":""},{"$f":"SUMIFS(ProjectInfoTable[Fixture Measure kWh/yr Savings (Stipulated)],ProjectInfoTable[Fixture Measure],ProgramMeasureType)","v":0},null,{"$f":"IF(ProgramMeasureType<>\"\",SUMIFS(ProjectInfoTable[Fixture Measure kWh/yr Savings (Stipulated)],ProjectInfoTable[Fixture Measure],ProgramMeasureType),\"\")","v":""},null,null,null,{"$f":"IF(ProgramMeasureType<>\"\",SUMIFS(ProjectInfoTable[Fixture Cost (Allocated)],ProjectInfoTable[Fixture Measure],ProgramMeasureType),\"\")","v":""},{"$f":"IF(ProgramMeasureType<>\"\",SUMIFS(ProjectInfoTable[Fixture Energy Cost Savings (Actual)],ProjectInfoTable[Fixture Measure],ProgramMeasureType),\"\")","v":""},null,{"$f":"IF(Z4 <> \"\",SUMIFS(ProjectInfoTable[Fixture Energy Cost Savings (Actual)],ProjectInfoTable[Fixture Measure],ProgramMeasureType),\"\")","v":0},null,null,{"$f":"IF(ProgramMeasureType<>\"\",SUMIFS(ProjectInfoTable[Fixture Energy Cost Savings (Stipulated)],ProjectInfoTable[Fixture Measure],ProgramMeasureType),\"\")","v":""},{"$f":"IF(ProgramMeasureType<>\"\",SUMIFS(ProjectInfoTable[Fixture Incentives (pre-capping)],ProjectInfoTable[Fixture Measure],ProgramMeasureType),\"\")","v":""},{"$f":"IFERROR(IF($BH$4<0,0,\nIF(OR(ISNUMBER(FIND(\"SBDI\",ProgramMeasureType)),ISNUMBER(FIND(\"Small Bu\",ProgramMeasureType))),IFERROR(MAX(MIN(IF(ProjectState=\"UT\",4000,5500),BH4,$BA$4*0.9),0),0),\nIFERROR(MAX(MIN($BH$4,$BA$4*0.7),0),0))),0)","v":0},{"$f":"IFERROR(IF(AND(Y4<>\"\",ProjectState = \"UT\",Incentive_NonTypical<>Incentive_NonTypical_PreCapped),\"(Cost Cap Applied For Small Business)\",\"\"),\"\")","v":""},null,null,null,null,null,null,null,null,null,null,null,null,null,null,null,null,null,null,null,null,null,null,null,null,null,null,null,null,null,null,null,null,null,null,null,null,null,null,null,null,null,null,null,null,null,null,null,null,null,{"$f":"IF(AND(BI3=0,BI4>0,ISNUMBER(FIND(\"LED Instant Incentives\",Y4,1))),ProjectCost_Total/BG4,IFERROR(BA4/BG4,0))","v":0},{"$f":"IF(AND(BI3=0,BI4>0,ISNUMBER(FIND(\"LED Instant Incentives\",Y4,1))),(ProjectCost_Total-Incentives_Total)/BG4,IFERROR((BA4-BI4)/BG4,0))","v":0},{"$f":"IF(AND(BI3=0,BI4>0,ISNUMBER(FIND(\"LED Instant Incentives\",Y4,1))),ProjectCost_Total/BB4,IFERROR(BA4/BB4,0))","v":0},{"$f":"IF(AND(BI3=0,BI4>0,ISNUMBER(FIND(\"LED Instant Incentives\",Y4,1))),(ProjectCost_Total-Incentives_Total)/BB4,IFERROR((BA4-BI4)/BB4,0))","v":0},{"$f":"IFERROR(BI4/BA4,0)","v":0},{"$f":"IFERROR(BA4/AW4,0)","v":0},{"$f":"IFERROR(BA4/AR4,0)","v":0},{"$f":"IFERROR(BI4/AW4,0)","v":0}]
[null,"C",null,null,{"$f":"IF(OR(OpSch_C=\"\",OpSch_C=0), \"unused operating schedule\",IF(OR(L5=\"\",L5=0),\"\",TEXT('Customer Information'!M22,\"0.0\")&\" (Mo), \"&TEXT('Customer Information'!M23,\"0.0\")&\" (Tu), \"&TEXT('Customer Information'!M24,\"0.0\")&\" (We), \"&TEXT('Customer Information'!M25,\"0.0\")&\" (Th), \"&TEXT('Customer Information'!M26,\"0.0\")&\" (Fr), \"&TEXT('Customer Information'!M27,\"0.0\")&\" (Sa), \"&TEXT('Customer Information'!M28,\"0.0\")&\" (Su), \"&'Customer Information'!I22&\" wks/yr, \"&'Customer Information'!I23&\" holidays\"))","v":"unused operating schedule"},null,null,{"$f":"SUM(H3:H4)","v":0},{"$f":"SUM(I3:I4)","v":0},null,null,{"$f":"IF(OpSch_C=\"\",\"\",OpSch_C)","v":0},{"$f":"SUM(M3:M4)","v":0},{"$f":"SUM(N3:N4)","v":0},null,null,{"$f":"SUM(Q3:Q4)","v":0},null,null,{"$f":"SUM(T3:T4)","v":0},null,null,null,null,"Total",{"$f":"SUM(ProjectInfoTable[Quantity (Existing)])&\" / \"&SUM(ProjectInfoTable[Quantity (Proposed)])","v":"0 / 0"},null,{"$f":"SUM(AB3:AB4)","v":0},{"$f":"SUM(AC3:AC4)","v":0},{"$f":"SUM(AD3:AD4)","v":0},{"$f":"SUM(AE3:AE4)","v":0},null,null,{"$f":"SUM(AH3:AH4)","v":0},null,{"$f":"IFERROR((M5-AE5)/M5,0)","v":0},{"$f":"IF(ProjectType<>\"Retrofit\",\"n/a\",IFERROR((N5-AE5)/N5,0))","v":"n/a"},0,0,0,0,null,null,0,0,0,0,0,0,null,null,null,{"$f":"SUM(BA3:BA4)","v":0},{"$f":"SUM(BB3:BB4)","v":0},null,{"$f":"SUM(BD3:BD4)","v":0},null,null,{"$f":"SUM(BG3:BG4)","v":0},{"$f":"SUM(BH3:BH4)","v":0},"see below",null,null,null,null,null,null,null,null,null,null,null,null,null,null,null,null,null,null,null,null,null,null,null,null,null,null,null,null,null,null,null,null,null,null,null,null,null,null,null,null,null,null,null,null,null,null,null,null,null,null,{"$f":"IF(AND(BI3=0,BI4>0,ISNUMBER(FIND(\"LED Instant Incentives\",Y4,1))),DH4,IFERROR(BA5/BG5,0))","v":0},{"$f":"IF(AND(BI3=0,BI4>0,ISNUMBER(FIND(\"LED Instant Incentives\",Y4,1))),DI4,IFERROR((BA5-AR8)/BG5,0))","v":0},{"$f":"IF(AND(BI3=0,BI4>0,ISNUMBER(FIND(\"LED Instant Incentives\",Y4,1))),DJ4,IFERROR(BA5/BB5,0))","v":0},{"$f":"IF(AND(BI3=0,BI4>0,ISNUMBER(FIND(\"LED Instant Incentives\",Y4,1))),DK4,IFERROR((BA5-AR8)/BB5,0))","v":0},{"$f":"IFERROR(AR8/BA5,0)","v":0},{"$f":"IFERROR(BA5/AW5,0)","v":0},0,{"$f":"IFERROR(AR8/AW5,0)","v":0}]
[null,"D",null,null,{"$f":"IF(OR(OpSch_D=\"\",OpSch_D=0), \"unused operating schedule\",IF(OR(L3=\"\",L3=0),\"\",TEXT('Customer Information'!N22,\"0.0\")&\" (Mo), \"&TEXT('Customer Information'!N23,\"0.0\")&\" (Tu), \"&TEXT('Customer Information'!N24,\"0.0\")&\" (We), \"&TEXT('Customer Information'!N25,\"0.0\")&\" (Th), \"&TEXT('Customer Information'!N26,\"0.0\")&\" (Fr), \"&TEXT('Customer Information'!N27,\"0.0\")&\" (Sa), \"&TEXT('Customer Information'!N28,\"0.0\")&\" (Su), \"&'Customer Information'!I22&\" wks/yr, \"&'Customer Information'!I23&\" holidays\"))","v":"unused operating schedule"},null,null,null,null,null,null,{"$f":"IF(OpSch_D=\"\",\"\",OpSch_D)","v":0},null,null,null,null,null,null,null,null,null,null,null,null,"Total Project Metrics",null,null,null,null,null,null,null,null,null,null,null,null,null,null,null,null,null,null,null,null,null,null,null,null,null,null,null,null,null,null,null,null,null,null,null,null,{"$f":"IF(AND(ISNUMBER(FIND(\"LED Instant Incentives\",$Y$4,1)),$BI$4>0),\"**The total incentives for this project include LED Instant Incentives which are estimates only. The actual LED Instant Incentives will be based upon incentives in effect at the time of purchase.\",\"\")","v":""}]
[null,"E",null,null,{"$f":"IF(OR(OpSch_E=\"\",OpSch_E=0), \"unused operating schedule\",\nIF(AND(ProjectState=\"UT\",ProjectType=\"Major Renovation\",SpaceType_1<>\"\"),\"Deemed schedule for major renovation projects\",\nIF(OR(L3=\"\",L3=0),\"\",TEXT('Customer Information'!O22,\"0.0\")&\" (Mo), \"&TEXT('Customer Information'!O23,\"0.0\")&\" (Tu), \"&TEXT('Customer Information'!O24,\"0.0\")&\" (We), \"&TEXT('Customer Information'!O25,\"0.0\")&\" (Th), \"&TEXT('Customer Information'!O26,\"0.0\")&\" (Fr), \"&TEXT('Customer Information'!O27,\"0.0\")&\" (Sa), \"&TEXT('Customer Information'!O28,\"0.0\")&\" (Su), \"&'Customer Information'!I22&\" wks/yr, \"&'Customer Information'!I23&\" holidays\")))","v":"unused operating schedule"},null,null,null,null,null,null,{"$f":"IF(OpSch_E=\"\",\"\",OpSch_E)","v":0},null,null,null,null,null,null,null,null,null,null,null,null,{"$f":"SPB_Total","v":0},{"$f":"IF(Y7=0,\"\",IF(Y7<8,IF(Y7<1,\"Review Needed (<1.0 yrs)\",\"Good  (<8.0 yrs)\"), \"Review Needed  (>8.0 yrs)\"))","v":""},null,null,null,null,"LPD Code",null,null,null,null,null,{"$f":"LPD","v":"0.00"},null,null,null,null,null,null,{"$f":"\"Total Incentives\"&IF(AND(ISNUMBER(FIND(\"LED Instant Incentives\",$Y$4,1)),$BI$4>0),\"**\",\"\")","v":"Total Incentives"},null,null,null,null,null,null,null,null,null,null,null,null,null,null,null,null,null,null,null,null,null,null,null,null,null,null,null,null,null,null,null,null,null,null,null,null,null,null,null,null,null,null,null,null,null,null,null,null,null,null,null,null,null,null,null,null,null,null,null,null,null,null,null,null,null,null,null,{"$f":"IF(ProjectType=\"\",\"\",ProjectType)","v":""}]
[null,"S",null,null,{"$f":"IF(OR(OpSch_S=\"\",OpSch_S=0), \"unused operating schedule\",\"On Schedule = \"&'Customer Information'!I$25&\", Off Schedule = \"&'Customer Information'!$I$26&\", On for \"&'Customer Information'!$I$27&\" weeks/yr, \"&'Customer Information'!$I$28&\" holidays/yr closed\")","v":"unused operating schedule"},null,null,null,null,null,null,{"$f":"IF(OpSch_S=\"\",\"\",OpSch_S)","v":""},null,null,null,null,null,null,null,null,null,null,null,null,{"$f":"SPBIncentives_Total","v":0},null,null,null,null,null,"LPD Existing",null,null,null,null,null,{"$f":"IF(ProjectType=\"Retrofit\",IFERROR(SUMIFS(ProjectInfoTable[Space W (Existing, Stipulated)],ProjectInfoTable[Existing Equipment],\"*Interior*\",ProjectInfoTable[Fixture Measure],\"<>*Small Business*\")/SqFt_Total,0),IFERROR(SUMIFS(ProjectInfoTable[Space W (Existing, Stipulated)],ProjectInfoTable[Proposed Equipment],\"*Interior*\",ProjectInfoTable[Fixture Measure],\"<>*Small Business*\")/SqFt_Total,0))","v":0},null,null,null,null,null,null,{"$f":"IF(OR(ProjectType=\"New Construction\",ProjectType=\"Major Renovation\"),IF(AND(LPDCodeToProposed<0.1,LPDCalcMethod<>\"Exterior Only\"),0,SUM(BI3:BI4)),SUM(BI3:BI4))","v":0},null,null,null,null,null,null,null,null,null,null,null,null,null,null,null,null,null,null,null,null,null,null,null,null,null,null,null,null,null,null,null,null,null,null,null,null,null,null,null,null,null,null,null,null,null,null,null,null,null,null,null,null,null,null,null,null,null,null,null,null,null,null,null,null,null,null,null,{"$f":"IF(ProjectState=\"\",\"\",ProjectState)","v":"ID"}]
[null,"X",null,null,"Full time (24/7) operation, no holidays",null,null,null,null,null,null,8760,null,null,null,null,null,null,null,null,null,null,null,null,{"$f":"CostPerkWh_Total","v":0},{"$f":"IF(Y9=0,\"\",IF(Y9<0.35, \"Good  (<$0.35)\", \"Review Needed  (>$0.35)\"))","v":""},null,null,null,null,"LPD Proposed",null,null,null,null,null,{"$f":"IF(ProjectType=\"Retrofit\",IFERROR(SUMIFS(ProjectInfoTable[Space W (Proposed)],ProjectInfoTable[Existing Equipment],\"*Interior*\",ProjectInfoTable[Fixture Measure],\"<>*Small Business*\")/SqFt_Total,0),IFERROR(SUMIFS(ProjectInfoTable[Space W (Proposed)],ProjectInfoTable[Proposed Equipment],\"*Interior*\",ProjectInfoTable[Fixture Measure],\"<>*Small Business*\")/SqFt_Total,0))","v":0},null,null,null,null,null,null,null,null,null,null,null,null,null,null,null,null,null,null,null,null,null,null,null,null,null,null,null,null,null,null,null,null,null,null,null,null,null,null,null,null,null,null,null,null,null,null,null,null,null,null,null,null,null,null,null,null,null,null,null,null,null,null,null,null,null,null,null,null,null,null,null,null,null,null,{"$f":"IF(RateSchedule=\"\",\"\",RateSchedule)","v":""}]
[null,"Y",null,null,"Half time (12/7) operation, no holidays",null,null,null,null,null,null,4380,null,null,null,null,null,null,null,null,null,null,null,null,{"$f":"IncPerkWh_Total","v":0},{"$f":"IF(Y10=0,\"\",IF(Y10<0.42, \"Good  (<$0.42)\", \"Review Needed  (>$0.42)\"))","v":""},null,null,null,null,null,null,null,null,null,null,{"$f":"IFERROR((LPD_Code-LPD_Proposed)/LPD_Code,0)","v":0},null,null,null,null,null,null,{"$f":"IFERROR(IF(AND(RateSchedule<>\"\",ISERROR(MATCH(RateSchedule,INDIRECT(\"RateSchedules_\"&ProjectState&\"_Table[Rate Schedule]\"),0))),\"invalid rate schedule\",IF(IFERROR(error_fix_wattage=\"error\",FALSE),\"(Proposed equipment code error, check for typo)\",IF(OR(ProjectType=\"New Construction\",ProjectType=\"Major Renovation\"),IF(AND(LPDCodeToProposed<0.1,LPDCalcMethod<>\"Exterior Only\"),\"(Not 10% better than code)\",\"\"),IF(AND(SBDEligible=\"Yes\",Incentive_NonTypical<>0,IFERROR(BI4=0.9*BA4,FALSE)),\"(90% Cost Cap Applied for Small Business)\",IF(BA3=0,\"\",IF(BI3=0.7*BA3,\"(70% Cost Cap Applied for Typical)\",IF(BI3=1*BA3,\"(100% Cost Cap Applied for Typical)\",IF(BI3=MAX(BA3-BG3,0),\"(1 year SPB Cap Applied for Typical)\",\"\")))))))),\"unknown error, contact coordinator\")","v":""},null,null,null,null,null,null,null,null,null,null,null,null,null,null,null,null,null,null,null,null,null,null,null,null,null,null,null,null,null,null,null,null,null,null,null,null,null,null,null,null,null,null,null,null,null,null,null,null,null,null,null,null,null,null,null,null,null,null,null,null,null,null,null,null,null,null,null,{"$f":"IF(ProjectCost_Total=0,\"\",ProjectCost_Total)","v":""},null,null,null,null,null,null,null,null,null,"Change Tracking"]
[null,"Equipment Selection & Calculations",null,null,null,null,null,null,null,null,null,null,null,null,null,null,null,null,null,null,null,null,null,null,null,null,"select",null,null,{"$f":"IFERROR(IF(MATCH(1,\nSEARCH(\"LED\",ProjectInfoTable[Proposed Equipment])*\nSEARCH(CHAR(252),ProjectInfoTable[Measure Selection])*\nSEARCH(\" 0\", \" \"&ProjectInfoTable[Space W (Proposed)]&\" \"),0)<>0,\n\"error\",\"\"),\"\")","v":""},null,null,null,null,null,null,null,null,null,null,null,null,null,null,null,null,null,null,null,null,null,null,null,null,null,null,null,null,null,null,null,null,"|---------------------------------------Fixtures---------------------------------------|",null,null,null,null,null,null,null,null,null,null,null,null,null,"|-- Upstream Measure for Discounting --|",null,null,null,null,null,null,null,"|--------------------------------------Controls---------------------------------------|",null,null,null,null,null,null,null,null,null,null,null,null,null,null,null,null,null,null,null,null,null,null,null,null,null,null,{"$f":"IF(ProjectStage=\"\",\"\",ProjectStage)","v":"Preliminary (Pre-Install)"},"Inspected (Pre-Install)"]
[null,"Line","Fixture Category","OpSch","Space Description","Existing Equipment","Quantity (Existing)","Lamps (Existing)","Lamp W (Existing)","Fixture/Ballast Check for Formula","Fixture W (Existing, Actual)","Fixture W (Existing, Stipulated)","Space W (Existing, Actual)","Space W (Existing, Stipulated)","Fixture kWh (Existing, Actual)","Control kWh (Existing, Actual)","Space kWh (Existing, Actual)","Fixture kWh (Existing, Stipulated)","Control kWh (Existing, Stipulated)","Space kWh (Existing, Stipulated)","Total Energy Costs (Existing, Actual)","Total Energy Costs (Existing, Stipulated)","Fixture Category2","Equipment Category","Proposed Equipment","Quantity (Proposed)","Measure Selection","Lamps (Proposed)","Lamp W (Proposed)","Fixture W (Proposed)","Space W (Proposed)","Fixture kWh (Proposed)","Control kWh (Proposed)","Space kWh (Proposed)","Total Energy Costs (Proposed)","% Wattage Reduction (Actual)","% Wattage Reduction (Stipulated)","kW Demand Reduction (Actual)","kW Demand Reduction (Stipulated)","Fixture kWh/yr Savings (Actual)","Control kWh/yr Savings (Actual)","Fixture Measure kWh/yr Savings (Actual)","Control Measure kWh/yr Savings (Actual)","Total   kWh/yr Savings (Actual)","Fixture kWh/yr Savings (Stipulated)","Control kWh/yr Savings (Stipulated)","Fixture Measure kWh/yr Savings (Stipulated)","Control Measure kWh/yr Savings (Stipulated)","Total   kWh/yr Savings (Stipulated)","Measure Cost (Direct)","Fixture Cost (Allocated)","Control Cost (Allocated)","Total Cost (Allocated)","Fixture Energy Cost Savings (Actual)","Control Energy Cost Savings (Actual)","Total Energy Cost Savings (Actual)","Fixture Energy Cost Savings (Stipulated)","Control Energy Cost Savings (Stipulated)","Total Energy Cost Savings (Stipulated)","Incentives (pre-capping)","Total Incentives","Notes / Fixture Parts Number","Fixture Incentives (pre-capping)","Fixture Incentives","Fixture\nIncentive / Unit","Fixture Measure","Fixture Measure (Case Lighting)","Measure Name Sub","Fixture Measure Reference Number","Fixture Measure Version","Eligible Fixture Measure","Incentives Per Unit","Site-Specific Calculation","kWh Per Unit","kW Per Unit","Midstream Measure Name","kWh Per Unit (Midstream)","kW Per Unit (Midstream)","Cost Per Unit","Quantity","No. of TRL Units","TRL Unit","Quantity Unit","Cap Percent","Control Incentives (pre-capping)","Control Incentives","Control Incentive / Unit","Control Measure","Control Measure Name Sub","Control Measure Reference Number","Control Measure Version","Eligible Control Measure","Control Method","Control Incentives Per Unit","Control Site-Specific Calculation","Control kWh Per Unit","Control kW Per Unit","Control Cost Per Unit","Control Quantity","Control No. of TRL Units","Control Quantity Unit","Control TRL Unit","Control Cap Percent","Counter","TRL Unit Code","FixturesOnly","FixturesOnly_Qty","ControlsOnly","ControlsOnly_Qty",null,null,null,null,null,null,null,null,null,null,null,null,"Date/Time","Line","Project Stage","Field Name","Change Made"]
[null,{"$f":"ROW(ProjectInfoTable[[#This Row],[OpSch]])-ROW(ProjectInfoTable[[#Headers],[OpSch]])","v":1},{"$f":"IFERROR(INDEX(RetrofitBaselineEquipment_Table[categoryBaseline],MATCH(RIGHT(LEFT(ProjectInfoTable[[#This Row],[Existing Equipment]],FIND(\" (\",ProjectInfoTable[[#This Row],[Existing Equipment]],1)-1),LEN(LEFT(ProjectInfoTable[[#This Row],[Existing Equipment]],FIND(\" (\",ProjectInfoTable[[#This Row],[Existing Equipment]],1)-1))-FIND(\": \",ProjectInfoTable[[#This Row],[Existing Equipment]],1)-1),RetrofitBaselineEquipment_Table[equipmentBaseline],0)),\"\")","v":""},null,null,null,null,{"$f":"IF(ProjectInfoTable[[#This Row],[Existing Equipment]]=\"\",\"\",IF(ISNUMBER(FIND(\"LF\",ProjectInfoTable[[#This Row],[Existing Equipment]],1)),1,IFERROR(VALUE(SUBSTITUTE(RIGHT(LEFT(ProjectInfoTable[[#This Row],[Existing Equipment]],FIND(\"L\",ProjectInfoTable[[#This Row],[Existing Equipment]],FIND(\"[\",ProjectInfoTable[[#This Row],[Existing Equipment]],1))-1),3),\"[\",\"\")),1)))","v":""},{"$f":"IF(ProjectInfoTable[[#This Row],[Existing Equipment]]=\"\",\"\",VALUE(SUBSTITUTE(RIGHT(LEFT(RIGHT(ProjectInfoTable[[#This Row],[Existing Equipment]],LEN(ProjectInfoTable[[#This Row],[Existing Equipment]])-IFERROR(FIND(\"[\",ProjectInfoTable[[#This Row],[Existing Equipment]],1),0)),IFERROR(FIND(\"W\",RIGHT(ProjectInfoTable[[#This Row],[Existing Equipment]],LEN(ProjectInfoTable[[#This Row],[Existing Equipment]])-IFERROR(FIND(\"[\",ProjectInfoTable[[#This Row],[Existing Equipment]],1),0)),1),0)),LEN(LEFT(RIGHT(ProjectInfoTable[[#This Row],[Existing Equipment]],LEN(ProjectInfoTable[[#This Row],[Existing Equipment]])-IFERROR(FIND(\"[\",ProjectInfoTable[[#This Row],[Existing Equipment]],1),0)),IFERROR(FIND(\"W\",RIGHT(ProjectInfoTable[[#This Row],[Existing Equipment]],LEN(ProjectInfoTable[[#This Row],[Existing Equipment]])-IFERROR(FIND(\"[\",ProjectInfoTable[[#This Row],[Existing Equipment]],1),0)),1),0)))-IFERROR(FIND(\"-\",LEFT(RIGHT(ProjectInfoTable[[#This Row],[Existing Equipment]],LEN(ProjectInfoTable[[#This Row],[Existing Equipment]])-IFERROR(FIND(\"[\",ProjectInfoTable[[#This Row],[Existing Equipment]],1),0)),IFERROR(FIND(\"W\",RIGHT(ProjectInfoTable[[#This Row],[Existing Equipment]],LEN(ProjectInfoTable[[#This Row],[Existing Equipment]])-IFERROR(FIND(\"[\",ProjectInfoTable[[#This Row],[Existing Equipment]],1),0)),1),0)),1),0)),\"W\",\"\")))","v":""},{"$f":"IF(ProjectInfoTable[[#This Row],[Existing Equipment]]=\"\",\"\",IF(AND(RIGHT(LEFT(ProjectInfoTable[[#This Row],[Existing Equipment]],FIND(\"]\",ProjectInfoTable[[#This Row],[Existing Equipment]],1)-1),1)<>\"W\"),IFERROR(TRIM(IF(IFERROR(FIND(\"FLT\",ProjectInfoTable[[#This Row],[Existing Equipment]],1),0)>0,LEFT(RIGHT(LEFT(ProjectInfoTable[[#This Row],[Existing Equipment]],FIND(\" (\",ProjectInfoTable[[#This Row],[Existing Equipment]],1)),LEN(LEFT(ProjectInfoTable[[#This Row],[Existing Equipment]],FIND(\" (\",ProjectInfoTable[[#This Row],[Existing Equipment]],1)))-FIND(\":\",ProjectInfoTable[[#This Row],[Existing Equipment]],1)-1),FIND(\" \",RIGHT(LEFT(ProjectInfoTable[[#This Row],[Existing Equipment]],FIND(\" (\",ProjectInfoTable[[#This Row],[Existing Equipment]],1)),LEN(LEFT(ProjectInfoTable[[#This Row],[Existing Equipment]],FIND(\" (\",ProjectInfoTable[[#This Row],[Existing Equipment]],1)))-FIND(\":\",ProjectInfoTable[[#This Row],[Existing Equipment]],1)-1),1)-1),RIGHT(LEFT(ProjectInfoTable[[#This Row],[Existing Equipment]],FIND(\" (\",ProjectInfoTable[[#This Row],[Existing Equipment]],1)),LEN(LEFT(ProjectInfoTable[[#This Row],[Existing Equipment]],FIND(\" (\",ProjectInfoTable[[#This Row],[Existing Equipment]],1)))-FIND(\":\",ProjectInfoTable[[#This Row],[Existing Equipment]],1)-1))&\" - \"&RIGHT(LEFT(ProjectInfoTable[[#This Row],[Existing Equipment]],FIND(\"]\",ProjectInfoTable[[#This Row],[Existing Equipment]],1)-1),LEN(LEFT(ProjectInfoTable[[#This Row],[Existing Equipment]],FIND(\"]\",ProjectInfoTable[[#This Row],[Existing Equipment]],1)-1))-FIND(\"W \",ProjectInfoTable[[#This Row],[Existing Equipment]],1)-3)),\"\"),\"\"))","v":""},{"$f":"IF(ProjectInfoTable[[#This Row],[Existing Equipment]]=\"\",\"\",IF(ProjectInfoTable[[#This Row],[Fixture/Ballast Check for Formula]]=\"\",IF(ISNUMBER(FIND(\"LF\",ProjectInfoTable[[#This Row],[Existing Equipment]],FIND(\"[\",ProjectInfoTable[[#This Row],[Existing Equipment]],1))),ProjectInfoTable[[#This Row],[Lamp W (Existing)]],ProjectInfoTable[[#This Row],[Lamps (Existing)]]*ProjectInfoTable[[#This Row],[Lamp W (Existing)]]),IFERROR(ROUND( ProjectInfoTable[[#This Row],[Lamps (Existing)]]*ProjectInfoTable[[#This Row],[Lamp W (Existing)]]*INDEX(FixtureWattageFormula_Table[A],MATCH(ProjectInfoTable[[#This Row],[Fixture/Ballast Check for Formula]],FixtureWattageFormula_Table[Concatenate],0))+INDEX(FixtureWattageFormula_Table[B],MATCH(ProjectInfoTable[[#This Row],[Fixture/Ballast Check for Formula]],FixtureWattageFormula_Table[Concatenate],0)),0),ProjectInfoTable[[#This Row],[Lamps (Existing)]]*ProjectInfoTable[[#This Row],[Lamp W (Existing)]])))","v":""},{"$f":"IF(OR(ISNUMBER(FIND(\"T8 \",ProjectInfoTable[[#This Row],[Existing Equipment]],1)),ISNUMBER(FIND(\"T5 \",ProjectInfoTable[[#This Row],[Existing Equipment]],1)),ISNUMBER(FIND(\"T12 \",ProjectInfoTable[[#This Row],[Existing Equipment]],1)),ISNUMBER(FIND(\"T12HO - 8\",ProjectInfoTable[[#This Row],[Existing Equipment]],1)),ISNUMBER(FIND(\"Incand\",ProjectInfoTable[[#This Row],[Existing Equipment]],1))),IFERROR(ROUND(INDEX(StipulatedWattage_Table[Stipulated fixture wattage],MATCH(MID(ProjectInfoTable[[#This Row],[Existing Equipment]],FIND(\"[\",ProjectInfoTable[[#This Row],[Existing Equipment]],1),FIND(\"]\",ProjectInfoTable[[#This Row],[Existing Equipment]],1)-FIND(\"[\",ProjectInfoTable[[#This Row],[Existing Equipment]],1)+1),StipulatedWattage_Table[Fixture Code],0)),0),ProjectInfoTable[[#This Row],[Fixture W (Existing, Actual)]]),ProjectInfoTable[[#This Row],[Fixture W (Existing, Actual)]])","v":""},{"$f":"IF(ProjectType=\"Retrofit\",IF(ProjectInfoTable[[#This Row],[Existing Equipment]]=\"\",\"\",ProjectInfoTable[[#This Row],[Quantity (Existing)]]*ProjectInfoTable[[#This Row],[Fixture W (Existing, Actual)]]),IF(ISNUMBER(FIND(\"Interior\",ProjectInfoTable[[#This Row],[Proposed Equipment]],1)),IF(ISNUMBER(FIND(\"Controls Only\",ProjectInfoTable[[#This Row],[Proposed Equipment]])),ProjectInfoTable[[#This Row],[Space W (Proposed)]],(AllowedWattage-SUMIFS(ProjectInfoTable[Space W (Proposed)],ProjectInfoTable[Proposed Equipment],\"*Interior*\",ProjectInfoTable[Proposed Equipment],\"*Controls Only*\"))*ProjectInfoTable[[#This Row],[Space W (Proposed)]]/(SUMIFS(ProjectInfoTable[Space W (Proposed)],ProjectInfoTable[Proposed Equipment],\"*Interior*\")-SUMIFS(ProjectInfoTable[Space W (Proposed)],ProjectInfoTable[Proposed Equipment],\"*Interior*\",ProjectInfoTable[Proposed Equipment],\"*Controls Only*\"))),\"\"))","v":""},{"$f":"IF(ProjectType=\"Retrofit\",IF(ProjectInfoTable[[#This Row],[Existing Equipment]]=\"\",\"\",ProjectInfoTable[[#This Row],[Quantity (Existing)]]*ProjectInfoTable[[#This Row],[Fixture W (Existing, Stipulated)]]),ProjectInfoTable[[#This Row],[Space W (Existing, Actual)]])","v":""},{"$f":"IFERROR(INDEX(OperatingHours_List,MATCH(ProjectInfoTable[[#This Row],[OpSch]],OperatingSchedules_List,0))*ProjectInfoTable[[#This Row],[Space W (Existing, Actual)]]/1000,\"\")","v":""},{"$f":"IFERROR(INDEX(OperatingHours_List,MATCH(ProjectInfoTable[[#This Row],[OpSch]],OperatingSchedules_List,0))*ProjectInfoTable[[#This Row],[Space W (Existing, Actual)]]/1000*(IFERROR(INDEX(ControlsLookup[],MATCH(RIGHT(ProjectInfoTable[[#This Row],[Existing Equipment]],LEN(ProjectInfoTable[[#This Row],[Existing Equipment]])-FIND(\"]\",ProjectInfoTable[[#This Row],[Existing Equipment]],1)-3),ControlsLookup[Controls],0),MATCH(\"CSF_\"&ProjectState,ControlsLookup[#Headers],0)),0))*-1,\"\")","v":""},{"$f":"IF(OR(ProjectInfoTable[[#This Row],[Fixture kWh (Existing, Actual)]]=\"\",ProjectInfoTable[[#This Row],[Control kWh (Existing, Actual)]]=\"\"),\"\",ProjectInfoTable[[#This Row],[Fixture kWh (Existing, Actual)]]+ProjectInfoTable[[#This Row],[Control kWh (Existing, Actual)]])","v":""},{"$f":"IFERROR(INDEX(OperatingHours_List,MATCH(ProjectInfoTable[[#This Row],[OpSch]],OperatingSchedules_List,0))*ProjectInfoTable[[#This Row],[Space W (Existing, Stipulated)]]/1000,\"\")","v":""},{"$f":"IFERROR(INDEX(OperatingHours_List,MATCH(ProjectInfoTable[[#This Row],[OpSch]],OperatingSchedules_List,0))*ProjectInfoTable[[#This Row],[Space W (Existing, Stipulated)]]/1000*(IFERROR(INDEX(ControlsLookup[],MATCH(RIGHT(ProjectInfoTable[[#This Row],[Existing Equipment]],LEN(ProjectInfoTable[[#This Row],[Existing Equipment]])-FIND(\"]\",ProjectInfoTable[[#This Row],[Existing Equipment]],1)-3),ControlsLookup[Controls],0),MATCH(\"CSF_\"&ProjectState,ControlsLookup[#Headers],0)),0))*-1,\"\")","v":""},{"$f":"IF(OR(ProjectInfoTable[[#This Row],[Fixture kWh (Existing, Stipulated)]]=\"\",ProjectInfoTable[[#This Row],[Control kWh (Existing, Stipulated)]]=\"\"),\"\",ProjectInfoTable[[#This Row],[Fixture kWh (Existing, Stipulated)]]+ProjectInfoTable[[#This Row],[Control kWh (Existing, Stipulated)]])","v":""},{"$f":"IF(\n AND(\n  OR(ProjectInfoTable[[#This Row],[Existing Equipment]]=\"\",ProjectInfoTable[[#This Row],[Quantity (Existing)]]=\"\"),\n  ProjectType=\"Retrofit\"\n ),\n \"\",\n IF(\n  ISNUMBER(FIND(\"Street:\",ProjectInfoTable[[#This Row],[Existing Equipment]],1)),\n  IF(\n   OR(\n    AND(ProjectState=\"UT\",RateSchedule=12),\n    AND(ProjectState=\"ID\",RateSchedule=12),\n    AND(ProjectState=\"WY\",RateSchedule=58)\n   ),\n   IFERROR(\n    INDEX(\n     StreetLightingRates_Table[],\n     MATCH(MID(ProjectInfoTable[[#This Row],[Existing Equipment]],FIND(\": \",ProjectInfoTable[[#This Row],[Existing Equipment]],1)+2,FIND(\" (\",ProjectInfoTable[[#This Row],[Existing Equipment]],1)-FIND(\": \",ProjectInfoTable[[#This Row],[Existing Equipment]],1)-2)&ProjectInfoTable[[#This Row],[Lamp W (Existing)]],StreetLightingRates_Table[TechWattage],0),\n     MATCH(ProjectState&RateSchedule,StreetLightingRates_Table[#Headers],0)\n    )\n    *\n    ProjectInfoTable[[#This Row],[Quantity (Existing)]]\n    *\n    ProjectInfoTable[[#This Row],[Lamps (Existing)]]\n    *\n    12,\n    ProjectInfoTable[[#This Row],[Space kWh (Existing, Actual)]]\n    *\n    INDEX(INDIRECT(\"RateSchedules_\"&ProjectState&\"_Table[kWh Rate]\"),MATCH(RateSchedule,INDIRECT(\"RateSchedules_\"&ProjectState&\"_Table[Rate Schedule]\"),0))\n   ),\n   IFERROR(\n    ProjectInfoTable[[#This Row],[Space kWh (Existing, Actual)]]*\n    INDEX(INDIRECT(\"RateSchedules_\"&ProjectState&\"_Table[kWh Rate]\"),MATCH(RateSchedule,INDIRECT(\"RateSchedules_\"&ProjectState&\"_Table[Rate Schedule]\"),0)),0)\n   +\n   IFERROR(IF(ISNUMBER(FIND(\"Interior:\",ProjectInfoTable[[#This Row],[Existing Equipment]],1)),\n    ProjectInfoTable[[#This Row],[Space W (Existing, Actual)]]/1000*12*DDF*\n    INDEX(INDIRECT(\"RateSchedules_\"&ProjectState&\"_Table[kW Rate]\"),MATCH(RateSchedule,INDIRECT(\"RateSchedules_\"&ProjectState&\"_Table[Rate Schedule]\"),0)),0),0)\n  ),\n  IFERROR(\n   ProjectInfoTable[[#This Row],[Space kWh (Existing, Actual)]]*\n   INDEX(INDIRECT(\"RateSchedules_\"&ProjectState&\"_Table[kWh Rate]\"),MATCH(RateSchedule,INDIRECT(\"RateSchedules_\"&ProjectState&\"_Table[Rate Schedule]\"),0)),\n   0\n  )\n  +\n  IFERROR(IF(OR(ISNUMBER(FIND(\"Interior:\",ProjectInfoTable[[#This Row],[Existing Equipment]],1)),AND(ProjectType<>\"Retrofit\",ISNUMBER(FIND(\"Interior:\",ProjectInfoTable[[#This Row],[Proposed Equipment]],1)))),\n   ProjectInfoTable[[#This Row],[Space W (Existing, Actual)]]/1000*12*DDF*\n   INDEX(INDIRECT(\"RateSchedules_\"&ProjectState&\"_Table[kW Rate]\"),MATCH(RateSchedule,INDIRECT(\"RateSchedules_\"&ProjectState&\"_Table[Rate Schedule]\"),0)),0),\n   0\n  )\n )\n)","v":0},{"$f":"IF(\n AND(\n  OR(ProjectInfoTable[[#This Row],[Existing Equipment]]=\"\",ProjectInfoTable[[#This Row],[Quantity (Existing)]]=\"\"),\n  ProjectType=\"Retrofit\"\n ),\n \"\",\n IF(\n  ISNUMBER(FIND(\"Street:\",ProjectInfoTable[[#This Row],[Existing Equipment]],1)),\n  IF(\n   OR(\n    AND(ProjectState=\"UT\",RateSchedule=12),\n    AND(ProjectState=\"ID\",RateSchedule=12),\n    AND(ProjectState=\"WY\",RateSchedule=58)\n   ),\n   IFERROR(\n    INDEX(\n     StreetLightingRates_Table[],\n     MATCH(MID(ProjectInfoTable[[#This Row],[Existing Equipment]],FIND(\": \",ProjectInfoTable[[#This Row],[Existing Equipment]],1)+2,FIND(\" (\",ProjectInfoTable[[#This Row],[Existing Equipment]],1)-FIND(\": \",ProjectInfoTable[[#This Row],[Existing Equipment]],1)-2)&ProjectInfoTable[[#This Row],[Lamp W (Existing)]],StreetLightingRates_Table[TechWattage],0),\n     MATCH(ProjectState&RateSchedule,StreetLightingRates_Table[#Headers],0)\n    )\n    *\n    ProjectInfoTable[[#This Row],[Quantity (Existing)]]\n    *\n    ProjectInfoTable[[#This Row],[Lamps (Existing)]]\n    *\n    12,\n    ProjectInfoTable[[#This Row],[Space kWh (Existing, Stipulated)]]\n    *\n    INDEX(INDIRECT(\"RateSchedules_\"&ProjectState&\"_Table[kWh Rate]\"),MATCH(RateSchedule,INDIRECT(\"RateSchedules_\"&ProjectState&\"_Table[Rate Schedule]\"),0))\n   ),\n   IFERROR(\n    ProjectInfoTable[[#This Row],[Space kWh (Existing, Stipulated)]]*\n    INDEX(INDIRECT(\"RateSchedules_\"&ProjectState&\"_Table[kWh Rate]\"),MATCH(RateSchedule,INDIRECT(\"RateSchedules_\"&ProjectState&\"_Table[Rate Schedule]\"),0)),0)\n   +\n   IFERROR(IF(ISNUMBER(FIND(\"Interior:\",ProjectInfoTable[[#This Row],[Existing Equipment]],1)),\n    ProjectInfoTable[[#This Row],[Space W (Existing, Stipulated)]]/1000*12*DDF*\n    INDEX(INDIRECT(\"RateSchedules_\"&ProjectState&\"_Table[kW Rate]\"),MATCH(RateSchedule,INDIRECT(\"RateSchedules_\"&ProjectState&\"_Table[Rate Schedule]\"),0)),0),0)\n  ),\n  IFERROR(\n   ProjectInfoTable[[#This Row],[Space kWh (Existing, Stipulated)]]*\n   INDEX(INDIRECT(\"RateSchedules_\"&ProjectState&\"_Table[kWh Rate]\"),MATCH(RateSchedule,INDIRECT(\"RateSchedules_\"&ProjectState&\"_Table[Rate Schedule]\"),0)),\n   0\n  )\n  +\n  IFERROR(IF(OR(ISNUMBER(FIND(\"Interior:\",ProjectInfoTable[[#This Row],[Existing Equipment]],1)),AND(ProjectType<>\"Retrofit\",ISNUMBER(FIND(\"Interior:\",ProjectInfoTable[[#This Row],[Proposed Equipment]],1)))),\n   ProjectInfoTable[[#This Row],[Space W (Existing, Stipulated)]]/1000*12*DDF*\n   INDEX(INDIRECT(\"RateSchedules_\"&ProjectState&\"_Table[kW Rate]\"),MATCH(RateSchedule,INDIRECT(\"RateSchedules_\"&ProjectState&\"_Table[Rate Schedule]\"),0)),0),\n   0\n  )\n )\n)","v":0},{"$f":"IF(ProjectType=\"Retrofit\",IFERROR(INDEX(RetrofitBaselineEquipment_Table[categoryBaseline],MATCH(RIGHT(LEFT(ProjectInfoTable[[#This Row],[Proposed Equipment]],FIND(\" (\",ProjectInfoTable[[#This Row],[Proposed Equipment]],1)-1),LEN(LEFT(ProjectInfoTable[[#This Row],[Proposed Equipment]],FIND(\" (\",ProjectInfoTable[[#This Row],[Proposed Equipment]],1)-1))-FIND(\": \",ProjectInfoTable[[#This Row],[Proposed Equipment]],1)-1),RetrofitBaselineEquipment_Table[equipmentBaseline],0)),\"\"),IFERROR(INDEX(#REF!,MATCH(RIGHT(LEFT(ProjectInfoTable[[#This Row],[Proposed Equipment]],FIND(\" (\",ProjectInfoTable[[#This Row],[Proposed Equipment]],1)-1),LEN(LEFT(ProjectInfoTable[[#This Row],[Proposed Equipment]],FIND(\" (\",ProjectInfoTable[[#This Row],[Proposed Equipment]],1)-1))-FIND(\": \",ProjectInfoTable[[#This Row],[Proposed Equipment]],1)-1),#REF!,0)),\"\"))","v":""},{"$f":"IF(ProjectInfoTable[[#This Row],[Proposed Equipment]]=\"\",\"\",IF(ISNUMBER(SEARCH(\"Controls Only\",ProjectInfoTable[[#This Row],[Proposed Equipment]])),\"Controls Only\",IF(ProjectType=\"Retrofit\",_xlfn.LET(_xlpm.k,LEFT(ProjectInfoTable[[#This Row],[Proposed Equipment]],FIND(\"[\",ProjectInfoTable[[#This Row],[Proposed Equipment]])-2),_xlpm.ep,_xlfn.SWITCH(ProjectState,\"UT\",EquipmentTable_Retrofit_UT[equipmentProposed],\"WY\",EquipmentTable_Retrofit_WY[equipmentProposed],\"ID\",EquipmentTable_Retrofit_ID[equipmentProposed]),_xlpm.cp,_xlfn.SWITCH(ProjectState,\"UT\",EquipmentTable_Retrofit_UT[categoryProposed],\"WY\",EquipmentTable_Retrofit_WY[categoryProposed],\"ID\",EquipmentTable_Retrofit_ID[categoryProposed]),_xlfn.XLOOKUP(_xlpm.k,_xlpm.ep,_xlpm.cp,\"Non-eligible fixture - Retrofit - \"&ProjectState)),_xlfn.LET(_xlpm.k,MID(ProjectInfoTable[[#This Row],[Proposed Equipment]],FIND(\": \",ProjectInfoTable[[#This Row],[Proposed Equipment]])+2,FIND(\" (\",ProjectInfoTable[[#This Row],[Proposed Equipment]])-(FIND(\": \",ProjectInfoTable[[#This Row],[Proposed Equipment]])+2)),_xlpm.ep,_xlfn.SWITCH(ProjectState,\"UT\",EquipmentTable_NCMR_UT[equipmentProposed],\"WY\",EquipmentTable_NCMR_WY[equipmentProposed],\"ID\",EquipmentTable_NCMR_ID[equipmentProposed]),_xlpm.cp,_xlfn.SWITCH(ProjectState,\"UT\",EquipmentTable_NCMR_UT[categoryProposed],\"WY\",EquipmentTable_NCMR_WY[categoryProposed],\"ID\",EquipmentTable_NCMR_ID[categoryProposed]),_xlfn.XLOOKUP(_xlpm.k,_xlpm.ep,_xlpm.cp,\"Non-eligible fixture - NCMR - \"&ProjectState)))))","v":""},null,null,"ü",{"$f":"IF(ProjectInfoTable[[#This Row],[Proposed Equipment]]=\"\",\"\",IF(ProjectInfoTable[[#This Row],[Measure Selection]]=\"\",0,IF(ISNUMBER(FIND(\"LF\",ProjectInfoTable[[#This Row],[Proposed Equipment]],1)),1,IFERROR(VALUE(SUBSTITUTE(RIGHT(LEFT(ProjectInfoTable[[#This Row],[Proposed Equipment]],FIND(\"L\",ProjectInfoTable[[#This Row],[Proposed Equipment]],FIND(\"[\",ProjectInfoTable[[#This Row],[Proposed Equipment]],1))-1),2),\"[\",\"\")),IFERROR(LEFT(RIGHT(ProjectInfoTable[[#This Row],[Proposed Equipment]],LEN(ProjectInfoTable[[#This Row],[Proposed Equipment]])-FIND(\"-lamp\",ProjectInfoTable[[#This Row],[Proposed Equipment]],1)+2),1),1)))))","v":""},{"$f":"IF(ProjectInfoTable[[#This Row],[Proposed Equipment]]=\"\",\"\",IF(ProjectInfoTable[[#This Row],[Measure Selection]]=\"\",0,IFERROR(\n\nIF(ISNUMBER(FIND(\"W]\",ProjectInfoTable[[#This Row],[Proposed Equipment]])),\nRIGHT(MID(ProjectInfoTable[[#This Row],[Proposed Equipment]],FIND(\"W]\",ProjectInfoTable[[#This Row],[Proposed Equipment]],FIND(\"[\",ProjectInfoTable[[#This Row],[Proposed Equipment]]))-7,7),\nLEN(MID(ProjectInfoTable[[#This Row],[Proposed Equipment]],FIND(\"W]\",ProjectInfoTable[[#This Row],[Proposed Equipment]],FIND(\"[\",ProjectInfoTable[[#This Row],[Proposed Equipment]]))-7,7)) -\nIFERROR(FIND(\" - \",MID(ProjectInfoTable[[#This Row],[Proposed Equipment]],FIND(\"W]\",ProjectInfoTable[[#This Row],[Proposed Equipment]],FIND(\"[\",ProjectInfoTable[[#This Row],[Proposed Equipment]]))-7,7))+2,\nFIND(\"[\",MID(ProjectInfoTable[[#This Row],[Proposed Equipment]],FIND(\"W]\",ProjectInfoTable[[#This Row],[Proposed Equipment]],FIND(\"[\",ProjectInfoTable[[#This Row],[Proposed Equipment]]))-7,7)))),\n\nIF(ISNUMBER(FIND(\"[\",MID(ProjectInfoTable[[#This Row],[Proposed Equipment]],FIND(\"W \",ProjectInfoTable[[#This Row],[Proposed Equipment]],FIND(\"[\",ProjectInfoTable[[#This Row],[Proposed Equipment]]))-7,7))),\nRIGHT(MID(ProjectInfoTable[[#This Row],[Proposed Equipment]],FIND(\"W \",ProjectInfoTable[[#This Row],[Proposed Equipment]],FIND(\"[\",ProjectInfoTable[[#This Row],[Proposed Equipment]]))-7,7),\nLEN(MID(ProjectInfoTable[[#This Row],[Proposed Equipment]],FIND(\"W \",ProjectInfoTable[[#This Row],[Proposed Equipment]],FIND(\"[\",ProjectInfoTable[[#This Row],[Proposed Equipment]]))-7,7)) -\nIFERROR(FIND(\" - \",MID(ProjectInfoTable[[#This Row],[Proposed Equipment]],FIND(\"W \",ProjectInfoTable[[#This Row],[Proposed Equipment]],FIND(\"[\",ProjectInfoTable[[#This Row],[Proposed Equipment]]))-7,7))+2,\nFIND(\"[\",MID(ProjectInfoTable[[#This Row],[Proposed Equipment]],FIND(\"W \",ProjectInfoTable[[#This Row],[Proposed Equipment]],FIND(\"[\",ProjectInfoTable[[#This Row],[Proposed Equipment]]))-7,7)))),\n\nRIGHT(MID(ProjectInfoTable[[#This Row],[Proposed Equipment]],FIND(\"W \",ProjectInfoTable[[#This Row],[Proposed Equipment]],FIND(\"[\",ProjectInfoTable[[#This Row],[Proposed Equipment]]))-7,7),\nLEN(MID(ProjectInfoTable[[#This Row],[Proposed Equipment]],FIND(\"W \",ProjectInfoTable[[#This Row],[Proposed Equipment]],FIND(\"[\",ProjectInfoTable[[#This Row],[Proposed Equipment]]))-7,7)) -\nFIND(\" - \",MID(ProjectInfoTable[[#This Row],[Proposed Equipment]],FIND(\"W \",ProjectInfoTable[[#This Row],[Proposed Equipment]],FIND(\"[\",ProjectInfoTable[[#This Row],[Proposed Equipment]]))-7,7))-2\n))),0)))","v":""},{"$f":"IF(ProjectInfoTable[[#This Row],[Proposed Equipment]]=\"\",\"\",IFERROR(ProjectInfoTable[[#This Row],[Lamps (Proposed)]]*ProjectInfoTable[[#This Row],[Lamp W (Proposed)]],\"\"))","v":""},{"$f":"IF(ProjectInfoTable[[#This Row],[Proposed Equipment]]=\"\",\"\",IFERROR(ProjectInfoTable[[#This Row],[Quantity (Proposed)]]*ProjectInfoTable[[#This Row],[Fixture W (Proposed)]],\"\"))","v":""},{"$f":"IFERROR(INDEX(OperatingHours_List,MATCH(ProjectInfoTable[[#This Row],[OpSch]],OperatingSchedules_List,0))*ProjectInfoTable[[#This Row],[Space W (Proposed)]]/1000,\"\")","v":""},{"$f":"IF(OR(ISNUMBER(FIND(\"Controls Only\",ProjectInfoTable[[#This Row],[Proposed Equipment]],1)),ProjectInfoTable[[#This Row],[ControlsOnly]]=\"Re-Commissioning\"),\"Controls Only\",IFERROR(INDEX(OperatingHours_List,MATCH(ProjectInfoTable[[#This Row],[OpSch]],OperatingSchedules_List,0))*ProjectInfoTable[[#This Row],[Space W (Proposed)]]/1000*(IFERROR(INDEX(ControlsLookup[],MATCH(SUBSTITUTE(RIGHT(ProjectInfoTable[[#This Row],[Proposed Equipment]],LEN(ProjectInfoTable[[#This Row],[Proposed Equipment]])-FIND(\"]\",ProjectInfoTable[[#This Row],[Proposed Equipment]],1)-3),\" reused\",\"\"),ControlsLookup[Controls],0),MATCH(\"CSF_\"&ProjectState,ControlsLookup[#Headers],0)),0))*-1,\"\"))","v":""},{"$f":"IF(OR(ProjectInfoTable[[#This Row],[Fixture kWh (Proposed)]]=\"\",ProjectInfoTable[[#This Row],[Control kWh (Proposed)]]=\"\"),\"\",IFERROR(ProjectInfoTable[[#This Row],[Fixture kWh (Proposed)]]+ProjectInfoTable[[#This Row],[Control kWh (Proposed)]],0))","v":""},{"$f":"IF(\n OR(\n  ProjectInfoTable[[#This Row],[Proposed Equipment]]=\"\",\n  ProjectInfoTable[[#This Row],[Quantity (Proposed)]]=\"\"\n ),\n \"\",\n IF(\n  AND(\n   OR(\n    AND(\n     ProjectState=\"UT\",\n     RateSchedule=12\n    ),\n    AND(\n     ProjectState=\"ID\",\n     RateSchedule=12\n    ),\n    AND(\n     ProjectState=\"WY\",\n     RateSchedule=58\n    )\n   ),\n   ISNUMBER(FIND(\"Street:\",ProjectInfoTable[[#This Row],[Existing Equipment]],1))\n  ),\n  IF(\n   AND(\n    RateSchedule=53,\n    ISNUMBER(FIND(\"LED\",ProjectInfoTable[[#This Row],[Proposed Equipment]],1))\n   ),\n   ProjectInfoTable[[#This Row],[Fixture kWh (Proposed)]]\n   *\n   INDEX(\n    INDIRECT(\"RateSchedules_\"&ProjectState&\"_Table[kWh Rate]\"),\n    MATCH(RateSchedule,INDIRECT(\"RateSchedules_\"&ProjectState&\"_Table[Rate Schedule]\"),0)\n   ),\n   IFERROR(INDEX(\n    StreetLightingRates_Table[],\n    MATCH(\"LED\"&IF(AND(ProjectInfoTable[[#This Row],[Fixture W (Proposed)]]>0,ProjectInfoTable[[#This Row],[Fixture W (Proposed)]]<=70),70,IF(AND(ProjectInfoTable[[#This Row],[Fixture W (Proposed)]]>70,ProjectInfoTable[[#This Row],[Fixture W (Proposed)]]<=100),100,IF(AND(ProjectInfoTable[[#This Row],[Fixture W (Proposed)]]>100,ProjectInfoTable[[#This Row],[Fixture W (Proposed)]]<=150),150,IF(AND(ProjectInfoTable[[#This Row],[Fixture W (Proposed)]]>150,ProjectInfoTable[[#This Row],[Fixture W (Proposed)]]<=200),200,IF(AND(ProjectInfoTable[[#This Row],[Fixture W (Proposed)]]>200,ProjectInfoTable[[#This Row],[Fixture W (Proposed)]]<=250),250,IF(AND(ProjectInfoTable[[#This Row],[Fixture W (Proposed)]]>250,ProjectInfoTable[[#This Row],[Fixture W (Proposed)]]<=400),400,\"\")))))),StreetLightingRates_Table[TechWattage],0),\n    MATCH(ProjectState&RateSchedule,StreetLightingRates_Table[#Headers],0)\n   )\n   *ProjectInfoTable[[#This Row],[Lamps (Proposed)]]*ProjectInfoTable[[#This Row],[Quantity (Proposed)]]*12,\n  ProjectInfoTable[[#This Row],[Space kWh (Proposed)]]*INDEX(INDIRECT(\"RateSchedules_\"&ProjectState&\"_Table[kWh Rate]\"),MATCH(RateSchedule,INDIRECT(\"RateSchedules_\"&ProjectState&\"_Table[Rate Schedule]\"),0)))),\n  IFERROR(ProjectInfoTable[[#This Row],[Space kWh (Proposed)]]*INDEX(INDIRECT(\"RateSchedules_\"&ProjectState&\"_Table[kWh Rate]\"),MATCH(RateSchedule,INDIRECT(\"RateSchedules_\"&ProjectState&\"_Table[Rate Schedule]\"),0)),0)\n  +\n  IF(OR(ISNUMBER(FIND(\"Exterior:\",ProjectInfoTable[[#This Row],[Existing Equipment]],1)),ISNUMBER(FIND(\"Street:\",ProjectInfoTable[[#This Row],[Existing Equipment]],1))),0,IFERROR(ProjectInfoTable[[#This Row],[Space W (Proposed)]]/1000*12*DDF*INDEX(INDIRECT(\"RateSchedules_\"&ProjectState&\"_Table[kW Rate]\"),MATCH(RateSchedule,INDIRECT(\"RateSchedules_\"&ProjectState&\"_Table[Rate Schedule]\"),0)),0))\n )\n)","v":""},{"$f":"IF(ProjectInfoTable[[#This Row],[Measure Selection]]=\"\",0,IF(ProjectType=\"Retrofit\",IFERROR((ProjectInfoTable[[#This Row],[Space W (Existing, Actual)]]-ProjectInfoTable[[#This Row],[Space W (Proposed)]])/ProjectInfoTable[[#This Row],[Space W (Existing, Actual)]],\"\"),IF(AND(ProjectInfoTable[[#This Row],[Proposed Equipment]]=\"\",ProjectInfoTable[[#This Row],[Quantity (Proposed)]]=\"\"),\"\",IFERROR((ProjectInfoTable[[#This Row],[Space W (Existing, Stipulated)]]-ProjectInfoTable[[#This Row],[Space W (Proposed)]])/ProjectInfoTable[[#This Row],[Space W (Existing, Stipulated)]],\"n/a\"))))","v":""},{"$f":"IF(ProjectInfoTable[[#This Row],[Measure Selection]]=\"\",0,IF(ProjectType=\"Retrofit\",IFERROR((ProjectInfoTable[[#This Row],[Space W (Existing, Stipulated)]]-ProjectInfoTable[[#This Row],[Space W (Proposed)]])/ProjectInfoTable[[#This Row],[Space W (Existing, Stipulated)]],\"\"),ProjectInfoTable[[#This Row],[% Wattage Reduction (Actual)]]))","v":""},{"$f":"IFERROR(IF(OR(ProjectInfoTable[[#This Row],[Measure Selection]]=\"\",ProjectInfoTable[[#This Row],[ControlsOnly]]=\"Re-Commissioning\"),0,IF(AND(ProjectType=\"Retrofit\",LEFT(ProjectInfoTable[[#This Row],[Existing Equipment]],FIND(\": \",ProjectInfoTable[[#This Row],[Existing Equipment]],1)-1)<>\"Interior\"),0,((ProjectInfoTable[[#This Row],[Space W (Existing, Actual)]]-ProjectInfoTable[[#This Row],[Space W (Proposed)]])/1000*DDF)-IF(ProjectInfoTable[[#This Row],[Midstream Measure Name]]<>\"\",IFERROR(ProjectInfoTable[[#This Row],[kW Per Unit (Midstream)]]*ProjectInfoTable[[#This Row],[Quantity]]*ProjectInfoTable[[#This Row],[No. of TRL Units]],0),0))),\"\")","v":""},{"$f":"IFERROR(IF(OR(ProjectInfoTable[[#This Row],[Measure Selection]]=\"\",ProjectInfoTable[[#This Row],[ControlsOnly]]=\"Re-Commissioning\"),0,IF(AND(ISNUMBER(VALUE(ProjectInfoTable[[#This Row],[kW Per Unit]])),ProjectInfoTable[[#This Row],[kW Per Unit]]<>0),ROUND(ProjectInfoTable[[#This Row],[kW Per Unit]]*ProjectInfoTable[[#This Row],[Quantity]]*ProjectInfoTable[[#This Row],[No. of TRL Units]],2),IF(OR(AND(ProjectType=\"Retrofit\",LEFT(ProjectInfoTable[[#This Row],[Existing Equipment]],FIND(\": \",ProjectInfoTable[[#This Row],[Existing Equipment]],1)-1)<>\"Interior\"),AND(ProjectInfoTable[[#This Row],[Incentives Per Unit]]=0,INDEX(StipulatedSavingsYesNo_Table[Stipulated Savings?],MATCH(ProjectState,StipulatedSavingsYesNo_Table[State],0))=\"No\")),0,IF(ISNUMBER(FIND(\"Controls Only\",ProjectInfoTable[[#This Row],[Proposed Equipment]],1)),0,ROUND(((ProjectInfoTable[[#This Row],[Space W (Existing, Stipulated)]]-ProjectInfoTable[[#This Row],[Space W (Proposed)]])/1000*DDF)-IF(ProjectInfoTable[[#This Row],[Midstream Measure Name]]<>\"\",IFERROR(ProjectInfoTable[[#This Row],[kW Per Unit (Midstream)]]*ProjectInfoTable[[#This Row],[Quantity]]*ProjectInfoTable[[#This Row],[No. of TRL Units]],0),0),2))))),\"\")","v":""},{"$f":"IFERROR(IF(OR(ProjectInfoTable[[#This Row],[Control kWh (Proposed)]]=\"Controls Only\",ProjectInfoTable[[#This Row],[Measure Selection]]=\"\"),0,ROUND((ProjectInfoTable[[#This Row],[Fixture kWh (Existing, Actual)]]-ProjectInfoTable[[#This Row],[Fixture kWh (Proposed)]])*IF(VALUE(SpaceTypesInfo_Table[[#Totals],[HVAC Effects]])=0,1,1+VALUE(SpaceTypesInfo_Table[[#Totals],[HVAC Effects]])),0)),\"\")","v":""},{"$f":"IFERROR(IF(ProjectInfoTable[[#This Row],[Control kWh (Proposed)]]=\"Controls Only\",ROUND(IFERROR(INDEX(OperatingHours_List,MATCH(ProjectInfoTable[[#This Row],[OpSch]],OperatingSchedules_List,0))*IF(OR(ProjectType <> \"Retrofit\",ProjectInfoTable[[#This Row],[Space W (Proposed)]]>0),ProjectInfoTable[[#This Row],[Space W (Proposed)]],ProjectInfoTable[[#This Row],[Space W (Existing, Actual)]])/1000*(IFERROR(INDEX(ControlsLookup[],MATCH(RIGHT(ProjectInfoTable[[#This Row],[Proposed Equipment]],LEN(ProjectInfoTable[[#This Row],[Proposed Equipment]])-FIND(\"]\",ProjectInfoTable[[#This Row],[Proposed Equipment]],1)-3),ControlsLookup[Controls],0),MATCH(\"CSF_\"&ProjectState,ControlsLookup[#Headers],0)),0))*IF(VALUE(SpaceTypesInfo_Table[[#Totals],[HVAC Effects]])=0,1,1+VALUE(SpaceTypesInfo_Table[[#Totals],[HVAC Effects]])),\"\"),0),ROUND(IFERROR((ProjectInfoTable[[#This Row],[Control kWh (Existing, Actual)]]-ProjectInfoTable[[#This Row],[Control kWh (Proposed)]])*IF(VALUE(SpaceTypesInfo_Table[[#Totals],[HVAC Effects]])=0,1,1+VALUE(SpaceTypesInfo_Table[[#Totals],[HVAC Effects]])),\"\"),0)),\"\")","v":""},{"$f":"IF(OR(ProjectInfoTable[[#This Row],[Proposed Equipment]]=\"\",ProjectInfoTable[[#This Row],[Quantity (Proposed)]]=\"\"),\"\",IF(ProjectInfoTable[[#This Row],[Fixture Measure]]=\"\",0,IF(AND(ProjectInfoTable[[#This Row],[Incentives Per Unit]]=0,INDEX(StipulatedSavingsYesNo_Table[Stipulated Savings?],MATCH(ProjectState,StipulatedSavingsYesNo_Table[State],0))=\"No\"),0,ProjectInfoTable[[#This Row],[Total   kWh/yr Savings (Actual)]]-ProjectInfoTable[[#This Row],[Control Measure kWh/yr Savings (Actual)]])))","v":""},{"$f":"IF(OR(ProjectInfoTable[[#This Row],[Proposed Equipment]]=\"\",ProjectInfoTable[[#This Row],[Quantity (Proposed)]]=\"\"),\"\",IF(ProjectInfoTable[[#This Row],[Control Measure]]=\"\",0,ProjectInfoTable[[#This Row],[Control kWh/yr Savings (Actual)]]))","v":""},{"$f":"IF(AND(ProjectInfoTable[[#This Row],[Incentives Per Unit]]=0,INDEX(StipulatedSavingsYesNo_Table[Stipulated Savings?],MATCH(ProjectState,StipulatedSavingsYesNo_Table[State],0))=\"No\"),ProjectInfoTable[[#This Row],[Fixture kWh/yr Savings (Actual)]]+IF(ProjectInfoTable[[#This Row],[Control Measure kWh/yr Savings (Actual)]]=0,0,ProjectInfoTable[[#This Row],[Control kWh/yr Savings (Actual)]]),IF(AND(ProjectInfoTable[[#This Row],[Fixture kWh/yr Savings (Actual)]]=\"\",ProjectInfoTable[[#This Row],[Control kWh/yr Savings (Actual)]]=\"\"),\"\",ROUND(IF(ProjectInfoTable[[#This Row],[Fixture kWh/yr Savings (Actual)]]=\"\",0,ProjectInfoTable[[#This Row],[Fixture kWh/yr Savings (Actual)]])+IF(ProjectInfoTable[[#This Row],[Control kWh/yr Savings (Actual)]]=\"\",0,ProjectInfoTable[[#This Row],[Control kWh/yr Savings (Actual)]])-IF(ProjectInfoTable[[#This Row],[Midstream Measure Name]]<>\"\",IFERROR(ProjectInfoTable[[#This Row],[kWh Per Unit (Midstream)]]*ProjectInfoTable[[#This Row],[Quantity]]*ProjectInfoTable[[#This Row],[No. of TRL Units]],0),0),0)))","v":""},{"$f":"IFERROR(IF(OR(ProjectInfoTable[[#This Row],[Measure Selection]]=\"\",ProjectInfoTable[[#This Row],[ControlsOnly]]=\"Re-Commissioning\"),0,IF(AND(ProjectInfoTable[[#This Row],[Incentives Per Unit]]=0,INDEX(StipulatedSavingsYesNo_Table[Stipulated Savings?],MATCH(ProjectState,StipulatedSavingsYesNo_Table[State],0))=\"No\"),0,IF(ISNUMBER(FIND(\"Controls Only\",ProjectInfoTable[[#This Row],[Proposed Equipment]],1)),0,ROUND((ProjectInfoTable[[#This Row],[Fixture kWh (Existing, Stipulated)]]-ProjectInfoTable[[#This Row],[Fixture kWh (Proposed)]])*IF(VALUE(SpaceTypesInfo_Table[[#Totals],[HVAC Effects]])=0,1,1+VALUE(SpaceTypesInfo_Table[[#Totals],[HVAC Effects]])),0)))),\"\")","v":""},{"$f":"IFERROR(IF(ProjectInfoTable[[#This Row],[Control kWh (Proposed)]]=\"Controls Only\",ROUND(IFERROR(INDEX(OperatingHours_List,MATCH(ProjectInfoTable[[#This Row],[OpSch]],OperatingSchedules_List,0))*IF(OR(ProjectType <> \"Retrofit\",ProjectInfoTable[[#This Row],[Space W (Proposed)]]>0),ProjectInfoTable[[#This Row],[Space W (Proposed)]],ProjectInfoTable[[#This Row],[Space W (Existing, Stipulated)]])/1000*(IFERROR(INDEX(ControlsLookup[],MATCH(RIGHT(ProjectInfoTable[[#This Row],[Proposed Equipment]],LEN(ProjectInfoTable[[#This Row],[Proposed Equipment]])-FIND(\"]\",ProjectInfoTable[[#This Row],[Proposed Equipment]],1)-3),ControlsLookup[Controls],0),MATCH(\"CSF_\"&ProjectState,ControlsLookup[#Headers],0)),0))*IF(VALUE(SpaceTypesInfo_Table[[#Totals],[HVAC Effects]])=0,1,1+VALUE(SpaceTypesInfo_Table[[#Totals],[HVAC Effects]])),\"\"),0),ROUND(IFERROR((ProjectInfoTable[[#This Row],[Control kWh (Existing, Stipulated)]]-ProjectInfoTable[[#This Row],[Control kWh (Proposed)]])*IF(VALUE(SpaceTypesInfo_Table[[#Totals],[HVAC Effects]])=0,1,1+VALUE(SpaceTypesInfo_Table[[#Totals],[HVAC Effects]])),INDEX(ControlsLookup[],MATCH(RIGHT(ProjectInfoTable[[#This Row],[Proposed Equipment]],LEN(ProjectInfoTable[[#This Row],[Proposed Equipment]])-FIND(\"-\",ProjectInfoTable[[#This Row],[Proposed Equipment]],LEN(ProjectInfoTable[[#This Row],[Proposed Equipment]])-15)-1),ControlsLookup[Controls],0),MATCH(\"CSF_\"&ProjectState,ControlsLookup[#Headers],0))*IF(NOT(ISNUMBER(VALUE(ProjectInfoTable[[#This Row],[kWh Per Unit]]))),ProjectInfoTable[[#This Row],[Fixture kWh/yr Savings (Stipulated)]],ProjectInfoTable[[#This Row],[kWh Per Unit]]*ProjectInfoTable[[#This Row],[Quantity]]*ProjectInfoTable[[#This Row],[No. of TRL Units]])),0)),IF(OR(ProjectType=\"New Construction\",ProjectType=\"Major Renovation\"),IF(ProjectInfoTable[[#This Row],[Control kWh (Proposed)]]=\"\",\"\",0),\"\"))","v":""},{"$f":"IF(OR(ProjectInfoTable[[#This Row],[Proposed Equipment]]=\"\",ProjectInfoTable[[#This Row],[Quantity (Proposed)]]=\"\"),\"\",IF(ProjectInfoTable[[#This Row],[Fixture Measure]]=\"\",0,IF(AND(ProjectInfoTable[[#This Row],[Incentives Per Unit]]=0,INDEX(StipulatedSavingsYesNo_Table[Stipulated Savings?],MATCH(ProjectState,StipulatedSavingsYesNo_Table[State],0))=\"No\"),0,ProjectInfoTable[[#This Row],[Total   kWh/yr Savings (Stipulated)]]-ProjectInfoTable[[#This Row],[Control Measure kWh/yr Savings (Stipulated)]])))","v":""},{"$f":"IF(OR(ProjectInfoTable[[#This Row],[Proposed Equipment]]=\"\",ProjectInfoTable[[#This Row],[Quantity (Proposed)]]=\"\"),\"\",IF(ProjectInfoTable[[#This Row],[Control Measure]]=\"\",0,IF(OR(ProjectType=\"New Construction\",ProjectType=\"Major Renovation\"),IFERROR(ROUND(ProjectInfoTable[[#This Row],[Control kWh Per Unit]]*ProjectInfoTable[[#This Row],[Control Quantity]]*ProjectInfoTable[[#This Row],[Control No. of TRL Units]],0),ProjectInfoTable[[#This Row],[Control kWh/yr Savings (Stipulated)]]),ProjectInfoTable[[#This Row],[Control kWh/yr Savings (Stipulated)]])))","v":""},{"$f":"IF(AND(ProjectInfoTable[[#This Row],[Incentives Per Unit]]=0,INDEX(StipulatedSavingsYesNo_Table[Stipulated Savings?],MATCH(ProjectState,StipulatedSavingsYesNo_Table[State],0))=\"No\"),ProjectInfoTable[[#This Row],[Fixture kWh/yr Savings (Stipulated)]]+IF(ProjectInfoTable[[#This Row],[Control Measure kWh/yr Savings (Stipulated)]]=0,0,ProjectInfoTable[[#This Row],[Control kWh/yr Savings (Stipulated)]]),IF(OR(ISNUMBER(VALUE(ProjectInfoTable[[#This Row],[kWh Per Unit]])),ISNUMBER(VALUE(ProjectInfoTable[[#This Row],[Control kWh Per Unit]]))),ROUND(IFERROR(ProjectInfoTable[[#This Row],[kWh Per Unit]]*ProjectInfoTable[[#This Row],[Quantity]]*ProjectInfoTable[[#This Row],[No. of TRL Units]],0)+IFERROR(ProjectInfoTable[[#This Row],[Control kWh Per Unit]]*ProjectInfoTable[[#This Row],[Control Quantity]]*ProjectInfoTable[[#This Row],[Control No. of TRL Units]],ProjectInfoTable[[#This Row],[Control kWh/yr Savings (Stipulated)]]),0),IF(AND(ProjectInfoTable[[#This Row],[Fixture kWh/yr Savings (Stipulated)]]=\"\",ProjectInfoTable[[#This Row],[Control kWh/yr Savings (Stipulated)]]=\"\"),\"\",ROUND(IF(ProjectInfoTable[[#This Row],[Fixture kWh/yr Savings (Stipulated)]]=\"\",0,ProjectInfoTable[[#This Row],[Fixture kWh/yr Savings (Stipulated)]])+IF(ProjectInfoTable[[#This Row],[Control kWh/yr Savings (Stipulated)]]=\"\",0,ProjectInfoTable[[#This Row],[Control kWh/yr Savings (Stipulated)]])-IF(ProjectInfoTable[[#This Row],[Midstream Measure Name]]<>\"\",IFERROR(ProjectInfoTable[[#This Row],[kWh Per Unit (Midstream)]]*ProjectInfoTable[[#This Row],[Quantity]]*ProjectInfoTable[[#This Row],[No. of TRL Units]],0),0),0))))","v":""},{"$f":"IF(OR(ISNUMBER(FIND(\"Midstream\",ProjectInfoTable[[#This Row],[Fixture Measure]])),ISNUMBER(FIND(\"SBDI\",ProjectInfoTable[[#This Row],[Fixture Measure]])),ISNUMBER(FIND(\"Small Bu\",ProjectInfoTable[[#This Row],[Fixture Measure]]))),\n\nIF(ProjectInfoTable[[#This Row],[Measure Selection]]=\"\",0,\n\nIF(ISNUMBER(FIND(\"/U]\",ProjectInfoTable[[#This Row],[Proposed Equipment]])),IFERROR(MID(ProjectInfoTable[[#This Row],[Proposed Equipment]],FIND(\"$\",ProjectInfoTable[[#This Row],[Proposed Equipment]],1)+1,FIND(\"/U]\",ProjectInfoTable[[#This Row],[Proposed Equipment]],1)-FIND(\"$\",ProjectInfoTable[[#This Row],[Proposed Equipment]],1)-1)*ProjectInfoTable[[#This Row],[Lamps (Proposed)]]*ProjectInfoTable[[#This Row],[Quantity (Proposed)]],0),\nIF(ISNUMBER(FIND(\"/U \",ProjectInfoTable[[#This Row],[Proposed Equipment]])),IFERROR(MID(ProjectInfoTable[[#This Row],[Proposed Equipment]],FIND(\"$\",ProjectInfoTable[[#This Row],[Proposed Equipment]],1)+1,FIND(\"/U \",ProjectInfoTable[[#This Row],[Proposed Equipment]],1)-FIND(\"$\",ProjectInfoTable[[#This Row],[Proposed Equipment]],1)-1)*ProjectInfoTable[[#This Row],[Lamps (Proposed)]]*ProjectInfoTable[[#This Row],[Quantity (Proposed)]],0),\nIFERROR(ProjectInfoTable[[#This Row],[Fixture Measure kWh/yr Savings (Stipulated)]]/SUM(ProjectInfoTable[Total   kWh/yr Savings (Stipulated)])*ProjectCost_Total,\"\")))),\"\")","v":""},{"$f":"IFERROR(IF(ProjectInfoTable[[#This Row],[Fixture Measure kWh/yr Savings (Stipulated)]]=0,0,IF(ProjectType=\"Retrofit\",IF(OR(ISNUMBER(FIND(\"Midstream\",ProjectInfoTable[[#This Row],[Fixture Measure]])),ISNUMBER(FIND(\"SBDI\",ProjectInfoTable[[#This Row],[Fixture Measure]])),ISNUMBER(FIND(\"Small Bu\",ProjectInfoTable[[#This Row],[Fixture Measure]]))),ProjectInfoTable[[#This Row],[Measure Cost (Direct)]],IFERROR(ProjectInfoTable[[#This Row],[Fixture Measure kWh/yr Savings (Stipulated)]]/kWhSavings_Typical_Stipulated*(ProjectCost_Total-SUM(ProjectInfoTable[Measure Cost (Direct)])),\"\")),IF(ProjectInfoTable[[#This Row],[Proposed Equipment]]=\"\",\"\",IFERROR(SpaceTypesInfo_Table[[#Totals],[NCMR Int Cost]]*ProjectInfoTable[[#This Row],[Fixture Measure kWh/yr Savings (Stipulated)]]/SUMIFS(ProjectInfoTable[Total   kWh/yr Savings (Stipulated)],ProjectInfoTable[Proposed Equipment],\"*Interior*\"),0)))),\"\")","v":""},{"$f":"IFERROR(\n IF(\n  ProjectInfoTable[[#This Row],[Control Measure kWh/yr Savings (Stipulated)]]=0,\n  0,\n  IF(\n   ProjectType=\"Retrofit\",\n    IFERROR(\n     ProjectInfoTable[[#This Row],[Control Measure kWh/yr Savings (Stipulated)]]\n     /\n     SUMIFS(ProjectInfoTable[Control Measure kWh/yr Savings (Stipulated)],ProjectInfoTable[Control Measure],\"<>\"\"\")\n     *\n     (ProjectCost_Total-SUM(ProjectInfoTable[Fixture Cost (Allocated)])),\n     \"\"\n    ),\nROUND(\n    IF(\n     ProjectInfoTable[[#This Row],[Proposed Equipment]]=\"\",\n     \"\",\n     IFERROR(\n      SpaceTypesInfo_Table[[#Totals],[NCMR Int Cost]]\n      *\n      ProjectInfoTable[[#This Row],[Control Measure kWh/yr Savings (Stipulated)]]\n      /\n      SUMIFS(ProjectInfoTable[Total   kWh/yr Savings (Stipulated)],ProjectInfoTable[Proposed Equipment],\"*Interior*\"),\n      0\n     )\n    ),\n    2\n   )\n  )\n ),\n \"\"\n)","v":""},{"$f":"IF(AND(ProjectInfoTable[[#This Row],[Fixture Cost (Allocated)]]=\"\",ProjectInfoTable[[#This Row],[Control Cost (Allocated)]]=\"\"),\"\",SUM(ProjectInfoTable[[#This Row],[Fixture Cost (Allocated)]:[Control Cost (Allocated)]]))","v":""},{"$f":"IFERROR(IF(OR(ProjectInfoTable[[#This Row],[Proposed Equipment]]=\"\",ProjectInfoTable[[#This Row],[Quantity (Proposed)]]=\"\"),\"\",IF(OR(ProjectInfoTable[[#This Row],[Measure Selection]]=\"\",ProjectInfoTable[[#This Row],[Control kWh (Proposed)]]=\"Controls Only\"),0,IF(NOT(ISNUMBER(FIND(\"Retrofit\",ProjectType,1))),ProjectInfoTable[[#This Row],[Fixture Energy Cost Savings (Stipulated)]],IF(AND(ProjectInfoTable[[#This Row],[Fixture Measure]]=\"\",ProjectInfoTable[[#This Row],[Control Measure]]<>\"\"),0,ROUND((ProjectInfoTable[[#This Row],[Total Energy Costs (Existing, Actual)]]-ProjectInfoTable[[#This Row],[Total Energy Costs (Proposed)]]),2))))),\"\")","v":""},{"$f":"IFERROR(IF(OR(ProjectInfoTable[[#This Row],[Proposed Equipment]]=\"\",ProjectInfoTable[[#This Row],[Quantity (Proposed)]]=\"\"),\"\",\n\nIF(ProjectInfoTable[[#This Row],[Control kWh (Proposed)]]=\"Controls Only\",ProjectInfoTable[[#This Row],[Control Measure kWh/yr Savings (Actual)]]*INDEX(INDIRECT(\"RateSchedules_\"&ProjectState&\"_Table[kWh Rate]\"),\nMATCH(RateSchedule,INDIRECT(\"RateSchedules_\"&ProjectState&\"_Table[Rate Schedule]\"),0)),\n\nIF(NOT(ISNUMBER(FIND(\"Retrofit\",ProjectType,1))),ProjectInfoTable[[#This Row],[Control Energy Cost Savings (Stipulated)]],IF(AND(ProjectInfoTable[[#This Row],[Fixture Measure]]=\"\",ProjectInfoTable[[#This Row],[Control Measure]]<>\"\"),ROUND((ProjectInfoTable[[#This Row],[Total Energy Costs (Existing, Actual)]]-ProjectInfoTable[[#This Row],[Total Energy Costs (Proposed)]]),2),ROUND((ProjectInfoTable[[#This Row],[Total Energy Costs (Existing, Actual)]]-ProjectInfoTable[[#This Row],[Total Energy Costs (Proposed)]]),2)*(ProjectInfoTable[[#This Row],[Control Measure kWh/yr Savings (Actual)]]/ProjectInfoTable[[#This Row],[Total   kWh/yr Savings (Actual)]]))))),\"\")","v":""},{"$f":"IF(OR(ProjectInfoTable[[#This Row],[Proposed Equipment]]=\"\",ProjectInfoTable[[#This Row],[Quantity (Proposed)]]=\"\"),\"\",ROUND(ProjectInfoTable[[#This Row],[Fixture Energy Cost Savings (Actual)]]+ProjectInfoTable[[#This Row],[Control Energy Cost Savings (Actual)]],2))","v":""},{"$f":"IF(OR(ProjectInfoTable[[#This Row],[Proposed Equipment]]=\"\",ProjectInfoTable[[#This Row],[Quantity (Proposed)]]=\"\"),\"\",IF(OR(ISNUMBER(VALUE(ProjectInfoTable[[#This Row],[kWh Per Unit]])),ISNUMBER(VALUE(ProjectInfoTable[[#This Row],[kW Per Unit]]))),IFERROR(ProjectInfoTable[[#This Row],[Fixture Measure kWh/yr Savings (Stipulated)]]*INDEX(INDIRECT(\"RateSchedules_\"&ProjectState&\"_Table[kWh Rate]\"),MATCH(RateSchedule,INDIRECT(\"RateSchedules_\"&ProjectState&\"_Table[Rate Schedule]\"),0)),0)+IFERROR(ProjectInfoTable[[#This Row],[kW Demand Reduction (Stipulated)]]/1000*12*INDEX(INDIRECT(\"RateSchedules_\"&ProjectState&\"_Table[kW Rate]\"),MATCH(RateSchedule,INDIRECT(\"RateSchedules_\"&ProjectState&\"_Table[Rate Schedule]\"),0)),0),IFERROR(ROUND((ProjectInfoTable[[#This Row],[Total Energy Costs (Existing, Stipulated)]]-ProjectInfoTable[[#This Row],[Total Energy Costs (Proposed)]])*ProjectInfoTable[[#This Row],[Fixture Measure kWh/yr Savings (Stipulated)]]/ProjectInfoTable[[#This Row],[Total   kWh/yr Savings (Stipulated)]],2),0)))","v":""},{"$f":"IF(OR(ProjectInfoTable[[#This Row],[Proposed Equipment]]=\"\",ProjectInfoTable[[#This Row],[Quantity (Proposed)]]=\"\"),\"\",\nIF(ProjectInfoTable[[#This Row],[Control kWh (Proposed)]]=\"Controls Only\",ProjectInfoTable[[#This Row],[Control Measure kWh/yr Savings (Stipulated)]]*INDEX(INDIRECT(\"RateSchedules_\"&ProjectState&\"_Table[kWh Rate]\"),\nMATCH(RateSchedule,INDIRECT(\"RateSchedules_\"&ProjectState&\"_Table[Rate Schedule]\"),0)),IF(OR(ISNUMBER(VALUE(ProjectInfoTable[[#This Row],[Control kWh Per Unit]])),\nISNUMBER(VALUE(ProjectInfoTable[[#This Row],[Control kW Per Unit]]))),IFERROR(ProjectInfoTable[[#This Row],[Control Measure kWh/yr Savings (Stipulated)]]*INDEX(INDIRECT(\"RateSchedules_\"&ProjectState&\"_Table[kWh Rate]\"),\nMATCH(RateSchedule,INDIRECT(\"RateSchedules_\"&ProjectState&\"_Table[Rate Schedule]\"),0)),0)+IFERROR(ProjectInfoTable[[#This Row],[kW Demand Reduction (Stipulated)]]/1000*12*\nINDEX(INDIRECT(\"RateSchedules_\"&ProjectState&\"_Table[kW Rate]\"),MATCH(RateSchedule,INDIRECT(\"RateSchedules_\"&ProjectState&\"_Table[Rate Schedule]\"),0)),0),\nIFERROR(ROUND((ProjectInfoTable[[#This Row],[Total Energy Costs (Existing, Stipulated)]]-ProjectInfoTable[[#This Row],[Total Energy Costs (Proposed)]])*ProjectInfoTable[[#This Row],[Control Measure kWh/yr Savings (Stipulated)]]/\nProjectInfoTable[[#This Row],[Total   kWh/yr Savings (Stipulated)]],2),0))))","v":""},{"$f":"IF(OR(ProjectInfoTable[[#This Row],[Proposed Equipment]]=\"\",ProjectInfoTable[[#This Row],[Quantity (Proposed)]]=\"\"),\"\",ROUND(ProjectInfoTable[[#This Row],[Fixture Energy Cost Savings (Stipulated)]]+ProjectInfoTable[[#This Row],[Control Energy Cost Savings (Stipulated)]],2))","v":""},{"$f":"IF(ProjectInfoTable[[#This Row],[OpSch]]=\"\",\"\",IF(OR(ProjectInfoTable[[#This Row],[Fixture Measure]]=\"\",ProjectInfoTable[[#This Row],[Eligible Fixture Measure]]<>TRUE),0,ProjectInfoTable[[#This Row],[Fixture Incentives (pre-capping)]])+IF(OR(ProjectInfoTable[[#This Row],[Control Measure]]=\"\",ProjectInfoTable[[#This Row],[Eligible Control Measure]]<>TRUE),0,ProjectInfoTable[[#This Row],[Control Incentives (pre-capping)]]))","v":""},{"$f":"IF(OR(ProjectInfoTable[[#This Row],[Fixture Measure]]<>\"\",ProjectInfoTable[[#This Row],[Control Measure]]<>\"\"),IF(ProjectInfoTable[[#This Row],[Fixture Incentives]]=\"\",0,ProjectInfoTable[[#This Row],[Fixture Incentives]])+IF(ProjectInfoTable[[#This Row],[Control Incentives]]=\"\",0,ProjectInfoTable[[#This Row],[Control Incentives]]),\"\")","v":""},null,{"$f":"IF(OR(ProjectInfoTable[[#This Row],[Fixture Measure]]=\"\",ProjectInfoTable[[#This Row],[OpSch]]=\"\",ProjectInfoTable[[#This Row],[Eligible Fixture Measure]]<>TRUE),\"\",\nIF(OR(ISNUMBER(FIND(\"SBDI\",ProjectInfoTable[[#This Row],[Fixture Measure]])),ISNUMBER(FIND(\"Small Bu\",ProjectInfoTable[[#This Row],[Fixture Measure]]))),IFERROR(0.75*ProjectInfoTable[[#This Row],[Fixture Cost (Allocated)]],\"cost error\"),\nIF(AND(OR(ProjectType=\"New Construction\",ProjectType=\"Major Renovation\"),LPDCodeToProposed<0.1,ISNUMBER(FIND(\"Interior\",ProjectInfoTable[[#This Row],[Proposed Equipment]],1))),0,IFERROR(ProjectInfoTable[[#This Row],[Incentives Per Unit]]*ProjectInfoTable[[#This Row],[Quantity]]*ProjectInfoTable[[#This Row],[No. of TRL Units]],\"TRL Error\"))))","v":""},{"$f":"IF(\n    OR(\n        ProjectInfoTable[[#This Row],[Fixture Measure]] = \"\",\n        ProjectInfoTable[[#This Row],[OpSch]] = \"\",\n        ProjectInfoTable[[#This Row],[Eligible Fixture Measure]] <> TRUE\n    ),\n    \"\",\n    IF(\n        OR(\n            ISNUMBER(FIND(\"SBDI\", ProjectInfoTable[[#This Row],[Fixture Measure]])),\n            ISNUMBER(FIND(\"Small Bu\", ProjectInfoTable[[#This Row],[Fixture Measure]]))\n        ),\n        IFERROR(\n            (Incentive_NonTypical / Incentive_NonTypical_PreCapped) * ProjectInfoTable[[#This Row],[Fixture Incentives (pre-capping)]],\n            \"\"\n        ),\n        IF(\n            AND(\n                ProjectType = \"Retrofit\",\n                ProjectState = \"UT\",\n                ISNUMBER(FIND(\"Post-Purchase\", ProjectInfoTable[[#This Row],[Fixture Measure]], 1))\n            ),\n            IFERROR(\n                MAX(\n                    MIN(\n                        ProjectInfoTable[[#This Row],[Fixture Incentives (pre-capping)]],\n                        ProjectInfoTable[[#This Row],[Fixture Cost (Allocated)]] * 0.7\n                    ),\n                    0\n                ),\n                0\n            ),\n            IF(\n                ProjectType = \"Retrofit\",\n                IF(\n                    ISNUMBER(FIND(\"Post-Purchase\", ProjectInfoTable[[#This Row],[Fixture Measure]], 1)),\n                    ProjectInfoTable[[#This Row],[Fixture Incentives (pre-capping)]],\n                    IFERROR(\n                        $BI$3 / $BH$3 * ProjectInfoTable[[#This Row],[Fixture Incentives (pre-capping)]],\n                        \"\"\n                    )\n                ),\n                IF(\n                    ISNUMBER(FIND(\"Interior\", ProjectInfoTable[[#This Row],[Proposed Equipment]], 1)),\n                    IF(\n                        LPDCodeToProposed > 0.1,\n                        ProjectInfoTable[[#This Row],[Fixture Incentives (pre-capping)]],\n                        0\n                    ),\n                    ProjectInfoTable[[#This Row],[Fixture Incentives (pre-capping)]]\n                )\n            )\n        )\n    )\n)","v":""},{"$f":"IF(OR(ProjectInfoTable[[#This Row],[Incentives Per Unit]]=\"\",ProjectInfoTable[[#This Row],[TRL Unit]]=\"\"),\"\",IF(ProjectInfoTable[[#This Row],[Eligible Fixture Measure]]<>TRUE,\"Invalid Effective Date\",\nIF(OR(ISNUMBER(FIND(\"SBDI\",ProjectInfoTable[[#This Row],[Fixture Measure]])),ISNUMBER(FIND(\"Small Bu\",ProjectInfoTable[[#This Row],[Fixture Measure]]))),\"$0.75 / dollar cost\",\nTEXT(ProjectInfoTable[[#This Row],[Incentives Per Unit]],\"$#,##0.00\")&\" / \"&IF(ProjectInfoTable[[#This Row],[Fixture Measure]]=\"\",\"\",IF(ProjectInfoTable[[#This Row],[TRL Unit]]=\"Measure\",IF(ISNUMBER(FIND(\"Relamp\",ProjectInfoTable[[#This Row],[Proposed Equipment]],1)),\"Lamp\",\"Fixture\"),ProjectInfoTable[[#This Row],[TRL Unit]])))))","v":""},{"$f":"IF(OR(ProjectInfoTable[[#This Row],[Proposed Equipment]]=\"\",ProjectInfoTable[[#This Row],[Quantity (Proposed)]]=\"\"),\"\",IFERROR(SUBSTITUTE(IF(ProjectType=\"Retrofit\",IF(OR(ISNUMBER(FIND(\"Controls On\",ProjectInfoTable[[#This Row],[Proposed Equipment]],1))),\"\",IF(OR(ProjectInfoTable[[#This Row],[Existing Equipment]]=\"\",ProjectInfoTable[[#This Row],[Proposed Equipment]]=\"\"),\"\",IF(ProjectState=\"UT\",IFERROR(IF(AlternativeEnergyOverride=\"Yes\",IFERROR(INDEX(INDIRECT(\"EquipmentTable_\"&\"Retrofit_\"&ProjectState&\"[#All]\"),MATCH(LEFT(ProjectInfoTable[[#This Row],[Proposed Equipment]],FIND(\"[\",ProjectInfoTable[[#This Row],[Proposed Equipment]],1)-2)&\" (Alt)\",INDIRECT(\"EquipmentTable_\"&\"Retrofit_\"&ProjectState&\"[equipmentProposed]\"),0)+1,MATCH(\"measureRetrofit_\"&LEFT(ProjectInfoTable[[#This Row],[Existing Equipment]],FIND(\":\",ProjectInfoTable[[#This Row],[Existing Equipment]],1)-1)&\"_\"&IF(IFERROR(INDEX(ControlsLookup[Rank],MATCH(RIGHT(ProjectInfoTable[[#This Row],[Proposed Equipment]],LEN(ProjectInfoTable[[#This Row],[Proposed Equipment]])-FIND(\"]\",ProjectInfoTable[[#This Row],[Proposed Equipment]],1)-3),ControlsLookup[Controls],0)),0)>IFERROR(INDEX(ControlsLookup[Rank],MATCH(RIGHT(ProjectInfoTable[[#This Row],[Existing Equipment]],LEN(ProjectInfoTable[[#This Row],[Existing Equipment]])-FIND(\"]\",ProjectInfoTable[[#This Row],[Existing Equipment]],1)-3),ControlsLookup[Controls],0)),0),INDEX(ControlsLookup[Controls Type],MATCH(LEFT(ProjectInfoTable[[#This Row],[Existing Equipment]],FIND(\":\",ProjectInfoTable[[#This Row],[Existing Equipment]],1)-1)&\"_\"&RIGHT(ProjectInfoTable[[#This Row],[Proposed Equipment]],LEN(ProjectInfoTable[[#This Row],[Proposed Equipment]])-FIND(\"]\",ProjectInfoTable[[#This Row],[Proposed Equipment]],1)-3),ControlsLookup[Controls Concatenate],0)),\"None\"),INDIRECT(\"EquipmentTable_\"&\"Retrofit_\"&ProjectState&\"[#Headers]\"),0)),INDEX(INDIRECT(\"EquipmentTable_\"&IF(ProjectType=\"Retrofit\",\"Retrofit_\",\"NCMR_\")&ProjectState&\"[#All]\"),MATCH(LEFT(ProjectInfoTable[[#This Row],[Proposed Equipment]],FIND(\"[\",ProjectInfoTable[[#This Row],[Proposed Equipment]],1)-2),INDIRECT(\"EquipmentTable_\"&\"Retrofit_\"&ProjectState&\"[equipmentProposed]\"),0)+1,MATCH(\"measureRetrofit_\"&LEFT(ProjectInfoTable[[#This Row],[Existing Equipment]],FIND(\":\",ProjectInfoTable[[#This Row],[Existing Equipment]],1)-1)&\"_\"&IF(IFERROR(INDEX(ControlsLookup[Rank],MATCH(RIGHT(ProjectInfoTable[[#This Row],[Proposed Equipment]],LEN(ProjectInfoTable[[#This Row],[Proposed Equipment]])-FIND(\"]\",ProjectInfoTable[[#This Row],[Proposed Equipment]],1)-3),ControlsLookup[Controls],0)),0)>IFERROR(INDEX(ControlsLookup[Rank],MATCH(RIGHT(ProjectInfoTable[[#This Row],[Existing Equipment]],LEN(ProjectInfoTable[[#This Row],[Existing Equipment]])-FIND(\"]\",ProjectInfoTable[[#This Row],[Existing Equipment]],1)-3),ControlsLookup[Controls],0)),0),INDEX(ControlsLookup[Controls Type],MATCH(LEFT(ProjectInfoTable[[#This Row],[Existing Equipment]],FIND(\":\",ProjectInfoTable[[#This Row],[Existing Equipment]],1)-1)&\"_\"&RIGHT(ProjectInfoTable[[#This Row],[Proposed Equipment]],LEN(ProjectInfoTable[[#This Row],[Proposed Equipment]])-FIND(\"]\",ProjectInfoTable[[#This Row],[Proposed Equipment]],1)-3),ControlsLookup[Controls Concatenate],0)),\"None\"),INDIRECT(\"EquipmentTable_\"&IF(ProjectType=\"Retrofit\",\"Retrofit_\",\"NCMR_\")&ProjectState&\"[#Headers]\"),0))),INDEX(INDIRECT(\"EquipmentTable_\"&IF(ProjectType=\"Retrofit\",\"Retrofit_\",\"NCMR_\")&ProjectState&\"[#All]\"),MATCH(LEFT(ProjectInfoTable[[#This Row],[Proposed Equipment]],FIND(\"[\",ProjectInfoTable[[#This Row],[Proposed Equipment]],1)-2),INDIRECT(\"EquipmentTable_\"&IF(ProjectType=\"Retrofit\",\"Retrofit_\",\"NCMR_\")&ProjectState&\"[equipmentProposed]\"),0)+1,MATCH(\"measureRetrofit_\"&IF(AND(SBDEligible=\"Yes\",ISNUMBER(FIND(\"SBE\",ProjectInfoTable[[#This Row],[Proposed Equipment]]))),\"SBE\",LEFT(ProjectInfoTable[[#This Row],[Existing Equipment]],FIND(\":\",ProjectInfoTable[[#This Row],[Existing Equipment]],1)-1)&\"_\"&IF(IFERROR(INDEX(ControlsLookup[Rank],MATCH(RIGHT(ProjectInfoTable[[#This Row],[Proposed Equipment]],LEN(ProjectInfoTable[[#This Row],[Proposed Equipment]])-FIND(\"]\",ProjectInfoTable[[#This Row],[Proposed Equipment]],1)-3),ControlsLookup[Controls],0)),0)>IFERROR(INDEX(ControlsLookup[Rank],MATCH(RIGHT(ProjectInfoTable[[#This Row],[Existing Equipment]],LEN(ProjectInfoTable[[#This Row],[Existing Equipment]])-FIND(\"]\",ProjectInfoTable[[#This Row],[Existing Equipment]],1)-3),ControlsLookup[Controls],0)),0),INDEX(ControlsLookup[Controls Type],MATCH(LEFT(ProjectInfoTable[[#This Row],[Existing Equipment]],FIND(\":\",ProjectInfoTable[[#This Row],[Existing Equipment]],1)-1)&\"_\"&RIGHT(ProjectInfoTable[[#This Row],[Proposed Equipment]],LEN(ProjectInfoTable[[#This Row],[Proposed Equipment]])-FIND(\"]\",ProjectInfoTable[[#This Row],[Proposed Equipment]],1)-3),ControlsLookup[Controls Concatenate],0)),\"None\")),INDIRECT(\"EquipmentTable_\"&\"Retrofit_\"&ProjectState&\"[#Headers]\"),0))),\"Non-eligible fixture - Retrofit - \"&ProjectState),IFERROR(INDEX(INDIRECT(\"EquipmentTable_\"&IF(SiteSpecificOverride=\"Yes\",\"PostPurchase_\",\"Retrofit_\")&ProjectState&\"[#All]\"),MATCH(LEFT(ProjectInfoTable[[#This Row],[Proposed Equipment]],FIND(\"[\",ProjectInfoTable[[#This Row],[Proposed Equipment]],1)-2),INDIRECT(\"EquipmentTable_\"&IF(SiteSpecificOverride=\"Yes\",\"PostPurchase_\",\"Retrofit_\")&ProjectState&\"[equipmentProposed]\"),0)+1,MATCH(\"measureRetrofit_\"&IF(AND(SBDEligible=\"Yes\",ISNUMBER(FIND(\"SBE\",ProjectInfoTable[[#This Row],[Proposed Equipment]]))),\"SBE\",LEFT(ProjectInfoTable[[#This Row],[Existing Equipment]],FIND(\":\",ProjectInfoTable[[#This Row],[Existing Equipment]],1)-1)&\"_\"&IF(IFERROR(INDEX(ControlsLookup[Rank],MATCH(RIGHT(ProjectInfoTable[[#This Row],[Proposed Equipment]],LEN(ProjectInfoTable[[#This Row],[Proposed Equipment]])-FIND(\"]\",ProjectInfoTable[[#This Row],[Proposed Equipment]],1)-3),ControlsLookup[Controls],0)),0)>IFERROR(INDEX(ControlsLookup[Rank],MATCH(RIGHT(ProjectInfoTable[[#This Row],[Existing Equipment]],LEN(ProjectInfoTable[[#This Row],[Existing Equipment]])-FIND(\"]\",ProjectInfoTable[[#This Row],[Existing Equipment]],1)-3),ControlsLookup[Controls],0)),0),INDEX(ControlsLookup[Controls Type],MATCH(LEFT(ProjectInfoTable[[#This Row],[Existing Equipment]],FIND(\":\",ProjectInfoTable[[#This Row],[Existing Equipment]],1)-1)&\"_\"&RIGHT(ProjectInfoTable[[#This Row],[Proposed Equipment]],LEN(ProjectInfoTable[[#This Row],[Proposed Equipment]])-FIND(\"]\",ProjectInfoTable[[#This Row],[Proposed Equipment]],1)-3),ControlsLookup[Controls Concatenate],0)),\"None\")),INDIRECT(\"EquipmentTable_\"&IF(SiteSpecificOverride=\"Yes\",\"PostPurchase_\",\"Retrofit_\")&ProjectState&\"[#Headers]\"),0)),\"Non-eligible fixture - Retrofit - \"&ProjectState)))),IFERROR(INDEX(INDIRECT(\"EquipmentTable_\"&\"NCMR_\"&ProjectState),MATCH(RIGHT(LEFT(ProjectInfoTable[[#This Row],[Proposed Equipment]],FIND(\" (\",ProjectInfoTable[[#This Row],[Proposed Equipment]],1)-1),LEN(LEFT(ProjectInfoTable[[#This Row],[Proposed Equipment]],FIND(\" (\",ProjectInfoTable[[#This Row],[Proposed Equipment]],1)-2))-FIND(\":\",ProjectInfoTable[[#This Row],[Proposed Equipment]],1)),INDIRECT(\"EquipmentTable_\"&\"NCMR_\"&ProjectState&\"[equipmentProposed]\"),0),MATCH(\"measureNCMR_\"&LEFT(ProjectInfoTable[[#This Row],[Proposed Equipment]],FIND(\":\",ProjectInfoTable[[#This Row],[Proposed Equipment]],1)-1)&\"_\"&IF(LEN(ProjectInfoTable[[#This Row],[Proposed Equipment]])>FIND(\"]\",ProjectInfoTable[[#This Row],[Proposed Equipment]]),INDEX(ControlsLookup[Controls Type],MATCH(LEFT(ProjectInfoTable[[#This Row],[Proposed Equipment]],FIND(\":\",ProjectInfoTable[[#This Row],[Proposed Equipment]],1)-1)&\"_\"&RIGHT(ProjectInfoTable[[#This Row],[Proposed Equipment]],LEN(ProjectInfoTable[[#This Row],[Proposed Equipment]])-FIND(\"]\",ProjectInfoTable[[#This Row],[Proposed Equipment]],1)-3),ControlsLookup[Controls Concatenate],0)),\"None\"),INDIRECT(\"EquipmentTable_\"&\"NCMR_\"&ProjectState&\"[#Headers]\"),0)),\"Non-eligible fixture - NCMR - \"&ProjectState)),\"[NAMESUB]\",ProjectInfoTable[[#This Row],[Measure Name Sub]]),\"Non-eligible fixture - Retrofit - \"&ProjectState))","v":""},{"$f":"IF(ISNUMBER(SEARCH(\"Case\",ProjectInfoTable[[#This Row],[Fixture Measure]])),CONCATENATE(ProjectInfoTable[[#This Row],[Fixture Measure]],ProjectInfoTable[[#This Row],[No. of TRL Units]],ProjectInfoTable[[#This Row],[Quantity]]),\"\")","v":""},{"$f":"IF(ProjectInfoTable[[#This Row],[Proposed Equipment]]=\"\",\"\",\nIF(AND(ProjectState = \"UT\",ISNUMBER(FIND(\" TLED \",ProjectInfoTable[[#This Row],[Proposed Equipment]]))),\nIF(VALUE(ProjectInfoTable[[#This Row],[Lamp W (Proposed)]])<20,\"< 20 W\",\nIF(AND(VALUE(ProjectInfoTable[[#This Row],[Lamp W (Proposed)]])<=39,VALUE(ProjectInfoTable[[#This Row],[Lamp W (Proposed)]])>=20),\">= 20 W and <= 39 W\",)),\n\nIF(AND(ProjectType=\"Retrofit\",OR(ISNUMBER(FIND(\"Retrofit Kit\",ProjectInfoTable[[#This Row],[Proposed Equipment]])),ISNUMBER(FIND(\"Fixture\",ProjectInfoTable[[#This Row],[Proposed Equipment]]))),OR(ISNUMBER(FIND(\"Exterior\",ProjectInfoTable[[#This Row],[Existing Equipment]])),ISNUMBER(FIND(\"Street\",ProjectInfoTable[[#This Row],[Existing Equipment]])))),\nIF(ProjectInfoTable[[#This Row],[Fixture W (Proposed)]]<50,\"< 50 W\",\nIF(AND(ProjectInfoTable[[#This Row],[Fixture W (Proposed)]]<90,ProjectInfoTable[[#This Row],[Fixture W (Proposed)]]>=50),\">= 50 W and < 90 W\",\nIF(AND(ProjectInfoTable[[#This Row],[Fixture W (Proposed)]]<135,ProjectInfoTable[[#This Row],[Fixture W (Proposed)]]>=90),\">= 90 W and < 135 W\",\nIF(AND(ProjectInfoTable[[#This Row],[Fixture W (Proposed)]]<220,ProjectInfoTable[[#This Row],[Fixture W (Proposed)]]>=135),\">= 135 W and < 220 W\",\nIF(ProjectInfoTable[[#This Row],[Fixture W (Proposed)]]>=220,\">= 220 W\"))))),\"\")))","v":""},{"$f":"IFERROR(INDEX(INDIRECT(\"MeasureTable_\" & ProjectState & \"[Measure Reference Number]\"),MATCH(ProjectInfoTable[[#This Row],[Fixture Measure]],INDIRECT(\"MeasureTable_\" &ProjectState&\"[Measure Name]\"),0)),\"\")","v":""},{"$f":"IFERROR(\n    _xlfn.LET(\n        _xlpm.filteredVersions,\n            _xlfn._xlws.FILTER(\n                INDIRECT(\"MeasureTable_\" & ProjectState & \"[Version Number]\"),\n                (INDIRECT(\"MeasureTable_\" & ProjectState & \"[Measure Reference Number]\") = ProjectInfoTable[[#This Row],[Fixture Measure Reference Number]]) *\n                (INDIRECT(\"MeasureTable_\" & ProjectState & \"[Eligible Measure]\") = TRUE)\n            ),\n        INDEX(_xlpm.filteredVersions, 1)\n    ),\n    \"\"\n)","v":""},{"$f":"IFERROR(\n  _xlfn.LET(\n    _xlpm.refRange, INDIRECT(\"MeasureTable_\" & ProjectState & \"[Measure Reference Number]\"),\n    _xlpm.eligibleRange, INDIRECT(\"MeasureTable_\" & ProjectState & \"[Eligible Measure]\"),\n    _xlpm.countTrue, SUMPRODUCT(--(_xlpm.refRange = ProjectInfoTable[[#This Row],[Fixture Measure Reference Number]]), --(_xlpm.eligibleRange = TRUE)),\n    _xlpm.countNonBlank, SUMPRODUCT(--(_xlpm.refRange = ProjectInfoTable[[#This Row],[Fixture Measure Reference Number]]), --(_xlpm.eligibleRange <> \"\")),\n    IF(_xlpm.countNonBlank = 0, \"\", IF(_xlpm.countTrue >= 1, TRUE, FALSE))\n  ),\n  \"\"\n)","v":""},{"$f":"IFERROR(VALUE(INDEX(INDIRECT(\"MeasureTable_\" & ProjectState & \"[CustomerIncentiveDollarperunit]\"),MATCH(ProjectInfoTable[[#This Row],[Fixture Measure]]&\" | TRUE\",INDIRECT(\"MeasureTable_\" &ProjectState&\"[MeasureEligibleConcatenate]\"),0))),\"\")","v":""},{"$f":"IFERROR(INDEX(INDIRECT(\"MeasureTable_\"&ProjectState&\"[SiteSpecificCalculation]\"),MATCH(ProjectInfoTable[[#This Row],[Fixture Measure]]&\" | TRUE\",INDIRECT(\"MeasureTable_\" &ProjectState&\"[MeasureEligibleConcatenate]\"),0)),\"\")","v":""},{"$f":"IFERROR(INDEX(INDIRECT(\"MeasureTable_\"&ProjectState&\"[GrossIncrementalAnnualElectricSavings]\"),MATCH(ProjectInfoTable[[#This Row],[Fixture Measure]]&\" | TRUE\",INDIRECT(\"MeasureTable_\" &ProjectState&\"[MeasureEligibleConcatenate]\"),0)),\"\")","v":""},{"$f":"IFERROR(INDEX(INDIRECT(\"MeasureTable_\"&ProjectState&\"[GrossAverageMonthlyDemandReduction]\"),MATCH(ProjectInfoTable[[#This Row],[Fixture Measure]]&\" | TRUE\",INDIRECT(\"MeasureTable_\" &ProjectState&\"[MeasureEligibleConcatenate]\"),0)),\"\")","v":""},{"$f":"IF(ProjectInfoTable[[#This Row],[Fixture Measure]]=\"\",\"\",IF(NOT(ISNUMBER(FIND(\"Site-Specific - Downstream\",ProjectInfoTable[[#This Row],[Fixture Measure]]))),\"\",\nIF(ISNUMBER(MATCH(SUBSTITUTE(ProjectInfoTable[[#This Row],[Fixture Measure]],\"Site-Specific - Downstream - v2\",\"Mid Market\"),INDIRECT(\"MeasureTable_\"&ProjectState&\"[Measure Name]\"),0)),\nSUBSTITUTE(ProjectInfoTable[[#This Row],[Fixture Measure]],\"Site-Specific - Downstream - v2\",\"Mid Market\"),\nSUBSTITUTE(ProjectInfoTable[[#This Row],[Fixture Measure]],\"Site-Specific - Downstream\",\"Mid Market\"))\n))","v":""},{"$f":"IF(ProjectInfoTable[[#This Row],[Midstream Measure Name]]=\"\",\"\",IFERROR(INDEX(INDIRECT(\"MeasureTable_\"&ProjectState&\"[GrossIncrementalAnnualElectricSavings ]\"),MATCH(ProjectInfoTable[[#This Row],[Midstream Measure Name]]&\" | TRUE\",INDIRECT(\"MeasureTable_\" &ProjectState&\"[MeasureEligibleConcatenate]\"),0)),\"\"))","v":""},{"$f":"IF(ProjectInfoTable[[#This Row],[Midstream Measure Name]]=\"\",\"\",IFERROR(INDEX(INDIRECT(\"MeasureTable_\"&ProjectState&\"[GrossAverage onthly emand eduction]\"),MATCH(ProjectInfoTable[[#This Row],[Midstream Measure Name]]&\" | TRUE\",INDIRECT(\"MeasureTable_\" &ProjectState&\"[MeasureEligibleConcatenate]\"),0)),\"\"))","v":""},{"$f":"IFERROR(INDEX(INDIRECT(\"MeasureTable_\"&ProjectState&\"[IncrementalMeasureCost]\"),MATCH(ProjectInfoTable[[#This Row],[Fixture Measure]]&\" | TRUE\",INDIRECT(\"MeasureTable_\" &ProjectState&\"[MeasureEligibleConcatenate]\"),0)),\"\")","v":""},{"$f":"IF(ProjectInfoTable[[#This Row],[Fixture Measure]]=\"\",\"\",IF(AND(ProjectState=\"UT\",ProjectInfoTable[[#This Row],[Measure Selection]]=\"\"),0,\nIF(OR(ISNUMBER(FIND(\"SBDI\",ProjectInfoTable[[#This Row],[Fixture Measure]])),ISNUMBER(FIND(\"Small Bu\",ProjectInfoTable[[#This Row],[Fixture Measure]]))),ProjectInfoTable[[#This Row],[Quantity (Proposed)]]*ProjectInfoTable[[#This Row],[Lamps (Proposed)]],\nIF(OR(ProjectInfoTable[[#This Row],[TRL Unit]]=\"Measure\",ProjectInfoTable[[#This Row],[TRL Unit]]=\"Linear ft.\"),IF(OR(ISNUMBER(FIND(\"Lamp\",ProjectInfoTable[[#This Row],[Fixture Measure]],1)),ISNUMBER(FIND(\"Relamp\",ProjectInfoTable[[#This Row],[Fixture Measure]],1)),ISNUMBER(FIND(\"Relamp\",ProjectInfoTable[[#This Row],[Proposed Equipment]],1))),ProjectInfoTable[[#This Row],[Quantity (Proposed)]]*ProjectInfoTable[[#This Row],[Lamps (Proposed)]],ProjectInfoTable[[#This Row],[Quantity (Proposed)]]),1))))","v":""},{"$f":"IF(ProjectInfoTable[[#This Row],[Fixture Measure]]=\"\",\"\",IF(AND(ProjectState=\"UT\",ProjectInfoTable[[#This Row],[Measure Selection]]=\"\"),0,\nIF(OR(ISNUMBER(FIND(\"SBDI\",ProjectInfoTable[[#This Row],[Fixture Measure]])),ISNUMBER(FIND(\"Small Bu\",ProjectInfoTable[[#This Row],[Fixture Measure]]))),1,\nIF(ISNUMBER(FIND(\"Controls Only\",ProjectInfoTable[[#This Row],[Proposed Equipment]],1)),IF(OR(ProjectType <> \"Retrofit\",ProjectInfoTable[[#This Row],[Space W (Proposed)]]>0),ProjectInfoTable[[#This Row],[Space W (Proposed)]],ProjectInfoTable[[#This Row],[Space W (Existing, Stipulated)]]),\nIF(TRIM(UPPER(ProjectInfoTable[[#This Row],[TRL Unit]]))=\"LINEAR FT.\",IF(OR(ISNUMBER(FIND(\"Marquee\",ProjectInfoTable[[#This Row],[Proposed Equipment]],1)),ISNUMBER(FIND(\"Cabinet\",ProjectInfoTable[[#This Row],[Proposed Equipment]],1))),VALUE(RIGHT(LEFT(ProjectInfoTable[[#This Row],[Existing Equipment]],FIND(\"LF \",ProjectInfoTable[[#This Row],[Existing Equipment]],1)-1),LEN(LEFT(ProjectInfoTable[[#This Row],[Existing Equipment]],FIND(\"LF \",ProjectInfoTable[[#This Row],[Existing Equipment]],1)-1))-FIND(\"[\",ProjectInfoTable[[#This Row],[Existing Equipment]],1))),VALUE(RIGHT(LEFT(ProjectInfoTable[[#This Row],[Proposed Equipment]],FIND(\"LF \",ProjectInfoTable[[#This Row],[Proposed Equipment]],1)-1),LEN(LEFT(ProjectInfoTable[[#This Row],[Proposed Equipment]],FIND(\"LF \",ProjectInfoTable[[#This Row],[Proposed Equipment]],1)-1))-FIND(\"[\",ProjectInfoTable[[#This Row],[Proposed Equipment]],1)))),\nIF(TRIM(UPPER(ProjectInfoTable[[#This Row],[TRL Unit]]))=\"KWH\",IF(ProjectInfoTable[[#This Row],[Fixture Measure kWh/yr Savings (Stipulated)]]=0,0,ROUND(ProjectInfoTable[[#This Row],[Fixture Measure kWh/yr Savings (Stipulated)]],2)),\nIF(TRIM(UPPER(ProjectInfoTable[[#This Row],[TRL Unit]]))=\"WATT REDUCED\",IF(ProjectInfoTable[[#This Row],[Fixture Measure kWh/yr Savings (Stipulated)]]=0,0,ROUND(ProjectInfoTable[[#This Row],[Space W (Existing, Stipulated)]]-ProjectInfoTable[[#This Row],[Space W (Proposed)]],2)),\nIF(TRIM(UPPER(ProjectInfoTable[[#This Row],[TRL Unit]]))=\"FIXTURE WATTAGE\",ProjectInfoTable[[#This Row],[Space W (Proposed)]],1))))))))","v":""},{"$f":"IFERROR(IF(OR(ISNUMBER(FIND(\"SBDI\",ProjectInfoTable[[#This Row],[Fixture Measure]])),ISNUMBER(FIND(\"Small Bu\",ProjectInfoTable[[#This Row],[Fixture Measure]]))),0,INDEX(INDIRECT(\"MeasureTable_\"&ProjectState&\"[Unit]\"),MATCH(ProjectInfoTable[[#This Row],[Fixture Measure]]&\" | TRUE\",INDIRECT(\"MeasureTable_\" &ProjectState&\"[MeasureEligibleConcatenate]\"),0))),\"\")","v":""},{"$f":"IF(ProjectInfoTable[[#This Row],[Fixture Measure]]=\"\",\"\",IF(OR(ISNUMBER(FIND(\"Lamp(s)\",ProjectInfoTable[[#This Row],[Fixture Measure]],1)),ISNUMBER(FIND(\"Relamp\",ProjectInfoTable[[#This Row],[Proposed Equipment]],1))),\"Lamp(s)\",\"Fixture(s)\"))","v":""},{"$f":"IFERROR(INDEX(INDIRECT(\"MeasureTable_\"&ProjectState&\"[ProjectCapPercent]\"),MATCH(ProjectInfoTable[[#This Row],[Fixture Measure]]&\" | TRUE\",INDIRECT(\"MeasureTable_\" &ProjectState&\"[MeasureEligibleConcatenate]\"),0)),\"\")","v":""},{"$f":"IF(OR(ProjectInfoTable[[#This Row],[Control Measure]]=\"\",ProjectInfoTable[[#This Row],[OpSch]]=\"\",ProjectInfoTable[[#This Row],[Eligible Control Measure]]<>TRUE),\"\",IF(AND(OR(ProjectType=\"New Construction\",ProjectType=\"Major Renovation\"),LPDCodeToProposed<0.1,ISNUMBER(FIND(\"Interior\",ProjectInfoTable[[#This Row],[Proposed Equipment]],1))),0,IFERROR(ProjectInfoTable[[#This Row],[Control Incentives Per Unit]]*ProjectInfoTable[[#This Row],[Control Quantity]]*ProjectInfoTable[[#This Row],[Control No. of TRL Units]],\"TRL Error\")))","v":""},{"$f":"IF(OR(ProjectInfoTable[[#This Row],[Control Measure]]=\"\",ProjectInfoTable[[#This Row],[OpSch]]=\"\",ProjectInfoTable[[#This Row],[Eligible Control Measure]]<>TRUE),\"\",IF(AND(ProjectType=\"Retrofit\",ProjectState=\"UT\",ISNUMBER(FIND(\"Post Purchase\",ProjectInfoTable[[#This Row],[Control Measure]],1))),\n\nIFERROR(MAX(MIN(ProjectInfoTable[[#This Row],[Control Incentives (pre-capping)]],ProjectInfoTable[[#This Row],[Control Cost (Allocated)]]*0.7),0),0),\n\nIF(ProjectType=\"Retrofit\",IF(ISNUMBER(FIND(\"Post Purchase\",ProjectInfoTable[[#This Row],[Control Measure]],1)),ProjectInfoTable[[#This Row],[Control Incentives (pre-capping)]],IFERROR($BI$3/$BH$3*ProjectInfoTable[[#This Row],[Control Incentives (pre-capping)]],\"\")),\n\nIF(ISNUMBER(FIND(\"Interior\",ProjectInfoTable[[#This Row],[Proposed Equipment]],1)),IF(LPDCodeToProposed>0.1,ProjectInfoTable[[#This Row],[Control Incentives (pre-capping)]],0),ProjectInfoTable[[#This Row],[Control Incentives (pre-capping)]]))))","v":""},{"$f":"IF(OR(ProjectInfoTable[[#This Row],[Control Incentives Per Unit]]=\"\",ProjectInfoTable[[#This Row],[Control TRL Unit]]=\"\"),\"\",IF(ProjectInfoTable[[#This Row],[Eligible Control Measure]]<>TRUE,\"Invalid Effective Date\",TEXT(ProjectInfoTable[[#This Row],[Control Incentives Per Unit]],\"$#,##0.00\")&\" / \"&ProjectInfoTable[[#This Row],[Control TRL Unit]]))","v":""},{"$f":"IF(ISNUMBER(FIND(\"SBE\",ProjectInfoTable[[#This Row],[Proposed Equipment]])),\"\",\n\nIF(LEN(ProjectInfoTable[[#This Row],[Proposed Equipment]])>\n\nIFERROR(FIND(\"]\",ProjectInfoTable[[#This Row],[Proposed Equipment]],1),0),\nSUBSTITUTE(\nIF(OR(ProjectInfoTable[[#This Row],[Control Method]]=\"separate\",ISNUMBER(FIND(\"Midstream\",ProjectInfoTable[[#This Row],[Fixture Measure]],1)),ISNUMBER(FIND(\"Midstream\",ProjectInfoTable[[#This Row],[Equipment Category]],1)),ISNUMBER(FIND(\"Prescriptive\",ProjectInfoTable[[#This Row],[Equipment Category]],1)),ISNUMBER(FIND(\"LED\",ProjectInfoTable[[#This Row],[Fixture Measure]],1)),ISNUMBER(FIND(\"LED Case\",ProjectInfoTable[[#This Row],[Fixture Measure]],1)),ISNUMBER(FIND(\"LED Decorative - Retrofit - WA\",ProjectInfoTable[[#This Row],[Fixture Measure]],1)),ISNUMBER(FIND(\"Lamp\",ProjectInfoTable[[#This Row],[Fixture Measure]],1)),ISNUMBER(FIND(\"Relamp\",ProjectInfoTable[[#This Row],[Fixture Measure]],1)),ISNUMBER(FIND(\"Wall Pack\",ProjectInfoTable[[#This Row],[Fixture Measure]],1)),ISNUMBER(FIND(\"Controls Only\",ProjectInfoTable[[#This Row],[Proposed Equipment]],1)),ISNUMBER(FIND(\"Re-Commissioning\",ProjectInfoTable[[#This Row],[Proposed Equipment]],1)),\n\nAND(OR(ISNUMBER(FIND(\"Exterior:\",ProjectInfoTable[[#This Row],[Proposed Equipment]],1)),ISNUMBER(FIND(\"Street:\",ProjectInfoTable[[#This Row],[Proposed Equipment]],1))),OR(ProjectState=\"ID\",ProjectState=\"UT\",ProjectState=\"WY\"))),\n\nIF(IFERROR(INDEX(ControlsLookup[],MATCH(IF(ProjectType=\"Retrofit\",LEFT(ProjectInfoTable[[#This Row],[Existing Equipment]],FIND(\":\",ProjectInfoTable[[#This Row],[Existing Equipment]],1)-1),LEFT(ProjectInfoTable[[#This Row],[Proposed Equipment]],FIND(\":\",ProjectInfoTable[[#This Row],[Proposed Equipment]],1)-1))&\"_\"&RIGHT(ProjectInfoTable[[#This Row],[Proposed Equipment]],LEN(ProjectInfoTable[[#This Row],[Proposed Equipment]])-FIND(\"]\",ProjectInfoTable[[#This Row],[Proposed Equipment]],1)-3),ControlsLookup[Controls Concatenate],0),MATCH(\n\nIF(ProjectType=\"Retrofit\",\"ControlMeasure_\",\"NCMRControlMeasure_\")&ProjectState,ControlsLookup[#Headers],0)),\"\")=0,\"\",\n\nIFERROR(INDEX(ControlsLookup[],MATCH(IF(ProjectType=\"Retrofit\",LEFT(ProjectInfoTable[[#This Row],[Existing Equipment]],FIND(\":\",ProjectInfoTable[[#This Row],[Existing Equipment]],1)-1),LEFT(ProjectInfoTable[[#This Row],[Proposed Equipment]],FIND(\":\",ProjectInfoTable[[#This Row],[Proposed Equipment]],1)-1))&\"_\"&RIGHT(ProjectInfoTable[[#This Row],[Proposed Equipment]],LEN(ProjectInfoTable[[#This Row],[Proposed Equipment]])-FIND(\"]\",ProjectInfoTable[[#This Row],[Proposed Equipment]],1)-3),ControlsLookup[Controls Concatenate],0),MATCH(\n\nIF(ProjectType=\"Retrofit\",\"ControlMeasure_\",\"NCMRControlMeasure_\")&ProjectState&IF(ProjectState=\"UT\",SegmentTag,\"\"),ControlsLookup[#Headers],0)),\"\")),\"\"),\"[NAMESUB]\",ProjectInfoTable[[#This Row],[Control Measure Name Sub]]),\"\"))","v":""},{"$f":"IF(ProjectInfoTable[[#This Row],[Proposed Equipment]]=\"\",\"\",IF(AND(ProjectState=\"UT\",ProjectType=\"Retrofit\",ISNUMBER(FIND(\"Re-Commissioning\",ProjectInfoTable[[#This Row],[Proposed Equipment]]))),\nIF(ProjectRecommissioning=\"only recommissioning\",\"Commissioning Only\",\"Commissioning w/ Lighting Upgrade\"),\"\"))","v":""},{"$f":"IFERROR(INDEX(INDIRECT(\"MeasureTable_\" & ProjectState & \"[Measure Reference Number]\"),MATCH(ProjectInfoTable[[#This Row],[Control Measure]],INDIRECT(\"MeasureTable_\" &ProjectState&\"[Measure Name]\"),0)),\"\")","v":""},{"$f":"IFERROR(\n    _xlfn.LET(\n        _xlpm.filteredVersions,\n            _xlfn._xlws.FILTER(\n                INDIRECT(\"MeasureTable_\" & ProjectState & \"[Version Number]\"),\n                (INDIRECT(\"MeasureTable_\" & ProjectState & \"[Measure Reference Number]\") = ProjectInfoTable[[#This Row],[Control Measure Reference Number]]) *\n                (INDIRECT(\"MeasureTable_\" & ProjectState & \"[Eligible Measure]\") = TRUE)\n            ),\n        INDEX(_xlpm.filteredVersions, 1)\n    ),\n    \"\"\n)","v":""},{"$f":"IFERROR(\n  _xlfn.LET(\n    _xlpm.refRange, INDIRECT(\"MeasureTable_\" & ProjectState & \"[Measure Reference Number]\"),\n    _xlpm.eligibleRange, INDIRECT(\"MeasureTable_\" & ProjectState & \"[Eligible Measure]\"),\n    _xlpm.countTrue, SUMPRODUCT(--(_xlpm.refRange = ProjectInfoTable[[#This Row],[Control Measure Reference Number]]), --(_xlpm.eligibleRange = TRUE)),\n    _xlpm.countNonBlank, SUMPRODUCT(--(_xlpm.refRange = ProjectInfoTable[[#This Row],[Control Measure Reference Number]]), --(_xlpm.eligibleRange <> \"\")),\n    IF(_xlpm.countNonBlank = 0, \"\", IF(_xlpm.countTrue >= 1, TRUE, FALSE))\n  ),\n  \"\"\n)","v":""},{"$f":"IF(ProjectInfoTable[[#This Row],[Proposed Equipment]]=\"\",\"\",IFERROR(INDEX(INDIRECT(\"EquipmentTable_\"&IF(ProjectType=\"Retrofit\",\"Retrofit_\",\"NCMR_\")&ProjectState&\"[controlMethod]\"),MATCH(LEFT(ProjectInfoTable[[#This Row],[Proposed Equipment]],FIND(\"[\",ProjectInfoTable[[#This Row],[Proposed Equipment]],1)-2),INDIRECT(\"EquipmentTable_\"&IF(ProjectType=\"Retrofit\",\"Retrofit_\",\"NCMR_\")&ProjectState&\"[equipmentProposed]\"),0)),\"\"))","v":""},{"$f":"IFERROR(VALUE(INDEX(INDIRECT(\"MeasureTable_\" & ProjectState & \"[CustomerIncentiveDollarperunit]\"),MATCH(ProjectInfoTable[[#This Row],[Control Measure]]&\" | TRUE\",INDIRECT(\"MeasureTable_\"&ProjectState&\"[MeasureEligibleConcatenate]\"),0))),\"\")","v":""},{"$f":"IFERROR(INDEX(INDIRECT(\"MeasureTable_\"&ProjectState&\"[SiteSpecificCalculation]\"),MATCH(ProjectInfoTable[[#This Row],[Control Measure]]&\" | TRUE\",INDIRECT(\"MeasureTable_\"&ProjectState&\"[MeasureEligibleConcatenate]\"),0)),\"\")","v":""},{"$f":"IFERROR(INDEX(INDIRECT(\"MeasureTable_\"&ProjectState&\"[GrossIncrementalAnnualElectricSavings ]\"),MATCH(ProjectInfoTable[[#This Row],[Control Measure]]&\" | TRUE\",INDIRECT(\"MeasureTable_\"&ProjectState&\"[MeasureEligibleConcatenate]\"),0)),\"\")","v":""},{"$f":"IFERROR(INDEX(INDIRECT(\"MeasureTable_\"&ProjectState&\"[GrossAverage onthly emand eduction]\"),MATCH(ProjectInfoTable[[#This Row],[Control Measure]]&\" | TRUE\",INDIRECT(\"MeasureTable_\"&ProjectState&\"[MeasureEligibleConcatenate]\"),0)),\"\")","v":""},{"$f":"IFERROR(INDEX(INDIRECT(\"MeasureTable_\"&ProjectState&\"[IncrementalMeasureCost]\"),MATCH(ProjectInfoTable[[#This Row],[Control Measure]]&\" | TRUE\",INDIRECT(\"MeasureTable_\"&ProjectState&\"[MeasureEligibleConcatenate]\"),0)),\"\")","v":""},{"$f":"IF(ProjectInfoTable[[#This Row],[Control Measure]]=\"\",\"\",IF(OR(ProjectInfoTable[[#This Row],[Control TRL Unit]]=\"Measure\",ProjectInfoTable[[#This Row],[Control TRL Unit]]=\"Linear ft.\"),IF(OR(ISNUMBER(FIND(\"Midstream\",ProjectInfoTable[[#This Row],[Control Measure]],1)),ISNUMBER(FIND(\"Lamp\",ProjectInfoTable[[#This Row],[Control Measure]],1))),ProjectInfoTable[[#This Row],[Quantity (Proposed)]]*ProjectInfoTable[[#This Row],[Lamps (Proposed)]],ProjectInfoTable[[#This Row],[Quantity (Proposed)]]),1))","v":""},{"$f":"IF(ProjectInfoTable[[#This Row],[Control Measure]]=\"\",\"\",IF(ISNUMBER(FIND(\"LF \",ProjectInfoTable[[#This Row],[Proposed Equipment]],1)),VALUE(RIGHT(LEFT(ProjectInfoTable[[#This Row],[Proposed Equipment]],FIND(\"LF \",ProjectInfoTable[[#This Row],[Proposed Equipment]],1)-1),LEN(LEFT(ProjectInfoTable[[#This Row],[Proposed Equipment]],FIND(\"LF \",ProjectInfoTable[[#This Row],[Proposed Equipment]],1)-1))-FIND(\"[\",ProjectInfoTable[[#This Row],[Proposed Equipment]],1))),IF(TRIM(UPPER(ProjectInfoTable[[#This Row],[Control TRL Unit]]))=\"WATT CONTROLLED\",IF(ISNUMBER(FIND(\"Controls Only\",ProjectInfoTable[[#This Row],[Proposed Equipment]],1)),IF(OR(ProjectType <> \"Retrofit\",ProjectInfoTable[[#This Row],[Space W (Proposed)]]>0),ProjectInfoTable[[#This Row],[Space W (Proposed)]],ProjectInfoTable[[#This Row],[Space W (Existing, Stipulated)]]),ProjectInfoTable[[#This Row],[Space W (Proposed)]]),IF(TRIM(UPPER(ProjectInfoTable[[#This Row],[Control TRL Unit]]))=\"KWH\",IF(ProjectInfoTable[[#This Row],[Control Measure kWh/yr Savings (Stipulated)]]=0,0,ROUND(ProjectInfoTable[[#This Row],[Control Measure kWh/yr Savings (Stipulated)]],2)),1))))","v":""},{"$f":"IFERROR(IF(LEN(ProjectInfoTable[[#This Row],[Proposed Equipment]])-(FIND(\"]\",ProjectInfoTable[[#This Row],[Proposed Equipment]],1))>0,\"Control(s)\",\"\"),\"\")","v":""},{"$f":"IFERROR(INDEX(INDIRECT(\"MeasureTable_\"&ProjectState&\"[Unit]\"),MATCH(ProjectInfoTable[[#This Row],[Control Measure]]&\" | TRUE\",INDIRECT(\"MeasureTable_\"&ProjectState&\"[MeasureEligibleConcatenate]\"),0)),\"\")","v":""},{"$f":"IFERROR(INDEX(INDIRECT(\"MeasureTable_\"&ProjectState&\"[ProjectCapPercent]\"),MATCH(ProjectInfoTable[[#This Row],[Control Measure]]&\" | TRUE\",INDIRECT(\"MeasureTable_\"&ProjectState&\"[MeasureEligibleConcatenate]\"),0)),\"\")","v":""},{"$f":"IF(OR(ProjectInfoTable[[#This Row],[Fixture Measure]]<>\"\",ProjectInfoTable[[#This Row],[Control Measure]]<>\"\"),1,\"\")","v":""},{"$f":"IF(ProjectInfoTable[[#This Row],[TRL Unit]]=\"\",\"\",IF(OR(ISNUMBER(SEARCH(\"measure\",ProjectInfoTable[[#This Row],[TRL Unit]])),ISNUMBER(SEARCH(\"linear ft\",ProjectInfoTable[[#This Row],[TRL Unit]])),ProjectInfoTable[[#This Row],[TRL Unit]]=0),990,991))","v":""},{"$f":"IFERROR(SUBSTITUTE(LEFT(ProjectInfoTable[[#This Row],[Proposed Equipment]],FIND(\"]\",ProjectInfoTable[[#This Row],[Proposed Equipment]],1)),\"Controls Only []\",\"\",1),\"\")","v":""},{"$f":"IF(ProjectInfoTable[[#This Row],[FixturesOnly]]=\"\",\"\",IF(ISNUMBER(FIND(\"L \",ProjectInfoTable[[#This Row],[Proposed Equipment]],1)),ProjectInfoTable[[#This Row],[Quantity (Proposed)]]*ProjectInfoTable[[#This Row],[Lamps (Proposed)]],ProjectInfoTable[[#This Row],[Quantity (Proposed)]]))","v":""},{"$f":"IFERROR(INDEX(ControlsLookup[Full Description],MATCH(RIGHT(ProjectInfoTable[[#This Row],[Proposed Equipment]],LEN(ProjectInfoTable[[#This Row],[Proposed Equipment]])-FIND(\"]\",ProjectInfoTable[[#This Row],[Proposed Equipment]],1)-3),ControlsLookup[Controls],0)),\"\")","v":""},{"$f":"IF(ProjectInfoTable[[#This Row],[ControlsOnly]]=\"\",\"\",IF(OR(ISNUMBER(FIND(\"Net\",ProjectInfoTable[[#This Row],[Proposed Equipment]],1)),ISNUMBER(FIND(\"Int\",ProjectInfoTable[[#This Row],[Proposed Equipment]],1))),ProjectInfoTable[[#This Row],[Quantity (Proposed)]],1))","v":""}]
[null,{"$f":"ROW(ProjectInfoTable[[#This Row],[OpSch]])-ROW(ProjectInfoTable[[#Headers],[OpSch]])","v":2},{"$f":"IFERROR(INDEX(RetrofitBaselineEquipment_Table[categoryBaseline],MATCH(RIGHT(LEFT(ProjectInfoTable[[#This Row],[Existing Equipment]],FIND(\" (\",ProjectInfoTable[[#This Row],[Existing Equipment]],1)-1),LEN(LEFT(ProjectInfoTable[[#This Row],[Existing Equipment]],FIND(\" (\",ProjectInfoTable[[#This Row],[Existing Equipment]],1)-1))-FIND(\": \",ProjectInfoTable[[#This Row],[Existing Equipment]],1)-1),RetrofitBaselineEquipment_Table[equipmentBaseline],0)),\"\")","v":""},null,null,null,null,{"$f":"IF(ProjectInfoTable[[#This Row],[Existing Equipment]]=\"\",\"\",IF(ISNUMBER(FIND(\"LF\",ProjectInfoTable[[#This Row],[Existing Equipment]],1)),1,IFERROR(VALUE(SUBSTITUTE(RIGHT(LEFT(ProjectInfoTable[[#This Row],[Existing Equipment]],FIND(\"L\",ProjectInfoTable[[#This Row],[Existing Equipment]],FIND(\"[\",ProjectInfoTable[[#This Row],[Existing Equipment]],1))-1),3),\"[\",\"\")),1)))","v":""},{"$f":"IF(ProjectInfoTable[[#This Row],[Existing Equipment]]=\"\",\"\",VALUE(SUBSTITUTE(RIGHT(LEFT(RIGHT(ProjectInfoTable[[#This Row],[Existing Equipment]],LEN(ProjectInfoTable[[#This Row],[Existing Equipment]])-IFERROR(FIND(\"[\",ProjectInfoTable[[#This Row],[Existing Equipment]],1),0)),IFERROR(FIND(\"W\",RIGHT(ProjectInfoTable[[#This Row],[Existing Equipment]],LEN(ProjectInfoTable[[#This Row],[Existing Equipment]])-IFERROR(FIND(\"[\",ProjectInfoTable[[#This Row],[Existing Equipment]],1),0)),1),0)),LEN(LEFT(RIGHT(ProjectInfoTable[[#This Row],[Existing Equipment]],LEN(ProjectInfoTable[[#This Row],[Existing Equipment]])-IFERROR(FIND(\"[\",ProjectInfoTable[[#This Row],[Existing Equipment]],1),0)),IFERROR(FIND(\"W\",RIGHT(ProjectInfoTable[[#This Row],[Existing Equipment]],LEN(ProjectInfoTable[[#This Row],[Existing Equipment]])-IFERROR(FIND(\"[\",ProjectInfoTable[[#This Row],[Existing Equipment]],1),0)),1),0)))-IFERROR(FIND(\"-\",LEFT(RIGHT(ProjectInfoTable[[#This Row],[Existing Equipment]],LEN(ProjectInfoTable[[#This Row],[Existing Equipment]])-IFERROR(FIND(\"[\",ProjectInfoTable[[#This Row],[Existing Equipment]],1),0)),IFERROR(FIND(\"W\",RIGHT(ProjectInfoTable[[#This Row],[Existing Equipment]],LEN(ProjectInfoTable[[#This Row],[Existing Equipment]])-IFERROR(FIND(\"[\",ProjectInfoTable[[#This Row],[Existing Equipment]],1),0)),1),0)),1),0)),\"W\",\"\")))","v":""},{"$f":"IF(ProjectInfoTable[[#This Row],[Existing Equipment]]=\"\",\"\",IF(AND(RIGHT(LEFT(ProjectInfoTable[[#This Row],[Existing Equipment]],FIND(\"]\",ProjectInfoTable[[#This Row],[Existing Equipment]],1)-1),1)<>\"W\"),IFERROR(TRIM(IF(IFERROR(FIND(\"FLT\",ProjectInfoTable[[#This Row],[Existing Equipment]],1),0)>0,LEFT(RIGHT(LEFT(ProjectInfoTable[[#This Row],[Existing Equipment]],FIND(\" (\",ProjectInfoTable[[#This Row],[Existing Equipment]],1)),LEN(LEFT(ProjectInfoTable[[#This Row],[Existing Equipment]],FIND(\" (\",ProjectInfoTable[[#This Row],[Existing Equipment]],1)))-FIND(\":\",ProjectInfoTable[[#This Row],[Existing Equipment]],1)-1),FIND(\" \",RIGHT(LEFT(ProjectInfoTable[[#This Row],[Existing Equipment]],FIND(\" (\",ProjectInfoTable[[#This Row],[Existing Equipment]],1)),LEN(LEFT(ProjectInfoTable[[#This Row],[Existing Equipment]],FIND(\" (\",ProjectInfoTable[[#This Row],[Existing Equipment]],1)))-FIND(\":\",ProjectInfoTable[[#This Row],[Existing Equipment]],1)-1),1)-1),RIGHT(LEFT(ProjectInfoTable[[#This Row],[Existing Equipment]],FIND(\" (\",ProjectInfoTable[[#This Row],[Existing Equipment]],1)),LEN(LEFT(ProjectInfoTable[[#This Row],[Existing Equipment]],FIND(\" (\",ProjectInfoTable[[#This Row],[Existing Equipment]],1)))-FIND(\":\",ProjectInfoTable[[#This Row],[Existing Equipment]],1)-1))&\" - \"&RIGHT(LEFT(ProjectInfoTable[[#This Row],[Existing Equipment]],FIND(\"]\",ProjectInfoTable[[#This Row],[Existing Equipment]],1)-1),LEN(LEFT(ProjectInfoTable[[#This Row],[Existing Equipment]],FIND(\"]\",ProjectInfoTable[[#This Row],[Existing Equipment]],1)-1))-FIND(\"W \",ProjectInfoTable[[#This Row],[Existing Equipment]],1)-3)),\"\"),\"\"))","v":""},{"$f":"IF(ProjectInfoTable[[#This Row],[Existing Equipment]]=\"\",\"\",IF(ProjectInfoTable[[#This Row],[Fixture/Ballast Check for Formula]]=\"\",IF(ISNUMBER(FIND(\"LF\",ProjectInfoTable[[#This Row],[Existing Equipment]],FIND(\"[\",ProjectInfoTable[[#This Row],[Existing Equipment]],1))),ProjectInfoTable[[#This Row],[Lamp W (Existing)]],ProjectInfoTable[[#This Row],[Lamps (Existing)]]*ProjectInfoTable[[#This Row],[Lamp W (Existing)]]),IFERROR(ROUND( ProjectInfoTable[[#This Row],[Lamps (Existing)]]*ProjectInfoTable[[#This Row],[Lamp W (Existing)]]*INDEX(FixtureWattageFormula_Table[A],MATCH(ProjectInfoTable[[#This Row],[Fixture/Ballast Check for Formula]],FixtureWattageFormula_Table[Concatenate],0))+INDEX(FixtureWattageFormula_Table[B],MATCH(ProjectInfoTable[[#This Row],[Fixture/Ballast Check for Formula]],FixtureWattageFormula_Table[Concatenate],0)),0),ProjectInfoTable[[#This Row],[Lamps (Existing)]]*ProjectInfoTable[[#This Row],[Lamp W (Existing)]])))","v":""},{"$f":"IF(OR(ISNUMBER(FIND(\"T8 \",ProjectInfoTable[[#This Row],[Existing Equipment]],1)),ISNUMBER(FIND(\"T5 \",ProjectInfoTable[[#This Row],[Existing Equipment]],1)),ISNUMBER(FIND(\"T12 \",ProjectInfoTable[[#This Row],[Existing Equipment]],1)),ISNUMBER(FIND(\"T12HO - 8\",ProjectInfoTable[[#This Row],[Existing Equipment]],1)),ISNUMBER(FIND(\"Incand\",ProjectInfoTable[[#This Row],[Existing Equipment]],1))),IFERROR(ROUND(INDEX(StipulatedWattage_Table[Stipulated fixture wattage],MATCH(MID(ProjectInfoTable[[#This Row],[Existing Equipment]],FIND(\"[\",ProjectInfoTable[[#This Row],[Existing Equipment]],1),FIND(\"]\",ProjectInfoTable[[#This Row],[Existing Equipment]],1)-FIND(\"[\",ProjectInfoTable[[#This Row],[Existing Equipment]],1)+1),StipulatedWattage_Table[Fixture Code],0)),0),ProjectInfoTable[[#This Row],[Fixture W (Existing, Actual)]]),ProjectInfoTable[[#This Row],[Fixture W (Existing, Actual)]])","v":""},{"$f":"IF(ProjectType=\"Retrofit\",IF(ProjectInfoTable[[#This Row],[Existing Equipment]]=\"\",\"\",ProjectInfoTable[[#This Row],[Quantity (Existing)]]*ProjectInfoTable[[#This Row],[Fixture W (Existing, Actual)]]),IF(ISNUMBER(FIND(\"Interior\",ProjectInfoTable[[#This Row],[Proposed Equipment]],1)),IF(ISNUMBER(FIND(\"Controls Only\",ProjectInfoTable[[#This Row],[Proposed Equipment]])),ProjectInfoTable[[#This Row],[Space W (Proposed)]],(AllowedWattage-SUMIFS(ProjectInfoTable[Space W (Proposed)],ProjectInfoTable[Proposed Equipment],\"*Interior*\",ProjectInfoTable[Proposed Equipment],\"*Controls Only*\"))*ProjectInfoTable[[#This Row],[Space W (Proposed)]]/(SUMIFS(ProjectInfoTable[Space W (Proposed)],ProjectInfoTable[Proposed Equipment],\"*Interior*\")-SUMIFS(ProjectInfoTable[Space W (Proposed)],ProjectInfoTable[Proposed Equipment],\"*Interior*\",ProjectInfoTable[Proposed Equipment],\"*Controls Only*\"))),\"\"))","v":""},{"$f":"IF(ProjectType=\"Retrofit\",IF(ProjectInfoTable[[#This Row],[Existing Equipment]]=\"\",\"\",ProjectInfoTable[[#This Row],[Quantity (Existing)]]*ProjectInfoTable[[#This Row],[Fixture W (Existing, Stipulated)]]),ProjectInfoTable[[#This Row],[Space W (Existing, Actual)]])","v":""},{"$f":"IFERROR(INDEX(OperatingHours_List,MATCH(ProjectInfoTable[[#This Row],[OpSch]],OperatingSchedules_List,0))*ProjectInfoTable[[#This Row],[Space W (Existing, Actual)]]/1000,\"\")","v":""},{"$f":"IFERROR(INDEX(OperatingHours_List,MATCH(ProjectInfoTable[[#This Row],[OpSch]],OperatingSchedules_List,0))*ProjectInfoTable[[#This Row],[Space W (Existing, Actual)]]/1000*(IFERROR(INDEX(ControlsLookup[],MATCH(RIGHT(ProjectInfoTable[[#This Row],[Existing Equipment]],LEN(ProjectInfoTable[[#This Row],[Existing Equipment]])-FIND(\"]\",ProjectInfoTable[[#This Row],[Existing Equipment]],1)-3),ControlsLookup[Controls],0),MATCH(\"CSF_\"&ProjectState,ControlsLookup[#Headers],0)),0))*-1,\"\")","v":""},{"$f":"IF(OR(ProjectInfoTable[[#This Row],[Fixture kWh (Existing, Actual)]]=\"\",ProjectInfoTable[[#This Row],[Control kWh (Existing, Actual)]]=\"\"),\"\",ProjectInfoTable[[#This Row],[Fixture kWh (Existing, Actual)]]+ProjectInfoTable[[#This Row],[Control kWh (Existing, Actual)]])","v":""},{"$f":"IFERROR(INDEX(OperatingHours_List,MATCH(ProjectInfoTable[[#This Row],[OpSch]],OperatingSchedules_List,0))*ProjectInfoTable[[#This Row],[Space W (Existing, Stipulated)]]/1000,\"\")","v":""},{"$f":"IFERROR(INDEX(OperatingHours_List,MATCH(ProjectInfoTable[[#This Row],[OpSch]],OperatingSchedules_List,0))*ProjectInfoTable[[#This Row],[Space W (Existing, Stipulated)]]/1000*(IFERROR(INDEX(ControlsLookup[],MATCH(RIGHT(ProjectInfoTable[[#This Row],[Existing Equipment]],LEN(ProjectInfoTable[[#This Row],[Existing Equipment]])-FIND(\"]\",ProjectInfoTable[[#This Row],[Existing Equipment]],1)-3),ControlsLookup[Controls],0),MATCH(\"CSF_\"&ProjectState,ControlsLookup[#Headers],0)),0))*-1,\"\")","v":""},{"$f":"IF(OR(ProjectInfoTable[[#This Row],[Fixture kWh (Existing, Stipulated)]]=\"\",ProjectInfoTable[[#This Row],[Control kWh (Existing, Stipulated)]]=\"\"),\"\",ProjectInfoTable[[#This Row],[Fixture kWh (Existing, Stipulated)]]+ProjectInfoTable[[#This Row],[Control kWh (Existing, Stipulated)]])","v":""},{"$f":"IF(\n AND(\n  OR(ProjectInfoTable[[#This Row],[Existing Equipment]]=\"\",ProjectInfoTable[[#This Row],[Quantity (Existing)]]=\"\"),\n  ProjectType=\"Retrofit\"\n ),\n \"\",\n IF(\n  ISNUMBER(FIND(\"Street:\",ProjectInfoTable[[#This Row],[Existing Equipment]],1)),\n  IF(\n   OR(\n    AND(ProjectState=\"UT\",RateSchedule=12),\n    AND(ProjectState=\"ID\",RateSchedule=12),\n    AND(ProjectState=\"WY\",RateSchedule=58)\n   ),\n   IFERROR(\n    INDEX(\n     StreetLightingRates_Table[],\n     MATCH(MID(ProjectInfoTable[[#This Row],[Existing Equipment]],FIND(\": \",ProjectInfoTable[[#This Row],[Existing Equipment]],1)+2,FIND(\" (\",ProjectInfoTable[[#This Row],[Existing Equipment]],1)-FIND(\": \",ProjectInfoTable[[#This Row],[Existing Equipment]],1)-2)&ProjectInfoTable[[#This Row],[Lamp W (Existing)]],StreetLightingRates_Table[TechWattage],0),\n     MATCH(ProjectState&RateSchedule,StreetLightingRates_Table[#Headers],0)\n    )\n    *\n    ProjectInfoTable[[#This Row],[Quantity (Existing)]]\n    *\n    ProjectInfoTable[[#This Row],[Lamps (Existing)]]\n    *\n    12,\n    ProjectInfoTable[[#This Row],[Space kWh (Existing, Actual)]]\n    *\n    INDEX(INDIRECT(\"RateSchedules_\"&ProjectState&\"_Table[kWh Rate]\"),MATCH(RateSchedule,INDIRECT(\"RateSchedules_\"&ProjectState&\"_Table[Rate Schedule]\"),0))\n   ),\n   IFERROR(\n    ProjectInfoTable[[#This Row],[Space kWh (Existing, Actual)]]*\n    INDEX(INDIRECT(\"RateSchedules_\"&ProjectState&\"_Table[kWh Rate]\"),MATCH(RateSchedule,INDIRECT(\"RateSchedules_\"&ProjectState&\"_Table[Rate Schedule]\"),0)),0)\n   +\n   IFERROR(IF(ISNUMBER(FIND(\"Interior:\",ProjectInfoTable[[#This Row],[Existing Equipment]],1)),\n    ProjectInfoTable[[#This Row],[Space W (Existing, Actual)]]/1000*12*DDF*\n    INDEX(INDIRECT(\"RateSchedules_\"&ProjectState&\"_Table[kW Rate]\"),MATCH(RateSchedule,INDIRECT(\"RateSchedules_\"&ProjectState&\"_Table[Rate Schedule]\"),0)),0),0)\n  ),\n  IFERROR(\n   ProjectInfoTable[[#This Row],[Space kWh (Existing, Actual)]]*\n   INDEX(INDIRECT(\"RateSchedules_\"&ProjectState&\"_Table[kWh Rate]\"),MATCH(RateSchedule,INDIRECT(\"RateSchedules_\"&ProjectState&\"_Table[Rate Schedule]\"),0)),\n   0\n  )\n  +\n  IFERROR(IF(OR(ISNUMBER(FIND(\"Interior:\",ProjectInfoTable[[#This Row],[Existing Equipment]],1)),AND(ProjectType<>\"Retrofit\",ISNUMBER(FIND(\"Interior:\",ProjectInfoTable[[#This Row],[Proposed Equipment]],1)))),\n   ProjectInfoTable[[#This Row],[Space W (Existing, Actual)]]/1000*12*DDF*\n   INDEX(INDIRECT(\"RateSchedules_\"&ProjectState&\"_Table[kW Rate]\"),MATCH(RateSchedule,INDIRECT(\"RateSchedules_\"&ProjectState&\"_Table[Rate Schedule]\"),0)),0),\n   0\n  )\n )\n)","v":0},{"$f":"IF(\n AND(\n  OR(ProjectInfoTable[[#This Row],[Existing Equipment]]=\"\",ProjectInfoTable[[#This Row],[Quantity (Existing)]]=\"\"),\n  ProjectType=\"Retrofit\"\n ),\n \"\",\n IF(\n  ISNUMBER(FIND(\"Street:\",ProjectInfoTable[[#This Row],[Existing Equipment]],1)),\n  IF(\n   OR(\n    AND(ProjectState=\"UT\",RateSchedule=12),\n    AND(ProjectState=\"ID\",RateSchedule=12),\n    AND(ProjectState=\"WY\",RateSchedule=58)\n   ),\n   IFERROR(\n    INDEX(\n     StreetLightingRates_Table[],\n     MATCH(MID(ProjectInfoTable[[#This Row],[Existing Equipment]],FIND(\": \",ProjectInfoTable[[#This Row],[Existing Equipment]],1)+2,FIND(\" (\",ProjectInfoTable[[#This Row],[Existing Equipment]],1)-FIND(\": \",ProjectInfoTable[[#This Row],[Existing Equipment]],1)-2)&ProjectInfoTable[[#This Row],[Lamp W (Existing)]],StreetLightingRates_Table[TechWattage],0),\n     MATCH(ProjectState&RateSchedule,StreetLightingRates_Table[#Headers],0)\n    )\n    *\n    ProjectInfoTable[[#This Row],[Quantity (Existing)]]\n    *\n    ProjectInfoTable[[#This Row],[Lamps (Existing)]]\n    *\n    12,\n    ProjectInfoTable[[#This Row],[Space kWh (Existing, Stipulated)]]\n    *\n    INDEX(INDIRECT(\"RateSchedules_\"&ProjectState&\"_Table[kWh Rate]\"),MATCH(RateSchedule,INDIRECT(\"RateSchedules_\"&ProjectState&\"_Table[Rate Schedule]\"),0))\n   ),\n   IFERROR(\n    ProjectInfoTable[[#This Row],[Space kWh (Existing, Stipulated)]]*\n    INDEX(INDIRECT(\"RateSchedules_\"&ProjectState&\"_Table[kWh Rate]\"),MATCH(RateSchedule,INDIRECT(\"RateSchedules_\"&ProjectState&\"_Table[Rate Schedule]\"),0)),0)\n   +\n   IFERROR(IF(ISNUMBER(FIND(\"Interior:\",ProjectInfoTable[[#This Row],[Existing Equipment]],1)),\n    ProjectInfoTable[[#This Row],[Space W (Existing, Stipulated)]]/1000*12*DDF*\n    INDEX(INDIRECT(\"RateSchedules_\"&ProjectState&\"_Table[kW Rate]\"),MATCH(RateSchedule,INDIRECT(\"RateSchedules_\"&ProjectState&\"_Table[Rate Schedule]\"),0)),0),0)\n  ),\n  IFERROR(\n   ProjectInfoTable[[#This Row],[Space kWh (Existing, Stipulated)]]*\n   INDEX(INDIRECT(\"RateSchedules_\"&ProjectState&\"_Table[kWh Rate]\"),MATCH(RateSchedule,INDIRECT(\"RateSchedules_\"&ProjectState&\"_Table[Rate Schedule]\"),0)),\n   0\n  )\n  +\n  IFERROR(IF(OR(ISNUMBER(FIND(\"Interior:\",ProjectInfoTable[[#This Row],[Existing Equipment]],1)),AND(ProjectType<>\"Retrofit\",ISNUMBER(FIND(\"Interior:\",ProjectInfoTable[[#This Row],[Proposed Equipment]],1)))),\n   ProjectInfoTable[[#This Row],[Space W (Existing, Stipulated)]]/1000*12*DDF*\n   INDEX(INDIRECT(\"RateSchedules_\"&ProjectState&\"_Table[kW Rate]\"),MATCH(RateSchedule,INDIRECT(\"RateSchedules_\"&ProjectState&\"_Table[Rate Schedule]\"),0)),0),\n   0\n  )\n )\n)","v":0},{"$f":"IF(ProjectType=\"Retrofit\",IFERROR(INDEX(RetrofitBaselineEquipment_Table[categoryBaseline],MATCH(RIGHT(LEFT(ProjectInfoTable[[#This Row],[Proposed Equipment]],FIND(\" (\",ProjectInfoTable[[#This Row],[Proposed Equipment]],1)-1),LEN(LEFT(ProjectInfoTable[[#This Row],[Proposed Equipment]],FIND(\" (\",ProjectInfoTable[[#This Row],[Proposed Equipment]],1)-1))-FIND(\": \",ProjectInfoTable[[#This Row],[Proposed Equipment]],1)-1),RetrofitBaselineEquipment_Table[equipmentBaseline],0)),\"\"),IFERROR(INDEX(#REF!,MATCH(RIGHT(LEFT(ProjectInfoTable[[#This Row],[Proposed Equipment]],FIND(\" (\",ProjectInfoTable[[#This Row],[Proposed Equipment]],1)-1),LEN(LEFT(ProjectInfoTable[[#This Row],[Proposed Equipment]],FIND(\" (\",ProjectInfoTable[[#This Row],[Proposed Equipment]],1)-1))-FIND(\": \",ProjectInfoTable[[#This Row],[Proposed Equipment]],1)-1),#REF!,0)),\"\"))","v":""},{"$f":"IF(ProjectInfoTable[[#This Row],[Proposed Equipment]]=\"\",\"\",IF(ISNUMBER(SEARCH(\"Controls Only\",ProjectInfoTable[[#This Row],[Proposed Equipment]])),\"Controls Only\",IF(ProjectType=\"Retrofit\",_xlfn.LET(_xlpm.k,LEFT(ProjectInfoTable[[#This Row],[Proposed Equipment]],FIND(\"[\",ProjectInfoTable[[#This Row],[Proposed Equipment]])-2),_xlpm.ep,_xlfn.SWITCH(ProjectState,\"UT\",EquipmentTable_Retrofit_UT[equipmentProposed],\"WY\",EquipmentTable_Retrofit_WY[equipmentProposed],\"ID\",EquipmentTable_Retrofit_ID[equipmentProposed]),_xlpm.cp,_xlfn.SWITCH(ProjectState,\"UT\",EquipmentTable_Retrofit_UT[categoryProposed],\"WY\",EquipmentTable_Retrofit_WY[categoryProposed],\"ID\",EquipmentTable_Retrofit_ID[categoryProposed]),_xlfn.XLOOKUP(_xlpm.k,_xlpm.ep,_xlpm.cp,\"Non-eligible fixture - Retrofit - \"&ProjectState)),_xlfn.LET(_xlpm.k,MID(ProjectInfoTable[[#This Row],[Proposed Equipment]],FIND(\": \",ProjectInfoTable[[#This Row],[Proposed Equipment]])+2,FIND(\" (\",ProjectInfoTable[[#This Row],[Proposed Equipment]])-(FIND(\": \",ProjectInfoTable[[#This Row],[Proposed Equipment]])+2)),_xlpm.ep,_xlfn.SWITCH(ProjectState,\"UT\",EquipmentTable_NCMR_UT[equipmentProposed],\"WY\",EquipmentTable_NCMR_WY[equipmentProposed],\"ID\",EquipmentTable_NCMR_ID[equipmentProposed]),_xlpm.cp,_xlfn.SWITCH(ProjectState,\"UT\",EquipmentTable_NCMR_UT[categoryProposed],\"WY\",EquipmentTable_NCMR_WY[categoryProposed],\"ID\",EquipmentTable_NCMR_ID[categoryProposed]),_xlfn.XLOOKUP(_xlpm.k,_xlpm.ep,_xlpm.cp,\"Non-eligible fixture - NCMR - \"&ProjectState)))))","v":""},null,null,"ü",{"$f":"IF(ProjectInfoTable[[#This Row],[Proposed Equipment]]=\"\",\"\",IF(ProjectInfoTable[[#This Row],[Measure Selection]]=\"\",0,IF(ISNUMBER(FIND(\"LF\",ProjectInfoTable[[#This Row],[Proposed Equipment]],1)),1,IFERROR(VALUE(SUBSTITUTE(RIGHT(LEFT(ProjectInfoTable[[#This Row],[Proposed Equipment]],FIND(\"L\",ProjectInfoTable[[#This Row],[Proposed Equipment]],FIND(\"[\",ProjectInfoTable[[#This Row],[Proposed Equipment]],1))-1),2),\"[\",\"\")),IFERROR(LEFT(RIGHT(ProjectInfoTable[[#This Row],[Proposed Equipment]],LEN(ProjectInfoTable[[#This Row],[Proposed Equipment]])-FIND(\"-lamp\",ProjectInfoTable[[#This Row],[Proposed Equipment]],1)+2),1),1)))))","v":""},{"$f":"IF(ProjectInfoTable[[#This Row],[Proposed Equipment]]=\"\",\"\",IF(ProjectInfoTable[[#This Row],[Measure Selection]]=\"\",0,IFERROR(\n\nIF(ISNUMBER(FIND(\"W]\",ProjectInfoTable[[#This Row],[Proposed Equipment]])),\nRIGHT(MID(ProjectInfoTable[[#This Row],[Proposed Equipment]],FIND(\"W]\",ProjectInfoTable[[#This Row],[Proposed Equipment]],FIND(\"[\",ProjectInfoTable[[#This Row],[Proposed Equipment]]))-7,7),\nLEN(MID(ProjectInfoTable[[#This Row],[Proposed Equipment]],FIND(\"W]\",ProjectInfoTable[[#This Row],[Proposed Equipment]],FIND(\"[\",ProjectInfoTable[[#This Row],[Proposed Equipment]]))-7,7)) -\nIFERROR(FIND(\" - \",MID(ProjectInfoTable[[#This Row],[Proposed Equipment]],FIND(\"W]\",ProjectInfoTable[[#This Row],[Proposed Equipment]],FIND(\"[\",ProjectInfoTable[[#This Row],[Proposed Equipment]]))-7,7))+2,\nFIND(\"[\",MID(ProjectInfoTable[[#This Row],[Proposed Equipment]],FIND(\"W]\",ProjectInfoTable[[#This Row],[Proposed Equipment]],FIND(\"[\",ProjectInfoTable[[#This Row],[Proposed Equipment]]))-7,7)))),\n\nIF(ISNUMBER(FIND(\"[\",MID(ProjectInfoTable[[#This Row],[Proposed Equipment]],FIND(\"W \",ProjectInfoTable[[#This Row],[Proposed Equipment]],FIND(\"[\",ProjectInfoTable[[#This Row],[Proposed Equipment]]))-7,7))),\nRIGHT(MID(ProjectInfoTable[[#This Row],[Proposed Equipment]],FIND(\"W \",ProjectInfoTable[[#This Row],[Proposed Equipment]],FIND(\"[\",ProjectInfoTable[[#This Row],[Proposed Equipment]]))-7,7),\nLEN(MID(ProjectInfoTable[[#This Row],[Proposed Equipment]],FIND(\"W \",ProjectInfoTable[[#This Row],[Proposed Equipment]],FIND(\"[\",ProjectInfoTable[[#This Row],[Proposed Equipment]]))-7,7)) -\nIFERROR(FIND(\" - \",MID(ProjectInfoTable[[#This Row],[Proposed Equipment]],FIND(\"W \",ProjectInfoTable[[#This Row],[Proposed Equipment]],FIND(\"[\",ProjectInfoTable[[#This Row],[Proposed Equipment]]))-7,7))+2,\nFIND(\"[\",MID(ProjectInfoTable[[#This Row],[Proposed Equipment]],FIND(\"W \",ProjectInfoTable[[#This Row],[Proposed Equipment]],FIND(\"[\",ProjectInfoTable[[#This Row],[Proposed Equipment]]))-7,7)))),\n\nRIGHT(MID(ProjectInfoTable[[#This Row],[Proposed Equipment]],FIND(\"W \",ProjectInfoTable[[#This Row],[Proposed Equipment]],FIND(\"[\",ProjectInfoTable[[#This Row],[Proposed Equipment]]))-7,7),\nLEN(MID(ProjectInfoTable[[#This Row],[Proposed Equipment]],FIND(\"W \",ProjectInfoTable[[#This Row],[Proposed Equipment]],FIND(\"[\",ProjectInfoTable[[#This Row],[Proposed Equipment]]))-7,7)) -\nFIND(\" - \",MID(ProjectInfoTable[[#This Row],[Proposed Equipment]],FIND(\"W \",ProjectInfoTable[[#This Row],[Proposed Equipment]],FIND(\"[\",ProjectInfoTable[[#This Row],[Proposed Equipment]]))-7,7))-2\n))),0)))","v":""},{"$f":"IF(ProjectInfoTable[[#This Row],[Proposed Equipment]]=\"\",\"\",IFERROR(ProjectInfoTable[[#This Row],[Lamps (Proposed)]]*ProjectInfoTable[[#This Row],[Lamp W (Proposed)]],\"\"))","v":""},{"$f":"IF(ProjectInfoTable[[#This Row],[Proposed Equipment]]=\"\",\"\",IFERROR(ProjectInfoTable[[#This Row],[Quantity (Proposed)]]*ProjectInfoTable[[#This Row],[Fixture W (Proposed)]],\"\"))","v":""},{"$f":"IFERROR(INDEX(OperatingHours_List,MATCH(ProjectInfoTable[[#This Row],[OpSch]],OperatingSchedules_List,0))*ProjectInfoTable[[#This Row],[Space W (Proposed)]]/1000,\"\")","v":""},{"$f":"IF(OR(ISNUMBER(FIND(\"Controls Only\",ProjectInfoTable[[#This Row],[Proposed Equipment]],1)),ProjectInfoTable[[#This Row],[ControlsOnly]]=\"Re-Commissioning\"),\"Controls Only\",IFERROR(INDEX(OperatingHours_List,MATCH(ProjectInfoTable[[#This Row],[OpSch]],OperatingSchedules_List,0))*ProjectInfoTable[[#This Row],[Space W (Proposed)]]/1000*(IFERROR(INDEX(ControlsLookup[],MATCH(SUBSTITUTE(RIGHT(ProjectInfoTable[[#This Row],[Proposed Equipment]],LEN(ProjectInfoTable[[#This Row],[Proposed Equipment]])-FIND(\"]\",ProjectInfoTable[[#This Row],[Proposed Equipment]],1)-3),\" reused\",\"\"),ControlsLookup[Controls],0),MATCH(\"CSF_\"&ProjectState,ControlsLookup[#Headers],0)),0))*-1,\"\"))","v":""},{"$f":"IF(OR(ProjectInfoTable[[#This Row],[Fixture kWh (Proposed)]]=\"\",ProjectInfoTable[[#This Row],[Control kWh (Proposed)]]=\"\"),\"\",IFERROR(ProjectInfoTable[[#This Row],[Fixture kWh (Proposed)]]+ProjectInfoTable[[#This Row],[Control kWh (Proposed)]],0))","v":""},{"$f":"IF(\n OR(\n  ProjectInfoTable[[#This Row],[Proposed Equipment]]=\"\",\n  ProjectInfoTable[[#This Row],[Quantity (Proposed)]]=\"\"\n ),\n \"\",\n IF(\n  AND(\n   OR(\n    AND(\n     ProjectState=\"UT\",\n     RateSchedule=12\n    ),\n    AND(\n     ProjectState=\"ID\",\n     RateSchedule=12\n    ),\n    AND(\n     ProjectState=\"WY\",\n     RateSchedule=58\n    )\n   ),\n   ISNUMBER(FIND(\"Street:\",ProjectInfoTable[[#This Row],[Existing Equipment]],1))\n  ),\n  IF(\n   AND(\n    RateSchedule=53,\n    ISNUMBER(FIND(\"LED\",ProjectInfoTable[[#This Row],[Proposed Equipment]],1))\n   ),\n   ProjectInfoTable[[#This Row],[Fixture kWh (Proposed)]]\n   *\n   INDEX(\n    INDIRECT(\"RateSchedules_\"&ProjectState&\"_Table[kWh Rate]\"),\n    MATCH(RateSchedule,INDIRECT(\"RateSchedules_\"&ProjectState&\"_Table[Rate Schedule]\"),0)\n   ),\n   IFERROR(INDEX(\n    StreetLightingRates_Table[],\n    MATCH(\"LED\"&IF(AND(ProjectInfoTable[[#This Row],[Fixture W (Proposed)]]>0,ProjectInfoTable[[#This Row],[Fixture W (Proposed)]]<=70),70,IF(AND(ProjectInfoTable[[#This Row],[Fixture W (Proposed)]]>70,ProjectInfoTable[[#This Row],[Fixture W (Proposed)]]<=100),100,IF(AND(ProjectInfoTable[[#This Row],[Fixture W (Proposed)]]>100,ProjectInfoTable[[#This Row],[Fixture W (Proposed)]]<=150),150,IF(AND(ProjectInfoTable[[#This Row],[Fixture W (Proposed)]]>150,ProjectInfoTable[[#This Row],[Fixture W (Proposed)]]<=200),200,IF(AND(ProjectInfoTable[[#This Row],[Fixture W (Proposed)]]>200,ProjectInfoTable[[#This Row],[Fixture W (Proposed)]]<=250),250,IF(AND(ProjectInfoTable[[#This Row],[Fixture W (Proposed)]]>250,ProjectInfoTable[[#This Row],[Fixture W (Proposed)]]<=400),400,\"\")))))),StreetLightingRates_Table[TechWattage],0),\n    MATCH(ProjectState&RateSchedule,StreetLightingRates_Table[#Headers],0)\n   )\n   *ProjectInfoTable[[#This Row],[Lamps (Proposed)]]*ProjectInfoTable[[#This Row],[Quantity (Proposed)]]*12,\n  ProjectInfoTable[[#This Row],[Space kWh (Proposed)]]*INDEX(INDIRECT(\"RateSchedules_\"&ProjectState&\"_Table[kWh Rate]\"),MATCH(RateSchedule,INDIRECT(\"RateSchedules_\"&ProjectState&\"_Table[Rate Schedule]\"),0)))),\n  IFERROR(ProjectInfoTable[[#This Row],[Space kWh (Proposed)]]*INDEX(INDIRECT(\"RateSchedules_\"&ProjectState&\"_Table[kWh Rate]\"),MATCH(RateSchedule,INDIRECT(\"RateSchedules_\"&ProjectState&\"_Table[Rate Schedule]\"),0)),0)\n  +\n  IF(OR(ISNUMBER(FIND(\"Exterior:\",ProjectInfoTable[[#This Row],[Existing Equipment]],1)),ISNUMBER(FIND(\"Street:\",ProjectInfoTable[[#This Row],[Existing Equipment]],1))),0,IFERROR(ProjectInfoTable[[#This Row],[Space W (Proposed)]]/1000*12*DDF*INDEX(INDIRECT(\"RateSchedules_\"&ProjectState&\"_Table[kW Rate]\"),MATCH(RateSchedule,INDIRECT(\"RateSchedules_\"&ProjectState&\"_Table[Rate Schedule]\"),0)),0))\n )\n)","v":""},{"$f":"IF(ProjectInfoTable[[#This Row],[Measure Selection]]=\"\",0,IF(ProjectType=\"Retrofit\",IFERROR((ProjectInfoTable[[#This Row],[Space W (Existing, Actual)]]-ProjectInfoTable[[#This Row],[Space W (Proposed)]])/ProjectInfoTable[[#This Row],[Space W (Existing, Actual)]],\"\"),IF(AND(ProjectInfoTable[[#This Row],[Proposed Equipment]]=\"\",ProjectInfoTable[[#This Row],[Quantity (Proposed)]]=\"\"),\"\",IFERROR((ProjectInfoTable[[#This Row],[Space W (Existing, Stipulated)]]-ProjectInfoTable[[#This Row],[Space W (Proposed)]])/ProjectInfoTable[[#This Row],[Space W (Existing, Stipulated)]],\"n/a\"))))","v":""},{"$f":"IF(ProjectInfoTable[[#This Row],[Measure Selection]]=\"\",0,IF(ProjectType=\"Retrofit\",IFERROR((ProjectInfoTable[[#This Row],[Space W (Existing, Stipulated)]]-ProjectInfoTable[[#This Row],[Space W (Proposed)]])/ProjectInfoTable[[#This Row],[Space W (Existing, Stipulated)]],\"\"),ProjectInfoTable[[#This Row],[% Wattage Reduction (Actual)]]))","v":""},{"$f":"IFERROR(IF(OR(ProjectInfoTable[[#This Row],[Measure Selection]]=\"\",ProjectInfoTable[[#This Row],[ControlsOnly]]=\"Re-Commissioning\"),0,IF(AND(ProjectType=\"Retrofit\",LEFT(ProjectInfoTable[[#This Row],[Existing Equipment]],FIND(\": \",ProjectInfoTable[[#This Row],[Existing Equipment]],1)-1)<>\"Interior\"),0,((ProjectInfoTable[[#This Row],[Space W (Existing, Actual)]]-ProjectInfoTable[[#This Row],[Space W (Proposed)]])/1000*DDF)-IF(ProjectInfoTable[[#This Row],[Midstream Measure Name]]<>\"\",IFERROR(ProjectInfoTable[[#This Row],[kW Per Unit (Midstream)]]*ProjectInfoTable[[#This Row],[Quantity]]*ProjectInfoTable[[#This Row],[No. of TRL Units]],0),0))),\"\")","v":""},{"$f":"IFERROR(IF(OR(ProjectInfoTable[[#This Row],[Measure Selection]]=\"\",ProjectInfoTable[[#This Row],[ControlsOnly]]=\"Re-Commissioning\"),0,IF(AND(ISNUMBER(VALUE(ProjectInfoTable[[#This Row],[kW Per Unit]])),ProjectInfoTable[[#This Row],[kW Per Unit]]<>0),ROUND(ProjectInfoTable[[#This Row],[kW Per Unit]]*ProjectInfoTable[[#This Row],[Quantity]]*ProjectInfoTable[[#This Row],[No. of TRL Units]],2),IF(OR(AND(ProjectType=\"Retrofit\",LEFT(ProjectInfoTable[[#This Row],[Existing Equipment]],FIND(\": \",ProjectInfoTable[[#This Row],[Existing Equipment]],1)-1)<>\"Interior\"),AND(ProjectInfoTable[[#This Row],[Incentives Per Unit]]=0,INDEX(StipulatedSavingsYesNo_Table[Stipulated Savings?],MATCH(ProjectState,StipulatedSavingsYesNo_Table[State],0))=\"No\")),0,IF(ISNUMBER(FIND(\"Controls Only\",ProjectInfoTable[[#This Row],[Proposed Equipment]],1)),0,ROUND(((ProjectInfoTable[[#This Row],[Space W (Existing, Stipulated)]]-ProjectInfoTable[[#This Row],[Space W (Proposed)]])/1000*DDF)-IF(ProjectInfoTable[[#This Row],[Midstream Measure Name]]<>\"\",IFERROR(ProjectInfoTable[[#This Row],[kW Per Unit (Midstream)]]*ProjectInfoTable[[#This Row],[Quantity]]*ProjectInfoTable[[#This Row],[No. of TRL Units]],0),0),2))))),\"\")","v":""},{"$f":"IFERROR(IF(OR(ProjectInfoTable[[#This Row],[Control kWh (Proposed)]]=\"Controls Only\",ProjectInfoTable[[#This Row],[Measure Selection]]=\"\"),0,ROUND((ProjectInfoTable[[#This Row],[Fixture kWh (Existing, Actual)]]-ProjectInfoTable[[#This Row],[Fixture kWh (Proposed)]])*IF(VALUE(SpaceTypesInfo_Table[[#Totals],[HVAC Effects]])=0,1,1+VALUE(SpaceTypesInfo_Table[[#Totals],[HVAC Effects]])),0)),\"\")","v":""},{"$f":"IFERROR(IF(ProjectInfoTable[[#This Row],[Control kWh (Proposed)]]=\"Controls Only\",ROUND(IFERROR(INDEX(OperatingHours_List,MATCH(ProjectInfoTable[[#This Row],[OpSch]],OperatingSchedules_List,0))*IF(OR(ProjectType <> \"Retrofit\",ProjectInfoTable[[#This Row],[Space W (Proposed)]]>0),ProjectInfoTable[[#This Row],[Space W (Proposed)]],ProjectInfoTable[[#This Row],[Space W (Existing, Actual)]])/1000*(IFERROR(INDEX(ControlsLookup[],MATCH(RIGHT(ProjectInfoTable[[#This Row],[Proposed Equipment]],LEN(ProjectInfoTable[[#This Row],[Proposed Equipment]])-FIND(\"]\",ProjectInfoTable[[#This Row],[Proposed Equipment]],1)-3),ControlsLookup[Controls],0),MATCH(\"CSF_\"&ProjectState,ControlsLookup[#Headers],0)),0))*IF(VALUE(SpaceTypesInfo_Table[[#Totals],[HVAC Effects]])=0,1,1+VALUE(SpaceTypesInfo_Table[[#Totals],[HVAC Effects]])),\"\"),0),ROUND(IFERROR((ProjectInfoTable[[#This Row],[Control kWh (Existing, Actual)]]-ProjectInfoTable[[#This Row],[Control kWh (Proposed)]])*IF(VALUE(SpaceTypesInfo_Table[[#Totals],[HVAC Effects]])=0,1,1+VALUE(SpaceTypesInfo_Table[[#Totals],[HVAC Effects]])),\"\"),0)),\"\")","v":""},{"$f":"IF(OR(ProjectInfoTable[[#This Row],[Proposed Equipment]]=\"\",ProjectInfoTable[[#This Row],[Quantity (Proposed)]]=\"\"),\"\",IF(ProjectInfoTable[[#This Row],[Fixture Measure]]=\"\",0,IF(AND(ProjectInfoTable[[#This Row],[Incentives Per Unit]]=0,INDEX(StipulatedSavingsYesNo_Table[Stipulated Savings?],MATCH(ProjectState,StipulatedSavingsYesNo_Table[State],0))=\"No\"),0,ProjectInfoTable[[#This Row],[Total   kWh/yr Savings (Actual)]]-ProjectInfoTable[[#This Row],[Control Measure kWh/yr Savings (Actual)]])))","v":""},{"$f":"IF(OR(ProjectInfoTable[[#This Row],[Proposed Equipment]]=\"\",ProjectInfoTable[[#This Row],[Quantity (Proposed)]]=\"\"),\"\",IF(ProjectInfoTable[[#This Row],[Control Measure]]=\"\",0,ProjectInfoTable[[#This Row],[Control kWh/yr Savings (Actual)]]))","v":""},{"$f":"IF(AND(ProjectInfoTable[[#This Row],[Incentives Per Unit]]=0,INDEX(StipulatedSavingsYesNo_Table[Stipulated Savings?],MATCH(ProjectState,StipulatedSavingsYesNo_Table[State],0))=\"No\"),ProjectInfoTable[[#This Row],[Fixture kWh/yr Savings (Actual)]]+IF(ProjectInfoTable[[#This Row],[Control Measure kWh/yr Savings (Actual)]]=0,0,ProjectInfoTable[[#This Row],[Control kWh/yr Savings (Actual)]]),IF(AND(ProjectInfoTable[[#This Row],[Fixture kWh/yr Savings (Actual)]]=\"\",ProjectInfoTable[[#This Row],[Control kWh/yr Savings (Actual)]]=\"\"),\"\",ROUND(IF(ProjectInfoTable[[#This Row],[Fixture kWh/yr Savings (Actual)]]=\"\",0,ProjectInfoTable[[#This Row],[Fixture kWh/yr Savings (Actual)]])+IF(ProjectInfoTable[[#This Row],[Control kWh/yr Savings (Actual)]]=\"\",0,ProjectInfoTable[[#This Row],[Control kWh/yr Savings (Actual)]])-IF(ProjectInfoTable[[#This Row],[Midstream Measure Name]]<>\"\",IFERROR(ProjectInfoTable[[#This Row],[kWh Per Unit (Midstream)]]*ProjectInfoTable[[#This Row],[Quantity]]*ProjectInfoTable[[#This Row],[No. of TRL Units]],0),0),0)))","v":""},{"$f":"IFERROR(IF(OR(ProjectInfoTable[[#This Row],[Measure Selection]]=\"\",ProjectInfoTable[[#This Row],[ControlsOnly]]=\"Re-Commissioning\"),0,IF(AND(ProjectInfoTable[[#This Row],[Incentives Per Unit]]=0,INDEX(StipulatedSavingsYesNo_Table[Stipulated Savings?],MATCH(ProjectState,StipulatedSavingsYesNo_Table[State],0))=\"No\"),0,IF(ISNUMBER(FIND(\"Controls Only\",ProjectInfoTable[[#This Row],[Proposed Equipment]],1)),0,ROUND((ProjectInfoTable[[#This Row],[Fixture kWh (Existing, Stipulated)]]-ProjectInfoTable[[#This Row],[Fixture kWh (Proposed)]])*IF(VALUE(SpaceTypesInfo_Table[[#Totals],[HVAC Effects]])=0,1,1+VALUE(SpaceTypesInfo_Table[[#Totals],[HVAC Effects]])),0)))),\"\")","v":""},{"$f":"IFERROR(IF(ProjectInfoTable[[#This Row],[Control kWh (Proposed)]]=\"Controls Only\",ROUND(IFERROR(INDEX(OperatingHours_List,MATCH(ProjectInfoTable[[#This Row],[OpSch]],OperatingSchedules_List,0))*IF(OR(ProjectType <> \"Retrofit\",ProjectInfoTable[[#This Row],[Space W (Proposed)]]>0),ProjectInfoTable[[#This Row],[Space W (Proposed)]],ProjectInfoTable[[#This Row],[Space W (Existing, Stipulated)]])/1000*(IFERROR(INDEX(ControlsLookup[],MATCH(RIGHT(ProjectInfoTable[[#This Row],[Proposed Equipment]],LEN(ProjectInfoTable[[#This Row],[Proposed Equipment]])-FIND(\"]\",ProjectInfoTable[[#This Row],[Proposed Equipment]],1)-3),ControlsLookup[Controls],0),MATCH(\"CSF_\"&ProjectState,ControlsLookup[#Headers],0)),0))*IF(VALUE(SpaceTypesInfo_Table[[#Totals],[HVAC Effects]])=0,1,1+VALUE(SpaceTypesInfo_Table[[#Totals],[HVAC Effects]])),\"\"),0),ROUND(IFERROR((ProjectInfoTable[[#This Row],[Control kWh (Existing, Stipulated)]]-ProjectInfoTable[[#This Row],[Control kWh (Proposed)]])*IF(VALUE(SpaceTypesInfo_Table[[#Totals],[HVAC Effects]])=0,1,1+VALUE(SpaceTypesInfo_Table[[#Totals],[HVAC Effects]])),INDEX(ControlsLookup[],MATCH(RIGHT(ProjectInfoTable[[#This Row],[Proposed Equipment]],LEN(ProjectInfoTable[[#This Row],[Proposed Equipment]])-FIND(\"-\",ProjectInfoTable[[#This Row],[Proposed Equipment]],LEN(ProjectInfoTable[[#This Row],[Proposed Equipment]])-15)-1),ControlsLookup[Controls],0),MATCH(\"CSF_\"&ProjectState,ControlsLookup[#Headers],0))*IF(NOT(ISNUMBER(VALUE(ProjectInfoTable[[#This Row],[kWh Per Unit]]))),ProjectInfoTable[[#This Row],[Fixture kWh/yr Savings (Stipulated)]],ProjectInfoTable[[#This Row],[kWh Per Unit]]*ProjectInfoTable[[#This Row],[Quantity]]*ProjectInfoTable[[#This Row],[No. of TRL Units]])),0)),IF(OR(ProjectType=\"New Construction\",ProjectType=\"Major Renovation\"),IF(ProjectInfoTable[[#This Row],[Control kWh (Proposed)]]=\"\",\"\",0),\"\"))","v":""},{"$f":"IF(OR(ProjectInfoTable[[#This Row],[Proposed Equipment]]=\"\",ProjectInfoTable[[#This Row],[Quantity (Proposed)]]=\"\"),\"\",IF(ProjectInfoTable[[#This Row],[Fixture Measure]]=\"\",0,IF(AND(ProjectInfoTable[[#This Row],[Incentives Per Unit]]=0,INDEX(StipulatedSavingsYesNo_Table[Stipulated Savings?],MATCH(ProjectState,StipulatedSavingsYesNo_Table[State],0))=\"No\"),0,ProjectInfoTable[[#This Row],[Total   kWh/yr Savings (Stipulated)]]-ProjectInfoTable[[#This Row],[Control Measure kWh/yr Savings (Stipulated)]])))","v":""},{"$f":"IF(OR(ProjectInfoTable[[#This Row],[Proposed Equipment]]=\"\",ProjectInfoTable[[#This Row],[Quantity (Proposed)]]=\"\"),\"\",IF(ProjectInfoTable[[#This Row],[Control Measure]]=\"\",0,IF(OR(ProjectType=\"New Construction\",ProjectType=\"Major Renovation\"),IFERROR(ROUND(ProjectInfoTable[[#This Row],[Control kWh Per Unit]]*ProjectInfoTable[[#This Row],[Control Quantity]]*ProjectInfoTable[[#This Row],[Control No. of TRL Units]],0),ProjectInfoTable[[#This Row],[Control kWh/yr Savings (Stipulated)]]),ProjectInfoTable[[#This Row],[Control kWh/yr Savings (Stipulated)]])))","v":""},{"$f":"IF(AND(ProjectInfoTable[[#This Row],[Incentives Per Unit]]=0,INDEX(StipulatedSavingsYesNo_Table[Stipulated Savings?],MATCH(ProjectState,StipulatedSavingsYesNo_Table[State],0))=\"No\"),ProjectInfoTable[[#This Row],[Fixture kWh/yr Savings (Stipulated)]]+IF(ProjectInfoTable[[#This Row],[Control Measure kWh/yr Savings (Stipulated)]]=0,0,ProjectInfoTable[[#This Row],[Control kWh/yr Savings (Stipulated)]]),IF(OR(ISNUMBER(VALUE(ProjectInfoTable[[#This Row],[kWh Per Unit]])),ISNUMBER(VALUE(ProjectInfoTable[[#This Row],[Control kWh Per Unit]]))),ROUND(IFERROR(ProjectInfoTable[[#This Row],[kWh Per Unit]]*ProjectInfoTable[[#This Row],[Quantity]]*ProjectInfoTable[[#This Row],[No. of TRL Units]],0)+IFERROR(ProjectInfoTable[[#This Row],[Control kWh Per Unit]]*ProjectInfoTable[[#This Row],[Control Quantity]]*ProjectInfoTable[[#This Row],[Control No. of TRL Units]],ProjectInfoTable[[#This Row],[Control kWh/yr Savings (Stipulated)]]),0),IF(AND(ProjectInfoTable[[#This Row],[Fixture kWh/yr Savings (Stipulated)]]=\"\",ProjectInfoTable[[#This Row],[Control kWh/yr Savings (Stipulated)]]=\"\"),\"\",ROUND(IF(ProjectInfoTable[[#This Row],[Fixture kWh/yr Savings (Stipulated)]]=\"\",0,ProjectInfoTable[[#This Row],[Fixture kWh/yr Savings (Stipulated)]])+IF(ProjectInfoTable[[#This Row],[Control kWh/yr Savings (Stipulated)]]=\"\",0,ProjectInfoTable[[#This Row],[Control kWh/yr Savings (Stipulated)]])-IF(ProjectInfoTable[[#This Row],[Midstream Measure Name]]<>\"\",IFERROR(ProjectInfoTable[[#This Row],[kWh Per Unit (Midstream)]]*ProjectInfoTable[[#This Row],[Quantity]]*ProjectInfoTable[[#This Row],[No. of TRL Units]],0),0),0))))","v":""},{"$f":"IF(OR(ISNUMBER(FIND(\"Midstream\",ProjectInfoTable[[#This Row],[Fixture Measure]])),ISNUMBER(FIND(\"SBDI\",ProjectInfoTable[[#This Row],[Fixture Measure]])),ISNUMBER(FIND(\"Small Bu\",ProjectInfoTable[[#This Row],[Fixture Measure]]))),\n\nIF(ProjectInfoTable[[#This Row],[Measure Selection]]=\"\",0,\n\nIF(ISNUMBER(FIND(\"/U]\",ProjectInfoTable[[#This Row],[Proposed Equipment]])),IFERROR(MID(ProjectInfoTable[[#This Row],[Proposed Equipment]],FIND(\"$\",ProjectInfoTable[[#This Row],[Proposed Equipment]],1)+1,FIND(\"/U]\",ProjectInfoTable[[#This Row],[Proposed Equipment]],1)-FIND(\"$\",ProjectInfoTable[[#This Row],[Proposed Equipment]],1)-1)*ProjectInfoTable[[#This Row],[Lamps (Proposed)]]*ProjectInfoTable[[#This Row],[Quantity (Proposed)]],0),\nIF(ISNUMBER(FIND(\"/U \",ProjectInfoTable[[#This Row],[Proposed Equipment]])),IFERROR(MID(ProjectInfoTable[[#This Row],[Proposed Equipment]],FIND(\"$\",ProjectInfoTable[[#This Row],[Proposed Equipment]],1)+1,FIND(\"/U \",ProjectInfoTable[[#This Row],[Proposed Equipment]],1)-FIND(\"$\",ProjectInfoTable[[#This Row],[Proposed Equipment]],1)-1)*ProjectInfoTable[[#This Row],[Lamps (Proposed)]]*ProjectInfoTable[[#This Row],[Quantity (Proposed)]],0),\nIFERROR(ProjectInfoTable[[#This Row],[Fixture Measure kWh/yr Savings (Stipulated)]]/SUM(ProjectInfoTable[Total   kWh/yr Savings (Stipulated)])*ProjectCost_Total,\"\")))),\"\")","v":""},{"$f":"IFERROR(IF(ProjectInfoTable[[#This Row],[Fixture Measure kWh/yr Savings (Stipulated)]]=0,0,IF(ProjectType=\"Retrofit\",IF(OR(ISNUMBER(FIND(\"Midstream\",ProjectInfoTable[[#This Row],[Fixture Measure]])),ISNUMBER(FIND(\"SBDI\",ProjectInfoTable[[#This Row],[Fixture Measure]])),ISNUMBER(FIND(\"Small Bu\",ProjectInfoTable[[#This Row],[Fixture Measure]]))),ProjectInfoTable[[#This Row],[Measure Cost (Direct)]],IFERROR(ProjectInfoTable[[#This Row],[Fixture Measure kWh/yr Savings (Stipulated)]]/kWhSavings_Typical_Stipulated*(ProjectCost_Total-SUM(ProjectInfoTable[Measure Cost (Direct)])),\"\")),IF(ProjectInfoTable[[#This Row],[Proposed Equipment]]=\"\",\"\",IFERROR(SpaceTypesInfo_Table[[#Totals],[NCMR Int Cost]]*ProjectInfoTable[[#This Row],[Fixture Measure kWh/yr Savings (Stipulated)]]/SUMIFS(ProjectInfoTable[Total   kWh/yr Savings (Stipulated)],ProjectInfoTable[Proposed Equipment],\"*Interior*\"),0)))),\"\")","v":""},{"$f":"IFERROR(\n IF(\n  ProjectInfoTable[[#This Row],[Control Measure kWh/yr Savings (Stipulated)]]=0,\n  0,\n  IF(\n   ProjectType=\"Retrofit\",\n    IFERROR(\n     ProjectInfoTable[[#This Row],[Control Measure kWh/yr Savings (Stipulated)]]\n     /\n     SUMIFS(ProjectInfoTable[Control Measure kWh/yr Savings (Stipulated)],ProjectInfoTable[Control Measure],\"<>\"\"\")\n     *\n     (ProjectCost_Total-SUM(ProjectInfoTable[Fixture Cost (Allocated)])),\n     \"\"\n    ),\nROUND(\n    IF(\n     ProjectInfoTable[[#This Row],[Proposed Equipment]]=\"\",\n     \"\",\n     IFERROR(\n      SpaceTypesInfo_Table[[#Totals],[NCMR Int Cost]]\n      *\n      ProjectInfoTable[[#This Row],[Control Measure kWh/yr Savings (Stipulated)]]\n      /\n      SUMIFS(ProjectInfoTable[Total   kWh/yr Savings (Stipulated)],ProjectInfoTable[Proposed Equipment],\"*Interior*\"),\n      0\n     )\n    ),\n    2\n   )\n  )\n ),\n \"\"\n)","v":""},{"$f":"IF(AND(ProjectInfoTable[[#This Row],[Fixture Cost (Allocated)]]=\"\",ProjectInfoTable[[#This Row],[Control Cost (Allocated)]]=\"\"),\"\",SUM(ProjectInfoTable[[#This Row],[Fixture Cost (Allocated)]:[Control Cost (Allocated)]]))","v":""},{"$f":"IFERROR(IF(OR(ProjectInfoTable[[#This Row],[Proposed Equipment]]=\"\",ProjectInfoTable[[#This Row],[Quantity (Proposed)]]=\"\"),\"\",IF(OR(ProjectInfoTable[[#This Row],[Measure Selection]]=\"\",ProjectInfoTable[[#This Row],[Control kWh (Proposed)]]=\"Controls Only\"),0,IF(NOT(ISNUMBER(FIND(\"Retrofit\",ProjectType,1))),ProjectInfoTable[[#This Row],[Fixture Energy Cost Savings (Stipulated)]],IF(AND(ProjectInfoTable[[#This Row],[Fixture Measure]]=\"\",ProjectInfoTable[[#This Row],[Control Measure]]<>\"\"),0,ROUND((ProjectInfoTable[[#This Row],[Total Energy Costs (Existing, Actual)]]-ProjectInfoTable[[#This Row],[Total Energy Costs (Proposed)]]),2))))),\"\")","v":""},{"$f":"IFERROR(IF(OR(ProjectInfoTable[[#This Row],[Proposed Equipment]]=\"\",ProjectInfoTable[[#This Row],[Quantity (Proposed)]]=\"\"),\"\",\n\nIF(ProjectInfoTable[[#This Row],[Control kWh (Proposed)]]=\"Controls Only\",ProjectInfoTable[[#This Row],[Control Measure kWh/yr Savings (Actual)]]*INDEX(INDIRECT(\"RateSchedules_\"&ProjectState&\"_Table[kWh Rate]\"),\nMATCH(RateSchedule,INDIRECT(\"RateSchedules_\"&ProjectState&\"_Table[Rate Schedule]\"),0)),\n\nIF(NOT(ISNUMBER(FIND(\"Retrofit\",ProjectType,1))),ProjectInfoTable[[#This Row],[Control Energy Cost Savings (Stipulated)]],IF(AND(ProjectInfoTable[[#This Row],[Fixture Measure]]=\"\",ProjectInfoTable[[#This Row],[Control Measure]]<>\"\"),ROUND((ProjectInfoTable[[#This Row],[Total Energy Costs (Existing, Actual)]]-ProjectInfoTable[[#This Row],[Total Energy Costs (Proposed)]]),2),ROUND((ProjectInfoTable[[#This Row],[Total Energy Costs (Existing, Actual)]]-ProjectInfoTable[[#This Row],[Total Energy Costs (Proposed)]]),2)*(ProjectInfoTable[[#This Row],[Control Measure kWh/yr Savings (Actual)]]/ProjectInfoTable[[#This Row],[Total   kWh/yr Savings (Actual)]]))))),\"\")","v":""},{"$f":"IF(OR(ProjectInfoTable[[#This Row],[Proposed Equipment]]=\"\",ProjectInfoTable[[#This Row],[Quantity (Proposed)]]=\"\"),\"\",ROUND(ProjectInfoTable[[#This Row],[Fixture Energy Cost Savings (Actual)]]+ProjectInfoTable[[#This Row],[Control Energy Cost Savings (Actual)]],2))","v":""},{"$f":"IF(OR(ProjectInfoTable[[#This Row],[Proposed Equipment]]=\"\",ProjectInfoTable[[#This Row],[Quantity (Proposed)]]=\"\"),\"\",IF(OR(ISNUMBER(VALUE(ProjectInfoTable[[#This Row],[kWh Per Unit]])),ISNUMBER(VALUE(ProjectInfoTable[[#This Row],[kW Per Unit]]))),IFERROR(ProjectInfoTable[[#This Row],[Fixture Measure kWh/yr Savings (Stipulated)]]*INDEX(INDIRECT(\"RateSchedules_\"&ProjectState&\"_Table[kWh Rate]\"),MATCH(RateSchedule,INDIRECT(\"RateSchedules_\"&ProjectState&\"_Table[Rate Schedule]\"),0)),0)+IFERROR(ProjectInfoTable[[#This Row],[kW Demand Reduction (Stipulated)]]/1000*12*INDEX(INDIRECT(\"RateSchedules_\"&ProjectState&\"_Table[kW Rate]\"),MATCH(RateSchedule,INDIRECT(\"RateSchedules_\"&ProjectState&\"_Table[Rate Schedule]\"),0)),0),IFERROR(ROUND((ProjectInfoTable[[#This Row],[Total Energy Costs (Existing, Stipulated)]]-ProjectInfoTable[[#This Row],[Total Energy Costs (Proposed)]])*ProjectInfoTable[[#This Row],[Fixture Measure kWh/yr Savings (Stipulated)]]/ProjectInfoTable[[#This Row],[Total   kWh/yr Savings (Stipulated)]],2),0)))","v":""},{"$f":"IF(OR(ProjectInfoTable[[#This Row],[Proposed Equipment]]=\"\",ProjectInfoTable[[#This Row],[Quantity (Proposed)]]=\"\"),\"\",\nIF(ProjectInfoTable[[#This Row],[Control kWh (Proposed)]]=\"Controls Only\",ProjectInfoTable[[#This Row],[Control Measure kWh/yr Savings (Stipulated)]]*INDEX(INDIRECT(\"RateSchedules_\"&ProjectState&\"_Table[kWh Rate]\"),\nMATCH(RateSchedule,INDIRECT(\"RateSchedules_\"&ProjectState&\"_Table[Rate Schedule]\"),0)),IF(OR(ISNUMBER(VALUE(ProjectInfoTable[[#This Row],[Control kWh Per Unit]])),\nISNUMBER(VALUE(ProjectInfoTable[[#This Row],[Control kW Per Unit]]))),IFERROR(ProjectInfoTable[[#This Row],[Control Measure kWh/yr Savings (Stipulated)]]*INDEX(INDIRECT(\"RateSchedules_\"&ProjectState&\"_Table[kWh Rate]\"),\nMATCH(RateSchedule,INDIRECT(\"RateSchedules_\"&ProjectState&\"_Table[Rate Schedule]\"),0)),0)+IFERROR(ProjectInfoTable[[#This Row],[kW Demand Reduction (Stipulated)]]/1000*12*\nINDEX(INDIRECT(\"RateSchedules_\"&ProjectState&\"_Table[kW Rate]\"),MATCH(RateSchedule,INDIRECT(\"RateSchedules_\"&ProjectState&\"_Table[Rate Schedule]\"),0)),0),\nIFERROR(ROUND((ProjectInfoTable[[#This Row],[Total Energy Costs (Existing, Stipulated)]]-ProjectInfoTable[[#This Row],[Total Energy Costs (Proposed)]])*ProjectInfoTable[[#This Row],[Control Measure kWh/yr Savings (Stipulated)]]/\nProjectInfoTable[[#This Row],[Total   kWh/yr Savings (Stipulated)]],2),0))))","v":""},{"$f":"IF(OR(ProjectInfoTable[[#This Row],[Proposed Equipment]]=\"\",ProjectInfoTable[[#This Row],[Quantity (Proposed)]]=\"\"),\"\",ROUND(ProjectInfoTable[[#This Row],[Fixture Energy Cost Savings (Stipulated)]]+ProjectInfoTable[[#This Row],[Control Energy Cost Savings (Stipulated)]],2))","v":""},{"$f":"IF(ProjectInfoTable[[#This Row],[OpSch]]=\"\",\"\",IF(OR(ProjectInfoTable[[#This Row],[Fixture Measure]]=\"\",ProjectInfoTable[[#This Row],[Eligible Fixture Measure]]<>TRUE),0,ProjectInfoTable[[#This Row],[Fixture Incentives (pre-capping)]])+IF(OR(ProjectInfoTable[[#This Row],[Control Measure]]=\"\",ProjectInfoTable[[#This Row],[Eligible Control Measure]]<>TRUE),0,ProjectInfoTable[[#This Row],[Control Incentives (pre-capping)]]))","v":""},{"$f":"IF(OR(ProjectInfoTable[[#This Row],[Fixture Measure]]<>\"\",ProjectInfoTable[[#This Row],[Control Measure]]<>\"\"),IF(ProjectInfoTable[[#This Row],[Fixture Incentives]]=\"\",0,ProjectInfoTable[[#This Row],[Fixture Incentives]])+IF(ProjectInfoTable[[#This Row],[Control Incentives]]=\"\",0,ProjectInfoTable[[#This Row],[Control Incentives]]),\"\")","v":""},null,{"$f":"IF(OR(ProjectInfoTable[[#This Row],[Fixture Measure]]=\"\",ProjectInfoTable[[#This Row],[OpSch]]=\"\",ProjectInfoTable[[#This Row],[Eligible Fixture Measure]]<>TRUE),\"\",\nIF(OR(ISNUMBER(FIND(\"SBDI\",ProjectInfoTable[[#This Row],[Fixture Measure]])),ISNUMBER(FIND(\"Small Bu\",ProjectInfoTable[[#This Row],[Fixture Measure]]))),IFERROR(0.75*ProjectInfoTable[[#This Row],[Fixture Cost (Allocated)]],\"cost error\"),\nIF(AND(OR(ProjectType=\"New Construction\",ProjectType=\"Major Renovation\"),LPDCodeToProposed<0.1,ISNUMBER(FIND(\"Interior\",ProjectInfoTable[[#This Row],[Proposed Equipment]],1))),0,IFERROR(ProjectInfoTable[[#This Row],[Incentives Per Unit]]*ProjectInfoTable[[#This Row],[Quantity]]*ProjectInfoTable[[#This Row],[No. of TRL Units]],\"TRL Error\"))))","v":""},{"$f":"IF(\n    OR(\n        ProjectInfoTable[[#This Row],[Fixture Measure]] = \"\",\n        ProjectInfoTable[[#This Row],[OpSch]] = \"\",\n        ProjectInfoTable[[#This Row],[Eligible Fixture Measure]] <> TRUE\n    ),\n    \"\",\n    IF(\n        OR(\n            ISNUMBER(FIND(\"SBDI\", ProjectInfoTable[[#This Row],[Fixture Measure]])),\n            ISNUMBER(FIND(\"Small Bu\", ProjectInfoTable[[#This Row],[Fixture Measure]]))\n        ),\n        IFERROR(\n            (Incentive_NonTypical / Incentive_NonTypical_PreCapped) * ProjectInfoTable[[#This Row],[Fixture Incentives (pre-capping)]],\n            \"\"\n        ),\n        IF(\n            AND(\n                ProjectType = \"Retrofit\",\n                ProjectState = \"UT\",\n                ISNUMBER(FIND(\"Post-Purchase\", ProjectInfoTable[[#This Row],[Fixture Measure]], 1))\n            ),\n            IFERROR(\n                MAX(\n                    MIN(\n                        ProjectInfoTable[[#This Row],[Fixture Incentives (pre-capping)]],\n                        ProjectInfoTable[[#This Row],[Fixture Cost (Allocated)]] * 0.7\n                    ),\n                    0\n                ),\n                0\n            ),\n            IF(\n                ProjectType = \"Retrofit\",\n                IF(\n                    ISNUMBER(FIND(\"Post-Purchase\", ProjectInfoTable[[#This Row],[Fixture Measure]], 1)),\n                    ProjectInfoTable[[#This Row],[Fixture Incentives (pre-capping)]],\n                    IFERROR(\n                        $BI$3 / $BH$3 * ProjectInfoTable[[#This Row],[Fixture Incentives (pre-capping)]],\n                        \"\"\n                    )\n                ),\n                IF(\n                    ISNUMBER(FIND(\"Interior\", ProjectInfoTable[[#This Row],[Proposed Equipment]], 1)),\n                    IF(\n                        LPDCodeToProposed > 0.1,\n                        ProjectInfoTable[[#This Row],[Fixture Incentives (pre-capping)]],\n                        0\n                    ),\n                    ProjectInfoTable[[#This Row],[Fixture Incentives (pre-capping)]]\n                )\n            )\n        )\n    )\n)","v":""},{"$f":"IF(OR(ProjectInfoTable[[#This Row],[Incentives Per Unit]]=\"\",ProjectInfoTable[[#This Row],[TRL Unit]]=\"\"),\"\",IF(ProjectInfoTable[[#This Row],[Eligible Fixture Measure]]<>TRUE,\"Invalid Effective Date\",\nIF(OR(ISNUMBER(FIND(\"SBDI\",ProjectInfoTable[[#This Row],[Fixture Measure]])),ISNUMBER(FIND(\"Small Bu\",ProjectInfoTable[[#This Row],[Fixture Measure]]))),\"$0.75 / dollar cost\",\nTEXT(ProjectInfoTable[[#This Row],[Incentives Per Unit]],\"$#,##0.00\")&\" / \"&IF(ProjectInfoTable[[#This Row],[Fixture Measure]]=\"\",\"\",IF(ProjectInfoTable[[#This Row],[TRL Unit]]=\"Measure\",IF(ISNUMBER(FIND(\"Relamp\",ProjectInfoTable[[#This Row],[Proposed Equipment]],1)),\"Lamp\",\"Fixture\"),ProjectInfoTable[[#This Row],[TRL Unit]])))))","v":""},{"$f":"IF(OR(ProjectInfoTable[[#This Row],[Proposed Equipment]]=\"\",ProjectInfoTable[[#This Row],[Quantity (Proposed)]]=\"\"),\"\",IFERROR(SUBSTITUTE(IF(ProjectType=\"Retrofit\",IF(OR(ISNUMBER(FIND(\"Controls On\",ProjectInfoTable[[#This Row],[Proposed Equipment]],1))),\"\",IF(OR(ProjectInfoTable[[#This Row],[Existing Equipment]]=\"\",ProjectInfoTable[[#This Row],[Proposed Equipment]]=\"\"),\"\",IF(ProjectState=\"UT\",IFERROR(IF(AlternativeEnergyOverride=\"Yes\",IFERROR(INDEX(INDIRECT(\"EquipmentTable_\"&\"Retrofit_\"&ProjectState&\"[#All]\"),MATCH(LEFT(ProjectInfoTable[[#This Row],[Proposed Equipment]],FIND(\"[\",ProjectInfoTable[[#This Row],[Proposed Equipment]],1)-2)&\" (Alt)\",INDIRECT(\"EquipmentTable_\"&\"Retrofit_\"&ProjectState&\"[equipmentProposed]\"),0)+1,MATCH(\"measureRetrofit_\"&LEFT(ProjectInfoTable[[#This Row],[Existing Equipment]],FIND(\":\",ProjectInfoTable[[#This Row],[Existing Equipment]],1)-1)&\"_\"&IF(IFERROR(INDEX(ControlsLookup[Rank],MATCH(RIGHT(ProjectInfoTable[[#This Row],[Proposed Equipment]],LEN(ProjectInfoTable[[#This Row],[Proposed Equipment]])-FIND(\"]\",ProjectInfoTable[[#This Row],[Proposed Equipment]],1)-3),ControlsLookup[Controls],0)),0)>IFERROR(INDEX(ControlsLookup[Rank],MATCH(RIGHT(ProjectInfoTable[[#This Row],[Existing Equipment]],LEN(ProjectInfoTable[[#This Row],[Existing Equipment]])-FIND(\"]\",ProjectInfoTable[[#This Row],[Existing Equipment]],1)-3),ControlsLookup[Controls],0)),0),INDEX(ControlsLookup[Controls Type],MATCH(LEFT(ProjectInfoTable[[#This Row],[Existing Equipment]],FIND(\":\",ProjectInfoTable[[#This Row],[Existing Equipment]],1)-1)&\"_\"&RIGHT(ProjectInfoTable[[#This Row],[Proposed Equipment]],LEN(ProjectInfoTable[[#This Row],[Proposed Equipment]])-FIND(\"]\",ProjectInfoTable[[#This Row],[Proposed Equipment]],1)-3),ControlsLookup[Controls Concatenate],0)),\"None\"),INDIRECT(\"EquipmentTable_\"&\"Retrofit_\"&ProjectState&\"[#Headers]\"),0)),INDEX(INDIRECT(\"EquipmentTable_\"&IF(ProjectType=\"Retrofit\",\"Retrofit_\",\"NCMR_\")&ProjectState&\"[#All]\"),MATCH(LEFT(ProjectInfoTable[[#This Row],[Proposed Equipment]],FIND(\"[\",ProjectInfoTable[[#This Row],[Proposed Equipment]],1)-2),INDIRECT(\"EquipmentTable_\"&\"Retrofit_\"&ProjectState&\"[equipmentProposed]\"),0)+1,MATCH(\"measureRetrofit_\"&LEFT(ProjectInfoTable[[#This Row],[Existing Equipment]],FIND(\":\",ProjectInfoTable[[#This Row],[Existing Equipment]],1)-1)&\"_\"&IF(IFERROR(INDEX(ControlsLookup[Rank],MATCH(RIGHT(ProjectInfoTable[[#This Row],[Proposed Equipment]],LEN(ProjectInfoTable[[#This Row],[Proposed Equipment]])-FIND(\"]\",ProjectInfoTable[[#This Row],[Proposed Equipment]],1)-3),ControlsLookup[Controls],0)),0)>IFERROR(INDEX(ControlsLookup[Rank],MATCH(RIGHT(ProjectInfoTable[[#This Row],[Existing Equipment]],LEN(ProjectInfoTable[[#This Row],[Existing Equipment]])-FIND(\"]\",ProjectInfoTable[[#This Row],[Existing Equipment]],1)-3),ControlsLookup[Controls],0)),0),INDEX(ControlsLookup[Controls Type],MATCH(LEFT(ProjectInfoTable[[#This Row],[Existing Equipment]],FIND(\":\",ProjectInfoTable[[#This Row],[Existing Equipment]],1)-1)&\"_\"&RIGHT(ProjectInfoTable[[#This Row],[Proposed Equipment]],LEN(ProjectInfoTable[[#This Row],[Proposed Equipment]])-FIND(\"]\",ProjectInfoTable[[#This Row],[Proposed Equipment]],1)-3),ControlsLookup[Controls Concatenate],0)),\"None\"),INDIRECT(\"EquipmentTable_\"&IF(ProjectType=\"Retrofit\",\"Retrofit_\",\"NCMR_\")&ProjectState&\"[#Headers]\"),0))),INDEX(INDIRECT(\"EquipmentTable_\"&IF(ProjectType=\"Retrofit\",\"Retrofit_\",\"NCMR_\")&ProjectState&\"[#All]\"),MATCH(LEFT(ProjectInfoTable[[#This Row],[Proposed Equipment]],FIND(\"[\",ProjectInfoTable[[#This Row],[Proposed Equipment]],1)-2),INDIRECT(\"EquipmentTable_\"&IF(ProjectType=\"Retrofit\",\"Retrofit_\",\"NCMR_\")&ProjectState&\"[equipmentProposed]\"),0)+1,MATCH(\"measureRetrofit_\"&IF(AND(SBDEligible=\"Yes\",ISNUMBER(FIND(\"SBE\",ProjectInfoTable[[#This Row],[Proposed Equipment]]))),\"SBE\",LEFT(ProjectInfoTable[[#This Row],[Existing Equipment]],FIND(\":\",ProjectInfoTable[[#This Row],[Existing Equipment]],1)-1)&\"_\"&IF(IFERROR(INDEX(ControlsLookup[Rank],MATCH(RIGHT(ProjectInfoTable[[#This Row],[Proposed Equipment]],LEN(ProjectInfoTable[[#This Row],[Proposed Equipment]])-FIND(\"]\",ProjectInfoTable[[#This Row],[Proposed Equipment]],1)-3),ControlsLookup[Controls],0)),0)>IFERROR(INDEX(ControlsLookup[Rank],MATCH(RIGHT(ProjectInfoTable[[#This Row],[Existing Equipment]],LEN(ProjectInfoTable[[#This Row],[Existing Equipment]])-FIND(\"]\",ProjectInfoTable[[#This Row],[Existing Equipment]],1)-3),ControlsLookup[Controls],0)),0),INDEX(ControlsLookup[Controls Type],MATCH(LEFT(ProjectInfoTable[[#This Row],[Existing Equipment]],FIND(\":\",ProjectInfoTable[[#This Row],[Existing Equipment]],1)-1)&\"_\"&RIGHT(ProjectInfoTable[[#This Row],[Proposed Equipment]],LEN(ProjectInfoTable[[#This Row],[Proposed Equipment]])-FIND(\"]\",ProjectInfoTable[[#This Row],[Proposed Equipment]],1)-3),ControlsLookup[Controls Concatenate],0)),\"None\")),INDIRECT(\"EquipmentTable_\"&\"Retrofit_\"&ProjectState&\"[#Headers]\"),0))),\"Non-eligible fixture - Retrofit - \"&ProjectState),IFERROR(INDEX(INDIRECT(\"EquipmentTable_\"&IF(SiteSpecificOverride=\"Yes\",\"PostPurchase_\",\"Retrofit_\")&ProjectState&\"[#All]\"),MATCH(LEFT(ProjectInfoTable[[#This Row],[Proposed Equipment]],FIND(\"[\",ProjectInfoTable[[#This Row],[Proposed Equipment]],1)-2),INDIRECT(\"EquipmentTable_\"&IF(SiteSpecificOverride=\"Yes\",\"PostPurchase_\",\"Retrofit_\")&ProjectState&\"[equipmentProposed]\"),0)+1,MATCH(\"measureRetrofit_\"&IF(AND(SBDEligible=\"Yes\",ISNUMBER(FIND(\"SBE\",ProjectInfoTable[[#This Row],[Proposed Equipment]]))),\"SBE\",LEFT(ProjectInfoTable[[#This Row],[Existing Equipment]],FIND(\":\",ProjectInfoTable[[#This Row],[Existing Equipment]],1)-1)&\"_\"&IF(IFERROR(INDEX(ControlsLookup[Rank],MATCH(RIGHT(ProjectInfoTable[[#This Row],[Proposed Equipment]],LEN(ProjectInfoTable[[#This Row],[Proposed Equipment]])-FIND(\"]\",ProjectInfoTable[[#This Row],[Proposed Equipment]],1)-3),ControlsLookup[Controls],0)),0)>IFERROR(INDEX(ControlsLookup[Rank],MATCH(RIGHT(ProjectInfoTable[[#This Row],[Existing Equipment]],LEN(ProjectInfoTable[[#This Row],[Existing Equipment]])-FIND(\"]\",ProjectInfoTable[[#This Row],[Existing Equipment]],1)-3),ControlsLookup[Controls],0)),0),INDEX(ControlsLookup[Controls Type],MATCH(LEFT(ProjectInfoTable[[#This Row],[Existing Equipment]],FIND(\":\",ProjectInfoTable[[#This Row],[Existing Equipment]],1)-1)&\"_\"&RIGHT(ProjectInfoTable[[#This Row],[Proposed Equipment]],LEN(ProjectInfoTable[[#This Row],[Proposed Equipment]])-FIND(\"]\",ProjectInfoTable[[#This Row],[Proposed Equipment]],1)-3),ControlsLookup[Controls Concatenate],0)),\"None\")),INDIRECT(\"EquipmentTable_\"&IF(SiteSpecificOverride=\"Yes\",\"PostPurchase_\",\"Retrofit_\")&ProjectState&\"[#Headers]\"),0)),\"Non-eligible fixture - Retrofit - \"&ProjectState)))),IFERROR(INDEX(INDIRECT(\"EquipmentTable_\"&\"NCMR_\"&ProjectState),MATCH(RIGHT(LEFT(ProjectInfoTable[[#This Row],[Proposed Equipment]],FIND(\" (\",ProjectInfoTable[[#This Row],[Proposed Equipment]],1)-1),LEN(LEFT(ProjectInfoTable[[#This Row],[Proposed Equipment]],FIND(\" (\",ProjectInfoTable[[#This Row],[Proposed Equipment]],1)-2))-FIND(\":\",ProjectInfoTable[[#This Row],[Proposed Equipment]],1)),INDIRECT(\"EquipmentTable_\"&\"NCMR_\"&ProjectState&\"[equipmentProposed]\"),0),MATCH(\"measureNCMR_\"&LEFT(ProjectInfoTable[[#This Row],[Proposed Equipment]],FIND(\":\",ProjectInfoTable[[#This Row],[Proposed Equipment]],1)-1)&\"_\"&IF(LEN(ProjectInfoTable[[#This Row],[Proposed Equipment]])>FIND(\"]\",ProjectInfoTable[[#This Row],[Proposed Equipment]]),INDEX(ControlsLookup[Controls Type],MATCH(LEFT(ProjectInfoTable[[#This Row],[Proposed Equipment]],FIND(\":\",ProjectInfoTable[[#This Row],[Proposed Equipment]],1)-1)&\"_\"&RIGHT(ProjectInfoTable[[#This Row],[Proposed Equipment]],LEN(ProjectInfoTable[[#This Row],[Proposed Equipment]])-FIND(\"]\",ProjectInfoTable[[#This Row],[Proposed Equipment]],1)-3),ControlsLookup[Controls Concatenate],0)),\"None\"),INDIRECT(\"EquipmentTable_\"&\"NCMR_\"&ProjectState&\"[#Headers]\"),0)),\"Non-eligible fixture - NCMR - \"&ProjectState)),\"[NAMESUB]\",ProjectInfoTable[[#This Row],[Measure Name Sub]]),\"Non-eligible fixture - Retrofit - \"&ProjectState))","v":""},{"$f":"IF(ISNUMBER(SEARCH(\"Case\",ProjectInfoTable[[#This Row],[Fixture Measure]])),CONCATENATE(ProjectInfoTable[[#This Row],[Fixture Measure]],ProjectInfoTable[[#This Row],[No. of TRL Units]],ProjectInfoTable[[#This Row],[Quantity]]),\"\")","v":""},{"$f":"IF(ProjectInfoTable[[#This Row],[Proposed Equipment]]=\"\",\"\",\nIF(AND(ProjectState = \"UT\",ISNUMBER(FIND(\" TLED \",ProjectInfoTable[[#This Row],[Proposed Equipment]]))),\nIF(VALUE(ProjectInfoTable[[#This Row],[Lamp W (Proposed)]])<20,\"< 20 W\",\nIF(AND(VALUE(ProjectInfoTable[[#This Row],[Lamp W (Proposed)]])<=39,VALUE(ProjectInfoTable[[#This Row],[Lamp W (Proposed)]])>=20),\">= 20 W and <= 39 W\",)),\n\nIF(AND(ProjectType=\"Retrofit\",OR(ISNUMBER(FIND(\"Retrofit Kit\",ProjectInfoTable[[#This Row],[Proposed Equipment]])),ISNUMBER(FIND(\"Fixture\",ProjectInfoTable[[#This Row],[Proposed Equipment]]))),OR(ISNUMBER(FIND(\"Exterior\",ProjectInfoTable[[#This Row],[Existing Equipment]])),ISNUMBER(FIND(\"Street\",ProjectInfoTable[[#This Row],[Existing Equipment]])))),\nIF(ProjectInfoTable[[#This Row],[Fixture W (Proposed)]]<50,\"< 50 W\",\nIF(AND(ProjectInfoTable[[#This Row],[Fixture W (Proposed)]]<90,ProjectInfoTable[[#This Row],[Fixture W (Proposed)]]>=50),\">= 50 W and < 90 W\",\nIF(AND(ProjectInfoTable[[#This Row],[Fixture W (Proposed)]]<135,ProjectInfoTable[[#This Row],[Fixture W (Proposed)]]>=90),\">= 90 W and < 135 W\",\nIF(AND(ProjectInfoTable[[#This Row],[Fixture W (Proposed)]]<220,ProjectInfoTable[[#This Row],[Fixture W (Proposed)]]>=135),\">= 135 W and < 220 W\",\nIF(ProjectInfoTable[[#This Row],[Fixture W (Proposed)]]>=220,\">= 220 W\"))))),\"\")))","v":""},{"$f":"IFERROR(INDEX(INDIRECT(\"MeasureTable_\" & ProjectState & \"[Measure Reference Number]\"),MATCH(ProjectInfoTable[[#This Row],[Fixture Measure]],INDIRECT(\"MeasureTable_\" &ProjectState&\"[Measure Name]\"),0)),\"\")","v":""},{"$f":"IFERROR(\n    _xlfn.LET(\n        _xlpm.filteredVersions,\n            _xlfn._xlws.FILTER(\n                INDIRECT(\"MeasureTable_\" & ProjectState & \"[Version Number]\"),\n                (INDIRECT(\"MeasureTable_\" & ProjectState & \"[Measure Reference Number]\") = ProjectInfoTable[[#This Row],[Fixture Measure Reference Number]]) *\n                (INDIRECT(\"MeasureTable_\" & ProjectState & \"[Eligible Measure]\") = TRUE)\n            ),\n        INDEX(_xlpm.filteredVersions, 1)\n    ),\n    \"\"\n)","v":""},{"$f":"IFERROR(\n  _xlfn.LET(\n    _xlpm.refRange, INDIRECT(\"MeasureTable_\" & ProjectState & \"[Measure Reference Number]\"),\n    _xlpm.eligibleRange, INDIRECT(\"MeasureTable_\" & ProjectState & \"[Eligible Measure]\"),\n    _xlpm.countTrue, SUMPRODUCT(--(_xlpm.refRange = ProjectInfoTable[[#This Row],[Fixture Measure Reference Number]]), --(_xlpm.eligibleRange = TRUE)),\n    _xlpm.countNonBlank, SUMPRODUCT(--(_xlpm.refRange = ProjectInfoTable[[#This Row],[Fixture Measure Reference Number]]), --(_xlpm.eligibleRange <> \"\")),\n    IF(_xlpm.countNonBlank = 0, \"\", IF(_xlpm.countTrue >= 1, TRUE, FALSE))\n  ),\n  \"\"\n)","v":""},{"$f":"IFERROR(VALUE(INDEX(INDIRECT(\"MeasureTable_\" & ProjectState & \"[CustomerIncentiveDollarperunit]\"),MATCH(ProjectInfoTable[[#This Row],[Fixture Measure]]&\" | TRUE\",INDIRECT(\"MeasureTable_\" &ProjectState&\"[MeasureEligibleConcatenate]\"),0))),\"\")","v":""},{"$f":"IFERROR(INDEX(INDIRECT(\"MeasureTable_\"&ProjectState&\"[SiteSpecificCalculation]\"),MATCH(ProjectInfoTable[[#This Row],[Fixture Measure]]&\" | TRUE\",INDIRECT(\"MeasureTable_\" &ProjectState&\"[MeasureEligibleConcatenate]\"),0)),\"\")","v":""},{"$f":"IFERROR(INDEX(INDIRECT(\"MeasureTable_\"&ProjectState&\"[GrossIncrementalAnnualElectricSavings]\"),MATCH(ProjectInfoTable[[#This Row],[Fixture Measure]]&\" | TRUE\",INDIRECT(\"MeasureTable_\" &ProjectState&\"[MeasureEligibleConcatenate]\"),0)),\"\")","v":""},{"$f":"IFERROR(INDEX(INDIRECT(\"MeasureTable_\"&ProjectState&\"[GrossAverageMonthlyDemandReduction]\"),MATCH(ProjectInfoTable[[#This Row],[Fixture Measure]]&\" | TRUE\",INDIRECT(\"MeasureTable_\" &ProjectState&\"[MeasureEligibleConcatenate]\"),0)),\"\")","v":""},{"$f":"IF(ProjectInfoTable[[#This Row],[Fixture Measure]]=\"\",\"\",IF(NOT(ISNUMBER(FIND(\"Site-Specific - Downstream\",ProjectInfoTable[[#This Row],[Fixture Measure]]))),\"\",\nIF(ISNUMBER(MATCH(SUBSTITUTE(ProjectInfoTable[[#This Row],[Fixture Measure]],\"Site-Specific - Downstream - v2\",\"Mid Market\"),INDIRECT(\"MeasureTable_\"&ProjectState&\"[Measure Name]\"),0)),\nSUBSTITUTE(ProjectInfoTable[[#This Row],[Fixture Measure]],\"Site-Specific - Downstream - v2\",\"Mid Market\"),\nSUBSTITUTE(ProjectInfoTable[[#This Row],[Fixture Measure]],\"Site-Specific - Downstream\",\"Mid Market\"))\n))","v":""},{"$f":"IF(ProjectInfoTable[[#This Row],[Midstream Measure Name]]=\"\",\"\",IFERROR(INDEX(INDIRECT(\"MeasureTable_\"&ProjectState&\"[GrossIncrementalAnnualElectricSavings ]\"),MATCH(ProjectInfoTable[[#This Row],[Midstream Measure Name]]&\" | TRUE\",INDIRECT(\"MeasureTable_\" &ProjectState&\"[MeasureEligibleConcatenate]\"),0)),\"\"))","v":""},{"$f":"IF(ProjectInfoTable[[#This Row],[Midstream Measure Name]]=\"\",\"\",IFERROR(INDEX(INDIRECT(\"MeasureTable_\"&ProjectState&\"[GrossAverage onthly emand eduction]\"),MATCH(ProjectInfoTable[[#This Row],[Midstream Measure Name]]&\" | TRUE\",INDIRECT(\"MeasureTable_\" &ProjectState&\"[MeasureEligibleConcatenate]\"),0)),\"\"))","v":""},{"$f":"IFERROR(INDEX(INDIRECT(\"MeasureTable_\"&ProjectState&\"[IncrementalMeasureCost]\"),MATCH(ProjectInfoTable[[#This Row],[Fixture Measure]]&\" | TRUE\",INDIRECT(\"MeasureTable_\" &ProjectState&\"[MeasureEligibleConcatenate]\"),0)),\"\")","v":""},{"$f":"IF(ProjectInfoTable[[#This Row],[Fixture Measure]]=\"\",\"\",IF(AND(ProjectState=\"UT\",ProjectInfoTable[[#This Row],[Measure Selection]]=\"\"),0,\nIF(OR(ISNUMBER(FIND(\"SBDI\",ProjectInfoTable[[#This Row],[Fixture Measure]])),ISNUMBER(FIND(\"Small Bu\",ProjectInfoTable[[#This Row],[Fixture Measure]]))),ProjectInfoTable[[#This Row],[Quantity (Proposed)]]*ProjectInfoTable[[#This Row],[Lamps (Proposed)]],\nIF(OR(ProjectInfoTable[[#This Row],[TRL Unit]]=\"Measure\",ProjectInfoTable[[#This Row],[TRL Unit]]=\"Linear ft.\"),IF(OR(ISNUMBER(FIND(\"Lamp\",ProjectInfoTable[[#This Row],[Fixture Measure]],1)),ISNUMBER(FIND(\"Relamp\",ProjectInfoTable[[#This Row],[Fixture Measure]],1)),ISNUMBER(FIND(\"Relamp\",ProjectInfoTable[[#This Row],[Proposed Equipment]],1))),ProjectInfoTable[[#This Row],[Quantity (Proposed)]]*ProjectInfoTable[[#This Row],[Lamps (Proposed)]],ProjectInfoTable[[#This Row],[Quantity (Proposed)]]),1))))","v":""},{"$f":"IF(ProjectInfoTable[[#This Row],[Fixture Measure]]=\"\",\"\",IF(AND(ProjectState=\"UT\",ProjectInfoTable[[#This Row],[Measure Selection]]=\"\"),0,\nIF(OR(ISNUMBER(FIND(\"SBDI\",ProjectInfoTable[[#This Row],[Fixture Measure]])),ISNUMBER(FIND(\"Small Bu\",ProjectInfoTable[[#This Row],[Fixture Measure]]))),1,\nIF(ISNUMBER(FIND(\"Controls Only\",ProjectInfoTable[[#This Row],[Proposed Equipment]],1)),IF(OR(ProjectType <> \"Retrofit\",ProjectInfoTable[[#This Row],[Space W (Proposed)]]>0),ProjectInfoTable[[#This Row],[Space W (Proposed)]],ProjectInfoTable[[#This Row],[Space W (Existing, Stipulated)]]),\nIF(TRIM(UPPER(ProjectInfoTable[[#This Row],[TRL Unit]]))=\"LINEAR FT.\",IF(OR(ISNUMBER(FIND(\"Marquee\",ProjectInfoTable[[#This Row],[Proposed Equipment]],1)),ISNUMBER(FIND(\"Cabinet\",ProjectInfoTable[[#This Row],[Proposed Equipment]],1))),VALUE(RIGHT(LEFT(ProjectInfoTable[[#This Row],[Existing Equipment]],FIND(\"LF \",ProjectInfoTable[[#This Row],[Existing Equipment]],1)-1),LEN(LEFT(ProjectInfoTable[[#This Row],[Existing Equipment]],FIND(\"LF \",ProjectInfoTable[[#This Row],[Existing Equipment]],1)-1))-FIND(\"[\",ProjectInfoTable[[#This Row],[Existing Equipment]],1))),VALUE(RIGHT(LEFT(ProjectInfoTable[[#This Row],[Proposed Equipment]],FIND(\"LF \",ProjectInfoTable[[#This Row],[Proposed Equipment]],1)-1),LEN(LEFT(ProjectInfoTable[[#This Row],[Proposed Equipment]],FIND(\"LF \",ProjectInfoTable[[#This Row],[Proposed Equipment]],1)-1))-FIND(\"[\",ProjectInfoTable[[#This Row],[Proposed Equipment]],1)))),\nIF(TRIM(UPPER(ProjectInfoTable[[#This Row],[TRL Unit]]))=\"KWH\",IF(ProjectInfoTable[[#This Row],[Fixture Measure kWh/yr Savings (Stipulated)]]=0,0,ROUND(ProjectInfoTable[[#This Row],[Fixture Measure kWh/yr Savings (Stipulated)]],2)),\nIF(TRIM(UPPER(ProjectInfoTable[[#This Row],[TRL Unit]]))=\"WATT REDUCED\",IF(ProjectInfoTable[[#This Row],[Fixture Measure kWh/yr Savings (Stipulated)]]=0,0,ROUND(ProjectInfoTable[[#This Row],[Space W (Existing, Stipulated)]]-ProjectInfoTable[[#This Row],[Space W (Proposed)]],2)),\nIF(TRIM(UPPER(ProjectInfoTable[[#This Row],[TRL Unit]]))=\"FIXTURE WATTAGE\",ProjectInfoTable[[#This Row],[Space W (Proposed)]],1))))))))","v":""},{"$f":"IFERROR(IF(OR(ISNUMBER(FIND(\"SBDI\",ProjectInfoTable[[#This Row],[Fixture Measure]])),ISNUMBER(FIND(\"Small Bu\",ProjectInfoTable[[#This Row],[Fixture Measure]]))),0,INDEX(INDIRECT(\"MeasureTable_\"&ProjectState&\"[Unit]\"),MATCH(ProjectInfoTable[[#This Row],[Fixture Measure]]&\" | TRUE\",INDIRECT(\"MeasureTable_\" &ProjectState&\"[MeasureEligibleConcatenate]\"),0))),\"\")","v":""},{"$f":"IF(ProjectInfoTable[[#This Row],[Fixture Measure]]=\"\",\"\",IF(OR(ISNUMBER(FIND(\"Lamp(s)\",ProjectInfoTable[[#This Row],[Fixture Measure]],1)),ISNUMBER(FIND(\"Relamp\",ProjectInfoTable[[#This Row],[Proposed Equipment]],1))),\"Lamp(s)\",\"Fixture(s)\"))","v":""},{"$f":"IFERROR(INDEX(INDIRECT(\"MeasureTable_\"&ProjectState&\"[ProjectCapPercent]\"),MATCH(ProjectInfoTable[[#This Row],[Fixture Measure]]&\" | TRUE\",INDIRECT(\"MeasureTable_\" &ProjectState&\"[MeasureEligibleConcatenate]\"),0)),\"\")","v":""},{"$f":"IF(OR(ProjectInfoTable[[#This Row],[Control Measure]]=\"\",ProjectInfoTable[[#This Row],[OpSch]]=\"\",ProjectInfoTable[[#This Row],[Eligible Control Measure]]<>TRUE),\"\",IF(AND(OR(ProjectType=\"New Construction\",ProjectType=\"Major Renovation\"),LPDCodeToProposed<0.1,ISNUMBER(FIND(\"Interior\",ProjectInfoTable[[#This Row],[Proposed Equipment]],1))),0,IFERROR(ProjectInfoTable[[#This Row],[Control Incentives Per Unit]]*ProjectInfoTable[[#This Row],[Control Quantity]]*ProjectInfoTable[[#This Row],[Control No. of TRL Units]],\"TRL Error\")))","v":""},{"$f":"IF(OR(ProjectInfoTable[[#This Row],[Control Measure]]=\"\",ProjectInfoTable[[#This Row],[OpSch]]=\"\",ProjectInfoTable[[#This Row],[Eligible Control Measure]]<>TRUE),\"\",IF(AND(ProjectType=\"Retrofit\",ProjectState=\"UT\",ISNUMBER(FIND(\"Post Purchase\",ProjectInfoTable[[#This Row],[Control Measure]],1))),\n\nIFERROR(MAX(MIN(ProjectInfoTable[[#This Row],[Control Incentives (pre-capping)]],ProjectInfoTable[[#This Row],[Control Cost (Allocated)]]*0.7),0),0),\n\nIF(ProjectType=\"Retrofit\",IF(ISNUMBER(FIND(\"Post Purchase\",ProjectInfoTable[[#This Row],[Control Measure]],1)),ProjectInfoTable[[#This Row],[Control Incentives (pre-capping)]],IFERROR($BI$3/$BH$3*ProjectInfoTable[[#This Row],[Control Incentives (pre-capping)]],\"\")),\n\nIF(ISNUMBER(FIND(\"Interior\",ProjectInfoTable[[#This Row],[Proposed Equipment]],1)),IF(LPDCodeToProposed>0.1,ProjectInfoTable[[#This Row],[Control Incentives (pre-capping)]],0),ProjectInfoTable[[#This Row],[Control Incentives (pre-capping)]]))))","v":""},{"$f":"IF(OR(ProjectInfoTable[[#This Row],[Control Incentives Per Unit]]=\"\",ProjectInfoTable[[#This Row],[Control TRL Unit]]=\"\"),\"\",IF(ProjectInfoTable[[#This Row],[Eligible Control Measure]]<>TRUE,\"Invalid Effective Date\",TEXT(ProjectInfoTable[[#This Row],[Control Incentives Per Unit]],\"$#,##0.00\")&\" / \"&ProjectInfoTable[[#This Row],[Control TRL Unit]]))","v":""},{"$f":"IF(ISNUMBER(FIND(\"SBE\",ProjectInfoTable[[#This Row],[Proposed Equipment]])),\"\",\n\nIF(LEN(ProjectInfoTable[[#This Row],[Proposed Equipment]])>\n\nIFERROR(FIND(\"]\",ProjectInfoTable[[#This Row],[Proposed Equipment]],1),0),\nSUBSTITUTE(\nIF(OR(ProjectInfoTable[[#This Row],[Control Method]]=\"separate\",ISNUMBER(FIND(\"Midstream\",ProjectInfoTable[[#This Row],[Fixture Measure]],1)),ISNUMBER(FIND(\"Midstream\",ProjectInfoTable[[#This Row],[Equipment Category]],1)),ISNUMBER(FIND(\"Prescriptive\",ProjectInfoTable[[#This Row],[Equipment Category]],1)),ISNUMBER(FIND(\"LED\",ProjectInfoTable[[#This Row],[Fixture Measure]],1)),ISNUMBER(FIND(\"LED Case\",ProjectInfoTable[[#This Row],[Fixture Measure]],1)),ISNUMBER(FIND(\"LED Decorative - Retrofit - WA\",ProjectInfoTable[[#This Row],[Fixture Measure]],1)),ISNUMBER(FIND(\"Lamp\",ProjectInfoTable[[#This Row],[Fixture Measure]],1)),ISNUMBER(FIND(\"Relamp\",ProjectInfoTable[[#This Row],[Fixture Measure]],1)),ISNUMBER(FIND(\"Wall Pack\",ProjectInfoTable[[#This Row],[Fixture Measure]],1)),ISNUMBER(FIND(\"Controls Only\",ProjectInfoTable[[#This Row],[Proposed Equipment]],1)),ISNUMBER(FIND(\"Re-Commissioning\",ProjectInfoTable[[#This Row],[Proposed Equipment]],1)),\n\nAND(OR(ISNUMBER(FIND(\"Exterior:\",ProjectInfoTable[[#This Row],[Proposed Equipment]],1)),ISNUMBER(FIND(\"Street:\",ProjectInfoTable[[#This Row],[Proposed Equipment]],1))),OR(ProjectState=\"ID\",ProjectState=\"UT\",ProjectState=\"WY\"))),\n\nIF(IFERROR(INDEX(ControlsLookup[],MATCH(IF(ProjectType=\"Retrofit\",LEFT(ProjectInfoTable[[#This Row],[Existing Equipment]],FIND(\":\",ProjectInfoTable[[#This Row],[Existing Equipment]],1)-1),LEFT(ProjectInfoTable[[#This Row],[Proposed Equipment]],FIND(\":\",ProjectInfoTable[[#This Row],[Proposed Equipment]],1)-1))&\"_\"&RIGHT(ProjectInfoTable[[#This Row],[Proposed Equipment]],LEN(ProjectInfoTable[[#This Row],[Proposed Equipment]])-FIND(\"]\",ProjectInfoTable[[#This Row],[Proposed Equipment]],1)-3),ControlsLookup[Controls Concatenate],0),MATCH(\n\nIF(ProjectType=\"Retrofit\",\"ControlMeasure_\",\"NCMRControlMeasure_\")&ProjectState,ControlsLookup[#Headers],0)),\"\")=0,\"\",\n\nIFERROR(INDEX(ControlsLookup[],MATCH(IF(ProjectType=\"Retrofit\",LEFT(ProjectInfoTable[[#This Row],[Existing Equipment]],FIND(\":\",ProjectInfoTable[[#This Row],[Existing Equipment]],1)-1),LEFT(ProjectInfoTable[[#This Row],[Proposed Equipment]],FIND(\":\",ProjectInfoTable[[#This Row],[Proposed Equipment]],1)-1))&\"_\"&RIGHT(ProjectInfoTable[[#This Row],[Proposed Equipment]],LEN(ProjectInfoTable[[#This Row],[Proposed Equipment]])-FIND(\"]\",ProjectInfoTable[[#This Row],[Proposed Equipment]],1)-3),ControlsLookup[Controls Concatenate],0),MATCH(\n\nIF(ProjectType=\"Retrofit\",\"ControlMeasure_\",\"NCMRControlMeasure_\")&ProjectState&IF(ProjectState=\"UT\",SegmentTag,\"\"),ControlsLookup[#Headers],0)),\"\")),\"\"),\"[NAMESUB]\",ProjectInfoTable[[#This Row],[Control Measure Name Sub]]),\"\"))","v":""},{"$f":"IF(ProjectInfoTable[[#This Row],[Proposed Equipment]]=\"\",\"\",IF(AND(ProjectState=\"UT\",ProjectType=\"Retrofit\",ISNUMBER(FIND(\"Re-Commissioning\",ProjectInfoTable[[#This Row],[Proposed Equipment]]))),\nIF(ProjectRecommissioning=\"only recommissioning\",\"Commissioning Only\",\"Commissioning w/ Lighting Upgrade\"),\"\"))","v":""},{"$f":"IFERROR(INDEX(INDIRECT(\"MeasureTable_\" & ProjectState & \"[Measure Reference Number]\"),MATCH(ProjectInfoTable[[#This Row],[Control Measure]],INDIRECT(\"MeasureTable_\" &ProjectState&\"[Measure Name]\"),0)),\"\")","v":""},{"$f":"IFERROR(\n    _xlfn.LET(\n        _xlpm.filteredVersions,\n            _xlfn._xlws.FILTER(\n                INDIRECT(\"MeasureTable_\" & ProjectState & \"[Version Number]\"),\n                (INDIRECT(\"MeasureTable_\" & ProjectState & \"[Measure Reference Number]\") = ProjectInfoTable[[#This Row],[Control Measure Reference Number]]) *\n                (INDIRECT(\"MeasureTable_\" & ProjectState & \"[Eligible Measure]\") = TRUE)\n            ),\n        INDEX(_xlpm.filteredVersions, 1)\n    ),\n    \"\"\n)","v":""},{"$f":"IFERROR(\n  _xlfn.LET(\n    _xlpm.refRange, INDIRECT(\"MeasureTable_\" & ProjectState & \"[Measure Reference Number]\"),\n    _xlpm.eligibleRange, INDIRECT(\"MeasureTable_\" & ProjectState & \"[Eligible Measure]\"),\n    _xlpm.countTrue, SUMPRODUCT(--(_xlpm.refRange = ProjectInfoTable[[#This Row],[Control Measure Reference Number]]), --(_xlpm.eligibleRange = TRUE)),\n    _xlpm.countNonBlank, SUMPRODUCT(--(_xlpm.refRange = ProjectInfoTable[[#This Row],[Control Measure Reference Number]]), --(_xlpm.eligibleRange <> \"\")),\n    IF(_xlpm.countNonBlank = 0, \"\", IF(_xlpm.countTrue >= 1, TRUE, FALSE))\n  ),\n  \"\"\n)","v":""},{"$f":"IF(ProjectInfoTable[[#This Row],[Proposed Equipment]]=\"\",\"\",IFERROR(INDEX(INDIRECT(\"EquipmentTable_\"&IF(ProjectType=\"Retrofit\",\"Retrofit_\",\"NCMR_\")&ProjectState&\"[controlMethod]\"),MATCH(LEFT(ProjectInfoTable[[#This Row],[Proposed Equipment]],FIND(\"[\",ProjectInfoTable[[#This Row],[Proposed Equipment]],1)-2),INDIRECT(\"EquipmentTable_\"&IF(ProjectType=\"Retrofit\",\"Retrofit_\",\"NCMR_\")&ProjectState&\"[equipmentProposed]\"),0)),\"\"))","v":""},{"$f":"IFERROR(VALUE(INDEX(INDIRECT(\"MeasureTable_\" & ProjectState & \"[CustomerIncentiveDollarperunit]\"),MATCH(ProjectInfoTable[[#This Row],[Control Measure]]&\" | TRUE\",INDIRECT(\"MeasureTable_\"&ProjectState&\"[MeasureEligibleConcatenate]\"),0))),\"\")","v":""},{"$f":"IFERROR(INDEX(INDIRECT(\"MeasureTable_\"&ProjectState&\"[SiteSpecificCalculation]\"),MATCH(ProjectInfoTable[[#This Row],[Control Measure]]&\" | TRUE\",INDIRECT(\"MeasureTable_\"&ProjectState&\"[MeasureEligibleConcatenate]\"),0)),\"\")","v":""},{"$f":"IFERROR(INDEX(INDIRECT(\"MeasureTable_\"&ProjectState&\"[GrossIncrementalAnnualElectricSavings ]\"),MATCH(ProjectInfoTable[[#This Row],[Control Measure]]&\" | TRUE\",INDIRECT(\"MeasureTable_\"&ProjectState&\"[MeasureEligibleConcatenate]\"),0)),\"\")","v":""},{"$f":"IFERROR(INDEX(INDIRECT(\"MeasureTable_\"&ProjectState&\"[GrossAverage onthly emand eduction]\"),MATCH(ProjectInfoTable[[#This Row],[Control Measure]]&\" | TRUE\",INDIRECT(\"MeasureTable_\"&ProjectState&\"[MeasureEligibleConcatenate]\"),0)),\"\")","v":""},{"$f":"IFERROR(INDEX(INDIRECT(\"MeasureTable_\"&ProjectState&\"[IncrementalMeasureCost]\"),MATCH(ProjectInfoTable[[#This Row],[Control Measure]]&\" | TRUE\",INDIRECT(\"MeasureTable_\"&ProjectState&\"[MeasureEligibleConcatenate]\"),0)),\"\")","v":""},{"$f":"IF(ProjectInfoTable[[#This Row],[Control Measure]]=\"\",\"\",IF(OR(ProjectInfoTable[[#This Row],[Control TRL Unit]]=\"Measure\",ProjectInfoTable[[#This Row],[Control TRL Unit]]=\"Linear ft.\"),IF(OR(ISNUMBER(FIND(\"Midstream\",ProjectInfoTable[[#This Row],[Control Measure]],1)),ISNUMBER(FIND(\"Lamp\",ProjectInfoTable[[#This Row],[Control Measure]],1))),ProjectInfoTable[[#This Row],[Quantity (Proposed)]]*ProjectInfoTable[[#This Row],[Lamps (Proposed)]],ProjectInfoTable[[#This Row],[Quantity (Proposed)]]),1))","v":""},{"$f":"IF(ProjectInfoTable[[#This Row],[Control Measure]]=\"\",\"\",IF(ISNUMBER(FIND(\"LF \",ProjectInfoTable[[#This Row],[Proposed Equipment]],1)),VALUE(RIGHT(LEFT(ProjectInfoTable[[#This Row],[Proposed Equipment]],FIND(\"LF \",ProjectInfoTable[[#This Row],[Proposed Equipment]],1)-1),LEN(LEFT(ProjectInfoTable[[#This Row],[Proposed Equipment]],FIND(\"LF \",ProjectInfoTable[[#This Row],[Proposed Equipment]],1)-1))-FIND(\"[\",ProjectInfoTable[[#This Row],[Proposed Equipment]],1))),IF(TRIM(UPPER(ProjectInfoTable[[#This Row],[Control TRL Unit]]))=\"WATT CONTROLLED\",IF(ISNUMBER(FIND(\"Controls Only\",ProjectInfoTable[[#This Row],[Proposed Equipment]],1)),IF(OR(ProjectType <> \"Retrofit\",ProjectInfoTable[[#This Row],[Space W (Proposed)]]>0),ProjectInfoTable[[#This Row],[Space W (Proposed)]],ProjectInfoTable[[#This Row],[Space W (Existing, Stipulated)]]),ProjectInfoTable[[#This Row],[Space W (Proposed)]]),IF(TRIM(UPPER(ProjectInfoTable[[#This Row],[Control TRL Unit]]))=\"KWH\",IF(ProjectInfoTable[[#This Row],[Control Measure kWh/yr Savings (Stipulated)]]=0,0,ROUND(ProjectInfoTable[[#This Row],[Control Measure kWh/yr Savings (Stipulated)]],2)),1))))","v":""},{"$f":"IFERROR(IF(LEN(ProjectInfoTable[[#This Row],[Proposed Equipment]])-(FIND(\"]\",ProjectInfoTable[[#This Row],[Proposed Equipment]],1))>0,\"Control(s)\",\"\"),\"\")","v":""},{"$f":"IFERROR(INDEX(INDIRECT(\"MeasureTable_\"&ProjectState&\"[Unit]\"),MATCH(ProjectInfoTable[[#This Row],[Control Measure]]&\" | TRUE\",INDIRECT(\"MeasureTable_\"&ProjectState&\"[MeasureEligibleConcatenate]\"),0)),\"\")","v":""},{"$f":"IFERROR(INDEX(INDIRECT(\"MeasureTable_\"&ProjectState&\"[ProjectCapPercent]\"),MATCH(ProjectInfoTable[[#This Row],[Control Measure]]&\" | TRUE\",INDIRECT(\"MeasureTable_\"&ProjectState&\"[MeasureEligibleConcatenate]\"),0)),\"\")","v":""},{"$f":"IF(OR(ProjectInfoTable[[#This Row],[Fixture Measure]]<>\"\",ProjectInfoTable[[#This Row],[Control Measure]]<>\"\"),1,\"\")","v":""},{"$f":"IF(ProjectInfoTable[[#This Row],[TRL Unit]]=\"\",\"\",IF(OR(ISNUMBER(SEARCH(\"measure\",ProjectInfoTable[[#This Row],[TRL Unit]])),ISNUMBER(SEARCH(\"linear ft\",ProjectInfoTable[[#This Row],[TRL Unit]])),ProjectInfoTable[[#This Row],[TRL Unit]]=0),990,991))","v":""},{"$f":"IFERROR(SUBSTITUTE(LEFT(ProjectInfoTable[[#This Row],[Proposed Equipment]],FIND(\"]\",ProjectInfoTable[[#This Row],[Proposed Equipment]],1)),\"Controls Only []\",\"\",1),\"\")","v":""},{"$f":"IF(ProjectInfoTable[[#This Row],[FixturesOnly]]=\"\",\"\",IF(ISNUMBER(FIND(\"L \",ProjectInfoTable[[#This Row],[Proposed Equipment]],1)),ProjectInfoTable[[#This Row],[Quantity (Proposed)]]*ProjectInfoTable[[#This Row],[Lamps (Proposed)]],ProjectInfoTable[[#This Row],[Quantity (Proposed)]]))","v":""},{"$f":"IFERROR(INDEX(ControlsLookup[Full Description],MATCH(RIGHT(ProjectInfoTable[[#This Row],[Proposed Equipment]],LEN(ProjectInfoTable[[#This Row],[Proposed Equipment]])-FIND(\"]\",ProjectInfoTable[[#This Row],[Proposed Equipment]],1)-3),ControlsLookup[Controls],0)),\"\")","v":""},{"$f":"IF(ProjectInfoTable[[#This Row],[ControlsOnly]]=\"\",\"\",IF(OR(ISNUMBER(FIND(\"Net\",ProjectInfoTable[[#This Row],[Proposed Equipment]],1)),ISNUMBER(FIND(\"Int\",ProjectInfoTable[[#This Row],[Proposed Equipment]],1))),ProjectInfoTable[[#This Row],[Quantity (Proposed)]],1))","v":""}]
[null,{"$f":"ROW(ProjectInfoTable[[#This Row],[OpSch]])-ROW(ProjectInfoTable[[#Headers],[OpSch]])","v":3},{"$f":"IFERROR(INDEX(RetrofitBaselineEquipment_Table[categoryBaseline],MATCH(RIGHT(LEFT(ProjectInfoTable[[#This Row],[Existing Equipment]],FIND(\" (\",ProjectInfoTable[[#This Row],[Existing Equipment]],1)-1),LEN(LEFT(ProjectInfoTable[[#This Row],[Existing Equipment]],FIND(\" (\",ProjectInfoTable[[#This Row],[Existing Equipment]],1)-1))-FIND(\": \",ProjectInfoTable[[#This Row],[Existing Equipment]],1)-1),RetrofitBaselineEquipment_Table[equipmentBaseline],0)),\"\")","v":""},null,null,null,null,{"$f":"IF(ProjectInfoTable[[#This Row],[Existing Equipment]]=\"\",\"\",IF(ISNUMBER(FIND(\"LF\",ProjectInfoTable[[#This Row],[Existing Equipment]],1)),1,IFERROR(VALUE(SUBSTITUTE(RIGHT(LEFT(ProjectInfoTable[[#This Row],[Existing Equipment]],FIND(\"L\",ProjectInfoTable[[#This Row],[Existing Equipment]],FIND(\"[\",ProjectInfoTable[[#This Row],[Existing Equipment]],1))-1),3),\"[\",\"\")),1)))","v":""},{"$f":"IF(ProjectInfoTable[[#This Row],[Existing Equipment]]=\"\",\"\",VALUE(SUBSTITUTE(RIGHT(LEFT(RIGHT(ProjectInfoTable[[#This Row],[Existing Equipment]],LEN(ProjectInfoTable[[#This Row],[Existing Equipment]])-IFERROR(FIND(\"[\",ProjectInfoTable[[#This Row],[Existing Equipment]],1),0)),IFERROR(FIND(\"W\",RIGHT(ProjectInfoTable[[#This Row],[Existing Equipment]],LEN(ProjectInfoTable[[#This Row],[Existing Equipment]])-IFERROR(FIND(\"[\",ProjectInfoTable[[#This Row],[Existing Equipment]],1),0)),1),0)),LEN(LEFT(RIGHT(ProjectInfoTable[[#This Row],[Existing Equipment]],LEN(ProjectInfoTable[[#This Row],[Existing Equipment]])-IFERROR(FIND(\"[\",ProjectInfoTable[[#This Row],[Existing Equipment]],1),0)),IFERROR(FIND(\"W\",RIGHT(ProjectInfoTable[[#This Row],[Existing Equipment]],LEN(ProjectInfoTable[[#This Row],[Existing Equipment]])-IFERROR(FIND(\"[\",ProjectInfoTable[[#This Row],[Existing Equipment]],1),0)),1),0)))-IFERROR(FIND(\"-\",LEFT(RIGHT(ProjectInfoTable[[#This Row],[Existing Equipment]],LEN(ProjectInfoTable[[#This Row],[Existing Equipment]])-IFERROR(FIND(\"[\",ProjectInfoTable[[#This Row],[Existing Equipment]],1),0)),IFERROR(FIND(\"W\",RIGHT(ProjectInfoTable[[#This Row],[Existing Equipment]],LEN(ProjectInfoTable[[#This Row],[Existing Equipment]])-IFERROR(FIND(\"[\",ProjectInfoTable[[#This Row],[Existing Equipment]],1),0)),1),0)),1),0)),\"W\",\"\")))","v":""},{"$f":"IF(ProjectInfoTable[[#This Row],[Existing Equipment]]=\"\",\"\",IF(AND(RIGHT(LEFT(ProjectInfoTable[[#This Row],[Existing Equipment]],FIND(\"]\",ProjectInfoTable[[#This Row],[Existing Equipment]],1)-1),1)<>\"W\"),IFERROR(TRIM(IF(IFERROR(FIND(\"FLT\",ProjectInfoTable[[#This Row],[Existing Equipment]],1),0)>0,LEFT(RIGHT(LEFT(ProjectInfoTable[[#This Row],[Existing Equipment]],FIND(\" (\",ProjectInfoTable[[#This Row],[Existing Equipment]],1)),LEN(LEFT(ProjectInfoTable[[#This Row],[Existing Equipment]],FIND(\" (\",ProjectInfoTable[[#This Row],[Existing Equipment]],1)))-FIND(\":\",ProjectInfoTable[[#This Row],[Existing Equipment]],1)-1),FIND(\" \",RIGHT(LEFT(ProjectInfoTable[[#This Row],[Existing Equipment]],FIND(\" (\",ProjectInfoTable[[#This Row],[Existing Equipment]],1)),LEN(LEFT(ProjectInfoTable[[#This Row],[Existing Equipment]],FIND(\" (\",ProjectInfoTable[[#This Row],[Existing Equipment]],1)))-FIND(\":\",ProjectInfoTable[[#This Row],[Existing Equipment]],1)-1),1)-1),RIGHT(LEFT(ProjectInfoTable[[#This Row],[Existing Equipment]],FIND(\" (\",ProjectInfoTable[[#This Row],[Existing Equipment]],1)),LEN(LEFT(ProjectInfoTable[[#This Row],[Existing Equipment]],FIND(\" (\",ProjectInfoTable[[#This Row],[Existing Equipment]],1)))-FIND(\":\",ProjectInfoTable[[#This Row],[Existing Equipment]],1)-1))&\" - \"&RIGHT(LEFT(ProjectInfoTable[[#This Row],[Existing Equipment]],FIND(\"]\",ProjectInfoTable[[#This Row],[Existing Equipment]],1)-1),LEN(LEFT(ProjectInfoTable[[#This Row],[Existing Equipment]],FIND(\"]\",ProjectInfoTable[[#This Row],[Existing Equipment]],1)-1))-FIND(\"W \",ProjectInfoTable[[#This Row],[Existing Equipment]],1)-3)),\"\"),\"\"))","v":""},{"$f":"IF(ProjectInfoTable[[#This Row],[Existing Equipment]]=\"\",\"\",IF(ProjectInfoTable[[#This Row],[Fixture/Ballast Check for Formula]]=\"\",IF(ISNUMBER(FIND(\"LF\",ProjectInfoTable[[#This Row],[Existing Equipment]],FIND(\"[\",ProjectInfoTable[[#This Row],[Existing Equipment]],1))),ProjectInfoTable[[#This Row],[Lamp W (Existing)]],ProjectInfoTable[[#This Row],[Lamps (Existing)]]*ProjectInfoTable[[#This Row],[Lamp W (Existing)]]),IFERROR(ROUND( ProjectInfoTable[[#This Row],[Lamps (Existing)]]*ProjectInfoTable[[#This Row],[Lamp W (Existing)]]*INDEX(FixtureWattageFormula_Table[A],MATCH(ProjectInfoTable[[#This Row],[Fixture/Ballast Check for Formula]],FixtureWattageFormula_Table[Concatenate],0))+INDEX(FixtureWattageFormula_Table[B],MATCH(ProjectInfoTable[[#This Row],[Fixture/Ballast Check for Formula]],FixtureWattageFormula_Table[Concatenate],0)),0),ProjectInfoTable[[#This Row],[Lamps (Existing)]]*ProjectInfoTable[[#This Row],[Lamp W (Existing)]])))","v":""},{"$f":"IF(OR(ISNUMBER(FIND(\"T8 \",ProjectInfoTable[[#This Row],[Existing Equipment]],1)),ISNUMBER(FIND(\"T5 \",ProjectInfoTable[[#This Row],[Existing Equipment]],1)),ISNUMBER(FIND(\"T12 \",ProjectInfoTable[[#This Row],[Existing Equipment]],1)),ISNUMBER(FIND(\"T12HO - 8\",ProjectInfoTable[[#This Row],[Existing Equipment]],1)),ISNUMBER(FIND(\"Incand\",ProjectInfoTable[[#This Row],[Existing Equipment]],1))),IFERROR(ROUND(INDEX(StipulatedWattage_Table[Stipulated fixture wattage],MATCH(MID(ProjectInfoTable[[#This Row],[Existing Equipment]],FIND(\"[\",ProjectInfoTable[[#This Row],[Existing Equipment]],1),FIND(\"]\",ProjectInfoTable[[#This Row],[Existing Equipment]],1)-FIND(\"[\",ProjectInfoTable[[#This Row],[Existing Equipment]],1)+1),StipulatedWattage_Table[Fixture Code],0)),0),ProjectInfoTable[[#This Row],[Fixture W (Existing, Actual)]]),ProjectInfoTable[[#This Row],[Fixture W (Existing, Actual)]])","v":""},{"$f":"IF(ProjectType=\"Retrofit\",IF(ProjectInfoTable[[#This Row],[Existing Equipment]]=\"\",\"\",ProjectInfoTable[[#This Row],[Quantity (Existing)]]*ProjectInfoTable[[#This Row],[Fixture W (Existing, Actual)]]),IF(ISNUMBER(FIND(\"Interior\",ProjectInfoTable[[#This Row],[Proposed Equipment]],1)),IF(ISNUMBER(FIND(\"Controls Only\",ProjectInfoTable[[#This Row],[Proposed Equipment]])),ProjectInfoTable[[#This Row],[Space W (Proposed)]],(AllowedWattage-SUMIFS(ProjectInfoTable[Space W (Proposed)],ProjectInfoTable[Proposed Equipment],\"*Interior*\",ProjectInfoTable[Proposed Equipment],\"*Controls Only*\"))*ProjectInfoTable[[#This Row],[Space W (Proposed)]]/(SUMIFS(ProjectInfoTable[Space W (Proposed)],ProjectInfoTable[Proposed Equipment],\"*Interior*\")-SUMIFS(ProjectInfoTable[Space W (Proposed)],ProjectInfoTable[Proposed Equipment],\"*Interior*\",ProjectInfoTable[Proposed Equipment],\"*Controls Only*\"))),\"\"))","v":""},{"$f":"IF(ProjectType=\"Retrofit\",IF(ProjectInfoTable[[#This Row],[Existing Equipment]]=\"\",\"\",ProjectInfoTable[[#This Row],[Quantity (Existing)]]*ProjectInfoTable[[#This Row],[Fixture W (Existing, Stipulated)]]),ProjectInfoTable[[#This Row],[Space W (Existing, Actual)]])","v":""},{"$f":"IFERROR(INDEX(OperatingHours_List,MATCH(ProjectInfoTable[[#This Row],[OpSch]],OperatingSchedules_List,0))*ProjectInfoTable[[#This Row],[Space W (Existing, Actual)]]/1000,\"\")","v":""},{"$f":"IFERROR(INDEX(OperatingHours_List,MATCH(ProjectInfoTable[[#This Row],[OpSch]],OperatingSchedules_List,0))*ProjectInfoTable[[#This Row],[Space W (Existing, Actual)]]/1000*(IFERROR(INDEX(ControlsLookup[],MATCH(RIGHT(ProjectInfoTable[[#This Row],[Existing Equipment]],LEN(ProjectInfoTable[[#This Row],[Existing Equipment]])-FIND(\"]\",ProjectInfoTable[[#This Row],[Existing Equipment]],1)-3),ControlsLookup[Controls],0),MATCH(\"CSF_\"&ProjectState,ControlsLookup[#Headers],0)),0))*-1,\"\")","v":""},{"$f":"IF(OR(ProjectInfoTable[[#This Row],[Fixture kWh (Existing, Actual)]]=\"\",ProjectInfoTable[[#This Row],[Control kWh (Existing, Actual)]]=\"\"),\"\",ProjectInfoTable[[#This Row],[Fixture kWh (Existing, Actual)]]+ProjectInfoTable[[#This Row],[Control kWh (Existing, Actual)]])","v":""},{"$f":"IFERROR(INDEX(OperatingHours_List,MATCH(ProjectInfoTable[[#This Row],[OpSch]],OperatingSchedules_List,0))*ProjectInfoTable[[#This Row],[Space W (Existing, Stipulated)]]/1000,\"\")","v":""},{"$f":"IFERROR(INDEX(OperatingHours_List,MATCH(ProjectInfoTable[[#This Row],[OpSch]],OperatingSchedules_List,0))*ProjectInfoTable[[#This Row],[Space W (Existing, Stipulated)]]/1000*(IFERROR(INDEX(ControlsLookup[],MATCH(RIGHT(ProjectInfoTable[[#This Row],[Existing Equipment]],LEN(ProjectInfoTable[[#This Row],[Existing Equipment]])-FIND(\"]\",ProjectInfoTable[[#This Row],[Existing Equipment]],1)-3),ControlsLookup[Controls],0),MATCH(\"CSF_\"&ProjectState,ControlsLookup[#Headers],0)),0))*-1,\"\")","v":""},{"$f":"IF(OR(ProjectInfoTable[[#This Row],[Fixture kWh (Existing, Stipulated)]]=\"\",ProjectInfoTable[[#This Row],[Control kWh (Existing, Stipulated)]]=\"\"),\"\",ProjectInfoTable[[#This Row],[Fixture kWh (Existing, Stipulated)]]+ProjectInfoTable[[#This Row],[Control kWh (Existing, Stipulated)]])","v":""},{"$f":"IF(\n AND(\n  OR(ProjectInfoTable[[#This Row],[Existing Equipment]]=\"\",ProjectInfoTable[[#This Row],[Quantity (Existing)]]=\"\"),\n  ProjectType=\"Retrofit\"\n ),\n \"\",\n IF(\n  ISNUMBER(FIND(\"Street:\",ProjectInfoTable[[#This Row],[Existing Equipment]],1)),\n  IF(\n   OR(\n    AND(ProjectState=\"UT\",RateSchedule=12),\n    AND(ProjectState=\"ID\",RateSchedule=12),\n    AND(ProjectState=\"WY\",RateSchedule=58)\n   ),\n   IFERROR(\n    INDEX(\n     StreetLightingRates_Table[],\n     MATCH(MID(ProjectInfoTable[[#This Row],[Existing Equipment]],FIND(\": \",ProjectInfoTable[[#This Row],[Existing Equipment]],1)+2,FIND(\" (\",ProjectInfoTable[[#This Row],[Existing Equipment]],1)-FIND(\": \",ProjectInfoTable[[#This Row],[Existing Equipment]],1)-2)&ProjectInfoTable[[#This Row],[Lamp W (Existing)]],StreetLightingRates_Table[TechWattage],0),\n     MATCH(ProjectState&RateSchedule,StreetLightingRates_Table[#Headers],0)\n    )\n    *\n    ProjectInfoTable[[#This Row],[Quantity (Existing)]]\n    *\n    ProjectInfoTable[[#This Row],[Lamps (Existing)]]\n    *\n    12,\n    ProjectInfoTable[[#This Row],[Space kWh (Existing, Actual)]]\n    *\n    INDEX(INDIRECT(\"RateSchedules_\"&ProjectState&\"_Table[kWh Rate]\"),MATCH(RateSchedule,INDIRECT(\"RateSchedules_\"&ProjectState&\"_Table[Rate Schedule]\"),0))\n   ),\n   IFERROR(\n    ProjectInfoTable[[#This Row],[Space kWh (Existing, Actual)]]*\n    INDEX(INDIRECT(\"RateSchedules_\"&ProjectState&\"_Table[kWh Rate]\"),MATCH(RateSchedule,INDIRECT(\"RateSchedules_\"&ProjectState&\"_Table[Rate Schedule]\"),0)),0)\n   +\n   IFERROR(IF(ISNUMBER(FIND(\"Interior:\",ProjectInfoTable[[#This Row],[Existing Equipment]],1)),\n    ProjectInfoTable[[#This Row],[Space W (Existing, Actual)]]/1000*12*DDF*\n    INDEX(INDIRECT(\"RateSchedules_\"&ProjectState&\"_Table[kW Rate]\"),MATCH(RateSchedule,INDIRECT(\"RateSchedules_\"&ProjectState&\"_Table[Rate Schedule]\"),0)),0),0)\n  ),\n  IFERROR(\n   ProjectInfoTable[[#This Row],[Space kWh (Existing, Actual)]]*\n   INDEX(INDIRECT(\"RateSchedules_\"&ProjectState&\"_Table[kWh Rate]\"),MATCH(RateSchedule,INDIRECT(\"RateSchedules_\"&ProjectState&\"_Table[Rate Schedule]\"),0)),\n   0\n  )\n  +\n  IFERROR(IF(OR(ISNUMBER(FIND(\"Interior:\",ProjectInfoTable[[#This Row],[Existing Equipment]],1)),AND(ProjectType<>\"Retrofit\",ISNUMBER(FIND(\"Interior:\",ProjectInfoTable[[#This Row],[Proposed Equipment]],1)))),\n   ProjectInfoTable[[#This Row],[Space W (Existing, Actual)]]/1000*12*DDF*\n   INDEX(INDIRECT(\"RateSchedules_\"&ProjectState&\"_Table[kW Rate]\"),MATCH(RateSchedule,INDIRECT(\"RateSchedules_\"&ProjectState&\"_Table[Rate Schedule]\"),0)),0),\n   0\n  )\n )\n)","v":0},{"$f":"IF(\n AND(\n  OR(ProjectInfoTable[[#This Row],[Existing Equipment]]=\"\",ProjectInfoTable[[#This Row],[Quantity (Existing)]]=\"\"),\n  ProjectType=\"Retrofit\"\n ),\n \"\",\n IF(\n  ISNUMBER(FIND(\"Street:\",ProjectInfoTable[[#This Row],[Existing Equipment]],1)),\n  IF(\n   OR(\n    AND(ProjectState=\"UT\",RateSchedule=12),\n    AND(ProjectState=\"ID\",RateSchedule=12),\n    AND(ProjectState=\"WY\",RateSchedule=58)\n   ),\n   IFERROR(\n    INDEX(\n     StreetLightingRates_Table[],\n     MATCH(MID(ProjectInfoTable[[#This Row],[Existing Equipment]],FIND(\": \",ProjectInfoTable[[#This Row],[Existing Equipment]],1)+2,FIND(\" (\",ProjectInfoTable[[#This Row],[Existing Equipment]],1)-FIND(\": \",ProjectInfoTable[[#This Row],[Existing Equipment]],1)-2)&ProjectInfoTable[[#This Row],[Lamp W (Existing)]],StreetLightingRates_Table[TechWattage],0),\n     MATCH(ProjectState&RateSchedule,StreetLightingRates_Table[#Headers],0)\n    )\n    *\n    ProjectInfoTable[[#This Row],[Quantity (Existing)]]\n    *\n    ProjectInfoTable[[#This Row],[Lamps (Existing)]]\n    *\n    12,\n    ProjectInfoTable[[#This Row],[Space kWh (Existing, Stipulated)]]\n    *\n    INDEX(INDIRECT(\"RateSchedules_\"&ProjectState&\"_Table[kWh Rate]\"),MATCH(RateSchedule,INDIRECT(\"RateSchedules_\"&ProjectState&\"_Table[Rate Schedule]\"),0))\n   ),\n   IFERROR(\n    ProjectInfoTable[[#This Row],[Space kWh (Existing, Stipulated)]]*\n    INDEX(INDIRECT(\"RateSchedules_\"&ProjectState&\"_Table[kWh Rate]\"),MATCH(RateSchedule,INDIRECT(\"RateSchedules_\"&ProjectState&\"_Table[Rate Schedule]\"),0)),0)\n   +\n   IFERROR(IF(ISNUMBER(FIND(\"Interior:\",ProjectInfoTable[[#This Row],[Existing Equipment]],1)),\n    ProjectInfoTable[[#This Row],[Space W (Existing, Stipulated)]]/1000*12*DDF*\n    INDEX(INDIRECT(\"RateSchedules_\"&ProjectState&\"_Table[kW Rate]\"),MATCH(RateSchedule,INDIRECT(\"RateSchedules_\"&ProjectState&\"_Table[Rate Schedule]\"),0)),0),0)\n  ),\n  IFERROR(\n   ProjectInfoTable[[#This Row],[Space kWh (Existing, Stipulated)]]*\n   INDEX(INDIRECT(\"RateSchedules_\"&ProjectState&\"_Table[kWh Rate]\"),MATCH(RateSchedule,INDIRECT(\"RateSchedules_\"&ProjectState&\"_Table[Rate Schedule]\"),0)),\n   0\n  )\n  +\n  IFERROR(IF(OR(ISNUMBER(FIND(\"Interior:\",ProjectInfoTable[[#This Row],[Existing Equipment]],1)),AND(ProjectType<>\"Retrofit\",ISNUMBER(FIND(\"Interior:\",ProjectInfoTable[[#This Row],[Proposed Equipment]],1)))),\n   ProjectInfoTable[[#This Row],[Space W (Existing, Stipulated)]]/1000*12*DDF*\n   INDEX(INDIRECT(\"RateSchedules_\"&ProjectState&\"_Table[kW Rate]\"),MATCH(RateSchedule,INDIRECT(\"RateSchedules_\"&ProjectState&\"_Table[Rate Schedule]\"),0)),0),\n   0\n  )\n )\n)","v":0},{"$f":"IF(ProjectType=\"Retrofit\",IFERROR(INDEX(RetrofitBaselineEquipment_Table[categoryBaseline],MATCH(RIGHT(LEFT(ProjectInfoTable[[#This Row],[Proposed Equipment]],FIND(\" (\",ProjectInfoTable[[#This Row],[Proposed Equipment]],1)-1),LEN(LEFT(ProjectInfoTable[[#This Row],[Proposed Equipment]],FIND(\" (\",ProjectInfoTable[[#This Row],[Proposed Equipment]],1)-1))-FIND(\": \",ProjectInfoTable[[#This Row],[Proposed Equipment]],1)-1),RetrofitBaselineEquipment_Table[equipmentBaseline],0)),\"\"),IFERROR(INDEX(#REF!,MATCH(RIGHT(LEFT(ProjectInfoTable[[#This Row],[Proposed Equipment]],FIND(\" (\",ProjectInfoTable[[#This Row],[Proposed Equipment]],1)-1),LEN(LEFT(ProjectInfoTable[[#This Row],[Proposed Equipment]],FIND(\" (\",ProjectInfoTable[[#This Row],[Proposed Equipment]],1)-1))-FIND(\": \",ProjectInfoTable[[#This Row],[Proposed Equipment]],1)-1),#REF!,0)),\"\"))","v":""},{"$f":"IF(ProjectInfoTable[[#This Row],[Proposed Equipment]]=\"\",\"\",IF(ISNUMBER(SEARCH(\"Controls Only\",ProjectInfoTable[[#This Row],[Proposed Equipment]])),\"Controls Only\",IF(ProjectType=\"Retrofit\",_xlfn.LET(_xlpm.k,LEFT(ProjectInfoTable[[#This Row],[Proposed Equipment]],FIND(\"[\",ProjectInfoTable[[#This Row],[Proposed Equipment]])-2),_xlpm.ep,_xlfn.SWITCH(ProjectState,\"UT\",EquipmentTable_Retrofit_UT[equipmentProposed],\"WY\",EquipmentTable_Retrofit_WY[equipmentProposed],\"ID\",EquipmentTable_Retrofit_ID[equipmentProposed]),_xlpm.cp,_xlfn.SWITCH(ProjectState,\"UT\",EquipmentTable_Retrofit_UT[categoryProposed],\"WY\",EquipmentTable_Retrofit_WY[categoryProposed],\"ID\",EquipmentTable_Retrofit_ID[categoryProposed]),_xlfn.XLOOKUP(_xlpm.k,_xlpm.ep,_xlpm.cp,\"Non-eligible fixture - Retrofit - \"&ProjectState)),_xlfn.LET(_xlpm.k,MID(ProjectInfoTable[[#This Row],[Proposed Equipment]],FIND(\": \",ProjectInfoTable[[#This Row],[Proposed Equipment]])+2,FIND(\" (\",ProjectInfoTable[[#This Row],[Proposed Equipment]])-(FIND(\": \",ProjectInfoTable[[#This Row],[Proposed Equipment]])+2)),_xlpm.ep,_xlfn.SWITCH(ProjectState,\"UT\",EquipmentTable_NCMR_UT[equipmentProposed],\"WY\",EquipmentTable_NCMR_WY[equipmentProposed],\"ID\",EquipmentTable_NCMR_ID[equipmentProposed]),_xlpm.cp,_xlfn.SWITCH(ProjectState,\"UT\",EquipmentTable_NCMR_UT[categoryProposed],\"WY\",EquipmentTable_NCMR_WY[categoryProposed],\"ID\",EquipmentTable_NCMR_ID[categoryProposed]),_xlfn.XLOOKUP(_xlpm.k,_xlpm.ep,_xlpm.cp,\"Non-eligible fixture - NCMR - \"&ProjectState)))))","v":""},null,null,"ü",{"$f":"IF(ProjectInfoTable[[#This Row],[Proposed Equipment]]=\"\",\"\",IF(ProjectInfoTable[[#This Row],[Measure Selection]]=\"\",0,IF(ISNUMBER(FIND(\"LF\",ProjectInfoTable[[#This Row],[Proposed Equipment]],1)),1,IFERROR(VALUE(SUBSTITUTE(RIGHT(LEFT(ProjectInfoTable[[#This Row],[Proposed Equipment]],FIND(\"L\",ProjectInfoTable[[#This Row],[Proposed Equipment]],FIND(\"[\",ProjectInfoTable[[#This Row],[Proposed Equipment]],1))-1),2),\"[\",\"\")),IFERROR(LEFT(RIGHT(ProjectInfoTable[[#This Row],[Proposed Equipment]],LEN(ProjectInfoTable[[#This Row],[Proposed Equipment]])-FIND(\"-lamp\",ProjectInfoTable[[#This Row],[Proposed Equipment]],1)+2),1),1)))))","v":""},{"$f":"IF(ProjectInfoTable[[#This Row],[Proposed Equipment]]=\"\",\"\",IF(ProjectInfoTable[[#This Row],[Measure Selection]]=\"\",0,IFERROR(\n\nIF(ISNUMBER(FIND(\"W]\",ProjectInfoTable[[#This Row],[Proposed Equipment]])),\nRIGHT(MID(ProjectInfoTable[[#This Row],[Proposed Equipment]],FIND(\"W]\",ProjectInfoTable[[#This Row],[Proposed Equipment]],FIND(\"[\",ProjectInfoTable[[#This Row],[Proposed Equipment]]))-7,7),\nLEN(MID(ProjectInfoTable[[#This Row],[Proposed Equipment]],FIND(\"W]\",ProjectInfoTable[[#This Row],[Proposed Equipment]],FIND(\"[\",ProjectInfoTable[[#This Row],[Proposed Equipment]]))-7,7)) -\nIFERROR(FIND(\" - \",MID(ProjectInfoTable[[#This Row],[Proposed Equipment]],FIND(\"W]\",ProjectInfoTable[[#This Row],[Proposed Equipment]],FIND(\"[\",ProjectInfoTable[[#This Row],[Proposed Equipment]]))-7,7))+2,\nFIND(\"[\",MID(ProjectInfoTable[[#This Row],[Proposed Equipment]],FIND(\"W]\",ProjectInfoTable[[#This Row],[Proposed Equipment]],FIND(\"[\",ProjectInfoTable[[#This Row],[Proposed Equipment]]))-7,7)))),\n\nIF(ISNUMBER(FIND(\"[\",MID(ProjectInfoTable[[#This Row],[Proposed Equipment]],FIND(\"W \",ProjectInfoTable[[#This Row],[Proposed Equipment]],FIND(\"[\",ProjectInfoTable[[#This Row],[Proposed Equipment]]))-7,7))),\nRIGHT(MID(ProjectInfoTable[[#This Row],[Proposed Equipment]],FIND(\"W \",ProjectInfoTable[[#This Row],[Proposed Equipment]],FIND(\"[\",ProjectInfoTable[[#This Row],[Proposed Equipment]]))-7,7),\nLEN(MID(ProjectInfoTable[[#This Row],[Proposed Equipment]],FIND(\"W \",ProjectInfoTable[[#This Row],[Proposed Equipment]],FIND(\"[\",ProjectInfoTable[[#This Row],[Proposed Equipment]]))-7,7)) -\nIFERROR(FIND(\" - \",MID(ProjectInfoTable[[#This Row],[Proposed Equipment]],FIND(\"W \",ProjectInfoTable[[#This Row],[Proposed Equipment]],FIND(\"[\",ProjectInfoTable[[#This Row],[Proposed Equipment]]))-7,7))+2,\nFIND(\"[\",MID(ProjectInfoTable[[#This Row],[Proposed Equipment]],FIND(\"W \",ProjectInfoTable[[#This Row],[Proposed Equipment]],FIND(\"[\",ProjectInfoTable[[#This Row],[Proposed Equipment]]))-7,7)))),\n\nRIGHT(MID(ProjectInfoTable[[#This Row],[Proposed Equipment]],FIND(\"W \",ProjectInfoTable[[#This Row],[Proposed Equipment]],FIND(\"[\",ProjectInfoTable[[#This Row],[Proposed Equipment]]))-7,7),\nLEN(MID(ProjectInfoTable[[#This Row],[Proposed Equipment]],FIND(\"W \",ProjectInfoTable[[#This Row],[Proposed Equipment]],FIND(\"[\",ProjectInfoTable[[#This Row],[Proposed Equipment]]))-7,7)) -\nFIND(\" - \",MID(ProjectInfoTable[[#This Row],[Proposed Equipment]],FIND(\"W \",ProjectInfoTable[[#This Row],[Proposed Equipment]],FIND(\"[\",ProjectInfoTable[[#This Row],[Proposed Equipment]]))-7,7))-2\n))),0)))","v":""},{"$f":"IF(ProjectInfoTable[[#This Row],[Proposed Equipment]]=\"\",\"\",IFERROR(ProjectInfoTable[[#This Row],[Lamps (Proposed)]]*ProjectInfoTable[[#This Row],[Lamp W (Proposed)]],\"\"))","v":""},{"$f":"IF(ProjectInfoTable[[#This Row],[Proposed Equipment]]=\"\",\"\",IFERROR(ProjectInfoTable[[#This Row],[Quantity (Proposed)]]*ProjectInfoTable[[#This Row],[Fixture W (Proposed)]],\"\"))","v":""},{"$f":"IFERROR(INDEX(OperatingHours_List,MATCH(ProjectInfoTable[[#This Row],[OpSch]],OperatingSchedules_List,0))*ProjectInfoTable[[#This Row],[Space W (Proposed)]]/1000,\"\")","v":""},{"$f":"IF(OR(ISNUMBER(FIND(\"Controls Only\",ProjectInfoTable[[#This Row],[Proposed Equipment]],1)),ProjectInfoTable[[#This Row],[ControlsOnly]]=\"Re-Commissioning\"),\"Controls Only\",IFERROR(INDEX(OperatingHours_List,MATCH(ProjectInfoTable[[#This Row],[OpSch]],OperatingSchedules_List,0))*ProjectInfoTable[[#This Row],[Space W (Proposed)]]/1000*(IFERROR(INDEX(ControlsLookup[],MATCH(SUBSTITUTE(RIGHT(ProjectInfoTable[[#This Row],[Proposed Equipment]],LEN(ProjectInfoTable[[#This Row],[Proposed Equipment]])-FIND(\"]\",ProjectInfoTable[[#This Row],[Proposed Equipment]],1)-3),\" reused\",\"\"),ControlsLookup[Controls],0),MATCH(\"CSF_\"&ProjectState,ControlsLookup[#Headers],0)),0))*-1,\"\"))","v":""},{"$f":"IF(OR(ProjectInfoTable[[#This Row],[Fixture kWh (Proposed)]]=\"\",ProjectInfoTable[[#This Row],[Control kWh (Proposed)]]=\"\"),\"\",IFERROR(ProjectInfoTable[[#This Row],[Fixture kWh (Proposed)]]+ProjectInfoTable[[#This Row],[Control kWh (Proposed)]],0))","v":""},{"$f":"IF(\n OR(\n  ProjectInfoTable[[#This Row],[Proposed Equipment]]=\"\",\n  ProjectInfoTable[[#This Row],[Quantity (Proposed)]]=\"\"\n ),\n \"\",\n IF(\n  AND(\n   OR(\n    AND(\n     ProjectState=\"UT\",\n     RateSchedule=12\n    ),\n    AND(\n     ProjectState=\"ID\",\n     RateSchedule=12\n    ),\n    AND(\n     ProjectState=\"WY\",\n     RateSchedule=58\n    )\n   ),\n   ISNUMBER(FIND(\"Street:\",ProjectInfoTable[[#This Row],[Existing Equipment]],1))\n  ),\n  IF(\n   AND(\n    RateSchedule=53,\n    ISNUMBER(FIND(\"LED\",ProjectInfoTable[[#This Row],[Proposed Equipment]],1))\n   ),\n   ProjectInfoTable[[#This Row],[Fixture kWh (Proposed)]]\n   *\n   INDEX(\n    INDIRECT(\"RateSchedules_\"&ProjectState&\"_Table[kWh Rate]\"),\n    MATCH(RateSchedule,INDIRECT(\"RateSchedules_\"&ProjectState&\"_Table[Rate Schedule]\"),0)\n   ),\n   IFERROR(INDEX(\n    StreetLightingRates_Table[],\n    MATCH(\"LED\"&IF(AND(ProjectInfoTable[[#This Row],[Fixture W (Proposed)]]>0,ProjectInfoTable[[#This Row],[Fixture W (Proposed)]]<=70),70,IF(AND(ProjectInfoTable[[#This Row],[Fixture W (Proposed)]]>70,ProjectInfoTable[[#This Row],[Fixture W (Proposed)]]<=100),100,IF(AND(ProjectInfoTable[[#This Row],[Fixture W (Proposed)]]>100,ProjectInfoTable[[#This Row],[Fixture W (Proposed)]]<=150),150,IF(AND(ProjectInfoTable[[#This Row],[Fixture W (Proposed)]]>150,ProjectInfoTable[[#This Row],[Fixture W (Proposed)]]<=200),200,IF(AND(ProjectInfoTable[[#This Row],[Fixture W (Proposed)]]>200,ProjectInfoTable[[#This Row],[Fixture W (Proposed)]]<=250),250,IF(AND(ProjectInfoTable[[#This Row],[Fixture W (Proposed)]]>250,ProjectInfoTable[[#This Row],[Fixture W (Proposed)]]<=400),400,\"\")))))),StreetLightingRates_Table[TechWattage],0),\n    MATCH(ProjectState&RateSchedule,StreetLightingRates_Table[#Headers],0)\n   )\n   *ProjectInfoTable[[#This Row],[Lamps (Proposed)]]*ProjectInfoTable[[#This Row],[Quantity (Proposed)]]*12,\n  ProjectInfoTable[[#This Row],[Space kWh (Proposed)]]*INDEX(INDIRECT(\"RateSchedules_\"&ProjectState&\"_Table[kWh Rate]\"),MATCH(RateSchedule,INDIRECT(\"RateSchedules_\"&ProjectState&\"_Table[Rate Schedule]\"),0)))),\n  IFERROR(ProjectInfoTable[[#This Row],[Space kWh (Proposed)]]*INDEX(INDIRECT(\"RateSchedules_\"&ProjectState&\"_Table[kWh Rate]\"),MATCH(RateSchedule,INDIRECT(\"RateSchedules_\"&ProjectState&\"_Table[Rate Schedule]\"),0)),0)\n  +\n  IF(OR(ISNUMBER(FIND(\"Exterior:\",ProjectInfoTable[[#This Row],[Existing Equipment]],1)),ISNUMBER(FIND(\"Street:\",ProjectInfoTable[[#This Row],[Existing Equipment]],1))),0,IFERROR(ProjectInfoTable[[#This Row],[Space W (Proposed)]]/1000*12*DDF*INDEX(INDIRECT(\"RateSchedules_\"&ProjectState&\"_Table[kW Rate]\"),MATCH(RateSchedule,INDIRECT(\"RateSchedules_\"&ProjectState&\"_Table[Rate Schedule]\"),0)),0))\n )\n)","v":""},{"$f":"IF(ProjectInfoTable[[#This Row],[Measure Selection]]=\"\",0,IF(ProjectType=\"Retrofit\",IFERROR((ProjectInfoTable[[#This Row],[Space W (Existing, Actual)]]-ProjectInfoTable[[#This Row],[Space W (Proposed)]])/ProjectInfoTable[[#This Row],[Space W (Existing, Actual)]],\"\"),IF(AND(ProjectInfoTable[[#This Row],[Proposed Equipment]]=\"\",ProjectInfoTable[[#This Row],[Quantity (Proposed)]]=\"\"),\"\",IFERROR((ProjectInfoTable[[#This Row],[Space W (Existing, Stipulated)]]-ProjectInfoTable[[#This Row],[Space W (Proposed)]])/ProjectInfoTable[[#This Row],[Space W (Existing, Stipulated)]],\"n/a\"))))","v":""},{"$f":"IF(ProjectInfoTable[[#This Row],[Measure Selection]]=\"\",0,IF(ProjectType=\"Retrofit\",IFERROR((ProjectInfoTable[[#This Row],[Space W (Existing, Stipulated)]]-ProjectInfoTable[[#This Row],[Space W (Proposed)]])/ProjectInfoTable[[#This Row],[Space W (Existing, Stipulated)]],\"\"),ProjectInfoTable[[#This Row],[% Wattage Reduction (Actual)]]))","v":""},{"$f":"IFERROR(IF(OR(ProjectInfoTable[[#This Row],[Measure Selection]]=\"\",ProjectInfoTable[[#This Row],[ControlsOnly]]=\"Re-Commissioning\"),0,IF(AND(ProjectType=\"Retrofit\",LEFT(ProjectInfoTable[[#This Row],[Existing Equipment]],FIND(\": \",ProjectInfoTable[[#This Row],[Existing Equipment]],1)-1)<>\"Interior\"),0,((ProjectInfoTable[[#This Row],[Space W (Existing, Actual)]]-ProjectInfoTable[[#This Row],[Space W (Proposed)]])/1000*DDF)-IF(ProjectInfoTable[[#This Row],[Midstream Measure Name]]<>\"\",IFERROR(ProjectInfoTable[[#This Row],[kW Per Unit (Midstream)]]*ProjectInfoTable[[#This Row],[Quantity]]*ProjectInfoTable[[#This Row],[No. of TRL Units]],0),0))),\"\")","v":""},{"$f":"IFERROR(IF(OR(ProjectInfoTable[[#This Row],[Measure Selection]]=\"\",ProjectInfoTable[[#This Row],[ControlsOnly]]=\"Re-Commissioning\"),0,IF(AND(ISNUMBER(VALUE(ProjectInfoTable[[#This Row],[kW Per Unit]])),ProjectInfoTable[[#This Row],[kW Per Unit]]<>0),ROUND(ProjectInfoTable[[#This Row],[kW Per Unit]]*ProjectInfoTable[[#This Row],[Quantity]]*ProjectInfoTable[[#This Row],[No. of TRL Units]],2),IF(OR(AND(ProjectType=\"Retrofit\",LEFT(ProjectInfoTable[[#This Row],[Existing Equipment]],FIND(\": \",ProjectInfoTable[[#This Row],[Existing Equipment]],1)-1)<>\"Interior\"),AND(ProjectInfoTable[[#This Row],[Incentives Per Unit]]=0,INDEX(StipulatedSavingsYesNo_Table[Stipulated Savings?],MATCH(ProjectState,StipulatedSavingsYesNo_Table[State],0))=\"No\")),0,IF(ISNUMBER(FIND(\"Controls Only\",ProjectInfoTable[[#This Row],[Proposed Equipment]],1)),0,ROUND(((ProjectInfoTable[[#This Row],[Space W (Existing, Stipulated)]]-ProjectInfoTable[[#This Row],[Space W (Proposed)]])/1000*DDF)-IF(ProjectInfoTable[[#This Row],[Midstream Measure Name]]<>\"\",IFERROR(ProjectInfoTable[[#This Row],[kW Per Unit (Midstream)]]*ProjectInfoTable[[#This Row],[Quantity]]*ProjectInfoTable[[#This Row],[No. of TRL Units]],0),0),2))))),\"\")","v":""},{"$f":"IFERROR(IF(OR(ProjectInfoTable[[#This Row],[Control kWh (Proposed)]]=\"Controls Only\",ProjectInfoTable[[#This Row],[Measure Selection]]=\"\"),0,ROUND((ProjectInfoTable[[#This Row],[Fixture kWh (Existing, Actual)]]-ProjectInfoTable[[#This Row],[Fixture kWh (Proposed)]])*IF(VALUE(SpaceTypesInfo_Table[[#Totals],[HVAC Effects]])=0,1,1+VALUE(SpaceTypesInfo_Table[[#Totals],[HVAC Effects]])),0)),\"\")","v":""},{"$f":"IFERROR(IF(ProjectInfoTable[[#This Row],[Control kWh (Proposed)]]=\"Controls Only\",ROUND(IFERROR(INDEX(OperatingHours_List,MATCH(ProjectInfoTable[[#This Row],[OpSch]],OperatingSchedules_List,0))*IF(OR(ProjectType <> \"Retrofit\",ProjectInfoTable[[#This Row],[Space W (Proposed)]]>0),ProjectInfoTable[[#This Row],[Space W (Proposed)]],ProjectInfoTable[[#This Row],[Space W (Existing, Actual)]])/1000*(IFERROR(INDEX(ControlsLookup[],MATCH(RIGHT(ProjectInfoTable[[#This Row],[Proposed Equipment]],LEN(ProjectInfoTable[[#This Row],[Proposed Equipment]])-FIND(\"]\",ProjectInfoTable[[#This Row],[Proposed Equipment]],1)-3),ControlsLookup[Controls],0),MATCH(\"CSF_\"&ProjectState,ControlsLookup[#Headers],0)),0))*IF(VALUE(SpaceTypesInfo_Table[[#Totals],[HVAC Effects]])=0,1,1+VALUE(SpaceTypesInfo_Table[[#Totals],[HVAC Effects]])),\"\"),0),ROUND(IFERROR((ProjectInfoTable[[#This Row],[Control kWh (Existing, Actual)]]-ProjectInfoTable[[#This Row],[Control kWh (Proposed)]])*IF(VALUE(SpaceTypesInfo_Table[[#Totals],[HVAC Effects]])=0,1,1+VALUE(SpaceTypesInfo_Table[[#Totals],[HVAC Effects]])),\"\"),0)),\"\")","v":""},{"$f":"IF(OR(ProjectInfoTable[[#This Row],[Proposed Equipment]]=\"\",ProjectInfoTable[[#This Row],[Quantity (Proposed)]]=\"\"),\"\",IF(ProjectInfoTable[[#This Row],[Fixture Measure]]=\"\",0,IF(AND(ProjectInfoTable[[#This Row],[Incentives Per Unit]]=0,INDEX(StipulatedSavingsYesNo_Table[Stipulated Savings?],MATCH(ProjectState,StipulatedSavingsYesNo_Table[State],0))=\"No\"),0,ProjectInfoTable[[#This Row],[Total   kWh/yr Savings (Actual)]]-ProjectInfoTable[[#This Row],[Control Measure kWh/yr Savings (Actual)]])))","v":""},{"$f":"IF(OR(ProjectInfoTable[[#This Row],[Proposed Equipment]]=\"\",ProjectInfoTable[[#This Row],[Quantity (Proposed)]]=\"\"),\"\",IF(ProjectInfoTable[[#This Row],[Control Measure]]=\"\",0,ProjectInfoTable[[#This Row],[Control kWh/yr Savings (Actual)]]))","v":""},{"$f":"IF(AND(ProjectInfoTable[[#This Row],[Incentives Per Unit]]=0,INDEX(StipulatedSavingsYesNo_Table[Stipulated Savings?],MATCH(ProjectState,StipulatedSavingsYesNo_Table[State],0))=\"No\"),ProjectInfoTable[[#This Row],[Fixture kWh/yr Savings (Actual)]]+IF(ProjectInfoTable[[#This Row],[Control Measure kWh/yr Savings (Actual)]]=0,0,ProjectInfoTable[[#This Row],[Control kWh/yr Savings (Actual)]]),IF(AND(ProjectInfoTable[[#This Row],[Fixture kWh/yr Savings (Actual)]]=\"\",ProjectInfoTable[[#This Row],[Control kWh/yr Savings (Actual)]]=\"\"),\"\",ROUND(IF(ProjectInfoTable[[#This Row],[Fixture kWh/yr Savings (Actual)]]=\"\",0,ProjectInfoTable[[#This Row],[Fixture kWh/yr Savings (Actual)]])+IF(ProjectInfoTable[[#This Row],[Control kWh/yr Savings (Actual)]]=\"\",0,ProjectInfoTable[[#This Row],[Control kWh/yr Savings (Actual)]])-IF(ProjectInfoTable[[#This Row],[Midstream Measure Name]]<>\"\",IFERROR(ProjectInfoTable[[#This Row],[kWh Per Unit (Midstream)]]*ProjectInfoTable[[#This Row],[Quantity]]*ProjectInfoTable[[#This Row],[No. of TRL Units]],0),0),0)))","v":""},{"$f":"IFERROR(IF(OR(ProjectInfoTable[[#This Row],[Measure Selection]]=\"\",ProjectInfoTable[[#This Row],[ControlsOnly]]=\"Re-Commissioning\"),0,IF(AND(ProjectInfoTable[[#This Row],[Incentives Per Unit]]=0,INDEX(StipulatedSavingsYesNo_Table[Stipulated Savings?],MATCH(ProjectState,StipulatedSavingsYesNo_Table[State],0))=\"No\"),0,IF(ISNUMBER(FIND(\"Controls Only\",ProjectInfoTable[[#This Row],[Proposed Equipment]],1)),0,ROUND((ProjectInfoTable[[#This Row],[Fixture kWh (Existing, Stipulated)]]-ProjectInfoTable[[#This Row],[Fixture kWh (Proposed)]])*IF(VALUE(SpaceTypesInfo_Table[[#Totals],[HVAC Effects]])=0,1,1+VALUE(SpaceTypesInfo_Table[[#Totals],[HVAC Effects]])),0)))),\"\")","v":""},{"$f":"IFERROR(IF(ProjectInfoTable[[#This Row],[Control kWh (Proposed)]]=\"Controls Only\",ROUND(IFERROR(INDEX(OperatingHours_List,MATCH(ProjectInfoTable[[#This Row],[OpSch]],OperatingSchedules_List,0))*IF(OR(ProjectType <> \"Retrofit\",ProjectInfoTable[[#This Row],[Space W (Proposed)]]>0),ProjectInfoTable[[#This Row],[Space W (Proposed)]],ProjectInfoTable[[#This Row],[Space W (Existing, Stipulated)]])/1000*(IFERROR(INDEX(ControlsLookup[],MATCH(RIGHT(ProjectInfoTable[[#This Row],[Proposed Equipment]],LEN(ProjectInfoTable[[#This Row],[Proposed Equipment]])-FIND(\"]\",ProjectInfoTable[[#This Row],[Proposed Equipment]],1)-3),ControlsLookup[Controls],0),MATCH(\"CSF_\"&ProjectState,ControlsLookup[#Headers],0)),0))*IF(VALUE(SpaceTypesInfo_Table[[#Totals],[HVAC Effects]])=0,1,1+VALUE(SpaceTypesInfo_Table[[#Totals],[HVAC Effects]])),\"\"),0),ROUND(IFERROR((ProjectInfoTable[[#This Row],[Control kWh (Existing, Stipulated)]]-ProjectInfoTable[[#This Row],[Control kWh (Proposed)]])*IF(VALUE(SpaceTypesInfo_Table[[#Totals],[HVAC Effects]])=0,1,1+VALUE(SpaceTypesInfo_Table[[#Totals],[HVAC Effects]])),INDEX(ControlsLookup[],MATCH(RIGHT(ProjectInfoTable[[#This Row],[Proposed Equipment]],LEN(ProjectInfoTable[[#This Row],[Proposed Equipment]])-FIND(\"-\",ProjectInfoTable[[#This Row],[Proposed Equipment]],LEN(ProjectInfoTable[[#This Row],[Proposed Equipment]])-15)-1),ControlsLookup[Controls],0),MATCH(\"CSF_\"&ProjectState,ControlsLookup[#Headers],0))*IF(NOT(ISNUMBER(VALUE(ProjectInfoTable[[#This Row],[kWh Per Unit]]))),ProjectInfoTable[[#This Row],[Fixture kWh/yr Savings (Stipulated)]],ProjectInfoTable[[#This Row],[kWh Per Unit]]*ProjectInfoTable[[#This Row],[Quantity]]*ProjectInfoTable[[#This Row],[No. of TRL Units]])),0)),IF(OR(ProjectType=\"New Construction\",ProjectType=\"Major Renovation\"),IF(ProjectInfoTable[[#This Row],[Control kWh (Proposed)]]=\"\",\"\",0),\"\"))","v":""},{"$f":"IF(OR(ProjectInfoTable[[#This Row],[Proposed Equipment]]=\"\",ProjectInfoTable[[#This Row],[Quantity (Proposed)]]=\"\"),\"\",IF(ProjectInfoTable[[#This Row],[Fixture Measure]]=\"\",0,IF(AND(ProjectInfoTable[[#This Row],[Incentives Per Unit]]=0,INDEX(StipulatedSavingsYesNo_Table[Stipulated Savings?],MATCH(ProjectState,StipulatedSavingsYesNo_Table[State],0))=\"No\"),0,ProjectInfoTable[[#This Row],[Total   kWh/yr Savings (Stipulated)]]-ProjectInfoTable[[#This Row],[Control Measure kWh/yr Savings (Stipulated)]])))","v":""},{"$f":"IF(OR(ProjectInfoTable[[#This Row],[Proposed Equipment]]=\"\",ProjectInfoTable[[#This Row],[Quantity (Proposed)]]=\"\"),\"\",IF(ProjectInfoTable[[#This Row],[Control Measure]]=\"\",0,IF(OR(ProjectType=\"New Construction\",ProjectType=\"Major Renovation\"),IFERROR(ROUND(ProjectInfoTable[[#This Row],[Control kWh Per Unit]]*ProjectInfoTable[[#This Row],[Control Quantity]]*ProjectInfoTable[[#This Row],[Control No. of TRL Units]],0),ProjectInfoTable[[#This Row],[Control kWh/yr Savings (Stipulated)]]),ProjectInfoTable[[#This Row],[Control kWh/yr Savings (Stipulated)]])))","v":""},{"$f":"IF(AND(ProjectInfoTable[[#This Row],[Incentives Per Unit]]=0,INDEX(StipulatedSavingsYesNo_Table[Stipulated Savings?],MATCH(ProjectState,StipulatedSavingsYesNo_Table[State],0))=\"No\"),ProjectInfoTable[[#This Row],[Fixture kWh/yr Savings (Stipulated)]]+IF(ProjectInfoTable[[#This Row],[Control Measure kWh/yr Savings (Stipulated)]]=0,0,ProjectInfoTable[[#This Row],[Control kWh/yr Savings (Stipulated)]]),IF(OR(ISNUMBER(VALUE(ProjectInfoTable[[#This Row],[kWh Per Unit]])),ISNUMBER(VALUE(ProjectInfoTable[[#This Row],[Control kWh Per Unit]]))),ROUND(IFERROR(ProjectInfoTable[[#This Row],[kWh Per Unit]]*ProjectInfoTable[[#This Row],[Quantity]]*ProjectInfoTable[[#This Row],[No. of TRL Units]],0)+IFERROR(ProjectInfoTable[[#This Row],[Control kWh Per Unit]]*ProjectInfoTable[[#This Row],[Control Quantity]]*ProjectInfoTable[[#This Row],[Control No. of TRL Units]],ProjectInfoTable[[#This Row],[Control kWh/yr Savings (Stipulated)]]),0),IF(AND(ProjectInfoTable[[#This Row],[Fixture kWh/yr Savings (Stipulated)]]=\"\",ProjectInfoTable[[#This Row],[Control kWh/yr Savings (Stipulated)]]=\"\"),\"\",ROUND(IF(ProjectInfoTable[[#This Row],[Fixture kWh/yr Savings (Stipulated)]]=\"\",0,ProjectInfoTable[[#This Row],[Fixture kWh/yr Savings (Stipulated)]])+IF(ProjectInfoTable[[#This Row],[Control kWh/yr Savings (Stipulated)]]=\"\",0,ProjectInfoTable[[#This Row],[Control kWh/yr Savings (Stipulated)]])-IF(ProjectInfoTable[[#This Row],[Midstream Measure Name]]<>\"\",IFERROR(ProjectInfoTable[[#This Row],[kWh Per Unit (Midstream)]]*ProjectInfoTable[[#This Row],[Quantity]]*ProjectInfoTable[[#This Row],[No. of TRL Units]],0),0),0))))","v":""},{"$f":"IF(OR(ISNUMBER(FIND(\"Midstream\",ProjectInfoTable[[#This Row],[Fixture Measure]])),ISNUMBER(FIND(\"SBDI\",ProjectInfoTable[[#This Row],[Fixture Measure]])),ISNUMBER(FIND(\"Small Bu\",ProjectInfoTable[[#This Row],[Fixture Measure]]))),\n\nIF(ProjectInfoTable[[#This Row],[Measure Selection]]=\"\",0,\n\nIF(ISNUMBER(FIND(\"/U]\",ProjectInfoTable[[#This Row],[Proposed Equipment]])),IFERROR(MID(ProjectInfoTable[[#This Row],[Proposed Equipment]],FIND(\"$\",ProjectInfoTable[[#This Row],[Proposed Equipment]],1)+1,FIND(\"/U]\",ProjectInfoTable[[#This Row],[Proposed Equipment]],1)-FIND(\"$\",ProjectInfoTable[[#This Row],[Proposed Equipment]],1)-1)*ProjectInfoTable[[#This Row],[Lamps (Proposed)]]*ProjectInfoTable[[#This Row],[Quantity (Proposed)]],0),\nIF(ISNUMBER(FIND(\"/U \",ProjectInfoTable[[#This Row],[Proposed Equipment]])),IFERROR(MID(ProjectInfoTable[[#This Row],[Proposed Equipment]],FIND(\"$\",ProjectInfoTable[[#This Row],[Proposed Equipment]],1)+1,FIND(\"/U \",ProjectInfoTable[[#This Row],[Proposed Equipment]],1)-FIND(\"$\",ProjectInfoTable[[#This Row],[Proposed Equipment]],1)-1)*ProjectInfoTable[[#This Row],[Lamps (Proposed)]]*ProjectInfoTable[[#This Row],[Quantity (Proposed)]],0),\nIFERROR(ProjectInfoTable[[#This Row],[Fixture Measure kWh/yr Savings (Stipulated)]]/SUM(ProjectInfoTable[Total   kWh/yr Savings (Stipulated)])*ProjectCost_Total,\"\")))),\"\")","v":""},{"$f":"IFERROR(IF(ProjectInfoTable[[#This Row],[Fixture Measure kWh/yr Savings (Stipulated)]]=0,0,IF(ProjectType=\"Retrofit\",IF(OR(ISNUMBER(FIND(\"Midstream\",ProjectInfoTable[[#This Row],[Fixture Measure]])),ISNUMBER(FIND(\"SBDI\",ProjectInfoTable[[#This Row],[Fixture Measure]])),ISNUMBER(FIND(\"Small Bu\",ProjectInfoTable[[#This Row],[Fixture Measure]]))),ProjectInfoTable[[#This Row],[Measure Cost (Direct)]],IFERROR(ProjectInfoTable[[#This Row],[Fixture Measure kWh/yr Savings (Stipulated)]]/kWhSavings_Typical_Stipulated*(ProjectCost_Total-SUM(ProjectInfoTable[Measure Cost (Direct)])),\"\")),IF(ProjectInfoTable[[#This Row],[Proposed Equipment]]=\"\",\"\",IFERROR(SpaceTypesInfo_Table[[#Totals],[NCMR Int Cost]]*ProjectInfoTable[[#This Row],[Fixture Measure kWh/yr Savings (Stipulated)]]/SUMIFS(ProjectInfoTable[Total   kWh/yr Savings (Stipulated)],ProjectInfoTable[Proposed Equipment],\"*Interior*\"),0)))),\"\")","v":""},{"$f":"IFERROR(\n IF(\n  ProjectInfoTable[[#This Row],[Control Measure kWh/yr Savings (Stipulated)]]=0,\n  0,\n  IF(\n   ProjectType=\"Retrofit\",\n    IFERROR(\n     ProjectInfoTable[[#This Row],[Control Measure kWh/yr Savings (Stipulated)]]\n     /\n     SUMIFS(ProjectInfoTable[Control Measure kWh/yr Savings (Stipulated)],ProjectInfoTable[Control Measure],\"<>\"\"\")\n     *\n     (ProjectCost_Total-SUM(ProjectInfoTable[Fixture Cost (Allocated)])),\n     \"\"\n    ),\nROUND(\n    IF(\n     ProjectInfoTable[[#This Row],[Proposed Equipment]]=\"\",\n     \"\",\n     IFERROR(\n      SpaceTypesInfo_Table[[#Totals],[NCMR Int Cost]]\n      *\n      ProjectInfoTable[[#This Row],[Control Measure kWh/yr Savings (Stipulated)]]\n      /\n      SUMIFS(ProjectInfoTable[Total   kWh/yr Savings (Stipulated)],ProjectInfoTable[Proposed Equipment],\"*Interior*\"),\n      0\n     )\n    ),\n    2\n   )\n  )\n ),\n \"\"\n)","v":""},{"$f":"IF(AND(ProjectInfoTable[[#This Row],[Fixture Cost (Allocated)]]=\"\",ProjectInfoTable[[#This Row],[Control Cost (Allocated)]]=\"\"),\"\",SUM(ProjectInfoTable[[#This Row],[Fixture Cost (Allocated)]:[Control Cost (Allocated)]]))","v":""},{"$f":"IFERROR(IF(OR(ProjectInfoTable[[#This Row],[Proposed Equipment]]=\"\",ProjectInfoTable[[#This Row],[Quantity (Proposed)]]=\"\"),\"\",IF(OR(ProjectInfoTable[[#This Row],[Measure Selection]]=\"\",ProjectInfoTable[[#This Row],[Control kWh (Proposed)]]=\"Controls Only\"),0,IF(NOT(ISNUMBER(FIND(\"Retrofit\",ProjectType,1))),ProjectInfoTable[[#This Row],[Fixture Energy Cost Savings (Stipulated)]],IF(AND(ProjectInfoTable[[#This Row],[Fixture Measure]]=\"\",ProjectInfoTable[[#This Row],[Control Measure]]<>\"\"),0,ROUND((ProjectInfoTable[[#This Row],[Total Energy Costs (Existing, Actual)]]-ProjectInfoTable[[#This Row],[Total Energy Costs (Proposed)]]),2))))),\"\")","v":""},{"$f":"IFERROR(IF(OR(ProjectInfoTable[[#This Row],[Proposed Equipment]]=\"\",ProjectInfoTable[[#This Row],[Quantity (Proposed)]]=\"\"),\"\",\n\nIF(ProjectInfoTable[[#This Row],[Control kWh (Proposed)]]=\"Controls Only\",ProjectInfoTable[[#This Row],[Control Measure kWh/yr Savings (Actual)]]*INDEX(INDIRECT(\"RateSchedules_\"&ProjectState&\"_Table[kWh Rate]\"),\nMATCH(RateSchedule,INDIRECT(\"RateSchedules_\"&ProjectState&\"_Table[Rate Schedule]\"),0)),\n\nIF(NOT(ISNUMBER(FIND(\"Retrofit\",ProjectType,1))),ProjectInfoTable[[#This Row],[Control Energy Cost Savings (Stipulated)]],IF(AND(ProjectInfoTable[[#This Row],[Fixture Measure]]=\"\",ProjectInfoTable[[#This Row],[Control Measure]]<>\"\"),ROUND((ProjectInfoTable[[#This Row],[Total Energy Costs (Existing, Actual)]]-ProjectInfoTable[[#This Row],[Total Energy Costs (Proposed)]]),2),ROUND((ProjectInfoTable[[#This Row],[Total Energy Costs (Existing, Actual)]]-ProjectInfoTable[[#This Row],[Total Energy Costs (Proposed)]]),2)*(ProjectInfoTable[[#This Row],[Control Measure kWh/yr Savings (Actual)]]/ProjectInfoTable[[#This Row],[Total   kWh/yr Savings (Actual)]]))))),\"\")","v":""},{"$f":"IF(OR(ProjectInfoTable[[#This Row],[Proposed Equipment]]=\"\",ProjectInfoTable[[#This Row],[Quantity (Proposed)]]=\"\"),\"\",ROUND(ProjectInfoTable[[#This Row],[Fixture Energy Cost Savings (Actual)]]+ProjectInfoTable[[#This Row],[Control Energy Cost Savings (Actual)]],2))","v":""},{"$f":"IF(OR(ProjectInfoTable[[#This Row],[Proposed Equipment]]=\"\",ProjectInfoTable[[#This Row],[Quantity (Proposed)]]=\"\"),\"\",IF(OR(ISNUMBER(VALUE(ProjectInfoTable[[#This Row],[kWh Per Unit]])),ISNUMBER(VALUE(ProjectInfoTable[[#This Row],[kW Per Unit]]))),IFERROR(ProjectInfoTable[[#This Row],[Fixture Measure kWh/yr Savings (Stipulated)]]*INDEX(INDIRECT(\"RateSchedules_\"&ProjectState&\"_Table[kWh Rate]\"),MATCH(RateSchedule,INDIRECT(\"RateSchedules_\"&ProjectState&\"_Table[Rate Schedule]\"),0)),0)+IFERROR(ProjectInfoTable[[#This Row],[kW Demand Reduction (Stipulated)]]/1000*12*INDEX(INDIRECT(\"RateSchedules_\"&ProjectState&\"_Table[kW Rate]\"),MATCH(RateSchedule,INDIRECT(\"RateSchedules_\"&ProjectState&\"_Table[Rate Schedule]\"),0)),0),IFERROR(ROUND((ProjectInfoTable[[#This Row],[Total Energy Costs (Existing, Stipulated)]]-ProjectInfoTable[[#This Row],[Total Energy Costs (Proposed)]])*ProjectInfoTable[[#This Row],[Fixture Measure kWh/yr Savings (Stipulated)]]/ProjectInfoTable[[#This Row],[Total   kWh/yr Savings (Stipulated)]],2),0)))","v":""},{"$f":"IF(OR(ProjectInfoTable[[#This Row],[Proposed Equipment]]=\"\",ProjectInfoTable[[#This Row],[Quantity (Proposed)]]=\"\"),\"\",\nIF(ProjectInfoTable[[#This Row],[Control kWh (Proposed)]]=\"Controls Only\",ProjectInfoTable[[#This Row],[Control Measure kWh/yr Savings (Stipulated)]]*INDEX(INDIRECT(\"RateSchedules_\"&ProjectState&\"_Table[kWh Rate]\"),\nMATCH(RateSchedule,INDIRECT(\"RateSchedules_\"&ProjectState&\"_Table[Rate Schedule]\"),0)),IF(OR(ISNUMBER(VALUE(ProjectInfoTable[[#This Row],[Control kWh Per Unit]])),\nISNUMBER(VALUE(ProjectInfoTable[[#This Row],[Control kW Per Unit]]))),IFERROR(ProjectInfoTable[[#This Row],[Control Measure kWh/yr Savings (Stipulated)]]*INDEX(INDIRECT(\"RateSchedules_\"&ProjectState&\"_Table[kWh Rate]\"),\nMATCH(RateSchedule,INDIRECT(\"RateSchedules_\"&ProjectState&\"_Table[Rate Schedule]\"),0)),0)+IFERROR(ProjectInfoTable[[#This Row],[kW Demand Reduction (Stipulated)]]/1000*12*\nINDEX(INDIRECT(\"RateSchedules_\"&ProjectState&\"_Table[kW Rate]\"),MATCH(RateSchedule,INDIRECT(\"RateSchedules_\"&ProjectState&\"_Table[Rate Schedule]\"),0)),0),\nIFERROR(ROUND((ProjectInfoTable[[#This Row],[Total Energy Costs (Existing, Stipulated)]]-ProjectInfoTable[[#This Row],[Total Energy Costs (Proposed)]])*ProjectInfoTable[[#This Row],[Control Measure kWh/yr Savings (Stipulated)]]/\nProjectInfoTable[[#This Row],[Total   kWh/yr Savings (Stipulated)]],2),0))))","v":""},{"$f":"IF(OR(ProjectInfoTable[[#This Row],[Proposed Equipment]]=\"\",ProjectInfoTable[[#This Row],[Quantity (Proposed)]]=\"\"),\"\",ROUND(ProjectInfoTable[[#This Row],[Fixture Energy Cost Savings (Stipulated)]]+ProjectInfoTable[[#This Row],[Control Energy Cost Savings (Stipulated)]],2))","v":""},{"$f":"IF(ProjectInfoTable[[#This Row],[OpSch]]=\"\",\"\",IF(OR(ProjectInfoTable[[#This Row],[Fixture Measure]]=\"\",ProjectInfoTable[[#This Row],[Eligible Fixture Measure]]<>TRUE),0,ProjectInfoTable[[#This Row],[Fixture Incentives (pre-capping)]])+IF(OR(ProjectInfoTable[[#This Row],[Control Measure]]=\"\",ProjectInfoTable[[#This Row],[Eligible Control Measure]]<>TRUE),0,ProjectInfoTable[[#This Row],[Control Incentives (pre-capping)]]))","v":""},{"$f":"IF(OR(ProjectInfoTable[[#This Row],[Fixture Measure]]<>\"\",ProjectInfoTable[[#This Row],[Control Measure]]<>\"\"),IF(ProjectInfoTable[[#This Row],[Fixture Incentives]]=\"\",0,ProjectInfoTable[[#This Row],[Fixture Incentives]])+IF(ProjectInfoTable[[#This Row],[Control Incentives]]=\"\",0,ProjectInfoTable[[#This Row],[Control Incentives]]),\"\")","v":""},null,{"$f":"IF(OR(ProjectInfoTable[[#This Row],[Fixture Measure]]=\"\",ProjectInfoTable[[#This Row],[OpSch]]=\"\",ProjectInfoTable[[#This Row],[Eligible Fixture Measure]]<>TRUE),\"\",\nIF(OR(ISNUMBER(FIND(\"SBDI\",ProjectInfoTable[[#This Row],[Fixture Measure]])),ISNUMBER(FIND(\"Small Bu\",ProjectInfoTable[[#This Row],[Fixture Measure]]))),IFERROR(0.75*ProjectInfoTable[[#This Row],[Fixture Cost (Allocated)]],\"cost error\"),\nIF(AND(OR(ProjectType=\"New Construction\",ProjectType=\"Major Renovation\"),LPDCodeToProposed<0.1,ISNUMBER(FIND(\"Interior\",ProjectInfoTable[[#This Row],[Proposed Equipment]],1))),0,IFERROR(ProjectInfoTable[[#This Row],[Incentives Per Unit]]*ProjectInfoTable[[#This Row],[Quantity]]*ProjectInfoTable[[#This Row],[No. of TRL Units]],\"TRL Error\"))))","v":""},{"$f":"IF(\n    OR(\n        ProjectInfoTable[[#This Row],[Fixture Measure]] = \"\",\n        ProjectInfoTable[[#This Row],[OpSch]] = \"\",\n        ProjectInfoTable[[#This Row],[Eligible Fixture Measure]] <> TRUE\n    ),\n    \"\",\n    IF(\n        OR(\n            ISNUMBER(FIND(\"SBDI\", ProjectInfoTable[[#This Row],[Fixture Measure]])),\n            ISNUMBER(FIND(\"Small Bu\", ProjectInfoTable[[#This Row],[Fixture Measure]]))\n        ),\n        IFERROR(\n            (Incentive_NonTypical / Incentive_NonTypical_PreCapped) * ProjectInfoTable[[#This Row],[Fixture Incentives (pre-capping)]],\n            \"\"\n        ),\n        IF(\n            AND(\n                ProjectType = \"Retrofit\",\n                ProjectState = \"UT\",\n                ISNUMBER(FIND(\"Post-Purchase\", ProjectInfoTable[[#This Row],[Fixture Measure]], 1))\n            ),\n            IFERROR(\n                MAX(\n                    MIN(\n                        ProjectInfoTable[[#This Row],[Fixture Incentives (pre-capping)]],\n                        ProjectInfoTable[[#This Row],[Fixture Cost (Allocated)]] * 0.7\n                    ),\n                    0\n                ),\n                0\n            ),\n            IF(\n                ProjectType = \"Retrofit\",\n                IF(\n                    ISNUMBER(FIND(\"Post-Purchase\", ProjectInfoTable[[#This Row],[Fixture Measure]], 1)),\n                    ProjectInfoTable[[#This Row],[Fixture Incentives (pre-capping)]],\n                    IFERROR(\n                        $BI$3 / $BH$3 * ProjectInfoTable[[#This Row],[Fixture Incentives (pre-capping)]],\n                        \"\"\n                    )\n                ),\n                IF(\n                    ISNUMBER(FIND(\"Interior\", ProjectInfoTable[[#This Row],[Proposed Equipment]], 1)),\n                    IF(\n                        LPDCodeToProposed > 0.1,\n                        ProjectInfoTable[[#This Row],[Fixture Incentives (pre-capping)]],\n                        0\n                    ),\n                    ProjectInfoTable[[#This Row],[Fixture Incentives (pre-capping)]]\n                )\n            )\n        )\n    )\n)","v":""},{"$f":"IF(OR(ProjectInfoTable[[#This Row],[Incentives Per Unit]]=\"\",ProjectInfoTable[[#This Row],[TRL Unit]]=\"\"),\"\",IF(ProjectInfoTable[[#This Row],[Eligible Fixture Measure]]<>TRUE,\"Invalid Effective Date\",\nIF(OR(ISNUMBER(FIND(\"SBDI\",ProjectInfoTable[[#This Row],[Fixture Measure]])),ISNUMBER(FIND(\"Small Bu\",ProjectInfoTable[[#This Row],[Fixture Measure]]))),\"$0.75 / dollar cost\",\nTEXT(ProjectInfoTable[[#This Row],[Incentives Per Unit]],\"$#,##0.00\")&\" / \"&IF(ProjectInfoTable[[#This Row],[Fixture Measure]]=\"\",\"\",IF(ProjectInfoTable[[#This Row],[TRL Unit]]=\"Measure\",IF(ISNUMBER(FIND(\"Relamp\",ProjectInfoTable[[#This Row],[Proposed Equipment]],1)),\"Lamp\",\"Fixture\"),ProjectInfoTable[[#This Row],[TRL Unit]])))))","v":""},{"$f":"IF(OR(ProjectInfoTable[[#This Row],[Proposed Equipment]]=\"\",ProjectInfoTable[[#This Row],[Quantity (Proposed)]]=\"\"),\"\",IFERROR(SUBSTITUTE(IF(ProjectType=\"Retrofit\",IF(OR(ISNUMBER(FIND(\"Controls On\",ProjectInfoTable[[#This Row],[Proposed Equipment]],1))),\"\",IF(OR(ProjectInfoTable[[#This Row],[Existing Equipment]]=\"\",ProjectInfoTable[[#This Row],[Proposed Equipment]]=\"\"),\"\",IF(ProjectState=\"UT\",IFERROR(IF(AlternativeEnergyOverride=\"Yes\",IFERROR(INDEX(INDIRECT(\"EquipmentTable_\"&\"Retrofit_\"&ProjectState&\"[#All]\"),MATCH(LEFT(ProjectInfoTable[[#This Row],[Proposed Equipment]],FIND(\"[\",ProjectInfoTable[[#This Row],[Proposed Equipment]],1)-2)&\" (Alt)\",INDIRECT(\"EquipmentTable_\"&\"Retrofit_\"&ProjectState&\"[equipmentProposed]\"),0)+1,MATCH(\"measureRetrofit_\"&LEFT(ProjectInfoTable[[#This Row],[Existing Equipment]],FIND(\":\",ProjectInfoTable[[#This Row],[Existing Equipment]],1)-1)&\"_\"&IF(IFERROR(INDEX(ControlsLookup[Rank],MATCH(RIGHT(ProjectInfoTable[[#This Row],[Proposed Equipment]],LEN(ProjectInfoTable[[#This Row],[Proposed Equipment]])-FIND(\"]\",ProjectInfoTable[[#This Row],[Proposed Equipment]],1)-3),ControlsLookup[Controls],0)),0)>IFERROR(INDEX(ControlsLookup[Rank],MATCH(RIGHT(ProjectInfoTable[[#This Row],[Existing Equipment]],LEN(ProjectInfoTable[[#This Row],[Existing Equipment]])-FIND(\"]\",ProjectInfoTable[[#This Row],[Existing Equipment]],1)-3),ControlsLookup[Controls],0)),0),INDEX(ControlsLookup[Controls Type],MATCH(LEFT(ProjectInfoTable[[#This Row],[Existing Equipment]],FIND(\":\",ProjectInfoTable[[#This Row],[Existing Equipment]],1)-1)&\"_\"&RIGHT(ProjectInfoTable[[#This Row],[Proposed Equipment]],LEN(ProjectInfoTable[[#This Row],[Proposed Equipment]])-FIND(\"]\",ProjectInfoTable[[#This Row],[Proposed Equipment]],1)-3),ControlsLookup[Controls Concatenate],0)),\"None\"),INDIRECT(\"EquipmentTable_\"&\"Retrofit_\"&ProjectState&\"[#Headers]\"),0)),INDEX(INDIRECT(\"EquipmentTable_\"&IF(ProjectType=\"Retrofit\",\"Retrofit_\",\"NCMR_\")&ProjectState&\"[#All]\"),MATCH(LEFT(ProjectInfoTable[[#This Row],[Proposed Equipment]],FIND(\"[\",ProjectInfoTable[[#This Row],[Proposed Equipment]],1)-2),INDIRECT(\"EquipmentTable_\"&\"Retrofit_\"&ProjectState&\"[equipmentProposed]\"),0)+1,MATCH(\"measureRetrofit_\"&LEFT(ProjectInfoTable[[#This Row],[Existing Equipment]],FIND(\":\",ProjectInfoTable[[#This Row],[Existing Equipment]],1)-1)&\"_\"&IF(IFERROR(INDEX(ControlsLookup[Rank],MATCH(RIGHT(ProjectInfoTable[[#This Row],[Proposed Equipment]],LEN(ProjectInfoTable[[#This Row],[Proposed Equipment]])-FIND(\"]\",ProjectInfoTable[[#This Row],[Proposed Equipment]],1)-3),ControlsLookup[Controls],0)),0)>IFERROR(INDEX(ControlsLookup[Rank],MATCH(RIGHT(ProjectInfoTable[[#This Row],[Existing Equipment]],LEN(ProjectInfoTable[[#This Row],[Existing Equipment]])-FIND(\"]\",ProjectInfoTable[[#This Row],[Existing Equipment]],1)-3),ControlsLookup[Controls],0)),0),INDEX(ControlsLookup[Controls Type],MATCH(LEFT(ProjectInfoTable[[#This Row],[Existing Equipment]],FIND(\":\",ProjectInfoTable[[#This Row],[Existing Equipment]],1)-1)&\"_\"&RIGHT(ProjectInfoTable[[#This Row],[Proposed Equipment]],LEN(ProjectInfoTable[[#This Row],[Proposed Equipment]])-FIND(\"]\",ProjectInfoTable[[#This Row],[Proposed Equipment]],1)-3),ControlsLookup[Controls Concatenate],0)),\"None\"),INDIRECT(\"EquipmentTable_\"&IF(ProjectType=\"Retrofit\",\"Retrofit_\",\"NCMR_\")&ProjectState&\"[#Headers]\"),0))),INDEX(INDIRECT(\"EquipmentTable_\"&IF(ProjectType=\"Retrofit\",\"Retrofit_\",\"NCMR_\")&ProjectState&\"[#All]\"),MATCH(LEFT(ProjectInfoTable[[#This Row],[Proposed Equipment]],FIND(\"[\",ProjectInfoTable[[#This Row],[Proposed Equipment]],1)-2),INDIRECT(\"EquipmentTable_\"&IF(ProjectType=\"Retrofit\",\"Retrofit_\",\"NCMR_\")&ProjectState&\"[equipmentProposed]\"),0)+1,MATCH(\"measureRetrofit_\"&IF(AND(SBDEligible=\"Yes\",ISNUMBER(FIND(\"SBE\",ProjectInfoTable[[#This Row],[Proposed Equipment]]))),\"SBE\",LEFT(ProjectInfoTable[[#This Row],[Existing Equipment]],FIND(\":\",ProjectInfoTable[[#This Row],[Existing Equipment]],1)-1)&\"_\"&IF(IFERROR(INDEX(ControlsLookup[Rank],MATCH(RIGHT(ProjectInfoTable[[#This Row],[Proposed Equipment]],LEN(ProjectInfoTable[[#This Row],[Proposed Equipment]])-FIND(\"]\",ProjectInfoTable[[#This Row],[Proposed Equipment]],1)-3),ControlsLookup[Controls],0)),0)>IFERROR(INDEX(ControlsLookup[Rank],MATCH(RIGHT(ProjectInfoTable[[#This Row],[Existing Equipment]],LEN(ProjectInfoTable[[#This Row],[Existing Equipment]])-FIND(\"]\",ProjectInfoTable[[#This Row],[Existing Equipment]],1)-3),ControlsLookup[Controls],0)),0),INDEX(ControlsLookup[Controls Type],MATCH(LEFT(ProjectInfoTable[[#This Row],[Existing Equipment]],FIND(\":\",ProjectInfoTable[[#This Row],[Existing Equipment]],1)-1)&\"_\"&RIGHT(ProjectInfoTable[[#This Row],[Proposed Equipment]],LEN(ProjectInfoTable[[#This Row],[Proposed Equipment]])-FIND(\"]\",ProjectInfoTable[[#This Row],[Proposed Equipment]],1)-3),ControlsLookup[Controls Concatenate],0)),\"None\")),INDIRECT(\"EquipmentTable_\"&\"Retrofit_\"&ProjectState&\"[#Headers]\"),0))),\"Non-eligible fixture - Retrofit - \"&ProjectState),IFERROR(INDEX(INDIRECT(\"EquipmentTable_\"&IF(SiteSpecificOverride=\"Yes\",\"PostPurchase_\",\"Retrofit_\")&ProjectState&\"[#All]\"),MATCH(LEFT(ProjectInfoTable[[#This Row],[Proposed Equipment]],FIND(\"[\",ProjectInfoTable[[#This Row],[Proposed Equipment]],1)-2),INDIRECT(\"EquipmentTable_\"&IF(SiteSpecificOverride=\"Yes\",\"PostPurchase_\",\"Retrofit_\")&ProjectState&\"[equipmentProposed]\"),0)+1,MATCH(\"measureRetrofit_\"&IF(AND(SBDEligible=\"Yes\",ISNUMBER(FIND(\"SBE\",ProjectInfoTable[[#This Row],[Proposed Equipment]]))),\"SBE\",LEFT(ProjectInfoTable[[#This Row],[Existing Equipment]],FIND(\":\",ProjectInfoTable[[#This Row],[Existing Equipment]],1)-1)&\"_\"&IF(IFERROR(INDEX(ControlsLookup[Rank],MATCH(RIGHT(ProjectInfoTable[[#This Row],[Proposed Equipment]],LEN(ProjectInfoTable[[#This Row],[Proposed Equipment]])-FIND(\"]\",ProjectInfoTable[[#This Row],[Proposed Equipment]],1)-3),ControlsLookup[Controls],0)),0)>IFERROR(INDEX(ControlsLookup[Rank],MATCH(RIGHT(ProjectInfoTable[[#This Row],[Existing Equipment]],LEN(ProjectInfoTable[[#This Row],[Existing Equipment]])-FIND(\"]\",ProjectInfoTable[[#This Row],[Existing Equipment]],1)-3),ControlsLookup[Controls],0)),0),INDEX(ControlsLookup[Controls Type],MATCH(LEFT(ProjectInfoTable[[#This Row],[Existing Equipment]],FIND(\":\",ProjectInfoTable[[#This Row],[Existing Equipment]],1)-1)&\"_\"&RIGHT(ProjectInfoTable[[#This Row],[Proposed Equipment]],LEN(ProjectInfoTable[[#This Row],[Proposed Equipment]])-FIND(\"]\",ProjectInfoTable[[#This Row],[Proposed Equipment]],1)-3),ControlsLookup[Controls Concatenate],0)),\"None\")),INDIRECT(\"EquipmentTable_\"&IF(SiteSpecificOverride=\"Yes\",\"PostPurchase_\",\"Retrofit_\")&ProjectState&\"[#Headers]\"),0)),\"Non-eligible fixture - Retrofit - \"&ProjectState)))),IFERROR(INDEX(INDIRECT(\"EquipmentTable_\"&\"NCMR_\"&ProjectState),MATCH(RIGHT(LEFT(ProjectInfoTable[[#This Row],[Proposed Equipment]],FIND(\" (\",ProjectInfoTable[[#This Row],[Proposed Equipment]],1)-1),LEN(LEFT(ProjectInfoTable[[#This Row],[Proposed Equipment]],FIND(\" (\",ProjectInfoTable[[#This Row],[Proposed Equipment]],1)-2))-FIND(\":\",ProjectInfoTable[[#This Row],[Proposed Equipment]],1)),INDIRECT(\"EquipmentTable_\"&\"NCMR_\"&ProjectState&\"[equipmentProposed]\"),0),MATCH(\"measureNCMR_\"&LEFT(ProjectInfoTable[[#This Row],[Proposed Equipment]],FIND(\":\",ProjectInfoTable[[#This Row],[Proposed Equipment]],1)-1)&\"_\"&IF(LEN(ProjectInfoTable[[#This Row],[Proposed Equipment]])>FIND(\"]\",ProjectInfoTable[[#This Row],[Proposed Equipment]]),INDEX(ControlsLookup[Controls Type],MATCH(LEFT(ProjectInfoTable[[#This Row],[Proposed Equipment]],FIND(\":\",ProjectInfoTable[[#This Row],[Proposed Equipment]],1)-1)&\"_\"&RIGHT(ProjectInfoTable[[#This Row],[Proposed Equipment]],LEN(ProjectInfoTable[[#This Row],[Proposed Equipment]])-FIND(\"]\",ProjectInfoTable[[#This Row],[Proposed Equipment]],1)-3),ControlsLookup[Controls Concatenate],0)),\"None\"),INDIRECT(\"EquipmentTable_\"&\"NCMR_\"&ProjectState&\"[#Headers]\"),0)),\"Non-eligible fixture - NCMR - \"&ProjectState)),\"[NAMESUB]\",ProjectInfoTable[[#This Row],[Measure Name Sub]]),\"Non-eligible fixture - Retrofit - \"&ProjectState))","v":""},{"$f":"IF(ISNUMBER(SEARCH(\"Case\",ProjectInfoTable[[#This Row],[Fixture Measure]])),CONCATENATE(ProjectInfoTable[[#This Row],[Fixture Measure]],ProjectInfoTable[[#This Row],[No. of TRL Units]],ProjectInfoTable[[#This Row],[Quantity]]),\"\")","v":""},{"$f":"IF(ProjectInfoTable[[#This Row],[Proposed Equipment]]=\"\",\"\",\nIF(AND(ProjectState = \"UT\",ISNUMBER(FIND(\" TLED \",ProjectInfoTable[[#This Row],[Proposed Equipment]]))),\nIF(VALUE(ProjectInfoTable[[#This Row],[Lamp W (Proposed)]])<20,\"< 20 W\",\nIF(AND(VALUE(ProjectInfoTable[[#This Row],[Lamp W (Proposed)]])<=39,VALUE(ProjectInfoTable[[#This Row],[Lamp W (Proposed)]])>=20),\">= 20 W and <= 39 W\",)),\n\nIF(AND(ProjectType=\"Retrofit\",OR(ISNUMBER(FIND(\"Retrofit Kit\",ProjectInfoTable[[#This Row],[Proposed Equipment]])),ISNUMBER(FIND(\"Fixture\",ProjectInfoTable[[#This Row],[Proposed Equipment]]))),OR(ISNUMBER(FIND(\"Exterior\",ProjectInfoTable[[#This Row],[Existing Equipment]])),ISNUMBER(FIND(\"Street\",ProjectInfoTable[[#This Row],[Existing Equipment]])))),\nIF(ProjectInfoTable[[#This Row],[Fixture W (Proposed)]]<50,\"< 50 W\",\nIF(AND(ProjectInfoTable[[#This Row],[Fixture W (Proposed)]]<90,ProjectInfoTable[[#This Row],[Fixture W (Proposed)]]>=50),\">= 50 W and < 90 W\",\nIF(AND(ProjectInfoTable[[#This Row],[Fixture W (Proposed)]]<135,ProjectInfoTable[[#This Row],[Fixture W (Proposed)]]>=90),\">= 90 W and < 135 W\",\nIF(AND(ProjectInfoTable[[#This Row],[Fixture W (Proposed)]]<220,ProjectInfoTable[[#This Row],[Fixture W (Proposed)]]>=135),\">= 135 W and < 220 W\",\nIF(ProjectInfoTable[[#This Row],[Fixture W (Proposed)]]>=220,\">= 220 W\"))))),\"\")))","v":""},{"$f":"IFERROR(INDEX(INDIRECT(\"MeasureTable_\" & ProjectState & \"[Measure Reference Number]\"),MATCH(ProjectInfoTable[[#This Row],[Fixture Measure]],INDIRECT(\"MeasureTable_\" &ProjectState&\"[Measure Name]\"),0)),\"\")","v":""},{"$f":"IFERROR(\n    _xlfn.LET(\n        _xlpm.filteredVersions,\n            _xlfn._xlws.FILTER(\n                INDIRECT(\"MeasureTable_\" & ProjectState & \"[Version Number]\"),\n                (INDIRECT(\"MeasureTable_\" & ProjectState & \"[Measure Reference Number]\") = ProjectInfoTable[[#This Row],[Fixture Measure Reference Number]]) *\n                (INDIRECT(\"MeasureTable_\" & ProjectState & \"[Eligible Measure]\") = TRUE)\n            ),\n        INDEX(_xlpm.filteredVersions, 1)\n    ),\n    \"\"\n)","v":""},{"$f":"IFERROR(\n  _xlfn.LET(\n    _xlpm.refRange, INDIRECT(\"MeasureTable_\" & ProjectState & \"[Measure Reference Number]\"),\n    _xlpm.eligibleRange, INDIRECT(\"MeasureTable_\" & ProjectState & \"[Eligible Measure]\"),\n    _xlpm.countTrue, SUMPRODUCT(--(_xlpm.refRange = ProjectInfoTable[[#This Row],[Fixture Measure Reference Number]]), --(_xlpm.eligibleRange = TRUE)),\n    _xlpm.countNonBlank, SUMPRODUCT(--(_xlpm.refRange = ProjectInfoTable[[#This Row],[Fixture Measure Reference Number]]), --(_xlpm.eligibleRange <> \"\")),\n    IF(_xlpm.countNonBlank = 0, \"\", IF(_xlpm.countTrue >= 1, TRUE, FALSE))\n  ),\n  \"\"\n)","v":""},{"$f":"IFERROR(VALUE(INDEX(INDIRECT(\"MeasureTable_\" & ProjectState & \"[CustomerIncentiveDollarperunit]\"),MATCH(ProjectInfoTable[[#This Row],[Fixture Measure]]&\" | TRUE\",INDIRECT(\"MeasureTable_\" &ProjectState&\"[MeasureEligibleConcatenate]\"),0))),\"\")","v":""},{"$f":"IFERROR(INDEX(INDIRECT(\"MeasureTable_\"&ProjectState&\"[SiteSpecificCalculation]\"),MATCH(ProjectInfoTable[[#This Row],[Fixture Measure]]&\" | TRUE\",INDIRECT(\"MeasureTable_\" &ProjectState&\"[MeasureEligibleConcatenate]\"),0)),\"\")","v":""},{"$f":"IFERROR(INDEX(INDIRECT(\"MeasureTable_\"&ProjectState&\"[GrossIncrementalAnnualElectricSavings]\"),MATCH(ProjectInfoTable[[#This Row],[Fixture Measure]]&\" | TRUE\",INDIRECT(\"MeasureTable_\" &ProjectState&\"[MeasureEligibleConcatenate]\"),0)),\"\")","v":""},{"$f":"IFERROR(INDEX(INDIRECT(\"MeasureTable_\"&ProjectState&\"[GrossAverageMonthlyDemandReduction]\"),MATCH(ProjectInfoTable[[#This Row],[Fixture Measure]]&\" | TRUE\",INDIRECT(\"MeasureTable_\" &ProjectState&\"[MeasureEligibleConcatenate]\"),0)),\"\")","v":""},{"$f":"IF(ProjectInfoTable[[#This Row],[Fixture Measure]]=\"\",\"\",IF(NOT(ISNUMBER(FIND(\"Site-Specific - Downstream\",ProjectInfoTable[[#This Row],[Fixture Measure]]))),\"\",\nIF(ISNUMBER(MATCH(SUBSTITUTE(ProjectInfoTable[[#This Row],[Fixture Measure]],\"Site-Specific - Downstream - v2\",\"Mid Market\"),INDIRECT(\"MeasureTable_\"&ProjectState&\"[Measure Name]\"),0)),\nSUBSTITUTE(ProjectInfoTable[[#This Row],[Fixture Measure]],\"Site-Specific - Downstream - v2\",\"Mid Market\"),\nSUBSTITUTE(ProjectInfoTable[[#This Row],[Fixture Measure]],\"Site-Specific - Downstream\",\"Mid Market\"))\n))","v":""},{"$f":"IF(ProjectInfoTable[[#This Row],[Midstream Measure Name]]=\"\",\"\",IFERROR(INDEX(INDIRECT(\"MeasureTable_\"&ProjectState&\"[GrossIncrementalAnnualElectricSavings ]\"),MATCH(ProjectInfoTable[[#This Row],[Midstream Measure Name]]&\" | TRUE\",INDIRECT(\"MeasureTable_\" &ProjectState&\"[MeasureEligibleConcatenate]\"),0)),\"\"))","v":""},{"$f":"IF(ProjectInfoTable[[#This Row],[Midstream Measure Name]]=\"\",\"\",IFERROR(INDEX(INDIRECT(\"MeasureTable_\"&ProjectState&\"[GrossAverage onthly emand eduction]\"),MATCH(ProjectInfoTable[[#This Row],[Midstream Measure Name]]&\" | TRUE\",INDIRECT(\"MeasureTable_\" &ProjectState&\"[MeasureEligibleConcatenate]\"),0)),\"\"))","v":""},{"$f":"IFERROR(INDEX(INDIRECT(\"MeasureTable_\"&ProjectState&\"[IncrementalMeasureCost]\"),MATCH(ProjectInfoTable[[#This Row],[Fixture Measure]]&\" | TRUE\",INDIRECT(\"MeasureTable_\" &ProjectState&\"[MeasureEligibleConcatenate]\"),0)),\"\")","v":""},{"$f":"IF(ProjectInfoTable[[#This Row],[Fixture Measure]]=\"\",\"\",IF(AND(ProjectState=\"UT\",ProjectInfoTable[[#This Row],[Measure Selection]]=\"\"),0,\nIF(OR(ISNUMBER(FIND(\"SBDI\",ProjectInfoTable[[#This Row],[Fixture Measure]])),ISNUMBER(FIND(\"Small Bu\",ProjectInfoTable[[#This Row],[Fixture Measure]]))),ProjectInfoTable[[#This Row],[Quantity (Proposed)]]*ProjectInfoTable[[#This Row],[Lamps (Proposed)]],\nIF(OR(ProjectInfoTable[[#This Row],[TRL Unit]]=\"Measure\",ProjectInfoTable[[#This Row],[TRL Unit]]=\"Linear ft.\"),IF(OR(ISNUMBER(FIND(\"Lamp\",ProjectInfoTable[[#This Row],[Fixture Measure]],1)),ISNUMBER(FIND(\"Relamp\",ProjectInfoTable[[#This Row],[Fixture Measure]],1)),ISNUMBER(FIND(\"Relamp\",ProjectInfoTable[[#This Row],[Proposed Equipment]],1))),ProjectInfoTable[[#This Row],[Quantity (Proposed)]]*ProjectInfoTable[[#This Row],[Lamps (Proposed)]],ProjectInfoTable[[#This Row],[Quantity (Proposed)]]),1))))","v":""},{"$f":"IF(ProjectInfoTable[[#This Row],[Fixture Measure]]=\"\",\"\",IF(AND(ProjectState=\"UT\",ProjectInfoTable[[#This Row],[Measure Selection]]=\"\"),0,\nIF(OR(ISNUMBER(FIND(\"SBDI\",ProjectInfoTable[[#This Row],[Fixture Measure]])),ISNUMBER(FIND(\"Small Bu\",ProjectInfoTable[[#This Row],[Fixture Measure]]))),1,\nIF(ISNUMBER(FIND(\"Controls Only\",ProjectInfoTable[[#This Row],[Proposed Equipment]],1)),IF(OR(ProjectType <> \"Retrofit\",ProjectInfoTable[[#This Row],[Space W (Proposed)]]>0),ProjectInfoTable[[#This Row],[Space W (Proposed)]],ProjectInfoTable[[#This Row],[Space W (Existing, Stipulated)]]),\nIF(TRIM(UPPER(ProjectInfoTable[[#This Row],[TRL Unit]]))=\"LINEAR FT.\",IF(OR(ISNUMBER(FIND(\"Marquee\",ProjectInfoTable[[#This Row],[Proposed Equipment]],1)),ISNUMBER(FIND(\"Cabinet\",ProjectInfoTable[[#This Row],[Proposed Equipment]],1))),VALUE(RIGHT(LEFT(ProjectInfoTable[[#This Row],[Existing Equipment]],FIND(\"LF \",ProjectInfoTable[[#This Row],[Existing Equipment]],1)-1),LEN(LEFT(ProjectInfoTable[[#This Row],[Existing Equipment]],FIND(\"LF \",ProjectInfoTable[[#This Row],[Existing Equipment]],1)-1))-FIND(\"[\",ProjectInfoTable[[#This Row],[Existing Equipment]],1))),VALUE(RIGHT(LEFT(ProjectInfoTable[[#This Row],[Proposed Equipment]],FIND(\"LF \",ProjectInfoTable[[#This Row],[Proposed Equipment]],1)-1),LEN(LEFT(ProjectInfoTable[[#This Row],[Proposed Equipment]],FIND(\"LF \",ProjectInfoTable[[#This Row],[Proposed Equipment]],1)-1))-FIND(\"[\",ProjectInfoTable[[#This Row],[Proposed Equipment]],1)))),\nIF(TRIM(UPPER(ProjectInfoTable[[#This Row],[TRL Unit]]))=\"KWH\",IF(ProjectInfoTable[[#This Row],[Fixture Measure kWh/yr Savings (Stipulated)]]=0,0,ROUND(ProjectInfoTable[[#This Row],[Fixture Measure kWh/yr Savings (Stipulated)]],2)),\nIF(TRIM(UPPER(ProjectInfoTable[[#This Row],[TRL Unit]]))=\"WATT REDUCED\",IF(ProjectInfoTable[[#This Row],[Fixture Measure kWh/yr Savings (Stipulated)]]=0,0,ROUND(ProjectInfoTable[[#This Row],[Space W (Existing, Stipulated)]]-ProjectInfoTable[[#This Row],[Space W (Proposed)]],2)),\nIF(TRIM(UPPER(ProjectInfoTable[[#This Row],[TRL Unit]]))=\"FIXTURE WATTAGE\",ProjectInfoTable[[#This Row],[Space W (Proposed)]],1))))))))","v":""},{"$f":"IFERROR(IF(OR(ISNUMBER(FIND(\"SBDI\",ProjectInfoTable[[#This Row],[Fixture Measure]])),ISNUMBER(FIND(\"Small Bu\",ProjectInfoTable[[#This Row],[Fixture Measure]]))),0,INDEX(INDIRECT(\"MeasureTable_\"&ProjectState&\"[Unit]\"),MATCH(ProjectInfoTable[[#This Row],[Fixture Measure]]&\" | TRUE\",INDIRECT(\"MeasureTable_\" &ProjectState&\"[MeasureEligibleConcatenate]\"),0))),\"\")","v":""},{"$f":"IF(ProjectInfoTable[[#This Row],[Fixture Measure]]=\"\",\"\",IF(OR(ISNUMBER(FIND(\"Lamp(s)\",ProjectInfoTable[[#This Row],[Fixture Measure]],1)),ISNUMBER(FIND(\"Relamp\",ProjectInfoTable[[#This Row],[Proposed Equipment]],1))),\"Lamp(s)\",\"Fixture(s)\"))","v":""},{"$f":"IFERROR(INDEX(INDIRECT(\"MeasureTable_\"&ProjectState&\"[ProjectCapPercent]\"),MATCH(ProjectInfoTable[[#This Row],[Fixture Measure]]&\" | TRUE\",INDIRECT(\"MeasureTable_\" &ProjectState&\"[MeasureEligibleConcatenate]\"),0)),\"\")","v":""},{"$f":"IF(OR(ProjectInfoTable[[#This Row],[Control Measure]]=\"\",ProjectInfoTable[[#This Row],[OpSch]]=\"\",ProjectInfoTable[[#This Row],[Eligible Control Measure]]<>TRUE),\"\",IF(AND(OR(ProjectType=\"New Construction\",ProjectType=\"Major Renovation\"),LPDCodeToProposed<0.1,ISNUMBER(FIND(\"Interior\",ProjectInfoTable[[#This Row],[Proposed Equipment]],1))),0,IFERROR(ProjectInfoTable[[#This Row],[Control Incentives Per Unit]]*ProjectInfoTable[[#This Row],[Control Quantity]]*ProjectInfoTable[[#This Row],[Control No. of TRL Units]],\"TRL Error\")))","v":""},{"$f":"IF(OR(ProjectInfoTable[[#This Row],[Control Measure]]=\"\",ProjectInfoTable[[#This Row],[OpSch]]=\"\",ProjectInfoTable[[#This Row],[Eligible Control Measure]]<>TRUE),\"\",IF(AND(ProjectType=\"Retrofit\",ProjectState=\"UT\",ISNUMBER(FIND(\"Post Purchase\",ProjectInfoTable[[#This Row],[Control Measure]],1))),\n\nIFERROR(MAX(MIN(ProjectInfoTable[[#This Row],[Control Incentives (pre-capping)]],ProjectInfoTable[[#This Row],[Control Cost (Allocated)]]*0.7),0),0),\n\nIF(ProjectType=\"Retrofit\",IF(ISNUMBER(FIND(\"Post Purchase\",ProjectInfoTable[[#This Row],[Control Measure]],1)),ProjectInfoTable[[#This Row],[Control Incentives (pre-capping)]],IFERROR($BI$3/$BH$3*ProjectInfoTable[[#This Row],[Control Incentives (pre-capping)]],\"\")),\n\nIF(ISNUMBER(FIND(\"Interior\",ProjectInfoTable[[#This Row],[Proposed Equipment]],1)),IF(LPDCodeToProposed>0.1,ProjectInfoTable[[#This Row],[Control Incentives (pre-capping)]],0),ProjectInfoTable[[#This Row],[Control Incentives (pre-capping)]]))))","v":""},{"$f":"IF(OR(ProjectInfoTable[[#This Row],[Control Incentives Per Unit]]=\"\",ProjectInfoTable[[#This Row],[Control TRL Unit]]=\"\"),\"\",IF(ProjectInfoTable[[#This Row],[Eligible Control Measure]]<>TRUE,\"Invalid Effective Date\",TEXT(ProjectInfoTable[[#This Row],[Control Incentives Per Unit]],\"$#,##0.00\")&\" / \"&ProjectInfoTable[[#This Row],[Control TRL Unit]]))","v":""},{"$f":"IF(ISNUMBER(FIND(\"SBE\",ProjectInfoTable[[#This Row],[Proposed Equipment]])),\"\",\n\nIF(LEN(ProjectInfoTable[[#This Row],[Proposed Equipment]])>\n\nIFERROR(FIND(\"]\",ProjectInfoTable[[#This Row],[Proposed Equipment]],1),0),\nSUBSTITUTE(\nIF(OR(ProjectInfoTable[[#This Row],[Control Method]]=\"separate\",ISNUMBER(FIND(\"Midstream\",ProjectInfoTable[[#This Row],[Fixture Measure]],1)),ISNUMBER(FIND(\"Midstream\",ProjectInfoTable[[#This Row],[Equipment Category]],1)),ISNUMBER(FIND(\"Prescriptive\",ProjectInfoTable[[#This Row],[Equipment Category]],1)),ISNUMBER(FIND(\"LED\",ProjectInfoTable[[#This Row],[Fixture Measure]],1)),ISNUMBER(FIND(\"LED Case\",ProjectInfoTable[[#This Row],[Fixture Measure]],1)),ISNUMBER(FIND(\"LED Decorative - Retrofit - WA\",ProjectInfoTable[[#This Row],[Fixture Measure]],1)),ISNUMBER(FIND(\"Lamp\",ProjectInfoTable[[#This Row],[Fixture Measure]],1)),ISNUMBER(FIND(\"Relamp\",ProjectInfoTable[[#This Row],[Fixture Measure]],1)),ISNUMBER(FIND(\"Wall Pack\",ProjectInfoTable[[#This Row],[Fixture Measure]],1)),ISNUMBER(FIND(\"Controls Only\",ProjectInfoTable[[#This Row],[Proposed Equipment]],1)),ISNUMBER(FIND(\"Re-Commissioning\",ProjectInfoTable[[#This Row],[Proposed Equipment]],1)),\n\nAND(OR(ISNUMBER(FIND(\"Exterior:\",ProjectInfoTable[[#This Row],[Proposed Equipment]],1)),ISNUMBER(FIND(\"Street:\",ProjectInfoTable[[#This Row],[Proposed Equipment]],1))),OR(ProjectState=\"ID\",ProjectState=\"UT\",ProjectState=\"WY\"))),\n\nIF(IFERROR(INDEX(ControlsLookup[],MATCH(IF(ProjectType=\"Retrofit\",LEFT(ProjectInfoTable[[#This Row],[Existing Equipment]],FIND(\":\",ProjectInfoTable[[#This Row],[Existing Equipment]],1)-1),LEFT(ProjectInfoTable[[#This Row],[Proposed Equipment]],FIND(\":\",ProjectInfoTable[[#This Row],[Proposed Equipment]],1)-1))&\"_\"&RIGHT(ProjectInfoTable[[#This Row],[Proposed Equipment]],LEN(ProjectInfoTable[[#This Row],[Proposed Equipment]])-FIND(\"]\",ProjectInfoTable[[#This Row],[Proposed Equipment]],1)-3),ControlsLookup[Controls Concatenate],0),MATCH(\n\nIF(ProjectType=\"Retrofit\",\"ControlMeasure_\",\"NCMRControlMeasure_\")&ProjectState,ControlsLookup[#Headers],0)),\"\")=0,\"\",\n\nIFERROR(INDEX(ControlsLookup[],MATCH(IF(ProjectType=\"Retrofit\",LEFT(ProjectInfoTable[[#This Row],[Existing Equipment]],FIND(\":\",ProjectInfoTable[[#This Row],[Existing Equipment]],1)-1),LEFT(ProjectInfoTable[[#This Row],[Proposed Equipment]],FIND(\":\",ProjectInfoTable[[#This Row],[Proposed Equipment]],1)-1))&\"_\"&RIGHT(ProjectInfoTable[[#This Row],[Proposed Equipment]],LEN(ProjectInfoTable[[#This Row],[Proposed Equipment]])-FIND(\"]\",ProjectInfoTable[[#This Row],[Proposed Equipment]],1)-3),ControlsLookup[Controls Concatenate],0),MATCH(\n\nIF(ProjectType=\"Retrofit\",\"ControlMeasure_\",\"NCMRControlMeasure_\")&ProjectState&IF(ProjectState=\"UT\",SegmentTag,\"\"),ControlsLookup[#Headers],0)),\"\")),\"\"),\"[NAMESUB]\",ProjectInfoTable[[#This Row],[Control Measure Name Sub]]),\"\"))","v":""},{"$f":"IF(ProjectInfoTable[[#This Row],[Proposed Equipment]]=\"\",\"\",IF(AND(ProjectState=\"UT\",ProjectType=\"Retrofit\",ISNUMBER(FIND(\"Re-Commissioning\",ProjectInfoTable[[#This Row],[Proposed Equipment]]))),\nIF(ProjectRecommissioning=\"only recommissioning\",\"Commissioning Only\",\"Commissioning w/ Lighting Upgrade\"),\"\"))","v":""},{"$f":"IFERROR(INDEX(INDIRECT(\"MeasureTable_\" & ProjectState & \"[Measure Reference Number]\"),MATCH(ProjectInfoTable[[#This Row],[Control Measure]],INDIRECT(\"MeasureTable_\" &ProjectState&\"[Measure Name]\"),0)),\"\")","v":""},{"$f":"IFERROR(\n    _xlfn.LET(\n        _xlpm.filteredVersions,\n            _xlfn._xlws.FILTER(\n                INDIRECT(\"MeasureTable_\" & ProjectState & \"[Version Number]\"),\n                (INDIRECT(\"MeasureTable_\" & ProjectState & \"[Measure Reference Number]\") = ProjectInfoTable[[#This Row],[Control Measure Reference Number]]) *\n                (INDIRECT(\"MeasureTable_\" & ProjectState & \"[Eligible Measure]\") = TRUE)\n            ),\n        INDEX(_xlpm.filteredVersions, 1)\n    ),\n    \"\"\n)","v":""},{"$f":"IFERROR(\n  _xlfn.LET(\n    _xlpm.refRange, INDIRECT(\"MeasureTable_\" & ProjectState & \"[Measure Reference Number]\"),\n    _xlpm.eligibleRange, INDIRECT(\"MeasureTable_\" & ProjectState & \"[Eligible Measure]\"),\n    _xlpm.countTrue, SUMPRODUCT(--(_xlpm.refRange = ProjectInfoTable[[#This Row],[Control Measure Reference Number]]), --(_xlpm.eligibleRange = TRUE)),\n    _xlpm.countNonBlank, SUMPRODUCT(--(_xlpm.refRange = ProjectInfoTable[[#This Row],[Control Measure Reference Number]]), --(_xlpm.eligibleRange <> \"\")),\n    IF(_xlpm.countNonBlank = 0, \"\", IF(_xlpm.countTrue >= 1, TRUE, FALSE))\n  ),\n  \"\"\n)","v":""},{"$f":"IF(ProjectInfoTable[[#This Row],[Proposed Equipment]]=\"\",\"\",IFERROR(INDEX(INDIRECT(\"EquipmentTable_\"&IF(ProjectType=\"Retrofit\",\"Retrofit_\",\"NCMR_\")&ProjectState&\"[controlMethod]\"),MATCH(LEFT(ProjectInfoTable[[#This Row],[Proposed Equipment]],FIND(\"[\",ProjectInfoTable[[#This Row],[Proposed Equipment]],1)-2),INDIRECT(\"EquipmentTable_\"&IF(ProjectType=\"Retrofit\",\"Retrofit_\",\"NCMR_\")&ProjectState&\"[equipmentProposed]\"),0)),\"\"))","v":""},{"$f":"IFERROR(VALUE(INDEX(INDIRECT(\"MeasureTable_\" & ProjectState & \"[CustomerIncentiveDollarperunit]\"),MATCH(ProjectInfoTable[[#This Row],[Control Measure]]&\" | TRUE\",INDIRECT(\"MeasureTable_\"&ProjectState&\"[MeasureEligibleConcatenate]\"),0))),\"\")","v":""},{"$f":"IFERROR(INDEX(INDIRECT(\"MeasureTable_\"&ProjectState&\"[SiteSpecificCalculation]\"),MATCH(ProjectInfoTable[[#This Row],[Control Measure]]&\" | TRUE\",INDIRECT(\"MeasureTable_\"&ProjectState&\"[MeasureEligibleConcatenate]\"),0)),\"\")","v":""},{"$f":"IFERROR(INDEX(INDIRECT(\"MeasureTable_\"&ProjectState&\"[GrossIncrementalAnnualElectricSavings ]\"),MATCH(ProjectInfoTable[[#This Row],[Control Measure]]&\" | TRUE\",INDIRECT(\"MeasureTable_\"&ProjectState&\"[MeasureEligibleConcatenate]\"),0)),\"\")","v":""},{"$f":"IFERROR(INDEX(INDIRECT(\"MeasureTable_\"&ProjectState&\"[GrossAverage onthly emand eduction]\"),MATCH(ProjectInfoTable[[#This Row],[Control Measure]]&\" | TRUE\",INDIRECT(\"MeasureTable_\"&ProjectState&\"[MeasureEligibleConcatenate]\"),0)),\"\")","v":""},{"$f":"IFERROR(INDEX(INDIRECT(\"MeasureTable_\"&ProjectState&\"[IncrementalMeasureCost]\"),MATCH(ProjectInfoTable[[#This Row],[Control Measure]]&\" | TRUE\",INDIRECT(\"MeasureTable_\"&ProjectState&\"[MeasureEligibleConcatenate]\"),0)),\"\")","v":""},{"$f":"IF(ProjectInfoTable[[#This Row],[Control Measure]]=\"\",\"\",IF(OR(ProjectInfoTable[[#This Row],[Control TRL Unit]]=\"Measure\",ProjectInfoTable[[#This Row],[Control TRL Unit]]=\"Linear ft.\"),IF(OR(ISNUMBER(FIND(\"Midstream\",ProjectInfoTable[[#This Row],[Control Measure]],1)),ISNUMBER(FIND(\"Lamp\",ProjectInfoTable[[#This Row],[Control Measure]],1))),ProjectInfoTable[[#This Row],[Quantity (Proposed)]]*ProjectInfoTable[[#This Row],[Lamps (Proposed)]],ProjectInfoTable[[#This Row],[Quantity (Proposed)]]),1))","v":""},{"$f":"IF(ProjectInfoTable[[#This Row],[Control Measure]]=\"\",\"\",IF(ISNUMBER(FIND(\"LF \",ProjectInfoTable[[#This Row],[Proposed Equipment]],1)),VALUE(RIGHT(LEFT(ProjectInfoTable[[#This Row],[Proposed Equipment]],FIND(\"LF \",ProjectInfoTable[[#This Row],[Proposed Equipment]],1)-1),LEN(LEFT(ProjectInfoTable[[#This Row],[Proposed Equipment]],FIND(\"LF \",ProjectInfoTable[[#This Row],[Proposed Equipment]],1)-1))-FIND(\"[\",ProjectInfoTable[[#This Row],[Proposed Equipment]],1))),IF(TRIM(UPPER(ProjectInfoTable[[#This Row],[Control TRL Unit]]))=\"WATT CONTROLLED\",IF(ISNUMBER(FIND(\"Controls Only\",ProjectInfoTable[[#This Row],[Proposed Equipment]],1)),IF(OR(ProjectType <> \"Retrofit\",ProjectInfoTable[[#This Row],[Space W (Proposed)]]>0),ProjectInfoTable[[#This Row],[Space W (Proposed)]],ProjectInfoTable[[#This Row],[Space W (Existing, Stipulated)]]),ProjectInfoTable[[#This Row],[Space W (Proposed)]]),IF(TRIM(UPPER(ProjectInfoTable[[#This Row],[Control TRL Unit]]))=\"KWH\",IF(ProjectInfoTable[[#This Row],[Control Measure kWh/yr Savings (Stipulated)]]=0,0,ROUND(ProjectInfoTable[[#This Row],[Control Measure kWh/yr Savings (Stipulated)]],2)),1))))","v":""},{"$f":"IFERROR(IF(LEN(ProjectInfoTable[[#This Row],[Proposed Equipment]])-(FIND(\"]\",ProjectInfoTable[[#This Row],[Proposed Equipment]],1))>0,\"Control(s)\",\"\"),\"\")","v":""},{"$f":"IFERROR(INDEX(INDIRECT(\"MeasureTable_\"&ProjectState&\"[Unit]\"),MATCH(ProjectInfoTable[[#This Row],[Control Measure]]&\" | TRUE\",INDIRECT(\"MeasureTable_\"&ProjectState&\"[MeasureEligibleConcatenate]\"),0)),\"\")","v":""},{"$f":"IFERROR(INDEX(INDIRECT(\"MeasureTable_\"&ProjectState&\"[ProjectCapPercent]\"),MATCH(ProjectInfoTable[[#This Row],[Control Measure]]&\" | TRUE\",INDIRECT(\"MeasureTable_\"&ProjectState&\"[MeasureEligibleConcatenate]\"),0)),\"\")","v":""},{"$f":"IF(OR(ProjectInfoTable[[#This Row],[Fixture Measure]]<>\"\",ProjectInfoTable[[#This Row],[Control Measure]]<>\"\"),1,\"\")","v":""},{"$f":"IF(ProjectInfoTable[[#This Row],[TRL Unit]]=\"\",\"\",IF(OR(ISNUMBER(SEARCH(\"measure\",ProjectInfoTable[[#This Row],[TRL Unit]])),ISNUMBER(SEARCH(\"linear ft\",ProjectInfoTable[[#This Row],[TRL Unit]])),ProjectInfoTable[[#This Row],[TRL Unit]]=0),990,991))","v":""},{"$f":"IFERROR(SUBSTITUTE(LEFT(ProjectInfoTable[[#This Row],[Proposed Equipment]],FIND(\"]\",ProjectInfoTable[[#This Row],[Proposed Equipment]],1)),\"Controls Only []\",\"\",1),\"\")","v":""},{"$f":"IF(ProjectInfoTable[[#This Row],[FixturesOnly]]=\"\",\"\",IF(ISNUMBER(FIND(\"L \",ProjectInfoTable[[#This Row],[Proposed Equipment]],1)),ProjectInfoTable[[#This Row],[Quantity (Proposed)]]*ProjectInfoTable[[#This Row],[Lamps (Proposed)]],ProjectInfoTable[[#This Row],[Quantity (Proposed)]]))","v":""},{"$f":"IFERROR(INDEX(ControlsLookup[Full Description],MATCH(RIGHT(ProjectInfoTable[[#This Row],[Proposed Equipment]],LEN(ProjectInfoTable[[#This Row],[Proposed Equipment]])-FIND(\"]\",ProjectInfoTable[[#This Row],[Proposed Equipment]],1)-3),ControlsLookup[Controls],0)),\"\")","v":""},{"$f":"IF(ProjectInfoTable[[#This Row],[ControlsOnly]]=\"\",\"\",IF(OR(ISNUMBER(FIND(\"Net\",ProjectInfoTable[[#This Row],[Proposed Equipment]],1)),ISNUMBER(FIND(\"Int\",ProjectInfoTable[[#This Row],[Proposed Equipment]],1))),ProjectInfoTable[[#This Row],[Quantity (Proposed)]],1))","v":""}]
[null,{"$f":"ROW(ProjectInfoTable[[#This Row],[OpSch]])-ROW(ProjectInfoTable[[#Headers],[OpSch]])","v":4},{"$f":"IFERROR(INDEX(RetrofitBaselineEquipment_Table[categoryBaseline],MATCH(RIGHT(LEFT(ProjectInfoTable[[#This Row],[Existing Equipment]],FIND(\" (\",ProjectInfoTable[[#This Row],[Existing Equipment]],1)-1),LEN(LEFT(ProjectInfoTable[[#This Row],[Existing Equipment]],FIND(\" (\",ProjectInfoTable[[#This Row],[Existing Equipment]],1)-1))-FIND(\": \",ProjectInfoTable[[#This Row],[Existing Equipment]],1)-1),RetrofitBaselineEquipment_Table[equipmentBaseline],0)),\"\")","v":""},null,null,null,null,{"$f":"IF(ProjectInfoTable[[#This Row],[Existing Equipment]]=\"\",\"\",IF(ISNUMBER(FIND(\"LF\",ProjectInfoTable[[#This Row],[Existing Equipment]],1)),1,IFERROR(VALUE(SUBSTITUTE(RIGHT(LEFT(ProjectInfoTable[[#This Row],[Existing Equipment]],FIND(\"L\",ProjectInfoTable[[#This Row],[Existing Equipment]],FIND(\"[\",ProjectInfoTable[[#This Row],[Existing Equipment]],1))-1),3),\"[\",\"\")),1)))","v":""},{"$f":"IF(ProjectInfoTable[[#This Row],[Existing Equipment]]=\"\",\"\",VALUE(SUBSTITUTE(RIGHT(LEFT(RIGHT(ProjectInfoTable[[#This Row],[Existing Equipment]],LEN(ProjectInfoTable[[#This Row],[Existing Equipment]])-IFERROR(FIND(\"[\",ProjectInfoTable[[#This Row],[Existing Equipment]],1),0)),IFERROR(FIND(\"W\",RIGHT(ProjectInfoTable[[#This Row],[Existing Equipment]],LEN(ProjectInfoTable[[#This Row],[Existing Equipment]])-IFERROR(FIND(\"[\",ProjectInfoTable[[#This Row],[Existing Equipment]],1),0)),1),0)),LEN(LEFT(RIGHT(ProjectInfoTable[[#This Row],[Existing Equipment]],LEN(ProjectInfoTable[[#This Row],[Existing Equipment]])-IFERROR(FIND(\"[\",ProjectInfoTable[[#This Row],[Existing Equipment]],1),0)),IFERROR(FIND(\"W\",RIGHT(ProjectInfoTable[[#This Row],[Existing Equipment]],LEN(ProjectInfoTable[[#This Row],[Existing Equipment]])-IFERROR(FIND(\"[\",ProjectInfoTable[[#This Row],[Existing Equipment]],1),0)),1),0)))-IFERROR(FIND(\"-\",LEFT(RIGHT(ProjectInfoTable[[#This Row],[Existing Equipment]],LEN(ProjectInfoTable[[#This Row],[Existing Equipment]])-IFERROR(FIND(\"[\",ProjectInfoTable[[#This Row],[Existing Equipment]],1),0)),IFERROR(FIND(\"W\",RIGHT(ProjectInfoTable[[#This Row],[Existing Equipment]],LEN(ProjectInfoTable[[#This Row],[Existing Equipment]])-IFERROR(FIND(\"[\",ProjectInfoTable[[#This Row],[Existing Equipment]],1),0)),1),0)),1),0)),\"W\",\"\")))","v":""},{"$f":"IF(ProjectInfoTable[[#This Row],[Existing Equipment]]=\"\",\"\",IF(AND(RIGHT(LEFT(ProjectInfoTable[[#This Row],[Existing Equipment]],FIND(\"]\",ProjectInfoTable[[#This Row],[Existing Equipment]],1)-1),1)<>\"W\"),IFERROR(TRIM(IF(IFERROR(FIND(\"FLT\",ProjectInfoTable[[#This Row],[Existing Equipment]],1),0)>0,LEFT(RIGHT(LEFT(ProjectInfoTable[[#This Row],[Existing Equipment]],FIND(\" (\",ProjectInfoTable[[#This Row],[Existing Equipment]],1)),LEN(LEFT(ProjectInfoTable[[#This Row],[Existing Equipment]],FIND(\" (\",ProjectInfoTable[[#This Row],[Existing Equipment]],1)))-FIND(\":\",ProjectInfoTable[[#This Row],[Existing Equipment]],1)-1),FIND(\" \",RIGHT(LEFT(ProjectInfoTable[[#This Row],[Existing Equipment]],FIND(\" (\",ProjectInfoTable[[#This Row],[Existing Equipment]],1)),LEN(LEFT(ProjectInfoTable[[#This Row],[Existing Equipment]],FIND(\" (\",ProjectInfoTable[[#This Row],[Existing Equipment]],1)))-FIND(\":\",ProjectInfoTable[[#This Row],[Existing Equipment]],1)-1),1)-1),RIGHT(LEFT(ProjectInfoTable[[#This Row],[Existing Equipment]],FIND(\" (\",ProjectInfoTable[[#This Row],[Existing Equipment]],1)),LEN(LEFT(ProjectInfoTable[[#This Row],[Existing Equipment]],FIND(\" (\",ProjectInfoTable[[#This Row],[Existing Equipment]],1)))-FIND(\":\",ProjectInfoTable[[#This Row],[Existing Equipment]],1)-1))&\" - \"&RIGHT(LEFT(ProjectInfoTable[[#This Row],[Existing Equipment]],FIND(\"]\",ProjectInfoTable[[#This Row],[Existing Equipment]],1)-1),LEN(LEFT(ProjectInfoTable[[#This Row],[Existing Equipment]],FIND(\"]\",ProjectInfoTable[[#This Row],[Existing Equipment]],1)-1))-FIND(\"W \",ProjectInfoTable[[#This Row],[Existing Equipment]],1)-3)),\"\"),\"\"))","v":""},{"$f":"IF(ProjectInfoTable[[#This Row],[Existing Equipment]]=\"\",\"\",IF(ProjectInfoTable[[#This Row],[Fixture/Ballast Check for Formula]]=\"\",IF(ISNUMBER(FIND(\"LF\",ProjectInfoTable[[#This Row],[Existing Equipment]],FIND(\"[\",ProjectInfoTable[[#This Row],[Existing Equipment]],1))),ProjectInfoTable[[#This Row],[Lamp W (Existing)]],ProjectInfoTable[[#This Row],[Lamps (Existing)]]*ProjectInfoTable[[#This Row],[Lamp W (Existing)]]),IFERROR(ROUND( ProjectInfoTable[[#This Row],[Lamps (Existing)]]*ProjectInfoTable[[#This Row],[Lamp W (Existing)]]*INDEX(FixtureWattageFormula_Table[A],MATCH(ProjectInfoTable[[#This Row],[Fixture/Ballast Check for Formula]],FixtureWattageFormula_Table[Concatenate],0))+INDEX(FixtureWattageFormula_Table[B],MATCH(ProjectInfoTable[[#This Row],[Fixture/Ballast Check for Formula]],FixtureWattageFormula_Table[Concatenate],0)),0),ProjectInfoTable[[#This Row],[Lamps (Existing)]]*ProjectInfoTable[[#This Row],[Lamp W (Existing)]])))","v":""},{"$f":"IF(OR(ISNUMBER(FIND(\"T8 \",ProjectInfoTable[[#This Row],[Existing Equipment]],1)),ISNUMBER(FIND(\"T5 \",ProjectInfoTable[[#This Row],[Existing Equipment]],1)),ISNUMBER(FIND(\"T12 \",ProjectInfoTable[[#This Row],[Existing Equipment]],1)),ISNUMBER(FIND(\"T12HO - 8\",ProjectInfoTable[[#This Row],[Existing Equipment]],1)),ISNUMBER(FIND(\"Incand\",ProjectInfoTable[[#This Row],[Existing Equipment]],1))),IFERROR(ROUND(INDEX(StipulatedWattage_Table[Stipulated fixture wattage],MATCH(MID(ProjectInfoTable[[#This Row],[Existing Equipment]],FIND(\"[\",ProjectInfoTable[[#This Row],[Existing Equipment]],1),FIND(\"]\",ProjectInfoTable[[#This Row],[Existing Equipment]],1)-FIND(\"[\",ProjectInfoTable[[#This Row],[Existing Equipment]],1)+1),StipulatedWattage_Table[Fixture Code],0)),0),ProjectInfoTable[[#This Row],[Fixture W (Existing, Actual)]]),ProjectInfoTable[[#This Row],[Fixture W (Existing, Actual)]])","v":""},{"$f":"IF(ProjectType=\"Retrofit\",IF(ProjectInfoTable[[#This Row],[Existing Equipment]]=\"\",\"\",ProjectInfoTable[[#This Row],[Quantity (Existing)]]*ProjectInfoTable[[#This Row],[Fixture W (Existing, Actual)]]),IF(ISNUMBER(FIND(\"Interior\",ProjectInfoTable[[#This Row],[Proposed Equipment]],1)),IF(ISNUMBER(FIND(\"Controls Only\",ProjectInfoTable[[#This Row],[Proposed Equipment]])),ProjectInfoTable[[#This Row],[Space W (Proposed)]],(AllowedWattage-SUMIFS(ProjectInfoTable[Space W (Proposed)],ProjectInfoTable[Proposed Equipment],\"*Interior*\",ProjectInfoTable[Proposed Equipment],\"*Controls Only*\"))*ProjectInfoTable[[#This Row],[Space W (Proposed)]]/(SUMIFS(ProjectInfoTable[Space W (Proposed)],ProjectInfoTable[Proposed Equipment],\"*Interior*\")-SUMIFS(ProjectInfoTable[Space W (Proposed)],ProjectInfoTable[Proposed Equipment],\"*Interior*\",ProjectInfoTable[Proposed Equipment],\"*Controls Only*\"))),\"\"))","v":""},{"$f":"IF(ProjectType=\"Retrofit\",IF(ProjectInfoTable[[#This Row],[Existing Equipment]]=\"\",\"\",ProjectInfoTable[[#This Row],[Quantity (Existing)]]*ProjectInfoTable[[#This Row],[Fixture W (Existing, Stipulated)]]),ProjectInfoTable[[#This Row],[Space W (Existing, Actual)]])","v":""},{"$f":"IFERROR(INDEX(OperatingHours_List,MATCH(ProjectInfoTable[[#This Row],[OpSch]],OperatingSchedules_List,0))*ProjectInfoTable[[#This Row],[Space W (Existing, Actual)]]/1000,\"\")","v":""},{"$f":"IFERROR(INDEX(OperatingHours_List,MATCH(ProjectInfoTable[[#This Row],[OpSch]],OperatingSchedules_List,0))*ProjectInfoTable[[#This Row],[Space W (Existing, Actual)]]/1000*(IFERROR(INDEX(ControlsLookup[],MATCH(RIGHT(ProjectInfoTable[[#This Row],[Existing Equipment]],LEN(ProjectInfoTable[[#This Row],[Existing Equipment]])-FIND(\"]\",ProjectInfoTable[[#This Row],[Existing Equipment]],1)-3),ControlsLookup[Controls],0),MATCH(\"CSF_\"&ProjectState,ControlsLookup[#Headers],0)),0))*-1,\"\")","v":""},{"$f":"IF(OR(ProjectInfoTable[[#This Row],[Fixture kWh (Existing, Actual)]]=\"\",ProjectInfoTable[[#This Row],[Control kWh (Existing, Actual)]]=\"\"),\"\",ProjectInfoTable[[#This Row],[Fixture kWh (Existing, Actual)]]+ProjectInfoTable[[#This Row],[Control kWh (Existing, Actual)]])","v":""},{"$f":"IFERROR(INDEX(OperatingHours_List,MATCH(ProjectInfoTable[[#This Row],[OpSch]],OperatingSchedules_List,0))*ProjectInfoTable[[#This Row],[Space W (Existing, Stipulated)]]/1000,\"\")","v":""},{"$f":"IFERROR(INDEX(OperatingHours_List,MATCH(ProjectInfoTable[[#This Row],[OpSch]],OperatingSchedules_List,0))*ProjectInfoTable[[#This Row],[Space W (Existing, Stipulated)]]/1000*(IFERROR(INDEX(ControlsLookup[],MATCH(RIGHT(ProjectInfoTable[[#This Row],[Existing Equipment]],LEN(ProjectInfoTable[[#This Row],[Existing Equipment]])-FIND(\"]\",ProjectInfoTable[[#This Row],[Existing Equipment]],1)-3),ControlsLookup[Controls],0),MATCH(\"CSF_\"&ProjectState,ControlsLookup[#Headers],0)),0))*-1,\"\")","v":""},{"$f":"IF(OR(ProjectInfoTable[[#This Row],[Fixture kWh (Existing, Stipulated)]]=\"\",ProjectInfoTable[[#This Row],[Control kWh (Existing, Stipulated)]]=\"\"),\"\",ProjectInfoTable[[#This Row],[Fixture kWh (Existing, Stipulated)]]+ProjectInfoTable[[#This Row],[Control kWh (Existing, Stipulated)]])","v":""},{"$f":"IF(\n AND(\n  OR(ProjectInfoTable[[#This Row],[Existing Equipment]]=\"\",ProjectInfoTable[[#This Row],[Quantity (Existing)]]=\"\"),\n  ProjectType=\"Retrofit\"\n ),\n \"\",\n IF(\n  ISNUMBER(FIND(\"Street:\",ProjectInfoTable[[#This Row],[Existing Equipment]],1)),\n  IF(\n   OR(\n    AND(ProjectState=\"UT\",RateSchedule=12),\n    AND(ProjectState=\"ID\",RateSchedule=12),\n    AND(ProjectState=\"WY\",RateSchedule=58)\n   ),\n   IFERROR(\n    INDEX(\n     StreetLightingRates_Table[],\n     MATCH(MID(ProjectInfoTable[[#This Row],[Existing Equipment]],FIND(\": \",ProjectInfoTable[[#This Row],[Existing Equipment]],1)+2,FIND(\" (\",ProjectInfoTable[[#This Row],[Existing Equipment]],1)-FIND(\": \",ProjectInfoTable[[#This Row],[Existing Equipment]],1)-2)&ProjectInfoTable[[#This Row],[Lamp W (Existing)]],StreetLightingRates_Table[TechWattage],0),\n     MATCH(ProjectState&RateSchedule,StreetLightingRates_Table[#Headers],0)\n    )\n    *\n    ProjectInfoTable[[#This Row],[Quantity (Existing)]]\n    *\n    ProjectInfoTable[[#This Row],[Lamps (Existing)]]\n    *\n    12,\n    ProjectInfoTable[[#This Row],[Space kWh (Existing, Actual)]]\n    *\n    INDEX(INDIRECT(\"RateSchedules_\"&ProjectState&\"_Table[kWh Rate]\"),MATCH(RateSchedule,INDIRECT(\"RateSchedules_\"&ProjectState&\"_Table[Rate Schedule]\"),0))\n   ),\n   IFERROR(\n    ProjectInfoTable[[#This Row],[Space kWh (Existing, Actual)]]*\n    INDEX(INDIRECT(\"RateSchedules_\"&ProjectState&\"_Table[kWh Rate]\"),MATCH(RateSchedule,INDIRECT(\"RateSchedules_\"&ProjectState&\"_Table[Rate Schedule]\"),0)),0)\n   +\n   IFERROR(IF(ISNUMBER(FIND(\"Interior:\",ProjectInfoTable[[#This Row],[Existing Equipment]],1)),\n    ProjectInfoTable[[#This Row],[Space W (Existing, Actual)]]/1000*12*DDF*\n    INDEX(INDIRECT(\"RateSchedules_\"&ProjectState&\"_Table[kW Rate]\"),MATCH(RateSchedule,INDIRECT(\"RateSchedules_\"&ProjectState&\"_Table[Rate Schedule]\"),0)),0),0)\n  ),\n  IFERROR(\n   ProjectInfoTable[[#This Row],[Space kWh (Existing, Actual)]]*\n   INDEX(INDIRECT(\"RateSchedules_\"&ProjectState&\"_Table[kWh Rate]\"),MATCH(RateSchedule,INDIRECT(\"RateSchedules_\"&ProjectState&\"_Table[Rate Schedule]\"),0)),\n   0\n  )\n  +\n  IFERROR(IF(OR(ISNUMBER(FIND(\"Interior:\",ProjectInfoTable[[#This Row],[Existing Equipment]],1)),AND(ProjectType<>\"Retrofit\",ISNUMBER(FIND(\"Interior:\",ProjectInfoTable[[#This Row],[Proposed Equipment]],1)))),\n   ProjectInfoTable[[#This Row],[Space W (Existing, Actual)]]/1000*12*DDF*\n   INDEX(INDIRECT(\"RateSchedules_\"&ProjectState&\"_Table[kW Rate]\"),MATCH(RateSchedule,INDIRECT(\"RateSchedules_\"&ProjectState&\"_Table[Rate Schedule]\"),0)),0),\n   0\n  )\n )\n)","v":0},{"$f":"IF(\n AND(\n  OR(ProjectInfoTable[[#This Row],[Existing Equipment]]=\"\",ProjectInfoTable[[#This Row],[Quantity (Existing)]]=\"\"),\n  ProjectType=\"Retrofit\"\n ),\n \"\",\n IF(\n  ISNUMBER(FIND(\"Street:\",ProjectInfoTable[[#This Row],[Existing Equipment]],1)),\n  IF(\n   OR(\n    AND(ProjectState=\"UT\",RateSchedule=12),\n    AND(ProjectState=\"ID\",RateSchedule=12),\n    AND(ProjectState=\"WY\",RateSchedule=58)\n   ),\n   IFERROR(\n    INDEX(\n     StreetLightingRates_Table[],\n     MATCH(MID(ProjectInfoTable[[#This Row],[Existing Equipment]],FIND(\": \",ProjectInfoTable[[#This Row],[Existing Equipment]],1)+2,FIND(\" (\",ProjectInfoTable[[#This Row],[Existing Equipment]],1)-FIND(\": \",ProjectInfoTable[[#This Row],[Existing Equipment]],1)-2)&ProjectInfoTable[[#This Row],[Lamp W (Existing)]],StreetLightingRates_Table[TechWattage],0),\n     MATCH(ProjectState&RateSchedule,StreetLightingRates_Table[#Headers],0)\n    )\n    *\n    ProjectInfoTable[[#This Row],[Quantity (Existing)]]\n    *\n    ProjectInfoTable[[#This Row],[Lamps (Existing)]]\n    *\n    12,\n    ProjectInfoTable[[#This Row],[Space kWh (Existing, Stipulated)]]\n    *\n    INDEX(INDIRECT(\"RateSchedules_\"&ProjectState&\"_Table[kWh Rate]\"),MATCH(RateSchedule,INDIRECT(\"RateSchedules_\"&ProjectState&\"_Table[Rate Schedule]\"),0))\n   ),\n   IFERROR(\n    ProjectInfoTable[[#This Row],[Space kWh (Existing, Stipulated)]]*\n    INDEX(INDIRECT(\"RateSchedules_\"&ProjectState&\"_Table[kWh Rate]\"),MATCH(RateSchedule,INDIRECT(\"RateSchedules_\"&ProjectState&\"_Table[Rate Schedule]\"),0)),0)\n   +\n   IFERROR(IF(ISNUMBER(FIND(\"Interior:\",ProjectInfoTable[[#This Row],[Existing Equipment]],1)),\n    ProjectInfoTable[[#This Row],[Space W (Existing, Stipulated)]]/1000*12*DDF*\n    INDEX(INDIRECT(\"RateSchedules_\"&ProjectState&\"_Table[kW Rate]\"),MATCH(RateSchedule,INDIRECT(\"RateSchedules_\"&ProjectState&\"_Table[Rate Schedule]\"),0)),0),0)\n  ),\n  IFERROR(\n   ProjectInfoTable[[#This Row],[Space kWh (Existing, Stipulated)]]*\n   INDEX(INDIRECT(\"RateSchedules_\"&ProjectState&\"_Table[kWh Rate]\"),MATCH(RateSchedule,INDIRECT(\"RateSchedules_\"&ProjectState&\"_Table[Rate Schedule]\"),0)),\n   0\n  )\n  +\n  IFERROR(IF(OR(ISNUMBER(FIND(\"Interior:\",ProjectInfoTable[[#This Row],[Existing Equipment]],1)),AND(ProjectType<>\"Retrofit\",ISNUMBER(FIND(\"Interior:\",ProjectInfoTable[[#This Row],[Proposed Equipment]],1)))),\n   ProjectInfoTable[[#This Row],[Space W (Existing, Stipulated)]]/1000*12*DDF*\n   INDEX(INDIRECT(\"RateSchedules_\"&ProjectState&\"_Table[kW Rate]\"),MATCH(RateSchedule,INDIRECT(\"RateSchedules_\"&ProjectState&\"_Table[Rate Schedule]\"),0)),0),\n   0\n  )\n )\n)","v":0},{"$f":"IF(ProjectType=\"Retrofit\",IFERROR(INDEX(RetrofitBaselineEquipment_Table[categoryBaseline],MATCH(RIGHT(LEFT(ProjectInfoTable[[#This Row],[Proposed Equipment]],FIND(\" (\",ProjectInfoTable[[#This Row],[Proposed Equipment]],1)-1),LEN(LEFT(ProjectInfoTable[[#This Row],[Proposed Equipment]],FIND(\" (\",ProjectInfoTable[[#This Row],[Proposed Equipment]],1)-1))-FIND(\": \",ProjectInfoTable[[#This Row],[Proposed Equipment]],1)-1),RetrofitBaselineEquipment_Table[equipmentBaseline],0)),\"\"),IFERROR(INDEX(#REF!,MATCH(RIGHT(LEFT(ProjectInfoTable[[#This Row],[Proposed Equipment]],FIND(\" (\",ProjectInfoTable[[#This Row],[Proposed Equipment]],1)-1),LEN(LEFT(ProjectInfoTable[[#This Row],[Proposed Equipment]],FIND(\" (\",ProjectInfoTable[[#This Row],[Proposed Equipment]],1)-1))-FIND(\": \",ProjectInfoTable[[#This Row],[Proposed Equipment]],1)-1),#REF!,0)),\"\"))","v":""},{"$f":"IF(ProjectInfoTable[[#This Row],[Proposed Equipment]]=\"\",\"\",IF(ISNUMBER(SEARCH(\"Controls Only\",ProjectInfoTable[[#This Row],[Proposed Equipment]])),\"Controls Only\",IF(ProjectType=\"Retrofit\",_xlfn.LET(_xlpm.k,LEFT(ProjectInfoTable[[#This Row],[Proposed Equipment]],FIND(\"[\",ProjectInfoTable[[#This Row],[Proposed Equipment]])-2),_xlpm.ep,_xlfn.SWITCH(ProjectState,\"UT\",EquipmentTable_Retrofit_UT[equipmentProposed],\"WY\",EquipmentTable_Retrofit_WY[equipmentProposed],\"ID\",EquipmentTable_Retrofit_ID[equipmentProposed]),_xlpm.cp,_xlfn.SWITCH(ProjectState,\"UT\",EquipmentTable_Retrofit_UT[categoryProposed],\"WY\",EquipmentTable_Retrofit_WY[categoryProposed],\"ID\",EquipmentTable_Retrofit_ID[categoryProposed]),_xlfn.XLOOKUP(_xlpm.k,_xlpm.ep,_xlpm.cp,\"Non-eligible fixture - Retrofit - \"&ProjectState)),_xlfn.LET(_xlpm.k,MID(ProjectInfoTable[[#This Row],[Proposed Equipment]],FIND(\": \",ProjectInfoTable[[#This Row],[Proposed Equipment]])+2,FIND(\" (\",ProjectInfoTable[[#This Row],[Proposed Equipment]])-(FIND(\": \",ProjectInfoTable[[#This Row],[Proposed Equipment]])+2)),_xlpm.ep,_xlfn.SWITCH(ProjectState,\"UT\",EquipmentTable_NCMR_UT[equipmentProposed],\"WY\",EquipmentTable_NCMR_WY[equipmentProposed],\"ID\",EquipmentTable_NCMR_ID[equipmentProposed]),_xlpm.cp,_xlfn.SWITCH(ProjectState,\"UT\",EquipmentTable_NCMR_UT[categoryProposed],\"WY\",EquipmentTable_NCMR_WY[categoryProposed],\"ID\",EquipmentTable_NCMR_ID[categoryProposed]),_xlfn.XLOOKUP(_xlpm.k,_xlpm.ep,_xlpm.cp,\"Non-eligible fixture - NCMR - \"&ProjectState)))))","v":""},null,null,"ü",{"$f":"IF(ProjectInfoTable[[#This Row],[Proposed Equipment]]=\"\",\"\",IF(ProjectInfoTable[[#This Row],[Measure Selection]]=\"\",0,IF(ISNUMBER(FIND(\"LF\",ProjectInfoTable[[#This Row],[Proposed Equipment]],1)),1,IFERROR(VALUE(SUBSTITUTE(RIGHT(LEFT(ProjectInfoTable[[#This Row],[Proposed Equipment]],FIND(\"L\",ProjectInfoTable[[#This Row],[Proposed Equipment]],FIND(\"[\",ProjectInfoTable[[#This Row],[Proposed Equipment]],1))-1),2),\"[\",\"\")),IFERROR(LEFT(RIGHT(ProjectInfoTable[[#This Row],[Proposed Equipment]],LEN(ProjectInfoTable[[#This Row],[Proposed Equipment]])-FIND(\"-lamp\",ProjectInfoTable[[#This Row],[Proposed Equipment]],1)+2),1),1)))))","v":""},{"$f":"IF(ProjectInfoTable[[#This Row],[Proposed Equipment]]=\"\",\"\",IF(ProjectInfoTable[[#This Row],[Measure Selection]]=\"\",0,IFERROR(\n\nIF(ISNUMBER(FIND(\"W]\",ProjectInfoTable[[#This Row],[Proposed Equipment]])),\nRIGHT(MID(ProjectInfoTable[[#This Row],[Proposed Equipment]],FIND(\"W]\",ProjectInfoTable[[#This Row],[Proposed Equipment]],FIND(\"[\",ProjectInfoTable[[#This Row],[Proposed Equipment]]))-7,7),\nLEN(MID(ProjectInfoTable[[#This Row],[Proposed Equipment]],FIND(\"W]\",ProjectInfoTable[[#This Row],[Proposed Equipment]],FIND(\"[\",ProjectInfoTable[[#This Row],[Proposed Equipment]]))-7,7)) -\nIFERROR(FIND(\" - \",MID(ProjectInfoTable[[#This Row],[Proposed Equipment]],FIND(\"W]\",ProjectInfoTable[[#This Row],[Proposed Equipment]],FIND(\"[\",ProjectInfoTable[[#This Row],[Proposed Equipment]]))-7,7))+2,\nFIND(\"[\",MID(ProjectInfoTable[[#This Row],[Proposed Equipment]],FIND(\"W]\",ProjectInfoTable[[#This Row],[Proposed Equipment]],FIND(\"[\",ProjectInfoTable[[#This Row],[Proposed Equipment]]))-7,7)))),\n\nIF(ISNUMBER(FIND(\"[\",MID(ProjectInfoTable[[#This Row],[Proposed Equipment]],FIND(\"W \",ProjectInfoTable[[#This Row],[Proposed Equipment]],FIND(\"[\",ProjectInfoTable[[#This Row],[Proposed Equipment]]))-7,7))),\nRIGHT(MID(ProjectInfoTable[[#This Row],[Proposed Equipment]],FIND(\"W \",ProjectInfoTable[[#This Row],[Proposed Equipment]],FIND(\"[\",ProjectInfoTable[[#This Row],[Proposed Equipment]]))-7,7),\nLEN(MID(ProjectInfoTable[[#This Row],[Proposed Equipment]],FIND(\"W \",ProjectInfoTable[[#This Row],[Proposed Equipment]],FIND(\"[\",ProjectInfoTable[[#This Row],[Proposed Equipment]]))-7,7)) -\nIFERROR(FIND(\" - \",MID(ProjectInfoTable[[#This Row],[Proposed Equipment]],FIND(\"W \",ProjectInfoTable[[#This Row],[Proposed Equipment]],FIND(\"[\",ProjectInfoTable[[#This Row],[Proposed Equipment]]))-7,7))+2,\nFIND(\"[\",MID(ProjectInfoTable[[#This Row],[Proposed Equipment]],FIND(\"W \",ProjectInfoTable[[#This Row],[Proposed Equipment]],FIND(\"[\",ProjectInfoTable[[#This Row],[Proposed Equipment]]))-7,7)))),\n\nRIGHT(MID(ProjectInfoTable[[#This Row],[Proposed Equipment]],FIND(\"W \",ProjectInfoTable[[#This Row],[Proposed Equipment]],FIND(\"[\",ProjectInfoTable[[#This Row],[Proposed Equipment]]))-7,7),\nLEN(MID(ProjectInfoTable[[#This Row],[Proposed Equipment]],FIND(\"W \",ProjectInfoTable[[#This Row],[Proposed Equipment]],FIND(\"[\",ProjectInfoTable[[#This Row],[Proposed Equipment]]))-7,7)) -\nFIND(\" - \",MID(ProjectInfoTable[[#This Row],[Proposed Equipment]],FIND(\"W \",ProjectInfoTable[[#This Row],[Proposed Equipment]],FIND(\"[\",ProjectInfoTable[[#This Row],[Proposed Equipment]]))-7,7))-2\n))),0)))","v":""},{"$f":"IF(ProjectInfoTable[[#This Row],[Proposed Equipment]]=\"\",\"\",IFERROR(ProjectInfoTable[[#This Row],[Lamps (Proposed)]]*ProjectInfoTable[[#This Row],[Lamp W (Proposed)]],\"\"))","v":""},{"$f":"IF(ProjectInfoTable[[#This Row],[Proposed Equipment]]=\"\",\"\",IFERROR(ProjectInfoTable[[#This Row],[Quantity (Proposed)]]*ProjectInfoTable[[#This Row],[Fixture W (Proposed)]],\"\"))","v":""},{"$f":"IFERROR(INDEX(OperatingHours_List,MATCH(ProjectInfoTable[[#This Row],[OpSch]],OperatingSchedules_List,0))*ProjectInfoTable[[#This Row],[Space W (Proposed)]]/1000,\"\")","v":""},{"$f":"IF(OR(ISNUMBER(FIND(\"Controls Only\",ProjectInfoTable[[#This Row],[Proposed Equipment]],1)),ProjectInfoTable[[#This Row],[ControlsOnly]]=\"Re-Commissioning\"),\"Controls Only\",IFERROR(INDEX(OperatingHours_List,MATCH(ProjectInfoTable[[#This Row],[OpSch]],OperatingSchedules_List,0))*ProjectInfoTable[[#This Row],[Space W (Proposed)]]/1000*(IFERROR(INDEX(ControlsLookup[],MATCH(SUBSTITUTE(RIGHT(ProjectInfoTable[[#This Row],[Proposed Equipment]],LEN(ProjectInfoTable[[#This Row],[Proposed Equipment]])-FIND(\"]\",ProjectInfoTable[[#This Row],[Proposed Equipment]],1)-3),\" reused\",\"\"),ControlsLookup[Controls],0),MATCH(\"CSF_\"&ProjectState,ControlsLookup[#Headers],0)),0))*-1,\"\"))","v":""},{"$f":"IF(OR(ProjectInfoTable[[#This Row],[Fixture kWh (Proposed)]]=\"\",ProjectInfoTable[[#This Row],[Control kWh (Proposed)]]=\"\"),\"\",IFERROR(ProjectInfoTable[[#This Row],[Fixture kWh (Proposed)]]+ProjectInfoTable[[#This Row],[Control kWh (Proposed)]],0))","v":""},{"$f":"IF(\n OR(\n  ProjectInfoTable[[#This Row],[Proposed Equipment]]=\"\",\n  ProjectInfoTable[[#This Row],[Quantity (Proposed)]]=\"\"\n ),\n \"\",\n IF(\n  AND(\n   OR(\n    AND(\n     ProjectState=\"UT\",\n     RateSchedule=12\n    ),\n    AND(\n     ProjectState=\"ID\",\n     RateSchedule=12\n    ),\n    AND(\n     ProjectState=\"WY\",\n     RateSchedule=58\n    )\n   ),\n   ISNUMBER(FIND(\"Street:\",ProjectInfoTable[[#This Row],[Existing Equipment]],1))\n  ),\n  IF(\n   AND(\n    RateSchedule=53,\n    ISNUMBER(FIND(\"LED\",ProjectInfoTable[[#This Row],[Proposed Equipment]],1))\n   ),\n   ProjectInfoTable[[#This Row],[Fixture kWh (Proposed)]]\n   *\n   INDEX(\n    INDIRECT(\"RateSchedules_\"&ProjectState&\"_Table[kWh Rate]\"),\n    MATCH(RateSchedule,INDIRECT(\"RateSchedules_\"&ProjectState&\"_Table[Rate Schedule]\"),0)\n   ),\n   IFERROR(INDEX(\n    StreetLightingRates_Table[],\n    MATCH(\"LED\"&IF(AND(ProjectInfoTable[[#This Row],[Fixture W (Proposed)]]>0,ProjectInfoTable[[#This Row],[Fixture W (Proposed)]]<=70),70,IF(AND(ProjectInfoTable[[#This Row],[Fixture W (Proposed)]]>70,ProjectInfoTable[[#This Row],[Fixture W (Proposed)]]<=100),100,IF(AND(ProjectInfoTable[[#This Row],[Fixture W (Proposed)]]>100,ProjectInfoTable[[#This Row],[Fixture W (Proposed)]]<=150),150,IF(AND(ProjectInfoTable[[#This Row],[Fixture W (Proposed)]]>150,ProjectInfoTable[[#This Row],[Fixture W (Proposed)]]<=200),200,IF(AND(ProjectInfoTable[[#This Row],[Fixture W (Proposed)]]>200,ProjectInfoTable[[#This Row],[Fixture W (Proposed)]]<=250),250,IF(AND(ProjectInfoTable[[#This Row],[Fixture W (Proposed)]]>250,ProjectInfoTable[[#This Row],[Fixture W (Proposed)]]<=400),400,\"\")))))),StreetLightingRates_Table[TechWattage],0),\n    MATCH(ProjectState&RateSchedule,StreetLightingRates_Table[#Headers],0)\n   )\n   *ProjectInfoTable[[#This Row],[Lamps (Proposed)]]*ProjectInfoTable[[#This Row],[Quantity (Proposed)]]*12,\n  ProjectInfoTable[[#This Row],[Space kWh (Proposed)]]*INDEX(INDIRECT(\"RateSchedules_\"&ProjectState&\"_Table[kWh Rate]\"),MATCH(RateSchedule,INDIRECT(\"RateSchedules_\"&ProjectState&\"_Table[Rate Schedule]\"),0)))),\n  IFERROR(ProjectInfoTable[[#This Row],[Space kWh (Proposed)]]*INDEX(INDIRECT(\"RateSchedules_\"&ProjectState&\"_Table[kWh Rate]\"),MATCH(RateSchedule,INDIRECT(\"RateSchedules_\"&ProjectState&\"_Table[Rate Schedule]\"),0)),0)\n  +\n  IF(OR(ISNUMBER(FIND(\"Exterior:\",ProjectInfoTable[[#This Row],[Existing Equipment]],1)),ISNUMBER(FIND(\"Street:\",ProjectInfoTable[[#This Row],[Existing Equipment]],1))),0,IFERROR(ProjectInfoTable[[#This Row],[Space W (Proposed)]]/1000*12*DDF*INDEX(INDIRECT(\"RateSchedules_\"&ProjectState&\"_Table[kW Rate]\"),MATCH(RateSchedule,INDIRECT(\"RateSchedules_\"&ProjectState&\"_Table[Rate Schedule]\"),0)),0))\n )\n)","v":""},{"$f":"IF(ProjectInfoTable[[#This Row],[Measure Selection]]=\"\",0,IF(ProjectType=\"Retrofit\",IFERROR((ProjectInfoTable[[#This Row],[Space W (Existing, Actual)]]-ProjectInfoTable[[#This Row],[Space W (Proposed)]])/ProjectInfoTable[[#This Row],[Space W (Existing, Actual)]],\"\"),IF(AND(ProjectInfoTable[[#This Row],[Proposed Equipment]]=\"\",ProjectInfoTable[[#This Row],[Quantity (Proposed)]]=\"\"),\"\",IFERROR((ProjectInfoTable[[#This Row],[Space W (Existing, Stipulated)]]-ProjectInfoTable[[#This Row],[Space W (Proposed)]])/ProjectInfoTable[[#This Row],[Space W (Existing, Stipulated)]],\"n/a\"))))","v":""},{"$f":"IF(ProjectInfoTable[[#This Row],[Measure Selection]]=\"\",0,IF(ProjectType=\"Retrofit\",IFERROR((ProjectInfoTable[[#This Row],[Space W (Existing, Stipulated)]]-ProjectInfoTable[[#This Row],[Space W (Proposed)]])/ProjectInfoTable[[#This Row],[Space W (Existing, Stipulated)]],\"\"),ProjectInfoTable[[#This Row],[% Wattage Reduction (Actual)]]))","v":""},{"$f":"IFERROR(IF(OR(ProjectInfoTable[[#This Row],[Measure Selection]]=\"\",ProjectInfoTable[[#This Row],[ControlsOnly]]=\"Re-Commissioning\"),0,IF(AND(ProjectType=\"Retrofit\",LEFT(ProjectInfoTable[[#This Row],[Existing Equipment]],FIND(\": \",ProjectInfoTable[[#This Row],[Existing Equipment]],1)-1)<>\"Interior\"),0,((ProjectInfoTable[[#This Row],[Space W (Existing, Actual)]]-ProjectInfoTable[[#This Row],[Space W (Proposed)]])/1000*DDF)-IF(ProjectInfoTable[[#This Row],[Midstream Measure Name]]<>\"\",IFERROR(ProjectInfoTable[[#This Row],[kW Per Unit (Midstream)]]*ProjectInfoTable[[#This Row],[Quantity]]*ProjectInfoTable[[#This Row],[No. of TRL Units]],0),0))),\"\")","v":""},{"$f":"IFERROR(IF(OR(ProjectInfoTable[[#This Row],[Measure Selection]]=\"\",ProjectInfoTable[[#This Row],[ControlsOnly]]=\"Re-Commissioning\"),0,IF(AND(ISNUMBER(VALUE(ProjectInfoTable[[#This Row],[kW Per Unit]])),ProjectInfoTable[[#This Row],[kW Per Unit]]<>0),ROUND(ProjectInfoTable[[#This Row],[kW Per Unit]]*ProjectInfoTable[[#This Row],[Quantity]]*ProjectInfoTable[[#This Row],[No. of TRL Units]],2),IF(OR(AND(ProjectType=\"Retrofit\",LEFT(ProjectInfoTable[[#This Row],[Existing Equipment]],FIND(\": \",ProjectInfoTable[[#This Row],[Existing Equipment]],1)-1)<>\"Interior\"),AND(ProjectInfoTable[[#This Row],[Incentives Per Unit]]=0,INDEX(StipulatedSavingsYesNo_Table[Stipulated Savings?],MATCH(ProjectState,StipulatedSavingsYesNo_Table[State],0))=\"No\")),0,IF(ISNUMBER(FIND(\"Controls Only\",ProjectInfoTable[[#This Row],[Proposed Equipment]],1)),0,ROUND(((ProjectInfoTable[[#This Row],[Space W (Existing, Stipulated)]]-ProjectInfoTable[[#This Row],[Space W (Proposed)]])/1000*DDF)-IF(ProjectInfoTable[[#This Row],[Midstream Measure Name]]<>\"\",IFERROR(ProjectInfoTable[[#This Row],[kW Per Unit (Midstream)]]*ProjectInfoTable[[#This Row],[Quantity]]*ProjectInfoTable[[#This Row],[No. of TRL Units]],0),0),2))))),\"\")","v":""},{"$f":"IFERROR(IF(OR(ProjectInfoTable[[#This Row],[Control kWh (Proposed)]]=\"Controls Only\",ProjectInfoTable[[#This Row],[Measure Selection]]=\"\"),0,ROUND((ProjectInfoTable[[#This Row],[Fixture kWh (Existing, Actual)]]-ProjectInfoTable[[#This Row],[Fixture kWh (Proposed)]])*IF(VALUE(SpaceTypesInfo_Table[[#Totals],[HVAC Effects]])=0,1,1+VALUE(SpaceTypesInfo_Table[[#Totals],[HVAC Effects]])),0)),\"\")","v":""},{"$f":"IFERROR(IF(ProjectInfoTable[[#This Row],[Control kWh (Proposed)]]=\"Controls Only\",ROUND(IFERROR(INDEX(OperatingHours_List,MATCH(ProjectInfoTable[[#This Row],[OpSch]],OperatingSchedules_List,0))*IF(OR(ProjectType <> \"Retrofit\",ProjectInfoTable[[#This Row],[Space W (Proposed)]]>0),ProjectInfoTable[[#This Row],[Space W (Proposed)]],ProjectInfoTable[[#This Row],[Space W (Existing, Actual)]])/1000*(IFERROR(INDEX(ControlsLookup[],MATCH(RIGHT(ProjectInfoTable[[#This Row],[Proposed Equipment]],LEN(ProjectInfoTable[[#This Row],[Proposed Equipment]])-FIND(\"]\",ProjectInfoTable[[#This Row],[Proposed Equipment]],1)-3),ControlsLookup[Controls],0),MATCH(\"CSF_\"&ProjectState,ControlsLookup[#Headers],0)),0))*IF(VALUE(SpaceTypesInfo_Table[[#Totals],[HVAC Effects]])=0,1,1+VALUE(SpaceTypesInfo_Table[[#Totals],[HVAC Effects]])),\"\"),0),ROUND(IFERROR((ProjectInfoTable[[#This Row],[Control kWh (Existing, Actual)]]-ProjectInfoTable[[#This Row],[Control kWh (Proposed)]])*IF(VALUE(SpaceTypesInfo_Table[[#Totals],[HVAC Effects]])=0,1,1+VALUE(SpaceTypesInfo_Table[[#Totals],[HVAC Effects]])),\"\"),0)),\"\")","v":""},{"$f":"IF(OR(ProjectInfoTable[[#This Row],[Proposed Equipment]]=\"\",ProjectInfoTable[[#This Row],[Quantity (Proposed)]]=\"\"),\"\",IF(ProjectInfoTable[[#This Row],[Fixture Measure]]=\"\",0,IF(AND(ProjectInfoTable[[#This Row],[Incentives Per Unit]]=0,INDEX(StipulatedSavingsYesNo_Table[Stipulated Savings?],MATCH(ProjectState,StipulatedSavingsYesNo_Table[State],0))=\"No\"),0,ProjectInfoTable[[#This Row],[Total   kWh/yr Savings (Actual)]]-ProjectInfoTable[[#This Row],[Control Measure kWh/yr Savings (Actual)]])))","v":""},{"$f":"IF(OR(ProjectInfoTable[[#This Row],[Proposed Equipment]]=\"\",ProjectInfoTable[[#This Row],[Quantity (Proposed)]]=\"\"),\"\",IF(ProjectInfoTable[[#This Row],[Control Measure]]=\"\",0,ProjectInfoTable[[#This Row],[Control kWh/yr Savings (Actual)]]))","v":""},{"$f":"IF(AND(ProjectInfoTable[[#This Row],[Incentives Per Unit]]=0,INDEX(StipulatedSavingsYesNo_Table[Stipulated Savings?],MATCH(ProjectState,StipulatedSavingsYesNo_Table[State],0))=\"No\"),ProjectInfoTable[[#This Row],[Fixture kWh/yr Savings (Actual)]]+IF(ProjectInfoTable[[#This Row],[Control Measure kWh/yr Savings (Actual)]]=0,0,ProjectInfoTable[[#This Row],[Control kWh/yr Savings (Actual)]]),IF(AND(ProjectInfoTable[[#This Row],[Fixture kWh/yr Savings (Actual)]]=\"\",ProjectInfoTable[[#This Row],[Control kWh/yr Savings (Actual)]]=\"\"),\"\",ROUND(IF(ProjectInfoTable[[#This Row],[Fixture kWh/yr Savings (Actual)]]=\"\",0,ProjectInfoTable[[#This Row],[Fixture kWh/yr Savings (Actual)]])+IF(ProjectInfoTable[[#This Row],[Control kWh/yr Savings (Actual)]]=\"\",0,ProjectInfoTable[[#This Row],[Control kWh/yr Savings (Actual)]])-IF(ProjectInfoTable[[#This Row],[Midstream Measure Name]]<>\"\",IFERROR(ProjectInfoTable[[#This Row],[kWh Per Unit (Midstream)]]*ProjectInfoTable[[#This Row],[Quantity]]*ProjectInfoTable[[#This Row],[No. of TRL Units]],0),0),0)))","v":""},{"$f":"IFERROR(IF(OR(ProjectInfoTable[[#This Row],[Measure Selection]]=\"\",ProjectInfoTable[[#This Row],[ControlsOnly]]=\"Re-Commissioning\"),0,IF(AND(ProjectInfoTable[[#This Row],[Incentives Per Unit]]=0,INDEX(StipulatedSavingsYesNo_Table[Stipulated Savings?],MATCH(ProjectState,StipulatedSavingsYesNo_Table[State],0))=\"No\"),0,IF(ISNUMBER(FIND(\"Controls Only\",ProjectInfoTable[[#This Row],[Proposed Equipment]],1)),0,ROUND((ProjectInfoTable[[#This Row],[Fixture kWh (Existing, Stipulated)]]-ProjectInfoTable[[#This Row],[Fixture kWh (Proposed)]])*IF(VALUE(SpaceTypesInfo_Table[[#Totals],[HVAC Effects]])=0,1,1+VALUE(SpaceTypesInfo_Table[[#Totals],[HVAC Effects]])),0)))),\"\")","v":""},{"$f":"IFERROR(IF(ProjectInfoTable[[#This Row],[Control kWh (Proposed)]]=\"Controls Only\",ROUND(IFERROR(INDEX(OperatingHours_List,MATCH(ProjectInfoTable[[#This Row],[OpSch]],OperatingSchedules_List,0))*IF(OR(ProjectType <> \"Retrofit\",ProjectInfoTable[[#This Row],[Space W (Proposed)]]>0),ProjectInfoTable[[#This Row],[Space W (Proposed)]],ProjectInfoTable[[#This Row],[Space W (Existing, Stipulated)]])/1000*(IFERROR(INDEX(ControlsLookup[],MATCH(RIGHT(ProjectInfoTable[[#This Row],[Proposed Equipment]],LEN(ProjectInfoTable[[#This Row],[Proposed Equipment]])-FIND(\"]\",ProjectInfoTable[[#This Row],[Proposed Equipment]],1)-3),ControlsLookup[Controls],0),MATCH(\"CSF_\"&ProjectState,ControlsLookup[#Headers],0)),0))*IF(VALUE(SpaceTypesInfo_Table[[#Totals],[HVAC Effects]])=0,1,1+VALUE(SpaceTypesInfo_Table[[#Totals],[HVAC Effects]])),\"\"),0),ROUND(IFERROR((ProjectInfoTable[[#This Row],[Control kWh (Existing, Stipulated)]]-ProjectInfoTable[[#This Row],[Control kWh (Proposed)]])*IF(VALUE(SpaceTypesInfo_Table[[#Totals],[HVAC Effects]])=0,1,1+VALUE(SpaceTypesInfo_Table[[#Totals],[HVAC Effects]])),INDEX(ControlsLookup[],MATCH(RIGHT(ProjectInfoTable[[#This Row],[Proposed Equipment]],LEN(ProjectInfoTable[[#This Row],[Proposed Equipment]])-FIND(\"-\",ProjectInfoTable[[#This Row],[Proposed Equipment]],LEN(ProjectInfoTable[[#This Row],[Proposed Equipment]])-15)-1),ControlsLookup[Controls],0),MATCH(\"CSF_\"&ProjectState,ControlsLookup[#Headers],0))*IF(NOT(ISNUMBER(VALUE(ProjectInfoTable[[#This Row],[kWh Per Unit]]))),ProjectInfoTable[[#This Row],[Fixture kWh/yr Savings (Stipulated)]],ProjectInfoTable[[#This Row],[kWh Per Unit]]*ProjectInfoTable[[#This Row],[Quantity]]*ProjectInfoTable[[#This Row],[No. of TRL Units]])),0)),IF(OR(ProjectType=\"New Construction\",ProjectType=\"Major Renovation\"),IF(ProjectInfoTable[[#This Row],[Control kWh (Proposed)]]=\"\",\"\",0),\"\"))","v":""},{"$f":"IF(OR(ProjectInfoTable[[#This Row],[Proposed Equipment]]=\"\",ProjectInfoTable[[#This Row],[Quantity (Proposed)]]=\"\"),\"\",IF(ProjectInfoTable[[#This Row],[Fixture Measure]]=\"\",0,IF(AND(ProjectInfoTable[[#This Row],[Incentives Per Unit]]=0,INDEX(StipulatedSavingsYesNo_Table[Stipulated Savings?],MATCH(ProjectState,StipulatedSavingsYesNo_Table[State],0))=\"No\"),0,ProjectInfoTable[[#This Row],[Total   kWh/yr Savings (Stipulated)]]-ProjectInfoTable[[#This Row],[Control Measure kWh/yr Savings (Stipulated)]])))","v":""},{"$f":"IF(OR(ProjectInfoTable[[#This Row],[Proposed Equipment]]=\"\",ProjectInfoTable[[#This Row],[Quantity (Proposed)]]=\"\"),\"\",IF(ProjectInfoTable[[#This Row],[Control Measure]]=\"\",0,IF(OR(ProjectType=\"New Construction\",ProjectType=\"Major Renovation\"),IFERROR(ROUND(ProjectInfoTable[[#This Row],[Control kWh Per Unit]]*ProjectInfoTable[[#This Row],[Control Quantity]]*ProjectInfoTable[[#This Row],[Control No. of TRL Units]],0),ProjectInfoTable[[#This Row],[Control kWh/yr Savings (Stipulated)]]),ProjectInfoTable[[#This Row],[Control kWh/yr Savings (Stipulated)]])))","v":""},{"$f":"IF(AND(ProjectInfoTable[[#This Row],[Incentives Per Unit]]=0,INDEX(StipulatedSavingsYesNo_Table[Stipulated Savings?],MATCH(ProjectState,StipulatedSavingsYesNo_Table[State],0))=\"No\"),ProjectInfoTable[[#This Row],[Fixture kWh/yr Savings (Stipulated)]]+IF(ProjectInfoTable[[#This Row],[Control Measure kWh/yr Savings (Stipulated)]]=0,0,ProjectInfoTable[[#This Row],[Control kWh/yr Savings (Stipulated)]]),IF(OR(ISNUMBER(VALUE(ProjectInfoTable[[#This Row],[kWh Per Unit]])),ISNUMBER(VALUE(ProjectInfoTable[[#This Row],[Control kWh Per Unit]]))),ROUND(IFERROR(ProjectInfoTable[[#This Row],[kWh Per Unit]]*ProjectInfoTable[[#This Row],[Quantity]]*ProjectInfoTable[[#This Row],[No. of TRL Units]],0)+IFERROR(ProjectInfoTable[[#This Row],[Control kWh Per Unit]]*ProjectInfoTable[[#This Row],[Control Quantity]]*ProjectInfoTable[[#This Row],[Control No. of TRL Units]],ProjectInfoTable[[#This Row],[Control kWh/yr Savings (Stipulated)]]),0),IF(AND(ProjectInfoTable[[#This Row],[Fixture kWh/yr Savings (Stipulated)]]=\"\",ProjectInfoTable[[#This Row],[Control kWh/yr Savings (Stipulated)]]=\"\"),\"\",ROUND(IF(ProjectInfoTable[[#This Row],[Fixture kWh/yr Savings (Stipulated)]]=\"\",0,ProjectInfoTable[[#This Row],[Fixture kWh/yr Savings (Stipulated)]])+IF(ProjectInfoTable[[#This Row],[Control kWh/yr Savings (Stipulated)]]=\"\",0,ProjectInfoTable[[#This Row],[Control kWh/yr Savings (Stipulated)]])-IF(ProjectInfoTable[[#This Row],[Midstream Measure Name]]<>\"\",IFERROR(ProjectInfoTable[[#This Row],[kWh Per Unit (Midstream)]]*ProjectInfoTable[[#This Row],[Quantity]]*ProjectInfoTable[[#This Row],[No. of TRL Units]],0),0),0))))","v":""},{"$f":"IF(OR(ISNUMBER(FIND(\"Midstream\",ProjectInfoTable[[#This Row],[Fixture Measure]])),ISNUMBER(FIND(\"SBDI\",ProjectInfoTable[[#This Row],[Fixture Measure]])),ISNUMBER(FIND(\"Small Bu\",ProjectInfoTable[[#This Row],[Fixture Measure]]))),\n\nIF(ProjectInfoTable[[#This Row],[Measure Selection]]=\"\",0,\n\nIF(ISNUMBER(FIND(\"/U]\",ProjectInfoTable[[#This Row],[Proposed Equipment]])),IFERROR(MID(ProjectInfoTable[[#This Row],[Proposed Equipment]],FIND(\"$\",ProjectInfoTable[[#This Row],[Proposed Equipment]],1)+1,FIND(\"/U]\",ProjectInfoTable[[#This Row],[Proposed Equipment]],1)-FIND(\"$\",ProjectInfoTable[[#This Row],[Proposed Equipment]],1)-1)*ProjectInfoTable[[#This Row],[Lamps (Proposed)]]*ProjectInfoTable[[#This Row],[Quantity (Proposed)]],0),\nIF(ISNUMBER(FIND(\"/U \",ProjectInfoTable[[#This Row],[Proposed Equipment]])),IFERROR(MID(ProjectInfoTable[[#This Row],[Proposed Equipment]],FIND(\"$\",ProjectInfoTable[[#This Row],[Proposed Equipment]],1)+1,FIND(\"/U \",ProjectInfoTable[[#This Row],[Proposed Equipment]],1)-FIND(\"$\",ProjectInfoTable[[#This Row],[Proposed Equipment]],1)-1)*ProjectInfoTable[[#This Row],[Lamps (Proposed)]]*ProjectInfoTable[[#This Row],[Quantity (Proposed)]],0),\nIFERROR(ProjectInfoTable[[#This Row],[Fixture Measure kWh/yr Savings (Stipulated)]]/SUM(ProjectInfoTable[Total   kWh/yr Savings (Stipulated)])*ProjectCost_Total,\"\")))),\"\")","v":""},{"$f":"IFERROR(IF(ProjectInfoTable[[#This Row],[Fixture Measure kWh/yr Savings (Stipulated)]]=0,0,IF(ProjectType=\"Retrofit\",IF(OR(ISNUMBER(FIND(\"Midstream\",ProjectInfoTable[[#This Row],[Fixture Measure]])),ISNUMBER(FIND(\"SBDI\",ProjectInfoTable[[#This Row],[Fixture Measure]])),ISNUMBER(FIND(\"Small Bu\",ProjectInfoTable[[#This Row],[Fixture Measure]]))),ProjectInfoTable[[#This Row],[Measure Cost (Direct)]],IFERROR(ProjectInfoTable[[#This Row],[Fixture Measure kWh/yr Savings (Stipulated)]]/kWhSavings_Typical_Stipulated*(ProjectCost_Total-SUM(ProjectInfoTable[Measure Cost (Direct)])),\"\")),IF(ProjectInfoTable[[#This Row],[Proposed Equipment]]=\"\",\"\",IFERROR(SpaceTypesInfo_Table[[#Totals],[NCMR Int Cost]]*ProjectInfoTable[[#This Row],[Fixture Measure kWh/yr Savings (Stipulated)]]/SUMIFS(ProjectInfoTable[Total   kWh/yr Savings (Stipulated)],ProjectInfoTable[Proposed Equipment],\"*Interior*\"),0)))),\"\")","v":""},{"$f":"IFERROR(\n IF(\n  ProjectInfoTable[[#This Row],[Control Measure kWh/yr Savings (Stipulated)]]=0,\n  0,\n  IF(\n   ProjectType=\"Retrofit\",\n    IFERROR(\n     ProjectInfoTable[[#This Row],[Control Measure kWh/yr Savings (Stipulated)]]\n     /\n     SUMIFS(ProjectInfoTable[Control Measure kWh/yr Savings (Stipulated)],ProjectInfoTable[Control Measure],\"<>\"\"\")\n     *\n     (ProjectCost_Total-SUM(ProjectInfoTable[Fixture Cost (Allocated)])),\n     \"\"\n    ),\nROUND(\n    IF(\n     ProjectInfoTable[[#This Row],[Proposed Equipment]]=\"\",\n     \"\",\n     IFERROR(\n      SpaceTypesInfo_Table[[#Totals],[NCMR Int Cost]]\n      *\n      ProjectInfoTable[[#This Row],[Control Measure kWh/yr Savings (Stipulated)]]\n      /\n      SUMIFS(ProjectInfoTable[Total   kWh/yr Savings (Stipulated)],ProjectInfoTable[Proposed Equipment],\"*Interior*\"),\n      0\n     )\n    ),\n    2\n   )\n  )\n ),\n \"\"\n)","v":""},{"$f":"IF(AND(ProjectInfoTable[[#This Row],[Fixture Cost (Allocated)]]=\"\",ProjectInfoTable[[#This Row],[Control Cost (Allocated)]]=\"\"),\"\",SUM(ProjectInfoTable[[#This Row],[Fixture Cost (Allocated)]:[Control Cost (Allocated)]]))","v":""},{"$f":"IFERROR(IF(OR(ProjectInfoTable[[#This Row],[Proposed Equipment]]=\"\",ProjectInfoTable[[#This Row],[Quantity (Proposed)]]=\"\"),\"\",IF(OR(ProjectInfoTable[[#This Row],[Measure Selection]]=\"\",ProjectInfoTable[[#This Row],[Control kWh (Proposed)]]=\"Controls Only\"),0,IF(NOT(ISNUMBER(FIND(\"Retrofit\",ProjectType,1))),ProjectInfoTable[[#This Row],[Fixture Energy Cost Savings (Stipulated)]],IF(AND(ProjectInfoTable[[#This Row],[Fixture Measure]]=\"\",ProjectInfoTable[[#This Row],[Control Measure]]<>\"\"),0,ROUND((ProjectInfoTable[[#This Row],[Total Energy Costs (Existing, Actual)]]-ProjectInfoTable[[#This Row],[Total Energy Costs (Proposed)]]),2))))),\"\")","v":""},{"$f":"IFERROR(IF(OR(ProjectInfoTable[[#This Row],[Proposed Equipment]]=\"\",ProjectInfoTable[[#This Row],[Quantity (Proposed)]]=\"\"),\"\",\n\nIF(ProjectInfoTable[[#This Row],[Control kWh (Proposed)]]=\"Controls Only\",ProjectInfoTable[[#This Row],[Control Measure kWh/yr Savings (Actual)]]*INDEX(INDIRECT(\"RateSchedules_\"&ProjectState&\"_Table[kWh Rate]\"),\nMATCH(RateSchedule,INDIRECT(\"RateSchedules_\"&ProjectState&\"_Table[Rate Schedule]\"),0)),\n\nIF(NOT(ISNUMBER(FIND(\"Retrofit\",ProjectType,1))),ProjectInfoTable[[#This Row],[Control Energy Cost Savings (Stipulated)]],IF(AND(ProjectInfoTable[[#This Row],[Fixture Measure]]=\"\",ProjectInfoTable[[#This Row],[Control Measure]]<>\"\"),ROUND((ProjectInfoTable[[#This Row],[Total Energy Costs (Existing, Actual)]]-ProjectInfoTable[[#This Row],[Total Energy Costs (Proposed)]]),2),ROUND((ProjectInfoTable[[#This Row],[Total Energy Costs (Existing, Actual)]]-ProjectInfoTable[[#This Row],[Total Energy Costs (Proposed)]]),2)*(ProjectInfoTable[[#This Row],[Control Measure kWh/yr Savings (Actual)]]/ProjectInfoTable[[#This Row],[Total   kWh/yr Savings (Actual)]]))))),\"\")","v":""},{"$f":"IF(OR(ProjectInfoTable[[#This Row],[Proposed Equipment]]=\"\",ProjectInfoTable[[#This Row],[Quantity (Proposed)]]=\"\"),\"\",ROUND(ProjectInfoTable[[#This Row],[Fixture Energy Cost Savings (Actual)]]+ProjectInfoTable[[#This Row],[Control Energy Cost Savings (Actual)]],2))","v":""},{"$f":"IF(OR(ProjectInfoTable[[#This Row],[Proposed Equipment]]=\"\",ProjectInfoTable[[#This Row],[Quantity (Proposed)]]=\"\"),\"\",IF(OR(ISNUMBER(VALUE(ProjectInfoTable[[#This Row],[kWh Per Unit]])),ISNUMBER(VALUE(ProjectInfoTable[[#This Row],[kW Per Unit]]))),IFERROR(ProjectInfoTable[[#This Row],[Fixture Measure kWh/yr Savings (Stipulated)]]*INDEX(INDIRECT(\"RateSchedules_\"&ProjectState&\"_Table[kWh Rate]\"),MATCH(RateSchedule,INDIRECT(\"RateSchedules_\"&ProjectState&\"_Table[Rate Schedule]\"),0)),0)+IFERROR(ProjectInfoTable[[#This Row],[kW Demand Reduction (Stipulated)]]/1000*12*INDEX(INDIRECT(\"RateSchedules_\"&ProjectState&\"_Table[kW Rate]\"),MATCH(RateSchedule,INDIRECT(\"RateSchedules_\"&ProjectState&\"_Table[Rate Schedule]\"),0)),0),IFERROR(ROUND((ProjectInfoTable[[#This Row],[Total Energy Costs (Existing, Stipulated)]]-ProjectInfoTable[[#This Row],[Total Energy Costs (Proposed)]])*ProjectInfoTable[[#This Row],[Fixture Measure kWh/yr Savings (Stipulated)]]/ProjectInfoTable[[#This Row],[Total   kWh/yr Savings (Stipulated)]],2),0)))","v":""},{"$f":"IF(OR(ProjectInfoTable[[#This Row],[Proposed Equipment]]=\"\",ProjectInfoTable[[#This Row],[Quantity (Proposed)]]=\"\"),\"\",\nIF(ProjectInfoTable[[#This Row],[Control kWh (Proposed)]]=\"Controls Only\",ProjectInfoTable[[#This Row],[Control Measure kWh/yr Savings (Stipulated)]]*INDEX(INDIRECT(\"RateSchedules_\"&ProjectState&\"_Table[kWh Rate]\"),\nMATCH(RateSchedule,INDIRECT(\"RateSchedules_\"&ProjectState&\"_Table[Rate Schedule]\"),0)),IF(OR(ISNUMBER(VALUE(ProjectInfoTable[[#This Row],[Control kWh Per Unit]])),\nISNUMBER(VALUE(ProjectInfoTable[[#This Row],[Control kW Per Unit]]))),IFERROR(ProjectInfoTable[[#This Row],[Control Measure kWh/yr Savings (Stipulated)]]*INDEX(INDIRECT(\"RateSchedules_\"&ProjectState&\"_Table[kWh Rate]\"),\nMATCH(RateSchedule,INDIRECT(\"RateSchedules_\"&ProjectState&\"_Table[Rate Schedule]\"),0)),0)+IFERROR(ProjectInfoTable[[#This Row],[kW Demand Reduction (Stipulated)]]/1000*12*\nINDEX(INDIRECT(\"RateSchedules_\"&ProjectState&\"_Table[kW Rate]\"),MATCH(RateSchedule,INDIRECT(\"RateSchedules_\"&ProjectState&\"_Table[Rate Schedule]\"),0)),0),\nIFERROR(ROUND((ProjectInfoTable[[#This Row],[Total Energy Costs (Existing, Stipulated)]]-ProjectInfoTable[[#This Row],[Total Energy Costs (Proposed)]])*ProjectInfoTable[[#This Row],[Control Measure kWh/yr Savings (Stipulated)]]/\nProjectInfoTable[[#This Row],[Total   kWh/yr Savings (Stipulated)]],2),0))))","v":""},{"$f":"IF(OR(ProjectInfoTable[[#This Row],[Proposed Equipment]]=\"\",ProjectInfoTable[[#This Row],[Quantity (Proposed)]]=\"\"),\"\",ROUND(ProjectInfoTable[[#This Row],[Fixture Energy Cost Savings (Stipulated)]]+ProjectInfoTable[[#This Row],[Control Energy Cost Savings (Stipulated)]],2))","v":""},{"$f":"IF(ProjectInfoTable[[#This Row],[OpSch]]=\"\",\"\",IF(OR(ProjectInfoTable[[#This Row],[Fixture Measure]]=\"\",ProjectInfoTable[[#This Row],[Eligible Fixture Measure]]<>TRUE),0,ProjectInfoTable[[#This Row],[Fixture Incentives (pre-capping)]])+IF(OR(ProjectInfoTable[[#This Row],[Control Measure]]=\"\",ProjectInfoTable[[#This Row],[Eligible Control Measure]]<>TRUE),0,ProjectInfoTable[[#This Row],[Control Incentives (pre-capping)]]))","v":""},{"$f":"IF(OR(ProjectInfoTable[[#This Row],[Fixture Measure]]<>\"\",ProjectInfoTable[[#This Row],[Control Measure]]<>\"\"),IF(ProjectInfoTable[[#This Row],[Fixture Incentives]]=\"\",0,ProjectInfoTable[[#This Row],[Fixture Incentives]])+IF(ProjectInfoTable[[#This Row],[Control Incentives]]=\"\",0,ProjectInfoTable[[#This Row],[Control Incentives]]),\"\")","v":""},null,{"$f":"IF(OR(ProjectInfoTable[[#This Row],[Fixture Measure]]=\"\",ProjectInfoTable[[#This Row],[OpSch]]=\"\",ProjectInfoTable[[#This Row],[Eligible Fixture Measure]]<>TRUE),\"\",\nIF(OR(ISNUMBER(FIND(\"SBDI\",ProjectInfoTable[[#This Row],[Fixture Measure]])),ISNUMBER(FIND(\"Small Bu\",ProjectInfoTable[[#This Row],[Fixture Measure]]))),IFERROR(0.75*ProjectInfoTable[[#This Row],[Fixture Cost (Allocated)]],\"cost error\"),\nIF(AND(OR(ProjectType=\"New Construction\",ProjectType=\"Major Renovation\"),LPDCodeToProposed<0.1,ISNUMBER(FIND(\"Interior\",ProjectInfoTable[[#This Row],[Proposed Equipment]],1))),0,IFERROR(ProjectInfoTable[[#This Row],[Incentives Per Unit]]*ProjectInfoTable[[#This Row],[Quantity]]*ProjectInfoTable[[#This Row],[No. of TRL Units]],\"TRL Error\"))))","v":""},{"$f":"IF(\n    OR(\n        ProjectInfoTable[[#This Row],[Fixture Measure]] = \"\",\n        ProjectInfoTable[[#This Row],[OpSch]] = \"\",\n        ProjectInfoTable[[#This Row],[Eligible Fixture Measure]] <> TRUE\n    ),\n    \"\",\n    IF(\n        OR(\n            ISNUMBER(FIND(\"SBDI\", ProjectInfoTable[[#This Row],[Fixture Measure]])),\n            ISNUMBER(FIND(\"Small Bu\", ProjectInfoTable[[#This Row],[Fixture Measure]]))\n        ),\n        IFERROR(\n            (Incentive_NonTypical / Incentive_NonTypical_PreCapped) * ProjectInfoTable[[#This Row],[Fixture Incentives (pre-capping)]],\n            \"\"\n        ),\n        IF(\n            AND(\n                ProjectType = \"Retrofit\",\n                ProjectState = \"UT\",\n                ISNUMBER(FIND(\"Post-Purchase\", ProjectInfoTable[[#This Row],[Fixture Measure]], 1))\n            ),\n            IFERROR(\n                MAX(\n                    MIN(\n                        ProjectInfoTable[[#This Row],[Fixture Incentives (pre-capping)]],\n                        ProjectInfoTable[[#This Row],[Fixture Cost (Allocated)]] * 0.7\n                    ),\n                    0\n                ),\n                0\n            ),\n            IF(\n                ProjectType = \"Retrofit\",\n                IF(\n                    ISNUMBER(FIND(\"Post-Purchase\", ProjectInfoTable[[#This Row],[Fixture Measure]], 1)),\n                    ProjectInfoTable[[#This Row],[Fixture Incentives (pre-capping)]],\n                    IFERROR(\n                        $BI$3 / $BH$3 * ProjectInfoTable[[#This Row],[Fixture Incentives (pre-capping)]],\n                        \"\"\n                    )\n                ),\n                IF(\n                    ISNUMBER(FIND(\"Interior\", ProjectInfoTable[[#This Row],[Proposed Equipment]], 1)),\n                    IF(\n                        LPDCodeToProposed > 0.1,\n                        ProjectInfoTable[[#This Row],[Fixture Incentives (pre-capping)]],\n                        0\n                    ),\n                    ProjectInfoTable[[#This Row],[Fixture Incentives (pre-capping)]]\n                )\n            )\n        )\n    )\n)","v":""},{"$f":"IF(OR(ProjectInfoTable[[#This Row],[Incentives Per Unit]]=\"\",ProjectInfoTable[[#This Row],[TRL Unit]]=\"\"),\"\",IF(ProjectInfoTable[[#This Row],[Eligible Fixture Measure]]<>TRUE,\"Invalid Effective Date\",\nIF(OR(ISNUMBER(FIND(\"SBDI\",ProjectInfoTable[[#This Row],[Fixture Measure]])),ISNUMBER(FIND(\"Small Bu\",ProjectInfoTable[[#This Row],[Fixture Measure]]))),\"$0.75 / dollar cost\",\nTEXT(ProjectInfoTable[[#This Row],[Incentives Per Unit]],\"$#,##0.00\")&\" / \"&IF(ProjectInfoTable[[#This Row],[Fixture Measure]]=\"\",\"\",IF(ProjectInfoTable[[#This Row],[TRL Unit]]=\"Measure\",IF(ISNUMBER(FIND(\"Relamp\",ProjectInfoTable[[#This Row],[Proposed Equipment]],1)),\"Lamp\",\"Fixture\"),ProjectInfoTable[[#This Row],[TRL Unit]])))))","v":""},{"$f":"IF(OR(ProjectInfoTable[[#This Row],[Proposed Equipment]]=\"\",ProjectInfoTable[[#This Row],[Quantity (Proposed)]]=\"\"),\"\",IFERROR(SUBSTITUTE(IF(ProjectType=\"Retrofit\",IF(OR(ISNUMBER(FIND(\"Controls On\",ProjectInfoTable[[#This Row],[Proposed Equipment]],1))),\"\",IF(OR(ProjectInfoTable[[#This Row],[Existing Equipment]]=\"\",ProjectInfoTable[[#This Row],[Proposed Equipment]]=\"\"),\"\",IF(ProjectState=\"UT\",IFERROR(IF(AlternativeEnergyOverride=\"Yes\",IFERROR(INDEX(INDIRECT(\"EquipmentTable_\"&\"Retrofit_\"&ProjectState&\"[#All]\"),MATCH(LEFT(ProjectInfoTable[[#This Row],[Proposed Equipment]],FIND(\"[\",ProjectInfoTable[[#This Row],[Proposed Equipment]],1)-2)&\" (Alt)\",INDIRECT(\"EquipmentTable_\"&\"Retrofit_\"&ProjectState&\"[equipmentProposed]\"),0)+1,MATCH(\"measureRetrofit_\"&LEFT(ProjectInfoTable[[#This Row],[Existing Equipment]],FIND(\":\",ProjectInfoTable[[#This Row],[Existing Equipment]],1)-1)&\"_\"&IF(IFERROR(INDEX(ControlsLookup[Rank],MATCH(RIGHT(ProjectInfoTable[[#This Row],[Proposed Equipment]],LEN(ProjectInfoTable[[#This Row],[Proposed Equipment]])-FIND(\"]\",ProjectInfoTable[[#This Row],[Proposed Equipment]],1)-3),ControlsLookup[Controls],0)),0)>IFERROR(INDEX(ControlsLookup[Rank],MATCH(RIGHT(ProjectInfoTable[[#This Row],[Existing Equipment]],LEN(ProjectInfoTable[[#This Row],[Existing Equipment]])-FIND(\"]\",ProjectInfoTable[[#This Row],[Existing Equipment]],1)-3),ControlsLookup[Controls],0)),0),INDEX(ControlsLookup[Controls Type],MATCH(LEFT(ProjectInfoTable[[#This Row],[Existing Equipment]],FIND(\":\",ProjectInfoTable[[#This Row],[Existing Equipment]],1)-1)&\"_\"&RIGHT(ProjectInfoTable[[#This Row],[Proposed Equipment]],LEN(ProjectInfoTable[[#This Row],[Proposed Equipment]])-FIND(\"]\",ProjectInfoTable[[#This Row],[Proposed Equipment]],1)-3),ControlsLookup[Controls Concatenate],0)),\"None\"),INDIRECT(\"EquipmentTable_\"&\"Retrofit_\"&ProjectState&\"[#Headers]\"),0)),INDEX(INDIRECT(\"EquipmentTable_\"&IF(ProjectType=\"Retrofit\",\"Retrofit_\",\"NCMR_\")&ProjectState&\"[#All]\"),MATCH(LEFT(ProjectInfoTable[[#This Row],[Proposed Equipment]],FIND(\"[\",ProjectInfoTable[[#This Row],[Proposed Equipment]],1)-2),INDIRECT(\"EquipmentTable_\"&\"Retrofit_\"&ProjectState&\"[equipmentProposed]\"),0)+1,MATCH(\"measureRetrofit_\"&LEFT(ProjectInfoTable[[#This Row],[Existing Equipment]],FIND(\":\",ProjectInfoTable[[#This Row],[Existing Equipment]],1)-1)&\"_\"&IF(IFERROR(INDEX(ControlsLookup[Rank],MATCH(RIGHT(ProjectInfoTable[[#This Row],[Proposed Equipment]],LEN(ProjectInfoTable[[#This Row],[Proposed Equipment]])-FIND(\"]\",ProjectInfoTable[[#This Row],[Proposed Equipment]],1)-3),ControlsLookup[Controls],0)),0)>IFERROR(INDEX(ControlsLookup[Rank],MATCH(RIGHT(ProjectInfoTable[[#This Row],[Existing Equipment]],LEN(ProjectInfoTable[[#This Row],[Existing Equipment]])-FIND(\"]\",ProjectInfoTable[[#This Row],[Existing Equipment]],1)-3),ControlsLookup[Controls],0)),0),INDEX(ControlsLookup[Controls Type],MATCH(LEFT(ProjectInfoTable[[#This Row],[Existing Equipment]],FIND(\":\",ProjectInfoTable[[#This Row],[Existing Equipment]],1)-1)&\"_\"&RIGHT(ProjectInfoTable[[#This Row],[Proposed Equipment]],LEN(ProjectInfoTable[[#This Row],[Proposed Equipment]])-FIND(\"]\",ProjectInfoTable[[#This Row],[Proposed Equipment]],1)-3),ControlsLookup[Controls Concatenate],0)),\"None\"),INDIRECT(\"EquipmentTable_\"&IF(ProjectType=\"Retrofit\",\"Retrofit_\",\"NCMR_\")&ProjectState&\"[#Headers]\"),0))),INDEX(INDIRECT(\"EquipmentTable_\"&IF(ProjectType=\"Retrofit\",\"Retrofit_\",\"NCMR_\")&ProjectState&\"[#All]\"),MATCH(LEFT(ProjectInfoTable[[#This Row],[Proposed Equipment]],FIND(\"[\",ProjectInfoTable[[#This Row],[Proposed Equipment]],1)-2),INDIRECT(\"EquipmentTable_\"&IF(ProjectType=\"Retrofit\",\"Retrofit_\",\"NCMR_\")&ProjectState&\"[equipmentProposed]\"),0)+1,MATCH(\"measureRetrofit_\"&IF(AND(SBDEligible=\"Yes\",ISNUMBER(FIND(\"SBE\",ProjectInfoTable[[#This Row],[Proposed Equipment]]))),\"SBE\",LEFT(ProjectInfoTable[[#This Row],[Existing Equipment]],FIND(\":\",ProjectInfoTable[[#This Row],[Existing Equipment]],1)-1)&\"_\"&IF(IFERROR(INDEX(ControlsLookup[Rank],MATCH(RIGHT(ProjectInfoTable[[#This Row],[Proposed Equipment]],LEN(ProjectInfoTable[[#This Row],[Proposed Equipment]])-FIND(\"]\",ProjectInfoTable[[#This Row],[Proposed Equipment]],1)-3),ControlsLookup[Controls],0)),0)>IFERROR(INDEX(ControlsLookup[Rank],MATCH(RIGHT(ProjectInfoTable[[#This Row],[Existing Equipment]],LEN(ProjectInfoTable[[#This Row],[Existing Equipment]])-FIND(\"]\",ProjectInfoTable[[#This Row],[Existing Equipment]],1)-3),ControlsLookup[Controls],0)),0),INDEX(ControlsLookup[Controls Type],MATCH(LEFT(ProjectInfoTable[[#This Row],[Existing Equipment]],FIND(\":\",ProjectInfoTable[[#This Row],[Existing Equipment]],1)-1)&\"_\"&RIGHT(ProjectInfoTable[[#This Row],[Proposed Equipment]],LEN(ProjectInfoTable[[#This Row],[Proposed Equipment]])-FIND(\"]\",ProjectInfoTable[[#This Row],[Proposed Equipment]],1)-3),ControlsLookup[Controls Concatenate],0)),\"None\")),INDIRECT(\"EquipmentTable_\"&\"Retrofit_\"&ProjectState&\"[#Headers]\"),0))),\"Non-eligible fixture - Retrofit - \"&ProjectState),IFERROR(INDEX(INDIRECT(\"EquipmentTable_\"&IF(SiteSpecificOverride=\"Yes\",\"PostPurchase_\",\"Retrofit_\")&ProjectState&\"[#All]\"),MATCH(LEFT(ProjectInfoTable[[#This Row],[Proposed Equipment]],FIND(\"[\",ProjectInfoTable[[#This Row],[Proposed Equipment]],1)-2),INDIRECT(\"EquipmentTable_\"&IF(SiteSpecificOverride=\"Yes\",\"PostPurchase_\",\"Retrofit_\")&ProjectState&\"[equipmentProposed]\"),0)+1,MATCH(\"measureRetrofit_\"&IF(AND(SBDEligible=\"Yes\",ISNUMBER(FIND(\"SBE\",ProjectInfoTable[[#This Row],[Proposed Equipment]]))),\"SBE\",LEFT(ProjectInfoTable[[#This Row],[Existing Equipment]],FIND(\":\",ProjectInfoTable[[#This Row],[Existing Equipment]],1)-1)&\"_\"&IF(IFERROR(INDEX(ControlsLookup[Rank],MATCH(RIGHT(ProjectInfoTable[[#This Row],[Proposed Equipment]],LEN(ProjectInfoTable[[#This Row],[Proposed Equipment]])-FIND(\"]\",ProjectInfoTable[[#This Row],[Proposed Equipment]],1)-3),ControlsLookup[Controls],0)),0)>IFERROR(INDEX(ControlsLookup[Rank],MATCH(RIGHT(ProjectInfoTable[[#This Row],[Existing Equipment]],LEN(ProjectInfoTable[[#This Row],[Existing Equipment]])-FIND(\"]\",ProjectInfoTable[[#This Row],[Existing Equipment]],1)-3),ControlsLookup[Controls],0)),0),INDEX(ControlsLookup[Controls Type],MATCH(LEFT(ProjectInfoTable[[#This Row],[Existing Equipment]],FIND(\":\",ProjectInfoTable[[#This Row],[Existing Equipment]],1)-1)&\"_\"&RIGHT(ProjectInfoTable[[#This Row],[Proposed Equipment]],LEN(ProjectInfoTable[[#This Row],[Proposed Equipment]])-FIND(\"]\",ProjectInfoTable[[#This Row],[Proposed Equipment]],1)-3),ControlsLookup[Controls Concatenate],0)),\"None\")),INDIRECT(\"EquipmentTable_\"&IF(SiteSpecificOverride=\"Yes\",\"PostPurchase_\",\"Retrofit_\")&ProjectState&\"[#Headers]\"),0)),\"Non-eligible fixture - Retrofit - \"&ProjectState)))),IFERROR(INDEX(INDIRECT(\"EquipmentTable_\"&\"NCMR_\"&ProjectState),MATCH(RIGHT(LEFT(ProjectInfoTable[[#This Row],[Proposed Equipment]],FIND(\" (\",ProjectInfoTable[[#This Row],[Proposed Equipment]],1)-1),LEN(LEFT(ProjectInfoTable[[#This Row],[Proposed Equipment]],FIND(\" (\",ProjectInfoTable[[#This Row],[Proposed Equipment]],1)-2))-FIND(\":\",ProjectInfoTable[[#This Row],[Proposed Equipment]],1)),INDIRECT(\"EquipmentTable_\"&\"NCMR_\"&ProjectState&\"[equipmentProposed]\"),0),MATCH(\"measureNCMR_\"&LEFT(ProjectInfoTable[[#This Row],[Proposed Equipment]],FIND(\":\",ProjectInfoTable[[#This Row],[Proposed Equipment]],1)-1)&\"_\"&IF(LEN(ProjectInfoTable[[#This Row],[Proposed Equipment]])>FIND(\"]\",ProjectInfoTable[[#This Row],[Proposed Equipment]]),INDEX(ControlsLookup[Controls Type],MATCH(LEFT(ProjectInfoTable[[#This Row],[Proposed Equipment]],FIND(\":\",ProjectInfoTable[[#This Row],[Proposed Equipment]],1)-1)&\"_\"&RIGHT(ProjectInfoTable[[#This Row],[Proposed Equipment]],LEN(ProjectInfoTable[[#This Row],[Proposed Equipment]])-FIND(\"]\",ProjectInfoTable[[#This Row],[Proposed Equipment]],1)-3),ControlsLookup[Controls Concatenate],0)),\"None\"),INDIRECT(\"EquipmentTable_\"&\"NCMR_\"&ProjectState&\"[#Headers]\"),0)),\"Non-eligible fixture - NCMR - \"&ProjectState)),\"[NAMESUB]\",ProjectInfoTable[[#This Row],[Measure Name Sub]]),\"Non-eligible fixture - Retrofit - \"&ProjectState))","v":""},{"$f":"IF(ISNUMBER(SEARCH(\"Case\",ProjectInfoTable[[#This Row],[Fixture Measure]])),CONCATENATE(ProjectInfoTable[[#This Row],[Fixture Measure]],ProjectInfoTable[[#This Row],[No. of TRL Units]],ProjectInfoTable[[#This Row],[Quantity]]),\"\")","v":""},{"$f":"IF(ProjectInfoTable[[#This Row],[Proposed Equipment]]=\"\",\"\",\nIF(AND(ProjectState = \"UT\",ISNUMBER(FIND(\" TLED \",ProjectInfoTable[[#This Row],[Proposed Equipment]]))),\nIF(VALUE(ProjectInfoTable[[#This Row],[Lamp W (Proposed)]])<20,\"< 20 W\",\nIF(AND(VALUE(ProjectInfoTable[[#This Row],[Lamp W (Proposed)]])<=39,VALUE(ProjectInfoTable[[#This Row],[Lamp W (Proposed)]])>=20),\">= 20 W and <= 39 W\",)),\n\nIF(AND(ProjectType=\"Retrofit\",OR(ISNUMBER(FIND(\"Retrofit Kit\",ProjectInfoTable[[#This Row],[Proposed Equipment]])),ISNUMBER(FIND(\"Fixture\",ProjectInfoTable[[#This Row],[Proposed Equipment]]))),OR(ISNUMBER(FIND(\"Exterior\",ProjectInfoTable[[#This Row],[Existing Equipment]])),ISNUMBER(FIND(\"Street\",ProjectInfoTable[[#This Row],[Existing Equipment]])))),\nIF(ProjectInfoTable[[#This Row],[Fixture W (Proposed)]]<50,\"< 50 W\",\nIF(AND(ProjectInfoTable[[#This Row],[Fixture W (Proposed)]]<90,ProjectInfoTable[[#This Row],[Fixture W (Proposed)]]>=50),\">= 50 W and < 90 W\",\nIF(AND(ProjectInfoTable[[#This Row],[Fixture W (Proposed)]]<135,ProjectInfoTable[[#This Row],[Fixture W (Proposed)]]>=90),\">= 90 W and < 135 W\",\nIF(AND(ProjectInfoTable[[#This Row],[Fixture W (Proposed)]]<220,ProjectInfoTable[[#This Row],[Fixture W (Proposed)]]>=135),\">= 135 W and < 220 W\",\nIF(ProjectInfoTable[[#This Row],[Fixture W (Proposed)]]>=220,\">= 220 W\"))))),\"\")))","v":""},{"$f":"IFERROR(INDEX(INDIRECT(\"MeasureTable_\" & ProjectState & \"[Measure Reference Number]\"),MATCH(ProjectInfoTable[[#This Row],[Fixture Measure]],INDIRECT(\"MeasureTable_\" &ProjectState&\"[Measure Name]\"),0)),\"\")","v":""},{"$f":"IFERROR(\n    _xlfn.LET(\n        _xlpm.filteredVersions,\n            _xlfn._xlws.FILTER(\n                INDIRECT(\"MeasureTable_\" & ProjectState & \"[Version Number]\"),\n                (INDIRECT(\"MeasureTable_\" & ProjectState & \"[Measure Reference Number]\") = ProjectInfoTable[[#This Row],[Fixture Measure Reference Number]]) *\n                (INDIRECT(\"MeasureTable_\" & ProjectState & \"[Eligible Measure]\") = TRUE)\n            ),\n        INDEX(_xlpm.filteredVersions, 1)\n    ),\n    \"\"\n)","v":""},{"$f":"IFERROR(\n  _xlfn.LET(\n    _xlpm.refRange, INDIRECT(\"MeasureTable_\" & ProjectState & \"[Measure Reference Number]\"),\n    _xlpm.eligibleRange, INDIRECT(\"MeasureTable_\" & ProjectState & \"[Eligible Measure]\"),\n    _xlpm.countTrue, SUMPRODUCT(--(_xlpm.refRange = ProjectInfoTable[[#This Row],[Fixture Measure Reference Number]]), --(_xlpm.eligibleRange = TRUE)),\n    _xlpm.countNonBlank, SUMPRODUCT(--(_xlpm.refRange = ProjectInfoTable[[#This Row],[Fixture Measure Reference Number]]), --(_xlpm.eligibleRange <> \"\")),\n    IF(_xlpm.countNonBlank = 0, \"\", IF(_xlpm.countTrue >= 1, TRUE, FALSE))\n  ),\n  \"\"\n)","v":""},{"$f":"IFERROR(VALUE(INDEX(INDIRECT(\"MeasureTable_\" & ProjectState & \"[CustomerIncentiveDollarperunit]\"),MATCH(ProjectInfoTable[[#This Row],[Fixture Measure]]&\" | TRUE\",INDIRECT(\"MeasureTable_\" &ProjectState&\"[MeasureEligibleConcatenate]\"),0))),\"\")","v":""},{"$f":"IFERROR(INDEX(INDIRECT(\"MeasureTable_\"&ProjectState&\"[SiteSpecificCalculation]\"),MATCH(ProjectInfoTable[[#This Row],[Fixture Measure]]&\" | TRUE\",INDIRECT(\"MeasureTable_\" &ProjectState&\"[MeasureEligibleConcatenate]\"),0)),\"\")","v":""},{"$f":"IFERROR(INDEX(INDIRECT(\"MeasureTable_\"&ProjectState&\"[GrossIncrementalAnnualElectricSavings]\"),MATCH(ProjectInfoTable[[#This Row],[Fixture Measure]]&\" | TRUE\",INDIRECT(\"MeasureTable_\" &ProjectState&\"[MeasureEligibleConcatenate]\"),0)),\"\")","v":""},{"$f":"IFERROR(INDEX(INDIRECT(\"MeasureTable_\"&ProjectState&\"[GrossAverageMonthlyDemandReduction]\"),MATCH(ProjectInfoTable[[#This Row],[Fixture Measure]]&\" | TRUE\",INDIRECT(\"MeasureTable_\" &ProjectState&\"[MeasureEligibleConcatenate]\"),0)),\"\")","v":""},{"$f":"IF(ProjectInfoTable[[#This Row],[Fixture Measure]]=\"\",\"\",IF(NOT(ISNUMBER(FIND(\"Site-Specific - Downstream\",ProjectInfoTable[[#This Row],[Fixture Measure]]))),\"\",\nIF(ISNUMBER(MATCH(SUBSTITUTE(ProjectInfoTable[[#This Row],[Fixture Measure]],\"Site-Specific - Downstream - v2\",\"Mid Market\"),INDIRECT(\"MeasureTable_\"&ProjectState&\"[Measure Name]\"),0)),\nSUBSTITUTE(ProjectInfoTable[[#This Row],[Fixture Measure]],\"Site-Specific - Downstream - v2\",\"Mid Market\"),\nSUBSTITUTE(ProjectInfoTable[[#This Row],[Fixture Measure]],\"Site-Specific - Downstream\",\"Mid Market\"))\n))","v":""},{"$f":"IF(ProjectInfoTable[[#This Row],[Midstream Measure Name]]=\"\",\"\",IFERROR(INDEX(INDIRECT(\"MeasureTable_\"&ProjectState&\"[GrossIncrementalAnnualElectricSavings ]\"),MATCH(ProjectInfoTable[[#This Row],[Midstream Measure Name]]&\" | TRUE\",INDIRECT(\"MeasureTable_\" &ProjectState&\"[MeasureEligibleConcatenate]\"),0)),\"\"))","v":""},{"$f":"IF(ProjectInfoTable[[#This Row],[Midstream Measure Name]]=\"\",\"\",IFERROR(INDEX(INDIRECT(\"MeasureTable_\"&ProjectState&\"[GrossAverage onthly emand eduction]\"),MATCH(ProjectInfoTable[[#This Row],[Midstream Measure Name]]&\" | TRUE\",INDIRECT(\"MeasureTable_\" &ProjectState&\"[MeasureEligibleConcatenate]\"),0)),\"\"))","v":""},{"$f":"IFERROR(INDEX(INDIRECT(\"MeasureTable_\"&ProjectState&\"[IncrementalMeasureCost]\"),MATCH(ProjectInfoTable[[#This Row],[Fixture Measure]]&\" | TRUE\",INDIRECT(\"MeasureTable_\" &ProjectState&\"[MeasureEligibleConcatenate]\"),0)),\"\")","v":""},{"$f":"IF(ProjectInfoTable[[#This Row],[Fixture Measure]]=\"\",\"\",IF(AND(ProjectState=\"UT\",ProjectInfoTable[[#This Row],[Measure Selection]]=\"\"),0,\nIF(OR(ISNUMBER(FIND(\"SBDI\",ProjectInfoTable[[#This Row],[Fixture Measure]])),ISNUMBER(FIND(\"Small Bu\",ProjectInfoTable[[#This Row],[Fixture Measure]]))),ProjectInfoTable[[#This Row],[Quantity (Proposed)]]*ProjectInfoTable[[#This Row],[Lamps (Proposed)]],\nIF(OR(ProjectInfoTable[[#This Row],[TRL Unit]]=\"Measure\",ProjectInfoTable[[#This Row],[TRL Unit]]=\"Linear ft.\"),IF(OR(ISNUMBER(FIND(\"Lamp\",ProjectInfoTable[[#This Row],[Fixture Measure]],1)),ISNUMBER(FIND(\"Relamp\",ProjectInfoTable[[#This Row],[Fixture Measure]],1)),ISNUMBER(FIND(\"Relamp\",ProjectInfoTable[[#This Row],[Proposed Equipment]],1))),ProjectInfoTable[[#This Row],[Quantity (Proposed)]]*ProjectInfoTable[[#This Row],[Lamps (Proposed)]],ProjectInfoTable[[#This Row],[Quantity (Proposed)]]),1))))","v":""},{"$f":"IF(ProjectInfoTable[[#This Row],[Fixture Measure]]=\"\",\"\",IF(AND(ProjectState=\"UT\",ProjectInfoTable[[#This Row],[Measure Selection]]=\"\"),0,\nIF(OR(ISNUMBER(FIND(\"SBDI\",ProjectInfoTable[[#This Row],[Fixture Measure]])),ISNUMBER(FIND(\"Small Bu\",ProjectInfoTable[[#This Row],[Fixture Measure]]))),1,\nIF(ISNUMBER(FIND(\"Controls Only\",ProjectInfoTable[[#This Row],[Proposed Equipment]],1)),IF(OR(ProjectType <> \"Retrofit\",ProjectInfoTable[[#This Row],[Space W (Proposed)]]>0),ProjectInfoTable[[#This Row],[Space W (Proposed)]],ProjectInfoTable[[#This Row],[Space W (Existing, Stipulated)]]),\nIF(TRIM(UPPER(ProjectInfoTable[[#This Row],[TRL Unit]]))=\"LINEAR FT.\",IF(OR(ISNUMBER(FIND(\"Marquee\",ProjectInfoTable[[#This Row],[Proposed Equipment]],1)),ISNUMBER(FIND(\"Cabinet\",ProjectInfoTable[[#This Row],[Proposed Equipment]],1))),VALUE(RIGHT(LEFT(ProjectInfoTable[[#This Row],[Existing Equipment]],FIND(\"LF \",ProjectInfoTable[[#This Row],[Existing Equipment]],1)-1),LEN(LEFT(ProjectInfoTable[[#This Row],[Existing Equipment]],FIND(\"LF \",ProjectInfoTable[[#This Row],[Existing Equipment]],1)-1))-FIND(\"[\",ProjectInfoTable[[#This Row],[Existing Equipment]],1))),VALUE(RIGHT(LEFT(ProjectInfoTable[[#This Row],[Proposed Equipment]],FIND(\"LF \",ProjectInfoTable[[#This Row],[Proposed Equipment]],1)-1),LEN(LEFT(ProjectInfoTable[[#This Row],[Proposed Equipment]],FIND(\"LF \",ProjectInfoTable[[#This Row],[Proposed Equipment]],1)-1))-FIND(\"[\",ProjectInfoTable[[#This Row],[Proposed Equipment]],1)))),\nIF(TRIM(UPPER(ProjectInfoTable[[#This Row],[TRL Unit]]))=\"KWH\",IF(ProjectInfoTable[[#This Row],[Fixture Measure kWh/yr Savings (Stipulated)]]=0,0,ROUND(ProjectInfoTable[[#This Row],[Fixture Measure kWh/yr Savings (Stipulated)]],2)),\nIF(TRIM(UPPER(ProjectInfoTable[[#This Row],[TRL Unit]]))=\"WATT REDUCED\",IF(ProjectInfoTable[[#This Row],[Fixture Measure kWh/yr Savings (Stipulated)]]=0,0,ROUND(ProjectInfoTable[[#This Row],[Space W (Existing, Stipulated)]]-ProjectInfoTable[[#This Row],[Space W (Proposed)]],2)),\nIF(TRIM(UPPER(ProjectInfoTable[[#This Row],[TRL Unit]]))=\"FIXTURE WATTAGE\",ProjectInfoTable[[#This Row],[Space W (Proposed)]],1))))))))","v":""},{"$f":"IFERROR(IF(OR(ISNUMBER(FIND(\"SBDI\",ProjectInfoTable[[#This Row],[Fixture Measure]])),ISNUMBER(FIND(\"Small Bu\",ProjectInfoTable[[#This Row],[Fixture Measure]]))),0,INDEX(INDIRECT(\"MeasureTable_\"&ProjectState&\"[Unit]\"),MATCH(ProjectInfoTable[[#This Row],[Fixture Measure]]&\" | TRUE\",INDIRECT(\"MeasureTable_\" &ProjectState&\"[MeasureEligibleConcatenate]\"),0))),\"\")","v":""},{"$f":"IF(ProjectInfoTable[[#This Row],[Fixture Measure]]=\"\",\"\",IF(OR(ISNUMBER(FIND(\"Lamp(s)\",ProjectInfoTable[[#This Row],[Fixture Measure]],1)),ISNUMBER(FIND(\"Relamp\",ProjectInfoTable[[#This Row],[Proposed Equipment]],1))),\"Lamp(s)\",\"Fixture(s)\"))","v":""},{"$f":"IFERROR(INDEX(INDIRECT(\"MeasureTable_\"&ProjectState&\"[ProjectCapPercent]\"),MATCH(ProjectInfoTable[[#This Row],[Fixture Measure]]&\" | TRUE\",INDIRECT(\"MeasureTable_\" &ProjectState&\"[MeasureEligibleConcatenate]\"),0)),\"\")","v":""},{"$f":"IF(OR(ProjectInfoTable[[#This Row],[Control Measure]]=\"\",ProjectInfoTable[[#This Row],[OpSch]]=\"\",ProjectInfoTable[[#This Row],[Eligible Control Measure]]<>TRUE),\"\",IF(AND(OR(ProjectType=\"New Construction\",ProjectType=\"Major Renovation\"),LPDCodeToProposed<0.1,ISNUMBER(FIND(\"Interior\",ProjectInfoTable[[#This Row],[Proposed Equipment]],1))),0,IFERROR(ProjectInfoTable[[#This Row],[Control Incentives Per Unit]]*ProjectInfoTable[[#This Row],[Control Quantity]]*ProjectInfoTable[[#This Row],[Control No. of TRL Units]],\"TRL Error\")))","v":""},{"$f":"IF(OR(ProjectInfoTable[[#This Row],[Control Measure]]=\"\",ProjectInfoTable[[#This Row],[OpSch]]=\"\",ProjectInfoTable[[#This Row],[Eligible Control Measure]]<>TRUE),\"\",IF(AND(ProjectType=\"Retrofit\",ProjectState=\"UT\",ISNUMBER(FIND(\"Post Purchase\",ProjectInfoTable[[#This Row],[Control Measure]],1))),\n\nIFERROR(MAX(MIN(ProjectInfoTable[[#This Row],[Control Incentives (pre-capping)]],ProjectInfoTable[[#This Row],[Control Cost (Allocated)]]*0.7),0),0),\n\nIF(ProjectType=\"Retrofit\",IF(ISNUMBER(FIND(\"Post Purchase\",ProjectInfoTable[[#This Row],[Control Measure]],1)),ProjectInfoTable[[#This Row],[Control Incentives (pre-capping)]],IFERROR($BI$3/$BH$3*ProjectInfoTable[[#This Row],[Control Incentives (pre-capping)]],\"\")),\n\nIF(ISNUMBER(FIND(\"Interior\",ProjectInfoTable[[#This Row],[Proposed Equipment]],1)),IF(LPDCodeToProposed>0.1,ProjectInfoTable[[#This Row],[Control Incentives (pre-capping)]],0),ProjectInfoTable[[#This Row],[Control Incentives (pre-capping)]]))))","v":""},{"$f":"IF(OR(ProjectInfoTable[[#This Row],[Control Incentives Per Unit]]=\"\",ProjectInfoTable[[#This Row],[Control TRL Unit]]=\"\"),\"\",IF(ProjectInfoTable[[#This Row],[Eligible Control Measure]]<>TRUE,\"Invalid Effective Date\",TEXT(ProjectInfoTable[[#This Row],[Control Incentives Per Unit]],\"$#,##0.00\")&\" / \"&ProjectInfoTable[[#This Row],[Control TRL Unit]]))","v":""},{"$f":"IF(ISNUMBER(FIND(\"SBE\",ProjectInfoTable[[#This Row],[Proposed Equipment]])),\"\",\n\nIF(LEN(ProjectInfoTable[[#This Row],[Proposed Equipment]])>\n\nIFERROR(FIND(\"]\",ProjectInfoTable[[#This Row],[Proposed Equipment]],1),0),\nSUBSTITUTE(\nIF(OR(ProjectInfoTable[[#This Row],[Control Method]]=\"separate\",ISNUMBER(FIND(\"Midstream\",ProjectInfoTable[[#This Row],[Fixture Measure]],1)),ISNUMBER(FIND(\"Midstream\",ProjectInfoTable[[#This Row],[Equipment Category]],1)),ISNUMBER(FIND(\"Prescriptive\",ProjectInfoTable[[#This Row],[Equipment Category]],1)),ISNUMBER(FIND(\"LED\",ProjectInfoTable[[#This Row],[Fixture Measure]],1)),ISNUMBER(FIND(\"LED Case\",ProjectInfoTable[[#This Row],[Fixture Measure]],1)),ISNUMBER(FIND(\"LED Decorative - Retrofit - WA\",ProjectInfoTable[[#This Row],[Fixture Measure]],1)),ISNUMBER(FIND(\"Lamp\",ProjectInfoTable[[#This Row],[Fixture Measure]],1)),ISNUMBER(FIND(\"Relamp\",ProjectInfoTable[[#This Row],[Fixture Measure]],1)),ISNUMBER(FIND(\"Wall Pack\",ProjectInfoTable[[#This Row],[Fixture Measure]],1)),ISNUMBER(FIND(\"Controls Only\",ProjectInfoTable[[#This Row],[Proposed Equipment]],1)),ISNUMBER(FIND(\"Re-Commissioning\",ProjectInfoTable[[#This Row],[Proposed Equipment]],1)),\n\nAND(OR(ISNUMBER(FIND(\"Exterior:\",ProjectInfoTable[[#This Row],[Proposed Equipment]],1)),ISNUMBER(FIND(\"Street:\",ProjectInfoTable[[#This Row],[Proposed Equipment]],1))),OR(ProjectState=\"ID\",ProjectState=\"UT\",ProjectState=\"WY\"))),\n\nIF(IFERROR(INDEX(ControlsLookup[],MATCH(IF(ProjectType=\"Retrofit\",LEFT(ProjectInfoTable[[#This Row],[Existing Equipment]],FIND(\":\",ProjectInfoTable[[#This Row],[Existing Equipment]],1)-1),LEFT(ProjectInfoTable[[#This Row],[Proposed Equipment]],FIND(\":\",ProjectInfoTable[[#This Row],[Proposed Equipment]],1)-1))&\"_\"&RIGHT(ProjectInfoTable[[#This Row],[Proposed Equipment]],LEN(ProjectInfoTable[[#This Row],[Proposed Equipment]])-FIND(\"]\",ProjectInfoTable[[#This Row],[Proposed Equipment]],1)-3),ControlsLookup[Controls Concatenate],0),MATCH(\n\nIF(ProjectType=\"Retrofit\",\"ControlMeasure_\",\"NCMRControlMeasure_\")&ProjectState,ControlsLookup[#Headers],0)),\"\")=0,\"\",\n\nIFERROR(INDEX(ControlsLookup[],MATCH(IF(ProjectType=\"Retrofit\",LEFT(ProjectInfoTable[[#This Row],[Existing Equipment]],FIND(\":\",ProjectInfoTable[[#This Row],[Existing Equipment]],1)-1),LEFT(ProjectInfoTable[[#This Row],[Proposed Equipment]],FIND(\":\",ProjectInfoTable[[#This Row],[Proposed Equipment]],1)-1))&\"_\"&RIGHT(ProjectInfoTable[[#This Row],[Proposed Equipment]],LEN(ProjectInfoTable[[#This Row],[Proposed Equipment]])-FIND(\"]\",ProjectInfoTable[[#This Row],[Proposed Equipment]],1)-3),ControlsLookup[Controls Concatenate],0),MATCH(\n\nIF(ProjectType=\"Retrofit\",\"ControlMeasure_\",\"NCMRControlMeasure_\")&ProjectState&IF(ProjectState=\"UT\",SegmentTag,\"\"),ControlsLookup[#Headers],0)),\"\")),\"\"),\"[NAMESUB]\",ProjectInfoTable[[#This Row],[Control Measure Name Sub]]),\"\"))","v":""},{"$f":"IF(ProjectInfoTable[[#This Row],[Proposed Equipment]]=\"\",\"\",IF(AND(ProjectState=\"UT\",ProjectType=\"Retrofit\",ISNUMBER(FIND(\"Re-Commissioning\",ProjectInfoTable[[#This Row],[Proposed Equipment]]))),\nIF(ProjectRecommissioning=\"only recommissioning\",\"Commissioning Only\",\"Commissioning w/ Lighting Upgrade\"),\"\"))","v":""},{"$f":"IFERROR(INDEX(INDIRECT(\"MeasureTable_\" & ProjectState & \"[Measure Reference Number]\"),MATCH(ProjectInfoTable[[#This Row],[Control Measure]],INDIRECT(\"MeasureTable_\" &ProjectState&\"[Measure Name]\"),0)),\"\")","v":""},{"$f":"IFERROR(\n    _xlfn.LET(\n        _xlpm.filteredVersions,\n            _xlfn._xlws.FILTER(\n                INDIRECT(\"MeasureTable_\" & ProjectState & \"[Version Number]\"),\n                (INDIRECT(\"MeasureTable_\" & ProjectState & \"[Measure Reference Number]\") = ProjectInfoTable[[#This Row],[Control Measure Reference Number]]) *\n                (INDIRECT(\"MeasureTable_\" & ProjectState & \"[Eligible Measure]\") = TRUE)\n            ),\n        INDEX(_xlpm.filteredVersions, 1)\n    ),\n    \"\"\n)","v":""},{"$f":"IFERROR(\n  _xlfn.LET(\n    _xlpm.refRange, INDIRECT(\"MeasureTable_\" & ProjectState & \"[Measure Reference Number]\"),\n    _xlpm.eligibleRange, INDIRECT(\"MeasureTable_\" & ProjectState & \"[Eligible Measure]\"),\n    _xlpm.countTrue, SUMPRODUCT(--(_xlpm.refRange = ProjectInfoTable[[#This Row],[Control Measure Reference Number]]), --(_xlpm.eligibleRange = TRUE)),\n    _xlpm.countNonBlank, SUMPRODUCT(--(_xlpm.refRange = ProjectInfoTable[[#This Row],[Control Measure Reference Number]]), --(_xlpm.eligibleRange <> \"\")),\n    IF(_xlpm.countNonBlank = 0, \"\", IF(_xlpm.countTrue >= 1, TRUE, FALSE))\n  ),\n  \"\"\n)","v":""},{"$f":"IF(ProjectInfoTable[[#This Row],[Proposed Equipment]]=\"\",\"\",IFERROR(INDEX(INDIRECT(\"EquipmentTable_\"&IF(ProjectType=\"Retrofit\",\"Retrofit_\",\"NCMR_\")&ProjectState&\"[controlMethod]\"),MATCH(LEFT(ProjectInfoTable[[#This Row],[Proposed Equipment]],FIND(\"[\",ProjectInfoTable[[#This Row],[Proposed Equipment]],1)-2),INDIRECT(\"EquipmentTable_\"&IF(ProjectType=\"Retrofit\",\"Retrofit_\",\"NCMR_\")&ProjectState&\"[equipmentProposed]\"),0)),\"\"))","v":""},{"$f":"IFERROR(VALUE(INDEX(INDIRECT(\"MeasureTable_\" & ProjectState & \"[CustomerIncentiveDollarperunit]\"),MATCH(ProjectInfoTable[[#This Row],[Control Measure]]&\" | TRUE\",INDIRECT(\"MeasureTable_\"&ProjectState&\"[MeasureEligibleConcatenate]\"),0))),\"\")","v":""},{"$f":"IFERROR(INDEX(INDIRECT(\"MeasureTable_\"&ProjectState&\"[SiteSpecificCalculation]\"),MATCH(ProjectInfoTable[[#This Row],[Control Measure]]&\" | TRUE\",INDIRECT(\"MeasureTable_\"&ProjectState&\"[MeasureEligibleConcatenate]\"),0)),\"\")","v":""},{"$f":"IFERROR(INDEX(INDIRECT(\"MeasureTable_\"&ProjectState&\"[GrossIncrementalAnnualElectricSavings ]\"),MATCH(ProjectInfoTable[[#This Row],[Control Measure]]&\" | TRUE\",INDIRECT(\"MeasureTable_\"&ProjectState&\"[MeasureEligibleConcatenate]\"),0)),\"\")","v":""},{"$f":"IFERROR(INDEX(INDIRECT(\"MeasureTable_\"&ProjectState&\"[GrossAverage onthly emand eduction]\"),MATCH(ProjectInfoTable[[#This Row],[Control Measure]]&\" | TRUE\",INDIRECT(\"MeasureTable_\"&ProjectState&\"[MeasureEligibleConcatenate]\"),0)),\"\")","v":""},{"$f":"IFERROR(INDEX(INDIRECT(\"MeasureTable_\"&ProjectState&\"[IncrementalMeasureCost]\"),MATCH(ProjectInfoTable[[#This Row],[Control Measure]]&\" | TRUE\",INDIRECT(\"MeasureTable_\"&ProjectState&\"[MeasureEligibleConcatenate]\"),0)),\"\")","v":""},{"$f":"IF(ProjectInfoTable[[#This Row],[Control Measure]]=\"\",\"\",IF(OR(ProjectInfoTable[[#This Row],[Control TRL Unit]]=\"Measure\",ProjectInfoTable[[#This Row],[Control TRL Unit]]=\"Linear ft.\"),IF(OR(ISNUMBER(FIND(\"Midstream\",ProjectInfoTable[[#This Row],[Control Measure]],1)),ISNUMBER(FIND(\"Lamp\",ProjectInfoTable[[#This Row],[Control Measure]],1))),ProjectInfoTable[[#This Row],[Quantity (Proposed)]]*ProjectInfoTable[[#This Row],[Lamps (Proposed)]],ProjectInfoTable[[#This Row],[Quantity (Proposed)]]),1))","v":""},{"$f":"IF(ProjectInfoTable[[#This Row],[Control Measure]]=\"\",\"\",IF(ISNUMBER(FIND(\"LF \",ProjectInfoTable[[#This Row],[Proposed Equipment]],1)),VALUE(RIGHT(LEFT(ProjectInfoTable[[#This Row],[Proposed Equipment]],FIND(\"LF \",ProjectInfoTable[[#This Row],[Proposed Equipment]],1)-1),LEN(LEFT(ProjectInfoTable[[#This Row],[Proposed Equipment]],FIND(\"LF \",ProjectInfoTable[[#This Row],[Proposed Equipment]],1)-1))-FIND(\"[\",ProjectInfoTable[[#This Row],[Proposed Equipment]],1))),IF(TRIM(UPPER(ProjectInfoTable[[#This Row],[Control TRL Unit]]))=\"WATT CONTROLLED\",IF(ISNUMBER(FIND(\"Controls Only\",ProjectInfoTable[[#This Row],[Proposed Equipment]],1)),IF(OR(ProjectType <> \"Retrofit\",ProjectInfoTable[[#This Row],[Space W (Proposed)]]>0),ProjectInfoTable[[#This Row],[Space W (Proposed)]],ProjectInfoTable[[#This Row],[Space W (Existing, Stipulated)]]),ProjectInfoTable[[#This Row],[Space W (Proposed)]]),IF(TRIM(UPPER(ProjectInfoTable[[#This Row],[Control TRL Unit]]))=\"KWH\",IF(ProjectInfoTable[[#This Row],[Control Measure kWh/yr Savings (Stipulated)]]=0,0,ROUND(ProjectInfoTable[[#This Row],[Control Measure kWh/yr Savings (Stipulated)]],2)),1))))","v":""},{"$f":"IFERROR(IF(LEN(ProjectInfoTable[[#This Row],[Proposed Equipment]])-(FIND(\"]\",ProjectInfoTable[[#This Row],[Proposed Equipment]],1))>0,\"Control(s)\",\"\"),\"\")","v":""},{"$f":"IFERROR(INDEX(INDIRECT(\"MeasureTable_\"&ProjectState&\"[Unit]\"),MATCH(ProjectInfoTable[[#This Row],[Control Measure]]&\" | TRUE\",INDIRECT(\"MeasureTable_\"&ProjectState&\"[MeasureEligibleConcatenate]\"),0)),\"\")","v":""},{"$f":"IFERROR(INDEX(INDIRECT(\"MeasureTable_\"&ProjectState&\"[ProjectCapPercent]\"),MATCH(ProjectInfoTable[[#This Row],[Control Measure]]&\" | TRUE\",INDIRECT(\"MeasureTable_\"&ProjectState&\"[MeasureEligibleConcatenate]\"),0)),\"\")","v":""},{"$f":"IF(OR(ProjectInfoTable[[#This Row],[Fixture Measure]]<>\"\",ProjectInfoTable[[#This Row],[Control Measure]]<>\"\"),1,\"\")","v":""},{"$f":"IF(ProjectInfoTable[[#This Row],[TRL Unit]]=\"\",\"\",IF(OR(ISNUMBER(SEARCH(\"measure\",ProjectInfoTable[[#This Row],[TRL Unit]])),ISNUMBER(SEARCH(\"linear ft\",ProjectInfoTable[[#This Row],[TRL Unit]])),ProjectInfoTable[[#This Row],[TRL Unit]]=0),990,991))","v":""},{"$f":"IFERROR(SUBSTITUTE(LEFT(ProjectInfoTable[[#This Row],[Proposed Equipment]],FIND(\"]\",ProjectInfoTable[[#This Row],[Proposed Equipment]],1)),\"Controls Only []\",\"\",1),\"\")","v":""},{"$f":"IF(ProjectInfoTable[[#This Row],[FixturesOnly]]=\"\",\"\",IF(ISNUMBER(FIND(\"L \",ProjectInfoTable[[#This Row],[Proposed Equipment]],1)),ProjectInfoTable[[#This Row],[Quantity (Proposed)]]*ProjectInfoTable[[#This Row],[Lamps (Proposed)]],ProjectInfoTable[[#This Row],[Quantity (Proposed)]]))","v":""},{"$f":"IFERROR(INDEX(ControlsLookup[Full Description],MATCH(RIGHT(ProjectInfoTable[[#This Row],[Proposed Equipment]],LEN(ProjectInfoTable[[#This Row],[Proposed Equipment]])-FIND(\"]\",ProjectInfoTable[[#This Row],[Proposed Equipment]],1)-3),ControlsLookup[Controls],0)),\"\")","v":""},{"$f":"IF(ProjectInfoTable[[#This Row],[ControlsOnly]]=\"\",\"\",IF(OR(ISNUMBER(FIND(\"Net\",ProjectInfoTable[[#This Row],[Proposed Equipment]],1)),ISNUMBER(FIND(\"Int\",ProjectInfoTable[[#This Row],[Proposed Equipment]],1))),ProjectInfoTable[[#This Row],[Quantity (Proposed)]],1))","v":""}]
[null,{"$f":"ROW(ProjectInfoTable[[#This Row],[OpSch]])-ROW(ProjectInfoTable[[#Headers],[OpSch]])","v":5},{"$f":"IFERROR(INDEX(RetrofitBaselineEquipment_Table[categoryBaseline],MATCH(RIGHT(LEFT(ProjectInfoTable[[#This Row],[Existing Equipment]],FIND(\" (\",ProjectInfoTable[[#This Row],[Existing Equipment]],1)-1),LEN(LEFT(ProjectInfoTable[[#This Row],[Existing Equipment]],FIND(\" (\",ProjectInfoTable[[#This Row],[Existing Equipment]],1)-1))-FIND(\": \",ProjectInfoTable[[#This Row],[Existing Equipment]],1)-1),RetrofitBaselineEquipment_Table[equipmentBaseline],0)),\"\")","v":""},null,null,null,null,{"$f":"IF(ProjectInfoTable[[#This Row],[Existing Equipment]]=\"\",\"\",IF(ISNUMBER(FIND(\"LF\",ProjectInfoTable[[#This Row],[Existing Equipment]],1)),1,IFERROR(VALUE(SUBSTITUTE(RIGHT(LEFT(ProjectInfoTable[[#This Row],[Existing Equipment]],FIND(\"L\",ProjectInfoTable[[#This Row],[Existing Equipment]],FIND(\"[\",ProjectInfoTable[[#This Row],[Existing Equipment]],1))-1),3),\"[\",\"\")),1)))","v":""},{"$f":"IF(ProjectInfoTable[[#This Row],[Existing Equipment]]=\"\",\"\",VALUE(SUBSTITUTE(RIGHT(LEFT(RIGHT(ProjectInfoTable[[#This Row],[Existing Equipment]],LEN(ProjectInfoTable[[#This Row],[Existing Equipment]])-IFERROR(FIND(\"[\",ProjectInfoTable[[#This Row],[Existing Equipment]],1),0)),IFERROR(FIND(\"W\",RIGHT(ProjectInfoTable[[#This Row],[Existing Equipment]],LEN(ProjectInfoTable[[#This Row],[Existing Equipment]])-IFERROR(FIND(\"[\",ProjectInfoTable[[#This Row],[Existing Equipment]],1),0)),1),0)),LEN(LEFT(RIGHT(ProjectInfoTable[[#This Row],[Existing Equipment]],LEN(ProjectInfoTable[[#This Row],[Existing Equipment]])-IFERROR(FIND(\"[\",ProjectInfoTable[[#This Row],[Existing Equipment]],1),0)),IFERROR(FIND(\"W\",RIGHT(ProjectInfoTable[[#This Row],[Existing Equipment]],LEN(ProjectInfoTable[[#This Row],[Existing Equipment]])-IFERROR(FIND(\"[\",ProjectInfoTable[[#This Row],[Existing Equipment]],1),0)),1),0)))-IFERROR(FIND(\"-\",LEFT(RIGHT(ProjectInfoTable[[#This Row],[Existing Equipment]],LEN(ProjectInfoTable[[#This Row],[Existing Equipment]])-IFERROR(FIND(\"[\",ProjectInfoTable[[#This Row],[Existing Equipment]],1),0)),IFERROR(FIND(\"W\",RIGHT(ProjectInfoTable[[#This Row],[Existing Equipment]],LEN(ProjectInfoTable[[#This Row],[Existing Equipment]])-IFERROR(FIND(\"[\",ProjectInfoTable[[#This Row],[Existing Equipment]],1),0)),1),0)),1),0)),\"W\",\"\")))","v":""},{"$f":"IF(ProjectInfoTable[[#This Row],[Existing Equipment]]=\"\",\"\",IF(AND(RIGHT(LEFT(ProjectInfoTable[[#This Row],[Existing Equipment]],FIND(\"]\",ProjectInfoTable[[#This Row],[Existing Equipment]],1)-1),1)<>\"W\"),IFERROR(TRIM(IF(IFERROR(FIND(\"FLT\",ProjectInfoTable[[#This Row],[Existing Equipment]],1),0)>0,LEFT(RIGHT(LEFT(ProjectInfoTable[[#This Row],[Existing Equipment]],FIND(\" (\",ProjectInfoTable[[#This Row],[Existing Equipment]],1)),LEN(LEFT(ProjectInfoTable[[#This Row],[Existing Equipment]],FIND(\" (\",ProjectInfoTable[[#This Row],[Existing Equipment]],1)))-FIND(\":\",ProjectInfoTable[[#This Row],[Existing Equipment]],1)-1),FIND(\" \",RIGHT(LEFT(ProjectInfoTable[[#This Row],[Existing Equipment]],FIND(\" (\",ProjectInfoTable[[#This Row],[Existing Equipment]],1)),LEN(LEFT(ProjectInfoTable[[#This Row],[Existing Equipment]],FIND(\" (\",ProjectInfoTable[[#This Row],[Existing Equipment]],1)))-FIND(\":\",ProjectInfoTable[[#This Row],[Existing Equipment]],1)-1),1)-1),RIGHT(LEFT(ProjectInfoTable[[#This Row],[Existing Equipment]],FIND(\" (\",ProjectInfoTable[[#This Row],[Existing Equipment]],1)),LEN(LEFT(ProjectInfoTable[[#This Row],[Existing Equipment]],FIND(\" (\",ProjectInfoTable[[#This Row],[Existing Equipment]],1)))-FIND(\":\",ProjectInfoTable[[#This Row],[Existing Equipment]],1)-1))&\" - \"&RIGHT(LEFT(ProjectInfoTable[[#This Row],[Existing Equipment]],FIND(\"]\",ProjectInfoTable[[#This Row],[Existing Equipment]],1)-1),LEN(LEFT(ProjectInfoTable[[#This Row],[Existing Equipment]],FIND(\"]\",ProjectInfoTable[[#This Row],[Existing Equipment]],1)-1))-FIND(\"W \",ProjectInfoTable[[#This Row],[Existing Equipment]],1)-3)),\"\"),\"\"))","v":""},{"$f":"IF(ProjectInfoTable[[#This Row],[Existing Equipment]]=\"\",\"\",IF(ProjectInfoTable[[#This Row],[Fixture/Ballast Check for Formula]]=\"\",IF(ISNUMBER(FIND(\"LF\",ProjectInfoTable[[#This Row],[Existing Equipment]],FIND(\"[\",ProjectInfoTable[[#This Row],[Existing Equipment]],1))),ProjectInfoTable[[#This Row],[Lamp W (Existing)]],ProjectInfoTable[[#This Row],[Lamps (Existing)]]*ProjectInfoTable[[#This Row],[Lamp W (Existing)]]),IFERROR(ROUND( ProjectInfoTable[[#This Row],[Lamps (Existing)]]*ProjectInfoTable[[#This Row],[Lamp W (Existing)]]*INDEX(FixtureWattageFormula_Table[A],MATCH(ProjectInfoTable[[#This Row],[Fixture/Ballast Check for Formula]],FixtureWattageFormula_Table[Concatenate],0))+INDEX(FixtureWattageFormula_Table[B],MATCH(ProjectInfoTable[[#This Row],[Fixture/Ballast Check for Formula]],FixtureWattageFormula_Table[Concatenate],0)),0),ProjectInfoTable[[#This Row],[Lamps (Existing)]]*ProjectInfoTable[[#This Row],[Lamp W (Existing)]])))","v":""},{"$f":"IF(OR(ISNUMBER(FIND(\"T8 \",ProjectInfoTable[[#This Row],[Existing Equipment]],1)),ISNUMBER(FIND(\"T5 \",ProjectInfoTable[[#This Row],[Existing Equipment]],1)),ISNUMBER(FIND(\"T12 \",ProjectInfoTable[[#This Row],[Existing Equipment]],1)),ISNUMBER(FIND(\"T12HO - 8\",ProjectInfoTable[[#This Row],[Existing Equipment]],1)),ISNUMBER(FIND(\"Incand\",ProjectInfoTable[[#This Row],[Existing Equipment]],1))),IFERROR(ROUND(INDEX(StipulatedWattage_Table[Stipulated fixture wattage],MATCH(MID(ProjectInfoTable[[#This Row],[Existing Equipment]],FIND(\"[\",ProjectInfoTable[[#This Row],[Existing Equipment]],1),FIND(\"]\",ProjectInfoTable[[#This Row],[Existing Equipment]],1)-FIND(\"[\",ProjectInfoTable[[#This Row],[Existing Equipment]],1)+1),StipulatedWattage_Table[Fixture Code],0)),0),ProjectInfoTable[[#This Row],[Fixture W (Existing, Actual)]]),ProjectInfoTable[[#This Row],[Fixture W (Existing, Actual)]])","v":""},{"$f":"IF(ProjectType=\"Retrofit\",IF(ProjectInfoTable[[#This Row],[Existing Equipment]]=\"\",\"\",ProjectInfoTable[[#This Row],[Quantity (Existing)]]*ProjectInfoTable[[#This Row],[Fixture W (Existing, Actual)]]),IF(ISNUMBER(FIND(\"Interior\",ProjectInfoTable[[#This Row],[Proposed Equipment]],1)),IF(ISNUMBER(FIND(\"Controls Only\",ProjectInfoTable[[#This Row],[Proposed Equipment]])),ProjectInfoTable[[#This Row],[Space W (Proposed)]],(AllowedWattage-SUMIFS(ProjectInfoTable[Space W (Proposed)],ProjectInfoTable[Proposed Equipment],\"*Interior*\",ProjectInfoTable[Proposed Equipment],\"*Controls Only*\"))*ProjectInfoTable[[#This Row],[Space W (Proposed)]]/(SUMIFS(ProjectInfoTable[Space W (Proposed)],ProjectInfoTable[Proposed Equipment],\"*Interior*\")-SUMIFS(ProjectInfoTable[Space W (Proposed)],ProjectInfoTable[Proposed Equipment],\"*Interior*\",ProjectInfoTable[Proposed Equipment],\"*Controls Only*\"))),\"\"))","v":""},{"$f":"IF(ProjectType=\"Retrofit\",IF(ProjectInfoTable[[#This Row],[Existing Equipment]]=\"\",\"\",ProjectInfoTable[[#This Row],[Quantity (Existing)]]*ProjectInfoTable[[#This Row],[Fixture W (Existing, Stipulated)]]),ProjectInfoTable[[#This Row],[Space W (Existing, Actual)]])","v":""},{"$f":"IFERROR(INDEX(OperatingHours_List,MATCH(ProjectInfoTable[[#This Row],[OpSch]],OperatingSchedules_List,0))*ProjectInfoTable[[#This Row],[Space W (Existing, Actual)]]/1000,\"\")","v":""},{"$f":"IFERROR(INDEX(OperatingHours_List,MATCH(ProjectInfoTable[[#This Row],[OpSch]],OperatingSchedules_List,0))*ProjectInfoTable[[#This Row],[Space W (Existing, Actual)]]/1000*(IFERROR(INDEX(ControlsLookup[],MATCH(RIGHT(ProjectInfoTable[[#This Row],[Existing Equipment]],LEN(ProjectInfoTable[[#This Row],[Existing Equipment]])-FIND(\"]\",ProjectInfoTable[[#This Row],[Existing Equipment]],1)-3),ControlsLookup[Controls],0),MATCH(\"CSF_\"&ProjectState,ControlsLookup[#Headers],0)),0))*-1,\"\")","v":""},{"$f":"IF(OR(ProjectInfoTable[[#This Row],[Fixture kWh (Existing, Actual)]]=\"\",ProjectInfoTable[[#This Row],[Control kWh (Existing, Actual)]]=\"\"),\"\",ProjectInfoTable[[#This Row],[Fixture kWh (Existing, Actual)]]+ProjectInfoTable[[#This Row],[Control kWh (Existing, Actual)]])","v":""},{"$f":"IFERROR(INDEX(OperatingHours_List,MATCH(ProjectInfoTable[[#This Row],[OpSch]],OperatingSchedules_List,0))*ProjectInfoTable[[#This Row],[Space W (Existing, Stipulated)]]/1000,\"\")","v":""},{"$f":"IFERROR(INDEX(OperatingHours_List,MATCH(ProjectInfoTable[[#This Row],[OpSch]],OperatingSchedules_List,0))*ProjectInfoTable[[#This Row],[Space W (Existing, Stipulated)]]/1000*(IFERROR(INDEX(ControlsLookup[],MATCH(RIGHT(ProjectInfoTable[[#This Row],[Existing Equipment]],LEN(ProjectInfoTable[[#This Row],[Existing Equipment]])-FIND(\"]\",ProjectInfoTable[[#This Row],[Existing Equipment]],1)-3),ControlsLookup[Controls],0),MATCH(\"CSF_\"&ProjectState,ControlsLookup[#Headers],0)),0))*-1,\"\")","v":""},{"$f":"IF(OR(ProjectInfoTable[[#This Row],[Fixture kWh (Existing, Stipulated)]]=\"\",ProjectInfoTable[[#This Row],[Control kWh (Existing, Stipulated)]]=\"\"),\"\",ProjectInfoTable[[#This Row],[Fixture kWh (Existing, Stipulated)]]+ProjectInfoTable[[#This Row],[Control kWh (Existing, Stipulated)]])","v":""},{"$f":"IF(\n AND(\n  OR(ProjectInfoTable[[#This Row],[Existing Equipment]]=\"\",ProjectInfoTable[[#This Row],[Quantity (Existing)]]=\"\"),\n  ProjectType=\"Retrofit\"\n ),\n \"\",\n IF(\n  ISNUMBER(FIND(\"Street:\",ProjectInfoTable[[#This Row],[Existing Equipment]],1)),\n  IF(\n   OR(\n    AND(ProjectState=\"UT\",RateSchedule=12),\n    AND(ProjectState=\"ID\",RateSchedule=12),\n    AND(ProjectState=\"WY\",RateSchedule=58)\n   ),\n   IFERROR(\n    INDEX(\n     StreetLightingRates_Table[],\n     MATCH(MID(ProjectInfoTable[[#This Row],[Existing Equipment]],FIND(\": \",ProjectInfoTable[[#This Row],[Existing Equipment]],1)+2,FIND(\" (\",ProjectInfoTable[[#This Row],[Existing Equipment]],1)-FIND(\": \",ProjectInfoTable[[#This Row],[Existing Equipment]],1)-2)&ProjectInfoTable[[#This Row],[Lamp W (Existing)]],StreetLightingRates_Table[TechWattage],0),\n     MATCH(ProjectState&RateSchedule,StreetLightingRates_Table[#Headers],0)\n    )\n    *\n    ProjectInfoTable[[#This Row],[Quantity (Existing)]]\n    *\n    ProjectInfoTable[[#This Row],[Lamps (Existing)]]\n    *\n    12,\n    ProjectInfoTable[[#This Row],[Space kWh (Existing, Actual)]]\n    *\n    INDEX(INDIRECT(\"RateSchedules_\"&ProjectState&\"_Table[kWh Rate]\"),MATCH(RateSchedule,INDIRECT(\"RateSchedules_\"&ProjectState&\"_Table[Rate Schedule]\"),0))\n   ),\n   IFERROR(\n    ProjectInfoTable[[#This Row],[Space kWh (Existing, Actual)]]*\n    INDEX(INDIRECT(\"RateSchedules_\"&ProjectState&\"_Table[kWh Rate]\"),MATCH(RateSchedule,INDIRECT(\"RateSchedules_\"&ProjectState&\"_Table[Rate Schedule]\"),0)),0)\n   +\n   IFERROR(IF(ISNUMBER(FIND(\"Interior:\",ProjectInfoTable[[#This Row],[Existing Equipment]],1)),\n    ProjectInfoTable[[#This Row],[Space W (Existing, Actual)]]/1000*12*DDF*\n    INDEX(INDIRECT(\"RateSchedules_\"&ProjectState&\"_Table[kW Rate]\"),MATCH(RateSchedule,INDIRECT(\"RateSchedules_\"&ProjectState&\"_Table[Rate Schedule]\"),0)),0),0)\n  ),\n  IFERROR(\n   ProjectInfoTable[[#This Row],[Space kWh (Existing, Actual)]]*\n   INDEX(INDIRECT(\"RateSchedules_\"&ProjectState&\"_Table[kWh Rate]\"),MATCH(RateSchedule,INDIRECT(\"RateSchedules_\"&ProjectState&\"_Table[Rate Schedule]\"),0)),\n   0\n  )\n  +\n  IFERROR(IF(OR(ISNUMBER(FIND(\"Interior:\",ProjectInfoTable[[#This Row],[Existing Equipment]],1)),AND(ProjectType<>\"Retrofit\",ISNUMBER(FIND(\"Interior:\",ProjectInfoTable[[#This Row],[Proposed Equipment]],1)))),\n   ProjectInfoTable[[#This Row],[Space W (Existing, Actual)]]/1000*12*DDF*\n   INDEX(INDIRECT(\"RateSchedules_\"&ProjectState&\"_Table[kW Rate]\"),MATCH(RateSchedule,INDIRECT(\"RateSchedules_\"&ProjectState&\"_Table[Rate Schedule]\"),0)),0),\n   0\n  )\n )\n)","v":0},{"$f":"IF(\n AND(\n  OR(ProjectInfoTable[[#This Row],[Existing Equipment]]=\"\",ProjectInfoTable[[#This Row],[Quantity (Existing)]]=\"\"),\n  ProjectType=\"Retrofit\"\n ),\n \"\",\n IF(\n  ISNUMBER(FIND(\"Street:\",ProjectInfoTable[[#This Row],[Existing Equipment]],1)),\n  IF(\n   OR(\n    AND(ProjectState=\"UT\",RateSchedule=12),\n    AND(ProjectState=\"ID\",RateSchedule=12),\n    AND(ProjectState=\"WY\",RateSchedule=58)\n   ),\n   IFERROR(\n    INDEX(\n     StreetLightingRates_Table[],\n     MATCH(MID(ProjectInfoTable[[#This Row],[Existing Equipment]],FIND(\": \",ProjectInfoTable[[#This Row],[Existing Equipment]],1)+2,FIND(\" (\",ProjectInfoTable[[#This Row],[Existing Equipment]],1)-FIND(\": \",ProjectInfoTable[[#This Row],[Existing Equipment]],1)-2)&ProjectInfoTable[[#This Row],[Lamp W (Existing)]],StreetLightingRates_Table[TechWattage],0),\n     MATCH(ProjectState&RateSchedule,StreetLightingRates_Table[#Headers],0)\n    )\n    *\n    ProjectInfoTable[[#This Row],[Quantity (Existing)]]\n    *\n    ProjectInfoTable[[#This Row],[Lamps (Existing)]]\n    *\n    12,\n    ProjectInfoTable[[#This Row],[Space kWh (Existing, Stipulated)]]\n    *\n    INDEX(INDIRECT(\"RateSchedules_\"&ProjectState&\"_Table[kWh Rate]\"),MATCH(RateSchedule,INDIRECT(\"RateSchedules_\"&ProjectState&\"_Table[Rate Schedule]\"),0))\n   ),\n   IFERROR(\n    ProjectInfoTable[[#This Row],[Space kWh (Existing, Stipulated)]]*\n    INDEX(INDIRECT(\"RateSchedules_\"&ProjectState&\"_Table[kWh Rate]\"),MATCH(RateSchedule,INDIRECT(\"RateSchedules_\"&ProjectState&\"_Table[Rate Schedule]\"),0)),0)\n   +\n   IFERROR(IF(ISNUMBER(FIND(\"Interior:\",ProjectInfoTable[[#This Row],[Existing Equipment]],1)),\n    ProjectInfoTable[[#This Row],[Space W (Existing, Stipulated)]]/1000*12*DDF*\n    INDEX(INDIRECT(\"RateSchedules_\"&ProjectState&\"_Table[kW Rate]\"),MATCH(RateSchedule,INDIRECT(\"RateSchedules_\"&ProjectState&\"_Table[Rate Schedule]\"),0)),0),0)\n  ),\n  IFERROR(\n   ProjectInfoTable[[#This Row],[Space kWh (Existing, Stipulated)]]*\n   INDEX(INDIRECT(\"RateSchedules_\"&ProjectState&\"_Table[kWh Rate]\"),MATCH(RateSchedule,INDIRECT(\"RateSchedules_\"&ProjectState&\"_Table[Rate Schedule]\"),0)),\n   0\n  )\n  +\n  IFERROR(IF(OR(ISNUMBER(FIND(\"Interior:\",ProjectInfoTable[[#This Row],[Existing Equipment]],1)),AND(ProjectType<>\"Retrofit\",ISNUMBER(FIND(\"Interior:\",ProjectInfoTable[[#This Row],[Proposed Equipment]],1)))),\n   ProjectInfoTable[[#This Row],[Space W (Existing, Stipulated)]]/1000*12*DDF*\n   INDEX(INDIRECT(\"RateSchedules_\"&ProjectState&\"_Table[kW Rate]\"),MATCH(RateSchedule,INDIRECT(\"RateSchedules_\"&ProjectState&\"_Table[Rate Schedule]\"),0)),0),\n   0\n  )\n )\n)","v":0},{"$f":"IF(ProjectType=\"Retrofit\",IFERROR(INDEX(RetrofitBaselineEquipment_Table[categoryBaseline],MATCH(RIGHT(LEFT(ProjectInfoTable[[#This Row],[Proposed Equipment]],FIND(\" (\",ProjectInfoTable[[#This Row],[Proposed Equipment]],1)-1),LEN(LEFT(ProjectInfoTable[[#This Row],[Proposed Equipment]],FIND(\" (\",ProjectInfoTable[[#This Row],[Proposed Equipment]],1)-1))-FIND(\": \",ProjectInfoTable[[#This Row],[Proposed Equipment]],1)-1),RetrofitBaselineEquipment_Table[equipmentBaseline],0)),\"\"),IFERROR(INDEX(#REF!,MATCH(RIGHT(LEFT(ProjectInfoTable[[#This Row],[Proposed Equipment]],FIND(\" (\",ProjectInfoTable[[#This Row],[Proposed Equipment]],1)-1),LEN(LEFT(ProjectInfoTable[[#This Row],[Proposed Equipment]],FIND(\" (\",ProjectInfoTable[[#This Row],[Proposed Equipment]],1)-1))-FIND(\": \",ProjectInfoTable[[#This Row],[Proposed Equipment]],1)-1),#REF!,0)),\"\"))","v":""},{"$f":"IF(ProjectInfoTable[[#This Row],[Proposed Equipment]]=\"\",\"\",IF(ISNUMBER(SEARCH(\"Controls Only\",ProjectInfoTable[[#This Row],[Proposed Equipment]])),\"Controls Only\",IF(ProjectType=\"Retrofit\",_xlfn.LET(_xlpm.k,LEFT(ProjectInfoTable[[#This Row],[Proposed Equipment]],FIND(\"[\",ProjectInfoTable[[#This Row],[Proposed Equipment]])-2),_xlpm.ep,_xlfn.SWITCH(ProjectState,\"UT\",EquipmentTable_Retrofit_UT[equipmentProposed],\"WY\",EquipmentTable_Retrofit_WY[equipmentProposed],\"ID\",EquipmentTable_Retrofit_ID[equipmentProposed]),_xlpm.cp,_xlfn.SWITCH(ProjectState,\"UT\",EquipmentTable_Retrofit_UT[categoryProposed],\"WY\",EquipmentTable_Retrofit_WY[categoryProposed],\"ID\",EquipmentTable_Retrofit_ID[categoryProposed]),_xlfn.XLOOKUP(_xlpm.k,_xlpm.ep,_xlpm.cp,\"Non-eligible fixture - Retrofit - \"&ProjectState)),_xlfn.LET(_xlpm.k,MID(ProjectInfoTable[[#This Row],[Proposed Equipment]],FIND(\": \",ProjectInfoTable[[#This Row],[Proposed Equipment]])+2,FIND(\" (\",ProjectInfoTable[[#This Row],[Proposed Equipment]])-(FIND(\": \",ProjectInfoTable[[#This Row],[Proposed Equipment]])+2)),_xlpm.ep,_xlfn.SWITCH(ProjectState,\"UT\",EquipmentTable_NCMR_UT[equipmentProposed],\"WY\",EquipmentTable_NCMR_WY[equipmentProposed],\"ID\",EquipmentTable_NCMR_ID[equipmentProposed]),_xlpm.cp,_xlfn.SWITCH(ProjectState,\"UT\",EquipmentTable_NCMR_UT[categoryProposed],\"WY\",EquipmentTable_NCMR_WY[categoryProposed],\"ID\",EquipmentTable_NCMR_ID[categoryProposed]),_xlfn.XLOOKUP(_xlpm.k,_xlpm.ep,_xlpm.cp,\"Non-eligible fixture - NCMR - \"&ProjectState)))))","v":""},null,null,"ü",{"$f":"IF(ProjectInfoTable[[#This Row],[Proposed Equipment]]=\"\",\"\",IF(ProjectInfoTable[[#This Row],[Measure Selection]]=\"\",0,IF(ISNUMBER(FIND(\"LF\",ProjectInfoTable[[#This Row],[Proposed Equipment]],1)),1,IFERROR(VALUE(SUBSTITUTE(RIGHT(LEFT(ProjectInfoTable[[#This Row],[Proposed Equipment]],FIND(\"L\",ProjectInfoTable[[#This Row],[Proposed Equipment]],FIND(\"[\",ProjectInfoTable[[#This Row],[Proposed Equipment]],1))-1),2),\"[\",\"\")),IFERROR(LEFT(RIGHT(ProjectInfoTable[[#This Row],[Proposed Equipment]],LEN(ProjectInfoTable[[#This Row],[Proposed Equipment]])-FIND(\"-lamp\",ProjectInfoTable[[#This Row],[Proposed Equipment]],1)+2),1),1)))))","v":""},{"$f":"IF(ProjectInfoTable[[#This Row],[Proposed Equipment]]=\"\",\"\",IF(ProjectInfoTable[[#This Row],[Measure Selection]]=\"\",0,IFERROR(\n\nIF(ISNUMBER(FIND(\"W]\",ProjectInfoTable[[#This Row],[Proposed Equipment]])),\nRIGHT(MID(ProjectInfoTable[[#This Row],[Proposed Equipment]],FIND(\"W]\",ProjectInfoTable[[#This Row],[Proposed Equipment]],FIND(\"[\",ProjectInfoTable[[#This Row],[Proposed Equipment]]))-7,7),\nLEN(MID(ProjectInfoTable[[#This Row],[Proposed Equipment]],FIND(\"W]\",ProjectInfoTable[[#This Row],[Proposed Equipment]],FIND(\"[\",ProjectInfoTable[[#This Row],[Proposed Equipment]]))-7,7)) -\nIFERROR(FIND(\" - \",MID(ProjectInfoTable[[#This Row],[Proposed Equipment]],FIND(\"W]\",ProjectInfoTable[[#This Row],[Proposed Equipment]],FIND(\"[\",ProjectInfoTable[[#This Row],[Proposed Equipment]]))-7,7))+2,\nFIND(\"[\",MID(ProjectInfoTable[[#This Row],[Proposed Equipment]],FIND(\"W]\",ProjectInfoTable[[#This Row],[Proposed Equipment]],FIND(\"[\",ProjectInfoTable[[#This Row],[Proposed Equipment]]))-7,7)))),\n\nIF(ISNUMBER(FIND(\"[\",MID(ProjectInfoTable[[#This Row],[Proposed Equipment]],FIND(\"W \",ProjectInfoTable[[#This Row],[Proposed Equipment]],FIND(\"[\",ProjectInfoTable[[#This Row],[Proposed Equipment]]))-7,7))),\nRIGHT(MID(ProjectInfoTable[[#This Row],[Proposed Equipment]],FIND(\"W \",ProjectInfoTable[[#This Row],[Proposed Equipment]],FIND(\"[\",ProjectInfoTable[[#This Row],[Proposed Equipment]]))-7,7),\nLEN(MID(ProjectInfoTable[[#This Row],[Proposed Equipment]],FIND(\"W \",ProjectInfoTable[[#This Row],[Proposed Equipment]],FIND(\"[\",ProjectInfoTable[[#This Row],[Proposed Equipment]]))-7,7)) -\nIFERROR(FIND(\" - \",MID(ProjectInfoTable[[#This Row],[Proposed Equipment]],FIND(\"W \",ProjectInfoTable[[#This Row],[Proposed Equipment]],FIND(\"[\",ProjectInfoTable[[#This Row],[Proposed Equipment]]))-7,7))+2,\nFIND(\"[\",MID(ProjectInfoTable[[#This Row],[Proposed Equipment]],FIND(\"W \",ProjectInfoTable[[#This Row],[Proposed Equipment]],FIND(\"[\",ProjectInfoTable[[#This Row],[Proposed Equipment]]))-7,7)))),\n\nRIGHT(MID(ProjectInfoTable[[#This Row],[Proposed Equipment]],FIND(\"W \",ProjectInfoTable[[#This Row],[Proposed Equipment]],FIND(\"[\",ProjectInfoTable[[#This Row],[Proposed Equipment]]))-7,7),\nLEN(MID(ProjectInfoTable[[#This Row],[Proposed Equipment]],FIND(\"W \",ProjectInfoTable[[#This Row],[Proposed Equipment]],FIND(\"[\",ProjectInfoTable[[#This Row],[Proposed Equipment]]))-7,7)) -\nFIND(\" - \",MID(ProjectInfoTable[[#This Row],[Proposed Equipment]],FIND(\"W \",ProjectInfoTable[[#This Row],[Proposed Equipment]],FIND(\"[\",ProjectInfoTable[[#This Row],[Proposed Equipment]]))-7,7))-2\n))),0)))","v":""},{"$f":"IF(ProjectInfoTable[[#This Row],[Proposed Equipment]]=\"\",\"\",IFERROR(ProjectInfoTable[[#This Row],[Lamps (Proposed)]]*ProjectInfoTable[[#This Row],[Lamp W (Proposed)]],\"\"))","v":""},{"$f":"IF(ProjectInfoTable[[#This Row],[Proposed Equipment]]=\"\",\"\",IFERROR(ProjectInfoTable[[#This Row],[Quantity (Proposed)]]*ProjectInfoTable[[#This Row],[Fixture W (Proposed)]],\"\"))","v":""},{"$f":"IFERROR(INDEX(OperatingHours_List,MATCH(ProjectInfoTable[[#This Row],[OpSch]],OperatingSchedules_List,0))*ProjectInfoTable[[#This Row],[Space W (Proposed)]]/1000,\"\")","v":""},{"$f":"IF(OR(ISNUMBER(FIND(\"Controls Only\",ProjectInfoTable[[#This Row],[Proposed Equipment]],1)),ProjectInfoTable[[#This Row],[ControlsOnly]]=\"Re-Commissioning\"),\"Controls Only\",IFERROR(INDEX(OperatingHours_List,MATCH(ProjectInfoTable[[#This Row],[OpSch]],OperatingSchedules_List,0))*ProjectInfoTable[[#This Row],[Space W (Proposed)]]/1000*(IFERROR(INDEX(ControlsLookup[],MATCH(SUBSTITUTE(RIGHT(ProjectInfoTable[[#This Row],[Proposed Equipment]],LEN(ProjectInfoTable[[#This Row],[Proposed Equipment]])-FIND(\"]\",ProjectInfoTable[[#This Row],[Proposed Equipment]],1)-3),\" reused\",\"\"),ControlsLookup[Controls],0),MATCH(\"CSF_\"&ProjectState,ControlsLookup[#Headers],0)),0))*-1,\"\"))","v":""},{"$f":"IF(OR(ProjectInfoTable[[#This Row],[Fixture kWh (Proposed)]]=\"\",ProjectInfoTable[[#This Row],[Control kWh (Proposed)]]=\"\"),\"\",IFERROR(ProjectInfoTable[[#This Row],[Fixture kWh (Proposed)]]+ProjectInfoTable[[#This Row],[Control kWh (Proposed)]],0))","v":""},{"$f":"IF(\n OR(\n  ProjectInfoTable[[#This Row],[Proposed Equipment]]=\"\",\n  ProjectInfoTable[[#This Row],[Quantity (Proposed)]]=\"\"\n ),\n \"\",\n IF(\n  AND(\n   OR(\n    AND(\n     ProjectState=\"UT\",\n     RateSchedule=12\n    ),\n    AND(\n     ProjectState=\"ID\",\n     RateSchedule=12\n    ),\n    AND(\n     ProjectState=\"WY\",\n     RateSchedule=58\n    )\n   ),\n   ISNUMBER(FIND(\"Street:\",ProjectInfoTable[[#This Row],[Existing Equipment]],1))\n  ),\n  IF(\n   AND(\n    RateSchedule=53,\n    ISNUMBER(FIND(\"LED\",ProjectInfoTable[[#This Row],[Proposed Equipment]],1))\n   ),\n   ProjectInfoTable[[#This Row],[Fixture kWh (Proposed)]]\n   *\n   INDEX(\n    INDIRECT(\"RateSchedules_\"&ProjectState&\"_Table[kWh Rate]\"),\n    MATCH(RateSchedule,INDIRECT(\"RateSchedules_\"&ProjectState&\"_Table[Rate Schedule]\"),0)\n   ),\n   IFERROR(INDEX(\n    StreetLightingRates_Table[],\n    MATCH(\"LED\"&IF(AND(ProjectInfoTable[[#This Row],[Fixture W (Proposed)]]>0,ProjectInfoTable[[#This Row],[Fixture W (Proposed)]]<=70),70,IF(AND(ProjectInfoTable[[#This Row],[Fixture W (Proposed)]]>70,ProjectInfoTable[[#This Row],[Fixture W (Proposed)]]<=100),100,IF(AND(ProjectInfoTable[[#This Row],[Fixture W (Proposed)]]>100,ProjectInfoTable[[#This Row],[Fixture W (Proposed)]]<=150),150,IF(AND(ProjectInfoTable[[#This Row],[Fixture W (Proposed)]]>150,ProjectInfoTable[[#This Row],[Fixture W (Proposed)]]<=200),200,IF(AND(ProjectInfoTable[[#This Row],[Fixture W (Proposed)]]>200,ProjectInfoTable[[#This Row],[Fixture W (Proposed)]]<=250),250,IF(AND(ProjectInfoTable[[#This Row],[Fixture W (Proposed)]]>250,ProjectInfoTable[[#This Row],[Fixture W (Proposed)]]<=400),400,\"\")))))),StreetLightingRates_Table[TechWattage],0),\n    MATCH(ProjectState&RateSchedule,StreetLightingRates_Table[#Headers],0)\n   )\n   *ProjectInfoTable[[#This Row],[Lamps (Proposed)]]*ProjectInfoTable[[#This Row],[Quantity (Proposed)]]*12,\n  ProjectInfoTable[[#This Row],[Space kWh (Proposed)]]*INDEX(INDIRECT(\"RateSchedules_\"&ProjectState&\"_Table[kWh Rate]\"),MATCH(RateSchedule,INDIRECT(\"RateSchedules_\"&ProjectState&\"_Table[Rate Schedule]\"),0)))),\n  IFERROR(ProjectInfoTable[[#This Row],[Space kWh (Proposed)]]*INDEX(INDIRECT(\"RateSchedules_\"&ProjectState&\"_Table[kWh Rate]\"),MATCH(RateSchedule,INDIRECT(\"RateSchedules_\"&ProjectState&\"_Table[Rate Schedule]\"),0)),0)\n  +\n  IF(OR(ISNUMBER(FIND(\"Exterior:\",ProjectInfoTable[[#This Row],[Existing Equipment]],1)),ISNUMBER(FIND(\"Street:\",ProjectInfoTable[[#This Row],[Existing Equipment]],1))),0,IFERROR(ProjectInfoTable[[#This Row],[Space W (Proposed)]]/1000*12*DDF*INDEX(INDIRECT(\"RateSchedules_\"&ProjectState&\"_Table[kW Rate]\"),MATCH(RateSchedule,INDIRECT(\"RateSchedules_\"&ProjectState&\"_Table[Rate Schedule]\"),0)),0))\n )\n)","v":""},{"$f":"IF(ProjectInfoTable[[#This Row],[Measure Selection]]=\"\",0,IF(ProjectType=\"Retrofit\",IFERROR((ProjectInfoTable[[#This Row],[Space W (Existing, Actual)]]-ProjectInfoTable[[#This Row],[Space W (Proposed)]])/ProjectInfoTable[[#This Row],[Space W (Existing, Actual)]],\"\"),IF(AND(ProjectInfoTable[[#This Row],[Proposed Equipment]]=\"\",ProjectInfoTable[[#This Row],[Quantity (Proposed)]]=\"\"),\"\",IFERROR((ProjectInfoTable[[#This Row],[Space W (Existing, Stipulated)]]-ProjectInfoTable[[#This Row],[Space W (Proposed)]])/ProjectInfoTable[[#This Row],[Space W (Existing, Stipulated)]],\"n/a\"))))","v":""},{"$f":"IF(ProjectInfoTable[[#This Row],[Measure Selection]]=\"\",0,IF(ProjectType=\"Retrofit\",IFERROR((ProjectInfoTable[[#This Row],[Space W (Existing, Stipulated)]]-ProjectInfoTable[[#This Row],[Space W (Proposed)]])/ProjectInfoTable[[#This Row],[Space W (Existing, Stipulated)]],\"\"),ProjectInfoTable[[#This Row],[% Wattage Reduction (Actual)]]))","v":""},{"$f":"IFERROR(IF(OR(ProjectInfoTable[[#This Row],[Measure Selection]]=\"\",ProjectInfoTable[[#This Row],[ControlsOnly]]=\"Re-Commissioning\"),0,IF(AND(ProjectType=\"Retrofit\",LEFT(ProjectInfoTable[[#This Row],[Existing Equipment]],FIND(\": \",ProjectInfoTable[[#This Row],[Existing Equipment]],1)-1)<>\"Interior\"),0,((ProjectInfoTable[[#This Row],[Space W (Existing, Actual)]]-ProjectInfoTable[[#This Row],[Space W (Proposed)]])/1000*DDF)-IF(ProjectInfoTable[[#This Row],[Midstream Measure Name]]<>\"\",IFERROR(ProjectInfoTable[[#This Row],[kW Per Unit (Midstream)]]*ProjectInfoTable[[#This Row],[Quantity]]*ProjectInfoTable[[#This Row],[No. of TRL Units]],0),0))),\"\")","v":""},{"$f":"IFERROR(IF(OR(ProjectInfoTable[[#This Row],[Measure Selection]]=\"\",ProjectInfoTable[[#This Row],[ControlsOnly]]=\"Re-Commissioning\"),0,IF(AND(ISNUMBER(VALUE(ProjectInfoTable[[#This Row],[kW Per Unit]])),ProjectInfoTable[[#This Row],[kW Per Unit]]<>0),ROUND(ProjectInfoTable[[#This Row],[kW Per Unit]]*ProjectInfoTable[[#This Row],[Quantity]]*ProjectInfoTable[[#This Row],[No. of TRL Units]],2),IF(OR(AND(ProjectType=\"Retrofit\",LEFT(ProjectInfoTable[[#This Row],[Existing Equipment]],FIND(\": \",ProjectInfoTable[[#This Row],[Existing Equipment]],1)-1)<>\"Interior\"),AND(ProjectInfoTable[[#This Row],[Incentives Per Unit]]=0,INDEX(StipulatedSavingsYesNo_Table[Stipulated Savings?],MATCH(ProjectState,StipulatedSavingsYesNo_Table[State],0))=\"No\")),0,IF(ISNUMBER(FIND(\"Controls Only\",ProjectInfoTable[[#This Row],[Proposed Equipment]],1)),0,ROUND(((ProjectInfoTable[[#This Row],[Space W (Existing, Stipulated)]]-ProjectInfoTable[[#This Row],[Space W (Proposed)]])/1000*DDF)-IF(ProjectInfoTable[[#This Row],[Midstream Measure Name]]<>\"\",IFERROR(ProjectInfoTable[[#This Row],[kW Per Unit (Midstream)]]*ProjectInfoTable[[#This Row],[Quantity]]*ProjectInfoTable[[#This Row],[No. of TRL Units]],0),0),2))))),\"\")","v":""},{"$f":"IFERROR(IF(OR(ProjectInfoTable[[#This Row],[Control kWh (Proposed)]]=\"Controls Only\",ProjectInfoTable[[#This Row],[Measure Selection]]=\"\"),0,ROUND((ProjectInfoTable[[#This Row],[Fixture kWh (Existing, Actual)]]-ProjectInfoTable[[#This Row],[Fixture kWh (Proposed)]])*IF(VALUE(SpaceTypesInfo_Table[[#Totals],[HVAC Effects]])=0,1,1+VALUE(SpaceTypesInfo_Table[[#Totals],[HVAC Effects]])),0)),\"\")","v":""},{"$f":"IFERROR(IF(ProjectInfoTable[[#This Row],[Control kWh (Proposed)]]=\"Controls Only\",ROUND(IFERROR(INDEX(OperatingHours_List,MATCH(ProjectInfoTable[[#This Row],[OpSch]],OperatingSchedules_List,0))*IF(OR(ProjectType <> \"Retrofit\",ProjectInfoTable[[#This Row],[Space W (Proposed)]]>0),ProjectInfoTable[[#This Row],[Space W (Proposed)]],ProjectInfoTable[[#This Row],[Space W (Existing, Actual)]])/1000*(IFERROR(INDEX(ControlsLookup[],MATCH(RIGHT(ProjectInfoTable[[#This Row],[Proposed Equipment]],LEN(ProjectInfoTable[[#This Row],[Proposed Equipment]])-FIND(\"]\",ProjectInfoTable[[#This Row],[Proposed Equipment]],1)-3),ControlsLookup[Controls],0),MATCH(\"CSF_\"&ProjectState,ControlsLookup[#Headers],0)),0))*IF(VALUE(SpaceTypesInfo_Table[[#Totals],[HVAC Effects]])=0,1,1+VALUE(SpaceTypesInfo_Table[[#Totals],[HVAC Effects]])),\"\"),0),ROUND(IFERROR((ProjectInfoTable[[#This Row],[Control kWh (Existing, Actual)]]-ProjectInfoTable[[#This Row],[Control kWh (Proposed)]])*IF(VALUE(SpaceTypesInfo_Table[[#Totals],[HVAC Effects]])=0,1,1+VALUE(SpaceTypesInfo_Table[[#Totals],[HVAC Effects]])),\"\"),0)),\"\")","v":""},{"$f":"IF(OR(ProjectInfoTable[[#This Row],[Proposed Equipment]]=\"\",ProjectInfoTable[[#This Row],[Quantity (Proposed)]]=\"\"),\"\",IF(ProjectInfoTable[[#This Row],[Fixture Measure]]=\"\",0,IF(AND(ProjectInfoTable[[#This Row],[Incentives Per Unit]]=0,INDEX(StipulatedSavingsYesNo_Table[Stipulated Savings?],MATCH(ProjectState,StipulatedSavingsYesNo_Table[State],0))=\"No\"),0,ProjectInfoTable[[#This Row],[Total   kWh/yr Savings (Actual)]]-ProjectInfoTable[[#This Row],[Control Measure kWh/yr Savings (Actual)]])))","v":""},{"$f":"IF(OR(ProjectInfoTable[[#This Row],[Proposed Equipment]]=\"\",ProjectInfoTable[[#This Row],[Quantity (Proposed)]]=\"\"),\"\",IF(ProjectInfoTable[[#This Row],[Control Measure]]=\"\",0,ProjectInfoTable[[#This Row],[Control kWh/yr Savings (Actual)]]))","v":""},{"$f":"IF(AND(ProjectInfoTable[[#This Row],[Incentives Per Unit]]=0,INDEX(StipulatedSavingsYesNo_Table[Stipulated Savings?],MATCH(ProjectState,StipulatedSavingsYesNo_Table[State],0))=\"No\"),ProjectInfoTable[[#This Row],[Fixture kWh/yr Savings (Actual)]]+IF(ProjectInfoTable[[#This Row],[Control Measure kWh/yr Savings (Actual)]]=0,0,ProjectInfoTable[[#This Row],[Control kWh/yr Savings (Actual)]]),IF(AND(ProjectInfoTable[[#This Row],[Fixture kWh/yr Savings (Actual)]]=\"\",ProjectInfoTable[[#This Row],[Control kWh/yr Savings (Actual)]]=\"\"),\"\",ROUND(IF(ProjectInfoTable[[#This Row],[Fixture kWh/yr Savings (Actual)]]=\"\",0,ProjectInfoTable[[#This Row],[Fixture kWh/yr Savings (Actual)]])+IF(ProjectInfoTable[[#This Row],[Control kWh/yr Savings (Actual)]]=\"\",0,ProjectInfoTable[[#This Row],[Control kWh/yr Savings (Actual)]])-IF(ProjectInfoTable[[#This Row],[Midstream Measure Name]]<>\"\",IFERROR(ProjectInfoTable[[#This Row],[kWh Per Unit (Midstream)]]*ProjectInfoTable[[#This Row],[Quantity]]*ProjectInfoTable[[#This Row],[No. of TRL Units]],0),0),0)))","v":""},{"$f":"IFERROR(IF(OR(ProjectInfoTable[[#This Row],[Measure Selection]]=\"\",ProjectInfoTable[[#This Row],[ControlsOnly]]=\"Re-Commissioning\"),0,IF(AND(ProjectInfoTable[[#This Row],[Incentives Per Unit]]=0,INDEX(StipulatedSavingsYesNo_Table[Stipulated Savings?],MATCH(ProjectState,StipulatedSavingsYesNo_Table[State],0))=\"No\"),0,IF(ISNUMBER(FIND(\"Controls Only\",ProjectInfoTable[[#This Row],[Proposed Equipment]],1)),0,ROUND((ProjectInfoTable[[#This Row],[Fixture kWh (Existing, Stipulated)]]-ProjectInfoTable[[#This Row],[Fixture kWh (Proposed)]])*IF(VALUE(SpaceTypesInfo_Table[[#Totals],[HVAC Effects]])=0,1,1+VALUE(SpaceTypesInfo_Table[[#Totals],[HVAC Effects]])),0)))),\"\")","v":""},{"$f":"IFERROR(IF(ProjectInfoTable[[#This Row],[Control kWh (Proposed)]]=\"Controls Only\",ROUND(IFERROR(INDEX(OperatingHours_List,MATCH(ProjectInfoTable[[#This Row],[OpSch]],OperatingSchedules_List,0))*IF(OR(ProjectType <> \"Retrofit\",ProjectInfoTable[[#This Row],[Space W (Proposed)]]>0),ProjectInfoTable[[#This Row],[Space W (Proposed)]],ProjectInfoTable[[#This Row],[Space W (Existing, Stipulated)]])/1000*(IFERROR(INDEX(ControlsLookup[],MATCH(RIGHT(ProjectInfoTable[[#This Row],[Proposed Equipment]],LEN(ProjectInfoTable[[#This Row],[Proposed Equipment]])-FIND(\"]\",ProjectInfoTable[[#This Row],[Proposed Equipment]],1)-3),ControlsLookup[Controls],0),MATCH(\"CSF_\"&ProjectState,ControlsLookup[#Headers],0)),0))*IF(VALUE(SpaceTypesInfo_Table[[#Totals],[HVAC Effects]])=0,1,1+VALUE(SpaceTypesInfo_Table[[#Totals],[HVAC Effects]])),\"\"),0),ROUND(IFERROR((ProjectInfoTable[[#This Row],[Control kWh (Existing, Stipulated)]]-ProjectInfoTable[[#This Row],[Control kWh (Proposed)]])*IF(VALUE(SpaceTypesInfo_Table[[#Totals],[HVAC Effects]])=0,1,1+VALUE(SpaceTypesInfo_Table[[#Totals],[HVAC Effects]])),INDEX(ControlsLookup[],MATCH(RIGHT(ProjectInfoTable[[#This Row],[Proposed Equipment]],LEN(ProjectInfoTable[[#This Row],[Proposed Equipment]])-FIND(\"-\",ProjectInfoTable[[#This Row],[Proposed Equipment]],LEN(ProjectInfoTable[[#This Row],[Proposed Equipment]])-15)-1),ControlsLookup[Controls],0),MATCH(\"CSF_\"&ProjectState,ControlsLookup[#Headers],0))*IF(NOT(ISNUMBER(VALUE(ProjectInfoTable[[#This Row],[kWh Per Unit]]))),ProjectInfoTable[[#This Row],[Fixture kWh/yr Savings (Stipulated)]],ProjectInfoTable[[#This Row],[kWh Per Unit]]*ProjectInfoTable[[#This Row],[Quantity]]*ProjectInfoTable[[#This Row],[No. of TRL Units]])),0)),IF(OR(ProjectType=\"New Construction\",ProjectType=\"Major Renovation\"),IF(ProjectInfoTable[[#This Row],[Control kWh (Proposed)]]=\"\",\"\",0),\"\"))","v":""},{"$f":"IF(OR(ProjectInfoTable[[#This Row],[Proposed Equipment]]=\"\",ProjectInfoTable[[#This Row],[Quantity (Proposed)]]=\"\"),\"\",IF(ProjectInfoTable[[#This Row],[Fixture Measure]]=\"\",0,IF(AND(ProjectInfoTable[[#This Row],[Incentives Per Unit]]=0,INDEX(StipulatedSavingsYesNo_Table[Stipulated Savings?],MATCH(ProjectState,StipulatedSavingsYesNo_Table[State],0))=\"No\"),0,ProjectInfoTable[[#This Row],[Total   kWh/yr Savings (Stipulated)]]-ProjectInfoTable[[#This Row],[Control Measure kWh/yr Savings (Stipulated)]])))","v":""},{"$f":"IF(OR(ProjectInfoTable[[#This Row],[Proposed Equipment]]=\"\",ProjectInfoTable[[#This Row],[Quantity (Proposed)]]=\"\"),\"\",IF(ProjectInfoTable[[#This Row],[Control Measure]]=\"\",0,IF(OR(ProjectType=\"New Construction\",ProjectType=\"Major Renovation\"),IFERROR(ROUND(ProjectInfoTable[[#This Row],[Control kWh Per Unit]]*ProjectInfoTable[[#This Row],[Control Quantity]]*ProjectInfoTable[[#This Row],[Control No. of TRL Units]],0),ProjectInfoTable[[#This Row],[Control kWh/yr Savings (Stipulated)]]),ProjectInfoTable[[#This Row],[Control kWh/yr Savings (Stipulated)]])))","v":""},{"$f":"IF(AND(ProjectInfoTable[[#This Row],[Incentives Per Unit]]=0,INDEX(StipulatedSavingsYesNo_Table[Stipulated Savings?],MATCH(ProjectState,StipulatedSavingsYesNo_Table[State],0))=\"No\"),ProjectInfoTable[[#This Row],[Fixture kWh/yr Savings (Stipulated)]]+IF(ProjectInfoTable[[#This Row],[Control Measure kWh/yr Savings (Stipulated)]]=0,0,ProjectInfoTable[[#This Row],[Control kWh/yr Savings (Stipulated)]]),IF(OR(ISNUMBER(VALUE(ProjectInfoTable[[#This Row],[kWh Per Unit]])),ISNUMBER(VALUE(ProjectInfoTable[[#This Row],[Control kWh Per Unit]]))),ROUND(IFERROR(ProjectInfoTable[[#This Row],[kWh Per Unit]]*ProjectInfoTable[[#This Row],[Quantity]]*ProjectInfoTable[[#This Row],[No. of TRL Units]],0)+IFERROR(ProjectInfoTable[[#This Row],[Control kWh Per Unit]]*ProjectInfoTable[[#This Row],[Control Quantity]]*ProjectInfoTable[[#This Row],[Control No. of TRL Units]],ProjectInfoTable[[#This Row],[Control kWh/yr Savings (Stipulated)]]),0),IF(AND(ProjectInfoTable[[#This Row],[Fixture kWh/yr Savings (Stipulated)]]=\"\",ProjectInfoTable[[#This Row],[Control kWh/yr Savings (Stipulated)]]=\"\"),\"\",ROUND(IF(ProjectInfoTable[[#This Row],[Fixture kWh/yr Savings (Stipulated)]]=\"\",0,ProjectInfoTable[[#This Row],[Fixture kWh/yr Savings (Stipulated)]])+IF(ProjectInfoTable[[#This Row],[Control kWh/yr Savings (Stipulated)]]=\"\",0,ProjectInfoTable[[#This Row],[Control kWh/yr Savings (Stipulated)]])-IF(ProjectInfoTable[[#This Row],[Midstream Measure Name]]<>\"\",IFERROR(ProjectInfoTable[[#This Row],[kWh Per Unit (Midstream)]]*ProjectInfoTable[[#This Row],[Quantity]]*ProjectInfoTable[[#This Row],[No. of TRL Units]],0),0),0))))","v":""},{"$f":"IF(OR(ISNUMBER(FIND(\"Midstream\",ProjectInfoTable[[#This Row],[Fixture Measure]])),ISNUMBER(FIND(\"SBDI\",ProjectInfoTable[[#This Row],[Fixture Measure]])),ISNUMBER(FIND(\"Small Bu\",ProjectInfoTable[[#This Row],[Fixture Measure]]))),\n\nIF(ProjectInfoTable[[#This Row],[Measure Selection]]=\"\",0,\n\nIF(ISNUMBER(FIND(\"/U]\",ProjectInfoTable[[#This Row],[Proposed Equipment]])),IFERROR(MID(ProjectInfoTable[[#This Row],[Proposed Equipment]],FIND(\"$\",ProjectInfoTable[[#This Row],[Proposed Equipment]],1)+1,FIND(\"/U]\",ProjectInfoTable[[#This Row],[Proposed Equipment]],1)-FIND(\"$\",ProjectInfoTable[[#This Row],[Proposed Equipment]],1)-1)*ProjectInfoTable[[#This Row],[Lamps (Proposed)]]*ProjectInfoTable[[#This Row],[Quantity (Proposed)]],0),\nIF(ISNUMBER(FIND(\"/U \",ProjectInfoTable[[#This Row],[Proposed Equipment]])),IFERROR(MID(ProjectInfoTable[[#This Row],[Proposed Equipment]],FIND(\"$\",ProjectInfoTable[[#This Row],[Proposed Equipment]],1)+1,FIND(\"/U \",ProjectInfoTable[[#This Row],[Proposed Equipment]],1)-FIND(\"$\",ProjectInfoTable[[#This Row],[Proposed Equipment]],1)-1)*ProjectInfoTable[[#This Row],[Lamps (Proposed)]]*ProjectInfoTable[[#This Row],[Quantity (Proposed)]],0),\nIFERROR(ProjectInfoTable[[#This Row],[Fixture Measure kWh/yr Savings (Stipulated)]]/SUM(ProjectInfoTable[Total   kWh/yr Savings (Stipulated)])*ProjectCost_Total,\"\")))),\"\")","v":""},{"$f":"IFERROR(IF(ProjectInfoTable[[#This Row],[Fixture Measure kWh/yr Savings (Stipulated)]]=0,0,IF(ProjectType=\"Retrofit\",IF(OR(ISNUMBER(FIND(\"Midstream\",ProjectInfoTable[[#This Row],[Fixture Measure]])),ISNUMBER(FIND(\"SBDI\",ProjectInfoTable[[#This Row],[Fixture Measure]])),ISNUMBER(FIND(\"Small Bu\",ProjectInfoTable[[#This Row],[Fixture Measure]]))),ProjectInfoTable[[#This Row],[Measure Cost (Direct)]],IFERROR(ProjectInfoTable[[#This Row],[Fixture Measure kWh/yr Savings (Stipulated)]]/kWhSavings_Typical_Stipulated*(ProjectCost_Total-SUM(ProjectInfoTable[Measure Cost (Direct)])),\"\")),IF(ProjectInfoTable[[#This Row],[Proposed Equipment]]=\"\",\"\",IFERROR(SpaceTypesInfo_Table[[#Totals],[NCMR Int Cost]]*ProjectInfoTable[[#This Row],[Fixture Measure kWh/yr Savings (Stipulated)]]/SUMIFS(ProjectInfoTable[Total   kWh/yr Savings (Stipulated)],ProjectInfoTable[Proposed Equipment],\"*Interior*\"),0)))),\"\")","v":""},{"$f":"IFERROR(\n IF(\n  ProjectInfoTable[[#This Row],[Control Measure kWh/yr Savings (Stipulated)]]=0,\n  0,\n  IF(\n   ProjectType=\"Retrofit\",\n    IFERROR(\n     ProjectInfoTable[[#This Row],[Control Measure kWh/yr Savings (Stipulated)]]\n     /\n     SUMIFS(ProjectInfoTable[Control Measure kWh/yr Savings (Stipulated)],ProjectInfoTable[Control Measure],\"<>\"\"\")\n     *\n     (ProjectCost_Total-SUM(ProjectInfoTable[Fixture Cost (Allocated)])),\n     \"\"\n    ),\nROUND(\n    IF(\n     ProjectInfoTable[[#This Row],[Proposed Equipment]]=\"\",\n     \"\",\n     IFERROR(\n      SpaceTypesInfo_Table[[#Totals],[NCMR Int Cost]]\n      *\n      ProjectInfoTable[[#This Row],[Control Measure kWh/yr Savings (Stipulated)]]\n      /\n      SUMIFS(ProjectInfoTable[Total   kWh/yr Savings (Stipulated)],ProjectInfoTable[Proposed Equipment],\"*Interior*\"),\n      0\n     )\n    ),\n    2\n   )\n  )\n ),\n \"\"\n)","v":""},{"$f":"IF(AND(ProjectInfoTable[[#This Row],[Fixture Cost (Allocated)]]=\"\",ProjectInfoTable[[#This Row],[Control Cost (Allocated)]]=\"\"),\"\",SUM(ProjectInfoTable[[#This Row],[Fixture Cost (Allocated)]:[Control Cost (Allocated)]]))","v":""},{"$f":"IFERROR(IF(OR(ProjectInfoTable[[#This Row],[Proposed Equipment]]=\"\",ProjectInfoTable[[#This Row],[Quantity (Proposed)]]=\"\"),\"\",IF(OR(ProjectInfoTable[[#This Row],[Measure Selection]]=\"\",ProjectInfoTable[[#This Row],[Control kWh (Proposed)]]=\"Controls Only\"),0,IF(NOT(ISNUMBER(FIND(\"Retrofit\",ProjectType,1))),ProjectInfoTable[[#This Row],[Fixture Energy Cost Savings (Stipulated)]],IF(AND(ProjectInfoTable[[#This Row],[Fixture Measure]]=\"\",ProjectInfoTable[[#This Row],[Control Measure]]<>\"\"),0,ROUND((ProjectInfoTable[[#This Row],[Total Energy Costs (Existing, Actual)]]-ProjectInfoTable[[#This Row],[Total Energy Costs (Proposed)]]),2))))),\"\")","v":""},{"$f":"IFERROR(IF(OR(ProjectInfoTable[[#This Row],[Proposed Equipment]]=\"\",ProjectInfoTable[[#This Row],[Quantity (Proposed)]]=\"\"),\"\",\n\nIF(ProjectInfoTable[[#This Row],[Control kWh (Proposed)]]=\"Controls Only\",ProjectInfoTable[[#This Row],[Control Measure kWh/yr Savings (Actual)]]*INDEX(INDIRECT(\"RateSchedules_\"&ProjectState&\"_Table[kWh Rate]\"),\nMATCH(RateSchedule,INDIRECT(\"RateSchedules_\"&ProjectState&\"_Table[Rate Schedule]\"),0)),\n\nIF(NOT(ISNUMBER(FIND(\"Retrofit\",ProjectType,1))),ProjectInfoTable[[#This Row],[Control Energy Cost Savings (Stipulated)]],IF(AND(ProjectInfoTable[[#This Row],[Fixture Measure]]=\"\",ProjectInfoTable[[#This Row],[Control Measure]]<>\"\"),ROUND((ProjectInfoTable[[#This Row],[Total Energy Costs (Existing, Actual)]]-ProjectInfoTable[[#This Row],[Total Energy Costs (Proposed)]]),2),ROUND((ProjectInfoTable[[#This Row],[Total Energy Costs (Existing, Actual)]]-ProjectInfoTable[[#This Row],[Total Energy Costs (Proposed)]]),2)*(ProjectInfoTable[[#This Row],[Control Measure kWh/yr Savings (Actual)]]/ProjectInfoTable[[#This Row],[Total   kWh/yr Savings (Actual)]]))))),\"\")","v":""},{"$f":"IF(OR(ProjectInfoTable[[#This Row],[Proposed Equipment]]=\"\",ProjectInfoTable[[#This Row],[Quantity (Proposed)]]=\"\"),\"\",ROUND(ProjectInfoTable[[#This Row],[Fixture Energy Cost Savings (Actual)]]+ProjectInfoTable[[#This Row],[Control Energy Cost Savings (Actual)]],2))","v":""},{"$f":"IF(OR(ProjectInfoTable[[#This Row],[Proposed Equipment]]=\"\",ProjectInfoTable[[#This Row],[Quantity (Proposed)]]=\"\"),\"\",IF(OR(ISNUMBER(VALUE(ProjectInfoTable[[#This Row],[kWh Per Unit]])),ISNUMBER(VALUE(ProjectInfoTable[[#This Row],[kW Per Unit]]))),IFERROR(ProjectInfoTable[[#This Row],[Fixture Measure kWh/yr Savings (Stipulated)]]*INDEX(INDIRECT(\"RateSchedules_\"&ProjectState&\"_Table[kWh Rate]\"),MATCH(RateSchedule,INDIRECT(\"RateSchedules_\"&ProjectState&\"_Table[Rate Schedule]\"),0)),0)+IFERROR(ProjectInfoTable[[#This Row],[kW Demand Reduction (Stipulated)]]/1000*12*INDEX(INDIRECT(\"RateSchedules_\"&ProjectState&\"_Table[kW Rate]\"),MATCH(RateSchedule,INDIRECT(\"RateSchedules_\"&ProjectState&\"_Table[Rate Schedule]\"),0)),0),IFERROR(ROUND((ProjectInfoTable[[#This Row],[Total Energy Costs (Existing, Stipulated)]]-ProjectInfoTable[[#This Row],[Total Energy Costs (Proposed)]])*ProjectInfoTable[[#This Row],[Fixture Measure kWh/yr Savings (Stipulated)]]/ProjectInfoTable[[#This Row],[Total   kWh/yr Savings (Stipulated)]],2),0)))","v":""},{"$f":"IF(OR(ProjectInfoTable[[#This Row],[Proposed Equipment]]=\"\",ProjectInfoTable[[#This Row],[Quantity (Proposed)]]=\"\"),\"\",\nIF(ProjectInfoTable[[#This Row],[Control kWh (Proposed)]]=\"Controls Only\",ProjectInfoTable[[#This Row],[Control Measure kWh/yr Savings (Stipulated)]]*INDEX(INDIRECT(\"RateSchedules_\"&ProjectState&\"_Table[kWh Rate]\"),\nMATCH(RateSchedule,INDIRECT(\"RateSchedules_\"&ProjectState&\"_Table[Rate Schedule]\"),0)),IF(OR(ISNUMBER(VALUE(ProjectInfoTable[[#This Row],[Control kWh Per Unit]])),\nISNUMBER(VALUE(ProjectInfoTable[[#This Row],[Control kW Per Unit]]))),IFERROR(ProjectInfoTable[[#This Row],[Control Measure kWh/yr Savings (Stipulated)]]*INDEX(INDIRECT(\"RateSchedules_\"&ProjectState&\"_Table[kWh Rate]\"),\nMATCH(RateSchedule,INDIRECT(\"RateSchedules_\"&ProjectState&\"_Table[Rate Schedule]\"),0)),0)+IFERROR(ProjectInfoTable[[#This Row],[kW Demand Reduction (Stipulated)]]/1000*12*\nINDEX(INDIRECT(\"RateSchedules_\"&ProjectState&\"_Table[kW Rate]\"),MATCH(RateSchedule,INDIRECT(\"RateSchedules_\"&ProjectState&\"_Table[Rate Schedule]\"),0)),0),\nIFERROR(ROUND((ProjectInfoTable[[#This Row],[Total Energy Costs (Existing, Stipulated)]]-ProjectInfoTable[[#This Row],[Total Energy Costs (Proposed)]])*ProjectInfoTable[[#This Row],[Control Measure kWh/yr Savings (Stipulated)]]/\nProjectInfoTable[[#This Row],[Total   kWh/yr Savings (Stipulated)]],2),0))))","v":""},{"$f":"IF(OR(ProjectInfoTable[[#This Row],[Proposed Equipment]]=\"\",ProjectInfoTable[[#This Row],[Quantity (Proposed)]]=\"\"),\"\",ROUND(ProjectInfoTable[[#This Row],[Fixture Energy Cost Savings (Stipulated)]]+ProjectInfoTable[[#This Row],[Control Energy Cost Savings (Stipulated)]],2))","v":""},{"$f":"IF(ProjectInfoTable[[#This Row],[OpSch]]=\"\",\"\",IF(OR(ProjectInfoTable[[#This Row],[Fixture Measure]]=\"\",ProjectInfoTable[[#This Row],[Eligible Fixture Measure]]<>TRUE),0,ProjectInfoTable[[#This Row],[Fixture Incentives (pre-capping)]])+IF(OR(ProjectInfoTable[[#This Row],[Control Measure]]=\"\",ProjectInfoTable[[#This Row],[Eligible Control Measure]]<>TRUE),0,ProjectInfoTable[[#This Row],[Control Incentives (pre-capping)]]))","v":""},{"$f":"IF(OR(ProjectInfoTable[[#This Row],[Fixture Measure]]<>\"\",ProjectInfoTable[[#This Row],[Control Measure]]<>\"\"),IF(ProjectInfoTable[[#This Row],[Fixture Incentives]]=\"\",0,ProjectInfoTable[[#This Row],[Fixture Incentives]])+IF(ProjectInfoTable[[#This Row],[Control Incentives]]=\"\",0,ProjectInfoTable[[#This Row],[Control Incentives]]),\"\")","v":""},null,{"$f":"IF(OR(ProjectInfoTable[[#This Row],[Fixture Measure]]=\"\",ProjectInfoTable[[#This Row],[OpSch]]=\"\",ProjectInfoTable[[#This Row],[Eligible Fixture Measure]]<>TRUE),\"\",\nIF(OR(ISNUMBER(FIND(\"SBDI\",ProjectInfoTable[[#This Row],[Fixture Measure]])),ISNUMBER(FIND(\"Small Bu\",ProjectInfoTable[[#This Row],[Fixture Measure]]))),IFERROR(0.75*ProjectInfoTable[[#This Row],[Fixture Cost (Allocated)]],\"cost error\"),\nIF(AND(OR(ProjectType=\"New Construction\",ProjectType=\"Major Renovation\"),LPDCodeToProposed<0.1,ISNUMBER(FIND(\"Interior\",ProjectInfoTable[[#This Row],[Proposed Equipment]],1))),0,IFERROR(ProjectInfoTable[[#This Row],[Incentives Per Unit]]*ProjectInfoTable[[#This Row],[Quantity]]*ProjectInfoTable[[#This Row],[No. of TRL Units]],\"TRL Error\"))))","v":""},{"$f":"IF(\n    OR(\n        ProjectInfoTable[[#This Row],[Fixture Measure]] = \"\",\n        ProjectInfoTable[[#This Row],[OpSch]] = \"\",\n        ProjectInfoTable[[#This Row],[Eligible Fixture Measure]] <> TRUE\n    ),\n    \"\",\n    IF(\n        OR(\n            ISNUMBER(FIND(\"SBDI\", ProjectInfoTable[[#This Row],[Fixture Measure]])),\n            ISNUMBER(FIND(\"Small Bu\", ProjectInfoTable[[#This Row],[Fixture Measure]]))\n        ),\n        IFERROR(\n            (Incentive_NonTypical / Incentive_NonTypical_PreCapped) * ProjectInfoTable[[#This Row],[Fixture Incentives (pre-capping)]],\n            \"\"\n        ),\n        IF(\n            AND(\n                ProjectType = \"Retrofit\",\n                ProjectState = \"UT\",\n                ISNUMBER(FIND(\"Post-Purchase\", ProjectInfoTable[[#This Row],[Fixture Measure]], 1))\n            ),\n            IFERROR(\n                MAX(\n                    MIN(\n                        ProjectInfoTable[[#This Row],[Fixture Incentives (pre-capping)]],\n                        ProjectInfoTable[[#This Row],[Fixture Cost (Allocated)]] * 0.7\n                    ),\n                    0\n                ),\n                0\n            ),\n            IF(\n                ProjectType = \"Retrofit\",\n                IF(\n                    ISNUMBER(FIND(\"Post-Purchase\", ProjectInfoTable[[#This Row],[Fixture Measure]], 1)),\n                    ProjectInfoTable[[#This Row],[Fixture Incentives (pre-capping)]],\n                    IFERROR(\n                        $BI$3 / $BH$3 * ProjectInfoTable[[#This Row],[Fixture Incentives (pre-capping)]],\n                        \"\"\n                    )\n                ),\n                IF(\n                    ISNUMBER(FIND(\"Interior\", ProjectInfoTable[[#This Row],[Proposed Equipment]], 1)),\n                    IF(\n                        LPDCodeToProposed > 0.1,\n                        ProjectInfoTable[[#This Row],[Fixture Incentives (pre-capping)]],\n                        0\n                    ),\n                    ProjectInfoTable[[#This Row],[Fixture Incentives (pre-capping)]]\n                )\n            )\n        )\n    )\n)","v":""},{"$f":"IF(OR(ProjectInfoTable[[#This Row],[Incentives Per Unit]]=\"\",ProjectInfoTable[[#This Row],[TRL Unit]]=\"\"),\"\",IF(ProjectInfoTable[[#This Row],[Eligible Fixture Measure]]<>TRUE,\"Invalid Effective Date\",\nIF(OR(ISNUMBER(FIND(\"SBDI\",ProjectInfoTable[[#This Row],[Fixture Measure]])),ISNUMBER(FIND(\"Small Bu\",ProjectInfoTable[[#This Row],[Fixture Measure]]))),\"$0.75 / dollar cost\",\nTEXT(ProjectInfoTable[[#This Row],[Incentives Per Unit]],\"$#,##0.00\")&\" / \"&IF(ProjectInfoTable[[#This Row],[Fixture Measure]]=\"\",\"\",IF(ProjectInfoTable[[#This Row],[TRL Unit]]=\"Measure\",IF(ISNUMBER(FIND(\"Relamp\",ProjectInfoTable[[#This Row],[Proposed Equipment]],1)),\"Lamp\",\"Fixture\"),ProjectInfoTable[[#This Row],[TRL Unit]])))))","v":""},{"$f":"IF(OR(ProjectInfoTable[[#This Row],[Proposed Equipment]]=\"\",ProjectInfoTable[[#This Row],[Quantity (Proposed)]]=\"\"),\"\",IFERROR(SUBSTITUTE(IF(ProjectType=\"Retrofit\",IF(OR(ISNUMBER(FIND(\"Controls On\",ProjectInfoTable[[#This Row],[Proposed Equipment]],1))),\"\",IF(OR(ProjectInfoTable[[#This Row],[Existing Equipment]]=\"\",ProjectInfoTable[[#This Row],[Proposed Equipment]]=\"\"),\"\",IF(ProjectState=\"UT\",IFERROR(IF(AlternativeEnergyOverride=\"Yes\",IFERROR(INDEX(INDIRECT(\"EquipmentTable_\"&\"Retrofit_\"&ProjectState&\"[#All]\"),MATCH(LEFT(ProjectInfoTable[[#This Row],[Proposed Equipment]],FIND(\"[\",ProjectInfoTable[[#This Row],[Proposed Equipment]],1)-2)&\" (Alt)\",INDIRECT(\"EquipmentTable_\"&\"Retrofit_\"&ProjectState&\"[equipmentProposed]\"),0)+1,MATCH(\"measureRetrofit_\"&LEFT(ProjectInfoTable[[#This Row],[Existing Equipment]],FIND(\":\",ProjectInfoTable[[#This Row],[Existing Equipment]],1)-1)&\"_\"&IF(IFERROR(INDEX(ControlsLookup[Rank],MATCH(RIGHT(ProjectInfoTable[[#This Row],[Proposed Equipment]],LEN(ProjectInfoTable[[#This Row],[Proposed Equipment]])-FIND(\"]\",ProjectInfoTable[[#This Row],[Proposed Equipment]],1)-3),ControlsLookup[Controls],0)),0)>IFERROR(INDEX(ControlsLookup[Rank],MATCH(RIGHT(ProjectInfoTable[[#This Row],[Existing Equipment]],LEN(ProjectInfoTable[[#This Row],[Existing Equipment]])-FIND(\"]\",ProjectInfoTable[[#This Row],[Existing Equipment]],1)-3),ControlsLookup[Controls],0)),0),INDEX(ControlsLookup[Controls Type],MATCH(LEFT(ProjectInfoTable[[#This Row],[Existing Equipment]],FIND(\":\",ProjectInfoTable[[#This Row],[Existing Equipment]],1)-1)&\"_\"&RIGHT(ProjectInfoTable[[#This Row],[Proposed Equipment]],LEN(ProjectInfoTable[[#This Row],[Proposed Equipment]])-FIND(\"]\",ProjectInfoTable[[#This Row],[Proposed Equipment]],1)-3),ControlsLookup[Controls Concatenate],0)),\"None\"),INDIRECT(\"EquipmentTable_\"&\"Retrofit_\"&ProjectState&\"[#Headers]\"),0)),INDEX(INDIRECT(\"EquipmentTable_\"&IF(ProjectType=\"Retrofit\",\"Retrofit_\",\"NCMR_\")&ProjectState&\"[#All]\"),MATCH(LEFT(ProjectInfoTable[[#This Row],[Proposed Equipment]],FIND(\"[\",ProjectInfoTable[[#This Row],[Proposed Equipment]],1)-2),INDIRECT(\"EquipmentTable_\"&\"Retrofit_\"&ProjectState&\"[equipmentProposed]\"),0)+1,MATCH(\"measureRetrofit_\"&LEFT(ProjectInfoTable[[#This Row],[Existing Equipment]],FIND(\":\",ProjectInfoTable[[#This Row],[Existing Equipment]],1)-1)&\"_\"&IF(IFERROR(INDEX(ControlsLookup[Rank],MATCH(RIGHT(ProjectInfoTable[[#This Row],[Proposed Equipment]],LEN(ProjectInfoTable[[#This Row],[Proposed Equipment]])-FIND(\"]\",ProjectInfoTable[[#This Row],[Proposed Equipment]],1)-3),ControlsLookup[Controls],0)),0)>IFERROR(INDEX(ControlsLookup[Rank],MATCH(RIGHT(ProjectInfoTable[[#This Row],[Existing Equipment]],LEN(ProjectInfoTable[[#This Row],[Existing Equipment]])-FIND(\"]\",ProjectInfoTable[[#This Row],[Existing Equipment]],1)-3),ControlsLookup[Controls],0)),0),INDEX(ControlsLookup[Controls Type],MATCH(LEFT(ProjectInfoTable[[#This Row],[Existing Equipment]],FIND(\":\",ProjectInfoTable[[#This Row],[Existing Equipment]],1)-1)&\"_\"&RIGHT(ProjectInfoTable[[#This Row],[Proposed Equipment]],LEN(ProjectInfoTable[[#This Row],[Proposed Equipment]])-FIND(\"]\",ProjectInfoTable[[#This Row],[Proposed Equipment]],1)-3),ControlsLookup[Controls Concatenate],0)),\"None\"),INDIRECT(\"EquipmentTable_\"&IF(ProjectType=\"Retrofit\",\"Retrofit_\",\"NCMR_\")&ProjectState&\"[#Headers]\"),0))),INDEX(INDIRECT(\"EquipmentTable_\"&IF(ProjectType=\"Retrofit\",\"Retrofit_\",\"NCMR_\")&ProjectState&\"[#All]\"),MATCH(LEFT(ProjectInfoTable[[#This Row],[Proposed Equipment]],FIND(\"[\",ProjectInfoTable[[#This Row],[Proposed Equipment]],1)-2),INDIRECT(\"EquipmentTable_\"&IF(ProjectType=\"Retrofit\",\"Retrofit_\",\"NCMR_\")&ProjectState&\"[equipmentProposed]\"),0)+1,MATCH(\"measureRetrofit_\"&IF(AND(SBDEligible=\"Yes\",ISNUMBER(FIND(\"SBE\",ProjectInfoTable[[#This Row],[Proposed Equipment]]))),\"SBE\",LEFT(ProjectInfoTable[[#This Row],[Existing Equipment]],FIND(\":\",ProjectInfoTable[[#This Row],[Existing Equipment]],1)-1)&\"_\"&IF(IFERROR(INDEX(ControlsLookup[Rank],MATCH(RIGHT(ProjectInfoTable[[#This Row],[Proposed Equipment]],LEN(ProjectInfoTable[[#This Row],[Proposed Equipment]])-FIND(\"]\",ProjectInfoTable[[#This Row],[Proposed Equipment]],1)-3),ControlsLookup[Controls],0)),0)>IFERROR(INDEX(ControlsLookup[Rank],MATCH(RIGHT(ProjectInfoTable[[#This Row],[Existing Equipment]],LEN(ProjectInfoTable[[#This Row],[Existing Equipment]])-FIND(\"]\",ProjectInfoTable[[#This Row],[Existing Equipment]],1)-3),ControlsLookup[Controls],0)),0),INDEX(ControlsLookup[Controls Type],MATCH(LEFT(ProjectInfoTable[[#This Row],[Existing Equipment]],FIND(\":\",ProjectInfoTable[[#This Row],[Existing Equipment]],1)-1)&\"_\"&RIGHT(ProjectInfoTable[[#This Row],[Proposed Equipment]],LEN(ProjectInfoTable[[#This Row],[Proposed Equipment]])-FIND(\"]\",ProjectInfoTable[[#This Row],[Proposed Equipment]],1)-3),ControlsLookup[Controls Concatenate],0)),\"None\")),INDIRECT(\"EquipmentTable_\"&\"Retrofit_\"&ProjectState&\"[#Headers]\"),0))),\"Non-eligible fixture - Retrofit - \"&ProjectState),IFERROR(INDEX(INDIRECT(\"EquipmentTable_\"&IF(SiteSpecificOverride=\"Yes\",\"PostPurchase_\",\"Retrofit_\")&ProjectState&\"[#All]\"),MATCH(LEFT(ProjectInfoTable[[#This Row],[Proposed Equipment]],FIND(\"[\",ProjectInfoTable[[#This Row],[Proposed Equipment]],1)-2),INDIRECT(\"EquipmentTable_\"&IF(SiteSpecificOverride=\"Yes\",\"PostPurchase_\",\"Retrofit_\")&ProjectState&\"[equipmentProposed]\"),0)+1,MATCH(\"measureRetrofit_\"&IF(AND(SBDEligible=\"Yes\",ISNUMBER(FIND(\"SBE\",ProjectInfoTable[[#This Row],[Proposed Equipment]]))),\"SBE\",LEFT(ProjectInfoTable[[#This Row],[Existing Equipment]],FIND(\":\",ProjectInfoTable[[#This Row],[Existing Equipment]],1)-1)&\"_\"&IF(IFERROR(INDEX(ControlsLookup[Rank],MATCH(RIGHT(ProjectInfoTable[[#This Row],[Proposed Equipment]],LEN(ProjectInfoTable[[#This Row],[Proposed Equipment]])-FIND(\"]\",ProjectInfoTable[[#This Row],[Proposed Equipment]],1)-3),ControlsLookup[Controls],0)),0)>IFERROR(INDEX(ControlsLookup[Rank],MATCH(RIGHT(ProjectInfoTable[[#This Row],[Existing Equipment]],LEN(ProjectInfoTable[[#This Row],[Existing Equipment]])-FIND(\"]\",ProjectInfoTable[[#This Row],[Existing Equipment]],1)-3),ControlsLookup[Controls],0)),0),INDEX(ControlsLookup[Controls Type],MATCH(LEFT(ProjectInfoTable[[#This Row],[Existing Equipment]],FIND(\":\",ProjectInfoTable[[#This Row],[Existing Equipment]],1)-1)&\"_\"&RIGHT(ProjectInfoTable[[#This Row],[Proposed Equipment]],LEN(ProjectInfoTable[[#This Row],[Proposed Equipment]])-FIND(\"]\",ProjectInfoTable[[#This Row],[Proposed Equipment]],1)-3),ControlsLookup[Controls Concatenate],0)),\"None\")),INDIRECT(\"EquipmentTable_\"&IF(SiteSpecificOverride=\"Yes\",\"PostPurchase_\",\"Retrofit_\")&ProjectState&\"[#Headers]\"),0)),\"Non-eligible fixture - Retrofit - \"&ProjectState)))),IFERROR(INDEX(INDIRECT(\"EquipmentTable_\"&\"NCMR_\"&ProjectState),MATCH(RIGHT(LEFT(ProjectInfoTable[[#This Row],[Proposed Equipment]],FIND(\" (\",ProjectInfoTable[[#This Row],[Proposed Equipment]],1)-1),LEN(LEFT(ProjectInfoTable[[#This Row],[Proposed Equipment]],FIND(\" (\",ProjectInfoTable[[#This Row],[Proposed Equipment]],1)-2))-FIND(\":\",ProjectInfoTable[[#This Row],[Proposed Equipment]],1)),INDIRECT(\"EquipmentTable_\"&\"NCMR_\"&ProjectState&\"[equipmentProposed]\"),0),MATCH(\"measureNCMR_\"&LEFT(ProjectInfoTable[[#This Row],[Proposed Equipment]],FIND(\":\",ProjectInfoTable[[#This Row],[Proposed Equipment]],1)-1)&\"_\"&IF(LEN(ProjectInfoTable[[#This Row],[Proposed Equipment]])>FIND(\"]\",ProjectInfoTable[[#This Row],[Proposed Equipment]]),INDEX(ControlsLookup[Controls Type],MATCH(LEFT(ProjectInfoTable[[#This Row],[Proposed Equipment]],FIND(\":\",ProjectInfoTable[[#This Row],[Proposed Equipment]],1)-1)&\"_\"&RIGHT(ProjectInfoTable[[#This Row],[Proposed Equipment]],LEN(ProjectInfoTable[[#This Row],[Proposed Equipment]])-FIND(\"]\",ProjectInfoTable[[#This Row],[Proposed Equipment]],1)-3),ControlsLookup[Controls Concatenate],0)),\"None\"),INDIRECT(\"EquipmentTable_\"&\"NCMR_\"&ProjectState&\"[#Headers]\"),0)),\"Non-eligible fixture - NCMR - \"&ProjectState)),\"[NAMESUB]\",ProjectInfoTable[[#This Row],[Measure Name Sub]]),\"Non-eligible fixture - Retrofit - \"&ProjectState))","v":""},{"$f":"IF(ISNUMBER(SEARCH(\"Case\",ProjectInfoTable[[#This Row],[Fixture Measure]])),CONCATENATE(ProjectInfoTable[[#This Row],[Fixture Measure]],ProjectInfoTable[[#This Row],[No. of TRL Units]],ProjectInfoTable[[#This Row],[Quantity]]),\"\")","v":""},{"$f":"IF(ProjectInfoTable[[#This Row],[Proposed Equipment]]=\"\",\"\",\nIF(AND(ProjectState = \"UT\",ISNUMBER(FIND(\" TLED \",ProjectInfoTable[[#This Row],[Proposed Equipment]]))),\nIF(VALUE(ProjectInfoTable[[#This Row],[Lamp W (Proposed)]])<20,\"< 20 W\",\nIF(AND(VALUE(ProjectInfoTable[[#This Row],[Lamp W (Proposed)]])<=39,VALUE(ProjectInfoTable[[#This Row],[Lamp W (Proposed)]])>=20),\">= 20 W and <= 39 W\",)),\n\nIF(AND(ProjectType=\"Retrofit\",OR(ISNUMBER(FIND(\"Retrofit Kit\",ProjectInfoTable[[#This Row],[Proposed Equipment]])),ISNUMBER(FIND(\"Fixture\",ProjectInfoTable[[#This Row],[Proposed Equipment]]))),OR(ISNUMBER(FIND(\"Exterior\",ProjectInfoTable[[#This Row],[Existing Equipment]])),ISNUMBER(FIND(\"Street\",ProjectInfoTable[[#This Row],[Existing Equipment]])))),\nIF(ProjectInfoTable[[#This Row],[Fixture W (Proposed)]]<50,\"< 50 W\",\nIF(AND(ProjectInfoTable[[#This Row],[Fixture W (Proposed)]]<90,ProjectInfoTable[[#This Row],[Fixture W (Proposed)]]>=50),\">= 50 W and < 90 W\",\nIF(AND(ProjectInfoTable[[#This Row],[Fixture W (Proposed)]]<135,ProjectInfoTable[[#This Row],[Fixture W (Proposed)]]>=90),\">= 90 W and < 135 W\",\nIF(AND(ProjectInfoTable[[#This Row],[Fixture W (Proposed)]]<220,ProjectInfoTable[[#This Row],[Fixture W (Proposed)]]>=135),\">= 135 W and < 220 W\",\nIF(ProjectInfoTable[[#This Row],[Fixture W (Proposed)]]>=220,\">= 220 W\"))))),\"\")))","v":""},{"$f":"IFERROR(INDEX(INDIRECT(\"MeasureTable_\" & ProjectState & \"[Measure Reference Number]\"),MATCH(ProjectInfoTable[[#This Row],[Fixture Measure]],INDIRECT(\"MeasureTable_\" &ProjectState&\"[Measure Name]\"),0)),\"\")","v":""},{"$f":"IFERROR(\n    _xlfn.LET(\n        _xlpm.filteredVersions,\n            _xlfn._xlws.FILTER(\n                INDIRECT(\"MeasureTable_\" & ProjectState & \"[Version Number]\"),\n                (INDIRECT(\"MeasureTable_\" & ProjectState & \"[Measure Reference Number]\") = ProjectInfoTable[[#This Row],[Fixture Measure Reference Number]]) *\n                (INDIRECT(\"MeasureTable_\" & ProjectState & \"[Eligible Measure]\") = TRUE)\n            ),\n        INDEX(_xlpm.filteredVersions, 1)\n    ),\n    \"\"\n)","v":""},{"$f":"IFERROR(\n  _xlfn.LET(\n    _xlpm.refRange, INDIRECT(\"MeasureTable_\" & ProjectState & \"[Measure Reference Number]\"),\n    _xlpm.eligibleRange, INDIRECT(\"MeasureTable_\" & ProjectState & \"[Eligible Measure]\"),\n    _xlpm.countTrue, SUMPRODUCT(--(_xlpm.refRange = ProjectInfoTable[[#This Row],[Fixture Measure Reference Number]]), --(_xlpm.eligibleRange = TRUE)),\n    _xlpm.countNonBlank, SUMPRODUCT(--(_xlpm.refRange = ProjectInfoTable[[#This Row],[Fixture Measure Reference Number]]), --(_xlpm.eligibleRange <> \"\")),\n    IF(_xlpm.countNonBlank = 0, \"\", IF(_xlpm.countTrue >= 1, TRUE, FALSE))\n  ),\n  \"\"\n)","v":""},{"$f":"IFERROR(VALUE(INDEX(INDIRECT(\"MeasureTable_\" & ProjectState & \"[CustomerIncentiveDollarperunit]\"),MATCH(ProjectInfoTable[[#This Row],[Fixture Measure]]&\" | TRUE\",INDIRECT(\"MeasureTable_\" &ProjectState&\"[MeasureEligibleConcatenate]\"),0))),\"\")","v":""},{"$f":"IFERROR(INDEX(INDIRECT(\"MeasureTable_\"&ProjectState&\"[SiteSpecificCalculation]\"),MATCH(ProjectInfoTable[[#This Row],[Fixture Measure]]&\" | TRUE\",INDIRECT(\"MeasureTable_\" &ProjectState&\"[MeasureEligibleConcatenate]\"),0)),\"\")","v":""},{"$f":"IFERROR(INDEX(INDIRECT(\"MeasureTable_\"&ProjectState&\"[GrossIncrementalAnnualElectricSavings]\"),MATCH(ProjectInfoTable[[#This Row],[Fixture Measure]]&\" | TRUE\",INDIRECT(\"MeasureTable_\" &ProjectState&\"[MeasureEligibleConcatenate]\"),0)),\"\")","v":""},{"$f":"IFERROR(INDEX(INDIRECT(\"MeasureTable_\"&ProjectState&\"[GrossAverageMonthlyDemandReduction]\"),MATCH(ProjectInfoTable[[#This Row],[Fixture Measure]]&\" | TRUE\",INDIRECT(\"MeasureTable_\" &ProjectState&\"[MeasureEligibleConcatenate]\"),0)),\"\")","v":""},{"$f":"IF(ProjectInfoTable[[#This Row],[Fixture Measure]]=\"\",\"\",IF(NOT(ISNUMBER(FIND(\"Site-Specific - Downstream\",ProjectInfoTable[[#This Row],[Fixture Measure]]))),\"\",\nIF(ISNUMBER(MATCH(SUBSTITUTE(ProjectInfoTable[[#This Row],[Fixture Measure]],\"Site-Specific - Downstream - v2\",\"Mid Market\"),INDIRECT(\"MeasureTable_\"&ProjectState&\"[Measure Name]\"),0)),\nSUBSTITUTE(ProjectInfoTable[[#This Row],[Fixture Measure]],\"Site-Specific - Downstream - v2\",\"Mid Market\"),\nSUBSTITUTE(ProjectInfoTable[[#This Row],[Fixture Measure]],\"Site-Specific - Downstream\",\"Mid Market\"))\n))","v":""},{"$f":"IF(ProjectInfoTable[[#This Row],[Midstream Measure Name]]=\"\",\"\",IFERROR(INDEX(INDIRECT(\"MeasureTable_\"&ProjectState&\"[GrossIncrementalAnnualElectricSavings ]\"),MATCH(ProjectInfoTable[[#This Row],[Midstream Measure Name]]&\" | TRUE\",INDIRECT(\"MeasureTable_\" &ProjectState&\"[MeasureEligibleConcatenate]\"),0)),\"\"))","v":""},{"$f":"IF(ProjectInfoTable[[#This Row],[Midstream Measure Name]]=\"\",\"\",IFERROR(INDEX(INDIRECT(\"MeasureTable_\"&ProjectState&\"[GrossAverage onthly emand eduction]\"),MATCH(ProjectInfoTable[[#This Row],[Midstream Measure Name]]&\" | TRUE\",INDIRECT(\"MeasureTable_\" &ProjectState&\"[MeasureEligibleConcatenate]\"),0)),\"\"))","v":""},{"$f":"IFERROR(INDEX(INDIRECT(\"MeasureTable_\"&ProjectState&\"[IncrementalMeasureCost]\"),MATCH(ProjectInfoTable[[#This Row],[Fixture Measure]]&\" | TRUE\",INDIRECT(\"MeasureTable_\" &ProjectState&\"[MeasureEligibleConcatenate]\"),0)),\"\")","v":""},{"$f":"IF(ProjectInfoTable[[#This Row],[Fixture Measure]]=\"\",\"\",IF(AND(ProjectState=\"UT\",ProjectInfoTable[[#This Row],[Measure Selection]]=\"\"),0,\nIF(OR(ISNUMBER(FIND(\"SBDI\",ProjectInfoTable[[#This Row],[Fixture Measure]])),ISNUMBER(FIND(\"Small Bu\",ProjectInfoTable[[#This Row],[Fixture Measure]]))),ProjectInfoTable[[#This Row],[Quantity (Proposed)]]*ProjectInfoTable[[#This Row],[Lamps (Proposed)]],\nIF(OR(ProjectInfoTable[[#This Row],[TRL Unit]]=\"Measure\",ProjectInfoTable[[#This Row],[TRL Unit]]=\"Linear ft.\"),IF(OR(ISNUMBER(FIND(\"Lamp\",ProjectInfoTable[[#This Row],[Fixture Measure]],1)),ISNUMBER(FIND(\"Relamp\",ProjectInfoTable[[#This Row],[Fixture Measure]],1)),ISNUMBER(FIND(\"Relamp\",ProjectInfoTable[[#This Row],[Proposed Equipment]],1))),ProjectInfoTable[[#This Row],[Quantity (Proposed)]]*ProjectInfoTable[[#This Row],[Lamps (Proposed)]],ProjectInfoTable[[#This Row],[Quantity (Proposed)]]),1))))","v":""},{"$f":"IF(ProjectInfoTable[[#This Row],[Fixture Measure]]=\"\",\"\",IF(AND(ProjectState=\"UT\",ProjectInfoTable[[#This Row],[Measure Selection]]=\"\"),0,\nIF(OR(ISNUMBER(FIND(\"SBDI\",ProjectInfoTable[[#This Row],[Fixture Measure]])),ISNUMBER(FIND(\"Small Bu\",ProjectInfoTable[[#This Row],[Fixture Measure]]))),1,\nIF(ISNUMBER(FIND(\"Controls Only\",ProjectInfoTable[[#This Row],[Proposed Equipment]],1)),IF(OR(ProjectType <> \"Retrofit\",ProjectInfoTable[[#This Row],[Space W (Proposed)]]>0),ProjectInfoTable[[#This Row],[Space W (Proposed)]],ProjectInfoTable[[#This Row],[Space W (Existing, Stipulated)]]),\nIF(TRIM(UPPER(ProjectInfoTable[[#This Row],[TRL Unit]]))=\"LINEAR FT.\",IF(OR(ISNUMBER(FIND(\"Marquee\",ProjectInfoTable[[#This Row],[Proposed Equipment]],1)),ISNUMBER(FIND(\"Cabinet\",ProjectInfoTable[[#This Row],[Proposed Equipment]],1))),VALUE(RIGHT(LEFT(ProjectInfoTable[[#This Row],[Existing Equipment]],FIND(\"LF \",ProjectInfoTable[[#This Row],[Existing Equipment]],1)-1),LEN(LEFT(ProjectInfoTable[[#This Row],[Existing Equipment]],FIND(\"LF \",ProjectInfoTable[[#This Row],[Existing Equipment]],1)-1))-FIND(\"[\",ProjectInfoTable[[#This Row],[Existing Equipment]],1))),VALUE(RIGHT(LEFT(ProjectInfoTable[[#This Row],[Proposed Equipment]],FIND(\"LF \",ProjectInfoTable[[#This Row],[Proposed Equipment]],1)-1),LEN(LEFT(ProjectInfoTable[[#This Row],[Proposed Equipment]],FIND(\"LF \",ProjectInfoTable[[#This Row],[Proposed Equipment]],1)-1))-FIND(\"[\",ProjectInfoTable[[#This Row],[Proposed Equipment]],1)))),\nIF(TRIM(UPPER(ProjectInfoTable[[#This Row],[TRL Unit]]))=\"KWH\",IF(ProjectInfoTable[[#This Row],[Fixture Measure kWh/yr Savings (Stipulated)]]=0,0,ROUND(ProjectInfoTable[[#This Row],[Fixture Measure kWh/yr Savings (Stipulated)]],2)),\nIF(TRIM(UPPER(ProjectInfoTable[[#This Row],[TRL Unit]]))=\"WATT REDUCED\",IF(ProjectInfoTable[[#This Row],[Fixture Measure kWh/yr Savings (Stipulated)]]=0,0,ROUND(ProjectInfoTable[[#This Row],[Space W (Existing, Stipulated)]]-ProjectInfoTable[[#This Row],[Space W (Proposed)]],2)),\nIF(TRIM(UPPER(ProjectInfoTable[[#This Row],[TRL Unit]]))=\"FIXTURE WATTAGE\",ProjectInfoTable[[#This Row],[Space W (Proposed)]],1))))))))","v":""},{"$f":"IFERROR(IF(OR(ISNUMBER(FIND(\"SBDI\",ProjectInfoTable[[#This Row],[Fixture Measure]])),ISNUMBER(FIND(\"Small Bu\",ProjectInfoTable[[#This Row],[Fixture Measure]]))),0,INDEX(INDIRECT(\"MeasureTable_\"&ProjectState&\"[Unit]\"),MATCH(ProjectInfoTable[[#This Row],[Fixture Measure]]&\" | TRUE\",INDIRECT(\"MeasureTable_\" &ProjectState&\"[MeasureEligibleConcatenate]\"),0))),\"\")","v":""},{"$f":"IF(ProjectInfoTable[[#This Row],[Fixture Measure]]=\"\",\"\",IF(OR(ISNUMBER(FIND(\"Lamp(s)\",ProjectInfoTable[[#This Row],[Fixture Measure]],1)),ISNUMBER(FIND(\"Relamp\",ProjectInfoTable[[#This Row],[Proposed Equipment]],1))),\"Lamp(s)\",\"Fixture(s)\"))","v":""},{"$f":"IFERROR(INDEX(INDIRECT(\"MeasureTable_\"&ProjectState&\"[ProjectCapPercent]\"),MATCH(ProjectInfoTable[[#This Row],[Fixture Measure]]&\" | TRUE\",INDIRECT(\"MeasureTable_\" &ProjectState&\"[MeasureEligibleConcatenate]\"),0)),\"\")","v":""},{"$f":"IF(OR(ProjectInfoTable[[#This Row],[Control Measure]]=\"\",ProjectInfoTable[[#This Row],[OpSch]]=\"\",ProjectInfoTable[[#This Row],[Eligible Control Measure]]<>TRUE),\"\",IF(AND(OR(ProjectType=\"New Construction\",ProjectType=\"Major Renovation\"),LPDCodeToProposed<0.1,ISNUMBER(FIND(\"Interior\",ProjectInfoTable[[#This Row],[Proposed Equipment]],1))),0,IFERROR(ProjectInfoTable[[#This Row],[Control Incentives Per Unit]]*ProjectInfoTable[[#This Row],[Control Quantity]]*ProjectInfoTable[[#This Row],[Control No. of TRL Units]],\"TRL Error\")))","v":""},{"$f":"IF(OR(ProjectInfoTable[[#This Row],[Control Measure]]=\"\",ProjectInfoTable[[#This Row],[OpSch]]=\"\",ProjectInfoTable[[#This Row],[Eligible Control Measure]]<>TRUE),\"\",IF(AND(ProjectType=\"Retrofit\",ProjectState=\"UT\",ISNUMBER(FIND(\"Post Purchase\",ProjectInfoTable[[#This Row],[Control Measure]],1))),\n\nIFERROR(MAX(MIN(ProjectInfoTable[[#This Row],[Control Incentives (pre-capping)]],ProjectInfoTable[[#This Row],[Control Cost (Allocated)]]*0.7),0),0),\n\nIF(ProjectType=\"Retrofit\",IF(ISNUMBER(FIND(\"Post Purchase\",ProjectInfoTable[[#This Row],[Control Measure]],1)),ProjectInfoTable[[#This Row],[Control Incentives (pre-capping)]],IFERROR($BI$3/$BH$3*ProjectInfoTable[[#This Row],[Control Incentives (pre-capping)]],\"\")),\n\nIF(ISNUMBER(FIND(\"Interior\",ProjectInfoTable[[#This Row],[Proposed Equipment]],1)),IF(LPDCodeToProposed>0.1,ProjectInfoTable[[#This Row],[Control Incentives (pre-capping)]],0),ProjectInfoTable[[#This Row],[Control Incentives (pre-capping)]]))))","v":""},{"$f":"IF(OR(ProjectInfoTable[[#This Row],[Control Incentives Per Unit]]=\"\",ProjectInfoTable[[#This Row],[Control TRL Unit]]=\"\"),\"\",IF(ProjectInfoTable[[#This Row],[Eligible Control Measure]]<>TRUE,\"Invalid Effective Date\",TEXT(ProjectInfoTable[[#This Row],[Control Incentives Per Unit]],\"$#,##0.00\")&\" / \"&ProjectInfoTable[[#This Row],[Control TRL Unit]]))","v":""},{"$f":"IF(ISNUMBER(FIND(\"SBE\",ProjectInfoTable[[#This Row],[Proposed Equipment]])),\"\",\n\nIF(LEN(ProjectInfoTable[[#This Row],[Proposed Equipment]])>\n\nIFERROR(FIND(\"]\",ProjectInfoTable[[#This Row],[Proposed Equipment]],1),0),\nSUBSTITUTE(\nIF(OR(ProjectInfoTable[[#This Row],[Control Method]]=\"separate\",ISNUMBER(FIND(\"Midstream\",ProjectInfoTable[[#This Row],[Fixture Measure]],1)),ISNUMBER(FIND(\"Midstream\",ProjectInfoTable[[#This Row],[Equipment Category]],1)),ISNUMBER(FIND(\"Prescriptive\",ProjectInfoTable[[#This Row],[Equipment Category]],1)),ISNUMBER(FIND(\"LED\",ProjectInfoTable[[#This Row],[Fixture Measure]],1)),ISNUMBER(FIND(\"LED Case\",ProjectInfoTable[[#This Row],[Fixture Measure]],1)),ISNUMBER(FIND(\"LED Decorative - Retrofit - WA\",ProjectInfoTable[[#This Row],[Fixture Measure]],1)),ISNUMBER(FIND(\"Lamp\",ProjectInfoTable[[#This Row],[Fixture Measure]],1)),ISNUMBER(FIND(\"Relamp\",ProjectInfoTable[[#This Row],[Fixture Measure]],1)),ISNUMBER(FIND(\"Wall Pack\",ProjectInfoTable[[#This Row],[Fixture Measure]],1)),ISNUMBER(FIND(\"Controls Only\",ProjectInfoTable[[#This Row],[Proposed Equipment]],1)),ISNUMBER(FIND(\"Re-Commissioning\",ProjectInfoTable[[#This Row],[Proposed Equipment]],1)),\n\nAND(OR(ISNUMBER(FIND(\"Exterior:\",ProjectInfoTable[[#This Row],[Proposed Equipment]],1)),ISNUMBER(FIND(\"Street:\",ProjectInfoTable[[#This Row],[Proposed Equipment]],1))),OR(ProjectState=\"ID\",ProjectState=\"UT\",ProjectState=\"WY\"))),\n\nIF(IFERROR(INDEX(ControlsLookup[],MATCH(IF(ProjectType=\"Retrofit\",LEFT(ProjectInfoTable[[#This Row],[Existing Equipment]],FIND(\":\",ProjectInfoTable[[#This Row],[Existing Equipment]],1)-1),LEFT(ProjectInfoTable[[#This Row],[Proposed Equipment]],FIND(\":\",ProjectInfoTable[[#This Row],[Proposed Equipment]],1)-1))&\"_\"&RIGHT(ProjectInfoTable[[#This Row],[Proposed Equipment]],LEN(ProjectInfoTable[[#This Row],[Proposed Equipment]])-FIND(\"]\",ProjectInfoTable[[#This Row],[Proposed Equipment]],1)-3),ControlsLookup[Controls Concatenate],0),MATCH(\n\nIF(ProjectType=\"Retrofit\",\"ControlMeasure_\",\"NCMRControlMeasure_\")&ProjectState,ControlsLookup[#Headers],0)),\"\")=0,\"\",\n\nIFERROR(INDEX(ControlsLookup[],MATCH(IF(ProjectType=\"Retrofit\",LEFT(ProjectInfoTable[[#This Row],[Existing Equipment]],FIND(\":\",ProjectInfoTable[[#This Row],[Existing Equipment]],1)-1),LEFT(ProjectInfoTable[[#This Row],[Proposed Equipment]],FIND(\":\",ProjectInfoTable[[#This Row],[Proposed Equipment]],1)-1))&\"_\"&RIGHT(ProjectInfoTable[[#This Row],[Proposed Equipment]],LEN(ProjectInfoTable[[#This Row],[Proposed Equipment]])-FIND(\"]\",ProjectInfoTable[[#This Row],[Proposed Equipment]],1)-3),ControlsLookup[Controls Concatenate],0),MATCH(\n\nIF(ProjectType=\"Retrofit\",\"ControlMeasure_\",\"NCMRControlMeasure_\")&ProjectState&IF(ProjectState=\"UT\",SegmentTag,\"\"),ControlsLookup[#Headers],0)),\"\")),\"\"),\"[NAMESUB]\",ProjectInfoTable[[#This Row],[Control Measure Name Sub]]),\"\"))","v":""},{"$f":"IF(ProjectInfoTable[[#This Row],[Proposed Equipment]]=\"\",\"\",IF(AND(ProjectState=\"UT\",ProjectType=\"Retrofit\",ISNUMBER(FIND(\"Re-Commissioning\",ProjectInfoTable[[#This Row],[Proposed Equipment]]))),\nIF(ProjectRecommissioning=\"only recommissioning\",\"Commissioning Only\",\"Commissioning w/ Lighting Upgrade\"),\"\"))","v":""},{"$f":"IFERROR(INDEX(INDIRECT(\"MeasureTable_\" & ProjectState & \"[Measure Reference Number]\"),MATCH(ProjectInfoTable[[#This Row],[Control Measure]],INDIRECT(\"MeasureTable_\" &ProjectState&\"[Measure Name]\"),0)),\"\")","v":""},{"$f":"IFERROR(\n    _xlfn.LET(\n        _xlpm.filteredVersions,\n            _xlfn._xlws.FILTER(\n                INDIRECT(\"MeasureTable_\" & ProjectState & \"[Version Number]\"),\n                (INDIRECT(\"MeasureTable_\" & ProjectState & \"[Measure Reference Number]\") = ProjectInfoTable[[#This Row],[Control Measure Reference Number]]) *\n                (INDIRECT(\"MeasureTable_\" & ProjectState & \"[Eligible Measure]\") = TRUE)\n            ),\n        INDEX(_xlpm.filteredVersions, 1)\n    ),\n    \"\"\n)","v":""},{"$f":"IFERROR(\n  _xlfn.LET(\n    _xlpm.refRange, INDIRECT(\"MeasureTable_\" & ProjectState & \"[Measure Reference Number]\"),\n    _xlpm.eligibleRange, INDIRECT(\"MeasureTable_\" & ProjectState & \"[Eligible Measure]\"),\n    _xlpm.countTrue, SUMPRODUCT(--(_xlpm.refRange = ProjectInfoTable[[#This Row],[Control Measure Reference Number]]), --(_xlpm.eligibleRange = TRUE)),\n    _xlpm.countNonBlank, SUMPRODUCT(--(_xlpm.refRange = ProjectInfoTable[[#This Row],[Control Measure Reference Number]]), --(_xlpm.eligibleRange <> \"\")),\n    IF(_xlpm.countNonBlank = 0, \"\", IF(_xlpm.countTrue >= 1, TRUE, FALSE))\n  ),\n  \"\"\n)","v":""},{"$f":"IF(ProjectInfoTable[[#This Row],[Proposed Equipment]]=\"\",\"\",IFERROR(INDEX(INDIRECT(\"EquipmentTable_\"&IF(ProjectType=\"Retrofit\",\"Retrofit_\",\"NCMR_\")&ProjectState&\"[controlMethod]\"),MATCH(LEFT(ProjectInfoTable[[#This Row],[Proposed Equipment]],FIND(\"[\",ProjectInfoTable[[#This Row],[Proposed Equipment]],1)-2),INDIRECT(\"EquipmentTable_\"&IF(ProjectType=\"Retrofit\",\"Retrofit_\",\"NCMR_\")&ProjectState&\"[equipmentProposed]\"),0)),\"\"))","v":""},{"$f":"IFERROR(VALUE(INDEX(INDIRECT(\"MeasureTable_\" & ProjectState & \"[CustomerIncentiveDollarperunit]\"),MATCH(ProjectInfoTable[[#This Row],[Control Measure]]&\" | TRUE\",INDIRECT(\"MeasureTable_\"&ProjectState&\"[MeasureEligibleConcatenate]\"),0))),\"\")","v":""},{"$f":"IFERROR(INDEX(INDIRECT(\"MeasureTable_\"&ProjectState&\"[SiteSpecificCalculation]\"),MATCH(ProjectInfoTable[[#This Row],[Control Measure]]&\" | TRUE\",INDIRECT(\"MeasureTable_\"&ProjectState&\"[MeasureEligibleConcatenate]\"),0)),\"\")","v":""},{"$f":"IFERROR(INDEX(INDIRECT(\"MeasureTable_\"&ProjectState&\"[GrossIncrementalAnnualElectricSavings ]\"),MATCH(ProjectInfoTable[[#This Row],[Control Measure]]&\" | TRUE\",INDIRECT(\"MeasureTable_\"&ProjectState&\"[MeasureEligibleConcatenate]\"),0)),\"\")","v":""},{"$f":"IFERROR(INDEX(INDIRECT(\"MeasureTable_\"&ProjectState&\"[GrossAverage onthly emand eduction]\"),MATCH(ProjectInfoTable[[#This Row],[Control Measure]]&\" | TRUE\",INDIRECT(\"MeasureTable_\"&ProjectState&\"[MeasureEligibleConcatenate]\"),0)),\"\")","v":""},{"$f":"IFERROR(INDEX(INDIRECT(\"MeasureTable_\"&ProjectState&\"[IncrementalMeasureCost]\"),MATCH(ProjectInfoTable[[#This Row],[Control Measure]]&\" | TRUE\",INDIRECT(\"MeasureTable_\"&ProjectState&\"[MeasureEligibleConcatenate]\"),0)),\"\")","v":""},{"$f":"IF(ProjectInfoTable[[#This Row],[Control Measure]]=\"\",\"\",IF(OR(ProjectInfoTable[[#This Row],[Control TRL Unit]]=\"Measure\",ProjectInfoTable[[#This Row],[Control TRL Unit]]=\"Linear ft.\"),IF(OR(ISNUMBER(FIND(\"Midstream\",ProjectInfoTable[[#This Row],[Control Measure]],1)),ISNUMBER(FIND(\"Lamp\",ProjectInfoTable[[#This Row],[Control Measure]],1))),ProjectInfoTable[[#This Row],[Quantity (Proposed)]]*ProjectInfoTable[[#This Row],[Lamps (Proposed)]],ProjectInfoTable[[#This Row],[Quantity (Proposed)]]),1))","v":""},{"$f":"IF(ProjectInfoTable[[#This Row],[Control Measure]]=\"\",\"\",IF(ISNUMBER(FIND(\"LF \",ProjectInfoTable[[#This Row],[Proposed Equipment]],1)),VALUE(RIGHT(LEFT(ProjectInfoTable[[#This Row],[Proposed Equipment]],FIND(\"LF \",ProjectInfoTable[[#This Row],[Proposed Equipment]],1)-1),LEN(LEFT(ProjectInfoTable[[#This Row],[Proposed Equipment]],FIND(\"LF \",ProjectInfoTable[[#This Row],[Proposed Equipment]],1)-1))-FIND(\"[\",ProjectInfoTable[[#This Row],[Proposed Equipment]],1))),IF(TRIM(UPPER(ProjectInfoTable[[#This Row],[Control TRL Unit]]))=\"WATT CONTROLLED\",IF(ISNUMBER(FIND(\"Controls Only\",ProjectInfoTable[[#This Row],[Proposed Equipment]],1)),IF(OR(ProjectType <> \"Retrofit\",ProjectInfoTable[[#This Row],[Space W (Proposed)]]>0),ProjectInfoTable[[#This Row],[Space W (Proposed)]],ProjectInfoTable[[#This Row],[Space W (Existing, Stipulated)]]),ProjectInfoTable[[#This Row],[Space W (Proposed)]]),IF(TRIM(UPPER(ProjectInfoTable[[#This Row],[Control TRL Unit]]))=\"KWH\",IF(ProjectInfoTable[[#This Row],[Control Measure kWh/yr Savings (Stipulated)]]=0,0,ROUND(ProjectInfoTable[[#This Row],[Control Measure kWh/yr Savings (Stipulated)]],2)),1))))","v":""},{"$f":"IFERROR(IF(LEN(ProjectInfoTable[[#This Row],[Proposed Equipment]])-(FIND(\"]\",ProjectInfoTable[[#This Row],[Proposed Equipment]],1))>0,\"Control(s)\",\"\"),\"\")","v":""},{"$f":"IFERROR(INDEX(INDIRECT(\"MeasureTable_\"&ProjectState&\"[Unit]\"),MATCH(ProjectInfoTable[[#This Row],[Control Measure]]&\" | TRUE\",INDIRECT(\"MeasureTable_\"&ProjectState&\"[MeasureEligibleConcatenate]\"),0)),\"\")","v":""},{"$f":"IFERROR(INDEX(INDIRECT(\"MeasureTable_\"&ProjectState&\"[ProjectCapPercent]\"),MATCH(ProjectInfoTable[[#This Row],[Control Measure]]&\" | TRUE\",INDIRECT(\"MeasureTable_\"&ProjectState&\"[MeasureEligibleConcatenate]\"),0)),\"\")","v":""},{"$f":"IF(OR(ProjectInfoTable[[#This Row],[Fixture Measure]]<>\"\",ProjectInfoTable[[#This Row],[Control Measure]]<>\"\"),1,\"\")","v":""},{"$f":"IF(ProjectInfoTable[[#This Row],[TRL Unit]]=\"\",\"\",IF(OR(ISNUMBER(SEARCH(\"measure\",ProjectInfoTable[[#This Row],[TRL Unit]])),ISNUMBER(SEARCH(\"linear ft\",ProjectInfoTable[[#This Row],[TRL Unit]])),ProjectInfoTable[[#This Row],[TRL Unit]]=0),990,991))","v":""},{"$f":"IFERROR(SUBSTITUTE(LEFT(ProjectInfoTable[[#This Row],[Proposed Equipment]],FIND(\"]\",ProjectInfoTable[[#This Row],[Proposed Equipment]],1)),\"Controls Only []\",\"\",1),\"\")","v":""},{"$f":"IF(ProjectInfoTable[[#This Row],[FixturesOnly]]=\"\",\"\",IF(ISNUMBER(FIND(\"L \",ProjectInfoTable[[#This Row],[Proposed Equipment]],1)),ProjectInfoTable[[#This Row],[Quantity (Proposed)]]*ProjectInfoTable[[#This Row],[Lamps (Proposed)]],ProjectInfoTable[[#This Row],[Quantity (Proposed)]]))","v":""},{"$f":"IFERROR(INDEX(ControlsLookup[Full Description],MATCH(RIGHT(ProjectInfoTable[[#This Row],[Proposed Equipment]],LEN(ProjectInfoTable[[#This Row],[Proposed Equipment]])-FIND(\"]\",ProjectInfoTable[[#This Row],[Proposed Equipment]],1)-3),ControlsLookup[Controls],0)),\"\")","v":""},{"$f":"IF(ProjectInfoTable[[#This Row],[ControlsOnly]]=\"\",\"\",IF(OR(ISNUMBER(FIND(\"Net\",ProjectInfoTable[[#This Row],[Proposed Equipment]],1)),ISNUMBER(FIND(\"Int\",ProjectInfoTable[[#This Row],[Proposed Equipment]],1))),ProjectInfoTable[[#This Row],[Quantity (Proposed)]],1))","v":""}]
[null,{"$f":"ROW(ProjectInfoTable[[#This Row],[OpSch]])-ROW(ProjectInfoTable[[#Headers],[OpSch]])","v":6},{"$f":"IFERROR(INDEX(RetrofitBaselineEquipment_Table[categoryBaseline],MATCH(RIGHT(LEFT(ProjectInfoTable[[#This Row],[Existing Equipment]],FIND(\" (\",ProjectInfoTable[[#This Row],[Existing Equipment]],1)-1),LEN(LEFT(ProjectInfoTable[[#This Row],[Existing Equipment]],FIND(\" (\",ProjectInfoTable[[#This Row],[Existing Equipment]],1)-1))-FIND(\": \",ProjectInfoTable[[#This Row],[Existing Equipment]],1)-1),RetrofitBaselineEquipment_Table[equipmentBaseline],0)),\"\")","v":""},null,null,null,null,{"$f":"IF(ProjectInfoTable[[#This Row],[Existing Equipment]]=\"\",\"\",IF(ISNUMBER(FIND(\"LF\",ProjectInfoTable[[#This Row],[Existing Equipment]],1)),1,IFERROR(VALUE(SUBSTITUTE(RIGHT(LEFT(ProjectInfoTable[[#This Row],[Existing Equipment]],FIND(\"L\",ProjectInfoTable[[#This Row],[Existing Equipment]],FIND(\"[\",ProjectInfoTable[[#This Row],[Existing Equipment]],1))-1),3),\"[\",\"\")),1)))","v":""},{"$f":"IF(ProjectInfoTable[[#This Row],[Existing Equipment]]=\"\",\"\",VALUE(SUBSTITUTE(RIGHT(LEFT(RIGHT(ProjectInfoTable[[#This Row],[Existing Equipment]],LEN(ProjectInfoTable[[#This Row],[Existing Equipment]])-IFERROR(FIND(\"[\",ProjectInfoTable[[#This Row],[Existing Equipment]],1),0)),IFERROR(FIND(\"W\",RIGHT(ProjectInfoTable[[#This Row],[Existing Equipment]],LEN(ProjectInfoTable[[#This Row],[Existing Equipment]])-IFERROR(FIND(\"[\",ProjectInfoTable[[#This Row],[Existing Equipment]],1),0)),1),0)),LEN(LEFT(RIGHT(ProjectInfoTable[[#This Row],[Existing Equipment]],LEN(ProjectInfoTable[[#This Row],[Existing Equipment]])-IFERROR(FIND(\"[\",ProjectInfoTable[[#This Row],[Existing Equipment]],1),0)),IFERROR(FIND(\"W\",RIGHT(ProjectInfoTable[[#This Row],[Existing Equipment]],LEN(ProjectInfoTable[[#This Row],[Existing Equipment]])-IFERROR(FIND(\"[\",ProjectInfoTable[[#This Row],[Existing Equipment]],1),0)),1),0)))-IFERROR(FIND(\"-\",LEFT(RIGHT(ProjectInfoTable[[#This Row],[Existing Equipment]],LEN(ProjectInfoTable[[#This Row],[Existing Equipment]])-IFERROR(FIND(\"[\",ProjectInfoTable[[#This Row],[Existing Equipment]],1),0)),IFERROR(FIND(\"W\",RIGHT(ProjectInfoTable[[#This Row],[Existing Equipment]],LEN(ProjectInfoTable[[#This Row],[Existing Equipment]])-IFERROR(FIND(\"[\",ProjectInfoTable[[#This Row],[Existing Equipment]],1),0)),1),0)),1),0)),\"W\",\"\")))","v":""},{"$f":"IF(ProjectInfoTable[[#This Row],[Existing Equipment]]=\"\",\"\",IF(AND(RIGHT(LEFT(ProjectInfoTable[[#This Row],[Existing Equipment]],FIND(\"]\",ProjectInfoTable[[#This Row],[Existing Equipment]],1)-1),1)<>\"W\"),IFERROR(TRIM(IF(IFERROR(FIND(\"FLT\",ProjectInfoTable[[#This Row],[Existing Equipment]],1),0)>0,LEFT(RIGHT(LEFT(ProjectInfoTable[[#This Row],[Existing Equipment]],FIND(\" (\",ProjectInfoTable[[#This Row],[Existing Equipment]],1)),LEN(LEFT(ProjectInfoTable[[#This Row],[Existing Equipment]],FIND(\" (\",ProjectInfoTable[[#This Row],[Existing Equipment]],1)))-FIND(\":\",ProjectInfoTable[[#This Row],[Existing Equipment]],1)-1),FIND(\" \",RIGHT(LEFT(ProjectInfoTable[[#This Row],[Existing Equipment]],FIND(\" (\",ProjectInfoTable[[#This Row],[Existing Equipment]],1)),LEN(LEFT(ProjectInfoTable[[#This Row],[Existing Equipment]],FIND(\" (\",ProjectInfoTable[[#This Row],[Existing Equipment]],1)))-FIND(\":\",ProjectInfoTable[[#This Row],[Existing Equipment]],1)-1),1)-1),RIGHT(LEFT(ProjectInfoTable[[#This Row],[Existing Equipment]],FIND(\" (\",ProjectInfoTable[[#This Row],[Existing Equipment]],1)),LEN(LEFT(ProjectInfoTable[[#This Row],[Existing Equipment]],FIND(\" (\",ProjectInfoTable[[#This Row],[Existing Equipment]],1)))-FIND(\":\",ProjectInfoTable[[#This Row],[Existing Equipment]],1)-1))&\" - \"&RIGHT(LEFT(ProjectInfoTable[[#This Row],[Existing Equipment]],FIND(\"]\",ProjectInfoTable[[#This Row],[Existing Equipment]],1)-1),LEN(LEFT(ProjectInfoTable[[#This Row],[Existing Equipment]],FIND(\"]\",ProjectInfoTable[[#This Row],[Existing Equipment]],1)-1))-FIND(\"W \",ProjectInfoTable[[#This Row],[Existing Equipment]],1)-3)),\"\"),\"\"))","v":""},{"$f":"IF(ProjectInfoTable[[#This Row],[Existing Equipment]]=\"\",\"\",IF(ProjectInfoTable[[#This Row],[Fixture/Ballast Check for Formula]]=\"\",IF(ISNUMBER(FIND(\"LF\",ProjectInfoTable[[#This Row],[Existing Equipment]],FIND(\"[\",ProjectInfoTable[[#This Row],[Existing Equipment]],1))),ProjectInfoTable[[#This Row],[Lamp W (Existing)]],ProjectInfoTable[[#This Row],[Lamps (Existing)]]*ProjectInfoTable[[#This Row],[Lamp W (Existing)]]),IFERROR(ROUND( ProjectInfoTable[[#This Row],[Lamps (Existing)]]*ProjectInfoTable[[#This Row],[Lamp W (Existing)]]*INDEX(FixtureWattageFormula_Table[A],MATCH(ProjectInfoTable[[#This Row],[Fixture/Ballast Check for Formula]],FixtureWattageFormula_Table[Concatenate],0))+INDEX(FixtureWattageFormula_Table[B],MATCH(ProjectInfoTable[[#This Row],[Fixture/Ballast Check for Formula]],FixtureWattageFormula_Table[Concatenate],0)),0),ProjectInfoTable[[#This Row],[Lamps (Existing)]]*ProjectInfoTable[[#This Row],[Lamp W (Existing)]])))","v":""},{"$f":"IF(OR(ISNUMBER(FIND(\"T8 \",ProjectInfoTable[[#This Row],[Existing Equipment]],1)),ISNUMBER(FIND(\"T5 \",ProjectInfoTable[[#This Row],[Existing Equipment]],1)),ISNUMBER(FIND(\"T12 \",ProjectInfoTable[[#This Row],[Existing Equipment]],1)),ISNUMBER(FIND(\"T12HO - 8\",ProjectInfoTable[[#This Row],[Existing Equipment]],1)),ISNUMBER(FIND(\"Incand\",ProjectInfoTable[[#This Row],[Existing Equipment]],1))),IFERROR(ROUND(INDEX(StipulatedWattage_Table[Stipulated fixture wattage],MATCH(MID(ProjectInfoTable[[#This Row],[Existing Equipment]],FIND(\"[\",ProjectInfoTable[[#This Row],[Existing Equipment]],1),FIND(\"]\",ProjectInfoTable[[#This Row],[Existing Equipment]],1)-FIND(\"[\",ProjectInfoTable[[#This Row],[Existing Equipment]],1)+1),StipulatedWattage_Table[Fixture Code],0)),0),ProjectInfoTable[[#This Row],[Fixture W (Existing, Actual)]]),ProjectInfoTable[[#This Row],[Fixture W (Existing, Actual)]])","v":""},{"$f":"IF(ProjectType=\"Retrofit\",IF(ProjectInfoTable[[#This Row],[Existing Equipment]]=\"\",\"\",ProjectInfoTable[[#This Row],[Quantity (Existing)]]*ProjectInfoTable[[#This Row],[Fixture W (Existing, Actual)]]),IF(ISNUMBER(FIND(\"Interior\",ProjectInfoTable[[#This Row],[Proposed Equipment]],1)),IF(ISNUMBER(FIND(\"Controls Only\",ProjectInfoTable[[#This Row],[Proposed Equipment]])),ProjectInfoTable[[#This Row],[Space W (Proposed)]],(AllowedWattage-SUMIFS(ProjectInfoTable[Space W (Proposed)],ProjectInfoTable[Proposed Equipment],\"*Interior*\",ProjectInfoTable[Proposed Equipment],\"*Controls Only*\"))*ProjectInfoTable[[#This Row],[Space W (Proposed)]]/(SUMIFS(ProjectInfoTable[Space W (Proposed)],ProjectInfoTable[Proposed Equipment],\"*Interior*\")-SUMIFS(ProjectInfoTable[Space W (Proposed)],ProjectInfoTable[Proposed Equipment],\"*Interior*\",ProjectInfoTable[Proposed Equipment],\"*Controls Only*\"))),\"\"))","v":""},{"$f":"IF(ProjectType=\"Retrofit\",IF(ProjectInfoTable[[#This Row],[Existing Equipment]]=\"\",\"\",ProjectInfoTable[[#This Row],[Quantity (Existing)]]*ProjectInfoTable[[#This Row],[Fixture W (Existing, Stipulated)]]),ProjectInfoTable[[#This Row],[Space W (Existing, Actual)]])","v":""},{"$f":"IFERROR(INDEX(OperatingHours_List,MATCH(ProjectInfoTable[[#This Row],[OpSch]],OperatingSchedules_List,0))*ProjectInfoTable[[#This Row],[Space W (Existing, Actual)]]/1000,\"\")","v":""},{"$f":"IFERROR(INDEX(OperatingHours_List,MATCH(ProjectInfoTable[[#This Row],[OpSch]],OperatingSchedules_List,0))*ProjectInfoTable[[#This Row],[Space W (Existing, Actual)]]/1000*(IFERROR(INDEX(ControlsLookup[],MATCH(RIGHT(ProjectInfoTable[[#This Row],[Existing Equipment]],LEN(ProjectInfoTable[[#This Row],[Existing Equipment]])-FIND(\"]\",ProjectInfoTable[[#This Row],[Existing Equipment]],1)-3),ControlsLookup[Controls],0),MATCH(\"CSF_\"&ProjectState,ControlsLookup[#Headers],0)),0))*-1,\"\")","v":""},{"$f":"IF(OR(ProjectInfoTable[[#This Row],[Fixture kWh (Existing, Actual)]]=\"\",ProjectInfoTable[[#This Row],[Control kWh (Existing, Actual)]]=\"\"),\"\",ProjectInfoTable[[#This Row],[Fixture kWh (Existing, Actual)]]+ProjectInfoTable[[#This Row],[Control kWh (Existing, Actual)]])","v":""},{"$f":"IFERROR(INDEX(OperatingHours_List,MATCH(ProjectInfoTable[[#This Row],[OpSch]],OperatingSchedules_List,0))*ProjectInfoTable[[#This Row],[Space W (Existing, Stipulated)]]/1000,\"\")","v":""},{"$f":"IFERROR(INDEX(OperatingHours_List,MATCH(ProjectInfoTable[[#This Row],[OpSch]],OperatingSchedules_List,0))*ProjectInfoTable[[#This Row],[Space W (Existing, Stipulated)]]/1000*(IFERROR(INDEX(ControlsLookup[],MATCH(RIGHT(ProjectInfoTable[[#This Row],[Existing Equipment]],LEN(ProjectInfoTable[[#This Row],[Existing Equipment]])-FIND(\"]\",ProjectInfoTable[[#This Row],[Existing Equipment]],1)-3),ControlsLookup[Controls],0),MATCH(\"CSF_\"&ProjectState,ControlsLookup[#Headers],0)),0))*-1,\"\")","v":""},{"$f":"IF(OR(ProjectInfoTable[[#This Row],[Fixture kWh (Existing, Stipulated)]]=\"\",ProjectInfoTable[[#This Row],[Control kWh (Existing, Stipulated)]]=\"\"),\"\",ProjectInfoTable[[#This Row],[Fixture kWh (Existing, Stipulated)]]+ProjectInfoTable[[#This Row],[Control kWh (Existing, Stipulated)]])","v":""},{"$f":"IF(\n AND(\n  OR(ProjectInfoTable[[#This Row],[Existing Equipment]]=\"\",ProjectInfoTable[[#This Row],[Quantity (Existing)]]=\"\"),\n  ProjectType=\"Retrofit\"\n ),\n \"\",\n IF(\n  ISNUMBER(FIND(\"Street:\",ProjectInfoTable[[#This Row],[Existing Equipment]],1)),\n  IF(\n   OR(\n    AND(ProjectState=\"UT\",RateSchedule=12),\n    AND(ProjectState=\"ID\",RateSchedule=12),\n    AND(ProjectState=\"WY\",RateSchedule=58)\n   ),\n   IFERROR(\n    INDEX(\n     StreetLightingRates_Table[],\n     MATCH(MID(ProjectInfoTable[[#This Row],[Existing Equipment]],FIND(\": \",ProjectInfoTable[[#This Row],[Existing Equipment]],1)+2,FIND(\" (\",ProjectInfoTable[[#This Row],[Existing Equipment]],1)-FIND(\": \",ProjectInfoTable[[#This Row],[Existing Equipment]],1)-2)&ProjectInfoTable[[#This Row],[Lamp W (Existing)]],StreetLightingRates_Table[TechWattage],0),\n     MATCH(ProjectState&RateSchedule,StreetLightingRates_Table[#Headers],0)\n    )\n    *\n    ProjectInfoTable[[#This Row],[Quantity (Existing)]]\n    *\n    ProjectInfoTable[[#This Row],[Lamps (Existing)]]\n    *\n    12,\n    ProjectInfoTable[[#This Row],[Space kWh (Existing, Actual)]]\n    *\n    INDEX(INDIRECT(\"RateSchedules_\"&ProjectState&\"_Table[kWh Rate]\"),MATCH(RateSchedule,INDIRECT(\"RateSchedules_\"&ProjectState&\"_Table[Rate Schedule]\"),0))\n   ),\n   IFERROR(\n    ProjectInfoTable[[#This Row],[Space kWh (Existing, Actual)]]*\n    INDEX(INDIRECT(\"RateSchedules_\"&ProjectState&\"_Table[kWh Rate]\"),MATCH(RateSchedule,INDIRECT(\"RateSchedules_\"&ProjectState&\"_Table[Rate Schedule]\"),0)),0)\n   +\n   IFERROR(IF(ISNUMBER(FIND(\"Interior:\",ProjectInfoTable[[#This Row],[Existing Equipment]],1)),\n    ProjectInfoTable[[#This Row],[Space W (Existing, Actual)]]/1000*12*DDF*\n    INDEX(INDIRECT(\"RateSchedules_\"&ProjectState&\"_Table[kW Rate]\"),MATCH(RateSchedule,INDIRECT(\"RateSchedules_\"&ProjectState&\"_Table[Rate Schedule]\"),0)),0),0)\n  ),\n  IFERROR(\n   ProjectInfoTable[[#This Row],[Space kWh (Existing, Actual)]]*\n   INDEX(INDIRECT(\"RateSchedules_\"&ProjectState&\"_Table[kWh Rate]\"),MATCH(RateSchedule,INDIRECT(\"RateSchedules_\"&ProjectState&\"_Table[Rate Schedule]\"),0)),\n   0\n  )\n  +\n  IFERROR(IF(OR(ISNUMBER(FIND(\"Interior:\",ProjectInfoTable[[#This Row],[Existing Equipment]],1)),AND(ProjectType<>\"Retrofit\",ISNUMBER(FIND(\"Interior:\",ProjectInfoTable[[#This Row],[Proposed Equipment]],1)))),\n   ProjectInfoTable[[#This Row],[Space W (Existing, Actual)]]/1000*12*DDF*\n   INDEX(INDIRECT(\"RateSchedules_\"&ProjectState&\"_Table[kW Rate]\"),MATCH(RateSchedule,INDIRECT(\"RateSchedules_\"&ProjectState&\"_Table[Rate Schedule]\"),0)),0),\n   0\n  )\n )\n)","v":0},{"$f":"IF(\n AND(\n  OR(ProjectInfoTable[[#This Row],[Existing Equipment]]=\"\",ProjectInfoTable[[#This Row],[Quantity (Existing)]]=\"\"),\n  ProjectType=\"Retrofit\"\n ),\n \"\",\n IF(\n  ISNUMBER(FIND(\"Street:\",ProjectInfoTable[[#This Row],[Existing Equipment]],1)),\n  IF(\n   OR(\n    AND(ProjectState=\"UT\",RateSchedule=12),\n    AND(ProjectState=\"ID\",RateSchedule=12),\n    AND(ProjectState=\"WY\",RateSchedule=58)\n   ),\n   IFERROR(\n    INDEX(\n     StreetLightingRates_Table[],\n     MATCH(MID(ProjectInfoTable[[#This Row],[Existing Equipment]],FIND(\": \",ProjectInfoTable[[#This Row],[Existing Equipment]],1)+2,FIND(\" (\",ProjectInfoTable[[#This Row],[Existing Equipment]],1)-FIND(\": \",ProjectInfoTable[[#This Row],[Existing Equipment]],1)-2)&ProjectInfoTable[[#This Row],[Lamp W (Existing)]],StreetLightingRates_Table[TechWattage],0),\n     MATCH(ProjectState&RateSchedule,StreetLightingRates_Table[#Headers],0)\n    )\n    *\n    ProjectInfoTable[[#This Row],[Quantity (Existing)]]\n    *\n    ProjectInfoTable[[#This Row],[Lamps (Existing)]]\n    *\n    12,\n    ProjectInfoTable[[#This Row],[Space kWh (Existing, Stipulated)]]\n    *\n    INDEX(INDIRECT(\"RateSchedules_\"&ProjectState&\"_Table[kWh Rate]\"),MATCH(RateSchedule,INDIRECT(\"RateSchedules_\"&ProjectState&\"_Table[Rate Schedule]\"),0))\n   ),\n   IFERROR(\n    ProjectInfoTable[[#This Row],[Space kWh (Existing, Stipulated)]]*\n    INDEX(INDIRECT(\"RateSchedules_\"&ProjectState&\"_Table[kWh Rate]\"),MATCH(RateSchedule,INDIRECT(\"RateSchedules_\"&ProjectState&\"_Table[Rate Schedule]\"),0)),0)\n   +\n   IFERROR(IF(ISNUMBER(FIND(\"Interior:\",ProjectInfoTable[[#This Row],[Existing Equipment]],1)),\n    ProjectInfoTable[[#This Row],[Space W (Existing, Stipulated)]]/1000*12*DDF*\n    INDEX(INDIRECT(\"RateSchedules_\"&ProjectState&\"_Table[kW Rate]\"),MATCH(RateSchedule,INDIRECT(\"RateSchedules_\"&ProjectState&\"_Table[Rate Schedule]\"),0)),0),0)\n  ),\n  IFERROR(\n   ProjectInfoTable[[#This Row],[Space kWh (Existing, Stipulated)]]*\n   INDEX(INDIRECT(\"RateSchedules_\"&ProjectState&\"_Table[kWh Rate]\"),MATCH(RateSchedule,INDIRECT(\"RateSchedules_\"&ProjectState&\"_Table[Rate Schedule]\"),0)),\n   0\n  )\n  +\n  IFERROR(IF(OR(ISNUMBER(FIND(\"Interior:\",ProjectInfoTable[[#This Row],[Existing Equipment]],1)),AND(ProjectType<>\"Retrofit\",ISNUMBER(FIND(\"Interior:\",ProjectInfoTable[[#This Row],[Proposed Equipment]],1)))),\n   ProjectInfoTable[[#This Row],[Space W (Existing, Stipulated)]]/1000*12*DDF*\n   INDEX(INDIRECT(\"RateSchedules_\"&ProjectState&\"_Table[kW Rate]\"),MATCH(RateSchedule,INDIRECT(\"RateSchedules_\"&ProjectState&\"_Table[Rate Schedule]\"),0)),0),\n   0\n  )\n )\n)","v":0},{"$f":"IF(ProjectType=\"Retrofit\",IFERROR(INDEX(RetrofitBaselineEquipment_Table[categoryBaseline],MATCH(RIGHT(LEFT(ProjectInfoTable[[#This Row],[Proposed Equipment]],FIND(\" (\",ProjectInfoTable[[#This Row],[Proposed Equipment]],1)-1),LEN(LEFT(ProjectInfoTable[[#This Row],[Proposed Equipment]],FIND(\" (\",ProjectInfoTable[[#This Row],[Proposed Equipment]],1)-1))-FIND(\": \",ProjectInfoTable[[#This Row],[Proposed Equipment]],1)-1),RetrofitBaselineEquipment_Table[equipmentBaseline],0)),\"\"),IFERROR(INDEX(#REF!,MATCH(RIGHT(LEFT(ProjectInfoTable[[#This Row],[Proposed Equipment]],FIND(\" (\",ProjectInfoTable[[#This Row],[Proposed Equipment]],1)-1),LEN(LEFT(ProjectInfoTable[[#This Row],[Proposed Equipment]],FIND(\" (\",ProjectInfoTable[[#This Row],[Proposed Equipment]],1)-1))-FIND(\": \",ProjectInfoTable[[#This Row],[Proposed Equipment]],1)-1),#REF!,0)),\"\"))","v":""},{"$f":"IF(ProjectInfoTable[[#This Row],[Proposed Equipment]]=\"\",\"\",IF(ISNUMBER(SEARCH(\"Controls Only\",ProjectInfoTable[[#This Row],[Proposed Equipment]])),\"Controls Only\",IF(ProjectType=\"Retrofit\",_xlfn.LET(_xlpm.k,LEFT(ProjectInfoTable[[#This Row],[Proposed Equipment]],FIND(\"[\",ProjectInfoTable[[#This Row],[Proposed Equipment]])-2),_xlpm.ep,_xlfn.SWITCH(ProjectState,\"UT\",EquipmentTable_Retrofit_UT[equipmentProposed],\"WY\",EquipmentTable_Retrofit_WY[equipmentProposed],\"ID\",EquipmentTable_Retrofit_ID[equipmentProposed]),_xlpm.cp,_xlfn.SWITCH(ProjectState,\"UT\",EquipmentTable_Retrofit_UT[categoryProposed],\"WY\",EquipmentTable_Retrofit_WY[categoryProposed],\"ID\",EquipmentTable_Retrofit_ID[categoryProposed]),_xlfn.XLOOKUP(_xlpm.k,_xlpm.ep,_xlpm.cp,\"Non-eligible fixture - Retrofit - \"&ProjectState)),_xlfn.LET(_xlpm.k,MID(ProjectInfoTable[[#This Row],[Proposed Equipment]],FIND(\": \",ProjectInfoTable[[#This Row],[Proposed Equipment]])+2,FIND(\" (\",ProjectInfoTable[[#This Row],[Proposed Equipment]])-(FIND(\": \",ProjectInfoTable[[#This Row],[Proposed Equipment]])+2)),_xlpm.ep,_xlfn.SWITCH(ProjectState,\"UT\",EquipmentTable_NCMR_UT[equipmentProposed],\"WY\",EquipmentTable_NCMR_WY[equipmentProposed],\"ID\",EquipmentTable_NCMR_ID[equipmentProposed]),_xlpm.cp,_xlfn.SWITCH(ProjectState,\"UT\",EquipmentTable_NCMR_UT[categoryProposed],\"WY\",EquipmentTable_NCMR_WY[categoryProposed],\"ID\",EquipmentTable_NCMR_ID[categoryProposed]),_xlfn.XLOOKUP(_xlpm.k,_xlpm.ep,_xlpm.cp,\"Non-eligible fixture - NCMR - \"&ProjectState)))))","v":""},null,null,"ü",{"$f":"IF(ProjectInfoTable[[#This Row],[Proposed Equipment]]=\"\",\"\",IF(ProjectInfoTable[[#This Row],[Measure Selection]]=\"\",0,IF(ISNUMBER(FIND(\"LF\",ProjectInfoTable[[#This Row],[Proposed Equipment]],1)),1,IFERROR(VALUE(SUBSTITUTE(RIGHT(LEFT(ProjectInfoTable[[#This Row],[Proposed Equipment]],FIND(\"L\",ProjectInfoTable[[#This Row],[Proposed Equipment]],FIND(\"[\",ProjectInfoTable[[#This Row],[Proposed Equipment]],1))-1),2),\"[\",\"\")),IFERROR(LEFT(RIGHT(ProjectInfoTable[[#This Row],[Proposed Equipment]],LEN(ProjectInfoTable[[#This Row],[Proposed Equipment]])-FIND(\"-lamp\",ProjectInfoTable[[#This Row],[Proposed Equipment]],1)+2),1),1)))))","v":""},{"$f":"IF(ProjectInfoTable[[#This Row],[Proposed Equipment]]=\"\",\"\",IF(ProjectInfoTable[[#This Row],[Measure Selection]]=\"\",0,IFERROR(\n\nIF(ISNUMBER(FIND(\"W]\",ProjectInfoTable[[#This Row],[Proposed Equipment]])),\nRIGHT(MID(ProjectInfoTable[[#This Row],[Proposed Equipment]],FIND(\"W]\",ProjectInfoTable[[#This Row],[Proposed Equipment]],FIND(\"[\",ProjectInfoTable[[#This Row],[Proposed Equipment]]))-7,7),\nLEN(MID(ProjectInfoTable[[#This Row],[Proposed Equipment]],FIND(\"W]\",ProjectInfoTable[[#This Row],[Proposed Equipment]],FIND(\"[\",ProjectInfoTable[[#This Row],[Proposed Equipment]]))-7,7)) -\nIFERROR(FIND(\" - \",MID(ProjectInfoTable[[#This Row],[Proposed Equipment]],FIND(\"W]\",ProjectInfoTable[[#This Row],[Proposed Equipment]],FIND(\"[\",ProjectInfoTable[[#This Row],[Proposed Equipment]]))-7,7))+2,\nFIND(\"[\",MID(ProjectInfoTable[[#This Row],[Proposed Equipment]],FIND(\"W]\",ProjectInfoTable[[#This Row],[Proposed Equipment]],FIND(\"[\",ProjectInfoTable[[#This Row],[Proposed Equipment]]))-7,7)))),\n\nIF(ISNUMBER(FIND(\"[\",MID(ProjectInfoTable[[#This Row],[Proposed Equipment]],FIND(\"W \",ProjectInfoTable[[#This Row],[Proposed Equipment]],FIND(\"[\",ProjectInfoTable[[#This Row],[Proposed Equipment]]))-7,7))),\nRIGHT(MID(ProjectInfoTable[[#This Row],[Proposed Equipment]],FIND(\"W \",ProjectInfoTable[[#This Row],[Proposed Equipment]],FIND(\"[\",ProjectInfoTable[[#This Row],[Proposed Equipment]]))-7,7),\nLEN(MID(ProjectInfoTable[[#This Row],[Proposed Equipment]],FIND(\"W \",ProjectInfoTable[[#This Row],[Proposed Equipment]],FIND(\"[\",ProjectInfoTable[[#This Row],[Proposed Equipment]]))-7,7)) -\nIFERROR(FIND(\" - \",MID(ProjectInfoTable[[#This Row],[Proposed Equipment]],FIND(\"W \",ProjectInfoTable[[#This Row],[Proposed Equipment]],FIND(\"[\",ProjectInfoTable[[#This Row],[Proposed Equipment]]))-7,7))+2,\nFIND(\"[\",MID(ProjectInfoTable[[#This Row],[Proposed Equipment]],FIND(\"W \",ProjectInfoTable[[#This Row],[Proposed Equipment]],FIND(\"[\",ProjectInfoTable[[#This Row],[Proposed Equipment]]))-7,7)))),\n\nRIGHT(MID(ProjectInfoTable[[#This Row],[Proposed Equipment]],FIND(\"W \",ProjectInfoTable[[#This Row],[Proposed Equipment]],FIND(\"[\",ProjectInfoTable[[#This Row],[Proposed Equipment]]))-7,7),\nLEN(MID(ProjectInfoTable[[#This Row],[Proposed Equipment]],FIND(\"W \",ProjectInfoTable[[#This Row],[Proposed Equipment]],FIND(\"[\",ProjectInfoTable[[#This Row],[Proposed Equipment]]))-7,7)) -\nFIND(\" - \",MID(ProjectInfoTable[[#This Row],[Proposed Equipment]],FIND(\"W \",ProjectInfoTable[[#This Row],[Proposed Equipment]],FIND(\"[\",ProjectInfoTable[[#This Row],[Proposed Equipment]]))-7,7))-2\n))),0)))","v":""},{"$f":"IF(ProjectInfoTable[[#This Row],[Proposed Equipment]]=\"\",\"\",IFERROR(ProjectInfoTable[[#This Row],[Lamps (Proposed)]]*ProjectInfoTable[[#This Row],[Lamp W (Proposed)]],\"\"))","v":""},{"$f":"IF(ProjectInfoTable[[#This Row],[Proposed Equipment]]=\"\",\"\",IFERROR(ProjectInfoTable[[#This Row],[Quantity (Proposed)]]*ProjectInfoTable[[#This Row],[Fixture W (Proposed)]],\"\"))","v":""},{"$f":"IFERROR(INDEX(OperatingHours_List,MATCH(ProjectInfoTable[[#This Row],[OpSch]],OperatingSchedules_List,0))*ProjectInfoTable[[#This Row],[Space W (Proposed)]]/1000,\"\")","v":""},{"$f":"IF(OR(ISNUMBER(FIND(\"Controls Only\",ProjectInfoTable[[#This Row],[Proposed Equipment]],1)),ProjectInfoTable[[#This Row],[ControlsOnly]]=\"Re-Commissioning\"),\"Controls Only\",IFERROR(INDEX(OperatingHours_List,MATCH(ProjectInfoTable[[#This Row],[OpSch]],OperatingSchedules_List,0))*ProjectInfoTable[[#This Row],[Space W (Proposed)]]/1000*(IFERROR(INDEX(ControlsLookup[],MATCH(SUBSTITUTE(RIGHT(ProjectInfoTable[[#This Row],[Proposed Equipment]],LEN(ProjectInfoTable[[#This Row],[Proposed Equipment]])-FIND(\"]\",ProjectInfoTable[[#This Row],[Proposed Equipment]],1)-3),\" reused\",\"\"),ControlsLookup[Controls],0),MATCH(\"CSF_\"&ProjectState,ControlsLookup[#Headers],0)),0))*-1,\"\"))","v":""},{"$f":"IF(OR(ProjectInfoTable[[#This Row],[Fixture kWh (Proposed)]]=\"\",ProjectInfoTable[[#This Row],[Control kWh (Proposed)]]=\"\"),\"\",IFERROR(ProjectInfoTable[[#This Row],[Fixture kWh (Proposed)]]+ProjectInfoTable[[#This Row],[Control kWh (Proposed)]],0))","v":""},{"$f":"IF(\n OR(\n  ProjectInfoTable[[#This Row],[Proposed Equipment]]=\"\",\n  ProjectInfoTable[[#This Row],[Quantity (Proposed)]]=\"\"\n ),\n \"\",\n IF(\n  AND(\n   OR(\n    AND(\n     ProjectState=\"UT\",\n     RateSchedule=12\n    ),\n    AND(\n     ProjectState=\"ID\",\n     RateSchedule=12\n    ),\n    AND(\n     ProjectState=\"WY\",\n     RateSchedule=58\n    )\n   ),\n   ISNUMBER(FIND(\"Street:\",ProjectInfoTable[[#This Row],[Existing Equipment]],1))\n  ),\n  IF(\n   AND(\n    RateSchedule=53,\n    ISNUMBER(FIND(\"LED\",ProjectInfoTable[[#This Row],[Proposed Equipment]],1))\n   ),\n   ProjectInfoTable[[#This Row],[Fixture kWh (Proposed)]]\n   *\n   INDEX(\n    INDIRECT(\"RateSchedules_\"&ProjectState&\"_Table[kWh Rate]\"),\n    MATCH(RateSchedule,INDIRECT(\"RateSchedules_\"&ProjectState&\"_Table[Rate Schedule]\"),0)\n   ),\n   IFERROR(INDEX(\n    StreetLightingRates_Table[],\n    MATCH(\"LED\"&IF(AND(ProjectInfoTable[[#This Row],[Fixture W (Proposed)]]>0,ProjectInfoTable[[#This Row],[Fixture W (Proposed)]]<=70),70,IF(AND(ProjectInfoTable[[#This Row],[Fixture W (Proposed)]]>70,ProjectInfoTable[[#This Row],[Fixture W (Proposed)]]<=100),100,IF(AND(ProjectInfoTable[[#This Row],[Fixture W (Proposed)]]>100,ProjectInfoTable[[#This Row],[Fixture W (Proposed)]]<=150),150,IF(AND(ProjectInfoTable[[#This Row],[Fixture W (Proposed)]]>150,ProjectInfoTable[[#This Row],[Fixture W (Proposed)]]<=200),200,IF(AND(ProjectInfoTable[[#This Row],[Fixture W (Proposed)]]>200,ProjectInfoTable[[#This Row],[Fixture W (Proposed)]]<=250),250,IF(AND(ProjectInfoTable[[#This Row],[Fixture W (Proposed)]]>250,ProjectInfoTable[[#This Row],[Fixture W (Proposed)]]<=400),400,\"\")))))),StreetLightingRates_Table[TechWattage],0),\n    MATCH(ProjectState&RateSchedule,StreetLightingRates_Table[#Headers],0)\n   )\n   *ProjectInfoTable[[#This Row],[Lamps (Proposed)]]*ProjectInfoTable[[#This Row],[Quantity (Proposed)]]*12,\n  ProjectInfoTable[[#This Row],[Space kWh (Proposed)]]*INDEX(INDIRECT(\"RateSchedules_\"&ProjectState&\"_Table[kWh Rate]\"),MATCH(RateSchedule,INDIRECT(\"RateSchedules_\"&ProjectState&\"_Table[Rate Schedule]\"),0)))),\n  IFERROR(ProjectInfoTable[[#This Row],[Space kWh (Proposed)]]*INDEX(INDIRECT(\"RateSchedules_\"&ProjectState&\"_Table[kWh Rate]\"),MATCH(RateSchedule,INDIRECT(\"RateSchedules_\"&ProjectState&\"_Table[Rate Schedule]\"),0)),0)\n  +\n  IF(OR(ISNUMBER(FIND(\"Exterior:\",ProjectInfoTable[[#This Row],[Existing Equipment]],1)),ISNUMBER(FIND(\"Street:\",ProjectInfoTable[[#This Row],[Existing Equipment]],1))),0,IFERROR(ProjectInfoTable[[#This Row],[Space W (Proposed)]]/1000*12*DDF*INDEX(INDIRECT(\"RateSchedules_\"&ProjectState&\"_Table[kW Rate]\"),MATCH(RateSchedule,INDIRECT(\"RateSchedules_\"&ProjectState&\"_Table[Rate Schedule]\"),0)),0))\n )\n)","v":""},{"$f":"IF(ProjectInfoTable[[#This Row],[Measure Selection]]=\"\",0,IF(ProjectType=\"Retrofit\",IFERROR((ProjectInfoTable[[#This Row],[Space W (Existing, Actual)]]-ProjectInfoTable[[#This Row],[Space W (Proposed)]])/ProjectInfoTable[[#This Row],[Space W (Existing, Actual)]],\"\"),IF(AND(ProjectInfoTable[[#This Row],[Proposed Equipment]]=\"\",ProjectInfoTable[[#This Row],[Quantity (Proposed)]]=\"\"),\"\",IFERROR((ProjectInfoTable[[#This Row],[Space W (Existing, Stipulated)]]-ProjectInfoTable[[#This Row],[Space W (Proposed)]])/ProjectInfoTable[[#This Row],[Space W (Existing, Stipulated)]],\"n/a\"))))","v":""},{"$f":"IF(ProjectInfoTable[[#This Row],[Measure Selection]]=\"\",0,IF(ProjectType=\"Retrofit\",IFERROR((ProjectInfoTable[[#This Row],[Space W (Existing, Stipulated)]]-ProjectInfoTable[[#This Row],[Space W (Proposed)]])/ProjectInfoTable[[#This Row],[Space W (Existing, Stipulated)]],\"\"),ProjectInfoTable[[#This Row],[% Wattage Reduction (Actual)]]))","v":""},{"$f":"IFERROR(IF(OR(ProjectInfoTable[[#This Row],[Measure Selection]]=\"\",ProjectInfoTable[[#This Row],[ControlsOnly]]=\"Re-Commissioning\"),0,IF(AND(ProjectType=\"Retrofit\",LEFT(ProjectInfoTable[[#This Row],[Existing Equipment]],FIND(\": \",ProjectInfoTable[[#This Row],[Existing Equipment]],1)-1)<>\"Interior\"),0,((ProjectInfoTable[[#This Row],[Space W (Existing, Actual)]]-ProjectInfoTable[[#This Row],[Space W (Proposed)]])/1000*DDF)-IF(ProjectInfoTable[[#This Row],[Midstream Measure Name]]<>\"\",IFERROR(ProjectInfoTable[[#This Row],[kW Per Unit (Midstream)]]*ProjectInfoTable[[#This Row],[Quantity]]*ProjectInfoTable[[#This Row],[No. of TRL Units]],0),0))),\"\")","v":""},{"$f":"IFERROR(IF(OR(ProjectInfoTable[[#This Row],[Measure Selection]]=\"\",ProjectInfoTable[[#This Row],[ControlsOnly]]=\"Re-Commissioning\"),0,IF(AND(ISNUMBER(VALUE(ProjectInfoTable[[#This Row],[kW Per Unit]])),ProjectInfoTable[[#This Row],[kW Per Unit]]<>0),ROUND(ProjectInfoTable[[#This Row],[kW Per Unit]]*ProjectInfoTable[[#This Row],[Quantity]]*ProjectInfoTable[[#This Row],[No. of TRL Units]],2),IF(OR(AND(ProjectType=\"Retrofit\",LEFT(ProjectInfoTable[[#This Row],[Existing Equipment]],FIND(\": \",ProjectInfoTable[[#This Row],[Existing Equipment]],1)-1)<>\"Interior\"),AND(ProjectInfoTable[[#This Row],[Incentives Per Unit]]=0,INDEX(StipulatedSavingsYesNo_Table[Stipulated Savings?],MATCH(ProjectState,StipulatedSavingsYesNo_Table[State],0))=\"No\")),0,IF(ISNUMBER(FIND(\"Controls Only\",ProjectInfoTable[[#This Row],[Proposed Equipment]],1)),0,ROUND(((ProjectInfoTable[[#This Row],[Space W (Existing, Stipulated)]]-ProjectInfoTable[[#This Row],[Space W (Proposed)]])/1000*DDF)-IF(ProjectInfoTable[[#This Row],[Midstream Measure Name]]<>\"\",IFERROR(ProjectInfoTable[[#This Row],[kW Per Unit (Midstream)]]*ProjectInfoTable[[#This Row],[Quantity]]*ProjectInfoTable[[#This Row],[No. of TRL Units]],0),0),2))))),\"\")","v":""},{"$f":"IFERROR(IF(OR(ProjectInfoTable[[#This Row],[Control kWh (Proposed)]]=\"Controls Only\",ProjectInfoTable[[#This Row],[Measure Selection]]=\"\"),0,ROUND((ProjectInfoTable[[#This Row],[Fixture kWh (Existing, Actual)]]-ProjectInfoTable[[#This Row],[Fixture kWh (Proposed)]])*IF(VALUE(SpaceTypesInfo_Table[[#Totals],[HVAC Effects]])=0,1,1+VALUE(SpaceTypesInfo_Table[[#Totals],[HVAC Effects]])),0)),\"\")","v":""},{"$f":"IFERROR(IF(ProjectInfoTable[[#This Row],[Control kWh (Proposed)]]=\"Controls Only\",ROUND(IFERROR(INDEX(OperatingHours_List,MATCH(ProjectInfoTable[[#This Row],[OpSch]],OperatingSchedules_List,0))*IF(OR(ProjectType <> \"Retrofit\",ProjectInfoTable[[#This Row],[Space W (Proposed)]]>0),ProjectInfoTable[[#This Row],[Space W (Proposed)]],ProjectInfoTable[[#This Row],[Space W (Existing, Actual)]])/1000*(IFERROR(INDEX(ControlsLookup[],MATCH(RIGHT(ProjectInfoTable[[#This Row],[Proposed Equipment]],LEN(ProjectInfoTable[[#This Row],[Proposed Equipment]])-FIND(\"]\",ProjectInfoTable[[#This Row],[Proposed Equipment]],1)-3),ControlsLookup[Controls],0),MATCH(\"CSF_\"&ProjectState,ControlsLookup[#Headers],0)),0))*IF(VALUE(SpaceTypesInfo_Table[[#Totals],[HVAC Effects]])=0,1,1+VALUE(SpaceTypesInfo_Table[[#Totals],[HVAC Effects]])),\"\"),0),ROUND(IFERROR((ProjectInfoTable[[#This Row],[Control kWh (Existing, Actual)]]-ProjectInfoTable[[#This Row],[Control kWh (Proposed)]])*IF(VALUE(SpaceTypesInfo_Table[[#Totals],[HVAC Effects]])=0,1,1+VALUE(SpaceTypesInfo_Table[[#Totals],[HVAC Effects]])),\"\"),0)),\"\")","v":""},{"$f":"IF(OR(ProjectInfoTable[[#This Row],[Proposed Equipment]]=\"\",ProjectInfoTable[[#This Row],[Quantity (Proposed)]]=\"\"),\"\",IF(ProjectInfoTable[[#This Row],[Fixture Measure]]=\"\",0,IF(AND(ProjectInfoTable[[#This Row],[Incentives Per Unit]]=0,INDEX(StipulatedSavingsYesNo_Table[Stipulated Savings?],MATCH(ProjectState,StipulatedSavingsYesNo_Table[State],0))=\"No\"),0,ProjectInfoTable[[#This Row],[Total   kWh/yr Savings (Actual)]]-ProjectInfoTable[[#This Row],[Control Measure kWh/yr Savings (Actual)]])))","v":""},{"$f":"IF(OR(ProjectInfoTable[[#This Row],[Proposed Equipment]]=\"\",ProjectInfoTable[[#This Row],[Quantity (Proposed)]]=\"\"),\"\",IF(ProjectInfoTable[[#This Row],[Control Measure]]=\"\",0,ProjectInfoTable[[#This Row],[Control kWh/yr Savings (Actual)]]))","v":""},{"$f":"IF(AND(ProjectInfoTable[[#This Row],[Incentives Per Unit]]=0,INDEX(StipulatedSavingsYesNo_Table[Stipulated Savings?],MATCH(ProjectState,StipulatedSavingsYesNo_Table[State],0))=\"No\"),ProjectInfoTable[[#This Row],[Fixture kWh/yr Savings (Actual)]]+IF(ProjectInfoTable[[#This Row],[Control Measure kWh/yr Savings (Actual)]]=0,0,ProjectInfoTable[[#This Row],[Control kWh/yr Savings (Actual)]]),IF(AND(ProjectInfoTable[[#This Row],[Fixture kWh/yr Savings (Actual)]]=\"\",ProjectInfoTable[[#This Row],[Control kWh/yr Savings (Actual)]]=\"\"),\"\",ROUND(IF(ProjectInfoTable[[#This Row],[Fixture kWh/yr Savings (Actual)]]=\"\",0,ProjectInfoTable[[#This Row],[Fixture kWh/yr Savings (Actual)]])+IF(ProjectInfoTable[[#This Row],[Control kWh/yr Savings (Actual)]]=\"\",0,ProjectInfoTable[[#This Row],[Control kWh/yr Savings (Actual)]])-IF(ProjectInfoTable[[#This Row],[Midstream Measure Name]]<>\"\",IFERROR(ProjectInfoTable[[#This Row],[kWh Per Unit (Midstream)]]*ProjectInfoTable[[#This Row],[Quantity]]*ProjectInfoTable[[#This Row],[No. of TRL Units]],0),0),0)))","v":""},{"$f":"IFERROR(IF(OR(ProjectInfoTable[[#This Row],[Measure Selection]]=\"\",ProjectInfoTable[[#This Row],[ControlsOnly]]=\"Re-Commissioning\"),0,IF(AND(ProjectInfoTable[[#This Row],[Incentives Per Unit]]=0,INDEX(StipulatedSavingsYesNo_Table[Stipulated Savings?],MATCH(ProjectState,StipulatedSavingsYesNo_Table[State],0))=\"No\"),0,IF(ISNUMBER(FIND(\"Controls Only\",ProjectInfoTable[[#This Row],[Proposed Equipment]],1)),0,ROUND((ProjectInfoTable[[#This Row],[Fixture kWh (Existing, Stipulated)]]-ProjectInfoTable[[#This Row],[Fixture kWh (Proposed)]])*IF(VALUE(SpaceTypesInfo_Table[[#Totals],[HVAC Effects]])=0,1,1+VALUE(SpaceTypesInfo_Table[[#Totals],[HVAC Effects]])),0)))),\"\")","v":""},{"$f":"IFERROR(IF(ProjectInfoTable[[#This Row],[Control kWh (Proposed)]]=\"Controls Only\",ROUND(IFERROR(INDEX(OperatingHours_List,MATCH(ProjectInfoTable[[#This Row],[OpSch]],OperatingSchedules_List,0))*IF(OR(ProjectType <> \"Retrofit\",ProjectInfoTable[[#This Row],[Space W (Proposed)]]>0),ProjectInfoTable[[#This Row],[Space W (Proposed)]],ProjectInfoTable[[#This Row],[Space W (Existing, Stipulated)]])/1000*(IFERROR(INDEX(ControlsLookup[],MATCH(RIGHT(ProjectInfoTable[[#This Row],[Proposed Equipment]],LEN(ProjectInfoTable[[#This Row],[Proposed Equipment]])-FIND(\"]\",ProjectInfoTable[[#This Row],[Proposed Equipment]],1)-3),ControlsLookup[Controls],0),MATCH(\"CSF_\"&ProjectState,ControlsLookup[#Headers],0)),0))*IF(VALUE(SpaceTypesInfo_Table[[#Totals],[HVAC Effects]])=0,1,1+VALUE(SpaceTypesInfo_Table[[#Totals],[HVAC Effects]])),\"\"),0),ROUND(IFERROR((ProjectInfoTable[[#This Row],[Control kWh (Existing, Stipulated)]]-ProjectInfoTable[[#This Row],[Control kWh (Proposed)]])*IF(VALUE(SpaceTypesInfo_Table[[#Totals],[HVAC Effects]])=0,1,1+VALUE(SpaceTypesInfo_Table[[#Totals],[HVAC Effects]])),INDEX(ControlsLookup[],MATCH(RIGHT(ProjectInfoTable[[#This Row],[Proposed Equipment]],LEN(ProjectInfoTable[[#This Row],[Proposed Equipment]])-FIND(\"-\",ProjectInfoTable[[#This Row],[Proposed Equipment]],LEN(ProjectInfoTable[[#This Row],[Proposed Equipment]])-15)-1),ControlsLookup[Controls],0),MATCH(\"CSF_\"&ProjectState,ControlsLookup[#Headers],0))*IF(NOT(ISNUMBER(VALUE(ProjectInfoTable[[#This Row],[kWh Per Unit]]))),ProjectInfoTable[[#This Row],[Fixture kWh/yr Savings (Stipulated)]],ProjectInfoTable[[#This Row],[kWh Per Unit]]*ProjectInfoTable[[#This Row],[Quantity]]*ProjectInfoTable[[#This Row],[No. of TRL Units]])),0)),IF(OR(ProjectType=\"New Construction\",ProjectType=\"Major Renovation\"),IF(ProjectInfoTable[[#This Row],[Control kWh (Proposed)]]=\"\",\"\",0),\"\"))","v":""},{"$f":"IF(OR(ProjectInfoTable[[#This Row],[Proposed Equipment]]=\"\",ProjectInfoTable[[#This Row],[Quantity (Proposed)]]=\"\"),\"\",IF(ProjectInfoTable[[#This Row],[Fixture Measure]]=\"\",0,IF(AND(ProjectInfoTable[[#This Row],[Incentives Per Unit]]=0,INDEX(StipulatedSavingsYesNo_Table[Stipulated Savings?],MATCH(ProjectState,StipulatedSavingsYesNo_Table[State],0))=\"No\"),0,ProjectInfoTable[[#This Row],[Total   kWh/yr Savings (Stipulated)]]-ProjectInfoTable[[#This Row],[Control Measure kWh/yr Savings (Stipulated)]])))","v":""},{"$f":"IF(OR(ProjectInfoTable[[#This Row],[Proposed Equipment]]=\"\",ProjectInfoTable[[#This Row],[Quantity (Proposed)]]=\"\"),\"\",IF(ProjectInfoTable[[#This Row],[Control Measure]]=\"\",0,IF(OR(ProjectType=\"New Construction\",ProjectType=\"Major Renovation\"),IFERROR(ROUND(ProjectInfoTable[[#This Row],[Control kWh Per Unit]]*ProjectInfoTable[[#This Row],[Control Quantity]]*ProjectInfoTable[[#This Row],[Control No. of TRL Units]],0),ProjectInfoTable[[#This Row],[Control kWh/yr Savings (Stipulated)]]),ProjectInfoTable[[#This Row],[Control kWh/yr Savings (Stipulated)]])))","v":""},{"$f":"IF(AND(ProjectInfoTable[[#This Row],[Incentives Per Unit]]=0,INDEX(StipulatedSavingsYesNo_Table[Stipulated Savings?],MATCH(ProjectState,StipulatedSavingsYesNo_Table[State],0))=\"No\"),ProjectInfoTable[[#This Row],[Fixture kWh/yr Savings (Stipulated)]]+IF(ProjectInfoTable[[#This Row],[Control Measure kWh/yr Savings (Stipulated)]]=0,0,ProjectInfoTable[[#This Row],[Control kWh/yr Savings (Stipulated)]]),IF(OR(ISNUMBER(VALUE(ProjectInfoTable[[#This Row],[kWh Per Unit]])),ISNUMBER(VALUE(ProjectInfoTable[[#This Row],[Control kWh Per Unit]]))),ROUND(IFERROR(ProjectInfoTable[[#This Row],[kWh Per Unit]]*ProjectInfoTable[[#This Row],[Quantity]]*ProjectInfoTable[[#This Row],[No. of TRL Units]],0)+IFERROR(ProjectInfoTable[[#This Row],[Control kWh Per Unit]]*ProjectInfoTable[[#This Row],[Control Quantity]]*ProjectInfoTable[[#This Row],[Control No. of TRL Units]],ProjectInfoTable[[#This Row],[Control kWh/yr Savings (Stipulated)]]),0),IF(AND(ProjectInfoTable[[#This Row],[Fixture kWh/yr Savings (Stipulated)]]=\"\",ProjectInfoTable[[#This Row],[Control kWh/yr Savings (Stipulated)]]=\"\"),\"\",ROUND(IF(ProjectInfoTable[[#This Row],[Fixture kWh/yr Savings (Stipulated)]]=\"\",0,ProjectInfoTable[[#This Row],[Fixture kWh/yr Savings (Stipulated)]])+IF(ProjectInfoTable[[#This Row],[Control kWh/yr Savings (Stipulated)]]=\"\",0,ProjectInfoTable[[#This Row],[Control kWh/yr Savings (Stipulated)]])-IF(ProjectInfoTable[[#This Row],[Midstream Measure Name]]<>\"\",IFERROR(ProjectInfoTable[[#This Row],[kWh Per Unit (Midstream)]]*ProjectInfoTable[[#This Row],[Quantity]]*ProjectInfoTable[[#This Row],[No. of TRL Units]],0),0),0))))","v":""},{"$f":"IF(OR(ISNUMBER(FIND(\"Midstream\",ProjectInfoTable[[#This Row],[Fixture Measure]])),ISNUMBER(FIND(\"SBDI\",ProjectInfoTable[[#This Row],[Fixture Measure]])),ISNUMBER(FIND(\"Small Bu\",ProjectInfoTable[[#This Row],[Fixture Measure]]))),\n\nIF(ProjectInfoTable[[#This Row],[Measure Selection]]=\"\",0,\n\nIF(ISNUMBER(FIND(\"/U]\",ProjectInfoTable[[#This Row],[Proposed Equipment]])),IFERROR(MID(ProjectInfoTable[[#This Row],[Proposed Equipment]],FIND(\"$\",ProjectInfoTable[[#This Row],[Proposed Equipment]],1)+1,FIND(\"/U]\",ProjectInfoTable[[#This Row],[Proposed Equipment]],1)-FIND(\"$\",ProjectInfoTable[[#This Row],[Proposed Equipment]],1)-1)*ProjectInfoTable[[#This Row],[Lamps (Proposed)]]*ProjectInfoTable[[#This Row],[Quantity (Proposed)]],0),\nIF(ISNUMBER(FIND(\"/U \",ProjectInfoTable[[#This Row],[Proposed Equipment]])),IFERROR(MID(ProjectInfoTable[[#This Row],[Proposed Equipment]],FIND(\"$\",ProjectInfoTable[[#This Row],[Proposed Equipment]],1)+1,FIND(\"/U \",ProjectInfoTable[[#This Row],[Proposed Equipment]],1)-FIND(\"$\",ProjectInfoTable[[#This Row],[Proposed Equipment]],1)-1)*ProjectInfoTable[[#This Row],[Lamps (Proposed)]]*ProjectInfoTable[[#This Row],[Quantity (Proposed)]],0),\nIFERROR(ProjectInfoTable[[#This Row],[Fixture Measure kWh/yr Savings (Stipulated)]]/SUM(ProjectInfoTable[Total   kWh/yr Savings (Stipulated)])*ProjectCost_Total,\"\")))),\"\")","v":""},{"$f":"IFERROR(IF(ProjectInfoTable[[#This Row],[Fixture Measure kWh/yr Savings (Stipulated)]]=0,0,IF(ProjectType=\"Retrofit\",IF(OR(ISNUMBER(FIND(\"Midstream\",ProjectInfoTable[[#This Row],[Fixture Measure]])),ISNUMBER(FIND(\"SBDI\",ProjectInfoTable[[#This Row],[Fixture Measure]])),ISNUMBER(FIND(\"Small Bu\",ProjectInfoTable[[#This Row],[Fixture Measure]]))),ProjectInfoTable[[#This Row],[Measure Cost (Direct)]],IFERROR(ProjectInfoTable[[#This Row],[Fixture Measure kWh/yr Savings (Stipulated)]]/kWhSavings_Typical_Stipulated*(ProjectCost_Total-SUM(ProjectInfoTable[Measure Cost (Direct)])),\"\")),IF(ProjectInfoTable[[#This Row],[Proposed Equipment]]=\"\",\"\",IFERROR(SpaceTypesInfo_Table[[#Totals],[NCMR Int Cost]]*ProjectInfoTable[[#This Row],[Fixture Measure kWh/yr Savings (Stipulated)]]/SUMIFS(ProjectInfoTable[Total   kWh/yr Savings (Stipulated)],ProjectInfoTable[Proposed Equipment],\"*Interior*\"),0)))),\"\")","v":""},{"$f":"IFERROR(\n IF(\n  ProjectInfoTable[[#This Row],[Control Measure kWh/yr Savings (Stipulated)]]=0,\n  0,\n  IF(\n   ProjectType=\"Retrofit\",\n    IFERROR(\n     ProjectInfoTable[[#This Row],[Control Measure kWh/yr Savings (Stipulated)]]\n     /\n     SUMIFS(ProjectInfoTable[Control Measure kWh/yr Savings (Stipulated)],ProjectInfoTable[Control Measure],\"<>\"\"\")\n     *\n     (ProjectCost_Total-SUM(ProjectInfoTable[Fixture Cost (Allocated)])),\n     \"\"\n    ),\nROUND(\n    IF(\n     ProjectInfoTable[[#This Row],[Proposed Equipment]]=\"\",\n     \"\",\n     IFERROR(\n      SpaceTypesInfo_Table[[#Totals],[NCMR Int Cost]]\n      *\n      ProjectInfoTable[[#This Row],[Control Measure kWh/yr Savings (Stipulated)]]\n      /\n      SUMIFS(ProjectInfoTable[Total   kWh/yr Savings (Stipulated)],ProjectInfoTable[Proposed Equipment],\"*Interior*\"),\n      0\n     )\n    ),\n    2\n   )\n  )\n ),\n \"\"\n)","v":""},{"$f":"IF(AND(ProjectInfoTable[[#This Row],[Fixture Cost (Allocated)]]=\"\",ProjectInfoTable[[#This Row],[Control Cost (Allocated)]]=\"\"),\"\",SUM(ProjectInfoTable[[#This Row],[Fixture Cost (Allocated)]:[Control Cost (Allocated)]]))","v":""},{"$f":"IFERROR(IF(OR(ProjectInfoTable[[#This Row],[Proposed Equipment]]=\"\",ProjectInfoTable[[#This Row],[Quantity (Proposed)]]=\"\"),\"\",IF(OR(ProjectInfoTable[[#This Row],[Measure Selection]]=\"\",ProjectInfoTable[[#This Row],[Control kWh (Proposed)]]=\"Controls Only\"),0,IF(NOT(ISNUMBER(FIND(\"Retrofit\",ProjectType,1))),ProjectInfoTable[[#This Row],[Fixture Energy Cost Savings (Stipulated)]],IF(AND(ProjectInfoTable[[#This Row],[Fixture Measure]]=\"\",ProjectInfoTable[[#This Row],[Control Measure]]<>\"\"),0,ROUND((ProjectInfoTable[[#This Row],[Total Energy Costs (Existing, Actual)]]-ProjectInfoTable[[#This Row],[Total Energy Costs (Proposed)]]),2))))),\"\")","v":""},{"$f":"IFERROR(IF(OR(ProjectInfoTable[[#This Row],[Proposed Equipment]]=\"\",ProjectInfoTable[[#This Row],[Quantity (Proposed)]]=\"\"),\"\",\n\nIF(ProjectInfoTable[[#This Row],[Control kWh (Proposed)]]=\"Controls Only\",ProjectInfoTable[[#This Row],[Control Measure kWh/yr Savings (Actual)]]*INDEX(INDIRECT(\"RateSchedules_\"&ProjectState&\"_Table[kWh Rate]\"),\nMATCH(RateSchedule,INDIRECT(\"RateSchedules_\"&ProjectState&\"_Table[Rate Schedule]\"),0)),\n\nIF(NOT(ISNUMBER(FIND(\"Retrofit\",ProjectType,1))),ProjectInfoTable[[#This Row],[Control Energy Cost Savings (Stipulated)]],IF(AND(ProjectInfoTable[[#This Row],[Fixture Measure]]=\"\",ProjectInfoTable[[#This Row],[Control Measure]]<>\"\"),ROUND((ProjectInfoTable[[#This Row],[Total Energy Costs (Existing, Actual)]]-ProjectInfoTable[[#This Row],[Total Energy Costs (Proposed)]]),2),ROUND((ProjectInfoTable[[#This Row],[Total Energy Costs (Existing, Actual)]]-ProjectInfoTable[[#This Row],[Total Energy Costs (Proposed)]]),2)*(ProjectInfoTable[[#This Row],[Control Measure kWh/yr Savings (Actual)]]/ProjectInfoTable[[#This Row],[Total   kWh/yr Savings (Actual)]]))))),\"\")","v":""},{"$f":"IF(OR(ProjectInfoTable[[#This Row],[Proposed Equipment]]=\"\",ProjectInfoTable[[#This Row],[Quantity (Proposed)]]=\"\"),\"\",ROUND(ProjectInfoTable[[#This Row],[Fixture Energy Cost Savings (Actual)]]+ProjectInfoTable[[#This Row],[Control Energy Cost Savings (Actual)]],2))","v":""},{"$f":"IF(OR(ProjectInfoTable[[#This Row],[Proposed Equipment]]=\"\",ProjectInfoTable[[#This Row],[Quantity (Proposed)]]=\"\"),\"\",IF(OR(ISNUMBER(VALUE(ProjectInfoTable[[#This Row],[kWh Per Unit]])),ISNUMBER(VALUE(ProjectInfoTable[[#This Row],[kW Per Unit]]))),IFERROR(ProjectInfoTable[[#This Row],[Fixture Measure kWh/yr Savings (Stipulated)]]*INDEX(INDIRECT(\"RateSchedules_\"&ProjectState&\"_Table[kWh Rate]\"),MATCH(RateSchedule,INDIRECT(\"RateSchedules_\"&ProjectState&\"_Table[Rate Schedule]\"),0)),0)+IFERROR(ProjectInfoTable[[#This Row],[kW Demand Reduction (Stipulated)]]/1000*12*INDEX(INDIRECT(\"RateSchedules_\"&ProjectState&\"_Table[kW Rate]\"),MATCH(RateSchedule,INDIRECT(\"RateSchedules_\"&ProjectState&\"_Table[Rate Schedule]\"),0)),0),IFERROR(ROUND((ProjectInfoTable[[#This Row],[Total Energy Costs (Existing, Stipulated)]]-ProjectInfoTable[[#This Row],[Total Energy Costs (Proposed)]])*ProjectInfoTable[[#This Row],[Fixture Measure kWh/yr Savings (Stipulated)]]/ProjectInfoTable[[#This Row],[Total   kWh/yr Savings (Stipulated)]],2),0)))","v":""},{"$f":"IF(OR(ProjectInfoTable[[#This Row],[Proposed Equipment]]=\"\",ProjectInfoTable[[#This Row],[Quantity (Proposed)]]=\"\"),\"\",\nIF(ProjectInfoTable[[#This Row],[Control kWh (Proposed)]]=\"Controls Only\",ProjectInfoTable[[#This Row],[Control Measure kWh/yr Savings (Stipulated)]]*INDEX(INDIRECT(\"RateSchedules_\"&ProjectState&\"_Table[kWh Rate]\"),\nMATCH(RateSchedule,INDIRECT(\"RateSchedules_\"&ProjectState&\"_Table[Rate Schedule]\"),0)),IF(OR(ISNUMBER(VALUE(ProjectInfoTable[[#This Row],[Control kWh Per Unit]])),\nISNUMBER(VALUE(ProjectInfoTable[[#This Row],[Control kW Per Unit]]))),IFERROR(ProjectInfoTable[[#This Row],[Control Measure kWh/yr Savings (Stipulated)]]*INDEX(INDIRECT(\"RateSchedules_\"&ProjectState&\"_Table[kWh Rate]\"),\nMATCH(RateSchedule,INDIRECT(\"RateSchedules_\"&ProjectState&\"_Table[Rate Schedule]\"),0)),0)+IFERROR(ProjectInfoTable[[#This Row],[kW Demand Reduction (Stipulated)]]/1000*12*\nINDEX(INDIRECT(\"RateSchedules_\"&ProjectState&\"_Table[kW Rate]\"),MATCH(RateSchedule,INDIRECT(\"RateSchedules_\"&ProjectState&\"_Table[Rate Schedule]\"),0)),0),\nIFERROR(ROUND((ProjectInfoTable[[#This Row],[Total Energy Costs (Existing, Stipulated)]]-ProjectInfoTable[[#This Row],[Total Energy Costs (Proposed)]])*ProjectInfoTable[[#This Row],[Control Measure kWh/yr Savings (Stipulated)]]/\nProjectInfoTable[[#This Row],[Total   kWh/yr Savings (Stipulated)]],2),0))))","v":""},{"$f":"IF(OR(ProjectInfoTable[[#This Row],[Proposed Equipment]]=\"\",ProjectInfoTable[[#This Row],[Quantity (Proposed)]]=\"\"),\"\",ROUND(ProjectInfoTable[[#This Row],[Fixture Energy Cost Savings (Stipulated)]]+ProjectInfoTable[[#This Row],[Control Energy Cost Savings (Stipulated)]],2))","v":""},{"$f":"IF(ProjectInfoTable[[#This Row],[OpSch]]=\"\",\"\",IF(OR(ProjectInfoTable[[#This Row],[Fixture Measure]]=\"\",ProjectInfoTable[[#This Row],[Eligible Fixture Measure]]<>TRUE),0,ProjectInfoTable[[#This Row],[Fixture Incentives (pre-capping)]])+IF(OR(ProjectInfoTable[[#This Row],[Control Measure]]=\"\",ProjectInfoTable[[#This Row],[Eligible Control Measure]]<>TRUE),0,ProjectInfoTable[[#This Row],[Control Incentives (pre-capping)]]))","v":""},{"$f":"IF(OR(ProjectInfoTable[[#This Row],[Fixture Measure]]<>\"\",ProjectInfoTable[[#This Row],[Control Measure]]<>\"\"),IF(ProjectInfoTable[[#This Row],[Fixture Incentives]]=\"\",0,ProjectInfoTable[[#This Row],[Fixture Incentives]])+IF(ProjectInfoTable[[#This Row],[Control Incentives]]=\"\",0,ProjectInfoTable[[#This Row],[Control Incentives]]),\"\")","v":""},null,{"$f":"IF(OR(ProjectInfoTable[[#This Row],[Fixture Measure]]=\"\",ProjectInfoTable[[#This Row],[OpSch]]=\"\",ProjectInfoTable[[#This Row],[Eligible Fixture Measure]]<>TRUE),\"\",\nIF(OR(ISNUMBER(FIND(\"SBDI\",ProjectInfoTable[[#This Row],[Fixture Measure]])),ISNUMBER(FIND(\"Small Bu\",ProjectInfoTable[[#This Row],[Fixture Measure]]))),IFERROR(0.75*ProjectInfoTable[[#This Row],[Fixture Cost (Allocated)]],\"cost error\"),\nIF(AND(OR(ProjectType=\"New Construction\",ProjectType=\"Major Renovation\"),LPDCodeToProposed<0.1,ISNUMBER(FIND(\"Interior\",ProjectInfoTable[[#This Row],[Proposed Equipment]],1))),0,IFERROR(ProjectInfoTable[[#This Row],[Incentives Per Unit]]*ProjectInfoTable[[#This Row],[Quantity]]*ProjectInfoTable[[#This Row],[No. of TRL Units]],\"TRL Error\"))))","v":""},{"$f":"IF(\n    OR(\n        ProjectInfoTable[[#This Row],[Fixture Measure]] = \"\",\n        ProjectInfoTable[[#This Row],[OpSch]] = \"\",\n        ProjectInfoTable[[#This Row],[Eligible Fixture Measure]] <> TRUE\n    ),\n    \"\",\n    IF(\n        OR(\n            ISNUMBER(FIND(\"SBDI\", ProjectInfoTable[[#This Row],[Fixture Measure]])),\n            ISNUMBER(FIND(\"Small Bu\", ProjectInfoTable[[#This Row],[Fixture Measure]]))\n        ),\n        IFERROR(\n            (Incentive_NonTypical / Incentive_NonTypical_PreCapped) * ProjectInfoTable[[#This Row],[Fixture Incentives (pre-capping)]],\n            \"\"\n        ),\n        IF(\n            AND(\n                ProjectType = \"Retrofit\",\n                ProjectState = \"UT\",\n                ISNUMBER(FIND(\"Post-Purchase\", ProjectInfoTable[[#This Row],[Fixture Measure]], 1))\n            ),\n            IFERROR(\n                MAX(\n                    MIN(\n                        ProjectInfoTable[[#This Row],[Fixture Incentives (pre-capping)]],\n                        ProjectInfoTable[[#This Row],[Fixture Cost (Allocated)]] * 0.7\n                    ),\n                    0\n                ),\n                0\n            ),\n            IF(\n                ProjectType = \"Retrofit\",\n                IF(\n                    ISNUMBER(FIND(\"Post-Purchase\", ProjectInfoTable[[#This Row],[Fixture Measure]], 1)),\n                    ProjectInfoTable[[#This Row],[Fixture Incentives (pre-capping)]],\n                    IFERROR(\n                        $BI$3 / $BH$3 * ProjectInfoTable[[#This Row],[Fixture Incentives (pre-capping)]],\n                        \"\"\n                    )\n                ),\n                IF(\n                    ISNUMBER(FIND(\"Interior\", ProjectInfoTable[[#This Row],[Proposed Equipment]], 1)),\n                    IF(\n                        LPDCodeToProposed > 0.1,\n                        ProjectInfoTable[[#This Row],[Fixture Incentives (pre-capping)]],\n                        0\n                    ),\n                    ProjectInfoTable[[#This Row],[Fixture Incentives (pre-capping)]]\n                )\n            )\n        )\n    )\n)","v":""},{"$f":"IF(OR(ProjectInfoTable[[#This Row],[Incentives Per Unit]]=\"\",ProjectInfoTable[[#This Row],[TRL Unit]]=\"\"),\"\",IF(ProjectInfoTable[[#This Row],[Eligible Fixture Measure]]<>TRUE,\"Invalid Effective Date\",\nIF(OR(ISNUMBER(FIND(\"SBDI\",ProjectInfoTable[[#This Row],[Fixture Measure]])),ISNUMBER(FIND(\"Small Bu\",ProjectInfoTable[[#This Row],[Fixture Measure]]))),\"$0.75 / dollar cost\",\nTEXT(ProjectInfoTable[[#This Row],[Incentives Per Unit]],\"$#,##0.00\")&\" / \"&IF(ProjectInfoTable[[#This Row],[Fixture Measure]]=\"\",\"\",IF(ProjectInfoTable[[#This Row],[TRL Unit]]=\"Measure\",IF(ISNUMBER(FIND(\"Relamp\",ProjectInfoTable[[#This Row],[Proposed Equipment]],1)),\"Lamp\",\"Fixture\"),ProjectInfoTable[[#This Row],[TRL Unit]])))))","v":""},{"$f":"IF(OR(ProjectInfoTable[[#This Row],[Proposed Equipment]]=\"\",ProjectInfoTable[[#This Row],[Quantity (Proposed)]]=\"\"),\"\",IFERROR(SUBSTITUTE(IF(ProjectType=\"Retrofit\",IF(OR(ISNUMBER(FIND(\"Controls On\",ProjectInfoTable[[#This Row],[Proposed Equipment]],1))),\"\",IF(OR(ProjectInfoTable[[#This Row],[Existing Equipment]]=\"\",ProjectInfoTable[[#This Row],[Proposed Equipment]]=\"\"),\"\",IF(ProjectState=\"UT\",IFERROR(IF(AlternativeEnergyOverride=\"Yes\",IFERROR(INDEX(INDIRECT(\"EquipmentTable_\"&\"Retrofit_\"&ProjectState&\"[#All]\"),MATCH(LEFT(ProjectInfoTable[[#This Row],[Proposed Equipment]],FIND(\"[\",ProjectInfoTable[[#This Row],[Proposed Equipment]],1)-2)&\" (Alt)\",INDIRECT(\"EquipmentTable_\"&\"Retrofit_\"&ProjectState&\"[equipmentProposed]\"),0)+1,MATCH(\"measureRetrofit_\"&LEFT(ProjectInfoTable[[#This Row],[Existing Equipment]],FIND(\":\",ProjectInfoTable[[#This Row],[Existing Equipment]],1)-1)&\"_\"&IF(IFERROR(INDEX(ControlsLookup[Rank],MATCH(RIGHT(ProjectInfoTable[[#This Row],[Proposed Equipment]],LEN(ProjectInfoTable[[#This Row],[Proposed Equipment]])-FIND(\"]\",ProjectInfoTable[[#This Row],[Proposed Equipment]],1)-3),ControlsLookup[Controls],0)),0)>IFERROR(INDEX(ControlsLookup[Rank],MATCH(RIGHT(ProjectInfoTable[[#This Row],[Existing Equipment]],LEN(ProjectInfoTable[[#This Row],[Existing Equipment]])-FIND(\"]\",ProjectInfoTable[[#This Row],[Existing Equipment]],1)-3),ControlsLookup[Controls],0)),0),INDEX(ControlsLookup[Controls Type],MATCH(LEFT(ProjectInfoTable[[#This Row],[Existing Equipment]],FIND(\":\",ProjectInfoTable[[#This Row],[Existing Equipment]],1)-1)&\"_\"&RIGHT(ProjectInfoTable[[#This Row],[Proposed Equipment]],LEN(ProjectInfoTable[[#This Row],[Proposed Equipment]])-FIND(\"]\",ProjectInfoTable[[#This Row],[Proposed Equipment]],1)-3),ControlsLookup[Controls Concatenate],0)),\"None\"),INDIRECT(\"EquipmentTable_\"&\"Retrofit_\"&ProjectState&\"[#Headers]\"),0)),INDEX(INDIRECT(\"EquipmentTable_\"&IF(ProjectType=\"Retrofit\",\"Retrofit_\",\"NCMR_\")&ProjectState&\"[#All]\"),MATCH(LEFT(ProjectInfoTable[[#This Row],[Proposed Equipment]],FIND(\"[\",ProjectInfoTable[[#This Row],[Proposed Equipment]],1)-2),INDIRECT(\"EquipmentTable_\"&\"Retrofit_\"&ProjectState&\"[equipmentProposed]\"),0)+1,MATCH(\"measureRetrofit_\"&LEFT(ProjectInfoTable[[#This Row],[Existing Equipment]],FIND(\":\",ProjectInfoTable[[#This Row],[Existing Equipment]],1)-1)&\"_\"&IF(IFERROR(INDEX(ControlsLookup[Rank],MATCH(RIGHT(ProjectInfoTable[[#This Row],[Proposed Equipment]],LEN(ProjectInfoTable[[#This Row],[Proposed Equipment]])-FIND(\"]\",ProjectInfoTable[[#This Row],[Proposed Equipment]],1)-3),ControlsLookup[Controls],0)),0)>IFERROR(INDEX(ControlsLookup[Rank],MATCH(RIGHT(ProjectInfoTable[[#This Row],[Existing Equipment]],LEN(ProjectInfoTable[[#This Row],[Existing Equipment]])-FIND(\"]\",ProjectInfoTable[[#This Row],[Existing Equipment]],1)-3),ControlsLookup[Controls],0)),0),INDEX(ControlsLookup[Controls Type],MATCH(LEFT(ProjectInfoTable[[#This Row],[Existing Equipment]],FIND(\":\",ProjectInfoTable[[#This Row],[Existing Equipment]],1)-1)&\"_\"&RIGHT(ProjectInfoTable[[#This Row],[Proposed Equipment]],LEN(ProjectInfoTable[[#This Row],[Proposed Equipment]])-FIND(\"]\",ProjectInfoTable[[#This Row],[Proposed Equipment]],1)-3),ControlsLookup[Controls Concatenate],0)),\"None\"),INDIRECT(\"EquipmentTable_\"&IF(ProjectType=\"Retrofit\",\"Retrofit_\",\"NCMR_\")&ProjectState&\"[#Headers]\"),0))),INDEX(INDIRECT(\"EquipmentTable_\"&IF(ProjectType=\"Retrofit\",\"Retrofit_\",\"NCMR_\")&ProjectState&\"[#All]\"),MATCH(LEFT(ProjectInfoTable[[#This Row],[Proposed Equipment]],FIND(\"[\",ProjectInfoTable[[#This Row],[Proposed Equipment]],1)-2),INDIRECT(\"EquipmentTable_\"&IF(ProjectType=\"Retrofit\",\"Retrofit_\",\"NCMR_\")&ProjectState&\"[equipmentProposed]\"),0)+1,MATCH(\"measureRetrofit_\"&IF(AND(SBDEligible=\"Yes\",ISNUMBER(FIND(\"SBE\",ProjectInfoTable[[#This Row],[Proposed Equipment]]))),\"SBE\",LEFT(ProjectInfoTable[[#This Row],[Existing Equipment]],FIND(\":\",ProjectInfoTable[[#This Row],[Existing Equipment]],1)-1)&\"_\"&IF(IFERROR(INDEX(ControlsLookup[Rank],MATCH(RIGHT(ProjectInfoTable[[#This Row],[Proposed Equipment]],LEN(ProjectInfoTable[[#This Row],[Proposed Equipment]])-FIND(\"]\",ProjectInfoTable[[#This Row],[Proposed Equipment]],1)-3),ControlsLookup[Controls],0)),0)>IFERROR(INDEX(ControlsLookup[Rank],MATCH(RIGHT(ProjectInfoTable[[#This Row],[Existing Equipment]],LEN(ProjectInfoTable[[#This Row],[Existing Equipment]])-FIND(\"]\",ProjectInfoTable[[#This Row],[Existing Equipment]],1)-3),ControlsLookup[Controls],0)),0),INDEX(ControlsLookup[Controls Type],MATCH(LEFT(ProjectInfoTable[[#This Row],[Existing Equipment]],FIND(\":\",ProjectInfoTable[[#This Row],[Existing Equipment]],1)-1)&\"_\"&RIGHT(ProjectInfoTable[[#This Row],[Proposed Equipment]],LEN(ProjectInfoTable[[#This Row],[Proposed Equipment]])-FIND(\"]\",ProjectInfoTable[[#This Row],[Proposed Equipment]],1)-3),ControlsLookup[Controls Concatenate],0)),\"None\")),INDIRECT(\"EquipmentTable_\"&\"Retrofit_\"&ProjectState&\"[#Headers]\"),0))),\"Non-eligible fixture - Retrofit - \"&ProjectState),IFERROR(INDEX(INDIRECT(\"EquipmentTable_\"&IF(SiteSpecificOverride=\"Yes\",\"PostPurchase_\",\"Retrofit_\")&ProjectState&\"[#All]\"),MATCH(LEFT(ProjectInfoTable[[#This Row],[Proposed Equipment]],FIND(\"[\",ProjectInfoTable[[#This Row],[Proposed Equipment]],1)-2),INDIRECT(\"EquipmentTable_\"&IF(SiteSpecificOverride=\"Yes\",\"PostPurchase_\",\"Retrofit_\")&ProjectState&\"[equipmentProposed]\"),0)+1,MATCH(\"measureRetrofit_\"&IF(AND(SBDEligible=\"Yes\",ISNUMBER(FIND(\"SBE\",ProjectInfoTable[[#This Row],[Proposed Equipment]]))),\"SBE\",LEFT(ProjectInfoTable[[#This Row],[Existing Equipment]],FIND(\":\",ProjectInfoTable[[#This Row],[Existing Equipment]],1)-1)&\"_\"&IF(IFERROR(INDEX(ControlsLookup[Rank],MATCH(RIGHT(ProjectInfoTable[[#This Row],[Proposed Equipment]],LEN(ProjectInfoTable[[#This Row],[Proposed Equipment]])-FIND(\"]\",ProjectInfoTable[[#This Row],[Proposed Equipment]],1)-3),ControlsLookup[Controls],0)),0)>IFERROR(INDEX(ControlsLookup[Rank],MATCH(RIGHT(ProjectInfoTable[[#This Row],[Existing Equipment]],LEN(ProjectInfoTable[[#This Row],[Existing Equipment]])-FIND(\"]\",ProjectInfoTable[[#This Row],[Existing Equipment]],1)-3),ControlsLookup[Controls],0)),0),INDEX(ControlsLookup[Controls Type],MATCH(LEFT(ProjectInfoTable[[#This Row],[Existing Equipment]],FIND(\":\",ProjectInfoTable[[#This Row],[Existing Equipment]],1)-1)&\"_\"&RIGHT(ProjectInfoTable[[#This Row],[Proposed Equipment]],LEN(ProjectInfoTable[[#This Row],[Proposed Equipment]])-FIND(\"]\",ProjectInfoTable[[#This Row],[Proposed Equipment]],1)-3),ControlsLookup[Controls Concatenate],0)),\"None\")),INDIRECT(\"EquipmentTable_\"&IF(SiteSpecificOverride=\"Yes\",\"PostPurchase_\",\"Retrofit_\")&ProjectState&\"[#Headers]\"),0)),\"Non-eligible fixture - Retrofit - \"&ProjectState)))),IFERROR(INDEX(INDIRECT(\"EquipmentTable_\"&\"NCMR_\"&ProjectState),MATCH(RIGHT(LEFT(ProjectInfoTable[[#This Row],[Proposed Equipment]],FIND(\" (\",ProjectInfoTable[[#This Row],[Proposed Equipment]],1)-1),LEN(LEFT(ProjectInfoTable[[#This Row],[Proposed Equipment]],FIND(\" (\",ProjectInfoTable[[#This Row],[Proposed Equipment]],1)-2))-FIND(\":\",ProjectInfoTable[[#This Row],[Proposed Equipment]],1)),INDIRECT(\"EquipmentTable_\"&\"NCMR_\"&ProjectState&\"[equipmentProposed]\"),0),MATCH(\"measureNCMR_\"&LEFT(ProjectInfoTable[[#This Row],[Proposed Equipment]],FIND(\":\",ProjectInfoTable[[#This Row],[Proposed Equipment]],1)-1)&\"_\"&IF(LEN(ProjectInfoTable[[#This Row],[Proposed Equipment]])>FIND(\"]\",ProjectInfoTable[[#This Row],[Proposed Equipment]]),INDEX(ControlsLookup[Controls Type],MATCH(LEFT(ProjectInfoTable[[#This Row],[Proposed Equipment]],FIND(\":\",ProjectInfoTable[[#This Row],[Proposed Equipment]],1)-1)&\"_\"&RIGHT(ProjectInfoTable[[#This Row],[Proposed Equipment]],LEN(ProjectInfoTable[[#This Row],[Proposed Equipment]])-FIND(\"]\",ProjectInfoTable[[#This Row],[Proposed Equipment]],1)-3),ControlsLookup[Controls Concatenate],0)),\"None\"),INDIRECT(\"EquipmentTable_\"&\"NCMR_\"&ProjectState&\"[#Headers]\"),0)),\"Non-eligible fixture - NCMR - \"&ProjectState)),\"[NAMESUB]\",ProjectInfoTable[[#This Row],[Measure Name Sub]]),\"Non-eligible fixture - Retrofit - \"&ProjectState))","v":""},{"$f":"IF(ISNUMBER(SEARCH(\"Case\",ProjectInfoTable[[#This Row],[Fixture Measure]])),CONCATENATE(ProjectInfoTable[[#This Row],[Fixture Measure]],ProjectInfoTable[[#This Row],[No. of TRL Units]],ProjectInfoTable[[#This Row],[Quantity]]),\"\")","v":""},{"$f":"IF(ProjectInfoTable[[#This Row],[Proposed Equipment]]=\"\",\"\",\nIF(AND(ProjectState = \"UT\",ISNUMBER(FIND(\" TLED \",ProjectInfoTable[[#This Row],[Proposed Equipment]]))),\nIF(VALUE(ProjectInfoTable[[#This Row],[Lamp W (Proposed)]])<20,\"< 20 W\",\nIF(AND(VALUE(ProjectInfoTable[[#This Row],[Lamp W (Proposed)]])<=39,VALUE(ProjectInfoTable[[#This Row],[Lamp W (Proposed)]])>=20),\">= 20 W and <= 39 W\",)),\n\nIF(AND(ProjectType=\"Retrofit\",OR(ISNUMBER(FIND(\"Retrofit Kit\",ProjectInfoTable[[#This Row],[Proposed Equipment]])),ISNUMBER(FIND(\"Fixture\",ProjectInfoTable[[#This Row],[Proposed Equipment]]))),OR(ISNUMBER(FIND(\"Exterior\",ProjectInfoTable[[#This Row],[Existing Equipment]])),ISNUMBER(FIND(\"Street\",ProjectInfoTable[[#This Row],[Existing Equipment]])))),\nIF(ProjectInfoTable[[#This Row],[Fixture W (Proposed)]]<50,\"< 50 W\",\nIF(AND(ProjectInfoTable[[#This Row],[Fixture W (Proposed)]]<90,ProjectInfoTable[[#This Row],[Fixture W (Proposed)]]>=50),\">= 50 W and < 90 W\",\nIF(AND(ProjectInfoTable[[#This Row],[Fixture W (Proposed)]]<135,ProjectInfoTable[[#This Row],[Fixture W (Proposed)]]>=90),\">= 90 W and < 135 W\",\nIF(AND(ProjectInfoTable[[#This Row],[Fixture W (Proposed)]]<220,ProjectInfoTable[[#This Row],[Fixture W (Proposed)]]>=135),\">= 135 W and < 220 W\",\nIF(ProjectInfoTable[[#This Row],[Fixture W (Proposed)]]>=220,\">= 220 W\"))))),\"\")))","v":""},{"$f":"IFERROR(INDEX(INDIRECT(\"MeasureTable_\" & ProjectState & \"[Measure Reference Number]\"),MATCH(ProjectInfoTable[[#This Row],[Fixture Measure]],INDIRECT(\"MeasureTable_\" &ProjectState&\"[Measure Name]\"),0)),\"\")","v":""},{"$f":"IFERROR(\n    _xlfn.LET(\n        _xlpm.filteredVersions,\n            _xlfn._xlws.FILTER(\n                INDIRECT(\"MeasureTable_\" & ProjectState & \"[Version Number]\"),\n                (INDIRECT(\"MeasureTable_\" & ProjectState & \"[Measure Reference Number]\") = ProjectInfoTable[[#This Row],[Fixture Measure Reference Number]]) *\n                (INDIRECT(\"MeasureTable_\" & ProjectState & \"[Eligible Measure]\") = TRUE)\n            ),\n        INDEX(_xlpm.filteredVersions, 1)\n    ),\n    \"\"\n)","v":""},{"$f":"IFERROR(\n  _xlfn.LET(\n    _xlpm.refRange, INDIRECT(\"MeasureTable_\" & ProjectState & \"[Measure Reference Number]\"),\n    _xlpm.eligibleRange, INDIRECT(\"MeasureTable_\" & ProjectState & \"[Eligible Measure]\"),\n    _xlpm.countTrue, SUMPRODUCT(--(_xlpm.refRange = ProjectInfoTable[[#This Row],[Fixture Measure Reference Number]]), --(_xlpm.eligibleRange = TRUE)),\n    _xlpm.countNonBlank, SUMPRODUCT(--(_xlpm.refRange = ProjectInfoTable[[#This Row],[Fixture Measure Reference Number]]), --(_xlpm.eligibleRange <> \"\")),\n    IF(_xlpm.countNonBlank = 0, \"\", IF(_xlpm.countTrue >= 1, TRUE, FALSE))\n  ),\n  \"\"\n)","v":""},{"$f":"IFERROR(VALUE(INDEX(INDIRECT(\"MeasureTable_\" & ProjectState & \"[CustomerIncentiveDollarperunit]\"),MATCH(ProjectInfoTable[[#This Row],[Fixture Measure]]&\" | TRUE\",INDIRECT(\"MeasureTable_\" &ProjectState&\"[MeasureEligibleConcatenate]\"),0))),\"\")","v":""},{"$f":"IFERROR(INDEX(INDIRECT(\"MeasureTable_\"&ProjectState&\"[SiteSpecificCalculation]\"),MATCH(ProjectInfoTable[[#This Row],[Fixture Measure]]&\" | TRUE\",INDIRECT(\"MeasureTable_\" &ProjectState&\"[MeasureEligibleConcatenate]\"),0)),\"\")","v":""},{"$f":"IFERROR(INDEX(INDIRECT(\"MeasureTable_\"&ProjectState&\"[GrossIncrementalAnnualElectricSavings]\"),MATCH(ProjectInfoTable[[#This Row],[Fixture Measure]]&\" | TRUE\",INDIRECT(\"MeasureTable_\" &ProjectState&\"[MeasureEligibleConcatenate]\"),0)),\"\")","v":""},{"$f":"IFERROR(INDEX(INDIRECT(\"MeasureTable_\"&ProjectState&\"[GrossAverageMonthlyDemandReduction]\"),MATCH(ProjectInfoTable[[#This Row],[Fixture Measure]]&\" | TRUE\",INDIRECT(\"MeasureTable_\" &ProjectState&\"[MeasureEligibleConcatenate]\"),0)),\"\")","v":""},{"$f":"IF(ProjectInfoTable[[#This Row],[Fixture Measure]]=\"\",\"\",IF(NOT(ISNUMBER(FIND(\"Site-Specific - Downstream\",ProjectInfoTable[[#This Row],[Fixture Measure]]))),\"\",\nIF(ISNUMBER(MATCH(SUBSTITUTE(ProjectInfoTable[[#This Row],[Fixture Measure]],\"Site-Specific - Downstream - v2\",\"Mid Market\"),INDIRECT(\"MeasureTable_\"&ProjectState&\"[Measure Name]\"),0)),\nSUBSTITUTE(ProjectInfoTable[[#This Row],[Fixture Measure]],\"Site-Specific - Downstream - v2\",\"Mid Market\"),\nSUBSTITUTE(ProjectInfoTable[[#This Row],[Fixture Measure]],\"Site-Specific - Downstream\",\"Mid Market\"))\n))","v":""},{"$f":"IF(ProjectInfoTable[[#This Row],[Midstream Measure Name]]=\"\",\"\",IFERROR(INDEX(INDIRECT(\"MeasureTable_\"&ProjectState&\"[GrossIncrementalAnnualElectricSavings ]\"),MATCH(ProjectInfoTable[[#This Row],[Midstream Measure Name]]&\" | TRUE\",INDIRECT(\"MeasureTable_\" &ProjectState&\"[MeasureEligibleConcatenate]\"),0)),\"\"))","v":""},{"$f":"IF(ProjectInfoTable[[#This Row],[Midstream Measure Name]]=\"\",\"\",IFERROR(INDEX(INDIRECT(\"MeasureTable_\"&ProjectState&\"[GrossAverage onthly emand eduction]\"),MATCH(ProjectInfoTable[[#This Row],[Midstream Measure Name]]&\" | TRUE\",INDIRECT(\"MeasureTable_\" &ProjectState&\"[MeasureEligibleConcatenate]\"),0)),\"\"))","v":""},{"$f":"IFERROR(INDEX(INDIRECT(\"MeasureTable_\"&ProjectState&\"[IncrementalMeasureCost]\"),MATCH(ProjectInfoTable[[#This Row],[Fixture Measure]]&\" | TRUE\",INDIRECT(\"MeasureTable_\" &ProjectState&\"[MeasureEligibleConcatenate]\"),0)),\"\")","v":""},{"$f":"IF(ProjectInfoTable[[#This Row],[Fixture Measure]]=\"\",\"\",IF(AND(ProjectState=\"UT\",ProjectInfoTable[[#This Row],[Measure Selection]]=\"\"),0,\nIF(OR(ISNUMBER(FIND(\"SBDI\",ProjectInfoTable[[#This Row],[Fixture Measure]])),ISNUMBER(FIND(\"Small Bu\",ProjectInfoTable[[#This Row],[Fixture Measure]]))),ProjectInfoTable[[#This Row],[Quantity (Proposed)]]*ProjectInfoTable[[#This Row],[Lamps (Proposed)]],\nIF(OR(ProjectInfoTable[[#This Row],[TRL Unit]]=\"Measure\",ProjectInfoTable[[#This Row],[TRL Unit]]=\"Linear ft.\"),IF(OR(ISNUMBER(FIND(\"Lamp\",ProjectInfoTable[[#This Row],[Fixture Measure]],1)),ISNUMBER(FIND(\"Relamp\",ProjectInfoTable[[#This Row],[Fixture Measure]],1)),ISNUMBER(FIND(\"Relamp\",ProjectInfoTable[[#This Row],[Proposed Equipment]],1))),ProjectInfoTable[[#This Row],[Quantity (Proposed)]]*ProjectInfoTable[[#This Row],[Lamps (Proposed)]],ProjectInfoTable[[#This Row],[Quantity (Proposed)]]),1))))","v":""},{"$f":"IF(ProjectInfoTable[[#This Row],[Fixture Measure]]=\"\",\"\",IF(AND(ProjectState=\"UT\",ProjectInfoTable[[#This Row],[Measure Selection]]=\"\"),0,\nIF(OR(ISNUMBER(FIND(\"SBDI\",ProjectInfoTable[[#This Row],[Fixture Measure]])),ISNUMBER(FIND(\"Small Bu\",ProjectInfoTable[[#This Row],[Fixture Measure]]))),1,\nIF(ISNUMBER(FIND(\"Controls Only\",ProjectInfoTable[[#This Row],[Proposed Equipment]],1)),IF(OR(ProjectType <> \"Retrofit\",ProjectInfoTable[[#This Row],[Space W (Proposed)]]>0),ProjectInfoTable[[#This Row],[Space W (Proposed)]],ProjectInfoTable[[#This Row],[Space W (Existing, Stipulated)]]),\nIF(TRIM(UPPER(ProjectInfoTable[[#This Row],[TRL Unit]]))=\"LINEAR FT.\",IF(OR(ISNUMBER(FIND(\"Marquee\",ProjectInfoTable[[#This Row],[Proposed Equipment]],1)),ISNUMBER(FIND(\"Cabinet\",ProjectInfoTable[[#This Row],[Proposed Equipment]],1))),VALUE(RIGHT(LEFT(ProjectInfoTable[[#This Row],[Existing Equipment]],FIND(\"LF \",ProjectInfoTable[[#This Row],[Existing Equipment]],1)-1),LEN(LEFT(ProjectInfoTable[[#This Row],[Existing Equipment]],FIND(\"LF \",ProjectInfoTable[[#This Row],[Existing Equipment]],1)-1))-FIND(\"[\",ProjectInfoTable[[#This Row],[Existing Equipment]],1))),VALUE(RIGHT(LEFT(ProjectInfoTable[[#This Row],[Proposed Equipment]],FIND(\"LF \",ProjectInfoTable[[#This Row],[Proposed Equipment]],1)-1),LEN(LEFT(ProjectInfoTable[[#This Row],[Proposed Equipment]],FIND(\"LF \",ProjectInfoTable[[#This Row],[Proposed Equipment]],1)-1))-FIND(\"[\",ProjectInfoTable[[#This Row],[Proposed Equipment]],1)))),\nIF(TRIM(UPPER(ProjectInfoTable[[#This Row],[TRL Unit]]))=\"KWH\",IF(ProjectInfoTable[[#This Row],[Fixture Measure kWh/yr Savings (Stipulated)]]=0,0,ROUND(ProjectInfoTable[[#This Row],[Fixture Measure kWh/yr Savings (Stipulated)]],2)),\nIF(TRIM(UPPER(ProjectInfoTable[[#This Row],[TRL Unit]]))=\"WATT REDUCED\",IF(ProjectInfoTable[[#This Row],[Fixture Measure kWh/yr Savings (Stipulated)]]=0,0,ROUND(ProjectInfoTable[[#This Row],[Space W (Existing, Stipulated)]]-ProjectInfoTable[[#This Row],[Space W (Proposed)]],2)),\nIF(TRIM(UPPER(ProjectInfoTable[[#This Row],[TRL Unit]]))=\"FIXTURE WATTAGE\",ProjectInfoTable[[#This Row],[Space W (Proposed)]],1))))))))","v":""},{"$f":"IFERROR(IF(OR(ISNUMBER(FIND(\"SBDI\",ProjectInfoTable[[#This Row],[Fixture Measure]])),ISNUMBER(FIND(\"Small Bu\",ProjectInfoTable[[#This Row],[Fixture Measure]]))),0,INDEX(INDIRECT(\"MeasureTable_\"&ProjectState&\"[Unit]\"),MATCH(ProjectInfoTable[[#This Row],[Fixture Measure]]&\" | TRUE\",INDIRECT(\"MeasureTable_\" &ProjectState&\"[MeasureEligibleConcatenate]\"),0))),\"\")","v":""},{"$f":"IF(ProjectInfoTable[[#This Row],[Fixture Measure]]=\"\",\"\",IF(OR(ISNUMBER(FIND(\"Lamp(s)\",ProjectInfoTable[[#This Row],[Fixture Measure]],1)),ISNUMBER(FIND(\"Relamp\",ProjectInfoTable[[#This Row],[Proposed Equipment]],1))),\"Lamp(s)\",\"Fixture(s)\"))","v":""},{"$f":"IFERROR(INDEX(INDIRECT(\"MeasureTable_\"&ProjectState&\"[ProjectCapPercent]\"),MATCH(ProjectInfoTable[[#This Row],[Fixture Measure]]&\" | TRUE\",INDIRECT(\"MeasureTable_\" &ProjectState&\"[MeasureEligibleConcatenate]\"),0)),\"\")","v":""},{"$f":"IF(OR(ProjectInfoTable[[#This Row],[Control Measure]]=\"\",ProjectInfoTable[[#This Row],[OpSch]]=\"\",ProjectInfoTable[[#This Row],[Eligible Control Measure]]<>TRUE),\"\",IF(AND(OR(ProjectType=\"New Construction\",ProjectType=\"Major Renovation\"),LPDCodeToProposed<0.1,ISNUMBER(FIND(\"Interior\",ProjectInfoTable[[#This Row],[Proposed Equipment]],1))),0,IFERROR(ProjectInfoTable[[#This Row],[Control Incentives Per Unit]]*ProjectInfoTable[[#This Row],[Control Quantity]]*ProjectInfoTable[[#This Row],[Control No. of TRL Units]],\"TRL Error\")))","v":""},{"$f":"IF(OR(ProjectInfoTable[[#This Row],[Control Measure]]=\"\",ProjectInfoTable[[#This Row],[OpSch]]=\"\",ProjectInfoTable[[#This Row],[Eligible Control Measure]]<>TRUE),\"\",IF(AND(ProjectType=\"Retrofit\",ProjectState=\"UT\",ISNUMBER(FIND(\"Post Purchase\",ProjectInfoTable[[#This Row],[Control Measure]],1))),\n\nIFERROR(MAX(MIN(ProjectInfoTable[[#This Row],[Control Incentives (pre-capping)]],ProjectInfoTable[[#This Row],[Control Cost (Allocated)]]*0.7),0),0),\n\nIF(ProjectType=\"Retrofit\",IF(ISNUMBER(FIND(\"Post Purchase\",ProjectInfoTable[[#This Row],[Control Measure]],1)),ProjectInfoTable[[#This Row],[Control Incentives (pre-capping)]],IFERROR($BI$3/$BH$3*ProjectInfoTable[[#This Row],[Control Incentives (pre-capping)]],\"\")),\n\nIF(ISNUMBER(FIND(\"Interior\",ProjectInfoTable[[#This Row],[Proposed Equipment]],1)),IF(LPDCodeToProposed>0.1,ProjectInfoTable[[#This Row],[Control Incentives (pre-capping)]],0),ProjectInfoTable[[#This Row],[Control Incentives (pre-capping)]]))))","v":""},{"$f":"IF(OR(ProjectInfoTable[[#This Row],[Control Incentives Per Unit]]=\"\",ProjectInfoTable[[#This Row],[Control TRL Unit]]=\"\"),\"\",IF(ProjectInfoTable[[#This Row],[Eligible Control Measure]]<>TRUE,\"Invalid Effective Date\",TEXT(ProjectInfoTable[[#This Row],[Control Incentives Per Unit]],\"$#,##0.00\")&\" / \"&ProjectInfoTable[[#This Row],[Control TRL Unit]]))","v":""},{"$f":"IF(ISNUMBER(FIND(\"SBE\",ProjectInfoTable[[#This Row],[Proposed Equipment]])),\"\",\n\nIF(LEN(ProjectInfoTable[[#This Row],[Proposed Equipment]])>\n\nIFERROR(FIND(\"]\",ProjectInfoTable[[#This Row],[Proposed Equipment]],1),0),\nSUBSTITUTE(\nIF(OR(ProjectInfoTable[[#This Row],[Control Method]]=\"separate\",ISNUMBER(FIND(\"Midstream\",ProjectInfoTable[[#This Row],[Fixture Measure]],1)),ISNUMBER(FIND(\"Midstream\",ProjectInfoTable[[#This Row],[Equipment Category]],1)),ISNUMBER(FIND(\"Prescriptive\",ProjectInfoTable[[#This Row],[Equipment Category]],1)),ISNUMBER(FIND(\"LED\",ProjectInfoTable[[#This Row],[Fixture Measure]],1)),ISNUMBER(FIND(\"LED Case\",ProjectInfoTable[[#This Row],[Fixture Measure]],1)),ISNUMBER(FIND(\"LED Decorative - Retrofit - WA\",ProjectInfoTable[[#This Row],[Fixture Measure]],1)),ISNUMBER(FIND(\"Lamp\",ProjectInfoTable[[#This Row],[Fixture Measure]],1)),ISNUMBER(FIND(\"Relamp\",ProjectInfoTable[[#This Row],[Fixture Measure]],1)),ISNUMBER(FIND(\"Wall Pack\",ProjectInfoTable[[#This Row],[Fixture Measure]],1)),ISNUMBER(FIND(\"Controls Only\",ProjectInfoTable[[#This Row],[Proposed Equipment]],1)),ISNUMBER(FIND(\"Re-Commissioning\",ProjectInfoTable[[#This Row],[Proposed Equipment]],1)),\n\nAND(OR(ISNUMBER(FIND(\"Exterior:\",ProjectInfoTable[[#This Row],[Proposed Equipment]],1)),ISNUMBER(FIND(\"Street:\",ProjectInfoTable[[#This Row],[Proposed Equipment]],1))),OR(ProjectState=\"ID\",ProjectState=\"UT\",ProjectState=\"WY\"))),\n\nIF(IFERROR(INDEX(ControlsLookup[],MATCH(IF(ProjectType=\"Retrofit\",LEFT(ProjectInfoTable[[#This Row],[Existing Equipment]],FIND(\":\",ProjectInfoTable[[#This Row],[Existing Equipment]],1)-1),LEFT(ProjectInfoTable[[#This Row],[Proposed Equipment]],FIND(\":\",ProjectInfoTable[[#This Row],[Proposed Equipment]],1)-1))&\"_\"&RIGHT(ProjectInfoTable[[#This Row],[Proposed Equipment]],LEN(ProjectInfoTable[[#This Row],[Proposed Equipment]])-FIND(\"]\",ProjectInfoTable[[#This Row],[Proposed Equipment]],1)-3),ControlsLookup[Controls Concatenate],0),MATCH(\n\nIF(ProjectType=\"Retrofit\",\"ControlMeasure_\",\"NCMRControlMeasure_\")&ProjectState,ControlsLookup[#Headers],0)),\"\")=0,\"\",\n\nIFERROR(INDEX(ControlsLookup[],MATCH(IF(ProjectType=\"Retrofit\",LEFT(ProjectInfoTable[[#This Row],[Existing Equipment]],FIND(\":\",ProjectInfoTable[[#This Row],[Existing Equipment]],1)-1),LEFT(ProjectInfoTable[[#This Row],[Proposed Equipment]],FIND(\":\",ProjectInfoTable[[#This Row],[Proposed Equipment]],1)-1))&\"_\"&RIGHT(ProjectInfoTable[[#This Row],[Proposed Equipment]],LEN(ProjectInfoTable[[#This Row],[Proposed Equipment]])-FIND(\"]\",ProjectInfoTable[[#This Row],[Proposed Equipment]],1)-3),ControlsLookup[Controls Concatenate],0),MATCH(\n\nIF(ProjectType=\"Retrofit\",\"ControlMeasure_\",\"NCMRControlMeasure_\")&ProjectState&IF(ProjectState=\"UT\",SegmentTag,\"\"),ControlsLookup[#Headers],0)),\"\")),\"\"),\"[NAMESUB]\",ProjectInfoTable[[#This Row],[Control Measure Name Sub]]),\"\"))","v":""},{"$f":"IF(ProjectInfoTable[[#This Row],[Proposed Equipment]]=\"\",\"\",IF(AND(ProjectState=\"UT\",ProjectType=\"Retrofit\",ISNUMBER(FIND(\"Re-Commissioning\",ProjectInfoTable[[#This Row],[Proposed Equipment]]))),\nIF(ProjectRecommissioning=\"only recommissioning\",\"Commissioning Only\",\"Commissioning w/ Lighting Upgrade\"),\"\"))","v":""},{"$f":"IFERROR(INDEX(INDIRECT(\"MeasureTable_\" & ProjectState & \"[Measure Reference Number]\"),MATCH(ProjectInfoTable[[#This Row],[Control Measure]],INDIRECT(\"MeasureTable_\" &ProjectState&\"[Measure Name]\"),0)),\"\")","v":""},{"$f":"IFERROR(\n    _xlfn.LET(\n        _xlpm.filteredVersions,\n            _xlfn._xlws.FILTER(\n                INDIRECT(\"MeasureTable_\" & ProjectState & \"[Version Number]\"),\n                (INDIRECT(\"MeasureTable_\" & ProjectState & \"[Measure Reference Number]\") = ProjectInfoTable[[#This Row],[Control Measure Reference Number]]) *\n                (INDIRECT(\"MeasureTable_\" & ProjectState & \"[Eligible Measure]\") = TRUE)\n            ),\n        INDEX(_xlpm.filteredVersions, 1)\n    ),\n    \"\"\n)","v":""},{"$f":"IFERROR(\n  _xlfn.LET(\n    _xlpm.refRange, INDIRECT(\"MeasureTable_\" & ProjectState & \"[Measure Reference Number]\"),\n    _xlpm.eligibleRange, INDIRECT(\"MeasureTable_\" & ProjectState & \"[Eligible Measure]\"),\n    _xlpm.countTrue, SUMPRODUCT(--(_xlpm.refRange = ProjectInfoTable[[#This Row],[Control Measure Reference Number]]), --(_xlpm.eligibleRange = TRUE)),\n    _xlpm.countNonBlank, SUMPRODUCT(--(_xlpm.refRange = ProjectInfoTable[[#This Row],[Control Measure Reference Number]]), --(_xlpm.eligibleRange <> \"\")),\n    IF(_xlpm.countNonBlank = 0, \"\", IF(_xlpm.countTrue >= 1, TRUE, FALSE))\n  ),\n  \"\"\n)","v":""},{"$f":"IF(ProjectInfoTable[[#This Row],[Proposed Equipment]]=\"\",\"\",IFERROR(INDEX(INDIRECT(\"EquipmentTable_\"&IF(ProjectType=\"Retrofit\",\"Retrofit_\",\"NCMR_\")&ProjectState&\"[controlMethod]\"),MATCH(LEFT(ProjectInfoTable[[#This Row],[Proposed Equipment]],FIND(\"[\",ProjectInfoTable[[#This Row],[Proposed Equipment]],1)-2),INDIRECT(\"EquipmentTable_\"&IF(ProjectType=\"Retrofit\",\"Retrofit_\",\"NCMR_\")&ProjectState&\"[equipmentProposed]\"),0)),\"\"))","v":""},{"$f":"IFERROR(VALUE(INDEX(INDIRECT(\"MeasureTable_\" & ProjectState & \"[CustomerIncentiveDollarperunit]\"),MATCH(ProjectInfoTable[[#This Row],[Control Measure]]&\" | TRUE\",INDIRECT(\"MeasureTable_\"&ProjectState&\"[MeasureEligibleConcatenate]\"),0))),\"\")","v":""},{"$f":"IFERROR(INDEX(INDIRECT(\"MeasureTable_\"&ProjectState&\"[SiteSpecificCalculation]\"),MATCH(ProjectInfoTable[[#This Row],[Control Measure]]&\" | TRUE\",INDIRECT(\"MeasureTable_\"&ProjectState&\"[MeasureEligibleConcatenate]\"),0)),\"\")","v":""},{"$f":"IFERROR(INDEX(INDIRECT(\"MeasureTable_\"&ProjectState&\"[GrossIncrementalAnnualElectricSavings ]\"),MATCH(ProjectInfoTable[[#This Row],[Control Measure]]&\" | TRUE\",INDIRECT(\"MeasureTable_\"&ProjectState&\"[MeasureEligibleConcatenate]\"),0)),\"\")","v":""},{"$f":"IFERROR(INDEX(INDIRECT(\"MeasureTable_\"&ProjectState&\"[GrossAverage onthly emand eduction]\"),MATCH(ProjectInfoTable[[#This Row],[Control Measure]]&\" | TRUE\",INDIRECT(\"MeasureTable_\"&ProjectState&\"[MeasureEligibleConcatenate]\"),0)),\"\")","v":""},{"$f":"IFERROR(INDEX(INDIRECT(\"MeasureTable_\"&ProjectState&\"[IncrementalMeasureCost]\"),MATCH(ProjectInfoTable[[#This Row],[Control Measure]]&\" | TRUE\",INDIRECT(\"MeasureTable_\"&ProjectState&\"[MeasureEligibleConcatenate]\"),0)),\"\")","v":""},{"$f":"IF(ProjectInfoTable[[#This Row],[Control Measure]]=\"\",\"\",IF(OR(ProjectInfoTable[[#This Row],[Control TRL Unit]]=\"Measure\",ProjectInfoTable[[#This Row],[Control TRL Unit]]=\"Linear ft.\"),IF(OR(ISNUMBER(FIND(\"Midstream\",ProjectInfoTable[[#This Row],[Control Measure]],1)),ISNUMBER(FIND(\"Lamp\",ProjectInfoTable[[#This Row],[Control Measure]],1))),ProjectInfoTable[[#This Row],[Quantity (Proposed)]]*ProjectInfoTable[[#This Row],[Lamps (Proposed)]],ProjectInfoTable[[#This Row],[Quantity (Proposed)]]),1))","v":""},{"$f":"IF(ProjectInfoTable[[#This Row],[Control Measure]]=\"\",\"\",IF(ISNUMBER(FIND(\"LF \",ProjectInfoTable[[#This Row],[Proposed Equipment]],1)),VALUE(RIGHT(LEFT(ProjectInfoTable[[#This Row],[Proposed Equipment]],FIND(\"LF \",ProjectInfoTable[[#This Row],[Proposed Equipment]],1)-1),LEN(LEFT(ProjectInfoTable[[#This Row],[Proposed Equipment]],FIND(\"LF \",ProjectInfoTable[[#This Row],[Proposed Equipment]],1)-1))-FIND(\"[\",ProjectInfoTable[[#This Row],[Proposed Equipment]],1))),IF(TRIM(UPPER(ProjectInfoTable[[#This Row],[Control TRL Unit]]))=\"WATT CONTROLLED\",IF(ISNUMBER(FIND(\"Controls Only\",ProjectInfoTable[[#This Row],[Proposed Equipment]],1)),IF(OR(ProjectType <> \"Retrofit\",ProjectInfoTable[[#This Row],[Space W (Proposed)]]>0),ProjectInfoTable[[#This Row],[Space W (Proposed)]],ProjectInfoTable[[#This Row],[Space W (Existing, Stipulated)]]),ProjectInfoTable[[#This Row],[Space W (Proposed)]]),IF(TRIM(UPPER(ProjectInfoTable[[#This Row],[Control TRL Unit]]))=\"KWH\",IF(ProjectInfoTable[[#This Row],[Control Measure kWh/yr Savings (Stipulated)]]=0,0,ROUND(ProjectInfoTable[[#This Row],[Control Measure kWh/yr Savings (Stipulated)]],2)),1))))","v":""},{"$f":"IFERROR(IF(LEN(ProjectInfoTable[[#This Row],[Proposed Equipment]])-(FIND(\"]\",ProjectInfoTable[[#This Row],[Proposed Equipment]],1))>0,\"Control(s)\",\"\"),\"\")","v":""},{"$f":"IFERROR(INDEX(INDIRECT(\"MeasureTable_\"&ProjectState&\"[Unit]\"),MATCH(ProjectInfoTable[[#This Row],[Control Measure]]&\" | TRUE\",INDIRECT(\"MeasureTable_\"&ProjectState&\"[MeasureEligibleConcatenate]\"),0)),\"\")","v":""},{"$f":"IFERROR(INDEX(INDIRECT(\"MeasureTable_\"&ProjectState&\"[ProjectCapPercent]\"),MATCH(ProjectInfoTable[[#This Row],[Control Measure]]&\" | TRUE\",INDIRECT(\"MeasureTable_\"&ProjectState&\"[MeasureEligibleConcatenate]\"),0)),\"\")","v":""},{"$f":"IF(OR(ProjectInfoTable[[#This Row],[Fixture Measure]]<>\"\",ProjectInfoTable[[#This Row],[Control Measure]]<>\"\"),1,\"\")","v":""},{"$f":"IF(ProjectInfoTable[[#This Row],[TRL Unit]]=\"\",\"\",IF(OR(ISNUMBER(SEARCH(\"measure\",ProjectInfoTable[[#This Row],[TRL Unit]])),ISNUMBER(SEARCH(\"linear ft\",ProjectInfoTable[[#This Row],[TRL Unit]])),ProjectInfoTable[[#This Row],[TRL Unit]]=0),990,991))","v":""},{"$f":"IFERROR(SUBSTITUTE(LEFT(ProjectInfoTable[[#This Row],[Proposed Equipment]],FIND(\"]\",ProjectInfoTable[[#This Row],[Proposed Equipment]],1)),\"Controls Only []\",\"\",1),\"\")","v":""},{"$f":"IF(ProjectInfoTable[[#This Row],[FixturesOnly]]=\"\",\"\",IF(ISNUMBER(FIND(\"L \",ProjectInfoTable[[#This Row],[Proposed Equipment]],1)),ProjectInfoTable[[#This Row],[Quantity (Proposed)]]*ProjectInfoTable[[#This Row],[Lamps (Proposed)]],ProjectInfoTable[[#This Row],[Quantity (Proposed)]]))","v":""},{"$f":"IFERROR(INDEX(ControlsLookup[Full Description],MATCH(RIGHT(ProjectInfoTable[[#This Row],[Proposed Equipment]],LEN(ProjectInfoTable[[#This Row],[Proposed Equipment]])-FIND(\"]\",ProjectInfoTable[[#This Row],[Proposed Equipment]],1)-3),ControlsLookup[Controls],0)),\"\")","v":""},{"$f":"IF(ProjectInfoTable[[#This Row],[ControlsOnly]]=\"\",\"\",IF(OR(ISNUMBER(FIND(\"Net\",ProjectInfoTable[[#This Row],[Proposed Equipment]],1)),ISNUMBER(FIND(\"Int\",ProjectInfoTable[[#This Row],[Proposed Equipment]],1))),ProjectInfoTable[[#This Row],[Quantity (Proposed)]],1))","v":""}]
[null,{"$f":"ROW(ProjectInfoTable[[#This Row],[OpSch]])-ROW(ProjectInfoTable[[#Headers],[OpSch]])","v":7},{"$f":"IFERROR(INDEX(RetrofitBaselineEquipment_Table[categoryBaseline],MATCH(RIGHT(LEFT(ProjectInfoTable[[#This Row],[Existing Equipment]],FIND(\" (\",ProjectInfoTable[[#This Row],[Existing Equipment]],1)-1),LEN(LEFT(ProjectInfoTable[[#This Row],[Existing Equipment]],FIND(\" (\",ProjectInfoTable[[#This Row],[Existing Equipment]],1)-1))-FIND(\": \",ProjectInfoTable[[#This Row],[Existing Equipment]],1)-1),RetrofitBaselineEquipment_Table[equipmentBaseline],0)),\"\")","v":""},null,null,null,null,{"$f":"IF(ProjectInfoTable[[#This Row],[Existing Equipment]]=\"\",\"\",IF(ISNUMBER(FIND(\"LF\",ProjectInfoTable[[#This Row],[Existing Equipment]],1)),1,IFERROR(VALUE(SUBSTITUTE(RIGHT(LEFT(ProjectInfoTable[[#This Row],[Existing Equipment]],FIND(\"L\",ProjectInfoTable[[#This Row],[Existing Equipment]],FIND(\"[\",ProjectInfoTable[[#This Row],[Existing Equipment]],1))-1),3),\"[\",\"\")),1)))","v":""},{"$f":"IF(ProjectInfoTable[[#This Row],[Existing Equipment]]=\"\",\"\",VALUE(SUBSTITUTE(RIGHT(LEFT(RIGHT(ProjectInfoTable[[#This Row],[Existing Equipment]],LEN(ProjectInfoTable[[#This Row],[Existing Equipment]])-IFERROR(FIND(\"[\",ProjectInfoTable[[#This Row],[Existing Equipment]],1),0)),IFERROR(FIND(\"W\",RIGHT(ProjectInfoTable[[#This Row],[Existing Equipment]],LEN(ProjectInfoTable[[#This Row],[Existing Equipment]])-IFERROR(FIND(\"[\",ProjectInfoTable[[#This Row],[Existing Equipment]],1),0)),1),0)),LEN(LEFT(RIGHT(ProjectInfoTable[[#This Row],[Existing Equipment]],LEN(ProjectInfoTable[[#This Row],[Existing Equipment]])-IFERROR(FIND(\"[\",ProjectInfoTable[[#This Row],[Existing Equipment]],1),0)),IFERROR(FIND(\"W\",RIGHT(ProjectInfoTable[[#This Row],[Existing Equipment]],LEN(ProjectInfoTable[[#This Row],[Existing Equipment]])-IFERROR(FIND(\"[\",ProjectInfoTable[[#This Row],[Existing Equipment]],1),0)),1),0)))-IFERROR(FIND(\"-\",LEFT(RIGHT(ProjectInfoTable[[#This Row],[Existing Equipment]],LEN(ProjectInfoTable[[#This Row],[Existing Equipment]])-IFERROR(FIND(\"[\",ProjectInfoTable[[#This Row],[Existing Equipment]],1),0)),IFERROR(FIND(\"W\",RIGHT(ProjectInfoTable[[#This Row],[Existing Equipment]],LEN(ProjectInfoTable[[#This Row],[Existing Equipment]])-IFERROR(FIND(\"[\",ProjectInfoTable[[#This Row],[Existing Equipment]],1),0)),1),0)),1),0)),\"W\",\"\")))","v":""},{"$f":"IF(ProjectInfoTable[[#This Row],[Existing Equipment]]=\"\",\"\",IF(AND(RIGHT(LEFT(ProjectInfoTable[[#This Row],[Existing Equipment]],FIND(\"]\",ProjectInfoTable[[#This Row],[Existing Equipment]],1)-1),1)<>\"W\"),IFERROR(TRIM(IF(IFERROR(FIND(\"FLT\",ProjectInfoTable[[#This Row],[Existing Equipment]],1),0)>0,LEFT(RIGHT(LEFT(ProjectInfoTable[[#This Row],[Existing Equipment]],FIND(\" (\",ProjectInfoTable[[#This Row],[Existing Equipment]],1)),LEN(LEFT(ProjectInfoTable[[#This Row],[Existing Equipment]],FIND(\" (\",ProjectInfoTable[[#This Row],[Existing Equipment]],1)))-FIND(\":\",ProjectInfoTable[[#This Row],[Existing Equipment]],1)-1),FIND(\" \",RIGHT(LEFT(ProjectInfoTable[[#This Row],[Existing Equipment]],FIND(\" (\",ProjectInfoTable[[#This Row],[Existing Equipment]],1)),LEN(LEFT(ProjectInfoTable[[#This Row],[Existing Equipment]],FIND(\" (\",ProjectInfoTable[[#This Row],[Existing Equipment]],1)))-FIND(\":\",ProjectInfoTable[[#This Row],[Existing Equipment]],1)-1),1)-1),RIGHT(LEFT(ProjectInfoTable[[#This Row],[Existing Equipment]],FIND(\" (\",ProjectInfoTable[[#This Row],[Existing Equipment]],1)),LEN(LEFT(ProjectInfoTable[[#This Row],[Existing Equipment]],FIND(\" (\",ProjectInfoTable[[#This Row],[Existing Equipment]],1)))-FIND(\":\",ProjectInfoTable[[#This Row],[Existing Equipment]],1)-1))&\" - \"&RIGHT(LEFT(ProjectInfoTable[[#This Row],[Existing Equipment]],FIND(\"]\",ProjectInfoTable[[#This Row],[Existing Equipment]],1)-1),LEN(LEFT(ProjectInfoTable[[#This Row],[Existing Equipment]],FIND(\"]\",ProjectInfoTable[[#This Row],[Existing Equipment]],1)-1))-FIND(\"W \",ProjectInfoTable[[#This Row],[Existing Equipment]],1)-3)),\"\"),\"\"))","v":""},{"$f":"IF(ProjectInfoTable[[#This Row],[Existing Equipment]]=\"\",\"\",IF(ProjectInfoTable[[#This Row],[Fixture/Ballast Check for Formula]]=\"\",IF(ISNUMBER(FIND(\"LF\",ProjectInfoTable[[#This Row],[Existing Equipment]],FIND(\"[\",ProjectInfoTable[[#This Row],[Existing Equipment]],1))),ProjectInfoTable[[#This Row],[Lamp W (Existing)]],ProjectInfoTable[[#This Row],[Lamps (Existing)]]*ProjectInfoTable[[#This Row],[Lamp W (Existing)]]),IFERROR(ROUND( ProjectInfoTable[[#This Row],[Lamps (Existing)]]*ProjectInfoTable[[#This Row],[Lamp W (Existing)]]*INDEX(FixtureWattageFormula_Table[A],MATCH(ProjectInfoTable[[#This Row],[Fixture/Ballast Check for Formula]],FixtureWattageFormula_Table[Concatenate],0))+INDEX(FixtureWattageFormula_Table[B],MATCH(ProjectInfoTable[[#This Row],[Fixture/Ballast Check for Formula]],FixtureWattageFormula_Table[Concatenate],0)),0),ProjectInfoTable[[#This Row],[Lamps (Existing)]]*ProjectInfoTable[[#This Row],[Lamp W (Existing)]])))","v":""},{"$f":"IF(OR(ISNUMBER(FIND(\"T8 \",ProjectInfoTable[[#This Row],[Existing Equipment]],1)),ISNUMBER(FIND(\"T5 \",ProjectInfoTable[[#This Row],[Existing Equipment]],1)),ISNUMBER(FIND(\"T12 \",ProjectInfoTable[[#This Row],[Existing Equipment]],1)),ISNUMBER(FIND(\"T12HO - 8\",ProjectInfoTable[[#This Row],[Existing Equipment]],1)),ISNUMBER(FIND(\"Incand\",ProjectInfoTable[[#This Row],[Existing Equipment]],1))),IFERROR(ROUND(INDEX(StipulatedWattage_Table[Stipulated fixture wattage],MATCH(MID(ProjectInfoTable[[#This Row],[Existing Equipment]],FIND(\"[\",ProjectInfoTable[[#This Row],[Existing Equipment]],1),FIND(\"]\",ProjectInfoTable[[#This Row],[Existing Equipment]],1)-FIND(\"[\",ProjectInfoTable[[#This Row],[Existing Equipment]],1)+1),StipulatedWattage_Table[Fixture Code],0)),0),ProjectInfoTable[[#This Row],[Fixture W (Existing, Actual)]]),ProjectInfoTable[[#This Row],[Fixture W (Existing, Actual)]])","v":""},{"$f":"IF(ProjectType=\"Retrofit\",IF(ProjectInfoTable[[#This Row],[Existing Equipment]]=\"\",\"\",ProjectInfoTable[[#This Row],[Quantity (Existing)]]*ProjectInfoTable[[#This Row],[Fixture W (Existing, Actual)]]),IF(ISNUMBER(FIND(\"Interior\",ProjectInfoTable[[#This Row],[Proposed Equipment]],1)),IF(ISNUMBER(FIND(\"Controls Only\",ProjectInfoTable[[#This Row],[Proposed Equipment]])),ProjectInfoTable[[#This Row],[Space W (Proposed)]],(AllowedWattage-SUMIFS(ProjectInfoTable[Space W (Proposed)],ProjectInfoTable[Proposed Equipment],\"*Interior*\",ProjectInfoTable[Proposed Equipment],\"*Controls Only*\"))*ProjectInfoTable[[#This Row],[Space W (Proposed)]]/(SUMIFS(ProjectInfoTable[Space W (Proposed)],ProjectInfoTable[Proposed Equipment],\"*Interior*\")-SUMIFS(ProjectInfoTable[Space W (Proposed)],ProjectInfoTable[Proposed Equipment],\"*Interior*\",ProjectInfoTable[Proposed Equipment],\"*Controls Only*\"))),\"\"))","v":""},{"$f":"IF(ProjectType=\"Retrofit\",IF(ProjectInfoTable[[#This Row],[Existing Equipment]]=\"\",\"\",ProjectInfoTable[[#This Row],[Quantity (Existing)]]*ProjectInfoTable[[#This Row],[Fixture W (Existing, Stipulated)]]),ProjectInfoTable[[#This Row],[Space W (Existing, Actual)]])","v":""},{"$f":"IFERROR(INDEX(OperatingHours_List,MATCH(ProjectInfoTable[[#This Row],[OpSch]],OperatingSchedules_List,0))*ProjectInfoTable[[#This Row],[Space W (Existing, Actual)]]/1000,\"\")","v":""},{"$f":"IFERROR(INDEX(OperatingHours_List,MATCH(ProjectInfoTable[[#This Row],[OpSch]],OperatingSchedules_List,0))*ProjectInfoTable[[#This Row],[Space W (Existing, Actual)]]/1000*(IFERROR(INDEX(ControlsLookup[],MATCH(RIGHT(ProjectInfoTable[[#This Row],[Existing Equipment]],LEN(ProjectInfoTable[[#This Row],[Existing Equipment]])-FIND(\"]\",ProjectInfoTable[[#This Row],[Existing Equipment]],1)-3),ControlsLookup[Controls],0),MATCH(\"CSF_\"&ProjectState,ControlsLookup[#Headers],0)),0))*-1,\"\")","v":""},{"$f":"IF(OR(ProjectInfoTable[[#This Row],[Fixture kWh (Existing, Actual)]]=\"\",ProjectInfoTable[[#This Row],[Control kWh (Existing, Actual)]]=\"\"),\"\",ProjectInfoTable[[#This Row],[Fixture kWh (Existing, Actual)]]+ProjectInfoTable[[#This Row],[Control kWh (Existing, Actual)]])","v":""},{"$f":"IFERROR(INDEX(OperatingHours_List,MATCH(ProjectInfoTable[[#This Row],[OpSch]],OperatingSchedules_List,0))*ProjectInfoTable[[#This Row],[Space W (Existing, Stipulated)]]/1000,\"\")","v":""},{"$f":"IFERROR(INDEX(OperatingHours_List,MATCH(ProjectInfoTable[[#This Row],[OpSch]],OperatingSchedules_List,0))*ProjectInfoTable[[#This Row],[Space W (Existing, Stipulated)]]/1000*(IFERROR(INDEX(ControlsLookup[],MATCH(RIGHT(ProjectInfoTable[[#This Row],[Existing Equipment]],LEN(ProjectInfoTable[[#This Row],[Existing Equipment]])-FIND(\"]\",ProjectInfoTable[[#This Row],[Existing Equipment]],1)-3),ControlsLookup[Controls],0),MATCH(\"CSF_\"&ProjectState,ControlsLookup[#Headers],0)),0))*-1,\"\")","v":""},{"$f":"IF(OR(ProjectInfoTable[[#This Row],[Fixture kWh (Existing, Stipulated)]]=\"\",ProjectInfoTable[[#This Row],[Control kWh (Existing, Stipulated)]]=\"\"),\"\",ProjectInfoTable[[#This Row],[Fixture kWh (Existing, Stipulated)]]+ProjectInfoTable[[#This Row],[Control kWh (Existing, Stipulated)]])","v":""},{"$f":"IF(\n AND(\n  OR(ProjectInfoTable[[#This Row],[Existing Equipment]]=\"\",ProjectInfoTable[[#This Row],[Quantity (Existing)]]=\"\"),\n  ProjectType=\"Retrofit\"\n ),\n \"\",\n IF(\n  ISNUMBER(FIND(\"Street:\",ProjectInfoTable[[#This Row],[Existing Equipment]],1)),\n  IF(\n   OR(\n    AND(ProjectState=\"UT\",RateSchedule=12),\n    AND(ProjectState=\"ID\",RateSchedule=12),\n    AND(ProjectState=\"WY\",RateSchedule=58)\n   ),\n   IFERROR(\n    INDEX(\n     StreetLightingRates_Table[],\n     MATCH(MID(ProjectInfoTable[[#This Row],[Existing Equipment]],FIND(\": \",ProjectInfoTable[[#This Row],[Existing Equipment]],1)+2,FIND(\" (\",ProjectInfoTable[[#This Row],[Existing Equipment]],1)-FIND(\": \",ProjectInfoTable[[#This Row],[Existing Equipment]],1)-2)&ProjectInfoTable[[#This Row],[Lamp W (Existing)]],StreetLightingRates_Table[TechWattage],0),\n     MATCH(ProjectState&RateSchedule,StreetLightingRates_Table[#Headers],0)\n    )\n    *\n    ProjectInfoTable[[#This Row],[Quantity (Existing)]]\n    *\n    ProjectInfoTable[[#This Row],[Lamps (Existing)]]\n    *\n    12,\n    ProjectInfoTable[[#This Row],[Space kWh (Existing, Actual)]]\n    *\n    INDEX(INDIRECT(\"RateSchedules_\"&ProjectState&\"_Table[kWh Rate]\"),MATCH(RateSchedule,INDIRECT(\"RateSchedules_\"&ProjectState&\"_Table[Rate Schedule]\"),0))\n   ),\n   IFERROR(\n    ProjectInfoTable[[#This Row],[Space kWh (Existing, Actual)]]*\n    INDEX(INDIRECT(\"RateSchedules_\"&ProjectState&\"_Table[kWh Rate]\"),MATCH(RateSchedule,INDIRECT(\"RateSchedules_\"&ProjectState&\"_Table[Rate Schedule]\"),0)),0)\n   +\n   IFERROR(IF(ISNUMBER(FIND(\"Interior:\",ProjectInfoTable[[#This Row],[Existing Equipment]],1)),\n    ProjectInfoTable[[#This Row],[Space W (Existing, Actual)]]/1000*12*DDF*\n    INDEX(INDIRECT(\"RateSchedules_\"&ProjectState&\"_Table[kW Rate]\"),MATCH(RateSchedule,INDIRECT(\"RateSchedules_\"&ProjectState&\"_Table[Rate Schedule]\"),0)),0),0)\n  ),\n  IFERROR(\n   ProjectInfoTable[[#This Row],[Space kWh (Existing, Actual)]]*\n   INDEX(INDIRECT(\"RateSchedules_\"&ProjectState&\"_Table[kWh Rate]\"),MATCH(RateSchedule,INDIRECT(\"RateSchedules_\"&ProjectState&\"_Table[Rate Schedule]\"),0)),\n   0\n  )\n  +\n  IFERROR(IF(OR(ISNUMBER(FIND(\"Interior:\",ProjectInfoTable[[#This Row],[Existing Equipment]],1)),AND(ProjectType<>\"Retrofit\",ISNUMBER(FIND(\"Interior:\",ProjectInfoTable[[#This Row],[Proposed Equipment]],1)))),\n   ProjectInfoTable[[#This Row],[Space W (Existing, Actual)]]/1000*12*DDF*\n   INDEX(INDIRECT(\"RateSchedules_\"&ProjectState&\"_Table[kW Rate]\"),MATCH(RateSchedule,INDIRECT(\"RateSchedules_\"&ProjectState&\"_Table[Rate Schedule]\"),0)),0),\n   0\n  )\n )\n)","v":0},{"$f":"IF(\n AND(\n  OR(ProjectInfoTable[[#This Row],[Existing Equipment]]=\"\",ProjectInfoTable[[#This Row],[Quantity (Existing)]]=\"\"),\n  ProjectType=\"Retrofit\"\n ),\n \"\",\n IF(\n  ISNUMBER(FIND(\"Street:\",ProjectInfoTable[[#This Row],[Existing Equipment]],1)),\n  IF(\n   OR(\n    AND(ProjectState=\"UT\",RateSchedule=12),\n    AND(ProjectState=\"ID\",RateSchedule=12),\n    AND(ProjectState=\"WY\",RateSchedule=58)\n   ),\n   IFERROR(\n    INDEX(\n     StreetLightingRates_Table[],\n     MATCH(MID(ProjectInfoTable[[#This Row],[Existing Equipment]],FIND(\": \",ProjectInfoTable[[#This Row],[Existing Equipment]],1)+2,FIND(\" (\",ProjectInfoTable[[#This Row],[Existing Equipment]],1)-FIND(\": \",ProjectInfoTable[[#This Row],[Existing Equipment]],1)-2)&ProjectInfoTable[[#This Row],[Lamp W (Existing)]],StreetLightingRates_Table[TechWattage],0),\n     MATCH(ProjectState&RateSchedule,StreetLightingRates_Table[#Headers],0)\n    )\n    *\n    ProjectInfoTable[[#This Row],[Quantity (Existing)]]\n    *\n    ProjectInfoTable[[#This Row],[Lamps (Existing)]]\n    *\n    12,\n    ProjectInfoTable[[#This Row],[Space kWh (Existing, Stipulated)]]\n    *\n    INDEX(INDIRECT(\"RateSchedules_\"&ProjectState&\"_Table[kWh Rate]\"),MATCH(RateSchedule,INDIRECT(\"RateSchedules_\"&ProjectState&\"_Table[Rate Schedule]\"),0))\n   ),\n   IFERROR(\n    ProjectInfoTable[[#This Row],[Space kWh (Existing, Stipulated)]]*\n    INDEX(INDIRECT(\"RateSchedules_\"&ProjectState&\"_Table[kWh Rate]\"),MATCH(RateSchedule,INDIRECT(\"RateSchedules_\"&ProjectState&\"_Table[Rate Schedule]\"),0)),0)\n   +\n   IFERROR(IF(ISNUMBER(FIND(\"Interior:\",ProjectInfoTable[[#This Row],[Existing Equipment]],1)),\n    ProjectInfoTable[[#This Row],[Space W (Existing, Stipulated)]]/1000*12*DDF*\n    INDEX(INDIRECT(\"RateSchedules_\"&ProjectState&\"_Table[kW Rate]\"),MATCH(RateSchedule,INDIRECT(\"RateSchedules_\"&ProjectState&\"_Table[Rate Schedule]\"),0)),0),0)\n  ),\n  IFERROR(\n   ProjectInfoTable[[#This Row],[Space kWh (Existing, Stipulated)]]*\n   INDEX(INDIRECT(\"RateSchedules_\"&ProjectState&\"_Table[kWh Rate]\"),MATCH(RateSchedule,INDIRECT(\"RateSchedules_\"&ProjectState&\"_Table[Rate Schedule]\"),0)),\n   0\n  )\n  +\n  IFERROR(IF(OR(ISNUMBER(FIND(\"Interior:\",ProjectInfoTable[[#This Row],[Existing Equipment]],1)),AND(ProjectType<>\"Retrofit\",ISNUMBER(FIND(\"Interior:\",ProjectInfoTable[[#This Row],[Proposed Equipment]],1)))),\n   ProjectInfoTable[[#This Row],[Space W (Existing, Stipulated)]]/1000*12*DDF*\n   INDEX(INDIRECT(\"RateSchedules_\"&ProjectState&\"_Table[kW Rate]\"),MATCH(RateSchedule,INDIRECT(\"RateSchedules_\"&ProjectState&\"_Table[Rate Schedule]\"),0)),0),\n   0\n  )\n )\n)","v":0},{"$f":"IF(ProjectType=\"Retrofit\",IFERROR(INDEX(RetrofitBaselineEquipment_Table[categoryBaseline],MATCH(RIGHT(LEFT(ProjectInfoTable[[#This Row],[Proposed Equipment]],FIND(\" (\",ProjectInfoTable[[#This Row],[Proposed Equipment]],1)-1),LEN(LEFT(ProjectInfoTable[[#This Row],[Proposed Equipment]],FIND(\" (\",ProjectInfoTable[[#This Row],[Proposed Equipment]],1)-1))-FIND(\": \",ProjectInfoTable[[#This Row],[Proposed Equipment]],1)-1),RetrofitBaselineEquipment_Table[equipmentBaseline],0)),\"\"),IFERROR(INDEX(#REF!,MATCH(RIGHT(LEFT(ProjectInfoTable[[#This Row],[Proposed Equipment]],FIND(\" (\",ProjectInfoTable[[#This Row],[Proposed Equipment]],1)-1),LEN(LEFT(ProjectInfoTable[[#This Row],[Proposed Equipment]],FIND(\" (\",ProjectInfoTable[[#This Row],[Proposed Equipment]],1)-1))-FIND(\": \",ProjectInfoTable[[#This Row],[Proposed Equipment]],1)-1),#REF!,0)),\"\"))","v":""},{"$f":"IF(ProjectInfoTable[[#This Row],[Proposed Equipment]]=\"\",\"\",IF(ISNUMBER(SEARCH(\"Controls Only\",ProjectInfoTable[[#This Row],[Proposed Equipment]])),\"Controls Only\",IF(ProjectType=\"Retrofit\",_xlfn.LET(_xlpm.k,LEFT(ProjectInfoTable[[#This Row],[Proposed Equipment]],FIND(\"[\",ProjectInfoTable[[#This Row],[Proposed Equipment]])-2),_xlpm.ep,_xlfn.SWITCH(ProjectState,\"UT\",EquipmentTable_Retrofit_UT[equipmentProposed],\"WY\",EquipmentTable_Retrofit_WY[equipmentProposed],\"ID\",EquipmentTable_Retrofit_ID[equipmentProposed]),_xlpm.cp,_xlfn.SWITCH(ProjectState,\"UT\",EquipmentTable_Retrofit_UT[categoryProposed],\"WY\",EquipmentTable_Retrofit_WY[categoryProposed],\"ID\",EquipmentTable_Retrofit_ID[categoryProposed]),_xlfn.XLOOKUP(_xlpm.k,_xlpm.ep,_xlpm.cp,\"Non-eligible fixture - Retrofit - \"&ProjectState)),_xlfn.LET(_xlpm.k,MID(ProjectInfoTable[[#This Row],[Proposed Equipment]],FIND(\": \",ProjectInfoTable[[#This Row],[Proposed Equipment]])+2,FIND(\" (\",ProjectInfoTable[[#This Row],[Proposed Equipment]])-(FIND(\": \",ProjectInfoTable[[#This Row],[Proposed Equipment]])+2)),_xlpm.ep,_xlfn.SWITCH(ProjectState,\"UT\",EquipmentTable_NCMR_UT[equipmentProposed],\"WY\",EquipmentTable_NCMR_WY[equipmentProposed],\"ID\",EquipmentTable_NCMR_ID[equipmentProposed]),_xlpm.cp,_xlfn.SWITCH(ProjectState,\"UT\",EquipmentTable_NCMR_UT[categoryProposed],\"WY\",EquipmentTable_NCMR_WY[categoryProposed],\"ID\",EquipmentTable_NCMR_ID[categoryProposed]),_xlfn.XLOOKUP(_xlpm.k,_xlpm.ep,_xlpm.cp,\"Non-eligible fixture - NCMR - \"&ProjectState)))))","v":""},null,null,"ü",{"$f":"IF(ProjectInfoTable[[#This Row],[Proposed Equipment]]=\"\",\"\",IF(ProjectInfoTable[[#This Row],[Measure Selection]]=\"\",0,IF(ISNUMBER(FIND(\"LF\",ProjectInfoTable[[#This Row],[Proposed Equipment]],1)),1,IFERROR(VALUE(SUBSTITUTE(RIGHT(LEFT(ProjectInfoTable[[#This Row],[Proposed Equipment]],FIND(\"L\",ProjectInfoTable[[#This Row],[Proposed Equipment]],FIND(\"[\",ProjectInfoTable[[#This Row],[Proposed Equipment]],1))-1),2),\"[\",\"\")),IFERROR(LEFT(RIGHT(ProjectInfoTable[[#This Row],[Proposed Equipment]],LEN(ProjectInfoTable[[#This Row],[Proposed Equipment]])-FIND(\"-lamp\",ProjectInfoTable[[#This Row],[Proposed Equipment]],1)+2),1),1)))))","v":""},{"$f":"IF(ProjectInfoTable[[#This Row],[Proposed Equipment]]=\"\",\"\",IF(ProjectInfoTable[[#This Row],[Measure Selection]]=\"\",0,IFERROR(\n\nIF(ISNUMBER(FIND(\"W]\",ProjectInfoTable[[#This Row],[Proposed Equipment]])),\nRIGHT(MID(ProjectInfoTable[[#This Row],[Proposed Equipment]],FIND(\"W]\",ProjectInfoTable[[#This Row],[Proposed Equipment]],FIND(\"[\",ProjectInfoTable[[#This Row],[Proposed Equipment]]))-7,7),\nLEN(MID(ProjectInfoTable[[#This Row],[Proposed Equipment]],FIND(\"W]\",ProjectInfoTable[[#This Row],[Proposed Equipment]],FIND(\"[\",ProjectInfoTable[[#This Row],[Proposed Equipment]]))-7,7)) -\nIFERROR(FIND(\" - \",MID(ProjectInfoTable[[#This Row],[Proposed Equipment]],FIND(\"W]\",ProjectInfoTable[[#This Row],[Proposed Equipment]],FIND(\"[\",ProjectInfoTable[[#This Row],[Proposed Equipment]]))-7,7))+2,\nFIND(\"[\",MID(ProjectInfoTable[[#This Row],[Proposed Equipment]],FIND(\"W]\",ProjectInfoTable[[#This Row],[Proposed Equipment]],FIND(\"[\",ProjectInfoTable[[#This Row],[Proposed Equipment]]))-7,7)))),\n\nIF(ISNUMBER(FIND(\"[\",MID(ProjectInfoTable[[#This Row],[Proposed Equipment]],FIND(\"W \",ProjectInfoTable[[#This Row],[Proposed Equipment]],FIND(\"[\",ProjectInfoTable[[#This Row],[Proposed Equipment]]))-7,7))),\nRIGHT(MID(ProjectInfoTable[[#This Row],[Proposed Equipment]],FIND(\"W \",ProjectInfoTable[[#This Row],[Proposed Equipment]],FIND(\"[\",ProjectInfoTable[[#This Row],[Proposed Equipment]]))-7,7),\nLEN(MID(ProjectInfoTable[[#This Row],[Proposed Equipment]],FIND(\"W \",ProjectInfoTable[[#This Row],[Proposed Equipment]],FIND(\"[\",ProjectInfoTable[[#This Row],[Proposed Equipment]]))-7,7)) -\nIFERROR(FIND(\" - \",MID(ProjectInfoTable[[#This Row],[Proposed Equipment]],FIND(\"W \",ProjectInfoTable[[#This Row],[Proposed Equipment]],FIND(\"[\",ProjectInfoTable[[#This Row],[Proposed Equipment]]))-7,7))+2,\nFIND(\"[\",MID(ProjectInfoTable[[#This Row],[Proposed Equipment]],FIND(\"W \",ProjectInfoTable[[#This Row],[Proposed Equipment]],FIND(\"[\",ProjectInfoTable[[#This Row],[Proposed Equipment]]))-7,7)))),\n\nRIGHT(MID(ProjectInfoTable[[#This Row],[Proposed Equipment]],FIND(\"W \",ProjectInfoTable[[#This Row],[Proposed Equipment]],FIND(\"[\",ProjectInfoTable[[#This Row],[Proposed Equipment]]))-7,7),\nLEN(MID(ProjectInfoTable[[#This Row],[Proposed Equipment]],FIND(\"W \",ProjectInfoTable[[#This Row],[Proposed Equipment]],FIND(\"[\",ProjectInfoTable[[#This Row],[Proposed Equipment]]))-7,7)) -\nFIND(\" - \",MID(ProjectInfoTable[[#This Row],[Proposed Equipment]],FIND(\"W \",ProjectInfoTable[[#This Row],[Proposed Equipment]],FIND(\"[\",ProjectInfoTable[[#This Row],[Proposed Equipment]]))-7,7))-2\n))),0)))","v":""},{"$f":"IF(ProjectInfoTable[[#This Row],[Proposed Equipment]]=\"\",\"\",IFERROR(ProjectInfoTable[[#This Row],[Lamps (Proposed)]]*ProjectInfoTable[[#This Row],[Lamp W (Proposed)]],\"\"))","v":""},{"$f":"IF(ProjectInfoTable[[#This Row],[Proposed Equipment]]=\"\",\"\",IFERROR(ProjectInfoTable[[#This Row],[Quantity (Proposed)]]*ProjectInfoTable[[#This Row],[Fixture W (Proposed)]],\"\"))","v":""},{"$f":"IFERROR(INDEX(OperatingHours_List,MATCH(ProjectInfoTable[[#This Row],[OpSch]],OperatingSchedules_List,0))*ProjectInfoTable[[#This Row],[Space W (Proposed)]]/1000,\"\")","v":""},{"$f":"IF(OR(ISNUMBER(FIND(\"Controls Only\",ProjectInfoTable[[#This Row],[Proposed Equipment]],1)),ProjectInfoTable[[#This Row],[ControlsOnly]]=\"Re-Commissioning\"),\"Controls Only\",IFERROR(INDEX(OperatingHours_List,MATCH(ProjectInfoTable[[#This Row],[OpSch]],OperatingSchedules_List,0))*ProjectInfoTable[[#This Row],[Space W (Proposed)]]/1000*(IFERROR(INDEX(ControlsLookup[],MATCH(SUBSTITUTE(RIGHT(ProjectInfoTable[[#This Row],[Proposed Equipment]],LEN(ProjectInfoTable[[#This Row],[Proposed Equipment]])-FIND(\"]\",ProjectInfoTable[[#This Row],[Proposed Equipment]],1)-3),\" reused\",\"\"),ControlsLookup[Controls],0),MATCH(\"CSF_\"&ProjectState,ControlsLookup[#Headers],0)),0))*-1,\"\"))","v":""},{"$f":"IF(OR(ProjectInfoTable[[#This Row],[Fixture kWh (Proposed)]]=\"\",ProjectInfoTable[[#This Row],[Control kWh (Proposed)]]=\"\"),\"\",IFERROR(ProjectInfoTable[[#This Row],[Fixture kWh (Proposed)]]+ProjectInfoTable[[#This Row],[Control kWh (Proposed)]],0))","v":""},{"$f":"IF(\n OR(\n  ProjectInfoTable[[#This Row],[Proposed Equipment]]=\"\",\n  ProjectInfoTable[[#This Row],[Quantity (Proposed)]]=\"\"\n ),\n \"\",\n IF(\n  AND(\n   OR(\n    AND(\n     ProjectState=\"UT\",\n     RateSchedule=12\n    ),\n    AND(\n     ProjectState=\"ID\",\n     RateSchedule=12\n    ),\n    AND(\n     ProjectState=\"WY\",\n     RateSchedule=58\n    )\n   ),\n   ISNUMBER(FIND(\"Street:\",ProjectInfoTable[[#This Row],[Existing Equipment]],1))\n  ),\n  IF(\n   AND(\n    RateSchedule=53,\n    ISNUMBER(FIND(\"LED\",ProjectInfoTable[[#This Row],[Proposed Equipment]],1))\n   ),\n   ProjectInfoTable[[#This Row],[Fixture kWh (Proposed)]]\n   *\n   INDEX(\n    INDIRECT(\"RateSchedules_\"&ProjectState&\"_Table[kWh Rate]\"),\n    MATCH(RateSchedule,INDIRECT(\"RateSchedules_\"&ProjectState&\"_Table[Rate Schedule]\"),0)\n   ),\n   IFERROR(INDEX(\n    StreetLightingRates_Table[],\n    MATCH(\"LED\"&IF(AND(ProjectInfoTable[[#This Row],[Fixture W (Proposed)]]>0,ProjectInfoTable[[#This Row],[Fixture W (Proposed)]]<=70),70,IF(AND(ProjectInfoTable[[#This Row],[Fixture W (Proposed)]]>70,ProjectInfoTable[[#This Row],[Fixture W (Proposed)]]<=100),100,IF(AND(ProjectInfoTable[[#This Row],[Fixture W (Proposed)]]>100,ProjectInfoTable[[#This Row],[Fixture W (Proposed)]]<=150),150,IF(AND(ProjectInfoTable[[#This Row],[Fixture W (Proposed)]]>150,ProjectInfoTable[[#This Row],[Fixture W (Proposed)]]<=200),200,IF(AND(ProjectInfoTable[[#This Row],[Fixture W (Proposed)]]>200,ProjectInfoTable[[#This Row],[Fixture W (Proposed)]]<=250),250,IF(AND(ProjectInfoTable[[#This Row],[Fixture W (Proposed)]]>250,ProjectInfoTable[[#This Row],[Fixture W (Proposed)]]<=400),400,\"\")))))),StreetLightingRates_Table[TechWattage],0),\n    MATCH(ProjectState&RateSchedule,StreetLightingRates_Table[#Headers],0)\n   )\n   *ProjectInfoTable[[#This Row],[Lamps (Proposed)]]*ProjectInfoTable[[#This Row],[Quantity (Proposed)]]*12,\n  ProjectInfoTable[[#This Row],[Space kWh (Proposed)]]*INDEX(INDIRECT(\"RateSchedules_\"&ProjectState&\"_Table[kWh Rate]\"),MATCH(RateSchedule,INDIRECT(\"RateSchedules_\"&ProjectState&\"_Table[Rate Schedule]\"),0)))),\n  IFERROR(ProjectInfoTable[[#This Row],[Space kWh (Proposed)]]*INDEX(INDIRECT(\"RateSchedules_\"&ProjectState&\"_Table[kWh Rate]\"),MATCH(RateSchedule,INDIRECT(\"RateSchedules_\"&ProjectState&\"_Table[Rate Schedule]\"),0)),0)\n  +\n  IF(OR(ISNUMBER(FIND(\"Exterior:\",ProjectInfoTable[[#This Row],[Existing Equipment]],1)),ISNUMBER(FIND(\"Street:\",ProjectInfoTable[[#This Row],[Existing Equipment]],1))),0,IFERROR(ProjectInfoTable[[#This Row],[Space W (Proposed)]]/1000*12*DDF*INDEX(INDIRECT(\"RateSchedules_\"&ProjectState&\"_Table[kW Rate]\"),MATCH(RateSchedule,INDIRECT(\"RateSchedules_\"&ProjectState&\"_Table[Rate Schedule]\"),0)),0))\n )\n)","v":""},{"$f":"IF(ProjectInfoTable[[#This Row],[Measure Selection]]=\"\",0,IF(ProjectType=\"Retrofit\",IFERROR((ProjectInfoTable[[#This Row],[Space W (Existing, Actual)]]-ProjectInfoTable[[#This Row],[Space W (Proposed)]])/ProjectInfoTable[[#This Row],[Space W (Existing, Actual)]],\"\"),IF(AND(ProjectInfoTable[[#This Row],[Proposed Equipment]]=\"\",ProjectInfoTable[[#This Row],[Quantity (Proposed)]]=\"\"),\"\",IFERROR((ProjectInfoTable[[#This Row],[Space W (Existing, Stipulated)]]-ProjectInfoTable[[#This Row],[Space W (Proposed)]])/ProjectInfoTable[[#This Row],[Space W (Existing, Stipulated)]],\"n/a\"))))","v":""},{"$f":"IF(ProjectInfoTable[[#This Row],[Measure Selection]]=\"\",0,IF(ProjectType=\"Retrofit\",IFERROR((ProjectInfoTable[[#This Row],[Space W (Existing, Stipulated)]]-ProjectInfoTable[[#This Row],[Space W (Proposed)]])/ProjectInfoTable[[#This Row],[Space W (Existing, Stipulated)]],\"\"),ProjectInfoTable[[#This Row],[% Wattage Reduction (Actual)]]))","v":""},{"$f":"IFERROR(IF(OR(ProjectInfoTable[[#This Row],[Measure Selection]]=\"\",ProjectInfoTable[[#This Row],[ControlsOnly]]=\"Re-Commissioning\"),0,IF(AND(ProjectType=\"Retrofit\",LEFT(ProjectInfoTable[[#This Row],[Existing Equipment]],FIND(\": \",ProjectInfoTable[[#This Row],[Existing Equipment]],1)-1)<>\"Interior\"),0,((ProjectInfoTable[[#This Row],[Space W (Existing, Actual)]]-ProjectInfoTable[[#This Row],[Space W (Proposed)]])/1000*DDF)-IF(ProjectInfoTable[[#This Row],[Midstream Measure Name]]<>\"\",IFERROR(ProjectInfoTable[[#This Row],[kW Per Unit (Midstream)]]*ProjectInfoTable[[#This Row],[Quantity]]*ProjectInfoTable[[#This Row],[No. of TRL Units]],0),0))),\"\")","v":""},{"$f":"IFERROR(IF(OR(ProjectInfoTable[[#This Row],[Measure Selection]]=\"\",ProjectInfoTable[[#This Row],[ControlsOnly]]=\"Re-Commissioning\"),0,IF(AND(ISNUMBER(VALUE(ProjectInfoTable[[#This Row],[kW Per Unit]])),ProjectInfoTable[[#This Row],[kW Per Unit]]<>0),ROUND(ProjectInfoTable[[#This Row],[kW Per Unit]]*ProjectInfoTable[[#This Row],[Quantity]]*ProjectInfoTable[[#This Row],[No. of TRL Units]],2),IF(OR(AND(ProjectType=\"Retrofit\",LEFT(ProjectInfoTable[[#This Row],[Existing Equipment]],FIND(\": \",ProjectInfoTable[[#This Row],[Existing Equipment]],1)-1)<>\"Interior\"),AND(ProjectInfoTable[[#This Row],[Incentives Per Unit]]=0,INDEX(StipulatedSavingsYesNo_Table[Stipulated Savings?],MATCH(ProjectState,StipulatedSavingsYesNo_Table[State],0))=\"No\")),0,IF(ISNUMBER(FIND(\"Controls Only\",ProjectInfoTable[[#This Row],[Proposed Equipment]],1)),0,ROUND(((ProjectInfoTable[[#This Row],[Space W (Existing, Stipulated)]]-ProjectInfoTable[[#This Row],[Space W (Proposed)]])/1000*DDF)-IF(ProjectInfoTable[[#This Row],[Midstream Measure Name]]<>\"\",IFERROR(ProjectInfoTable[[#This Row],[kW Per Unit (Midstream)]]*ProjectInfoTable[[#This Row],[Quantity]]*ProjectInfoTable[[#This Row],[No. of TRL Units]],0),0),2))))),\"\")","v":""},{"$f":"IFERROR(IF(OR(ProjectInfoTable[[#This Row],[Control kWh (Proposed)]]=\"Controls Only\",ProjectInfoTable[[#This Row],[Measure Selection]]=\"\"),0,ROUND((ProjectInfoTable[[#This Row],[Fixture kWh (Existing, Actual)]]-ProjectInfoTable[[#This Row],[Fixture kWh (Proposed)]])*IF(VALUE(SpaceTypesInfo_Table[[#Totals],[HVAC Effects]])=0,1,1+VALUE(SpaceTypesInfo_Table[[#Totals],[HVAC Effects]])),0)),\"\")","v":""},{"$f":"IFERROR(IF(ProjectInfoTable[[#This Row],[Control kWh (Proposed)]]=\"Controls Only\",ROUND(IFERROR(INDEX(OperatingHours_List,MATCH(ProjectInfoTable[[#This Row],[OpSch]],OperatingSchedules_List,0))*IF(OR(ProjectType <> \"Retrofit\",ProjectInfoTable[[#This Row],[Space W (Proposed)]]>0),ProjectInfoTable[[#This Row],[Space W (Proposed)]],ProjectInfoTable[[#This Row],[Space W (Existing, Actual)]])/1000*(IFERROR(INDEX(ControlsLookup[],MATCH(RIGHT(ProjectInfoTable[[#This Row],[Proposed Equipment]],LEN(ProjectInfoTable[[#This Row],[Proposed Equipment]])-FIND(\"]\",ProjectInfoTable[[#This Row],[Proposed Equipment]],1)-3),ControlsLookup[Controls],0),MATCH(\"CSF_\"&ProjectState,ControlsLookup[#Headers],0)),0))*IF(VALUE(SpaceTypesInfo_Table[[#Totals],[HVAC Effects]])=0,1,1+VALUE(SpaceTypesInfo_Table[[#Totals],[HVAC Effects]])),\"\"),0),ROUND(IFERROR((ProjectInfoTable[[#This Row],[Control kWh (Existing, Actual)]]-ProjectInfoTable[[#This Row],[Control kWh (Proposed)]])*IF(VALUE(SpaceTypesInfo_Table[[#Totals],[HVAC Effects]])=0,1,1+VALUE(SpaceTypesInfo_Table[[#Totals],[HVAC Effects]])),\"\"),0)),\"\")","v":""},{"$f":"IF(OR(ProjectInfoTable[[#This Row],[Proposed Equipment]]=\"\",ProjectInfoTable[[#This Row],[Quantity (Proposed)]]=\"\"),\"\",IF(ProjectInfoTable[[#This Row],[Fixture Measure]]=\"\",0,IF(AND(ProjectInfoTable[[#This Row],[Incentives Per Unit]]=0,INDEX(StipulatedSavingsYesNo_Table[Stipulated Savings?],MATCH(ProjectState,StipulatedSavingsYesNo_Table[State],0))=\"No\"),0,ProjectInfoTable[[#This Row],[Total   kWh/yr Savings (Actual)]]-ProjectInfoTable[[#This Row],[Control Measure kWh/yr Savings (Actual)]])))","v":""},{"$f":"IF(OR(ProjectInfoTable[[#This Row],[Proposed Equipment]]=\"\",ProjectInfoTable[[#This Row],[Quantity (Proposed)]]=\"\"),\"\",IF(ProjectInfoTable[[#This Row],[Control Measure]]=\"\",0,ProjectInfoTable[[#This Row],[Control kWh/yr Savings (Actual)]]))","v":""},{"$f":"IF(AND(ProjectInfoTable[[#This Row],[Incentives Per Unit]]=0,INDEX(StipulatedSavingsYesNo_Table[Stipulated Savings?],MATCH(ProjectState,StipulatedSavingsYesNo_Table[State],0))=\"No\"),ProjectInfoTable[[#This Row],[Fixture kWh/yr Savings (Actual)]]+IF(ProjectInfoTable[[#This Row],[Control Measure kWh/yr Savings (Actual)]]=0,0,ProjectInfoTable[[#This Row],[Control kWh/yr Savings (Actual)]]),IF(AND(ProjectInfoTable[[#This Row],[Fixture kWh/yr Savings (Actual)]]=\"\",ProjectInfoTable[[#This Row],[Control kWh/yr Savings (Actual)]]=\"\"),\"\",ROUND(IF(ProjectInfoTable[[#This Row],[Fixture kWh/yr Savings (Actual)]]=\"\",0,ProjectInfoTable[[#This Row],[Fixture kWh/yr Savings (Actual)]])+IF(ProjectInfoTable[[#This Row],[Control kWh/yr Savings (Actual)]]=\"\",0,ProjectInfoTable[[#This Row],[Control kWh/yr Savings (Actual)]])-IF(ProjectInfoTable[[#This Row],[Midstream Measure Name]]<>\"\",IFERROR(ProjectInfoTable[[#This Row],[kWh Per Unit (Midstream)]]*ProjectInfoTable[[#This Row],[Quantity]]*ProjectInfoTable[[#This Row],[No. of TRL Units]],0),0),0)))","v":""},{"$f":"IFERROR(IF(OR(ProjectInfoTable[[#This Row],[Measure Selection]]=\"\",ProjectInfoTable[[#This Row],[ControlsOnly]]=\"Re-Commissioning\"),0,IF(AND(ProjectInfoTable[[#This Row],[Incentives Per Unit]]=0,INDEX(StipulatedSavingsYesNo_Table[Stipulated Savings?],MATCH(ProjectState,StipulatedSavingsYesNo_Table[State],0))=\"No\"),0,IF(ISNUMBER(FIND(\"Controls Only\",ProjectInfoTable[[#This Row],[Proposed Equipment]],1)),0,ROUND((ProjectInfoTable[[#This Row],[Fixture kWh (Existing, Stipulated)]]-ProjectInfoTable[[#This Row],[Fixture kWh (Proposed)]])*IF(VALUE(SpaceTypesInfo_Table[[#Totals],[HVAC Effects]])=0,1,1+VALUE(SpaceTypesInfo_Table[[#Totals],[HVAC Effects]])),0)))),\"\")","v":""},{"$f":"IFERROR(IF(ProjectInfoTable[[#This Row],[Control kWh (Proposed)]]=\"Controls Only\",ROUND(IFERROR(INDEX(OperatingHours_List,MATCH(ProjectInfoTable[[#This Row],[OpSch]],OperatingSchedules_List,0))*IF(OR(ProjectType <> \"Retrofit\",ProjectInfoTable[[#This Row],[Space W (Proposed)]]>0),ProjectInfoTable[[#This Row],[Space W (Proposed)]],ProjectInfoTable[[#This Row],[Space W (Existing, Stipulated)]])/1000*(IFERROR(INDEX(ControlsLookup[],MATCH(RIGHT(ProjectInfoTable[[#This Row],[Proposed Equipment]],LEN(ProjectInfoTable[[#This Row],[Proposed Equipment]])-FIND(\"]\",ProjectInfoTable[[#This Row],[Proposed Equipment]],1)-3),ControlsLookup[Controls],0),MATCH(\"CSF_\"&ProjectState,ControlsLookup[#Headers],0)),0))*IF(VALUE(SpaceTypesInfo_Table[[#Totals],[HVAC Effects]])=0,1,1+VALUE(SpaceTypesInfo_Table[[#Totals],[HVAC Effects]])),\"\"),0),ROUND(IFERROR((ProjectInfoTable[[#This Row],[Control kWh (Existing, Stipulated)]]-ProjectInfoTable[[#This Row],[Control kWh (Proposed)]])*IF(VALUE(SpaceTypesInfo_Table[[#Totals],[HVAC Effects]])=0,1,1+VALUE(SpaceTypesInfo_Table[[#Totals],[HVAC Effects]])),INDEX(ControlsLookup[],MATCH(RIGHT(ProjectInfoTable[[#This Row],[Proposed Equipment]],LEN(ProjectInfoTable[[#This Row],[Proposed Equipment]])-FIND(\"-\",ProjectInfoTable[[#This Row],[Proposed Equipment]],LEN(ProjectInfoTable[[#This Row],[Proposed Equipment]])-15)-1),ControlsLookup[Controls],0),MATCH(\"CSF_\"&ProjectState,ControlsLookup[#Headers],0))*IF(NOT(ISNUMBER(VALUE(ProjectInfoTable[[#This Row],[kWh Per Unit]]))),ProjectInfoTable[[#This Row],[Fixture kWh/yr Savings (Stipulated)]],ProjectInfoTable[[#This Row],[kWh Per Unit]]*ProjectInfoTable[[#This Row],[Quantity]]*ProjectInfoTable[[#This Row],[No. of TRL Units]])),0)),IF(OR(ProjectType=\"New Construction\",ProjectType=\"Major Renovation\"),IF(ProjectInfoTable[[#This Row],[Control kWh (Proposed)]]=\"\",\"\",0),\"\"))","v":""},{"$f":"IF(OR(ProjectInfoTable[[#This Row],[Proposed Equipment]]=\"\",ProjectInfoTable[[#This Row],[Quantity (Proposed)]]=\"\"),\"\",IF(ProjectInfoTable[[#This Row],[Fixture Measure]]=\"\",0,IF(AND(ProjectInfoTable[[#This Row],[Incentives Per Unit]]=0,INDEX(StipulatedSavingsYesNo_Table[Stipulated Savings?],MATCH(ProjectState,StipulatedSavingsYesNo_Table[State],0))=\"No\"),0,ProjectInfoTable[[#This Row],[Total   kWh/yr Savings (Stipulated)]]-ProjectInfoTable[[#This Row],[Control Measure kWh/yr Savings (Stipulated)]])))","v":""},{"$f":"IF(OR(ProjectInfoTable[[#This Row],[Proposed Equipment]]=\"\",ProjectInfoTable[[#This Row],[Quantity (Proposed)]]=\"\"),\"\",IF(ProjectInfoTable[[#This Row],[Control Measure]]=\"\",0,IF(OR(ProjectType=\"New Construction\",ProjectType=\"Major Renovation\"),IFERROR(ROUND(ProjectInfoTable[[#This Row],[Control kWh Per Unit]]*ProjectInfoTable[[#This Row],[Control Quantity]]*ProjectInfoTable[[#This Row],[Control No. of TRL Units]],0),ProjectInfoTable[[#This Row],[Control kWh/yr Savings (Stipulated)]]),ProjectInfoTable[[#This Row],[Control kWh/yr Savings (Stipulated)]])))","v":""},{"$f":"IF(AND(ProjectInfoTable[[#This Row],[Incentives Per Unit]]=0,INDEX(StipulatedSavingsYesNo_Table[Stipulated Savings?],MATCH(ProjectState,StipulatedSavingsYesNo_Table[State],0))=\"No\"),ProjectInfoTable[[#This Row],[Fixture kWh/yr Savings (Stipulated)]]+IF(ProjectInfoTable[[#This Row],[Control Measure kWh/yr Savings (Stipulated)]]=0,0,ProjectInfoTable[[#This Row],[Control kWh/yr Savings (Stipulated)]]),IF(OR(ISNUMBER(VALUE(ProjectInfoTable[[#This Row],[kWh Per Unit]])),ISNUMBER(VALUE(ProjectInfoTable[[#This Row],[Control kWh Per Unit]]))),ROUND(IFERROR(ProjectInfoTable[[#This Row],[kWh Per Unit]]*ProjectInfoTable[[#This Row],[Quantity]]*ProjectInfoTable[[#This Row],[No. of TRL Units]],0)+IFERROR(ProjectInfoTable[[#This Row],[Control kWh Per Unit]]*ProjectInfoTable[[#This Row],[Control Quantity]]*ProjectInfoTable[[#This Row],[Control No. of TRL Units]],ProjectInfoTable[[#This Row],[Control kWh/yr Savings (Stipulated)]]),0),IF(AND(ProjectInfoTable[[#This Row],[Fixture kWh/yr Savings (Stipulated)]]=\"\",ProjectInfoTable[[#This Row],[Control kWh/yr Savings (Stipulated)]]=\"\"),\"\",ROUND(IF(ProjectInfoTable[[#This Row],[Fixture kWh/yr Savings (Stipulated)]]=\"\",0,ProjectInfoTable[[#This Row],[Fixture kWh/yr Savings (Stipulated)]])+IF(ProjectInfoTable[[#This Row],[Control kWh/yr Savings (Stipulated)]]=\"\",0,ProjectInfoTable[[#This Row],[Control kWh/yr Savings (Stipulated)]])-IF(ProjectInfoTable[[#This Row],[Midstream Measure Name]]<>\"\",IFERROR(ProjectInfoTable[[#This Row],[kWh Per Unit (Midstream)]]*ProjectInfoTable[[#This Row],[Quantity]]*ProjectInfoTable[[#This Row],[No. of TRL Units]],0),0),0))))","v":""},{"$f":"IF(OR(ISNUMBER(FIND(\"Midstream\",ProjectInfoTable[[#This Row],[Fixture Measure]])),ISNUMBER(FIND(\"SBDI\",ProjectInfoTable[[#This Row],[Fixture Measure]])),ISNUMBER(FIND(\"Small Bu\",ProjectInfoTable[[#This Row],[Fixture Measure]]))),\n\nIF(ProjectInfoTable[[#This Row],[Measure Selection]]=\"\",0,\n\nIF(ISNUMBER(FIND(\"/U]\",ProjectInfoTable[[#This Row],[Proposed Equipment]])),IFERROR(MID(ProjectInfoTable[[#This Row],[Proposed Equipment]],FIND(\"$\",ProjectInfoTable[[#This Row],[Proposed Equipment]],1)+1,FIND(\"/U]\",ProjectInfoTable[[#This Row],[Proposed Equipment]],1)-FIND(\"$\",ProjectInfoTable[[#This Row],[Proposed Equipment]],1)-1)*ProjectInfoTable[[#This Row],[Lamps (Proposed)]]*ProjectInfoTable[[#This Row],[Quantity (Proposed)]],0),\nIF(ISNUMBER(FIND(\"/U \",ProjectInfoTable[[#This Row],[Proposed Equipment]])),IFERROR(MID(ProjectInfoTable[[#This Row],[Proposed Equipment]],FIND(\"$\",ProjectInfoTable[[#This Row],[Proposed Equipment]],1)+1,FIND(\"/U \",ProjectInfoTable[[#This Row],[Proposed Equipment]],1)-FIND(\"$\",ProjectInfoTable[[#This Row],[Proposed Equipment]],1)-1)*ProjectInfoTable[[#This Row],[Lamps (Proposed)]]*ProjectInfoTable[[#This Row],[Quantity (Proposed)]],0),\nIFERROR(ProjectInfoTable[[#This Row],[Fixture Measure kWh/yr Savings (Stipulated)]]/SUM(ProjectInfoTable[Total   kWh/yr Savings (Stipulated)])*ProjectCost_Total,\"\")))),\"\")","v":""},{"$f":"IFERROR(IF(ProjectInfoTable[[#This Row],[Fixture Measure kWh/yr Savings (Stipulated)]]=0,0,IF(ProjectType=\"Retrofit\",IF(OR(ISNUMBER(FIND(\"Midstream\",ProjectInfoTable[[#This Row],[Fixture Measure]])),ISNUMBER(FIND(\"SBDI\",ProjectInfoTable[[#This Row],[Fixture Measure]])),ISNUMBER(FIND(\"Small Bu\",ProjectInfoTable[[#This Row],[Fixture Measure]]))),ProjectInfoTable[[#This Row],[Measure Cost (Direct)]],IFERROR(ProjectInfoTable[[#This Row],[Fixture Measure kWh/yr Savings (Stipulated)]]/kWhSavings_Typical_Stipulated*(ProjectCost_Total-SUM(ProjectInfoTable[Measure Cost (Direct)])),\"\")),IF(ProjectInfoTable[[#This Row],[Proposed Equipment]]=\"\",\"\",IFERROR(SpaceTypesInfo_Table[[#Totals],[NCMR Int Cost]]*ProjectInfoTable[[#This Row],[Fixture Measure kWh/yr Savings (Stipulated)]]/SUMIFS(ProjectInfoTable[Total   kWh/yr Savings (Stipulated)],ProjectInfoTable[Proposed Equipment],\"*Interior*\"),0)))),\"\")","v":""},{"$f":"IFERROR(\n IF(\n  ProjectInfoTable[[#This Row],[Control Measure kWh/yr Savings (Stipulated)]]=0,\n  0,\n  IF(\n   ProjectType=\"Retrofit\",\n    IFERROR(\n     ProjectInfoTable[[#This Row],[Control Measure kWh/yr Savings (Stipulated)]]\n     /\n     SUMIFS(ProjectInfoTable[Control Measure kWh/yr Savings (Stipulated)],ProjectInfoTable[Control Measure],\"<>\"\"\")\n     *\n     (ProjectCost_Total-SUM(ProjectInfoTable[Fixture Cost (Allocated)])),\n     \"\"\n    ),\nROUND(\n    IF(\n     ProjectInfoTable[[#This Row],[Proposed Equipment]]=\"\",\n     \"\",\n     IFERROR(\n      SpaceTypesInfo_Table[[#Totals],[NCMR Int Cost]]\n      *\n      ProjectInfoTable[[#This Row],[Control Measure kWh/yr Savings (Stipulated)]]\n      /\n      SUMIFS(ProjectInfoTable[Total   kWh/yr Savings (Stipulated)],ProjectInfoTable[Proposed Equipment],\"*Interior*\"),\n      0\n     )\n    ),\n    2\n   )\n  )\n ),\n \"\"\n)","v":""},{"$f":"IF(AND(ProjectInfoTable[[#This Row],[Fixture Cost (Allocated)]]=\"\",ProjectInfoTable[[#This Row],[Control Cost (Allocated)]]=\"\"),\"\",SUM(ProjectInfoTable[[#This Row],[Fixture Cost (Allocated)]:[Control Cost (Allocated)]]))","v":""},{"$f":"IFERROR(IF(OR(ProjectInfoTable[[#This Row],[Proposed Equipment]]=\"\",ProjectInfoTable[[#This Row],[Quantity (Proposed)]]=\"\"),\"\",IF(OR(ProjectInfoTable[[#This Row],[Measure Selection]]=\"\",ProjectInfoTable[[#This Row],[Control kWh (Proposed)]]=\"Controls Only\"),0,IF(NOT(ISNUMBER(FIND(\"Retrofit\",ProjectType,1))),ProjectInfoTable[[#This Row],[Fixture Energy Cost Savings (Stipulated)]],IF(AND(ProjectInfoTable[[#This Row],[Fixture Measure]]=\"\",ProjectInfoTable[[#This Row],[Control Measure]]<>\"\"),0,ROUND((ProjectInfoTable[[#This Row],[Total Energy Costs (Existing, Actual)]]-ProjectInfoTable[[#This Row],[Total Energy Costs (Proposed)]]),2))))),\"\")","v":""},{"$f":"IFERROR(IF(OR(ProjectInfoTable[[#This Row],[Proposed Equipment]]=\"\",ProjectInfoTable[[#This Row],[Quantity (Proposed)]]=\"\"),\"\",\n\nIF(ProjectInfoTable[[#This Row],[Control kWh (Proposed)]]=\"Controls Only\",ProjectInfoTable[[#This Row],[Control Measure kWh/yr Savings (Actual)]]*INDEX(INDIRECT(\"RateSchedules_\"&ProjectState&\"_Table[kWh Rate]\"),\nMATCH(RateSchedule,INDIRECT(\"RateSchedules_\"&ProjectState&\"_Table[Rate Schedule]\"),0)),\n\nIF(NOT(ISNUMBER(FIND(\"Retrofit\",ProjectType,1))),ProjectInfoTable[[#This Row],[Control Energy Cost Savings (Stipulated)]],IF(AND(ProjectInfoTable[[#This Row],[Fixture Measure]]=\"\",ProjectInfoTable[[#This Row],[Control Measure]]<>\"\"),ROUND((ProjectInfoTable[[#This Row],[Total Energy Costs (Existing, Actual)]]-ProjectInfoTable[[#This Row],[Total Energy Costs (Proposed)]]),2),ROUND((ProjectInfoTable[[#This Row],[Total Energy Costs (Existing, Actual)]]-ProjectInfoTable[[#This Row],[Total Energy Costs (Proposed)]]),2)*(ProjectInfoTable[[#This Row],[Control Measure kWh/yr Savings (Actual)]]/ProjectInfoTable[[#This Row],[Total   kWh/yr Savings (Actual)]]))))),\"\")","v":""},{"$f":"IF(OR(ProjectInfoTable[[#This Row],[Proposed Equipment]]=\"\",ProjectInfoTable[[#This Row],[Quantity (Proposed)]]=\"\"),\"\",ROUND(ProjectInfoTable[[#This Row],[Fixture Energy Cost Savings (Actual)]]+ProjectInfoTable[[#This Row],[Control Energy Cost Savings (Actual)]],2))","v":""},{"$f":"IF(OR(ProjectInfoTable[[#This Row],[Proposed Equipment]]=\"\",ProjectInfoTable[[#This Row],[Quantity (Proposed)]]=\"\"),\"\",IF(OR(ISNUMBER(VALUE(ProjectInfoTable[[#This Row],[kWh Per Unit]])),ISNUMBER(VALUE(ProjectInfoTable[[#This Row],[kW Per Unit]]))),IFERROR(ProjectInfoTable[[#This Row],[Fixture Measure kWh/yr Savings (Stipulated)]]*INDEX(INDIRECT(\"RateSchedules_\"&ProjectState&\"_Table[kWh Rate]\"),MATCH(RateSchedule,INDIRECT(\"RateSchedules_\"&ProjectState&\"_Table[Rate Schedule]\"),0)),0)+IFERROR(ProjectInfoTable[[#This Row],[kW Demand Reduction (Stipulated)]]/1000*12*INDEX(INDIRECT(\"RateSchedules_\"&ProjectState&\"_Table[kW Rate]\"),MATCH(RateSchedule,INDIRECT(\"RateSchedules_\"&ProjectState&\"_Table[Rate Schedule]\"),0)),0),IFERROR(ROUND((ProjectInfoTable[[#This Row],[Total Energy Costs (Existing, Stipulated)]]-ProjectInfoTable[[#This Row],[Total Energy Costs (Proposed)]])*ProjectInfoTable[[#This Row],[Fixture Measure kWh/yr Savings (Stipulated)]]/ProjectInfoTable[[#This Row],[Total   kWh/yr Savings (Stipulated)]],2),0)))","v":""},{"$f":"IF(OR(ProjectInfoTable[[#This Row],[Proposed Equipment]]=\"\",ProjectInfoTable[[#This Row],[Quantity (Proposed)]]=\"\"),\"\",\nIF(ProjectInfoTable[[#This Row],[Control kWh (Proposed)]]=\"Controls Only\",ProjectInfoTable[[#This Row],[Control Measure kWh/yr Savings (Stipulated)]]*INDEX(INDIRECT(\"RateSchedules_\"&ProjectState&\"_Table[kWh Rate]\"),\nMATCH(RateSchedule,INDIRECT(\"RateSchedules_\"&ProjectState&\"_Table[Rate Schedule]\"),0)),IF(OR(ISNUMBER(VALUE(ProjectInfoTable[[#This Row],[Control kWh Per Unit]])),\nISNUMBER(VALUE(ProjectInfoTable[[#This Row],[Control kW Per Unit]]))),IFERROR(ProjectInfoTable[[#This Row],[Control Measure kWh/yr Savings (Stipulated)]]*INDEX(INDIRECT(\"RateSchedules_\"&ProjectState&\"_Table[kWh Rate]\"),\nMATCH(RateSchedule,INDIRECT(\"RateSchedules_\"&ProjectState&\"_Table[Rate Schedule]\"),0)),0)+IFERROR(ProjectInfoTable[[#This Row],[kW Demand Reduction (Stipulated)]]/1000*12*\nINDEX(INDIRECT(\"RateSchedules_\"&ProjectState&\"_Table[kW Rate]\"),MATCH(RateSchedule,INDIRECT(\"RateSchedules_\"&ProjectState&\"_Table[Rate Schedule]\"),0)),0),\nIFERROR(ROUND((ProjectInfoTable[[#This Row],[Total Energy Costs (Existing, Stipulated)]]-ProjectInfoTable[[#This Row],[Total Energy Costs (Proposed)]])*ProjectInfoTable[[#This Row],[Control Measure kWh/yr Savings (Stipulated)]]/\nProjectInfoTable[[#This Row],[Total   kWh/yr Savings (Stipulated)]],2),0))))","v":""},{"$f":"IF(OR(ProjectInfoTable[[#This Row],[Proposed Equipment]]=\"\",ProjectInfoTable[[#This Row],[Quantity (Proposed)]]=\"\"),\"\",ROUND(ProjectInfoTable[[#This Row],[Fixture Energy Cost Savings (Stipulated)]]+ProjectInfoTable[[#This Row],[Control Energy Cost Savings (Stipulated)]],2))","v":""},{"$f":"IF(ProjectInfoTable[[#This Row],[OpSch]]=\"\",\"\",IF(OR(ProjectInfoTable[[#This Row],[Fixture Measure]]=\"\",ProjectInfoTable[[#This Row],[Eligible Fixture Measure]]<>TRUE),0,ProjectInfoTable[[#This Row],[Fixture Incentives (pre-capping)]])+IF(OR(ProjectInfoTable[[#This Row],[Control Measure]]=\"\",ProjectInfoTable[[#This Row],[Eligible Control Measure]]<>TRUE),0,ProjectInfoTable[[#This Row],[Control Incentives (pre-capping)]]))","v":""},{"$f":"IF(OR(ProjectInfoTable[[#This Row],[Fixture Measure]]<>\"\",ProjectInfoTable[[#This Row],[Control Measure]]<>\"\"),IF(ProjectInfoTable[[#This Row],[Fixture Incentives]]=\"\",0,ProjectInfoTable[[#This Row],[Fixture Incentives]])+IF(ProjectInfoTable[[#This Row],[Control Incentives]]=\"\",0,ProjectInfoTable[[#This Row],[Control Incentives]]),\"\")","v":""},null,{"$f":"IF(OR(ProjectInfoTable[[#This Row],[Fixture Measure]]=\"\",ProjectInfoTable[[#This Row],[OpSch]]=\"\",ProjectInfoTable[[#This Row],[Eligible Fixture Measure]]<>TRUE),\"\",\nIF(OR(ISNUMBER(FIND(\"SBDI\",ProjectInfoTable[[#This Row],[Fixture Measure]])),ISNUMBER(FIND(\"Small Bu\",ProjectInfoTable[[#This Row],[Fixture Measure]]))),IFERROR(0.75*ProjectInfoTable[[#This Row],[Fixture Cost (Allocated)]],\"cost error\"),\nIF(AND(OR(ProjectType=\"New Construction\",ProjectType=\"Major Renovation\"),LPDCodeToProposed<0.1,ISNUMBER(FIND(\"Interior\",ProjectInfoTable[[#This Row],[Proposed Equipment]],1))),0,IFERROR(ProjectInfoTable[[#This Row],[Incentives Per Unit]]*ProjectInfoTable[[#This Row],[Quantity]]*ProjectInfoTable[[#This Row],[No. of TRL Units]],\"TRL Error\"))))","v":""},{"$f":"IF(\n    OR(\n        ProjectInfoTable[[#This Row],[Fixture Measure]] = \"\",\n        ProjectInfoTable[[#This Row],[OpSch]] = \"\",\n        ProjectInfoTable[[#This Row],[Eligible Fixture Measure]] <> TRUE\n    ),\n    \"\",\n    IF(\n        OR(\n            ISNUMBER(FIND(\"SBDI\", ProjectInfoTable[[#This Row],[Fixture Measure]])),\n            ISNUMBER(FIND(\"Small Bu\", ProjectInfoTable[[#This Row],[Fixture Measure]]))\n        ),\n        IFERROR(\n            (Incentive_NonTypical / Incentive_NonTypical_PreCapped) * ProjectInfoTable[[#This Row],[Fixture Incentives (pre-capping)]],\n            \"\"\n        ),\n        IF(\n            AND(\n                ProjectType = \"Retrofit\",\n                ProjectState = \"UT\",\n                ISNUMBER(FIND(\"Post-Purchase\", ProjectInfoTable[[#This Row],[Fixture Measure]], 1))\n            ),\n            IFERROR(\n                MAX(\n                    MIN(\n                        ProjectInfoTable[[#This Row],[Fixture Incentives (pre-capping)]],\n                        ProjectInfoTable[[#This Row],[Fixture Cost (Allocated)]] * 0.7\n                    ),\n                    0\n                ),\n                0\n            ),\n            IF(\n                ProjectType = \"Retrofit\",\n                IF(\n                    ISNUMBER(FIND(\"Post-Purchase\", ProjectInfoTable[[#This Row],[Fixture Measure]], 1)),\n                    ProjectInfoTable[[#This Row],[Fixture Incentives (pre-capping)]],\n                    IFERROR(\n                        $BI$3 / $BH$3 * ProjectInfoTable[[#This Row],[Fixture Incentives (pre-capping)]],\n                        \"\"\n                    )\n                ),\n                IF(\n                    ISNUMBER(FIND(\"Interior\", ProjectInfoTable[[#This Row],[Proposed Equipment]], 1)),\n                    IF(\n                        LPDCodeToProposed > 0.1,\n                        ProjectInfoTable[[#This Row],[Fixture Incentives (pre-capping)]],\n                        0\n                    ),\n                    ProjectInfoTable[[#This Row],[Fixture Incentives (pre-capping)]]\n                )\n            )\n        )\n    )\n)","v":""},{"$f":"IF(OR(ProjectInfoTable[[#This Row],[Incentives Per Unit]]=\"\",ProjectInfoTable[[#This Row],[TRL Unit]]=\"\"),\"\",IF(ProjectInfoTable[[#This Row],[Eligible Fixture Measure]]<>TRUE,\"Invalid Effective Date\",\nIF(OR(ISNUMBER(FIND(\"SBDI\",ProjectInfoTable[[#This Row],[Fixture Measure]])),ISNUMBER(FIND(\"Small Bu\",ProjectInfoTable[[#This Row],[Fixture Measure]]))),\"$0.75 / dollar cost\",\nTEXT(ProjectInfoTable[[#This Row],[Incentives Per Unit]],\"$#,##0.00\")&\" / \"&IF(ProjectInfoTable[[#This Row],[Fixture Measure]]=\"\",\"\",IF(ProjectInfoTable[[#This Row],[TRL Unit]]=\"Measure\",IF(ISNUMBER(FIND(\"Relamp\",ProjectInfoTable[[#This Row],[Proposed Equipment]],1)),\"Lamp\",\"Fixture\"),ProjectInfoTable[[#This Row],[TRL Unit]])))))","v":""},{"$f":"IF(OR(ProjectInfoTable[[#This Row],[Proposed Equipment]]=\"\",ProjectInfoTable[[#This Row],[Quantity (Proposed)]]=\"\"),\"\",IFERROR(SUBSTITUTE(IF(ProjectType=\"Retrofit\",IF(OR(ISNUMBER(FIND(\"Controls On\",ProjectInfoTable[[#This Row],[Proposed Equipment]],1))),\"\",IF(OR(ProjectInfoTable[[#This Row],[Existing Equipment]]=\"\",ProjectInfoTable[[#This Row],[Proposed Equipment]]=\"\"),\"\",IF(ProjectState=\"UT\",IFERROR(IF(AlternativeEnergyOverride=\"Yes\",IFERROR(INDEX(INDIRECT(\"EquipmentTable_\"&\"Retrofit_\"&ProjectState&\"[#All]\"),MATCH(LEFT(ProjectInfoTable[[#This Row],[Proposed Equipment]],FIND(\"[\",ProjectInfoTable[[#This Row],[Proposed Equipment]],1)-2)&\" (Alt)\",INDIRECT(\"EquipmentTable_\"&\"Retrofit_\"&ProjectState&\"[equipmentProposed]\"),0)+1,MATCH(\"measureRetrofit_\"&LEFT(ProjectInfoTable[[#This Row],[Existing Equipment]],FIND(\":\",ProjectInfoTable[[#This Row],[Existing Equipment]],1)-1)&\"_\"&IF(IFERROR(INDEX(ControlsLookup[Rank],MATCH(RIGHT(ProjectInfoTable[[#This Row],[Proposed Equipment]],LEN(ProjectInfoTable[[#This Row],[Proposed Equipment]])-FIND(\"]\",ProjectInfoTable[[#This Row],[Proposed Equipment]],1)-3),ControlsLookup[Controls],0)),0)>IFERROR(INDEX(ControlsLookup[Rank],MATCH(RIGHT(ProjectInfoTable[[#This Row],[Existing Equipment]],LEN(ProjectInfoTable[[#This Row],[Existing Equipment]])-FIND(\"]\",ProjectInfoTable[[#This Row],[Existing Equipment]],1)-3),ControlsLookup[Controls],0)),0),INDEX(ControlsLookup[Controls Type],MATCH(LEFT(ProjectInfoTable[[#This Row],[Existing Equipment]],FIND(\":\",ProjectInfoTable[[#This Row],[Existing Equipment]],1)-1)&\"_\"&RIGHT(ProjectInfoTable[[#This Row],[Proposed Equipment]],LEN(ProjectInfoTable[[#This Row],[Proposed Equipment]])-FIND(\"]\",ProjectInfoTable[[#This Row],[Proposed Equipment]],1)-3),ControlsLookup[Controls Concatenate],0)),\"None\"),INDIRECT(\"EquipmentTable_\"&\"Retrofit_\"&ProjectState&\"[#Headers]\"),0)),INDEX(INDIRECT(\"EquipmentTable_\"&IF(ProjectType=\"Retrofit\",\"Retrofit_\",\"NCMR_\")&ProjectState&\"[#All]\"),MATCH(LEFT(ProjectInfoTable[[#This Row],[Proposed Equipment]],FIND(\"[\",ProjectInfoTable[[#This Row],[Proposed Equipment]],1)-2),INDIRECT(\"EquipmentTable_\"&\"Retrofit_\"&ProjectState&\"[equipmentProposed]\"),0)+1,MATCH(\"measureRetrofit_\"&LEFT(ProjectInfoTable[[#This Row],[Existing Equipment]],FIND(\":\",ProjectInfoTable[[#This Row],[Existing Equipment]],1)-1)&\"_\"&IF(IFERROR(INDEX(ControlsLookup[Rank],MATCH(RIGHT(ProjectInfoTable[[#This Row],[Proposed Equipment]],LEN(ProjectInfoTable[[#This Row],[Proposed Equipment]])-FIND(\"]\",ProjectInfoTable[[#This Row],[Proposed Equipment]],1)-3),ControlsLookup[Controls],0)),0)>IFERROR(INDEX(ControlsLookup[Rank],MATCH(RIGHT(ProjectInfoTable[[#This Row],[Existing Equipment]],LEN(ProjectInfoTable[[#This Row],[Existing Equipment]])-FIND(\"]\",ProjectInfoTable[[#This Row],[Existing Equipment]],1)-3),ControlsLookup[Controls],0)),0),INDEX(ControlsLookup[Controls Type],MATCH(LEFT(ProjectInfoTable[[#This Row],[Existing Equipment]],FIND(\":\",ProjectInfoTable[[#This Row],[Existing Equipment]],1)-1)&\"_\"&RIGHT(ProjectInfoTable[[#This Row],[Proposed Equipment]],LEN(ProjectInfoTable[[#This Row],[Proposed Equipment]])-FIND(\"]\",ProjectInfoTable[[#This Row],[Proposed Equipment]],1)-3),ControlsLookup[Controls Concatenate],0)),\"None\"),INDIRECT(\"EquipmentTable_\"&IF(ProjectType=\"Retrofit\",\"Retrofit_\",\"NCMR_\")&ProjectState&\"[#Headers]\"),0))),INDEX(INDIRECT(\"EquipmentTable_\"&IF(ProjectType=\"Retrofit\",\"Retrofit_\",\"NCMR_\")&ProjectState&\"[#All]\"),MATCH(LEFT(ProjectInfoTable[[#This Row],[Proposed Equipment]],FIND(\"[\",ProjectInfoTable[[#This Row],[Proposed Equipment]],1)-2),INDIRECT(\"EquipmentTable_\"&IF(ProjectType=\"Retrofit\",\"Retrofit_\",\"NCMR_\")&ProjectState&\"[equipmentProposed]\"),0)+1,MATCH(\"measureRetrofit_\"&IF(AND(SBDEligible=\"Yes\",ISNUMBER(FIND(\"SBE\",ProjectInfoTable[[#This Row],[Proposed Equipment]]))),\"SBE\",LEFT(ProjectInfoTable[[#This Row],[Existing Equipment]],FIND(\":\",ProjectInfoTable[[#This Row],[Existing Equipment]],1)-1)&\"_\"&IF(IFERROR(INDEX(ControlsLookup[Rank],MATCH(RIGHT(ProjectInfoTable[[#This Row],[Proposed Equipment]],LEN(ProjectInfoTable[[#This Row],[Proposed Equipment]])-FIND(\"]\",ProjectInfoTable[[#This Row],[Proposed Equipment]],1)-3),ControlsLookup[Controls],0)),0)>IFERROR(INDEX(ControlsLookup[Rank],MATCH(RIGHT(ProjectInfoTable[[#This Row],[Existing Equipment]],LEN(ProjectInfoTable[[#This Row],[Existing Equipment]])-FIND(\"]\",ProjectInfoTable[[#This Row],[Existing Equipment]],1)-3),ControlsLookup[Controls],0)),0),INDEX(ControlsLookup[Controls Type],MATCH(LEFT(ProjectInfoTable[[#This Row],[Existing Equipment]],FIND(\":\",ProjectInfoTable[[#This Row],[Existing Equipment]],1)-1)&\"_\"&RIGHT(ProjectInfoTable[[#This Row],[Proposed Equipment]],LEN(ProjectInfoTable[[#This Row],[Proposed Equipment]])-FIND(\"]\",ProjectInfoTable[[#This Row],[Proposed Equipment]],1)-3),ControlsLookup[Controls Concatenate],0)),\"None\")),INDIRECT(\"EquipmentTable_\"&\"Retrofit_\"&ProjectState&\"[#Headers]\"),0))),\"Non-eligible fixture - Retrofit - \"&ProjectState),IFERROR(INDEX(INDIRECT(\"EquipmentTable_\"&IF(SiteSpecificOverride=\"Yes\",\"PostPurchase_\",\"Retrofit_\")&ProjectState&\"[#All]\"),MATCH(LEFT(ProjectInfoTable[[#This Row],[Proposed Equipment]],FIND(\"[\",ProjectInfoTable[[#This Row],[Proposed Equipment]],1)-2),INDIRECT(\"EquipmentTable_\"&IF(SiteSpecificOverride=\"Yes\",\"PostPurchase_\",\"Retrofit_\")&ProjectState&\"[equipmentProposed]\"),0)+1,MATCH(\"measureRetrofit_\"&IF(AND(SBDEligible=\"Yes\",ISNUMBER(FIND(\"SBE\",ProjectInfoTable[[#This Row],[Proposed Equipment]]))),\"SBE\",LEFT(ProjectInfoTable[[#This Row],[Existing Equipment]],FIND(\":\",ProjectInfoTable[[#This Row],[Existing Equipment]],1)-1)&\"_\"&IF(IFERROR(INDEX(ControlsLookup[Rank],MATCH(RIGHT(ProjectInfoTable[[#This Row],[Proposed Equipment]],LEN(ProjectInfoTable[[#This Row],[Proposed Equipment]])-FIND(\"]\",ProjectInfoTable[[#This Row],[Proposed Equipment]],1)-3),ControlsLookup[Controls],0)),0)>IFERROR(INDEX(ControlsLookup[Rank],MATCH(RIGHT(ProjectInfoTable[[#This Row],[Existing Equipment]],LEN(ProjectInfoTable[[#This Row],[Existing Equipment]])-FIND(\"]\",ProjectInfoTable[[#This Row],[Existing Equipment]],1)-3),ControlsLookup[Controls],0)),0),INDEX(ControlsLookup[Controls Type],MATCH(LEFT(ProjectInfoTable[[#This Row],[Existing Equipment]],FIND(\":\",ProjectInfoTable[[#This Row],[Existing Equipment]],1)-1)&\"_\"&RIGHT(ProjectInfoTable[[#This Row],[Proposed Equipment]],LEN(ProjectInfoTable[[#This Row],[Proposed Equipment]])-FIND(\"]\",ProjectInfoTable[[#This Row],[Proposed Equipment]],1)-3),ControlsLookup[Controls Concatenate],0)),\"None\")),INDIRECT(\"EquipmentTable_\"&IF(SiteSpecificOverride=\"Yes\",\"PostPurchase_\",\"Retrofit_\")&ProjectState&\"[#Headers]\"),0)),\"Non-eligible fixture - Retrofit - \"&ProjectState)))),IFERROR(INDEX(INDIRECT(\"EquipmentTable_\"&\"NCMR_\"&ProjectState),MATCH(RIGHT(LEFT(ProjectInfoTable[[#This Row],[Proposed Equipment]],FIND(\" (\",ProjectInfoTable[[#This Row],[Proposed Equipment]],1)-1),LEN(LEFT(ProjectInfoTable[[#This Row],[Proposed Equipment]],FIND(\" (\",ProjectInfoTable[[#This Row],[Proposed Equipment]],1)-2))-FIND(\":\",ProjectInfoTable[[#This Row],[Proposed Equipment]],1)),INDIRECT(\"EquipmentTable_\"&\"NCMR_\"&ProjectState&\"[equipmentProposed]\"),0),MATCH(\"measureNCMR_\"&LEFT(ProjectInfoTable[[#This Row],[Proposed Equipment]],FIND(\":\",ProjectInfoTable[[#This Row],[Proposed Equipment]],1)-1)&\"_\"&IF(LEN(ProjectInfoTable[[#This Row],[Proposed Equipment]])>FIND(\"]\",ProjectInfoTable[[#This Row],[Proposed Equipment]]),INDEX(ControlsLookup[Controls Type],MATCH(LEFT(ProjectInfoTable[[#This Row],[Proposed Equipment]],FIND(\":\",ProjectInfoTable[[#This Row],[Proposed Equipment]],1)-1)&\"_\"&RIGHT(ProjectInfoTable[[#This Row],[Proposed Equipment]],LEN(ProjectInfoTable[[#This Row],[Proposed Equipment]])-FIND(\"]\",ProjectInfoTable[[#This Row],[Proposed Equipment]],1)-3),ControlsLookup[Controls Concatenate],0)),\"None\"),INDIRECT(\"EquipmentTable_\"&\"NCMR_\"&ProjectState&\"[#Headers]\"),0)),\"Non-eligible fixture - NCMR - \"&ProjectState)),\"[NAMESUB]\",ProjectInfoTable[[#This Row],[Measure Name Sub]]),\"Non-eligible fixture - Retrofit - \"&ProjectState))","v":""},{"$f":"IF(ISNUMBER(SEARCH(\"Case\",ProjectInfoTable[[#This Row],[Fixture Measure]])),CONCATENATE(ProjectInfoTable[[#This Row],[Fixture Measure]],ProjectInfoTable[[#This Row],[No. of TRL Units]],ProjectInfoTable[[#This Row],[Quantity]]),\"\")","v":""},{"$f":"IF(ProjectInfoTable[[#This Row],[Proposed Equipment]]=\"\",\"\",\nIF(AND(ProjectState = \"UT\",ISNUMBER(FIND(\" TLED \",ProjectInfoTable[[#This Row],[Proposed Equipment]]))),\nIF(VALUE(ProjectInfoTable[[#This Row],[Lamp W (Proposed)]])<20,\"< 20 W\",\nIF(AND(VALUE(ProjectInfoTable[[#This Row],[Lamp W (Proposed)]])<=39,VALUE(ProjectInfoTable[[#This Row],[Lamp W (Proposed)]])>=20),\">= 20 W and <= 39 W\",)),\n\nIF(AND(ProjectType=\"Retrofit\",OR(ISNUMBER(FIND(\"Retrofit Kit\",ProjectInfoTable[[#This Row],[Proposed Equipment]])),ISNUMBER(FIND(\"Fixture\",ProjectInfoTable[[#This Row],[Proposed Equipment]]))),OR(ISNUMBER(FIND(\"Exterior\",ProjectInfoTable[[#This Row],[Existing Equipment]])),ISNUMBER(FIND(\"Street\",ProjectInfoTable[[#This Row],[Existing Equipment]])))),\nIF(ProjectInfoTable[[#This Row],[Fixture W (Proposed)]]<50,\"< 50 W\",\nIF(AND(ProjectInfoTable[[#This Row],[Fixture W (Proposed)]]<90,ProjectInfoTable[[#This Row],[Fixture W (Proposed)]]>=50),\">= 50 W and < 90 W\",\nIF(AND(ProjectInfoTable[[#This Row],[Fixture W (Proposed)]]<135,ProjectInfoTable[[#This Row],[Fixture W (Proposed)]]>=90),\">= 90 W and < 135 W\",\nIF(AND(ProjectInfoTable[[#This Row],[Fixture W (Proposed)]]<220,ProjectInfoTable[[#This Row],[Fixture W (Proposed)]]>=135),\">= 135 W and < 220 W\",\nIF(ProjectInfoTable[[#This Row],[Fixture W (Proposed)]]>=220,\">= 220 W\"))))),\"\")))","v":""},{"$f":"IFERROR(INDEX(INDIRECT(\"MeasureTable_\" & ProjectState & \"[Measure Reference Number]\"),MATCH(ProjectInfoTable[[#This Row],[Fixture Measure]],INDIRECT(\"MeasureTable_\" &ProjectState&\"[Measure Name]\"),0)),\"\")","v":""},{"$f":"IFERROR(\n    _xlfn.LET(\n        _xlpm.filteredVersions,\n            _xlfn._xlws.FILTER(\n                INDIRECT(\"MeasureTable_\" & ProjectState & \"[Version Number]\"),\n                (INDIRECT(\"MeasureTable_\" & ProjectState & \"[Measure Reference Number]\") = ProjectInfoTable[[#This Row],[Fixture Measure Reference Number]]) *\n                (INDIRECT(\"MeasureTable_\" & ProjectState & \"[Eligible Measure]\") = TRUE)\n            ),\n        INDEX(_xlpm.filteredVersions, 1)\n    ),\n    \"\"\n)","v":""},{"$f":"IFERROR(\n  _xlfn.LET(\n    _xlpm.refRange, INDIRECT(\"MeasureTable_\" & ProjectState & \"[Measure Reference Number]\"),\n    _xlpm.eligibleRange, INDIRECT(\"MeasureTable_\" & ProjectState & \"[Eligible Measure]\"),\n    _xlpm.countTrue, SUMPRODUCT(--(_xlpm.refRange = ProjectInfoTable[[#This Row],[Fixture Measure Reference Number]]), --(_xlpm.eligibleRange = TRUE)),\n    _xlpm.countNonBlank, SUMPRODUCT(--(_xlpm.refRange = ProjectInfoTable[[#This Row],[Fixture Measure Reference Number]]), --(_xlpm.eligibleRange <> \"\")),\n    IF(_xlpm.countNonBlank = 0, \"\", IF(_xlpm.countTrue >= 1, TRUE, FALSE))\n  ),\n  \"\"\n)","v":""},{"$f":"IFERROR(VALUE(INDEX(INDIRECT(\"MeasureTable_\" & ProjectState & \"[CustomerIncentiveDollarperunit]\"),MATCH(ProjectInfoTable[[#This Row],[Fixture Measure]]&\" | TRUE\",INDIRECT(\"MeasureTable_\" &ProjectState&\"[MeasureEligibleConcatenate]\"),0))),\"\")","v":""},{"$f":"IFERROR(INDEX(INDIRECT(\"MeasureTable_\"&ProjectState&\"[SiteSpecificCalculation]\"),MATCH(ProjectInfoTable[[#This Row],[Fixture Measure]]&\" | TRUE\",INDIRECT(\"MeasureTable_\" &ProjectState&\"[MeasureEligibleConcatenate]\"),0)),\"\")","v":""},{"$f":"IFERROR(INDEX(INDIRECT(\"MeasureTable_\"&ProjectState&\"[GrossIncrementalAnnualElectricSavings]\"),MATCH(ProjectInfoTable[[#This Row],[Fixture Measure]]&\" | TRUE\",INDIRECT(\"MeasureTable_\" &ProjectState&\"[MeasureEligibleConcatenate]\"),0)),\"\")","v":""},{"$f":"IFERROR(INDEX(INDIRECT(\"MeasureTable_\"&ProjectState&\"[GrossAverageMonthlyDemandReduction]\"),MATCH(ProjectInfoTable[[#This Row],[Fixture Measure]]&\" | TRUE\",INDIRECT(\"MeasureTable_\" &ProjectState&\"[MeasureEligibleConcatenate]\"),0)),\"\")","v":""},{"$f":"IF(ProjectInfoTable[[#This Row],[Fixture Measure]]=\"\",\"\",IF(NOT(ISNUMBER(FIND(\"Site-Specific - Downstream\",ProjectInfoTable[[#This Row],[Fixture Measure]]))),\"\",\nIF(ISNUMBER(MATCH(SUBSTITUTE(ProjectInfoTable[[#This Row],[Fixture Measure]],\"Site-Specific - Downstream - v2\",\"Mid Market\"),INDIRECT(\"MeasureTable_\"&ProjectState&\"[Measure Name]\"),0)),\nSUBSTITUTE(ProjectInfoTable[[#This Row],[Fixture Measure]],\"Site-Specific - Downstream - v2\",\"Mid Market\"),\nSUBSTITUTE(ProjectInfoTable[[#This Row],[Fixture Measure]],\"Site-Specific - Downstream\",\"Mid Market\"))\n))","v":""},{"$f":"IF(ProjectInfoTable[[#This Row],[Midstream Measure Name]]=\"\",\"\",IFERROR(INDEX(INDIRECT(\"MeasureTable_\"&ProjectState&\"[GrossIncrementalAnnualElectricSavings ]\"),MATCH(ProjectInfoTable[[#This Row],[Midstream Measure Name]]&\" | TRUE\",INDIRECT(\"MeasureTable_\" &ProjectState&\"[MeasureEligibleConcatenate]\"),0)),\"\"))","v":""},{"$f":"IF(ProjectInfoTable[[#This Row],[Midstream Measure Name]]=\"\",\"\",IFERROR(INDEX(INDIRECT(\"MeasureTable_\"&ProjectState&\"[GrossAverage onthly emand eduction]\"),MATCH(ProjectInfoTable[[#This Row],[Midstream Measure Name]]&\" | TRUE\",INDIRECT(\"MeasureTable_\" &ProjectState&\"[MeasureEligibleConcatenate]\"),0)),\"\"))","v":""},{"$f":"IFERROR(INDEX(INDIRECT(\"MeasureTable_\"&ProjectState&\"[IncrementalMeasureCost]\"),MATCH(ProjectInfoTable[[#This Row],[Fixture Measure]]&\" | TRUE\",INDIRECT(\"MeasureTable_\" &ProjectState&\"[MeasureEligibleConcatenate]\"),0)),\"\")","v":""},{"$f":"IF(ProjectInfoTable[[#This Row],[Fixture Measure]]=\"\",\"\",IF(AND(ProjectState=\"UT\",ProjectInfoTable[[#This Row],[Measure Selection]]=\"\"),0,\nIF(OR(ISNUMBER(FIND(\"SBDI\",ProjectInfoTable[[#This Row],[Fixture Measure]])),ISNUMBER(FIND(\"Small Bu\",ProjectInfoTable[[#This Row],[Fixture Measure]]))),ProjectInfoTable[[#This Row],[Quantity (Proposed)]]*ProjectInfoTable[[#This Row],[Lamps (Proposed)]],\nIF(OR(ProjectInfoTable[[#This Row],[TRL Unit]]=\"Measure\",ProjectInfoTable[[#This Row],[TRL Unit]]=\"Linear ft.\"),IF(OR(ISNUMBER(FIND(\"Lamp\",ProjectInfoTable[[#This Row],[Fixture Measure]],1)),ISNUMBER(FIND(\"Relamp\",ProjectInfoTable[[#This Row],[Fixture Measure]],1)),ISNUMBER(FIND(\"Relamp\",ProjectInfoTable[[#This Row],[Proposed Equipment]],1))),ProjectInfoTable[[#This Row],[Quantity (Proposed)]]*ProjectInfoTable[[#This Row],[Lamps (Proposed)]],ProjectInfoTable[[#This Row],[Quantity (Proposed)]]),1))))","v":""},{"$f":"IF(ProjectInfoTable[[#This Row],[Fixture Measure]]=\"\",\"\",IF(AND(ProjectState=\"UT\",ProjectInfoTable[[#This Row],[Measure Selection]]=\"\"),0,\nIF(OR(ISNUMBER(FIND(\"SBDI\",ProjectInfoTable[[#This Row],[Fixture Measure]])),ISNUMBER(FIND(\"Small Bu\",ProjectInfoTable[[#This Row],[Fixture Measure]]))),1,\nIF(ISNUMBER(FIND(\"Controls Only\",ProjectInfoTable[[#This Row],[Proposed Equipment]],1)),IF(OR(ProjectType <> \"Retrofit\",ProjectInfoTable[[#This Row],[Space W (Proposed)]]>0),ProjectInfoTable[[#This Row],[Space W (Proposed)]],ProjectInfoTable[[#This Row],[Space W (Existing, Stipulated)]]),\nIF(TRIM(UPPER(ProjectInfoTable[[#This Row],[TRL Unit]]))=\"LINEAR FT.\",IF(OR(ISNUMBER(FIND(\"Marquee\",ProjectInfoTable[[#This Row],[Proposed Equipment]],1)),ISNUMBER(FIND(\"Cabinet\",ProjectInfoTable[[#This Row],[Proposed Equipment]],1))),VALUE(RIGHT(LEFT(ProjectInfoTable[[#This Row],[Existing Equipment]],FIND(\"LF \",ProjectInfoTable[[#This Row],[Existing Equipment]],1)-1),LEN(LEFT(ProjectInfoTable[[#This Row],[Existing Equipment]],FIND(\"LF \",ProjectInfoTable[[#This Row],[Existing Equipment]],1)-1))-FIND(\"[\",ProjectInfoTable[[#This Row],[Existing Equipment]],1))),VALUE(RIGHT(LEFT(ProjectInfoTable[[#This Row],[Proposed Equipment]],FIND(\"LF \",ProjectInfoTable[[#This Row],[Proposed Equipment]],1)-1),LEN(LEFT(ProjectInfoTable[[#This Row],[Proposed Equipment]],FIND(\"LF \",ProjectInfoTable[[#This Row],[Proposed Equipment]],1)-1))-FIND(\"[\",ProjectInfoTable[[#This Row],[Proposed Equipment]],1)))),\nIF(TRIM(UPPER(ProjectInfoTable[[#This Row],[TRL Unit]]))=\"KWH\",IF(ProjectInfoTable[[#This Row],[Fixture Measure kWh/yr Savings (Stipulated)]]=0,0,ROUND(ProjectInfoTable[[#This Row],[Fixture Measure kWh/yr Savings (Stipulated)]],2)),\nIF(TRIM(UPPER(ProjectInfoTable[[#This Row],[TRL Unit]]))=\"WATT REDUCED\",IF(ProjectInfoTable[[#This Row],[Fixture Measure kWh/yr Savings (Stipulated)]]=0,0,ROUND(ProjectInfoTable[[#This Row],[Space W (Existing, Stipulated)]]-ProjectInfoTable[[#This Row],[Space W (Proposed)]],2)),\nIF(TRIM(UPPER(ProjectInfoTable[[#This Row],[TRL Unit]]))=\"FIXTURE WATTAGE\",ProjectInfoTable[[#This Row],[Space W (Proposed)]],1))))))))","v":""},{"$f":"IFERROR(IF(OR(ISNUMBER(FIND(\"SBDI\",ProjectInfoTable[[#This Row],[Fixture Measure]])),ISNUMBER(FIND(\"Small Bu\",ProjectInfoTable[[#This Row],[Fixture Measure]]))),0,INDEX(INDIRECT(\"MeasureTable_\"&ProjectState&\"[Unit]\"),MATCH(ProjectInfoTable[[#This Row],[Fixture Measure]]&\" | TRUE\",INDIRECT(\"MeasureTable_\" &ProjectState&\"[MeasureEligibleConcatenate]\"),0))),\"\")","v":""},{"$f":"IF(ProjectInfoTable[[#This Row],[Fixture Measure]]=\"\",\"\",IF(OR(ISNUMBER(FIND(\"Lamp(s)\",ProjectInfoTable[[#This Row],[Fixture Measure]],1)),ISNUMBER(FIND(\"Relamp\",ProjectInfoTable[[#This Row],[Proposed Equipment]],1))),\"Lamp(s)\",\"Fixture(s)\"))","v":""},{"$f":"IFERROR(INDEX(INDIRECT(\"MeasureTable_\"&ProjectState&\"[ProjectCapPercent]\"),MATCH(ProjectInfoTable[[#This Row],[Fixture Measure]]&\" | TRUE\",INDIRECT(\"MeasureTable_\" &ProjectState&\"[MeasureEligibleConcatenate]\"),0)),\"\")","v":""},{"$f":"IF(OR(ProjectInfoTable[[#This Row],[Control Measure]]=\"\",ProjectInfoTable[[#This Row],[OpSch]]=\"\",ProjectInfoTable[[#This Row],[Eligible Control Measure]]<>TRUE),\"\",IF(AND(OR(ProjectType=\"New Construction\",ProjectType=\"Major Renovation\"),LPDCodeToProposed<0.1,ISNUMBER(FIND(\"Interior\",ProjectInfoTable[[#This Row],[Proposed Equipment]],1))),0,IFERROR(ProjectInfoTable[[#This Row],[Control Incentives Per Unit]]*ProjectInfoTable[[#This Row],[Control Quantity]]*ProjectInfoTable[[#This Row],[Control No. of TRL Units]],\"TRL Error\")))","v":""},{"$f":"IF(OR(ProjectInfoTable[[#This Row],[Control Measure]]=\"\",ProjectInfoTable[[#This Row],[OpSch]]=\"\",ProjectInfoTable[[#This Row],[Eligible Control Measure]]<>TRUE),\"\",IF(AND(ProjectType=\"Retrofit\",ProjectState=\"UT\",ISNUMBER(FIND(\"Post Purchase\",ProjectInfoTable[[#This Row],[Control Measure]],1))),\n\nIFERROR(MAX(MIN(ProjectInfoTable[[#This Row],[Control Incentives (pre-capping)]],ProjectInfoTable[[#This Row],[Control Cost (Allocated)]]*0.7),0),0),\n\nIF(ProjectType=\"Retrofit\",IF(ISNUMBER(FIND(\"Post Purchase\",ProjectInfoTable[[#This Row],[Control Measure]],1)),ProjectInfoTable[[#This Row],[Control Incentives (pre-capping)]],IFERROR($BI$3/$BH$3*ProjectInfoTable[[#This Row],[Control Incentives (pre-capping)]],\"\")),\n\nIF(ISNUMBER(FIND(\"Interior\",ProjectInfoTable[[#This Row],[Proposed Equipment]],1)),IF(LPDCodeToProposed>0.1,ProjectInfoTable[[#This Row],[Control Incentives (pre-capping)]],0),ProjectInfoTable[[#This Row],[Control Incentives (pre-capping)]]))))","v":""},{"$f":"IF(OR(ProjectInfoTable[[#This Row],[Control Incentives Per Unit]]=\"\",ProjectInfoTable[[#This Row],[Control TRL Unit]]=\"\"),\"\",IF(ProjectInfoTable[[#This Row],[Eligible Control Measure]]<>TRUE,\"Invalid Effective Date\",TEXT(ProjectInfoTable[[#This Row],[Control Incentives Per Unit]],\"$#,##0.00\")&\" / \"&ProjectInfoTable[[#This Row],[Control TRL Unit]]))","v":""},{"$f":"IF(ISNUMBER(FIND(\"SBE\",ProjectInfoTable[[#This Row],[Proposed Equipment]])),\"\",\n\nIF(LEN(ProjectInfoTable[[#This Row],[Proposed Equipment]])>\n\nIFERROR(FIND(\"]\",ProjectInfoTable[[#This Row],[Proposed Equipment]],1),0),\nSUBSTITUTE(\nIF(OR(ProjectInfoTable[[#This Row],[Control Method]]=\"separate\",ISNUMBER(FIND(\"Midstream\",ProjectInfoTable[[#This Row],[Fixture Measure]],1)),ISNUMBER(FIND(\"Midstream\",ProjectInfoTable[[#This Row],[Equipment Category]],1)),ISNUMBER(FIND(\"Prescriptive\",ProjectInfoTable[[#This Row],[Equipment Category]],1)),ISNUMBER(FIND(\"LED\",ProjectInfoTable[[#This Row],[Fixture Measure]],1)),ISNUMBER(FIND(\"LED Case\",ProjectInfoTable[[#This Row],[Fixture Measure]],1)),ISNUMBER(FIND(\"LED Decorative - Retrofit - WA\",ProjectInfoTable[[#This Row],[Fixture Measure]],1)),ISNUMBER(FIND(\"Lamp\",ProjectInfoTable[[#This Row],[Fixture Measure]],1)),ISNUMBER(FIND(\"Relamp\",ProjectInfoTable[[#This Row],[Fixture Measure]],1)),ISNUMBER(FIND(\"Wall Pack\",ProjectInfoTable[[#This Row],[Fixture Measure]],1)),ISNUMBER(FIND(\"Controls Only\",ProjectInfoTable[[#This Row],[Proposed Equipment]],1)),ISNUMBER(FIND(\"Re-Commissioning\",ProjectInfoTable[[#This Row],[Proposed Equipment]],1)),\n\nAND(OR(ISNUMBER(FIND(\"Exterior:\",ProjectInfoTable[[#This Row],[Proposed Equipment]],1)),ISNUMBER(FIND(\"Street:\",ProjectInfoTable[[#This Row],[Proposed Equipment]],1))),OR(ProjectState=\"ID\",ProjectState=\"UT\",ProjectState=\"WY\"))),\n\nIF(IFERROR(INDEX(ControlsLookup[],MATCH(IF(ProjectType=\"Retrofit\",LEFT(ProjectInfoTable[[#This Row],[Existing Equipment]],FIND(\":\",ProjectInfoTable[[#This Row],[Existing Equipment]],1)-1),LEFT(ProjectInfoTable[[#This Row],[Proposed Equipment]],FIND(\":\",ProjectInfoTable[[#This Row],[Proposed Equipment]],1)-1))&\"_\"&RIGHT(ProjectInfoTable[[#This Row],[Proposed Equipment]],LEN(ProjectInfoTable[[#This Row],[Proposed Equipment]])-FIND(\"]\",ProjectInfoTable[[#This Row],[Proposed Equipment]],1)-3),ControlsLookup[Controls Concatenate],0),MATCH(\n\nIF(ProjectType=\"Retrofit\",\"ControlMeasure_\",\"NCMRControlMeasure_\")&ProjectState,ControlsLookup[#Headers],0)),\"\")=0,\"\",\n\nIFERROR(INDEX(ControlsLookup[],MATCH(IF(ProjectType=\"Retrofit\",LEFT(ProjectInfoTable[[#This Row],[Existing Equipment]],FIND(\":\",ProjectInfoTable[[#This Row],[Existing Equipment]],1)-1),LEFT(ProjectInfoTable[[#This Row],[Proposed Equipment]],FIND(\":\",ProjectInfoTable[[#This Row],[Proposed Equipment]],1)-1))&\"_\"&RIGHT(ProjectInfoTable[[#This Row],[Proposed Equipment]],LEN(ProjectInfoTable[[#This Row],[Proposed Equipment]])-FIND(\"]\",ProjectInfoTable[[#This Row],[Proposed Equipment]],1)-3),ControlsLookup[Controls Concatenate],0),MATCH(\n\nIF(ProjectType=\"Retrofit\",\"ControlMeasure_\",\"NCMRControlMeasure_\")&ProjectState&IF(ProjectState=\"UT\",SegmentTag,\"\"),ControlsLookup[#Headers],0)),\"\")),\"\"),\"[NAMESUB]\",ProjectInfoTable[[#This Row],[Control Measure Name Sub]]),\"\"))","v":""},{"$f":"IF(ProjectInfoTable[[#This Row],[Proposed Equipment]]=\"\",\"\",IF(AND(ProjectState=\"UT\",ProjectType=\"Retrofit\",ISNUMBER(FIND(\"Re-Commissioning\",ProjectInfoTable[[#This Row],[Proposed Equipment]]))),\nIF(ProjectRecommissioning=\"only recommissioning\",\"Commissioning Only\",\"Commissioning w/ Lighting Upgrade\"),\"\"))","v":""},{"$f":"IFERROR(INDEX(INDIRECT(\"MeasureTable_\" & ProjectState & \"[Measure Reference Number]\"),MATCH(ProjectInfoTable[[#This Row],[Control Measure]],INDIRECT(\"MeasureTable_\" &ProjectState&\"[Measure Name]\"),0)),\"\")","v":""},{"$f":"IFERROR(\n    _xlfn.LET(\n        _xlpm.filteredVersions,\n            _xlfn._xlws.FILTER(\n                INDIRECT(\"MeasureTable_\" & ProjectState & \"[Version Number]\"),\n                (INDIRECT(\"MeasureTable_\" & ProjectState & \"[Measure Reference Number]\") = ProjectInfoTable[[#This Row],[Control Measure Reference Number]]) *\n                (INDIRECT(\"MeasureTable_\" & ProjectState & \"[Eligible Measure]\") = TRUE)\n            ),\n        INDEX(_xlpm.filteredVersions, 1)\n    ),\n    \"\"\n)","v":""},{"$f":"IFERROR(\n  _xlfn.LET(\n    _xlpm.refRange, INDIRECT(\"MeasureTable_\" & ProjectState & \"[Measure Reference Number]\"),\n    _xlpm.eligibleRange, INDIRECT(\"MeasureTable_\" & ProjectState & \"[Eligible Measure]\"),\n    _xlpm.countTrue, SUMPRODUCT(--(_xlpm.refRange = ProjectInfoTable[[#This Row],[Control Measure Reference Number]]), --(_xlpm.eligibleRange = TRUE)),\n    _xlpm.countNonBlank, SUMPRODUCT(--(_xlpm.refRange = ProjectInfoTable[[#This Row],[Control Measure Reference Number]]), --(_xlpm.eligibleRange <> \"\")),\n    IF(_xlpm.countNonBlank = 0, \"\", IF(_xlpm.countTrue >= 1, TRUE, FALSE))\n  ),\n  \"\"\n)","v":""},{"$f":"IF(ProjectInfoTable[[#This Row],[Proposed Equipment]]=\"\",\"\",IFERROR(INDEX(INDIRECT(\"EquipmentTable_\"&IF(ProjectType=\"Retrofit\",\"Retrofit_\",\"NCMR_\")&ProjectState&\"[controlMethod]\"),MATCH(LEFT(ProjectInfoTable[[#This Row],[Proposed Equipment]],FIND(\"[\",ProjectInfoTable[[#This Row],[Proposed Equipment]],1)-2),INDIRECT(\"EquipmentTable_\"&IF(ProjectType=\"Retrofit\",\"Retrofit_\",\"NCMR_\")&ProjectState&\"[equipmentProposed]\"),0)),\"\"))","v":""},{"$f":"IFERROR(VALUE(INDEX(INDIRECT(\"MeasureTable_\" & ProjectState & \"[CustomerIncentiveDollarperunit]\"),MATCH(ProjectInfoTable[[#This Row],[Control Measure]]&\" | TRUE\",INDIRECT(\"MeasureTable_\"&ProjectState&\"[MeasureEligibleConcatenate]\"),0))),\"\")","v":""},{"$f":"IFERROR(INDEX(INDIRECT(\"MeasureTable_\"&ProjectState&\"[SiteSpecificCalculation]\"),MATCH(ProjectInfoTable[[#This Row],[Control Measure]]&\" | TRUE\",INDIRECT(\"MeasureTable_\"&ProjectState&\"[MeasureEligibleConcatenate]\"),0)),\"\")","v":""},{"$f":"IFERROR(INDEX(INDIRECT(\"MeasureTable_\"&ProjectState&\"[GrossIncrementalAnnualElectricSavings ]\"),MATCH(ProjectInfoTable[[#This Row],[Control Measure]]&\" | TRUE\",INDIRECT(\"MeasureTable_\"&ProjectState&\"[MeasureEligibleConcatenate]\"),0)),\"\")","v":""},{"$f":"IFERROR(INDEX(INDIRECT(\"MeasureTable_\"&ProjectState&\"[GrossAverage onthly emand eduction]\"),MATCH(ProjectInfoTable[[#This Row],[Control Measure]]&\" | TRUE\",INDIRECT(\"MeasureTable_\"&ProjectState&\"[MeasureEligibleConcatenate]\"),0)),\"\")","v":""},{"$f":"IFERROR(INDEX(INDIRECT(\"MeasureTable_\"&ProjectState&\"[IncrementalMeasureCost]\"),MATCH(ProjectInfoTable[[#This Row],[Control Measure]]&\" | TRUE\",INDIRECT(\"MeasureTable_\"&ProjectState&\"[MeasureEligibleConcatenate]\"),0)),\"\")","v":""},{"$f":"IF(ProjectInfoTable[[#This Row],[Control Measure]]=\"\",\"\",IF(OR(ProjectInfoTable[[#This Row],[Control TRL Unit]]=\"Measure\",ProjectInfoTable[[#This Row],[Control TRL Unit]]=\"Linear ft.\"),IF(OR(ISNUMBER(FIND(\"Midstream\",ProjectInfoTable[[#This Row],[Control Measure]],1)),ISNUMBER(FIND(\"Lamp\",ProjectInfoTable[[#This Row],[Control Measure]],1))),ProjectInfoTable[[#This Row],[Quantity (Proposed)]]*ProjectInfoTable[[#This Row],[Lamps (Proposed)]],ProjectInfoTable[[#This Row],[Quantity (Proposed)]]),1))","v":""},{"$f":"IF(ProjectInfoTable[[#This Row],[Control Measure]]=\"\",\"\",IF(ISNUMBER(FIND(\"LF \",ProjectInfoTable[[#This Row],[Proposed Equipment]],1)),VALUE(RIGHT(LEFT(ProjectInfoTable[[#This Row],[Proposed Equipment]],FIND(\"LF \",ProjectInfoTable[[#This Row],[Proposed Equipment]],1)-1),LEN(LEFT(ProjectInfoTable[[#This Row],[Proposed Equipment]],FIND(\"LF \",ProjectInfoTable[[#This Row],[Proposed Equipment]],1)-1))-FIND(\"[\",ProjectInfoTable[[#This Row],[Proposed Equipment]],1))),IF(TRIM(UPPER(ProjectInfoTable[[#This Row],[Control TRL Unit]]))=\"WATT CONTROLLED\",IF(ISNUMBER(FIND(\"Controls Only\",ProjectInfoTable[[#This Row],[Proposed Equipment]],1)),IF(OR(ProjectType <> \"Retrofit\",ProjectInfoTable[[#This Row],[Space W (Proposed)]]>0),ProjectInfoTable[[#This Row],[Space W (Proposed)]],ProjectInfoTable[[#This Row],[Space W (Existing, Stipulated)]]),ProjectInfoTable[[#This Row],[Space W (Proposed)]]),IF(TRIM(UPPER(ProjectInfoTable[[#This Row],[Control TRL Unit]]))=\"KWH\",IF(ProjectInfoTable[[#This Row],[Control Measure kWh/yr Savings (Stipulated)]]=0,0,ROUND(ProjectInfoTable[[#This Row],[Control Measure kWh/yr Savings (Stipulated)]],2)),1))))","v":""},{"$f":"IFERROR(IF(LEN(ProjectInfoTable[[#This Row],[Proposed Equipment]])-(FIND(\"]\",ProjectInfoTable[[#This Row],[Proposed Equipment]],1))>0,\"Control(s)\",\"\"),\"\")","v":""},{"$f":"IFERROR(INDEX(INDIRECT(\"MeasureTable_\"&ProjectState&\"[Unit]\"),MATCH(ProjectInfoTable[[#This Row],[Control Measure]]&\" | TRUE\",INDIRECT(\"MeasureTable_\"&ProjectState&\"[MeasureEligibleConcatenate]\"),0)),\"\")","v":""},{"$f":"IFERROR(INDEX(INDIRECT(\"MeasureTable_\"&ProjectState&\"[ProjectCapPercent]\"),MATCH(ProjectInfoTable[[#This Row],[Control Measure]]&\" | TRUE\",INDIRECT(\"MeasureTable_\"&ProjectState&\"[MeasureEligibleConcatenate]\"),0)),\"\")","v":""},{"$f":"IF(OR(ProjectInfoTable[[#This Row],[Fixture Measure]]<>\"\",ProjectInfoTable[[#This Row],[Control Measure]]<>\"\"),1,\"\")","v":""},{"$f":"IF(ProjectInfoTable[[#This Row],[TRL Unit]]=\"\",\"\",IF(OR(ISNUMBER(SEARCH(\"measure\",ProjectInfoTable[[#This Row],[TRL Unit]])),ISNUMBER(SEARCH(\"linear ft\",ProjectInfoTable[[#This Row],[TRL Unit]])),ProjectInfoTable[[#This Row],[TRL Unit]]=0),990,991))","v":""},{"$f":"IFERROR(SUBSTITUTE(LEFT(ProjectInfoTable[[#This Row],[Proposed Equipment]],FIND(\"]\",ProjectInfoTable[[#This Row],[Proposed Equipment]],1)),\"Controls Only []\",\"\",1),\"\")","v":""},{"$f":"IF(ProjectInfoTable[[#This Row],[FixturesOnly]]=\"\",\"\",IF(ISNUMBER(FIND(\"L \",ProjectInfoTable[[#This Row],[Proposed Equipment]],1)),ProjectInfoTable[[#This Row],[Quantity (Proposed)]]*ProjectInfoTable[[#This Row],[Lamps (Proposed)]],ProjectInfoTable[[#This Row],[Quantity (Proposed)]]))","v":""},{"$f":"IFERROR(INDEX(ControlsLookup[Full Description],MATCH(RIGHT(ProjectInfoTable[[#This Row],[Proposed Equipment]],LEN(ProjectInfoTable[[#This Row],[Proposed Equipment]])-FIND(\"]\",ProjectInfoTable[[#This Row],[Proposed Equipment]],1)-3),ControlsLookup[Controls],0)),\"\")","v":""},{"$f":"IF(ProjectInfoTable[[#This Row],[ControlsOnly]]=\"\",\"\",IF(OR(ISNUMBER(FIND(\"Net\",ProjectInfoTable[[#This Row],[Proposed Equipment]],1)),ISNUMBER(FIND(\"Int\",ProjectInfoTable[[#This Row],[Proposed Equipment]],1))),ProjectInfoTable[[#This Row],[Quantity (Proposed)]],1))","v":""}]
[null,{"$f":"ROW(ProjectInfoTable[[#This Row],[OpSch]])-ROW(ProjectInfoTable[[#Headers],[OpSch]])","v":8},{"$f":"IFERROR(INDEX(RetrofitBaselineEquipment_Table[categoryBaseline],MATCH(RIGHT(LEFT(ProjectInfoTable[[#This Row],[Existing Equipment]],FIND(\" (\",ProjectInfoTable[[#This Row],[Existing Equipment]],1)-1),LEN(LEFT(ProjectInfoTable[[#This Row],[Existing Equipment]],FIND(\" (\",ProjectInfoTable[[#This Row],[Existing Equipment]],1)-1))-FIND(\": \",ProjectInfoTable[[#This Row],[Existing Equipment]],1)-1),RetrofitBaselineEquipment_Table[equipmentBaseline],0)),\"\")","v":""},null,null,null,null,{"$f":"IF(ProjectInfoTable[[#This Row],[Existing Equipment]]=\"\",\"\",IF(ISNUMBER(FIND(\"LF\",ProjectInfoTable[[#This Row],[Existing Equipment]],1)),1,IFERROR(VALUE(SUBSTITUTE(RIGHT(LEFT(ProjectInfoTable[[#This Row],[Existing Equipment]],FIND(\"L\",ProjectInfoTable[[#This Row],[Existing Equipment]],FIND(\"[\",ProjectInfoTable[[#This Row],[Existing Equipment]],1))-1),3),\"[\",\"\")),1)))","v":""},{"$f":"IF(ProjectInfoTable[[#This Row],[Existing Equipment]]=\"\",\"\",VALUE(SUBSTITUTE(RIGHT(LEFT(RIGHT(ProjectInfoTable[[#This Row],[Existing Equipment]],LEN(ProjectInfoTable[[#This Row],[Existing Equipment]])-IFERROR(FIND(\"[\",ProjectInfoTable[[#This Row],[Existing Equipment]],1),0)),IFERROR(FIND(\"W\",RIGHT(ProjectInfoTable[[#This Row],[Existing Equipment]],LEN(ProjectInfoTable[[#This Row],[Existing Equipment]])-IFERROR(FIND(\"[\",ProjectInfoTable[[#This Row],[Existing Equipment]],1),0)),1),0)),LEN(LEFT(RIGHT(ProjectInfoTable[[#This Row],[Existing Equipment]],LEN(ProjectInfoTable[[#This Row],[Existing Equipment]])-IFERROR(FIND(\"[\",ProjectInfoTable[[#This Row],[Existing Equipment]],1),0)),IFERROR(FIND(\"W\",RIGHT(ProjectInfoTable[[#This Row],[Existing Equipment]],LEN(ProjectInfoTable[[#This Row],[Existing Equipment]])-IFERROR(FIND(\"[\",ProjectInfoTable[[#This Row],[Existing Equipment]],1),0)),1),0)))-IFERROR(FIND(\"-\",LEFT(RIGHT(ProjectInfoTable[[#This Row],[Existing Equipment]],LEN(ProjectInfoTable[[#This Row],[Existing Equipment]])-IFERROR(FIND(\"[\",ProjectInfoTable[[#This Row],[Existing Equipment]],1),0)),IFERROR(FIND(\"W\",RIGHT(ProjectInfoTable[[#This Row],[Existing Equipment]],LEN(ProjectInfoTable[[#This Row],[Existing Equipment]])-IFERROR(FIND(\"[\",ProjectInfoTable[[#This Row],[Existing Equipment]],1),0)),1),0)),1),0)),\"W\",\"\")))","v":""},{"$f":"IF(ProjectInfoTable[[#This Row],[Existing Equipment]]=\"\",\"\",IF(AND(RIGHT(LEFT(ProjectInfoTable[[#This Row],[Existing Equipment]],FIND(\"]\",ProjectInfoTable[[#This Row],[Existing Equipment]],1)-1),1)<>\"W\"),IFERROR(TRIM(IF(IFERROR(FIND(\"FLT\",ProjectInfoTable[[#This Row],[Existing Equipment]],1),0)>0,LEFT(RIGHT(LEFT(ProjectInfoTable[[#This Row],[Existing Equipment]],FIND(\" (\",ProjectInfoTable[[#This Row],[Existing Equipment]],1)),LEN(LEFT(ProjectInfoTable[[#This Row],[Existing Equipment]],FIND(\" (\",ProjectInfoTable[[#This Row],[Existing Equipment]],1)))-FIND(\":\",ProjectInfoTable[[#This Row],[Existing Equipment]],1)-1),FIND(\" \",RIGHT(LEFT(ProjectInfoTable[[#This Row],[Existing Equipment]],FIND(\" (\",ProjectInfoTable[[#This Row],[Existing Equipment]],1)),LEN(LEFT(ProjectInfoTable[[#This Row],[Existing Equipment]],FIND(\" (\",ProjectInfoTable[[#This Row],[Existing Equipment]],1)))-FIND(\":\",ProjectInfoTable[[#This Row],[Existing Equipment]],1)-1),1)-1),RIGHT(LEFT(ProjectInfoTable[[#This Row],[Existing Equipment]],FIND(\" (\",ProjectInfoTable[[#This Row],[Existing Equipment]],1)),LEN(LEFT(ProjectInfoTable[[#This Row],[Existing Equipment]],FIND(\" (\",ProjectInfoTable[[#This Row],[Existing Equipment]],1)))-FIND(\":\",ProjectInfoTable[[#This Row],[Existing Equipment]],1)-1))&\" - \"&RIGHT(LEFT(ProjectInfoTable[[#This Row],[Existing Equipment]],FIND(\"]\",ProjectInfoTable[[#This Row],[Existing Equipment]],1)-1),LEN(LEFT(ProjectInfoTable[[#This Row],[Existing Equipment]],FIND(\"]\",ProjectInfoTable[[#This Row],[Existing Equipment]],1)-1))-FIND(\"W \",ProjectInfoTable[[#This Row],[Existing Equipment]],1)-3)),\"\"),\"\"))","v":""},{"$f":"IF(ProjectInfoTable[[#This Row],[Existing Equipment]]=\"\",\"\",IF(ProjectInfoTable[[#This Row],[Fixture/Ballast Check for Formula]]=\"\",IF(ISNUMBER(FIND(\"LF\",ProjectInfoTable[[#This Row],[Existing Equipment]],FIND(\"[\",ProjectInfoTable[[#This Row],[Existing Equipment]],1))),ProjectInfoTable[[#This Row],[Lamp W (Existing)]],ProjectInfoTable[[#This Row],[Lamps (Existing)]]*ProjectInfoTable[[#This Row],[Lamp W (Existing)]]),IFERROR(ROUND( ProjectInfoTable[[#This Row],[Lamps (Existing)]]*ProjectInfoTable[[#This Row],[Lamp W (Existing)]]*INDEX(FixtureWattageFormula_Table[A],MATCH(ProjectInfoTable[[#This Row],[Fixture/Ballast Check for Formula]],FixtureWattageFormula_Table[Concatenate],0))+INDEX(FixtureWattageFormula_Table[B],MATCH(ProjectInfoTable[[#This Row],[Fixture/Ballast Check for Formula]],FixtureWattageFormula_Table[Concatenate],0)),0),ProjectInfoTable[[#This Row],[Lamps (Existing)]]*ProjectInfoTable[[#This Row],[Lamp W (Existing)]])))","v":""},{"$f":"IF(OR(ISNUMBER(FIND(\"T8 \",ProjectInfoTable[[#This Row],[Existing Equipment]],1)),ISNUMBER(FIND(\"T5 \",ProjectInfoTable[[#This Row],[Existing Equipment]],1)),ISNUMBER(FIND(\"T12 \",ProjectInfoTable[[#This Row],[Existing Equipment]],1)),ISNUMBER(FIND(\"T12HO - 8\",ProjectInfoTable[[#This Row],[Existing Equipment]],1)),ISNUMBER(FIND(\"Incand\",ProjectInfoTable[[#This Row],[Existing Equipment]],1))),IFERROR(ROUND(INDEX(StipulatedWattage_Table[Stipulated fixture wattage],MATCH(MID(ProjectInfoTable[[#This Row],[Existing Equipment]],FIND(\"[\",ProjectInfoTable[[#This Row],[Existing Equipment]],1),FIND(\"]\",ProjectInfoTable[[#This Row],[Existing Equipment]],1)-FIND(\"[\",ProjectInfoTable[[#This Row],[Existing Equipment]],1)+1),StipulatedWattage_Table[Fixture Code],0)),0),ProjectInfoTable[[#This Row],[Fixture W (Existing, Actual)]]),ProjectInfoTable[[#This Row],[Fixture W (Existing, Actual)]])","v":""},{"$f":"IF(ProjectType=\"Retrofit\",IF(ProjectInfoTable[[#This Row],[Existing Equipment]]=\"\",\"\",ProjectInfoTable[[#This Row],[Quantity (Existing)]]*ProjectInfoTable[[#This Row],[Fixture W (Existing, Actual)]]),IF(ISNUMBER(FIND(\"Interior\",ProjectInfoTable[[#This Row],[Proposed Equipment]],1)),IF(ISNUMBER(FIND(\"Controls Only\",ProjectInfoTable[[#This Row],[Proposed Equipment]])),ProjectInfoTable[[#This Row],[Space W (Proposed)]],(AllowedWattage-SUMIFS(ProjectInfoTable[Space W (Proposed)],ProjectInfoTable[Proposed Equipment],\"*Interior*\",ProjectInfoTable[Proposed Equipment],\"*Controls Only*\"))*ProjectInfoTable[[#This Row],[Space W (Proposed)]]/(SUMIFS(ProjectInfoTable[Space W (Proposed)],ProjectInfoTable[Proposed Equipment],\"*Interior*\")-SUMIFS(ProjectInfoTable[Space W (Proposed)],ProjectInfoTable[Proposed Equipment],\"*Interior*\",ProjectInfoTable[Proposed Equipment],\"*Controls Only*\"))),\"\"))","v":""},{"$f":"IF(ProjectType=\"Retrofit\",IF(ProjectInfoTable[[#This Row],[Existing Equipment]]=\"\",\"\",ProjectInfoTable[[#This Row],[Quantity (Existing)]]*ProjectInfoTable[[#This Row],[Fixture W (Existing, Stipulated)]]),ProjectInfoTable[[#This Row],[Space W (Existing, Actual)]])","v":""},{"$f":"IFERROR(INDEX(OperatingHours_List,MATCH(ProjectInfoTable[[#This Row],[OpSch]],OperatingSchedules_List,0))*ProjectInfoTable[[#This Row],[Space W (Existing, Actual)]]/1000,\"\")","v":""},{"$f":"IFERROR(INDEX(OperatingHours_List,MATCH(ProjectInfoTable[[#This Row],[OpSch]],OperatingSchedules_List,0))*ProjectInfoTable[[#This Row],[Space W (Existing, Actual)]]/1000*(IFERROR(INDEX(ControlsLookup[],MATCH(RIGHT(ProjectInfoTable[[#This Row],[Existing Equipment]],LEN(ProjectInfoTable[[#This Row],[Existing Equipment]])-FIND(\"]\",ProjectInfoTable[[#This Row],[Existing Equipment]],1)-3),ControlsLookup[Controls],0),MATCH(\"CSF_\"&ProjectState,ControlsLookup[#Headers],0)),0))*-1,\"\")","v":""},{"$f":"IF(OR(ProjectInfoTable[[#This Row],[Fixture kWh (Existing, Actual)]]=\"\",ProjectInfoTable[[#This Row],[Control kWh (Existing, Actual)]]=\"\"),\"\",ProjectInfoTable[[#This Row],[Fixture kWh (Existing, Actual)]]+ProjectInfoTable[[#This Row],[Control kWh (Existing, Actual)]])","v":""},{"$f":"IFERROR(INDEX(OperatingHours_List,MATCH(ProjectInfoTable[[#This Row],[OpSch]],OperatingSchedules_List,0))*ProjectInfoTable[[#This Row],[Space W (Existing, Stipulated)]]/1000,\"\")","v":""},{"$f":"IFERROR(INDEX(OperatingHours_List,MATCH(ProjectInfoTable[[#This Row],[OpSch]],OperatingSchedules_List,0))*ProjectInfoTable[[#This Row],[Space W (Existing, Stipulated)]]/1000*(IFERROR(INDEX(ControlsLookup[],MATCH(RIGHT(ProjectInfoTable[[#This Row],[Existing Equipment]],LEN(ProjectInfoTable[[#This Row],[Existing Equipment]])-FIND(\"]\",ProjectInfoTable[[#This Row],[Existing Equipment]],1)-3),ControlsLookup[Controls],0),MATCH(\"CSF_\"&ProjectState,ControlsLookup[#Headers],0)),0))*-1,\"\")","v":""},{"$f":"IF(OR(ProjectInfoTable[[#This Row],[Fixture kWh (Existing, Stipulated)]]=\"\",ProjectInfoTable[[#This Row],[Control kWh (Existing, Stipulated)]]=\"\"),\"\",ProjectInfoTable[[#This Row],[Fixture kWh (Existing, Stipulated)]]+ProjectInfoTable[[#This Row],[Control kWh (Existing, Stipulated)]])","v":""},{"$f":"IF(\n AND(\n  OR(ProjectInfoTable[[#This Row],[Existing Equipment]]=\"\",ProjectInfoTable[[#This Row],[Quantity (Existing)]]=\"\"),\n  ProjectType=\"Retrofit\"\n ),\n \"\",\n IF(\n  ISNUMBER(FIND(\"Street:\",ProjectInfoTable[[#This Row],[Existing Equipment]],1)),\n  IF(\n   OR(\n    AND(ProjectState=\"UT\",RateSchedule=12),\n    AND(ProjectState=\"ID\",RateSchedule=12),\n    AND(ProjectState=\"WY\",RateSchedule=58)\n   ),\n   IFERROR(\n    INDEX(\n     StreetLightingRates_Table[],\n     MATCH(MID(ProjectInfoTable[[#This Row],[Existing Equipment]],FIND(\": \",ProjectInfoTable[[#This Row],[Existing Equipment]],1)+2,FIND(\" (\",ProjectInfoTable[[#This Row],[Existing Equipment]],1)-FIND(\": \",ProjectInfoTable[[#This Row],[Existing Equipment]],1)-2)&ProjectInfoTable[[#This Row],[Lamp W (Existing)]],StreetLightingRates_Table[TechWattage],0),\n     MATCH(ProjectState&RateSchedule,StreetLightingRates_Table[#Headers],0)\n    )\n    *\n    ProjectInfoTable[[#This Row],[Quantity (Existing)]]\n    *\n    ProjectInfoTable[[#This Row],[Lamps (Existing)]]\n    *\n    12,\n    ProjectInfoTable[[#This Row],[Space kWh (Existing, Actual)]]\n    *\n    INDEX(INDIRECT(\"RateSchedules_\"&ProjectState&\"_Table[kWh Rate]\"),MATCH(RateSchedule,INDIRECT(\"RateSchedules_\"&ProjectState&\"_Table[Rate Schedule]\"),0))\n   ),\n   IFERROR(\n    ProjectInfoTable[[#This Row],[Space kWh (Existing, Actual)]]*\n    INDEX(INDIRECT(\"RateSchedules_\"&ProjectState&\"_Table[kWh Rate]\"),MATCH(RateSchedule,INDIRECT(\"RateSchedules_\"&ProjectState&\"_Table[Rate Schedule]\"),0)),0)\n   +\n   IFERROR(IF(ISNUMBER(FIND(\"Interior:\",ProjectInfoTable[[#This Row],[Existing Equipment]],1)),\n    ProjectInfoTable[[#This Row],[Space W (Existing, Actual)]]/1000*12*DDF*\n    INDEX(INDIRECT(\"RateSchedules_\"&ProjectState&\"_Table[kW Rate]\"),MATCH(RateSchedule,INDIRECT(\"RateSchedules_\"&ProjectState&\"_Table[Rate Schedule]\"),0)),0),0)\n  ),\n  IFERROR(\n   ProjectInfoTable[[#This Row],[Space kWh (Existing, Actual)]]*\n   INDEX(INDIRECT(\"RateSchedules_\"&ProjectState&\"_Table[kWh Rate]\"),MATCH(RateSchedule,INDIRECT(\"RateSchedules_\"&ProjectState&\"_Table[Rate Schedule]\"),0)),\n   0\n  )\n  +\n  IFERROR(IF(OR(ISNUMBER(FIND(\"Interior:\",ProjectInfoTable[[#This Row],[Existing Equipment]],1)),AND(ProjectType<>\"Retrofit\",ISNUMBER(FIND(\"Interior:\",ProjectInfoTable[[#This Row],[Proposed Equipment]],1)))),\n   ProjectInfoTable[[#This Row],[Space W (Existing, Actual)]]/1000*12*DDF*\n   INDEX(INDIRECT(\"RateSchedules_\"&ProjectState&\"_Table[kW Rate]\"),MATCH(RateSchedule,INDIRECT(\"RateSchedules_\"&ProjectState&\"_Table[Rate Schedule]\"),0)),0),\n   0\n  )\n )\n)","v":0},{"$f":"IF(\n AND(\n  OR(ProjectInfoTable[[#This Row],[Existing Equipment]]=\"\",ProjectInfoTable[[#This Row],[Quantity (Existing)]]=\"\"),\n  ProjectType=\"Retrofit\"\n ),\n \"\",\n IF(\n  ISNUMBER(FIND(\"Street:\",ProjectInfoTable[[#This Row],[Existing Equipment]],1)),\n  IF(\n   OR(\n    AND(ProjectState=\"UT\",RateSchedule=12),\n    AND(ProjectState=\"ID\",RateSchedule=12),\n    AND(ProjectState=\"WY\",RateSchedule=58)\n   ),\n   IFERROR(\n    INDEX(\n     StreetLightingRates_Table[],\n     MATCH(MID(ProjectInfoTable[[#This Row],[Existing Equipment]],FIND(\": \",ProjectInfoTable[[#This Row],[Existing Equipment]],1)+2,FIND(\" (\",ProjectInfoTable[[#This Row],[Existing Equipment]],1)-FIND(\": \",ProjectInfoTable[[#This Row],[Existing Equipment]],1)-2)&ProjectInfoTable[[#This Row],[Lamp W (Existing)]],StreetLightingRates_Table[TechWattage],0),\n     MATCH(ProjectState&RateSchedule,StreetLightingRates_Table[#Headers],0)\n    )\n    *\n    ProjectInfoTable[[#This Row],[Quantity (Existing)]]\n    *\n    ProjectInfoTable[[#This Row],[Lamps (Existing)]]\n    *\n    12,\n    ProjectInfoTable[[#This Row],[Space kWh (Existing, Stipulated)]]\n    *\n    INDEX(INDIRECT(\"RateSchedules_\"&ProjectState&\"_Table[kWh Rate]\"),MATCH(RateSchedule,INDIRECT(\"RateSchedules_\"&ProjectState&\"_Table[Rate Schedule]\"),0))\n   ),\n   IFERROR(\n    ProjectInfoTable[[#This Row],[Space kWh (Existing, Stipulated)]]*\n    INDEX(INDIRECT(\"RateSchedules_\"&ProjectState&\"_Table[kWh Rate]\"),MATCH(RateSchedule,INDIRECT(\"RateSchedules_\"&ProjectState&\"_Table[Rate Schedule]\"),0)),0)\n   +\n   IFERROR(IF(ISNUMBER(FIND(\"Interior:\",ProjectInfoTable[[#This Row],[Existing Equipment]],1)),\n    ProjectInfoTable[[#This Row],[Space W (Existing, Stipulated)]]/1000*12*DDF*\n    INDEX(INDIRECT(\"RateSchedules_\"&ProjectState&\"_Table[kW Rate]\"),MATCH(RateSchedule,INDIRECT(\"RateSchedules_\"&ProjectState&\"_Table[Rate Schedule]\"),0)),0),0)\n  ),\n  IFERROR(\n   ProjectInfoTable[[#This Row],[Space kWh (Existing, Stipulated)]]*\n   INDEX(INDIRECT(\"RateSchedules_\"&ProjectState&\"_Table[kWh Rate]\"),MATCH(RateSchedule,INDIRECT(\"RateSchedules_\"&ProjectState&\"_Table[Rate Schedule]\"),0)),\n   0\n  )\n  +\n  IFERROR(IF(OR(ISNUMBER(FIND(\"Interior:\",ProjectInfoTable[[#This Row],[Existing Equipment]],1)),AND(ProjectType<>\"Retrofit\",ISNUMBER(FIND(\"Interior:\",ProjectInfoTable[[#This Row],[Proposed Equipment]],1)))),\n   ProjectInfoTable[[#This Row],[Space W (Existing, Stipulated)]]/1000*12*DDF*\n   INDEX(INDIRECT(\"RateSchedules_\"&ProjectState&\"_Table[kW Rate]\"),MATCH(RateSchedule,INDIRECT(\"RateSchedules_\"&ProjectState&\"_Table[Rate Schedule]\"),0)),0),\n   0\n  )\n )\n)","v":0},{"$f":"IF(ProjectType=\"Retrofit\",IFERROR(INDEX(RetrofitBaselineEquipment_Table[categoryBaseline],MATCH(RIGHT(LEFT(ProjectInfoTable[[#This Row],[Proposed Equipment]],FIND(\" (\",ProjectInfoTable[[#This Row],[Proposed Equipment]],1)-1),LEN(LEFT(ProjectInfoTable[[#This Row],[Proposed Equipment]],FIND(\" (\",ProjectInfoTable[[#This Row],[Proposed Equipment]],1)-1))-FIND(\": \",ProjectInfoTable[[#This Row],[Proposed Equipment]],1)-1),RetrofitBaselineEquipment_Table[equipmentBaseline],0)),\"\"),IFERROR(INDEX(#REF!,MATCH(RIGHT(LEFT(ProjectInfoTable[[#This Row],[Proposed Equipment]],FIND(\" (\",ProjectInfoTable[[#This Row],[Proposed Equipment]],1)-1),LEN(LEFT(ProjectInfoTable[[#This Row],[Proposed Equipment]],FIND(\" (\",ProjectInfoTable[[#This Row],[Proposed Equipment]],1)-1))-FIND(\": \",ProjectInfoTable[[#This Row],[Proposed Equipment]],1)-1),#REF!,0)),\"\"))","v":""},{"$f":"IF(ProjectInfoTable[[#This Row],[Proposed Equipment]]=\"\",\"\",IF(ISNUMBER(SEARCH(\"Controls Only\",ProjectInfoTable[[#This Row],[Proposed Equipment]])),\"Controls Only\",IF(ProjectType=\"Retrofit\",_xlfn.LET(_xlpm.k,LEFT(ProjectInfoTable[[#This Row],[Proposed Equipment]],FIND(\"[\",ProjectInfoTable[[#This Row],[Proposed Equipment]])-2),_xlpm.ep,_xlfn.SWITCH(ProjectState,\"UT\",EquipmentTable_Retrofit_UT[equipmentProposed],\"WY\",EquipmentTable_Retrofit_WY[equipmentProposed],\"ID\",EquipmentTable_Retrofit_ID[equipmentProposed]),_xlpm.cp,_xlfn.SWITCH(ProjectState,\"UT\",EquipmentTable_Retrofit_UT[categoryProposed],\"WY\",EquipmentTable_Retrofit_WY[categoryProposed],\"ID\",EquipmentTable_Retrofit_ID[categoryProposed]),_xlfn.XLOOKUP(_xlpm.k,_xlpm.ep,_xlpm.cp,\"Non-eligible fixture - Retrofit - \"&ProjectState)),_xlfn.LET(_xlpm.k,MID(ProjectInfoTable[[#This Row],[Proposed Equipment]],FIND(\": \",ProjectInfoTable[[#This Row],[Proposed Equipment]])+2,FIND(\" (\",ProjectInfoTable[[#This Row],[Proposed Equipment]])-(FIND(\": \",ProjectInfoTable[[#This Row],[Proposed Equipment]])+2)),_xlpm.ep,_xlfn.SWITCH(ProjectState,\"UT\",EquipmentTable_NCMR_UT[equipmentProposed],\"WY\",EquipmentTable_NCMR_WY[equipmentProposed],\"ID\",EquipmentTable_NCMR_ID[equipmentProposed]),_xlpm.cp,_xlfn.SWITCH(ProjectState,\"UT\",EquipmentTable_NCMR_UT[categoryProposed],\"WY\",EquipmentTable_NCMR_WY[categoryProposed],\"ID\",EquipmentTable_NCMR_ID[categoryProposed]),_xlfn.XLOOKUP(_xlpm.k,_xlpm.ep,_xlpm.cp,\"Non-eligible fixture - NCMR - \"&ProjectState)))))","v":""},null,null,"ü",{"$f":"IF(ProjectInfoTable[[#This Row],[Proposed Equipment]]=\"\",\"\",IF(ProjectInfoTable[[#This Row],[Measure Selection]]=\"\",0,IF(ISNUMBER(FIND(\"LF\",ProjectInfoTable[[#This Row],[Proposed Equipment]],1)),1,IFERROR(VALUE(SUBSTITUTE(RIGHT(LEFT(ProjectInfoTable[[#This Row],[Proposed Equipment]],FIND(\"L\",ProjectInfoTable[[#This Row],[Proposed Equipment]],FIND(\"[\",ProjectInfoTable[[#This Row],[Proposed Equipment]],1))-1),2),\"[\",\"\")),IFERROR(LEFT(RIGHT(ProjectInfoTable[[#This Row],[Proposed Equipment]],LEN(ProjectInfoTable[[#This Row],[Proposed Equipment]])-FIND(\"-lamp\",ProjectInfoTable[[#This Row],[Proposed Equipment]],1)+2),1),1)))))","v":""},{"$f":"IF(ProjectInfoTable[[#This Row],[Proposed Equipment]]=\"\",\"\",IF(ProjectInfoTable[[#This Row],[Measure Selection]]=\"\",0,IFERROR(\n\nIF(ISNUMBER(FIND(\"W]\",ProjectInfoTable[[#This Row],[Proposed Equipment]])),\nRIGHT(MID(ProjectInfoTable[[#This Row],[Proposed Equipment]],FIND(\"W]\",ProjectInfoTable[[#This Row],[Proposed Equipment]],FIND(\"[\",ProjectInfoTable[[#This Row],[Proposed Equipment]]))-7,7),\nLEN(MID(ProjectInfoTable[[#This Row],[Proposed Equipment]],FIND(\"W]\",ProjectInfoTable[[#This Row],[Proposed Equipment]],FIND(\"[\",ProjectInfoTable[[#This Row],[Proposed Equipment]]))-7,7)) -\nIFERROR(FIND(\" - \",MID(ProjectInfoTable[[#This Row],[Proposed Equipment]],FIND(\"W]\",ProjectInfoTable[[#This Row],[Proposed Equipment]],FIND(\"[\",ProjectInfoTable[[#This Row],[Proposed Equipment]]))-7,7))+2,\nFIND(\"[\",MID(ProjectInfoTable[[#This Row],[Proposed Equipment]],FIND(\"W]\",ProjectInfoTable[[#This Row],[Proposed Equipment]],FIND(\"[\",ProjectInfoTable[[#This Row],[Proposed Equipment]]))-7,7)))),\n\nIF(ISNUMBER(FIND(\"[\",MID(ProjectInfoTable[[#This Row],[Proposed Equipment]],FIND(\"W \",ProjectInfoTable[[#This Row],[Proposed Equipment]],FIND(\"[\",ProjectInfoTable[[#This Row],[Proposed Equipment]]))-7,7))),\nRIGHT(MID(ProjectInfoTable[[#This Row],[Proposed Equipment]],FIND(\"W \",ProjectInfoTable[[#This Row],[Proposed Equipment]],FIND(\"[\",ProjectInfoTable[[#This Row],[Proposed Equipment]]))-7,7),\nLEN(MID(ProjectInfoTable[[#This Row],[Proposed Equipment]],FIND(\"W \",ProjectInfoTable[[#This Row],[Proposed Equipment]],FIND(\"[\",ProjectInfoTable[[#This Row],[Proposed Equipment]]))-7,7)) -\nIFERROR(FIND(\" - \",MID(ProjectInfoTable[[#This Row],[Proposed Equipment]],FIND(\"W \",ProjectInfoTable[[#This Row],[Proposed Equipment]],FIND(\"[\",ProjectInfoTable[[#This Row],[Proposed Equipment]]))-7,7))+2,\nFIND(\"[\",MID(ProjectInfoTable[[#This Row],[Proposed Equipment]],FIND(\"W \",ProjectInfoTable[[#This Row],[Proposed Equipment]],FIND(\"[\",ProjectInfoTable[[#This Row],[Proposed Equipment]]))-7,7)))),\n\nRIGHT(MID(ProjectInfoTable[[#This Row],[Proposed Equipment]],FIND(\"W \",ProjectInfoTable[[#This Row],[Proposed Equipment]],FIND(\"[\",ProjectInfoTable[[#This Row],[Proposed Equipment]]))-7,7),\nLEN(MID(ProjectInfoTable[[#This Row],[Proposed Equipment]],FIND(\"W \",ProjectInfoTable[[#This Row],[Proposed Equipment]],FIND(\"[\",ProjectInfoTable[[#This Row],[Proposed Equipment]]))-7,7)) -\nFIND(\" - \",MID(ProjectInfoTable[[#This Row],[Proposed Equipment]],FIND(\"W \",ProjectInfoTable[[#This Row],[Proposed Equipment]],FIND(\"[\",ProjectInfoTable[[#This Row],[Proposed Equipment]]))-7,7))-2\n))),0)))","v":""},{"$f":"IF(ProjectInfoTable[[#This Row],[Proposed Equipment]]=\"\",\"\",IFERROR(ProjectInfoTable[[#This Row],[Lamps (Proposed)]]*ProjectInfoTable[[#This Row],[Lamp W (Proposed)]],\"\"))","v":""},{"$f":"IF(ProjectInfoTable[[#This Row],[Proposed Equipment]]=\"\",\"\",IFERROR(ProjectInfoTable[[#This Row],[Quantity (Proposed)]]*ProjectInfoTable[[#This Row],[Fixture W (Proposed)]],\"\"))","v":""},{"$f":"IFERROR(INDEX(OperatingHours_List,MATCH(ProjectInfoTable[[#This Row],[OpSch]],OperatingSchedules_List,0))*ProjectInfoTable[[#This Row],[Space W (Proposed)]]/1000,\"\")","v":""},{"$f":"IF(OR(ISNUMBER(FIND(\"Controls Only\",ProjectInfoTable[[#This Row],[Proposed Equipment]],1)),ProjectInfoTable[[#This Row],[ControlsOnly]]=\"Re-Commissioning\"),\"Controls Only\",IFERROR(INDEX(OperatingHours_List,MATCH(ProjectInfoTable[[#This Row],[OpSch]],OperatingSchedules_List,0))*ProjectInfoTable[[#This Row],[Space W (Proposed)]]/1000*(IFERROR(INDEX(ControlsLookup[],MATCH(SUBSTITUTE(RIGHT(ProjectInfoTable[[#This Row],[Proposed Equipment]],LEN(ProjectInfoTable[[#This Row],[Proposed Equipment]])-FIND(\"]\",ProjectInfoTable[[#This Row],[Proposed Equipment]],1)-3),\" reused\",\"\"),ControlsLookup[Controls],0),MATCH(\"CSF_\"&ProjectState,ControlsLookup[#Headers],0)),0))*-1,\"\"))","v":""},{"$f":"IF(OR(ProjectInfoTable[[#This Row],[Fixture kWh (Proposed)]]=\"\",ProjectInfoTable[[#This Row],[Control kWh (Proposed)]]=\"\"),\"\",IFERROR(ProjectInfoTable[[#This Row],[Fixture kWh (Proposed)]]+ProjectInfoTable[[#This Row],[Control kWh (Proposed)]],0))","v":""},{"$f":"IF(\n OR(\n  ProjectInfoTable[[#This Row],[Proposed Equipment]]=\"\",\n  ProjectInfoTable[[#This Row],[Quantity (Proposed)]]=\"\"\n ),\n \"\",\n IF(\n  AND(\n   OR(\n    AND(\n     ProjectState=\"UT\",\n     RateSchedule=12\n    ),\n    AND(\n     ProjectState=\"ID\",\n     RateSchedule=12\n    ),\n    AND(\n     ProjectState=\"WY\",\n     RateSchedule=58\n    )\n   ),\n   ISNUMBER(FIND(\"Street:\",ProjectInfoTable[[#This Row],[Existing Equipment]],1))\n  ),\n  IF(\n   AND(\n    RateSchedule=53,\n    ISNUMBER(FIND(\"LED\",ProjectInfoTable[[#This Row],[Proposed Equipment]],1))\n   ),\n   ProjectInfoTable[[#This Row],[Fixture kWh (Proposed)]]\n   *\n   INDEX(\n    INDIRECT(\"RateSchedules_\"&ProjectState&\"_Table[kWh Rate]\"),\n    MATCH(RateSchedule,INDIRECT(\"RateSchedules_\"&ProjectState&\"_Table[Rate Schedule]\"),0)\n   ),\n   IFERROR(INDEX(\n    StreetLightingRates_Table[],\n    MATCH(\"LED\"&IF(AND(ProjectInfoTable[[#This Row],[Fixture W (Proposed)]]>0,ProjectInfoTable[[#This Row],[Fixture W (Proposed)]]<=70),70,IF(AND(ProjectInfoTable[[#This Row],[Fixture W (Proposed)]]>70,ProjectInfoTable[[#This Row],[Fixture W (Proposed)]]<=100),100,IF(AND(ProjectInfoTable[[#This Row],[Fixture W (Proposed)]]>100,ProjectInfoTable[[#This Row],[Fixture W (Proposed)]]<=150),150,IF(AND(ProjectInfoTable[[#This Row],[Fixture W (Proposed)]]>150,ProjectInfoTable[[#This Row],[Fixture W (Proposed)]]<=200),200,IF(AND(ProjectInfoTable[[#This Row],[Fixture W (Proposed)]]>200,ProjectInfoTable[[#This Row],[Fixture W (Proposed)]]<=250),250,IF(AND(ProjectInfoTable[[#This Row],[Fixture W (Proposed)]]>250,ProjectInfoTable[[#This Row],[Fixture W (Proposed)]]<=400),400,\"\")))))),StreetLightingRates_Table[TechWattage],0),\n    MATCH(ProjectState&RateSchedule,StreetLightingRates_Table[#Headers],0)\n   )\n   *ProjectInfoTable[[#This Row],[Lamps (Proposed)]]*ProjectInfoTable[[#This Row],[Quantity (Proposed)]]*12,\n  ProjectInfoTable[[#This Row],[Space kWh (Proposed)]]*INDEX(INDIRECT(\"RateSchedules_\"&ProjectState&\"_Table[kWh Rate]\"),MATCH(RateSchedule,INDIRECT(\"RateSchedules_\"&ProjectState&\"_Table[Rate Schedule]\"),0)))),\n  IFERROR(ProjectInfoTable[[#This Row],[Space kWh (Proposed)]]*INDEX(INDIRECT(\"RateSchedules_\"&ProjectState&\"_Table[kWh Rate]\"),MATCH(RateSchedule,INDIRECT(\"RateSchedules_\"&ProjectState&\"_Table[Rate Schedule]\"),0)),0)\n  +\n  IF(OR(ISNUMBER(FIND(\"Exterior:\",ProjectInfoTable[[#This Row],[Existing Equipment]],1)),ISNUMBER(FIND(\"Street:\",ProjectInfoTable[[#This Row],[Existing Equipment]],1))),0,IFERROR(ProjectInfoTable[[#This Row],[Space W (Proposed)]]/1000*12*DDF*INDEX(INDIRECT(\"RateSchedules_\"&ProjectState&\"_Table[kW Rate]\"),MATCH(RateSchedule,INDIRECT(\"RateSchedules_\"&ProjectState&\"_Table[Rate Schedule]\"),0)),0))\n )\n)","v":""},{"$f":"IF(ProjectInfoTable[[#This Row],[Measure Selection]]=\"\",0,IF(ProjectType=\"Retrofit\",IFERROR((ProjectInfoTable[[#This Row],[Space W (Existing, Actual)]]-ProjectInfoTable[[#This Row],[Space W (Proposed)]])/ProjectInfoTable[[#This Row],[Space W (Existing, Actual)]],\"\"),IF(AND(ProjectInfoTable[[#This Row],[Proposed Equipment]]=\"\",ProjectInfoTable[[#This Row],[Quantity (Proposed)]]=\"\"),\"\",IFERROR((ProjectInfoTable[[#This Row],[Space W (Existing, Stipulated)]]-ProjectInfoTable[[#This Row],[Space W (Proposed)]])/ProjectInfoTable[[#This Row],[Space W (Existing, Stipulated)]],\"n/a\"))))","v":""},{"$f":"IF(ProjectInfoTable[[#This Row],[Measure Selection]]=\"\",0,IF(ProjectType=\"Retrofit\",IFERROR((ProjectInfoTable[[#This Row],[Space W (Existing, Stipulated)]]-ProjectInfoTable[[#This Row],[Space W (Proposed)]])/ProjectInfoTable[[#This Row],[Space W (Existing, Stipulated)]],\"\"),ProjectInfoTable[[#This Row],[% Wattage Reduction (Actual)]]))","v":""},{"$f":"IFERROR(IF(OR(ProjectInfoTable[[#This Row],[Measure Selection]]=\"\",ProjectInfoTable[[#This Row],[ControlsOnly]]=\"Re-Commissioning\"),0,IF(AND(ProjectType=\"Retrofit\",LEFT(ProjectInfoTable[[#This Row],[Existing Equipment]],FIND(\": \",ProjectInfoTable[[#This Row],[Existing Equipment]],1)-1)<>\"Interior\"),0,((ProjectInfoTable[[#This Row],[Space W (Existing, Actual)]]-ProjectInfoTable[[#This Row],[Space W (Proposed)]])/1000*DDF)-IF(ProjectInfoTable[[#This Row],[Midstream Measure Name]]<>\"\",IFERROR(ProjectInfoTable[[#This Row],[kW Per Unit (Midstream)]]*ProjectInfoTable[[#This Row],[Quantity]]*ProjectInfoTable[[#This Row],[No. of TRL Units]],0),0))),\"\")","v":""},{"$f":"IFERROR(IF(OR(ProjectInfoTable[[#This Row],[Measure Selection]]=\"\",ProjectInfoTable[[#This Row],[ControlsOnly]]=\"Re-Commissioning\"),0,IF(AND(ISNUMBER(VALUE(ProjectInfoTable[[#This Row],[kW Per Unit]])),ProjectInfoTable[[#This Row],[kW Per Unit]]<>0),ROUND(ProjectInfoTable[[#This Row],[kW Per Unit]]*ProjectInfoTable[[#This Row],[Quantity]]*ProjectInfoTable[[#This Row],[No. of TRL Units]],2),IF(OR(AND(ProjectType=\"Retrofit\",LEFT(ProjectInfoTable[[#This Row],[Existing Equipment]],FIND(\": \",ProjectInfoTable[[#This Row],[Existing Equipment]],1)-1)<>\"Interior\"),AND(ProjectInfoTable[[#This Row],[Incentives Per Unit]]=0,INDEX(StipulatedSavingsYesNo_Table[Stipulated Savings?],MATCH(ProjectState,StipulatedSavingsYesNo_Table[State],0))=\"No\")),0,IF(ISNUMBER(FIND(\"Controls Only\",ProjectInfoTable[[#This Row],[Proposed Equipment]],1)),0,ROUND(((ProjectInfoTable[[#This Row],[Space W (Existing, Stipulated)]]-ProjectInfoTable[[#This Row],[Space W (Proposed)]])/1000*DDF)-IF(ProjectInfoTable[[#This Row],[Midstream Measure Name]]<>\"\",IFERROR(ProjectInfoTable[[#This Row],[kW Per Unit (Midstream)]]*ProjectInfoTable[[#This Row],[Quantity]]*ProjectInfoTable[[#This Row],[No. of TRL Units]],0),0),2))))),\"\")","v":""},{"$f":"IFERROR(IF(OR(ProjectInfoTable[[#This Row],[Control kWh (Proposed)]]=\"Controls Only\",ProjectInfoTable[[#This Row],[Measure Selection]]=\"\"),0,ROUND((ProjectInfoTable[[#This Row],[Fixture kWh (Existing, Actual)]]-ProjectInfoTable[[#This Row],[Fixture kWh (Proposed)]])*IF(VALUE(SpaceTypesInfo_Table[[#Totals],[HVAC Effects]])=0,1,1+VALUE(SpaceTypesInfo_Table[[#Totals],[HVAC Effects]])),0)),\"\")","v":""},{"$f":"IFERROR(IF(ProjectInfoTable[[#This Row],[Control kWh (Proposed)]]=\"Controls Only\",ROUND(IFERROR(INDEX(OperatingHours_List,MATCH(ProjectInfoTable[[#This Row],[OpSch]],OperatingSchedules_List,0))*IF(OR(ProjectType <> \"Retrofit\",ProjectInfoTable[[#This Row],[Space W (Proposed)]]>0),ProjectInfoTable[[#This Row],[Space W (Proposed)]],ProjectInfoTable[[#This Row],[Space W (Existing, Actual)]])/1000*(IFERROR(INDEX(ControlsLookup[],MATCH(RIGHT(ProjectInfoTable[[#This Row],[Proposed Equipment]],LEN(ProjectInfoTable[[#This Row],[Proposed Equipment]])-FIND(\"]\",ProjectInfoTable[[#This Row],[Proposed Equipment]],1)-3),ControlsLookup[Controls],0),MATCH(\"CSF_\"&ProjectState,ControlsLookup[#Headers],0)),0))*IF(VALUE(SpaceTypesInfo_Table[[#Totals],[HVAC Effects]])=0,1,1+VALUE(SpaceTypesInfo_Table[[#Totals],[HVAC Effects]])),\"\"),0),ROUND(IFERROR((ProjectInfoTable[[#This Row],[Control kWh (Existing, Actual)]]-ProjectInfoTable[[#This Row],[Control kWh (Proposed)]])*IF(VALUE(SpaceTypesInfo_Table[[#Totals],[HVAC Effects]])=0,1,1+VALUE(SpaceTypesInfo_Table[[#Totals],[HVAC Effects]])),\"\"),0)),\"\")","v":""},{"$f":"IF(OR(ProjectInfoTable[[#This Row],[Proposed Equipment]]=\"\",ProjectInfoTable[[#This Row],[Quantity (Proposed)]]=\"\"),\"\",IF(ProjectInfoTable[[#This Row],[Fixture Measure]]=\"\",0,IF(AND(ProjectInfoTable[[#This Row],[Incentives Per Unit]]=0,INDEX(StipulatedSavingsYesNo_Table[Stipulated Savings?],MATCH(ProjectState,StipulatedSavingsYesNo_Table[State],0))=\"No\"),0,ProjectInfoTable[[#This Row],[Total   kWh/yr Savings (Actual)]]-ProjectInfoTable[[#This Row],[Control Measure kWh/yr Savings (Actual)]])))","v":""},{"$f":"IF(OR(ProjectInfoTable[[#This Row],[Proposed Equipment]]=\"\",ProjectInfoTable[[#This Row],[Quantity (Proposed)]]=\"\"),\"\",IF(ProjectInfoTable[[#This Row],[Control Measure]]=\"\",0,ProjectInfoTable[[#This Row],[Control kWh/yr Savings (Actual)]]))","v":""},{"$f":"IF(AND(ProjectInfoTable[[#This Row],[Incentives Per Unit]]=0,INDEX(StipulatedSavingsYesNo_Table[Stipulated Savings?],MATCH(ProjectState,StipulatedSavingsYesNo_Table[State],0))=\"No\"),ProjectInfoTable[[#This Row],[Fixture kWh/yr Savings (Actual)]]+IF(ProjectInfoTable[[#This Row],[Control Measure kWh/yr Savings (Actual)]]=0,0,ProjectInfoTable[[#This Row],[Control kWh/yr Savings (Actual)]]),IF(AND(ProjectInfoTable[[#This Row],[Fixture kWh/yr Savings (Actual)]]=\"\",ProjectInfoTable[[#This Row],[Control kWh/yr Savings (Actual)]]=\"\"),\"\",ROUND(IF(ProjectInfoTable[[#This Row],[Fixture kWh/yr Savings (Actual)]]=\"\",0,ProjectInfoTable[[#This Row],[Fixture kWh/yr Savings (Actual)]])+IF(ProjectInfoTable[[#This Row],[Control kWh/yr Savings (Actual)]]=\"\",0,ProjectInfoTable[[#This Row],[Control kWh/yr Savings (Actual)]])-IF(ProjectInfoTable[[#This Row],[Midstream Measure Name]]<>\"\",IFERROR(ProjectInfoTable[[#This Row],[kWh Per Unit (Midstream)]]*ProjectInfoTable[[#This Row],[Quantity]]*ProjectInfoTable[[#This Row],[No. of TRL Units]],0),0),0)))","v":""},{"$f":"IFERROR(IF(OR(ProjectInfoTable[[#This Row],[Measure Selection]]=\"\",ProjectInfoTable[[#This Row],[ControlsOnly]]=\"Re-Commissioning\"),0,IF(AND(ProjectInfoTable[[#This Row],[Incentives Per Unit]]=0,INDEX(StipulatedSavingsYesNo_Table[Stipulated Savings?],MATCH(ProjectState,StipulatedSavingsYesNo_Table[State],0))=\"No\"),0,IF(ISNUMBER(FIND(\"Controls Only\",ProjectInfoTable[[#This Row],[Proposed Equipment]],1)),0,ROUND((ProjectInfoTable[[#This Row],[Fixture kWh (Existing, Stipulated)]]-ProjectInfoTable[[#This Row],[Fixture kWh (Proposed)]])*IF(VALUE(SpaceTypesInfo_Table[[#Totals],[HVAC Effects]])=0,1,1+VALUE(SpaceTypesInfo_Table[[#Totals],[HVAC Effects]])),0)))),\"\")","v":""},{"$f":"IFERROR(IF(ProjectInfoTable[[#This Row],[Control kWh (Proposed)]]=\"Controls Only\",ROUND(IFERROR(INDEX(OperatingHours_List,MATCH(ProjectInfoTable[[#This Row],[OpSch]],OperatingSchedules_List,0))*IF(OR(ProjectType <> \"Retrofit\",ProjectInfoTable[[#This Row],[Space W (Proposed)]]>0),ProjectInfoTable[[#This Row],[Space W (Proposed)]],ProjectInfoTable[[#This Row],[Space W (Existing, Stipulated)]])/1000*(IFERROR(INDEX(ControlsLookup[],MATCH(RIGHT(ProjectInfoTable[[#This Row],[Proposed Equipment]],LEN(ProjectInfoTable[[#This Row],[Proposed Equipment]])-FIND(\"]\",ProjectInfoTable[[#This Row],[Proposed Equipment]],1)-3),ControlsLookup[Controls],0),MATCH(\"CSF_\"&ProjectState,ControlsLookup[#Headers],0)),0))*IF(VALUE(SpaceTypesInfo_Table[[#Totals],[HVAC Effects]])=0,1,1+VALUE(SpaceTypesInfo_Table[[#Totals],[HVAC Effects]])),\"\"),0),ROUND(IFERROR((ProjectInfoTable[[#This Row],[Control kWh (Existing, Stipulated)]]-ProjectInfoTable[[#This Row],[Control kWh (Proposed)]])*IF(VALUE(SpaceTypesInfo_Table[[#Totals],[HVAC Effects]])=0,1,1+VALUE(SpaceTypesInfo_Table[[#Totals],[HVAC Effects]])),INDEX(ControlsLookup[],MATCH(RIGHT(ProjectInfoTable[[#This Row],[Proposed Equipment]],LEN(ProjectInfoTable[[#This Row],[Proposed Equipment]])-FIND(\"-\",ProjectInfoTable[[#This Row],[Proposed Equipment]],LEN(ProjectInfoTable[[#This Row],[Proposed Equipment]])-15)-1),ControlsLookup[Controls],0),MATCH(\"CSF_\"&ProjectState,ControlsLookup[#Headers],0))*IF(NOT(ISNUMBER(VALUE(ProjectInfoTable[[#This Row],[kWh Per Unit]]))),ProjectInfoTable[[#This Row],[Fixture kWh/yr Savings (Stipulated)]],ProjectInfoTable[[#This Row],[kWh Per Unit]]*ProjectInfoTable[[#This Row],[Quantity]]*ProjectInfoTable[[#This Row],[No. of TRL Units]])),0)),IF(OR(ProjectType=\"New Construction\",ProjectType=\"Major Renovation\"),IF(ProjectInfoTable[[#This Row],[Control kWh (Proposed)]]=\"\",\"\",0),\"\"))","v":""},{"$f":"IF(OR(ProjectInfoTable[[#This Row],[Proposed Equipment]]=\"\",ProjectInfoTable[[#This Row],[Quantity (Proposed)]]=\"\"),\"\",IF(ProjectInfoTable[[#This Row],[Fixture Measure]]=\"\",0,IF(AND(ProjectInfoTable[[#This Row],[Incentives Per Unit]]=0,INDEX(StipulatedSavingsYesNo_Table[Stipulated Savings?],MATCH(ProjectState,StipulatedSavingsYesNo_Table[State],0))=\"No\"),0,ProjectInfoTable[[#This Row],[Total   kWh/yr Savings (Stipulated)]]-ProjectInfoTable[[#This Row],[Control Measure kWh/yr Savings (Stipulated)]])))","v":""},{"$f":"IF(OR(ProjectInfoTable[[#This Row],[Proposed Equipment]]=\"\",ProjectInfoTable[[#This Row],[Quantity (Proposed)]]=\"\"),\"\",IF(ProjectInfoTable[[#This Row],[Control Measure]]=\"\",0,IF(OR(ProjectType=\"New Construction\",ProjectType=\"Major Renovation\"),IFERROR(ROUND(ProjectInfoTable[[#This Row],[Control kWh Per Unit]]*ProjectInfoTable[[#This Row],[Control Quantity]]*ProjectInfoTable[[#This Row],[Control No. of TRL Units]],0),ProjectInfoTable[[#This Row],[Control kWh/yr Savings (Stipulated)]]),ProjectInfoTable[[#This Row],[Control kWh/yr Savings (Stipulated)]])))","v":""},{"$f":"IF(AND(ProjectInfoTable[[#This Row],[Incentives Per Unit]]=0,INDEX(StipulatedSavingsYesNo_Table[Stipulated Savings?],MATCH(ProjectState,StipulatedSavingsYesNo_Table[State],0))=\"No\"),ProjectInfoTable[[#This Row],[Fixture kWh/yr Savings (Stipulated)]]+IF(ProjectInfoTable[[#This Row],[Control Measure kWh/yr Savings (Stipulated)]]=0,0,ProjectInfoTable[[#This Row],[Control kWh/yr Savings (Stipulated)]]),IF(OR(ISNUMBER(VALUE(ProjectInfoTable[[#This Row],[kWh Per Unit]])),ISNUMBER(VALUE(ProjectInfoTable[[#This Row],[Control kWh Per Unit]]))),ROUND(IFERROR(ProjectInfoTable[[#This Row],[kWh Per Unit]]*ProjectInfoTable[[#This Row],[Quantity]]*ProjectInfoTable[[#This Row],[No. of TRL Units]],0)+IFERROR(ProjectInfoTable[[#This Row],[Control kWh Per Unit]]*ProjectInfoTable[[#This Row],[Control Quantity]]*ProjectInfoTable[[#This Row],[Control No. of TRL Units]],ProjectInfoTable[[#This Row],[Control kWh/yr Savings (Stipulated)]]),0),IF(AND(ProjectInfoTable[[#This Row],[Fixture kWh/yr Savings (Stipulated)]]=\"\",ProjectInfoTable[[#This Row],[Control kWh/yr Savings (Stipulated)]]=\"\"),\"\",ROUND(IF(ProjectInfoTable[[#This Row],[Fixture kWh/yr Savings (Stipulated)]]=\"\",0,ProjectInfoTable[[#This Row],[Fixture kWh/yr Savings (Stipulated)]])+IF(ProjectInfoTable[[#This Row],[Control kWh/yr Savings (Stipulated)]]=\"\",0,ProjectInfoTable[[#This Row],[Control kWh/yr Savings (Stipulated)]])-IF(ProjectInfoTable[[#This Row],[Midstream Measure Name]]<>\"\",IFERROR(ProjectInfoTable[[#This Row],[kWh Per Unit (Midstream)]]*ProjectInfoTable[[#This Row],[Quantity]]*ProjectInfoTable[[#This Row],[No. of TRL Units]],0),0),0))))","v":""},{"$f":"IF(OR(ISNUMBER(FIND(\"Midstream\",ProjectInfoTable[[#This Row],[Fixture Measure]])),ISNUMBER(FIND(\"SBDI\",ProjectInfoTable[[#This Row],[Fixture Measure]])),ISNUMBER(FIND(\"Small Bu\",ProjectInfoTable[[#This Row],[Fixture Measure]]))),\n\nIF(ProjectInfoTable[[#This Row],[Measure Selection]]=\"\",0,\n\nIF(ISNUMBER(FIND(\"/U]\",ProjectInfoTable[[#This Row],[Proposed Equipment]])),IFERROR(MID(ProjectInfoTable[[#This Row],[Proposed Equipment]],FIND(\"$\",ProjectInfoTable[[#This Row],[Proposed Equipment]],1)+1,FIND(\"/U]\",ProjectInfoTable[[#This Row],[Proposed Equipment]],1)-FIND(\"$\",ProjectInfoTable[[#This Row],[Proposed Equipment]],1)-1)*ProjectInfoTable[[#This Row],[Lamps (Proposed)]]*ProjectInfoTable[[#This Row],[Quantity (Proposed)]],0),\nIF(ISNUMBER(FIND(\"/U \",ProjectInfoTable[[#This Row],[Proposed Equipment]])),IFERROR(MID(ProjectInfoTable[[#This Row],[Proposed Equipment]],FIND(\"$\",ProjectInfoTable[[#This Row],[Proposed Equipment]],1)+1,FIND(\"/U \",ProjectInfoTable[[#This Row],[Proposed Equipment]],1)-FIND(\"$\",ProjectInfoTable[[#This Row],[Proposed Equipment]],1)-1)*ProjectInfoTable[[#This Row],[Lamps (Proposed)]]*ProjectInfoTable[[#This Row],[Quantity (Proposed)]],0),\nIFERROR(ProjectInfoTable[[#This Row],[Fixture Measure kWh/yr Savings (Stipulated)]]/SUM(ProjectInfoTable[Total   kWh/yr Savings (Stipulated)])*ProjectCost_Total,\"\")))),\"\")","v":""},{"$f":"IFERROR(IF(ProjectInfoTable[[#This Row],[Fixture Measure kWh/yr Savings (Stipulated)]]=0,0,IF(ProjectType=\"Retrofit\",IF(OR(ISNUMBER(FIND(\"Midstream\",ProjectInfoTable[[#This Row],[Fixture Measure]])),ISNUMBER(FIND(\"SBDI\",ProjectInfoTable[[#This Row],[Fixture Measure]])),ISNUMBER(FIND(\"Small Bu\",ProjectInfoTable[[#This Row],[Fixture Measure]]))),ProjectInfoTable[[#This Row],[Measure Cost (Direct)]],IFERROR(ProjectInfoTable[[#This Row],[Fixture Measure kWh/yr Savings (Stipulated)]]/kWhSavings_Typical_Stipulated*(ProjectCost_Total-SUM(ProjectInfoTable[Measure Cost (Direct)])),\"\")),IF(ProjectInfoTable[[#This Row],[Proposed Equipment]]=\"\",\"\",IFERROR(SpaceTypesInfo_Table[[#Totals],[NCMR Int Cost]]*ProjectInfoTable[[#This Row],[Fixture Measure kWh/yr Savings (Stipulated)]]/SUMIFS(ProjectInfoTable[Total   kWh/yr Savings (Stipulated)],ProjectInfoTable[Proposed Equipment],\"*Interior*\"),0)))),\"\")","v":""},{"$f":"IFERROR(\n IF(\n  ProjectInfoTable[[#This Row],[Control Measure kWh/yr Savings (Stipulated)]]=0,\n  0,\n  IF(\n   ProjectType=\"Retrofit\",\n    IFERROR(\n     ProjectInfoTable[[#This Row],[Control Measure kWh/yr Savings (Stipulated)]]\n     /\n     SUMIFS(ProjectInfoTable[Control Measure kWh/yr Savings (Stipulated)],ProjectInfoTable[Control Measure],\"<>\"\"\")\n     *\n     (ProjectCost_Total-SUM(ProjectInfoTable[Fixture Cost (Allocated)])),\n     \"\"\n    ),\nROUND(\n    IF(\n     ProjectInfoTable[[#This Row],[Proposed Equipment]]=\"\",\n     \"\",\n     IFERROR(\n      SpaceTypesInfo_Table[[#Totals],[NCMR Int Cost]]\n      *\n      ProjectInfoTable[[#This Row],[Control Measure kWh/yr Savings (Stipulated)]]\n      /\n      SUMIFS(ProjectInfoTable[Total   kWh/yr Savings (Stipulated)],ProjectInfoTable[Proposed Equipment],\"*Interior*\"),\n      0\n     )\n    ),\n    2\n   )\n  )\n ),\n \"\"\n)","v":""},{"$f":"IF(AND(ProjectInfoTable[[#This Row],[Fixture Cost (Allocated)]]=\"\",ProjectInfoTable[[#This Row],[Control Cost (Allocated)]]=\"\"),\"\",SUM(ProjectInfoTable[[#This Row],[Fixture Cost (Allocated)]:[Control Cost (Allocated)]]))","v":""},{"$f":"IFERROR(IF(OR(ProjectInfoTable[[#This Row],[Proposed Equipment]]=\"\",ProjectInfoTable[[#This Row],[Quantity (Proposed)]]=\"\"),\"\",IF(OR(ProjectInfoTable[[#This Row],[Measure Selection]]=\"\",ProjectInfoTable[[#This Row],[Control kWh (Proposed)]]=\"Controls Only\"),0,IF(NOT(ISNUMBER(FIND(\"Retrofit\",ProjectType,1))),ProjectInfoTable[[#This Row],[Fixture Energy Cost Savings (Stipulated)]],IF(AND(ProjectInfoTable[[#This Row],[Fixture Measure]]=\"\",ProjectInfoTable[[#This Row],[Control Measure]]<>\"\"),0,ROUND((ProjectInfoTable[[#This Row],[Total Energy Costs (Existing, Actual)]]-ProjectInfoTable[[#This Row],[Total Energy Costs (Proposed)]]),2))))),\"\")","v":""},{"$f":"IFERROR(IF(OR(ProjectInfoTable[[#This Row],[Proposed Equipment]]=\"\",ProjectInfoTable[[#This Row],[Quantity (Proposed)]]=\"\"),\"\",\n\nIF(ProjectInfoTable[[#This Row],[Control kWh (Proposed)]]=\"Controls Only\",ProjectInfoTable[[#This Row],[Control Measure kWh/yr Savings (Actual)]]*INDEX(INDIRECT(\"RateSchedules_\"&ProjectState&\"_Table[kWh Rate]\"),\nMATCH(RateSchedule,INDIRECT(\"RateSchedules_\"&ProjectState&\"_Table[Rate Schedule]\"),0)),\n\nIF(NOT(ISNUMBER(FIND(\"Retrofit\",ProjectType,1))),ProjectInfoTable[[#This Row],[Control Energy Cost Savings (Stipulated)]],IF(AND(ProjectInfoTable[[#This Row],[Fixture Measure]]=\"\",ProjectInfoTable[[#This Row],[Control Measure]]<>\"\"),ROUND((ProjectInfoTable[[#This Row],[Total Energy Costs (Existing, Actual)]]-ProjectInfoTable[[#This Row],[Total Energy Costs (Proposed)]]),2),ROUND((ProjectInfoTable[[#This Row],[Total Energy Costs (Existing, Actual)]]-ProjectInfoTable[[#This Row],[Total Energy Costs (Proposed)]]),2)*(ProjectInfoTable[[#This Row],[Control Measure kWh/yr Savings (Actual)]]/ProjectInfoTable[[#This Row],[Total   kWh/yr Savings (Actual)]]))))),\"\")","v":""},{"$f":"IF(OR(ProjectInfoTable[[#This Row],[Proposed Equipment]]=\"\",ProjectInfoTable[[#This Row],[Quantity (Proposed)]]=\"\"),\"\",ROUND(ProjectInfoTable[[#This Row],[Fixture Energy Cost Savings (Actual)]]+ProjectInfoTable[[#This Row],[Control Energy Cost Savings (Actual)]],2))","v":""},{"$f":"IF(OR(ProjectInfoTable[[#This Row],[Proposed Equipment]]=\"\",ProjectInfoTable[[#This Row],[Quantity (Proposed)]]=\"\"),\"\",IF(OR(ISNUMBER(VALUE(ProjectInfoTable[[#This Row],[kWh Per Unit]])),ISNUMBER(VALUE(ProjectInfoTable[[#This Row],[kW Per Unit]]))),IFERROR(ProjectInfoTable[[#This Row],[Fixture Measure kWh/yr Savings (Stipulated)]]*INDEX(INDIRECT(\"RateSchedules_\"&ProjectState&\"_Table[kWh Rate]\"),MATCH(RateSchedule,INDIRECT(\"RateSchedules_\"&ProjectState&\"_Table[Rate Schedule]\"),0)),0)+IFERROR(ProjectInfoTable[[#This Row],[kW Demand Reduction (Stipulated)]]/1000*12*INDEX(INDIRECT(\"RateSchedules_\"&ProjectState&\"_Table[kW Rate]\"),MATCH(RateSchedule,INDIRECT(\"RateSchedules_\"&ProjectState&\"_Table[Rate Schedule]\"),0)),0),IFERROR(ROUND((ProjectInfoTable[[#This Row],[Total Energy Costs (Existing, Stipulated)]]-ProjectInfoTable[[#This Row],[Total Energy Costs (Proposed)]])*ProjectInfoTable[[#This Row],[Fixture Measure kWh/yr Savings (Stipulated)]]/ProjectInfoTable[[#This Row],[Total   kWh/yr Savings (Stipulated)]],2),0)))","v":""},{"$f":"IF(OR(ProjectInfoTable[[#This Row],[Proposed Equipment]]=\"\",ProjectInfoTable[[#This Row],[Quantity (Proposed)]]=\"\"),\"\",\nIF(ProjectInfoTable[[#This Row],[Control kWh (Proposed)]]=\"Controls Only\",ProjectInfoTable[[#This Row],[Control Measure kWh/yr Savings (Stipulated)]]*INDEX(INDIRECT(\"RateSchedules_\"&ProjectState&\"_Table[kWh Rate]\"),\nMATCH(RateSchedule,INDIRECT(\"RateSchedules_\"&ProjectState&\"_Table[Rate Schedule]\"),0)),IF(OR(ISNUMBER(VALUE(ProjectInfoTable[[#This Row],[Control kWh Per Unit]])),\nISNUMBER(VALUE(ProjectInfoTable[[#This Row],[Control kW Per Unit]]))),IFERROR(ProjectInfoTable[[#This Row],[Control Measure kWh/yr Savings (Stipulated)]]*INDEX(INDIRECT(\"RateSchedules_\"&ProjectState&\"_Table[kWh Rate]\"),\nMATCH(RateSchedule,INDIRECT(\"RateSchedules_\"&ProjectState&\"_Table[Rate Schedule]\"),0)),0)+IFERROR(ProjectInfoTable[[#This Row],[kW Demand Reduction (Stipulated)]]/1000*12*\nINDEX(INDIRECT(\"RateSchedules_\"&ProjectState&\"_Table[kW Rate]\"),MATCH(RateSchedule,INDIRECT(\"RateSchedules_\"&ProjectState&\"_Table[Rate Schedule]\"),0)),0),\nIFERROR(ROUND((ProjectInfoTable[[#This Row],[Total Energy Costs (Existing, Stipulated)]]-ProjectInfoTable[[#This Row],[Total Energy Costs (Proposed)]])*ProjectInfoTable[[#This Row],[Control Measure kWh/yr Savings (Stipulated)]]/\nProjectInfoTable[[#This Row],[Total   kWh/yr Savings (Stipulated)]],2),0))))","v":""},{"$f":"IF(OR(ProjectInfoTable[[#This Row],[Proposed Equipment]]=\"\",ProjectInfoTable[[#This Row],[Quantity (Proposed)]]=\"\"),\"\",ROUND(ProjectInfoTable[[#This Row],[Fixture Energy Cost Savings (Stipulated)]]+ProjectInfoTable[[#This Row],[Control Energy Cost Savings (Stipulated)]],2))","v":""},{"$f":"IF(ProjectInfoTable[[#This Row],[OpSch]]=\"\",\"\",IF(OR(ProjectInfoTable[[#This Row],[Fixture Measure]]=\"\",ProjectInfoTable[[#This Row],[Eligible Fixture Measure]]<>TRUE),0,ProjectInfoTable[[#This Row],[Fixture Incentives (pre-capping)]])+IF(OR(ProjectInfoTable[[#This Row],[Control Measure]]=\"\",ProjectInfoTable[[#This Row],[Eligible Control Measure]]<>TRUE),0,ProjectInfoTable[[#This Row],[Control Incentives (pre-capping)]]))","v":""},{"$f":"IF(OR(ProjectInfoTable[[#This Row],[Fixture Measure]]<>\"\",ProjectInfoTable[[#This Row],[Control Measure]]<>\"\"),IF(ProjectInfoTable[[#This Row],[Fixture Incentives]]=\"\",0,ProjectInfoTable[[#This Row],[Fixture Incentives]])+IF(ProjectInfoTable[[#This Row],[Control Incentives]]=\"\",0,ProjectInfoTable[[#This Row],[Control Incentives]]),\"\")","v":""},null,{"$f":"IF(OR(ProjectInfoTable[[#This Row],[Fixture Measure]]=\"\",ProjectInfoTable[[#This Row],[OpSch]]=\"\",ProjectInfoTable[[#This Row],[Eligible Fixture Measure]]<>TRUE),\"\",\nIF(OR(ISNUMBER(FIND(\"SBDI\",ProjectInfoTable[[#This Row],[Fixture Measure]])),ISNUMBER(FIND(\"Small Bu\",ProjectInfoTable[[#This Row],[Fixture Measure]]))),IFERROR(0.75*ProjectInfoTable[[#This Row],[Fixture Cost (Allocated)]],\"cost error\"),\nIF(AND(OR(ProjectType=\"New Construction\",ProjectType=\"Major Renovation\"),LPDCodeToProposed<0.1,ISNUMBER(FIND(\"Interior\",ProjectInfoTable[[#This Row],[Proposed Equipment]],1))),0,IFERROR(ProjectInfoTable[[#This Row],[Incentives Per Unit]]*ProjectInfoTable[[#This Row],[Quantity]]*ProjectInfoTable[[#This Row],[No. of TRL Units]],\"TRL Error\"))))","v":""},{"$f":"IF(\n    OR(\n        ProjectInfoTable[[#This Row],[Fixture Measure]] = \"\",\n        ProjectInfoTable[[#This Row],[OpSch]] = \"\",\n        ProjectInfoTable[[#This Row],[Eligible Fixture Measure]] <> TRUE\n    ),\n    \"\",\n    IF(\n        OR(\n            ISNUMBER(FIND(\"SBDI\", ProjectInfoTable[[#This Row],[Fixture Measure]])),\n            ISNUMBER(FIND(\"Small Bu\", ProjectInfoTable[[#This Row],[Fixture Measure]]))\n        ),\n        IFERROR(\n            (Incentive_NonTypical / Incentive_NonTypical_PreCapped) * ProjectInfoTable[[#This Row],[Fixture Incentives (pre-capping)]],\n            \"\"\n        ),\n        IF(\n            AND(\n                ProjectType = \"Retrofit\",\n                ProjectState = \"UT\",\n                ISNUMBER(FIND(\"Post-Purchase\", ProjectInfoTable[[#This Row],[Fixture Measure]], 1))\n            ),\n            IFERROR(\n                MAX(\n                    MIN(\n                        ProjectInfoTable[[#This Row],[Fixture Incentives (pre-capping)]],\n                        ProjectInfoTable[[#This Row],[Fixture Cost (Allocated)]] * 0.7\n                    ),\n                    0\n                ),\n                0\n            ),\n            IF(\n                ProjectType = \"Retrofit\",\n                IF(\n                    ISNUMBER(FIND(\"Post-Purchase\", ProjectInfoTable[[#This Row],[Fixture Measure]], 1)),\n                    ProjectInfoTable[[#This Row],[Fixture Incentives (pre-capping)]],\n                    IFERROR(\n                        $BI$3 / $BH$3 * ProjectInfoTable[[#This Row],[Fixture Incentives (pre-capping)]],\n                        \"\"\n                    )\n                ),\n                IF(\n                    ISNUMBER(FIND(\"Interior\", ProjectInfoTable[[#This Row],[Proposed Equipment]], 1)),\n                    IF(\n                        LPDCodeToProposed > 0.1,\n                        ProjectInfoTable[[#This Row],[Fixture Incentives (pre-capping)]],\n                        0\n                    ),\n                    ProjectInfoTable[[#This Row],[Fixture Incentives (pre-capping)]]\n                )\n            )\n        )\n    )\n)","v":""},{"$f":"IF(OR(ProjectInfoTable[[#This Row],[Incentives Per Unit]]=\"\",ProjectInfoTable[[#This Row],[TRL Unit]]=\"\"),\"\",IF(ProjectInfoTable[[#This Row],[Eligible Fixture Measure]]<>TRUE,\"Invalid Effective Date\",\nIF(OR(ISNUMBER(FIND(\"SBDI\",ProjectInfoTable[[#This Row],[Fixture Measure]])),ISNUMBER(FIND(\"Small Bu\",ProjectInfoTable[[#This Row],[Fixture Measure]]))),\"$0.75 / dollar cost\",\nTEXT(ProjectInfoTable[[#This Row],[Incentives Per Unit]],\"$#,##0.00\")&\" / \"&IF(ProjectInfoTable[[#This Row],[Fixture Measure]]=\"\",\"\",IF(ProjectInfoTable[[#This Row],[TRL Unit]]=\"Measure\",IF(ISNUMBER(FIND(\"Relamp\",ProjectInfoTable[[#This Row],[Proposed Equipment]],1)),\"Lamp\",\"Fixture\"),ProjectInfoTable[[#This Row],[TRL Unit]])))))","v":""},{"$f":"IF(OR(ProjectInfoTable[[#This Row],[Proposed Equipment]]=\"\",ProjectInfoTable[[#This Row],[Quantity (Proposed)]]=\"\"),\"\",IFERROR(SUBSTITUTE(IF(ProjectType=\"Retrofit\",IF(OR(ISNUMBER(FIND(\"Controls On\",ProjectInfoTable[[#This Row],[Proposed Equipment]],1))),\"\",IF(OR(ProjectInfoTable[[#This Row],[Existing Equipment]]=\"\",ProjectInfoTable[[#This Row],[Proposed Equipment]]=\"\"),\"\",IF(ProjectState=\"UT\",IFERROR(IF(AlternativeEnergyOverride=\"Yes\",IFERROR(INDEX(INDIRECT(\"EquipmentTable_\"&\"Retrofit_\"&ProjectState&\"[#All]\"),MATCH(LEFT(ProjectInfoTable[[#This Row],[Proposed Equipment]],FIND(\"[\",ProjectInfoTable[[#This Row],[Proposed Equipment]],1)-2)&\" (Alt)\",INDIRECT(\"EquipmentTable_\"&\"Retrofit_\"&ProjectState&\"[equipmentProposed]\"),0)+1,MATCH(\"measureRetrofit_\"&LEFT(ProjectInfoTable[[#This Row],[Existing Equipment]],FIND(\":\",ProjectInfoTable[[#This Row],[Existing Equipment]],1)-1)&\"_\"&IF(IFERROR(INDEX(ControlsLookup[Rank],MATCH(RIGHT(ProjectInfoTable[[#This Row],[Proposed Equipment]],LEN(ProjectInfoTable[[#This Row],[Proposed Equipment]])-FIND(\"]\",ProjectInfoTable[[#This Row],[Proposed Equipment]],1)-3),ControlsLookup[Controls],0)),0)>IFERROR(INDEX(ControlsLookup[Rank],MATCH(RIGHT(ProjectInfoTable[[#This Row],[Existing Equipment]],LEN(ProjectInfoTable[[#This Row],[Existing Equipment]])-FIND(\"]\",ProjectInfoTable[[#This Row],[Existing Equipment]],1)-3),ControlsLookup[Controls],0)),0),INDEX(ControlsLookup[Controls Type],MATCH(LEFT(ProjectInfoTable[[#This Row],[Existing Equipment]],FIND(\":\",ProjectInfoTable[[#This Row],[Existing Equipment]],1)-1)&\"_\"&RIGHT(ProjectInfoTable[[#This Row],[Proposed Equipment]],LEN(ProjectInfoTable[[#This Row],[Proposed Equipment]])-FIND(\"]\",ProjectInfoTable[[#This Row],[Proposed Equipment]],1)-3),ControlsLookup[Controls Concatenate],0)),\"None\"),INDIRECT(\"EquipmentTable_\"&\"Retrofit_\"&ProjectState&\"[#Headers]\"),0)),INDEX(INDIRECT(\"EquipmentTable_\"&IF(ProjectType=\"Retrofit\",\"Retrofit_\",\"NCMR_\")&ProjectState&\"[#All]\"),MATCH(LEFT(ProjectInfoTable[[#This Row],[Proposed Equipment]],FIND(\"[\",ProjectInfoTable[[#This Row],[Proposed Equipment]],1)-2),INDIRECT(\"EquipmentTable_\"&\"Retrofit_\"&ProjectState&\"[equipmentProposed]\"),0)+1,MATCH(\"measureRetrofit_\"&LEFT(ProjectInfoTable[[#This Row],[Existing Equipment]],FIND(\":\",ProjectInfoTable[[#This Row],[Existing Equipment]],1)-1)&\"_\"&IF(IFERROR(INDEX(ControlsLookup[Rank],MATCH(RIGHT(ProjectInfoTable[[#This Row],[Proposed Equipment]],LEN(ProjectInfoTable[[#This Row],[Proposed Equipment]])-FIND(\"]\",ProjectInfoTable[[#This Row],[Proposed Equipment]],1)-3),ControlsLookup[Controls],0)),0)>IFERROR(INDEX(ControlsLookup[Rank],MATCH(RIGHT(ProjectInfoTable[[#This Row],[Existing Equipment]],LEN(ProjectInfoTable[[#This Row],[Existing Equipment]])-FIND(\"]\",ProjectInfoTable[[#This Row],[Existing Equipment]],1)-3),ControlsLookup[Controls],0)),0),INDEX(ControlsLookup[Controls Type],MATCH(LEFT(ProjectInfoTable[[#This Row],[Existing Equipment]],FIND(\":\",ProjectInfoTable[[#This Row],[Existing Equipment]],1)-1)&\"_\"&RIGHT(ProjectInfoTable[[#This Row],[Proposed Equipment]],LEN(ProjectInfoTable[[#This Row],[Proposed Equipment]])-FIND(\"]\",ProjectInfoTable[[#This Row],[Proposed Equipment]],1)-3),ControlsLookup[Controls Concatenate],0)),\"None\"),INDIRECT(\"EquipmentTable_\"&IF(ProjectType=\"Retrofit\",\"Retrofit_\",\"NCMR_\")&ProjectState&\"[#Headers]\"),0))),INDEX(INDIRECT(\"EquipmentTable_\"&IF(ProjectType=\"Retrofit\",\"Retrofit_\",\"NCMR_\")&ProjectState&\"[#All]\"),MATCH(LEFT(ProjectInfoTable[[#This Row],[Proposed Equipment]],FIND(\"[\",ProjectInfoTable[[#This Row],[Proposed Equipment]],1)-2),INDIRECT(\"EquipmentTable_\"&IF(ProjectType=\"Retrofit\",\"Retrofit_\",\"NCMR_\")&ProjectState&\"[equipmentProposed]\"),0)+1,MATCH(\"measureRetrofit_\"&IF(AND(SBDEligible=\"Yes\",ISNUMBER(FIND(\"SBE\",ProjectInfoTable[[#This Row],[Proposed Equipment]]))),\"SBE\",LEFT(ProjectInfoTable[[#This Row],[Existing Equipment]],FIND(\":\",ProjectInfoTable[[#This Row],[Existing Equipment]],1)-1)&\"_\"&IF(IFERROR(INDEX(ControlsLookup[Rank],MATCH(RIGHT(ProjectInfoTable[[#This Row],[Proposed Equipment]],LEN(ProjectInfoTable[[#This Row],[Proposed Equipment]])-FIND(\"]\",ProjectInfoTable[[#This Row],[Proposed Equipment]],1)-3),ControlsLookup[Controls],0)),0)>IFERROR(INDEX(ControlsLookup[Rank],MATCH(RIGHT(ProjectInfoTable[[#This Row],[Existing Equipment]],LEN(ProjectInfoTable[[#This Row],[Existing Equipment]])-FIND(\"]\",ProjectInfoTable[[#This Row],[Existing Equipment]],1)-3),ControlsLookup[Controls],0)),0),INDEX(ControlsLookup[Controls Type],MATCH(LEFT(ProjectInfoTable[[#This Row],[Existing Equipment]],FIND(\":\",ProjectInfoTable[[#This Row],[Existing Equipment]],1)-1)&\"_\"&RIGHT(ProjectInfoTable[[#This Row],[Proposed Equipment]],LEN(ProjectInfoTable[[#This Row],[Proposed Equipment]])-FIND(\"]\",ProjectInfoTable[[#This Row],[Proposed Equipment]],1)-3),ControlsLookup[Controls Concatenate],0)),\"None\")),INDIRECT(\"EquipmentTable_\"&\"Retrofit_\"&ProjectState&\"[#Headers]\"),0))),\"Non-eligible fixture - Retrofit - \"&ProjectState),IFERROR(INDEX(INDIRECT(\"EquipmentTable_\"&IF(SiteSpecificOverride=\"Yes\",\"PostPurchase_\",\"Retrofit_\")&ProjectState&\"[#All]\"),MATCH(LEFT(ProjectInfoTable[[#This Row],[Proposed Equipment]],FIND(\"[\",ProjectInfoTable[[#This Row],[Proposed Equipment]],1)-2),INDIRECT(\"EquipmentTable_\"&IF(SiteSpecificOverride=\"Yes\",\"PostPurchase_\",\"Retrofit_\")&ProjectState&\"[equipmentProposed]\"),0)+1,MATCH(\"measureRetrofit_\"&IF(AND(SBDEligible=\"Yes\",ISNUMBER(FIND(\"SBE\",ProjectInfoTable[[#This Row],[Proposed Equipment]]))),\"SBE\",LEFT(ProjectInfoTable[[#This Row],[Existing Equipment]],FIND(\":\",ProjectInfoTable[[#This Row],[Existing Equipment]],1)-1)&\"_\"&IF(IFERROR(INDEX(ControlsLookup[Rank],MATCH(RIGHT(ProjectInfoTable[[#This Row],[Proposed Equipment]],LEN(ProjectInfoTable[[#This Row],[Proposed Equipment]])-FIND(\"]\",ProjectInfoTable[[#This Row],[Proposed Equipment]],1)-3),ControlsLookup[Controls],0)),0)>IFERROR(INDEX(ControlsLookup[Rank],MATCH(RIGHT(ProjectInfoTable[[#This Row],[Existing Equipment]],LEN(ProjectInfoTable[[#This Row],[Existing Equipment]])-FIND(\"]\",ProjectInfoTable[[#This Row],[Existing Equipment]],1)-3),ControlsLookup[Controls],0)),0),INDEX(ControlsLookup[Controls Type],MATCH(LEFT(ProjectInfoTable[[#This Row],[Existing Equipment]],FIND(\":\",ProjectInfoTable[[#This Row],[Existing Equipment]],1)-1)&\"_\"&RIGHT(ProjectInfoTable[[#This Row],[Proposed Equipment]],LEN(ProjectInfoTable[[#This Row],[Proposed Equipment]])-FIND(\"]\",ProjectInfoTable[[#This Row],[Proposed Equipment]],1)-3),ControlsLookup[Controls Concatenate],0)),\"None\")),INDIRECT(\"EquipmentTable_\"&IF(SiteSpecificOverride=\"Yes\",\"PostPurchase_\",\"Retrofit_\")&ProjectState&\"[#Headers]\"),0)),\"Non-eligible fixture - Retrofit - \"&ProjectState)))),IFERROR(INDEX(INDIRECT(\"EquipmentTable_\"&\"NCMR_\"&ProjectState),MATCH(RIGHT(LEFT(ProjectInfoTable[[#This Row],[Proposed Equipment]],FIND(\" (\",ProjectInfoTable[[#This Row],[Proposed Equipment]],1)-1),LEN(LEFT(ProjectInfoTable[[#This Row],[Proposed Equipment]],FIND(\" (\",ProjectInfoTable[[#This Row],[Proposed Equipment]],1)-2))-FIND(\":\",ProjectInfoTable[[#This Row],[Proposed Equipment]],1)),INDIRECT(\"EquipmentTable_\"&\"NCMR_\"&ProjectState&\"[equipmentProposed]\"),0),MATCH(\"measureNCMR_\"&LEFT(ProjectInfoTable[[#This Row],[Proposed Equipment]],FIND(\":\",ProjectInfoTable[[#This Row],[Proposed Equipment]],1)-1)&\"_\"&IF(LEN(ProjectInfoTable[[#This Row],[Proposed Equipment]])>FIND(\"]\",ProjectInfoTable[[#This Row],[Proposed Equipment]]),INDEX(ControlsLookup[Controls Type],MATCH(LEFT(ProjectInfoTable[[#This Row],[Proposed Equipment]],FIND(\":\",ProjectInfoTable[[#This Row],[Proposed Equipment]],1)-1)&\"_\"&RIGHT(ProjectInfoTable[[#This Row],[Proposed Equipment]],LEN(ProjectInfoTable[[#This Row],[Proposed Equipment]])-FIND(\"]\",ProjectInfoTable[[#This Row],[Proposed Equipment]],1)-3),ControlsLookup[Controls Concatenate],0)),\"None\"),INDIRECT(\"EquipmentTable_\"&\"NCMR_\"&ProjectState&\"[#Headers]\"),0)),\"Non-eligible fixture - NCMR - \"&ProjectState)),\"[NAMESUB]\",ProjectInfoTable[[#This Row],[Measure Name Sub]]),\"Non-eligible fixture - Retrofit - \"&ProjectState))","v":""},{"$f":"IF(ISNUMBER(SEARCH(\"Case\",ProjectInfoTable[[#This Row],[Fixture Measure]])),CONCATENATE(ProjectInfoTable[[#This Row],[Fixture Measure]],ProjectInfoTable[[#This Row],[No. of TRL Units]],ProjectInfoTable[[#This Row],[Quantity]]),\"\")","v":""},{"$f":"IF(ProjectInfoTable[[#This Row],[Proposed Equipment]]=\"\",\"\",\nIF(AND(ProjectState = \"UT\",ISNUMBER(FIND(\" TLED \",ProjectInfoTable[[#This Row],[Proposed Equipment]]))),\nIF(VALUE(ProjectInfoTable[[#This Row],[Lamp W (Proposed)]])<20,\"< 20 W\",\nIF(AND(VALUE(ProjectInfoTable[[#This Row],[Lamp W (Proposed)]])<=39,VALUE(ProjectInfoTable[[#This Row],[Lamp W (Proposed)]])>=20),\">= 20 W and <= 39 W\",)),\n\nIF(AND(ProjectType=\"Retrofit\",OR(ISNUMBER(FIND(\"Retrofit Kit\",ProjectInfoTable[[#This Row],[Proposed Equipment]])),ISNUMBER(FIND(\"Fixture\",ProjectInfoTable[[#This Row],[Proposed Equipment]]))),OR(ISNUMBER(FIND(\"Exterior\",ProjectInfoTable[[#This Row],[Existing Equipment]])),ISNUMBER(FIND(\"Street\",ProjectInfoTable[[#This Row],[Existing Equipment]])))),\nIF(ProjectInfoTable[[#This Row],[Fixture W (Proposed)]]<50,\"< 50 W\",\nIF(AND(ProjectInfoTable[[#This Row],[Fixture W (Proposed)]]<90,ProjectInfoTable[[#This Row],[Fixture W (Proposed)]]>=50),\">= 50 W and < 90 W\",\nIF(AND(ProjectInfoTable[[#This Row],[Fixture W (Proposed)]]<135,ProjectInfoTable[[#This Row],[Fixture W (Proposed)]]>=90),\">= 90 W and < 135 W\",\nIF(AND(ProjectInfoTable[[#This Row],[Fixture W (Proposed)]]<220,ProjectInfoTable[[#This Row],[Fixture W (Proposed)]]>=135),\">= 135 W and < 220 W\",\nIF(ProjectInfoTable[[#This Row],[Fixture W (Proposed)]]>=220,\">= 220 W\"))))),\"\")))","v":""},{"$f":"IFERROR(INDEX(INDIRECT(\"MeasureTable_\" & ProjectState & \"[Measure Reference Number]\"),MATCH(ProjectInfoTable[[#This Row],[Fixture Measure]],INDIRECT(\"MeasureTable_\" &ProjectState&\"[Measure Name]\"),0)),\"\")","v":""},{"$f":"IFERROR(\n    _xlfn.LET(\n        _xlpm.filteredVersions,\n            _xlfn._xlws.FILTER(\n                INDIRECT(\"MeasureTable_\" & ProjectState & \"[Version Number]\"),\n                (INDIRECT(\"MeasureTable_\" & ProjectState & \"[Measure Reference Number]\") = ProjectInfoTable[[#This Row],[Fixture Measure Reference Number]]) *\n                (INDIRECT(\"MeasureTable_\" & ProjectState & \"[Eligible Measure]\") = TRUE)\n            ),\n        INDEX(_xlpm.filteredVersions, 1)\n    ),\n    \"\"\n)","v":""},{"$f":"IFERROR(\n  _xlfn.LET(\n    _xlpm.refRange, INDIRECT(\"MeasureTable_\" & ProjectState & \"[Measure Reference Number]\"),\n    _xlpm.eligibleRange, INDIRECT(\"MeasureTable_\" & ProjectState & \"[Eligible Measure]\"),\n    _xlpm.countTrue, SUMPRODUCT(--(_xlpm.refRange = ProjectInfoTable[[#This Row],[Fixture Measure Reference Number]]), --(_xlpm.eligibleRange = TRUE)),\n    _xlpm.countNonBlank, SUMPRODUCT(--(_xlpm.refRange = ProjectInfoTable[[#This Row],[Fixture Measure Reference Number]]), --(_xlpm.eligibleRange <> \"\")),\n    IF(_xlpm.countNonBlank = 0, \"\", IF(_xlpm.countTrue >= 1, TRUE, FALSE))\n  ),\n  \"\"\n)","v":""},{"$f":"IFERROR(VALUE(INDEX(INDIRECT(\"MeasureTable_\" & ProjectState & \"[CustomerIncentiveDollarperunit]\"),MATCH(ProjectInfoTable[[#This Row],[Fixture Measure]]&\" | TRUE\",INDIRECT(\"MeasureTable_\" &ProjectState&\"[MeasureEligibleConcatenate]\"),0))),\"\")","v":""},{"$f":"IFERROR(INDEX(INDIRECT(\"MeasureTable_\"&ProjectState&\"[SiteSpecificCalculation]\"),MATCH(ProjectInfoTable[[#This Row],[Fixture Measure]]&\" | TRUE\",INDIRECT(\"MeasureTable_\" &ProjectState&\"[MeasureEligibleConcatenate]\"),0)),\"\")","v":""},{"$f":"IFERROR(INDEX(INDIRECT(\"MeasureTable_\"&ProjectState&\"[GrossIncrementalAnnualElectricSavings]\"),MATCH(ProjectInfoTable[[#This Row],[Fixture Measure]]&\" | TRUE\",INDIRECT(\"MeasureTable_\" &ProjectState&\"[MeasureEligibleConcatenate]\"),0)),\"\")","v":""},{"$f":"IFERROR(INDEX(INDIRECT(\"MeasureTable_\"&ProjectState&\"[GrossAverageMonthlyDemandReduction]\"),MATCH(ProjectInfoTable[[#This Row],[Fixture Measure]]&\" | TRUE\",INDIRECT(\"MeasureTable_\" &ProjectState&\"[MeasureEligibleConcatenate]\"),0)),\"\")","v":""},{"$f":"IF(ProjectInfoTable[[#This Row],[Fixture Measure]]=\"\",\"\",IF(NOT(ISNUMBER(FIND(\"Site-Specific - Downstream\",ProjectInfoTable[[#This Row],[Fixture Measure]]))),\"\",\nIF(ISNUMBER(MATCH(SUBSTITUTE(ProjectInfoTable[[#This Row],[Fixture Measure]],\"Site-Specific - Downstream - v2\",\"Mid Market\"),INDIRECT(\"MeasureTable_\"&ProjectState&\"[Measure Name]\"),0)),\nSUBSTITUTE(ProjectInfoTable[[#This Row],[Fixture Measure]],\"Site-Specific - Downstream - v2\",\"Mid Market\"),\nSUBSTITUTE(ProjectInfoTable[[#This Row],[Fixture Measure]],\"Site-Specific - Downstream\",\"Mid Market\"))\n))","v":""},{"$f":"IF(ProjectInfoTable[[#This Row],[Midstream Measure Name]]=\"\",\"\",IFERROR(INDEX(INDIRECT(\"MeasureTable_\"&ProjectState&\"[GrossIncrementalAnnualElectricSavings ]\"),MATCH(ProjectInfoTable[[#This Row],[Midstream Measure Name]]&\" | TRUE\",INDIRECT(\"MeasureTable_\" &ProjectState&\"[MeasureEligibleConcatenate]\"),0)),\"\"))","v":""},{"$f":"IF(ProjectInfoTable[[#This Row],[Midstream Measure Name]]=\"\",\"\",IFERROR(INDEX(INDIRECT(\"MeasureTable_\"&ProjectState&\"[GrossAverage onthly emand eduction]\"),MATCH(ProjectInfoTable[[#This Row],[Midstream Measure Name]]&\" | TRUE\",INDIRECT(\"MeasureTable_\" &ProjectState&\"[MeasureEligibleConcatenate]\"),0)),\"\"))","v":""},{"$f":"IFERROR(INDEX(INDIRECT(\"MeasureTable_\"&ProjectState&\"[IncrementalMeasureCost]\"),MATCH(ProjectInfoTable[[#This Row],[Fixture Measure]]&\" | TRUE\",INDIRECT(\"MeasureTable_\" &ProjectState&\"[MeasureEligibleConcatenate]\"),0)),\"\")","v":""},{"$f":"IF(ProjectInfoTable[[#This Row],[Fixture Measure]]=\"\",\"\",IF(AND(ProjectState=\"UT\",ProjectInfoTable[[#This Row],[Measure Selection]]=\"\"),0,\nIF(OR(ISNUMBER(FIND(\"SBDI\",ProjectInfoTable[[#This Row],[Fixture Measure]])),ISNUMBER(FIND(\"Small Bu\",ProjectInfoTable[[#This Row],[Fixture Measure]]))),ProjectInfoTable[[#This Row],[Quantity (Proposed)]]*ProjectInfoTable[[#This Row],[Lamps (Proposed)]],\nIF(OR(ProjectInfoTable[[#This Row],[TRL Unit]]=\"Measure\",ProjectInfoTable[[#This Row],[TRL Unit]]=\"Linear ft.\"),IF(OR(ISNUMBER(FIND(\"Lamp\",ProjectInfoTable[[#This Row],[Fixture Measure]],1)),ISNUMBER(FIND(\"Relamp\",ProjectInfoTable[[#This Row],[Fixture Measure]],1)),ISNUMBER(FIND(\"Relamp\",ProjectInfoTable[[#This Row],[Proposed Equipment]],1))),ProjectInfoTable[[#This Row],[Quantity (Proposed)]]*ProjectInfoTable[[#This Row],[Lamps (Proposed)]],ProjectInfoTable[[#This Row],[Quantity (Proposed)]]),1))))","v":""},{"$f":"IF(ProjectInfoTable[[#This Row],[Fixture Measure]]=\"\",\"\",IF(AND(ProjectState=\"UT\",ProjectInfoTable[[#This Row],[Measure Selection]]=\"\"),0,\nIF(OR(ISNUMBER(FIND(\"SBDI\",ProjectInfoTable[[#This Row],[Fixture Measure]])),ISNUMBER(FIND(\"Small Bu\",ProjectInfoTable[[#This Row],[Fixture Measure]]))),1,\nIF(ISNUMBER(FIND(\"Controls Only\",ProjectInfoTable[[#This Row],[Proposed Equipment]],1)),IF(OR(ProjectType <> \"Retrofit\",ProjectInfoTable[[#This Row],[Space W (Proposed)]]>0),ProjectInfoTable[[#This Row],[Space W (Proposed)]],ProjectInfoTable[[#This Row],[Space W (Existing, Stipulated)]]),\nIF(TRIM(UPPER(ProjectInfoTable[[#This Row],[TRL Unit]]))=\"LINEAR FT.\",IF(OR(ISNUMBER(FIND(\"Marquee\",ProjectInfoTable[[#This Row],[Proposed Equipment]],1)),ISNUMBER(FIND(\"Cabinet\",ProjectInfoTable[[#This Row],[Proposed Equipment]],1))),VALUE(RIGHT(LEFT(ProjectInfoTable[[#This Row],[Existing Equipment]],FIND(\"LF \",ProjectInfoTable[[#This Row],[Existing Equipment]],1)-1),LEN(LEFT(ProjectInfoTable[[#This Row],[Existing Equipment]],FIND(\"LF \",ProjectInfoTable[[#This Row],[Existing Equipment]],1)-1))-FIND(\"[\",ProjectInfoTable[[#This Row],[Existing Equipment]],1))),VALUE(RIGHT(LEFT(ProjectInfoTable[[#This Row],[Proposed Equipment]],FIND(\"LF \",ProjectInfoTable[[#This Row],[Proposed Equipment]],1)-1),LEN(LEFT(ProjectInfoTable[[#This Row],[Proposed Equipment]],FIND(\"LF \",ProjectInfoTable[[#This Row],[Proposed Equipment]],1)-1))-FIND(\"[\",ProjectInfoTable[[#This Row],[Proposed Equipment]],1)))),\nIF(TRIM(UPPER(ProjectInfoTable[[#This Row],[TRL Unit]]))=\"KWH\",IF(ProjectInfoTable[[#This Row],[Fixture Measure kWh/yr Savings (Stipulated)]]=0,0,ROUND(ProjectInfoTable[[#This Row],[Fixture Measure kWh/yr Savings (Stipulated)]],2)),\nIF(TRIM(UPPER(ProjectInfoTable[[#This Row],[TRL Unit]]))=\"WATT REDUCED\",IF(ProjectInfoTable[[#This Row],[Fixture Measure kWh/yr Savings (Stipulated)]]=0,0,ROUND(ProjectInfoTable[[#This Row],[Space W (Existing, Stipulated)]]-ProjectInfoTable[[#This Row],[Space W (Proposed)]],2)),\nIF(TRIM(UPPER(ProjectInfoTable[[#This Row],[TRL Unit]]))=\"FIXTURE WATTAGE\",ProjectInfoTable[[#This Row],[Space W (Proposed)]],1))))))))","v":""},{"$f":"IFERROR(IF(OR(ISNUMBER(FIND(\"SBDI\",ProjectInfoTable[[#This Row],[Fixture Measure]])),ISNUMBER(FIND(\"Small Bu\",ProjectInfoTable[[#This Row],[Fixture Measure]]))),0,INDEX(INDIRECT(\"MeasureTable_\"&ProjectState&\"[Unit]\"),MATCH(ProjectInfoTable[[#This Row],[Fixture Measure]]&\" | TRUE\",INDIRECT(\"MeasureTable_\" &ProjectState&\"[MeasureEligibleConcatenate]\"),0))),\"\")","v":""},{"$f":"IF(ProjectInfoTable[[#This Row],[Fixture Measure]]=\"\",\"\",IF(OR(ISNUMBER(FIND(\"Lamp(s)\",ProjectInfoTable[[#This Row],[Fixture Measure]],1)),ISNUMBER(FIND(\"Relamp\",ProjectInfoTable[[#This Row],[Proposed Equipment]],1))),\"Lamp(s)\",\"Fixture(s)\"))","v":""},{"$f":"IFERROR(INDEX(INDIRECT(\"MeasureTable_\"&ProjectState&\"[ProjectCapPercent]\"),MATCH(ProjectInfoTable[[#This Row],[Fixture Measure]]&\" | TRUE\",INDIRECT(\"MeasureTable_\" &ProjectState&\"[MeasureEligibleConcatenate]\"),0)),\"\")","v":""},{"$f":"IF(OR(ProjectInfoTable[[#This Row],[Control Measure]]=\"\",ProjectInfoTable[[#This Row],[OpSch]]=\"\",ProjectInfoTable[[#This Row],[Eligible Control Measure]]<>TRUE),\"\",IF(AND(OR(ProjectType=\"New Construction\",ProjectType=\"Major Renovation\"),LPDCodeToProposed<0.1,ISNUMBER(FIND(\"Interior\",ProjectInfoTable[[#This Row],[Proposed Equipment]],1))),0,IFERROR(ProjectInfoTable[[#This Row],[Control Incentives Per Unit]]*ProjectInfoTable[[#This Row],[Control Quantity]]*ProjectInfoTable[[#This Row],[Control No. of TRL Units]],\"TRL Error\")))","v":""},{"$f":"IF(OR(ProjectInfoTable[[#This Row],[Control Measure]]=\"\",ProjectInfoTable[[#This Row],[OpSch]]=\"\",ProjectInfoTable[[#This Row],[Eligible Control Measure]]<>TRUE),\"\",IF(AND(ProjectType=\"Retrofit\",ProjectState=\"UT\",ISNUMBER(FIND(\"Post Purchase\",ProjectInfoTable[[#This Row],[Control Measure]],1))),\n\nIFERROR(MAX(MIN(ProjectInfoTable[[#This Row],[Control Incentives (pre-capping)]],ProjectInfoTable[[#This Row],[Control Cost (Allocated)]]*0.7),0),0),\n\nIF(ProjectType=\"Retrofit\",IF(ISNUMBER(FIND(\"Post Purchase\",ProjectInfoTable[[#This Row],[Control Measure]],1)),ProjectInfoTable[[#This Row],[Control Incentives (pre-capping)]],IFERROR($BI$3/$BH$3*ProjectInfoTable[[#This Row],[Control Incentives (pre-capping)]],\"\")),\n\nIF(ISNUMBER(FIND(\"Interior\",ProjectInfoTable[[#This Row],[Proposed Equipment]],1)),IF(LPDCodeToProposed>0.1,ProjectInfoTable[[#This Row],[Control Incentives (pre-capping)]],0),ProjectInfoTable[[#This Row],[Control Incentives (pre-capping)]]))))","v":""},{"$f":"IF(OR(ProjectInfoTable[[#This Row],[Control Incentives Per Unit]]=\"\",ProjectInfoTable[[#This Row],[Control TRL Unit]]=\"\"),\"\",IF(ProjectInfoTable[[#This Row],[Eligible Control Measure]]<>TRUE,\"Invalid Effective Date\",TEXT(ProjectInfoTable[[#This Row],[Control Incentives Per Unit]],\"$#,##0.00\")&\" / \"&ProjectInfoTable[[#This Row],[Control TRL Unit]]))","v":""},{"$f":"IF(ISNUMBER(FIND(\"SBE\",ProjectInfoTable[[#This Row],[Proposed Equipment]])),\"\",\n\nIF(LEN(ProjectInfoTable[[#This Row],[Proposed Equipment]])>\n\nIFERROR(FIND(\"]\",ProjectInfoTable[[#This Row],[Proposed Equipment]],1),0),\nSUBSTITUTE(\nIF(OR(ProjectInfoTable[[#This Row],[Control Method]]=\"separate\",ISNUMBER(FIND(\"Midstream\",ProjectInfoTable[[#This Row],[Fixture Measure]],1)),ISNUMBER(FIND(\"Midstream\",ProjectInfoTable[[#This Row],[Equipment Category]],1)),ISNUMBER(FIND(\"Prescriptive\",ProjectInfoTable[[#This Row],[Equipment Category]],1)),ISNUMBER(FIND(\"LED\",ProjectInfoTable[[#This Row],[Fixture Measure]],1)),ISNUMBER(FIND(\"LED Case\",ProjectInfoTable[[#This Row],[Fixture Measure]],1)),ISNUMBER(FIND(\"LED Decorative - Retrofit - WA\",ProjectInfoTable[[#This Row],[Fixture Measure]],1)),ISNUMBER(FIND(\"Lamp\",ProjectInfoTable[[#This Row],[Fixture Measure]],1)),ISNUMBER(FIND(\"Relamp\",ProjectInfoTable[[#This Row],[Fixture Measure]],1)),ISNUMBER(FIND(\"Wall Pack\",ProjectInfoTable[[#This Row],[Fixture Measure]],1)),ISNUMBER(FIND(\"Controls Only\",ProjectInfoTable[[#This Row],[Proposed Equipment]],1)),ISNUMBER(FIND(\"Re-Commissioning\",ProjectInfoTable[[#This Row],[Proposed Equipment]],1)),\n\nAND(OR(ISNUMBER(FIND(\"Exterior:\",ProjectInfoTable[[#This Row],[Proposed Equipment]],1)),ISNUMBER(FIND(\"Street:\",ProjectInfoTable[[#This Row],[Proposed Equipment]],1))),OR(ProjectState=\"ID\",ProjectState=\"UT\",ProjectState=\"WY\"))),\n\nIF(IFERROR(INDEX(ControlsLookup[],MATCH(IF(ProjectType=\"Retrofit\",LEFT(ProjectInfoTable[[#This Row],[Existing Equipment]],FIND(\":\",ProjectInfoTable[[#This Row],[Existing Equipment]],1)-1),LEFT(ProjectInfoTable[[#This Row],[Proposed Equipment]],FIND(\":\",ProjectInfoTable[[#This Row],[Proposed Equipment]],1)-1))&\"_\"&RIGHT(ProjectInfoTable[[#This Row],[Proposed Equipment]],LEN(ProjectInfoTable[[#This Row],[Proposed Equipment]])-FIND(\"]\",ProjectInfoTable[[#This Row],[Proposed Equipment]],1)-3),ControlsLookup[Controls Concatenate],0),MATCH(\n\nIF(ProjectType=\"Retrofit\",\"ControlMeasure_\",\"NCMRControlMeasure_\")&ProjectState,ControlsLookup[#Headers],0)),\"\")=0,\"\",\n\nIFERROR(INDEX(ControlsLookup[],MATCH(IF(ProjectType=\"Retrofit\",LEFT(ProjectInfoTable[[#This Row],[Existing Equipment]],FIND(\":\",ProjectInfoTable[[#This Row],[Existing Equipment]],1)-1),LEFT(ProjectInfoTable[[#This Row],[Proposed Equipment]],FIND(\":\",ProjectInfoTable[[#This Row],[Proposed Equipment]],1)-1))&\"_\"&RIGHT(ProjectInfoTable[[#This Row],[Proposed Equipment]],LEN(ProjectInfoTable[[#This Row],[Proposed Equipment]])-FIND(\"]\",ProjectInfoTable[[#This Row],[Proposed Equipment]],1)-3),ControlsLookup[Controls Concatenate],0),MATCH(\n\nIF(ProjectType=\"Retrofit\",\"ControlMeasure_\",\"NCMRControlMeasure_\")&ProjectState&IF(ProjectState=\"UT\",SegmentTag,\"\"),ControlsLookup[#Headers],0)),\"\")),\"\"),\"[NAMESUB]\",ProjectInfoTable[[#This Row],[Control Measure Name Sub]]),\"\"))","v":""},{"$f":"IF(ProjectInfoTable[[#This Row],[Proposed Equipment]]=\"\",\"\",IF(AND(ProjectState=\"UT\",ProjectType=\"Retrofit\",ISNUMBER(FIND(\"Re-Commissioning\",ProjectInfoTable[[#This Row],[Proposed Equipment]]))),\nIF(ProjectRecommissioning=\"only recommissioning\",\"Commissioning Only\",\"Commissioning w/ Lighting Upgrade\"),\"\"))","v":""},{"$f":"IFERROR(INDEX(INDIRECT(\"MeasureTable_\" & ProjectState & \"[Measure Reference Number]\"),MATCH(ProjectInfoTable[[#This Row],[Control Measure]],INDIRECT(\"MeasureTable_\" &ProjectState&\"[Measure Name]\"),0)),\"\")","v":""},{"$f":"IFERROR(\n    _xlfn.LET(\n        _xlpm.filteredVersions,\n            _xlfn._xlws.FILTER(\n                INDIRECT(\"MeasureTable_\" & ProjectState & \"[Version Number]\"),\n                (INDIRECT(\"MeasureTable_\" & ProjectState & \"[Measure Reference Number]\") = ProjectInfoTable[[#This Row],[Control Measure Reference Number]]) *\n                (INDIRECT(\"MeasureTable_\" & ProjectState & \"[Eligible Measure]\") = TRUE)\n            ),\n        INDEX(_xlpm.filteredVersions, 1)\n    ),\n    \"\"\n)","v":""},{"$f":"IFERROR(\n  _xlfn.LET(\n    _xlpm.refRange, INDIRECT(\"MeasureTable_\" & ProjectState & \"[Measure Reference Number]\"),\n    _xlpm.eligibleRange, INDIRECT(\"MeasureTable_\" & ProjectState & \"[Eligible Measure]\"),\n    _xlpm.countTrue, SUMPRODUCT(--(_xlpm.refRange = ProjectInfoTable[[#This Row],[Control Measure Reference Number]]), --(_xlpm.eligibleRange = TRUE)),\n    _xlpm.countNonBlank, SUMPRODUCT(--(_xlpm.refRange = ProjectInfoTable[[#This Row],[Control Measure Reference Number]]), --(_xlpm.eligibleRange <> \"\")),\n    IF(_xlpm.countNonBlank = 0, \"\", IF(_xlpm.countTrue >= 1, TRUE, FALSE))\n  ),\n  \"\"\n)","v":""},{"$f":"IF(ProjectInfoTable[[#This Row],[Proposed Equipment]]=\"\",\"\",IFERROR(INDEX(INDIRECT(\"EquipmentTable_\"&IF(ProjectType=\"Retrofit\",\"Retrofit_\",\"NCMR_\")&ProjectState&\"[controlMethod]\"),MATCH(LEFT(ProjectInfoTable[[#This Row],[Proposed Equipment]],FIND(\"[\",ProjectInfoTable[[#This Row],[Proposed Equipment]],1)-2),INDIRECT(\"EquipmentTable_\"&IF(ProjectType=\"Retrofit\",\"Retrofit_\",\"NCMR_\")&ProjectState&\"[equipmentProposed]\"),0)),\"\"))","v":""},{"$f":"IFERROR(VALUE(INDEX(INDIRECT(\"MeasureTable_\" & ProjectState & \"[CustomerIncentiveDollarperunit]\"),MATCH(ProjectInfoTable[[#This Row],[Control Measure]]&\" | TRUE\",INDIRECT(\"MeasureTable_\"&ProjectState&\"[MeasureEligibleConcatenate]\"),0))),\"\")","v":""},{"$f":"IFERROR(INDEX(INDIRECT(\"MeasureTable_\"&ProjectState&\"[SiteSpecificCalculation]\"),MATCH(ProjectInfoTable[[#This Row],[Control Measure]]&\" | TRUE\",INDIRECT(\"MeasureTable_\"&ProjectState&\"[MeasureEligibleConcatenate]\"),0)),\"\")","v":""},{"$f":"IFERROR(INDEX(INDIRECT(\"MeasureTable_\"&ProjectState&\"[GrossIncrementalAnnualElectricSavings ]\"),MATCH(ProjectInfoTable[[#This Row],[Control Measure]]&\" | TRUE\",INDIRECT(\"MeasureTable_\"&ProjectState&\"[MeasureEligibleConcatenate]\"),0)),\"\")","v":""},{"$f":"IFERROR(INDEX(INDIRECT(\"MeasureTable_\"&ProjectState&\"[GrossAverage onthly emand eduction]\"),MATCH(ProjectInfoTable[[#This Row],[Control Measure]]&\" | TRUE\",INDIRECT(\"MeasureTable_\"&ProjectState&\"[MeasureEligibleConcatenate]\"),0)),\"\")","v":""},{"$f":"IFERROR(INDEX(INDIRECT(\"MeasureTable_\"&ProjectState&\"[IncrementalMeasureCost]\"),MATCH(ProjectInfoTable[[#This Row],[Control Measure]]&\" | TRUE\",INDIRECT(\"MeasureTable_\"&ProjectState&\"[MeasureEligibleConcatenate]\"),0)),\"\")","v":""},{"$f":"IF(ProjectInfoTable[[#This Row],[Control Measure]]=\"\",\"\",IF(OR(ProjectInfoTable[[#This Row],[Control TRL Unit]]=\"Measure\",ProjectInfoTable[[#This Row],[Control TRL Unit]]=\"Linear ft.\"),IF(OR(ISNUMBER(FIND(\"Midstream\",ProjectInfoTable[[#This Row],[Control Measure]],1)),ISNUMBER(FIND(\"Lamp\",ProjectInfoTable[[#This Row],[Control Measure]],1))),ProjectInfoTable[[#This Row],[Quantity (Proposed)]]*ProjectInfoTable[[#This Row],[Lamps (Proposed)]],ProjectInfoTable[[#This Row],[Quantity (Proposed)]]),1))","v":""},{"$f":"IF(ProjectInfoTable[[#This Row],[Control Measure]]=\"\",\"\",IF(ISNUMBER(FIND(\"LF \",ProjectInfoTable[[#This Row],[Proposed Equipment]],1)),VALUE(RIGHT(LEFT(ProjectInfoTable[[#This Row],[Proposed Equipment]],FIND(\"LF \",ProjectInfoTable[[#This Row],[Proposed Equipment]],1)-1),LEN(LEFT(ProjectInfoTable[[#This Row],[Proposed Equipment]],FIND(\"LF \",ProjectInfoTable[[#This Row],[Proposed Equipment]],1)-1))-FIND(\"[\",ProjectInfoTable[[#This Row],[Proposed Equipment]],1))),IF(TRIM(UPPER(ProjectInfoTable[[#This Row],[Control TRL Unit]]))=\"WATT CONTROLLED\",IF(ISNUMBER(FIND(\"Controls Only\",ProjectInfoTable[[#This Row],[Proposed Equipment]],1)),IF(OR(ProjectType <> \"Retrofit\",ProjectInfoTable[[#This Row],[Space W (Proposed)]]>0),ProjectInfoTable[[#This Row],[Space W (Proposed)]],ProjectInfoTable[[#This Row],[Space W (Existing, Stipulated)]]),ProjectInfoTable[[#This Row],[Space W (Proposed)]]),IF(TRIM(UPPER(ProjectInfoTable[[#This Row],[Control TRL Unit]]))=\"KWH\",IF(ProjectInfoTable[[#This Row],[Control Measure kWh/yr Savings (Stipulated)]]=0,0,ROUND(ProjectInfoTable[[#This Row],[Control Measure kWh/yr Savings (Stipulated)]],2)),1))))","v":""},{"$f":"IFERROR(IF(LEN(ProjectInfoTable[[#This Row],[Proposed Equipment]])-(FIND(\"]\",ProjectInfoTable[[#This Row],[Proposed Equipment]],1))>0,\"Control(s)\",\"\"),\"\")","v":""},{"$f":"IFERROR(INDEX(INDIRECT(\"MeasureTable_\"&ProjectState&\"[Unit]\"),MATCH(ProjectInfoTable[[#This Row],[Control Measure]]&\" | TRUE\",INDIRECT(\"MeasureTable_\"&ProjectState&\"[MeasureEligibleConcatenate]\"),0)),\"\")","v":""},{"$f":"IFERROR(INDEX(INDIRECT(\"MeasureTable_\"&ProjectState&\"[ProjectCapPercent]\"),MATCH(ProjectInfoTable[[#This Row],[Control Measure]]&\" | TRUE\",INDIRECT(\"MeasureTable_\"&ProjectState&\"[MeasureEligibleConcatenate]\"),0)),\"\")","v":""},{"$f":"IF(OR(ProjectInfoTable[[#This Row],[Fixture Measure]]<>\"\",ProjectInfoTable[[#This Row],[Control Measure]]<>\"\"),1,\"\")","v":""},{"$f":"IF(ProjectInfoTable[[#This Row],[TRL Unit]]=\"\",\"\",IF(OR(ISNUMBER(SEARCH(\"measure\",ProjectInfoTable[[#This Row],[TRL Unit]])),ISNUMBER(SEARCH(\"linear ft\",ProjectInfoTable[[#This Row],[TRL Unit]])),ProjectInfoTable[[#This Row],[TRL Unit]]=0),990,991))","v":""},{"$f":"IFERROR(SUBSTITUTE(LEFT(ProjectInfoTable[[#This Row],[Proposed Equipment]],FIND(\"]\",ProjectInfoTable[[#This Row],[Proposed Equipment]],1)),\"Controls Only []\",\"\",1),\"\")","v":""},{"$f":"IF(ProjectInfoTable[[#This Row],[FixturesOnly]]=\"\",\"\",IF(ISNUMBER(FIND(\"L \",ProjectInfoTable[[#This Row],[Proposed Equipment]],1)),ProjectInfoTable[[#This Row],[Quantity (Proposed)]]*ProjectInfoTable[[#This Row],[Lamps (Proposed)]],ProjectInfoTable[[#This Row],[Quantity (Proposed)]]))","v":""},{"$f":"IFERROR(INDEX(ControlsLookup[Full Description],MATCH(RIGHT(ProjectInfoTable[[#This Row],[Proposed Equipment]],LEN(ProjectInfoTable[[#This Row],[Proposed Equipment]])-FIND(\"]\",ProjectInfoTable[[#This Row],[Proposed Equipment]],1)-3),ControlsLookup[Controls],0)),\"\")","v":""},{"$f":"IF(ProjectInfoTable[[#This Row],[ControlsOnly]]=\"\",\"\",IF(OR(ISNUMBER(FIND(\"Net\",ProjectInfoTable[[#This Row],[Proposed Equipment]],1)),ISNUMBER(FIND(\"Int\",ProjectInfoTable[[#This Row],[Proposed Equipment]],1))),ProjectInfoTable[[#This Row],[Quantity (Proposed)]],1))","v":""}]
[null,{"$f":"ROW(ProjectInfoTable[[#This Row],[OpSch]])-ROW(ProjectInfoTable[[#Headers],[OpSch]])","v":9},{"$f":"IFERROR(INDEX(RetrofitBaselineEquipment_Table[categoryBaseline],MATCH(RIGHT(LEFT(ProjectInfoTable[[#This Row],[Existing Equipment]],FIND(\" (\",ProjectInfoTable[[#This Row],[Existing Equipment]],1)-1),LEN(LEFT(ProjectInfoTable[[#This Row],[Existing Equipment]],FIND(\" (\",ProjectInfoTable[[#This Row],[Existing Equipment]],1)-1))-FIND(\": \",ProjectInfoTable[[#This Row],[Existing Equipment]],1)-1),RetrofitBaselineEquipment_Table[equipmentBaseline],0)),\"\")","v":""},null,null,null,null,{"$f":"IF(ProjectInfoTable[[#This Row],[Existing Equipment]]=\"\",\"\",IF(ISNUMBER(FIND(\"LF\",ProjectInfoTable[[#This Row],[Existing Equipment]],1)),1,IFERROR(VALUE(SUBSTITUTE(RIGHT(LEFT(ProjectInfoTable[[#This Row],[Existing Equipment]],FIND(\"L\",ProjectInfoTable[[#This Row],[Existing Equipment]],FIND(\"[\",ProjectInfoTable[[#This Row],[Existing Equipment]],1))-1),3),\"[\",\"\")),1)))","v":""},{"$f":"IF(ProjectInfoTable[[#This Row],[Existing Equipment]]=\"\",\"\",VALUE(SUBSTITUTE(RIGHT(LEFT(RIGHT(ProjectInfoTable[[#This Row],[Existing Equipment]],LEN(ProjectInfoTable[[#This Row],[Existing Equipment]])-IFERROR(FIND(\"[\",ProjectInfoTable[[#This Row],[Existing Equipment]],1),0)),IFERROR(FIND(\"W\",RIGHT(ProjectInfoTable[[#This Row],[Existing Equipment]],LEN(ProjectInfoTable[[#This Row],[Existing Equipment]])-IFERROR(FIND(\"[\",ProjectInfoTable[[#This Row],[Existing Equipment]],1),0)),1),0)),LEN(LEFT(RIGHT(ProjectInfoTable[[#This Row],[Existing Equipment]],LEN(ProjectInfoTable[[#This Row],[Existing Equipment]])-IFERROR(FIND(\"[\",ProjectInfoTable[[#This Row],[Existing Equipment]],1),0)),IFERROR(FIND(\"W\",RIGHT(ProjectInfoTable[[#This Row],[Existing Equipment]],LEN(ProjectInfoTable[[#This Row],[Existing Equipment]])-IFERROR(FIND(\"[\",ProjectInfoTable[[#This Row],[Existing Equipment]],1),0)),1),0)))-IFERROR(FIND(\"-\",LEFT(RIGHT(ProjectInfoTable[[#This Row],[Existing Equipment]],LEN(ProjectInfoTable[[#This Row],[Existing Equipment]])-IFERROR(FIND(\"[\",ProjectInfoTable[[#This Row],[Existing Equipment]],1),0)),IFERROR(FIND(\"W\",RIGHT(ProjectInfoTable[[#This Row],[Existing Equipment]],LEN(ProjectInfoTable[[#This Row],[Existing Equipment]])-IFERROR(FIND(\"[\",ProjectInfoTable[[#This Row],[Existing Equipment]],1),0)),1),0)),1),0)),\"W\",\"\")))","v":""},{"$f":"IF(ProjectInfoTable[[#This Row],[Existing Equipment]]=\"\",\"\",IF(AND(RIGHT(LEFT(ProjectInfoTable[[#This Row],[Existing Equipment]],FIND(\"]\",ProjectInfoTable[[#This Row],[Existing Equipment]],1)-1),1)<>\"W\"),IFERROR(TRIM(IF(IFERROR(FIND(\"FLT\",ProjectInfoTable[[#This Row],[Existing Equipment]],1),0)>0,LEFT(RIGHT(LEFT(ProjectInfoTable[[#This Row],[Existing Equipment]],FIND(\" (\",ProjectInfoTable[[#This Row],[Existing Equipment]],1)),LEN(LEFT(ProjectInfoTable[[#This Row],[Existing Equipment]],FIND(\" (\",ProjectInfoTable[[#This Row],[Existing Equipment]],1)))-FIND(\":\",ProjectInfoTable[[#This Row],[Existing Equipment]],1)-1),FIND(\" \",RIGHT(LEFT(ProjectInfoTable[[#This Row],[Existing Equipment]],FIND(\" (\",ProjectInfoTable[[#This Row],[Existing Equipment]],1)),LEN(LEFT(ProjectInfoTable[[#This Row],[Existing Equipment]],FIND(\" (\",ProjectInfoTable[[#This Row],[Existing Equipment]],1)))-FIND(\":\",ProjectInfoTable[[#This Row],[Existing Equipment]],1)-1),1)-1),RIGHT(LEFT(ProjectInfoTable[[#This Row],[Existing Equipment]],FIND(\" (\",ProjectInfoTable[[#This Row],[Existing Equipment]],1)),LEN(LEFT(ProjectInfoTable[[#This Row],[Existing Equipment]],FIND(\" (\",ProjectInfoTable[[#This Row],[Existing Equipment]],1)))-FIND(\":\",ProjectInfoTable[[#This Row],[Existing Equipment]],1)-1))&\" - \"&RIGHT(LEFT(ProjectInfoTable[[#This Row],[Existing Equipment]],FIND(\"]\",ProjectInfoTable[[#This Row],[Existing Equipment]],1)-1),LEN(LEFT(ProjectInfoTable[[#This Row],[Existing Equipment]],FIND(\"]\",ProjectInfoTable[[#This Row],[Existing Equipment]],1)-1))-FIND(\"W \",ProjectInfoTable[[#This Row],[Existing Equipment]],1)-3)),\"\"),\"\"))","v":""},{"$f":"IF(ProjectInfoTable[[#This Row],[Existing Equipment]]=\"\",\"\",IF(ProjectInfoTable[[#This Row],[Fixture/Ballast Check for Formula]]=\"\",IF(ISNUMBER(FIND(\"LF\",ProjectInfoTable[[#This Row],[Existing Equipment]],FIND(\"[\",ProjectInfoTable[[#This Row],[Existing Equipment]],1))),ProjectInfoTable[[#This Row],[Lamp W (Existing)]],ProjectInfoTable[[#This Row],[Lamps (Existing)]]*ProjectInfoTable[[#This Row],[Lamp W (Existing)]]),IFERROR(ROUND( ProjectInfoTable[[#This Row],[Lamps (Existing)]]*ProjectInfoTable[[#This Row],[Lamp W (Existing)]]*INDEX(FixtureWattageFormula_Table[A],MATCH(ProjectInfoTable[[#This Row],[Fixture/Ballast Check for Formula]],FixtureWattageFormula_Table[Concatenate],0))+INDEX(FixtureWattageFormula_Table[B],MATCH(ProjectInfoTable[[#This Row],[Fixture/Ballast Check for Formula]],FixtureWattageFormula_Table[Concatenate],0)),0),ProjectInfoTable[[#This Row],[Lamps (Existing)]]*ProjectInfoTable[[#This Row],[Lamp W (Existing)]])))","v":""},{"$f":"IF(OR(ISNUMBER(FIND(\"T8 \",ProjectInfoTable[[#This Row],[Existing Equipment]],1)),ISNUMBER(FIND(\"T5 \",ProjectInfoTable[[#This Row],[Existing Equipment]],1)),ISNUMBER(FIND(\"T12 \",ProjectInfoTable[[#This Row],[Existing Equipment]],1)),ISNUMBER(FIND(\"T12HO - 8\",ProjectInfoTable[[#This Row],[Existing Equipment]],1)),ISNUMBER(FIND(\"Incand\",ProjectInfoTable[[#This Row],[Existing Equipment]],1))),IFERROR(ROUND(INDEX(StipulatedWattage_Table[Stipulated fixture wattage],MATCH(MID(ProjectInfoTable[[#This Row],[Existing Equipment]],FIND(\"[\",ProjectInfoTable[[#This Row],[Existing Equipment]],1),FIND(\"]\",ProjectInfoTable[[#This Row],[Existing Equipment]],1)-FIND(\"[\",ProjectInfoTable[[#This Row],[Existing Equipment]],1)+1),StipulatedWattage_Table[Fixture Code],0)),0),ProjectInfoTable[[#This Row],[Fixture W (Existing, Actual)]]),ProjectInfoTable[[#This Row],[Fixture W (Existing, Actual)]])","v":""},{"$f":"IF(ProjectType=\"Retrofit\",IF(ProjectInfoTable[[#This Row],[Existing Equipment]]=\"\",\"\",ProjectInfoTable[[#This Row],[Quantity (Existing)]]*ProjectInfoTable[[#This Row],[Fixture W (Existing, Actual)]]),IF(ISNUMBER(FIND(\"Interior\",ProjectInfoTable[[#This Row],[Proposed Equipment]],1)),IF(ISNUMBER(FIND(\"Controls Only\",ProjectInfoTable[[#This Row],[Proposed Equipment]])),ProjectInfoTable[[#This Row],[Space W (Proposed)]],(AllowedWattage-SUMIFS(ProjectInfoTable[Space W (Proposed)],ProjectInfoTable[Proposed Equipment],\"*Interior*\",ProjectInfoTable[Proposed Equipment],\"*Controls Only*\"))*ProjectInfoTable[[#This Row],[Space W (Proposed)]]/(SUMIFS(ProjectInfoTable[Space W (Proposed)],ProjectInfoTable[Proposed Equipment],\"*Interior*\")-SUMIFS(ProjectInfoTable[Space W (Proposed)],ProjectInfoTable[Proposed Equipment],\"*Interior*\",ProjectInfoTable[Proposed Equipment],\"*Controls Only*\"))),\"\"))","v":""},{"$f":"IF(ProjectType=\"Retrofit\",IF(ProjectInfoTable[[#This Row],[Existing Equipment]]=\"\",\"\",ProjectInfoTable[[#This Row],[Quantity (Existing)]]*ProjectInfoTable[[#This Row],[Fixture W (Existing, Stipulated)]]),ProjectInfoTable[[#This Row],[Space W (Existing, Actual)]])","v":""},{"$f":"IFERROR(INDEX(OperatingHours_List,MATCH(ProjectInfoTable[[#This Row],[OpSch]],OperatingSchedules_List,0))*ProjectInfoTable[[#This Row],[Space W (Existing, Actual)]]/1000,\"\")","v":""},{"$f":"IFERROR(INDEX(OperatingHours_List,MATCH(ProjectInfoTable[[#This Row],[OpSch]],OperatingSchedules_List,0))*ProjectInfoTable[[#This Row],[Space W (Existing, Actual)]]/1000*(IFERROR(INDEX(ControlsLookup[],MATCH(RIGHT(ProjectInfoTable[[#This Row],[Existing Equipment]],LEN(ProjectInfoTable[[#This Row],[Existing Equipment]])-FIND(\"]\",ProjectInfoTable[[#This Row],[Existing Equipment]],1)-3),ControlsLookup[Controls],0),MATCH(\"CSF_\"&ProjectState,ControlsLookup[#Headers],0)),0))*-1,\"\")","v":""},{"$f":"IF(OR(ProjectInfoTable[[#This Row],[Fixture kWh (Existing, Actual)]]=\"\",ProjectInfoTable[[#This Row],[Control kWh (Existing, Actual)]]=\"\"),\"\",ProjectInfoTable[[#This Row],[Fixture kWh (Existing, Actual)]]+ProjectInfoTable[[#This Row],[Control kWh (Existing, Actual)]])","v":""},{"$f":"IFERROR(INDEX(OperatingHours_List,MATCH(ProjectInfoTable[[#This Row],[OpSch]],OperatingSchedules_List,0))*ProjectInfoTable[[#This Row],[Space W (Existing, Stipulated)]]/1000,\"\")","v":""},{"$f":"IFERROR(INDEX(OperatingHours_List,MATCH(ProjectInfoTable[[#This Row],[OpSch]],OperatingSchedules_List,0))*ProjectInfoTable[[#This Row],[Space W (Existing, Stipulated)]]/1000*(IFERROR(INDEX(ControlsLookup[],MATCH(RIGHT(ProjectInfoTable[[#This Row],[Existing Equipment]],LEN(ProjectInfoTable[[#This Row],[Existing Equipment]])-FIND(\"]\",ProjectInfoTable[[#This Row],[Existing Equipment]],1)-3),ControlsLookup[Controls],0),MATCH(\"CSF_\"&ProjectState,ControlsLookup[#Headers],0)),0))*-1,\"\")","v":""},{"$f":"IF(OR(ProjectInfoTable[[#This Row],[Fixture kWh (Existing, Stipulated)]]=\"\",ProjectInfoTable[[#This Row],[Control kWh (Existing, Stipulated)]]=\"\"),\"\",ProjectInfoTable[[#This Row],[Fixture kWh (Existing, Stipulated)]]+ProjectInfoTable[[#This Row],[Control kWh (Existing, Stipulated)]])","v":""},{"$f":"IF(\n AND(\n  OR(ProjectInfoTable[[#This Row],[Existing Equipment]]=\"\",ProjectInfoTable[[#This Row],[Quantity (Existing)]]=\"\"),\n  ProjectType=\"Retrofit\"\n ),\n \"\",\n IF(\n  ISNUMBER(FIND(\"Street:\",ProjectInfoTable[[#This Row],[Existing Equipment]],1)),\n  IF(\n   OR(\n    AND(ProjectState=\"UT\",RateSchedule=12),\n    AND(ProjectState=\"ID\",RateSchedule=12),\n    AND(ProjectState=\"WY\",RateSchedule=58)\n   ),\n   IFERROR(\n    INDEX(\n     StreetLightingRates_Table[],\n     MATCH(MID(ProjectInfoTable[[#This Row],[Existing Equipment]],FIND(\": \",ProjectInfoTable[[#This Row],[Existing Equipment]],1)+2,FIND(\" (\",ProjectInfoTable[[#This Row],[Existing Equipment]],1)-FIND(\": \",ProjectInfoTable[[#This Row],[Existing Equipment]],1)-2)&ProjectInfoTable[[#This Row],[Lamp W (Existing)]],StreetLightingRates_Table[TechWattage],0),\n     MATCH(ProjectState&RateSchedule,StreetLightingRates_Table[#Headers],0)\n    )\n    *\n    ProjectInfoTable[[#This Row],[Quantity (Existing)]]\n    *\n    ProjectInfoTable[[#This Row],[Lamps (Existing)]]\n    *\n    12,\n    ProjectInfoTable[[#This Row],[Space kWh (Existing, Actual)]]\n    *\n    INDEX(INDIRECT(\"RateSchedules_\"&ProjectState&\"_Table[kWh Rate]\"),MATCH(RateSchedule,INDIRECT(\"RateSchedules_\"&ProjectState&\"_Table[Rate Schedule]\"),0))\n   ),\n   IFERROR(\n    ProjectInfoTable[[#This Row],[Space kWh (Existing, Actual)]]*\n    INDEX(INDIRECT(\"RateSchedules_\"&ProjectState&\"_Table[kWh Rate]\"),MATCH(RateSchedule,INDIRECT(\"RateSchedules_\"&ProjectState&\"_Table[Rate Schedule]\"),0)),0)\n   +\n   IFERROR(IF(ISNUMBER(FIND(\"Interior:\",ProjectInfoTable[[#This Row],[Existing Equipment]],1)),\n    ProjectInfoTable[[#This Row],[Space W (Existing, Actual)]]/1000*12*DDF*\n    INDEX(INDIRECT(\"RateSchedules_\"&ProjectState&\"_Table[kW Rate]\"),MATCH(RateSchedule,INDIRECT(\"RateSchedules_\"&ProjectState&\"_Table[Rate Schedule]\"),0)),0),0)\n  ),\n  IFERROR(\n   ProjectInfoTable[[#This Row],[Space kWh (Existing, Actual)]]*\n   INDEX(INDIRECT(\"RateSchedules_\"&ProjectState&\"_Table[kWh Rate]\"),MATCH(RateSchedule,INDIRECT(\"RateSchedules_\"&ProjectState&\"_Table[Rate Schedule]\"),0)),\n   0\n  )\n  +\n  IFERROR(IF(OR(ISNUMBER(FIND(\"Interior:\",ProjectInfoTable[[#This Row],[Existing Equipment]],1)),AND(ProjectType<>\"Retrofit\",ISNUMBER(FIND(\"Interior:\",ProjectInfoTable[[#This Row],[Proposed Equipment]],1)))),\n   ProjectInfoTable[[#This Row],[Space W (Existing, Actual)]]/1000*12*DDF*\n   INDEX(INDIRECT(\"RateSchedules_\"&ProjectState&\"_Table[kW Rate]\"),MATCH(RateSchedule,INDIRECT(\"RateSchedules_\"&ProjectState&\"_Table[Rate Schedule]\"),0)),0),\n   0\n  )\n )\n)","v":0},{"$f":"IF(\n AND(\n  OR(ProjectInfoTable[[#This Row],[Existing Equipment]]=\"\",ProjectInfoTable[[#This Row],[Quantity (Existing)]]=\"\"),\n  ProjectType=\"Retrofit\"\n ),\n \"\",\n IF(\n  ISNUMBER(FIND(\"Street:\",ProjectInfoTable[[#This Row],[Existing Equipment]],1)),\n  IF(\n   OR(\n    AND(ProjectState=\"UT\",RateSchedule=12),\n    AND(ProjectState=\"ID\",RateSchedule=12),\n    AND(ProjectState=\"WY\",RateSchedule=58)\n   ),\n   IFERROR(\n    INDEX(\n     StreetLightingRates_Table[],\n     MATCH(MID(ProjectInfoTable[[#This Row],[Existing Equipment]],FIND(\": \",ProjectInfoTable[[#This Row],[Existing Equipment]],1)+2,FIND(\" (\",ProjectInfoTable[[#This Row],[Existing Equipment]],1)-FIND(\": \",ProjectInfoTable[[#This Row],[Existing Equipment]],1)-2)&ProjectInfoTable[[#This Row],[Lamp W (Existing)]],StreetLightingRates_Table[TechWattage],0),\n     MATCH(ProjectState&RateSchedule,StreetLightingRates_Table[#Headers],0)\n    )\n    *\n    ProjectInfoTable[[#This Row],[Quantity (Existing)]]\n    *\n    ProjectInfoTable[[#This Row],[Lamps (Existing)]]\n    *\n    12,\n    ProjectInfoTable[[#This Row],[Space kWh (Existing, Stipulated)]]\n    *\n    INDEX(INDIRECT(\"RateSchedules_\"&ProjectState&\"_Table[kWh Rate]\"),MATCH(RateSchedule,INDIRECT(\"RateSchedules_\"&ProjectState&\"_Table[Rate Schedule]\"),0))\n   ),\n   IFERROR(\n    ProjectInfoTable[[#This Row],[Space kWh (Existing, Stipulated)]]*\n    INDEX(INDIRECT(\"RateSchedules_\"&ProjectState&\"_Table[kWh Rate]\"),MATCH(RateSchedule,INDIRECT(\"RateSchedules_\"&ProjectState&\"_Table[Rate Schedule]\"),0)),0)\n   +\n   IFERROR(IF(ISNUMBER(FIND(\"Interior:\",ProjectInfoTable[[#This Row],[Existing Equipment]],1)),\n    ProjectInfoTable[[#This Row],[Space W (Existing, Stipulated)]]/1000*12*DDF*\n    INDEX(INDIRECT(\"RateSchedules_\"&ProjectState&\"_Table[kW Rate]\"),MATCH(RateSchedule,INDIRECT(\"RateSchedules_\"&ProjectState&\"_Table[Rate Schedule]\"),0)),0),0)\n  ),\n  IFERROR(\n   ProjectInfoTable[[#This Row],[Space kWh (Existing, Stipulated)]]*\n   INDEX(INDIRECT(\"RateSchedules_\"&ProjectState&\"_Table[kWh Rate]\"),MATCH(RateSchedule,INDIRECT(\"RateSchedules_\"&ProjectState&\"_Table[Rate Schedule]\"),0)),\n   0\n  )\n  +\n  IFERROR(IF(OR(ISNUMBER(FIND(\"Interior:\",ProjectInfoTable[[#This Row],[Existing Equipment]],1)),AND(ProjectType<>\"Retrofit\",ISNUMBER(FIND(\"Interior:\",ProjectInfoTable[[#This Row],[Proposed Equipment]],1)))),\n   ProjectInfoTable[[#This Row],[Space W (Existing, Stipulated)]]/1000*12*DDF*\n   INDEX(INDIRECT(\"RateSchedules_\"&ProjectState&\"_Table[kW Rate]\"),MATCH(RateSchedule,INDIRECT(\"RateSchedules_\"&ProjectState&\"_Table[Rate Schedule]\"),0)),0),\n   0\n  )\n )\n)","v":0},{"$f":"IF(ProjectType=\"Retrofit\",IFERROR(INDEX(RetrofitBaselineEquipment_Table[categoryBaseline],MATCH(RIGHT(LEFT(ProjectInfoTable[[#This Row],[Proposed Equipment]],FIND(\" (\",ProjectInfoTable[[#This Row],[Proposed Equipment]],1)-1),LEN(LEFT(ProjectInfoTable[[#This Row],[Proposed Equipment]],FIND(\" (\",ProjectInfoTable[[#This Row],[Proposed Equipment]],1)-1))-FIND(\": \",ProjectInfoTable[[#This Row],[Proposed Equipment]],1)-1),RetrofitBaselineEquipment_Table[equipmentBaseline],0)),\"\"),IFERROR(INDEX(#REF!,MATCH(RIGHT(LEFT(ProjectInfoTable[[#This Row],[Proposed Equipment]],FIND(\" (\",ProjectInfoTable[[#This Row],[Proposed Equipment]],1)-1),LEN(LEFT(ProjectInfoTable[[#This Row],[Proposed Equipment]],FIND(\" (\",ProjectInfoTable[[#This Row],[Proposed Equipment]],1)-1))-FIND(\": \",ProjectInfoTable[[#This Row],[Proposed Equipment]],1)-1),#REF!,0)),\"\"))","v":""},{"$f":"IF(ProjectInfoTable[[#This Row],[Proposed Equipment]]=\"\",\"\",IF(ISNUMBER(SEARCH(\"Controls Only\",ProjectInfoTable[[#This Row],[Proposed Equipment]])),\"Controls Only\",IF(ProjectType=\"Retrofit\",_xlfn.LET(_xlpm.k,LEFT(ProjectInfoTable[[#This Row],[Proposed Equipment]],FIND(\"[\",ProjectInfoTable[[#This Row],[Proposed Equipment]])-2),_xlpm.ep,_xlfn.SWITCH(ProjectState,\"UT\",EquipmentTable_Retrofit_UT[equipmentProposed],\"WY\",EquipmentTable_Retrofit_WY[equipmentProposed],\"ID\",EquipmentTable_Retrofit_ID[equipmentProposed]),_xlpm.cp,_xlfn.SWITCH(ProjectState,\"UT\",EquipmentTable_Retrofit_UT[categoryProposed],\"WY\",EquipmentTable_Retrofit_WY[categoryProposed],\"ID\",EquipmentTable_Retrofit_ID[categoryProposed]),_xlfn.XLOOKUP(_xlpm.k,_xlpm.ep,_xlpm.cp,\"Non-eligible fixture - Retrofit - \"&ProjectState)),_xlfn.LET(_xlpm.k,MID(ProjectInfoTable[[#This Row],[Proposed Equipment]],FIND(\": \",ProjectInfoTable[[#This Row],[Proposed Equipment]])+2,FIND(\" (\",ProjectInfoTable[[#This Row],[Proposed Equipment]])-(FIND(\": \",ProjectInfoTable[[#This Row],[Proposed Equipment]])+2)),_xlpm.ep,_xlfn.SWITCH(ProjectState,\"UT\",EquipmentTable_NCMR_UT[equipmentProposed],\"WY\",EquipmentTable_NCMR_WY[equipmentProposed],\"ID\",EquipmentTable_NCMR_ID[equipmentProposed]),_xlpm.cp,_xlfn.SWITCH(ProjectState,\"UT\",EquipmentTable_NCMR_UT[categoryProposed],\"WY\",EquipmentTable_NCMR_WY[categoryProposed],\"ID\",EquipmentTable_NCMR_ID[categoryProposed]),_xlfn.XLOOKUP(_xlpm.k,_xlpm.ep,_xlpm.cp,\"Non-eligible fixture - NCMR - \"&ProjectState)))))","v":""},null,null,"ü",{"$f":"IF(ProjectInfoTable[[#This Row],[Proposed Equipment]]=\"\",\"\",IF(ProjectInfoTable[[#This Row],[Measure Selection]]=\"\",0,IF(ISNUMBER(FIND(\"LF\",ProjectInfoTable[[#This Row],[Proposed Equipment]],1)),1,IFERROR(VALUE(SUBSTITUTE(RIGHT(LEFT(ProjectInfoTable[[#This Row],[Proposed Equipment]],FIND(\"L\",ProjectInfoTable[[#This Row],[Proposed Equipment]],FIND(\"[\",ProjectInfoTable[[#This Row],[Proposed Equipment]],1))-1),2),\"[\",\"\")),IFERROR(LEFT(RIGHT(ProjectInfoTable[[#This Row],[Proposed Equipment]],LEN(ProjectInfoTable[[#This Row],[Proposed Equipment]])-FIND(\"-lamp\",ProjectInfoTable[[#This Row],[Proposed Equipment]],1)+2),1),1)))))","v":""},{"$f":"IF(ProjectInfoTable[[#This Row],[Proposed Equipment]]=\"\",\"\",IF(ProjectInfoTable[[#This Row],[Measure Selection]]=\"\",0,IFERROR(\n\nIF(ISNUMBER(FIND(\"W]\",ProjectInfoTable[[#This Row],[Proposed Equipment]])),\nRIGHT(MID(ProjectInfoTable[[#This Row],[Proposed Equipment]],FIND(\"W]\",ProjectInfoTable[[#This Row],[Proposed Equipment]],FIND(\"[\",ProjectInfoTable[[#This Row],[Proposed Equipment]]))-7,7),\nLEN(MID(ProjectInfoTable[[#This Row],[Proposed Equipment]],FIND(\"W]\",ProjectInfoTable[[#This Row],[Proposed Equipment]],FIND(\"[\",ProjectInfoTable[[#This Row],[Proposed Equipment]]))-7,7)) -\nIFERROR(FIND(\" - \",MID(ProjectInfoTable[[#This Row],[Proposed Equipment]],FIND(\"W]\",ProjectInfoTable[[#This Row],[Proposed Equipment]],FIND(\"[\",ProjectInfoTable[[#This Row],[Proposed Equipment]]))-7,7))+2,\nFIND(\"[\",MID(ProjectInfoTable[[#This Row],[Proposed Equipment]],FIND(\"W]\",ProjectInfoTable[[#This Row],[Proposed Equipment]],FIND(\"[\",ProjectInfoTable[[#This Row],[Proposed Equipment]]))-7,7)))),\n\nIF(ISNUMBER(FIND(\"[\",MID(ProjectInfoTable[[#This Row],[Proposed Equipment]],FIND(\"W \",ProjectInfoTable[[#This Row],[Proposed Equipment]],FIND(\"[\",ProjectInfoTable[[#This Row],[Proposed Equipment]]))-7,7))),\nRIGHT(MID(ProjectInfoTable[[#This Row],[Proposed Equipment]],FIND(\"W \",ProjectInfoTable[[#This Row],[Proposed Equipment]],FIND(\"[\",ProjectInfoTable[[#This Row],[Proposed Equipment]]))-7,7),\nLEN(MID(ProjectInfoTable[[#This Row],[Proposed Equipment]],FIND(\"W \",ProjectInfoTable[[#This Row],[Proposed Equipment]],FIND(\"[\",ProjectInfoTable[[#This Row],[Proposed Equipment]]))-7,7)) -\nIFERROR(FIND(\" - \",MID(ProjectInfoTable[[#This Row],[Proposed Equipment]],FIND(\"W \",ProjectInfoTable[[#This Row],[Proposed Equipment]],FIND(\"[\",ProjectInfoTable[[#This Row],[Proposed Equipment]]))-7,7))+2,\nFIND(\"[\",MID(ProjectInfoTable[[#This Row],[Proposed Equipment]],FIND(\"W \",ProjectInfoTable[[#This Row],[Proposed Equipment]],FIND(\"[\",ProjectInfoTable[[#This Row],[Proposed Equipment]]))-7,7)))),\n\nRIGHT(MID(ProjectInfoTable[[#This Row],[Proposed Equipment]],FIND(\"W \",ProjectInfoTable[[#This Row],[Proposed Equipment]],FIND(\"[\",ProjectInfoTable[[#This Row],[Proposed Equipment]]))-7,7),\nLEN(MID(ProjectInfoTable[[#This Row],[Proposed Equipment]],FIND(\"W \",ProjectInfoTable[[#This Row],[Proposed Equipment]],FIND(\"[\",ProjectInfoTable[[#This Row],[Proposed Equipment]]))-7,7)) -\nFIND(\" - \",MID(ProjectInfoTable[[#This Row],[Proposed Equipment]],FIND(\"W \",ProjectInfoTable[[#This Row],[Proposed Equipment]],FIND(\"[\",ProjectInfoTable[[#This Row],[Proposed Equipment]]))-7,7))-2\n))),0)))","v":""},{"$f":"IF(ProjectInfoTable[[#This Row],[Proposed Equipment]]=\"\",\"\",IFERROR(ProjectInfoTable[[#This Row],[Lamps (Proposed)]]*ProjectInfoTable[[#This Row],[Lamp W (Proposed)]],\"\"))","v":""},{"$f":"IF(ProjectInfoTable[[#This Row],[Proposed Equipment]]=\"\",\"\",IFERROR(ProjectInfoTable[[#This Row],[Quantity (Proposed)]]*ProjectInfoTable[[#This Row],[Fixture W (Proposed)]],\"\"))","v":""},{"$f":"IFERROR(INDEX(OperatingHours_List,MATCH(ProjectInfoTable[[#This Row],[OpSch]],OperatingSchedules_List,0))*ProjectInfoTable[[#This Row],[Space W (Proposed)]]/1000,\"\")","v":""},{"$f":"IF(OR(ISNUMBER(FIND(\"Controls Only\",ProjectInfoTable[[#This Row],[Proposed Equipment]],1)),ProjectInfoTable[[#This Row],[ControlsOnly]]=\"Re-Commissioning\"),\"Controls Only\",IFERROR(INDEX(OperatingHours_List,MATCH(ProjectInfoTable[[#This Row],[OpSch]],OperatingSchedules_List,0))*ProjectInfoTable[[#This Row],[Space W (Proposed)]]/1000*(IFERROR(INDEX(ControlsLookup[],MATCH(SUBSTITUTE(RIGHT(ProjectInfoTable[[#This Row],[Proposed Equipment]],LEN(ProjectInfoTable[[#This Row],[Proposed Equipment]])-FIND(\"]\",ProjectInfoTable[[#This Row],[Proposed Equipment]],1)-3),\" reused\",\"\"),ControlsLookup[Controls],0),MATCH(\"CSF_\"&ProjectState,ControlsLookup[#Headers],0)),0))*-1,\"\"))","v":""},{"$f":"IF(OR(ProjectInfoTable[[#This Row],[Fixture kWh (Proposed)]]=\"\",ProjectInfoTable[[#This Row],[Control kWh (Proposed)]]=\"\"),\"\",IFERROR(ProjectInfoTable[[#This Row],[Fixture kWh (Proposed)]]+ProjectInfoTable[[#This Row],[Control kWh (Proposed)]],0))","v":""},{"$f":"IF(\n OR(\n  ProjectInfoTable[[#This Row],[Proposed Equipment]]=\"\",\n  ProjectInfoTable[[#This Row],[Quantity (Proposed)]]=\"\"\n ),\n \"\",\n IF(\n  AND(\n   OR(\n    AND(\n     ProjectState=\"UT\",\n     RateSchedule=12\n    ),\n    AND(\n     ProjectState=\"ID\",\n     RateSchedule=12\n    ),\n    AND(\n     ProjectState=\"WY\",\n     RateSchedule=58\n    )\n   ),\n   ISNUMBER(FIND(\"Street:\",ProjectInfoTable[[#This Row],[Existing Equipment]],1))\n  ),\n  IF(\n   AND(\n    RateSchedule=53,\n    ISNUMBER(FIND(\"LED\",ProjectInfoTable[[#This Row],[Proposed Equipment]],1))\n   ),\n   ProjectInfoTable[[#This Row],[Fixture kWh (Proposed)]]\n   *\n   INDEX(\n    INDIRECT(\"RateSchedules_\"&ProjectState&\"_Table[kWh Rate]\"),\n    MATCH(RateSchedule,INDIRECT(\"RateSchedules_\"&ProjectState&\"_Table[Rate Schedule]\"),0)\n   ),\n   IFERROR(INDEX(\n    StreetLightingRates_Table[],\n    MATCH(\"LED\"&IF(AND(ProjectInfoTable[[#This Row],[Fixture W (Proposed)]]>0,ProjectInfoTable[[#This Row],[Fixture W (Proposed)]]<=70),70,IF(AND(ProjectInfoTable[[#This Row],[Fixture W (Proposed)]]>70,ProjectInfoTable[[#This Row],[Fixture W (Proposed)]]<=100),100,IF(AND(ProjectInfoTable[[#This Row],[Fixture W (Proposed)]]>100,ProjectInfoTable[[#This Row],[Fixture W (Proposed)]]<=150),150,IF(AND(ProjectInfoTable[[#This Row],[Fixture W (Proposed)]]>150,ProjectInfoTable[[#This Row],[Fixture W (Proposed)]]<=200),200,IF(AND(ProjectInfoTable[[#This Row],[Fixture W (Proposed)]]>200,ProjectInfoTable[[#This Row],[Fixture W (Proposed)]]<=250),250,IF(AND(ProjectInfoTable[[#This Row],[Fixture W (Proposed)]]>250,ProjectInfoTable[[#This Row],[Fixture W (Proposed)]]<=400),400,\"\")))))),StreetLightingRates_Table[TechWattage],0),\n    MATCH(ProjectState&RateSchedule,StreetLightingRates_Table[#Headers],0)\n   )\n   *ProjectInfoTable[[#This Row],[Lamps (Proposed)]]*ProjectInfoTable[[#This Row],[Quantity (Proposed)]]*12,\n  ProjectInfoTable[[#This Row],[Space kWh (Proposed)]]*INDEX(INDIRECT(\"RateSchedules_\"&ProjectState&\"_Table[kWh Rate]\"),MATCH(RateSchedule,INDIRECT(\"RateSchedules_\"&ProjectState&\"_Table[Rate Schedule]\"),0)))),\n  IFERROR(ProjectInfoTable[[#This Row],[Space kWh (Proposed)]]*INDEX(INDIRECT(\"RateSchedules_\"&ProjectState&\"_Table[kWh Rate]\"),MATCH(RateSchedule,INDIRECT(\"RateSchedules_\"&ProjectState&\"_Table[Rate Schedule]\"),0)),0)\n  +\n  IF(OR(ISNUMBER(FIND(\"Exterior:\",ProjectInfoTable[[#This Row],[Existing Equipment]],1)),ISNUMBER(FIND(\"Street:\",ProjectInfoTable[[#This Row],[Existing Equipment]],1))),0,IFERROR(ProjectInfoTable[[#This Row],[Space W (Proposed)]]/1000*12*DDF*INDEX(INDIRECT(\"RateSchedules_\"&ProjectState&\"_Table[kW Rate]\"),MATCH(RateSchedule,INDIRECT(\"RateSchedules_\"&ProjectState&\"_Table[Rate Schedule]\"),0)),0))\n )\n)","v":""},{"$f":"IF(ProjectInfoTable[[#This Row],[Measure Selection]]=\"\",0,IF(ProjectType=\"Retrofit\",IFERROR((ProjectInfoTable[[#This Row],[Space W (Existing, Actual)]]-ProjectInfoTable[[#This Row],[Space W (Proposed)]])/ProjectInfoTable[[#This Row],[Space W (Existing, Actual)]],\"\"),IF(AND(ProjectInfoTable[[#This Row],[Proposed Equipment]]=\"\",ProjectInfoTable[[#This Row],[Quantity (Proposed)]]=\"\"),\"\",IFERROR((ProjectInfoTable[[#This Row],[Space W (Existing, Stipulated)]]-ProjectInfoTable[[#This Row],[Space W (Proposed)]])/ProjectInfoTable[[#This Row],[Space W (Existing, Stipulated)]],\"n/a\"))))","v":""},{"$f":"IF(ProjectInfoTable[[#This Row],[Measure Selection]]=\"\",0,IF(ProjectType=\"Retrofit\",IFERROR((ProjectInfoTable[[#This Row],[Space W (Existing, Stipulated)]]-ProjectInfoTable[[#This Row],[Space W (Proposed)]])/ProjectInfoTable[[#This Row],[Space W (Existing, Stipulated)]],\"\"),ProjectInfoTable[[#This Row],[% Wattage Reduction (Actual)]]))","v":""},{"$f":"IFERROR(IF(OR(ProjectInfoTable[[#This Row],[Measure Selection]]=\"\",ProjectInfoTable[[#This Row],[ControlsOnly]]=\"Re-Commissioning\"),0,IF(AND(ProjectType=\"Retrofit\",LEFT(ProjectInfoTable[[#This Row],[Existing Equipment]],FIND(\": \",ProjectInfoTable[[#This Row],[Existing Equipment]],1)-1)<>\"Interior\"),0,((ProjectInfoTable[[#This Row],[Space W (Existing, Actual)]]-ProjectInfoTable[[#This Row],[Space W (Proposed)]])/1000*DDF)-IF(ProjectInfoTable[[#This Row],[Midstream Measure Name]]<>\"\",IFERROR(ProjectInfoTable[[#This Row],[kW Per Unit (Midstream)]]*ProjectInfoTable[[#This Row],[Quantity]]*ProjectInfoTable[[#This Row],[No. of TRL Units]],0),0))),\"\")","v":""},{"$f":"IFERROR(IF(OR(ProjectInfoTable[[#This Row],[Measure Selection]]=\"\",ProjectInfoTable[[#This Row],[ControlsOnly]]=\"Re-Commissioning\"),0,IF(AND(ISNUMBER(VALUE(ProjectInfoTable[[#This Row],[kW Per Unit]])),ProjectInfoTable[[#This Row],[kW Per Unit]]<>0),ROUND(ProjectInfoTable[[#This Row],[kW Per Unit]]*ProjectInfoTable[[#This Row],[Quantity]]*ProjectInfoTable[[#This Row],[No. of TRL Units]],2),IF(OR(AND(ProjectType=\"Retrofit\",LEFT(ProjectInfoTable[[#This Row],[Existing Equipment]],FIND(\": \",ProjectInfoTable[[#This Row],[Existing Equipment]],1)-1)<>\"Interior\"),AND(ProjectInfoTable[[#This Row],[Incentives Per Unit]]=0,INDEX(StipulatedSavingsYesNo_Table[Stipulated Savings?],MATCH(ProjectState,StipulatedSavingsYesNo_Table[State],0))=\"No\")),0,IF(ISNUMBER(FIND(\"Controls Only\",ProjectInfoTable[[#This Row],[Proposed Equipment]],1)),0,ROUND(((ProjectInfoTable[[#This Row],[Space W (Existing, Stipulated)]]-ProjectInfoTable[[#This Row],[Space W (Proposed)]])/1000*DDF)-IF(ProjectInfoTable[[#This Row],[Midstream Measure Name]]<>\"\",IFERROR(ProjectInfoTable[[#This Row],[kW Per Unit (Midstream)]]*ProjectInfoTable[[#This Row],[Quantity]]*ProjectInfoTable[[#This Row],[No. of TRL Units]],0),0),2))))),\"\")","v":""},{"$f":"IFERROR(IF(OR(ProjectInfoTable[[#This Row],[Control kWh (Proposed)]]=\"Controls Only\",ProjectInfoTable[[#This Row],[Measure Selection]]=\"\"),0,ROUND((ProjectInfoTable[[#This Row],[Fixture kWh (Existing, Actual)]]-ProjectInfoTable[[#This Row],[Fixture kWh (Proposed)]])*IF(VALUE(SpaceTypesInfo_Table[[#Totals],[HVAC Effects]])=0,1,1+VALUE(SpaceTypesInfo_Table[[#Totals],[HVAC Effects]])),0)),\"\")","v":""},{"$f":"IFERROR(IF(ProjectInfoTable[[#This Row],[Control kWh (Proposed)]]=\"Controls Only\",ROUND(IFERROR(INDEX(OperatingHours_List,MATCH(ProjectInfoTable[[#This Row],[OpSch]],OperatingSchedules_List,0))*IF(OR(ProjectType <> \"Retrofit\",ProjectInfoTable[[#This Row],[Space W (Proposed)]]>0),ProjectInfoTable[[#This Row],[Space W (Proposed)]],ProjectInfoTable[[#This Row],[Space W (Existing, Actual)]])/1000*(IFERROR(INDEX(ControlsLookup[],MATCH(RIGHT(ProjectInfoTable[[#This Row],[Proposed Equipment]],LEN(ProjectInfoTable[[#This Row],[Proposed Equipment]])-FIND(\"]\",ProjectInfoTable[[#This Row],[Proposed Equipment]],1)-3),ControlsLookup[Controls],0),MATCH(\"CSF_\"&ProjectState,ControlsLookup[#Headers],0)),0))*IF(VALUE(SpaceTypesInfo_Table[[#Totals],[HVAC Effects]])=0,1,1+VALUE(SpaceTypesInfo_Table[[#Totals],[HVAC Effects]])),\"\"),0),ROUND(IFERROR((ProjectInfoTable[[#This Row],[Control kWh (Existing, Actual)]]-ProjectInfoTable[[#This Row],[Control kWh (Proposed)]])*IF(VALUE(SpaceTypesInfo_Table[[#Totals],[HVAC Effects]])=0,1,1+VALUE(SpaceTypesInfo_Table[[#Totals],[HVAC Effects]])),\"\"),0)),\"\")","v":""},{"$f":"IF(OR(ProjectInfoTable[[#This Row],[Proposed Equipment]]=\"\",ProjectInfoTable[[#This Row],[Quantity (Proposed)]]=\"\"),\"\",IF(ProjectInfoTable[[#This Row],[Fixture Measure]]=\"\",0,IF(AND(ProjectInfoTable[[#This Row],[Incentives Per Unit]]=0,INDEX(StipulatedSavingsYesNo_Table[Stipulated Savings?],MATCH(ProjectState,StipulatedSavingsYesNo_Table[State],0))=\"No\"),0,ProjectInfoTable[[#This Row],[Total   kWh/yr Savings (Actual)]]-ProjectInfoTable[[#This Row],[Control Measure kWh/yr Savings (Actual)]])))","v":""},{"$f":"IF(OR(ProjectInfoTable[[#This Row],[Proposed Equipment]]=\"\",ProjectInfoTable[[#This Row],[Quantity (Proposed)]]=\"\"),\"\",IF(ProjectInfoTable[[#This Row],[Control Measure]]=\"\",0,ProjectInfoTable[[#This Row],[Control kWh/yr Savings (Actual)]]))","v":""},{"$f":"IF(AND(ProjectInfoTable[[#This Row],[Incentives Per Unit]]=0,INDEX(StipulatedSavingsYesNo_Table[Stipulated Savings?],MATCH(ProjectState,StipulatedSavingsYesNo_Table[State],0))=\"No\"),ProjectInfoTable[[#This Row],[Fixture kWh/yr Savings (Actual)]]+IF(ProjectInfoTable[[#This Row],[Control Measure kWh/yr Savings (Actual)]]=0,0,ProjectInfoTable[[#This Row],[Control kWh/yr Savings (Actual)]]),IF(AND(ProjectInfoTable[[#This Row],[Fixture kWh/yr Savings (Actual)]]=\"\",ProjectInfoTable[[#This Row],[Control kWh/yr Savings (Actual)]]=\"\"),\"\",ROUND(IF(ProjectInfoTable[[#This Row],[Fixture kWh/yr Savings (Actual)]]=\"\",0,ProjectInfoTable[[#This Row],[Fixture kWh/yr Savings (Actual)]])+IF(ProjectInfoTable[[#This Row],[Control kWh/yr Savings (Actual)]]=\"\",0,ProjectInfoTable[[#This Row],[Control kWh/yr Savings (Actual)]])-IF(ProjectInfoTable[[#This Row],[Midstream Measure Name]]<>\"\",IFERROR(ProjectInfoTable[[#This Row],[kWh Per Unit (Midstream)]]*ProjectInfoTable[[#This Row],[Quantity]]*ProjectInfoTable[[#This Row],[No. of TRL Units]],0),0),0)))","v":""},{"$f":"IFERROR(IF(OR(ProjectInfoTable[[#This Row],[Measure Selection]]=\"\",ProjectInfoTable[[#This Row],[ControlsOnly]]=\"Re-Commissioning\"),0,IF(AND(ProjectInfoTable[[#This Row],[Incentives Per Unit]]=0,INDEX(StipulatedSavingsYesNo_Table[Stipulated Savings?],MATCH(ProjectState,StipulatedSavingsYesNo_Table[State],0))=\"No\"),0,IF(ISNUMBER(FIND(\"Controls Only\",ProjectInfoTable[[#This Row],[Proposed Equipment]],1)),0,ROUND((ProjectInfoTable[[#This Row],[Fixture kWh (Existing, Stipulated)]]-ProjectInfoTable[[#This Row],[Fixture kWh (Proposed)]])*IF(VALUE(SpaceTypesInfo_Table[[#Totals],[HVAC Effects]])=0,1,1+VALUE(SpaceTypesInfo_Table[[#Totals],[HVAC Effects]])),0)))),\"\")","v":""},{"$f":"IFERROR(IF(ProjectInfoTable[[#This Row],[Control kWh (Proposed)]]=\"Controls Only\",ROUND(IFERROR(INDEX(OperatingHours_List,MATCH(ProjectInfoTable[[#This Row],[OpSch]],OperatingSchedules_List,0))*IF(OR(ProjectType <> \"Retrofit\",ProjectInfoTable[[#This Row],[Space W (Proposed)]]>0),ProjectInfoTable[[#This Row],[Space W (Proposed)]],ProjectInfoTable[[#This Row],[Space W (Existing, Stipulated)]])/1000*(IFERROR(INDEX(ControlsLookup[],MATCH(RIGHT(ProjectInfoTable[[#This Row],[Proposed Equipment]],LEN(ProjectInfoTable[[#This Row],[Proposed Equipment]])-FIND(\"]\",ProjectInfoTable[[#This Row],[Proposed Equipment]],1)-3),ControlsLookup[Controls],0),MATCH(\"CSF_\"&ProjectState,ControlsLookup[#Headers],0)),0))*IF(VALUE(SpaceTypesInfo_Table[[#Totals],[HVAC Effects]])=0,1,1+VALUE(SpaceTypesInfo_Table[[#Totals],[HVAC Effects]])),\"\"),0),ROUND(IFERROR((ProjectInfoTable[[#This Row],[Control kWh (Existing, Stipulated)]]-ProjectInfoTable[[#This Row],[Control kWh (Proposed)]])*IF(VALUE(SpaceTypesInfo_Table[[#Totals],[HVAC Effects]])=0,1,1+VALUE(SpaceTypesInfo_Table[[#Totals],[HVAC Effects]])),INDEX(ControlsLookup[],MATCH(RIGHT(ProjectInfoTable[[#This Row],[Proposed Equipment]],LEN(ProjectInfoTable[[#This Row],[Proposed Equipment]])-FIND(\"-\",ProjectInfoTable[[#This Row],[Proposed Equipment]],LEN(ProjectInfoTable[[#This Row],[Proposed Equipment]])-15)-1),ControlsLookup[Controls],0),MATCH(\"CSF_\"&ProjectState,ControlsLookup[#Headers],0))*IF(NOT(ISNUMBER(VALUE(ProjectInfoTable[[#This Row],[kWh Per Unit]]))),ProjectInfoTable[[#This Row],[Fixture kWh/yr Savings (Stipulated)]],ProjectInfoTable[[#This Row],[kWh Per Unit]]*ProjectInfoTable[[#This Row],[Quantity]]*ProjectInfoTable[[#This Row],[No. of TRL Units]])),0)),IF(OR(ProjectType=\"New Construction\",ProjectType=\"Major Renovation\"),IF(ProjectInfoTable[[#This Row],[Control kWh (Proposed)]]=\"\",\"\",0),\"\"))","v":""},{"$f":"IF(OR(ProjectInfoTable[[#This Row],[Proposed Equipment]]=\"\",ProjectInfoTable[[#This Row],[Quantity (Proposed)]]=\"\"),\"\",IF(ProjectInfoTable[[#This Row],[Fixture Measure]]=\"\",0,IF(AND(ProjectInfoTable[[#This Row],[Incentives Per Unit]]=0,INDEX(StipulatedSavingsYesNo_Table[Stipulated Savings?],MATCH(ProjectState,StipulatedSavingsYesNo_Table[State],0))=\"No\"),0,ProjectInfoTable[[#This Row],[Total   kWh/yr Savings (Stipulated)]]-ProjectInfoTable[[#This Row],[Control Measure kWh/yr Savings (Stipulated)]])))","v":""},{"$f":"IF(OR(ProjectInfoTable[[#This Row],[Proposed Equipment]]=\"\",ProjectInfoTable[[#This Row],[Quantity (Proposed)]]=\"\"),\"\",IF(ProjectInfoTable[[#This Row],[Control Measure]]=\"\",0,IF(OR(ProjectType=\"New Construction\",ProjectType=\"Major Renovation\"),IFERROR(ROUND(ProjectInfoTable[[#This Row],[Control kWh Per Unit]]*ProjectInfoTable[[#This Row],[Control Quantity]]*ProjectInfoTable[[#This Row],[Control No. of TRL Units]],0),ProjectInfoTable[[#This Row],[Control kWh/yr Savings (Stipulated)]]),ProjectInfoTable[[#This Row],[Control kWh/yr Savings (Stipulated)]])))","v":""},{"$f":"IF(AND(ProjectInfoTable[[#This Row],[Incentives Per Unit]]=0,INDEX(StipulatedSavingsYesNo_Table[Stipulated Savings?],MATCH(ProjectState,StipulatedSavingsYesNo_Table[State],0))=\"No\"),ProjectInfoTable[[#This Row],[Fixture kWh/yr Savings (Stipulated)]]+IF(ProjectInfoTable[[#This Row],[Control Measure kWh/yr Savings (Stipulated)]]=0,0,ProjectInfoTable[[#This Row],[Control kWh/yr Savings (Stipulated)]]),IF(OR(ISNUMBER(VALUE(ProjectInfoTable[[#This Row],[kWh Per Unit]])),ISNUMBER(VALUE(ProjectInfoTable[[#This Row],[Control kWh Per Unit]]))),ROUND(IFERROR(ProjectInfoTable[[#This Row],[kWh Per Unit]]*ProjectInfoTable[[#This Row],[Quantity]]*ProjectInfoTable[[#This Row],[No. of TRL Units]],0)+IFERROR(ProjectInfoTable[[#This Row],[Control kWh Per Unit]]*ProjectInfoTable[[#This Row],[Control Quantity]]*ProjectInfoTable[[#This Row],[Control No. of TRL Units]],ProjectInfoTable[[#This Row],[Control kWh/yr Savings (Stipulated)]]),0),IF(AND(ProjectInfoTable[[#This Row],[Fixture kWh/yr Savings (Stipulated)]]=\"\",ProjectInfoTable[[#This Row],[Control kWh/yr Savings (Stipulated)]]=\"\"),\"\",ROUND(IF(ProjectInfoTable[[#This Row],[Fixture kWh/yr Savings (Stipulated)]]=\"\",0,ProjectInfoTable[[#This Row],[Fixture kWh/yr Savings (Stipulated)]])+IF(ProjectInfoTable[[#This Row],[Control kWh/yr Savings (Stipulated)]]=\"\",0,ProjectInfoTable[[#This Row],[Control kWh/yr Savings (Stipulated)]])-IF(ProjectInfoTable[[#This Row],[Midstream Measure Name]]<>\"\",IFERROR(ProjectInfoTable[[#This Row],[kWh Per Unit (Midstream)]]*ProjectInfoTable[[#This Row],[Quantity]]*ProjectInfoTable[[#This Row],[No. of TRL Units]],0),0),0))))","v":""},{"$f":"IF(OR(ISNUMBER(FIND(\"Midstream\",ProjectInfoTable[[#This Row],[Fixture Measure]])),ISNUMBER(FIND(\"SBDI\",ProjectInfoTable[[#This Row],[Fixture Measure]])),ISNUMBER(FIND(\"Small Bu\",ProjectInfoTable[[#This Row],[Fixture Measure]]))),\n\nIF(ProjectInfoTable[[#This Row],[Measure Selection]]=\"\",0,\n\nIF(ISNUMBER(FIND(\"/U]\",ProjectInfoTable[[#This Row],[Proposed Equipment]])),IFERROR(MID(ProjectInfoTable[[#This Row],[Proposed Equipment]],FIND(\"$\",ProjectInfoTable[[#This Row],[Proposed Equipment]],1)+1,FIND(\"/U]\",ProjectInfoTable[[#This Row],[Proposed Equipment]],1)-FIND(\"$\",ProjectInfoTable[[#This Row],[Proposed Equipment]],1)-1)*ProjectInfoTable[[#This Row],[Lamps (Proposed)]]*ProjectInfoTable[[#This Row],[Quantity (Proposed)]],0),\nIF(ISNUMBER(FIND(\"/U \",ProjectInfoTable[[#This Row],[Proposed Equipment]])),IFERROR(MID(ProjectInfoTable[[#This Row],[Proposed Equipment]],FIND(\"$\",ProjectInfoTable[[#This Row],[Proposed Equipment]],1)+1,FIND(\"/U \",ProjectInfoTable[[#This Row],[Proposed Equipment]],1)-FIND(\"$\",ProjectInfoTable[[#This Row],[Proposed Equipment]],1)-1)*ProjectInfoTable[[#This Row],[Lamps (Proposed)]]*ProjectInfoTable[[#This Row],[Quantity (Proposed)]],0),\nIFERROR(ProjectInfoTable[[#This Row],[Fixture Measure kWh/yr Savings (Stipulated)]]/SUM(ProjectInfoTable[Total   kWh/yr Savings (Stipulated)])*ProjectCost_Total,\"\")))),\"\")","v":""},{"$f":"IFERROR(IF(ProjectInfoTable[[#This Row],[Fixture Measure kWh/yr Savings (Stipulated)]]=0,0,IF(ProjectType=\"Retrofit\",IF(OR(ISNUMBER(FIND(\"Midstream\",ProjectInfoTable[[#This Row],[Fixture Measure]])),ISNUMBER(FIND(\"SBDI\",ProjectInfoTable[[#This Row],[Fixture Measure]])),ISNUMBER(FIND(\"Small Bu\",ProjectInfoTable[[#This Row],[Fixture Measure]]))),ProjectInfoTable[[#This Row],[Measure Cost (Direct)]],IFERROR(ProjectInfoTable[[#This Row],[Fixture Measure kWh/yr Savings (Stipulated)]]/kWhSavings_Typical_Stipulated*(ProjectCost_Total-SUM(ProjectInfoTable[Measure Cost (Direct)])),\"\")),IF(ProjectInfoTable[[#This Row],[Proposed Equipment]]=\"\",\"\",IFERROR(SpaceTypesInfo_Table[[#Totals],[NCMR Int Cost]]*ProjectInfoTable[[#This Row],[Fixture Measure kWh/yr Savings (Stipulated)]]/SUMIFS(ProjectInfoTable[Total   kWh/yr Savings (Stipulated)],ProjectInfoTable[Proposed Equipment],\"*Interior*\"),0)))),\"\")","v":""},{"$f":"IFERROR(\n IF(\n  ProjectInfoTable[[#This Row],[Control Measure kWh/yr Savings (Stipulated)]]=0,\n  0,\n  IF(\n   ProjectType=\"Retrofit\",\n    IFERROR(\n     ProjectInfoTable[[#This Row],[Control Measure kWh/yr Savings (Stipulated)]]\n     /\n     SUMIFS(ProjectInfoTable[Control Measure kWh/yr Savings (Stipulated)],ProjectInfoTable[Control Measure],\"<>\"\"\")\n     *\n     (ProjectCost_Total-SUM(ProjectInfoTable[Fixture Cost (Allocated)])),\n     \"\"\n    ),\nROUND(\n    IF(\n     ProjectInfoTable[[#This Row],[Proposed Equipment]]=\"\",\n     \"\",\n     IFERROR(\n      SpaceTypesInfo_Table[[#Totals],[NCMR Int Cost]]\n      *\n      ProjectInfoTable[[#This Row],[Control Measure kWh/yr Savings (Stipulated)]]\n      /\n      SUMIFS(ProjectInfoTable[Total   kWh/yr Savings (Stipulated)],ProjectInfoTable[Proposed Equipment],\"*Interior*\"),\n      0\n     )\n    ),\n    2\n   )\n  )\n ),\n \"\"\n)","v":""},{"$f":"IF(AND(ProjectInfoTable[[#This Row],[Fixture Cost (Allocated)]]=\"\",ProjectInfoTable[[#This Row],[Control Cost (Allocated)]]=\"\"),\"\",SUM(ProjectInfoTable[[#This Row],[Fixture Cost (Allocated)]:[Control Cost (Allocated)]]))","v":""},{"$f":"IFERROR(IF(OR(ProjectInfoTable[[#This Row],[Proposed Equipment]]=\"\",ProjectInfoTable[[#This Row],[Quantity (Proposed)]]=\"\"),\"\",IF(OR(ProjectInfoTable[[#This Row],[Measure Selection]]=\"\",ProjectInfoTable[[#This Row],[Control kWh (Proposed)]]=\"Controls Only\"),0,IF(NOT(ISNUMBER(FIND(\"Retrofit\",ProjectType,1))),ProjectInfoTable[[#This Row],[Fixture Energy Cost Savings (Stipulated)]],IF(AND(ProjectInfoTable[[#This Row],[Fixture Measure]]=\"\",ProjectInfoTable[[#This Row],[Control Measure]]<>\"\"),0,ROUND((ProjectInfoTable[[#This Row],[Total Energy Costs (Existing, Actual)]]-ProjectInfoTable[[#This Row],[Total Energy Costs (Proposed)]]),2))))),\"\")","v":""},{"$f":"IFERROR(IF(OR(ProjectInfoTable[[#This Row],[Proposed Equipment]]=\"\",ProjectInfoTable[[#This Row],[Quantity (Proposed)]]=\"\"),\"\",\n\nIF(ProjectInfoTable[[#This Row],[Control kWh (Proposed)]]=\"Controls Only\",ProjectInfoTable[[#This Row],[Control Measure kWh/yr Savings (Actual)]]*INDEX(INDIRECT(\"RateSchedules_\"&ProjectState&\"_Table[kWh Rate]\"),\nMATCH(RateSchedule,INDIRECT(\"RateSchedules_\"&ProjectState&\"_Table[Rate Schedule]\"),0)),\n\nIF(NOT(ISNUMBER(FIND(\"Retrofit\",ProjectType,1))),ProjectInfoTable[[#This Row],[Control Energy Cost Savings (Stipulated)]],IF(AND(ProjectInfoTable[[#This Row],[Fixture Measure]]=\"\",ProjectInfoTable[[#This Row],[Control Measure]]<>\"\"),ROUND((ProjectInfoTable[[#This Row],[Total Energy Costs (Existing, Actual)]]-ProjectInfoTable[[#This Row],[Total Energy Costs (Proposed)]]),2),ROUND((ProjectInfoTable[[#This Row],[Total Energy Costs (Existing, Actual)]]-ProjectInfoTable[[#This Row],[Total Energy Costs (Proposed)]]),2)*(ProjectInfoTable[[#This Row],[Control Measure kWh/yr Savings (Actual)]]/ProjectInfoTable[[#This Row],[Total   kWh/yr Savings (Actual)]]))))),\"\")","v":""},{"$f":"IF(OR(ProjectInfoTable[[#This Row],[Proposed Equipment]]=\"\",ProjectInfoTable[[#This Row],[Quantity (Proposed)]]=\"\"),\"\",ROUND(ProjectInfoTable[[#This Row],[Fixture Energy Cost Savings (Actual)]]+ProjectInfoTable[[#This Row],[Control Energy Cost Savings (Actual)]],2))","v":""},{"$f":"IF(OR(ProjectInfoTable[[#This Row],[Proposed Equipment]]=\"\",ProjectInfoTable[[#This Row],[Quantity (Proposed)]]=\"\"),\"\",IF(OR(ISNUMBER(VALUE(ProjectInfoTable[[#This Row],[kWh Per Unit]])),ISNUMBER(VALUE(ProjectInfoTable[[#This Row],[kW Per Unit]]))),IFERROR(ProjectInfoTable[[#This Row],[Fixture Measure kWh/yr Savings (Stipulated)]]*INDEX(INDIRECT(\"RateSchedules_\"&ProjectState&\"_Table[kWh Rate]\"),MATCH(RateSchedule,INDIRECT(\"RateSchedules_\"&ProjectState&\"_Table[Rate Schedule]\"),0)),0)+IFERROR(ProjectInfoTable[[#This Row],[kW Demand Reduction (Stipulated)]]/1000*12*INDEX(INDIRECT(\"RateSchedules_\"&ProjectState&\"_Table[kW Rate]\"),MATCH(RateSchedule,INDIRECT(\"RateSchedules_\"&ProjectState&\"_Table[Rate Schedule]\"),0)),0),IFERROR(ROUND((ProjectInfoTable[[#This Row],[Total Energy Costs (Existing, Stipulated)]]-ProjectInfoTable[[#This Row],[Total Energy Costs (Proposed)]])*ProjectInfoTable[[#This Row],[Fixture Measure kWh/yr Savings (Stipulated)]]/ProjectInfoTable[[#This Row],[Total   kWh/yr Savings (Stipulated)]],2),0)))","v":""},{"$f":"IF(OR(ProjectInfoTable[[#This Row],[Proposed Equipment]]=\"\",ProjectInfoTable[[#This Row],[Quantity (Proposed)]]=\"\"),\"\",\nIF(ProjectInfoTable[[#This Row],[Control kWh (Proposed)]]=\"Controls Only\",ProjectInfoTable[[#This Row],[Control Measure kWh/yr Savings (Stipulated)]]*INDEX(INDIRECT(\"RateSchedules_\"&ProjectState&\"_Table[kWh Rate]\"),\nMATCH(RateSchedule,INDIRECT(\"RateSchedules_\"&ProjectState&\"_Table[Rate Schedule]\"),0)),IF(OR(ISNUMBER(VALUE(ProjectInfoTable[[#This Row],[Control kWh Per Unit]])),\nISNUMBER(VALUE(ProjectInfoTable[[#This Row],[Control kW Per Unit]]))),IFERROR(ProjectInfoTable[[#This Row],[Control Measure kWh/yr Savings (Stipulated)]]*INDEX(INDIRECT(\"RateSchedules_\"&ProjectState&\"_Table[kWh Rate]\"),\nMATCH(RateSchedule,INDIRECT(\"RateSchedules_\"&ProjectState&\"_Table[Rate Schedule]\"),0)),0)+IFERROR(ProjectInfoTable[[#This Row],[kW Demand Reduction (Stipulated)]]/1000*12*\nINDEX(INDIRECT(\"RateSchedules_\"&ProjectState&\"_Table[kW Rate]\"),MATCH(RateSchedule,INDIRECT(\"RateSchedules_\"&ProjectState&\"_Table[Rate Schedule]\"),0)),0),\nIFERROR(ROUND((ProjectInfoTable[[#This Row],[Total Energy Costs (Existing, Stipulated)]]-ProjectInfoTable[[#This Row],[Total Energy Costs (Proposed)]])*ProjectInfoTable[[#This Row],[Control Measure kWh/yr Savings (Stipulated)]]/\nProjectInfoTable[[#This Row],[Total   kWh/yr Savings (Stipulated)]],2),0))))","v":""},{"$f":"IF(OR(ProjectInfoTable[[#This Row],[Proposed Equipment]]=\"\",ProjectInfoTable[[#This Row],[Quantity (Proposed)]]=\"\"),\"\",ROUND(ProjectInfoTable[[#This Row],[Fixture Energy Cost Savings (Stipulated)]]+ProjectInfoTable[[#This Row],[Control Energy Cost Savings (Stipulated)]],2))","v":""},{"$f":"IF(ProjectInfoTable[[#This Row],[OpSch]]=\"\",\"\",IF(OR(ProjectInfoTable[[#This Row],[Fixture Measure]]=\"\",ProjectInfoTable[[#This Row],[Eligible Fixture Measure]]<>TRUE),0,ProjectInfoTable[[#This Row],[Fixture Incentives (pre-capping)]])+IF(OR(ProjectInfoTable[[#This Row],[Control Measure]]=\"\",ProjectInfoTable[[#This Row],[Eligible Control Measure]]<>TRUE),0,ProjectInfoTable[[#This Row],[Control Incentives (pre-capping)]]))","v":""},{"$f":"IF(OR(ProjectInfoTable[[#This Row],[Fixture Measure]]<>\"\",ProjectInfoTable[[#This Row],[Control Measure]]<>\"\"),IF(ProjectInfoTable[[#This Row],[Fixture Incentives]]=\"\",0,ProjectInfoTable[[#This Row],[Fixture Incentives]])+IF(ProjectInfoTable[[#This Row],[Control Incentives]]=\"\",0,ProjectInfoTable[[#This Row],[Control Incentives]]),\"\")","v":""},null,{"$f":"IF(OR(ProjectInfoTable[[#This Row],[Fixture Measure]]=\"\",ProjectInfoTable[[#This Row],[OpSch]]=\"\",ProjectInfoTable[[#This Row],[Eligible Fixture Measure]]<>TRUE),\"\",\nIF(OR(ISNUMBER(FIND(\"SBDI\",ProjectInfoTable[[#This Row],[Fixture Measure]])),ISNUMBER(FIND(\"Small Bu\",ProjectInfoTable[[#This Row],[Fixture Measure]]))),IFERROR(0.75*ProjectInfoTable[[#This Row],[Fixture Cost (Allocated)]],\"cost error\"),\nIF(AND(OR(ProjectType=\"New Construction\",ProjectType=\"Major Renovation\"),LPDCodeToProposed<0.1,ISNUMBER(FIND(\"Interior\",ProjectInfoTable[[#This Row],[Proposed Equipment]],1))),0,IFERROR(ProjectInfoTable[[#This Row],[Incentives Per Unit]]*ProjectInfoTable[[#This Row],[Quantity]]*ProjectInfoTable[[#This Row],[No. of TRL Units]],\"TRL Error\"))))","v":""},{"$f":"IF(\n    OR(\n        ProjectInfoTable[[#This Row],[Fixture Measure]] = \"\",\n        ProjectInfoTable[[#This Row],[OpSch]] = \"\",\n        ProjectInfoTable[[#This Row],[Eligible Fixture Measure]] <> TRUE\n    ),\n    \"\",\n    IF(\n        OR(\n            ISNUMBER(FIND(\"SBDI\", ProjectInfoTable[[#This Row],[Fixture Measure]])),\n            ISNUMBER(FIND(\"Small Bu\", ProjectInfoTable[[#This Row],[Fixture Measure]]))\n        ),\n        IFERROR(\n            (Incentive_NonTypical / Incentive_NonTypical_PreCapped) * ProjectInfoTable[[#This Row],[Fixture Incentives (pre-capping)]],\n            \"\"\n        ),\n        IF(\n            AND(\n                ProjectType = \"Retrofit\",\n                ProjectState = \"UT\",\n                ISNUMBER(FIND(\"Post-Purchase\", ProjectInfoTable[[#This Row],[Fixture Measure]], 1))\n            ),\n            IFERROR(\n                MAX(\n                    MIN(\n                        ProjectInfoTable[[#This Row],[Fixture Incentives (pre-capping)]],\n                        ProjectInfoTable[[#This Row],[Fixture Cost (Allocated)]] * 0.7\n                    ),\n                    0\n                ),\n                0\n            ),\n            IF(\n                ProjectType = \"Retrofit\",\n                IF(\n                    ISNUMBER(FIND(\"Post-Purchase\", ProjectInfoTable[[#This Row],[Fixture Measure]], 1)),\n                    ProjectInfoTable[[#This Row],[Fixture Incentives (pre-capping)]],\n                    IFERROR(\n                        $BI$3 / $BH$3 * ProjectInfoTable[[#This Row],[Fixture Incentives (pre-capping)]],\n                        \"\"\n                    )\n                ),\n                IF(\n                    ISNUMBER(FIND(\"Interior\", ProjectInfoTable[[#This Row],[Proposed Equipment]], 1)),\n                    IF(\n                        LPDCodeToProposed > 0.1,\n                        ProjectInfoTable[[#This Row],[Fixture Incentives (pre-capping)]],\n                        0\n                    ),\n                    ProjectInfoTable[[#This Row],[Fixture Incentives (pre-capping)]]\n                )\n            )\n        )\n    )\n)","v":""},{"$f":"IF(OR(ProjectInfoTable[[#This Row],[Incentives Per Unit]]=\"\",ProjectInfoTable[[#This Row],[TRL Unit]]=\"\"),\"\",IF(ProjectInfoTable[[#This Row],[Eligible Fixture Measure]]<>TRUE,\"Invalid Effective Date\",\nIF(OR(ISNUMBER(FIND(\"SBDI\",ProjectInfoTable[[#This Row],[Fixture Measure]])),ISNUMBER(FIND(\"Small Bu\",ProjectInfoTable[[#This Row],[Fixture Measure]]))),\"$0.75 / dollar cost\",\nTEXT(ProjectInfoTable[[#This Row],[Incentives Per Unit]],\"$#,##0.00\")&\" / \"&IF(ProjectInfoTable[[#This Row],[Fixture Measure]]=\"\",\"\",IF(ProjectInfoTable[[#This Row],[TRL Unit]]=\"Measure\",IF(ISNUMBER(FIND(\"Relamp\",ProjectInfoTable[[#This Row],[Proposed Equipment]],1)),\"Lamp\",\"Fixture\"),ProjectInfoTable[[#This Row],[TRL Unit]])))))","v":""},{"$f":"IF(OR(ProjectInfoTable[[#This Row],[Proposed Equipment]]=\"\",ProjectInfoTable[[#This Row],[Quantity (Proposed)]]=\"\"),\"\",IFERROR(SUBSTITUTE(IF(ProjectType=\"Retrofit\",IF(OR(ISNUMBER(FIND(\"Controls On\",ProjectInfoTable[[#This Row],[Proposed Equipment]],1))),\"\",IF(OR(ProjectInfoTable[[#This Row],[Existing Equipment]]=\"\",ProjectInfoTable[[#This Row],[Proposed Equipment]]=\"\"),\"\",IF(ProjectState=\"UT\",IFERROR(IF(AlternativeEnergyOverride=\"Yes\",IFERROR(INDEX(INDIRECT(\"EquipmentTable_\"&\"Retrofit_\"&ProjectState&\"[#All]\"),MATCH(LEFT(ProjectInfoTable[[#This Row],[Proposed Equipment]],FIND(\"[\",ProjectInfoTable[[#This Row],[Proposed Equipment]],1)-2)&\" (Alt)\",INDIRECT(\"EquipmentTable_\"&\"Retrofit_\"&ProjectState&\"[equipmentProposed]\"),0)+1,MATCH(\"measureRetrofit_\"&LEFT(ProjectInfoTable[[#This Row],[Existing Equipment]],FIND(\":\",ProjectInfoTable[[#This Row],[Existing Equipment]],1)-1)&\"_\"&IF(IFERROR(INDEX(ControlsLookup[Rank],MATCH(RIGHT(ProjectInfoTable[[#This Row],[Proposed Equipment]],LEN(ProjectInfoTable[[#This Row],[Proposed Equipment]])-FIND(\"]\",ProjectInfoTable[[#This Row],[Proposed Equipment]],1)-3),ControlsLookup[Controls],0)),0)>IFERROR(INDEX(ControlsLookup[Rank],MATCH(RIGHT(ProjectInfoTable[[#This Row],[Existing Equipment]],LEN(ProjectInfoTable[[#This Row],[Existing Equipment]])-FIND(\"]\",ProjectInfoTable[[#This Row],[Existing Equipment]],1)-3),ControlsLookup[Controls],0)),0),INDEX(ControlsLookup[Controls Type],MATCH(LEFT(ProjectInfoTable[[#This Row],[Existing Equipment]],FIND(\":\",ProjectInfoTable[[#This Row],[Existing Equipment]],1)-1)&\"_\"&RIGHT(ProjectInfoTable[[#This Row],[Proposed Equipment]],LEN(ProjectInfoTable[[#This Row],[Proposed Equipment]])-FIND(\"]\",ProjectInfoTable[[#This Row],[Proposed Equipment]],1)-3),ControlsLookup[Controls Concatenate],0)),\"None\"),INDIRECT(\"EquipmentTable_\"&\"Retrofit_\"&ProjectState&\"[#Headers]\"),0)),INDEX(INDIRECT(\"EquipmentTable_\"&IF(ProjectType=\"Retrofit\",\"Retrofit_\",\"NCMR_\")&ProjectState&\"[#All]\"),MATCH(LEFT(ProjectInfoTable[[#This Row],[Proposed Equipment]],FIND(\"[\",ProjectInfoTable[[#This Row],[Proposed Equipment]],1)-2),INDIRECT(\"EquipmentTable_\"&\"Retrofit_\"&ProjectState&\"[equipmentProposed]\"),0)+1,MATCH(\"measureRetrofit_\"&LEFT(ProjectInfoTable[[#This Row],[Existing Equipment]],FIND(\":\",ProjectInfoTable[[#This Row],[Existing Equipment]],1)-1)&\"_\"&IF(IFERROR(INDEX(ControlsLookup[Rank],MATCH(RIGHT(ProjectInfoTable[[#This Row],[Proposed Equipment]],LEN(ProjectInfoTable[[#This Row],[Proposed Equipment]])-FIND(\"]\",ProjectInfoTable[[#This Row],[Proposed Equipment]],1)-3),ControlsLookup[Controls],0)),0)>IFERROR(INDEX(ControlsLookup[Rank],MATCH(RIGHT(ProjectInfoTable[[#This Row],[Existing Equipment]],LEN(ProjectInfoTable[[#This Row],[Existing Equipment]])-FIND(\"]\",ProjectInfoTable[[#This Row],[Existing Equipment]],1)-3),ControlsLookup[Controls],0)),0),INDEX(ControlsLookup[Controls Type],MATCH(LEFT(ProjectInfoTable[[#This Row],[Existing Equipment]],FIND(\":\",ProjectInfoTable[[#This Row],[Existing Equipment]],1)-1)&\"_\"&RIGHT(ProjectInfoTable[[#This Row],[Proposed Equipment]],LEN(ProjectInfoTable[[#This Row],[Proposed Equipment]])-FIND(\"]\",ProjectInfoTable[[#This Row],[Proposed Equipment]],1)-3),ControlsLookup[Controls Concatenate],0)),\"None\"),INDIRECT(\"EquipmentTable_\"&IF(ProjectType=\"Retrofit\",\"Retrofit_\",\"NCMR_\")&ProjectState&\"[#Headers]\"),0))),INDEX(INDIRECT(\"EquipmentTable_\"&IF(ProjectType=\"Retrofit\",\"Retrofit_\",\"NCMR_\")&ProjectState&\"[#All]\"),MATCH(LEFT(ProjectInfoTable[[#This Row],[Proposed Equipment]],FIND(\"[\",ProjectInfoTable[[#This Row],[Proposed Equipment]],1)-2),INDIRECT(\"EquipmentTable_\"&IF(ProjectType=\"Retrofit\",\"Retrofit_\",\"NCMR_\")&ProjectState&\"[equipmentProposed]\"),0)+1,MATCH(\"measureRetrofit_\"&IF(AND(SBDEligible=\"Yes\",ISNUMBER(FIND(\"SBE\",ProjectInfoTable[[#This Row],[Proposed Equipment]]))),\"SBE\",LEFT(ProjectInfoTable[[#This Row],[Existing Equipment]],FIND(\":\",ProjectInfoTable[[#This Row],[Existing Equipment]],1)-1)&\"_\"&IF(IFERROR(INDEX(ControlsLookup[Rank],MATCH(RIGHT(ProjectInfoTable[[#This Row],[Proposed Equipment]],LEN(ProjectInfoTable[[#This Row],[Proposed Equipment]])-FIND(\"]\",ProjectInfoTable[[#This Row],[Proposed Equipment]],1)-3),ControlsLookup[Controls],0)),0)>IFERROR(INDEX(ControlsLookup[Rank],MATCH(RIGHT(ProjectInfoTable[[#This Row],[Existing Equipment]],LEN(ProjectInfoTable[[#This Row],[Existing Equipment]])-FIND(\"]\",ProjectInfoTable[[#This Row],[Existing Equipment]],1)-3),ControlsLookup[Controls],0)),0),INDEX(ControlsLookup[Controls Type],MATCH(LEFT(ProjectInfoTable[[#This Row],[Existing Equipment]],FIND(\":\",ProjectInfoTable[[#This Row],[Existing Equipment]],1)-1)&\"_\"&RIGHT(ProjectInfoTable[[#This Row],[Proposed Equipment]],LEN(ProjectInfoTable[[#This Row],[Proposed Equipment]])-FIND(\"]\",ProjectInfoTable[[#This Row],[Proposed Equipment]],1)-3),ControlsLookup[Controls Concatenate],0)),\"None\")),INDIRECT(\"EquipmentTable_\"&\"Retrofit_\"&ProjectState&\"[#Headers]\"),0))),\"Non-eligible fixture - Retrofit - \"&ProjectState),IFERROR(INDEX(INDIRECT(\"EquipmentTable_\"&IF(SiteSpecificOverride=\"Yes\",\"PostPurchase_\",\"Retrofit_\")&ProjectState&\"[#All]\"),MATCH(LEFT(ProjectInfoTable[[#This Row],[Proposed Equipment]],FIND(\"[\",ProjectInfoTable[[#This Row],[Proposed Equipment]],1)-2),INDIRECT(\"EquipmentTable_\"&IF(SiteSpecificOverride=\"Yes\",\"PostPurchase_\",\"Retrofit_\")&ProjectState&\"[equipmentProposed]\"),0)+1,MATCH(\"measureRetrofit_\"&IF(AND(SBDEligible=\"Yes\",ISNUMBER(FIND(\"SBE\",ProjectInfoTable[[#This Row],[Proposed Equipment]]))),\"SBE\",LEFT(ProjectInfoTable[[#This Row],[Existing Equipment]],FIND(\":\",ProjectInfoTable[[#This Row],[Existing Equipment]],1)-1)&\"_\"&IF(IFERROR(INDEX(ControlsLookup[Rank],MATCH(RIGHT(ProjectInfoTable[[#This Row],[Proposed Equipment]],LEN(ProjectInfoTable[[#This Row],[Proposed Equipment]])-FIND(\"]\",ProjectInfoTable[[#This Row],[Proposed Equipment]],1)-3),ControlsLookup[Controls],0)),0)>IFERROR(INDEX(ControlsLookup[Rank],MATCH(RIGHT(ProjectInfoTable[[#This Row],[Existing Equipment]],LEN(ProjectInfoTable[[#This Row],[Existing Equipment]])-FIND(\"]\",ProjectInfoTable[[#This Row],[Existing Equipment]],1)-3),ControlsLookup[Controls],0)),0),INDEX(ControlsLookup[Controls Type],MATCH(LEFT(ProjectInfoTable[[#This Row],[Existing Equipment]],FIND(\":\",ProjectInfoTable[[#This Row],[Existing Equipment]],1)-1)&\"_\"&RIGHT(ProjectInfoTable[[#This Row],[Proposed Equipment]],LEN(ProjectInfoTable[[#This Row],[Proposed Equipment]])-FIND(\"]\",ProjectInfoTable[[#This Row],[Proposed Equipment]],1)-3),ControlsLookup[Controls Concatenate],0)),\"None\")),INDIRECT(\"EquipmentTable_\"&IF(SiteSpecificOverride=\"Yes\",\"PostPurchase_\",\"Retrofit_\")&ProjectState&\"[#Headers]\"),0)),\"Non-eligible fixture - Retrofit - \"&ProjectState)))),IFERROR(INDEX(INDIRECT(\"EquipmentTable_\"&\"NCMR_\"&ProjectState),MATCH(RIGHT(LEFT(ProjectInfoTable[[#This Row],[Proposed Equipment]],FIND(\" (\",ProjectInfoTable[[#This Row],[Proposed Equipment]],1)-1),LEN(LEFT(ProjectInfoTable[[#This Row],[Proposed Equipment]],FIND(\" (\",ProjectInfoTable[[#This Row],[Proposed Equipment]],1)-2))-FIND(\":\",ProjectInfoTable[[#This Row],[Proposed Equipment]],1)),INDIRECT(\"EquipmentTable_\"&\"NCMR_\"&ProjectState&\"[equipmentProposed]\"),0),MATCH(\"measureNCMR_\"&LEFT(ProjectInfoTable[[#This Row],[Proposed Equipment]],FIND(\":\",ProjectInfoTable[[#This Row],[Proposed Equipment]],1)-1)&\"_\"&IF(LEN(ProjectInfoTable[[#This Row],[Proposed Equipment]])>FIND(\"]\",ProjectInfoTable[[#This Row],[Proposed Equipment]]),INDEX(ControlsLookup[Controls Type],MATCH(LEFT(ProjectInfoTable[[#This Row],[Proposed Equipment]],FIND(\":\",ProjectInfoTable[[#This Row],[Proposed Equipment]],1)-1)&\"_\"&RIGHT(ProjectInfoTable[[#This Row],[Proposed Equipment]],LEN(ProjectInfoTable[[#This Row],[Proposed Equipment]])-FIND(\"]\",ProjectInfoTable[[#This Row],[Proposed Equipment]],1)-3),ControlsLookup[Controls Concatenate],0)),\"None\"),INDIRECT(\"EquipmentTable_\"&\"NCMR_\"&ProjectState&\"[#Headers]\"),0)),\"Non-eligible fixture - NCMR - \"&ProjectState)),\"[NAMESUB]\",ProjectInfoTable[[#This Row],[Measure Name Sub]]),\"Non-eligible fixture - Retrofit - \"&ProjectState))","v":""},{"$f":"IF(ISNUMBER(SEARCH(\"Case\",ProjectInfoTable[[#This Row],[Fixture Measure]])),CONCATENATE(ProjectInfoTable[[#This Row],[Fixture Measure]],ProjectInfoTable[[#This Row],[No. of TRL Units]],ProjectInfoTable[[#This Row],[Quantity]]),\"\")","v":""},{"$f":"IF(ProjectInfoTable[[#This Row],[Proposed Equipment]]=\"\",\"\",\nIF(AND(ProjectState = \"UT\",ISNUMBER(FIND(\" TLED \",ProjectInfoTable[[#This Row],[Proposed Equipment]]))),\nIF(VALUE(ProjectInfoTable[[#This Row],[Lamp W (Proposed)]])<20,\"< 20 W\",\nIF(AND(VALUE(ProjectInfoTable[[#This Row],[Lamp W (Proposed)]])<=39,VALUE(ProjectInfoTable[[#This Row],[Lamp W (Proposed)]])>=20),\">= 20 W and <= 39 W\",)),\n\nIF(AND(ProjectType=\"Retrofit\",OR(ISNUMBER(FIND(\"Retrofit Kit\",ProjectInfoTable[[#This Row],[Proposed Equipment]])),ISNUMBER(FIND(\"Fixture\",ProjectInfoTable[[#This Row],[Proposed Equipment]]))),OR(ISNUMBER(FIND(\"Exterior\",ProjectInfoTable[[#This Row],[Existing Equipment]])),ISNUMBER(FIND(\"Street\",ProjectInfoTable[[#This Row],[Existing Equipment]])))),\nIF(ProjectInfoTable[[#This Row],[Fixture W (Proposed)]]<50,\"< 50 W\",\nIF(AND(ProjectInfoTable[[#This Row],[Fixture W (Proposed)]]<90,ProjectInfoTable[[#This Row],[Fixture W (Proposed)]]>=50),\">= 50 W and < 90 W\",\nIF(AND(ProjectInfoTable[[#This Row],[Fixture W (Proposed)]]<135,ProjectInfoTable[[#This Row],[Fixture W (Proposed)]]>=90),\">= 90 W and < 135 W\",\nIF(AND(ProjectInfoTable[[#This Row],[Fixture W (Proposed)]]<220,ProjectInfoTable[[#This Row],[Fixture W (Proposed)]]>=135),\">= 135 W and < 220 W\",\nIF(ProjectInfoTable[[#This Row],[Fixture W (Proposed)]]>=220,\">= 220 W\"))))),\"\")))","v":""},{"$f":"IFERROR(INDEX(INDIRECT(\"MeasureTable_\" & ProjectState & \"[Measure Reference Number]\"),MATCH(ProjectInfoTable[[#This Row],[Fixture Measure]],INDIRECT(\"MeasureTable_\" &ProjectState&\"[Measure Name]\"),0)),\"\")","v":""},{"$f":"IFERROR(\n    _xlfn.LET(\n        _xlpm.filteredVersions,\n            _xlfn._xlws.FILTER(\n                INDIRECT(\"MeasureTable_\" & ProjectState & \"[Version Number]\"),\n                (INDIRECT(\"MeasureTable_\" & ProjectState & \"[Measure Reference Number]\") = ProjectInfoTable[[#This Row],[Fixture Measure Reference Number]]) *\n                (INDIRECT(\"MeasureTable_\" & ProjectState & \"[Eligible Measure]\") = TRUE)\n            ),\n        INDEX(_xlpm.filteredVersions, 1)\n    ),\n    \"\"\n)","v":""},{"$f":"IFERROR(\n  _xlfn.LET(\n    _xlpm.refRange, INDIRECT(\"MeasureTable_\" & ProjectState & \"[Measure Reference Number]\"),\n    _xlpm.eligibleRange, INDIRECT(\"MeasureTable_\" & ProjectState & \"[Eligible Measure]\"),\n    _xlpm.countTrue, SUMPRODUCT(--(_xlpm.refRange = ProjectInfoTable[[#This Row],[Fixture Measure Reference Number]]), --(_xlpm.eligibleRange = TRUE)),\n    _xlpm.countNonBlank, SUMPRODUCT(--(_xlpm.refRange = ProjectInfoTable[[#This Row],[Fixture Measure Reference Number]]), --(_xlpm.eligibleRange <> \"\")),\n    IF(_xlpm.countNonBlank = 0, \"\", IF(_xlpm.countTrue >= 1, TRUE, FALSE))\n  ),\n  \"\"\n)","v":""},{"$f":"IFERROR(VALUE(INDEX(INDIRECT(\"MeasureTable_\" & ProjectState & \"[CustomerIncentiveDollarperunit]\"),MATCH(ProjectInfoTable[[#This Row],[Fixture Measure]]&\" | TRUE\",INDIRECT(\"MeasureTable_\" &ProjectState&\"[MeasureEligibleConcatenate]\"),0))),\"\")","v":""},{"$f":"IFERROR(INDEX(INDIRECT(\"MeasureTable_\"&ProjectState&\"[SiteSpecificCalculation]\"),MATCH(ProjectInfoTable[[#This Row],[Fixture Measure]]&\" | TRUE\",INDIRECT(\"MeasureTable_\" &ProjectState&\"[MeasureEligibleConcatenate]\"),0)),\"\")","v":""},{"$f":"IFERROR(INDEX(INDIRECT(\"MeasureTable_\"&ProjectState&\"[GrossIncrementalAnnualElectricSavings]\"),MATCH(ProjectInfoTable[[#This Row],[Fixture Measure]]&\" | TRUE\",INDIRECT(\"MeasureTable_\" &ProjectState&\"[MeasureEligibleConcatenate]\"),0)),\"\")","v":""},{"$f":"IFERROR(INDEX(INDIRECT(\"MeasureTable_\"&ProjectState&\"[GrossAverageMonthlyDemandReduction]\"),MATCH(ProjectInfoTable[[#This Row],[Fixture Measure]]&\" | TRUE\",INDIRECT(\"MeasureTable_\" &ProjectState&\"[MeasureEligibleConcatenate]\"),0)),\"\")","v":""},{"$f":"IF(ProjectInfoTable[[#This Row],[Fixture Measure]]=\"\",\"\",IF(NOT(ISNUMBER(FIND(\"Site-Specific - Downstream\",ProjectInfoTable[[#This Row],[Fixture Measure]]))),\"\",\nIF(ISNUMBER(MATCH(SUBSTITUTE(ProjectInfoTable[[#This Row],[Fixture Measure]],\"Site-Specific - Downstream - v2\",\"Mid Market\"),INDIRECT(\"MeasureTable_\"&ProjectState&\"[Measure Name]\"),0)),\nSUBSTITUTE(ProjectInfoTable[[#This Row],[Fixture Measure]],\"Site-Specific - Downstream - v2\",\"Mid Market\"),\nSUBSTITUTE(ProjectInfoTable[[#This Row],[Fixture Measure]],\"Site-Specific - Downstream\",\"Mid Market\"))\n))","v":""},{"$f":"IF(ProjectInfoTable[[#This Row],[Midstream Measure Name]]=\"\",\"\",IFERROR(INDEX(INDIRECT(\"MeasureTable_\"&ProjectState&\"[GrossIncrementalAnnualElectricSavings ]\"),MATCH(ProjectInfoTable[[#This Row],[Midstream Measure Name]]&\" | TRUE\",INDIRECT(\"MeasureTable_\" &ProjectState&\"[MeasureEligibleConcatenate]\"),0)),\"\"))","v":""},{"$f":"IF(ProjectInfoTable[[#This Row],[Midstream Measure Name]]=\"\",\"\",IFERROR(INDEX(INDIRECT(\"MeasureTable_\"&ProjectState&\"[GrossAverage onthly emand eduction]\"),MATCH(ProjectInfoTable[[#This Row],[Midstream Measure Name]]&\" | TRUE\",INDIRECT(\"MeasureTable_\" &ProjectState&\"[MeasureEligibleConcatenate]\"),0)),\"\"))","v":""},{"$f":"IFERROR(INDEX(INDIRECT(\"MeasureTable_\"&ProjectState&\"[IncrementalMeasureCost]\"),MATCH(ProjectInfoTable[[#This Row],[Fixture Measure]]&\" | TRUE\",INDIRECT(\"MeasureTable_\" &ProjectState&\"[MeasureEligibleConcatenate]\"),0)),\"\")","v":""},{"$f":"IF(ProjectInfoTable[[#This Row],[Fixture Measure]]=\"\",\"\",IF(AND(ProjectState=\"UT\",ProjectInfoTable[[#This Row],[Measure Selection]]=\"\"),0,\nIF(OR(ISNUMBER(FIND(\"SBDI\",ProjectInfoTable[[#This Row],[Fixture Measure]])),ISNUMBER(FIND(\"Small Bu\",ProjectInfoTable[[#This Row],[Fixture Measure]]))),ProjectInfoTable[[#This Row],[Quantity (Proposed)]]*ProjectInfoTable[[#This Row],[Lamps (Proposed)]],\nIF(OR(ProjectInfoTable[[#This Row],[TRL Unit]]=\"Measure\",ProjectInfoTable[[#This Row],[TRL Unit]]=\"Linear ft.\"),IF(OR(ISNUMBER(FIND(\"Lamp\",ProjectInfoTable[[#This Row],[Fixture Measure]],1)),ISNUMBER(FIND(\"Relamp\",ProjectInfoTable[[#This Row],[Fixture Measure]],1)),ISNUMBER(FIND(\"Relamp\",ProjectInfoTable[[#This Row],[Proposed Equipment]],1))),ProjectInfoTable[[#This Row],[Quantity (Proposed)]]*ProjectInfoTable[[#This Row],[Lamps (Proposed)]],ProjectInfoTable[[#This Row],[Quantity (Proposed)]]),1))))","v":""},{"$f":"IF(ProjectInfoTable[[#This Row],[Fixture Measure]]=\"\",\"\",IF(AND(ProjectState=\"UT\",ProjectInfoTable[[#This Row],[Measure Selection]]=\"\"),0,\nIF(OR(ISNUMBER(FIND(\"SBDI\",ProjectInfoTable[[#This Row],[Fixture Measure]])),ISNUMBER(FIND(\"Small Bu\",ProjectInfoTable[[#This Row],[Fixture Measure]]))),1,\nIF(ISNUMBER(FIND(\"Controls Only\",ProjectInfoTable[[#This Row],[Proposed Equipment]],1)),IF(OR(ProjectType <> \"Retrofit\",ProjectInfoTable[[#This Row],[Space W (Proposed)]]>0),ProjectInfoTable[[#This Row],[Space W (Proposed)]],ProjectInfoTable[[#This Row],[Space W (Existing, Stipulated)]]),\nIF(TRIM(UPPER(ProjectInfoTable[[#This Row],[TRL Unit]]))=\"LINEAR FT.\",IF(OR(ISNUMBER(FIND(\"Marquee\",ProjectInfoTable[[#This Row],[Proposed Equipment]],1)),ISNUMBER(FIND(\"Cabinet\",ProjectInfoTable[[#This Row],[Proposed Equipment]],1))),VALUE(RIGHT(LEFT(ProjectInfoTable[[#This Row],[Existing Equipment]],FIND(\"LF \",ProjectInfoTable[[#This Row],[Existing Equipment]],1)-1),LEN(LEFT(ProjectInfoTable[[#This Row],[Existing Equipment]],FIND(\"LF \",ProjectInfoTable[[#This Row],[Existing Equipment]],1)-1))-FIND(\"[\",ProjectInfoTable[[#This Row],[Existing Equipment]],1))),VALUE(RIGHT(LEFT(ProjectInfoTable[[#This Row],[Proposed Equipment]],FIND(\"LF \",ProjectInfoTable[[#This Row],[Proposed Equipment]],1)-1),LEN(LEFT(ProjectInfoTable[[#This Row],[Proposed Equipment]],FIND(\"LF \",ProjectInfoTable[[#This Row],[Proposed Equipment]],1)-1))-FIND(\"[\",ProjectInfoTable[[#This Row],[Proposed Equipment]],1)))),\nIF(TRIM(UPPER(ProjectInfoTable[[#This Row],[TRL Unit]]))=\"KWH\",IF(ProjectInfoTable[[#This Row],[Fixture Measure kWh/yr Savings (Stipulated)]]=0,0,ROUND(ProjectInfoTable[[#This Row],[Fixture Measure kWh/yr Savings (Stipulated)]],2)),\nIF(TRIM(UPPER(ProjectInfoTable[[#This Row],[TRL Unit]]))=\"WATT REDUCED\",IF(ProjectInfoTable[[#This Row],[Fixture Measure kWh/yr Savings (Stipulated)]]=0,0,ROUND(ProjectInfoTable[[#This Row],[Space W (Existing, Stipulated)]]-ProjectInfoTable[[#This Row],[Space W (Proposed)]],2)),\nIF(TRIM(UPPER(ProjectInfoTable[[#This Row],[TRL Unit]]))=\"FIXTURE WATTAGE\",ProjectInfoTable[[#This Row],[Space W (Proposed)]],1))))))))","v":""},{"$f":"IFERROR(IF(OR(ISNUMBER(FIND(\"SBDI\",ProjectInfoTable[[#This Row],[Fixture Measure]])),ISNUMBER(FIND(\"Small Bu\",ProjectInfoTable[[#This Row],[Fixture Measure]]))),0,INDEX(INDIRECT(\"MeasureTable_\"&ProjectState&\"[Unit]\"),MATCH(ProjectInfoTable[[#This Row],[Fixture Measure]]&\" | TRUE\",INDIRECT(\"MeasureTable_\" &ProjectState&\"[MeasureEligibleConcatenate]\"),0))),\"\")","v":""},{"$f":"IF(ProjectInfoTable[[#This Row],[Fixture Measure]]=\"\",\"\",IF(OR(ISNUMBER(FIND(\"Lamp(s)\",ProjectInfoTable[[#This Row],[Fixture Measure]],1)),ISNUMBER(FIND(\"Relamp\",ProjectInfoTable[[#This Row],[Proposed Equipment]],1))),\"Lamp(s)\",\"Fixture(s)\"))","v":""},{"$f":"IFERROR(INDEX(INDIRECT(\"MeasureTable_\"&ProjectState&\"[ProjectCapPercent]\"),MATCH(ProjectInfoTable[[#This Row],[Fixture Measure]]&\" | TRUE\",INDIRECT(\"MeasureTable_\" &ProjectState&\"[MeasureEligibleConcatenate]\"),0)),\"\")","v":""},{"$f":"IF(OR(ProjectInfoTable[[#This Row],[Control Measure]]=\"\",ProjectInfoTable[[#This Row],[OpSch]]=\"\",ProjectInfoTable[[#This Row],[Eligible Control Measure]]<>TRUE),\"\",IF(AND(OR(ProjectType=\"New Construction\",ProjectType=\"Major Renovation\"),LPDCodeToProposed<0.1,ISNUMBER(FIND(\"Interior\",ProjectInfoTable[[#This Row],[Proposed Equipment]],1))),0,IFERROR(ProjectInfoTable[[#This Row],[Control Incentives Per Unit]]*ProjectInfoTable[[#This Row],[Control Quantity]]*ProjectInfoTable[[#This Row],[Control No. of TRL Units]],\"TRL Error\")))","v":""},{"$f":"IF(OR(ProjectInfoTable[[#This Row],[Control Measure]]=\"\",ProjectInfoTable[[#This Row],[OpSch]]=\"\",ProjectInfoTable[[#This Row],[Eligible Control Measure]]<>TRUE),\"\",IF(AND(ProjectType=\"Retrofit\",ProjectState=\"UT\",ISNUMBER(FIND(\"Post Purchase\",ProjectInfoTable[[#This Row],[Control Measure]],1))),\n\nIFERROR(MAX(MIN(ProjectInfoTable[[#This Row],[Control Incentives (pre-capping)]],ProjectInfoTable[[#This Row],[Control Cost (Allocated)]]*0.7),0),0),\n\nIF(ProjectType=\"Retrofit\",IF(ISNUMBER(FIND(\"Post Purchase\",ProjectInfoTable[[#This Row],[Control Measure]],1)),ProjectInfoTable[[#This Row],[Control Incentives (pre-capping)]],IFERROR($BI$3/$BH$3*ProjectInfoTable[[#This Row],[Control Incentives (pre-capping)]],\"\")),\n\nIF(ISNUMBER(FIND(\"Interior\",ProjectInfoTable[[#This Row],[Proposed Equipment]],1)),IF(LPDCodeToProposed>0.1,ProjectInfoTable[[#This Row],[Control Incentives (pre-capping)]],0),ProjectInfoTable[[#This Row],[Control Incentives (pre-capping)]]))))","v":""},{"$f":"IF(OR(ProjectInfoTable[[#This Row],[Control Incentives Per Unit]]=\"\",ProjectInfoTable[[#This Row],[Control TRL Unit]]=\"\"),\"\",IF(ProjectInfoTable[[#This Row],[Eligible Control Measure]]<>TRUE,\"Invalid Effective Date\",TEXT(ProjectInfoTable[[#This Row],[Control Incentives Per Unit]],\"$#,##0.00\")&\" / \"&ProjectInfoTable[[#This Row],[Control TRL Unit]]))","v":""},{"$f":"IF(ISNUMBER(FIND(\"SBE\",ProjectInfoTable[[#This Row],[Proposed Equipment]])),\"\",\n\nIF(LEN(ProjectInfoTable[[#This Row],[Proposed Equipment]])>\n\nIFERROR(FIND(\"]\",ProjectInfoTable[[#This Row],[Proposed Equipment]],1),0),\nSUBSTITUTE(\nIF(OR(ProjectInfoTable[[#This Row],[Control Method]]=\"separate\",ISNUMBER(FIND(\"Midstream\",ProjectInfoTable[[#This Row],[Fixture Measure]],1)),ISNUMBER(FIND(\"Midstream\",ProjectInfoTable[[#This Row],[Equipment Category]],1)),ISNUMBER(FIND(\"Prescriptive\",ProjectInfoTable[[#This Row],[Equipment Category]],1)),ISNUMBER(FIND(\"LED\",ProjectInfoTable[[#This Row],[Fixture Measure]],1)),ISNUMBER(FIND(\"LED Case\",ProjectInfoTable[[#This Row],[Fixture Measure]],1)),ISNUMBER(FIND(\"LED Decorative - Retrofit - WA\",ProjectInfoTable[[#This Row],[Fixture Measure]],1)),ISNUMBER(FIND(\"Lamp\",ProjectInfoTable[[#This Row],[Fixture Measure]],1)),ISNUMBER(FIND(\"Relamp\",ProjectInfoTable[[#This Row],[Fixture Measure]],1)),ISNUMBER(FIND(\"Wall Pack\",ProjectInfoTable[[#This Row],[Fixture Measure]],1)),ISNUMBER(FIND(\"Controls Only\",ProjectInfoTable[[#This Row],[Proposed Equipment]],1)),ISNUMBER(FIND(\"Re-Commissioning\",ProjectInfoTable[[#This Row],[Proposed Equipment]],1)),\n\nAND(OR(ISNUMBER(FIND(\"Exterior:\",ProjectInfoTable[[#This Row],[Proposed Equipment]],1)),ISNUMBER(FIND(\"Street:\",ProjectInfoTable[[#This Row],[Proposed Equipment]],1))),OR(ProjectState=\"ID\",ProjectState=\"UT\",ProjectState=\"WY\"))),\n\nIF(IFERROR(INDEX(ControlsLookup[],MATCH(IF(ProjectType=\"Retrofit\",LEFT(ProjectInfoTable[[#This Row],[Existing Equipment]],FIND(\":\",ProjectInfoTable[[#This Row],[Existing Equipment]],1)-1),LEFT(ProjectInfoTable[[#This Row],[Proposed Equipment]],FIND(\":\",ProjectInfoTable[[#This Row],[Proposed Equipment]],1)-1))&\"_\"&RIGHT(ProjectInfoTable[[#This Row],[Proposed Equipment]],LEN(ProjectInfoTable[[#This Row],[Proposed Equipment]])-FIND(\"]\",ProjectInfoTable[[#This Row],[Proposed Equipment]],1)-3),ControlsLookup[Controls Concatenate],0),MATCH(\n\nIF(ProjectType=\"Retrofit\",\"ControlMeasure_\",\"NCMRControlMeasure_\")&ProjectState,ControlsLookup[#Headers],0)),\"\")=0,\"\",\n\nIFERROR(INDEX(ControlsLookup[],MATCH(IF(ProjectType=\"Retrofit\",LEFT(ProjectInfoTable[[#This Row],[Existing Equipment]],FIND(\":\",ProjectInfoTable[[#This Row],[Existing Equipment]],1)-1),LEFT(ProjectInfoTable[[#This Row],[Proposed Equipment]],FIND(\":\",ProjectInfoTable[[#This Row],[Proposed Equipment]],1)-1))&\"_\"&RIGHT(ProjectInfoTable[[#This Row],[Proposed Equipment]],LEN(ProjectInfoTable[[#This Row],[Proposed Equipment]])-FIND(\"]\",ProjectInfoTable[[#This Row],[Proposed Equipment]],1)-3),ControlsLookup[Controls Concatenate],0),MATCH(\n\nIF(ProjectType=\"Retrofit\",\"ControlMeasure_\",\"NCMRControlMeasure_\")&ProjectState&IF(ProjectState=\"UT\",SegmentTag,\"\"),ControlsLookup[#Headers],0)),\"\")),\"\"),\"[NAMESUB]\",ProjectInfoTable[[#This Row],[Control Measure Name Sub]]),\"\"))","v":""},{"$f":"IF(ProjectInfoTable[[#This Row],[Proposed Equipment]]=\"\",\"\",IF(AND(ProjectState=\"UT\",ProjectType=\"Retrofit\",ISNUMBER(FIND(\"Re-Commissioning\",ProjectInfoTable[[#This Row],[Proposed Equipment]]))),\nIF(ProjectRecommissioning=\"only recommissioning\",\"Commissioning Only\",\"Commissioning w/ Lighting Upgrade\"),\"\"))","v":""},{"$f":"IFERROR(INDEX(INDIRECT(\"MeasureTable_\" & ProjectState & \"[Measure Reference Number]\"),MATCH(ProjectInfoTable[[#This Row],[Control Measure]],INDIRECT(\"MeasureTable_\" &ProjectState&\"[Measure Name]\"),0)),\"\")","v":""},{"$f":"IFERROR(\n    _xlfn.LET(\n        _xlpm.filteredVersions,\n            _xlfn._xlws.FILTER(\n                INDIRECT(\"MeasureTable_\" & ProjectState & \"[Version Number]\"),\n                (INDIRECT(\"MeasureTable_\" & ProjectState & \"[Measure Reference Number]\") = ProjectInfoTable[[#This Row],[Control Measure Reference Number]]) *\n                (INDIRECT(\"MeasureTable_\" & ProjectState & \"[Eligible Measure]\") = TRUE)\n            ),\n        INDEX(_xlpm.filteredVersions, 1)\n    ),\n    \"\"\n)","v":""},{"$f":"IFERROR(\n  _xlfn.LET(\n    _xlpm.refRange, INDIRECT(\"MeasureTable_\" & ProjectState & \"[Measure Reference Number]\"),\n    _xlpm.eligibleRange, INDIRECT(\"MeasureTable_\" & ProjectState & \"[Eligible Measure]\"),\n    _xlpm.countTrue, SUMPRODUCT(--(_xlpm.refRange = ProjectInfoTable[[#This Row],[Control Measure Reference Number]]), --(_xlpm.eligibleRange = TRUE)),\n    _xlpm.countNonBlank, SUMPRODUCT(--(_xlpm.refRange = ProjectInfoTable[[#This Row],[Control Measure Reference Number]]), --(_xlpm.eligibleRange <> \"\")),\n    IF(_xlpm.countNonBlank = 0, \"\", IF(_xlpm.countTrue >= 1, TRUE, FALSE))\n  ),\n  \"\"\n)","v":""},{"$f":"IF(ProjectInfoTable[[#This Row],[Proposed Equipment]]=\"\",\"\",IFERROR(INDEX(INDIRECT(\"EquipmentTable_\"&IF(ProjectType=\"Retrofit\",\"Retrofit_\",\"NCMR_\")&ProjectState&\"[controlMethod]\"),MATCH(LEFT(ProjectInfoTable[[#This Row],[Proposed Equipment]],FIND(\"[\",ProjectInfoTable[[#This Row],[Proposed Equipment]],1)-2),INDIRECT(\"EquipmentTable_\"&IF(ProjectType=\"Retrofit\",\"Retrofit_\",\"NCMR_\")&ProjectState&\"[equipmentProposed]\"),0)),\"\"))","v":""},{"$f":"IFERROR(VALUE(INDEX(INDIRECT(\"MeasureTable_\" & ProjectState & \"[CustomerIncentiveDollarperunit]\"),MATCH(ProjectInfoTable[[#This Row],[Control Measure]]&\" | TRUE\",INDIRECT(\"MeasureTable_\"&ProjectState&\"[MeasureEligibleConcatenate]\"),0))),\"\")","v":""},{"$f":"IFERROR(INDEX(INDIRECT(\"MeasureTable_\"&ProjectState&\"[SiteSpecificCalculation]\"),MATCH(ProjectInfoTable[[#This Row],[Control Measure]]&\" | TRUE\",INDIRECT(\"MeasureTable_\"&ProjectState&\"[MeasureEligibleConcatenate]\"),0)),\"\")","v":""},{"$f":"IFERROR(INDEX(INDIRECT(\"MeasureTable_\"&ProjectState&\"[GrossIncrementalAnnualElectricSavings ]\"),MATCH(ProjectInfoTable[[#This Row],[Control Measure]]&\" | TRUE\",INDIRECT(\"MeasureTable_\"&ProjectState&\"[MeasureEligibleConcatenate]\"),0)),\"\")","v":""},{"$f":"IFERROR(INDEX(INDIRECT(\"MeasureTable_\"&ProjectState&\"[GrossAverage onthly emand eduction]\"),MATCH(ProjectInfoTable[[#This Row],[Control Measure]]&\" | TRUE\",INDIRECT(\"MeasureTable_\"&ProjectState&\"[MeasureEligibleConcatenate]\"),0)),\"\")","v":""},{"$f":"IFERROR(INDEX(INDIRECT(\"MeasureTable_\"&ProjectState&\"[IncrementalMeasureCost]\"),MATCH(ProjectInfoTable[[#This Row],[Control Measure]]&\" | TRUE\",INDIRECT(\"MeasureTable_\"&ProjectState&\"[MeasureEligibleConcatenate]\"),0)),\"\")","v":""},{"$f":"IF(ProjectInfoTable[[#This Row],[Control Measure]]=\"\",\"\",IF(OR(ProjectInfoTable[[#This Row],[Control TRL Unit]]=\"Measure\",ProjectInfoTable[[#This Row],[Control TRL Unit]]=\"Linear ft.\"),IF(OR(ISNUMBER(FIND(\"Midstream\",ProjectInfoTable[[#This Row],[Control Measure]],1)),ISNUMBER(FIND(\"Lamp\",ProjectInfoTable[[#This Row],[Control Measure]],1))),ProjectInfoTable[[#This Row],[Quantity (Proposed)]]*ProjectInfoTable[[#This Row],[Lamps (Proposed)]],ProjectInfoTable[[#This Row],[Quantity (Proposed)]]),1))","v":""},{"$f":"IF(ProjectInfoTable[[#This Row],[Control Measure]]=\"\",\"\",IF(ISNUMBER(FIND(\"LF \",ProjectInfoTable[[#This Row],[Proposed Equipment]],1)),VALUE(RIGHT(LEFT(ProjectInfoTable[[#This Row],[Proposed Equipment]],FIND(\"LF \",ProjectInfoTable[[#This Row],[Proposed Equipment]],1)-1),LEN(LEFT(ProjectInfoTable[[#This Row],[Proposed Equipment]],FIND(\"LF \",ProjectInfoTable[[#This Row],[Proposed Equipment]],1)-1))-FIND(\"[\",ProjectInfoTable[[#This Row],[Proposed Equipment]],1))),IF(TRIM(UPPER(ProjectInfoTable[[#This Row],[Control TRL Unit]]))=\"WATT CONTROLLED\",IF(ISNUMBER(FIND(\"Controls Only\",ProjectInfoTable[[#This Row],[Proposed Equipment]],1)),IF(OR(ProjectType <> \"Retrofit\",ProjectInfoTable[[#This Row],[Space W (Proposed)]]>0),ProjectInfoTable[[#This Row],[Space W (Proposed)]],ProjectInfoTable[[#This Row],[Space W (Existing, Stipulated)]]),ProjectInfoTable[[#This Row],[Space W (Proposed)]]),IF(TRIM(UPPER(ProjectInfoTable[[#This Row],[Control TRL Unit]]))=\"KWH\",IF(ProjectInfoTable[[#This Row],[Control Measure kWh/yr Savings (Stipulated)]]=0,0,ROUND(ProjectInfoTable[[#This Row],[Control Measure kWh/yr Savings (Stipulated)]],2)),1))))","v":""},{"$f":"IFERROR(IF(LEN(ProjectInfoTable[[#This Row],[Proposed Equipment]])-(FIND(\"]\",ProjectInfoTable[[#This Row],[Proposed Equipment]],1))>0,\"Control(s)\",\"\"),\"\")","v":""},{"$f":"IFERROR(INDEX(INDIRECT(\"MeasureTable_\"&ProjectState&\"[Unit]\"),MATCH(ProjectInfoTable[[#This Row],[Control Measure]]&\" | TRUE\",INDIRECT(\"MeasureTable_\"&ProjectState&\"[MeasureEligibleConcatenate]\"),0)),\"\")","v":""},{"$f":"IFERROR(INDEX(INDIRECT(\"MeasureTable_\"&ProjectState&\"[ProjectCapPercent]\"),MATCH(ProjectInfoTable[[#This Row],[Control Measure]]&\" | TRUE\",INDIRECT(\"MeasureTable_\"&ProjectState&\"[MeasureEligibleConcatenate]\"),0)),\"\")","v":""},{"$f":"IF(OR(ProjectInfoTable[[#This Row],[Fixture Measure]]<>\"\",ProjectInfoTable[[#This Row],[Control Measure]]<>\"\"),1,\"\")","v":""},{"$f":"IF(ProjectInfoTable[[#This Row],[TRL Unit]]=\"\",\"\",IF(OR(ISNUMBER(SEARCH(\"measure\",ProjectInfoTable[[#This Row],[TRL Unit]])),ISNUMBER(SEARCH(\"linear ft\",ProjectInfoTable[[#This Row],[TRL Unit]])),ProjectInfoTable[[#This Row],[TRL Unit]]=0),990,991))","v":""},{"$f":"IFERROR(SUBSTITUTE(LEFT(ProjectInfoTable[[#This Row],[Proposed Equipment]],FIND(\"]\",ProjectInfoTable[[#This Row],[Proposed Equipment]],1)),\"Controls Only []\",\"\",1),\"\")","v":""},{"$f":"IF(ProjectInfoTable[[#This Row],[FixturesOnly]]=\"\",\"\",IF(ISNUMBER(FIND(\"L \",ProjectInfoTable[[#This Row],[Proposed Equipment]],1)),ProjectInfoTable[[#This Row],[Quantity (Proposed)]]*ProjectInfoTable[[#This Row],[Lamps (Proposed)]],ProjectInfoTable[[#This Row],[Quantity (Proposed)]]))","v":""},{"$f":"IFERROR(INDEX(ControlsLookup[Full Description],MATCH(RIGHT(ProjectInfoTable[[#This Row],[Proposed Equipment]],LEN(ProjectInfoTable[[#This Row],[Proposed Equipment]])-FIND(\"]\",ProjectInfoTable[[#This Row],[Proposed Equipment]],1)-3),ControlsLookup[Controls],0)),\"\")","v":""},{"$f":"IF(ProjectInfoTable[[#This Row],[ControlsOnly]]=\"\",\"\",IF(OR(ISNUMBER(FIND(\"Net\",ProjectInfoTable[[#This Row],[Proposed Equipment]],1)),ISNUMBER(FIND(\"Int\",ProjectInfoTable[[#This Row],[Proposed Equipment]],1))),ProjectInfoTable[[#This Row],[Quantity (Proposed)]],1))","v":""}]
[null,{"$f":"ROW(ProjectInfoTable[[#This Row],[OpSch]])-ROW(ProjectInfoTable[[#Headers],[OpSch]])","v":10},{"$f":"IFERROR(INDEX(RetrofitBaselineEquipment_Table[categoryBaseline],MATCH(RIGHT(LEFT(ProjectInfoTable[[#This Row],[Existing Equipment]],FIND(\" (\",ProjectInfoTable[[#This Row],[Existing Equipment]],1)-1),LEN(LEFT(ProjectInfoTable[[#This Row],[Existing Equipment]],FIND(\" (\",ProjectInfoTable[[#This Row],[Existing Equipment]],1)-1))-FIND(\": \",ProjectInfoTable[[#This Row],[Existing Equipment]],1)-1),RetrofitBaselineEquipment_Table[equipmentBaseline],0)),\"\")","v":""},null,null,null,null,{"$f":"IF(ProjectInfoTable[[#This Row],[Existing Equipment]]=\"\",\"\",IF(ISNUMBER(FIND(\"LF\",ProjectInfoTable[[#This Row],[Existing Equipment]],1)),1,IFERROR(VALUE(SUBSTITUTE(RIGHT(LEFT(ProjectInfoTable[[#This Row],[Existing Equipment]],FIND(\"L\",ProjectInfoTable[[#This Row],[Existing Equipment]],FIND(\"[\",ProjectInfoTable[[#This Row],[Existing Equipment]],1))-1),3),\"[\",\"\")),1)))","v":""},{"$f":"IF(ProjectInfoTable[[#This Row],[Existing Equipment]]=\"\",\"\",VALUE(SUBSTITUTE(RIGHT(LEFT(RIGHT(ProjectInfoTable[[#This Row],[Existing Equipment]],LEN(ProjectInfoTable[[#This Row],[Existing Equipment]])-IFERROR(FIND(\"[\",ProjectInfoTable[[#This Row],[Existing Equipment]],1),0)),IFERROR(FIND(\"W\",RIGHT(ProjectInfoTable[[#This Row],[Existing Equipment]],LEN(ProjectInfoTable[[#This Row],[Existing Equipment]])-IFERROR(FIND(\"[\",ProjectInfoTable[[#This Row],[Existing Equipment]],1),0)),1),0)),LEN(LEFT(RIGHT(ProjectInfoTable[[#This Row],[Existing Equipment]],LEN(ProjectInfoTable[[#This Row],[Existing Equipment]])-IFERROR(FIND(\"[\",ProjectInfoTable[[#This Row],[Existing Equipment]],1),0)),IFERROR(FIND(\"W\",RIGHT(ProjectInfoTable[[#This Row],[Existing Equipment]],LEN(ProjectInfoTable[[#This Row],[Existing Equipment]])-IFERROR(FIND(\"[\",ProjectInfoTable[[#This Row],[Existing Equipment]],1),0)),1),0)))-IFERROR(FIND(\"-\",LEFT(RIGHT(ProjectInfoTable[[#This Row],[Existing Equipment]],LEN(ProjectInfoTable[[#This Row],[Existing Equipment]])-IFERROR(FIND(\"[\",ProjectInfoTable[[#This Row],[Existing Equipment]],1),0)),IFERROR(FIND(\"W\",RIGHT(ProjectInfoTable[[#This Row],[Existing Equipment]],LEN(ProjectInfoTable[[#This Row],[Existing Equipment]])-IFERROR(FIND(\"[\",ProjectInfoTable[[#This Row],[Existing Equipment]],1),0)),1),0)),1),0)),\"W\",\"\")))","v":""},{"$f":"IF(ProjectInfoTable[[#This Row],[Existing Equipment]]=\"\",\"\",IF(AND(RIGHT(LEFT(ProjectInfoTable[[#This Row],[Existing Equipment]],FIND(\"]\",ProjectInfoTable[[#This Row],[Existing Equipment]],1)-1),1)<>\"W\"),IFERROR(TRIM(IF(IFERROR(FIND(\"FLT\",ProjectInfoTable[[#This Row],[Existing Equipment]],1),0)>0,LEFT(RIGHT(LEFT(ProjectInfoTable[[#This Row],[Existing Equipment]],FIND(\" (\",ProjectInfoTable[[#This Row],[Existing Equipment]],1)),LEN(LEFT(ProjectInfoTable[[#This Row],[Existing Equipment]],FIND(\" (\",ProjectInfoTable[[#This Row],[Existing Equipment]],1)))-FIND(\":\",ProjectInfoTable[[#This Row],[Existing Equipment]],1)-1),FIND(\" \",RIGHT(LEFT(ProjectInfoTable[[#This Row],[Existing Equipment]],FIND(\" (\",ProjectInfoTable[[#This Row],[Existing Equipment]],1)),LEN(LEFT(ProjectInfoTable[[#This Row],[Existing Equipment]],FIND(\" (\",ProjectInfoTable[[#This Row],[Existing Equipment]],1)))-FIND(\":\",ProjectInfoTable[[#This Row],[Existing Equipment]],1)-1),1)-1),RIGHT(LEFT(ProjectInfoTable[[#This Row],[Existing Equipment]],FIND(\" (\",ProjectInfoTable[[#This Row],[Existing Equipment]],1)),LEN(LEFT(ProjectInfoTable[[#This Row],[Existing Equipment]],FIND(\" (\",ProjectInfoTable[[#This Row],[Existing Equipment]],1)))-FIND(\":\",ProjectInfoTable[[#This Row],[Existing Equipment]],1)-1))&\" - \"&RIGHT(LEFT(ProjectInfoTable[[#This Row],[Existing Equipment]],FIND(\"]\",ProjectInfoTable[[#This Row],[Existing Equipment]],1)-1),LEN(LEFT(ProjectInfoTable[[#This Row],[Existing Equipment]],FIND(\"]\",ProjectInfoTable[[#This Row],[Existing Equipment]],1)-1))-FIND(\"W \",ProjectInfoTable[[#This Row],[Existing Equipment]],1)-3)),\"\"),\"\"))","v":""},{"$f":"IF(ProjectInfoTable[[#This Row],[Existing Equipment]]=\"\",\"\",IF(ProjectInfoTable[[#This Row],[Fixture/Ballast Check for Formula]]=\"\",IF(ISNUMBER(FIND(\"LF\",ProjectInfoTable[[#This Row],[Existing Equipment]],FIND(\"[\",ProjectInfoTable[[#This Row],[Existing Equipment]],1))),ProjectInfoTable[[#This Row],[Lamp W (Existing)]],ProjectInfoTable[[#This Row],[Lamps (Existing)]]*ProjectInfoTable[[#This Row],[Lamp W (Existing)]]),IFERROR(ROUND( ProjectInfoTable[[#This Row],[Lamps (Existing)]]*ProjectInfoTable[[#This Row],[Lamp W (Existing)]]*INDEX(FixtureWattageFormula_Table[A],MATCH(ProjectInfoTable[[#This Row],[Fixture/Ballast Check for Formula]],FixtureWattageFormula_Table[Concatenate],0))+INDEX(FixtureWattageFormula_Table[B],MATCH(ProjectInfoTable[[#This Row],[Fixture/Ballast Check for Formula]],FixtureWattageFormula_Table[Concatenate],0)),0),ProjectInfoTable[[#This Row],[Lamps (Existing)]]*ProjectInfoTable[[#This Row],[Lamp W (Existing)]])))","v":""},{"$f":"IF(OR(ISNUMBER(FIND(\"T8 \",ProjectInfoTable[[#This Row],[Existing Equipment]],1)),ISNUMBER(FIND(\"T5 \",ProjectInfoTable[[#This Row],[Existing Equipment]],1)),ISNUMBER(FIND(\"T12 \",ProjectInfoTable[[#This Row],[Existing Equipment]],1)),ISNUMBER(FIND(\"T12HO - 8\",ProjectInfoTable[[#This Row],[Existing Equipment]],1)),ISNUMBER(FIND(\"Incand\",ProjectInfoTable[[#This Row],[Existing Equipment]],1))),IFERROR(ROUND(INDEX(StipulatedWattage_Table[Stipulated fixture wattage],MATCH(MID(ProjectInfoTable[[#This Row],[Existing Equipment]],FIND(\"[\",ProjectInfoTable[[#This Row],[Existing Equipment]],1),FIND(\"]\",ProjectInfoTable[[#This Row],[Existing Equipment]],1)-FIND(\"[\",ProjectInfoTable[[#This Row],[Existing Equipment]],1)+1),StipulatedWattage_Table[Fixture Code],0)),0),ProjectInfoTable[[#This Row],[Fixture W (Existing, Actual)]]),ProjectInfoTable[[#This Row],[Fixture W (Existing, Actual)]])","v":""},{"$f":"IF(ProjectType=\"Retrofit\",IF(ProjectInfoTable[[#This Row],[Existing Equipment]]=\"\",\"\",ProjectInfoTable[[#This Row],[Quantity (Existing)]]*ProjectInfoTable[[#This Row],[Fixture W (Existing, Actual)]]),IF(ISNUMBER(FIND(\"Interior\",ProjectInfoTable[[#This Row],[Proposed Equipment]],1)),IF(ISNUMBER(FIND(\"Controls Only\",ProjectInfoTable[[#This Row],[Proposed Equipment]])),ProjectInfoTable[[#This Row],[Space W (Proposed)]],(AllowedWattage-SUMIFS(ProjectInfoTable[Space W (Proposed)],ProjectInfoTable[Proposed Equipment],\"*Interior*\",ProjectInfoTable[Proposed Equipment],\"*Controls Only*\"))*ProjectInfoTable[[#This Row],[Space W (Proposed)]]/(SUMIFS(ProjectInfoTable[Space W (Proposed)],ProjectInfoTable[Proposed Equipment],\"*Interior*\")-SUMIFS(ProjectInfoTable[Space W (Proposed)],ProjectInfoTable[Proposed Equipment],\"*Interior*\",ProjectInfoTable[Proposed Equipment],\"*Controls Only*\"))),\"\"))","v":""},{"$f":"IF(ProjectType=\"Retrofit\",IF(ProjectInfoTable[[#This Row],[Existing Equipment]]=\"\",\"\",ProjectInfoTable[[#This Row],[Quantity (Existing)]]*ProjectInfoTable[[#This Row],[Fixture W (Existing, Stipulated)]]),ProjectInfoTable[[#This Row],[Space W (Existing, Actual)]])","v":""},{"$f":"IFERROR(INDEX(OperatingHours_List,MATCH(ProjectInfoTable[[#This Row],[OpSch]],OperatingSchedules_List,0))*ProjectInfoTable[[#This Row],[Space W (Existing, Actual)]]/1000,\"\")","v":""},{"$f":"IFERROR(INDEX(OperatingHours_List,MATCH(ProjectInfoTable[[#This Row],[OpSch]],OperatingSchedules_List,0))*ProjectInfoTable[[#This Row],[Space W (Existing, Actual)]]/1000*(IFERROR(INDEX(ControlsLookup[],MATCH(RIGHT(ProjectInfoTable[[#This Row],[Existing Equipment]],LEN(ProjectInfoTable[[#This Row],[Existing Equipment]])-FIND(\"]\",ProjectInfoTable[[#This Row],[Existing Equipment]],1)-3),ControlsLookup[Controls],0),MATCH(\"CSF_\"&ProjectState,ControlsLookup[#Headers],0)),0))*-1,\"\")","v":""},{"$f":"IF(OR(ProjectInfoTable[[#This Row],[Fixture kWh (Existing, Actual)]]=\"\",ProjectInfoTable[[#This Row],[Control kWh (Existing, Actual)]]=\"\"),\"\",ProjectInfoTable[[#This Row],[Fixture kWh (Existing, Actual)]]+ProjectInfoTable[[#This Row],[Control kWh (Existing, Actual)]])","v":""},{"$f":"IFERROR(INDEX(OperatingHours_List,MATCH(ProjectInfoTable[[#This Row],[OpSch]],OperatingSchedules_List,0))*ProjectInfoTable[[#This Row],[Space W (Existing, Stipulated)]]/1000,\"\")","v":""},{"$f":"IFERROR(INDEX(OperatingHours_List,MATCH(ProjectInfoTable[[#This Row],[OpSch]],OperatingSchedules_List,0))*ProjectInfoTable[[#This Row],[Space W (Existing, Stipulated)]]/1000*(IFERROR(INDEX(ControlsLookup[],MATCH(RIGHT(ProjectInfoTable[[#This Row],[Existing Equipment]],LEN(ProjectInfoTable[[#This Row],[Existing Equipment]])-FIND(\"]\",ProjectInfoTable[[#This Row],[Existing Equipment]],1)-3),ControlsLookup[Controls],0),MATCH(\"CSF_\"&ProjectState,ControlsLookup[#Headers],0)),0))*-1,\"\")","v":""},{"$f":"IF(OR(ProjectInfoTable[[#This Row],[Fixture kWh (Existing, Stipulated)]]=\"\",ProjectInfoTable[[#This Row],[Control kWh (Existing, Stipulated)]]=\"\"),\"\",ProjectInfoTable[[#This Row],[Fixture kWh (Existing, Stipulated)]]+ProjectInfoTable[[#This Row],[Control kWh (Existing, Stipulated)]])","v":""},{"$f":"IF(\n AND(\n  OR(ProjectInfoTable[[#This Row],[Existing Equipment]]=\"\",ProjectInfoTable[[#This Row],[Quantity (Existing)]]=\"\"),\n  ProjectType=\"Retrofit\"\n ),\n \"\",\n IF(\n  ISNUMBER(FIND(\"Street:\",ProjectInfoTable[[#This Row],[Existing Equipment]],1)),\n  IF(\n   OR(\n    AND(ProjectState=\"UT\",RateSchedule=12),\n    AND(ProjectState=\"ID\",RateSchedule=12),\n    AND(ProjectState=\"WY\",RateSchedule=58)\n   ),\n   IFERROR(\n    INDEX(\n     StreetLightingRates_Table[],\n     MATCH(MID(ProjectInfoTable[[#This Row],[Existing Equipment]],FIND(\": \",ProjectInfoTable[[#This Row],[Existing Equipment]],1)+2,FIND(\" (\",ProjectInfoTable[[#This Row],[Existing Equipment]],1)-FIND(\": \",ProjectInfoTable[[#This Row],[Existing Equipment]],1)-2)&ProjectInfoTable[[#This Row],[Lamp W (Existing)]],StreetLightingRates_Table[TechWattage],0),\n     MATCH(ProjectState&RateSchedule,StreetLightingRates_Table[#Headers],0)\n    )\n    *\n    ProjectInfoTable[[#This Row],[Quantity (Existing)]]\n    *\n    ProjectInfoTable[[#This Row],[Lamps (Existing)]]\n    *\n    12,\n    ProjectInfoTable[[#This Row],[Space kWh (Existing, Actual)]]\n    *\n    INDEX(INDIRECT(\"RateSchedules_\"&ProjectState&\"_Table[kWh Rate]\"),MATCH(RateSchedule,INDIRECT(\"RateSchedules_\"&ProjectState&\"_Table[Rate Schedule]\"),0))\n   ),\n   IFERROR(\n    ProjectInfoTable[[#This Row],[Space kWh (Existing, Actual)]]*\n    INDEX(INDIRECT(\"RateSchedules_\"&ProjectState&\"_Table[kWh Rate]\"),MATCH(RateSchedule,INDIRECT(\"RateSchedules_\"&ProjectState&\"_Table[Rate Schedule]\"),0)),0)\n   +\n   IFERROR(IF(ISNUMBER(FIND(\"Interior:\",ProjectInfoTable[[#This Row],[Existing Equipment]],1)),\n    ProjectInfoTable[[#This Row],[Space W (Existing, Actual)]]/1000*12*DDF*\n    INDEX(INDIRECT(\"RateSchedules_\"&ProjectState&\"_Table[kW Rate]\"),MATCH(RateSchedule,INDIRECT(\"RateSchedules_\"&ProjectState&\"_Table[Rate Schedule]\"),0)),0),0)\n  ),\n  IFERROR(\n   ProjectInfoTable[[#This Row],[Space kWh (Existing, Actual)]]*\n   INDEX(INDIRECT(\"RateSchedules_\"&ProjectState&\"_Table[kWh Rate]\"),MATCH(RateSchedule,INDIRECT(\"RateSchedules_\"&ProjectState&\"_Table[Rate Schedule]\"),0)),\n   0\n  )\n  +\n  IFERROR(IF(OR(ISNUMBER(FIND(\"Interior:\",ProjectInfoTable[[#This Row],[Existing Equipment]],1)),AND(ProjectType<>\"Retrofit\",ISNUMBER(FIND(\"Interior:\",ProjectInfoTable[[#This Row],[Proposed Equipment]],1)))),\n   ProjectInfoTable[[#This Row],[Space W (Existing, Actual)]]/1000*12*DDF*\n   INDEX(INDIRECT(\"RateSchedules_\"&ProjectState&\"_Table[kW Rate]\"),MATCH(RateSchedule,INDIRECT(\"RateSchedules_\"&ProjectState&\"_Table[Rate Schedule]\"),0)),0),\n   0\n  )\n )\n)","v":0},{"$f":"IF(\n AND(\n  OR(ProjectInfoTable[[#This Row],[Existing Equipment]]=\"\",ProjectInfoTable[[#This Row],[Quantity (Existing)]]=\"\"),\n  ProjectType=\"Retrofit\"\n ),\n \"\",\n IF(\n  ISNUMBER(FIND(\"Street:\",ProjectInfoTable[[#This Row],[Existing Equipment]],1)),\n  IF(\n   OR(\n    AND(ProjectState=\"UT\",RateSchedule=12),\n    AND(ProjectState=\"ID\",RateSchedule=12),\n    AND(ProjectState=\"WY\",RateSchedule=58)\n   ),\n   IFERROR(\n    INDEX(\n     StreetLightingRates_Table[],\n     MATCH(MID(ProjectInfoTable[[#This Row],[Existing Equipment]],FIND(\": \",ProjectInfoTable[[#This Row],[Existing Equipment]],1)+2,FIND(\" (\",ProjectInfoTable[[#This Row],[Existing Equipment]],1)-FIND(\": \",ProjectInfoTable[[#This Row],[Existing Equipment]],1)-2)&ProjectInfoTable[[#This Row],[Lamp W (Existing)]],StreetLightingRates_Table[TechWattage],0),\n     MATCH(ProjectState&RateSchedule,StreetLightingRates_Table[#Headers],0)\n    )\n    *\n    ProjectInfoTable[[#This Row],[Quantity (Existing)]]\n    *\n    ProjectInfoTable[[#This Row],[Lamps (Existing)]]\n    *\n    12,\n    ProjectInfoTable[[#This Row],[Space kWh (Existing, Stipulated)]]\n    *\n    INDEX(INDIRECT(\"RateSchedules_\"&ProjectState&\"_Table[kWh Rate]\"),MATCH(RateSchedule,INDIRECT(\"RateSchedules_\"&ProjectState&\"_Table[Rate Schedule]\"),0))\n   ),\n   IFERROR(\n    ProjectInfoTable[[#This Row],[Space kWh (Existing, Stipulated)]]*\n    INDEX(INDIRECT(\"RateSchedules_\"&ProjectState&\"_Table[kWh Rate]\"),MATCH(RateSchedule,INDIRECT(\"RateSchedules_\"&ProjectState&\"_Table[Rate Schedule]\"),0)),0)\n   +\n   IFERROR(IF(ISNUMBER(FIND(\"Interior:\",ProjectInfoTable[[#This Row],[Existing Equipment]],1)),\n    ProjectInfoTable[[#This Row],[Space W (Existing, Stipulated)]]/1000*12*DDF*\n    INDEX(INDIRECT(\"RateSchedules_\"&ProjectState&\"_Table[kW Rate]\"),MATCH(RateSchedule,INDIRECT(\"RateSchedules_\"&ProjectState&\"_Table[Rate Schedule]\"),0)),0),0)\n  ),\n  IFERROR(\n   ProjectInfoTable[[#This Row],[Space kWh (Existing, Stipulated)]]*\n   INDEX(INDIRECT(\"RateSchedules_\"&ProjectState&\"_Table[kWh Rate]\"),MATCH(RateSchedule,INDIRECT(\"RateSchedules_\"&ProjectState&\"_Table[Rate Schedule]\"),0)),\n   0\n  )\n  +\n  IFERROR(IF(OR(ISNUMBER(FIND(\"Interior:\",ProjectInfoTable[[#This Row],[Existing Equipment]],1)),AND(ProjectType<>\"Retrofit\",ISNUMBER(FIND(\"Interior:\",ProjectInfoTable[[#This Row],[Proposed Equipment]],1)))),\n   ProjectInfoTable[[#This Row],[Space W (Existing, Stipulated)]]/1000*12*DDF*\n   INDEX(INDIRECT(\"RateSchedules_\"&ProjectState&\"_Table[kW Rate]\"),MATCH(RateSchedule,INDIRECT(\"RateSchedules_\"&ProjectState&\"_Table[Rate Schedule]\"),0)),0),\n   0\n  )\n )\n)","v":0},{"$f":"IF(ProjectType=\"Retrofit\",IFERROR(INDEX(RetrofitBaselineEquipment_Table[categoryBaseline],MATCH(RIGHT(LEFT(ProjectInfoTable[[#This Row],[Proposed Equipment]],FIND(\" (\",ProjectInfoTable[[#This Row],[Proposed Equipment]],1)-1),LEN(LEFT(ProjectInfoTable[[#This Row],[Proposed Equipment]],FIND(\" (\",ProjectInfoTable[[#This Row],[Proposed Equipment]],1)-1))-FIND(\": \",ProjectInfoTable[[#This Row],[Proposed Equipment]],1)-1),RetrofitBaselineEquipment_Table[equipmentBaseline],0)),\"\"),IFERROR(INDEX(#REF!,MATCH(RIGHT(LEFT(ProjectInfoTable[[#This Row],[Proposed Equipment]],FIND(\" (\",ProjectInfoTable[[#This Row],[Proposed Equipment]],1)-1),LEN(LEFT(ProjectInfoTable[[#This Row],[Proposed Equipment]],FIND(\" (\",ProjectInfoTable[[#This Row],[Proposed Equipment]],1)-1))-FIND(\": \",ProjectInfoTable[[#This Row],[Proposed Equipment]],1)-1),#REF!,0)),\"\"))","v":""},{"$f":"IF(ProjectInfoTable[[#This Row],[Proposed Equipment]]=\"\",\"\",IF(ISNUMBER(SEARCH(\"Controls Only\",ProjectInfoTable[[#This Row],[Proposed Equipment]])),\"Controls Only\",IF(ProjectType=\"Retrofit\",_xlfn.LET(_xlpm.k,LEFT(ProjectInfoTable[[#This Row],[Proposed Equipment]],FIND(\"[\",ProjectInfoTable[[#This Row],[Proposed Equipment]])-2),_xlpm.ep,_xlfn.SWITCH(ProjectState,\"UT\",EquipmentTable_Retrofit_UT[equipmentProposed],\"WY\",EquipmentTable_Retrofit_WY[equipmentProposed],\"ID\",EquipmentTable_Retrofit_ID[equipmentProposed]),_xlpm.cp,_xlfn.SWITCH(ProjectState,\"UT\",EquipmentTable_Retrofit_UT[categoryProposed],\"WY\",EquipmentTable_Retrofit_WY[categoryProposed],\"ID\",EquipmentTable_Retrofit_ID[categoryProposed]),_xlfn.XLOOKUP(_xlpm.k,_xlpm.ep,_xlpm.cp,\"Non-eligible fixture - Retrofit - \"&ProjectState)),_xlfn.LET(_xlpm.k,MID(ProjectInfoTable[[#This Row],[Proposed Equipment]],FIND(\": \",ProjectInfoTable[[#This Row],[Proposed Equipment]])+2,FIND(\" (\",ProjectInfoTable[[#This Row],[Proposed Equipment]])-(FIND(\": \",ProjectInfoTable[[#This Row],[Proposed Equipment]])+2)),_xlpm.ep,_xlfn.SWITCH(ProjectState,\"UT\",EquipmentTable_NCMR_UT[equipmentProposed],\"WY\",EquipmentTable_NCMR_WY[equipmentProposed],\"ID\",EquipmentTable_NCMR_ID[equipmentProposed]),_xlpm.cp,_xlfn.SWITCH(ProjectState,\"UT\",EquipmentTable_NCMR_UT[categoryProposed],\"WY\",EquipmentTable_NCMR_WY[categoryProposed],\"ID\",EquipmentTable_NCMR_ID[categoryProposed]),_xlfn.XLOOKUP(_xlpm.k,_xlpm.ep,_xlpm.cp,\"Non-eligible fixture - NCMR - \"&ProjectState)))))","v":""},null,null,"ü",{"$f":"IF(ProjectInfoTable[[#This Row],[Proposed Equipment]]=\"\",\"\",IF(ProjectInfoTable[[#This Row],[Measure Selection]]=\"\",0,IF(ISNUMBER(FIND(\"LF\",ProjectInfoTable[[#This Row],[Proposed Equipment]],1)),1,IFERROR(VALUE(SUBSTITUTE(RIGHT(LEFT(ProjectInfoTable[[#This Row],[Proposed Equipment]],FIND(\"L\",ProjectInfoTable[[#This Row],[Proposed Equipment]],FIND(\"[\",ProjectInfoTable[[#This Row],[Proposed Equipment]],1))-1),2),\"[\",\"\")),IFERROR(LEFT(RIGHT(ProjectInfoTable[[#This Row],[Proposed Equipment]],LEN(ProjectInfoTable[[#This Row],[Proposed Equipment]])-FIND(\"-lamp\",ProjectInfoTable[[#This Row],[Proposed Equipment]],1)+2),1),1)))))","v":""},{"$f":"IF(ProjectInfoTable[[#This Row],[Proposed Equipment]]=\"\",\"\",IF(ProjectInfoTable[[#This Row],[Measure Selection]]=\"\",0,IFERROR(\n\nIF(ISNUMBER(FIND(\"W]\",ProjectInfoTable[[#This Row],[Proposed Equipment]])),\nRIGHT(MID(ProjectInfoTable[[#This Row],[Proposed Equipment]],FIND(\"W]\",ProjectInfoTable[[#This Row],[Proposed Equipment]],FIND(\"[\",ProjectInfoTable[[#This Row],[Proposed Equipment]]))-7,7),\nLEN(MID(ProjectInfoTable[[#This Row],[Proposed Equipment]],FIND(\"W]\",ProjectInfoTable[[#This Row],[Proposed Equipment]],FIND(\"[\",ProjectInfoTable[[#This Row],[Proposed Equipment]]))-7,7)) -\nIFERROR(FIND(\" - \",MID(ProjectInfoTable[[#This Row],[Proposed Equipment]],FIND(\"W]\",ProjectInfoTable[[#This Row],[Proposed Equipment]],FIND(\"[\",ProjectInfoTable[[#This Row],[Proposed Equipment]]))-7,7))+2,\nFIND(\"[\",MID(ProjectInfoTable[[#This Row],[Proposed Equipment]],FIND(\"W]\",ProjectInfoTable[[#This Row],[Proposed Equipment]],FIND(\"[\",ProjectInfoTable[[#This Row],[Proposed Equipment]]))-7,7)))),\n\nIF(ISNUMBER(FIND(\"[\",MID(ProjectInfoTable[[#This Row],[Proposed Equipment]],FIND(\"W \",ProjectInfoTable[[#This Row],[Proposed Equipment]],FIND(\"[\",ProjectInfoTable[[#This Row],[Proposed Equipment]]))-7,7))),\nRIGHT(MID(ProjectInfoTable[[#This Row],[Proposed Equipment]],FIND(\"W \",ProjectInfoTable[[#This Row],[Proposed Equipment]],FIND(\"[\",ProjectInfoTable[[#This Row],[Proposed Equipment]]))-7,7),\nLEN(MID(ProjectInfoTable[[#This Row],[Proposed Equipment]],FIND(\"W \",ProjectInfoTable[[#This Row],[Proposed Equipment]],FIND(\"[\",ProjectInfoTable[[#This Row],[Proposed Equipment]]))-7,7)) -\nIFERROR(FIND(\" - \",MID(ProjectInfoTable[[#This Row],[Proposed Equipment]],FIND(\"W \",ProjectInfoTable[[#This Row],[Proposed Equipment]],FIND(\"[\",ProjectInfoTable[[#This Row],[Proposed Equipment]]))-7,7))+2,\nFIND(\"[\",MID(ProjectInfoTable[[#This Row],[Proposed Equipment]],FIND(\"W \",ProjectInfoTable[[#This Row],[Proposed Equipment]],FIND(\"[\",ProjectInfoTable[[#This Row],[Proposed Equipment]]))-7,7)))),\n\nRIGHT(MID(ProjectInfoTable[[#This Row],[Proposed Equipment]],FIND(\"W \",ProjectInfoTable[[#This Row],[Proposed Equipment]],FIND(\"[\",ProjectInfoTable[[#This Row],[Proposed Equipment]]))-7,7),\nLEN(MID(ProjectInfoTable[[#This Row],[Proposed Equipment]],FIND(\"W \",ProjectInfoTable[[#This Row],[Proposed Equipment]],FIND(\"[\",ProjectInfoTable[[#This Row],[Proposed Equipment]]))-7,7)) -\nFIND(\" - \",MID(ProjectInfoTable[[#This Row],[Proposed Equipment]],FIND(\"W \",ProjectInfoTable[[#This Row],[Proposed Equipment]],FIND(\"[\",ProjectInfoTable[[#This Row],[Proposed Equipment]]))-7,7))-2\n))),0)))","v":""},{"$f":"IF(ProjectInfoTable[[#This Row],[Proposed Equipment]]=\"\",\"\",IFERROR(ProjectInfoTable[[#This Row],[Lamps (Proposed)]]*ProjectInfoTable[[#This Row],[Lamp W (Proposed)]],\"\"))","v":""},{"$f":"IF(ProjectInfoTable[[#This Row],[Proposed Equipment]]=\"\",\"\",IFERROR(ProjectInfoTable[[#This Row],[Quantity (Proposed)]]*ProjectInfoTable[[#This Row],[Fixture W (Proposed)]],\"\"))","v":""},{"$f":"IFERROR(INDEX(OperatingHours_List,MATCH(ProjectInfoTable[[#This Row],[OpSch]],OperatingSchedules_List,0))*ProjectInfoTable[[#This Row],[Space W (Proposed)]]/1000,\"\")","v":""},{"$f":"IF(OR(ISNUMBER(FIND(\"Controls Only\",ProjectInfoTable[[#This Row],[Proposed Equipment]],1)),ProjectInfoTable[[#This Row],[ControlsOnly]]=\"Re-Commissioning\"),\"Controls Only\",IFERROR(INDEX(OperatingHours_List,MATCH(ProjectInfoTable[[#This Row],[OpSch]],OperatingSchedules_List,0))*ProjectInfoTable[[#This Row],[Space W (Proposed)]]/1000*(IFERROR(INDEX(ControlsLookup[],MATCH(SUBSTITUTE(RIGHT(ProjectInfoTable[[#This Row],[Proposed Equipment]],LEN(ProjectInfoTable[[#This Row],[Proposed Equipment]])-FIND(\"]\",ProjectInfoTable[[#This Row],[Proposed Equipment]],1)-3),\" reused\",\"\"),ControlsLookup[Controls],0),MATCH(\"CSF_\"&ProjectState,ControlsLookup[#Headers],0)),0))*-1,\"\"))","v":""},{"$f":"IF(OR(ProjectInfoTable[[#This Row],[Fixture kWh (Proposed)]]=\"\",ProjectInfoTable[[#This Row],[Control kWh (Proposed)]]=\"\"),\"\",IFERROR(ProjectInfoTable[[#This Row],[Fixture kWh (Proposed)]]+ProjectInfoTable[[#This Row],[Control kWh (Proposed)]],0))","v":""},{"$f":"IF(\n OR(\n  ProjectInfoTable[[#This Row],[Proposed Equipment]]=\"\",\n  ProjectInfoTable[[#This Row],[Quantity (Proposed)]]=\"\"\n ),\n \"\",\n IF(\n  AND(\n   OR(\n    AND(\n     ProjectState=\"UT\",\n     RateSchedule=12\n    ),\n    AND(\n     ProjectState=\"ID\",\n     RateSchedule=12\n    ),\n    AND(\n     ProjectState=\"WY\",\n     RateSchedule=58\n    )\n   ),\n   ISNUMBER(FIND(\"Street:\",ProjectInfoTable[[#This Row],[Existing Equipment]],1))\n  ),\n  IF(\n   AND(\n    RateSchedule=53,\n    ISNUMBER(FIND(\"LED\",ProjectInfoTable[[#This Row],[Proposed Equipment]],1))\n   ),\n   ProjectInfoTable[[#This Row],[Fixture kWh (Proposed)]]\n   *\n   INDEX(\n    INDIRECT(\"RateSchedules_\"&ProjectState&\"_Table[kWh Rate]\"),\n    MATCH(RateSchedule,INDIRECT(\"RateSchedules_\"&ProjectState&\"_Table[Rate Schedule]\"),0)\n   ),\n   IFERROR(INDEX(\n    StreetLightingRates_Table[],\n    MATCH(\"LED\"&IF(AND(ProjectInfoTable[[#This Row],[Fixture W (Proposed)]]>0,ProjectInfoTable[[#This Row],[Fixture W (Proposed)]]<=70),70,IF(AND(ProjectInfoTable[[#This Row],[Fixture W (Proposed)]]>70,ProjectInfoTable[[#This Row],[Fixture W (Proposed)]]<=100),100,IF(AND(ProjectInfoTable[[#This Row],[Fixture W (Proposed)]]>100,ProjectInfoTable[[#This Row],[Fixture W (Proposed)]]<=150),150,IF(AND(ProjectInfoTable[[#This Row],[Fixture W (Proposed)]]>150,ProjectInfoTable[[#This Row],[Fixture W (Proposed)]]<=200),200,IF(AND(ProjectInfoTable[[#This Row],[Fixture W (Proposed)]]>200,ProjectInfoTable[[#This Row],[Fixture W (Proposed)]]<=250),250,IF(AND(ProjectInfoTable[[#This Row],[Fixture W (Proposed)]]>250,ProjectInfoTable[[#This Row],[Fixture W (Proposed)]]<=400),400,\"\")))))),StreetLightingRates_Table[TechWattage],0),\n    MATCH(ProjectState&RateSchedule,StreetLightingRates_Table[#Headers],0)\n   )\n   *ProjectInfoTable[[#This Row],[Lamps (Proposed)]]*ProjectInfoTable[[#This Row],[Quantity (Proposed)]]*12,\n  ProjectInfoTable[[#This Row],[Space kWh (Proposed)]]*INDEX(INDIRECT(\"RateSchedules_\"&ProjectState&\"_Table[kWh Rate]\"),MATCH(RateSchedule,INDIRECT(\"RateSchedules_\"&ProjectState&\"_Table[Rate Schedule]\"),0)))),\n  IFERROR(ProjectInfoTable[[#This Row],[Space kWh (Proposed)]]*INDEX(INDIRECT(\"RateSchedules_\"&ProjectState&\"_Table[kWh Rate]\"),MATCH(RateSchedule,INDIRECT(\"RateSchedules_\"&ProjectState&\"_Table[Rate Schedule]\"),0)),0)\n  +\n  IF(OR(ISNUMBER(FIND(\"Exterior:\",ProjectInfoTable[[#This Row],[Existing Equipment]],1)),ISNUMBER(FIND(\"Street:\",ProjectInfoTable[[#This Row],[Existing Equipment]],1))),0,IFERROR(ProjectInfoTable[[#This Row],[Space W (Proposed)]]/1000*12*DDF*INDEX(INDIRECT(\"RateSchedules_\"&ProjectState&\"_Table[kW Rate]\"),MATCH(RateSchedule,INDIRECT(\"RateSchedules_\"&ProjectState&\"_Table[Rate Schedule]\"),0)),0))\n )\n)","v":""},{"$f":"IF(ProjectInfoTable[[#This Row],[Measure Selection]]=\"\",0,IF(ProjectType=\"Retrofit\",IFERROR((ProjectInfoTable[[#This Row],[Space W (Existing, Actual)]]-ProjectInfoTable[[#This Row],[Space W (Proposed)]])/ProjectInfoTable[[#This Row],[Space W (Existing, Actual)]],\"\"),IF(AND(ProjectInfoTable[[#This Row],[Proposed Equipment]]=\"\",ProjectInfoTable[[#This Row],[Quantity (Proposed)]]=\"\"),\"\",IFERROR((ProjectInfoTable[[#This Row],[Space W (Existing, Stipulated)]]-ProjectInfoTable[[#This Row],[Space W (Proposed)]])/ProjectInfoTable[[#This Row],[Space W (Existing, Stipulated)]],\"n/a\"))))","v":""},{"$f":"IF(ProjectInfoTable[[#This Row],[Measure Selection]]=\"\",0,IF(ProjectType=\"Retrofit\",IFERROR((ProjectInfoTable[[#This Row],[Space W (Existing, Stipulated)]]-ProjectInfoTable[[#This Row],[Space W (Proposed)]])/ProjectInfoTable[[#This Row],[Space W (Existing, Stipulated)]],\"\"),ProjectInfoTable[[#This Row],[% Wattage Reduction (Actual)]]))","v":""},{"$f":"IFERROR(IF(OR(ProjectInfoTable[[#This Row],[Measure Selection]]=\"\",ProjectInfoTable[[#This Row],[ControlsOnly]]=\"Re-Commissioning\"),0,IF(AND(ProjectType=\"Retrofit\",LEFT(ProjectInfoTable[[#This Row],[Existing Equipment]],FIND(\": \",ProjectInfoTable[[#This Row],[Existing Equipment]],1)-1)<>\"Interior\"),0,((ProjectInfoTable[[#This Row],[Space W (Existing, Actual)]]-ProjectInfoTable[[#This Row],[Space W (Proposed)]])/1000*DDF)-IF(ProjectInfoTable[[#This Row],[Midstream Measure Name]]<>\"\",IFERROR(ProjectInfoTable[[#This Row],[kW Per Unit (Midstream)]]*ProjectInfoTable[[#This Row],[Quantity]]*ProjectInfoTable[[#This Row],[No. of TRL Units]],0),0))),\"\")","v":""},{"$f":"IFERROR(IF(OR(ProjectInfoTable[[#This Row],[Measure Selection]]=\"\",ProjectInfoTable[[#This Row],[ControlsOnly]]=\"Re-Commissioning\"),0,IF(AND(ISNUMBER(VALUE(ProjectInfoTable[[#This Row],[kW Per Unit]])),ProjectInfoTable[[#This Row],[kW Per Unit]]<>0),ROUND(ProjectInfoTable[[#This Row],[kW Per Unit]]*ProjectInfoTable[[#This Row],[Quantity]]*ProjectInfoTable[[#This Row],[No. of TRL Units]],2),IF(OR(AND(ProjectType=\"Retrofit\",LEFT(ProjectInfoTable[[#This Row],[Existing Equipment]],FIND(\": \",ProjectInfoTable[[#This Row],[Existing Equipment]],1)-1)<>\"Interior\"),AND(ProjectInfoTable[[#This Row],[Incentives Per Unit]]=0,INDEX(StipulatedSavingsYesNo_Table[Stipulated Savings?],MATCH(ProjectState,StipulatedSavingsYesNo_Table[State],0))=\"No\")),0,IF(ISNUMBER(FIND(\"Controls Only\",ProjectInfoTable[[#This Row],[Proposed Equipment]],1)),0,ROUND(((ProjectInfoTable[[#This Row],[Space W (Existing, Stipulated)]]-ProjectInfoTable[[#This Row],[Space W (Proposed)]])/1000*DDF)-IF(ProjectInfoTable[[#This Row],[Midstream Measure Name]]<>\"\",IFERROR(ProjectInfoTable[[#This Row],[kW Per Unit (Midstream)]]*ProjectInfoTable[[#This Row],[Quantity]]*ProjectInfoTable[[#This Row],[No. of TRL Units]],0),0),2))))),\"\")","v":""},{"$f":"IFERROR(IF(OR(ProjectInfoTable[[#This Row],[Control kWh (Proposed)]]=\"Controls Only\",ProjectInfoTable[[#This Row],[Measure Selection]]=\"\"),0,ROUND((ProjectInfoTable[[#This Row],[Fixture kWh (Existing, Actual)]]-ProjectInfoTable[[#This Row],[Fixture kWh (Proposed)]])*IF(VALUE(SpaceTypesInfo_Table[[#Totals],[HVAC Effects]])=0,1,1+VALUE(SpaceTypesInfo_Table[[#Totals],[HVAC Effects]])),0)),\"\")","v":""},{"$f":"IFERROR(IF(ProjectInfoTable[[#This Row],[Control kWh (Proposed)]]=\"Controls Only\",ROUND(IFERROR(INDEX(OperatingHours_List,MATCH(ProjectInfoTable[[#This Row],[OpSch]],OperatingSchedules_List,0))*IF(OR(ProjectType <> \"Retrofit\",ProjectInfoTable[[#This Row],[Space W (Proposed)]]>0),ProjectInfoTable[[#This Row],[Space W (Proposed)]],ProjectInfoTable[[#This Row],[Space W (Existing, Actual)]])/1000*(IFERROR(INDEX(ControlsLookup[],MATCH(RIGHT(ProjectInfoTable[[#This Row],[Proposed Equipment]],LEN(ProjectInfoTable[[#This Row],[Proposed Equipment]])-FIND(\"]\",ProjectInfoTable[[#This Row],[Proposed Equipment]],1)-3),ControlsLookup[Controls],0),MATCH(\"CSF_\"&ProjectState,ControlsLookup[#Headers],0)),0))*IF(VALUE(SpaceTypesInfo_Table[[#Totals],[HVAC Effects]])=0,1,1+VALUE(SpaceTypesInfo_Table[[#Totals],[HVAC Effects]])),\"\"),0),ROUND(IFERROR((ProjectInfoTable[[#This Row],[Control kWh (Existing, Actual)]]-ProjectInfoTable[[#This Row],[Control kWh (Proposed)]])*IF(VALUE(SpaceTypesInfo_Table[[#Totals],[HVAC Effects]])=0,1,1+VALUE(SpaceTypesInfo_Table[[#Totals],[HVAC Effects]])),\"\"),0)),\"\")","v":""},{"$f":"IF(OR(ProjectInfoTable[[#This Row],[Proposed Equipment]]=\"\",ProjectInfoTable[[#This Row],[Quantity (Proposed)]]=\"\"),\"\",IF(ProjectInfoTable[[#This Row],[Fixture Measure]]=\"\",0,IF(AND(ProjectInfoTable[[#This Row],[Incentives Per Unit]]=0,INDEX(StipulatedSavingsYesNo_Table[Stipulated Savings?],MATCH(ProjectState,StipulatedSavingsYesNo_Table[State],0))=\"No\"),0,ProjectInfoTable[[#This Row],[Total   kWh/yr Savings (Actual)]]-ProjectInfoTable[[#This Row],[Control Measure kWh/yr Savings (Actual)]])))","v":""},{"$f":"IF(OR(ProjectInfoTable[[#This Row],[Proposed Equipment]]=\"\",ProjectInfoTable[[#This Row],[Quantity (Proposed)]]=\"\"),\"\",IF(ProjectInfoTable[[#This Row],[Control Measure]]=\"\",0,ProjectInfoTable[[#This Row],[Control kWh/yr Savings (Actual)]]))","v":""},{"$f":"IF(AND(ProjectInfoTable[[#This Row],[Incentives Per Unit]]=0,INDEX(StipulatedSavingsYesNo_Table[Stipulated Savings?],MATCH(ProjectState,StipulatedSavingsYesNo_Table[State],0))=\"No\"),ProjectInfoTable[[#This Row],[Fixture kWh/yr Savings (Actual)]]+IF(ProjectInfoTable[[#This Row],[Control Measure kWh/yr Savings (Actual)]]=0,0,ProjectInfoTable[[#This Row],[Control kWh/yr Savings (Actual)]]),IF(AND(ProjectInfoTable[[#This Row],[Fixture kWh/yr Savings (Actual)]]=\"\",ProjectInfoTable[[#This Row],[Control kWh/yr Savings (Actual)]]=\"\"),\"\",ROUND(IF(ProjectInfoTable[[#This Row],[Fixture kWh/yr Savings (Actual)]]=\"\",0,ProjectInfoTable[[#This Row],[Fixture kWh/yr Savings (Actual)]])+IF(ProjectInfoTable[[#This Row],[Control kWh/yr Savings (Actual)]]=\"\",0,ProjectInfoTable[[#This Row],[Control kWh/yr Savings (Actual)]])-IF(ProjectInfoTable[[#This Row],[Midstream Measure Name]]<>\"\",IFERROR(ProjectInfoTable[[#This Row],[kWh Per Unit (Midstream)]]*ProjectInfoTable[[#This Row],[Quantity]]*ProjectInfoTable[[#This Row],[No. of TRL Units]],0),0),0)))","v":""},{"$f":"IFERROR(IF(OR(ProjectInfoTable[[#This Row],[Measure Selection]]=\"\",ProjectInfoTable[[#This Row],[ControlsOnly]]=\"Re-Commissioning\"),0,IF(AND(ProjectInfoTable[[#This Row],[Incentives Per Unit]]=0,INDEX(StipulatedSavingsYesNo_Table[Stipulated Savings?],MATCH(ProjectState,StipulatedSavingsYesNo_Table[State],0))=\"No\"),0,IF(ISNUMBER(FIND(\"Controls Only\",ProjectInfoTable[[#This Row],[Proposed Equipment]],1)),0,ROUND((ProjectInfoTable[[#This Row],[Fixture kWh (Existing, Stipulated)]]-ProjectInfoTable[[#This Row],[Fixture kWh (Proposed)]])*IF(VALUE(SpaceTypesInfo_Table[[#Totals],[HVAC Effects]])=0,1,1+VALUE(SpaceTypesInfo_Table[[#Totals],[HVAC Effects]])),0)))),\"\")","v":""},{"$f":"IFERROR(IF(ProjectInfoTable[[#This Row],[Control kWh (Proposed)]]=\"Controls Only\",ROUND(IFERROR(INDEX(OperatingHours_List,MATCH(ProjectInfoTable[[#This Row],[OpSch]],OperatingSchedules_List,0))*IF(OR(ProjectType <> \"Retrofit\",ProjectInfoTable[[#This Row],[Space W (Proposed)]]>0),ProjectInfoTable[[#This Row],[Space W (Proposed)]],ProjectInfoTable[[#This Row],[Space W (Existing, Stipulated)]])/1000*(IFERROR(INDEX(ControlsLookup[],MATCH(RIGHT(ProjectInfoTable[[#This Row],[Proposed Equipment]],LEN(ProjectInfoTable[[#This Row],[Proposed Equipment]])-FIND(\"]\",ProjectInfoTable[[#This Row],[Proposed Equipment]],1)-3),ControlsLookup[Controls],0),MATCH(\"CSF_\"&ProjectState,ControlsLookup[#Headers],0)),0))*IF(VALUE(SpaceTypesInfo_Table[[#Totals],[HVAC Effects]])=0,1,1+VALUE(SpaceTypesInfo_Table[[#Totals],[HVAC Effects]])),\"\"),0),ROUND(IFERROR((ProjectInfoTable[[#This Row],[Control kWh (Existing, Stipulated)]]-ProjectInfoTable[[#This Row],[Control kWh (Proposed)]])*IF(VALUE(SpaceTypesInfo_Table[[#Totals],[HVAC Effects]])=0,1,1+VALUE(SpaceTypesInfo_Table[[#Totals],[HVAC Effects]])),INDEX(ControlsLookup[],MATCH(RIGHT(ProjectInfoTable[[#This Row],[Proposed Equipment]],LEN(ProjectInfoTable[[#This Row],[Proposed Equipment]])-FIND(\"-\",ProjectInfoTable[[#This Row],[Proposed Equipment]],LEN(ProjectInfoTable[[#This Row],[Proposed Equipment]])-15)-1),ControlsLookup[Controls],0),MATCH(\"CSF_\"&ProjectState,ControlsLookup[#Headers],0))*IF(NOT(ISNUMBER(VALUE(ProjectInfoTable[[#This Row],[kWh Per Unit]]))),ProjectInfoTable[[#This Row],[Fixture kWh/yr Savings (Stipulated)]],ProjectInfoTable[[#This Row],[kWh Per Unit]]*ProjectInfoTable[[#This Row],[Quantity]]*ProjectInfoTable[[#This Row],[No. of TRL Units]])),0)),IF(OR(ProjectType=\"New Construction\",ProjectType=\"Major Renovation\"),IF(ProjectInfoTable[[#This Row],[Control kWh (Proposed)]]=\"\",\"\",0),\"\"))","v":""},{"$f":"IF(OR(ProjectInfoTable[[#This Row],[Proposed Equipment]]=\"\",ProjectInfoTable[[#This Row],[Quantity (Proposed)]]=\"\"),\"\",IF(ProjectInfoTable[[#This Row],[Fixture Measure]]=\"\",0,IF(AND(ProjectInfoTable[[#This Row],[Incentives Per Unit]]=0,INDEX(StipulatedSavingsYesNo_Table[Stipulated Savings?],MATCH(ProjectState,StipulatedSavingsYesNo_Table[State],0))=\"No\"),0,ProjectInfoTable[[#This Row],[Total   kWh/yr Savings (Stipulated)]]-ProjectInfoTable[[#This Row],[Control Measure kWh/yr Savings (Stipulated)]])))","v":""},{"$f":"IF(OR(ProjectInfoTable[[#This Row],[Proposed Equipment]]=\"\",ProjectInfoTable[[#This Row],[Quantity (Proposed)]]=\"\"),\"\",IF(ProjectInfoTable[[#This Row],[Control Measure]]=\"\",0,IF(OR(ProjectType=\"New Construction\",ProjectType=\"Major Renovation\"),IFERROR(ROUND(ProjectInfoTable[[#This Row],[Control kWh Per Unit]]*ProjectInfoTable[[#This Row],[Control Quantity]]*ProjectInfoTable[[#This Row],[Control No. of TRL Units]],0),ProjectInfoTable[[#This Row],[Control kWh/yr Savings (Stipulated)]]),ProjectInfoTable[[#This Row],[Control kWh/yr Savings (Stipulated)]])))","v":""},{"$f":"IF(AND(ProjectInfoTable[[#This Row],[Incentives Per Unit]]=0,INDEX(StipulatedSavingsYesNo_Table[Stipulated Savings?],MATCH(ProjectState,StipulatedSavingsYesNo_Table[State],0))=\"No\"),ProjectInfoTable[[#This Row],[Fixture kWh/yr Savings (Stipulated)]]+IF(ProjectInfoTable[[#This Row],[Control Measure kWh/yr Savings (Stipulated)]]=0,0,ProjectInfoTable[[#This Row],[Control kWh/yr Savings (Stipulated)]]),IF(OR(ISNUMBER(VALUE(ProjectInfoTable[[#This Row],[kWh Per Unit]])),ISNUMBER(VALUE(ProjectInfoTable[[#This Row],[Control kWh Per Unit]]))),ROUND(IFERROR(ProjectInfoTable[[#This Row],[kWh Per Unit]]*ProjectInfoTable[[#This Row],[Quantity]]*ProjectInfoTable[[#This Row],[No. of TRL Units]],0)+IFERROR(ProjectInfoTable[[#This Row],[Control kWh Per Unit]]*ProjectInfoTable[[#This Row],[Control Quantity]]*ProjectInfoTable[[#This Row],[Control No. of TRL Units]],ProjectInfoTable[[#This Row],[Control kWh/yr Savings (Stipulated)]]),0),IF(AND(ProjectInfoTable[[#This Row],[Fixture kWh/yr Savings (Stipulated)]]=\"\",ProjectInfoTable[[#This Row],[Control kWh/yr Savings (Stipulated)]]=\"\"),\"\",ROUND(IF(ProjectInfoTable[[#This Row],[Fixture kWh/yr Savings (Stipulated)]]=\"\",0,ProjectInfoTable[[#This Row],[Fixture kWh/yr Savings (Stipulated)]])+IF(ProjectInfoTable[[#This Row],[Control kWh/yr Savings (Stipulated)]]=\"\",0,ProjectInfoTable[[#This Row],[Control kWh/yr Savings (Stipulated)]])-IF(ProjectInfoTable[[#This Row],[Midstream Measure Name]]<>\"\",IFERROR(ProjectInfoTable[[#This Row],[kWh Per Unit (Midstream)]]*ProjectInfoTable[[#This Row],[Quantity]]*ProjectInfoTable[[#This Row],[No. of TRL Units]],0),0),0))))","v":""},{"$f":"IF(OR(ISNUMBER(FIND(\"Midstream\",ProjectInfoTable[[#This Row],[Fixture Measure]])),ISNUMBER(FIND(\"SBDI\",ProjectInfoTable[[#This Row],[Fixture Measure]])),ISNUMBER(FIND(\"Small Bu\",ProjectInfoTable[[#This Row],[Fixture Measure]]))),\n\nIF(ProjectInfoTable[[#This Row],[Measure Selection]]=\"\",0,\n\nIF(ISNUMBER(FIND(\"/U]\",ProjectInfoTable[[#This Row],[Proposed Equipment]])),IFERROR(MID(ProjectInfoTable[[#This Row],[Proposed Equipment]],FIND(\"$\",ProjectInfoTable[[#This Row],[Proposed Equipment]],1)+1,FIND(\"/U]\",ProjectInfoTable[[#This Row],[Proposed Equipment]],1)-FIND(\"$\",ProjectInfoTable[[#This Row],[Proposed Equipment]],1)-1)*ProjectInfoTable[[#This Row],[Lamps (Proposed)]]*ProjectInfoTable[[#This Row],[Quantity (Proposed)]],0),\nIF(ISNUMBER(FIND(\"/U \",ProjectInfoTable[[#This Row],[Proposed Equipment]])),IFERROR(MID(ProjectInfoTable[[#This Row],[Proposed Equipment]],FIND(\"$\",ProjectInfoTable[[#This Row],[Proposed Equipment]],1)+1,FIND(\"/U \",ProjectInfoTable[[#This Row],[Proposed Equipment]],1)-FIND(\"$\",ProjectInfoTable[[#This Row],[Proposed Equipment]],1)-1)*ProjectInfoTable[[#This Row],[Lamps (Proposed)]]*ProjectInfoTable[[#This Row],[Quantity (Proposed)]],0),\nIFERROR(ProjectInfoTable[[#This Row],[Fixture Measure kWh/yr Savings (Stipulated)]]/SUM(ProjectInfoTable[Total   kWh/yr Savings (Stipulated)])*ProjectCost_Total,\"\")))),\"\")","v":""},{"$f":"IFERROR(IF(ProjectInfoTable[[#This Row],[Fixture Measure kWh/yr Savings (Stipulated)]]=0,0,IF(ProjectType=\"Retrofit\",IF(OR(ISNUMBER(FIND(\"Midstream\",ProjectInfoTable[[#This Row],[Fixture Measure]])),ISNUMBER(FIND(\"SBDI\",ProjectInfoTable[[#This Row],[Fixture Measure]])),ISNUMBER(FIND(\"Small Bu\",ProjectInfoTable[[#This Row],[Fixture Measure]]))),ProjectInfoTable[[#This Row],[Measure Cost (Direct)]],IFERROR(ProjectInfoTable[[#This Row],[Fixture Measure kWh/yr Savings (Stipulated)]]/kWhSavings_Typical_Stipulated*(ProjectCost_Total-SUM(ProjectInfoTable[Measure Cost (Direct)])),\"\")),IF(ProjectInfoTable[[#This Row],[Proposed Equipment]]=\"\",\"\",IFERROR(SpaceTypesInfo_Table[[#Totals],[NCMR Int Cost]]*ProjectInfoTable[[#This Row],[Fixture Measure kWh/yr Savings (Stipulated)]]/SUMIFS(ProjectInfoTable[Total   kWh/yr Savings (Stipulated)],ProjectInfoTable[Proposed Equipment],\"*Interior*\"),0)))),\"\")","v":""},{"$f":"IFERROR(\n IF(\n  ProjectInfoTable[[#This Row],[Control Measure kWh/yr Savings (Stipulated)]]=0,\n  0,\n  IF(\n   ProjectType=\"Retrofit\",\n    IFERROR(\n     ProjectInfoTable[[#This Row],[Control Measure kWh/yr Savings (Stipulated)]]\n     /\n     SUMIFS(ProjectInfoTable[Control Measure kWh/yr Savings (Stipulated)],ProjectInfoTable[Control Measure],\"<>\"\"\")\n     *\n     (ProjectCost_Total-SUM(ProjectInfoTable[Fixture Cost (Allocated)])),\n     \"\"\n    ),\nROUND(\n    IF(\n     ProjectInfoTable[[#This Row],[Proposed Equipment]]=\"\",\n     \"\",\n     IFERROR(\n      SpaceTypesInfo_Table[[#Totals],[NCMR Int Cost]]\n      *\n      ProjectInfoTable[[#This Row],[Control Measure kWh/yr Savings (Stipulated)]]\n      /\n      SUMIFS(ProjectInfoTable[Total   kWh/yr Savings (Stipulated)],ProjectInfoTable[Proposed Equipment],\"*Interior*\"),\n      0\n     )\n    ),\n    2\n   )\n  )\n ),\n \"\"\n)","v":""},{"$f":"IF(AND(ProjectInfoTable[[#This Row],[Fixture Cost (Allocated)]]=\"\",ProjectInfoTable[[#This Row],[Control Cost (Allocated)]]=\"\"),\"\",SUM(ProjectInfoTable[[#This Row],[Fixture Cost (Allocated)]:[Control Cost (Allocated)]]))","v":""},{"$f":"IFERROR(IF(OR(ProjectInfoTable[[#This Row],[Proposed Equipment]]=\"\",ProjectInfoTable[[#This Row],[Quantity (Proposed)]]=\"\"),\"\",IF(OR(ProjectInfoTable[[#This Row],[Measure Selection]]=\"\",ProjectInfoTable[[#This Row],[Control kWh (Proposed)]]=\"Controls Only\"),0,IF(NOT(ISNUMBER(FIND(\"Retrofit\",ProjectType,1))),ProjectInfoTable[[#This Row],[Fixture Energy Cost Savings (Stipulated)]],IF(AND(ProjectInfoTable[[#This Row],[Fixture Measure]]=\"\",ProjectInfoTable[[#This Row],[Control Measure]]<>\"\"),0,ROUND((ProjectInfoTable[[#This Row],[Total Energy Costs (Existing, Actual)]]-ProjectInfoTable[[#This Row],[Total Energy Costs (Proposed)]]),2))))),\"\")","v":""},{"$f":"IFERROR(IF(OR(ProjectInfoTable[[#This Row],[Proposed Equipment]]=\"\",ProjectInfoTable[[#This Row],[Quantity (Proposed)]]=\"\"),\"\",\n\nIF(ProjectInfoTable[[#This Row],[Control kWh (Proposed)]]=\"Controls Only\",ProjectInfoTable[[#This Row],[Control Measure kWh/yr Savings (Actual)]]*INDEX(INDIRECT(\"RateSchedules_\"&ProjectState&\"_Table[kWh Rate]\"),\nMATCH(RateSchedule,INDIRECT(\"RateSchedules_\"&ProjectState&\"_Table[Rate Schedule]\"),0)),\n\nIF(NOT(ISNUMBER(FIND(\"Retrofit\",ProjectType,1))),ProjectInfoTable[[#This Row],[Control Energy Cost Savings (Stipulated)]],IF(AND(ProjectInfoTable[[#This Row],[Fixture Measure]]=\"\",ProjectInfoTable[[#This Row],[Control Measure]]<>\"\"),ROUND((ProjectInfoTable[[#This Row],[Total Energy Costs (Existing, Actual)]]-ProjectInfoTable[[#This Row],[Total Energy Costs (Proposed)]]),2),ROUND((ProjectInfoTable[[#This Row],[Total Energy Costs (Existing, Actual)]]-ProjectInfoTable[[#This Row],[Total Energy Costs (Proposed)]]),2)*(ProjectInfoTable[[#This Row],[Control Measure kWh/yr Savings (Actual)]]/ProjectInfoTable[[#This Row],[Total   kWh/yr Savings (Actual)]]))))),\"\")","v":""},{"$f":"IF(OR(ProjectInfoTable[[#This Row],[Proposed Equipment]]=\"\",ProjectInfoTable[[#This Row],[Quantity (Proposed)]]=\"\"),\"\",ROUND(ProjectInfoTable[[#This Row],[Fixture Energy Cost Savings (Actual)]]+ProjectInfoTable[[#This Row],[Control Energy Cost Savings (Actual)]],2))","v":""},{"$f":"IF(OR(ProjectInfoTable[[#This Row],[Proposed Equipment]]=\"\",ProjectInfoTable[[#This Row],[Quantity (Proposed)]]=\"\"),\"\",IF(OR(ISNUMBER(VALUE(ProjectInfoTable[[#This Row],[kWh Per Unit]])),ISNUMBER(VALUE(ProjectInfoTable[[#This Row],[kW Per Unit]]))),IFERROR(ProjectInfoTable[[#This Row],[Fixture Measure kWh/yr Savings (Stipulated)]]*INDEX(INDIRECT(\"RateSchedules_\"&ProjectState&\"_Table[kWh Rate]\"),MATCH(RateSchedule,INDIRECT(\"RateSchedules_\"&ProjectState&\"_Table[Rate Schedule]\"),0)),0)+IFERROR(ProjectInfoTable[[#This Row],[kW Demand Reduction (Stipulated)]]/1000*12*INDEX(INDIRECT(\"RateSchedules_\"&ProjectState&\"_Table[kW Rate]\"),MATCH(RateSchedule,INDIRECT(\"RateSchedules_\"&ProjectState&\"_Table[Rate Schedule]\"),0)),0),IFERROR(ROUND((ProjectInfoTable[[#This Row],[Total Energy Costs (Existing, Stipulated)]]-ProjectInfoTable[[#This Row],[Total Energy Costs (Proposed)]])*ProjectInfoTable[[#This Row],[Fixture Measure kWh/yr Savings (Stipulated)]]/ProjectInfoTable[[#This Row],[Total   kWh/yr Savings (Stipulated)]],2),0)))","v":""},{"$f":"IF(OR(ProjectInfoTable[[#This Row],[Proposed Equipment]]=\"\",ProjectInfoTable[[#This Row],[Quantity (Proposed)]]=\"\"),\"\",\nIF(ProjectInfoTable[[#This Row],[Control kWh (Proposed)]]=\"Controls Only\",ProjectInfoTable[[#This Row],[Control Measure kWh/yr Savings (Stipulated)]]*INDEX(INDIRECT(\"RateSchedules_\"&ProjectState&\"_Table[kWh Rate]\"),\nMATCH(RateSchedule,INDIRECT(\"RateSchedules_\"&ProjectState&\"_Table[Rate Schedule]\"),0)),IF(OR(ISNUMBER(VALUE(ProjectInfoTable[[#This Row],[Control kWh Per Unit]])),\nISNUMBER(VALUE(ProjectInfoTable[[#This Row],[Control kW Per Unit]]))),IFERROR(ProjectInfoTable[[#This Row],[Control Measure kWh/yr Savings (Stipulated)]]*INDEX(INDIRECT(\"RateSchedules_\"&ProjectState&\"_Table[kWh Rate]\"),\nMATCH(RateSchedule,INDIRECT(\"RateSchedules_\"&ProjectState&\"_Table[Rate Schedule]\"),0)),0)+IFERROR(ProjectInfoTable[[#This Row],[kW Demand Reduction (Stipulated)]]/1000*12*\nINDEX(INDIRECT(\"RateSchedules_\"&ProjectState&\"_Table[kW Rate]\"),MATCH(RateSchedule,INDIRECT(\"RateSchedules_\"&ProjectState&\"_Table[Rate Schedule]\"),0)),0),\nIFERROR(ROUND((ProjectInfoTable[[#This Row],[Total Energy Costs (Existing, Stipulated)]]-ProjectInfoTable[[#This Row],[Total Energy Costs (Proposed)]])*ProjectInfoTable[[#This Row],[Control Measure kWh/yr Savings (Stipulated)]]/\nProjectInfoTable[[#This Row],[Total   kWh/yr Savings (Stipulated)]],2),0))))","v":""},{"$f":"IF(OR(ProjectInfoTable[[#This Row],[Proposed Equipment]]=\"\",ProjectInfoTable[[#This Row],[Quantity (Proposed)]]=\"\"),\"\",ROUND(ProjectInfoTable[[#This Row],[Fixture Energy Cost Savings (Stipulated)]]+ProjectInfoTable[[#This Row],[Control Energy Cost Savings (Stipulated)]],2))","v":""},{"$f":"IF(ProjectInfoTable[[#This Row],[OpSch]]=\"\",\"\",IF(OR(ProjectInfoTable[[#This Row],[Fixture Measure]]=\"\",ProjectInfoTable[[#This Row],[Eligible Fixture Measure]]<>TRUE),0,ProjectInfoTable[[#This Row],[Fixture Incentives (pre-capping)]])+IF(OR(ProjectInfoTable[[#This Row],[Control Measure]]=\"\",ProjectInfoTable[[#This Row],[Eligible Control Measure]]<>TRUE),0,ProjectInfoTable[[#This Row],[Control Incentives (pre-capping)]]))","v":""},{"$f":"IF(OR(ProjectInfoTable[[#This Row],[Fixture Measure]]<>\"\",ProjectInfoTable[[#This Row],[Control Measure]]<>\"\"),IF(ProjectInfoTable[[#This Row],[Fixture Incentives]]=\"\",0,ProjectInfoTable[[#This Row],[Fixture Incentives]])+IF(ProjectInfoTable[[#This Row],[Control Incentives]]=\"\",0,ProjectInfoTable[[#This Row],[Control Incentives]]),\"\")","v":""},null,{"$f":"IF(OR(ProjectInfoTable[[#This Row],[Fixture Measure]]=\"\",ProjectInfoTable[[#This Row],[OpSch]]=\"\",ProjectInfoTable[[#This Row],[Eligible Fixture Measure]]<>TRUE),\"\",\nIF(OR(ISNUMBER(FIND(\"SBDI\",ProjectInfoTable[[#This Row],[Fixture Measure]])),ISNUMBER(FIND(\"Small Bu\",ProjectInfoTable[[#This Row],[Fixture Measure]]))),IFERROR(0.75*ProjectInfoTable[[#This Row],[Fixture Cost (Allocated)]],\"cost error\"),\nIF(AND(OR(ProjectType=\"New Construction\",ProjectType=\"Major Renovation\"),LPDCodeToProposed<0.1,ISNUMBER(FIND(\"Interior\",ProjectInfoTable[[#This Row],[Proposed Equipment]],1))),0,IFERROR(ProjectInfoTable[[#This Row],[Incentives Per Unit]]*ProjectInfoTable[[#This Row],[Quantity]]*ProjectInfoTable[[#This Row],[No. of TRL Units]],\"TRL Error\"))))","v":""},{"$f":"IF(\n    OR(\n        ProjectInfoTable[[#This Row],[Fixture Measure]] = \"\",\n        ProjectInfoTable[[#This Row],[OpSch]] = \"\",\n        ProjectInfoTable[[#This Row],[Eligible Fixture Measure]] <> TRUE\n    ),\n    \"\",\n    IF(\n        OR(\n            ISNUMBER(FIND(\"SBDI\", ProjectInfoTable[[#This Row],[Fixture Measure]])),\n            ISNUMBER(FIND(\"Small Bu\", ProjectInfoTable[[#This Row],[Fixture Measure]]))\n        ),\n        IFERROR(\n            (Incentive_NonTypical / Incentive_NonTypical_PreCapped) * ProjectInfoTable[[#This Row],[Fixture Incentives (pre-capping)]],\n            \"\"\n        ),\n        IF(\n            AND(\n                ProjectType = \"Retrofit\",\n                ProjectState = \"UT\",\n                ISNUMBER(FIND(\"Post-Purchase\", ProjectInfoTable[[#This Row],[Fixture Measure]], 1))\n            ),\n            IFERROR(\n                MAX(\n                    MIN(\n                        ProjectInfoTable[[#This Row],[Fixture Incentives (pre-capping)]],\n                        ProjectInfoTable[[#This Row],[Fixture Cost (Allocated)]] * 0.7\n                    ),\n                    0\n                ),\n                0\n            ),\n            IF(\n                ProjectType = \"Retrofit\",\n                IF(\n                    ISNUMBER(FIND(\"Post-Purchase\", ProjectInfoTable[[#This Row],[Fixture Measure]], 1)),\n                    ProjectInfoTable[[#This Row],[Fixture Incentives (pre-capping)]],\n                    IFERROR(\n                        $BI$3 / $BH$3 * ProjectInfoTable[[#This Row],[Fixture Incentives (pre-capping)]],\n                        \"\"\n                    )\n                ),\n                IF(\n                    ISNUMBER(FIND(\"Interior\", ProjectInfoTable[[#This Row],[Proposed Equipment]], 1)),\n                    IF(\n                        LPDCodeToProposed > 0.1,\n                        ProjectInfoTable[[#This Row],[Fixture Incentives (pre-capping)]],\n                        0\n                    ),\n                    ProjectInfoTable[[#This Row],[Fixture Incentives (pre-capping)]]\n                )\n            )\n        )\n    )\n)","v":""},{"$f":"IF(OR(ProjectInfoTable[[#This Row],[Incentives Per Unit]]=\"\",ProjectInfoTable[[#This Row],[TRL Unit]]=\"\"),\"\",IF(ProjectInfoTable[[#This Row],[Eligible Fixture Measure]]<>TRUE,\"Invalid Effective Date\",\nIF(OR(ISNUMBER(FIND(\"SBDI\",ProjectInfoTable[[#This Row],[Fixture Measure]])),ISNUMBER(FIND(\"Small Bu\",ProjectInfoTable[[#This Row],[Fixture Measure]]))),\"$0.75 / dollar cost\",\nTEXT(ProjectInfoTable[[#This Row],[Incentives Per Unit]],\"$#,##0.00\")&\" / \"&IF(ProjectInfoTable[[#This Row],[Fixture Measure]]=\"\",\"\",IF(ProjectInfoTable[[#This Row],[TRL Unit]]=\"Measure\",IF(ISNUMBER(FIND(\"Relamp\",ProjectInfoTable[[#This Row],[Proposed Equipment]],1)),\"Lamp\",\"Fixture\"),ProjectInfoTable[[#This Row],[TRL Unit]])))))","v":""},{"$f":"IF(OR(ProjectInfoTable[[#This Row],[Proposed Equipment]]=\"\",ProjectInfoTable[[#This Row],[Quantity (Proposed)]]=\"\"),\"\",IFERROR(SUBSTITUTE(IF(ProjectType=\"Retrofit\",IF(OR(ISNUMBER(FIND(\"Controls On\",ProjectInfoTable[[#This Row],[Proposed Equipment]],1))),\"\",IF(OR(ProjectInfoTable[[#This Row],[Existing Equipment]]=\"\",ProjectInfoTable[[#This Row],[Proposed Equipment]]=\"\"),\"\",IF(ProjectState=\"UT\",IFERROR(IF(AlternativeEnergyOverride=\"Yes\",IFERROR(INDEX(INDIRECT(\"EquipmentTable_\"&\"Retrofit_\"&ProjectState&\"[#All]\"),MATCH(LEFT(ProjectInfoTable[[#This Row],[Proposed Equipment]],FIND(\"[\",ProjectInfoTable[[#This Row],[Proposed Equipment]],1)-2)&\" (Alt)\",INDIRECT(\"EquipmentTable_\"&\"Retrofit_\"&ProjectState&\"[equipmentProposed]\"),0)+1,MATCH(\"measureRetrofit_\"&LEFT(ProjectInfoTable[[#This Row],[Existing Equipment]],FIND(\":\",ProjectInfoTable[[#This Row],[Existing Equipment]],1)-1)&\"_\"&IF(IFERROR(INDEX(ControlsLookup[Rank],MATCH(RIGHT(ProjectInfoTable[[#This Row],[Proposed Equipment]],LEN(ProjectInfoTable[[#This Row],[Proposed Equipment]])-FIND(\"]\",ProjectInfoTable[[#This Row],[Proposed Equipment]],1)-3),ControlsLookup[Controls],0)),0)>IFERROR(INDEX(ControlsLookup[Rank],MATCH(RIGHT(ProjectInfoTable[[#This Row],[Existing Equipment]],LEN(ProjectInfoTable[[#This Row],[Existing Equipment]])-FIND(\"]\",ProjectInfoTable[[#This Row],[Existing Equipment]],1)-3),ControlsLookup[Controls],0)),0),INDEX(ControlsLookup[Controls Type],MATCH(LEFT(ProjectInfoTable[[#This Row],[Existing Equipment]],FIND(\":\",ProjectInfoTable[[#This Row],[Existing Equipment]],1)-1)&\"_\"&RIGHT(ProjectInfoTable[[#This Row],[Proposed Equipment]],LEN(ProjectInfoTable[[#This Row],[Proposed Equipment]])-FIND(\"]\",ProjectInfoTable[[#This Row],[Proposed Equipment]],1)-3),ControlsLookup[Controls Concatenate],0)),\"None\"),INDIRECT(\"EquipmentTable_\"&\"Retrofit_\"&ProjectState&\"[#Headers]\"),0)),INDEX(INDIRECT(\"EquipmentTable_\"&IF(ProjectType=\"Retrofit\",\"Retrofit_\",\"NCMR_\")&ProjectState&\"[#All]\"),MATCH(LEFT(ProjectInfoTable[[#This Row],[Proposed Equipment]],FIND(\"[\",ProjectInfoTable[[#This Row],[Proposed Equipment]],1)-2),INDIRECT(\"EquipmentTable_\"&\"Retrofit_\"&ProjectState&\"[equipmentProposed]\"),0)+1,MATCH(\"measureRetrofit_\"&LEFT(ProjectInfoTable[[#This Row],[Existing Equipment]],FIND(\":\",ProjectInfoTable[[#This Row],[Existing Equipment]],1)-1)&\"_\"&IF(IFERROR(INDEX(ControlsLookup[Rank],MATCH(RIGHT(ProjectInfoTable[[#This Row],[Proposed Equipment]],LEN(ProjectInfoTable[[#This Row],[Proposed Equipment]])-FIND(\"]\",ProjectInfoTable[[#This Row],[Proposed Equipment]],1)-3),ControlsLookup[Controls],0)),0)>IFERROR(INDEX(ControlsLookup[Rank],MATCH(RIGHT(ProjectInfoTable[[#This Row],[Existing Equipment]],LEN(ProjectInfoTable[[#This Row],[Existing Equipment]])-FIND(\"]\",ProjectInfoTable[[#This Row],[Existing Equipment]],1)-3),ControlsLookup[Controls],0)),0),INDEX(ControlsLookup[Controls Type],MATCH(LEFT(ProjectInfoTable[[#This Row],[Existing Equipment]],FIND(\":\",ProjectInfoTable[[#This Row],[Existing Equipment]],1)-1)&\"_\"&RIGHT(ProjectInfoTable[[#This Row],[Proposed Equipment]],LEN(ProjectInfoTable[[#This Row],[Proposed Equipment]])-FIND(\"]\",ProjectInfoTable[[#This Row],[Proposed Equipment]],1)-3),ControlsLookup[Controls Concatenate],0)),\"None\"),INDIRECT(\"EquipmentTable_\"&IF(ProjectType=\"Retrofit\",\"Retrofit_\",\"NCMR_\")&ProjectState&\"[#Headers]\"),0))),INDEX(INDIRECT(\"EquipmentTable_\"&IF(ProjectType=\"Retrofit\",\"Retrofit_\",\"NCMR_\")&ProjectState&\"[#All]\"),MATCH(LEFT(ProjectInfoTable[[#This Row],[Proposed Equipment]],FIND(\"[\",ProjectInfoTable[[#This Row],[Proposed Equipment]],1)-2),INDIRECT(\"EquipmentTable_\"&IF(ProjectType=\"Retrofit\",\"Retrofit_\",\"NCMR_\")&ProjectState&\"[equipmentProposed]\"),0)+1,MATCH(\"measureRetrofit_\"&IF(AND(SBDEligible=\"Yes\",ISNUMBER(FIND(\"SBE\",ProjectInfoTable[[#This Row],[Proposed Equipment]]))),\"SBE\",LEFT(ProjectInfoTable[[#This Row],[Existing Equipment]],FIND(\":\",ProjectInfoTable[[#This Row],[Existing Equipment]],1)-1)&\"_\"&IF(IFERROR(INDEX(ControlsLookup[Rank],MATCH(RIGHT(ProjectInfoTable[[#This Row],[Proposed Equipment]],LEN(ProjectInfoTable[[#This Row],[Proposed Equipment]])-FIND(\"]\",ProjectInfoTable[[#This Row],[Proposed Equipment]],1)-3),ControlsLookup[Controls],0)),0)>IFERROR(INDEX(ControlsLookup[Rank],MATCH(RIGHT(ProjectInfoTable[[#This Row],[Existing Equipment]],LEN(ProjectInfoTable[[#This Row],[Existing Equipment]])-FIND(\"]\",ProjectInfoTable[[#This Row],[Existing Equipment]],1)-3),ControlsLookup[Controls],0)),0),INDEX(ControlsLookup[Controls Type],MATCH(LEFT(ProjectInfoTable[[#This Row],[Existing Equipment]],FIND(\":\",ProjectInfoTable[[#This Row],[Existing Equipment]],1)-1)&\"_\"&RIGHT(ProjectInfoTable[[#This Row],[Proposed Equipment]],LEN(ProjectInfoTable[[#This Row],[Proposed Equipment]])-FIND(\"]\",ProjectInfoTable[[#This Row],[Proposed Equipment]],1)-3),ControlsLookup[Controls Concatenate],0)),\"None\")),INDIRECT(\"EquipmentTable_\"&\"Retrofit_\"&ProjectState&\"[#Headers]\"),0))),\"Non-eligible fixture - Retrofit - \"&ProjectState),IFERROR(INDEX(INDIRECT(\"EquipmentTable_\"&IF(SiteSpecificOverride=\"Yes\",\"PostPurchase_\",\"Retrofit_\")&ProjectState&\"[#All]\"),MATCH(LEFT(ProjectInfoTable[[#This Row],[Proposed Equipment]],FIND(\"[\",ProjectInfoTable[[#This Row],[Proposed Equipment]],1)-2),INDIRECT(\"EquipmentTable_\"&IF(SiteSpecificOverride=\"Yes\",\"PostPurchase_\",\"Retrofit_\")&ProjectState&\"[equipmentProposed]\"),0)+1,MATCH(\"measureRetrofit_\"&IF(AND(SBDEligible=\"Yes\",ISNUMBER(FIND(\"SBE\",ProjectInfoTable[[#This Row],[Proposed Equipment]]))),\"SBE\",LEFT(ProjectInfoTable[[#This Row],[Existing Equipment]],FIND(\":\",ProjectInfoTable[[#This Row],[Existing Equipment]],1)-1)&\"_\"&IF(IFERROR(INDEX(ControlsLookup[Rank],MATCH(RIGHT(ProjectInfoTable[[#This Row],[Proposed Equipment]],LEN(ProjectInfoTable[[#This Row],[Proposed Equipment]])-FIND(\"]\",ProjectInfoTable[[#This Row],[Proposed Equipment]],1)-3),ControlsLookup[Controls],0)),0)>IFERROR(INDEX(ControlsLookup[Rank],MATCH(RIGHT(ProjectInfoTable[[#This Row],[Existing Equipment]],LEN(ProjectInfoTable[[#This Row],[Existing Equipment]])-FIND(\"]\",ProjectInfoTable[[#This Row],[Existing Equipment]],1)-3),ControlsLookup[Controls],0)),0),INDEX(ControlsLookup[Controls Type],MATCH(LEFT(ProjectInfoTable[[#This Row],[Existing Equipment]],FIND(\":\",ProjectInfoTable[[#This Row],[Existing Equipment]],1)-1)&\"_\"&RIGHT(ProjectInfoTable[[#This Row],[Proposed Equipment]],LEN(ProjectInfoTable[[#This Row],[Proposed Equipment]])-FIND(\"]\",ProjectInfoTable[[#This Row],[Proposed Equipment]],1)-3),ControlsLookup[Controls Concatenate],0)),\"None\")),INDIRECT(\"EquipmentTable_\"&IF(SiteSpecificOverride=\"Yes\",\"PostPurchase_\",\"Retrofit_\")&ProjectState&\"[#Headers]\"),0)),\"Non-eligible fixture - Retrofit - \"&ProjectState)))),IFERROR(INDEX(INDIRECT(\"EquipmentTable_\"&\"NCMR_\"&ProjectState),MATCH(RIGHT(LEFT(ProjectInfoTable[[#This Row],[Proposed Equipment]],FIND(\" (\",ProjectInfoTable[[#This Row],[Proposed Equipment]],1)-1),LEN(LEFT(ProjectInfoTable[[#This Row],[Proposed Equipment]],FIND(\" (\",ProjectInfoTable[[#This Row],[Proposed Equipment]],1)-2))-FIND(\":\",ProjectInfoTable[[#This Row],[Proposed Equipment]],1)),INDIRECT(\"EquipmentTable_\"&\"NCMR_\"&ProjectState&\"[equipmentProposed]\"),0),MATCH(\"measureNCMR_\"&LEFT(ProjectInfoTable[[#This Row],[Proposed Equipment]],FIND(\":\",ProjectInfoTable[[#This Row],[Proposed Equipment]],1)-1)&\"_\"&IF(LEN(ProjectInfoTable[[#This Row],[Proposed Equipment]])>FIND(\"]\",ProjectInfoTable[[#This Row],[Proposed Equipment]]),INDEX(ControlsLookup[Controls Type],MATCH(LEFT(ProjectInfoTable[[#This Row],[Proposed Equipment]],FIND(\":\",ProjectInfoTable[[#This Row],[Proposed Equipment]],1)-1)&\"_\"&RIGHT(ProjectInfoTable[[#This Row],[Proposed Equipment]],LEN(ProjectInfoTable[[#This Row],[Proposed Equipment]])-FIND(\"]\",ProjectInfoTable[[#This Row],[Proposed Equipment]],1)-3),ControlsLookup[Controls Concatenate],0)),\"None\"),INDIRECT(\"EquipmentTable_\"&\"NCMR_\"&ProjectState&\"[#Headers]\"),0)),\"Non-eligible fixture - NCMR - \"&ProjectState)),\"[NAMESUB]\",ProjectInfoTable[[#This Row],[Measure Name Sub]]),\"Non-eligible fixture - Retrofit - \"&ProjectState))","v":""},{"$f":"IF(ISNUMBER(SEARCH(\"Case\",ProjectInfoTable[[#This Row],[Fixture Measure]])),CONCATENATE(ProjectInfoTable[[#This Row],[Fixture Measure]],ProjectInfoTable[[#This Row],[No. of TRL Units]],ProjectInfoTable[[#This Row],[Quantity]]),\"\")","v":""},{"$f":"IF(ProjectInfoTable[[#This Row],[Proposed Equipment]]=\"\",\"\",\nIF(AND(ProjectState = \"UT\",ISNUMBER(FIND(\" TLED \",ProjectInfoTable[[#This Row],[Proposed Equipment]]))),\nIF(VALUE(ProjectInfoTable[[#This Row],[Lamp W (Proposed)]])<20,\"< 20 W\",\nIF(AND(VALUE(ProjectInfoTable[[#This Row],[Lamp W (Proposed)]])<=39,VALUE(ProjectInfoTable[[#This Row],[Lamp W (Proposed)]])>=20),\">= 20 W and <= 39 W\",)),\n\nIF(AND(ProjectType=\"Retrofit\",OR(ISNUMBER(FIND(\"Retrofit Kit\",ProjectInfoTable[[#This Row],[Proposed Equipment]])),ISNUMBER(FIND(\"Fixture\",ProjectInfoTable[[#This Row],[Proposed Equipment]]))),OR(ISNUMBER(FIND(\"Exterior\",ProjectInfoTable[[#This Row],[Existing Equipment]])),ISNUMBER(FIND(\"Street\",ProjectInfoTable[[#This Row],[Existing Equipment]])))),\nIF(ProjectInfoTable[[#This Row],[Fixture W (Proposed)]]<50,\"< 50 W\",\nIF(AND(ProjectInfoTable[[#This Row],[Fixture W (Proposed)]]<90,ProjectInfoTable[[#This Row],[Fixture W (Proposed)]]>=50),\">= 50 W and < 90 W\",\nIF(AND(ProjectInfoTable[[#This Row],[Fixture W (Proposed)]]<135,ProjectInfoTable[[#This Row],[Fixture W (Proposed)]]>=90),\">= 90 W and < 135 W\",\nIF(AND(ProjectInfoTable[[#This Row],[Fixture W (Proposed)]]<220,ProjectInfoTable[[#This Row],[Fixture W (Proposed)]]>=135),\">= 135 W and < 220 W\",\nIF(ProjectInfoTable[[#This Row],[Fixture W (Proposed)]]>=220,\">= 220 W\"))))),\"\")))","v":""},{"$f":"IFERROR(INDEX(INDIRECT(\"MeasureTable_\" & ProjectState & \"[Measure Reference Number]\"),MATCH(ProjectInfoTable[[#This Row],[Fixture Measure]],INDIRECT(\"MeasureTable_\" &ProjectState&\"[Measure Name]\"),0)),\"\")","v":""},{"$f":"IFERROR(\n    _xlfn.LET(\n        _xlpm.filteredVersions,\n            _xlfn._xlws.FILTER(\n                INDIRECT(\"MeasureTable_\" & ProjectState & \"[Version Number]\"),\n                (INDIRECT(\"MeasureTable_\" & ProjectState & \"[Measure Reference Number]\") = ProjectInfoTable[[#This Row],[Fixture Measure Reference Number]]) *\n                (INDIRECT(\"MeasureTable_\" & ProjectState & \"[Eligible Measure]\") = TRUE)\n            ),\n        INDEX(_xlpm.filteredVersions, 1)\n    ),\n    \"\"\n)","v":""},{"$f":"IFERROR(\n  _xlfn.LET(\n    _xlpm.refRange, INDIRECT(\"MeasureTable_\" & ProjectState & \"[Measure Reference Number]\"),\n    _xlpm.eligibleRange, INDIRECT(\"MeasureTable_\" & ProjectState & \"[Eligible Measure]\"),\n    _xlpm.countTrue, SUMPRODUCT(--(_xlpm.refRange = ProjectInfoTable[[#This Row],[Fixture Measure Reference Number]]), --(_xlpm.eligibleRange = TRUE)),\n    _xlpm.countNonBlank, SUMPRODUCT(--(_xlpm.refRange = ProjectInfoTable[[#This Row],[Fixture Measure Reference Number]]), --(_xlpm.eligibleRange <> \"\")),\n    IF(_xlpm.countNonBlank = 0, \"\", IF(_xlpm.countTrue >= 1, TRUE, FALSE))\n  ),\n  \"\"\n)","v":""},{"$f":"IFERROR(VALUE(INDEX(INDIRECT(\"MeasureTable_\" & ProjectState & \"[CustomerIncentiveDollarperunit]\"),MATCH(ProjectInfoTable[[#This Row],[Fixture Measure]]&\" | TRUE\",INDIRECT(\"MeasureTable_\" &ProjectState&\"[MeasureEligibleConcatenate]\"),0))),\"\")","v":""},{"$f":"IFERROR(INDEX(INDIRECT(\"MeasureTable_\"&ProjectState&\"[SiteSpecificCalculation]\"),MATCH(ProjectInfoTable[[#This Row],[Fixture Measure]]&\" | TRUE\",INDIRECT(\"MeasureTable_\" &ProjectState&\"[MeasureEligibleConcatenate]\"),0)),\"\")","v":""},{"$f":"IFERROR(INDEX(INDIRECT(\"MeasureTable_\"&ProjectState&\"[GrossIncrementalAnnualElectricSavings]\"),MATCH(ProjectInfoTable[[#This Row],[Fixture Measure]]&\" | TRUE\",INDIRECT(\"MeasureTable_\" &ProjectState&\"[MeasureEligibleConcatenate]\"),0)),\"\")","v":""},{"$f":"IFERROR(INDEX(INDIRECT(\"MeasureTable_\"&ProjectState&\"[GrossAverageMonthlyDemandReduction]\"),MATCH(ProjectInfoTable[[#This Row],[Fixture Measure]]&\" | TRUE\",INDIRECT(\"MeasureTable_\" &ProjectState&\"[MeasureEligibleConcatenate]\"),0)),\"\")","v":""},{"$f":"IF(ProjectInfoTable[[#This Row],[Fixture Measure]]=\"\",\"\",IF(NOT(ISNUMBER(FIND(\"Site-Specific - Downstream\",ProjectInfoTable[[#This Row],[Fixture Measure]]))),\"\",\nIF(ISNUMBER(MATCH(SUBSTITUTE(ProjectInfoTable[[#This Row],[Fixture Measure]],\"Site-Specific - Downstream - v2\",\"Mid Market\"),INDIRECT(\"MeasureTable_\"&ProjectState&\"[Measure Name]\"),0)),\nSUBSTITUTE(ProjectInfoTable[[#This Row],[Fixture Measure]],\"Site-Specific - Downstream - v2\",\"Mid Market\"),\nSUBSTITUTE(ProjectInfoTable[[#This Row],[Fixture Measure]],\"Site-Specific - Downstream\",\"Mid Market\"))\n))","v":""},{"$f":"IF(ProjectInfoTable[[#This Row],[Midstream Measure Name]]=\"\",\"\",IFERROR(INDEX(INDIRECT(\"MeasureTable_\"&ProjectState&\"[GrossIncrementalAnnualElectricSavings ]\"),MATCH(ProjectInfoTable[[#This Row],[Midstream Measure Name]]&\" | TRUE\",INDIRECT(\"MeasureTable_\" &ProjectState&\"[MeasureEligibleConcatenate]\"),0)),\"\"))","v":""},{"$f":"IF(ProjectInfoTable[[#This Row],[Midstream Measure Name]]=\"\",\"\",IFERROR(INDEX(INDIRECT(\"MeasureTable_\"&ProjectState&\"[GrossAverage onthly emand eduction]\"),MATCH(ProjectInfoTable[[#This Row],[Midstream Measure Name]]&\" | TRUE\",INDIRECT(\"MeasureTable_\" &ProjectState&\"[MeasureEligibleConcatenate]\"),0)),\"\"))","v":""},{"$f":"IFERROR(INDEX(INDIRECT(\"MeasureTable_\"&ProjectState&\"[IncrementalMeasureCost]\"),MATCH(ProjectInfoTable[[#This Row],[Fixture Measure]]&\" | TRUE\",INDIRECT(\"MeasureTable_\" &ProjectState&\"[MeasureEligibleConcatenate]\"),0)),\"\")","v":""},{"$f":"IF(ProjectInfoTable[[#This Row],[Fixture Measure]]=\"\",\"\",IF(AND(ProjectState=\"UT\",ProjectInfoTable[[#This Row],[Measure Selection]]=\"\"),0,\nIF(OR(ISNUMBER(FIND(\"SBDI\",ProjectInfoTable[[#This Row],[Fixture Measure]])),ISNUMBER(FIND(\"Small Bu\",ProjectInfoTable[[#This Row],[Fixture Measure]]))),ProjectInfoTable[[#This Row],[Quantity (Proposed)]]*ProjectInfoTable[[#This Row],[Lamps (Proposed)]],\nIF(OR(ProjectInfoTable[[#This Row],[TRL Unit]]=\"Measure\",ProjectInfoTable[[#This Row],[TRL Unit]]=\"Linear ft.\"),IF(OR(ISNUMBER(FIND(\"Lamp\",ProjectInfoTable[[#This Row],[Fixture Measure]],1)),ISNUMBER(FIND(\"Relamp\",ProjectInfoTable[[#This Row],[Fixture Measure]],1)),ISNUMBER(FIND(\"Relamp\",ProjectInfoTable[[#This Row],[Proposed Equipment]],1))),ProjectInfoTable[[#This Row],[Quantity (Proposed)]]*ProjectInfoTable[[#This Row],[Lamps (Proposed)]],ProjectInfoTable[[#This Row],[Quantity (Proposed)]]),1))))","v":""},{"$f":"IF(ProjectInfoTable[[#This Row],[Fixture Measure]]=\"\",\"\",IF(AND(ProjectState=\"UT\",ProjectInfoTable[[#This Row],[Measure Selection]]=\"\"),0,\nIF(OR(ISNUMBER(FIND(\"SBDI\",ProjectInfoTable[[#This Row],[Fixture Measure]])),ISNUMBER(FIND(\"Small Bu\",ProjectInfoTable[[#This Row],[Fixture Measure]]))),1,\nIF(ISNUMBER(FIND(\"Controls Only\",ProjectInfoTable[[#This Row],[Proposed Equipment]],1)),IF(OR(ProjectType <> \"Retrofit\",ProjectInfoTable[[#This Row],[Space W (Proposed)]]>0),ProjectInfoTable[[#This Row],[Space W (Proposed)]],ProjectInfoTable[[#This Row],[Space W (Existing, Stipulated)]]),\nIF(TRIM(UPPER(ProjectInfoTable[[#This Row],[TRL Unit]]))=\"LINEAR FT.\",IF(OR(ISNUMBER(FIND(\"Marquee\",ProjectInfoTable[[#This Row],[Proposed Equipment]],1)),ISNUMBER(FIND(\"Cabinet\",ProjectInfoTable[[#This Row],[Proposed Equipment]],1))),VALUE(RIGHT(LEFT(ProjectInfoTable[[#This Row],[Existing Equipment]],FIND(\"LF \",ProjectInfoTable[[#This Row],[Existing Equipment]],1)-1),LEN(LEFT(ProjectInfoTable[[#This Row],[Existing Equipment]],FIND(\"LF \",ProjectInfoTable[[#This Row],[Existing Equipment]],1)-1))-FIND(\"[\",ProjectInfoTable[[#This Row],[Existing Equipment]],1))),VALUE(RIGHT(LEFT(ProjectInfoTable[[#This Row],[Proposed Equipment]],FIND(\"LF \",ProjectInfoTable[[#This Row],[Proposed Equipment]],1)-1),LEN(LEFT(ProjectInfoTable[[#This Row],[Proposed Equipment]],FIND(\"LF \",ProjectInfoTable[[#This Row],[Proposed Equipment]],1)-1))-FIND(\"[\",ProjectInfoTable[[#This Row],[Proposed Equipment]],1)))),\nIF(TRIM(UPPER(ProjectInfoTable[[#This Row],[TRL Unit]]))=\"KWH\",IF(ProjectInfoTable[[#This Row],[Fixture Measure kWh/yr Savings (Stipulated)]]=0,0,ROUND(ProjectInfoTable[[#This Row],[Fixture Measure kWh/yr Savings (Stipulated)]],2)),\nIF(TRIM(UPPER(ProjectInfoTable[[#This Row],[TRL Unit]]))=\"WATT REDUCED\",IF(ProjectInfoTable[[#This Row],[Fixture Measure kWh/yr Savings (Stipulated)]]=0,0,ROUND(ProjectInfoTable[[#This Row],[Space W (Existing, Stipulated)]]-ProjectInfoTable[[#This Row],[Space W (Proposed)]],2)),\nIF(TRIM(UPPER(ProjectInfoTable[[#This Row],[TRL Unit]]))=\"FIXTURE WATTAGE\",ProjectInfoTable[[#This Row],[Space W (Proposed)]],1))))))))","v":""},{"$f":"IFERROR(IF(OR(ISNUMBER(FIND(\"SBDI\",ProjectInfoTable[[#This Row],[Fixture Measure]])),ISNUMBER(FIND(\"Small Bu\",ProjectInfoTable[[#This Row],[Fixture Measure]]))),0,INDEX(INDIRECT(\"MeasureTable_\"&ProjectState&\"[Unit]\"),MATCH(ProjectInfoTable[[#This Row],[Fixture Measure]]&\" | TRUE\",INDIRECT(\"MeasureTable_\" &ProjectState&\"[MeasureEligibleConcatenate]\"),0))),\"\")","v":""},{"$f":"IF(ProjectInfoTable[[#This Row],[Fixture Measure]]=\"\",\"\",IF(OR(ISNUMBER(FIND(\"Lamp(s)\",ProjectInfoTable[[#This Row],[Fixture Measure]],1)),ISNUMBER(FIND(\"Relamp\",ProjectInfoTable[[#This Row],[Proposed Equipment]],1))),\"Lamp(s)\",\"Fixture(s)\"))","v":""},{"$f":"IFERROR(INDEX(INDIRECT(\"MeasureTable_\"&ProjectState&\"[ProjectCapPercent]\"),MATCH(ProjectInfoTable[[#This Row],[Fixture Measure]]&\" | TRUE\",INDIRECT(\"MeasureTable_\" &ProjectState&\"[MeasureEligibleConcatenate]\"),0)),\"\")","v":""},{"$f":"IF(OR(ProjectInfoTable[[#This Row],[Control Measure]]=\"\",ProjectInfoTable[[#This Row],[OpSch]]=\"\",ProjectInfoTable[[#This Row],[Eligible Control Measure]]<>TRUE),\"\",IF(AND(OR(ProjectType=\"New Construction\",ProjectType=\"Major Renovation\"),LPDCodeToProposed<0.1,ISNUMBER(FIND(\"Interior\",ProjectInfoTable[[#This Row],[Proposed Equipment]],1))),0,IFERROR(ProjectInfoTable[[#This Row],[Control Incentives Per Unit]]*ProjectInfoTable[[#This Row],[Control Quantity]]*ProjectInfoTable[[#This Row],[Control No. of TRL Units]],\"TRL Error\")))","v":""},{"$f":"IF(OR(ProjectInfoTable[[#This Row],[Control Measure]]=\"\",ProjectInfoTable[[#This Row],[OpSch]]=\"\",ProjectInfoTable[[#This Row],[Eligible Control Measure]]<>TRUE),\"\",IF(AND(ProjectType=\"Retrofit\",ProjectState=\"UT\",ISNUMBER(FIND(\"Post Purchase\",ProjectInfoTable[[#This Row],[Control Measure]],1))),\n\nIFERROR(MAX(MIN(ProjectInfoTable[[#This Row],[Control Incentives (pre-capping)]],ProjectInfoTable[[#This Row],[Control Cost (Allocated)]]*0.7),0),0),\n\nIF(ProjectType=\"Retrofit\",IF(ISNUMBER(FIND(\"Post Purchase\",ProjectInfoTable[[#This Row],[Control Measure]],1)),ProjectInfoTable[[#This Row],[Control Incentives (pre-capping)]],IFERROR($BI$3/$BH$3*ProjectInfoTable[[#This Row],[Control Incentives (pre-capping)]],\"\")),\n\nIF(ISNUMBER(FIND(\"Interior\",ProjectInfoTable[[#This Row],[Proposed Equipment]],1)),IF(LPDCodeToProposed>0.1,ProjectInfoTable[[#This Row],[Control Incentives (pre-capping)]],0),ProjectInfoTable[[#This Row],[Control Incentives (pre-capping)]]))))","v":""},{"$f":"IF(OR(ProjectInfoTable[[#This Row],[Control Incentives Per Unit]]=\"\",ProjectInfoTable[[#This Row],[Control TRL Unit]]=\"\"),\"\",IF(ProjectInfoTable[[#This Row],[Eligible Control Measure]]<>TRUE,\"Invalid Effective Date\",TEXT(ProjectInfoTable[[#This Row],[Control Incentives Per Unit]],\"$#,##0.00\")&\" / \"&ProjectInfoTable[[#This Row],[Control TRL Unit]]))","v":""},{"$f":"IF(ISNUMBER(FIND(\"SBE\",ProjectInfoTable[[#This Row],[Proposed Equipment]])),\"\",\n\nIF(LEN(ProjectInfoTable[[#This Row],[Proposed Equipment]])>\n\nIFERROR(FIND(\"]\",ProjectInfoTable[[#This Row],[Proposed Equipment]],1),0),\nSUBSTITUTE(\nIF(OR(ProjectInfoTable[[#This Row],[Control Method]]=\"separate\",ISNUMBER(FIND(\"Midstream\",ProjectInfoTable[[#This Row],[Fixture Measure]],1)),ISNUMBER(FIND(\"Midstream\",ProjectInfoTable[[#This Row],[Equipment Category]],1)),ISNUMBER(FIND(\"Prescriptive\",ProjectInfoTable[[#This Row],[Equipment Category]],1)),ISNUMBER(FIND(\"LED\",ProjectInfoTable[[#This Row],[Fixture Measure]],1)),ISNUMBER(FIND(\"LED Case\",ProjectInfoTable[[#This Row],[Fixture Measure]],1)),ISNUMBER(FIND(\"LED Decorative - Retrofit - WA\",ProjectInfoTable[[#This Row],[Fixture Measure]],1)),ISNUMBER(FIND(\"Lamp\",ProjectInfoTable[[#This Row],[Fixture Measure]],1)),ISNUMBER(FIND(\"Relamp\",ProjectInfoTable[[#This Row],[Fixture Measure]],1)),ISNUMBER(FIND(\"Wall Pack\",ProjectInfoTable[[#This Row],[Fixture Measure]],1)),ISNUMBER(FIND(\"Controls Only\",ProjectInfoTable[[#This Row],[Proposed Equipment]],1)),ISNUMBER(FIND(\"Re-Commissioning\",ProjectInfoTable[[#This Row],[Proposed Equipment]],1)),\n\nAND(OR(ISNUMBER(FIND(\"Exterior:\",ProjectInfoTable[[#This Row],[Proposed Equipment]],1)),ISNUMBER(FIND(\"Street:\",ProjectInfoTable[[#This Row],[Proposed Equipment]],1))),OR(ProjectState=\"ID\",ProjectState=\"UT\",ProjectState=\"WY\"))),\n\nIF(IFERROR(INDEX(ControlsLookup[],MATCH(IF(ProjectType=\"Retrofit\",LEFT(ProjectInfoTable[[#This Row],[Existing Equipment]],FIND(\":\",ProjectInfoTable[[#This Row],[Existing Equipment]],1)-1),LEFT(ProjectInfoTable[[#This Row],[Proposed Equipment]],FIND(\":\",ProjectInfoTable[[#This Row],[Proposed Equipment]],1)-1))&\"_\"&RIGHT(ProjectInfoTable[[#This Row],[Proposed Equipment]],LEN(ProjectInfoTable[[#This Row],[Proposed Equipment]])-FIND(\"]\",ProjectInfoTable[[#This Row],[Proposed Equipment]],1)-3),ControlsLookup[Controls Concatenate],0),MATCH(\n\nIF(ProjectType=\"Retrofit\",\"ControlMeasure_\",\"NCMRControlMeasure_\")&ProjectState,ControlsLookup[#Headers],0)),\"\")=0,\"\",\n\nIFERROR(INDEX(ControlsLookup[],MATCH(IF(ProjectType=\"Retrofit\",LEFT(ProjectInfoTable[[#This Row],[Existing Equipment]],FIND(\":\",ProjectInfoTable[[#This Row],[Existing Equipment]],1)-1),LEFT(ProjectInfoTable[[#This Row],[Proposed Equipment]],FIND(\":\",ProjectInfoTable[[#This Row],[Proposed Equipment]],1)-1))&\"_\"&RIGHT(ProjectInfoTable[[#This Row],[Proposed Equipment]],LEN(ProjectInfoTable[[#This Row],[Proposed Equipment]])-FIND(\"]\",ProjectInfoTable[[#This Row],[Proposed Equipment]],1)-3),ControlsLookup[Controls Concatenate],0),MATCH(\n\nIF(ProjectType=\"Retrofit\",\"ControlMeasure_\",\"NCMRControlMeasure_\")&ProjectState&IF(ProjectState=\"UT\",SegmentTag,\"\"),ControlsLookup[#Headers],0)),\"\")),\"\"),\"[NAMESUB]\",ProjectInfoTable[[#This Row],[Control Measure Name Sub]]),\"\"))","v":""},{"$f":"IF(ProjectInfoTable[[#This Row],[Proposed Equipment]]=\"\",\"\",IF(AND(ProjectState=\"UT\",ProjectType=\"Retrofit\",ISNUMBER(FIND(\"Re-Commissioning\",ProjectInfoTable[[#This Row],[Proposed Equipment]]))),\nIF(ProjectRecommissioning=\"only recommissioning\",\"Commissioning Only\",\"Commissioning w/ Lighting Upgrade\"),\"\"))","v":""},{"$f":"IFERROR(INDEX(INDIRECT(\"MeasureTable_\" & ProjectState & \"[Measure Reference Number]\"),MATCH(ProjectInfoTable[[#This Row],[Control Measure]],INDIRECT(\"MeasureTable_\" &ProjectState&\"[Measure Name]\"),0)),\"\")","v":""},{"$f":"IFERROR(\n    _xlfn.LET(\n        _xlpm.filteredVersions,\n            _xlfn._xlws.FILTER(\n                INDIRECT(\"MeasureTable_\" & ProjectState & \"[Version Number]\"),\n                (INDIRECT(\"MeasureTable_\" & ProjectState & \"[Measure Reference Number]\") = ProjectInfoTable[[#This Row],[Control Measure Reference Number]]) *\n                (INDIRECT(\"MeasureTable_\" & ProjectState & \"[Eligible Measure]\") = TRUE)\n            ),\n        INDEX(_xlpm.filteredVersions, 1)\n    ),\n    \"\"\n)","v":""},{"$f":"IFERROR(\n  _xlfn.LET(\n    _xlpm.refRange, INDIRECT(\"MeasureTable_\" & ProjectState & \"[Measure Reference Number]\"),\n    _xlpm.eligibleRange, INDIRECT(\"MeasureTable_\" & ProjectState & \"[Eligible Measure]\"),\n    _xlpm.countTrue, SUMPRODUCT(--(_xlpm.refRange = ProjectInfoTable[[#This Row],[Control Measure Reference Number]]), --(_xlpm.eligibleRange = TRUE)),\n    _xlpm.countNonBlank, SUMPRODUCT(--(_xlpm.refRange = ProjectInfoTable[[#This Row],[Control Measure Reference Number]]), --(_xlpm.eligibleRange <> \"\")),\n    IF(_xlpm.countNonBlank = 0, \"\", IF(_xlpm.countTrue >= 1, TRUE, FALSE))\n  ),\n  \"\"\n)","v":""},{"$f":"IF(ProjectInfoTable[[#This Row],[Proposed Equipment]]=\"\",\"\",IFERROR(INDEX(INDIRECT(\"EquipmentTable_\"&IF(ProjectType=\"Retrofit\",\"Retrofit_\",\"NCMR_\")&ProjectState&\"[controlMethod]\"),MATCH(LEFT(ProjectInfoTable[[#This Row],[Proposed Equipment]],FIND(\"[\",ProjectInfoTable[[#This Row],[Proposed Equipment]],1)-2),INDIRECT(\"EquipmentTable_\"&IF(ProjectType=\"Retrofit\",\"Retrofit_\",\"NCMR_\")&ProjectState&\"[equipmentProposed]\"),0)),\"\"))","v":""},{"$f":"IFERROR(VALUE(INDEX(INDIRECT(\"MeasureTable_\" & ProjectState & \"[CustomerIncentiveDollarperunit]\"),MATCH(ProjectInfoTable[[#This Row],[Control Measure]]&\" | TRUE\",INDIRECT(\"MeasureTable_\"&ProjectState&\"[MeasureEligibleConcatenate]\"),0))),\"\")","v":""},{"$f":"IFERROR(INDEX(INDIRECT(\"MeasureTable_\"&ProjectState&\"[SiteSpecificCalculation]\"),MATCH(ProjectInfoTable[[#This Row],[Control Measure]]&\" | TRUE\",INDIRECT(\"MeasureTable_\"&ProjectState&\"[MeasureEligibleConcatenate]\"),0)),\"\")","v":""},{"$f":"IFERROR(INDEX(INDIRECT(\"MeasureTable_\"&ProjectState&\"[GrossIncrementalAnnualElectricSavings ]\"),MATCH(ProjectInfoTable[[#This Row],[Control Measure]]&\" | TRUE\",INDIRECT(\"MeasureTable_\"&ProjectState&\"[MeasureEligibleConcatenate]\"),0)),\"\")","v":""},{"$f":"IFERROR(INDEX(INDIRECT(\"MeasureTable_\"&ProjectState&\"[GrossAverage onthly emand eduction]\"),MATCH(ProjectInfoTable[[#This Row],[Control Measure]]&\" | TRUE\",INDIRECT(\"MeasureTable_\"&ProjectState&\"[MeasureEligibleConcatenate]\"),0)),\"\")","v":""},{"$f":"IFERROR(INDEX(INDIRECT(\"MeasureTable_\"&ProjectState&\"[IncrementalMeasureCost]\"),MATCH(ProjectInfoTable[[#This Row],[Control Measure]]&\" | TRUE\",INDIRECT(\"MeasureTable_\"&ProjectState&\"[MeasureEligibleConcatenate]\"),0)),\"\")","v":""},{"$f":"IF(ProjectInfoTable[[#This Row],[Control Measure]]=\"\",\"\",IF(OR(ProjectInfoTable[[#This Row],[Control TRL Unit]]=\"Measure\",ProjectInfoTable[[#This Row],[Control TRL Unit]]=\"Linear ft.\"),IF(OR(ISNUMBER(FIND(\"Midstream\",ProjectInfoTable[[#This Row],[Control Measure]],1)),ISNUMBER(FIND(\"Lamp\",ProjectInfoTable[[#This Row],[Control Measure]],1))),ProjectInfoTable[[#This Row],[Quantity (Proposed)]]*ProjectInfoTable[[#This Row],[Lamps (Proposed)]],ProjectInfoTable[[#This Row],[Quantity (Proposed)]]),1))","v":""},{"$f":"IF(ProjectInfoTable[[#This Row],[Control Measure]]=\"\",\"\",IF(ISNUMBER(FIND(\"LF \",ProjectInfoTable[[#This Row],[Proposed Equipment]],1)),VALUE(RIGHT(LEFT(ProjectInfoTable[[#This Row],[Proposed Equipment]],FIND(\"LF \",ProjectInfoTable[[#This Row],[Proposed Equipment]],1)-1),LEN(LEFT(ProjectInfoTable[[#This Row],[Proposed Equipment]],FIND(\"LF \",ProjectInfoTable[[#This Row],[Proposed Equipment]],1)-1))-FIND(\"[\",ProjectInfoTable[[#This Row],[Proposed Equipment]],1))),IF(TRIM(UPPER(ProjectInfoTable[[#This Row],[Control TRL Unit]]))=\"WATT CONTROLLED\",IF(ISNUMBER(FIND(\"Controls Only\",ProjectInfoTable[[#This Row],[Proposed Equipment]],1)),IF(OR(ProjectType <> \"Retrofit\",ProjectInfoTable[[#This Row],[Space W (Proposed)]]>0),ProjectInfoTable[[#This Row],[Space W (Proposed)]],ProjectInfoTable[[#This Row],[Space W (Existing, Stipulated)]]),ProjectInfoTable[[#This Row],[Space W (Proposed)]]),IF(TRIM(UPPER(ProjectInfoTable[[#This Row],[Control TRL Unit]]))=\"KWH\",IF(ProjectInfoTable[[#This Row],[Control Measure kWh/yr Savings (Stipulated)]]=0,0,ROUND(ProjectInfoTable[[#This Row],[Control Measure kWh/yr Savings (Stipulated)]],2)),1))))","v":""},{"$f":"IFERROR(IF(LEN(ProjectInfoTable[[#This Row],[Proposed Equipment]])-(FIND(\"]\",ProjectInfoTable[[#This Row],[Proposed Equipment]],1))>0,\"Control(s)\",\"\"),\"\")","v":""},{"$f":"IFERROR(INDEX(INDIRECT(\"MeasureTable_\"&ProjectState&\"[Unit]\"),MATCH(ProjectInfoTable[[#This Row],[Control Measure]]&\" | TRUE\",INDIRECT(\"MeasureTable_\"&ProjectState&\"[MeasureEligibleConcatenate]\"),0)),\"\")","v":""},{"$f":"IFERROR(INDEX(INDIRECT(\"MeasureTable_\"&ProjectState&\"[ProjectCapPercent]\"),MATCH(ProjectInfoTable[[#This Row],[Control Measure]]&\" | TRUE\",INDIRECT(\"MeasureTable_\"&ProjectState&\"[MeasureEligibleConcatenate]\"),0)),\"\")","v":""},{"$f":"IF(OR(ProjectInfoTable[[#This Row],[Fixture Measure]]<>\"\",ProjectInfoTable[[#This Row],[Control Measure]]<>\"\"),1,\"\")","v":""},{"$f":"IF(ProjectInfoTable[[#This Row],[TRL Unit]]=\"\",\"\",IF(OR(ISNUMBER(SEARCH(\"measure\",ProjectInfoTable[[#This Row],[TRL Unit]])),ISNUMBER(SEARCH(\"linear ft\",ProjectInfoTable[[#This Row],[TRL Unit]])),ProjectInfoTable[[#This Row],[TRL Unit]]=0),990,991))","v":""},{"$f":"IFERROR(SUBSTITUTE(LEFT(ProjectInfoTable[[#This Row],[Proposed Equipment]],FIND(\"]\",ProjectInfoTable[[#This Row],[Proposed Equipment]],1)),\"Controls Only []\",\"\",1),\"\")","v":""},{"$f":"IF(ProjectInfoTable[[#This Row],[FixturesOnly]]=\"\",\"\",IF(ISNUMBER(FIND(\"L \",ProjectInfoTable[[#This Row],[Proposed Equipment]],1)),ProjectInfoTable[[#This Row],[Quantity (Proposed)]]*ProjectInfoTable[[#This Row],[Lamps (Proposed)]],ProjectInfoTable[[#This Row],[Quantity (Proposed)]]))","v":""},{"$f":"IFERROR(INDEX(ControlsLookup[Full Description],MATCH(RIGHT(ProjectInfoTable[[#This Row],[Proposed Equipment]],LEN(ProjectInfoTable[[#This Row],[Proposed Equipment]])-FIND(\"]\",ProjectInfoTable[[#This Row],[Proposed Equipment]],1)-3),ControlsLookup[Controls],0)),\"\")","v":""},{"$f":"IF(ProjectInfoTable[[#This Row],[ControlsOnly]]=\"\",\"\",IF(OR(ISNUMBER(FIND(\"Net\",ProjectInfoTable[[#This Row],[Proposed Equipment]],1)),ISNUMBER(FIND(\"Int\",ProjectInfoTable[[#This Row],[Proposed Equipment]],1))),ProjectInfoTable[[#This Row],[Quantity (Proposed)]],1))","v":""}]
[null,{"$f":"ROW(ProjectInfoTable[[#This Row],[OpSch]])-ROW(ProjectInfoTable[[#Headers],[OpSch]])","v":11},{"$f":"IFERROR(INDEX(RetrofitBaselineEquipment_Table[categoryBaseline],MATCH(RIGHT(LEFT(ProjectInfoTable[[#This Row],[Existing Equipment]],FIND(\" (\",ProjectInfoTable[[#This Row],[Existing Equipment]],1)-1),LEN(LEFT(ProjectInfoTable[[#This Row],[Existing Equipment]],FIND(\" (\",ProjectInfoTable[[#This Row],[Existing Equipment]],1)-1))-FIND(\": \",ProjectInfoTable[[#This Row],[Existing Equipment]],1)-1),RetrofitBaselineEquipment_Table[equipmentBaseline],0)),\"\")","v":""},null,null,null,null,{"$f":"IF(ProjectInfoTable[[#This Row],[Existing Equipment]]=\"\",\"\",IF(ISNUMBER(FIND(\"LF\",ProjectInfoTable[[#This Row],[Existing Equipment]],1)),1,IFERROR(VALUE(SUBSTITUTE(RIGHT(LEFT(ProjectInfoTable[[#This Row],[Existing Equipment]],FIND(\"L\",ProjectInfoTable[[#This Row],[Existing Equipment]],FIND(\"[\",ProjectInfoTable[[#This Row],[Existing Equipment]],1))-1),3),\"[\",\"\")),1)))","v":""},{"$f":"IF(ProjectInfoTable[[#This Row],[Existing Equipment]]=\"\",\"\",VALUE(SUBSTITUTE(RIGHT(LEFT(RIGHT(ProjectInfoTable[[#This Row],[Existing Equipment]],LEN(ProjectInfoTable[[#This Row],[Existing Equipment]])-IFERROR(FIND(\"[\",ProjectInfoTable[[#This Row],[Existing Equipment]],1),0)),IFERROR(FIND(\"W\",RIGHT(ProjectInfoTable[[#This Row],[Existing Equipment]],LEN(ProjectInfoTable[[#This Row],[Existing Equipment]])-IFERROR(FIND(\"[\",ProjectInfoTable[[#This Row],[Existing Equipment]],1),0)),1),0)),LEN(LEFT(RIGHT(ProjectInfoTable[[#This Row],[Existing Equipment]],LEN(ProjectInfoTable[[#This Row],[Existing Equipment]])-IFERROR(FIND(\"[\",ProjectInfoTable[[#This Row],[Existing Equipment]],1),0)),IFERROR(FIND(\"W\",RIGHT(ProjectInfoTable[[#This Row],[Existing Equipment]],LEN(ProjectInfoTable[[#This Row],[Existing Equipment]])-IFERROR(FIND(\"[\",ProjectInfoTable[[#This Row],[Existing Equipment]],1),0)),1),0)))-IFERROR(FIND(\"-\",LEFT(RIGHT(ProjectInfoTable[[#This Row],[Existing Equipment]],LEN(ProjectInfoTable[[#This Row],[Existing Equipment]])-IFERROR(FIND(\"[\",ProjectInfoTable[[#This Row],[Existing Equipment]],1),0)),IFERROR(FIND(\"W\",RIGHT(ProjectInfoTable[[#This Row],[Existing Equipment]],LEN(ProjectInfoTable[[#This Row],[Existing Equipment]])-IFERROR(FIND(\"[\",ProjectInfoTable[[#This Row],[Existing Equipment]],1),0)),1),0)),1),0)),\"W\",\"\")))","v":""},{"$f":"IF(ProjectInfoTable[[#This Row],[Existing Equipment]]=\"\",\"\",IF(AND(RIGHT(LEFT(ProjectInfoTable[[#This Row],[Existing Equipment]],FIND(\"]\",ProjectInfoTable[[#This Row],[Existing Equipment]],1)-1),1)<>\"W\"),IFERROR(TRIM(IF(IFERROR(FIND(\"FLT\",ProjectInfoTable[[#This Row],[Existing Equipment]],1),0)>0,LEFT(RIGHT(LEFT(ProjectInfoTable[[#This Row],[Existing Equipment]],FIND(\" (\",ProjectInfoTable[[#This Row],[Existing Equipment]],1)),LEN(LEFT(ProjectInfoTable[[#This Row],[Existing Equipment]],FIND(\" (\",ProjectInfoTable[[#This Row],[Existing Equipment]],1)))-FIND(\":\",ProjectInfoTable[[#This Row],[Existing Equipment]],1)-1),FIND(\" \",RIGHT(LEFT(ProjectInfoTable[[#This Row],[Existing Equipment]],FIND(\" (\",ProjectInfoTable[[#This Row],[Existing Equipment]],1)),LEN(LEFT(ProjectInfoTable[[#This Row],[Existing Equipment]],FIND(\" (\",ProjectInfoTable[[#This Row],[Existing Equipment]],1)))-FIND(\":\",ProjectInfoTable[[#This Row],[Existing Equipment]],1)-1),1)-1),RIGHT(LEFT(ProjectInfoTable[[#This Row],[Existing Equipment]],FIND(\" (\",ProjectInfoTable[[#This Row],[Existing Equipment]],1)),LEN(LEFT(ProjectInfoTable[[#This Row],[Existing Equipment]],FIND(\" (\",ProjectInfoTable[[#This Row],[Existing Equipment]],1)))-FIND(\":\",ProjectInfoTable[[#This Row],[Existing Equipment]],1)-1))&\" - \"&RIGHT(LEFT(ProjectInfoTable[[#This Row],[Existing Equipment]],FIND(\"]\",ProjectInfoTable[[#This Row],[Existing Equipment]],1)-1),LEN(LEFT(ProjectInfoTable[[#This Row],[Existing Equipment]],FIND(\"]\",ProjectInfoTable[[#This Row],[Existing Equipment]],1)-1))-FIND(\"W \",ProjectInfoTable[[#This Row],[Existing Equipment]],1)-3)),\"\"),\"\"))","v":""},{"$f":"IF(ProjectInfoTable[[#This Row],[Existing Equipment]]=\"\",\"\",IF(ProjectInfoTable[[#This Row],[Fixture/Ballast Check for Formula]]=\"\",IF(ISNUMBER(FIND(\"LF\",ProjectInfoTable[[#This Row],[Existing Equipment]],FIND(\"[\",ProjectInfoTable[[#This Row],[Existing Equipment]],1))),ProjectInfoTable[[#This Row],[Lamp W (Existing)]],ProjectInfoTable[[#This Row],[Lamps (Existing)]]*ProjectInfoTable[[#This Row],[Lamp W (Existing)]]),IFERROR(ROUND( ProjectInfoTable[[#This Row],[Lamps (Existing)]]*ProjectInfoTable[[#This Row],[Lamp W (Existing)]]*INDEX(FixtureWattageFormula_Table[A],MATCH(ProjectInfoTable[[#This Row],[Fixture/Ballast Check for Formula]],FixtureWattageFormula_Table[Concatenate],0))+INDEX(FixtureWattageFormula_Table[B],MATCH(ProjectInfoTable[[#This Row],[Fixture/Ballast Check for Formula]],FixtureWattageFormula_Table[Concatenate],0)),0),ProjectInfoTable[[#This Row],[Lamps (Existing)]]*ProjectInfoTable[[#This Row],[Lamp W (Existing)]])))","v":""},{"$f":"IF(OR(ISNUMBER(FIND(\"T8 \",ProjectInfoTable[[#This Row],[Existing Equipment]],1)),ISNUMBER(FIND(\"T5 \",ProjectInfoTable[[#This Row],[Existing Equipment]],1)),ISNUMBER(FIND(\"T12 \",ProjectInfoTable[[#This Row],[Existing Equipment]],1)),ISNUMBER(FIND(\"T12HO - 8\",ProjectInfoTable[[#This Row],[Existing Equipment]],1)),ISNUMBER(FIND(\"Incand\",ProjectInfoTable[[#This Row],[Existing Equipment]],1))),IFERROR(ROUND(INDEX(StipulatedWattage_Table[Stipulated fixture wattage],MATCH(MID(ProjectInfoTable[[#This Row],[Existing Equipment]],FIND(\"[\",ProjectInfoTable[[#This Row],[Existing Equipment]],1),FIND(\"]\",ProjectInfoTable[[#This Row],[Existing Equipment]],1)-FIND(\"[\",ProjectInfoTable[[#This Row],[Existing Equipment]],1)+1),StipulatedWattage_Table[Fixture Code],0)),0),ProjectInfoTable[[#This Row],[Fixture W (Existing, Actual)]]),ProjectInfoTable[[#This Row],[Fixture W (Existing, Actual)]])","v":""},{"$f":"IF(ProjectType=\"Retrofit\",IF(ProjectInfoTable[[#This Row],[Existing Equipment]]=\"\",\"\",ProjectInfoTable[[#This Row],[Quantity (Existing)]]*ProjectInfoTable[[#This Row],[Fixture W (Existing, Actual)]]),IF(ISNUMBER(FIND(\"Interior\",ProjectInfoTable[[#This Row],[Proposed Equipment]],1)),IF(ISNUMBER(FIND(\"Controls Only\",ProjectInfoTable[[#This Row],[Proposed Equipment]])),ProjectInfoTable[[#This Row],[Space W (Proposed)]],(AllowedWattage-SUMIFS(ProjectInfoTable[Space W (Proposed)],ProjectInfoTable[Proposed Equipment],\"*Interior*\",ProjectInfoTable[Proposed Equipment],\"*Controls Only*\"))*ProjectInfoTable[[#This Row],[Space W (Proposed)]]/(SUMIFS(ProjectInfoTable[Space W (Proposed)],ProjectInfoTable[Proposed Equipment],\"*Interior*\")-SUMIFS(ProjectInfoTable[Space W (Proposed)],ProjectInfoTable[Proposed Equipment],\"*Interior*\",ProjectInfoTable[Proposed Equipment],\"*Controls Only*\"))),\"\"))","v":""},{"$f":"IF(ProjectType=\"Retrofit\",IF(ProjectInfoTable[[#This Row],[Existing Equipment]]=\"\",\"\",ProjectInfoTable[[#This Row],[Quantity (Existing)]]*ProjectInfoTable[[#This Row],[Fixture W (Existing, Stipulated)]]),ProjectInfoTable[[#This Row],[Space W (Existing, Actual)]])","v":""},{"$f":"IFERROR(INDEX(OperatingHours_List,MATCH(ProjectInfoTable[[#This Row],[OpSch]],OperatingSchedules_List,0))*ProjectInfoTable[[#This Row],[Space W (Existing, Actual)]]/1000,\"\")","v":""},{"$f":"IFERROR(INDEX(OperatingHours_List,MATCH(ProjectInfoTable[[#This Row],[OpSch]],OperatingSchedules_List,0))*ProjectInfoTable[[#This Row],[Space W (Existing, Actual)]]/1000*(IFERROR(INDEX(ControlsLookup[],MATCH(RIGHT(ProjectInfoTable[[#This Row],[Existing Equipment]],LEN(ProjectInfoTable[[#This Row],[Existing Equipment]])-FIND(\"]\",ProjectInfoTable[[#This Row],[Existing Equipment]],1)-3),ControlsLookup[Controls],0),MATCH(\"CSF_\"&ProjectState,ControlsLookup[#Headers],0)),0))*-1,\"\")","v":""},{"$f":"IF(OR(ProjectInfoTable[[#This Row],[Fixture kWh (Existing, Actual)]]=\"\",ProjectInfoTable[[#This Row],[Control kWh (Existing, Actual)]]=\"\"),\"\",ProjectInfoTable[[#This Row],[Fixture kWh (Existing, Actual)]]+ProjectInfoTable[[#This Row],[Control kWh (Existing, Actual)]])","v":""},{"$f":"IFERROR(INDEX(OperatingHours_List,MATCH(ProjectInfoTable[[#This Row],[OpSch]],OperatingSchedules_List,0))*ProjectInfoTable[[#This Row],[Space W (Existing, Stipulated)]]/1000,\"\")","v":""},{"$f":"IFERROR(INDEX(OperatingHours_List,MATCH(ProjectInfoTable[[#This Row],[OpSch]],OperatingSchedules_List,0))*ProjectInfoTable[[#This Row],[Space W (Existing, Stipulated)]]/1000*(IFERROR(INDEX(ControlsLookup[],MATCH(RIGHT(ProjectInfoTable[[#This Row],[Existing Equipment]],LEN(ProjectInfoTable[[#This Row],[Existing Equipment]])-FIND(\"]\",ProjectInfoTable[[#This Row],[Existing Equipment]],1)-3),ControlsLookup[Controls],0),MATCH(\"CSF_\"&ProjectState,ControlsLookup[#Headers],0)),0))*-1,\"\")","v":""},{"$f":"IF(OR(ProjectInfoTable[[#This Row],[Fixture kWh (Existing, Stipulated)]]=\"\",ProjectInfoTable[[#This Row],[Control kWh (Existing, Stipulated)]]=\"\"),\"\",ProjectInfoTable[[#This Row],[Fixture kWh (Existing, Stipulated)]]+ProjectInfoTable[[#This Row],[Control kWh (Existing, Stipulated)]])","v":""},{"$f":"IF(\n AND(\n  OR(ProjectInfoTable[[#This Row],[Existing Equipment]]=\"\",ProjectInfoTable[[#This Row],[Quantity (Existing)]]=\"\"),\n  ProjectType=\"Retrofit\"\n ),\n \"\",\n IF(\n  ISNUMBER(FIND(\"Street:\",ProjectInfoTable[[#This Row],[Existing Equipment]],1)),\n  IF(\n   OR(\n    AND(ProjectState=\"UT\",RateSchedule=12),\n    AND(ProjectState=\"ID\",RateSchedule=12),\n    AND(ProjectState=\"WY\",RateSchedule=58)\n   ),\n   IFERROR(\n    INDEX(\n     StreetLightingRates_Table[],\n     MATCH(MID(ProjectInfoTable[[#This Row],[Existing Equipment]],FIND(\": \",ProjectInfoTable[[#This Row],[Existing Equipment]],1)+2,FIND(\" (\",ProjectInfoTable[[#This Row],[Existing Equipment]],1)-FIND(\": \",ProjectInfoTable[[#This Row],[Existing Equipment]],1)-2)&ProjectInfoTable[[#This Row],[Lamp W (Existing)]],StreetLightingRates_Table[TechWattage],0),\n     MATCH(ProjectState&RateSchedule,StreetLightingRates_Table[#Headers],0)\n    )\n    *\n    ProjectInfoTable[[#This Row],[Quantity (Existing)]]\n    *\n    ProjectInfoTable[[#This Row],[Lamps (Existing)]]\n    *\n    12,\n    ProjectInfoTable[[#This Row],[Space kWh (Existing, Actual)]]\n    *\n    INDEX(INDIRECT(\"RateSchedules_\"&ProjectState&\"_Table[kWh Rate]\"),MATCH(RateSchedule,INDIRECT(\"RateSchedules_\"&ProjectState&\"_Table[Rate Schedule]\"),0))\n   ),\n   IFERROR(\n    ProjectInfoTable[[#This Row],[Space kWh (Existing, Actual)]]*\n    INDEX(INDIRECT(\"RateSchedules_\"&ProjectState&\"_Table[kWh Rate]\"),MATCH(RateSchedule,INDIRECT(\"RateSchedules_\"&ProjectState&\"_Table[Rate Schedule]\"),0)),0)\n   +\n   IFERROR(IF(ISNUMBER(FIND(\"Interior:\",ProjectInfoTable[[#This Row],[Existing Equipment]],1)),\n    ProjectInfoTable[[#This Row],[Space W (Existing, Actual)]]/1000*12*DDF*\n    INDEX(INDIRECT(\"RateSchedules_\"&ProjectState&\"_Table[kW Rate]\"),MATCH(RateSchedule,INDIRECT(\"RateSchedules_\"&ProjectState&\"_Table[Rate Schedule]\"),0)),0),0)\n  ),\n  IFERROR(\n   ProjectInfoTable[[#This Row],[Space kWh (Existing, Actual)]]*\n   INDEX(INDIRECT(\"RateSchedules_\"&ProjectState&\"_Table[kWh Rate]\"),MATCH(RateSchedule,INDIRECT(\"RateSchedules_\"&ProjectState&\"_Table[Rate Schedule]\"),0)),\n   0\n  )\n  +\n  IFERROR(IF(OR(ISNUMBER(FIND(\"Interior:\",ProjectInfoTable[[#This Row],[Existing Equipment]],1)),AND(ProjectType<>\"Retrofit\",ISNUMBER(FIND(\"Interior:\",ProjectInfoTable[[#This Row],[Proposed Equipment]],1)))),\n   ProjectInfoTable[[#This Row],[Space W (Existing, Actual)]]/1000*12*DDF*\n   INDEX(INDIRECT(\"RateSchedules_\"&ProjectState&\"_Table[kW Rate]\"),MATCH(RateSchedule,INDIRECT(\"RateSchedules_\"&ProjectState&\"_Table[Rate Schedule]\"),0)),0),\n   0\n  )\n )\n)","v":0},{"$f":"IF(\n AND(\n  OR(ProjectInfoTable[[#This Row],[Existing Equipment]]=\"\",ProjectInfoTable[[#This Row],[Quantity (Existing)]]=\"\"),\n  ProjectType=\"Retrofit\"\n ),\n \"\",\n IF(\n  ISNUMBER(FIND(\"Street:\",ProjectInfoTable[[#This Row],[Existing Equipment]],1)),\n  IF(\n   OR(\n    AND(ProjectState=\"UT\",RateSchedule=12),\n    AND(ProjectState=\"ID\",RateSchedule=12),\n    AND(ProjectState=\"WY\",RateSchedule=58)\n   ),\n   IFERROR(\n    INDEX(\n     StreetLightingRates_Table[],\n     MATCH(MID(ProjectInfoTable[[#This Row],[Existing Equipment]],FIND(\": \",ProjectInfoTable[[#This Row],[Existing Equipment]],1)+2,FIND(\" (\",ProjectInfoTable[[#This Row],[Existing Equipment]],1)-FIND(\": \",ProjectInfoTable[[#This Row],[Existing Equipment]],1)-2)&ProjectInfoTable[[#This Row],[Lamp W (Existing)]],StreetLightingRates_Table[TechWattage],0),\n     MATCH(ProjectState&RateSchedule,StreetLightingRates_Table[#Headers],0)\n    )\n    *\n    ProjectInfoTable[[#This Row],[Quantity (Existing)]]\n    *\n    ProjectInfoTable[[#This Row],[Lamps (Existing)]]\n    *\n    12,\n    ProjectInfoTable[[#This Row],[Space kWh (Existing, Stipulated)]]\n    *\n    INDEX(INDIRECT(\"RateSchedules_\"&ProjectState&\"_Table[kWh Rate]\"),MATCH(RateSchedule,INDIRECT(\"RateSchedules_\"&ProjectState&\"_Table[Rate Schedule]\"),0))\n   ),\n   IFERROR(\n    ProjectInfoTable[[#This Row],[Space kWh (Existing, Stipulated)]]*\n    INDEX(INDIRECT(\"RateSchedules_\"&ProjectState&\"_Table[kWh Rate]\"),MATCH(RateSchedule,INDIRECT(\"RateSchedules_\"&ProjectState&\"_Table[Rate Schedule]\"),0)),0)\n   +\n   IFERROR(IF(ISNUMBER(FIND(\"Interior:\",ProjectInfoTable[[#This Row],[Existing Equipment]],1)),\n    ProjectInfoTable[[#This Row],[Space W (Existing, Stipulated)]]/1000*12*DDF*\n    INDEX(INDIRECT(\"RateSchedules_\"&ProjectState&\"_Table[kW Rate]\"),MATCH(RateSchedule,INDIRECT(\"RateSchedules_\"&ProjectState&\"_Table[Rate Schedule]\"),0)),0),0)\n  ),\n  IFERROR(\n   ProjectInfoTable[[#This Row],[Space kWh (Existing, Stipulated)]]*\n   INDEX(INDIRECT(\"RateSchedules_\"&ProjectState&\"_Table[kWh Rate]\"),MATCH(RateSchedule,INDIRECT(\"RateSchedules_\"&ProjectState&\"_Table[Rate Schedule]\"),0)),\n   0\n  )\n  +\n  IFERROR(IF(OR(ISNUMBER(FIND(\"Interior:\",ProjectInfoTable[[#This Row],[Existing Equipment]],1)),AND(ProjectType<>\"Retrofit\",ISNUMBER(FIND(\"Interior:\",ProjectInfoTable[[#This Row],[Proposed Equipment]],1)))),\n   ProjectInfoTable[[#This Row],[Space W (Existing, Stipulated)]]/1000*12*DDF*\n   INDEX(INDIRECT(\"RateSchedules_\"&ProjectState&\"_Table[kW Rate]\"),MATCH(RateSchedule,INDIRECT(\"RateSchedules_\"&ProjectState&\"_Table[Rate Schedule]\"),0)),0),\n   0\n  )\n )\n)","v":0},{"$f":"IF(ProjectType=\"Retrofit\",IFERROR(INDEX(RetrofitBaselineEquipment_Table[categoryBaseline],MATCH(RIGHT(LEFT(ProjectInfoTable[[#This Row],[Proposed Equipment]],FIND(\" (\",ProjectInfoTable[[#This Row],[Proposed Equipment]],1)-1),LEN(LEFT(ProjectInfoTable[[#This Row],[Proposed Equipment]],FIND(\" (\",ProjectInfoTable[[#This Row],[Proposed Equipment]],1)-1))-FIND(\": \",ProjectInfoTable[[#This Row],[Proposed Equipment]],1)-1),RetrofitBaselineEquipment_Table[equipmentBaseline],0)),\"\"),IFERROR(INDEX(#REF!,MATCH(RIGHT(LEFT(ProjectInfoTable[[#This Row],[Proposed Equipment]],FIND(\" (\",ProjectInfoTable[[#This Row],[Proposed Equipment]],1)-1),LEN(LEFT(ProjectInfoTable[[#This Row],[Proposed Equipment]],FIND(\" (\",ProjectInfoTable[[#This Row],[Proposed Equipment]],1)-1))-FIND(\": \",ProjectInfoTable[[#This Row],[Proposed Equipment]],1)-1),#REF!,0)),\"\"))","v":""},{"$f":"IF(ProjectInfoTable[[#This Row],[Proposed Equipment]]=\"\",\"\",IF(ISNUMBER(SEARCH(\"Controls Only\",ProjectInfoTable[[#This Row],[Proposed Equipment]])),\"Controls Only\",IF(ProjectType=\"Retrofit\",_xlfn.LET(_xlpm.k,LEFT(ProjectInfoTable[[#This Row],[Proposed Equipment]],FIND(\"[\",ProjectInfoTable[[#This Row],[Proposed Equipment]])-2),_xlpm.ep,_xlfn.SWITCH(ProjectState,\"UT\",EquipmentTable_Retrofit_UT[equipmentProposed],\"WY\",EquipmentTable_Retrofit_WY[equipmentProposed],\"ID\",EquipmentTable_Retrofit_ID[equipmentProposed]),_xlpm.cp,_xlfn.SWITCH(ProjectState,\"UT\",EquipmentTable_Retrofit_UT[categoryProposed],\"WY\",EquipmentTable_Retrofit_WY[categoryProposed],\"ID\",EquipmentTable_Retrofit_ID[categoryProposed]),_xlfn.XLOOKUP(_xlpm.k,_xlpm.ep,_xlpm.cp,\"Non-eligible fixture - Retrofit - \"&ProjectState)),_xlfn.LET(_xlpm.k,MID(ProjectInfoTable[[#This Row],[Proposed Equipment]],FIND(\": \",ProjectInfoTable[[#This Row],[Proposed Equipment]])+2,FIND(\" (\",ProjectInfoTable[[#This Row],[Proposed Equipment]])-(FIND(\": \",ProjectInfoTable[[#This Row],[Proposed Equipment]])+2)),_xlpm.ep,_xlfn.SWITCH(ProjectState,\"UT\",EquipmentTable_NCMR_UT[equipmentProposed],\"WY\",EquipmentTable_NCMR_WY[equipmentProposed],\"ID\",EquipmentTable_NCMR_ID[equipmentProposed]),_xlpm.cp,_xlfn.SWITCH(ProjectState,\"UT\",EquipmentTable_NCMR_UT[categoryProposed],\"WY\",EquipmentTable_NCMR_WY[categoryProposed],\"ID\",EquipmentTable_NCMR_ID[categoryProposed]),_xlfn.XLOOKUP(_xlpm.k,_xlpm.ep,_xlpm.cp,\"Non-eligible fixture - NCMR - \"&ProjectState)))))","v":""},null,null,"ü",{"$f":"IF(ProjectInfoTable[[#This Row],[Proposed Equipment]]=\"\",\"\",IF(ProjectInfoTable[[#This Row],[Measure Selection]]=\"\",0,IF(ISNUMBER(FIND(\"LF\",ProjectInfoTable[[#This Row],[Proposed Equipment]],1)),1,IFERROR(VALUE(SUBSTITUTE(RIGHT(LEFT(ProjectInfoTable[[#This Row],[Proposed Equipment]],FIND(\"L\",ProjectInfoTable[[#This Row],[Proposed Equipment]],FIND(\"[\",ProjectInfoTable[[#This Row],[Proposed Equipment]],1))-1),2),\"[\",\"\")),IFERROR(LEFT(RIGHT(ProjectInfoTable[[#This Row],[Proposed Equipment]],LEN(ProjectInfoTable[[#This Row],[Proposed Equipment]])-FIND(\"-lamp\",ProjectInfoTable[[#This Row],[Proposed Equipment]],1)+2),1),1)))))","v":""},{"$f":"IF(ProjectInfoTable[[#This Row],[Proposed Equipment]]=\"\",\"\",IF(ProjectInfoTable[[#This Row],[Measure Selection]]=\"\",0,IFERROR(\n\nIF(ISNUMBER(FIND(\"W]\",ProjectInfoTable[[#This Row],[Proposed Equipment]])),\nRIGHT(MID(ProjectInfoTable[[#This Row],[Proposed Equipment]],FIND(\"W]\",ProjectInfoTable[[#This Row],[Proposed Equipment]],FIND(\"[\",ProjectInfoTable[[#This Row],[Proposed Equipment]]))-7,7),\nLEN(MID(ProjectInfoTable[[#This Row],[Proposed Equipment]],FIND(\"W]\",ProjectInfoTable[[#This Row],[Proposed Equipment]],FIND(\"[\",ProjectInfoTable[[#This Row],[Proposed Equipment]]))-7,7)) -\nIFERROR(FIND(\" - \",MID(ProjectInfoTable[[#This Row],[Proposed Equipment]],FIND(\"W]\",ProjectInfoTable[[#This Row],[Proposed Equipment]],FIND(\"[\",ProjectInfoTable[[#This Row],[Proposed Equipment]]))-7,7))+2,\nFIND(\"[\",MID(ProjectInfoTable[[#This Row],[Proposed Equipment]],FIND(\"W]\",ProjectInfoTable[[#This Row],[Proposed Equipment]],FIND(\"[\",ProjectInfoTable[[#This Row],[Proposed Equipment]]))-7,7)))),\n\nIF(ISNUMBER(FIND(\"[\",MID(ProjectInfoTable[[#This Row],[Proposed Equipment]],FIND(\"W \",ProjectInfoTable[[#This Row],[Proposed Equipment]],FIND(\"[\",ProjectInfoTable[[#This Row],[Proposed Equipment]]))-7,7))),\nRIGHT(MID(ProjectInfoTable[[#This Row],[Proposed Equipment]],FIND(\"W \",ProjectInfoTable[[#This Row],[Proposed Equipment]],FIND(\"[\",ProjectInfoTable[[#This Row],[Proposed Equipment]]))-7,7),\nLEN(MID(ProjectInfoTable[[#This Row],[Proposed Equipment]],FIND(\"W \",ProjectInfoTable[[#This Row],[Proposed Equipment]],FIND(\"[\",ProjectInfoTable[[#This Row],[Proposed Equipment]]))-7,7)) -\nIFERROR(FIND(\" - \",MID(ProjectInfoTable[[#This Row],[Proposed Equipment]],FIND(\"W \",ProjectInfoTable[[#This Row],[Proposed Equipment]],FIND(\"[\",ProjectInfoTable[[#This Row],[Proposed Equipment]]))-7,7))+2,\nFIND(\"[\",MID(ProjectInfoTable[[#This Row],[Proposed Equipment]],FIND(\"W \",ProjectInfoTable[[#This Row],[Proposed Equipment]],FIND(\"[\",ProjectInfoTable[[#This Row],[Proposed Equipment]]))-7,7)))),\n\nRIGHT(MID(ProjectInfoTable[[#This Row],[Proposed Equipment]],FIND(\"W \",ProjectInfoTable[[#This Row],[Proposed Equipment]],FIND(\"[\",ProjectInfoTable[[#This Row],[Proposed Equipment]]))-7,7),\nLEN(MID(ProjectInfoTable[[#This Row],[Proposed Equipment]],FIND(\"W \",ProjectInfoTable[[#This Row],[Proposed Equipment]],FIND(\"[\",ProjectInfoTable[[#This Row],[Proposed Equipment]]))-7,7)) -\nFIND(\" - \",MID(ProjectInfoTable[[#This Row],[Proposed Equipment]],FIND(\"W \",ProjectInfoTable[[#This Row],[Proposed Equipment]],FIND(\"[\",ProjectInfoTable[[#This Row],[Proposed Equipment]]))-7,7))-2\n))),0)))","v":""},{"$f":"IF(ProjectInfoTable[[#This Row],[Proposed Equipment]]=\"\",\"\",IFERROR(ProjectInfoTable[[#This Row],[Lamps (Proposed)]]*ProjectInfoTable[[#This Row],[Lamp W (Proposed)]],\"\"))","v":""},{"$f":"IF(ProjectInfoTable[[#This Row],[Proposed Equipment]]=\"\",\"\",IFERROR(ProjectInfoTable[[#This Row],[Quantity (Proposed)]]*ProjectInfoTable[[#This Row],[Fixture W (Proposed)]],\"\"))","v":""},{"$f":"IFERROR(INDEX(OperatingHours_List,MATCH(ProjectInfoTable[[#This Row],[OpSch]],OperatingSchedules_List,0))*ProjectInfoTable[[#This Row],[Space W (Proposed)]]/1000,\"\")","v":""},{"$f":"IF(OR(ISNUMBER(FIND(\"Controls Only\",ProjectInfoTable[[#This Row],[Proposed Equipment]],1)),ProjectInfoTable[[#This Row],[ControlsOnly]]=\"Re-Commissioning\"),\"Controls Only\",IFERROR(INDEX(OperatingHours_List,MATCH(ProjectInfoTable[[#This Row],[OpSch]],OperatingSchedules_List,0))*ProjectInfoTable[[#This Row],[Space W (Proposed)]]/1000*(IFERROR(INDEX(ControlsLookup[],MATCH(SUBSTITUTE(RIGHT(ProjectInfoTable[[#This Row],[Proposed Equipment]],LEN(ProjectInfoTable[[#This Row],[Proposed Equipment]])-FIND(\"]\",ProjectInfoTable[[#This Row],[Proposed Equipment]],1)-3),\" reused\",\"\"),ControlsLookup[Controls],0),MATCH(\"CSF_\"&ProjectState,ControlsLookup[#Headers],0)),0))*-1,\"\"))","v":""},{"$f":"IF(OR(ProjectInfoTable[[#This Row],[Fixture kWh (Proposed)]]=\"\",ProjectInfoTable[[#This Row],[Control kWh (Proposed)]]=\"\"),\"\",IFERROR(ProjectInfoTable[[#This Row],[Fixture kWh (Proposed)]]+ProjectInfoTable[[#This Row],[Control kWh (Proposed)]],0))","v":""},{"$f":"IF(\n OR(\n  ProjectInfoTable[[#This Row],[Proposed Equipment]]=\"\",\n  ProjectInfoTable[[#This Row],[Quantity (Proposed)]]=\"\"\n ),\n \"\",\n IF(\n  AND(\n   OR(\n    AND(\n     ProjectState=\"UT\",\n     RateSchedule=12\n    ),\n    AND(\n     ProjectState=\"ID\",\n     RateSchedule=12\n    ),\n    AND(\n     ProjectState=\"WY\",\n     RateSchedule=58\n    )\n   ),\n   ISNUMBER(FIND(\"Street:\",ProjectInfoTable[[#This Row],[Existing Equipment]],1))\n  ),\n  IF(\n   AND(\n    RateSchedule=53,\n    ISNUMBER(FIND(\"LED\",ProjectInfoTable[[#This Row],[Proposed Equipment]],1))\n   ),\n   ProjectInfoTable[[#This Row],[Fixture kWh (Proposed)]]\n   *\n   INDEX(\n    INDIRECT(\"RateSchedules_\"&ProjectState&\"_Table[kWh Rate]\"),\n    MATCH(RateSchedule,INDIRECT(\"RateSchedules_\"&ProjectState&\"_Table[Rate Schedule]\"),0)\n   ),\n   IFERROR(INDEX(\n    StreetLightingRates_Table[],\n    MATCH(\"LED\"&IF(AND(ProjectInfoTable[[#This Row],[Fixture W (Proposed)]]>0,ProjectInfoTable[[#This Row],[Fixture W (Proposed)]]<=70),70,IF(AND(ProjectInfoTable[[#This Row],[Fixture W (Proposed)]]>70,ProjectInfoTable[[#This Row],[Fixture W (Proposed)]]<=100),100,IF(AND(ProjectInfoTable[[#This Row],[Fixture W (Proposed)]]>100,ProjectInfoTable[[#This Row],[Fixture W (Proposed)]]<=150),150,IF(AND(ProjectInfoTable[[#This Row],[Fixture W (Proposed)]]>150,ProjectInfoTable[[#This Row],[Fixture W (Proposed)]]<=200),200,IF(AND(ProjectInfoTable[[#This Row],[Fixture W (Proposed)]]>200,ProjectInfoTable[[#This Row],[Fixture W (Proposed)]]<=250),250,IF(AND(ProjectInfoTable[[#This Row],[Fixture W (Proposed)]]>250,ProjectInfoTable[[#This Row],[Fixture W (Proposed)]]<=400),400,\"\")))))),StreetLightingRates_Table[TechWattage],0),\n    MATCH(ProjectState&RateSchedule,StreetLightingRates_Table[#Headers],0)\n   )\n   *ProjectInfoTable[[#This Row],[Lamps (Proposed)]]*ProjectInfoTable[[#This Row],[Quantity (Proposed)]]*12,\n  ProjectInfoTable[[#This Row],[Space kWh (Proposed)]]*INDEX(INDIRECT(\"RateSchedules_\"&ProjectState&\"_Table[kWh Rate]\"),MATCH(RateSchedule,INDIRECT(\"RateSchedules_\"&ProjectState&\"_Table[Rate Schedule]\"),0)))),\n  IFERROR(ProjectInfoTable[[#This Row],[Space kWh (Proposed)]]*INDEX(INDIRECT(\"RateSchedules_\"&ProjectState&\"_Table[kWh Rate]\"),MATCH(RateSchedule,INDIRECT(\"RateSchedules_\"&ProjectState&\"_Table[Rate Schedule]\"),0)),0)\n  +\n  IF(OR(ISNUMBER(FIND(\"Exterior:\",ProjectInfoTable[[#This Row],[Existing Equipment]],1)),ISNUMBER(FIND(\"Street:\",ProjectInfoTable[[#This Row],[Existing Equipment]],1))),0,IFERROR(ProjectInfoTable[[#This Row],[Space W (Proposed)]]/1000*12*DDF*INDEX(INDIRECT(\"RateSchedules_\"&ProjectState&\"_Table[kW Rate]\"),MATCH(RateSchedule,INDIRECT(\"RateSchedules_\"&ProjectState&\"_Table[Rate Schedule]\"),0)),0))\n )\n)","v":""},{"$f":"IF(ProjectInfoTable[[#This Row],[Measure Selection]]=\"\",0,IF(ProjectType=\"Retrofit\",IFERROR((ProjectInfoTable[[#This Row],[Space W (Existing, Actual)]]-ProjectInfoTable[[#This Row],[Space W (Proposed)]])/ProjectInfoTable[[#This Row],[Space W (Existing, Actual)]],\"\"),IF(AND(ProjectInfoTable[[#This Row],[Proposed Equipment]]=\"\",ProjectInfoTable[[#This Row],[Quantity (Proposed)]]=\"\"),\"\",IFERROR((ProjectInfoTable[[#This Row],[Space W (Existing, Stipulated)]]-ProjectInfoTable[[#This Row],[Space W (Proposed)]])/ProjectInfoTable[[#This Row],[Space W (Existing, Stipulated)]],\"n/a\"))))","v":""},{"$f":"IF(ProjectInfoTable[[#This Row],[Measure Selection]]=\"\",0,IF(ProjectType=\"Retrofit\",IFERROR((ProjectInfoTable[[#This Row],[Space W (Existing, Stipulated)]]-ProjectInfoTable[[#This Row],[Space W (Proposed)]])/ProjectInfoTable[[#This Row],[Space W (Existing, Stipulated)]],\"\"),ProjectInfoTable[[#This Row],[% Wattage Reduction (Actual)]]))","v":""},{"$f":"IFERROR(IF(OR(ProjectInfoTable[[#This Row],[Measure Selection]]=\"\",ProjectInfoTable[[#This Row],[ControlsOnly]]=\"Re-Commissioning\"),0,IF(AND(ProjectType=\"Retrofit\",LEFT(ProjectInfoTable[[#This Row],[Existing Equipment]],FIND(\": \",ProjectInfoTable[[#This Row],[Existing Equipment]],1)-1)<>\"Interior\"),0,((ProjectInfoTable[[#This Row],[Space W (Existing, Actual)]]-ProjectInfoTable[[#This Row],[Space W (Proposed)]])/1000*DDF)-IF(ProjectInfoTable[[#This Row],[Midstream Measure Name]]<>\"\",IFERROR(ProjectInfoTable[[#This Row],[kW Per Unit (Midstream)]]*ProjectInfoTable[[#This Row],[Quantity]]*ProjectInfoTable[[#This Row],[No. of TRL Units]],0),0))),\"\")","v":""},{"$f":"IFERROR(IF(OR(ProjectInfoTable[[#This Row],[Measure Selection]]=\"\",ProjectInfoTable[[#This Row],[ControlsOnly]]=\"Re-Commissioning\"),0,IF(AND(ISNUMBER(VALUE(ProjectInfoTable[[#This Row],[kW Per Unit]])),ProjectInfoTable[[#This Row],[kW Per Unit]]<>0),ROUND(ProjectInfoTable[[#This Row],[kW Per Unit]]*ProjectInfoTable[[#This Row],[Quantity]]*ProjectInfoTable[[#This Row],[No. of TRL Units]],2),IF(OR(AND(ProjectType=\"Retrofit\",LEFT(ProjectInfoTable[[#This Row],[Existing Equipment]],FIND(\": \",ProjectInfoTable[[#This Row],[Existing Equipment]],1)-1)<>\"Interior\"),AND(ProjectInfoTable[[#This Row],[Incentives Per Unit]]=0,INDEX(StipulatedSavingsYesNo_Table[Stipulated Savings?],MATCH(ProjectState,StipulatedSavingsYesNo_Table[State],0))=\"No\")),0,IF(ISNUMBER(FIND(\"Controls Only\",ProjectInfoTable[[#This Row],[Proposed Equipment]],1)),0,ROUND(((ProjectInfoTable[[#This Row],[Space W (Existing, Stipulated)]]-ProjectInfoTable[[#This Row],[Space W (Proposed)]])/1000*DDF)-IF(ProjectInfoTable[[#This Row],[Midstream Measure Name]]<>\"\",IFERROR(ProjectInfoTable[[#This Row],[kW Per Unit (Midstream)]]*ProjectInfoTable[[#This Row],[Quantity]]*ProjectInfoTable[[#This Row],[No. of TRL Units]],0),0),2))))),\"\")","v":""},{"$f":"IFERROR(IF(OR(ProjectInfoTable[[#This Row],[Control kWh (Proposed)]]=\"Controls Only\",ProjectInfoTable[[#This Row],[Measure Selection]]=\"\"),0,ROUND((ProjectInfoTable[[#This Row],[Fixture kWh (Existing, Actual)]]-ProjectInfoTable[[#This Row],[Fixture kWh (Proposed)]])*IF(VALUE(SpaceTypesInfo_Table[[#Totals],[HVAC Effects]])=0,1,1+VALUE(SpaceTypesInfo_Table[[#Totals],[HVAC Effects]])),0)),\"\")","v":""},{"$f":"IFERROR(IF(ProjectInfoTable[[#This Row],[Control kWh (Proposed)]]=\"Controls Only\",ROUND(IFERROR(INDEX(OperatingHours_List,MATCH(ProjectInfoTable[[#This Row],[OpSch]],OperatingSchedules_List,0))*IF(OR(ProjectType <> \"Retrofit\",ProjectInfoTable[[#This Row],[Space W (Proposed)]]>0),ProjectInfoTable[[#This Row],[Space W (Proposed)]],ProjectInfoTable[[#This Row],[Space W (Existing, Actual)]])/1000*(IFERROR(INDEX(ControlsLookup[],MATCH(RIGHT(ProjectInfoTable[[#This Row],[Proposed Equipment]],LEN(ProjectInfoTable[[#This Row],[Proposed Equipment]])-FIND(\"]\",ProjectInfoTable[[#This Row],[Proposed Equipment]],1)-3),ControlsLookup[Controls],0),MATCH(\"CSF_\"&ProjectState,ControlsLookup[#Headers],0)),0))*IF(VALUE(SpaceTypesInfo_Table[[#Totals],[HVAC Effects]])=0,1,1+VALUE(SpaceTypesInfo_Table[[#Totals],[HVAC Effects]])),\"\"),0),ROUND(IFERROR((ProjectInfoTable[[#This Row],[Control kWh (Existing, Actual)]]-ProjectInfoTable[[#This Row],[Control kWh (Proposed)]])*IF(VALUE(SpaceTypesInfo_Table[[#Totals],[HVAC Effects]])=0,1,1+VALUE(SpaceTypesInfo_Table[[#Totals],[HVAC Effects]])),\"\"),0)),\"\")","v":""},{"$f":"IF(OR(ProjectInfoTable[[#This Row],[Proposed Equipment]]=\"\",ProjectInfoTable[[#This Row],[Quantity (Proposed)]]=\"\"),\"\",IF(ProjectInfoTable[[#This Row],[Fixture Measure]]=\"\",0,IF(AND(ProjectInfoTable[[#This Row],[Incentives Per Unit]]=0,INDEX(StipulatedSavingsYesNo_Table[Stipulated Savings?],MATCH(ProjectState,StipulatedSavingsYesNo_Table[State],0))=\"No\"),0,ProjectInfoTable[[#This Row],[Total   kWh/yr Savings (Actual)]]-ProjectInfoTable[[#This Row],[Control Measure kWh/yr Savings (Actual)]])))","v":""},{"$f":"IF(OR(ProjectInfoTable[[#This Row],[Proposed Equipment]]=\"\",ProjectInfoTable[[#This Row],[Quantity (Proposed)]]=\"\"),\"\",IF(ProjectInfoTable[[#This Row],[Control Measure]]=\"\",0,ProjectInfoTable[[#This Row],[Control kWh/yr Savings (Actual)]]))","v":""},{"$f":"IF(AND(ProjectInfoTable[[#This Row],[Incentives Per Unit]]=0,INDEX(StipulatedSavingsYesNo_Table[Stipulated Savings?],MATCH(ProjectState,StipulatedSavingsYesNo_Table[State],0))=\"No\"),ProjectInfoTable[[#This Row],[Fixture kWh/yr Savings (Actual)]]+IF(ProjectInfoTable[[#This Row],[Control Measure kWh/yr Savings (Actual)]]=0,0,ProjectInfoTable[[#This Row],[Control kWh/yr Savings (Actual)]]),IF(AND(ProjectInfoTable[[#This Row],[Fixture kWh/yr Savings (Actual)]]=\"\",ProjectInfoTable[[#This Row],[Control kWh/yr Savings (Actual)]]=\"\"),\"\",ROUND(IF(ProjectInfoTable[[#This Row],[Fixture kWh/yr Savings (Actual)]]=\"\",0,ProjectInfoTable[[#This Row],[Fixture kWh/yr Savings (Actual)]])+IF(ProjectInfoTable[[#This Row],[Control kWh/yr Savings (Actual)]]=\"\",0,ProjectInfoTable[[#This Row],[Control kWh/yr Savings (Actual)]])-IF(ProjectInfoTable[[#This Row],[Midstream Measure Name]]<>\"\",IFERROR(ProjectInfoTable[[#This Row],[kWh Per Unit (Midstream)]]*ProjectInfoTable[[#This Row],[Quantity]]*ProjectInfoTable[[#This Row],[No. of TRL Units]],0),0),0)))","v":""},{"$f":"IFERROR(IF(OR(ProjectInfoTable[[#This Row],[Measure Selection]]=\"\",ProjectInfoTable[[#This Row],[ControlsOnly]]=\"Re-Commissioning\"),0,IF(AND(ProjectInfoTable[[#This Row],[Incentives Per Unit]]=0,INDEX(StipulatedSavingsYesNo_Table[Stipulated Savings?],MATCH(ProjectState,StipulatedSavingsYesNo_Table[State],0))=\"No\"),0,IF(ISNUMBER(FIND(\"Controls Only\",ProjectInfoTable[[#This Row],[Proposed Equipment]],1)),0,ROUND((ProjectInfoTable[[#This Row],[Fixture kWh (Existing, Stipulated)]]-ProjectInfoTable[[#This Row],[Fixture kWh (Proposed)]])*IF(VALUE(SpaceTypesInfo_Table[[#Totals],[HVAC Effects]])=0,1,1+VALUE(SpaceTypesInfo_Table[[#Totals],[HVAC Effects]])),0)))),\"\")","v":""},{"$f":"IFERROR(IF(ProjectInfoTable[[#This Row],[Control kWh (Proposed)]]=\"Controls Only\",ROUND(IFERROR(INDEX(OperatingHours_List,MATCH(ProjectInfoTable[[#This Row],[OpSch]],OperatingSchedules_List,0))*IF(OR(ProjectType <> \"Retrofit\",ProjectInfoTable[[#This Row],[Space W (Proposed)]]>0),ProjectInfoTable[[#This Row],[Space W (Proposed)]],ProjectInfoTable[[#This Row],[Space W (Existing, Stipulated)]])/1000*(IFERROR(INDEX(ControlsLookup[],MATCH(RIGHT(ProjectInfoTable[[#This Row],[Proposed Equipment]],LEN(ProjectInfoTable[[#This Row],[Proposed Equipment]])-FIND(\"]\",ProjectInfoTable[[#This Row],[Proposed Equipment]],1)-3),ControlsLookup[Controls],0),MATCH(\"CSF_\"&ProjectState,ControlsLookup[#Headers],0)),0))*IF(VALUE(SpaceTypesInfo_Table[[#Totals],[HVAC Effects]])=0,1,1+VALUE(SpaceTypesInfo_Table[[#Totals],[HVAC Effects]])),\"\"),0),ROUND(IFERROR((ProjectInfoTable[[#This Row],[Control kWh (Existing, Stipulated)]]-ProjectInfoTable[[#This Row],[Control kWh (Proposed)]])*IF(VALUE(SpaceTypesInfo_Table[[#Totals],[HVAC Effects]])=0,1,1+VALUE(SpaceTypesInfo_Table[[#Totals],[HVAC Effects]])),INDEX(ControlsLookup[],MATCH(RIGHT(ProjectInfoTable[[#This Row],[Proposed Equipment]],LEN(ProjectInfoTable[[#This Row],[Proposed Equipment]])-FIND(\"-\",ProjectInfoTable[[#This Row],[Proposed Equipment]],LEN(ProjectInfoTable[[#This Row],[Proposed Equipment]])-15)-1),ControlsLookup[Controls],0),MATCH(\"CSF_\"&ProjectState,ControlsLookup[#Headers],0))*IF(NOT(ISNUMBER(VALUE(ProjectInfoTable[[#This Row],[kWh Per Unit]]))),ProjectInfoTable[[#This Row],[Fixture kWh/yr Savings (Stipulated)]],ProjectInfoTable[[#This Row],[kWh Per Unit]]*ProjectInfoTable[[#This Row],[Quantity]]*ProjectInfoTable[[#This Row],[No. of TRL Units]])),0)),IF(OR(ProjectType=\"New Construction\",ProjectType=\"Major Renovation\"),IF(ProjectInfoTable[[#This Row],[Control kWh (Proposed)]]=\"\",\"\",0),\"\"))","v":""},{"$f":"IF(OR(ProjectInfoTable[[#This Row],[Proposed Equipment]]=\"\",ProjectInfoTable[[#This Row],[Quantity (Proposed)]]=\"\"),\"\",IF(ProjectInfoTable[[#This Row],[Fixture Measure]]=\"\",0,IF(AND(ProjectInfoTable[[#This Row],[Incentives Per Unit]]=0,INDEX(StipulatedSavingsYesNo_Table[Stipulated Savings?],MATCH(ProjectState,StipulatedSavingsYesNo_Table[State],0))=\"No\"),0,ProjectInfoTable[[#This Row],[Total   kWh/yr Savings (Stipulated)]]-ProjectInfoTable[[#This Row],[Control Measure kWh/yr Savings (Stipulated)]])))","v":""},{"$f":"IF(OR(ProjectInfoTable[[#This Row],[Proposed Equipment]]=\"\",ProjectInfoTable[[#This Row],[Quantity (Proposed)]]=\"\"),\"\",IF(ProjectInfoTable[[#This Row],[Control Measure]]=\"\",0,IF(OR(ProjectType=\"New Construction\",ProjectType=\"Major Renovation\"),IFERROR(ROUND(ProjectInfoTable[[#This Row],[Control kWh Per Unit]]*ProjectInfoTable[[#This Row],[Control Quantity]]*ProjectInfoTable[[#This Row],[Control No. of TRL Units]],0),ProjectInfoTable[[#This Row],[Control kWh/yr Savings (Stipulated)]]),ProjectInfoTable[[#This Row],[Control kWh/yr Savings (Stipulated)]])))","v":""},{"$f":"IF(AND(ProjectInfoTable[[#This Row],[Incentives Per Unit]]=0,INDEX(StipulatedSavingsYesNo_Table[Stipulated Savings?],MATCH(ProjectState,StipulatedSavingsYesNo_Table[State],0))=\"No\"),ProjectInfoTable[[#This Row],[Fixture kWh/yr Savings (Stipulated)]]+IF(ProjectInfoTable[[#This Row],[Control Measure kWh/yr Savings (Stipulated)]]=0,0,ProjectInfoTable[[#This Row],[Control kWh/yr Savings (Stipulated)]]),IF(OR(ISNUMBER(VALUE(ProjectInfoTable[[#This Row],[kWh Per Unit]])),ISNUMBER(VALUE(ProjectInfoTable[[#This Row],[Control kWh Per Unit]]))),ROUND(IFERROR(ProjectInfoTable[[#This Row],[kWh Per Unit]]*ProjectInfoTable[[#This Row],[Quantity]]*ProjectInfoTable[[#This Row],[No. of TRL Units]],0)+IFERROR(ProjectInfoTable[[#This Row],[Control kWh Per Unit]]*ProjectInfoTable[[#This Row],[Control Quantity]]*ProjectInfoTable[[#This Row],[Control No. of TRL Units]],ProjectInfoTable[[#This Row],[Control kWh/yr Savings (Stipulated)]]),0),IF(AND(ProjectInfoTable[[#This Row],[Fixture kWh/yr Savings (Stipulated)]]=\"\",ProjectInfoTable[[#This Row],[Control kWh/yr Savings (Stipulated)]]=\"\"),\"\",ROUND(IF(ProjectInfoTable[[#This Row],[Fixture kWh/yr Savings (Stipulated)]]=\"\",0,ProjectInfoTable[[#This Row],[Fixture kWh/yr Savings (Stipulated)]])+IF(ProjectInfoTable[[#This Row],[Control kWh/yr Savings (Stipulated)]]=\"\",0,ProjectInfoTable[[#This Row],[Control kWh/yr Savings (Stipulated)]])-IF(ProjectInfoTable[[#This Row],[Midstream Measure Name]]<>\"\",IFERROR(ProjectInfoTable[[#This Row],[kWh Per Unit (Midstream)]]*ProjectInfoTable[[#This Row],[Quantity]]*ProjectInfoTable[[#This Row],[No. of TRL Units]],0),0),0))))","v":""},{"$f":"IF(OR(ISNUMBER(FIND(\"Midstream\",ProjectInfoTable[[#This Row],[Fixture Measure]])),ISNUMBER(FIND(\"SBDI\",ProjectInfoTable[[#This Row],[Fixture Measure]])),ISNUMBER(FIND(\"Small Bu\",ProjectInfoTable[[#This Row],[Fixture Measure]]))),\n\nIF(ProjectInfoTable[[#This Row],[Measure Selection]]=\"\",0,\n\nIF(ISNUMBER(FIND(\"/U]\",ProjectInfoTable[[#This Row],[Proposed Equipment]])),IFERROR(MID(ProjectInfoTable[[#This Row],[Proposed Equipment]],FIND(\"$\",ProjectInfoTable[[#This Row],[Proposed Equipment]],1)+1,FIND(\"/U]\",ProjectInfoTable[[#This Row],[Proposed Equipment]],1)-FIND(\"$\",ProjectInfoTable[[#This Row],[Proposed Equipment]],1)-1)*ProjectInfoTable[[#This Row],[Lamps (Proposed)]]*ProjectInfoTable[[#This Row],[Quantity (Proposed)]],0),\nIF(ISNUMBER(FIND(\"/U \",ProjectInfoTable[[#This Row],[Proposed Equipment]])),IFERROR(MID(ProjectInfoTable[[#This Row],[Proposed Equipment]],FIND(\"$\",ProjectInfoTable[[#This Row],[Proposed Equipment]],1)+1,FIND(\"/U \",ProjectInfoTable[[#This Row],[Proposed Equipment]],1)-FIND(\"$\",ProjectInfoTable[[#This Row],[Proposed Equipment]],1)-1)*ProjectInfoTable[[#This Row],[Lamps (Proposed)]]*ProjectInfoTable[[#This Row],[Quantity (Proposed)]],0),\nIFERROR(ProjectInfoTable[[#This Row],[Fixture Measure kWh/yr Savings (Stipulated)]]/SUM(ProjectInfoTable[Total   kWh/yr Savings (Stipulated)])*ProjectCost_Total,\"\")))),\"\")","v":""},{"$f":"IFERROR(IF(ProjectInfoTable[[#This Row],[Fixture Measure kWh/yr Savings (Stipulated)]]=0,0,IF(ProjectType=\"Retrofit\",IF(OR(ISNUMBER(FIND(\"Midstream\",ProjectInfoTable[[#This Row],[Fixture Measure]])),ISNUMBER(FIND(\"SBDI\",ProjectInfoTable[[#This Row],[Fixture Measure]])),ISNUMBER(FIND(\"Small Bu\",ProjectInfoTable[[#This Row],[Fixture Measure]]))),ProjectInfoTable[[#This Row],[Measure Cost (Direct)]],IFERROR(ProjectInfoTable[[#This Row],[Fixture Measure kWh/yr Savings (Stipulated)]]/kWhSavings_Typical_Stipulated*(ProjectCost_Total-SUM(ProjectInfoTable[Measure Cost (Direct)])),\"\")),IF(ProjectInfoTable[[#This Row],[Proposed Equipment]]=\"\",\"\",IFERROR(SpaceTypesInfo_Table[[#Totals],[NCMR Int Cost]]*ProjectInfoTable[[#This Row],[Fixture Measure kWh/yr Savings (Stipulated)]]/SUMIFS(ProjectInfoTable[Total   kWh/yr Savings (Stipulated)],ProjectInfoTable[Proposed Equipment],\"*Interior*\"),0)))),\"\")","v":""},{"$f":"IFERROR(\n IF(\n  ProjectInfoTable[[#This Row],[Control Measure kWh/yr Savings (Stipulated)]]=0,\n  0,\n  IF(\n   ProjectType=\"Retrofit\",\n    IFERROR(\n     ProjectInfoTable[[#This Row],[Control Measure kWh/yr Savings (Stipulated)]]\n     /\n     SUMIFS(ProjectInfoTable[Control Measure kWh/yr Savings (Stipulated)],ProjectInfoTable[Control Measure],\"<>\"\"\")\n     *\n     (ProjectCost_Total-SUM(ProjectInfoTable[Fixture Cost (Allocated)])),\n     \"\"\n    ),\nROUND(\n    IF(\n     ProjectInfoTable[[#This Row],[Proposed Equipment]]=\"\",\n     \"\",\n     IFERROR(\n      SpaceTypesInfo_Table[[#Totals],[NCMR Int Cost]]\n      *\n      ProjectInfoTable[[#This Row],[Control Measure kWh/yr Savings (Stipulated)]]\n      /\n      SUMIFS(ProjectInfoTable[Total   kWh/yr Savings (Stipulated)],ProjectInfoTable[Proposed Equipment],\"*Interior*\"),\n      0\n     )\n    ),\n    2\n   )\n  )\n ),\n \"\"\n)","v":""},{"$f":"IF(AND(ProjectInfoTable[[#This Row],[Fixture Cost (Allocated)]]=\"\",ProjectInfoTable[[#This Row],[Control Cost (Allocated)]]=\"\"),\"\",SUM(ProjectInfoTable[[#This Row],[Fixture Cost (Allocated)]:[Control Cost (Allocated)]]))","v":""},{"$f":"IFERROR(IF(OR(ProjectInfoTable[[#This Row],[Proposed Equipment]]=\"\",ProjectInfoTable[[#This Row],[Quantity (Proposed)]]=\"\"),\"\",IF(OR(ProjectInfoTable[[#This Row],[Measure Selection]]=\"\",ProjectInfoTable[[#This Row],[Control kWh (Proposed)]]=\"Controls Only\"),0,IF(NOT(ISNUMBER(FIND(\"Retrofit\",ProjectType,1))),ProjectInfoTable[[#This Row],[Fixture Energy Cost Savings (Stipulated)]],IF(AND(ProjectInfoTable[[#This Row],[Fixture Measure]]=\"\",ProjectInfoTable[[#This Row],[Control Measure]]<>\"\"),0,ROUND((ProjectInfoTable[[#This Row],[Total Energy Costs (Existing, Actual)]]-ProjectInfoTable[[#This Row],[Total Energy Costs (Proposed)]]),2))))),\"\")","v":""},{"$f":"IFERROR(IF(OR(ProjectInfoTable[[#This Row],[Proposed Equipment]]=\"\",ProjectInfoTable[[#This Row],[Quantity (Proposed)]]=\"\"),\"\",\n\nIF(ProjectInfoTable[[#This Row],[Control kWh (Proposed)]]=\"Controls Only\",ProjectInfoTable[[#This Row],[Control Measure kWh/yr Savings (Actual)]]*INDEX(INDIRECT(\"RateSchedules_\"&ProjectState&\"_Table[kWh Rate]\"),\nMATCH(RateSchedule,INDIRECT(\"RateSchedules_\"&ProjectState&\"_Table[Rate Schedule]\"),0)),\n\nIF(NOT(ISNUMBER(FIND(\"Retrofit\",ProjectType,1))),ProjectInfoTable[[#This Row],[Control Energy Cost Savings (Stipulated)]],IF(AND(ProjectInfoTable[[#This Row],[Fixture Measure]]=\"\",ProjectInfoTable[[#This Row],[Control Measure]]<>\"\"),ROUND((ProjectInfoTable[[#This Row],[Total Energy Costs (Existing, Actual)]]-ProjectInfoTable[[#This Row],[Total Energy Costs (Proposed)]]),2),ROUND((ProjectInfoTable[[#This Row],[Total Energy Costs (Existing, Actual)]]-ProjectInfoTable[[#This Row],[Total Energy Costs (Proposed)]]),2)*(ProjectInfoTable[[#This Row],[Control Measure kWh/yr Savings (Actual)]]/ProjectInfoTable[[#This Row],[Total   kWh/yr Savings (Actual)]]))))),\"\")","v":""},{"$f":"IF(OR(ProjectInfoTable[[#This Row],[Proposed Equipment]]=\"\",ProjectInfoTable[[#This Row],[Quantity (Proposed)]]=\"\"),\"\",ROUND(ProjectInfoTable[[#This Row],[Fixture Energy Cost Savings (Actual)]]+ProjectInfoTable[[#This Row],[Control Energy Cost Savings (Actual)]],2))","v":""},{"$f":"IF(OR(ProjectInfoTable[[#This Row],[Proposed Equipment]]=\"\",ProjectInfoTable[[#This Row],[Quantity (Proposed)]]=\"\"),\"\",IF(OR(ISNUMBER(VALUE(ProjectInfoTable[[#This Row],[kWh Per Unit]])),ISNUMBER(VALUE(ProjectInfoTable[[#This Row],[kW Per Unit]]))),IFERROR(ProjectInfoTable[[#This Row],[Fixture Measure kWh/yr Savings (Stipulated)]]*INDEX(INDIRECT(\"RateSchedules_\"&ProjectState&\"_Table[kWh Rate]\"),MATCH(RateSchedule,INDIRECT(\"RateSchedules_\"&ProjectState&\"_Table[Rate Schedule]\"),0)),0)+IFERROR(ProjectInfoTable[[#This Row],[kW Demand Reduction (Stipulated)]]/1000*12*INDEX(INDIRECT(\"RateSchedules_\"&ProjectState&\"_Table[kW Rate]\"),MATCH(RateSchedule,INDIRECT(\"RateSchedules_\"&ProjectState&\"_Table[Rate Schedule]\"),0)),0),IFERROR(ROUND((ProjectInfoTable[[#This Row],[Total Energy Costs (Existing, Stipulated)]]-ProjectInfoTable[[#This Row],[Total Energy Costs (Proposed)]])*ProjectInfoTable[[#This Row],[Fixture Measure kWh/yr Savings (Stipulated)]]/ProjectInfoTable[[#This Row],[Total   kWh/yr Savings (Stipulated)]],2),0)))","v":""},{"$f":"IF(OR(ProjectInfoTable[[#This Row],[Proposed Equipment]]=\"\",ProjectInfoTable[[#This Row],[Quantity (Proposed)]]=\"\"),\"\",\nIF(ProjectInfoTable[[#This Row],[Control kWh (Proposed)]]=\"Controls Only\",ProjectInfoTable[[#This Row],[Control Measure kWh/yr Savings (Stipulated)]]*INDEX(INDIRECT(\"RateSchedules_\"&ProjectState&\"_Table[kWh Rate]\"),\nMATCH(RateSchedule,INDIRECT(\"RateSchedules_\"&ProjectState&\"_Table[Rate Schedule]\"),0)),IF(OR(ISNUMBER(VALUE(ProjectInfoTable[[#This Row],[Control kWh Per Unit]])),\nISNUMBER(VALUE(ProjectInfoTable[[#This Row],[Control kW Per Unit]]))),IFERROR(ProjectInfoTable[[#This Row],[Control Measure kWh/yr Savings (Stipulated)]]*INDEX(INDIRECT(\"RateSchedules_\"&ProjectState&\"_Table[kWh Rate]\"),\nMATCH(RateSchedule,INDIRECT(\"RateSchedules_\"&ProjectState&\"_Table[Rate Schedule]\"),0)),0)+IFERROR(ProjectInfoTable[[#This Row],[kW Demand Reduction (Stipulated)]]/1000*12*\nINDEX(INDIRECT(\"RateSchedules_\"&ProjectState&\"_Table[kW Rate]\"),MATCH(RateSchedule,INDIRECT(\"RateSchedules_\"&ProjectState&\"_Table[Rate Schedule]\"),0)),0),\nIFERROR(ROUND((ProjectInfoTable[[#This Row],[Total Energy Costs (Existing, Stipulated)]]-ProjectInfoTable[[#This Row],[Total Energy Costs (Proposed)]])*ProjectInfoTable[[#This Row],[Control Measure kWh/yr Savings (Stipulated)]]/\nProjectInfoTable[[#This Row],[Total   kWh/yr Savings (Stipulated)]],2),0))))","v":""},{"$f":"IF(OR(ProjectInfoTable[[#This Row],[Proposed Equipment]]=\"\",ProjectInfoTable[[#This Row],[Quantity (Proposed)]]=\"\"),\"\",ROUND(ProjectInfoTable[[#This Row],[Fixture Energy Cost Savings (Stipulated)]]+ProjectInfoTable[[#This Row],[Control Energy Cost Savings (Stipulated)]],2))","v":""},{"$f":"IF(ProjectInfoTable[[#This Row],[OpSch]]=\"\",\"\",IF(OR(ProjectInfoTable[[#This Row],[Fixture Measure]]=\"\",ProjectInfoTable[[#This Row],[Eligible Fixture Measure]]<>TRUE),0,ProjectInfoTable[[#This Row],[Fixture Incentives (pre-capping)]])+IF(OR(ProjectInfoTable[[#This Row],[Control Measure]]=\"\",ProjectInfoTable[[#This Row],[Eligible Control Measure]]<>TRUE),0,ProjectInfoTable[[#This Row],[Control Incentives (pre-capping)]]))","v":""},{"$f":"IF(OR(ProjectInfoTable[[#This Row],[Fixture Measure]]<>\"\",ProjectInfoTable[[#This Row],[Control Measure]]<>\"\"),IF(ProjectInfoTable[[#This Row],[Fixture Incentives]]=\"\",0,ProjectInfoTable[[#This Row],[Fixture Incentives]])+IF(ProjectInfoTable[[#This Row],[Control Incentives]]=\"\",0,ProjectInfoTable[[#This Row],[Control Incentives]]),\"\")","v":""},null,{"$f":"IF(OR(ProjectInfoTable[[#This Row],[Fixture Measure]]=\"\",ProjectInfoTable[[#This Row],[OpSch]]=\"\",ProjectInfoTable[[#This Row],[Eligible Fixture Measure]]<>TRUE),\"\",\nIF(OR(ISNUMBER(FIND(\"SBDI\",ProjectInfoTable[[#This Row],[Fixture Measure]])),ISNUMBER(FIND(\"Small Bu\",ProjectInfoTable[[#This Row],[Fixture Measure]]))),IFERROR(0.75*ProjectInfoTable[[#This Row],[Fixture Cost (Allocated)]],\"cost error\"),\nIF(AND(OR(ProjectType=\"New Construction\",ProjectType=\"Major Renovation\"),LPDCodeToProposed<0.1,ISNUMBER(FIND(\"Interior\",ProjectInfoTable[[#This Row],[Proposed Equipment]],1))),0,IFERROR(ProjectInfoTable[[#This Row],[Incentives Per Unit]]*ProjectInfoTable[[#This Row],[Quantity]]*ProjectInfoTable[[#This Row],[No. of TRL Units]],\"TRL Error\"))))","v":""},{"$f":"IF(\n    OR(\n        ProjectInfoTable[[#This Row],[Fixture Measure]] = \"\",\n        ProjectInfoTable[[#This Row],[OpSch]] = \"\",\n        ProjectInfoTable[[#This Row],[Eligible Fixture Measure]] <> TRUE\n    ),\n    \"\",\n    IF(\n        OR(\n            ISNUMBER(FIND(\"SBDI\", ProjectInfoTable[[#This Row],[Fixture Measure]])),\n            ISNUMBER(FIND(\"Small Bu\", ProjectInfoTable[[#This Row],[Fixture Measure]]))\n        ),\n        IFERROR(\n            (Incentive_NonTypical / Incentive_NonTypical_PreCapped) * ProjectInfoTable[[#This Row],[Fixture Incentives (pre-capping)]],\n            \"\"\n        ),\n        IF(\n            AND(\n                ProjectType = \"Retrofit\",\n                ProjectState = \"UT\",\n                ISNUMBER(FIND(\"Post-Purchase\", ProjectInfoTable[[#This Row],[Fixture Measure]], 1))\n            ),\n            IFERROR(\n                MAX(\n                    MIN(\n                        ProjectInfoTable[[#This Row],[Fixture Incentives (pre-capping)]],\n                        ProjectInfoTable[[#This Row],[Fixture Cost (Allocated)]] * 0.7\n                    ),\n                    0\n                ),\n                0\n            ),\n            IF(\n                ProjectType = \"Retrofit\",\n                IF(\n                    ISNUMBER(FIND(\"Post-Purchase\", ProjectInfoTable[[#This Row],[Fixture Measure]], 1)),\n                    ProjectInfoTable[[#This Row],[Fixture Incentives (pre-capping)]],\n                    IFERROR(\n                        $BI$3 / $BH$3 * ProjectInfoTable[[#This Row],[Fixture Incentives (pre-capping)]],\n                        \"\"\n                    )\n                ),\n                IF(\n                    ISNUMBER(FIND(\"Interior\", ProjectInfoTable[[#This Row],[Proposed Equipment]], 1)),\n                    IF(\n                        LPDCodeToProposed > 0.1,\n                        ProjectInfoTable[[#This Row],[Fixture Incentives (pre-capping)]],\n                        0\n                    ),\n                    ProjectInfoTable[[#This Row],[Fixture Incentives (pre-capping)]]\n                )\n            )\n        )\n    )\n)","v":""},{"$f":"IF(OR(ProjectInfoTable[[#This Row],[Incentives Per Unit]]=\"\",ProjectInfoTable[[#This Row],[TRL Unit]]=\"\"),\"\",IF(ProjectInfoTable[[#This Row],[Eligible Fixture Measure]]<>TRUE,\"Invalid Effective Date\",\nIF(OR(ISNUMBER(FIND(\"SBDI\",ProjectInfoTable[[#This Row],[Fixture Measure]])),ISNUMBER(FIND(\"Small Bu\",ProjectInfoTable[[#This Row],[Fixture Measure]]))),\"$0.75 / dollar cost\",\nTEXT(ProjectInfoTable[[#This Row],[Incentives Per Unit]],\"$#,##0.00\")&\" / \"&IF(ProjectInfoTable[[#This Row],[Fixture Measure]]=\"\",\"\",IF(ProjectInfoTable[[#This Row],[TRL Unit]]=\"Measure\",IF(ISNUMBER(FIND(\"Relamp\",ProjectInfoTable[[#This Row],[Proposed Equipment]],1)),\"Lamp\",\"Fixture\"),ProjectInfoTable[[#This Row],[TRL Unit]])))))","v":""},{"$f":"IF(OR(ProjectInfoTable[[#This Row],[Proposed Equipment]]=\"\",ProjectInfoTable[[#This Row],[Quantity (Proposed)]]=\"\"),\"\",IFERROR(SUBSTITUTE(IF(ProjectType=\"Retrofit\",IF(OR(ISNUMBER(FIND(\"Controls On\",ProjectInfoTable[[#This Row],[Proposed Equipment]],1))),\"\",IF(OR(ProjectInfoTable[[#This Row],[Existing Equipment]]=\"\",ProjectInfoTable[[#This Row],[Proposed Equipment]]=\"\"),\"\",IF(ProjectState=\"UT\",IFERROR(IF(AlternativeEnergyOverride=\"Yes\",IFERROR(INDEX(INDIRECT(\"EquipmentTable_\"&\"Retrofit_\"&ProjectState&\"[#All]\"),MATCH(LEFT(ProjectInfoTable[[#This Row],[Proposed Equipment]],FIND(\"[\",ProjectInfoTable[[#This Row],[Proposed Equipment]],1)-2)&\" (Alt)\",INDIRECT(\"EquipmentTable_\"&\"Retrofit_\"&ProjectState&\"[equipmentProposed]\"),0)+1,MATCH(\"measureRetrofit_\"&LEFT(ProjectInfoTable[[#This Row],[Existing Equipment]],FIND(\":\",ProjectInfoTable[[#This Row],[Existing Equipment]],1)-1)&\"_\"&IF(IFERROR(INDEX(ControlsLookup[Rank],MATCH(RIGHT(ProjectInfoTable[[#This Row],[Proposed Equipment]],LEN(ProjectInfoTable[[#This Row],[Proposed Equipment]])-FIND(\"]\",ProjectInfoTable[[#This Row],[Proposed Equipment]],1)-3),ControlsLookup[Controls],0)),0)>IFERROR(INDEX(ControlsLookup[Rank],MATCH(RIGHT(ProjectInfoTable[[#This Row],[Existing Equipment]],LEN(ProjectInfoTable[[#This Row],[Existing Equipment]])-FIND(\"]\",ProjectInfoTable[[#This Row],[Existing Equipment]],1)-3),ControlsLookup[Controls],0)),0),INDEX(ControlsLookup[Controls Type],MATCH(LEFT(ProjectInfoTable[[#This Row],[Existing Equipment]],FIND(\":\",ProjectInfoTable[[#This Row],[Existing Equipment]],1)-1)&\"_\"&RIGHT(ProjectInfoTable[[#This Row],[Proposed Equipment]],LEN(ProjectInfoTable[[#This Row],[Proposed Equipment]])-FIND(\"]\",ProjectInfoTable[[#This Row],[Proposed Equipment]],1)-3),ControlsLookup[Controls Concatenate],0)),\"None\"),INDIRECT(\"EquipmentTable_\"&\"Retrofit_\"&ProjectState&\"[#Headers]\"),0)),INDEX(INDIRECT(\"EquipmentTable_\"&IF(ProjectType=\"Retrofit\",\"Retrofit_\",\"NCMR_\")&ProjectState&\"[#All]\"),MATCH(LEFT(ProjectInfoTable[[#This Row],[Proposed Equipment]],FIND(\"[\",ProjectInfoTable[[#This Row],[Proposed Equipment]],1)-2),INDIRECT(\"EquipmentTable_\"&\"Retrofit_\"&ProjectState&\"[equipmentProposed]\"),0)+1,MATCH(\"measureRetrofit_\"&LEFT(ProjectInfoTable[[#This Row],[Existing Equipment]],FIND(\":\",ProjectInfoTable[[#This Row],[Existing Equipment]],1)-1)&\"_\"&IF(IFERROR(INDEX(ControlsLookup[Rank],MATCH(RIGHT(ProjectInfoTable[[#This Row],[Proposed Equipment]],LEN(ProjectInfoTable[[#This Row],[Proposed Equipment]])-FIND(\"]\",ProjectInfoTable[[#This Row],[Proposed Equipment]],1)-3),ControlsLookup[Controls],0)),0)>IFERROR(INDEX(ControlsLookup[Rank],MATCH(RIGHT(ProjectInfoTable[[#This Row],[Existing Equipment]],LEN(ProjectInfoTable[[#This Row],[Existing Equipment]])-FIND(\"]\",ProjectInfoTable[[#This Row],[Existing Equipment]],1)-3),ControlsLookup[Controls],0)),0),INDEX(ControlsLookup[Controls Type],MATCH(LEFT(ProjectInfoTable[[#This Row],[Existing Equipment]],FIND(\":\",ProjectInfoTable[[#This Row],[Existing Equipment]],1)-1)&\"_\"&RIGHT(ProjectInfoTable[[#This Row],[Proposed Equipment]],LEN(ProjectInfoTable[[#This Row],[Proposed Equipment]])-FIND(\"]\",ProjectInfoTable[[#This Row],[Proposed Equipment]],1)-3),ControlsLookup[Controls Concatenate],0)),\"None\"),INDIRECT(\"EquipmentTable_\"&IF(ProjectType=\"Retrofit\",\"Retrofit_\",\"NCMR_\")&ProjectState&\"[#Headers]\"),0))),INDEX(INDIRECT(\"EquipmentTable_\"&IF(ProjectType=\"Retrofit\",\"Retrofit_\",\"NCMR_\")&ProjectState&\"[#All]\"),MATCH(LEFT(ProjectInfoTable[[#This Row],[Proposed Equipment]],FIND(\"[\",ProjectInfoTable[[#This Row],[Proposed Equipment]],1)-2),INDIRECT(\"EquipmentTable_\"&IF(ProjectType=\"Retrofit\",\"Retrofit_\",\"NCMR_\")&ProjectState&\"[equipmentProposed]\"),0)+1,MATCH(\"measureRetrofit_\"&IF(AND(SBDEligible=\"Yes\",ISNUMBER(FIND(\"SBE\",ProjectInfoTable[[#This Row],[Proposed Equipment]]))),\"SBE\",LEFT(ProjectInfoTable[[#This Row],[Existing Equipment]],FIND(\":\",ProjectInfoTable[[#This Row],[Existing Equipment]],1)-1)&\"_\"&IF(IFERROR(INDEX(ControlsLookup[Rank],MATCH(RIGHT(ProjectInfoTable[[#This Row],[Proposed Equipment]],LEN(ProjectInfoTable[[#This Row],[Proposed Equipment]])-FIND(\"]\",ProjectInfoTable[[#This Row],[Proposed Equipment]],1)-3),ControlsLookup[Controls],0)),0)>IFERROR(INDEX(ControlsLookup[Rank],MATCH(RIGHT(ProjectInfoTable[[#This Row],[Existing Equipment]],LEN(ProjectInfoTable[[#This Row],[Existing Equipment]])-FIND(\"]\",ProjectInfoTable[[#This Row],[Existing Equipment]],1)-3),ControlsLookup[Controls],0)),0),INDEX(ControlsLookup[Controls Type],MATCH(LEFT(ProjectInfoTable[[#This Row],[Existing Equipment]],FIND(\":\",ProjectInfoTable[[#This Row],[Existing Equipment]],1)-1)&\"_\"&RIGHT(ProjectInfoTable[[#This Row],[Proposed Equipment]],LEN(ProjectInfoTable[[#This Row],[Proposed Equipment]])-FIND(\"]\",ProjectInfoTable[[#This Row],[Proposed Equipment]],1)-3),ControlsLookup[Controls Concatenate],0)),\"None\")),INDIRECT(\"EquipmentTable_\"&\"Retrofit_\"&ProjectState&\"[#Headers]\"),0))),\"Non-eligible fixture - Retrofit - \"&ProjectState),IFERROR(INDEX(INDIRECT(\"EquipmentTable_\"&IF(SiteSpecificOverride=\"Yes\",\"PostPurchase_\",\"Retrofit_\")&ProjectState&\"[#All]\"),MATCH(LEFT(ProjectInfoTable[[#This Row],[Proposed Equipment]],FIND(\"[\",ProjectInfoTable[[#This Row],[Proposed Equipment]],1)-2),INDIRECT(\"EquipmentTable_\"&IF(SiteSpecificOverride=\"Yes\",\"PostPurchase_\",\"Retrofit_\")&ProjectState&\"[equipmentProposed]\"),0)+1,MATCH(\"measureRetrofit_\"&IF(AND(SBDEligible=\"Yes\",ISNUMBER(FIND(\"SBE\",ProjectInfoTable[[#This Row],[Proposed Equipment]]))),\"SBE\",LEFT(ProjectInfoTable[[#This Row],[Existing Equipment]],FIND(\":\",ProjectInfoTable[[#This Row],[Existing Equipment]],1)-1)&\"_\"&IF(IFERROR(INDEX(ControlsLookup[Rank],MATCH(RIGHT(ProjectInfoTable[[#This Row],[Proposed Equipment]],LEN(ProjectInfoTable[[#This Row],[Proposed Equipment]])-FIND(\"]\",ProjectInfoTable[[#This Row],[Proposed Equipment]],1)-3),ControlsLookup[Controls],0)),0)>IFERROR(INDEX(ControlsLookup[Rank],MATCH(RIGHT(ProjectInfoTable[[#This Row],[Existing Equipment]],LEN(ProjectInfoTable[[#This Row],[Existing Equipment]])-FIND(\"]\",ProjectInfoTable[[#This Row],[Existing Equipment]],1)-3),ControlsLookup[Controls],0)),0),INDEX(ControlsLookup[Controls Type],MATCH(LEFT(ProjectInfoTable[[#This Row],[Existing Equipment]],FIND(\":\",ProjectInfoTable[[#This Row],[Existing Equipment]],1)-1)&\"_\"&RIGHT(ProjectInfoTable[[#This Row],[Proposed Equipment]],LEN(ProjectInfoTable[[#This Row],[Proposed Equipment]])-FIND(\"]\",ProjectInfoTable[[#This Row],[Proposed Equipment]],1)-3),ControlsLookup[Controls Concatenate],0)),\"None\")),INDIRECT(\"EquipmentTable_\"&IF(SiteSpecificOverride=\"Yes\",\"PostPurchase_\",\"Retrofit_\")&ProjectState&\"[#Headers]\"),0)),\"Non-eligible fixture - Retrofit - \"&ProjectState)))),IFERROR(INDEX(INDIRECT(\"EquipmentTable_\"&\"NCMR_\"&ProjectState),MATCH(RIGHT(LEFT(ProjectInfoTable[[#This Row],[Proposed Equipment]],FIND(\" (\",ProjectInfoTable[[#This Row],[Proposed Equipment]],1)-1),LEN(LEFT(ProjectInfoTable[[#This Row],[Proposed Equipment]],FIND(\" (\",ProjectInfoTable[[#This Row],[Proposed Equipment]],1)-2))-FIND(\":\",ProjectInfoTable[[#This Row],[Proposed Equipment]],1)),INDIRECT(\"EquipmentTable_\"&\"NCMR_\"&ProjectState&\"[equipmentProposed]\"),0),MATCH(\"measureNCMR_\"&LEFT(ProjectInfoTable[[#This Row],[Proposed Equipment]],FIND(\":\",ProjectInfoTable[[#This Row],[Proposed Equipment]],1)-1)&\"_\"&IF(LEN(ProjectInfoTable[[#This Row],[Proposed Equipment]])>FIND(\"]\",ProjectInfoTable[[#This Row],[Proposed Equipment]]),INDEX(ControlsLookup[Controls Type],MATCH(LEFT(ProjectInfoTable[[#This Row],[Proposed Equipment]],FIND(\":\",ProjectInfoTable[[#This Row],[Proposed Equipment]],1)-1)&\"_\"&RIGHT(ProjectInfoTable[[#This Row],[Proposed Equipment]],LEN(ProjectInfoTable[[#This Row],[Proposed Equipment]])-FIND(\"]\",ProjectInfoTable[[#This Row],[Proposed Equipment]],1)-3),ControlsLookup[Controls Concatenate],0)),\"None\"),INDIRECT(\"EquipmentTable_\"&\"NCMR_\"&ProjectState&\"[#Headers]\"),0)),\"Non-eligible fixture - NCMR - \"&ProjectState)),\"[NAMESUB]\",ProjectInfoTable[[#This Row],[Measure Name Sub]]),\"Non-eligible fixture - Retrofit - \"&ProjectState))","v":""},{"$f":"IF(ISNUMBER(SEARCH(\"Case\",ProjectInfoTable[[#This Row],[Fixture Measure]])),CONCATENATE(ProjectInfoTable[[#This Row],[Fixture Measure]],ProjectInfoTable[[#This Row],[No. of TRL Units]],ProjectInfoTable[[#This Row],[Quantity]]),\"\")","v":""},{"$f":"IF(ProjectInfoTable[[#This Row],[Proposed Equipment]]=\"\",\"\",\nIF(AND(ProjectState = \"UT\",ISNUMBER(FIND(\" TLED \",ProjectInfoTable[[#This Row],[Proposed Equipment]]))),\nIF(VALUE(ProjectInfoTable[[#This Row],[Lamp W (Proposed)]])<20,\"< 20 W\",\nIF(AND(VALUE(ProjectInfoTable[[#This Row],[Lamp W (Proposed)]])<=39,VALUE(ProjectInfoTable[[#This Row],[Lamp W (Proposed)]])>=20),\">= 20 W and <= 39 W\",)),\n\nIF(AND(ProjectType=\"Retrofit\",OR(ISNUMBER(FIND(\"Retrofit Kit\",ProjectInfoTable[[#This Row],[Proposed Equipment]])),ISNUMBER(FIND(\"Fixture\",ProjectInfoTable[[#This Row],[Proposed Equipment]]))),OR(ISNUMBER(FIND(\"Exterior\",ProjectInfoTable[[#This Row],[Existing Equipment]])),ISNUMBER(FIND(\"Street\",ProjectInfoTable[[#This Row],[Existing Equipment]])))),\nIF(ProjectInfoTable[[#This Row],[Fixture W (Proposed)]]<50,\"< 50 W\",\nIF(AND(ProjectInfoTable[[#This Row],[Fixture W (Proposed)]]<90,ProjectInfoTable[[#This Row],[Fixture W (Proposed)]]>=50),\">= 50 W and < 90 W\",\nIF(AND(ProjectInfoTable[[#This Row],[Fixture W (Proposed)]]<135,ProjectInfoTable[[#This Row],[Fixture W (Proposed)]]>=90),\">= 90 W and < 135 W\",\nIF(AND(ProjectInfoTable[[#This Row],[Fixture W (Proposed)]]<220,ProjectInfoTable[[#This Row],[Fixture W (Proposed)]]>=135),\">= 135 W and < 220 W\",\nIF(ProjectInfoTable[[#This Row],[Fixture W (Proposed)]]>=220,\">= 220 W\"))))),\"\")))","v":""},{"$f":"IFERROR(INDEX(INDIRECT(\"MeasureTable_\" & ProjectState & \"[Measure Reference Number]\"),MATCH(ProjectInfoTable[[#This Row],[Fixture Measure]],INDIRECT(\"MeasureTable_\" &ProjectState&\"[Measure Name]\"),0)),\"\")","v":""},{"$f":"IFERROR(\n    _xlfn.LET(\n        _xlpm.filteredVersions,\n            _xlfn._xlws.FILTER(\n                INDIRECT(\"MeasureTable_\" & ProjectState & \"[Version Number]\"),\n                (INDIRECT(\"MeasureTable_\" & ProjectState & \"[Measure Reference Number]\") = ProjectInfoTable[[#This Row],[Fixture Measure Reference Number]]) *\n                (INDIRECT(\"MeasureTable_\" & ProjectState & \"[Eligible Measure]\") = TRUE)\n            ),\n        INDEX(_xlpm.filteredVersions, 1)\n    ),\n    \"\"\n)","v":""},{"$f":"IFERROR(\n  _xlfn.LET(\n    _xlpm.refRange, INDIRECT(\"MeasureTable_\" & ProjectState & \"[Measure Reference Number]\"),\n    _xlpm.eligibleRange, INDIRECT(\"MeasureTable_\" & ProjectState & \"[Eligible Measure]\"),\n    _xlpm.countTrue, SUMPRODUCT(--(_xlpm.refRange = ProjectInfoTable[[#This Row],[Fixture Measure Reference Number]]), --(_xlpm.eligibleRange = TRUE)),\n    _xlpm.countNonBlank, SUMPRODUCT(--(_xlpm.refRange = ProjectInfoTable[[#This Row],[Fixture Measure Reference Number]]), --(_xlpm.eligibleRange <> \"\")),\n    IF(_xlpm.countNonBlank = 0, \"\", IF(_xlpm.countTrue >= 1, TRUE, FALSE))\n  ),\n  \"\"\n)","v":""},{"$f":"IFERROR(VALUE(INDEX(INDIRECT(\"MeasureTable_\" & ProjectState & \"[CustomerIncentiveDollarperunit]\"),MATCH(ProjectInfoTable[[#This Row],[Fixture Measure]]&\" | TRUE\",INDIRECT(\"MeasureTable_\" &ProjectState&\"[MeasureEligibleConcatenate]\"),0))),\"\")","v":""},{"$f":"IFERROR(INDEX(INDIRECT(\"MeasureTable_\"&ProjectState&\"[SiteSpecificCalculation]\"),MATCH(ProjectInfoTable[[#This Row],[Fixture Measure]]&\" | TRUE\",INDIRECT(\"MeasureTable_\" &ProjectState&\"[MeasureEligibleConcatenate]\"),0)),\"\")","v":""},{"$f":"IFERROR(INDEX(INDIRECT(\"MeasureTable_\"&ProjectState&\"[GrossIncrementalAnnualElectricSavings]\"),MATCH(ProjectInfoTable[[#This Row],[Fixture Measure]]&\" | TRUE\",INDIRECT(\"MeasureTable_\" &ProjectState&\"[MeasureEligibleConcatenate]\"),0)),\"\")","v":""},{"$f":"IFERROR(INDEX(INDIRECT(\"MeasureTable_\"&ProjectState&\"[GrossAverageMonthlyDemandReduction]\"),MATCH(ProjectInfoTable[[#This Row],[Fixture Measure]]&\" | TRUE\",INDIRECT(\"MeasureTable_\" &ProjectState&\"[MeasureEligibleConcatenate]\"),0)),\"\")","v":""},{"$f":"IF(ProjectInfoTable[[#This Row],[Fixture Measure]]=\"\",\"\",IF(NOT(ISNUMBER(FIND(\"Site-Specific - Downstream\",ProjectInfoTable[[#This Row],[Fixture Measure]]))),\"\",\nIF(ISNUMBER(MATCH(SUBSTITUTE(ProjectInfoTable[[#This Row],[Fixture Measure]],\"Site-Specific - Downstream - v2\",\"Mid Market\"),INDIRECT(\"MeasureTable_\"&ProjectState&\"[Measure Name]\"),0)),\nSUBSTITUTE(ProjectInfoTable[[#This Row],[Fixture Measure]],\"Site-Specific - Downstream - v2\",\"Mid Market\"),\nSUBSTITUTE(ProjectInfoTable[[#This Row],[Fixture Measure]],\"Site-Specific - Downstream\",\"Mid Market\"))\n))","v":""},{"$f":"IF(ProjectInfoTable[[#This Row],[Midstream Measure Name]]=\"\",\"\",IFERROR(INDEX(INDIRECT(\"MeasureTable_\"&ProjectState&\"[GrossIncrementalAnnualElectricSavings ]\"),MATCH(ProjectInfoTable[[#This Row],[Midstream Measure Name]]&\" | TRUE\",INDIRECT(\"MeasureTable_\" &ProjectState&\"[MeasureEligibleConcatenate]\"),0)),\"\"))","v":""},{"$f":"IF(ProjectInfoTable[[#This Row],[Midstream Measure Name]]=\"\",\"\",IFERROR(INDEX(INDIRECT(\"MeasureTable_\"&ProjectState&\"[GrossAverage onthly emand eduction]\"),MATCH(ProjectInfoTable[[#This Row],[Midstream Measure Name]]&\" | TRUE\",INDIRECT(\"MeasureTable_\" &ProjectState&\"[MeasureEligibleConcatenate]\"),0)),\"\"))","v":""},{"$f":"IFERROR(INDEX(INDIRECT(\"MeasureTable_\"&ProjectState&\"[IncrementalMeasureCost]\"),MATCH(ProjectInfoTable[[#This Row],[Fixture Measure]]&\" | TRUE\",INDIRECT(\"MeasureTable_\" &ProjectState&\"[MeasureEligibleConcatenate]\"),0)),\"\")","v":""},{"$f":"IF(ProjectInfoTable[[#This Row],[Fixture Measure]]=\"\",\"\",IF(AND(ProjectState=\"UT\",ProjectInfoTable[[#This Row],[Measure Selection]]=\"\"),0,\nIF(OR(ISNUMBER(FIND(\"SBDI\",ProjectInfoTable[[#This Row],[Fixture Measure]])),ISNUMBER(FIND(\"Small Bu\",ProjectInfoTable[[#This Row],[Fixture Measure]]))),ProjectInfoTable[[#This Row],[Quantity (Proposed)]]*ProjectInfoTable[[#This Row],[Lamps (Proposed)]],\nIF(OR(ProjectInfoTable[[#This Row],[TRL Unit]]=\"Measure\",ProjectInfoTable[[#This Row],[TRL Unit]]=\"Linear ft.\"),IF(OR(ISNUMBER(FIND(\"Lamp\",ProjectInfoTable[[#This Row],[Fixture Measure]],1)),ISNUMBER(FIND(\"Relamp\",ProjectInfoTable[[#This Row],[Fixture Measure]],1)),ISNUMBER(FIND(\"Relamp\",ProjectInfoTable[[#This Row],[Proposed Equipment]],1))),ProjectInfoTable[[#This Row],[Quantity (Proposed)]]*ProjectInfoTable[[#This Row],[Lamps (Proposed)]],ProjectInfoTable[[#This Row],[Quantity (Proposed)]]),1))))","v":""},{"$f":"IF(ProjectInfoTable[[#This Row],[Fixture Measure]]=\"\",\"\",IF(AND(ProjectState=\"UT\",ProjectInfoTable[[#This Row],[Measure Selection]]=\"\"),0,\nIF(OR(ISNUMBER(FIND(\"SBDI\",ProjectInfoTable[[#This Row],[Fixture Measure]])),ISNUMBER(FIND(\"Small Bu\",ProjectInfoTable[[#This Row],[Fixture Measure]]))),1,\nIF(ISNUMBER(FIND(\"Controls Only\",ProjectInfoTable[[#This Row],[Proposed Equipment]],1)),IF(OR(ProjectType <> \"Retrofit\",ProjectInfoTable[[#This Row],[Space W (Proposed)]]>0),ProjectInfoTable[[#This Row],[Space W (Proposed)]],ProjectInfoTable[[#This Row],[Space W (Existing, Stipulated)]]),\nIF(TRIM(UPPER(ProjectInfoTable[[#This Row],[TRL Unit]]))=\"LINEAR FT.\",IF(OR(ISNUMBER(FIND(\"Marquee\",ProjectInfoTable[[#This Row],[Proposed Equipment]],1)),ISNUMBER(FIND(\"Cabinet\",ProjectInfoTable[[#This Row],[Proposed Equipment]],1))),VALUE(RIGHT(LEFT(ProjectInfoTable[[#This Row],[Existing Equipment]],FIND(\"LF \",ProjectInfoTable[[#This Row],[Existing Equipment]],1)-1),LEN(LEFT(ProjectInfoTable[[#This Row],[Existing Equipment]],FIND(\"LF \",ProjectInfoTable[[#This Row],[Existing Equipment]],1)-1))-FIND(\"[\",ProjectInfoTable[[#This Row],[Existing Equipment]],1))),VALUE(RIGHT(LEFT(ProjectInfoTable[[#This Row],[Proposed Equipment]],FIND(\"LF \",ProjectInfoTable[[#This Row],[Proposed Equipment]],1)-1),LEN(LEFT(ProjectInfoTable[[#This Row],[Proposed Equipment]],FIND(\"LF \",ProjectInfoTable[[#This Row],[Proposed Equipment]],1)-1))-FIND(\"[\",ProjectInfoTable[[#This Row],[Proposed Equipment]],1)))),\nIF(TRIM(UPPER(ProjectInfoTable[[#This Row],[TRL Unit]]))=\"KWH\",IF(ProjectInfoTable[[#This Row],[Fixture Measure kWh/yr Savings (Stipulated)]]=0,0,ROUND(ProjectInfoTable[[#This Row],[Fixture Measure kWh/yr Savings (Stipulated)]],2)),\nIF(TRIM(UPPER(ProjectInfoTable[[#This Row],[TRL Unit]]))=\"WATT REDUCED\",IF(ProjectInfoTable[[#This Row],[Fixture Measure kWh/yr Savings (Stipulated)]]=0,0,ROUND(ProjectInfoTable[[#This Row],[Space W (Existing, Stipulated)]]-ProjectInfoTable[[#This Row],[Space W (Proposed)]],2)),\nIF(TRIM(UPPER(ProjectInfoTable[[#This Row],[TRL Unit]]))=\"FIXTURE WATTAGE\",ProjectInfoTable[[#This Row],[Space W (Proposed)]],1))))))))","v":""},{"$f":"IFERROR(IF(OR(ISNUMBER(FIND(\"SBDI\",ProjectInfoTable[[#This Row],[Fixture Measure]])),ISNUMBER(FIND(\"Small Bu\",ProjectInfoTable[[#This Row],[Fixture Measure]]))),0,INDEX(INDIRECT(\"MeasureTable_\"&ProjectState&\"[Unit]\"),MATCH(ProjectInfoTable[[#This Row],[Fixture Measure]]&\" | TRUE\",INDIRECT(\"MeasureTable_\" &ProjectState&\"[MeasureEligibleConcatenate]\"),0))),\"\")","v":""},{"$f":"IF(ProjectInfoTable[[#This Row],[Fixture Measure]]=\"\",\"\",IF(OR(ISNUMBER(FIND(\"Lamp(s)\",ProjectInfoTable[[#This Row],[Fixture Measure]],1)),ISNUMBER(FIND(\"Relamp\",ProjectInfoTable[[#This Row],[Proposed Equipment]],1))),\"Lamp(s)\",\"Fixture(s)\"))","v":""},{"$f":"IFERROR(INDEX(INDIRECT(\"MeasureTable_\"&ProjectState&\"[ProjectCapPercent]\"),MATCH(ProjectInfoTable[[#This Row],[Fixture Measure]]&\" | TRUE\",INDIRECT(\"MeasureTable_\" &ProjectState&\"[MeasureEligibleConcatenate]\"),0)),\"\")","v":""},{"$f":"IF(OR(ProjectInfoTable[[#This Row],[Control Measure]]=\"\",ProjectInfoTable[[#This Row],[OpSch]]=\"\",ProjectInfoTable[[#This Row],[Eligible Control Measure]]<>TRUE),\"\",IF(AND(OR(ProjectType=\"New Construction\",ProjectType=\"Major Renovation\"),LPDCodeToProposed<0.1,ISNUMBER(FIND(\"Interior\",ProjectInfoTable[[#This Row],[Proposed Equipment]],1))),0,IFERROR(ProjectInfoTable[[#This Row],[Control Incentives Per Unit]]*ProjectInfoTable[[#This Row],[Control Quantity]]*ProjectInfoTable[[#This Row],[Control No. of TRL Units]],\"TRL Error\")))","v":""},{"$f":"IF(OR(ProjectInfoTable[[#This Row],[Control Measure]]=\"\",ProjectInfoTable[[#This Row],[OpSch]]=\"\",ProjectInfoTable[[#This Row],[Eligible Control Measure]]<>TRUE),\"\",IF(AND(ProjectType=\"Retrofit\",ProjectState=\"UT\",ISNUMBER(FIND(\"Post Purchase\",ProjectInfoTable[[#This Row],[Control Measure]],1))),\n\nIFERROR(MAX(MIN(ProjectInfoTable[[#This Row],[Control Incentives (pre-capping)]],ProjectInfoTable[[#This Row],[Control Cost (Allocated)]]*0.7),0),0),\n\nIF(ProjectType=\"Retrofit\",IF(ISNUMBER(FIND(\"Post Purchase\",ProjectInfoTable[[#This Row],[Control Measure]],1)),ProjectInfoTable[[#This Row],[Control Incentives (pre-capping)]],IFERROR($BI$3/$BH$3*ProjectInfoTable[[#This Row],[Control Incentives (pre-capping)]],\"\")),\n\nIF(ISNUMBER(FIND(\"Interior\",ProjectInfoTable[[#This Row],[Proposed Equipment]],1)),IF(LPDCodeToProposed>0.1,ProjectInfoTable[[#This Row],[Control Incentives (pre-capping)]],0),ProjectInfoTable[[#This Row],[Control Incentives (pre-capping)]]))))","v":""},{"$f":"IF(OR(ProjectInfoTable[[#This Row],[Control Incentives Per Unit]]=\"\",ProjectInfoTable[[#This Row],[Control TRL Unit]]=\"\"),\"\",IF(ProjectInfoTable[[#This Row],[Eligible Control Measure]]<>TRUE,\"Invalid Effective Date\",TEXT(ProjectInfoTable[[#This Row],[Control Incentives Per Unit]],\"$#,##0.00\")&\" / \"&ProjectInfoTable[[#This Row],[Control TRL Unit]]))","v":""},{"$f":"IF(ISNUMBER(FIND(\"SBE\",ProjectInfoTable[[#This Row],[Proposed Equipment]])),\"\",\n\nIF(LEN(ProjectInfoTable[[#This Row],[Proposed Equipment]])>\n\nIFERROR(FIND(\"]\",ProjectInfoTable[[#This Row],[Proposed Equipment]],1),0),\nSUBSTITUTE(\nIF(OR(ProjectInfoTable[[#This Row],[Control Method]]=\"separate\",ISNUMBER(FIND(\"Midstream\",ProjectInfoTable[[#This Row],[Fixture Measure]],1)),ISNUMBER(FIND(\"Midstream\",ProjectInfoTable[[#This Row],[Equipment Category]],1)),ISNUMBER(FIND(\"Prescriptive\",ProjectInfoTable[[#This Row],[Equipment Category]],1)),ISNUMBER(FIND(\"LED\",ProjectInfoTable[[#This Row],[Fixture Measure]],1)),ISNUMBER(FIND(\"LED Case\",ProjectInfoTable[[#This Row],[Fixture Measure]],1)),ISNUMBER(FIND(\"LED Decorative - Retrofit - WA\",ProjectInfoTable[[#This Row],[Fixture Measure]],1)),ISNUMBER(FIND(\"Lamp\",ProjectInfoTable[[#This Row],[Fixture Measure]],1)),ISNUMBER(FIND(\"Relamp\",ProjectInfoTable[[#This Row],[Fixture Measure]],1)),ISNUMBER(FIND(\"Wall Pack\",ProjectInfoTable[[#This Row],[Fixture Measure]],1)),ISNUMBER(FIND(\"Controls Only\",ProjectInfoTable[[#This Row],[Proposed Equipment]],1)),ISNUMBER(FIND(\"Re-Commissioning\",ProjectInfoTable[[#This Row],[Proposed Equipment]],1)),\n\nAND(OR(ISNUMBER(FIND(\"Exterior:\",ProjectInfoTable[[#This Row],[Proposed Equipment]],1)),ISNUMBER(FIND(\"Street:\",ProjectInfoTable[[#This Row],[Proposed Equipment]],1))),OR(ProjectState=\"ID\",ProjectState=\"UT\",ProjectState=\"WY\"))),\n\nIF(IFERROR(INDEX(ControlsLookup[],MATCH(IF(ProjectType=\"Retrofit\",LEFT(ProjectInfoTable[[#This Row],[Existing Equipment]],FIND(\":\",ProjectInfoTable[[#This Row],[Existing Equipment]],1)-1),LEFT(ProjectInfoTable[[#This Row],[Proposed Equipment]],FIND(\":\",ProjectInfoTable[[#This Row],[Proposed Equipment]],1)-1))&\"_\"&RIGHT(ProjectInfoTable[[#This Row],[Proposed Equipment]],LEN(ProjectInfoTable[[#This Row],[Proposed Equipment]])-FIND(\"]\",ProjectInfoTable[[#This Row],[Proposed Equipment]],1)-3),ControlsLookup[Controls Concatenate],0),MATCH(\n\nIF(ProjectType=\"Retrofit\",\"ControlMeasure_\",\"NCMRControlMeasure_\")&ProjectState,ControlsLookup[#Headers],0)),\"\")=0,\"\",\n\nIFERROR(INDEX(ControlsLookup[],MATCH(IF(ProjectType=\"Retrofit\",LEFT(ProjectInfoTable[[#This Row],[Existing Equipment]],FIND(\":\",ProjectInfoTable[[#This Row],[Existing Equipment]],1)-1),LEFT(ProjectInfoTable[[#This Row],[Proposed Equipment]],FIND(\":\",ProjectInfoTable[[#This Row],[Proposed Equipment]],1)-1))&\"_\"&RIGHT(ProjectInfoTable[[#This Row],[Proposed Equipment]],LEN(ProjectInfoTable[[#This Row],[Proposed Equipment]])-FIND(\"]\",ProjectInfoTable[[#This Row],[Proposed Equipment]],1)-3),ControlsLookup[Controls Concatenate],0),MATCH(\n\nIF(ProjectType=\"Retrofit\",\"ControlMeasure_\",\"NCMRControlMeasure_\")&ProjectState&IF(ProjectState=\"UT\",SegmentTag,\"\"),ControlsLookup[#Headers],0)),\"\")),\"\"),\"[NAMESUB]\",ProjectInfoTable[[#This Row],[Control Measure Name Sub]]),\"\"))","v":""},{"$f":"IF(ProjectInfoTable[[#This Row],[Proposed Equipment]]=\"\",\"\",IF(AND(ProjectState=\"UT\",ProjectType=\"Retrofit\",ISNUMBER(FIND(\"Re-Commissioning\",ProjectInfoTable[[#This Row],[Proposed Equipment]]))),\nIF(ProjectRecommissioning=\"only recommissioning\",\"Commissioning Only\",\"Commissioning w/ Lighting Upgrade\"),\"\"))","v":""},{"$f":"IFERROR(INDEX(INDIRECT(\"MeasureTable_\" & ProjectState & \"[Measure Reference Number]\"),MATCH(ProjectInfoTable[[#This Row],[Control Measure]],INDIRECT(\"MeasureTable_\" &ProjectState&\"[Measure Name]\"),0)),\"\")","v":""},{"$f":"IFERROR(\n    _xlfn.LET(\n        _xlpm.filteredVersions,\n            _xlfn._xlws.FILTER(\n                INDIRECT(\"MeasureTable_\" & ProjectState & \"[Version Number]\"),\n                (INDIRECT(\"MeasureTable_\" & ProjectState & \"[Measure Reference Number]\") = ProjectInfoTable[[#This Row],[Control Measure Reference Number]]) *\n                (INDIRECT(\"MeasureTable_\" & ProjectState & \"[Eligible Measure]\") = TRUE)\n            ),\n        INDEX(_xlpm.filteredVersions, 1)\n    ),\n    \"\"\n)","v":""},{"$f":"IFERROR(\n  _xlfn.LET(\n    _xlpm.refRange, INDIRECT(\"MeasureTable_\" & ProjectState & \"[Measure Reference Number]\"),\n    _xlpm.eligibleRange, INDIRECT(\"MeasureTable_\" & ProjectState & \"[Eligible Measure]\"),\n    _xlpm.countTrue, SUMPRODUCT(--(_xlpm.refRange = ProjectInfoTable[[#This Row],[Control Measure Reference Number]]), --(_xlpm.eligibleRange = TRUE)),\n    _xlpm.countNonBlank, SUMPRODUCT(--(_xlpm.refRange = ProjectInfoTable[[#This Row],[Control Measure Reference Number]]), --(_xlpm.eligibleRange <> \"\")),\n    IF(_xlpm.countNonBlank = 0, \"\", IF(_xlpm.countTrue >= 1, TRUE, FALSE))\n  ),\n  \"\"\n)","v":""},{"$f":"IF(ProjectInfoTable[[#This Row],[Proposed Equipment]]=\"\",\"\",IFERROR(INDEX(INDIRECT(\"EquipmentTable_\"&IF(ProjectType=\"Retrofit\",\"Retrofit_\",\"NCMR_\")&ProjectState&\"[controlMethod]\"),MATCH(LEFT(ProjectInfoTable[[#This Row],[Proposed Equipment]],FIND(\"[\",ProjectInfoTable[[#This Row],[Proposed Equipment]],1)-2),INDIRECT(\"EquipmentTable_\"&IF(ProjectType=\"Retrofit\",\"Retrofit_\",\"NCMR_\")&ProjectState&\"[equipmentProposed]\"),0)),\"\"))","v":""},{"$f":"IFERROR(VALUE(INDEX(INDIRECT(\"MeasureTable_\" & ProjectState & \"[CustomerIncentiveDollarperunit]\"),MATCH(ProjectInfoTable[[#This Row],[Control Measure]]&\" | TRUE\",INDIRECT(\"MeasureTable_\"&ProjectState&\"[MeasureEligibleConcatenate]\"),0))),\"\")","v":""},{"$f":"IFERROR(INDEX(INDIRECT(\"MeasureTable_\"&ProjectState&\"[SiteSpecificCalculation]\"),MATCH(ProjectInfoTable[[#This Row],[Control Measure]]&\" | TRUE\",INDIRECT(\"MeasureTable_\"&ProjectState&\"[MeasureEligibleConcatenate]\"),0)),\"\")","v":""},{"$f":"IFERROR(INDEX(INDIRECT(\"MeasureTable_\"&ProjectState&\"[GrossIncrementalAnnualElectricSavings ]\"),MATCH(ProjectInfoTable[[#This Row],[Control Measure]]&\" | TRUE\",INDIRECT(\"MeasureTable_\"&ProjectState&\"[MeasureEligibleConcatenate]\"),0)),\"\")","v":""},{"$f":"IFERROR(INDEX(INDIRECT(\"MeasureTable_\"&ProjectState&\"[GrossAverage onthly emand eduction]\"),MATCH(ProjectInfoTable[[#This Row],[Control Measure]]&\" | TRUE\",INDIRECT(\"MeasureTable_\"&ProjectState&\"[MeasureEligibleConcatenate]\"),0)),\"\")","v":""},{"$f":"IFERROR(INDEX(INDIRECT(\"MeasureTable_\"&ProjectState&\"[IncrementalMeasureCost]\"),MATCH(ProjectInfoTable[[#This Row],[Control Measure]]&\" | TRUE\",INDIRECT(\"MeasureTable_\"&ProjectState&\"[MeasureEligibleConcatenate]\"),0)),\"\")","v":""},{"$f":"IF(ProjectInfoTable[[#This Row],[Control Measure]]=\"\",\"\",IF(OR(ProjectInfoTable[[#This Row],[Control TRL Unit]]=\"Measure\",ProjectInfoTable[[#This Row],[Control TRL Unit]]=\"Linear ft.\"),IF(OR(ISNUMBER(FIND(\"Midstream\",ProjectInfoTable[[#This Row],[Control Measure]],1)),ISNUMBER(FIND(\"Lamp\",ProjectInfoTable[[#This Row],[Control Measure]],1))),ProjectInfoTable[[#This Row],[Quantity (Proposed)]]*ProjectInfoTable[[#This Row],[Lamps (Proposed)]],ProjectInfoTable[[#This Row],[Quantity (Proposed)]]),1))","v":""},{"$f":"IF(ProjectInfoTable[[#This Row],[Control Measure]]=\"\",\"\",IF(ISNUMBER(FIND(\"LF \",ProjectInfoTable[[#This Row],[Proposed Equipment]],1)),VALUE(RIGHT(LEFT(ProjectInfoTable[[#This Row],[Proposed Equipment]],FIND(\"LF \",ProjectInfoTable[[#This Row],[Proposed Equipment]],1)-1),LEN(LEFT(ProjectInfoTable[[#This Row],[Proposed Equipment]],FIND(\"LF \",ProjectInfoTable[[#This Row],[Proposed Equipment]],1)-1))-FIND(\"[\",ProjectInfoTable[[#This Row],[Proposed Equipment]],1))),IF(TRIM(UPPER(ProjectInfoTable[[#This Row],[Control TRL Unit]]))=\"WATT CONTROLLED\",IF(ISNUMBER(FIND(\"Controls Only\",ProjectInfoTable[[#This Row],[Proposed Equipment]],1)),IF(OR(ProjectType <> \"Retrofit\",ProjectInfoTable[[#This Row],[Space W (Proposed)]]>0),ProjectInfoTable[[#This Row],[Space W (Proposed)]],ProjectInfoTable[[#This Row],[Space W (Existing, Stipulated)]]),ProjectInfoTable[[#This Row],[Space W (Proposed)]]),IF(TRIM(UPPER(ProjectInfoTable[[#This Row],[Control TRL Unit]]))=\"KWH\",IF(ProjectInfoTable[[#This Row],[Control Measure kWh/yr Savings (Stipulated)]]=0,0,ROUND(ProjectInfoTable[[#This Row],[Control Measure kWh/yr Savings (Stipulated)]],2)),1))))","v":""},{"$f":"IFERROR(IF(LEN(ProjectInfoTable[[#This Row],[Proposed Equipment]])-(FIND(\"]\",ProjectInfoTable[[#This Row],[Proposed Equipment]],1))>0,\"Control(s)\",\"\"),\"\")","v":""},{"$f":"IFERROR(INDEX(INDIRECT(\"MeasureTable_\"&ProjectState&\"[Unit]\"),MATCH(ProjectInfoTable[[#This Row],[Control Measure]]&\" | TRUE\",INDIRECT(\"MeasureTable_\"&ProjectState&\"[MeasureEligibleConcatenate]\"),0)),\"\")","v":""},{"$f":"IFERROR(INDEX(INDIRECT(\"MeasureTable_\"&ProjectState&\"[ProjectCapPercent]\"),MATCH(ProjectInfoTable[[#This Row],[Control Measure]]&\" | TRUE\",INDIRECT(\"MeasureTable_\"&ProjectState&\"[MeasureEligibleConcatenate]\"),0)),\"\")","v":""},{"$f":"IF(OR(ProjectInfoTable[[#This Row],[Fixture Measure]]<>\"\",ProjectInfoTable[[#This Row],[Control Measure]]<>\"\"),1,\"\")","v":""},{"$f":"IF(ProjectInfoTable[[#This Row],[TRL Unit]]=\"\",\"\",IF(OR(ISNUMBER(SEARCH(\"measure\",ProjectInfoTable[[#This Row],[TRL Unit]])),ISNUMBER(SEARCH(\"linear ft\",ProjectInfoTable[[#This Row],[TRL Unit]])),ProjectInfoTable[[#This Row],[TRL Unit]]=0),990,991))","v":""},{"$f":"IFERROR(SUBSTITUTE(LEFT(ProjectInfoTable[[#This Row],[Proposed Equipment]],FIND(\"]\",ProjectInfoTable[[#This Row],[Proposed Equipment]],1)),\"Controls Only []\",\"\",1),\"\")","v":""},{"$f":"IF(ProjectInfoTable[[#This Row],[FixturesOnly]]=\"\",\"\",IF(ISNUMBER(FIND(\"L \",ProjectInfoTable[[#This Row],[Proposed Equipment]],1)),ProjectInfoTable[[#This Row],[Quantity (Proposed)]]*ProjectInfoTable[[#This Row],[Lamps (Proposed)]],ProjectInfoTable[[#This Row],[Quantity (Proposed)]]))","v":""},{"$f":"IFERROR(INDEX(ControlsLookup[Full Description],MATCH(RIGHT(ProjectInfoTable[[#This Row],[Proposed Equipment]],LEN(ProjectInfoTable[[#This Row],[Proposed Equipment]])-FIND(\"]\",ProjectInfoTable[[#This Row],[Proposed Equipment]],1)-3),ControlsLookup[Controls],0)),\"\")","v":""},{"$f":"IF(ProjectInfoTable[[#This Row],[ControlsOnly]]=\"\",\"\",IF(OR(ISNUMBER(FIND(\"Net\",ProjectInfoTable[[#This Row],[Proposed Equipment]],1)),ISNUMBER(FIND(\"Int\",ProjectInfoTable[[#This Row],[Proposed Equipment]],1))),ProjectInfoTable[[#This Row],[Quantity (Proposed)]],1))","v":""}]
[null,{"$f":"ROW(ProjectInfoTable[[#This Row],[OpSch]])-ROW(ProjectInfoTable[[#Headers],[OpSch]])","v":12},{"$f":"IFERROR(INDEX(RetrofitBaselineEquipment_Table[categoryBaseline],MATCH(RIGHT(LEFT(ProjectInfoTable[[#This Row],[Existing Equipment]],FIND(\" (\",ProjectInfoTable[[#This Row],[Existing Equipment]],1)-1),LEN(LEFT(ProjectInfoTable[[#This Row],[Existing Equipment]],FIND(\" (\",ProjectInfoTable[[#This Row],[Existing Equipment]],1)-1))-FIND(\": \",ProjectInfoTable[[#This Row],[Existing Equipment]],1)-1),RetrofitBaselineEquipment_Table[equipmentBaseline],0)),\"\")","v":""},null,null,null,null,{"$f":"IF(ProjectInfoTable[[#This Row],[Existing Equipment]]=\"\",\"\",IF(ISNUMBER(FIND(\"LF\",ProjectInfoTable[[#This Row],[Existing Equipment]],1)),1,IFERROR(VALUE(SUBSTITUTE(RIGHT(LEFT(ProjectInfoTable[[#This Row],[Existing Equipment]],FIND(\"L\",ProjectInfoTable[[#This Row],[Existing Equipment]],FIND(\"[\",ProjectInfoTable[[#This Row],[Existing Equipment]],1))-1),3),\"[\",\"\")),1)))","v":""},{"$f":"IF(ProjectInfoTable[[#This Row],[Existing Equipment]]=\"\",\"\",VALUE(SUBSTITUTE(RIGHT(LEFT(RIGHT(ProjectInfoTable[[#This Row],[Existing Equipment]],LEN(ProjectInfoTable[[#This Row],[Existing Equipment]])-IFERROR(FIND(\"[\",ProjectInfoTable[[#This Row],[Existing Equipment]],1),0)),IFERROR(FIND(\"W\",RIGHT(ProjectInfoTable[[#This Row],[Existing Equipment]],LEN(ProjectInfoTable[[#This Row],[Existing Equipment]])-IFERROR(FIND(\"[\",ProjectInfoTable[[#This Row],[Existing Equipment]],1),0)),1),0)),LEN(LEFT(RIGHT(ProjectInfoTable[[#This Row],[Existing Equipment]],LEN(ProjectInfoTable[[#This Row],[Existing Equipment]])-IFERROR(FIND(\"[\",ProjectInfoTable[[#This Row],[Existing Equipment]],1),0)),IFERROR(FIND(\"W\",RIGHT(ProjectInfoTable[[#This Row],[Existing Equipment]],LEN(ProjectInfoTable[[#This Row],[Existing Equipment]])-IFERROR(FIND(\"[\",ProjectInfoTable[[#This Row],[Existing Equipment]],1),0)),1),0)))-IFERROR(FIND(\"-\",LEFT(RIGHT(ProjectInfoTable[[#This Row],[Existing Equipment]],LEN(ProjectInfoTable[[#This Row],[Existing Equipment]])-IFERROR(FIND(\"[\",ProjectInfoTable[[#This Row],[Existing Equipment]],1),0)),IFERROR(FIND(\"W\",RIGHT(ProjectInfoTable[[#This Row],[Existing Equipment]],LEN(ProjectInfoTable[[#This Row],[Existing Equipment]])-IFERROR(FIND(\"[\",ProjectInfoTable[[#This Row],[Existing Equipment]],1),0)),1),0)),1),0)),\"W\",\"\")))","v":""},{"$f":"IF(ProjectInfoTable[[#This Row],[Existing Equipment]]=\"\",\"\",IF(AND(RIGHT(LEFT(ProjectInfoTable[[#This Row],[Existing Equipment]],FIND(\"]\",ProjectInfoTable[[#This Row],[Existing Equipment]],1)-1),1)<>\"W\"),IFERROR(TRIM(IF(IFERROR(FIND(\"FLT\",ProjectInfoTable[[#This Row],[Existing Equipment]],1),0)>0,LEFT(RIGHT(LEFT(ProjectInfoTable[[#This Row],[Existing Equipment]],FIND(\" (\",ProjectInfoTable[[#This Row],[Existing Equipment]],1)),LEN(LEFT(ProjectInfoTable[[#This Row],[Existing Equipment]],FIND(\" (\",ProjectInfoTable[[#This Row],[Existing Equipment]],1)))-FIND(\":\",ProjectInfoTable[[#This Row],[Existing Equipment]],1)-1),FIND(\" \",RIGHT(LEFT(ProjectInfoTable[[#This Row],[Existing Equipment]],FIND(\" (\",ProjectInfoTable[[#This Row],[Existing Equipment]],1)),LEN(LEFT(ProjectInfoTable[[#This Row],[Existing Equipment]],FIND(\" (\",ProjectInfoTable[[#This Row],[Existing Equipment]],1)))-FIND(\":\",ProjectInfoTable[[#This Row],[Existing Equipment]],1)-1),1)-1),RIGHT(LEFT(ProjectInfoTable[[#This Row],[Existing Equipment]],FIND(\" (\",ProjectInfoTable[[#This Row],[Existing Equipment]],1)),LEN(LEFT(ProjectInfoTable[[#This Row],[Existing Equipment]],FIND(\" (\",ProjectInfoTable[[#This Row],[Existing Equipment]],1)))-FIND(\":\",ProjectInfoTable[[#This Row],[Existing Equipment]],1)-1))&\" - \"&RIGHT(LEFT(ProjectInfoTable[[#This Row],[Existing Equipment]],FIND(\"]\",ProjectInfoTable[[#This Row],[Existing Equipment]],1)-1),LEN(LEFT(ProjectInfoTable[[#This Row],[Existing Equipment]],FIND(\"]\",ProjectInfoTable[[#This Row],[Existing Equipment]],1)-1))-FIND(\"W \",ProjectInfoTable[[#This Row],[Existing Equipment]],1)-3)),\"\"),\"\"))","v":""},{"$f":"IF(ProjectInfoTable[[#This Row],[Existing Equipment]]=\"\",\"\",IF(ProjectInfoTable[[#This Row],[Fixture/Ballast Check for Formula]]=\"\",IF(ISNUMBER(FIND(\"LF\",ProjectInfoTable[[#This Row],[Existing Equipment]],FIND(\"[\",ProjectInfoTable[[#This Row],[Existing Equipment]],1))),ProjectInfoTable[[#This Row],[Lamp W (Existing)]],ProjectInfoTable[[#This Row],[Lamps (Existing)]]*ProjectInfoTable[[#This Row],[Lamp W (Existing)]]),IFERROR(ROUND( ProjectInfoTable[[#This Row],[Lamps (Existing)]]*ProjectInfoTable[[#This Row],[Lamp W (Existing)]]*INDEX(FixtureWattageFormula_Table[A],MATCH(ProjectInfoTable[[#This Row],[Fixture/Ballast Check for Formula]],FixtureWattageFormula_Table[Concatenate],0))+INDEX(FixtureWattageFormula_Table[B],MATCH(ProjectInfoTable[[#This Row],[Fixture/Ballast Check for Formula]],FixtureWattageFormula_Table[Concatenate],0)),0),ProjectInfoTable[[#This Row],[Lamps (Existing)]]*ProjectInfoTable[[#This Row],[Lamp W (Existing)]])))","v":""},{"$f":"IF(OR(ISNUMBER(FIND(\"T8 \",ProjectInfoTable[[#This Row],[Existing Equipment]],1)),ISNUMBER(FIND(\"T5 \",ProjectInfoTable[[#This Row],[Existing Equipment]],1)),ISNUMBER(FIND(\"T12 \",ProjectInfoTable[[#This Row],[Existing Equipment]],1)),ISNUMBER(FIND(\"T12HO - 8\",ProjectInfoTable[[#This Row],[Existing Equipment]],1)),ISNUMBER(FIND(\"Incand\",ProjectInfoTable[[#This Row],[Existing Equipment]],1))),IFERROR(ROUND(INDEX(StipulatedWattage_Table[Stipulated fixture wattage],MATCH(MID(ProjectInfoTable[[#This Row],[Existing Equipment]],FIND(\"[\",ProjectInfoTable[[#This Row],[Existing Equipment]],1),FIND(\"]\",ProjectInfoTable[[#This Row],[Existing Equipment]],1)-FIND(\"[\",ProjectInfoTable[[#This Row],[Existing Equipment]],1)+1),StipulatedWattage_Table[Fixture Code],0)),0),ProjectInfoTable[[#This Row],[Fixture W (Existing, Actual)]]),ProjectInfoTable[[#This Row],[Fixture W (Existing, Actual)]])","v":""},{"$f":"IF(ProjectType=\"Retrofit\",IF(ProjectInfoTable[[#This Row],[Existing Equipment]]=\"\",\"\",ProjectInfoTable[[#This Row],[Quantity (Existing)]]*ProjectInfoTable[[#This Row],[Fixture W (Existing, Actual)]]),IF(ISNUMBER(FIND(\"Interior\",ProjectInfoTable[[#This Row],[Proposed Equipment]],1)),IF(ISNUMBER(FIND(\"Controls Only\",ProjectInfoTable[[#This Row],[Proposed Equipment]])),ProjectInfoTable[[#This Row],[Space W (Proposed)]],(AllowedWattage-SUMIFS(ProjectInfoTable[Space W (Proposed)],ProjectInfoTable[Proposed Equipment],\"*Interior*\",ProjectInfoTable[Proposed Equipment],\"*Controls Only*\"))*ProjectInfoTable[[#This Row],[Space W (Proposed)]]/(SUMIFS(ProjectInfoTable[Space W (Proposed)],ProjectInfoTable[Proposed Equipment],\"*Interior*\")-SUMIFS(ProjectInfoTable[Space W (Proposed)],ProjectInfoTable[Proposed Equipment],\"*Interior*\",ProjectInfoTable[Proposed Equipment],\"*Controls Only*\"))),\"\"))","v":""},{"$f":"IF(ProjectType=\"Retrofit\",IF(ProjectInfoTable[[#This Row],[Existing Equipment]]=\"\",\"\",ProjectInfoTable[[#This Row],[Quantity (Existing)]]*ProjectInfoTable[[#This Row],[Fixture W (Existing, Stipulated)]]),ProjectInfoTable[[#This Row],[Space W (Existing, Actual)]])","v":""},{"$f":"IFERROR(INDEX(OperatingHours_List,MATCH(ProjectInfoTable[[#This Row],[OpSch]],OperatingSchedules_List,0))*ProjectInfoTable[[#This Row],[Space W (Existing, Actual)]]/1000,\"\")","v":""},{"$f":"IFERROR(INDEX(OperatingHours_List,MATCH(ProjectInfoTable[[#This Row],[OpSch]],OperatingSchedules_List,0))*ProjectInfoTable[[#This Row],[Space W (Existing, Actual)]]/1000*(IFERROR(INDEX(ControlsLookup[],MATCH(RIGHT(ProjectInfoTable[[#This Row],[Existing Equipment]],LEN(ProjectInfoTable[[#This Row],[Existing Equipment]])-FIND(\"]\",ProjectInfoTable[[#This Row],[Existing Equipment]],1)-3),ControlsLookup[Controls],0),MATCH(\"CSF_\"&ProjectState,ControlsLookup[#Headers],0)),0))*-1,\"\")","v":""},{"$f":"IF(OR(ProjectInfoTable[[#This Row],[Fixture kWh (Existing, Actual)]]=\"\",ProjectInfoTable[[#This Row],[Control kWh (Existing, Actual)]]=\"\"),\"\",ProjectInfoTable[[#This Row],[Fixture kWh (Existing, Actual)]]+ProjectInfoTable[[#This Row],[Control kWh (Existing, Actual)]])","v":""},{"$f":"IFERROR(INDEX(OperatingHours_List,MATCH(ProjectInfoTable[[#This Row],[OpSch]],OperatingSchedules_List,0))*ProjectInfoTable[[#This Row],[Space W (Existing, Stipulated)]]/1000,\"\")","v":""},{"$f":"IFERROR(INDEX(OperatingHours_List,MATCH(ProjectInfoTable[[#This Row],[OpSch]],OperatingSchedules_List,0))*ProjectInfoTable[[#This Row],[Space W (Existing, Stipulated)]]/1000*(IFERROR(INDEX(ControlsLookup[],MATCH(RIGHT(ProjectInfoTable[[#This Row],[Existing Equipment]],LEN(ProjectInfoTable[[#This Row],[Existing Equipment]])-FIND(\"]\",ProjectInfoTable[[#This Row],[Existing Equipment]],1)-3),ControlsLookup[Controls],0),MATCH(\"CSF_\"&ProjectState,ControlsLookup[#Headers],0)),0))*-1,\"\")","v":""},{"$f":"IF(OR(ProjectInfoTable[[#This Row],[Fixture kWh (Existing, Stipulated)]]=\"\",ProjectInfoTable[[#This Row],[Control kWh (Existing, Stipulated)]]=\"\"),\"\",ProjectInfoTable[[#This Row],[Fixture kWh (Existing, Stipulated)]]+ProjectInfoTable[[#This Row],[Control kWh (Existing, Stipulated)]])","v":""},{"$f":"IF(\n AND(\n  OR(ProjectInfoTable[[#This Row],[Existing Equipment]]=\"\",ProjectInfoTable[[#This Row],[Quantity (Existing)]]=\"\"),\n  ProjectType=\"Retrofit\"\n ),\n \"\",\n IF(\n  ISNUMBER(FIND(\"Street:\",ProjectInfoTable[[#This Row],[Existing Equipment]],1)),\n  IF(\n   OR(\n    AND(ProjectState=\"UT\",RateSchedule=12),\n    AND(ProjectState=\"ID\",RateSchedule=12),\n    AND(ProjectState=\"WY\",RateSchedule=58)\n   ),\n   IFERROR(\n    INDEX(\n     StreetLightingRates_Table[],\n     MATCH(MID(ProjectInfoTable[[#This Row],[Existing Equipment]],FIND(\": \",ProjectInfoTable[[#This Row],[Existing Equipment]],1)+2,FIND(\" (\",ProjectInfoTable[[#This Row],[Existing Equipment]],1)-FIND(\": \",ProjectInfoTable[[#This Row],[Existing Equipment]],1)-2)&ProjectInfoTable[[#This Row],[Lamp W (Existing)]],StreetLightingRates_Table[TechWattage],0),\n     MATCH(ProjectState&RateSchedule,StreetLightingRates_Table[#Headers],0)\n    )\n    *\n    ProjectInfoTable[[#This Row],[Quantity (Existing)]]\n    *\n    ProjectInfoTable[[#This Row],[Lamps (Existing)]]\n    *\n    12,\n    ProjectInfoTable[[#This Row],[Space kWh (Existing, Actual)]]\n    *\n    INDEX(INDIRECT(\"RateSchedules_\"&ProjectState&\"_Table[kWh Rate]\"),MATCH(RateSchedule,INDIRECT(\"RateSchedules_\"&ProjectState&\"_Table[Rate Schedule]\"),0))\n   ),\n   IFERROR(\n    ProjectInfoTable[[#This Row],[Space kWh (Existing, Actual)]]*\n    INDEX(INDIRECT(\"RateSchedules_\"&ProjectState&\"_Table[kWh Rate]\"),MATCH(RateSchedule,INDIRECT(\"RateSchedules_\"&ProjectState&\"_Table[Rate Schedule]\"),0)),0)\n   +\n   IFERROR(IF(ISNUMBER(FIND(\"Interior:\",ProjectInfoTable[[#This Row],[Existing Equipment]],1)),\n    ProjectInfoTable[[#This Row],[Space W (Existing, Actual)]]/1000*12*DDF*\n    INDEX(INDIRECT(\"RateSchedules_\"&ProjectState&\"_Table[kW Rate]\"),MATCH(RateSchedule,INDIRECT(\"RateSchedules_\"&ProjectState&\"_Table[Rate Schedule]\"),0)),0),0)\n  ),\n  IFERROR(\n   ProjectInfoTable[[#This Row],[Space kWh (Existing, Actual)]]*\n   INDEX(INDIRECT(\"RateSchedules_\"&ProjectState&\"_Table[kWh Rate]\"),MATCH(RateSchedule,INDIRECT(\"RateSchedules_\"&ProjectState&\"_Table[Rate Schedule]\"),0)),\n   0\n  )\n  +\n  IFERROR(IF(OR(ISNUMBER(FIND(\"Interior:\",ProjectInfoTable[[#This Row],[Existing Equipment]],1)),AND(ProjectType<>\"Retrofit\",ISNUMBER(FIND(\"Interior:\",ProjectInfoTable[[#This Row],[Proposed Equipment]],1)))),\n   ProjectInfoTable[[#This Row],[Space W (Existing, Actual)]]/1000*12*DDF*\n   INDEX(INDIRECT(\"RateSchedules_\"&ProjectState&\"_Table[kW Rate]\"),MATCH(RateSchedule,INDIRECT(\"RateSchedules_\"&ProjectState&\"_Table[Rate Schedule]\"),0)),0),\n   0\n  )\n )\n)","v":0},{"$f":"IF(\n AND(\n  OR(ProjectInfoTable[[#This Row],[Existing Equipment]]=\"\",ProjectInfoTable[[#This Row],[Quantity (Existing)]]=\"\"),\n  ProjectType=\"Retrofit\"\n ),\n \"\",\n IF(\n  ISNUMBER(FIND(\"Street:\",ProjectInfoTable[[#This Row],[Existing Equipment]],1)),\n  IF(\n   OR(\n    AND(ProjectState=\"UT\",RateSchedule=12),\n    AND(ProjectState=\"ID\",RateSchedule=12),\n    AND(ProjectState=\"WY\",RateSchedule=58)\n   ),\n   IFERROR(\n    INDEX(\n     StreetLightingRates_Table[],\n     MATCH(MID(ProjectInfoTable[[#This Row],[Existing Equipment]],FIND(\": \",ProjectInfoTable[[#This Row],[Existing Equipment]],1)+2,FIND(\" (\",ProjectInfoTable[[#This Row],[Existing Equipment]],1)-FIND(\": \",ProjectInfoTable[[#This Row],[Existing Equipment]],1)-2)&ProjectInfoTable[[#This Row],[Lamp W (Existing)]],StreetLightingRates_Table[TechWattage],0),\n     MATCH(ProjectState&RateSchedule,StreetLightingRates_Table[#Headers],0)\n    )\n    *\n    ProjectInfoTable[[#This Row],[Quantity (Existing)]]\n    *\n    ProjectInfoTable[[#This Row],[Lamps (Existing)]]\n    *\n    12,\n    ProjectInfoTable[[#This Row],[Space kWh (Existing, Stipulated)]]\n    *\n    INDEX(INDIRECT(\"RateSchedules_\"&ProjectState&\"_Table[kWh Rate]\"),MATCH(RateSchedule,INDIRECT(\"RateSchedules_\"&ProjectState&\"_Table[Rate Schedule]\"),0))\n   ),\n   IFERROR(\n    ProjectInfoTable[[#This Row],[Space kWh (Existing, Stipulated)]]*\n    INDEX(INDIRECT(\"RateSchedules_\"&ProjectState&\"_Table[kWh Rate]\"),MATCH(RateSchedule,INDIRECT(\"RateSchedules_\"&ProjectState&\"_Table[Rate Schedule]\"),0)),0)\n   +\n   IFERROR(IF(ISNUMBER(FIND(\"Interior:\",ProjectInfoTable[[#This Row],[Existing Equipment]],1)),\n    ProjectInfoTable[[#This Row],[Space W (Existing, Stipulated)]]/1000*12*DDF*\n    INDEX(INDIRECT(\"RateSchedules_\"&ProjectState&\"_Table[kW Rate]\"),MATCH(RateSchedule,INDIRECT(\"RateSchedules_\"&ProjectState&\"_Table[Rate Schedule]\"),0)),0),0)\n  ),\n  IFERROR(\n   ProjectInfoTable[[#This Row],[Space kWh (Existing, Stipulated)]]*\n   INDEX(INDIRECT(\"RateSchedules_\"&ProjectState&\"_Table[kWh Rate]\"),MATCH(RateSchedule,INDIRECT(\"RateSchedules_\"&ProjectState&\"_Table[Rate Schedule]\"),0)),\n   0\n  )\n  +\n  IFERROR(IF(OR(ISNUMBER(FIND(\"Interior:\",ProjectInfoTable[[#This Row],[Existing Equipment]],1)),AND(ProjectType<>\"Retrofit\",ISNUMBER(FIND(\"Interior:\",ProjectInfoTable[[#This Row],[Proposed Equipment]],1)))),\n   ProjectInfoTable[[#This Row],[Space W (Existing, Stipulated)]]/1000*12*DDF*\n   INDEX(INDIRECT(\"RateSchedules_\"&ProjectState&\"_Table[kW Rate]\"),MATCH(RateSchedule,INDIRECT(\"RateSchedules_\"&ProjectState&\"_Table[Rate Schedule]\"),0)),0),\n   0\n  )\n )\n)","v":0},{"$f":"IF(ProjectType=\"Retrofit\",IFERROR(INDEX(RetrofitBaselineEquipment_Table[categoryBaseline],MATCH(RIGHT(LEFT(ProjectInfoTable[[#This Row],[Proposed Equipment]],FIND(\" (\",ProjectInfoTable[[#This Row],[Proposed Equipment]],1)-1),LEN(LEFT(ProjectInfoTable[[#This Row],[Proposed Equipment]],FIND(\" (\",ProjectInfoTable[[#This Row],[Proposed Equipment]],1)-1))-FIND(\": \",ProjectInfoTable[[#This Row],[Proposed Equipment]],1)-1),RetrofitBaselineEquipment_Table[equipmentBaseline],0)),\"\"),IFERROR(INDEX(#REF!,MATCH(RIGHT(LEFT(ProjectInfoTable[[#This Row],[Proposed Equipment]],FIND(\" (\",ProjectInfoTable[[#This Row],[Proposed Equipment]],1)-1),LEN(LEFT(ProjectInfoTable[[#This Row],[Proposed Equipment]],FIND(\" (\",ProjectInfoTable[[#This Row],[Proposed Equipment]],1)-1))-FIND(\": \",ProjectInfoTable[[#This Row],[Proposed Equipment]],1)-1),#REF!,0)),\"\"))","v":""},{"$f":"IF(ProjectInfoTable[[#This Row],[Proposed Equipment]]=\"\",\"\",IF(ISNUMBER(SEARCH(\"Controls Only\",ProjectInfoTable[[#This Row],[Proposed Equipment]])),\"Controls Only\",IF(ProjectType=\"Retrofit\",_xlfn.LET(_xlpm.k,LEFT(ProjectInfoTable[[#This Row],[Proposed Equipment]],FIND(\"[\",ProjectInfoTable[[#This Row],[Proposed Equipment]])-2),_xlpm.ep,_xlfn.SWITCH(ProjectState,\"UT\",EquipmentTable_Retrofit_UT[equipmentProposed],\"WY\",EquipmentTable_Retrofit_WY[equipmentProposed],\"ID\",EquipmentTable_Retrofit_ID[equipmentProposed]),_xlpm.cp,_xlfn.SWITCH(ProjectState,\"UT\",EquipmentTable_Retrofit_UT[categoryProposed],\"WY\",EquipmentTable_Retrofit_WY[categoryProposed],\"ID\",EquipmentTable_Retrofit_ID[categoryProposed]),_xlfn.XLOOKUP(_xlpm.k,_xlpm.ep,_xlpm.cp,\"Non-eligible fixture - Retrofit - \"&ProjectState)),_xlfn.LET(_xlpm.k,MID(ProjectInfoTable[[#This Row],[Proposed Equipment]],FIND(\": \",ProjectInfoTable[[#This Row],[Proposed Equipment]])+2,FIND(\" (\",ProjectInfoTable[[#This Row],[Proposed Equipment]])-(FIND(\": \",ProjectInfoTable[[#This Row],[Proposed Equipment]])+2)),_xlpm.ep,_xlfn.SWITCH(ProjectState,\"UT\",EquipmentTable_NCMR_UT[equipmentProposed],\"WY\",EquipmentTable_NCMR_WY[equipmentProposed],\"ID\",EquipmentTable_NCMR_ID[equipmentProposed]),_xlpm.cp,_xlfn.SWITCH(ProjectState,\"UT\",EquipmentTable_NCMR_UT[categoryProposed],\"WY\",EquipmentTable_NCMR_WY[categoryProposed],\"ID\",EquipmentTable_NCMR_ID[categoryProposed]),_xlfn.XLOOKUP(_xlpm.k,_xlpm.ep,_xlpm.cp,\"Non-eligible fixture - NCMR - \"&ProjectState)))))","v":""},null,null,"ü",{"$f":"IF(ProjectInfoTable[[#This Row],[Proposed Equipment]]=\"\",\"\",IF(ProjectInfoTable[[#This Row],[Measure Selection]]=\"\",0,IF(ISNUMBER(FIND(\"LF\",ProjectInfoTable[[#This Row],[Proposed Equipment]],1)),1,IFERROR(VALUE(SUBSTITUTE(RIGHT(LEFT(ProjectInfoTable[[#This Row],[Proposed Equipment]],FIND(\"L\",ProjectInfoTable[[#This Row],[Proposed Equipment]],FIND(\"[\",ProjectInfoTable[[#This Row],[Proposed Equipment]],1))-1),2),\"[\",\"\")),IFERROR(LEFT(RIGHT(ProjectInfoTable[[#This Row],[Proposed Equipment]],LEN(ProjectInfoTable[[#This Row],[Proposed Equipment]])-FIND(\"-lamp\",ProjectInfoTable[[#This Row],[Proposed Equipment]],1)+2),1),1)))))","v":""},{"$f":"IF(ProjectInfoTable[[#This Row],[Proposed Equipment]]=\"\",\"\",IF(ProjectInfoTable[[#This Row],[Measure Selection]]=\"\",0,IFERROR(\n\nIF(ISNUMBER(FIND(\"W]\",ProjectInfoTable[[#This Row],[Proposed Equipment]])),\nRIGHT(MID(ProjectInfoTable[[#This Row],[Proposed Equipment]],FIND(\"W]\",ProjectInfoTable[[#This Row],[Proposed Equipment]],FIND(\"[\",ProjectInfoTable[[#This Row],[Proposed Equipment]]))-7,7),\nLEN(MID(ProjectInfoTable[[#This Row],[Proposed Equipment]],FIND(\"W]\",ProjectInfoTable[[#This Row],[Proposed Equipment]],FIND(\"[\",ProjectInfoTable[[#This Row],[Proposed Equipment]]))-7,7)) -\nIFERROR(FIND(\" - \",MID(ProjectInfoTable[[#This Row],[Proposed Equipment]],FIND(\"W]\",ProjectInfoTable[[#This Row],[Proposed Equipment]],FIND(\"[\",ProjectInfoTable[[#This Row],[Proposed Equipment]]))-7,7))+2,\nFIND(\"[\",MID(ProjectInfoTable[[#This Row],[Proposed Equipment]],FIND(\"W]\",ProjectInfoTable[[#This Row],[Proposed Equipment]],FIND(\"[\",ProjectInfoTable[[#This Row],[Proposed Equipment]]))-7,7)))),\n\nIF(ISNUMBER(FIND(\"[\",MID(ProjectInfoTable[[#This Row],[Proposed Equipment]],FIND(\"W \",ProjectInfoTable[[#This Row],[Proposed Equipment]],FIND(\"[\",ProjectInfoTable[[#This Row],[Proposed Equipment]]))-7,7))),\nRIGHT(MID(ProjectInfoTable[[#This Row],[Proposed Equipment]],FIND(\"W \",ProjectInfoTable[[#This Row],[Proposed Equipment]],FIND(\"[\",ProjectInfoTable[[#This Row],[Proposed Equipment]]))-7,7),\nLEN(MID(ProjectInfoTable[[#This Row],[Proposed Equipment]],FIND(\"W \",ProjectInfoTable[[#This Row],[Proposed Equipment]],FIND(\"[\",ProjectInfoTable[[#This Row],[Proposed Equipment]]))-7,7)) -\nIFERROR(FIND(\" - \",MID(ProjectInfoTable[[#This Row],[Proposed Equipment]],FIND(\"W \",ProjectInfoTable[[#This Row],[Proposed Equipment]],FIND(\"[\",ProjectInfoTable[[#This Row],[Proposed Equipment]]))-7,7))+2,\nFIND(\"[\",MID(ProjectInfoTable[[#This Row],[Proposed Equipment]],FIND(\"W \",ProjectInfoTable[[#This Row],[Proposed Equipment]],FIND(\"[\",ProjectInfoTable[[#This Row],[Proposed Equipment]]))-7,7)))),\n\nRIGHT(MID(ProjectInfoTable[[#This Row],[Proposed Equipment]],FIND(\"W \",ProjectInfoTable[[#This Row],[Proposed Equipment]],FIND(\"[\",ProjectInfoTable[[#This Row],[Proposed Equipment]]))-7,7),\nLEN(MID(ProjectInfoTable[[#This Row],[Proposed Equipment]],FIND(\"W \",ProjectInfoTable[[#This Row],[Proposed Equipment]],FIND(\"[\",ProjectInfoTable[[#This Row],[Proposed Equipment]]))-7,7)) -\nFIND(\" - \",MID(ProjectInfoTable[[#This Row],[Proposed Equipment]],FIND(\"W \",ProjectInfoTable[[#This Row],[Proposed Equipment]],FIND(\"[\",ProjectInfoTable[[#This Row],[Proposed Equipment]]))-7,7))-2\n))),0)))","v":""},{"$f":"IF(ProjectInfoTable[[#This Row],[Proposed Equipment]]=\"\",\"\",IFERROR(ProjectInfoTable[[#This Row],[Lamps (Proposed)]]*ProjectInfoTable[[#This Row],[Lamp W (Proposed)]],\"\"))","v":""},{"$f":"IF(ProjectInfoTable[[#This Row],[Proposed Equipment]]=\"\",\"\",IFERROR(ProjectInfoTable[[#This Row],[Quantity (Proposed)]]*ProjectInfoTable[[#This Row],[Fixture W (Proposed)]],\"\"))","v":""},{"$f":"IFERROR(INDEX(OperatingHours_List,MATCH(ProjectInfoTable[[#This Row],[OpSch]],OperatingSchedules_List,0))*ProjectInfoTable[[#This Row],[Space W (Proposed)]]/1000,\"\")","v":""},{"$f":"IF(OR(ISNUMBER(FIND(\"Controls Only\",ProjectInfoTable[[#This Row],[Proposed Equipment]],1)),ProjectInfoTable[[#This Row],[ControlsOnly]]=\"Re-Commissioning\"),\"Controls Only\",IFERROR(INDEX(OperatingHours_List,MATCH(ProjectInfoTable[[#This Row],[OpSch]],OperatingSchedules_List,0))*ProjectInfoTable[[#This Row],[Space W (Proposed)]]/1000*(IFERROR(INDEX(ControlsLookup[],MATCH(SUBSTITUTE(RIGHT(ProjectInfoTable[[#This Row],[Proposed Equipment]],LEN(ProjectInfoTable[[#This Row],[Proposed Equipment]])-FIND(\"]\",ProjectInfoTable[[#This Row],[Proposed Equipment]],1)-3),\" reused\",\"\"),ControlsLookup[Controls],0),MATCH(\"CSF_\"&ProjectState,ControlsLookup[#Headers],0)),0))*-1,\"\"))","v":""},{"$f":"IF(OR(ProjectInfoTable[[#This Row],[Fixture kWh (Proposed)]]=\"\",ProjectInfoTable[[#This Row],[Control kWh (Proposed)]]=\"\"),\"\",IFERROR(ProjectInfoTable[[#This Row],[Fixture kWh (Proposed)]]+ProjectInfoTable[[#This Row],[Control kWh (Proposed)]],0))","v":""},{"$f":"IF(\n OR(\n  ProjectInfoTable[[#This Row],[Proposed Equipment]]=\"\",\n  ProjectInfoTable[[#This Row],[Quantity (Proposed)]]=\"\"\n ),\n \"\",\n IF(\n  AND(\n   OR(\n    AND(\n     ProjectState=\"UT\",\n     RateSchedule=12\n    ),\n    AND(\n     ProjectState=\"ID\",\n     RateSchedule=12\n    ),\n    AND(\n     ProjectState=\"WY\",\n     RateSchedule=58\n    )\n   ),\n   ISNUMBER(FIND(\"Street:\",ProjectInfoTable[[#This Row],[Existing Equipment]],1))\n  ),\n  IF(\n   AND(\n    RateSchedule=53,\n    ISNUMBER(FIND(\"LED\",ProjectInfoTable[[#This Row],[Proposed Equipment]],1))\n   ),\n   ProjectInfoTable[[#This Row],[Fixture kWh (Proposed)]]\n   *\n   INDEX(\n    INDIRECT(\"RateSchedules_\"&ProjectState&\"_Table[kWh Rate]\"),\n    MATCH(RateSchedule,INDIRECT(\"RateSchedules_\"&ProjectState&\"_Table[Rate Schedule]\"),0)\n   ),\n   IFERROR(INDEX(\n    StreetLightingRates_Table[],\n    MATCH(\"LED\"&IF(AND(ProjectInfoTable[[#This Row],[Fixture W (Proposed)]]>0,ProjectInfoTable[[#This Row],[Fixture W (Proposed)]]<=70),70,IF(AND(ProjectInfoTable[[#This Row],[Fixture W (Proposed)]]>70,ProjectInfoTable[[#This Row],[Fixture W (Proposed)]]<=100),100,IF(AND(ProjectInfoTable[[#This Row],[Fixture W (Proposed)]]>100,ProjectInfoTable[[#This Row],[Fixture W (Proposed)]]<=150),150,IF(AND(ProjectInfoTable[[#This Row],[Fixture W (Proposed)]]>150,ProjectInfoTable[[#This Row],[Fixture W (Proposed)]]<=200),200,IF(AND(ProjectInfoTable[[#This Row],[Fixture W (Proposed)]]>200,ProjectInfoTable[[#This Row],[Fixture W (Proposed)]]<=250),250,IF(AND(ProjectInfoTable[[#This Row],[Fixture W (Proposed)]]>250,ProjectInfoTable[[#This Row],[Fixture W (Proposed)]]<=400),400,\"\")))))),StreetLightingRates_Table[TechWattage],0),\n    MATCH(ProjectState&RateSchedule,StreetLightingRates_Table[#Headers],0)\n   )\n   *ProjectInfoTable[[#This Row],[Lamps (Proposed)]]*ProjectInfoTable[[#This Row],[Quantity (Proposed)]]*12,\n  ProjectInfoTable[[#This Row],[Space kWh (Proposed)]]*INDEX(INDIRECT(\"RateSchedules_\"&ProjectState&\"_Table[kWh Rate]\"),MATCH(RateSchedule,INDIRECT(\"RateSchedules_\"&ProjectState&\"_Table[Rate Schedule]\"),0)))),\n  IFERROR(ProjectInfoTable[[#This Row],[Space kWh (Proposed)]]*INDEX(INDIRECT(\"RateSchedules_\"&ProjectState&\"_Table[kWh Rate]\"),MATCH(RateSchedule,INDIRECT(\"RateSchedules_\"&ProjectState&\"_Table[Rate Schedule]\"),0)),0)\n  +\n  IF(OR(ISNUMBER(FIND(\"Exterior:\",ProjectInfoTable[[#This Row],[Existing Equipment]],1)),ISNUMBER(FIND(\"Street:\",ProjectInfoTable[[#This Row],[Existing Equipment]],1))),0,IFERROR(ProjectInfoTable[[#This Row],[Space W (Proposed)]]/1000*12*DDF*INDEX(INDIRECT(\"RateSchedules_\"&ProjectState&\"_Table[kW Rate]\"),MATCH(RateSchedule,INDIRECT(\"RateSchedules_\"&ProjectState&\"_Table[Rate Schedule]\"),0)),0))\n )\n)","v":""},{"$f":"IF(ProjectInfoTable[[#This Row],[Measure Selection]]=\"\",0,IF(ProjectType=\"Retrofit\",IFERROR((ProjectInfoTable[[#This Row],[Space W (Existing, Actual)]]-ProjectInfoTable[[#This Row],[Space W (Proposed)]])/ProjectInfoTable[[#This Row],[Space W (Existing, Actual)]],\"\"),IF(AND(ProjectInfoTable[[#This Row],[Proposed Equipment]]=\"\",ProjectInfoTable[[#This Row],[Quantity (Proposed)]]=\"\"),\"\",IFERROR((ProjectInfoTable[[#This Row],[Space W (Existing, Stipulated)]]-ProjectInfoTable[[#This Row],[Space W (Proposed)]])/ProjectInfoTable[[#This Row],[Space W (Existing, Stipulated)]],\"n/a\"))))","v":""},{"$f":"IF(ProjectInfoTable[[#This Row],[Measure Selection]]=\"\",0,IF(ProjectType=\"Retrofit\",IFERROR((ProjectInfoTable[[#This Row],[Space W (Existing, Stipulated)]]-ProjectInfoTable[[#This Row],[Space W (Proposed)]])/ProjectInfoTable[[#This Row],[Space W (Existing, Stipulated)]],\"\"),ProjectInfoTable[[#This Row],[% Wattage Reduction (Actual)]]))","v":""},{"$f":"IFERROR(IF(OR(ProjectInfoTable[[#This Row],[Measure Selection]]=\"\",ProjectInfoTable[[#This Row],[ControlsOnly]]=\"Re-Commissioning\"),0,IF(AND(ProjectType=\"Retrofit\",LEFT(ProjectInfoTable[[#This Row],[Existing Equipment]],FIND(\": \",ProjectInfoTable[[#This Row],[Existing Equipment]],1)-1)<>\"Interior\"),0,((ProjectInfoTable[[#This Row],[Space W (Existing, Actual)]]-ProjectInfoTable[[#This Row],[Space W (Proposed)]])/1000*DDF)-IF(ProjectInfoTable[[#This Row],[Midstream Measure Name]]<>\"\",IFERROR(ProjectInfoTable[[#This Row],[kW Per Unit (Midstream)]]*ProjectInfoTable[[#This Row],[Quantity]]*ProjectInfoTable[[#This Row],[No. of TRL Units]],0),0))),\"\")","v":""},{"$f":"IFERROR(IF(OR(ProjectInfoTable[[#This Row],[Measure Selection]]=\"\",ProjectInfoTable[[#This Row],[ControlsOnly]]=\"Re-Commissioning\"),0,IF(AND(ISNUMBER(VALUE(ProjectInfoTable[[#This Row],[kW Per Unit]])),ProjectInfoTable[[#This Row],[kW Per Unit]]<>0),ROUND(ProjectInfoTable[[#This Row],[kW Per Unit]]*ProjectInfoTable[[#This Row],[Quantity]]*ProjectInfoTable[[#This Row],[No. of TRL Units]],2),IF(OR(AND(ProjectType=\"Retrofit\",LEFT(ProjectInfoTable[[#This Row],[Existing Equipment]],FIND(\": \",ProjectInfoTable[[#This Row],[Existing Equipment]],1)-1)<>\"Interior\"),AND(ProjectInfoTable[[#This Row],[Incentives Per Unit]]=0,INDEX(StipulatedSavingsYesNo_Table[Stipulated Savings?],MATCH(ProjectState,StipulatedSavingsYesNo_Table[State],0))=\"No\")),0,IF(ISNUMBER(FIND(\"Controls Only\",ProjectInfoTable[[#This Row],[Proposed Equipment]],1)),0,ROUND(((ProjectInfoTable[[#This Row],[Space W (Existing, Stipulated)]]-ProjectInfoTable[[#This Row],[Space W (Proposed)]])/1000*DDF)-IF(ProjectInfoTable[[#This Row],[Midstream Measure Name]]<>\"\",IFERROR(ProjectInfoTable[[#This Row],[kW Per Unit (Midstream)]]*ProjectInfoTable[[#This Row],[Quantity]]*ProjectInfoTable[[#This Row],[No. of TRL Units]],0),0),2))))),\"\")","v":""},{"$f":"IFERROR(IF(OR(ProjectInfoTable[[#This Row],[Control kWh (Proposed)]]=\"Controls Only\",ProjectInfoTable[[#This Row],[Measure Selection]]=\"\"),0,ROUND((ProjectInfoTable[[#This Row],[Fixture kWh (Existing, Actual)]]-ProjectInfoTable[[#This Row],[Fixture kWh (Proposed)]])*IF(VALUE(SpaceTypesInfo_Table[[#Totals],[HVAC Effects]])=0,1,1+VALUE(SpaceTypesInfo_Table[[#Totals],[HVAC Effects]])),0)),\"\")","v":""},{"$f":"IFERROR(IF(ProjectInfoTable[[#This Row],[Control kWh (Proposed)]]=\"Controls Only\",ROUND(IFERROR(INDEX(OperatingHours_List,MATCH(ProjectInfoTable[[#This Row],[OpSch]],OperatingSchedules_List,0))*IF(OR(ProjectType <> \"Retrofit\",ProjectInfoTable[[#This Row],[Space W (Proposed)]]>0),ProjectInfoTable[[#This Row],[Space W (Proposed)]],ProjectInfoTable[[#This Row],[Space W (Existing, Actual)]])/1000*(IFERROR(INDEX(ControlsLookup[],MATCH(RIGHT(ProjectInfoTable[[#This Row],[Proposed Equipment]],LEN(ProjectInfoTable[[#This Row],[Proposed Equipment]])-FIND(\"]\",ProjectInfoTable[[#This Row],[Proposed Equipment]],1)-3),ControlsLookup[Controls],0),MATCH(\"CSF_\"&ProjectState,ControlsLookup[#Headers],0)),0))*IF(VALUE(SpaceTypesInfo_Table[[#Totals],[HVAC Effects]])=0,1,1+VALUE(SpaceTypesInfo_Table[[#Totals],[HVAC Effects]])),\"\"),0),ROUND(IFERROR((ProjectInfoTable[[#This Row],[Control kWh (Existing, Actual)]]-ProjectInfoTable[[#This Row],[Control kWh (Proposed)]])*IF(VALUE(SpaceTypesInfo_Table[[#Totals],[HVAC Effects]])=0,1,1+VALUE(SpaceTypesInfo_Table[[#Totals],[HVAC Effects]])),\"\"),0)),\"\")","v":""},{"$f":"IF(OR(ProjectInfoTable[[#This Row],[Proposed Equipment]]=\"\",ProjectInfoTable[[#This Row],[Quantity (Proposed)]]=\"\"),\"\",IF(ProjectInfoTable[[#This Row],[Fixture Measure]]=\"\",0,IF(AND(ProjectInfoTable[[#This Row],[Incentives Per Unit]]=0,INDEX(StipulatedSavingsYesNo_Table[Stipulated Savings?],MATCH(ProjectState,StipulatedSavingsYesNo_Table[State],0))=\"No\"),0,ProjectInfoTable[[#This Row],[Total   kWh/yr Savings (Actual)]]-ProjectInfoTable[[#This Row],[Control Measure kWh/yr Savings (Actual)]])))","v":""},{"$f":"IF(OR(ProjectInfoTable[[#This Row],[Proposed Equipment]]=\"\",ProjectInfoTable[[#This Row],[Quantity (Proposed)]]=\"\"),\"\",IF(ProjectInfoTable[[#This Row],[Control Measure]]=\"\",0,ProjectInfoTable[[#This Row],[Control kWh/yr Savings (Actual)]]))","v":""},{"$f":"IF(AND(ProjectInfoTable[[#This Row],[Incentives Per Unit]]=0,INDEX(StipulatedSavingsYesNo_Table[Stipulated Savings?],MATCH(ProjectState,StipulatedSavingsYesNo_Table[State],0))=\"No\"),ProjectInfoTable[[#This Row],[Fixture kWh/yr Savings (Actual)]]+IF(ProjectInfoTable[[#This Row],[Control Measure kWh/yr Savings (Actual)]]=0,0,ProjectInfoTable[[#This Row],[Control kWh/yr Savings (Actual)]]),IF(AND(ProjectInfoTable[[#This Row],[Fixture kWh/yr Savings (Actual)]]=\"\",ProjectInfoTable[[#This Row],[Control kWh/yr Savings (Actual)]]=\"\"),\"\",ROUND(IF(ProjectInfoTable[[#This Row],[Fixture kWh/yr Savings (Actual)]]=\"\",0,ProjectInfoTable[[#This Row],[Fixture kWh/yr Savings (Actual)]])+IF(ProjectInfoTable[[#This Row],[Control kWh/yr Savings (Actual)]]=\"\",0,ProjectInfoTable[[#This Row],[Control kWh/yr Savings (Actual)]])-IF(ProjectInfoTable[[#This Row],[Midstream Measure Name]]<>\"\",IFERROR(ProjectInfoTable[[#This Row],[kWh Per Unit (Midstream)]]*ProjectInfoTable[[#This Row],[Quantity]]*ProjectInfoTable[[#This Row],[No. of TRL Units]],0),0),0)))","v":""},{"$f":"IFERROR(IF(OR(ProjectInfoTable[[#This Row],[Measure Selection]]=\"\",ProjectInfoTable[[#This Row],[ControlsOnly]]=\"Re-Commissioning\"),0,IF(AND(ProjectInfoTable[[#This Row],[Incentives Per Unit]]=0,INDEX(StipulatedSavingsYesNo_Table[Stipulated Savings?],MATCH(ProjectState,StipulatedSavingsYesNo_Table[State],0))=\"No\"),0,IF(ISNUMBER(FIND(\"Controls Only\",ProjectInfoTable[[#This Row],[Proposed Equipment]],1)),0,ROUND((ProjectInfoTable[[#This Row],[Fixture kWh (Existing, Stipulated)]]-ProjectInfoTable[[#This Row],[Fixture kWh (Proposed)]])*IF(VALUE(SpaceTypesInfo_Table[[#Totals],[HVAC Effects]])=0,1,1+VALUE(SpaceTypesInfo_Table[[#Totals],[HVAC Effects]])),0)))),\"\")","v":""},{"$f":"IFERROR(IF(ProjectInfoTable[[#This Row],[Control kWh (Proposed)]]=\"Controls Only\",ROUND(IFERROR(INDEX(OperatingHours_List,MATCH(ProjectInfoTable[[#This Row],[OpSch]],OperatingSchedules_List,0))*IF(OR(ProjectType <> \"Retrofit\",ProjectInfoTable[[#This Row],[Space W (Proposed)]]>0),ProjectInfoTable[[#This Row],[Space W (Proposed)]],ProjectInfoTable[[#This Row],[Space W (Existing, Stipulated)]])/1000*(IFERROR(INDEX(ControlsLookup[],MATCH(RIGHT(ProjectInfoTable[[#This Row],[Proposed Equipment]],LEN(ProjectInfoTable[[#This Row],[Proposed Equipment]])-FIND(\"]\",ProjectInfoTable[[#This Row],[Proposed Equipment]],1)-3),ControlsLookup[Controls],0),MATCH(\"CSF_\"&ProjectState,ControlsLookup[#Headers],0)),0))*IF(VALUE(SpaceTypesInfo_Table[[#Totals],[HVAC Effects]])=0,1,1+VALUE(SpaceTypesInfo_Table[[#Totals],[HVAC Effects]])),\"\"),0),ROUND(IFERROR((ProjectInfoTable[[#This Row],[Control kWh (Existing, Stipulated)]]-ProjectInfoTable[[#This Row],[Control kWh (Proposed)]])*IF(VALUE(SpaceTypesInfo_Table[[#Totals],[HVAC Effects]])=0,1,1+VALUE(SpaceTypesInfo_Table[[#Totals],[HVAC Effects]])),INDEX(ControlsLookup[],MATCH(RIGHT(ProjectInfoTable[[#This Row],[Proposed Equipment]],LEN(ProjectInfoTable[[#This Row],[Proposed Equipment]])-FIND(\"-\",ProjectInfoTable[[#This Row],[Proposed Equipment]],LEN(ProjectInfoTable[[#This Row],[Proposed Equipment]])-15)-1),ControlsLookup[Controls],0),MATCH(\"CSF_\"&ProjectState,ControlsLookup[#Headers],0))*IF(NOT(ISNUMBER(VALUE(ProjectInfoTable[[#This Row],[kWh Per Unit]]))),ProjectInfoTable[[#This Row],[Fixture kWh/yr Savings (Stipulated)]],ProjectInfoTable[[#This Row],[kWh Per Unit]]*ProjectInfoTable[[#This Row],[Quantity]]*ProjectInfoTable[[#This Row],[No. of TRL Units]])),0)),IF(OR(ProjectType=\"New Construction\",ProjectType=\"Major Renovation\"),IF(ProjectInfoTable[[#This Row],[Control kWh (Proposed)]]=\"\",\"\",0),\"\"))","v":""},{"$f":"IF(OR(ProjectInfoTable[[#This Row],[Proposed Equipment]]=\"\",ProjectInfoTable[[#This Row],[Quantity (Proposed)]]=\"\"),\"\",IF(ProjectInfoTable[[#This Row],[Fixture Measure]]=\"\",0,IF(AND(ProjectInfoTable[[#This Row],[Incentives Per Unit]]=0,INDEX(StipulatedSavingsYesNo_Table[Stipulated Savings?],MATCH(ProjectState,StipulatedSavingsYesNo_Table[State],0))=\"No\"),0,ProjectInfoTable[[#This Row],[Total   kWh/yr Savings (Stipulated)]]-ProjectInfoTable[[#This Row],[Control Measure kWh/yr Savings (Stipulated)]])))","v":""},{"$f":"IF(OR(ProjectInfoTable[[#This Row],[Proposed Equipment]]=\"\",ProjectInfoTable[[#This Row],[Quantity (Proposed)]]=\"\"),\"\",IF(ProjectInfoTable[[#This Row],[Control Measure]]=\"\",0,IF(OR(ProjectType=\"New Construction\",ProjectType=\"Major Renovation\"),IFERROR(ROUND(ProjectInfoTable[[#This Row],[Control kWh Per Unit]]*ProjectInfoTable[[#This Row],[Control Quantity]]*ProjectInfoTable[[#This Row],[Control No. of TRL Units]],0),ProjectInfoTable[[#This Row],[Control kWh/yr Savings (Stipulated)]]),ProjectInfoTable[[#This Row],[Control kWh/yr Savings (Stipulated)]])))","v":""},{"$f":"IF(AND(ProjectInfoTable[[#This Row],[Incentives Per Unit]]=0,INDEX(StipulatedSavingsYesNo_Table[Stipulated Savings?],MATCH(ProjectState,StipulatedSavingsYesNo_Table[State],0))=\"No\"),ProjectInfoTable[[#This Row],[Fixture kWh/yr Savings (Stipulated)]]+IF(ProjectInfoTable[[#This Row],[Control Measure kWh/yr Savings (Stipulated)]]=0,0,ProjectInfoTable[[#This Row],[Control kWh/yr Savings (Stipulated)]]),IF(OR(ISNUMBER(VALUE(ProjectInfoTable[[#This Row],[kWh Per Unit]])),ISNUMBER(VALUE(ProjectInfoTable[[#This Row],[Control kWh Per Unit]]))),ROUND(IFERROR(ProjectInfoTable[[#This Row],[kWh Per Unit]]*ProjectInfoTable[[#This Row],[Quantity]]*ProjectInfoTable[[#This Row],[No. of TRL Units]],0)+IFERROR(ProjectInfoTable[[#This Row],[Control kWh Per Unit]]*ProjectInfoTable[[#This Row],[Control Quantity]]*ProjectInfoTable[[#This Row],[Control No. of TRL Units]],ProjectInfoTable[[#This Row],[Control kWh/yr Savings (Stipulated)]]),0),IF(AND(ProjectInfoTable[[#This Row],[Fixture kWh/yr Savings (Stipulated)]]=\"\",ProjectInfoTable[[#This Row],[Control kWh/yr Savings (Stipulated)]]=\"\"),\"\",ROUND(IF(ProjectInfoTable[[#This Row],[Fixture kWh/yr Savings (Stipulated)]]=\"\",0,ProjectInfoTable[[#This Row],[Fixture kWh/yr Savings (Stipulated)]])+IF(ProjectInfoTable[[#This Row],[Control kWh/yr Savings (Stipulated)]]=\"\",0,ProjectInfoTable[[#This Row],[Control kWh/yr Savings (Stipulated)]])-IF(ProjectInfoTable[[#This Row],[Midstream Measure Name]]<>\"\",IFERROR(ProjectInfoTable[[#This Row],[kWh Per Unit (Midstream)]]*ProjectInfoTable[[#This Row],[Quantity]]*ProjectInfoTable[[#This Row],[No. of TRL Units]],0),0),0))))","v":""},{"$f":"IF(OR(ISNUMBER(FIND(\"Midstream\",ProjectInfoTable[[#This Row],[Fixture Measure]])),ISNUMBER(FIND(\"SBDI\",ProjectInfoTable[[#This Row],[Fixture Measure]])),ISNUMBER(FIND(\"Small Bu\",ProjectInfoTable[[#This Row],[Fixture Measure]]))),\n\nIF(ProjectInfoTable[[#This Row],[Measure Selection]]=\"\",0,\n\nIF(ISNUMBER(FIND(\"/U]\",ProjectInfoTable[[#This Row],[Proposed Equipment]])),IFERROR(MID(ProjectInfoTable[[#This Row],[Proposed Equipment]],FIND(\"$\",ProjectInfoTable[[#This Row],[Proposed Equipment]],1)+1,FIND(\"/U]\",ProjectInfoTable[[#This Row],[Proposed Equipment]],1)-FIND(\"$\",ProjectInfoTable[[#This Row],[Proposed Equipment]],1)-1)*ProjectInfoTable[[#This Row],[Lamps (Proposed)]]*ProjectInfoTable[[#This Row],[Quantity (Proposed)]],0),\nIF(ISNUMBER(FIND(\"/U \",ProjectInfoTable[[#This Row],[Proposed Equipment]])),IFERROR(MID(ProjectInfoTable[[#This Row],[Proposed Equipment]],FIND(\"$\",ProjectInfoTable[[#This Row],[Proposed Equipment]],1)+1,FIND(\"/U \",ProjectInfoTable[[#This Row],[Proposed Equipment]],1)-FIND(\"$\",ProjectInfoTable[[#This Row],[Proposed Equipment]],1)-1)*ProjectInfoTable[[#This Row],[Lamps (Proposed)]]*ProjectInfoTable[[#This Row],[Quantity (Proposed)]],0),\nIFERROR(ProjectInfoTable[[#This Row],[Fixture Measure kWh/yr Savings (Stipulated)]]/SUM(ProjectInfoTable[Total   kWh/yr Savings (Stipulated)])*ProjectCost_Total,\"\")))),\"\")","v":""},{"$f":"IFERROR(IF(ProjectInfoTable[[#This Row],[Fixture Measure kWh/yr Savings (Stipulated)]]=0,0,IF(ProjectType=\"Retrofit\",IF(OR(ISNUMBER(FIND(\"Midstream\",ProjectInfoTable[[#This Row],[Fixture Measure]])),ISNUMBER(FIND(\"SBDI\",ProjectInfoTable[[#This Row],[Fixture Measure]])),ISNUMBER(FIND(\"Small Bu\",ProjectInfoTable[[#This Row],[Fixture Measure]]))),ProjectInfoTable[[#This Row],[Measure Cost (Direct)]],IFERROR(ProjectInfoTable[[#This Row],[Fixture Measure kWh/yr Savings (Stipulated)]]/kWhSavings_Typical_Stipulated*(ProjectCost_Total-SUM(ProjectInfoTable[Measure Cost (Direct)])),\"\")),IF(ProjectInfoTable[[#This Row],[Proposed Equipment]]=\"\",\"\",IFERROR(SpaceTypesInfo_Table[[#Totals],[NCMR Int Cost]]*ProjectInfoTable[[#This Row],[Fixture Measure kWh/yr Savings (Stipulated)]]/SUMIFS(ProjectInfoTable[Total   kWh/yr Savings (Stipulated)],ProjectInfoTable[Proposed Equipment],\"*Interior*\"),0)))),\"\")","v":""},{"$f":"IFERROR(\n IF(\n  ProjectInfoTable[[#This Row],[Control Measure kWh/yr Savings (Stipulated)]]=0,\n  0,\n  IF(\n   ProjectType=\"Retrofit\",\n    IFERROR(\n     ProjectInfoTable[[#This Row],[Control Measure kWh/yr Savings (Stipulated)]]\n     /\n     SUMIFS(ProjectInfoTable[Control Measure kWh/yr Savings (Stipulated)],ProjectInfoTable[Control Measure],\"<>\"\"\")\n     *\n     (ProjectCost_Total-SUM(ProjectInfoTable[Fixture Cost (Allocated)])),\n     \"\"\n    ),\nROUND(\n    IF(\n     ProjectInfoTable[[#This Row],[Proposed Equipment]]=\"\",\n     \"\",\n     IFERROR(\n      SpaceTypesInfo_Table[[#Totals],[NCMR Int Cost]]\n      *\n      ProjectInfoTable[[#This Row],[Control Measure kWh/yr Savings (Stipulated)]]\n      /\n      SUMIFS(ProjectInfoTable[Total   kWh/yr Savings (Stipulated)],ProjectInfoTable[Proposed Equipment],\"*Interior*\"),\n      0\n     )\n    ),\n    2\n   )\n  )\n ),\n \"\"\n)","v":""},{"$f":"IF(AND(ProjectInfoTable[[#This Row],[Fixture Cost (Allocated)]]=\"\",ProjectInfoTable[[#This Row],[Control Cost (Allocated)]]=\"\"),\"\",SUM(ProjectInfoTable[[#This Row],[Fixture Cost (Allocated)]:[Control Cost (Allocated)]]))","v":""},{"$f":"IFERROR(IF(OR(ProjectInfoTable[[#This Row],[Proposed Equipment]]=\"\",ProjectInfoTable[[#This Row],[Quantity (Proposed)]]=\"\"),\"\",IF(OR(ProjectInfoTable[[#This Row],[Measure Selection]]=\"\",ProjectInfoTable[[#This Row],[Control kWh (Proposed)]]=\"Controls Only\"),0,IF(NOT(ISNUMBER(FIND(\"Retrofit\",ProjectType,1))),ProjectInfoTable[[#This Row],[Fixture Energy Cost Savings (Stipulated)]],IF(AND(ProjectInfoTable[[#This Row],[Fixture Measure]]=\"\",ProjectInfoTable[[#This Row],[Control Measure]]<>\"\"),0,ROUND((ProjectInfoTable[[#This Row],[Total Energy Costs (Existing, Actual)]]-ProjectInfoTable[[#This Row],[Total Energy Costs (Proposed)]]),2))))),\"\")","v":""},{"$f":"IFERROR(IF(OR(ProjectInfoTable[[#This Row],[Proposed Equipment]]=\"\",ProjectInfoTable[[#This Row],[Quantity (Proposed)]]=\"\"),\"\",\n\nIF(ProjectInfoTable[[#This Row],[Control kWh (Proposed)]]=\"Controls Only\",ProjectInfoTable[[#This Row],[Control Measure kWh/yr Savings (Actual)]]*INDEX(INDIRECT(\"RateSchedules_\"&ProjectState&\"_Table[kWh Rate]\"),\nMATCH(RateSchedule,INDIRECT(\"RateSchedules_\"&ProjectState&\"_Table[Rate Schedule]\"),0)),\n\nIF(NOT(ISNUMBER(FIND(\"Retrofit\",ProjectType,1))),ProjectInfoTable[[#This Row],[Control Energy Cost Savings (Stipulated)]],IF(AND(ProjectInfoTable[[#This Row],[Fixture Measure]]=\"\",ProjectInfoTable[[#This Row],[Control Measure]]<>\"\"),ROUND((ProjectInfoTable[[#This Row],[Total Energy Costs (Existing, Actual)]]-ProjectInfoTable[[#This Row],[Total Energy Costs (Proposed)]]),2),ROUND((ProjectInfoTable[[#This Row],[Total Energy Costs (Existing, Actual)]]-ProjectInfoTable[[#This Row],[Total Energy Costs (Proposed)]]),2)*(ProjectInfoTable[[#This Row],[Control Measure kWh/yr Savings (Actual)]]/ProjectInfoTable[[#This Row],[Total   kWh/yr Savings (Actual)]]))))),\"\")","v":""},{"$f":"IF(OR(ProjectInfoTable[[#This Row],[Proposed Equipment]]=\"\",ProjectInfoTable[[#This Row],[Quantity (Proposed)]]=\"\"),\"\",ROUND(ProjectInfoTable[[#This Row],[Fixture Energy Cost Savings (Actual)]]+ProjectInfoTable[[#This Row],[Control Energy Cost Savings (Actual)]],2))","v":""},{"$f":"IF(OR(ProjectInfoTable[[#This Row],[Proposed Equipment]]=\"\",ProjectInfoTable[[#This Row],[Quantity (Proposed)]]=\"\"),\"\",IF(OR(ISNUMBER(VALUE(ProjectInfoTable[[#This Row],[kWh Per Unit]])),ISNUMBER(VALUE(ProjectInfoTable[[#This Row],[kW Per Unit]]))),IFERROR(ProjectInfoTable[[#This Row],[Fixture Measure kWh/yr Savings (Stipulated)]]*INDEX(INDIRECT(\"RateSchedules_\"&ProjectState&\"_Table[kWh Rate]\"),MATCH(RateSchedule,INDIRECT(\"RateSchedules_\"&ProjectState&\"_Table[Rate Schedule]\"),0)),0)+IFERROR(ProjectInfoTable[[#This Row],[kW Demand Reduction (Stipulated)]]/1000*12*INDEX(INDIRECT(\"RateSchedules_\"&ProjectState&\"_Table[kW Rate]\"),MATCH(RateSchedule,INDIRECT(\"RateSchedules_\"&ProjectState&\"_Table[Rate Schedule]\"),0)),0),IFERROR(ROUND((ProjectInfoTable[[#This Row],[Total Energy Costs (Existing, Stipulated)]]-ProjectInfoTable[[#This Row],[Total Energy Costs (Proposed)]])*ProjectInfoTable[[#This Row],[Fixture Measure kWh/yr Savings (Stipulated)]]/ProjectInfoTable[[#This Row],[Total   kWh/yr Savings (Stipulated)]],2),0)))","v":""},{"$f":"IF(OR(ProjectInfoTable[[#This Row],[Proposed Equipment]]=\"\",ProjectInfoTable[[#This Row],[Quantity (Proposed)]]=\"\"),\"\",\nIF(ProjectInfoTable[[#This Row],[Control kWh (Proposed)]]=\"Controls Only\",ProjectInfoTable[[#This Row],[Control Measure kWh/yr Savings (Stipulated)]]*INDEX(INDIRECT(\"RateSchedules_\"&ProjectState&\"_Table[kWh Rate]\"),\nMATCH(RateSchedule,INDIRECT(\"RateSchedules_\"&ProjectState&\"_Table[Rate Schedule]\"),0)),IF(OR(ISNUMBER(VALUE(ProjectInfoTable[[#This Row],[Control kWh Per Unit]])),\nISNUMBER(VALUE(ProjectInfoTable[[#This Row],[Control kW Per Unit]]))),IFERROR(ProjectInfoTable[[#This Row],[Control Measure kWh/yr Savings (Stipulated)]]*INDEX(INDIRECT(\"RateSchedules_\"&ProjectState&\"_Table[kWh Rate]\"),\nMATCH(RateSchedule,INDIRECT(\"RateSchedules_\"&ProjectState&\"_Table[Rate Schedule]\"),0)),0)+IFERROR(ProjectInfoTable[[#This Row],[kW Demand Reduction (Stipulated)]]/1000*12*\nINDEX(INDIRECT(\"RateSchedules_\"&ProjectState&\"_Table[kW Rate]\"),MATCH(RateSchedule,INDIRECT(\"RateSchedules_\"&ProjectState&\"_Table[Rate Schedule]\"),0)),0),\nIFERROR(ROUND((ProjectInfoTable[[#This Row],[Total Energy Costs (Existing, Stipulated)]]-ProjectInfoTable[[#This Row],[Total Energy Costs (Proposed)]])*ProjectInfoTable[[#This Row],[Control Measure kWh/yr Savings (Stipulated)]]/\nProjectInfoTable[[#This Row],[Total   kWh/yr Savings (Stipulated)]],2),0))))","v":""},{"$f":"IF(OR(ProjectInfoTable[[#This Row],[Proposed Equipment]]=\"\",ProjectInfoTable[[#This Row],[Quantity (Proposed)]]=\"\"),\"\",ROUND(ProjectInfoTable[[#This Row],[Fixture Energy Cost Savings (Stipulated)]]+ProjectInfoTable[[#This Row],[Control Energy Cost Savings (Stipulated)]],2))","v":""},{"$f":"IF(ProjectInfoTable[[#This Row],[OpSch]]=\"\",\"\",IF(OR(ProjectInfoTable[[#This Row],[Fixture Measure]]=\"\",ProjectInfoTable[[#This Row],[Eligible Fixture Measure]]<>TRUE),0,ProjectInfoTable[[#This Row],[Fixture Incentives (pre-capping)]])+IF(OR(ProjectInfoTable[[#This Row],[Control Measure]]=\"\",ProjectInfoTable[[#This Row],[Eligible Control Measure]]<>TRUE),0,ProjectInfoTable[[#This Row],[Control Incentives (pre-capping)]]))","v":""},{"$f":"IF(OR(ProjectInfoTable[[#This Row],[Fixture Measure]]<>\"\",ProjectInfoTable[[#This Row],[Control Measure]]<>\"\"),IF(ProjectInfoTable[[#This Row],[Fixture Incentives]]=\"\",0,ProjectInfoTable[[#This Row],[Fixture Incentives]])+IF(ProjectInfoTable[[#This Row],[Control Incentives]]=\"\",0,ProjectInfoTable[[#This Row],[Control Incentives]]),\"\")","v":""},null,{"$f":"IF(OR(ProjectInfoTable[[#This Row],[Fixture Measure]]=\"\",ProjectInfoTable[[#This Row],[OpSch]]=\"\",ProjectInfoTable[[#This Row],[Eligible Fixture Measure]]<>TRUE),\"\",\nIF(OR(ISNUMBER(FIND(\"SBDI\",ProjectInfoTable[[#This Row],[Fixture Measure]])),ISNUMBER(FIND(\"Small Bu\",ProjectInfoTable[[#This Row],[Fixture Measure]]))),IFERROR(0.75*ProjectInfoTable[[#This Row],[Fixture Cost (Allocated)]],\"cost error\"),\nIF(AND(OR(ProjectType=\"New Construction\",ProjectType=\"Major Renovation\"),LPDCodeToProposed<0.1,ISNUMBER(FIND(\"Interior\",ProjectInfoTable[[#This Row],[Proposed Equipment]],1))),0,IFERROR(ProjectInfoTable[[#This Row],[Incentives Per Unit]]*ProjectInfoTable[[#This Row],[Quantity]]*ProjectInfoTable[[#This Row],[No. of TRL Units]],\"TRL Error\"))))","v":""},{"$f":"IF(\n    OR(\n        ProjectInfoTable[[#This Row],[Fixture Measure]] = \"\",\n        ProjectInfoTable[[#This Row],[OpSch]] = \"\",\n        ProjectInfoTable[[#This Row],[Eligible Fixture Measure]] <> TRUE\n    ),\n    \"\",\n    IF(\n        OR(\n            ISNUMBER(FIND(\"SBDI\", ProjectInfoTable[[#This Row],[Fixture Measure]])),\n            ISNUMBER(FIND(\"Small Bu\", ProjectInfoTable[[#This Row],[Fixture Measure]]))\n        ),\n        IFERROR(\n            (Incentive_NonTypical / Incentive_NonTypical_PreCapped) * ProjectInfoTable[[#This Row],[Fixture Incentives (pre-capping)]],\n            \"\"\n        ),\n        IF(\n            AND(\n                ProjectType = \"Retrofit\",\n                ProjectState = \"UT\",\n                ISNUMBER(FIND(\"Post-Purchase\", ProjectInfoTable[[#This Row],[Fixture Measure]], 1))\n            ),\n            IFERROR(\n                MAX(\n                    MIN(\n                        ProjectInfoTable[[#This Row],[Fixture Incentives (pre-capping)]],\n                        ProjectInfoTable[[#This Row],[Fixture Cost (Allocated)]] * 0.7\n                    ),\n                    0\n                ),\n                0\n            ),\n            IF(\n                ProjectType = \"Retrofit\",\n                IF(\n                    ISNUMBER(FIND(\"Post-Purchase\", ProjectInfoTable[[#This Row],[Fixture Measure]], 1)),\n                    ProjectInfoTable[[#This Row],[Fixture Incentives (pre-capping)]],\n                    IFERROR(\n                        $BI$3 / $BH$3 * ProjectInfoTable[[#This Row],[Fixture Incentives (pre-capping)]],\n                        \"\"\n                    )\n                ),\n                IF(\n                    ISNUMBER(FIND(\"Interior\", ProjectInfoTable[[#This Row],[Proposed Equipment]], 1)),\n                    IF(\n                        LPDCodeToProposed > 0.1,\n                        ProjectInfoTable[[#This Row],[Fixture Incentives (pre-capping)]],\n                        0\n                    ),\n                    ProjectInfoTable[[#This Row],[Fixture Incentives (pre-capping)]]\n                )\n            )\n        )\n    )\n)","v":""},{"$f":"IF(OR(ProjectInfoTable[[#This Row],[Incentives Per Unit]]=\"\",ProjectInfoTable[[#This Row],[TRL Unit]]=\"\"),\"\",IF(ProjectInfoTable[[#This Row],[Eligible Fixture Measure]]<>TRUE,\"Invalid Effective Date\",\nIF(OR(ISNUMBER(FIND(\"SBDI\",ProjectInfoTable[[#This Row],[Fixture Measure]])),ISNUMBER(FIND(\"Small Bu\",ProjectInfoTable[[#This Row],[Fixture Measure]]))),\"$0.75 / dollar cost\",\nTEXT(ProjectInfoTable[[#This Row],[Incentives Per Unit]],\"$#,##0.00\")&\" / \"&IF(ProjectInfoTable[[#This Row],[Fixture Measure]]=\"\",\"\",IF(ProjectInfoTable[[#This Row],[TRL Unit]]=\"Measure\",IF(ISNUMBER(FIND(\"Relamp\",ProjectInfoTable[[#This Row],[Proposed Equipment]],1)),\"Lamp\",\"Fixture\"),ProjectInfoTable[[#This Row],[TRL Unit]])))))","v":""},{"$f":"IF(OR(ProjectInfoTable[[#This Row],[Proposed Equipment]]=\"\",ProjectInfoTable[[#This Row],[Quantity (Proposed)]]=\"\"),\"\",IFERROR(SUBSTITUTE(IF(ProjectType=\"Retrofit\",IF(OR(ISNUMBER(FIND(\"Controls On\",ProjectInfoTable[[#This Row],[Proposed Equipment]],1))),\"\",IF(OR(ProjectInfoTable[[#This Row],[Existing Equipment]]=\"\",ProjectInfoTable[[#This Row],[Proposed Equipment]]=\"\"),\"\",IF(ProjectState=\"UT\",IFERROR(IF(AlternativeEnergyOverride=\"Yes\",IFERROR(INDEX(INDIRECT(\"EquipmentTable_\"&\"Retrofit_\"&ProjectState&\"[#All]\"),MATCH(LEFT(ProjectInfoTable[[#This Row],[Proposed Equipment]],FIND(\"[\",ProjectInfoTable[[#This Row],[Proposed Equipment]],1)-2)&\" (Alt)\",INDIRECT(\"EquipmentTable_\"&\"Retrofit_\"&ProjectState&\"[equipmentProposed]\"),0)+1,MATCH(\"measureRetrofit_\"&LEFT(ProjectInfoTable[[#This Row],[Existing Equipment]],FIND(\":\",ProjectInfoTable[[#This Row],[Existing Equipment]],1)-1)&\"_\"&IF(IFERROR(INDEX(ControlsLookup[Rank],MATCH(RIGHT(ProjectInfoTable[[#This Row],[Proposed Equipment]],LEN(ProjectInfoTable[[#This Row],[Proposed Equipment]])-FIND(\"]\",ProjectInfoTable[[#This Row],[Proposed Equipment]],1)-3),ControlsLookup[Controls],0)),0)>IFERROR(INDEX(ControlsLookup[Rank],MATCH(RIGHT(ProjectInfoTable[[#This Row],[Existing Equipment]],LEN(ProjectInfoTable[[#This Row],[Existing Equipment]])-FIND(\"]\",ProjectInfoTable[[#This Row],[Existing Equipment]],1)-3),ControlsLookup[Controls],0)),0),INDEX(ControlsLookup[Controls Type],MATCH(LEFT(ProjectInfoTable[[#This Row],[Existing Equipment]],FIND(\":\",ProjectInfoTable[[#This Row],[Existing Equipment]],1)-1)&\"_\"&RIGHT(ProjectInfoTable[[#This Row],[Proposed Equipment]],LEN(ProjectInfoTable[[#This Row],[Proposed Equipment]])-FIND(\"]\",ProjectInfoTable[[#This Row],[Proposed Equipment]],1)-3),ControlsLookup[Controls Concatenate],0)),\"None\"),INDIRECT(\"EquipmentTable_\"&\"Retrofit_\"&ProjectState&\"[#Headers]\"),0)),INDEX(INDIRECT(\"EquipmentTable_\"&IF(ProjectType=\"Retrofit\",\"Retrofit_\",\"NCMR_\")&ProjectState&\"[#All]\"),MATCH(LEFT(ProjectInfoTable[[#This Row],[Proposed Equipment]],FIND(\"[\",ProjectInfoTable[[#This Row],[Proposed Equipment]],1)-2),INDIRECT(\"EquipmentTable_\"&\"Retrofit_\"&ProjectState&\"[equipmentProposed]\"),0)+1,MATCH(\"measureRetrofit_\"&LEFT(ProjectInfoTable[[#This Row],[Existing Equipment]],FIND(\":\",ProjectInfoTable[[#This Row],[Existing Equipment]],1)-1)&\"_\"&IF(IFERROR(INDEX(ControlsLookup[Rank],MATCH(RIGHT(ProjectInfoTable[[#This Row],[Proposed Equipment]],LEN(ProjectInfoTable[[#This Row],[Proposed Equipment]])-FIND(\"]\",ProjectInfoTable[[#This Row],[Proposed Equipment]],1)-3),ControlsLookup[Controls],0)),0)>IFERROR(INDEX(ControlsLookup[Rank],MATCH(RIGHT(ProjectInfoTable[[#This Row],[Existing Equipment]],LEN(ProjectInfoTable[[#This Row],[Existing Equipment]])-FIND(\"]\",ProjectInfoTable[[#This Row],[Existing Equipment]],1)-3),ControlsLookup[Controls],0)),0),INDEX(ControlsLookup[Controls Type],MATCH(LEFT(ProjectInfoTable[[#This Row],[Existing Equipment]],FIND(\":\",ProjectInfoTable[[#This Row],[Existing Equipment]],1)-1)&\"_\"&RIGHT(ProjectInfoTable[[#This Row],[Proposed Equipment]],LEN(ProjectInfoTable[[#This Row],[Proposed Equipment]])-FIND(\"]\",ProjectInfoTable[[#This Row],[Proposed Equipment]],1)-3),ControlsLookup[Controls Concatenate],0)),\"None\"),INDIRECT(\"EquipmentTable_\"&IF(ProjectType=\"Retrofit\",\"Retrofit_\",\"NCMR_\")&ProjectState&\"[#Headers]\"),0))),INDEX(INDIRECT(\"EquipmentTable_\"&IF(ProjectType=\"Retrofit\",\"Retrofit_\",\"NCMR_\")&ProjectState&\"[#All]\"),MATCH(LEFT(ProjectInfoTable[[#This Row],[Proposed Equipment]],FIND(\"[\",ProjectInfoTable[[#This Row],[Proposed Equipment]],1)-2),INDIRECT(\"EquipmentTable_\"&IF(ProjectType=\"Retrofit\",\"Retrofit_\",\"NCMR_\")&ProjectState&\"[equipmentProposed]\"),0)+1,MATCH(\"measureRetrofit_\"&IF(AND(SBDEligible=\"Yes\",ISNUMBER(FIND(\"SBE\",ProjectInfoTable[[#This Row],[Proposed Equipment]]))),\"SBE\",LEFT(ProjectInfoTable[[#This Row],[Existing Equipment]],FIND(\":\",ProjectInfoTable[[#This Row],[Existing Equipment]],1)-1)&\"_\"&IF(IFERROR(INDEX(ControlsLookup[Rank],MATCH(RIGHT(ProjectInfoTable[[#This Row],[Proposed Equipment]],LEN(ProjectInfoTable[[#This Row],[Proposed Equipment]])-FIND(\"]\",ProjectInfoTable[[#This Row],[Proposed Equipment]],1)-3),ControlsLookup[Controls],0)),0)>IFERROR(INDEX(ControlsLookup[Rank],MATCH(RIGHT(ProjectInfoTable[[#This Row],[Existing Equipment]],LEN(ProjectInfoTable[[#This Row],[Existing Equipment]])-FIND(\"]\",ProjectInfoTable[[#This Row],[Existing Equipment]],1)-3),ControlsLookup[Controls],0)),0),INDEX(ControlsLookup[Controls Type],MATCH(LEFT(ProjectInfoTable[[#This Row],[Existing Equipment]],FIND(\":\",ProjectInfoTable[[#This Row],[Existing Equipment]],1)-1)&\"_\"&RIGHT(ProjectInfoTable[[#This Row],[Proposed Equipment]],LEN(ProjectInfoTable[[#This Row],[Proposed Equipment]])-FIND(\"]\",ProjectInfoTable[[#This Row],[Proposed Equipment]],1)-3),ControlsLookup[Controls Concatenate],0)),\"None\")),INDIRECT(\"EquipmentTable_\"&\"Retrofit_\"&ProjectState&\"[#Headers]\"),0))),\"Non-eligible fixture - Retrofit - \"&ProjectState),IFERROR(INDEX(INDIRECT(\"EquipmentTable_\"&IF(SiteSpecificOverride=\"Yes\",\"PostPurchase_\",\"Retrofit_\")&ProjectState&\"[#All]\"),MATCH(LEFT(ProjectInfoTable[[#This Row],[Proposed Equipment]],FIND(\"[\",ProjectInfoTable[[#This Row],[Proposed Equipment]],1)-2),INDIRECT(\"EquipmentTable_\"&IF(SiteSpecificOverride=\"Yes\",\"PostPurchase_\",\"Retrofit_\")&ProjectState&\"[equipmentProposed]\"),0)+1,MATCH(\"measureRetrofit_\"&IF(AND(SBDEligible=\"Yes\",ISNUMBER(FIND(\"SBE\",ProjectInfoTable[[#This Row],[Proposed Equipment]]))),\"SBE\",LEFT(ProjectInfoTable[[#This Row],[Existing Equipment]],FIND(\":\",ProjectInfoTable[[#This Row],[Existing Equipment]],1)-1)&\"_\"&IF(IFERROR(INDEX(ControlsLookup[Rank],MATCH(RIGHT(ProjectInfoTable[[#This Row],[Proposed Equipment]],LEN(ProjectInfoTable[[#This Row],[Proposed Equipment]])-FIND(\"]\",ProjectInfoTable[[#This Row],[Proposed Equipment]],1)-3),ControlsLookup[Controls],0)),0)>IFERROR(INDEX(ControlsLookup[Rank],MATCH(RIGHT(ProjectInfoTable[[#This Row],[Existing Equipment]],LEN(ProjectInfoTable[[#This Row],[Existing Equipment]])-FIND(\"]\",ProjectInfoTable[[#This Row],[Existing Equipment]],1)-3),ControlsLookup[Controls],0)),0),INDEX(ControlsLookup[Controls Type],MATCH(LEFT(ProjectInfoTable[[#This Row],[Existing Equipment]],FIND(\":\",ProjectInfoTable[[#This Row],[Existing Equipment]],1)-1)&\"_\"&RIGHT(ProjectInfoTable[[#This Row],[Proposed Equipment]],LEN(ProjectInfoTable[[#This Row],[Proposed Equipment]])-FIND(\"]\",ProjectInfoTable[[#This Row],[Proposed Equipment]],1)-3),ControlsLookup[Controls Concatenate],0)),\"None\")),INDIRECT(\"EquipmentTable_\"&IF(SiteSpecificOverride=\"Yes\",\"PostPurchase_\",\"Retrofit_\")&ProjectState&\"[#Headers]\"),0)),\"Non-eligible fixture - Retrofit - \"&ProjectState)))),IFERROR(INDEX(INDIRECT(\"EquipmentTable_\"&\"NCMR_\"&ProjectState),MATCH(RIGHT(LEFT(ProjectInfoTable[[#This Row],[Proposed Equipment]],FIND(\" (\",ProjectInfoTable[[#This Row],[Proposed Equipment]],1)-1),LEN(LEFT(ProjectInfoTable[[#This Row],[Proposed Equipment]],FIND(\" (\",ProjectInfoTable[[#This Row],[Proposed Equipment]],1)-2))-FIND(\":\",ProjectInfoTable[[#This Row],[Proposed Equipment]],1)),INDIRECT(\"EquipmentTable_\"&\"NCMR_\"&ProjectState&\"[equipmentProposed]\"),0),MATCH(\"measureNCMR_\"&LEFT(ProjectInfoTable[[#This Row],[Proposed Equipment]],FIND(\":\",ProjectInfoTable[[#This Row],[Proposed Equipment]],1)-1)&\"_\"&IF(LEN(ProjectInfoTable[[#This Row],[Proposed Equipment]])>FIND(\"]\",ProjectInfoTable[[#This Row],[Proposed Equipment]]),INDEX(ControlsLookup[Controls Type],MATCH(LEFT(ProjectInfoTable[[#This Row],[Proposed Equipment]],FIND(\":\",ProjectInfoTable[[#This Row],[Proposed Equipment]],1)-1)&\"_\"&RIGHT(ProjectInfoTable[[#This Row],[Proposed Equipment]],LEN(ProjectInfoTable[[#This Row],[Proposed Equipment]])-FIND(\"]\",ProjectInfoTable[[#This Row],[Proposed Equipment]],1)-3),ControlsLookup[Controls Concatenate],0)),\"None\"),INDIRECT(\"EquipmentTable_\"&\"NCMR_\"&ProjectState&\"[#Headers]\"),0)),\"Non-eligible fixture - NCMR - \"&ProjectState)),\"[NAMESUB]\",ProjectInfoTable[[#This Row],[Measure Name Sub]]),\"Non-eligible fixture - Retrofit - \"&ProjectState))","v":""},{"$f":"IF(ISNUMBER(SEARCH(\"Case\",ProjectInfoTable[[#This Row],[Fixture Measure]])),CONCATENATE(ProjectInfoTable[[#This Row],[Fixture Measure]],ProjectInfoTable[[#This Row],[No. of TRL Units]],ProjectInfoTable[[#This Row],[Quantity]]),\"\")","v":""},{"$f":"IF(ProjectInfoTable[[#This Row],[Proposed Equipment]]=\"\",\"\",\nIF(AND(ProjectState = \"UT\",ISNUMBER(FIND(\" TLED \",ProjectInfoTable[[#This Row],[Proposed Equipment]]))),\nIF(VALUE(ProjectInfoTable[[#This Row],[Lamp W (Proposed)]])<20,\"< 20 W\",\nIF(AND(VALUE(ProjectInfoTable[[#This Row],[Lamp W (Proposed)]])<=39,VALUE(ProjectInfoTable[[#This Row],[Lamp W (Proposed)]])>=20),\">= 20 W and <= 39 W\",)),\n\nIF(AND(ProjectType=\"Retrofit\",OR(ISNUMBER(FIND(\"Retrofit Kit\",ProjectInfoTable[[#This Row],[Proposed Equipment]])),ISNUMBER(FIND(\"Fixture\",ProjectInfoTable[[#This Row],[Proposed Equipment]]))),OR(ISNUMBER(FIND(\"Exterior\",ProjectInfoTable[[#This Row],[Existing Equipment]])),ISNUMBER(FIND(\"Street\",ProjectInfoTable[[#This Row],[Existing Equipment]])))),\nIF(ProjectInfoTable[[#This Row],[Fixture W (Proposed)]]<50,\"< 50 W\",\nIF(AND(ProjectInfoTable[[#This Row],[Fixture W (Proposed)]]<90,ProjectInfoTable[[#This Row],[Fixture W (Proposed)]]>=50),\">= 50 W and < 90 W\",\nIF(AND(ProjectInfoTable[[#This Row],[Fixture W (Proposed)]]<135,ProjectInfoTable[[#This Row],[Fixture W (Proposed)]]>=90),\">= 90 W and < 135 W\",\nIF(AND(ProjectInfoTable[[#This Row],[Fixture W (Proposed)]]<220,ProjectInfoTable[[#This Row],[Fixture W (Proposed)]]>=135),\">= 135 W and < 220 W\",\nIF(ProjectInfoTable[[#This Row],[Fixture W (Proposed)]]>=220,\">= 220 W\"))))),\"\")))","v":""},{"$f":"IFERROR(INDEX(INDIRECT(\"MeasureTable_\" & ProjectState & \"[Measure Reference Number]\"),MATCH(ProjectInfoTable[[#This Row],[Fixture Measure]],INDIRECT(\"MeasureTable_\" &ProjectState&\"[Measure Name]\"),0)),\"\")","v":""},{"$f":"IFERROR(\n    _xlfn.LET(\n        _xlpm.filteredVersions,\n            _xlfn._xlws.FILTER(\n                INDIRECT(\"MeasureTable_\" & ProjectState & \"[Version Number]\"),\n                (INDIRECT(\"MeasureTable_\" & ProjectState & \"[Measure Reference Number]\") = ProjectInfoTable[[#This Row],[Fixture Measure Reference Number]]) *\n                (INDIRECT(\"MeasureTable_\" & ProjectState & \"[Eligible Measure]\") = TRUE)\n            ),\n        INDEX(_xlpm.filteredVersions, 1)\n    ),\n    \"\"\n)","v":""},{"$f":"IFERROR(\n  _xlfn.LET(\n    _xlpm.refRange, INDIRECT(\"MeasureTable_\" & ProjectState & \"[Measure Reference Number]\"),\n    _xlpm.eligibleRange, INDIRECT(\"MeasureTable_\" & ProjectState & \"[Eligible Measure]\"),\n    _xlpm.countTrue, SUMPRODUCT(--(_xlpm.refRange = ProjectInfoTable[[#This Row],[Fixture Measure Reference Number]]), --(_xlpm.eligibleRange = TRUE)),\n    _xlpm.countNonBlank, SUMPRODUCT(--(_xlpm.refRange = ProjectInfoTable[[#This Row],[Fixture Measure Reference Number]]), --(_xlpm.eligibleRange <> \"\")),\n    IF(_xlpm.countNonBlank = 0, \"\", IF(_xlpm.countTrue >= 1, TRUE, FALSE))\n  ),\n  \"\"\n)","v":""},{"$f":"IFERROR(VALUE(INDEX(INDIRECT(\"MeasureTable_\" & ProjectState & \"[CustomerIncentiveDollarperunit]\"),MATCH(ProjectInfoTable[[#This Row],[Fixture Measure]]&\" | TRUE\",INDIRECT(\"MeasureTable_\" &ProjectState&\"[MeasureEligibleConcatenate]\"),0))),\"\")","v":""},{"$f":"IFERROR(INDEX(INDIRECT(\"MeasureTable_\"&ProjectState&\"[SiteSpecificCalculation]\"),MATCH(ProjectInfoTable[[#This Row],[Fixture Measure]]&\" | TRUE\",INDIRECT(\"MeasureTable_\" &ProjectState&\"[MeasureEligibleConcatenate]\"),0)),\"\")","v":""},{"$f":"IFERROR(INDEX(INDIRECT(\"MeasureTable_\"&ProjectState&\"[GrossIncrementalAnnualElectricSavings]\"),MATCH(ProjectInfoTable[[#This Row],[Fixture Measure]]&\" | TRUE\",INDIRECT(\"MeasureTable_\" &ProjectState&\"[MeasureEligibleConcatenate]\"),0)),\"\")","v":""},{"$f":"IFERROR(INDEX(INDIRECT(\"MeasureTable_\"&ProjectState&\"[GrossAverageMonthlyDemandReduction]\"),MATCH(ProjectInfoTable[[#This Row],[Fixture Measure]]&\" | TRUE\",INDIRECT(\"MeasureTable_\" &ProjectState&\"[MeasureEligibleConcatenate]\"),0)),\"\")","v":""},{"$f":"IF(ProjectInfoTable[[#This Row],[Fixture Measure]]=\"\",\"\",IF(NOT(ISNUMBER(FIND(\"Site-Specific - Downstream\",ProjectInfoTable[[#This Row],[Fixture Measure]]))),\"\",\nIF(ISNUMBER(MATCH(SUBSTITUTE(ProjectInfoTable[[#This Row],[Fixture Measure]],\"Site-Specific - Downstream - v2\",\"Mid Market\"),INDIRECT(\"MeasureTable_\"&ProjectState&\"[Measure Name]\"),0)),\nSUBSTITUTE(ProjectInfoTable[[#This Row],[Fixture Measure]],\"Site-Specific - Downstream - v2\",\"Mid Market\"),\nSUBSTITUTE(ProjectInfoTable[[#This Row],[Fixture Measure]],\"Site-Specific - Downstream\",\"Mid Market\"))\n))","v":""},{"$f":"IF(ProjectInfoTable[[#This Row],[Midstream Measure Name]]=\"\",\"\",IFERROR(INDEX(INDIRECT(\"MeasureTable_\"&ProjectState&\"[GrossIncrementalAnnualElectricSavings ]\"),MATCH(ProjectInfoTable[[#This Row],[Midstream Measure Name]]&\" | TRUE\",INDIRECT(\"MeasureTable_\" &ProjectState&\"[MeasureEligibleConcatenate]\"),0)),\"\"))","v":""},{"$f":"IF(ProjectInfoTable[[#This Row],[Midstream Measure Name]]=\"\",\"\",IFERROR(INDEX(INDIRECT(\"MeasureTable_\"&ProjectState&\"[GrossAverage onthly emand eduction]\"),MATCH(ProjectInfoTable[[#This Row],[Midstream Measure Name]]&\" | TRUE\",INDIRECT(\"MeasureTable_\" &ProjectState&\"[MeasureEligibleConcatenate]\"),0)),\"\"))","v":""},{"$f":"IFERROR(INDEX(INDIRECT(\"MeasureTable_\"&ProjectState&\"[IncrementalMeasureCost]\"),MATCH(ProjectInfoTable[[#This Row],[Fixture Measure]]&\" | TRUE\",INDIRECT(\"MeasureTable_\" &ProjectState&\"[MeasureEligibleConcatenate]\"),0)),\"\")","v":""},{"$f":"IF(ProjectInfoTable[[#This Row],[Fixture Measure]]=\"\",\"\",IF(AND(ProjectState=\"UT\",ProjectInfoTable[[#This Row],[Measure Selection]]=\"\"),0,\nIF(OR(ISNUMBER(FIND(\"SBDI\",ProjectInfoTable[[#This Row],[Fixture Measure]])),ISNUMBER(FIND(\"Small Bu\",ProjectInfoTable[[#This Row],[Fixture Measure]]))),ProjectInfoTable[[#This Row],[Quantity (Proposed)]]*ProjectInfoTable[[#This Row],[Lamps (Proposed)]],\nIF(OR(ProjectInfoTable[[#This Row],[TRL Unit]]=\"Measure\",ProjectInfoTable[[#This Row],[TRL Unit]]=\"Linear ft.\"),IF(OR(ISNUMBER(FIND(\"Lamp\",ProjectInfoTable[[#This Row],[Fixture Measure]],1)),ISNUMBER(FIND(\"Relamp\",ProjectInfoTable[[#This Row],[Fixture Measure]],1)),ISNUMBER(FIND(\"Relamp\",ProjectInfoTable[[#This Row],[Proposed Equipment]],1))),ProjectInfoTable[[#This Row],[Quantity (Proposed)]]*ProjectInfoTable[[#This Row],[Lamps (Proposed)]],ProjectInfoTable[[#This Row],[Quantity (Proposed)]]),1))))","v":""},{"$f":"IF(ProjectInfoTable[[#This Row],[Fixture Measure]]=\"\",\"\",IF(AND(ProjectState=\"UT\",ProjectInfoTable[[#This Row],[Measure Selection]]=\"\"),0,\nIF(OR(ISNUMBER(FIND(\"SBDI\",ProjectInfoTable[[#This Row],[Fixture Measure]])),ISNUMBER(FIND(\"Small Bu\",ProjectInfoTable[[#This Row],[Fixture Measure]]))),1,\nIF(ISNUMBER(FIND(\"Controls Only\",ProjectInfoTable[[#This Row],[Proposed Equipment]],1)),IF(OR(ProjectType <> \"Retrofit\",ProjectInfoTable[[#This Row],[Space W (Proposed)]]>0),ProjectInfoTable[[#This Row],[Space W (Proposed)]],ProjectInfoTable[[#This Row],[Space W (Existing, Stipulated)]]),\nIF(TRIM(UPPER(ProjectInfoTable[[#This Row],[TRL Unit]]))=\"LINEAR FT.\",IF(OR(ISNUMBER(FIND(\"Marquee\",ProjectInfoTable[[#This Row],[Proposed Equipment]],1)),ISNUMBER(FIND(\"Cabinet\",ProjectInfoTable[[#This Row],[Proposed Equipment]],1))),VALUE(RIGHT(LEFT(ProjectInfoTable[[#This Row],[Existing Equipment]],FIND(\"LF \",ProjectInfoTable[[#This Row],[Existing Equipment]],1)-1),LEN(LEFT(ProjectInfoTable[[#This Row],[Existing Equipment]],FIND(\"LF \",ProjectInfoTable[[#This Row],[Existing Equipment]],1)-1))-FIND(\"[\",ProjectInfoTable[[#This Row],[Existing Equipment]],1))),VALUE(RIGHT(LEFT(ProjectInfoTable[[#This Row],[Proposed Equipment]],FIND(\"LF \",ProjectInfoTable[[#This Row],[Proposed Equipment]],1)-1),LEN(LEFT(ProjectInfoTable[[#This Row],[Proposed Equipment]],FIND(\"LF \",ProjectInfoTable[[#This Row],[Proposed Equipment]],1)-1))-FIND(\"[\",ProjectInfoTable[[#This Row],[Proposed Equipment]],1)))),\nIF(TRIM(UPPER(ProjectInfoTable[[#This Row],[TRL Unit]]))=\"KWH\",IF(ProjectInfoTable[[#This Row],[Fixture Measure kWh/yr Savings (Stipulated)]]=0,0,ROUND(ProjectInfoTable[[#This Row],[Fixture Measure kWh/yr Savings (Stipulated)]],2)),\nIF(TRIM(UPPER(ProjectInfoTable[[#This Row],[TRL Unit]]))=\"WATT REDUCED\",IF(ProjectInfoTable[[#This Row],[Fixture Measure kWh/yr Savings (Stipulated)]]=0,0,ROUND(ProjectInfoTable[[#This Row],[Space W (Existing, Stipulated)]]-ProjectInfoTable[[#This Row],[Space W (Proposed)]],2)),\nIF(TRIM(UPPER(ProjectInfoTable[[#This Row],[TRL Unit]]))=\"FIXTURE WATTAGE\",ProjectInfoTable[[#This Row],[Space W (Proposed)]],1))))))))","v":""},{"$f":"IFERROR(IF(OR(ISNUMBER(FIND(\"SBDI\",ProjectInfoTable[[#This Row],[Fixture Measure]])),ISNUMBER(FIND(\"Small Bu\",ProjectInfoTable[[#This Row],[Fixture Measure]]))),0,INDEX(INDIRECT(\"MeasureTable_\"&ProjectState&\"[Unit]\"),MATCH(ProjectInfoTable[[#This Row],[Fixture Measure]]&\" | TRUE\",INDIRECT(\"MeasureTable_\" &ProjectState&\"[MeasureEligibleConcatenate]\"),0))),\"\")","v":""},{"$f":"IF(ProjectInfoTable[[#This Row],[Fixture Measure]]=\"\",\"\",IF(OR(ISNUMBER(FIND(\"Lamp(s)\",ProjectInfoTable[[#This Row],[Fixture Measure]],1)),ISNUMBER(FIND(\"Relamp\",ProjectInfoTable[[#This Row],[Proposed Equipment]],1))),\"Lamp(s)\",\"Fixture(s)\"))","v":""},{"$f":"IFERROR(INDEX(INDIRECT(\"MeasureTable_\"&ProjectState&\"[ProjectCapPercent]\"),MATCH(ProjectInfoTable[[#This Row],[Fixture Measure]]&\" | TRUE\",INDIRECT(\"MeasureTable_\" &ProjectState&\"[MeasureEligibleConcatenate]\"),0)),\"\")","v":""},{"$f":"IF(OR(ProjectInfoTable[[#This Row],[Control Measure]]=\"\",ProjectInfoTable[[#This Row],[OpSch]]=\"\",ProjectInfoTable[[#This Row],[Eligible Control Measure]]<>TRUE),\"\",IF(AND(OR(ProjectType=\"New Construction\",ProjectType=\"Major Renovation\"),LPDCodeToProposed<0.1,ISNUMBER(FIND(\"Interior\",ProjectInfoTable[[#This Row],[Proposed Equipment]],1))),0,IFERROR(ProjectInfoTable[[#This Row],[Control Incentives Per Unit]]*ProjectInfoTable[[#This Row],[Control Quantity]]*ProjectInfoTable[[#This Row],[Control No. of TRL Units]],\"TRL Error\")))","v":""},{"$f":"IF(OR(ProjectInfoTable[[#This Row],[Control Measure]]=\"\",ProjectInfoTable[[#This Row],[OpSch]]=\"\",ProjectInfoTable[[#This Row],[Eligible Control Measure]]<>TRUE),\"\",IF(AND(ProjectType=\"Retrofit\",ProjectState=\"UT\",ISNUMBER(FIND(\"Post Purchase\",ProjectInfoTable[[#This Row],[Control Measure]],1))),\n\nIFERROR(MAX(MIN(ProjectInfoTable[[#This Row],[Control Incentives (pre-capping)]],ProjectInfoTable[[#This Row],[Control Cost (Allocated)]]*0.7),0),0),\n\nIF(ProjectType=\"Retrofit\",IF(ISNUMBER(FIND(\"Post Purchase\",ProjectInfoTable[[#This Row],[Control Measure]],1)),ProjectInfoTable[[#This Row],[Control Incentives (pre-capping)]],IFERROR($BI$3/$BH$3*ProjectInfoTable[[#This Row],[Control Incentives (pre-capping)]],\"\")),\n\nIF(ISNUMBER(FIND(\"Interior\",ProjectInfoTable[[#This Row],[Proposed Equipment]],1)),IF(LPDCodeToProposed>0.1,ProjectInfoTable[[#This Row],[Control Incentives (pre-capping)]],0),ProjectInfoTable[[#This Row],[Control Incentives (pre-capping)]]))))","v":""},{"$f":"IF(OR(ProjectInfoTable[[#This Row],[Control Incentives Per Unit]]=\"\",ProjectInfoTable[[#This Row],[Control TRL Unit]]=\"\"),\"\",IF(ProjectInfoTable[[#This Row],[Eligible Control Measure]]<>TRUE,\"Invalid Effective Date\",TEXT(ProjectInfoTable[[#This Row],[Control Incentives Per Unit]],\"$#,##0.00\")&\" / \"&ProjectInfoTable[[#This Row],[Control TRL Unit]]))","v":""},{"$f":"IF(ISNUMBER(FIND(\"SBE\",ProjectInfoTable[[#This Row],[Proposed Equipment]])),\"\",\n\nIF(LEN(ProjectInfoTable[[#This Row],[Proposed Equipment]])>\n\nIFERROR(FIND(\"]\",ProjectInfoTable[[#This Row],[Proposed Equipment]],1),0),\nSUBSTITUTE(\nIF(OR(ProjectInfoTable[[#This Row],[Control Method]]=\"separate\",ISNUMBER(FIND(\"Midstream\",ProjectInfoTable[[#This Row],[Fixture Measure]],1)),ISNUMBER(FIND(\"Midstream\",ProjectInfoTable[[#This Row],[Equipment Category]],1)),ISNUMBER(FIND(\"Prescriptive\",ProjectInfoTable[[#This Row],[Equipment Category]],1)),ISNUMBER(FIND(\"LED\",ProjectInfoTable[[#This Row],[Fixture Measure]],1)),ISNUMBER(FIND(\"LED Case\",ProjectInfoTable[[#This Row],[Fixture Measure]],1)),ISNUMBER(FIND(\"LED Decorative - Retrofit - WA\",ProjectInfoTable[[#This Row],[Fixture Measure]],1)),ISNUMBER(FIND(\"Lamp\",ProjectInfoTable[[#This Row],[Fixture Measure]],1)),ISNUMBER(FIND(\"Relamp\",ProjectInfoTable[[#This Row],[Fixture Measure]],1)),ISNUMBER(FIND(\"Wall Pack\",ProjectInfoTable[[#This Row],[Fixture Measure]],1)),ISNUMBER(FIND(\"Controls Only\",ProjectInfoTable[[#This Row],[Proposed Equipment]],1)),ISNUMBER(FIND(\"Re-Commissioning\",ProjectInfoTable[[#This Row],[Proposed Equipment]],1)),\n\nAND(OR(ISNUMBER(FIND(\"Exterior:\",ProjectInfoTable[[#This Row],[Proposed Equipment]],1)),ISNUMBER(FIND(\"Street:\",ProjectInfoTable[[#This Row],[Proposed Equipment]],1))),OR(ProjectState=\"ID\",ProjectState=\"UT\",ProjectState=\"WY\"))),\n\nIF(IFERROR(INDEX(ControlsLookup[],MATCH(IF(ProjectType=\"Retrofit\",LEFT(ProjectInfoTable[[#This Row],[Existing Equipment]],FIND(\":\",ProjectInfoTable[[#This Row],[Existing Equipment]],1)-1),LEFT(ProjectInfoTable[[#This Row],[Proposed Equipment]],FIND(\":\",ProjectInfoTable[[#This Row],[Proposed Equipment]],1)-1))&\"_\"&RIGHT(ProjectInfoTable[[#This Row],[Proposed Equipment]],LEN(ProjectInfoTable[[#This Row],[Proposed Equipment]])-FIND(\"]\",ProjectInfoTable[[#This Row],[Proposed Equipment]],1)-3),ControlsLookup[Controls Concatenate],0),MATCH(\n\nIF(ProjectType=\"Retrofit\",\"ControlMeasure_\",\"NCMRControlMeasure_\")&ProjectState,ControlsLookup[#Headers],0)),\"\")=0,\"\",\n\nIFERROR(INDEX(ControlsLookup[],MATCH(IF(ProjectType=\"Retrofit\",LEFT(ProjectInfoTable[[#This Row],[Existing Equipment]],FIND(\":\",ProjectInfoTable[[#This Row],[Existing Equipment]],1)-1),LEFT(ProjectInfoTable[[#This Row],[Proposed Equipment]],FIND(\":\",ProjectInfoTable[[#This Row],[Proposed Equipment]],1)-1))&\"_\"&RIGHT(ProjectInfoTable[[#This Row],[Proposed Equipment]],LEN(ProjectInfoTable[[#This Row],[Proposed Equipment]])-FIND(\"]\",ProjectInfoTable[[#This Row],[Proposed Equipment]],1)-3),ControlsLookup[Controls Concatenate],0),MATCH(\n\nIF(ProjectType=\"Retrofit\",\"ControlMeasure_\",\"NCMRControlMeasure_\")&ProjectState&IF(ProjectState=\"UT\",SegmentTag,\"\"),ControlsLookup[#Headers],0)),\"\")),\"\"),\"[NAMESUB]\",ProjectInfoTable[[#This Row],[Control Measure Name Sub]]),\"\"))","v":""},{"$f":"IF(ProjectInfoTable[[#This Row],[Proposed Equipment]]=\"\",\"\",IF(AND(ProjectState=\"UT\",ProjectType=\"Retrofit\",ISNUMBER(FIND(\"Re-Commissioning\",ProjectInfoTable[[#This Row],[Proposed Equipment]]))),\nIF(ProjectRecommissioning=\"only recommissioning\",\"Commissioning Only\",\"Commissioning w/ Lighting Upgrade\"),\"\"))","v":""},{"$f":"IFERROR(INDEX(INDIRECT(\"MeasureTable_\" & ProjectState & \"[Measure Reference Number]\"),MATCH(ProjectInfoTable[[#This Row],[Control Measure]],INDIRECT(\"MeasureTable_\" &ProjectState&\"[Measure Name]\"),0)),\"\")","v":""},{"$f":"IFERROR(\n    _xlfn.LET(\n        _xlpm.filteredVersions,\n            _xlfn._xlws.FILTER(\n                INDIRECT(\"MeasureTable_\" & ProjectState & \"[Version Number]\"),\n                (INDIRECT(\"MeasureTable_\" & ProjectState & \"[Measure Reference Number]\") = ProjectInfoTable[[#This Row],[Control Measure Reference Number]]) *\n                (INDIRECT(\"MeasureTable_\" & ProjectState & \"[Eligible Measure]\") = TRUE)\n            ),\n        INDEX(_xlpm.filteredVersions, 1)\n    ),\n    \"\"\n)","v":""},{"$f":"IFERROR(\n  _xlfn.LET(\n    _xlpm.refRange, INDIRECT(\"MeasureTable_\" & ProjectState & \"[Measure Reference Number]\"),\n    _xlpm.eligibleRange, INDIRECT(\"MeasureTable_\" & ProjectState & \"[Eligible Measure]\"),\n    _xlpm.countTrue, SUMPRODUCT(--(_xlpm.refRange = ProjectInfoTable[[#This Row],[Control Measure Reference Number]]), --(_xlpm.eligibleRange = TRUE)),\n    _xlpm.countNonBlank, SUMPRODUCT(--(_xlpm.refRange = ProjectInfoTable[[#This Row],[Control Measure Reference Number]]), --(_xlpm.eligibleRange <> \"\")),\n    IF(_xlpm.countNonBlank = 0, \"\", IF(_xlpm.countTrue >= 1, TRUE, FALSE))\n  ),\n  \"\"\n)","v":""},{"$f":"IF(ProjectInfoTable[[#This Row],[Proposed Equipment]]=\"\",\"\",IFERROR(INDEX(INDIRECT(\"EquipmentTable_\"&IF(ProjectType=\"Retrofit\",\"Retrofit_\",\"NCMR_\")&ProjectState&\"[controlMethod]\"),MATCH(LEFT(ProjectInfoTable[[#This Row],[Proposed Equipment]],FIND(\"[\",ProjectInfoTable[[#This Row],[Proposed Equipment]],1)-2),INDIRECT(\"EquipmentTable_\"&IF(ProjectType=\"Retrofit\",\"Retrofit_\",\"NCMR_\")&ProjectState&\"[equipmentProposed]\"),0)),\"\"))","v":""},{"$f":"IFERROR(VALUE(INDEX(INDIRECT(\"MeasureTable_\" & ProjectState & \"[CustomerIncentiveDollarperunit]\"),MATCH(ProjectInfoTable[[#This Row],[Control Measure]]&\" | TRUE\",INDIRECT(\"MeasureTable_\"&ProjectState&\"[MeasureEligibleConcatenate]\"),0))),\"\")","v":""},{"$f":"IFERROR(INDEX(INDIRECT(\"MeasureTable_\"&ProjectState&\"[SiteSpecificCalculation]\"),MATCH(ProjectInfoTable[[#This Row],[Control Measure]]&\" | TRUE\",INDIRECT(\"MeasureTable_\"&ProjectState&\"[MeasureEligibleConcatenate]\"),0)),\"\")","v":""},{"$f":"IFERROR(INDEX(INDIRECT(\"MeasureTable_\"&ProjectState&\"[GrossIncrementalAnnualElectricSavings ]\"),MATCH(ProjectInfoTable[[#This Row],[Control Measure]]&\" | TRUE\",INDIRECT(\"MeasureTable_\"&ProjectState&\"[MeasureEligibleConcatenate]\"),0)),\"\")","v":""},{"$f":"IFERROR(INDEX(INDIRECT(\"MeasureTable_\"&ProjectState&\"[GrossAverage onthly emand eduction]\"),MATCH(ProjectInfoTable[[#This Row],[Control Measure]]&\" | TRUE\",INDIRECT(\"MeasureTable_\"&ProjectState&\"[MeasureEligibleConcatenate]\"),0)),\"\")","v":""},{"$f":"IFERROR(INDEX(INDIRECT(\"MeasureTable_\"&ProjectState&\"[IncrementalMeasureCost]\"),MATCH(ProjectInfoTable[[#This Row],[Control Measure]]&\" | TRUE\",INDIRECT(\"MeasureTable_\"&ProjectState&\"[MeasureEligibleConcatenate]\"),0)),\"\")","v":""},{"$f":"IF(ProjectInfoTable[[#This Row],[Control Measure]]=\"\",\"\",IF(OR(ProjectInfoTable[[#This Row],[Control TRL Unit]]=\"Measure\",ProjectInfoTable[[#This Row],[Control TRL Unit]]=\"Linear ft.\"),IF(OR(ISNUMBER(FIND(\"Midstream\",ProjectInfoTable[[#This Row],[Control Measure]],1)),ISNUMBER(FIND(\"Lamp\",ProjectInfoTable[[#This Row],[Control Measure]],1))),ProjectInfoTable[[#This Row],[Quantity (Proposed)]]*ProjectInfoTable[[#This Row],[Lamps (Proposed)]],ProjectInfoTable[[#This Row],[Quantity (Proposed)]]),1))","v":""},{"$f":"IF(ProjectInfoTable[[#This Row],[Control Measure]]=\"\",\"\",IF(ISNUMBER(FIND(\"LF \",ProjectInfoTable[[#This Row],[Proposed Equipment]],1)),VALUE(RIGHT(LEFT(ProjectInfoTable[[#This Row],[Proposed Equipment]],FIND(\"LF \",ProjectInfoTable[[#This Row],[Proposed Equipment]],1)-1),LEN(LEFT(ProjectInfoTable[[#This Row],[Proposed Equipment]],FIND(\"LF \",ProjectInfoTable[[#This Row],[Proposed Equipment]],1)-1))-FIND(\"[\",ProjectInfoTable[[#This Row],[Proposed Equipment]],1))),IF(TRIM(UPPER(ProjectInfoTable[[#This Row],[Control TRL Unit]]))=\"WATT CONTROLLED\",IF(ISNUMBER(FIND(\"Controls Only\",ProjectInfoTable[[#This Row],[Proposed Equipment]],1)),IF(OR(ProjectType <> \"Retrofit\",ProjectInfoTable[[#This Row],[Space W (Proposed)]]>0),ProjectInfoTable[[#This Row],[Space W (Proposed)]],ProjectInfoTable[[#This Row],[Space W (Existing, Stipulated)]]),ProjectInfoTable[[#This Row],[Space W (Proposed)]]),IF(TRIM(UPPER(ProjectInfoTable[[#This Row],[Control TRL Unit]]))=\"KWH\",IF(ProjectInfoTable[[#This Row],[Control Measure kWh/yr Savings (Stipulated)]]=0,0,ROUND(ProjectInfoTable[[#This Row],[Control Measure kWh/yr Savings (Stipulated)]],2)),1))))","v":""},{"$f":"IFERROR(IF(LEN(ProjectInfoTable[[#This Row],[Proposed Equipment]])-(FIND(\"]\",ProjectInfoTable[[#This Row],[Proposed Equipment]],1))>0,\"Control(s)\",\"\"),\"\")","v":""},{"$f":"IFERROR(INDEX(INDIRECT(\"MeasureTable_\"&ProjectState&\"[Unit]\"),MATCH(ProjectInfoTable[[#This Row],[Control Measure]]&\" | TRUE\",INDIRECT(\"MeasureTable_\"&ProjectState&\"[MeasureEligibleConcatenate]\"),0)),\"\")","v":""},{"$f":"IFERROR(INDEX(INDIRECT(\"MeasureTable_\"&ProjectState&\"[ProjectCapPercent]\"),MATCH(ProjectInfoTable[[#This Row],[Control Measure]]&\" | TRUE\",INDIRECT(\"MeasureTable_\"&ProjectState&\"[MeasureEligibleConcatenate]\"),0)),\"\")","v":""},{"$f":"IF(OR(ProjectInfoTable[[#This Row],[Fixture Measure]]<>\"\",ProjectInfoTable[[#This Row],[Control Measure]]<>\"\"),1,\"\")","v":""},{"$f":"IF(ProjectInfoTable[[#This Row],[TRL Unit]]=\"\",\"\",IF(OR(ISNUMBER(SEARCH(\"measure\",ProjectInfoTable[[#This Row],[TRL Unit]])),ISNUMBER(SEARCH(\"linear ft\",ProjectInfoTable[[#This Row],[TRL Unit]])),ProjectInfoTable[[#This Row],[TRL Unit]]=0),990,991))","v":""},{"$f":"IFERROR(SUBSTITUTE(LEFT(ProjectInfoTable[[#This Row],[Proposed Equipment]],FIND(\"]\",ProjectInfoTable[[#This Row],[Proposed Equipment]],1)),\"Controls Only []\",\"\",1),\"\")","v":""},{"$f":"IF(ProjectInfoTable[[#This Row],[FixturesOnly]]=\"\",\"\",IF(ISNUMBER(FIND(\"L \",ProjectInfoTable[[#This Row],[Proposed Equipment]],1)),ProjectInfoTable[[#This Row],[Quantity (Proposed)]]*ProjectInfoTable[[#This Row],[Lamps (Proposed)]],ProjectInfoTable[[#This Row],[Quantity (Proposed)]]))","v":""},{"$f":"IFERROR(INDEX(ControlsLookup[Full Description],MATCH(RIGHT(ProjectInfoTable[[#This Row],[Proposed Equipment]],LEN(ProjectInfoTable[[#This Row],[Proposed Equipment]])-FIND(\"]\",ProjectInfoTable[[#This Row],[Proposed Equipment]],1)-3),ControlsLookup[Controls],0)),\"\")","v":""},{"$f":"IF(ProjectInfoTable[[#This Row],[ControlsOnly]]=\"\",\"\",IF(OR(ISNUMBER(FIND(\"Net\",ProjectInfoTable[[#This Row],[Proposed Equipment]],1)),ISNUMBER(FIND(\"Int\",ProjectInfoTable[[#This Row],[Proposed Equipment]],1))),ProjectInfoTable[[#This Row],[Quantity (Proposed)]],1))","v":""}]
[null,{"$f":"ROW(ProjectInfoTable[[#This Row],[OpSch]])-ROW(ProjectInfoTable[[#Headers],[OpSch]])","v":13},{"$f":"IFERROR(INDEX(RetrofitBaselineEquipment_Table[categoryBaseline],MATCH(RIGHT(LEFT(ProjectInfoTable[[#This Row],[Existing Equipment]],FIND(\" (\",ProjectInfoTable[[#This Row],[Existing Equipment]],1)-1),LEN(LEFT(ProjectInfoTable[[#This Row],[Existing Equipment]],FIND(\" (\",ProjectInfoTable[[#This Row],[Existing Equipment]],1)-1))-FIND(\": \",ProjectInfoTable[[#This Row],[Existing Equipment]],1)-1),RetrofitBaselineEquipment_Table[equipmentBaseline],0)),\"\")","v":""},null,null,null,null,{"$f":"IF(ProjectInfoTable[[#This Row],[Existing Equipment]]=\"\",\"\",IF(ISNUMBER(FIND(\"LF\",ProjectInfoTable[[#This Row],[Existing Equipment]],1)),1,IFERROR(VALUE(SUBSTITUTE(RIGHT(LEFT(ProjectInfoTable[[#This Row],[Existing Equipment]],FIND(\"L\",ProjectInfoTable[[#This Row],[Existing Equipment]],FIND(\"[\",ProjectInfoTable[[#This Row],[Existing Equipment]],1))-1),3),\"[\",\"\")),1)))","v":""},{"$f":"IF(ProjectInfoTable[[#This Row],[Existing Equipment]]=\"\",\"\",VALUE(SUBSTITUTE(RIGHT(LEFT(RIGHT(ProjectInfoTable[[#This Row],[Existing Equipment]],LEN(ProjectInfoTable[[#This Row],[Existing Equipment]])-IFERROR(FIND(\"[\",ProjectInfoTable[[#This Row],[Existing Equipment]],1),0)),IFERROR(FIND(\"W\",RIGHT(ProjectInfoTable[[#This Row],[Existing Equipment]],LEN(ProjectInfoTable[[#This Row],[Existing Equipment]])-IFERROR(FIND(\"[\",ProjectInfoTable[[#This Row],[Existing Equipment]],1),0)),1),0)),LEN(LEFT(RIGHT(ProjectInfoTable[[#This Row],[Existing Equipment]],LEN(ProjectInfoTable[[#This Row],[Existing Equipment]])-IFERROR(FIND(\"[\",ProjectInfoTable[[#This Row],[Existing Equipment]],1),0)),IFERROR(FIND(\"W\",RIGHT(ProjectInfoTable[[#This Row],[Existing Equipment]],LEN(ProjectInfoTable[[#This Row],[Existing Equipment]])-IFERROR(FIND(\"[\",ProjectInfoTable[[#This Row],[Existing Equipment]],1),0)),1),0)))-IFERROR(FIND(\"-\",LEFT(RIGHT(ProjectInfoTable[[#This Row],[Existing Equipment]],LEN(ProjectInfoTable[[#This Row],[Existing Equipment]])-IFERROR(FIND(\"[\",ProjectInfoTable[[#This Row],[Existing Equipment]],1),0)),IFERROR(FIND(\"W\",RIGHT(ProjectInfoTable[[#This Row],[Existing Equipment]],LEN(ProjectInfoTable[[#This Row],[Existing Equipment]])-IFERROR(FIND(\"[\",ProjectInfoTable[[#This Row],[Existing Equipment]],1),0)),1),0)),1),0)),\"W\",\"\")))","v":""},{"$f":"IF(ProjectInfoTable[[#This Row],[Existing Equipment]]=\"\",\"\",IF(AND(RIGHT(LEFT(ProjectInfoTable[[#This Row],[Existing Equipment]],FIND(\"]\",ProjectInfoTable[[#This Row],[Existing Equipment]],1)-1),1)<>\"W\"),IFERROR(TRIM(IF(IFERROR(FIND(\"FLT\",ProjectInfoTable[[#This Row],[Existing Equipment]],1),0)>0,LEFT(RIGHT(LEFT(ProjectInfoTable[[#This Row],[Existing Equipment]],FIND(\" (\",ProjectInfoTable[[#This Row],[Existing Equipment]],1)),LEN(LEFT(ProjectInfoTable[[#This Row],[Existing Equipment]],FIND(\" (\",ProjectInfoTable[[#This Row],[Existing Equipment]],1)))-FIND(\":\",ProjectInfoTable[[#This Row],[Existing Equipment]],1)-1),FIND(\" \",RIGHT(LEFT(ProjectInfoTable[[#This Row],[Existing Equipment]],FIND(\" (\",ProjectInfoTable[[#This Row],[Existing Equipment]],1)),LEN(LEFT(ProjectInfoTable[[#This Row],[Existing Equipment]],FIND(\" (\",ProjectInfoTable[[#This Row],[Existing Equipment]],1)))-FIND(\":\",ProjectInfoTable[[#This Row],[Existing Equipment]],1)-1),1)-1),RIGHT(LEFT(ProjectInfoTable[[#This Row],[Existing Equipment]],FIND(\" (\",ProjectInfoTable[[#This Row],[Existing Equipment]],1)),LEN(LEFT(ProjectInfoTable[[#This Row],[Existing Equipment]],FIND(\" (\",ProjectInfoTable[[#This Row],[Existing Equipment]],1)))-FIND(\":\",ProjectInfoTable[[#This Row],[Existing Equipment]],1)-1))&\" - \"&RIGHT(LEFT(ProjectInfoTable[[#This Row],[Existing Equipment]],FIND(\"]\",ProjectInfoTable[[#This Row],[Existing Equipment]],1)-1),LEN(LEFT(ProjectInfoTable[[#This Row],[Existing Equipment]],FIND(\"]\",ProjectInfoTable[[#This Row],[Existing Equipment]],1)-1))-FIND(\"W \",ProjectInfoTable[[#This Row],[Existing Equipment]],1)-3)),\"\"),\"\"))","v":""},{"$f":"IF(ProjectInfoTable[[#This Row],[Existing Equipment]]=\"\",\"\",IF(ProjectInfoTable[[#This Row],[Fixture/Ballast Check for Formula]]=\"\",IF(ISNUMBER(FIND(\"LF\",ProjectInfoTable[[#This Row],[Existing Equipment]],FIND(\"[\",ProjectInfoTable[[#This Row],[Existing Equipment]],1))),ProjectInfoTable[[#This Row],[Lamp W (Existing)]],ProjectInfoTable[[#This Row],[Lamps (Existing)]]*ProjectInfoTable[[#This Row],[Lamp W (Existing)]]),IFERROR(ROUND( ProjectInfoTable[[#This Row],[Lamps (Existing)]]*ProjectInfoTable[[#This Row],[Lamp W (Existing)]]*INDEX(FixtureWattageFormula_Table[A],MATCH(ProjectInfoTable[[#This Row],[Fixture/Ballast Check for Formula]],FixtureWattageFormula_Table[Concatenate],0))+INDEX(FixtureWattageFormula_Table[B],MATCH(ProjectInfoTable[[#This Row],[Fixture/Ballast Check for Formula]],FixtureWattageFormula_Table[Concatenate],0)),0),ProjectInfoTable[[#This Row],[Lamps (Existing)]]*ProjectInfoTable[[#This Row],[Lamp W (Existing)]])))","v":""},{"$f":"IF(OR(ISNUMBER(FIND(\"T8 \",ProjectInfoTable[[#This Row],[Existing Equipment]],1)),ISNUMBER(FIND(\"T5 \",ProjectInfoTable[[#This Row],[Existing Equipment]],1)),ISNUMBER(FIND(\"T12 \",ProjectInfoTable[[#This Row],[Existing Equipment]],1)),ISNUMBER(FIND(\"T12HO - 8\",ProjectInfoTable[[#This Row],[Existing Equipment]],1)),ISNUMBER(FIND(\"Incand\",ProjectInfoTable[[#This Row],[Existing Equipment]],1))),IFERROR(ROUND(INDEX(StipulatedWattage_Table[Stipulated fixture wattage],MATCH(MID(ProjectInfoTable[[#This Row],[Existing Equipment]],FIND(\"[\",ProjectInfoTable[[#This Row],[Existing Equipment]],1),FIND(\"]\",ProjectInfoTable[[#This Row],[Existing Equipment]],1)-FIND(\"[\",ProjectInfoTable[[#This Row],[Existing Equipment]],1)+1),StipulatedWattage_Table[Fixture Code],0)),0),ProjectInfoTable[[#This Row],[Fixture W (Existing, Actual)]]),ProjectInfoTable[[#This Row],[Fixture W (Existing, Actual)]])","v":""},{"$f":"IF(ProjectType=\"Retrofit\",IF(ProjectInfoTable[[#This Row],[Existing Equipment]]=\"\",\"\",ProjectInfoTable[[#This Row],[Quantity (Existing)]]*ProjectInfoTable[[#This Row],[Fixture W (Existing, Actual)]]),IF(ISNUMBER(FIND(\"Interior\",ProjectInfoTable[[#This Row],[Proposed Equipment]],1)),IF(ISNUMBER(FIND(\"Controls Only\",ProjectInfoTable[[#This Row],[Proposed Equipment]])),ProjectInfoTable[[#This Row],[Space W (Proposed)]],(AllowedWattage-SUMIFS(ProjectInfoTable[Space W (Proposed)],ProjectInfoTable[Proposed Equipment],\"*Interior*\",ProjectInfoTable[Proposed Equipment],\"*Controls Only*\"))*ProjectInfoTable[[#This Row],[Space W (Proposed)]]/(SUMIFS(ProjectInfoTable[Space W (Proposed)],ProjectInfoTable[Proposed Equipment],\"*Interior*\")-SUMIFS(ProjectInfoTable[Space W (Proposed)],ProjectInfoTable[Proposed Equipment],\"*Interior*\",ProjectInfoTable[Proposed Equipment],\"*Controls Only*\"))),\"\"))","v":""},{"$f":"IF(ProjectType=\"Retrofit\",IF(ProjectInfoTable[[#This Row],[Existing Equipment]]=\"\",\"\",ProjectInfoTable[[#This Row],[Quantity (Existing)]]*ProjectInfoTable[[#This Row],[Fixture W (Existing, Stipulated)]]),ProjectInfoTable[[#This Row],[Space W (Existing, Actual)]])","v":""},{"$f":"IFERROR(INDEX(OperatingHours_List,MATCH(ProjectInfoTable[[#This Row],[OpSch]],OperatingSchedules_List,0))*ProjectInfoTable[[#This Row],[Space W (Existing, Actual)]]/1000,\"\")","v":""},{"$f":"IFERROR(INDEX(OperatingHours_List,MATCH(ProjectInfoTable[[#This Row],[OpSch]],OperatingSchedules_List,0))*ProjectInfoTable[[#This Row],[Space W (Existing, Actual)]]/1000*(IFERROR(INDEX(ControlsLookup[],MATCH(RIGHT(ProjectInfoTable[[#This Row],[Existing Equipment]],LEN(ProjectInfoTable[[#This Row],[Existing Equipment]])-FIND(\"]\",ProjectInfoTable[[#This Row],[Existing Equipment]],1)-3),ControlsLookup[Controls],0),MATCH(\"CSF_\"&ProjectState,ControlsLookup[#Headers],0)),0))*-1,\"\")","v":""},{"$f":"IF(OR(ProjectInfoTable[[#This Row],[Fixture kWh (Existing, Actual)]]=\"\",ProjectInfoTable[[#This Row],[Control kWh (Existing, Actual)]]=\"\"),\"\",ProjectInfoTable[[#This Row],[Fixture kWh (Existing, Actual)]]+ProjectInfoTable[[#This Row],[Control kWh (Existing, Actual)]])","v":""},{"$f":"IFERROR(INDEX(OperatingHours_List,MATCH(ProjectInfoTable[[#This Row],[OpSch]],OperatingSchedules_List,0))*ProjectInfoTable[[#This Row],[Space W (Existing, Stipulated)]]/1000,\"\")","v":""},{"$f":"IFERROR(INDEX(OperatingHours_List,MATCH(ProjectInfoTable[[#This Row],[OpSch]],OperatingSchedules_List,0))*ProjectInfoTable[[#This Row],[Space W (Existing, Stipulated)]]/1000*(IFERROR(INDEX(ControlsLookup[],MATCH(RIGHT(ProjectInfoTable[[#This Row],[Existing Equipment]],LEN(ProjectInfoTable[[#This Row],[Existing Equipment]])-FIND(\"]\",ProjectInfoTable[[#This Row],[Existing Equipment]],1)-3),ControlsLookup[Controls],0),MATCH(\"CSF_\"&ProjectState,ControlsLookup[#Headers],0)),0))*-1,\"\")","v":""},{"$f":"IF(OR(ProjectInfoTable[[#This Row],[Fixture kWh (Existing, Stipulated)]]=\"\",ProjectInfoTable[[#This Row],[Control kWh (Existing, Stipulated)]]=\"\"),\"\",ProjectInfoTable[[#This Row],[Fixture kWh (Existing, Stipulated)]]+ProjectInfoTable[[#This Row],[Control kWh (Existing, Stipulated)]])","v":""},{"$f":"IF(\n AND(\n  OR(ProjectInfoTable[[#This Row],[Existing Equipment]]=\"\",ProjectInfoTable[[#This Row],[Quantity (Existing)]]=\"\"),\n  ProjectType=\"Retrofit\"\n ),\n \"\",\n IF(\n  ISNUMBER(FIND(\"Street:\",ProjectInfoTable[[#This Row],[Existing Equipment]],1)),\n  IF(\n   OR(\n    AND(ProjectState=\"UT\",RateSchedule=12),\n    AND(ProjectState=\"ID\",RateSchedule=12),\n    AND(ProjectState=\"WY\",RateSchedule=58)\n   ),\n   IFERROR(\n    INDEX(\n     StreetLightingRates_Table[],\n     MATCH(MID(ProjectInfoTable[[#This Row],[Existing Equipment]],FIND(\": \",ProjectInfoTable[[#This Row],[Existing Equipment]],1)+2,FIND(\" (\",ProjectInfoTable[[#This Row],[Existing Equipment]],1)-FIND(\": \",ProjectInfoTable[[#This Row],[Existing Equipment]],1)-2)&ProjectInfoTable[[#This Row],[Lamp W (Existing)]],StreetLightingRates_Table[TechWattage],0),\n     MATCH(ProjectState&RateSchedule,StreetLightingRates_Table[#Headers],0)\n    )\n    *\n    ProjectInfoTable[[#This Row],[Quantity (Existing)]]\n    *\n    ProjectInfoTable[[#This Row],[Lamps (Existing)]]\n    *\n    12,\n    ProjectInfoTable[[#This Row],[Space kWh (Existing, Actual)]]\n    *\n    INDEX(INDIRECT(\"RateSchedules_\"&ProjectState&\"_Table[kWh Rate]\"),MATCH(RateSchedule,INDIRECT(\"RateSchedules_\"&ProjectState&\"_Table[Rate Schedule]\"),0))\n   ),\n   IFERROR(\n    ProjectInfoTable[[#This Row],[Space kWh (Existing, Actual)]]*\n    INDEX(INDIRECT(\"RateSchedules_\"&ProjectState&\"_Table[kWh Rate]\"),MATCH(RateSchedule,INDIRECT(\"RateSchedules_\"&ProjectState&\"_Table[Rate Schedule]\"),0)),0)\n   +\n   IFERROR(IF(ISNUMBER(FIND(\"Interior:\",ProjectInfoTable[[#This Row],[Existing Equipment]],1)),\n    ProjectInfoTable[[#This Row],[Space W (Existing, Actual)]]/1000*12*DDF*\n    INDEX(INDIRECT(\"RateSchedules_\"&ProjectState&\"_Table[kW Rate]\"),MATCH(RateSchedule,INDIRECT(\"RateSchedules_\"&ProjectState&\"_Table[Rate Schedule]\"),0)),0),0)\n  ),\n  IFERROR(\n   ProjectInfoTable[[#This Row],[Space kWh (Existing, Actual)]]*\n   INDEX(INDIRECT(\"RateSchedules_\"&ProjectState&\"_Table[kWh Rate]\"),MATCH(RateSchedule,INDIRECT(\"RateSchedules_\"&ProjectState&\"_Table[Rate Schedule]\"),0)),\n   0\n  )\n  +\n  IFERROR(IF(OR(ISNUMBER(FIND(\"Interior:\",ProjectInfoTable[[#This Row],[Existing Equipment]],1)),AND(ProjectType<>\"Retrofit\",ISNUMBER(FIND(\"Interior:\",ProjectInfoTable[[#This Row],[Proposed Equipment]],1)))),\n   ProjectInfoTable[[#This Row],[Space W (Existing, Actual)]]/1000*12*DDF*\n   INDEX(INDIRECT(\"RateSchedules_\"&ProjectState&\"_Table[kW Rate]\"),MATCH(RateSchedule,INDIRECT(\"RateSchedules_\"&ProjectState&\"_Table[Rate Schedule]\"),0)),0),\n   0\n  )\n )\n)","v":0},{"$f":"IF(\n AND(\n  OR(ProjectInfoTable[[#This Row],[Existing Equipment]]=\"\",ProjectInfoTable[[#This Row],[Quantity (Existing)]]=\"\"),\n  ProjectType=\"Retrofit\"\n ),\n \"\",\n IF(\n  ISNUMBER(FIND(\"Street:\",ProjectInfoTable[[#This Row],[Existing Equipment]],1)),\n  IF(\n   OR(\n    AND(ProjectState=\"UT\",RateSchedule=12),\n    AND(ProjectState=\"ID\",RateSchedule=12),\n    AND(ProjectState=\"WY\",RateSchedule=58)\n   ),\n   IFERROR(\n    INDEX(\n     StreetLightingRates_Table[],\n     MATCH(MID(ProjectInfoTable[[#This Row],[Existing Equipment]],FIND(\": \",ProjectInfoTable[[#This Row],[Existing Equipment]],1)+2,FIND(\" (\",ProjectInfoTable[[#This Row],[Existing Equipment]],1)-FIND(\": \",ProjectInfoTable[[#This Row],[Existing Equipment]],1)-2)&ProjectInfoTable[[#This Row],[Lamp W (Existing)]],StreetLightingRates_Table[TechWattage],0),\n     MATCH(ProjectState&RateSchedule,StreetLightingRates_Table[#Headers],0)\n    )\n    *\n    ProjectInfoTable[[#This Row],[Quantity (Existing)]]\n    *\n    ProjectInfoTable[[#This Row],[Lamps (Existing)]]\n    *\n    12,\n    ProjectInfoTable[[#This Row],[Space kWh (Existing, Stipulated)]]\n    *\n    INDEX(INDIRECT(\"RateSchedules_\"&ProjectState&\"_Table[kWh Rate]\"),MATCH(RateSchedule,INDIRECT(\"RateSchedules_\"&ProjectState&\"_Table[Rate Schedule]\"),0))\n   ),\n   IFERROR(\n    ProjectInfoTable[[#This Row],[Space kWh (Existing, Stipulated)]]*\n    INDEX(INDIRECT(\"RateSchedules_\"&ProjectState&\"_Table[kWh Rate]\"),MATCH(RateSchedule,INDIRECT(\"RateSchedules_\"&ProjectState&\"_Table[Rate Schedule]\"),0)),0)\n   +\n   IFERROR(IF(ISNUMBER(FIND(\"Interior:\",ProjectInfoTable[[#This Row],[Existing Equipment]],1)),\n    ProjectInfoTable[[#This Row],[Space W (Existing, Stipulated)]]/1000*12*DDF*\n    INDEX(INDIRECT(\"RateSchedules_\"&ProjectState&\"_Table[kW Rate]\"),MATCH(RateSchedule,INDIRECT(\"RateSchedules_\"&ProjectState&\"_Table[Rate Schedule]\"),0)),0),0)\n  ),\n  IFERROR(\n   ProjectInfoTable[[#This Row],[Space kWh (Existing, Stipulated)]]*\n   INDEX(INDIRECT(\"RateSchedules_\"&ProjectState&\"_Table[kWh Rate]\"),MATCH(RateSchedule,INDIRECT(\"RateSchedules_\"&ProjectState&\"_Table[Rate Schedule]\"),0)),\n   0\n  )\n  +\n  IFERROR(IF(OR(ISNUMBER(FIND(\"Interior:\",ProjectInfoTable[[#This Row],[Existing Equipment]],1)),AND(ProjectType<>\"Retrofit\",ISNUMBER(FIND(\"Interior:\",ProjectInfoTable[[#This Row],[Proposed Equipment]],1)))),\n   ProjectInfoTable[[#This Row],[Space W (Existing, Stipulated)]]/1000*12*DDF*\n   INDEX(INDIRECT(\"RateSchedules_\"&ProjectState&\"_Table[kW Rate]\"),MATCH(RateSchedule,INDIRECT(\"RateSchedules_\"&ProjectState&\"_Table[Rate Schedule]\"),0)),0),\n   0\n  )\n )\n)","v":0},{"$f":"IF(ProjectType=\"Retrofit\",IFERROR(INDEX(RetrofitBaselineEquipment_Table[categoryBaseline],MATCH(RIGHT(LEFT(ProjectInfoTable[[#This Row],[Proposed Equipment]],FIND(\" (\",ProjectInfoTable[[#This Row],[Proposed Equipment]],1)-1),LEN(LEFT(ProjectInfoTable[[#This Row],[Proposed Equipment]],FIND(\" (\",ProjectInfoTable[[#This Row],[Proposed Equipment]],1)-1))-FIND(\": \",ProjectInfoTable[[#This Row],[Proposed Equipment]],1)-1),RetrofitBaselineEquipment_Table[equipmentBaseline],0)),\"\"),IFERROR(INDEX(#REF!,MATCH(RIGHT(LEFT(ProjectInfoTable[[#This Row],[Proposed Equipment]],FIND(\" (\",ProjectInfoTable[[#This Row],[Proposed Equipment]],1)-1),LEN(LEFT(ProjectInfoTable[[#This Row],[Proposed Equipment]],FIND(\" (\",ProjectInfoTable[[#This Row],[Proposed Equipment]],1)-1))-FIND(\": \",ProjectInfoTable[[#This Row],[Proposed Equipment]],1)-1),#REF!,0)),\"\"))","v":""},{"$f":"IF(ProjectInfoTable[[#This Row],[Proposed Equipment]]=\"\",\"\",IF(ISNUMBER(SEARCH(\"Controls Only\",ProjectInfoTable[[#This Row],[Proposed Equipment]])),\"Controls Only\",IF(ProjectType=\"Retrofit\",_xlfn.LET(_xlpm.k,LEFT(ProjectInfoTable[[#This Row],[Proposed Equipment]],FIND(\"[\",ProjectInfoTable[[#This Row],[Proposed Equipment]])-2),_xlpm.ep,_xlfn.SWITCH(ProjectState,\"UT\",EquipmentTable_Retrofit_UT[equipmentProposed],\"WY\",EquipmentTable_Retrofit_WY[equipmentProposed],\"ID\",EquipmentTable_Retrofit_ID[equipmentProposed]),_xlpm.cp,_xlfn.SWITCH(ProjectState,\"UT\",EquipmentTable_Retrofit_UT[categoryProposed],\"WY\",EquipmentTable_Retrofit_WY[categoryProposed],\"ID\",EquipmentTable_Retrofit_ID[categoryProposed]),_xlfn.XLOOKUP(_xlpm.k,_xlpm.ep,_xlpm.cp,\"Non-eligible fixture - Retrofit - \"&ProjectState)),_xlfn.LET(_xlpm.k,MID(ProjectInfoTable[[#This Row],[Proposed Equipment]],FIND(\": \",ProjectInfoTable[[#This Row],[Proposed Equipment]])+2,FIND(\" (\",ProjectInfoTable[[#This Row],[Proposed Equipment]])-(FIND(\": \",ProjectInfoTable[[#This Row],[Proposed Equipment]])+2)),_xlpm.ep,_xlfn.SWITCH(ProjectState,\"UT\",EquipmentTable_NCMR_UT[equipmentProposed],\"WY\",EquipmentTable_NCMR_WY[equipmentProposed],\"ID\",EquipmentTable_NCMR_ID[equipmentProposed]),_xlpm.cp,_xlfn.SWITCH(ProjectState,\"UT\",EquipmentTable_NCMR_UT[categoryProposed],\"WY\",EquipmentTable_NCMR_WY[categoryProposed],\"ID\",EquipmentTable_NCMR_ID[categoryProposed]),_xlfn.XLOOKUP(_xlpm.k,_xlpm.ep,_xlpm.cp,\"Non-eligible fixture - NCMR - \"&ProjectState)))))","v":""},null,null,"ü",{"$f":"IF(ProjectInfoTable[[#This Row],[Proposed Equipment]]=\"\",\"\",IF(ProjectInfoTable[[#This Row],[Measure Selection]]=\"\",0,IF(ISNUMBER(FIND(\"LF\",ProjectInfoTable[[#This Row],[Proposed Equipment]],1)),1,IFERROR(VALUE(SUBSTITUTE(RIGHT(LEFT(ProjectInfoTable[[#This Row],[Proposed Equipment]],FIND(\"L\",ProjectInfoTable[[#This Row],[Proposed Equipment]],FIND(\"[\",ProjectInfoTable[[#This Row],[Proposed Equipment]],1))-1),2),\"[\",\"\")),IFERROR(LEFT(RIGHT(ProjectInfoTable[[#This Row],[Proposed Equipment]],LEN(ProjectInfoTable[[#This Row],[Proposed Equipment]])-FIND(\"-lamp\",ProjectInfoTable[[#This Row],[Proposed Equipment]],1)+2),1),1)))))","v":""},{"$f":"IF(ProjectInfoTable[[#This Row],[Proposed Equipment]]=\"\",\"\",IF(ProjectInfoTable[[#This Row],[Measure Selection]]=\"\",0,IFERROR(\n\nIF(ISNUMBER(FIND(\"W]\",ProjectInfoTable[[#This Row],[Proposed Equipment]])),\nRIGHT(MID(ProjectInfoTable[[#This Row],[Proposed Equipment]],FIND(\"W]\",ProjectInfoTable[[#This Row],[Proposed Equipment]],FIND(\"[\",ProjectInfoTable[[#This Row],[Proposed Equipment]]))-7,7),\nLEN(MID(ProjectInfoTable[[#This Row],[Proposed Equipment]],FIND(\"W]\",ProjectInfoTable[[#This Row],[Proposed Equipment]],FIND(\"[\",ProjectInfoTable[[#This Row],[Proposed Equipment]]))-7,7)) -\nIFERROR(FIND(\" - \",MID(ProjectInfoTable[[#This Row],[Proposed Equipment]],FIND(\"W]\",ProjectInfoTable[[#This Row],[Proposed Equipment]],FIND(\"[\",ProjectInfoTable[[#This Row],[Proposed Equipment]]))-7,7))+2,\nFIND(\"[\",MID(ProjectInfoTable[[#This Row],[Proposed Equipment]],FIND(\"W]\",ProjectInfoTable[[#This Row],[Proposed Equipment]],FIND(\"[\",ProjectInfoTable[[#This Row],[Proposed Equipment]]))-7,7)))),\n\nIF(ISNUMBER(FIND(\"[\",MID(ProjectInfoTable[[#This Row],[Proposed Equipment]],FIND(\"W \",ProjectInfoTable[[#This Row],[Proposed Equipment]],FIND(\"[\",ProjectInfoTable[[#This Row],[Proposed Equipment]]))-7,7))),\nRIGHT(MID(ProjectInfoTable[[#This Row],[Proposed Equipment]],FIND(\"W \",ProjectInfoTable[[#This Row],[Proposed Equipment]],FIND(\"[\",ProjectInfoTable[[#This Row],[Proposed Equipment]]))-7,7),\nLEN(MID(ProjectInfoTable[[#This Row],[Proposed Equipment]],FIND(\"W \",ProjectInfoTable[[#This Row],[Proposed Equipment]],FIND(\"[\",ProjectInfoTable[[#This Row],[Proposed Equipment]]))-7,7)) -\nIFERROR(FIND(\" - \",MID(ProjectInfoTable[[#This Row],[Proposed Equipment]],FIND(\"W \",ProjectInfoTable[[#This Row],[Proposed Equipment]],FIND(\"[\",ProjectInfoTable[[#This Row],[Proposed Equipment]]))-7,7))+2,\nFIND(\"[\",MID(ProjectInfoTable[[#This Row],[Proposed Equipment]],FIND(\"W \",ProjectInfoTable[[#This Row],[Proposed Equipment]],FIND(\"[\",ProjectInfoTable[[#This Row],[Proposed Equipment]]))-7,7)))),\n\nRIGHT(MID(ProjectInfoTable[[#This Row],[Proposed Equipment]],FIND(\"W \",ProjectInfoTable[[#This Row],[Proposed Equipment]],FIND(\"[\",ProjectInfoTable[[#This Row],[Proposed Equipment]]))-7,7),\nLEN(MID(ProjectInfoTable[[#This Row],[Proposed Equipment]],FIND(\"W \",ProjectInfoTable[[#This Row],[Proposed Equipment]],FIND(\"[\",ProjectInfoTable[[#This Row],[Proposed Equipment]]))-7,7)) -\nFIND(\" - \",MID(ProjectInfoTable[[#This Row],[Proposed Equipment]],FIND(\"W \",ProjectInfoTable[[#This Row],[Proposed Equipment]],FIND(\"[\",ProjectInfoTable[[#This Row],[Proposed Equipment]]))-7,7))-2\n))),0)))","v":""},{"$f":"IF(ProjectInfoTable[[#This Row],[Proposed Equipment]]=\"\",\"\",IFERROR(ProjectInfoTable[[#This Row],[Lamps (Proposed)]]*ProjectInfoTable[[#This Row],[Lamp W (Proposed)]],\"\"))","v":""},{"$f":"IF(ProjectInfoTable[[#This Row],[Proposed Equipment]]=\"\",\"\",IFERROR(ProjectInfoTable[[#This Row],[Quantity (Proposed)]]*ProjectInfoTable[[#This Row],[Fixture W (Proposed)]],\"\"))","v":""},{"$f":"IFERROR(INDEX(OperatingHours_List,MATCH(ProjectInfoTable[[#This Row],[OpSch]],OperatingSchedules_List,0))*ProjectInfoTable[[#This Row],[Space W (Proposed)]]/1000,\"\")","v":""},{"$f":"IF(OR(ISNUMBER(FIND(\"Controls Only\",ProjectInfoTable[[#This Row],[Proposed Equipment]],1)),ProjectInfoTable[[#This Row],[ControlsOnly]]=\"Re-Commissioning\"),\"Controls Only\",IFERROR(INDEX(OperatingHours_List,MATCH(ProjectInfoTable[[#This Row],[OpSch]],OperatingSchedules_List,0))*ProjectInfoTable[[#This Row],[Space W (Proposed)]]/1000*(IFERROR(INDEX(ControlsLookup[],MATCH(SUBSTITUTE(RIGHT(ProjectInfoTable[[#This Row],[Proposed Equipment]],LEN(ProjectInfoTable[[#This Row],[Proposed Equipment]])-FIND(\"]\",ProjectInfoTable[[#This Row],[Proposed Equipment]],1)-3),\" reused\",\"\"),ControlsLookup[Controls],0),MATCH(\"CSF_\"&ProjectState,ControlsLookup[#Headers],0)),0))*-1,\"\"))","v":""},{"$f":"IF(OR(ProjectInfoTable[[#This Row],[Fixture kWh (Proposed)]]=\"\",ProjectInfoTable[[#This Row],[Control kWh (Proposed)]]=\"\"),\"\",IFERROR(ProjectInfoTable[[#This Row],[Fixture kWh (Proposed)]]+ProjectInfoTable[[#This Row],[Control kWh (Proposed)]],0))","v":""},{"$f":"IF(\n OR(\n  ProjectInfoTable[[#This Row],[Proposed Equipment]]=\"\",\n  ProjectInfoTable[[#This Row],[Quantity (Proposed)]]=\"\"\n ),\n \"\",\n IF(\n  AND(\n   OR(\n    AND(\n     ProjectState=\"UT\",\n     RateSchedule=12\n    ),\n    AND(\n     ProjectState=\"ID\",\n     RateSchedule=12\n    ),\n    AND(\n     ProjectState=\"WY\",\n     RateSchedule=58\n    )\n   ),\n   ISNUMBER(FIND(\"Street:\",ProjectInfoTable[[#This Row],[Existing Equipment]],1))\n  ),\n  IF(\n   AND(\n    RateSchedule=53,\n    ISNUMBER(FIND(\"LED\",ProjectInfoTable[[#This Row],[Proposed Equipment]],1))\n   ),\n   ProjectInfoTable[[#This Row],[Fixture kWh (Proposed)]]\n   *\n   INDEX(\n    INDIRECT(\"RateSchedules_\"&ProjectState&\"_Table[kWh Rate]\"),\n    MATCH(RateSchedule,INDIRECT(\"RateSchedules_\"&ProjectState&\"_Table[Rate Schedule]\"),0)\n   ),\n   IFERROR(INDEX(\n    StreetLightingRates_Table[],\n    MATCH(\"LED\"&IF(AND(ProjectInfoTable[[#This Row],[Fixture W (Proposed)]]>0,ProjectInfoTable[[#This Row],[Fixture W (Proposed)]]<=70),70,IF(AND(ProjectInfoTable[[#This Row],[Fixture W (Proposed)]]>70,ProjectInfoTable[[#This Row],[Fixture W (Proposed)]]<=100),100,IF(AND(ProjectInfoTable[[#This Row],[Fixture W (Proposed)]]>100,ProjectInfoTable[[#This Row],[Fixture W (Proposed)]]<=150),150,IF(AND(ProjectInfoTable[[#This Row],[Fixture W (Proposed)]]>150,ProjectInfoTable[[#This Row],[Fixture W (Proposed)]]<=200),200,IF(AND(ProjectInfoTable[[#This Row],[Fixture W (Proposed)]]>200,ProjectInfoTable[[#This Row],[Fixture W (Proposed)]]<=250),250,IF(AND(ProjectInfoTable[[#This Row],[Fixture W (Proposed)]]>250,ProjectInfoTable[[#This Row],[Fixture W (Proposed)]]<=400),400,\"\")))))),StreetLightingRates_Table[TechWattage],0),\n    MATCH(ProjectState&RateSchedule,StreetLightingRates_Table[#Headers],0)\n   )\n   *ProjectInfoTable[[#This Row],[Lamps (Proposed)]]*ProjectInfoTable[[#This Row],[Quantity (Proposed)]]*12,\n  ProjectInfoTable[[#This Row],[Space kWh (Proposed)]]*INDEX(INDIRECT(\"RateSchedules_\"&ProjectState&\"_Table[kWh Rate]\"),MATCH(RateSchedule,INDIRECT(\"RateSchedules_\"&ProjectState&\"_Table[Rate Schedule]\"),0)))),\n  IFERROR(ProjectInfoTable[[#This Row],[Space kWh (Proposed)]]*INDEX(INDIRECT(\"RateSchedules_\"&ProjectState&\"_Table[kWh Rate]\"),MATCH(RateSchedule,INDIRECT(\"RateSchedules_\"&ProjectState&\"_Table[Rate Schedule]\"),0)),0)\n  +\n  IF(OR(ISNUMBER(FIND(\"Exterior:\",ProjectInfoTable[[#This Row],[Existing Equipment]],1)),ISNUMBER(FIND(\"Street:\",ProjectInfoTable[[#This Row],[Existing Equipment]],1))),0,IFERROR(ProjectInfoTable[[#This Row],[Space W (Proposed)]]/1000*12*DDF*INDEX(INDIRECT(\"RateSchedules_\"&ProjectState&\"_Table[kW Rate]\"),MATCH(RateSchedule,INDIRECT(\"RateSchedules_\"&ProjectState&\"_Table[Rate Schedule]\"),0)),0))\n )\n)","v":""},{"$f":"IF(ProjectInfoTable[[#This Row],[Measure Selection]]=\"\",0,IF(ProjectType=\"Retrofit\",IFERROR((ProjectInfoTable[[#This Row],[Space W (Existing, Actual)]]-ProjectInfoTable[[#This Row],[Space W (Proposed)]])/ProjectInfoTable[[#This Row],[Space W (Existing, Actual)]],\"\"),IF(AND(ProjectInfoTable[[#This Row],[Proposed Equipment]]=\"\",ProjectInfoTable[[#This Row],[Quantity (Proposed)]]=\"\"),\"\",IFERROR((ProjectInfoTable[[#This Row],[Space W (Existing, Stipulated)]]-ProjectInfoTable[[#This Row],[Space W (Proposed)]])/ProjectInfoTable[[#This Row],[Space W (Existing, Stipulated)]],\"n/a\"))))","v":""},{"$f":"IF(ProjectInfoTable[[#This Row],[Measure Selection]]=\"\",0,IF(ProjectType=\"Retrofit\",IFERROR((ProjectInfoTable[[#This Row],[Space W (Existing, Stipulated)]]-ProjectInfoTable[[#This Row],[Space W (Proposed)]])/ProjectInfoTable[[#This Row],[Space W (Existing, Stipulated)]],\"\"),ProjectInfoTable[[#This Row],[% Wattage Reduction (Actual)]]))","v":""},{"$f":"IFERROR(IF(OR(ProjectInfoTable[[#This Row],[Measure Selection]]=\"\",ProjectInfoTable[[#This Row],[ControlsOnly]]=\"Re-Commissioning\"),0,IF(AND(ProjectType=\"Retrofit\",LEFT(ProjectInfoTable[[#This Row],[Existing Equipment]],FIND(\": \",ProjectInfoTable[[#This Row],[Existing Equipment]],1)-1)<>\"Interior\"),0,((ProjectInfoTable[[#This Row],[Space W (Existing, Actual)]]-ProjectInfoTable[[#This Row],[Space W (Proposed)]])/1000*DDF)-IF(ProjectInfoTable[[#This Row],[Midstream Measure Name]]<>\"\",IFERROR(ProjectInfoTable[[#This Row],[kW Per Unit (Midstream)]]*ProjectInfoTable[[#This Row],[Quantity]]*ProjectInfoTable[[#This Row],[No. of TRL Units]],0),0))),\"\")","v":""},{"$f":"IFERROR(IF(OR(ProjectInfoTable[[#This Row],[Measure Selection]]=\"\",ProjectInfoTable[[#This Row],[ControlsOnly]]=\"Re-Commissioning\"),0,IF(AND(ISNUMBER(VALUE(ProjectInfoTable[[#This Row],[kW Per Unit]])),ProjectInfoTable[[#This Row],[kW Per Unit]]<>0),ROUND(ProjectInfoTable[[#This Row],[kW Per Unit]]*ProjectInfoTable[[#This Row],[Quantity]]*ProjectInfoTable[[#This Row],[No. of TRL Units]],2),IF(OR(AND(ProjectType=\"Retrofit\",LEFT(ProjectInfoTable[[#This Row],[Existing Equipment]],FIND(\": \",ProjectInfoTable[[#This Row],[Existing Equipment]],1)-1)<>\"Interior\"),AND(ProjectInfoTable[[#This Row],[Incentives Per Unit]]=0,INDEX(StipulatedSavingsYesNo_Table[Stipulated Savings?],MATCH(ProjectState,StipulatedSavingsYesNo_Table[State],0))=\"No\")),0,IF(ISNUMBER(FIND(\"Controls Only\",ProjectInfoTable[[#This Row],[Proposed Equipment]],1)),0,ROUND(((ProjectInfoTable[[#This Row],[Space W (Existing, Stipulated)]]-ProjectInfoTable[[#This Row],[Space W (Proposed)]])/1000*DDF)-IF(ProjectInfoTable[[#This Row],[Midstream Measure Name]]<>\"\",IFERROR(ProjectInfoTable[[#This Row],[kW Per Unit (Midstream)]]*ProjectInfoTable[[#This Row],[Quantity]]*ProjectInfoTable[[#This Row],[No. of TRL Units]],0),0),2))))),\"\")","v":""},{"$f":"IFERROR(IF(OR(ProjectInfoTable[[#This Row],[Control kWh (Proposed)]]=\"Controls Only\",ProjectInfoTable[[#This Row],[Measure Selection]]=\"\"),0,ROUND((ProjectInfoTable[[#This Row],[Fixture kWh (Existing, Actual)]]-ProjectInfoTable[[#This Row],[Fixture kWh (Proposed)]])*IF(VALUE(SpaceTypesInfo_Table[[#Totals],[HVAC Effects]])=0,1,1+VALUE(SpaceTypesInfo_Table[[#Totals],[HVAC Effects]])),0)),\"\")","v":""},{"$f":"IFERROR(IF(ProjectInfoTable[[#This Row],[Control kWh (Proposed)]]=\"Controls Only\",ROUND(IFERROR(INDEX(OperatingHours_List,MATCH(ProjectInfoTable[[#This Row],[OpSch]],OperatingSchedules_List,0))*IF(OR(ProjectType <> \"Retrofit\",ProjectInfoTable[[#This Row],[Space W (Proposed)]]>0),ProjectInfoTable[[#This Row],[Space W (Proposed)]],ProjectInfoTable[[#This Row],[Space W (Existing, Actual)]])/1000*(IFERROR(INDEX(ControlsLookup[],MATCH(RIGHT(ProjectInfoTable[[#This Row],[Proposed Equipment]],LEN(ProjectInfoTable[[#This Row],[Proposed Equipment]])-FIND(\"]\",ProjectInfoTable[[#This Row],[Proposed Equipment]],1)-3),ControlsLookup[Controls],0),MATCH(\"CSF_\"&ProjectState,ControlsLookup[#Headers],0)),0))*IF(VALUE(SpaceTypesInfo_Table[[#Totals],[HVAC Effects]])=0,1,1+VALUE(SpaceTypesInfo_Table[[#Totals],[HVAC Effects]])),\"\"),0),ROUND(IFERROR((ProjectInfoTable[[#This Row],[Control kWh (Existing, Actual)]]-ProjectInfoTable[[#This Row],[Control kWh (Proposed)]])*IF(VALUE(SpaceTypesInfo_Table[[#Totals],[HVAC Effects]])=0,1,1+VALUE(SpaceTypesInfo_Table[[#Totals],[HVAC Effects]])),\"\"),0)),\"\")","v":""},{"$f":"IF(OR(ProjectInfoTable[[#This Row],[Proposed Equipment]]=\"\",ProjectInfoTable[[#This Row],[Quantity (Proposed)]]=\"\"),\"\",IF(ProjectInfoTable[[#This Row],[Fixture Measure]]=\"\",0,IF(AND(ProjectInfoTable[[#This Row],[Incentives Per Unit]]=0,INDEX(StipulatedSavingsYesNo_Table[Stipulated Savings?],MATCH(ProjectState,StipulatedSavingsYesNo_Table[State],0))=\"No\"),0,ProjectInfoTable[[#This Row],[Total   kWh/yr Savings (Actual)]]-ProjectInfoTable[[#This Row],[Control Measure kWh/yr Savings (Actual)]])))","v":""},{"$f":"IF(OR(ProjectInfoTable[[#This Row],[Proposed Equipment]]=\"\",ProjectInfoTable[[#This Row],[Quantity (Proposed)]]=\"\"),\"\",IF(ProjectInfoTable[[#This Row],[Control Measure]]=\"\",0,ProjectInfoTable[[#This Row],[Control kWh/yr Savings (Actual)]]))","v":""},{"$f":"IF(AND(ProjectInfoTable[[#This Row],[Incentives Per Unit]]=0,INDEX(StipulatedSavingsYesNo_Table[Stipulated Savings?],MATCH(ProjectState,StipulatedSavingsYesNo_Table[State],0))=\"No\"),ProjectInfoTable[[#This Row],[Fixture kWh/yr Savings (Actual)]]+IF(ProjectInfoTable[[#This Row],[Control Measure kWh/yr Savings (Actual)]]=0,0,ProjectInfoTable[[#This Row],[Control kWh/yr Savings (Actual)]]),IF(AND(ProjectInfoTable[[#This Row],[Fixture kWh/yr Savings (Actual)]]=\"\",ProjectInfoTable[[#This Row],[Control kWh/yr Savings (Actual)]]=\"\"),\"\",ROUND(IF(ProjectInfoTable[[#This Row],[Fixture kWh/yr Savings (Actual)]]=\"\",0,ProjectInfoTable[[#This Row],[Fixture kWh/yr Savings (Actual)]])+IF(ProjectInfoTable[[#This Row],[Control kWh/yr Savings (Actual)]]=\"\",0,ProjectInfoTable[[#This Row],[Control kWh/yr Savings (Actual)]])-IF(ProjectInfoTable[[#This Row],[Midstream Measure Name]]<>\"\",IFERROR(ProjectInfoTable[[#This Row],[kWh Per Unit (Midstream)]]*ProjectInfoTable[[#This Row],[Quantity]]*ProjectInfoTable[[#This Row],[No. of TRL Units]],0),0),0)))","v":""},{"$f":"IFERROR(IF(OR(ProjectInfoTable[[#This Row],[Measure Selection]]=\"\",ProjectInfoTable[[#This Row],[ControlsOnly]]=\"Re-Commissioning\"),0,IF(AND(ProjectInfoTable[[#This Row],[Incentives Per Unit]]=0,INDEX(StipulatedSavingsYesNo_Table[Stipulated Savings?],MATCH(ProjectState,StipulatedSavingsYesNo_Table[State],0))=\"No\"),0,IF(ISNUMBER(FIND(\"Controls Only\",ProjectInfoTable[[#This Row],[Proposed Equipment]],1)),0,ROUND((ProjectInfoTable[[#This Row],[Fixture kWh (Existing, Stipulated)]]-ProjectInfoTable[[#This Row],[Fixture kWh (Proposed)]])*IF(VALUE(SpaceTypesInfo_Table[[#Totals],[HVAC Effects]])=0,1,1+VALUE(SpaceTypesInfo_Table[[#Totals],[HVAC Effects]])),0)))),\"\")","v":""},{"$f":"IFERROR(IF(ProjectInfoTable[[#This Row],[Control kWh (Proposed)]]=\"Controls Only\",ROUND(IFERROR(INDEX(OperatingHours_List,MATCH(ProjectInfoTable[[#This Row],[OpSch]],OperatingSchedules_List,0))*IF(OR(ProjectType <> \"Retrofit\",ProjectInfoTable[[#This Row],[Space W (Proposed)]]>0),ProjectInfoTable[[#This Row],[Space W (Proposed)]],ProjectInfoTable[[#This Row],[Space W (Existing, Stipulated)]])/1000*(IFERROR(INDEX(ControlsLookup[],MATCH(RIGHT(ProjectInfoTable[[#This Row],[Proposed Equipment]],LEN(ProjectInfoTable[[#This Row],[Proposed Equipment]])-FIND(\"]\",ProjectInfoTable[[#This Row],[Proposed Equipment]],1)-3),ControlsLookup[Controls],0),MATCH(\"CSF_\"&ProjectState,ControlsLookup[#Headers],0)),0))*IF(VALUE(SpaceTypesInfo_Table[[#Totals],[HVAC Effects]])=0,1,1+VALUE(SpaceTypesInfo_Table[[#Totals],[HVAC Effects]])),\"\"),0),ROUND(IFERROR((ProjectInfoTable[[#This Row],[Control kWh (Existing, Stipulated)]]-ProjectInfoTable[[#This Row],[Control kWh (Proposed)]])*IF(VALUE(SpaceTypesInfo_Table[[#Totals],[HVAC Effects]])=0,1,1+VALUE(SpaceTypesInfo_Table[[#Totals],[HVAC Effects]])),INDEX(ControlsLookup[],MATCH(RIGHT(ProjectInfoTable[[#This Row],[Proposed Equipment]],LEN(ProjectInfoTable[[#This Row],[Proposed Equipment]])-FIND(\"-\",ProjectInfoTable[[#This Row],[Proposed Equipment]],LEN(ProjectInfoTable[[#This Row],[Proposed Equipment]])-15)-1),ControlsLookup[Controls],0),MATCH(\"CSF_\"&ProjectState,ControlsLookup[#Headers],0))*IF(NOT(ISNUMBER(VALUE(ProjectInfoTable[[#This Row],[kWh Per Unit]]))),ProjectInfoTable[[#This Row],[Fixture kWh/yr Savings (Stipulated)]],ProjectInfoTable[[#This Row],[kWh Per Unit]]*ProjectInfoTable[[#This Row],[Quantity]]*ProjectInfoTable[[#This Row],[No. of TRL Units]])),0)),IF(OR(ProjectType=\"New Construction\",ProjectType=\"Major Renovation\"),IF(ProjectInfoTable[[#This Row],[Control kWh (Proposed)]]=\"\",\"\",0),\"\"))","v":""},{"$f":"IF(OR(ProjectInfoTable[[#This Row],[Proposed Equipment]]=\"\",ProjectInfoTable[[#This Row],[Quantity (Proposed)]]=\"\"),\"\",IF(ProjectInfoTable[[#This Row],[Fixture Measure]]=\"\",0,IF(AND(ProjectInfoTable[[#This Row],[Incentives Per Unit]]=0,INDEX(StipulatedSavingsYesNo_Table[Stipulated Savings?],MATCH(ProjectState,StipulatedSavingsYesNo_Table[State],0))=\"No\"),0,ProjectInfoTable[[#This Row],[Total   kWh/yr Savings (Stipulated)]]-ProjectInfoTable[[#This Row],[Control Measure kWh/yr Savings (Stipulated)]])))","v":""},{"$f":"IF(OR(ProjectInfoTable[[#This Row],[Proposed Equipment]]=\"\",ProjectInfoTable[[#This Row],[Quantity (Proposed)]]=\"\"),\"\",IF(ProjectInfoTable[[#This Row],[Control Measure]]=\"\",0,IF(OR(ProjectType=\"New Construction\",ProjectType=\"Major Renovation\"),IFERROR(ROUND(ProjectInfoTable[[#This Row],[Control kWh Per Unit]]*ProjectInfoTable[[#This Row],[Control Quantity]]*ProjectInfoTable[[#This Row],[Control No. of TRL Units]],0),ProjectInfoTable[[#This Row],[Control kWh/yr Savings (Stipulated)]]),ProjectInfoTable[[#This Row],[Control kWh/yr Savings (Stipulated)]])))","v":""},{"$f":"IF(AND(ProjectInfoTable[[#This Row],[Incentives Per Unit]]=0,INDEX(StipulatedSavingsYesNo_Table[Stipulated Savings?],MATCH(ProjectState,StipulatedSavingsYesNo_Table[State],0))=\"No\"),ProjectInfoTable[[#This Row],[Fixture kWh/yr Savings (Stipulated)]]+IF(ProjectInfoTable[[#This Row],[Control Measure kWh/yr Savings (Stipulated)]]=0,0,ProjectInfoTable[[#This Row],[Control kWh/yr Savings (Stipulated)]]),IF(OR(ISNUMBER(VALUE(ProjectInfoTable[[#This Row],[kWh Per Unit]])),ISNUMBER(VALUE(ProjectInfoTable[[#This Row],[Control kWh Per Unit]]))),ROUND(IFERROR(ProjectInfoTable[[#This Row],[kWh Per Unit]]*ProjectInfoTable[[#This Row],[Quantity]]*ProjectInfoTable[[#This Row],[No. of TRL Units]],0)+IFERROR(ProjectInfoTable[[#This Row],[Control kWh Per Unit]]*ProjectInfoTable[[#This Row],[Control Quantity]]*ProjectInfoTable[[#This Row],[Control No. of TRL Units]],ProjectInfoTable[[#This Row],[Control kWh/yr Savings (Stipulated)]]),0),IF(AND(ProjectInfoTable[[#This Row],[Fixture kWh/yr Savings (Stipulated)]]=\"\",ProjectInfoTable[[#This Row],[Control kWh/yr Savings (Stipulated)]]=\"\"),\"\",ROUND(IF(ProjectInfoTable[[#This Row],[Fixture kWh/yr Savings (Stipulated)]]=\"\",0,ProjectInfoTable[[#This Row],[Fixture kWh/yr Savings (Stipulated)]])+IF(ProjectInfoTable[[#This Row],[Control kWh/yr Savings (Stipulated)]]=\"\",0,ProjectInfoTable[[#This Row],[Control kWh/yr Savings (Stipulated)]])-IF(ProjectInfoTable[[#This Row],[Midstream Measure Name]]<>\"\",IFERROR(ProjectInfoTable[[#This Row],[kWh Per Unit (Midstream)]]*ProjectInfoTable[[#This Row],[Quantity]]*ProjectInfoTable[[#This Row],[No. of TRL Units]],0),0),0))))","v":""},{"$f":"IF(OR(ISNUMBER(FIND(\"Midstream\",ProjectInfoTable[[#This Row],[Fixture Measure]])),ISNUMBER(FIND(\"SBDI\",ProjectInfoTable[[#This Row],[Fixture Measure]])),ISNUMBER(FIND(\"Small Bu\",ProjectInfoTable[[#This Row],[Fixture Measure]]))),\n\nIF(ProjectInfoTable[[#This Row],[Measure Selection]]=\"\",0,\n\nIF(ISNUMBER(FIND(\"/U]\",ProjectInfoTable[[#This Row],[Proposed Equipment]])),IFERROR(MID(ProjectInfoTable[[#This Row],[Proposed Equipment]],FIND(\"$\",ProjectInfoTable[[#This Row],[Proposed Equipment]],1)+1,FIND(\"/U]\",ProjectInfoTable[[#This Row],[Proposed Equipment]],1)-FIND(\"$\",ProjectInfoTable[[#This Row],[Proposed Equipment]],1)-1)*ProjectInfoTable[[#This Row],[Lamps (Proposed)]]*ProjectInfoTable[[#This Row],[Quantity (Proposed)]],0),\nIF(ISNUMBER(FIND(\"/U \",ProjectInfoTable[[#This Row],[Proposed Equipment]])),IFERROR(MID(ProjectInfoTable[[#This Row],[Proposed Equipment]],FIND(\"$\",ProjectInfoTable[[#This Row],[Proposed Equipment]],1)+1,FIND(\"/U \",ProjectInfoTable[[#This Row],[Proposed Equipment]],1)-FIND(\"$\",ProjectInfoTable[[#This Row],[Proposed Equipment]],1)-1)*ProjectInfoTable[[#This Row],[Lamps (Proposed)]]*ProjectInfoTable[[#This Row],[Quantity (Proposed)]],0),\nIFERROR(ProjectInfoTable[[#This Row],[Fixture Measure kWh/yr Savings (Stipulated)]]/SUM(ProjectInfoTable[Total   kWh/yr Savings (Stipulated)])*ProjectCost_Total,\"\")))),\"\")","v":""},{"$f":"IFERROR(IF(ProjectInfoTable[[#This Row],[Fixture Measure kWh/yr Savings (Stipulated)]]=0,0,IF(ProjectType=\"Retrofit\",IF(OR(ISNUMBER(FIND(\"Midstream\",ProjectInfoTable[[#This Row],[Fixture Measure]])),ISNUMBER(FIND(\"SBDI\",ProjectInfoTable[[#This Row],[Fixture Measure]])),ISNUMBER(FIND(\"Small Bu\",ProjectInfoTable[[#This Row],[Fixture Measure]]))),ProjectInfoTable[[#This Row],[Measure Cost (Direct)]],IFERROR(ProjectInfoTable[[#This Row],[Fixture Measure kWh/yr Savings (Stipulated)]]/kWhSavings_Typical_Stipulated*(ProjectCost_Total-SUM(ProjectInfoTable[Measure Cost (Direct)])),\"\")),IF(ProjectInfoTable[[#This Row],[Proposed Equipment]]=\"\",\"\",IFERROR(SpaceTypesInfo_Table[[#Totals],[NCMR Int Cost]]*ProjectInfoTable[[#This Row],[Fixture Measure kWh/yr Savings (Stipulated)]]/SUMIFS(ProjectInfoTable[Total   kWh/yr Savings (Stipulated)],ProjectInfoTable[Proposed Equipment],\"*Interior*\"),0)))),\"\")","v":""},{"$f":"IFERROR(\n IF(\n  ProjectInfoTable[[#This Row],[Control Measure kWh/yr Savings (Stipulated)]]=0,\n  0,\n  IF(\n   ProjectType=\"Retrofit\",\n    IFERROR(\n     ProjectInfoTable[[#This Row],[Control Measure kWh/yr Savings (Stipulated)]]\n     /\n     SUMIFS(ProjectInfoTable[Control Measure kWh/yr Savings (Stipulated)],ProjectInfoTable[Control Measure],\"<>\"\"\")\n     *\n     (ProjectCost_Total-SUM(ProjectInfoTable[Fixture Cost (Allocated)])),\n     \"\"\n    ),\nROUND(\n    IF(\n     ProjectInfoTable[[#This Row],[Proposed Equipment]]=\"\",\n     \"\",\n     IFERROR(\n      SpaceTypesInfo_Table[[#Totals],[NCMR Int Cost]]\n      *\n      ProjectInfoTable[[#This Row],[Control Measure kWh/yr Savings (Stipulated)]]\n      /\n      SUMIFS(ProjectInfoTable[Total   kWh/yr Savings (Stipulated)],ProjectInfoTable[Proposed Equipment],\"*Interior*\"),\n      0\n     )\n    ),\n    2\n   )\n  )\n ),\n \"\"\n)","v":""},{"$f":"IF(AND(ProjectInfoTable[[#This Row],[Fixture Cost (Allocated)]]=\"\",ProjectInfoTable[[#This Row],[Control Cost (Allocated)]]=\"\"),\"\",SUM(ProjectInfoTable[[#This Row],[Fixture Cost (Allocated)]:[Control Cost (Allocated)]]))","v":""},{"$f":"IFERROR(IF(OR(ProjectInfoTable[[#This Row],[Proposed Equipment]]=\"\",ProjectInfoTable[[#This Row],[Quantity (Proposed)]]=\"\"),\"\",IF(OR(ProjectInfoTable[[#This Row],[Measure Selection]]=\"\",ProjectInfoTable[[#This Row],[Control kWh (Proposed)]]=\"Controls Only\"),0,IF(NOT(ISNUMBER(FIND(\"Retrofit\",ProjectType,1))),ProjectInfoTable[[#This Row],[Fixture Energy Cost Savings (Stipulated)]],IF(AND(ProjectInfoTable[[#This Row],[Fixture Measure]]=\"\",ProjectInfoTable[[#This Row],[Control Measure]]<>\"\"),0,ROUND((ProjectInfoTable[[#This Row],[Total Energy Costs (Existing, Actual)]]-ProjectInfoTable[[#This Row],[Total Energy Costs (Proposed)]]),2))))),\"\")","v":""},{"$f":"IFERROR(IF(OR(ProjectInfoTable[[#This Row],[Proposed Equipment]]=\"\",ProjectInfoTable[[#This Row],[Quantity (Proposed)]]=\"\"),\"\",\n\nIF(ProjectInfoTable[[#This Row],[Control kWh (Proposed)]]=\"Controls Only\",ProjectInfoTable[[#This Row],[Control Measure kWh/yr Savings (Actual)]]*INDEX(INDIRECT(\"RateSchedules_\"&ProjectState&\"_Table[kWh Rate]\"),\nMATCH(RateSchedule,INDIRECT(\"RateSchedules_\"&ProjectState&\"_Table[Rate Schedule]\"),0)),\n\nIF(NOT(ISNUMBER(FIND(\"Retrofit\",ProjectType,1))),ProjectInfoTable[[#This Row],[Control Energy Cost Savings (Stipulated)]],IF(AND(ProjectInfoTable[[#This Row],[Fixture Measure]]=\"\",ProjectInfoTable[[#This Row],[Control Measure]]<>\"\"),ROUND((ProjectInfoTable[[#This Row],[Total Energy Costs (Existing, Actual)]]-ProjectInfoTable[[#This Row],[Total Energy Costs (Proposed)]]),2),ROUND((ProjectInfoTable[[#This Row],[Total Energy Costs (Existing, Actual)]]-ProjectInfoTable[[#This Row],[Total Energy Costs (Proposed)]]),2)*(ProjectInfoTable[[#This Row],[Control Measure kWh/yr Savings (Actual)]]/ProjectInfoTable[[#This Row],[Total   kWh/yr Savings (Actual)]]))))),\"\")","v":""},{"$f":"IF(OR(ProjectInfoTable[[#This Row],[Proposed Equipment]]=\"\",ProjectInfoTable[[#This Row],[Quantity (Proposed)]]=\"\"),\"\",ROUND(ProjectInfoTable[[#This Row],[Fixture Energy Cost Savings (Actual)]]+ProjectInfoTable[[#This Row],[Control Energy Cost Savings (Actual)]],2))","v":""},{"$f":"IF(OR(ProjectInfoTable[[#This Row],[Proposed Equipment]]=\"\",ProjectInfoTable[[#This Row],[Quantity (Proposed)]]=\"\"),\"\",IF(OR(ISNUMBER(VALUE(ProjectInfoTable[[#This Row],[kWh Per Unit]])),ISNUMBER(VALUE(ProjectInfoTable[[#This Row],[kW Per Unit]]))),IFERROR(ProjectInfoTable[[#This Row],[Fixture Measure kWh/yr Savings (Stipulated)]]*INDEX(INDIRECT(\"RateSchedules_\"&ProjectState&\"_Table[kWh Rate]\"),MATCH(RateSchedule,INDIRECT(\"RateSchedules_\"&ProjectState&\"_Table[Rate Schedule]\"),0)),0)+IFERROR(ProjectInfoTable[[#This Row],[kW Demand Reduction (Stipulated)]]/1000*12*INDEX(INDIRECT(\"RateSchedules_\"&ProjectState&\"_Table[kW Rate]\"),MATCH(RateSchedule,INDIRECT(\"RateSchedules_\"&ProjectState&\"_Table[Rate Schedule]\"),0)),0),IFERROR(ROUND((ProjectInfoTable[[#This Row],[Total Energy Costs (Existing, Stipulated)]]-ProjectInfoTable[[#This Row],[Total Energy Costs (Proposed)]])*ProjectInfoTable[[#This Row],[Fixture Measure kWh/yr Savings (Stipulated)]]/ProjectInfoTable[[#This Row],[Total   kWh/yr Savings (Stipulated)]],2),0)))","v":""},{"$f":"IF(OR(ProjectInfoTable[[#This Row],[Proposed Equipment]]=\"\",ProjectInfoTable[[#This Row],[Quantity (Proposed)]]=\"\"),\"\",\nIF(ProjectInfoTable[[#This Row],[Control kWh (Proposed)]]=\"Controls Only\",ProjectInfoTable[[#This Row],[Control Measure kWh/yr Savings (Stipulated)]]*INDEX(INDIRECT(\"RateSchedules_\"&ProjectState&\"_Table[kWh Rate]\"),\nMATCH(RateSchedule,INDIRECT(\"RateSchedules_\"&ProjectState&\"_Table[Rate Schedule]\"),0)),IF(OR(ISNUMBER(VALUE(ProjectInfoTable[[#This Row],[Control kWh Per Unit]])),\nISNUMBER(VALUE(ProjectInfoTable[[#This Row],[Control kW Per Unit]]))),IFERROR(ProjectInfoTable[[#This Row],[Control Measure kWh/yr Savings (Stipulated)]]*INDEX(INDIRECT(\"RateSchedules_\"&ProjectState&\"_Table[kWh Rate]\"),\nMATCH(RateSchedule,INDIRECT(\"RateSchedules_\"&ProjectState&\"_Table[Rate Schedule]\"),0)),0)+IFERROR(ProjectInfoTable[[#This Row],[kW Demand Reduction (Stipulated)]]/1000*12*\nINDEX(INDIRECT(\"RateSchedules_\"&ProjectState&\"_Table[kW Rate]\"),MATCH(RateSchedule,INDIRECT(\"RateSchedules_\"&ProjectState&\"_Table[Rate Schedule]\"),0)),0),\nIFERROR(ROUND((ProjectInfoTable[[#This Row],[Total Energy Costs (Existing, Stipulated)]]-ProjectInfoTable[[#This Row],[Total Energy Costs (Proposed)]])*ProjectInfoTable[[#This Row],[Control Measure kWh/yr Savings (Stipulated)]]/\nProjectInfoTable[[#This Row],[Total   kWh/yr Savings (Stipulated)]],2),0))))","v":""},{"$f":"IF(OR(ProjectInfoTable[[#This Row],[Proposed Equipment]]=\"\",ProjectInfoTable[[#This Row],[Quantity (Proposed)]]=\"\"),\"\",ROUND(ProjectInfoTable[[#This Row],[Fixture Energy Cost Savings (Stipulated)]]+ProjectInfoTable[[#This Row],[Control Energy Cost Savings (Stipulated)]],2))","v":""},{"$f":"IF(ProjectInfoTable[[#This Row],[OpSch]]=\"\",\"\",IF(OR(ProjectInfoTable[[#This Row],[Fixture Measure]]=\"\",ProjectInfoTable[[#This Row],[Eligible Fixture Measure]]<>TRUE),0,ProjectInfoTable[[#This Row],[Fixture Incentives (pre-capping)]])+IF(OR(ProjectInfoTable[[#This Row],[Control Measure]]=\"\",ProjectInfoTable[[#This Row],[Eligible Control Measure]]<>TRUE),0,ProjectInfoTable[[#This Row],[Control Incentives (pre-capping)]]))","v":""},{"$f":"IF(OR(ProjectInfoTable[[#This Row],[Fixture Measure]]<>\"\",ProjectInfoTable[[#This Row],[Control Measure]]<>\"\"),IF(ProjectInfoTable[[#This Row],[Fixture Incentives]]=\"\",0,ProjectInfoTable[[#This Row],[Fixture Incentives]])+IF(ProjectInfoTable[[#This Row],[Control Incentives]]=\"\",0,ProjectInfoTable[[#This Row],[Control Incentives]]),\"\")","v":""},null,{"$f":"IF(OR(ProjectInfoTable[[#This Row],[Fixture Measure]]=\"\",ProjectInfoTable[[#This Row],[OpSch]]=\"\",ProjectInfoTable[[#This Row],[Eligible Fixture Measure]]<>TRUE),\"\",\nIF(OR(ISNUMBER(FIND(\"SBDI\",ProjectInfoTable[[#This Row],[Fixture Measure]])),ISNUMBER(FIND(\"Small Bu\",ProjectInfoTable[[#This Row],[Fixture Measure]]))),IFERROR(0.75*ProjectInfoTable[[#This Row],[Fixture Cost (Allocated)]],\"cost error\"),\nIF(AND(OR(ProjectType=\"New Construction\",ProjectType=\"Major Renovation\"),LPDCodeToProposed<0.1,ISNUMBER(FIND(\"Interior\",ProjectInfoTable[[#This Row],[Proposed Equipment]],1))),0,IFERROR(ProjectInfoTable[[#This Row],[Incentives Per Unit]]*ProjectInfoTable[[#This Row],[Quantity]]*ProjectInfoTable[[#This Row],[No. of TRL Units]],\"TRL Error\"))))","v":""},{"$f":"IF(\n    OR(\n        ProjectInfoTable[[#This Row],[Fixture Measure]] = \"\",\n        ProjectInfoTable[[#This Row],[OpSch]] = \"\",\n        ProjectInfoTable[[#This Row],[Eligible Fixture Measure]] <> TRUE\n    ),\n    \"\",\n    IF(\n        OR(\n            ISNUMBER(FIND(\"SBDI\", ProjectInfoTable[[#This Row],[Fixture Measure]])),\n            ISNUMBER(FIND(\"Small Bu\", ProjectInfoTable[[#This Row],[Fixture Measure]]))\n        ),\n        IFERROR(\n            (Incentive_NonTypical / Incentive_NonTypical_PreCapped) * ProjectInfoTable[[#This Row],[Fixture Incentives (pre-capping)]],\n            \"\"\n        ),\n        IF(\n            AND(\n                ProjectType = \"Retrofit\",\n                ProjectState = \"UT\",\n                ISNUMBER(FIND(\"Post-Purchase\", ProjectInfoTable[[#This Row],[Fixture Measure]], 1))\n            ),\n            IFERROR(\n                MAX(\n                    MIN(\n                        ProjectInfoTable[[#This Row],[Fixture Incentives (pre-capping)]],\n                        ProjectInfoTable[[#This Row],[Fixture Cost (Allocated)]] * 0.7\n                    ),\n                    0\n                ),\n                0\n            ),\n            IF(\n                ProjectType = \"Retrofit\",\n                IF(\n                    ISNUMBER(FIND(\"Post-Purchase\", ProjectInfoTable[[#This Row],[Fixture Measure]], 1)),\n                    ProjectInfoTable[[#This Row],[Fixture Incentives (pre-capping)]],\n                    IFERROR(\n                        $BI$3 / $BH$3 * ProjectInfoTable[[#This Row],[Fixture Incentives (pre-capping)]],\n                        \"\"\n                    )\n                ),\n                IF(\n                    ISNUMBER(FIND(\"Interior\", ProjectInfoTable[[#This Row],[Proposed Equipment]], 1)),\n                    IF(\n                        LPDCodeToProposed > 0.1,\n                        ProjectInfoTable[[#This Row],[Fixture Incentives (pre-capping)]],\n                        0\n                    ),\n                    ProjectInfoTable[[#This Row],[Fixture Incentives (pre-capping)]]\n                )\n            )\n        )\n    )\n)","v":""},{"$f":"IF(OR(ProjectInfoTable[[#This Row],[Incentives Per Unit]]=\"\",ProjectInfoTable[[#This Row],[TRL Unit]]=\"\"),\"\",IF(ProjectInfoTable[[#This Row],[Eligible Fixture Measure]]<>TRUE,\"Invalid Effective Date\",\nIF(OR(ISNUMBER(FIND(\"SBDI\",ProjectInfoTable[[#This Row],[Fixture Measure]])),ISNUMBER(FIND(\"Small Bu\",ProjectInfoTable[[#This Row],[Fixture Measure]]))),\"$0.75 / dollar cost\",\nTEXT(ProjectInfoTable[[#This Row],[Incentives Per Unit]],\"$#,##0.00\")&\" / \"&IF(ProjectInfoTable[[#This Row],[Fixture Measure]]=\"\",\"\",IF(ProjectInfoTable[[#This Row],[TRL Unit]]=\"Measure\",IF(ISNUMBER(FIND(\"Relamp\",ProjectInfoTable[[#This Row],[Proposed Equipment]],1)),\"Lamp\",\"Fixture\"),ProjectInfoTable[[#This Row],[TRL Unit]])))))","v":""},{"$f":"IF(OR(ProjectInfoTable[[#This Row],[Proposed Equipment]]=\"\",ProjectInfoTable[[#This Row],[Quantity (Proposed)]]=\"\"),\"\",IFERROR(SUBSTITUTE(IF(ProjectType=\"Retrofit\",IF(OR(ISNUMBER(FIND(\"Controls On\",ProjectInfoTable[[#This Row],[Proposed Equipment]],1))),\"\",IF(OR(ProjectInfoTable[[#This Row],[Existing Equipment]]=\"\",ProjectInfoTable[[#This Row],[Proposed Equipment]]=\"\"),\"\",IF(ProjectState=\"UT\",IFERROR(IF(AlternativeEnergyOverride=\"Yes\",IFERROR(INDEX(INDIRECT(\"EquipmentTable_\"&\"Retrofit_\"&ProjectState&\"[#All]\"),MATCH(LEFT(ProjectInfoTable[[#This Row],[Proposed Equipment]],FIND(\"[\",ProjectInfoTable[[#This Row],[Proposed Equipment]],1)-2)&\" (Alt)\",INDIRECT(\"EquipmentTable_\"&\"Retrofit_\"&ProjectState&\"[equipmentProposed]\"),0)+1,MATCH(\"measureRetrofit_\"&LEFT(ProjectInfoTable[[#This Row],[Existing Equipment]],FIND(\":\",ProjectInfoTable[[#This Row],[Existing Equipment]],1)-1)&\"_\"&IF(IFERROR(INDEX(ControlsLookup[Rank],MATCH(RIGHT(ProjectInfoTable[[#This Row],[Proposed Equipment]],LEN(ProjectInfoTable[[#This Row],[Proposed Equipment]])-FIND(\"]\",ProjectInfoTable[[#This Row],[Proposed Equipment]],1)-3),ControlsLookup[Controls],0)),0)>IFERROR(INDEX(ControlsLookup[Rank],MATCH(RIGHT(ProjectInfoTable[[#This Row],[Existing Equipment]],LEN(ProjectInfoTable[[#This Row],[Existing Equipment]])-FIND(\"]\",ProjectInfoTable[[#This Row],[Existing Equipment]],1)-3),ControlsLookup[Controls],0)),0),INDEX(ControlsLookup[Controls Type],MATCH(LEFT(ProjectInfoTable[[#This Row],[Existing Equipment]],FIND(\":\",ProjectInfoTable[[#This Row],[Existing Equipment]],1)-1)&\"_\"&RIGHT(ProjectInfoTable[[#This Row],[Proposed Equipment]],LEN(ProjectInfoTable[[#This Row],[Proposed Equipment]])-FIND(\"]\",ProjectInfoTable[[#This Row],[Proposed Equipment]],1)-3),ControlsLookup[Controls Concatenate],0)),\"None\"),INDIRECT(\"EquipmentTable_\"&\"Retrofit_\"&ProjectState&\"[#Headers]\"),0)),INDEX(INDIRECT(\"EquipmentTable_\"&IF(ProjectType=\"Retrofit\",\"Retrofit_\",\"NCMR_\")&ProjectState&\"[#All]\"),MATCH(LEFT(ProjectInfoTable[[#This Row],[Proposed Equipment]],FIND(\"[\",ProjectInfoTable[[#This Row],[Proposed Equipment]],1)-2),INDIRECT(\"EquipmentTable_\"&\"Retrofit_\"&ProjectState&\"[equipmentProposed]\"),0)+1,MATCH(\"measureRetrofit_\"&LEFT(ProjectInfoTable[[#This Row],[Existing Equipment]],FIND(\":\",ProjectInfoTable[[#This Row],[Existing Equipment]],1)-1)&\"_\"&IF(IFERROR(INDEX(ControlsLookup[Rank],MATCH(RIGHT(ProjectInfoTable[[#This Row],[Proposed Equipment]],LEN(ProjectInfoTable[[#This Row],[Proposed Equipment]])-FIND(\"]\",ProjectInfoTable[[#This Row],[Proposed Equipment]],1)-3),ControlsLookup[Controls],0)),0)>IFERROR(INDEX(ControlsLookup[Rank],MATCH(RIGHT(ProjectInfoTable[[#This Row],[Existing Equipment]],LEN(ProjectInfoTable[[#This Row],[Existing Equipment]])-FIND(\"]\",ProjectInfoTable[[#This Row],[Existing Equipment]],1)-3),ControlsLookup[Controls],0)),0),INDEX(ControlsLookup[Controls Type],MATCH(LEFT(ProjectInfoTable[[#This Row],[Existing Equipment]],FIND(\":\",ProjectInfoTable[[#This Row],[Existing Equipment]],1)-1)&\"_\"&RIGHT(ProjectInfoTable[[#This Row],[Proposed Equipment]],LEN(ProjectInfoTable[[#This Row],[Proposed Equipment]])-FIND(\"]\",ProjectInfoTable[[#This Row],[Proposed Equipment]],1)-3),ControlsLookup[Controls Concatenate],0)),\"None\"),INDIRECT(\"EquipmentTable_\"&IF(ProjectType=\"Retrofit\",\"Retrofit_\",\"NCMR_\")&ProjectState&\"[#Headers]\"),0))),INDEX(INDIRECT(\"EquipmentTable_\"&IF(ProjectType=\"Retrofit\",\"Retrofit_\",\"NCMR_\")&ProjectState&\"[#All]\"),MATCH(LEFT(ProjectInfoTable[[#This Row],[Proposed Equipment]],FIND(\"[\",ProjectInfoTable[[#This Row],[Proposed Equipment]],1)-2),INDIRECT(\"EquipmentTable_\"&IF(ProjectType=\"Retrofit\",\"Retrofit_\",\"NCMR_\")&ProjectState&\"[equipmentProposed]\"),0)+1,MATCH(\"measureRetrofit_\"&IF(AND(SBDEligible=\"Yes\",ISNUMBER(FIND(\"SBE\",ProjectInfoTable[[#This Row],[Proposed Equipment]]))),\"SBE\",LEFT(ProjectInfoTable[[#This Row],[Existing Equipment]],FIND(\":\",ProjectInfoTable[[#This Row],[Existing Equipment]],1)-1)&\"_\"&IF(IFERROR(INDEX(ControlsLookup[Rank],MATCH(RIGHT(ProjectInfoTable[[#This Row],[Proposed Equipment]],LEN(ProjectInfoTable[[#This Row],[Proposed Equipment]])-FIND(\"]\",ProjectInfoTable[[#This Row],[Proposed Equipment]],1)-3),ControlsLookup[Controls],0)),0)>IFERROR(INDEX(ControlsLookup[Rank],MATCH(RIGHT(ProjectInfoTable[[#This Row],[Existing Equipment]],LEN(ProjectInfoTable[[#This Row],[Existing Equipment]])-FIND(\"]\",ProjectInfoTable[[#This Row],[Existing Equipment]],1)-3),ControlsLookup[Controls],0)),0),INDEX(ControlsLookup[Controls Type],MATCH(LEFT(ProjectInfoTable[[#This Row],[Existing Equipment]],FIND(\":\",ProjectInfoTable[[#This Row],[Existing Equipment]],1)-1)&\"_\"&RIGHT(ProjectInfoTable[[#This Row],[Proposed Equipment]],LEN(ProjectInfoTable[[#This Row],[Proposed Equipment]])-FIND(\"]\",ProjectInfoTable[[#This Row],[Proposed Equipment]],1)-3),ControlsLookup[Controls Concatenate],0)),\"None\")),INDIRECT(\"EquipmentTable_\"&\"Retrofit_\"&ProjectState&\"[#Headers]\"),0))),\"Non-eligible fixture - Retrofit - \"&ProjectState),IFERROR(INDEX(INDIRECT(\"EquipmentTable_\"&IF(SiteSpecificOverride=\"Yes\",\"PostPurchase_\",\"Retrofit_\")&ProjectState&\"[#All]\"),MATCH(LEFT(ProjectInfoTable[[#This Row],[Proposed Equipment]],FIND(\"[\",ProjectInfoTable[[#This Row],[Proposed Equipment]],1)-2),INDIRECT(\"EquipmentTable_\"&IF(SiteSpecificOverride=\"Yes\",\"PostPurchase_\",\"Retrofit_\")&ProjectState&\"[equipmentProposed]\"),0)+1,MATCH(\"measureRetrofit_\"&IF(AND(SBDEligible=\"Yes\",ISNUMBER(FIND(\"SBE\",ProjectInfoTable[[#This Row],[Proposed Equipment]]))),\"SBE\",LEFT(ProjectInfoTable[[#This Row],[Existing Equipment]],FIND(\":\",ProjectInfoTable[[#This Row],[Existing Equipment]],1)-1)&\"_\"&IF(IFERROR(INDEX(ControlsLookup[Rank],MATCH(RIGHT(ProjectInfoTable[[#This Row],[Proposed Equipment]],LEN(ProjectInfoTable[[#This Row],[Proposed Equipment]])-FIND(\"]\",ProjectInfoTable[[#This Row],[Proposed Equipment]],1)-3),ControlsLookup[Controls],0)),0)>IFERROR(INDEX(ControlsLookup[Rank],MATCH(RIGHT(ProjectInfoTable[[#This Row],[Existing Equipment]],LEN(ProjectInfoTable[[#This Row],[Existing Equipment]])-FIND(\"]\",ProjectInfoTable[[#This Row],[Existing Equipment]],1)-3),ControlsLookup[Controls],0)),0),INDEX(ControlsLookup[Controls Type],MATCH(LEFT(ProjectInfoTable[[#This Row],[Existing Equipment]],FIND(\":\",ProjectInfoTable[[#This Row],[Existing Equipment]],1)-1)&\"_\"&RIGHT(ProjectInfoTable[[#This Row],[Proposed Equipment]],LEN(ProjectInfoTable[[#This Row],[Proposed Equipment]])-FIND(\"]\",ProjectInfoTable[[#This Row],[Proposed Equipment]],1)-3),ControlsLookup[Controls Concatenate],0)),\"None\")),INDIRECT(\"EquipmentTable_\"&IF(SiteSpecificOverride=\"Yes\",\"PostPurchase_\",\"Retrofit_\")&ProjectState&\"[#Headers]\"),0)),\"Non-eligible fixture - Retrofit - \"&ProjectState)))),IFERROR(INDEX(INDIRECT(\"EquipmentTable_\"&\"NCMR_\"&ProjectState),MATCH(RIGHT(LEFT(ProjectInfoTable[[#This Row],[Proposed Equipment]],FIND(\" (\",ProjectInfoTable[[#This Row],[Proposed Equipment]],1)-1),LEN(LEFT(ProjectInfoTable[[#This Row],[Proposed Equipment]],FIND(\" (\",ProjectInfoTable[[#This Row],[Proposed Equipment]],1)-2))-FIND(\":\",ProjectInfoTable[[#This Row],[Proposed Equipment]],1)),INDIRECT(\"EquipmentTable_\"&\"NCMR_\"&ProjectState&\"[equipmentProposed]\"),0),MATCH(\"measureNCMR_\"&LEFT(ProjectInfoTable[[#This Row],[Proposed Equipment]],FIND(\":\",ProjectInfoTable[[#This Row],[Proposed Equipment]],1)-1)&\"_\"&IF(LEN(ProjectInfoTable[[#This Row],[Proposed Equipment]])>FIND(\"]\",ProjectInfoTable[[#This Row],[Proposed Equipment]]),INDEX(ControlsLookup[Controls Type],MATCH(LEFT(ProjectInfoTable[[#This Row],[Proposed Equipment]],FIND(\":\",ProjectInfoTable[[#This Row],[Proposed Equipment]],1)-1)&\"_\"&RIGHT(ProjectInfoTable[[#This Row],[Proposed Equipment]],LEN(ProjectInfoTable[[#This Row],[Proposed Equipment]])-FIND(\"]\",ProjectInfoTable[[#This Row],[Proposed Equipment]],1)-3),ControlsLookup[Controls Concatenate],0)),\"None\"),INDIRECT(\"EquipmentTable_\"&\"NCMR_\"&ProjectState&\"[#Headers]\"),0)),\"Non-eligible fixture - NCMR - \"&ProjectState)),\"[NAMESUB]\",ProjectInfoTable[[#This Row],[Measure Name Sub]]),\"Non-eligible fixture - Retrofit - \"&ProjectState))","v":""},{"$f":"IF(ISNUMBER(SEARCH(\"Case\",ProjectInfoTable[[#This Row],[Fixture Measure]])),CONCATENATE(ProjectInfoTable[[#This Row],[Fixture Measure]],ProjectInfoTable[[#This Row],[No. of TRL Units]],ProjectInfoTable[[#This Row],[Quantity]]),\"\")","v":""},{"$f":"IF(ProjectInfoTable[[#This Row],[Proposed Equipment]]=\"\",\"\",\nIF(AND(ProjectState = \"UT\",ISNUMBER(FIND(\" TLED \",ProjectInfoTable[[#This Row],[Proposed Equipment]]))),\nIF(VALUE(ProjectInfoTable[[#This Row],[Lamp W (Proposed)]])<20,\"< 20 W\",\nIF(AND(VALUE(ProjectInfoTable[[#This Row],[Lamp W (Proposed)]])<=39,VALUE(ProjectInfoTable[[#This Row],[Lamp W (Proposed)]])>=20),\">= 20 W and <= 39 W\",)),\n\nIF(AND(ProjectType=\"Retrofit\",OR(ISNUMBER(FIND(\"Retrofit Kit\",ProjectInfoTable[[#This Row],[Proposed Equipment]])),ISNUMBER(FIND(\"Fixture\",ProjectInfoTable[[#This Row],[Proposed Equipment]]))),OR(ISNUMBER(FIND(\"Exterior\",ProjectInfoTable[[#This Row],[Existing Equipment]])),ISNUMBER(FIND(\"Street\",ProjectInfoTable[[#This Row],[Existing Equipment]])))),\nIF(ProjectInfoTable[[#This Row],[Fixture W (Proposed)]]<50,\"< 50 W\",\nIF(AND(ProjectInfoTable[[#This Row],[Fixture W (Proposed)]]<90,ProjectInfoTable[[#This Row],[Fixture W (Proposed)]]>=50),\">= 50 W and < 90 W\",\nIF(AND(ProjectInfoTable[[#This Row],[Fixture W (Proposed)]]<135,ProjectInfoTable[[#This Row],[Fixture W (Proposed)]]>=90),\">= 90 W and < 135 W\",\nIF(AND(ProjectInfoTable[[#This Row],[Fixture W (Proposed)]]<220,ProjectInfoTable[[#This Row],[Fixture W (Proposed)]]>=135),\">= 135 W and < 220 W\",\nIF(ProjectInfoTable[[#This Row],[Fixture W (Proposed)]]>=220,\">= 220 W\"))))),\"\")))","v":""},{"$f":"IFERROR(INDEX(INDIRECT(\"MeasureTable_\" & ProjectState & \"[Measure Reference Number]\"),MATCH(ProjectInfoTable[[#This Row],[Fixture Measure]],INDIRECT(\"MeasureTable_\" &ProjectState&\"[Measure Name]\"),0)),\"\")","v":""},{"$f":"IFERROR(\n    _xlfn.LET(\n        _xlpm.filteredVersions,\n            _xlfn._xlws.FILTER(\n                INDIRECT(\"MeasureTable_\" & ProjectState & \"[Version Number]\"),\n                (INDIRECT(\"MeasureTable_\" & ProjectState & \"[Measure Reference Number]\") = ProjectInfoTable[[#This Row],[Fixture Measure Reference Number]]) *\n                (INDIRECT(\"MeasureTable_\" & ProjectState & \"[Eligible Measure]\") = TRUE)\n            ),\n        INDEX(_xlpm.filteredVersions, 1)\n    ),\n    \"\"\n)","v":""},{"$f":"IFERROR(\n  _xlfn.LET(\n    _xlpm.refRange, INDIRECT(\"MeasureTable_\" & ProjectState & \"[Measure Reference Number]\"),\n    _xlpm.eligibleRange, INDIRECT(\"MeasureTable_\" & ProjectState & \"[Eligible Measure]\"),\n    _xlpm.countTrue, SUMPRODUCT(--(_xlpm.refRange = ProjectInfoTable[[#This Row],[Fixture Measure Reference Number]]), --(_xlpm.eligibleRange = TRUE)),\n    _xlpm.countNonBlank, SUMPRODUCT(--(_xlpm.refRange = ProjectInfoTable[[#This Row],[Fixture Measure Reference Number]]), --(_xlpm.eligibleRange <> \"\")),\n    IF(_xlpm.countNonBlank = 0, \"\", IF(_xlpm.countTrue >= 1, TRUE, FALSE))\n  ),\n  \"\"\n)","v":""},{"$f":"IFERROR(VALUE(INDEX(INDIRECT(\"MeasureTable_\" & ProjectState & \"[CustomerIncentiveDollarperunit]\"),MATCH(ProjectInfoTable[[#This Row],[Fixture Measure]]&\" | TRUE\",INDIRECT(\"MeasureTable_\" &ProjectState&\"[MeasureEligibleConcatenate]\"),0))),\"\")","v":""},{"$f":"IFERROR(INDEX(INDIRECT(\"MeasureTable_\"&ProjectState&\"[SiteSpecificCalculation]\"),MATCH(ProjectInfoTable[[#This Row],[Fixture Measure]]&\" | TRUE\",INDIRECT(\"MeasureTable_\" &ProjectState&\"[MeasureEligibleConcatenate]\"),0)),\"\")","v":""},{"$f":"IFERROR(INDEX(INDIRECT(\"MeasureTable_\"&ProjectState&\"[GrossIncrementalAnnualElectricSavings]\"),MATCH(ProjectInfoTable[[#This Row],[Fixture Measure]]&\" | TRUE\",INDIRECT(\"MeasureTable_\" &ProjectState&\"[MeasureEligibleConcatenate]\"),0)),\"\")","v":""},{"$f":"IFERROR(INDEX(INDIRECT(\"MeasureTable_\"&ProjectState&\"[GrossAverageMonthlyDemandReduction]\"),MATCH(ProjectInfoTable[[#This Row],[Fixture Measure]]&\" | TRUE\",INDIRECT(\"MeasureTable_\" &ProjectState&\"[MeasureEligibleConcatenate]\"),0)),\"\")","v":""},{"$f":"IF(ProjectInfoTable[[#This Row],[Fixture Measure]]=\"\",\"\",IF(NOT(ISNUMBER(FIND(\"Site-Specific - Downstream\",ProjectInfoTable[[#This Row],[Fixture Measure]]))),\"\",\nIF(ISNUMBER(MATCH(SUBSTITUTE(ProjectInfoTable[[#This Row],[Fixture Measure]],\"Site-Specific - Downstream - v2\",\"Mid Market\"),INDIRECT(\"MeasureTable_\"&ProjectState&\"[Measure Name]\"),0)),\nSUBSTITUTE(ProjectInfoTable[[#This Row],[Fixture Measure]],\"Site-Specific - Downstream - v2\",\"Mid Market\"),\nSUBSTITUTE(ProjectInfoTable[[#This Row],[Fixture Measure]],\"Site-Specific - Downstream\",\"Mid Market\"))\n))","v":""},{"$f":"IF(ProjectInfoTable[[#This Row],[Midstream Measure Name]]=\"\",\"\",IFERROR(INDEX(INDIRECT(\"MeasureTable_\"&ProjectState&\"[GrossIncrementalAnnualElectricSavings ]\"),MATCH(ProjectInfoTable[[#This Row],[Midstream Measure Name]]&\" | TRUE\",INDIRECT(\"MeasureTable_\" &ProjectState&\"[MeasureEligibleConcatenate]\"),0)),\"\"))","v":""},{"$f":"IF(ProjectInfoTable[[#This Row],[Midstream Measure Name]]=\"\",\"\",IFERROR(INDEX(INDIRECT(\"MeasureTable_\"&ProjectState&\"[GrossAverage onthly emand eduction]\"),MATCH(ProjectInfoTable[[#This Row],[Midstream Measure Name]]&\" | TRUE\",INDIRECT(\"MeasureTable_\" &ProjectState&\"[MeasureEligibleConcatenate]\"),0)),\"\"))","v":""},{"$f":"IFERROR(INDEX(INDIRECT(\"MeasureTable_\"&ProjectState&\"[IncrementalMeasureCost]\"),MATCH(ProjectInfoTable[[#This Row],[Fixture Measure]]&\" | TRUE\",INDIRECT(\"MeasureTable_\" &ProjectState&\"[MeasureEligibleConcatenate]\"),0)),\"\")","v":""},{"$f":"IF(ProjectInfoTable[[#This Row],[Fixture Measure]]=\"\",\"\",IF(AND(ProjectState=\"UT\",ProjectInfoTable[[#This Row],[Measure Selection]]=\"\"),0,\nIF(OR(ISNUMBER(FIND(\"SBDI\",ProjectInfoTable[[#This Row],[Fixture Measure]])),ISNUMBER(FIND(\"Small Bu\",ProjectInfoTable[[#This Row],[Fixture Measure]]))),ProjectInfoTable[[#This Row],[Quantity (Proposed)]]*ProjectInfoTable[[#This Row],[Lamps (Proposed)]],\nIF(OR(ProjectInfoTable[[#This Row],[TRL Unit]]=\"Measure\",ProjectInfoTable[[#This Row],[TRL Unit]]=\"Linear ft.\"),IF(OR(ISNUMBER(FIND(\"Lamp\",ProjectInfoTable[[#This Row],[Fixture Measure]],1)),ISNUMBER(FIND(\"Relamp\",ProjectInfoTable[[#This Row],[Fixture Measure]],1)),ISNUMBER(FIND(\"Relamp\",ProjectInfoTable[[#This Row],[Proposed Equipment]],1))),ProjectInfoTable[[#This Row],[Quantity (Proposed)]]*ProjectInfoTable[[#This Row],[Lamps (Proposed)]],ProjectInfoTable[[#This Row],[Quantity (Proposed)]]),1))))","v":""},{"$f":"IF(ProjectInfoTable[[#This Row],[Fixture Measure]]=\"\",\"\",IF(AND(ProjectState=\"UT\",ProjectInfoTable[[#This Row],[Measure Selection]]=\"\"),0,\nIF(OR(ISNUMBER(FIND(\"SBDI\",ProjectInfoTable[[#This Row],[Fixture Measure]])),ISNUMBER(FIND(\"Small Bu\",ProjectInfoTable[[#This Row],[Fixture Measure]]))),1,\nIF(ISNUMBER(FIND(\"Controls Only\",ProjectInfoTable[[#This Row],[Proposed Equipment]],1)),IF(OR(ProjectType <> \"Retrofit\",ProjectInfoTable[[#This Row],[Space W (Proposed)]]>0),ProjectInfoTable[[#This Row],[Space W (Proposed)]],ProjectInfoTable[[#This Row],[Space W (Existing, Stipulated)]]),\nIF(TRIM(UPPER(ProjectInfoTable[[#This Row],[TRL Unit]]))=\"LINEAR FT.\",IF(OR(ISNUMBER(FIND(\"Marquee\",ProjectInfoTable[[#This Row],[Proposed Equipment]],1)),ISNUMBER(FIND(\"Cabinet\",ProjectInfoTable[[#This Row],[Proposed Equipment]],1))),VALUE(RIGHT(LEFT(ProjectInfoTable[[#This Row],[Existing Equipment]],FIND(\"LF \",ProjectInfoTable[[#This Row],[Existing Equipment]],1)-1),LEN(LEFT(ProjectInfoTable[[#This Row],[Existing Equipment]],FIND(\"LF \",ProjectInfoTable[[#This Row],[Existing Equipment]],1)-1))-FIND(\"[\",ProjectInfoTable[[#This Row],[Existing Equipment]],1))),VALUE(RIGHT(LEFT(ProjectInfoTable[[#This Row],[Proposed Equipment]],FIND(\"LF \",ProjectInfoTable[[#This Row],[Proposed Equipment]],1)-1),LEN(LEFT(ProjectInfoTable[[#This Row],[Proposed Equipment]],FIND(\"LF \",ProjectInfoTable[[#This Row],[Proposed Equipment]],1)-1))-FIND(\"[\",ProjectInfoTable[[#This Row],[Proposed Equipment]],1)))),\nIF(TRIM(UPPER(ProjectInfoTable[[#This Row],[TRL Unit]]))=\"KWH\",IF(ProjectInfoTable[[#This Row],[Fixture Measure kWh/yr Savings (Stipulated)]]=0,0,ROUND(ProjectInfoTable[[#This Row],[Fixture Measure kWh/yr Savings (Stipulated)]],2)),\nIF(TRIM(UPPER(ProjectInfoTable[[#This Row],[TRL Unit]]))=\"WATT REDUCED\",IF(ProjectInfoTable[[#This Row],[Fixture Measure kWh/yr Savings (Stipulated)]]=0,0,ROUND(ProjectInfoTable[[#This Row],[Space W (Existing, Stipulated)]]-ProjectInfoTable[[#This Row],[Space W (Proposed)]],2)),\nIF(TRIM(UPPER(ProjectInfoTable[[#This Row],[TRL Unit]]))=\"FIXTURE WATTAGE\",ProjectInfoTable[[#This Row],[Space W (Proposed)]],1))))))))","v":""},{"$f":"IFERROR(IF(OR(ISNUMBER(FIND(\"SBDI\",ProjectInfoTable[[#This Row],[Fixture Measure]])),ISNUMBER(FIND(\"Small Bu\",ProjectInfoTable[[#This Row],[Fixture Measure]]))),0,INDEX(INDIRECT(\"MeasureTable_\"&ProjectState&\"[Unit]\"),MATCH(ProjectInfoTable[[#This Row],[Fixture Measure]]&\" | TRUE\",INDIRECT(\"MeasureTable_\" &ProjectState&\"[MeasureEligibleConcatenate]\"),0))),\"\")","v":""},{"$f":"IF(ProjectInfoTable[[#This Row],[Fixture Measure]]=\"\",\"\",IF(OR(ISNUMBER(FIND(\"Lamp(s)\",ProjectInfoTable[[#This Row],[Fixture Measure]],1)),ISNUMBER(FIND(\"Relamp\",ProjectInfoTable[[#This Row],[Proposed Equipment]],1))),\"Lamp(s)\",\"Fixture(s)\"))","v":""},{"$f":"IFERROR(INDEX(INDIRECT(\"MeasureTable_\"&ProjectState&\"[ProjectCapPercent]\"),MATCH(ProjectInfoTable[[#This Row],[Fixture Measure]]&\" | TRUE\",INDIRECT(\"MeasureTable_\" &ProjectState&\"[MeasureEligibleConcatenate]\"),0)),\"\")","v":""},{"$f":"IF(OR(ProjectInfoTable[[#This Row],[Control Measure]]=\"\",ProjectInfoTable[[#This Row],[OpSch]]=\"\",ProjectInfoTable[[#This Row],[Eligible Control Measure]]<>TRUE),\"\",IF(AND(OR(ProjectType=\"New Construction\",ProjectType=\"Major Renovation\"),LPDCodeToProposed<0.1,ISNUMBER(FIND(\"Interior\",ProjectInfoTable[[#This Row],[Proposed Equipment]],1))),0,IFERROR(ProjectInfoTable[[#This Row],[Control Incentives Per Unit]]*ProjectInfoTable[[#This Row],[Control Quantity]]*ProjectInfoTable[[#This Row],[Control No. of TRL Units]],\"TRL Error\")))","v":""},{"$f":"IF(OR(ProjectInfoTable[[#This Row],[Control Measure]]=\"\",ProjectInfoTable[[#This Row],[OpSch]]=\"\",ProjectInfoTable[[#This Row],[Eligible Control Measure]]<>TRUE),\"\",IF(AND(ProjectType=\"Retrofit\",ProjectState=\"UT\",ISNUMBER(FIND(\"Post Purchase\",ProjectInfoTable[[#This Row],[Control Measure]],1))),\n\nIFERROR(MAX(MIN(ProjectInfoTable[[#This Row],[Control Incentives (pre-capping)]],ProjectInfoTable[[#This Row],[Control Cost (Allocated)]]*0.7),0),0),\n\nIF(ProjectType=\"Retrofit\",IF(ISNUMBER(FIND(\"Post Purchase\",ProjectInfoTable[[#This Row],[Control Measure]],1)),ProjectInfoTable[[#This Row],[Control Incentives (pre-capping)]],IFERROR($BI$3/$BH$3*ProjectInfoTable[[#This Row],[Control Incentives (pre-capping)]],\"\")),\n\nIF(ISNUMBER(FIND(\"Interior\",ProjectInfoTable[[#This Row],[Proposed Equipment]],1)),IF(LPDCodeToProposed>0.1,ProjectInfoTable[[#This Row],[Control Incentives (pre-capping)]],0),ProjectInfoTable[[#This Row],[Control Incentives (pre-capping)]]))))","v":""},{"$f":"IF(OR(ProjectInfoTable[[#This Row],[Control Incentives Per Unit]]=\"\",ProjectInfoTable[[#This Row],[Control TRL Unit]]=\"\"),\"\",IF(ProjectInfoTable[[#This Row],[Eligible Control Measure]]<>TRUE,\"Invalid Effective Date\",TEXT(ProjectInfoTable[[#This Row],[Control Incentives Per Unit]],\"$#,##0.00\")&\" / \"&ProjectInfoTable[[#This Row],[Control TRL Unit]]))","v":""},{"$f":"IF(ISNUMBER(FIND(\"SBE\",ProjectInfoTable[[#This Row],[Proposed Equipment]])),\"\",\n\nIF(LEN(ProjectInfoTable[[#This Row],[Proposed Equipment]])>\n\nIFERROR(FIND(\"]\",ProjectInfoTable[[#This Row],[Proposed Equipment]],1),0),\nSUBSTITUTE(\nIF(OR(ProjectInfoTable[[#This Row],[Control Method]]=\"separate\",ISNUMBER(FIND(\"Midstream\",ProjectInfoTable[[#This Row],[Fixture Measure]],1)),ISNUMBER(FIND(\"Midstream\",ProjectInfoTable[[#This Row],[Equipment Category]],1)),ISNUMBER(FIND(\"Prescriptive\",ProjectInfoTable[[#This Row],[Equipment Category]],1)),ISNUMBER(FIND(\"LED\",ProjectInfoTable[[#This Row],[Fixture Measure]],1)),ISNUMBER(FIND(\"LED Case\",ProjectInfoTable[[#This Row],[Fixture Measure]],1)),ISNUMBER(FIND(\"LED Decorative - Retrofit - WA\",ProjectInfoTable[[#This Row],[Fixture Measure]],1)),ISNUMBER(FIND(\"Lamp\",ProjectInfoTable[[#This Row],[Fixture Measure]],1)),ISNUMBER(FIND(\"Relamp\",ProjectInfoTable[[#This Row],[Fixture Measure]],1)),ISNUMBER(FIND(\"Wall Pack\",ProjectInfoTable[[#This Row],[Fixture Measure]],1)),ISNUMBER(FIND(\"Controls Only\",ProjectInfoTable[[#This Row],[Proposed Equipment]],1)),ISNUMBER(FIND(\"Re-Commissioning\",ProjectInfoTable[[#This Row],[Proposed Equipment]],1)),\n\nAND(OR(ISNUMBER(FIND(\"Exterior:\",ProjectInfoTable[[#This Row],[Proposed Equipment]],1)),ISNUMBER(FIND(\"Street:\",ProjectInfoTable[[#This Row],[Proposed Equipment]],1))),OR(ProjectState=\"ID\",ProjectState=\"UT\",ProjectState=\"WY\"))),\n\nIF(IFERROR(INDEX(ControlsLookup[],MATCH(IF(ProjectType=\"Retrofit\",LEFT(ProjectInfoTable[[#This Row],[Existing Equipment]],FIND(\":\",ProjectInfoTable[[#This Row],[Existing Equipment]],1)-1),LEFT(ProjectInfoTable[[#This Row],[Proposed Equipment]],FIND(\":\",ProjectInfoTable[[#This Row],[Proposed Equipment]],1)-1))&\"_\"&RIGHT(ProjectInfoTable[[#This Row],[Proposed Equipment]],LEN(ProjectInfoTable[[#This Row],[Proposed Equipment]])-FIND(\"]\",ProjectInfoTable[[#This Row],[Proposed Equipment]],1)-3),ControlsLookup[Controls Concatenate],0),MATCH(\n\nIF(ProjectType=\"Retrofit\",\"ControlMeasure_\",\"NCMRControlMeasure_\")&ProjectState,ControlsLookup[#Headers],0)),\"\")=0,\"\",\n\nIFERROR(INDEX(ControlsLookup[],MATCH(IF(ProjectType=\"Retrofit\",LEFT(ProjectInfoTable[[#This Row],[Existing Equipment]],FIND(\":\",ProjectInfoTable[[#This Row],[Existing Equipment]],1)-1),LEFT(ProjectInfoTable[[#This Row],[Proposed Equipment]],FIND(\":\",ProjectInfoTable[[#This Row],[Proposed Equipment]],1)-1))&\"_\"&RIGHT(ProjectInfoTable[[#This Row],[Proposed Equipment]],LEN(ProjectInfoTable[[#This Row],[Proposed Equipment]])-FIND(\"]\",ProjectInfoTable[[#This Row],[Proposed Equipment]],1)-3),ControlsLookup[Controls Concatenate],0),MATCH(\n\nIF(ProjectType=\"Retrofit\",\"ControlMeasure_\",\"NCMRControlMeasure_\")&ProjectState&IF(ProjectState=\"UT\",SegmentTag,\"\"),ControlsLookup[#Headers],0)),\"\")),\"\"),\"[NAMESUB]\",ProjectInfoTable[[#This Row],[Control Measure Name Sub]]),\"\"))","v":""},{"$f":"IF(ProjectInfoTable[[#This Row],[Proposed Equipment]]=\"\",\"\",IF(AND(ProjectState=\"UT\",ProjectType=\"Retrofit\",ISNUMBER(FIND(\"Re-Commissioning\",ProjectInfoTable[[#This Row],[Proposed Equipment]]))),\nIF(ProjectRecommissioning=\"only recommissioning\",\"Commissioning Only\",\"Commissioning w/ Lighting Upgrade\"),\"\"))","v":""},{"$f":"IFERROR(INDEX(INDIRECT(\"MeasureTable_\" & ProjectState & \"[Measure Reference Number]\"),MATCH(ProjectInfoTable[[#This Row],[Control Measure]],INDIRECT(\"MeasureTable_\" &ProjectState&\"[Measure Name]\"),0)),\"\")","v":""},{"$f":"IFERROR(\n    _xlfn.LET(\n        _xlpm.filteredVersions,\n            _xlfn._xlws.FILTER(\n                INDIRECT(\"MeasureTable_\" & ProjectState & \"[Version Number]\"),\n                (INDIRECT(\"MeasureTable_\" & ProjectState & \"[Measure Reference Number]\") = ProjectInfoTable[[#This Row],[Control Measure Reference Number]]) *\n                (INDIRECT(\"MeasureTable_\" & ProjectState & \"[Eligible Measure]\") = TRUE)\n            ),\n        INDEX(_xlpm.filteredVersions, 1)\n    ),\n    \"\"\n)","v":""},{"$f":"IFERROR(\n  _xlfn.LET(\n    _xlpm.refRange, INDIRECT(\"MeasureTable_\" & ProjectState & \"[Measure Reference Number]\"),\n    _xlpm.eligibleRange, INDIRECT(\"MeasureTable_\" & ProjectState & \"[Eligible Measure]\"),\n    _xlpm.countTrue, SUMPRODUCT(--(_xlpm.refRange = ProjectInfoTable[[#This Row],[Control Measure Reference Number]]), --(_xlpm.eligibleRange = TRUE)),\n    _xlpm.countNonBlank, SUMPRODUCT(--(_xlpm.refRange = ProjectInfoTable[[#This Row],[Control Measure Reference Number]]), --(_xlpm.eligibleRange <> \"\")),\n    IF(_xlpm.countNonBlank = 0, \"\", IF(_xlpm.countTrue >= 1, TRUE, FALSE))\n  ),\n  \"\"\n)","v":""},{"$f":"IF(ProjectInfoTable[[#This Row],[Proposed Equipment]]=\"\",\"\",IFERROR(INDEX(INDIRECT(\"EquipmentTable_\"&IF(ProjectType=\"Retrofit\",\"Retrofit_\",\"NCMR_\")&ProjectState&\"[controlMethod]\"),MATCH(LEFT(ProjectInfoTable[[#This Row],[Proposed Equipment]],FIND(\"[\",ProjectInfoTable[[#This Row],[Proposed Equipment]],1)-2),INDIRECT(\"EquipmentTable_\"&IF(ProjectType=\"Retrofit\",\"Retrofit_\",\"NCMR_\")&ProjectState&\"[equipmentProposed]\"),0)),\"\"))","v":""},{"$f":"IFERROR(VALUE(INDEX(INDIRECT(\"MeasureTable_\" & ProjectState & \"[CustomerIncentiveDollarperunit]\"),MATCH(ProjectInfoTable[[#This Row],[Control Measure]]&\" | TRUE\",INDIRECT(\"MeasureTable_\"&ProjectState&\"[MeasureEligibleConcatenate]\"),0))),\"\")","v":""},{"$f":"IFERROR(INDEX(INDIRECT(\"MeasureTable_\"&ProjectState&\"[SiteSpecificCalculation]\"),MATCH(ProjectInfoTable[[#This Row],[Control Measure]]&\" | TRUE\",INDIRECT(\"MeasureTable_\"&ProjectState&\"[MeasureEligibleConcatenate]\"),0)),\"\")","v":""},{"$f":"IFERROR(INDEX(INDIRECT(\"MeasureTable_\"&ProjectState&\"[GrossIncrementalAnnualElectricSavings ]\"),MATCH(ProjectInfoTable[[#This Row],[Control Measure]]&\" | TRUE\",INDIRECT(\"MeasureTable_\"&ProjectState&\"[MeasureEligibleConcatenate]\"),0)),\"\")","v":""},{"$f":"IFERROR(INDEX(INDIRECT(\"MeasureTable_\"&ProjectState&\"[GrossAverage onthly emand eduction]\"),MATCH(ProjectInfoTable[[#This Row],[Control Measure]]&\" | TRUE\",INDIRECT(\"MeasureTable_\"&ProjectState&\"[MeasureEligibleConcatenate]\"),0)),\"\")","v":""},{"$f":"IFERROR(INDEX(INDIRECT(\"MeasureTable_\"&ProjectState&\"[IncrementalMeasureCost]\"),MATCH(ProjectInfoTable[[#This Row],[Control Measure]]&\" | TRUE\",INDIRECT(\"MeasureTable_\"&ProjectState&\"[MeasureEligibleConcatenate]\"),0)),\"\")","v":""},{"$f":"IF(ProjectInfoTable[[#This Row],[Control Measure]]=\"\",\"\",IF(OR(ProjectInfoTable[[#This Row],[Control TRL Unit]]=\"Measure\",ProjectInfoTable[[#This Row],[Control TRL Unit]]=\"Linear ft.\"),IF(OR(ISNUMBER(FIND(\"Midstream\",ProjectInfoTable[[#This Row],[Control Measure]],1)),ISNUMBER(FIND(\"Lamp\",ProjectInfoTable[[#This Row],[Control Measure]],1))),ProjectInfoTable[[#This Row],[Quantity (Proposed)]]*ProjectInfoTable[[#This Row],[Lamps (Proposed)]],ProjectInfoTable[[#This Row],[Quantity (Proposed)]]),1))","v":""},{"$f":"IF(ProjectInfoTable[[#This Row],[Control Measure]]=\"\",\"\",IF(ISNUMBER(FIND(\"LF \",ProjectInfoTable[[#This Row],[Proposed Equipment]],1)),VALUE(RIGHT(LEFT(ProjectInfoTable[[#This Row],[Proposed Equipment]],FIND(\"LF \",ProjectInfoTable[[#This Row],[Proposed Equipment]],1)-1),LEN(LEFT(ProjectInfoTable[[#This Row],[Proposed Equipment]],FIND(\"LF \",ProjectInfoTable[[#This Row],[Proposed Equipment]],1)-1))-FIND(\"[\",ProjectInfoTable[[#This Row],[Proposed Equipment]],1))),IF(TRIM(UPPER(ProjectInfoTable[[#This Row],[Control TRL Unit]]))=\"WATT CONTROLLED\",IF(ISNUMBER(FIND(\"Controls Only\",ProjectInfoTable[[#This Row],[Proposed Equipment]],1)),IF(OR(ProjectType <> \"Retrofit\",ProjectInfoTable[[#This Row],[Space W (Proposed)]]>0),ProjectInfoTable[[#This Row],[Space W (Proposed)]],ProjectInfoTable[[#This Row],[Space W (Existing, Stipulated)]]),ProjectInfoTable[[#This Row],[Space W (Proposed)]]),IF(TRIM(UPPER(ProjectInfoTable[[#This Row],[Control TRL Unit]]))=\"KWH\",IF(ProjectInfoTable[[#This Row],[Control Measure kWh/yr Savings (Stipulated)]]=0,0,ROUND(ProjectInfoTable[[#This Row],[Control Measure kWh/yr Savings (Stipulated)]],2)),1))))","v":""},{"$f":"IFERROR(IF(LEN(ProjectInfoTable[[#This Row],[Proposed Equipment]])-(FIND(\"]\",ProjectInfoTable[[#This Row],[Proposed Equipment]],1))>0,\"Control(s)\",\"\"),\"\")","v":""},{"$f":"IFERROR(INDEX(INDIRECT(\"MeasureTable_\"&ProjectState&\"[Unit]\"),MATCH(ProjectInfoTable[[#This Row],[Control Measure]]&\" | TRUE\",INDIRECT(\"MeasureTable_\"&ProjectState&\"[MeasureEligibleConcatenate]\"),0)),\"\")","v":""},{"$f":"IFERROR(INDEX(INDIRECT(\"MeasureTable_\"&ProjectState&\"[ProjectCapPercent]\"),MATCH(ProjectInfoTable[[#This Row],[Control Measure]]&\" | TRUE\",INDIRECT(\"MeasureTable_\"&ProjectState&\"[MeasureEligibleConcatenate]\"),0)),\"\")","v":""},{"$f":"IF(OR(ProjectInfoTable[[#This Row],[Fixture Measure]]<>\"\",ProjectInfoTable[[#This Row],[Control Measure]]<>\"\"),1,\"\")","v":""},{"$f":"IF(ProjectInfoTable[[#This Row],[TRL Unit]]=\"\",\"\",IF(OR(ISNUMBER(SEARCH(\"measure\",ProjectInfoTable[[#This Row],[TRL Unit]])),ISNUMBER(SEARCH(\"linear ft\",ProjectInfoTable[[#This Row],[TRL Unit]])),ProjectInfoTable[[#This Row],[TRL Unit]]=0),990,991))","v":""},{"$f":"IFERROR(SUBSTITUTE(LEFT(ProjectInfoTable[[#This Row],[Proposed Equipment]],FIND(\"]\",ProjectInfoTable[[#This Row],[Proposed Equipment]],1)),\"Controls Only []\",\"\",1),\"\")","v":""},{"$f":"IF(ProjectInfoTable[[#This Row],[FixturesOnly]]=\"\",\"\",IF(ISNUMBER(FIND(\"L \",ProjectInfoTable[[#This Row],[Proposed Equipment]],1)),ProjectInfoTable[[#This Row],[Quantity (Proposed)]]*ProjectInfoTable[[#This Row],[Lamps (Proposed)]],ProjectInfoTable[[#This Row],[Quantity (Proposed)]]))","v":""},{"$f":"IFERROR(INDEX(ControlsLookup[Full Description],MATCH(RIGHT(ProjectInfoTable[[#This Row],[Proposed Equipment]],LEN(ProjectInfoTable[[#This Row],[Proposed Equipment]])-FIND(\"]\",ProjectInfoTable[[#This Row],[Proposed Equipment]],1)-3),ControlsLookup[Controls],0)),\"\")","v":""},{"$f":"IF(ProjectInfoTable[[#This Row],[ControlsOnly]]=\"\",\"\",IF(OR(ISNUMBER(FIND(\"Net\",ProjectInfoTable[[#This Row],[Proposed Equipment]],1)),ISNUMBER(FIND(\"Int\",ProjectInfoTable[[#This Row],[Proposed Equipment]],1))),ProjectInfoTable[[#This Row],[Quantity (Proposed)]],1))","v":""}]
[null,{"$f":"ROW(ProjectInfoTable[[#This Row],[OpSch]])-ROW(ProjectInfoTable[[#Headers],[OpSch]])","v":14},{"$f":"IFERROR(INDEX(RetrofitBaselineEquipment_Table[categoryBaseline],MATCH(RIGHT(LEFT(ProjectInfoTable[[#This Row],[Existing Equipment]],FIND(\" (\",ProjectInfoTable[[#This Row],[Existing Equipment]],1)-1),LEN(LEFT(ProjectInfoTable[[#This Row],[Existing Equipment]],FIND(\" (\",ProjectInfoTable[[#This Row],[Existing Equipment]],1)-1))-FIND(\": \",ProjectInfoTable[[#This Row],[Existing Equipment]],1)-1),RetrofitBaselineEquipment_Table[equipmentBaseline],0)),\"\")","v":""},null,null,null,null,{"$f":"IF(ProjectInfoTable[[#This Row],[Existing Equipment]]=\"\",\"\",IF(ISNUMBER(FIND(\"LF\",ProjectInfoTable[[#This Row],[Existing Equipment]],1)),1,IFERROR(VALUE(SUBSTITUTE(RIGHT(LEFT(ProjectInfoTable[[#This Row],[Existing Equipment]],FIND(\"L\",ProjectInfoTable[[#This Row],[Existing Equipment]],FIND(\"[\",ProjectInfoTable[[#This Row],[Existing Equipment]],1))-1),3),\"[\",\"\")),1)))","v":""},{"$f":"IF(ProjectInfoTable[[#This Row],[Existing Equipment]]=\"\",\"\",VALUE(SUBSTITUTE(RIGHT(LEFT(RIGHT(ProjectInfoTable[[#This Row],[Existing Equipment]],LEN(ProjectInfoTable[[#This Row],[Existing Equipment]])-IFERROR(FIND(\"[\",ProjectInfoTable[[#This Row],[Existing Equipment]],1),0)),IFERROR(FIND(\"W\",RIGHT(ProjectInfoTable[[#This Row],[Existing Equipment]],LEN(ProjectInfoTable[[#This Row],[Existing Equipment]])-IFERROR(FIND(\"[\",ProjectInfoTable[[#This Row],[Existing Equipment]],1),0)),1),0)),LEN(LEFT(RIGHT(ProjectInfoTable[[#This Row],[Existing Equipment]],LEN(ProjectInfoTable[[#This Row],[Existing Equipment]])-IFERROR(FIND(\"[\",ProjectInfoTable[[#This Row],[Existing Equipment]],1),0)),IFERROR(FIND(\"W\",RIGHT(ProjectInfoTable[[#This Row],[Existing Equipment]],LEN(ProjectInfoTable[[#This Row],[Existing Equipment]])-IFERROR(FIND(\"[\",ProjectInfoTable[[#This Row],[Existing Equipment]],1),0)),1),0)))-IFERROR(FIND(\"-\",LEFT(RIGHT(ProjectInfoTable[[#This Row],[Existing Equipment]],LEN(ProjectInfoTable[[#This Row],[Existing Equipment]])-IFERROR(FIND(\"[\",ProjectInfoTable[[#This Row],[Existing Equipment]],1),0)),IFERROR(FIND(\"W\",RIGHT(ProjectInfoTable[[#This Row],[Existing Equipment]],LEN(ProjectInfoTable[[#This Row],[Existing Equipment]])-IFERROR(FIND(\"[\",ProjectInfoTable[[#This Row],[Existing Equipment]],1),0)),1),0)),1),0)),\"W\",\"\")))","v":""},{"$f":"IF(ProjectInfoTable[[#This Row],[Existing Equipment]]=\"\",\"\",IF(AND(RIGHT(LEFT(ProjectInfoTable[[#This Row],[Existing Equipment]],FIND(\"]\",ProjectInfoTable[[#This Row],[Existing Equipment]],1)-1),1)<>\"W\"),IFERROR(TRIM(IF(IFERROR(FIND(\"FLT\",ProjectInfoTable[[#This Row],[Existing Equipment]],1),0)>0,LEFT(RIGHT(LEFT(ProjectInfoTable[[#This Row],[Existing Equipment]],FIND(\" (\",ProjectInfoTable[[#This Row],[Existing Equipment]],1)),LEN(LEFT(ProjectInfoTable[[#This Row],[Existing Equipment]],FIND(\" (\",ProjectInfoTable[[#This Row],[Existing Equipment]],1)))-FIND(\":\",ProjectInfoTable[[#This Row],[Existing Equipment]],1)-1),FIND(\" \",RIGHT(LEFT(ProjectInfoTable[[#This Row],[Existing Equipment]],FIND(\" (\",ProjectInfoTable[[#This Row],[Existing Equipment]],1)),LEN(LEFT(ProjectInfoTable[[#This Row],[Existing Equipment]],FIND(\" (\",ProjectInfoTable[[#This Row],[Existing Equipment]],1)))-FIND(\":\",ProjectInfoTable[[#This Row],[Existing Equipment]],1)-1),1)-1),RIGHT(LEFT(ProjectInfoTable[[#This Row],[Existing Equipment]],FIND(\" (\",ProjectInfoTable[[#This Row],[Existing Equipment]],1)),LEN(LEFT(ProjectInfoTable[[#This Row],[Existing Equipment]],FIND(\" (\",ProjectInfoTable[[#This Row],[Existing Equipment]],1)))-FIND(\":\",ProjectInfoTable[[#This Row],[Existing Equipment]],1)-1))&\" - \"&RIGHT(LEFT(ProjectInfoTable[[#This Row],[Existing Equipment]],FIND(\"]\",ProjectInfoTable[[#This Row],[Existing Equipment]],1)-1),LEN(LEFT(ProjectInfoTable[[#This Row],[Existing Equipment]],FIND(\"]\",ProjectInfoTable[[#This Row],[Existing Equipment]],1)-1))-FIND(\"W \",ProjectInfoTable[[#This Row],[Existing Equipment]],1)-3)),\"\"),\"\"))","v":""},{"$f":"IF(ProjectInfoTable[[#This Row],[Existing Equipment]]=\"\",\"\",IF(ProjectInfoTable[[#This Row],[Fixture/Ballast Check for Formula]]=\"\",IF(ISNUMBER(FIND(\"LF\",ProjectInfoTable[[#This Row],[Existing Equipment]],FIND(\"[\",ProjectInfoTable[[#This Row],[Existing Equipment]],1))),ProjectInfoTable[[#This Row],[Lamp W (Existing)]],ProjectInfoTable[[#This Row],[Lamps (Existing)]]*ProjectInfoTable[[#This Row],[Lamp W (Existing)]]),IFERROR(ROUND( ProjectInfoTable[[#This Row],[Lamps (Existing)]]*ProjectInfoTable[[#This Row],[Lamp W (Existing)]]*INDEX(FixtureWattageFormula_Table[A],MATCH(ProjectInfoTable[[#This Row],[Fixture/Ballast Check for Formula]],FixtureWattageFormula_Table[Concatenate],0))+INDEX(FixtureWattageFormula_Table[B],MATCH(ProjectInfoTable[[#This Row],[Fixture/Ballast Check for Formula]],FixtureWattageFormula_Table[Concatenate],0)),0),ProjectInfoTable[[#This Row],[Lamps (Existing)]]*ProjectInfoTable[[#This Row],[Lamp W (Existing)]])))","v":""},{"$f":"IF(OR(ISNUMBER(FIND(\"T8 \",ProjectInfoTable[[#This Row],[Existing Equipment]],1)),ISNUMBER(FIND(\"T5 \",ProjectInfoTable[[#This Row],[Existing Equipment]],1)),ISNUMBER(FIND(\"T12 \",ProjectInfoTable[[#This Row],[Existing Equipment]],1)),ISNUMBER(FIND(\"T12HO - 8\",ProjectInfoTable[[#This Row],[Existing Equipment]],1)),ISNUMBER(FIND(\"Incand\",ProjectInfoTable[[#This Row],[Existing Equipment]],1))),IFERROR(ROUND(INDEX(StipulatedWattage_Table[Stipulated fixture wattage],MATCH(MID(ProjectInfoTable[[#This Row],[Existing Equipment]],FIND(\"[\",ProjectInfoTable[[#This Row],[Existing Equipment]],1),FIND(\"]\",ProjectInfoTable[[#This Row],[Existing Equipment]],1)-FIND(\"[\",ProjectInfoTable[[#This Row],[Existing Equipment]],1)+1),StipulatedWattage_Table[Fixture Code],0)),0),ProjectInfoTable[[#This Row],[Fixture W (Existing, Actual)]]),ProjectInfoTable[[#This Row],[Fixture W (Existing, Actual)]])","v":""},{"$f":"IF(ProjectType=\"Retrofit\",IF(ProjectInfoTable[[#This Row],[Existing Equipment]]=\"\",\"\",ProjectInfoTable[[#This Row],[Quantity (Existing)]]*ProjectInfoTable[[#This Row],[Fixture W (Existing, Actual)]]),IF(ISNUMBER(FIND(\"Interior\",ProjectInfoTable[[#This Row],[Proposed Equipment]],1)),IF(ISNUMBER(FIND(\"Controls Only\",ProjectInfoTable[[#This Row],[Proposed Equipment]])),ProjectInfoTable[[#This Row],[Space W (Proposed)]],(AllowedWattage-SUMIFS(ProjectInfoTable[Space W (Proposed)],ProjectInfoTable[Proposed Equipment],\"*Interior*\",ProjectInfoTable[Proposed Equipment],\"*Controls Only*\"))*ProjectInfoTable[[#This Row],[Space W (Proposed)]]/(SUMIFS(ProjectInfoTable[Space W (Proposed)],ProjectInfoTable[Proposed Equipment],\"*Interior*\")-SUMIFS(ProjectInfoTable[Space W (Proposed)],ProjectInfoTable[Proposed Equipment],\"*Interior*\",ProjectInfoTable[Proposed Equipment],\"*Controls Only*\"))),\"\"))","v":""},{"$f":"IF(ProjectType=\"Retrofit\",IF(ProjectInfoTable[[#This Row],[Existing Equipment]]=\"\",\"\",ProjectInfoTable[[#This Row],[Quantity (Existing)]]*ProjectInfoTable[[#This Row],[Fixture W (Existing, Stipulated)]]),ProjectInfoTable[[#This Row],[Space W (Existing, Actual)]])","v":""},{"$f":"IFERROR(INDEX(OperatingHours_List,MATCH(ProjectInfoTable[[#This Row],[OpSch]],OperatingSchedules_List,0))*ProjectInfoTable[[#This Row],[Space W (Existing, Actual)]]/1000,\"\")","v":""},{"$f":"IFERROR(INDEX(OperatingHours_List,MATCH(ProjectInfoTable[[#This Row],[OpSch]],OperatingSchedules_List,0))*ProjectInfoTable[[#This Row],[Space W (Existing, Actual)]]/1000*(IFERROR(INDEX(ControlsLookup[],MATCH(RIGHT(ProjectInfoTable[[#This Row],[Existing Equipment]],LEN(ProjectInfoTable[[#This Row],[Existing Equipment]])-FIND(\"]\",ProjectInfoTable[[#This Row],[Existing Equipment]],1)-3),ControlsLookup[Controls],0),MATCH(\"CSF_\"&ProjectState,ControlsLookup[#Headers],0)),0))*-1,\"\")","v":""},{"$f":"IF(OR(ProjectInfoTable[[#This Row],[Fixture kWh (Existing, Actual)]]=\"\",ProjectInfoTable[[#This Row],[Control kWh (Existing, Actual)]]=\"\"),\"\",ProjectInfoTable[[#This Row],[Fixture kWh (Existing, Actual)]]+ProjectInfoTable[[#This Row],[Control kWh (Existing, Actual)]])","v":""},{"$f":"IFERROR(INDEX(OperatingHours_List,MATCH(ProjectInfoTable[[#This Row],[OpSch]],OperatingSchedules_List,0))*ProjectInfoTable[[#This Row],[Space W (Existing, Stipulated)]]/1000,\"\")","v":""},{"$f":"IFERROR(INDEX(OperatingHours_List,MATCH(ProjectInfoTable[[#This Row],[OpSch]],OperatingSchedules_List,0))*ProjectInfoTable[[#This Row],[Space W (Existing, Stipulated)]]/1000*(IFERROR(INDEX(ControlsLookup[],MATCH(RIGHT(ProjectInfoTable[[#This Row],[Existing Equipment]],LEN(ProjectInfoTable[[#This Row],[Existing Equipment]])-FIND(\"]\",ProjectInfoTable[[#This Row],[Existing Equipment]],1)-3),ControlsLookup[Controls],0),MATCH(\"CSF_\"&ProjectState,ControlsLookup[#Headers],0)),0))*-1,\"\")","v":""},{"$f":"IF(OR(ProjectInfoTable[[#This Row],[Fixture kWh (Existing, Stipulated)]]=\"\",ProjectInfoTable[[#This Row],[Control kWh (Existing, Stipulated)]]=\"\"),\"\",ProjectInfoTable[[#This Row],[Fixture kWh (Existing, Stipulated)]]+ProjectInfoTable[[#This Row],[Control kWh (Existing, Stipulated)]])","v":""},{"$f":"IF(\n AND(\n  OR(ProjectInfoTable[[#This Row],[Existing Equipment]]=\"\",ProjectInfoTable[[#This Row],[Quantity (Existing)]]=\"\"),\n  ProjectType=\"Retrofit\"\n ),\n \"\",\n IF(\n  ISNUMBER(FIND(\"Street:\",ProjectInfoTable[[#This Row],[Existing Equipment]],1)),\n  IF(\n   OR(\n    AND(ProjectState=\"UT\",RateSchedule=12),\n    AND(ProjectState=\"ID\",RateSchedule=12),\n    AND(ProjectState=\"WY\",RateSchedule=58)\n   ),\n   IFERROR(\n    INDEX(\n     StreetLightingRates_Table[],\n     MATCH(MID(ProjectInfoTable[[#This Row],[Existing Equipment]],FIND(\": \",ProjectInfoTable[[#This Row],[Existing Equipment]],1)+2,FIND(\" (\",ProjectInfoTable[[#This Row],[Existing Equipment]],1)-FIND(\": \",ProjectInfoTable[[#This Row],[Existing Equipment]],1)-2)&ProjectInfoTable[[#This Row],[Lamp W (Existing)]],StreetLightingRates_Table[TechWattage],0),\n     MATCH(ProjectState&RateSchedule,StreetLightingRates_Table[#Headers],0)\n    )\n    *\n    ProjectInfoTable[[#This Row],[Quantity (Existing)]]\n    *\n    ProjectInfoTable[[#This Row],[Lamps (Existing)]]\n    *\n    12,\n    ProjectInfoTable[[#This Row],[Space kWh (Existing, Actual)]]\n    *\n    INDEX(INDIRECT(\"RateSchedules_\"&ProjectState&\"_Table[kWh Rate]\"),MATCH(RateSchedule,INDIRECT(\"RateSchedules_\"&ProjectState&\"_Table[Rate Schedule]\"),0))\n   ),\n   IFERROR(\n    ProjectInfoTable[[#This Row],[Space kWh (Existing, Actual)]]*\n    INDEX(INDIRECT(\"RateSchedules_\"&ProjectState&\"_Table[kWh Rate]\"),MATCH(RateSchedule,INDIRECT(\"RateSchedules_\"&ProjectState&\"_Table[Rate Schedule]\"),0)),0)\n   +\n   IFERROR(IF(ISNUMBER(FIND(\"Interior:\",ProjectInfoTable[[#This Row],[Existing Equipment]],1)),\n    ProjectInfoTable[[#This Row],[Space W (Existing, Actual)]]/1000*12*DDF*\n    INDEX(INDIRECT(\"RateSchedules_\"&ProjectState&\"_Table[kW Rate]\"),MATCH(RateSchedule,INDIRECT(\"RateSchedules_\"&ProjectState&\"_Table[Rate Schedule]\"),0)),0),0)\n  ),\n  IFERROR(\n   ProjectInfoTable[[#This Row],[Space kWh (Existing, Actual)]]*\n   INDEX(INDIRECT(\"RateSchedules_\"&ProjectState&\"_Table[kWh Rate]\"),MATCH(RateSchedule,INDIRECT(\"RateSchedules_\"&ProjectState&\"_Table[Rate Schedule]\"),0)),\n   0\n  )\n  +\n  IFERROR(IF(OR(ISNUMBER(FIND(\"Interior:\",ProjectInfoTable[[#This Row],[Existing Equipment]],1)),AND(ProjectType<>\"Retrofit\",ISNUMBER(FIND(\"Interior:\",ProjectInfoTable[[#This Row],[Proposed Equipment]],1)))),\n   ProjectInfoTable[[#This Row],[Space W (Existing, Actual)]]/1000*12*DDF*\n   INDEX(INDIRECT(\"RateSchedules_\"&ProjectState&\"_Table[kW Rate]\"),MATCH(RateSchedule,INDIRECT(\"RateSchedules_\"&ProjectState&\"_Table[Rate Schedule]\"),0)),0),\n   0\n  )\n )\n)","v":0},{"$f":"IF(\n AND(\n  OR(ProjectInfoTable[[#This Row],[Existing Equipment]]=\"\",ProjectInfoTable[[#This Row],[Quantity (Existing)]]=\"\"),\n  ProjectType=\"Retrofit\"\n ),\n \"\",\n IF(\n  ISNUMBER(FIND(\"Street:\",ProjectInfoTable[[#This Row],[Existing Equipment]],1)),\n  IF(\n   OR(\n    AND(ProjectState=\"UT\",RateSchedule=12),\n    AND(ProjectState=\"ID\",RateSchedule=12),\n    AND(ProjectState=\"WY\",RateSchedule=58)\n   ),\n   IFERROR(\n    INDEX(\n     StreetLightingRates_Table[],\n     MATCH(MID(ProjectInfoTable[[#This Row],[Existing Equipment]],FIND(\": \",ProjectInfoTable[[#This Row],[Existing Equipment]],1)+2,FIND(\" (\",ProjectInfoTable[[#This Row],[Existing Equipment]],1)-FIND(\": \",ProjectInfoTable[[#This Row],[Existing Equipment]],1)-2)&ProjectInfoTable[[#This Row],[Lamp W (Existing)]],StreetLightingRates_Table[TechWattage],0),\n     MATCH(ProjectState&RateSchedule,StreetLightingRates_Table[#Headers],0)\n    )\n    *\n    ProjectInfoTable[[#This Row],[Quantity (Existing)]]\n    *\n    ProjectInfoTable[[#This Row],[Lamps (Existing)]]\n    *\n    12,\n    ProjectInfoTable[[#This Row],[Space kWh (Existing, Stipulated)]]\n    *\n    INDEX(INDIRECT(\"RateSchedules_\"&ProjectState&\"_Table[kWh Rate]\"),MATCH(RateSchedule,INDIRECT(\"RateSchedules_\"&ProjectState&\"_Table[Rate Schedule]\"),0))\n   ),\n   IFERROR(\n    ProjectInfoTable[[#This Row],[Space kWh (Existing, Stipulated)]]*\n    INDEX(INDIRECT(\"RateSchedules_\"&ProjectState&\"_Table[kWh Rate]\"),MATCH(RateSchedule,INDIRECT(\"RateSchedules_\"&ProjectState&\"_Table[Rate Schedule]\"),0)),0)\n   +\n   IFERROR(IF(ISNUMBER(FIND(\"Interior:\",ProjectInfoTable[[#This Row],[Existing Equipment]],1)),\n    ProjectInfoTable[[#This Row],[Space W (Existing, Stipulated)]]/1000*12*DDF*\n    INDEX(INDIRECT(\"RateSchedules_\"&ProjectState&\"_Table[kW Rate]\"),MATCH(RateSchedule,INDIRECT(\"RateSchedules_\"&ProjectState&\"_Table[Rate Schedule]\"),0)),0),0)\n  ),\n  IFERROR(\n   ProjectInfoTable[[#This Row],[Space kWh (Existing, Stipulated)]]*\n   INDEX(INDIRECT(\"RateSchedules_\"&ProjectState&\"_Table[kWh Rate]\"),MATCH(RateSchedule,INDIRECT(\"RateSchedules_\"&ProjectState&\"_Table[Rate Schedule]\"),0)),\n   0\n  )\n  +\n  IFERROR(IF(OR(ISNUMBER(FIND(\"Interior:\",ProjectInfoTable[[#This Row],[Existing Equipment]],1)),AND(ProjectType<>\"Retrofit\",ISNUMBER(FIND(\"Interior:\",ProjectInfoTable[[#This Row],[Proposed Equipment]],1)))),\n   ProjectInfoTable[[#This Row],[Space W (Existing, Stipulated)]]/1000*12*DDF*\n   INDEX(INDIRECT(\"RateSchedules_\"&ProjectState&\"_Table[kW Rate]\"),MATCH(RateSchedule,INDIRECT(\"RateSchedules_\"&ProjectState&\"_Table[Rate Schedule]\"),0)),0),\n   0\n  )\n )\n)","v":0},{"$f":"IF(ProjectType=\"Retrofit\",IFERROR(INDEX(RetrofitBaselineEquipment_Table[categoryBaseline],MATCH(RIGHT(LEFT(ProjectInfoTable[[#This Row],[Proposed Equipment]],FIND(\" (\",ProjectInfoTable[[#This Row],[Proposed Equipment]],1)-1),LEN(LEFT(ProjectInfoTable[[#This Row],[Proposed Equipment]],FIND(\" (\",ProjectInfoTable[[#This Row],[Proposed Equipment]],1)-1))-FIND(\": \",ProjectInfoTable[[#This Row],[Proposed Equipment]],1)-1),RetrofitBaselineEquipment_Table[equipmentBaseline],0)),\"\"),IFERROR(INDEX(#REF!,MATCH(RIGHT(LEFT(ProjectInfoTable[[#This Row],[Proposed Equipment]],FIND(\" (\",ProjectInfoTable[[#This Row],[Proposed Equipment]],1)-1),LEN(LEFT(ProjectInfoTable[[#This Row],[Proposed Equipment]],FIND(\" (\",ProjectInfoTable[[#This Row],[Proposed Equipment]],1)-1))-FIND(\": \",ProjectInfoTable[[#This Row],[Proposed Equipment]],1)-1),#REF!,0)),\"\"))","v":""},{"$f":"IF(ProjectInfoTable[[#This Row],[Proposed Equipment]]=\"\",\"\",IF(ISNUMBER(SEARCH(\"Controls Only\",ProjectInfoTable[[#This Row],[Proposed Equipment]])),\"Controls Only\",IF(ProjectType=\"Retrofit\",_xlfn.LET(_xlpm.k,LEFT(ProjectInfoTable[[#This Row],[Proposed Equipment]],FIND(\"[\",ProjectInfoTable[[#This Row],[Proposed Equipment]])-2),_xlpm.ep,_xlfn.SWITCH(ProjectState,\"UT\",EquipmentTable_Retrofit_UT[equipmentProposed],\"WY\",EquipmentTable_Retrofit_WY[equipmentProposed],\"ID\",EquipmentTable_Retrofit_ID[equipmentProposed]),_xlpm.cp,_xlfn.SWITCH(ProjectState,\"UT\",EquipmentTable_Retrofit_UT[categoryProposed],\"WY\",EquipmentTable_Retrofit_WY[categoryProposed],\"ID\",EquipmentTable_Retrofit_ID[categoryProposed]),_xlfn.XLOOKUP(_xlpm.k,_xlpm.ep,_xlpm.cp,\"Non-eligible fixture - Retrofit - \"&ProjectState)),_xlfn.LET(_xlpm.k,MID(ProjectInfoTable[[#This Row],[Proposed Equipment]],FIND(\": \",ProjectInfoTable[[#This Row],[Proposed Equipment]])+2,FIND(\" (\",ProjectInfoTable[[#This Row],[Proposed Equipment]])-(FIND(\": \",ProjectInfoTable[[#This Row],[Proposed Equipment]])+2)),_xlpm.ep,_xlfn.SWITCH(ProjectState,\"UT\",EquipmentTable_NCMR_UT[equipmentProposed],\"WY\",EquipmentTable_NCMR_WY[equipmentProposed],\"ID\",EquipmentTable_NCMR_ID[equipmentProposed]),_xlpm.cp,_xlfn.SWITCH(ProjectState,\"UT\",EquipmentTable_NCMR_UT[categoryProposed],\"WY\",EquipmentTable_NCMR_WY[categoryProposed],\"ID\",EquipmentTable_NCMR_ID[categoryProposed]),_xlfn.XLOOKUP(_xlpm.k,_xlpm.ep,_xlpm.cp,\"Non-eligible fixture - NCMR - \"&ProjectState)))))","v":""},null,null,"ü",{"$f":"IF(ProjectInfoTable[[#This Row],[Proposed Equipment]]=\"\",\"\",IF(ProjectInfoTable[[#This Row],[Measure Selection]]=\"\",0,IF(ISNUMBER(FIND(\"LF\",ProjectInfoTable[[#This Row],[Proposed Equipment]],1)),1,IFERROR(VALUE(SUBSTITUTE(RIGHT(LEFT(ProjectInfoTable[[#This Row],[Proposed Equipment]],FIND(\"L\",ProjectInfoTable[[#This Row],[Proposed Equipment]],FIND(\"[\",ProjectInfoTable[[#This Row],[Proposed Equipment]],1))-1),2),\"[\",\"\")),IFERROR(LEFT(RIGHT(ProjectInfoTable[[#This Row],[Proposed Equipment]],LEN(ProjectInfoTable[[#This Row],[Proposed Equipment]])-FIND(\"-lamp\",ProjectInfoTable[[#This Row],[Proposed Equipment]],1)+2),1),1)))))","v":""},{"$f":"IF(ProjectInfoTable[[#This Row],[Proposed Equipment]]=\"\",\"\",IF(ProjectInfoTable[[#This Row],[Measure Selection]]=\"\",0,IFERROR(\n\nIF(ISNUMBER(FIND(\"W]\",ProjectInfoTable[[#This Row],[Proposed Equipment]])),\nRIGHT(MID(ProjectInfoTable[[#This Row],[Proposed Equipment]],FIND(\"W]\",ProjectInfoTable[[#This Row],[Proposed Equipment]],FIND(\"[\",ProjectInfoTable[[#This Row],[Proposed Equipment]]))-7,7),\nLEN(MID(ProjectInfoTable[[#This Row],[Proposed Equipment]],FIND(\"W]\",ProjectInfoTable[[#This Row],[Proposed Equipment]],FIND(\"[\",ProjectInfoTable[[#This Row],[Proposed Equipment]]))-7,7)) -\nIFERROR(FIND(\" - \",MID(ProjectInfoTable[[#This Row],[Proposed Equipment]],FIND(\"W]\",ProjectInfoTable[[#This Row],[Proposed Equipment]],FIND(\"[\",ProjectInfoTable[[#This Row],[Proposed Equipment]]))-7,7))+2,\nFIND(\"[\",MID(ProjectInfoTable[[#This Row],[Proposed Equipment]],FIND(\"W]\",ProjectInfoTable[[#This Row],[Proposed Equipment]],FIND(\"[\",ProjectInfoTable[[#This Row],[Proposed Equipment]]))-7,7)))),\n\nIF(ISNUMBER(FIND(\"[\",MID(ProjectInfoTable[[#This Row],[Proposed Equipment]],FIND(\"W \",ProjectInfoTable[[#This Row],[Proposed Equipment]],FIND(\"[\",ProjectInfoTable[[#This Row],[Proposed Equipment]]))-7,7))),\nRIGHT(MID(ProjectInfoTable[[#This Row],[Proposed Equipment]],FIND(\"W \",ProjectInfoTable[[#This Row],[Proposed Equipment]],FIND(\"[\",ProjectInfoTable[[#This Row],[Proposed Equipment]]))-7,7),\nLEN(MID(ProjectInfoTable[[#This Row],[Proposed Equipment]],FIND(\"W \",ProjectInfoTable[[#This Row],[Proposed Equipment]],FIND(\"[\",ProjectInfoTable[[#This Row],[Proposed Equipment]]))-7,7)) -\nIFERROR(FIND(\" - \",MID(ProjectInfoTable[[#This Row],[Proposed Equipment]],FIND(\"W \",ProjectInfoTable[[#This Row],[Proposed Equipment]],FIND(\"[\",ProjectInfoTable[[#This Row],[Proposed Equipment]]))-7,7))+2,\nFIND(\"[\",MID(ProjectInfoTable[[#This Row],[Proposed Equipment]],FIND(\"W \",ProjectInfoTable[[#This Row],[Proposed Equipment]],FIND(\"[\",ProjectInfoTable[[#This Row],[Proposed Equipment]]))-7,7)))),\n\nRIGHT(MID(ProjectInfoTable[[#This Row],[Proposed Equipment]],FIND(\"W \",ProjectInfoTable[[#This Row],[Proposed Equipment]],FIND(\"[\",ProjectInfoTable[[#This Row],[Proposed Equipment]]))-7,7),\nLEN(MID(ProjectInfoTable[[#This Row],[Proposed Equipment]],FIND(\"W \",ProjectInfoTable[[#This Row],[Proposed Equipment]],FIND(\"[\",ProjectInfoTable[[#This Row],[Proposed Equipment]]))-7,7)) -\nFIND(\" - \",MID(ProjectInfoTable[[#This Row],[Proposed Equipment]],FIND(\"W \",ProjectInfoTable[[#This Row],[Proposed Equipment]],FIND(\"[\",ProjectInfoTable[[#This Row],[Proposed Equipment]]))-7,7))-2\n))),0)))","v":""},{"$f":"IF(ProjectInfoTable[[#This Row],[Proposed Equipment]]=\"\",\"\",IFERROR(ProjectInfoTable[[#This Row],[Lamps (Proposed)]]*ProjectInfoTable[[#This Row],[Lamp W (Proposed)]],\"\"))","v":""},{"$f":"IF(ProjectInfoTable[[#This Row],[Proposed Equipment]]=\"\",\"\",IFERROR(ProjectInfoTable[[#This Row],[Quantity (Proposed)]]*ProjectInfoTable[[#This Row],[Fixture W (Proposed)]],\"\"))","v":""},{"$f":"IFERROR(INDEX(OperatingHours_List,MATCH(ProjectInfoTable[[#This Row],[OpSch]],OperatingSchedules_List,0))*ProjectInfoTable[[#This Row],[Space W (Proposed)]]/1000,\"\")","v":""},{"$f":"IF(OR(ISNUMBER(FIND(\"Controls Only\",ProjectInfoTable[[#This Row],[Proposed Equipment]],1)),ProjectInfoTable[[#This Row],[ControlsOnly]]=\"Re-Commissioning\"),\"Controls Only\",IFERROR(INDEX(OperatingHours_List,MATCH(ProjectInfoTable[[#This Row],[OpSch]],OperatingSchedules_List,0))*ProjectInfoTable[[#This Row],[Space W (Proposed)]]/1000*(IFERROR(INDEX(ControlsLookup[],MATCH(SUBSTITUTE(RIGHT(ProjectInfoTable[[#This Row],[Proposed Equipment]],LEN(ProjectInfoTable[[#This Row],[Proposed Equipment]])-FIND(\"]\",ProjectInfoTable[[#This Row],[Proposed Equipment]],1)-3),\" reused\",\"\"),ControlsLookup[Controls],0),MATCH(\"CSF_\"&ProjectState,ControlsLookup[#Headers],0)),0))*-1,\"\"))","v":""},{"$f":"IF(OR(ProjectInfoTable[[#This Row],[Fixture kWh (Proposed)]]=\"\",ProjectInfoTable[[#This Row],[Control kWh (Proposed)]]=\"\"),\"\",IFERROR(ProjectInfoTable[[#This Row],[Fixture kWh (Proposed)]]+ProjectInfoTable[[#This Row],[Control kWh (Proposed)]],0))","v":""},{"$f":"IF(\n OR(\n  ProjectInfoTable[[#This Row],[Proposed Equipment]]=\"\",\n  ProjectInfoTable[[#This Row],[Quantity (Proposed)]]=\"\"\n ),\n \"\",\n IF(\n  AND(\n   OR(\n    AND(\n     ProjectState=\"UT\",\n     RateSchedule=12\n    ),\n    AND(\n     ProjectState=\"ID\",\n     RateSchedule=12\n    ),\n    AND(\n     ProjectState=\"WY\",\n     RateSchedule=58\n    )\n   ),\n   ISNUMBER(FIND(\"Street:\",ProjectInfoTable[[#This Row],[Existing Equipment]],1))\n  ),\n  IF(\n   AND(\n    RateSchedule=53,\n    ISNUMBER(FIND(\"LED\",ProjectInfoTable[[#This Row],[Proposed Equipment]],1))\n   ),\n   ProjectInfoTable[[#This Row],[Fixture kWh (Proposed)]]\n   *\n   INDEX(\n    INDIRECT(\"RateSchedules_\"&ProjectState&\"_Table[kWh Rate]\"),\n    MATCH(RateSchedule,INDIRECT(\"RateSchedules_\"&ProjectState&\"_Table[Rate Schedule]\"),0)\n   ),\n   IFERROR(INDEX(\n    StreetLightingRates_Table[],\n    MATCH(\"LED\"&IF(AND(ProjectInfoTable[[#This Row],[Fixture W (Proposed)]]>0,ProjectInfoTable[[#This Row],[Fixture W (Proposed)]]<=70),70,IF(AND(ProjectInfoTable[[#This Row],[Fixture W (Proposed)]]>70,ProjectInfoTable[[#This Row],[Fixture W (Proposed)]]<=100),100,IF(AND(ProjectInfoTable[[#This Row],[Fixture W (Proposed)]]>100,ProjectInfoTable[[#This Row],[Fixture W (Proposed)]]<=150),150,IF(AND(ProjectInfoTable[[#This Row],[Fixture W (Proposed)]]>150,ProjectInfoTable[[#This Row],[Fixture W (Proposed)]]<=200),200,IF(AND(ProjectInfoTable[[#This Row],[Fixture W (Proposed)]]>200,ProjectInfoTable[[#This Row],[Fixture W (Proposed)]]<=250),250,IF(AND(ProjectInfoTable[[#This Row],[Fixture W (Proposed)]]>250,ProjectInfoTable[[#This Row],[Fixture W (Proposed)]]<=400),400,\"\")))))),StreetLightingRates_Table[TechWattage],0),\n    MATCH(ProjectState&RateSchedule,StreetLightingRates_Table[#Headers],0)\n   )\n   *ProjectInfoTable[[#This Row],[Lamps (Proposed)]]*ProjectInfoTable[[#This Row],[Quantity (Proposed)]]*12,\n  ProjectInfoTable[[#This Row],[Space kWh (Proposed)]]*INDEX(INDIRECT(\"RateSchedules_\"&ProjectState&\"_Table[kWh Rate]\"),MATCH(RateSchedule,INDIRECT(\"RateSchedules_\"&ProjectState&\"_Table[Rate Schedule]\"),0)))),\n  IFERROR(ProjectInfoTable[[#This Row],[Space kWh (Proposed)]]*INDEX(INDIRECT(\"RateSchedules_\"&ProjectState&\"_Table[kWh Rate]\"),MATCH(RateSchedule,INDIRECT(\"RateSchedules_\"&ProjectState&\"_Table[Rate Schedule]\"),0)),0)\n  +\n  IF(OR(ISNUMBER(FIND(\"Exterior:\",ProjectInfoTable[[#This Row],[Existing Equipment]],1)),ISNUMBER(FIND(\"Street:\",ProjectInfoTable[[#This Row],[Existing Equipment]],1))),0,IFERROR(ProjectInfoTable[[#This Row],[Space W (Proposed)]]/1000*12*DDF*INDEX(INDIRECT(\"RateSchedules_\"&ProjectState&\"_Table[kW Rate]\"),MATCH(RateSchedule,INDIRECT(\"RateSchedules_\"&ProjectState&\"_Table[Rate Schedule]\"),0)),0))\n )\n)","v":""},{"$f":"IF(ProjectInfoTable[[#This Row],[Measure Selection]]=\"\",0,IF(ProjectType=\"Retrofit\",IFERROR((ProjectInfoTable[[#This Row],[Space W (Existing, Actual)]]-ProjectInfoTable[[#This Row],[Space W (Proposed)]])/ProjectInfoTable[[#This Row],[Space W (Existing, Actual)]],\"\"),IF(AND(ProjectInfoTable[[#This Row],[Proposed Equipment]]=\"\",ProjectInfoTable[[#This Row],[Quantity (Proposed)]]=\"\"),\"\",IFERROR((ProjectInfoTable[[#This Row],[Space W (Existing, Stipulated)]]-ProjectInfoTable[[#This Row],[Space W (Proposed)]])/ProjectInfoTable[[#This Row],[Space W (Existing, Stipulated)]],\"n/a\"))))","v":""},{"$f":"IF(ProjectInfoTable[[#This Row],[Measure Selection]]=\"\",0,IF(ProjectType=\"Retrofit\",IFERROR((ProjectInfoTable[[#This Row],[Space W (Existing, Stipulated)]]-ProjectInfoTable[[#This Row],[Space W (Proposed)]])/ProjectInfoTable[[#This Row],[Space W (Existing, Stipulated)]],\"\"),ProjectInfoTable[[#This Row],[% Wattage Reduction (Actual)]]))","v":""},{"$f":"IFERROR(IF(OR(ProjectInfoTable[[#This Row],[Measure Selection]]=\"\",ProjectInfoTable[[#This Row],[ControlsOnly]]=\"Re-Commissioning\"),0,IF(AND(ProjectType=\"Retrofit\",LEFT(ProjectInfoTable[[#This Row],[Existing Equipment]],FIND(\": \",ProjectInfoTable[[#This Row],[Existing Equipment]],1)-1)<>\"Interior\"),0,((ProjectInfoTable[[#This Row],[Space W (Existing, Actual)]]-ProjectInfoTable[[#This Row],[Space W (Proposed)]])/1000*DDF)-IF(ProjectInfoTable[[#This Row],[Midstream Measure Name]]<>\"\",IFERROR(ProjectInfoTable[[#This Row],[kW Per Unit (Midstream)]]*ProjectInfoTable[[#This Row],[Quantity]]*ProjectInfoTable[[#This Row],[No. of TRL Units]],0),0))),\"\")","v":""},{"$f":"IFERROR(IF(OR(ProjectInfoTable[[#This Row],[Measure Selection]]=\"\",ProjectInfoTable[[#This Row],[ControlsOnly]]=\"Re-Commissioning\"),0,IF(AND(ISNUMBER(VALUE(ProjectInfoTable[[#This Row],[kW Per Unit]])),ProjectInfoTable[[#This Row],[kW Per Unit]]<>0),ROUND(ProjectInfoTable[[#This Row],[kW Per Unit]]*ProjectInfoTable[[#This Row],[Quantity]]*ProjectInfoTable[[#This Row],[No. of TRL Units]],2),IF(OR(AND(ProjectType=\"Retrofit\",LEFT(ProjectInfoTable[[#This Row],[Existing Equipment]],FIND(\": \",ProjectInfoTable[[#This Row],[Existing Equipment]],1)-1)<>\"Interior\"),AND(ProjectInfoTable[[#This Row],[Incentives Per Unit]]=0,INDEX(StipulatedSavingsYesNo_Table[Stipulated Savings?],MATCH(ProjectState,StipulatedSavingsYesNo_Table[State],0))=\"No\")),0,IF(ISNUMBER(FIND(\"Controls Only\",ProjectInfoTable[[#This Row],[Proposed Equipment]],1)),0,ROUND(((ProjectInfoTable[[#This Row],[Space W (Existing, Stipulated)]]-ProjectInfoTable[[#This Row],[Space W (Proposed)]])/1000*DDF)-IF(ProjectInfoTable[[#This Row],[Midstream Measure Name]]<>\"\",IFERROR(ProjectInfoTable[[#This Row],[kW Per Unit (Midstream)]]*ProjectInfoTable[[#This Row],[Quantity]]*ProjectInfoTable[[#This Row],[No. of TRL Units]],0),0),2))))),\"\")","v":""},{"$f":"IFERROR(IF(OR(ProjectInfoTable[[#This Row],[Control kWh (Proposed)]]=\"Controls Only\",ProjectInfoTable[[#This Row],[Measure Selection]]=\"\"),0,ROUND((ProjectInfoTable[[#This Row],[Fixture kWh (Existing, Actual)]]-ProjectInfoTable[[#This Row],[Fixture kWh (Proposed)]])*IF(VALUE(SpaceTypesInfo_Table[[#Totals],[HVAC Effects]])=0,1,1+VALUE(SpaceTypesInfo_Table[[#Totals],[HVAC Effects]])),0)),\"\")","v":""},{"$f":"IFERROR(IF(ProjectInfoTable[[#This Row],[Control kWh (Proposed)]]=\"Controls Only\",ROUND(IFERROR(INDEX(OperatingHours_List,MATCH(ProjectInfoTable[[#This Row],[OpSch]],OperatingSchedules_List,0))*IF(OR(ProjectType <> \"Retrofit\",ProjectInfoTable[[#This Row],[Space W (Proposed)]]>0),ProjectInfoTable[[#This Row],[Space W (Proposed)]],ProjectInfoTable[[#This Row],[Space W (Existing, Actual)]])/1000*(IFERROR(INDEX(ControlsLookup[],MATCH(RIGHT(ProjectInfoTable[[#This Row],[Proposed Equipment]],LEN(ProjectInfoTable[[#This Row],[Proposed Equipment]])-FIND(\"]\",ProjectInfoTable[[#This Row],[Proposed Equipment]],1)-3),ControlsLookup[Controls],0),MATCH(\"CSF_\"&ProjectState,ControlsLookup[#Headers],0)),0))*IF(VALUE(SpaceTypesInfo_Table[[#Totals],[HVAC Effects]])=0,1,1+VALUE(SpaceTypesInfo_Table[[#Totals],[HVAC Effects]])),\"\"),0),ROUND(IFERROR((ProjectInfoTable[[#This Row],[Control kWh (Existing, Actual)]]-ProjectInfoTable[[#This Row],[Control kWh (Proposed)]])*IF(VALUE(SpaceTypesInfo_Table[[#Totals],[HVAC Effects]])=0,1,1+VALUE(SpaceTypesInfo_Table[[#Totals],[HVAC Effects]])),\"\"),0)),\"\")","v":""},{"$f":"IF(OR(ProjectInfoTable[[#This Row],[Proposed Equipment]]=\"\",ProjectInfoTable[[#This Row],[Quantity (Proposed)]]=\"\"),\"\",IF(ProjectInfoTable[[#This Row],[Fixture Measure]]=\"\",0,IF(AND(ProjectInfoTable[[#This Row],[Incentives Per Unit]]=0,INDEX(StipulatedSavingsYesNo_Table[Stipulated Savings?],MATCH(ProjectState,StipulatedSavingsYesNo_Table[State],0))=\"No\"),0,ProjectInfoTable[[#This Row],[Total   kWh/yr Savings (Actual)]]-ProjectInfoTable[[#This Row],[Control Measure kWh/yr Savings (Actual)]])))","v":""},{"$f":"IF(OR(ProjectInfoTable[[#This Row],[Proposed Equipment]]=\"\",ProjectInfoTable[[#This Row],[Quantity (Proposed)]]=\"\"),\"\",IF(ProjectInfoTable[[#This Row],[Control Measure]]=\"\",0,ProjectInfoTable[[#This Row],[Control kWh/yr Savings (Actual)]]))","v":""},{"$f":"IF(AND(ProjectInfoTable[[#This Row],[Incentives Per Unit]]=0,INDEX(StipulatedSavingsYesNo_Table[Stipulated Savings?],MATCH(ProjectState,StipulatedSavingsYesNo_Table[State],0))=\"No\"),ProjectInfoTable[[#This Row],[Fixture kWh/yr Savings (Actual)]]+IF(ProjectInfoTable[[#This Row],[Control Measure kWh/yr Savings (Actual)]]=0,0,ProjectInfoTable[[#This Row],[Control kWh/yr Savings (Actual)]]),IF(AND(ProjectInfoTable[[#This Row],[Fixture kWh/yr Savings (Actual)]]=\"\",ProjectInfoTable[[#This Row],[Control kWh/yr Savings (Actual)]]=\"\"),\"\",ROUND(IF(ProjectInfoTable[[#This Row],[Fixture kWh/yr Savings (Actual)]]=\"\",0,ProjectInfoTable[[#This Row],[Fixture kWh/yr Savings (Actual)]])+IF(ProjectInfoTable[[#This Row],[Control kWh/yr Savings (Actual)]]=\"\",0,ProjectInfoTable[[#This Row],[Control kWh/yr Savings (Actual)]])-IF(ProjectInfoTable[[#This Row],[Midstream Measure Name]]<>\"\",IFERROR(ProjectInfoTable[[#This Row],[kWh Per Unit (Midstream)]]*ProjectInfoTable[[#This Row],[Quantity]]*ProjectInfoTable[[#This Row],[No. of TRL Units]],0),0),0)))","v":""},{"$f":"IFERROR(IF(OR(ProjectInfoTable[[#This Row],[Measure Selection]]=\"\",ProjectInfoTable[[#This Row],[ControlsOnly]]=\"Re-Commissioning\"),0,IF(AND(ProjectInfoTable[[#This Row],[Incentives Per Unit]]=0,INDEX(StipulatedSavingsYesNo_Table[Stipulated Savings?],MATCH(ProjectState,StipulatedSavingsYesNo_Table[State],0))=\"No\"),0,IF(ISNUMBER(FIND(\"Controls Only\",ProjectInfoTable[[#This Row],[Proposed Equipment]],1)),0,ROUND((ProjectInfoTable[[#This Row],[Fixture kWh (Existing, Stipulated)]]-ProjectInfoTable[[#This Row],[Fixture kWh (Proposed)]])*IF(VALUE(SpaceTypesInfo_Table[[#Totals],[HVAC Effects]])=0,1,1+VALUE(SpaceTypesInfo_Table[[#Totals],[HVAC Effects]])),0)))),\"\")","v":""},{"$f":"IFERROR(IF(ProjectInfoTable[[#This Row],[Control kWh (Proposed)]]=\"Controls Only\",ROUND(IFERROR(INDEX(OperatingHours_List,MATCH(ProjectInfoTable[[#This Row],[OpSch]],OperatingSchedules_List,0))*IF(OR(ProjectType <> \"Retrofit\",ProjectInfoTable[[#This Row],[Space W (Proposed)]]>0),ProjectInfoTable[[#This Row],[Space W (Proposed)]],ProjectInfoTable[[#This Row],[Space W (Existing, Stipulated)]])/1000*(IFERROR(INDEX(ControlsLookup[],MATCH(RIGHT(ProjectInfoTable[[#This Row],[Proposed Equipment]],LEN(ProjectInfoTable[[#This Row],[Proposed Equipment]])-FIND(\"]\",ProjectInfoTable[[#This Row],[Proposed Equipment]],1)-3),ControlsLookup[Controls],0),MATCH(\"CSF_\"&ProjectState,ControlsLookup[#Headers],0)),0))*IF(VALUE(SpaceTypesInfo_Table[[#Totals],[HVAC Effects]])=0,1,1+VALUE(SpaceTypesInfo_Table[[#Totals],[HVAC Effects]])),\"\"),0),ROUND(IFERROR((ProjectInfoTable[[#This Row],[Control kWh (Existing, Stipulated)]]-ProjectInfoTable[[#This Row],[Control kWh (Proposed)]])*IF(VALUE(SpaceTypesInfo_Table[[#Totals],[HVAC Effects]])=0,1,1+VALUE(SpaceTypesInfo_Table[[#Totals],[HVAC Effects]])),INDEX(ControlsLookup[],MATCH(RIGHT(ProjectInfoTable[[#This Row],[Proposed Equipment]],LEN(ProjectInfoTable[[#This Row],[Proposed Equipment]])-FIND(\"-\",ProjectInfoTable[[#This Row],[Proposed Equipment]],LEN(ProjectInfoTable[[#This Row],[Proposed Equipment]])-15)-1),ControlsLookup[Controls],0),MATCH(\"CSF_\"&ProjectState,ControlsLookup[#Headers],0))*IF(NOT(ISNUMBER(VALUE(ProjectInfoTable[[#This Row],[kWh Per Unit]]))),ProjectInfoTable[[#This Row],[Fixture kWh/yr Savings (Stipulated)]],ProjectInfoTable[[#This Row],[kWh Per Unit]]*ProjectInfoTable[[#This Row],[Quantity]]*ProjectInfoTable[[#This Row],[No. of TRL Units]])),0)),IF(OR(ProjectType=\"New Construction\",ProjectType=\"Major Renovation\"),IF(ProjectInfoTable[[#This Row],[Control kWh (Proposed)]]=\"\",\"\",0),\"\"))","v":""},{"$f":"IF(OR(ProjectInfoTable[[#This Row],[Proposed Equipment]]=\"\",ProjectInfoTable[[#This Row],[Quantity (Proposed)]]=\"\"),\"\",IF(ProjectInfoTable[[#This Row],[Fixture Measure]]=\"\",0,IF(AND(ProjectInfoTable[[#This Row],[Incentives Per Unit]]=0,INDEX(StipulatedSavingsYesNo_Table[Stipulated Savings?],MATCH(ProjectState,StipulatedSavingsYesNo_Table[State],0))=\"No\"),0,ProjectInfoTable[[#This Row],[Total   kWh/yr Savings (Stipulated)]]-ProjectInfoTable[[#This Row],[Control Measure kWh/yr Savings (Stipulated)]])))","v":""},{"$f":"IF(OR(ProjectInfoTable[[#This Row],[Proposed Equipment]]=\"\",ProjectInfoTable[[#This Row],[Quantity (Proposed)]]=\"\"),\"\",IF(ProjectInfoTable[[#This Row],[Control Measure]]=\"\",0,IF(OR(ProjectType=\"New Construction\",ProjectType=\"Major Renovation\"),IFERROR(ROUND(ProjectInfoTable[[#This Row],[Control kWh Per Unit]]*ProjectInfoTable[[#This Row],[Control Quantity]]*ProjectInfoTable[[#This Row],[Control No. of TRL Units]],0),ProjectInfoTable[[#This Row],[Control kWh/yr Savings (Stipulated)]]),ProjectInfoTable[[#This Row],[Control kWh/yr Savings (Stipulated)]])))","v":""},{"$f":"IF(AND(ProjectInfoTable[[#This Row],[Incentives Per Unit]]=0,INDEX(StipulatedSavingsYesNo_Table[Stipulated Savings?],MATCH(ProjectState,StipulatedSavingsYesNo_Table[State],0))=\"No\"),ProjectInfoTable[[#This Row],[Fixture kWh/yr Savings (Stipulated)]]+IF(ProjectInfoTable[[#This Row],[Control Measure kWh/yr Savings (Stipulated)]]=0,0,ProjectInfoTable[[#This Row],[Control kWh/yr Savings (Stipulated)]]),IF(OR(ISNUMBER(VALUE(ProjectInfoTable[[#This Row],[kWh Per Unit]])),ISNUMBER(VALUE(ProjectInfoTable[[#This Row],[Control kWh Per Unit]]))),ROUND(IFERROR(ProjectInfoTable[[#This Row],[kWh Per Unit]]*ProjectInfoTable[[#This Row],[Quantity]]*ProjectInfoTable[[#This Row],[No. of TRL Units]],0)+IFERROR(ProjectInfoTable[[#This Row],[Control kWh Per Unit]]*ProjectInfoTable[[#This Row],[Control Quantity]]*ProjectInfoTable[[#This Row],[Control No. of TRL Units]],ProjectInfoTable[[#This Row],[Control kWh/yr Savings (Stipulated)]]),0),IF(AND(ProjectInfoTable[[#This Row],[Fixture kWh/yr Savings (Stipulated)]]=\"\",ProjectInfoTable[[#This Row],[Control kWh/yr Savings (Stipulated)]]=\"\"),\"\",ROUND(IF(ProjectInfoTable[[#This Row],[Fixture kWh/yr Savings (Stipulated)]]=\"\",0,ProjectInfoTable[[#This Row],[Fixture kWh/yr Savings (Stipulated)]])+IF(ProjectInfoTable[[#This Row],[Control kWh/yr Savings (Stipulated)]]=\"\",0,ProjectInfoTable[[#This Row],[Control kWh/yr Savings (Stipulated)]])-IF(ProjectInfoTable[[#This Row],[Midstream Measure Name]]<>\"\",IFERROR(ProjectInfoTable[[#This Row],[kWh Per Unit (Midstream)]]*ProjectInfoTable[[#This Row],[Quantity]]*ProjectInfoTable[[#This Row],[No. of TRL Units]],0),0),0))))","v":""},{"$f":"IF(OR(ISNUMBER(FIND(\"Midstream\",ProjectInfoTable[[#This Row],[Fixture Measure]])),ISNUMBER(FIND(\"SBDI\",ProjectInfoTable[[#This Row],[Fixture Measure]])),ISNUMBER(FIND(\"Small Bu\",ProjectInfoTable[[#This Row],[Fixture Measure]]))),\n\nIF(ProjectInfoTable[[#This Row],[Measure Selection]]=\"\",0,\n\nIF(ISNUMBER(FIND(\"/U]\",ProjectInfoTable[[#This Row],[Proposed Equipment]])),IFERROR(MID(ProjectInfoTable[[#This Row],[Proposed Equipment]],FIND(\"$\",ProjectInfoTable[[#This Row],[Proposed Equipment]],1)+1,FIND(\"/U]\",ProjectInfoTable[[#This Row],[Proposed Equipment]],1)-FIND(\"$\",ProjectInfoTable[[#This Row],[Proposed Equipment]],1)-1)*ProjectInfoTable[[#This Row],[Lamps (Proposed)]]*ProjectInfoTable[[#This Row],[Quantity (Proposed)]],0),\nIF(ISNUMBER(FIND(\"/U \",ProjectInfoTable[[#This Row],[Proposed Equipment]])),IFERROR(MID(ProjectInfoTable[[#This Row],[Proposed Equipment]],FIND(\"$\",ProjectInfoTable[[#This Row],[Proposed Equipment]],1)+1,FIND(\"/U \",ProjectInfoTable[[#This Row],[Proposed Equipment]],1)-FIND(\"$\",ProjectInfoTable[[#This Row],[Proposed Equipment]],1)-1)*ProjectInfoTable[[#This Row],[Lamps (Proposed)]]*ProjectInfoTable[[#This Row],[Quantity (Proposed)]],0),\nIFERROR(ProjectInfoTable[[#This Row],[Fixture Measure kWh/yr Savings (Stipulated)]]/SUM(ProjectInfoTable[Total   kWh/yr Savings (Stipulated)])*ProjectCost_Total,\"\")))),\"\")","v":""},{"$f":"IFERROR(IF(ProjectInfoTable[[#This Row],[Fixture Measure kWh/yr Savings (Stipulated)]]=0,0,IF(ProjectType=\"Retrofit\",IF(OR(ISNUMBER(FIND(\"Midstream\",ProjectInfoTable[[#This Row],[Fixture Measure]])),ISNUMBER(FIND(\"SBDI\",ProjectInfoTable[[#This Row],[Fixture Measure]])),ISNUMBER(FIND(\"Small Bu\",ProjectInfoTable[[#This Row],[Fixture Measure]]))),ProjectInfoTable[[#This Row],[Measure Cost (Direct)]],IFERROR(ProjectInfoTable[[#This Row],[Fixture Measure kWh/yr Savings (Stipulated)]]/kWhSavings_Typical_Stipulated*(ProjectCost_Total-SUM(ProjectInfoTable[Measure Cost (Direct)])),\"\")),IF(ProjectInfoTable[[#This Row],[Proposed Equipment]]=\"\",\"\",IFERROR(SpaceTypesInfo_Table[[#Totals],[NCMR Int Cost]]*ProjectInfoTable[[#This Row],[Fixture Measure kWh/yr Savings (Stipulated)]]/SUMIFS(ProjectInfoTable[Total   kWh/yr Savings (Stipulated)],ProjectInfoTable[Proposed Equipment],\"*Interior*\"),0)))),\"\")","v":""},{"$f":"IFERROR(\n IF(\n  ProjectInfoTable[[#This Row],[Control Measure kWh/yr Savings (Stipulated)]]=0,\n  0,\n  IF(\n   ProjectType=\"Retrofit\",\n    IFERROR(\n     ProjectInfoTable[[#This Row],[Control Measure kWh/yr Savings (Stipulated)]]\n     /\n     SUMIFS(ProjectInfoTable[Control Measure kWh/yr Savings (Stipulated)],ProjectInfoTable[Control Measure],\"<>\"\"\")\n     *\n     (ProjectCost_Total-SUM(ProjectInfoTable[Fixture Cost (Allocated)])),\n     \"\"\n    ),\nROUND(\n    IF(\n     ProjectInfoTable[[#This Row],[Proposed Equipment]]=\"\",\n     \"\",\n     IFERROR(\n      SpaceTypesInfo_Table[[#Totals],[NCMR Int Cost]]\n      *\n      ProjectInfoTable[[#This Row],[Control Measure kWh/yr Savings (Stipulated)]]\n      /\n      SUMIFS(ProjectInfoTable[Total   kWh/yr Savings (Stipulated)],ProjectInfoTable[Proposed Equipment],\"*Interior*\"),\n      0\n     )\n    ),\n    2\n   )\n  )\n ),\n \"\"\n)","v":""},{"$f":"IF(AND(ProjectInfoTable[[#This Row],[Fixture Cost (Allocated)]]=\"\",ProjectInfoTable[[#This Row],[Control Cost (Allocated)]]=\"\"),\"\",SUM(ProjectInfoTable[[#This Row],[Fixture Cost (Allocated)]:[Control Cost (Allocated)]]))","v":""},{"$f":"IFERROR(IF(OR(ProjectInfoTable[[#This Row],[Proposed Equipment]]=\"\",ProjectInfoTable[[#This Row],[Quantity (Proposed)]]=\"\"),\"\",IF(OR(ProjectInfoTable[[#This Row],[Measure Selection]]=\"\",ProjectInfoTable[[#This Row],[Control kWh (Proposed)]]=\"Controls Only\"),0,IF(NOT(ISNUMBER(FIND(\"Retrofit\",ProjectType,1))),ProjectInfoTable[[#This Row],[Fixture Energy Cost Savings (Stipulated)]],IF(AND(ProjectInfoTable[[#This Row],[Fixture Measure]]=\"\",ProjectInfoTable[[#This Row],[Control Measure]]<>\"\"),0,ROUND((ProjectInfoTable[[#This Row],[Total Energy Costs (Existing, Actual)]]-ProjectInfoTable[[#This Row],[Total Energy Costs (Proposed)]]),2))))),\"\")","v":""},{"$f":"IFERROR(IF(OR(ProjectInfoTable[[#This Row],[Proposed Equipment]]=\"\",ProjectInfoTable[[#This Row],[Quantity (Proposed)]]=\"\"),\"\",\n\nIF(ProjectInfoTable[[#This Row],[Control kWh (Proposed)]]=\"Controls Only\",ProjectInfoTable[[#This Row],[Control Measure kWh/yr Savings (Actual)]]*INDEX(INDIRECT(\"RateSchedules_\"&ProjectState&\"_Table[kWh Rate]\"),\nMATCH(RateSchedule,INDIRECT(\"RateSchedules_\"&ProjectState&\"_Table[Rate Schedule]\"),0)),\n\nIF(NOT(ISNUMBER(FIND(\"Retrofit\",ProjectType,1))),ProjectInfoTable[[#This Row],[Control Energy Cost Savings (Stipulated)]],IF(AND(ProjectInfoTable[[#This Row],[Fixture Measure]]=\"\",ProjectInfoTable[[#This Row],[Control Measure]]<>\"\"),ROUND((ProjectInfoTable[[#This Row],[Total Energy Costs (Existing, Actual)]]-ProjectInfoTable[[#This Row],[Total Energy Costs (Proposed)]]),2),ROUND((ProjectInfoTable[[#This Row],[Total Energy Costs (Existing, Actual)]]-ProjectInfoTable[[#This Row],[Total Energy Costs (Proposed)]]),2)*(ProjectInfoTable[[#This Row],[Control Measure kWh/yr Savings (Actual)]]/ProjectInfoTable[[#This Row],[Total   kWh/yr Savings (Actual)]]))))),\"\")","v":""},{"$f":"IF(OR(ProjectInfoTable[[#This Row],[Proposed Equipment]]=\"\",ProjectInfoTable[[#This Row],[Quantity (Proposed)]]=\"\"),\"\",ROUND(ProjectInfoTable[[#This Row],[Fixture Energy Cost Savings (Actual)]]+ProjectInfoTable[[#This Row],[Control Energy Cost Savings (Actual)]],2))","v":""},{"$f":"IF(OR(ProjectInfoTable[[#This Row],[Proposed Equipment]]=\"\",ProjectInfoTable[[#This Row],[Quantity (Proposed)]]=\"\"),\"\",IF(OR(ISNUMBER(VALUE(ProjectInfoTable[[#This Row],[kWh Per Unit]])),ISNUMBER(VALUE(ProjectInfoTable[[#This Row],[kW Per Unit]]))),IFERROR(ProjectInfoTable[[#This Row],[Fixture Measure kWh/yr Savings (Stipulated)]]*INDEX(INDIRECT(\"RateSchedules_\"&ProjectState&\"_Table[kWh Rate]\"),MATCH(RateSchedule,INDIRECT(\"RateSchedules_\"&ProjectState&\"_Table[Rate Schedule]\"),0)),0)+IFERROR(ProjectInfoTable[[#This Row],[kW Demand Reduction (Stipulated)]]/1000*12*INDEX(INDIRECT(\"RateSchedules_\"&ProjectState&\"_Table[kW Rate]\"),MATCH(RateSchedule,INDIRECT(\"RateSchedules_\"&ProjectState&\"_Table[Rate Schedule]\"),0)),0),IFERROR(ROUND((ProjectInfoTable[[#This Row],[Total Energy Costs (Existing, Stipulated)]]-ProjectInfoTable[[#This Row],[Total Energy Costs (Proposed)]])*ProjectInfoTable[[#This Row],[Fixture Measure kWh/yr Savings (Stipulated)]]/ProjectInfoTable[[#This Row],[Total   kWh/yr Savings (Stipulated)]],2),0)))","v":""},{"$f":"IF(OR(ProjectInfoTable[[#This Row],[Proposed Equipment]]=\"\",ProjectInfoTable[[#This Row],[Quantity (Proposed)]]=\"\"),\"\",\nIF(ProjectInfoTable[[#This Row],[Control kWh (Proposed)]]=\"Controls Only\",ProjectInfoTable[[#This Row],[Control Measure kWh/yr Savings (Stipulated)]]*INDEX(INDIRECT(\"RateSchedules_\"&ProjectState&\"_Table[kWh Rate]\"),\nMATCH(RateSchedule,INDIRECT(\"RateSchedules_\"&ProjectState&\"_Table[Rate Schedule]\"),0)),IF(OR(ISNUMBER(VALUE(ProjectInfoTable[[#This Row],[Control kWh Per Unit]])),\nISNUMBER(VALUE(ProjectInfoTable[[#This Row],[Control kW Per Unit]]))),IFERROR(ProjectInfoTable[[#This Row],[Control Measure kWh/yr Savings (Stipulated)]]*INDEX(INDIRECT(\"RateSchedules_\"&ProjectState&\"_Table[kWh Rate]\"),\nMATCH(RateSchedule,INDIRECT(\"RateSchedules_\"&ProjectState&\"_Table[Rate Schedule]\"),0)),0)+IFERROR(ProjectInfoTable[[#This Row],[kW Demand Reduction (Stipulated)]]/1000*12*\nINDEX(INDIRECT(\"RateSchedules_\"&ProjectState&\"_Table[kW Rate]\"),MATCH(RateSchedule,INDIRECT(\"RateSchedules_\"&ProjectState&\"_Table[Rate Schedule]\"),0)),0),\nIFERROR(ROUND((ProjectInfoTable[[#This Row],[Total Energy Costs (Existing, Stipulated)]]-ProjectInfoTable[[#This Row],[Total Energy Costs (Proposed)]])*ProjectInfoTable[[#This Row],[Control Measure kWh/yr Savings (Stipulated)]]/\nProjectInfoTable[[#This Row],[Total   kWh/yr Savings (Stipulated)]],2),0))))","v":""},{"$f":"IF(OR(ProjectInfoTable[[#This Row],[Proposed Equipment]]=\"\",ProjectInfoTable[[#This Row],[Quantity (Proposed)]]=\"\"),\"\",ROUND(ProjectInfoTable[[#This Row],[Fixture Energy Cost Savings (Stipulated)]]+ProjectInfoTable[[#This Row],[Control Energy Cost Savings (Stipulated)]],2))","v":""},{"$f":"IF(ProjectInfoTable[[#This Row],[OpSch]]=\"\",\"\",IF(OR(ProjectInfoTable[[#This Row],[Fixture Measure]]=\"\",ProjectInfoTable[[#This Row],[Eligible Fixture Measure]]<>TRUE),0,ProjectInfoTable[[#This Row],[Fixture Incentives (pre-capping)]])+IF(OR(ProjectInfoTable[[#This Row],[Control Measure]]=\"\",ProjectInfoTable[[#This Row],[Eligible Control Measure]]<>TRUE),0,ProjectInfoTable[[#This Row],[Control Incentives (pre-capping)]]))","v":""},{"$f":"IF(OR(ProjectInfoTable[[#This Row],[Fixture Measure]]<>\"\",ProjectInfoTable[[#This Row],[Control Measure]]<>\"\"),IF(ProjectInfoTable[[#This Row],[Fixture Incentives]]=\"\",0,ProjectInfoTable[[#This Row],[Fixture Incentives]])+IF(ProjectInfoTable[[#This Row],[Control Incentives]]=\"\",0,ProjectInfoTable[[#This Row],[Control Incentives]]),\"\")","v":""},null,{"$f":"IF(OR(ProjectInfoTable[[#This Row],[Fixture Measure]]=\"\",ProjectInfoTable[[#This Row],[OpSch]]=\"\",ProjectInfoTable[[#This Row],[Eligible Fixture Measure]]<>TRUE),\"\",\nIF(OR(ISNUMBER(FIND(\"SBDI\",ProjectInfoTable[[#This Row],[Fixture Measure]])),ISNUMBER(FIND(\"Small Bu\",ProjectInfoTable[[#This Row],[Fixture Measure]]))),IFERROR(0.75*ProjectInfoTable[[#This Row],[Fixture Cost (Allocated)]],\"cost error\"),\nIF(AND(OR(ProjectType=\"New Construction\",ProjectType=\"Major Renovation\"),LPDCodeToProposed<0.1,ISNUMBER(FIND(\"Interior\",ProjectInfoTable[[#This Row],[Proposed Equipment]],1))),0,IFERROR(ProjectInfoTable[[#This Row],[Incentives Per Unit]]*ProjectInfoTable[[#This Row],[Quantity]]*ProjectInfoTable[[#This Row],[No. of TRL Units]],\"TRL Error\"))))","v":""},{"$f":"IF(\n    OR(\n        ProjectInfoTable[[#This Row],[Fixture Measure]] = \"\",\n        ProjectInfoTable[[#This Row],[OpSch]] = \"\",\n        ProjectInfoTable[[#This Row],[Eligible Fixture Measure]] <> TRUE\n    ),\n    \"\",\n    IF(\n        OR(\n            ISNUMBER(FIND(\"SBDI\", ProjectInfoTable[[#This Row],[Fixture Measure]])),\n            ISNUMBER(FIND(\"Small Bu\", ProjectInfoTable[[#This Row],[Fixture Measure]]))\n        ),\n        IFERROR(\n            (Incentive_NonTypical / Incentive_NonTypical_PreCapped) * ProjectInfoTable[[#This Row],[Fixture Incentives (pre-capping)]],\n            \"\"\n        ),\n        IF(\n            AND(\n                ProjectType = \"Retrofit\",\n                ProjectState = \"UT\",\n                ISNUMBER(FIND(\"Post-Purchase\", ProjectInfoTable[[#This Row],[Fixture Measure]], 1))\n            ),\n            IFERROR(\n                MAX(\n                    MIN(\n                        ProjectInfoTable[[#This Row],[Fixture Incentives (pre-capping)]],\n                        ProjectInfoTable[[#This Row],[Fixture Cost (Allocated)]] * 0.7\n                    ),\n                    0\n                ),\n                0\n            ),\n            IF(\n                ProjectType = \"Retrofit\",\n                IF(\n                    ISNUMBER(FIND(\"Post-Purchase\", ProjectInfoTable[[#This Row],[Fixture Measure]], 1)),\n                    ProjectInfoTable[[#This Row],[Fixture Incentives (pre-capping)]],\n                    IFERROR(\n                        $BI$3 / $BH$3 * ProjectInfoTable[[#This Row],[Fixture Incentives (pre-capping)]],\n                        \"\"\n                    )\n                ),\n                IF(\n                    ISNUMBER(FIND(\"Interior\", ProjectInfoTable[[#This Row],[Proposed Equipment]], 1)),\n                    IF(\n                        LPDCodeToProposed > 0.1,\n                        ProjectInfoTable[[#This Row],[Fixture Incentives (pre-capping)]],\n                        0\n                    ),\n                    ProjectInfoTable[[#This Row],[Fixture Incentives (pre-capping)]]\n                )\n            )\n        )\n    )\n)","v":""},{"$f":"IF(OR(ProjectInfoTable[[#This Row],[Incentives Per Unit]]=\"\",ProjectInfoTable[[#This Row],[TRL Unit]]=\"\"),\"\",IF(ProjectInfoTable[[#This Row],[Eligible Fixture Measure]]<>TRUE,\"Invalid Effective Date\",\nIF(OR(ISNUMBER(FIND(\"SBDI\",ProjectInfoTable[[#This Row],[Fixture Measure]])),ISNUMBER(FIND(\"Small Bu\",ProjectInfoTable[[#This Row],[Fixture Measure]]))),\"$0.75 / dollar cost\",\nTEXT(ProjectInfoTable[[#This Row],[Incentives Per Unit]],\"$#,##0.00\")&\" / \"&IF(ProjectInfoTable[[#This Row],[Fixture Measure]]=\"\",\"\",IF(ProjectInfoTable[[#This Row],[TRL Unit]]=\"Measure\",IF(ISNUMBER(FIND(\"Relamp\",ProjectInfoTable[[#This Row],[Proposed Equipment]],1)),\"Lamp\",\"Fixture\"),ProjectInfoTable[[#This Row],[TRL Unit]])))))","v":""},{"$f":"IF(OR(ProjectInfoTable[[#This Row],[Proposed Equipment]]=\"\",ProjectInfoTable[[#This Row],[Quantity (Proposed)]]=\"\"),\"\",IFERROR(SUBSTITUTE(IF(ProjectType=\"Retrofit\",IF(OR(ISNUMBER(FIND(\"Controls On\",ProjectInfoTable[[#This Row],[Proposed Equipment]],1))),\"\",IF(OR(ProjectInfoTable[[#This Row],[Existing Equipment]]=\"\",ProjectInfoTable[[#This Row],[Proposed Equipment]]=\"\"),\"\",IF(ProjectState=\"UT\",IFERROR(IF(AlternativeEnergyOverride=\"Yes\",IFERROR(INDEX(INDIRECT(\"EquipmentTable_\"&\"Retrofit_\"&ProjectState&\"[#All]\"),MATCH(LEFT(ProjectInfoTable[[#This Row],[Proposed Equipment]],FIND(\"[\",ProjectInfoTable[[#This Row],[Proposed Equipment]],1)-2)&\" (Alt)\",INDIRECT(\"EquipmentTable_\"&\"Retrofit_\"&ProjectState&\"[equipmentProposed]\"),0)+1,MATCH(\"measureRetrofit_\"&LEFT(ProjectInfoTable[[#This Row],[Existing Equipment]],FIND(\":\",ProjectInfoTable[[#This Row],[Existing Equipment]],1)-1)&\"_\"&IF(IFERROR(INDEX(ControlsLookup[Rank],MATCH(RIGHT(ProjectInfoTable[[#This Row],[Proposed Equipment]],LEN(ProjectInfoTable[[#This Row],[Proposed Equipment]])-FIND(\"]\",ProjectInfoTable[[#This Row],[Proposed Equipment]],1)-3),ControlsLookup[Controls],0)),0)>IFERROR(INDEX(ControlsLookup[Rank],MATCH(RIGHT(ProjectInfoTable[[#This Row],[Existing Equipment]],LEN(ProjectInfoTable[[#This Row],[Existing Equipment]])-FIND(\"]\",ProjectInfoTable[[#This Row],[Existing Equipment]],1)-3),ControlsLookup[Controls],0)),0),INDEX(ControlsLookup[Controls Type],MATCH(LEFT(ProjectInfoTable[[#This Row],[Existing Equipment]],FIND(\":\",ProjectInfoTable[[#This Row],[Existing Equipment]],1)-1)&\"_\"&RIGHT(ProjectInfoTable[[#This Row],[Proposed Equipment]],LEN(ProjectInfoTable[[#This Row],[Proposed Equipment]])-FIND(\"]\",ProjectInfoTable[[#This Row],[Proposed Equipment]],1)-3),ControlsLookup[Controls Concatenate],0)),\"None\"),INDIRECT(\"EquipmentTable_\"&\"Retrofit_\"&ProjectState&\"[#Headers]\"),0)),INDEX(INDIRECT(\"EquipmentTable_\"&IF(ProjectType=\"Retrofit\",\"Retrofit_\",\"NCMR_\")&ProjectState&\"[#All]\"),MATCH(LEFT(ProjectInfoTable[[#This Row],[Proposed Equipment]],FIND(\"[\",ProjectInfoTable[[#This Row],[Proposed Equipment]],1)-2),INDIRECT(\"EquipmentTable_\"&\"Retrofit_\"&ProjectState&\"[equipmentProposed]\"),0)+1,MATCH(\"measureRetrofit_\"&LEFT(ProjectInfoTable[[#This Row],[Existing Equipment]],FIND(\":\",ProjectInfoTable[[#This Row],[Existing Equipment]],1)-1)&\"_\"&IF(IFERROR(INDEX(ControlsLookup[Rank],MATCH(RIGHT(ProjectInfoTable[[#This Row],[Proposed Equipment]],LEN(ProjectInfoTable[[#This Row],[Proposed Equipment]])-FIND(\"]\",ProjectInfoTable[[#This Row],[Proposed Equipment]],1)-3),ControlsLookup[Controls],0)),0)>IFERROR(INDEX(ControlsLookup[Rank],MATCH(RIGHT(ProjectInfoTable[[#This Row],[Existing Equipment]],LEN(ProjectInfoTable[[#This Row],[Existing Equipment]])-FIND(\"]\",ProjectInfoTable[[#This Row],[Existing Equipment]],1)-3),ControlsLookup[Controls],0)),0),INDEX(ControlsLookup[Controls Type],MATCH(LEFT(ProjectInfoTable[[#This Row],[Existing Equipment]],FIND(\":\",ProjectInfoTable[[#This Row],[Existing Equipment]],1)-1)&\"_\"&RIGHT(ProjectInfoTable[[#This Row],[Proposed Equipment]],LEN(ProjectInfoTable[[#This Row],[Proposed Equipment]])-FIND(\"]\",ProjectInfoTable[[#This Row],[Proposed Equipment]],1)-3),ControlsLookup[Controls Concatenate],0)),\"None\"),INDIRECT(\"EquipmentTable_\"&IF(ProjectType=\"Retrofit\",\"Retrofit_\",\"NCMR_\")&ProjectState&\"[#Headers]\"),0))),INDEX(INDIRECT(\"EquipmentTable_\"&IF(ProjectType=\"Retrofit\",\"Retrofit_\",\"NCMR_\")&ProjectState&\"[#All]\"),MATCH(LEFT(ProjectInfoTable[[#This Row],[Proposed Equipment]],FIND(\"[\",ProjectInfoTable[[#This Row],[Proposed Equipment]],1)-2),INDIRECT(\"EquipmentTable_\"&IF(ProjectType=\"Retrofit\",\"Retrofit_\",\"NCMR_\")&ProjectState&\"[equipmentProposed]\"),0)+1,MATCH(\"measureRetrofit_\"&IF(AND(SBDEligible=\"Yes\",ISNUMBER(FIND(\"SBE\",ProjectInfoTable[[#This Row],[Proposed Equipment]]))),\"SBE\",LEFT(ProjectInfoTable[[#This Row],[Existing Equipment]],FIND(\":\",ProjectInfoTable[[#This Row],[Existing Equipment]],1)-1)&\"_\"&IF(IFERROR(INDEX(ControlsLookup[Rank],MATCH(RIGHT(ProjectInfoTable[[#This Row],[Proposed Equipment]],LEN(ProjectInfoTable[[#This Row],[Proposed Equipment]])-FIND(\"]\",ProjectInfoTable[[#This Row],[Proposed Equipment]],1)-3),ControlsLookup[Controls],0)),0)>IFERROR(INDEX(ControlsLookup[Rank],MATCH(RIGHT(ProjectInfoTable[[#This Row],[Existing Equipment]],LEN(ProjectInfoTable[[#This Row],[Existing Equipment]])-FIND(\"]\",ProjectInfoTable[[#This Row],[Existing Equipment]],1)-3),ControlsLookup[Controls],0)),0),INDEX(ControlsLookup[Controls Type],MATCH(LEFT(ProjectInfoTable[[#This Row],[Existing Equipment]],FIND(\":\",ProjectInfoTable[[#This Row],[Existing Equipment]],1)-1)&\"_\"&RIGHT(ProjectInfoTable[[#This Row],[Proposed Equipment]],LEN(ProjectInfoTable[[#This Row],[Proposed Equipment]])-FIND(\"]\",ProjectInfoTable[[#This Row],[Proposed Equipment]],1)-3),ControlsLookup[Controls Concatenate],0)),\"None\")),INDIRECT(\"EquipmentTable_\"&\"Retrofit_\"&ProjectState&\"[#Headers]\"),0))),\"Non-eligible fixture - Retrofit - \"&ProjectState),IFERROR(INDEX(INDIRECT(\"EquipmentTable_\"&IF(SiteSpecificOverride=\"Yes\",\"PostPurchase_\",\"Retrofit_\")&ProjectState&\"[#All]\"),MATCH(LEFT(ProjectInfoTable[[#This Row],[Proposed Equipment]],FIND(\"[\",ProjectInfoTable[[#This Row],[Proposed Equipment]],1)-2),INDIRECT(\"EquipmentTable_\"&IF(SiteSpecificOverride=\"Yes\",\"PostPurchase_\",\"Retrofit_\")&ProjectState&\"[equipmentProposed]\"),0)+1,MATCH(\"measureRetrofit_\"&IF(AND(SBDEligible=\"Yes\",ISNUMBER(FIND(\"SBE\",ProjectInfoTable[[#This Row],[Proposed Equipment]]))),\"SBE\",LEFT(ProjectInfoTable[[#This Row],[Existing Equipment]],FIND(\":\",ProjectInfoTable[[#This Row],[Existing Equipment]],1)-1)&\"_\"&IF(IFERROR(INDEX(ControlsLookup[Rank],MATCH(RIGHT(ProjectInfoTable[[#This Row],[Proposed Equipment]],LEN(ProjectInfoTable[[#This Row],[Proposed Equipment]])-FIND(\"]\",ProjectInfoTable[[#This Row],[Proposed Equipment]],1)-3),ControlsLookup[Controls],0)),0)>IFERROR(INDEX(ControlsLookup[Rank],MATCH(RIGHT(ProjectInfoTable[[#This Row],[Existing Equipment]],LEN(ProjectInfoTable[[#This Row],[Existing Equipment]])-FIND(\"]\",ProjectInfoTable[[#This Row],[Existing Equipment]],1)-3),ControlsLookup[Controls],0)),0),INDEX(ControlsLookup[Controls Type],MATCH(LEFT(ProjectInfoTable[[#This Row],[Existing Equipment]],FIND(\":\",ProjectInfoTable[[#This Row],[Existing Equipment]],1)-1)&\"_\"&RIGHT(ProjectInfoTable[[#This Row],[Proposed Equipment]],LEN(ProjectInfoTable[[#This Row],[Proposed Equipment]])-FIND(\"]\",ProjectInfoTable[[#This Row],[Proposed Equipment]],1)-3),ControlsLookup[Controls Concatenate],0)),\"None\")),INDIRECT(\"EquipmentTable_\"&IF(SiteSpecificOverride=\"Yes\",\"PostPurchase_\",\"Retrofit_\")&ProjectState&\"[#Headers]\"),0)),\"Non-eligible fixture - Retrofit - \"&ProjectState)))),IFERROR(INDEX(INDIRECT(\"EquipmentTable_\"&\"NCMR_\"&ProjectState),MATCH(RIGHT(LEFT(ProjectInfoTable[[#This Row],[Proposed Equipment]],FIND(\" (\",ProjectInfoTable[[#This Row],[Proposed Equipment]],1)-1),LEN(LEFT(ProjectInfoTable[[#This Row],[Proposed Equipment]],FIND(\" (\",ProjectInfoTable[[#This Row],[Proposed Equipment]],1)-2))-FIND(\":\",ProjectInfoTable[[#This Row],[Proposed Equipment]],1)),INDIRECT(\"EquipmentTable_\"&\"NCMR_\"&ProjectState&\"[equipmentProposed]\"),0),MATCH(\"measureNCMR_\"&LEFT(ProjectInfoTable[[#This Row],[Proposed Equipment]],FIND(\":\",ProjectInfoTable[[#This Row],[Proposed Equipment]],1)-1)&\"_\"&IF(LEN(ProjectInfoTable[[#This Row],[Proposed Equipment]])>FIND(\"]\",ProjectInfoTable[[#This Row],[Proposed Equipment]]),INDEX(ControlsLookup[Controls Type],MATCH(LEFT(ProjectInfoTable[[#This Row],[Proposed Equipment]],FIND(\":\",ProjectInfoTable[[#This Row],[Proposed Equipment]],1)-1)&\"_\"&RIGHT(ProjectInfoTable[[#This Row],[Proposed Equipment]],LEN(ProjectInfoTable[[#This Row],[Proposed Equipment]])-FIND(\"]\",ProjectInfoTable[[#This Row],[Proposed Equipment]],1)-3),ControlsLookup[Controls Concatenate],0)),\"None\"),INDIRECT(\"EquipmentTable_\"&\"NCMR_\"&ProjectState&\"[#Headers]\"),0)),\"Non-eligible fixture - NCMR - \"&ProjectState)),\"[NAMESUB]\",ProjectInfoTable[[#This Row],[Measure Name Sub]]),\"Non-eligible fixture - Retrofit - \"&ProjectState))","v":""},{"$f":"IF(ISNUMBER(SEARCH(\"Case\",ProjectInfoTable[[#This Row],[Fixture Measure]])),CONCATENATE(ProjectInfoTable[[#This Row],[Fixture Measure]],ProjectInfoTable[[#This Row],[No. of TRL Units]],ProjectInfoTable[[#This Row],[Quantity]]),\"\")","v":""},{"$f":"IF(ProjectInfoTable[[#This Row],[Proposed Equipment]]=\"\",\"\",\nIF(AND(ProjectState = \"UT\",ISNUMBER(FIND(\" TLED \",ProjectInfoTable[[#This Row],[Proposed Equipment]]))),\nIF(VALUE(ProjectInfoTable[[#This Row],[Lamp W (Proposed)]])<20,\"< 20 W\",\nIF(AND(VALUE(ProjectInfoTable[[#This Row],[Lamp W (Proposed)]])<=39,VALUE(ProjectInfoTable[[#This Row],[Lamp W (Proposed)]])>=20),\">= 20 W and <= 39 W\",)),\n\nIF(AND(ProjectType=\"Retrofit\",OR(ISNUMBER(FIND(\"Retrofit Kit\",ProjectInfoTable[[#This Row],[Proposed Equipment]])),ISNUMBER(FIND(\"Fixture\",ProjectInfoTable[[#This Row],[Proposed Equipment]]))),OR(ISNUMBER(FIND(\"Exterior\",ProjectInfoTable[[#This Row],[Existing Equipment]])),ISNUMBER(FIND(\"Street\",ProjectInfoTable[[#This Row],[Existing Equipment]])))),\nIF(ProjectInfoTable[[#This Row],[Fixture W (Proposed)]]<50,\"< 50 W\",\nIF(AND(ProjectInfoTable[[#This Row],[Fixture W (Proposed)]]<90,ProjectInfoTable[[#This Row],[Fixture W (Proposed)]]>=50),\">= 50 W and < 90 W\",\nIF(AND(ProjectInfoTable[[#This Row],[Fixture W (Proposed)]]<135,ProjectInfoTable[[#This Row],[Fixture W (Proposed)]]>=90),\">= 90 W and < 135 W\",\nIF(AND(ProjectInfoTable[[#This Row],[Fixture W (Proposed)]]<220,ProjectInfoTable[[#This Row],[Fixture W (Proposed)]]>=135),\">= 135 W and < 220 W\",\nIF(ProjectInfoTable[[#This Row],[Fixture W (Proposed)]]>=220,\">= 220 W\"))))),\"\")))","v":""},{"$f":"IFERROR(INDEX(INDIRECT(\"MeasureTable_\" & ProjectState & \"[Measure Reference Number]\"),MATCH(ProjectInfoTable[[#This Row],[Fixture Measure]],INDIRECT(\"MeasureTable_\" &ProjectState&\"[Measure Name]\"),0)),\"\")","v":""},{"$f":"IFERROR(\n    _xlfn.LET(\n        _xlpm.filteredVersions,\n            _xlfn._xlws.FILTER(\n                INDIRECT(\"MeasureTable_\" & ProjectState & \"[Version Number]\"),\n                (INDIRECT(\"MeasureTable_\" & ProjectState & \"[Measure Reference Number]\") = ProjectInfoTable[[#This Row],[Fixture Measure Reference Number]]) *\n                (INDIRECT(\"MeasureTable_\" & ProjectState & \"[Eligible Measure]\") = TRUE)\n            ),\n        INDEX(_xlpm.filteredVersions, 1)\n    ),\n    \"\"\n)","v":""},{"$f":"IFERROR(\n  _xlfn.LET(\n    _xlpm.refRange, INDIRECT(\"MeasureTable_\" & ProjectState & \"[Measure Reference Number]\"),\n    _xlpm.eligibleRange, INDIRECT(\"MeasureTable_\" & ProjectState & \"[Eligible Measure]\"),\n    _xlpm.countTrue, SUMPRODUCT(--(_xlpm.refRange = ProjectInfoTable[[#This Row],[Fixture Measure Reference Number]]), --(_xlpm.eligibleRange = TRUE)),\n    _xlpm.countNonBlank, SUMPRODUCT(--(_xlpm.refRange = ProjectInfoTable[[#This Row],[Fixture Measure Reference Number]]), --(_xlpm.eligibleRange <> \"\")),\n    IF(_xlpm.countNonBlank = 0, \"\", IF(_xlpm.countTrue >= 1, TRUE, FALSE))\n  ),\n  \"\"\n)","v":""},{"$f":"IFERROR(VALUE(INDEX(INDIRECT(\"MeasureTable_\" & ProjectState & \"[CustomerIncentiveDollarperunit]\"),MATCH(ProjectInfoTable[[#This Row],[Fixture Measure]]&\" | TRUE\",INDIRECT(\"MeasureTable_\" &ProjectState&\"[MeasureEligibleConcatenate]\"),0))),\"\")","v":""},{"$f":"IFERROR(INDEX(INDIRECT(\"MeasureTable_\"&ProjectState&\"[SiteSpecificCalculation]\"),MATCH(ProjectInfoTable[[#This Row],[Fixture Measure]]&\" | TRUE\",INDIRECT(\"MeasureTable_\" &ProjectState&\"[MeasureEligibleConcatenate]\"),0)),\"\")","v":""},{"$f":"IFERROR(INDEX(INDIRECT(\"MeasureTable_\"&ProjectState&\"[GrossIncrementalAnnualElectricSavings]\"),MATCH(ProjectInfoTable[[#This Row],[Fixture Measure]]&\" | TRUE\",INDIRECT(\"MeasureTable_\" &ProjectState&\"[MeasureEligibleConcatenate]\"),0)),\"\")","v":""},{"$f":"IFERROR(INDEX(INDIRECT(\"MeasureTable_\"&ProjectState&\"[GrossAverageMonthlyDemandReduction]\"),MATCH(ProjectInfoTable[[#This Row],[Fixture Measure]]&\" | TRUE\",INDIRECT(\"MeasureTable_\" &ProjectState&\"[MeasureEligibleConcatenate]\"),0)),\"\")","v":""},{"$f":"IF(ProjectInfoTable[[#This Row],[Fixture Measure]]=\"\",\"\",IF(NOT(ISNUMBER(FIND(\"Site-Specific - Downstream\",ProjectInfoTable[[#This Row],[Fixture Measure]]))),\"\",\nIF(ISNUMBER(MATCH(SUBSTITUTE(ProjectInfoTable[[#This Row],[Fixture Measure]],\"Site-Specific - Downstream - v2\",\"Mid Market\"),INDIRECT(\"MeasureTable_\"&ProjectState&\"[Measure Name]\"),0)),\nSUBSTITUTE(ProjectInfoTable[[#This Row],[Fixture Measure]],\"Site-Specific - Downstream - v2\",\"Mid Market\"),\nSUBSTITUTE(ProjectInfoTable[[#This Row],[Fixture Measure]],\"Site-Specific - Downstream\",\"Mid Market\"))\n))","v":""},{"$f":"IF(ProjectInfoTable[[#This Row],[Midstream Measure Name]]=\"\",\"\",IFERROR(INDEX(INDIRECT(\"MeasureTable_\"&ProjectState&\"[GrossIncrementalAnnualElectricSavings ]\"),MATCH(ProjectInfoTable[[#This Row],[Midstream Measure Name]]&\" | TRUE\",INDIRECT(\"MeasureTable_\" &ProjectState&\"[MeasureEligibleConcatenate]\"),0)),\"\"))","v":""},{"$f":"IF(ProjectInfoTable[[#This Row],[Midstream Measure Name]]=\"\",\"\",IFERROR(INDEX(INDIRECT(\"MeasureTable_\"&ProjectState&\"[GrossAverage onthly emand eduction]\"),MATCH(ProjectInfoTable[[#This Row],[Midstream Measure Name]]&\" | TRUE\",INDIRECT(\"MeasureTable_\" &ProjectState&\"[MeasureEligibleConcatenate]\"),0)),\"\"))","v":""},{"$f":"IFERROR(INDEX(INDIRECT(\"MeasureTable_\"&ProjectState&\"[IncrementalMeasureCost]\"),MATCH(ProjectInfoTable[[#This Row],[Fixture Measure]]&\" | TRUE\",INDIRECT(\"MeasureTable_\" &ProjectState&\"[MeasureEligibleConcatenate]\"),0)),\"\")","v":""},{"$f":"IF(ProjectInfoTable[[#This Row],[Fixture Measure]]=\"\",\"\",IF(AND(ProjectState=\"UT\",ProjectInfoTable[[#This Row],[Measure Selection]]=\"\"),0,\nIF(OR(ISNUMBER(FIND(\"SBDI\",ProjectInfoTable[[#This Row],[Fixture Measure]])),ISNUMBER(FIND(\"Small Bu\",ProjectInfoTable[[#This Row],[Fixture Measure]]))),ProjectInfoTable[[#This Row],[Quantity (Proposed)]]*ProjectInfoTable[[#This Row],[Lamps (Proposed)]],\nIF(OR(ProjectInfoTable[[#This Row],[TRL Unit]]=\"Measure\",ProjectInfoTable[[#This Row],[TRL Unit]]=\"Linear ft.\"),IF(OR(ISNUMBER(FIND(\"Lamp\",ProjectInfoTable[[#This Row],[Fixture Measure]],1)),ISNUMBER(FIND(\"Relamp\",ProjectInfoTable[[#This Row],[Fixture Measure]],1)),ISNUMBER(FIND(\"Relamp\",ProjectInfoTable[[#This Row],[Proposed Equipment]],1))),ProjectInfoTable[[#This Row],[Quantity (Proposed)]]*ProjectInfoTable[[#This Row],[Lamps (Proposed)]],ProjectInfoTable[[#This Row],[Quantity (Proposed)]]),1))))","v":""},{"$f":"IF(ProjectInfoTable[[#This Row],[Fixture Measure]]=\"\",\"\",IF(AND(ProjectState=\"UT\",ProjectInfoTable[[#This Row],[Measure Selection]]=\"\"),0,\nIF(OR(ISNUMBER(FIND(\"SBDI\",ProjectInfoTable[[#This Row],[Fixture Measure]])),ISNUMBER(FIND(\"Small Bu\",ProjectInfoTable[[#This Row],[Fixture Measure]]))),1,\nIF(ISNUMBER(FIND(\"Controls Only\",ProjectInfoTable[[#This Row],[Proposed Equipment]],1)),IF(OR(ProjectType <> \"Retrofit\",ProjectInfoTable[[#This Row],[Space W (Proposed)]]>0),ProjectInfoTable[[#This Row],[Space W (Proposed)]],ProjectInfoTable[[#This Row],[Space W (Existing, Stipulated)]]),\nIF(TRIM(UPPER(ProjectInfoTable[[#This Row],[TRL Unit]]))=\"LINEAR FT.\",IF(OR(ISNUMBER(FIND(\"Marquee\",ProjectInfoTable[[#This Row],[Proposed Equipment]],1)),ISNUMBER(FIND(\"Cabinet\",ProjectInfoTable[[#This Row],[Proposed Equipment]],1))),VALUE(RIGHT(LEFT(ProjectInfoTable[[#This Row],[Existing Equipment]],FIND(\"LF \",ProjectInfoTable[[#This Row],[Existing Equipment]],1)-1),LEN(LEFT(ProjectInfoTable[[#This Row],[Existing Equipment]],FIND(\"LF \",ProjectInfoTable[[#This Row],[Existing Equipment]],1)-1))-FIND(\"[\",ProjectInfoTable[[#This Row],[Existing Equipment]],1))),VALUE(RIGHT(LEFT(ProjectInfoTable[[#This Row],[Proposed Equipment]],FIND(\"LF \",ProjectInfoTable[[#This Row],[Proposed Equipment]],1)-1),LEN(LEFT(ProjectInfoTable[[#This Row],[Proposed Equipment]],FIND(\"LF \",ProjectInfoTable[[#This Row],[Proposed Equipment]],1)-1))-FIND(\"[\",ProjectInfoTable[[#This Row],[Proposed Equipment]],1)))),\nIF(TRIM(UPPER(ProjectInfoTable[[#This Row],[TRL Unit]]))=\"KWH\",IF(ProjectInfoTable[[#This Row],[Fixture Measure kWh/yr Savings (Stipulated)]]=0,0,ROUND(ProjectInfoTable[[#This Row],[Fixture Measure kWh/yr Savings (Stipulated)]],2)),\nIF(TRIM(UPPER(ProjectInfoTable[[#This Row],[TRL Unit]]))=\"WATT REDUCED\",IF(ProjectInfoTable[[#This Row],[Fixture Measure kWh/yr Savings (Stipulated)]]=0,0,ROUND(ProjectInfoTable[[#This Row],[Space W (Existing, Stipulated)]]-ProjectInfoTable[[#This Row],[Space W (Proposed)]],2)),\nIF(TRIM(UPPER(ProjectInfoTable[[#This Row],[TRL Unit]]))=\"FIXTURE WATTAGE\",ProjectInfoTable[[#This Row],[Space W (Proposed)]],1))))))))","v":""},{"$f":"IFERROR(IF(OR(ISNUMBER(FIND(\"SBDI\",ProjectInfoTable[[#This Row],[Fixture Measure]])),ISNUMBER(FIND(\"Small Bu\",ProjectInfoTable[[#This Row],[Fixture Measure]]))),0,INDEX(INDIRECT(\"MeasureTable_\"&ProjectState&\"[Unit]\"),MATCH(ProjectInfoTable[[#This Row],[Fixture Measure]]&\" | TRUE\",INDIRECT(\"MeasureTable_\" &ProjectState&\"[MeasureEligibleConcatenate]\"),0))),\"\")","v":""},{"$f":"IF(ProjectInfoTable[[#This Row],[Fixture Measure]]=\"\",\"\",IF(OR(ISNUMBER(FIND(\"Lamp(s)\",ProjectInfoTable[[#This Row],[Fixture Measure]],1)),ISNUMBER(FIND(\"Relamp\",ProjectInfoTable[[#This Row],[Proposed Equipment]],1))),\"Lamp(s)\",\"Fixture(s)\"))","v":""},{"$f":"IFERROR(INDEX(INDIRECT(\"MeasureTable_\"&ProjectState&\"[ProjectCapPercent]\"),MATCH(ProjectInfoTable[[#This Row],[Fixture Measure]]&\" | TRUE\",INDIRECT(\"MeasureTable_\" &ProjectState&\"[MeasureEligibleConcatenate]\"),0)),\"\")","v":""},{"$f":"IF(OR(ProjectInfoTable[[#This Row],[Control Measure]]=\"\",ProjectInfoTable[[#This Row],[OpSch]]=\"\",ProjectInfoTable[[#This Row],[Eligible Control Measure]]<>TRUE),\"\",IF(AND(OR(ProjectType=\"New Construction\",ProjectType=\"Major Renovation\"),LPDCodeToProposed<0.1,ISNUMBER(FIND(\"Interior\",ProjectInfoTable[[#This Row],[Proposed Equipment]],1))),0,IFERROR(ProjectInfoTable[[#This Row],[Control Incentives Per Unit]]*ProjectInfoTable[[#This Row],[Control Quantity]]*ProjectInfoTable[[#This Row],[Control No. of TRL Units]],\"TRL Error\")))","v":""},{"$f":"IF(OR(ProjectInfoTable[[#This Row],[Control Measure]]=\"\",ProjectInfoTable[[#This Row],[OpSch]]=\"\",ProjectInfoTable[[#This Row],[Eligible Control Measure]]<>TRUE),\"\",IF(AND(ProjectType=\"Retrofit\",ProjectState=\"UT\",ISNUMBER(FIND(\"Post Purchase\",ProjectInfoTable[[#This Row],[Control Measure]],1))),\n\nIFERROR(MAX(MIN(ProjectInfoTable[[#This Row],[Control Incentives (pre-capping)]],ProjectInfoTable[[#This Row],[Control Cost (Allocated)]]*0.7),0),0),\n\nIF(ProjectType=\"Retrofit\",IF(ISNUMBER(FIND(\"Post Purchase\",ProjectInfoTable[[#This Row],[Control Measure]],1)),ProjectInfoTable[[#This Row],[Control Incentives (pre-capping)]],IFERROR($BI$3/$BH$3*ProjectInfoTable[[#This Row],[Control Incentives (pre-capping)]],\"\")),\n\nIF(ISNUMBER(FIND(\"Interior\",ProjectInfoTable[[#This Row],[Proposed Equipment]],1)),IF(LPDCodeToProposed>0.1,ProjectInfoTable[[#This Row],[Control Incentives (pre-capping)]],0),ProjectInfoTable[[#This Row],[Control Incentives (pre-capping)]]))))","v":""},{"$f":"IF(OR(ProjectInfoTable[[#This Row],[Control Incentives Per Unit]]=\"\",ProjectInfoTable[[#This Row],[Control TRL Unit]]=\"\"),\"\",IF(ProjectInfoTable[[#This Row],[Eligible Control Measure]]<>TRUE,\"Invalid Effective Date\",TEXT(ProjectInfoTable[[#This Row],[Control Incentives Per Unit]],\"$#,##0.00\")&\" / \"&ProjectInfoTable[[#This Row],[Control TRL Unit]]))","v":""},{"$f":"IF(ISNUMBER(FIND(\"SBE\",ProjectInfoTable[[#This Row],[Proposed Equipment]])),\"\",\n\nIF(LEN(ProjectInfoTable[[#This Row],[Proposed Equipment]])>\n\nIFERROR(FIND(\"]\",ProjectInfoTable[[#This Row],[Proposed Equipment]],1),0),\nSUBSTITUTE(\nIF(OR(ProjectInfoTable[[#This Row],[Control Method]]=\"separate\",ISNUMBER(FIND(\"Midstream\",ProjectInfoTable[[#This Row],[Fixture Measure]],1)),ISNUMBER(FIND(\"Midstream\",ProjectInfoTable[[#This Row],[Equipment Category]],1)),ISNUMBER(FIND(\"Prescriptive\",ProjectInfoTable[[#This Row],[Equipment Category]],1)),ISNUMBER(FIND(\"LED\",ProjectInfoTable[[#This Row],[Fixture Measure]],1)),ISNUMBER(FIND(\"LED Case\",ProjectInfoTable[[#This Row],[Fixture Measure]],1)),ISNUMBER(FIND(\"LED Decorative - Retrofit - WA\",ProjectInfoTable[[#This Row],[Fixture Measure]],1)),ISNUMBER(FIND(\"Lamp\",ProjectInfoTable[[#This Row],[Fixture Measure]],1)),ISNUMBER(FIND(\"Relamp\",ProjectInfoTable[[#This Row],[Fixture Measure]],1)),ISNUMBER(FIND(\"Wall Pack\",ProjectInfoTable[[#This Row],[Fixture Measure]],1)),ISNUMBER(FIND(\"Controls Only\",ProjectInfoTable[[#This Row],[Proposed Equipment]],1)),ISNUMBER(FIND(\"Re-Commissioning\",ProjectInfoTable[[#This Row],[Proposed Equipment]],1)),\n\nAND(OR(ISNUMBER(FIND(\"Exterior:\",ProjectInfoTable[[#This Row],[Proposed Equipment]],1)),ISNUMBER(FIND(\"Street:\",ProjectInfoTable[[#This Row],[Proposed Equipment]],1))),OR(ProjectState=\"ID\",ProjectState=\"UT\",ProjectState=\"WY\"))),\n\nIF(IFERROR(INDEX(ControlsLookup[],MATCH(IF(ProjectType=\"Retrofit\",LEFT(ProjectInfoTable[[#This Row],[Existing Equipment]],FIND(\":\",ProjectInfoTable[[#This Row],[Existing Equipment]],1)-1),LEFT(ProjectInfoTable[[#This Row],[Proposed Equipment]],FIND(\":\",ProjectInfoTable[[#This Row],[Proposed Equipment]],1)-1))&\"_\"&RIGHT(ProjectInfoTable[[#This Row],[Proposed Equipment]],LEN(ProjectInfoTable[[#This Row],[Proposed Equipment]])-FIND(\"]\",ProjectInfoTable[[#This Row],[Proposed Equipment]],1)-3),ControlsLookup[Controls Concatenate],0),MATCH(\n\nIF(ProjectType=\"Retrofit\",\"ControlMeasure_\",\"NCMRControlMeasure_\")&ProjectState,ControlsLookup[#Headers],0)),\"\")=0,\"\",\n\nIFERROR(INDEX(ControlsLookup[],MATCH(IF(ProjectType=\"Retrofit\",LEFT(ProjectInfoTable[[#This Row],[Existing Equipment]],FIND(\":\",ProjectInfoTable[[#This Row],[Existing Equipment]],1)-1),LEFT(ProjectInfoTable[[#This Row],[Proposed Equipment]],FIND(\":\",ProjectInfoTable[[#This Row],[Proposed Equipment]],1)-1))&\"_\"&RIGHT(ProjectInfoTable[[#This Row],[Proposed Equipment]],LEN(ProjectInfoTable[[#This Row],[Proposed Equipment]])-FIND(\"]\",ProjectInfoTable[[#This Row],[Proposed Equipment]],1)-3),ControlsLookup[Controls Concatenate],0),MATCH(\n\nIF(ProjectType=\"Retrofit\",\"ControlMeasure_\",\"NCMRControlMeasure_\")&ProjectState&IF(ProjectState=\"UT\",SegmentTag,\"\"),ControlsLookup[#Headers],0)),\"\")),\"\"),\"[NAMESUB]\",ProjectInfoTable[[#This Row],[Control Measure Name Sub]]),\"\"))","v":""},{"$f":"IF(ProjectInfoTable[[#This Row],[Proposed Equipment]]=\"\",\"\",IF(AND(ProjectState=\"UT\",ProjectType=\"Retrofit\",ISNUMBER(FIND(\"Re-Commissioning\",ProjectInfoTable[[#This Row],[Proposed Equipment]]))),\nIF(ProjectRecommissioning=\"only recommissioning\",\"Commissioning Only\",\"Commissioning w/ Lighting Upgrade\"),\"\"))","v":""},{"$f":"IFERROR(INDEX(INDIRECT(\"MeasureTable_\" & ProjectState & \"[Measure Reference Number]\"),MATCH(ProjectInfoTable[[#This Row],[Control Measure]],INDIRECT(\"MeasureTable_\" &ProjectState&\"[Measure Name]\"),0)),\"\")","v":""},{"$f":"IFERROR(\n    _xlfn.LET(\n        _xlpm.filteredVersions,\n            _xlfn._xlws.FILTER(\n                INDIRECT(\"MeasureTable_\" & ProjectState & \"[Version Number]\"),\n                (INDIRECT(\"MeasureTable_\" & ProjectState & \"[Measure Reference Number]\") = ProjectInfoTable[[#This Row],[Control Measure Reference Number]]) *\n                (INDIRECT(\"MeasureTable_\" & ProjectState & \"[Eligible Measure]\") = TRUE)\n            ),\n        INDEX(_xlpm.filteredVersions, 1)\n    ),\n    \"\"\n)","v":""},{"$f":"IFERROR(\n  _xlfn.LET(\n    _xlpm.refRange, INDIRECT(\"MeasureTable_\" & ProjectState & \"[Measure Reference Number]\"),\n    _xlpm.eligibleRange, INDIRECT(\"MeasureTable_\" & ProjectState & \"[Eligible Measure]\"),\n    _xlpm.countTrue, SUMPRODUCT(--(_xlpm.refRange = ProjectInfoTable[[#This Row],[Control Measure Reference Number]]), --(_xlpm.eligibleRange = TRUE)),\n    _xlpm.countNonBlank, SUMPRODUCT(--(_xlpm.refRange = ProjectInfoTable[[#This Row],[Control Measure Reference Number]]), --(_xlpm.eligibleRange <> \"\")),\n    IF(_xlpm.countNonBlank = 0, \"\", IF(_xlpm.countTrue >= 1, TRUE, FALSE))\n  ),\n  \"\"\n)","v":""},{"$f":"IF(ProjectInfoTable[[#This Row],[Proposed Equipment]]=\"\",\"\",IFERROR(INDEX(INDIRECT(\"EquipmentTable_\"&IF(ProjectType=\"Retrofit\",\"Retrofit_\",\"NCMR_\")&ProjectState&\"[controlMethod]\"),MATCH(LEFT(ProjectInfoTable[[#This Row],[Proposed Equipment]],FIND(\"[\",ProjectInfoTable[[#This Row],[Proposed Equipment]],1)-2),INDIRECT(\"EquipmentTable_\"&IF(ProjectType=\"Retrofit\",\"Retrofit_\",\"NCMR_\")&ProjectState&\"[equipmentProposed]\"),0)),\"\"))","v":""},{"$f":"IFERROR(VALUE(INDEX(INDIRECT(\"MeasureTable_\" & ProjectState & \"[CustomerIncentiveDollarperunit]\"),MATCH(ProjectInfoTable[[#This Row],[Control Measure]]&\" | TRUE\",INDIRECT(\"MeasureTable_\"&ProjectState&\"[MeasureEligibleConcatenate]\"),0))),\"\")","v":""},{"$f":"IFERROR(INDEX(INDIRECT(\"MeasureTable_\"&ProjectState&\"[SiteSpecificCalculation]\"),MATCH(ProjectInfoTable[[#This Row],[Control Measure]]&\" | TRUE\",INDIRECT(\"MeasureTable_\"&ProjectState&\"[MeasureEligibleConcatenate]\"),0)),\"\")","v":""},{"$f":"IFERROR(INDEX(INDIRECT(\"MeasureTable_\"&ProjectState&\"[GrossIncrementalAnnualElectricSavings ]\"),MATCH(ProjectInfoTable[[#This Row],[Control Measure]]&\" | TRUE\",INDIRECT(\"MeasureTable_\"&ProjectState&\"[MeasureEligibleConcatenate]\"),0)),\"\")","v":""},{"$f":"IFERROR(INDEX(INDIRECT(\"MeasureTable_\"&ProjectState&\"[GrossAverage onthly emand eduction]\"),MATCH(ProjectInfoTable[[#This Row],[Control Measure]]&\" | TRUE\",INDIRECT(\"MeasureTable_\"&ProjectState&\"[MeasureEligibleConcatenate]\"),0)),\"\")","v":""},{"$f":"IFERROR(INDEX(INDIRECT(\"MeasureTable_\"&ProjectState&\"[IncrementalMeasureCost]\"),MATCH(ProjectInfoTable[[#This Row],[Control Measure]]&\" | TRUE\",INDIRECT(\"MeasureTable_\"&ProjectState&\"[MeasureEligibleConcatenate]\"),0)),\"\")","v":""},{"$f":"IF(ProjectInfoTable[[#This Row],[Control Measure]]=\"\",\"\",IF(OR(ProjectInfoTable[[#This Row],[Control TRL Unit]]=\"Measure\",ProjectInfoTable[[#This Row],[Control TRL Unit]]=\"Linear ft.\"),IF(OR(ISNUMBER(FIND(\"Midstream\",ProjectInfoTable[[#This Row],[Control Measure]],1)),ISNUMBER(FIND(\"Lamp\",ProjectInfoTable[[#This Row],[Control Measure]],1))),ProjectInfoTable[[#This Row],[Quantity (Proposed)]]*ProjectInfoTable[[#This Row],[Lamps (Proposed)]],ProjectInfoTable[[#This Row],[Quantity (Proposed)]]),1))","v":""},{"$f":"IF(ProjectInfoTable[[#This Row],[Control Measure]]=\"\",\"\",IF(ISNUMBER(FIND(\"LF \",ProjectInfoTable[[#This Row],[Proposed Equipment]],1)),VALUE(RIGHT(LEFT(ProjectInfoTable[[#This Row],[Proposed Equipment]],FIND(\"LF \",ProjectInfoTable[[#This Row],[Proposed Equipment]],1)-1),LEN(LEFT(ProjectInfoTable[[#This Row],[Proposed Equipment]],FIND(\"LF \",ProjectInfoTable[[#This Row],[Proposed Equipment]],1)-1))-FIND(\"[\",ProjectInfoTable[[#This Row],[Proposed Equipment]],1))),IF(TRIM(UPPER(ProjectInfoTable[[#This Row],[Control TRL Unit]]))=\"WATT CONTROLLED\",IF(ISNUMBER(FIND(\"Controls Only\",ProjectInfoTable[[#This Row],[Proposed Equipment]],1)),IF(OR(ProjectType <> \"Retrofit\",ProjectInfoTable[[#This Row],[Space W (Proposed)]]>0),ProjectInfoTable[[#This Row],[Space W (Proposed)]],ProjectInfoTable[[#This Row],[Space W (Existing, Stipulated)]]),ProjectInfoTable[[#This Row],[Space W (Proposed)]]),IF(TRIM(UPPER(ProjectInfoTable[[#This Row],[Control TRL Unit]]))=\"KWH\",IF(ProjectInfoTable[[#This Row],[Control Measure kWh/yr Savings (Stipulated)]]=0,0,ROUND(ProjectInfoTable[[#This Row],[Control Measure kWh/yr Savings (Stipulated)]],2)),1))))","v":""},{"$f":"IFERROR(IF(LEN(ProjectInfoTable[[#This Row],[Proposed Equipment]])-(FIND(\"]\",ProjectInfoTable[[#This Row],[Proposed Equipment]],1))>0,\"Control(s)\",\"\"),\"\")","v":""},{"$f":"IFERROR(INDEX(INDIRECT(\"MeasureTable_\"&ProjectState&\"[Unit]\"),MATCH(ProjectInfoTable[[#This Row],[Control Measure]]&\" | TRUE\",INDIRECT(\"MeasureTable_\"&ProjectState&\"[MeasureEligibleConcatenate]\"),0)),\"\")","v":""},{"$f":"IFERROR(INDEX(INDIRECT(\"MeasureTable_\"&ProjectState&\"[ProjectCapPercent]\"),MATCH(ProjectInfoTable[[#This Row],[Control Measure]]&\" | TRUE\",INDIRECT(\"MeasureTable_\"&ProjectState&\"[MeasureEligibleConcatenate]\"),0)),\"\")","v":""},{"$f":"IF(OR(ProjectInfoTable[[#This Row],[Fixture Measure]]<>\"\",ProjectInfoTable[[#This Row],[Control Measure]]<>\"\"),1,\"\")","v":""},{"$f":"IF(ProjectInfoTable[[#This Row],[TRL Unit]]=\"\",\"\",IF(OR(ISNUMBER(SEARCH(\"measure\",ProjectInfoTable[[#This Row],[TRL Unit]])),ISNUMBER(SEARCH(\"linear ft\",ProjectInfoTable[[#This Row],[TRL Unit]])),ProjectInfoTable[[#This Row],[TRL Unit]]=0),990,991))","v":""},{"$f":"IFERROR(SUBSTITUTE(LEFT(ProjectInfoTable[[#This Row],[Proposed Equipment]],FIND(\"]\",ProjectInfoTable[[#This Row],[Proposed Equipment]],1)),\"Controls Only []\",\"\",1),\"\")","v":""},{"$f":"IF(ProjectInfoTable[[#This Row],[FixturesOnly]]=\"\",\"\",IF(ISNUMBER(FIND(\"L \",ProjectInfoTable[[#This Row],[Proposed Equipment]],1)),ProjectInfoTable[[#This Row],[Quantity (Proposed)]]*ProjectInfoTable[[#This Row],[Lamps (Proposed)]],ProjectInfoTable[[#This Row],[Quantity (Proposed)]]))","v":""},{"$f":"IFERROR(INDEX(ControlsLookup[Full Description],MATCH(RIGHT(ProjectInfoTable[[#This Row],[Proposed Equipment]],LEN(ProjectInfoTable[[#This Row],[Proposed Equipment]])-FIND(\"]\",ProjectInfoTable[[#This Row],[Proposed Equipment]],1)-3),ControlsLookup[Controls],0)),\"\")","v":""},{"$f":"IF(ProjectInfoTable[[#This Row],[ControlsOnly]]=\"\",\"\",IF(OR(ISNUMBER(FIND(\"Net\",ProjectInfoTable[[#This Row],[Proposed Equipment]],1)),ISNUMBER(FIND(\"Int\",ProjectInfoTable[[#This Row],[Proposed Equipment]],1))),ProjectInfoTable[[#This Row],[Quantity (Proposed)]],1))","v":""}]
[null,{"$f":"ROW(ProjectInfoTable[[#This Row],[OpSch]])-ROW(ProjectInfoTable[[#Headers],[OpSch]])","v":15},{"$f":"IFERROR(INDEX(RetrofitBaselineEquipment_Table[categoryBaseline],MATCH(RIGHT(LEFT(ProjectInfoTable[[#This Row],[Existing Equipment]],FIND(\" (\",ProjectInfoTable[[#This Row],[Existing Equipment]],1)-1),LEN(LEFT(ProjectInfoTable[[#This Row],[Existing Equipment]],FIND(\" (\",ProjectInfoTable[[#This Row],[Existing Equipment]],1)-1))-FIND(\": \",ProjectInfoTable[[#This Row],[Existing Equipment]],1)-1),RetrofitBaselineEquipment_Table[equipmentBaseline],0)),\"\")","v":""},null,null,null,null,{"$f":"IF(ProjectInfoTable[[#This Row],[Existing Equipment]]=\"\",\"\",IF(ISNUMBER(FIND(\"LF\",ProjectInfoTable[[#This Row],[Existing Equipment]],1)),1,IFERROR(VALUE(SUBSTITUTE(RIGHT(LEFT(ProjectInfoTable[[#This Row],[Existing Equipment]],FIND(\"L\",ProjectInfoTable[[#This Row],[Existing Equipment]],FIND(\"[\",ProjectInfoTable[[#This Row],[Existing Equipment]],1))-1),3),\"[\",\"\")),1)))","v":""},{"$f":"IF(ProjectInfoTable[[#This Row],[Existing Equipment]]=\"\",\"\",VALUE(SUBSTITUTE(RIGHT(LEFT(RIGHT(ProjectInfoTable[[#This Row],[Existing Equipment]],LEN(ProjectInfoTable[[#This Row],[Existing Equipment]])-IFERROR(FIND(\"[\",ProjectInfoTable[[#This Row],[Existing Equipment]],1),0)),IFERROR(FIND(\"W\",RIGHT(ProjectInfoTable[[#This Row],[Existing Equipment]],LEN(ProjectInfoTable[[#This Row],[Existing Equipment]])-IFERROR(FIND(\"[\",ProjectInfoTable[[#This Row],[Existing Equipment]],1),0)),1),0)),LEN(LEFT(RIGHT(ProjectInfoTable[[#This Row],[Existing Equipment]],LEN(ProjectInfoTable[[#This Row],[Existing Equipment]])-IFERROR(FIND(\"[\",ProjectInfoTable[[#This Row],[Existing Equipment]],1),0)),IFERROR(FIND(\"W\",RIGHT(ProjectInfoTable[[#This Row],[Existing Equipment]],LEN(ProjectInfoTable[[#This Row],[Existing Equipment]])-IFERROR(FIND(\"[\",ProjectInfoTable[[#This Row],[Existing Equipment]],1),0)),1),0)))-IFERROR(FIND(\"-\",LEFT(RIGHT(ProjectInfoTable[[#This Row],[Existing Equipment]],LEN(ProjectInfoTable[[#This Row],[Existing Equipment]])-IFERROR(FIND(\"[\",ProjectInfoTable[[#This Row],[Existing Equipment]],1),0)),IFERROR(FIND(\"W\",RIGHT(ProjectInfoTable[[#This Row],[Existing Equipment]],LEN(ProjectInfoTable[[#This Row],[Existing Equipment]])-IFERROR(FIND(\"[\",ProjectInfoTable[[#This Row],[Existing Equipment]],1),0)),1),0)),1),0)),\"W\",\"\")))","v":""},{"$f":"IF(ProjectInfoTable[[#This Row],[Existing Equipment]]=\"\",\"\",IF(AND(RIGHT(LEFT(ProjectInfoTable[[#This Row],[Existing Equipment]],FIND(\"]\",ProjectInfoTable[[#This Row],[Existing Equipment]],1)-1),1)<>\"W\"),IFERROR(TRIM(IF(IFERROR(FIND(\"FLT\",ProjectInfoTable[[#This Row],[Existing Equipment]],1),0)>0,LEFT(RIGHT(LEFT(ProjectInfoTable[[#This Row],[Existing Equipment]],FIND(\" (\",ProjectInfoTable[[#This Row],[Existing Equipment]],1)),LEN(LEFT(ProjectInfoTable[[#This Row],[Existing Equipment]],FIND(\" (\",ProjectInfoTable[[#This Row],[Existing Equipment]],1)))-FIND(\":\",ProjectInfoTable[[#This Row],[Existing Equipment]],1)-1),FIND(\" \",RIGHT(LEFT(ProjectInfoTable[[#This Row],[Existing Equipment]],FIND(\" (\",ProjectInfoTable[[#This Row],[Existing Equipment]],1)),LEN(LEFT(ProjectInfoTable[[#This Row],[Existing Equipment]],FIND(\" (\",ProjectInfoTable[[#This Row],[Existing Equipment]],1)))-FIND(\":\",ProjectInfoTable[[#This Row],[Existing Equipment]],1)-1),1)-1),RIGHT(LEFT(ProjectInfoTable[[#This Row],[Existing Equipment]],FIND(\" (\",ProjectInfoTable[[#This Row],[Existing Equipment]],1)),LEN(LEFT(ProjectInfoTable[[#This Row],[Existing Equipment]],FIND(\" (\",ProjectInfoTable[[#This Row],[Existing Equipment]],1)))-FIND(\":\",ProjectInfoTable[[#This Row],[Existing Equipment]],1)-1))&\" - \"&RIGHT(LEFT(ProjectInfoTable[[#This Row],[Existing Equipment]],FIND(\"]\",ProjectInfoTable[[#This Row],[Existing Equipment]],1)-1),LEN(LEFT(ProjectInfoTable[[#This Row],[Existing Equipment]],FIND(\"]\",ProjectInfoTable[[#This Row],[Existing Equipment]],1)-1))-FIND(\"W \",ProjectInfoTable[[#This Row],[Existing Equipment]],1)-3)),\"\"),\"\"))","v":""},{"$f":"IF(ProjectInfoTable[[#This Row],[Existing Equipment]]=\"\",\"\",IF(ProjectInfoTable[[#This Row],[Fixture/Ballast Check for Formula]]=\"\",IF(ISNUMBER(FIND(\"LF\",ProjectInfoTable[[#This Row],[Existing Equipment]],FIND(\"[\",ProjectInfoTable[[#This Row],[Existing Equipment]],1))),ProjectInfoTable[[#This Row],[Lamp W (Existing)]],ProjectInfoTable[[#This Row],[Lamps (Existing)]]*ProjectInfoTable[[#This Row],[Lamp W (Existing)]]),IFERROR(ROUND( ProjectInfoTable[[#This Row],[Lamps (Existing)]]*ProjectInfoTable[[#This Row],[Lamp W (Existing)]]*INDEX(FixtureWattageFormula_Table[A],MATCH(ProjectInfoTable[[#This Row],[Fixture/Ballast Check for Formula]],FixtureWattageFormula_Table[Concatenate],0))+INDEX(FixtureWattageFormula_Table[B],MATCH(ProjectInfoTable[[#This Row],[Fixture/Ballast Check for Formula]],FixtureWattageFormula_Table[Concatenate],0)),0),ProjectInfoTable[[#This Row],[Lamps (Existing)]]*ProjectInfoTable[[#This Row],[Lamp W (Existing)]])))","v":""},{"$f":"IF(OR(ISNUMBER(FIND(\"T8 \",ProjectInfoTable[[#This Row],[Existing Equipment]],1)),ISNUMBER(FIND(\"T5 \",ProjectInfoTable[[#This Row],[Existing Equipment]],1)),ISNUMBER(FIND(\"T12 \",ProjectInfoTable[[#This Row],[Existing Equipment]],1)),ISNUMBER(FIND(\"T12HO - 8\",ProjectInfoTable[[#This Row],[Existing Equipment]],1)),ISNUMBER(FIND(\"Incand\",ProjectInfoTable[[#This Row],[Existing Equipment]],1))),IFERROR(ROUND(INDEX(StipulatedWattage_Table[Stipulated fixture wattage],MATCH(MID(ProjectInfoTable[[#This Row],[Existing Equipment]],FIND(\"[\",ProjectInfoTable[[#This Row],[Existing Equipment]],1),FIND(\"]\",ProjectInfoTable[[#This Row],[Existing Equipment]],1)-FIND(\"[\",ProjectInfoTable[[#This Row],[Existing Equipment]],1)+1),StipulatedWattage_Table[Fixture Code],0)),0),ProjectInfoTable[[#This Row],[Fixture W (Existing, Actual)]]),ProjectInfoTable[[#This Row],[Fixture W (Existing, Actual)]])","v":""},{"$f":"IF(ProjectType=\"Retrofit\",IF(ProjectInfoTable[[#This Row],[Existing Equipment]]=\"\",\"\",ProjectInfoTable[[#This Row],[Quantity (Existing)]]*ProjectInfoTable[[#This Row],[Fixture W (Existing, Actual)]]),IF(ISNUMBER(FIND(\"Interior\",ProjectInfoTable[[#This Row],[Proposed Equipment]],1)),IF(ISNUMBER(FIND(\"Controls Only\",ProjectInfoTable[[#This Row],[Proposed Equipment]])),ProjectInfoTable[[#This Row],[Space W (Proposed)]],(AllowedWattage-SUMIFS(ProjectInfoTable[Space W (Proposed)],ProjectInfoTable[Proposed Equipment],\"*Interior*\",ProjectInfoTable[Proposed Equipment],\"*Controls Only*\"))*ProjectInfoTable[[#This Row],[Space W (Proposed)]]/(SUMIFS(ProjectInfoTable[Space W (Proposed)],ProjectInfoTable[Proposed Equipment],\"*Interior*\")-SUMIFS(ProjectInfoTable[Space W (Proposed)],ProjectInfoTable[Proposed Equipment],\"*Interior*\",ProjectInfoTable[Proposed Equipment],\"*Controls Only*\"))),\"\"))","v":""},{"$f":"IF(ProjectType=\"Retrofit\",IF(ProjectInfoTable[[#This Row],[Existing Equipment]]=\"\",\"\",ProjectInfoTable[[#This Row],[Quantity (Existing)]]*ProjectInfoTable[[#This Row],[Fixture W (Existing, Stipulated)]]),ProjectInfoTable[[#This Row],[Space W (Existing, Actual)]])","v":""},{"$f":"IFERROR(INDEX(OperatingHours_List,MATCH(ProjectInfoTable[[#This Row],[OpSch]],OperatingSchedules_List,0))*ProjectInfoTable[[#This Row],[Space W (Existing, Actual)]]/1000,\"\")","v":""},{"$f":"IFERROR(INDEX(OperatingHours_List,MATCH(ProjectInfoTable[[#This Row],[OpSch]],OperatingSchedules_List,0))*ProjectInfoTable[[#This Row],[Space W (Existing, Actual)]]/1000*(IFERROR(INDEX(ControlsLookup[],MATCH(RIGHT(ProjectInfoTable[[#This Row],[Existing Equipment]],LEN(ProjectInfoTable[[#This Row],[Existing Equipment]])-FIND(\"]\",ProjectInfoTable[[#This Row],[Existing Equipment]],1)-3),ControlsLookup[Controls],0),MATCH(\"CSF_\"&ProjectState,ControlsLookup[#Headers],0)),0))*-1,\"\")","v":""},{"$f":"IF(OR(ProjectInfoTable[[#This Row],[Fixture kWh (Existing, Actual)]]=\"\",ProjectInfoTable[[#This Row],[Control kWh (Existing, Actual)]]=\"\"),\"\",ProjectInfoTable[[#This Row],[Fixture kWh (Existing, Actual)]]+ProjectInfoTable[[#This Row],[Control kWh (Existing, Actual)]])","v":""},{"$f":"IFERROR(INDEX(OperatingHours_List,MATCH(ProjectInfoTable[[#This Row],[OpSch]],OperatingSchedules_List,0))*ProjectInfoTable[[#This Row],[Space W (Existing, Stipulated)]]/1000,\"\")","v":""},{"$f":"IFERROR(INDEX(OperatingHours_List,MATCH(ProjectInfoTable[[#This Row],[OpSch]],OperatingSchedules_List,0))*ProjectInfoTable[[#This Row],[Space W (Existing, Stipulated)]]/1000*(IFERROR(INDEX(ControlsLookup[],MATCH(RIGHT(ProjectInfoTable[[#This Row],[Existing Equipment]],LEN(ProjectInfoTable[[#This Row],[Existing Equipment]])-FIND(\"]\",ProjectInfoTable[[#This Row],[Existing Equipment]],1)-3),ControlsLookup[Controls],0),MATCH(\"CSF_\"&ProjectState,ControlsLookup[#Headers],0)),0))*-1,\"\")","v":""},{"$f":"IF(OR(ProjectInfoTable[[#This Row],[Fixture kWh (Existing, Stipulated)]]=\"\",ProjectInfoTable[[#This Row],[Control kWh (Existing, Stipulated)]]=\"\"),\"\",ProjectInfoTable[[#This Row],[Fixture kWh (Existing, Stipulated)]]+ProjectInfoTable[[#This Row],[Control kWh (Existing, Stipulated)]])","v":""},{"$f":"IF(\n AND(\n  OR(ProjectInfoTable[[#This Row],[Existing Equipment]]=\"\",ProjectInfoTable[[#This Row],[Quantity (Existing)]]=\"\"),\n  ProjectType=\"Retrofit\"\n ),\n \"\",\n IF(\n  ISNUMBER(FIND(\"Street:\",ProjectInfoTable[[#This Row],[Existing Equipment]],1)),\n  IF(\n   OR(\n    AND(ProjectState=\"UT\",RateSchedule=12),\n    AND(ProjectState=\"ID\",RateSchedule=12),\n    AND(ProjectState=\"WY\",RateSchedule=58)\n   ),\n   IFERROR(\n    INDEX(\n     StreetLightingRates_Table[],\n     MATCH(MID(ProjectInfoTable[[#This Row],[Existing Equipment]],FIND(\": \",ProjectInfoTable[[#This Row],[Existing Equipment]],1)+2,FIND(\" (\",ProjectInfoTable[[#This Row],[Existing Equipment]],1)-FIND(\": \",ProjectInfoTable[[#This Row],[Existing Equipment]],1)-2)&ProjectInfoTable[[#This Row],[Lamp W (Existing)]],StreetLightingRates_Table[TechWattage],0),\n     MATCH(ProjectState&RateSchedule,StreetLightingRates_Table[#Headers],0)\n    )\n    *\n    ProjectInfoTable[[#This Row],[Quantity (Existing)]]\n    *\n    ProjectInfoTable[[#This Row],[Lamps (Existing)]]\n    *\n    12,\n    ProjectInfoTable[[#This Row],[Space kWh (Existing, Actual)]]\n    *\n    INDEX(INDIRECT(\"RateSchedules_\"&ProjectState&\"_Table[kWh Rate]\"),MATCH(RateSchedule,INDIRECT(\"RateSchedules_\"&ProjectState&\"_Table[Rate Schedule]\"),0))\n   ),\n   IFERROR(\n    ProjectInfoTable[[#This Row],[Space kWh (Existing, Actual)]]*\n    INDEX(INDIRECT(\"RateSchedules_\"&ProjectState&\"_Table[kWh Rate]\"),MATCH(RateSchedule,INDIRECT(\"RateSchedules_\"&ProjectState&\"_Table[Rate Schedule]\"),0)),0)\n   +\n   IFERROR(IF(ISNUMBER(FIND(\"Interior:\",ProjectInfoTable[[#This Row],[Existing Equipment]],1)),\n    ProjectInfoTable[[#This Row],[Space W (Existing, Actual)]]/1000*12*DDF*\n    INDEX(INDIRECT(\"RateSchedules_\"&ProjectState&\"_Table[kW Rate]\"),MATCH(RateSchedule,INDIRECT(\"RateSchedules_\"&ProjectState&\"_Table[Rate Schedule]\"),0)),0),0)\n  ),\n  IFERROR(\n   ProjectInfoTable[[#This Row],[Space kWh (Existing, Actual)]]*\n   INDEX(INDIRECT(\"RateSchedules_\"&ProjectState&\"_Table[kWh Rate]\"),MATCH(RateSchedule,INDIRECT(\"RateSchedules_\"&ProjectState&\"_Table[Rate Schedule]\"),0)),\n   0\n  )\n  +\n  IFERROR(IF(OR(ISNUMBER(FIND(\"Interior:\",ProjectInfoTable[[#This Row],[Existing Equipment]],1)),AND(ProjectType<>\"Retrofit\",ISNUMBER(FIND(\"Interior:\",ProjectInfoTable[[#This Row],[Proposed Equipment]],1)))),\n   ProjectInfoTable[[#This Row],[Space W (Existing, Actual)]]/1000*12*DDF*\n   INDEX(INDIRECT(\"RateSchedules_\"&ProjectState&\"_Table[kW Rate]\"),MATCH(RateSchedule,INDIRECT(\"RateSchedules_\"&ProjectState&\"_Table[Rate Schedule]\"),0)),0),\n   0\n  )\n )\n)","v":0},{"$f":"IF(\n AND(\n  OR(ProjectInfoTable[[#This Row],[Existing Equipment]]=\"\",ProjectInfoTable[[#This Row],[Quantity (Existing)]]=\"\"),\n  ProjectType=\"Retrofit\"\n ),\n \"\",\n IF(\n  ISNUMBER(FIND(\"Street:\",ProjectInfoTable[[#This Row],[Existing Equipment]],1)),\n  IF(\n   OR(\n    AND(ProjectState=\"UT\",RateSchedule=12),\n    AND(ProjectState=\"ID\",RateSchedule=12),\n    AND(ProjectState=\"WY\",RateSchedule=58)\n   ),\n   IFERROR(\n    INDEX(\n     StreetLightingRates_Table[],\n     MATCH(MID(ProjectInfoTable[[#This Row],[Existing Equipment]],FIND(\": \",ProjectInfoTable[[#This Row],[Existing Equipment]],1)+2,FIND(\" (\",ProjectInfoTable[[#This Row],[Existing Equipment]],1)-FIND(\": \",ProjectInfoTable[[#This Row],[Existing Equipment]],1)-2)&ProjectInfoTable[[#This Row],[Lamp W (Existing)]],StreetLightingRates_Table[TechWattage],0),\n     MATCH(ProjectState&RateSchedule,StreetLightingRates_Table[#Headers],0)\n    )\n    *\n    ProjectInfoTable[[#This Row],[Quantity (Existing)]]\n    *\n    ProjectInfoTable[[#This Row],[Lamps (Existing)]]\n    *\n    12,\n    ProjectInfoTable[[#This Row],[Space kWh (Existing, Stipulated)]]\n    *\n    INDEX(INDIRECT(\"RateSchedules_\"&ProjectState&\"_Table[kWh Rate]\"),MATCH(RateSchedule,INDIRECT(\"RateSchedules_\"&ProjectState&\"_Table[Rate Schedule]\"),0))\n   ),\n   IFERROR(\n    ProjectInfoTable[[#This Row],[Space kWh (Existing, Stipulated)]]*\n    INDEX(INDIRECT(\"RateSchedules_\"&ProjectState&\"_Table[kWh Rate]\"),MATCH(RateSchedule,INDIRECT(\"RateSchedules_\"&ProjectState&\"_Table[Rate Schedule]\"),0)),0)\n   +\n   IFERROR(IF(ISNUMBER(FIND(\"Interior:\",ProjectInfoTable[[#This Row],[Existing Equipment]],1)),\n    ProjectInfoTable[[#This Row],[Space W (Existing, Stipulated)]]/1000*12*DDF*\n    INDEX(INDIRECT(\"RateSchedules_\"&ProjectState&\"_Table[kW Rate]\"),MATCH(RateSchedule,INDIRECT(\"RateSchedules_\"&ProjectState&\"_Table[Rate Schedule]\"),0)),0),0)\n  ),\n  IFERROR(\n   ProjectInfoTable[[#This Row],[Space kWh (Existing, Stipulated)]]*\n   INDEX(INDIRECT(\"RateSchedules_\"&ProjectState&\"_Table[kWh Rate]\"),MATCH(RateSchedule,INDIRECT(\"RateSchedules_\"&ProjectState&\"_Table[Rate Schedule]\"),0)),\n   0\n  )\n  +\n  IFERROR(IF(OR(ISNUMBER(FIND(\"Interior:\",ProjectInfoTable[[#This Row],[Existing Equipment]],1)),AND(ProjectType<>\"Retrofit\",ISNUMBER(FIND(\"Interior:\",ProjectInfoTable[[#This Row],[Proposed Equipment]],1)))),\n   ProjectInfoTable[[#This Row],[Space W (Existing, Stipulated)]]/1000*12*DDF*\n   INDEX(INDIRECT(\"RateSchedules_\"&ProjectState&\"_Table[kW Rate]\"),MATCH(RateSchedule,INDIRECT(\"RateSchedules_\"&ProjectState&\"_Table[Rate Schedule]\"),0)),0),\n   0\n  )\n )\n)","v":0},{"$f":"IF(ProjectType=\"Retrofit\",IFERROR(INDEX(RetrofitBaselineEquipment_Table[categoryBaseline],MATCH(RIGHT(LEFT(ProjectInfoTable[[#This Row],[Proposed Equipment]],FIND(\" (\",ProjectInfoTable[[#This Row],[Proposed Equipment]],1)-1),LEN(LEFT(ProjectInfoTable[[#This Row],[Proposed Equipment]],FIND(\" (\",ProjectInfoTable[[#This Row],[Proposed Equipment]],1)-1))-FIND(\": \",ProjectInfoTable[[#This Row],[Proposed Equipment]],1)-1),RetrofitBaselineEquipment_Table[equipmentBaseline],0)),\"\"),IFERROR(INDEX(#REF!,MATCH(RIGHT(LEFT(ProjectInfoTable[[#This Row],[Proposed Equipment]],FIND(\" (\",ProjectInfoTable[[#This Row],[Proposed Equipment]],1)-1),LEN(LEFT(ProjectInfoTable[[#This Row],[Proposed Equipment]],FIND(\" (\",ProjectInfoTable[[#This Row],[Proposed Equipment]],1)-1))-FIND(\": \",ProjectInfoTable[[#This Row],[Proposed Equipment]],1)-1),#REF!,0)),\"\"))","v":""},{"$f":"IF(ProjectInfoTable[[#This Row],[Proposed Equipment]]=\"\",\"\",IF(ISNUMBER(SEARCH(\"Controls Only\",ProjectInfoTable[[#This Row],[Proposed Equipment]])),\"Controls Only\",IF(ProjectType=\"Retrofit\",_xlfn.LET(_xlpm.k,LEFT(ProjectInfoTable[[#This Row],[Proposed Equipment]],FIND(\"[\",ProjectInfoTable[[#This Row],[Proposed Equipment]])-2),_xlpm.ep,_xlfn.SWITCH(ProjectState,\"UT\",EquipmentTable_Retrofit_UT[equipmentProposed],\"WY\",EquipmentTable_Retrofit_WY[equipmentProposed],\"ID\",EquipmentTable_Retrofit_ID[equipmentProposed]),_xlpm.cp,_xlfn.SWITCH(ProjectState,\"UT\",EquipmentTable_Retrofit_UT[categoryProposed],\"WY\",EquipmentTable_Retrofit_WY[categoryProposed],\"ID\",EquipmentTable_Retrofit_ID[categoryProposed]),_xlfn.XLOOKUP(_xlpm.k,_xlpm.ep,_xlpm.cp,\"Non-eligible fixture - Retrofit - \"&ProjectState)),_xlfn.LET(_xlpm.k,MID(ProjectInfoTable[[#This Row],[Proposed Equipment]],FIND(\": \",ProjectInfoTable[[#This Row],[Proposed Equipment]])+2,FIND(\" (\",ProjectInfoTable[[#This Row],[Proposed Equipment]])-(FIND(\": \",ProjectInfoTable[[#This Row],[Proposed Equipment]])+2)),_xlpm.ep,_xlfn.SWITCH(ProjectState,\"UT\",EquipmentTable_NCMR_UT[equipmentProposed],\"WY\",EquipmentTable_NCMR_WY[equipmentProposed],\"ID\",EquipmentTable_NCMR_ID[equipmentProposed]),_xlpm.cp,_xlfn.SWITCH(ProjectState,\"UT\",EquipmentTable_NCMR_UT[categoryProposed],\"WY\",EquipmentTable_NCMR_WY[categoryProposed],\"ID\",EquipmentTable_NCMR_ID[categoryProposed]),_xlfn.XLOOKUP(_xlpm.k,_xlpm.ep,_xlpm.cp,\"Non-eligible fixture - NCMR - \"&ProjectState)))))","v":""},null,null,"ü",{"$f":"IF(ProjectInfoTable[[#This Row],[Proposed Equipment]]=\"\",\"\",IF(ProjectInfoTable[[#This Row],[Measure Selection]]=\"\",0,IF(ISNUMBER(FIND(\"LF\",ProjectInfoTable[[#This Row],[Proposed Equipment]],1)),1,IFERROR(VALUE(SUBSTITUTE(RIGHT(LEFT(ProjectInfoTable[[#This Row],[Proposed Equipment]],FIND(\"L\",ProjectInfoTable[[#This Row],[Proposed Equipment]],FIND(\"[\",ProjectInfoTable[[#This Row],[Proposed Equipment]],1))-1),2),\"[\",\"\")),IFERROR(LEFT(RIGHT(ProjectInfoTable[[#This Row],[Proposed Equipment]],LEN(ProjectInfoTable[[#This Row],[Proposed Equipment]])-FIND(\"-lamp\",ProjectInfoTable[[#This Row],[Proposed Equipment]],1)+2),1),1)))))","v":""},{"$f":"IF(ProjectInfoTable[[#This Row],[Proposed Equipment]]=\"\",\"\",IF(ProjectInfoTable[[#This Row],[Measure Selection]]=\"\",0,IFERROR(\n\nIF(ISNUMBER(FIND(\"W]\",ProjectInfoTable[[#This Row],[Proposed Equipment]])),\nRIGHT(MID(ProjectInfoTable[[#This Row],[Proposed Equipment]],FIND(\"W]\",ProjectInfoTable[[#This Row],[Proposed Equipment]],FIND(\"[\",ProjectInfoTable[[#This Row],[Proposed Equipment]]))-7,7),\nLEN(MID(ProjectInfoTable[[#This Row],[Proposed Equipment]],FIND(\"W]\",ProjectInfoTable[[#This Row],[Proposed Equipment]],FIND(\"[\",ProjectInfoTable[[#This Row],[Proposed Equipment]]))-7,7)) -\nIFERROR(FIND(\" - \",MID(ProjectInfoTable[[#This Row],[Proposed Equipment]],FIND(\"W]\",ProjectInfoTable[[#This Row],[Proposed Equipment]],FIND(\"[\",ProjectInfoTable[[#This Row],[Proposed Equipment]]))-7,7))+2,\nFIND(\"[\",MID(ProjectInfoTable[[#This Row],[Proposed Equipment]],FIND(\"W]\",ProjectInfoTable[[#This Row],[Proposed Equipment]],FIND(\"[\",ProjectInfoTable[[#This Row],[Proposed Equipment]]))-7,7)))),\n\nIF(ISNUMBER(FIND(\"[\",MID(ProjectInfoTable[[#This Row],[Proposed Equipment]],FIND(\"W \",ProjectInfoTable[[#This Row],[Proposed Equipment]],FIND(\"[\",ProjectInfoTable[[#This Row],[Proposed Equipment]]))-7,7))),\nRIGHT(MID(ProjectInfoTable[[#This Row],[Proposed Equipment]],FIND(\"W \",ProjectInfoTable[[#This Row],[Proposed Equipment]],FIND(\"[\",ProjectInfoTable[[#This Row],[Proposed Equipment]]))-7,7),\nLEN(MID(ProjectInfoTable[[#This Row],[Proposed Equipment]],FIND(\"W \",ProjectInfoTable[[#This Row],[Proposed Equipment]],FIND(\"[\",ProjectInfoTable[[#This Row],[Proposed Equipment]]))-7,7)) -\nIFERROR(FIND(\" - \",MID(ProjectInfoTable[[#This Row],[Proposed Equipment]],FIND(\"W \",ProjectInfoTable[[#This Row],[Proposed Equipment]],FIND(\"[\",ProjectInfoTable[[#This Row],[Proposed Equipment]]))-7,7))+2,\nFIND(\"[\",MID(ProjectInfoTable[[#This Row],[Proposed Equipment]],FIND(\"W \",ProjectInfoTable[[#This Row],[Proposed Equipment]],FIND(\"[\",ProjectInfoTable[[#This Row],[Proposed Equipment]]))-7,7)))),\n\nRIGHT(MID(ProjectInfoTable[[#This Row],[Proposed Equipment]],FIND(\"W \",ProjectInfoTable[[#This Row],[Proposed Equipment]],FIND(\"[\",ProjectInfoTable[[#This Row],[Proposed Equipment]]))-7,7),\nLEN(MID(ProjectInfoTable[[#This Row],[Proposed Equipment]],FIND(\"W \",ProjectInfoTable[[#This Row],[Proposed Equipment]],FIND(\"[\",ProjectInfoTable[[#This Row],[Proposed Equipment]]))-7,7)) -\nFIND(\" - \",MID(ProjectInfoTable[[#This Row],[Proposed Equipment]],FIND(\"W \",ProjectInfoTable[[#This Row],[Proposed Equipment]],FIND(\"[\",ProjectInfoTable[[#This Row],[Proposed Equipment]]))-7,7))-2\n))),0)))","v":""},{"$f":"IF(ProjectInfoTable[[#This Row],[Proposed Equipment]]=\"\",\"\",IFERROR(ProjectInfoTable[[#This Row],[Lamps (Proposed)]]*ProjectInfoTable[[#This Row],[Lamp W (Proposed)]],\"\"))","v":""},{"$f":"IF(ProjectInfoTable[[#This Row],[Proposed Equipment]]=\"\",\"\",IFERROR(ProjectInfoTable[[#This Row],[Quantity (Proposed)]]*ProjectInfoTable[[#This Row],[Fixture W (Proposed)]],\"\"))","v":""},{"$f":"IFERROR(INDEX(OperatingHours_List,MATCH(ProjectInfoTable[[#This Row],[OpSch]],OperatingSchedules_List,0))*ProjectInfoTable[[#This Row],[Space W (Proposed)]]/1000,\"\")","v":""},{"$f":"IF(OR(ISNUMBER(FIND(\"Controls Only\",ProjectInfoTable[[#This Row],[Proposed Equipment]],1)),ProjectInfoTable[[#This Row],[ControlsOnly]]=\"Re-Commissioning\"),\"Controls Only\",IFERROR(INDEX(OperatingHours_List,MATCH(ProjectInfoTable[[#This Row],[OpSch]],OperatingSchedules_List,0))*ProjectInfoTable[[#This Row],[Space W (Proposed)]]/1000*(IFERROR(INDEX(ControlsLookup[],MATCH(SUBSTITUTE(RIGHT(ProjectInfoTable[[#This Row],[Proposed Equipment]],LEN(ProjectInfoTable[[#This Row],[Proposed Equipment]])-FIND(\"]\",ProjectInfoTable[[#This Row],[Proposed Equipment]],1)-3),\" reused\",\"\"),ControlsLookup[Controls],0),MATCH(\"CSF_\"&ProjectState,ControlsLookup[#Headers],0)),0))*-1,\"\"))","v":""},{"$f":"IF(OR(ProjectInfoTable[[#This Row],[Fixture kWh (Proposed)]]=\"\",ProjectInfoTable[[#This Row],[Control kWh (Proposed)]]=\"\"),\"\",IFERROR(ProjectInfoTable[[#This Row],[Fixture kWh (Proposed)]]+ProjectInfoTable[[#This Row],[Control kWh (Proposed)]],0))","v":""},{"$f":"IF(\n OR(\n  ProjectInfoTable[[#This Row],[Proposed Equipment]]=\"\",\n  ProjectInfoTable[[#This Row],[Quantity (Proposed)]]=\"\"\n ),\n \"\",\n IF(\n  AND(\n   OR(\n    AND(\n     ProjectState=\"UT\",\n     RateSchedule=12\n    ),\n    AND(\n     ProjectState=\"ID\",\n     RateSchedule=12\n    ),\n    AND(\n     ProjectState=\"WY\",\n     RateSchedule=58\n    )\n   ),\n   ISNUMBER(FIND(\"Street:\",ProjectInfoTable[[#This Row],[Existing Equipment]],1))\n  ),\n  IF(\n   AND(\n    RateSchedule=53,\n    ISNUMBER(FIND(\"LED\",ProjectInfoTable[[#This Row],[Proposed Equipment]],1))\n   ),\n   ProjectInfoTable[[#This Row],[Fixture kWh (Proposed)]]\n   *\n   INDEX(\n    INDIRECT(\"RateSchedules_\"&ProjectState&\"_Table[kWh Rate]\"),\n    MATCH(RateSchedule,INDIRECT(\"RateSchedules_\"&ProjectState&\"_Table[Rate Schedule]\"),0)\n   ),\n   IFERROR(INDEX(\n    StreetLightingRates_Table[],\n    MATCH(\"LED\"&IF(AND(ProjectInfoTable[[#This Row],[Fixture W (Proposed)]]>0,ProjectInfoTable[[#This Row],[Fixture W (Proposed)]]<=70),70,IF(AND(ProjectInfoTable[[#This Row],[Fixture W (Proposed)]]>70,ProjectInfoTable[[#This Row],[Fixture W (Proposed)]]<=100),100,IF(AND(ProjectInfoTable[[#This Row],[Fixture W (Proposed)]]>100,ProjectInfoTable[[#This Row],[Fixture W (Proposed)]]<=150),150,IF(AND(ProjectInfoTable[[#This Row],[Fixture W (Proposed)]]>150,ProjectInfoTable[[#This Row],[Fixture W (Proposed)]]<=200),200,IF(AND(ProjectInfoTable[[#This Row],[Fixture W (Proposed)]]>200,ProjectInfoTable[[#This Row],[Fixture W (Proposed)]]<=250),250,IF(AND(ProjectInfoTable[[#This Row],[Fixture W (Proposed)]]>250,ProjectInfoTable[[#This Row],[Fixture W (Proposed)]]<=400),400,\"\")))))),StreetLightingRates_Table[TechWattage],0),\n    MATCH(ProjectState&RateSchedule,StreetLightingRates_Table[#Headers],0)\n   )\n   *ProjectInfoTable[[#This Row],[Lamps (Proposed)]]*ProjectInfoTable[[#This Row],[Quantity (Proposed)]]*12,\n  ProjectInfoTable[[#This Row],[Space kWh (Proposed)]]*INDEX(INDIRECT(\"RateSchedules_\"&ProjectState&\"_Table[kWh Rate]\"),MATCH(RateSchedule,INDIRECT(\"RateSchedules_\"&ProjectState&\"_Table[Rate Schedule]\"),0)))),\n  IFERROR(ProjectInfoTable[[#This Row],[Space kWh (Proposed)]]*INDEX(INDIRECT(\"RateSchedules_\"&ProjectState&\"_Table[kWh Rate]\"),MATCH(RateSchedule,INDIRECT(\"RateSchedules_\"&ProjectState&\"_Table[Rate Schedule]\"),0)),0)\n  +\n  IF(OR(ISNUMBER(FIND(\"Exterior:\",ProjectInfoTable[[#This Row],[Existing Equipment]],1)),ISNUMBER(FIND(\"Street:\",ProjectInfoTable[[#This Row],[Existing Equipment]],1))),0,IFERROR(ProjectInfoTable[[#This Row],[Space W (Proposed)]]/1000*12*DDF*INDEX(INDIRECT(\"RateSchedules_\"&ProjectState&\"_Table[kW Rate]\"),MATCH(RateSchedule,INDIRECT(\"RateSchedules_\"&ProjectState&\"_Table[Rate Schedule]\"),0)),0))\n )\n)","v":""},{"$f":"IF(ProjectInfoTable[[#This Row],[Measure Selection]]=\"\",0,IF(ProjectType=\"Retrofit\",IFERROR((ProjectInfoTable[[#This Row],[Space W (Existing, Actual)]]-ProjectInfoTable[[#This Row],[Space W (Proposed)]])/ProjectInfoTable[[#This Row],[Space W (Existing, Actual)]],\"\"),IF(AND(ProjectInfoTable[[#This Row],[Proposed Equipment]]=\"\",ProjectInfoTable[[#This Row],[Quantity (Proposed)]]=\"\"),\"\",IFERROR((ProjectInfoTable[[#This Row],[Space W (Existing, Stipulated)]]-ProjectInfoTable[[#This Row],[Space W (Proposed)]])/ProjectInfoTable[[#This Row],[Space W (Existing, Stipulated)]],\"n/a\"))))","v":""},{"$f":"IF(ProjectInfoTable[[#This Row],[Measure Selection]]=\"\",0,IF(ProjectType=\"Retrofit\",IFERROR((ProjectInfoTable[[#This Row],[Space W (Existing, Stipulated)]]-ProjectInfoTable[[#This Row],[Space W (Proposed)]])/ProjectInfoTable[[#This Row],[Space W (Existing, Stipulated)]],\"\"),ProjectInfoTable[[#This Row],[% Wattage Reduction (Actual)]]))","v":""},{"$f":"IFERROR(IF(OR(ProjectInfoTable[[#This Row],[Measure Selection]]=\"\",ProjectInfoTable[[#This Row],[ControlsOnly]]=\"Re-Commissioning\"),0,IF(AND(ProjectType=\"Retrofit\",LEFT(ProjectInfoTable[[#This Row],[Existing Equipment]],FIND(\": \",ProjectInfoTable[[#This Row],[Existing Equipment]],1)-1)<>\"Interior\"),0,((ProjectInfoTable[[#This Row],[Space W (Existing, Actual)]]-ProjectInfoTable[[#This Row],[Space W (Proposed)]])/1000*DDF)-IF(ProjectInfoTable[[#This Row],[Midstream Measure Name]]<>\"\",IFERROR(ProjectInfoTable[[#This Row],[kW Per Unit (Midstream)]]*ProjectInfoTable[[#This Row],[Quantity]]*ProjectInfoTable[[#This Row],[No. of TRL Units]],0),0))),\"\")","v":""},{"$f":"IFERROR(IF(OR(ProjectInfoTable[[#This Row],[Measure Selection]]=\"\",ProjectInfoTable[[#This Row],[ControlsOnly]]=\"Re-Commissioning\"),0,IF(AND(ISNUMBER(VALUE(ProjectInfoTable[[#This Row],[kW Per Unit]])),ProjectInfoTable[[#This Row],[kW Per Unit]]<>0),ROUND(ProjectInfoTable[[#This Row],[kW Per Unit]]*ProjectInfoTable[[#This Row],[Quantity]]*ProjectInfoTable[[#This Row],[No. of TRL Units]],2),IF(OR(AND(ProjectType=\"Retrofit\",LEFT(ProjectInfoTable[[#This Row],[Existing Equipment]],FIND(\": \",ProjectInfoTable[[#This Row],[Existing Equipment]],1)-1)<>\"Interior\"),AND(ProjectInfoTable[[#This Row],[Incentives Per Unit]]=0,INDEX(StipulatedSavingsYesNo_Table[Stipulated Savings?],MATCH(ProjectState,StipulatedSavingsYesNo_Table[State],0))=\"No\")),0,IF(ISNUMBER(FIND(\"Controls Only\",ProjectInfoTable[[#This Row],[Proposed Equipment]],1)),0,ROUND(((ProjectInfoTable[[#This Row],[Space W (Existing, Stipulated)]]-ProjectInfoTable[[#This Row],[Space W (Proposed)]])/1000*DDF)-IF(ProjectInfoTable[[#This Row],[Midstream Measure Name]]<>\"\",IFERROR(ProjectInfoTable[[#This Row],[kW Per Unit (Midstream)]]*ProjectInfoTable[[#This Row],[Quantity]]*ProjectInfoTable[[#This Row],[No. of TRL Units]],0),0),2))))),\"\")","v":""},{"$f":"IFERROR(IF(OR(ProjectInfoTable[[#This Row],[Control kWh (Proposed)]]=\"Controls Only\",ProjectInfoTable[[#This Row],[Measure Selection]]=\"\"),0,ROUND((ProjectInfoTable[[#This Row],[Fixture kWh (Existing, Actual)]]-ProjectInfoTable[[#This Row],[Fixture kWh (Proposed)]])*IF(VALUE(SpaceTypesInfo_Table[[#Totals],[HVAC Effects]])=0,1,1+VALUE(SpaceTypesInfo_Table[[#Totals],[HVAC Effects]])),0)),\"\")","v":""},{"$f":"IFERROR(IF(ProjectInfoTable[[#This Row],[Control kWh (Proposed)]]=\"Controls Only\",ROUND(IFERROR(INDEX(OperatingHours_List,MATCH(ProjectInfoTable[[#This Row],[OpSch]],OperatingSchedules_List,0))*IF(OR(ProjectType <> \"Retrofit\",ProjectInfoTable[[#This Row],[Space W (Proposed)]]>0),ProjectInfoTable[[#This Row],[Space W (Proposed)]],ProjectInfoTable[[#This Row],[Space W (Existing, Actual)]])/1000*(IFERROR(INDEX(ControlsLookup[],MATCH(RIGHT(ProjectInfoTable[[#This Row],[Proposed Equipment]],LEN(ProjectInfoTable[[#This Row],[Proposed Equipment]])-FIND(\"]\",ProjectInfoTable[[#This Row],[Proposed Equipment]],1)-3),ControlsLookup[Controls],0),MATCH(\"CSF_\"&ProjectState,ControlsLookup[#Headers],0)),0))*IF(VALUE(SpaceTypesInfo_Table[[#Totals],[HVAC Effects]])=0,1,1+VALUE(SpaceTypesInfo_Table[[#Totals],[HVAC Effects]])),\"\"),0),ROUND(IFERROR((ProjectInfoTable[[#This Row],[Control kWh (Existing, Actual)]]-ProjectInfoTable[[#This Row],[Control kWh (Proposed)]])*IF(VALUE(SpaceTypesInfo_Table[[#Totals],[HVAC Effects]])=0,1,1+VALUE(SpaceTypesInfo_Table[[#Totals],[HVAC Effects]])),\"\"),0)),\"\")","v":""},{"$f":"IF(OR(ProjectInfoTable[[#This Row],[Proposed Equipment]]=\"\",ProjectInfoTable[[#This Row],[Quantity (Proposed)]]=\"\"),\"\",IF(ProjectInfoTable[[#This Row],[Fixture Measure]]=\"\",0,IF(AND(ProjectInfoTable[[#This Row],[Incentives Per Unit]]=0,INDEX(StipulatedSavingsYesNo_Table[Stipulated Savings?],MATCH(ProjectState,StipulatedSavingsYesNo_Table[State],0))=\"No\"),0,ProjectInfoTable[[#This Row],[Total   kWh/yr Savings (Actual)]]-ProjectInfoTable[[#This Row],[Control Measure kWh/yr Savings (Actual)]])))","v":""},{"$f":"IF(OR(ProjectInfoTable[[#This Row],[Proposed Equipment]]=\"\",ProjectInfoTable[[#This Row],[Quantity (Proposed)]]=\"\"),\"\",IF(ProjectInfoTable[[#This Row],[Control Measure]]=\"\",0,ProjectInfoTable[[#This Row],[Control kWh/yr Savings (Actual)]]))","v":""},{"$f":"IF(AND(ProjectInfoTable[[#This Row],[Incentives Per Unit]]=0,INDEX(StipulatedSavingsYesNo_Table[Stipulated Savings?],MATCH(ProjectState,StipulatedSavingsYesNo_Table[State],0))=\"No\"),ProjectInfoTable[[#This Row],[Fixture kWh/yr Savings (Actual)]]+IF(ProjectInfoTable[[#This Row],[Control Measure kWh/yr Savings (Actual)]]=0,0,ProjectInfoTable[[#This Row],[Control kWh/yr Savings (Actual)]]),IF(AND(ProjectInfoTable[[#This Row],[Fixture kWh/yr Savings (Actual)]]=\"\",ProjectInfoTable[[#This Row],[Control kWh/yr Savings (Actual)]]=\"\"),\"\",ROUND(IF(ProjectInfoTable[[#This Row],[Fixture kWh/yr Savings (Actual)]]=\"\",0,ProjectInfoTable[[#This Row],[Fixture kWh/yr Savings (Actual)]])+IF(ProjectInfoTable[[#This Row],[Control kWh/yr Savings (Actual)]]=\"\",0,ProjectInfoTable[[#This Row],[Control kWh/yr Savings (Actual)]])-IF(ProjectInfoTable[[#This Row],[Midstream Measure Name]]<>\"\",IFERROR(ProjectInfoTable[[#This Row],[kWh Per Unit (Midstream)]]*ProjectInfoTable[[#This Row],[Quantity]]*ProjectInfoTable[[#This Row],[No. of TRL Units]],0),0),0)))","v":""},{"$f":"IFERROR(IF(OR(ProjectInfoTable[[#This Row],[Measure Selection]]=\"\",ProjectInfoTable[[#This Row],[ControlsOnly]]=\"Re-Commissioning\"),0,IF(AND(ProjectInfoTable[[#This Row],[Incentives Per Unit]]=0,INDEX(StipulatedSavingsYesNo_Table[Stipulated Savings?],MATCH(ProjectState,StipulatedSavingsYesNo_Table[State],0))=\"No\"),0,IF(ISNUMBER(FIND(\"Controls Only\",ProjectInfoTable[[#This Row],[Proposed Equipment]],1)),0,ROUND((ProjectInfoTable[[#This Row],[Fixture kWh (Existing, Stipulated)]]-ProjectInfoTable[[#This Row],[Fixture kWh (Proposed)]])*IF(VALUE(SpaceTypesInfo_Table[[#Totals],[HVAC Effects]])=0,1,1+VALUE(SpaceTypesInfo_Table[[#Totals],[HVAC Effects]])),0)))),\"\")","v":""},{"$f":"IFERROR(IF(ProjectInfoTable[[#This Row],[Control kWh (Proposed)]]=\"Controls Only\",ROUND(IFERROR(INDEX(OperatingHours_List,MATCH(ProjectInfoTable[[#This Row],[OpSch]],OperatingSchedules_List,0))*IF(OR(ProjectType <> \"Retrofit\",ProjectInfoTable[[#This Row],[Space W (Proposed)]]>0),ProjectInfoTable[[#This Row],[Space W (Proposed)]],ProjectInfoTable[[#This Row],[Space W (Existing, Stipulated)]])/1000*(IFERROR(INDEX(ControlsLookup[],MATCH(RIGHT(ProjectInfoTable[[#This Row],[Proposed Equipment]],LEN(ProjectInfoTable[[#This Row],[Proposed Equipment]])-FIND(\"]\",ProjectInfoTable[[#This Row],[Proposed Equipment]],1)-3),ControlsLookup[Controls],0),MATCH(\"CSF_\"&ProjectState,ControlsLookup[#Headers],0)),0))*IF(VALUE(SpaceTypesInfo_Table[[#Totals],[HVAC Effects]])=0,1,1+VALUE(SpaceTypesInfo_Table[[#Totals],[HVAC Effects]])),\"\"),0),ROUND(IFERROR((ProjectInfoTable[[#This Row],[Control kWh (Existing, Stipulated)]]-ProjectInfoTable[[#This Row],[Control kWh (Proposed)]])*IF(VALUE(SpaceTypesInfo_Table[[#Totals],[HVAC Effects]])=0,1,1+VALUE(SpaceTypesInfo_Table[[#Totals],[HVAC Effects]])),INDEX(ControlsLookup[],MATCH(RIGHT(ProjectInfoTable[[#This Row],[Proposed Equipment]],LEN(ProjectInfoTable[[#This Row],[Proposed Equipment]])-FIND(\"-\",ProjectInfoTable[[#This Row],[Proposed Equipment]],LEN(ProjectInfoTable[[#This Row],[Proposed Equipment]])-15)-1),ControlsLookup[Controls],0),MATCH(\"CSF_\"&ProjectState,ControlsLookup[#Headers],0))*IF(NOT(ISNUMBER(VALUE(ProjectInfoTable[[#This Row],[kWh Per Unit]]))),ProjectInfoTable[[#This Row],[Fixture kWh/yr Savings (Stipulated)]],ProjectInfoTable[[#This Row],[kWh Per Unit]]*ProjectInfoTable[[#This Row],[Quantity]]*ProjectInfoTable[[#This Row],[No. of TRL Units]])),0)),IF(OR(ProjectType=\"New Construction\",ProjectType=\"Major Renovation\"),IF(ProjectInfoTable[[#This Row],[Control kWh (Proposed)]]=\"\",\"\",0),\"\"))","v":""},{"$f":"IF(OR(ProjectInfoTable[[#This Row],[Proposed Equipment]]=\"\",ProjectInfoTable[[#This Row],[Quantity (Proposed)]]=\"\"),\"\",IF(ProjectInfoTable[[#This Row],[Fixture Measure]]=\"\",0,IF(AND(ProjectInfoTable[[#This Row],[Incentives Per Unit]]=0,INDEX(StipulatedSavingsYesNo_Table[Stipulated Savings?],MATCH(ProjectState,StipulatedSavingsYesNo_Table[State],0))=\"No\"),0,ProjectInfoTable[[#This Row],[Total   kWh/yr Savings (Stipulated)]]-ProjectInfoTable[[#This Row],[Control Measure kWh/yr Savings (Stipulated)]])))","v":""},{"$f":"IF(OR(ProjectInfoTable[[#This Row],[Proposed Equipment]]=\"\",ProjectInfoTable[[#This Row],[Quantity (Proposed)]]=\"\"),\"\",IF(ProjectInfoTable[[#This Row],[Control Measure]]=\"\",0,IF(OR(ProjectType=\"New Construction\",ProjectType=\"Major Renovation\"),IFERROR(ROUND(ProjectInfoTable[[#This Row],[Control kWh Per Unit]]*ProjectInfoTable[[#This Row],[Control Quantity]]*ProjectInfoTable[[#This Row],[Control No. of TRL Units]],0),ProjectInfoTable[[#This Row],[Control kWh/yr Savings (Stipulated)]]),ProjectInfoTable[[#This Row],[Control kWh/yr Savings (Stipulated)]])))","v":""},{"$f":"IF(AND(ProjectInfoTable[[#This Row],[Incentives Per Unit]]=0,INDEX(StipulatedSavingsYesNo_Table[Stipulated Savings?],MATCH(ProjectState,StipulatedSavingsYesNo_Table[State],0))=\"No\"),ProjectInfoTable[[#This Row],[Fixture kWh/yr Savings (Stipulated)]]+IF(ProjectInfoTable[[#This Row],[Control Measure kWh/yr Savings (Stipulated)]]=0,0,ProjectInfoTable[[#This Row],[Control kWh/yr Savings (Stipulated)]]),IF(OR(ISNUMBER(VALUE(ProjectInfoTable[[#This Row],[kWh Per Unit]])),ISNUMBER(VALUE(ProjectInfoTable[[#This Row],[Control kWh Per Unit]]))),ROUND(IFERROR(ProjectInfoTable[[#This Row],[kWh Per Unit]]*ProjectInfoTable[[#This Row],[Quantity]]*ProjectInfoTable[[#This Row],[No. of TRL Units]],0)+IFERROR(ProjectInfoTable[[#This Row],[Control kWh Per Unit]]*ProjectInfoTable[[#This Row],[Control Quantity]]*ProjectInfoTable[[#This Row],[Control No. of TRL Units]],ProjectInfoTable[[#This Row],[Control kWh/yr Savings (Stipulated)]]),0),IF(AND(ProjectInfoTable[[#This Row],[Fixture kWh/yr Savings (Stipulated)]]=\"\",ProjectInfoTable[[#This Row],[Control kWh/yr Savings (Stipulated)]]=\"\"),\"\",ROUND(IF(ProjectInfoTable[[#This Row],[Fixture kWh/yr Savings (Stipulated)]]=\"\",0,ProjectInfoTable[[#This Row],[Fixture kWh/yr Savings (Stipulated)]])+IF(ProjectInfoTable[[#This Row],[Control kWh/yr Savings (Stipulated)]]=\"\",0,ProjectInfoTable[[#This Row],[Control kWh/yr Savings (Stipulated)]])-IF(ProjectInfoTable[[#This Row],[Midstream Measure Name]]<>\"\",IFERROR(ProjectInfoTable[[#This Row],[kWh Per Unit (Midstream)]]*ProjectInfoTable[[#This Row],[Quantity]]*ProjectInfoTable[[#This Row],[No. of TRL Units]],0),0),0))))","v":""},{"$f":"IF(OR(ISNUMBER(FIND(\"Midstream\",ProjectInfoTable[[#This Row],[Fixture Measure]])),ISNUMBER(FIND(\"SBDI\",ProjectInfoTable[[#This Row],[Fixture Measure]])),ISNUMBER(FIND(\"Small Bu\",ProjectInfoTable[[#This Row],[Fixture Measure]]))),\n\nIF(ProjectInfoTable[[#This Row],[Measure Selection]]=\"\",0,\n\nIF(ISNUMBER(FIND(\"/U]\",ProjectInfoTable[[#This Row],[Proposed Equipment]])),IFERROR(MID(ProjectInfoTable[[#This Row],[Proposed Equipment]],FIND(\"$\",ProjectInfoTable[[#This Row],[Proposed Equipment]],1)+1,FIND(\"/U]\",ProjectInfoTable[[#This Row],[Proposed Equipment]],1)-FIND(\"$\",ProjectInfoTable[[#This Row],[Proposed Equipment]],1)-1)*ProjectInfoTable[[#This Row],[Lamps (Proposed)]]*ProjectInfoTable[[#This Row],[Quantity (Proposed)]],0),\nIF(ISNUMBER(FIND(\"/U \",ProjectInfoTable[[#This Row],[Proposed Equipment]])),IFERROR(MID(ProjectInfoTable[[#This Row],[Proposed Equipment]],FIND(\"$\",ProjectInfoTable[[#This Row],[Proposed Equipment]],1)+1,FIND(\"/U \",ProjectInfoTable[[#This Row],[Proposed Equipment]],1)-FIND(\"$\",ProjectInfoTable[[#This Row],[Proposed Equipment]],1)-1)*ProjectInfoTable[[#This Row],[Lamps (Proposed)]]*ProjectInfoTable[[#This Row],[Quantity (Proposed)]],0),\nIFERROR(ProjectInfoTable[[#This Row],[Fixture Measure kWh/yr Savings (Stipulated)]]/SUM(ProjectInfoTable[Total   kWh/yr Savings (Stipulated)])*ProjectCost_Total,\"\")))),\"\")","v":""},{"$f":"IFERROR(IF(ProjectInfoTable[[#This Row],[Fixture Measure kWh/yr Savings (Stipulated)]]=0,0,IF(ProjectType=\"Retrofit\",IF(OR(ISNUMBER(FIND(\"Midstream\",ProjectInfoTable[[#This Row],[Fixture Measure]])),ISNUMBER(FIND(\"SBDI\",ProjectInfoTable[[#This Row],[Fixture Measure]])),ISNUMBER(FIND(\"Small Bu\",ProjectInfoTable[[#This Row],[Fixture Measure]]))),ProjectInfoTable[[#This Row],[Measure Cost (Direct)]],IFERROR(ProjectInfoTable[[#This Row],[Fixture Measure kWh/yr Savings (Stipulated)]]/kWhSavings_Typical_Stipulated*(ProjectCost_Total-SUM(ProjectInfoTable[Measure Cost (Direct)])),\"\")),IF(ProjectInfoTable[[#This Row],[Proposed Equipment]]=\"\",\"\",IFERROR(SpaceTypesInfo_Table[[#Totals],[NCMR Int Cost]]*ProjectInfoTable[[#This Row],[Fixture Measure kWh/yr Savings (Stipulated)]]/SUMIFS(ProjectInfoTable[Total   kWh/yr Savings (Stipulated)],ProjectInfoTable[Proposed Equipment],\"*Interior*\"),0)))),\"\")","v":""},{"$f":"IFERROR(\n IF(\n  ProjectInfoTable[[#This Row],[Control Measure kWh/yr Savings (Stipulated)]]=0,\n  0,\n  IF(\n   ProjectType=\"Retrofit\",\n    IFERROR(\n     ProjectInfoTable[[#This Row],[Control Measure kWh/yr Savings (Stipulated)]]\n     /\n     SUMIFS(ProjectInfoTable[Control Measure kWh/yr Savings (Stipulated)],ProjectInfoTable[Control Measure],\"<>\"\"\")\n     *\n     (ProjectCost_Total-SUM(ProjectInfoTable[Fixture Cost (Allocated)])),\n     \"\"\n    ),\nROUND(\n    IF(\n     ProjectInfoTable[[#This Row],[Proposed Equipment]]=\"\",\n     \"\",\n     IFERROR(\n      SpaceTypesInfo_Table[[#Totals],[NCMR Int Cost]]\n      *\n      ProjectInfoTable[[#This Row],[Control Measure kWh/yr Savings (Stipulated)]]\n      /\n      SUMIFS(ProjectInfoTable[Total   kWh/yr Savings (Stipulated)],ProjectInfoTable[Proposed Equipment],\"*Interior*\"),\n      0\n     )\n    ),\n    2\n   )\n  )\n ),\n \"\"\n)","v":""},{"$f":"IF(AND(ProjectInfoTable[[#This Row],[Fixture Cost (Allocated)]]=\"\",ProjectInfoTable[[#This Row],[Control Cost (Allocated)]]=\"\"),\"\",SUM(ProjectInfoTable[[#This Row],[Fixture Cost (Allocated)]:[Control Cost (Allocated)]]))","v":""},{"$f":"IFERROR(IF(OR(ProjectInfoTable[[#This Row],[Proposed Equipment]]=\"\",ProjectInfoTable[[#This Row],[Quantity (Proposed)]]=\"\"),\"\",IF(OR(ProjectInfoTable[[#This Row],[Measure Selection]]=\"\",ProjectInfoTable[[#This Row],[Control kWh (Proposed)]]=\"Controls Only\"),0,IF(NOT(ISNUMBER(FIND(\"Retrofit\",ProjectType,1))),ProjectInfoTable[[#This Row],[Fixture Energy Cost Savings (Stipulated)]],IF(AND(ProjectInfoTable[[#This Row],[Fixture Measure]]=\"\",ProjectInfoTable[[#This Row],[Control Measure]]<>\"\"),0,ROUND((ProjectInfoTable[[#This Row],[Total Energy Costs (Existing, Actual)]]-ProjectInfoTable[[#This Row],[Total Energy Costs (Proposed)]]),2))))),\"\")","v":""},{"$f":"IFERROR(IF(OR(ProjectInfoTable[[#This Row],[Proposed Equipment]]=\"\",ProjectInfoTable[[#This Row],[Quantity (Proposed)]]=\"\"),\"\",\n\nIF(ProjectInfoTable[[#This Row],[Control kWh (Proposed)]]=\"Controls Only\",ProjectInfoTable[[#This Row],[Control Measure kWh/yr Savings (Actual)]]*INDEX(INDIRECT(\"RateSchedules_\"&ProjectState&\"_Table[kWh Rate]\"),\nMATCH(RateSchedule,INDIRECT(\"RateSchedules_\"&ProjectState&\"_Table[Rate Schedule]\"),0)),\n\nIF(NOT(ISNUMBER(FIND(\"Retrofit\",ProjectType,1))),ProjectInfoTable[[#This Row],[Control Energy Cost Savings (Stipulated)]],IF(AND(ProjectInfoTable[[#This Row],[Fixture Measure]]=\"\",ProjectInfoTable[[#This Row],[Control Measure]]<>\"\"),ROUND((ProjectInfoTable[[#This Row],[Total Energy Costs (Existing, Actual)]]-ProjectInfoTable[[#This Row],[Total Energy Costs (Proposed)]]),2),ROUND((ProjectInfoTable[[#This Row],[Total Energy Costs (Existing, Actual)]]-ProjectInfoTable[[#This Row],[Total Energy Costs (Proposed)]]),2)*(ProjectInfoTable[[#This Row],[Control Measure kWh/yr Savings (Actual)]]/ProjectInfoTable[[#This Row],[Total   kWh/yr Savings (Actual)]]))))),\"\")","v":""},{"$f":"IF(OR(ProjectInfoTable[[#This Row],[Proposed Equipment]]=\"\",ProjectInfoTable[[#This Row],[Quantity (Proposed)]]=\"\"),\"\",ROUND(ProjectInfoTable[[#This Row],[Fixture Energy Cost Savings (Actual)]]+ProjectInfoTable[[#This Row],[Control Energy Cost Savings (Actual)]],2))","v":""},{"$f":"IF(OR(ProjectInfoTable[[#This Row],[Proposed Equipment]]=\"\",ProjectInfoTable[[#This Row],[Quantity (Proposed)]]=\"\"),\"\",IF(OR(ISNUMBER(VALUE(ProjectInfoTable[[#This Row],[kWh Per Unit]])),ISNUMBER(VALUE(ProjectInfoTable[[#This Row],[kW Per Unit]]))),IFERROR(ProjectInfoTable[[#This Row],[Fixture Measure kWh/yr Savings (Stipulated)]]*INDEX(INDIRECT(\"RateSchedules_\"&ProjectState&\"_Table[kWh Rate]\"),MATCH(RateSchedule,INDIRECT(\"RateSchedules_\"&ProjectState&\"_Table[Rate Schedule]\"),0)),0)+IFERROR(ProjectInfoTable[[#This Row],[kW Demand Reduction (Stipulated)]]/1000*12*INDEX(INDIRECT(\"RateSchedules_\"&ProjectState&\"_Table[kW Rate]\"),MATCH(RateSchedule,INDIRECT(\"RateSchedules_\"&ProjectState&\"_Table[Rate Schedule]\"),0)),0),IFERROR(ROUND((ProjectInfoTable[[#This Row],[Total Energy Costs (Existing, Stipulated)]]-ProjectInfoTable[[#This Row],[Total Energy Costs (Proposed)]])*ProjectInfoTable[[#This Row],[Fixture Measure kWh/yr Savings (Stipulated)]]/ProjectInfoTable[[#This Row],[Total   kWh/yr Savings (Stipulated)]],2),0)))","v":""},{"$f":"IF(OR(ProjectInfoTable[[#This Row],[Proposed Equipment]]=\"\",ProjectInfoTable[[#This Row],[Quantity (Proposed)]]=\"\"),\"\",\nIF(ProjectInfoTable[[#This Row],[Control kWh (Proposed)]]=\"Controls Only\",ProjectInfoTable[[#This Row],[Control Measure kWh/yr Savings (Stipulated)]]*INDEX(INDIRECT(\"RateSchedules_\"&ProjectState&\"_Table[kWh Rate]\"),\nMATCH(RateSchedule,INDIRECT(\"RateSchedules_\"&ProjectState&\"_Table[Rate Schedule]\"),0)),IF(OR(ISNUMBER(VALUE(ProjectInfoTable[[#This Row],[Control kWh Per Unit]])),\nISNUMBER(VALUE(ProjectInfoTable[[#This Row],[Control kW Per Unit]]))),IFERROR(ProjectInfoTable[[#This Row],[Control Measure kWh/yr Savings (Stipulated)]]*INDEX(INDIRECT(\"RateSchedules_\"&ProjectState&\"_Table[kWh Rate]\"),\nMATCH(RateSchedule,INDIRECT(\"RateSchedules_\"&ProjectState&\"_Table[Rate Schedule]\"),0)),0)+IFERROR(ProjectInfoTable[[#This Row],[kW Demand Reduction (Stipulated)]]/1000*12*\nINDEX(INDIRECT(\"RateSchedules_\"&ProjectState&\"_Table[kW Rate]\"),MATCH(RateSchedule,INDIRECT(\"RateSchedules_\"&ProjectState&\"_Table[Rate Schedule]\"),0)),0),\nIFERROR(ROUND((ProjectInfoTable[[#This Row],[Total Energy Costs (Existing, Stipulated)]]-ProjectInfoTable[[#This Row],[Total Energy Costs (Proposed)]])*ProjectInfoTable[[#This Row],[Control Measure kWh/yr Savings (Stipulated)]]/\nProjectInfoTable[[#This Row],[Total   kWh/yr Savings (Stipulated)]],2),0))))","v":""},{"$f":"IF(OR(ProjectInfoTable[[#This Row],[Proposed Equipment]]=\"\",ProjectInfoTable[[#This Row],[Quantity (Proposed)]]=\"\"),\"\",ROUND(ProjectInfoTable[[#This Row],[Fixture Energy Cost Savings (Stipulated)]]+ProjectInfoTable[[#This Row],[Control Energy Cost Savings (Stipulated)]],2))","v":""},{"$f":"IF(ProjectInfoTable[[#This Row],[OpSch]]=\"\",\"\",IF(OR(ProjectInfoTable[[#This Row],[Fixture Measure]]=\"\",ProjectInfoTable[[#This Row],[Eligible Fixture Measure]]<>TRUE),0,ProjectInfoTable[[#This Row],[Fixture Incentives (pre-capping)]])+IF(OR(ProjectInfoTable[[#This Row],[Control Measure]]=\"\",ProjectInfoTable[[#This Row],[Eligible Control Measure]]<>TRUE),0,ProjectInfoTable[[#This Row],[Control Incentives (pre-capping)]]))","v":""},{"$f":"IF(OR(ProjectInfoTable[[#This Row],[Fixture Measure]]<>\"\",ProjectInfoTable[[#This Row],[Control Measure]]<>\"\"),IF(ProjectInfoTable[[#This Row],[Fixture Incentives]]=\"\",0,ProjectInfoTable[[#This Row],[Fixture Incentives]])+IF(ProjectInfoTable[[#This Row],[Control Incentives]]=\"\",0,ProjectInfoTable[[#This Row],[Control Incentives]]),\"\")","v":""},null,{"$f":"IF(OR(ProjectInfoTable[[#This Row],[Fixture Measure]]=\"\",ProjectInfoTable[[#This Row],[OpSch]]=\"\",ProjectInfoTable[[#This Row],[Eligible Fixture Measure]]<>TRUE),\"\",\nIF(OR(ISNUMBER(FIND(\"SBDI\",ProjectInfoTable[[#This Row],[Fixture Measure]])),ISNUMBER(FIND(\"Small Bu\",ProjectInfoTable[[#This Row],[Fixture Measure]]))),IFERROR(0.75*ProjectInfoTable[[#This Row],[Fixture Cost (Allocated)]],\"cost error\"),\nIF(AND(OR(ProjectType=\"New Construction\",ProjectType=\"Major Renovation\"),LPDCodeToProposed<0.1,ISNUMBER(FIND(\"Interior\",ProjectInfoTable[[#This Row],[Proposed Equipment]],1))),0,IFERROR(ProjectInfoTable[[#This Row],[Incentives Per Unit]]*ProjectInfoTable[[#This Row],[Quantity]]*ProjectInfoTable[[#This Row],[No. of TRL Units]],\"TRL Error\"))))","v":""},{"$f":"IF(\n    OR(\n        ProjectInfoTable[[#This Row],[Fixture Measure]] = \"\",\n        ProjectInfoTable[[#This Row],[OpSch]] = \"\",\n        ProjectInfoTable[[#This Row],[Eligible Fixture Measure]] <> TRUE\n    ),\n    \"\",\n    IF(\n        OR(\n            ISNUMBER(FIND(\"SBDI\", ProjectInfoTable[[#This Row],[Fixture Measure]])),\n            ISNUMBER(FIND(\"Small Bu\", ProjectInfoTable[[#This Row],[Fixture Measure]]))\n        ),\n        IFERROR(\n            (Incentive_NonTypical / Incentive_NonTypical_PreCapped) * ProjectInfoTable[[#This Row],[Fixture Incentives (pre-capping)]],\n            \"\"\n        ),\n        IF(\n            AND(\n                ProjectType = \"Retrofit\",\n                ProjectState = \"UT\",\n                ISNUMBER(FIND(\"Post-Purchase\", ProjectInfoTable[[#This Row],[Fixture Measure]], 1))\n            ),\n            IFERROR(\n                MAX(\n                    MIN(\n                        ProjectInfoTable[[#This Row],[Fixture Incentives (pre-capping)]],\n                        ProjectInfoTable[[#This Row],[Fixture Cost (Allocated)]] * 0.7\n                    ),\n                    0\n                ),\n                0\n            ),\n            IF(\n                ProjectType = \"Retrofit\",\n                IF(\n                    ISNUMBER(FIND(\"Post-Purchase\", ProjectInfoTable[[#This Row],[Fixture Measure]], 1)),\n                    ProjectInfoTable[[#This Row],[Fixture Incentives (pre-capping)]],\n                    IFERROR(\n                        $BI$3 / $BH$3 * ProjectInfoTable[[#This Row],[Fixture Incentives (pre-capping)]],\n                        \"\"\n                    )\n                ),\n                IF(\n                    ISNUMBER(FIND(\"Interior\", ProjectInfoTable[[#This Row],[Proposed Equipment]], 1)),\n                    IF(\n                        LPDCodeToProposed > 0.1,\n                        ProjectInfoTable[[#This Row],[Fixture Incentives (pre-capping)]],\n                        0\n                    ),\n                    ProjectInfoTable[[#This Row],[Fixture Incentives (pre-capping)]]\n                )\n            )\n        )\n    )\n)","v":""},{"$f":"IF(OR(ProjectInfoTable[[#This Row],[Incentives Per Unit]]=\"\",ProjectInfoTable[[#This Row],[TRL Unit]]=\"\"),\"\",IF(ProjectInfoTable[[#This Row],[Eligible Fixture Measure]]<>TRUE,\"Invalid Effective Date\",\nIF(OR(ISNUMBER(FIND(\"SBDI\",ProjectInfoTable[[#This Row],[Fixture Measure]])),ISNUMBER(FIND(\"Small Bu\",ProjectInfoTable[[#This Row],[Fixture Measure]]))),\"$0.75 / dollar cost\",\nTEXT(ProjectInfoTable[[#This Row],[Incentives Per Unit]],\"$#,##0.00\")&\" / \"&IF(ProjectInfoTable[[#This Row],[Fixture Measure]]=\"\",\"\",IF(ProjectInfoTable[[#This Row],[TRL Unit]]=\"Measure\",IF(ISNUMBER(FIND(\"Relamp\",ProjectInfoTable[[#This Row],[Proposed Equipment]],1)),\"Lamp\",\"Fixture\"),ProjectInfoTable[[#This Row],[TRL Unit]])))))","v":""},{"$f":"IF(OR(ProjectInfoTable[[#This Row],[Proposed Equipment]]=\"\",ProjectInfoTable[[#This Row],[Quantity (Proposed)]]=\"\"),\"\",IFERROR(SUBSTITUTE(IF(ProjectType=\"Retrofit\",IF(OR(ISNUMBER(FIND(\"Controls On\",ProjectInfoTable[[#This Row],[Proposed Equipment]],1))),\"\",IF(OR(ProjectInfoTable[[#This Row],[Existing Equipment]]=\"\",ProjectInfoTable[[#This Row],[Proposed Equipment]]=\"\"),\"\",IF(ProjectState=\"UT\",IFERROR(IF(AlternativeEnergyOverride=\"Yes\",IFERROR(INDEX(INDIRECT(\"EquipmentTable_\"&\"Retrofit_\"&ProjectState&\"[#All]\"),MATCH(LEFT(ProjectInfoTable[[#This Row],[Proposed Equipment]],FIND(\"[\",ProjectInfoTable[[#This Row],[Proposed Equipment]],1)-2)&\" (Alt)\",INDIRECT(\"EquipmentTable_\"&\"Retrofit_\"&ProjectState&\"[equipmentProposed]\"),0)+1,MATCH(\"measureRetrofit_\"&LEFT(ProjectInfoTable[[#This Row],[Existing Equipment]],FIND(\":\",ProjectInfoTable[[#This Row],[Existing Equipment]],1)-1)&\"_\"&IF(IFERROR(INDEX(ControlsLookup[Rank],MATCH(RIGHT(ProjectInfoTable[[#This Row],[Proposed Equipment]],LEN(ProjectInfoTable[[#This Row],[Proposed Equipment]])-FIND(\"]\",ProjectInfoTable[[#This Row],[Proposed Equipment]],1)-3),ControlsLookup[Controls],0)),0)>IFERROR(INDEX(ControlsLookup[Rank],MATCH(RIGHT(ProjectInfoTable[[#This Row],[Existing Equipment]],LEN(ProjectInfoTable[[#This Row],[Existing Equipment]])-FIND(\"]\",ProjectInfoTable[[#This Row],[Existing Equipment]],1)-3),ControlsLookup[Controls],0)),0),INDEX(ControlsLookup[Controls Type],MATCH(LEFT(ProjectInfoTable[[#This Row],[Existing Equipment]],FIND(\":\",ProjectInfoTable[[#This Row],[Existing Equipment]],1)-1)&\"_\"&RIGHT(ProjectInfoTable[[#This Row],[Proposed Equipment]],LEN(ProjectInfoTable[[#This Row],[Proposed Equipment]])-FIND(\"]\",ProjectInfoTable[[#This Row],[Proposed Equipment]],1)-3),ControlsLookup[Controls Concatenate],0)),\"None\"),INDIRECT(\"EquipmentTable_\"&\"Retrofit_\"&ProjectState&\"[#Headers]\"),0)),INDEX(INDIRECT(\"EquipmentTable_\"&IF(ProjectType=\"Retrofit\",\"Retrofit_\",\"NCMR_\")&ProjectState&\"[#All]\"),MATCH(LEFT(ProjectInfoTable[[#This Row],[Proposed Equipment]],FIND(\"[\",ProjectInfoTable[[#This Row],[Proposed Equipment]],1)-2),INDIRECT(\"EquipmentTable_\"&\"Retrofit_\"&ProjectState&\"[equipmentProposed]\"),0)+1,MATCH(\"measureRetrofit_\"&LEFT(ProjectInfoTable[[#This Row],[Existing Equipment]],FIND(\":\",ProjectInfoTable[[#This Row],[Existing Equipment]],1)-1)&\"_\"&IF(IFERROR(INDEX(ControlsLookup[Rank],MATCH(RIGHT(ProjectInfoTable[[#This Row],[Proposed Equipment]],LEN(ProjectInfoTable[[#This Row],[Proposed Equipment]])-FIND(\"]\",ProjectInfoTable[[#This Row],[Proposed Equipment]],1)-3),ControlsLookup[Controls],0)),0)>IFERROR(INDEX(ControlsLookup[Rank],MATCH(RIGHT(ProjectInfoTable[[#This Row],[Existing Equipment]],LEN(ProjectInfoTable[[#This Row],[Existing Equipment]])-FIND(\"]\",ProjectInfoTable[[#This Row],[Existing Equipment]],1)-3),ControlsLookup[Controls],0)),0),INDEX(ControlsLookup[Controls Type],MATCH(LEFT(ProjectInfoTable[[#This Row],[Existing Equipment]],FIND(\":\",ProjectInfoTable[[#This Row],[Existing Equipment]],1)-1)&\"_\"&RIGHT(ProjectInfoTable[[#This Row],[Proposed Equipment]],LEN(ProjectInfoTable[[#This Row],[Proposed Equipment]])-FIND(\"]\",ProjectInfoTable[[#This Row],[Proposed Equipment]],1)-3),ControlsLookup[Controls Concatenate],0)),\"None\"),INDIRECT(\"EquipmentTable_\"&IF(ProjectType=\"Retrofit\",\"Retrofit_\",\"NCMR_\")&ProjectState&\"[#Headers]\"),0))),INDEX(INDIRECT(\"EquipmentTable_\"&IF(ProjectType=\"Retrofit\",\"Retrofit_\",\"NCMR_\")&ProjectState&\"[#All]\"),MATCH(LEFT(ProjectInfoTable[[#This Row],[Proposed Equipment]],FIND(\"[\",ProjectInfoTable[[#This Row],[Proposed Equipment]],1)-2),INDIRECT(\"EquipmentTable_\"&IF(ProjectType=\"Retrofit\",\"Retrofit_\",\"NCMR_\")&ProjectState&\"[equipmentProposed]\"),0)+1,MATCH(\"measureRetrofit_\"&IF(AND(SBDEligible=\"Yes\",ISNUMBER(FIND(\"SBE\",ProjectInfoTable[[#This Row],[Proposed Equipment]]))),\"SBE\",LEFT(ProjectInfoTable[[#This Row],[Existing Equipment]],FIND(\":\",ProjectInfoTable[[#This Row],[Existing Equipment]],1)-1)&\"_\"&IF(IFERROR(INDEX(ControlsLookup[Rank],MATCH(RIGHT(ProjectInfoTable[[#This Row],[Proposed Equipment]],LEN(ProjectInfoTable[[#This Row],[Proposed Equipment]])-FIND(\"]\",ProjectInfoTable[[#This Row],[Proposed Equipment]],1)-3),ControlsLookup[Controls],0)),0)>IFERROR(INDEX(ControlsLookup[Rank],MATCH(RIGHT(ProjectInfoTable[[#This Row],[Existing Equipment]],LEN(ProjectInfoTable[[#This Row],[Existing Equipment]])-FIND(\"]\",ProjectInfoTable[[#This Row],[Existing Equipment]],1)-3),ControlsLookup[Controls],0)),0),INDEX(ControlsLookup[Controls Type],MATCH(LEFT(ProjectInfoTable[[#This Row],[Existing Equipment]],FIND(\":\",ProjectInfoTable[[#This Row],[Existing Equipment]],1)-1)&\"_\"&RIGHT(ProjectInfoTable[[#This Row],[Proposed Equipment]],LEN(ProjectInfoTable[[#This Row],[Proposed Equipment]])-FIND(\"]\",ProjectInfoTable[[#This Row],[Proposed Equipment]],1)-3),ControlsLookup[Controls Concatenate],0)),\"None\")),INDIRECT(\"EquipmentTable_\"&\"Retrofit_\"&ProjectState&\"[#Headers]\"),0))),\"Non-eligible fixture - Retrofit - \"&ProjectState),IFERROR(INDEX(INDIRECT(\"EquipmentTable_\"&IF(SiteSpecificOverride=\"Yes\",\"PostPurchase_\",\"Retrofit_\")&ProjectState&\"[#All]\"),MATCH(LEFT(ProjectInfoTable[[#This Row],[Proposed Equipment]],FIND(\"[\",ProjectInfoTable[[#This Row],[Proposed Equipment]],1)-2),INDIRECT(\"EquipmentTable_\"&IF(SiteSpecificOverride=\"Yes\",\"PostPurchase_\",\"Retrofit_\")&ProjectState&\"[equipmentProposed]\"),0)+1,MATCH(\"measureRetrofit_\"&IF(AND(SBDEligible=\"Yes\",ISNUMBER(FIND(\"SBE\",ProjectInfoTable[[#This Row],[Proposed Equipment]]))),\"SBE\",LEFT(ProjectInfoTable[[#This Row],[Existing Equipment]],FIND(\":\",ProjectInfoTable[[#This Row],[Existing Equipment]],1)-1)&\"_\"&IF(IFERROR(INDEX(ControlsLookup[Rank],MATCH(RIGHT(ProjectInfoTable[[#This Row],[Proposed Equipment]],LEN(ProjectInfoTable[[#This Row],[Proposed Equipment]])-FIND(\"]\",ProjectInfoTable[[#This Row],[Proposed Equipment]],1)-3),ControlsLookup[Controls],0)),0)>IFERROR(INDEX(ControlsLookup[Rank],MATCH(RIGHT(ProjectInfoTable[[#This Row],[Existing Equipment]],LEN(ProjectInfoTable[[#This Row],[Existing Equipment]])-FIND(\"]\",ProjectInfoTable[[#This Row],[Existing Equipment]],1)-3),ControlsLookup[Controls],0)),0),INDEX(ControlsLookup[Controls Type],MATCH(LEFT(ProjectInfoTable[[#This Row],[Existing Equipment]],FIND(\":\",ProjectInfoTable[[#This Row],[Existing Equipment]],1)-1)&\"_\"&RIGHT(ProjectInfoTable[[#This Row],[Proposed Equipment]],LEN(ProjectInfoTable[[#This Row],[Proposed Equipment]])-FIND(\"]\",ProjectInfoTable[[#This Row],[Proposed Equipment]],1)-3),ControlsLookup[Controls Concatenate],0)),\"None\")),INDIRECT(\"EquipmentTable_\"&IF(SiteSpecificOverride=\"Yes\",\"PostPurchase_\",\"Retrofit_\")&ProjectState&\"[#Headers]\"),0)),\"Non-eligible fixture - Retrofit - \"&ProjectState)))),IFERROR(INDEX(INDIRECT(\"EquipmentTable_\"&\"NCMR_\"&ProjectState),MATCH(RIGHT(LEFT(ProjectInfoTable[[#This Row],[Proposed Equipment]],FIND(\" (\",ProjectInfoTable[[#This Row],[Proposed Equipment]],1)-1),LEN(LEFT(ProjectInfoTable[[#This Row],[Proposed Equipment]],FIND(\" (\",ProjectInfoTable[[#This Row],[Proposed Equipment]],1)-2))-FIND(\":\",ProjectInfoTable[[#This Row],[Proposed Equipment]],1)),INDIRECT(\"EquipmentTable_\"&\"NCMR_\"&ProjectState&\"[equipmentProposed]\"),0),MATCH(\"measureNCMR_\"&LEFT(ProjectInfoTable[[#This Row],[Proposed Equipment]],FIND(\":\",ProjectInfoTable[[#This Row],[Proposed Equipment]],1)-1)&\"_\"&IF(LEN(ProjectInfoTable[[#This Row],[Proposed Equipment]])>FIND(\"]\",ProjectInfoTable[[#This Row],[Proposed Equipment]]),INDEX(ControlsLookup[Controls Type],MATCH(LEFT(ProjectInfoTable[[#This Row],[Proposed Equipment]],FIND(\":\",ProjectInfoTable[[#This Row],[Proposed Equipment]],1)-1)&\"_\"&RIGHT(ProjectInfoTable[[#This Row],[Proposed Equipment]],LEN(ProjectInfoTable[[#This Row],[Proposed Equipment]])-FIND(\"]\",ProjectInfoTable[[#This Row],[Proposed Equipment]],1)-3),ControlsLookup[Controls Concatenate],0)),\"None\"),INDIRECT(\"EquipmentTable_\"&\"NCMR_\"&ProjectState&\"[#Headers]\"),0)),\"Non-eligible fixture - NCMR - \"&ProjectState)),\"[NAMESUB]\",ProjectInfoTable[[#This Row],[Measure Name Sub]]),\"Non-eligible fixture - Retrofit - \"&ProjectState))","v":""},{"$f":"IF(ISNUMBER(SEARCH(\"Case\",ProjectInfoTable[[#This Row],[Fixture Measure]])),CONCATENATE(ProjectInfoTable[[#This Row],[Fixture Measure]],ProjectInfoTable[[#This Row],[No. of TRL Units]],ProjectInfoTable[[#This Row],[Quantity]]),\"\")","v":""},{"$f":"IF(ProjectInfoTable[[#This Row],[Proposed Equipment]]=\"\",\"\",\nIF(AND(ProjectState = \"UT\",ISNUMBER(FIND(\" TLED \",ProjectInfoTable[[#This Row],[Proposed Equipment]]))),\nIF(VALUE(ProjectInfoTable[[#This Row],[Lamp W (Proposed)]])<20,\"< 20 W\",\nIF(AND(VALUE(ProjectInfoTable[[#This Row],[Lamp W (Proposed)]])<=39,VALUE(ProjectInfoTable[[#This Row],[Lamp W (Proposed)]])>=20),\">= 20 W and <= 39 W\",)),\n\nIF(AND(ProjectType=\"Retrofit\",OR(ISNUMBER(FIND(\"Retrofit Kit\",ProjectInfoTable[[#This Row],[Proposed Equipment]])),ISNUMBER(FIND(\"Fixture\",ProjectInfoTable[[#This Row],[Proposed Equipment]]))),OR(ISNUMBER(FIND(\"Exterior\",ProjectInfoTable[[#This Row],[Existing Equipment]])),ISNUMBER(FIND(\"Street\",ProjectInfoTable[[#This Row],[Existing Equipment]])))),\nIF(ProjectInfoTable[[#This Row],[Fixture W (Proposed)]]<50,\"< 50 W\",\nIF(AND(ProjectInfoTable[[#This Row],[Fixture W (Proposed)]]<90,ProjectInfoTable[[#This Row],[Fixture W (Proposed)]]>=50),\">= 50 W and < 90 W\",\nIF(AND(ProjectInfoTable[[#This Row],[Fixture W (Proposed)]]<135,ProjectInfoTable[[#This Row],[Fixture W (Proposed)]]>=90),\">= 90 W and < 135 W\",\nIF(AND(ProjectInfoTable[[#This Row],[Fixture W (Proposed)]]<220,ProjectInfoTable[[#This Row],[Fixture W (Proposed)]]>=135),\">= 135 W and < 220 W\",\nIF(ProjectInfoTable[[#This Row],[Fixture W (Proposed)]]>=220,\">= 220 W\"))))),\"\")))","v":""},{"$f":"IFERROR(INDEX(INDIRECT(\"MeasureTable_\" & ProjectState & \"[Measure Reference Number]\"),MATCH(ProjectInfoTable[[#This Row],[Fixture Measure]],INDIRECT(\"MeasureTable_\" &ProjectState&\"[Measure Name]\"),0)),\"\")","v":""},{"$f":"IFERROR(\n    _xlfn.LET(\n        _xlpm.filteredVersions,\n            _xlfn._xlws.FILTER(\n                INDIRECT(\"MeasureTable_\" & ProjectState & \"[Version Number]\"),\n                (INDIRECT(\"MeasureTable_\" & ProjectState & \"[Measure Reference Number]\") = ProjectInfoTable[[#This Row],[Fixture Measure Reference Number]]) *\n                (INDIRECT(\"MeasureTable_\" & ProjectState & \"[Eligible Measure]\") = TRUE)\n            ),\n        INDEX(_xlpm.filteredVersions, 1)\n    ),\n    \"\"\n)","v":""},{"$f":"IFERROR(\n  _xlfn.LET(\n    _xlpm.refRange, INDIRECT(\"MeasureTable_\" & ProjectState & \"[Measure Reference Number]\"),\n    _xlpm.eligibleRange, INDIRECT(\"MeasureTable_\" & ProjectState & \"[Eligible Measure]\"),\n    _xlpm.countTrue, SUMPRODUCT(--(_xlpm.refRange = ProjectInfoTable[[#This Row],[Fixture Measure Reference Number]]), --(_xlpm.eligibleRange = TRUE)),\n    _xlpm.countNonBlank, SUMPRODUCT(--(_xlpm.refRange = ProjectInfoTable[[#This Row],[Fixture Measure Reference Number]]), --(_xlpm.eligibleRange <> \"\")),\n    IF(_xlpm.countNonBlank = 0, \"\", IF(_xlpm.countTrue >= 1, TRUE, FALSE))\n  ),\n  \"\"\n)","v":""},{"$f":"IFERROR(VALUE(INDEX(INDIRECT(\"MeasureTable_\" & ProjectState & \"[CustomerIncentiveDollarperunit]\"),MATCH(ProjectInfoTable[[#This Row],[Fixture Measure]]&\" | TRUE\",INDIRECT(\"MeasureTable_\" &ProjectState&\"[MeasureEligibleConcatenate]\"),0))),\"\")","v":""},{"$f":"IFERROR(INDEX(INDIRECT(\"MeasureTable_\"&ProjectState&\"[SiteSpecificCalculation]\"),MATCH(ProjectInfoTable[[#This Row],[Fixture Measure]]&\" | TRUE\",INDIRECT(\"MeasureTable_\" &ProjectState&\"[MeasureEligibleConcatenate]\"),0)),\"\")","v":""},{"$f":"IFERROR(INDEX(INDIRECT(\"MeasureTable_\"&ProjectState&\"[GrossIncrementalAnnualElectricSavings]\"),MATCH(ProjectInfoTable[[#This Row],[Fixture Measure]]&\" | TRUE\",INDIRECT(\"MeasureTable_\" &ProjectState&\"[MeasureEligibleConcatenate]\"),0)),\"\")","v":""},{"$f":"IFERROR(INDEX(INDIRECT(\"MeasureTable_\"&ProjectState&\"[GrossAverageMonthlyDemandReduction]\"),MATCH(ProjectInfoTable[[#This Row],[Fixture Measure]]&\" | TRUE\",INDIRECT(\"MeasureTable_\" &ProjectState&\"[MeasureEligibleConcatenate]\"),0)),\"\")","v":""},{"$f":"IF(ProjectInfoTable[[#This Row],[Fixture Measure]]=\"\",\"\",IF(NOT(ISNUMBER(FIND(\"Site-Specific - Downstream\",ProjectInfoTable[[#This Row],[Fixture Measure]]))),\"\",\nIF(ISNUMBER(MATCH(SUBSTITUTE(ProjectInfoTable[[#This Row],[Fixture Measure]],\"Site-Specific - Downstream - v2\",\"Mid Market\"),INDIRECT(\"MeasureTable_\"&ProjectState&\"[Measure Name]\"),0)),\nSUBSTITUTE(ProjectInfoTable[[#This Row],[Fixture Measure]],\"Site-Specific - Downstream - v2\",\"Mid Market\"),\nSUBSTITUTE(ProjectInfoTable[[#This Row],[Fixture Measure]],\"Site-Specific - Downstream\",\"Mid Market\"))\n))","v":""},{"$f":"IF(ProjectInfoTable[[#This Row],[Midstream Measure Name]]=\"\",\"\",IFERROR(INDEX(INDIRECT(\"MeasureTable_\"&ProjectState&\"[GrossIncrementalAnnualElectricSavings ]\"),MATCH(ProjectInfoTable[[#This Row],[Midstream Measure Name]]&\" | TRUE\",INDIRECT(\"MeasureTable_\" &ProjectState&\"[MeasureEligibleConcatenate]\"),0)),\"\"))","v":""},{"$f":"IF(ProjectInfoTable[[#This Row],[Midstream Measure Name]]=\"\",\"\",IFERROR(INDEX(INDIRECT(\"MeasureTable_\"&ProjectState&\"[GrossAverage onthly emand eduction]\"),MATCH(ProjectInfoTable[[#This Row],[Midstream Measure Name]]&\" | TRUE\",INDIRECT(\"MeasureTable_\" &ProjectState&\"[MeasureEligibleConcatenate]\"),0)),\"\"))","v":""},{"$f":"IFERROR(INDEX(INDIRECT(\"MeasureTable_\"&ProjectState&\"[IncrementalMeasureCost]\"),MATCH(ProjectInfoTable[[#This Row],[Fixture Measure]]&\" | TRUE\",INDIRECT(\"MeasureTable_\" &ProjectState&\"[MeasureEligibleConcatenate]\"),0)),\"\")","v":""},{"$f":"IF(ProjectInfoTable[[#This Row],[Fixture Measure]]=\"\",\"\",IF(AND(ProjectState=\"UT\",ProjectInfoTable[[#This Row],[Measure Selection]]=\"\"),0,\nIF(OR(ISNUMBER(FIND(\"SBDI\",ProjectInfoTable[[#This Row],[Fixture Measure]])),ISNUMBER(FIND(\"Small Bu\",ProjectInfoTable[[#This Row],[Fixture Measure]]))),ProjectInfoTable[[#This Row],[Quantity (Proposed)]]*ProjectInfoTable[[#This Row],[Lamps (Proposed)]],\nIF(OR(ProjectInfoTable[[#This Row],[TRL Unit]]=\"Measure\",ProjectInfoTable[[#This Row],[TRL Unit]]=\"Linear ft.\"),IF(OR(ISNUMBER(FIND(\"Lamp\",ProjectInfoTable[[#This Row],[Fixture Measure]],1)),ISNUMBER(FIND(\"Relamp\",ProjectInfoTable[[#This Row],[Fixture Measure]],1)),ISNUMBER(FIND(\"Relamp\",ProjectInfoTable[[#This Row],[Proposed Equipment]],1))),ProjectInfoTable[[#This Row],[Quantity (Proposed)]]*ProjectInfoTable[[#This Row],[Lamps (Proposed)]],ProjectInfoTable[[#This Row],[Quantity (Proposed)]]),1))))","v":""},{"$f":"IF(ProjectInfoTable[[#This Row],[Fixture Measure]]=\"\",\"\",IF(AND(ProjectState=\"UT\",ProjectInfoTable[[#This Row],[Measure Selection]]=\"\"),0,\nIF(OR(ISNUMBER(FIND(\"SBDI\",ProjectInfoTable[[#This Row],[Fixture Measure]])),ISNUMBER(FIND(\"Small Bu\",ProjectInfoTable[[#This Row],[Fixture Measure]]))),1,\nIF(ISNUMBER(FIND(\"Controls Only\",ProjectInfoTable[[#This Row],[Proposed Equipment]],1)),IF(OR(ProjectType <> \"Retrofit\",ProjectInfoTable[[#This Row],[Space W (Proposed)]]>0),ProjectInfoTable[[#This Row],[Space W (Proposed)]],ProjectInfoTable[[#This Row],[Space W (Existing, Stipulated)]]),\nIF(TRIM(UPPER(ProjectInfoTable[[#This Row],[TRL Unit]]))=\"LINEAR FT.\",IF(OR(ISNUMBER(FIND(\"Marquee\",ProjectInfoTable[[#This Row],[Proposed Equipment]],1)),ISNUMBER(FIND(\"Cabinet\",ProjectInfoTable[[#This Row],[Proposed Equipment]],1))),VALUE(RIGHT(LEFT(ProjectInfoTable[[#This Row],[Existing Equipment]],FIND(\"LF \",ProjectInfoTable[[#This Row],[Existing Equipment]],1)-1),LEN(LEFT(ProjectInfoTable[[#This Row],[Existing Equipment]],FIND(\"LF \",ProjectInfoTable[[#This Row],[Existing Equipment]],1)-1))-FIND(\"[\",ProjectInfoTable[[#This Row],[Existing Equipment]],1))),VALUE(RIGHT(LEFT(ProjectInfoTable[[#This Row],[Proposed Equipment]],FIND(\"LF \",ProjectInfoTable[[#This Row],[Proposed Equipment]],1)-1),LEN(LEFT(ProjectInfoTable[[#This Row],[Proposed Equipment]],FIND(\"LF \",ProjectInfoTable[[#This Row],[Proposed Equipment]],1)-1))-FIND(\"[\",ProjectInfoTable[[#This Row],[Proposed Equipment]],1)))),\nIF(TRIM(UPPER(ProjectInfoTable[[#This Row],[TRL Unit]]))=\"KWH\",IF(ProjectInfoTable[[#This Row],[Fixture Measure kWh/yr Savings (Stipulated)]]=0,0,ROUND(ProjectInfoTable[[#This Row],[Fixture Measure kWh/yr Savings (Stipulated)]],2)),\nIF(TRIM(UPPER(ProjectInfoTable[[#This Row],[TRL Unit]]))=\"WATT REDUCED\",IF(ProjectInfoTable[[#This Row],[Fixture Measure kWh/yr Savings (Stipulated)]]=0,0,ROUND(ProjectInfoTable[[#This Row],[Space W (Existing, Stipulated)]]-ProjectInfoTable[[#This Row],[Space W (Proposed)]],2)),\nIF(TRIM(UPPER(ProjectInfoTable[[#This Row],[TRL Unit]]))=\"FIXTURE WATTAGE\",ProjectInfoTable[[#This Row],[Space W (Proposed)]],1))))))))","v":""},{"$f":"IFERROR(IF(OR(ISNUMBER(FIND(\"SBDI\",ProjectInfoTable[[#This Row],[Fixture Measure]])),ISNUMBER(FIND(\"Small Bu\",ProjectInfoTable[[#This Row],[Fixture Measure]]))),0,INDEX(INDIRECT(\"MeasureTable_\"&ProjectState&\"[Unit]\"),MATCH(ProjectInfoTable[[#This Row],[Fixture Measure]]&\" | TRUE\",INDIRECT(\"MeasureTable_\" &ProjectState&\"[MeasureEligibleConcatenate]\"),0))),\"\")","v":""},{"$f":"IF(ProjectInfoTable[[#This Row],[Fixture Measure]]=\"\",\"\",IF(OR(ISNUMBER(FIND(\"Lamp(s)\",ProjectInfoTable[[#This Row],[Fixture Measure]],1)),ISNUMBER(FIND(\"Relamp\",ProjectInfoTable[[#This Row],[Proposed Equipment]],1))),\"Lamp(s)\",\"Fixture(s)\"))","v":""},{"$f":"IFERROR(INDEX(INDIRECT(\"MeasureTable_\"&ProjectState&\"[ProjectCapPercent]\"),MATCH(ProjectInfoTable[[#This Row],[Fixture Measure]]&\" | TRUE\",INDIRECT(\"MeasureTable_\" &ProjectState&\"[MeasureEligibleConcatenate]\"),0)),\"\")","v":""},{"$f":"IF(OR(ProjectInfoTable[[#This Row],[Control Measure]]=\"\",ProjectInfoTable[[#This Row],[OpSch]]=\"\",ProjectInfoTable[[#This Row],[Eligible Control Measure]]<>TRUE),\"\",IF(AND(OR(ProjectType=\"New Construction\",ProjectType=\"Major Renovation\"),LPDCodeToProposed<0.1,ISNUMBER(FIND(\"Interior\",ProjectInfoTable[[#This Row],[Proposed Equipment]],1))),0,IFERROR(ProjectInfoTable[[#This Row],[Control Incentives Per Unit]]*ProjectInfoTable[[#This Row],[Control Quantity]]*ProjectInfoTable[[#This Row],[Control No. of TRL Units]],\"TRL Error\")))","v":""},{"$f":"IF(OR(ProjectInfoTable[[#This Row],[Control Measure]]=\"\",ProjectInfoTable[[#This Row],[OpSch]]=\"\",ProjectInfoTable[[#This Row],[Eligible Control Measure]]<>TRUE),\"\",IF(AND(ProjectType=\"Retrofit\",ProjectState=\"UT\",ISNUMBER(FIND(\"Post Purchase\",ProjectInfoTable[[#This Row],[Control Measure]],1))),\n\nIFERROR(MAX(MIN(ProjectInfoTable[[#This Row],[Control Incentives (pre-capping)]],ProjectInfoTable[[#This Row],[Control Cost (Allocated)]]*0.7),0),0),\n\nIF(ProjectType=\"Retrofit\",IF(ISNUMBER(FIND(\"Post Purchase\",ProjectInfoTable[[#This Row],[Control Measure]],1)),ProjectInfoTable[[#This Row],[Control Incentives (pre-capping)]],IFERROR($BI$3/$BH$3*ProjectInfoTable[[#This Row],[Control Incentives (pre-capping)]],\"\")),\n\nIF(ISNUMBER(FIND(\"Interior\",ProjectInfoTable[[#This Row],[Proposed Equipment]],1)),IF(LPDCodeToProposed>0.1,ProjectInfoTable[[#This Row],[Control Incentives (pre-capping)]],0),ProjectInfoTable[[#This Row],[Control Incentives (pre-capping)]]))))","v":""},{"$f":"IF(OR(ProjectInfoTable[[#This Row],[Control Incentives Per Unit]]=\"\",ProjectInfoTable[[#This Row],[Control TRL Unit]]=\"\"),\"\",IF(ProjectInfoTable[[#This Row],[Eligible Control Measure]]<>TRUE,\"Invalid Effective Date\",TEXT(ProjectInfoTable[[#This Row],[Control Incentives Per Unit]],\"$#,##0.00\")&\" / \"&ProjectInfoTable[[#This Row],[Control TRL Unit]]))","v":""},{"$f":"IF(ISNUMBER(FIND(\"SBE\",ProjectInfoTable[[#This Row],[Proposed Equipment]])),\"\",\n\nIF(LEN(ProjectInfoTable[[#This Row],[Proposed Equipment]])>\n\nIFERROR(FIND(\"]\",ProjectInfoTable[[#This Row],[Proposed Equipment]],1),0),\nSUBSTITUTE(\nIF(OR(ProjectInfoTable[[#This Row],[Control Method]]=\"separate\",ISNUMBER(FIND(\"Midstream\",ProjectInfoTable[[#This Row],[Fixture Measure]],1)),ISNUMBER(FIND(\"Midstream\",ProjectInfoTable[[#This Row],[Equipment Category]],1)),ISNUMBER(FIND(\"Prescriptive\",ProjectInfoTable[[#This Row],[Equipment Category]],1)),ISNUMBER(FIND(\"LED\",ProjectInfoTable[[#This Row],[Fixture Measure]],1)),ISNUMBER(FIND(\"LED Case\",ProjectInfoTable[[#This Row],[Fixture Measure]],1)),ISNUMBER(FIND(\"LED Decorative - Retrofit - WA\",ProjectInfoTable[[#This Row],[Fixture Measure]],1)),ISNUMBER(FIND(\"Lamp\",ProjectInfoTable[[#This Row],[Fixture Measure]],1)),ISNUMBER(FIND(\"Relamp\",ProjectInfoTable[[#This Row],[Fixture Measure]],1)),ISNUMBER(FIND(\"Wall Pack\",ProjectInfoTable[[#This Row],[Fixture Measure]],1)),ISNUMBER(FIND(\"Controls Only\",ProjectInfoTable[[#This Row],[Proposed Equipment]],1)),ISNUMBER(FIND(\"Re-Commissioning\",ProjectInfoTable[[#This Row],[Proposed Equipment]],1)),\n\nAND(OR(ISNUMBER(FIND(\"Exterior:\",ProjectInfoTable[[#This Row],[Proposed Equipment]],1)),ISNUMBER(FIND(\"Street:\",ProjectInfoTable[[#This Row],[Proposed Equipment]],1))),OR(ProjectState=\"ID\",ProjectState=\"UT\",ProjectState=\"WY\"))),\n\nIF(IFERROR(INDEX(ControlsLookup[],MATCH(IF(ProjectType=\"Retrofit\",LEFT(ProjectInfoTable[[#This Row],[Existing Equipment]],FIND(\":\",ProjectInfoTable[[#This Row],[Existing Equipment]],1)-1),LEFT(ProjectInfoTable[[#This Row],[Proposed Equipment]],FIND(\":\",ProjectInfoTable[[#This Row],[Proposed Equipment]],1)-1))&\"_\"&RIGHT(ProjectInfoTable[[#This Row],[Proposed Equipment]],LEN(ProjectInfoTable[[#This Row],[Proposed Equipment]])-FIND(\"]\",ProjectInfoTable[[#This Row],[Proposed Equipment]],1)-3),ControlsLookup[Controls Concatenate],0),MATCH(\n\nIF(ProjectType=\"Retrofit\",\"ControlMeasure_\",\"NCMRControlMeasure_\")&ProjectState,ControlsLookup[#Headers],0)),\"\")=0,\"\",\n\nIFERROR(INDEX(ControlsLookup[],MATCH(IF(ProjectType=\"Retrofit\",LEFT(ProjectInfoTable[[#This Row],[Existing Equipment]],FIND(\":\",ProjectInfoTable[[#This Row],[Existing Equipment]],1)-1),LEFT(ProjectInfoTable[[#This Row],[Proposed Equipment]],FIND(\":\",ProjectInfoTable[[#This Row],[Proposed Equipment]],1)-1))&\"_\"&RIGHT(ProjectInfoTable[[#This Row],[Proposed Equipment]],LEN(ProjectInfoTable[[#This Row],[Proposed Equipment]])-FIND(\"]\",ProjectInfoTable[[#This Row],[Proposed Equipment]],1)-3),ControlsLookup[Controls Concatenate],0),MATCH(\n\nIF(ProjectType=\"Retrofit\",\"ControlMeasure_\",\"NCMRControlMeasure_\")&ProjectState&IF(ProjectState=\"UT\",SegmentTag,\"\"),ControlsLookup[#Headers],0)),\"\")),\"\"),\"[NAMESUB]\",ProjectInfoTable[[#This Row],[Control Measure Name Sub]]),\"\"))","v":""},{"$f":"IF(ProjectInfoTable[[#This Row],[Proposed Equipment]]=\"\",\"\",IF(AND(ProjectState=\"UT\",ProjectType=\"Retrofit\",ISNUMBER(FIND(\"Re-Commissioning\",ProjectInfoTable[[#This Row],[Proposed Equipment]]))),\nIF(ProjectRecommissioning=\"only recommissioning\",\"Commissioning Only\",\"Commissioning w/ Lighting Upgrade\"),\"\"))","v":""},{"$f":"IFERROR(INDEX(INDIRECT(\"MeasureTable_\" & ProjectState & \"[Measure Reference Number]\"),MATCH(ProjectInfoTable[[#This Row],[Control Measure]],INDIRECT(\"MeasureTable_\" &ProjectState&\"[Measure Name]\"),0)),\"\")","v":""},{"$f":"IFERROR(\n    _xlfn.LET(\n        _xlpm.filteredVersions,\n            _xlfn._xlws.FILTER(\n                INDIRECT(\"MeasureTable_\" & ProjectState & \"[Version Number]\"),\n                (INDIRECT(\"MeasureTable_\" & ProjectState & \"[Measure Reference Number]\") = ProjectInfoTable[[#This Row],[Control Measure Reference Number]]) *\n                (INDIRECT(\"MeasureTable_\" & ProjectState & \"[Eligible Measure]\") = TRUE)\n            ),\n        INDEX(_xlpm.filteredVersions, 1)\n    ),\n    \"\"\n)","v":""},{"$f":"IFERROR(\n  _xlfn.LET(\n    _xlpm.refRange, INDIRECT(\"MeasureTable_\" & ProjectState & \"[Measure Reference Number]\"),\n    _xlpm.eligibleRange, INDIRECT(\"MeasureTable_\" & ProjectState & \"[Eligible Measure]\"),\n    _xlpm.countTrue, SUMPRODUCT(--(_xlpm.refRange = ProjectInfoTable[[#This Row],[Control Measure Reference Number]]), --(_xlpm.eligibleRange = TRUE)),\n    _xlpm.countNonBlank, SUMPRODUCT(--(_xlpm.refRange = ProjectInfoTable[[#This Row],[Control Measure Reference Number]]), --(_xlpm.eligibleRange <> \"\")),\n    IF(_xlpm.countNonBlank = 0, \"\", IF(_xlpm.countTrue >= 1, TRUE, FALSE))\n  ),\n  \"\"\n)","v":""},{"$f":"IF(ProjectInfoTable[[#This Row],[Proposed Equipment]]=\"\",\"\",IFERROR(INDEX(INDIRECT(\"EquipmentTable_\"&IF(ProjectType=\"Retrofit\",\"Retrofit_\",\"NCMR_\")&ProjectState&\"[controlMethod]\"),MATCH(LEFT(ProjectInfoTable[[#This Row],[Proposed Equipment]],FIND(\"[\",ProjectInfoTable[[#This Row],[Proposed Equipment]],1)-2),INDIRECT(\"EquipmentTable_\"&IF(ProjectType=\"Retrofit\",\"Retrofit_\",\"NCMR_\")&ProjectState&\"[equipmentProposed]\"),0)),\"\"))","v":""},{"$f":"IFERROR(VALUE(INDEX(INDIRECT(\"MeasureTable_\" & ProjectState & \"[CustomerIncentiveDollarperunit]\"),MATCH(ProjectInfoTable[[#This Row],[Control Measure]]&\" | TRUE\",INDIRECT(\"MeasureTable_\"&ProjectState&\"[MeasureEligibleConcatenate]\"),0))),\"\")","v":""},{"$f":"IFERROR(INDEX(INDIRECT(\"MeasureTable_\"&ProjectState&\"[SiteSpecificCalculation]\"),MATCH(ProjectInfoTable[[#This Row],[Control Measure]]&\" | TRUE\",INDIRECT(\"MeasureTable_\"&ProjectState&\"[MeasureEligibleConcatenate]\"),0)),\"\")","v":""},{"$f":"IFERROR(INDEX(INDIRECT(\"MeasureTable_\"&ProjectState&\"[GrossIncrementalAnnualElectricSavings ]\"),MATCH(ProjectInfoTable[[#This Row],[Control Measure]]&\" | TRUE\",INDIRECT(\"MeasureTable_\"&ProjectState&\"[MeasureEligibleConcatenate]\"),0)),\"\")","v":""},{"$f":"IFERROR(INDEX(INDIRECT(\"MeasureTable_\"&ProjectState&\"[GrossAverage onthly emand eduction]\"),MATCH(ProjectInfoTable[[#This Row],[Control Measure]]&\" | TRUE\",INDIRECT(\"MeasureTable_\"&ProjectState&\"[MeasureEligibleConcatenate]\"),0)),\"\")","v":""},{"$f":"IFERROR(INDEX(INDIRECT(\"MeasureTable_\"&ProjectState&\"[IncrementalMeasureCost]\"),MATCH(ProjectInfoTable[[#This Row],[Control Measure]]&\" | TRUE\",INDIRECT(\"MeasureTable_\"&ProjectState&\"[MeasureEligibleConcatenate]\"),0)),\"\")","v":""},{"$f":"IF(ProjectInfoTable[[#This Row],[Control Measure]]=\"\",\"\",IF(OR(ProjectInfoTable[[#This Row],[Control TRL Unit]]=\"Measure\",ProjectInfoTable[[#This Row],[Control TRL Unit]]=\"Linear ft.\"),IF(OR(ISNUMBER(FIND(\"Midstream\",ProjectInfoTable[[#This Row],[Control Measure]],1)),ISNUMBER(FIND(\"Lamp\",ProjectInfoTable[[#This Row],[Control Measure]],1))),ProjectInfoTable[[#This Row],[Quantity (Proposed)]]*ProjectInfoTable[[#This Row],[Lamps (Proposed)]],ProjectInfoTable[[#This Row],[Quantity (Proposed)]]),1))","v":""},{"$f":"IF(ProjectInfoTable[[#This Row],[Control Measure]]=\"\",\"\",IF(ISNUMBER(FIND(\"LF \",ProjectInfoTable[[#This Row],[Proposed Equipment]],1)),VALUE(RIGHT(LEFT(ProjectInfoTable[[#This Row],[Proposed Equipment]],FIND(\"LF \",ProjectInfoTable[[#This Row],[Proposed Equipment]],1)-1),LEN(LEFT(ProjectInfoTable[[#This Row],[Proposed Equipment]],FIND(\"LF \",ProjectInfoTable[[#This Row],[Proposed Equipment]],1)-1))-FIND(\"[\",ProjectInfoTable[[#This Row],[Proposed Equipment]],1))),IF(TRIM(UPPER(ProjectInfoTable[[#This Row],[Control TRL Unit]]))=\"WATT CONTROLLED\",IF(ISNUMBER(FIND(\"Controls Only\",ProjectInfoTable[[#This Row],[Proposed Equipment]],1)),IF(OR(ProjectType <> \"Retrofit\",ProjectInfoTable[[#This Row],[Space W (Proposed)]]>0),ProjectInfoTable[[#This Row],[Space W (Proposed)]],ProjectInfoTable[[#This Row],[Space W (Existing, Stipulated)]]),ProjectInfoTable[[#This Row],[Space W (Proposed)]]),IF(TRIM(UPPER(ProjectInfoTable[[#This Row],[Control TRL Unit]]))=\"KWH\",IF(ProjectInfoTable[[#This Row],[Control Measure kWh/yr Savings (Stipulated)]]=0,0,ROUND(ProjectInfoTable[[#This Row],[Control Measure kWh/yr Savings (Stipulated)]],2)),1))))","v":""},{"$f":"IFERROR(IF(LEN(ProjectInfoTable[[#This Row],[Proposed Equipment]])-(FIND(\"]\",ProjectInfoTable[[#This Row],[Proposed Equipment]],1))>0,\"Control(s)\",\"\"),\"\")","v":""},{"$f":"IFERROR(INDEX(INDIRECT(\"MeasureTable_\"&ProjectState&\"[Unit]\"),MATCH(ProjectInfoTable[[#This Row],[Control Measure]]&\" | TRUE\",INDIRECT(\"MeasureTable_\"&ProjectState&\"[MeasureEligibleConcatenate]\"),0)),\"\")","v":""},{"$f":"IFERROR(INDEX(INDIRECT(\"MeasureTable_\"&ProjectState&\"[ProjectCapPercent]\"),MATCH(ProjectInfoTable[[#This Row],[Control Measure]]&\" | TRUE\",INDIRECT(\"MeasureTable_\"&ProjectState&\"[MeasureEligibleConcatenate]\"),0)),\"\")","v":""},{"$f":"IF(OR(ProjectInfoTable[[#This Row],[Fixture Measure]]<>\"\",ProjectInfoTable[[#This Row],[Control Measure]]<>\"\"),1,\"\")","v":""},{"$f":"IF(ProjectInfoTable[[#This Row],[TRL Unit]]=\"\",\"\",IF(OR(ISNUMBER(SEARCH(\"measure\",ProjectInfoTable[[#This Row],[TRL Unit]])),ISNUMBER(SEARCH(\"linear ft\",ProjectInfoTable[[#This Row],[TRL Unit]])),ProjectInfoTable[[#This Row],[TRL Unit]]=0),990,991))","v":""},{"$f":"IFERROR(SUBSTITUTE(LEFT(ProjectInfoTable[[#This Row],[Proposed Equipment]],FIND(\"]\",ProjectInfoTable[[#This Row],[Proposed Equipment]],1)),\"Controls Only []\",\"\",1),\"\")","v":""},{"$f":"IF(ProjectInfoTable[[#This Row],[FixturesOnly]]=\"\",\"\",IF(ISNUMBER(FIND(\"L \",ProjectInfoTable[[#This Row],[Proposed Equipment]],1)),ProjectInfoTable[[#This Row],[Quantity (Proposed)]]*ProjectInfoTable[[#This Row],[Lamps (Proposed)]],ProjectInfoTable[[#This Row],[Quantity (Proposed)]]))","v":""},{"$f":"IFERROR(INDEX(ControlsLookup[Full Description],MATCH(RIGHT(ProjectInfoTable[[#This Row],[Proposed Equipment]],LEN(ProjectInfoTable[[#This Row],[Proposed Equipment]])-FIND(\"]\",ProjectInfoTable[[#This Row],[Proposed Equipment]],1)-3),ControlsLookup[Controls],0)),\"\")","v":""},{"$f":"IF(ProjectInfoTable[[#This Row],[ControlsOnly]]=\"\",\"\",IF(OR(ISNUMBER(FIND(\"Net\",ProjectInfoTable[[#This Row],[Proposed Equipment]],1)),ISNUMBER(FIND(\"Int\",ProjectInfoTable[[#This Row],[Proposed Equipment]],1))),ProjectInfoTable[[#This Row],[Quantity (Proposed)]],1))","v":""}]
[null,{"$f":"ROW(ProjectInfoTable[[#This Row],[OpSch]])-ROW(ProjectInfoTable[[#Headers],[OpSch]])","v":16},{"$f":"IFERROR(INDEX(RetrofitBaselineEquipment_Table[categoryBaseline],MATCH(RIGHT(LEFT(ProjectInfoTable[[#This Row],[Existing Equipment]],FIND(\" (\",ProjectInfoTable[[#This Row],[Existing Equipment]],1)-1),LEN(LEFT(ProjectInfoTable[[#This Row],[Existing Equipment]],FIND(\" (\",ProjectInfoTable[[#This Row],[Existing Equipment]],1)-1))-FIND(\": \",ProjectInfoTable[[#This Row],[Existing Equipment]],1)-1),RetrofitBaselineEquipment_Table[equipmentBaseline],0)),\"\")","v":""},null,null,null,null,{"$f":"IF(ProjectInfoTable[[#This Row],[Existing Equipment]]=\"\",\"\",IF(ISNUMBER(FIND(\"LF\",ProjectInfoTable[[#This Row],[Existing Equipment]],1)),1,IFERROR(VALUE(SUBSTITUTE(RIGHT(LEFT(ProjectInfoTable[[#This Row],[Existing Equipment]],FIND(\"L\",ProjectInfoTable[[#This Row],[Existing Equipment]],FIND(\"[\",ProjectInfoTable[[#This Row],[Existing Equipment]],1))-1),3),\"[\",\"\")),1)))","v":""},{"$f":"IF(ProjectInfoTable[[#This Row],[Existing Equipment]]=\"\",\"\",VALUE(SUBSTITUTE(RIGHT(LEFT(RIGHT(ProjectInfoTable[[#This Row],[Existing Equipment]],LEN(ProjectInfoTable[[#This Row],[Existing Equipment]])-IFERROR(FIND(\"[\",ProjectInfoTable[[#This Row],[Existing Equipment]],1),0)),IFERROR(FIND(\"W\",RIGHT(ProjectInfoTable[[#This Row],[Existing Equipment]],LEN(ProjectInfoTable[[#This Row],[Existing Equipment]])-IFERROR(FIND(\"[\",ProjectInfoTable[[#This Row],[Existing Equipment]],1),0)),1),0)),LEN(LEFT(RIGHT(ProjectInfoTable[[#This Row],[Existing Equipment]],LEN(ProjectInfoTable[[#This Row],[Existing Equipment]])-IFERROR(FIND(\"[\",ProjectInfoTable[[#This Row],[Existing Equipment]],1),0)),IFERROR(FIND(\"W\",RIGHT(ProjectInfoTable[[#This Row],[Existing Equipment]],LEN(ProjectInfoTable[[#This Row],[Existing Equipment]])-IFERROR(FIND(\"[\",ProjectInfoTable[[#This Row],[Existing Equipment]],1),0)),1),0)))-IFERROR(FIND(\"-\",LEFT(RIGHT(ProjectInfoTable[[#This Row],[Existing Equipment]],LEN(ProjectInfoTable[[#This Row],[Existing Equipment]])-IFERROR(FIND(\"[\",ProjectInfoTable[[#This Row],[Existing Equipment]],1),0)),IFERROR(FIND(\"W\",RIGHT(ProjectInfoTable[[#This Row],[Existing Equipment]],LEN(ProjectInfoTable[[#This Row],[Existing Equipment]])-IFERROR(FIND(\"[\",ProjectInfoTable[[#This Row],[Existing Equipment]],1),0)),1),0)),1),0)),\"W\",\"\")))","v":""},{"$f":"IF(ProjectInfoTable[[#This Row],[Existing Equipment]]=\"\",\"\",IF(AND(RIGHT(LEFT(ProjectInfoTable[[#This Row],[Existing Equipment]],FIND(\"]\",ProjectInfoTable[[#This Row],[Existing Equipment]],1)-1),1)<>\"W\"),IFERROR(TRIM(IF(IFERROR(FIND(\"FLT\",ProjectInfoTable[[#This Row],[Existing Equipment]],1),0)>0,LEFT(RIGHT(LEFT(ProjectInfoTable[[#This Row],[Existing Equipment]],FIND(\" (\",ProjectInfoTable[[#This Row],[Existing Equipment]],1)),LEN(LEFT(ProjectInfoTable[[#This Row],[Existing Equipment]],FIND(\" (\",ProjectInfoTable[[#This Row],[Existing Equipment]],1)))-FIND(\":\",ProjectInfoTable[[#This Row],[Existing Equipment]],1)-1),FIND(\" \",RIGHT(LEFT(ProjectInfoTable[[#This Row],[Existing Equipment]],FIND(\" (\",ProjectInfoTable[[#This Row],[Existing Equipment]],1)),LEN(LEFT(ProjectInfoTable[[#This Row],[Existing Equipment]],FIND(\" (\",ProjectInfoTable[[#This Row],[Existing Equipment]],1)))-FIND(\":\",ProjectInfoTable[[#This Row],[Existing Equipment]],1)-1),1)-1),RIGHT(LEFT(ProjectInfoTable[[#This Row],[Existing Equipment]],FIND(\" (\",ProjectInfoTable[[#This Row],[Existing Equipment]],1)),LEN(LEFT(ProjectInfoTable[[#This Row],[Existing Equipment]],FIND(\" (\",ProjectInfoTable[[#This Row],[Existing Equipment]],1)))-FIND(\":\",ProjectInfoTable[[#This Row],[Existing Equipment]],1)-1))&\" - \"&RIGHT(LEFT(ProjectInfoTable[[#This Row],[Existing Equipment]],FIND(\"]\",ProjectInfoTable[[#This Row],[Existing Equipment]],1)-1),LEN(LEFT(ProjectInfoTable[[#This Row],[Existing Equipment]],FIND(\"]\",ProjectInfoTable[[#This Row],[Existing Equipment]],1)-1))-FIND(\"W \",ProjectInfoTable[[#This Row],[Existing Equipment]],1)-3)),\"\"),\"\"))","v":""},{"$f":"IF(ProjectInfoTable[[#This Row],[Existing Equipment]]=\"\",\"\",IF(ProjectInfoTable[[#This Row],[Fixture/Ballast Check for Formula]]=\"\",IF(ISNUMBER(FIND(\"LF\",ProjectInfoTable[[#This Row],[Existing Equipment]],FIND(\"[\",ProjectInfoTable[[#This Row],[Existing Equipment]],1))),ProjectInfoTable[[#This Row],[Lamp W (Existing)]],ProjectInfoTable[[#This Row],[Lamps (Existing)]]*ProjectInfoTable[[#This Row],[Lamp W (Existing)]]),IFERROR(ROUND( ProjectInfoTable[[#This Row],[Lamps (Existing)]]*ProjectInfoTable[[#This Row],[Lamp W (Existing)]]*INDEX(FixtureWattageFormula_Table[A],MATCH(ProjectInfoTable[[#This Row],[Fixture/Ballast Check for Formula]],FixtureWattageFormula_Table[Concatenate],0))+INDEX(FixtureWattageFormula_Table[B],MATCH(ProjectInfoTable[[#This Row],[Fixture/Ballast Check for Formula]],FixtureWattageFormula_Table[Concatenate],0)),0),ProjectInfoTable[[#This Row],[Lamps (Existing)]]*ProjectInfoTable[[#This Row],[Lamp W (Existing)]])))","v":""},{"$f":"IF(OR(ISNUMBER(FIND(\"T8 \",ProjectInfoTable[[#This Row],[Existing Equipment]],1)),ISNUMBER(FIND(\"T5 \",ProjectInfoTable[[#This Row],[Existing Equipment]],1)),ISNUMBER(FIND(\"T12 \",ProjectInfoTable[[#This Row],[Existing Equipment]],1)),ISNUMBER(FIND(\"T12HO - 8\",ProjectInfoTable[[#This Row],[Existing Equipment]],1)),ISNUMBER(FIND(\"Incand\",ProjectInfoTable[[#This Row],[Existing Equipment]],1))),IFERROR(ROUND(INDEX(StipulatedWattage_Table[Stipulated fixture wattage],MATCH(MID(ProjectInfoTable[[#This Row],[Existing Equipment]],FIND(\"[\",ProjectInfoTable[[#This Row],[Existing Equipment]],1),FIND(\"]\",ProjectInfoTable[[#This Row],[Existing Equipment]],1)-FIND(\"[\",ProjectInfoTable[[#This Row],[Existing Equipment]],1)+1),StipulatedWattage_Table[Fixture Code],0)),0),ProjectInfoTable[[#This Row],[Fixture W (Existing, Actual)]]),ProjectInfoTable[[#This Row],[Fixture W (Existing, Actual)]])","v":""},{"$f":"IF(ProjectType=\"Retrofit\",IF(ProjectInfoTable[[#This Row],[Existing Equipment]]=\"\",\"\",ProjectInfoTable[[#This Row],[Quantity (Existing)]]*ProjectInfoTable[[#This Row],[Fixture W (Existing, Actual)]]),IF(ISNUMBER(FIND(\"Interior\",ProjectInfoTable[[#This Row],[Proposed Equipment]],1)),IF(ISNUMBER(FIND(\"Controls Only\",ProjectInfoTable[[#This Row],[Proposed Equipment]])),ProjectInfoTable[[#This Row],[Space W (Proposed)]],(AllowedWattage-SUMIFS(ProjectInfoTable[Space W (Proposed)],ProjectInfoTable[Proposed Equipment],\"*Interior*\",ProjectInfoTable[Proposed Equipment],\"*Controls Only*\"))*ProjectInfoTable[[#This Row],[Space W (Proposed)]]/(SUMIFS(ProjectInfoTable[Space W (Proposed)],ProjectInfoTable[Proposed Equipment],\"*Interior*\")-SUMIFS(ProjectInfoTable[Space W (Proposed)],ProjectInfoTable[Proposed Equipment],\"*Interior*\",ProjectInfoTable[Proposed Equipment],\"*Controls Only*\"))),\"\"))","v":""},{"$f":"IF(ProjectType=\"Retrofit\",IF(ProjectInfoTable[[#This Row],[Existing Equipment]]=\"\",\"\",ProjectInfoTable[[#This Row],[Quantity (Existing)]]*ProjectInfoTable[[#This Row],[Fixture W (Existing, Stipulated)]]),ProjectInfoTable[[#This Row],[Space W (Existing, Actual)]])","v":""},{"$f":"IFERROR(INDEX(OperatingHours_List,MATCH(ProjectInfoTable[[#This Row],[OpSch]],OperatingSchedules_List,0))*ProjectInfoTable[[#This Row],[Space W (Existing, Actual)]]/1000,\"\")","v":""},{"$f":"IFERROR(INDEX(OperatingHours_List,MATCH(ProjectInfoTable[[#This Row],[OpSch]],OperatingSchedules_List,0))*ProjectInfoTable[[#This Row],[Space W (Existing, Actual)]]/1000*(IFERROR(INDEX(ControlsLookup[],MATCH(RIGHT(ProjectInfoTable[[#This Row],[Existing Equipment]],LEN(ProjectInfoTable[[#This Row],[Existing Equipment]])-FIND(\"]\",ProjectInfoTable[[#This Row],[Existing Equipment]],1)-3),ControlsLookup[Controls],0),MATCH(\"CSF_\"&ProjectState,ControlsLookup[#Headers],0)),0))*-1,\"\")","v":""},{"$f":"IF(OR(ProjectInfoTable[[#This Row],[Fixture kWh (Existing, Actual)]]=\"\",ProjectInfoTable[[#This Row],[Control kWh (Existing, Actual)]]=\"\"),\"\",ProjectInfoTable[[#This Row],[Fixture kWh (Existing, Actual)]]+ProjectInfoTable[[#This Row],[Control kWh (Existing, Actual)]])","v":""},{"$f":"IFERROR(INDEX(OperatingHours_List,MATCH(ProjectInfoTable[[#This Row],[OpSch]],OperatingSchedules_List,0))*ProjectInfoTable[[#This Row],[Space W (Existing, Stipulated)]]/1000,\"\")","v":""},{"$f":"IFERROR(INDEX(OperatingHours_List,MATCH(ProjectInfoTable[[#This Row],[OpSch]],OperatingSchedules_List,0))*ProjectInfoTable[[#This Row],[Space W (Existing, Stipulated)]]/1000*(IFERROR(INDEX(ControlsLookup[],MATCH(RIGHT(ProjectInfoTable[[#This Row],[Existing Equipment]],LEN(ProjectInfoTable[[#This Row],[Existing Equipment]])-FIND(\"]\",ProjectInfoTable[[#This Row],[Existing Equipment]],1)-3),ControlsLookup[Controls],0),MATCH(\"CSF_\"&ProjectState,ControlsLookup[#Headers],0)),0))*-1,\"\")","v":""},{"$f":"IF(OR(ProjectInfoTable[[#This Row],[Fixture kWh (Existing, Stipulated)]]=\"\",ProjectInfoTable[[#This Row],[Control kWh (Existing, Stipulated)]]=\"\"),\"\",ProjectInfoTable[[#This Row],[Fixture kWh (Existing, Stipulated)]]+ProjectInfoTable[[#This Row],[Control kWh (Existing, Stipulated)]])","v":""},{"$f":"IF(\n AND(\n  OR(ProjectInfoTable[[#This Row],[Existing Equipment]]=\"\",ProjectInfoTable[[#This Row],[Quantity (Existing)]]=\"\"),\n  ProjectType=\"Retrofit\"\n ),\n \"\",\n IF(\n  ISNUMBER(FIND(\"Street:\",ProjectInfoTable[[#This Row],[Existing Equipment]],1)),\n  IF(\n   OR(\n    AND(ProjectState=\"UT\",RateSchedule=12),\n    AND(ProjectState=\"ID\",RateSchedule=12),\n    AND(ProjectState=\"WY\",RateSchedule=58)\n   ),\n   IFERROR(\n    INDEX(\n     StreetLightingRates_Table[],\n     MATCH(MID(ProjectInfoTable[[#This Row],[Existing Equipment]],FIND(\": \",ProjectInfoTable[[#This Row],[Existing Equipment]],1)+2,FIND(\" (\",ProjectInfoTable[[#This Row],[Existing Equipment]],1)-FIND(\": \",ProjectInfoTable[[#This Row],[Existing Equipment]],1)-2)&ProjectInfoTable[[#This Row],[Lamp W (Existing)]],StreetLightingRates_Table[TechWattage],0),\n     MATCH(ProjectState&RateSchedule,StreetLightingRates_Table[#Headers],0)\n    )\n    *\n    ProjectInfoTable[[#This Row],[Quantity (Existing)]]\n    *\n    ProjectInfoTable[[#This Row],[Lamps (Existing)]]\n    *\n    12,\n    ProjectInfoTable[[#This Row],[Space kWh (Existing, Actual)]]\n    *\n    INDEX(INDIRECT(\"RateSchedules_\"&ProjectState&\"_Table[kWh Rate]\"),MATCH(RateSchedule,INDIRECT(\"RateSchedules_\"&ProjectState&\"_Table[Rate Schedule]\"),0))\n   ),\n   IFERROR(\n    ProjectInfoTable[[#This Row],[Space kWh (Existing, Actual)]]*\n    INDEX(INDIRECT(\"RateSchedules_\"&ProjectState&\"_Table[kWh Rate]\"),MATCH(RateSchedule,INDIRECT(\"RateSchedules_\"&ProjectState&\"_Table[Rate Schedule]\"),0)),0)\n   +\n   IFERROR(IF(ISNUMBER(FIND(\"Interior:\",ProjectInfoTable[[#This Row],[Existing Equipment]],1)),\n    ProjectInfoTable[[#This Row],[Space W (Existing, Actual)]]/1000*12*DDF*\n    INDEX(INDIRECT(\"RateSchedules_\"&ProjectState&\"_Table[kW Rate]\"),MATCH(RateSchedule,INDIRECT(\"RateSchedules_\"&ProjectState&\"_Table[Rate Schedule]\"),0)),0),0)\n  ),\n  IFERROR(\n   ProjectInfoTable[[#This Row],[Space kWh (Existing, Actual)]]*\n   INDEX(INDIRECT(\"RateSchedules_\"&ProjectState&\"_Table[kWh Rate]\"),MATCH(RateSchedule,INDIRECT(\"RateSchedules_\"&ProjectState&\"_Table[Rate Schedule]\"),0)),\n   0\n  )\n  +\n  IFERROR(IF(OR(ISNUMBER(FIND(\"Interior:\",ProjectInfoTable[[#This Row],[Existing Equipment]],1)),AND(ProjectType<>\"Retrofit\",ISNUMBER(FIND(\"Interior:\",ProjectInfoTable[[#This Row],[Proposed Equipment]],1)))),\n   ProjectInfoTable[[#This Row],[Space W (Existing, Actual)]]/1000*12*DDF*\n   INDEX(INDIRECT(\"RateSchedules_\"&ProjectState&\"_Table[kW Rate]\"),MATCH(RateSchedule,INDIRECT(\"RateSchedules_\"&ProjectState&\"_Table[Rate Schedule]\"),0)),0),\n   0\n  )\n )\n)","v":0},{"$f":"IF(\n AND(\n  OR(ProjectInfoTable[[#This Row],[Existing Equipment]]=\"\",ProjectInfoTable[[#This Row],[Quantity (Existing)]]=\"\"),\n  ProjectType=\"Retrofit\"\n ),\n \"\",\n IF(\n  ISNUMBER(FIND(\"Street:\",ProjectInfoTable[[#This Row],[Existing Equipment]],1)),\n  IF(\n   OR(\n    AND(ProjectState=\"UT\",RateSchedule=12),\n    AND(ProjectState=\"ID\",RateSchedule=12),\n    AND(ProjectState=\"WY\",RateSchedule=58)\n   ),\n   IFERROR(\n    INDEX(\n     StreetLightingRates_Table[],\n     MATCH(MID(ProjectInfoTable[[#This Row],[Existing Equipment]],FIND(\": \",ProjectInfoTable[[#This Row],[Existing Equipment]],1)+2,FIND(\" (\",ProjectInfoTable[[#This Row],[Existing Equipment]],1)-FIND(\": \",ProjectInfoTable[[#This Row],[Existing Equipment]],1)-2)&ProjectInfoTable[[#This Row],[Lamp W (Existing)]],StreetLightingRates_Table[TechWattage],0),\n     MATCH(ProjectState&RateSchedule,StreetLightingRates_Table[#Headers],0)\n    )\n    *\n    ProjectInfoTable[[#This Row],[Quantity (Existing)]]\n    *\n    ProjectInfoTable[[#This Row],[Lamps (Existing)]]\n    *\n    12,\n    ProjectInfoTable[[#This Row],[Space kWh (Existing, Stipulated)]]\n    *\n    INDEX(INDIRECT(\"RateSchedules_\"&ProjectState&\"_Table[kWh Rate]\"),MATCH(RateSchedule,INDIRECT(\"RateSchedules_\"&ProjectState&\"_Table[Rate Schedule]\"),0))\n   ),\n   IFERROR(\n    ProjectInfoTable[[#This Row],[Space kWh (Existing, Stipulated)]]*\n    INDEX(INDIRECT(\"RateSchedules_\"&ProjectState&\"_Table[kWh Rate]\"),MATCH(RateSchedule,INDIRECT(\"RateSchedules_\"&ProjectState&\"_Table[Rate Schedule]\"),0)),0)\n   +\n   IFERROR(IF(ISNUMBER(FIND(\"Interior:\",ProjectInfoTable[[#This Row],[Existing Equipment]],1)),\n    ProjectInfoTable[[#This Row],[Space W (Existing, Stipulated)]]/1000*12*DDF*\n    INDEX(INDIRECT(\"RateSchedules_\"&ProjectState&\"_Table[kW Rate]\"),MATCH(RateSchedule,INDIRECT(\"RateSchedules_\"&ProjectState&\"_Table[Rate Schedule]\"),0)),0),0)\n  ),\n  IFERROR(\n   ProjectInfoTable[[#This Row],[Space kWh (Existing, Stipulated)]]*\n   INDEX(INDIRECT(\"RateSchedules_\"&ProjectState&\"_Table[kWh Rate]\"),MATCH(RateSchedule,INDIRECT(\"RateSchedules_\"&ProjectState&\"_Table[Rate Schedule]\"),0)),\n   0\n  )\n  +\n  IFERROR(IF(OR(ISNUMBER(FIND(\"Interior:\",ProjectInfoTable[[#This Row],[Existing Equipment]],1)),AND(ProjectType<>\"Retrofit\",ISNUMBER(FIND(\"Interior:\",ProjectInfoTable[[#This Row],[Proposed Equipment]],1)))),\n   ProjectInfoTable[[#This Row],[Space W (Existing, Stipulated)]]/1000*12*DDF*\n   INDEX(INDIRECT(\"RateSchedules_\"&ProjectState&\"_Table[kW Rate]\"),MATCH(RateSchedule,INDIRECT(\"RateSchedules_\"&ProjectState&\"_Table[Rate Schedule]\"),0)),0),\n   0\n  )\n )\n)","v":0},{"$f":"IF(ProjectType=\"Retrofit\",IFERROR(INDEX(RetrofitBaselineEquipment_Table[categoryBaseline],MATCH(RIGHT(LEFT(ProjectInfoTable[[#This Row],[Proposed Equipment]],FIND(\" (\",ProjectInfoTable[[#This Row],[Proposed Equipment]],1)-1),LEN(LEFT(ProjectInfoTable[[#This Row],[Proposed Equipment]],FIND(\" (\",ProjectInfoTable[[#This Row],[Proposed Equipment]],1)-1))-FIND(\": \",ProjectInfoTable[[#This Row],[Proposed Equipment]],1)-1),RetrofitBaselineEquipment_Table[equipmentBaseline],0)),\"\"),IFERROR(INDEX(#REF!,MATCH(RIGHT(LEFT(ProjectInfoTable[[#This Row],[Proposed Equipment]],FIND(\" (\",ProjectInfoTable[[#This Row],[Proposed Equipment]],1)-1),LEN(LEFT(ProjectInfoTable[[#This Row],[Proposed Equipment]],FIND(\" (\",ProjectInfoTable[[#This Row],[Proposed Equipment]],1)-1))-FIND(\": \",ProjectInfoTable[[#This Row],[Proposed Equipment]],1)-1),#REF!,0)),\"\"))","v":""},{"$f":"IF(ProjectInfoTable[[#This Row],[Proposed Equipment]]=\"\",\"\",IF(ISNUMBER(SEARCH(\"Controls Only\",ProjectInfoTable[[#This Row],[Proposed Equipment]])),\"Controls Only\",IF(ProjectType=\"Retrofit\",_xlfn.LET(_xlpm.k,LEFT(ProjectInfoTable[[#This Row],[Proposed Equipment]],FIND(\"[\",ProjectInfoTable[[#This Row],[Proposed Equipment]])-2),_xlpm.ep,_xlfn.SWITCH(ProjectState,\"UT\",EquipmentTable_Retrofit_UT[equipmentProposed],\"WY\",EquipmentTable_Retrofit_WY[equipmentProposed],\"ID\",EquipmentTable_Retrofit_ID[equipmentProposed]),_xlpm.cp,_xlfn.SWITCH(ProjectState,\"UT\",EquipmentTable_Retrofit_UT[categoryProposed],\"WY\",EquipmentTable_Retrofit_WY[categoryProposed],\"ID\",EquipmentTable_Retrofit_ID[categoryProposed]),_xlfn.XLOOKUP(_xlpm.k,_xlpm.ep,_xlpm.cp,\"Non-eligible fixture - Retrofit - \"&ProjectState)),_xlfn.LET(_xlpm.k,MID(ProjectInfoTable[[#This Row],[Proposed Equipment]],FIND(\": \",ProjectInfoTable[[#This Row],[Proposed Equipment]])+2,FIND(\" (\",ProjectInfoTable[[#This Row],[Proposed Equipment]])-(FIND(\": \",ProjectInfoTable[[#This Row],[Proposed Equipment]])+2)),_xlpm.ep,_xlfn.SWITCH(ProjectState,\"UT\",EquipmentTable_NCMR_UT[equipmentProposed],\"WY\",EquipmentTable_NCMR_WY[equipmentProposed],\"ID\",EquipmentTable_NCMR_ID[equipmentProposed]),_xlpm.cp,_xlfn.SWITCH(ProjectState,\"UT\",EquipmentTable_NCMR_UT[categoryProposed],\"WY\",EquipmentTable_NCMR_WY[categoryProposed],\"ID\",EquipmentTable_NCMR_ID[categoryProposed]),_xlfn.XLOOKUP(_xlpm.k,_xlpm.ep,_xlpm.cp,\"Non-eligible fixture - NCMR - \"&ProjectState)))))","v":""},null,null,"ü",{"$f":"IF(ProjectInfoTable[[#This Row],[Proposed Equipment]]=\"\",\"\",IF(ProjectInfoTable[[#This Row],[Measure Selection]]=\"\",0,IF(ISNUMBER(FIND(\"LF\",ProjectInfoTable[[#This Row],[Proposed Equipment]],1)),1,IFERROR(VALUE(SUBSTITUTE(RIGHT(LEFT(ProjectInfoTable[[#This Row],[Proposed Equipment]],FIND(\"L\",ProjectInfoTable[[#This Row],[Proposed Equipment]],FIND(\"[\",ProjectInfoTable[[#This Row],[Proposed Equipment]],1))-1),2),\"[\",\"\")),IFERROR(LEFT(RIGHT(ProjectInfoTable[[#This Row],[Proposed Equipment]],LEN(ProjectInfoTable[[#This Row],[Proposed Equipment]])-FIND(\"-lamp\",ProjectInfoTable[[#This Row],[Proposed Equipment]],1)+2),1),1)))))","v":""},{"$f":"IF(ProjectInfoTable[[#This Row],[Proposed Equipment]]=\"\",\"\",IF(ProjectInfoTable[[#This Row],[Measure Selection]]=\"\",0,IFERROR(\n\nIF(ISNUMBER(FIND(\"W]\",ProjectInfoTable[[#This Row],[Proposed Equipment]])),\nRIGHT(MID(ProjectInfoTable[[#This Row],[Proposed Equipment]],FIND(\"W]\",ProjectInfoTable[[#This Row],[Proposed Equipment]],FIND(\"[\",ProjectInfoTable[[#This Row],[Proposed Equipment]]))-7,7),\nLEN(MID(ProjectInfoTable[[#This Row],[Proposed Equipment]],FIND(\"W]\",ProjectInfoTable[[#This Row],[Proposed Equipment]],FIND(\"[\",ProjectInfoTable[[#This Row],[Proposed Equipment]]))-7,7)) -\nIFERROR(FIND(\" - \",MID(ProjectInfoTable[[#This Row],[Proposed Equipment]],FIND(\"W]\",ProjectInfoTable[[#This Row],[Proposed Equipment]],FIND(\"[\",ProjectInfoTable[[#This Row],[Proposed Equipment]]))-7,7))+2,\nFIND(\"[\",MID(ProjectInfoTable[[#This Row],[Proposed Equipment]],FIND(\"W]\",ProjectInfoTable[[#This Row],[Proposed Equipment]],FIND(\"[\",ProjectInfoTable[[#This Row],[Proposed Equipment]]))-7,7)))),\n\nIF(ISNUMBER(FIND(\"[\",MID(ProjectInfoTable[[#This Row],[Proposed Equipment]],FIND(\"W \",ProjectInfoTable[[#This Row],[Proposed Equipment]],FIND(\"[\",ProjectInfoTable[[#This Row],[Proposed Equipment]]))-7,7))),\nRIGHT(MID(ProjectInfoTable[[#This Row],[Proposed Equipment]],FIND(\"W \",ProjectInfoTable[[#This Row],[Proposed Equipment]],FIND(\"[\",ProjectInfoTable[[#This Row],[Proposed Equipment]]))-7,7),\nLEN(MID(ProjectInfoTable[[#This Row],[Proposed Equipment]],FIND(\"W \",ProjectInfoTable[[#This Row],[Proposed Equipment]],FIND(\"[\",ProjectInfoTable[[#This Row],[Proposed Equipment]]))-7,7)) -\nIFERROR(FIND(\" - \",MID(ProjectInfoTable[[#This Row],[Proposed Equipment]],FIND(\"W \",ProjectInfoTable[[#This Row],[Proposed Equipment]],FIND(\"[\",ProjectInfoTable[[#This Row],[Proposed Equipment]]))-7,7))+2,\nFIND(\"[\",MID(ProjectInfoTable[[#This Row],[Proposed Equipment]],FIND(\"W \",ProjectInfoTable[[#This Row],[Proposed Equipment]],FIND(\"[\",ProjectInfoTable[[#This Row],[Proposed Equipment]]))-7,7)))),\n\nRIGHT(MID(ProjectInfoTable[[#This Row],[Proposed Equipment]],FIND(\"W \",ProjectInfoTable[[#This Row],[Proposed Equipment]],FIND(\"[\",ProjectInfoTable[[#This Row],[Proposed Equipment]]))-7,7),\nLEN(MID(ProjectInfoTable[[#This Row],[Proposed Equipment]],FIND(\"W \",ProjectInfoTable[[#This Row],[Proposed Equipment]],FIND(\"[\",ProjectInfoTable[[#This Row],[Proposed Equipment]]))-7,7)) -\nFIND(\" - \",MID(ProjectInfoTable[[#This Row],[Proposed Equipment]],FIND(\"W \",ProjectInfoTable[[#This Row],[Proposed Equipment]],FIND(\"[\",ProjectInfoTable[[#This Row],[Proposed Equipment]]))-7,7))-2\n))),0)))","v":""},{"$f":"IF(ProjectInfoTable[[#This Row],[Proposed Equipment]]=\"\",\"\",IFERROR(ProjectInfoTable[[#This Row],[Lamps (Proposed)]]*ProjectInfoTable[[#This Row],[Lamp W (Proposed)]],\"\"))","v":""},{"$f":"IF(ProjectInfoTable[[#This Row],[Proposed Equipment]]=\"\",\"\",IFERROR(ProjectInfoTable[[#This Row],[Quantity (Proposed)]]*ProjectInfoTable[[#This Row],[Fixture W (Proposed)]],\"\"))","v":""},{"$f":"IFERROR(INDEX(OperatingHours_List,MATCH(ProjectInfoTable[[#This Row],[OpSch]],OperatingSchedules_List,0))*ProjectInfoTable[[#This Row],[Space W (Proposed)]]/1000,\"\")","v":""},{"$f":"IF(OR(ISNUMBER(FIND(\"Controls Only\",ProjectInfoTable[[#This Row],[Proposed Equipment]],1)),ProjectInfoTable[[#This Row],[ControlsOnly]]=\"Re-Commissioning\"),\"Controls Only\",IFERROR(INDEX(OperatingHours_List,MATCH(ProjectInfoTable[[#This Row],[OpSch]],OperatingSchedules_List,0))*ProjectInfoTable[[#This Row],[Space W (Proposed)]]/1000*(IFERROR(INDEX(ControlsLookup[],MATCH(SUBSTITUTE(RIGHT(ProjectInfoTable[[#This Row],[Proposed Equipment]],LEN(ProjectInfoTable[[#This Row],[Proposed Equipment]])-FIND(\"]\",ProjectInfoTable[[#This Row],[Proposed Equipment]],1)-3),\" reused\",\"\"),ControlsLookup[Controls],0),MATCH(\"CSF_\"&ProjectState,ControlsLookup[#Headers],0)),0))*-1,\"\"))","v":""},{"$f":"IF(OR(ProjectInfoTable[[#This Row],[Fixture kWh (Proposed)]]=\"\",ProjectInfoTable[[#This Row],[Control kWh (Proposed)]]=\"\"),\"\",IFERROR(ProjectInfoTable[[#This Row],[Fixture kWh (Proposed)]]+ProjectInfoTable[[#This Row],[Control kWh (Proposed)]],0))","v":""},{"$f":"IF(\n OR(\n  ProjectInfoTable[[#This Row],[Proposed Equipment]]=\"\",\n  ProjectInfoTable[[#This Row],[Quantity (Proposed)]]=\"\"\n ),\n \"\",\n IF(\n  AND(\n   OR(\n    AND(\n     ProjectState=\"UT\",\n     RateSchedule=12\n    ),\n    AND(\n     ProjectState=\"ID\",\n     RateSchedule=12\n    ),\n    AND(\n     ProjectState=\"WY\",\n     RateSchedule=58\n    )\n   ),\n   ISNUMBER(FIND(\"Street:\",ProjectInfoTable[[#This Row],[Existing Equipment]],1))\n  ),\n  IF(\n   AND(\n    RateSchedule=53,\n    ISNUMBER(FIND(\"LED\",ProjectInfoTable[[#This Row],[Proposed Equipment]],1))\n   ),\n   ProjectInfoTable[[#This Row],[Fixture kWh (Proposed)]]\n   *\n   INDEX(\n    INDIRECT(\"RateSchedules_\"&ProjectState&\"_Table[kWh Rate]\"),\n    MATCH(RateSchedule,INDIRECT(\"RateSchedules_\"&ProjectState&\"_Table[Rate Schedule]\"),0)\n   ),\n   IFERROR(INDEX(\n    StreetLightingRates_Table[],\n    MATCH(\"LED\"&IF(AND(ProjectInfoTable[[#This Row],[Fixture W (Proposed)]]>0,ProjectInfoTable[[#This Row],[Fixture W (Proposed)]]<=70),70,IF(AND(ProjectInfoTable[[#This Row],[Fixture W (Proposed)]]>70,ProjectInfoTable[[#This Row],[Fixture W (Proposed)]]<=100),100,IF(AND(ProjectInfoTable[[#This Row],[Fixture W (Proposed)]]>100,ProjectInfoTable[[#This Row],[Fixture W (Proposed)]]<=150),150,IF(AND(ProjectInfoTable[[#This Row],[Fixture W (Proposed)]]>150,ProjectInfoTable[[#This Row],[Fixture W (Proposed)]]<=200),200,IF(AND(ProjectInfoTable[[#This Row],[Fixture W (Proposed)]]>200,ProjectInfoTable[[#This Row],[Fixture W (Proposed)]]<=250),250,IF(AND(ProjectInfoTable[[#This Row],[Fixture W (Proposed)]]>250,ProjectInfoTable[[#This Row],[Fixture W (Proposed)]]<=400),400,\"\")))))),StreetLightingRates_Table[TechWattage],0),\n    MATCH(ProjectState&RateSchedule,StreetLightingRates_Table[#Headers],0)\n   )\n   *ProjectInfoTable[[#This Row],[Lamps (Proposed)]]*ProjectInfoTable[[#This Row],[Quantity (Proposed)]]*12,\n  ProjectInfoTable[[#This Row],[Space kWh (Proposed)]]*INDEX(INDIRECT(\"RateSchedules_\"&ProjectState&\"_Table[kWh Rate]\"),MATCH(RateSchedule,INDIRECT(\"RateSchedules_\"&ProjectState&\"_Table[Rate Schedule]\"),0)))),\n  IFERROR(ProjectInfoTable[[#This Row],[Space kWh (Proposed)]]*INDEX(INDIRECT(\"RateSchedules_\"&ProjectState&\"_Table[kWh Rate]\"),MATCH(RateSchedule,INDIRECT(\"RateSchedules_\"&ProjectState&\"_Table[Rate Schedule]\"),0)),0)\n  +\n  IF(OR(ISNUMBER(FIND(\"Exterior:\",ProjectInfoTable[[#This Row],[Existing Equipment]],1)),ISNUMBER(FIND(\"Street:\",ProjectInfoTable[[#This Row],[Existing Equipment]],1))),0,IFERROR(ProjectInfoTable[[#This Row],[Space W (Proposed)]]/1000*12*DDF*INDEX(INDIRECT(\"RateSchedules_\"&ProjectState&\"_Table[kW Rate]\"),MATCH(RateSchedule,INDIRECT(\"RateSchedules_\"&ProjectState&\"_Table[Rate Schedule]\"),0)),0))\n )\n)","v":""},{"$f":"IF(ProjectInfoTable[[#This Row],[Measure Selection]]=\"\",0,IF(ProjectType=\"Retrofit\",IFERROR((ProjectInfoTable[[#This Row],[Space W (Existing, Actual)]]-ProjectInfoTable[[#This Row],[Space W (Proposed)]])/ProjectInfoTable[[#This Row],[Space W (Existing, Actual)]],\"\"),IF(AND(ProjectInfoTable[[#This Row],[Proposed Equipment]]=\"\",ProjectInfoTable[[#This Row],[Quantity (Proposed)]]=\"\"),\"\",IFERROR((ProjectInfoTable[[#This Row],[Space W (Existing, Stipulated)]]-ProjectInfoTable[[#This Row],[Space W (Proposed)]])/ProjectInfoTable[[#This Row],[Space W (Existing, Stipulated)]],\"n/a\"))))","v":""},{"$f":"IF(ProjectInfoTable[[#This Row],[Measure Selection]]=\"\",0,IF(ProjectType=\"Retrofit\",IFERROR((ProjectInfoTable[[#This Row],[Space W (Existing, Stipulated)]]-ProjectInfoTable[[#This Row],[Space W (Proposed)]])/ProjectInfoTable[[#This Row],[Space W (Existing, Stipulated)]],\"\"),ProjectInfoTable[[#This Row],[% Wattage Reduction (Actual)]]))","v":""},{"$f":"IFERROR(IF(OR(ProjectInfoTable[[#This Row],[Measure Selection]]=\"\",ProjectInfoTable[[#This Row],[ControlsOnly]]=\"Re-Commissioning\"),0,IF(AND(ProjectType=\"Retrofit\",LEFT(ProjectInfoTable[[#This Row],[Existing Equipment]],FIND(\": \",ProjectInfoTable[[#This Row],[Existing Equipment]],1)-1)<>\"Interior\"),0,((ProjectInfoTable[[#This Row],[Space W (Existing, Actual)]]-ProjectInfoTable[[#This Row],[Space W (Proposed)]])/1000*DDF)-IF(ProjectInfoTable[[#This Row],[Midstream Measure Name]]<>\"\",IFERROR(ProjectInfoTable[[#This Row],[kW Per Unit (Midstream)]]*ProjectInfoTable[[#This Row],[Quantity]]*ProjectInfoTable[[#This Row],[No. of TRL Units]],0),0))),\"\")","v":""},{"$f":"IFERROR(IF(OR(ProjectInfoTable[[#This Row],[Measure Selection]]=\"\",ProjectInfoTable[[#This Row],[ControlsOnly]]=\"Re-Commissioning\"),0,IF(AND(ISNUMBER(VALUE(ProjectInfoTable[[#This Row],[kW Per Unit]])),ProjectInfoTable[[#This Row],[kW Per Unit]]<>0),ROUND(ProjectInfoTable[[#This Row],[kW Per Unit]]*ProjectInfoTable[[#This Row],[Quantity]]*ProjectInfoTable[[#This Row],[No. of TRL Units]],2),IF(OR(AND(ProjectType=\"Retrofit\",LEFT(ProjectInfoTable[[#This Row],[Existing Equipment]],FIND(\": \",ProjectInfoTable[[#This Row],[Existing Equipment]],1)-1)<>\"Interior\"),AND(ProjectInfoTable[[#This Row],[Incentives Per Unit]]=0,INDEX(StipulatedSavingsYesNo_Table[Stipulated Savings?],MATCH(ProjectState,StipulatedSavingsYesNo_Table[State],0))=\"No\")),0,IF(ISNUMBER(FIND(\"Controls Only\",ProjectInfoTable[[#This Row],[Proposed Equipment]],1)),0,ROUND(((ProjectInfoTable[[#This Row],[Space W (Existing, Stipulated)]]-ProjectInfoTable[[#This Row],[Space W (Proposed)]])/1000*DDF)-IF(ProjectInfoTable[[#This Row],[Midstream Measure Name]]<>\"\",IFERROR(ProjectInfoTable[[#This Row],[kW Per Unit (Midstream)]]*ProjectInfoTable[[#This Row],[Quantity]]*ProjectInfoTable[[#This Row],[No. of TRL Units]],0),0),2))))),\"\")","v":""},{"$f":"IFERROR(IF(OR(ProjectInfoTable[[#This Row],[Control kWh (Proposed)]]=\"Controls Only\",ProjectInfoTable[[#This Row],[Measure Selection]]=\"\"),0,ROUND((ProjectInfoTable[[#This Row],[Fixture kWh (Existing, Actual)]]-ProjectInfoTable[[#This Row],[Fixture kWh (Proposed)]])*IF(VALUE(SpaceTypesInfo_Table[[#Totals],[HVAC Effects]])=0,1,1+VALUE(SpaceTypesInfo_Table[[#Totals],[HVAC Effects]])),0)),\"\")","v":""},{"$f":"IFERROR(IF(ProjectInfoTable[[#This Row],[Control kWh (Proposed)]]=\"Controls Only\",ROUND(IFERROR(INDEX(OperatingHours_List,MATCH(ProjectInfoTable[[#This Row],[OpSch]],OperatingSchedules_List,0))*IF(OR(ProjectType <> \"Retrofit\",ProjectInfoTable[[#This Row],[Space W (Proposed)]]>0),ProjectInfoTable[[#This Row],[Space W (Proposed)]],ProjectInfoTable[[#This Row],[Space W (Existing, Actual)]])/1000*(IFERROR(INDEX(ControlsLookup[],MATCH(RIGHT(ProjectInfoTable[[#This Row],[Proposed Equipment]],LEN(ProjectInfoTable[[#This Row],[Proposed Equipment]])-FIND(\"]\",ProjectInfoTable[[#This Row],[Proposed Equipment]],1)-3),ControlsLookup[Controls],0),MATCH(\"CSF_\"&ProjectState,ControlsLookup[#Headers],0)),0))*IF(VALUE(SpaceTypesInfo_Table[[#Totals],[HVAC Effects]])=0,1,1+VALUE(SpaceTypesInfo_Table[[#Totals],[HVAC Effects]])),\"\"),0),ROUND(IFERROR((ProjectInfoTable[[#This Row],[Control kWh (Existing, Actual)]]-ProjectInfoTable[[#This Row],[Control kWh (Proposed)]])*IF(VALUE(SpaceTypesInfo_Table[[#Totals],[HVAC Effects]])=0,1,1+VALUE(SpaceTypesInfo_Table[[#Totals],[HVAC Effects]])),\"\"),0)),\"\")","v":""},{"$f":"IF(OR(ProjectInfoTable[[#This Row],[Proposed Equipment]]=\"\",ProjectInfoTable[[#This Row],[Quantity (Proposed)]]=\"\"),\"\",IF(ProjectInfoTable[[#This Row],[Fixture Measure]]=\"\",0,IF(AND(ProjectInfoTable[[#This Row],[Incentives Per Unit]]=0,INDEX(StipulatedSavingsYesNo_Table[Stipulated Savings?],MATCH(ProjectState,StipulatedSavingsYesNo_Table[State],0))=\"No\"),0,ProjectInfoTable[[#This Row],[Total   kWh/yr Savings (Actual)]]-ProjectInfoTable[[#This Row],[Control Measure kWh/yr Savings (Actual)]])))","v":""},{"$f":"IF(OR(ProjectInfoTable[[#This Row],[Proposed Equipment]]=\"\",ProjectInfoTable[[#This Row],[Quantity (Proposed)]]=\"\"),\"\",IF(ProjectInfoTable[[#This Row],[Control Measure]]=\"\",0,ProjectInfoTable[[#This Row],[Control kWh/yr Savings (Actual)]]))","v":""},{"$f":"IF(AND(ProjectInfoTable[[#This Row],[Incentives Per Unit]]=0,INDEX(StipulatedSavingsYesNo_Table[Stipulated Savings?],MATCH(ProjectState,StipulatedSavingsYesNo_Table[State],0))=\"No\"),ProjectInfoTable[[#This Row],[Fixture kWh/yr Savings (Actual)]]+IF(ProjectInfoTable[[#This Row],[Control Measure kWh/yr Savings (Actual)]]=0,0,ProjectInfoTable[[#This Row],[Control kWh/yr Savings (Actual)]]),IF(AND(ProjectInfoTable[[#This Row],[Fixture kWh/yr Savings (Actual)]]=\"\",ProjectInfoTable[[#This Row],[Control kWh/yr Savings (Actual)]]=\"\"),\"\",ROUND(IF(ProjectInfoTable[[#This Row],[Fixture kWh/yr Savings (Actual)]]=\"\",0,ProjectInfoTable[[#This Row],[Fixture kWh/yr Savings (Actual)]])+IF(ProjectInfoTable[[#This Row],[Control kWh/yr Savings (Actual)]]=\"\",0,ProjectInfoTable[[#This Row],[Control kWh/yr Savings (Actual)]])-IF(ProjectInfoTable[[#This Row],[Midstream Measure Name]]<>\"\",IFERROR(ProjectInfoTable[[#This Row],[kWh Per Unit (Midstream)]]*ProjectInfoTable[[#This Row],[Quantity]]*ProjectInfoTable[[#This Row],[No. of TRL Units]],0),0),0)))","v":""},{"$f":"IFERROR(IF(OR(ProjectInfoTable[[#This Row],[Measure Selection]]=\"\",ProjectInfoTable[[#This Row],[ControlsOnly]]=\"Re-Commissioning\"),0,IF(AND(ProjectInfoTable[[#This Row],[Incentives Per Unit]]=0,INDEX(StipulatedSavingsYesNo_Table[Stipulated Savings?],MATCH(ProjectState,StipulatedSavingsYesNo_Table[State],0))=\"No\"),0,IF(ISNUMBER(FIND(\"Controls Only\",ProjectInfoTable[[#This Row],[Proposed Equipment]],1)),0,ROUND((ProjectInfoTable[[#This Row],[Fixture kWh (Existing, Stipulated)]]-ProjectInfoTable[[#This Row],[Fixture kWh (Proposed)]])*IF(VALUE(SpaceTypesInfo_Table[[#Totals],[HVAC Effects]])=0,1,1+VALUE(SpaceTypesInfo_Table[[#Totals],[HVAC Effects]])),0)))),\"\")","v":""},{"$f":"IFERROR(IF(ProjectInfoTable[[#This Row],[Control kWh (Proposed)]]=\"Controls Only\",ROUND(IFERROR(INDEX(OperatingHours_List,MATCH(ProjectInfoTable[[#This Row],[OpSch]],OperatingSchedules_List,0))*IF(OR(ProjectType <> \"Retrofit\",ProjectInfoTable[[#This Row],[Space W (Proposed)]]>0),ProjectInfoTable[[#This Row],[Space W (Proposed)]],ProjectInfoTable[[#This Row],[Space W (Existing, Stipulated)]])/1000*(IFERROR(INDEX(ControlsLookup[],MATCH(RIGHT(ProjectInfoTable[[#This Row],[Proposed Equipment]],LEN(ProjectInfoTable[[#This Row],[Proposed Equipment]])-FIND(\"]\",ProjectInfoTable[[#This Row],[Proposed Equipment]],1)-3),ControlsLookup[Controls],0),MATCH(\"CSF_\"&ProjectState,ControlsLookup[#Headers],0)),0))*IF(VALUE(SpaceTypesInfo_Table[[#Totals],[HVAC Effects]])=0,1,1+VALUE(SpaceTypesInfo_Table[[#Totals],[HVAC Effects]])),\"\"),0),ROUND(IFERROR((ProjectInfoTable[[#This Row],[Control kWh (Existing, Stipulated)]]-ProjectInfoTable[[#This Row],[Control kWh (Proposed)]])*IF(VALUE(SpaceTypesInfo_Table[[#Totals],[HVAC Effects]])=0,1,1+VALUE(SpaceTypesInfo_Table[[#Totals],[HVAC Effects]])),INDEX(ControlsLookup[],MATCH(RIGHT(ProjectInfoTable[[#This Row],[Proposed Equipment]],LEN(ProjectInfoTable[[#This Row],[Proposed Equipment]])-FIND(\"-\",ProjectInfoTable[[#This Row],[Proposed Equipment]],LEN(ProjectInfoTable[[#This Row],[Proposed Equipment]])-15)-1),ControlsLookup[Controls],0),MATCH(\"CSF_\"&ProjectState,ControlsLookup[#Headers],0))*IF(NOT(ISNUMBER(VALUE(ProjectInfoTable[[#This Row],[kWh Per Unit]]))),ProjectInfoTable[[#This Row],[Fixture kWh/yr Savings (Stipulated)]],ProjectInfoTable[[#This Row],[kWh Per Unit]]*ProjectInfoTable[[#This Row],[Quantity]]*ProjectInfoTable[[#This Row],[No. of TRL Units]])),0)),IF(OR(ProjectType=\"New Construction\",ProjectType=\"Major Renovation\"),IF(ProjectInfoTable[[#This Row],[Control kWh (Proposed)]]=\"\",\"\",0),\"\"))","v":""},{"$f":"IF(OR(ProjectInfoTable[[#This Row],[Proposed Equipment]]=\"\",ProjectInfoTable[[#This Row],[Quantity (Proposed)]]=\"\"),\"\",IF(ProjectInfoTable[[#This Row],[Fixture Measure]]=\"\",0,IF(AND(ProjectInfoTable[[#This Row],[Incentives Per Unit]]=0,INDEX(StipulatedSavingsYesNo_Table[Stipulated Savings?],MATCH(ProjectState,StipulatedSavingsYesNo_Table[State],0))=\"No\"),0,ProjectInfoTable[[#This Row],[Total   kWh/yr Savings (Stipulated)]]-ProjectInfoTable[[#This Row],[Control Measure kWh/yr Savings (Stipulated)]])))","v":""},{"$f":"IF(OR(ProjectInfoTable[[#This Row],[Proposed Equipment]]=\"\",ProjectInfoTable[[#This Row],[Quantity (Proposed)]]=\"\"),\"\",IF(ProjectInfoTable[[#This Row],[Control Measure]]=\"\",0,IF(OR(ProjectType=\"New Construction\",ProjectType=\"Major Renovation\"),IFERROR(ROUND(ProjectInfoTable[[#This Row],[Control kWh Per Unit]]*ProjectInfoTable[[#This Row],[Control Quantity]]*ProjectInfoTable[[#This Row],[Control No. of TRL Units]],0),ProjectInfoTable[[#This Row],[Control kWh/yr Savings (Stipulated)]]),ProjectInfoTable[[#This Row],[Control kWh/yr Savings (Stipulated)]])))","v":""},{"$f":"IF(AND(ProjectInfoTable[[#This Row],[Incentives Per Unit]]=0,INDEX(StipulatedSavingsYesNo_Table[Stipulated Savings?],MATCH(ProjectState,StipulatedSavingsYesNo_Table[State],0))=\"No\"),ProjectInfoTable[[#This Row],[Fixture kWh/yr Savings (Stipulated)]]+IF(ProjectInfoTable[[#This Row],[Control Measure kWh/yr Savings (Stipulated)]]=0,0,ProjectInfoTable[[#This Row],[Control kWh/yr Savings (Stipulated)]]),IF(OR(ISNUMBER(VALUE(ProjectInfoTable[[#This Row],[kWh Per Unit]])),ISNUMBER(VALUE(ProjectInfoTable[[#This Row],[Control kWh Per Unit]]))),ROUND(IFERROR(ProjectInfoTable[[#This Row],[kWh Per Unit]]*ProjectInfoTable[[#This Row],[Quantity]]*ProjectInfoTable[[#This Row],[No. of TRL Units]],0)+IFERROR(ProjectInfoTable[[#This Row],[Control kWh Per Unit]]*ProjectInfoTable[[#This Row],[Control Quantity]]*ProjectInfoTable[[#This Row],[Control No. of TRL Units]],ProjectInfoTable[[#This Row],[Control kWh/yr Savings (Stipulated)]]),0),IF(AND(ProjectInfoTable[[#This Row],[Fixture kWh/yr Savings (Stipulated)]]=\"\",ProjectInfoTable[[#This Row],[Control kWh/yr Savings (Stipulated)]]=\"\"),\"\",ROUND(IF(ProjectInfoTable[[#This Row],[Fixture kWh/yr Savings (Stipulated)]]=\"\",0,ProjectInfoTable[[#This Row],[Fixture kWh/yr Savings (Stipulated)]])+IF(ProjectInfoTable[[#This Row],[Control kWh/yr Savings (Stipulated)]]=\"\",0,ProjectInfoTable[[#This Row],[Control kWh/yr Savings (Stipulated)]])-IF(ProjectInfoTable[[#This Row],[Midstream Measure Name]]<>\"\",IFERROR(ProjectInfoTable[[#This Row],[kWh Per Unit (Midstream)]]*ProjectInfoTable[[#This Row],[Quantity]]*ProjectInfoTable[[#This Row],[No. of TRL Units]],0),0),0))))","v":""},{"$f":"IF(OR(ISNUMBER(FIND(\"Midstream\",ProjectInfoTable[[#This Row],[Fixture Measure]])),ISNUMBER(FIND(\"SBDI\",ProjectInfoTable[[#This Row],[Fixture Measure]])),ISNUMBER(FIND(\"Small Bu\",ProjectInfoTable[[#This Row],[Fixture Measure]]))),\n\nIF(ProjectInfoTable[[#This Row],[Measure Selection]]=\"\",0,\n\nIF(ISNUMBER(FIND(\"/U]\",ProjectInfoTable[[#This Row],[Proposed Equipment]])),IFERROR(MID(ProjectInfoTable[[#This Row],[Proposed Equipment]],FIND(\"$\",ProjectInfoTable[[#This Row],[Proposed Equipment]],1)+1,FIND(\"/U]\",ProjectInfoTable[[#This Row],[Proposed Equipment]],1)-FIND(\"$\",ProjectInfoTable[[#This Row],[Proposed Equipment]],1)-1)*ProjectInfoTable[[#This Row],[Lamps (Proposed)]]*ProjectInfoTable[[#This Row],[Quantity (Proposed)]],0),\nIF(ISNUMBER(FIND(\"/U \",ProjectInfoTable[[#This Row],[Proposed Equipment]])),IFERROR(MID(ProjectInfoTable[[#This Row],[Proposed Equipment]],FIND(\"$\",ProjectInfoTable[[#This Row],[Proposed Equipment]],1)+1,FIND(\"/U \",ProjectInfoTable[[#This Row],[Proposed Equipment]],1)-FIND(\"$\",ProjectInfoTable[[#This Row],[Proposed Equipment]],1)-1)*ProjectInfoTable[[#This Row],[Lamps (Proposed)]]*ProjectInfoTable[[#This Row],[Quantity (Proposed)]],0),\nIFERROR(ProjectInfoTable[[#This Row],[Fixture Measure kWh/yr Savings (Stipulated)]]/SUM(ProjectInfoTable[Total   kWh/yr Savings (Stipulated)])*ProjectCost_Total,\"\")))),\"\")","v":""},{"$f":"IFERROR(IF(ProjectInfoTable[[#This Row],[Fixture Measure kWh/yr Savings (Stipulated)]]=0,0,IF(ProjectType=\"Retrofit\",IF(OR(ISNUMBER(FIND(\"Midstream\",ProjectInfoTable[[#This Row],[Fixture Measure]])),ISNUMBER(FIND(\"SBDI\",ProjectInfoTable[[#This Row],[Fixture Measure]])),ISNUMBER(FIND(\"Small Bu\",ProjectInfoTable[[#This Row],[Fixture Measure]]))),ProjectInfoTable[[#This Row],[Measure Cost (Direct)]],IFERROR(ProjectInfoTable[[#This Row],[Fixture Measure kWh/yr Savings (Stipulated)]]/kWhSavings_Typical_Stipulated*(ProjectCost_Total-SUM(ProjectInfoTable[Measure Cost (Direct)])),\"\")),IF(ProjectInfoTable[[#This Row],[Proposed Equipment]]=\"\",\"\",IFERROR(SpaceTypesInfo_Table[[#Totals],[NCMR Int Cost]]*ProjectInfoTable[[#This Row],[Fixture Measure kWh/yr Savings (Stipulated)]]/SUMIFS(ProjectInfoTable[Total   kWh/yr Savings (Stipulated)],ProjectInfoTable[Proposed Equipment],\"*Interior*\"),0)))),\"\")","v":""},{"$f":"IFERROR(\n IF(\n  ProjectInfoTable[[#This Row],[Control Measure kWh/yr Savings (Stipulated)]]=0,\n  0,\n  IF(\n   ProjectType=\"Retrofit\",\n    IFERROR(\n     ProjectInfoTable[[#This Row],[Control Measure kWh/yr Savings (Stipulated)]]\n     /\n     SUMIFS(ProjectInfoTable[Control Measure kWh/yr Savings (Stipulated)],ProjectInfoTable[Control Measure],\"<>\"\"\")\n     *\n     (ProjectCost_Total-SUM(ProjectInfoTable[Fixture Cost (Allocated)])),\n     \"\"\n    ),\nROUND(\n    IF(\n     ProjectInfoTable[[#This Row],[Proposed Equipment]]=\"\",\n     \"\",\n     IFERROR(\n      SpaceTypesInfo_Table[[#Totals],[NCMR Int Cost]]\n      *\n      ProjectInfoTable[[#This Row],[Control Measure kWh/yr Savings (Stipulated)]]\n      /\n      SUMIFS(ProjectInfoTable[Total   kWh/yr Savings (Stipulated)],ProjectInfoTable[Proposed Equipment],\"*Interior*\"),\n      0\n     )\n    ),\n    2\n   )\n  )\n ),\n \"\"\n)","v":""},{"$f":"IF(AND(ProjectInfoTable[[#This Row],[Fixture Cost (Allocated)]]=\"\",ProjectInfoTable[[#This Row],[Control Cost (Allocated)]]=\"\"),\"\",SUM(ProjectInfoTable[[#This Row],[Fixture Cost (Allocated)]:[Control Cost (Allocated)]]))","v":""},{"$f":"IFERROR(IF(OR(ProjectInfoTable[[#This Row],[Proposed Equipment]]=\"\",ProjectInfoTable[[#This Row],[Quantity (Proposed)]]=\"\"),\"\",IF(OR(ProjectInfoTable[[#This Row],[Measure Selection]]=\"\",ProjectInfoTable[[#This Row],[Control kWh (Proposed)]]=\"Controls Only\"),0,IF(NOT(ISNUMBER(FIND(\"Retrofit\",ProjectType,1))),ProjectInfoTable[[#This Row],[Fixture Energy Cost Savings (Stipulated)]],IF(AND(ProjectInfoTable[[#This Row],[Fixture Measure]]=\"\",ProjectInfoTable[[#This Row],[Control Measure]]<>\"\"),0,ROUND((ProjectInfoTable[[#This Row],[Total Energy Costs (Existing, Actual)]]-ProjectInfoTable[[#This Row],[Total Energy Costs (Proposed)]]),2))))),\"\")","v":""},{"$f":"IFERROR(IF(OR(ProjectInfoTable[[#This Row],[Proposed Equipment]]=\"\",ProjectInfoTable[[#This Row],[Quantity (Proposed)]]=\"\"),\"\",\n\nIF(ProjectInfoTable[[#This Row],[Control kWh (Proposed)]]=\"Controls Only\",ProjectInfoTable[[#This Row],[Control Measure kWh/yr Savings (Actual)]]*INDEX(INDIRECT(\"RateSchedules_\"&ProjectState&\"_Table[kWh Rate]\"),\nMATCH(RateSchedule,INDIRECT(\"RateSchedules_\"&ProjectState&\"_Table[Rate Schedule]\"),0)),\n\nIF(NOT(ISNUMBER(FIND(\"Retrofit\",ProjectType,1))),ProjectInfoTable[[#This Row],[Control Energy Cost Savings (Stipulated)]],IF(AND(ProjectInfoTable[[#This Row],[Fixture Measure]]=\"\",ProjectInfoTable[[#This Row],[Control Measure]]<>\"\"),ROUND((ProjectInfoTable[[#This Row],[Total Energy Costs (Existing, Actual)]]-ProjectInfoTable[[#This Row],[Total Energy Costs (Proposed)]]),2),ROUND((ProjectInfoTable[[#This Row],[Total Energy Costs (Existing, Actual)]]-ProjectInfoTable[[#This Row],[Total Energy Costs (Proposed)]]),2)*(ProjectInfoTable[[#This Row],[Control Measure kWh/yr Savings (Actual)]]/ProjectInfoTable[[#This Row],[Total   kWh/yr Savings (Actual)]]))))),\"\")","v":""},{"$f":"IF(OR(ProjectInfoTable[[#This Row],[Proposed Equipment]]=\"\",ProjectInfoTable[[#This Row],[Quantity (Proposed)]]=\"\"),\"\",ROUND(ProjectInfoTable[[#This Row],[Fixture Energy Cost Savings (Actual)]]+ProjectInfoTable[[#This Row],[Control Energy Cost Savings (Actual)]],2))","v":""},{"$f":"IF(OR(ProjectInfoTable[[#This Row],[Proposed Equipment]]=\"\",ProjectInfoTable[[#This Row],[Quantity (Proposed)]]=\"\"),\"\",IF(OR(ISNUMBER(VALUE(ProjectInfoTable[[#This Row],[kWh Per Unit]])),ISNUMBER(VALUE(ProjectInfoTable[[#This Row],[kW Per Unit]]))),IFERROR(ProjectInfoTable[[#This Row],[Fixture Measure kWh/yr Savings (Stipulated)]]*INDEX(INDIRECT(\"RateSchedules_\"&ProjectState&\"_Table[kWh Rate]\"),MATCH(RateSchedule,INDIRECT(\"RateSchedules_\"&ProjectState&\"_Table[Rate Schedule]\"),0)),0)+IFERROR(ProjectInfoTable[[#This Row],[kW Demand Reduction (Stipulated)]]/1000*12*INDEX(INDIRECT(\"RateSchedules_\"&ProjectState&\"_Table[kW Rate]\"),MATCH(RateSchedule,INDIRECT(\"RateSchedules_\"&ProjectState&\"_Table[Rate Schedule]\"),0)),0),IFERROR(ROUND((ProjectInfoTable[[#This Row],[Total Energy Costs (Existing, Stipulated)]]-ProjectInfoTable[[#This Row],[Total Energy Costs (Proposed)]])*ProjectInfoTable[[#This Row],[Fixture Measure kWh/yr Savings (Stipulated)]]/ProjectInfoTable[[#This Row],[Total   kWh/yr Savings (Stipulated)]],2),0)))","v":""},{"$f":"IF(OR(ProjectInfoTable[[#This Row],[Proposed Equipment]]=\"\",ProjectInfoTable[[#This Row],[Quantity (Proposed)]]=\"\"),\"\",\nIF(ProjectInfoTable[[#This Row],[Control kWh (Proposed)]]=\"Controls Only\",ProjectInfoTable[[#This Row],[Control Measure kWh/yr Savings (Stipulated)]]*INDEX(INDIRECT(\"RateSchedules_\"&ProjectState&\"_Table[kWh Rate]\"),\nMATCH(RateSchedule,INDIRECT(\"RateSchedules_\"&ProjectState&\"_Table[Rate Schedule]\"),0)),IF(OR(ISNUMBER(VALUE(ProjectInfoTable[[#This Row],[Control kWh Per Unit]])),\nISNUMBER(VALUE(ProjectInfoTable[[#This Row],[Control kW Per Unit]]))),IFERROR(ProjectInfoTable[[#This Row],[Control Measure kWh/yr Savings (Stipulated)]]*INDEX(INDIRECT(\"RateSchedules_\"&ProjectState&\"_Table[kWh Rate]\"),\nMATCH(RateSchedule,INDIRECT(\"RateSchedules_\"&ProjectState&\"_Table[Rate Schedule]\"),0)),0)+IFERROR(ProjectInfoTable[[#This Row],[kW Demand Reduction (Stipulated)]]/1000*12*\nINDEX(INDIRECT(\"RateSchedules_\"&ProjectState&\"_Table[kW Rate]\"),MATCH(RateSchedule,INDIRECT(\"RateSchedules_\"&ProjectState&\"_Table[Rate Schedule]\"),0)),0),\nIFERROR(ROUND((ProjectInfoTable[[#This Row],[Total Energy Costs (Existing, Stipulated)]]-ProjectInfoTable[[#This Row],[Total Energy Costs (Proposed)]])*ProjectInfoTable[[#This Row],[Control Measure kWh/yr Savings (Stipulated)]]/\nProjectInfoTable[[#This Row],[Total   kWh/yr Savings (Stipulated)]],2),0))))","v":""},{"$f":"IF(OR(ProjectInfoTable[[#This Row],[Proposed Equipment]]=\"\",ProjectInfoTable[[#This Row],[Quantity (Proposed)]]=\"\"),\"\",ROUND(ProjectInfoTable[[#This Row],[Fixture Energy Cost Savings (Stipulated)]]+ProjectInfoTable[[#This Row],[Control Energy Cost Savings (Stipulated)]],2))","v":""},{"$f":"IF(ProjectInfoTable[[#This Row],[OpSch]]=\"\",\"\",IF(OR(ProjectInfoTable[[#This Row],[Fixture Measure]]=\"\",ProjectInfoTable[[#This Row],[Eligible Fixture Measure]]<>TRUE),0,ProjectInfoTable[[#This Row],[Fixture Incentives (pre-capping)]])+IF(OR(ProjectInfoTable[[#This Row],[Control Measure]]=\"\",ProjectInfoTable[[#This Row],[Eligible Control Measure]]<>TRUE),0,ProjectInfoTable[[#This Row],[Control Incentives (pre-capping)]]))","v":""},{"$f":"IF(OR(ProjectInfoTable[[#This Row],[Fixture Measure]]<>\"\",ProjectInfoTable[[#This Row],[Control Measure]]<>\"\"),IF(ProjectInfoTable[[#This Row],[Fixture Incentives]]=\"\",0,ProjectInfoTable[[#This Row],[Fixture Incentives]])+IF(ProjectInfoTable[[#This Row],[Control Incentives]]=\"\",0,ProjectInfoTable[[#This Row],[Control Incentives]]),\"\")","v":""},null,{"$f":"IF(OR(ProjectInfoTable[[#This Row],[Fixture Measure]]=\"\",ProjectInfoTable[[#This Row],[OpSch]]=\"\",ProjectInfoTable[[#This Row],[Eligible Fixture Measure]]<>TRUE),\"\",\nIF(OR(ISNUMBER(FIND(\"SBDI\",ProjectInfoTable[[#This Row],[Fixture Measure]])),ISNUMBER(FIND(\"Small Bu\",ProjectInfoTable[[#This Row],[Fixture Measure]]))),IFERROR(0.75*ProjectInfoTable[[#This Row],[Fixture Cost (Allocated)]],\"cost error\"),\nIF(AND(OR(ProjectType=\"New Construction\",ProjectType=\"Major Renovation\"),LPDCodeToProposed<0.1,ISNUMBER(FIND(\"Interior\",ProjectInfoTable[[#This Row],[Proposed Equipment]],1))),0,IFERROR(ProjectInfoTable[[#This Row],[Incentives Per Unit]]*ProjectInfoTable[[#This Row],[Quantity]]*ProjectInfoTable[[#This Row],[No. of TRL Units]],\"TRL Error\"))))","v":""},{"$f":"IF(\n    OR(\n        ProjectInfoTable[[#This Row],[Fixture Measure]] = \"\",\n        ProjectInfoTable[[#This Row],[OpSch]] = \"\",\n        ProjectInfoTable[[#This Row],[Eligible Fixture Measure]] <> TRUE\n    ),\n    \"\",\n    IF(\n        OR(\n            ISNUMBER(FIND(\"SBDI\", ProjectInfoTable[[#This Row],[Fixture Measure]])),\n            ISNUMBER(FIND(\"Small Bu\", ProjectInfoTable[[#This Row],[Fixture Measure]]))\n        ),\n        IFERROR(\n            (Incentive_NonTypical / Incentive_NonTypical_PreCapped) * ProjectInfoTable[[#This Row],[Fixture Incentives (pre-capping)]],\n            \"\"\n        ),\n        IF(\n            AND(\n                ProjectType = \"Retrofit\",\n                ProjectState = \"UT\",\n                ISNUMBER(FIND(\"Post-Purchase\", ProjectInfoTable[[#This Row],[Fixture Measure]], 1))\n            ),\n            IFERROR(\n                MAX(\n                    MIN(\n                        ProjectInfoTable[[#This Row],[Fixture Incentives (pre-capping)]],\n                        ProjectInfoTable[[#This Row],[Fixture Cost (Allocated)]] * 0.7\n                    ),\n                    0\n                ),\n                0\n            ),\n            IF(\n                ProjectType = \"Retrofit\",\n                IF(\n                    ISNUMBER(FIND(\"Post-Purchase\", ProjectInfoTable[[#This Row],[Fixture Measure]], 1)),\n                    ProjectInfoTable[[#This Row],[Fixture Incentives (pre-capping)]],\n                    IFERROR(\n                        $BI$3 / $BH$3 * ProjectInfoTable[[#This Row],[Fixture Incentives (pre-capping)]],\n                        \"\"\n                    )\n                ),\n                IF(\n                    ISNUMBER(FIND(\"Interior\", ProjectInfoTable[[#This Row],[Proposed Equipment]], 1)),\n                    IF(\n                        LPDCodeToProposed > 0.1,\n                        ProjectInfoTable[[#This Row],[Fixture Incentives (pre-capping)]],\n                        0\n                    ),\n                    ProjectInfoTable[[#This Row],[Fixture Incentives (pre-capping)]]\n                )\n            )\n        )\n    )\n)","v":""},{"$f":"IF(OR(ProjectInfoTable[[#This Row],[Incentives Per Unit]]=\"\",ProjectInfoTable[[#This Row],[TRL Unit]]=\"\"),\"\",IF(ProjectInfoTable[[#This Row],[Eligible Fixture Measure]]<>TRUE,\"Invalid Effective Date\",\nIF(OR(ISNUMBER(FIND(\"SBDI\",ProjectInfoTable[[#This Row],[Fixture Measure]])),ISNUMBER(FIND(\"Small Bu\",ProjectInfoTable[[#This Row],[Fixture Measure]]))),\"$0.75 / dollar cost\",\nTEXT(ProjectInfoTable[[#This Row],[Incentives Per Unit]],\"$#,##0.00\")&\" / \"&IF(ProjectInfoTable[[#This Row],[Fixture Measure]]=\"\",\"\",IF(ProjectInfoTable[[#This Row],[TRL Unit]]=\"Measure\",IF(ISNUMBER(FIND(\"Relamp\",ProjectInfoTable[[#This Row],[Proposed Equipment]],1)),\"Lamp\",\"Fixture\"),ProjectInfoTable[[#This Row],[TRL Unit]])))))","v":""},{"$f":"IF(OR(ProjectInfoTable[[#This Row],[Proposed Equipment]]=\"\",ProjectInfoTable[[#This Row],[Quantity (Proposed)]]=\"\"),\"\",IFERROR(SUBSTITUTE(IF(ProjectType=\"Retrofit\",IF(OR(ISNUMBER(FIND(\"Controls On\",ProjectInfoTable[[#This Row],[Proposed Equipment]],1))),\"\",IF(OR(ProjectInfoTable[[#This Row],[Existing Equipment]]=\"\",ProjectInfoTable[[#This Row],[Proposed Equipment]]=\"\"),\"\",IF(ProjectState=\"UT\",IFERROR(IF(AlternativeEnergyOverride=\"Yes\",IFERROR(INDEX(INDIRECT(\"EquipmentTable_\"&\"Retrofit_\"&ProjectState&\"[#All]\"),MATCH(LEFT(ProjectInfoTable[[#This Row],[Proposed Equipment]],FIND(\"[\",ProjectInfoTable[[#This Row],[Proposed Equipment]],1)-2)&\" (Alt)\",INDIRECT(\"EquipmentTable_\"&\"Retrofit_\"&ProjectState&\"[equipmentProposed]\"),0)+1,MATCH(\"measureRetrofit_\"&LEFT(ProjectInfoTable[[#This Row],[Existing Equipment]],FIND(\":\",ProjectInfoTable[[#This Row],[Existing Equipment]],1)-1)&\"_\"&IF(IFERROR(INDEX(ControlsLookup[Rank],MATCH(RIGHT(ProjectInfoTable[[#This Row],[Proposed Equipment]],LEN(ProjectInfoTable[[#This Row],[Proposed Equipment]])-FIND(\"]\",ProjectInfoTable[[#This Row],[Proposed Equipment]],1)-3),ControlsLookup[Controls],0)),0)>IFERROR(INDEX(ControlsLookup[Rank],MATCH(RIGHT(ProjectInfoTable[[#This Row],[Existing Equipment]],LEN(ProjectInfoTable[[#This Row],[Existing Equipment]])-FIND(\"]\",ProjectInfoTable[[#This Row],[Existing Equipment]],1)-3),ControlsLookup[Controls],0)),0),INDEX(ControlsLookup[Controls Type],MATCH(LEFT(ProjectInfoTable[[#This Row],[Existing Equipment]],FIND(\":\",ProjectInfoTable[[#This Row],[Existing Equipment]],1)-1)&\"_\"&RIGHT(ProjectInfoTable[[#This Row],[Proposed Equipment]],LEN(ProjectInfoTable[[#This Row],[Proposed Equipment]])-FIND(\"]\",ProjectInfoTable[[#This Row],[Proposed Equipment]],1)-3),ControlsLookup[Controls Concatenate],0)),\"None\"),INDIRECT(\"EquipmentTable_\"&\"Retrofit_\"&ProjectState&\"[#Headers]\"),0)),INDEX(INDIRECT(\"EquipmentTable_\"&IF(ProjectType=\"Retrofit\",\"Retrofit_\",\"NCMR_\")&ProjectState&\"[#All]\"),MATCH(LEFT(ProjectInfoTable[[#This Row],[Proposed Equipment]],FIND(\"[\",ProjectInfoTable[[#This Row],[Proposed Equipment]],1)-2),INDIRECT(\"EquipmentTable_\"&\"Retrofit_\"&ProjectState&\"[equipmentProposed]\"),0)+1,MATCH(\"measureRetrofit_\"&LEFT(ProjectInfoTable[[#This Row],[Existing Equipment]],FIND(\":\",ProjectInfoTable[[#This Row],[Existing Equipment]],1)-1)&\"_\"&IF(IFERROR(INDEX(ControlsLookup[Rank],MATCH(RIGHT(ProjectInfoTable[[#This Row],[Proposed Equipment]],LEN(ProjectInfoTable[[#This Row],[Proposed Equipment]])-FIND(\"]\",ProjectInfoTable[[#This Row],[Proposed Equipment]],1)-3),ControlsLookup[Controls],0)),0)>IFERROR(INDEX(ControlsLookup[Rank],MATCH(RIGHT(ProjectInfoTable[[#This Row],[Existing Equipment]],LEN(ProjectInfoTable[[#This Row],[Existing Equipment]])-FIND(\"]\",ProjectInfoTable[[#This Row],[Existing Equipment]],1)-3),ControlsLookup[Controls],0)),0),INDEX(ControlsLookup[Controls Type],MATCH(LEFT(ProjectInfoTable[[#This Row],[Existing Equipment]],FIND(\":\",ProjectInfoTable[[#This Row],[Existing Equipment]],1)-1)&\"_\"&RIGHT(ProjectInfoTable[[#This Row],[Proposed Equipment]],LEN(ProjectInfoTable[[#This Row],[Proposed Equipment]])-FIND(\"]\",ProjectInfoTable[[#This Row],[Proposed Equipment]],1)-3),ControlsLookup[Controls Concatenate],0)),\"None\"),INDIRECT(\"EquipmentTable_\"&IF(ProjectType=\"Retrofit\",\"Retrofit_\",\"NCMR_\")&ProjectState&\"[#Headers]\"),0))),INDEX(INDIRECT(\"EquipmentTable_\"&IF(ProjectType=\"Retrofit\",\"Retrofit_\",\"NCMR_\")&ProjectState&\"[#All]\"),MATCH(LEFT(ProjectInfoTable[[#This Row],[Proposed Equipment]],FIND(\"[\",ProjectInfoTable[[#This Row],[Proposed Equipment]],1)-2),INDIRECT(\"EquipmentTable_\"&IF(ProjectType=\"Retrofit\",\"Retrofit_\",\"NCMR_\")&ProjectState&\"[equipmentProposed]\"),0)+1,MATCH(\"measureRetrofit_\"&IF(AND(SBDEligible=\"Yes\",ISNUMBER(FIND(\"SBE\",ProjectInfoTable[[#This Row],[Proposed Equipment]]))),\"SBE\",LEFT(ProjectInfoTable[[#This Row],[Existing Equipment]],FIND(\":\",ProjectInfoTable[[#This Row],[Existing Equipment]],1)-1)&\"_\"&IF(IFERROR(INDEX(ControlsLookup[Rank],MATCH(RIGHT(ProjectInfoTable[[#This Row],[Proposed Equipment]],LEN(ProjectInfoTable[[#This Row],[Proposed Equipment]])-FIND(\"]\",ProjectInfoTable[[#This Row],[Proposed Equipment]],1)-3),ControlsLookup[Controls],0)),0)>IFERROR(INDEX(ControlsLookup[Rank],MATCH(RIGHT(ProjectInfoTable[[#This Row],[Existing Equipment]],LEN(ProjectInfoTable[[#This Row],[Existing Equipment]])-FIND(\"]\",ProjectInfoTable[[#This Row],[Existing Equipment]],1)-3),ControlsLookup[Controls],0)),0),INDEX(ControlsLookup[Controls Type],MATCH(LEFT(ProjectInfoTable[[#This Row],[Existing Equipment]],FIND(\":\",ProjectInfoTable[[#This Row],[Existing Equipment]],1)-1)&\"_\"&RIGHT(ProjectInfoTable[[#This Row],[Proposed Equipment]],LEN(ProjectInfoTable[[#This Row],[Proposed Equipment]])-FIND(\"]\",ProjectInfoTable[[#This Row],[Proposed Equipment]],1)-3),ControlsLookup[Controls Concatenate],0)),\"None\")),INDIRECT(\"EquipmentTable_\"&\"Retrofit_\"&ProjectState&\"[#Headers]\"),0))),\"Non-eligible fixture - Retrofit - \"&ProjectState),IFERROR(INDEX(INDIRECT(\"EquipmentTable_\"&IF(SiteSpecificOverride=\"Yes\",\"PostPurchase_\",\"Retrofit_\")&ProjectState&\"[#All]\"),MATCH(LEFT(ProjectInfoTable[[#This Row],[Proposed Equipment]],FIND(\"[\",ProjectInfoTable[[#This Row],[Proposed Equipment]],1)-2),INDIRECT(\"EquipmentTable_\"&IF(SiteSpecificOverride=\"Yes\",\"PostPurchase_\",\"Retrofit_\")&ProjectState&\"[equipmentProposed]\"),0)+1,MATCH(\"measureRetrofit_\"&IF(AND(SBDEligible=\"Yes\",ISNUMBER(FIND(\"SBE\",ProjectInfoTable[[#This Row],[Proposed Equipment]]))),\"SBE\",LEFT(ProjectInfoTable[[#This Row],[Existing Equipment]],FIND(\":\",ProjectInfoTable[[#This Row],[Existing Equipment]],1)-1)&\"_\"&IF(IFERROR(INDEX(ControlsLookup[Rank],MATCH(RIGHT(ProjectInfoTable[[#This Row],[Proposed Equipment]],LEN(ProjectInfoTable[[#This Row],[Proposed Equipment]])-FIND(\"]\",ProjectInfoTable[[#This Row],[Proposed Equipment]],1)-3),ControlsLookup[Controls],0)),0)>IFERROR(INDEX(ControlsLookup[Rank],MATCH(RIGHT(ProjectInfoTable[[#This Row],[Existing Equipment]],LEN(ProjectInfoTable[[#This Row],[Existing Equipment]])-FIND(\"]\",ProjectInfoTable[[#This Row],[Existing Equipment]],1)-3),ControlsLookup[Controls],0)),0),INDEX(ControlsLookup[Controls Type],MATCH(LEFT(ProjectInfoTable[[#This Row],[Existing Equipment]],FIND(\":\",ProjectInfoTable[[#This Row],[Existing Equipment]],1)-1)&\"_\"&RIGHT(ProjectInfoTable[[#This Row],[Proposed Equipment]],LEN(ProjectInfoTable[[#This Row],[Proposed Equipment]])-FIND(\"]\",ProjectInfoTable[[#This Row],[Proposed Equipment]],1)-3),ControlsLookup[Controls Concatenate],0)),\"None\")),INDIRECT(\"EquipmentTable_\"&IF(SiteSpecificOverride=\"Yes\",\"PostPurchase_\",\"Retrofit_\")&ProjectState&\"[#Headers]\"),0)),\"Non-eligible fixture - Retrofit - \"&ProjectState)))),IFERROR(INDEX(INDIRECT(\"EquipmentTable_\"&\"NCMR_\"&ProjectState),MATCH(RIGHT(LEFT(ProjectInfoTable[[#This Row],[Proposed Equipment]],FIND(\" (\",ProjectInfoTable[[#This Row],[Proposed Equipment]],1)-1),LEN(LEFT(ProjectInfoTable[[#This Row],[Proposed Equipment]],FIND(\" (\",ProjectInfoTable[[#This Row],[Proposed Equipment]],1)-2))-FIND(\":\",ProjectInfoTable[[#This Row],[Proposed Equipment]],1)),INDIRECT(\"EquipmentTable_\"&\"NCMR_\"&ProjectState&\"[equipmentProposed]\"),0),MATCH(\"measureNCMR_\"&LEFT(ProjectInfoTable[[#This Row],[Proposed Equipment]],FIND(\":\",ProjectInfoTable[[#This Row],[Proposed Equipment]],1)-1)&\"_\"&IF(LEN(ProjectInfoTable[[#This Row],[Proposed Equipment]])>FIND(\"]\",ProjectInfoTable[[#This Row],[Proposed Equipment]]),INDEX(ControlsLookup[Controls Type],MATCH(LEFT(ProjectInfoTable[[#This Row],[Proposed Equipment]],FIND(\":\",ProjectInfoTable[[#This Row],[Proposed Equipment]],1)-1)&\"_\"&RIGHT(ProjectInfoTable[[#This Row],[Proposed Equipment]],LEN(ProjectInfoTable[[#This Row],[Proposed Equipment]])-FIND(\"]\",ProjectInfoTable[[#This Row],[Proposed Equipment]],1)-3),ControlsLookup[Controls Concatenate],0)),\"None\"),INDIRECT(\"EquipmentTable_\"&\"NCMR_\"&ProjectState&\"[#Headers]\"),0)),\"Non-eligible fixture - NCMR - \"&ProjectState)),\"[NAMESUB]\",ProjectInfoTable[[#This Row],[Measure Name Sub]]),\"Non-eligible fixture - Retrofit - \"&ProjectState))","v":""},{"$f":"IF(ISNUMBER(SEARCH(\"Case\",ProjectInfoTable[[#This Row],[Fixture Measure]])),CONCATENATE(ProjectInfoTable[[#This Row],[Fixture Measure]],ProjectInfoTable[[#This Row],[No. of TRL Units]],ProjectInfoTable[[#This Row],[Quantity]]),\"\")","v":""},{"$f":"IF(ProjectInfoTable[[#This Row],[Proposed Equipment]]=\"\",\"\",\nIF(AND(ProjectState = \"UT\",ISNUMBER(FIND(\" TLED \",ProjectInfoTable[[#This Row],[Proposed Equipment]]))),\nIF(VALUE(ProjectInfoTable[[#This Row],[Lamp W (Proposed)]])<20,\"< 20 W\",\nIF(AND(VALUE(ProjectInfoTable[[#This Row],[Lamp W (Proposed)]])<=39,VALUE(ProjectInfoTable[[#This Row],[Lamp W (Proposed)]])>=20),\">= 20 W and <= 39 W\",)),\n\nIF(AND(ProjectType=\"Retrofit\",OR(ISNUMBER(FIND(\"Retrofit Kit\",ProjectInfoTable[[#This Row],[Proposed Equipment]])),ISNUMBER(FIND(\"Fixture\",ProjectInfoTable[[#This Row],[Proposed Equipment]]))),OR(ISNUMBER(FIND(\"Exterior\",ProjectInfoTable[[#This Row],[Existing Equipment]])),ISNUMBER(FIND(\"Street\",ProjectInfoTable[[#This Row],[Existing Equipment]])))),\nIF(ProjectInfoTable[[#This Row],[Fixture W (Proposed)]]<50,\"< 50 W\",\nIF(AND(ProjectInfoTable[[#This Row],[Fixture W (Proposed)]]<90,ProjectInfoTable[[#This Row],[Fixture W (Proposed)]]>=50),\">= 50 W and < 90 W\",\nIF(AND(ProjectInfoTable[[#This Row],[Fixture W (Proposed)]]<135,ProjectInfoTable[[#This Row],[Fixture W (Proposed)]]>=90),\">= 90 W and < 135 W\",\nIF(AND(ProjectInfoTable[[#This Row],[Fixture W (Proposed)]]<220,ProjectInfoTable[[#This Row],[Fixture W (Proposed)]]>=135),\">= 135 W and < 220 W\",\nIF(ProjectInfoTable[[#This Row],[Fixture W (Proposed)]]>=220,\">= 220 W\"))))),\"\")))","v":""},{"$f":"IFERROR(INDEX(INDIRECT(\"MeasureTable_\" & ProjectState & \"[Measure Reference Number]\"),MATCH(ProjectInfoTable[[#This Row],[Fixture Measure]],INDIRECT(\"MeasureTable_\" &ProjectState&\"[Measure Name]\"),0)),\"\")","v":""},{"$f":"IFERROR(\n    _xlfn.LET(\n        _xlpm.filteredVersions,\n            _xlfn._xlws.FILTER(\n                INDIRECT(\"MeasureTable_\" & ProjectState & \"[Version Number]\"),\n                (INDIRECT(\"MeasureTable_\" & ProjectState & \"[Measure Reference Number]\") = ProjectInfoTable[[#This Row],[Fixture Measure Reference Number]]) *\n                (INDIRECT(\"MeasureTable_\" & ProjectState & \"[Eligible Measure]\") = TRUE)\n            ),\n        INDEX(_xlpm.filteredVersions, 1)\n    ),\n    \"\"\n)","v":""},{"$f":"IFERROR(\n  _xlfn.LET(\n    _xlpm.refRange, INDIRECT(\"MeasureTable_\" & ProjectState & \"[Measure Reference Number]\"),\n    _xlpm.eligibleRange, INDIRECT(\"MeasureTable_\" & ProjectState & \"[Eligible Measure]\"),\n    _xlpm.countTrue, SUMPRODUCT(--(_xlpm.refRange = ProjectInfoTable[[#This Row],[Fixture Measure Reference Number]]), --(_xlpm.eligibleRange = TRUE)),\n    _xlpm.countNonBlank, SUMPRODUCT(--(_xlpm.refRange = ProjectInfoTable[[#This Row],[Fixture Measure Reference Number]]), --(_xlpm.eligibleRange <> \"\")),\n    IF(_xlpm.countNonBlank = 0, \"\", IF(_xlpm.countTrue >= 1, TRUE, FALSE))\n  ),\n  \"\"\n)","v":""},{"$f":"IFERROR(VALUE(INDEX(INDIRECT(\"MeasureTable_\" & ProjectState & \"[CustomerIncentiveDollarperunit]\"),MATCH(ProjectInfoTable[[#This Row],[Fixture Measure]]&\" | TRUE\",INDIRECT(\"MeasureTable_\" &ProjectState&\"[MeasureEligibleConcatenate]\"),0))),\"\")","v":""},{"$f":"IFERROR(INDEX(INDIRECT(\"MeasureTable_\"&ProjectState&\"[SiteSpecificCalculation]\"),MATCH(ProjectInfoTable[[#This Row],[Fixture Measure]]&\" | TRUE\",INDIRECT(\"MeasureTable_\" &ProjectState&\"[MeasureEligibleConcatenate]\"),0)),\"\")","v":""},{"$f":"IFERROR(INDEX(INDIRECT(\"MeasureTable_\"&ProjectState&\"[GrossIncrementalAnnualElectricSavings]\"),MATCH(ProjectInfoTable[[#This Row],[Fixture Measure]]&\" | TRUE\",INDIRECT(\"MeasureTable_\" &ProjectState&\"[MeasureEligibleConcatenate]\"),0)),\"\")","v":""},{"$f":"IFERROR(INDEX(INDIRECT(\"MeasureTable_\"&ProjectState&\"[GrossAverageMonthlyDemandReduction]\"),MATCH(ProjectInfoTable[[#This Row],[Fixture Measure]]&\" | TRUE\",INDIRECT(\"MeasureTable_\" &ProjectState&\"[MeasureEligibleConcatenate]\"),0)),\"\")","v":""},{"$f":"IF(ProjectInfoTable[[#This Row],[Fixture Measure]]=\"\",\"\",IF(NOT(ISNUMBER(FIND(\"Site-Specific - Downstream\",ProjectInfoTable[[#This Row],[Fixture Measure]]))),\"\",\nIF(ISNUMBER(MATCH(SUBSTITUTE(ProjectInfoTable[[#This Row],[Fixture Measure]],\"Site-Specific - Downstream - v2\",\"Mid Market\"),INDIRECT(\"MeasureTable_\"&ProjectState&\"[Measure Name]\"),0)),\nSUBSTITUTE(ProjectInfoTable[[#This Row],[Fixture Measure]],\"Site-Specific - Downstream - v2\",\"Mid Market\"),\nSUBSTITUTE(ProjectInfoTable[[#This Row],[Fixture Measure]],\"Site-Specific - Downstream\",\"Mid Market\"))\n))","v":""},{"$f":"IF(ProjectInfoTable[[#This Row],[Midstream Measure Name]]=\"\",\"\",IFERROR(INDEX(INDIRECT(\"MeasureTable_\"&ProjectState&\"[GrossIncrementalAnnualElectricSavings ]\"),MATCH(ProjectInfoTable[[#This Row],[Midstream Measure Name]]&\" | TRUE\",INDIRECT(\"MeasureTable_\" &ProjectState&\"[MeasureEligibleConcatenate]\"),0)),\"\"))","v":""},{"$f":"IF(ProjectInfoTable[[#This Row],[Midstream Measure Name]]=\"\",\"\",IFERROR(INDEX(INDIRECT(\"MeasureTable_\"&ProjectState&\"[GrossAverage onthly emand eduction]\"),MATCH(ProjectInfoTable[[#This Row],[Midstream Measure Name]]&\" | TRUE\",INDIRECT(\"MeasureTable_\" &ProjectState&\"[MeasureEligibleConcatenate]\"),0)),\"\"))","v":""},{"$f":"IFERROR(INDEX(INDIRECT(\"MeasureTable_\"&ProjectState&\"[IncrementalMeasureCost]\"),MATCH(ProjectInfoTable[[#This Row],[Fixture Measure]]&\" | TRUE\",INDIRECT(\"MeasureTable_\" &ProjectState&\"[MeasureEligibleConcatenate]\"),0)),\"\")","v":""},{"$f":"IF(ProjectInfoTable[[#This Row],[Fixture Measure]]=\"\",\"\",IF(AND(ProjectState=\"UT\",ProjectInfoTable[[#This Row],[Measure Selection]]=\"\"),0,\nIF(OR(ISNUMBER(FIND(\"SBDI\",ProjectInfoTable[[#This Row],[Fixture Measure]])),ISNUMBER(FIND(\"Small Bu\",ProjectInfoTable[[#This Row],[Fixture Measure]]))),ProjectInfoTable[[#This Row],[Quantity (Proposed)]]*ProjectInfoTable[[#This Row],[Lamps (Proposed)]],\nIF(OR(ProjectInfoTable[[#This Row],[TRL Unit]]=\"Measure\",ProjectInfoTable[[#This Row],[TRL Unit]]=\"Linear ft.\"),IF(OR(ISNUMBER(FIND(\"Lamp\",ProjectInfoTable[[#This Row],[Fixture Measure]],1)),ISNUMBER(FIND(\"Relamp\",ProjectInfoTable[[#This Row],[Fixture Measure]],1)),ISNUMBER(FIND(\"Relamp\",ProjectInfoTable[[#This Row],[Proposed Equipment]],1))),ProjectInfoTable[[#This Row],[Quantity (Proposed)]]*ProjectInfoTable[[#This Row],[Lamps (Proposed)]],ProjectInfoTable[[#This Row],[Quantity (Proposed)]]),1))))","v":""},{"$f":"IF(ProjectInfoTable[[#This Row],[Fixture Measure]]=\"\",\"\",IF(AND(ProjectState=\"UT\",ProjectInfoTable[[#This Row],[Measure Selection]]=\"\"),0,\nIF(OR(ISNUMBER(FIND(\"SBDI\",ProjectInfoTable[[#This Row],[Fixture Measure]])),ISNUMBER(FIND(\"Small Bu\",ProjectInfoTable[[#This Row],[Fixture Measure]]))),1,\nIF(ISNUMBER(FIND(\"Controls Only\",ProjectInfoTable[[#This Row],[Proposed Equipment]],1)),IF(OR(ProjectType <> \"Retrofit\",ProjectInfoTable[[#This Row],[Space W (Proposed)]]>0),ProjectInfoTable[[#This Row],[Space W (Proposed)]],ProjectInfoTable[[#This Row],[Space W (Existing, Stipulated)]]),\nIF(TRIM(UPPER(ProjectInfoTable[[#This Row],[TRL Unit]]))=\"LINEAR FT.\",IF(OR(ISNUMBER(FIND(\"Marquee\",ProjectInfoTable[[#This Row],[Proposed Equipment]],1)),ISNUMBER(FIND(\"Cabinet\",ProjectInfoTable[[#This Row],[Proposed Equipment]],1))),VALUE(RIGHT(LEFT(ProjectInfoTable[[#This Row],[Existing Equipment]],FIND(\"LF \",ProjectInfoTable[[#This Row],[Existing Equipment]],1)-1),LEN(LEFT(ProjectInfoTable[[#This Row],[Existing Equipment]],FIND(\"LF \",ProjectInfoTable[[#This Row],[Existing Equipment]],1)-1))-FIND(\"[\",ProjectInfoTable[[#This Row],[Existing Equipment]],1))),VALUE(RIGHT(LEFT(ProjectInfoTable[[#This Row],[Proposed Equipment]],FIND(\"LF \",ProjectInfoTable[[#This Row],[Proposed Equipment]],1)-1),LEN(LEFT(ProjectInfoTable[[#This Row],[Proposed Equipment]],FIND(\"LF \",ProjectInfoTable[[#This Row],[Proposed Equipment]],1)-1))-FIND(\"[\",ProjectInfoTable[[#This Row],[Proposed Equipment]],1)))),\nIF(TRIM(UPPER(ProjectInfoTable[[#This Row],[TRL Unit]]))=\"KWH\",IF(ProjectInfoTable[[#This Row],[Fixture Measure kWh/yr Savings (Stipulated)]]=0,0,ROUND(ProjectInfoTable[[#This Row],[Fixture Measure kWh/yr Savings (Stipulated)]],2)),\nIF(TRIM(UPPER(ProjectInfoTable[[#This Row],[TRL Unit]]))=\"WATT REDUCED\",IF(ProjectInfoTable[[#This Row],[Fixture Measure kWh/yr Savings (Stipulated)]]=0,0,ROUND(ProjectInfoTable[[#This Row],[Space W (Existing, Stipulated)]]-ProjectInfoTable[[#This Row],[Space W (Proposed)]],2)),\nIF(TRIM(UPPER(ProjectInfoTable[[#This Row],[TRL Unit]]))=\"FIXTURE WATTAGE\",ProjectInfoTable[[#This Row],[Space W (Proposed)]],1))))))))","v":""},{"$f":"IFERROR(IF(OR(ISNUMBER(FIND(\"SBDI\",ProjectInfoTable[[#This Row],[Fixture Measure]])),ISNUMBER(FIND(\"Small Bu\",ProjectInfoTable[[#This Row],[Fixture Measure]]))),0,INDEX(INDIRECT(\"MeasureTable_\"&ProjectState&\"[Unit]\"),MATCH(ProjectInfoTable[[#This Row],[Fixture Measure]]&\" | TRUE\",INDIRECT(\"MeasureTable_\" &ProjectState&\"[MeasureEligibleConcatenate]\"),0))),\"\")","v":""},{"$f":"IF(ProjectInfoTable[[#This Row],[Fixture Measure]]=\"\",\"\",IF(OR(ISNUMBER(FIND(\"Lamp(s)\",ProjectInfoTable[[#This Row],[Fixture Measure]],1)),ISNUMBER(FIND(\"Relamp\",ProjectInfoTable[[#This Row],[Proposed Equipment]],1))),\"Lamp(s)\",\"Fixture(s)\"))","v":""},{"$f":"IFERROR(INDEX(INDIRECT(\"MeasureTable_\"&ProjectState&\"[ProjectCapPercent]\"),MATCH(ProjectInfoTable[[#This Row],[Fixture Measure]]&\" | TRUE\",INDIRECT(\"MeasureTable_\" &ProjectState&\"[MeasureEligibleConcatenate]\"),0)),\"\")","v":""},{"$f":"IF(OR(ProjectInfoTable[[#This Row],[Control Measure]]=\"\",ProjectInfoTable[[#This Row],[OpSch]]=\"\",ProjectInfoTable[[#This Row],[Eligible Control Measure]]<>TRUE),\"\",IF(AND(OR(ProjectType=\"New Construction\",ProjectType=\"Major Renovation\"),LPDCodeToProposed<0.1,ISNUMBER(FIND(\"Interior\",ProjectInfoTable[[#This Row],[Proposed Equipment]],1))),0,IFERROR(ProjectInfoTable[[#This Row],[Control Incentives Per Unit]]*ProjectInfoTable[[#This Row],[Control Quantity]]*ProjectInfoTable[[#This Row],[Control No. of TRL Units]],\"TRL Error\")))","v":""},{"$f":"IF(OR(ProjectInfoTable[[#This Row],[Control Measure]]=\"\",ProjectInfoTable[[#This Row],[OpSch]]=\"\",ProjectInfoTable[[#This Row],[Eligible Control Measure]]<>TRUE),\"\",IF(AND(ProjectType=\"Retrofit\",ProjectState=\"UT\",ISNUMBER(FIND(\"Post Purchase\",ProjectInfoTable[[#This Row],[Control Measure]],1))),\n\nIFERROR(MAX(MIN(ProjectInfoTable[[#This Row],[Control Incentives (pre-capping)]],ProjectInfoTable[[#This Row],[Control Cost (Allocated)]]*0.7),0),0),\n\nIF(ProjectType=\"Retrofit\",IF(ISNUMBER(FIND(\"Post Purchase\",ProjectInfoTable[[#This Row],[Control Measure]],1)),ProjectInfoTable[[#This Row],[Control Incentives (pre-capping)]],IFERROR($BI$3/$BH$3*ProjectInfoTable[[#This Row],[Control Incentives (pre-capping)]],\"\")),\n\nIF(ISNUMBER(FIND(\"Interior\",ProjectInfoTable[[#This Row],[Proposed Equipment]],1)),IF(LPDCodeToProposed>0.1,ProjectInfoTable[[#This Row],[Control Incentives (pre-capping)]],0),ProjectInfoTable[[#This Row],[Control Incentives (pre-capping)]]))))","v":""},{"$f":"IF(OR(ProjectInfoTable[[#This Row],[Control Incentives Per Unit]]=\"\",ProjectInfoTable[[#This Row],[Control TRL Unit]]=\"\"),\"\",IF(ProjectInfoTable[[#This Row],[Eligible Control Measure]]<>TRUE,\"Invalid Effective Date\",TEXT(ProjectInfoTable[[#This Row],[Control Incentives Per Unit]],\"$#,##0.00\")&\" / \"&ProjectInfoTable[[#This Row],[Control TRL Unit]]))","v":""},{"$f":"IF(ISNUMBER(FIND(\"SBE\",ProjectInfoTable[[#This Row],[Proposed Equipment]])),\"\",\n\nIF(LEN(ProjectInfoTable[[#This Row],[Proposed Equipment]])>\n\nIFERROR(FIND(\"]\",ProjectInfoTable[[#This Row],[Proposed Equipment]],1),0),\nSUBSTITUTE(\nIF(OR(ProjectInfoTable[[#This Row],[Control Method]]=\"separate\",ISNUMBER(FIND(\"Midstream\",ProjectInfoTable[[#This Row],[Fixture Measure]],1)),ISNUMBER(FIND(\"Midstream\",ProjectInfoTable[[#This Row],[Equipment Category]],1)),ISNUMBER(FIND(\"Prescriptive\",ProjectInfoTable[[#This Row],[Equipment Category]],1)),ISNUMBER(FIND(\"LED\",ProjectInfoTable[[#This Row],[Fixture Measure]],1)),ISNUMBER(FIND(\"LED Case\",ProjectInfoTable[[#This Row],[Fixture Measure]],1)),ISNUMBER(FIND(\"LED Decorative - Retrofit - WA\",ProjectInfoTable[[#This Row],[Fixture Measure]],1)),ISNUMBER(FIND(\"Lamp\",ProjectInfoTable[[#This Row],[Fixture Measure]],1)),ISNUMBER(FIND(\"Relamp\",ProjectInfoTable[[#This Row],[Fixture Measure]],1)),ISNUMBER(FIND(\"Wall Pack\",ProjectInfoTable[[#This Row],[Fixture Measure]],1)),ISNUMBER(FIND(\"Controls Only\",ProjectInfoTable[[#This Row],[Proposed Equipment]],1)),ISNUMBER(FIND(\"Re-Commissioning\",ProjectInfoTable[[#This Row],[Proposed Equipment]],1)),\n\nAND(OR(ISNUMBER(FIND(\"Exterior:\",ProjectInfoTable[[#This Row],[Proposed Equipment]],1)),ISNUMBER(FIND(\"Street:\",ProjectInfoTable[[#This Row],[Proposed Equipment]],1))),OR(ProjectState=\"ID\",ProjectState=\"UT\",ProjectState=\"WY\"))),\n\nIF(IFERROR(INDEX(ControlsLookup[],MATCH(IF(ProjectType=\"Retrofit\",LEFT(ProjectInfoTable[[#This Row],[Existing Equipment]],FIND(\":\",ProjectInfoTable[[#This Row],[Existing Equipment]],1)-1),LEFT(ProjectInfoTable[[#This Row],[Proposed Equipment]],FIND(\":\",ProjectInfoTable[[#This Row],[Proposed Equipment]],1)-1))&\"_\"&RIGHT(ProjectInfoTable[[#This Row],[Proposed Equipment]],LEN(ProjectInfoTable[[#This Row],[Proposed Equipment]])-FIND(\"]\",ProjectInfoTable[[#This Row],[Proposed Equipment]],1)-3),ControlsLookup[Controls Concatenate],0),MATCH(\n\nIF(ProjectType=\"Retrofit\",\"ControlMeasure_\",\"NCMRControlMeasure_\")&ProjectState,ControlsLookup[#Headers],0)),\"\")=0,\"\",\n\nIFERROR(INDEX(ControlsLookup[],MATCH(IF(ProjectType=\"Retrofit\",LEFT(ProjectInfoTable[[#This Row],[Existing Equipment]],FIND(\":\",ProjectInfoTable[[#This Row],[Existing Equipment]],1)-1),LEFT(ProjectInfoTable[[#This Row],[Proposed Equipment]],FIND(\":\",ProjectInfoTable[[#This Row],[Proposed Equipment]],1)-1))&\"_\"&RIGHT(ProjectInfoTable[[#This Row],[Proposed Equipment]],LEN(ProjectInfoTable[[#This Row],[Proposed Equipment]])-FIND(\"]\",ProjectInfoTable[[#This Row],[Proposed Equipment]],1)-3),ControlsLookup[Controls Concatenate],0),MATCH(\n\nIF(ProjectType=\"Retrofit\",\"ControlMeasure_\",\"NCMRControlMeasure_\")&ProjectState&IF(ProjectState=\"UT\",SegmentTag,\"\"),ControlsLookup[#Headers],0)),\"\")),\"\"),\"[NAMESUB]\",ProjectInfoTable[[#This Row],[Control Measure Name Sub]]),\"\"))","v":""},{"$f":"IF(ProjectInfoTable[[#This Row],[Proposed Equipment]]=\"\",\"\",IF(AND(ProjectState=\"UT\",ProjectType=\"Retrofit\",ISNUMBER(FIND(\"Re-Commissioning\",ProjectInfoTable[[#This Row],[Proposed Equipment]]))),\nIF(ProjectRecommissioning=\"only recommissioning\",\"Commissioning Only\",\"Commissioning w/ Lighting Upgrade\"),\"\"))","v":""},{"$f":"IFERROR(INDEX(INDIRECT(\"MeasureTable_\" & ProjectState & \"[Measure Reference Number]\"),MATCH(ProjectInfoTable[[#This Row],[Control Measure]],INDIRECT(\"MeasureTable_\" &ProjectState&\"[Measure Name]\"),0)),\"\")","v":""},{"$f":"IFERROR(\n    _xlfn.LET(\n        _xlpm.filteredVersions,\n            _xlfn._xlws.FILTER(\n                INDIRECT(\"MeasureTable_\" & ProjectState & \"[Version Number]\"),\n                (INDIRECT(\"MeasureTable_\" & ProjectState & \"[Measure Reference Number]\") = ProjectInfoTable[[#This Row],[Control Measure Reference Number]]) *\n                (INDIRECT(\"MeasureTable_\" & ProjectState & \"[Eligible Measure]\") = TRUE)\n            ),\n        INDEX(_xlpm.filteredVersions, 1)\n    ),\n    \"\"\n)","v":""},{"$f":"IFERROR(\n  _xlfn.LET(\n    _xlpm.refRange, INDIRECT(\"MeasureTable_\" & ProjectState & \"[Measure Reference Number]\"),\n    _xlpm.eligibleRange, INDIRECT(\"MeasureTable_\" & ProjectState & \"[Eligible Measure]\"),\n    _xlpm.countTrue, SUMPRODUCT(--(_xlpm.refRange = ProjectInfoTable[[#This Row],[Control Measure Reference Number]]), --(_xlpm.eligibleRange = TRUE)),\n    _xlpm.countNonBlank, SUMPRODUCT(--(_xlpm.refRange = ProjectInfoTable[[#This Row],[Control Measure Reference Number]]), --(_xlpm.eligibleRange <> \"\")),\n    IF(_xlpm.countNonBlank = 0, \"\", IF(_xlpm.countTrue >= 1, TRUE, FALSE))\n  ),\n  \"\"\n)","v":""},{"$f":"IF(ProjectInfoTable[[#This Row],[Proposed Equipment]]=\"\",\"\",IFERROR(INDEX(INDIRECT(\"EquipmentTable_\"&IF(ProjectType=\"Retrofit\",\"Retrofit_\",\"NCMR_\")&ProjectState&\"[controlMethod]\"),MATCH(LEFT(ProjectInfoTable[[#This Row],[Proposed Equipment]],FIND(\"[\",ProjectInfoTable[[#This Row],[Proposed Equipment]],1)-2),INDIRECT(\"EquipmentTable_\"&IF(ProjectType=\"Retrofit\",\"Retrofit_\",\"NCMR_\")&ProjectState&\"[equipmentProposed]\"),0)),\"\"))","v":""},{"$f":"IFERROR(VALUE(INDEX(INDIRECT(\"MeasureTable_\" & ProjectState & \"[CustomerIncentiveDollarperunit]\"),MATCH(ProjectInfoTable[[#This Row],[Control Measure]]&\" | TRUE\",INDIRECT(\"MeasureTable_\"&ProjectState&\"[MeasureEligibleConcatenate]\"),0))),\"\")","v":""},{"$f":"IFERROR(INDEX(INDIRECT(\"MeasureTable_\"&ProjectState&\"[SiteSpecificCalculation]\"),MATCH(ProjectInfoTable[[#This Row],[Control Measure]]&\" | TRUE\",INDIRECT(\"MeasureTable_\"&ProjectState&\"[MeasureEligibleConcatenate]\"),0)),\"\")","v":""},{"$f":"IFERROR(INDEX(INDIRECT(\"MeasureTable_\"&ProjectState&\"[GrossIncrementalAnnualElectricSavings ]\"),MATCH(ProjectInfoTable[[#This Row],[Control Measure]]&\" | TRUE\",INDIRECT(\"MeasureTable_\"&ProjectState&\"[MeasureEligibleConcatenate]\"),0)),\"\")","v":""},{"$f":"IFERROR(INDEX(INDIRECT(\"MeasureTable_\"&ProjectState&\"[GrossAverage onthly emand eduction]\"),MATCH(ProjectInfoTable[[#This Row],[Control Measure]]&\" | TRUE\",INDIRECT(\"MeasureTable_\"&ProjectState&\"[MeasureEligibleConcatenate]\"),0)),\"\")","v":""},{"$f":"IFERROR(INDEX(INDIRECT(\"MeasureTable_\"&ProjectState&\"[IncrementalMeasureCost]\"),MATCH(ProjectInfoTable[[#This Row],[Control Measure]]&\" | TRUE\",INDIRECT(\"MeasureTable_\"&ProjectState&\"[MeasureEligibleConcatenate]\"),0)),\"\")","v":""},{"$f":"IF(ProjectInfoTable[[#This Row],[Control Measure]]=\"\",\"\",IF(OR(ProjectInfoTable[[#This Row],[Control TRL Unit]]=\"Measure\",ProjectInfoTable[[#This Row],[Control TRL Unit]]=\"Linear ft.\"),IF(OR(ISNUMBER(FIND(\"Midstream\",ProjectInfoTable[[#This Row],[Control Measure]],1)),ISNUMBER(FIND(\"Lamp\",ProjectInfoTable[[#This Row],[Control Measure]],1))),ProjectInfoTable[[#This Row],[Quantity (Proposed)]]*ProjectInfoTable[[#This Row],[Lamps (Proposed)]],ProjectInfoTable[[#This Row],[Quantity (Proposed)]]),1))","v":""},{"$f":"IF(ProjectInfoTable[[#This Row],[Control Measure]]=\"\",\"\",IF(ISNUMBER(FIND(\"LF \",ProjectInfoTable[[#This Row],[Proposed Equipment]],1)),VALUE(RIGHT(LEFT(ProjectInfoTable[[#This Row],[Proposed Equipment]],FIND(\"LF \",ProjectInfoTable[[#This Row],[Proposed Equipment]],1)-1),LEN(LEFT(ProjectInfoTable[[#This Row],[Proposed Equipment]],FIND(\"LF \",ProjectInfoTable[[#This Row],[Proposed Equipment]],1)-1))-FIND(\"[\",ProjectInfoTable[[#This Row],[Proposed Equipment]],1))),IF(TRIM(UPPER(ProjectInfoTable[[#This Row],[Control TRL Unit]]))=\"WATT CONTROLLED\",IF(ISNUMBER(FIND(\"Controls Only\",ProjectInfoTable[[#This Row],[Proposed Equipment]],1)),IF(OR(ProjectType <> \"Retrofit\",ProjectInfoTable[[#This Row],[Space W (Proposed)]]>0),ProjectInfoTable[[#This Row],[Space W (Proposed)]],ProjectInfoTable[[#This Row],[Space W (Existing, Stipulated)]]),ProjectInfoTable[[#This Row],[Space W (Proposed)]]),IF(TRIM(UPPER(ProjectInfoTable[[#This Row],[Control TRL Unit]]))=\"KWH\",IF(ProjectInfoTable[[#This Row],[Control Measure kWh/yr Savings (Stipulated)]]=0,0,ROUND(ProjectInfoTable[[#This Row],[Control Measure kWh/yr Savings (Stipulated)]],2)),1))))","v":""},{"$f":"IFERROR(IF(LEN(ProjectInfoTable[[#This Row],[Proposed Equipment]])-(FIND(\"]\",ProjectInfoTable[[#This Row],[Proposed Equipment]],1))>0,\"Control(s)\",\"\"),\"\")","v":""},{"$f":"IFERROR(INDEX(INDIRECT(\"MeasureTable_\"&ProjectState&\"[Unit]\"),MATCH(ProjectInfoTable[[#This Row],[Control Measure]]&\" | TRUE\",INDIRECT(\"MeasureTable_\"&ProjectState&\"[MeasureEligibleConcatenate]\"),0)),\"\")","v":""},{"$f":"IFERROR(INDEX(INDIRECT(\"MeasureTable_\"&ProjectState&\"[ProjectCapPercent]\"),MATCH(ProjectInfoTable[[#This Row],[Control Measure]]&\" | TRUE\",INDIRECT(\"MeasureTable_\"&ProjectState&\"[MeasureEligibleConcatenate]\"),0)),\"\")","v":""},{"$f":"IF(OR(ProjectInfoTable[[#This Row],[Fixture Measure]]<>\"\",ProjectInfoTable[[#This Row],[Control Measure]]<>\"\"),1,\"\")","v":""},{"$f":"IF(ProjectInfoTable[[#This Row],[TRL Unit]]=\"\",\"\",IF(OR(ISNUMBER(SEARCH(\"measure\",ProjectInfoTable[[#This Row],[TRL Unit]])),ISNUMBER(SEARCH(\"linear ft\",ProjectInfoTable[[#This Row],[TRL Unit]])),ProjectInfoTable[[#This Row],[TRL Unit]]=0),990,991))","v":""},{"$f":"IFERROR(SUBSTITUTE(LEFT(ProjectInfoTable[[#This Row],[Proposed Equipment]],FIND(\"]\",ProjectInfoTable[[#This Row],[Proposed Equipment]],1)),\"Controls Only []\",\"\",1),\"\")","v":""},{"$f":"IF(ProjectInfoTable[[#This Row],[FixturesOnly]]=\"\",\"\",IF(ISNUMBER(FIND(\"L \",ProjectInfoTable[[#This Row],[Proposed Equipment]],1)),ProjectInfoTable[[#This Row],[Quantity (Proposed)]]*ProjectInfoTable[[#This Row],[Lamps (Proposed)]],ProjectInfoTable[[#This Row],[Quantity (Proposed)]]))","v":""},{"$f":"IFERROR(INDEX(ControlsLookup[Full Description],MATCH(RIGHT(ProjectInfoTable[[#This Row],[Proposed Equipment]],LEN(ProjectInfoTable[[#This Row],[Proposed Equipment]])-FIND(\"]\",ProjectInfoTable[[#This Row],[Proposed Equipment]],1)-3),ControlsLookup[Controls],0)),\"\")","v":""},{"$f":"IF(ProjectInfoTable[[#This Row],[ControlsOnly]]=\"\",\"\",IF(OR(ISNUMBER(FIND(\"Net\",ProjectInfoTable[[#This Row],[Proposed Equipment]],1)),ISNUMBER(FIND(\"Int\",ProjectInfoTable[[#This Row],[Proposed Equipment]],1))),ProjectInfoTable[[#This Row],[Quantity (Proposed)]],1))","v":""}]
[null,{"$f":"ROW(ProjectInfoTable[[#This Row],[OpSch]])-ROW(ProjectInfoTable[[#Headers],[OpSch]])","v":17},{"$f":"IFERROR(INDEX(RetrofitBaselineEquipment_Table[categoryBaseline],MATCH(RIGHT(LEFT(ProjectInfoTable[[#This Row],[Existing Equipment]],FIND(\" (\",ProjectInfoTable[[#This Row],[Existing Equipment]],1)-1),LEN(LEFT(ProjectInfoTable[[#This Row],[Existing Equipment]],FIND(\" (\",ProjectInfoTable[[#This Row],[Existing Equipment]],1)-1))-FIND(\": \",ProjectInfoTable[[#This Row],[Existing Equipment]],1)-1),RetrofitBaselineEquipment_Table[equipmentBaseline],0)),\"\")","v":""},null,null,null,null,{"$f":"IF(ProjectInfoTable[[#This Row],[Existing Equipment]]=\"\",\"\",IF(ISNUMBER(FIND(\"LF\",ProjectInfoTable[[#This Row],[Existing Equipment]],1)),1,IFERROR(VALUE(SUBSTITUTE(RIGHT(LEFT(ProjectInfoTable[[#This Row],[Existing Equipment]],FIND(\"L\",ProjectInfoTable[[#This Row],[Existing Equipment]],FIND(\"[\",ProjectInfoTable[[#This Row],[Existing Equipment]],1))-1),3),\"[\",\"\")),1)))","v":""},{"$f":"IF(ProjectInfoTable[[#This Row],[Existing Equipment]]=\"\",\"\",VALUE(SUBSTITUTE(RIGHT(LEFT(RIGHT(ProjectInfoTable[[#This Row],[Existing Equipment]],LEN(ProjectInfoTable[[#This Row],[Existing Equipment]])-IFERROR(FIND(\"[\",ProjectInfoTable[[#This Row],[Existing Equipment]],1),0)),IFERROR(FIND(\"W\",RIGHT(ProjectInfoTable[[#This Row],[Existing Equipment]],LEN(ProjectInfoTable[[#This Row],[Existing Equipment]])-IFERROR(FIND(\"[\",ProjectInfoTable[[#This Row],[Existing Equipment]],1),0)),1),0)),LEN(LEFT(RIGHT(ProjectInfoTable[[#This Row],[Existing Equipment]],LEN(ProjectInfoTable[[#This Row],[Existing Equipment]])-IFERROR(FIND(\"[\",ProjectInfoTable[[#This Row],[Existing Equipment]],1),0)),IFERROR(FIND(\"W\",RIGHT(ProjectInfoTable[[#This Row],[Existing Equipment]],LEN(ProjectInfoTable[[#This Row],[Existing Equipment]])-IFERROR(FIND(\"[\",ProjectInfoTable[[#This Row],[Existing Equipment]],1),0)),1),0)))-IFERROR(FIND(\"-\",LEFT(RIGHT(ProjectInfoTable[[#This Row],[Existing Equipment]],LEN(ProjectInfoTable[[#This Row],[Existing Equipment]])-IFERROR(FIND(\"[\",ProjectInfoTable[[#This Row],[Existing Equipment]],1),0)),IFERROR(FIND(\"W\",RIGHT(ProjectInfoTable[[#This Row],[Existing Equipment]],LEN(ProjectInfoTable[[#This Row],[Existing Equipment]])-IFERROR(FIND(\"[\",ProjectInfoTable[[#This Row],[Existing Equipment]],1),0)),1),0)),1),0)),\"W\",\"\")))","v":""},{"$f":"IF(ProjectInfoTable[[#This Row],[Existing Equipment]]=\"\",\"\",IF(AND(RIGHT(LEFT(ProjectInfoTable[[#This Row],[Existing Equipment]],FIND(\"]\",ProjectInfoTable[[#This Row],[Existing Equipment]],1)-1),1)<>\"W\"),IFERROR(TRIM(IF(IFERROR(FIND(\"FLT\",ProjectInfoTable[[#This Row],[Existing Equipment]],1),0)>0,LEFT(RIGHT(LEFT(ProjectInfoTable[[#This Row],[Existing Equipment]],FIND(\" (\",ProjectInfoTable[[#This Row],[Existing Equipment]],1)),LEN(LEFT(ProjectInfoTable[[#This Row],[Existing Equipment]],FIND(\" (\",ProjectInfoTable[[#This Row],[Existing Equipment]],1)))-FIND(\":\",ProjectInfoTable[[#This Row],[Existing Equipment]],1)-1),FIND(\" \",RIGHT(LEFT(ProjectInfoTable[[#This Row],[Existing Equipment]],FIND(\" (\",ProjectInfoTable[[#This Row],[Existing Equipment]],1)),LEN(LEFT(ProjectInfoTable[[#This Row],[Existing Equipment]],FIND(\" (\",ProjectInfoTable[[#This Row],[Existing Equipment]],1)))-FIND(\":\",ProjectInfoTable[[#This Row],[Existing Equipment]],1)-1),1)-1),RIGHT(LEFT(ProjectInfoTable[[#This Row],[Existing Equipment]],FIND(\" (\",ProjectInfoTable[[#This Row],[Existing Equipment]],1)),LEN(LEFT(ProjectInfoTable[[#This Row],[Existing Equipment]],FIND(\" (\",ProjectInfoTable[[#This Row],[Existing Equipment]],1)))-FIND(\":\",ProjectInfoTable[[#This Row],[Existing Equipment]],1)-1))&\" - \"&RIGHT(LEFT(ProjectInfoTable[[#This Row],[Existing Equipment]],FIND(\"]\",ProjectInfoTable[[#This Row],[Existing Equipment]],1)-1),LEN(LEFT(ProjectInfoTable[[#This Row],[Existing Equipment]],FIND(\"]\",ProjectInfoTable[[#This Row],[Existing Equipment]],1)-1))-FIND(\"W \",ProjectInfoTable[[#This Row],[Existing Equipment]],1)-3)),\"\"),\"\"))","v":""},{"$f":"IF(ProjectInfoTable[[#This Row],[Existing Equipment]]=\"\",\"\",IF(ProjectInfoTable[[#This Row],[Fixture/Ballast Check for Formula]]=\"\",IF(ISNUMBER(FIND(\"LF\",ProjectInfoTable[[#This Row],[Existing Equipment]],FIND(\"[\",ProjectInfoTable[[#This Row],[Existing Equipment]],1))),ProjectInfoTable[[#This Row],[Lamp W (Existing)]],ProjectInfoTable[[#This Row],[Lamps (Existing)]]*ProjectInfoTable[[#This Row],[Lamp W (Existing)]]),IFERROR(ROUND( ProjectInfoTable[[#This Row],[Lamps (Existing)]]*ProjectInfoTable[[#This Row],[Lamp W (Existing)]]*INDEX(FixtureWattageFormula_Table[A],MATCH(ProjectInfoTable[[#This Row],[Fixture/Ballast Check for Formula]],FixtureWattageFormula_Table[Concatenate],0))+INDEX(FixtureWattageFormula_Table[B],MATCH(ProjectInfoTable[[#This Row],[Fixture/Ballast Check for Formula]],FixtureWattageFormula_Table[Concatenate],0)),0),ProjectInfoTable[[#This Row],[Lamps (Existing)]]*ProjectInfoTable[[#This Row],[Lamp W (Existing)]])))","v":""},{"$f":"IF(OR(ISNUMBER(FIND(\"T8 \",ProjectInfoTable[[#This Row],[Existing Equipment]],1)),ISNUMBER(FIND(\"T5 \",ProjectInfoTable[[#This Row],[Existing Equipment]],1)),ISNUMBER(FIND(\"T12 \",ProjectInfoTable[[#This Row],[Existing Equipment]],1)),ISNUMBER(FIND(\"T12HO - 8\",ProjectInfoTable[[#This Row],[Existing Equipment]],1)),ISNUMBER(FIND(\"Incand\",ProjectInfoTable[[#This Row],[Existing Equipment]],1))),IFERROR(ROUND(INDEX(StipulatedWattage_Table[Stipulated fixture wattage],MATCH(MID(ProjectInfoTable[[#This Row],[Existing Equipment]],FIND(\"[\",ProjectInfoTable[[#This Row],[Existing Equipment]],1),FIND(\"]\",ProjectInfoTable[[#This Row],[Existing Equipment]],1)-FIND(\"[\",ProjectInfoTable[[#This Row],[Existing Equipment]],1)+1),StipulatedWattage_Table[Fixture Code],0)),0),ProjectInfoTable[[#This Row],[Fixture W (Existing, Actual)]]),ProjectInfoTable[[#This Row],[Fixture W (Existing, Actual)]])","v":""},{"$f":"IF(ProjectType=\"Retrofit\",IF(ProjectInfoTable[[#This Row],[Existing Equipment]]=\"\",\"\",ProjectInfoTable[[#This Row],[Quantity (Existing)]]*ProjectInfoTable[[#This Row],[Fixture W (Existing, Actual)]]),IF(ISNUMBER(FIND(\"Interior\",ProjectInfoTable[[#This Row],[Proposed Equipment]],1)),IF(ISNUMBER(FIND(\"Controls Only\",ProjectInfoTable[[#This Row],[Proposed Equipment]])),ProjectInfoTable[[#This Row],[Space W (Proposed)]],(AllowedWattage-SUMIFS(ProjectInfoTable[Space W (Proposed)],ProjectInfoTable[Proposed Equipment],\"*Interior*\",ProjectInfoTable[Proposed Equipment],\"*Controls Only*\"))*ProjectInfoTable[[#This Row],[Space W (Proposed)]]/(SUMIFS(ProjectInfoTable[Space W (Proposed)],ProjectInfoTable[Proposed Equipment],\"*Interior*\")-SUMIFS(ProjectInfoTable[Space W (Proposed)],ProjectInfoTable[Proposed Equipment],\"*Interior*\",ProjectInfoTable[Proposed Equipment],\"*Controls Only*\"))),\"\"))","v":""},{"$f":"IF(ProjectType=\"Retrofit\",IF(ProjectInfoTable[[#This Row],[Existing Equipment]]=\"\",\"\",ProjectInfoTable[[#This Row],[Quantity (Existing)]]*ProjectInfoTable[[#This Row],[Fixture W (Existing, Stipulated)]]),ProjectInfoTable[[#This Row],[Space W (Existing, Actual)]])","v":""},{"$f":"IFERROR(INDEX(OperatingHours_List,MATCH(ProjectInfoTable[[#This Row],[OpSch]],OperatingSchedules_List,0))*ProjectInfoTable[[#This Row],[Space W (Existing, Actual)]]/1000,\"\")","v":""},{"$f":"IFERROR(INDEX(OperatingHours_List,MATCH(ProjectInfoTable[[#This Row],[OpSch]],OperatingSchedules_List,0))*ProjectInfoTable[[#This Row],[Space W (Existing, Actual)]]/1000*(IFERROR(INDEX(ControlsLookup[],MATCH(RIGHT(ProjectInfoTable[[#This Row],[Existing Equipment]],LEN(ProjectInfoTable[[#This Row],[Existing Equipment]])-FIND(\"]\",ProjectInfoTable[[#This Row],[Existing Equipment]],1)-3),ControlsLookup[Controls],0),MATCH(\"CSF_\"&ProjectState,ControlsLookup[#Headers],0)),0))*-1,\"\")","v":""},{"$f":"IF(OR(ProjectInfoTable[[#This Row],[Fixture kWh (Existing, Actual)]]=\"\",ProjectInfoTable[[#This Row],[Control kWh (Existing, Actual)]]=\"\"),\"\",ProjectInfoTable[[#This Row],[Fixture kWh (Existing, Actual)]]+ProjectInfoTable[[#This Row],[Control kWh (Existing, Actual)]])","v":""},{"$f":"IFERROR(INDEX(OperatingHours_List,MATCH(ProjectInfoTable[[#This Row],[OpSch]],OperatingSchedules_List,0))*ProjectInfoTable[[#This Row],[Space W (Existing, Stipulated)]]/1000,\"\")","v":""},{"$f":"IFERROR(INDEX(OperatingHours_List,MATCH(ProjectInfoTable[[#This Row],[OpSch]],OperatingSchedules_List,0))*ProjectInfoTable[[#This Row],[Space W (Existing, Stipulated)]]/1000*(IFERROR(INDEX(ControlsLookup[],MATCH(RIGHT(ProjectInfoTable[[#This Row],[Existing Equipment]],LEN(ProjectInfoTable[[#This Row],[Existing Equipment]])-FIND(\"]\",ProjectInfoTable[[#This Row],[Existing Equipment]],1)-3),ControlsLookup[Controls],0),MATCH(\"CSF_\"&ProjectState,ControlsLookup[#Headers],0)),0))*-1,\"\")","v":""},{"$f":"IF(OR(ProjectInfoTable[[#This Row],[Fixture kWh (Existing, Stipulated)]]=\"\",ProjectInfoTable[[#This Row],[Control kWh (Existing, Stipulated)]]=\"\"),\"\",ProjectInfoTable[[#This Row],[Fixture kWh (Existing, Stipulated)]]+ProjectInfoTable[[#This Row],[Control kWh (Existing, Stipulated)]])","v":""},{"$f":"IF(\n AND(\n  OR(ProjectInfoTable[[#This Row],[Existing Equipment]]=\"\",ProjectInfoTable[[#This Row],[Quantity (Existing)]]=\"\"),\n  ProjectType=\"Retrofit\"\n ),\n \"\",\n IF(\n  ISNUMBER(FIND(\"Street:\",ProjectInfoTable[[#This Row],[Existing Equipment]],1)),\n  IF(\n   OR(\n    AND(ProjectState=\"UT\",RateSchedule=12),\n    AND(ProjectState=\"ID\",RateSchedule=12),\n    AND(ProjectState=\"WY\",RateSchedule=58)\n   ),\n   IFERROR(\n    INDEX(\n     StreetLightingRates_Table[],\n     MATCH(MID(ProjectInfoTable[[#This Row],[Existing Equipment]],FIND(\": \",ProjectInfoTable[[#This Row],[Existing Equipment]],1)+2,FIND(\" (\",ProjectInfoTable[[#This Row],[Existing Equipment]],1)-FIND(\": \",ProjectInfoTable[[#This Row],[Existing Equipment]],1)-2)&ProjectInfoTable[[#This Row],[Lamp W (Existing)]],StreetLightingRates_Table[TechWattage],0),\n     MATCH(ProjectState&RateSchedule,StreetLightingRates_Table[#Headers],0)\n    )\n    *\n    ProjectInfoTable[[#This Row],[Quantity (Existing)]]\n    *\n    ProjectInfoTable[[#This Row],[Lamps (Existing)]]\n    *\n    12,\n    ProjectInfoTable[[#This Row],[Space kWh (Existing, Actual)]]\n    *\n    INDEX(INDIRECT(\"RateSchedules_\"&ProjectState&\"_Table[kWh Rate]\"),MATCH(RateSchedule,INDIRECT(\"RateSchedules_\"&ProjectState&\"_Table[Rate Schedule]\"),0))\n   ),\n   IFERROR(\n    ProjectInfoTable[[#This Row],[Space kWh (Existing, Actual)]]*\n    INDEX(INDIRECT(\"RateSchedules_\"&ProjectState&\"_Table[kWh Rate]\"),MATCH(RateSchedule,INDIRECT(\"RateSchedules_\"&ProjectState&\"_Table[Rate Schedule]\"),0)),0)\n   +\n   IFERROR(IF(ISNUMBER(FIND(\"Interior:\",ProjectInfoTable[[#This Row],[Existing Equipment]],1)),\n    ProjectInfoTable[[#This Row],[Space W (Existing, Actual)]]/1000*12*DDF*\n    INDEX(INDIRECT(\"RateSchedules_\"&ProjectState&\"_Table[kW Rate]\"),MATCH(RateSchedule,INDIRECT(\"RateSchedules_\"&ProjectState&\"_Table[Rate Schedule]\"),0)),0),0)\n  ),\n  IFERROR(\n   ProjectInfoTable[[#This Row],[Space kWh (Existing, Actual)]]*\n   INDEX(INDIRECT(\"RateSchedules_\"&ProjectState&\"_Table[kWh Rate]\"),MATCH(RateSchedule,INDIRECT(\"RateSchedules_\"&ProjectState&\"_Table[Rate Schedule]\"),0)),\n   0\n  )\n  +\n  IFERROR(IF(OR(ISNUMBER(FIND(\"Interior:\",ProjectInfoTable[[#This Row],[Existing Equipment]],1)),AND(ProjectType<>\"Retrofit\",ISNUMBER(FIND(\"Interior:\",ProjectInfoTable[[#This Row],[Proposed Equipment]],1)))),\n   ProjectInfoTable[[#This Row],[Space W (Existing, Actual)]]/1000*12*DDF*\n   INDEX(INDIRECT(\"RateSchedules_\"&ProjectState&\"_Table[kW Rate]\"),MATCH(RateSchedule,INDIRECT(\"RateSchedules_\"&ProjectState&\"_Table[Rate Schedule]\"),0)),0),\n   0\n  )\n )\n)","v":0},{"$f":"IF(\n AND(\n  OR(ProjectInfoTable[[#This Row],[Existing Equipment]]=\"\",ProjectInfoTable[[#This Row],[Quantity (Existing)]]=\"\"),\n  ProjectType=\"Retrofit\"\n ),\n \"\",\n IF(\n  ISNUMBER(FIND(\"Street:\",ProjectInfoTable[[#This Row],[Existing Equipment]],1)),\n  IF(\n   OR(\n    AND(ProjectState=\"UT\",RateSchedule=12),\n    AND(ProjectState=\"ID\",RateSchedule=12),\n    AND(ProjectState=\"WY\",RateSchedule=58)\n   ),\n   IFERROR(\n    INDEX(\n     StreetLightingRates_Table[],\n     MATCH(MID(ProjectInfoTable[[#This Row],[Existing Equipment]],FIND(\": \",ProjectInfoTable[[#This Row],[Existing Equipment]],1)+2,FIND(\" (\",ProjectInfoTable[[#This Row],[Existing Equipment]],1)-FIND(\": \",ProjectInfoTable[[#This Row],[Existing Equipment]],1)-2)&ProjectInfoTable[[#This Row],[Lamp W (Existing)]],StreetLightingRates_Table[TechWattage],0),\n     MATCH(ProjectState&RateSchedule,StreetLightingRates_Table[#Headers],0)\n    )\n    *\n    ProjectInfoTable[[#This Row],[Quantity (Existing)]]\n    *\n    ProjectInfoTable[[#This Row],[Lamps (Existing)]]\n    *\n    12,\n    ProjectInfoTable[[#This Row],[Space kWh (Existing, Stipulated)]]\n    *\n    INDEX(INDIRECT(\"RateSchedules_\"&ProjectState&\"_Table[kWh Rate]\"),MATCH(RateSchedule,INDIRECT(\"RateSchedules_\"&ProjectState&\"_Table[Rate Schedule]\"),0))\n   ),\n   IFERROR(\n    ProjectInfoTable[[#This Row],[Space kWh (Existing, Stipulated)]]*\n    INDEX(INDIRECT(\"RateSchedules_\"&ProjectState&\"_Table[kWh Rate]\"),MATCH(RateSchedule,INDIRECT(\"RateSchedules_\"&ProjectState&\"_Table[Rate Schedule]\"),0)),0)\n   +\n   IFERROR(IF(ISNUMBER(FIND(\"Interior:\",ProjectInfoTable[[#This Row],[Existing Equipment]],1)),\n    ProjectInfoTable[[#This Row],[Space W (Existing, Stipulated)]]/1000*12*DDF*\n    INDEX(INDIRECT(\"RateSchedules_\"&ProjectState&\"_Table[kW Rate]\"),MATCH(RateSchedule,INDIRECT(\"RateSchedules_\"&ProjectState&\"_Table[Rate Schedule]\"),0)),0),0)\n  ),\n  IFERROR(\n   ProjectInfoTable[[#This Row],[Space kWh (Existing, Stipulated)]]*\n   INDEX(INDIRECT(\"RateSchedules_\"&ProjectState&\"_Table[kWh Rate]\"),MATCH(RateSchedule,INDIRECT(\"RateSchedules_\"&ProjectState&\"_Table[Rate Schedule]\"),0)),\n   0\n  )\n  +\n  IFERROR(IF(OR(ISNUMBER(FIND(\"Interior:\",ProjectInfoTable[[#This Row],[Existing Equipment]],1)),AND(ProjectType<>\"Retrofit\",ISNUMBER(FIND(\"Interior:\",ProjectInfoTable[[#This Row],[Proposed Equipment]],1)))),\n   ProjectInfoTable[[#This Row],[Space W (Existing, Stipulated)]]/1000*12*DDF*\n   INDEX(INDIRECT(\"RateSchedules_\"&ProjectState&\"_Table[kW Rate]\"),MATCH(RateSchedule,INDIRECT(\"RateSchedules_\"&ProjectState&\"_Table[Rate Schedule]\"),0)),0),\n   0\n  )\n )\n)","v":0},{"$f":"IF(ProjectType=\"Retrofit\",IFERROR(INDEX(RetrofitBaselineEquipment_Table[categoryBaseline],MATCH(RIGHT(LEFT(ProjectInfoTable[[#This Row],[Proposed Equipment]],FIND(\" (\",ProjectInfoTable[[#This Row],[Proposed Equipment]],1)-1),LEN(LEFT(ProjectInfoTable[[#This Row],[Proposed Equipment]],FIND(\" (\",ProjectInfoTable[[#This Row],[Proposed Equipment]],1)-1))-FIND(\": \",ProjectInfoTable[[#This Row],[Proposed Equipment]],1)-1),RetrofitBaselineEquipment_Table[equipmentBaseline],0)),\"\"),IFERROR(INDEX(#REF!,MATCH(RIGHT(LEFT(ProjectInfoTable[[#This Row],[Proposed Equipment]],FIND(\" (\",ProjectInfoTable[[#This Row],[Proposed Equipment]],1)-1),LEN(LEFT(ProjectInfoTable[[#This Row],[Proposed Equipment]],FIND(\" (\",ProjectInfoTable[[#This Row],[Proposed Equipment]],1)-1))-FIND(\": \",ProjectInfoTable[[#This Row],[Proposed Equipment]],1)-1),#REF!,0)),\"\"))","v":""},{"$f":"IF(ProjectInfoTable[[#This Row],[Proposed Equipment]]=\"\",\"\",IF(ISNUMBER(SEARCH(\"Controls Only\",ProjectInfoTable[[#This Row],[Proposed Equipment]])),\"Controls Only\",IF(ProjectType=\"Retrofit\",_xlfn.LET(_xlpm.k,LEFT(ProjectInfoTable[[#This Row],[Proposed Equipment]],FIND(\"[\",ProjectInfoTable[[#This Row],[Proposed Equipment]])-2),_xlpm.ep,_xlfn.SWITCH(ProjectState,\"UT\",EquipmentTable_Retrofit_UT[equipmentProposed],\"WY\",EquipmentTable_Retrofit_WY[equipmentProposed],\"ID\",EquipmentTable_Retrofit_ID[equipmentProposed]),_xlpm.cp,_xlfn.SWITCH(ProjectState,\"UT\",EquipmentTable_Retrofit_UT[categoryProposed],\"WY\",EquipmentTable_Retrofit_WY[categoryProposed],\"ID\",EquipmentTable_Retrofit_ID[categoryProposed]),_xlfn.XLOOKUP(_xlpm.k,_xlpm.ep,_xlpm.cp,\"Non-eligible fixture - Retrofit - \"&ProjectState)),_xlfn.LET(_xlpm.k,MID(ProjectInfoTable[[#This Row],[Proposed Equipment]],FIND(\": \",ProjectInfoTable[[#This Row],[Proposed Equipment]])+2,FIND(\" (\",ProjectInfoTable[[#This Row],[Proposed Equipment]])-(FIND(\": \",ProjectInfoTable[[#This Row],[Proposed Equipment]])+2)),_xlpm.ep,_xlfn.SWITCH(ProjectState,\"UT\",EquipmentTable_NCMR_UT[equipmentProposed],\"WY\",EquipmentTable_NCMR_WY[equipmentProposed],\"ID\",EquipmentTable_NCMR_ID[equipmentProposed]),_xlpm.cp,_xlfn.SWITCH(ProjectState,\"UT\",EquipmentTable_NCMR_UT[categoryProposed],\"WY\",EquipmentTable_NCMR_WY[categoryProposed],\"ID\",EquipmentTable_NCMR_ID[categoryProposed]),_xlfn.XLOOKUP(_xlpm.k,_xlpm.ep,_xlpm.cp,\"Non-eligible fixture - NCMR - \"&ProjectState)))))","v":""},null,null,"ü",{"$f":"IF(ProjectInfoTable[[#This Row],[Proposed Equipment]]=\"\",\"\",IF(ProjectInfoTable[[#This Row],[Measure Selection]]=\"\",0,IF(ISNUMBER(FIND(\"LF\",ProjectInfoTable[[#This Row],[Proposed Equipment]],1)),1,IFERROR(VALUE(SUBSTITUTE(RIGHT(LEFT(ProjectInfoTable[[#This Row],[Proposed Equipment]],FIND(\"L\",ProjectInfoTable[[#This Row],[Proposed Equipment]],FIND(\"[\",ProjectInfoTable[[#This Row],[Proposed Equipment]],1))-1),2),\"[\",\"\")),IFERROR(LEFT(RIGHT(ProjectInfoTable[[#This Row],[Proposed Equipment]],LEN(ProjectInfoTable[[#This Row],[Proposed Equipment]])-FIND(\"-lamp\",ProjectInfoTable[[#This Row],[Proposed Equipment]],1)+2),1),1)))))","v":""},{"$f":"IF(ProjectInfoTable[[#This Row],[Proposed Equipment]]=\"\",\"\",IF(ProjectInfoTable[[#This Row],[Measure Selection]]=\"\",0,IFERROR(\n\nIF(ISNUMBER(FIND(\"W]\",ProjectInfoTable[[#This Row],[Proposed Equipment]])),\nRIGHT(MID(ProjectInfoTable[[#This Row],[Proposed Equipment]],FIND(\"W]\",ProjectInfoTable[[#This Row],[Proposed Equipment]],FIND(\"[\",ProjectInfoTable[[#This Row],[Proposed Equipment]]))-7,7),\nLEN(MID(ProjectInfoTable[[#This Row],[Proposed Equipment]],FIND(\"W]\",ProjectInfoTable[[#This Row],[Proposed Equipment]],FIND(\"[\",ProjectInfoTable[[#This Row],[Proposed Equipment]]))-7,7)) -\nIFERROR(FIND(\" - \",MID(ProjectInfoTable[[#This Row],[Proposed Equipment]],FIND(\"W]\",ProjectInfoTable[[#This Row],[Proposed Equipment]],FIND(\"[\",ProjectInfoTable[[#This Row],[Proposed Equipment]]))-7,7))+2,\nFIND(\"[\",MID(ProjectInfoTable[[#This Row],[Proposed Equipment]],FIND(\"W]\",ProjectInfoTable[[#This Row],[Proposed Equipment]],FIND(\"[\",ProjectInfoTable[[#This Row],[Proposed Equipment]]))-7,7)))),\n\nIF(ISNUMBER(FIND(\"[\",MID(ProjectInfoTable[[#This Row],[Proposed Equipment]],FIND(\"W \",ProjectInfoTable[[#This Row],[Proposed Equipment]],FIND(\"[\",ProjectInfoTable[[#This Row],[Proposed Equipment]]))-7,7))),\nRIGHT(MID(ProjectInfoTable[[#This Row],[Proposed Equipment]],FIND(\"W \",ProjectInfoTable[[#This Row],[Proposed Equipment]],FIND(\"[\",ProjectInfoTable[[#This Row],[Proposed Equipment]]))-7,7),\nLEN(MID(ProjectInfoTable[[#This Row],[Proposed Equipment]],FIND(\"W \",ProjectInfoTable[[#This Row],[Proposed Equipment]],FIND(\"[\",ProjectInfoTable[[#This Row],[Proposed Equipment]]))-7,7)) -\nIFERROR(FIND(\" - \",MID(ProjectInfoTable[[#This Row],[Proposed Equipment]],FIND(\"W \",ProjectInfoTable[[#This Row],[Proposed Equipment]],FIND(\"[\",ProjectInfoTable[[#This Row],[Proposed Equipment]]))-7,7))+2,\nFIND(\"[\",MID(ProjectInfoTable[[#This Row],[Proposed Equipment]],FIND(\"W \",ProjectInfoTable[[#This Row],[Proposed Equipment]],FIND(\"[\",ProjectInfoTable[[#This Row],[Proposed Equipment]]))-7,7)))),\n\nRIGHT(MID(ProjectInfoTable[[#This Row],[Proposed Equipment]],FIND(\"W \",ProjectInfoTable[[#This Row],[Proposed Equipment]],FIND(\"[\",ProjectInfoTable[[#This Row],[Proposed Equipment]]))-7,7),\nLEN(MID(ProjectInfoTable[[#This Row],[Proposed Equipment]],FIND(\"W \",ProjectInfoTable[[#This Row],[Proposed Equipment]],FIND(\"[\",ProjectInfoTable[[#This Row],[Proposed Equipment]]))-7,7)) -\nFIND(\" - \",MID(ProjectInfoTable[[#This Row],[Proposed Equipment]],FIND(\"W \",ProjectInfoTable[[#This Row],[Proposed Equipment]],FIND(\"[\",ProjectInfoTable[[#This Row],[Proposed Equipment]]))-7,7))-2\n))),0)))","v":""},{"$f":"IF(ProjectInfoTable[[#This Row],[Proposed Equipment]]=\"\",\"\",IFERROR(ProjectInfoTable[[#This Row],[Lamps (Proposed)]]*ProjectInfoTable[[#This Row],[Lamp W (Proposed)]],\"\"))","v":""},{"$f":"IF(ProjectInfoTable[[#This Row],[Proposed Equipment]]=\"\",\"\",IFERROR(ProjectInfoTable[[#This Row],[Quantity (Proposed)]]*ProjectInfoTable[[#This Row],[Fixture W (Proposed)]],\"\"))","v":""},{"$f":"IFERROR(INDEX(OperatingHours_List,MATCH(ProjectInfoTable[[#This Row],[OpSch]],OperatingSchedules_List,0))*ProjectInfoTable[[#This Row],[Space W (Proposed)]]/1000,\"\")","v":""},{"$f":"IF(OR(ISNUMBER(FIND(\"Controls Only\",ProjectInfoTable[[#This Row],[Proposed Equipment]],1)),ProjectInfoTable[[#This Row],[ControlsOnly]]=\"Re-Commissioning\"),\"Controls Only\",IFERROR(INDEX(OperatingHours_List,MATCH(ProjectInfoTable[[#This Row],[OpSch]],OperatingSchedules_List,0))*ProjectInfoTable[[#This Row],[Space W (Proposed)]]/1000*(IFERROR(INDEX(ControlsLookup[],MATCH(SUBSTITUTE(RIGHT(ProjectInfoTable[[#This Row],[Proposed Equipment]],LEN(ProjectInfoTable[[#This Row],[Proposed Equipment]])-FIND(\"]\",ProjectInfoTable[[#This Row],[Proposed Equipment]],1)-3),\" reused\",\"\"),ControlsLookup[Controls],0),MATCH(\"CSF_\"&ProjectState,ControlsLookup[#Headers],0)),0))*-1,\"\"))","v":""},{"$f":"IF(OR(ProjectInfoTable[[#This Row],[Fixture kWh (Proposed)]]=\"\",ProjectInfoTable[[#This Row],[Control kWh (Proposed)]]=\"\"),\"\",IFERROR(ProjectInfoTable[[#This Row],[Fixture kWh (Proposed)]]+ProjectInfoTable[[#This Row],[Control kWh (Proposed)]],0))","v":""},{"$f":"IF(\n OR(\n  ProjectInfoTable[[#This Row],[Proposed Equipment]]=\"\",\n  ProjectInfoTable[[#This Row],[Quantity (Proposed)]]=\"\"\n ),\n \"\",\n IF(\n  AND(\n   OR(\n    AND(\n     ProjectState=\"UT\",\n     RateSchedule=12\n    ),\n    AND(\n     ProjectState=\"ID\",\n     RateSchedule=12\n    ),\n    AND(\n     ProjectState=\"WY\",\n     RateSchedule=58\n    )\n   ),\n   ISNUMBER(FIND(\"Street:\",ProjectInfoTable[[#This Row],[Existing Equipment]],1))\n  ),\n  IF(\n   AND(\n    RateSchedule=53,\n    ISNUMBER(FIND(\"LED\",ProjectInfoTable[[#This Row],[Proposed Equipment]],1))\n   ),\n   ProjectInfoTable[[#This Row],[Fixture kWh (Proposed)]]\n   *\n   INDEX(\n    INDIRECT(\"RateSchedules_\"&ProjectState&\"_Table[kWh Rate]\"),\n    MATCH(RateSchedule,INDIRECT(\"RateSchedules_\"&ProjectState&\"_Table[Rate Schedule]\"),0)\n   ),\n   IFERROR(INDEX(\n    StreetLightingRates_Table[],\n    MATCH(\"LED\"&IF(AND(ProjectInfoTable[[#This Row],[Fixture W (Proposed)]]>0,ProjectInfoTable[[#This Row],[Fixture W (Proposed)]]<=70),70,IF(AND(ProjectInfoTable[[#This Row],[Fixture W (Proposed)]]>70,ProjectInfoTable[[#This Row],[Fixture W (Proposed)]]<=100),100,IF(AND(ProjectInfoTable[[#This Row],[Fixture W (Proposed)]]>100,ProjectInfoTable[[#This Row],[Fixture W (Proposed)]]<=150),150,IF(AND(ProjectInfoTable[[#This Row],[Fixture W (Proposed)]]>150,ProjectInfoTable[[#This Row],[Fixture W (Proposed)]]<=200),200,IF(AND(ProjectInfoTable[[#This Row],[Fixture W (Proposed)]]>200,ProjectInfoTable[[#This Row],[Fixture W (Proposed)]]<=250),250,IF(AND(ProjectInfoTable[[#This Row],[Fixture W (Proposed)]]>250,ProjectInfoTable[[#This Row],[Fixture W (Proposed)]]<=400),400,\"\")))))),StreetLightingRates_Table[TechWattage],0),\n    MATCH(ProjectState&RateSchedule,StreetLightingRates_Table[#Headers],0)\n   )\n   *ProjectInfoTable[[#This Row],[Lamps (Proposed)]]*ProjectInfoTable[[#This Row],[Quantity (Proposed)]]*12,\n  ProjectInfoTable[[#This Row],[Space kWh (Proposed)]]*INDEX(INDIRECT(\"RateSchedules_\"&ProjectState&\"_Table[kWh Rate]\"),MATCH(RateSchedule,INDIRECT(\"RateSchedules_\"&ProjectState&\"_Table[Rate Schedule]\"),0)))),\n  IFERROR(ProjectInfoTable[[#This Row],[Space kWh (Proposed)]]*INDEX(INDIRECT(\"RateSchedules_\"&ProjectState&\"_Table[kWh Rate]\"),MATCH(RateSchedule,INDIRECT(\"RateSchedules_\"&ProjectState&\"_Table[Rate Schedule]\"),0)),0)\n  +\n  IF(OR(ISNUMBER(FIND(\"Exterior:\",ProjectInfoTable[[#This Row],[Existing Equipment]],1)),ISNUMBER(FIND(\"Street:\",ProjectInfoTable[[#This Row],[Existing Equipment]],1))),0,IFERROR(ProjectInfoTable[[#This Row],[Space W (Proposed)]]/1000*12*DDF*INDEX(INDIRECT(\"RateSchedules_\"&ProjectState&\"_Table[kW Rate]\"),MATCH(RateSchedule,INDIRECT(\"RateSchedules_\"&ProjectState&\"_Table[Rate Schedule]\"),0)),0))\n )\n)","v":""},{"$f":"IF(ProjectInfoTable[[#This Row],[Measure Selection]]=\"\",0,IF(ProjectType=\"Retrofit\",IFERROR((ProjectInfoTable[[#This Row],[Space W (Existing, Actual)]]-ProjectInfoTable[[#This Row],[Space W (Proposed)]])/ProjectInfoTable[[#This Row],[Space W (Existing, Actual)]],\"\"),IF(AND(ProjectInfoTable[[#This Row],[Proposed Equipment]]=\"\",ProjectInfoTable[[#This Row],[Quantity (Proposed)]]=\"\"),\"\",IFERROR((ProjectInfoTable[[#This Row],[Space W (Existing, Stipulated)]]-ProjectInfoTable[[#This Row],[Space W (Proposed)]])/ProjectInfoTable[[#This Row],[Space W (Existing, Stipulated)]],\"n/a\"))))","v":""},{"$f":"IF(ProjectInfoTable[[#This Row],[Measure Selection]]=\"\",0,IF(ProjectType=\"Retrofit\",IFERROR((ProjectInfoTable[[#This Row],[Space W (Existing, Stipulated)]]-ProjectInfoTable[[#This Row],[Space W (Proposed)]])/ProjectInfoTable[[#This Row],[Space W (Existing, Stipulated)]],\"\"),ProjectInfoTable[[#This Row],[% Wattage Reduction (Actual)]]))","v":""},{"$f":"IFERROR(IF(OR(ProjectInfoTable[[#This Row],[Measure Selection]]=\"\",ProjectInfoTable[[#This Row],[ControlsOnly]]=\"Re-Commissioning\"),0,IF(AND(ProjectType=\"Retrofit\",LEFT(ProjectInfoTable[[#This Row],[Existing Equipment]],FIND(\": \",ProjectInfoTable[[#This Row],[Existing Equipment]],1)-1)<>\"Interior\"),0,((ProjectInfoTable[[#This Row],[Space W (Existing, Actual)]]-ProjectInfoTable[[#This Row],[Space W (Proposed)]])/1000*DDF)-IF(ProjectInfoTable[[#This Row],[Midstream Measure Name]]<>\"\",IFERROR(ProjectInfoTable[[#This Row],[kW Per Unit (Midstream)]]*ProjectInfoTable[[#This Row],[Quantity]]*ProjectInfoTable[[#This Row],[No. of TRL Units]],0),0))),\"\")","v":""},{"$f":"IFERROR(IF(OR(ProjectInfoTable[[#This Row],[Measure Selection]]=\"\",ProjectInfoTable[[#This Row],[ControlsOnly]]=\"Re-Commissioning\"),0,IF(AND(ISNUMBER(VALUE(ProjectInfoTable[[#This Row],[kW Per Unit]])),ProjectInfoTable[[#This Row],[kW Per Unit]]<>0),ROUND(ProjectInfoTable[[#This Row],[kW Per Unit]]*ProjectInfoTable[[#This Row],[Quantity]]*ProjectInfoTable[[#This Row],[No. of TRL Units]],2),IF(OR(AND(ProjectType=\"Retrofit\",LEFT(ProjectInfoTable[[#This Row],[Existing Equipment]],FIND(\": \",ProjectInfoTable[[#This Row],[Existing Equipment]],1)-1)<>\"Interior\"),AND(ProjectInfoTable[[#This Row],[Incentives Per Unit]]=0,INDEX(StipulatedSavingsYesNo_Table[Stipulated Savings?],MATCH(ProjectState,StipulatedSavingsYesNo_Table[State],0))=\"No\")),0,IF(ISNUMBER(FIND(\"Controls Only\",ProjectInfoTable[[#This Row],[Proposed Equipment]],1)),0,ROUND(((ProjectInfoTable[[#This Row],[Space W (Existing, Stipulated)]]-ProjectInfoTable[[#This Row],[Space W (Proposed)]])/1000*DDF)-IF(ProjectInfoTable[[#This Row],[Midstream Measure Name]]<>\"\",IFERROR(ProjectInfoTable[[#This Row],[kW Per Unit (Midstream)]]*ProjectInfoTable[[#This Row],[Quantity]]*ProjectInfoTable[[#This Row],[No. of TRL Units]],0),0),2))))),\"\")","v":""},{"$f":"IFERROR(IF(OR(ProjectInfoTable[[#This Row],[Control kWh (Proposed)]]=\"Controls Only\",ProjectInfoTable[[#This Row],[Measure Selection]]=\"\"),0,ROUND((ProjectInfoTable[[#This Row],[Fixture kWh (Existing, Actual)]]-ProjectInfoTable[[#This Row],[Fixture kWh (Proposed)]])*IF(VALUE(SpaceTypesInfo_Table[[#Totals],[HVAC Effects]])=0,1,1+VALUE(SpaceTypesInfo_Table[[#Totals],[HVAC Effects]])),0)),\"\")","v":""},{"$f":"IFERROR(IF(ProjectInfoTable[[#This Row],[Control kWh (Proposed)]]=\"Controls Only\",ROUND(IFERROR(INDEX(OperatingHours_List,MATCH(ProjectInfoTable[[#This Row],[OpSch]],OperatingSchedules_List,0))*IF(OR(ProjectType <> \"Retrofit\",ProjectInfoTable[[#This Row],[Space W (Proposed)]]>0),ProjectInfoTable[[#This Row],[Space W (Proposed)]],ProjectInfoTable[[#This Row],[Space W (Existing, Actual)]])/1000*(IFERROR(INDEX(ControlsLookup[],MATCH(RIGHT(ProjectInfoTable[[#This Row],[Proposed Equipment]],LEN(ProjectInfoTable[[#This Row],[Proposed Equipment]])-FIND(\"]\",ProjectInfoTable[[#This Row],[Proposed Equipment]],1)-3),ControlsLookup[Controls],0),MATCH(\"CSF_\"&ProjectState,ControlsLookup[#Headers],0)),0))*IF(VALUE(SpaceTypesInfo_Table[[#Totals],[HVAC Effects]])=0,1,1+VALUE(SpaceTypesInfo_Table[[#Totals],[HVAC Effects]])),\"\"),0),ROUND(IFERROR((ProjectInfoTable[[#This Row],[Control kWh (Existing, Actual)]]-ProjectInfoTable[[#This Row],[Control kWh (Proposed)]])*IF(VALUE(SpaceTypesInfo_Table[[#Totals],[HVAC Effects]])=0,1,1+VALUE(SpaceTypesInfo_Table[[#Totals],[HVAC Effects]])),\"\"),0)),\"\")","v":""},{"$f":"IF(OR(ProjectInfoTable[[#This Row],[Proposed Equipment]]=\"\",ProjectInfoTable[[#This Row],[Quantity (Proposed)]]=\"\"),\"\",IF(ProjectInfoTable[[#This Row],[Fixture Measure]]=\"\",0,IF(AND(ProjectInfoTable[[#This Row],[Incentives Per Unit]]=0,INDEX(StipulatedSavingsYesNo_Table[Stipulated Savings?],MATCH(ProjectState,StipulatedSavingsYesNo_Table[State],0))=\"No\"),0,ProjectInfoTable[[#This Row],[Total   kWh/yr Savings (Actual)]]-ProjectInfoTable[[#This Row],[Control Measure kWh/yr Savings (Actual)]])))","v":""},{"$f":"IF(OR(ProjectInfoTable[[#This Row],[Proposed Equipment]]=\"\",ProjectInfoTable[[#This Row],[Quantity (Proposed)]]=\"\"),\"\",IF(ProjectInfoTable[[#This Row],[Control Measure]]=\"\",0,ProjectInfoTable[[#This Row],[Control kWh/yr Savings (Actual)]]))","v":""},{"$f":"IF(AND(ProjectInfoTable[[#This Row],[Incentives Per Unit]]=0,INDEX(StipulatedSavingsYesNo_Table[Stipulated Savings?],MATCH(ProjectState,StipulatedSavingsYesNo_Table[State],0))=\"No\"),ProjectInfoTable[[#This Row],[Fixture kWh/yr Savings (Actual)]]+IF(ProjectInfoTable[[#This Row],[Control Measure kWh/yr Savings (Actual)]]=0,0,ProjectInfoTable[[#This Row],[Control kWh/yr Savings (Actual)]]),IF(AND(ProjectInfoTable[[#This Row],[Fixture kWh/yr Savings (Actual)]]=\"\",ProjectInfoTable[[#This Row],[Control kWh/yr Savings (Actual)]]=\"\"),\"\",ROUND(IF(ProjectInfoTable[[#This Row],[Fixture kWh/yr Savings (Actual)]]=\"\",0,ProjectInfoTable[[#This Row],[Fixture kWh/yr Savings (Actual)]])+IF(ProjectInfoTable[[#This Row],[Control kWh/yr Savings (Actual)]]=\"\",0,ProjectInfoTable[[#This Row],[Control kWh/yr Savings (Actual)]])-IF(ProjectInfoTable[[#This Row],[Midstream Measure Name]]<>\"\",IFERROR(ProjectInfoTable[[#This Row],[kWh Per Unit (Midstream)]]*ProjectInfoTable[[#This Row],[Quantity]]*ProjectInfoTable[[#This Row],[No. of TRL Units]],0),0),0)))","v":""},{"$f":"IFERROR(IF(OR(ProjectInfoTable[[#This Row],[Measure Selection]]=\"\",ProjectInfoTable[[#This Row],[ControlsOnly]]=\"Re-Commissioning\"),0,IF(AND(ProjectInfoTable[[#This Row],[Incentives Per Unit]]=0,INDEX(StipulatedSavingsYesNo_Table[Stipulated Savings?],MATCH(ProjectState,StipulatedSavingsYesNo_Table[State],0))=\"No\"),0,IF(ISNUMBER(FIND(\"Controls Only\",ProjectInfoTable[[#This Row],[Proposed Equipment]],1)),0,ROUND((ProjectInfoTable[[#This Row],[Fixture kWh (Existing, Stipulated)]]-ProjectInfoTable[[#This Row],[Fixture kWh (Proposed)]])*IF(VALUE(SpaceTypesInfo_Table[[#Totals],[HVAC Effects]])=0,1,1+VALUE(SpaceTypesInfo_Table[[#Totals],[HVAC Effects]])),0)))),\"\")","v":""},{"$f":"IFERROR(IF(ProjectInfoTable[[#This Row],[Control kWh (Proposed)]]=\"Controls Only\",ROUND(IFERROR(INDEX(OperatingHours_List,MATCH(ProjectInfoTable[[#This Row],[OpSch]],OperatingSchedules_List,0))*IF(OR(ProjectType <> \"Retrofit\",ProjectInfoTable[[#This Row],[Space W (Proposed)]]>0),ProjectInfoTable[[#This Row],[Space W (Proposed)]],ProjectInfoTable[[#This Row],[Space W (Existing, Stipulated)]])/1000*(IFERROR(INDEX(ControlsLookup[],MATCH(RIGHT(ProjectInfoTable[[#This Row],[Proposed Equipment]],LEN(ProjectInfoTable[[#This Row],[Proposed Equipment]])-FIND(\"]\",ProjectInfoTable[[#This Row],[Proposed Equipment]],1)-3),ControlsLookup[Controls],0),MATCH(\"CSF_\"&ProjectState,ControlsLookup[#Headers],0)),0))*IF(VALUE(SpaceTypesInfo_Table[[#Totals],[HVAC Effects]])=0,1,1+VALUE(SpaceTypesInfo_Table[[#Totals],[HVAC Effects]])),\"\"),0),ROUND(IFERROR((ProjectInfoTable[[#This Row],[Control kWh (Existing, Stipulated)]]-ProjectInfoTable[[#This Row],[Control kWh (Proposed)]])*IF(VALUE(SpaceTypesInfo_Table[[#Totals],[HVAC Effects]])=0,1,1+VALUE(SpaceTypesInfo_Table[[#Totals],[HVAC Effects]])),INDEX(ControlsLookup[],MATCH(RIGHT(ProjectInfoTable[[#This Row],[Proposed Equipment]],LEN(ProjectInfoTable[[#This Row],[Proposed Equipment]])-FIND(\"-\",ProjectInfoTable[[#This Row],[Proposed Equipment]],LEN(ProjectInfoTable[[#This Row],[Proposed Equipment]])-15)-1),ControlsLookup[Controls],0),MATCH(\"CSF_\"&ProjectState,ControlsLookup[#Headers],0))*IF(NOT(ISNUMBER(VALUE(ProjectInfoTable[[#This Row],[kWh Per Unit]]))),ProjectInfoTable[[#This Row],[Fixture kWh/yr Savings (Stipulated)]],ProjectInfoTable[[#This Row],[kWh Per Unit]]*ProjectInfoTable[[#This Row],[Quantity]]*ProjectInfoTable[[#This Row],[No. of TRL Units]])),0)),IF(OR(ProjectType=\"New Construction\",ProjectType=\"Major Renovation\"),IF(ProjectInfoTable[[#This Row],[Control kWh (Proposed)]]=\"\",\"\",0),\"\"))","v":""},{"$f":"IF(OR(ProjectInfoTable[[#This Row],[Proposed Equipment]]=\"\",ProjectInfoTable[[#This Row],[Quantity (Proposed)]]=\"\"),\"\",IF(ProjectInfoTable[[#This Row],[Fixture Measure]]=\"\",0,IF(AND(ProjectInfoTable[[#This Row],[Incentives Per Unit]]=0,INDEX(StipulatedSavingsYesNo_Table[Stipulated Savings?],MATCH(ProjectState,StipulatedSavingsYesNo_Table[State],0))=\"No\"),0,ProjectInfoTable[[#This Row],[Total   kWh/yr Savings (Stipulated)]]-ProjectInfoTable[[#This Row],[Control Measure kWh/yr Savings (Stipulated)]])))","v":""},{"$f":"IF(OR(ProjectInfoTable[[#This Row],[Proposed Equipment]]=\"\",ProjectInfoTable[[#This Row],[Quantity (Proposed)]]=\"\"),\"\",IF(ProjectInfoTable[[#This Row],[Control Measure]]=\"\",0,IF(OR(ProjectType=\"New Construction\",ProjectType=\"Major Renovation\"),IFERROR(ROUND(ProjectInfoTable[[#This Row],[Control kWh Per Unit]]*ProjectInfoTable[[#This Row],[Control Quantity]]*ProjectInfoTable[[#This Row],[Control No. of TRL Units]],0),ProjectInfoTable[[#This Row],[Control kWh/yr Savings (Stipulated)]]),ProjectInfoTable[[#This Row],[Control kWh/yr Savings (Stipulated)]])))","v":""},{"$f":"IF(AND(ProjectInfoTable[[#This Row],[Incentives Per Unit]]=0,INDEX(StipulatedSavingsYesNo_Table[Stipulated Savings?],MATCH(ProjectState,StipulatedSavingsYesNo_Table[State],0))=\"No\"),ProjectInfoTable[[#This Row],[Fixture kWh/yr Savings (Stipulated)]]+IF(ProjectInfoTable[[#This Row],[Control Measure kWh/yr Savings (Stipulated)]]=0,0,ProjectInfoTable[[#This Row],[Control kWh/yr Savings (Stipulated)]]),IF(OR(ISNUMBER(VALUE(ProjectInfoTable[[#This Row],[kWh Per Unit]])),ISNUMBER(VALUE(ProjectInfoTable[[#This Row],[Control kWh Per Unit]]))),ROUND(IFERROR(ProjectInfoTable[[#This Row],[kWh Per Unit]]*ProjectInfoTable[[#This Row],[Quantity]]*ProjectInfoTable[[#This Row],[No. of TRL Units]],0)+IFERROR(ProjectInfoTable[[#This Row],[Control kWh Per Unit]]*ProjectInfoTable[[#This Row],[Control Quantity]]*ProjectInfoTable[[#This Row],[Control No. of TRL Units]],ProjectInfoTable[[#This Row],[Control kWh/yr Savings (Stipulated)]]),0),IF(AND(ProjectInfoTable[[#This Row],[Fixture kWh/yr Savings (Stipulated)]]=\"\",ProjectInfoTable[[#This Row],[Control kWh/yr Savings (Stipulated)]]=\"\"),\"\",ROUND(IF(ProjectInfoTable[[#This Row],[Fixture kWh/yr Savings (Stipulated)]]=\"\",0,ProjectInfoTable[[#This Row],[Fixture kWh/yr Savings (Stipulated)]])+IF(ProjectInfoTable[[#This Row],[Control kWh/yr Savings (Stipulated)]]=\"\",0,ProjectInfoTable[[#This Row],[Control kWh/yr Savings (Stipulated)]])-IF(ProjectInfoTable[[#This Row],[Midstream Measure Name]]<>\"\",IFERROR(ProjectInfoTable[[#This Row],[kWh Per Unit (Midstream)]]*ProjectInfoTable[[#This Row],[Quantity]]*ProjectInfoTable[[#This Row],[No. of TRL Units]],0),0),0))))","v":""},{"$f":"IF(OR(ISNUMBER(FIND(\"Midstream\",ProjectInfoTable[[#This Row],[Fixture Measure]])),ISNUMBER(FIND(\"SBDI\",ProjectInfoTable[[#This Row],[Fixture Measure]])),ISNUMBER(FIND(\"Small Bu\",ProjectInfoTable[[#This Row],[Fixture Measure]]))),\n\nIF(ProjectInfoTable[[#This Row],[Measure Selection]]=\"\",0,\n\nIF(ISNUMBER(FIND(\"/U]\",ProjectInfoTable[[#This Row],[Proposed Equipment]])),IFERROR(MID(ProjectInfoTable[[#This Row],[Proposed Equipment]],FIND(\"$\",ProjectInfoTable[[#This Row],[Proposed Equipment]],1)+1,FIND(\"/U]\",ProjectInfoTable[[#This Row],[Proposed Equipment]],1)-FIND(\"$\",ProjectInfoTable[[#This Row],[Proposed Equipment]],1)-1)*ProjectInfoTable[[#This Row],[Lamps (Proposed)]]*ProjectInfoTable[[#This Row],[Quantity (Proposed)]],0),\nIF(ISNUMBER(FIND(\"/U \",ProjectInfoTable[[#This Row],[Proposed Equipment]])),IFERROR(MID(ProjectInfoTable[[#This Row],[Proposed Equipment]],FIND(\"$\",ProjectInfoTable[[#This Row],[Proposed Equipment]],1)+1,FIND(\"/U \",ProjectInfoTable[[#This Row],[Proposed Equipment]],1)-FIND(\"$\",ProjectInfoTable[[#This Row],[Proposed Equipment]],1)-1)*ProjectInfoTable[[#This Row],[Lamps (Proposed)]]*ProjectInfoTable[[#This Row],[Quantity (Proposed)]],0),\nIFERROR(ProjectInfoTable[[#This Row],[Fixture Measure kWh/yr Savings (Stipulated)]]/SUM(ProjectInfoTable[Total   kWh/yr Savings (Stipulated)])*ProjectCost_Total,\"\")))),\"\")","v":""},{"$f":"IFERROR(IF(ProjectInfoTable[[#This Row],[Fixture Measure kWh/yr Savings (Stipulated)]]=0,0,IF(ProjectType=\"Retrofit\",IF(OR(ISNUMBER(FIND(\"Midstream\",ProjectInfoTable[[#This Row],[Fixture Measure]])),ISNUMBER(FIND(\"SBDI\",ProjectInfoTable[[#This Row],[Fixture Measure]])),ISNUMBER(FIND(\"Small Bu\",ProjectInfoTable[[#This Row],[Fixture Measure]]))),ProjectInfoTable[[#This Row],[Measure Cost (Direct)]],IFERROR(ProjectInfoTable[[#This Row],[Fixture Measure kWh/yr Savings (Stipulated)]]/kWhSavings_Typical_Stipulated*(ProjectCost_Total-SUM(ProjectInfoTable[Measure Cost (Direct)])),\"\")),IF(ProjectInfoTable[[#This Row],[Proposed Equipment]]=\"\",\"\",IFERROR(SpaceTypesInfo_Table[[#Totals],[NCMR Int Cost]]*ProjectInfoTable[[#This Row],[Fixture Measure kWh/yr Savings (Stipulated)]]/SUMIFS(ProjectInfoTable[Total   kWh/yr Savings (Stipulated)],ProjectInfoTable[Proposed Equipment],\"*Interior*\"),0)))),\"\")","v":""},{"$f":"IFERROR(\n IF(\n  ProjectInfoTable[[#This Row],[Control Measure kWh/yr Savings (Stipulated)]]=0,\n  0,\n  IF(\n   ProjectType=\"Retrofit\",\n    IFERROR(\n     ProjectInfoTable[[#This Row],[Control Measure kWh/yr Savings (Stipulated)]]\n     /\n     SUMIFS(ProjectInfoTable[Control Measure kWh/yr Savings (Stipulated)],ProjectInfoTable[Control Measure],\"<>\"\"\")\n     *\n     (ProjectCost_Total-SUM(ProjectInfoTable[Fixture Cost (Allocated)])),\n     \"\"\n    ),\nROUND(\n    IF(\n     ProjectInfoTable[[#This Row],[Proposed Equipment]]=\"\",\n     \"\",\n     IFERROR(\n      SpaceTypesInfo_Table[[#Totals],[NCMR Int Cost]]\n      *\n      ProjectInfoTable[[#This Row],[Control Measure kWh/yr Savings (Stipulated)]]\n      /\n      SUMIFS(ProjectInfoTable[Total   kWh/yr Savings (Stipulated)],ProjectInfoTable[Proposed Equipment],\"*Interior*\"),\n      0\n     )\n    ),\n    2\n   )\n  )\n ),\n \"\"\n)","v":""},{"$f":"IF(AND(ProjectInfoTable[[#This Row],[Fixture Cost (Allocated)]]=\"\",ProjectInfoTable[[#This Row],[Control Cost (Allocated)]]=\"\"),\"\",SUM(ProjectInfoTable[[#This Row],[Fixture Cost (Allocated)]:[Control Cost (Allocated)]]))","v":""},{"$f":"IFERROR(IF(OR(ProjectInfoTable[[#This Row],[Proposed Equipment]]=\"\",ProjectInfoTable[[#This Row],[Quantity (Proposed)]]=\"\"),\"\",IF(OR(ProjectInfoTable[[#This Row],[Measure Selection]]=\"\",ProjectInfoTable[[#This Row],[Control kWh (Proposed)]]=\"Controls Only\"),0,IF(NOT(ISNUMBER(FIND(\"Retrofit\",ProjectType,1))),ProjectInfoTable[[#This Row],[Fixture Energy Cost Savings (Stipulated)]],IF(AND(ProjectInfoTable[[#This Row],[Fixture Measure]]=\"\",ProjectInfoTable[[#This Row],[Control Measure]]<>\"\"),0,ROUND((ProjectInfoTable[[#This Row],[Total Energy Costs (Existing, Actual)]]-ProjectInfoTable[[#This Row],[Total Energy Costs (Proposed)]]),2))))),\"\")","v":""},{"$f":"IFERROR(IF(OR(ProjectInfoTable[[#This Row],[Proposed Equipment]]=\"\",ProjectInfoTable[[#This Row],[Quantity (Proposed)]]=\"\"),\"\",\n\nIF(ProjectInfoTable[[#This Row],[Control kWh (Proposed)]]=\"Controls Only\",ProjectInfoTable[[#This Row],[Control Measure kWh/yr Savings (Actual)]]*INDEX(INDIRECT(\"RateSchedules_\"&ProjectState&\"_Table[kWh Rate]\"),\nMATCH(RateSchedule,INDIRECT(\"RateSchedules_\"&ProjectState&\"_Table[Rate Schedule]\"),0)),\n\nIF(NOT(ISNUMBER(FIND(\"Retrofit\",ProjectType,1))),ProjectInfoTable[[#This Row],[Control Energy Cost Savings (Stipulated)]],IF(AND(ProjectInfoTable[[#This Row],[Fixture Measure]]=\"\",ProjectInfoTable[[#This Row],[Control Measure]]<>\"\"),ROUND((ProjectInfoTable[[#This Row],[Total Energy Costs (Existing, Actual)]]-ProjectInfoTable[[#This Row],[Total Energy Costs (Proposed)]]),2),ROUND((ProjectInfoTable[[#This Row],[Total Energy Costs (Existing, Actual)]]-ProjectInfoTable[[#This Row],[Total Energy Costs (Proposed)]]),2)*(ProjectInfoTable[[#This Row],[Control Measure kWh/yr Savings (Actual)]]/ProjectInfoTable[[#This Row],[Total   kWh/yr Savings (Actual)]]))))),\"\")","v":""},{"$f":"IF(OR(ProjectInfoTable[[#This Row],[Proposed Equipment]]=\"\",ProjectInfoTable[[#This Row],[Quantity (Proposed)]]=\"\"),\"\",ROUND(ProjectInfoTable[[#This Row],[Fixture Energy Cost Savings (Actual)]]+ProjectInfoTable[[#This Row],[Control Energy Cost Savings (Actual)]],2))","v":""},{"$f":"IF(OR(ProjectInfoTable[[#This Row],[Proposed Equipment]]=\"\",ProjectInfoTable[[#This Row],[Quantity (Proposed)]]=\"\"),\"\",IF(OR(ISNUMBER(VALUE(ProjectInfoTable[[#This Row],[kWh Per Unit]])),ISNUMBER(VALUE(ProjectInfoTable[[#This Row],[kW Per Unit]]))),IFERROR(ProjectInfoTable[[#This Row],[Fixture Measure kWh/yr Savings (Stipulated)]]*INDEX(INDIRECT(\"RateSchedules_\"&ProjectState&\"_Table[kWh Rate]\"),MATCH(RateSchedule,INDIRECT(\"RateSchedules_\"&ProjectState&\"_Table[Rate Schedule]\"),0)),0)+IFERROR(ProjectInfoTable[[#This Row],[kW Demand Reduction (Stipulated)]]/1000*12*INDEX(INDIRECT(\"RateSchedules_\"&ProjectState&\"_Table[kW Rate]\"),MATCH(RateSchedule,INDIRECT(\"RateSchedules_\"&ProjectState&\"_Table[Rate Schedule]\"),0)),0),IFERROR(ROUND((ProjectInfoTable[[#This Row],[Total Energy Costs (Existing, Stipulated)]]-ProjectInfoTable[[#This Row],[Total Energy Costs (Proposed)]])*ProjectInfoTable[[#This Row],[Fixture Measure kWh/yr Savings (Stipulated)]]/ProjectInfoTable[[#This Row],[Total   kWh/yr Savings (Stipulated)]],2),0)))","v":""},{"$f":"IF(OR(ProjectInfoTable[[#This Row],[Proposed Equipment]]=\"\",ProjectInfoTable[[#This Row],[Quantity (Proposed)]]=\"\"),\"\",\nIF(ProjectInfoTable[[#This Row],[Control kWh (Proposed)]]=\"Controls Only\",ProjectInfoTable[[#This Row],[Control Measure kWh/yr Savings (Stipulated)]]*INDEX(INDIRECT(\"RateSchedules_\"&ProjectState&\"_Table[kWh Rate]\"),\nMATCH(RateSchedule,INDIRECT(\"RateSchedules_\"&ProjectState&\"_Table[Rate Schedule]\"),0)),IF(OR(ISNUMBER(VALUE(ProjectInfoTable[[#This Row],[Control kWh Per Unit]])),\nISNUMBER(VALUE(ProjectInfoTable[[#This Row],[Control kW Per Unit]]))),IFERROR(ProjectInfoTable[[#This Row],[Control Measure kWh/yr Savings (Stipulated)]]*INDEX(INDIRECT(\"RateSchedules_\"&ProjectState&\"_Table[kWh Rate]\"),\nMATCH(RateSchedule,INDIRECT(\"RateSchedules_\"&ProjectState&\"_Table[Rate Schedule]\"),0)),0)+IFERROR(ProjectInfoTable[[#This Row],[kW Demand Reduction (Stipulated)]]/1000*12*\nINDEX(INDIRECT(\"RateSchedules_\"&ProjectState&\"_Table[kW Rate]\"),MATCH(RateSchedule,INDIRECT(\"RateSchedules_\"&ProjectState&\"_Table[Rate Schedule]\"),0)),0),\nIFERROR(ROUND((ProjectInfoTable[[#This Row],[Total Energy Costs (Existing, Stipulated)]]-ProjectInfoTable[[#This Row],[Total Energy Costs (Proposed)]])*ProjectInfoTable[[#This Row],[Control Measure kWh/yr Savings (Stipulated)]]/\nProjectInfoTable[[#This Row],[Total   kWh/yr Savings (Stipulated)]],2),0))))","v":""},{"$f":"IF(OR(ProjectInfoTable[[#This Row],[Proposed Equipment]]=\"\",ProjectInfoTable[[#This Row],[Quantity (Proposed)]]=\"\"),\"\",ROUND(ProjectInfoTable[[#This Row],[Fixture Energy Cost Savings (Stipulated)]]+ProjectInfoTable[[#This Row],[Control Energy Cost Savings (Stipulated)]],2))","v":""},{"$f":"IF(ProjectInfoTable[[#This Row],[OpSch]]=\"\",\"\",IF(OR(ProjectInfoTable[[#This Row],[Fixture Measure]]=\"\",ProjectInfoTable[[#This Row],[Eligible Fixture Measure]]<>TRUE),0,ProjectInfoTable[[#This Row],[Fixture Incentives (pre-capping)]])+IF(OR(ProjectInfoTable[[#This Row],[Control Measure]]=\"\",ProjectInfoTable[[#This Row],[Eligible Control Measure]]<>TRUE),0,ProjectInfoTable[[#This Row],[Control Incentives (pre-capping)]]))","v":""},{"$f":"IF(OR(ProjectInfoTable[[#This Row],[Fixture Measure]]<>\"\",ProjectInfoTable[[#This Row],[Control Measure]]<>\"\"),IF(ProjectInfoTable[[#This Row],[Fixture Incentives]]=\"\",0,ProjectInfoTable[[#This Row],[Fixture Incentives]])+IF(ProjectInfoTable[[#This Row],[Control Incentives]]=\"\",0,ProjectInfoTable[[#This Row],[Control Incentives]]),\"\")","v":""},null,{"$f":"IF(OR(ProjectInfoTable[[#This Row],[Fixture Measure]]=\"\",ProjectInfoTable[[#This Row],[OpSch]]=\"\",ProjectInfoTable[[#This Row],[Eligible Fixture Measure]]<>TRUE),\"\",\nIF(OR(ISNUMBER(FIND(\"SBDI\",ProjectInfoTable[[#This Row],[Fixture Measure]])),ISNUMBER(FIND(\"Small Bu\",ProjectInfoTable[[#This Row],[Fixture Measure]]))),IFERROR(0.75*ProjectInfoTable[[#This Row],[Fixture Cost (Allocated)]],\"cost error\"),\nIF(AND(OR(ProjectType=\"New Construction\",ProjectType=\"Major Renovation\"),LPDCodeToProposed<0.1,ISNUMBER(FIND(\"Interior\",ProjectInfoTable[[#This Row],[Proposed Equipment]],1))),0,IFERROR(ProjectInfoTable[[#This Row],[Incentives Per Unit]]*ProjectInfoTable[[#This Row],[Quantity]]*ProjectInfoTable[[#This Row],[No. of TRL Units]],\"TRL Error\"))))","v":""},{"$f":"IF(\n    OR(\n        ProjectInfoTable[[#This Row],[Fixture Measure]] = \"\",\n        ProjectInfoTable[[#This Row],[OpSch]] = \"\",\n        ProjectInfoTable[[#This Row],[Eligible Fixture Measure]] <> TRUE\n    ),\n    \"\",\n    IF(\n        OR(\n            ISNUMBER(FIND(\"SBDI\", ProjectInfoTable[[#This Row],[Fixture Measure]])),\n            ISNUMBER(FIND(\"Small Bu\", ProjectInfoTable[[#This Row],[Fixture Measure]]))\n        ),\n        IFERROR(\n            (Incentive_NonTypical / Incentive_NonTypical_PreCapped) * ProjectInfoTable[[#This Row],[Fixture Incentives (pre-capping)]],\n            \"\"\n        ),\n        IF(\n            AND(\n                ProjectType = \"Retrofit\",\n                ProjectState = \"UT\",\n                ISNUMBER(FIND(\"Post-Purchase\", ProjectInfoTable[[#This Row],[Fixture Measure]], 1))\n            ),\n            IFERROR(\n                MAX(\n                    MIN(\n                        ProjectInfoTable[[#This Row],[Fixture Incentives (pre-capping)]],\n                        ProjectInfoTable[[#This Row],[Fixture Cost (Allocated)]] * 0.7\n                    ),\n                    0\n                ),\n                0\n            ),\n            IF(\n                ProjectType = \"Retrofit\",\n                IF(\n                    ISNUMBER(FIND(\"Post-Purchase\", ProjectInfoTable[[#This Row],[Fixture Measure]], 1)),\n                    ProjectInfoTable[[#This Row],[Fixture Incentives (pre-capping)]],\n                    IFERROR(\n                        $BI$3 / $BH$3 * ProjectInfoTable[[#This Row],[Fixture Incentives (pre-capping)]],\n                        \"\"\n                    )\n                ),\n                IF(\n                    ISNUMBER(FIND(\"Interior\", ProjectInfoTable[[#This Row],[Proposed Equipment]], 1)),\n                    IF(\n                        LPDCodeToProposed > 0.1,\n                        ProjectInfoTable[[#This Row],[Fixture Incentives (pre-capping)]],\n                        0\n                    ),\n                    ProjectInfoTable[[#This Row],[Fixture Incentives (pre-capping)]]\n                )\n            )\n        )\n    )\n)","v":""},{"$f":"IF(OR(ProjectInfoTable[[#This Row],[Incentives Per Unit]]=\"\",ProjectInfoTable[[#This Row],[TRL Unit]]=\"\"),\"\",IF(ProjectInfoTable[[#This Row],[Eligible Fixture Measure]]<>TRUE,\"Invalid Effective Date\",\nIF(OR(ISNUMBER(FIND(\"SBDI\",ProjectInfoTable[[#This Row],[Fixture Measure]])),ISNUMBER(FIND(\"Small Bu\",ProjectInfoTable[[#This Row],[Fixture Measure]]))),\"$0.75 / dollar cost\",\nTEXT(ProjectInfoTable[[#This Row],[Incentives Per Unit]],\"$#,##0.00\")&\" / \"&IF(ProjectInfoTable[[#This Row],[Fixture Measure]]=\"\",\"\",IF(ProjectInfoTable[[#This Row],[TRL Unit]]=\"Measure\",IF(ISNUMBER(FIND(\"Relamp\",ProjectInfoTable[[#This Row],[Proposed Equipment]],1)),\"Lamp\",\"Fixture\"),ProjectInfoTable[[#This Row],[TRL Unit]])))))","v":""},{"$f":"IF(OR(ProjectInfoTable[[#This Row],[Proposed Equipment]]=\"\",ProjectInfoTable[[#This Row],[Quantity (Proposed)]]=\"\"),\"\",IFERROR(SUBSTITUTE(IF(ProjectType=\"Retrofit\",IF(OR(ISNUMBER(FIND(\"Controls On\",ProjectInfoTable[[#This Row],[Proposed Equipment]],1))),\"\",IF(OR(ProjectInfoTable[[#This Row],[Existing Equipment]]=\"\",ProjectInfoTable[[#This Row],[Proposed Equipment]]=\"\"),\"\",IF(ProjectState=\"UT\",IFERROR(IF(AlternativeEnergyOverride=\"Yes\",IFERROR(INDEX(INDIRECT(\"EquipmentTable_\"&\"Retrofit_\"&ProjectState&\"[#All]\"),MATCH(LEFT(ProjectInfoTable[[#This Row],[Proposed Equipment]],FIND(\"[\",ProjectInfoTable[[#This Row],[Proposed Equipment]],1)-2)&\" (Alt)\",INDIRECT(\"EquipmentTable_\"&\"Retrofit_\"&ProjectState&\"[equipmentProposed]\"),0)+1,MATCH(\"measureRetrofit_\"&LEFT(ProjectInfoTable[[#This Row],[Existing Equipment]],FIND(\":\",ProjectInfoTable[[#This Row],[Existing Equipment]],1)-1)&\"_\"&IF(IFERROR(INDEX(ControlsLookup[Rank],MATCH(RIGHT(ProjectInfoTable[[#This Row],[Proposed Equipment]],LEN(ProjectInfoTable[[#This Row],[Proposed Equipment]])-FIND(\"]\",ProjectInfoTable[[#This Row],[Proposed Equipment]],1)-3),ControlsLookup[Controls],0)),0)>IFERROR(INDEX(ControlsLookup[Rank],MATCH(RIGHT(ProjectInfoTable[[#This Row],[Existing Equipment]],LEN(ProjectInfoTable[[#This Row],[Existing Equipment]])-FIND(\"]\",ProjectInfoTable[[#This Row],[Existing Equipment]],1)-3),ControlsLookup[Controls],0)),0),INDEX(ControlsLookup[Controls Type],MATCH(LEFT(ProjectInfoTable[[#This Row],[Existing Equipment]],FIND(\":\",ProjectInfoTable[[#This Row],[Existing Equipment]],1)-1)&\"_\"&RIGHT(ProjectInfoTable[[#This Row],[Proposed Equipment]],LEN(ProjectInfoTable[[#This Row],[Proposed Equipment]])-FIND(\"]\",ProjectInfoTable[[#This Row],[Proposed Equipment]],1)-3),ControlsLookup[Controls Concatenate],0)),\"None\"),INDIRECT(\"EquipmentTable_\"&\"Retrofit_\"&ProjectState&\"[#Headers]\"),0)),INDEX(INDIRECT(\"EquipmentTable_\"&IF(ProjectType=\"Retrofit\",\"Retrofit_\",\"NCMR_\")&ProjectState&\"[#All]\"),MATCH(LEFT(ProjectInfoTable[[#This Row],[Proposed Equipment]],FIND(\"[\",ProjectInfoTable[[#This Row],[Proposed Equipment]],1)-2),INDIRECT(\"EquipmentTable_\"&\"Retrofit_\"&ProjectState&\"[equipmentProposed]\"),0)+1,MATCH(\"measureRetrofit_\"&LEFT(ProjectInfoTable[[#This Row],[Existing Equipment]],FIND(\":\",ProjectInfoTable[[#This Row],[Existing Equipment]],1)-1)&\"_\"&IF(IFERROR(INDEX(ControlsLookup[Rank],MATCH(RIGHT(ProjectInfoTable[[#This Row],[Proposed Equipment]],LEN(ProjectInfoTable[[#This Row],[Proposed Equipment]])-FIND(\"]\",ProjectInfoTable[[#This Row],[Proposed Equipment]],1)-3),ControlsLookup[Controls],0)),0)>IFERROR(INDEX(ControlsLookup[Rank],MATCH(RIGHT(ProjectInfoTable[[#This Row],[Existing Equipment]],LEN(ProjectInfoTable[[#This Row],[Existing Equipment]])-FIND(\"]\",ProjectInfoTable[[#This Row],[Existing Equipment]],1)-3),ControlsLookup[Controls],0)),0),INDEX(ControlsLookup[Controls Type],MATCH(LEFT(ProjectInfoTable[[#This Row],[Existing Equipment]],FIND(\":\",ProjectInfoTable[[#This Row],[Existing Equipment]],1)-1)&\"_\"&RIGHT(ProjectInfoTable[[#This Row],[Proposed Equipment]],LEN(ProjectInfoTable[[#This Row],[Proposed Equipment]])-FIND(\"]\",ProjectInfoTable[[#This Row],[Proposed Equipment]],1)-3),ControlsLookup[Controls Concatenate],0)),\"None\"),INDIRECT(\"EquipmentTable_\"&IF(ProjectType=\"Retrofit\",\"Retrofit_\",\"NCMR_\")&ProjectState&\"[#Headers]\"),0))),INDEX(INDIRECT(\"EquipmentTable_\"&IF(ProjectType=\"Retrofit\",\"Retrofit_\",\"NCMR_\")&ProjectState&\"[#All]\"),MATCH(LEFT(ProjectInfoTable[[#This Row],[Proposed Equipment]],FIND(\"[\",ProjectInfoTable[[#This Row],[Proposed Equipment]],1)-2),INDIRECT(\"EquipmentTable_\"&IF(ProjectType=\"Retrofit\",\"Retrofit_\",\"NCMR_\")&ProjectState&\"[equipmentProposed]\"),0)+1,MATCH(\"measureRetrofit_\"&IF(AND(SBDEligible=\"Yes\",ISNUMBER(FIND(\"SBE\",ProjectInfoTable[[#This Row],[Proposed Equipment]]))),\"SBE\",LEFT(ProjectInfoTable[[#This Row],[Existing Equipment]],FIND(\":\",ProjectInfoTable[[#This Row],[Existing Equipment]],1)-1)&\"_\"&IF(IFERROR(INDEX(ControlsLookup[Rank],MATCH(RIGHT(ProjectInfoTable[[#This Row],[Proposed Equipment]],LEN(ProjectInfoTable[[#This Row],[Proposed Equipment]])-FIND(\"]\",ProjectInfoTable[[#This Row],[Proposed Equipment]],1)-3),ControlsLookup[Controls],0)),0)>IFERROR(INDEX(ControlsLookup[Rank],MATCH(RIGHT(ProjectInfoTable[[#This Row],[Existing Equipment]],LEN(ProjectInfoTable[[#This Row],[Existing Equipment]])-FIND(\"]\",ProjectInfoTable[[#This Row],[Existing Equipment]],1)-3),ControlsLookup[Controls],0)),0),INDEX(ControlsLookup[Controls Type],MATCH(LEFT(ProjectInfoTable[[#This Row],[Existing Equipment]],FIND(\":\",ProjectInfoTable[[#This Row],[Existing Equipment]],1)-1)&\"_\"&RIGHT(ProjectInfoTable[[#This Row],[Proposed Equipment]],LEN(ProjectInfoTable[[#This Row],[Proposed Equipment]])-FIND(\"]\",ProjectInfoTable[[#This Row],[Proposed Equipment]],1)-3),ControlsLookup[Controls Concatenate],0)),\"None\")),INDIRECT(\"EquipmentTable_\"&\"Retrofit_\"&ProjectState&\"[#Headers]\"),0))),\"Non-eligible fixture - Retrofit - \"&ProjectState),IFERROR(INDEX(INDIRECT(\"EquipmentTable_\"&IF(SiteSpecificOverride=\"Yes\",\"PostPurchase_\",\"Retrofit_\")&ProjectState&\"[#All]\"),MATCH(LEFT(ProjectInfoTable[[#This Row],[Proposed Equipment]],FIND(\"[\",ProjectInfoTable[[#This Row],[Proposed Equipment]],1)-2),INDIRECT(\"EquipmentTable_\"&IF(SiteSpecificOverride=\"Yes\",\"PostPurchase_\",\"Retrofit_\")&ProjectState&\"[equipmentProposed]\"),0)+1,MATCH(\"measureRetrofit_\"&IF(AND(SBDEligible=\"Yes\",ISNUMBER(FIND(\"SBE\",ProjectInfoTable[[#This Row],[Proposed Equipment]]))),\"SBE\",LEFT(ProjectInfoTable[[#This Row],[Existing Equipment]],FIND(\":\",ProjectInfoTable[[#This Row],[Existing Equipment]],1)-1)&\"_\"&IF(IFERROR(INDEX(ControlsLookup[Rank],MATCH(RIGHT(ProjectInfoTable[[#This Row],[Proposed Equipment]],LEN(ProjectInfoTable[[#This Row],[Proposed Equipment]])-FIND(\"]\",ProjectInfoTable[[#This Row],[Proposed Equipment]],1)-3),ControlsLookup[Controls],0)),0)>IFERROR(INDEX(ControlsLookup[Rank],MATCH(RIGHT(ProjectInfoTable[[#This Row],[Existing Equipment]],LEN(ProjectInfoTable[[#This Row],[Existing Equipment]])-FIND(\"]\",ProjectInfoTable[[#This Row],[Existing Equipment]],1)-3),ControlsLookup[Controls],0)),0),INDEX(ControlsLookup[Controls Type],MATCH(LEFT(ProjectInfoTable[[#This Row],[Existing Equipment]],FIND(\":\",ProjectInfoTable[[#This Row],[Existing Equipment]],1)-1)&\"_\"&RIGHT(ProjectInfoTable[[#This Row],[Proposed Equipment]],LEN(ProjectInfoTable[[#This Row],[Proposed Equipment]])-FIND(\"]\",ProjectInfoTable[[#This Row],[Proposed Equipment]],1)-3),ControlsLookup[Controls Concatenate],0)),\"None\")),INDIRECT(\"EquipmentTable_\"&IF(SiteSpecificOverride=\"Yes\",\"PostPurchase_\",\"Retrofit_\")&ProjectState&\"[#Headers]\"),0)),\"Non-eligible fixture - Retrofit - \"&ProjectState)))),IFERROR(INDEX(INDIRECT(\"EquipmentTable_\"&\"NCMR_\"&ProjectState),MATCH(RIGHT(LEFT(ProjectInfoTable[[#This Row],[Proposed Equipment]],FIND(\" (\",ProjectInfoTable[[#This Row],[Proposed Equipment]],1)-1),LEN(LEFT(ProjectInfoTable[[#This Row],[Proposed Equipment]],FIND(\" (\",ProjectInfoTable[[#This Row],[Proposed Equipment]],1)-2))-FIND(\":\",ProjectInfoTable[[#This Row],[Proposed Equipment]],1)),INDIRECT(\"EquipmentTable_\"&\"NCMR_\"&ProjectState&\"[equipmentProposed]\"),0),MATCH(\"measureNCMR_\"&LEFT(ProjectInfoTable[[#This Row],[Proposed Equipment]],FIND(\":\",ProjectInfoTable[[#This Row],[Proposed Equipment]],1)-1)&\"_\"&IF(LEN(ProjectInfoTable[[#This Row],[Proposed Equipment]])>FIND(\"]\",ProjectInfoTable[[#This Row],[Proposed Equipment]]),INDEX(ControlsLookup[Controls Type],MATCH(LEFT(ProjectInfoTable[[#This Row],[Proposed Equipment]],FIND(\":\",ProjectInfoTable[[#This Row],[Proposed Equipment]],1)-1)&\"_\"&RIGHT(ProjectInfoTable[[#This Row],[Proposed Equipment]],LEN(ProjectInfoTable[[#This Row],[Proposed Equipment]])-FIND(\"]\",ProjectInfoTable[[#This Row],[Proposed Equipment]],1)-3),ControlsLookup[Controls Concatenate],0)),\"None\"),INDIRECT(\"EquipmentTable_\"&\"NCMR_\"&ProjectState&\"[#Headers]\"),0)),\"Non-eligible fixture - NCMR - \"&ProjectState)),\"[NAMESUB]\",ProjectInfoTable[[#This Row],[Measure Name Sub]]),\"Non-eligible fixture - Retrofit - \"&ProjectState))","v":""},{"$f":"IF(ISNUMBER(SEARCH(\"Case\",ProjectInfoTable[[#This Row],[Fixture Measure]])),CONCATENATE(ProjectInfoTable[[#This Row],[Fixture Measure]],ProjectInfoTable[[#This Row],[No. of TRL Units]],ProjectInfoTable[[#This Row],[Quantity]]),\"\")","v":""},{"$f":"IF(ProjectInfoTable[[#This Row],[Proposed Equipment]]=\"\",\"\",\nIF(AND(ProjectState = \"UT\",ISNUMBER(FIND(\" TLED \",ProjectInfoTable[[#This Row],[Proposed Equipment]]))),\nIF(VALUE(ProjectInfoTable[[#This Row],[Lamp W (Proposed)]])<20,\"< 20 W\",\nIF(AND(VALUE(ProjectInfoTable[[#This Row],[Lamp W (Proposed)]])<=39,VALUE(ProjectInfoTable[[#This Row],[Lamp W (Proposed)]])>=20),\">= 20 W and <= 39 W\",)),\n\nIF(AND(ProjectType=\"Retrofit\",OR(ISNUMBER(FIND(\"Retrofit Kit\",ProjectInfoTable[[#This Row],[Proposed Equipment]])),ISNUMBER(FIND(\"Fixture\",ProjectInfoTable[[#This Row],[Proposed Equipment]]))),OR(ISNUMBER(FIND(\"Exterior\",ProjectInfoTable[[#This Row],[Existing Equipment]])),ISNUMBER(FIND(\"Street\",ProjectInfoTable[[#This Row],[Existing Equipment]])))),\nIF(ProjectInfoTable[[#This Row],[Fixture W (Proposed)]]<50,\"< 50 W\",\nIF(AND(ProjectInfoTable[[#This Row],[Fixture W (Proposed)]]<90,ProjectInfoTable[[#This Row],[Fixture W (Proposed)]]>=50),\">= 50 W and < 90 W\",\nIF(AND(ProjectInfoTable[[#This Row],[Fixture W (Proposed)]]<135,ProjectInfoTable[[#This Row],[Fixture W (Proposed)]]>=90),\">= 90 W and < 135 W\",\nIF(AND(ProjectInfoTable[[#This Row],[Fixture W (Proposed)]]<220,ProjectInfoTable[[#This Row],[Fixture W (Proposed)]]>=135),\">= 135 W and < 220 W\",\nIF(ProjectInfoTable[[#This Row],[Fixture W (Proposed)]]>=220,\">= 220 W\"))))),\"\")))","v":""},{"$f":"IFERROR(INDEX(INDIRECT(\"MeasureTable_\" & ProjectState & \"[Measure Reference Number]\"),MATCH(ProjectInfoTable[[#This Row],[Fixture Measure]],INDIRECT(\"MeasureTable_\" &ProjectState&\"[Measure Name]\"),0)),\"\")","v":""},{"$f":"IFERROR(\n    _xlfn.LET(\n        _xlpm.filteredVersions,\n            _xlfn._xlws.FILTER(\n                INDIRECT(\"MeasureTable_\" & ProjectState & \"[Version Number]\"),\n                (INDIRECT(\"MeasureTable_\" & ProjectState & \"[Measure Reference Number]\") = ProjectInfoTable[[#This Row],[Fixture Measure Reference Number]]) *\n                (INDIRECT(\"MeasureTable_\" & ProjectState & \"[Eligible Measure]\") = TRUE)\n            ),\n        INDEX(_xlpm.filteredVersions, 1)\n    ),\n    \"\"\n)","v":""},{"$f":"IFERROR(\n  _xlfn.LET(\n    _xlpm.refRange, INDIRECT(\"MeasureTable_\" & ProjectState & \"[Measure Reference Number]\"),\n    _xlpm.eligibleRange, INDIRECT(\"MeasureTable_\" & ProjectState & \"[Eligible Measure]\"),\n    _xlpm.countTrue, SUMPRODUCT(--(_xlpm.refRange = ProjectInfoTable[[#This Row],[Fixture Measure Reference Number]]), --(_xlpm.eligibleRange = TRUE)),\n    _xlpm.countNonBlank, SUMPRODUCT(--(_xlpm.refRange = ProjectInfoTable[[#This Row],[Fixture Measure Reference Number]]), --(_xlpm.eligibleRange <> \"\")),\n    IF(_xlpm.countNonBlank = 0, \"\", IF(_xlpm.countTrue >= 1, TRUE, FALSE))\n  ),\n  \"\"\n)","v":""},{"$f":"IFERROR(VALUE(INDEX(INDIRECT(\"MeasureTable_\" & ProjectState & \"[CustomerIncentiveDollarperunit]\"),MATCH(ProjectInfoTable[[#This Row],[Fixture Measure]]&\" | TRUE\",INDIRECT(\"MeasureTable_\" &ProjectState&\"[MeasureEligibleConcatenate]\"),0))),\"\")","v":""},{"$f":"IFERROR(INDEX(INDIRECT(\"MeasureTable_\"&ProjectState&\"[SiteSpecificCalculation]\"),MATCH(ProjectInfoTable[[#This Row],[Fixture Measure]]&\" | TRUE\",INDIRECT(\"MeasureTable_\" &ProjectState&\"[MeasureEligibleConcatenate]\"),0)),\"\")","v":""},{"$f":"IFERROR(INDEX(INDIRECT(\"MeasureTable_\"&ProjectState&\"[GrossIncrementalAnnualElectricSavings]\"),MATCH(ProjectInfoTable[[#This Row],[Fixture Measure]]&\" | TRUE\",INDIRECT(\"MeasureTable_\" &ProjectState&\"[MeasureEligibleConcatenate]\"),0)),\"\")","v":""},{"$f":"IFERROR(INDEX(INDIRECT(\"MeasureTable_\"&ProjectState&\"[GrossAverageMonthlyDemandReduction]\"),MATCH(ProjectInfoTable[[#This Row],[Fixture Measure]]&\" | TRUE\",INDIRECT(\"MeasureTable_\" &ProjectState&\"[MeasureEligibleConcatenate]\"),0)),\"\")","v":""},{"$f":"IF(ProjectInfoTable[[#This Row],[Fixture Measure]]=\"\",\"\",IF(NOT(ISNUMBER(FIND(\"Site-Specific - Downstream\",ProjectInfoTable[[#This Row],[Fixture Measure]]))),\"\",\nIF(ISNUMBER(MATCH(SUBSTITUTE(ProjectInfoTable[[#This Row],[Fixture Measure]],\"Site-Specific - Downstream - v2\",\"Mid Market\"),INDIRECT(\"MeasureTable_\"&ProjectState&\"[Measure Name]\"),0)),\nSUBSTITUTE(ProjectInfoTable[[#This Row],[Fixture Measure]],\"Site-Specific - Downstream - v2\",\"Mid Market\"),\nSUBSTITUTE(ProjectInfoTable[[#This Row],[Fixture Measure]],\"Site-Specific - Downstream\",\"Mid Market\"))\n))","v":""},{"$f":"IF(ProjectInfoTable[[#This Row],[Midstream Measure Name]]=\"\",\"\",IFERROR(INDEX(INDIRECT(\"MeasureTable_\"&ProjectState&\"[GrossIncrementalAnnualElectricSavings ]\"),MATCH(ProjectInfoTable[[#This Row],[Midstream Measure Name]]&\" | TRUE\",INDIRECT(\"MeasureTable_\" &ProjectState&\"[MeasureEligibleConcatenate]\"),0)),\"\"))","v":""},{"$f":"IF(ProjectInfoTable[[#This Row],[Midstream Measure Name]]=\"\",\"\",IFERROR(INDEX(INDIRECT(\"MeasureTable_\"&ProjectState&\"[GrossAverage onthly emand eduction]\"),MATCH(ProjectInfoTable[[#This Row],[Midstream Measure Name]]&\" | TRUE\",INDIRECT(\"MeasureTable_\" &ProjectState&\"[MeasureEligibleConcatenate]\"),0)),\"\"))","v":""},{"$f":"IFERROR(INDEX(INDIRECT(\"MeasureTable_\"&ProjectState&\"[IncrementalMeasureCost]\"),MATCH(ProjectInfoTable[[#This Row],[Fixture Measure]]&\" | TRUE\",INDIRECT(\"MeasureTable_\" &ProjectState&\"[MeasureEligibleConcatenate]\"),0)),\"\")","v":""},{"$f":"IF(ProjectInfoTable[[#This Row],[Fixture Measure]]=\"\",\"\",IF(AND(ProjectState=\"UT\",ProjectInfoTable[[#This Row],[Measure Selection]]=\"\"),0,\nIF(OR(ISNUMBER(FIND(\"SBDI\",ProjectInfoTable[[#This Row],[Fixture Measure]])),ISNUMBER(FIND(\"Small Bu\",ProjectInfoTable[[#This Row],[Fixture Measure]]))),ProjectInfoTable[[#This Row],[Quantity (Proposed)]]*ProjectInfoTable[[#This Row],[Lamps (Proposed)]],\nIF(OR(ProjectInfoTable[[#This Row],[TRL Unit]]=\"Measure\",ProjectInfoTable[[#This Row],[TRL Unit]]=\"Linear ft.\"),IF(OR(ISNUMBER(FIND(\"Lamp\",ProjectInfoTable[[#This Row],[Fixture Measure]],1)),ISNUMBER(FIND(\"Relamp\",ProjectInfoTable[[#This Row],[Fixture Measure]],1)),ISNUMBER(FIND(\"Relamp\",ProjectInfoTable[[#This Row],[Proposed Equipment]],1))),ProjectInfoTable[[#This Row],[Quantity (Proposed)]]*ProjectInfoTable[[#This Row],[Lamps (Proposed)]],ProjectInfoTable[[#This Row],[Quantity (Proposed)]]),1))))","v":""},{"$f":"IF(ProjectInfoTable[[#This Row],[Fixture Measure]]=\"\",\"\",IF(AND(ProjectState=\"UT\",ProjectInfoTable[[#This Row],[Measure Selection]]=\"\"),0,\nIF(OR(ISNUMBER(FIND(\"SBDI\",ProjectInfoTable[[#This Row],[Fixture Measure]])),ISNUMBER(FIND(\"Small Bu\",ProjectInfoTable[[#This Row],[Fixture Measure]]))),1,\nIF(ISNUMBER(FIND(\"Controls Only\",ProjectInfoTable[[#This Row],[Proposed Equipment]],1)),IF(OR(ProjectType <> \"Retrofit\",ProjectInfoTable[[#This Row],[Space W (Proposed)]]>0),ProjectInfoTable[[#This Row],[Space W (Proposed)]],ProjectInfoTable[[#This Row],[Space W (Existing, Stipulated)]]),\nIF(TRIM(UPPER(ProjectInfoTable[[#This Row],[TRL Unit]]))=\"LINEAR FT.\",IF(OR(ISNUMBER(FIND(\"Marquee\",ProjectInfoTable[[#This Row],[Proposed Equipment]],1)),ISNUMBER(FIND(\"Cabinet\",ProjectInfoTable[[#This Row],[Proposed Equipment]],1))),VALUE(RIGHT(LEFT(ProjectInfoTable[[#This Row],[Existing Equipment]],FIND(\"LF \",ProjectInfoTable[[#This Row],[Existing Equipment]],1)-1),LEN(LEFT(ProjectInfoTable[[#This Row],[Existing Equipment]],FIND(\"LF \",ProjectInfoTable[[#This Row],[Existing Equipment]],1)-1))-FIND(\"[\",ProjectInfoTable[[#This Row],[Existing Equipment]],1))),VALUE(RIGHT(LEFT(ProjectInfoTable[[#This Row],[Proposed Equipment]],FIND(\"LF \",ProjectInfoTable[[#This Row],[Proposed Equipment]],1)-1),LEN(LEFT(ProjectInfoTable[[#This Row],[Proposed Equipment]],FIND(\"LF \",ProjectInfoTable[[#This Row],[Proposed Equipment]],1)-1))-FIND(\"[\",ProjectInfoTable[[#This Row],[Proposed Equipment]],1)))),\nIF(TRIM(UPPER(ProjectInfoTable[[#This Row],[TRL Unit]]))=\"KWH\",IF(ProjectInfoTable[[#This Row],[Fixture Measure kWh/yr Savings (Stipulated)]]=0,0,ROUND(ProjectInfoTable[[#This Row],[Fixture Measure kWh/yr Savings (Stipulated)]],2)),\nIF(TRIM(UPPER(ProjectInfoTable[[#This Row],[TRL Unit]]))=\"WATT REDUCED\",IF(ProjectInfoTable[[#This Row],[Fixture Measure kWh/yr Savings (Stipulated)]]=0,0,ROUND(ProjectInfoTable[[#This Row],[Space W (Existing, Stipulated)]]-ProjectInfoTable[[#This Row],[Space W (Proposed)]],2)),\nIF(TRIM(UPPER(ProjectInfoTable[[#This Row],[TRL Unit]]))=\"FIXTURE WATTAGE\",ProjectInfoTable[[#This Row],[Space W (Proposed)]],1))))))))","v":""},{"$f":"IFERROR(IF(OR(ISNUMBER(FIND(\"SBDI\",ProjectInfoTable[[#This Row],[Fixture Measure]])),ISNUMBER(FIND(\"Small Bu\",ProjectInfoTable[[#This Row],[Fixture Measure]]))),0,INDEX(INDIRECT(\"MeasureTable_\"&ProjectState&\"[Unit]\"),MATCH(ProjectInfoTable[[#This Row],[Fixture Measure]]&\" | TRUE\",INDIRECT(\"MeasureTable_\" &ProjectState&\"[MeasureEligibleConcatenate]\"),0))),\"\")","v":""},{"$f":"IF(ProjectInfoTable[[#This Row],[Fixture Measure]]=\"\",\"\",IF(OR(ISNUMBER(FIND(\"Lamp(s)\",ProjectInfoTable[[#This Row],[Fixture Measure]],1)),ISNUMBER(FIND(\"Relamp\",ProjectInfoTable[[#This Row],[Proposed Equipment]],1))),\"Lamp(s)\",\"Fixture(s)\"))","v":""},{"$f":"IFERROR(INDEX(INDIRECT(\"MeasureTable_\"&ProjectState&\"[ProjectCapPercent]\"),MATCH(ProjectInfoTable[[#This Row],[Fixture Measure]]&\" | TRUE\",INDIRECT(\"MeasureTable_\" &ProjectState&\"[MeasureEligibleConcatenate]\"),0)),\"\")","v":""},{"$f":"IF(OR(ProjectInfoTable[[#This Row],[Control Measure]]=\"\",ProjectInfoTable[[#This Row],[OpSch]]=\"\",ProjectInfoTable[[#This Row],[Eligible Control Measure]]<>TRUE),\"\",IF(AND(OR(ProjectType=\"New Construction\",ProjectType=\"Major Renovation\"),LPDCodeToProposed<0.1,ISNUMBER(FIND(\"Interior\",ProjectInfoTable[[#This Row],[Proposed Equipment]],1))),0,IFERROR(ProjectInfoTable[[#This Row],[Control Incentives Per Unit]]*ProjectInfoTable[[#This Row],[Control Quantity]]*ProjectInfoTable[[#This Row],[Control No. of TRL Units]],\"TRL Error\")))","v":""},{"$f":"IF(OR(ProjectInfoTable[[#This Row],[Control Measure]]=\"\",ProjectInfoTable[[#This Row],[OpSch]]=\"\",ProjectInfoTable[[#This Row],[Eligible Control Measure]]<>TRUE),\"\",IF(AND(ProjectType=\"Retrofit\",ProjectState=\"UT\",ISNUMBER(FIND(\"Post Purchase\",ProjectInfoTable[[#This Row],[Control Measure]],1))),\n\nIFERROR(MAX(MIN(ProjectInfoTable[[#This Row],[Control Incentives (pre-capping)]],ProjectInfoTable[[#This Row],[Control Cost (Allocated)]]*0.7),0),0),\n\nIF(ProjectType=\"Retrofit\",IF(ISNUMBER(FIND(\"Post Purchase\",ProjectInfoTable[[#This Row],[Control Measure]],1)),ProjectInfoTable[[#This Row],[Control Incentives (pre-capping)]],IFERROR($BI$3/$BH$3*ProjectInfoTable[[#This Row],[Control Incentives (pre-capping)]],\"\")),\n\nIF(ISNUMBER(FIND(\"Interior\",ProjectInfoTable[[#This Row],[Proposed Equipment]],1)),IF(LPDCodeToProposed>0.1,ProjectInfoTable[[#This Row],[Control Incentives (pre-capping)]],0),ProjectInfoTable[[#This Row],[Control Incentives (pre-capping)]]))))","v":""},{"$f":"IF(OR(ProjectInfoTable[[#This Row],[Control Incentives Per Unit]]=\"\",ProjectInfoTable[[#This Row],[Control TRL Unit]]=\"\"),\"\",IF(ProjectInfoTable[[#This Row],[Eligible Control Measure]]<>TRUE,\"Invalid Effective Date\",TEXT(ProjectInfoTable[[#This Row],[Control Incentives Per Unit]],\"$#,##0.00\")&\" / \"&ProjectInfoTable[[#This Row],[Control TRL Unit]]))","v":""},{"$f":"IF(ISNUMBER(FIND(\"SBE\",ProjectInfoTable[[#This Row],[Proposed Equipment]])),\"\",\n\nIF(LEN(ProjectInfoTable[[#This Row],[Proposed Equipment]])>\n\nIFERROR(FIND(\"]\",ProjectInfoTable[[#This Row],[Proposed Equipment]],1),0),\nSUBSTITUTE(\nIF(OR(ProjectInfoTable[[#This Row],[Control Method]]=\"separate\",ISNUMBER(FIND(\"Midstream\",ProjectInfoTable[[#This Row],[Fixture Measure]],1)),ISNUMBER(FIND(\"Midstream\",ProjectInfoTable[[#This Row],[Equipment Category]],1)),ISNUMBER(FIND(\"Prescriptive\",ProjectInfoTable[[#This Row],[Equipment Category]],1)),ISNUMBER(FIND(\"LED\",ProjectInfoTable[[#This Row],[Fixture Measure]],1)),ISNUMBER(FIND(\"LED Case\",ProjectInfoTable[[#This Row],[Fixture Measure]],1)),ISNUMBER(FIND(\"LED Decorative - Retrofit - WA\",ProjectInfoTable[[#This Row],[Fixture Measure]],1)),ISNUMBER(FIND(\"Lamp\",ProjectInfoTable[[#This Row],[Fixture Measure]],1)),ISNUMBER(FIND(\"Relamp\",ProjectInfoTable[[#This Row],[Fixture Measure]],1)),ISNUMBER(FIND(\"Wall Pack\",ProjectInfoTable[[#This Row],[Fixture Measure]],1)),ISNUMBER(FIND(\"Controls Only\",ProjectInfoTable[[#This Row],[Proposed Equipment]],1)),ISNUMBER(FIND(\"Re-Commissioning\",ProjectInfoTable[[#This Row],[Proposed Equipment]],1)),\n\nAND(OR(ISNUMBER(FIND(\"Exterior:\",ProjectInfoTable[[#This Row],[Proposed Equipment]],1)),ISNUMBER(FIND(\"Street:\",ProjectInfoTable[[#This Row],[Proposed Equipment]],1))),OR(ProjectState=\"ID\",ProjectState=\"UT\",ProjectState=\"WY\"))),\n\nIF(IFERROR(INDEX(ControlsLookup[],MATCH(IF(ProjectType=\"Retrofit\",LEFT(ProjectInfoTable[[#This Row],[Existing Equipment]],FIND(\":\",ProjectInfoTable[[#This Row],[Existing Equipment]],1)-1),LEFT(ProjectInfoTable[[#This Row],[Proposed Equipment]],FIND(\":\",ProjectInfoTable[[#This Row],[Proposed Equipment]],1)-1))&\"_\"&RIGHT(ProjectInfoTable[[#This Row],[Proposed Equipment]],LEN(ProjectInfoTable[[#This Row],[Proposed Equipment]])-FIND(\"]\",ProjectInfoTable[[#This Row],[Proposed Equipment]],1)-3),ControlsLookup[Controls Concatenate],0),MATCH(\n\nIF(ProjectType=\"Retrofit\",\"ControlMeasure_\",\"NCMRControlMeasure_\")&ProjectState,ControlsLookup[#Headers],0)),\"\")=0,\"\",\n\nIFERROR(INDEX(ControlsLookup[],MATCH(IF(ProjectType=\"Retrofit\",LEFT(ProjectInfoTable[[#This Row],[Existing Equipment]],FIND(\":\",ProjectInfoTable[[#This Row],[Existing Equipment]],1)-1),LEFT(ProjectInfoTable[[#This Row],[Proposed Equipment]],FIND(\":\",ProjectInfoTable[[#This Row],[Proposed Equipment]],1)-1))&\"_\"&RIGHT(ProjectInfoTable[[#This Row],[Proposed Equipment]],LEN(ProjectInfoTable[[#This Row],[Proposed Equipment]])-FIND(\"]\",ProjectInfoTable[[#This Row],[Proposed Equipment]],1)-3),ControlsLookup[Controls Concatenate],0),MATCH(\n\nIF(ProjectType=\"Retrofit\",\"ControlMeasure_\",\"NCMRControlMeasure_\")&ProjectState&IF(ProjectState=\"UT\",SegmentTag,\"\"),ControlsLookup[#Headers],0)),\"\")),\"\"),\"[NAMESUB]\",ProjectInfoTable[[#This Row],[Control Measure Name Sub]]),\"\"))","v":""},{"$f":"IF(ProjectInfoTable[[#This Row],[Proposed Equipment]]=\"\",\"\",IF(AND(ProjectState=\"UT\",ProjectType=\"Retrofit\",ISNUMBER(FIND(\"Re-Commissioning\",ProjectInfoTable[[#This Row],[Proposed Equipment]]))),\nIF(ProjectRecommissioning=\"only recommissioning\",\"Commissioning Only\",\"Commissioning w/ Lighting Upgrade\"),\"\"))","v":""},{"$f":"IFERROR(INDEX(INDIRECT(\"MeasureTable_\" & ProjectState & \"[Measure Reference Number]\"),MATCH(ProjectInfoTable[[#This Row],[Control Measure]],INDIRECT(\"MeasureTable_\" &ProjectState&\"[Measure Name]\"),0)),\"\")","v":""},{"$f":"IFERROR(\n    _xlfn.LET(\n        _xlpm.filteredVersions,\n            _xlfn._xlws.FILTER(\n                INDIRECT(\"MeasureTable_\" & ProjectState & \"[Version Number]\"),\n                (INDIRECT(\"MeasureTable_\" & ProjectState & \"[Measure Reference Number]\") = ProjectInfoTable[[#This Row],[Control Measure Reference Number]]) *\n                (INDIRECT(\"MeasureTable_\" & ProjectState & \"[Eligible Measure]\") = TRUE)\n            ),\n        INDEX(_xlpm.filteredVersions, 1)\n    ),\n    \"\"\n)","v":""},{"$f":"IFERROR(\n  _xlfn.LET(\n    _xlpm.refRange, INDIRECT(\"MeasureTable_\" & ProjectState & \"[Measure Reference Number]\"),\n    _xlpm.eligibleRange, INDIRECT(\"MeasureTable_\" & ProjectState & \"[Eligible Measure]\"),\n    _xlpm.countTrue, SUMPRODUCT(--(_xlpm.refRange = ProjectInfoTable[[#This Row],[Control Measure Reference Number]]), --(_xlpm.eligibleRange = TRUE)),\n    _xlpm.countNonBlank, SUMPRODUCT(--(_xlpm.refRange = ProjectInfoTable[[#This Row],[Control Measure Reference Number]]), --(_xlpm.eligibleRange <> \"\")),\n    IF(_xlpm.countNonBlank = 0, \"\", IF(_xlpm.countTrue >= 1, TRUE, FALSE))\n  ),\n  \"\"\n)","v":""},{"$f":"IF(ProjectInfoTable[[#This Row],[Proposed Equipment]]=\"\",\"\",IFERROR(INDEX(INDIRECT(\"EquipmentTable_\"&IF(ProjectType=\"Retrofit\",\"Retrofit_\",\"NCMR_\")&ProjectState&\"[controlMethod]\"),MATCH(LEFT(ProjectInfoTable[[#This Row],[Proposed Equipment]],FIND(\"[\",ProjectInfoTable[[#This Row],[Proposed Equipment]],1)-2),INDIRECT(\"EquipmentTable_\"&IF(ProjectType=\"Retrofit\",\"Retrofit_\",\"NCMR_\")&ProjectState&\"[equipmentProposed]\"),0)),\"\"))","v":""},{"$f":"IFERROR(VALUE(INDEX(INDIRECT(\"MeasureTable_\" & ProjectState & \"[CustomerIncentiveDollarperunit]\"),MATCH(ProjectInfoTable[[#This Row],[Control Measure]]&\" | TRUE\",INDIRECT(\"MeasureTable_\"&ProjectState&\"[MeasureEligibleConcatenate]\"),0))),\"\")","v":""},{"$f":"IFERROR(INDEX(INDIRECT(\"MeasureTable_\"&ProjectState&\"[SiteSpecificCalculation]\"),MATCH(ProjectInfoTable[[#This Row],[Control Measure]]&\" | TRUE\",INDIRECT(\"MeasureTable_\"&ProjectState&\"[MeasureEligibleConcatenate]\"),0)),\"\")","v":""},{"$f":"IFERROR(INDEX(INDIRECT(\"MeasureTable_\"&ProjectState&\"[GrossIncrementalAnnualElectricSavings ]\"),MATCH(ProjectInfoTable[[#This Row],[Control Measure]]&\" | TRUE\",INDIRECT(\"MeasureTable_\"&ProjectState&\"[MeasureEligibleConcatenate]\"),0)),\"\")","v":""},{"$f":"IFERROR(INDEX(INDIRECT(\"MeasureTable_\"&ProjectState&\"[GrossAverage onthly emand eduction]\"),MATCH(ProjectInfoTable[[#This Row],[Control Measure]]&\" | TRUE\",INDIRECT(\"MeasureTable_\"&ProjectState&\"[MeasureEligibleConcatenate]\"),0)),\"\")","v":""},{"$f":"IFERROR(INDEX(INDIRECT(\"MeasureTable_\"&ProjectState&\"[IncrementalMeasureCost]\"),MATCH(ProjectInfoTable[[#This Row],[Control Measure]]&\" | TRUE\",INDIRECT(\"MeasureTable_\"&ProjectState&\"[MeasureEligibleConcatenate]\"),0)),\"\")","v":""},{"$f":"IF(ProjectInfoTable[[#This Row],[Control Measure]]=\"\",\"\",IF(OR(ProjectInfoTable[[#This Row],[Control TRL Unit]]=\"Measure\",ProjectInfoTable[[#This Row],[Control TRL Unit]]=\"Linear ft.\"),IF(OR(ISNUMBER(FIND(\"Midstream\",ProjectInfoTable[[#This Row],[Control Measure]],1)),ISNUMBER(FIND(\"Lamp\",ProjectInfoTable[[#This Row],[Control Measure]],1))),ProjectInfoTable[[#This Row],[Quantity (Proposed)]]*ProjectInfoTable[[#This Row],[Lamps (Proposed)]],ProjectInfoTable[[#This Row],[Quantity (Proposed)]]),1))","v":""},{"$f":"IF(ProjectInfoTable[[#This Row],[Control Measure]]=\"\",\"\",IF(ISNUMBER(FIND(\"LF \",ProjectInfoTable[[#This Row],[Proposed Equipment]],1)),VALUE(RIGHT(LEFT(ProjectInfoTable[[#This Row],[Proposed Equipment]],FIND(\"LF \",ProjectInfoTable[[#This Row],[Proposed Equipment]],1)-1),LEN(LEFT(ProjectInfoTable[[#This Row],[Proposed Equipment]],FIND(\"LF \",ProjectInfoTable[[#This Row],[Proposed Equipment]],1)-1))-FIND(\"[\",ProjectInfoTable[[#This Row],[Proposed Equipment]],1))),IF(TRIM(UPPER(ProjectInfoTable[[#This Row],[Control TRL Unit]]))=\"WATT CONTROLLED\",IF(ISNUMBER(FIND(\"Controls Only\",ProjectInfoTable[[#This Row],[Proposed Equipment]],1)),IF(OR(ProjectType <> \"Retrofit\",ProjectInfoTable[[#This Row],[Space W (Proposed)]]>0),ProjectInfoTable[[#This Row],[Space W (Proposed)]],ProjectInfoTable[[#This Row],[Space W (Existing, Stipulated)]]),ProjectInfoTable[[#This Row],[Space W (Proposed)]]),IF(TRIM(UPPER(ProjectInfoTable[[#This Row],[Control TRL Unit]]))=\"KWH\",IF(ProjectInfoTable[[#This Row],[Control Measure kWh/yr Savings (Stipulated)]]=0,0,ROUND(ProjectInfoTable[[#This Row],[Control Measure kWh/yr Savings (Stipulated)]],2)),1))))","v":""},{"$f":"IFERROR(IF(LEN(ProjectInfoTable[[#This Row],[Proposed Equipment]])-(FIND(\"]\",ProjectInfoTable[[#This Row],[Proposed Equipment]],1))>0,\"Control(s)\",\"\"),\"\")","v":""},{"$f":"IFERROR(INDEX(INDIRECT(\"MeasureTable_\"&ProjectState&\"[Unit]\"),MATCH(ProjectInfoTable[[#This Row],[Control Measure]]&\" | TRUE\",INDIRECT(\"MeasureTable_\"&ProjectState&\"[MeasureEligibleConcatenate]\"),0)),\"\")","v":""},{"$f":"IFERROR(INDEX(INDIRECT(\"MeasureTable_\"&ProjectState&\"[ProjectCapPercent]\"),MATCH(ProjectInfoTable[[#This Row],[Control Measure]]&\" | TRUE\",INDIRECT(\"MeasureTable_\"&ProjectState&\"[MeasureEligibleConcatenate]\"),0)),\"\")","v":""},{"$f":"IF(OR(ProjectInfoTable[[#This Row],[Fixture Measure]]<>\"\",ProjectInfoTable[[#This Row],[Control Measure]]<>\"\"),1,\"\")","v":""},{"$f":"IF(ProjectInfoTable[[#This Row],[TRL Unit]]=\"\",\"\",IF(OR(ISNUMBER(SEARCH(\"measure\",ProjectInfoTable[[#This Row],[TRL Unit]])),ISNUMBER(SEARCH(\"linear ft\",ProjectInfoTable[[#This Row],[TRL Unit]])),ProjectInfoTable[[#This Row],[TRL Unit]]=0),990,991))","v":""},{"$f":"IFERROR(SUBSTITUTE(LEFT(ProjectInfoTable[[#This Row],[Proposed Equipment]],FIND(\"]\",ProjectInfoTable[[#This Row],[Proposed Equipment]],1)),\"Controls Only []\",\"\",1),\"\")","v":""},{"$f":"IF(ProjectInfoTable[[#This Row],[FixturesOnly]]=\"\",\"\",IF(ISNUMBER(FIND(\"L \",ProjectInfoTable[[#This Row],[Proposed Equipment]],1)),ProjectInfoTable[[#This Row],[Quantity (Proposed)]]*ProjectInfoTable[[#This Row],[Lamps (Proposed)]],ProjectInfoTable[[#This Row],[Quantity (Proposed)]]))","v":""},{"$f":"IFERROR(INDEX(ControlsLookup[Full Description],MATCH(RIGHT(ProjectInfoTable[[#This Row],[Proposed Equipment]],LEN(ProjectInfoTable[[#This Row],[Proposed Equipment]])-FIND(\"]\",ProjectInfoTable[[#This Row],[Proposed Equipment]],1)-3),ControlsLookup[Controls],0)),\"\")","v":""},{"$f":"IF(ProjectInfoTable[[#This Row],[ControlsOnly]]=\"\",\"\",IF(OR(ISNUMBER(FIND(\"Net\",ProjectInfoTable[[#This Row],[Proposed Equipment]],1)),ISNUMBER(FIND(\"Int\",ProjectInfoTable[[#This Row],[Proposed Equipment]],1))),ProjectInfoTable[[#This Row],[Quantity (Proposed)]],1))","v":""}]
[null,{"$f":"ROW(ProjectInfoTable[[#This Row],[OpSch]])-ROW(ProjectInfoTable[[#Headers],[OpSch]])","v":18},{"$f":"IFERROR(INDEX(RetrofitBaselineEquipment_Table[categoryBaseline],MATCH(RIGHT(LEFT(ProjectInfoTable[[#This Row],[Existing Equipment]],FIND(\" (\",ProjectInfoTable[[#This Row],[Existing Equipment]],1)-1),LEN(LEFT(ProjectInfoTable[[#This Row],[Existing Equipment]],FIND(\" (\",ProjectInfoTable[[#This Row],[Existing Equipment]],1)-1))-FIND(\": \",ProjectInfoTable[[#This Row],[Existing Equipment]],1)-1),RetrofitBaselineEquipment_Table[equipmentBaseline],0)),\"\")","v":""},null,null,null,null,{"$f":"IF(ProjectInfoTable[[#This Row],[Existing Equipment]]=\"\",\"\",IF(ISNUMBER(FIND(\"LF\",ProjectInfoTable[[#This Row],[Existing Equipment]],1)),1,IFERROR(VALUE(SUBSTITUTE(RIGHT(LEFT(ProjectInfoTable[[#This Row],[Existing Equipment]],FIND(\"L\",ProjectInfoTable[[#This Row],[Existing Equipment]],FIND(\"[\",ProjectInfoTable[[#This Row],[Existing Equipment]],1))-1),3),\"[\",\"\")),1)))","v":""},{"$f":"IF(ProjectInfoTable[[#This Row],[Existing Equipment]]=\"\",\"\",VALUE(SUBSTITUTE(RIGHT(LEFT(RIGHT(ProjectInfoTable[[#This Row],[Existing Equipment]],LEN(ProjectInfoTable[[#This Row],[Existing Equipment]])-IFERROR(FIND(\"[\",ProjectInfoTable[[#This Row],[Existing Equipment]],1),0)),IFERROR(FIND(\"W\",RIGHT(ProjectInfoTable[[#This Row],[Existing Equipment]],LEN(ProjectInfoTable[[#This Row],[Existing Equipment]])-IFERROR(FIND(\"[\",ProjectInfoTable[[#This Row],[Existing Equipment]],1),0)),1),0)),LEN(LEFT(RIGHT(ProjectInfoTable[[#This Row],[Existing Equipment]],LEN(ProjectInfoTable[[#This Row],[Existing Equipment]])-IFERROR(FIND(\"[\",ProjectInfoTable[[#This Row],[Existing Equipment]],1),0)),IFERROR(FIND(\"W\",RIGHT(ProjectInfoTable[[#This Row],[Existing Equipment]],LEN(ProjectInfoTable[[#This Row],[Existing Equipment]])-IFERROR(FIND(\"[\",ProjectInfoTable[[#This Row],[Existing Equipment]],1),0)),1),0)))-IFERROR(FIND(\"-\",LEFT(RIGHT(ProjectInfoTable[[#This Row],[Existing Equipment]],LEN(ProjectInfoTable[[#This Row],[Existing Equipment]])-IFERROR(FIND(\"[\",ProjectInfoTable[[#This Row],[Existing Equipment]],1),0)),IFERROR(FIND(\"W\",RIGHT(ProjectInfoTable[[#This Row],[Existing Equipment]],LEN(ProjectInfoTable[[#This Row],[Existing Equipment]])-IFERROR(FIND(\"[\",ProjectInfoTable[[#This Row],[Existing Equipment]],1),0)),1),0)),1),0)),\"W\",\"\")))","v":""},{"$f":"IF(ProjectInfoTable[[#This Row],[Existing Equipment]]=\"\",\"\",IF(AND(RIGHT(LEFT(ProjectInfoTable[[#This Row],[Existing Equipment]],FIND(\"]\",ProjectInfoTable[[#This Row],[Existing Equipment]],1)-1),1)<>\"W\"),IFERROR(TRIM(IF(IFERROR(FIND(\"FLT\",ProjectInfoTable[[#This Row],[Existing Equipment]],1),0)>0,LEFT(RIGHT(LEFT(ProjectInfoTable[[#This Row],[Existing Equipment]],FIND(\" (\",ProjectInfoTable[[#This Row],[Existing Equipment]],1)),LEN(LEFT(ProjectInfoTable[[#This Row],[Existing Equipment]],FIND(\" (\",ProjectInfoTable[[#This Row],[Existing Equipment]],1)))-FIND(\":\",ProjectInfoTable[[#This Row],[Existing Equipment]],1)-1),FIND(\" \",RIGHT(LEFT(ProjectInfoTable[[#This Row],[Existing Equipment]],FIND(\" (\",ProjectInfoTable[[#This Row],[Existing Equipment]],1)),LEN(LEFT(ProjectInfoTable[[#This Row],[Existing Equipment]],FIND(\" (\",ProjectInfoTable[[#This Row],[Existing Equipment]],1)))-FIND(\":\",ProjectInfoTable[[#This Row],[Existing Equipment]],1)-1),1)-1),RIGHT(LEFT(ProjectInfoTable[[#This Row],[Existing Equipment]],FIND(\" (\",ProjectInfoTable[[#This Row],[Existing Equipment]],1)),LEN(LEFT(ProjectInfoTable[[#This Row],[Existing Equipment]],FIND(\" (\",ProjectInfoTable[[#This Row],[Existing Equipment]],1)))-FIND(\":\",ProjectInfoTable[[#This Row],[Existing Equipment]],1)-1))&\" - \"&RIGHT(LEFT(ProjectInfoTable[[#This Row],[Existing Equipment]],FIND(\"]\",ProjectInfoTable[[#This Row],[Existing Equipment]],1)-1),LEN(LEFT(ProjectInfoTable[[#This Row],[Existing Equipment]],FIND(\"]\",ProjectInfoTable[[#This Row],[Existing Equipment]],1)-1))-FIND(\"W \",ProjectInfoTable[[#This Row],[Existing Equipment]],1)-3)),\"\"),\"\"))","v":""},{"$f":"IF(ProjectInfoTable[[#This Row],[Existing Equipment]]=\"\",\"\",IF(ProjectInfoTable[[#This Row],[Fixture/Ballast Check for Formula]]=\"\",IF(ISNUMBER(FIND(\"LF\",ProjectInfoTable[[#This Row],[Existing Equipment]],FIND(\"[\",ProjectInfoTable[[#This Row],[Existing Equipment]],1))),ProjectInfoTable[[#This Row],[Lamp W (Existing)]],ProjectInfoTable[[#This Row],[Lamps (Existing)]]*ProjectInfoTable[[#This Row],[Lamp W (Existing)]]),IFERROR(ROUND( ProjectInfoTable[[#This Row],[Lamps (Existing)]]*ProjectInfoTable[[#This Row],[Lamp W (Existing)]]*INDEX(FixtureWattageFormula_Table[A],MATCH(ProjectInfoTable[[#This Row],[Fixture/Ballast Check for Formula]],FixtureWattageFormula_Table[Concatenate],0))+INDEX(FixtureWattageFormula_Table[B],MATCH(ProjectInfoTable[[#This Row],[Fixture/Ballast Check for Formula]],FixtureWattageFormula_Table[Concatenate],0)),0),ProjectInfoTable[[#This Row],[Lamps (Existing)]]*ProjectInfoTable[[#This Row],[Lamp W (Existing)]])))","v":""},{"$f":"IF(OR(ISNUMBER(FIND(\"T8 \",ProjectInfoTable[[#This Row],[Existing Equipment]],1)),ISNUMBER(FIND(\"T5 \",ProjectInfoTable[[#This Row],[Existing Equipment]],1)),ISNUMBER(FIND(\"T12 \",ProjectInfoTable[[#This Row],[Existing Equipment]],1)),ISNUMBER(FIND(\"T12HO - 8\",ProjectInfoTable[[#This Row],[Existing Equipment]],1)),ISNUMBER(FIND(\"Incand\",ProjectInfoTable[[#This Row],[Existing Equipment]],1))),IFERROR(ROUND(INDEX(StipulatedWattage_Table[Stipulated fixture wattage],MATCH(MID(ProjectInfoTable[[#This Row],[Existing Equipment]],FIND(\"[\",ProjectInfoTable[[#This Row],[Existing Equipment]],1),FIND(\"]\",ProjectInfoTable[[#This Row],[Existing Equipment]],1)-FIND(\"[\",ProjectInfoTable[[#This Row],[Existing Equipment]],1)+1),StipulatedWattage_Table[Fixture Code],0)),0),ProjectInfoTable[[#This Row],[Fixture W (Existing, Actual)]]),ProjectInfoTable[[#This Row],[Fixture W (Existing, Actual)]])","v":""},{"$f":"IF(ProjectType=\"Retrofit\",IF(ProjectInfoTable[[#This Row],[Existing Equipment]]=\"\",\"\",ProjectInfoTable[[#This Row],[Quantity (Existing)]]*ProjectInfoTable[[#This Row],[Fixture W (Existing, Actual)]]),IF(ISNUMBER(FIND(\"Interior\",ProjectInfoTable[[#This Row],[Proposed Equipment]],1)),IF(ISNUMBER(FIND(\"Controls Only\",ProjectInfoTable[[#This Row],[Proposed Equipment]])),ProjectInfoTable[[#This Row],[Space W (Proposed)]],(AllowedWattage-SUMIFS(ProjectInfoTable[Space W (Proposed)],ProjectInfoTable[Proposed Equipment],\"*Interior*\",ProjectInfoTable[Proposed Equipment],\"*Controls Only*\"))*ProjectInfoTable[[#This Row],[Space W (Proposed)]]/(SUMIFS(ProjectInfoTable[Space W (Proposed)],ProjectInfoTable[Proposed Equipment],\"*Interior*\")-SUMIFS(ProjectInfoTable[Space W (Proposed)],ProjectInfoTable[Proposed Equipment],\"*Interior*\",ProjectInfoTable[Proposed Equipment],\"*Controls Only*\"))),\"\"))","v":""},{"$f":"IF(ProjectType=\"Retrofit\",IF(ProjectInfoTable[[#This Row],[Existing Equipment]]=\"\",\"\",ProjectInfoTable[[#This Row],[Quantity (Existing)]]*ProjectInfoTable[[#This Row],[Fixture W (Existing, Stipulated)]]),ProjectInfoTable[[#This Row],[Space W (Existing, Actual)]])","v":""},{"$f":"IFERROR(INDEX(OperatingHours_List,MATCH(ProjectInfoTable[[#This Row],[OpSch]],OperatingSchedules_List,0))*ProjectInfoTable[[#This Row],[Space W (Existing, Actual)]]/1000,\"\")","v":""},{"$f":"IFERROR(INDEX(OperatingHours_List,MATCH(ProjectInfoTable[[#This Row],[OpSch]],OperatingSchedules_List,0))*ProjectInfoTable[[#This Row],[Space W (Existing, Actual)]]/1000*(IFERROR(INDEX(ControlsLookup[],MATCH(RIGHT(ProjectInfoTable[[#This Row],[Existing Equipment]],LEN(ProjectInfoTable[[#This Row],[Existing Equipment]])-FIND(\"]\",ProjectInfoTable[[#This Row],[Existing Equipment]],1)-3),ControlsLookup[Controls],0),MATCH(\"CSF_\"&ProjectState,ControlsLookup[#Headers],0)),0))*-1,\"\")","v":""},{"$f":"IF(OR(ProjectInfoTable[[#This Row],[Fixture kWh (Existing, Actual)]]=\"\",ProjectInfoTable[[#This Row],[Control kWh (Existing, Actual)]]=\"\"),\"\",ProjectInfoTable[[#This Row],[Fixture kWh (Existing, Actual)]]+ProjectInfoTable[[#This Row],[Control kWh (Existing, Actual)]])","v":""},{"$f":"IFERROR(INDEX(OperatingHours_List,MATCH(ProjectInfoTable[[#This Row],[OpSch]],OperatingSchedules_List,0))*ProjectInfoTable[[#This Row],[Space W (Existing, Stipulated)]]/1000,\"\")","v":""},{"$f":"IFERROR(INDEX(OperatingHours_List,MATCH(ProjectInfoTable[[#This Row],[OpSch]],OperatingSchedules_List,0))*ProjectInfoTable[[#This Row],[Space W (Existing, Stipulated)]]/1000*(IFERROR(INDEX(ControlsLookup[],MATCH(RIGHT(ProjectInfoTable[[#This Row],[Existing Equipment]],LEN(ProjectInfoTable[[#This Row],[Existing Equipment]])-FIND(\"]\",ProjectInfoTable[[#This Row],[Existing Equipment]],1)-3),ControlsLookup[Controls],0),MATCH(\"CSF_\"&ProjectState,ControlsLookup[#Headers],0)),0))*-1,\"\")","v":""},{"$f":"IF(OR(ProjectInfoTable[[#This Row],[Fixture kWh (Existing, Stipulated)]]=\"\",ProjectInfoTable[[#This Row],[Control kWh (Existing, Stipulated)]]=\"\"),\"\",ProjectInfoTable[[#This Row],[Fixture kWh (Existing, Stipulated)]]+ProjectInfoTable[[#This Row],[Control kWh (Existing, Stipulated)]])","v":""},{"$f":"IF(\n AND(\n  OR(ProjectInfoTable[[#This Row],[Existing Equipment]]=\"\",ProjectInfoTable[[#This Row],[Quantity (Existing)]]=\"\"),\n  ProjectType=\"Retrofit\"\n ),\n \"\",\n IF(\n  ISNUMBER(FIND(\"Street:\",ProjectInfoTable[[#This Row],[Existing Equipment]],1)),\n  IF(\n   OR(\n    AND(ProjectState=\"UT\",RateSchedule=12),\n    AND(ProjectState=\"ID\",RateSchedule=12),\n    AND(ProjectState=\"WY\",RateSchedule=58)\n   ),\n   IFERROR(\n    INDEX(\n     StreetLightingRates_Table[],\n     MATCH(MID(ProjectInfoTable[[#This Row],[Existing Equipment]],FIND(\": \",ProjectInfoTable[[#This Row],[Existing Equipment]],1)+2,FIND(\" (\",ProjectInfoTable[[#This Row],[Existing Equipment]],1)-FIND(\": \",ProjectInfoTable[[#This Row],[Existing Equipment]],1)-2)&ProjectInfoTable[[#This Row],[Lamp W (Existing)]],StreetLightingRates_Table[TechWattage],0),\n     MATCH(ProjectState&RateSchedule,StreetLightingRates_Table[#Headers],0)\n    )\n    *\n    ProjectInfoTable[[#This Row],[Quantity (Existing)]]\n    *\n    ProjectInfoTable[[#This Row],[Lamps (Existing)]]\n    *\n    12,\n    ProjectInfoTable[[#This Row],[Space kWh (Existing, Actual)]]\n    *\n    INDEX(INDIRECT(\"RateSchedules_\"&ProjectState&\"_Table[kWh Rate]\"),MATCH(RateSchedule,INDIRECT(\"RateSchedules_\"&ProjectState&\"_Table[Rate Schedule]\"),0))\n   ),\n   IFERROR(\n    ProjectInfoTable[[#This Row],[Space kWh (Existing, Actual)]]*\n    INDEX(INDIRECT(\"RateSchedules_\"&ProjectState&\"_Table[kWh Rate]\"),MATCH(RateSchedule,INDIRECT(\"RateSchedules_\"&ProjectState&\"_Table[Rate Schedule]\"),0)),0)\n   +\n   IFERROR(IF(ISNUMBER(FIND(\"Interior:\",ProjectInfoTable[[#This Row],[Existing Equipment]],1)),\n    ProjectInfoTable[[#This Row],[Space W (Existing, Actual)]]/1000*12*DDF*\n    INDEX(INDIRECT(\"RateSchedules_\"&ProjectState&\"_Table[kW Rate]\"),MATCH(RateSchedule,INDIRECT(\"RateSchedules_\"&ProjectState&\"_Table[Rate Schedule]\"),0)),0),0)\n  ),\n  IFERROR(\n   ProjectInfoTable[[#This Row],[Space kWh (Existing, Actual)]]*\n   INDEX(INDIRECT(\"RateSchedules_\"&ProjectState&\"_Table[kWh Rate]\"),MATCH(RateSchedule,INDIRECT(\"RateSchedules_\"&ProjectState&\"_Table[Rate Schedule]\"),0)),\n   0\n  )\n  +\n  IFERROR(IF(OR(ISNUMBER(FIND(\"Interior:\",ProjectInfoTable[[#This Row],[Existing Equipment]],1)),AND(ProjectType<>\"Retrofit\",ISNUMBER(FIND(\"Interior:\",ProjectInfoTable[[#This Row],[Proposed Equipment]],1)))),\n   ProjectInfoTable[[#This Row],[Space W (Existing, Actual)]]/1000*12*DDF*\n   INDEX(INDIRECT(\"RateSchedules_\"&ProjectState&\"_Table[kW Rate]\"),MATCH(RateSchedule,INDIRECT(\"RateSchedules_\"&ProjectState&\"_Table[Rate Schedule]\"),0)),0),\n   0\n  )\n )\n)","v":0},{"$f":"IF(\n AND(\n  OR(ProjectInfoTable[[#This Row],[Existing Equipment]]=\"\",ProjectInfoTable[[#This Row],[Quantity (Existing)]]=\"\"),\n  ProjectType=\"Retrofit\"\n ),\n \"\",\n IF(\n  ISNUMBER(FIND(\"Street:\",ProjectInfoTable[[#This Row],[Existing Equipment]],1)),\n  IF(\n   OR(\n    AND(ProjectState=\"UT\",RateSchedule=12),\n    AND(ProjectState=\"ID\",RateSchedule=12),\n    AND(ProjectState=\"WY\",RateSchedule=58)\n   ),\n   IFERROR(\n    INDEX(\n     StreetLightingRates_Table[],\n     MATCH(MID(ProjectInfoTable[[#This Row],[Existing Equipment]],FIND(\": \",ProjectInfoTable[[#This Row],[Existing Equipment]],1)+2,FIND(\" (\",ProjectInfoTable[[#This Row],[Existing Equipment]],1)-FIND(\": \",ProjectInfoTable[[#This Row],[Existing Equipment]],1)-2)&ProjectInfoTable[[#This Row],[Lamp W (Existing)]],StreetLightingRates_Table[TechWattage],0),\n     MATCH(ProjectState&RateSchedule,StreetLightingRates_Table[#Headers],0)\n    )\n    *\n    ProjectInfoTable[[#This Row],[Quantity (Existing)]]\n    *\n    ProjectInfoTable[[#This Row],[Lamps (Existing)]]\n    *\n    12,\n    ProjectInfoTable[[#This Row],[Space kWh (Existing, Stipulated)]]\n    *\n    INDEX(INDIRECT(\"RateSchedules_\"&ProjectState&\"_Table[kWh Rate]\"),MATCH(RateSchedule,INDIRECT(\"RateSchedules_\"&ProjectState&\"_Table[Rate Schedule]\"),0))\n   ),\n   IFERROR(\n    ProjectInfoTable[[#This Row],[Space kWh (Existing, Stipulated)]]*\n    INDEX(INDIRECT(\"RateSchedules_\"&ProjectState&\"_Table[kWh Rate]\"),MATCH(RateSchedule,INDIRECT(\"RateSchedules_\"&ProjectState&\"_Table[Rate Schedule]\"),0)),0)\n   +\n   IFERROR(IF(ISNUMBER(FIND(\"Interior:\",ProjectInfoTable[[#This Row],[Existing Equipment]],1)),\n    ProjectInfoTable[[#This Row],[Space W (Existing, Stipulated)]]/1000*12*DDF*\n    INDEX(INDIRECT(\"RateSchedules_\"&ProjectState&\"_Table[kW Rate]\"),MATCH(RateSchedule,INDIRECT(\"RateSchedules_\"&ProjectState&\"_Table[Rate Schedule]\"),0)),0),0)\n  ),\n  IFERROR(\n   ProjectInfoTable[[#This Row],[Space kWh (Existing, Stipulated)]]*\n   INDEX(INDIRECT(\"RateSchedules_\"&ProjectState&\"_Table[kWh Rate]\"),MATCH(RateSchedule,INDIRECT(\"RateSchedules_\"&ProjectState&\"_Table[Rate Schedule]\"),0)),\n   0\n  )\n  +\n  IFERROR(IF(OR(ISNUMBER(FIND(\"Interior:\",ProjectInfoTable[[#This Row],[Existing Equipment]],1)),AND(ProjectType<>\"Retrofit\",ISNUMBER(FIND(\"Interior:\",ProjectInfoTable[[#This Row],[Proposed Equipment]],1)))),\n   ProjectInfoTable[[#This Row],[Space W (Existing, Stipulated)]]/1000*12*DDF*\n   INDEX(INDIRECT(\"RateSchedules_\"&ProjectState&\"_Table[kW Rate]\"),MATCH(RateSchedule,INDIRECT(\"RateSchedules_\"&ProjectState&\"_Table[Rate Schedule]\"),0)),0),\n   0\n  )\n )\n)","v":0},{"$f":"IF(ProjectType=\"Retrofit\",IFERROR(INDEX(RetrofitBaselineEquipment_Table[categoryBaseline],MATCH(RIGHT(LEFT(ProjectInfoTable[[#This Row],[Proposed Equipment]],FIND(\" (\",ProjectInfoTable[[#This Row],[Proposed Equipment]],1)-1),LEN(LEFT(ProjectInfoTable[[#This Row],[Proposed Equipment]],FIND(\" (\",ProjectInfoTable[[#This Row],[Proposed Equipment]],1)-1))-FIND(\": \",ProjectInfoTable[[#This Row],[Proposed Equipment]],1)-1),RetrofitBaselineEquipment_Table[equipmentBaseline],0)),\"\"),IFERROR(INDEX(#REF!,MATCH(RIGHT(LEFT(ProjectInfoTable[[#This Row],[Proposed Equipment]],FIND(\" (\",ProjectInfoTable[[#This Row],[Proposed Equipment]],1)-1),LEN(LEFT(ProjectInfoTable[[#This Row],[Proposed Equipment]],FIND(\" (\",ProjectInfoTable[[#This Row],[Proposed Equipment]],1)-1))-FIND(\": \",ProjectInfoTable[[#This Row],[Proposed Equipment]],1)-1),#REF!,0)),\"\"))","v":""},{"$f":"IF(ProjectInfoTable[[#This Row],[Proposed Equipment]]=\"\",\"\",IF(ISNUMBER(SEARCH(\"Controls Only\",ProjectInfoTable[[#This Row],[Proposed Equipment]])),\"Controls Only\",IF(ProjectType=\"Retrofit\",_xlfn.LET(_xlpm.k,LEFT(ProjectInfoTable[[#This Row],[Proposed Equipment]],FIND(\"[\",ProjectInfoTable[[#This Row],[Proposed Equipment]])-2),_xlpm.ep,_xlfn.SWITCH(ProjectState,\"UT\",EquipmentTable_Retrofit_UT[equipmentProposed],\"WY\",EquipmentTable_Retrofit_WY[equipmentProposed],\"ID\",EquipmentTable_Retrofit_ID[equipmentProposed]),_xlpm.cp,_xlfn.SWITCH(ProjectState,\"UT\",EquipmentTable_Retrofit_UT[categoryProposed],\"WY\",EquipmentTable_Retrofit_WY[categoryProposed],\"ID\",EquipmentTable_Retrofit_ID[categoryProposed]),_xlfn.XLOOKUP(_xlpm.k,_xlpm.ep,_xlpm.cp,\"Non-eligible fixture - Retrofit - \"&ProjectState)),_xlfn.LET(_xlpm.k,MID(ProjectInfoTable[[#This Row],[Proposed Equipment]],FIND(\": \",ProjectInfoTable[[#This Row],[Proposed Equipment]])+2,FIND(\" (\",ProjectInfoTable[[#This Row],[Proposed Equipment]])-(FIND(\": \",ProjectInfoTable[[#This Row],[Proposed Equipment]])+2)),_xlpm.ep,_xlfn.SWITCH(ProjectState,\"UT\",EquipmentTable_NCMR_UT[equipmentProposed],\"WY\",EquipmentTable_NCMR_WY[equipmentProposed],\"ID\",EquipmentTable_NCMR_ID[equipmentProposed]),_xlpm.cp,_xlfn.SWITCH(ProjectState,\"UT\",EquipmentTable_NCMR_UT[categoryProposed],\"WY\",EquipmentTable_NCMR_WY[categoryProposed],\"ID\",EquipmentTable_NCMR_ID[categoryProposed]),_xlfn.XLOOKUP(_xlpm.k,_xlpm.ep,_xlpm.cp,\"Non-eligible fixture - NCMR - \"&ProjectState)))))","v":""},null,null,"ü",{"$f":"IF(ProjectInfoTable[[#This Row],[Proposed Equipment]]=\"\",\"\",IF(ProjectInfoTable[[#This Row],[Measure Selection]]=\"\",0,IF(ISNUMBER(FIND(\"LF\",ProjectInfoTable[[#This Row],[Proposed Equipment]],1)),1,IFERROR(VALUE(SUBSTITUTE(RIGHT(LEFT(ProjectInfoTable[[#This Row],[Proposed Equipment]],FIND(\"L\",ProjectInfoTable[[#This Row],[Proposed Equipment]],FIND(\"[\",ProjectInfoTable[[#This Row],[Proposed Equipment]],1))-1),2),\"[\",\"\")),IFERROR(LEFT(RIGHT(ProjectInfoTable[[#This Row],[Proposed Equipment]],LEN(ProjectInfoTable[[#This Row],[Proposed Equipment]])-FIND(\"-lamp\",ProjectInfoTable[[#This Row],[Proposed Equipment]],1)+2),1),1)))))","v":""},{"$f":"IF(ProjectInfoTable[[#This Row],[Proposed Equipment]]=\"\",\"\",IF(ProjectInfoTable[[#This Row],[Measure Selection]]=\"\",0,IFERROR(\n\nIF(ISNUMBER(FIND(\"W]\",ProjectInfoTable[[#This Row],[Proposed Equipment]])),\nRIGHT(MID(ProjectInfoTable[[#This Row],[Proposed Equipment]],FIND(\"W]\",ProjectInfoTable[[#This Row],[Proposed Equipment]],FIND(\"[\",ProjectInfoTable[[#This Row],[Proposed Equipment]]))-7,7),\nLEN(MID(ProjectInfoTable[[#This Row],[Proposed Equipment]],FIND(\"W]\",ProjectInfoTable[[#This Row],[Proposed Equipment]],FIND(\"[\",ProjectInfoTable[[#This Row],[Proposed Equipment]]))-7,7)) -\nIFERROR(FIND(\" - \",MID(ProjectInfoTable[[#This Row],[Proposed Equipment]],FIND(\"W]\",ProjectInfoTable[[#This Row],[Proposed Equipment]],FIND(\"[\",ProjectInfoTable[[#This Row],[Proposed Equipment]]))-7,7))+2,\nFIND(\"[\",MID(ProjectInfoTable[[#This Row],[Proposed Equipment]],FIND(\"W]\",ProjectInfoTable[[#This Row],[Proposed Equipment]],FIND(\"[\",ProjectInfoTable[[#This Row],[Proposed Equipment]]))-7,7)))),\n\nIF(ISNUMBER(FIND(\"[\",MID(ProjectInfoTable[[#This Row],[Proposed Equipment]],FIND(\"W \",ProjectInfoTable[[#This Row],[Proposed Equipment]],FIND(\"[\",ProjectInfoTable[[#This Row],[Proposed Equipment]]))-7,7))),\nRIGHT(MID(ProjectInfoTable[[#This Row],[Proposed Equipment]],FIND(\"W \",ProjectInfoTable[[#This Row],[Proposed Equipment]],FIND(\"[\",ProjectInfoTable[[#This Row],[Proposed Equipment]]))-7,7),\nLEN(MID(ProjectInfoTable[[#This Row],[Proposed Equipment]],FIND(\"W \",ProjectInfoTable[[#This Row],[Proposed Equipment]],FIND(\"[\",ProjectInfoTable[[#This Row],[Proposed Equipment]]))-7,7)) -\nIFERROR(FIND(\" - \",MID(ProjectInfoTable[[#This Row],[Proposed Equipment]],FIND(\"W \",ProjectInfoTable[[#This Row],[Proposed Equipment]],FIND(\"[\",ProjectInfoTable[[#This Row],[Proposed Equipment]]))-7,7))+2,\nFIND(\"[\",MID(ProjectInfoTable[[#This Row],[Proposed Equipment]],FIND(\"W \",ProjectInfoTable[[#This Row],[Proposed Equipment]],FIND(\"[\",ProjectInfoTable[[#This Row],[Proposed Equipment]]))-7,7)))),\n\nRIGHT(MID(ProjectInfoTable[[#This Row],[Proposed Equipment]],FIND(\"W \",ProjectInfoTable[[#This Row],[Proposed Equipment]],FIND(\"[\",ProjectInfoTable[[#This Row],[Proposed Equipment]]))-7,7),\nLEN(MID(ProjectInfoTable[[#This Row],[Proposed Equipment]],FIND(\"W \",ProjectInfoTable[[#This Row],[Proposed Equipment]],FIND(\"[\",ProjectInfoTable[[#This Row],[Proposed Equipment]]))-7,7)) -\nFIND(\" - \",MID(ProjectInfoTable[[#This Row],[Proposed Equipment]],FIND(\"W \",ProjectInfoTable[[#This Row],[Proposed Equipment]],FIND(\"[\",ProjectInfoTable[[#This Row],[Proposed Equipment]]))-7,7))-2\n))),0)))","v":""},{"$f":"IF(ProjectInfoTable[[#This Row],[Proposed Equipment]]=\"\",\"\",IFERROR(ProjectInfoTable[[#This Row],[Lamps (Proposed)]]*ProjectInfoTable[[#This Row],[Lamp W (Proposed)]],\"\"))","v":""},{"$f":"IF(ProjectInfoTable[[#This Row],[Proposed Equipment]]=\"\",\"\",IFERROR(ProjectInfoTable[[#This Row],[Quantity (Proposed)]]*ProjectInfoTable[[#This Row],[Fixture W (Proposed)]],\"\"))","v":""},{"$f":"IFERROR(INDEX(OperatingHours_List,MATCH(ProjectInfoTable[[#This Row],[OpSch]],OperatingSchedules_List,0))*ProjectInfoTable[[#This Row],[Space W (Proposed)]]/1000,\"\")","v":""},{"$f":"IF(OR(ISNUMBER(FIND(\"Controls Only\",ProjectInfoTable[[#This Row],[Proposed Equipment]],1)),ProjectInfoTable[[#This Row],[ControlsOnly]]=\"Re-Commissioning\"),\"Controls Only\",IFERROR(INDEX(OperatingHours_List,MATCH(ProjectInfoTable[[#This Row],[OpSch]],OperatingSchedules_List,0))*ProjectInfoTable[[#This Row],[Space W (Proposed)]]/1000*(IFERROR(INDEX(ControlsLookup[],MATCH(SUBSTITUTE(RIGHT(ProjectInfoTable[[#This Row],[Proposed Equipment]],LEN(ProjectInfoTable[[#This Row],[Proposed Equipment]])-FIND(\"]\",ProjectInfoTable[[#This Row],[Proposed Equipment]],1)-3),\" reused\",\"\"),ControlsLookup[Controls],0),MATCH(\"CSF_\"&ProjectState,ControlsLookup[#Headers],0)),0))*-1,\"\"))","v":""},{"$f":"IF(OR(ProjectInfoTable[[#This Row],[Fixture kWh (Proposed)]]=\"\",ProjectInfoTable[[#This Row],[Control kWh (Proposed)]]=\"\"),\"\",IFERROR(ProjectInfoTable[[#This Row],[Fixture kWh (Proposed)]]+ProjectInfoTable[[#This Row],[Control kWh (Proposed)]],0))","v":""},{"$f":"IF(\n OR(\n  ProjectInfoTable[[#This Row],[Proposed Equipment]]=\"\",\n  ProjectInfoTable[[#This Row],[Quantity (Proposed)]]=\"\"\n ),\n \"\",\n IF(\n  AND(\n   OR(\n    AND(\n     ProjectState=\"UT\",\n     RateSchedule=12\n    ),\n    AND(\n     ProjectState=\"ID\",\n     RateSchedule=12\n    ),\n    AND(\n     ProjectState=\"WY\",\n     RateSchedule=58\n    )\n   ),\n   ISNUMBER(FIND(\"Street:\",ProjectInfoTable[[#This Row],[Existing Equipment]],1))\n  ),\n  IF(\n   AND(\n    RateSchedule=53,\n    ISNUMBER(FIND(\"LED\",ProjectInfoTable[[#This Row],[Proposed Equipment]],1))\n   ),\n   ProjectInfoTable[[#This Row],[Fixture kWh (Proposed)]]\n   *\n   INDEX(\n    INDIRECT(\"RateSchedules_\"&ProjectState&\"_Table[kWh Rate]\"),\n    MATCH(RateSchedule,INDIRECT(\"RateSchedules_\"&ProjectState&\"_Table[Rate Schedule]\"),0)\n   ),\n   IFERROR(INDEX(\n    StreetLightingRates_Table[],\n    MATCH(\"LED\"&IF(AND(ProjectInfoTable[[#This Row],[Fixture W (Proposed)]]>0,ProjectInfoTable[[#This Row],[Fixture W (Proposed)]]<=70),70,IF(AND(ProjectInfoTable[[#This Row],[Fixture W (Proposed)]]>70,ProjectInfoTable[[#This Row],[Fixture W (Proposed)]]<=100),100,IF(AND(ProjectInfoTable[[#This Row],[Fixture W (Proposed)]]>100,ProjectInfoTable[[#This Row],[Fixture W (Proposed)]]<=150),150,IF(AND(ProjectInfoTable[[#This Row],[Fixture W (Proposed)]]>150,ProjectInfoTable[[#This Row],[Fixture W (Proposed)]]<=200),200,IF(AND(ProjectInfoTable[[#This Row],[Fixture W (Proposed)]]>200,ProjectInfoTable[[#This Row],[Fixture W (Proposed)]]<=250),250,IF(AND(ProjectInfoTable[[#This Row],[Fixture W (Proposed)]]>250,ProjectInfoTable[[#This Row],[Fixture W (Proposed)]]<=400),400,\"\")))))),StreetLightingRates_Table[TechWattage],0),\n    MATCH(ProjectState&RateSchedule,StreetLightingRates_Table[#Headers],0)\n   )\n   *ProjectInfoTable[[#This Row],[Lamps (Proposed)]]*ProjectInfoTable[[#This Row],[Quantity (Proposed)]]*12,\n  ProjectInfoTable[[#This Row],[Space kWh (Proposed)]]*INDEX(INDIRECT(\"RateSchedules_\"&ProjectState&\"_Table[kWh Rate]\"),MATCH(RateSchedule,INDIRECT(\"RateSchedules_\"&ProjectState&\"_Table[Rate Schedule]\"),0)))),\n  IFERROR(ProjectInfoTable[[#This Row],[Space kWh (Proposed)]]*INDEX(INDIRECT(\"RateSchedules_\"&ProjectState&\"_Table[kWh Rate]\"),MATCH(RateSchedule,INDIRECT(\"RateSchedules_\"&ProjectState&\"_Table[Rate Schedule]\"),0)),0)\n  +\n  IF(OR(ISNUMBER(FIND(\"Exterior:\",ProjectInfoTable[[#This Row],[Existing Equipment]],1)),ISNUMBER(FIND(\"Street:\",ProjectInfoTable[[#This Row],[Existing Equipment]],1))),0,IFERROR(ProjectInfoTable[[#This Row],[Space W (Proposed)]]/1000*12*DDF*INDEX(INDIRECT(\"RateSchedules_\"&ProjectState&\"_Table[kW Rate]\"),MATCH(RateSchedule,INDIRECT(\"RateSchedules_\"&ProjectState&\"_Table[Rate Schedule]\"),0)),0))\n )\n)","v":""},{"$f":"IF(ProjectInfoTable[[#This Row],[Measure Selection]]=\"\",0,IF(ProjectType=\"Retrofit\",IFERROR((ProjectInfoTable[[#This Row],[Space W (Existing, Actual)]]-ProjectInfoTable[[#This Row],[Space W (Proposed)]])/ProjectInfoTable[[#This Row],[Space W (Existing, Actual)]],\"\"),IF(AND(ProjectInfoTable[[#This Row],[Proposed Equipment]]=\"\",ProjectInfoTable[[#This Row],[Quantity (Proposed)]]=\"\"),\"\",IFERROR((ProjectInfoTable[[#This Row],[Space W (Existing, Stipulated)]]-ProjectInfoTable[[#This Row],[Space W (Proposed)]])/ProjectInfoTable[[#This Row],[Space W (Existing, Stipulated)]],\"n/a\"))))","v":""},{"$f":"IF(ProjectInfoTable[[#This Row],[Measure Selection]]=\"\",0,IF(ProjectType=\"Retrofit\",IFERROR((ProjectInfoTable[[#This Row],[Space W (Existing, Stipulated)]]-ProjectInfoTable[[#This Row],[Space W (Proposed)]])/ProjectInfoTable[[#This Row],[Space W (Existing, Stipulated)]],\"\"),ProjectInfoTable[[#This Row],[% Wattage Reduction (Actual)]]))","v":""},{"$f":"IFERROR(IF(OR(ProjectInfoTable[[#This Row],[Measure Selection]]=\"\",ProjectInfoTable[[#This Row],[ControlsOnly]]=\"Re-Commissioning\"),0,IF(AND(ProjectType=\"Retrofit\",LEFT(ProjectInfoTable[[#This Row],[Existing Equipment]],FIND(\": \",ProjectInfoTable[[#This Row],[Existing Equipment]],1)-1)<>\"Interior\"),0,((ProjectInfoTable[[#This Row],[Space W (Existing, Actual)]]-ProjectInfoTable[[#This Row],[Space W (Proposed)]])/1000*DDF)-IF(ProjectInfoTable[[#This Row],[Midstream Measure Name]]<>\"\",IFERROR(ProjectInfoTable[[#This Row],[kW Per Unit (Midstream)]]*ProjectInfoTable[[#This Row],[Quantity]]*ProjectInfoTable[[#This Row],[No. of TRL Units]],0),0))),\"\")","v":""},{"$f":"IFERROR(IF(OR(ProjectInfoTable[[#This Row],[Measure Selection]]=\"\",ProjectInfoTable[[#This Row],[ControlsOnly]]=\"Re-Commissioning\"),0,IF(AND(ISNUMBER(VALUE(ProjectInfoTable[[#This Row],[kW Per Unit]])),ProjectInfoTable[[#This Row],[kW Per Unit]]<>0),ROUND(ProjectInfoTable[[#This Row],[kW Per Unit]]*ProjectInfoTable[[#This Row],[Quantity]]*ProjectInfoTable[[#This Row],[No. of TRL Units]],2),IF(OR(AND(ProjectType=\"Retrofit\",LEFT(ProjectInfoTable[[#This Row],[Existing Equipment]],FIND(\": \",ProjectInfoTable[[#This Row],[Existing Equipment]],1)-1)<>\"Interior\"),AND(ProjectInfoTable[[#This Row],[Incentives Per Unit]]=0,INDEX(StipulatedSavingsYesNo_Table[Stipulated Savings?],MATCH(ProjectState,StipulatedSavingsYesNo_Table[State],0))=\"No\")),0,IF(ISNUMBER(FIND(\"Controls Only\",ProjectInfoTable[[#This Row],[Proposed Equipment]],1)),0,ROUND(((ProjectInfoTable[[#This Row],[Space W (Existing, Stipulated)]]-ProjectInfoTable[[#This Row],[Space W (Proposed)]])/1000*DDF)-IF(ProjectInfoTable[[#This Row],[Midstream Measure Name]]<>\"\",IFERROR(ProjectInfoTable[[#This Row],[kW Per Unit (Midstream)]]*ProjectInfoTable[[#This Row],[Quantity]]*ProjectInfoTable[[#This Row],[No. of TRL Units]],0),0),2))))),\"\")","v":""},{"$f":"IFERROR(IF(OR(ProjectInfoTable[[#This Row],[Control kWh (Proposed)]]=\"Controls Only\",ProjectInfoTable[[#This Row],[Measure Selection]]=\"\"),0,ROUND((ProjectInfoTable[[#This Row],[Fixture kWh (Existing, Actual)]]-ProjectInfoTable[[#This Row],[Fixture kWh (Proposed)]])*IF(VALUE(SpaceTypesInfo_Table[[#Totals],[HVAC Effects]])=0,1,1+VALUE(SpaceTypesInfo_Table[[#Totals],[HVAC Effects]])),0)),\"\")","v":""},{"$f":"IFERROR(IF(ProjectInfoTable[[#This Row],[Control kWh (Proposed)]]=\"Controls Only\",ROUND(IFERROR(INDEX(OperatingHours_List,MATCH(ProjectInfoTable[[#This Row],[OpSch]],OperatingSchedules_List,0))*IF(OR(ProjectType <> \"Retrofit\",ProjectInfoTable[[#This Row],[Space W (Proposed)]]>0),ProjectInfoTable[[#This Row],[Space W (Proposed)]],ProjectInfoTable[[#This Row],[Space W (Existing, Actual)]])/1000*(IFERROR(INDEX(ControlsLookup[],MATCH(RIGHT(ProjectInfoTable[[#This Row],[Proposed Equipment]],LEN(ProjectInfoTable[[#This Row],[Proposed Equipment]])-FIND(\"]\",ProjectInfoTable[[#This Row],[Proposed Equipment]],1)-3),ControlsLookup[Controls],0),MATCH(\"CSF_\"&ProjectState,ControlsLookup[#Headers],0)),0))*IF(VALUE(SpaceTypesInfo_Table[[#Totals],[HVAC Effects]])=0,1,1+VALUE(SpaceTypesInfo_Table[[#Totals],[HVAC Effects]])),\"\"),0),ROUND(IFERROR((ProjectInfoTable[[#This Row],[Control kWh (Existing, Actual)]]-ProjectInfoTable[[#This Row],[Control kWh (Proposed)]])*IF(VALUE(SpaceTypesInfo_Table[[#Totals],[HVAC Effects]])=0,1,1+VALUE(SpaceTypesInfo_Table[[#Totals],[HVAC Effects]])),\"\"),0)),\"\")","v":""},{"$f":"IF(OR(ProjectInfoTable[[#This Row],[Proposed Equipment]]=\"\",ProjectInfoTable[[#This Row],[Quantity (Proposed)]]=\"\"),\"\",IF(ProjectInfoTable[[#This Row],[Fixture Measure]]=\"\",0,IF(AND(ProjectInfoTable[[#This Row],[Incentives Per Unit]]=0,INDEX(StipulatedSavingsYesNo_Table[Stipulated Savings?],MATCH(ProjectState,StipulatedSavingsYesNo_Table[State],0))=\"No\"),0,ProjectInfoTable[[#This Row],[Total   kWh/yr Savings (Actual)]]-ProjectInfoTable[[#This Row],[Control Measure kWh/yr Savings (Actual)]])))","v":""},{"$f":"IF(OR(ProjectInfoTable[[#This Row],[Proposed Equipment]]=\"\",ProjectInfoTable[[#This Row],[Quantity (Proposed)]]=\"\"),\"\",IF(ProjectInfoTable[[#This Row],[Control Measure]]=\"\",0,ProjectInfoTable[[#This Row],[Control kWh/yr Savings (Actual)]]))","v":""},{"$f":"IF(AND(ProjectInfoTable[[#This Row],[Incentives Per Unit]]=0,INDEX(StipulatedSavingsYesNo_Table[Stipulated Savings?],MATCH(ProjectState,StipulatedSavingsYesNo_Table[State],0))=\"No\"),ProjectInfoTable[[#This Row],[Fixture kWh/yr Savings (Actual)]]+IF(ProjectInfoTable[[#This Row],[Control Measure kWh/yr Savings (Actual)]]=0,0,ProjectInfoTable[[#This Row],[Control kWh/yr Savings (Actual)]]),IF(AND(ProjectInfoTable[[#This Row],[Fixture kWh/yr Savings (Actual)]]=\"\",ProjectInfoTable[[#This Row],[Control kWh/yr Savings (Actual)]]=\"\"),\"\",ROUND(IF(ProjectInfoTable[[#This Row],[Fixture kWh/yr Savings (Actual)]]=\"\",0,ProjectInfoTable[[#This Row],[Fixture kWh/yr Savings (Actual)]])+IF(ProjectInfoTable[[#This Row],[Control kWh/yr Savings (Actual)]]=\"\",0,ProjectInfoTable[[#This Row],[Control kWh/yr Savings (Actual)]])-IF(ProjectInfoTable[[#This Row],[Midstream Measure Name]]<>\"\",IFERROR(ProjectInfoTable[[#This Row],[kWh Per Unit (Midstream)]]*ProjectInfoTable[[#This Row],[Quantity]]*ProjectInfoTable[[#This Row],[No. of TRL Units]],0),0),0)))","v":""},{"$f":"IFERROR(IF(OR(ProjectInfoTable[[#This Row],[Measure Selection]]=\"\",ProjectInfoTable[[#This Row],[ControlsOnly]]=\"Re-Commissioning\"),0,IF(AND(ProjectInfoTable[[#This Row],[Incentives Per Unit]]=0,INDEX(StipulatedSavingsYesNo_Table[Stipulated Savings?],MATCH(ProjectState,StipulatedSavingsYesNo_Table[State],0))=\"No\"),0,IF(ISNUMBER(FIND(\"Controls Only\",ProjectInfoTable[[#This Row],[Proposed Equipment]],1)),0,ROUND((ProjectInfoTable[[#This Row],[Fixture kWh (Existing, Stipulated)]]-ProjectInfoTable[[#This Row],[Fixture kWh (Proposed)]])*IF(VALUE(SpaceTypesInfo_Table[[#Totals],[HVAC Effects]])=0,1,1+VALUE(SpaceTypesInfo_Table[[#Totals],[HVAC Effects]])),0)))),\"\")","v":""},{"$f":"IFERROR(IF(ProjectInfoTable[[#This Row],[Control kWh (Proposed)]]=\"Controls Only\",ROUND(IFERROR(INDEX(OperatingHours_List,MATCH(ProjectInfoTable[[#This Row],[OpSch]],OperatingSchedules_List,0))*IF(OR(ProjectType <> \"Retrofit\",ProjectInfoTable[[#This Row],[Space W (Proposed)]]>0),ProjectInfoTable[[#This Row],[Space W (Proposed)]],ProjectInfoTable[[#This Row],[Space W (Existing, Stipulated)]])/1000*(IFERROR(INDEX(ControlsLookup[],MATCH(RIGHT(ProjectInfoTable[[#This Row],[Proposed Equipment]],LEN(ProjectInfoTable[[#This Row],[Proposed Equipment]])-FIND(\"]\",ProjectInfoTable[[#This Row],[Proposed Equipment]],1)-3),ControlsLookup[Controls],0),MATCH(\"CSF_\"&ProjectState,ControlsLookup[#Headers],0)),0))*IF(VALUE(SpaceTypesInfo_Table[[#Totals],[HVAC Effects]])=0,1,1+VALUE(SpaceTypesInfo_Table[[#Totals],[HVAC Effects]])),\"\"),0),ROUND(IFERROR((ProjectInfoTable[[#This Row],[Control kWh (Existing, Stipulated)]]-ProjectInfoTable[[#This Row],[Control kWh (Proposed)]])*IF(VALUE(SpaceTypesInfo_Table[[#Totals],[HVAC Effects]])=0,1,1+VALUE(SpaceTypesInfo_Table[[#Totals],[HVAC Effects]])),INDEX(ControlsLookup[],MATCH(RIGHT(ProjectInfoTable[[#This Row],[Proposed Equipment]],LEN(ProjectInfoTable[[#This Row],[Proposed Equipment]])-FIND(\"-\",ProjectInfoTable[[#This Row],[Proposed Equipment]],LEN(ProjectInfoTable[[#This Row],[Proposed Equipment]])-15)-1),ControlsLookup[Controls],0),MATCH(\"CSF_\"&ProjectState,ControlsLookup[#Headers],0))*IF(NOT(ISNUMBER(VALUE(ProjectInfoTable[[#This Row],[kWh Per Unit]]))),ProjectInfoTable[[#This Row],[Fixture kWh/yr Savings (Stipulated)]],ProjectInfoTable[[#This Row],[kWh Per Unit]]*ProjectInfoTable[[#This Row],[Quantity]]*ProjectInfoTable[[#This Row],[No. of TRL Units]])),0)),IF(OR(ProjectType=\"New Construction\",ProjectType=\"Major Renovation\"),IF(ProjectInfoTable[[#This Row],[Control kWh (Proposed)]]=\"\",\"\",0),\"\"))","v":""},{"$f":"IF(OR(ProjectInfoTable[[#This Row],[Proposed Equipment]]=\"\",ProjectInfoTable[[#This Row],[Quantity (Proposed)]]=\"\"),\"\",IF(ProjectInfoTable[[#This Row],[Fixture Measure]]=\"\",0,IF(AND(ProjectInfoTable[[#This Row],[Incentives Per Unit]]=0,INDEX(StipulatedSavingsYesNo_Table[Stipulated Savings?],MATCH(ProjectState,StipulatedSavingsYesNo_Table[State],0))=\"No\"),0,ProjectInfoTable[[#This Row],[Total   kWh/yr Savings (Stipulated)]]-ProjectInfoTable[[#This Row],[Control Measure kWh/yr Savings (Stipulated)]])))","v":""},{"$f":"IF(OR(ProjectInfoTable[[#This Row],[Proposed Equipment]]=\"\",ProjectInfoTable[[#This Row],[Quantity (Proposed)]]=\"\"),\"\",IF(ProjectInfoTable[[#This Row],[Control Measure]]=\"\",0,IF(OR(ProjectType=\"New Construction\",ProjectType=\"Major Renovation\"),IFERROR(ROUND(ProjectInfoTable[[#This Row],[Control kWh Per Unit]]*ProjectInfoTable[[#This Row],[Control Quantity]]*ProjectInfoTable[[#This Row],[Control No. of TRL Units]],0),ProjectInfoTable[[#This Row],[Control kWh/yr Savings (Stipulated)]]),ProjectInfoTable[[#This Row],[Control kWh/yr Savings (Stipulated)]])))","v":""},{"$f":"IF(AND(ProjectInfoTable[[#This Row],[Incentives Per Unit]]=0,INDEX(StipulatedSavingsYesNo_Table[Stipulated Savings?],MATCH(ProjectState,StipulatedSavingsYesNo_Table[State],0))=\"No\"),ProjectInfoTable[[#This Row],[Fixture kWh/yr Savings (Stipulated)]]+IF(ProjectInfoTable[[#This Row],[Control Measure kWh/yr Savings (Stipulated)]]=0,0,ProjectInfoTable[[#This Row],[Control kWh/yr Savings (Stipulated)]]),IF(OR(ISNUMBER(VALUE(ProjectInfoTable[[#This Row],[kWh Per Unit]])),ISNUMBER(VALUE(ProjectInfoTable[[#This Row],[Control kWh Per Unit]]))),ROUND(IFERROR(ProjectInfoTable[[#This Row],[kWh Per Unit]]*ProjectInfoTable[[#This Row],[Quantity]]*ProjectInfoTable[[#This Row],[No. of TRL Units]],0)+IFERROR(ProjectInfoTable[[#This Row],[Control kWh Per Unit]]*ProjectInfoTable[[#This Row],[Control Quantity]]*ProjectInfoTable[[#This Row],[Control No. of TRL Units]],ProjectInfoTable[[#This Row],[Control kWh/yr Savings (Stipulated)]]),0),IF(AND(ProjectInfoTable[[#This Row],[Fixture kWh/yr Savings (Stipulated)]]=\"\",ProjectInfoTable[[#This Row],[Control kWh/yr Savings (Stipulated)]]=\"\"),\"\",ROUND(IF(ProjectInfoTable[[#This Row],[Fixture kWh/yr Savings (Stipulated)]]=\"\",0,ProjectInfoTable[[#This Row],[Fixture kWh/yr Savings (Stipulated)]])+IF(ProjectInfoTable[[#This Row],[Control kWh/yr Savings (Stipulated)]]=\"\",0,ProjectInfoTable[[#This Row],[Control kWh/yr Savings (Stipulated)]])-IF(ProjectInfoTable[[#This Row],[Midstream Measure Name]]<>\"\",IFERROR(ProjectInfoTable[[#This Row],[kWh Per Unit (Midstream)]]*ProjectInfoTable[[#This Row],[Quantity]]*ProjectInfoTable[[#This Row],[No. of TRL Units]],0),0),0))))","v":""},{"$f":"IF(OR(ISNUMBER(FIND(\"Midstream\",ProjectInfoTable[[#This Row],[Fixture Measure]])),ISNUMBER(FIND(\"SBDI\",ProjectInfoTable[[#This Row],[Fixture Measure]])),ISNUMBER(FIND(\"Small Bu\",ProjectInfoTable[[#This Row],[Fixture Measure]]))),\n\nIF(ProjectInfoTable[[#This Row],[Measure Selection]]=\"\",0,\n\nIF(ISNUMBER(FIND(\"/U]\",ProjectInfoTable[[#This Row],[Proposed Equipment]])),IFERROR(MID(ProjectInfoTable[[#This Row],[Proposed Equipment]],FIND(\"$\",ProjectInfoTable[[#This Row],[Proposed Equipment]],1)+1,FIND(\"/U]\",ProjectInfoTable[[#This Row],[Proposed Equipment]],1)-FIND(\"$\",ProjectInfoTable[[#This Row],[Proposed Equipment]],1)-1)*ProjectInfoTable[[#This Row],[Lamps (Proposed)]]*ProjectInfoTable[[#This Row],[Quantity (Proposed)]],0),\nIF(ISNUMBER(FIND(\"/U \",ProjectInfoTable[[#This Row],[Proposed Equipment]])),IFERROR(MID(ProjectInfoTable[[#This Row],[Proposed Equipment]],FIND(\"$\",ProjectInfoTable[[#This Row],[Proposed Equipment]],1)+1,FIND(\"/U \",ProjectInfoTable[[#This Row],[Proposed Equipment]],1)-FIND(\"$\",ProjectInfoTable[[#This Row],[Proposed Equipment]],1)-1)*ProjectInfoTable[[#This Row],[Lamps (Proposed)]]*ProjectInfoTable[[#This Row],[Quantity (Proposed)]],0),\nIFERROR(ProjectInfoTable[[#This Row],[Fixture Measure kWh/yr Savings (Stipulated)]]/SUM(ProjectInfoTable[Total   kWh/yr Savings (Stipulated)])*ProjectCost_Total,\"\")))),\"\")","v":""},{"$f":"IFERROR(IF(ProjectInfoTable[[#This Row],[Fixture Measure kWh/yr Savings (Stipulated)]]=0,0,IF(ProjectType=\"Retrofit\",IF(OR(ISNUMBER(FIND(\"Midstream\",ProjectInfoTable[[#This Row],[Fixture Measure]])),ISNUMBER(FIND(\"SBDI\",ProjectInfoTable[[#This Row],[Fixture Measure]])),ISNUMBER(FIND(\"Small Bu\",ProjectInfoTable[[#This Row],[Fixture Measure]]))),ProjectInfoTable[[#This Row],[Measure Cost (Direct)]],IFERROR(ProjectInfoTable[[#This Row],[Fixture Measure kWh/yr Savings (Stipulated)]]/kWhSavings_Typical_Stipulated*(ProjectCost_Total-SUM(ProjectInfoTable[Measure Cost (Direct)])),\"\")),IF(ProjectInfoTable[[#This Row],[Proposed Equipment]]=\"\",\"\",IFERROR(SpaceTypesInfo_Table[[#Totals],[NCMR Int Cost]]*ProjectInfoTable[[#This Row],[Fixture Measure kWh/yr Savings (Stipulated)]]/SUMIFS(ProjectInfoTable[Total   kWh/yr Savings (Stipulated)],ProjectInfoTable[Proposed Equipment],\"*Interior*\"),0)))),\"\")","v":""},{"$f":"IFERROR(\n IF(\n  ProjectInfoTable[[#This Row],[Control Measure kWh/yr Savings (Stipulated)]]=0,\n  0,\n  IF(\n   ProjectType=\"Retrofit\",\n    IFERROR(\n     ProjectInfoTable[[#This Row],[Control Measure kWh/yr Savings (Stipulated)]]\n     /\n     SUMIFS(ProjectInfoTable[Control Measure kWh/yr Savings (Stipulated)],ProjectInfoTable[Control Measure],\"<>\"\"\")\n     *\n     (ProjectCost_Total-SUM(ProjectInfoTable[Fixture Cost (Allocated)])),\n     \"\"\n    ),\nROUND(\n    IF(\n     ProjectInfoTable[[#This Row],[Proposed Equipment]]=\"\",\n     \"\",\n     IFERROR(\n      SpaceTypesInfo_Table[[#Totals],[NCMR Int Cost]]\n      *\n      ProjectInfoTable[[#This Row],[Control Measure kWh/yr Savings (Stipulated)]]\n      /\n      SUMIFS(ProjectInfoTable[Total   kWh/yr Savings (Stipulated)],ProjectInfoTable[Proposed Equipment],\"*Interior*\"),\n      0\n     )\n    ),\n    2\n   )\n  )\n ),\n \"\"\n)","v":""},{"$f":"IF(AND(ProjectInfoTable[[#This Row],[Fixture Cost (Allocated)]]=\"\",ProjectInfoTable[[#This Row],[Control Cost (Allocated)]]=\"\"),\"\",SUM(ProjectInfoTable[[#This Row],[Fixture Cost (Allocated)]:[Control Cost (Allocated)]]))","v":""},{"$f":"IFERROR(IF(OR(ProjectInfoTable[[#This Row],[Proposed Equipment]]=\"\",ProjectInfoTable[[#This Row],[Quantity (Proposed)]]=\"\"),\"\",IF(OR(ProjectInfoTable[[#This Row],[Measure Selection]]=\"\",ProjectInfoTable[[#This Row],[Control kWh (Proposed)]]=\"Controls Only\"),0,IF(NOT(ISNUMBER(FIND(\"Retrofit\",ProjectType,1))),ProjectInfoTable[[#This Row],[Fixture Energy Cost Savings (Stipulated)]],IF(AND(ProjectInfoTable[[#This Row],[Fixture Measure]]=\"\",ProjectInfoTable[[#This Row],[Control Measure]]<>\"\"),0,ROUND((ProjectInfoTable[[#This Row],[Total Energy Costs (Existing, Actual)]]-ProjectInfoTable[[#This Row],[Total Energy Costs (Proposed)]]),2))))),\"\")","v":""},{"$f":"IFERROR(IF(OR(ProjectInfoTable[[#This Row],[Proposed Equipment]]=\"\",ProjectInfoTable[[#This Row],[Quantity (Proposed)]]=\"\"),\"\",\n\nIF(ProjectInfoTable[[#This Row],[Control kWh (Proposed)]]=\"Controls Only\",ProjectInfoTable[[#This Row],[Control Measure kWh/yr Savings (Actual)]]*INDEX(INDIRECT(\"RateSchedules_\"&ProjectState&\"_Table[kWh Rate]\"),\nMATCH(RateSchedule,INDIRECT(\"RateSchedules_\"&ProjectState&\"_Table[Rate Schedule]\"),0)),\n\nIF(NOT(ISNUMBER(FIND(\"Retrofit\",ProjectType,1))),ProjectInfoTable[[#This Row],[Control Energy Cost Savings (Stipulated)]],IF(AND(ProjectInfoTable[[#This Row],[Fixture Measure]]=\"\",ProjectInfoTable[[#This Row],[Control Measure]]<>\"\"),ROUND((ProjectInfoTable[[#This Row],[Total Energy Costs (Existing, Actual)]]-ProjectInfoTable[[#This Row],[Total Energy Costs (Proposed)]]),2),ROUND((ProjectInfoTable[[#This Row],[Total Energy Costs (Existing, Actual)]]-ProjectInfoTable[[#This Row],[Total Energy Costs (Proposed)]]),2)*(ProjectInfoTable[[#This Row],[Control Measure kWh/yr Savings (Actual)]]/ProjectInfoTable[[#This Row],[Total   kWh/yr Savings (Actual)]]))))),\"\")","v":""},{"$f":"IF(OR(ProjectInfoTable[[#This Row],[Proposed Equipment]]=\"\",ProjectInfoTable[[#This Row],[Quantity (Proposed)]]=\"\"),\"\",ROUND(ProjectInfoTable[[#This Row],[Fixture Energy Cost Savings (Actual)]]+ProjectInfoTable[[#This Row],[Control Energy Cost Savings (Actual)]],2))","v":""},{"$f":"IF(OR(ProjectInfoTable[[#This Row],[Proposed Equipment]]=\"\",ProjectInfoTable[[#This Row],[Quantity (Proposed)]]=\"\"),\"\",IF(OR(ISNUMBER(VALUE(ProjectInfoTable[[#This Row],[kWh Per Unit]])),ISNUMBER(VALUE(ProjectInfoTable[[#This Row],[kW Per Unit]]))),IFERROR(ProjectInfoTable[[#This Row],[Fixture Measure kWh/yr Savings (Stipulated)]]*INDEX(INDIRECT(\"RateSchedules_\"&ProjectState&\"_Table[kWh Rate]\"),MATCH(RateSchedule,INDIRECT(\"RateSchedules_\"&ProjectState&\"_Table[Rate Schedule]\"),0)),0)+IFERROR(ProjectInfoTable[[#This Row],[kW Demand Reduction (Stipulated)]]/1000*12*INDEX(INDIRECT(\"RateSchedules_\"&ProjectState&\"_Table[kW Rate]\"),MATCH(RateSchedule,INDIRECT(\"RateSchedules_\"&ProjectState&\"_Table[Rate Schedule]\"),0)),0),IFERROR(ROUND((ProjectInfoTable[[#This Row],[Total Energy Costs (Existing, Stipulated)]]-ProjectInfoTable[[#This Row],[Total Energy Costs (Proposed)]])*ProjectInfoTable[[#This Row],[Fixture Measure kWh/yr Savings (Stipulated)]]/ProjectInfoTable[[#This Row],[Total   kWh/yr Savings (Stipulated)]],2),0)))","v":""},{"$f":"IF(OR(ProjectInfoTable[[#This Row],[Proposed Equipment]]=\"\",ProjectInfoTable[[#This Row],[Quantity (Proposed)]]=\"\"),\"\",\nIF(ProjectInfoTable[[#This Row],[Control kWh (Proposed)]]=\"Controls Only\",ProjectInfoTable[[#This Row],[Control Measure kWh/yr Savings (Stipulated)]]*INDEX(INDIRECT(\"RateSchedules_\"&ProjectState&\"_Table[kWh Rate]\"),\nMATCH(RateSchedule,INDIRECT(\"RateSchedules_\"&ProjectState&\"_Table[Rate Schedule]\"),0)),IF(OR(ISNUMBER(VALUE(ProjectInfoTable[[#This Row],[Control kWh Per Unit]])),\nISNUMBER(VALUE(ProjectInfoTable[[#This Row],[Control kW Per Unit]]))),IFERROR(ProjectInfoTable[[#This Row],[Control Measure kWh/yr Savings (Stipulated)]]*INDEX(INDIRECT(\"RateSchedules_\"&ProjectState&\"_Table[kWh Rate]\"),\nMATCH(RateSchedule,INDIRECT(\"RateSchedules_\"&ProjectState&\"_Table[Rate Schedule]\"),0)),0)+IFERROR(ProjectInfoTable[[#This Row],[kW Demand Reduction (Stipulated)]]/1000*12*\nINDEX(INDIRECT(\"RateSchedules_\"&ProjectState&\"_Table[kW Rate]\"),MATCH(RateSchedule,INDIRECT(\"RateSchedules_\"&ProjectState&\"_Table[Rate Schedule]\"),0)),0),\nIFERROR(ROUND((ProjectInfoTable[[#This Row],[Total Energy Costs (Existing, Stipulated)]]-ProjectInfoTable[[#This Row],[Total Energy Costs (Proposed)]])*ProjectInfoTable[[#This Row],[Control Measure kWh/yr Savings (Stipulated)]]/\nProjectInfoTable[[#This Row],[Total   kWh/yr Savings (Stipulated)]],2),0))))","v":""},{"$f":"IF(OR(ProjectInfoTable[[#This Row],[Proposed Equipment]]=\"\",ProjectInfoTable[[#This Row],[Quantity (Proposed)]]=\"\"),\"\",ROUND(ProjectInfoTable[[#This Row],[Fixture Energy Cost Savings (Stipulated)]]+ProjectInfoTable[[#This Row],[Control Energy Cost Savings (Stipulated)]],2))","v":""},{"$f":"IF(ProjectInfoTable[[#This Row],[OpSch]]=\"\",\"\",IF(OR(ProjectInfoTable[[#This Row],[Fixture Measure]]=\"\",ProjectInfoTable[[#This Row],[Eligible Fixture Measure]]<>TRUE),0,ProjectInfoTable[[#This Row],[Fixture Incentives (pre-capping)]])+IF(OR(ProjectInfoTable[[#This Row],[Control Measure]]=\"\",ProjectInfoTable[[#This Row],[Eligible Control Measure]]<>TRUE),0,ProjectInfoTable[[#This Row],[Control Incentives (pre-capping)]]))","v":""},{"$f":"IF(OR(ProjectInfoTable[[#This Row],[Fixture Measure]]<>\"\",ProjectInfoTable[[#This Row],[Control Measure]]<>\"\"),IF(ProjectInfoTable[[#This Row],[Fixture Incentives]]=\"\",0,ProjectInfoTable[[#This Row],[Fixture Incentives]])+IF(ProjectInfoTable[[#This Row],[Control Incentives]]=\"\",0,ProjectInfoTable[[#This Row],[Control Incentives]]),\"\")","v":""},null,{"$f":"IF(OR(ProjectInfoTable[[#This Row],[Fixture Measure]]=\"\",ProjectInfoTable[[#This Row],[OpSch]]=\"\",ProjectInfoTable[[#This Row],[Eligible Fixture Measure]]<>TRUE),\"\",\nIF(OR(ISNUMBER(FIND(\"SBDI\",ProjectInfoTable[[#This Row],[Fixture Measure]])),ISNUMBER(FIND(\"Small Bu\",ProjectInfoTable[[#This Row],[Fixture Measure]]))),IFERROR(0.75*ProjectInfoTable[[#This Row],[Fixture Cost (Allocated)]],\"cost error\"),\nIF(AND(OR(ProjectType=\"New Construction\",ProjectType=\"Major Renovation\"),LPDCodeToProposed<0.1,ISNUMBER(FIND(\"Interior\",ProjectInfoTable[[#This Row],[Proposed Equipment]],1))),0,IFERROR(ProjectInfoTable[[#This Row],[Incentives Per Unit]]*ProjectInfoTable[[#This Row],[Quantity]]*ProjectInfoTable[[#This Row],[No. of TRL Units]],\"TRL Error\"))))","v":""},{"$f":"IF(\n    OR(\n        ProjectInfoTable[[#This Row],[Fixture Measure]] = \"\",\n        ProjectInfoTable[[#This Row],[OpSch]] = \"\",\n        ProjectInfoTable[[#This Row],[Eligible Fixture Measure]] <> TRUE\n    ),\n    \"\",\n    IF(\n        OR(\n            ISNUMBER(FIND(\"SBDI\", ProjectInfoTable[[#This Row],[Fixture Measure]])),\n            ISNUMBER(FIND(\"Small Bu\", ProjectInfoTable[[#This Row],[Fixture Measure]]))\n        ),\n        IFERROR(\n            (Incentive_NonTypical / Incentive_NonTypical_PreCapped) * ProjectInfoTable[[#This Row],[Fixture Incentives (pre-capping)]],\n            \"\"\n        ),\n        IF(\n            AND(\n                ProjectType = \"Retrofit\",\n                ProjectState = \"UT\",\n                ISNUMBER(FIND(\"Post-Purchase\", ProjectInfoTable[[#This Row],[Fixture Measure]], 1))\n            ),\n            IFERROR(\n                MAX(\n                    MIN(\n                        ProjectInfoTable[[#This Row],[Fixture Incentives (pre-capping)]],\n                        ProjectInfoTable[[#This Row],[Fixture Cost (Allocated)]] * 0.7\n                    ),\n                    0\n                ),\n                0\n            ),\n            IF(\n                ProjectType = \"Retrofit\",\n                IF(\n                    ISNUMBER(FIND(\"Post-Purchase\", ProjectInfoTable[[#This Row],[Fixture Measure]], 1)),\n                    ProjectInfoTable[[#This Row],[Fixture Incentives (pre-capping)]],\n                    IFERROR(\n                        $BI$3 / $BH$3 * ProjectInfoTable[[#This Row],[Fixture Incentives (pre-capping)]],\n                        \"\"\n                    )\n                ),\n                IF(\n                    ISNUMBER(FIND(\"Interior\", ProjectInfoTable[[#This Row],[Proposed Equipment]], 1)),\n                    IF(\n                        LPDCodeToProposed > 0.1,\n                        ProjectInfoTable[[#This Row],[Fixture Incentives (pre-capping)]],\n                        0\n                    ),\n                    ProjectInfoTable[[#This Row],[Fixture Incentives (pre-capping)]]\n                )\n            )\n        )\n    )\n)","v":""},{"$f":"IF(OR(ProjectInfoTable[[#This Row],[Incentives Per Unit]]=\"\",ProjectInfoTable[[#This Row],[TRL Unit]]=\"\"),\"\",IF(ProjectInfoTable[[#This Row],[Eligible Fixture Measure]]<>TRUE,\"Invalid Effective Date\",\nIF(OR(ISNUMBER(FIND(\"SBDI\",ProjectInfoTable[[#This Row],[Fixture Measure]])),ISNUMBER(FIND(\"Small Bu\",ProjectInfoTable[[#This Row],[Fixture Measure]]))),\"$0.75 / dollar cost\",\nTEXT(ProjectInfoTable[[#This Row],[Incentives Per Unit]],\"$#,##0.00\")&\" / \"&IF(ProjectInfoTable[[#This Row],[Fixture Measure]]=\"\",\"\",IF(ProjectInfoTable[[#This Row],[TRL Unit]]=\"Measure\",IF(ISNUMBER(FIND(\"Relamp\",ProjectInfoTable[[#This Row],[Proposed Equipment]],1)),\"Lamp\",\"Fixture\"),ProjectInfoTable[[#This Row],[TRL Unit]])))))","v":""},{"$f":"IF(OR(ProjectInfoTable[[#This Row],[Proposed Equipment]]=\"\",ProjectInfoTable[[#This Row],[Quantity (Proposed)]]=\"\"),\"\",IFERROR(SUBSTITUTE(IF(ProjectType=\"Retrofit\",IF(OR(ISNUMBER(FIND(\"Controls On\",ProjectInfoTable[[#This Row],[Proposed Equipment]],1))),\"\",IF(OR(ProjectInfoTable[[#This Row],[Existing Equipment]]=\"\",ProjectInfoTable[[#This Row],[Proposed Equipment]]=\"\"),\"\",IF(ProjectState=\"UT\",IFERROR(IF(AlternativeEnergyOverride=\"Yes\",IFERROR(INDEX(INDIRECT(\"EquipmentTable_\"&\"Retrofit_\"&ProjectState&\"[#All]\"),MATCH(LEFT(ProjectInfoTable[[#This Row],[Proposed Equipment]],FIND(\"[\",ProjectInfoTable[[#This Row],[Proposed Equipment]],1)-2)&\" (Alt)\",INDIRECT(\"EquipmentTable_\"&\"Retrofit_\"&ProjectState&\"[equipmentProposed]\"),0)+1,MATCH(\"measureRetrofit_\"&LEFT(ProjectInfoTable[[#This Row],[Existing Equipment]],FIND(\":\",ProjectInfoTable[[#This Row],[Existing Equipment]],1)-1)&\"_\"&IF(IFERROR(INDEX(ControlsLookup[Rank],MATCH(RIGHT(ProjectInfoTable[[#This Row],[Proposed Equipment]],LEN(ProjectInfoTable[[#This Row],[Proposed Equipment]])-FIND(\"]\",ProjectInfoTable[[#This Row],[Proposed Equipment]],1)-3),ControlsLookup[Controls],0)),0)>IFERROR(INDEX(ControlsLookup[Rank],MATCH(RIGHT(ProjectInfoTable[[#This Row],[Existing Equipment]],LEN(ProjectInfoTable[[#This Row],[Existing Equipment]])-FIND(\"]\",ProjectInfoTable[[#This Row],[Existing Equipment]],1)-3),ControlsLookup[Controls],0)),0),INDEX(ControlsLookup[Controls Type],MATCH(LEFT(ProjectInfoTable[[#This Row],[Existing Equipment]],FIND(\":\",ProjectInfoTable[[#This Row],[Existing Equipment]],1)-1)&\"_\"&RIGHT(ProjectInfoTable[[#This Row],[Proposed Equipment]],LEN(ProjectInfoTable[[#This Row],[Proposed Equipment]])-FIND(\"]\",ProjectInfoTable[[#This Row],[Proposed Equipment]],1)-3),ControlsLookup[Controls Concatenate],0)),\"None\"),INDIRECT(\"EquipmentTable_\"&\"Retrofit_\"&ProjectState&\"[#Headers]\"),0)),INDEX(INDIRECT(\"EquipmentTable_\"&IF(ProjectType=\"Retrofit\",\"Retrofit_\",\"NCMR_\")&ProjectState&\"[#All]\"),MATCH(LEFT(ProjectInfoTable[[#This Row],[Proposed Equipment]],FIND(\"[\",ProjectInfoTable[[#This Row],[Proposed Equipment]],1)-2),INDIRECT(\"EquipmentTable_\"&\"Retrofit_\"&ProjectState&\"[equipmentProposed]\"),0)+1,MATCH(\"measureRetrofit_\"&LEFT(ProjectInfoTable[[#This Row],[Existing Equipment]],FIND(\":\",ProjectInfoTable[[#This Row],[Existing Equipment]],1)-1)&\"_\"&IF(IFERROR(INDEX(ControlsLookup[Rank],MATCH(RIGHT(ProjectInfoTable[[#This Row],[Proposed Equipment]],LEN(ProjectInfoTable[[#This Row],[Proposed Equipment]])-FIND(\"]\",ProjectInfoTable[[#This Row],[Proposed Equipment]],1)-3),ControlsLookup[Controls],0)),0)>IFERROR(INDEX(ControlsLookup[Rank],MATCH(RIGHT(ProjectInfoTable[[#This Row],[Existing Equipment]],LEN(ProjectInfoTable[[#This Row],[Existing Equipment]])-FIND(\"]\",ProjectInfoTable[[#This Row],[Existing Equipment]],1)-3),ControlsLookup[Controls],0)),0),INDEX(ControlsLookup[Controls Type],MATCH(LEFT(ProjectInfoTable[[#This Row],[Existing Equipment]],FIND(\":\",ProjectInfoTable[[#This Row],[Existing Equipment]],1)-1)&\"_\"&RIGHT(ProjectInfoTable[[#This Row],[Proposed Equipment]],LEN(ProjectInfoTable[[#This Row],[Proposed Equipment]])-FIND(\"]\",ProjectInfoTable[[#This Row],[Proposed Equipment]],1)-3),ControlsLookup[Controls Concatenate],0)),\"None\"),INDIRECT(\"EquipmentTable_\"&IF(ProjectType=\"Retrofit\",\"Retrofit_\",\"NCMR_\")&ProjectState&\"[#Headers]\"),0))),INDEX(INDIRECT(\"EquipmentTable_\"&IF(ProjectType=\"Retrofit\",\"Retrofit_\",\"NCMR_\")&ProjectState&\"[#All]\"),MATCH(LEFT(ProjectInfoTable[[#This Row],[Proposed Equipment]],FIND(\"[\",ProjectInfoTable[[#This Row],[Proposed Equipment]],1)-2),INDIRECT(\"EquipmentTable_\"&IF(ProjectType=\"Retrofit\",\"Retrofit_\",\"NCMR_\")&ProjectState&\"[equipmentProposed]\"),0)+1,MATCH(\"measureRetrofit_\"&IF(AND(SBDEligible=\"Yes\",ISNUMBER(FIND(\"SBE\",ProjectInfoTable[[#This Row],[Proposed Equipment]]))),\"SBE\",LEFT(ProjectInfoTable[[#This Row],[Existing Equipment]],FIND(\":\",ProjectInfoTable[[#This Row],[Existing Equipment]],1)-1)&\"_\"&IF(IFERROR(INDEX(ControlsLookup[Rank],MATCH(RIGHT(ProjectInfoTable[[#This Row],[Proposed Equipment]],LEN(ProjectInfoTable[[#This Row],[Proposed Equipment]])-FIND(\"]\",ProjectInfoTable[[#This Row],[Proposed Equipment]],1)-3),ControlsLookup[Controls],0)),0)>IFERROR(INDEX(ControlsLookup[Rank],MATCH(RIGHT(ProjectInfoTable[[#This Row],[Existing Equipment]],LEN(ProjectInfoTable[[#This Row],[Existing Equipment]])-FIND(\"]\",ProjectInfoTable[[#This Row],[Existing Equipment]],1)-3),ControlsLookup[Controls],0)),0),INDEX(ControlsLookup[Controls Type],MATCH(LEFT(ProjectInfoTable[[#This Row],[Existing Equipment]],FIND(\":\",ProjectInfoTable[[#This Row],[Existing Equipment]],1)-1)&\"_\"&RIGHT(ProjectInfoTable[[#This Row],[Proposed Equipment]],LEN(ProjectInfoTable[[#This Row],[Proposed Equipment]])-FIND(\"]\",ProjectInfoTable[[#This Row],[Proposed Equipment]],1)-3),ControlsLookup[Controls Concatenate],0)),\"None\")),INDIRECT(\"EquipmentTable_\"&\"Retrofit_\"&ProjectState&\"[#Headers]\"),0))),\"Non-eligible fixture - Retrofit - \"&ProjectState),IFERROR(INDEX(INDIRECT(\"EquipmentTable_\"&IF(SiteSpecificOverride=\"Yes\",\"PostPurchase_\",\"Retrofit_\")&ProjectState&\"[#All]\"),MATCH(LEFT(ProjectInfoTable[[#This Row],[Proposed Equipment]],FIND(\"[\",ProjectInfoTable[[#This Row],[Proposed Equipment]],1)-2),INDIRECT(\"EquipmentTable_\"&IF(SiteSpecificOverride=\"Yes\",\"PostPurchase_\",\"Retrofit_\")&ProjectState&\"[equipmentProposed]\"),0)+1,MATCH(\"measureRetrofit_\"&IF(AND(SBDEligible=\"Yes\",ISNUMBER(FIND(\"SBE\",ProjectInfoTable[[#This Row],[Proposed Equipment]]))),\"SBE\",LEFT(ProjectInfoTable[[#This Row],[Existing Equipment]],FIND(\":\",ProjectInfoTable[[#This Row],[Existing Equipment]],1)-1)&\"_\"&IF(IFERROR(INDEX(ControlsLookup[Rank],MATCH(RIGHT(ProjectInfoTable[[#This Row],[Proposed Equipment]],LEN(ProjectInfoTable[[#This Row],[Proposed Equipment]])-FIND(\"]\",ProjectInfoTable[[#This Row],[Proposed Equipment]],1)-3),ControlsLookup[Controls],0)),0)>IFERROR(INDEX(ControlsLookup[Rank],MATCH(RIGHT(ProjectInfoTable[[#This Row],[Existing Equipment]],LEN(ProjectInfoTable[[#This Row],[Existing Equipment]])-FIND(\"]\",ProjectInfoTable[[#This Row],[Existing Equipment]],1)-3),ControlsLookup[Controls],0)),0),INDEX(ControlsLookup[Controls Type],MATCH(LEFT(ProjectInfoTable[[#This Row],[Existing Equipment]],FIND(\":\",ProjectInfoTable[[#This Row],[Existing Equipment]],1)-1)&\"_\"&RIGHT(ProjectInfoTable[[#This Row],[Proposed Equipment]],LEN(ProjectInfoTable[[#This Row],[Proposed Equipment]])-FIND(\"]\",ProjectInfoTable[[#This Row],[Proposed Equipment]],1)-3),ControlsLookup[Controls Concatenate],0)),\"None\")),INDIRECT(\"EquipmentTable_\"&IF(SiteSpecificOverride=\"Yes\",\"PostPurchase_\",\"Retrofit_\")&ProjectState&\"[#Headers]\"),0)),\"Non-eligible fixture - Retrofit - \"&ProjectState)))),IFERROR(INDEX(INDIRECT(\"EquipmentTable_\"&\"NCMR_\"&ProjectState),MATCH(RIGHT(LEFT(ProjectInfoTable[[#This Row],[Proposed Equipment]],FIND(\" (\",ProjectInfoTable[[#This Row],[Proposed Equipment]],1)-1),LEN(LEFT(ProjectInfoTable[[#This Row],[Proposed Equipment]],FIND(\" (\",ProjectInfoTable[[#This Row],[Proposed Equipment]],1)-2))-FIND(\":\",ProjectInfoTable[[#This Row],[Proposed Equipment]],1)),INDIRECT(\"EquipmentTable_\"&\"NCMR_\"&ProjectState&\"[equipmentProposed]\"),0),MATCH(\"measureNCMR_\"&LEFT(ProjectInfoTable[[#This Row],[Proposed Equipment]],FIND(\":\",ProjectInfoTable[[#This Row],[Proposed Equipment]],1)-1)&\"_\"&IF(LEN(ProjectInfoTable[[#This Row],[Proposed Equipment]])>FIND(\"]\",ProjectInfoTable[[#This Row],[Proposed Equipment]]),INDEX(ControlsLookup[Controls Type],MATCH(LEFT(ProjectInfoTable[[#This Row],[Proposed Equipment]],FIND(\":\",ProjectInfoTable[[#This Row],[Proposed Equipment]],1)-1)&\"_\"&RIGHT(ProjectInfoTable[[#This Row],[Proposed Equipment]],LEN(ProjectInfoTable[[#This Row],[Proposed Equipment]])-FIND(\"]\",ProjectInfoTable[[#This Row],[Proposed Equipment]],1)-3),ControlsLookup[Controls Concatenate],0)),\"None\"),INDIRECT(\"EquipmentTable_\"&\"NCMR_\"&ProjectState&\"[#Headers]\"),0)),\"Non-eligible fixture - NCMR - \"&ProjectState)),\"[NAMESUB]\",ProjectInfoTable[[#This Row],[Measure Name Sub]]),\"Non-eligible fixture - Retrofit - \"&ProjectState))","v":""},{"$f":"IF(ISNUMBER(SEARCH(\"Case\",ProjectInfoTable[[#This Row],[Fixture Measure]])),CONCATENATE(ProjectInfoTable[[#This Row],[Fixture Measure]],ProjectInfoTable[[#This Row],[No. of TRL Units]],ProjectInfoTable[[#This Row],[Quantity]]),\"\")","v":""},{"$f":"IF(ProjectInfoTable[[#This Row],[Proposed Equipment]]=\"\",\"\",\nIF(AND(ProjectState = \"UT\",ISNUMBER(FIND(\" TLED \",ProjectInfoTable[[#This Row],[Proposed Equipment]]))),\nIF(VALUE(ProjectInfoTable[[#This Row],[Lamp W (Proposed)]])<20,\"< 20 W\",\nIF(AND(VALUE(ProjectInfoTable[[#This Row],[Lamp W (Proposed)]])<=39,VALUE(ProjectInfoTable[[#This Row],[Lamp W (Proposed)]])>=20),\">= 20 W and <= 39 W\",)),\n\nIF(AND(ProjectType=\"Retrofit\",OR(ISNUMBER(FIND(\"Retrofit Kit\",ProjectInfoTable[[#This Row],[Proposed Equipment]])),ISNUMBER(FIND(\"Fixture\",ProjectInfoTable[[#This Row],[Proposed Equipment]]))),OR(ISNUMBER(FIND(\"Exterior\",ProjectInfoTable[[#This Row],[Existing Equipment]])),ISNUMBER(FIND(\"Street\",ProjectInfoTable[[#This Row],[Existing Equipment]])))),\nIF(ProjectInfoTable[[#This Row],[Fixture W (Proposed)]]<50,\"< 50 W\",\nIF(AND(ProjectInfoTable[[#This Row],[Fixture W (Proposed)]]<90,ProjectInfoTable[[#This Row],[Fixture W (Proposed)]]>=50),\">= 50 W and < 90 W\",\nIF(AND(ProjectInfoTable[[#This Row],[Fixture W (Proposed)]]<135,ProjectInfoTable[[#This Row],[Fixture W (Proposed)]]>=90),\">= 90 W and < 135 W\",\nIF(AND(ProjectInfoTable[[#This Row],[Fixture W (Proposed)]]<220,ProjectInfoTable[[#This Row],[Fixture W (Proposed)]]>=135),\">= 135 W and < 220 W\",\nIF(ProjectInfoTable[[#This Row],[Fixture W (Proposed)]]>=220,\">= 220 W\"))))),\"\")))","v":""},{"$f":"IFERROR(INDEX(INDIRECT(\"MeasureTable_\" & ProjectState & \"[Measure Reference Number]\"),MATCH(ProjectInfoTable[[#This Row],[Fixture Measure]],INDIRECT(\"MeasureTable_\" &ProjectState&\"[Measure Name]\"),0)),\"\")","v":""},{"$f":"IFERROR(\n    _xlfn.LET(\n        _xlpm.filteredVersions,\n            _xlfn._xlws.FILTER(\n                INDIRECT(\"MeasureTable_\" & ProjectState & \"[Version Number]\"),\n                (INDIRECT(\"MeasureTable_\" & ProjectState & \"[Measure Reference Number]\") = ProjectInfoTable[[#This Row],[Fixture Measure Reference Number]]) *\n                (INDIRECT(\"MeasureTable_\" & ProjectState & \"[Eligible Measure]\") = TRUE)\n            ),\n        INDEX(_xlpm.filteredVersions, 1)\n    ),\n    \"\"\n)","v":""},{"$f":"IFERROR(\n  _xlfn.LET(\n    _xlpm.refRange, INDIRECT(\"MeasureTable_\" & ProjectState & \"[Measure Reference Number]\"),\n    _xlpm.eligibleRange, INDIRECT(\"MeasureTable_\" & ProjectState & \"[Eligible Measure]\"),\n    _xlpm.countTrue, SUMPRODUCT(--(_xlpm.refRange = ProjectInfoTable[[#This Row],[Fixture Measure Reference Number]]), --(_xlpm.eligibleRange = TRUE)),\n    _xlpm.countNonBlank, SUMPRODUCT(--(_xlpm.refRange = ProjectInfoTable[[#This Row],[Fixture Measure Reference Number]]), --(_xlpm.eligibleRange <> \"\")),\n    IF(_xlpm.countNonBlank = 0, \"\", IF(_xlpm.countTrue >= 1, TRUE, FALSE))\n  ),\n  \"\"\n)","v":""},{"$f":"IFERROR(VALUE(INDEX(INDIRECT(\"MeasureTable_\" & ProjectState & \"[CustomerIncentiveDollarperunit]\"),MATCH(ProjectInfoTable[[#This Row],[Fixture Measure]]&\" | TRUE\",INDIRECT(\"MeasureTable_\" &ProjectState&\"[MeasureEligibleConcatenate]\"),0))),\"\")","v":""},{"$f":"IFERROR(INDEX(INDIRECT(\"MeasureTable_\"&ProjectState&\"[SiteSpecificCalculation]\"),MATCH(ProjectInfoTable[[#This Row],[Fixture Measure]]&\" | TRUE\",INDIRECT(\"MeasureTable_\" &ProjectState&\"[MeasureEligibleConcatenate]\"),0)),\"\")","v":""},{"$f":"IFERROR(INDEX(INDIRECT(\"MeasureTable_\"&ProjectState&\"[GrossIncrementalAnnualElectricSavings]\"),MATCH(ProjectInfoTable[[#This Row],[Fixture Measure]]&\" | TRUE\",INDIRECT(\"MeasureTable_\" &ProjectState&\"[MeasureEligibleConcatenate]\"),0)),\"\")","v":""},{"$f":"IFERROR(INDEX(INDIRECT(\"MeasureTable_\"&ProjectState&\"[GrossAverageMonthlyDemandReduction]\"),MATCH(ProjectInfoTable[[#This Row],[Fixture Measure]]&\" | TRUE\",INDIRECT(\"MeasureTable_\" &ProjectState&\"[MeasureEligibleConcatenate]\"),0)),\"\")","v":""},{"$f":"IF(ProjectInfoTable[[#This Row],[Fixture Measure]]=\"\",\"\",IF(NOT(ISNUMBER(FIND(\"Site-Specific - Downstream\",ProjectInfoTable[[#This Row],[Fixture Measure]]))),\"\",\nIF(ISNUMBER(MATCH(SUBSTITUTE(ProjectInfoTable[[#This Row],[Fixture Measure]],\"Site-Specific - Downstream - v2\",\"Mid Market\"),INDIRECT(\"MeasureTable_\"&ProjectState&\"[Measure Name]\"),0)),\nSUBSTITUTE(ProjectInfoTable[[#This Row],[Fixture Measure]],\"Site-Specific - Downstream - v2\",\"Mid Market\"),\nSUBSTITUTE(ProjectInfoTable[[#This Row],[Fixture Measure]],\"Site-Specific - Downstream\",\"Mid Market\"))\n))","v":""},{"$f":"IF(ProjectInfoTable[[#This Row],[Midstream Measure Name]]=\"\",\"\",IFERROR(INDEX(INDIRECT(\"MeasureTable_\"&ProjectState&\"[GrossIncrementalAnnualElectricSavings ]\"),MATCH(ProjectInfoTable[[#This Row],[Midstream Measure Name]]&\" | TRUE\",INDIRECT(\"MeasureTable_\" &ProjectState&\"[MeasureEligibleConcatenate]\"),0)),\"\"))","v":""},{"$f":"IF(ProjectInfoTable[[#This Row],[Midstream Measure Name]]=\"\",\"\",IFERROR(INDEX(INDIRECT(\"MeasureTable_\"&ProjectState&\"[GrossAverage onthly emand eduction]\"),MATCH(ProjectInfoTable[[#This Row],[Midstream Measure Name]]&\" | TRUE\",INDIRECT(\"MeasureTable_\" &ProjectState&\"[MeasureEligibleConcatenate]\"),0)),\"\"))","v":""},{"$f":"IFERROR(INDEX(INDIRECT(\"MeasureTable_\"&ProjectState&\"[IncrementalMeasureCost]\"),MATCH(ProjectInfoTable[[#This Row],[Fixture Measure]]&\" | TRUE\",INDIRECT(\"MeasureTable_\" &ProjectState&\"[MeasureEligibleConcatenate]\"),0)),\"\")","v":""},{"$f":"IF(ProjectInfoTable[[#This Row],[Fixture Measure]]=\"\",\"\",IF(AND(ProjectState=\"UT\",ProjectInfoTable[[#This Row],[Measure Selection]]=\"\"),0,\nIF(OR(ISNUMBER(FIND(\"SBDI\",ProjectInfoTable[[#This Row],[Fixture Measure]])),ISNUMBER(FIND(\"Small Bu\",ProjectInfoTable[[#This Row],[Fixture Measure]]))),ProjectInfoTable[[#This Row],[Quantity (Proposed)]]*ProjectInfoTable[[#This Row],[Lamps (Proposed)]],\nIF(OR(ProjectInfoTable[[#This Row],[TRL Unit]]=\"Measure\",ProjectInfoTable[[#This Row],[TRL Unit]]=\"Linear ft.\"),IF(OR(ISNUMBER(FIND(\"Lamp\",ProjectInfoTable[[#This Row],[Fixture Measure]],1)),ISNUMBER(FIND(\"Relamp\",ProjectInfoTable[[#This Row],[Fixture Measure]],1)),ISNUMBER(FIND(\"Relamp\",ProjectInfoTable[[#This Row],[Proposed Equipment]],1))),ProjectInfoTable[[#This Row],[Quantity (Proposed)]]*ProjectInfoTable[[#This Row],[Lamps (Proposed)]],ProjectInfoTable[[#This Row],[Quantity (Proposed)]]),1))))","v":""},{"$f":"IF(ProjectInfoTable[[#This Row],[Fixture Measure]]=\"\",\"\",IF(AND(ProjectState=\"UT\",ProjectInfoTable[[#This Row],[Measure Selection]]=\"\"),0,\nIF(OR(ISNUMBER(FIND(\"SBDI\",ProjectInfoTable[[#This Row],[Fixture Measure]])),ISNUMBER(FIND(\"Small Bu\",ProjectInfoTable[[#This Row],[Fixture Measure]]))),1,\nIF(ISNUMBER(FIND(\"Controls Only\",ProjectInfoTable[[#This Row],[Proposed Equipment]],1)),IF(OR(ProjectType <> \"Retrofit\",ProjectInfoTable[[#This Row],[Space W (Proposed)]]>0),ProjectInfoTable[[#This Row],[Space W (Proposed)]],ProjectInfoTable[[#This Row],[Space W (Existing, Stipulated)]]),\nIF(TRIM(UPPER(ProjectInfoTable[[#This Row],[TRL Unit]]))=\"LINEAR FT.\",IF(OR(ISNUMBER(FIND(\"Marquee\",ProjectInfoTable[[#This Row],[Proposed Equipment]],1)),ISNUMBER(FIND(\"Cabinet\",ProjectInfoTable[[#This Row],[Proposed Equipment]],1))),VALUE(RIGHT(LEFT(ProjectInfoTable[[#This Row],[Existing Equipment]],FIND(\"LF \",ProjectInfoTable[[#This Row],[Existing Equipment]],1)-1),LEN(LEFT(ProjectInfoTable[[#This Row],[Existing Equipment]],FIND(\"LF \",ProjectInfoTable[[#This Row],[Existing Equipment]],1)-1))-FIND(\"[\",ProjectInfoTable[[#This Row],[Existing Equipment]],1))),VALUE(RIGHT(LEFT(ProjectInfoTable[[#This Row],[Proposed Equipment]],FIND(\"LF \",ProjectInfoTable[[#This Row],[Proposed Equipment]],1)-1),LEN(LEFT(ProjectInfoTable[[#This Row],[Proposed Equipment]],FIND(\"LF \",ProjectInfoTable[[#This Row],[Proposed Equipment]],1)-1))-FIND(\"[\",ProjectInfoTable[[#This Row],[Proposed Equipment]],1)))),\nIF(TRIM(UPPER(ProjectInfoTable[[#This Row],[TRL Unit]]))=\"KWH\",IF(ProjectInfoTable[[#This Row],[Fixture Measure kWh/yr Savings (Stipulated)]]=0,0,ROUND(ProjectInfoTable[[#This Row],[Fixture Measure kWh/yr Savings (Stipulated)]],2)),\nIF(TRIM(UPPER(ProjectInfoTable[[#This Row],[TRL Unit]]))=\"WATT REDUCED\",IF(ProjectInfoTable[[#This Row],[Fixture Measure kWh/yr Savings (Stipulated)]]=0,0,ROUND(ProjectInfoTable[[#This Row],[Space W (Existing, Stipulated)]]-ProjectInfoTable[[#This Row],[Space W (Proposed)]],2)),\nIF(TRIM(UPPER(ProjectInfoTable[[#This Row],[TRL Unit]]))=\"FIXTURE WATTAGE\",ProjectInfoTable[[#This Row],[Space W (Proposed)]],1))))))))","v":""},{"$f":"IFERROR(IF(OR(ISNUMBER(FIND(\"SBDI\",ProjectInfoTable[[#This Row],[Fixture Measure]])),ISNUMBER(FIND(\"Small Bu\",ProjectInfoTable[[#This Row],[Fixture Measure]]))),0,INDEX(INDIRECT(\"MeasureTable_\"&ProjectState&\"[Unit]\"),MATCH(ProjectInfoTable[[#This Row],[Fixture Measure]]&\" | TRUE\",INDIRECT(\"MeasureTable_\" &ProjectState&\"[MeasureEligibleConcatenate]\"),0))),\"\")","v":""},{"$f":"IF(ProjectInfoTable[[#This Row],[Fixture Measure]]=\"\",\"\",IF(OR(ISNUMBER(FIND(\"Lamp(s)\",ProjectInfoTable[[#This Row],[Fixture Measure]],1)),ISNUMBER(FIND(\"Relamp\",ProjectInfoTable[[#This Row],[Proposed Equipment]],1))),\"Lamp(s)\",\"Fixture(s)\"))","v":""},{"$f":"IFERROR(INDEX(INDIRECT(\"MeasureTable_\"&ProjectState&\"[ProjectCapPercent]\"),MATCH(ProjectInfoTable[[#This Row],[Fixture Measure]]&\" | TRUE\",INDIRECT(\"MeasureTable_\" &ProjectState&\"[MeasureEligibleConcatenate]\"),0)),\"\")","v":""},{"$f":"IF(OR(ProjectInfoTable[[#This Row],[Control Measure]]=\"\",ProjectInfoTable[[#This Row],[OpSch]]=\"\",ProjectInfoTable[[#This Row],[Eligible Control Measure]]<>TRUE),\"\",IF(AND(OR(ProjectType=\"New Construction\",ProjectType=\"Major Renovation\"),LPDCodeToProposed<0.1,ISNUMBER(FIND(\"Interior\",ProjectInfoTable[[#This Row],[Proposed Equipment]],1))),0,IFERROR(ProjectInfoTable[[#This Row],[Control Incentives Per Unit]]*ProjectInfoTable[[#This Row],[Control Quantity]]*ProjectInfoTable[[#This Row],[Control No. of TRL Units]],\"TRL Error\")))","v":""},{"$f":"IF(OR(ProjectInfoTable[[#This Row],[Control Measure]]=\"\",ProjectInfoTable[[#This Row],[OpSch]]=\"\",ProjectInfoTable[[#This Row],[Eligible Control Measure]]<>TRUE),\"\",IF(AND(ProjectType=\"Retrofit\",ProjectState=\"UT\",ISNUMBER(FIND(\"Post Purchase\",ProjectInfoTable[[#This Row],[Control Measure]],1))),\n\nIFERROR(MAX(MIN(ProjectInfoTable[[#This Row],[Control Incentives (pre-capping)]],ProjectInfoTable[[#This Row],[Control Cost (Allocated)]]*0.7),0),0),\n\nIF(ProjectType=\"Retrofit\",IF(ISNUMBER(FIND(\"Post Purchase\",ProjectInfoTable[[#This Row],[Control Measure]],1)),ProjectInfoTable[[#This Row],[Control Incentives (pre-capping)]],IFERROR($BI$3/$BH$3*ProjectInfoTable[[#This Row],[Control Incentives (pre-capping)]],\"\")),\n\nIF(ISNUMBER(FIND(\"Interior\",ProjectInfoTable[[#This Row],[Proposed Equipment]],1)),IF(LPDCodeToProposed>0.1,ProjectInfoTable[[#This Row],[Control Incentives (pre-capping)]],0),ProjectInfoTable[[#This Row],[Control Incentives (pre-capping)]]))))","v":""},{"$f":"IF(OR(ProjectInfoTable[[#This Row],[Control Incentives Per Unit]]=\"\",ProjectInfoTable[[#This Row],[Control TRL Unit]]=\"\"),\"\",IF(ProjectInfoTable[[#This Row],[Eligible Control Measure]]<>TRUE,\"Invalid Effective Date\",TEXT(ProjectInfoTable[[#This Row],[Control Incentives Per Unit]],\"$#,##0.00\")&\" / \"&ProjectInfoTable[[#This Row],[Control TRL Unit]]))","v":""},{"$f":"IF(ISNUMBER(FIND(\"SBE\",ProjectInfoTable[[#This Row],[Proposed Equipment]])),\"\",\n\nIF(LEN(ProjectInfoTable[[#This Row],[Proposed Equipment]])>\n\nIFERROR(FIND(\"]\",ProjectInfoTable[[#This Row],[Proposed Equipment]],1),0),\nSUBSTITUTE(\nIF(OR(ProjectInfoTable[[#This Row],[Control Method]]=\"separate\",ISNUMBER(FIND(\"Midstream\",ProjectInfoTable[[#This Row],[Fixture Measure]],1)),ISNUMBER(FIND(\"Midstream\",ProjectInfoTable[[#This Row],[Equipment Category]],1)),ISNUMBER(FIND(\"Prescriptive\",ProjectInfoTable[[#This Row],[Equipment Category]],1)),ISNUMBER(FIND(\"LED\",ProjectInfoTable[[#This Row],[Fixture Measure]],1)),ISNUMBER(FIND(\"LED Case\",ProjectInfoTable[[#This Row],[Fixture Measure]],1)),ISNUMBER(FIND(\"LED Decorative - Retrofit - WA\",ProjectInfoTable[[#This Row],[Fixture Measure]],1)),ISNUMBER(FIND(\"Lamp\",ProjectInfoTable[[#This Row],[Fixture Measure]],1)),ISNUMBER(FIND(\"Relamp\",ProjectInfoTable[[#This Row],[Fixture Measure]],1)),ISNUMBER(FIND(\"Wall Pack\",ProjectInfoTable[[#This Row],[Fixture Measure]],1)),ISNUMBER(FIND(\"Controls Only\",ProjectInfoTable[[#This Row],[Proposed Equipment]],1)),ISNUMBER(FIND(\"Re-Commissioning\",ProjectInfoTable[[#This Row],[Proposed Equipment]],1)),\n\nAND(OR(ISNUMBER(FIND(\"Exterior:\",ProjectInfoTable[[#This Row],[Proposed Equipment]],1)),ISNUMBER(FIND(\"Street:\",ProjectInfoTable[[#This Row],[Proposed Equipment]],1))),OR(ProjectState=\"ID\",ProjectState=\"UT\",ProjectState=\"WY\"))),\n\nIF(IFERROR(INDEX(ControlsLookup[],MATCH(IF(ProjectType=\"Retrofit\",LEFT(ProjectInfoTable[[#This Row],[Existing Equipment]],FIND(\":\",ProjectInfoTable[[#This Row],[Existing Equipment]],1)-1),LEFT(ProjectInfoTable[[#This Row],[Proposed Equipment]],FIND(\":\",ProjectInfoTable[[#This Row],[Proposed Equipment]],1)-1))&\"_\"&RIGHT(ProjectInfoTable[[#This Row],[Proposed Equipment]],LEN(ProjectInfoTable[[#This Row],[Proposed Equipment]])-FIND(\"]\",ProjectInfoTable[[#This Row],[Proposed Equipment]],1)-3),ControlsLookup[Controls Concatenate],0),MATCH(\n\nIF(ProjectType=\"Retrofit\",\"ControlMeasure_\",\"NCMRControlMeasure_\")&ProjectState,ControlsLookup[#Headers],0)),\"\")=0,\"\",\n\nIFERROR(INDEX(ControlsLookup[],MATCH(IF(ProjectType=\"Retrofit\",LEFT(ProjectInfoTable[[#This Row],[Existing Equipment]],FIND(\":\",ProjectInfoTable[[#This Row],[Existing Equipment]],1)-1),LEFT(ProjectInfoTable[[#This Row],[Proposed Equipment]],FIND(\":\",ProjectInfoTable[[#This Row],[Proposed Equipment]],1)-1))&\"_\"&RIGHT(ProjectInfoTable[[#This Row],[Proposed Equipment]],LEN(ProjectInfoTable[[#This Row],[Proposed Equipment]])-FIND(\"]\",ProjectInfoTable[[#This Row],[Proposed Equipment]],1)-3),ControlsLookup[Controls Concatenate],0),MATCH(\n\nIF(ProjectType=\"Retrofit\",\"ControlMeasure_\",\"NCMRControlMeasure_\")&ProjectState&IF(ProjectState=\"UT\",SegmentTag,\"\"),ControlsLookup[#Headers],0)),\"\")),\"\"),\"[NAMESUB]\",ProjectInfoTable[[#This Row],[Control Measure Name Sub]]),\"\"))","v":""},{"$f":"IF(ProjectInfoTable[[#This Row],[Proposed Equipment]]=\"\",\"\",IF(AND(ProjectState=\"UT\",ProjectType=\"Retrofit\",ISNUMBER(FIND(\"Re-Commissioning\",ProjectInfoTable[[#This Row],[Proposed Equipment]]))),\nIF(ProjectRecommissioning=\"only recommissioning\",\"Commissioning Only\",\"Commissioning w/ Lighting Upgrade\"),\"\"))","v":""},{"$f":"IFERROR(INDEX(INDIRECT(\"MeasureTable_\" & ProjectState & \"[Measure Reference Number]\"),MATCH(ProjectInfoTable[[#This Row],[Control Measure]],INDIRECT(\"MeasureTable_\" &ProjectState&\"[Measure Name]\"),0)),\"\")","v":""},{"$f":"IFERROR(\n    _xlfn.LET(\n        _xlpm.filteredVersions,\n            _xlfn._xlws.FILTER(\n                INDIRECT(\"MeasureTable_\" & ProjectState & \"[Version Number]\"),\n                (INDIRECT(\"MeasureTable_\" & ProjectState & \"[Measure Reference Number]\") = ProjectInfoTable[[#This Row],[Control Measure Reference Number]]) *\n                (INDIRECT(\"MeasureTable_\" & ProjectState & \"[Eligible Measure]\") = TRUE)\n            ),\n        INDEX(_xlpm.filteredVersions, 1)\n    ),\n    \"\"\n)","v":""},{"$f":"IFERROR(\n  _xlfn.LET(\n    _xlpm.refRange, INDIRECT(\"MeasureTable_\" & ProjectState & \"[Measure Reference Number]\"),\n    _xlpm.eligibleRange, INDIRECT(\"MeasureTable_\" & ProjectState & \"[Eligible Measure]\"),\n    _xlpm.countTrue, SUMPRODUCT(--(_xlpm.refRange = ProjectInfoTable[[#This Row],[Control Measure Reference Number]]), --(_xlpm.eligibleRange = TRUE)),\n    _xlpm.countNonBlank, SUMPRODUCT(--(_xlpm.refRange = ProjectInfoTable[[#This Row],[Control Measure Reference Number]]), --(_xlpm.eligibleRange <> \"\")),\n    IF(_xlpm.countNonBlank = 0, \"\", IF(_xlpm.countTrue >= 1, TRUE, FALSE))\n  ),\n  \"\"\n)","v":""},{"$f":"IF(ProjectInfoTable[[#This Row],[Proposed Equipment]]=\"\",\"\",IFERROR(INDEX(INDIRECT(\"EquipmentTable_\"&IF(ProjectType=\"Retrofit\",\"Retrofit_\",\"NCMR_\")&ProjectState&\"[controlMethod]\"),MATCH(LEFT(ProjectInfoTable[[#This Row],[Proposed Equipment]],FIND(\"[\",ProjectInfoTable[[#This Row],[Proposed Equipment]],1)-2),INDIRECT(\"EquipmentTable_\"&IF(ProjectType=\"Retrofit\",\"Retrofit_\",\"NCMR_\")&ProjectState&\"[equipmentProposed]\"),0)),\"\"))","v":""},{"$f":"IFERROR(VALUE(INDEX(INDIRECT(\"MeasureTable_\" & ProjectState & \"[CustomerIncentiveDollarperunit]\"),MATCH(ProjectInfoTable[[#This Row],[Control Measure]]&\" | TRUE\",INDIRECT(\"MeasureTable_\"&ProjectState&\"[MeasureEligibleConcatenate]\"),0))),\"\")","v":""},{"$f":"IFERROR(INDEX(INDIRECT(\"MeasureTable_\"&ProjectState&\"[SiteSpecificCalculation]\"),MATCH(ProjectInfoTable[[#This Row],[Control Measure]]&\" | TRUE\",INDIRECT(\"MeasureTable_\"&ProjectState&\"[MeasureEligibleConcatenate]\"),0)),\"\")","v":""},{"$f":"IFERROR(INDEX(INDIRECT(\"MeasureTable_\"&ProjectState&\"[GrossIncrementalAnnualElectricSavings ]\"),MATCH(ProjectInfoTable[[#This Row],[Control Measure]]&\" | TRUE\",INDIRECT(\"MeasureTable_\"&ProjectState&\"[MeasureEligibleConcatenate]\"),0)),\"\")","v":""},{"$f":"IFERROR(INDEX(INDIRECT(\"MeasureTable_\"&ProjectState&\"[GrossAverage onthly emand eduction]\"),MATCH(ProjectInfoTable[[#This Row],[Control Measure]]&\" | TRUE\",INDIRECT(\"MeasureTable_\"&ProjectState&\"[MeasureEligibleConcatenate]\"),0)),\"\")","v":""},{"$f":"IFERROR(INDEX(INDIRECT(\"MeasureTable_\"&ProjectState&\"[IncrementalMeasureCost]\"),MATCH(ProjectInfoTable[[#This Row],[Control Measure]]&\" | TRUE\",INDIRECT(\"MeasureTable_\"&ProjectState&\"[MeasureEligibleConcatenate]\"),0)),\"\")","v":""},{"$f":"IF(ProjectInfoTable[[#This Row],[Control Measure]]=\"\",\"\",IF(OR(ProjectInfoTable[[#This Row],[Control TRL Unit]]=\"Measure\",ProjectInfoTable[[#This Row],[Control TRL Unit]]=\"Linear ft.\"),IF(OR(ISNUMBER(FIND(\"Midstream\",ProjectInfoTable[[#This Row],[Control Measure]],1)),ISNUMBER(FIND(\"Lamp\",ProjectInfoTable[[#This Row],[Control Measure]],1))),ProjectInfoTable[[#This Row],[Quantity (Proposed)]]*ProjectInfoTable[[#This Row],[Lamps (Proposed)]],ProjectInfoTable[[#This Row],[Quantity (Proposed)]]),1))","v":""},{"$f":"IF(ProjectInfoTable[[#This Row],[Control Measure]]=\"\",\"\",IF(ISNUMBER(FIND(\"LF \",ProjectInfoTable[[#This Row],[Proposed Equipment]],1)),VALUE(RIGHT(LEFT(ProjectInfoTable[[#This Row],[Proposed Equipment]],FIND(\"LF \",ProjectInfoTable[[#This Row],[Proposed Equipment]],1)-1),LEN(LEFT(ProjectInfoTable[[#This Row],[Proposed Equipment]],FIND(\"LF \",ProjectInfoTable[[#This Row],[Proposed Equipment]],1)-1))-FIND(\"[\",ProjectInfoTable[[#This Row],[Proposed Equipment]],1))),IF(TRIM(UPPER(ProjectInfoTable[[#This Row],[Control TRL Unit]]))=\"WATT CONTROLLED\",IF(ISNUMBER(FIND(\"Controls Only\",ProjectInfoTable[[#This Row],[Proposed Equipment]],1)),IF(OR(ProjectType <> \"Retrofit\",ProjectInfoTable[[#This Row],[Space W (Proposed)]]>0),ProjectInfoTable[[#This Row],[Space W (Proposed)]],ProjectInfoTable[[#This Row],[Space W (Existing, Stipulated)]]),ProjectInfoTable[[#This Row],[Space W (Proposed)]]),IF(TRIM(UPPER(ProjectInfoTable[[#This Row],[Control TRL Unit]]))=\"KWH\",IF(ProjectInfoTable[[#This Row],[Control Measure kWh/yr Savings (Stipulated)]]=0,0,ROUND(ProjectInfoTable[[#This Row],[Control Measure kWh/yr Savings (Stipulated)]],2)),1))))","v":""},{"$f":"IFERROR(IF(LEN(ProjectInfoTable[[#This Row],[Proposed Equipment]])-(FIND(\"]\",ProjectInfoTable[[#This Row],[Proposed Equipment]],1))>0,\"Control(s)\",\"\"),\"\")","v":""},{"$f":"IFERROR(INDEX(INDIRECT(\"MeasureTable_\"&ProjectState&\"[Unit]\"),MATCH(ProjectInfoTable[[#This Row],[Control Measure]]&\" | TRUE\",INDIRECT(\"MeasureTable_\"&ProjectState&\"[MeasureEligibleConcatenate]\"),0)),\"\")","v":""},{"$f":"IFERROR(INDEX(INDIRECT(\"MeasureTable_\"&ProjectState&\"[ProjectCapPercent]\"),MATCH(ProjectInfoTable[[#This Row],[Control Measure]]&\" | TRUE\",INDIRECT(\"MeasureTable_\"&ProjectState&\"[MeasureEligibleConcatenate]\"),0)),\"\")","v":""},{"$f":"IF(OR(ProjectInfoTable[[#This Row],[Fixture Measure]]<>\"\",ProjectInfoTable[[#This Row],[Control Measure]]<>\"\"),1,\"\")","v":""},{"$f":"IF(ProjectInfoTable[[#This Row],[TRL Unit]]=\"\",\"\",IF(OR(ISNUMBER(SEARCH(\"measure\",ProjectInfoTable[[#This Row],[TRL Unit]])),ISNUMBER(SEARCH(\"linear ft\",ProjectInfoTable[[#This Row],[TRL Unit]])),ProjectInfoTable[[#This Row],[TRL Unit]]=0),990,991))","v":""},{"$f":"IFERROR(SUBSTITUTE(LEFT(ProjectInfoTable[[#This Row],[Proposed Equipment]],FIND(\"]\",ProjectInfoTable[[#This Row],[Proposed Equipment]],1)),\"Controls Only []\",\"\",1),\"\")","v":""},{"$f":"IF(ProjectInfoTable[[#This Row],[FixturesOnly]]=\"\",\"\",IF(ISNUMBER(FIND(\"L \",ProjectInfoTable[[#This Row],[Proposed Equipment]],1)),ProjectInfoTable[[#This Row],[Quantity (Proposed)]]*ProjectInfoTable[[#This Row],[Lamps (Proposed)]],ProjectInfoTable[[#This Row],[Quantity (Proposed)]]))","v":""},{"$f":"IFERROR(INDEX(ControlsLookup[Full Description],MATCH(RIGHT(ProjectInfoTable[[#This Row],[Proposed Equipment]],LEN(ProjectInfoTable[[#This Row],[Proposed Equipment]])-FIND(\"]\",ProjectInfoTable[[#This Row],[Proposed Equipment]],1)-3),ControlsLookup[Controls],0)),\"\")","v":""},{"$f":"IF(ProjectInfoTable[[#This Row],[ControlsOnly]]=\"\",\"\",IF(OR(ISNUMBER(FIND(\"Net\",ProjectInfoTable[[#This Row],[Proposed Equipment]],1)),ISNUMBER(FIND(\"Int\",ProjectInfoTable[[#This Row],[Proposed Equipment]],1))),ProjectInfoTable[[#This Row],[Quantity (Proposed)]],1))","v":""}]
[null,{"$f":"ROW(ProjectInfoTable[[#This Row],[OpSch]])-ROW(ProjectInfoTable[[#Headers],[OpSch]])","v":19},{"$f":"IFERROR(INDEX(RetrofitBaselineEquipment_Table[categoryBaseline],MATCH(RIGHT(LEFT(ProjectInfoTable[[#This Row],[Existing Equipment]],FIND(\" (\",ProjectInfoTable[[#This Row],[Existing Equipment]],1)-1),LEN(LEFT(ProjectInfoTable[[#This Row],[Existing Equipment]],FIND(\" (\",ProjectInfoTable[[#This Row],[Existing Equipment]],1)-1))-FIND(\": \",ProjectInfoTable[[#This Row],[Existing Equipment]],1)-1),RetrofitBaselineEquipment_Table[equipmentBaseline],0)),\"\")","v":""},null,null,null,null,{"$f":"IF(ProjectInfoTable[[#This Row],[Existing Equipment]]=\"\",\"\",IF(ISNUMBER(FIND(\"LF\",ProjectInfoTable[[#This Row],[Existing Equipment]],1)),1,IFERROR(VALUE(SUBSTITUTE(RIGHT(LEFT(ProjectInfoTable[[#This Row],[Existing Equipment]],FIND(\"L\",ProjectInfoTable[[#This Row],[Existing Equipment]],FIND(\"[\",ProjectInfoTable[[#This Row],[Existing Equipment]],1))-1),3),\"[\",\"\")),1)))","v":""},{"$f":"IF(ProjectInfoTable[[#This Row],[Existing Equipment]]=\"\",\"\",VALUE(SUBSTITUTE(RIGHT(LEFT(RIGHT(ProjectInfoTable[[#This Row],[Existing Equipment]],LEN(ProjectInfoTable[[#This Row],[Existing Equipment]])-IFERROR(FIND(\"[\",ProjectInfoTable[[#This Row],[Existing Equipment]],1),0)),IFERROR(FIND(\"W\",RIGHT(ProjectInfoTable[[#This Row],[Existing Equipment]],LEN(ProjectInfoTable[[#This Row],[Existing Equipment]])-IFERROR(FIND(\"[\",ProjectInfoTable[[#This Row],[Existing Equipment]],1),0)),1),0)),LEN(LEFT(RIGHT(ProjectInfoTable[[#This Row],[Existing Equipment]],LEN(ProjectInfoTable[[#This Row],[Existing Equipment]])-IFERROR(FIND(\"[\",ProjectInfoTable[[#This Row],[Existing Equipment]],1),0)),IFERROR(FIND(\"W\",RIGHT(ProjectInfoTable[[#This Row],[Existing Equipment]],LEN(ProjectInfoTable[[#This Row],[Existing Equipment]])-IFERROR(FIND(\"[\",ProjectInfoTable[[#This Row],[Existing Equipment]],1),0)),1),0)))-IFERROR(FIND(\"-\",LEFT(RIGHT(ProjectInfoTable[[#This Row],[Existing Equipment]],LEN(ProjectInfoTable[[#This Row],[Existing Equipment]])-IFERROR(FIND(\"[\",ProjectInfoTable[[#This Row],[Existing Equipment]],1),0)),IFERROR(FIND(\"W\",RIGHT(ProjectInfoTable[[#This Row],[Existing Equipment]],LEN(ProjectInfoTable[[#This Row],[Existing Equipment]])-IFERROR(FIND(\"[\",ProjectInfoTable[[#This Row],[Existing Equipment]],1),0)),1),0)),1),0)),\"W\",\"\")))","v":""},{"$f":"IF(ProjectInfoTable[[#This Row],[Existing Equipment]]=\"\",\"\",IF(AND(RIGHT(LEFT(ProjectInfoTable[[#This Row],[Existing Equipment]],FIND(\"]\",ProjectInfoTable[[#This Row],[Existing Equipment]],1)-1),1)<>\"W\"),IFERROR(TRIM(IF(IFERROR(FIND(\"FLT\",ProjectInfoTable[[#This Row],[Existing Equipment]],1),0)>0,LEFT(RIGHT(LEFT(ProjectInfoTable[[#This Row],[Existing Equipment]],FIND(\" (\",ProjectInfoTable[[#This Row],[Existing Equipment]],1)),LEN(LEFT(ProjectInfoTable[[#This Row],[Existing Equipment]],FIND(\" (\",ProjectInfoTable[[#This Row],[Existing Equipment]],1)))-FIND(\":\",ProjectInfoTable[[#This Row],[Existing Equipment]],1)-1),FIND(\" \",RIGHT(LEFT(ProjectInfoTable[[#This Row],[Existing Equipment]],FIND(\" (\",ProjectInfoTable[[#This Row],[Existing Equipment]],1)),LEN(LEFT(ProjectInfoTable[[#This Row],[Existing Equipment]],FIND(\" (\",ProjectInfoTable[[#This Row],[Existing Equipment]],1)))-FIND(\":\",ProjectInfoTable[[#This Row],[Existing Equipment]],1)-1),1)-1),RIGHT(LEFT(ProjectInfoTable[[#This Row],[Existing Equipment]],FIND(\" (\",ProjectInfoTable[[#This Row],[Existing Equipment]],1)),LEN(LEFT(ProjectInfoTable[[#This Row],[Existing Equipment]],FIND(\" (\",ProjectInfoTable[[#This Row],[Existing Equipment]],1)))-FIND(\":\",ProjectInfoTable[[#This Row],[Existing Equipment]],1)-1))&\" - \"&RIGHT(LEFT(ProjectInfoTable[[#This Row],[Existing Equipment]],FIND(\"]\",ProjectInfoTable[[#This Row],[Existing Equipment]],1)-1),LEN(LEFT(ProjectInfoTable[[#This Row],[Existing Equipment]],FIND(\"]\",ProjectInfoTable[[#This Row],[Existing Equipment]],1)-1))-FIND(\"W \",ProjectInfoTable[[#This Row],[Existing Equipment]],1)-3)),\"\"),\"\"))","v":""},{"$f":"IF(ProjectInfoTable[[#This Row],[Existing Equipment]]=\"\",\"\",IF(ProjectInfoTable[[#This Row],[Fixture/Ballast Check for Formula]]=\"\",IF(ISNUMBER(FIND(\"LF\",ProjectInfoTable[[#This Row],[Existing Equipment]],FIND(\"[\",ProjectInfoTable[[#This Row],[Existing Equipment]],1))),ProjectInfoTable[[#This Row],[Lamp W (Existing)]],ProjectInfoTable[[#This Row],[Lamps (Existing)]]*ProjectInfoTable[[#This Row],[Lamp W (Existing)]]),IFERROR(ROUND( ProjectInfoTable[[#This Row],[Lamps (Existing)]]*ProjectInfoTable[[#This Row],[Lamp W (Existing)]]*INDEX(FixtureWattageFormula_Table[A],MATCH(ProjectInfoTable[[#This Row],[Fixture/Ballast Check for Formula]],FixtureWattageFormula_Table[Concatenate],0))+INDEX(FixtureWattageFormula_Table[B],MATCH(ProjectInfoTable[[#This Row],[Fixture/Ballast Check for Formula]],FixtureWattageFormula_Table[Concatenate],0)),0),ProjectInfoTable[[#This Row],[Lamps (Existing)]]*ProjectInfoTable[[#This Row],[Lamp W (Existing)]])))","v":""},{"$f":"IF(OR(ISNUMBER(FIND(\"T8 \",ProjectInfoTable[[#This Row],[Existing Equipment]],1)),ISNUMBER(FIND(\"T5 \",ProjectInfoTable[[#This Row],[Existing Equipment]],1)),ISNUMBER(FIND(\"T12 \",ProjectInfoTable[[#This Row],[Existing Equipment]],1)),ISNUMBER(FIND(\"T12HO - 8\",ProjectInfoTable[[#This Row],[Existing Equipment]],1)),ISNUMBER(FIND(\"Incand\",ProjectInfoTable[[#This Row],[Existing Equipment]],1))),IFERROR(ROUND(INDEX(StipulatedWattage_Table[Stipulated fixture wattage],MATCH(MID(ProjectInfoTable[[#This Row],[Existing Equipment]],FIND(\"[\",ProjectInfoTable[[#This Row],[Existing Equipment]],1),FIND(\"]\",ProjectInfoTable[[#This Row],[Existing Equipment]],1)-FIND(\"[\",ProjectInfoTable[[#This Row],[Existing Equipment]],1)+1),StipulatedWattage_Table[Fixture Code],0)),0),ProjectInfoTable[[#This Row],[Fixture W (Existing, Actual)]]),ProjectInfoTable[[#This Row],[Fixture W (Existing, Actual)]])","v":""},{"$f":"IF(ProjectType=\"Retrofit\",IF(ProjectInfoTable[[#This Row],[Existing Equipment]]=\"\",\"\",ProjectInfoTable[[#This Row],[Quantity (Existing)]]*ProjectInfoTable[[#This Row],[Fixture W (Existing, Actual)]]),IF(ISNUMBER(FIND(\"Interior\",ProjectInfoTable[[#This Row],[Proposed Equipment]],1)),IF(ISNUMBER(FIND(\"Controls Only\",ProjectInfoTable[[#This Row],[Proposed Equipment]])),ProjectInfoTable[[#This Row],[Space W (Proposed)]],(AllowedWattage-SUMIFS(ProjectInfoTable[Space W (Proposed)],ProjectInfoTable[Proposed Equipment],\"*Interior*\",ProjectInfoTable[Proposed Equipment],\"*Controls Only*\"))*ProjectInfoTable[[#This Row],[Space W (Proposed)]]/(SUMIFS(ProjectInfoTable[Space W (Proposed)],ProjectInfoTable[Proposed Equipment],\"*Interior*\")-SUMIFS(ProjectInfoTable[Space W (Proposed)],ProjectInfoTable[Proposed Equipment],\"*Interior*\",ProjectInfoTable[Proposed Equipment],\"*Controls Only*\"))),\"\"))","v":""},{"$f":"IF(ProjectType=\"Retrofit\",IF(ProjectInfoTable[[#This Row],[Existing Equipment]]=\"\",\"\",ProjectInfoTable[[#This Row],[Quantity (Existing)]]*ProjectInfoTable[[#This Row],[Fixture W (Existing, Stipulated)]]),ProjectInfoTable[[#This Row],[Space W (Existing, Actual)]])","v":""},{"$f":"IFERROR(INDEX(OperatingHours_List,MATCH(ProjectInfoTable[[#This Row],[OpSch]],OperatingSchedules_List,0))*ProjectInfoTable[[#This Row],[Space W (Existing, Actual)]]/1000,\"\")","v":""},{"$f":"IFERROR(INDEX(OperatingHours_List,MATCH(ProjectInfoTable[[#This Row],[OpSch]],OperatingSchedules_List,0))*ProjectInfoTable[[#This Row],[Space W (Existing, Actual)]]/1000*(IFERROR(INDEX(ControlsLookup[],MATCH(RIGHT(ProjectInfoTable[[#This Row],[Existing Equipment]],LEN(ProjectInfoTable[[#This Row],[Existing Equipment]])-FIND(\"]\",ProjectInfoTable[[#This Row],[Existing Equipment]],1)-3),ControlsLookup[Controls],0),MATCH(\"CSF_\"&ProjectState,ControlsLookup[#Headers],0)),0))*-1,\"\")","v":""},{"$f":"IF(OR(ProjectInfoTable[[#This Row],[Fixture kWh (Existing, Actual)]]=\"\",ProjectInfoTable[[#This Row],[Control kWh (Existing, Actual)]]=\"\"),\"\",ProjectInfoTable[[#This Row],[Fixture kWh (Existing, Actual)]]+ProjectInfoTable[[#This Row],[Control kWh (Existing, Actual)]])","v":""},{"$f":"IFERROR(INDEX(OperatingHours_List,MATCH(ProjectInfoTable[[#This Row],[OpSch]],OperatingSchedules_List,0))*ProjectInfoTable[[#This Row],[Space W (Existing, Stipulated)]]/1000,\"\")","v":""},{"$f":"IFERROR(INDEX(OperatingHours_List,MATCH(ProjectInfoTable[[#This Row],[OpSch]],OperatingSchedules_List,0))*ProjectInfoTable[[#This Row],[Space W (Existing, Stipulated)]]/1000*(IFERROR(INDEX(ControlsLookup[],MATCH(RIGHT(ProjectInfoTable[[#This Row],[Existing Equipment]],LEN(ProjectInfoTable[[#This Row],[Existing Equipment]])-FIND(\"]\",ProjectInfoTable[[#This Row],[Existing Equipment]],1)-3),ControlsLookup[Controls],0),MATCH(\"CSF_\"&ProjectState,ControlsLookup[#Headers],0)),0))*-1,\"\")","v":""},{"$f":"IF(OR(ProjectInfoTable[[#This Row],[Fixture kWh (Existing, Stipulated)]]=\"\",ProjectInfoTable[[#This Row],[Control kWh (Existing, Stipulated)]]=\"\"),\"\",ProjectInfoTable[[#This Row],[Fixture kWh (Existing, Stipulated)]]+ProjectInfoTable[[#This Row],[Control kWh (Existing, Stipulated)]])","v":""},{"$f":"IF(\n AND(\n  OR(ProjectInfoTable[[#This Row],[Existing Equipment]]=\"\",ProjectInfoTable[[#This Row],[Quantity (Existing)]]=\"\"),\n  ProjectType=\"Retrofit\"\n ),\n \"\",\n IF(\n  ISNUMBER(FIND(\"Street:\",ProjectInfoTable[[#This Row],[Existing Equipment]],1)),\n  IF(\n   OR(\n    AND(ProjectState=\"UT\",RateSchedule=12),\n    AND(ProjectState=\"ID\",RateSchedule=12),\n    AND(ProjectState=\"WY\",RateSchedule=58)\n   ),\n   IFERROR(\n    INDEX(\n     StreetLightingRates_Table[],\n     MATCH(MID(ProjectInfoTable[[#This Row],[Existing Equipment]],FIND(\": \",ProjectInfoTable[[#This Row],[Existing Equipment]],1)+2,FIND(\" (\",ProjectInfoTable[[#This Row],[Existing Equipment]],1)-FIND(\": \",ProjectInfoTable[[#This Row],[Existing Equipment]],1)-2)&ProjectInfoTable[[#This Row],[Lamp W (Existing)]],StreetLightingRates_Table[TechWattage],0),\n     MATCH(ProjectState&RateSchedule,StreetLightingRates_Table[#Headers],0)\n    )\n    *\n    ProjectInfoTable[[#This Row],[Quantity (Existing)]]\n    *\n    ProjectInfoTable[[#This Row],[Lamps (Existing)]]\n    *\n    12,\n    ProjectInfoTable[[#This Row],[Space kWh (Existing, Actual)]]\n    *\n    INDEX(INDIRECT(\"RateSchedules_\"&ProjectState&\"_Table[kWh Rate]\"),MATCH(RateSchedule,INDIRECT(\"RateSchedules_\"&ProjectState&\"_Table[Rate Schedule]\"),0))\n   ),\n   IFERROR(\n    ProjectInfoTable[[#This Row],[Space kWh (Existing, Actual)]]*\n    INDEX(INDIRECT(\"RateSchedules_\"&ProjectState&\"_Table[kWh Rate]\"),MATCH(RateSchedule,INDIRECT(\"RateSchedules_\"&ProjectState&\"_Table[Rate Schedule]\"),0)),0)\n   +\n   IFERROR(IF(ISNUMBER(FIND(\"Interior:\",ProjectInfoTable[[#This Row],[Existing Equipment]],1)),\n    ProjectInfoTable[[#This Row],[Space W (Existing, Actual)]]/1000*12*DDF*\n    INDEX(INDIRECT(\"RateSchedules_\"&ProjectState&\"_Table[kW Rate]\"),MATCH(RateSchedule,INDIRECT(\"RateSchedules_\"&ProjectState&\"_Table[Rate Schedule]\"),0)),0),0)\n  ),\n  IFERROR(\n   ProjectInfoTable[[#This Row],[Space kWh (Existing, Actual)]]*\n   INDEX(INDIRECT(\"RateSchedules_\"&ProjectState&\"_Table[kWh Rate]\"),MATCH(RateSchedule,INDIRECT(\"RateSchedules_\"&ProjectState&\"_Table[Rate Schedule]\"),0)),\n   0\n  )\n  +\n  IFERROR(IF(OR(ISNUMBER(FIND(\"Interior:\",ProjectInfoTable[[#This Row],[Existing Equipment]],1)),AND(ProjectType<>\"Retrofit\",ISNUMBER(FIND(\"Interior:\",ProjectInfoTable[[#This Row],[Proposed Equipment]],1)))),\n   ProjectInfoTable[[#This Row],[Space W (Existing, Actual)]]/1000*12*DDF*\n   INDEX(INDIRECT(\"RateSchedules_\"&ProjectState&\"_Table[kW Rate]\"),MATCH(RateSchedule,INDIRECT(\"RateSchedules_\"&ProjectState&\"_Table[Rate Schedule]\"),0)),0),\n   0\n  )\n )\n)","v":0},{"$f":"IF(\n AND(\n  OR(ProjectInfoTable[[#This Row],[Existing Equipment]]=\"\",ProjectInfoTable[[#This Row],[Quantity (Existing)]]=\"\"),\n  ProjectType=\"Retrofit\"\n ),\n \"\",\n IF(\n  ISNUMBER(FIND(\"Street:\",ProjectInfoTable[[#This Row],[Existing Equipment]],1)),\n  IF(\n   OR(\n    AND(ProjectState=\"UT\",RateSchedule=12),\n    AND(ProjectState=\"ID\",RateSchedule=12),\n    AND(ProjectState=\"WY\",RateSchedule=58)\n   ),\n   IFERROR(\n    INDEX(\n     StreetLightingRates_Table[],\n     MATCH(MID(ProjectInfoTable[[#This Row],[Existing Equipment]],FIND(\": \",ProjectInfoTable[[#This Row],[Existing Equipment]],1)+2,FIND(\" (\",ProjectInfoTable[[#This Row],[Existing Equipment]],1)-FIND(\": \",ProjectInfoTable[[#This Row],[Existing Equipment]],1)-2)&ProjectInfoTable[[#This Row],[Lamp W (Existing)]],StreetLightingRates_Table[TechWattage],0),\n     MATCH(ProjectState&RateSchedule,StreetLightingRates_Table[#Headers],0)\n    )\n    *\n    ProjectInfoTable[[#This Row],[Quantity (Existing)]]\n    *\n    ProjectInfoTable[[#This Row],[Lamps (Existing)]]\n    *\n    12,\n    ProjectInfoTable[[#This Row],[Space kWh (Existing, Stipulated)]]\n    *\n    INDEX(INDIRECT(\"RateSchedules_\"&ProjectState&\"_Table[kWh Rate]\"),MATCH(RateSchedule,INDIRECT(\"RateSchedules_\"&ProjectState&\"_Table[Rate Schedule]\"),0))\n   ),\n   IFERROR(\n    ProjectInfoTable[[#This Row],[Space kWh (Existing, Stipulated)]]*\n    INDEX(INDIRECT(\"RateSchedules_\"&ProjectState&\"_Table[kWh Rate]\"),MATCH(RateSchedule,INDIRECT(\"RateSchedules_\"&ProjectState&\"_Table[Rate Schedule]\"),0)),0)\n   +\n   IFERROR(IF(ISNUMBER(FIND(\"Interior:\",ProjectInfoTable[[#This Row],[Existing Equipment]],1)),\n    ProjectInfoTable[[#This Row],[Space W (Existing, Stipulated)]]/1000*12*DDF*\n    INDEX(INDIRECT(\"RateSchedules_\"&ProjectState&\"_Table[kW Rate]\"),MATCH(RateSchedule,INDIRECT(\"RateSchedules_\"&ProjectState&\"_Table[Rate Schedule]\"),0)),0),0)\n  ),\n  IFERROR(\n   ProjectInfoTable[[#This Row],[Space kWh (Existing, Stipulated)]]*\n   INDEX(INDIRECT(\"RateSchedules_\"&ProjectState&\"_Table[kWh Rate]\"),MATCH(RateSchedule,INDIRECT(\"RateSchedules_\"&ProjectState&\"_Table[Rate Schedule]\"),0)),\n   0\n  )\n  +\n  IFERROR(IF(OR(ISNUMBER(FIND(\"Interior:\",ProjectInfoTable[[#This Row],[Existing Equipment]],1)),AND(ProjectType<>\"Retrofit\",ISNUMBER(FIND(\"Interior:\",ProjectInfoTable[[#This Row],[Proposed Equipment]],1)))),\n   ProjectInfoTable[[#This Row],[Space W (Existing, Stipulated)]]/1000*12*DDF*\n   INDEX(INDIRECT(\"RateSchedules_\"&ProjectState&\"_Table[kW Rate]\"),MATCH(RateSchedule,INDIRECT(\"RateSchedules_\"&ProjectState&\"_Table[Rate Schedule]\"),0)),0),\n   0\n  )\n )\n)","v":0},{"$f":"IF(ProjectType=\"Retrofit\",IFERROR(INDEX(RetrofitBaselineEquipment_Table[categoryBaseline],MATCH(RIGHT(LEFT(ProjectInfoTable[[#This Row],[Proposed Equipment]],FIND(\" (\",ProjectInfoTable[[#This Row],[Proposed Equipment]],1)-1),LEN(LEFT(ProjectInfoTable[[#This Row],[Proposed Equipment]],FIND(\" (\",ProjectInfoTable[[#This Row],[Proposed Equipment]],1)-1))-FIND(\": \",ProjectInfoTable[[#This Row],[Proposed Equipment]],1)-1),RetrofitBaselineEquipment_Table[equipmentBaseline],0)),\"\"),IFERROR(INDEX(#REF!,MATCH(RIGHT(LEFT(ProjectInfoTable[[#This Row],[Proposed Equipment]],FIND(\" (\",ProjectInfoTable[[#This Row],[Proposed Equipment]],1)-1),LEN(LEFT(ProjectInfoTable[[#This Row],[Proposed Equipment]],FIND(\" (\",ProjectInfoTable[[#This Row],[Proposed Equipment]],1)-1))-FIND(\": \",ProjectInfoTable[[#This Row],[Proposed Equipment]],1)-1),#REF!,0)),\"\"))","v":""},{"$f":"IF(ProjectInfoTable[[#This Row],[Proposed Equipment]]=\"\",\"\",IF(ISNUMBER(SEARCH(\"Controls Only\",ProjectInfoTable[[#This Row],[Proposed Equipment]])),\"Controls Only\",IF(ProjectType=\"Retrofit\",_xlfn.LET(_xlpm.k,LEFT(ProjectInfoTable[[#This Row],[Proposed Equipment]],FIND(\"[\",ProjectInfoTable[[#This Row],[Proposed Equipment]])-2),_xlpm.ep,_xlfn.SWITCH(ProjectState,\"UT\",EquipmentTable_Retrofit_UT[equipmentProposed],\"WY\",EquipmentTable_Retrofit_WY[equipmentProposed],\"ID\",EquipmentTable_Retrofit_ID[equipmentProposed]),_xlpm.cp,_xlfn.SWITCH(ProjectState,\"UT\",EquipmentTable_Retrofit_UT[categoryProposed],\"WY\",EquipmentTable_Retrofit_WY[categoryProposed],\"ID\",EquipmentTable_Retrofit_ID[categoryProposed]),_xlfn.XLOOKUP(_xlpm.k,_xlpm.ep,_xlpm.cp,\"Non-eligible fixture - Retrofit - \"&ProjectState)),_xlfn.LET(_xlpm.k,MID(ProjectInfoTable[[#This Row],[Proposed Equipment]],FIND(\": \",ProjectInfoTable[[#This Row],[Proposed Equipment]])+2,FIND(\" (\",ProjectInfoTable[[#This Row],[Proposed Equipment]])-(FIND(\": \",ProjectInfoTable[[#This Row],[Proposed Equipment]])+2)),_xlpm.ep,_xlfn.SWITCH(ProjectState,\"UT\",EquipmentTable_NCMR_UT[equipmentProposed],\"WY\",EquipmentTable_NCMR_WY[equipmentProposed],\"ID\",EquipmentTable_NCMR_ID[equipmentProposed]),_xlpm.cp,_xlfn.SWITCH(ProjectState,\"UT\",EquipmentTable_NCMR_UT[categoryProposed],\"WY\",EquipmentTable_NCMR_WY[categoryProposed],\"ID\",EquipmentTable_NCMR_ID[categoryProposed]),_xlfn.XLOOKUP(_xlpm.k,_xlpm.ep,_xlpm.cp,\"Non-eligible fixture - NCMR - \"&ProjectState)))))","v":""},null,null,"ü",{"$f":"IF(ProjectInfoTable[[#This Row],[Proposed Equipment]]=\"\",\"\",IF(ProjectInfoTable[[#This Row],[Measure Selection]]=\"\",0,IF(ISNUMBER(FIND(\"LF\",ProjectInfoTable[[#This Row],[Proposed Equipment]],1)),1,IFERROR(VALUE(SUBSTITUTE(RIGHT(LEFT(ProjectInfoTable[[#This Row],[Proposed Equipment]],FIND(\"L\",ProjectInfoTable[[#This Row],[Proposed Equipment]],FIND(\"[\",ProjectInfoTable[[#This Row],[Proposed Equipment]],1))-1),2),\"[\",\"\")),IFERROR(LEFT(RIGHT(ProjectInfoTable[[#This Row],[Proposed Equipment]],LEN(ProjectInfoTable[[#This Row],[Proposed Equipment]])-FIND(\"-lamp\",ProjectInfoTable[[#This Row],[Proposed Equipment]],1)+2),1),1)))))","v":""},{"$f":"IF(ProjectInfoTable[[#This Row],[Proposed Equipment]]=\"\",\"\",IF(ProjectInfoTable[[#This Row],[Measure Selection]]=\"\",0,IFERROR(\n\nIF(ISNUMBER(FIND(\"W]\",ProjectInfoTable[[#This Row],[Proposed Equipment]])),\nRIGHT(MID(ProjectInfoTable[[#This Row],[Proposed Equipment]],FIND(\"W]\",ProjectInfoTable[[#This Row],[Proposed Equipment]],FIND(\"[\",ProjectInfoTable[[#This Row],[Proposed Equipment]]))-7,7),\nLEN(MID(ProjectInfoTable[[#This Row],[Proposed Equipment]],FIND(\"W]\",ProjectInfoTable[[#This Row],[Proposed Equipment]],FIND(\"[\",ProjectInfoTable[[#This Row],[Proposed Equipment]]))-7,7)) -\nIFERROR(FIND(\" - \",MID(ProjectInfoTable[[#This Row],[Proposed Equipment]],FIND(\"W]\",ProjectInfoTable[[#This Row],[Proposed Equipment]],FIND(\"[\",ProjectInfoTable[[#This Row],[Proposed Equipment]]))-7,7))+2,\nFIND(\"[\",MID(ProjectInfoTable[[#This Row],[Proposed Equipment]],FIND(\"W]\",ProjectInfoTable[[#This Row],[Proposed Equipment]],FIND(\"[\",ProjectInfoTable[[#This Row],[Proposed Equipment]]))-7,7)))),\n\nIF(ISNUMBER(FIND(\"[\",MID(ProjectInfoTable[[#This Row],[Proposed Equipment]],FIND(\"W \",ProjectInfoTable[[#This Row],[Proposed Equipment]],FIND(\"[\",ProjectInfoTable[[#This Row],[Proposed Equipment]]))-7,7))),\nRIGHT(MID(ProjectInfoTable[[#This Row],[Proposed Equipment]],FIND(\"W \",ProjectInfoTable[[#This Row],[Proposed Equipment]],FIND(\"[\",ProjectInfoTable[[#This Row],[Proposed Equipment]]))-7,7),\nLEN(MID(ProjectInfoTable[[#This Row],[Proposed Equipment]],FIND(\"W \",ProjectInfoTable[[#This Row],[Proposed Equipment]],FIND(\"[\",ProjectInfoTable[[#This Row],[Proposed Equipment]]))-7,7)) -\nIFERROR(FIND(\" - \",MID(ProjectInfoTable[[#This Row],[Proposed Equipment]],FIND(\"W \",ProjectInfoTable[[#This Row],[Proposed Equipment]],FIND(\"[\",ProjectInfoTable[[#This Row],[Proposed Equipment]]))-7,7))+2,\nFIND(\"[\",MID(ProjectInfoTable[[#This Row],[Proposed Equipment]],FIND(\"W \",ProjectInfoTable[[#This Row],[Proposed Equipment]],FIND(\"[\",ProjectInfoTable[[#This Row],[Proposed Equipment]]))-7,7)))),\n\nRIGHT(MID(ProjectInfoTable[[#This Row],[Proposed Equipment]],FIND(\"W \",ProjectInfoTable[[#This Row],[Proposed Equipment]],FIND(\"[\",ProjectInfoTable[[#This Row],[Proposed Equipment]]))-7,7),\nLEN(MID(ProjectInfoTable[[#This Row],[Proposed Equipment]],FIND(\"W \",ProjectInfoTable[[#This Row],[Proposed Equipment]],FIND(\"[\",ProjectInfoTable[[#This Row],[Proposed Equipment]]))-7,7)) -\nFIND(\" - \",MID(ProjectInfoTable[[#This Row],[Proposed Equipment]],FIND(\"W \",ProjectInfoTable[[#This Row],[Proposed Equipment]],FIND(\"[\",ProjectInfoTable[[#This Row],[Proposed Equipment]]))-7,7))-2\n))),0)))","v":""},{"$f":"IF(ProjectInfoTable[[#This Row],[Proposed Equipment]]=\"\",\"\",IFERROR(ProjectInfoTable[[#This Row],[Lamps (Proposed)]]*ProjectInfoTable[[#This Row],[Lamp W (Proposed)]],\"\"))","v":""},{"$f":"IF(ProjectInfoTable[[#This Row],[Proposed Equipment]]=\"\",\"\",IFERROR(ProjectInfoTable[[#This Row],[Quantity (Proposed)]]*ProjectInfoTable[[#This Row],[Fixture W (Proposed)]],\"\"))","v":""},{"$f":"IFERROR(INDEX(OperatingHours_List,MATCH(ProjectInfoTable[[#This Row],[OpSch]],OperatingSchedules_List,0))*ProjectInfoTable[[#This Row],[Space W (Proposed)]]/1000,\"\")","v":""},{"$f":"IF(OR(ISNUMBER(FIND(\"Controls Only\",ProjectInfoTable[[#This Row],[Proposed Equipment]],1)),ProjectInfoTable[[#This Row],[ControlsOnly]]=\"Re-Commissioning\"),\"Controls Only\",IFERROR(INDEX(OperatingHours_List,MATCH(ProjectInfoTable[[#This Row],[OpSch]],OperatingSchedules_List,0))*ProjectInfoTable[[#This Row],[Space W (Proposed)]]/1000*(IFERROR(INDEX(ControlsLookup[],MATCH(SUBSTITUTE(RIGHT(ProjectInfoTable[[#This Row],[Proposed Equipment]],LEN(ProjectInfoTable[[#This Row],[Proposed Equipment]])-FIND(\"]\",ProjectInfoTable[[#This Row],[Proposed Equipment]],1)-3),\" reused\",\"\"),ControlsLookup[Controls],0),MATCH(\"CSF_\"&ProjectState,ControlsLookup[#Headers],0)),0))*-1,\"\"))","v":""},{"$f":"IF(OR(ProjectInfoTable[[#This Row],[Fixture kWh (Proposed)]]=\"\",ProjectInfoTable[[#This Row],[Control kWh (Proposed)]]=\"\"),\"\",IFERROR(ProjectInfoTable[[#This Row],[Fixture kWh (Proposed)]]+ProjectInfoTable[[#This Row],[Control kWh (Proposed)]],0))","v":""},{"$f":"IF(\n OR(\n  ProjectInfoTable[[#This Row],[Proposed Equipment]]=\"\",\n  ProjectInfoTable[[#This Row],[Quantity (Proposed)]]=\"\"\n ),\n \"\",\n IF(\n  AND(\n   OR(\n    AND(\n     ProjectState=\"UT\",\n     RateSchedule=12\n    ),\n    AND(\n     ProjectState=\"ID\",\n     RateSchedule=12\n    ),\n    AND(\n     ProjectState=\"WY\",\n     RateSchedule=58\n    )\n   ),\n   ISNUMBER(FIND(\"Street:\",ProjectInfoTable[[#This Row],[Existing Equipment]],1))\n  ),\n  IF(\n   AND(\n    RateSchedule=53,\n    ISNUMBER(FIND(\"LED\",ProjectInfoTable[[#This Row],[Proposed Equipment]],1))\n   ),\n   ProjectInfoTable[[#This Row],[Fixture kWh (Proposed)]]\n   *\n   INDEX(\n    INDIRECT(\"RateSchedules_\"&ProjectState&\"_Table[kWh Rate]\"),\n    MATCH(RateSchedule,INDIRECT(\"RateSchedules_\"&ProjectState&\"_Table[Rate Schedule]\"),0)\n   ),\n   IFERROR(INDEX(\n    StreetLightingRates_Table[],\n    MATCH(\"LED\"&IF(AND(ProjectInfoTable[[#This Row],[Fixture W (Proposed)]]>0,ProjectInfoTable[[#This Row],[Fixture W (Proposed)]]<=70),70,IF(AND(ProjectInfoTable[[#This Row],[Fixture W (Proposed)]]>70,ProjectInfoTable[[#This Row],[Fixture W (Proposed)]]<=100),100,IF(AND(ProjectInfoTable[[#This Row],[Fixture W (Proposed)]]>100,ProjectInfoTable[[#This Row],[Fixture W (Proposed)]]<=150),150,IF(AND(ProjectInfoTable[[#This Row],[Fixture W (Proposed)]]>150,ProjectInfoTable[[#This Row],[Fixture W (Proposed)]]<=200),200,IF(AND(ProjectInfoTable[[#This Row],[Fixture W (Proposed)]]>200,ProjectInfoTable[[#This Row],[Fixture W (Proposed)]]<=250),250,IF(AND(ProjectInfoTable[[#This Row],[Fixture W (Proposed)]]>250,ProjectInfoTable[[#This Row],[Fixture W (Proposed)]]<=400),400,\"\")))))),StreetLightingRates_Table[TechWattage],0),\n    MATCH(ProjectState&RateSchedule,StreetLightingRates_Table[#Headers],0)\n   )\n   *ProjectInfoTable[[#This Row],[Lamps (Proposed)]]*ProjectInfoTable[[#This Row],[Quantity (Proposed)]]*12,\n  ProjectInfoTable[[#This Row],[Space kWh (Proposed)]]*INDEX(INDIRECT(\"RateSchedules_\"&ProjectState&\"_Table[kWh Rate]\"),MATCH(RateSchedule,INDIRECT(\"RateSchedules_\"&ProjectState&\"_Table[Rate Schedule]\"),0)))),\n  IFERROR(ProjectInfoTable[[#This Row],[Space kWh (Proposed)]]*INDEX(INDIRECT(\"RateSchedules_\"&ProjectState&\"_Table[kWh Rate]\"),MATCH(RateSchedule,INDIRECT(\"RateSchedules_\"&ProjectState&\"_Table[Rate Schedule]\"),0)),0)\n  +\n  IF(OR(ISNUMBER(FIND(\"Exterior:\",ProjectInfoTable[[#This Row],[Existing Equipment]],1)),ISNUMBER(FIND(\"Street:\",ProjectInfoTable[[#This Row],[Existing Equipment]],1))),0,IFERROR(ProjectInfoTable[[#This Row],[Space W (Proposed)]]/1000*12*DDF*INDEX(INDIRECT(\"RateSchedules_\"&ProjectState&\"_Table[kW Rate]\"),MATCH(RateSchedule,INDIRECT(\"RateSchedules_\"&ProjectState&\"_Table[Rate Schedule]\"),0)),0))\n )\n)","v":""},{"$f":"IF(ProjectInfoTable[[#This Row],[Measure Selection]]=\"\",0,IF(ProjectType=\"Retrofit\",IFERROR((ProjectInfoTable[[#This Row],[Space W (Existing, Actual)]]-ProjectInfoTable[[#This Row],[Space W (Proposed)]])/ProjectInfoTable[[#This Row],[Space W (Existing, Actual)]],\"\"),IF(AND(ProjectInfoTable[[#This Row],[Proposed Equipment]]=\"\",ProjectInfoTable[[#This Row],[Quantity (Proposed)]]=\"\"),\"\",IFERROR((ProjectInfoTable[[#This Row],[Space W (Existing, Stipulated)]]-ProjectInfoTable[[#This Row],[Space W (Proposed)]])/ProjectInfoTable[[#This Row],[Space W (Existing, Stipulated)]],\"n/a\"))))","v":""},{"$f":"IF(ProjectInfoTable[[#This Row],[Measure Selection]]=\"\",0,IF(ProjectType=\"Retrofit\",IFERROR((ProjectInfoTable[[#This Row],[Space W (Existing, Stipulated)]]-ProjectInfoTable[[#This Row],[Space W (Proposed)]])/ProjectInfoTable[[#This Row],[Space W (Existing, Stipulated)]],\"\"),ProjectInfoTable[[#This Row],[% Wattage Reduction (Actual)]]))","v":""},{"$f":"IFERROR(IF(OR(ProjectInfoTable[[#This Row],[Measure Selection]]=\"\",ProjectInfoTable[[#This Row],[ControlsOnly]]=\"Re-Commissioning\"),0,IF(AND(ProjectType=\"Retrofit\",LEFT(ProjectInfoTable[[#This Row],[Existing Equipment]],FIND(\": \",ProjectInfoTable[[#This Row],[Existing Equipment]],1)-1)<>\"Interior\"),0,((ProjectInfoTable[[#This Row],[Space W (Existing, Actual)]]-ProjectInfoTable[[#This Row],[Space W (Proposed)]])/1000*DDF)-IF(ProjectInfoTable[[#This Row],[Midstream Measure Name]]<>\"\",IFERROR(ProjectInfoTable[[#This Row],[kW Per Unit (Midstream)]]*ProjectInfoTable[[#This Row],[Quantity]]*ProjectInfoTable[[#This Row],[No. of TRL Units]],0),0))),\"\")","v":""},{"$f":"IFERROR(IF(OR(ProjectInfoTable[[#This Row],[Measure Selection]]=\"\",ProjectInfoTable[[#This Row],[ControlsOnly]]=\"Re-Commissioning\"),0,IF(AND(ISNUMBER(VALUE(ProjectInfoTable[[#This Row],[kW Per Unit]])),ProjectInfoTable[[#This Row],[kW Per Unit]]<>0),ROUND(ProjectInfoTable[[#This Row],[kW Per Unit]]*ProjectInfoTable[[#This Row],[Quantity]]*ProjectInfoTable[[#This Row],[No. of TRL Units]],2),IF(OR(AND(ProjectType=\"Retrofit\",LEFT(ProjectInfoTable[[#This Row],[Existing Equipment]],FIND(\": \",ProjectInfoTable[[#This Row],[Existing Equipment]],1)-1)<>\"Interior\"),AND(ProjectInfoTable[[#This Row],[Incentives Per Unit]]=0,INDEX(StipulatedSavingsYesNo_Table[Stipulated Savings?],MATCH(ProjectState,StipulatedSavingsYesNo_Table[State],0))=\"No\")),0,IF(ISNUMBER(FIND(\"Controls Only\",ProjectInfoTable[[#This Row],[Proposed Equipment]],1)),0,ROUND(((ProjectInfoTable[[#This Row],[Space W (Existing, Stipulated)]]-ProjectInfoTable[[#This Row],[Space W (Proposed)]])/1000*DDF)-IF(ProjectInfoTable[[#This Row],[Midstream Measure Name]]<>\"\",IFERROR(ProjectInfoTable[[#This Row],[kW Per Unit (Midstream)]]*ProjectInfoTable[[#This Row],[Quantity]]*ProjectInfoTable[[#This Row],[No. of TRL Units]],0),0),2))))),\"\")","v":""},{"$f":"IFERROR(IF(OR(ProjectInfoTable[[#This Row],[Control kWh (Proposed)]]=\"Controls Only\",ProjectInfoTable[[#This Row],[Measure Selection]]=\"\"),0,ROUND((ProjectInfoTable[[#This Row],[Fixture kWh (Existing, Actual)]]-ProjectInfoTable[[#This Row],[Fixture kWh (Proposed)]])*IF(VALUE(SpaceTypesInfo_Table[[#Totals],[HVAC Effects]])=0,1,1+VALUE(SpaceTypesInfo_Table[[#Totals],[HVAC Effects]])),0)),\"\")","v":""},{"$f":"IFERROR(IF(ProjectInfoTable[[#This Row],[Control kWh (Proposed)]]=\"Controls Only\",ROUND(IFERROR(INDEX(OperatingHours_List,MATCH(ProjectInfoTable[[#This Row],[OpSch]],OperatingSchedules_List,0))*IF(OR(ProjectType <> \"Retrofit\",ProjectInfoTable[[#This Row],[Space W (Proposed)]]>0),ProjectInfoTable[[#This Row],[Space W (Proposed)]],ProjectInfoTable[[#This Row],[Space W (Existing, Actual)]])/1000*(IFERROR(INDEX(ControlsLookup[],MATCH(RIGHT(ProjectInfoTable[[#This Row],[Proposed Equipment]],LEN(ProjectInfoTable[[#This Row],[Proposed Equipment]])-FIND(\"]\",ProjectInfoTable[[#This Row],[Proposed Equipment]],1)-3),ControlsLookup[Controls],0),MATCH(\"CSF_\"&ProjectState,ControlsLookup[#Headers],0)),0))*IF(VALUE(SpaceTypesInfo_Table[[#Totals],[HVAC Effects]])=0,1,1+VALUE(SpaceTypesInfo_Table[[#Totals],[HVAC Effects]])),\"\"),0),ROUND(IFERROR((ProjectInfoTable[[#This Row],[Control kWh (Existing, Actual)]]-ProjectInfoTable[[#This Row],[Control kWh (Proposed)]])*IF(VALUE(SpaceTypesInfo_Table[[#Totals],[HVAC Effects]])=0,1,1+VALUE(SpaceTypesInfo_Table[[#Totals],[HVAC Effects]])),\"\"),0)),\"\")","v":""},{"$f":"IF(OR(ProjectInfoTable[[#This Row],[Proposed Equipment]]=\"\",ProjectInfoTable[[#This Row],[Quantity (Proposed)]]=\"\"),\"\",IF(ProjectInfoTable[[#This Row],[Fixture Measure]]=\"\",0,IF(AND(ProjectInfoTable[[#This Row],[Incentives Per Unit]]=0,INDEX(StipulatedSavingsYesNo_Table[Stipulated Savings?],MATCH(ProjectState,StipulatedSavingsYesNo_Table[State],0))=\"No\"),0,ProjectInfoTable[[#This Row],[Total   kWh/yr Savings (Actual)]]-ProjectInfoTable[[#This Row],[Control Measure kWh/yr Savings (Actual)]])))","v":""},{"$f":"IF(OR(ProjectInfoTable[[#This Row],[Proposed Equipment]]=\"\",ProjectInfoTable[[#This Row],[Quantity (Proposed)]]=\"\"),\"\",IF(ProjectInfoTable[[#This Row],[Control Measure]]=\"\",0,ProjectInfoTable[[#This Row],[Control kWh/yr Savings (Actual)]]))","v":""},{"$f":"IF(AND(ProjectInfoTable[[#This Row],[Incentives Per Unit]]=0,INDEX(StipulatedSavingsYesNo_Table[Stipulated Savings?],MATCH(ProjectState,StipulatedSavingsYesNo_Table[State],0))=\"No\"),ProjectInfoTable[[#This Row],[Fixture kWh/yr Savings (Actual)]]+IF(ProjectInfoTable[[#This Row],[Control Measure kWh/yr Savings (Actual)]]=0,0,ProjectInfoTable[[#This Row],[Control kWh/yr Savings (Actual)]]),IF(AND(ProjectInfoTable[[#This Row],[Fixture kWh/yr Savings (Actual)]]=\"\",ProjectInfoTable[[#This Row],[Control kWh/yr Savings (Actual)]]=\"\"),\"\",ROUND(IF(ProjectInfoTable[[#This Row],[Fixture kWh/yr Savings (Actual)]]=\"\",0,ProjectInfoTable[[#This Row],[Fixture kWh/yr Savings (Actual)]])+IF(ProjectInfoTable[[#This Row],[Control kWh/yr Savings (Actual)]]=\"\",0,ProjectInfoTable[[#This Row],[Control kWh/yr Savings (Actual)]])-IF(ProjectInfoTable[[#This Row],[Midstream Measure Name]]<>\"\",IFERROR(ProjectInfoTable[[#This Row],[kWh Per Unit (Midstream)]]*ProjectInfoTable[[#This Row],[Quantity]]*ProjectInfoTable[[#This Row],[No. of TRL Units]],0),0),0)))","v":""},{"$f":"IFERROR(IF(OR(ProjectInfoTable[[#This Row],[Measure Selection]]=\"\",ProjectInfoTable[[#This Row],[ControlsOnly]]=\"Re-Commissioning\"),0,IF(AND(ProjectInfoTable[[#This Row],[Incentives Per Unit]]=0,INDEX(StipulatedSavingsYesNo_Table[Stipulated Savings?],MATCH(ProjectState,StipulatedSavingsYesNo_Table[State],0))=\"No\"),0,IF(ISNUMBER(FIND(\"Controls Only\",ProjectInfoTable[[#This Row],[Proposed Equipment]],1)),0,ROUND((ProjectInfoTable[[#This Row],[Fixture kWh (Existing, Stipulated)]]-ProjectInfoTable[[#This Row],[Fixture kWh (Proposed)]])*IF(VALUE(SpaceTypesInfo_Table[[#Totals],[HVAC Effects]])=0,1,1+VALUE(SpaceTypesInfo_Table[[#Totals],[HVAC Effects]])),0)))),\"\")","v":""},{"$f":"IFERROR(IF(ProjectInfoTable[[#This Row],[Control kWh (Proposed)]]=\"Controls Only\",ROUND(IFERROR(INDEX(OperatingHours_List,MATCH(ProjectInfoTable[[#This Row],[OpSch]],OperatingSchedules_List,0))*IF(OR(ProjectType <> \"Retrofit\",ProjectInfoTable[[#This Row],[Space W (Proposed)]]>0),ProjectInfoTable[[#This Row],[Space W (Proposed)]],ProjectInfoTable[[#This Row],[Space W (Existing, Stipulated)]])/1000*(IFERROR(INDEX(ControlsLookup[],MATCH(RIGHT(ProjectInfoTable[[#This Row],[Proposed Equipment]],LEN(ProjectInfoTable[[#This Row],[Proposed Equipment]])-FIND(\"]\",ProjectInfoTable[[#This Row],[Proposed Equipment]],1)-3),ControlsLookup[Controls],0),MATCH(\"CSF_\"&ProjectState,ControlsLookup[#Headers],0)),0))*IF(VALUE(SpaceTypesInfo_Table[[#Totals],[HVAC Effects]])=0,1,1+VALUE(SpaceTypesInfo_Table[[#Totals],[HVAC Effects]])),\"\"),0),ROUND(IFERROR((ProjectInfoTable[[#This Row],[Control kWh (Existing, Stipulated)]]-ProjectInfoTable[[#This Row],[Control kWh (Proposed)]])*IF(VALUE(SpaceTypesInfo_Table[[#Totals],[HVAC Effects]])=0,1,1+VALUE(SpaceTypesInfo_Table[[#Totals],[HVAC Effects]])),INDEX(ControlsLookup[],MATCH(RIGHT(ProjectInfoTable[[#This Row],[Proposed Equipment]],LEN(ProjectInfoTable[[#This Row],[Proposed Equipment]])-FIND(\"-\",ProjectInfoTable[[#This Row],[Proposed Equipment]],LEN(ProjectInfoTable[[#This Row],[Proposed Equipment]])-15)-1),ControlsLookup[Controls],0),MATCH(\"CSF_\"&ProjectState,ControlsLookup[#Headers],0))*IF(NOT(ISNUMBER(VALUE(ProjectInfoTable[[#This Row],[kWh Per Unit]]))),ProjectInfoTable[[#This Row],[Fixture kWh/yr Savings (Stipulated)]],ProjectInfoTable[[#This Row],[kWh Per Unit]]*ProjectInfoTable[[#This Row],[Quantity]]*ProjectInfoTable[[#This Row],[No. of TRL Units]])),0)),IF(OR(ProjectType=\"New Construction\",ProjectType=\"Major Renovation\"),IF(ProjectInfoTable[[#This Row],[Control kWh (Proposed)]]=\"\",\"\",0),\"\"))","v":""},{"$f":"IF(OR(ProjectInfoTable[[#This Row],[Proposed Equipment]]=\"\",ProjectInfoTable[[#This Row],[Quantity (Proposed)]]=\"\"),\"\",IF(ProjectInfoTable[[#This Row],[Fixture Measure]]=\"\",0,IF(AND(ProjectInfoTable[[#This Row],[Incentives Per Unit]]=0,INDEX(StipulatedSavingsYesNo_Table[Stipulated Savings?],MATCH(ProjectState,StipulatedSavingsYesNo_Table[State],0))=\"No\"),0,ProjectInfoTable[[#This Row],[Total   kWh/yr Savings (Stipulated)]]-ProjectInfoTable[[#This Row],[Control Measure kWh/yr Savings (Stipulated)]])))","v":""},{"$f":"IF(OR(ProjectInfoTable[[#This Row],[Proposed Equipment]]=\"\",ProjectInfoTable[[#This Row],[Quantity (Proposed)]]=\"\"),\"\",IF(ProjectInfoTable[[#This Row],[Control Measure]]=\"\",0,IF(OR(ProjectType=\"New Construction\",ProjectType=\"Major Renovation\"),IFERROR(ROUND(ProjectInfoTable[[#This Row],[Control kWh Per Unit]]*ProjectInfoTable[[#This Row],[Control Quantity]]*ProjectInfoTable[[#This Row],[Control No. of TRL Units]],0),ProjectInfoTable[[#This Row],[Control kWh/yr Savings (Stipulated)]]),ProjectInfoTable[[#This Row],[Control kWh/yr Savings (Stipulated)]])))","v":""},{"$f":"IF(AND(ProjectInfoTable[[#This Row],[Incentives Per Unit]]=0,INDEX(StipulatedSavingsYesNo_Table[Stipulated Savings?],MATCH(ProjectState,StipulatedSavingsYesNo_Table[State],0))=\"No\"),ProjectInfoTable[[#This Row],[Fixture kWh/yr Savings (Stipulated)]]+IF(ProjectInfoTable[[#This Row],[Control Measure kWh/yr Savings (Stipulated)]]=0,0,ProjectInfoTable[[#This Row],[Control kWh/yr Savings (Stipulated)]]),IF(OR(ISNUMBER(VALUE(ProjectInfoTable[[#This Row],[kWh Per Unit]])),ISNUMBER(VALUE(ProjectInfoTable[[#This Row],[Control kWh Per Unit]]))),ROUND(IFERROR(ProjectInfoTable[[#This Row],[kWh Per Unit]]*ProjectInfoTable[[#This Row],[Quantity]]*ProjectInfoTable[[#This Row],[No. of TRL Units]],0)+IFERROR(ProjectInfoTable[[#This Row],[Control kWh Per Unit]]*ProjectInfoTable[[#This Row],[Control Quantity]]*ProjectInfoTable[[#This Row],[Control No. of TRL Units]],ProjectInfoTable[[#This Row],[Control kWh/yr Savings (Stipulated)]]),0),IF(AND(ProjectInfoTable[[#This Row],[Fixture kWh/yr Savings (Stipulated)]]=\"\",ProjectInfoTable[[#This Row],[Control kWh/yr Savings (Stipulated)]]=\"\"),\"\",ROUND(IF(ProjectInfoTable[[#This Row],[Fixture kWh/yr Savings (Stipulated)]]=\"\",0,ProjectInfoTable[[#This Row],[Fixture kWh/yr Savings (Stipulated)]])+IF(ProjectInfoTable[[#This Row],[Control kWh/yr Savings (Stipulated)]]=\"\",0,ProjectInfoTable[[#This Row],[Control kWh/yr Savings (Stipulated)]])-IF(ProjectInfoTable[[#This Row],[Midstream Measure Name]]<>\"\",IFERROR(ProjectInfoTable[[#This Row],[kWh Per Unit (Midstream)]]*ProjectInfoTable[[#This Row],[Quantity]]*ProjectInfoTable[[#This Row],[No. of TRL Units]],0),0),0))))","v":""},{"$f":"IF(OR(ISNUMBER(FIND(\"Midstream\",ProjectInfoTable[[#This Row],[Fixture Measure]])),ISNUMBER(FIND(\"SBDI\",ProjectInfoTable[[#This Row],[Fixture Measure]])),ISNUMBER(FIND(\"Small Bu\",ProjectInfoTable[[#This Row],[Fixture Measure]]))),\n\nIF(ProjectInfoTable[[#This Row],[Measure Selection]]=\"\",0,\n\nIF(ISNUMBER(FIND(\"/U]\",ProjectInfoTable[[#This Row],[Proposed Equipment]])),IFERROR(MID(ProjectInfoTable[[#This Row],[Proposed Equipment]],FIND(\"$\",ProjectInfoTable[[#This Row],[Proposed Equipment]],1)+1,FIND(\"/U]\",ProjectInfoTable[[#This Row],[Proposed Equipment]],1)-FIND(\"$\",ProjectInfoTable[[#This Row],[Proposed Equipment]],1)-1)*ProjectInfoTable[[#This Row],[Lamps (Proposed)]]*ProjectInfoTable[[#This Row],[Quantity (Proposed)]],0),\nIF(ISNUMBER(FIND(\"/U \",ProjectInfoTable[[#This Row],[Proposed Equipment]])),IFERROR(MID(ProjectInfoTable[[#This Row],[Proposed Equipment]],FIND(\"$\",ProjectInfoTable[[#This Row],[Proposed Equipment]],1)+1,FIND(\"/U \",ProjectInfoTable[[#This Row],[Proposed Equipment]],1)-FIND(\"$\",ProjectInfoTable[[#This Row],[Proposed Equipment]],1)-1)*ProjectInfoTable[[#This Row],[Lamps (Proposed)]]*ProjectInfoTable[[#This Row],[Quantity (Proposed)]],0),\nIFERROR(ProjectInfoTable[[#This Row],[Fixture Measure kWh/yr Savings (Stipulated)]]/SUM(ProjectInfoTable[Total   kWh/yr Savings (Stipulated)])*ProjectCost_Total,\"\")))),\"\")","v":""},{"$f":"IFERROR(IF(ProjectInfoTable[[#This Row],[Fixture Measure kWh/yr Savings (Stipulated)]]=0,0,IF(ProjectType=\"Retrofit\",IF(OR(ISNUMBER(FIND(\"Midstream\",ProjectInfoTable[[#This Row],[Fixture Measure]])),ISNUMBER(FIND(\"SBDI\",ProjectInfoTable[[#This Row],[Fixture Measure]])),ISNUMBER(FIND(\"Small Bu\",ProjectInfoTable[[#This Row],[Fixture Measure]]))),ProjectInfoTable[[#This Row],[Measure Cost (Direct)]],IFERROR(ProjectInfoTable[[#This Row],[Fixture Measure kWh/yr Savings (Stipulated)]]/kWhSavings_Typical_Stipulated*(ProjectCost_Total-SUM(ProjectInfoTable[Measure Cost (Direct)])),\"\")),IF(ProjectInfoTable[[#This Row],[Proposed Equipment]]=\"\",\"\",IFERROR(SpaceTypesInfo_Table[[#Totals],[NCMR Int Cost]]*ProjectInfoTable[[#This Row],[Fixture Measure kWh/yr Savings (Stipulated)]]/SUMIFS(ProjectInfoTable[Total   kWh/yr Savings (Stipulated)],ProjectInfoTable[Proposed Equipment],\"*Interior*\"),0)))),\"\")","v":""},{"$f":"IFERROR(\n IF(\n  ProjectInfoTable[[#This Row],[Control Measure kWh/yr Savings (Stipulated)]]=0,\n  0,\n  IF(\n   ProjectType=\"Retrofit\",\n    IFERROR(\n     ProjectInfoTable[[#This Row],[Control Measure kWh/yr Savings (Stipulated)]]\n     /\n     SUMIFS(ProjectInfoTable[Control Measure kWh/yr Savings (Stipulated)],ProjectInfoTable[Control Measure],\"<>\"\"\")\n     *\n     (ProjectCost_Total-SUM(ProjectInfoTable[Fixture Cost (Allocated)])),\n     \"\"\n    ),\nROUND(\n    IF(\n     ProjectInfoTable[[#This Row],[Proposed Equipment]]=\"\",\n     \"\",\n     IFERROR(\n      SpaceTypesInfo_Table[[#Totals],[NCMR Int Cost]]\n      *\n      ProjectInfoTable[[#This Row],[Control Measure kWh/yr Savings (Stipulated)]]\n      /\n      SUMIFS(ProjectInfoTable[Total   kWh/yr Savings (Stipulated)],ProjectInfoTable[Proposed Equipment],\"*Interior*\"),\n      0\n     )\n    ),\n    2\n   )\n  )\n ),\n \"\"\n)","v":""},{"$f":"IF(AND(ProjectInfoTable[[#This Row],[Fixture Cost (Allocated)]]=\"\",ProjectInfoTable[[#This Row],[Control Cost (Allocated)]]=\"\"),\"\",SUM(ProjectInfoTable[[#This Row],[Fixture Cost (Allocated)]:[Control Cost (Allocated)]]))","v":""},{"$f":"IFERROR(IF(OR(ProjectInfoTable[[#This Row],[Proposed Equipment]]=\"\",ProjectInfoTable[[#This Row],[Quantity (Proposed)]]=\"\"),\"\",IF(OR(ProjectInfoTable[[#This Row],[Measure Selection]]=\"\",ProjectInfoTable[[#This Row],[Control kWh (Proposed)]]=\"Controls Only\"),0,IF(NOT(ISNUMBER(FIND(\"Retrofit\",ProjectType,1))),ProjectInfoTable[[#This Row],[Fixture Energy Cost Savings (Stipulated)]],IF(AND(ProjectInfoTable[[#This Row],[Fixture Measure]]=\"\",ProjectInfoTable[[#This Row],[Control Measure]]<>\"\"),0,ROUND((ProjectInfoTable[[#This Row],[Total Energy Costs (Existing, Actual)]]-ProjectInfoTable[[#This Row],[Total Energy Costs (Proposed)]]),2))))),\"\")","v":""},{"$f":"IFERROR(IF(OR(ProjectInfoTable[[#This Row],[Proposed Equipment]]=\"\",ProjectInfoTable[[#This Row],[Quantity (Proposed)]]=\"\"),\"\",\n\nIF(ProjectInfoTable[[#This Row],[Control kWh (Proposed)]]=\"Controls Only\",ProjectInfoTable[[#This Row],[Control Measure kWh/yr Savings (Actual)]]*INDEX(INDIRECT(\"RateSchedules_\"&ProjectState&\"_Table[kWh Rate]\"),\nMATCH(RateSchedule,INDIRECT(\"RateSchedules_\"&ProjectState&\"_Table[Rate Schedule]\"),0)),\n\nIF(NOT(ISNUMBER(FIND(\"Retrofit\",ProjectType,1))),ProjectInfoTable[[#This Row],[Control Energy Cost Savings (Stipulated)]],IF(AND(ProjectInfoTable[[#This Row],[Fixture Measure]]=\"\",ProjectInfoTable[[#This Row],[Control Measure]]<>\"\"),ROUND((ProjectInfoTable[[#This Row],[Total Energy Costs (Existing, Actual)]]-ProjectInfoTable[[#This Row],[Total Energy Costs (Proposed)]]),2),ROUND((ProjectInfoTable[[#This Row],[Total Energy Costs (Existing, Actual)]]-ProjectInfoTable[[#This Row],[Total Energy Costs (Proposed)]]),2)*(ProjectInfoTable[[#This Row],[Control Measure kWh/yr Savings (Actual)]]/ProjectInfoTable[[#This Row],[Total   kWh/yr Savings (Actual)]]))))),\"\")","v":""},{"$f":"IF(OR(ProjectInfoTable[[#This Row],[Proposed Equipment]]=\"\",ProjectInfoTable[[#This Row],[Quantity (Proposed)]]=\"\"),\"\",ROUND(ProjectInfoTable[[#This Row],[Fixture Energy Cost Savings (Actual)]]+ProjectInfoTable[[#This Row],[Control Energy Cost Savings (Actual)]],2))","v":""},{"$f":"IF(OR(ProjectInfoTable[[#This Row],[Proposed Equipment]]=\"\",ProjectInfoTable[[#This Row],[Quantity (Proposed)]]=\"\"),\"\",IF(OR(ISNUMBER(VALUE(ProjectInfoTable[[#This Row],[kWh Per Unit]])),ISNUMBER(VALUE(ProjectInfoTable[[#This Row],[kW Per Unit]]))),IFERROR(ProjectInfoTable[[#This Row],[Fixture Measure kWh/yr Savings (Stipulated)]]*INDEX(INDIRECT(\"RateSchedules_\"&ProjectState&\"_Table[kWh Rate]\"),MATCH(RateSchedule,INDIRECT(\"RateSchedules_\"&ProjectState&\"_Table[Rate Schedule]\"),0)),0)+IFERROR(ProjectInfoTable[[#This Row],[kW Demand Reduction (Stipulated)]]/1000*12*INDEX(INDIRECT(\"RateSchedules_\"&ProjectState&\"_Table[kW Rate]\"),MATCH(RateSchedule,INDIRECT(\"RateSchedules_\"&ProjectState&\"_Table[Rate Schedule]\"),0)),0),IFERROR(ROUND((ProjectInfoTable[[#This Row],[Total Energy Costs (Existing, Stipulated)]]-ProjectInfoTable[[#This Row],[Total Energy Costs (Proposed)]])*ProjectInfoTable[[#This Row],[Fixture Measure kWh/yr Savings (Stipulated)]]/ProjectInfoTable[[#This Row],[Total   kWh/yr Savings (Stipulated)]],2),0)))","v":""},{"$f":"IF(OR(ProjectInfoTable[[#This Row],[Proposed Equipment]]=\"\",ProjectInfoTable[[#This Row],[Quantity (Proposed)]]=\"\"),\"\",\nIF(ProjectInfoTable[[#This Row],[Control kWh (Proposed)]]=\"Controls Only\",ProjectInfoTable[[#This Row],[Control Measure kWh/yr Savings (Stipulated)]]*INDEX(INDIRECT(\"RateSchedules_\"&ProjectState&\"_Table[kWh Rate]\"),\nMATCH(RateSchedule,INDIRECT(\"RateSchedules_\"&ProjectState&\"_Table[Rate Schedule]\"),0)),IF(OR(ISNUMBER(VALUE(ProjectInfoTable[[#This Row],[Control kWh Per Unit]])),\nISNUMBER(VALUE(ProjectInfoTable[[#This Row],[Control kW Per Unit]]))),IFERROR(ProjectInfoTable[[#This Row],[Control Measure kWh/yr Savings (Stipulated)]]*INDEX(INDIRECT(\"RateSchedules_\"&ProjectState&\"_Table[kWh Rate]\"),\nMATCH(RateSchedule,INDIRECT(\"RateSchedules_\"&ProjectState&\"_Table[Rate Schedule]\"),0)),0)+IFERROR(ProjectInfoTable[[#This Row],[kW Demand Reduction (Stipulated)]]/1000*12*\nINDEX(INDIRECT(\"RateSchedules_\"&ProjectState&\"_Table[kW Rate]\"),MATCH(RateSchedule,INDIRECT(\"RateSchedules_\"&ProjectState&\"_Table[Rate Schedule]\"),0)),0),\nIFERROR(ROUND((ProjectInfoTable[[#This Row],[Total Energy Costs (Existing, Stipulated)]]-ProjectInfoTable[[#This Row],[Total Energy Costs (Proposed)]])*ProjectInfoTable[[#This Row],[Control Measure kWh/yr Savings (Stipulated)]]/\nProjectInfoTable[[#This Row],[Total   kWh/yr Savings (Stipulated)]],2),0))))","v":""},{"$f":"IF(OR(ProjectInfoTable[[#This Row],[Proposed Equipment]]=\"\",ProjectInfoTable[[#This Row],[Quantity (Proposed)]]=\"\"),\"\",ROUND(ProjectInfoTable[[#This Row],[Fixture Energy Cost Savings (Stipulated)]]+ProjectInfoTable[[#This Row],[Control Energy Cost Savings (Stipulated)]],2))","v":""},{"$f":"IF(ProjectInfoTable[[#This Row],[OpSch]]=\"\",\"\",IF(OR(ProjectInfoTable[[#This Row],[Fixture Measure]]=\"\",ProjectInfoTable[[#This Row],[Eligible Fixture Measure]]<>TRUE),0,ProjectInfoTable[[#This Row],[Fixture Incentives (pre-capping)]])+IF(OR(ProjectInfoTable[[#This Row],[Control Measure]]=\"\",ProjectInfoTable[[#This Row],[Eligible Control Measure]]<>TRUE),0,ProjectInfoTable[[#This Row],[Control Incentives (pre-capping)]]))","v":""},{"$f":"IF(OR(ProjectInfoTable[[#This Row],[Fixture Measure]]<>\"\",ProjectInfoTable[[#This Row],[Control Measure]]<>\"\"),IF(ProjectInfoTable[[#This Row],[Fixture Incentives]]=\"\",0,ProjectInfoTable[[#This Row],[Fixture Incentives]])+IF(ProjectInfoTable[[#This Row],[Control Incentives]]=\"\",0,ProjectInfoTable[[#This Row],[Control Incentives]]),\"\")","v":""},null,{"$f":"IF(OR(ProjectInfoTable[[#This Row],[Fixture Measure]]=\"\",ProjectInfoTable[[#This Row],[OpSch]]=\"\",ProjectInfoTable[[#This Row],[Eligible Fixture Measure]]<>TRUE),\"\",\nIF(OR(ISNUMBER(FIND(\"SBDI\",ProjectInfoTable[[#This Row],[Fixture Measure]])),ISNUMBER(FIND(\"Small Bu\",ProjectInfoTable[[#This Row],[Fixture Measure]]))),IFERROR(0.75*ProjectInfoTable[[#This Row],[Fixture Cost (Allocated)]],\"cost error\"),\nIF(AND(OR(ProjectType=\"New Construction\",ProjectType=\"Major Renovation\"),LPDCodeToProposed<0.1,ISNUMBER(FIND(\"Interior\",ProjectInfoTable[[#This Row],[Proposed Equipment]],1))),0,IFERROR(ProjectInfoTable[[#This Row],[Incentives Per Unit]]*ProjectInfoTable[[#This Row],[Quantity]]*ProjectInfoTable[[#This Row],[No. of TRL Units]],\"TRL Error\"))))","v":""},{"$f":"IF(\n    OR(\n        ProjectInfoTable[[#This Row],[Fixture Measure]] = \"\",\n        ProjectInfoTable[[#This Row],[OpSch]] = \"\",\n        ProjectInfoTable[[#This Row],[Eligible Fixture Measure]] <> TRUE\n    ),\n    \"\",\n    IF(\n        OR(\n            ISNUMBER(FIND(\"SBDI\", ProjectInfoTable[[#This Row],[Fixture Measure]])),\n            ISNUMBER(FIND(\"Small Bu\", ProjectInfoTable[[#This Row],[Fixture Measure]]))\n        ),\n        IFERROR(\n            (Incentive_NonTypical / Incentive_NonTypical_PreCapped) * ProjectInfoTable[[#This Row],[Fixture Incentives (pre-capping)]],\n            \"\"\n        ),\n        IF(\n            AND(\n                ProjectType = \"Retrofit\",\n                ProjectState = \"UT\",\n                ISNUMBER(FIND(\"Post-Purchase\", ProjectInfoTable[[#This Row],[Fixture Measure]], 1))\n            ),\n            IFERROR(\n                MAX(\n                    MIN(\n                        ProjectInfoTable[[#This Row],[Fixture Incentives (pre-capping)]],\n                        ProjectInfoTable[[#This Row],[Fixture Cost (Allocated)]] * 0.7\n                    ),\n                    0\n                ),\n                0\n            ),\n            IF(\n                ProjectType = \"Retrofit\",\n                IF(\n                    ISNUMBER(FIND(\"Post-Purchase\", ProjectInfoTable[[#This Row],[Fixture Measure]], 1)),\n                    ProjectInfoTable[[#This Row],[Fixture Incentives (pre-capping)]],\n                    IFERROR(\n                        $BI$3 / $BH$3 * ProjectInfoTable[[#This Row],[Fixture Incentives (pre-capping)]],\n                        \"\"\n                    )\n                ),\n                IF(\n                    ISNUMBER(FIND(\"Interior\", ProjectInfoTable[[#This Row],[Proposed Equipment]], 1)),\n                    IF(\n                        LPDCodeToProposed > 0.1,\n                        ProjectInfoTable[[#This Row],[Fixture Incentives (pre-capping)]],\n                        0\n                    ),\n                    ProjectInfoTable[[#This Row],[Fixture Incentives (pre-capping)]]\n                )\n            )\n        )\n    )\n)","v":""},{"$f":"IF(OR(ProjectInfoTable[[#This Row],[Incentives Per Unit]]=\"\",ProjectInfoTable[[#This Row],[TRL Unit]]=\"\"),\"\",IF(ProjectInfoTable[[#This Row],[Eligible Fixture Measure]]<>TRUE,\"Invalid Effective Date\",\nIF(OR(ISNUMBER(FIND(\"SBDI\",ProjectInfoTable[[#This Row],[Fixture Measure]])),ISNUMBER(FIND(\"Small Bu\",ProjectInfoTable[[#This Row],[Fixture Measure]]))),\"$0.75 / dollar cost\",\nTEXT(ProjectInfoTable[[#This Row],[Incentives Per Unit]],\"$#,##0.00\")&\" / \"&IF(ProjectInfoTable[[#This Row],[Fixture Measure]]=\"\",\"\",IF(ProjectInfoTable[[#This Row],[TRL Unit]]=\"Measure\",IF(ISNUMBER(FIND(\"Relamp\",ProjectInfoTable[[#This Row],[Proposed Equipment]],1)),\"Lamp\",\"Fixture\"),ProjectInfoTable[[#This Row],[TRL Unit]])))))","v":""},{"$f":"IF(OR(ProjectInfoTable[[#This Row],[Proposed Equipment]]=\"\",ProjectInfoTable[[#This Row],[Quantity (Proposed)]]=\"\"),\"\",IFERROR(SUBSTITUTE(IF(ProjectType=\"Retrofit\",IF(OR(ISNUMBER(FIND(\"Controls On\",ProjectInfoTable[[#This Row],[Proposed Equipment]],1))),\"\",IF(OR(ProjectInfoTable[[#This Row],[Existing Equipment]]=\"\",ProjectInfoTable[[#This Row],[Proposed Equipment]]=\"\"),\"\",IF(ProjectState=\"UT\",IFERROR(IF(AlternativeEnergyOverride=\"Yes\",IFERROR(INDEX(INDIRECT(\"EquipmentTable_\"&\"Retrofit_\"&ProjectState&\"[#All]\"),MATCH(LEFT(ProjectInfoTable[[#This Row],[Proposed Equipment]],FIND(\"[\",ProjectInfoTable[[#This Row],[Proposed Equipment]],1)-2)&\" (Alt)\",INDIRECT(\"EquipmentTable_\"&\"Retrofit_\"&ProjectState&\"[equipmentProposed]\"),0)+1,MATCH(\"measureRetrofit_\"&LEFT(ProjectInfoTable[[#This Row],[Existing Equipment]],FIND(\":\",ProjectInfoTable[[#This Row],[Existing Equipment]],1)-1)&\"_\"&IF(IFERROR(INDEX(ControlsLookup[Rank],MATCH(RIGHT(ProjectInfoTable[[#This Row],[Proposed Equipment]],LEN(ProjectInfoTable[[#This Row],[Proposed Equipment]])-FIND(\"]\",ProjectInfoTable[[#This Row],[Proposed Equipment]],1)-3),ControlsLookup[Controls],0)),0)>IFERROR(INDEX(ControlsLookup[Rank],MATCH(RIGHT(ProjectInfoTable[[#This Row],[Existing Equipment]],LEN(ProjectInfoTable[[#This Row],[Existing Equipment]])-FIND(\"]\",ProjectInfoTable[[#This Row],[Existing Equipment]],1)-3),ControlsLookup[Controls],0)),0),INDEX(ControlsLookup[Controls Type],MATCH(LEFT(ProjectInfoTable[[#This Row],[Existing Equipment]],FIND(\":\",ProjectInfoTable[[#This Row],[Existing Equipment]],1)-1)&\"_\"&RIGHT(ProjectInfoTable[[#This Row],[Proposed Equipment]],LEN(ProjectInfoTable[[#This Row],[Proposed Equipment]])-FIND(\"]\",ProjectInfoTable[[#This Row],[Proposed Equipment]],1)-3),ControlsLookup[Controls Concatenate],0)),\"None\"),INDIRECT(\"EquipmentTable_\"&\"Retrofit_\"&ProjectState&\"[#Headers]\"),0)),INDEX(INDIRECT(\"EquipmentTable_\"&IF(ProjectType=\"Retrofit\",\"Retrofit_\",\"NCMR_\")&ProjectState&\"[#All]\"),MATCH(LEFT(ProjectInfoTable[[#This Row],[Proposed Equipment]],FIND(\"[\",ProjectInfoTable[[#This Row],[Proposed Equipment]],1)-2),INDIRECT(\"EquipmentTable_\"&\"Retrofit_\"&ProjectState&\"[equipmentProposed]\"),0)+1,MATCH(\"measureRetrofit_\"&LEFT(ProjectInfoTable[[#This Row],[Existing Equipment]],FIND(\":\",ProjectInfoTable[[#This Row],[Existing Equipment]],1)-1)&\"_\"&IF(IFERROR(INDEX(ControlsLookup[Rank],MATCH(RIGHT(ProjectInfoTable[[#This Row],[Proposed Equipment]],LEN(ProjectInfoTable[[#This Row],[Proposed Equipment]])-FIND(\"]\",ProjectInfoTable[[#This Row],[Proposed Equipment]],1)-3),ControlsLookup[Controls],0)),0)>IFERROR(INDEX(ControlsLookup[Rank],MATCH(RIGHT(ProjectInfoTable[[#This Row],[Existing Equipment]],LEN(ProjectInfoTable[[#This Row],[Existing Equipment]])-FIND(\"]\",ProjectInfoTable[[#This Row],[Existing Equipment]],1)-3),ControlsLookup[Controls],0)),0),INDEX(ControlsLookup[Controls Type],MATCH(LEFT(ProjectInfoTable[[#This Row],[Existing Equipment]],FIND(\":\",ProjectInfoTable[[#This Row],[Existing Equipment]],1)-1)&\"_\"&RIGHT(ProjectInfoTable[[#This Row],[Proposed Equipment]],LEN(ProjectInfoTable[[#This Row],[Proposed Equipment]])-FIND(\"]\",ProjectInfoTable[[#This Row],[Proposed Equipment]],1)-3),ControlsLookup[Controls Concatenate],0)),\"None\"),INDIRECT(\"EquipmentTable_\"&IF(ProjectType=\"Retrofit\",\"Retrofit_\",\"NCMR_\")&ProjectState&\"[#Headers]\"),0))),INDEX(INDIRECT(\"EquipmentTable_\"&IF(ProjectType=\"Retrofit\",\"Retrofit_\",\"NCMR_\")&ProjectState&\"[#All]\"),MATCH(LEFT(ProjectInfoTable[[#This Row],[Proposed Equipment]],FIND(\"[\",ProjectInfoTable[[#This Row],[Proposed Equipment]],1)-2),INDIRECT(\"EquipmentTable_\"&IF(ProjectType=\"Retrofit\",\"Retrofit_\",\"NCMR_\")&ProjectState&\"[equipmentProposed]\"),0)+1,MATCH(\"measureRetrofit_\"&IF(AND(SBDEligible=\"Yes\",ISNUMBER(FIND(\"SBE\",ProjectInfoTable[[#This Row],[Proposed Equipment]]))),\"SBE\",LEFT(ProjectInfoTable[[#This Row],[Existing Equipment]],FIND(\":\",ProjectInfoTable[[#This Row],[Existing Equipment]],1)-1)&\"_\"&IF(IFERROR(INDEX(ControlsLookup[Rank],MATCH(RIGHT(ProjectInfoTable[[#This Row],[Proposed Equipment]],LEN(ProjectInfoTable[[#This Row],[Proposed Equipment]])-FIND(\"]\",ProjectInfoTable[[#This Row],[Proposed Equipment]],1)-3),ControlsLookup[Controls],0)),0)>IFERROR(INDEX(ControlsLookup[Rank],MATCH(RIGHT(ProjectInfoTable[[#This Row],[Existing Equipment]],LEN(ProjectInfoTable[[#This Row],[Existing Equipment]])-FIND(\"]\",ProjectInfoTable[[#This Row],[Existing Equipment]],1)-3),ControlsLookup[Controls],0)),0),INDEX(ControlsLookup[Controls Type],MATCH(LEFT(ProjectInfoTable[[#This Row],[Existing Equipment]],FIND(\":\",ProjectInfoTable[[#This Row],[Existing Equipment]],1)-1)&\"_\"&RIGHT(ProjectInfoTable[[#This Row],[Proposed Equipment]],LEN(ProjectInfoTable[[#This Row],[Proposed Equipment]])-FIND(\"]\",ProjectInfoTable[[#This Row],[Proposed Equipment]],1)-3),ControlsLookup[Controls Concatenate],0)),\"None\")),INDIRECT(\"EquipmentTable_\"&\"Retrofit_\"&ProjectState&\"[#Headers]\"),0))),\"Non-eligible fixture - Retrofit - \"&ProjectState),IFERROR(INDEX(INDIRECT(\"EquipmentTable_\"&IF(SiteSpecificOverride=\"Yes\",\"PostPurchase_\",\"Retrofit_\")&ProjectState&\"[#All]\"),MATCH(LEFT(ProjectInfoTable[[#This Row],[Proposed Equipment]],FIND(\"[\",ProjectInfoTable[[#This Row],[Proposed Equipment]],1)-2),INDIRECT(\"EquipmentTable_\"&IF(SiteSpecificOverride=\"Yes\",\"PostPurchase_\",\"Retrofit_\")&ProjectState&\"[equipmentProposed]\"),0)+1,MATCH(\"measureRetrofit_\"&IF(AND(SBDEligible=\"Yes\",ISNUMBER(FIND(\"SBE\",ProjectInfoTable[[#This Row],[Proposed Equipment]]))),\"SBE\",LEFT(ProjectInfoTable[[#This Row],[Existing Equipment]],FIND(\":\",ProjectInfoTable[[#This Row],[Existing Equipment]],1)-1)&\"_\"&IF(IFERROR(INDEX(ControlsLookup[Rank],MATCH(RIGHT(ProjectInfoTable[[#This Row],[Proposed Equipment]],LEN(ProjectInfoTable[[#This Row],[Proposed Equipment]])-FIND(\"]\",ProjectInfoTable[[#This Row],[Proposed Equipment]],1)-3),ControlsLookup[Controls],0)),0)>IFERROR(INDEX(ControlsLookup[Rank],MATCH(RIGHT(ProjectInfoTable[[#This Row],[Existing Equipment]],LEN(ProjectInfoTable[[#This Row],[Existing Equipment]])-FIND(\"]\",ProjectInfoTable[[#This Row],[Existing Equipment]],1)-3),ControlsLookup[Controls],0)),0),INDEX(ControlsLookup[Controls Type],MATCH(LEFT(ProjectInfoTable[[#This Row],[Existing Equipment]],FIND(\":\",ProjectInfoTable[[#This Row],[Existing Equipment]],1)-1)&\"_\"&RIGHT(ProjectInfoTable[[#This Row],[Proposed Equipment]],LEN(ProjectInfoTable[[#This Row],[Proposed Equipment]])-FIND(\"]\",ProjectInfoTable[[#This Row],[Proposed Equipment]],1)-3),ControlsLookup[Controls Concatenate],0)),\"None\")),INDIRECT(\"EquipmentTable_\"&IF(SiteSpecificOverride=\"Yes\",\"PostPurchase_\",\"Retrofit_\")&ProjectState&\"[#Headers]\"),0)),\"Non-eligible fixture - Retrofit - \"&ProjectState)))),IFERROR(INDEX(INDIRECT(\"EquipmentTable_\"&\"NCMR_\"&ProjectState),MATCH(RIGHT(LEFT(ProjectInfoTable[[#This Row],[Proposed Equipment]],FIND(\" (\",ProjectInfoTable[[#This Row],[Proposed Equipment]],1)-1),LEN(LEFT(ProjectInfoTable[[#This Row],[Proposed Equipment]],FIND(\" (\",ProjectInfoTable[[#This Row],[Proposed Equipment]],1)-2))-FIND(\":\",ProjectInfoTable[[#This Row],[Proposed Equipment]],1)),INDIRECT(\"EquipmentTable_\"&\"NCMR_\"&ProjectState&\"[equipmentProposed]\"),0),MATCH(\"measureNCMR_\"&LEFT(ProjectInfoTable[[#This Row],[Proposed Equipment]],FIND(\":\",ProjectInfoTable[[#This Row],[Proposed Equipment]],1)-1)&\"_\"&IF(LEN(ProjectInfoTable[[#This Row],[Proposed Equipment]])>FIND(\"]\",ProjectInfoTable[[#This Row],[Proposed Equipment]]),INDEX(ControlsLookup[Controls Type],MATCH(LEFT(ProjectInfoTable[[#This Row],[Proposed Equipment]],FIND(\":\",ProjectInfoTable[[#This Row],[Proposed Equipment]],1)-1)&\"_\"&RIGHT(ProjectInfoTable[[#This Row],[Proposed Equipment]],LEN(ProjectInfoTable[[#This Row],[Proposed Equipment]])-FIND(\"]\",ProjectInfoTable[[#This Row],[Proposed Equipment]],1)-3),ControlsLookup[Controls Concatenate],0)),\"None\"),INDIRECT(\"EquipmentTable_\"&\"NCMR_\"&ProjectState&\"[#Headers]\"),0)),\"Non-eligible fixture - NCMR - \"&ProjectState)),\"[NAMESUB]\",ProjectInfoTable[[#This Row],[Measure Name Sub]]),\"Non-eligible fixture - Retrofit - \"&ProjectState))","v":""},{"$f":"IF(ISNUMBER(SEARCH(\"Case\",ProjectInfoTable[[#This Row],[Fixture Measure]])),CONCATENATE(ProjectInfoTable[[#This Row],[Fixture Measure]],ProjectInfoTable[[#This Row],[No. of TRL Units]],ProjectInfoTable[[#This Row],[Quantity]]),\"\")","v":""},{"$f":"IF(ProjectInfoTable[[#This Row],[Proposed Equipment]]=\"\",\"\",\nIF(AND(ProjectState = \"UT\",ISNUMBER(FIND(\" TLED \",ProjectInfoTable[[#This Row],[Proposed Equipment]]))),\nIF(VALUE(ProjectInfoTable[[#This Row],[Lamp W (Proposed)]])<20,\"< 20 W\",\nIF(AND(VALUE(ProjectInfoTable[[#This Row],[Lamp W (Proposed)]])<=39,VALUE(ProjectInfoTable[[#This Row],[Lamp W (Proposed)]])>=20),\">= 20 W and <= 39 W\",)),\n\nIF(AND(ProjectType=\"Retrofit\",OR(ISNUMBER(FIND(\"Retrofit Kit\",ProjectInfoTable[[#This Row],[Proposed Equipment]])),ISNUMBER(FIND(\"Fixture\",ProjectInfoTable[[#This Row],[Proposed Equipment]]))),OR(ISNUMBER(FIND(\"Exterior\",ProjectInfoTable[[#This Row],[Existing Equipment]])),ISNUMBER(FIND(\"Street\",ProjectInfoTable[[#This Row],[Existing Equipment]])))),\nIF(ProjectInfoTable[[#This Row],[Fixture W (Proposed)]]<50,\"< 50 W\",\nIF(AND(ProjectInfoTable[[#This Row],[Fixture W (Proposed)]]<90,ProjectInfoTable[[#This Row],[Fixture W (Proposed)]]>=50),\">= 50 W and < 90 W\",\nIF(AND(ProjectInfoTable[[#This Row],[Fixture W (Proposed)]]<135,ProjectInfoTable[[#This Row],[Fixture W (Proposed)]]>=90),\">= 90 W and < 135 W\",\nIF(AND(ProjectInfoTable[[#This Row],[Fixture W (Proposed)]]<220,ProjectInfoTable[[#This Row],[Fixture W (Proposed)]]>=135),\">= 135 W and < 220 W\",\nIF(ProjectInfoTable[[#This Row],[Fixture W (Proposed)]]>=220,\">= 220 W\"))))),\"\")))","v":""},{"$f":"IFERROR(INDEX(INDIRECT(\"MeasureTable_\" & ProjectState & \"[Measure Reference Number]\"),MATCH(ProjectInfoTable[[#This Row],[Fixture Measure]],INDIRECT(\"MeasureTable_\" &ProjectState&\"[Measure Name]\"),0)),\"\")","v":""},{"$f":"IFERROR(\n    _xlfn.LET(\n        _xlpm.filteredVersions,\n            _xlfn._xlws.FILTER(\n                INDIRECT(\"MeasureTable_\" & ProjectState & \"[Version Number]\"),\n                (INDIRECT(\"MeasureTable_\" & ProjectState & \"[Measure Reference Number]\") = ProjectInfoTable[[#This Row],[Fixture Measure Reference Number]]) *\n                (INDIRECT(\"MeasureTable_\" & ProjectState & \"[Eligible Measure]\") = TRUE)\n            ),\n        INDEX(_xlpm.filteredVersions, 1)\n    ),\n    \"\"\n)","v":""},{"$f":"IFERROR(\n  _xlfn.LET(\n    _xlpm.refRange, INDIRECT(\"MeasureTable_\" & ProjectState & \"[Measure Reference Number]\"),\n    _xlpm.eligibleRange, INDIRECT(\"MeasureTable_\" & ProjectState & \"[Eligible Measure]\"),\n    _xlpm.countTrue, SUMPRODUCT(--(_xlpm.refRange = ProjectInfoTable[[#This Row],[Fixture Measure Reference Number]]), --(_xlpm.eligibleRange = TRUE)),\n    _xlpm.countNonBlank, SUMPRODUCT(--(_xlpm.refRange = ProjectInfoTable[[#This Row],[Fixture Measure Reference Number]]), --(_xlpm.eligibleRange <> \"\")),\n    IF(_xlpm.countNonBlank = 0, \"\", IF(_xlpm.countTrue >= 1, TRUE, FALSE))\n  ),\n  \"\"\n)","v":""},{"$f":"IFERROR(VALUE(INDEX(INDIRECT(\"MeasureTable_\" & ProjectState & \"[CustomerIncentiveDollarperunit]\"),MATCH(ProjectInfoTable[[#This Row],[Fixture Measure]]&\" | TRUE\",INDIRECT(\"MeasureTable_\" &ProjectState&\"[MeasureEligibleConcatenate]\"),0))),\"\")","v":""},{"$f":"IFERROR(INDEX(INDIRECT(\"MeasureTable_\"&ProjectState&\"[SiteSpecificCalculation]\"),MATCH(ProjectInfoTable[[#This Row],[Fixture Measure]]&\" | TRUE\",INDIRECT(\"MeasureTable_\" &ProjectState&\"[MeasureEligibleConcatenate]\"),0)),\"\")","v":""},{"$f":"IFERROR(INDEX(INDIRECT(\"MeasureTable_\"&ProjectState&\"[GrossIncrementalAnnualElectricSavings]\"),MATCH(ProjectInfoTable[[#This Row],[Fixture Measure]]&\" | TRUE\",INDIRECT(\"MeasureTable_\" &ProjectState&\"[MeasureEligibleConcatenate]\"),0)),\"\")","v":""},{"$f":"IFERROR(INDEX(INDIRECT(\"MeasureTable_\"&ProjectState&\"[GrossAverageMonthlyDemandReduction]\"),MATCH(ProjectInfoTable[[#This Row],[Fixture Measure]]&\" | TRUE\",INDIRECT(\"MeasureTable_\" &ProjectState&\"[MeasureEligibleConcatenate]\"),0)),\"\")","v":""},{"$f":"IF(ProjectInfoTable[[#This Row],[Fixture Measure]]=\"\",\"\",IF(NOT(ISNUMBER(FIND(\"Site-Specific - Downstream\",ProjectInfoTable[[#This Row],[Fixture Measure]]))),\"\",\nIF(ISNUMBER(MATCH(SUBSTITUTE(ProjectInfoTable[[#This Row],[Fixture Measure]],\"Site-Specific - Downstream - v2\",\"Mid Market\"),INDIRECT(\"MeasureTable_\"&ProjectState&\"[Measure Name]\"),0)),\nSUBSTITUTE(ProjectInfoTable[[#This Row],[Fixture Measure]],\"Site-Specific - Downstream - v2\",\"Mid Market\"),\nSUBSTITUTE(ProjectInfoTable[[#This Row],[Fixture Measure]],\"Site-Specific - Downstream\",\"Mid Market\"))\n))","v":""},{"$f":"IF(ProjectInfoTable[[#This Row],[Midstream Measure Name]]=\"\",\"\",IFERROR(INDEX(INDIRECT(\"MeasureTable_\"&ProjectState&\"[GrossIncrementalAnnualElectricSavings ]\"),MATCH(ProjectInfoTable[[#This Row],[Midstream Measure Name]]&\" | TRUE\",INDIRECT(\"MeasureTable_\" &ProjectState&\"[MeasureEligibleConcatenate]\"),0)),\"\"))","v":""},{"$f":"IF(ProjectInfoTable[[#This Row],[Midstream Measure Name]]=\"\",\"\",IFERROR(INDEX(INDIRECT(\"MeasureTable_\"&ProjectState&\"[GrossAverage onthly emand eduction]\"),MATCH(ProjectInfoTable[[#This Row],[Midstream Measure Name]]&\" | TRUE\",INDIRECT(\"MeasureTable_\" &ProjectState&\"[MeasureEligibleConcatenate]\"),0)),\"\"))","v":""},{"$f":"IFERROR(INDEX(INDIRECT(\"MeasureTable_\"&ProjectState&\"[IncrementalMeasureCost]\"),MATCH(ProjectInfoTable[[#This Row],[Fixture Measure]]&\" | TRUE\",INDIRECT(\"MeasureTable_\" &ProjectState&\"[MeasureEligibleConcatenate]\"),0)),\"\")","v":""},{"$f":"IF(ProjectInfoTable[[#This Row],[Fixture Measure]]=\"\",\"\",IF(AND(ProjectState=\"UT\",ProjectInfoTable[[#This Row],[Measure Selection]]=\"\"),0,\nIF(OR(ISNUMBER(FIND(\"SBDI\",ProjectInfoTable[[#This Row],[Fixture Measure]])),ISNUMBER(FIND(\"Small Bu\",ProjectInfoTable[[#This Row],[Fixture Measure]]))),ProjectInfoTable[[#This Row],[Quantity (Proposed)]]*ProjectInfoTable[[#This Row],[Lamps (Proposed)]],\nIF(OR(ProjectInfoTable[[#This Row],[TRL Unit]]=\"Measure\",ProjectInfoTable[[#This Row],[TRL Unit]]=\"Linear ft.\"),IF(OR(ISNUMBER(FIND(\"Lamp\",ProjectInfoTable[[#This Row],[Fixture Measure]],1)),ISNUMBER(FIND(\"Relamp\",ProjectInfoTable[[#This Row],[Fixture Measure]],1)),ISNUMBER(FIND(\"Relamp\",ProjectInfoTable[[#This Row],[Proposed Equipment]],1))),ProjectInfoTable[[#This Row],[Quantity (Proposed)]]*ProjectInfoTable[[#This Row],[Lamps (Proposed)]],ProjectInfoTable[[#This Row],[Quantity (Proposed)]]),1))))","v":""},{"$f":"IF(ProjectInfoTable[[#This Row],[Fixture Measure]]=\"\",\"\",IF(AND(ProjectState=\"UT\",ProjectInfoTable[[#This Row],[Measure Selection]]=\"\"),0,\nIF(OR(ISNUMBER(FIND(\"SBDI\",ProjectInfoTable[[#This Row],[Fixture Measure]])),ISNUMBER(FIND(\"Small Bu\",ProjectInfoTable[[#This Row],[Fixture Measure]]))),1,\nIF(ISNUMBER(FIND(\"Controls Only\",ProjectInfoTable[[#This Row],[Proposed Equipment]],1)),IF(OR(ProjectType <> \"Retrofit\",ProjectInfoTable[[#This Row],[Space W (Proposed)]]>0),ProjectInfoTable[[#This Row],[Space W (Proposed)]],ProjectInfoTable[[#This Row],[Space W (Existing, Stipulated)]]),\nIF(TRIM(UPPER(ProjectInfoTable[[#This Row],[TRL Unit]]))=\"LINEAR FT.\",IF(OR(ISNUMBER(FIND(\"Marquee\",ProjectInfoTable[[#This Row],[Proposed Equipment]],1)),ISNUMBER(FIND(\"Cabinet\",ProjectInfoTable[[#This Row],[Proposed Equipment]],1))),VALUE(RIGHT(LEFT(ProjectInfoTable[[#This Row],[Existing Equipment]],FIND(\"LF \",ProjectInfoTable[[#This Row],[Existing Equipment]],1)-1),LEN(LEFT(ProjectInfoTable[[#This Row],[Existing Equipment]],FIND(\"LF \",ProjectInfoTable[[#This Row],[Existing Equipment]],1)-1))-FIND(\"[\",ProjectInfoTable[[#This Row],[Existing Equipment]],1))),VALUE(RIGHT(LEFT(ProjectInfoTable[[#This Row],[Proposed Equipment]],FIND(\"LF \",ProjectInfoTable[[#This Row],[Proposed Equipment]],1)-1),LEN(LEFT(ProjectInfoTable[[#This Row],[Proposed Equipment]],FIND(\"LF \",ProjectInfoTable[[#This Row],[Proposed Equipment]],1)-1))-FIND(\"[\",ProjectInfoTable[[#This Row],[Proposed Equipment]],1)))),\nIF(TRIM(UPPER(ProjectInfoTable[[#This Row],[TRL Unit]]))=\"KWH\",IF(ProjectInfoTable[[#This Row],[Fixture Measure kWh/yr Savings (Stipulated)]]=0,0,ROUND(ProjectInfoTable[[#This Row],[Fixture Measure kWh/yr Savings (Stipulated)]],2)),\nIF(TRIM(UPPER(ProjectInfoTable[[#This Row],[TRL Unit]]))=\"WATT REDUCED\",IF(ProjectInfoTable[[#This Row],[Fixture Measure kWh/yr Savings (Stipulated)]]=0,0,ROUND(ProjectInfoTable[[#This Row],[Space W (Existing, Stipulated)]]-ProjectInfoTable[[#This Row],[Space W (Proposed)]],2)),\nIF(TRIM(UPPER(ProjectInfoTable[[#This Row],[TRL Unit]]))=\"FIXTURE WATTAGE\",ProjectInfoTable[[#This Row],[Space W (Proposed)]],1))))))))","v":""},{"$f":"IFERROR(IF(OR(ISNUMBER(FIND(\"SBDI\",ProjectInfoTable[[#This Row],[Fixture Measure]])),ISNUMBER(FIND(\"Small Bu\",ProjectInfoTable[[#This Row],[Fixture Measure]]))),0,INDEX(INDIRECT(\"MeasureTable_\"&ProjectState&\"[Unit]\"),MATCH(ProjectInfoTable[[#This Row],[Fixture Measure]]&\" | TRUE\",INDIRECT(\"MeasureTable_\" &ProjectState&\"[MeasureEligibleConcatenate]\"),0))),\"\")","v":""},{"$f":"IF(ProjectInfoTable[[#This Row],[Fixture Measure]]=\"\",\"\",IF(OR(ISNUMBER(FIND(\"Lamp(s)\",ProjectInfoTable[[#This Row],[Fixture Measure]],1)),ISNUMBER(FIND(\"Relamp\",ProjectInfoTable[[#This Row],[Proposed Equipment]],1))),\"Lamp(s)\",\"Fixture(s)\"))","v":""},{"$f":"IFERROR(INDEX(INDIRECT(\"MeasureTable_\"&ProjectState&\"[ProjectCapPercent]\"),MATCH(ProjectInfoTable[[#This Row],[Fixture Measure]]&\" | TRUE\",INDIRECT(\"MeasureTable_\" &ProjectState&\"[MeasureEligibleConcatenate]\"),0)),\"\")","v":""},{"$f":"IF(OR(ProjectInfoTable[[#This Row],[Control Measure]]=\"\",ProjectInfoTable[[#This Row],[OpSch]]=\"\",ProjectInfoTable[[#This Row],[Eligible Control Measure]]<>TRUE),\"\",IF(AND(OR(ProjectType=\"New Construction\",ProjectType=\"Major Renovation\"),LPDCodeToProposed<0.1,ISNUMBER(FIND(\"Interior\",ProjectInfoTable[[#This Row],[Proposed Equipment]],1))),0,IFERROR(ProjectInfoTable[[#This Row],[Control Incentives Per Unit]]*ProjectInfoTable[[#This Row],[Control Quantity]]*ProjectInfoTable[[#This Row],[Control No. of TRL Units]],\"TRL Error\")))","v":""},{"$f":"IF(OR(ProjectInfoTable[[#This Row],[Control Measure]]=\"\",ProjectInfoTable[[#This Row],[OpSch]]=\"\",ProjectInfoTable[[#This Row],[Eligible Control Measure]]<>TRUE),\"\",IF(AND(ProjectType=\"Retrofit\",ProjectState=\"UT\",ISNUMBER(FIND(\"Post Purchase\",ProjectInfoTable[[#This Row],[Control Measure]],1))),\n\nIFERROR(MAX(MIN(ProjectInfoTable[[#This Row],[Control Incentives (pre-capping)]],ProjectInfoTable[[#This Row],[Control Cost (Allocated)]]*0.7),0),0),\n\nIF(ProjectType=\"Retrofit\",IF(ISNUMBER(FIND(\"Post Purchase\",ProjectInfoTable[[#This Row],[Control Measure]],1)),ProjectInfoTable[[#This Row],[Control Incentives (pre-capping)]],IFERROR($BI$3/$BH$3*ProjectInfoTable[[#This Row],[Control Incentives (pre-capping)]],\"\")),\n\nIF(ISNUMBER(FIND(\"Interior\",ProjectInfoTable[[#This Row],[Proposed Equipment]],1)),IF(LPDCodeToProposed>0.1,ProjectInfoTable[[#This Row],[Control Incentives (pre-capping)]],0),ProjectInfoTable[[#This Row],[Control Incentives (pre-capping)]]))))","v":""},{"$f":"IF(OR(ProjectInfoTable[[#This Row],[Control Incentives Per Unit]]=\"\",ProjectInfoTable[[#This Row],[Control TRL Unit]]=\"\"),\"\",IF(ProjectInfoTable[[#This Row],[Eligible Control Measure]]<>TRUE,\"Invalid Effective Date\",TEXT(ProjectInfoTable[[#This Row],[Control Incentives Per Unit]],\"$#,##0.00\")&\" / \"&ProjectInfoTable[[#This Row],[Control TRL Unit]]))","v":""},{"$f":"IF(ISNUMBER(FIND(\"SBE\",ProjectInfoTable[[#This Row],[Proposed Equipment]])),\"\",\n\nIF(LEN(ProjectInfoTable[[#This Row],[Proposed Equipment]])>\n\nIFERROR(FIND(\"]\",ProjectInfoTable[[#This Row],[Proposed Equipment]],1),0),\nSUBSTITUTE(\nIF(OR(ProjectInfoTable[[#This Row],[Control Method]]=\"separate\",ISNUMBER(FIND(\"Midstream\",ProjectInfoTable[[#This Row],[Fixture Measure]],1)),ISNUMBER(FIND(\"Midstream\",ProjectInfoTable[[#This Row],[Equipment Category]],1)),ISNUMBER(FIND(\"Prescriptive\",ProjectInfoTable[[#This Row],[Equipment Category]],1)),ISNUMBER(FIND(\"LED\",ProjectInfoTable[[#This Row],[Fixture Measure]],1)),ISNUMBER(FIND(\"LED Case\",ProjectInfoTable[[#This Row],[Fixture Measure]],1)),ISNUMBER(FIND(\"LED Decorative - Retrofit - WA\",ProjectInfoTable[[#This Row],[Fixture Measure]],1)),ISNUMBER(FIND(\"Lamp\",ProjectInfoTable[[#This Row],[Fixture Measure]],1)),ISNUMBER(FIND(\"Relamp\",ProjectInfoTable[[#This Row],[Fixture Measure]],1)),ISNUMBER(FIND(\"Wall Pack\",ProjectInfoTable[[#This Row],[Fixture Measure]],1)),ISNUMBER(FIND(\"Controls Only\",ProjectInfoTable[[#This Row],[Proposed Equipment]],1)),ISNUMBER(FIND(\"Re-Commissioning\",ProjectInfoTable[[#This Row],[Proposed Equipment]],1)),\n\nAND(OR(ISNUMBER(FIND(\"Exterior:\",ProjectInfoTable[[#This Row],[Proposed Equipment]],1)),ISNUMBER(FIND(\"Street:\",ProjectInfoTable[[#This Row],[Proposed Equipment]],1))),OR(ProjectState=\"ID\",ProjectState=\"UT\",ProjectState=\"WY\"))),\n\nIF(IFERROR(INDEX(ControlsLookup[],MATCH(IF(ProjectType=\"Retrofit\",LEFT(ProjectInfoTable[[#This Row],[Existing Equipment]],FIND(\":\",ProjectInfoTable[[#This Row],[Existing Equipment]],1)-1),LEFT(ProjectInfoTable[[#This Row],[Proposed Equipment]],FIND(\":\",ProjectInfoTable[[#This Row],[Proposed Equipment]],1)-1))&\"_\"&RIGHT(ProjectInfoTable[[#This Row],[Proposed Equipment]],LEN(ProjectInfoTable[[#This Row],[Proposed Equipment]])-FIND(\"]\",ProjectInfoTable[[#This Row],[Proposed Equipment]],1)-3),ControlsLookup[Controls Concatenate],0),MATCH(\n\nIF(ProjectType=\"Retrofit\",\"ControlMeasure_\",\"NCMRControlMeasure_\")&ProjectState,ControlsLookup[#Headers],0)),\"\")=0,\"\",\n\nIFERROR(INDEX(ControlsLookup[],MATCH(IF(ProjectType=\"Retrofit\",LEFT(ProjectInfoTable[[#This Row],[Existing Equipment]],FIND(\":\",ProjectInfoTable[[#This Row],[Existing Equipment]],1)-1),LEFT(ProjectInfoTable[[#This Row],[Proposed Equipment]],FIND(\":\",ProjectInfoTable[[#This Row],[Proposed Equipment]],1)-1))&\"_\"&RIGHT(ProjectInfoTable[[#This Row],[Proposed Equipment]],LEN(ProjectInfoTable[[#This Row],[Proposed Equipment]])-FIND(\"]\",ProjectInfoTable[[#This Row],[Proposed Equipment]],1)-3),ControlsLookup[Controls Concatenate],0),MATCH(\n\nIF(ProjectType=\"Retrofit\",\"ControlMeasure_\",\"NCMRControlMeasure_\")&ProjectState&IF(ProjectState=\"UT\",SegmentTag,\"\"),ControlsLookup[#Headers],0)),\"\")),\"\"),\"[NAMESUB]\",ProjectInfoTable[[#This Row],[Control Measure Name Sub]]),\"\"))","v":""},{"$f":"IF(ProjectInfoTable[[#This Row],[Proposed Equipment]]=\"\",\"\",IF(AND(ProjectState=\"UT\",ProjectType=\"Retrofit\",ISNUMBER(FIND(\"Re-Commissioning\",ProjectInfoTable[[#This Row],[Proposed Equipment]]))),\nIF(ProjectRecommissioning=\"only recommissioning\",\"Commissioning Only\",\"Commissioning w/ Lighting Upgrade\"),\"\"))","v":""},{"$f":"IFERROR(INDEX(INDIRECT(\"MeasureTable_\" & ProjectState & \"[Measure Reference Number]\"),MATCH(ProjectInfoTable[[#This Row],[Control Measure]],INDIRECT(\"MeasureTable_\" &ProjectState&\"[Measure Name]\"),0)),\"\")","v":""},{"$f":"IFERROR(\n    _xlfn.LET(\n        _xlpm.filteredVersions,\n            _xlfn._xlws.FILTER(\n                INDIRECT(\"MeasureTable_\" & ProjectState & \"[Version Number]\"),\n                (INDIRECT(\"MeasureTable_\" & ProjectState & \"[Measure Reference Number]\") = ProjectInfoTable[[#This Row],[Control Measure Reference Number]]) *\n                (INDIRECT(\"MeasureTable_\" & ProjectState & \"[Eligible Measure]\") = TRUE)\n            ),\n        INDEX(_xlpm.filteredVersions, 1)\n    ),\n    \"\"\n)","v":""},{"$f":"IFERROR(\n  _xlfn.LET(\n    _xlpm.refRange, INDIRECT(\"MeasureTable_\" & ProjectState & \"[Measure Reference Number]\"),\n    _xlpm.eligibleRange, INDIRECT(\"MeasureTable_\" & ProjectState & \"[Eligible Measure]\"),\n    _xlpm.countTrue, SUMPRODUCT(--(_xlpm.refRange = ProjectInfoTable[[#This Row],[Control Measure Reference Number]]), --(_xlpm.eligibleRange = TRUE)),\n    _xlpm.countNonBlank, SUMPRODUCT(--(_xlpm.refRange = ProjectInfoTable[[#This Row],[Control Measure Reference Number]]), --(_xlpm.eligibleRange <> \"\")),\n    IF(_xlpm.countNonBlank = 0, \"\", IF(_xlpm.countTrue >= 1, TRUE, FALSE))\n  ),\n  \"\"\n)","v":""},{"$f":"IF(ProjectInfoTable[[#This Row],[Proposed Equipment]]=\"\",\"\",IFERROR(INDEX(INDIRECT(\"EquipmentTable_\"&IF(ProjectType=\"Retrofit\",\"Retrofit_\",\"NCMR_\")&ProjectState&\"[controlMethod]\"),MATCH(LEFT(ProjectInfoTable[[#This Row],[Proposed Equipment]],FIND(\"[\",ProjectInfoTable[[#This Row],[Proposed Equipment]],1)-2),INDIRECT(\"EquipmentTable_\"&IF(ProjectType=\"Retrofit\",\"Retrofit_\",\"NCMR_\")&ProjectState&\"[equipmentProposed]\"),0)),\"\"))","v":""},{"$f":"IFERROR(VALUE(INDEX(INDIRECT(\"MeasureTable_\" & ProjectState & \"[CustomerIncentiveDollarperunit]\"),MATCH(ProjectInfoTable[[#This Row],[Control Measure]]&\" | TRUE\",INDIRECT(\"MeasureTable_\"&ProjectState&\"[MeasureEligibleConcatenate]\"),0))),\"\")","v":""},{"$f":"IFERROR(INDEX(INDIRECT(\"MeasureTable_\"&ProjectState&\"[SiteSpecificCalculation]\"),MATCH(ProjectInfoTable[[#This Row],[Control Measure]]&\" | TRUE\",INDIRECT(\"MeasureTable_\"&ProjectState&\"[MeasureEligibleConcatenate]\"),0)),\"\")","v":""},{"$f":"IFERROR(INDEX(INDIRECT(\"MeasureTable_\"&ProjectState&\"[GrossIncrementalAnnualElectricSavings ]\"),MATCH(ProjectInfoTable[[#This Row],[Control Measure]]&\" | TRUE\",INDIRECT(\"MeasureTable_\"&ProjectState&\"[MeasureEligibleConcatenate]\"),0)),\"\")","v":""},{"$f":"IFERROR(INDEX(INDIRECT(\"MeasureTable_\"&ProjectState&\"[GrossAverage onthly emand eduction]\"),MATCH(ProjectInfoTable[[#This Row],[Control Measure]]&\" | TRUE\",INDIRECT(\"MeasureTable_\"&ProjectState&\"[MeasureEligibleConcatenate]\"),0)),\"\")","v":""},{"$f":"IFERROR(INDEX(INDIRECT(\"MeasureTable_\"&ProjectState&\"[IncrementalMeasureCost]\"),MATCH(ProjectInfoTable[[#This Row],[Control Measure]]&\" | TRUE\",INDIRECT(\"MeasureTable_\"&ProjectState&\"[MeasureEligibleConcatenate]\"),0)),\"\")","v":""},{"$f":"IF(ProjectInfoTable[[#This Row],[Control Measure]]=\"\",\"\",IF(OR(ProjectInfoTable[[#This Row],[Control TRL Unit]]=\"Measure\",ProjectInfoTable[[#This Row],[Control TRL Unit]]=\"Linear ft.\"),IF(OR(ISNUMBER(FIND(\"Midstream\",ProjectInfoTable[[#This Row],[Control Measure]],1)),ISNUMBER(FIND(\"Lamp\",ProjectInfoTable[[#This Row],[Control Measure]],1))),ProjectInfoTable[[#This Row],[Quantity (Proposed)]]*ProjectInfoTable[[#This Row],[Lamps (Proposed)]],ProjectInfoTable[[#This Row],[Quantity (Proposed)]]),1))","v":""},{"$f":"IF(ProjectInfoTable[[#This Row],[Control Measure]]=\"\",\"\",IF(ISNUMBER(FIND(\"LF \",ProjectInfoTable[[#This Row],[Proposed Equipment]],1)),VALUE(RIGHT(LEFT(ProjectInfoTable[[#This Row],[Proposed Equipment]],FIND(\"LF \",ProjectInfoTable[[#This Row],[Proposed Equipment]],1)-1),LEN(LEFT(ProjectInfoTable[[#This Row],[Proposed Equipment]],FIND(\"LF \",ProjectInfoTable[[#This Row],[Proposed Equipment]],1)-1))-FIND(\"[\",ProjectInfoTable[[#This Row],[Proposed Equipment]],1))),IF(TRIM(UPPER(ProjectInfoTable[[#This Row],[Control TRL Unit]]))=\"WATT CONTROLLED\",IF(ISNUMBER(FIND(\"Controls Only\",ProjectInfoTable[[#This Row],[Proposed Equipment]],1)),IF(OR(ProjectType <> \"Retrofit\",ProjectInfoTable[[#This Row],[Space W (Proposed)]]>0),ProjectInfoTable[[#This Row],[Space W (Proposed)]],ProjectInfoTable[[#This Row],[Space W (Existing, Stipulated)]]),ProjectInfoTable[[#This Row],[Space W (Proposed)]]),IF(TRIM(UPPER(ProjectInfoTable[[#This Row],[Control TRL Unit]]))=\"KWH\",IF(ProjectInfoTable[[#This Row],[Control Measure kWh/yr Savings (Stipulated)]]=0,0,ROUND(ProjectInfoTable[[#This Row],[Control Measure kWh/yr Savings (Stipulated)]],2)),1))))","v":""},{"$f":"IFERROR(IF(LEN(ProjectInfoTable[[#This Row],[Proposed Equipment]])-(FIND(\"]\",ProjectInfoTable[[#This Row],[Proposed Equipment]],1))>0,\"Control(s)\",\"\"),\"\")","v":""},{"$f":"IFERROR(INDEX(INDIRECT(\"MeasureTable_\"&ProjectState&\"[Unit]\"),MATCH(ProjectInfoTable[[#This Row],[Control Measure]]&\" | TRUE\",INDIRECT(\"MeasureTable_\"&ProjectState&\"[MeasureEligibleConcatenate]\"),0)),\"\")","v":""},{"$f":"IFERROR(INDEX(INDIRECT(\"MeasureTable_\"&ProjectState&\"[ProjectCapPercent]\"),MATCH(ProjectInfoTable[[#This Row],[Control Measure]]&\" | TRUE\",INDIRECT(\"MeasureTable_\"&ProjectState&\"[MeasureEligibleConcatenate]\"),0)),\"\")","v":""},{"$f":"IF(OR(ProjectInfoTable[[#This Row],[Fixture Measure]]<>\"\",ProjectInfoTable[[#This Row],[Control Measure]]<>\"\"),1,\"\")","v":""},{"$f":"IF(ProjectInfoTable[[#This Row],[TRL Unit]]=\"\",\"\",IF(OR(ISNUMBER(SEARCH(\"measure\",ProjectInfoTable[[#This Row],[TRL Unit]])),ISNUMBER(SEARCH(\"linear ft\",ProjectInfoTable[[#This Row],[TRL Unit]])),ProjectInfoTable[[#This Row],[TRL Unit]]=0),990,991))","v":""},{"$f":"IFERROR(SUBSTITUTE(LEFT(ProjectInfoTable[[#This Row],[Proposed Equipment]],FIND(\"]\",ProjectInfoTable[[#This Row],[Proposed Equipment]],1)),\"Controls Only []\",\"\",1),\"\")","v":""},{"$f":"IF(ProjectInfoTable[[#This Row],[FixturesOnly]]=\"\",\"\",IF(ISNUMBER(FIND(\"L \",ProjectInfoTable[[#This Row],[Proposed Equipment]],1)),ProjectInfoTable[[#This Row],[Quantity (Proposed)]]*ProjectInfoTable[[#This Row],[Lamps (Proposed)]],ProjectInfoTable[[#This Row],[Quantity (Proposed)]]))","v":""},{"$f":"IFERROR(INDEX(ControlsLookup[Full Description],MATCH(RIGHT(ProjectInfoTable[[#This Row],[Proposed Equipment]],LEN(ProjectInfoTable[[#This Row],[Proposed Equipment]])-FIND(\"]\",ProjectInfoTable[[#This Row],[Proposed Equipment]],1)-3),ControlsLookup[Controls],0)),\"\")","v":""},{"$f":"IF(ProjectInfoTable[[#This Row],[ControlsOnly]]=\"\",\"\",IF(OR(ISNUMBER(FIND(\"Net\",ProjectInfoTable[[#This Row],[Proposed Equipment]],1)),ISNUMBER(FIND(\"Int\",ProjectInfoTable[[#This Row],[Proposed Equipment]],1))),ProjectInfoTable[[#This Row],[Quantity (Proposed)]],1))","v":""}]
[null,{"$f":"ROW(ProjectInfoTable[[#This Row],[OpSch]])-ROW(ProjectInfoTable[[#Headers],[OpSch]])","v":20},{"$f":"IFERROR(INDEX(RetrofitBaselineEquipment_Table[categoryBaseline],MATCH(RIGHT(LEFT(ProjectInfoTable[[#This Row],[Existing Equipment]],FIND(\" (\",ProjectInfoTable[[#This Row],[Existing Equipment]],1)-1),LEN(LEFT(ProjectInfoTable[[#This Row],[Existing Equipment]],FIND(\" (\",ProjectInfoTable[[#This Row],[Existing Equipment]],1)-1))-FIND(\": \",ProjectInfoTable[[#This Row],[Existing Equipment]],1)-1),RetrofitBaselineEquipment_Table[equipmentBaseline],0)),\"\")","v":""},null,null,null,null,{"$f":"IF(ProjectInfoTable[[#This Row],[Existing Equipment]]=\"\",\"\",IF(ISNUMBER(FIND(\"LF\",ProjectInfoTable[[#This Row],[Existing Equipment]],1)),1,IFERROR(VALUE(SUBSTITUTE(RIGHT(LEFT(ProjectInfoTable[[#This Row],[Existing Equipment]],FIND(\"L\",ProjectInfoTable[[#This Row],[Existing Equipment]],FIND(\"[\",ProjectInfoTable[[#This Row],[Existing Equipment]],1))-1),3),\"[\",\"\")),1)))","v":""},{"$f":"IF(ProjectInfoTable[[#This Row],[Existing Equipment]]=\"\",\"\",VALUE(SUBSTITUTE(RIGHT(LEFT(RIGHT(ProjectInfoTable[[#This Row],[Existing Equipment]],LEN(ProjectInfoTable[[#This Row],[Existing Equipment]])-IFERROR(FIND(\"[\",ProjectInfoTable[[#This Row],[Existing Equipment]],1),0)),IFERROR(FIND(\"W\",RIGHT(ProjectInfoTable[[#This Row],[Existing Equipment]],LEN(ProjectInfoTable[[#This Row],[Existing Equipment]])-IFERROR(FIND(\"[\",ProjectInfoTable[[#This Row],[Existing Equipment]],1),0)),1),0)),LEN(LEFT(RIGHT(ProjectInfoTable[[#This Row],[Existing Equipment]],LEN(ProjectInfoTable[[#This Row],[Existing Equipment]])-IFERROR(FIND(\"[\",ProjectInfoTable[[#This Row],[Existing Equipment]],1),0)),IFERROR(FIND(\"W\",RIGHT(ProjectInfoTable[[#This Row],[Existing Equipment]],LEN(ProjectInfoTable[[#This Row],[Existing Equipment]])-IFERROR(FIND(\"[\",ProjectInfoTable[[#This Row],[Existing Equipment]],1),0)),1),0)))-IFERROR(FIND(\"-\",LEFT(RIGHT(ProjectInfoTable[[#This Row],[Existing Equipment]],LEN(ProjectInfoTable[[#This Row],[Existing Equipment]])-IFERROR(FIND(\"[\",ProjectInfoTable[[#This Row],[Existing Equipment]],1),0)),IFERROR(FIND(\"W\",RIGHT(ProjectInfoTable[[#This Row],[Existing Equipment]],LEN(ProjectInfoTable[[#This Row],[Existing Equipment]])-IFERROR(FIND(\"[\",ProjectInfoTable[[#This Row],[Existing Equipment]],1),0)),1),0)),1),0)),\"W\",\"\")))","v":""},{"$f":"IF(ProjectInfoTable[[#This Row],[Existing Equipment]]=\"\",\"\",IF(AND(RIGHT(LEFT(ProjectInfoTable[[#This Row],[Existing Equipment]],FIND(\"]\",ProjectInfoTable[[#This Row],[Existing Equipment]],1)-1),1)<>\"W\"),IFERROR(TRIM(IF(IFERROR(FIND(\"FLT\",ProjectInfoTable[[#This Row],[Existing Equipment]],1),0)>0,LEFT(RIGHT(LEFT(ProjectInfoTable[[#This Row],[Existing Equipment]],FIND(\" (\",ProjectInfoTable[[#This Row],[Existing Equipment]],1)),LEN(LEFT(ProjectInfoTable[[#This Row],[Existing Equipment]],FIND(\" (\",ProjectInfoTable[[#This Row],[Existing Equipment]],1)))-FIND(\":\",ProjectInfoTable[[#This Row],[Existing Equipment]],1)-1),FIND(\" \",RIGHT(LEFT(ProjectInfoTable[[#This Row],[Existing Equipment]],FIND(\" (\",ProjectInfoTable[[#This Row],[Existing Equipment]],1)),LEN(LEFT(ProjectInfoTable[[#This Row],[Existing Equipment]],FIND(\" (\",ProjectInfoTable[[#This Row],[Existing Equipment]],1)))-FIND(\":\",ProjectInfoTable[[#This Row],[Existing Equipment]],1)-1),1)-1),RIGHT(LEFT(ProjectInfoTable[[#This Row],[Existing Equipment]],FIND(\" (\",ProjectInfoTable[[#This Row],[Existing Equipment]],1)),LEN(LEFT(ProjectInfoTable[[#This Row],[Existing Equipment]],FIND(\" (\",ProjectInfoTable[[#This Row],[Existing Equipment]],1)))-FIND(\":\",ProjectInfoTable[[#This Row],[Existing Equipment]],1)-1))&\" - \"&RIGHT(LEFT(ProjectInfoTable[[#This Row],[Existing Equipment]],FIND(\"]\",ProjectInfoTable[[#This Row],[Existing Equipment]],1)-1),LEN(LEFT(ProjectInfoTable[[#This Row],[Existing Equipment]],FIND(\"]\",ProjectInfoTable[[#This Row],[Existing Equipment]],1)-1))-FIND(\"W \",ProjectInfoTable[[#This Row],[Existing Equipment]],1)-3)),\"\"),\"\"))","v":""},{"$f":"IF(ProjectInfoTable[[#This Row],[Existing Equipment]]=\"\",\"\",IF(ProjectInfoTable[[#This Row],[Fixture/Ballast Check for Formula]]=\"\",IF(ISNUMBER(FIND(\"LF\",ProjectInfoTable[[#This Row],[Existing Equipment]],FIND(\"[\",ProjectInfoTable[[#This Row],[Existing Equipment]],1))),ProjectInfoTable[[#This Row],[Lamp W (Existing)]],ProjectInfoTable[[#This Row],[Lamps (Existing)]]*ProjectInfoTable[[#This Row],[Lamp W (Existing)]]),IFERROR(ROUND( ProjectInfoTable[[#This Row],[Lamps (Existing)]]*ProjectInfoTable[[#This Row],[Lamp W (Existing)]]*INDEX(FixtureWattageFormula_Table[A],MATCH(ProjectInfoTable[[#This Row],[Fixture/Ballast Check for Formula]],FixtureWattageFormula_Table[Concatenate],0))+INDEX(FixtureWattageFormula_Table[B],MATCH(ProjectInfoTable[[#This Row],[Fixture/Ballast Check for Formula]],FixtureWattageFormula_Table[Concatenate],0)),0),ProjectInfoTable[[#This Row],[Lamps (Existing)]]*ProjectInfoTable[[#This Row],[Lamp W (Existing)]])))","v":""},{"$f":"IF(OR(ISNUMBER(FIND(\"T8 \",ProjectInfoTable[[#This Row],[Existing Equipment]],1)),ISNUMBER(FIND(\"T5 \",ProjectInfoTable[[#This Row],[Existing Equipment]],1)),ISNUMBER(FIND(\"T12 \",ProjectInfoTable[[#This Row],[Existing Equipment]],1)),ISNUMBER(FIND(\"T12HO - 8\",ProjectInfoTable[[#This Row],[Existing Equipment]],1)),ISNUMBER(FIND(\"Incand\",ProjectInfoTable[[#This Row],[Existing Equipment]],1))),IFERROR(ROUND(INDEX(StipulatedWattage_Table[Stipulated fixture wattage],MATCH(MID(ProjectInfoTable[[#This Row],[Existing Equipment]],FIND(\"[\",ProjectInfoTable[[#This Row],[Existing Equipment]],1),FIND(\"]\",ProjectInfoTable[[#This Row],[Existing Equipment]],1)-FIND(\"[\",ProjectInfoTable[[#This Row],[Existing Equipment]],1)+1),StipulatedWattage_Table[Fixture Code],0)),0),ProjectInfoTable[[#This Row],[Fixture W (Existing, Actual)]]),ProjectInfoTable[[#This Row],[Fixture W (Existing, Actual)]])","v":""},{"$f":"IF(ProjectType=\"Retrofit\",IF(ProjectInfoTable[[#This Row],[Existing Equipment]]=\"\",\"\",ProjectInfoTable[[#This Row],[Quantity (Existing)]]*ProjectInfoTable[[#This Row],[Fixture W (Existing, Actual)]]),IF(ISNUMBER(FIND(\"Interior\",ProjectInfoTable[[#This Row],[Proposed Equipment]],1)),IF(ISNUMBER(FIND(\"Controls Only\",ProjectInfoTable[[#This Row],[Proposed Equipment]])),ProjectInfoTable[[#This Row],[Space W (Proposed)]],(AllowedWattage-SUMIFS(ProjectInfoTable[Space W (Proposed)],ProjectInfoTable[Proposed Equipment],\"*Interior*\",ProjectInfoTable[Proposed Equipment],\"*Controls Only*\"))*ProjectInfoTable[[#This Row],[Space W (Proposed)]]/(SUMIFS(ProjectInfoTable[Space W (Proposed)],ProjectInfoTable[Proposed Equipment],\"*Interior*\")-SUMIFS(ProjectInfoTable[Space W (Proposed)],ProjectInfoTable[Proposed Equipment],\"*Interior*\",ProjectInfoTable[Proposed Equipment],\"*Controls Only*\"))),\"\"))","v":""},{"$f":"IF(ProjectType=\"Retrofit\",IF(ProjectInfoTable[[#This Row],[Existing Equipment]]=\"\",\"\",ProjectInfoTable[[#This Row],[Quantity (Existing)]]*ProjectInfoTable[[#This Row],[Fixture W (Existing, Stipulated)]]),ProjectInfoTable[[#This Row],[Space W (Existing, Actual)]])","v":""},{"$f":"IFERROR(INDEX(OperatingHours_List,MATCH(ProjectInfoTable[[#This Row],[OpSch]],OperatingSchedules_List,0))*ProjectInfoTable[[#This Row],[Space W (Existing, Actual)]]/1000,\"\")","v":""},{"$f":"IFERROR(INDEX(OperatingHours_List,MATCH(ProjectInfoTable[[#This Row],[OpSch]],OperatingSchedules_List,0))*ProjectInfoTable[[#This Row],[Space W (Existing, Actual)]]/1000*(IFERROR(INDEX(ControlsLookup[],MATCH(RIGHT(ProjectInfoTable[[#This Row],[Existing Equipment]],LEN(ProjectInfoTable[[#This Row],[Existing Equipment]])-FIND(\"]\",ProjectInfoTable[[#This Row],[Existing Equipment]],1)-3),ControlsLookup[Controls],0),MATCH(\"CSF_\"&ProjectState,ControlsLookup[#Headers],0)),0))*-1,\"\")","v":""},{"$f":"IF(OR(ProjectInfoTable[[#This Row],[Fixture kWh (Existing, Actual)]]=\"\",ProjectInfoTable[[#This Row],[Control kWh (Existing, Actual)]]=\"\"),\"\",ProjectInfoTable[[#This Row],[Fixture kWh (Existing, Actual)]]+ProjectInfoTable[[#This Row],[Control kWh (Existing, Actual)]])","v":""},{"$f":"IFERROR(INDEX(OperatingHours_List,MATCH(ProjectInfoTable[[#This Row],[OpSch]],OperatingSchedules_List,0))*ProjectInfoTable[[#This Row],[Space W (Existing, Stipulated)]]/1000,\"\")","v":""},{"$f":"IFERROR(INDEX(OperatingHours_List,MATCH(ProjectInfoTable[[#This Row],[OpSch]],OperatingSchedules_List,0))*ProjectInfoTable[[#This Row],[Space W (Existing, Stipulated)]]/1000*(IFERROR(INDEX(ControlsLookup[],MATCH(RIGHT(ProjectInfoTable[[#This Row],[Existing Equipment]],LEN(ProjectInfoTable[[#This Row],[Existing Equipment]])-FIND(\"]\",ProjectInfoTable[[#This Row],[Existing Equipment]],1)-3),ControlsLookup[Controls],0),MATCH(\"CSF_\"&ProjectState,ControlsLookup[#Headers],0)),0))*-1,\"\")","v":""},{"$f":"IF(OR(ProjectInfoTable[[#This Row],[Fixture kWh (Existing, Stipulated)]]=\"\",ProjectInfoTable[[#This Row],[Control kWh (Existing, Stipulated)]]=\"\"),\"\",ProjectInfoTable[[#This Row],[Fixture kWh (Existing, Stipulated)]]+ProjectInfoTable[[#This Row],[Control kWh (Existing, Stipulated)]])","v":""},{"$f":"IF(\n AND(\n  OR(ProjectInfoTable[[#This Row],[Existing Equipment]]=\"\",ProjectInfoTable[[#This Row],[Quantity (Existing)]]=\"\"),\n  ProjectType=\"Retrofit\"\n ),\n \"\",\n IF(\n  ISNUMBER(FIND(\"Street:\",ProjectInfoTable[[#This Row],[Existing Equipment]],1)),\n  IF(\n   OR(\n    AND(ProjectState=\"UT\",RateSchedule=12),\n    AND(ProjectState=\"ID\",RateSchedule=12),\n    AND(ProjectState=\"WY\",RateSchedule=58)\n   ),\n   IFERROR(\n    INDEX(\n     StreetLightingRates_Table[],\n     MATCH(MID(ProjectInfoTable[[#This Row],[Existing Equipment]],FIND(\": \",ProjectInfoTable[[#This Row],[Existing Equipment]],1)+2,FIND(\" (\",ProjectInfoTable[[#This Row],[Existing Equipment]],1)-FIND(\": \",ProjectInfoTable[[#This Row],[Existing Equipment]],1)-2)&ProjectInfoTable[[#This Row],[Lamp W (Existing)]],StreetLightingRates_Table[TechWattage],0),\n     MATCH(ProjectState&RateSchedule,StreetLightingRates_Table[#Headers],0)\n    )\n    *\n    ProjectInfoTable[[#This Row],[Quantity (Existing)]]\n    *\n    ProjectInfoTable[[#This Row],[Lamps (Existing)]]\n    *\n    12,\n    ProjectInfoTable[[#This Row],[Space kWh (Existing, Actual)]]\n    *\n    INDEX(INDIRECT(\"RateSchedules_\"&ProjectState&\"_Table[kWh Rate]\"),MATCH(RateSchedule,INDIRECT(\"RateSchedules_\"&ProjectState&\"_Table[Rate Schedule]\"),0))\n   ),\n   IFERROR(\n    ProjectInfoTable[[#This Row],[Space kWh (Existing, Actual)]]*\n    INDEX(INDIRECT(\"RateSchedules_\"&ProjectState&\"_Table[kWh Rate]\"),MATCH(RateSchedule,INDIRECT(\"RateSchedules_\"&ProjectState&\"_Table[Rate Schedule]\"),0)),0)\n   +\n   IFERROR(IF(ISNUMBER(FIND(\"Interior:\",ProjectInfoTable[[#This Row],[Existing Equipment]],1)),\n    ProjectInfoTable[[#This Row],[Space W (Existing, Actual)]]/1000*12*DDF*\n    INDEX(INDIRECT(\"RateSchedules_\"&ProjectState&\"_Table[kW Rate]\"),MATCH(RateSchedule,INDIRECT(\"RateSchedules_\"&ProjectState&\"_Table[Rate Schedule]\"),0)),0),0)\n  ),\n  IFERROR(\n   ProjectInfoTable[[#This Row],[Space kWh (Existing, Actual)]]*\n   INDEX(INDIRECT(\"RateSchedules_\"&ProjectState&\"_Table[kWh Rate]\"),MATCH(RateSchedule,INDIRECT(\"RateSchedules_\"&ProjectState&\"_Table[Rate Schedule]\"),0)),\n   0\n  )\n  +\n  IFERROR(IF(OR(ISNUMBER(FIND(\"Interior:\",ProjectInfoTable[[#This Row],[Existing Equipment]],1)),AND(ProjectType<>\"Retrofit\",ISNUMBER(FIND(\"Interior:\",ProjectInfoTable[[#This Row],[Proposed Equipment]],1)))),\n   ProjectInfoTable[[#This Row],[Space W (Existing, Actual)]]/1000*12*DDF*\n   INDEX(INDIRECT(\"RateSchedules_\"&ProjectState&\"_Table[kW Rate]\"),MATCH(RateSchedule,INDIRECT(\"RateSchedules_\"&ProjectState&\"_Table[Rate Schedule]\"),0)),0),\n   0\n  )\n )\n)","v":0},{"$f":"IF(\n AND(\n  OR(ProjectInfoTable[[#This Row],[Existing Equipment]]=\"\",ProjectInfoTable[[#This Row],[Quantity (Existing)]]=\"\"),\n  ProjectType=\"Retrofit\"\n ),\n \"\",\n IF(\n  ISNUMBER(FIND(\"Street:\",ProjectInfoTable[[#This Row],[Existing Equipment]],1)),\n  IF(\n   OR(\n    AND(ProjectState=\"UT\",RateSchedule=12),\n    AND(ProjectState=\"ID\",RateSchedule=12),\n    AND(ProjectState=\"WY\",RateSchedule=58)\n   ),\n   IFERROR(\n    INDEX(\n     StreetLightingRates_Table[],\n     MATCH(MID(ProjectInfoTable[[#This Row],[Existing Equipment]],FIND(\": \",ProjectInfoTable[[#This Row],[Existing Equipment]],1)+2,FIND(\" (\",ProjectInfoTable[[#This Row],[Existing Equipment]],1)-FIND(\": \",ProjectInfoTable[[#This Row],[Existing Equipment]],1)-2)&ProjectInfoTable[[#This Row],[Lamp W (Existing)]],StreetLightingRates_Table[TechWattage],0),\n     MATCH(ProjectState&RateSchedule,StreetLightingRates_Table[#Headers],0)\n    )\n    *\n    ProjectInfoTable[[#This Row],[Quantity (Existing)]]\n    *\n    ProjectInfoTable[[#This Row],[Lamps (Existing)]]\n    *\n    12,\n    ProjectInfoTable[[#This Row],[Space kWh (Existing, Stipulated)]]\n    *\n    INDEX(INDIRECT(\"RateSchedules_\"&ProjectState&\"_Table[kWh Rate]\"),MATCH(RateSchedule,INDIRECT(\"RateSchedules_\"&ProjectState&\"_Table[Rate Schedule]\"),0))\n   ),\n   IFERROR(\n    ProjectInfoTable[[#This Row],[Space kWh (Existing, Stipulated)]]*\n    INDEX(INDIRECT(\"RateSchedules_\"&ProjectState&\"_Table[kWh Rate]\"),MATCH(RateSchedule,INDIRECT(\"RateSchedules_\"&ProjectState&\"_Table[Rate Schedule]\"),0)),0)\n   +\n   IFERROR(IF(ISNUMBER(FIND(\"Interior:\",ProjectInfoTable[[#This Row],[Existing Equipment]],1)),\n    ProjectInfoTable[[#This Row],[Space W (Existing, Stipulated)]]/1000*12*DDF*\n    INDEX(INDIRECT(\"RateSchedules_\"&ProjectState&\"_Table[kW Rate]\"),MATCH(RateSchedule,INDIRECT(\"RateSchedules_\"&ProjectState&\"_Table[Rate Schedule]\"),0)),0),0)\n  ),\n  IFERROR(\n   ProjectInfoTable[[#This Row],[Space kWh (Existing, Stipulated)]]*\n   INDEX(INDIRECT(\"RateSchedules_\"&ProjectState&\"_Table[kWh Rate]\"),MATCH(RateSchedule,INDIRECT(\"RateSchedules_\"&ProjectState&\"_Table[Rate Schedule]\"),0)),\n   0\n  )\n  +\n  IFERROR(IF(OR(ISNUMBER(FIND(\"Interior:\",ProjectInfoTable[[#This Row],[Existing Equipment]],1)),AND(ProjectType<>\"Retrofit\",ISNUMBER(FIND(\"Interior:\",ProjectInfoTable[[#This Row],[Proposed Equipment]],1)))),\n   ProjectInfoTable[[#This Row],[Space W (Existing, Stipulated)]]/1000*12*DDF*\n   INDEX(INDIRECT(\"RateSchedules_\"&ProjectState&\"_Table[kW Rate]\"),MATCH(RateSchedule,INDIRECT(\"RateSchedules_\"&ProjectState&\"_Table[Rate Schedule]\"),0)),0),\n   0\n  )\n )\n)","v":0},{"$f":"IF(ProjectType=\"Retrofit\",IFERROR(INDEX(RetrofitBaselineEquipment_Table[categoryBaseline],MATCH(RIGHT(LEFT(ProjectInfoTable[[#This Row],[Proposed Equipment]],FIND(\" (\",ProjectInfoTable[[#This Row],[Proposed Equipment]],1)-1),LEN(LEFT(ProjectInfoTable[[#This Row],[Proposed Equipment]],FIND(\" (\",ProjectInfoTable[[#This Row],[Proposed Equipment]],1)-1))-FIND(\": \",ProjectInfoTable[[#This Row],[Proposed Equipment]],1)-1),RetrofitBaselineEquipment_Table[equipmentBaseline],0)),\"\"),IFERROR(INDEX(#REF!,MATCH(RIGHT(LEFT(ProjectInfoTable[[#This Row],[Proposed Equipment]],FIND(\" (\",ProjectInfoTable[[#This Row],[Proposed Equipment]],1)-1),LEN(LEFT(ProjectInfoTable[[#This Row],[Proposed Equipment]],FIND(\" (\",ProjectInfoTable[[#This Row],[Proposed Equipment]],1)-1))-FIND(\": \",ProjectInfoTable[[#This Row],[Proposed Equipment]],1)-1),#REF!,0)),\"\"))","v":""},{"$f":"IF(ProjectInfoTable[[#This Row],[Proposed Equipment]]=\"\",\"\",IF(ISNUMBER(SEARCH(\"Controls Only\",ProjectInfoTable[[#This Row],[Proposed Equipment]])),\"Controls Only\",IF(ProjectType=\"Retrofit\",_xlfn.LET(_xlpm.k,LEFT(ProjectInfoTable[[#This Row],[Proposed Equipment]],FIND(\"[\",ProjectInfoTable[[#This Row],[Proposed Equipment]])-2),_xlpm.ep,_xlfn.SWITCH(ProjectState,\"UT\",EquipmentTable_Retrofit_UT[equipmentProposed],\"WY\",EquipmentTable_Retrofit_WY[equipmentProposed],\"ID\",EquipmentTable_Retrofit_ID[equipmentProposed]),_xlpm.cp,_xlfn.SWITCH(ProjectState,\"UT\",EquipmentTable_Retrofit_UT[categoryProposed],\"WY\",EquipmentTable_Retrofit_WY[categoryProposed],\"ID\",EquipmentTable_Retrofit_ID[categoryProposed]),_xlfn.XLOOKUP(_xlpm.k,_xlpm.ep,_xlpm.cp,\"Non-eligible fixture - Retrofit - \"&ProjectState)),_xlfn.LET(_xlpm.k,MID(ProjectInfoTable[[#This Row],[Proposed Equipment]],FIND(\": \",ProjectInfoTable[[#This Row],[Proposed Equipment]])+2,FIND(\" (\",ProjectInfoTable[[#This Row],[Proposed Equipment]])-(FIND(\": \",ProjectInfoTable[[#This Row],[Proposed Equipment]])+2)),_xlpm.ep,_xlfn.SWITCH(ProjectState,\"UT\",EquipmentTable_NCMR_UT[equipmentProposed],\"WY\",EquipmentTable_NCMR_WY[equipmentProposed],\"ID\",EquipmentTable_NCMR_ID[equipmentProposed]),_xlpm.cp,_xlfn.SWITCH(ProjectState,\"UT\",EquipmentTable_NCMR_UT[categoryProposed],\"WY\",EquipmentTable_NCMR_WY[categoryProposed],\"ID\",EquipmentTable_NCMR_ID[categoryProposed]),_xlfn.XLOOKUP(_xlpm.k,_xlpm.ep,_xlpm.cp,\"Non-eligible fixture - NCMR - \"&ProjectState)))))","v":""},null,null,"ü",{"$f":"IF(ProjectInfoTable[[#This Row],[Proposed Equipment]]=\"\",\"\",IF(ProjectInfoTable[[#This Row],[Measure Selection]]=\"\",0,IF(ISNUMBER(FIND(\"LF\",ProjectInfoTable[[#This Row],[Proposed Equipment]],1)),1,IFERROR(VALUE(SUBSTITUTE(RIGHT(LEFT(ProjectInfoTable[[#This Row],[Proposed Equipment]],FIND(\"L\",ProjectInfoTable[[#This Row],[Proposed Equipment]],FIND(\"[\",ProjectInfoTable[[#This Row],[Proposed Equipment]],1))-1),2),\"[\",\"\")),IFERROR(LEFT(RIGHT(ProjectInfoTable[[#This Row],[Proposed Equipment]],LEN(ProjectInfoTable[[#This Row],[Proposed Equipment]])-FIND(\"-lamp\",ProjectInfoTable[[#This Row],[Proposed Equipment]],1)+2),1),1)))))","v":""},{"$f":"IF(ProjectInfoTable[[#This Row],[Proposed Equipment]]=\"\",\"\",IF(ProjectInfoTable[[#This Row],[Measure Selection]]=\"\",0,IFERROR(\n\nIF(ISNUMBER(FIND(\"W]\",ProjectInfoTable[[#This Row],[Proposed Equipment]])),\nRIGHT(MID(ProjectInfoTable[[#This Row],[Proposed Equipment]],FIND(\"W]\",ProjectInfoTable[[#This Row],[Proposed Equipment]],FIND(\"[\",ProjectInfoTable[[#This Row],[Proposed Equipment]]))-7,7),\nLEN(MID(ProjectInfoTable[[#This Row],[Proposed Equipment]],FIND(\"W]\",ProjectInfoTable[[#This Row],[Proposed Equipment]],FIND(\"[\",ProjectInfoTable[[#This Row],[Proposed Equipment]]))-7,7)) -\nIFERROR(FIND(\" - \",MID(ProjectInfoTable[[#This Row],[Proposed Equipment]],FIND(\"W]\",ProjectInfoTable[[#This Row],[Proposed Equipment]],FIND(\"[\",ProjectInfoTable[[#This Row],[Proposed Equipment]]))-7,7))+2,\nFIND(\"[\",MID(ProjectInfoTable[[#This Row],[Proposed Equipment]],FIND(\"W]\",ProjectInfoTable[[#This Row],[Proposed Equipment]],FIND(\"[\",ProjectInfoTable[[#This Row],[Proposed Equipment]]))-7,7)))),\n\nIF(ISNUMBER(FIND(\"[\",MID(ProjectInfoTable[[#This Row],[Proposed Equipment]],FIND(\"W \",ProjectInfoTable[[#This Row],[Proposed Equipment]],FIND(\"[\",ProjectInfoTable[[#This Row],[Proposed Equipment]]))-7,7))),\nRIGHT(MID(ProjectInfoTable[[#This Row],[Proposed Equipment]],FIND(\"W \",ProjectInfoTable[[#This Row],[Proposed Equipment]],FIND(\"[\",ProjectInfoTable[[#This Row],[Proposed Equipment]]))-7,7),\nLEN(MID(ProjectInfoTable[[#This Row],[Proposed Equipment]],FIND(\"W \",ProjectInfoTable[[#This Row],[Proposed Equipment]],FIND(\"[\",ProjectInfoTable[[#This Row],[Proposed Equipment]]))-7,7)) -\nIFERROR(FIND(\" - \",MID(ProjectInfoTable[[#This Row],[Proposed Equipment]],FIND(\"W \",ProjectInfoTable[[#This Row],[Proposed Equipment]],FIND(\"[\",ProjectInfoTable[[#This Row],[Proposed Equipment]]))-7,7))+2,\nFIND(\"[\",MID(ProjectInfoTable[[#This Row],[Proposed Equipment]],FIND(\"W \",ProjectInfoTable[[#This Row],[Proposed Equipment]],FIND(\"[\",ProjectInfoTable[[#This Row],[Proposed Equipment]]))-7,7)))),\n\nRIGHT(MID(ProjectInfoTable[[#This Row],[Proposed Equipment]],FIND(\"W \",ProjectInfoTable[[#This Row],[Proposed Equipment]],FIND(\"[\",ProjectInfoTable[[#This Row],[Proposed Equipment]]))-7,7),\nLEN(MID(ProjectInfoTable[[#This Row],[Proposed Equipment]],FIND(\"W \",ProjectInfoTable[[#This Row],[Proposed Equipment]],FIND(\"[\",ProjectInfoTable[[#This Row],[Proposed Equipment]]))-7,7)) -\nFIND(\" - \",MID(ProjectInfoTable[[#This Row],[Proposed Equipment]],FIND(\"W \",ProjectInfoTable[[#This Row],[Proposed Equipment]],FIND(\"[\",ProjectInfoTable[[#This Row],[Proposed Equipment]]))-7,7))-2\n))),0)))","v":""},{"$f":"IF(ProjectInfoTable[[#This Row],[Proposed Equipment]]=\"\",\"\",IFERROR(ProjectInfoTable[[#This Row],[Lamps (Proposed)]]*ProjectInfoTable[[#This Row],[Lamp W (Proposed)]],\"\"))","v":""},{"$f":"IF(ProjectInfoTable[[#This Row],[Proposed Equipment]]=\"\",\"\",IFERROR(ProjectInfoTable[[#This Row],[Quantity (Proposed)]]*ProjectInfoTable[[#This Row],[Fixture W (Proposed)]],\"\"))","v":""},{"$f":"IFERROR(INDEX(OperatingHours_List,MATCH(ProjectInfoTable[[#This Row],[OpSch]],OperatingSchedules_List,0))*ProjectInfoTable[[#This Row],[Space W (Proposed)]]/1000,\"\")","v":""},{"$f":"IF(OR(ISNUMBER(FIND(\"Controls Only\",ProjectInfoTable[[#This Row],[Proposed Equipment]],1)),ProjectInfoTable[[#This Row],[ControlsOnly]]=\"Re-Commissioning\"),\"Controls Only\",IFERROR(INDEX(OperatingHours_List,MATCH(ProjectInfoTable[[#This Row],[OpSch]],OperatingSchedules_List,0))*ProjectInfoTable[[#This Row],[Space W (Proposed)]]/1000*(IFERROR(INDEX(ControlsLookup[],MATCH(SUBSTITUTE(RIGHT(ProjectInfoTable[[#This Row],[Proposed Equipment]],LEN(ProjectInfoTable[[#This Row],[Proposed Equipment]])-FIND(\"]\",ProjectInfoTable[[#This Row],[Proposed Equipment]],1)-3),\" reused\",\"\"),ControlsLookup[Controls],0),MATCH(\"CSF_\"&ProjectState,ControlsLookup[#Headers],0)),0))*-1,\"\"))","v":""},{"$f":"IF(OR(ProjectInfoTable[[#This Row],[Fixture kWh (Proposed)]]=\"\",ProjectInfoTable[[#This Row],[Control kWh (Proposed)]]=\"\"),\"\",IFERROR(ProjectInfoTable[[#This Row],[Fixture kWh (Proposed)]]+ProjectInfoTable[[#This Row],[Control kWh (Proposed)]],0))","v":""},{"$f":"IF(\n OR(\n  ProjectInfoTable[[#This Row],[Proposed Equipment]]=\"\",\n  ProjectInfoTable[[#This Row],[Quantity (Proposed)]]=\"\"\n ),\n \"\",\n IF(\n  AND(\n   OR(\n    AND(\n     ProjectState=\"UT\",\n     RateSchedule=12\n    ),\n    AND(\n     ProjectState=\"ID\",\n     RateSchedule=12\n    ),\n    AND(\n     ProjectState=\"WY\",\n     RateSchedule=58\n    )\n   ),\n   ISNUMBER(FIND(\"Street:\",ProjectInfoTable[[#This Row],[Existing Equipment]],1))\n  ),\n  IF(\n   AND(\n    RateSchedule=53,\n    ISNUMBER(FIND(\"LED\",ProjectInfoTable[[#This Row],[Proposed Equipment]],1))\n   ),\n   ProjectInfoTable[[#This Row],[Fixture kWh (Proposed)]]\n   *\n   INDEX(\n    INDIRECT(\"RateSchedules_\"&ProjectState&\"_Table[kWh Rate]\"),\n    MATCH(RateSchedule,INDIRECT(\"RateSchedules_\"&ProjectState&\"_Table[Rate Schedule]\"),0)\n   ),\n   IFERROR(INDEX(\n    StreetLightingRates_Table[],\n    MATCH(\"LED\"&IF(AND(ProjectInfoTable[[#This Row],[Fixture W (Proposed)]]>0,ProjectInfoTable[[#This Row],[Fixture W (Proposed)]]<=70),70,IF(AND(ProjectInfoTable[[#This Row],[Fixture W (Proposed)]]>70,ProjectInfoTable[[#This Row],[Fixture W (Proposed)]]<=100),100,IF(AND(ProjectInfoTable[[#This Row],[Fixture W (Proposed)]]>100,ProjectInfoTable[[#This Row],[Fixture W (Proposed)]]<=150),150,IF(AND(ProjectInfoTable[[#This Row],[Fixture W (Proposed)]]>150,ProjectInfoTable[[#This Row],[Fixture W (Proposed)]]<=200),200,IF(AND(ProjectInfoTable[[#This Row],[Fixture W (Proposed)]]>200,ProjectInfoTable[[#This Row],[Fixture W (Proposed)]]<=250),250,IF(AND(ProjectInfoTable[[#This Row],[Fixture W (Proposed)]]>250,ProjectInfoTable[[#This Row],[Fixture W (Proposed)]]<=400),400,\"\")))))),StreetLightingRates_Table[TechWattage],0),\n    MATCH(ProjectState&RateSchedule,StreetLightingRates_Table[#Headers],0)\n   )\n   *ProjectInfoTable[[#This Row],[Lamps (Proposed)]]*ProjectInfoTable[[#This Row],[Quantity (Proposed)]]*12,\n  ProjectInfoTable[[#This Row],[Space kWh (Proposed)]]*INDEX(INDIRECT(\"RateSchedules_\"&ProjectState&\"_Table[kWh Rate]\"),MATCH(RateSchedule,INDIRECT(\"RateSchedules_\"&ProjectState&\"_Table[Rate Schedule]\"),0)))),\n  IFERROR(ProjectInfoTable[[#This Row],[Space kWh (Proposed)]]*INDEX(INDIRECT(\"RateSchedules_\"&ProjectState&\"_Table[kWh Rate]\"),MATCH(RateSchedule,INDIRECT(\"RateSchedules_\"&ProjectState&\"_Table[Rate Schedule]\"),0)),0)\n  +\n  IF(OR(ISNUMBER(FIND(\"Exterior:\",ProjectInfoTable[[#This Row],[Existing Equipment]],1)),ISNUMBER(FIND(\"Street:\",ProjectInfoTable[[#This Row],[Existing Equipment]],1))),0,IFERROR(ProjectInfoTable[[#This Row],[Space W (Proposed)]]/1000*12*DDF*INDEX(INDIRECT(\"RateSchedules_\"&ProjectState&\"_Table[kW Rate]\"),MATCH(RateSchedule,INDIRECT(\"RateSchedules_\"&ProjectState&\"_Table[Rate Schedule]\"),0)),0))\n )\n)","v":""},{"$f":"IF(ProjectInfoTable[[#This Row],[Measure Selection]]=\"\",0,IF(ProjectType=\"Retrofit\",IFERROR((ProjectInfoTable[[#This Row],[Space W (Existing, Actual)]]-ProjectInfoTable[[#This Row],[Space W (Proposed)]])/ProjectInfoTable[[#This Row],[Space W (Existing, Actual)]],\"\"),IF(AND(ProjectInfoTable[[#This Row],[Proposed Equipment]]=\"\",ProjectInfoTable[[#This Row],[Quantity (Proposed)]]=\"\"),\"\",IFERROR((ProjectInfoTable[[#This Row],[Space W (Existing, Stipulated)]]-ProjectInfoTable[[#This Row],[Space W (Proposed)]])/ProjectInfoTable[[#This Row],[Space W (Existing, Stipulated)]],\"n/a\"))))","v":""},{"$f":"IF(ProjectInfoTable[[#This Row],[Measure Selection]]=\"\",0,IF(ProjectType=\"Retrofit\",IFERROR((ProjectInfoTable[[#This Row],[Space W (Existing, Stipulated)]]-ProjectInfoTable[[#This Row],[Space W (Proposed)]])/ProjectInfoTable[[#This Row],[Space W (Existing, Stipulated)]],\"\"),ProjectInfoTable[[#This Row],[% Wattage Reduction (Actual)]]))","v":""},{"$f":"IFERROR(IF(OR(ProjectInfoTable[[#This Row],[Measure Selection]]=\"\",ProjectInfoTable[[#This Row],[ControlsOnly]]=\"Re-Commissioning\"),0,IF(AND(ProjectType=\"Retrofit\",LEFT(ProjectInfoTable[[#This Row],[Existing Equipment]],FIND(\": \",ProjectInfoTable[[#This Row],[Existing Equipment]],1)-1)<>\"Interior\"),0,((ProjectInfoTable[[#This Row],[Space W (Existing, Actual)]]-ProjectInfoTable[[#This Row],[Space W (Proposed)]])/1000*DDF)-IF(ProjectInfoTable[[#This Row],[Midstream Measure Name]]<>\"\",IFERROR(ProjectInfoTable[[#This Row],[kW Per Unit (Midstream)]]*ProjectInfoTable[[#This Row],[Quantity]]*ProjectInfoTable[[#This Row],[No. of TRL Units]],0),0))),\"\")","v":""},{"$f":"IFERROR(IF(OR(ProjectInfoTable[[#This Row],[Measure Selection]]=\"\",ProjectInfoTable[[#This Row],[ControlsOnly]]=\"Re-Commissioning\"),0,IF(AND(ISNUMBER(VALUE(ProjectInfoTable[[#This Row],[kW Per Unit]])),ProjectInfoTable[[#This Row],[kW Per Unit]]<>0),ROUND(ProjectInfoTable[[#This Row],[kW Per Unit]]*ProjectInfoTable[[#This Row],[Quantity]]*ProjectInfoTable[[#This Row],[No. of TRL Units]],2),IF(OR(AND(ProjectType=\"Retrofit\",LEFT(ProjectInfoTable[[#This Row],[Existing Equipment]],FIND(\": \",ProjectInfoTable[[#This Row],[Existing Equipment]],1)-1)<>\"Interior\"),AND(ProjectInfoTable[[#This Row],[Incentives Per Unit]]=0,INDEX(StipulatedSavingsYesNo_Table[Stipulated Savings?],MATCH(ProjectState,StipulatedSavingsYesNo_Table[State],0))=\"No\")),0,IF(ISNUMBER(FIND(\"Controls Only\",ProjectInfoTable[[#This Row],[Proposed Equipment]],1)),0,ROUND(((ProjectInfoTable[[#This Row],[Space W (Existing, Stipulated)]]-ProjectInfoTable[[#This Row],[Space W (Proposed)]])/1000*DDF)-IF(ProjectInfoTable[[#This Row],[Midstream Measure Name]]<>\"\",IFERROR(ProjectInfoTable[[#This Row],[kW Per Unit (Midstream)]]*ProjectInfoTable[[#This Row],[Quantity]]*ProjectInfoTable[[#This Row],[No. of TRL Units]],0),0),2))))),\"\")","v":""},{"$f":"IFERROR(IF(OR(ProjectInfoTable[[#This Row],[Control kWh (Proposed)]]=\"Controls Only\",ProjectInfoTable[[#This Row],[Measure Selection]]=\"\"),0,ROUND((ProjectInfoTable[[#This Row],[Fixture kWh (Existing, Actual)]]-ProjectInfoTable[[#This Row],[Fixture kWh (Proposed)]])*IF(VALUE(SpaceTypesInfo_Table[[#Totals],[HVAC Effects]])=0,1,1+VALUE(SpaceTypesInfo_Table[[#Totals],[HVAC Effects]])),0)),\"\")","v":""},{"$f":"IFERROR(IF(ProjectInfoTable[[#This Row],[Control kWh (Proposed)]]=\"Controls Only\",ROUND(IFERROR(INDEX(OperatingHours_List,MATCH(ProjectInfoTable[[#This Row],[OpSch]],OperatingSchedules_List,0))*IF(OR(ProjectType <> \"Retrofit\",ProjectInfoTable[[#This Row],[Space W (Proposed)]]>0),ProjectInfoTable[[#This Row],[Space W (Proposed)]],ProjectInfoTable[[#This Row],[Space W (Existing, Actual)]])/1000*(IFERROR(INDEX(ControlsLookup[],MATCH(RIGHT(ProjectInfoTable[[#This Row],[Proposed Equipment]],LEN(ProjectInfoTable[[#This Row],[Proposed Equipment]])-FIND(\"]\",ProjectInfoTable[[#This Row],[Proposed Equipment]],1)-3),ControlsLookup[Controls],0),MATCH(\"CSF_\"&ProjectState,ControlsLookup[#Headers],0)),0))*IF(VALUE(SpaceTypesInfo_Table[[#Totals],[HVAC Effects]])=0,1,1+VALUE(SpaceTypesInfo_Table[[#Totals],[HVAC Effects]])),\"\"),0),ROUND(IFERROR((ProjectInfoTable[[#This Row],[Control kWh (Existing, Actual)]]-ProjectInfoTable[[#This Row],[Control kWh (Proposed)]])*IF(VALUE(SpaceTypesInfo_Table[[#Totals],[HVAC Effects]])=0,1,1+VALUE(SpaceTypesInfo_Table[[#Totals],[HVAC Effects]])),\"\"),0)),\"\")","v":""},{"$f":"IF(OR(ProjectInfoTable[[#This Row],[Proposed Equipment]]=\"\",ProjectInfoTable[[#This Row],[Quantity (Proposed)]]=\"\"),\"\",IF(ProjectInfoTable[[#This Row],[Fixture Measure]]=\"\",0,IF(AND(ProjectInfoTable[[#This Row],[Incentives Per Unit]]=0,INDEX(StipulatedSavingsYesNo_Table[Stipulated Savings?],MATCH(ProjectState,StipulatedSavingsYesNo_Table[State],0))=\"No\"),0,ProjectInfoTable[[#This Row],[Total   kWh/yr Savings (Actual)]]-ProjectInfoTable[[#This Row],[Control Measure kWh/yr Savings (Actual)]])))","v":""},{"$f":"IF(OR(ProjectInfoTable[[#This Row],[Proposed Equipment]]=\"\",ProjectInfoTable[[#This Row],[Quantity (Proposed)]]=\"\"),\"\",IF(ProjectInfoTable[[#This Row],[Control Measure]]=\"\",0,ProjectInfoTable[[#This Row],[Control kWh/yr Savings (Actual)]]))","v":""},{"$f":"IF(AND(ProjectInfoTable[[#This Row],[Incentives Per Unit]]=0,INDEX(StipulatedSavingsYesNo_Table[Stipulated Savings?],MATCH(ProjectState,StipulatedSavingsYesNo_Table[State],0))=\"No\"),ProjectInfoTable[[#This Row],[Fixture kWh/yr Savings (Actual)]]+IF(ProjectInfoTable[[#This Row],[Control Measure kWh/yr Savings (Actual)]]=0,0,ProjectInfoTable[[#This Row],[Control kWh/yr Savings (Actual)]]),IF(AND(ProjectInfoTable[[#This Row],[Fixture kWh/yr Savings (Actual)]]=\"\",ProjectInfoTable[[#This Row],[Control kWh/yr Savings (Actual)]]=\"\"),\"\",ROUND(IF(ProjectInfoTable[[#This Row],[Fixture kWh/yr Savings (Actual)]]=\"\",0,ProjectInfoTable[[#This Row],[Fixture kWh/yr Savings (Actual)]])+IF(ProjectInfoTable[[#This Row],[Control kWh/yr Savings (Actual)]]=\"\",0,ProjectInfoTable[[#This Row],[Control kWh/yr Savings (Actual)]])-IF(ProjectInfoTable[[#This Row],[Midstream Measure Name]]<>\"\",IFERROR(ProjectInfoTable[[#This Row],[kWh Per Unit (Midstream)]]*ProjectInfoTable[[#This Row],[Quantity]]*ProjectInfoTable[[#This Row],[No. of TRL Units]],0),0),0)))","v":""},{"$f":"IFERROR(IF(OR(ProjectInfoTable[[#This Row],[Measure Selection]]=\"\",ProjectInfoTable[[#This Row],[ControlsOnly]]=\"Re-Commissioning\"),0,IF(AND(ProjectInfoTable[[#This Row],[Incentives Per Unit]]=0,INDEX(StipulatedSavingsYesNo_Table[Stipulated Savings?],MATCH(ProjectState,StipulatedSavingsYesNo_Table[State],0))=\"No\"),0,IF(ISNUMBER(FIND(\"Controls Only\",ProjectInfoTable[[#This Row],[Proposed Equipment]],1)),0,ROUND((ProjectInfoTable[[#This Row],[Fixture kWh (Existing, Stipulated)]]-ProjectInfoTable[[#This Row],[Fixture kWh (Proposed)]])*IF(VALUE(SpaceTypesInfo_Table[[#Totals],[HVAC Effects]])=0,1,1+VALUE(SpaceTypesInfo_Table[[#Totals],[HVAC Effects]])),0)))),\"\")","v":""},{"$f":"IFERROR(IF(ProjectInfoTable[[#This Row],[Control kWh (Proposed)]]=\"Controls Only\",ROUND(IFERROR(INDEX(OperatingHours_List,MATCH(ProjectInfoTable[[#This Row],[OpSch]],OperatingSchedules_List,0))*IF(OR(ProjectType <> \"Retrofit\",ProjectInfoTable[[#This Row],[Space W (Proposed)]]>0),ProjectInfoTable[[#This Row],[Space W (Proposed)]],ProjectInfoTable[[#This Row],[Space W (Existing, Stipulated)]])/1000*(IFERROR(INDEX(ControlsLookup[],MATCH(RIGHT(ProjectInfoTable[[#This Row],[Proposed Equipment]],LEN(ProjectInfoTable[[#This Row],[Proposed Equipment]])-FIND(\"]\",ProjectInfoTable[[#This Row],[Proposed Equipment]],1)-3),ControlsLookup[Controls],0),MATCH(\"CSF_\"&ProjectState,ControlsLookup[#Headers],0)),0))*IF(VALUE(SpaceTypesInfo_Table[[#Totals],[HVAC Effects]])=0,1,1+VALUE(SpaceTypesInfo_Table[[#Totals],[HVAC Effects]])),\"\"),0),ROUND(IFERROR((ProjectInfoTable[[#This Row],[Control kWh (Existing, Stipulated)]]-ProjectInfoTable[[#This Row],[Control kWh (Proposed)]])*IF(VALUE(SpaceTypesInfo_Table[[#Totals],[HVAC Effects]])=0,1,1+VALUE(SpaceTypesInfo_Table[[#Totals],[HVAC Effects]])),INDEX(ControlsLookup[],MATCH(RIGHT(ProjectInfoTable[[#This Row],[Proposed Equipment]],LEN(ProjectInfoTable[[#This Row],[Proposed Equipment]])-FIND(\"-\",ProjectInfoTable[[#This Row],[Proposed Equipment]],LEN(ProjectInfoTable[[#This Row],[Proposed Equipment]])-15)-1),ControlsLookup[Controls],0),MATCH(\"CSF_\"&ProjectState,ControlsLookup[#Headers],0))*IF(NOT(ISNUMBER(VALUE(ProjectInfoTable[[#This Row],[kWh Per Unit]]))),ProjectInfoTable[[#This Row],[Fixture kWh/yr Savings (Stipulated)]],ProjectInfoTable[[#This Row],[kWh Per Unit]]*ProjectInfoTable[[#This Row],[Quantity]]*ProjectInfoTable[[#This Row],[No. of TRL Units]])),0)),IF(OR(ProjectType=\"New Construction\",ProjectType=\"Major Renovation\"),IF(ProjectInfoTable[[#This Row],[Control kWh (Proposed)]]=\"\",\"\",0),\"\"))","v":""},{"$f":"IF(OR(ProjectInfoTable[[#This Row],[Proposed Equipment]]=\"\",ProjectInfoTable[[#This Row],[Quantity (Proposed)]]=\"\"),\"\",IF(ProjectInfoTable[[#This Row],[Fixture Measure]]=\"\",0,IF(AND(ProjectInfoTable[[#This Row],[Incentives Per Unit]]=0,INDEX(StipulatedSavingsYesNo_Table[Stipulated Savings?],MATCH(ProjectState,StipulatedSavingsYesNo_Table[State],0))=\"No\"),0,ProjectInfoTable[[#This Row],[Total   kWh/yr Savings (Stipulated)]]-ProjectInfoTable[[#This Row],[Control Measure kWh/yr Savings (Stipulated)]])))","v":""},{"$f":"IF(OR(ProjectInfoTable[[#This Row],[Proposed Equipment]]=\"\",ProjectInfoTable[[#This Row],[Quantity (Proposed)]]=\"\"),\"\",IF(ProjectInfoTable[[#This Row],[Control Measure]]=\"\",0,IF(OR(ProjectType=\"New Construction\",ProjectType=\"Major Renovation\"),IFERROR(ROUND(ProjectInfoTable[[#This Row],[Control kWh Per Unit]]*ProjectInfoTable[[#This Row],[Control Quantity]]*ProjectInfoTable[[#This Row],[Control No. of TRL Units]],0),ProjectInfoTable[[#This Row],[Control kWh/yr Savings (Stipulated)]]),ProjectInfoTable[[#This Row],[Control kWh/yr Savings (Stipulated)]])))","v":""},{"$f":"IF(AND(ProjectInfoTable[[#This Row],[Incentives Per Unit]]=0,INDEX(StipulatedSavingsYesNo_Table[Stipulated Savings?],MATCH(ProjectState,StipulatedSavingsYesNo_Table[State],0))=\"No\"),ProjectInfoTable[[#This Row],[Fixture kWh/yr Savings (Stipulated)]]+IF(ProjectInfoTable[[#This Row],[Control Measure kWh/yr Savings (Stipulated)]]=0,0,ProjectInfoTable[[#This Row],[Control kWh/yr Savings (Stipulated)]]),IF(OR(ISNUMBER(VALUE(ProjectInfoTable[[#This Row],[kWh Per Unit]])),ISNUMBER(VALUE(ProjectInfoTable[[#This Row],[Control kWh Per Unit]]))),ROUND(IFERROR(ProjectInfoTable[[#This Row],[kWh Per Unit]]*ProjectInfoTable[[#This Row],[Quantity]]*ProjectInfoTable[[#This Row],[No. of TRL Units]],0)+IFERROR(ProjectInfoTable[[#This Row],[Control kWh Per Unit]]*ProjectInfoTable[[#This Row],[Control Quantity]]*ProjectInfoTable[[#This Row],[Control No. of TRL Units]],ProjectInfoTable[[#This Row],[Control kWh/yr Savings (Stipulated)]]),0),IF(AND(ProjectInfoTable[[#This Row],[Fixture kWh/yr Savings (Stipulated)]]=\"\",ProjectInfoTable[[#This Row],[Control kWh/yr Savings (Stipulated)]]=\"\"),\"\",ROUND(IF(ProjectInfoTable[[#This Row],[Fixture kWh/yr Savings (Stipulated)]]=\"\",0,ProjectInfoTable[[#This Row],[Fixture kWh/yr Savings (Stipulated)]])+IF(ProjectInfoTable[[#This Row],[Control kWh/yr Savings (Stipulated)]]=\"\",0,ProjectInfoTable[[#This Row],[Control kWh/yr Savings (Stipulated)]])-IF(ProjectInfoTable[[#This Row],[Midstream Measure Name]]<>\"\",IFERROR(ProjectInfoTable[[#This Row],[kWh Per Unit (Midstream)]]*ProjectInfoTable[[#This Row],[Quantity]]*ProjectInfoTable[[#This Row],[No. of TRL Units]],0),0),0))))","v":""},{"$f":"IF(OR(ISNUMBER(FIND(\"Midstream\",ProjectInfoTable[[#This Row],[Fixture Measure]])),ISNUMBER(FIND(\"SBDI\",ProjectInfoTable[[#This Row],[Fixture Measure]])),ISNUMBER(FIND(\"Small Bu\",ProjectInfoTable[[#This Row],[Fixture Measure]]))),\n\nIF(ProjectInfoTable[[#This Row],[Measure Selection]]=\"\",0,\n\nIF(ISNUMBER(FIND(\"/U]\",ProjectInfoTable[[#This Row],[Proposed Equipment]])),IFERROR(MID(ProjectInfoTable[[#This Row],[Proposed Equipment]],FIND(\"$\",ProjectInfoTable[[#This Row],[Proposed Equipment]],1)+1,FIND(\"/U]\",ProjectInfoTable[[#This Row],[Proposed Equipment]],1)-FIND(\"$\",ProjectInfoTable[[#This Row],[Proposed Equipment]],1)-1)*ProjectInfoTable[[#This Row],[Lamps (Proposed)]]*ProjectInfoTable[[#This Row],[Quantity (Proposed)]],0),\nIF(ISNUMBER(FIND(\"/U \",ProjectInfoTable[[#This Row],[Proposed Equipment]])),IFERROR(MID(ProjectInfoTable[[#This Row],[Proposed Equipment]],FIND(\"$\",ProjectInfoTable[[#This Row],[Proposed Equipment]],1)+1,FIND(\"/U \",ProjectInfoTable[[#This Row],[Proposed Equipment]],1)-FIND(\"$\",ProjectInfoTable[[#This Row],[Proposed Equipment]],1)-1)*ProjectInfoTable[[#This Row],[Lamps (Proposed)]]*ProjectInfoTable[[#This Row],[Quantity (Proposed)]],0),\nIFERROR(ProjectInfoTable[[#This Row],[Fixture Measure kWh/yr Savings (Stipulated)]]/SUM(ProjectInfoTable[Total   kWh/yr Savings (Stipulated)])*ProjectCost_Total,\"\")))),\"\")","v":""},{"$f":"IFERROR(IF(ProjectInfoTable[[#This Row],[Fixture Measure kWh/yr Savings (Stipulated)]]=0,0,IF(ProjectType=\"Retrofit\",IF(OR(ISNUMBER(FIND(\"Midstream\",ProjectInfoTable[[#This Row],[Fixture Measure]])),ISNUMBER(FIND(\"SBDI\",ProjectInfoTable[[#This Row],[Fixture Measure]])),ISNUMBER(FIND(\"Small Bu\",ProjectInfoTable[[#This Row],[Fixture Measure]]))),ProjectInfoTable[[#This Row],[Measure Cost (Direct)]],IFERROR(ProjectInfoTable[[#This Row],[Fixture Measure kWh/yr Savings (Stipulated)]]/kWhSavings_Typical_Stipulated*(ProjectCost_Total-SUM(ProjectInfoTable[Measure Cost (Direct)])),\"\")),IF(ProjectInfoTable[[#This Row],[Proposed Equipment]]=\"\",\"\",IFERROR(SpaceTypesInfo_Table[[#Totals],[NCMR Int Cost]]*ProjectInfoTable[[#This Row],[Fixture Measure kWh/yr Savings (Stipulated)]]/SUMIFS(ProjectInfoTable[Total   kWh/yr Savings (Stipulated)],ProjectInfoTable[Proposed Equipment],\"*Interior*\"),0)))),\"\")","v":""},{"$f":"IFERROR(\n IF(\n  ProjectInfoTable[[#This Row],[Control Measure kWh/yr Savings (Stipulated)]]=0,\n  0,\n  IF(\n   ProjectType=\"Retrofit\",\n    IFERROR(\n     ProjectInfoTable[[#This Row],[Control Measure kWh/yr Savings (Stipulated)]]\n     /\n     SUMIFS(ProjectInfoTable[Control Measure kWh/yr Savings (Stipulated)],ProjectInfoTable[Control Measure],\"<>\"\"\")\n     *\n     (ProjectCost_Total-SUM(ProjectInfoTable[Fixture Cost (Allocated)])),\n     \"\"\n    ),\nROUND(\n    IF(\n     ProjectInfoTable[[#This Row],[Proposed Equipment]]=\"\",\n     \"\",\n     IFERROR(\n      SpaceTypesInfo_Table[[#Totals],[NCMR Int Cost]]\n      *\n      ProjectInfoTable[[#This Row],[Control Measure kWh/yr Savings (Stipulated)]]\n      /\n      SUMIFS(ProjectInfoTable[Total   kWh/yr Savings (Stipulated)],ProjectInfoTable[Proposed Equipment],\"*Interior*\"),\n      0\n     )\n    ),\n    2\n   )\n  )\n ),\n \"\"\n)","v":""},{"$f":"IF(AND(ProjectInfoTable[[#This Row],[Fixture Cost (Allocated)]]=\"\",ProjectInfoTable[[#This Row],[Control Cost (Allocated)]]=\"\"),\"\",SUM(ProjectInfoTable[[#This Row],[Fixture Cost (Allocated)]:[Control Cost (Allocated)]]))","v":""},{"$f":"IFERROR(IF(OR(ProjectInfoTable[[#This Row],[Proposed Equipment]]=\"\",ProjectInfoTable[[#This Row],[Quantity (Proposed)]]=\"\"),\"\",IF(OR(ProjectInfoTable[[#This Row],[Measure Selection]]=\"\",ProjectInfoTable[[#This Row],[Control kWh (Proposed)]]=\"Controls Only\"),0,IF(NOT(ISNUMBER(FIND(\"Retrofit\",ProjectType,1))),ProjectInfoTable[[#This Row],[Fixture Energy Cost Savings (Stipulated)]],IF(AND(ProjectInfoTable[[#This Row],[Fixture Measure]]=\"\",ProjectInfoTable[[#This Row],[Control Measure]]<>\"\"),0,ROUND((ProjectInfoTable[[#This Row],[Total Energy Costs (Existing, Actual)]]-ProjectInfoTable[[#This Row],[Total Energy Costs (Proposed)]]),2))))),\"\")","v":""},{"$f":"IFERROR(IF(OR(ProjectInfoTable[[#This Row],[Proposed Equipment]]=\"\",ProjectInfoTable[[#This Row],[Quantity (Proposed)]]=\"\"),\"\",\n\nIF(ProjectInfoTable[[#This Row],[Control kWh (Proposed)]]=\"Controls Only\",ProjectInfoTable[[#This Row],[Control Measure kWh/yr Savings (Actual)]]*INDEX(INDIRECT(\"RateSchedules_\"&ProjectState&\"_Table[kWh Rate]\"),\nMATCH(RateSchedule,INDIRECT(\"RateSchedules_\"&ProjectState&\"_Table[Rate Schedule]\"),0)),\n\nIF(NOT(ISNUMBER(FIND(\"Retrofit\",ProjectType,1))),ProjectInfoTable[[#This Row],[Control Energy Cost Savings (Stipulated)]],IF(AND(ProjectInfoTable[[#This Row],[Fixture Measure]]=\"\",ProjectInfoTable[[#This Row],[Control Measure]]<>\"\"),ROUND((ProjectInfoTable[[#This Row],[Total Energy Costs (Existing, Actual)]]-ProjectInfoTable[[#This Row],[Total Energy Costs (Proposed)]]),2),ROUND((ProjectInfoTable[[#This Row],[Total Energy Costs (Existing, Actual)]]-ProjectInfoTable[[#This Row],[Total Energy Costs (Proposed)]]),2)*(ProjectInfoTable[[#This Row],[Control Measure kWh/yr Savings (Actual)]]/ProjectInfoTable[[#This Row],[Total   kWh/yr Savings (Actual)]]))))),\"\")","v":""},{"$f":"IF(OR(ProjectInfoTable[[#This Row],[Proposed Equipment]]=\"\",ProjectInfoTable[[#This Row],[Quantity (Proposed)]]=\"\"),\"\",ROUND(ProjectInfoTable[[#This Row],[Fixture Energy Cost Savings (Actual)]]+ProjectInfoTable[[#This Row],[Control Energy Cost Savings (Actual)]],2))","v":""},{"$f":"IF(OR(ProjectInfoTable[[#This Row],[Proposed Equipment]]=\"\",ProjectInfoTable[[#This Row],[Quantity (Proposed)]]=\"\"),\"\",IF(OR(ISNUMBER(VALUE(ProjectInfoTable[[#This Row],[kWh Per Unit]])),ISNUMBER(VALUE(ProjectInfoTable[[#This Row],[kW Per Unit]]))),IFERROR(ProjectInfoTable[[#This Row],[Fixture Measure kWh/yr Savings (Stipulated)]]*INDEX(INDIRECT(\"RateSchedules_\"&ProjectState&\"_Table[kWh Rate]\"),MATCH(RateSchedule,INDIRECT(\"RateSchedules_\"&ProjectState&\"_Table[Rate Schedule]\"),0)),0)+IFERROR(ProjectInfoTable[[#This Row],[kW Demand Reduction (Stipulated)]]/1000*12*INDEX(INDIRECT(\"RateSchedules_\"&ProjectState&\"_Table[kW Rate]\"),MATCH(RateSchedule,INDIRECT(\"RateSchedules_\"&ProjectState&\"_Table[Rate Schedule]\"),0)),0),IFERROR(ROUND((ProjectInfoTable[[#This Row],[Total Energy Costs (Existing, Stipulated)]]-ProjectInfoTable[[#This Row],[Total Energy Costs (Proposed)]])*ProjectInfoTable[[#This Row],[Fixture Measure kWh/yr Savings (Stipulated)]]/ProjectInfoTable[[#This Row],[Total   kWh/yr Savings (Stipulated)]],2),0)))","v":""},{"$f":"IF(OR(ProjectInfoTable[[#This Row],[Proposed Equipment]]=\"\",ProjectInfoTable[[#This Row],[Quantity (Proposed)]]=\"\"),\"\",\nIF(ProjectInfoTable[[#This Row],[Control kWh (Proposed)]]=\"Controls Only\",ProjectInfoTable[[#This Row],[Control Measure kWh/yr Savings (Stipulated)]]*INDEX(INDIRECT(\"RateSchedules_\"&ProjectState&\"_Table[kWh Rate]\"),\nMATCH(RateSchedule,INDIRECT(\"RateSchedules_\"&ProjectState&\"_Table[Rate Schedule]\"),0)),IF(OR(ISNUMBER(VALUE(ProjectInfoTable[[#This Row],[Control kWh Per Unit]])),\nISNUMBER(VALUE(ProjectInfoTable[[#This Row],[Control kW Per Unit]]))),IFERROR(ProjectInfoTable[[#This Row],[Control Measure kWh/yr Savings (Stipulated)]]*INDEX(INDIRECT(\"RateSchedules_\"&ProjectState&\"_Table[kWh Rate]\"),\nMATCH(RateSchedule,INDIRECT(\"RateSchedules_\"&ProjectState&\"_Table[Rate Schedule]\"),0)),0)+IFERROR(ProjectInfoTable[[#This Row],[kW Demand Reduction (Stipulated)]]/1000*12*\nINDEX(INDIRECT(\"RateSchedules_\"&ProjectState&\"_Table[kW Rate]\"),MATCH(RateSchedule,INDIRECT(\"RateSchedules_\"&ProjectState&\"_Table[Rate Schedule]\"),0)),0),\nIFERROR(ROUND((ProjectInfoTable[[#This Row],[Total Energy Costs (Existing, Stipulated)]]-ProjectInfoTable[[#This Row],[Total Energy Costs (Proposed)]])*ProjectInfoTable[[#This Row],[Control Measure kWh/yr Savings (Stipulated)]]/\nProjectInfoTable[[#This Row],[Total   kWh/yr Savings (Stipulated)]],2),0))))","v":""},{"$f":"IF(OR(ProjectInfoTable[[#This Row],[Proposed Equipment]]=\"\",ProjectInfoTable[[#This Row],[Quantity (Proposed)]]=\"\"),\"\",ROUND(ProjectInfoTable[[#This Row],[Fixture Energy Cost Savings (Stipulated)]]+ProjectInfoTable[[#This Row],[Control Energy Cost Savings (Stipulated)]],2))","v":""},{"$f":"IF(ProjectInfoTable[[#This Row],[OpSch]]=\"\",\"\",IF(OR(ProjectInfoTable[[#This Row],[Fixture Measure]]=\"\",ProjectInfoTable[[#This Row],[Eligible Fixture Measure]]<>TRUE),0,ProjectInfoTable[[#This Row],[Fixture Incentives (pre-capping)]])+IF(OR(ProjectInfoTable[[#This Row],[Control Measure]]=\"\",ProjectInfoTable[[#This Row],[Eligible Control Measure]]<>TRUE),0,ProjectInfoTable[[#This Row],[Control Incentives (pre-capping)]]))","v":""},{"$f":"IF(OR(ProjectInfoTable[[#This Row],[Fixture Measure]]<>\"\",ProjectInfoTable[[#This Row],[Control Measure]]<>\"\"),IF(ProjectInfoTable[[#This Row],[Fixture Incentives]]=\"\",0,ProjectInfoTable[[#This Row],[Fixture Incentives]])+IF(ProjectInfoTable[[#This Row],[Control Incentives]]=\"\",0,ProjectInfoTable[[#This Row],[Control Incentives]]),\"\")","v":""},null,{"$f":"IF(OR(ProjectInfoTable[[#This Row],[Fixture Measure]]=\"\",ProjectInfoTable[[#This Row],[OpSch]]=\"\",ProjectInfoTable[[#This Row],[Eligible Fixture Measure]]<>TRUE),\"\",\nIF(OR(ISNUMBER(FIND(\"SBDI\",ProjectInfoTable[[#This Row],[Fixture Measure]])),ISNUMBER(FIND(\"Small Bu\",ProjectInfoTable[[#This Row],[Fixture Measure]]))),IFERROR(0.75*ProjectInfoTable[[#This Row],[Fixture Cost (Allocated)]],\"cost error\"),\nIF(AND(OR(ProjectType=\"New Construction\",ProjectType=\"Major Renovation\"),LPDCodeToProposed<0.1,ISNUMBER(FIND(\"Interior\",ProjectInfoTable[[#This Row],[Proposed Equipment]],1))),0,IFERROR(ProjectInfoTable[[#This Row],[Incentives Per Unit]]*ProjectInfoTable[[#This Row],[Quantity]]*ProjectInfoTable[[#This Row],[No. of TRL Units]],\"TRL Error\"))))","v":""},{"$f":"IF(\n    OR(\n        ProjectInfoTable[[#This Row],[Fixture Measure]] = \"\",\n        ProjectInfoTable[[#This Row],[OpSch]] = \"\",\n        ProjectInfoTable[[#This Row],[Eligible Fixture Measure]] <> TRUE\n    ),\n    \"\",\n    IF(\n        OR(\n            ISNUMBER(FIND(\"SBDI\", ProjectInfoTable[[#This Row],[Fixture Measure]])),\n            ISNUMBER(FIND(\"Small Bu\", ProjectInfoTable[[#This Row],[Fixture Measure]]))\n        ),\n        IFERROR(\n            (Incentive_NonTypical / Incentive_NonTypical_PreCapped) * ProjectInfoTable[[#This Row],[Fixture Incentives (pre-capping)]],\n            \"\"\n        ),\n        IF(\n            AND(\n                ProjectType = \"Retrofit\",\n                ProjectState = \"UT\",\n                ISNUMBER(FIND(\"Post-Purchase\", ProjectInfoTable[[#This Row],[Fixture Measure]], 1))\n            ),\n            IFERROR(\n                MAX(\n                    MIN(\n                        ProjectInfoTable[[#This Row],[Fixture Incentives (pre-capping)]],\n                        ProjectInfoTable[[#This Row],[Fixture Cost (Allocated)]] * 0.7\n                    ),\n                    0\n                ),\n                0\n            ),\n            IF(\n                ProjectType = \"Retrofit\",\n                IF(\n                    ISNUMBER(FIND(\"Post-Purchase\", ProjectInfoTable[[#This Row],[Fixture Measure]], 1)),\n                    ProjectInfoTable[[#This Row],[Fixture Incentives (pre-capping)]],\n                    IFERROR(\n                        $BI$3 / $BH$3 * ProjectInfoTable[[#This Row],[Fixture Incentives (pre-capping)]],\n                        \"\"\n                    )\n                ),\n                IF(\n                    ISNUMBER(FIND(\"Interior\", ProjectInfoTable[[#This Row],[Proposed Equipment]], 1)),\n                    IF(\n                        LPDCodeToProposed > 0.1,\n                        ProjectInfoTable[[#This Row],[Fixture Incentives (pre-capping)]],\n                        0\n                    ),\n                    ProjectInfoTable[[#This Row],[Fixture Incentives (pre-capping)]]\n                )\n            )\n        )\n    )\n)","v":""},{"$f":"IF(OR(ProjectInfoTable[[#This Row],[Incentives Per Unit]]=\"\",ProjectInfoTable[[#This Row],[TRL Unit]]=\"\"),\"\",IF(ProjectInfoTable[[#This Row],[Eligible Fixture Measure]]<>TRUE,\"Invalid Effective Date\",\nIF(OR(ISNUMBER(FIND(\"SBDI\",ProjectInfoTable[[#This Row],[Fixture Measure]])),ISNUMBER(FIND(\"Small Bu\",ProjectInfoTable[[#This Row],[Fixture Measure]]))),\"$0.75 / dollar cost\",\nTEXT(ProjectInfoTable[[#This Row],[Incentives Per Unit]],\"$#,##0.00\")&\" / \"&IF(ProjectInfoTable[[#This Row],[Fixture Measure]]=\"\",\"\",IF(ProjectInfoTable[[#This Row],[TRL Unit]]=\"Measure\",IF(ISNUMBER(FIND(\"Relamp\",ProjectInfoTable[[#This Row],[Proposed Equipment]],1)),\"Lamp\",\"Fixture\"),ProjectInfoTable[[#This Row],[TRL Unit]])))))","v":""},{"$f":"IF(OR(ProjectInfoTable[[#This Row],[Proposed Equipment]]=\"\",ProjectInfoTable[[#This Row],[Quantity (Proposed)]]=\"\"),\"\",IFERROR(SUBSTITUTE(IF(ProjectType=\"Retrofit\",IF(OR(ISNUMBER(FIND(\"Controls On\",ProjectInfoTable[[#This Row],[Proposed Equipment]],1))),\"\",IF(OR(ProjectInfoTable[[#This Row],[Existing Equipment]]=\"\",ProjectInfoTable[[#This Row],[Proposed Equipment]]=\"\"),\"\",IF(ProjectState=\"UT\",IFERROR(IF(AlternativeEnergyOverride=\"Yes\",IFERROR(INDEX(INDIRECT(\"EquipmentTable_\"&\"Retrofit_\"&ProjectState&\"[#All]\"),MATCH(LEFT(ProjectInfoTable[[#This Row],[Proposed Equipment]],FIND(\"[\",ProjectInfoTable[[#This Row],[Proposed Equipment]],1)-2)&\" (Alt)\",INDIRECT(\"EquipmentTable_\"&\"Retrofit_\"&ProjectState&\"[equipmentProposed]\"),0)+1,MATCH(\"measureRetrofit_\"&LEFT(ProjectInfoTable[[#This Row],[Existing Equipment]],FIND(\":\",ProjectInfoTable[[#This Row],[Existing Equipment]],1)-1)&\"_\"&IF(IFERROR(INDEX(ControlsLookup[Rank],MATCH(RIGHT(ProjectInfoTable[[#This Row],[Proposed Equipment]],LEN(ProjectInfoTable[[#This Row],[Proposed Equipment]])-FIND(\"]\",ProjectInfoTable[[#This Row],[Proposed Equipment]],1)-3),ControlsLookup[Controls],0)),0)>IFERROR(INDEX(ControlsLookup[Rank],MATCH(RIGHT(ProjectInfoTable[[#This Row],[Existing Equipment]],LEN(ProjectInfoTable[[#This Row],[Existing Equipment]])-FIND(\"]\",ProjectInfoTable[[#This Row],[Existing Equipment]],1)-3),ControlsLookup[Controls],0)),0),INDEX(ControlsLookup[Controls Type],MATCH(LEFT(ProjectInfoTable[[#This Row],[Existing Equipment]],FIND(\":\",ProjectInfoTable[[#This Row],[Existing Equipment]],1)-1)&\"_\"&RIGHT(ProjectInfoTable[[#This Row],[Proposed Equipment]],LEN(ProjectInfoTable[[#This Row],[Proposed Equipment]])-FIND(\"]\",ProjectInfoTable[[#This Row],[Proposed Equipment]],1)-3),ControlsLookup[Controls Concatenate],0)),\"None\"),INDIRECT(\"EquipmentTable_\"&\"Retrofit_\"&ProjectState&\"[#Headers]\"),0)),INDEX(INDIRECT(\"EquipmentTable_\"&IF(ProjectType=\"Retrofit\",\"Retrofit_\",\"NCMR_\")&ProjectState&\"[#All]\"),MATCH(LEFT(ProjectInfoTable[[#This Row],[Proposed Equipment]],FIND(\"[\",ProjectInfoTable[[#This Row],[Proposed Equipment]],1)-2),INDIRECT(\"EquipmentTable_\"&\"Retrofit_\"&ProjectState&\"[equipmentProposed]\"),0)+1,MATCH(\"measureRetrofit_\"&LEFT(ProjectInfoTable[[#This Row],[Existing Equipment]],FIND(\":\",ProjectInfoTable[[#This Row],[Existing Equipment]],1)-1)&\"_\"&IF(IFERROR(INDEX(ControlsLookup[Rank],MATCH(RIGHT(ProjectInfoTable[[#This Row],[Proposed Equipment]],LEN(ProjectInfoTable[[#This Row],[Proposed Equipment]])-FIND(\"]\",ProjectInfoTable[[#This Row],[Proposed Equipment]],1)-3),ControlsLookup[Controls],0)),0)>IFERROR(INDEX(ControlsLookup[Rank],MATCH(RIGHT(ProjectInfoTable[[#This Row],[Existing Equipment]],LEN(ProjectInfoTable[[#This Row],[Existing Equipment]])-FIND(\"]\",ProjectInfoTable[[#This Row],[Existing Equipment]],1)-3),ControlsLookup[Controls],0)),0),INDEX(ControlsLookup[Controls Type],MATCH(LEFT(ProjectInfoTable[[#This Row],[Existing Equipment]],FIND(\":\",ProjectInfoTable[[#This Row],[Existing Equipment]],1)-1)&\"_\"&RIGHT(ProjectInfoTable[[#This Row],[Proposed Equipment]],LEN(ProjectInfoTable[[#This Row],[Proposed Equipment]])-FIND(\"]\",ProjectInfoTable[[#This Row],[Proposed Equipment]],1)-3),ControlsLookup[Controls Concatenate],0)),\"None\"),INDIRECT(\"EquipmentTable_\"&IF(ProjectType=\"Retrofit\",\"Retrofit_\",\"NCMR_\")&ProjectState&\"[#Headers]\"),0))),INDEX(INDIRECT(\"EquipmentTable_\"&IF(ProjectType=\"Retrofit\",\"Retrofit_\",\"NCMR_\")&ProjectState&\"[#All]\"),MATCH(LEFT(ProjectInfoTable[[#This Row],[Proposed Equipment]],FIND(\"[\",ProjectInfoTable[[#This Row],[Proposed Equipment]],1)-2),INDIRECT(\"EquipmentTable_\"&IF(ProjectType=\"Retrofit\",\"Retrofit_\",\"NCMR_\")&ProjectState&\"[equipmentProposed]\"),0)+1,MATCH(\"measureRetrofit_\"&IF(AND(SBDEligible=\"Yes\",ISNUMBER(FIND(\"SBE\",ProjectInfoTable[[#This Row],[Proposed Equipment]]))),\"SBE\",LEFT(ProjectInfoTable[[#This Row],[Existing Equipment]],FIND(\":\",ProjectInfoTable[[#This Row],[Existing Equipment]],1)-1)&\"_\"&IF(IFERROR(INDEX(ControlsLookup[Rank],MATCH(RIGHT(ProjectInfoTable[[#This Row],[Proposed Equipment]],LEN(ProjectInfoTable[[#This Row],[Proposed Equipment]])-FIND(\"]\",ProjectInfoTable[[#This Row],[Proposed Equipment]],1)-3),ControlsLookup[Controls],0)),0)>IFERROR(INDEX(ControlsLookup[Rank],MATCH(RIGHT(ProjectInfoTable[[#This Row],[Existing Equipment]],LEN(ProjectInfoTable[[#This Row],[Existing Equipment]])-FIND(\"]\",ProjectInfoTable[[#This Row],[Existing Equipment]],1)-3),ControlsLookup[Controls],0)),0),INDEX(ControlsLookup[Controls Type],MATCH(LEFT(ProjectInfoTable[[#This Row],[Existing Equipment]],FIND(\":\",ProjectInfoTable[[#This Row],[Existing Equipment]],1)-1)&\"_\"&RIGHT(ProjectInfoTable[[#This Row],[Proposed Equipment]],LEN(ProjectInfoTable[[#This Row],[Proposed Equipment]])-FIND(\"]\",ProjectInfoTable[[#This Row],[Proposed Equipment]],1)-3),ControlsLookup[Controls Concatenate],0)),\"None\")),INDIRECT(\"EquipmentTable_\"&\"Retrofit_\"&ProjectState&\"[#Headers]\"),0))),\"Non-eligible fixture - Retrofit - \"&ProjectState),IFERROR(INDEX(INDIRECT(\"EquipmentTable_\"&IF(SiteSpecificOverride=\"Yes\",\"PostPurchase_\",\"Retrofit_\")&ProjectState&\"[#All]\"),MATCH(LEFT(ProjectInfoTable[[#This Row],[Proposed Equipment]],FIND(\"[\",ProjectInfoTable[[#This Row],[Proposed Equipment]],1)-2),INDIRECT(\"EquipmentTable_\"&IF(SiteSpecificOverride=\"Yes\",\"PostPurchase_\",\"Retrofit_\")&ProjectState&\"[equipmentProposed]\"),0)+1,MATCH(\"measureRetrofit_\"&IF(AND(SBDEligible=\"Yes\",ISNUMBER(FIND(\"SBE\",ProjectInfoTable[[#This Row],[Proposed Equipment]]))),\"SBE\",LEFT(ProjectInfoTable[[#This Row],[Existing Equipment]],FIND(\":\",ProjectInfoTable[[#This Row],[Existing Equipment]],1)-1)&\"_\"&IF(IFERROR(INDEX(ControlsLookup[Rank],MATCH(RIGHT(ProjectInfoTable[[#This Row],[Proposed Equipment]],LEN(ProjectInfoTable[[#This Row],[Proposed Equipment]])-FIND(\"]\",ProjectInfoTable[[#This Row],[Proposed Equipment]],1)-3),ControlsLookup[Controls],0)),0)>IFERROR(INDEX(ControlsLookup[Rank],MATCH(RIGHT(ProjectInfoTable[[#This Row],[Existing Equipment]],LEN(ProjectInfoTable[[#This Row],[Existing Equipment]])-FIND(\"]\",ProjectInfoTable[[#This Row],[Existing Equipment]],1)-3),ControlsLookup[Controls],0)),0),INDEX(ControlsLookup[Controls Type],MATCH(LEFT(ProjectInfoTable[[#This Row],[Existing Equipment]],FIND(\":\",ProjectInfoTable[[#This Row],[Existing Equipment]],1)-1)&\"_\"&RIGHT(ProjectInfoTable[[#This Row],[Proposed Equipment]],LEN(ProjectInfoTable[[#This Row],[Proposed Equipment]])-FIND(\"]\",ProjectInfoTable[[#This Row],[Proposed Equipment]],1)-3),ControlsLookup[Controls Concatenate],0)),\"None\")),INDIRECT(\"EquipmentTable_\"&IF(SiteSpecificOverride=\"Yes\",\"PostPurchase_\",\"Retrofit_\")&ProjectState&\"[#Headers]\"),0)),\"Non-eligible fixture - Retrofit - \"&ProjectState)))),IFERROR(INDEX(INDIRECT(\"EquipmentTable_\"&\"NCMR_\"&ProjectState),MATCH(RIGHT(LEFT(ProjectInfoTable[[#This Row],[Proposed Equipment]],FIND(\" (\",ProjectInfoTable[[#This Row],[Proposed Equipment]],1)-1),LEN(LEFT(ProjectInfoTable[[#This Row],[Proposed Equipment]],FIND(\" (\",ProjectInfoTable[[#This Row],[Proposed Equipment]],1)-2))-FIND(\":\",ProjectInfoTable[[#This Row],[Proposed Equipment]],1)),INDIRECT(\"EquipmentTable_\"&\"NCMR_\"&ProjectState&\"[equipmentProposed]\"),0),MATCH(\"measureNCMR_\"&LEFT(ProjectInfoTable[[#This Row],[Proposed Equipment]],FIND(\":\",ProjectInfoTable[[#This Row],[Proposed Equipment]],1)-1)&\"_\"&IF(LEN(ProjectInfoTable[[#This Row],[Proposed Equipment]])>FIND(\"]\",ProjectInfoTable[[#This Row],[Proposed Equipment]]),INDEX(ControlsLookup[Controls Type],MATCH(LEFT(ProjectInfoTable[[#This Row],[Proposed Equipment]],FIND(\":\",ProjectInfoTable[[#This Row],[Proposed Equipment]],1)-1)&\"_\"&RIGHT(ProjectInfoTable[[#This Row],[Proposed Equipment]],LEN(ProjectInfoTable[[#This Row],[Proposed Equipment]])-FIND(\"]\",ProjectInfoTable[[#This Row],[Proposed Equipment]],1)-3),ControlsLookup[Controls Concatenate],0)),\"None\"),INDIRECT(\"EquipmentTable_\"&\"NCMR_\"&ProjectState&\"[#Headers]\"),0)),\"Non-eligible fixture - NCMR - \"&ProjectState)),\"[NAMESUB]\",ProjectInfoTable[[#This Row],[Measure Name Sub]]),\"Non-eligible fixture - Retrofit - \"&ProjectState))","v":""},{"$f":"IF(ISNUMBER(SEARCH(\"Case\",ProjectInfoTable[[#This Row],[Fixture Measure]])),CONCATENATE(ProjectInfoTable[[#This Row],[Fixture Measure]],ProjectInfoTable[[#This Row],[No. of TRL Units]],ProjectInfoTable[[#This Row],[Quantity]]),\"\")","v":""},{"$f":"IF(ProjectInfoTable[[#This Row],[Proposed Equipment]]=\"\",\"\",\nIF(AND(ProjectState = \"UT\",ISNUMBER(FIND(\" TLED \",ProjectInfoTable[[#This Row],[Proposed Equipment]]))),\nIF(VALUE(ProjectInfoTable[[#This Row],[Lamp W (Proposed)]])<20,\"< 20 W\",\nIF(AND(VALUE(ProjectInfoTable[[#This Row],[Lamp W (Proposed)]])<=39,VALUE(ProjectInfoTable[[#This Row],[Lamp W (Proposed)]])>=20),\">= 20 W and <= 39 W\",)),\n\nIF(AND(ProjectType=\"Retrofit\",OR(ISNUMBER(FIND(\"Retrofit Kit\",ProjectInfoTable[[#This Row],[Proposed Equipment]])),ISNUMBER(FIND(\"Fixture\",ProjectInfoTable[[#This Row],[Proposed Equipment]]))),OR(ISNUMBER(FIND(\"Exterior\",ProjectInfoTable[[#This Row],[Existing Equipment]])),ISNUMBER(FIND(\"Street\",ProjectInfoTable[[#This Row],[Existing Equipment]])))),\nIF(ProjectInfoTable[[#This Row],[Fixture W (Proposed)]]<50,\"< 50 W\",\nIF(AND(ProjectInfoTable[[#This Row],[Fixture W (Proposed)]]<90,ProjectInfoTable[[#This Row],[Fixture W (Proposed)]]>=50),\">= 50 W and < 90 W\",\nIF(AND(ProjectInfoTable[[#This Row],[Fixture W (Proposed)]]<135,ProjectInfoTable[[#This Row],[Fixture W (Proposed)]]>=90),\">= 90 W and < 135 W\",\nIF(AND(ProjectInfoTable[[#This Row],[Fixture W (Proposed)]]<220,ProjectInfoTable[[#This Row],[Fixture W (Proposed)]]>=135),\">= 135 W and < 220 W\",\nIF(ProjectInfoTable[[#This Row],[Fixture W (Proposed)]]>=220,\">= 220 W\"))))),\"\")))","v":""},{"$f":"IFERROR(INDEX(INDIRECT(\"MeasureTable_\" & ProjectState & \"[Measure Reference Number]\"),MATCH(ProjectInfoTable[[#This Row],[Fixture Measure]],INDIRECT(\"MeasureTable_\" &ProjectState&\"[Measure Name]\"),0)),\"\")","v":""},{"$f":"IFERROR(\n    _xlfn.LET(\n        _xlpm.filteredVersions,\n            _xlfn._xlws.FILTER(\n                INDIRECT(\"MeasureTable_\" & ProjectState & \"[Version Number]\"),\n                (INDIRECT(\"MeasureTable_\" & ProjectState & \"[Measure Reference Number]\") = ProjectInfoTable[[#This Row],[Fixture Measure Reference Number]]) *\n                (INDIRECT(\"MeasureTable_\" & ProjectState & \"[Eligible Measure]\") = TRUE)\n            ),\n        INDEX(_xlpm.filteredVersions, 1)\n    ),\n    \"\"\n)","v":""},{"$f":"IFERROR(\n  _xlfn.LET(\n    _xlpm.refRange, INDIRECT(\"MeasureTable_\" & ProjectState & \"[Measure Reference Number]\"),\n    _xlpm.eligibleRange, INDIRECT(\"MeasureTable_\" & ProjectState & \"[Eligible Measure]\"),\n    _xlpm.countTrue, SUMPRODUCT(--(_xlpm.refRange = ProjectInfoTable[[#This Row],[Fixture Measure Reference Number]]), --(_xlpm.eligibleRange = TRUE)),\n    _xlpm.countNonBlank, SUMPRODUCT(--(_xlpm.refRange = ProjectInfoTable[[#This Row],[Fixture Measure Reference Number]]), --(_xlpm.eligibleRange <> \"\")),\n    IF(_xlpm.countNonBlank = 0, \"\", IF(_xlpm.countTrue >= 1, TRUE, FALSE))\n  ),\n  \"\"\n)","v":""},{"$f":"IFERROR(VALUE(INDEX(INDIRECT(\"MeasureTable_\" & ProjectState & \"[CustomerIncentiveDollarperunit]\"),MATCH(ProjectInfoTable[[#This Row],[Fixture Measure]]&\" | TRUE\",INDIRECT(\"MeasureTable_\" &ProjectState&\"[MeasureEligibleConcatenate]\"),0))),\"\")","v":""},{"$f":"IFERROR(INDEX(INDIRECT(\"MeasureTable_\"&ProjectState&\"[SiteSpecificCalculation]\"),MATCH(ProjectInfoTable[[#This Row],[Fixture Measure]]&\" | TRUE\",INDIRECT(\"MeasureTable_\" &ProjectState&\"[MeasureEligibleConcatenate]\"),0)),\"\")","v":""},{"$f":"IFERROR(INDEX(INDIRECT(\"MeasureTable_\"&ProjectState&\"[GrossIncrementalAnnualElectricSavings]\"),MATCH(ProjectInfoTable[[#This Row],[Fixture Measure]]&\" | TRUE\",INDIRECT(\"MeasureTable_\" &ProjectState&\"[MeasureEligibleConcatenate]\"),0)),\"\")","v":""},{"$f":"IFERROR(INDEX(INDIRECT(\"MeasureTable_\"&ProjectState&\"[GrossAverageMonthlyDemandReduction]\"),MATCH(ProjectInfoTable[[#This Row],[Fixture Measure]]&\" | TRUE\",INDIRECT(\"MeasureTable_\" &ProjectState&\"[MeasureEligibleConcatenate]\"),0)),\"\")","v":""},{"$f":"IF(ProjectInfoTable[[#This Row],[Fixture Measure]]=\"\",\"\",IF(NOT(ISNUMBER(FIND(\"Site-Specific - Downstream\",ProjectInfoTable[[#This Row],[Fixture Measure]]))),\"\",\nIF(ISNUMBER(MATCH(SUBSTITUTE(ProjectInfoTable[[#This Row],[Fixture Measure]],\"Site-Specific - Downstream - v2\",\"Mid Market\"),INDIRECT(\"MeasureTable_\"&ProjectState&\"[Measure Name]\"),0)),\nSUBSTITUTE(ProjectInfoTable[[#This Row],[Fixture Measure]],\"Site-Specific - Downstream - v2\",\"Mid Market\"),\nSUBSTITUTE(ProjectInfoTable[[#This Row],[Fixture Measure]],\"Site-Specific - Downstream\",\"Mid Market\"))\n))","v":""},{"$f":"IF(ProjectInfoTable[[#This Row],[Midstream Measure Name]]=\"\",\"\",IFERROR(INDEX(INDIRECT(\"MeasureTable_\"&ProjectState&\"[GrossIncrementalAnnualElectricSavings ]\"),MATCH(ProjectInfoTable[[#This Row],[Midstream Measure Name]]&\" | TRUE\",INDIRECT(\"MeasureTable_\" &ProjectState&\"[MeasureEligibleConcatenate]\"),0)),\"\"))","v":""},{"$f":"IF(ProjectInfoTable[[#This Row],[Midstream Measure Name]]=\"\",\"\",IFERROR(INDEX(INDIRECT(\"MeasureTable_\"&ProjectState&\"[GrossAverage onthly emand eduction]\"),MATCH(ProjectInfoTable[[#This Row],[Midstream Measure Name]]&\" | TRUE\",INDIRECT(\"MeasureTable_\" &ProjectState&\"[MeasureEligibleConcatenate]\"),0)),\"\"))","v":""},{"$f":"IFERROR(INDEX(INDIRECT(\"MeasureTable_\"&ProjectState&\"[IncrementalMeasureCost]\"),MATCH(ProjectInfoTable[[#This Row],[Fixture Measure]]&\" | TRUE\",INDIRECT(\"MeasureTable_\" &ProjectState&\"[MeasureEligibleConcatenate]\"),0)),\"\")","v":""},{"$f":"IF(ProjectInfoTable[[#This Row],[Fixture Measure]]=\"\",\"\",IF(AND(ProjectState=\"UT\",ProjectInfoTable[[#This Row],[Measure Selection]]=\"\"),0,\nIF(OR(ISNUMBER(FIND(\"SBDI\",ProjectInfoTable[[#This Row],[Fixture Measure]])),ISNUMBER(FIND(\"Small Bu\",ProjectInfoTable[[#This Row],[Fixture Measure]]))),ProjectInfoTable[[#This Row],[Quantity (Proposed)]]*ProjectInfoTable[[#This Row],[Lamps (Proposed)]],\nIF(OR(ProjectInfoTable[[#This Row],[TRL Unit]]=\"Measure\",ProjectInfoTable[[#This Row],[TRL Unit]]=\"Linear ft.\"),IF(OR(ISNUMBER(FIND(\"Lamp\",ProjectInfoTable[[#This Row],[Fixture Measure]],1)),ISNUMBER(FIND(\"Relamp\",ProjectInfoTable[[#This Row],[Fixture Measure]],1)),ISNUMBER(FIND(\"Relamp\",ProjectInfoTable[[#This Row],[Proposed Equipment]],1))),ProjectInfoTable[[#This Row],[Quantity (Proposed)]]*ProjectInfoTable[[#This Row],[Lamps (Proposed)]],ProjectInfoTable[[#This Row],[Quantity (Proposed)]]),1))))","v":""},{"$f":"IF(ProjectInfoTable[[#This Row],[Fixture Measure]]=\"\",\"\",IF(AND(ProjectState=\"UT\",ProjectInfoTable[[#This Row],[Measure Selection]]=\"\"),0,\nIF(OR(ISNUMBER(FIND(\"SBDI\",ProjectInfoTable[[#This Row],[Fixture Measure]])),ISNUMBER(FIND(\"Small Bu\",ProjectInfoTable[[#This Row],[Fixture Measure]]))),1,\nIF(ISNUMBER(FIND(\"Controls Only\",ProjectInfoTable[[#This Row],[Proposed Equipment]],1)),IF(OR(ProjectType <> \"Retrofit\",ProjectInfoTable[[#This Row],[Space W (Proposed)]]>0),ProjectInfoTable[[#This Row],[Space W (Proposed)]],ProjectInfoTable[[#This Row],[Space W (Existing, Stipulated)]]),\nIF(TRIM(UPPER(ProjectInfoTable[[#This Row],[TRL Unit]]))=\"LINEAR FT.\",IF(OR(ISNUMBER(FIND(\"Marquee\",ProjectInfoTable[[#This Row],[Proposed Equipment]],1)),ISNUMBER(FIND(\"Cabinet\",ProjectInfoTable[[#This Row],[Proposed Equipment]],1))),VALUE(RIGHT(LEFT(ProjectInfoTable[[#This Row],[Existing Equipment]],FIND(\"LF \",ProjectInfoTable[[#This Row],[Existing Equipment]],1)-1),LEN(LEFT(ProjectInfoTable[[#This Row],[Existing Equipment]],FIND(\"LF \",ProjectInfoTable[[#This Row],[Existing Equipment]],1)-1))-FIND(\"[\",ProjectInfoTable[[#This Row],[Existing Equipment]],1))),VALUE(RIGHT(LEFT(ProjectInfoTable[[#This Row],[Proposed Equipment]],FIND(\"LF \",ProjectInfoTable[[#This Row],[Proposed Equipment]],1)-1),LEN(LEFT(ProjectInfoTable[[#This Row],[Proposed Equipment]],FIND(\"LF \",ProjectInfoTable[[#This Row],[Proposed Equipment]],1)-1))-FIND(\"[\",ProjectInfoTable[[#This Row],[Proposed Equipment]],1)))),\nIF(TRIM(UPPER(ProjectInfoTable[[#This Row],[TRL Unit]]))=\"KWH\",IF(ProjectInfoTable[[#This Row],[Fixture Measure kWh/yr Savings (Stipulated)]]=0,0,ROUND(ProjectInfoTable[[#This Row],[Fixture Measure kWh/yr Savings (Stipulated)]],2)),\nIF(TRIM(UPPER(ProjectInfoTable[[#This Row],[TRL Unit]]))=\"WATT REDUCED\",IF(ProjectInfoTable[[#This Row],[Fixture Measure kWh/yr Savings (Stipulated)]]=0,0,ROUND(ProjectInfoTable[[#This Row],[Space W (Existing, Stipulated)]]-ProjectInfoTable[[#This Row],[Space W (Proposed)]],2)),\nIF(TRIM(UPPER(ProjectInfoTable[[#This Row],[TRL Unit]]))=\"FIXTURE WATTAGE\",ProjectInfoTable[[#This Row],[Space W (Proposed)]],1))))))))","v":""},{"$f":"IFERROR(IF(OR(ISNUMBER(FIND(\"SBDI\",ProjectInfoTable[[#This Row],[Fixture Measure]])),ISNUMBER(FIND(\"Small Bu\",ProjectInfoTable[[#This Row],[Fixture Measure]]))),0,INDEX(INDIRECT(\"MeasureTable_\"&ProjectState&\"[Unit]\"),MATCH(ProjectInfoTable[[#This Row],[Fixture Measure]]&\" | TRUE\",INDIRECT(\"MeasureTable_\" &ProjectState&\"[MeasureEligibleConcatenate]\"),0))),\"\")","v":""},{"$f":"IF(ProjectInfoTable[[#This Row],[Fixture Measure]]=\"\",\"\",IF(OR(ISNUMBER(FIND(\"Lamp(s)\",ProjectInfoTable[[#This Row],[Fixture Measure]],1)),ISNUMBER(FIND(\"Relamp\",ProjectInfoTable[[#This Row],[Proposed Equipment]],1))),\"Lamp(s)\",\"Fixture(s)\"))","v":""},{"$f":"IFERROR(INDEX(INDIRECT(\"MeasureTable_\"&ProjectState&\"[ProjectCapPercent]\"),MATCH(ProjectInfoTable[[#This Row],[Fixture Measure]]&\" | TRUE\",INDIRECT(\"MeasureTable_\" &ProjectState&\"[MeasureEligibleConcatenate]\"),0)),\"\")","v":""},{"$f":"IF(OR(ProjectInfoTable[[#This Row],[Control Measure]]=\"\",ProjectInfoTable[[#This Row],[OpSch]]=\"\",ProjectInfoTable[[#This Row],[Eligible Control Measure]]<>TRUE),\"\",IF(AND(OR(ProjectType=\"New Construction\",ProjectType=\"Major Renovation\"),LPDCodeToProposed<0.1,ISNUMBER(FIND(\"Interior\",ProjectInfoTable[[#This Row],[Proposed Equipment]],1))),0,IFERROR(ProjectInfoTable[[#This Row],[Control Incentives Per Unit]]*ProjectInfoTable[[#This Row],[Control Quantity]]*ProjectInfoTable[[#This Row],[Control No. of TRL Units]],\"TRL Error\")))","v":""},{"$f":"IF(OR(ProjectInfoTable[[#This Row],[Control Measure]]=\"\",ProjectInfoTable[[#This Row],[OpSch]]=\"\",ProjectInfoTable[[#This Row],[Eligible Control Measure]]<>TRUE),\"\",IF(AND(ProjectType=\"Retrofit\",ProjectState=\"UT\",ISNUMBER(FIND(\"Post Purchase\",ProjectInfoTable[[#This Row],[Control Measure]],1))),\n\nIFERROR(MAX(MIN(ProjectInfoTable[[#This Row],[Control Incentives (pre-capping)]],ProjectInfoTable[[#This Row],[Control Cost (Allocated)]]*0.7),0),0),\n\nIF(ProjectType=\"Retrofit\",IF(ISNUMBER(FIND(\"Post Purchase\",ProjectInfoTable[[#This Row],[Control Measure]],1)),ProjectInfoTable[[#This Row],[Control Incentives (pre-capping)]],IFERROR($BI$3/$BH$3*ProjectInfoTable[[#This Row],[Control Incentives (pre-capping)]],\"\")),\n\nIF(ISNUMBER(FIND(\"Interior\",ProjectInfoTable[[#This Row],[Proposed Equipment]],1)),IF(LPDCodeToProposed>0.1,ProjectInfoTable[[#This Row],[Control Incentives (pre-capping)]],0),ProjectInfoTable[[#This Row],[Control Incentives (pre-capping)]]))))","v":""},{"$f":"IF(OR(ProjectInfoTable[[#This Row],[Control Incentives Per Unit]]=\"\",ProjectInfoTable[[#This Row],[Control TRL Unit]]=\"\"),\"\",IF(ProjectInfoTable[[#This Row],[Eligible Control Measure]]<>TRUE,\"Invalid Effective Date\",TEXT(ProjectInfoTable[[#This Row],[Control Incentives Per Unit]],\"$#,##0.00\")&\" / \"&ProjectInfoTable[[#This Row],[Control TRL Unit]]))","v":""},{"$f":"IF(ISNUMBER(FIND(\"SBE\",ProjectInfoTable[[#This Row],[Proposed Equipment]])),\"\",\n\nIF(LEN(ProjectInfoTable[[#This Row],[Proposed Equipment]])>\n\nIFERROR(FIND(\"]\",ProjectInfoTable[[#This Row],[Proposed Equipment]],1),0),\nSUBSTITUTE(\nIF(OR(ProjectInfoTable[[#This Row],[Control Method]]=\"separate\",ISNUMBER(FIND(\"Midstream\",ProjectInfoTable[[#This Row],[Fixture Measure]],1)),ISNUMBER(FIND(\"Midstream\",ProjectInfoTable[[#This Row],[Equipment Category]],1)),ISNUMBER(FIND(\"Prescriptive\",ProjectInfoTable[[#This Row],[Equipment Category]],1)),ISNUMBER(FIND(\"LED\",ProjectInfoTable[[#This Row],[Fixture Measure]],1)),ISNUMBER(FIND(\"LED Case\",ProjectInfoTable[[#This Row],[Fixture Measure]],1)),ISNUMBER(FIND(\"LED Decorative - Retrofit - WA\",ProjectInfoTable[[#This Row],[Fixture Measure]],1)),ISNUMBER(FIND(\"Lamp\",ProjectInfoTable[[#This Row],[Fixture Measure]],1)),ISNUMBER(FIND(\"Relamp\",ProjectInfoTable[[#This Row],[Fixture Measure]],1)),ISNUMBER(FIND(\"Wall Pack\",ProjectInfoTable[[#This Row],[Fixture Measure]],1)),ISNUMBER(FIND(\"Controls Only\",ProjectInfoTable[[#This Row],[Proposed Equipment]],1)),ISNUMBER(FIND(\"Re-Commissioning\",ProjectInfoTable[[#This Row],[Proposed Equipment]],1)),\n\nAND(OR(ISNUMBER(FIND(\"Exterior:\",ProjectInfoTable[[#This Row],[Proposed Equipment]],1)),ISNUMBER(FIND(\"Street:\",ProjectInfoTable[[#This Row],[Proposed Equipment]],1))),OR(ProjectState=\"ID\",ProjectState=\"UT\",ProjectState=\"WY\"))),\n\nIF(IFERROR(INDEX(ControlsLookup[],MATCH(IF(ProjectType=\"Retrofit\",LEFT(ProjectInfoTable[[#This Row],[Existing Equipment]],FIND(\":\",ProjectInfoTable[[#This Row],[Existing Equipment]],1)-1),LEFT(ProjectInfoTable[[#This Row],[Proposed Equipment]],FIND(\":\",ProjectInfoTable[[#This Row],[Proposed Equipment]],1)-1))&\"_\"&RIGHT(ProjectInfoTable[[#This Row],[Proposed Equipment]],LEN(ProjectInfoTable[[#This Row],[Proposed Equipment]])-FIND(\"]\",ProjectInfoTable[[#This Row],[Proposed Equipment]],1)-3),ControlsLookup[Controls Concatenate],0),MATCH(\n\nIF(ProjectType=\"Retrofit\",\"ControlMeasure_\",\"NCMRControlMeasure_\")&ProjectState,ControlsLookup[#Headers],0)),\"\")=0,\"\",\n\nIFERROR(INDEX(ControlsLookup[],MATCH(IF(ProjectType=\"Retrofit\",LEFT(ProjectInfoTable[[#This Row],[Existing Equipment]],FIND(\":\",ProjectInfoTable[[#This Row],[Existing Equipment]],1)-1),LEFT(ProjectInfoTable[[#This Row],[Proposed Equipment]],FIND(\":\",ProjectInfoTable[[#This Row],[Proposed Equipment]],1)-1))&\"_\"&RIGHT(ProjectInfoTable[[#This Row],[Proposed Equipment]],LEN(ProjectInfoTable[[#This Row],[Proposed Equipment]])-FIND(\"]\",ProjectInfoTable[[#This Row],[Proposed Equipment]],1)-3),ControlsLookup[Controls Concatenate],0),MATCH(\n\nIF(ProjectType=\"Retrofit\",\"ControlMeasure_\",\"NCMRControlMeasure_\")&ProjectState&IF(ProjectState=\"UT\",SegmentTag,\"\"),ControlsLookup[#Headers],0)),\"\")),\"\"),\"[NAMESUB]\",ProjectInfoTable[[#This Row],[Control Measure Name Sub]]),\"\"))","v":""},{"$f":"IF(ProjectInfoTable[[#This Row],[Proposed Equipment]]=\"\",\"\",IF(AND(ProjectState=\"UT\",ProjectType=\"Retrofit\",ISNUMBER(FIND(\"Re-Commissioning\",ProjectInfoTable[[#This Row],[Proposed Equipment]]))),\nIF(ProjectRecommissioning=\"only recommissioning\",\"Commissioning Only\",\"Commissioning w/ Lighting Upgrade\"),\"\"))","v":""},{"$f":"IFERROR(INDEX(INDIRECT(\"MeasureTable_\" & ProjectState & \"[Measure Reference Number]\"),MATCH(ProjectInfoTable[[#This Row],[Control Measure]],INDIRECT(\"MeasureTable_\" &ProjectState&\"[Measure Name]\"),0)),\"\")","v":""},{"$f":"IFERROR(\n    _xlfn.LET(\n        _xlpm.filteredVersions,\n            _xlfn._xlws.FILTER(\n                INDIRECT(\"MeasureTable_\" & ProjectState & \"[Version Number]\"),\n                (INDIRECT(\"MeasureTable_\" & ProjectState & \"[Measure Reference Number]\") = ProjectInfoTable[[#This Row],[Control Measure Reference Number]]) *\n                (INDIRECT(\"MeasureTable_\" & ProjectState & \"[Eligible Measure]\") = TRUE)\n            ),\n        INDEX(_xlpm.filteredVersions, 1)\n    ),\n    \"\"\n)","v":""},{"$f":"IFERROR(\n  _xlfn.LET(\n    _xlpm.refRange, INDIRECT(\"MeasureTable_\" & ProjectState & \"[Measure Reference Number]\"),\n    _xlpm.eligibleRange, INDIRECT(\"MeasureTable_\" & ProjectState & \"[Eligible Measure]\"),\n    _xlpm.countTrue, SUMPRODUCT(--(_xlpm.refRange = ProjectInfoTable[[#This Row],[Control Measure Reference Number]]), --(_xlpm.eligibleRange = TRUE)),\n    _xlpm.countNonBlank, SUMPRODUCT(--(_xlpm.refRange = ProjectInfoTable[[#This Row],[Control Measure Reference Number]]), --(_xlpm.eligibleRange <> \"\")),\n    IF(_xlpm.countNonBlank = 0, \"\", IF(_xlpm.countTrue >= 1, TRUE, FALSE))\n  ),\n  \"\"\n)","v":""},{"$f":"IF(ProjectInfoTable[[#This Row],[Proposed Equipment]]=\"\",\"\",IFERROR(INDEX(INDIRECT(\"EquipmentTable_\"&IF(ProjectType=\"Retrofit\",\"Retrofit_\",\"NCMR_\")&ProjectState&\"[controlMethod]\"),MATCH(LEFT(ProjectInfoTable[[#This Row],[Proposed Equipment]],FIND(\"[\",ProjectInfoTable[[#This Row],[Proposed Equipment]],1)-2),INDIRECT(\"EquipmentTable_\"&IF(ProjectType=\"Retrofit\",\"Retrofit_\",\"NCMR_\")&ProjectState&\"[equipmentProposed]\"),0)),\"\"))","v":""},{"$f":"IFERROR(VALUE(INDEX(INDIRECT(\"MeasureTable_\" & ProjectState & \"[CustomerIncentiveDollarperunit]\"),MATCH(ProjectInfoTable[[#This Row],[Control Measure]]&\" | TRUE\",INDIRECT(\"MeasureTable_\"&ProjectState&\"[MeasureEligibleConcatenate]\"),0))),\"\")","v":""},{"$f":"IFERROR(INDEX(INDIRECT(\"MeasureTable_\"&ProjectState&\"[SiteSpecificCalculation]\"),MATCH(ProjectInfoTable[[#This Row],[Control Measure]]&\" | TRUE\",INDIRECT(\"MeasureTable_\"&ProjectState&\"[MeasureEligibleConcatenate]\"),0)),\"\")","v":""},{"$f":"IFERROR(INDEX(INDIRECT(\"MeasureTable_\"&ProjectState&\"[GrossIncrementalAnnualElectricSavings ]\"),MATCH(ProjectInfoTable[[#This Row],[Control Measure]]&\" | TRUE\",INDIRECT(\"MeasureTable_\"&ProjectState&\"[MeasureEligibleConcatenate]\"),0)),\"\")","v":""},{"$f":"IFERROR(INDEX(INDIRECT(\"MeasureTable_\"&ProjectState&\"[GrossAverage onthly emand eduction]\"),MATCH(ProjectInfoTable[[#This Row],[Control Measure]]&\" | TRUE\",INDIRECT(\"MeasureTable_\"&ProjectState&\"[MeasureEligibleConcatenate]\"),0)),\"\")","v":""},{"$f":"IFERROR(INDEX(INDIRECT(\"MeasureTable_\"&ProjectState&\"[IncrementalMeasureCost]\"),MATCH(ProjectInfoTable[[#This Row],[Control Measure]]&\" | TRUE\",INDIRECT(\"MeasureTable_\"&ProjectState&\"[MeasureEligibleConcatenate]\"),0)),\"\")","v":""},{"$f":"IF(ProjectInfoTable[[#This Row],[Control Measure]]=\"\",\"\",IF(OR(ProjectInfoTable[[#This Row],[Control TRL Unit]]=\"Measure\",ProjectInfoTable[[#This Row],[Control TRL Unit]]=\"Linear ft.\"),IF(OR(ISNUMBER(FIND(\"Midstream\",ProjectInfoTable[[#This Row],[Control Measure]],1)),ISNUMBER(FIND(\"Lamp\",ProjectInfoTable[[#This Row],[Control Measure]],1))),ProjectInfoTable[[#This Row],[Quantity (Proposed)]]*ProjectInfoTable[[#This Row],[Lamps (Proposed)]],ProjectInfoTable[[#This Row],[Quantity (Proposed)]]),1))","v":""},{"$f":"IF(ProjectInfoTable[[#This Row],[Control Measure]]=\"\",\"\",IF(ISNUMBER(FIND(\"LF \",ProjectInfoTable[[#This Row],[Proposed Equipment]],1)),VALUE(RIGHT(LEFT(ProjectInfoTable[[#This Row],[Proposed Equipment]],FIND(\"LF \",ProjectInfoTable[[#This Row],[Proposed Equipment]],1)-1),LEN(LEFT(ProjectInfoTable[[#This Row],[Proposed Equipment]],FIND(\"LF \",ProjectInfoTable[[#This Row],[Proposed Equipment]],1)-1))-FIND(\"[\",ProjectInfoTable[[#This Row],[Proposed Equipment]],1))),IF(TRIM(UPPER(ProjectInfoTable[[#This Row],[Control TRL Unit]]))=\"WATT CONTROLLED\",IF(ISNUMBER(FIND(\"Controls Only\",ProjectInfoTable[[#This Row],[Proposed Equipment]],1)),IF(OR(ProjectType <> \"Retrofit\",ProjectInfoTable[[#This Row],[Space W (Proposed)]]>0),ProjectInfoTable[[#This Row],[Space W (Proposed)]],ProjectInfoTable[[#This Row],[Space W (Existing, Stipulated)]]),ProjectInfoTable[[#This Row],[Space W (Proposed)]]),IF(TRIM(UPPER(ProjectInfoTable[[#This Row],[Control TRL Unit]]))=\"KWH\",IF(ProjectInfoTable[[#This Row],[Control Measure kWh/yr Savings (Stipulated)]]=0,0,ROUND(ProjectInfoTable[[#This Row],[Control Measure kWh/yr Savings (Stipulated)]],2)),1))))","v":""},{"$f":"IFERROR(IF(LEN(ProjectInfoTable[[#This Row],[Proposed Equipment]])-(FIND(\"]\",ProjectInfoTable[[#This Row],[Proposed Equipment]],1))>0,\"Control(s)\",\"\"),\"\")","v":""},{"$f":"IFERROR(INDEX(INDIRECT(\"MeasureTable_\"&ProjectState&\"[Unit]\"),MATCH(ProjectInfoTable[[#This Row],[Control Measure]]&\" | TRUE\",INDIRECT(\"MeasureTable_\"&ProjectState&\"[MeasureEligibleConcatenate]\"),0)),\"\")","v":""},{"$f":"IFERROR(INDEX(INDIRECT(\"MeasureTable_\"&ProjectState&\"[ProjectCapPercent]\"),MATCH(ProjectInfoTable[[#This Row],[Control Measure]]&\" | TRUE\",INDIRECT(\"MeasureTable_\"&ProjectState&\"[MeasureEligibleConcatenate]\"),0)),\"\")","v":""},{"$f":"IF(OR(ProjectInfoTable[[#This Row],[Fixture Measure]]<>\"\",ProjectInfoTable[[#This Row],[Control Measure]]<>\"\"),1,\"\")","v":""},{"$f":"IF(ProjectInfoTable[[#This Row],[TRL Unit]]=\"\",\"\",IF(OR(ISNUMBER(SEARCH(\"measure\",ProjectInfoTable[[#This Row],[TRL Unit]])),ISNUMBER(SEARCH(\"linear ft\",ProjectInfoTable[[#This Row],[TRL Unit]])),ProjectInfoTable[[#This Row],[TRL Unit]]=0),990,991))","v":""},{"$f":"IFERROR(SUBSTITUTE(LEFT(ProjectInfoTable[[#This Row],[Proposed Equipment]],FIND(\"]\",ProjectInfoTable[[#This Row],[Proposed Equipment]],1)),\"Controls Only []\",\"\",1),\"\")","v":""},{"$f":"IF(ProjectInfoTable[[#This Row],[FixturesOnly]]=\"\",\"\",IF(ISNUMBER(FIND(\"L \",ProjectInfoTable[[#This Row],[Proposed Equipment]],1)),ProjectInfoTable[[#This Row],[Quantity (Proposed)]]*ProjectInfoTable[[#This Row],[Lamps (Proposed)]],ProjectInfoTable[[#This Row],[Quantity (Proposed)]]))","v":""},{"$f":"IFERROR(INDEX(ControlsLookup[Full Description],MATCH(RIGHT(ProjectInfoTable[[#This Row],[Proposed Equipment]],LEN(ProjectInfoTable[[#This Row],[Proposed Equipment]])-FIND(\"]\",ProjectInfoTable[[#This Row],[Proposed Equipment]],1)-3),ControlsLookup[Controls],0)),\"\")","v":""},{"$f":"IF(ProjectInfoTable[[#This Row],[ControlsOnly]]=\"\",\"\",IF(OR(ISNUMBER(FIND(\"Net\",ProjectInfoTable[[#This Row],[Proposed Equipment]],1)),ISNUMBER(FIND(\"Int\",ProjectInfoTable[[#This Row],[Proposed Equipment]],1))),ProjectInfoTable[[#This Row],[Quantity (Proposed)]],1))","v":""}]

{"sheet":"Processing","index":3,"n_rows":65,"n_cols":28,"rows_kept":65,"cut":false,"hidden":true,"merged":[[25,21,26,27],[20,21,21,27],[15,21,16,27],[0,1,1,1],[35,13,35,14],[15,12,16,18],[20,12,21,18],[25,12,26,18],[33,13,33,14],[34,13,34,14],[2,16,3,18],[7,16,8,17],[7,18,8,18],[4,16,4,17],[5,16,5,17],[6,16,6,17]]}
[null,{"$f":"IF(COUNTA(B49:B65)>0,\"Don't forget the Controls Measures (scroll down)\",\"\")","v":""}]
[]
[null,"Measure Summary","Measure\nCount","Number of TRL Units","Quantity","Total\nIncentives","Total\nkWh/yr Savings\n(Stipulated)","Total\nkW Reduction\n(Stipulated)","Total Cost\n(Allocated)","Total\nEnergy Cost Savings\n(Stipulated)",null,null,"Inc. / Cost","SPB w/ Inc.",null,null,"Information for Lighting Projects (Typical Only)"]
[]
[null,"Fixtures - Typical",{"$f":"COUNTA(B16:B47)-IF(ProgramMeasureType=\"\",0,COUNTIFS(B16:B47,ProgramMeasureType))","v":0},null,null,{"$f":"SUM(F16:F47)-SUMIFS(F16:F47,$B$16:$B$47,ProgramMeasureType)","v":0},{"$f":"SUM(G16:G47)-SUMIFS(G16:G47,$B$16:$B$47,ProgramMeasureType)","v":0},{"$f":"SUM(H16:H47)-SUMIFS(H16:H47,$B$16:$B$47,ProgramMeasureType)","v":0},{"$f":"SUM(I16:I47)-SUMIFS(I16:I47,$B$16:$B$47,ProgramMeasureType)","v":0},{"$f":"SUM(J16:J47)-SUMIFS(J16:J47,$B$16:$B$47,ProgramMeasureType)","v":0},null,null,{"$f":"IFERROR(Processing_Typical_IncentivesTotal/Processing_Typical_CostsTotal,0)","v":0},{"$f":"IFERROR((Processing_Typical_CostsTotal-Processing_Typical_IncentivesTotal)/Processing_Typical_CostSavingsTotal,0)","v":0},{"$f":"B5","v":"Fixtures - Typical"},null,"Code LPD",null,{"$f":"LPD_Code","v":"0.00"}]
[null,"Controls - Typical",{"$f":"COUNTA(B49:B65)","v":0},null,null,{"$f":"SUM(F49:F65)-SUMIFS(F49:F65,$B$49:$B$65,ProgramMeasureType)","v":0},{"$f":"SUM(G49:G65)-SUMIFS(G49:G65,$B$49:$B$65,ProgramMeasureType)","v":0},{"$f":"SUM(H49:H65)-SUMIFS(H49:H65,$B$49:$B$65,ProgramMeasureType)","v":0},{"$f":"SUM(I49:I65)-SUMIFS(I49:I65,$B$49:$B$65,ProgramMeasureType)","v":0},{"$f":"SUM(J49:J65)-SUMIFS(J49:J65,$B$49:$B$65,ProgramMeasureType)","v":0},null,null,{"$f":"IFERROR(Processing_Controls_IncentivesTotal/Processing_Controls_CostsTotal,0)","v":0},{"$f":"IFERROR((Processing_Controls_CostsTotal-Processing_Controls_IncentivesTotal)/Processing_Controls_CostSavingsTotal,0)","v":0},{"$f":"B6","v":"Controls - Typical"},null,"Proposed LPD",null,{"$f":"LPD_Proposed","v":0}]
[null,"Totals - Typical",{"$f":"SUM(C5:C6)","v":0},null,null,{"$f":"SUM(F5:F6)","v":0},{"$f":"SUM(G5:G6)","v":0},{"$f":"SUM(H5:H6)","v":0},{"$f":"SUM(I5:I6)","v":0},{"$f":"SUM(J5:J6)","v":0},null,null,{"$f":"IFERROR(F11/I11,0)","v":0},{"$f":"IFERROR((I7-F7)/J7,0)","v":0},{"$f":"B7","v":"Totals - Typical"},null,"% Savings",null,{"$f":"IF(ProjectType<>\"Retrofit\",\"n/a\",IFERROR(('Project Information'!N3-'Project Information'!AE3)/'Project Information'!N3,0))","v":"n/a"}]
[null,null,null,null,null,null,null,null,null,null,null,null,null,null,null,null,"% LPD Better than Code",null,{"$f":"LPDCodeToProposed","v":0}]
[null,{"$f":"IF('Project Information'!Y4=\"\",\"n/a\",IF('Project Information'!Y4=\"Small Business Enhanced\",IF(ProjectState=\"UT\",\"Project Savings - Trade Ally - Small Business Enhanced - UT\",IF(ProjectState=\"WY\",\"Project Savings - Trade Ally - Small Business Enhanced - WY\",IF(ProjectState=\"ID\",\"Project Savings - Trade Ally - Small Business Enhanced - ID\",'Project Information'!Y4))),'Project Information'!Y4))","v":"n/a"},{"$f":"IF(B9=\"n/a\",0,COUNTIFS(B16:B47,ProgramMeasureType))","v":0},{"$f":"IF(AND(OR(ISNUMBER(FIND(\"SBDI\",B9)),ISNUMBER(FIND(\"Small Business\",B9))),SUMIFS(D16:D65,$B$16:$B$65,ProgramMeasureType)>0),1,SUMIFS(D16:D65,$B$16:$B$65,ProgramMeasureType))","v":{"$error":"#DIV/0!"}},{"$f":"IF(SUMIFS(E16:E65,$B$16:$B$65,ProgramMeasureType)>0,1,0)","v":{"$error":"#DIV/0!"}},{"$f":"SUMIFS(F16:F65,$B$16:$B$65,ProgramMeasureType)","v":0},0,0,0,0,{"$f":"IF(\n  AND(\n    B9=\"Project Savings*\",\n    Processing_nonTypical_IncentivesTotal =\n      IF(\n        ProjectState=\"UT\", 4000,\n        IF(OR(ProjectState=\"ID\",ProjectState=\"WY\"), 5500, 0)\n      )\n  ),\n  \"Capped\",\n  \"\"\n)","v":""},null,{"$f":"IFERROR(F9/I9,0)","v":0},{"$f":"IFERROR((I9-F9)/J9,0)","v":0},{"$f":"B9","v":"n/a"}]
[]
[null,"Project Totals",{"$f":"SUM(C7,C9)","v":0},null,null,{"$f":"SUM(F7,F9)","v":0},{"$f":"SUM(G7,G9)","v":0},{"$f":"SUM(H7,H9)","v":0},{"$f":"SUM(I7,I9)","v":0},{"$f":"SUM(J7,J9)","v":0}]
[]
[null,"Evergreen Salesforce field names:"]
[null,"Measure Name","Measure Reference Number","Number of TRL Units","Quantity","Incentive","Reported kWh Savings","Reported kW Savings","Reported Measure Cost","Energy Cost Savings","Capped"]
[null,"Fixture Measures","Fixture Measure Reference Number","Number of\nTRL Units\n(calc'd)","Quantity\n(Calc'd)","Total\nIncentives","Total\nkWh/yr Savings\n(Stipulated)","Total\nkW Reduction\n(Stipulated)","Total\nFixture Cost\n(Allocated)","Total\nEnergy Cost Savings\n(Stipulated)",null,null,null,null,null,"Typical Measures Only",null,null,null,null,null,null,null,null,"Small Business Measures Only"]
[{"$f":"IF(B16=\"\",\"\",IFERROR(VALUE(INDEX(INDIRECT(\"MeasureTable_\" & ProjectState & \"[CustomerIncentiveDollarperunit]\"),MATCH(B16&\" | TRUE\",INDIRECT(\"MeasureTable_\" &ProjectState&\"[MeasureEligibleConcatenate]\"),0))),\"\")&\" / \"&IFERROR(INDEX(INDIRECT(\"MeasureTable_\"&ProjectState&\"[Unit]\"),MATCH(B16&\" | TRUE\",INDIRECT(\"MeasureTable_\" &ProjectState&\"[MeasureEligibleConcatenate]\"),0)),\"\"))","v":""},null,null,{"$error":"#DIV/0!"},1,0,0,0,0,0,{"$f":"IF(OR(B16=\"\",ISNUMBER(FIND(\" MID \",B16,1))),\"\",\nIF(OR(ISNUMBER(FIND(\"Small Bu\",B16)),ISNUMBER(FIND(\"SBDI\",B16))),IF(Incentive_NonTypical_PreCapped<>Incentive_NonTypical,\"Capped\",\"\"),\nIF(ABS(D16*E16*IFERROR(VALUE(INDEX(INDIRECT(\"MeasureTable_\"&ProjectState&\"[CustomerIncentiveDollarperunit]\"),MATCH(B16&\" | TRUE\",INDIRECT(\"MeasureTable_\"&ProjectState&\"[MeasureEligibleConcatenate]\"),0))),\"\"))>ABS(F16),\"Capped\",\"\")))","v":""},null,"Pre-Install Totals & Capping (as submitted)",null,null,null,null,null,null,null,null,"Pre-Install Totals & Capping (as submitted)"]
["",null,null,null,null,null,null,null,null,null,""]
["",null,null,null,null,null,null,null,null,null,"",null,"Qty TRL Measures","Incentive","Bill Credit","kWh Savings","kW Savings","Measure Cost","Electric Cost Savings",null,null,"Qty TRL Measures","Incentive","Bill Credit","kWh Savings","kW Savings","Measure Cost","Electric Cost Savings"]
["",null,null,null,null,null,null,null,null,null,"",null,4,330,null,680,0.2,1400,62.185600000000001,null,null,0,0,null,0,0,0,0]
["",null,null,null,null,null,null,null,null,null,""]
["",null,null,null,null,null,null,null,null,null,"",null,"Pre-Install Totals & Capping (as inspected)",null,null,null,null,null,null,null,null,"Pre-Install Totals & Capping (as inspected)"]
["",null,null,null,null,null,null,null,null,null,""]
["",null,null,null,null,null,null,null,null,null,"",null,"Qty TRL Measures","Incentive","Bill Credit","kWh Savings","kW Savings","Measure Cost","Electric Cost Savings",null,null,"Qty TRL Measures","Incentive","Bill Credit","kWh Savings","kW Savings","Measure Cost","Electric Cost Savings"]
["",null,null,null,null,null,null,null,null,null,""]
["",null,null,null,null,null,null,null,null,null,""]
["",null,null,null,null,null,null,null,null,null,"",null,"Post-Install Totals & Capping (as submitted)",null,null,null,null,null,null,null,null,"Post-Install Totals & Capping (as submitted)"]
["",null,null,null,null,null,null,null,null,null,""]
["",null,null,null,null,null,null,null,null,null,"",null,"Qty TRL Measures","Incentive","Bill Credit","kWh Savings","kW Savings","Measure Cost","Electric Cost Savings",null,null,"Qty TRL Measures","Incentive","Bill Credit","kWh Savings","kW Savings","Measure Cost","Electric Cost Savings"]
["",null,null,null,null,null,null,null,null,null,""]
["",null,null,null,null,null,null,null,null,null,""]
["",null,null,null,null,null,null,null,null,null,""]
["",null,null,null,null,null,null,null,null,null,""]
["",null,null,null,null,null,null,null,null,null,"",null,"Meter Eligibility Confirmation"]
["",null,null,null,null,null,null,null,null,null,"",null,"Meter Checked",{"$f":"IF(OR(MeterChecked=\"\",MeterChecked=FALSE),\"\",MeterChecked)","v":""}]
["",null,null,null,null,null,null,null,null,null,"",null,"DSMC Username",{"$f":"IF(MeterChecked_DSMCUser=\"\",\"\",MeterChecked_DSMCUser)","v":""}]
["",null,null,null,null,null,null,null,null,null,"",null,"Meter Number",{"$f":"IF(MeterNumber_Confirmed=\"\",\"\",MeterNumber_Confirmed)","v":""}]
["",null,null,null,null,null,null,null,null,null,""]
["",null,null,null,null,null,null,null,null,null,""]
["",null,null,null,null,null,null,null,null,null,""]
["",null,null,null,null,null,null,null,null,null,""]
["",null,null,null,null,null,null,null,null,null,""]
[null,null,null,null,null,null,null,null,null,null,""]
[null,null,null,null,null,null,null,null,null,null,""]
[null,null,null,null,null,null,null,null,null,null,""]
[null,null,null,null,null,null,null,null,null,null,""]
[null,null,null,null,null,null,null,null,null,null,""]
["",null,null,null,null,null,null,null,null,null,""]
[null,"Control Measures","Control Measure Reference Number","Number of\nTRL Units\n(calc'd)","Quantity\n(Calc'd)","Total\nIncentives","Total\nkWh/yr Savings\n(Stipulated)","Total\nkW Reduction\n(Stipulated)","Total\nControl Cost\n(Allocated)","Total\nEnergy Cost Savings\n(Stipulated)"]
[null,null,null,{"$error":"#DIV/0!"},{"$error":"#DIV/0!"},0,0,0,0,0,{"$f":"IF(OR(B50=\"\",ISNUMBER(FIND(\" MID \",B50,1))),\"\",IF(ABS(D50*E50*IFERROR(VALUE(INDEX(INDIRECT(\"MeasureTable_\"&ProjectState&\"[CustomerIncentiveDollarperunit]\"),MATCH(B50&\" | TRUE\",INDIRECT(\"MeasureTable_\"&ProjectState&\"[MeasureEligibleConcatenate]\"),0))),\"\"))>ABS(F50),\"Capped\",\"\"))","v":""}]
[null,null,null,null,null,null,null,null,null,null,{"$f":"IF(OR(B50=\"\",ISNUMBER(FIND(\" MID \",B50,1))),\"\",IF(ABS(D50*E50*IFERROR(VALUE(INDEX(INDIRECT(\"MeasureTable_\"&ProjectState&\"[CustomerIncentiveDollarperunit]\"),MATCH(B50&\" | TRUE\",INDIRECT(\"MeasureTable_\"&ProjectState&\"[MeasureEligibleConcatenate]\"),0))),\"\"))>ABS(F50),\"Capped\",\"\"))","v":""}]
[null,null,null,null,null,null,null,null,null,null,""]
[null,null,null,null,null,null,null,null,null,null,""]
[null,null,null,null,null,null,null,null,null,null,""]
[null,null,null,null,null,null,null,null,null,null,""]
[null,null,null,null,null,null,null,null,null,null,""]
[null,null,null,null,null,null,null,null,null,null,""]
[null,null,null,null,null,null,null,null,null,null,""]
[null,null,null,null,null,null,null,null,null,null,""]
[null,null,null,null,null,null,null,null,null,null,""]
[null,null,null,null,null,null,null,null,null,null,""]
[null,null,null,null,null,null,null,null,null,null,""]
[null,null,null,null,null,null,null,null,null,null,""]
[null,null,null,null,null,null,null,null,null,null,""]
[null,null,null,null,null,null,null,null,null,null,""]
[null,null,null,null,null,null,null,null,null,null,""]

{"sheet":"Revision History","index":4,"n_rows":71,"n_cols":11,"rows_kept":71,"cut":false,"hidden":true,"merged":[[1,2,1,8]]}
[]
[null,null,"Versions"]
[null,"Release Dates","CA","CA (SBL)","ID","UT","WA","WA (SBL)","WY","Master","Release Notes"]
[null,"2018-01-11",null,null,null,null,10118.1,null,null,null,"First release of this re-designed version"]
[null,"2018-01-17",null,null,null,null,10118.200000000001,null,null,null,"TRL Measure Fixes for Street Measures, Baseline Wattage Fixes for Some Fixtures, Proposed Fixture Builder Fixes for Wall Packs, Added Import Functionality, Fixed control savings calculations"]
[null,"2018-01-18",null,null,null,null,10118.299999999999,null,null,null,"Fixed 'add fixture lines' functionality that was accidentally broken as part of adding the import functionality"]
[null,"2018-01-26",null,null,null,null,10118.4,null,null,null,"Updated Import to include project stages and change tracking; Fixed SBL rate code truncation; fixed NCMR exterior fixture savings & incentives calcs; revised formulas for baseline fixture wattages of HID fixtures; modified meter verification to not display rate schedule, but confirm eligibility instead; updates to stipulated wattage table to remove duplicates and add add't items; fixed some issues w/ project update API code; fixed case lighting controls calculations; updated SBL functionality to allow IO created in Final stage; updated calcs and coloring for meter number eligibility verification;"]
[null,"2018-02-05",null,null,null,null,null,10118.5,null,null,"fixes to eligibility code; fix actual baseline wattage calc;"]
[null,"2018-02-13",null,null,12018.1,null,null,null,null,null,"measure lookup now applies measue effective date; complete ID measures and mapping for first ID release; updated savings and cost breakouts by fixture measure and control measure so they properly sum up to the totals; added code to handle importing older fixture codes; fixed error with project creation API; fixed cost calculations for NCMR to properly separate interior from exterior; fixed GA version language for all states; add WA language that taxes NOT be included in project costs; fixed Exhibit A printing area;"]
[null,"2018-03-02",null,null,12018.2,12218.1,10118.6,null,null,null,"added cost savings calculation for street lighting for WA; minor fixes; completed UT measures and mapping for first UT release; fixed importing misalignment issue for proj info sheet; fixed incentive calcs for when MID measures are entered without equipment cost; fixed MID incentive capping by fixture costs; enlarged text on proj info tab when printing as exhibit A with IO; revised spacing of IO to take up extra white space where PR release used to be; fixed processing tab summation of TRL units and Quantity; Processing tab separation of midstream and typical totals; added a few new fluorescent wattage options;"]
[null,"2018-04-12",null,null,12018.3,12218.2,10118.700000000001,10118.6,null,null,"Modified stipulated wattage lookup to only happen if exsiting fixture code contains T12, T8, T5, or Incand; fixed importing issue for processing tab and change tracking; added ballasts as att3 for CFL fixture types; add macro to clear user info except for site state; fixed lookup for fixture wattage for ballasted fixtures; added 3-ft FLT8 to existing equipment list; slightly fixed the formula to calculate fixture wattage for ballasted fixtures; added FLT5HO fixture wattage calculation values to table in Lookups sheet; made the SPB numbers on the summary report reflect actual costs for when only MID measures are entered; revised macro button icons; updated street lighting lookup table and calcs to account for non-listed types; added existing fixture qty to show with proposed; revised adding/removing fixture lines to add/remove at the selected location; added capping note for Typical measures in Processing tab; revised DSMC project code to not update attributes with null values; added better typical SPB info as subtext to project summary report; updated WA energy rates; Fixed project info summary totals to correctly show capped incentives for MID and Typical together; add button to show/hide summary section at top of project information tab; fixed SBL meter checking for higher-usage meters; updated energy cost savings to not add cost savings for demand reduction for exterior or street fixture lines; fixed controls cost allocation for when a MID measure has Typical controls on it; locking tool now hides row/column headings on visible sheets; added FUT8 fixtures to ballasted fixture wattage table; propose equipment now checks if entered wattage fits within specified wattage perameters when manually altering the fixture code; updated incentives to calculate negative incentive for lines with negtive kWh savings; fixed cost savings calculations for measures with deemed savings; fixed NCMR calcs to keep exterior incentives when interior incentives are not eligible; added better totalling in processing tab; updates to fix summing for SBL projects; fixed import function to properly calc the right op schedules;"]
[null,"2018-05-11",null,null,52418.1,null,null,null,51218.1,null,"Added Fixture Summary tab; Added WY equipment/measure mapping; fixed \"Controls Only\" TRL Units calculation to look at existing fixture wattage and NOT proposed fixture wattage if TRL Unit is 'watt controlled'; fixed controls cost allocation for scenarios where only fixtures are MID measures; fixed cost savings division-by-zero error when fixtures result in zero savings; fixed syntax error in total typical incentives field on project information tab; updated TRL Unit calcs for Marquee/Cabinet signs to calc the existing linear feet of signage lighting removed; updated SBL 2x2 flat panel retrofit kit to remove wattage minimum; fixed proposed lamp wattage formula to go to 0 instead of \"\" if no proper fixture code is entered; project information calculation improvements and better error handling; fixed existing fixture cost savings calcs; fixed total incentives calc for when NCMR project has only exterior fixture lines; improved importing (much quicker); Improved measure version checking; Updated RBM list; modified fixture builder forms to allow word wrapping to be able to see entire fixture code for longer codes; fixed seasonal schedule to properly account for holidays; Refined controls savings calculations to better account for scenarios where an existing control is re-used with a new/retrofit fixture; Updated Project Summary Report to reflect cost savings and SPBs for ACTUAL savings and not STIPULATED savings; added T12 - 3 ft option for existing fixture; fixed controls-only measure matching formula that didn't match in some cases; Improved processing tab capping notes calculation to properly reference measures matching effective date; revised existing, stipulated wattage calculations to better account for controls savings reductions (was double counting the controls savings reduction); removed auto-locking of tool when changing project stage (helpful for project coordinators); added check for WY, CA for TLED lamps replacements needing to be at least 10W less than existing lamp wattages; fixed kW Demand Reduction for Controls-only upgrades to be zero; fixed fixture kWh savings for Controls-only upgrades to be zero; re-mapped stipulated fixture and controls totals on fine print of Project Report Summary so it matches processing and project information totals; improvements to DSMC updating code to better handle post-install projects;"]
[null,"2018-05-14",null,null,null,12218.3,10118.799999999999,10118.799999999999,null,null,"UT/WA release (no tariff or incentive updates)…bug fixes only"]
[null,"2018-05-15",null,null,"052418.1a","012218.3a","010118.8a","010118.8a","051218.1a",null,"Fixed Fixtures and Controls Summary tabs' table quantity values to pull the correct quantities regardless of lamp, fixture, or controls type; fixed printing issue for LII application that arises from conflict with Fixtures/Controls Summary tabs using the same pivot table source table from Project Information tab;"]
[null,"2018-05-17",null,null,null,null,null,null,"051218.1b",null,"Fixed WY retrofit proposed pole mount fixture to map to Street/Pole measure in exterior locations and not only street locations; "]
[null,"2018-07-03",null,null,null,70118.100000000006,70118.100000000006,70118.100000000006,null,null,"Revised Actual Energy Cost Savings for NCMR projects to be the same as stipulated energy cost savings rather than being zero or negative number since there is no actual baseline energy cost other than what is either deemed or extrapolated using LPD; fixed mapping for WY Retrofit for Street/Pole measure for Full Fixture replacement in an exterior location (had previously fixed for retrofit kits, but not full fixture replacements); Fixed wrong Operating Schedule reference for Op Schedule D; Applied DDF (was missing) to demand portion of cost savings for both existing and proposed fixtures; Re-structure DDF table for improved matching of DDF to space types; UT Measure Updates including lighting-tool-only revision to UT changing measures to change on 6/9/2018 instead of effective date of 7/1/2018; Fixed measure effective dates for \"no controls\" typical measures; changed font to black on \"Project Report Summary\" tab; Expanded fixture table on the \"Processing\" tab to handle more measures; Added functionality to zero out savings for no incentive measures; fixed exterior controls to not count demand savings; fixed SBL bug with meter check for WA/CA; fixed kW Reduction (stipulated) to account for deemed kW values; add note on processing tab to alert user to scroll down for controls measures so they don't get missed; re-mapped wallpack measures w/ sensors;"]
[null,null,null,null,"052418.2 - TEST","070118.2 - TEST","070118.2 - TEST","070118.2 - TEST","051218.2 - TEST",null,"modified proposed fixture builder to determine if measure is \"MID\" or not and to know if it needs to require a material cost to be entered (previously this check was done only for relamps, but now includes anything with MID measure name with no controls);"]
[null,"2018-07-24",null,null,"052418.3 - TEST","070118.3 - TEST","070118.3 - TEST","070118.3 - TEST","051218.3 - TEST",null,"Modified \"EquipmentTable_Retrofit_Wy\" table. \"LED T8 Type A\" had an additional statement at the end, \"A/B dual mode\" that was making the finder name it as an ineligable device. Also, \"LED T8 Type B\" and \"LED T8 Type C\" both were labelled as $3/lamp incentives, whereas they should have been 0.10/ kWh. Both errors have been fixed.  Updated \"Total kWh/yr Savings (Stipulated)\" column to have zero decimal places (it gets rounded to a whole number before that step anyway). Modified the \"General Application\" for the WY version of the tool. They updated their application to include an incentive repayment plan for 120 months. The general application button now populates the updated and correct version of the WY General Application."]
[null,"2018-10-01",null,null,52418.400000000001,70118.399999999994,70118.399999999994,70118.399999999994,51218.400000000001,null,"Created macros to easily hide and unhide columns throughout workbook, mainly for streamlined testing and use by Evergreen and Nexant. Fixed capping issue for case lighting on Processing Tab. Added a new column for this version to add an identifier onto the Fixture Measure Name, pivot table no longer adds them together, but treats them as separate measures. WA LED HID Relamp mapping to HID Relamp (so it wasn't found) fixed by adding boolean statement for WA to concatenate LED to beginning. New construction exterior lighting causing \"Control kWh/yr Savings (Stipulated)\" to be blank with no controls, causing an error in the sum for savings (not incentives). Fixed to output 0 instead, properly summing energy savings. Fixed error with controls only fixtures not accounting for HVAC effects. Added error message if user manually inputs existing equipment without the area type (Interior, Exterior, Street). Modified Control kWhr/yr Savings Stipulated, for NC if error occured it was blank causing #value, changed to display 0 if error [cell AP].\n\nModified general applications for CA and WA territories to block out taxpayer information and change DSM addresses.\n\nLED HID replacement fix was not applied to a certain group (because it already had LED tag) fixed. Project Summary stipulated energies referring to wrong cells, fixed. \"LED Decorative - Retrofit - WA\" measure does not contain the word \"Lamp\" (although every other LED Decorative measure does), which is how the controls are mapped - added exception to control mapping logic.\nWY refrigerated case occupancy referring to general case occupancy because former was not in tool measure library. Control measure was in both TRL and DSMC, so it was uploaded to tool and renamed in Lookups\nRMP states do not have any photoluminescent exit sign measure (it is neither in the TRL nor DSMC), so I mapped that equipment to the LED Exit Sign measure, the incentives are the same for both, and in all MRP territories. Note: UT and ID already had them labelled as ineligible, strange because RMP states they get $15/sign\nID only offers incentives for message center signs when existing is incandescent, added logic to fixture measure finder to deal with this and record as non-eligible.\nUpdated Fixture Measure Finder and Control Measure Finder for easier to read code.\nWY Relamp LED Message Sign not mapping to proper incentive, measure name was \"interior fixt. no controls\". fixed.\nreturn information on GA removed.\nWY measure table throwing reference error due to adding new measures, fixed.\nWY equipment table now only has Typ1 A TLED, added TLED A/B dual mode.\nMajor renovation exterior lighting causing \"Control kWh/yr Savings (Stipulated)\" to be blank with no controls, causing an error in the sum for savings (not incentives). Fixed to output 0 instead, properly summing energy savings.\n\nfixed all GA's to align with current verbage (tax information)\nfixed reference equations on processing tab\nCASE lighting fix caused upload issues with DSMC, removed.\nProcessing tab capping formula reverted to previous version equation, fixed\nWY added logic to control measure finder for Adv Ext Dim controls, to not apply if it is not on an LED for two scenarios: controls only and existing isn't LED, or not controls only and proposed is not led\nUT tool column BF (fixture incentive) logic fixed to include capping for UT midstream"]
[null,"2018-10-16",null,null,52418.5,70118.5,70118.5,70118.5,51218.5,null,"NC/MR Control Energy Savings not working properly with controls, column AR \"Control Measure kWh/yr Savings (Stipulated)\" fixed to default to control savings calcution if NC or MR\n\nPatched as small update"]
[null,"2019-01-01",null,null,null,null,10119.1,10119.1,10119.1,10119.1,"proposed fixture builder updates not completed, causing SBL equipment matching not to occur, fixed this and finished improvements.\nNC/MR total existing energy costs (col. U and V) not accounting for demand diversity factor (DDF), added logic to account for this.\nwhen project state is changed all sheets are activated to avoid GA not replacing verbage properly.\nadded statement to \"Processing\" tab on far left to indicate incentive for easy check calculations by custom program builders.\nFormatting update to box titles to match RMP brand blue\nimproved importing to include IO and original IO date on offer letter.\nIn an attempt to keep the tool uniform across states, I will implement the RTF dual baseline into the master, while having logic to only be used for Washington. This has the advantage of - if RMP every decides to implement the dual baseline - much easier, although unlikely.\nHide/unhide button improved to toggle button, code generalize so every update it doesn't need to be changed.\nAdded email to custom lighting project coordinator on IOL\nWA/CA updated \"Fixture kWh (Existing, Stipulated)\" and \"Fixture kWh (Existing, Actual)\" for message center signs to include an operating hours derate percentage of 70%\nWY TRL updated\nControl measure patch for WY controls to not output 0, incompatible with DSMC\nUpdated terminology of advanced controls from \"Advanced Network\" to \"Advanced\" to avoid confusion (client request)\nexist/prop for midstream was printing prop/exist quantities, fixed.\nUpdated verbage for contact info on IOL\nFixed RMP address on IOL\nAdded a savings prompt when project stage is changed for user to save stage instances\nChanged zip code to text instead of numeric to allow a zip code starting with 0\nAdjust width of control selection in proposed fixture form\nUpdated WA non-general lighting to custom incentive\nUpdated energy rates\nFixed run-time error for non RMP states\nWidened fixture builder for cutoff controls\nUpdated WY measures\nFixed major issue to importing tool that would zero out submitted values\nWY updated equipment ->measure mapping, updated controls only equipment mapping\nUpdated controls to account for NCMR exterior controls that are not deemed to calculate savings\nAdded control incentives to add onto relamp incentives\nFixed measure groupings upload to switch to actual\nWA rate 36 corrected by factor of 10\n\nRTF Dual Baseline:\n    Added efficacy table\n    Added lamp model table\n    Added fixture model table\n    Added finance table (inflation, nominal discount, etc.)\n    Added code for dsmc field placement of customer energy usage data *** to be finished\n    Added equipment mapping to match models\n    Added new fields for WA equipment form to map application for market efficacy table\n    Added control cost information scraped from Platt, added into incremental cost\n    Updated fixture W exist stip calc to always do fixwattprop*(efficacy_cp/efficacy_prop) for WA\n    Updated market baseline costs to include market shares - therefore it is not dependent on the existing equipment, only its wattage and application.\n    Updated all reported values to be based on actual energy savings instead of stipulated (for dual baseline territories only)\n    Updated fixture form to not let user not input the RTF info.\n    Updated wording of fixture/retrofit kit\" in fixture builder field\n    Updated DSMC to take new RTF values from processing tab\n    Market efficacies updated to DLC minimum erquirements to improve market wattage calculation\n    Adjusted proposed fixture builder rtf fields to save if user exits and reopens form\n    Added this info to import functionality\n    Adjusted customer facing Project Information to display actual savings and incentives\n    SPB changed to base off actual\n    Note: to avoid reconstruction, the market baseline wattages, energy consumption, and savings will remain under the name of Stipulated - but are market calculations\n\nSegmentation:"]
[null,"2019-04-23",null,null,null,42319.1,null,null,null,null,"Forked program into RMP and PP specific programs. Master will now follow RMP only\nFixed UT rate schedule 6\nupdated TRL Unit formula to include calculation for watt reduced as: kWh saved / Op Hours * 1000\nUpdated measure mapping for UT retrofit\nCleaned up the IOL produced by removing all buttons and admin section\nSet error checking for number formatted as text to ignore for zip codes\nupdated measure mapping to align with segmentation measures\nupdated controls mapping\nadded lamp cap of 350\nadded lamp selection for user to select which equipment they want to use towards the 350\nremoved PP elements from NCMR fixture builder\nadded new UT program measures\nmidstream measures added for medium/large customers\nadded \"(MID)\" tag to all equipment that are perscriptive for M and L customers\nadjusted TRL unit and TRL quantity to adjust for non lamp mid stream measures\nupdated MID measure cost on Project Info Table to handle non lamp mid measures\nupdated fixture builder to only show lamp cost for lamps, no longer all mid measures\nupdated lamp check so that if it's passed, it will only deselect the number of mid measures needed until there are at most 350 lamps\nupdated import to clear clipboard after pasting energy usage info\nadded code to import measure selections if made in an old tool\nwhen adding lines in project info tab measures are auto selected\nUpdated mid and typical costs to refer to the entire table ref instead of series\nchanged measure selection to be a check mark\nchanged order of proposed fixture builder measures so that they are sorted by category then alphabetically\nadded glossary on \"Help\" tab describing some codes found in fixture builder\nchanged mid tag in fixture builder so it didn't interfere with list lookups\nupdated UT TRL with fixes\nPP elements removed from multiple tabs\nupdated tool to only allow for retrofit for UT\nadjusted zip code to special format with different data validation formula to not throw error on leading 0's\nadded help information for segmentation with directions to external website. Changed language from segment to category\nupdated mapping for surface mount, and fixed mapping for wall packs\nadded select all measures box\nseparated api call so that contractor can call segment info without a password. This is done with the button in the category cell on the \"Customer Info\" tab\nadded new field to proposed fixture builder to filter options\nretrofit set as default for UT\nupdated proposed fixture builder to clear all fields when category changed\nupdated Prescriptive tags on M and L customers to \"Midstream\". Shouldn't affect code like when I did this for the equipment tag since it isn't posted anywhere.\nupdated non typical control mapping to map based off \"equipment category field\"\nadded tuning control option for user to select as a basic control\nrevised measure selector code so it stops deleting entire row or column if selected\nUpdated control mapping so that if controls are added to midstream they may receive a typical incentive\nfixed minor bugs\nadjusted small proposed categories to not have prescriptive tag\nadded occ control options to non general illumination\nfixed vendor side meter call\nfixed select all measures button\nadded tuning to med and lrg\nadjusted report subscript b calc to take into account deemed measure savings\nremapped measures with new AEG names\nupdated NCMR measures\nchanged W reduced methodology to the difference in stipulate space wattages.\ncontrols only naming convention updated to AEG standards\nfinalized equipment mapping update\nincreased size of processing fixture section\nfixed minor mapping issues\nupdated med and lrg options with controls to go down typical path\nupdated cost calc methodology for new midstream setup\nRelamps updated to map to midstream regardless of controls (for med and lrg)\nfixture builder updated to allow unit cost for all midstream, removing if control is added.\n\nSegmentation:\nAdded PC facing usage elements on \"Customer Information\" tab\nAdded customer facing segment label with description on \"Customer Information\" tab\nAdded contact info for external website with questions on segmentation.\nUpdated importing for new Customer Info Page setup to relative named references\nsegment defaults to large\nupdated relamp measures for M and L customers to capture savings but not incentive\nadded new API function and API call for segmentation info from external site via meter lookup button"]
[null,"2019-06-19",null,null,null,42319.199999999997,null,null,null,42319.199999999997,"Performance Optimization\n- cleaned up project information sheet event handlers\n- cleaned up adding fixture lines to not run listrows.add\n- added faster adding fixture lines, which adds to bottom of table but speed is vastly improved\n- optimized selecting/deselecting all measures code\n- made measure selection a bit more robust so it's not so easy to select and de-select\n- added error handling when legacy equipment is imported to tool"]
[null,"2019-07-12",null,null,null,"042319.2a",null,null,null,null,"- added data validations on wattage field in existing and proposed fixture builder, the user must enter only a number\n- updated energy cost rates\n- added error checking on equipment code, if fix W proposed is ever 0 then project incentive errors to 0 and displays error message to user."]
[null,"2019-07-15",null,null,"052418.5a","042319.2b",null,null,"010119.1a",null,"- added rate schedule 15 costs\n- rebuilt IOL based on new client document\n- added alternative eligibility by adding equipment with (alt) tag, that the fixture measure logic needs to check\n- updated measure library for UT with alternative energy measures\n- updated fixture builder code to skip all instances of (alt) categories\n- fixed fixture builder wattage error catch issue\n- fixed some formatting issues with new IOL\n- further revisions to IOL\n- adjusted fixture W error catch to look for controls only"]
[null,"2019-09-23",null,null,92319.1,null,null,null,92319.1,92319.1,"- updated control incentive calculation to cap\n- updated ID/WY incentive rates\n- added calendar button on audit date\n- added categories to WY and ID on proposed fixture builder\n- added measure selection functionality for all RMP states"]
[null,"2019-10-22",null,null,null,null,null,null,null,"092319.1a","- added lamp quantity check back in from equipment that was removed in the 042319 version"]
[null,"2020-04-01",null,null,null,42319.3,null,null,null,40120.1,"To Do:\n- update rate codes to follow January 8, 2020 update\n- update general application version number\n- add eligibility override for small business direct to Customer Information admin panel\n- build in logic to verify SBD eligibility based on eligibility info \n- added new macro icons to prompt SBD vendors to select their name from a list for data validation\n- add return message box that tells user if API could not properly pull in usage info\n- add logic to summary row to separate out the SBD measures (small segment doesn't use midstream path, so these are mutually exclusive summaries and will never occur together)\n- add capping logic to SBD specific measures\n- add capping logic to typical measures to exclude SBD measures\n- update LPD to only calculate for typical measures\n- add display note that LPD is only for typical measures\n- split cost/kWh row with one row being cost/kWh for typical measures, other row being incentive/kWh for SBD measures\n- add display note describing the above split\n- add review logic if incentive/kWh > 0.2\n- add custom incentive calculation method for SBD measures (since the project incentive is 75% of cost), could do 75% of measure cost level\n- add project level cap for SBD measures of $4,000\n- add logic to proposed fixture builder to prompt user to fill out unit cost for SBD equipment\n- add logic to proposed fixture builder to show alt and SBD equipment only when eligible\n- add equipment and equipment/measure mapping for SBD specific equipment (will probably need unique names so that I can flag which are SBD)\n- add SBD split to processing tab totals\n- build new API to send additional request for SBD measures to it's own program\n- clean up named ranges\n- make change that were made in .c version\n- updated Customer Information macro icons to be RMP red color for more visibility\n- added measure level cap to SBD measures. \n- updated how lamp W are pulled from proposed fixture codes to handle new SBD fixture code structure\n- updated Processing tab measures to be highlighted RMP red if they are small business\n- updated information for lighting projects on Processing tab to be for the typical portion of the project only\n- adjusted data validations on Other Cost to allow for negative values\n- added address information to SBE vendors to auto-populate when they select one\n- updated control measure to not populate when the equipment is SBE. They will include the cost of controls, so the incentive calculated on the fixture measure will include both"]
[null,"2020-04-30",null,null,92319.2,42319.4,null,null,92319.2,40120.199999999997,"- made meter info admin button less bold and visual to user to avoid confusion (since it's an internal button)\n- updated No TRL Units to be the total equipment line cost and quantity as 1\n- Adjusted DSMC API to pass measures regardless of IO if the customer is small (since they no longer have to sign IO)\n- IO letter updated, signature removed\n- fixed discrepancy between some space type codes between the code tables and DDF lookup table\n- added text message next to incentive ig hybrid project and 1 yr SPB cap is hit\n- added error catch statement on cap message to contact coordinator"]
[null,"2020-05-29",null,null,null,42319.5,null,null,null,40120.300000000003,"- updating SBE portion of the tool to post detail measures to DSMC with quantity only\n- updated equipment mapping to map to detail SBE measures\n- updated the typical summary calculations on Project Information tab to ignore the additional measure row if blank\n- adjusted API to look through all measure for mixed SBE/typical projects\n- defaulted MID lamp count override to yes during COVID19\n- updated proposed energy cost savings to be more robust when errors occur\n- Updated WY GA language"]
[null,"2020-06-24",null,null,92319.3,42319.6,null,null,62220.1,62220.1,"- updated equipment code for NCMR as SBD code was causing an issue.\n- adjusted numbering on GA to line up better\n- updated processing tab small business total row \"No. TRL Units\" to be 1\n- updated WY/ID/UT measure library due to measure reference number error\n- updated Processing tab quantity calculated field to check the new TRL Unit Code to see if the TRL unit is per measure or SBE. Have to use a code since calculated fields can only use numbers\n- removed exterior dimming control as a stand-alone equipment selection for ID/WY NCMR\n- made SBE project cost summary field in \"Project Information\" turn red if cap is hit\n- updated WY measure library"]
[null,"2020-07-22",null,null,null,72320.100000000006,null,null,null,72320.100000000006,"- COVID-19 measure updates for UT, marked in red on the equipment mapping tab\n- added PF custom IO\n- fixed issue when directly printing Project Information tab with more than one page\n- added alternate rate codes (6A,6B,9A for UT; 6A,23A,35A for ID)\n- updated PacifiCorp RBM and PM lists\n- added rate schedule error checking to the incentive field\n- updated project coordinator list"]
[null,"2020-11-25",null,null,100220.1,100220.1,null,null,100220.1,100220.1,"- added UT medium measures for retrofit kits (int and ext) with no controls. This should be temporary to help with the effects of COVID-19, since it negates the use of segments\n- updated UT measure library. QC'd equipment/measure mapping\n- removed ending measures from WY equipment/measure mapping (QC'd)\n- WY has updated custom non-general measure, but it doesn't map to anything since signage incentives are still offered\n- removed ending measures from UT equipment/measure mapping, none actually had to be removed (QC'd)\n- added additional UT SBE vendors\n- updated WY measure library. QC'd equipment/measure mapping\n- removed UT proposed equipment \"Relamp - T8 Fluor. U-Tube <= 28W\"\n- added logic to UT proposed TLED ballast options to only allow user to select LED Driver\n- updated RMP advanced LLLC CSF values to follow the most recent NEEA study on 10/6/2020\n- made TLED ballast option LED Driver only (no n/a), and only apply to Type A lamps\n- made WY proposed fluorescent options ineligible\n- measure for SBE BR Relamp has typo which caused issues. Can't fix typo since it's in clients instance. Updated keyword search to look for \"Small Bu\" instead of \"SMall Business\"\n- added code to check proposed fixture code outside of fixture builder to make sure LED Driver is selected for Type A's in UT\n- WY measure \"Refrigerated Case Occupancy Sensor (Retrofit Only) - WY\" was accidentally removed because it is under food service equipment instead of lighting. Added back in\n- removed check on Fixture Measure column in \"Project Information\" tab that made any equipment with a difference in baseline and proposed Lamp W of less than 10W ineligible\n- updated electric rate UT 12 for non-listed to match current rates for software (from $.0688/kWh to $0.06655/kWh)\n- updated UT med/lrg equipment->measure mapping to allow users to select interior retrofit kits either in the \"Retrofit Kit\" or \"Retrofit Kit - Prescriptive\" categories, allowing them to choose between measures\n- updated UT state energy codes to IECC 2018\n- updated version number from 100120.1 to 100220.1\n- added code to tab \"Fixture Summary\" and \"Controls Summary\" to scroll window to top after updating pivot tables\n- improved UT TLED driver checking code"]
[null,"2021-01-12",null,null,10121.1,null,null,null,null,10121.1,"- updated measure library\n- updated equipment/measure mapping based on catalog and whats available\n- QC'd equipment/measure mapping\n- updated rates to version 9/11/2020\n- updated CSF values\n- updated step 2 language on \"Project Report Summary\"\n- capitalized \"W\" of \"wattsmart\" on \"Project Report Summary\" note a and step 1"]
[null,"2021-03-18",null,null,10121.200000000001,null,null,null,null,10121.200000000001,"- opened up meter data validation so it can accept 9 digit meter #'s. It seems to not be restricting the number at all now, but I'm not going to fix it since we will be deploying the RMP DEP this year.\n- updated rates to align with 1/21/2021 update\n- fixed SBE BR measure (SBE DSMC upload VBA updated to search for \"Small Bu\" instead of \"Small Business\" to account for typo. Need to test\n- fixed copy/paste of Type A,A/B Dual Mode popup. Some of the wildcards in the VBA were too liberal.\n- updated GA to version 05/12/2020.\n- some imported space types cannot be found since the UT code update. I added all previous enries with updated values.\n- updated UT BR offering to map to the PAR Small Business Enhanced measure since the BR version refers to pin based only\nWY SBE\n- added SBE specific mapping column in WY equipment/measure mapping tab\n- adjusted measure finding formula on Project Info to also match SBE for WY\n- adjusted Customer Info so segment data shows for WY\n- segment meter search button and SBE vendor button now show for WY\n- updated DSMC API to handle WY SBE projects as well\n- try to fix NCMR issue of re-opening the fixture builder\n- SBE Eligibility formula adjusted so that the customer must be small and the rate schedule must be 25 or 28 to line up with tariff filings until they can be updated\n- added $7,500 incentive cap for SBE portion for WY, still $4,000 for UT\n- addied review message when incentive/kWh >= $0.35/kWh for WY & UT\n- updated conditional formatting on total SBE cost on Project Info to be red if $10,000 for WY\n- adjusted Customer Info category to be blank for WY unless customer is \"Small\" or override is used\n- updated coordinator table\n- removed a trailing space on ID equipment \"Relamp - LED HID Replacement >= 80 and < 150W\"\n- fixed issue with line numbering when new project info lines were added"]
[null,"2021-05-25",null,null,null,100220.2,null,null,100220.2,10121.200000000001,"- updated WY SBE cost cap to $5,500\n- adjusted the conditional formatting on the Total Cost to only flag with the cost cap is hit\n- added missing prescriptive tag in equipment/measure mapping for UT medium and large\n- No. of TRL units now calculates to 0 if a measure is not selected using the \"Measure Selection\" column\n- adjusted SBE vendor lookup to show for WY\n- adjusted SBE vendor lookup code to grab only the entries that match the vendor location state\n- removed Fire Station building type from WY since it is not in IECC 2009\n- added requirement for WY SBE to have a verified vendor selected\n- added new UT multi space types to DDF list\n- added No. of TRL Units to SBE DSMC API for detailed measures\n- pointed API code to new endpoint\n- added custom admin measure selection if an admin user inputs \"Custom NCMR wo Code [#L #W]\" it will map to the custom ag measure\n- exterior dimming controls WY NCMR is missing an updated version, and will currently not work for effective dates past 10/20. Retrofit version name updated\n- updated Project Report Summary cost to pull from Project Info tab when project is SBE Eligible to reflect the actual costs\n- adjusted total sums on the processing tab to search for \"Small Bu\" to account for the spelling error on the PAR measure\n- adjusted UT equipment/measure mapping so that Retrofit Kit and Retrofit Kit Prescriptive categories had mutually exclusive options\n- fixed issue with stipulated kW demand reduction where SBE measures were always calculating as 0\n- segment api attached to internal api was referring to old api. Updated."]
[null,"TBD",null,null,null,100220.3,null,null,100220.3,10121.299999999999,"patch release\n- fixed issue with stipulated kW demand reduction where SBE measures were always calculating as 0\n- added rate schedule 6A as eligible for SBE"]
[null,"2021-09-30",null,null,null,null,null,null,82321.100000000006,82321.100000000006,"- Adjusted \"kW Demand Reduction\" to subtract midstream deemed portion for downstream measures\n- Adjusted \"kWh/yr Savings\" to subtract the midstream deemed portion for downstream measures\n- updated WY measure library draft\n- new measures mapped\n- fixed project savings measure reference number in API for WY SBE projects\n- mapped old HID equipment to the new measure names so that previous versions can be imported with rarely an issue.\n- added a name substitution system to maintain mapping structure with new outdoor retrofit kit offerings\n- updated measure library and equipment & control mapping\n- site specific savings de-rate was not happening because of the midstream tag change to \"Mid Market\". Fixed this\n- all exterior retrofit kits should map to exterior retrofit kit prescriptive measure for streetlighting"]
[null,"2021-10-08",null,null,null,null,null,null,82321.2,82321.2,"- incentive and cost formulas adjusted to match new SBE measure name tags\n- adjusted measure name sub for exterior retrofit kits to include street lighting"]
[null,"2021-11-29",null,null,110121.1,null,null,null,82321.3,82321.3,"- adjusted processing tab total measure count formula to not count blank rows if project is typical only\n- added draft ID measure library\n- mapped new ID measures\n- added Macro (DSMC_API_ProjectCalls_New) to upload info for new iEPM programs in UT, ID and WY\n- updated the DSMC Upload button to call the DSMC_API_ProjectCalls_New macro\n- added Userform to select new or old program (when DSMC upload button is clicked, selecting the new program calls\n  the DSMC_API_ProjectCalls_New macro, selecting the old program calls the DSMC_API_ProjectCalls Macro)\n- API currently points to Staging for testing purposes\n- updated import code to better check import tool version\n- added Modern Electric and Wyatt Electric as approved SBE vendors"]
[null,"2022-01-18",null,null,null,10122.1,null,null,null,10122.1,"- updated measure library (preliminary)\n- updated equipment mapping\n- added 90% cost cap for SBE\n- CEA (Controlled Environment Agriculture) measures added and mapped to new equipment categories\n- added networked control options to all equipment. Large customers must now use a networked control to get basic control incentives\n- new equipment/measure mapping column added for networked controls listed as \"Mid\" to handle requirements\n- adjusted TRL Unit calculation for SBE measures so we can show the full quantity\n- revisions to API that points to new program"]
[null,"2022-04-26",null,null,110121.2,null,null,null,82321.399999999994,10122.200000000001,"- revised equipment/measure mappings due to last minute WY measure name changes\n- UT SBE vendors updated (WY checked, all up-to-date)\n- added DSMC/iEPM API functionality for ID & WY\n- updated electric rates to 3/4/22 version\n- API delivery channel exterior option removed\n- adjusted existing energy cost savings calculation. For WY rate 58 it was not properly grabbing the non-listed kWh rate\n- updated equipment/measure mapping for WY NCMR interior lighting (measure name changed on 8/2021 update)\n- adjusted API delivery channel to check for mixed projects\n- adjusted API to send mixed SBE and typical measure data"]
[null,"2022-05-10",null,null,null,10122.200000000001,null,null,null,10122.200000000001,"- added more UT rate codes"]
[null,"2022-08-12",null,null,null,10122.299999999999,null,null,null,10122.299999999999,"- adjusted project API call to remove any dashes from phone numbers, which prevented projects from saving\n- updated measures tab\n- updated equipment/measure mapping so that large fixture replacements, retrofit kits, and non-general illuminance do not have the control requirement\n- corrected incentive on measure \"LED Decorative - Candelabra/Globe - Retrofit - v2 - UT\""]
[null,"2023-02-20",null,null,null,20123.099999999999,null,null,null,20123.099999999999,"- updated incentive/kWh threshold to $0.42/kWh\n- made the following equipment ineligible for UT: BR lamps, A lamps, decorative lamps, PAR lamps, and downlight kits\n- updated measure library tab to have all updated measure offerings\n- updated the equipment/measure mapping tabs to align equipment with measures\n- added control mapping functionality to the import tool. When importing, the tool will look for any old control options. If it finds them, will replace them according to the ControlMapping table found in the Lookups tab. That table is the only bit that needs to be maintained.\n- added \"Major Renovation\" back to list of available project types for UT\n- added new LED Other SBDI measure in place of the current mapping that used the general purpose measure in many places that weren't quite correct\n- widened the existing and proposed fixture builders to accomodate the longer control names\n- removed midstream tags in Project Totals row on the Project Info tab\n- moved LII button behind the other buttons (both on Project Info and Project Report Summary tabs), that way I didn't have to remove a bunch of code (the program could change back and need the button again with how volatile it's been, so I want the functionality handy)\n- fully removed metal halide, photoluminescent exit signs, and fluorescent exit signs proposed equipment options since they haven't been incentivized in years\n- in proposed fixture builder, moved indoor ag new fixture category to be right above the indoor ag lamp replacement category\n- all downlight equipment has been marked as non-eligible for UT\n- added help section about the lighting category\n- revised help section about control options in the fixture builder\n- updated PacifiCorp PM list\n- on lighting assessment report, removed text about LED instance incentive application in the next steps section\n- removed all non LED major renovation proposed equipment options (incandescent, CFL, etc.)\n- removed the \"Prescriptive\" categories from the UT proposed equipment since all of those equipment go a deemed path now. Can always add the \"Prescriptive\" suffix to any category to turn the measure cost back on in the fixture builder\n- updated PCorp RBM list\n- added new \"Control Method\" mexhanism that can be mapped in the equipment/measure mapping tabs that is pulled into each line of the project info table. It's purpose is to explicitly define whether that proposed equipment should have controls assigned as part of the fixture measure or as a separate control measure\n- added additional check on project info summary small business cost cap so that it doesn't show inadvertantly\n- added expanded SBE/SBDI measures\n- on Project Report Summary, set payback values to not go lower than 0\n\nTo Do\n- allow for major renovation controls to be added\n- allow for control retrocommissioning to be used\n- determine from program design team if non-general should map to custom or not"]
[null,"2023-03-09",null,null,null,20123.2,null,null,null,null,"- fixed measure mapping for measure \"LED High/Low Bay - Kit and Fixture - SBDI - v3 - UT\"\n- fixed measure end date for measure \"LED - Other - SBDI - v3 - UT\"\n- updated all new SBE measures to have site specific costs\n- removed \"Brilled Lighting\" as an eligible SBE vendor\n- set SBE downlights to ineligible\n- corrected measure name from \"LED - Other - SBDI - v3 - UT\" to \"LED - Other - SBDI - UT\""]
[null,"2023-03-30",null,null,null,20123.3,null,null,null,null,"- fixed a bug where the site specific kW savings was always being applied, even to deemed measures because of a column name change in the UT measure table"]
[null,"2023-03-31",null,null,null,null,null,null,31523.1,31523.1,"- updated meter segment call, SegmentInfo_ByMeter, and MeterInfo_byMeter to include ID\n- updated segment field to include ID\n- set segment and small business buttons to show for ID\n- updated project totals other summary line and keyword to include ID SBE\n- updated measure name sub formula to include fixture replacements\n- updated ID measure library\n- updated ID equipment/measure mapping\n- For ID: set decorative/candelabra, BR, PAR, A, and downlights to ineligible\n- updated ID control options\n- added SBE equipment/measure mapping for ID\n- updated WY measure library\n- updated WY equipment/measure mapping\n- For WY: set decorative/candelabra, BR, PAR, A, and downlights to ineligible\n- updated WY control options\n- WY T5 TLED no longer go custom route and instead get specific T5 TLED Type measures\n- updated ID LPD code table to meet IECC 2018 requirements\n- WY T5 type B and type C are mapped to type A since deemed savings weren't developed for those two. Program design team is working on this correction.\n- added verified SBE vendors to approved list\n- fixed a bug where the text for the \"Verify Small Business\" button was cut off on the user form"]
[null,"2023-04-11",null,null,31523.1,null,null,null,null,31523.1,"- updated ID NCMR equipment/measure mapping to follow a control based structure like the other mappings"]
[null,"2023-07-14",null,null,null,71523.100000000006,null,null,null,71523.100000000006,"- updated rates\n- updated street lighting rates\n- update UT SBE vendors\n- Project Summary Report: updated kW value to pull actual instead of stipulated value\n- measure table updated to include 7/15/23 program measure updates\n- implemented changes that now allow for NCMR controls only to be selected. This includes:\n    - added new equipment template table for NCMR controls to gather fixture W\n    - added code to the NCMR fixture builder form to link controls only to new equipment template table\n    - adjusted baseline estimation (col M) for controls only to use proposed wattage and exclude that wattage from remaining allocation\n    - adjusted savings calculations to use proposed W for NCMR controls only (col AO and AT)\n    - adjusted total savings to use control TRL units (col. AW and AV)\n    - added rounding (col AU) to handle rounding discrepancy for NCMR controls only\n    - adjusted energy cost savings for NCMR controls only (col BE and BC)\n- replaced SBE type C with continuous dimming with the more general type C measure, since all type C replacements must have continuous dimming now\n- added a new column (BD) for Total Energy Cost Savings (actual) that can be used for various purposes\n- added new control option for control retro commissioning. This work includes:\n    - added \"Retro commisioning\" control option to all equipment template tables\n    - added new control measure lookup entry for \"Retro commissioning\" in the control table on the \"Lookups\" tab\n    - adjusted the following columns on \"Project Info\" to ensure fixture savings aren't captured: AG, AL, AM, AS, BB, BC, BF\n    - added a new control measure name sub column on the project info tab (right next to the control measure name). This looks for control recommissioning projects to determine which recommissioning measure should be used\n    - Added a new project recommissioning flag in cell \"BP3\" that checks if every equipment has recommissioning or not\n    - Adjusted Incentive calculation (cell BI3) to check for recommissioning only, then it will apply 100% cap\n    - Adjusted Incentive Cap Message (cell AW10) to check for 100% for recommissioning only projects\n- added Taylor Abbott to project coordinator list\n- Added Expert Services as an SBE vendor\n- Adjusted calculation for \"No. TRL Units\" to include \"fixture wattage\", which returns the proposed space wattage\n- removed rounding from control cost allocation as it was causing rounding discrepancies for large control recommissioning projects\n- for major renovation projects in UT, there is now a deemed operating schedule on schedule E (based on building type) that users can apply.\n- message on schedule E on \"Project Info\" tab that let's user know this is a deemed set of operating hours. Meant to be used on major renovation projects in UT only\n- added entry on Help & Notes tab about control recommissioning\n- added entry on Help & Notes tab about the default schedule for MR projects\n\nfuture release\n- add admin toggle to determine if equipment maps to site specific, post purchase approved distributor, or post purchase non-approved distributor measures\n- resolve issue where post purchase measure costs are allocated instead of using deemed values\n- add CEA measures to MR"]
[null,"2023-08-10",null,null,null,71523.199999999997,null,null,null,71523.199999999997,"- fixed an issue where the formulas in the Project Info table were not filling down when new rows were added after row 20\n- adjusted the control energy cost savings calculations (actual and stip). They had what I believe to be some incorrect logic for retrofit controls only projects where it could have just been using the already calculated control savings\n- updated function equipmentCode to handle the dash in re-commissioning controls\n- added Re-Commissioning as a controls only option so the user could also use that if they do not know the prior existing equipment\n- Corrected measure name from:\n\"LED Linear Fixture - Troffer Kit - 4' Lamp 48\" - Retrofit - SBDI - WY\" to\n\"LED Linear Fixture - Troffer Kit - 4' Lamp 48\" - Retrofit - SBDI - v2 - WY\"\nand\n\"LED Omnidirectional - Pin-Based - SBDI - WY\" to\n\"LED Omnidirectional - Pin-Based - SBDI - v2 - WY\"\n"]
[null,"2023-11-07",null,null,null,111523.1,null,null,null,111523.1,"- updated measure tab\n- added seasonal as a new location option\n- add seasonal to equipment/measure mapping\n- adjusted equipment/measure mapping for new linear lamp set up\n- updated equipment/measure mapping\n- added a new admin equipment/measure line to account for special custom mappings. One example are TLED measures that are over 40W. a measure name tag of \"Custom\" is passed to the fixture measure formula, which will then look up that mapping instead of using the proposed equipment. This can be easily updated in the future to send any special circumstances to custom\n- updated PacifiCorp PM list\n- corrected measure \"Exterior Advanced Lighting Controls - Basic Dimming Controls - MR wCode - v2 - UT\" from \"Exterior Advanced Lighting Controls - Basic Dimming - MR wCode - v2 - UT\"\n- added a blurb about Seasonal Exterior location type in the Help & Notes tab\n- added new versions for the measure \"Interior Advanced Networked Lighting Controls - Retrofit - Small - v3 - UT\" and \"Interior Advanced Networked Lighting Controls - Retrofit - Medium - v3 - UT\" since an issue was found that they need to have an incentive of $0.80 since it was higher than the max incentive\n- added three new measures for \"Streetlighting - w/ Advanced Networked Dimming Controls - Retrofit - Large - UT\" and mapped them in the equipment/measure mapping tables\n\nto do\n- may need to remove LED driver check"]
[null,null,null,null,null,"111523.2 DRAFT",null,null,"111523.2 DRAFT","111523.2 DRAFT","-Updated address for partner Divi Energy\n-Add SBE Vendors"]
[null,"2025-07-10",null,null,31523.3,71125.100000000006,null,null,31523.3,111523.3,"- JDC: Changed Password\n- JDC: Set the AuditDate fill to Red and text to white if Audit Date < LTVersionDate. Added named variables LTVersionDate and LTDateCode\n- JDC: Edited code for form EquipmentSelections_Proposed to allow Controls Only to be entered before Existing Equipment is entered without generating a run time error.\n- JDC: Deleted Sheets[\"EquipmentTable_PostPurchase_ID] and [EquipmentTable_PostPurchase_WY] \n- JDC: [ EquipmentTable_Retrofit_UT] deleted columns X, Y, and AB.\n- JDC: Deleted [Sheet 1]\n- JDC: Added Module SalesForce for csv file creation for exporting data to SalesForce.\n- JDC: Updated UT, WY and ID measure tables\n- JDC: [Customer Information] sheet. Moved AccountNumber, ProjectID_SBD_DSMC, PACPM, PACRBM, PreInspectionDate, PostInspectionDate, and CheckBox_InspectionRequired to [Customer Information] \"Hidden Variables Not Used\"  cells AG5:AG10. Reformatted [Customer Information] sheet to look better with the data that was removed. Changed code for changing font and fill colors for AccountNumber in the Module Importing.\n-JDC:  [Customer Information] sheet. Commented out code from Sub Worksheet_Change that creates a dialog box for pre and post inspection dates.\n-JDC:  Changed Incentive Offer Letter address.\n-JDC:  [General Application]Update Terms and Conditions text and changed fonts to Arial.\n-JDC:  [Lookups] Update coordinator list. D2-D4: change email addresses to Wattsmart@evergreen.energy. Change address in C2-C4.\n-JDC:  [Project Report Summary] Added Carbon Footprint Calculator.\n-JDC:  [Revision History]  Hid CA, CA (SBL), WA and WA (SBL) columns.  \n-JDC:  [RMP QC Review]  Add note to cell T34\n-JDC: [Project Information] header \"Measure Name Sub\". fixed formula for TLED's  \">= 20 W and <= 39 W\"\n-JDC: Updated RMP Logo on all sheets\n-JDC: [EquipmentTable_Retrofit_UT] Global replace for \"Exterior Fixture Replacement - w/ Advanced networked exterior dimming Controls - Retrofit - Large - UT\" to  “Exterior Fixture Retrofit Kit - w/  Advanced Networked Dimming Controls - Retrofit - Large - UT\"\n-JDC: [Project Information] updated formula for \"Fixture Incentives\" so that \"Post Purchase\" does not cap.\n-JDC: [Processing] added SalesForce field names above pivot table.\n-JDC: [Project Information] Added column BR \"Fixture Measure Version\" and column CN \"Control Measure Version\".\n-JDC: [Project Information] changed formula to use \"Post Purchase\" instead of \"Midstream\" for columns CH \"Control Incentives\" and column BL \"Fixture Incentives\"\n-JDC: [Lookups] updated SBD Approved Vendors\n- JDC: [EquipmentTable_Retrofit_WY] Changed table name from  EquipmentTable_Retrofit_WY154 to EquipmentTable_Retrofit_WY\n-JDC: [Customer Information] sheet. Remove segment lookup icon, made segment cell color gray. Made text color grey.\n- JDC: EquipmentSelections_Proposed form. Added code to Sub ComboBox_equipmentProposed_Change to eliminate Plug and Play as an option for controls              for the Proposed Equipment Builder. (ListBox_equipmentProposed_Att4)\n-JDC: Added Spruce Update Button and Salesforce module\n7/3- ds updated EquipmentTable_UT with new measures. updated Measure Table UT with new measures"]
[null,"2025-10-31",null,null,null,71125.2,null,null,102425.1,"111523.4.04 ","- JDC: Updated code in SalesForce Module to fix data format issue with the Spruce button.\n- JDC: [Project Information] Updated formula for \"Fixture Measure\" to account for additional columns in EquipmentTable_NCMR_UT\n- JDC: Updated EquipmentTable_NCMR_UT to function the same as WY\n- JDC: Copied formula from WY ProjectInfoTable \"Fixture Measure\" and updated formula to work  with ID and UT\n- JDC: Modified form EquipmentSelections_Existing, Sub ComboBox_equipmentBaseline_Change() to resolve \"*LED MR16*\" error\n- JDC: Updated form EquipmentSelections_Proposed, Sub ComboBox_equipmentProposed_Change() to swap TLED Types A and C \n-ds - updated WY measure library & WY EquipmentTables\n-JDC: Removed selection with OCC from [Equiipment Lookups] table RetrofitBaselineEquipment\n-JDC: Removed SBD Vendor building icon. Listed lookup table SBDVerifiedVendors as Deprecated. Removed icon_smallbusiness from [Customer Information] sheet code\n-JDC: Added code to form EquipmentSelecetions_Proposed, Private Sub UserForm_Initialize(), to force form to display on the main screen and center in Excel.\n-JDC: Form EquipmentSelection_Prooposed, Private Sub ComboBox_equipmentProposed_Change(), Removed WY from plug and play exclusion.\n-JDC: removed \"Relamp - T8 Fluor. Linear <= 28W\", and \"Relamp - T8 Fluor. U-Tube <= 28W\" from EquipmentTable_Retrofit_WY"]
[null,"2025-11-20",null,null,111725.1,null,null,null,null,"v2025.3","-ds updated the MeasureTables and EquipmentTables for ID."]
[null,"2026-04-30",null,null,111725.2,71125.3,null,null,102425.2,"v2026.1 Draft","-JDC: Updated Spruce Uploader\n-JDC: Updated data validation for [Customer information] AuditDate.\n-JDC: Deleted stray LII_Button and commented out code\n-JDC: Added path for LED MR16 to Sub ComboBox_equipmentProposed_Change()\n4/1/26- Updated rate schedules with new Rates for Software 2-16-26 -ds\nUpdated IO template, RMP logos -ds\n-JDC: Fixed Spruce file open in SalesForce module\n-JDC: Updated formula for [Project Informatoin] sheet, column CO [Control Method] to not use the SegmentTag for equipment table lookup."]
[]
[]
[]
[]
[]
[]
[null,null,null,null,null,null,null,null,null," "]
[]
[]
[]
[]
[]
[]
[null,null,null,null,null,null,null,null,null,null," "]

{"sheet":"Project Report Summary","index":5,"n_rows":55,"n_cols":21,"rows_kept":55,"cut":false,"hidden":false,"merged":[[50,3,50,12],[51,3,51,12],[52,3,52,12],[53,3,53,12],[54,3,54,12],[46,2,47,13],[34,4,35,6],[34,7,35,8],[42,2,42,12],[43,2,43,12],[44,2,44,12],[45,2,45,12],[34,10,34,11],[34,12,34,13],[35,10,35,13],[2,2,4,4],[17,2,18,13],[21,4,24,6],[26,4,29,6],[31,4,33,6],[21,7,24,8],[26,7,29,8],[31,7,33,8],[32,12,32,13],[32,10,32,11],[20,11,20,13],[21,11,21,13],[33,10,33,13]]}
[]
[]
[null,null,{"$f":"IFERROR(INDEX(ProjectStates[IO Address],MATCH(ProjectState,ProjectStates[Project State],0)),\"\")","v":"3556 S 51200 W #490 \nSalt Lake City, UT 84120 "}]
[]
[]
[null,null,"wattsmart.com",null,null,null,null,null,null,null,null,null,null,{"$f":"LTVersion","v":111725.2}]
[null,null,null,null,null,null,null,null,null,null,null,null,null,{"$f":"IF(MeasureEffectiveDate=\"\",\"\",\"Effective Date: \"&TEXT(MeasureEffectiveDate,\"mm/dd/yyyy\"))","v":""}]
[null,null,null,null,null,null,null,null,null,null,null,null,null,{"$f":"IF(ProjectID_DSMC=\"\",\"\",ProjectID_DSMC)","v":""}]
[null,null,"Customer/Site Information",null,null,null,"Vendor Information",null,null,null,"Project Information"]
[null,null,{"$f":"IF(BusinessName=\"\",\"\",BusinessName)","v":""},null,null,null,{"$f":"IF(VendorBusinessName=\"\",\"\",VendorBusinessName)","v":""},null,null,null,{"$f":"IF(ProjectName=\"\",\"\",ProjectName)","v":""}]
[null,null,{"$f":"IF(ParticipantContactName=\"\",\"\",ParticipantContactName)&IF(ParticipantContactPhone=\"\",\"\",\", \"&TEXT(ParticipantContactPhone,\"(000) 000-0000\"))","v":""},null,null,null,{"$f":"IF(VendorContactName=\"\",\"\",VendorContactName)&IF(VendorContactPhone=\"\",\"\",\", \"&TEXT(VendorContactPhone,\"(000) 000-0000\"))","v":""},null,null,null,{"$f":"IF(AuditDate=\"\",\"\",\"Audit Date: \"&TEXT(AuditDate,\"mm/dd/yyyy\"))","v":""}]
[null,null,{"$f":"IF(ParticipantContactEmail=\"\",\"\",ParticipantContactEmail)","v":""},null,null,null,{"$f":"IF(VendorContactEmail=\"\",\"\",VendorContactEmail)","v":""},null,null,null,{"$f":"IF(ProjectType=\"\",\"\",\"Project Type: \"&ProjectType)","v":""}]
[null,null,null,null,null,null,null,null,null,null,{"$f":"IF(ProjectStage=\"\",\"\",\"Project Stage: \"&ProjectStage)","v":"Project Stage: Preliminary (Pre-Install)"}]
[null,null,{"$f":"IF(InstallAddress=\"\",\"\",InstallAddress)","v":""},null,null,null,{"$f":"IF(VendorAddress=\"\",\"\",VendorAddress)","v":""}]
[null,null,{"$f":"IF(InstallCity=\"\",\"\",InstallCity)&IF(ProjectState=\"\",\"\",\", \"&ProjectState)&IF(InstallZip=\"\",\"\",\"  \"&InstallZip)","v":", ID"},null,null,null,{"$f":"IF(VendorCity=\"\",\"\",VendorCity)&IF(VendorState=\"\",\"\",\", \"&VendorState)&IF(VendorZip=\"\",\"\",\"  \"&VendorZip)","v":""}]
[null,null,{"$f":"IF(MeterNumber=\"\",\"\",\"Meter #: \"&MeterNumber)&IF(RateSchedule=\"\",\"\",\"       Rate: \"&RateSchedule)","v":""}]
[]
[null,null,"Lighting Assessment Summary"]
[]
[]
[null,null,"Electric Cost Savingsa",null,null,null,null,null,null,null,null,"Total Project Cost"]
[null,null,null,null,{"$f":"IF(CostSavings_Total_Actual=\"\",\"\",CostSavings_Total_Actual)","v":0},null,null,"Per Year",null,null,null,{"$f":"IF(SBDEligible=\"Yes\",'Project Information'!BA5,IF(ProjectCost_Total=\"\",\"\",ProjectCost_Total))","v":0},null,null,null,null,null,"Project State",null,null,{"$f":"ProjectState","v":"ID"}]
[null,null,null,null,null,null,null,null,null,null,null,null,null,null,null,null,null,"Project Cost",null,null,{"$f":"ProjectCost_Total","v":0}]
[null,null,null,null,null,null,null,null,null,null,null,null,null,null,null,null,null,"Incentives",null,null,{"$f":"Incentives_Total","v":0}]
[null,null,null,null,null,null,null,null,null,null,null,null,null,null,null,null,null,"Net Project Cost",null,null,{"$f":"IF(ISNUMBER(FIND(\"$0.00\",U24,1)),U23,U23-U24)","v":0}]
[null,null,"Total Project Incentivesa",null,null,null,null,null,null,null,null,null,null,null,null,null,null,"LEDii Measures",null,null,{"$f":"COUNTIFS(ProjectInfoTable[Fixture Measure],\"*MID*\")","v":0}]
[null,null,null,null,{"$f":"IF(Incentives_Total=\"\",\"\",Incentives_Total)","v":0},null,null,{"$f":"IF('Project Information'!AR10=\"\",\"\",'Project Information'!AR10)","v":""}]
[]
[]
[]
[null,null,"Energy Savingsa, b",null,null,null,null,null,null,"Simple Paybacka"]
[null,null,null,null,{"$f":"IF(kWhSavings_Total=\"\",\"\",kWhSavings_Total)","v":0},null,null,"kWh/year\nEnergy Savings"]
[null,null,null,null,null,null,null,null,null,null,{"$f":"IF(SPBIncentives_Total_Actual=\"\",\"\",MAX(0,SPBIncentives_Total_Actual))","v":0},null,"with incentives"]
[null,null,null,null,null,null,null,null,null,null,{"$f":"IF(AND(SPBIncentives_Typical_Actual<>\"\",SPBIncentives_Typical_Actual<>SPBIncentives_Total_Actual,ProjectState=\"UT\"),MAX(0,SPBIncentives_Typical_Actual),\"\")","v":""}]
[null,null,null,null,{"$f":"IF(kWReduction_Total_Actual=\"\",\"\",kWReduction_Total_Actual)","v":0},null,null,"kW/month\nDemand Reduction",null,null,{"$f":"IF(SPB_Total_Actual=\"\",\"\",MAX(0,SPB_Total_Actual))","v":0},null,"without incentives"]
[null,null,null,null,null,null,null,null,null,null,{"$f":"IF(AND(SPB_Typical_Actual<>\"\",SPB_Typical_Actual<>SPB_Total_Actual,ProjectState=\"UT\"),MAX(0,SPB_Typical_Actual),\"\")","v":""}]
[null,null," Carbon Footprint Calculator"]
[]
[null,null,null,null,"   Cars on the Road",null,null,{"$f":"((E32*1.363)/2204)*2.325581*5","v":0}]
[null,null,null,null,"   Energy Used by Homes",null,null,{"$f":"((E32*1.363)/2204)*0.088261*5","v":0}]
[null,null,null,null,"   Acres of Pine Trees Saved",null,null,{"$f":"((E32*1.363)/2204)*0.227273*5","v":0}]
[]
[null,null,"a. Energy savings, electric cost savings, and total project incentives are estimates only and intended solely for Wattsmart Business lighting projects. Savings may be adjusted for heating/cooling factors based on region and space type. Incentives paid are based upon approved as-installed equipment, operating conditions, and project costs. "]
[null,null,{"$f":"\"b. Energy savings shown above are estimated actual savings at the customer meter. Incentives are calculated using stipulated fixture savings of\"","v":"b. Energy savings shown above are estimated actual savings at the customer meter. Incentives are calculated using stipulated fixture savings of"}]
[null,null,{"$f":"TEXT(IFERROR((kWhSavings_Fixture_Stipulated/SUM(kWhSavings_Fixture_Stipulated,kWhSavings_Controls_Stipulated))*kWhSavings_Total_Stipulated,0),\"#,##0.00\") & \" kWh/yr, and a controls savings of \" & TEXT(IFERROR((kWhSavings_Controls_Stipulated/SUM(kWhSavings_Fixture_Stipulated,kWhSavings_Controls_Stipulated))*kWhSavings_Total_Stipulated,0),\"#,##0.00\")&\" kWh/yr.\"","v":"0.00 kWh/yr, and a controls savings of 0.00 kWh/yr."}]
[null,null,{"$f":"\"* Project-Level Lighting Power Density (watts per square foot): Existing (\"&TEXT(LPD_Existing,\"0.000\")&\")  / Code (\"&TEXT(LPD_Code,\"0.000\")&\")  / Proposed (\" &TEXT(LPD_Proposed,\"0.000\")&\")\"","v":"* Project-Level Lighting Power Density (watts per square foot): Existing (0.000)  / Code (0.000)  / Proposed (0.000)"}]
[null,null,"Lighting Project Next Steps"]
[]
[null,null,"ü  Review this assessment report with your auditor."]
[null,null,"ü  Steps for typical lighting incentives"]
[null,null,"1.",{"$f":"\"Before you start your project, submit a completed and signed general application to wattsmartbusiness@rockymountainpower.net or have your Wattsmart Business vendor submit it. We may need to verify existing equipment through an inspection.\"","v":"Before you start your project, submit a completed and signed general application to wattsmartbusiness@rockymountainpower.net or have your Wattsmart Business vendor submit it. We may need to verify existing equipment through an inspection."}]
[null,null,"2.","We provide an offer letter for you to review before you order equipment. You provide your tax ID in a completed W-9 form so we (or our program administrator) can prepare a 1099-Misc. (if required) following the incentive payment."]
[null,null,"3.","Upgrade your lighting. "]
[null,null,"4.","Submit project cost documentation including invoices with a breakdown of materials and labor per the terms outlined in the incentive offer letter. A post-installation inspection may be required."]
[null,null,"5.","Receive incentive check within 45 days of completion of step 4."]

{"sheet":"Project Report Details","index":6,"n_rows":60,"n_cols":28,"rows_kept":60,"cut":false,"hidden":true,"merged":[[8,1,9,8],[10,1,10,8]]}
[]
[]
[null,null,"This page prints with the summary report"]
[]
[]
[]
[]
[]
[null,"Equipment Details"]
[]
[]
[null,"Line","Operating Schedule","Space Description","Existing Equipment","Quantity (Existing)","Proposed Equipment","Quantity (Proposed)","Notes"]
[null,{"$f":"ROW(EquipmentDetails_Table[[#This Row],[Operating Schedule]])-ROW(EquipmentDetails_Table[[#Headers],[Operating Schedule]])","v":1},{"$f":"IF(ProjectInfoTable[[#This Row],[OpSch]]=\"\",\"\",IFERROR(ProjectInfoTable[[#This Row],[OpSch]]&\" - \"&TEXT(INDEX(OperatingHours_List,MATCH(ProjectInfoTable[[#This Row],[OpSch]],OperatingSchedules_List,0)),\"#,##0\")&\" hrs/yr\",\"\"))","v":""},{"$f":"IF(ProjectInfoTable[[#This Row],[Space Description]]=\"\",\"\",ProjectInfoTable[Space Description])","v":""},{"$f":"IF(ProjectInfoTable[[#This Row],[Existing Equipment]]=\"\",\"\",ProjectInfoTable[Existing Equipment])","v":""},{"$f":"IF(ProjectInfoTable[[#This Row],[Quantity (Existing)]]=\"\",\"\",ProjectInfoTable[Quantity (Existing)])","v":""},{"$f":"IF(ProjectInfoTable[[#This Row],[Proposed Equipment]]=\"\",\"\",ProjectInfoTable[Proposed Equipment])","v":""},{"$f":"IF(ProjectInfoTable[[#This Row],[Quantity (Proposed)]]=\"\",\"\",ProjectInfoTable[Quantity (Proposed)])","v":""},{"$f":"IF(ProjectInfoTable[[#This Row],[Notes / Fixture Parts Number]]=\"\",\"\",ProjectInfoTable[Notes / Fixture Parts Number])","v":""},null,null,null,null,null,null,null,null,null,null,null,null,null,null,null,null,"X","X","X"]
[null,{"$f":"ROW(EquipmentDetails_Table[[#This Row],[Operating Schedule]])-ROW(EquipmentDetails_Table[[#Headers],[Operating Schedule]])","v":2},{"$f":"IF(ProjectInfoTable[[#This Row],[OpSch]]=\"\",\"\",IFERROR(ProjectInfoTable[[#This Row],[OpSch]]&\" - \"&TEXT(INDEX(OperatingHours_List,MATCH(ProjectInfoTable[[#This Row],[OpSch]],OperatingSchedules_List,0)),\"#,##0\")&\" hrs/yr\",\"\"))","v":""},{"$f":"IF(ProjectInfoTable[[#This Row],[Space Description]]=\"\",\"\",ProjectInfoTable[Space Description])","v":""},{"$f":"IF(ProjectInfoTable[[#This Row],[Existing Equipment]]=\"\",\"\",ProjectInfoTable[Existing Equipment])","v":""},{"$f":"IF(ProjectInfoTable[[#This Row],[Quantity (Existing)]]=\"\",\"\",ProjectInfoTable[Quantity (Existing)])","v":""},{"$f":"IF(ProjectInfoTable[[#This Row],[Proposed Equipment]]=\"\",\"\",ProjectInfoTable[Proposed Equipment])","v":""},{"$f":"IF(ProjectInfoTable[[#This Row],[Quantity (Proposed)]]=\"\",\"\",ProjectInfoTable[Quantity (Proposed)])","v":""},{"$f":"IF(ProjectInfoTable[[#This Row],[Notes / Fixture Parts Number]]=\"\",\"\",ProjectInfoTable[Notes / Fixture Parts Number])","v":""},null,null,null,null,null,null,null,null,null,null,null,null,null,null,null,null,"X"]
[null,{"$f":"ROW(EquipmentDetails_Table[[#This Row],[Operating Schedule]])-ROW(EquipmentDetails_Table[[#Headers],[Operating Schedule]])","v":3},{"$f":"IF(ProjectInfoTable[[#This Row],[OpSch]]=\"\",\"\",IFERROR(ProjectInfoTable[[#This Row],[OpSch]]&\" - \"&TEXT(INDEX(OperatingHours_List,MATCH(ProjectInfoTable[[#This Row],[OpSch]],OperatingSchedules_List,0)),\"#,##0\")&\" hrs/yr\",\"\"))","v":""},{"$f":"IF(ProjectInfoTable[[#This Row],[Space Description]]=\"\",\"\",ProjectInfoTable[Space Description])","v":""},{"$f":"IF(ProjectInfoTable[[#This Row],[Existing Equipment]]=\"\",\"\",ProjectInfoTable[Existing Equipment])","v":""},{"$f":"IF(ProjectInfoTable[[#This Row],[Quantity (Existing)]]=\"\",\"\",ProjectInfoTable[Quantity (Existing)])","v":""},{"$f":"IF(ProjectInfoTable[[#This Row],[Proposed Equipment]]=\"\",\"\",ProjectInfoTable[Proposed Equipment])","v":""},{"$f":"IF(ProjectInfoTable[[#This Row],[Quantity (Proposed)]]=\"\",\"\",ProjectInfoTable[Quantity (Proposed)])","v":""},{"$f":"IF(ProjectInfoTable[[#This Row],[Notes / Fixture Parts Number]]=\"\",\"\",ProjectInfoTable[Notes / Fixture Parts Number])","v":""},null,null,null,null,null,null,null,null,null,null,null,null,null,null,null,null,"X"]
[null,{"$f":"ROW(EquipmentDetails_Table[[#This Row],[Operating Schedule]])-ROW(EquipmentDetails_Table[[#Headers],[Operating Schedule]])","v":4},{"$f":"IF(ProjectInfoTable[[#This Row],[OpSch]]=\"\",\"\",IFERROR(ProjectInfoTable[[#This Row],[OpSch]]&\" - \"&TEXT(INDEX(OperatingHours_List,MATCH(ProjectInfoTable[[#This Row],[OpSch]],OperatingSchedules_List,0)),\"#,##0\")&\" hrs/yr\",\"\"))","v":""},{"$f":"IF(ProjectInfoTable[[#This Row],[Space Description]]=\"\",\"\",ProjectInfoTable[Space Description])","v":""},{"$f":"IF(ProjectInfoTable[[#This Row],[Existing Equipment]]=\"\",\"\",ProjectInfoTable[Existing Equipment])","v":""},{"$f":"IF(ProjectInfoTable[[#This Row],[Quantity (Existing)]]=\"\",\"\",ProjectInfoTable[Quantity (Existing)])","v":""},{"$f":"IF(ProjectInfoTable[[#This Row],[Proposed Equipment]]=\"\",\"\",ProjectInfoTable[Proposed Equipment])","v":""},{"$f":"IF(ProjectInfoTable[[#This Row],[Quantity (Proposed)]]=\"\",\"\",ProjectInfoTable[Quantity (Proposed)])","v":""},{"$f":"IF(ProjectInfoTable[[#This Row],[Notes / Fixture Parts Number]]=\"\",\"\",ProjectInfoTable[Notes / Fixture Parts Number])","v":""},null,null,null,null,null,null,null,null,null,null,null,null,null,null,null,null,"X"]
[null,{"$f":"ROW(EquipmentDetails_Table[[#This Row],[Operating Schedule]])-ROW(EquipmentDetails_Table[[#Headers],[Operating Schedule]])","v":5},{"$f":"IF(ProjectInfoTable[[#This Row],[OpSch]]=\"\",\"\",IFERROR(ProjectInfoTable[[#This Row],[OpSch]]&\" - \"&TEXT(INDEX(OperatingHours_List,MATCH(ProjectInfoTable[[#This Row],[OpSch]],OperatingSchedules_List,0)),\"#,##0\")&\" hrs/yr\",\"\"))","v":""},{"$f":"IF(ProjectInfoTable[[#This Row],[Space Description]]=\"\",\"\",ProjectInfoTable[Space Description])","v":""},{"$f":"IF(ProjectInfoTable[[#This Row],[Existing Equipment]]=\"\",\"\",ProjectInfoTable[Existing Equipment])","v":""},{"$f":"IF(ProjectInfoTable[[#This Row],[Quantity (Existing)]]=\"\",\"\",ProjectInfoTable[Quantity (Existing)])","v":""},{"$f":"IF(ProjectInfoTable[[#This Row],[Proposed Equipment]]=\"\",\"\",ProjectInfoTable[Proposed Equipment])","v":""},{"$f":"IF(ProjectInfoTable[[#This Row],[Quantity (Proposed)]]=\"\",\"\",ProjectInfoTable[Quantity (Proposed)])","v":""},{"$f":"IF(ProjectInfoTable[[#This Row],[Notes / Fixture Parts Number]]=\"\",\"\",ProjectInfoTable[Notes / Fixture Parts Number])","v":""},null,null,null,null,null,null,null,null,null,null,null,null,null,null,null,null,"X"]
[null,{"$f":"ROW(EquipmentDetails_Table[[#This Row],[Operating Schedule]])-ROW(EquipmentDetails_Table[[#Headers],[Operating Schedule]])","v":6},{"$f":"IF(ProjectInfoTable[[#This Row],[OpSch]]=\"\",\"\",IFERROR(ProjectInfoTable[[#This Row],[OpSch]]&\" - \"&TEXT(INDEX(OperatingHours_List,MATCH(ProjectInfoTable[[#This Row],[OpSch]],OperatingSchedules_List,0)),\"#,##0\")&\" hrs/yr\",\"\"))","v":""},{"$f":"IF(ProjectInfoTable[[#This Row],[Space Description]]=\"\",\"\",ProjectInfoTable[Space Description])","v":""},{"$f":"IF(ProjectInfoTable[[#This Row],[Existing Equipment]]=\"\",\"\",ProjectInfoTable[Existing Equipment])","v":""},{"$f":"IF(ProjectInfoTable[[#This Row],[Quantity (Existing)]]=\"\",\"\",ProjectInfoTable[Quantity (Existing)])","v":""},{"$f":"IF(ProjectInfoTable[[#This Row],[Proposed Equipment]]=\"\",\"\",ProjectInfoTable[Proposed Equipment])","v":""},{"$f":"IF(ProjectInfoTable[[#This Row],[Quantity (Proposed)]]=\"\",\"\",ProjectInfoTable[Quantity (Proposed)])","v":""},{"$f":"IF(ProjectInfoTable[[#This Row],[Notes / Fixture Parts Number]]=\"\",\"\",ProjectInfoTable[Notes / Fixture Parts Number])","v":""}]
[null,{"$f":"ROW(EquipmentDetails_Table[[#This Row],[Operating Schedule]])-ROW(EquipmentDetails_Table[[#Headers],[Operating Schedule]])","v":7},{"$f":"IF(ProjectInfoTable[[#This Row],[OpSch]]=\"\",\"\",IFERROR(ProjectInfoTable[[#This Row],[OpSch]]&\" - \"&TEXT(INDEX(OperatingHours_List,MATCH(ProjectInfoTable[[#This Row],[OpSch]],OperatingSchedules_List,0)),\"#,##0\")&\" hrs/yr\",\"\"))","v":""},{"$f":"IF(ProjectInfoTable[[#This Row],[Space Description]]=\"\",\"\",ProjectInfoTable[Space Description])","v":""},{"$f":"IF(ProjectInfoTable[[#This Row],[Existing Equipment]]=\"\",\"\",ProjectInfoTable[Existing Equipment])","v":""},{"$f":"IF(ProjectInfoTable[[#This Row],[Quantity (Existing)]]=\"\",\"\",ProjectInfoTable[Quantity (Existing)])","v":""},{"$f":"IF(ProjectInfoTable[[#This Row],[Proposed Equipment]]=\"\",\"\",ProjectInfoTable[Proposed Equipment])","v":""},{"$f":"IF(ProjectInfoTable[[#This Row],[Quantity (Proposed)]]=\"\",\"\",ProjectInfoTable[Quantity (Proposed)])","v":""},{"$f":"IF(ProjectInfoTable[[#This Row],[Notes / Fixture Parts Number]]=\"\",\"\",ProjectInfoTable[Notes / Fixture Parts Number])","v":""}]
[null,{"$f":"ROW(EquipmentDetails_Table[[#This Row],[Operating Schedule]])-ROW(EquipmentDetails_Table[[#Headers],[Operating Schedule]])","v":8},{"$f":"IF(ProjectInfoTable[[#This Row],[OpSch]]=\"\",\"\",IFERROR(ProjectInfoTable[[#This Row],[OpSch]]&\" - \"&TEXT(INDEX(OperatingHours_List,MATCH(ProjectInfoTable[[#This Row],[OpSch]],OperatingSchedules_List,0)),\"#,##0\")&\" hrs/yr\",\"\"))","v":""},{"$f":"IF(ProjectInfoTable[[#This Row],[Space Description]]=\"\",\"\",ProjectInfoTable[Space Description])","v":""},{"$f":"IF(ProjectInfoTable[[#This Row],[Existing Equipment]]=\"\",\"\",ProjectInfoTable[Existing Equipment])","v":""},{"$f":"IF(ProjectInfoTable[[#This Row],[Quantity (Existing)]]=\"\",\"\",ProjectInfoTable[Quantity (Existing)])","v":""},{"$f":"IF(ProjectInfoTable[[#This Row],[Proposed Equipment]]=\"\",\"\",ProjectInfoTable[Proposed Equipment])","v":""},{"$f":"IF(ProjectInfoTable[[#This Row],[Quantity (Proposed)]]=\"\",\"\",ProjectInfoTable[Quantity (Proposed)])","v":""},{"$f":"IF(ProjectInfoTable[[#This Row],[Notes / Fixture Parts Number]]=\"\",\"\",ProjectInfoTable[Notes / Fixture Parts Number])","v":""}]
[null,{"$f":"ROW(EquipmentDetails_Table[[#This Row],[Operating Schedule]])-ROW(EquipmentDetails_Table[[#Headers],[Operating Schedule]])","v":9},{"$f":"IF(ProjectInfoTable[[#This Row],[OpSch]]=\"\",\"\",IFERROR(ProjectInfoTable[[#This Row],[OpSch]]&\" - \"&TEXT(INDEX(OperatingHours_List,MATCH(ProjectInfoTable[[#This Row],[OpSch]],OperatingSchedules_List,0)),\"#,##0\")&\" hrs/yr\",\"\"))","v":""},{"$f":"IF(ProjectInfoTable[[#This Row],[Space Description]]=\"\",\"\",ProjectInfoTable[Space Description])","v":""},{"$f":"IF(ProjectInfoTable[[#This Row],[Existing Equipment]]=\"\",\"\",ProjectInfoTable[Existing Equipment])","v":""},{"$f":"IF(ProjectInfoTable[[#This Row],[Quantity (Existing)]]=\"\",\"\",ProjectInfoTable[Quantity (Existing)])","v":""},{"$f":"IF(ProjectInfoTable[[#This Row],[Proposed Equipment]]=\"\",\"\",ProjectInfoTable[Proposed Equipment])","v":""},{"$f":"IF(ProjectInfoTable[[#This Row],[Quantity (Proposed)]]=\"\",\"\",ProjectInfoTable[Quantity (Proposed)])","v":""},{"$f":"IF(ProjectInfoTable[[#This Row],[Notes / Fixture Parts Number]]=\"\",\"\",ProjectInfoTable[Notes / Fixture Parts Number])","v":""}]
[null,{"$f":"ROW(EquipmentDetails_Table[[#This Row],[Operating Schedule]])-ROW(EquipmentDetails_Table[[#Headers],[Operating Schedule]])","v":10},{"$f":"IF(ProjectInfoTable[[#This Row],[OpSch]]=\"\",\"\",IFERROR(ProjectInfoTable[[#This Row],[OpSch]]&\" - \"&TEXT(INDEX(OperatingHours_List,MATCH(ProjectInfoTable[[#This Row],[OpSch]],OperatingSchedules_List,0)),\"#,##0\")&\" hrs/yr\",\"\"))","v":""},{"$f":"IF(ProjectInfoTable[[#This Row],[Space Description]]=\"\",\"\",ProjectInfoTable[Space Description])","v":""},{"$f":"IF(ProjectInfoTable[[#This Row],[Existing Equipment]]=\"\",\"\",ProjectInfoTable[Existing Equipment])","v":""},{"$f":"IF(ProjectInfoTable[[#This Row],[Quantity (Existing)]]=\"\",\"\",ProjectInfoTable[Quantity (Existing)])","v":""},{"$f":"IF(ProjectInfoTable[[#This Row],[Proposed Equipment]]=\"\",\"\",ProjectInfoTable[Proposed Equipment])","v":""},{"$f":"IF(ProjectInfoTable[[#This Row],[Quantity (Proposed)]]=\"\",\"\",ProjectInfoTable[Quantity (Proposed)])","v":""},{"$f":"IF(ProjectInfoTable[[#This Row],[Notes / Fixture Parts Number]]=\"\",\"\",ProjectInfoTable[Notes / Fixture Parts Number])","v":""}]
[null,{"$f":"ROW(EquipmentDetails_Table[[#This Row],[Operating Schedule]])-ROW(EquipmentDetails_Table[[#Headers],[Operating Schedule]])","v":11},{"$f":"IF(ProjectInfoTable[[#This Row],[OpSch]]=\"\",\"\",IFERROR(ProjectInfoTable[[#This Row],[OpSch]]&\" - \"&TEXT(INDEX(OperatingHours_List,MATCH(ProjectInfoTable[[#This Row],[OpSch]],OperatingSchedules_List,0)),\"#,##0\")&\" hrs/yr\",\"\"))","v":""},{"$f":"IF(ProjectInfoTable[[#This Row],[Space Description]]=\"\",\"\",ProjectInfoTable[Space Description])","v":""},{"$f":"IF(ProjectInfoTable[[#This Row],[Existing Equipment]]=\"\",\"\",ProjectInfoTable[Existing Equipment])","v":""},{"$f":"IF(ProjectInfoTable[[#This Row],[Quantity (Existing)]]=\"\",\"\",ProjectInfoTable[Quantity (Existing)])","v":""},{"$f":"IF(ProjectInfoTable[[#This Row],[Proposed Equipment]]=\"\",\"\",ProjectInfoTable[Proposed Equipment])","v":""},{"$f":"IF(ProjectInfoTable[[#This Row],[Quantity (Proposed)]]=\"\",\"\",ProjectInfoTable[Quantity (Proposed)])","v":""},{"$f":"IF(ProjectInfoTable[[#This Row],[Notes / Fixture Parts Number]]=\"\",\"\",ProjectInfoTable[Notes / Fixture Parts Number])","v":""}]
[null,{"$f":"ROW(EquipmentDetails_Table[[#This Row],[Operating Schedule]])-ROW(EquipmentDetails_Table[[#Headers],[Operating Schedule]])","v":12},{"$f":"IF(ProjectInfoTable[[#This Row],[OpSch]]=\"\",\"\",IFERROR(ProjectInfoTable[[#This Row],[OpSch]]&\" - \"&TEXT(INDEX(OperatingHours_List,MATCH(ProjectInfoTable[[#This Row],[OpSch]],OperatingSchedules_List,0)),\"#,##0\")&\" hrs/yr\",\"\"))","v":""},{"$f":"IF(ProjectInfoTable[[#This Row],[Space Description]]=\"\",\"\",ProjectInfoTable[Space Description])","v":""},{"$f":"IF(ProjectInfoTable[[#This Row],[Existing Equipment]]=\"\",\"\",ProjectInfoTable[Existing Equipment])","v":""},{"$f":"IF(ProjectInfoTable[[#This Row],[Quantity (Existing)]]=\"\",\"\",ProjectInfoTable[Quantity (Existing)])","v":""},{"$f":"IF(ProjectInfoTable[[#This Row],[Proposed Equipment]]=\"\",\"\",ProjectInfoTable[Proposed Equipment])","v":""},{"$f":"IF(ProjectInfoTable[[#This Row],[Quantity (Proposed)]]=\"\",\"\",ProjectInfoTable[Quantity (Proposed)])","v":""},{"$f":"IF(ProjectInfoTable[[#This Row],[Notes / Fixture Parts Number]]=\"\",\"\",ProjectInfoTable[Notes / Fixture Parts Number])","v":""}]
[null,{"$f":"ROW(EquipmentDetails_Table[[#This Row],[Operating Schedule]])-ROW(EquipmentDetails_Table[[#Headers],[Operating Schedule]])","v":13},{"$f":"IF(ProjectInfoTable[[#This Row],[OpSch]]=\"\",\"\",IFERROR(ProjectInfoTable[[#This Row],[OpSch]]&\" - \"&TEXT(INDEX(OperatingHours_List,MATCH(ProjectInfoTable[[#This Row],[OpSch]],OperatingSchedules_List,0)),\"#,##0\")&\" hrs/yr\",\"\"))","v":""},{"$f":"IF(ProjectInfoTable[[#This Row],[Space Description]]=\"\",\"\",ProjectInfoTable[Space Description])","v":""},{"$f":"IF(ProjectInfoTable[[#This Row],[Existing Equipment]]=\"\",\"\",ProjectInfoTable[Existing Equipment])","v":""},{"$f":"IF(ProjectInfoTable[[#This Row],[Quantity (Existing)]]=\"\",\"\",ProjectInfoTable[Quantity (Existing)])","v":""},{"$f":"IF(ProjectInfoTable[[#This Row],[Proposed Equipment]]=\"\",\"\",ProjectInfoTable[Proposed Equipment])","v":""},{"$f":"IF(ProjectInfoTable[[#This Row],[Quantity (Proposed)]]=\"\",\"\",ProjectInfoTable[Quantity (Proposed)])","v":""},{"$f":"IF(ProjectInfoTable[[#This Row],[Notes / Fixture Parts Number]]=\"\",\"\",ProjectInfoTable[Notes / Fixture Parts Number])","v":""}]
[null,{"$f":"ROW(EquipmentDetails_Table[[#This Row],[Operating Schedule]])-ROW(EquipmentDetails_Table[[#Headers],[Operating Schedule]])","v":14},{"$f":"IF(ProjectInfoTable[[#This Row],[OpSch]]=\"\",\"\",IFERROR(ProjectInfoTable[[#This Row],[OpSch]]&\" - \"&TEXT(INDEX(OperatingHours_List,MATCH(ProjectInfoTable[[#This Row],[OpSch]],OperatingSchedules_List,0)),\"#,##0\")&\" hrs/yr\",\"\"))","v":""},{"$f":"IF(ProjectInfoTable[[#This Row],[Space Description]]=\"\",\"\",ProjectInfoTable[Space Description])","v":""},{"$f":"IF(ProjectInfoTable[[#This Row],[Existing Equipment]]=\"\",\"\",ProjectInfoTable[Existing Equipment])","v":""},{"$f":"IF(ProjectInfoTable[[#This Row],[Quantity (Existing)]]=\"\",\"\",ProjectInfoTable[Quantity (Existing)])","v":""},{"$f":"IF(ProjectInfoTable[[#This Row],[Proposed Equipment]]=\"\",\"\",ProjectInfoTable[Proposed Equipment])","v":""},{"$f":"IF(ProjectInfoTable[[#This Row],[Quantity (Proposed)]]=\"\",\"\",ProjectInfoTable[Quantity (Proposed)])","v":""},{"$f":"IF(ProjectInfoTable[[#This Row],[Notes / Fixture Parts Number]]=\"\",\"\",ProjectInfoTable[Notes / Fixture Parts Number])","v":""}]
[null,{"$f":"ROW(EquipmentDetails_Table[[#This Row],[Operating Schedule]])-ROW(EquipmentDetails_Table[[#Headers],[Operating Schedule]])","v":15},{"$f":"IF(ProjectInfoTable[[#This Row],[OpSch]]=\"\",\"\",IFERROR(ProjectInfoTable[[#This Row],[OpSch]]&\" - \"&TEXT(INDEX(OperatingHours_List,MATCH(ProjectInfoTable[[#This Row],[OpSch]],OperatingSchedules_List,0)),\"#,##0\")&\" hrs/yr\",\"\"))","v":""},{"$f":"IF(ProjectInfoTable[[#This Row],[Space Description]]=\"\",\"\",ProjectInfoTable[Space Description])","v":""},{"$f":"IF(ProjectInfoTable[[#This Row],[Existing Equipment]]=\"\",\"\",ProjectInfoTable[Existing Equipment])","v":""},{"$f":"IF(ProjectInfoTable[[#This Row],[Quantity (Existing)]]=\"\",\"\",ProjectInfoTable[Quantity (Existing)])","v":""},{"$f":"IF(ProjectInfoTable[[#This Row],[Proposed Equipment]]=\"\",\"\",ProjectInfoTable[Proposed Equipment])","v":""},{"$f":"IF(ProjectInfoTable[[#This Row],[Quantity (Proposed)]]=\"\",\"\",ProjectInfoTable[Quantity (Proposed)])","v":""},{"$f":"IF(ProjectInfoTable[[#This Row],[Notes / Fixture Parts Number]]=\"\",\"\",ProjectInfoTable[Notes / Fixture Parts Number])","v":""}]
[null,{"$f":"ROW(EquipmentDetails_Table[[#This Row],[Operating Schedule]])-ROW(EquipmentDetails_Table[[#Headers],[Operating Schedule]])","v":16},{"$f":"IF(ProjectInfoTable[[#This Row],[OpSch]]=\"\",\"\",IFERROR(ProjectInfoTable[[#This Row],[OpSch]]&\" - \"&TEXT(INDEX(OperatingHours_List,MATCH(ProjectInfoTable[[#This Row],[OpSch]],OperatingSchedules_List,0)),\"#,##0\")&\" hrs/yr\",\"\"))","v":""},{"$f":"IF(ProjectInfoTable[[#This Row],[Space Description]]=\"\",\"\",ProjectInfoTable[Space Description])","v":""},{"$f":"IF(ProjectInfoTable[[#This Row],[Existing Equipment]]=\"\",\"\",ProjectInfoTable[Existing Equipment])","v":""},{"$f":"IF(ProjectInfoTable[[#This Row],[Quantity (Existing)]]=\"\",\"\",ProjectInfoTable[Quantity (Existing)])","v":""},{"$f":"IF(ProjectInfoTable[[#This Row],[Proposed Equipment]]=\"\",\"\",ProjectInfoTable[Proposed Equipment])","v":""},{"$f":"IF(ProjectInfoTable[[#This Row],[Quantity (Proposed)]]=\"\",\"\",ProjectInfoTable[Quantity (Proposed)])","v":""},{"$f":"IF(ProjectInfoTable[[#This Row],[Notes / Fixture Parts Number]]=\"\",\"\",ProjectInfoTable[Notes / Fixture Parts Number])","v":""}]
[null,{"$f":"ROW(EquipmentDetails_Table[[#This Row],[Operating Schedule]])-ROW(EquipmentDetails_Table[[#Headers],[Operating Schedule]])","v":17},{"$f":"IF(ProjectInfoTable[[#This Row],[OpSch]]=\"\",\"\",IFERROR(ProjectInfoTable[[#This Row],[OpSch]]&\" - \"&TEXT(INDEX(OperatingHours_List,MATCH(ProjectInfoTable[[#This Row],[OpSch]],OperatingSchedules_List,0)),\"#,##0\")&\" hrs/yr\",\"\"))","v":""},{"$f":"IF(ProjectInfoTable[[#This Row],[Space Description]]=\"\",\"\",ProjectInfoTable[Space Description])","v":""},{"$f":"IF(ProjectInfoTable[[#This Row],[Existing Equipment]]=\"\",\"\",ProjectInfoTable[Existing Equipment])","v":""},{"$f":"IF(ProjectInfoTable[[#This Row],[Quantity (Existing)]]=\"\",\"\",ProjectInfoTable[Quantity (Existing)])","v":""},{"$f":"IF(ProjectInfoTable[[#This Row],[Proposed Equipment]]=\"\",\"\",ProjectInfoTable[Proposed Equipment])","v":""},{"$f":"IF(ProjectInfoTable[[#This Row],[Quantity (Proposed)]]=\"\",\"\",ProjectInfoTable[Quantity (Proposed)])","v":""},{"$f":"IF(ProjectInfoTable[[#This Row],[Notes / Fixture Parts Number]]=\"\",\"\",ProjectInfoTable[Notes / Fixture Parts Number])","v":""}]
[null,{"$f":"ROW(EquipmentDetails_Table[[#This Row],[Operating Schedule]])-ROW(EquipmentDetails_Table[[#Headers],[Operating Schedule]])","v":18},{"$f":"IF(ProjectInfoTable[[#This Row],[OpSch]]=\"\",\"\",IFERROR(ProjectInfoTable[[#This Row],[OpSch]]&\" - \"&TEXT(INDEX(OperatingHours_List,MATCH(ProjectInfoTable[[#This Row],[OpSch]],OperatingSchedules_List,0)),\"#,##0\")&\" hrs/yr\",\"\"))","v":""},{"$f":"IF(ProjectInfoTable[[#This Row],[Space Description]]=\"\",\"\",ProjectInfoTable[Space Description])","v":""},{"$f":"IF(ProjectInfoTable[[#This Row],[Existing Equipment]]=\"\",\"\",ProjectInfoTable[Existing Equipment])","v":""},{"$f":"IF(ProjectInfoTable[[#This Row],[Quantity (Existing)]]=\"\",\"\",ProjectInfoTable[Quantity (Existing)])","v":""},{"$f":"IF(ProjectInfoTable[[#This Row],[Proposed Equipment]]=\"\",\"\",ProjectInfoTable[Proposed Equipment])","v":""},{"$f":"IF(ProjectInfoTable[[#This Row],[Quantity (Proposed)]]=\"\",\"\",ProjectInfoTable[Quantity (Proposed)])","v":""},{"$f":"IF(ProjectInfoTable[[#This Row],[Notes / Fixture Parts Number]]=\"\",\"\",ProjectInfoTable[Notes / Fixture Parts Number])","v":""}]
[null,{"$f":"ROW(EquipmentDetails_Table[[#This Row],[Operating Schedule]])-ROW(EquipmentDetails_Table[[#Headers],[Operating Schedule]])","v":19},{"$f":"IF(ProjectInfoTable[[#This Row],[OpSch]]=\"\",\"\",IFERROR(ProjectInfoTable[[#This Row],[OpSch]]&\" - \"&TEXT(INDEX(OperatingHours_List,MATCH(ProjectInfoTable[[#This Row],[OpSch]],OperatingSchedules_List,0)),\"#,##0\")&\" hrs/yr\",\"\"))","v":""},{"$f":"IF(ProjectInfoTable[[#This Row],[Space Description]]=\"\",\"\",ProjectInfoTable[Space Description])","v":""},{"$f":"IF(ProjectInfoTable[[#This Row],[Existing Equipment]]=\"\",\"\",ProjectInfoTable[Existing Equipment])","v":""},{"$f":"IF(ProjectInfoTable[[#This Row],[Quantity (Existing)]]=\"\",\"\",ProjectInfoTable[Quantity (Existing)])","v":""},{"$f":"IF(ProjectInfoTable[[#This Row],[Proposed Equipment]]=\"\",\"\",ProjectInfoTable[Proposed Equipment])","v":""},{"$f":"IF(ProjectInfoTable[[#This Row],[Quantity (Proposed)]]=\"\",\"\",ProjectInfoTable[Quantity (Proposed)])","v":""},{"$f":"IF(ProjectInfoTable[[#This Row],[Notes / Fixture Parts Number]]=\"\",\"\",ProjectInfoTable[Notes / Fixture Parts Number])","v":""}]
[null,{"$f":"ROW(EquipmentDetails_Table[[#This Row],[Operating Schedule]])-ROW(EquipmentDetails_Table[[#Headers],[Operating Schedule]])","v":20},{"$f":"IF(ProjectInfoTable[[#This Row],[OpSch]]=\"\",\"\",IFERROR(ProjectInfoTable[[#This Row],[OpSch]]&\" - \"&TEXT(INDEX(OperatingHours_List,MATCH(ProjectInfoTable[[#This Row],[OpSch]],OperatingSchedules_List,0)),\"#,##0\")&\" hrs/yr\",\"\"))","v":""},{"$f":"IF(ProjectInfoTable[[#This Row],[Space Description]]=\"\",\"\",ProjectInfoTable[Space Description])","v":""},{"$f":"IF(ProjectInfoTable[[#This Row],[Existing Equipment]]=\"\",\"\",ProjectInfoTable[Existing Equipment])","v":""},{"$f":"IF(ProjectInfoTable[[#This Row],[Quantity (Existing)]]=\"\",\"\",ProjectInfoTable[Quantity (Existing)])","v":""},{"$f":"IF(ProjectInfoTable[[#This Row],[Proposed Equipment]]=\"\",\"\",ProjectInfoTable[Proposed Equipment])","v":""},{"$f":"IF(ProjectInfoTable[[#This Row],[Quantity (Proposed)]]=\"\",\"\",ProjectInfoTable[Quantity (Proposed)])","v":""},{"$f":"IF(ProjectInfoTable[[#This Row],[Notes / Fixture Parts Number]]=\"\",\"\",ProjectInfoTable[Notes / Fixture Parts Number])","v":""}]
[]
[]
[]
[]
[]
[]
[]
[]
[]
[]
[]
[]
[]
[]
[]
[]
[]
[]
[]
[]
[]
[]
[]
[]
[]
[null,null,null,null,null,null,null,null,null,null,null,null,null,null,null,null,null,null,null,null,null,null,null,null,null,null,"o"]
[null,null,null,null,null,null,null,null,null,null,null,null,null,null,null,null,null,null,null,null,null,null,null,null,null,null,"o"]
[null,null,null,null,null,null,null,null,null,null,null,null,null,null,null,null,null,null,null,null,null,null,null,null,null,null,"o"]

{"sheet":"Fixtures Summary","index":7,"n_rows":5,"n_cols":9,"rows_kept":5,"cut":false,"hidden":false,"merged":[]}
[null,null,{"$f":"IF(ProjectName=\"\",\"<no project name entered>\",ProjectName)","v":"<no project name entered>"},null,{"$f":"ProjectStage","v":"Preliminary (Pre-Install)"},null,{"$f":"C1","v":"<no project name entered>"},null,{"$f":"E1","v":"Preliminary (Pre-Install)"}]
[null,null,"Fixture Summary with Quantities",null,{"$f":"TODAY()","v":"2026-04-30"},null,"Controls Summary with Quantities",null,{"$f":"E2","v":"2026-04-30"}]
[]
[null,null,"Proposed Fixtures","Units","Quantities",null,"Proposed Controls","Units","Quantities"]
[null,null,null,null,0,null,null,null,0]

{"sheet":"Controls Summary","index":8,"n_rows":5,"n_cols":5,"rows_kept":5,"cut":false,"hidden":true,"merged":[]}
[null,null,{"$f":"IF(ProjectName=\"\",\"<no project name entered>\",ProjectName)","v":"<no project name entered>"},null,{"$f":"ProjectStage","v":"Preliminary (Pre-Install)"}]
[null,null,"Controls Summary with Quantities",null,{"$f":"TODAY()","v":"2026-04-30"}]
[]
[null,null,"Proposed Controls","Units","Quantities"]
[null,null,null,null,0]

{"sheet":"Lookups","index":9,"n_rows":603,"n_cols":79,"rows_kept":603,"cut":false,"hidden":true,"merged":[]}
[null,"Project State","IO Address","Email","State Name","MidEmail","MidAddress",null,"Project Type",null,"Coordinator","Title","Phone","Fax","Email",null,"WeeksPerYear",null,"Space Type","DDF","Op Hours",null,"Controls","Full Description","Controls Concatenate","Controls Type","Rank","CSF_ID","NCMRControlMeasure_ID","ControlMeasure_ID","CSF_UT","NCMRControlMeasure_UT","ControlMeasure_UTSmall","ControlMeasure_UTMedium","ControlMeasure_UTLarge","CSF_WY","NCMRControlMeasure_WY","ControlMeasure_WY","Location",null,"Old Control","New Control","Rank",null,null,null,null,null,null,null,null,null,null,null,null,null,null,null,null,null,null,null,null,null,null,null,null,null,null,null,null,null,null,"SBD Approved Vendors (Deprecated)"]
[null,"ID","3556 S 51200 W #490 \nSalt Lake City, UT 84120 ","Wattsmart@evergreen.energy","Idaho","Wattsmart@evergreen.energy","3556 S 51200 W #490 \nSalt Lake City, UT 84120 ",null,"Retrofit",null,"Alison Kilpack","Sr. Project Coordinator","801-255-1881","801-233-0883","Alison.Kilpack@evergreen.energy",null,52,null,"All Other",0.78,3800,null,"Basic","Basic",{"$f":"CONCATENATE(ControlsLookup[[#This Row],[Location]],\"_\",ControlsLookup[[#This Row],[Controls]])","v":"Interior_Basic"},"Basic",1,0.25,null,null,0.25,null,"Interior Basic Lighting Controls - Retrofit - UT","Interior Basic Lighting Controls - Retrofit - UT","Interior Basic Lighting Controls - Retrofit - UT",0.25,null,"Non-eligible fixture - Retrofit - WY","Interior",null,"Adv (Office)","Advanced networked",{"$f":"COUNTIF(ControlsMapping[Old Control],\"*\"&ControlsMapping[[#This Row],[Old Control]]&\"*\")","v":1},null,null,null,null,"Segmentation",null,null,null,null,null,null,null,null,null,null,null,null,null,null,null,null,null,null,null,null,null,null,null,null,null,"Vendor Name","Address","City","State","Zip","Project State"]
[null,"UT","3556 S 51200 W #490 \nSalt Lake City, UT 84120 ","Wattsmart@evergreen.energy","Utah","Wattsmart@evergreen.energy","3556 S 51200 W #490 \nSalt Lake City, UT 84120 ",null,"Major Renovation",null,"Camille Cooper","Project Coordinator","208-830-0132","503-482-7447","Camille.Cooper@evergreen.energy",null,51,null,"Auditorium",0.89,2700,null,"Basic exterior dimming","Basic exterior dimming",{"$f":"CONCATENATE(ControlsLookup[[#This Row],[Location]],\"_\",ControlsLookup[[#This Row],[Controls]])","v":"Exterior_Basic exterior dimming"},"Mid",2,0.35,"Exterior Advanced Lighting Controls - Basic Dimming Controls - NCMR - ID","Exterior Advanced Lighting Controls - Basic Dimming Controls - Retrofit - ID",0.35,"Exterior Advanced Lighting Controls - Basic Dimming Controls - MR wCode - v2 - UT","Exterior Advanced Lighting Controls - Basic Dimming Controls - Retrofit - UT","Exterior Advanced Lighting Controls - Basic Dimming Controls - Retrofit - UT","Exterior Advanced Lighting Controls - Basic Dimming Controls - Retrofit - UT",0.35,"Exterior Advanced Lighting Controls - Basic Dimming Controls - NCMR - WY","Exterior Advanced Lighting Controls - Basic Dimming Controls - Retrofit - WY","Exterior",null,"Adv (Other)","Advanced networked",{"$f":"COUNTIF(ControlsMapping[Old Control],\"*\"&ControlsMapping[[#This Row],[Old Control]]&\"*\")","v":1},null,null,null,null,"Numbers","kW Boundary","kW Exception","Center S/M","Boundary S/M","Exception S/M","Tag S/M","Center M/L","Boundary M/L","Exception M/L","Tag M/L",null,"Segmentation",null,null,null,null,null,null,null,null,null,null,null,null,null,"Advanced Lighting, Inc.","3099 South 1030 West","Salt Lake City","UT",84119,"ID"]
[null,"WY","3556 S 51200 W #490 \nSalt Lake City, UT 84120 ","Wattsmart@evergreen.energy","Wyoming","Wattsmart@evergreen.energy","3556 S 51200 W #490 \nSalt Lake City, UT 84120 ",null,"New Construction",null,"Denise Ashby","Project Coordinator","801-255-5678","801-233-0883","Denise.Ashby@evergreen.energy",null,50,null,"Auto Repair",0.94,3100,null,"Basic exterior dimming","Basic exterior dimming",{"$f":"CONCATENATE(ControlsLookup[[#This Row],[Location]],\"_\",ControlsLookup[[#This Row],[Controls]])","v":"Seasonal Exterior_Basic exterior dimming"},"Mid",2,0.35,null,null,0.35,"Exterior Advanced Lighting Controls - Basic Dimming Controls - MR wCode - v2 - UT","Exterior Advanced Lighting Controls - Basic Dimming Controls - Seasonal - Retrofit - Small - UT","Exterior Advanced Lighting Controls - Basic Dimming Controls - Seasonal - Retrofit - Medium - UT","Exterior Advanced Lighting Controls - Basic Dimming Controls - Seasonal - Retrofit - Large - UT",0.35,"Exterior Advanced Lighting Controls - Basic Dimming Controls - NCMR - WY","Exterior Advanced Lighting Controls - Basic Dimming Controls - Retrofit - WY","Seasonal Exterior",null,"Adv (Warehouse)","Advanced networked",{"$f":"COUNTIF(ControlsMapping[Old Control],\"*\"&ControlsMapping[[#This Row],[Old Control]]&\"*\")","v":1},null,null,null,null,1,{"$f":"SegmentExceptTable[[#This Row],[Numbers]]/$BP$4","v":1.6694490818030051E-3},{"$f":"SegmentExceptTable[[#This Row],[kW Boundary]]+(0.05*SegmentExceptTable[[#This Row],[kW Boundary]])","v":1.7529215358931553E-3},{"$f":"$BP$6*SegmentExceptTable[[#This Row],[kW Boundary]]+$BP$7","v":-1.6290508397244267E-2},{"$f":"$BP$8*SegmentExceptTable[[#This Row],[kW Boundary]]+$BP$9","v":0.19236408483816431},{"$f":"SegmentExceptTable[[#This Row],[Boundary S/M]]+(0.05*SegmentExceptTable[[#This Row],[Boundary S/M]])","v":0.20198228908007251},{"$f":"IF(AND(AND(kwpeak_norm>SegmentExceptTable[[#This Row],[kW Boundary]],kwpeak_norm<SegmentExceptTable[[#This Row],[kW Exception]]),AND(kwhmo_norm>SegmentExceptTable[[#This Row],[Boundary S/M]],kwhmo_norm<SegmentExceptTable[[#This Row],[Exception S/M]])),1,0)","v":0},{"$f":"$BP$10*SegmentExceptTable[[#This Row],[kW Boundary]]+$BP$11","v":-0.12642088688751191},{"$f":"$BP$12*SegmentExceptTable[[#This Row],[kW Boundary]]+$BP$13","v":0.56986175320047772},{"$f":"SegmentExceptTable[[#This Row],[Boundary M/L]]+(0.05*SegmentExceptTable[[#This Row],[Boundary M/L]])","v":0.59835484086050161},{"$f":"IF(AND(AND(kwpeak_norm>SegmentExceptTable[[#This Row],[kW Boundary]],kwpeak_norm<SegmentExceptTable[[#This Row],[kW Exception]]),AND(kwhmo_norm>SegmentExceptTable[[#This Row],[Boundary M/L]],kwhmo_norm<SegmentExceptTable[[#This Row],[Exception M/L]])),1,0)","v":0},null,"Group","KW Peak Demand","KWH Monthly Ave","Centroid Distance","Exception Percent",null,null,"max kw",599,null,null,"Small/Medium",null,null,"Consolidated Electrical Distributors (CED) - Logan, UT","636 N 1200 W","Logan","UT",84321,"ID"]
[null,null,null,null,null,null,null,null,null,null,"Pam Loitz","Project Coordinator","503-799-6909","503-482-7447","Pam.Loitz@evergreen.energy",null,49,null,"Automotive Facility",0.94,3100,null,"Basic exterior dimming","Basic exterior dimming",{"$f":"CONCATENATE(ControlsLookup[[#This Row],[Location]],\"_\",ControlsLookup[[#This Row],[Controls]])","v":"Street_Basic exterior dimming"},"Mid",2,0.35,"Exterior Advanced Lighting Controls - Basic Dimming Controls - NCMR - ID","Exterior Advanced Lighting Controls - Basic Dimming Controls - Retrofit - ID",0.35,"Exterior Advanced Lighting Controls - Basic Dimming Controls - MR wCode - v2 - UT","Exterior Advanced Lighting Controls - Basic Dimming Controls - Retrofit - UT","Exterior Advanced Lighting Controls - Basic Dimming Controls - Retrofit - UT","Exterior Advanced Lighting Controls - Basic Dimming Controls - Retrofit - UT",0.35,"Exterior Advanced Lighting Controls - Basic Dimming Controls - NCMR - WY","Exterior Advanced Lighting Controls - Basic Dimming Controls - Retrofit - WY","Street",null,"Adv Ext Dim Net","Advanced networked exterior dimming",{"$f":"COUNTIF(ControlsMapping[Old Control],\"*\"&ControlsMapping[[#This Row],[Old Control]]&\"*\")","v":1},null,null,null,null,2,{"$f":"SegmentExceptTable[[#This Row],[Numbers]]/$BP$4","v":3.3388981636060101E-3},{"$f":"SegmentExceptTable[[#This Row],[kW Boundary]]+(0.05*SegmentExceptTable[[#This Row],[kW Boundary]])","v":3.5058430717863106E-3},{"$f":"$BP$6*SegmentExceptTable[[#This Row],[kW Boundary]]+$BP$7","v":-1.3863678101877989E-2},{"$f":"$BP$8*SegmentExceptTable[[#This Row],[kW Boundary]]+$BP$9","v":0.19121564844273345},{"$f":"SegmentExceptTable[[#This Row],[Boundary S/M]]+(0.05*SegmentExceptTable[[#This Row],[Boundary S/M]])","v":0.20077643086487013},{"$f":"IF(AND(AND(kwpeak_norm>SegmentExceptTable[[#This Row],[kW Boundary]],kwpeak_norm<SegmentExceptTable[[#This Row],[kW Exception]]),AND(kwhmo_norm>SegmentExceptTable[[#This Row],[Boundary S/M]],kwhmo_norm<SegmentExceptTable[[#This Row],[Exception S/M]])),1,0)","v":0},{"$f":"$BP$10*SegmentExceptTable[[#This Row],[kW Boundary]]+$BP$11","v":-0.12289383324527339},{"$f":"$BP$12*SegmentExceptTable[[#This Row],[kW Boundary]]+$BP$13","v":0.56907155817668897},{"$f":"SegmentExceptTable[[#This Row],[Boundary M/L]]+(0.05*SegmentExceptTable[[#This Row],[Boundary M/L]])","v":0.59752513608552338},{"$f":"IF(AND(AND(kwpeak_norm>SegmentExceptTable[[#This Row],[kW Boundary]],kwpeak_norm<SegmentExceptTable[[#This Row],[kW Exception]]),AND(kwhmo_norm>SegmentExceptTable[[#This Row],[Boundary M/L]],kwhmo_norm<SegmentExceptTable[[#This Row],[Exception M/L]])),1,0)","v":0},null,"{S}",2.942059E-2,2.4050530000000001E-2,{"$f":"SQRT((BI5-$BI$8)^2+(BJ5-$BJ$8)^2)","v":3.7999988279327143E-2},{"$f":"IFERROR(ABS((BK6-SegmentGroupTable[[#This Row],[Centroid Distance]]))/(SQRT(BT21^2+BT22^2)),\"\")","v":1.5306475610086989},null,null,"max kwh",149673,null,null,"x1",10,null,"D & S Electrical Supply","455 South Eastern Avenue","Idaho Falls","ID",83402,"ID"]
[null,"source: Rates For Software 2-12-26 (updated 4/1/26-ds)",null,null,null,null,null,null,null,null,"Taylor Abbott","Sr. Project Coordinator","616-485-7832","503-482-7447","Taylor.Abbott@evergreen.energy",null,48,null,"Bank/Financial Institution",0.78,null,null,"Basic reused","Basic reused",{"$f":"CONCATENATE(ControlsLookup[[#This Row],[Location]],\"_\",ControlsLookup[[#This Row],[Controls]])","v":"Interior_Basic reused"},"Basic",1,0,null,null,0,null,null,null,null,0,null,null,"Interior",null,"Adv DL Net","Networked",{"$f":"COUNTIF(ControlsMapping[Old Control],\"*\"&ControlsMapping[[#This Row],[Old Control]]&\"*\")","v":1},null,null,null,null,3,{"$f":"SegmentExceptTable[[#This Row],[Numbers]]/$BP$4","v":5.008347245409015E-3},{"$f":"SegmentExceptTable[[#This Row],[kW Boundary]]+(0.05*SegmentExceptTable[[#This Row],[kW Boundary]])","v":5.2587646076794657E-3},{"$f":"$BP$6*SegmentExceptTable[[#This Row],[kW Boundary]]+$BP$7","v":-1.1436847806511712E-2},{"$f":"$BP$8*SegmentExceptTable[[#This Row],[kW Boundary]]+$BP$9","v":0.19006721204730256},{"$f":"SegmentExceptTable[[#This Row],[Boundary S/M]]+(0.05*SegmentExceptTable[[#This Row],[Boundary S/M]])","v":0.19957057264966768},{"$f":"IF(AND(AND(kwpeak_norm>SegmentExceptTable[[#This Row],[kW Boundary]],kwpeak_norm<SegmentExceptTable[[#This Row],[kW Exception]]),AND(kwhmo_norm>SegmentExceptTable[[#This Row],[Boundary S/M]],kwhmo_norm<SegmentExceptTable[[#This Row],[Exception S/M]])),1,0)","v":0},{"$f":"$BP$10*SegmentExceptTable[[#This Row],[kW Boundary]]+$BP$11","v":-0.11936677960303486},{"$f":"$BP$12*SegmentExceptTable[[#This Row],[kW Boundary]]+$BP$13","v":0.56828136315290023},{"$f":"SegmentExceptTable[[#This Row],[Boundary M/L]]+(0.05*SegmentExceptTable[[#This Row],[Boundary M/L]])","v":0.59669543131054525},{"$f":"IF(AND(AND(kwpeak_norm>SegmentExceptTable[[#This Row],[kW Boundary]],kwpeak_norm<SegmentExceptTable[[#This Row],[kW Exception]]),AND(kwhmo_norm>SegmentExceptTable[[#This Row],[Boundary M/L]],kwhmo_norm<SegmentExceptTable[[#This Row],[Exception M/L]])),1,0)","v":0},null,"{M}",0.16877829999999999,0.22663084,0.28257326871095856,{"$f":"IFERROR(ABS((BK7-SegmentGroupTable[[#This Row],[Centroid Distance]]))/(SQRT(BT23^2+BT24^2)-SQRT(BT21^2+BT22^2)),\"\")","v":1.3203658056101197},null,null,"slope_s",{"$f":"(BJ6-BJ5)/(BI6-BI5)","v":1.4536713469244005},null,null,"y1",{"$f":"BP5*INDEX(SegmentExceptTable[Boundary S/M],MATCH(BT5,SegmentExceptTable[Numbers],0))","v":27244.700384462638},null,"Elysium Energy LLC","14466 S Long Ridge Drive","Herriman","UT",84096,"ID"]
[null,"State","Rate Schedule","Rate Code","kWh Rate","kW Rate",null,null,null,null,null,null,null,null,null,null,47,null,"Beauty Salon",0.94,null,null,"Control recommissioning","Control recommissioning",{"$f":"CONCATENATE(ControlsLookup[[#This Row],[Location]],\"_\",ControlsLookup[[#This Row],[Controls]])","v":"Interior_Control recommissioning"},"Mid",1,0,null,null,0.26,null,"Interior Advanced Networked Lighting Controls - Commissioning Only - Retrofit - UT","Interior Advanced Networked Lighting Controls - Commissioning Only - Retrofit - UT","Interior Advanced Networked Lighting Controls - Commissioning Only - Retrofit - UT",0,null,null,"Interior",null,"Case Occ Net","Networked",{"$f":"COUNTIF(ControlsMapping[Old Control],\"*\"&ControlsMapping[[#This Row],[Old Control]]&\"*\")","v":1},null,"Segmentation Info",null,null,4,{"$f":"SegmentExceptTable[[#This Row],[Numbers]]/$BP$4","v":6.6777963272120202E-3},{"$f":"SegmentExceptTable[[#This Row],[kW Boundary]]+(0.05*SegmentExceptTable[[#This Row],[kW Boundary]])","v":7.0116861435726213E-3},{"$f":"$BP$6*SegmentExceptTable[[#This Row],[kW Boundary]]+$BP$7","v":-9.0100175111454336E-3},{"$f":"$BP$8*SegmentExceptTable[[#This Row],[kW Boundary]]+$BP$9","v":0.18891877565187168},{"$f":"SegmentExceptTable[[#This Row],[Boundary S/M]]+(0.05*SegmentExceptTable[[#This Row],[Boundary S/M]])","v":0.19836471443446527},{"$f":"IF(AND(AND(kwpeak_norm>SegmentExceptTable[[#This Row],[kW Boundary]],kwpeak_norm<SegmentExceptTable[[#This Row],[kW Exception]]),AND(kwhmo_norm>SegmentExceptTable[[#This Row],[Boundary S/M]],kwhmo_norm<SegmentExceptTable[[#This Row],[Exception S/M]])),1,0)","v":0},{"$f":"$BP$10*SegmentExceptTable[[#This Row],[kW Boundary]]+$BP$11","v":-0.11583972596079634},{"$f":"$BP$12*SegmentExceptTable[[#This Row],[kW Boundary]]+$BP$13","v":0.56749116812911138},{"$f":"SegmentExceptTable[[#This Row],[Boundary M/L]]+(0.05*SegmentExceptTable[[#This Row],[Boundary M/L]])","v":0.59586572653556691},{"$f":"IF(AND(AND(kwpeak_norm>SegmentExceptTable[[#This Row],[kW Boundary]],kwpeak_norm<SegmentExceptTable[[#This Row],[kW Exception]]),AND(kwhmo_norm>SegmentExceptTable[[#This Row],[Boundary M/L]],kwhmo_norm<SegmentExceptTable[[#This Row],[Exception M/L]])),1,0)","v":0},null,"{L}",0.37305559999999999,0.65820853999999995,0.75657713606762633,null,null,null,"int_s",{"$f":"BJ5-(BP6*BI5)","v":-1.8717338692610545E-2},null,null,"x2",20,null,"First Call Jewel","1255 Chaffin Lane","Idaho Falls","ID",83401,"ID"]
[null,"ID",6,null,6.615E-2,15.497,null,null,null,null,null,null,null,null,null,null,46,null,"Cafeteria, Fast Food, Restaurant/Bar",0.94,4900,null,"Networked","Networked",{"$f":"CONCATENATE(ControlsLookup[[#This Row],[Location]],\"_\",ControlsLookup[[#This Row],[Controls]])","v":"Interior_Networked"},"Mid",2,0.35,"Interior Lighting - w/ Networked Lighting Controls - NCMR - ID","Interior Networked Lighting Controls - Retrofit - ID",0.35,"Interior Networked Lighting Controls - MR wCode - UT","Interior Networked Lighting Controls - Retrofit - UT","Interior Networked Lighting Controls - Retrofit - UT","Interior Networked Lighting Controls - Retrofit - UT",0.35,"Exterior Advanced Lighting Controls - Basic Dimming Controls - NCMR - WY","Interior Networked Lighting Controls - Retrofit - WY","Interior",null,"Int Occ Net","Networked",{"$f":"COUNTIF(ControlsMapping[Old Control],\"*\"&ControlsMapping[[#This Row],[Old Control]]&\"*\")","v":1},null,null,null,null,5,{"$f":"SegmentExceptTable[[#This Row],[Numbers]]/$BP$4","v":8.3472454090150246E-3},{"$f":"SegmentExceptTable[[#This Row],[kW Boundary]]+(0.05*SegmentExceptTable[[#This Row],[kW Boundary]])","v":8.764607679465776E-3},{"$f":"$BP$6*SegmentExceptTable[[#This Row],[kW Boundary]]+$BP$7","v":-6.5831872157791557E-3},{"$f":"$BP$8*SegmentExceptTable[[#This Row],[kW Boundary]]+$BP$9","v":0.18777033925644082},{"$f":"SegmentExceptTable[[#This Row],[Boundary S/M]]+(0.05*SegmentExceptTable[[#This Row],[Boundary S/M]])","v":0.19715885621926285},{"$f":"IF(AND(AND(kwpeak_norm>SegmentExceptTable[[#This Row],[kW Boundary]],kwpeak_norm<SegmentExceptTable[[#This Row],[kW Exception]]),AND(kwhmo_norm>SegmentExceptTable[[#This Row],[Boundary S/M]],kwhmo_norm<SegmentExceptTable[[#This Row],[Exception S/M]])),1,0)","v":0},{"$f":"$BP$10*SegmentExceptTable[[#This Row],[kW Boundary]]+$BP$11","v":-0.11231267231855781},{"$f":"$BP$12*SegmentExceptTable[[#This Row],[kW Boundary]]+$BP$13","v":0.56670097310532264},{"$f":"SegmentExceptTable[[#This Row],[Boundary M/L]]+(0.05*SegmentExceptTable[[#This Row],[Boundary M/L]])","v":0.59503602176058878},{"$f":"IF(AND(AND(kwpeak_norm>SegmentExceptTable[[#This Row],[kW Boundary]],kwpeak_norm<SegmentExceptTable[[#This Row],[kW Exception]]),AND(kwhmo_norm>SegmentExceptTable[[#This Row],[Boundary M/L]],kwhmo_norm<SegmentExceptTable[[#This Row],[Exception M/L]])),1,0)","v":0},null,"User",{"$f":"kwpeak/$BP$4","v":0},{"$f":"kwhmo/$BP$5","v":0},0,null,null,null,"slope_b_s",{"$f":"-1/BP6","v":-0.68791340086309472},null,null,"y2",{"$f":"BP5*INDEX(SegmentExceptTable[Boundary S/M],MATCH(BT7,SegmentExceptTable[Numbers],0))","v":25525.801178329384},null,"Harris Lighting Product","1405 W 800 N ","Preston","ID",83263,"ID"]
[null,"ID","6A",null,6.615E-2,15.497,null,"Rate Code","Rate Schedule",null,null,null,null,null,null,null,45,null,"Civic Meeting Place",0.78,2700,null,"Networked reused","Networked reused",{"$f":"CONCATENATE(ControlsLookup[[#This Row],[Location]],\"_\",ControlsLookup[[#This Row],[Controls]])","v":"Interior_Networked reused"},"Mid",2,0,null,null,0,null,null,null,null,0,null,null,"Interior",null,"Tuning Net","Networked",{"$f":"COUNTIF(ControlsMapping[Old Control],\"*\"&ControlsMapping[[#This Row],[Old Control]]&\"*\")","v":1},null,null,null,null,6,{"$f":"SegmentExceptTable[[#This Row],[Numbers]]/$BP$4","v":1.001669449081803E-2},{"$f":"SegmentExceptTable[[#This Row],[kW Boundary]]+(0.05*SegmentExceptTable[[#This Row],[kW Boundary]])","v":1.0517529215358931E-2},{"$f":"$BP$6*SegmentExceptTable[[#This Row],[kW Boundary]]+$BP$7","v":-4.1563569204128778E-3},{"$f":"$BP$8*SegmentExceptTable[[#This Row],[kW Boundary]]+$BP$9","v":0.18662190286100994},{"$f":"SegmentExceptTable[[#This Row],[Boundary S/M]]+(0.05*SegmentExceptTable[[#This Row],[Boundary S/M]])","v":0.19595299800406044},{"$f":"IF(AND(AND(kwpeak_norm>SegmentExceptTable[[#This Row],[kW Boundary]],kwpeak_norm<SegmentExceptTable[[#This Row],[kW Exception]]),AND(kwhmo_norm>SegmentExceptTable[[#This Row],[Boundary S/M]],kwhmo_norm<SegmentExceptTable[[#This Row],[Exception S/M]])),1,0)","v":0},{"$f":"$BP$10*SegmentExceptTable[[#This Row],[kW Boundary]]+$BP$11","v":-0.10878561867631928},{"$f":"$BP$12*SegmentExceptTable[[#This Row],[kW Boundary]]+$BP$13","v":0.56591077808153389},{"$f":"SegmentExceptTable[[#This Row],[Boundary M/L]]+(0.05*SegmentExceptTable[[#This Row],[Boundary M/L]])","v":0.59420631698561055},{"$f":"IF(AND(AND(kwpeak_norm>SegmentExceptTable[[#This Row],[kW Boundary]],kwpeak_norm<SegmentExceptTable[[#This Row],[kW Exception]]),AND(kwhmo_norm>SegmentExceptTable[[#This Row],[Boundary M/L]],kwhmo_norm<SegmentExceptTable[[#This Row],[Exception M/L]])),1,0)","v":0},null,null,null,null,null,null,null,null,"int_b_s",{"$f":"((BJ5+BJ6)/2)-((BP8*(BI5+BI6))/2)","v":0.19351252123359519},null,null,null,null,null,"Hatch Lighting","890 N Skyline Dr","Idaho Falls","ID",83402,"ID"]
[null,"ID",9,null,7.4425000000000005E-2,11.634,null,"05APS00040",40,null,null,null,null,null,null,null,44,null,"Classroom Building",0.71,2500,null,"Advanced networked","Advanced networked",{"$f":"CONCATENATE(ControlsLookup[[#This Row],[Location]],\"_\",ControlsLookup[[#This Row],[Controls]])","v":"Interior_Advanced networked"},"Advanced",3,0.6,"Interior Lighting - w/ Advanced Networked Lighting Controls - NCMR - ID","Interior Advanced Networked Lighting Controls/LLLCs - Retrofit - v4 - ID",0.6,"Interior Advanced Networked Lighting Controls - MR wCode - v2 - UT","Interior Advanced Networked Lighting Controls - Retrofit - UT","Interior Advanced Networked Lighting Controls - Retrofit - UT","Interior Advanced Networked Lighting Controls - Retrofit - UT",0.6,null,"Interior Advanced Networked Lighting Controls/LLLCs - Retrofit - v4 - WY","Interior",null,"Adv DL","Basic",{"$f":"COUNTIF(ControlsMapping[Old Control],\"*\"&ControlsMapping[[#This Row],[Old Control]]&\"*\")","v":2},null,null,null,null,7,{"$f":"SegmentExceptTable[[#This Row],[Numbers]]/$BP$4","v":1.1686143572621035E-2},{"$f":"SegmentExceptTable[[#This Row],[kW Boundary]]+(0.05*SegmentExceptTable[[#This Row],[kW Boundary]])","v":1.2270450751252087E-2},{"$f":"$BP$6*SegmentExceptTable[[#This Row],[kW Boundary]]+$BP$7","v":-1.7295266250465999E-3},{"$f":"$BP$8*SegmentExceptTable[[#This Row],[kW Boundary]]+$BP$9","v":0.18547346646557905},{"$f":"SegmentExceptTable[[#This Row],[Boundary S/M]]+(0.05*SegmentExceptTable[[#This Row],[Boundary S/M]])","v":0.19474713978885799},{"$f":"IF(AND(AND(kwpeak_norm>SegmentExceptTable[[#This Row],[kW Boundary]],kwpeak_norm<SegmentExceptTable[[#This Row],[kW Exception]]),AND(kwhmo_norm>SegmentExceptTable[[#This Row],[Boundary S/M]],kwhmo_norm<SegmentExceptTable[[#This Row],[Exception S/M]])),1,0)","v":0},{"$f":"$BP$10*SegmentExceptTable[[#This Row],[kW Boundary]]+$BP$11","v":-0.10525856503408074},{"$f":"$BP$12*SegmentExceptTable[[#This Row],[kW Boundary]]+$BP$13","v":0.56512058305774515},{"$f":"SegmentExceptTable[[#This Row],[Boundary M/L]]+(0.05*SegmentExceptTable[[#This Row],[Boundary M/L]])","v":0.59337661221063243},{"$f":"IF(AND(AND(kwpeak_norm>SegmentExceptTable[[#This Row],[kW Boundary]],kwpeak_norm<SegmentExceptTable[[#This Row],[kW Exception]]),AND(kwhmo_norm>SegmentExceptTable[[#This Row],[Boundary M/L]],kwhmo_norm<SegmentExceptTable[[#This Row],[Exception M/L]])),1,0)","v":0},null,"Input",{"$f":"kwpeak","v":0},{"$f":"kwhmo","v":0},null,null,null,null,"slope_m",{"$f":"(BJ7-BJ6)/(BI7-BI6)","v":2.1127051317008791},null,null,"m",{"$f":"(BT8-BT6)/(BT7-BT5)","v":-171.88992061332539},null,"LMS - Lighting Maintenance & Service, Inc","663 West 4330 South","Salt Lake City","UT",84123,"ID"]
[null,"ID",12,null,"contact us",null,null,"05APSNS040",40,null,null,null,null,null,null,null,43,null,"Classroom, Lecture, Training, Vocational Room",0.71,2500,null,"Advanced networked exterior dimming","Advanced networked exterior dimming",{"$f":"CONCATENATE(ControlsLookup[[#This Row],[Location]],\"_\",ControlsLookup[[#This Row],[Controls]])","v":"Exterior_Advanced networked exterior dimming"},"Advanced",3,0.45,"Exterior Advanced Lighting Controls - Advanced Networked Dimming Controls - NCMR - ID","Exterior Advanced Lighting Controls - Advanced Networked Dimming Controls - Retrofit - ID",0.45,"Exterior Advanced Lighting Controls - Advanced Networked Dimming Controls - MR wCode - UT","Exterior Advanced Lighting Controls - Advanced Networked Dimming Controls - Retrofit - UT","Exterior Advanced Lighting Controls - Advanced Networked Dimming Controls - Retrofit - UT","Exterior Advanced Lighting Controls - Advanced Networked Dimming Controls - Retrofit - UT",0.45,"Exterior Advanced Lighting Controls - Advanced Networked Dimming Controls - NCMR - WY","Exterior Advanced Lighting Controls - Advanced Networked Dimming Controls - Retrofit - WY","Exterior",null,"Case Occ","Basic",{"$f":"COUNTIF(ControlsMapping[Old Control],\"*\"&ControlsMapping[[#This Row],[Old Control]]&\"*\")","v":2},null,null,null,null,8,{"$f":"SegmentExceptTable[[#This Row],[Numbers]]/$BP$4","v":1.335559265442404E-2},{"$f":"SegmentExceptTable[[#This Row],[kW Boundary]]+(0.05*SegmentExceptTable[[#This Row],[kW Boundary]])","v":1.4023372287145243E-2},{"$f":"$BP$6*SegmentExceptTable[[#This Row],[kW Boundary]]+$BP$7","v":6.9730367031967805E-4},{"$f":"$BP$8*SegmentExceptTable[[#This Row],[kW Boundary]]+$BP$9","v":0.18432503007014819},{"$f":"SegmentExceptTable[[#This Row],[Boundary S/M]]+(0.05*SegmentExceptTable[[#This Row],[Boundary S/M]])","v":0.1935412815736556},{"$f":"IF(AND(AND(kwpeak_norm>SegmentExceptTable[[#This Row],[kW Boundary]],kwpeak_norm<SegmentExceptTable[[#This Row],[kW Exception]]),AND(kwhmo_norm>SegmentExceptTable[[#This Row],[Boundary S/M]],kwhmo_norm<SegmentExceptTable[[#This Row],[Exception S/M]])),1,0)","v":0},{"$f":"$BP$10*SegmentExceptTable[[#This Row],[kW Boundary]]+$BP$11","v":-0.10173151139184221},{"$f":"$BP$12*SegmentExceptTable[[#This Row],[kW Boundary]]+$BP$13","v":0.56433038803395641},{"$f":"SegmentExceptTable[[#This Row],[Boundary M/L]]+(0.05*SegmentExceptTable[[#This Row],[Boundary M/L]])","v":0.59254690743565419},{"$f":"IF(AND(AND(kwpeak_norm>SegmentExceptTable[[#This Row],[kW Boundary]],kwpeak_norm<SegmentExceptTable[[#This Row],[kW Exception]]),AND(kwhmo_norm>SegmentExceptTable[[#This Row],[Boundary M/L]],kwhmo_norm<SegmentExceptTable[[#This Row],[Exception M/L]])),1,0)","v":0},null,"Segment",null,{"$f":"IFERROR(INDEX(SegmentGroupTable[[#All],[Group]],MATCH(MIN(BK5:BK7),SegmentGroupTable[[#All],[Centroid Distance]],0)),\"\")","v":"{S}"},null,null,null,null,"int_m",{"$f":"BJ6-(BP10*BI6)","v":-0.12994794052975045},null,null,"b",{"$f":"BT6-(BT10*BT5)","v":28963.599590595892},null,"ROI Energy","978 E 2000 Rd","Eudora","KS",612025,"ID"]
[null,"ID",23,null,0.114327,0,null,"05GNSV0025",25,null,null,null,null,null,null,null,42,null,"Classroom/Lecture Hall",0.71,2500,null,"Advanced networked exterior dimming","Advanced networked exterior dimming",{"$f":"CONCATENATE(ControlsLookup[[#This Row],[Location]],\"_\",ControlsLookup[[#This Row],[Controls]])","v":"Seasonal Exterior_Advanced networked exterior dimming"},"Advanced",3,0.45,null,null,0.45,"Exterior Advanced Lighting Controls - Advanced Networked Dimming Controls - MR wCode - UT","Exterior Advanced Lighting Controls - Advanced Networked Dimming Controls - Seasonal - Retrofit - Small - UT","Exterior Advanced Lighting Controls - Advanced Networked Dimming Controls - Seasonal - Retrofit - Medium - UT","Exterior Advanced Lighting Controls - Advanced Networked Dimming Controls - Seasonal - Retrofit - Large - UT",0.45,"Exterior Advanced Lighting Controls - Advanced Networked Dimming Controls - NCMR - WY","Exterior Advanced Lighting Controls - Advanced Networked Dimming Controls - Retrofit - WY","Seasonal Exterior",null,"Int Occ","Basic",{"$f":"COUNTIF(ControlsMapping[Old Control],\"*\"&ControlsMapping[[#This Row],[Old Control]]&\"*\")","v":2},null,null,null,null,9,{"$f":"SegmentExceptTable[[#This Row],[Numbers]]/$BP$4","v":1.5025041736227046E-2},{"$f":"SegmentExceptTable[[#This Row],[kW Boundary]]+(0.05*SegmentExceptTable[[#This Row],[kW Boundary]])","v":1.5776293823038398E-2},{"$f":"$BP$6*SegmentExceptTable[[#This Row],[kW Boundary]]+$BP$7","v":3.124133965685956E-3},{"$f":"$BP$8*SegmentExceptTable[[#This Row],[kW Boundary]]+$BP$9","v":0.18317659367471731},{"$f":"SegmentExceptTable[[#This Row],[Boundary S/M]]+(0.05*SegmentExceptTable[[#This Row],[Boundary S/M]])","v":0.19233542335845316},{"$f":"IF(AND(AND(kwpeak_norm>SegmentExceptTable[[#This Row],[kW Boundary]],kwpeak_norm<SegmentExceptTable[[#This Row],[kW Exception]]),AND(kwhmo_norm>SegmentExceptTable[[#This Row],[Boundary S/M]],kwhmo_norm<SegmentExceptTable[[#This Row],[Exception S/M]])),1,0)","v":0},{"$f":"$BP$10*SegmentExceptTable[[#This Row],[kW Boundary]]+$BP$11","v":-9.820445774960368E-2},{"$f":"$BP$12*SegmentExceptTable[[#This Row],[kW Boundary]]+$BP$13","v":0.56354019301016767},{"$f":"SegmentExceptTable[[#This Row],[Boundary M/L]]+(0.05*SegmentExceptTable[[#This Row],[Boundary M/L]])","v":0.59171720266067607},{"$f":"IF(AND(AND(kwpeak_norm>SegmentExceptTable[[#This Row],[kW Boundary]],kwpeak_norm<SegmentExceptTable[[#This Row],[kW Exception]]),AND(kwhmo_norm>SegmentExceptTable[[#This Row],[Boundary M/L]],kwhmo_norm<SegmentExceptTable[[#This Row],[Exception M/L]])),1,0)","v":0},null,"S/M Exception",{"$f":"BL5","v":1.5306475610086989},{"$f":"IF(BL5<0.05,\"TRUE\",\"FALSE\")","v":"FALSE"},null,null,null,null,"slope_b_m",{"$f":"-1/BP10","v":-0.4733268192494654},null,null,"Medium/Large",null,null,"Sunlight Electric","541 Moonlite Drive","Idaho Falls","ID",83401,"ID"]
[null,"ID","23A",null,0.114327,0,null,"05GNSV0028",28,null,null,null,null,null,null,null,41,null,"Comm. and Ind. Storage (Cond. & Uncond.)",0.96,21200,null,"Advanced networked exterior dimming","Advanced networked exterior dimming",{"$f":"CONCATENATE(ControlsLookup[[#This Row],[Location]],\"_\",ControlsLookup[[#This Row],[Controls]])","v":"Street_Advanced networked exterior dimming"},"Advanced",3,0.45,"Exterior Advanced Lighting Controls - Advanced Networked Dimming Controls - NCMR - ID","Exterior Advanced Lighting Controls - Advanced Networked Dimming Controls - Retrofit - ID",0.45,"Exterior Advanced Lighting Controls - Advanced Networked Dimming Controls - MR wCode - UT","Exterior Advanced Lighting Controls - Advanced Networked Dimming Controls - Retrofit - UT","Exterior Advanced Lighting Controls - Advanced Networked Dimming Controls - Retrofit - UT","Exterior Advanced Lighting Controls - Advanced Networked Dimming Controls - Retrofit - UT",0.45,"Exterior Advanced Lighting Controls - Advanced Networked Dimming Controls - NCMR - WY","Exterior Advanced Lighting Controls - Advanced Networked Dimming Controls - Retrofit - WY","Street",null,"Adv Ext Dim","Basic exterior dimming",{"$f":"COUNTIF(ControlsMapping[Old Control],\"*\"&ControlsMapping[[#This Row],[Old Control]]&\"*\")","v":2},null,null,null,null,10,{"$f":"SegmentExceptTable[[#This Row],[Numbers]]/$BP$4","v":1.6694490818030049E-2},{"$f":"SegmentExceptTable[[#This Row],[kW Boundary]]+(0.05*SegmentExceptTable[[#This Row],[kW Boundary]])","v":1.7529215358931552E-2},{"$f":"$BP$6*SegmentExceptTable[[#This Row],[kW Boundary]]+$BP$7","v":5.5509642610522339E-3},{"$f":"$BP$8*SegmentExceptTable[[#This Row],[kW Boundary]]+$BP$9","v":0.18202815727928642},{"$f":"SegmentExceptTable[[#This Row],[Boundary S/M]]+(0.05*SegmentExceptTable[[#This Row],[Boundary S/M]])","v":0.19112956514325075},{"$f":"IF(AND(AND(kwpeak_norm>SegmentExceptTable[[#This Row],[kW Boundary]],kwpeak_norm<SegmentExceptTable[[#This Row],[kW Exception]]),AND(kwhmo_norm>SegmentExceptTable[[#This Row],[Boundary S/M]],kwhmo_norm<SegmentExceptTable[[#This Row],[Exception S/M]])),1,0)","v":0},{"$f":"$BP$10*SegmentExceptTable[[#This Row],[kW Boundary]]+$BP$11","v":-9.4677404107365165E-2},{"$f":"$BP$12*SegmentExceptTable[[#This Row],[kW Boundary]]+$BP$13","v":0.56274999798637892},{"$f":"SegmentExceptTable[[#This Row],[Boundary M/L]]+(0.05*SegmentExceptTable[[#This Row],[Boundary M/L]])","v":0.59088749788569783},{"$f":"IF(AND(AND(kwpeak_norm>SegmentExceptTable[[#This Row],[kW Boundary]],kwpeak_norm<SegmentExceptTable[[#This Row],[kW Exception]]),AND(kwhmo_norm>SegmentExceptTable[[#This Row],[Boundary M/L]],kwhmo_norm<SegmentExceptTable[[#This Row],[Exception M/L]])),1,0)","v":0},null,"M/L Exception",{"$f":"BL6","v":1.3203658056101197},{"$f":"IF(BL6<0.05,\"TRUE\",\"FALSE\")","v":"FALSE"},null,null,null,null,"int_b_m",{"$f":"((BJ6+BJ7)/2)-((BP12*(BI6+BI7))/2)","v":0.57065194822426646},null,null,"x1",10,null,"Wolfe Lighting","250 West Main St","Rexburg","ID",83440,"ID"]
[null,"ID",35,null,0.11516,0,null,"05GNSV028M",28,null,null,null,null,null,null,null,40,null,"Comm. and Ind. Storage (Refrigerated)",0.96,21200,null,"Re-Commissioning","Re-Commissioning",{"$f":"CONCATENATE(ControlsLookup[[#This Row],[Location]],\"_\",ControlsLookup[[#This Row],[Controls]])","v":"Interior_Re-Commissioning"},"na",3,null,null,null,0.26,null,"Interior Advanced Networked Lighting Controls - Commissioning Only - Retrofit - UT","Interior Advanced Networked Lighting Controls - Commissioning Only - Retrofit - UT","Interior Advanced Networked Lighting Controls - Commissioning Only - Retrofit - UT",null,null,null,"Interior",null,"DL Net","Networked",{"$f":"COUNTIF(ControlsMapping[Old Control],\"*\"&ControlsMapping[[#This Row],[Old Control]]&\"*\")","v":2},null,null,null,null,11,{"$f":"SegmentExceptTable[[#This Row],[Numbers]]/$BP$4","v":1.8363939899833055E-2},{"$f":"SegmentExceptTable[[#This Row],[kW Boundary]]+(0.05*SegmentExceptTable[[#This Row],[kW Boundary]])","v":1.9282136894824706E-2},{"$f":"$BP$6*SegmentExceptTable[[#This Row],[kW Boundary]]+$BP$7","v":7.9777945564185118E-3},{"$f":"$BP$8*SegmentExceptTable[[#This Row],[kW Boundary]]+$BP$9","v":0.18087972088385557},{"$f":"SegmentExceptTable[[#This Row],[Boundary S/M]]+(0.05*SegmentExceptTable[[#This Row],[Boundary S/M]])","v":0.18992370692804833},{"$f":"IF(AND(AND(kwpeak_norm>SegmentExceptTable[[#This Row],[kW Boundary]],kwpeak_norm<SegmentExceptTable[[#This Row],[kW Exception]]),AND(kwhmo_norm>SegmentExceptTable[[#This Row],[Boundary S/M]],kwhmo_norm<SegmentExceptTable[[#This Row],[Exception S/M]])),1,0)","v":0},{"$f":"$BP$10*SegmentExceptTable[[#This Row],[kW Boundary]]+$BP$11","v":-9.1150350465126623E-2},{"$f":"$BP$12*SegmentExceptTable[[#This Row],[kW Boundary]]+$BP$13","v":0.56195980296259018},{"$f":"SegmentExceptTable[[#This Row],[Boundary M/L]]+(0.05*SegmentExceptTable[[#This Row],[Boundary M/L]])","v":0.59005779311071971},{"$f":"IF(AND(AND(kwpeak_norm>SegmentExceptTable[[#This Row],[kW Boundary]],kwpeak_norm<SegmentExceptTable[[#This Row],[kW Exception]]),AND(kwhmo_norm>SegmentExceptTable[[#This Row],[Boundary M/L]],kwhmo_norm<SegmentExceptTable[[#This Row],[Exception M/L]])),1,0)","v":0},null,null,null,null,null,null,null,null,null,null,null,null,"y1",{"$f":"BP5*INDEX(SegmentExceptTable[Boundary M/L],MATCH(BT13,SegmentExceptTable[Numbers],0))","v":84228.480448615286},null,"Advanced Lighting, Inc.","3099 South 1030 West","Salt Lake City","UT",84119]
[null,null,null,null,null,null,null,"05LGSV0046",46,null,null,null,null,null,null,null,39,null,"Comm. and Ind. Storage Buildings",0.96,21200,null,"Plug and Play control ready","Plug and Play control ready",{"$f":"CONCATENATE(ControlsLookup[[#This Row],[Location]],\"_\",ControlsLookup[[#This Row],[Controls]])","v":"Interior_Plug and Play control ready"},"Plug",4,null,null,null,null,null,null,null,null,null,null,null,"Interior",null,"Tuning","not eligible",{"$f":"COUNTIF(ControlsMapping[Old Control],\"*\"&ControlsMapping[[#This Row],[Old Control]]&\"*\")","v":2},null,null,null,null,12,{"$f":"SegmentExceptTable[[#This Row],[Numbers]]/$BP$4","v":2.003338898163606E-2},{"$f":"SegmentExceptTable[[#This Row],[kW Boundary]]+(0.05*SegmentExceptTable[[#This Row],[kW Boundary]])","v":2.1035058430717863E-2},{"$f":"$BP$6*SegmentExceptTable[[#This Row],[kW Boundary]]+$BP$7","v":1.040462485178479E-2},{"$f":"$BP$8*SegmentExceptTable[[#This Row],[kW Boundary]]+$BP$9","v":0.17973128448842468},{"$f":"SegmentExceptTable[[#This Row],[Boundary S/M]]+(0.05*SegmentExceptTable[[#This Row],[Boundary S/M]])","v":0.18871784871284591},{"$f":"IF(AND(AND(kwpeak_norm>SegmentExceptTable[[#This Row],[kW Boundary]],kwpeak_norm<SegmentExceptTable[[#This Row],[kW Exception]]),AND(kwhmo_norm>SegmentExceptTable[[#This Row],[Boundary S/M]],kwhmo_norm<SegmentExceptTable[[#This Row],[Exception S/M]])),1,0)","v":0},{"$f":"$BP$10*SegmentExceptTable[[#This Row],[kW Boundary]]+$BP$11","v":-8.7623296822888094E-2},{"$f":"$BP$12*SegmentExceptTable[[#This Row],[kW Boundary]]+$BP$13","v":0.56116960793880133},{"$f":"SegmentExceptTable[[#This Row],[Boundary M/L]]+(0.05*SegmentExceptTable[[#This Row],[Boundary M/L]])","v":0.58922808833574136},{"$f":"IF(AND(AND(kwpeak_norm>SegmentExceptTable[[#This Row],[kW Boundary]],kwpeak_norm<SegmentExceptTable[[#This Row],[kW Exception]]),AND(kwhmo_norm>SegmentExceptTable[[#This Row],[Boundary M/L]],kwhmo_norm<SegmentExceptTable[[#This Row],[Exception M/L]])),1,0)","v":0},null,null,null,null,null,null,null,null,null,null,null,null,"x2",20,null,"AELT","146 North Old Hwy 91 Suite #4","Hurricane","UT",84737]
[null,"State","Rate Schedule","Rate Code","kWh Rate","kW Rate",null,"05LGSV048T","48T",null,null,null,null,null,null,null,38,null,"Common Area, Restroom, Including Group R-1 & R-2",0.94,null,null,null,null,null,null,null,null,null,null,null,null,null,null,null,null,null,null,null,null,"Occ Net","Networked",{"$f":"COUNTIF(ControlsMapping[Old Control],\"*\"&ControlsMapping[[#This Row],[Old Control]]&\"*\")","v":3},null,null,null,null,13,{"$f":"SegmentExceptTable[[#This Row],[Numbers]]/$BP$4","v":2.1702838063439065E-2},{"$f":"SegmentExceptTable[[#This Row],[kW Boundary]]+(0.05*SegmentExceptTable[[#This Row],[kW Boundary]])","v":2.2787979966611017E-2},{"$f":"$BP$6*SegmentExceptTable[[#This Row],[kW Boundary]]+$BP$7","v":1.2831455147151068E-2},{"$f":"$BP$8*SegmentExceptTable[[#This Row],[kW Boundary]]+$BP$9","v":0.1785828480929938},{"$f":"SegmentExceptTable[[#This Row],[Boundary S/M]]+(0.05*SegmentExceptTable[[#This Row],[Boundary S/M]])","v":0.1875119904976435},{"$f":"IF(AND(AND(kwpeak_norm>SegmentExceptTable[[#This Row],[kW Boundary]],kwpeak_norm<SegmentExceptTable[[#This Row],[kW Exception]]),AND(kwhmo_norm>SegmentExceptTable[[#This Row],[Boundary S/M]],kwhmo_norm<SegmentExceptTable[[#This Row],[Exception S/M]])),1,0)","v":0},{"$f":"$BP$10*SegmentExceptTable[[#This Row],[kW Boundary]]+$BP$11","v":-8.4096243180649566E-2},{"$f":"$BP$12*SegmentExceptTable[[#This Row],[kW Boundary]]+$BP$13","v":0.56037941291501259},{"$f":"SegmentExceptTable[[#This Row],[Boundary M/L]]+(0.05*SegmentExceptTable[[#This Row],[Boundary M/L]])","v":0.58839838356076324},{"$f":"IF(AND(AND(kwpeak_norm>SegmentExceptTable[[#This Row],[kW Boundary]],kwpeak_norm<SegmentExceptTable[[#This Row],[kW Exception]]),AND(kwhmo_norm>SegmentExceptTable[[#This Row],[Boundary M/L]],kwhmo_norm<SegmentExceptTable[[#This Row],[Exception M/L]])),1,0)","v":0},null,null,null,null,null,null,null,null,null,null,null,null,"y2",{"$f":"BP5*INDEX(SegmentExceptTable[Boundary M/L],MATCH(BT15,SegmentExceptTable[Numbers],0))","v":83045.771850659934},null,"Brilled Lighting","144 S 1200 W","Logan","UT",84321]
[null,"UT",6,null,4.9759999999999999E-2,17.384,null,"05NMT25135",25,null,null,null,null,null,null,null,37,null,"Convention Center",0.89,2700,null,null,null,null,null,null,null,null,null,null,null,null,null,null,null,null,null,null,null,"DL","Basic",{"$f":"COUNTIF(ControlsMapping[Old Control],\"*\"&ControlsMapping[[#This Row],[Old Control]]&\"*\")","v":4},null,null,null,null,14,{"$f":"SegmentExceptTable[[#This Row],[Numbers]]/$BP$4","v":2.337228714524207E-2},{"$f":"SegmentExceptTable[[#This Row],[kW Boundary]]+(0.05*SegmentExceptTable[[#This Row],[kW Boundary]])","v":2.4540901502504174E-2},{"$f":"$BP$6*SegmentExceptTable[[#This Row],[kW Boundary]]+$BP$7","v":1.5258285442517346E-2},{"$f":"$BP$8*SegmentExceptTable[[#This Row],[kW Boundary]]+$BP$9","v":0.17743441169756294},{"$f":"SegmentExceptTable[[#This Row],[Boundary S/M]]+(0.05*SegmentExceptTable[[#This Row],[Boundary S/M]])","v":0.18630613228244108},{"$f":"IF(AND(AND(kwpeak_norm>SegmentExceptTable[[#This Row],[kW Boundary]],kwpeak_norm<SegmentExceptTable[[#This Row],[kW Exception]]),AND(kwhmo_norm>SegmentExceptTable[[#This Row],[Boundary S/M]],kwhmo_norm<SegmentExceptTable[[#This Row],[Exception S/M]])),1,0)","v":0},{"$f":"$BP$10*SegmentExceptTable[[#This Row],[kW Boundary]]+$BP$11","v":-8.0569189538411037E-2},{"$f":"$BP$12*SegmentExceptTable[[#This Row],[kW Boundary]]+$BP$13","v":0.55958921789122384},{"$f":"SegmentExceptTable[[#This Row],[Boundary M/L]]+(0.05*SegmentExceptTable[[#This Row],[Boundary M/L]])","v":0.587568678785785},{"$f":"IF(AND(AND(kwpeak_norm>SegmentExceptTable[[#This Row],[kW Boundary]],kwpeak_norm<SegmentExceptTable[[#This Row],[kW Exception]]),AND(kwhmo_norm>SegmentExceptTable[[#This Row],[Boundary M/L]],kwhmo_norm<SegmentExceptTable[[#This Row],[Exception M/L]])),1,0)","v":0},null,null,null,null,null,null,null,null,null,null,null,null,null,null,null,"Brillian Lighting","3949 N 650 W","Ogden","UT",84414]
[null,"UT","6A",null,4.9759999999999999E-2,17.384,null,"05NMT28135",28,null,null,null,null,null,null,null,36,null,"Convention, Conference or Meeting Center",0.89,2700,null,null,null,null,null,null,null,null,null,null,null,null,null,null,null,null,null,null,null,"Occ","Basic",{"$f":"COUNTIF(ControlsMapping[Old Control],\"*\"&ControlsMapping[[#This Row],[Old Control]]&\"*\")","v":6},null,null,null,null,15,{"$f":"SegmentExceptTable[[#This Row],[Numbers]]/$BP$4","v":2.5041736227045076E-2},{"$f":"SegmentExceptTable[[#This Row],[kW Boundary]]+(0.05*SegmentExceptTable[[#This Row],[kW Boundary]])","v":2.6293823038397328E-2},{"$f":"$BP$6*SegmentExceptTable[[#This Row],[kW Boundary]]+$BP$7","v":1.7685115737883624E-2},{"$f":"$BP$8*SegmentExceptTable[[#This Row],[kW Boundary]]+$BP$9","v":0.17628597530213205},{"$f":"SegmentExceptTable[[#This Row],[Boundary S/M]]+(0.05*SegmentExceptTable[[#This Row],[Boundary S/M]])","v":0.18510027406723867},{"$f":"IF(AND(AND(kwpeak_norm>SegmentExceptTable[[#This Row],[kW Boundary]],kwpeak_norm<SegmentExceptTable[[#This Row],[kW Exception]]),AND(kwhmo_norm>SegmentExceptTable[[#This Row],[Boundary S/M]],kwhmo_norm<SegmentExceptTable[[#This Row],[Exception S/M]])),1,0)","v":0},{"$f":"$BP$10*SegmentExceptTable[[#This Row],[kW Boundary]]+$BP$11","v":-7.7042135896172509E-2},{"$f":"$BP$12*SegmentExceptTable[[#This Row],[kW Boundary]]+$BP$13","v":0.5587990228674351},{"$f":"SegmentExceptTable[[#This Row],[Boundary M/L]]+(0.05*SegmentExceptTable[[#This Row],[Boundary M/L]])","v":0.58673897401080688},{"$f":"IF(AND(AND(kwpeak_norm>SegmentExceptTable[[#This Row],[kW Boundary]],kwpeak_norm<SegmentExceptTable[[#This Row],[kW Exception]]),AND(kwhmo_norm>SegmentExceptTable[[#This Row],[Boundary M/L]],kwhmo_norm<SegmentExceptTable[[#This Row],[Exception M/L]])),1,0)","v":0},null,null,null,null,null,null,null,null,null,null,null,null,"m",{"$f":"(BT16-BT14)/(BT15-BT13)","v":-118.27085979553522},null,"Central Electric Supply","190 North 100 West","Ritchfield","UT",84701]
[null,"UT","6B",null,4.9759999999999999E-2,17.384,null,"07APSA010L",10,null,null,null,null,null,null,null,35,null,"Convention, Conference, and Multipurpose Ctr.",0.89,2700,null,null,null,null,null,null,null,null,null,null,null,null,null,null,null,null,null,null,null,null,null,null,null,null,null,null,16,{"$f":"SegmentExceptTable[[#This Row],[Numbers]]/$BP$4","v":2.6711185308848081E-2},{"$f":"SegmentExceptTable[[#This Row],[kW Boundary]]+(0.05*SegmentExceptTable[[#This Row],[kW Boundary]])","v":2.8046744574290485E-2},{"$f":"$BP$6*SegmentExceptTable[[#This Row],[kW Boundary]]+$BP$7","v":2.0111946033249901E-2},{"$f":"$BP$8*SegmentExceptTable[[#This Row],[kW Boundary]]+$BP$9","v":0.17513753890670117},{"$f":"SegmentExceptTable[[#This Row],[Boundary S/M]]+(0.05*SegmentExceptTable[[#This Row],[Boundary S/M]])","v":0.18389441585203622},{"$f":"IF(AND(AND(kwpeak_norm>SegmentExceptTable[[#This Row],[kW Boundary]],kwpeak_norm<SegmentExceptTable[[#This Row],[kW Exception]]),AND(kwhmo_norm>SegmentExceptTable[[#This Row],[Boundary S/M]],kwhmo_norm<SegmentExceptTable[[#This Row],[Exception S/M]])),1,0)","v":0},{"$f":"$BP$10*SegmentExceptTable[[#This Row],[kW Boundary]]+$BP$11","v":-7.3515082253933967E-2},{"$f":"$BP$12*SegmentExceptTable[[#This Row],[kW Boundary]]+$BP$13","v":0.55800882784364636},{"$f":"SegmentExceptTable[[#This Row],[Boundary M/L]]+(0.05*SegmentExceptTable[[#This Row],[Boundary M/L]])","v":0.58590926923582864},{"$f":"IF(AND(AND(kwpeak_norm>SegmentExceptTable[[#This Row],[kW Boundary]],kwpeak_norm<SegmentExceptTable[[#This Row],[kW Exception]]),AND(kwhmo_norm>SegmentExceptTable[[#This Row],[Boundary M/L]],kwhmo_norm<SegmentExceptTable[[#This Row],[Exception M/L]])),1,0)","v":0},null,null,null,null,null,null,null,null,null,null,null,null,"b",{"$f":"BT14-(BT18*BT13)","v":85411.189046570638},null,"Codale SLC"," 5225 W 2400 South England Ct","Salt Lake City","UT",84120]
[null,"UT",8,null,8.2739999999999994E-2,26.004000000000001,null,"07APSA010S",10,null,null,null,null,null,null,null,34,null,"Corridor, Restroom, Stair, and Support Area",0.94,null,null,null,null,null,null,null,null,null,null,null,null,null,null,null,null,null,null,null,null,null,null,null,null,null,null,null,17,{"$f":"SegmentExceptTable[[#This Row],[Numbers]]/$BP$4","v":2.8380634390651086E-2},{"$f":"SegmentExceptTable[[#This Row],[kW Boundary]]+(0.05*SegmentExceptTable[[#This Row],[kW Boundary]])","v":2.9799666110183642E-2},{"$f":"$BP$6*SegmentExceptTable[[#This Row],[kW Boundary]]+$BP$7","v":2.2538776328616179E-2},{"$f":"$BP$8*SegmentExceptTable[[#This Row],[kW Boundary]]+$BP$9","v":0.17398910251127031},{"$f":"SegmentExceptTable[[#This Row],[Boundary S/M]]+(0.05*SegmentExceptTable[[#This Row],[Boundary S/M]])","v":0.18268855763683384},{"$f":"IF(AND(AND(kwpeak_norm>SegmentExceptTable[[#This Row],[kW Boundary]],kwpeak_norm<SegmentExceptTable[[#This Row],[kW Exception]]),AND(kwhmo_norm>SegmentExceptTable[[#This Row],[Boundary S/M]],kwhmo_norm<SegmentExceptTable[[#This Row],[Exception S/M]])),1,0)","v":0},{"$f":"$BP$10*SegmentExceptTable[[#This Row],[kW Boundary]]+$BP$11","v":-6.9988028611695452E-2},{"$f":"$BP$12*SegmentExceptTable[[#This Row],[kW Boundary]]+$BP$13","v":0.55721863281985762},{"$f":"SegmentExceptTable[[#This Row],[Boundary M/L]]+(0.05*SegmentExceptTable[[#This Row],[Boundary M/L]])","v":0.58507956446085052},{"$f":"IF(AND(AND(kwpeak_norm>SegmentExceptTable[[#This Row],[kW Boundary]],kwpeak_norm<SegmentExceptTable[[#This Row],[kW Exception]]),AND(kwhmo_norm>SegmentExceptTable[[#This Row],[Boundary M/L]],kwhmo_norm<SegmentExceptTable[[#This Row],[Exception M/L]])),1,0)","v":0},null,null,null,null,null,null,null,null,null,null,null,null,"intersection",null,null,"Commercial Lighting Supply, Inc. - Salt Lake City, UT"," 2440 South 900 West","Salt Lake City","UT",84119]
[null,"UT",9,null,7.2150000000000006E-2,22.454999999999998,null,"07APSAL10X",10,null,"PacifiCorp PM",null,null,"PacifiCorp RBM",null,null,33,null,"Corridor, Restroom, Support Area",0.94,null,null,null,null,null,null,null,null,null,null,null,null,null,null,null,null,null,null,null,null,null,null,null,null,null,null,null,18,{"$f":"SegmentExceptTable[[#This Row],[Numbers]]/$BP$4","v":3.0050083472454091E-2},{"$f":"SegmentExceptTable[[#This Row],[kW Boundary]]+(0.05*SegmentExceptTable[[#This Row],[kW Boundary]])","v":3.1552587646076796E-2},{"$f":"$BP$6*SegmentExceptTable[[#This Row],[kW Boundary]]+$BP$7","v":2.4965606623982457E-2},{"$f":"$BP$8*SegmentExceptTable[[#This Row],[kW Boundary]]+$BP$9","v":0.17284066611583943},{"$f":"SegmentExceptTable[[#This Row],[Boundary S/M]]+(0.05*SegmentExceptTable[[#This Row],[Boundary S/M]])","v":0.18148269942163139},{"$f":"IF(AND(AND(kwpeak_norm>SegmentExceptTable[[#This Row],[kW Boundary]],kwpeak_norm<SegmentExceptTable[[#This Row],[kW Exception]]),AND(kwhmo_norm>SegmentExceptTable[[#This Row],[Boundary S/M]],kwhmo_norm<SegmentExceptTable[[#This Row],[Exception S/M]])),1,0)","v":0},{"$f":"$BP$10*SegmentExceptTable[[#This Row],[kW Boundary]]+$BP$11","v":-6.6460974969456924E-2},{"$f":"$BP$12*SegmentExceptTable[[#This Row],[kW Boundary]]+$BP$13","v":0.55642843779606888},{"$f":"SegmentExceptTable[[#This Row],[Boundary M/L]]+(0.05*SegmentExceptTable[[#This Row],[Boundary M/L]])","v":0.58424985968587229},{"$f":"IF(AND(AND(kwpeak_norm>SegmentExceptTable[[#This Row],[kW Boundary]],kwpeak_norm<SegmentExceptTable[[#This Row],[kW Exception]]),AND(kwhmo_norm>SegmentExceptTable[[#This Row],[Boundary M/L]],kwhmo_norm<SegmentExceptTable[[#This Row],[Exception M/L]])),1,0)","v":0},null,null,null,null,null,null,null,null,null,null,null,null,"xsm",{"$f":"(BP9-BP7)/(BP6-BP8)","v":9.9099445000000008E-2},null,"Conserve-A-Watt","3550 S 700 W","South Salt Lake","UT",84119]
[null,"UT","9A",null,7.5889999999999999E-2,12.936,null,"07APSAS10X",10,null,null,null,null,null,null,null,32,null,"Courthouse",0.78,3067,null,null,null,null,null,null,null,null,null,null,null,null,null,null,null,null,null,null,null,null,null,null,null,null,null,null,19,{"$f":"SegmentExceptTable[[#This Row],[Numbers]]/$BP$4","v":3.1719532554257093E-2},{"$f":"SegmentExceptTable[[#This Row],[kW Boundary]]+(0.05*SegmentExceptTable[[#This Row],[kW Boundary]])","v":3.330550918196995E-2},{"$f":"$BP$6*SegmentExceptTable[[#This Row],[kW Boundary]]+$BP$7","v":2.7392436919348735E-2},{"$f":"$BP$8*SegmentExceptTable[[#This Row],[kW Boundary]]+$BP$9","v":0.17169222972040854},{"$f":"SegmentExceptTable[[#This Row],[Boundary S/M]]+(0.05*SegmentExceptTable[[#This Row],[Boundary S/M]])","v":0.18027684120642898},{"$f":"IF(AND(AND(kwpeak_norm>SegmentExceptTable[[#This Row],[kW Boundary]],kwpeak_norm<SegmentExceptTable[[#This Row],[kW Exception]]),AND(kwhmo_norm>SegmentExceptTable[[#This Row],[Boundary S/M]],kwhmo_norm<SegmentExceptTable[[#This Row],[Exception S/M]])),1,0)","v":0},{"$f":"$BP$10*SegmentExceptTable[[#This Row],[kW Boundary]]+$BP$11","v":-6.2933921327218395E-2},{"$f":"$BP$12*SegmentExceptTable[[#This Row],[kW Boundary]]+$BP$13","v":0.55563824277228013},{"$f":"SegmentExceptTable[[#This Row],[Boundary M/L]]+(0.05*SegmentExceptTable[[#This Row],[Boundary M/L]])","v":0.58342015491089416},{"$f":"IF(AND(AND(kwpeak_norm>SegmentExceptTable[[#This Row],[kW Boundary]],kwpeak_norm<SegmentExceptTable[[#This Row],[kW Exception]]),AND(kwhmo_norm>SegmentExceptTable[[#This Row],[Boundary M/L]],kwhmo_norm<SegmentExceptTable[[#This Row],[Exception M/L]])),1,0)","v":0},null,null,null,null,null,null,null,null,null,null,null,null,"ysm",{"$f":"BP6*BT21+BP7","v":0.12534068500000001},null,"Consolidated Electrical Distributors (CED) - Logan, UT","636 N 1200 W","Logan","UT",84321]
[null,"UT",12,null,4.5822000000000002E-2,null,null,"07APSNS10X",10,null,null,null,null,null,null,null,31,null,"Courthouse/Town Hall",0.78,3067,null,null,null,null,null,null,null,null,null,null,null,null,null,null,null,null,null,null,null,null,null,null,null,null,null,null,20,{"$f":"SegmentExceptTable[[#This Row],[Numbers]]/$BP$4","v":3.3388981636060099E-2},{"$f":"SegmentExceptTable[[#This Row],[kW Boundary]]+(0.05*SegmentExceptTable[[#This Row],[kW Boundary]])","v":3.5058430717863104E-2},{"$f":"$BP$6*SegmentExceptTable[[#This Row],[kW Boundary]]+$BP$7","v":2.9819267214715013E-2},{"$f":"$BP$8*SegmentExceptTable[[#This Row],[kW Boundary]]+$BP$9","v":0.17054379332497768},{"$f":"SegmentExceptTable[[#This Row],[Boundary S/M]]+(0.05*SegmentExceptTable[[#This Row],[Boundary S/M]])","v":0.17907098299122656},{"$f":"IF(AND(AND(kwpeak_norm>SegmentExceptTable[[#This Row],[kW Boundary]],kwpeak_norm<SegmentExceptTable[[#This Row],[kW Exception]]),AND(kwhmo_norm>SegmentExceptTable[[#This Row],[Boundary S/M]],kwhmo_norm<SegmentExceptTable[[#This Row],[Exception S/M]])),1,0)","v":0},{"$f":"$BP$10*SegmentExceptTable[[#This Row],[kW Boundary]]+$BP$11","v":-5.9406867684979867E-2},{"$f":"$BP$12*SegmentExceptTable[[#This Row],[kW Boundary]]+$BP$13","v":0.55484804774849128},{"$f":"SegmentExceptTable[[#This Row],[Boundary M/L]]+(0.05*SegmentExceptTable[[#This Row],[Boundary M/L]])","v":0.58259045013591582},{"$f":"IF(AND(AND(kwpeak_norm>SegmentExceptTable[[#This Row],[kW Boundary]],kwpeak_norm<SegmentExceptTable[[#This Row],[kW Exception]]),AND(kwhmo_norm>SegmentExceptTable[[#This Row],[Boundary M/L]],kwhmo_norm<SegmentExceptTable[[#This Row],[Exception M/L]])),1,0)","v":0},null,null,null,null,null,null,null,null,null,null,null,null,"xml",{"$f":"(BP13-BP11)/(BP10-BP12)","v":0.27091694999999999},null,"DiVi Energy, LLC","4275 N Thanksgiving Way #500","Lehi","UT",84043]
[null,"UT",15,null,3.78E-2,null,null,"07APSVCNLS",null,null,null,null,null,null,null,null,30,null,"Dining",0.94,4900,null,null,null,null,null,null,null,null,null,null,null,null,null,null,null,null,null,null,null,null,null,null,null,null,null,null,21,{"$f":"SegmentExceptTable[[#This Row],[Numbers]]/$BP$4","v":3.5058430717863104E-2},{"$f":"SegmentExceptTable[[#This Row],[kW Boundary]]+(0.05*SegmentExceptTable[[#This Row],[kW Boundary]])","v":3.6811352253756258E-2},{"$f":"$BP$6*SegmentExceptTable[[#This Row],[kW Boundary]]+$BP$7","v":3.2246097510081291E-2},{"$f":"$BP$8*SegmentExceptTable[[#This Row],[kW Boundary]]+$BP$9","v":0.1693953569295468},{"$f":"SegmentExceptTable[[#This Row],[Boundary S/M]]+(0.05*SegmentExceptTable[[#This Row],[Boundary S/M]])","v":0.17786512477602415},{"$f":"IF(AND(AND(kwpeak_norm>SegmentExceptTable[[#This Row],[kW Boundary]],kwpeak_norm<SegmentExceptTable[[#This Row],[kW Exception]]),AND(kwhmo_norm>SegmentExceptTable[[#This Row],[Boundary S/M]],kwhmo_norm<SegmentExceptTable[[#This Row],[Exception S/M]])),1,0)","v":0},{"$f":"$BP$10*SegmentExceptTable[[#This Row],[kW Boundary]]+$BP$11","v":-5.5879814042741338E-2},{"$f":"$BP$12*SegmentExceptTable[[#This Row],[kW Boundary]]+$BP$13","v":0.55405785272470254},{"$f":"SegmentExceptTable[[#This Row],[Boundary M/L]]+(0.05*SegmentExceptTable[[#This Row],[Boundary M/L]])","v":0.58176074536093769},{"$f":"IF(AND(AND(kwpeak_norm>SegmentExceptTable[[#This Row],[kW Boundary]],kwpeak_norm<SegmentExceptTable[[#This Row],[kW Exception]]),AND(kwhmo_norm>SegmentExceptTable[[#This Row],[Boundary M/L]],kwhmo_norm<SegmentExceptTable[[#This Row],[Exception M/L]])),1,0)","v":0},null,null,null,null,null,null,null,null,null,null,null,null,"yml",{"$f":"BP10*BT23+BP11","v":0.44241969000000003},null,"Electrical Power and Controls","3840 W 5400 S","Taylorsville","UT",84129]
[null,"UT",23,null,8.2059999999999994E-2,11.13,null,"07CISH0019",19,null,null,null,null,null,null,null,29,null,"Dining: Bar Lounge/Leisure",0.94,4900,null,null,null,null,null,null,null,null,null,"Y = A * X + B",null,null,null,null,null,null,null,null,null,null,null,null,null,null,null,null,22,{"$f":"SegmentExceptTable[[#This Row],[Numbers]]/$BP$4","v":3.6727879799666109E-2},{"$f":"SegmentExceptTable[[#This Row],[kW Boundary]]+(0.05*SegmentExceptTable[[#This Row],[kW Boundary]])","v":3.8564273789649411E-2},{"$f":"$BP$6*SegmentExceptTable[[#This Row],[kW Boundary]]+$BP$7","v":3.4672927805447569E-2},{"$f":"$BP$8*SegmentExceptTable[[#This Row],[kW Boundary]]+$BP$9","v":0.16824692053411591},{"$f":"SegmentExceptTable[[#This Row],[Boundary S/M]]+(0.05*SegmentExceptTable[[#This Row],[Boundary S/M]])","v":0.1766592665608217},{"$f":"IF(AND(AND(kwpeak_norm>SegmentExceptTable[[#This Row],[kW Boundary]],kwpeak_norm<SegmentExceptTable[[#This Row],[kW Exception]]),AND(kwhmo_norm>SegmentExceptTable[[#This Row],[Boundary S/M]],kwhmo_norm<SegmentExceptTable[[#This Row],[Exception S/M]])),1,0)","v":0},{"$f":"$BP$10*SegmentExceptTable[[#This Row],[kW Boundary]]+$BP$11","v":-5.235276040050281E-2},{"$f":"$BP$12*SegmentExceptTable[[#This Row],[kW Boundary]]+$BP$13","v":0.5532676577009138},{"$f":"SegmentExceptTable[[#This Row],[Boundary M/L]]+(0.05*SegmentExceptTable[[#This Row],[Boundary M/L]])","v":0.58093104058595946},{"$f":"IF(AND(AND(kwpeak_norm>SegmentExceptTable[[#This Row],[kW Boundary]],kwpeak_norm<SegmentExceptTable[[#This Row],[kW Exception]]),AND(kwhmo_norm>SegmentExceptTable[[#This Row],[Boundary M/L]],kwhmo_norm<SegmentExceptTable[[#This Row],[Exception M/L]])),1,0)","v":0},null,null,null,null,null,null,null,null,null,null,null,null,null,null,null,"Elysium Energy LLC","14466 S Long Ridge Drive","Herriman","UT",84096]
[null,null,null,null,null,null,null,"07GNSV0006",6,null,null,null,null,null,null,null,28,null,"Dining: Cafeteria/Fastfood",0.94,4900,null,"Fixture Code","Lamp Qty","Actual lamp wattage","Ballast Type","BF ratio","Stipulated fixture wattage",null,"Fixture","Ballast","Concatenate","A","B","R^2",null,"State","m","b",null,null,null,null,null,null,null,null,23,{"$f":"SegmentExceptTable[[#This Row],[Numbers]]/$BP$4","v":3.8397328881469114E-2},{"$f":"SegmentExceptTable[[#This Row],[kW Boundary]]+(0.05*SegmentExceptTable[[#This Row],[kW Boundary]])","v":4.0317195325542572E-2},{"$f":"$BP$6*SegmentExceptTable[[#This Row],[kW Boundary]]+$BP$7","v":3.7099758100813847E-2},{"$f":"$BP$8*SegmentExceptTable[[#This Row],[kW Boundary]]+$BP$9","v":0.16709848413868506},{"$f":"SegmentExceptTable[[#This Row],[Boundary S/M]]+(0.05*SegmentExceptTable[[#This Row],[Boundary S/M]])","v":0.17545340834561932},{"$f":"IF(AND(AND(kwpeak_norm>SegmentExceptTable[[#This Row],[kW Boundary]],kwpeak_norm<SegmentExceptTable[[#This Row],[kW Exception]]),AND(kwhmo_norm>SegmentExceptTable[[#This Row],[Boundary S/M]],kwhmo_norm<SegmentExceptTable[[#This Row],[Exception S/M]])),1,0)","v":0},{"$f":"$BP$10*SegmentExceptTable[[#This Row],[kW Boundary]]+$BP$11","v":-4.8825706758264267E-2},{"$f":"$BP$12*SegmentExceptTable[[#This Row],[kW Boundary]]+$BP$13","v":0.55247746267712505},{"$f":"SegmentExceptTable[[#This Row],[Boundary M/L]]+(0.05*SegmentExceptTable[[#This Row],[Boundary M/L]])","v":0.58010133581098133},{"$f":"IF(AND(AND(kwpeak_norm>SegmentExceptTable[[#This Row],[kW Boundary]],kwpeak_norm<SegmentExceptTable[[#This Row],[kW Exception]]),AND(kwhmo_norm>SegmentExceptTable[[#This Row],[Boundary M/L]],kwhmo_norm<SegmentExceptTable[[#This Row],[Exception M/L]])),1,0)","v":0},null,null,null,null,null,null,null,null,null,null,null,null,null,null,null,"Expert Services","1190 N 1200 W","Orem","UT",84057]
[null,null,null,null,null,null,null,"07GNSV0023",23,null,null,null,null,null,null,null,27,null,"Dining: Family",0.94,4900,null,{"$f":"\"[\"&StipulatedWattage_Table[[#This Row],[Lamp Qty]]&\"L - \"&StipulatedWattage_Table[[#This Row],[Actual lamp wattage]]&\"W\"&IF(StipulatedWattage_Table[[#This Row],[Ballast Type]]=\"\",\"\",\" - \"&TRIM(StipulatedWattage_Table[[#This Row],[Ballast Type]]))&\"]\"","v":"[10L - 100W]"},10,100,null,null,720,null,"FLT12","IS N",{"$f":"FixtureWattageFormula_Table[[#This Row],[Fixture]]&\" - \"&FixtureWattageFormula_Table[[#This Row],[Ballast]]","v":"FLT12 - IS N"},0.79,15,0.96304957954240888,null,"ID",0.30963768115942031,0.83299999999999996,null,null,null,null,null,null,null,null,24,{"$f":"SegmentExceptTable[[#This Row],[Numbers]]/$BP$4","v":4.006677796327212E-2},{"$f":"SegmentExceptTable[[#This Row],[kW Boundary]]+(0.05*SegmentExceptTable[[#This Row],[kW Boundary]])","v":4.2070116861435726E-2},{"$f":"$BP$6*SegmentExceptTable[[#This Row],[kW Boundary]]+$BP$7","v":3.9526588396180125E-2},{"$f":"$BP$8*SegmentExceptTable[[#This Row],[kW Boundary]]+$BP$9","v":0.16595004774325417},{"$f":"SegmentExceptTable[[#This Row],[Boundary S/M]]+(0.05*SegmentExceptTable[[#This Row],[Boundary S/M]])","v":0.17424755013041687},{"$f":"IF(AND(AND(kwpeak_norm>SegmentExceptTable[[#This Row],[kW Boundary]],kwpeak_norm<SegmentExceptTable[[#This Row],[kW Exception]]),AND(kwhmo_norm>SegmentExceptTable[[#This Row],[Boundary S/M]],kwhmo_norm<SegmentExceptTable[[#This Row],[Exception S/M]])),1,0)","v":0},{"$f":"$BP$10*SegmentExceptTable[[#This Row],[kW Boundary]]+$BP$11","v":-4.5298653116025739E-2},{"$f":"$BP$12*SegmentExceptTable[[#This Row],[kW Boundary]]+$BP$13","v":0.55168726765333631},{"$f":"SegmentExceptTable[[#This Row],[Boundary M/L]]+(0.05*SegmentExceptTable[[#This Row],[Boundary M/L]])","v":0.5792716310360031},{"$f":"IF(AND(AND(kwpeak_norm>SegmentExceptTable[[#This Row],[kW Boundary]],kwpeak_norm<SegmentExceptTable[[#This Row],[kW Exception]]),AND(kwhmo_norm>SegmentExceptTable[[#This Row],[Boundary M/L]],kwhmo_norm<SegmentExceptTable[[#This Row],[Exception M/L]])),1,0)","v":0},null,null,null,null,null,null,null,null,null,null,null,null,null,null,null,"Green Light National, LLC","1001 South 400 East","Orem","UT",84097]
[null,"State","Rate Schedule","Rate Code","kWh Rate","kW Rate",null,"07GNSV0035",35,null,null,null,null,null,null,null,26,null,"Dormitory",0.94,3500,null,{"$f":"\"[\"&StipulatedWattage_Table[[#This Row],[Lamp Qty]]&\"L - \"&StipulatedWattage_Table[[#This Row],[Actual lamp wattage]]&\"W\"&IF(StipulatedWattage_Table[[#This Row],[Ballast Type]]=\"\",\"\",\" - \"&TRIM(StipulatedWattage_Table[[#This Row],[Ballast Type]]))&\"]\"","v":"[10L - 40W]"},10,40,null,null,290,null,"FLT12","MG",{"$f":"FixtureWattageFormula_Table[[#This Row],[Fixture]]&\" - \"&FixtureWattageFormula_Table[[#This Row],[Ballast]]","v":"FLT12 - MG"},0.95,20,0.98232557212026195,null,"UT",0.188043478212087,1.3955,null,null,null,null,null,null,null,null,25,{"$f":"SegmentExceptTable[[#This Row],[Numbers]]/$BP$4","v":4.1736227045075125E-2},{"$f":"SegmentExceptTable[[#This Row],[kW Boundary]]+(0.05*SegmentExceptTable[[#This Row],[kW Boundary]])","v":4.382303839732888E-2},{"$f":"$BP$6*SegmentExceptTable[[#This Row],[kW Boundary]]+$BP$7","v":4.1953418691546403E-2},{"$f":"$BP$8*SegmentExceptTable[[#This Row],[kW Boundary]]+$BP$9","v":0.16480161134782328},{"$f":"SegmentExceptTable[[#This Row],[Boundary S/M]]+(0.05*SegmentExceptTable[[#This Row],[Boundary S/M]])","v":0.17304169191521446},{"$f":"IF(AND(AND(kwpeak_norm>SegmentExceptTable[[#This Row],[kW Boundary]],kwpeak_norm<SegmentExceptTable[[#This Row],[kW Exception]]),AND(kwhmo_norm>SegmentExceptTable[[#This Row],[Boundary S/M]],kwhmo_norm<SegmentExceptTable[[#This Row],[Exception S/M]])),1,0)","v":0},{"$f":"$BP$10*SegmentExceptTable[[#This Row],[kW Boundary]]+$BP$11","v":-4.177159947378721E-2},{"$f":"$BP$12*SegmentExceptTable[[#This Row],[kW Boundary]]+$BP$13","v":0.55089707262954757},{"$f":"SegmentExceptTable[[#This Row],[Boundary M/L]]+(0.05*SegmentExceptTable[[#This Row],[Boundary M/L]])","v":0.57844192626102497},{"$f":"IF(AND(AND(kwpeak_norm>SegmentExceptTable[[#This Row],[kW Boundary]],kwpeak_norm<SegmentExceptTable[[#This Row],[kW Exception]]),AND(kwhmo_norm>SegmentExceptTable[[#This Row],[Boundary M/L]],kwhmo_norm<SegmentExceptTable[[#This Row],[Exception M/L]])),1,0)","v":0},null,null,null,null,null,null,null,null,null,null,null,null,null,null,null,"Green Planet ","675 S Angie Cir. ","Midvale","UT",84321]
[null,"WY",25,null,0.10617,0,null,"07GNSV006A","6A",null,null,null,null,null,null,null,25,null,"Electrical, Mechanical, Telephone Rooms",0.51,null,null,{"$f":"\"[\"&StipulatedWattage_Table[[#This Row],[Lamp Qty]]&\"L - \"&StipulatedWattage_Table[[#This Row],[Actual lamp wattage]]&\"W\"&IF(StipulatedWattage_Table[[#This Row],[Ballast Type]]=\"\",\"\",\" - \"&TRIM(StipulatedWattage_Table[[#This Row],[Ballast Type]]))&\"]\"","v":"[10L - 120W]"},10,120,null,null,430,null,"FLT12","RS/PRS N",{"$f":"FixtureWattageFormula_Table[[#This Row],[Fixture]]&\" - \"&FixtureWattageFormula_Table[[#This Row],[Ballast]]","v":"FLT12 - RS/PRS N"},0.87,-1,0.98384015752669618,null,"WY",0.31297101449275366,1.0765,null,null,null,null,null,null,null,null,26,{"$f":"SegmentExceptTable[[#This Row],[Numbers]]/$BP$4","v":4.340567612687813E-2},{"$f":"SegmentExceptTable[[#This Row],[kW Boundary]]+(0.05*SegmentExceptTable[[#This Row],[kW Boundary]])","v":4.5575959933222034E-2},{"$f":"$BP$6*SegmentExceptTable[[#This Row],[kW Boundary]]+$BP$7","v":4.4380248986912681E-2},{"$f":"$BP$8*SegmentExceptTable[[#This Row],[kW Boundary]]+$BP$9","v":0.16365317495239243},{"$f":"SegmentExceptTable[[#This Row],[Boundary S/M]]+(0.05*SegmentExceptTable[[#This Row],[Boundary S/M]])","v":0.17183583370001204},{"$f":"IF(AND(AND(kwpeak_norm>SegmentExceptTable[[#This Row],[kW Boundary]],kwpeak_norm<SegmentExceptTable[[#This Row],[kW Exception]]),AND(kwhmo_norm>SegmentExceptTable[[#This Row],[Boundary S/M]],kwhmo_norm<SegmentExceptTable[[#This Row],[Exception S/M]])),1,0)","v":0},{"$f":"$BP$10*SegmentExceptTable[[#This Row],[kW Boundary]]+$BP$11","v":-3.8244545831548682E-2},{"$f":"$BP$12*SegmentExceptTable[[#This Row],[kW Boundary]]+$BP$13","v":0.55010687760575883},{"$f":"SegmentExceptTable[[#This Row],[Boundary M/L]]+(0.05*SegmentExceptTable[[#This Row],[Boundary M/L]])","v":0.57761222148604674},{"$f":"IF(AND(AND(kwpeak_norm>SegmentExceptTable[[#This Row],[kW Boundary]],kwpeak_norm<SegmentExceptTable[[#This Row],[kW Exception]]),AND(kwhmo_norm>SegmentExceptTable[[#This Row],[Boundary M/L]],kwhmo_norm<SegmentExceptTable[[#This Row],[Exception M/L]])),1,0)","v":0},null,null,null,null,null,null,null,null,null,null,null,null,null,null,null,"iLumens","2900 S Main St.","Salt Lake City","UT",84115]
[null,"WY",28,null,5.7110000000000001E-2,21.773,null,"07GNSV023A","23A",null,null,null,null,null,null,null,24,null,"Exercise Center",0.94,null,null,{"$f":"\"[\"&StipulatedWattage_Table[[#This Row],[Lamp Qty]]&\"L - \"&StipulatedWattage_Table[[#This Row],[Actual lamp wattage]]&\"W\"&IF(StipulatedWattage_Table[[#This Row],[Ballast Type]]=\"\",\"\",\" - \"&TRIM(StipulatedWattage_Table[[#This Row],[Ballast Type]]))&\"]\"","v":"[10L - 75W]"},10,75,null,null,530,null,"FLT12HO","MG",{"$f":"FixtureWattageFormula_Table[[#This Row],[Fixture]]&\" - \"&FixtureWattageFormula_Table[[#This Row],[Ballast]]","v":"FLT12HO - MG"},1.1200000000000001,0,"Barry + Catalog",null,null,null,null,null,null,null,null,null,null,null,null,27,{"$f":"SegmentExceptTable[[#This Row],[Numbers]]/$BP$4","v":4.5075125208681135E-2},{"$f":"SegmentExceptTable[[#This Row],[kW Boundary]]+(0.05*SegmentExceptTable[[#This Row],[kW Boundary]])","v":4.7328881469115194E-2},{"$f":"$BP$6*SegmentExceptTable[[#This Row],[kW Boundary]]+$BP$7","v":4.6807079282278959E-2},{"$f":"$BP$8*SegmentExceptTable[[#This Row],[kW Boundary]]+$BP$9","v":0.16250473855696154},{"$f":"SegmentExceptTable[[#This Row],[Boundary S/M]]+(0.05*SegmentExceptTable[[#This Row],[Boundary S/M]])","v":0.17062997548480963},{"$f":"IF(AND(AND(kwpeak_norm>SegmentExceptTable[[#This Row],[kW Boundary]],kwpeak_norm<SegmentExceptTable[[#This Row],[kW Exception]]),AND(kwhmo_norm>SegmentExceptTable[[#This Row],[Boundary S/M]],kwhmo_norm<SegmentExceptTable[[#This Row],[Exception S/M]])),1,0)","v":0},{"$f":"$BP$10*SegmentExceptTable[[#This Row],[kW Boundary]]+$BP$11","v":-3.4717492189310153E-2},{"$f":"$BP$12*SegmentExceptTable[[#This Row],[kW Boundary]]+$BP$13","v":0.54931668258196997},{"$f":"SegmentExceptTable[[#This Row],[Boundary M/L]]+(0.05*SegmentExceptTable[[#This Row],[Boundary M/L]])","v":0.5767825167110685},{"$f":"IF(AND(AND(kwpeak_norm>SegmentExceptTable[[#This Row],[kW Boundary]],kwpeak_norm<SegmentExceptTable[[#This Row],[kW Exception]]),AND(kwhmo_norm>SegmentExceptTable[[#This Row],[Boundary M/L]],kwhmo_norm<SegmentExceptTable[[#This Row],[Exception M/L]])),1,0)","v":0},null,null,null,null,null,null,null,null,null,null,null,null,null,null,null,"LMS Lighting Maintenance Services"," 663 W 4330 S","Salt Lake City","UT",84123]
[null,"WY",33,null,4.292E-2,27.427,null,"07NMT06135",6,null,null,null,null,null,null,null,23,null,"Exercise Center, Gymnasium",0.89,null,null,{"$f":"\"[\"&StipulatedWattage_Table[[#This Row],[Lamp Qty]]&\"L - \"&StipulatedWattage_Table[[#This Row],[Actual lamp wattage]]&\"W\"&IF(StipulatedWattage_Table[[#This Row],[Ballast Type]]=\"\",\"\",\" - \"&TRIM(StipulatedWattage_Table[[#This Row],[Ballast Type]]))&\"]\"","v":"[1L - 100W - n/a]"},1,100,"n/a","n/a",72,null,"FLT12VHO","MG",{"$f":"FixtureWattageFormula_Table[[#This Row],[Fixture]]&\" - \"&FixtureWattageFormula_Table[[#This Row],[Ballast]]","v":"FLT12VHO - MG"},1.03,0,"Barry + Catalog",null,null,null,null,null,null,null,null,null,null,null,null,28,{"$f":"SegmentExceptTable[[#This Row],[Numbers]]/$BP$4","v":4.6744574290484141E-2},{"$f":"SegmentExceptTable[[#This Row],[kW Boundary]]+(0.05*SegmentExceptTable[[#This Row],[kW Boundary]])","v":4.9081803005008348E-2},{"$f":"$BP$6*SegmentExceptTable[[#This Row],[kW Boundary]]+$BP$7","v":4.9233909577645237E-2},{"$f":"$BP$8*SegmentExceptTable[[#This Row],[kW Boundary]]+$BP$9","v":0.16135630216153066},{"$f":"SegmentExceptTable[[#This Row],[Boundary S/M]]+(0.05*SegmentExceptTable[[#This Row],[Boundary S/M]])","v":0.16942411726960718},{"$f":"IF(AND(AND(kwpeak_norm>SegmentExceptTable[[#This Row],[kW Boundary]],kwpeak_norm<SegmentExceptTable[[#This Row],[kW Exception]]),AND(kwhmo_norm>SegmentExceptTable[[#This Row],[Boundary S/M]],kwhmo_norm<SegmentExceptTable[[#This Row],[Exception S/M]])),1,0)","v":0},{"$f":"$BP$10*SegmentExceptTable[[#This Row],[kW Boundary]]+$BP$11","v":-3.1190438547071625E-2},{"$f":"$BP$12*SegmentExceptTable[[#This Row],[kW Boundary]]+$BP$13","v":0.54852648755818123},{"$f":"SegmentExceptTable[[#This Row],[Boundary M/L]]+(0.05*SegmentExceptTable[[#This Row],[Boundary M/L]])","v":0.57595281193609027},{"$f":"IF(AND(AND(kwpeak_norm>SegmentExceptTable[[#This Row],[kW Boundary]],kwpeak_norm<SegmentExceptTable[[#This Row],[kW Exception]]),AND(kwhmo_norm>SegmentExceptTable[[#This Row],[Boundary M/L]],kwhmo_norm<SegmentExceptTable[[#This Row],[Exception M/L]])),1,0)","v":0},null,null,null,null,null,null,null,null,null,null,null,null,null,null,null,"Luxur Lighting","1123 W 200 S","Parowan","UT",84761]
[null,"WY",46,null,4.3860000000000003E-2,26.93,null,"07RGNSV23A","23A",null,null,null,null,null,null,null,22,null,"Exhibit, Museum",0.89,2700,null,{"$f":"\"[\"&StipulatedWattage_Table[[#This Row],[Lamp Qty]]&\"L - \"&StipulatedWattage_Table[[#This Row],[Actual lamp wattage]]&\"W\"&IF(StipulatedWattage_Table[[#This Row],[Ballast Type]]=\"\",\"\",\" - \"&TRIM(StipulatedWattage_Table[[#This Row],[Ballast Type]]))&\"]\"","v":"[1L - 100W]"},1,100,null,null,72,null,"CFL Pin-Based","IS N",{"$f":"FixtureWattageFormula_Table[[#This Row],[Fixture]]&\" - \"&FixtureWattageFormula_Table[[#This Row],[Ballast]]","v":"CFL Pin-Based - IS N"},0.86,2,"Barry + Catalog",null,null,null,null,null,null,null,null,null,null,null,null,29,{"$f":"SegmentExceptTable[[#This Row],[Numbers]]/$BP$4","v":4.8414023372287146E-2},{"$f":"SegmentExceptTable[[#This Row],[kW Boundary]]+(0.05*SegmentExceptTable[[#This Row],[kW Boundary]])","v":5.0834724540901502E-2},{"$f":"$BP$6*SegmentExceptTable[[#This Row],[kW Boundary]]+$BP$7","v":5.1660739873011514E-2},{"$f":"$BP$8*SegmentExceptTable[[#This Row],[kW Boundary]]+$BP$9","v":0.1602078657660998},{"$f":"SegmentExceptTable[[#This Row],[Boundary S/M]]+(0.05*SegmentExceptTable[[#This Row],[Boundary S/M]])","v":0.1682182590544048},{"$f":"IF(AND(AND(kwpeak_norm>SegmentExceptTable[[#This Row],[kW Boundary]],kwpeak_norm<SegmentExceptTable[[#This Row],[kW Exception]]),AND(kwhmo_norm>SegmentExceptTable[[#This Row],[Boundary S/M]],kwhmo_norm<SegmentExceptTable[[#This Row],[Exception S/M]])),1,0)","v":0},{"$f":"$BP$10*SegmentExceptTable[[#This Row],[kW Boundary]]+$BP$11","v":-2.7663384904833097E-2},{"$f":"$BP$12*SegmentExceptTable[[#This Row],[kW Boundary]]+$BP$13","v":0.54773629253439249},{"$f":"SegmentExceptTable[[#This Row],[Boundary M/L]]+(0.05*SegmentExceptTable[[#This Row],[Boundary M/L]])","v":0.57512310716111215},{"$f":"IF(AND(AND(kwpeak_norm>SegmentExceptTable[[#This Row],[kW Boundary]],kwpeak_norm<SegmentExceptTable[[#This Row],[kW Exception]]),AND(kwhmo_norm>SegmentExceptTable[[#This Row],[Boundary M/L]],kwhmo_norm<SegmentExceptTable[[#This Row],[Exception M/L]])),1,0)","v":0},null,null,null,null,null,null,null,null,null,null,null,null,null,null,null,"Meyer Lighting & Supply","1192 East Draper Parkway #212","Draper","UT",84020]
[null,"WY","48T",null,4.1259999999999998E-2,26.919,null,"07SPCL0001",1,null,"State","Stipulated Savings?",null,null,null,null,21,null,"Exhibition Hall",0.89,2700,null,{"$f":"\"[\"&StipulatedWattage_Table[[#This Row],[Lamp Qty]]&\"L - \"&StipulatedWattage_Table[[#This Row],[Actual lamp wattage]]&\"W\"&IF(StipulatedWattage_Table[[#This Row],[Ballast Type]]=\"\",\"\",\" - \"&TRIM(StipulatedWattage_Table[[#This Row],[Ballast Type]]))&\"]\"","v":"[1L - 110W - MG]"},1,110,"MG ",1,98,null,"CFL Pin-Based","MG",{"$f":"FixtureWattageFormula_Table[[#This Row],[Fixture]]&\" - \"&FixtureWattageFormula_Table[[#This Row],[Ballast]]","v":"CFL Pin-Based - MG"},1.1000000000000001,-0.03,"Barry + Catalog",null,null,null,null,null,null,null,null,null,null,null,null,30,{"$f":"SegmentExceptTable[[#This Row],[Numbers]]/$BP$4","v":5.0083472454090151E-2},{"$f":"SegmentExceptTable[[#This Row],[kW Boundary]]+(0.05*SegmentExceptTable[[#This Row],[kW Boundary]])","v":5.2587646076794656E-2},{"$f":"$BP$6*SegmentExceptTable[[#This Row],[kW Boundary]]+$BP$7","v":5.4087570168377792E-2},{"$f":"$BP$8*SegmentExceptTable[[#This Row],[kW Boundary]]+$BP$9","v":0.15905942937066891},{"$f":"SegmentExceptTable[[#This Row],[Boundary S/M]]+(0.05*SegmentExceptTable[[#This Row],[Boundary S/M]])","v":0.16701240083920235},{"$f":"IF(AND(AND(kwpeak_norm>SegmentExceptTable[[#This Row],[kW Boundary]],kwpeak_norm<SegmentExceptTable[[#This Row],[kW Exception]]),AND(kwhmo_norm>SegmentExceptTable[[#This Row],[Boundary S/M]],kwhmo_norm<SegmentExceptTable[[#This Row],[Exception S/M]])),1,0)","v":0},{"$f":"$BP$10*SegmentExceptTable[[#This Row],[kW Boundary]]+$BP$11","v":-2.4136331262594568E-2},{"$f":"$BP$12*SegmentExceptTable[[#This Row],[kW Boundary]]+$BP$13","v":0.54694609751060375},{"$f":"SegmentExceptTable[[#This Row],[Boundary M/L]]+(0.05*SegmentExceptTable[[#This Row],[Boundary M/L]])","v":0.57429340238613391},{"$f":"IF(AND(AND(kwpeak_norm>SegmentExceptTable[[#This Row],[kW Boundary]],kwpeak_norm<SegmentExceptTable[[#This Row],[kW Exception]]),AND(kwhmo_norm>SegmentExceptTable[[#This Row],[Boundary M/L]],kwhmo_norm<SegmentExceptTable[[#This Row],[Exception M/L]])),1,0)","v":0},null,null,null,null,null,null,null,null,null,null,null,null,null,null,null,"MillCreek Electric","4042 W Buck Hollow Ln","Bluffdale","UT",84054]
[null,"WY",54,null,5.577E-2,0,null,"07SPCL0002",2,null,"ID","Yes",null,null,null,null,20,null,"Financial Institution",0.78,3067,null,{"$f":"\"[\"&StipulatedWattage_Table[[#This Row],[Lamp Qty]]&\"L - \"&StipulatedWattage_Table[[#This Row],[Actual lamp wattage]]&\"W\"&IF(StipulatedWattage_Table[[#This Row],[Ballast Type]]=\"\",\"\",\" - \"&TRIM(StipulatedWattage_Table[[#This Row],[Ballast Type]]))&\"]\"","v":"[1L - 215W - MG]"},1,215,"MG ",1,205,null,null,null,null,null,null,null,null,null,null,null,null,null,null,null,null,null,null,null,31,{"$f":"SegmentExceptTable[[#This Row],[Numbers]]/$BP$4","v":5.1752921535893157E-2},{"$f":"SegmentExceptTable[[#This Row],[kW Boundary]]+(0.05*SegmentExceptTable[[#This Row],[kW Boundary]])","v":5.4340567612687816E-2},{"$f":"$BP$6*SegmentExceptTable[[#This Row],[kW Boundary]]+$BP$7","v":5.651440046374407E-2},{"$f":"$BP$8*SegmentExceptTable[[#This Row],[kW Boundary]]+$BP$9","v":0.15791099297523803},{"$f":"SegmentExceptTable[[#This Row],[Boundary S/M]]+(0.05*SegmentExceptTable[[#This Row],[Boundary S/M]])","v":0.16580654262399994},{"$f":"IF(AND(AND(kwpeak_norm>SegmentExceptTable[[#This Row],[kW Boundary]],kwpeak_norm<SegmentExceptTable[[#This Row],[kW Exception]]),AND(kwhmo_norm>SegmentExceptTable[[#This Row],[Boundary S/M]],kwhmo_norm<SegmentExceptTable[[#This Row],[Exception S/M]])),1,0)","v":0},{"$f":"$BP$10*SegmentExceptTable[[#This Row],[kW Boundary]]+$BP$11","v":-2.060927762035604E-2},{"$f":"$BP$12*SegmentExceptTable[[#This Row],[kW Boundary]]+$BP$13","v":0.546155902486815},{"$f":"SegmentExceptTable[[#This Row],[Boundary M/L]]+(0.05*SegmentExceptTable[[#This Row],[Boundary M/L]])","v":0.57346369761115579},{"$f":"IF(AND(AND(kwpeak_norm>SegmentExceptTable[[#This Row],[kW Boundary]],kwpeak_norm<SegmentExceptTable[[#This Row],[kW Exception]]),AND(kwhmo_norm>SegmentExceptTable[[#This Row],[Boundary M/L]],kwhmo_norm<SegmentExceptTable[[#This Row],[Exception M/L]])),1,0)","v":0},null,null,null,null,null,null,null,null,null,null,null,null,null,null,null,"NGL Supply","3555 S 700 W","South Salt Lake","UT",84119]
[null,"WY",58,null,5.9799999999999999E-2,0,null,"08APSV0010",10,null,"UT","Yes",null,null,null,null,19,null,"Financial Transaction",0.78,3067,null,{"$f":"\"[\"&StipulatedWattage_Table[[#This Row],[Lamp Qty]]&\"L - \"&StipulatedWattage_Table[[#This Row],[Actual lamp wattage]]&\"W\"&IF(StipulatedWattage_Table[[#This Row],[Ballast Type]]=\"\",\"\",\" - \"&TRIM(StipulatedWattage_Table[[#This Row],[Ballast Type]]))&\"]\"","v":"[1L - 28W - RS/PRS H]"},1,28,"RS/PRS H",1.1000000000000001,32,null,"FLT5","RS/PRS H",{"$f":"FixtureWattageFormula_Table[[#This Row],[Fixture]]&\" - \"&FixtureWattageFormula_Table[[#This Row],[Ballast]]","v":"FLT5 - RS/PRS H"},1.1200000000000001,1,0.99804259252196703,null,null,null,null,null,null,null,null,null,null,null,null,32,{"$f":"SegmentExceptTable[[#This Row],[Numbers]]/$BP$4","v":5.3422370617696162E-2},{"$f":"SegmentExceptTable[[#This Row],[kW Boundary]]+(0.05*SegmentExceptTable[[#This Row],[kW Boundary]])","v":5.609348914858097E-2},{"$f":"$BP$6*SegmentExceptTable[[#This Row],[kW Boundary]]+$BP$7","v":5.8941230759110348E-2},{"$f":"$BP$8*SegmentExceptTable[[#This Row],[kW Boundary]]+$BP$9","v":0.15676255657980714},{"$f":"SegmentExceptTable[[#This Row],[Boundary S/M]]+(0.05*SegmentExceptTable[[#This Row],[Boundary S/M]])","v":0.16460068440879749},{"$f":"IF(AND(AND(kwpeak_norm>SegmentExceptTable[[#This Row],[kW Boundary]],kwpeak_norm<SegmentExceptTable[[#This Row],[kW Exception]]),AND(kwhmo_norm>SegmentExceptTable[[#This Row],[Boundary S/M]],kwhmo_norm<SegmentExceptTable[[#This Row],[Exception S/M]])),1,0)","v":0},{"$f":"$BP$10*SegmentExceptTable[[#This Row],[kW Boundary]]+$BP$11","v":-1.7082223978117497E-2},{"$f":"$BP$12*SegmentExceptTable[[#This Row],[kW Boundary]]+$BP$13","v":0.54536570746302626},{"$f":"SegmentExceptTable[[#This Row],[Boundary M/L]]+(0.05*SegmentExceptTable[[#This Row],[Boundary M/L]])","v":0.57263399283617755},{"$f":"IF(AND(AND(kwpeak_norm>SegmentExceptTable[[#This Row],[kW Boundary]],kwpeak_norm<SegmentExceptTable[[#This Row],[kW Exception]]),AND(kwhmo_norm>SegmentExceptTable[[#This Row],[Boundary M/L]],kwhmo_norm<SegmentExceptTable[[#This Row],[Exception M/L]])),1,0)","v":0},null,null,null,null,null,null,null,null,null,null,null,null,null,null,null,"One Electric","PO Box 372","Lehi","UT",84043]
[null,"WY",210,null,"contact us",null,null,"08APSV10NS",10,null,"WY","Yes",null,null,null,null,18,null,"Fire Station",0.94,null,null,{"$f":"\"[\"&StipulatedWattage_Table[[#This Row],[Lamp Qty]]&\"L - \"&StipulatedWattage_Table[[#This Row],[Actual lamp wattage]]&\"W\"&IF(StipulatedWattage_Table[[#This Row],[Ballast Type]]=\"\",\"\",\" - \"&TRIM(StipulatedWattage_Table[[#This Row],[Ballast Type]]))&\"]\"","v":"[1L - 28W - RS/PRS L]"},1,28,"RS/PRS L",0.78,30,null,"FLT5","RS/PRS N",{"$f":"FixtureWattageFormula_Table[[#This Row],[Fixture]]&\" - \"&FixtureWattageFormula_Table[[#This Row],[Ballast]]","v":"FLT5 - RS/PRS N"},1.1000000000000001,-1,0.99937884970747126,null,null,null,null,null,null,null,null,null,null,null,null,33,{"$f":"SegmentExceptTable[[#This Row],[Numbers]]/$BP$4","v":5.5091819699499167E-2},{"$f":"SegmentExceptTable[[#This Row],[kW Boundary]]+(0.05*SegmentExceptTable[[#This Row],[kW Boundary]])","v":5.7846410684474124E-2},{"$f":"$BP$6*SegmentExceptTable[[#This Row],[kW Boundary]]+$BP$7","v":6.1368061054476626E-2},{"$f":"$BP$8*SegmentExceptTable[[#This Row],[kW Boundary]]+$BP$9","v":0.15561412018437629},{"$f":"SegmentExceptTable[[#This Row],[Boundary S/M]]+(0.05*SegmentExceptTable[[#This Row],[Boundary S/M]])","v":0.16339482619359511},{"$f":"IF(AND(AND(kwpeak_norm>SegmentExceptTable[[#This Row],[kW Boundary]],kwpeak_norm<SegmentExceptTable[[#This Row],[kW Exception]]),AND(kwhmo_norm>SegmentExceptTable[[#This Row],[Boundary S/M]],kwhmo_norm<SegmentExceptTable[[#This Row],[Exception S/M]])),1,0)","v":0},{"$f":"$BP$10*SegmentExceptTable[[#This Row],[kW Boundary]]+$BP$11","v":-1.3555170335878969E-2},{"$f":"$BP$12*SegmentExceptTable[[#This Row],[kW Boundary]]+$BP$13","v":0.54457551243923752},{"$f":"SegmentExceptTable[[#This Row],[Boundary M/L]]+(0.05*SegmentExceptTable[[#This Row],[Boundary M/L]])","v":0.57180428806119943},{"$f":"IF(AND(AND(kwpeak_norm>SegmentExceptTable[[#This Row],[kW Boundary]],kwpeak_norm<SegmentExceptTable[[#This Row],[kW Exception]]),AND(kwhmo_norm>SegmentExceptTable[[#This Row],[Boundary M/L]],kwhmo_norm<SegmentExceptTable[[#This Row],[Exception M/L]])),1,0)","v":0},null,null,null,null,null,null,null,null,null,null,null,null,null,null,null,"Professional Electrical Services","2443 Progress Dr","West Valley","UT",84119]
[null,"WY",212,null,"contact us",null,null,"08CGM06136",6,null,null,null,null,null,null,null,17,null,"Fire Station: Garage",0.94,null,null,{"$f":"\"[\"&StipulatedWattage_Table[[#This Row],[Lamp Qty]]&\"L - \"&StipulatedWattage_Table[[#This Row],[Actual lamp wattage]]&\"W\"&IF(StipulatedWattage_Table[[#This Row],[Ballast Type]]=\"\",\"\",\" - \"&TRIM(StipulatedWattage_Table[[#This Row],[Ballast Type]]))&\"]\"","v":"[1L - 32W - IS H]"},1,32,"IS H",1.1000000000000001,33,null,"FLT5","RS/PRS VH",{"$f":"FixtureWattageFormula_Table[[#This Row],[Fixture]]&\" - \"&FixtureWattageFormula_Table[[#This Row],[Ballast]]","v":"FLT5 - RS/PRS VH"},1.28,-1,0.99931593072968383,null,null,null,null,null,null,null,null,null,null,null,null,34,{"$f":"SegmentExceptTable[[#This Row],[Numbers]]/$BP$4","v":5.6761268781302172E-2},{"$f":"SegmentExceptTable[[#This Row],[kW Boundary]]+(0.05*SegmentExceptTable[[#This Row],[kW Boundary]])","v":5.9599332220367285E-2},{"$f":"$BP$6*SegmentExceptTable[[#This Row],[kW Boundary]]+$BP$7","v":6.3794891349842897E-2},{"$f":"$BP$8*SegmentExceptTable[[#This Row],[kW Boundary]]+$BP$9","v":0.1544656837889454},{"$f":"SegmentExceptTable[[#This Row],[Boundary S/M]]+(0.05*SegmentExceptTable[[#This Row],[Boundary S/M]])","v":0.16218896797839266},{"$f":"IF(AND(AND(kwpeak_norm>SegmentExceptTable[[#This Row],[kW Boundary]],kwpeak_norm<SegmentExceptTable[[#This Row],[kW Exception]]),AND(kwhmo_norm>SegmentExceptTable[[#This Row],[Boundary S/M]],kwhmo_norm<SegmentExceptTable[[#This Row],[Exception S/M]])),1,0)","v":0},{"$f":"$BP$10*SegmentExceptTable[[#This Row],[kW Boundary]]+$BP$11","v":-1.002811669364044E-2},{"$f":"$BP$12*SegmentExceptTable[[#This Row],[kW Boundary]]+$BP$13","v":0.54378531741544878},{"$f":"SegmentExceptTable[[#This Row],[Boundary M/L]]+(0.05*SegmentExceptTable[[#This Row],[Boundary M/L]])","v":0.57097458328622119},{"$f":"IF(AND(AND(kwpeak_norm>SegmentExceptTable[[#This Row],[kW Boundary]],kwpeak_norm<SegmentExceptTable[[#This Row],[kW Exception]]),AND(kwhmo_norm>SegmentExceptTable[[#This Row],[Boundary M/L]],kwhmo_norm<SegmentExceptTable[[#This Row],[Exception M/L]])),1,0)","v":0},null,null,null,null,null,null,null,null,null,null,null,null,null,null,null,"Quality Lighting","3309 S Eastcrest Rd #135","West Valley City","UT",84120]
[null,null,null,null,null,null,null,"08CGM23136",23,null,null,null,null,null,null,null,16,null,"Fire Station: Sleeping Quarters",0.94,null,null,{"$f":"\"[\"&StipulatedWattage_Table[[#This Row],[Lamp Qty]]&\"L - \"&StipulatedWattage_Table[[#This Row],[Actual lamp wattage]]&\"W\"&IF(StipulatedWattage_Table[[#This Row],[Ballast Type]]=\"\",\"\",\" - \"&TRIM(StipulatedWattage_Table[[#This Row],[Ballast Type]]))&\"]\"","v":"[1L - 32W - IS L]"},1,32,"IS L",0.78,25,null,"FLT5HO","RS/PRS H",{"$f":"FixtureWattageFormula_Table[[#This Row],[Fixture]]&\" - \"&FixtureWattageFormula_Table[[#This Row],[Ballast]]","v":"FLT5HO - RS/PRS H"},1.1000000000000001,1,"Barry + Catalog",null,null,null,null,null,null,null,null,null,null,null,null,35,{"$f":"SegmentExceptTable[[#This Row],[Numbers]]/$BP$4","v":5.8430717863105178E-2},{"$f":"SegmentExceptTable[[#This Row],[kW Boundary]]+(0.05*SegmentExceptTable[[#This Row],[kW Boundary]])","v":6.1352253756260439E-2},{"$f":"$BP$6*SegmentExceptTable[[#This Row],[kW Boundary]]+$BP$7","v":6.6221721645209175E-2},{"$f":"$BP$8*SegmentExceptTable[[#This Row],[kW Boundary]]+$BP$9","v":0.15331724739351454},{"$f":"SegmentExceptTable[[#This Row],[Boundary S/M]]+(0.05*SegmentExceptTable[[#This Row],[Boundary S/M]])","v":0.16098310976319027},{"$f":"IF(AND(AND(kwpeak_norm>SegmentExceptTable[[#This Row],[kW Boundary]],kwpeak_norm<SegmentExceptTable[[#This Row],[kW Exception]]),AND(kwhmo_norm>SegmentExceptTable[[#This Row],[Boundary S/M]],kwhmo_norm<SegmentExceptTable[[#This Row],[Exception S/M]])),1,0)","v":0},{"$f":"$BP$10*SegmentExceptTable[[#This Row],[kW Boundary]]+$BP$11","v":-6.5010630514019119E-3},{"$f":"$BP$12*SegmentExceptTable[[#This Row],[kW Boundary]]+$BP$13","v":0.54299512239165992},{"$f":"SegmentExceptTable[[#This Row],[Boundary M/L]]+(0.05*SegmentExceptTable[[#This Row],[Boundary M/L]])","v":0.57014487851124296},{"$f":"IF(AND(AND(kwpeak_norm>SegmentExceptTable[[#This Row],[kW Boundary]],kwpeak_norm<SegmentExceptTable[[#This Row],[kW Exception]]),AND(kwhmo_norm>SegmentExceptTable[[#This Row],[Boundary M/L]],kwhmo_norm<SegmentExceptTable[[#This Row],[Exception M/L]])),1,0)","v":0},null,null,null,null,null,null,null,null,null,null,null,null,null,null,null,"Saddleback Lighting","1425 Red Ledge Rd #101","Washington","UT",84780]
[null,null,null,null,null,null,null,"08CGM6A136","6A",null,null,null,null,null,null,null,15,null,"General Comm. & Ind. Work - High Bay",0.96,5500,null,{"$f":"\"[\"&StipulatedWattage_Table[[#This Row],[Lamp Qty]]&\"L - \"&StipulatedWattage_Table[[#This Row],[Actual lamp wattage]]&\"W\"&IF(StipulatedWattage_Table[[#This Row],[Ballast Type]]=\"\",\"\",\" - \"&TRIM(StipulatedWattage_Table[[#This Row],[Ballast Type]]))&\"]\"","v":"[1L - 32W - IS N]"},1,32,"IS N",0.88,30,null,"FLT5HO","RS/PRS N",{"$f":"FixtureWattageFormula_Table[[#This Row],[Fixture]]&\" - \"&FixtureWattageFormula_Table[[#This Row],[Ballast]]","v":"FLT5HO - RS/PRS N"},1.1000000000000001,-1,"Barry + Catalog",null,null,null,null,null,null,null,null,null,null,null,null,36,{"$f":"SegmentExceptTable[[#This Row],[Numbers]]/$BP$4","v":6.0100166944908183E-2},{"$f":"SegmentExceptTable[[#This Row],[kW Boundary]]+(0.05*SegmentExceptTable[[#This Row],[kW Boundary]])","v":6.3105175292153592E-2},{"$f":"$BP$6*SegmentExceptTable[[#This Row],[kW Boundary]]+$BP$7","v":6.8648551940575453E-2},{"$f":"$BP$8*SegmentExceptTable[[#This Row],[kW Boundary]]+$BP$9","v":0.15216881099808366},{"$f":"SegmentExceptTable[[#This Row],[Boundary S/M]]+(0.05*SegmentExceptTable[[#This Row],[Boundary S/M]])","v":0.15977725154798783},{"$f":"IF(AND(AND(kwpeak_norm>SegmentExceptTable[[#This Row],[kW Boundary]],kwpeak_norm<SegmentExceptTable[[#This Row],[kW Exception]]),AND(kwhmo_norm>SegmentExceptTable[[#This Row],[Boundary S/M]],kwhmo_norm<SegmentExceptTable[[#This Row],[Exception S/M]])),1,0)","v":0},{"$f":"$BP$10*SegmentExceptTable[[#This Row],[kW Boundary]]+$BP$11","v":-2.9740094091633973E-3},{"$f":"$BP$12*SegmentExceptTable[[#This Row],[kW Boundary]]+$BP$13","v":0.54220492736787118},{"$f":"SegmentExceptTable[[#This Row],[Boundary M/L]]+(0.05*SegmentExceptTable[[#This Row],[Boundary M/L]])","v":0.56931517373626472},{"$f":"IF(AND(AND(kwpeak_norm>SegmentExceptTable[[#This Row],[kW Boundary]],kwpeak_norm<SegmentExceptTable[[#This Row],[kW Exception]]),AND(kwhmo_norm>SegmentExceptTable[[#This Row],[Boundary M/L]],kwhmo_norm<SegmentExceptTable[[#This Row],[Exception M/L]])),1,0)","v":0},null,null,null,null,null,null,null,null,null,null,null,null,null,null,null,"Thomson Electric Supply","127 Main St","Logan","UT",84321]
[null,"Project Type",null,null,null,null,null,"08CGN06136",6,null,null,null,null,null,null,null,14,null,"General Comm. & Ind. Work - Low Bay",0.96,5500,null,{"$f":"\"[\"&StipulatedWattage_Table[[#This Row],[Lamp Qty]]&\"L - \"&StipulatedWattage_Table[[#This Row],[Actual lamp wattage]]&\"W\"&IF(StipulatedWattage_Table[[#This Row],[Ballast Type]]=\"\",\"\",\" - \"&TRIM(StipulatedWattage_Table[[#This Row],[Ballast Type]]))&\"]\"","v":"[1L - 32W - IS VH]"},1,32,"IS VH",1.1499999999999999,38,null,"FLT5HO","RS/PRS VH",{"$f":"FixtureWattageFormula_Table[[#This Row],[Fixture]]&\" - \"&FixtureWattageFormula_Table[[#This Row],[Ballast]]","v":"FLT5HO - RS/PRS VH"},1.2,-1,"Barry + Catalog",null,null,null,null,null,null,null,null,null,null,null,null,37,{"$f":"SegmentExceptTable[[#This Row],[Numbers]]/$BP$4","v":6.1769616026711188E-2},{"$f":"SegmentExceptTable[[#This Row],[kW Boundary]]+(0.05*SegmentExceptTable[[#This Row],[kW Boundary]])","v":6.4858096828046746E-2},{"$f":"$BP$6*SegmentExceptTable[[#This Row],[kW Boundary]]+$BP$7","v":7.1075382235941731E-2},{"$f":"$BP$8*SegmentExceptTable[[#This Row],[kW Boundary]]+$BP$9","v":0.15102037460265277},{"$f":"SegmentExceptTable[[#This Row],[Boundary S/M]]+(0.05*SegmentExceptTable[[#This Row],[Boundary S/M]])","v":0.15857139333278542},{"$f":"IF(AND(AND(kwpeak_norm>SegmentExceptTable[[#This Row],[kW Boundary]],kwpeak_norm<SegmentExceptTable[[#This Row],[kW Exception]]),AND(kwhmo_norm>SegmentExceptTable[[#This Row],[Boundary S/M]],kwhmo_norm<SegmentExceptTable[[#This Row],[Exception S/M]])),1,0)","v":0},{"$f":"$BP$10*SegmentExceptTable[[#This Row],[kW Boundary]]+$BP$11","v":5.5304423307514505E-4},{"$f":"$BP$12*SegmentExceptTable[[#This Row],[kW Boundary]]+$BP$13","v":0.54141473234408244},{"$f":"SegmentExceptTable[[#This Row],[Boundary M/L]]+(0.05*SegmentExceptTable[[#This Row],[Boundary M/L]])","v":0.5684854689612866},{"$f":"IF(AND(AND(kwpeak_norm>SegmentExceptTable[[#This Row],[kW Boundary]],kwpeak_norm<SegmentExceptTable[[#This Row],[kW Exception]]),AND(kwhmo_norm>SegmentExceptTable[[#This Row],[Boundary M/L]],kwhmo_norm<SegmentExceptTable[[#This Row],[Exception M/L]])),1,0)","v":0},null,null,null,null,null,null,null,null,null,null,null,null,null,null,null,"Utah LED","2350 E Arbor Ln","Holladay","UT",84117]
[null,"Retrofit",null,null,null,null,null,"08CGN06137",6,null,null,null,null,null,null,null,13,null,"General Comm. & Ind. Work - Precision",0.96,5500,null,{"$f":"\"[\"&StipulatedWattage_Table[[#This Row],[Lamp Qty]]&\"L - \"&StipulatedWattage_Table[[#This Row],[Actual lamp wattage]]&\"W\"&IF(StipulatedWattage_Table[[#This Row],[Ballast Type]]=\"\",\"\",\" - \"&TRIM(StipulatedWattage_Table[[#This Row],[Ballast Type]]))&\"]\"","v":"[1L - 32W - MG]"},1,32,"MG ",1,30,null,"FLT8","IS H",{"$f":"FixtureWattageFormula_Table[[#This Row],[Fixture]]&\" - \"&FixtureWattageFormula_Table[[#This Row],[Ballast]]","v":"FLT8 - IS H"},1.0900000000000001,-1,0.98989907592252624,null,null,null,null,null,null,null,null,null,null,null,null,38,{"$f":"SegmentExceptTable[[#This Row],[Numbers]]/$BP$4","v":6.3439065108514187E-2},{"$f":"SegmentExceptTable[[#This Row],[kW Boundary]]+(0.05*SegmentExceptTable[[#This Row],[kW Boundary]])","v":6.66110183639399E-2},{"$f":"$BP$6*SegmentExceptTable[[#This Row],[kW Boundary]]+$BP$7","v":7.3502212531308009E-2},{"$f":"$BP$8*SegmentExceptTable[[#This Row],[kW Boundary]]+$BP$9","v":0.14987193820722192},{"$f":"SegmentExceptTable[[#This Row],[Boundary S/M]]+(0.05*SegmentExceptTable[[#This Row],[Boundary S/M]])","v":0.157365535117583},{"$f":"IF(AND(AND(kwpeak_norm>SegmentExceptTable[[#This Row],[kW Boundary]],kwpeak_norm<SegmentExceptTable[[#This Row],[kW Exception]]),AND(kwhmo_norm>SegmentExceptTable[[#This Row],[Boundary S/M]],kwhmo_norm<SegmentExceptTable[[#This Row],[Exception S/M]])),1,0)","v":0},{"$f":"$BP$10*SegmentExceptTable[[#This Row],[kW Boundary]]+$BP$11","v":4.0800978753136596E-3},{"$f":"$BP$12*SegmentExceptTable[[#This Row],[kW Boundary]]+$BP$13","v":0.5406245373202937},{"$f":"SegmentExceptTable[[#This Row],[Boundary M/L]]+(0.05*SegmentExceptTable[[#This Row],[Boundary M/L]])","v":0.56765576418630836},{"$f":"IF(AND(AND(kwpeak_norm>SegmentExceptTable[[#This Row],[kW Boundary]],kwpeak_norm<SegmentExceptTable[[#This Row],[kW Exception]]),AND(kwhmo_norm>SegmentExceptTable[[#This Row],[Boundary M/L]],kwhmo_norm<SegmentExceptTable[[#This Row],[Exception M/L]])),1,0)","v":0},null,null,null,null,null,null,null,null,null,null,null,null,null,null,null,"ARC Electric - Casper, WY","122 N Grant St","Casper","WY",821201,"WY"]
[null,"Major Renovation",null,null,null,null,null,"08CGN08136",8,null,null,null,null,null,null,null,12,null,"General Comm. & Ind. Work Building",0.96,5500,null,{"$f":"\"[\"&StipulatedWattage_Table[[#This Row],[Lamp Qty]]&\"L - \"&StipulatedWattage_Table[[#This Row],[Actual lamp wattage]]&\"W\"&IF(StipulatedWattage_Table[[#This Row],[Ballast Type]]=\"\",\"\",\" - \"&TRIM(StipulatedWattage_Table[[#This Row],[Ballast Type]]))&\"]\"","v":"[1L - 32W - RS/PRS H]"},1,32,"RS/PRS H",1.1000000000000001,33,null,"FLT8","IS L",{"$f":"FixtureWattageFormula_Table[[#This Row],[Fixture]]&\" - \"&FixtureWattageFormula_Table[[#This Row],[Ballast]]","v":"FLT8 - IS L"},0.73,3,0.9939522472972101,null,null,null,null,null,null,null,null,null,null,null,null,39,{"$f":"SegmentExceptTable[[#This Row],[Numbers]]/$BP$4","v":6.5108514190317199E-2},{"$f":"SegmentExceptTable[[#This Row],[kW Boundary]]+(0.05*SegmentExceptTable[[#This Row],[kW Boundary]])","v":6.8363939899833054E-2},{"$f":"$BP$6*SegmentExceptTable[[#This Row],[kW Boundary]]+$BP$7","v":7.5929042826674287E-2},{"$f":"$BP$8*SegmentExceptTable[[#This Row],[kW Boundary]]+$BP$9","v":0.14872350181179103},{"$f":"SegmentExceptTable[[#This Row],[Boundary S/M]]+(0.05*SegmentExceptTable[[#This Row],[Boundary S/M]])","v":0.15615967690238058},{"$f":"IF(AND(AND(kwpeak_norm>SegmentExceptTable[[#This Row],[kW Boundary]],kwpeak_norm<SegmentExceptTable[[#This Row],[kW Exception]]),AND(kwhmo_norm>SegmentExceptTable[[#This Row],[Boundary S/M]],kwhmo_norm<SegmentExceptTable[[#This Row],[Exception S/M]])),1,0)","v":0},{"$f":"$BP$10*SegmentExceptTable[[#This Row],[kW Boundary]]+$BP$11","v":7.607151517552202E-3},{"$f":"$BP$12*SegmentExceptTable[[#This Row],[kW Boundary]]+$BP$13","v":0.53983434229650495},{"$f":"SegmentExceptTable[[#This Row],[Boundary M/L]]+(0.05*SegmentExceptTable[[#This Row],[Boundary M/L]])","v":0.56682605941133024},{"$f":"IF(AND(AND(kwpeak_norm>SegmentExceptTable[[#This Row],[kW Boundary]],kwpeak_norm<SegmentExceptTable[[#This Row],[kW Exception]]),AND(kwhmo_norm>SegmentExceptTable[[#This Row],[Boundary M/L]],kwhmo_norm<SegmentExceptTable[[#This Row],[Exception M/L]])),1,0)","v":0},null,null,null,null,null,null,null,null,null,null,null,null,null,null,null,"BHB Electric","1049 D Rd. 12","Worland","WY",82401,"WY"]
[null,null,"NC doesn't qualify in UT 7/11/25 (CEA NC does)",null,null,null,null,"08CGN10136",10,null,null,null,null,null,null,null,11,null,"General Comm. & Ind. Work Building",0.96,5500,null,{"$f":"\"[\"&StipulatedWattage_Table[[#This Row],[Lamp Qty]]&\"L - \"&StipulatedWattage_Table[[#This Row],[Actual lamp wattage]]&\"W\"&IF(StipulatedWattage_Table[[#This Row],[Ballast Type]]=\"\",\"\",\" - \"&TRIM(StipulatedWattage_Table[[#This Row],[Ballast Type]]))&\"]\"","v":"[1L - 32W - RS/PRS L]"},1,32,"RS/PRS L",0.78,25,null,"FLT8","IS N",{"$f":"FixtureWattageFormula_Table[[#This Row],[Fixture]]&\" - \"&FixtureWattageFormula_Table[[#This Row],[Ballast]]","v":"FLT8 - IS N"},0.86,2,0.99394816583848766,null,null,null,null,null,null,null,null,null,null,null,null,40,{"$f":"SegmentExceptTable[[#This Row],[Numbers]]/$BP$4","v":6.6777963272120197E-2},{"$f":"SegmentExceptTable[[#This Row],[kW Boundary]]+(0.05*SegmentExceptTable[[#This Row],[kW Boundary]])","v":7.0116861435726208E-2},{"$f":"$BP$6*SegmentExceptTable[[#This Row],[kW Boundary]]+$BP$7","v":7.8355873122040565E-2},{"$f":"$BP$8*SegmentExceptTable[[#This Row],[kW Boundary]]+$BP$9","v":0.14757506541636015},{"$f":"SegmentExceptTable[[#This Row],[Boundary S/M]]+(0.05*SegmentExceptTable[[#This Row],[Boundary S/M]])","v":0.15495381868717814},{"$f":"IF(AND(AND(kwpeak_norm>SegmentExceptTable[[#This Row],[kW Boundary]],kwpeak_norm<SegmentExceptTable[[#This Row],[kW Exception]]),AND(kwhmo_norm>SegmentExceptTable[[#This Row],[Boundary S/M]],kwhmo_norm<SegmentExceptTable[[#This Row],[Exception S/M]])),1,0)","v":0},{"$f":"$BP$10*SegmentExceptTable[[#This Row],[kW Boundary]]+$BP$11","v":1.1134205159790717E-2},{"$f":"$BP$12*SegmentExceptTable[[#This Row],[kW Boundary]]+$BP$13","v":0.53904414727271621},{"$f":"SegmentExceptTable[[#This Row],[Boundary M/L]]+(0.05*SegmentExceptTable[[#This Row],[Boundary M/L]])","v":0.56599635463635201},{"$f":"IF(AND(AND(kwpeak_norm>SegmentExceptTable[[#This Row],[kW Boundary]],kwpeak_norm<SegmentExceptTable[[#This Row],[kW Exception]]),AND(kwhmo_norm>SegmentExceptTable[[#This Row],[Boundary M/L]],kwhmo_norm<SegmentExceptTable[[#This Row],[Exception M/L]])),1,0)","v":0},null,null,null,null,null,null,null,null,null,null,null,null,null,null,null,"Codale Electric Supply, Inc.","5225 W 2400 S","Salt Lake City","UT",84120,"WY"]
[null,null,null,null,null,null,null,"08CGN23136",23,null,null,null,null,null,null,null,10,null,"Grocery Sales",0.94,5133,null,{"$f":"\"[\"&StipulatedWattage_Table[[#This Row],[Lamp Qty]]&\"L - \"&StipulatedWattage_Table[[#This Row],[Actual lamp wattage]]&\"W\"&IF(StipulatedWattage_Table[[#This Row],[Ballast Type]]=\"\",\"\",\" - \"&TRIM(StipulatedWattage_Table[[#This Row],[Ballast Type]]))&\"]\"","v":"[1L - 32W - RS/PRS N]"},1,32,"RS/PRS N",0.88,30,null,"FLT8","IS VH",{"$f":"FixtureWattageFormula_Table[[#This Row],[Fixture]]&\" - \"&FixtureWattageFormula_Table[[#This Row],[Ballast]]","v":"FLT8 - IS VH"},1.1399999999999999,6,0.98522847422476967,null,null,null,null,null,null,null,null,null,null,null,null,41,{"$f":"SegmentExceptTable[[#This Row],[Numbers]]/$BP$4","v":6.8447412353923209E-2},{"$f":"SegmentExceptTable[[#This Row],[kW Boundary]]+(0.05*SegmentExceptTable[[#This Row],[kW Boundary]])","v":7.1869782971619375E-2},{"$f":"$BP$6*SegmentExceptTable[[#This Row],[kW Boundary]]+$BP$7","v":8.0782703417406843E-2},{"$f":"$BP$8*SegmentExceptTable[[#This Row],[kW Boundary]]+$BP$9","v":0.14642662902092929},{"$f":"SegmentExceptTable[[#This Row],[Boundary S/M]]+(0.05*SegmentExceptTable[[#This Row],[Boundary S/M]])","v":0.15374796047197575},{"$f":"IF(AND(AND(kwpeak_norm>SegmentExceptTable[[#This Row],[kW Boundary]],kwpeak_norm<SegmentExceptTable[[#This Row],[kW Exception]]),AND(kwhmo_norm>SegmentExceptTable[[#This Row],[Boundary S/M]],kwhmo_norm<SegmentExceptTable[[#This Row],[Exception S/M]])),1,0)","v":0},{"$f":"$BP$10*SegmentExceptTable[[#This Row],[kW Boundary]]+$BP$11","v":1.4661258802029259E-2},{"$f":"$BP$12*SegmentExceptTable[[#This Row],[kW Boundary]]+$BP$13","v":0.53825395224892747},{"$f":"SegmentExceptTable[[#This Row],[Boundary M/L]]+(0.05*SegmentExceptTable[[#This Row],[Boundary M/L]])","v":0.56516664986137388},{"$f":"IF(AND(AND(kwpeak_norm>SegmentExceptTable[[#This Row],[kW Boundary]],kwpeak_norm<SegmentExceptTable[[#This Row],[kW Exception]]),AND(kwhmo_norm>SegmentExceptTable[[#This Row],[Boundary M/L]],kwhmo_norm<SegmentExceptTable[[#This Row],[Exception M/L]])),1,0)","v":0},null,null,null,null,null,null,null,null,null,null,null,null,null,null,null,"DiVi Energy, LLC","PO Box 178","Lehi","UT",84043,"WY"]
[null,"Project Type",null,null,null,null,null,"08CGN23137",23,null,null,null,null,null,null,null,9,null,"Grocery Store",0.94,5133,null,{"$f":"\"[\"&StipulatedWattage_Table[[#This Row],[Lamp Qty]]&\"L - \"&StipulatedWattage_Table[[#This Row],[Actual lamp wattage]]&\"W\"&IF(StipulatedWattage_Table[[#This Row],[Ballast Type]]=\"\",\"\",\" - \"&TRIM(StipulatedWattage_Table[[#This Row],[Ballast Type]]))&\"]\"","v":"[1L - 32W - RS/PRS VH]"},1,32,"RS/PRS VH",1.1499999999999999,38,null,"FLT8","RS/PRS H",{"$f":"FixtureWattageFormula_Table[[#This Row],[Fixture]]&\" - \"&FixtureWattageFormula_Table[[#This Row],[Ballast]]","v":"FLT8 - RS/PRS H"},1.06,0,0.98759441148382709,null,null,null,null,null,null,null,null,null,null,null,null,42,{"$f":"SegmentExceptTable[[#This Row],[Numbers]]/$BP$4","v":7.0116861435726208E-2},{"$f":"SegmentExceptTable[[#This Row],[kW Boundary]]+(0.05*SegmentExceptTable[[#This Row],[kW Boundary]])","v":7.3622704507512515E-2},{"$f":"$BP$6*SegmentExceptTable[[#This Row],[kW Boundary]]+$BP$7","v":8.320953371277312E-2},{"$f":"$BP$8*SegmentExceptTable[[#This Row],[kW Boundary]]+$BP$9","v":0.1452781926254984},{"$f":"SegmentExceptTable[[#This Row],[Boundary S/M]]+(0.05*SegmentExceptTable[[#This Row],[Boundary S/M]])","v":0.15254210225677334},{"$f":"IF(AND(AND(kwpeak_norm>SegmentExceptTable[[#This Row],[kW Boundary]],kwpeak_norm<SegmentExceptTable[[#This Row],[kW Exception]]),AND(kwhmo_norm>SegmentExceptTable[[#This Row],[Boundary S/M]],kwhmo_norm<SegmentExceptTable[[#This Row],[Exception S/M]])),1,0)","v":0},{"$f":"$BP$10*SegmentExceptTable[[#This Row],[kW Boundary]]+$BP$11","v":1.8188312444267773E-2},{"$f":"$BP$12*SegmentExceptTable[[#This Row],[kW Boundary]]+$BP$13","v":0.53746375722513862},{"$f":"SegmentExceptTable[[#This Row],[Boundary M/L]]+(0.05*SegmentExceptTable[[#This Row],[Boundary M/L]])","v":0.56433694508639554},{"$f":"IF(AND(AND(kwpeak_norm>SegmentExceptTable[[#This Row],[kW Boundary]],kwpeak_norm<SegmentExceptTable[[#This Row],[kW Exception]]),AND(kwhmo_norm>SegmentExceptTable[[#This Row],[Boundary M/L]],kwhmo_norm<SegmentExceptTable[[#This Row],[Exception M/L]])),1,0)","v":0},null,null,null,null,null,null,null,null,null,null,null,null,null,null,null,"Electrical Connections","2214 Upland St Suite A","Rock Springs","WY",82901,"WY"]
[null,"Retrofit",null,null,null,null,null,"08CGN6A136","6A",null,null,null,null,null,null,null,8,null,"Gymnasia, Assembly Spaces",0.89,null,null,{"$f":"\"[\"&StipulatedWattage_Table[[#This Row],[Lamp Qty]]&\"L - \"&StipulatedWattage_Table[[#This Row],[Actual lamp wattage]]&\"W\"&IF(StipulatedWattage_Table[[#This Row],[Ballast Type]]=\"\",\"\",\" - \"&TRIM(StipulatedWattage_Table[[#This Row],[Ballast Type]]))&\"]\"","v":"[1L - 34W - IS N]"},1,34,"IS N",0.88,28,null,"FLT8","RS/PRS L",{"$f":"FixtureWattageFormula_Table[[#This Row],[Fixture]]&\" - \"&FixtureWattageFormula_Table[[#This Row],[Ballast]]","v":"FLT8 - RS/PRS L"},0.73,2,0.99124900563232277,null,null,null,null,null,null,null,null,null,null,null,null,43,{"$f":"SegmentExceptTable[[#This Row],[Numbers]]/$BP$4","v":7.178631051752922E-2},{"$f":"SegmentExceptTable[[#This Row],[kW Boundary]]+(0.05*SegmentExceptTable[[#This Row],[kW Boundary]])","v":7.5375626043405683E-2},{"$f":"$BP$6*SegmentExceptTable[[#This Row],[kW Boundary]]+$BP$7","v":8.5636364008139398E-2},{"$f":"$BP$8*SegmentExceptTable[[#This Row],[kW Boundary]]+$BP$9","v":0.14412975623006752},{"$f":"SegmentExceptTable[[#This Row],[Boundary S/M]]+(0.05*SegmentExceptTable[[#This Row],[Boundary S/M]])","v":0.15133624404157089},{"$f":"IF(AND(AND(kwpeak_norm>SegmentExceptTable[[#This Row],[kW Boundary]],kwpeak_norm<SegmentExceptTable[[#This Row],[kW Exception]]),AND(kwhmo_norm>SegmentExceptTable[[#This Row],[Boundary S/M]],kwhmo_norm<SegmentExceptTable[[#This Row],[Exception S/M]])),1,0)","v":0},{"$f":"$BP$10*SegmentExceptTable[[#This Row],[kW Boundary]]+$BP$11","v":2.1715366086506316E-2},{"$f":"$BP$12*SegmentExceptTable[[#This Row],[kW Boundary]]+$BP$13","v":0.53667356220134987},{"$f":"SegmentExceptTable[[#This Row],[Boundary M/L]]+(0.05*SegmentExceptTable[[#This Row],[Boundary M/L]])","v":0.56350724031141741},{"$f":"IF(AND(AND(kwpeak_norm>SegmentExceptTable[[#This Row],[kW Boundary]],kwpeak_norm<SegmentExceptTable[[#This Row],[kW Exception]]),AND(kwhmo_norm>SegmentExceptTable[[#This Row],[Boundary M/L]],kwhmo_norm<SegmentExceptTable[[#This Row],[Exception M/L]])),1,0)","v":0},null,null,null,null,null,null,null,null,null,null,null,null,null,null,null,"Envision Electric, Inc.","551 Durango Ct","Casper","WY",821209,"WY"]
[null,"Major Renovation",null,null,null,null,null,"08EFOP0021",21,null,null,null,null,null,null,null,7,null,"Gymnasium",0.89,null,null,{"$f":"\"[\"&StipulatedWattage_Table[[#This Row],[Lamp Qty]]&\"L - \"&StipulatedWattage_Table[[#This Row],[Actual lamp wattage]]&\"W\"&IF(StipulatedWattage_Table[[#This Row],[Ballast Type]]=\"\",\"\",\" - \"&TRIM(StipulatedWattage_Table[[#This Row],[Ballast Type]]))&\"]\"","v":"[1L - 34W - MG]"},1,34,"MG ",1,30,null,"FLT8","RS/PRS N",{"$f":"FixtureWattageFormula_Table[[#This Row],[Fixture]]&\" - \"&FixtureWattageFormula_Table[[#This Row],[Ballast]]","v":"FLT8 - RS/PRS N"},0.99,-3,0.97010218880526478,null,null,null,null,null,null,null,null,null,null,null,null,44,{"$f":"SegmentExceptTable[[#This Row],[Numbers]]/$BP$4","v":7.3455759599332218E-2},{"$f":"SegmentExceptTable[[#This Row],[kW Boundary]]+(0.05*SegmentExceptTable[[#This Row],[kW Boundary]])","v":7.7128547579298823E-2},{"$f":"$BP$6*SegmentExceptTable[[#This Row],[kW Boundary]]+$BP$7","v":8.8063194303505676E-2},{"$f":"$BP$8*SegmentExceptTable[[#This Row],[kW Boundary]]+$BP$9","v":0.14298131983463663},{"$f":"SegmentExceptTable[[#This Row],[Boundary S/M]]+(0.05*SegmentExceptTable[[#This Row],[Boundary S/M]])","v":0.15013038582636845},{"$f":"IF(AND(AND(kwpeak_norm>SegmentExceptTable[[#This Row],[kW Boundary]],kwpeak_norm<SegmentExceptTable[[#This Row],[kW Exception]]),AND(kwhmo_norm>SegmentExceptTable[[#This Row],[Boundary S/M]],kwhmo_norm<SegmentExceptTable[[#This Row],[Exception S/M]])),1,0)","v":0},{"$f":"$BP$10*SegmentExceptTable[[#This Row],[kW Boundary]]+$BP$11","v":2.524241972874483E-2},{"$f":"$BP$12*SegmentExceptTable[[#This Row],[kW Boundary]]+$BP$13","v":0.53588336717756113},{"$f":"SegmentExceptTable[[#This Row],[Boundary M/L]]+(0.05*SegmentExceptTable[[#This Row],[Boundary M/L]])","v":0.56267753553643918},{"$f":"IF(AND(AND(kwpeak_norm>SegmentExceptTable[[#This Row],[kW Boundary]],kwpeak_norm<SegmentExceptTable[[#This Row],[kW Exception]]),AND(kwhmo_norm>SegmentExceptTable[[#This Row],[Boundary M/L]],kwhmo_norm<SegmentExceptTable[[#This Row],[Exception M/L]])),1,0)","v":0},null,null,null,null,null,null,null,null,null,null,null,null,null,null,null,"Fremont Electric, Inc.","910 S Adams St","Laramie","WY",82070,"WY"]
[null,"New Construction",null,null,null,null,null,"08EFOP021M",21,null,null,null,null,null,null,null,6,null,"Gymnasium Playing Surface",0.89,null,null,{"$f":"\"[\"&StipulatedWattage_Table[[#This Row],[Lamp Qty]]&\"L - \"&StipulatedWattage_Table[[#This Row],[Actual lamp wattage]]&\"W\"&IF(StipulatedWattage_Table[[#This Row],[Ballast Type]]=\"\",\"\",\" - \"&TRIM(StipulatedWattage_Table[[#This Row],[Ballast Type]]))&\"]\"","v":"[1L - 40W - MG]"},1,40,"MG ",1,30,null,"FLT8","RS/PRS VH",{"$f":"FixtureWattageFormula_Table[[#This Row],[Fixture]]&\" - \"&FixtureWattageFormula_Table[[#This Row],[Ballast]]","v":"FLT8 - RS/PRS VH"},1.1399999999999999,7,0.98397042612090102,null,null,null,null,null,null,null,null,null,null,null,null,45,{"$f":"SegmentExceptTable[[#This Row],[Numbers]]/$BP$4","v":7.512520868113523E-2},{"$f":"SegmentExceptTable[[#This Row],[kW Boundary]]+(0.05*SegmentExceptTable[[#This Row],[kW Boundary]])","v":7.8881469115191991E-2},{"$f":"$BP$6*SegmentExceptTable[[#This Row],[kW Boundary]]+$BP$7","v":9.0490024598871982E-2},{"$f":"$BP$8*SegmentExceptTable[[#This Row],[kW Boundary]]+$BP$9","v":0.14183288343920578},{"$f":"SegmentExceptTable[[#This Row],[Boundary S/M]]+(0.05*SegmentExceptTable[[#This Row],[Boundary S/M]])","v":0.14892452761116606},{"$f":"IF(AND(AND(kwpeak_norm>SegmentExceptTable[[#This Row],[kW Boundary]],kwpeak_norm<SegmentExceptTable[[#This Row],[kW Exception]]),AND(kwhmo_norm>SegmentExceptTable[[#This Row],[Boundary S/M]],kwhmo_norm<SegmentExceptTable[[#This Row],[Exception S/M]])),1,0)","v":0},{"$f":"$BP$10*SegmentExceptTable[[#This Row],[kW Boundary]]+$BP$11","v":2.8769473370983373E-2},{"$f":"$BP$12*SegmentExceptTable[[#This Row],[kW Boundary]]+$BP$13","v":0.53509317215377239},{"$f":"SegmentExceptTable[[#This Row],[Boundary M/L]]+(0.05*SegmentExceptTable[[#This Row],[Boundary M/L]])","v":0.56184783076146105},{"$f":"IF(AND(AND(kwpeak_norm>SegmentExceptTable[[#This Row],[kW Boundary]],kwpeak_norm<SegmentExceptTable[[#This Row],[kW Exception]]),AND(kwhmo_norm>SegmentExceptTable[[#This Row],[Boundary M/L]],kwhmo_norm<SegmentExceptTable[[#This Row],[Exception M/L]])),1,0)","v":0},null,null,null,null,null,null,null,null,null,null,null,null,null,null,null,"Infinity Power and Controls, LLC","1701 Decora Dr","Rock Springs","WY",82901,"WY"]
[null,null,null,null,null,null,null,"08GNCEL23F",23,null,null,null,null,null,null,null,5,null,"Health Care – Clinic",0.84,4200,null,{"$f":"\"[\"&StipulatedWattage_Table[[#This Row],[Lamp Qty]]&\"L - \"&StipulatedWattage_Table[[#This Row],[Actual lamp wattage]]&\"W\"&IF(StipulatedWattage_Table[[#This Row],[Ballast Type]]=\"\",\"\",\" - \"&TRIM(StipulatedWattage_Table[[#This Row],[Ballast Type]]))&\"]\"","v":"[1L - 40W - n/a]"},1,40,"n/a","n/a",29,null,"FUT8 - 2 Ft","IS H",{"$f":"FixtureWattageFormula_Table[[#This Row],[Fixture]]&\" - \"&FixtureWattageFormula_Table[[#This Row],[Ballast]]","v":"FUT8 - 2 Ft - IS H"},1.0900000000000001,-1,0.98989907592252624,null,null,null,null,null,null,null,null,null,null,null,null,46,{"$f":"SegmentExceptTable[[#This Row],[Numbers]]/$BP$4","v":7.6794657762938229E-2},{"$f":"SegmentExceptTable[[#This Row],[kW Boundary]]+(0.05*SegmentExceptTable[[#This Row],[kW Boundary]])","v":8.0634390651085144E-2},{"$f":"$BP$6*SegmentExceptTable[[#This Row],[kW Boundary]]+$BP$7","v":9.2916854894238232E-2},{"$f":"$BP$8*SegmentExceptTable[[#This Row],[kW Boundary]]+$BP$9","v":0.14068444704377489},{"$f":"SegmentExceptTable[[#This Row],[Boundary S/M]]+(0.05*SegmentExceptTable[[#This Row],[Boundary S/M]])","v":0.14771866939596365},{"$f":"IF(AND(AND(kwpeak_norm>SegmentExceptTable[[#This Row],[kW Boundary]],kwpeak_norm<SegmentExceptTable[[#This Row],[kW Exception]]),AND(kwhmo_norm>SegmentExceptTable[[#This Row],[Boundary S/M]],kwhmo_norm<SegmentExceptTable[[#This Row],[Exception S/M]])),1,0)","v":0},{"$f":"$BP$10*SegmentExceptTable[[#This Row],[kW Boundary]]+$BP$11","v":3.2296527013221915E-2},{"$f":"$BP$12*SegmentExceptTable[[#This Row],[kW Boundary]]+$BP$13","v":0.53430297712998365},{"$f":"SegmentExceptTable[[#This Row],[Boundary M/L]]+(0.05*SegmentExceptTable[[#This Row],[Boundary M/L]])","v":0.56101812598648282},{"$f":"IF(AND(AND(kwpeak_norm>SegmentExceptTable[[#This Row],[kW Boundary]],kwpeak_norm<SegmentExceptTable[[#This Row],[kW Exception]]),AND(kwhmo_norm>SegmentExceptTable[[#This Row],[Boundary M/L]],kwhmo_norm<SegmentExceptTable[[#This Row],[Exception M/L]])),1,0)","v":0},null,null,null,null,null,null,null,null,null,null,null,null,null,null,null,"Jadeco Inc.","523 Richards St","Thermopolis","WY",82443,"WY"]
[null,"Project Type",null,null,null,null,null,"08GNSV0006",6,null,null,null,null,null,null,null,4,null,"Healthcare: Exam Room",0.84,4200,null,{"$f":"\"[\"&StipulatedWattage_Table[[#This Row],[Lamp Qty]]&\"L - \"&StipulatedWattage_Table[[#This Row],[Actual lamp wattage]]&\"W\"&IF(StipulatedWattage_Table[[#This Row],[Ballast Type]]=\"\",\"\",\" - \"&TRIM(StipulatedWattage_Table[[#This Row],[Ballast Type]]))&\"]\"","v":"[1L - 40W]"},1,40,null,null,29,null,"FUT8 - 2 Ft","IS L",{"$f":"FixtureWattageFormula_Table[[#This Row],[Fixture]]&\" - \"&FixtureWattageFormula_Table[[#This Row],[Ballast]]","v":"FUT8 - 2 Ft - IS L"},0.73,3,0.9939522472972101,null,null,null,null,null,null,null,null,null,null,null,null,47,{"$f":"SegmentExceptTable[[#This Row],[Numbers]]/$BP$4","v":7.8464106844741241E-2},{"$f":"SegmentExceptTable[[#This Row],[kW Boundary]]+(0.05*SegmentExceptTable[[#This Row],[kW Boundary]])","v":8.2387312186978298E-2},{"$f":"$BP$6*SegmentExceptTable[[#This Row],[kW Boundary]]+$BP$7","v":9.5343685189604538E-2},{"$f":"$BP$8*SegmentExceptTable[[#This Row],[kW Boundary]]+$BP$9","v":0.13953601064834403},{"$f":"SegmentExceptTable[[#This Row],[Boundary S/M]]+(0.05*SegmentExceptTable[[#This Row],[Boundary S/M]])","v":0.14651281118076123},{"$f":"IF(AND(AND(kwpeak_norm>SegmentExceptTable[[#This Row],[kW Boundary]],kwpeak_norm<SegmentExceptTable[[#This Row],[kW Exception]]),AND(kwhmo_norm>SegmentExceptTable[[#This Row],[Boundary S/M]],kwhmo_norm<SegmentExceptTable[[#This Row],[Exception S/M]])),1,0)","v":0},{"$f":"$BP$10*SegmentExceptTable[[#This Row],[kW Boundary]]+$BP$11","v":3.5823580655460457E-2},{"$f":"$BP$12*SegmentExceptTable[[#This Row],[kW Boundary]]+$BP$13","v":0.5335127821061949},{"$f":"SegmentExceptTable[[#This Row],[Boundary M/L]]+(0.05*SegmentExceptTable[[#This Row],[Boundary M/L]])","v":0.56018842121150469},{"$f":"IF(AND(AND(kwpeak_norm>SegmentExceptTable[[#This Row],[kW Boundary]],kwpeak_norm<SegmentExceptTable[[#This Row],[kW Exception]]),AND(kwhmo_norm>SegmentExceptTable[[#This Row],[Boundary M/L]],kwhmo_norm<SegmentExceptTable[[#This Row],[Exception M/L]])),1,0)","v":0},null,null,null,null,null,null,null,null,null,null,null,null,null,null,null,"Modern Electric","246 W 1st St","Casper","WY",821201,"WY"]
[null,"Retrofit",null,null,null,null,null,"08GNSV0008",8,null,null,null,null,null,null,null,3,null,"Healthcare: Imaging Room",0.84,4200,null,{"$f":"\"[\"&StipulatedWattage_Table[[#This Row],[Lamp Qty]]&\"L - \"&StipulatedWattage_Table[[#This Row],[Actual lamp wattage]]&\"W\"&IF(StipulatedWattage_Table[[#This Row],[Ballast Type]]=\"\",\"\",\" - \"&TRIM(StipulatedWattage_Table[[#This Row],[Ballast Type]]))&\"]\"","v":"[1L - 54W - RS/PRS H]"},1,54,"RS/PRS H",1.1000000000000001,61,null,"FUT8 - 2 Ft","IS N",{"$f":"FixtureWattageFormula_Table[[#This Row],[Fixture]]&\" - \"&FixtureWattageFormula_Table[[#This Row],[Ballast]]","v":"FUT8 - 2 Ft - IS N"},0.86,2,0.99394816583848766,null,null,null,null,null,null,null,null,null,null,null,null,48,{"$f":"SegmentExceptTable[[#This Row],[Numbers]]/$BP$4","v":8.0133555926544239E-2},{"$f":"SegmentExceptTable[[#This Row],[kW Boundary]]+(0.05*SegmentExceptTable[[#This Row],[kW Boundary]])","v":8.4140233722871452E-2},{"$f":"$BP$6*SegmentExceptTable[[#This Row],[kW Boundary]]+$BP$7","v":9.7770515484970788E-2},{"$f":"$BP$8*SegmentExceptTable[[#This Row],[kW Boundary]]+$BP$9","v":0.13838757425291315},{"$f":"SegmentExceptTable[[#This Row],[Boundary S/M]]+(0.05*SegmentExceptTable[[#This Row],[Boundary S/M]])","v":0.14530695296555882},{"$f":"IF(AND(AND(kwpeak_norm>SegmentExceptTable[[#This Row],[kW Boundary]],kwpeak_norm<SegmentExceptTable[[#This Row],[kW Exception]]),AND(kwhmo_norm>SegmentExceptTable[[#This Row],[Boundary S/M]],kwhmo_norm<SegmentExceptTable[[#This Row],[Exception S/M]])),1,0)","v":0},{"$f":"$BP$10*SegmentExceptTable[[#This Row],[kW Boundary]]+$BP$11","v":3.9350634297698972E-2},{"$f":"$BP$12*SegmentExceptTable[[#This Row],[kW Boundary]]+$BP$13","v":0.53272258708240616},{"$f":"SegmentExceptTable[[#This Row],[Boundary M/L]]+(0.05*SegmentExceptTable[[#This Row],[Boundary M/L]])","v":0.55935871643652646},{"$f":"IF(AND(AND(kwpeak_norm>SegmentExceptTable[[#This Row],[kW Boundary]],kwpeak_norm<SegmentExceptTable[[#This Row],[kW Exception]]),AND(kwhmo_norm>SegmentExceptTable[[#This Row],[Boundary M/L]],kwhmo_norm<SegmentExceptTable[[#This Row],[Exception M/L]])),1,0)","v":0},null,null,null,null,null,null,null,null,null,null,null,null,null,null,null,"Native Energy Solutions","923 N Foster Rd","Casper","WY",821201,"WY"]
[null,"Major Renovation",null,null,null,null,null,"08GNSV0009",9,null,null,null,null,null,null,null,2,null,"Healthcare: Lounge/Breakroom",0.84,4200,null,{"$f":"\"[\"&StipulatedWattage_Table[[#This Row],[Lamp Qty]]&\"L - \"&StipulatedWattage_Table[[#This Row],[Actual lamp wattage]]&\"W\"&IF(StipulatedWattage_Table[[#This Row],[Ballast Type]]=\"\",\"\",\" - \"&TRIM(StipulatedWattage_Table[[#This Row],[Ballast Type]]))&\"]\"","v":"[1L - 59W - IS H]"},1,59,"IS H",1.1000000000000001,63,null,"FUT8 - 2 Ft","IS VH",{"$f":"FixtureWattageFormula_Table[[#This Row],[Fixture]]&\" - \"&FixtureWattageFormula_Table[[#This Row],[Ballast]]","v":"FUT8 - 2 Ft - IS VH"},1.1399999999999999,6,0.98522847422476967,null,null,null,null,null,null,null,null,null,null,null,null,49,{"$f":"SegmentExceptTable[[#This Row],[Numbers]]/$BP$4","v":8.1803005008347252E-2},{"$f":"SegmentExceptTable[[#This Row],[kW Boundary]]+(0.05*SegmentExceptTable[[#This Row],[kW Boundary]])","v":8.589315525876462E-2},{"$f":"$BP$6*SegmentExceptTable[[#This Row],[kW Boundary]]+$BP$7","v":0.10019734578033709},{"$f":"$BP$8*SegmentExceptTable[[#This Row],[kW Boundary]]+$BP$9","v":0.13723913785748226},{"$f":"SegmentExceptTable[[#This Row],[Boundary S/M]]+(0.05*SegmentExceptTable[[#This Row],[Boundary S/M]])","v":0.14410109475035637},{"$f":"IF(AND(AND(kwpeak_norm>SegmentExceptTable[[#This Row],[kW Boundary]],kwpeak_norm<SegmentExceptTable[[#This Row],[kW Exception]]),AND(kwhmo_norm>SegmentExceptTable[[#This Row],[Boundary S/M]],kwhmo_norm<SegmentExceptTable[[#This Row],[Exception S/M]])),1,0)","v":0},{"$f":"$BP$10*SegmentExceptTable[[#This Row],[kW Boundary]]+$BP$11","v":4.2877687939937514E-2},{"$f":"$BP$12*SegmentExceptTable[[#This Row],[kW Boundary]]+$BP$13","v":0.53193239205861742},{"$f":"SegmentExceptTable[[#This Row],[Boundary M/L]]+(0.05*SegmentExceptTable[[#This Row],[Boundary M/L]])","v":0.55852901166154834},{"$f":"IF(AND(AND(kwpeak_norm>SegmentExceptTable[[#This Row],[kW Boundary]],kwpeak_norm<SegmentExceptTable[[#This Row],[kW Exception]]),AND(kwhmo_norm>SegmentExceptTable[[#This Row],[Boundary M/L]],kwhmo_norm<SegmentExceptTable[[#This Row],[Exception M/L]])),1,0)","v":0},null,null,null,null,null,null,null,null,null,null,null,null,null,null,null,"One Touch Electric","19 Hawk Path","Boulder","WY",82923,"WY"]
[null,"New Construction",null,null,null,null,null,"08GNSV0023",23,null,null,null,null,null,null,null,1,null,"Healthcare: Nursery",0.84,4200,null,{"$f":"\"[\"&StipulatedWattage_Table[[#This Row],[Lamp Qty]]&\"L - \"&StipulatedWattage_Table[[#This Row],[Actual lamp wattage]]&\"W\"&IF(StipulatedWattage_Table[[#This Row],[Ballast Type]]=\"\",\"\",\" - \"&TRIM(StipulatedWattage_Table[[#This Row],[Ballast Type]]))&\"]\"","v":"[1L - 59W - IS L]"},1,59,"IS L",0.78,49,null,"FUT8 - 2 Ft","RS/PRS H",{"$f":"FixtureWattageFormula_Table[[#This Row],[Fixture]]&\" - \"&FixtureWattageFormula_Table[[#This Row],[Ballast]]","v":"FUT8 - 2 Ft - RS/PRS H"},1.06,0,0.98759441148382709,null,null,null,null,null,null,null,null,null,null,null,null,50,{"$f":"SegmentExceptTable[[#This Row],[Numbers]]/$BP$4","v":8.347245409015025E-2},{"$f":"SegmentExceptTable[[#This Row],[kW Boundary]]+(0.05*SegmentExceptTable[[#This Row],[kW Boundary]])","v":8.764607679465776E-2},{"$f":"$BP$6*SegmentExceptTable[[#This Row],[kW Boundary]]+$BP$7","v":0.10262417607570334},{"$f":"$BP$8*SegmentExceptTable[[#This Row],[kW Boundary]]+$BP$9","v":0.13609070146205138},{"$f":"SegmentExceptTable[[#This Row],[Boundary S/M]]+(0.05*SegmentExceptTable[[#This Row],[Boundary S/M]])","v":0.14289523653515396},{"$f":"IF(AND(AND(kwpeak_norm>SegmentExceptTable[[#This Row],[kW Boundary]],kwpeak_norm<SegmentExceptTable[[#This Row],[kW Exception]]),AND(kwhmo_norm>SegmentExceptTable[[#This Row],[Boundary S/M]],kwhmo_norm<SegmentExceptTable[[#This Row],[Exception S/M]])),1,0)","v":0},{"$f":"$BP$10*SegmentExceptTable[[#This Row],[kW Boundary]]+$BP$11","v":4.6404741582176029E-2},{"$f":"$BP$12*SegmentExceptTable[[#This Row],[kW Boundary]]+$BP$13","v":0.53114219703482857},{"$f":"SegmentExceptTable[[#This Row],[Boundary M/L]]+(0.05*SegmentExceptTable[[#This Row],[Boundary M/L]])","v":0.55769930688656999},{"$f":"IF(AND(AND(kwpeak_norm>SegmentExceptTable[[#This Row],[kW Boundary]],kwpeak_norm<SegmentExceptTable[[#This Row],[kW Exception]]),AND(kwhmo_norm>SegmentExceptTable[[#This Row],[Boundary M/L]],kwhmo_norm<SegmentExceptTable[[#This Row],[Exception M/L]])),1,0)","v":0},null,null,null,null,null,null,null,null,null,null,null,null,null,null,null,"Perfect Power Electric Inc.","1320 W Main St","Lander","WY",82520,"WY"]
[null,null,null,null,null,null,null,"08GNSV006A","6A",null,null,null,null,null,null,null,0,null,"Healthcare: Nurse Station",0.84,4200,null,{"$f":"\"[\"&StipulatedWattage_Table[[#This Row],[Lamp Qty]]&\"L - \"&StipulatedWattage_Table[[#This Row],[Actual lamp wattage]]&\"W\"&IF(StipulatedWattage_Table[[#This Row],[Ballast Type]]=\"\",\"\",\" - \"&TRIM(StipulatedWattage_Table[[#This Row],[Ballast Type]]))&\"]\"","v":"[1L - 120W - IS N]"},1,120,"IS N",0.88,58,null,"FUT8 - 2 Ft","RS/PRS L",{"$f":"FixtureWattageFormula_Table[[#This Row],[Fixture]]&\" - \"&FixtureWattageFormula_Table[[#This Row],[Ballast]]","v":"FUT8 - 2 Ft - RS/PRS L"},0.73,2,0.99124900563232277,null,null,null,null,null,null,null,null,null,null,null,null,51,{"$f":"SegmentExceptTable[[#This Row],[Numbers]]/$BP$4","v":8.5141903171953262E-2},{"$f":"SegmentExceptTable[[#This Row],[kW Boundary]]+(0.05*SegmentExceptTable[[#This Row],[kW Boundary]])","v":8.9398998330550927E-2},{"$f":"$BP$6*SegmentExceptTable[[#This Row],[kW Boundary]]+$BP$7","v":0.10505100637106965},{"$f":"$BP$8*SegmentExceptTable[[#This Row],[kW Boundary]]+$BP$9","v":0.13494226506662052},{"$f":"SegmentExceptTable[[#This Row],[Boundary S/M]]+(0.05*SegmentExceptTable[[#This Row],[Boundary S/M]])","v":0.14168937831995154},{"$f":"IF(AND(AND(kwpeak_norm>SegmentExceptTable[[#This Row],[kW Boundary]],kwpeak_norm<SegmentExceptTable[[#This Row],[kW Exception]]),AND(kwhmo_norm>SegmentExceptTable[[#This Row],[Boundary S/M]],kwhmo_norm<SegmentExceptTable[[#This Row],[Exception S/M]])),1,0)","v":0},{"$f":"$BP$10*SegmentExceptTable[[#This Row],[kW Boundary]]+$BP$11","v":4.9931795224414571E-2},{"$f":"$BP$12*SegmentExceptTable[[#This Row],[kW Boundary]]+$BP$13","v":0.53035200201103982},{"$f":"SegmentExceptTable[[#This Row],[Boundary M/L]]+(0.05*SegmentExceptTable[[#This Row],[Boundary M/L]])","v":0.55686960211159187},{"$f":"IF(AND(AND(kwpeak_norm>SegmentExceptTable[[#This Row],[kW Boundary]],kwpeak_norm<SegmentExceptTable[[#This Row],[kW Exception]]),AND(kwhmo_norm>SegmentExceptTable[[#This Row],[Boundary M/L]],kwhmo_norm<SegmentExceptTable[[#This Row],[Exception M/L]])),1,0)","v":0},null,null,null,null,null,null,null,null,null,null,null,null,null,null,null,"Rocky Mountain Electric","PO Box 50067","Casper","WY",821205,"WY"]
[null,null,null,null,null,null,null,"08GNSV006B","6B",null,null,null,null,null,null,null,null,null,"Healthcare: Operating Room",0.84,4200,null,{"$f":"\"[\"&StipulatedWattage_Table[[#This Row],[Lamp Qty]]&\"L - \"&StipulatedWattage_Table[[#This Row],[Actual lamp wattage]]&\"W\"&IF(StipulatedWattage_Table[[#This Row],[Ballast Type]]=\"\",\"\",\" - \"&TRIM(StipulatedWattage_Table[[#This Row],[Ballast Type]]))&\"]\"","v":"[1L - 120W - MG]"},1,120,"MG ",1,73,null,"FUT8 - 2 Ft","RS/PRS N",{"$f":"FixtureWattageFormula_Table[[#This Row],[Fixture]]&\" - \"&FixtureWattageFormula_Table[[#This Row],[Ballast]]","v":"FUT8 - 2 Ft - RS/PRS N"},0.99,-3,0.97010218880526478,null,null,null,null,null,null,null,null,null,null,null,null,52,{"$f":"SegmentExceptTable[[#This Row],[Numbers]]/$BP$4","v":8.681135225375626E-2},{"$f":"SegmentExceptTable[[#This Row],[kW Boundary]]+(0.05*SegmentExceptTable[[#This Row],[kW Boundary]])","v":9.1151919866444067E-2},{"$f":"$BP$6*SegmentExceptTable[[#This Row],[kW Boundary]]+$BP$7","v":0.1074778366664359},{"$f":"$BP$8*SegmentExceptTable[[#This Row],[kW Boundary]]+$BP$9","v":0.13379382867118964},{"$f":"SegmentExceptTable[[#This Row],[Boundary S/M]]+(0.05*SegmentExceptTable[[#This Row],[Boundary S/M]])","v":0.14048352010474913},{"$f":"IF(AND(AND(kwpeak_norm>SegmentExceptTable[[#This Row],[kW Boundary]],kwpeak_norm<SegmentExceptTable[[#This Row],[kW Exception]]),AND(kwhmo_norm>SegmentExceptTable[[#This Row],[Boundary S/M]],kwhmo_norm<SegmentExceptTable[[#This Row],[Exception S/M]])),1,0)","v":0},{"$f":"$BP$10*SegmentExceptTable[[#This Row],[kW Boundary]]+$BP$11","v":5.3458848866653086E-2},{"$f":"$BP$12*SegmentExceptTable[[#This Row],[kW Boundary]]+$BP$13","v":0.52956180698725108},{"$f":"SegmentExceptTable[[#This Row],[Boundary M/L]]+(0.05*SegmentExceptTable[[#This Row],[Boundary M/L]])","v":0.55603989733661363},{"$f":"IF(AND(AND(kwpeak_norm>SegmentExceptTable[[#This Row],[kW Boundary]],kwpeak_norm<SegmentExceptTable[[#This Row],[kW Exception]]),AND(kwhmo_norm>SegmentExceptTable[[#This Row],[Boundary M/L]],kwhmo_norm<SegmentExceptTable[[#This Row],[Exception M/L]])),1,0)","v":0},null,null,null,null,null,null,null,null,null,null,null,null,null,null,null,"ROI Energy","978 E 2000 Rd","Eudora","KS",612025,"WY"]
[null,"State","Rate Effective",null,"ProjectStages",null,null,"08GNSV006M",6,null,null,null,null,null,null,null,"HolidaysPerYear",null,"Healthcare: Patient Room",0.84,4200,null,{"$f":"\"[\"&StipulatedWattage_Table[[#This Row],[Lamp Qty]]&\"L - \"&StipulatedWattage_Table[[#This Row],[Actual lamp wattage]]&\"W\"&IF(StipulatedWattage_Table[[#This Row],[Ballast Type]]=\"\",\"\",\" - \"&TRIM(StipulatedWattage_Table[[#This Row],[Ballast Type]]))&\"]\"","v":"[1L - 120W - n/a]"},1,120,"n/a","n/a",43,null,"FUT8 - 2 Ft","RS/PRS VH",{"$f":"FixtureWattageFormula_Table[[#This Row],[Fixture]]&\" - \"&FixtureWattageFormula_Table[[#This Row],[Ballast]]","v":"FUT8 - 2 Ft - RS/PRS VH"},1.1399999999999999,7,0.98397042612090102,null,null,null,null,null,null,null,null,null,null,null,null,53,{"$f":"SegmentExceptTable[[#This Row],[Numbers]]/$BP$4","v":8.8480801335559259E-2},{"$f":"SegmentExceptTable[[#This Row],[kW Boundary]]+(0.05*SegmentExceptTable[[#This Row],[kW Boundary]])","v":9.2904841402337221E-2},{"$f":"$BP$6*SegmentExceptTable[[#This Row],[kW Boundary]]+$BP$7","v":0.10990466696180218},{"$f":"$BP$8*SegmentExceptTable[[#This Row],[kW Boundary]]+$BP$9","v":0.13264539227575878},{"$f":"SegmentExceptTable[[#This Row],[Boundary S/M]]+(0.05*SegmentExceptTable[[#This Row],[Boundary S/M]])","v":0.13927766188954671},{"$f":"IF(AND(AND(kwpeak_norm>SegmentExceptTable[[#This Row],[kW Boundary]],kwpeak_norm<SegmentExceptTable[[#This Row],[kW Exception]]),AND(kwhmo_norm>SegmentExceptTable[[#This Row],[Boundary S/M]],kwhmo_norm<SegmentExceptTable[[#This Row],[Exception S/M]])),1,0)","v":0},{"$f":"$BP$10*SegmentExceptTable[[#This Row],[kW Boundary]]+$BP$11","v":5.69859025088916E-2},{"$f":"$BP$12*SegmentExceptTable[[#This Row],[kW Boundary]]+$BP$13","v":0.52877161196346234},{"$f":"SegmentExceptTable[[#This Row],[Boundary M/L]]+(0.05*SegmentExceptTable[[#This Row],[Boundary M/L]])","v":0.55521019256163551},{"$f":"IF(AND(AND(kwpeak_norm>SegmentExceptTable[[#This Row],[kW Boundary]],kwpeak_norm<SegmentExceptTable[[#This Row],[kW Exception]]),AND(kwhmo_norm>SegmentExceptTable[[#This Row],[Boundary M/L]],kwhmo_norm<SegmentExceptTable[[#This Row],[Exception M/L]])),1,0)","v":0},null,null,null,null,null,null,null,null,null,null,null,null,null,null,null,"Summit Electric LLC","490 N Foster Rd","Casper","WY",821201,"WY"]
[null,"ID","2026-02-12",null,"Preliminary (Pre-Install)",null,null,"08GNSV008M",8,null,null,null,null,null,null,null,10,null,"Healthcare: Physical Therapy",0.84,4200,null,{"$f":"\"[\"&StipulatedWattage_Table[[#This Row],[Lamp Qty]]&\"L - \"&StipulatedWattage_Table[[#This Row],[Actual lamp wattage]]&\"W\"&IF(StipulatedWattage_Table[[#This Row],[Ballast Type]]=\"\",\"\",\" - \"&TRIM(StipulatedWattage_Table[[#This Row],[Ballast Type]]))&\"]\"","v":"[1L - 120W]"},1,120,null,null,43,null,"High Pressure Sodium","CWA",{"$f":"FixtureWattageFormula_Table[[#This Row],[Fixture]]&\" - \"&FixtureWattageFormula_Table[[#This Row],[Ballast]]","v":"High Pressure Sodium - CWA"},1.08,27,0.99980821906483797,null,null,null,null,null,null,null,null,null,null,null,null,54,{"$f":"SegmentExceptTable[[#This Row],[Numbers]]/$BP$4","v":9.0150250417362271E-2},{"$f":"SegmentExceptTable[[#This Row],[kW Boundary]]+(0.05*SegmentExceptTable[[#This Row],[kW Boundary]])","v":9.4657762938230389E-2},{"$f":"$BP$6*SegmentExceptTable[[#This Row],[kW Boundary]]+$BP$7","v":0.11233149725716846},{"$f":"$BP$8*SegmentExceptTable[[#This Row],[kW Boundary]]+$BP$9","v":0.13149695588032789},{"$f":"SegmentExceptTable[[#This Row],[Boundary S/M]]+(0.05*SegmentExceptTable[[#This Row],[Boundary S/M]])","v":0.1380718036743443},{"$f":"IF(AND(AND(kwpeak_norm>SegmentExceptTable[[#This Row],[kW Boundary]],kwpeak_norm<SegmentExceptTable[[#This Row],[kW Exception]]),AND(kwhmo_norm>SegmentExceptTable[[#This Row],[Boundary S/M]],kwhmo_norm<SegmentExceptTable[[#This Row],[Exception S/M]])),1,0)","v":0},{"$f":"$BP$10*SegmentExceptTable[[#This Row],[kW Boundary]]+$BP$11","v":6.0512956151130143E-2},{"$f":"$BP$12*SegmentExceptTable[[#This Row],[kW Boundary]]+$BP$13","v":0.5279814169396736},{"$f":"SegmentExceptTable[[#This Row],[Boundary M/L]]+(0.05*SegmentExceptTable[[#This Row],[Boundary M/L]])","v":0.55438048778665727},{"$f":"IF(AND(AND(kwpeak_norm>SegmentExceptTable[[#This Row],[kW Boundary]],kwpeak_norm<SegmentExceptTable[[#This Row],[kW Exception]]),AND(kwhmo_norm>SegmentExceptTable[[#This Row],[Boundary M/L]],kwhmo_norm<SegmentExceptTable[[#This Row],[Exception M/L]])),1,0)","v":0},null,null,null,null,null,null,null,null,null,null,null,null,null,null,null,"Virile Electric Inc.","410 Lawson Ave, Worland","Worland","WY",82401,"WY"]
[null,"UT","2026-02-12",null,"Inspected (Pre-Install)",null,null,"08GNSV009A","9A",null,null,null,null,null,null,null,9,null,"Healthcare: Recovery Room",0.84,4200,null,{"$f":"\"[\"&StipulatedWattage_Table[[#This Row],[Lamp Qty]]&\"L - \"&StipulatedWattage_Table[[#This Row],[Actual lamp wattage]]&\"W\"&IF(StipulatedWattage_Table[[#This Row],[Ballast Type]]=\"\",\"\",\" - \"&TRIM(StipulatedWattage_Table[[#This Row],[Ballast Type]]))&\"]\"","v":"[1L - 75W - MG]"},1,75,"MG ",1,89,null,"Mercury Vapor","CWA",{"$f":"FixtureWattageFormula_Table[[#This Row],[Fixture]]&\" - \"&FixtureWattageFormula_Table[[#This Row],[Ballast]]","v":"Mercury Vapor - CWA"},1.05,38,"Barry + Catalog",null,null,null,null,null,null,null,null,null,null,null,null,55,{"$f":"SegmentExceptTable[[#This Row],[Numbers]]/$BP$4","v":9.1819699499165269E-2},{"$f":"SegmentExceptTable[[#This Row],[kW Boundary]]+(0.05*SegmentExceptTable[[#This Row],[kW Boundary]])","v":9.6410684474123529E-2},{"$f":"$BP$6*SegmentExceptTable[[#This Row],[kW Boundary]]+$BP$7","v":0.11475832755253473},{"$f":"$BP$8*SegmentExceptTable[[#This Row],[kW Boundary]]+$BP$9","v":0.13034851948489701},{"$f":"SegmentExceptTable[[#This Row],[Boundary S/M]]+(0.05*SegmentExceptTable[[#This Row],[Boundary S/M]])","v":0.13686594545914185},{"$f":"IF(AND(AND(kwpeak_norm>SegmentExceptTable[[#This Row],[kW Boundary]],kwpeak_norm<SegmentExceptTable[[#This Row],[kW Exception]]),AND(kwhmo_norm>SegmentExceptTable[[#This Row],[Boundary S/M]],kwhmo_norm<SegmentExceptTable[[#This Row],[Exception S/M]])),1,0)","v":0},{"$f":"$BP$10*SegmentExceptTable[[#This Row],[kW Boundary]]+$BP$11","v":6.4040009793368657E-2},{"$f":"$BP$12*SegmentExceptTable[[#This Row],[kW Boundary]]+$BP$13","v":0.52719122191588486},{"$f":"SegmentExceptTable[[#This Row],[Boundary M/L]]+(0.05*SegmentExceptTable[[#This Row],[Boundary M/L]])","v":0.55355078301167915},{"$f":"IF(AND(AND(kwpeak_norm>SegmentExceptTable[[#This Row],[kW Boundary]],kwpeak_norm<SegmentExceptTable[[#This Row],[kW Exception]]),AND(kwhmo_norm>SegmentExceptTable[[#This Row],[Boundary M/L]],kwhmo_norm<SegmentExceptTable[[#This Row],[Exception M/L]])),1,0)","v":0},null,null,null,null,null,null,null,null,null,null,null,null,null,null,null,"Wyatt Electric","2320 Jade Ave","Casper","WY",821201,"WY"]
[null,"WY","2026-02-12",null,"Incentive Offer (Pre-Install)",null,null,"08GNSV009M",9,null,null,null,null,null,null,null,8,null,"Healthcare: Supply Room",0.84,4200,null,{"$f":"\"[\"&StipulatedWattage_Table[[#This Row],[Lamp Qty]]&\"L - \"&StipulatedWattage_Table[[#This Row],[Actual lamp wattage]]&\"W\"&IF(StipulatedWattage_Table[[#This Row],[Ballast Type]]=\"\",\"\",\" - \"&TRIM(StipulatedWattage_Table[[#This Row],[Ballast Type]]))&\"]\"","v":"[1L - 75W - n/a]"},1,75,"n/a","n/a",53,null,"Mercury Vapor","CWA",{"$f":"FixtureWattageFormula_Table[[#This Row],[Fixture]]&\" - \"&FixtureWattageFormula_Table[[#This Row],[Ballast]]","v":"Mercury Vapor - CWA"},1.05,38,"Barry + Catalog",null,null,null,null,null,null,null,null,null,null,null,null,56,{"$f":"SegmentExceptTable[[#This Row],[Numbers]]/$BP$4","v":9.3489148580968282E-2},{"$f":"SegmentExceptTable[[#This Row],[kW Boundary]]+(0.05*SegmentExceptTable[[#This Row],[kW Boundary]])","v":9.8163606010016696E-2},{"$f":"$BP$6*SegmentExceptTable[[#This Row],[kW Boundary]]+$BP$7","v":0.11718515784790101},{"$f":"$BP$8*SegmentExceptTable[[#This Row],[kW Boundary]]+$BP$9","v":0.12920008308946612},{"$f":"SegmentExceptTable[[#This Row],[Boundary S/M]]+(0.05*SegmentExceptTable[[#This Row],[Boundary S/M]])","v":0.13566008724393944},{"$f":"IF(AND(AND(kwpeak_norm>SegmentExceptTable[[#This Row],[kW Boundary]],kwpeak_norm<SegmentExceptTable[[#This Row],[kW Exception]]),AND(kwhmo_norm>SegmentExceptTable[[#This Row],[Boundary S/M]],kwhmo_norm<SegmentExceptTable[[#This Row],[Exception S/M]])),1,0)","v":0},{"$f":"$BP$10*SegmentExceptTable[[#This Row],[kW Boundary]]+$BP$11","v":6.75670634356072E-2},{"$f":"$BP$12*SegmentExceptTable[[#This Row],[kW Boundary]]+$BP$13","v":0.52640102689209611},{"$f":"SegmentExceptTable[[#This Row],[Boundary M/L]]+(0.05*SegmentExceptTable[[#This Row],[Boundary M/L]])","v":0.55272107823670091},{"$f":"IF(AND(AND(kwpeak_norm>SegmentExceptTable[[#This Row],[kW Boundary]],kwpeak_norm<SegmentExceptTable[[#This Row],[kW Exception]]),AND(kwhmo_norm>SegmentExceptTable[[#This Row],[Boundary M/L]],kwhmo_norm<SegmentExceptTable[[#This Row],[Exception M/L]])),1,0)","v":0}]
[null,null,null,null,"Installed (Post-Install)",null,null,"08GNSV023F",23,null,null,null,null,null,null,null,7,null,"Hospital",0.84,4200,null,{"$f":"\"[\"&StipulatedWattage_Table[[#This Row],[Lamp Qty]]&\"L - \"&StipulatedWattage_Table[[#This Row],[Actual lamp wattage]]&\"W\"&IF(StipulatedWattage_Table[[#This Row],[Ballast Type]]=\"\",\"\",\" - \"&TRIM(StipulatedWattage_Table[[#This Row],[Ballast Type]]))&\"]\"","v":"[1L - 75W]"},1,75,null,null,53,null,"Metal Halide","CWA",{"$f":"FixtureWattageFormula_Table[[#This Row],[Fixture]]&\" - \"&FixtureWattageFormula_Table[[#This Row],[Ballast]]","v":"Metal Halide - CWA"},1.05,31,0.9999306793640409,null,null,null,null,null,null,null,null,null,null,null,null,57,{"$f":"SegmentExceptTable[[#This Row],[Numbers]]/$BP$4","v":9.515859766277128E-2},{"$f":"SegmentExceptTable[[#This Row],[kW Boundary]]+(0.05*SegmentExceptTable[[#This Row],[kW Boundary]])","v":9.991652754590985E-2},{"$f":"$BP$6*SegmentExceptTable[[#This Row],[kW Boundary]]+$BP$7","v":0.11961198814326729},{"$f":"$BP$8*SegmentExceptTable[[#This Row],[kW Boundary]]+$BP$9","v":0.12805164669403526},{"$f":"SegmentExceptTable[[#This Row],[Boundary S/M]]+(0.05*SegmentExceptTable[[#This Row],[Boundary S/M]])","v":0.13445422902873702},{"$f":"IF(AND(AND(kwpeak_norm>SegmentExceptTable[[#This Row],[kW Boundary]],kwpeak_norm<SegmentExceptTable[[#This Row],[kW Exception]]),AND(kwhmo_norm>SegmentExceptTable[[#This Row],[Boundary S/M]],kwhmo_norm<SegmentExceptTable[[#This Row],[Exception S/M]])),1,0)","v":0},{"$f":"$BP$10*SegmentExceptTable[[#This Row],[kW Boundary]]+$BP$11","v":7.1094117077845714E-2},{"$f":"$BP$12*SegmentExceptTable[[#This Row],[kW Boundary]]+$BP$13","v":0.52561083186830726},{"$f":"SegmentExceptTable[[#This Row],[Boundary M/L]]+(0.05*SegmentExceptTable[[#This Row],[Boundary M/L]])","v":0.55189137346172257},{"$f":"IF(AND(AND(kwpeak_norm>SegmentExceptTable[[#This Row],[kW Boundary]],kwpeak_norm<SegmentExceptTable[[#This Row],[kW Exception]]),AND(kwhmo_norm>SegmentExceptTable[[#This Row],[Boundary M/L]],kwhmo_norm<SegmentExceptTable[[#This Row],[Exception M/L]])),1,0)","v":0}]
[null,null,null,null,"Final (Post-Install)",null,null,"08GNSV023M",23,null,null,null,null,null,null,null,6,null,"Hospital, Nursing Homes, and Group I-1 & I-2",0.84,4200,null,{"$f":"\"[\"&StipulatedWattage_Table[[#This Row],[Lamp Qty]]&\"L - \"&StipulatedWattage_Table[[#This Row],[Actual lamp wattage]]&\"W\"&IF(StipulatedWattage_Table[[#This Row],[Ballast Type]]=\"\",\"\",\" - \"&TRIM(StipulatedWattage_Table[[#This Row],[Ballast Type]]))&\"]\"","v":"[1L - 85W - MG]"},1,85,"MG ",null,101,null,"Metal Halide","Electronic",{"$f":"FixtureWattageFormula_Table[[#This Row],[Fixture]]&\" - \"&FixtureWattageFormula_Table[[#This Row],[Ballast]]","v":"Metal Halide - Electronic"},1.08,3,0.99993077056649105,null,null,null,null,null,null,null,null,null,null,null,null,58,{"$f":"SegmentExceptTable[[#This Row],[Numbers]]/$BP$4","v":9.6828046744574292E-2},{"$f":"SegmentExceptTable[[#This Row],[kW Boundary]]+(0.05*SegmentExceptTable[[#This Row],[kW Boundary]])","v":0.101669449081803},{"$f":"$BP$6*SegmentExceptTable[[#This Row],[kW Boundary]]+$BP$7","v":0.12203881843863357},{"$f":"$BP$8*SegmentExceptTable[[#This Row],[kW Boundary]]+$BP$9","v":0.12690321029860438},{"$f":"SegmentExceptTable[[#This Row],[Boundary S/M]]+(0.05*SegmentExceptTable[[#This Row],[Boundary S/M]])","v":0.13324837081353461},{"$f":"IF(AND(AND(kwpeak_norm>SegmentExceptTable[[#This Row],[kW Boundary]],kwpeak_norm<SegmentExceptTable[[#This Row],[kW Exception]]),AND(kwhmo_norm>SegmentExceptTable[[#This Row],[Boundary S/M]],kwhmo_norm<SegmentExceptTable[[#This Row],[Exception S/M]])),1,0)","v":0},{"$f":"$BP$10*SegmentExceptTable[[#This Row],[kW Boundary]]+$BP$11","v":7.4621170720084257E-2},{"$f":"$BP$12*SegmentExceptTable[[#This Row],[kW Boundary]]+$BP$13","v":0.52482063684451852},{"$f":"SegmentExceptTable[[#This Row],[Boundary M/L]]+(0.05*SegmentExceptTable[[#This Row],[Boundary M/L]])","v":0.55106166868674444},{"$f":"IF(AND(AND(kwpeak_norm>SegmentExceptTable[[#This Row],[kW Boundary]],kwpeak_norm<SegmentExceptTable[[#This Row],[kW Exception]]),AND(kwhmo_norm>SegmentExceptTable[[#This Row],[Boundary M/L]],kwhmo_norm<SegmentExceptTable[[#This Row],[Exception M/L]])),1,0)","v":0}]
[null,null,null,null,null,null,null,"08GNSV06AM","6A",null,null,null,null,null,null,null,5,null,"Hotel",0.51,3500,null,{"$f":"\"[\"&StipulatedWattage_Table[[#This Row],[Lamp Qty]]&\"L - \"&StipulatedWattage_Table[[#This Row],[Actual lamp wattage]]&\"W\"&IF(StipulatedWattage_Table[[#This Row],[Ballast Type]]=\"\",\"\",\" - \"&TRIM(StipulatedWattage_Table[[#This Row],[Ballast Type]]))&\"]\"","v":"[1L - 95W - MG]"},1,95,"MG ",1,80,null,"Metal Halide - Ceramic","CWA",{"$f":"FixtureWattageFormula_Table[[#This Row],[Fixture]]&\" - \"&FixtureWattageFormula_Table[[#This Row],[Ballast]]","v":"Metal Halide - Ceramic - CWA"},1.05,25,"Barry + Catalog",null,null,null,null,null,null,null,null,null,null,null,null,59,{"$f":"SegmentExceptTable[[#This Row],[Numbers]]/$BP$4","v":9.849749582637729E-2},{"$f":"SegmentExceptTable[[#This Row],[kW Boundary]]+(0.05*SegmentExceptTable[[#This Row],[kW Boundary]])","v":0.10342237061769616},{"$f":"$BP$6*SegmentExceptTable[[#This Row],[kW Boundary]]+$BP$7","v":0.12446564873399985},{"$f":"$BP$8*SegmentExceptTable[[#This Row],[kW Boundary]]+$BP$9","v":0.12575477390317352},{"$f":"SegmentExceptTable[[#This Row],[Boundary S/M]]+(0.05*SegmentExceptTable[[#This Row],[Boundary S/M]])","v":0.13204251259833219},{"$f":"IF(AND(AND(kwpeak_norm>SegmentExceptTable[[#This Row],[kW Boundary]],kwpeak_norm<SegmentExceptTable[[#This Row],[kW Exception]]),AND(kwhmo_norm>SegmentExceptTable[[#This Row],[Boundary S/M]],kwhmo_norm<SegmentExceptTable[[#This Row],[Exception S/M]])),1,0)","v":0},{"$f":"$BP$10*SegmentExceptTable[[#This Row],[kW Boundary]]+$BP$11","v":7.8148224362322771E-2},{"$f":"$BP$12*SegmentExceptTable[[#This Row],[kW Boundary]]+$BP$13","v":0.52403044182072978},{"$f":"SegmentExceptTable[[#This Row],[Boundary M/L]]+(0.05*SegmentExceptTable[[#This Row],[Boundary M/L]])","v":0.55023196391176632},{"$f":"IF(AND(AND(kwpeak_norm>SegmentExceptTable[[#This Row],[kW Boundary]],kwpeak_norm<SegmentExceptTable[[#This Row],[kW Exception]]),AND(kwhmo_norm>SegmentExceptTable[[#This Row],[Boundary M/L]],kwhmo_norm<SegmentExceptTable[[#This Row],[Exception M/L]])),1,0)","v":0}]
[null,null,null,null,null,null,null,"08GNSV06MN",6,null,null,null,null,null,null,null,4,null,"Hotel Banquet/Conference/Exhibition Hall",0.89,3500,null,{"$f":"\"[\"&StipulatedWattage_Table[[#This Row],[Lamp Qty]]&\"L - \"&StipulatedWattage_Table[[#This Row],[Actual lamp wattage]]&\"W\"&IF(StipulatedWattage_Table[[#This Row],[Ballast Type]]=\"\",\"\",\" - \"&TRIM(StipulatedWattage_Table[[#This Row],[Ballast Type]]))&\"]\"","v":"[2L - 100W]"},2,100,null,null,144,null,"Metal Halide - Ceramic","Electronic",{"$f":"FixtureWattageFormula_Table[[#This Row],[Fixture]]&\" - \"&FixtureWattageFormula_Table[[#This Row],[Ballast]]","v":"Metal Halide - Ceramic - Electronic"},1.05,2,"Barry + Catalog",null,null,null,null,null,null,null,null,null,null,null,null,120,{"$f":"SegmentExceptTable[[#This Row],[Numbers]]/$BP$4","v":0.20033388981636061},{"$f":"SegmentExceptTable[[#This Row],[kW Boundary]]+(0.05*SegmentExceptTable[[#This Row],[kW Boundary]])","v":0.21035058430717862},{"$f":"$BP$6*SegmentExceptTable[[#This Row],[kW Boundary]]+$BP$7","v":0.2725022967513428},{"$f":"$BP$8*SegmentExceptTable[[#This Row],[kW Boundary]]+$BP$9","v":5.5700153781890083E-2},{"$f":"SegmentExceptTable[[#This Row],[Boundary S/M]]+(0.05*SegmentExceptTable[[#This Row],[Boundary S/M]])","v":5.8485161470984585E-2},{"$f":"IF(AND(AND(kwpeak_norm>SegmentExceptTable[[#This Row],[kW Boundary]],kwpeak_norm<SegmentExceptTable[[#This Row],[kW Exception]]),AND(kwhmo_norm>SegmentExceptTable[[#This Row],[Boundary S/M]],kwhmo_norm<SegmentExceptTable[[#This Row],[Exception S/M]])),1,0)","v":0},{"$f":"$BP$10*SegmentExceptTable[[#This Row],[kW Boundary]]+$BP$11","v":0.29329849653887308},{"$f":"$BP$12*SegmentExceptTable[[#This Row],[kW Boundary]]+$BP$13","v":0.47582854536961561},{"$f":"SegmentExceptTable[[#This Row],[Boundary M/L]]+(0.05*SegmentExceptTable[[#This Row],[Boundary M/L]])","v":0.49961997263809638},{"$f":"IF(AND(AND(kwpeak_norm>SegmentExceptTable[[#This Row],[kW Boundary]],kwpeak_norm<SegmentExceptTable[[#This Row],[kW Exception]]),AND(kwhmo_norm>SegmentExceptTable[[#This Row],[Boundary M/L]],kwhmo_norm<SegmentExceptTable[[#This Row],[Exception M/L]])),1,0)","v":0}]
[null,"SpaceCalcMethods",null,"Business Types",null,"States",null,"08GNSV09AM","9A",null,null,null,null,null,null,null,3,null,"Hotel Function Area",0.89,3500,null,{"$f":"\"[\"&StipulatedWattage_Table[[#This Row],[Lamp Qty]]&\"L - \"&StipulatedWattage_Table[[#This Row],[Actual lamp wattage]]&\"W\"&IF(StipulatedWattage_Table[[#This Row],[Ballast Type]]=\"\",\"\",\" - \"&TRIM(StipulatedWattage_Table[[#This Row],[Ballast Type]]))&\"]\"","v":"[2L - 110W - MG]"},2,110,"MG ",1,192,null,"Metal Halide - Pulse Start","CWA",{"$f":"FixtureWattageFormula_Table[[#This Row],[Fixture]]&\" - \"&FixtureWattageFormula_Table[[#This Row],[Ballast]]","v":"Metal Halide - Pulse Start - CWA"},1.05,25,0.99965077545330228,null,null,null,null,null,null,null,null,null,null,null,null,61,{"$f":"SegmentExceptTable[[#This Row],[Numbers]]/$BP$4","v":0.1018363939899833},{"$f":"SegmentExceptTable[[#This Row],[kW Boundary]]+(0.05*SegmentExceptTable[[#This Row],[kW Boundary]])","v":0.10692821368948247},{"$f":"$BP$6*SegmentExceptTable[[#This Row],[kW Boundary]]+$BP$7","v":0.1293193093247324},{"$f":"$BP$8*SegmentExceptTable[[#This Row],[kW Boundary]]+$BP$9","v":0.12345790111231177},{"$f":"SegmentExceptTable[[#This Row],[Boundary S/M]]+(0.05*SegmentExceptTable[[#This Row],[Boundary S/M]])","v":0.12963079616792736},{"$f":"IF(AND(AND(kwpeak_norm>SegmentExceptTable[[#This Row],[kW Boundary]],kwpeak_norm<SegmentExceptTable[[#This Row],[kW Exception]]),AND(kwhmo_norm>SegmentExceptTable[[#This Row],[Boundary S/M]],kwhmo_norm<SegmentExceptTable[[#This Row],[Exception S/M]])),1,0)","v":0},{"$f":"$BP$10*SegmentExceptTable[[#This Row],[kW Boundary]]+$BP$11","v":8.5202331646799828E-2},{"$f":"$BP$12*SegmentExceptTable[[#This Row],[kW Boundary]]+$BP$13","v":0.52245005177315229},{"$f":"SegmentExceptTable[[#This Row],[Boundary M/L]]+(0.05*SegmentExceptTable[[#This Row],[Boundary M/L]])","v":0.54857255436180985},{"$f":"IF(AND(AND(kwpeak_norm>SegmentExceptTable[[#This Row],[kW Boundary]],kwpeak_norm<SegmentExceptTable[[#This Row],[kW Exception]]),AND(kwhmo_norm>SegmentExceptTable[[#This Row],[Boundary M/L]],kwhmo_norm<SegmentExceptTable[[#This Row],[Exception M/L]])),1,0)","v":0}]
[null,"Multiple Spaces",null,"Agriculture - Dairy",null,"AK",null,"08GNSVPF06",6,null,null,null,null,null,null,null,2,null,"Hotel/Motel",0.51,3500,null,{"$f":"\"[\"&StipulatedWattage_Table[[#This Row],[Lamp Qty]]&\"L - \"&StipulatedWattage_Table[[#This Row],[Actual lamp wattage]]&\"W\"&IF(StipulatedWattage_Table[[#This Row],[Ballast Type]]=\"\",\"\",\" - \"&TRIM(StipulatedWattage_Table[[#This Row],[Ballast Type]]))&\"]\"","v":"[2L - 215W - MG]"},2,215,"MG ",1,380,null,"Metal Halide - Pulse Start","Electronic",{"$f":"FixtureWattageFormula_Table[[#This Row],[Fixture]]&\" - \"&FixtureWattageFormula_Table[[#This Row],[Ballast]]","v":"Metal Halide - Pulse Start - Electronic"},1.05,2,"Barry + Catalog",null,null,null,null,null,null,null,null,null,null,null,null,62,{"$f":"SegmentExceptTable[[#This Row],[Numbers]]/$BP$4","v":0.10350584307178631},{"$f":"SegmentExceptTable[[#This Row],[kW Boundary]]+(0.05*SegmentExceptTable[[#This Row],[kW Boundary]])","v":0.10868113522537563},{"$f":"$BP$6*SegmentExceptTable[[#This Row],[kW Boundary]]+$BP$7","v":0.13174613962009868},{"$f":"$BP$8*SegmentExceptTable[[#This Row],[kW Boundary]]+$BP$9","v":0.12230946471688088},{"$f":"SegmentExceptTable[[#This Row],[Boundary S/M]]+(0.05*SegmentExceptTable[[#This Row],[Boundary S/M]])","v":0.12842493795272492},{"$f":"IF(AND(AND(kwpeak_norm>SegmentExceptTable[[#This Row],[kW Boundary]],kwpeak_norm<SegmentExceptTable[[#This Row],[kW Exception]]),AND(kwhmo_norm>SegmentExceptTable[[#This Row],[Boundary S/M]],kwhmo_norm<SegmentExceptTable[[#This Row],[Exception S/M]])),1,0)","v":0},{"$f":"$BP$10*SegmentExceptTable[[#This Row],[kW Boundary]]+$BP$11","v":8.8729385289038371E-2},{"$f":"$BP$12*SegmentExceptTable[[#This Row],[kW Boundary]]+$BP$13","v":0.52165985674936355},{"$f":"SegmentExceptTable[[#This Row],[Boundary M/L]]+(0.05*SegmentExceptTable[[#This Row],[Boundary M/L]])","v":0.54774284958683173},{"$f":"IF(AND(AND(kwpeak_norm>SegmentExceptTable[[#This Row],[kW Boundary]],kwpeak_norm<SegmentExceptTable[[#This Row],[kW Exception]]),AND(kwhmo_norm>SegmentExceptTable[[#This Row],[Boundary M/L]],kwhmo_norm<SegmentExceptTable[[#This Row],[Exception M/L]])),1,0)","v":0}]
[null,"Whole Building",null,"Agriculture - Livestock",null,"AL",null,"08GNSVPF08",8,null,null,null,null,null,null,null,1,null,"Housing, Public & Common Area - Multi-Family/Dorm",0.94,3500,null,{"$f":"\"[\"&StipulatedWattage_Table[[#This Row],[Lamp Qty]]&\"L - \"&StipulatedWattage_Table[[#This Row],[Actual lamp wattage]]&\"W\"&IF(StipulatedWattage_Table[[#This Row],[Ballast Type]]=\"\",\"\",\" - \"&TRIM(StipulatedWattage_Table[[#This Row],[Ballast Type]]))&\"]\"","v":"[2L - 28W - RS/PRS H]"},2,28,"RS/PRS H",1.1000000000000001,62,null,"T8 TLED","IS H",{"$f":"FixtureWattageFormula_Table[[#This Row],[Fixture]]&\" - \"&FixtureWattageFormula_Table[[#This Row],[Ballast]]","v":"T8 TLED - IS H"},1.46,-1,0.99522349352072081,null,null,null,null,null,null,null,null,null,null,null,null,63,{"$f":"SegmentExceptTable[[#This Row],[Numbers]]/$BP$4","v":0.10517529215358931},{"$f":"SegmentExceptTable[[#This Row],[kW Boundary]]+(0.05*SegmentExceptTable[[#This Row],[kW Boundary]])","v":0.11043405676126877},{"$f":"$BP$6*SegmentExceptTable[[#This Row],[kW Boundary]]+$BP$7","v":0.13417296991546496},{"$f":"$BP$8*SegmentExceptTable[[#This Row],[kW Boundary]]+$BP$9","v":0.12116102832145001},{"$f":"SegmentExceptTable[[#This Row],[Boundary S/M]]+(0.05*SegmentExceptTable[[#This Row],[Boundary S/M]])","v":0.1272190797375225},{"$f":"IF(AND(AND(kwpeak_norm>SegmentExceptTable[[#This Row],[kW Boundary]],kwpeak_norm<SegmentExceptTable[[#This Row],[kW Exception]]),AND(kwhmo_norm>SegmentExceptTable[[#This Row],[Boundary S/M]],kwhmo_norm<SegmentExceptTable[[#This Row],[Exception S/M]])),1,0)","v":0},{"$f":"$BP$10*SegmentExceptTable[[#This Row],[kW Boundary]]+$BP$11","v":9.2256438931276885E-2},{"$f":"$BP$12*SegmentExceptTable[[#This Row],[kW Boundary]]+$BP$13","v":0.52086966172557481},{"$f":"SegmentExceptTable[[#This Row],[Boundary M/L]]+(0.05*SegmentExceptTable[[#This Row],[Boundary M/L]])","v":0.5469131448118536},{"$f":"IF(AND(AND(kwpeak_norm>SegmentExceptTable[[#This Row],[kW Boundary]],kwpeak_norm<SegmentExceptTable[[#This Row],[kW Exception]]),AND(kwhmo_norm>SegmentExceptTable[[#This Row],[Boundary M/L]],kwhmo_norm<SegmentExceptTable[[#This Row],[Exception M/L]])),1,0)","v":0}]
[null,"Exterior Only",null,"Agriculture - Poultry",null,"AR",null,"08GNSVPF09",9,null,null,null,null,null,null,null,0,null,"Housing, Public and Commons Area - Sr. Housing",0.94,3500,null,{"$f":"\"[\"&StipulatedWattage_Table[[#This Row],[Lamp Qty]]&\"L - \"&StipulatedWattage_Table[[#This Row],[Actual lamp wattage]]&\"W\"&IF(StipulatedWattage_Table[[#This Row],[Ballast Type]]=\"\",\"\",\" - \"&TRIM(StipulatedWattage_Table[[#This Row],[Ballast Type]]))&\"]\"","v":"[2L - 32W - IS H]"},2,32,"IS H",1.1000000000000001,64,null,"T8 TLED","IS L",{"$f":"FixtureWattageFormula_Table[[#This Row],[Fixture]]&\" - \"&FixtureWattageFormula_Table[[#This Row],[Ballast]]","v":"T8 TLED - IS L"},1,1,0.98444798881203999,null,null,null,null,null,null,null,null,null,null,null,null,64,{"$f":"SegmentExceptTable[[#This Row],[Numbers]]/$BP$4","v":0.10684474123539232},{"$f":"SegmentExceptTable[[#This Row],[kW Boundary]]+(0.05*SegmentExceptTable[[#This Row],[kW Boundary]])","v":0.11218697829716194},{"$f":"$BP$6*SegmentExceptTable[[#This Row],[kW Boundary]]+$BP$7","v":0.13659980021083123},{"$f":"$BP$8*SegmentExceptTable[[#This Row],[kW Boundary]]+$BP$9","v":0.12001259192601912},{"$f":"SegmentExceptTable[[#This Row],[Boundary S/M]]+(0.05*SegmentExceptTable[[#This Row],[Boundary S/M]])","v":0.12601322152232008},{"$f":"IF(AND(AND(kwpeak_norm>SegmentExceptTable[[#This Row],[kW Boundary]],kwpeak_norm<SegmentExceptTable[[#This Row],[kW Exception]]),AND(kwhmo_norm>SegmentExceptTable[[#This Row],[Boundary S/M]],kwhmo_norm<SegmentExceptTable[[#This Row],[Exception S/M]])),1,0)","v":0},{"$f":"$BP$10*SegmentExceptTable[[#This Row],[kW Boundary]]+$BP$11","v":9.5783492573515455E-2},{"$f":"$BP$12*SegmentExceptTable[[#This Row],[kW Boundary]]+$BP$13","v":0.52007946670178606},{"$f":"SegmentExceptTable[[#This Row],[Boundary M/L]]+(0.05*SegmentExceptTable[[#This Row],[Boundary M/L]])","v":0.54608344003687537},{"$f":"IF(AND(AND(kwpeak_norm>SegmentExceptTable[[#This Row],[kW Boundary]],kwpeak_norm<SegmentExceptTable[[#This Row],[kW Exception]]),AND(kwhmo_norm>SegmentExceptTable[[#This Row],[Boundary M/L]],kwhmo_norm<SegmentExceptTable[[#This Row],[Exception M/L]])),1,0)","v":0}]
[null,null,null,"Agriculture - other farm",null,"AZ",null,"08GNSVPF9A","9A",null,null,null,null,null,null,null,null,null,"Industrial Work, < 20-Foot Ceiling Height",0.96,5500,null,{"$f":"\"[\"&StipulatedWattage_Table[[#This Row],[Lamp Qty]]&\"L - \"&StipulatedWattage_Table[[#This Row],[Actual lamp wattage]]&\"W\"&IF(StipulatedWattage_Table[[#This Row],[Ballast Type]]=\"\",\"\",\" - \"&TRIM(StipulatedWattage_Table[[#This Row],[Ballast Type]]))&\"]\"","v":"[2L - 32W - IS L]"},2,32,"IS L",0.78,50,null,"T8 TLED","IS N",{"$f":"FixtureWattageFormula_Table[[#This Row],[Fixture]]&\" - \"&FixtureWattageFormula_Table[[#This Row],[Ballast]]","v":"T8 TLED - IS N"},1.1399999999999999,0,0.99489949331201,null,null,null,null,null,null,null,null,null,null,null,null,65,{"$f":"SegmentExceptTable[[#This Row],[Numbers]]/$BP$4","v":0.10851419031719532},{"$f":"SegmentExceptTable[[#This Row],[kW Boundary]]+(0.05*SegmentExceptTable[[#This Row],[kW Boundary]])","v":0.11393989983305509},{"$f":"$BP$6*SegmentExceptTable[[#This Row],[kW Boundary]]+$BP$7","v":0.13902663050619751},{"$f":"$BP$8*SegmentExceptTable[[#This Row],[kW Boundary]]+$BP$9","v":0.11886415553058825},{"$f":"SegmentExceptTable[[#This Row],[Boundary S/M]]+(0.05*SegmentExceptTable[[#This Row],[Boundary S/M]])","v":0.12480736330711767},{"$f":"IF(AND(AND(kwpeak_norm>SegmentExceptTable[[#This Row],[kW Boundary]],kwpeak_norm<SegmentExceptTable[[#This Row],[kW Exception]]),AND(kwhmo_norm>SegmentExceptTable[[#This Row],[Boundary S/M]],kwhmo_norm<SegmentExceptTable[[#This Row],[Exception S/M]])),1,0)","v":0},{"$f":"$BP$10*SegmentExceptTable[[#This Row],[kW Boundary]]+$BP$11","v":9.931054621575397E-2},{"$f":"$BP$12*SegmentExceptTable[[#This Row],[kW Boundary]]+$BP$13","v":0.51928927167799721},{"$f":"SegmentExceptTable[[#This Row],[Boundary M/L]]+(0.05*SegmentExceptTable[[#This Row],[Boundary M/L]])","v":0.54525373526189702},{"$f":"IF(AND(AND(kwpeak_norm>SegmentExceptTable[[#This Row],[kW Boundary]],kwpeak_norm<SegmentExceptTable[[#This Row],[kW Exception]]),AND(kwhmo_norm>SegmentExceptTable[[#This Row],[Boundary M/L]],kwhmo_norm<SegmentExceptTable[[#This Row],[Exception M/L]])),1,0)","v":0}]
[null,"PayeeInformation",null,"All building common areas, etc.",null,"CA",null,"08MHTP0006",6,null,null,null,null,null,null,null,null,null,"Industrial Work, ≥ 20-Foot Ceiling Height",0.96,5500,null,{"$f":"\"[\"&StipulatedWattage_Table[[#This Row],[Lamp Qty]]&\"L - \"&StipulatedWattage_Table[[#This Row],[Actual lamp wattage]]&\"W\"&IF(StipulatedWattage_Table[[#This Row],[Ballast Type]]=\"\",\"\",\" - \"&TRIM(StipulatedWattage_Table[[#This Row],[Ballast Type]]))&\"]\"","v":"[2L - 32W - IS N]"},2,32,"IS N",0.88,58,null,"T8 TLED","RS/PRS N",{"$f":"FixtureWattageFormula_Table[[#This Row],[Fixture]]&\" - \"&FixtureWattageFormula_Table[[#This Row],[Ballast]]","v":"T8 TLED - RS/PRS N"},0.89,2,0.99984486993120403,null,null,null,null,null,null,null,null,null,null,null,null,66,{"$f":"SegmentExceptTable[[#This Row],[Numbers]]/$BP$4","v":0.11018363939899833},{"$f":"SegmentExceptTable[[#This Row],[kW Boundary]]+(0.05*SegmentExceptTable[[#This Row],[kW Boundary]])","v":0.11569282136894825},{"$f":"$BP$6*SegmentExceptTable[[#This Row],[kW Boundary]]+$BP$7","v":0.14145346080156379},{"$f":"$BP$8*SegmentExceptTable[[#This Row],[kW Boundary]]+$BP$9","v":0.11771571913515737},{"$f":"SegmentExceptTable[[#This Row],[Boundary S/M]]+(0.05*SegmentExceptTable[[#This Row],[Boundary S/M]])","v":0.12360150509191524},{"$f":"IF(AND(AND(kwpeak_norm>SegmentExceptTable[[#This Row],[kW Boundary]],kwpeak_norm<SegmentExceptTable[[#This Row],[kW Exception]]),AND(kwhmo_norm>SegmentExceptTable[[#This Row],[Boundary S/M]],kwhmo_norm<SegmentExceptTable[[#This Row],[Exception S/M]])),1,0)","v":0},{"$f":"$BP$10*SegmentExceptTable[[#This Row],[kW Boundary]]+$BP$11","v":0.10283759985799251},{"$f":"$BP$12*SegmentExceptTable[[#This Row],[kW Boundary]]+$BP$13","v":0.51849907665420847},{"$f":"SegmentExceptTable[[#This Row],[Boundary M/L]]+(0.05*SegmentExceptTable[[#This Row],[Boundary M/L]])","v":0.5444240304869189},{"$f":"IF(AND(AND(kwpeak_norm>SegmentExceptTable[[#This Row],[kW Boundary]],kwpeak_norm<SegmentExceptTable[[#This Row],[kW Exception]]),AND(kwhmo_norm>SegmentExceptTable[[#This Row],[Boundary M/L]],kwhmo_norm<SegmentExceptTable[[#This Row],[Exception M/L]])),1,0)","v":0}]
[null,"Installation Address",null,"Apartment",null,"CO",null,"08MONL0015",15,null,null,null,null,null,null,null,null,null,"Kitchen",0.94,4900,null,{"$f":"\"[\"&StipulatedWattage_Table[[#This Row],[Lamp Qty]]&\"L - \"&StipulatedWattage_Table[[#This Row],[Actual lamp wattage]]&\"W\"&IF(StipulatedWattage_Table[[#This Row],[Ballast Type]]=\"\",\"\",\" - \"&TRIM(StipulatedWattage_Table[[#This Row],[Ballast Type]]))&\"]\"","v":"[2L - 32W - IS VH]"},2,32,"IS VH",1.1499999999999999,75,null,null,null,null,null,null,null,null,null,null,null,null,null,null,null,null,null,null,null,67,{"$f":"SegmentExceptTable[[#This Row],[Numbers]]/$BP$4","v":0.11185308848080133},{"$f":"SegmentExceptTable[[#This Row],[kW Boundary]]+(0.05*SegmentExceptTable[[#This Row],[kW Boundary]])","v":0.1174457429048414},{"$f":"$BP$6*SegmentExceptTable[[#This Row],[kW Boundary]]+$BP$7","v":0.14388029109693007},{"$f":"$BP$8*SegmentExceptTable[[#This Row],[kW Boundary]]+$BP$9","v":0.1165672827397265},{"$f":"SegmentExceptTable[[#This Row],[Boundary S/M]]+(0.05*SegmentExceptTable[[#This Row],[Boundary S/M]])","v":0.12239564687671282},{"$f":"IF(AND(AND(kwpeak_norm>SegmentExceptTable[[#This Row],[kW Boundary]],kwpeak_norm<SegmentExceptTable[[#This Row],[kW Exception]]),AND(kwhmo_norm>SegmentExceptTable[[#This Row],[Boundary S/M]],kwhmo_norm<SegmentExceptTable[[#This Row],[Exception S/M]])),1,0)","v":0},{"$f":"$BP$10*SegmentExceptTable[[#This Row],[kW Boundary]]+$BP$11","v":0.10636465350023103},{"$f":"$BP$12*SegmentExceptTable[[#This Row],[kW Boundary]]+$BP$13","v":0.51770888163041973},{"$f":"SegmentExceptTable[[#This Row],[Boundary M/L]]+(0.05*SegmentExceptTable[[#This Row],[Boundary M/L]])","v":0.54359432571194066},{"$f":"IF(AND(AND(kwpeak_norm>SegmentExceptTable[[#This Row],[kW Boundary]],kwpeak_norm<SegmentExceptTable[[#This Row],[kW Exception]]),AND(kwhmo_norm>SegmentExceptTable[[#This Row],[Boundary M/L]],kwhmo_norm<SegmentExceptTable[[#This Row],[Exception M/L]])),1,0)","v":0}]
[null,"Participant Address",null,"Auditorium",null,"CT",null,"08NMT010NS",10,null,null,null,null,null,null,null,null,null,"Kitchen, Food Preparation",0.94,4900,null,{"$f":"\"[\"&StipulatedWattage_Table[[#This Row],[Lamp Qty]]&\"L - \"&StipulatedWattage_Table[[#This Row],[Actual lamp wattage]]&\"W\"&IF(StipulatedWattage_Table[[#This Row],[Ballast Type]]=\"\",\"\",\" - \"&TRIM(StipulatedWattage_Table[[#This Row],[Ballast Type]]))&\"]\"","v":"[2L - 32W - RS/PRS H]"},2,32,"RS/PRS H",1.1000000000000001,65,null,null,null,null,null,null,null,null,null,null,null,null,null,null,null,null,null,null,null,68,{"$f":"SegmentExceptTable[[#This Row],[Numbers]]/$BP$4","v":0.11352253756260434},{"$f":"SegmentExceptTable[[#This Row],[kW Boundary]]+(0.05*SegmentExceptTable[[#This Row],[kW Boundary]])","v":0.11919866444073457},{"$f":"$BP$6*SegmentExceptTable[[#This Row],[kW Boundary]]+$BP$7","v":0.14630712139229635},{"$f":"$BP$8*SegmentExceptTable[[#This Row],[kW Boundary]]+$BP$9","v":0.11541884634429563},{"$f":"SegmentExceptTable[[#This Row],[Boundary S/M]]+(0.05*SegmentExceptTable[[#This Row],[Boundary S/M]])","v":0.12118978866151041},{"$f":"IF(AND(AND(kwpeak_norm>SegmentExceptTable[[#This Row],[kW Boundary]],kwpeak_norm<SegmentExceptTable[[#This Row],[kW Exception]]),AND(kwhmo_norm>SegmentExceptTable[[#This Row],[Boundary S/M]],kwhmo_norm<SegmentExceptTable[[#This Row],[Exception S/M]])),1,0)","v":0},{"$f":"$BP$10*SegmentExceptTable[[#This Row],[kW Boundary]]+$BP$11","v":0.10989170714246957},{"$f":"$BP$12*SegmentExceptTable[[#This Row],[kW Boundary]]+$BP$13","v":0.51691868660663098},{"$f":"SegmentExceptTable[[#This Row],[Boundary M/L]]+(0.05*SegmentExceptTable[[#This Row],[Boundary M/L]])","v":0.54276462093696254},{"$f":"IF(AND(AND(kwpeak_norm>SegmentExceptTable[[#This Row],[kW Boundary]],kwpeak_norm<SegmentExceptTable[[#This Row],[kW Exception]]),AND(kwhmo_norm>SegmentExceptTable[[#This Row],[Boundary M/L]],kwhmo_norm<SegmentExceptTable[[#This Row],[Exception M/L]])),1,0)","v":0}]
[null,"Vendor Address",null,"Auto Repair",null,"DE",null,"08NMT06135",6,null,null,null,null,null,null,null,null,null,"Laboratory Space",0.96,null,null,{"$f":"\"[\"&StipulatedWattage_Table[[#This Row],[Lamp Qty]]&\"L - \"&StipulatedWattage_Table[[#This Row],[Actual lamp wattage]]&\"W\"&IF(StipulatedWattage_Table[[#This Row],[Ballast Type]]=\"\",\"\",\" - \"&TRIM(StipulatedWattage_Table[[#This Row],[Ballast Type]]))&\"]\"","v":"[2L - 32W - RS/PRS L]"},2,32,"RS/PRS L",0.78,48,null,null,null,null,null,null,null,null,null,null,null,null,null,null,null,null,null,null,null,69,{"$f":"SegmentExceptTable[[#This Row],[Numbers]]/$BP$4","v":0.11519198664440734},{"$f":"SegmentExceptTable[[#This Row],[kW Boundary]]+(0.05*SegmentExceptTable[[#This Row],[kW Boundary]])","v":0.12095158597662771},{"$f":"$BP$6*SegmentExceptTable[[#This Row],[kW Boundary]]+$BP$7","v":0.14873395168766262},{"$f":"$BP$8*SegmentExceptTable[[#This Row],[kW Boundary]]+$BP$9","v":0.11427040994886475},{"$f":"SegmentExceptTable[[#This Row],[Boundary S/M]]+(0.05*SegmentExceptTable[[#This Row],[Boundary S/M]])","v":0.11998393044630799},{"$f":"IF(AND(AND(kwpeak_norm>SegmentExceptTable[[#This Row],[kW Boundary]],kwpeak_norm<SegmentExceptTable[[#This Row],[kW Exception]]),AND(kwhmo_norm>SegmentExceptTable[[#This Row],[Boundary S/M]],kwhmo_norm<SegmentExceptTable[[#This Row],[Exception S/M]])),1,0)","v":0},{"$f":"$BP$10*SegmentExceptTable[[#This Row],[kW Boundary]]+$BP$11","v":0.11341876078470808},{"$f":"$BP$12*SegmentExceptTable[[#This Row],[kW Boundary]]+$BP$13","v":0.51612849158284224},{"$f":"SegmentExceptTable[[#This Row],[Boundary M/L]]+(0.05*SegmentExceptTable[[#This Row],[Boundary M/L]])","v":0.5419349161619843},{"$f":"IF(AND(AND(kwpeak_norm>SegmentExceptTable[[#This Row],[kW Boundary]],kwpeak_norm<SegmentExceptTable[[#This Row],[kW Exception]]),AND(kwhmo_norm>SegmentExceptTable[[#This Row],[Boundary M/L]],kwhmo_norm<SegmentExceptTable[[#This Row],[Exception M/L]])),1,0)","v":0}]
[null,"Other Information (Listed Below)",null,"Automotive facility",null,"FL",null,"08NMT08135",8,null,null,null,null,null,null,null,null,null,"Laboratory, Scientific",0.96,null,null,{"$f":"\"[\"&StipulatedWattage_Table[[#This Row],[Lamp Qty]]&\"L - \"&StipulatedWattage_Table[[#This Row],[Actual lamp wattage]]&\"W\"&IF(StipulatedWattage_Table[[#This Row],[Ballast Type]]=\"\",\"\",\" - \"&TRIM(StipulatedWattage_Table[[#This Row],[Ballast Type]]))&\"]\"","v":"[2L - 32W - RS/PRS N]"},2,32,"RS/PRS N",0.88,58,null,null,null,null,null,null,null,null,null,null,null,null,null,null,null,null,null,null,null,70,{"$f":"SegmentExceptTable[[#This Row],[Numbers]]/$BP$4","v":0.11686143572621036},{"$f":"SegmentExceptTable[[#This Row],[kW Boundary]]+(0.05*SegmentExceptTable[[#This Row],[kW Boundary]])","v":0.12270450751252088},{"$f":"$BP$6*SegmentExceptTable[[#This Row],[kW Boundary]]+$BP$7","v":0.1511607819830289},{"$f":"$BP$8*SegmentExceptTable[[#This Row],[kW Boundary]]+$BP$9","v":0.11312197355343387},{"$f":"SegmentExceptTable[[#This Row],[Boundary S/M]]+(0.05*SegmentExceptTable[[#This Row],[Boundary S/M]])","v":0.11877807223110556},{"$f":"IF(AND(AND(kwpeak_norm>SegmentExceptTable[[#This Row],[kW Boundary]],kwpeak_norm<SegmentExceptTable[[#This Row],[kW Exception]]),AND(kwhmo_norm>SegmentExceptTable[[#This Row],[Boundary S/M]],kwhmo_norm<SegmentExceptTable[[#This Row],[Exception S/M]])),1,0)","v":0},{"$f":"$BP$10*SegmentExceptTable[[#This Row],[kW Boundary]]+$BP$11","v":0.11694581442694663},{"$f":"$BP$12*SegmentExceptTable[[#This Row],[kW Boundary]]+$BP$13","v":0.5153382965590535},{"$f":"SegmentExceptTable[[#This Row],[Boundary M/L]]+(0.05*SegmentExceptTable[[#This Row],[Boundary M/L]])","v":0.54110521138700618},{"$f":"IF(AND(AND(kwpeak_norm>SegmentExceptTable[[#This Row],[kW Boundary]],kwpeak_norm<SegmentExceptTable[[#This Row],[kW Exception]]),AND(kwhmo_norm>SegmentExceptTable[[#This Row],[Boundary M/L]],kwhmo_norm<SegmentExceptTable[[#This Row],[Exception M/L]])),1,0)","v":0}]
[null,null,null,"Condominium",null,"GA",null,"08NMT10135",10,null,null,null,null,null,null,null,null,null,"Laundry",0.94,null,null,{"$f":"\"[\"&StipulatedWattage_Table[[#This Row],[Lamp Qty]]&\"L - \"&StipulatedWattage_Table[[#This Row],[Actual lamp wattage]]&\"W\"&IF(StipulatedWattage_Table[[#This Row],[Ballast Type]]=\"\",\"\",\" - \"&TRIM(StipulatedWattage_Table[[#This Row],[Ballast Type]]))&\"]\"","v":"[2L - 32W - RS/PRS VH]"},2,32,"RS/PRS VH",1.1499999999999999,75,null,null,null,null,null,null,null,null,null,null,null,null,null,null,null,null,null,null,null,71,{"$f":"SegmentExceptTable[[#This Row],[Numbers]]/$BP$4","v":0.11853088480801335},{"$f":"SegmentExceptTable[[#This Row],[kW Boundary]]+(0.05*SegmentExceptTable[[#This Row],[kW Boundary]])","v":0.12445742904841402},{"$f":"$BP$6*SegmentExceptTable[[#This Row],[kW Boundary]]+$BP$7","v":0.15358761227839518},{"$f":"$BP$8*SegmentExceptTable[[#This Row],[kW Boundary]]+$BP$9","v":0.111973537158003},{"$f":"SegmentExceptTable[[#This Row],[Boundary S/M]]+(0.05*SegmentExceptTable[[#This Row],[Boundary S/M]])","v":0.11757221401590315},{"$f":"IF(AND(AND(kwpeak_norm>SegmentExceptTable[[#This Row],[kW Boundary]],kwpeak_norm<SegmentExceptTable[[#This Row],[kW Exception]]),AND(kwhmo_norm>SegmentExceptTable[[#This Row],[Boundary S/M]],kwhmo_norm<SegmentExceptTable[[#This Row],[Exception S/M]])),1,0)","v":0},{"$f":"$BP$10*SegmentExceptTable[[#This Row],[kW Boundary]]+$BP$11","v":0.12047286806918511},{"$f":"$BP$12*SegmentExceptTable[[#This Row],[kW Boundary]]+$BP$13","v":0.51454810153526476},{"$f":"SegmentExceptTable[[#This Row],[Boundary M/L]]+(0.05*SegmentExceptTable[[#This Row],[Boundary M/L]])","v":0.54027550661202794},{"$f":"IF(AND(AND(kwpeak_norm>SegmentExceptTable[[#This Row],[kW Boundary]],kwpeak_norm<SegmentExceptTable[[#This Row],[kW Exception]]),AND(kwhmo_norm>SegmentExceptTable[[#This Row],[Boundary M/L]],kwhmo_norm<SegmentExceptTable[[#This Row],[Exception M/L]])),1,0)","v":0}]
[null,null,null,"Convenience store",null,"HI",null,"08NMT15135",15,null,null,null,null,null,null,null,null,null,"Library",0.89,3000,null,{"$f":"\"[\"&StipulatedWattage_Table[[#This Row],[Lamp Qty]]&\"L - \"&StipulatedWattage_Table[[#This Row],[Actual lamp wattage]]&\"W\"&IF(StipulatedWattage_Table[[#This Row],[Ballast Type]]=\"\",\"\",\" - \"&TRIM(StipulatedWattage_Table[[#This Row],[Ballast Type]]))&\"]\"","v":"[2L - 34W - IS N]"},2,34,"IS N",0.88,58,null,null,null,null,null,null,null,null,null,null,null,null,null,null,null,null,null,null,null,72,{"$f":"SegmentExceptTable[[#This Row],[Numbers]]/$BP$4","v":0.12020033388981637},{"$f":"SegmentExceptTable[[#This Row],[kW Boundary]]+(0.05*SegmentExceptTable[[#This Row],[kW Boundary]])","v":0.12621035058430718},{"$f":"$BP$6*SegmentExceptTable[[#This Row],[kW Boundary]]+$BP$7","v":0.15601444257376146},{"$f":"$BP$8*SegmentExceptTable[[#This Row],[kW Boundary]]+$BP$9","v":0.11082510076257211},{"$f":"SegmentExceptTable[[#This Row],[Boundary S/M]]+(0.05*SegmentExceptTable[[#This Row],[Boundary S/M]])","v":0.11636635580070072},{"$f":"IF(AND(AND(kwpeak_norm>SegmentExceptTable[[#This Row],[kW Boundary]],kwpeak_norm<SegmentExceptTable[[#This Row],[kW Exception]]),AND(kwhmo_norm>SegmentExceptTable[[#This Row],[Boundary S/M]],kwhmo_norm<SegmentExceptTable[[#This Row],[Exception S/M]])),1,0)","v":0},{"$f":"$BP$10*SegmentExceptTable[[#This Row],[kW Boundary]]+$BP$11","v":0.12399992171142366},{"$f":"$BP$12*SegmentExceptTable[[#This Row],[kW Boundary]]+$BP$13","v":0.5137579065114759},{"$f":"SegmentExceptTable[[#This Row],[Boundary M/L]]+(0.05*SegmentExceptTable[[#This Row],[Boundary M/L]])","v":0.53944580183704971},{"$f":"IF(AND(AND(kwpeak_norm>SegmentExceptTable[[#This Row],[kW Boundary]],kwpeak_norm<SegmentExceptTable[[#This Row],[kW Exception]]),AND(kwhmo_norm>SegmentExceptTable[[#This Row],[Boundary M/L]],kwhmo_norm<SegmentExceptTable[[#This Row],[Exception M/L]])),1,0)","v":0}]
[null,null,null,"Convention Center",null,"IA",null,"08NMT23135",23,null,null,null,null,null,null,null,null,null,"Library - Reading Areas",0.89,3000,null,{"$f":"\"[\"&StipulatedWattage_Table[[#This Row],[Lamp Qty]]&\"L - \"&StipulatedWattage_Table[[#This Row],[Actual lamp wattage]]&\"W\"&IF(StipulatedWattage_Table[[#This Row],[Ballast Type]]=\"\",\"\",\" - \"&TRIM(StipulatedWattage_Table[[#This Row],[Ballast Type]]))&\"]\"","v":"[2L - 34W - MG]"},2,34,"MG ",1,58,null,null,null,null,null,null,null,null,null,null,null,null,null,null,null,null,null,null,null,73,{"$f":"SegmentExceptTable[[#This Row],[Numbers]]/$BP$4","v":0.12186978297161936},{"$f":"SegmentExceptTable[[#This Row],[kW Boundary]]+(0.05*SegmentExceptTable[[#This Row],[kW Boundary]])","v":0.12796327212020034},{"$f":"$BP$6*SegmentExceptTable[[#This Row],[kW Boundary]]+$BP$7","v":0.15844127286912774},{"$f":"$BP$8*SegmentExceptTable[[#This Row],[kW Boundary]]+$BP$9","v":0.10967666436714124},{"$f":"SegmentExceptTable[[#This Row],[Boundary S/M]]+(0.05*SegmentExceptTable[[#This Row],[Boundary S/M]])","v":0.1151604975854983},{"$f":"IF(AND(AND(kwpeak_norm>SegmentExceptTable[[#This Row],[kW Boundary]],kwpeak_norm<SegmentExceptTable[[#This Row],[kW Exception]]),AND(kwhmo_norm>SegmentExceptTable[[#This Row],[Boundary S/M]],kwhmo_norm<SegmentExceptTable[[#This Row],[Exception S/M]])),1,0)","v":0},{"$f":"$BP$10*SegmentExceptTable[[#This Row],[kW Boundary]]+$BP$11","v":0.1275269753536622},{"$f":"$BP$12*SegmentExceptTable[[#This Row],[kW Boundary]]+$BP$13","v":0.51296771148768716},{"$f":"SegmentExceptTable[[#This Row],[Boundary M/L]]+(0.05*SegmentExceptTable[[#This Row],[Boundary M/L]])","v":0.53861609706207147},{"$f":"IF(AND(AND(kwpeak_norm>SegmentExceptTable[[#This Row],[kW Boundary]],kwpeak_norm<SegmentExceptTable[[#This Row],[kW Exception]]),AND(kwhmo_norm>SegmentExceptTable[[#This Row],[Boundary M/L]],kwhmo_norm<SegmentExceptTable[[#This Row],[Exception M/L]])),1,0)","v":0}]
[null,null,null,"Courthouse",null,"ID",null,"08NMT6A135","6A",null,null,null,null,null,null,null,null,null,"Library - Stacks",0.89,3000,null,{"$f":"\"[\"&StipulatedWattage_Table[[#This Row],[Lamp Qty]]&\"L - \"&StipulatedWattage_Table[[#This Row],[Actual lamp wattage]]&\"W\"&IF(StipulatedWattage_Table[[#This Row],[Ballast Type]]=\"\",\"\",\" - \"&TRIM(StipulatedWattage_Table[[#This Row],[Ballast Type]]))&\"]\"","v":"[2L - 40W - IS N]"},2,40,"IS N",0.88,57,null,null,null,null,null,null,null,null,null,null,null,null,null,null,null,null,null,null,null,74,{"$f":"SegmentExceptTable[[#This Row],[Numbers]]/$BP$4","v":0.12353923205342238},{"$f":"SegmentExceptTable[[#This Row],[kW Boundary]]+(0.05*SegmentExceptTable[[#This Row],[kW Boundary]])","v":0.12971619365609349},{"$f":"$BP$6*SegmentExceptTable[[#This Row],[kW Boundary]]+$BP$7","v":0.16086810316449401},{"$f":"$BP$8*SegmentExceptTable[[#This Row],[kW Boundary]]+$BP$9","v":0.10852822797171037},{"$f":"SegmentExceptTable[[#This Row],[Boundary S/M]]+(0.05*SegmentExceptTable[[#This Row],[Boundary S/M]])","v":0.11395463937029589},{"$f":"IF(AND(AND(kwpeak_norm>SegmentExceptTable[[#This Row],[kW Boundary]],kwpeak_norm<SegmentExceptTable[[#This Row],[kW Exception]]),AND(kwhmo_norm>SegmentExceptTable[[#This Row],[Boundary S/M]],kwhmo_norm<SegmentExceptTable[[#This Row],[Exception S/M]])),1,0)","v":0},{"$f":"$BP$10*SegmentExceptTable[[#This Row],[kW Boundary]]+$BP$11","v":0.13105402899590074},{"$f":"$BP$12*SegmentExceptTable[[#This Row],[kW Boundary]]+$BP$13","v":0.51217751646389842},{"$f":"SegmentExceptTable[[#This Row],[Boundary M/L]]+(0.05*SegmentExceptTable[[#This Row],[Boundary M/L]])","v":0.53778639228709335},{"$f":"IF(AND(AND(kwpeak_norm>SegmentExceptTable[[#This Row],[kW Boundary]],kwpeak_norm<SegmentExceptTable[[#This Row],[kW Exception]]),AND(kwhmo_norm>SegmentExceptTable[[#This Row],[Boundary M/L]],kwhmo_norm<SegmentExceptTable[[#This Row],[Exception M/L]])),1,0)","v":0}]
[null,null,null,"Data Center",null,"IL",null,"08NMT8135M",8,null,null,null,null,null,null,null,null,null,"Lobby - Main Entry Lobby",0.94,3000,null,{"$f":"\"[\"&StipulatedWattage_Table[[#This Row],[Lamp Qty]]&\"L - \"&StipulatedWattage_Table[[#This Row],[Actual lamp wattage]]&\"W\"&IF(StipulatedWattage_Table[[#This Row],[Ballast Type]]=\"\",\"\",\" - \"&TRIM(StipulatedWattage_Table[[#This Row],[Ballast Type]]))&\"]\"","v":"[2L - 40W - MG]"},2,40,"MG ",1,58,null,null,null,null,null,null,null,null,null,null,null,null,null,null,null,null,null,null,null,75,{"$f":"SegmentExceptTable[[#This Row],[Numbers]]/$BP$4","v":0.12520868113522537},{"$f":"SegmentExceptTable[[#This Row],[kW Boundary]]+(0.05*SegmentExceptTable[[#This Row],[kW Boundary]])","v":0.13146911519198665},{"$f":"$BP$6*SegmentExceptTable[[#This Row],[kW Boundary]]+$BP$7","v":0.16329493345986029},{"$f":"$BP$8*SegmentExceptTable[[#This Row],[kW Boundary]]+$BP$9","v":0.1073797915762795},{"$f":"SegmentExceptTable[[#This Row],[Boundary S/M]]+(0.05*SegmentExceptTable[[#This Row],[Boundary S/M]])","v":0.11274878115509347},{"$f":"IF(AND(AND(kwpeak_norm>SegmentExceptTable[[#This Row],[kW Boundary]],kwpeak_norm<SegmentExceptTable[[#This Row],[kW Exception]]),AND(kwhmo_norm>SegmentExceptTable[[#This Row],[Boundary S/M]],kwhmo_norm<SegmentExceptTable[[#This Row],[Exception S/M]])),1,0)","v":0},{"$f":"$BP$10*SegmentExceptTable[[#This Row],[kW Boundary]]+$BP$11","v":0.13458108263813928},{"$f":"$BP$12*SegmentExceptTable[[#This Row],[kW Boundary]]+$BP$13","v":0.51138732144010968},{"$f":"SegmentExceptTable[[#This Row],[Boundary M/L]]+(0.05*SegmentExceptTable[[#This Row],[Boundary M/L]])","v":0.53695668751211512},{"$f":"IF(AND(AND(kwpeak_norm>SegmentExceptTable[[#This Row],[kW Boundary]],kwpeak_norm<SegmentExceptTable[[#This Row],[kW Exception]]),AND(kwhmo_norm>SegmentExceptTable[[#This Row],[Boundary M/L]],kwhmo_norm<SegmentExceptTable[[#This Row],[Exception M/L]])),1,0)","v":0}]
[null,null,null,"Dining - Bar Lounge / Leisure",null,"IN",null,"08OALT007N",7,null,null,null,null,null,null,null,null,null,"Lobby—Hotel",0.94,3500,null,{"$f":"\"[\"&StipulatedWattage_Table[[#This Row],[Lamp Qty]]&\"L - \"&StipulatedWattage_Table[[#This Row],[Actual lamp wattage]]&\"W\"&IF(StipulatedWattage_Table[[#This Row],[Ballast Type]]=\"\",\"\",\" - \"&TRIM(StipulatedWattage_Table[[#This Row],[Ballast Type]]))&\"]\"","v":"[2L - 40W]"},2,40,null,null,58,null,null,null,null,null,null,null,null,null,null,null,null,null,null,null,null,null,null,null,76,{"$f":"SegmentExceptTable[[#This Row],[Numbers]]/$BP$4","v":0.12687813021702837},{"$f":"SegmentExceptTable[[#This Row],[kW Boundary]]+(0.05*SegmentExceptTable[[#This Row],[kW Boundary]])","v":0.1332220367278798},{"$f":"$BP$6*SegmentExceptTable[[#This Row],[kW Boundary]]+$BP$7","v":0.16572176375522657},{"$f":"$BP$8*SegmentExceptTable[[#This Row],[kW Boundary]]+$BP$9","v":0.10623135518084863},{"$f":"SegmentExceptTable[[#This Row],[Boundary S/M]]+(0.05*SegmentExceptTable[[#This Row],[Boundary S/M]])","v":0.11154292293989106},{"$f":"IF(AND(AND(kwpeak_norm>SegmentExceptTable[[#This Row],[kW Boundary]],kwpeak_norm<SegmentExceptTable[[#This Row],[kW Exception]]),AND(kwhmo_norm>SegmentExceptTable[[#This Row],[Boundary S/M]],kwhmo_norm<SegmentExceptTable[[#This Row],[Exception S/M]])),1,0)","v":0},{"$f":"$BP$10*SegmentExceptTable[[#This Row],[kW Boundary]]+$BP$11","v":0.13810813628037777},{"$f":"$BP$12*SegmentExceptTable[[#This Row],[kW Boundary]]+$BP$13","v":0.51059712641632093},{"$f":"SegmentExceptTable[[#This Row],[Boundary M/L]]+(0.05*SegmentExceptTable[[#This Row],[Boundary M/L]])","v":0.53612698273713699},{"$f":"IF(AND(AND(kwpeak_norm>SegmentExceptTable[[#This Row],[kW Boundary]],kwpeak_norm<SegmentExceptTable[[#This Row],[kW Exception]]),AND(kwhmo_norm>SegmentExceptTable[[#This Row],[Boundary M/L]],kwhmo_norm<SegmentExceptTable[[#This Row],[Exception M/L]])),1,0)","v":0}]
[null,null,null,"Dining - Cafeteria / Fast Food",null,"KS",null,"08PRSV031M",31,null,null,null,null,null,null,null,null,null,"Lobby—Other",0.94,3500,null,{"$f":"\"[\"&StipulatedWattage_Table[[#This Row],[Lamp Qty]]&\"L - \"&StipulatedWattage_Table[[#This Row],[Actual lamp wattage]]&\"W\"&IF(StipulatedWattage_Table[[#This Row],[Ballast Type]]=\"\",\"\",\" - \"&TRIM(StipulatedWattage_Table[[#This Row],[Ballast Type]]))&\"]\"","v":"[2L - 59W - IS L]"},2,59,"IS L",0.78,96,null,null,null,null,null,null,null,null,null,null,null,null,null,null,null,null,null,null,null,77,{"$f":"SegmentExceptTable[[#This Row],[Numbers]]/$BP$4","v":0.1285475792988314},{"$f":"SegmentExceptTable[[#This Row],[kW Boundary]]+(0.05*SegmentExceptTable[[#This Row],[kW Boundary]])","v":0.13497495826377298},{"$f":"$BP$6*SegmentExceptTable[[#This Row],[kW Boundary]]+$BP$7","v":0.16814859405059288},{"$f":"$BP$8*SegmentExceptTable[[#This Row],[kW Boundary]]+$BP$9","v":0.10508291878541773},{"$f":"SegmentExceptTable[[#This Row],[Boundary S/M]]+(0.05*SegmentExceptTable[[#This Row],[Boundary S/M]])","v":0.11033706472468861},{"$f":"IF(AND(AND(kwpeak_norm>SegmentExceptTable[[#This Row],[kW Boundary]],kwpeak_norm<SegmentExceptTable[[#This Row],[kW Exception]]),AND(kwhmo_norm>SegmentExceptTable[[#This Row],[Boundary S/M]],kwhmo_norm<SegmentExceptTable[[#This Row],[Exception S/M]])),1,0)","v":0},{"$f":"$BP$10*SegmentExceptTable[[#This Row],[kW Boundary]]+$BP$11","v":0.14163518992261637},{"$f":"$BP$12*SegmentExceptTable[[#This Row],[kW Boundary]]+$BP$13","v":0.50980693139253219},{"$f":"SegmentExceptTable[[#This Row],[Boundary M/L]]+(0.05*SegmentExceptTable[[#This Row],[Boundary M/L]])","v":0.53529727796215876},{"$f":"IF(AND(AND(kwpeak_norm>SegmentExceptTable[[#This Row],[kW Boundary]],kwpeak_norm<SegmentExceptTable[[#This Row],[kW Exception]]),AND(kwhmo_norm>SegmentExceptTable[[#This Row],[Boundary M/L]],kwhmo_norm<SegmentExceptTable[[#This Row],[Exception M/L]])),1,0)","v":0}]
[null,null,null,"Dining - Restaurant",null,"KY",null,"08REFS032M",32,null,null,null,null,null,null,null,null,null,"Locker/Dressing Room",0.89,null,null,{"$f":"\"[\"&StipulatedWattage_Table[[#This Row],[Lamp Qty]]&\"L - \"&StipulatedWattage_Table[[#This Row],[Actual lamp wattage]]&\"W\"&IF(StipulatedWattage_Table[[#This Row],[Ballast Type]]=\"\",\"\",\" - \"&TRIM(StipulatedWattage_Table[[#This Row],[Ballast Type]]))&\"]\"","v":"[2L - 59W - IS VH]"},2,59,"IS VH",1.1499999999999999,145,null,null,null,null,null,null,null,null,null,null,null,null,null,null,null,null,null,null,null,78,{"$f":"SegmentExceptTable[[#This Row],[Numbers]]/$BP$4","v":0.1302170283806344},{"$f":"SegmentExceptTable[[#This Row],[kW Boundary]]+(0.05*SegmentExceptTable[[#This Row],[kW Boundary]])","v":0.13672787979966611},{"$f":"$BP$6*SegmentExceptTable[[#This Row],[kW Boundary]]+$BP$7","v":0.17057542434595913},{"$f":"$BP$8*SegmentExceptTable[[#This Row],[kW Boundary]]+$BP$9","v":0.10393448238998686},{"$f":"SegmentExceptTable[[#This Row],[Boundary S/M]]+(0.05*SegmentExceptTable[[#This Row],[Boundary S/M]])","v":0.1091312065094862},{"$f":"IF(AND(AND(kwpeak_norm>SegmentExceptTable[[#This Row],[kW Boundary]],kwpeak_norm<SegmentExceptTable[[#This Row],[kW Exception]]),AND(kwhmo_norm>SegmentExceptTable[[#This Row],[Boundary S/M]],kwhmo_norm<SegmentExceptTable[[#This Row],[Exception S/M]])),1,0)","v":0},{"$f":"$BP$10*SegmentExceptTable[[#This Row],[kW Boundary]]+$BP$11","v":0.14516224356485485},{"$f":"$BP$12*SegmentExceptTable[[#This Row],[kW Boundary]]+$BP$13","v":0.50901673636874345},{"$f":"SegmentExceptTable[[#This Row],[Boundary M/L]]+(0.05*SegmentExceptTable[[#This Row],[Boundary M/L]])","v":0.53446757318718063},{"$f":"IF(AND(AND(kwpeak_norm>SegmentExceptTable[[#This Row],[kW Boundary]],kwpeak_norm<SegmentExceptTable[[#This Row],[kW Exception]]),AND(kwhmo_norm>SegmentExceptTable[[#This Row],[Boundary M/L]],kwhmo_norm<SegmentExceptTable[[#This Row],[Exception M/L]])),1,0)","v":0}]
[null,null,null,"Dormitory",null,"LA",null,"08RGNSV006",6,null,null,null,null,null,null,null,null,null,"Lounge/Recreation",0.89,null,null,{"$f":"\"[\"&StipulatedWattage_Table[[#This Row],[Lamp Qty]]&\"L - \"&StipulatedWattage_Table[[#This Row],[Actual lamp wattage]]&\"W\"&IF(StipulatedWattage_Table[[#This Row],[Ballast Type]]=\"\",\"\",\" - \"&TRIM(StipulatedWattage_Table[[#This Row],[Ballast Type]]))&\"]\"","v":"[2L - 120W - IS N]"},2,120,"IS N",0.88,110,null,null,null,null,null,null,null,null,null,null,null,null,null,null,null,null,null,null,null,79,{"$f":"SegmentExceptTable[[#This Row],[Numbers]]/$BP$4","v":0.1318864774624374},{"$f":"SegmentExceptTable[[#This Row],[kW Boundary]]+(0.05*SegmentExceptTable[[#This Row],[kW Boundary]])","v":0.13848080133555926},{"$f":"$BP$6*SegmentExceptTable[[#This Row],[kW Boundary]]+$BP$7","v":0.1730022546413254},{"$f":"$BP$8*SegmentExceptTable[[#This Row],[kW Boundary]]+$BP$9","v":0.10278604599455599},{"$f":"SegmentExceptTable[[#This Row],[Boundary S/M]]+(0.05*SegmentExceptTable[[#This Row],[Boundary S/M]])","v":0.10792534829428378},{"$f":"IF(AND(AND(kwpeak_norm>SegmentExceptTable[[#This Row],[kW Boundary]],kwpeak_norm<SegmentExceptTable[[#This Row],[kW Exception]]),AND(kwhmo_norm>SegmentExceptTable[[#This Row],[Boundary S/M]],kwhmo_norm<SegmentExceptTable[[#This Row],[Exception S/M]])),1,0)","v":0},{"$f":"$BP$10*SegmentExceptTable[[#This Row],[kW Boundary]]+$BP$11","v":0.1486892972070934},{"$f":"$BP$12*SegmentExceptTable[[#This Row],[kW Boundary]]+$BP$13","v":0.50822654134495471},{"$f":"SegmentExceptTable[[#This Row],[Boundary M/L]]+(0.05*SegmentExceptTable[[#This Row],[Boundary M/L]])","v":0.5336378684122024},{"$f":"IF(AND(AND(kwpeak_norm>SegmentExceptTable[[#This Row],[kW Boundary]],kwpeak_norm<SegmentExceptTable[[#This Row],[kW Exception]]),AND(kwhmo_norm>SegmentExceptTable[[#This Row],[Boundary M/L]],kwhmo_norm<SegmentExceptTable[[#This Row],[Exception M/L]])),1,0)","v":0}]
[null,null,null,"Duplex",null,"MA",null,"08RGNSV023",23,null,null,null,null,null,null,null,null,null,"Main Floor Bldg. Lobbies (Except Mall Concourses)",0.94,null,null,{"$f":"\"[\"&StipulatedWattage_Table[[#This Row],[Lamp Qty]]&\"L - \"&StipulatedWattage_Table[[#This Row],[Actual lamp wattage]]&\"W\"&IF(StipulatedWattage_Table[[#This Row],[Ballast Type]]=\"\",\"\",\" - \"&TRIM(StipulatedWattage_Table[[#This Row],[Ballast Type]]))&\"]\"","v":"[2L - 120W - MG]"},2,120,"MG ",1,113,null,null,null,null,null,null,null,null,null,null,null,null,null,null,null,null,null,null,null,80,{"$f":"SegmentExceptTable[[#This Row],[Numbers]]/$BP$4","v":0.13355592654424039},{"$f":"SegmentExceptTable[[#This Row],[kW Boundary]]+(0.05*SegmentExceptTable[[#This Row],[kW Boundary]])","v":0.14023372287145242},{"$f":"$BP$6*SegmentExceptTable[[#This Row],[kW Boundary]]+$BP$7","v":0.17542908493669168},{"$f":"$BP$8*SegmentExceptTable[[#This Row],[kW Boundary]]+$BP$9","v":0.10163760959912511},{"$f":"SegmentExceptTable[[#This Row],[Boundary S/M]]+(0.05*SegmentExceptTable[[#This Row],[Boundary S/M]])","v":0.10671949007908137},{"$f":"IF(AND(AND(kwpeak_norm>SegmentExceptTable[[#This Row],[kW Boundary]],kwpeak_norm<SegmentExceptTable[[#This Row],[kW Exception]]),AND(kwhmo_norm>SegmentExceptTable[[#This Row],[Boundary S/M]],kwhmo_norm<SegmentExceptTable[[#This Row],[Exception S/M]])),1,0)","v":0},{"$f":"$BP$10*SegmentExceptTable[[#This Row],[kW Boundary]]+$BP$11","v":0.15221635084933188},{"$f":"$BP$12*SegmentExceptTable[[#This Row],[kW Boundary]]+$BP$13","v":0.50743634632116597},{"$f":"SegmentExceptTable[[#This Row],[Boundary M/L]]+(0.05*SegmentExceptTable[[#This Row],[Boundary M/L]])","v":0.53280816363722427},{"$f":"IF(AND(AND(kwpeak_norm>SegmentExceptTable[[#This Row],[kW Boundary]],kwpeak_norm<SegmentExceptTable[[#This Row],[kW Exception]]),AND(kwhmo_norm>SegmentExceptTable[[#This Row],[Boundary M/L]],kwhmo_norm<SegmentExceptTable[[#This Row],[Exception M/L]])),1,0)","v":0}]
[null,null,null,"Exercise Center/Gymnasium",null,"MD",null,"08RGNSV06A","6A",null,null,null,null,null,null,null,null,null,"Mall and Atria",0.94,null,null,{"$f":"\"[\"&StipulatedWattage_Table[[#This Row],[Lamp Qty]]&\"L - \"&StipulatedWattage_Table[[#This Row],[Actual lamp wattage]]&\"W\"&IF(StipulatedWattage_Table[[#This Row],[Ballast Type]]=\"\",\"\",\" - \"&TRIM(StipulatedWattage_Table[[#This Row],[Ballast Type]]))&\"]\"","v":"[2L - 120W]"},2,120,null,null,86,null,null,null,null,null,null,null,null,null,null,null,null,null,null,null,null,null,null,null,81,{"$f":"SegmentExceptTable[[#This Row],[Numbers]]/$BP$4","v":0.13522537562604339},{"$f":"SegmentExceptTable[[#This Row],[kW Boundary]]+(0.05*SegmentExceptTable[[#This Row],[kW Boundary]])","v":0.14198664440734557},{"$f":"$BP$6*SegmentExceptTable[[#This Row],[kW Boundary]]+$BP$7","v":0.17785591523205793},{"$f":"$BP$8*SegmentExceptTable[[#This Row],[kW Boundary]]+$BP$9","v":0.10048917320369424},{"$f":"SegmentExceptTable[[#This Row],[Boundary S/M]]+(0.05*SegmentExceptTable[[#This Row],[Boundary S/M]])","v":0.10551363186387895},{"$f":"IF(AND(AND(kwpeak_norm>SegmentExceptTable[[#This Row],[kW Boundary]],kwpeak_norm<SegmentExceptTable[[#This Row],[kW Exception]]),AND(kwhmo_norm>SegmentExceptTable[[#This Row],[Boundary S/M]],kwhmo_norm<SegmentExceptTable[[#This Row],[Exception S/M]])),1,0)","v":0},{"$f":"$BP$10*SegmentExceptTable[[#This Row],[kW Boundary]]+$BP$11","v":0.15574340449157043},{"$f":"$BP$12*SegmentExceptTable[[#This Row],[kW Boundary]]+$BP$13","v":0.50664615129737711},{"$f":"SegmentExceptTable[[#This Row],[Boundary M/L]]+(0.05*SegmentExceptTable[[#This Row],[Boundary M/L]])","v":0.53197845886224593},{"$f":"IF(AND(AND(kwpeak_norm>SegmentExceptTable[[#This Row],[kW Boundary]],kwpeak_norm<SegmentExceptTable[[#This Row],[kW Exception]]),AND(kwhmo_norm>SegmentExceptTable[[#This Row],[Boundary M/L]],kwhmo_norm<SegmentExceptTable[[#This Row],[Exception M/L]])),1,0)","v":0}]
[null,null,null,"Financial Institution",null,"ME",null,"08RGNSV06B","6B",null,null,null,null,null,null,null,null,null,"Mall Concourses",0.94,null,null,{"$f":"\"[\"&StipulatedWattage_Table[[#This Row],[Lamp Qty]]&\"L - \"&StipulatedWattage_Table[[#This Row],[Actual lamp wattage]]&\"W\"&IF(StipulatedWattage_Table[[#This Row],[Ballast Type]]=\"\",\"\",\" - \"&TRIM(StipulatedWattage_Table[[#This Row],[Ballast Type]]))&\"]\"","v":"[2L - 75W - MG]"},2,75,"MG ",1,123,null,null,null,null,null,null,null,null,null,null,null,null,null,null,null,null,null,null,null,82,{"$f":"SegmentExceptTable[[#This Row],[Numbers]]/$BP$4","v":0.13689482470784642},{"$f":"SegmentExceptTable[[#This Row],[kW Boundary]]+(0.05*SegmentExceptTable[[#This Row],[kW Boundary]])","v":0.14373956594323875},{"$f":"$BP$6*SegmentExceptTable[[#This Row],[kW Boundary]]+$BP$7","v":0.18028274552742424},{"$f":"$BP$8*SegmentExceptTable[[#This Row],[kW Boundary]]+$BP$9","v":9.9340736808263358E-2},{"$f":"SegmentExceptTable[[#This Row],[Boundary S/M]]+(0.05*SegmentExceptTable[[#This Row],[Boundary S/M]])","v":0.10430777364867652},{"$f":"IF(AND(AND(kwpeak_norm>SegmentExceptTable[[#This Row],[kW Boundary]],kwpeak_norm<SegmentExceptTable[[#This Row],[kW Exception]]),AND(kwhmo_norm>SegmentExceptTable[[#This Row],[Boundary S/M]],kwhmo_norm<SegmentExceptTable[[#This Row],[Exception S/M]])),1,0)","v":0},{"$f":"$BP$10*SegmentExceptTable[[#This Row],[kW Boundary]]+$BP$11","v":0.15927045813380897},{"$f":"$BP$12*SegmentExceptTable[[#This Row],[kW Boundary]]+$BP$13","v":0.50585595627358837},{"$f":"SegmentExceptTable[[#This Row],[Boundary M/L]]+(0.05*SegmentExceptTable[[#This Row],[Boundary M/L]])","v":0.5311487540872678},{"$f":"IF(AND(AND(kwpeak_norm>SegmentExceptTable[[#This Row],[kW Boundary]],kwpeak_norm<SegmentExceptTable[[#This Row],[kW Exception]]),AND(kwhmo_norm>SegmentExceptTable[[#This Row],[Boundary M/L]],kwhmo_norm<SegmentExceptTable[[#This Row],[Exception M/L]])),1,0)","v":0}]
[null,null,null,"General commercial/industrial work buildings",null,"MI",null,"08RNM06135",6,null,null,null,null,null,null,null,null,null,"Mall, Arcade, Or Atrium",0.94,null,null,{"$f":"\"[\"&StipulatedWattage_Table[[#This Row],[Lamp Qty]]&\"L - \"&StipulatedWattage_Table[[#This Row],[Actual lamp wattage]]&\"W\"&IF(StipulatedWattage_Table[[#This Row],[Ballast Type]]=\"\",\"\",\" - \"&TRIM(StipulatedWattage_Table[[#This Row],[Ballast Type]]))&\"]\"","v":"[2L - 75W]"},2,75,null,null,106,null,null,null,null,null,null,null,null,null,null,null,null,null,null,null,null,null,null,null,83,{"$f":"SegmentExceptTable[[#This Row],[Numbers]]/$BP$4","v":0.13856427378964942},{"$f":"SegmentExceptTable[[#This Row],[kW Boundary]]+(0.05*SegmentExceptTable[[#This Row],[kW Boundary]])","v":0.14549248747913188},{"$f":"$BP$6*SegmentExceptTable[[#This Row],[kW Boundary]]+$BP$7","v":0.18270957582279052},{"$f":"$BP$8*SegmentExceptTable[[#This Row],[kW Boundary]]+$BP$9","v":9.8192300412832487E-2},{"$f":"SegmentExceptTable[[#This Row],[Boundary S/M]]+(0.05*SegmentExceptTable[[#This Row],[Boundary S/M]])","v":0.10310191543347411},{"$f":"IF(AND(AND(kwpeak_norm>SegmentExceptTable[[#This Row],[kW Boundary]],kwpeak_norm<SegmentExceptTable[[#This Row],[kW Exception]]),AND(kwhmo_norm>SegmentExceptTable[[#This Row],[Boundary S/M]],kwhmo_norm<SegmentExceptTable[[#This Row],[Exception S/M]])),1,0)","v":0},{"$f":"$BP$10*SegmentExceptTable[[#This Row],[kW Boundary]]+$BP$11","v":0.16279751177604751},{"$f":"$BP$12*SegmentExceptTable[[#This Row],[kW Boundary]]+$BP$13","v":0.50506576124979963},{"$f":"SegmentExceptTable[[#This Row],[Boundary M/L]]+(0.05*SegmentExceptTable[[#This Row],[Boundary M/L]])","v":0.53031904931228957},{"$f":"IF(AND(AND(kwpeak_norm>SegmentExceptTable[[#This Row],[kW Boundary]],kwpeak_norm<SegmentExceptTable[[#This Row],[kW Exception]]),AND(kwhmo_norm>SegmentExceptTable[[#This Row],[Boundary M/L]],kwhmo_norm<SegmentExceptTable[[#This Row],[Exception M/L]])),1,0)","v":0}]
[null,null,null,"Grocery Stores",null,"MN",null,"08RNM23135",23,null,null,null,null,null,null,null,null,null,"Manufacturing Facility",0.96,5500,null,{"$f":"\"[\"&StipulatedWattage_Table[[#This Row],[Lamp Qty]]&\"L - \"&StipulatedWattage_Table[[#This Row],[Actual lamp wattage]]&\"W\"&IF(StipulatedWattage_Table[[#This Row],[Ballast Type]]=\"\",\"\",\" - \"&TRIM(StipulatedWattage_Table[[#This Row],[Ballast Type]]))&\"]\"","v":"[2L - 86W - IS N]"},2,86,"IS N",0.88,182,null,null,null,null,null,null,null,null,null,null,null,null,null,null,null,null,null,null,null,84,{"$f":"SegmentExceptTable[[#This Row],[Numbers]]/$BP$4","v":0.14023372287145242},{"$f":"SegmentExceptTable[[#This Row],[kW Boundary]]+(0.05*SegmentExceptTable[[#This Row],[kW Boundary]])","v":0.14724540901502503},{"$f":"$BP$6*SegmentExceptTable[[#This Row],[kW Boundary]]+$BP$7","v":0.18513640611815679},{"$f":"$BP$8*SegmentExceptTable[[#This Row],[kW Boundary]]+$BP$9","v":9.7043864017401615E-2},{"$f":"SegmentExceptTable[[#This Row],[Boundary S/M]]+(0.05*SegmentExceptTable[[#This Row],[Boundary S/M]])","v":0.10189605721827169},{"$f":"IF(AND(AND(kwpeak_norm>SegmentExceptTable[[#This Row],[kW Boundary]],kwpeak_norm<SegmentExceptTable[[#This Row],[kW Exception]]),AND(kwhmo_norm>SegmentExceptTable[[#This Row],[Boundary S/M]],kwhmo_norm<SegmentExceptTable[[#This Row],[Exception S/M]])),1,0)","v":0},{"$f":"$BP$10*SegmentExceptTable[[#This Row],[kW Boundary]]+$BP$11","v":0.166324565418286},{"$f":"$BP$12*SegmentExceptTable[[#This Row],[kW Boundary]]+$BP$13","v":0.50427556622601089},{"$f":"SegmentExceptTable[[#This Row],[Boundary M/L]]+(0.05*SegmentExceptTable[[#This Row],[Boundary M/L]])","v":0.52948934453731145},{"$f":"IF(AND(AND(kwpeak_norm>SegmentExceptTable[[#This Row],[kW Boundary]],kwpeak_norm<SegmentExceptTable[[#This Row],[kW Exception]]),AND(kwhmo_norm>SegmentExceptTable[[#This Row],[Boundary M/L]],kwhmo_norm<SegmentExceptTable[[#This Row],[Exception M/L]])),1,0)","v":0}]
[null,null,null,"Healthcare - Hospital",null,"MO",null,"08SLCO0011",11,null,null,null,null,null,null,null,null,null,"Detailed Manufacturing Area",0.96,5500,null,{"$f":"\"[\"&StipulatedWattage_Table[[#This Row],[Lamp Qty]]&\"L - \"&StipulatedWattage_Table[[#This Row],[Actual lamp wattage]]&\"W\"&IF(StipulatedWattage_Table[[#This Row],[Ballast Type]]=\"\",\"\",\" - \"&TRIM(StipulatedWattage_Table[[#This Row],[Ballast Type]]))&\"]\"","v":"[2L - 95W - MG]"},2,95,"MG ",1,155,null,null,null,null,null,null,null,null,null,null,null,null,null,null,null,null,null,null,null,85,{"$f":"SegmentExceptTable[[#This Row],[Numbers]]/$BP$4","v":0.14190317195325541},{"$f":"SegmentExceptTable[[#This Row],[kW Boundary]]+(0.05*SegmentExceptTable[[#This Row],[kW Boundary]])","v":0.14899833055091818},{"$f":"$BP$6*SegmentExceptTable[[#This Row],[kW Boundary]]+$BP$7","v":0.18756323641352304},{"$f":"$BP$8*SegmentExceptTable[[#This Row],[kW Boundary]]+$BP$9","v":9.5895427621970744E-2},{"$f":"SegmentExceptTable[[#This Row],[Boundary S/M]]+(0.05*SegmentExceptTable[[#This Row],[Boundary S/M]])","v":0.10069019900306928},{"$f":"IF(AND(AND(kwpeak_norm>SegmentExceptTable[[#This Row],[kW Boundary]],kwpeak_norm<SegmentExceptTable[[#This Row],[kW Exception]]),AND(kwhmo_norm>SegmentExceptTable[[#This Row],[Boundary S/M]],kwhmo_norm<SegmentExceptTable[[#This Row],[Exception S/M]])),1,0)","v":0},{"$f":"$BP$10*SegmentExceptTable[[#This Row],[kW Boundary]]+$BP$11","v":0.16985161906052454},{"$f":"$BP$12*SegmentExceptTable[[#This Row],[kW Boundary]]+$BP$13","v":0.50348537120222214},{"$f":"SegmentExceptTable[[#This Row],[Boundary M/L]]+(0.05*SegmentExceptTable[[#This Row],[Boundary M/L]])","v":0.52865963976233321},{"$f":"IF(AND(AND(kwpeak_norm>SegmentExceptTable[[#This Row],[kW Boundary]],kwpeak_norm<SegmentExceptTable[[#This Row],[kW Exception]]),AND(kwhmo_norm>SegmentExceptTable[[#This Row],[Boundary M/L]],kwhmo_norm<SegmentExceptTable[[#This Row],[Exception M/L]])),1,0)","v":0}]
[null,null,null,"Healthcare - Medical buildings and clinics",null,"MS",null,"08SLCU012E",12,null,null,null,null,null,null,null,null,null,"Manufacturing: Equipment Room",0.96,5500,null,{"$f":"\"[\"&StipulatedWattage_Table[[#This Row],[Lamp Qty]]&\"L - \"&StipulatedWattage_Table[[#This Row],[Actual lamp wattage]]&\"W\"&IF(StipulatedWattage_Table[[#This Row],[Ballast Type]]=\"\",\"\",\" - \"&TRIM(StipulatedWattage_Table[[#This Row],[Ballast Type]]))&\"]\"","v":"[3L - 100W]"},3,100,null,null,216,null,null,null,null,null,null,null,null,null,null,null,null,null,null,null,null,null,null,null,86,{"$f":"SegmentExceptTable[[#This Row],[Numbers]]/$BP$4","v":0.14357262103505844},{"$f":"SegmentExceptTable[[#This Row],[kW Boundary]]+(0.05*SegmentExceptTable[[#This Row],[kW Boundary]])","v":0.15075125208681137},{"$f":"$BP$6*SegmentExceptTable[[#This Row],[kW Boundary]]+$BP$7","v":0.18999006670888935},{"$f":"$BP$8*SegmentExceptTable[[#This Row],[kW Boundary]]+$BP$9","v":9.4746991226539845E-2},{"$f":"SegmentExceptTable[[#This Row],[Boundary S/M]]+(0.05*SegmentExceptTable[[#This Row],[Boundary S/M]])","v":9.9484340787866832E-2},{"$f":"IF(AND(AND(kwpeak_norm>SegmentExceptTable[[#This Row],[kW Boundary]],kwpeak_norm<SegmentExceptTable[[#This Row],[kW Exception]]),AND(kwhmo_norm>SegmentExceptTable[[#This Row],[Boundary S/M]],kwhmo_norm<SegmentExceptTable[[#This Row],[Exception S/M]])),1,0)","v":0},{"$f":"$BP$10*SegmentExceptTable[[#This Row],[kW Boundary]]+$BP$11","v":0.17337867270276308},{"$f":"$BP$12*SegmentExceptTable[[#This Row],[kW Boundary]]+$BP$13","v":0.5026951761784334},{"$f":"SegmentExceptTable[[#This Row],[Boundary M/L]]+(0.05*SegmentExceptTable[[#This Row],[Boundary M/L]])","v":0.52782993498735509},{"$f":"IF(AND(AND(kwpeak_norm>SegmentExceptTable[[#This Row],[kW Boundary]],kwpeak_norm<SegmentExceptTable[[#This Row],[kW Exception]]),AND(kwhmo_norm>SegmentExceptTable[[#This Row],[Boundary M/L]],kwhmo_norm<SegmentExceptTable[[#This Row],[Exception M/L]])),1,0)","v":0}]
[null,null,null,"Healthcare - Nursing homes",null,"MT",null,"08SLCU012F",12,null,null,null,null,null,null,null,null,null,"Manufacturing: High Bay Area",0.96,5500,null,{"$f":"\"[\"&StipulatedWattage_Table[[#This Row],[Lamp Qty]]&\"L - \"&StipulatedWattage_Table[[#This Row],[Actual lamp wattage]]&\"W\"&IF(StipulatedWattage_Table[[#This Row],[Ballast Type]]=\"\",\"\",\" - \"&TRIM(StipulatedWattage_Table[[#This Row],[Ballast Type]]))&\"]\"","v":"[3L - 28W - RS/PRS H]"},3,28,"RS/PRS H",1.1000000000000001,94,null,null,null,null,null,null,null,null,null,null,null,null,null,null,null,null,null,null,null,87,{"$f":"SegmentExceptTable[[#This Row],[Numbers]]/$BP$4","v":0.14524207011686144},{"$f":"SegmentExceptTable[[#This Row],[kW Boundary]]+(0.05*SegmentExceptTable[[#This Row],[kW Boundary]])","v":0.15250417362270452},{"$f":"$BP$6*SegmentExceptTable[[#This Row],[kW Boundary]]+$BP$7","v":0.19241689700425563},{"$f":"$BP$8*SegmentExceptTable[[#This Row],[kW Boundary]]+$BP$9","v":9.3598554831108974E-2},{"$f":"SegmentExceptTable[[#This Row],[Boundary S/M]]+(0.05*SegmentExceptTable[[#This Row],[Boundary S/M]])","v":9.8278482572664416E-2},{"$f":"IF(AND(AND(kwpeak_norm>SegmentExceptTable[[#This Row],[kW Boundary]],kwpeak_norm<SegmentExceptTable[[#This Row],[kW Exception]]),AND(kwhmo_norm>SegmentExceptTable[[#This Row],[Boundary S/M]],kwhmo_norm<SegmentExceptTable[[#This Row],[Exception S/M]])),1,0)","v":0},{"$f":"$BP$10*SegmentExceptTable[[#This Row],[kW Boundary]]+$BP$11","v":0.17690572634500162},{"$f":"$BP$12*SegmentExceptTable[[#This Row],[kW Boundary]]+$BP$13","v":0.50190498115464455},{"$f":"SegmentExceptTable[[#This Row],[Boundary M/L]]+(0.05*SegmentExceptTable[[#This Row],[Boundary M/L]])","v":0.52700023021237674},{"$f":"IF(AND(AND(kwpeak_norm>SegmentExceptTable[[#This Row],[kW Boundary]],kwpeak_norm<SegmentExceptTable[[#This Row],[kW Exception]]),AND(kwhmo_norm>SegmentExceptTable[[#This Row],[Boundary M/L]],kwhmo_norm<SegmentExceptTable[[#This Row],[Exception M/L]])),1,0)","v":0}]
[null,null,null,"Healthcare - other",null,"NC",null,"08SLCU012P",12,null,null,null,null,null,null,null,null,null,"Manufacturing: Low Bay Area",0.96,5500,null,{"$f":"\"[\"&StipulatedWattage_Table[[#This Row],[Lamp Qty]]&\"L - \"&StipulatedWattage_Table[[#This Row],[Actual lamp wattage]]&\"W\"&IF(StipulatedWattage_Table[[#This Row],[Ballast Type]]=\"\",\"\",\" - \"&TRIM(StipulatedWattage_Table[[#This Row],[Ballast Type]]))&\"]\"","v":"[3L - 32W - IS H]"},3,32,"IS H",1.1000000000000001,95,null,null,null,null,null,null,null,null,null,null,null,null,null,null,null,null,null,null,null,88,{"$f":"SegmentExceptTable[[#This Row],[Numbers]]/$BP$4","v":0.14691151919866444},{"$f":"SegmentExceptTable[[#This Row],[kW Boundary]]+(0.05*SegmentExceptTable[[#This Row],[kW Boundary]])","v":0.15425709515859765},{"$f":"$BP$6*SegmentExceptTable[[#This Row],[kW Boundary]]+$BP$7","v":0.1948437272996219},{"$f":"$BP$8*SegmentExceptTable[[#This Row],[kW Boundary]]+$BP$9","v":9.2450118435678103E-2},{"$f":"SegmentExceptTable[[#This Row],[Boundary S/M]]+(0.05*SegmentExceptTable[[#This Row],[Boundary S/M]])","v":9.7072624357462001E-2},{"$f":"IF(AND(AND(kwpeak_norm>SegmentExceptTable[[#This Row],[kW Boundary]],kwpeak_norm<SegmentExceptTable[[#This Row],[kW Exception]]),AND(kwhmo_norm>SegmentExceptTable[[#This Row],[Boundary S/M]],kwhmo_norm<SegmentExceptTable[[#This Row],[Exception S/M]])),1,0)","v":0},{"$f":"$BP$10*SegmentExceptTable[[#This Row],[kW Boundary]]+$BP$11","v":0.18043277998724011},{"$f":"$BP$12*SegmentExceptTable[[#This Row],[kW Boundary]]+$BP$13","v":0.5011147861308558},{"$f":"SegmentExceptTable[[#This Row],[Boundary M/L]]+(0.05*SegmentExceptTable[[#This Row],[Boundary M/L]])","v":0.52617052543739862},{"$f":"IF(AND(AND(kwpeak_norm>SegmentExceptTable[[#This Row],[kW Boundary]],kwpeak_norm<SegmentExceptTable[[#This Row],[kW Exception]]),AND(kwhmo_norm>SegmentExceptTable[[#This Row],[Boundary M/L]],kwhmo_norm<SegmentExceptTable[[#This Row],[Exception M/L]])),1,0)","v":0}]
[null,null,null,"Hotel banquet/conference/exhibition hall",null,"ND",null,"08SPCL0003",3,null,null,null,null,null,null,null,null,null,"Medical and Clinical Care",0.84,4200,null,{"$f":"\"[\"&StipulatedWattage_Table[[#This Row],[Lamp Qty]]&\"L - \"&StipulatedWattage_Table[[#This Row],[Actual lamp wattage]]&\"W\"&IF(StipulatedWattage_Table[[#This Row],[Ballast Type]]=\"\",\"\",\" - \"&TRIM(StipulatedWattage_Table[[#This Row],[Ballast Type]]))&\"]\"","v":"[3L - 32W - IS L]"},3,32,"IS L",0.78,73,null,null,null,null,null,null,null,null,null,null,null,null,null,null,null,null,null,null,null,89,{"$f":"SegmentExceptTable[[#This Row],[Numbers]]/$BP$4","v":0.14858096828046743},{"$f":"SegmentExceptTable[[#This Row],[kW Boundary]]+(0.05*SegmentExceptTable[[#This Row],[kW Boundary]])","v":0.1560100166944908},{"$f":"$BP$6*SegmentExceptTable[[#This Row],[kW Boundary]]+$BP$7","v":0.19727055759498816},{"$f":"$BP$8*SegmentExceptTable[[#This Row],[kW Boundary]]+$BP$9","v":9.1301682040247231E-2},{"$f":"SegmentExceptTable[[#This Row],[Boundary S/M]]+(0.05*SegmentExceptTable[[#This Row],[Boundary S/M]])","v":9.5866766142259599E-2},{"$f":"IF(AND(AND(kwpeak_norm>SegmentExceptTable[[#This Row],[kW Boundary]],kwpeak_norm<SegmentExceptTable[[#This Row],[kW Exception]]),AND(kwhmo_norm>SegmentExceptTable[[#This Row],[Boundary S/M]],kwhmo_norm<SegmentExceptTable[[#This Row],[Exception S/M]])),1,0)","v":0},{"$f":"$BP$10*SegmentExceptTable[[#This Row],[kW Boundary]]+$BP$11","v":0.18395983362947865},{"$f":"$BP$12*SegmentExceptTable[[#This Row],[kW Boundary]]+$BP$13","v":0.50032459110706706},{"$f":"SegmentExceptTable[[#This Row],[Boundary M/L]]+(0.05*SegmentExceptTable[[#This Row],[Boundary M/L]])","v":0.52534082066242038},{"$f":"IF(AND(AND(kwpeak_norm>SegmentExceptTable[[#This Row],[kW Boundary]],kwpeak_norm<SegmentExceptTable[[#This Row],[kW Exception]]),AND(kwhmo_norm>SegmentExceptTable[[#This Row],[Boundary M/L]],kwhmo_norm<SegmentExceptTable[[#This Row],[Exception M/L]])),1,0)","v":0}]
[null,null,null,"Hotel/motel",null,"NE",null,"08SSLR0006",6,null,null,null,null,null,null,null,null,null,"Motel",0.51,3500,null,{"$f":"\"[\"&StipulatedWattage_Table[[#This Row],[Lamp Qty]]&\"L - \"&StipulatedWattage_Table[[#This Row],[Actual lamp wattage]]&\"W\"&IF(StipulatedWattage_Table[[#This Row],[Ballast Type]]=\"\",\"\",\" - \"&TRIM(StipulatedWattage_Table[[#This Row],[Ballast Type]]))&\"]\"","v":"[3L - 32W - IS N]"},3,32,"IS N",0.88,85,null,null,null,null,null,null,null,null,null,null,null,null,null,null,null,null,null,null,null,90,{"$f":"SegmentExceptTable[[#This Row],[Numbers]]/$BP$4","v":0.15025041736227046},{"$f":"SegmentExceptTable[[#This Row],[kW Boundary]]+(0.05*SegmentExceptTable[[#This Row],[kW Boundary]])","v":0.15776293823038398},{"$f":"$BP$6*SegmentExceptTable[[#This Row],[kW Boundary]]+$BP$7","v":0.19969738789035449},{"$f":"$BP$8*SegmentExceptTable[[#This Row],[kW Boundary]]+$BP$9","v":9.0153245644816346E-2},{"$f":"SegmentExceptTable[[#This Row],[Boundary S/M]]+(0.05*SegmentExceptTable[[#This Row],[Boundary S/M]])","v":9.466090792705717E-2},{"$f":"IF(AND(AND(kwpeak_norm>SegmentExceptTable[[#This Row],[kW Boundary]],kwpeak_norm<SegmentExceptTable[[#This Row],[kW Exception]]),AND(kwhmo_norm>SegmentExceptTable[[#This Row],[Boundary S/M]],kwhmo_norm<SegmentExceptTable[[#This Row],[Exception S/M]])),1,0)","v":0},{"$f":"$BP$10*SegmentExceptTable[[#This Row],[kW Boundary]]+$BP$11","v":0.1874868872717172},{"$f":"$BP$12*SegmentExceptTable[[#This Row],[kW Boundary]]+$BP$13","v":0.49953439608327832},{"$f":"SegmentExceptTable[[#This Row],[Boundary M/L]]+(0.05*SegmentExceptTable[[#This Row],[Boundary M/L]])","v":0.52451111588744226},{"$f":"IF(AND(AND(kwpeak_norm>SegmentExceptTable[[#This Row],[kW Boundary]],kwpeak_norm<SegmentExceptTable[[#This Row],[kW Exception]]),AND(kwhmo_norm>SegmentExceptTable[[#This Row],[Boundary M/L]],kwhmo_norm<SegmentExceptTable[[#This Row],[Exception M/L]])),1,0)","v":0}]
[null,null,null,"Industrial",null,"NH",null,"08SSLR0023",23,null,null,null,null,null,null,null,null,null,"Motion Picture Theater",0.78,null,null,{"$f":"\"[\"&StipulatedWattage_Table[[#This Row],[Lamp Qty]]&\"L - \"&StipulatedWattage_Table[[#This Row],[Actual lamp wattage]]&\"W\"&IF(StipulatedWattage_Table[[#This Row],[Ballast Type]]=\"\",\"\",\" - \"&TRIM(StipulatedWattage_Table[[#This Row],[Ballast Type]]))&\"]\"","v":"[3L - 32W - IS VH]"},3,32,"IS VH",1.1499999999999999,110,null,null,null,null,null,null,null,null,null,null,null,null,null,null,null,null,null,null,null,91,{"$f":"SegmentExceptTable[[#This Row],[Numbers]]/$BP$4","v":0.15191986644407346},{"$f":"SegmentExceptTable[[#This Row],[kW Boundary]]+(0.05*SegmentExceptTable[[#This Row],[kW Boundary]])","v":0.15951585976627713},{"$f":"$BP$6*SegmentExceptTable[[#This Row],[kW Boundary]]+$BP$7","v":0.20212421818572074},{"$f":"$BP$8*SegmentExceptTable[[#This Row],[kW Boundary]]+$BP$9","v":8.9004809249385475E-2},{"$f":"SegmentExceptTable[[#This Row],[Boundary S/M]]+(0.05*SegmentExceptTable[[#This Row],[Boundary S/M]])","v":9.3455049711854754E-2},{"$f":"IF(AND(AND(kwpeak_norm>SegmentExceptTable[[#This Row],[kW Boundary]],kwpeak_norm<SegmentExceptTable[[#This Row],[kW Exception]]),AND(kwhmo_norm>SegmentExceptTable[[#This Row],[Boundary S/M]],kwhmo_norm<SegmentExceptTable[[#This Row],[Exception S/M]])),1,0)","v":0},{"$f":"$BP$10*SegmentExceptTable[[#This Row],[kW Boundary]]+$BP$11","v":0.19101394091395574},{"$f":"$BP$12*SegmentExceptTable[[#This Row],[kW Boundary]]+$BP$13","v":0.49874420105948958},{"$f":"SegmentExceptTable[[#This Row],[Boundary M/L]]+(0.05*SegmentExceptTable[[#This Row],[Boundary M/L]])","v":0.52368141111246402},{"$f":"IF(AND(AND(kwpeak_norm>SegmentExceptTable[[#This Row],[kW Boundary]],kwpeak_norm<SegmentExceptTable[[#This Row],[kW Exception]]),AND(kwhmo_norm>SegmentExceptTable[[#This Row],[Boundary M/L]],kwhmo_norm<SegmentExceptTable[[#This Row],[Exception M/L]])),1,0)","v":0}]
[null,null,null,"Irrigation",null,"NJ",null,"08SSLR006A","6A",null,null,null,null,null,null,null,null,null,"Multifamily",0.78,null,null,{"$f":"\"[\"&StipulatedWattage_Table[[#This Row],[Lamp Qty]]&\"L - \"&StipulatedWattage_Table[[#This Row],[Actual lamp wattage]]&\"W\"&IF(StipulatedWattage_Table[[#This Row],[Ballast Type]]=\"\",\"\",\" - \"&TRIM(StipulatedWattage_Table[[#This Row],[Ballast Type]]))&\"]\"","v":"[3L - 32W - RS/PRS H]"},3,32,"RS/PRS H",1.1000000000000001,96,null,null,null,null,null,null,null,null,null,null,null,null,null,null,null,null,null,null,null,92,{"$f":"SegmentExceptTable[[#This Row],[Numbers]]/$BP$4","v":0.15358931552587646},{"$f":"SegmentExceptTable[[#This Row],[kW Boundary]]+(0.05*SegmentExceptTable[[#This Row],[kW Boundary]])","v":0.16126878130217029},{"$f":"$BP$6*SegmentExceptTable[[#This Row],[kW Boundary]]+$BP$7","v":0.20455104848108702},{"$f":"$BP$8*SegmentExceptTable[[#This Row],[kW Boundary]]+$BP$9","v":8.7856372853954603E-2},{"$f":"SegmentExceptTable[[#This Row],[Boundary S/M]]+(0.05*SegmentExceptTable[[#This Row],[Boundary S/M]])","v":9.2249191496652339E-2},{"$f":"IF(AND(AND(kwpeak_norm>SegmentExceptTable[[#This Row],[kW Boundary]],kwpeak_norm<SegmentExceptTable[[#This Row],[kW Exception]]),AND(kwhmo_norm>SegmentExceptTable[[#This Row],[Boundary S/M]],kwhmo_norm<SegmentExceptTable[[#This Row],[Exception S/M]])),1,0)","v":0},{"$f":"$BP$10*SegmentExceptTable[[#This Row],[kW Boundary]]+$BP$11","v":0.19454099455619428},{"$f":"$BP$12*SegmentExceptTable[[#This Row],[kW Boundary]]+$BP$13","v":0.49795400603570084},{"$f":"SegmentExceptTable[[#This Row],[Boundary M/L]]+(0.05*SegmentExceptTable[[#This Row],[Boundary M/L]])","v":0.5228517063374859},{"$f":"IF(AND(AND(kwpeak_norm>SegmentExceptTable[[#This Row],[kW Boundary]],kwpeak_norm<SegmentExceptTable[[#This Row],[kW Exception]]),AND(kwhmo_norm>SegmentExceptTable[[#This Row],[Boundary M/L]],kwhmo_norm<SegmentExceptTable[[#This Row],[Exception M/L]])),1,0)","v":0}]
[null,null,null,"Laboratory spaces",null,"NM",null,"08SSLR06AM","6A",null,null,null,null,null,null,null,null,null,"Museum",0.89,2700,null,{"$f":"\"[\"&StipulatedWattage_Table[[#This Row],[Lamp Qty]]&\"L - \"&StipulatedWattage_Table[[#This Row],[Actual lamp wattage]]&\"W\"&IF(StipulatedWattage_Table[[#This Row],[Ballast Type]]=\"\",\"\",\" - \"&TRIM(StipulatedWattage_Table[[#This Row],[Ballast Type]]))&\"]\"","v":"[3L - 32W - RS/PRS L]"},3,32,"RS/PRS L",0.78,73,null,null,null,null,null,null,null,null,null,null,null,null,null,null,null,null,null,null,null,93,{"$f":"SegmentExceptTable[[#This Row],[Numbers]]/$BP$4","v":0.15525876460767946},{"$f":"SegmentExceptTable[[#This Row],[kW Boundary]]+(0.05*SegmentExceptTable[[#This Row],[kW Boundary]])","v":0.16302170283806344},{"$f":"$BP$6*SegmentExceptTable[[#This Row],[kW Boundary]]+$BP$7","v":0.20697787877645327},{"$f":"$BP$8*SegmentExceptTable[[#This Row],[kW Boundary]]+$BP$9","v":8.6707936458523732E-2},{"$f":"SegmentExceptTable[[#This Row],[Boundary S/M]]+(0.05*SegmentExceptTable[[#This Row],[Boundary S/M]])","v":9.1043333281449923E-2},{"$f":"IF(AND(AND(kwpeak_norm>SegmentExceptTable[[#This Row],[kW Boundary]],kwpeak_norm<SegmentExceptTable[[#This Row],[kW Exception]]),AND(kwhmo_norm>SegmentExceptTable[[#This Row],[Boundary S/M]],kwhmo_norm<SegmentExceptTable[[#This Row],[Exception S/M]])),1,0)","v":0},{"$f":"$BP$10*SegmentExceptTable[[#This Row],[kW Boundary]]+$BP$11","v":0.19806804819843277},{"$f":"$BP$12*SegmentExceptTable[[#This Row],[kW Boundary]]+$BP$13","v":0.49716381101191209},{"$f":"SegmentExceptTable[[#This Row],[Boundary M/L]]+(0.05*SegmentExceptTable[[#This Row],[Boundary M/L]])","v":0.52202200156250766},{"$f":"IF(AND(AND(kwpeak_norm>SegmentExceptTable[[#This Row],[kW Boundary]],kwpeak_norm<SegmentExceptTable[[#This Row],[kW Exception]]),AND(kwhmo_norm>SegmentExceptTable[[#This Row],[Boundary M/L]],kwhmo_norm<SegmentExceptTable[[#This Row],[Exception M/L]])),1,0)","v":0}]
[null,null,null,"Laboratory/Scientific",null,"NV",null,"08TOSS0015",15,null,null,null,null,null,null,null,null,null,"Office",0.78,3067,null,{"$f":"\"[\"&StipulatedWattage_Table[[#This Row],[Lamp Qty]]&\"L - \"&StipulatedWattage_Table[[#This Row],[Actual lamp wattage]]&\"W\"&IF(StipulatedWattage_Table[[#This Row],[Ballast Type]]=\"\",\"\",\" - \"&TRIM(StipulatedWattage_Table[[#This Row],[Ballast Type]]))&\"]\"","v":"[3L - 32W - RS/PRS N]"},3,32,"RS/PRS N",0.88,86,null,null,null,null,null,null,null,null,null,null,null,null,null,null,null,null,null,null,null,94,{"$f":"SegmentExceptTable[[#This Row],[Numbers]]/$BP$4","v":0.15692821368948248},{"$f":"SegmentExceptTable[[#This Row],[kW Boundary]]+(0.05*SegmentExceptTable[[#This Row],[kW Boundary]])","v":0.1647746243739566},{"$f":"$BP$6*SegmentExceptTable[[#This Row],[kW Boundary]]+$BP$7","v":0.2094047090718196},{"$f":"$BP$8*SegmentExceptTable[[#This Row],[kW Boundary]]+$BP$9","v":8.5559500063092847E-2},{"$f":"SegmentExceptTable[[#This Row],[Boundary S/M]]+(0.05*SegmentExceptTable[[#This Row],[Boundary S/M]])","v":8.9837475066247494E-2},{"$f":"IF(AND(AND(kwpeak_norm>SegmentExceptTable[[#This Row],[kW Boundary]],kwpeak_norm<SegmentExceptTable[[#This Row],[kW Exception]]),AND(kwhmo_norm>SegmentExceptTable[[#This Row],[Boundary S/M]],kwhmo_norm<SegmentExceptTable[[#This Row],[Exception S/M]])),1,0)","v":0},{"$f":"$BP$10*SegmentExceptTable[[#This Row],[kW Boundary]]+$BP$11","v":0.20159510184067136},{"$f":"$BP$12*SegmentExceptTable[[#This Row],[kW Boundary]]+$BP$13","v":0.4963736159881233},{"$f":"SegmentExceptTable[[#This Row],[Boundary M/L]]+(0.05*SegmentExceptTable[[#This Row],[Boundary M/L]])","v":0.52119229678752943},{"$f":"IF(AND(AND(kwpeak_norm>SegmentExceptTable[[#This Row],[kW Boundary]],kwpeak_norm<SegmentExceptTable[[#This Row],[kW Exception]]),AND(kwhmo_norm>SegmentExceptTable[[#This Row],[Boundary M/L]],kwhmo_norm<SegmentExceptTable[[#This Row],[Exception M/L]])),1,0)","v":0}]
[null,null,null,"Laundries",null,"NY",null,"08TOSS015F",15,null,null,null,null,null,null,null,null,null,"Office Areas & Admin Area Within Other Use Type",0.78,3067,null,{"$f":"\"[\"&StipulatedWattage_Table[[#This Row],[Lamp Qty]]&\"L - \"&StipulatedWattage_Table[[#This Row],[Actual lamp wattage]]&\"W\"&IF(StipulatedWattage_Table[[#This Row],[Ballast Type]]=\"\",\"\",\" - \"&TRIM(StipulatedWattage_Table[[#This Row],[Ballast Type]]))&\"]\"","v":"[3L - 32W]"},3,32,null,1,95,null,null,null,null,null,null,null,null,null,null,null,null,null,null,null,null,null,null,null,95,{"$f":"SegmentExceptTable[[#This Row],[Numbers]]/$BP$4","v":0.15859766277128548},{"$f":"SegmentExceptTable[[#This Row],[kW Boundary]]+(0.05*SegmentExceptTable[[#This Row],[kW Boundary]])","v":0.16652754590984975},{"$f":"$BP$6*SegmentExceptTable[[#This Row],[kW Boundary]]+$BP$7","v":0.21183153936718585},{"$f":"$BP$8*SegmentExceptTable[[#This Row],[kW Boundary]]+$BP$9","v":8.4411063667661976E-2},{"$f":"SegmentExceptTable[[#This Row],[Boundary S/M]]+(0.05*SegmentExceptTable[[#This Row],[Boundary S/M]])","v":8.8631616851045078E-2},{"$f":"IF(AND(AND(kwpeak_norm>SegmentExceptTable[[#This Row],[kW Boundary]],kwpeak_norm<SegmentExceptTable[[#This Row],[kW Exception]]),AND(kwhmo_norm>SegmentExceptTable[[#This Row],[Boundary S/M]],kwhmo_norm<SegmentExceptTable[[#This Row],[Exception S/M]])),1,0)","v":0},{"$f":"$BP$10*SegmentExceptTable[[#This Row],[kW Boundary]]+$BP$11","v":0.20512215548290985},{"$f":"$BP$12*SegmentExceptTable[[#This Row],[kW Boundary]]+$BP$13","v":0.49558342096433455},{"$f":"SegmentExceptTable[[#This Row],[Boundary M/L]]+(0.05*SegmentExceptTable[[#This Row],[Boundary M/L]])","v":0.52036259201255131},{"$f":"IF(AND(AND(kwpeak_norm>SegmentExceptTable[[#This Row],[kW Boundary]],kwpeak_norm<SegmentExceptTable[[#This Row],[kW Exception]]),AND(kwhmo_norm>SegmentExceptTable[[#This Row],[Boundary M/L]],kwhmo_norm<SegmentExceptTable[[#This Row],[Exception M/L]])),1,0)","v":0}]
[null,null,null,"Library",null,"OH",null,"09APSNS210",210,null,null,null,null,null,null,null,null,null,"Offices - > 250 Square Feet",0.78,3067,null,{"$f":"\"[\"&StipulatedWattage_Table[[#This Row],[Lamp Qty]]&\"L - \"&StipulatedWattage_Table[[#This Row],[Actual lamp wattage]]&\"W\"&IF(StipulatedWattage_Table[[#This Row],[Ballast Type]]=\"\",\"\",\" - \"&TRIM(StipulatedWattage_Table[[#This Row],[Ballast Type]]))&\"]\"","v":"[3L - 34W - IS N]"},3,34,"IS N",0.88,82,null,null,null,null,null,null,null,null,null,null,null,null,null,null,null,null,null,null,null,96,{"$f":"SegmentExceptTable[[#This Row],[Numbers]]/$BP$4","v":0.16026711185308848},{"$f":"SegmentExceptTable[[#This Row],[kW Boundary]]+(0.05*SegmentExceptTable[[#This Row],[kW Boundary]])","v":0.1682804674457429},{"$f":"$BP$6*SegmentExceptTable[[#This Row],[kW Boundary]]+$BP$7","v":0.21425836966255213},{"$f":"$BP$8*SegmentExceptTable[[#This Row],[kW Boundary]]+$BP$9","v":8.3262627272231104E-2},{"$f":"SegmentExceptTable[[#This Row],[Boundary S/M]]+(0.05*SegmentExceptTable[[#This Row],[Boundary S/M]])","v":8.7425758635842662E-2},{"$f":"IF(AND(AND(kwpeak_norm>SegmentExceptTable[[#This Row],[kW Boundary]],kwpeak_norm<SegmentExceptTable[[#This Row],[kW Exception]]),AND(kwhmo_norm>SegmentExceptTable[[#This Row],[Boundary S/M]],kwhmo_norm<SegmentExceptTable[[#This Row],[Exception S/M]])),1,0)","v":0},{"$f":"$BP$10*SegmentExceptTable[[#This Row],[kW Boundary]]+$BP$11","v":0.20864920912514839},{"$f":"$BP$12*SegmentExceptTable[[#This Row],[kW Boundary]]+$BP$13","v":0.49479322594054581},{"$f":"SegmentExceptTable[[#This Row],[Boundary M/L]]+(0.05*SegmentExceptTable[[#This Row],[Boundary M/L]])","v":0.51953288723757307},{"$f":"IF(AND(AND(kwpeak_norm>SegmentExceptTable[[#This Row],[kW Boundary]],kwpeak_norm<SegmentExceptTable[[#This Row],[kW Exception]]),AND(kwhmo_norm>SegmentExceptTable[[#This Row],[Boundary M/L]],kwhmo_norm<SegmentExceptTable[[#This Row],[Exception M/L]])),1,0)","v":0}]
[null,null,null,"Mall",null,"OK",null,"09APSV0210",210,null,null,null,null,null,null,null,null,null,"Offices - ≤ 250 Square Feet",0.78,3067,null,{"$f":"\"[\"&StipulatedWattage_Table[[#This Row],[Lamp Qty]]&\"L - \"&StipulatedWattage_Table[[#This Row],[Actual lamp wattage]]&\"W\"&IF(StipulatedWattage_Table[[#This Row],[Ballast Type]]=\"\",\"\",\" - \"&TRIM(StipulatedWattage_Table[[#This Row],[Ballast Type]]))&\"]\"","v":"[3L - 40W - MG]"},3,40,"MG ",1,88,null,null,null,null,null,null,null,null,null,null,null,null,null,null,null,null,null,null,null,97,{"$f":"SegmentExceptTable[[#This Row],[Numbers]]/$BP$4","v":0.16193656093489148},{"$f":"SegmentExceptTable[[#This Row],[kW Boundary]]+(0.05*SegmentExceptTable[[#This Row],[kW Boundary]])","v":0.17003338898163606},{"$f":"$BP$6*SegmentExceptTable[[#This Row],[kW Boundary]]+$BP$7","v":0.21668519995791841},{"$f":"$BP$8*SegmentExceptTable[[#This Row],[kW Boundary]]+$BP$9","v":8.2114190876800233E-2},{"$f":"SegmentExceptTable[[#This Row],[Boundary S/M]]+(0.05*SegmentExceptTable[[#This Row],[Boundary S/M]])","v":8.6219900420640247E-2},{"$f":"IF(AND(AND(kwpeak_norm>SegmentExceptTable[[#This Row],[kW Boundary]],kwpeak_norm<SegmentExceptTable[[#This Row],[kW Exception]]),AND(kwhmo_norm>SegmentExceptTable[[#This Row],[Boundary S/M]],kwhmo_norm<SegmentExceptTable[[#This Row],[Exception S/M]])),1,0)","v":0},{"$f":"$BP$10*SegmentExceptTable[[#This Row],[kW Boundary]]+$BP$11","v":0.21217626276738688},{"$f":"$BP$12*SegmentExceptTable[[#This Row],[kW Boundary]]+$BP$13","v":0.49400303091675701},{"$f":"SegmentExceptTable[[#This Row],[Boundary M/L]]+(0.05*SegmentExceptTable[[#This Row],[Boundary M/L]])","v":0.51870318246259484},{"$f":"IF(AND(AND(kwpeak_norm>SegmentExceptTable[[#This Row],[kW Boundary]],kwpeak_norm<SegmentExceptTable[[#This Row],[kW Exception]]),AND(kwhmo_norm>SegmentExceptTable[[#This Row],[Boundary M/L]],kwhmo_norm<SegmentExceptTable[[#This Row],[Exception M/L]])),1,0)","v":0}]
[null,null,null,"Manufactured Home",null,"OR",null,"09MONL0213",213,null,null,null,null,null,null,null,null,null,"Office: Open Plan",0.78,3067,null,{"$f":"\"[\"&StipulatedWattage_Table[[#This Row],[Lamp Qty]]&\"L - \"&StipulatedWattage_Table[[#This Row],[Actual lamp wattage]]&\"W\"&IF(StipulatedWattage_Table[[#This Row],[Ballast Type]]=\"\",\"\",\" - \"&TRIM(StipulatedWattage_Table[[#This Row],[Ballast Type]]))&\"]\"","v":"[3L - 40W]"},3,40,null,null,87,null,null,null,null,null,null,null,null,null,null,null,null,null,null,null,null,null,null,null,98,{"$f":"SegmentExceptTable[[#This Row],[Numbers]]/$BP$4","v":0.1636060100166945},{"$f":"SegmentExceptTable[[#This Row],[kW Boundary]]+(0.05*SegmentExceptTable[[#This Row],[kW Boundary]])","v":0.17178631051752924},{"$f":"$BP$6*SegmentExceptTable[[#This Row],[kW Boundary]]+$BP$7","v":0.21911203025328471},{"$f":"$BP$8*SegmentExceptTable[[#This Row],[kW Boundary]]+$BP$9","v":8.0965754481369334E-2},{"$f":"SegmentExceptTable[[#This Row],[Boundary S/M]]+(0.05*SegmentExceptTable[[#This Row],[Boundary S/M]])","v":8.5014042205437804E-2},{"$f":"IF(AND(AND(kwpeak_norm>SegmentExceptTable[[#This Row],[kW Boundary]],kwpeak_norm<SegmentExceptTable[[#This Row],[kW Exception]]),AND(kwhmo_norm>SegmentExceptTable[[#This Row],[Boundary S/M]],kwhmo_norm<SegmentExceptTable[[#This Row],[Exception S/M]])),1,0)","v":0},{"$f":"$BP$10*SegmentExceptTable[[#This Row],[kW Boundary]]+$BP$11","v":0.21570331640962548},{"$f":"$BP$12*SegmentExceptTable[[#This Row],[kW Boundary]]+$BP$13","v":0.49321283589296827},{"$f":"SegmentExceptTable[[#This Row],[Boundary M/L]]+(0.05*SegmentExceptTable[[#This Row],[Boundary M/L]])","v":0.51787347768761671},{"$f":"IF(AND(AND(kwpeak_norm>SegmentExceptTable[[#This Row],[kW Boundary]],kwpeak_norm<SegmentExceptTable[[#This Row],[kW Exception]]),AND(kwhmo_norm>SegmentExceptTable[[#This Row],[Boundary M/L]],kwhmo_norm<SegmentExceptTable[[#This Row],[Exception M/L]])),1,0)","v":0}]
[null,null,null,"Manufacturing Facility",null,"PA",null,null,null,null,null,null,null,null,null,null,null,null,"Office: Enclosed Plan",0.78,3067,null,{"$f":"\"[\"&StipulatedWattage_Table[[#This Row],[Lamp Qty]]&\"L - \"&StipulatedWattage_Table[[#This Row],[Actual lamp wattage]]&\"W\"&IF(StipulatedWattage_Table[[#This Row],[Ballast Type]]=\"\",\"\",\" - \"&TRIM(StipulatedWattage_Table[[#This Row],[Ballast Type]]))&\"]\"","v":"[3L - 54W - RS/PRS H]"},3,54,"RS/PRS H",1.1000000000000001,178,null,null,null,null,null,null,null,null,null,null,null,null,null,null,null,null,null,null,null,99,{"$f":"SegmentExceptTable[[#This Row],[Numbers]]/$BP$4","v":0.1652754590984975},{"$f":"SegmentExceptTable[[#This Row],[kW Boundary]]+(0.05*SegmentExceptTable[[#This Row],[kW Boundary]])","v":0.17353923205342237},{"$f":"$BP$6*SegmentExceptTable[[#This Row],[kW Boundary]]+$BP$7","v":0.22153886054865096},{"$f":"$BP$8*SegmentExceptTable[[#This Row],[kW Boundary]]+$BP$9","v":7.9817318085938463E-2},{"$f":"SegmentExceptTable[[#This Row],[Boundary S/M]]+(0.05*SegmentExceptTable[[#This Row],[Boundary S/M]])","v":8.3808183990235388E-2},{"$f":"IF(AND(AND(kwpeak_norm>SegmentExceptTable[[#This Row],[kW Boundary]],kwpeak_norm<SegmentExceptTable[[#This Row],[kW Exception]]),AND(kwhmo_norm>SegmentExceptTable[[#This Row],[Boundary S/M]],kwhmo_norm<SegmentExceptTable[[#This Row],[Exception S/M]])),1,0)","v":0},{"$f":"$BP$10*SegmentExceptTable[[#This Row],[kW Boundary]]+$BP$11","v":0.21923037005186397},{"$f":"$BP$12*SegmentExceptTable[[#This Row],[kW Boundary]]+$BP$13","v":0.49242264086917953},{"$f":"SegmentExceptTable[[#This Row],[Boundary M/L]]+(0.05*SegmentExceptTable[[#This Row],[Boundary M/L]])","v":0.51704377291263848},{"$f":"IF(AND(AND(kwpeak_norm>SegmentExceptTable[[#This Row],[kW Boundary]],kwpeak_norm<SegmentExceptTable[[#This Row],[kW Exception]]),AND(kwhmo_norm>SegmentExceptTable[[#This Row],[Boundary M/L]],kwhmo_norm<SegmentExceptTable[[#This Row],[Exception M/L]])),1,0)","v":0}]
[null,null,null,"Mixed Use",null,"RI",null,null,null,null,null,null,null,null,null,null,null,null,"Other",0.78,3800,null,{"$f":"\"[\"&StipulatedWattage_Table[[#This Row],[Lamp Qty]]&\"L - \"&StipulatedWattage_Table[[#This Row],[Actual lamp wattage]]&\"W\"&IF(StipulatedWattage_Table[[#This Row],[Ballast Type]]=\"\",\"\",\" - \"&TRIM(StipulatedWattage_Table[[#This Row],[Ballast Type]]))&\"]\"","v":"[3L - 59W - IS H]"},3,59,"IS H",1.1000000000000001,216,null,null,null,null,null,null,null,null,null,null,null,null,null,null,null,null,null,null,null,100,{"$f":"SegmentExceptTable[[#This Row],[Numbers]]/$BP$4","v":0.1669449081803005},{"$f":"SegmentExceptTable[[#This Row],[kW Boundary]]+(0.05*SegmentExceptTable[[#This Row],[kW Boundary]])","v":0.17529215358931552},{"$f":"$BP$6*SegmentExceptTable[[#This Row],[kW Boundary]]+$BP$7","v":0.22396569084401724},{"$f":"$BP$8*SegmentExceptTable[[#This Row],[kW Boundary]]+$BP$9","v":7.8668881690507592E-2},{"$f":"SegmentExceptTable[[#This Row],[Boundary S/M]]+(0.05*SegmentExceptTable[[#This Row],[Boundary S/M]])","v":8.2602325775032973E-2},{"$f":"IF(AND(AND(kwpeak_norm>SegmentExceptTable[[#This Row],[kW Boundary]],kwpeak_norm<SegmentExceptTable[[#This Row],[kW Exception]]),AND(kwhmo_norm>SegmentExceptTable[[#This Row],[Boundary S/M]],kwhmo_norm<SegmentExceptTable[[#This Row],[Exception S/M]])),1,0)","v":0},{"$f":"$BP$10*SegmentExceptTable[[#This Row],[kW Boundary]]+$BP$11","v":0.22275742369410251},{"$f":"$BP$12*SegmentExceptTable[[#This Row],[kW Boundary]]+$BP$13","v":0.49163244584539079},{"$f":"SegmentExceptTable[[#This Row],[Boundary M/L]]+(0.05*SegmentExceptTable[[#This Row],[Boundary M/L]])","v":0.51621406813766035},{"$f":"IF(AND(AND(kwpeak_norm>SegmentExceptTable[[#This Row],[kW Boundary]],kwpeak_norm<SegmentExceptTable[[#This Row],[kW Exception]]),AND(kwhmo_norm>SegmentExceptTable[[#This Row],[Boundary M/L]],kwhmo_norm<SegmentExceptTable[[#This Row],[Exception M/L]])),1,0)","v":0}]
[null,null,null,"Mobile Home",null,"SC",null,null,null,null,null,null,null,null,null,null,null,null,"Parking Garage",0.96,6300,null,{"$f":"\"[\"&StipulatedWattage_Table[[#This Row],[Lamp Qty]]&\"L - \"&StipulatedWattage_Table[[#This Row],[Actual lamp wattage]]&\"W\"&IF(StipulatedWattage_Table[[#This Row],[Ballast Type]]=\"\",\"\",\" - \"&TRIM(StipulatedWattage_Table[[#This Row],[Ballast Type]]))&\"]\"","v":"[3L - 59W - IS N]"},3,59,"IS N",0.88,164,null,null,null,null,null,null,null,null,null,null,null,null,null,null,null,null,null,null,null,101,{"$f":"SegmentExceptTable[[#This Row],[Numbers]]/$BP$4","v":0.1686143572621035},{"$f":"SegmentExceptTable[[#This Row],[kW Boundary]]+(0.05*SegmentExceptTable[[#This Row],[kW Boundary]])","v":0.17704507512520867},{"$f":"$BP$6*SegmentExceptTable[[#This Row],[kW Boundary]]+$BP$7","v":0.22639252113938352},{"$f":"$BP$8*SegmentExceptTable[[#This Row],[kW Boundary]]+$BP$9","v":7.752044529507672E-2},{"$f":"SegmentExceptTable[[#This Row],[Boundary S/M]]+(0.05*SegmentExceptTable[[#This Row],[Boundary S/M]])","v":8.1396467559830557E-2},{"$f":"IF(AND(AND(kwpeak_norm>SegmentExceptTable[[#This Row],[kW Boundary]],kwpeak_norm<SegmentExceptTable[[#This Row],[kW Exception]]),AND(kwhmo_norm>SegmentExceptTable[[#This Row],[Boundary S/M]],kwhmo_norm<SegmentExceptTable[[#This Row],[Exception S/M]])),1,0)","v":0},{"$f":"$BP$10*SegmentExceptTable[[#This Row],[kW Boundary]]+$BP$11","v":0.22628447733634099},{"$f":"$BP$12*SegmentExceptTable[[#This Row],[kW Boundary]]+$BP$13","v":0.49084225082160204},{"$f":"SegmentExceptTable[[#This Row],[Boundary M/L]]+(0.05*SegmentExceptTable[[#This Row],[Boundary M/L]])","v":0.51538436336268212},{"$f":"IF(AND(AND(kwpeak_norm>SegmentExceptTable[[#This Row],[kW Boundary]],kwpeak_norm<SegmentExceptTable[[#This Row],[kW Exception]]),AND(kwhmo_norm>SegmentExceptTable[[#This Row],[Boundary M/L]],kwhmo_norm<SegmentExceptTable[[#This Row],[Exception M/L]])),1,0)","v":0}]
[null,null,null,"Multifamily",null,"SD",null,null,null,null,null,null,null,null,null,null,null,null,"Parking Garage - Daylight Adaption Zone",0.96,6300,null,{"$f":"\"[\"&StipulatedWattage_Table[[#This Row],[Lamp Qty]]&\"L - \"&StipulatedWattage_Table[[#This Row],[Actual lamp wattage]]&\"W\"&IF(StipulatedWattage_Table[[#This Row],[Ballast Type]]=\"\",\"\",\" - \"&TRIM(StipulatedWattage_Table[[#This Row],[Ballast Type]]))&\"]\"","v":"[3L - 120W - IS N]"},3,120,"IS N",0.88,164,null,null,null,null,null,null,null,null,null,null,null,null,null,null,null,null,null,null,null,102,{"$f":"SegmentExceptTable[[#This Row],[Numbers]]/$BP$4","v":0.17028380634390652},{"$f":"SegmentExceptTable[[#This Row],[kW Boundary]]+(0.05*SegmentExceptTable[[#This Row],[kW Boundary]])","v":0.17879799666110185},{"$f":"$BP$6*SegmentExceptTable[[#This Row],[kW Boundary]]+$BP$7","v":0.22881935143474982},{"$f":"$BP$8*SegmentExceptTable[[#This Row],[kW Boundary]]+$BP$9","v":7.6372008899645835E-2},{"$f":"SegmentExceptTable[[#This Row],[Boundary S/M]]+(0.05*SegmentExceptTable[[#This Row],[Boundary S/M]])","v":8.0190609344628128E-2},{"$f":"IF(AND(AND(kwpeak_norm>SegmentExceptTable[[#This Row],[kW Boundary]],kwpeak_norm<SegmentExceptTable[[#This Row],[kW Exception]]),AND(kwhmo_norm>SegmentExceptTable[[#This Row],[Boundary S/M]],kwhmo_norm<SegmentExceptTable[[#This Row],[Exception S/M]])),1,0)","v":0},{"$f":"$BP$10*SegmentExceptTable[[#This Row],[kW Boundary]]+$BP$11","v":0.22981153097857959},{"$f":"$BP$12*SegmentExceptTable[[#This Row],[kW Boundary]]+$BP$13","v":0.49005205579781325},{"$f":"SegmentExceptTable[[#This Row],[Boundary M/L]]+(0.05*SegmentExceptTable[[#This Row],[Boundary M/L]])","v":0.51455465858770388},{"$f":"IF(AND(AND(kwpeak_norm>SegmentExceptTable[[#This Row],[kW Boundary]],kwpeak_norm<SegmentExceptTable[[#This Row],[kW Exception]]),AND(kwhmo_norm>SegmentExceptTable[[#This Row],[Boundary M/L]],kwhmo_norm<SegmentExceptTable[[#This Row],[Exception M/L]])),1,0)","v":0}]
[null,null,null,"Museum/exhibit",null,"TN",null,null,null,null,null,null,null,null,null,null,null,null,"Parking Garage - Parking Area",0.96,6300,null,{"$f":"\"[\"&StipulatedWattage_Table[[#This Row],[Lamp Qty]]&\"L - \"&StipulatedWattage_Table[[#This Row],[Actual lamp wattage]]&\"W\"&IF(StipulatedWattage_Table[[#This Row],[Ballast Type]]=\"\",\"\",\" - \"&TRIM(StipulatedWattage_Table[[#This Row],[Ballast Type]]))&\"]\"","v":"[3L - 120W]"},3,120,null,null,129,null,null,null,null,null,null,null,null,null,null,null,null,null,null,null,null,null,null,null,103,{"$f":"SegmentExceptTable[[#This Row],[Numbers]]/$BP$4","v":0.17195325542570952},{"$f":"SegmentExceptTable[[#This Row],[kW Boundary]]+(0.05*SegmentExceptTable[[#This Row],[kW Boundary]])","v":0.18055091819699501},{"$f":"$BP$6*SegmentExceptTable[[#This Row],[kW Boundary]]+$BP$7","v":0.23124618173011607},{"$f":"$BP$8*SegmentExceptTable[[#This Row],[kW Boundary]]+$BP$9","v":7.5223572504214964E-2},{"$f":"SegmentExceptTable[[#This Row],[Boundary S/M]]+(0.05*SegmentExceptTable[[#This Row],[Boundary S/M]])","v":7.8984751129425712E-2},{"$f":"IF(AND(AND(kwpeak_norm>SegmentExceptTable[[#This Row],[kW Boundary]],kwpeak_norm<SegmentExceptTable[[#This Row],[kW Exception]]),AND(kwhmo_norm>SegmentExceptTable[[#This Row],[Boundary S/M]],kwhmo_norm<SegmentExceptTable[[#This Row],[Exception S/M]])),1,0)","v":0},{"$f":"$BP$10*SegmentExceptTable[[#This Row],[kW Boundary]]+$BP$11","v":0.23333858462081808},{"$f":"$BP$12*SegmentExceptTable[[#This Row],[kW Boundary]]+$BP$13","v":0.4892618607740245},{"$f":"SegmentExceptTable[[#This Row],[Boundary M/L]]+(0.05*SegmentExceptTable[[#This Row],[Boundary M/L]])","v":0.51372495381272576},{"$f":"IF(AND(AND(kwpeak_norm>SegmentExceptTable[[#This Row],[kW Boundary]],kwpeak_norm<SegmentExceptTable[[#This Row],[kW Exception]]),AND(kwhmo_norm>SegmentExceptTable[[#This Row],[Boundary M/L]],kwhmo_norm<SegmentExceptTable[[#This Row],[Exception M/L]])),1,0)","v":0}]
[null,null,null,"Office building, office/administrative areas in facilities of other use types",null,"TX",null,"source: Rates For Software 2-12-26 (updated 4/1/26-ds)",null,null,null,null,null,null,null,null,null,null,"Parking Garage - Ramps and Entries",0.96,6300,null,{"$f":"\"[\"&StipulatedWattage_Table[[#This Row],[Lamp Qty]]&\"L - \"&StipulatedWattage_Table[[#This Row],[Actual lamp wattage]]&\"W\"&IF(StipulatedWattage_Table[[#This Row],[Ballast Type]]=\"\",\"\",\" - \"&TRIM(StipulatedWattage_Table[[#This Row],[Ballast Type]]))&\"]\"","v":"[3L - 75W]"},3,75,null,null,159,null,null,null,null,null,null,null,null,null,null,null,null,null,null,null,null,null,null,null,104,{"$f":"SegmentExceptTable[[#This Row],[Numbers]]/$BP$4","v":0.17362270450751252},{"$f":"SegmentExceptTable[[#This Row],[kW Boundary]]+(0.05*SegmentExceptTable[[#This Row],[kW Boundary]])","v":0.18230383973288813},{"$f":"$BP$6*SegmentExceptTable[[#This Row],[kW Boundary]]+$BP$7","v":0.23367301202548235},{"$f":"$BP$8*SegmentExceptTable[[#This Row],[kW Boundary]]+$BP$9","v":7.4075136108784093E-2},{"$f":"SegmentExceptTable[[#This Row],[Boundary S/M]]+(0.05*SegmentExceptTable[[#This Row],[Boundary S/M]])","v":7.7778892914223297E-2},{"$f":"IF(AND(AND(kwpeak_norm>SegmentExceptTable[[#This Row],[kW Boundary]],kwpeak_norm<SegmentExceptTable[[#This Row],[kW Exception]]),AND(kwhmo_norm>SegmentExceptTable[[#This Row],[Boundary S/M]],kwhmo_norm<SegmentExceptTable[[#This Row],[Exception S/M]])),1,0)","v":0},{"$f":"$BP$10*SegmentExceptTable[[#This Row],[kW Boundary]]+$BP$11","v":0.23686563826305662},{"$f":"$BP$12*SegmentExceptTable[[#This Row],[kW Boundary]]+$BP$13","v":0.48847166575023571},{"$f":"SegmentExceptTable[[#This Row],[Boundary M/L]]+(0.05*SegmentExceptTable[[#This Row],[Boundary M/L]])","v":0.51289524903774752},{"$f":"IF(AND(AND(kwpeak_norm>SegmentExceptTable[[#This Row],[kW Boundary]],kwpeak_norm<SegmentExceptTable[[#This Row],[kW Exception]]),AND(kwhmo_norm>SegmentExceptTable[[#This Row],[Boundary M/L]],kwhmo_norm<SegmentExceptTable[[#This Row],[Exception M/L]])),1,0)","v":0}]
[null,null,null,"Other",null,"UT",null,"TechWattage","WA51","WA52","WA53","WA54","WA57","ID12","ID13","UT12",null,null,"Penitentiary",0.94,null,null,{"$f":"\"[\"&StipulatedWattage_Table[[#This Row],[Lamp Qty]]&\"L - \"&StipulatedWattage_Table[[#This Row],[Actual lamp wattage]]&\"W\"&IF(StipulatedWattage_Table[[#This Row],[Ballast Type]]=\"\",\"\",\" - \"&TRIM(StipulatedWattage_Table[[#This Row],[Ballast Type]]))&\"]\"","v":"[3L - 86W - IS N]"},3,86,"IS N",0.88,276,null,null,null,null,null,null,null,null,null,null,null,null,null,null,null,null,null,null,null,105,{"$f":"SegmentExceptTable[[#This Row],[Numbers]]/$BP$4","v":0.17529215358931552},{"$f":"SegmentExceptTable[[#This Row],[kW Boundary]]+(0.05*SegmentExceptTable[[#This Row],[kW Boundary]])","v":0.18405676126878129},{"$f":"$BP$6*SegmentExceptTable[[#This Row],[kW Boundary]]+$BP$7","v":0.23609984232084863},{"$f":"$BP$8*SegmentExceptTable[[#This Row],[kW Boundary]]+$BP$9","v":7.2926699713353221E-2},{"$f":"SegmentExceptTable[[#This Row],[Boundary S/M]]+(0.05*SegmentExceptTable[[#This Row],[Boundary S/M]])","v":7.6573034699020881E-2},{"$f":"IF(AND(AND(kwpeak_norm>SegmentExceptTable[[#This Row],[kW Boundary]],kwpeak_norm<SegmentExceptTable[[#This Row],[kW Exception]]),AND(kwhmo_norm>SegmentExceptTable[[#This Row],[Boundary S/M]],kwhmo_norm<SegmentExceptTable[[#This Row],[Exception S/M]])),1,0)","v":0},{"$f":"$BP$10*SegmentExceptTable[[#This Row],[kW Boundary]]+$BP$11","v":0.24039269190529511},{"$f":"$BP$12*SegmentExceptTable[[#This Row],[kW Boundary]]+$BP$13","v":0.48768147072644696},{"$f":"SegmentExceptTable[[#This Row],[Boundary M/L]]+(0.05*SegmentExceptTable[[#This Row],[Boundary M/L]])","v":0.51206554426276929},{"$f":"IF(AND(AND(kwpeak_norm>SegmentExceptTable[[#This Row],[kW Boundary]],kwpeak_norm<SegmentExceptTable[[#This Row],[kW Exception]]),AND(kwhmo_norm>SegmentExceptTable[[#This Row],[Boundary M/L]],kwhmo_norm<SegmentExceptTable[[#This Row],[Exception M/L]])),1,0)","v":0}]
[null,null,null,"Parking Garage",null,"VA",null,"LED70",null,null,null,null,null,"Per-kWh Rate",null,"Per-kWh Rate",null,null,"Penitentiary and Other Group I-3 Occupancies",0.94,null,null,{"$f":"\"[\"&StipulatedWattage_Table[[#This Row],[Lamp Qty]]&\"L - \"&StipulatedWattage_Table[[#This Row],[Actual lamp wattage]]&\"W\"&IF(StipulatedWattage_Table[[#This Row],[Ballast Type]]=\"\",\"\",\" - \"&TRIM(StipulatedWattage_Table[[#This Row],[Ballast Type]]))&\"]\"","v":"[4L - 100W]"},4,100,null,null,288,null,null,null,null,null,null,null,null,null,null,null,null,null,null,null,null,null,null,null,106,{"$f":"SegmentExceptTable[[#This Row],[Numbers]]/$BP$4","v":0.17696160267111852},{"$f":"SegmentExceptTable[[#This Row],[kW Boundary]]+(0.05*SegmentExceptTable[[#This Row],[kW Boundary]])","v":0.18580968280467444},{"$f":"$BP$6*SegmentExceptTable[[#This Row],[kW Boundary]]+$BP$7","v":0.23852667261621491},{"$f":"$BP$8*SegmentExceptTable[[#This Row],[kW Boundary]]+$BP$9","v":7.177826331792235E-2},{"$f":"SegmentExceptTable[[#This Row],[Boundary S/M]]+(0.05*SegmentExceptTable[[#This Row],[Boundary S/M]])","v":7.5367176483818465E-2},{"$f":"IF(AND(AND(kwpeak_norm>SegmentExceptTable[[#This Row],[kW Boundary]],kwpeak_norm<SegmentExceptTable[[#This Row],[kW Exception]]),AND(kwhmo_norm>SegmentExceptTable[[#This Row],[Boundary S/M]],kwhmo_norm<SegmentExceptTable[[#This Row],[Exception S/M]])),1,0)","v":0},{"$f":"$BP$10*SegmentExceptTable[[#This Row],[kW Boundary]]+$BP$11","v":0.24391974554753365},{"$f":"$BP$12*SegmentExceptTable[[#This Row],[kW Boundary]]+$BP$13","v":0.48689127570265822},{"$f":"SegmentExceptTable[[#This Row],[Boundary M/L]]+(0.05*SegmentExceptTable[[#This Row],[Boundary M/L]])","v":0.51123583948779117},{"$f":"IF(AND(AND(kwpeak_norm>SegmentExceptTable[[#This Row],[kW Boundary]],kwpeak_norm<SegmentExceptTable[[#This Row],[kW Exception]]),AND(kwhmo_norm>SegmentExceptTable[[#This Row],[Boundary M/L]],kwhmo_norm<SegmentExceptTable[[#This Row],[Exception M/L]])),1,0)","v":0}]
[null,null,null,"Parking Lot Lighting",null,"VT",null,"LED100",null,null,null,null,null,"Per-kWh Rate",null,"Per-kWh Rate",null,null,"Penitentiary: Audience",0.94,null,null,{"$f":"\"[\"&StipulatedWattage_Table[[#This Row],[Lamp Qty]]&\"L - \"&StipulatedWattage_Table[[#This Row],[Actual lamp wattage]]&\"W\"&IF(StipulatedWattage_Table[[#This Row],[Ballast Type]]=\"\",\"\",\" - \"&TRIM(StipulatedWattage_Table[[#This Row],[Ballast Type]]))&\"]\"","v":"[4L - 28W - RS/PRS H]"},4,28,"RS/PRS H",1.1000000000000001,124,null,null,null,null,null,null,null,null,null,null,null,null,null,null,null,null,null,null,null,107,{"$f":"SegmentExceptTable[[#This Row],[Numbers]]/$BP$4","v":0.17863105175292154},{"$f":"SegmentExceptTable[[#This Row],[kW Boundary]]+(0.05*SegmentExceptTable[[#This Row],[kW Boundary]])","v":0.18756260434056762},{"$f":"$BP$6*SegmentExceptTable[[#This Row],[kW Boundary]]+$BP$7","v":0.24095350291158119},{"$f":"$BP$8*SegmentExceptTable[[#This Row],[kW Boundary]]+$BP$9","v":7.0629826922491451E-2},{"$f":"SegmentExceptTable[[#This Row],[Boundary S/M]]+(0.05*SegmentExceptTable[[#This Row],[Boundary S/M]])","v":7.4161318268616022E-2},{"$f":"IF(AND(AND(kwpeak_norm>SegmentExceptTable[[#This Row],[kW Boundary]],kwpeak_norm<SegmentExceptTable[[#This Row],[kW Exception]]),AND(kwhmo_norm>SegmentExceptTable[[#This Row],[Boundary S/M]],kwhmo_norm<SegmentExceptTable[[#This Row],[Exception S/M]])),1,0)","v":0},{"$f":"$BP$10*SegmentExceptTable[[#This Row],[kW Boundary]]+$BP$11","v":0.24744679918977219},{"$f":"$BP$12*SegmentExceptTable[[#This Row],[kW Boundary]]+$BP$13","v":0.48610108067886948},{"$f":"SegmentExceptTable[[#This Row],[Boundary M/L]]+(0.05*SegmentExceptTable[[#This Row],[Boundary M/L]])","v":0.51040613471281293},{"$f":"IF(AND(AND(kwpeak_norm>SegmentExceptTable[[#This Row],[kW Boundary]],kwpeak_norm<SegmentExceptTable[[#This Row],[kW Exception]]),AND(kwhmo_norm>SegmentExceptTable[[#This Row],[Boundary M/L]],kwhmo_norm<SegmentExceptTable[[#This Row],[Exception M/L]])),1,0)","v":0}]
[null,null,null,"Penitentiary",null,"WA",null,"LED150",null,null,null,null,null,"Per-kWh Rate",null,"Per-kWh Rate",null,null,"Penitentiary: Classroom/Training Room",0.94,null,null,{"$f":"\"[\"&StipulatedWattage_Table[[#This Row],[Lamp Qty]]&\"L - \"&StipulatedWattage_Table[[#This Row],[Actual lamp wattage]]&\"W\"&IF(StipulatedWattage_Table[[#This Row],[Ballast Type]]=\"\",\"\",\" - \"&TRIM(StipulatedWattage_Table[[#This Row],[Ballast Type]]))&\"]\"","v":"[4L - 32W - IS L]"},4,32,"IS L",0.78,98,null,null,null,null,null,null,null,null,null,null,null,null,null,null,null,null,null,null,null,108,{"$f":"SegmentExceptTable[[#This Row],[Numbers]]/$BP$4","v":0.18030050083472454},{"$f":"SegmentExceptTable[[#This Row],[kW Boundary]]+(0.05*SegmentExceptTable[[#This Row],[kW Boundary]])","v":0.18931552587646078},{"$f":"$BP$6*SegmentExceptTable[[#This Row],[kW Boundary]]+$BP$7","v":0.24338033320694746},{"$f":"$BP$8*SegmentExceptTable[[#This Row],[kW Boundary]]+$BP$9","v":6.948139052706058E-2},{"$f":"SegmentExceptTable[[#This Row],[Boundary S/M]]+(0.05*SegmentExceptTable[[#This Row],[Boundary S/M]])","v":7.2955460053413607E-2},{"$f":"IF(AND(AND(kwpeak_norm>SegmentExceptTable[[#This Row],[kW Boundary]],kwpeak_norm<SegmentExceptTable[[#This Row],[kW Exception]]),AND(kwhmo_norm>SegmentExceptTable[[#This Row],[Boundary S/M]],kwhmo_norm<SegmentExceptTable[[#This Row],[Exception S/M]])),1,0)","v":0},{"$f":"$BP$10*SegmentExceptTable[[#This Row],[kW Boundary]]+$BP$11","v":0.25097385283201074},{"$f":"$BP$12*SegmentExceptTable[[#This Row],[kW Boundary]]+$BP$13","v":0.48531088565508074},{"$f":"SegmentExceptTable[[#This Row],[Boundary M/L]]+(0.05*SegmentExceptTable[[#This Row],[Boundary M/L]])","v":0.50957642993783481},{"$f":"IF(AND(AND(kwpeak_norm>SegmentExceptTable[[#This Row],[kW Boundary]],kwpeak_norm<SegmentExceptTable[[#This Row],[kW Exception]]),AND(kwhmo_norm>SegmentExceptTable[[#This Row],[Boundary M/L]],kwhmo_norm<SegmentExceptTable[[#This Row],[Exception M/L]])),1,0)","v":0}]
[null,null,null,"Police/Fire Station",null,"WI",null,"LED200",null,null,null,null,null,"Per-kWh Rate",null,"Per-kWh Rate",null,null,"Penitentiary: Dining",0.94,null,null,{"$f":"\"[\"&StipulatedWattage_Table[[#This Row],[Lamp Qty]]&\"L - \"&StipulatedWattage_Table[[#This Row],[Actual lamp wattage]]&\"W\"&IF(StipulatedWattage_Table[[#This Row],[Ballast Type]]=\"\",\"\",\" - \"&TRIM(StipulatedWattage_Table[[#This Row],[Ballast Type]]))&\"]\"","v":"[4L - 32W - IS N]"},4,32,"IS N",0.88,116,null,null,null,null,null,null,null,null,null,null,null,null,null,null,null,null,null,null,null,109,{"$f":"SegmentExceptTable[[#This Row],[Numbers]]/$BP$4","v":0.18196994991652754},{"$f":"SegmentExceptTable[[#This Row],[kW Boundary]]+(0.05*SegmentExceptTable[[#This Row],[kW Boundary]])","v":0.1910684474123539},{"$f":"$BP$6*SegmentExceptTable[[#This Row],[kW Boundary]]+$BP$7","v":0.24580716350231374},{"$f":"$BP$8*SegmentExceptTable[[#This Row],[kW Boundary]]+$BP$9","v":6.8332954131629708E-2},{"$f":"SegmentExceptTable[[#This Row],[Boundary S/M]]+(0.05*SegmentExceptTable[[#This Row],[Boundary S/M]])","v":7.1749601838211191E-2},{"$f":"IF(AND(AND(kwpeak_norm>SegmentExceptTable[[#This Row],[kW Boundary]],kwpeak_norm<SegmentExceptTable[[#This Row],[kW Exception]]),AND(kwhmo_norm>SegmentExceptTable[[#This Row],[Boundary S/M]],kwhmo_norm<SegmentExceptTable[[#This Row],[Exception S/M]])),1,0)","v":0},{"$f":"$BP$10*SegmentExceptTable[[#This Row],[kW Boundary]]+$BP$11","v":0.25450090647424922},{"$f":"$BP$12*SegmentExceptTable[[#This Row],[kW Boundary]]+$BP$13","v":0.48452069063129194},{"$f":"SegmentExceptTable[[#This Row],[Boundary M/L]]+(0.05*SegmentExceptTable[[#This Row],[Boundary M/L]])","v":0.50874672516285657},{"$f":"IF(AND(AND(kwpeak_norm>SegmentExceptTable[[#This Row],[kW Boundary]],kwpeak_norm<SegmentExceptTable[[#This Row],[kW Exception]]),AND(kwhmo_norm>SegmentExceptTable[[#This Row],[Boundary M/L]],kwhmo_norm<SegmentExceptTable[[#This Row],[Exception M/L]])),1,0)","v":0}]
[null,null,null,"Post Office",null,"WV",null,"LED250",null,null,null,null,null,"Per-kWh Rate",null,"Per-kWh Rate",null,null,"Performing Arts Theater",0.78,null,null,{"$f":"\"[\"&StipulatedWattage_Table[[#This Row],[Lamp Qty]]&\"L - \"&StipulatedWattage_Table[[#This Row],[Actual lamp wattage]]&\"W\"&IF(StipulatedWattage_Table[[#This Row],[Ballast Type]]=\"\",\"\",\" - \"&TRIM(StipulatedWattage_Table[[#This Row],[Ballast Type]]))&\"]\"","v":"[4L - 32W - IS VH]"},4,32,"IS VH",1.1499999999999999,145,null,null,null,null,null,null,null,null,null,null,null,null,null,null,null,null,null,null,null,110,{"$f":"SegmentExceptTable[[#This Row],[Numbers]]/$BP$4","v":0.18363939899833054},{"$f":"SegmentExceptTable[[#This Row],[kW Boundary]]+(0.05*SegmentExceptTable[[#This Row],[kW Boundary]])","v":0.19282136894824706},{"$f":"$BP$6*SegmentExceptTable[[#This Row],[kW Boundary]]+$BP$7","v":0.24823399379768002},{"$f":"$BP$8*SegmentExceptTable[[#This Row],[kW Boundary]]+$BP$9","v":6.7184517736198851E-2},{"$f":"SegmentExceptTable[[#This Row],[Boundary S/M]]+(0.05*SegmentExceptTable[[#This Row],[Boundary S/M]])","v":7.0543743623008789E-2},{"$f":"IF(AND(AND(kwpeak_norm>SegmentExceptTable[[#This Row],[kW Boundary]],kwpeak_norm<SegmentExceptTable[[#This Row],[kW Exception]]),AND(kwhmo_norm>SegmentExceptTable[[#This Row],[Boundary S/M]],kwhmo_norm<SegmentExceptTable[[#This Row],[Exception S/M]])),1,0)","v":0},{"$f":"$BP$10*SegmentExceptTable[[#This Row],[kW Boundary]]+$BP$11","v":0.25802796011648776},{"$f":"$BP$12*SegmentExceptTable[[#This Row],[kW Boundary]]+$BP$13","v":0.4837304956075032},{"$f":"SegmentExceptTable[[#This Row],[Boundary M/L]]+(0.05*SegmentExceptTable[[#This Row],[Boundary M/L]])","v":0.50791702038787834},{"$f":"IF(AND(AND(kwpeak_norm>SegmentExceptTable[[#This Row],[kW Boundary]],kwpeak_norm<SegmentExceptTable[[#This Row],[kW Exception]]),AND(kwhmo_norm>SegmentExceptTable[[#This Row],[Boundary M/L]],kwhmo_norm<SegmentExceptTable[[#This Row],[Exception M/L]])),1,0)","v":0}]
[null,null,null,"Recreation",null,"WY",null,"LED400",null,null,null,null,null,"Per-kWh Rate",null,"Per-kWh Rate",null,null,"Performing Arts Theater: Lobby",0.78,null,null,{"$f":"\"[\"&StipulatedWattage_Table[[#This Row],[Lamp Qty]]&\"L - \"&StipulatedWattage_Table[[#This Row],[Actual lamp wattage]]&\"W\"&IF(StipulatedWattage_Table[[#This Row],[Ballast Type]]=\"\",\"\",\" - \"&TRIM(StipulatedWattage_Table[[#This Row],[Ballast Type]]))&\"]\"","v":"[4L - 32W - MG]"},4,32,"MG ",1,126,null,null,null,null,null,null,null,null,null,null,null,null,null,null,null,null,null,null,null,111,{"$f":"SegmentExceptTable[[#This Row],[Numbers]]/$BP$4","v":0.18530884808013356},{"$f":"SegmentExceptTable[[#This Row],[kW Boundary]]+(0.05*SegmentExceptTable[[#This Row],[kW Boundary]])","v":0.19457429048414024},{"$f":"$BP$6*SegmentExceptTable[[#This Row],[kW Boundary]]+$BP$7","v":0.2506608240930463},{"$f":"$BP$8*SegmentExceptTable[[#This Row],[kW Boundary]]+$BP$9","v":6.6036081340767938E-2},{"$f":"SegmentExceptTable[[#This Row],[Boundary S/M]]+(0.05*SegmentExceptTable[[#This Row],[Boundary S/M]])","v":6.9337885407806332E-2},{"$f":"IF(AND(AND(kwpeak_norm>SegmentExceptTable[[#This Row],[kW Boundary]],kwpeak_norm<SegmentExceptTable[[#This Row],[kW Exception]]),AND(kwhmo_norm>SegmentExceptTable[[#This Row],[Boundary S/M]],kwhmo_norm<SegmentExceptTable[[#This Row],[Exception S/M]])),1,0)","v":0},{"$f":"$BP$10*SegmentExceptTable[[#This Row],[kW Boundary]]+$BP$11","v":0.26155501375872636},{"$f":"$BP$12*SegmentExceptTable[[#This Row],[kW Boundary]]+$BP$13","v":0.48294030058371445},{"$f":"SegmentExceptTable[[#This Row],[Boundary M/L]]+(0.05*SegmentExceptTable[[#This Row],[Boundary M/L]])","v":0.50708731561290021},{"$f":"IF(AND(AND(kwpeak_norm>SegmentExceptTable[[#This Row],[kW Boundary]],kwpeak_norm<SegmentExceptTable[[#This Row],[kW Exception]]),AND(kwhmo_norm>SegmentExceptTable[[#This Row],[Boundary M/L]],kwhmo_norm<SegmentExceptTable[[#This Row],[Exception M/L]])),1,0)","v":0}]
[null,null,null,"Religious Building",null,null,null,"High Pressure Sodium70",null,null,null,null,null,"Per-kWh Rate",null,3.41,null,null,"Performing Arts Theater: Dressing Room",0.78,null,null,{"$f":"\"[\"&StipulatedWattage_Table[[#This Row],[Lamp Qty]]&\"L - \"&StipulatedWattage_Table[[#This Row],[Actual lamp wattage]]&\"W\"&IF(StipulatedWattage_Table[[#This Row],[Ballast Type]]=\"\",\"\",\" - \"&TRIM(StipulatedWattage_Table[[#This Row],[Ballast Type]]))&\"]\"","v":"[4L - 32W - RS/PRS H]"},4,32,"RS/PRS H",1.1000000000000001,146,null,null,null,null,null,null,null,null,null,null,null,null,null,null,null,null,null,null,null,112,{"$f":"SegmentExceptTable[[#This Row],[Numbers]]/$BP$4","v":0.18697829716193656},{"$f":"SegmentExceptTable[[#This Row],[kW Boundary]]+(0.05*SegmentExceptTable[[#This Row],[kW Boundary]])","v":0.19632721202003339},{"$f":"$BP$6*SegmentExceptTable[[#This Row],[kW Boundary]]+$BP$7","v":0.25308765438841258},{"$f":"$BP$8*SegmentExceptTable[[#This Row],[kW Boundary]]+$BP$9","v":6.4887644945337081E-2},{"$f":"SegmentExceptTable[[#This Row],[Boundary S/M]]+(0.05*SegmentExceptTable[[#This Row],[Boundary S/M]])","v":6.8132027192603931E-2},{"$f":"IF(AND(AND(kwpeak_norm>SegmentExceptTable[[#This Row],[kW Boundary]],kwpeak_norm<SegmentExceptTable[[#This Row],[kW Exception]]),AND(kwhmo_norm>SegmentExceptTable[[#This Row],[Boundary S/M]],kwhmo_norm<SegmentExceptTable[[#This Row],[Exception S/M]])),1,0)","v":0},{"$f":"$BP$10*SegmentExceptTable[[#This Row],[kW Boundary]]+$BP$11","v":0.26508206740096485},{"$f":"$BP$12*SegmentExceptTable[[#This Row],[kW Boundary]]+$BP$13","v":0.48215010555992566},{"$f":"SegmentExceptTable[[#This Row],[Boundary M/L]]+(0.05*SegmentExceptTable[[#This Row],[Boundary M/L]])","v":0.50625761083792198},{"$f":"IF(AND(AND(kwpeak_norm>SegmentExceptTable[[#This Row],[kW Boundary]],kwpeak_norm<SegmentExceptTable[[#This Row],[kW Exception]]),AND(kwhmo_norm>SegmentExceptTable[[#This Row],[Boundary M/L]],kwhmo_norm<SegmentExceptTable[[#This Row],[Exception M/L]])),1,0)","v":0}]
[null,null,null,"Retail/wholesale store",null,null,null,"High Pressure Sodium100",null,null,null,null,null,"Per-kWh Rate",null,4.5,null,null,"Police",0.94,null,null,{"$f":"\"[\"&StipulatedWattage_Table[[#This Row],[Lamp Qty]]&\"L - \"&StipulatedWattage_Table[[#This Row],[Actual lamp wattage]]&\"W\"&IF(StipulatedWattage_Table[[#This Row],[Ballast Type]]=\"\",\"\",\" - \"&TRIM(StipulatedWattage_Table[[#This Row],[Ballast Type]]))&\"]\"","v":"[4L - 32W - RS/PRS L]"},4,32,"RS/PRS L",0.78,93,null,null,null,null,null,null,null,null,null,null,null,null,null,null,null,null,null,null,null,113,{"$f":"SegmentExceptTable[[#This Row],[Numbers]]/$BP$4","v":0.18864774624373956},{"$f":"SegmentExceptTable[[#This Row],[kW Boundary]]+(0.05*SegmentExceptTable[[#This Row],[kW Boundary]])","v":0.19808013355592655},{"$f":"$BP$6*SegmentExceptTable[[#This Row],[kW Boundary]]+$BP$7","v":0.25551448468377885},{"$f":"$BP$8*SegmentExceptTable[[#This Row],[kW Boundary]]+$BP$9","v":6.3739208549906196E-2},{"$f":"SegmentExceptTable[[#This Row],[Boundary S/M]]+(0.05*SegmentExceptTable[[#This Row],[Boundary S/M]])","v":6.6926168977401501E-2},{"$f":"IF(AND(AND(kwpeak_norm>SegmentExceptTable[[#This Row],[kW Boundary]],kwpeak_norm<SegmentExceptTable[[#This Row],[kW Exception]]),AND(kwhmo_norm>SegmentExceptTable[[#This Row],[Boundary S/M]],kwhmo_norm<SegmentExceptTable[[#This Row],[Exception S/M]])),1,0)","v":0},{"$f":"$BP$10*SegmentExceptTable[[#This Row],[kW Boundary]]+$BP$11","v":0.26860912104320339},{"$f":"$BP$12*SegmentExceptTable[[#This Row],[kW Boundary]]+$BP$13","v":0.48135991053613691},{"$f":"SegmentExceptTable[[#This Row],[Boundary M/L]]+(0.05*SegmentExceptTable[[#This Row],[Boundary M/L]])","v":0.50542790606294374},{"$f":"IF(AND(AND(kwpeak_norm>SegmentExceptTable[[#This Row],[kW Boundary]],kwpeak_norm<SegmentExceptTable[[#This Row],[kW Exception]]),AND(kwhmo_norm>SegmentExceptTable[[#This Row],[Boundary M/L]],kwhmo_norm<SegmentExceptTable[[#This Row],[Exception M/L]])),1,0)","v":0}]
[null,null,null,"School",null,null,null,"High Pressure Sodium150",null,null,null,null,null,"Per-kWh Rate",null,5.46,null,null,"Post Office",0.94,3067,null,{"$f":"\"[\"&StipulatedWattage_Table[[#This Row],[Lamp Qty]]&\"L - \"&StipulatedWattage_Table[[#This Row],[Actual lamp wattage]]&\"W\"&IF(StipulatedWattage_Table[[#This Row],[Ballast Type]]=\"\",\"\",\" - \"&TRIM(StipulatedWattage_Table[[#This Row],[Ballast Type]]))&\"]\"","v":"[4L - 32W - RS/PRS N]"},4,32,"RS/PRS N",0.88,112,null,null,null,null,null,null,null,null,null,null,null,null,null,null,null,null,null,null,null,114,{"$f":"SegmentExceptTable[[#This Row],[Numbers]]/$BP$4","v":0.19031719532554256},{"$f":"SegmentExceptTable[[#This Row],[kW Boundary]]+(0.05*SegmentExceptTable[[#This Row],[kW Boundary]])","v":0.1998330550918197},{"$f":"$BP$6*SegmentExceptTable[[#This Row],[kW Boundary]]+$BP$7","v":0.25794131497914513},{"$f":"$BP$8*SegmentExceptTable[[#This Row],[kW Boundary]]+$BP$9","v":6.2590772154475338E-2},{"$f":"SegmentExceptTable[[#This Row],[Boundary S/M]]+(0.05*SegmentExceptTable[[#This Row],[Boundary S/M]])","v":6.57203107621991E-2},{"$f":"IF(AND(AND(kwpeak_norm>SegmentExceptTable[[#This Row],[kW Boundary]],kwpeak_norm<SegmentExceptTable[[#This Row],[kW Exception]]),AND(kwhmo_norm>SegmentExceptTable[[#This Row],[Boundary S/M]],kwhmo_norm<SegmentExceptTable[[#This Row],[Exception S/M]])),1,0)","v":0},{"$f":"$BP$10*SegmentExceptTable[[#This Row],[kW Boundary]]+$BP$11","v":0.27213617468544188},{"$f":"$BP$12*SegmentExceptTable[[#This Row],[kW Boundary]]+$BP$13","v":0.48056971551234817},{"$f":"SegmentExceptTable[[#This Row],[Boundary M/L]]+(0.05*SegmentExceptTable[[#This Row],[Boundary M/L]])","v":0.50459820128796562},{"$f":"IF(AND(AND(kwpeak_norm>SegmentExceptTable[[#This Row],[kW Boundary]],kwpeak_norm<SegmentExceptTable[[#This Row],[kW Exception]]),AND(kwhmo_norm>SegmentExceptTable[[#This Row],[Boundary M/L]],kwhmo_norm<SegmentExceptTable[[#This Row],[Exception M/L]])),1,0)","v":0}]
[null,null,null,"School - University",null,null,null,"High Pressure Sodium175",null,null,null,null,null,"Per-kWh Rate",null,"Per-kWh Rate",null,null,"Post Office: Sorting Area",0.94,3067,null,{"$f":"\"[\"&StipulatedWattage_Table[[#This Row],[Lamp Qty]]&\"L - \"&StipulatedWattage_Table[[#This Row],[Actual lamp wattage]]&\"W\"&IF(StipulatedWattage_Table[[#This Row],[Ballast Type]]=\"\",\"\",\" - \"&TRIM(StipulatedWattage_Table[[#This Row],[Ballast Type]]))&\"]\"","v":"[4L - 32W - RS/PRS VH]"},4,32,"RS/PRS VH",1.1499999999999999,145,null,null,null,null,null,null,null,null,null,null,null,null,null,null,null,null,null,null,null,115,{"$f":"SegmentExceptTable[[#This Row],[Numbers]]/$BP$4","v":0.19198664440734559},{"$f":"SegmentExceptTable[[#This Row],[kW Boundary]]+(0.05*SegmentExceptTable[[#This Row],[kW Boundary]])","v":0.20158597662771285},{"$f":"$BP$6*SegmentExceptTable[[#This Row],[kW Boundary]]+$BP$7","v":0.26036814527451141},{"$f":"$BP$8*SegmentExceptTable[[#This Row],[kW Boundary]]+$BP$9","v":6.1442335759044453E-2},{"$f":"SegmentExceptTable[[#This Row],[Boundary S/M]]+(0.05*SegmentExceptTable[[#This Row],[Boundary S/M]])","v":6.451445254699667E-2},{"$f":"IF(AND(AND(kwpeak_norm>SegmentExceptTable[[#This Row],[kW Boundary]],kwpeak_norm<SegmentExceptTable[[#This Row],[kW Exception]]),AND(kwhmo_norm>SegmentExceptTable[[#This Row],[Boundary S/M]],kwhmo_norm<SegmentExceptTable[[#This Row],[Exception S/M]])),1,0)","v":0},{"$f":"$BP$10*SegmentExceptTable[[#This Row],[kW Boundary]]+$BP$11","v":0.27566322832768048},{"$f":"$BP$12*SegmentExceptTable[[#This Row],[kW Boundary]]+$BP$13","v":0.47977952048855943},{"$f":"SegmentExceptTable[[#This Row],[Boundary M/L]]+(0.05*SegmentExceptTable[[#This Row],[Boundary M/L]])","v":0.50376849651298738},{"$f":"IF(AND(AND(kwpeak_norm>SegmentExceptTable[[#This Row],[kW Boundary]],kwpeak_norm<SegmentExceptTable[[#This Row],[kW Exception]]),AND(kwhmo_norm>SegmentExceptTable[[#This Row],[Boundary M/L]],kwhmo_norm<SegmentExceptTable[[#This Row],[Exception M/L]])),1,0)","v":0}]
[null,null,null,"School preK-12 - buildings/classrooms/daycare centers",null,null,null,"High Pressure Sodium200",null,null,null,null,null,"Per-kWh Rate",null,"Per-kWh Rate",null,null,"Religious Building",0.89,null,null,{"$f":"\"[\"&StipulatedWattage_Table[[#This Row],[Lamp Qty]]&\"L - \"&StipulatedWattage_Table[[#This Row],[Actual lamp wattage]]&\"W\"&IF(StipulatedWattage_Table[[#This Row],[Ballast Type]]=\"\",\"\",\" - \"&TRIM(StipulatedWattage_Table[[#This Row],[Ballast Type]]))&\"]\"","v":"[4L - 34W - IS N]"},4,34,"IS N",0.88,112,null,null,null,null,null,null,null,null,null,null,null,null,null,null,null,null,null,null,null,116,{"$f":"SegmentExceptTable[[#This Row],[Numbers]]/$BP$4","v":0.19365609348914858},{"$f":"SegmentExceptTable[[#This Row],[kW Boundary]]+(0.05*SegmentExceptTable[[#This Row],[kW Boundary]])","v":0.20333889816360601},{"$f":"$BP$6*SegmentExceptTable[[#This Row],[kW Boundary]]+$BP$7","v":0.26279497556987769},{"$f":"$BP$8*SegmentExceptTable[[#This Row],[kW Boundary]]+$BP$9","v":6.0293899363613568E-2},{"$f":"SegmentExceptTable[[#This Row],[Boundary S/M]]+(0.05*SegmentExceptTable[[#This Row],[Boundary S/M]])","v":6.3308594331794241E-2},{"$f":"IF(AND(AND(kwpeak_norm>SegmentExceptTable[[#This Row],[kW Boundary]],kwpeak_norm<SegmentExceptTable[[#This Row],[kW Exception]]),AND(kwhmo_norm>SegmentExceptTable[[#This Row],[Boundary S/M]],kwhmo_norm<SegmentExceptTable[[#This Row],[Exception S/M]])),1,0)","v":0},{"$f":"$BP$10*SegmentExceptTable[[#This Row],[kW Boundary]]+$BP$11","v":0.27919028196991896},{"$f":"$BP$12*SegmentExceptTable[[#This Row],[kW Boundary]]+$BP$13","v":0.47898932546477069},{"$f":"SegmentExceptTable[[#This Row],[Boundary M/L]]+(0.05*SegmentExceptTable[[#This Row],[Boundary M/L]])","v":0.50293879173800926},{"$f":"IF(AND(AND(kwpeak_norm>SegmentExceptTable[[#This Row],[kW Boundary]],kwpeak_norm<SegmentExceptTable[[#This Row],[kW Exception]]),AND(kwhmo_norm>SegmentExceptTable[[#This Row],[Boundary M/L]],kwhmo_norm<SegmentExceptTable[[#This Row],[Exception M/L]])),1,0)","v":0}]
[null,null,null,"Service",null,null,null,"High Pressure Sodium250",null,null,null,null,null,"Per-kWh Rate",null,8.0299999999999994,null,null,"Religious Facility",0.89,null,null,{"$f":"\"[\"&StipulatedWattage_Table[[#This Row],[Lamp Qty]]&\"L - \"&StipulatedWattage_Table[[#This Row],[Actual lamp wattage]]&\"W\"&IF(StipulatedWattage_Table[[#This Row],[Ballast Type]]=\"\",\"\",\" - \"&TRIM(StipulatedWattage_Table[[#This Row],[Ballast Type]]))&\"]\"","v":"[4L - 34W - MG]"},4,34,"MG ",1,116,null,null,null,null,null,null,null,null,null,null,null,null,null,null,null,null,null,null,null,117,{"$f":"SegmentExceptTable[[#This Row],[Numbers]]/$BP$4","v":0.19532554257095158},{"$f":"SegmentExceptTable[[#This Row],[kW Boundary]]+(0.05*SegmentExceptTable[[#This Row],[kW Boundary]])","v":0.20509181969949916},{"$f":"$BP$6*SegmentExceptTable[[#This Row],[kW Boundary]]+$BP$7","v":0.26522180586524396},{"$f":"$BP$8*SegmentExceptTable[[#This Row],[kW Boundary]]+$BP$9","v":5.914546296818271E-2},{"$f":"SegmentExceptTable[[#This Row],[Boundary S/M]]+(0.05*SegmentExceptTable[[#This Row],[Boundary S/M]])","v":6.2102736116591846E-2},{"$f":"IF(AND(AND(kwpeak_norm>SegmentExceptTable[[#This Row],[kW Boundary]],kwpeak_norm<SegmentExceptTable[[#This Row],[kW Exception]]),AND(kwhmo_norm>SegmentExceptTable[[#This Row],[Boundary S/M]],kwhmo_norm<SegmentExceptTable[[#This Row],[Exception S/M]])),1,0)","v":0},{"$f":"$BP$10*SegmentExceptTable[[#This Row],[kW Boundary]]+$BP$11","v":0.28271733561215751},{"$f":"$BP$12*SegmentExceptTable[[#This Row],[kW Boundary]]+$BP$13","v":0.47819913044098189},{"$f":"SegmentExceptTable[[#This Row],[Boundary M/L]]+(0.05*SegmentExceptTable[[#This Row],[Boundary M/L]])","v":0.50210908696303103},{"$f":"IF(AND(AND(kwpeak_norm>SegmentExceptTable[[#This Row],[kW Boundary]],kwpeak_norm<SegmentExceptTable[[#This Row],[kW Exception]]),AND(kwhmo_norm>SegmentExceptTable[[#This Row],[Boundary M/L]],kwhmo_norm<SegmentExceptTable[[#This Row],[Exception M/L]])),1,0)","v":0}]
[null,null,null,"Single Dwelling",null,null,null,"High Pressure Sodium320",null,null,null,null,null,"Per-kWh Rate",null,"Per-kWh Rate",null,null,"Religious Worship",0.89,null,null,{"$f":"\"[\"&StipulatedWattage_Table[[#This Row],[Lamp Qty]]&\"L - \"&StipulatedWattage_Table[[#This Row],[Actual lamp wattage]]&\"W\"&IF(StipulatedWattage_Table[[#This Row],[Ballast Type]]=\"\",\"\",\" - \"&TRIM(StipulatedWattage_Table[[#This Row],[Ballast Type]]))&\"]\"","v":"[4L - 40W - MG]"},4,40,"MG ",1,116,null,null,null,null,null,null,null,null,null,null,null,null,null,null,null,null,null,null,null,118,{"$f":"SegmentExceptTable[[#This Row],[Numbers]]/$BP$4","v":0.19699499165275458},{"$f":"SegmentExceptTable[[#This Row],[kW Boundary]]+(0.05*SegmentExceptTable[[#This Row],[kW Boundary]])","v":0.20684474123539232},{"$f":"$BP$6*SegmentExceptTable[[#This Row],[kW Boundary]]+$BP$7","v":0.26764863616061024},{"$f":"$BP$8*SegmentExceptTable[[#This Row],[kW Boundary]]+$BP$9","v":5.7997026572751825E-2},{"$f":"SegmentExceptTable[[#This Row],[Boundary S/M]]+(0.05*SegmentExceptTable[[#This Row],[Boundary S/M]])","v":6.0896877901389417E-2},{"$f":"IF(AND(AND(kwpeak_norm>SegmentExceptTable[[#This Row],[kW Boundary]],kwpeak_norm<SegmentExceptTable[[#This Row],[kW Exception]]),AND(kwhmo_norm>SegmentExceptTable[[#This Row],[Boundary S/M]],kwhmo_norm<SegmentExceptTable[[#This Row],[Exception S/M]])),1,0)","v":0},{"$f":"$BP$10*SegmentExceptTable[[#This Row],[kW Boundary]]+$BP$11","v":0.28624438925439599},{"$f":"$BP$12*SegmentExceptTable[[#This Row],[kW Boundary]]+$BP$13","v":0.47740893541719315},{"$f":"SegmentExceptTable[[#This Row],[Boundary M/L]]+(0.05*SegmentExceptTable[[#This Row],[Boundary M/L]])","v":0.50127938218805279},{"$f":"IF(AND(AND(kwpeak_norm>SegmentExceptTable[[#This Row],[kW Boundary]],kwpeak_norm<SegmentExceptTable[[#This Row],[kW Exception]]),AND(kwhmo_norm>SegmentExceptTable[[#This Row],[Boundary M/L]],kwhmo_norm<SegmentExceptTable[[#This Row],[Exception M/L]])),1,0)","v":0}]
[null,null,null,"Sports Arena",null,null,null,"High Pressure Sodium400",null,null,null,null,null,"Per-kWh Rate",null,11.7,null,null,"Restaurant",0.94,4900,null,{"$f":"\"[\"&StipulatedWattage_Table[[#This Row],[Lamp Qty]]&\"L - \"&StipulatedWattage_Table[[#This Row],[Actual lamp wattage]]&\"W\"&IF(StipulatedWattage_Table[[#This Row],[Ballast Type]]=\"\",\"\",\" - \"&TRIM(StipulatedWattage_Table[[#This Row],[Ballast Type]]))&\"]\"","v":"[4L - 40W]"},4,40,null,null,116,null,null,null,null,null,null,null,null,null,null,null,null,null,null,null,null,null,null,null,119,{"$f":"SegmentExceptTable[[#This Row],[Numbers]]/$BP$4","v":0.19866444073455761},{"$f":"SegmentExceptTable[[#This Row],[kW Boundary]]+(0.05*SegmentExceptTable[[#This Row],[kW Boundary]])","v":0.2085976627712855},{"$f":"$BP$6*SegmentExceptTable[[#This Row],[kW Boundary]]+$BP$7","v":0.27007546645597652},{"$f":"$BP$8*SegmentExceptTable[[#This Row],[kW Boundary]]+$BP$9","v":5.684859017732094E-2},{"$f":"SegmentExceptTable[[#This Row],[Boundary S/M]]+(0.05*SegmentExceptTable[[#This Row],[Boundary S/M]])","v":5.9691019686186987E-2},{"$f":"IF(AND(AND(kwpeak_norm>SegmentExceptTable[[#This Row],[kW Boundary]],kwpeak_norm<SegmentExceptTable[[#This Row],[kW Exception]]),AND(kwhmo_norm>SegmentExceptTable[[#This Row],[Boundary S/M]],kwhmo_norm<SegmentExceptTable[[#This Row],[Exception S/M]])),1,0)","v":0},{"$f":"$BP$10*SegmentExceptTable[[#This Row],[kW Boundary]]+$BP$11","v":0.28977144289663459},{"$f":"$BP$12*SegmentExceptTable[[#This Row],[kW Boundary]]+$BP$13","v":0.47661874039340435},{"$f":"SegmentExceptTable[[#This Row],[Boundary M/L]]+(0.05*SegmentExceptTable[[#This Row],[Boundary M/L]])","v":0.50044967741307456},{"$f":"IF(AND(AND(kwpeak_norm>SegmentExceptTable[[#This Row],[kW Boundary]],kwpeak_norm<SegmentExceptTable[[#This Row],[kW Exception]]),AND(kwhmo_norm>SegmentExceptTable[[#This Row],[Boundary M/L]],kwhmo_norm<SegmentExceptTable[[#This Row],[Exception M/L]])),1,0)","v":0}]
[null,null,null,"Street Lighting",null,null,null,"Metal Halide100",null,null,null,null,null,"Per-kWh Rate",null,6.72,null,null,"Retail",0.94,5133,null,{"$f":"\"[\"&StipulatedWattage_Table[[#This Row],[Lamp Qty]]&\"L - \"&StipulatedWattage_Table[[#This Row],[Actual lamp wattage]]&\"W\"&IF(StipulatedWattage_Table[[#This Row],[Ballast Type]]=\"\",\"\",\" - \"&TRIM(StipulatedWattage_Table[[#This Row],[Ballast Type]]))&\"]\"","v":"[4L - 59W - IS H]"},4,59,"IS H",1.1000000000000001,290,null,null,null,null,null,null,null,null,null,null,null,null,null,null,null,null,null,null,null,120,{"$f":"SegmentExceptTable[[#This Row],[Numbers]]/$BP$4","v":0.20033388981636061},{"$f":"SegmentExceptTable[[#This Row],[kW Boundary]]+(0.05*SegmentExceptTable[[#This Row],[kW Boundary]])","v":0.21035058430717862},{"$f":"$BP$6*SegmentExceptTable[[#This Row],[kW Boundary]]+$BP$7","v":0.2725022967513428},{"$f":"$BP$8*SegmentExceptTable[[#This Row],[kW Boundary]]+$BP$9","v":5.5700153781890083E-2},{"$f":"SegmentExceptTable[[#This Row],[Boundary S/M]]+(0.05*SegmentExceptTable[[#This Row],[Boundary S/M]])","v":5.8485161470984585E-2},{"$f":"IF(AND(AND(kwpeak_norm>SegmentExceptTable[[#This Row],[kW Boundary]],kwpeak_norm<SegmentExceptTable[[#This Row],[kW Exception]]),AND(kwhmo_norm>SegmentExceptTable[[#This Row],[Boundary S/M]],kwhmo_norm<SegmentExceptTable[[#This Row],[Exception S/M]])),1,0)","v":0},{"$f":"$BP$10*SegmentExceptTable[[#This Row],[kW Boundary]]+$BP$11","v":0.29329849653887308},{"$f":"$BP$12*SegmentExceptTable[[#This Row],[kW Boundary]]+$BP$13","v":0.47582854536961561},{"$f":"SegmentExceptTable[[#This Row],[Boundary M/L]]+(0.05*SegmentExceptTable[[#This Row],[Boundary M/L]])","v":0.49961997263809638},{"$f":"IF(AND(AND(kwpeak_norm>SegmentExceptTable[[#This Row],[kW Boundary]],kwpeak_norm<SegmentExceptTable[[#This Row],[kW Exception]]),AND(kwhmo_norm>SegmentExceptTable[[#This Row],[Boundary M/L]],kwhmo_norm<SegmentExceptTable[[#This Row],[Exception M/L]])),1,0)","v":0}]
[null,null,null,"Theater - motion picture",null,null,null,"Metal Halide150",null,null,null,null,null,"Per-kWh Rate",null,"Per-kWh Rate",null,null,"Retail & Retail Banking",0.94,5133,null,{"$f":"\"[\"&StipulatedWattage_Table[[#This Row],[Lamp Qty]]&\"L - \"&StipulatedWattage_Table[[#This Row],[Actual lamp wattage]]&\"W\"&IF(StipulatedWattage_Table[[#This Row],[Ballast Type]]=\"\",\"\",\" - \"&TRIM(StipulatedWattage_Table[[#This Row],[Ballast Type]]))&\"]\"","v":"[4L - 59W - IS VH]"},4,59,"IS VH",1.1499999999999999,290,null,null,null,null,null,null,null,null,null,null,null,null,null,null,null,null,null,null,null,121,{"$f":"SegmentExceptTable[[#This Row],[Numbers]]/$BP$4","v":0.2020033388981636},{"$f":"SegmentExceptTable[[#This Row],[kW Boundary]]+(0.05*SegmentExceptTable[[#This Row],[kW Boundary]])","v":0.21210350584307178},{"$f":"$BP$6*SegmentExceptTable[[#This Row],[kW Boundary]]+$BP$7","v":0.27492912704670908},{"$f":"$BP$8*SegmentExceptTable[[#This Row],[kW Boundary]]+$BP$9","v":5.4551717386459198E-2},{"$f":"SegmentExceptTable[[#This Row],[Boundary S/M]]+(0.05*SegmentExceptTable[[#This Row],[Boundary S/M]])","v":5.7279303255782156E-2},{"$f":"IF(AND(AND(kwpeak_norm>SegmentExceptTable[[#This Row],[kW Boundary]],kwpeak_norm<SegmentExceptTable[[#This Row],[kW Exception]]),AND(kwhmo_norm>SegmentExceptTable[[#This Row],[Boundary S/M]],kwhmo_norm<SegmentExceptTable[[#This Row],[Exception S/M]])),1,0)","v":0},{"$f":"$BP$10*SegmentExceptTable[[#This Row],[kW Boundary]]+$BP$11","v":0.29682555018111162},{"$f":"$BP$12*SegmentExceptTable[[#This Row],[kW Boundary]]+$BP$13","v":0.47503835034582687},{"$f":"SegmentExceptTable[[#This Row],[Boundary M/L]]+(0.05*SegmentExceptTable[[#This Row],[Boundary M/L]])","v":0.4987902678631182},{"$f":"IF(AND(AND(kwpeak_norm>SegmentExceptTable[[#This Row],[kW Boundary]],kwpeak_norm<SegmentExceptTable[[#This Row],[kW Exception]]),AND(kwhmo_norm>SegmentExceptTable[[#This Row],[Boundary M/L]],kwhmo_norm<SegmentExceptTable[[#This Row],[Exception M/L]])),1,0)","v":0}]
[null,null,null,"Theater - performing arts",null,null,null,"Metal Halide175",null,null,null,null,null,"Per-kWh Rate",null,11.38,null,null,"Retail Merchandise Sales, Wholesale Showroom",0.94,5133,null,{"$f":"\"[\"&StipulatedWattage_Table[[#This Row],[Lamp Qty]]&\"L - \"&StipulatedWattage_Table[[#This Row],[Actual lamp wattage]]&\"W\"&IF(StipulatedWattage_Table[[#This Row],[Ballast Type]]=\"\",\"\",\" - \"&TRIM(StipulatedWattage_Table[[#This Row],[Ballast Type]]))&\"]\"","v":"[4L - 120W]"},4,120,null,null,172,null,null,null,null,null,null,null,null,null,null,null,null,null,null,null,null,null,null,null,122,{"$f":"SegmentExceptTable[[#This Row],[Numbers]]/$BP$4","v":0.2036727879799666},{"$f":"SegmentExceptTable[[#This Row],[kW Boundary]]+(0.05*SegmentExceptTable[[#This Row],[kW Boundary]])","v":0.21385642737896493},{"$f":"$BP$6*SegmentExceptTable[[#This Row],[kW Boundary]]+$BP$7","v":0.27735595734207535},{"$f":"$BP$8*SegmentExceptTable[[#This Row],[kW Boundary]]+$BP$9","v":5.340328099102834E-2},{"$f":"SegmentExceptTable[[#This Row],[Boundary S/M]]+(0.05*SegmentExceptTable[[#This Row],[Boundary S/M]])","v":5.6073445040579754E-2},{"$f":"IF(AND(AND(kwpeak_norm>SegmentExceptTable[[#This Row],[kW Boundary]],kwpeak_norm<SegmentExceptTable[[#This Row],[kW Exception]]),AND(kwhmo_norm>SegmentExceptTable[[#This Row],[Boundary S/M]],kwhmo_norm<SegmentExceptTable[[#This Row],[Exception S/M]])),1,0)","v":0},{"$f":"$BP$10*SegmentExceptTable[[#This Row],[kW Boundary]]+$BP$11","v":0.30035260382335011},{"$f":"$BP$12*SegmentExceptTable[[#This Row],[kW Boundary]]+$BP$13","v":0.47424815532203812},{"$f":"SegmentExceptTable[[#This Row],[Boundary M/L]]+(0.05*SegmentExceptTable[[#This Row],[Boundary M/L]])","v":0.49796056308814002},{"$f":"IF(AND(AND(kwpeak_norm>SegmentExceptTable[[#This Row],[kW Boundary]],kwpeak_norm<SegmentExceptTable[[#This Row],[kW Exception]]),AND(kwhmo_norm>SegmentExceptTable[[#This Row],[Boundary M/L]],kwhmo_norm<SegmentExceptTable[[#This Row],[Exception M/L]])),1,0)","v":0}]
[null,null,null,"Town Hall",null,null,null,"Metal Halide250",null,null,null,null,null,"Per-kWh Rate",null,11.49,null,null,"Retail Sales, Wholesale Showroom",0.94,5133,null,{"$f":"\"[\"&StipulatedWattage_Table[[#This Row],[Lamp Qty]]&\"L - \"&StipulatedWattage_Table[[#This Row],[Actual lamp wattage]]&\"W\"&IF(StipulatedWattage_Table[[#This Row],[Ballast Type]]=\"\",\"\",\" - \"&TRIM(StipulatedWattage_Table[[#This Row],[Ballast Type]]))&\"]\"","v":"[4L - 75W]"},4,75,null,null,212,null,null,null,null,null,null,null,null,null,null,null,null,null,null,null,null,null,null,null,123,{"$f":"SegmentExceptTable[[#This Row],[Numbers]]/$BP$4","v":0.20534223706176963},{"$f":"SegmentExceptTable[[#This Row],[kW Boundary]]+(0.05*SegmentExceptTable[[#This Row],[kW Boundary]])","v":0.21560934891485811},{"$f":"$BP$6*SegmentExceptTable[[#This Row],[kW Boundary]]+$BP$7","v":0.27978278763744163},{"$f":"$BP$8*SegmentExceptTable[[#This Row],[kW Boundary]]+$BP$9","v":5.2254844595597427E-2},{"$f":"SegmentExceptTable[[#This Row],[Boundary S/M]]+(0.05*SegmentExceptTable[[#This Row],[Boundary S/M]])","v":5.4867586825377297E-2},{"$f":"IF(AND(AND(kwpeak_norm>SegmentExceptTable[[#This Row],[kW Boundary]],kwpeak_norm<SegmentExceptTable[[#This Row],[kW Exception]]),AND(kwhmo_norm>SegmentExceptTable[[#This Row],[Boundary S/M]],kwhmo_norm<SegmentExceptTable[[#This Row],[Exception S/M]])),1,0)","v":0},{"$f":"$BP$10*SegmentExceptTable[[#This Row],[kW Boundary]]+$BP$11","v":0.3038796574655887},{"$f":"$BP$12*SegmentExceptTable[[#This Row],[kW Boundary]]+$BP$13","v":0.47345796029824938},{"$f":"SegmentExceptTable[[#This Row],[Boundary M/L]]+(0.05*SegmentExceptTable[[#This Row],[Boundary M/L]])","v":0.49713085831316184},{"$f":"IF(AND(AND(kwpeak_norm>SegmentExceptTable[[#This Row],[kW Boundary]],kwpeak_norm<SegmentExceptTable[[#This Row],[kW Exception]]),AND(kwhmo_norm>SegmentExceptTable[[#This Row],[Boundary M/L]],kwhmo_norm<SegmentExceptTable[[#This Row],[Exception M/L]])),1,0)","v":0}]
[null,null,null,"Transportation",null,null,null,"Metal Halide320",null,null,null,null,null,"Per-kWh Rate",null,"Per-kWh Rate",null,null,"Retail: Dressing Room",0.94,5133,null,{"$f":"\"[\"&StipulatedWattage_Table[[#This Row],[Lamp Qty]]&\"L - \"&StipulatedWattage_Table[[#This Row],[Actual lamp wattage]]&\"W\"&IF(StipulatedWattage_Table[[#This Row],[Ballast Type]]=\"\",\"\",\" - \"&TRIM(StipulatedWattage_Table[[#This Row],[Ballast Type]]))&\"]\"","v":"[4L - 86W - IS N]"},4,86,"IS N",0.88,364,null,null,null,null,null,null,null,null,null,null,null,null,null,null,null,null,null,null,null,124,{"$f":"SegmentExceptTable[[#This Row],[Numbers]]/$BP$4","v":0.20701168614357263},{"$f":"SegmentExceptTable[[#This Row],[kW Boundary]]+(0.05*SegmentExceptTable[[#This Row],[kW Boundary]])","v":0.21736227045075127},{"$f":"$BP$6*SegmentExceptTable[[#This Row],[kW Boundary]]+$BP$7","v":0.28220961793280791},{"$f":"$BP$8*SegmentExceptTable[[#This Row],[kW Boundary]]+$BP$9","v":5.110640820016657E-2},{"$f":"SegmentExceptTable[[#This Row],[Boundary S/M]]+(0.05*SegmentExceptTable[[#This Row],[Boundary S/M]])","v":5.3661728610174896E-2},{"$f":"IF(AND(AND(kwpeak_norm>SegmentExceptTable[[#This Row],[kW Boundary]],kwpeak_norm<SegmentExceptTable[[#This Row],[kW Exception]]),AND(kwhmo_norm>SegmentExceptTable[[#This Row],[Boundary S/M]],kwhmo_norm<SegmentExceptTable[[#This Row],[Exception S/M]])),1,0)","v":0},{"$f":"$BP$10*SegmentExceptTable[[#This Row],[kW Boundary]]+$BP$11","v":0.30740671110782719},{"$f":"$BP$12*SegmentExceptTable[[#This Row],[kW Boundary]]+$BP$13","v":0.47266776527446058},{"$f":"SegmentExceptTable[[#This Row],[Boundary M/L]]+(0.05*SegmentExceptTable[[#This Row],[Boundary M/L]])","v":0.4963011535381836},{"$f":"IF(AND(AND(kwpeak_norm>SegmentExceptTable[[#This Row],[kW Boundary]],kwpeak_norm<SegmentExceptTable[[#This Row],[kW Exception]]),AND(kwhmo_norm>SegmentExceptTable[[#This Row],[Boundary M/L]],kwhmo_norm<SegmentExceptTable[[#This Row],[Exception M/L]])),1,0)","v":0}]
[null,null,null,"Tree fruit storage",null,null,null,"Metal Halide400",null,null,null,null,null,"Per-kWh Rate",null,12.22,null,null,"Retail: Mall Concourse",0.94,5133,null,{"$f":"\"[\"&StipulatedWattage_Table[[#This Row],[Lamp Qty]]&\"L - \"&StipulatedWattage_Table[[#This Row],[Actual lamp wattage]]&\"W\"&IF(StipulatedWattage_Table[[#This Row],[Ballast Type]]=\"\",\"\",\" - \"&TRIM(StipulatedWattage_Table[[#This Row],[Ballast Type]]))&\"]\"","v":"[5L - 100W]"},5,100,null,null,3120,null,null,null,null,null,null,null,null,null,null,null,null,null,null,null,null,null,null,null,125,{"$f":"SegmentExceptTable[[#This Row],[Numbers]]/$BP$4","v":0.20868113522537562},{"$f":"SegmentExceptTable[[#This Row],[kW Boundary]]+(0.05*SegmentExceptTable[[#This Row],[kW Boundary]])","v":0.21911519198664442},{"$f":"$BP$6*SegmentExceptTable[[#This Row],[kW Boundary]]+$BP$7","v":0.28463644822817419},{"$f":"$BP$8*SegmentExceptTable[[#This Row],[kW Boundary]]+$BP$9","v":4.9957971804735685E-2},{"$f":"SegmentExceptTable[[#This Row],[Boundary S/M]]+(0.05*SegmentExceptTable[[#This Row],[Boundary S/M]])","v":5.2455870394972466E-2},{"$f":"IF(AND(AND(kwpeak_norm>SegmentExceptTable[[#This Row],[kW Boundary]],kwpeak_norm<SegmentExceptTable[[#This Row],[kW Exception]]),AND(kwhmo_norm>SegmentExceptTable[[#This Row],[Boundary S/M]],kwhmo_norm<SegmentExceptTable[[#This Row],[Exception S/M]])),1,0)","v":0},{"$f":"$BP$10*SegmentExceptTable[[#This Row],[kW Boundary]]+$BP$11","v":0.31093376475006573},{"$f":"$BP$12*SegmentExceptTable[[#This Row],[kW Boundary]]+$BP$13","v":0.47187757025067184},{"$f":"SegmentExceptTable[[#This Row],[Boundary M/L]]+(0.05*SegmentExceptTable[[#This Row],[Boundary M/L]])","v":0.49547144876320542},{"$f":"IF(AND(AND(kwpeak_norm>SegmentExceptTable[[#This Row],[kW Boundary]],kwpeak_norm<SegmentExceptTable[[#This Row],[kW Exception]]),AND(kwhmo_norm>SegmentExceptTable[[#This Row],[Boundary M/L]],kwhmo_norm<SegmentExceptTable[[#This Row],[Exception M/L]])),1,0)","v":0}]
[null,null,null,"Warehouse - storage areas",null,null,null,"Metal Halide1000",null,null,null,null,null,"Per-kWh Rate",null,24.14,null,null,"School",0.71,2500,null,{"$f":"\"[\"&StipulatedWattage_Table[[#This Row],[Lamp Qty]]&\"L - \"&StipulatedWattage_Table[[#This Row],[Actual lamp wattage]]&\"W\"&IF(StipulatedWattage_Table[[#This Row],[Ballast Type]]=\"\",\"\",\" - \"&TRIM(StipulatedWattage_Table[[#This Row],[Ballast Type]]))&\"]\"","v":"[5L - 32W - IS N]"},5,32,"IS N",0.88,144,null,null,null,null,null,null,null,null,null,null,null,null,null,null,null,null,null,null,null,126,{"$f":"SegmentExceptTable[[#This Row],[Numbers]]/$BP$4","v":0.21035058430717862},{"$f":"SegmentExceptTable[[#This Row],[kW Boundary]]+(0.05*SegmentExceptTable[[#This Row],[kW Boundary]])","v":0.22086811352253755},{"$f":"$BP$6*SegmentExceptTable[[#This Row],[kW Boundary]]+$BP$7","v":0.28706327852354047},{"$f":"$BP$8*SegmentExceptTable[[#This Row],[kW Boundary]]+$BP$9","v":4.8809535409304827E-2},{"$f":"SegmentExceptTable[[#This Row],[Boundary S/M]]+(0.05*SegmentExceptTable[[#This Row],[Boundary S/M]])","v":5.1250012179770071E-2},{"$f":"IF(AND(AND(kwpeak_norm>SegmentExceptTable[[#This Row],[kW Boundary]],kwpeak_norm<SegmentExceptTable[[#This Row],[kW Exception]]),AND(kwhmo_norm>SegmentExceptTable[[#This Row],[Boundary S/M]],kwhmo_norm<SegmentExceptTable[[#This Row],[Exception S/M]])),1,0)","v":0},{"$f":"$BP$10*SegmentExceptTable[[#This Row],[kW Boundary]]+$BP$11","v":0.31446081839230422},{"$f":"$BP$12*SegmentExceptTable[[#This Row],[kW Boundary]]+$BP$13","v":0.4710873752268831},{"$f":"SegmentExceptTable[[#This Row],[Boundary M/L]]+(0.05*SegmentExceptTable[[#This Row],[Boundary M/L]])","v":0.49464174398822724},{"$f":"IF(AND(AND(kwpeak_norm>SegmentExceptTable[[#This Row],[kW Boundary]],kwpeak_norm<SegmentExceptTable[[#This Row],[kW Exception]]),AND(kwhmo_norm>SegmentExceptTable[[#This Row],[Boundary M/L]],kwhmo_norm<SegmentExceptTable[[#This Row],[Exception M/L]])),1,0)","v":0}]
[null,null,null,"Wastewater Treatment Plant",null,null,null,"Mercury Vapor76",null,null,null,null,null,"Per-kWh Rate",null,"Per-kWh Rate",null,null,"School Building & Classroom, Day Care Center",0.71,2500,null,{"$f":"\"[\"&StipulatedWattage_Table[[#This Row],[Lamp Qty]]&\"L - \"&StipulatedWattage_Table[[#This Row],[Actual lamp wattage]]&\"W\"&IF(StipulatedWattage_Table[[#This Row],[Ballast Type]]=\"\",\"\",\" - \"&TRIM(StipulatedWattage_Table[[#This Row],[Ballast Type]]))&\"]\"","v":"[5L - 40W]"},5,40,null,null,145,null,null,null,null,null,null,null,null,null,null,null,null,null,null,null,null,null,null,null,127,{"$f":"SegmentExceptTable[[#This Row],[Numbers]]/$BP$4","v":0.21202003338898165},{"$f":"SegmentExceptTable[[#This Row],[kW Boundary]]+(0.05*SegmentExceptTable[[#This Row],[kW Boundary]])","v":0.22262103505843073},{"$f":"$BP$6*SegmentExceptTable[[#This Row],[kW Boundary]]+$BP$7","v":0.28949010881890674},{"$f":"$BP$8*SegmentExceptTable[[#This Row],[kW Boundary]]+$BP$9","v":4.7661099013873942E-2},{"$f":"SegmentExceptTable[[#This Row],[Boundary S/M]]+(0.05*SegmentExceptTable[[#This Row],[Boundary S/M]])","v":5.0044153964567642E-2},{"$f":"IF(AND(AND(kwpeak_norm>SegmentExceptTable[[#This Row],[kW Boundary]],kwpeak_norm<SegmentExceptTable[[#This Row],[kW Exception]]),AND(kwhmo_norm>SegmentExceptTable[[#This Row],[Boundary S/M]],kwhmo_norm<SegmentExceptTable[[#This Row],[Exception S/M]])),1,0)","v":0},{"$f":"$BP$10*SegmentExceptTable[[#This Row],[kW Boundary]]+$BP$11","v":0.31798787203454282},{"$f":"$BP$12*SegmentExceptTable[[#This Row],[kW Boundary]]+$BP$13","v":0.4702971802030943},{"$f":"SegmentExceptTable[[#This Row],[Boundary M/L]]+(0.05*SegmentExceptTable[[#This Row],[Boundary M/L]])","v":0.49381203921324901},{"$f":"IF(AND(AND(kwpeak_norm>SegmentExceptTable[[#This Row],[kW Boundary]],kwpeak_norm<SegmentExceptTable[[#This Row],[kW Exception]]),AND(kwhmo_norm>SegmentExceptTable[[#This Row],[Boundary M/L]],kwhmo_norm<SegmentExceptTable[[#This Row],[Exception M/L]])),1,0)","v":0}]
[null,null,null,"Water Treatment Plant",null,null,null,"Mercury Vapor172",null,null,null,null,null,"Per-kWh Rate",null,"Per-kWh Rate",null,null,"School/University",0.71,2100,null,{"$f":"\"[\"&StipulatedWattage_Table[[#This Row],[Lamp Qty]]&\"L - \"&StipulatedWattage_Table[[#This Row],[Actual lamp wattage]]&\"W\"&IF(StipulatedWattage_Table[[#This Row],[Ballast Type]]=\"\",\"\",\" - \"&TRIM(StipulatedWattage_Table[[#This Row],[Ballast Type]]))&\"]\"","v":"[5L - 120W]"},5,120,null,null,215,null,null,null,null,null,null,null,null,null,null,null,null,null,null,null,null,null,null,null,128,{"$f":"SegmentExceptTable[[#This Row],[Numbers]]/$BP$4","v":0.21368948247078465},{"$f":"SegmentExceptTable[[#This Row],[kW Boundary]]+(0.05*SegmentExceptTable[[#This Row],[kW Boundary]])","v":0.22437395659432388},{"$f":"$BP$6*SegmentExceptTable[[#This Row],[kW Boundary]]+$BP$7","v":0.29191693911427302},{"$f":"$BP$8*SegmentExceptTable[[#This Row],[kW Boundary]]+$BP$9","v":4.6512662618443057E-2},{"$f":"SegmentExceptTable[[#This Row],[Boundary S/M]]+(0.05*SegmentExceptTable[[#This Row],[Boundary S/M]])","v":4.8838295749365213E-2},{"$f":"IF(AND(AND(kwpeak_norm>SegmentExceptTable[[#This Row],[kW Boundary]],kwpeak_norm<SegmentExceptTable[[#This Row],[kW Exception]]),AND(kwhmo_norm>SegmentExceptTable[[#This Row],[Boundary S/M]],kwhmo_norm<SegmentExceptTable[[#This Row],[Exception S/M]])),1,0)","v":0},{"$f":"$BP$10*SegmentExceptTable[[#This Row],[kW Boundary]]+$BP$11","v":0.32151492567678136},{"$f":"$BP$12*SegmentExceptTable[[#This Row],[kW Boundary]]+$BP$13","v":0.46950698517930556},{"$f":"SegmentExceptTable[[#This Row],[Boundary M/L]]+(0.05*SegmentExceptTable[[#This Row],[Boundary M/L]])","v":0.49298233443827083},{"$f":"IF(AND(AND(kwpeak_norm>SegmentExceptTable[[#This Row],[kW Boundary]],kwpeak_norm<SegmentExceptTable[[#This Row],[kW Exception]]),AND(kwhmo_norm>SegmentExceptTable[[#This Row],[Boundary M/L]],kwhmo_norm<SegmentExceptTable[[#This Row],[Exception M/L]])),1,0)","v":0}]
[null,null,null,null,null,null,null,"Mercury Vapor412",null,null,null,null,null,"Per-kWh Rate",null,"Per-kWh Rate",null,null,"Sports Arena",0.89,null,null,{"$f":"\"[\"&StipulatedWattage_Table[[#This Row],[Lamp Qty]]&\"L - \"&StipulatedWattage_Table[[#This Row],[Actual lamp wattage]]&\"W\"&IF(StipulatedWattage_Table[[#This Row],[Ballast Type]]=\"\",\"\",\" - \"&TRIM(StipulatedWattage_Table[[#This Row],[Ballast Type]]))&\"]\"","v":"[5L - 75W]"},5,75,null,null,265,null,null,null,null,null,null,null,null,null,null,null,null,null,null,null,null,null,null,null,129,{"$f":"SegmentExceptTable[[#This Row],[Numbers]]/$BP$4","v":0.21535893155258765},{"$f":"SegmentExceptTable[[#This Row],[kW Boundary]]+(0.05*SegmentExceptTable[[#This Row],[kW Boundary]])","v":0.22612687813021703},{"$f":"$BP$6*SegmentExceptTable[[#This Row],[kW Boundary]]+$BP$7","v":0.2943437694096393},{"$f":"$BP$8*SegmentExceptTable[[#This Row],[kW Boundary]]+$BP$9","v":4.53642262230122E-2},{"$f":"SegmentExceptTable[[#This Row],[Boundary S/M]]+(0.05*SegmentExceptTable[[#This Row],[Boundary S/M]])","v":4.7632437534162811E-2},{"$f":"IF(AND(AND(kwpeak_norm>SegmentExceptTable[[#This Row],[kW Boundary]],kwpeak_norm<SegmentExceptTable[[#This Row],[kW Exception]]),AND(kwhmo_norm>SegmentExceptTable[[#This Row],[Boundary S/M]],kwhmo_norm<SegmentExceptTable[[#This Row],[Exception S/M]])),1,0)","v":0},{"$f":"$BP$10*SegmentExceptTable[[#This Row],[kW Boundary]]+$BP$11","v":0.32504197931901985},{"$f":"$BP$12*SegmentExceptTable[[#This Row],[kW Boundary]]+$BP$13","v":0.46871679015551682},{"$f":"SegmentExceptTable[[#This Row],[Boundary M/L]]+(0.05*SegmentExceptTable[[#This Row],[Boundary M/L]])","v":0.49215262966329265},{"$f":"IF(AND(AND(kwpeak_norm>SegmentExceptTable[[#This Row],[kW Boundary]],kwpeak_norm<SegmentExceptTable[[#This Row],[kW Exception]]),AND(kwhmo_norm>SegmentExceptTable[[#This Row],[Boundary M/L]],kwhmo_norm<SegmentExceptTable[[#This Row],[Exception M/L]])),1,0)","v":0}]
[null,null,null,null,null,null,null,null,null,null,null,null,null,null,null,null,null,null,"Sports Arena: Audience Seating",0.89,null,null,{"$f":"\"[\"&StipulatedWattage_Table[[#This Row],[Lamp Qty]]&\"L - \"&StipulatedWattage_Table[[#This Row],[Actual lamp wattage]]&\"W\"&IF(StipulatedWattage_Table[[#This Row],[Ballast Type]]=\"\",\"\",\" - \"&TRIM(StipulatedWattage_Table[[#This Row],[Ballast Type]]))&\"]\"","v":"[6L - 100W]"},6,100,null,null,432,null,null,null,null,null,null,null,null,null,null,null,null,null,null,null,null,null,null,null,130,{"$f":"SegmentExceptTable[[#This Row],[Numbers]]/$BP$4","v":0.21702838063439064},{"$f":"SegmentExceptTable[[#This Row],[kW Boundary]]+(0.05*SegmentExceptTable[[#This Row],[kW Boundary]])","v":0.22787979966611019},{"$f":"$BP$6*SegmentExceptTable[[#This Row],[kW Boundary]]+$BP$7","v":0.29677059970500558},{"$f":"$BP$8*SegmentExceptTable[[#This Row],[kW Boundary]]+$BP$9","v":4.4215789827581314E-2},{"$f":"SegmentExceptTable[[#This Row],[Boundary S/M]]+(0.05*SegmentExceptTable[[#This Row],[Boundary S/M]])","v":4.6426579318960381E-2},{"$f":"IF(AND(AND(kwpeak_norm>SegmentExceptTable[[#This Row],[kW Boundary]],kwpeak_norm<SegmentExceptTable[[#This Row],[kW Exception]]),AND(kwhmo_norm>SegmentExceptTable[[#This Row],[Boundary S/M]],kwhmo_norm<SegmentExceptTable[[#This Row],[Exception S/M]])),1,0)","v":0},{"$f":"$BP$10*SegmentExceptTable[[#This Row],[kW Boundary]]+$BP$11","v":0.32856903296125839},{"$f":"$BP$12*SegmentExceptTable[[#This Row],[kW Boundary]]+$BP$13","v":0.46792659513172807},{"$f":"SegmentExceptTable[[#This Row],[Boundary M/L]]+(0.05*SegmentExceptTable[[#This Row],[Boundary M/L]])","v":0.49132292488831447},{"$f":"IF(AND(AND(kwpeak_norm>SegmentExceptTable[[#This Row],[kW Boundary]],kwpeak_norm<SegmentExceptTable[[#This Row],[kW Exception]]),AND(kwhmo_norm>SegmentExceptTable[[#This Row],[Boundary M/L]],kwhmo_norm<SegmentExceptTable[[#This Row],[Exception M/L]])),1,0)","v":0}]
[null,null,null,null,null,null,null,null,null,null,null,null,null,null,null,null,null,null,"Sports Arena: Playing Area (Professional)",0.89,null,null,{"$f":"\"[\"&StipulatedWattage_Table[[#This Row],[Lamp Qty]]&\"L - \"&StipulatedWattage_Table[[#This Row],[Actual lamp wattage]]&\"W\"&IF(StipulatedWattage_Table[[#This Row],[Ballast Type]]=\"\",\"\",\" - \"&TRIM(StipulatedWattage_Table[[#This Row],[Ballast Type]]))&\"]\"","v":"[6L - 32W - IS H]"},6,32,"IS H",1.1000000000000001,198,null,null,null,null,null,null,null,null,null,null,null,null,null,null,null,null,null,null,null,131,{"$f":"SegmentExceptTable[[#This Row],[Numbers]]/$BP$4","v":0.21869782971619364},{"$f":"SegmentExceptTable[[#This Row],[kW Boundary]]+(0.05*SegmentExceptTable[[#This Row],[kW Boundary]])","v":0.22963272120200331},{"$f":"$BP$6*SegmentExceptTable[[#This Row],[kW Boundary]]+$BP$7","v":0.29919743000037186},{"$f":"$BP$8*SegmentExceptTable[[#This Row],[kW Boundary]]+$BP$9","v":4.3067353432150457E-2},{"$f":"SegmentExceptTable[[#This Row],[Boundary S/M]]+(0.05*SegmentExceptTable[[#This Row],[Boundary S/M]])","v":4.522072110375798E-2},{"$f":"IF(AND(AND(kwpeak_norm>SegmentExceptTable[[#This Row],[kW Boundary]],kwpeak_norm<SegmentExceptTable[[#This Row],[kW Exception]]),AND(kwhmo_norm>SegmentExceptTable[[#This Row],[Boundary S/M]],kwhmo_norm<SegmentExceptTable[[#This Row],[Exception S/M]])),1,0)","v":0},{"$f":"$BP$10*SegmentExceptTable[[#This Row],[kW Boundary]]+$BP$11","v":0.33209608660349688},{"$f":"$BP$12*SegmentExceptTable[[#This Row],[kW Boundary]]+$BP$13","v":0.46713640010793933},{"$f":"SegmentExceptTable[[#This Row],[Boundary M/L]]+(0.05*SegmentExceptTable[[#This Row],[Boundary M/L]])","v":0.49049322011333629},{"$f":"IF(AND(AND(kwpeak_norm>SegmentExceptTable[[#This Row],[kW Boundary]],kwpeak_norm<SegmentExceptTable[[#This Row],[kW Exception]]),AND(kwhmo_norm>SegmentExceptTable[[#This Row],[Boundary M/L]],kwhmo_norm<SegmentExceptTable[[#This Row],[Exception M/L]])),1,0)","v":0}]
[null,null,null,null,null,null,null,null,null,null,null,null,null,null,null,null,null,null,"Sports Arena: Playing Area (Semi-Professional)",0.89,null,null,{"$f":"\"[\"&StipulatedWattage_Table[[#This Row],[Lamp Qty]]&\"L - \"&StipulatedWattage_Table[[#This Row],[Actual lamp wattage]]&\"W\"&IF(StipulatedWattage_Table[[#This Row],[Ballast Type]]=\"\",\"\",\" - \"&TRIM(StipulatedWattage_Table[[#This Row],[Ballast Type]]))&\"]\"","v":"[6L - 32W - IS L]"},6,32,"IS L",0.78,146,null,null,null,null,null,null,null,null,null,null,null,null,null,null,null,null,null,null,null,132,{"$f":"SegmentExceptTable[[#This Row],[Numbers]]/$BP$4","v":0.22036727879799667},{"$f":"SegmentExceptTable[[#This Row],[kW Boundary]]+(0.05*SegmentExceptTable[[#This Row],[kW Boundary]])","v":0.2313856427378965},{"$f":"$BP$6*SegmentExceptTable[[#This Row],[kW Boundary]]+$BP$7","v":0.30162426029573813},{"$f":"$BP$8*SegmentExceptTable[[#This Row],[kW Boundary]]+$BP$9","v":4.1918917036719544E-2},{"$f":"SegmentExceptTable[[#This Row],[Boundary S/M]]+(0.05*SegmentExceptTable[[#This Row],[Boundary S/M]])","v":4.4014862888555523E-2},{"$f":"IF(AND(AND(kwpeak_norm>SegmentExceptTable[[#This Row],[kW Boundary]],kwpeak_norm<SegmentExceptTable[[#This Row],[kW Exception]]),AND(kwhmo_norm>SegmentExceptTable[[#This Row],[Boundary S/M]],kwhmo_norm<SegmentExceptTable[[#This Row],[Exception S/M]])),1,0)","v":0},{"$f":"$BP$10*SegmentExceptTable[[#This Row],[kW Boundary]]+$BP$11","v":0.33562314024573547},{"$f":"$BP$12*SegmentExceptTable[[#This Row],[kW Boundary]]+$BP$13","v":0.46634620508415053},{"$f":"SegmentExceptTable[[#This Row],[Boundary M/L]]+(0.05*SegmentExceptTable[[#This Row],[Boundary M/L]])","v":0.48966351533835806},{"$f":"IF(AND(AND(kwpeak_norm>SegmentExceptTable[[#This Row],[kW Boundary]],kwpeak_norm<SegmentExceptTable[[#This Row],[kW Exception]]),AND(kwhmo_norm>SegmentExceptTable[[#This Row],[Boundary M/L]],kwhmo_norm<SegmentExceptTable[[#This Row],[Exception M/L]])),1,0)","v":0}]
[null,null,null,null,null,null,null,null,null,null,null,null,null,null,null,null,null,null,"Sports Arena: Playing Area (High School)",0.89,null,null,{"$f":"\"[\"&StipulatedWattage_Table[[#This Row],[Lamp Qty]]&\"L - \"&StipulatedWattage_Table[[#This Row],[Actual lamp wattage]]&\"W\"&IF(StipulatedWattage_Table[[#This Row],[Ballast Type]]=\"\",\"\",\" - \"&TRIM(StipulatedWattage_Table[[#This Row],[Ballast Type]]))&\"]\"","v":"[6L - 32W - IS N]"},6,32,"IS N",0.88,170,null,null,null,null,null,null,null,null,null,null,null,null,null,null,null,null,null,null,null,133,{"$f":"SegmentExceptTable[[#This Row],[Numbers]]/$BP$4","v":0.22203672787979967},{"$f":"SegmentExceptTable[[#This Row],[kW Boundary]]+(0.05*SegmentExceptTable[[#This Row],[kW Boundary]])","v":0.23313856427378965},{"$f":"$BP$6*SegmentExceptTable[[#This Row],[kW Boundary]]+$BP$7","v":0.30405109059110441},{"$f":"$BP$8*SegmentExceptTable[[#This Row],[kW Boundary]]+$BP$9","v":4.0770480641288687E-2},{"$f":"SegmentExceptTable[[#This Row],[Boundary S/M]]+(0.05*SegmentExceptTable[[#This Row],[Boundary S/M]])","v":4.2809004673353121E-2},{"$f":"IF(AND(AND(kwpeak_norm>SegmentExceptTable[[#This Row],[kW Boundary]],kwpeak_norm<SegmentExceptTable[[#This Row],[kW Exception]]),AND(kwhmo_norm>SegmentExceptTable[[#This Row],[Boundary S/M]],kwhmo_norm<SegmentExceptTable[[#This Row],[Exception S/M]])),1,0)","v":0},{"$f":"$BP$10*SegmentExceptTable[[#This Row],[kW Boundary]]+$BP$11","v":0.33915019388797396},{"$f":"$BP$12*SegmentExceptTable[[#This Row],[kW Boundary]]+$BP$13","v":0.46555601006036179},{"$f":"SegmentExceptTable[[#This Row],[Boundary M/L]]+(0.05*SegmentExceptTable[[#This Row],[Boundary M/L]])","v":0.48883381056337988},{"$f":"IF(AND(AND(kwpeak_norm>SegmentExceptTable[[#This Row],[kW Boundary]],kwpeak_norm<SegmentExceptTable[[#This Row],[kW Exception]]),AND(kwhmo_norm>SegmentExceptTable[[#This Row],[Boundary M/L]],kwhmo_norm<SegmentExceptTable[[#This Row],[Exception M/L]])),1,0)","v":0}]
[null,null,null,null,null,null,null,null,null,null,null,null,null,null,null,null,null,null,"Sports Arena: Playing Area (Recreational)",0.89,null,null,{"$f":"\"[\"&StipulatedWattage_Table[[#This Row],[Lamp Qty]]&\"L - \"&StipulatedWattage_Table[[#This Row],[Actual lamp wattage]]&\"W\"&IF(StipulatedWattage_Table[[#This Row],[Ballast Type]]=\"\",\"\",\" - \"&TRIM(StipulatedWattage_Table[[#This Row],[Ballast Type]]))&\"]\"","v":"[6L - 32W - IS VH]"},6,32,"IS VH",1.1499999999999999,220,null,null,null,null,null,null,null,null,null,null,null,null,null,null,null,null,null,null,null,134,{"$f":"SegmentExceptTable[[#This Row],[Numbers]]/$BP$4","v":0.22370617696160267},{"$f":"SegmentExceptTable[[#This Row],[kW Boundary]]+(0.05*SegmentExceptTable[[#This Row],[kW Boundary]])","v":0.2348914858096828},{"$f":"$BP$6*SegmentExceptTable[[#This Row],[kW Boundary]]+$BP$7","v":0.30647792088647069},{"$f":"$BP$8*SegmentExceptTable[[#This Row],[kW Boundary]]+$BP$9","v":3.9622044245857801E-2},{"$f":"SegmentExceptTable[[#This Row],[Boundary S/M]]+(0.05*SegmentExceptTable[[#This Row],[Boundary S/M]])","v":4.1603146458150692E-2},{"$f":"IF(AND(AND(kwpeak_norm>SegmentExceptTable[[#This Row],[kW Boundary]],kwpeak_norm<SegmentExceptTable[[#This Row],[kW Exception]]),AND(kwhmo_norm>SegmentExceptTable[[#This Row],[Boundary S/M]],kwhmo_norm<SegmentExceptTable[[#This Row],[Exception S/M]])),1,0)","v":0},{"$f":"$BP$10*SegmentExceptTable[[#This Row],[kW Boundary]]+$BP$11","v":0.3426772475302125},{"$f":"$BP$12*SegmentExceptTable[[#This Row],[kW Boundary]]+$BP$13","v":0.46476581503657305},{"$f":"SegmentExceptTable[[#This Row],[Boundary M/L]]+(0.05*SegmentExceptTable[[#This Row],[Boundary M/L]])","v":0.4880041057884017},{"$f":"IF(AND(AND(kwpeak_norm>SegmentExceptTable[[#This Row],[kW Boundary]],kwpeak_norm<SegmentExceptTable[[#This Row],[kW Exception]]),AND(kwhmo_norm>SegmentExceptTable[[#This Row],[Boundary M/L]],kwhmo_norm<SegmentExceptTable[[#This Row],[Exception M/L]])),1,0)","v":0}]
[null,null,null,null,null,null,null,null,null,null,null,null,null,null,null,null,null,null,"Storage, Industrial and Commercial",0.96,21200,null,{"$f":"\"[\"&StipulatedWattage_Table[[#This Row],[Lamp Qty]]&\"L - \"&StipulatedWattage_Table[[#This Row],[Actual lamp wattage]]&\"W\"&IF(StipulatedWattage_Table[[#This Row],[Ballast Type]]=\"\",\"\",\" - \"&TRIM(StipulatedWattage_Table[[#This Row],[Ballast Type]]))&\"]\"","v":"[6L - 32W - RS/PRS L]"},6,32,"RS/PRS L",0.78,138,null,null,null,null,null,null,null,null,null,null,null,null,null,null,null,null,null,null,null,135,{"$f":"SegmentExceptTable[[#This Row],[Numbers]]/$BP$4","v":0.22537562604340566},{"$f":"SegmentExceptTable[[#This Row],[kW Boundary]]+(0.05*SegmentExceptTable[[#This Row],[kW Boundary]])","v":0.23664440734557596},{"$f":"$BP$6*SegmentExceptTable[[#This Row],[kW Boundary]]+$BP$7","v":0.30890475118183697},{"$f":"$BP$8*SegmentExceptTable[[#This Row],[kW Boundary]]+$BP$9","v":3.8473607850426944E-2},{"$f":"SegmentExceptTable[[#This Row],[Boundary S/M]]+(0.05*SegmentExceptTable[[#This Row],[Boundary S/M]])","v":4.039728824294829E-2},{"$f":"IF(AND(AND(kwpeak_norm>SegmentExceptTable[[#This Row],[kW Boundary]],kwpeak_norm<SegmentExceptTable[[#This Row],[kW Exception]]),AND(kwhmo_norm>SegmentExceptTable[[#This Row],[Boundary S/M]],kwhmo_norm<SegmentExceptTable[[#This Row],[Exception S/M]])),1,0)","v":0},{"$f":"$BP$10*SegmentExceptTable[[#This Row],[kW Boundary]]+$BP$11","v":0.34620430117245099},{"$f":"$BP$12*SegmentExceptTable[[#This Row],[kW Boundary]]+$BP$13","v":0.46397562001278425},{"$f":"SegmentExceptTable[[#This Row],[Boundary M/L]]+(0.05*SegmentExceptTable[[#This Row],[Boundary M/L]])","v":0.48717440101342346},{"$f":"IF(AND(AND(kwpeak_norm>SegmentExceptTable[[#This Row],[kW Boundary]],kwpeak_norm<SegmentExceptTable[[#This Row],[kW Exception]]),AND(kwhmo_norm>SegmentExceptTable[[#This Row],[Boundary M/L]],kwhmo_norm<SegmentExceptTable[[#This Row],[Exception M/L]])),1,0)","v":0}]
[null,null,null,null,null,null,null,null,null,null,null,null,null,null,null,null,null,null,"Tenant Lease Space",0.78,null,null,{"$f":"\"[\"&StipulatedWattage_Table[[#This Row],[Lamp Qty]]&\"L - \"&StipulatedWattage_Table[[#This Row],[Actual lamp wattage]]&\"W\"&IF(StipulatedWattage_Table[[#This Row],[Ballast Type]]=\"\",\"\",\" - \"&TRIM(StipulatedWattage_Table[[#This Row],[Ballast Type]]))&\"]\"","v":"[6L - 34W - IS N]"},6,34,"IS N",0.88,170,null,null,null,null,null,null,null,null,null,null,null,null,null,null,null,null,null,null,null,136,{"$f":"SegmentExceptTable[[#This Row],[Numbers]]/$BP$4","v":0.22704507512520869},{"$f":"SegmentExceptTable[[#This Row],[kW Boundary]]+(0.05*SegmentExceptTable[[#This Row],[kW Boundary]])","v":0.23839732888146914},{"$f":"$BP$6*SegmentExceptTable[[#This Row],[kW Boundary]]+$BP$7","v":0.31133158147720325},{"$f":"$BP$8*SegmentExceptTable[[#This Row],[kW Boundary]]+$BP$9","v":3.7325171454996059E-2},{"$f":"SegmentExceptTable[[#This Row],[Boundary S/M]]+(0.05*SegmentExceptTable[[#This Row],[Boundary S/M]])","v":3.919143002774586E-2},{"$f":"IF(AND(AND(kwpeak_norm>SegmentExceptTable[[#This Row],[kW Boundary]],kwpeak_norm<SegmentExceptTable[[#This Row],[kW Exception]]),AND(kwhmo_norm>SegmentExceptTable[[#This Row],[Boundary S/M]],kwhmo_norm<SegmentExceptTable[[#This Row],[Exception S/M]])),1,0)","v":0},{"$f":"$BP$10*SegmentExceptTable[[#This Row],[kW Boundary]]+$BP$11","v":0.34973135481468959},{"$f":"$BP$12*SegmentExceptTable[[#This Row],[kW Boundary]]+$BP$13","v":0.46318542498899551},{"$f":"SegmentExceptTable[[#This Row],[Boundary M/L]]+(0.05*SegmentExceptTable[[#This Row],[Boundary M/L]])","v":0.48634469623844528},{"$f":"IF(AND(AND(kwpeak_norm>SegmentExceptTable[[#This Row],[kW Boundary]],kwpeak_norm<SegmentExceptTable[[#This Row],[kW Exception]]),AND(kwhmo_norm>SegmentExceptTable[[#This Row],[Boundary M/L]],kwhmo_norm<SegmentExceptTable[[#This Row],[Exception M/L]])),1,0)","v":0}]
[null,null,null,null,null,null,null,null,null,null,null,null,null,null,null,null,null,null,"Theater",0.78,null,null,{"$f":"\"[\"&StipulatedWattage_Table[[#This Row],[Lamp Qty]]&\"L - \"&StipulatedWattage_Table[[#This Row],[Actual lamp wattage]]&\"W\"&IF(StipulatedWattage_Table[[#This Row],[Ballast Type]]=\"\",\"\",\" - \"&TRIM(StipulatedWattage_Table[[#This Row],[Ballast Type]]))&\"]\"","v":"[6L - 40W - IS N]"},6,40,"IS N",0.88,170,null,null,null,null,null,null,null,null,null,null,null,null,null,null,null,null,null,null,null,137,{"$f":"SegmentExceptTable[[#This Row],[Numbers]]/$BP$4","v":0.22871452420701169},{"$f":"SegmentExceptTable[[#This Row],[kW Boundary]]+(0.05*SegmentExceptTable[[#This Row],[kW Boundary]])","v":0.24015025041736227},{"$f":"$BP$6*SegmentExceptTable[[#This Row],[kW Boundary]]+$BP$7","v":0.31375841177256952},{"$f":"$BP$8*SegmentExceptTable[[#This Row],[kW Boundary]]+$BP$9","v":3.6176735059565174E-2},{"$f":"SegmentExceptTable[[#This Row],[Boundary S/M]]+(0.05*SegmentExceptTable[[#This Row],[Boundary S/M]])","v":3.7985571812543431E-2},{"$f":"IF(AND(AND(kwpeak_norm>SegmentExceptTable[[#This Row],[kW Boundary]],kwpeak_norm<SegmentExceptTable[[#This Row],[kW Exception]]),AND(kwhmo_norm>SegmentExceptTable[[#This Row],[Boundary S/M]],kwhmo_norm<SegmentExceptTable[[#This Row],[Exception S/M]])),1,0)","v":0},{"$f":"$BP$10*SegmentExceptTable[[#This Row],[kW Boundary]]+$BP$11","v":0.35325840845692807},{"$f":"$BP$12*SegmentExceptTable[[#This Row],[kW Boundary]]+$BP$13","v":0.46239522996520677},{"$f":"SegmentExceptTable[[#This Row],[Boundary M/L]]+(0.05*SegmentExceptTable[[#This Row],[Boundary M/L]])","v":0.4855149914634671},{"$f":"IF(AND(AND(kwpeak_norm>SegmentExceptTable[[#This Row],[kW Boundary]],kwpeak_norm<SegmentExceptTable[[#This Row],[kW Exception]]),AND(kwhmo_norm>SegmentExceptTable[[#This Row],[Boundary M/L]],kwhmo_norm<SegmentExceptTable[[#This Row],[Exception M/L]])),1,0)","v":0}]
[null,null,null,null,null,null,null,null,null,null,null,null,null,null,null,null,null,null,"Theater - Motion Picture",0.78,null,null,{"$f":"\"[\"&StipulatedWattage_Table[[#This Row],[Lamp Qty]]&\"L - \"&StipulatedWattage_Table[[#This Row],[Actual lamp wattage]]&\"W\"&IF(StipulatedWattage_Table[[#This Row],[Ballast Type]]=\"\",\"\",\" - \"&TRIM(StipulatedWattage_Table[[#This Row],[Ballast Type]]))&\"]\"","v":"[6L - 40W]"},6,40,null,null,174,null,null,null,null,null,null,null,null,null,null,null,null,null,null,null,null,null,null,null,138,{"$f":"SegmentExceptTable[[#This Row],[Numbers]]/$BP$4","v":0.23038397328881469},{"$f":"SegmentExceptTable[[#This Row],[kW Boundary]]+(0.05*SegmentExceptTable[[#This Row],[kW Boundary]])","v":0.24190317195325542},{"$f":"$BP$6*SegmentExceptTable[[#This Row],[kW Boundary]]+$BP$7","v":0.3161852420679358},{"$f":"$BP$8*SegmentExceptTable[[#This Row],[kW Boundary]]+$BP$9","v":3.5028298664134316E-2},{"$f":"SegmentExceptTable[[#This Row],[Boundary S/M]]+(0.05*SegmentExceptTable[[#This Row],[Boundary S/M]])","v":3.6779713597341029E-2},{"$f":"IF(AND(AND(kwpeak_norm>SegmentExceptTable[[#This Row],[kW Boundary]],kwpeak_norm<SegmentExceptTable[[#This Row],[kW Exception]]),AND(kwhmo_norm>SegmentExceptTable[[#This Row],[Boundary S/M]],kwhmo_norm<SegmentExceptTable[[#This Row],[Exception S/M]])),1,0)","v":0},{"$f":"$BP$10*SegmentExceptTable[[#This Row],[kW Boundary]]+$BP$11","v":0.35678546209916662},{"$f":"$BP$12*SegmentExceptTable[[#This Row],[kW Boundary]]+$BP$13","v":0.46160503494141802},{"$f":"SegmentExceptTable[[#This Row],[Boundary M/L]]+(0.05*SegmentExceptTable[[#This Row],[Boundary M/L]])","v":0.48468528668848893},{"$f":"IF(AND(AND(kwpeak_norm>SegmentExceptTable[[#This Row],[kW Boundary]],kwpeak_norm<SegmentExceptTable[[#This Row],[kW Exception]]),AND(kwhmo_norm>SegmentExceptTable[[#This Row],[Boundary M/L]],kwhmo_norm<SegmentExceptTable[[#This Row],[Exception M/L]])),1,0)","v":0}]
[null,null,null,null,null,null,null,null,null,null,null,null,null,null,null,null,null,null,"Theater - Performance",0.78,null,null,{"$f":"\"[\"&StipulatedWattage_Table[[#This Row],[Lamp Qty]]&\"L - \"&StipulatedWattage_Table[[#This Row],[Actual lamp wattage]]&\"W\"&IF(StipulatedWattage_Table[[#This Row],[Ballast Type]]=\"\",\"\",\" - \"&TRIM(StipulatedWattage_Table[[#This Row],[Ballast Type]]))&\"]\"","v":"[6L - 120W]"},6,120,null,null,258,null,null,null,null,null,null,null,null,null,null,null,null,null,null,null,null,null,null,null,139,{"$f":"SegmentExceptTable[[#This Row],[Numbers]]/$BP$4","v":0.23205342237061768},{"$f":"SegmentExceptTable[[#This Row],[kW Boundary]]+(0.05*SegmentExceptTable[[#This Row],[kW Boundary]])","v":0.24365609348914857},{"$f":"$BP$6*SegmentExceptTable[[#This Row],[kW Boundary]]+$BP$7","v":0.31861207236330208},{"$f":"$BP$8*SegmentExceptTable[[#This Row],[kW Boundary]]+$BP$9","v":3.3879862268703431E-2},{"$f":"SegmentExceptTable[[#This Row],[Boundary S/M]]+(0.05*SegmentExceptTable[[#This Row],[Boundary S/M]])","v":3.55738553821386E-2},{"$f":"IF(AND(AND(kwpeak_norm>SegmentExceptTable[[#This Row],[kW Boundary]],kwpeak_norm<SegmentExceptTable[[#This Row],[kW Exception]]),AND(kwhmo_norm>SegmentExceptTable[[#This Row],[Boundary S/M]],kwhmo_norm<SegmentExceptTable[[#This Row],[Exception S/M]])),1,0)","v":0},{"$f":"$BP$10*SegmentExceptTable[[#This Row],[kW Boundary]]+$BP$11","v":0.3603125157414051},{"$f":"$BP$12*SegmentExceptTable[[#This Row],[kW Boundary]]+$BP$13","v":0.46081483991762928},{"$f":"SegmentExceptTable[[#This Row],[Boundary M/L]]+(0.05*SegmentExceptTable[[#This Row],[Boundary M/L]])","v":0.48385558191351075},{"$f":"IF(AND(AND(kwpeak_norm>SegmentExceptTable[[#This Row],[kW Boundary]],kwpeak_norm<SegmentExceptTable[[#This Row],[kW Exception]]),AND(kwhmo_norm>SegmentExceptTable[[#This Row],[Boundary M/L]],kwhmo_norm<SegmentExceptTable[[#This Row],[Exception M/L]])),1,0)","v":0}]
[null,null,null,null,null,null,null,null,null,null,null,null,null,null,null,null,null,null,"Town Hall",0.78,null,null,{"$f":"\"[\"&StipulatedWattage_Table[[#This Row],[Lamp Qty]]&\"L - \"&StipulatedWattage_Table[[#This Row],[Actual lamp wattage]]&\"W\"&IF(StipulatedWattage_Table[[#This Row],[Ballast Type]]=\"\",\"\",\" - \"&TRIM(StipulatedWattage_Table[[#This Row],[Ballast Type]]))&\"]\"","v":"[6L - 75W]"},6,75,null,null,318,null,null,null,null,null,null,null,null,null,null,null,null,null,null,null,null,null,null,null,140,{"$f":"SegmentExceptTable[[#This Row],[Numbers]]/$BP$4","v":0.23372287145242071},{"$f":"SegmentExceptTable[[#This Row],[kW Boundary]]+(0.05*SegmentExceptTable[[#This Row],[kW Boundary]])","v":0.24540901502504175},{"$f":"$BP$6*SegmentExceptTable[[#This Row],[kW Boundary]]+$BP$7","v":0.32103890265866836},{"$f":"$BP$8*SegmentExceptTable[[#This Row],[kW Boundary]]+$BP$9","v":3.2731425873272546E-2},{"$f":"SegmentExceptTable[[#This Row],[Boundary S/M]]+(0.05*SegmentExceptTable[[#This Row],[Boundary S/M]])","v":3.4367997166936171E-2},{"$f":"IF(AND(AND(kwpeak_norm>SegmentExceptTable[[#This Row],[kW Boundary]],kwpeak_norm<SegmentExceptTable[[#This Row],[kW Exception]]),AND(kwhmo_norm>SegmentExceptTable[[#This Row],[Boundary S/M]],kwhmo_norm<SegmentExceptTable[[#This Row],[Exception S/M]])),1,0)","v":0},{"$f":"$BP$10*SegmentExceptTable[[#This Row],[kW Boundary]]+$BP$11","v":0.3638395693836437},{"$f":"$BP$12*SegmentExceptTable[[#This Row],[kW Boundary]]+$BP$13","v":0.46002464489384048},{"$f":"SegmentExceptTable[[#This Row],[Boundary M/L]]+(0.05*SegmentExceptTable[[#This Row],[Boundary M/L]])","v":0.48302587713853251},{"$f":"IF(AND(AND(kwpeak_norm>SegmentExceptTable[[#This Row],[kW Boundary]],kwpeak_norm<SegmentExceptTable[[#This Row],[kW Exception]]),AND(kwhmo_norm>SegmentExceptTable[[#This Row],[Boundary M/L]],kwhmo_norm<SegmentExceptTable[[#This Row],[Exception M/L]])),1,0)","v":0}]
[null,null,null,null,null,null,null,null,null,null,null,null,null,null,null,null,null,null,"Transportation",0.78,null,null,{"$f":"\"[\"&StipulatedWattage_Table[[#This Row],[Lamp Qty]]&\"L - \"&StipulatedWattage_Table[[#This Row],[Actual lamp wattage]]&\"W\"&IF(StipulatedWattage_Table[[#This Row],[Ballast Type]]=\"\",\"\",\" - \"&TRIM(StipulatedWattage_Table[[#This Row],[Ballast Type]]))&\"]\"","v":"[7L - 100W]"},7,100,null,null,504,null,null,null,null,null,null,null,null,null,null,null,null,null,null,null,null,null,null,null,141,{"$f":"SegmentExceptTable[[#This Row],[Numbers]]/$BP$4","v":0.23539232053422371},{"$f":"SegmentExceptTable[[#This Row],[kW Boundary]]+(0.05*SegmentExceptTable[[#This Row],[kW Boundary]])","v":0.24716193656093488},{"$f":"$BP$6*SegmentExceptTable[[#This Row],[kW Boundary]]+$BP$7","v":0.32346573295403463},{"$f":"$BP$8*SegmentExceptTable[[#This Row],[kW Boundary]]+$BP$9","v":3.1582989477841689E-2},{"$f":"SegmentExceptTable[[#This Row],[Boundary S/M]]+(0.05*SegmentExceptTable[[#This Row],[Boundary S/M]])","v":3.3162138951733776E-2},{"$f":"IF(AND(AND(kwpeak_norm>SegmentExceptTable[[#This Row],[kW Boundary]],kwpeak_norm<SegmentExceptTable[[#This Row],[kW Exception]]),AND(kwhmo_norm>SegmentExceptTable[[#This Row],[Boundary S/M]],kwhmo_norm<SegmentExceptTable[[#This Row],[Exception S/M]])),1,0)","v":0},{"$f":"$BP$10*SegmentExceptTable[[#This Row],[kW Boundary]]+$BP$11","v":0.36736662302588219},{"$f":"$BP$12*SegmentExceptTable[[#This Row],[kW Boundary]]+$BP$13","v":0.45923444987005174},{"$f":"SegmentExceptTable[[#This Row],[Boundary M/L]]+(0.05*SegmentExceptTable[[#This Row],[Boundary M/L]])","v":0.48219617236355433},{"$f":"IF(AND(AND(kwpeak_norm>SegmentExceptTable[[#This Row],[kW Boundary]],kwpeak_norm<SegmentExceptTable[[#This Row],[kW Exception]]),AND(kwhmo_norm>SegmentExceptTable[[#This Row],[Boundary M/L]],kwhmo_norm<SegmentExceptTable[[#This Row],[Exception M/L]])),1,0)","v":0}]
[null,null,null,null,null,null,null,null,null,null,null,null,null,null,null,null,null,null,"Transportation Function",0.78,null,null,{"$f":"\"[\"&StipulatedWattage_Table[[#This Row],[Lamp Qty]]&\"L - \"&StipulatedWattage_Table[[#This Row],[Actual lamp wattage]]&\"W\"&IF(StipulatedWattage_Table[[#This Row],[Ballast Type]]=\"\",\"\",\" - \"&TRIM(StipulatedWattage_Table[[#This Row],[Ballast Type]]))&\"]\"","v":"[7L - 40W]"},7,40,null,null,203,null,null,null,null,null,null,null,null,null,null,null,null,null,null,null,null,null,null,null,142,{"$f":"SegmentExceptTable[[#This Row],[Numbers]]/$BP$4","v":0.23706176961602671},{"$f":"SegmentExceptTable[[#This Row],[kW Boundary]]+(0.05*SegmentExceptTable[[#This Row],[kW Boundary]])","v":0.24891485809682803},{"$f":"$BP$6*SegmentExceptTable[[#This Row],[kW Boundary]]+$BP$7","v":0.32589256324940091},{"$f":"$BP$8*SegmentExceptTable[[#This Row],[kW Boundary]]+$BP$9","v":3.0434553082410803E-2},{"$f":"SegmentExceptTable[[#This Row],[Boundary S/M]]+(0.05*SegmentExceptTable[[#This Row],[Boundary S/M]])","v":3.1956280736531346E-2},{"$f":"IF(AND(AND(kwpeak_norm>SegmentExceptTable[[#This Row],[kW Boundary]],kwpeak_norm<SegmentExceptTable[[#This Row],[kW Exception]]),AND(kwhmo_norm>SegmentExceptTable[[#This Row],[Boundary S/M]],kwhmo_norm<SegmentExceptTable[[#This Row],[Exception S/M]])),1,0)","v":0},{"$f":"$BP$10*SegmentExceptTable[[#This Row],[kW Boundary]]+$BP$11","v":0.37089367666812068},{"$f":"$BP$12*SegmentExceptTable[[#This Row],[kW Boundary]]+$BP$13","v":0.45844425484626294},{"$f":"SegmentExceptTable[[#This Row],[Boundary M/L]]+(0.05*SegmentExceptTable[[#This Row],[Boundary M/L]])","v":0.4813664675885761},{"$f":"IF(AND(AND(kwpeak_norm>SegmentExceptTable[[#This Row],[kW Boundary]],kwpeak_norm<SegmentExceptTable[[#This Row],[kW Exception]]),AND(kwhmo_norm>SegmentExceptTable[[#This Row],[Boundary M/L]],kwhmo_norm<SegmentExceptTable[[#This Row],[Exception M/L]])),1,0)","v":0}]
[null,null,null,null,null,null,null,null,null,null,null,null,null,null,null,null,null,null,"Transportation: Baggage Area",0.78,null,null,{"$f":"\"[\"&StipulatedWattage_Table[[#This Row],[Lamp Qty]]&\"L - \"&StipulatedWattage_Table[[#This Row],[Actual lamp wattage]]&\"W\"&IF(StipulatedWattage_Table[[#This Row],[Ballast Type]]=\"\",\"\",\" - \"&TRIM(StipulatedWattage_Table[[#This Row],[Ballast Type]]))&\"]\"","v":"[7L - 120W]"},7,120,null,null,301,null,null,null,null,null,null,null,null,null,null,null,null,null,null,null,null,null,null,null,143,{"$f":"SegmentExceptTable[[#This Row],[Numbers]]/$BP$4","v":0.23873121869782971},{"$f":"SegmentExceptTable[[#This Row],[kW Boundary]]+(0.05*SegmentExceptTable[[#This Row],[kW Boundary]])","v":0.25066777963272119},{"$f":"$BP$6*SegmentExceptTable[[#This Row],[kW Boundary]]+$BP$7","v":0.32831939354476719},{"$f":"$BP$8*SegmentExceptTable[[#This Row],[kW Boundary]]+$BP$9","v":2.9286116686979946E-2},{"$f":"SegmentExceptTable[[#This Row],[Boundary S/M]]+(0.05*SegmentExceptTable[[#This Row],[Boundary S/M]])","v":3.0750422521328945E-2},{"$f":"IF(AND(AND(kwpeak_norm>SegmentExceptTable[[#This Row],[kW Boundary]],kwpeak_norm<SegmentExceptTable[[#This Row],[kW Exception]]),AND(kwhmo_norm>SegmentExceptTable[[#This Row],[Boundary S/M]],kwhmo_norm<SegmentExceptTable[[#This Row],[Exception S/M]])),1,0)","v":0},{"$f":"$BP$10*SegmentExceptTable[[#This Row],[kW Boundary]]+$BP$11","v":0.37442073031035927},{"$f":"$BP$12*SegmentExceptTable[[#This Row],[kW Boundary]]+$BP$13","v":0.4576540598224742},{"$f":"SegmentExceptTable[[#This Row],[Boundary M/L]]+(0.05*SegmentExceptTable[[#This Row],[Boundary M/L]])","v":0.48053676281359792},{"$f":"IF(AND(AND(kwpeak_norm>SegmentExceptTable[[#This Row],[kW Boundary]],kwpeak_norm<SegmentExceptTable[[#This Row],[kW Exception]]),AND(kwhmo_norm>SegmentExceptTable[[#This Row],[Boundary M/L]],kwhmo_norm<SegmentExceptTable[[#This Row],[Exception M/L]])),1,0)","v":0}]
[null,null,null,null,null,null,null,null,null,null,null,null,null,null,null,null,null,null,"Transportation: Airport Concourse",0.78,null,null,{"$f":"\"[\"&StipulatedWattage_Table[[#This Row],[Lamp Qty]]&\"L - \"&StipulatedWattage_Table[[#This Row],[Actual lamp wattage]]&\"W\"&IF(StipulatedWattage_Table[[#This Row],[Ballast Type]]=\"\",\"\",\" - \"&TRIM(StipulatedWattage_Table[[#This Row],[Ballast Type]]))&\"]\"","v":"[7L - 75W]"},7,75,null,null,371,null,null,null,null,null,null,null,null,null,null,null,null,null,null,null,null,null,null,null,144,{"$f":"SegmentExceptTable[[#This Row],[Numbers]]/$BP$4","v":0.24040066777963273},{"$f":"SegmentExceptTable[[#This Row],[kW Boundary]]+(0.05*SegmentExceptTable[[#This Row],[kW Boundary]])","v":0.25242070116861437},{"$f":"$BP$6*SegmentExceptTable[[#This Row],[kW Boundary]]+$BP$7","v":0.33074622384013347},{"$f":"$BP$8*SegmentExceptTable[[#This Row],[kW Boundary]]+$BP$9","v":2.8137680291549033E-2},{"$f":"SegmentExceptTable[[#This Row],[Boundary S/M]]+(0.05*SegmentExceptTable[[#This Row],[Boundary S/M]])","v":2.9544564306126484E-2},{"$f":"IF(AND(AND(kwpeak_norm>SegmentExceptTable[[#This Row],[kW Boundary]],kwpeak_norm<SegmentExceptTable[[#This Row],[kW Exception]]),AND(kwhmo_norm>SegmentExceptTable[[#This Row],[Boundary S/M]],kwhmo_norm<SegmentExceptTable[[#This Row],[Exception S/M]])),1,0)","v":0},{"$f":"$BP$10*SegmentExceptTable[[#This Row],[kW Boundary]]+$BP$11","v":0.37794778395259776},{"$f":"$BP$12*SegmentExceptTable[[#This Row],[kW Boundary]]+$BP$13","v":0.45686386479868546},{"$f":"SegmentExceptTable[[#This Row],[Boundary M/L]]+(0.05*SegmentExceptTable[[#This Row],[Boundary M/L]])","v":0.47970705803861974},{"$f":"IF(AND(AND(kwpeak_norm>SegmentExceptTable[[#This Row],[kW Boundary]],kwpeak_norm<SegmentExceptTable[[#This Row],[kW Exception]]),AND(kwhmo_norm>SegmentExceptTable[[#This Row],[Boundary M/L]],kwhmo_norm<SegmentExceptTable[[#This Row],[Exception M/L]])),1,0)","v":0}]
[null,null,null,null,null,null,null,null,null,null,null,null,null,null,null,null,null,null,"Transportation:  Ticket Counter",0.78,null,null,{"$f":"\"[\"&StipulatedWattage_Table[[#This Row],[Lamp Qty]]&\"L - \"&StipulatedWattage_Table[[#This Row],[Actual lamp wattage]]&\"W\"&IF(StipulatedWattage_Table[[#This Row],[Ballast Type]]=\"\",\"\",\" - \"&TRIM(StipulatedWattage_Table[[#This Row],[Ballast Type]]))&\"]\"","v":"[8L - 100W]"},8,100,null,null,576,null,null,null,null,null,null,null,null,null,null,null,null,null,null,null,null,null,null,null,145,{"$f":"SegmentExceptTable[[#This Row],[Numbers]]/$BP$4","v":0.24207011686143573},{"$f":"SegmentExceptTable[[#This Row],[kW Boundary]]+(0.05*SegmentExceptTable[[#This Row],[kW Boundary]])","v":0.2541736227045075},{"$f":"$BP$6*SegmentExceptTable[[#This Row],[kW Boundary]]+$BP$7","v":0.33317305413549975},{"$f":"$BP$8*SegmentExceptTable[[#This Row],[kW Boundary]]+$BP$9","v":2.6989243896118176E-2},{"$f":"SegmentExceptTable[[#This Row],[Boundary S/M]]+(0.05*SegmentExceptTable[[#This Row],[Boundary S/M]])","v":2.8338706090924086E-2},{"$f":"IF(AND(AND(kwpeak_norm>SegmentExceptTable[[#This Row],[kW Boundary]],kwpeak_norm<SegmentExceptTable[[#This Row],[kW Exception]]),AND(kwhmo_norm>SegmentExceptTable[[#This Row],[Boundary S/M]],kwhmo_norm<SegmentExceptTable[[#This Row],[Exception S/M]])),1,0)","v":0},{"$f":"$BP$10*SegmentExceptTable[[#This Row],[kW Boundary]]+$BP$11","v":0.38147483759483636},{"$f":"$BP$12*SegmentExceptTable[[#This Row],[kW Boundary]]+$BP$13","v":0.45607366977489672},{"$f":"SegmentExceptTable[[#This Row],[Boundary M/L]]+(0.05*SegmentExceptTable[[#This Row],[Boundary M/L]])","v":0.47887735326364156},{"$f":"IF(AND(AND(kwpeak_norm>SegmentExceptTable[[#This Row],[kW Boundary]],kwpeak_norm<SegmentExceptTable[[#This Row],[kW Exception]]),AND(kwhmo_norm>SegmentExceptTable[[#This Row],[Boundary M/L]],kwhmo_norm<SegmentExceptTable[[#This Row],[Exception M/L]])),1,0)","v":0}]
[null,null,null,null,null,null,null,null,null,null,null,null,null,null,null,null,null,null,"Video Conferencing Studio",0.71,null,null,{"$f":"\"[\"&StipulatedWattage_Table[[#This Row],[Lamp Qty]]&\"L - \"&StipulatedWattage_Table[[#This Row],[Actual lamp wattage]]&\"W\"&IF(StipulatedWattage_Table[[#This Row],[Ballast Type]]=\"\",\"\",\" - \"&TRIM(StipulatedWattage_Table[[#This Row],[Ballast Type]]))&\"]\"","v":"[8L - 32W - IS H]"},8,32,"IS H",1.1000000000000001,290,null,null,null,null,null,null,null,null,null,null,null,null,null,null,null,null,null,null,null,146,{"$f":"SegmentExceptTable[[#This Row],[Numbers]]/$BP$4","v":0.24373956594323873},{"$f":"SegmentExceptTable[[#This Row],[kW Boundary]]+(0.05*SegmentExceptTable[[#This Row],[kW Boundary]])","v":0.25592654424040068},{"$f":"$BP$6*SegmentExceptTable[[#This Row],[kW Boundary]]+$BP$7","v":0.33559988443086602},{"$f":"$BP$8*SegmentExceptTable[[#This Row],[kW Boundary]]+$BP$9","v":2.5840807500687291E-2},{"$f":"SegmentExceptTable[[#This Row],[Boundary S/M]]+(0.05*SegmentExceptTable[[#This Row],[Boundary S/M]])","v":2.7132847875721657E-2},{"$f":"IF(AND(AND(kwpeak_norm>SegmentExceptTable[[#This Row],[kW Boundary]],kwpeak_norm<SegmentExceptTable[[#This Row],[kW Exception]]),AND(kwhmo_norm>SegmentExceptTable[[#This Row],[Boundary S/M]],kwhmo_norm<SegmentExceptTable[[#This Row],[Exception S/M]])),1,0)","v":0},{"$f":"$BP$10*SegmentExceptTable[[#This Row],[kW Boundary]]+$BP$11","v":0.38500189123707484},{"$f":"$BP$12*SegmentExceptTable[[#This Row],[kW Boundary]]+$BP$13","v":0.45528347475110797},{"$f":"SegmentExceptTable[[#This Row],[Boundary M/L]]+(0.05*SegmentExceptTable[[#This Row],[Boundary M/L]])","v":0.47804764848866338},{"$f":"IF(AND(AND(kwpeak_norm>SegmentExceptTable[[#This Row],[kW Boundary]],kwpeak_norm<SegmentExceptTable[[#This Row],[kW Exception]]),AND(kwhmo_norm>SegmentExceptTable[[#This Row],[Boundary M/L]],kwhmo_norm<SegmentExceptTable[[#This Row],[Exception M/L]])),1,0)","v":0}]
[null,null,null,null,null,null,null,null,null,null,null,null,null,null,null,null,null,null,"Waiting Area",0.78,null,null,{"$f":"\"[\"&StipulatedWattage_Table[[#This Row],[Lamp Qty]]&\"L - \"&StipulatedWattage_Table[[#This Row],[Actual lamp wattage]]&\"W\"&IF(StipulatedWattage_Table[[#This Row],[Ballast Type]]=\"\",\"\",\" - \"&TRIM(StipulatedWattage_Table[[#This Row],[Ballast Type]]))&\"]\"","v":"[8L - 32W - IS L]"},8,32,"IS L",0.78,196,null,null,null,null,null,null,null,null,null,null,null,null,null,null,null,null,null,null,null,147,{"$f":"SegmentExceptTable[[#This Row],[Numbers]]/$BP$4","v":0.24540901502504173},{"$f":"SegmentExceptTable[[#This Row],[kW Boundary]]+(0.05*SegmentExceptTable[[#This Row],[kW Boundary]])","v":0.2576794657762938},{"$f":"$BP$6*SegmentExceptTable[[#This Row],[kW Boundary]]+$BP$7","v":0.3380267147262323},{"$f":"$BP$8*SegmentExceptTable[[#This Row],[kW Boundary]]+$BP$9","v":2.4692371105256433E-2},{"$f":"SegmentExceptTable[[#This Row],[Boundary S/M]]+(0.05*SegmentExceptTable[[#This Row],[Boundary S/M]])","v":2.5926989660519255E-2},{"$f":"IF(AND(AND(kwpeak_norm>SegmentExceptTable[[#This Row],[kW Boundary]],kwpeak_norm<SegmentExceptTable[[#This Row],[kW Exception]]),AND(kwhmo_norm>SegmentExceptTable[[#This Row],[Boundary S/M]],kwhmo_norm<SegmentExceptTable[[#This Row],[Exception S/M]])),1,0)","v":0},{"$f":"$BP$10*SegmentExceptTable[[#This Row],[kW Boundary]]+$BP$11","v":0.38852894487931333},{"$f":"$BP$12*SegmentExceptTable[[#This Row],[kW Boundary]]+$BP$13","v":0.45449327972731918},{"$f":"SegmentExceptTable[[#This Row],[Boundary M/L]]+(0.05*SegmentExceptTable[[#This Row],[Boundary M/L]])","v":0.47721794371368514},{"$f":"IF(AND(AND(kwpeak_norm>SegmentExceptTable[[#This Row],[kW Boundary]],kwpeak_norm<SegmentExceptTable[[#This Row],[kW Exception]]),AND(kwhmo_norm>SegmentExceptTable[[#This Row],[Boundary M/L]],kwhmo_norm<SegmentExceptTable[[#This Row],[Exception M/L]])),1,0)","v":0}]
[null,null,null,null,null,null,null,null,null,null,null,null,null,null,null,null,null,null,"Warehouse",0.96,21200,null,{"$f":"\"[\"&StipulatedWattage_Table[[#This Row],[Lamp Qty]]&\"L - \"&StipulatedWattage_Table[[#This Row],[Actual lamp wattage]]&\"W\"&IF(StipulatedWattage_Table[[#This Row],[Ballast Type]]=\"\",\"\",\" - \"&TRIM(StipulatedWattage_Table[[#This Row],[Ballast Type]]))&\"]\"","v":"[8L - 32W - IS VH]"},8,32,"IS VH",1.1499999999999999,290,null,null,null,null,null,null,null,null,null,null,null,null,null,null,null,null,null,null,null,148,{"$f":"SegmentExceptTable[[#This Row],[Numbers]]/$BP$4","v":0.24707846410684475},{"$f":"SegmentExceptTable[[#This Row],[kW Boundary]]+(0.05*SegmentExceptTable[[#This Row],[kW Boundary]])","v":0.25943238731218699},{"$f":"$BP$6*SegmentExceptTable[[#This Row],[kW Boundary]]+$BP$7","v":0.34045354502159858},{"$f":"$BP$8*SegmentExceptTable[[#This Row],[kW Boundary]]+$BP$9","v":2.3543934709825548E-2},{"$f":"SegmentExceptTable[[#This Row],[Boundary S/M]]+(0.05*SegmentExceptTable[[#This Row],[Boundary S/M]])","v":2.4721131445316825E-2},{"$f":"IF(AND(AND(kwpeak_norm>SegmentExceptTable[[#This Row],[kW Boundary]],kwpeak_norm<SegmentExceptTable[[#This Row],[kW Exception]]),AND(kwhmo_norm>SegmentExceptTable[[#This Row],[Boundary S/M]],kwhmo_norm<SegmentExceptTable[[#This Row],[Exception S/M]])),1,0)","v":0},{"$f":"$BP$10*SegmentExceptTable[[#This Row],[kW Boundary]]+$BP$11","v":0.39205599852155193},{"$f":"$BP$12*SegmentExceptTable[[#This Row],[kW Boundary]]+$BP$13","v":0.45370308470353043},{"$f":"SegmentExceptTable[[#This Row],[Boundary M/L]]+(0.05*SegmentExceptTable[[#This Row],[Boundary M/L]])","v":0.47638823893870696},{"$f":"IF(AND(AND(kwpeak_norm>SegmentExceptTable[[#This Row],[kW Boundary]],kwpeak_norm<SegmentExceptTable[[#This Row],[kW Exception]]),AND(kwhmo_norm>SegmentExceptTable[[#This Row],[Boundary M/L]],kwhmo_norm<SegmentExceptTable[[#This Row],[Exception M/L]])),1,0)","v":0}]
[null,null,null,null,null,null,null,null,null,null,null,null,null,null,null,null,null,null,"Warehouse, Storage Area",0.96,21200,null,{"$f":"\"[\"&StipulatedWattage_Table[[#This Row],[Lamp Qty]]&\"L - \"&StipulatedWattage_Table[[#This Row],[Actual lamp wattage]]&\"W\"&IF(StipulatedWattage_Table[[#This Row],[Ballast Type]]=\"\",\"\",\" - \"&TRIM(StipulatedWattage_Table[[#This Row],[Ballast Type]]))&\"]\"","v":"[8L - 32W - RS/PRS N]"},8,32,"RS/PRS N",0.88,224,null,null,null,null,null,null,null,null,null,null,null,null,null,null,null,null,null,null,null,149,{"$f":"SegmentExceptTable[[#This Row],[Numbers]]/$BP$4","v":0.24874791318864775},{"$f":"SegmentExceptTable[[#This Row],[kW Boundary]]+(0.05*SegmentExceptTable[[#This Row],[kW Boundary]])","v":0.26118530884808011},{"$f":"$BP$6*SegmentExceptTable[[#This Row],[kW Boundary]]+$BP$7","v":0.34288037531696486},{"$f":"$BP$8*SegmentExceptTable[[#This Row],[kW Boundary]]+$BP$9","v":2.2395498314394663E-2},{"$f":"SegmentExceptTable[[#This Row],[Boundary S/M]]+(0.05*SegmentExceptTable[[#This Row],[Boundary S/M]])","v":2.3515273230114396E-2},{"$f":"IF(AND(AND(kwpeak_norm>SegmentExceptTable[[#This Row],[kW Boundary]],kwpeak_norm<SegmentExceptTable[[#This Row],[kW Exception]]),AND(kwhmo_norm>SegmentExceptTable[[#This Row],[Boundary S/M]],kwhmo_norm<SegmentExceptTable[[#This Row],[Exception S/M]])),1,0)","v":0},{"$f":"$BP$10*SegmentExceptTable[[#This Row],[kW Boundary]]+$BP$11","v":0.39558305216379042},{"$f":"$BP$12*SegmentExceptTable[[#This Row],[kW Boundary]]+$BP$13","v":0.45291288967974169},{"$f":"SegmentExceptTable[[#This Row],[Boundary M/L]]+(0.05*SegmentExceptTable[[#This Row],[Boundary M/L]])","v":0.47555853416372879},{"$f":"IF(AND(AND(kwpeak_norm>SegmentExceptTable[[#This Row],[kW Boundary]],kwpeak_norm<SegmentExceptTable[[#This Row],[kW Exception]]),AND(kwhmo_norm>SegmentExceptTable[[#This Row],[Boundary M/L]],kwhmo_norm<SegmentExceptTable[[#This Row],[Exception M/L]])),1,0)","v":0}]
[null,null,null,null,null,null,null,null,null,null,null,null,null,null,null,null,null,null,"Warehouse: Medium/Palletized Items",0.96,21200,null,{"$f":"\"[\"&StipulatedWattage_Table[[#This Row],[Lamp Qty]]&\"L - \"&StipulatedWattage_Table[[#This Row],[Actual lamp wattage]]&\"W\"&IF(StipulatedWattage_Table[[#This Row],[Ballast Type]]=\"\",\"\",\" - \"&TRIM(StipulatedWattage_Table[[#This Row],[Ballast Type]]))&\"]\"","v":"[8L - 40W]"},8,40,null,null,232,null,null,null,null,null,null,null,null,null,null,null,null,null,null,null,null,null,null,null,150,{"$f":"SegmentExceptTable[[#This Row],[Numbers]]/$BP$4","v":0.25041736227045075},{"$f":"SegmentExceptTable[[#This Row],[kW Boundary]]+(0.05*SegmentExceptTable[[#This Row],[kW Boundary]])","v":0.26293823038397329},{"$f":"$BP$6*SegmentExceptTable[[#This Row],[kW Boundary]]+$BP$7","v":0.34530720561233114},{"$f":"$BP$8*SegmentExceptTable[[#This Row],[kW Boundary]]+$BP$9","v":2.1247061918963805E-2},{"$f":"SegmentExceptTable[[#This Row],[Boundary S/M]]+(0.05*SegmentExceptTable[[#This Row],[Boundary S/M]])","v":2.2309415014911994E-2},{"$f":"IF(AND(AND(kwpeak_norm>SegmentExceptTable[[#This Row],[kW Boundary]],kwpeak_norm<SegmentExceptTable[[#This Row],[kW Exception]]),AND(kwhmo_norm>SegmentExceptTable[[#This Row],[Boundary S/M]],kwhmo_norm<SegmentExceptTable[[#This Row],[Exception S/M]])),1,0)","v":0},{"$f":"$BP$10*SegmentExceptTable[[#This Row],[kW Boundary]]+$BP$11","v":0.39911010580602901},{"$f":"$BP$12*SegmentExceptTable[[#This Row],[kW Boundary]]+$BP$13","v":0.45212269465595289},{"$f":"SegmentExceptTable[[#This Row],[Boundary M/L]]+(0.05*SegmentExceptTable[[#This Row],[Boundary M/L]])","v":0.47472882938875055},{"$f":"IF(AND(AND(kwpeak_norm>SegmentExceptTable[[#This Row],[kW Boundary]],kwpeak_norm<SegmentExceptTable[[#This Row],[kW Exception]]),AND(kwhmo_norm>SegmentExceptTable[[#This Row],[Boundary M/L]],kwhmo_norm<SegmentExceptTable[[#This Row],[Exception M/L]])),1,0)","v":0}]
[null,null,null,null,null,null,null,null,null,null,null,null,null,null,null,null,null,null,"Warehouse: Small Items",0.96,21200,null,{"$f":"\"[\"&StipulatedWattage_Table[[#This Row],[Lamp Qty]]&\"L - \"&StipulatedWattage_Table[[#This Row],[Actual lamp wattage]]&\"W\"&IF(StipulatedWattage_Table[[#This Row],[Ballast Type]]=\"\",\"\",\" - \"&TRIM(StipulatedWattage_Table[[#This Row],[Ballast Type]]))&\"]\"","v":"[8L - 120W]"},8,120,null,null,344,null,null,null,null,null,null,null,null,null,null,null,null,null,null,null,null,null,null,null,151,{"$f":"SegmentExceptTable[[#This Row],[Numbers]]/$BP$4","v":0.25208681135225375},{"$f":"SegmentExceptTable[[#This Row],[kW Boundary]]+(0.05*SegmentExceptTable[[#This Row],[kW Boundary]])","v":0.26469115191986642},{"$f":"$BP$6*SegmentExceptTable[[#This Row],[kW Boundary]]+$BP$7","v":0.34773403590769741},{"$f":"$BP$8*SegmentExceptTable[[#This Row],[kW Boundary]]+$BP$9","v":2.009862552353292E-2},{"$f":"SegmentExceptTable[[#This Row],[Boundary S/M]]+(0.05*SegmentExceptTable[[#This Row],[Boundary S/M]])","v":2.1103556799709565E-2},{"$f":"IF(AND(AND(kwpeak_norm>SegmentExceptTable[[#This Row],[kW Boundary]],kwpeak_norm<SegmentExceptTable[[#This Row],[kW Exception]]),AND(kwhmo_norm>SegmentExceptTable[[#This Row],[Boundary S/M]],kwhmo_norm<SegmentExceptTable[[#This Row],[Exception S/M]])),1,0)","v":0},{"$f":"$BP$10*SegmentExceptTable[[#This Row],[kW Boundary]]+$BP$11","v":0.4026371594482675},{"$f":"$BP$12*SegmentExceptTable[[#This Row],[kW Boundary]]+$BP$13","v":0.45133249963216415},{"$f":"SegmentExceptTable[[#This Row],[Boundary M/L]]+(0.05*SegmentExceptTable[[#This Row],[Boundary M/L]])","v":0.47389912461377237},{"$f":"IF(AND(AND(kwpeak_norm>SegmentExceptTable[[#This Row],[kW Boundary]],kwpeak_norm<SegmentExceptTable[[#This Row],[kW Exception]]),AND(kwhmo_norm>SegmentExceptTable[[#This Row],[Boundary M/L]],kwhmo_norm<SegmentExceptTable[[#This Row],[Exception M/L]])),1,0)","v":0}]
[null,null,null,null,null,null,null,null,null,null,null,null,null,null,null,null,null,null,"Wholesale Store (Pallet Rack Shelving)",0.96,null,null,{"$f":"\"[\"&StipulatedWattage_Table[[#This Row],[Lamp Qty]]&\"L - \"&StipulatedWattage_Table[[#This Row],[Actual lamp wattage]]&\"W\"&IF(StipulatedWattage_Table[[#This Row],[Ballast Type]]=\"\",\"\",\" - \"&TRIM(StipulatedWattage_Table[[#This Row],[Ballast Type]]))&\"]\"","v":"[8L - 75W]"},8,75,null,null,424,null,null,null,null,null,null,null,null,null,null,null,null,null,null,null,null,null,null,null,152,{"$f":"SegmentExceptTable[[#This Row],[Numbers]]/$BP$4","v":0.25375626043405675},{"$f":"SegmentExceptTable[[#This Row],[kW Boundary]]+(0.05*SegmentExceptTable[[#This Row],[kW Boundary]])","v":0.2664440734557596},{"$f":"$BP$6*SegmentExceptTable[[#This Row],[kW Boundary]]+$BP$7","v":0.35016086620306369},{"$f":"$BP$8*SegmentExceptTable[[#This Row],[kW Boundary]]+$BP$9","v":1.8950189128102063E-2},{"$f":"SegmentExceptTable[[#This Row],[Boundary S/M]]+(0.05*SegmentExceptTable[[#This Row],[Boundary S/M]])","v":1.9897698584507167E-2},{"$f":"IF(AND(AND(kwpeak_norm>SegmentExceptTable[[#This Row],[kW Boundary]],kwpeak_norm<SegmentExceptTable[[#This Row],[kW Exception]]),AND(kwhmo_norm>SegmentExceptTable[[#This Row],[Boundary S/M]],kwhmo_norm<SegmentExceptTable[[#This Row],[Exception S/M]])),1,0)","v":0},{"$f":"$BP$10*SegmentExceptTable[[#This Row],[kW Boundary]]+$BP$11","v":0.40616421309050599},{"$f":"$BP$12*SegmentExceptTable[[#This Row],[kW Boundary]]+$BP$13","v":0.45054230460837541},{"$f":"SegmentExceptTable[[#This Row],[Boundary M/L]]+(0.05*SegmentExceptTable[[#This Row],[Boundary M/L]])","v":0.47306941983879419},{"$f":"IF(AND(AND(kwpeak_norm>SegmentExceptTable[[#This Row],[kW Boundary]],kwpeak_norm<SegmentExceptTable[[#This Row],[kW Exception]]),AND(kwhmo_norm>SegmentExceptTable[[#This Row],[Boundary M/L]],kwhmo_norm<SegmentExceptTable[[#This Row],[Exception M/L]])),1,0)","v":0}]
[null,null,null,null,null,null,null,null,null,null,null,null,null,null,null,null,null,null,"Workshop",0.94,null,null,{"$f":"\"[\"&StipulatedWattage_Table[[#This Row],[Lamp Qty]]&\"L - \"&StipulatedWattage_Table[[#This Row],[Actual lamp wattage]]&\"W\"&IF(StipulatedWattage_Table[[#This Row],[Ballast Type]]=\"\",\"\",\" - \"&TRIM(StipulatedWattage_Table[[#This Row],[Ballast Type]]))&\"]\"","v":"[9L - 100W]"},9,100,null,null,648,null,null,null,null,null,null,null,null,null,null,null,null,null,null,null,null,null,null,null,153,{"$f":"SegmentExceptTable[[#This Row],[Numbers]]/$BP$4","v":0.25542570951585974},{"$f":"SegmentExceptTable[[#This Row],[kW Boundary]]+(0.05*SegmentExceptTable[[#This Row],[kW Boundary]])","v":0.26819699499165273},{"$f":"$BP$6*SegmentExceptTable[[#This Row],[kW Boundary]]+$BP$7","v":0.35258769649842991},{"$f":"$BP$8*SegmentExceptTable[[#This Row],[kW Boundary]]+$BP$9","v":1.7801752732671178E-2},{"$f":"SegmentExceptTable[[#This Row],[Boundary S/M]]+(0.05*SegmentExceptTable[[#This Row],[Boundary S/M]])","v":1.8691840369304737E-2},{"$f":"IF(AND(AND(kwpeak_norm>SegmentExceptTable[[#This Row],[kW Boundary]],kwpeak_norm<SegmentExceptTable[[#This Row],[kW Exception]]),AND(kwhmo_norm>SegmentExceptTable[[#This Row],[Boundary S/M]],kwhmo_norm<SegmentExceptTable[[#This Row],[Exception S/M]])),1,0)","v":0},{"$f":"$BP$10*SegmentExceptTable[[#This Row],[kW Boundary]]+$BP$11","v":0.40969126673274447},{"$f":"$BP$12*SegmentExceptTable[[#This Row],[kW Boundary]]+$BP$13","v":0.44975210958458667},{"$f":"SegmentExceptTable[[#This Row],[Boundary M/L]]+(0.05*SegmentExceptTable[[#This Row],[Boundary M/L]])","v":0.47223971506381601},{"$f":"IF(AND(AND(kwpeak_norm>SegmentExceptTable[[#This Row],[kW Boundary]],kwpeak_norm<SegmentExceptTable[[#This Row],[kW Exception]]),AND(kwhmo_norm>SegmentExceptTable[[#This Row],[Boundary M/L]],kwhmo_norm<SegmentExceptTable[[#This Row],[Exception M/L]])),1,0)","v":0}]
[null,null,null,null,null,null,null,null,null,null,null,null,null,null,null,null,null,null,null,null,null,null,{"$f":"\"[\"&StipulatedWattage_Table[[#This Row],[Lamp Qty]]&\"L - \"&StipulatedWattage_Table[[#This Row],[Actual lamp wattage]]&\"W\"&IF(StipulatedWattage_Table[[#This Row],[Ballast Type]]=\"\",\"\",\" - \"&TRIM(StipulatedWattage_Table[[#This Row],[Ballast Type]]))&\"]\"","v":"[9L - 40W]"},9,40,null,null,261,null,null,null,null,null,null,null,null,null,null,null,null,null,null,null,null,null,null,null,154,{"$f":"SegmentExceptTable[[#This Row],[Numbers]]/$BP$4","v":0.2570951585976628},{"$f":"SegmentExceptTable[[#This Row],[kW Boundary]]+(0.05*SegmentExceptTable[[#This Row],[kW Boundary]])","v":0.26994991652754596},{"$f":"$BP$6*SegmentExceptTable[[#This Row],[kW Boundary]]+$BP$7","v":0.3550145267937963},{"$f":"$BP$8*SegmentExceptTable[[#This Row],[kW Boundary]]+$BP$9","v":1.6653316337240265E-2},{"$f":"SegmentExceptTable[[#This Row],[Boundary S/M]]+(0.05*SegmentExceptTable[[#This Row],[Boundary S/M]])","v":1.7485982154102277E-2},{"$f":"IF(AND(AND(kwpeak_norm>SegmentExceptTable[[#This Row],[kW Boundary]],kwpeak_norm<SegmentExceptTable[[#This Row],[kW Exception]]),AND(kwhmo_norm>SegmentExceptTable[[#This Row],[Boundary S/M]],kwhmo_norm<SegmentExceptTable[[#This Row],[Exception S/M]])),1,0)","v":0},{"$f":"$BP$10*SegmentExceptTable[[#This Row],[kW Boundary]]+$BP$11","v":0.41321832037498318},{"$f":"$BP$12*SegmentExceptTable[[#This Row],[kW Boundary]]+$BP$13","v":0.44896191456079787},{"$f":"SegmentExceptTable[[#This Row],[Boundary M/L]]+(0.05*SegmentExceptTable[[#This Row],[Boundary M/L]])","v":0.47141001028883778},{"$f":"IF(AND(AND(kwpeak_norm>SegmentExceptTable[[#This Row],[kW Boundary]],kwpeak_norm<SegmentExceptTable[[#This Row],[kW Exception]]),AND(kwhmo_norm>SegmentExceptTable[[#This Row],[Boundary M/L]],kwhmo_norm<SegmentExceptTable[[#This Row],[Exception M/L]])),1,0)","v":0}]
[null,null,null,null,null,null,null,null,null,null,null,null,null,null,null,null,null,null,null,null,null,null,{"$f":"\"[\"&StipulatedWattage_Table[[#This Row],[Lamp Qty]]&\"L - \"&StipulatedWattage_Table[[#This Row],[Actual lamp wattage]]&\"W\"&IF(StipulatedWattage_Table[[#This Row],[Ballast Type]]=\"\",\"\",\" - \"&TRIM(StipulatedWattage_Table[[#This Row],[Ballast Type]]))&\"]\"","v":"[9L - 120W]"},9,120,null,null,387,null,null,null,null,null,null,null,null,null,null,null,null,null,null,null,null,null,null,null,155,{"$f":"SegmentExceptTable[[#This Row],[Numbers]]/$BP$4","v":0.2587646076794658},{"$f":"SegmentExceptTable[[#This Row],[kW Boundary]]+(0.05*SegmentExceptTable[[#This Row],[kW Boundary]])","v":0.27170283806343909},{"$f":"$BP$6*SegmentExceptTable[[#This Row],[kW Boundary]]+$BP$7","v":0.35744135708916258},{"$f":"$BP$8*SegmentExceptTable[[#This Row],[kW Boundary]]+$BP$9","v":1.5504879941809407E-2},{"$f":"SegmentExceptTable[[#This Row],[Boundary S/M]]+(0.05*SegmentExceptTable[[#This Row],[Boundary S/M]])","v":1.6280123938899878E-2},{"$f":"IF(AND(AND(kwpeak_norm>SegmentExceptTable[[#This Row],[kW Boundary]],kwpeak_norm<SegmentExceptTable[[#This Row],[kW Exception]]),AND(kwhmo_norm>SegmentExceptTable[[#This Row],[Boundary S/M]],kwhmo_norm<SegmentExceptTable[[#This Row],[Exception S/M]])),1,0)","v":0},{"$f":"$BP$10*SegmentExceptTable[[#This Row],[kW Boundary]]+$BP$11","v":0.41674537401722167},{"$f":"$BP$12*SegmentExceptTable[[#This Row],[kW Boundary]]+$BP$13","v":0.44817171953700913},{"$f":"SegmentExceptTable[[#This Row],[Boundary M/L]]+(0.05*SegmentExceptTable[[#This Row],[Boundary M/L]])","v":0.4705803055138596},{"$f":"IF(AND(AND(kwpeak_norm>SegmentExceptTable[[#This Row],[kW Boundary]],kwpeak_norm<SegmentExceptTable[[#This Row],[kW Exception]]),AND(kwhmo_norm>SegmentExceptTable[[#This Row],[Boundary M/L]],kwhmo_norm<SegmentExceptTable[[#This Row],[Exception M/L]])),1,0)","v":0}]
[null,null,null,null,null,null,null,null,null,null,null,null,null,null,null,null,null,null,null,null,null,null,{"$f":"\"[\"&StipulatedWattage_Table[[#This Row],[Lamp Qty]]&\"L - \"&StipulatedWattage_Table[[#This Row],[Actual lamp wattage]]&\"W\"&IF(StipulatedWattage_Table[[#This Row],[Ballast Type]]=\"\",\"\",\" - \"&TRIM(StipulatedWattage_Table[[#This Row],[Ballast Type]]))&\"]\"","v":"[9L - 75W]"},9,75,null,null,477,null,null,null,null,null,null,null,null,null,null,null,null,null,null,null,null,null,null,null,156,{"$f":"SegmentExceptTable[[#This Row],[Numbers]]/$BP$4","v":0.2604340567612688},{"$f":"SegmentExceptTable[[#This Row],[kW Boundary]]+(0.05*SegmentExceptTable[[#This Row],[kW Boundary]])","v":0.27345575959933222},{"$f":"$BP$6*SegmentExceptTable[[#This Row],[kW Boundary]]+$BP$7","v":0.3598681873845288},{"$f":"$BP$8*SegmentExceptTable[[#This Row],[kW Boundary]]+$BP$9","v":1.4356443546378522E-2},{"$f":"SegmentExceptTable[[#This Row],[Boundary S/M]]+(0.05*SegmentExceptTable[[#This Row],[Boundary S/M]])","v":1.5074265723697449E-2},{"$f":"IF(AND(AND(kwpeak_norm>SegmentExceptTable[[#This Row],[kW Boundary]],kwpeak_norm<SegmentExceptTable[[#This Row],[kW Exception]]),AND(kwhmo_norm>SegmentExceptTable[[#This Row],[Boundary S/M]],kwhmo_norm<SegmentExceptTable[[#This Row],[Exception S/M]])),1,0)","v":0},{"$f":"$BP$10*SegmentExceptTable[[#This Row],[kW Boundary]]+$BP$11","v":0.42027242765946016},{"$f":"$BP$12*SegmentExceptTable[[#This Row],[kW Boundary]]+$BP$13","v":0.44738152451322039},{"$f":"SegmentExceptTable[[#This Row],[Boundary M/L]]+(0.05*SegmentExceptTable[[#This Row],[Boundary M/L]])","v":0.46975060073888142},{"$f":"IF(AND(AND(kwpeak_norm>SegmentExceptTable[[#This Row],[kW Boundary]],kwpeak_norm<SegmentExceptTable[[#This Row],[kW Exception]]),AND(kwhmo_norm>SegmentExceptTable[[#This Row],[Boundary M/L]],kwhmo_norm<SegmentExceptTable[[#This Row],[Exception M/L]])),1,0)","v":0}]
[null,null,null,null,null,null,null,null,null,null,null,null,null,null,null,null,null,null,null,null,null,null,null,null,null,null,null,null,null,null,null,null,null,null,null,null,null,null,null,null,null,null,null,null,null,null,null,157,{"$f":"SegmentExceptTable[[#This Row],[Numbers]]/$BP$4","v":0.26210350584307179},{"$f":"SegmentExceptTable[[#This Row],[kW Boundary]]+(0.05*SegmentExceptTable[[#This Row],[kW Boundary]])","v":0.2752086811352254},{"$f":"$BP$6*SegmentExceptTable[[#This Row],[kW Boundary]]+$BP$7","v":0.36229501767989508},{"$f":"$BP$8*SegmentExceptTable[[#This Row],[kW Boundary]]+$BP$9","v":1.3208007150947665E-2},{"$f":"SegmentExceptTable[[#This Row],[Boundary S/M]]+(0.05*SegmentExceptTable[[#This Row],[Boundary S/M]])","v":1.3868407508495047E-2},{"$f":"IF(AND(AND(kwpeak_norm>SegmentExceptTable[[#This Row],[kW Boundary]],kwpeak_norm<SegmentExceptTable[[#This Row],[kW Exception]]),AND(kwhmo_norm>SegmentExceptTable[[#This Row],[Boundary S/M]],kwhmo_norm<SegmentExceptTable[[#This Row],[Exception S/M]])),1,0)","v":0},{"$f":"$BP$10*SegmentExceptTable[[#This Row],[kW Boundary]]+$BP$11","v":0.42379948130169864},{"$f":"$BP$12*SegmentExceptTable[[#This Row],[kW Boundary]]+$BP$13","v":0.44659132948943159},{"$f":"SegmentExceptTable[[#This Row],[Boundary M/L]]+(0.05*SegmentExceptTable[[#This Row],[Boundary M/L]])","v":0.46892089596390318},{"$f":"IF(AND(AND(kwpeak_norm>SegmentExceptTable[[#This Row],[kW Boundary]],kwpeak_norm<SegmentExceptTable[[#This Row],[kW Exception]]),AND(kwhmo_norm>SegmentExceptTable[[#This Row],[Boundary M/L]],kwhmo_norm<SegmentExceptTable[[#This Row],[Exception M/L]])),1,0)","v":0}]
[null,null,null,null,null,null,null,null,null,null,null,null,null,null,null,null,null,null,null,null,null,null,null,null,null,null,null,null,null,null,null,null,null,null,null,null,null,null,null,null,null,null,null,null,null,null,null,158,{"$f":"SegmentExceptTable[[#This Row],[Numbers]]/$BP$4","v":0.26377295492487479},{"$f":"SegmentExceptTable[[#This Row],[kW Boundary]]+(0.05*SegmentExceptTable[[#This Row],[kW Boundary]])","v":0.27696160267111852},{"$f":"$BP$6*SegmentExceptTable[[#This Row],[kW Boundary]]+$BP$7","v":0.36472184797526136},{"$f":"$BP$8*SegmentExceptTable[[#This Row],[kW Boundary]]+$BP$9","v":1.205957075551678E-2},{"$f":"SegmentExceptTable[[#This Row],[Boundary S/M]]+(0.05*SegmentExceptTable[[#This Row],[Boundary S/M]])","v":1.2662549293292618E-2},{"$f":"IF(AND(AND(kwpeak_norm>SegmentExceptTable[[#This Row],[kW Boundary]],kwpeak_norm<SegmentExceptTable[[#This Row],[kW Exception]]),AND(kwhmo_norm>SegmentExceptTable[[#This Row],[Boundary S/M]],kwhmo_norm<SegmentExceptTable[[#This Row],[Exception S/M]])),1,0)","v":0},{"$f":"$BP$10*SegmentExceptTable[[#This Row],[kW Boundary]]+$BP$11","v":0.42732653494393724},{"$f":"$BP$12*SegmentExceptTable[[#This Row],[kW Boundary]]+$BP$13","v":0.44580113446564285},{"$f":"SegmentExceptTable[[#This Row],[Boundary M/L]]+(0.05*SegmentExceptTable[[#This Row],[Boundary M/L]])","v":0.468091191188925},{"$f":"IF(AND(AND(kwpeak_norm>SegmentExceptTable[[#This Row],[kW Boundary]],kwpeak_norm<SegmentExceptTable[[#This Row],[kW Exception]]),AND(kwhmo_norm>SegmentExceptTable[[#This Row],[Boundary M/L]],kwhmo_norm<SegmentExceptTable[[#This Row],[Exception M/L]])),1,0)","v":0}]
[null,null,null,null,null,null,null,null,null,null,null,null,null,null,null,null,null,null,null,null,null,null,null,null,null,null,null,null,null,null,null,null,null,null,null,null,null,null,null,null,null,null,null,null,null,null,null,159,{"$f":"SegmentExceptTable[[#This Row],[Numbers]]/$BP$4","v":0.26544240400667779},{"$f":"SegmentExceptTable[[#This Row],[kW Boundary]]+(0.05*SegmentExceptTable[[#This Row],[kW Boundary]])","v":0.2787145242070117},{"$f":"$BP$6*SegmentExceptTable[[#This Row],[kW Boundary]]+$BP$7","v":0.36714867827062764},{"$f":"$BP$8*SegmentExceptTable[[#This Row],[kW Boundary]]+$BP$9","v":1.0911134360085922E-2},{"$f":"SegmentExceptTable[[#This Row],[Boundary S/M]]+(0.05*SegmentExceptTable[[#This Row],[Boundary S/M]])","v":1.1456691078090218E-2},{"$f":"IF(AND(AND(kwpeak_norm>SegmentExceptTable[[#This Row],[kW Boundary]],kwpeak_norm<SegmentExceptTable[[#This Row],[kW Exception]]),AND(kwhmo_norm>SegmentExceptTable[[#This Row],[Boundary S/M]],kwhmo_norm<SegmentExceptTable[[#This Row],[Exception S/M]])),1,0)","v":0},{"$f":"$BP$10*SegmentExceptTable[[#This Row],[kW Boundary]]+$BP$11","v":0.43085358858617573},{"$f":"$BP$12*SegmentExceptTable[[#This Row],[kW Boundary]]+$BP$13","v":0.4450109394418541},{"$f":"SegmentExceptTable[[#This Row],[Boundary M/L]]+(0.05*SegmentExceptTable[[#This Row],[Boundary M/L]])","v":0.46726148641394682},{"$f":"IF(AND(AND(kwpeak_norm>SegmentExceptTable[[#This Row],[kW Boundary]],kwpeak_norm<SegmentExceptTable[[#This Row],[kW Exception]]),AND(kwhmo_norm>SegmentExceptTable[[#This Row],[Boundary M/L]],kwhmo_norm<SegmentExceptTable[[#This Row],[Exception M/L]])),1,0)","v":0}]
[null,null,null,null,null,null,null,null,null,null,null,null,null,null,null,null,null,null,null,null,null,null,null,null,null,null,null,null,null,null,null,null,null,null,null,null,null,null,null,null,null,null,null,null,null,null,null,1120,{"$f":"SegmentExceptTable[[#This Row],[Numbers]]/$BP$4","v":1.8697829716193657},{"$f":"SegmentExceptTable[[#This Row],[kW Boundary]]+(0.05*SegmentExceptTable[[#This Row],[kW Boundary]])","v":1.963272120200334},{"$f":"$BP$6*SegmentExceptTable[[#This Row],[kW Boundary]]+$BP$7","v":2.6993325921176208},{"$f":"$BP$8*SegmentExceptTable[[#This Row],[kW Boundary]]+$BP$9","v":-1.0927362416489861},{"$f":"SegmentExceptTable[[#This Row],[Boundary S/M]]+(0.05*SegmentExceptTable[[#This Row],[Boundary S/M]])","v":-1.1473730537314353},{"$f":"IF(AND(AND(kwpeak_norm>SegmentExceptTable[[#This Row],[kW Boundary]],kwpeak_norm<SegmentExceptTable[[#This Row],[kW Exception]]),AND(kwhmo_norm>SegmentExceptTable[[#This Row],[Boundary S/M]],kwhmo_norm<SegmentExceptTable[[#This Row],[Exception S/M]])),1,0)","v":0},{"$f":"$BP$10*SegmentExceptTable[[#This Row],[kW Boundary]]+$BP$11","v":3.8203521387774027},{"$f":"$BP$12*SegmentExceptTable[[#This Row],[kW Boundary]]+$BP$13","v":-0.31436647841914134},{"$f":"SegmentExceptTable[[#This Row],[Boundary M/L]]+(0.05*SegmentExceptTable[[#This Row],[Boundary M/L]])","v":-0.3300848023400984},{"$f":"IF(AND(AND(kwpeak_norm>SegmentExceptTable[[#This Row],[kW Boundary]],kwpeak_norm<SegmentExceptTable[[#This Row],[kW Exception]]),AND(kwhmo_norm>SegmentExceptTable[[#This Row],[Boundary M/L]],kwhmo_norm<SegmentExceptTable[[#This Row],[Exception M/L]])),1,0)","v":0}]
[null,null,null,null,null,null,null,null,null,null,null,null,null,null,null,null,null,null,null,null,null,null,null,null,null,null,null,null,null,null,null,null,null,null,null,null,null,null,null,null,null,null,null,null,null,null,null,161,{"$f":"SegmentExceptTable[[#This Row],[Numbers]]/$BP$4","v":0.26878130217028379},{"$f":"SegmentExceptTable[[#This Row],[kW Boundary]]+(0.05*SegmentExceptTable[[#This Row],[kW Boundary]])","v":0.28222036727879796},{"$f":"$BP$6*SegmentExceptTable[[#This Row],[kW Boundary]]+$BP$7","v":0.37200233886136014},{"$f":"$BP$8*SegmentExceptTable[[#This Row],[kW Boundary]]+$BP$9","v":8.6142615692241797E-3},{"$f":"SegmentExceptTable[[#This Row],[Boundary S/M]]+(0.05*SegmentExceptTable[[#This Row],[Boundary S/M]])","v":9.0449746476853887E-3},{"$f":"IF(AND(AND(kwpeak_norm>SegmentExceptTable[[#This Row],[kW Boundary]],kwpeak_norm<SegmentExceptTable[[#This Row],[kW Exception]]),AND(kwhmo_norm>SegmentExceptTable[[#This Row],[Boundary S/M]],kwhmo_norm<SegmentExceptTable[[#This Row],[Exception S/M]])),1,0)","v":0},{"$f":"$BP$10*SegmentExceptTable[[#This Row],[kW Boundary]]+$BP$11","v":0.4379076958706527},{"$f":"$BP$12*SegmentExceptTable[[#This Row],[kW Boundary]]+$BP$13","v":0.44343054939427662},{"$f":"SegmentExceptTable[[#This Row],[Boundary M/L]]+(0.05*SegmentExceptTable[[#This Row],[Boundary M/L]])","v":0.46560207686399047},{"$f":"IF(AND(AND(kwpeak_norm>SegmentExceptTable[[#This Row],[kW Boundary]],kwpeak_norm<SegmentExceptTable[[#This Row],[kW Exception]]),AND(kwhmo_norm>SegmentExceptTable[[#This Row],[Boundary M/L]],kwhmo_norm<SegmentExceptTable[[#This Row],[Exception M/L]])),1,0)","v":0}]
[null,null,null,null,null,null,null,null,null,null,null,null,null,null,null,null,null,null,null,null,null,null,null,null,null,null,null,null,null,null,null,null,null,null,null,null,null,null,null,null,null,null,null,null,null,null,null,162,{"$f":"SegmentExceptTable[[#This Row],[Numbers]]/$BP$4","v":0.27045075125208679},{"$f":"SegmentExceptTable[[#This Row],[kW Boundary]]+(0.05*SegmentExceptTable[[#This Row],[kW Boundary]])","v":0.28397328881469114},{"$f":"$BP$6*SegmentExceptTable[[#This Row],[kW Boundary]]+$BP$7","v":0.37442916915672642},{"$f":"$BP$8*SegmentExceptTable[[#This Row],[kW Boundary]]+$BP$9","v":7.4658251737932946E-3},{"$f":"SegmentExceptTable[[#This Row],[Boundary S/M]]+(0.05*SegmentExceptTable[[#This Row],[Boundary S/M]])","v":7.8391164324829593E-3},{"$f":"IF(AND(AND(kwpeak_norm>SegmentExceptTable[[#This Row],[kW Boundary]],kwpeak_norm<SegmentExceptTable[[#This Row],[kW Exception]]),AND(kwhmo_norm>SegmentExceptTable[[#This Row],[Boundary S/M]],kwhmo_norm<SegmentExceptTable[[#This Row],[Exception S/M]])),1,0)","v":0},{"$f":"$BP$10*SegmentExceptTable[[#This Row],[kW Boundary]]+$BP$11","v":0.4414347495128913},{"$f":"$BP$12*SegmentExceptTable[[#This Row],[kW Boundary]]+$BP$13","v":0.44264035437048788},{"$f":"SegmentExceptTable[[#This Row],[Boundary M/L]]+(0.05*SegmentExceptTable[[#This Row],[Boundary M/L]])","v":0.46477237208901229},{"$f":"IF(AND(AND(kwpeak_norm>SegmentExceptTable[[#This Row],[kW Boundary]],kwpeak_norm<SegmentExceptTable[[#This Row],[kW Exception]]),AND(kwhmo_norm>SegmentExceptTable[[#This Row],[Boundary M/L]],kwhmo_norm<SegmentExceptTable[[#This Row],[Exception M/L]])),1,0)","v":0}]
[null,null,null,null,null,null,null,null,null,null,null,null,null,null,null,null,null,null,null,null,null,null,null,null,null,null,null,null,null,null,null,null,null,null,null,null,null,null,null,null,null,null,null,null,null,null,null,163,{"$f":"SegmentExceptTable[[#This Row],[Numbers]]/$BP$4","v":0.27212020033388984},{"$f":"SegmentExceptTable[[#This Row],[kW Boundary]]+(0.05*SegmentExceptTable[[#This Row],[kW Boundary]])","v":0.28572621035058432},{"$f":"$BP$6*SegmentExceptTable[[#This Row],[kW Boundary]]+$BP$7","v":0.3768559994520928},{"$f":"$BP$8*SegmentExceptTable[[#This Row],[kW Boundary]]+$BP$9","v":6.3173887783623817E-3},{"$f":"SegmentExceptTable[[#This Row],[Boundary S/M]]+(0.05*SegmentExceptTable[[#This Row],[Boundary S/M]])","v":6.6332582172805004E-3},{"$f":"IF(AND(AND(kwpeak_norm>SegmentExceptTable[[#This Row],[kW Boundary]],kwpeak_norm<SegmentExceptTable[[#This Row],[kW Exception]]),AND(kwhmo_norm>SegmentExceptTable[[#This Row],[Boundary S/M]],kwhmo_norm<SegmentExceptTable[[#This Row],[Exception S/M]])),1,0)","v":0},{"$f":"$BP$10*SegmentExceptTable[[#This Row],[kW Boundary]]+$BP$11","v":0.4449618031551299},{"$f":"$BP$12*SegmentExceptTable[[#This Row],[kW Boundary]]+$BP$13","v":0.44185015934669908},{"$f":"SegmentExceptTable[[#This Row],[Boundary M/L]]+(0.05*SegmentExceptTable[[#This Row],[Boundary M/L]])","v":0.46394266731403405},{"$f":"IF(AND(AND(kwpeak_norm>SegmentExceptTable[[#This Row],[kW Boundary]],kwpeak_norm<SegmentExceptTable[[#This Row],[kW Exception]]),AND(kwhmo_norm>SegmentExceptTable[[#This Row],[Boundary M/L]],kwhmo_norm<SegmentExceptTable[[#This Row],[Exception M/L]])),1,0)","v":0}]
[null,null,null,null,null,null,null,null,null,null,null,null,null,null,null,null,null,null,null,null,null,null,null,null,null,null,null,null,null,null,null,null,null,null,null,null,null,null,null,null,null,null,null,null,null,null,null,164,{"$f":"SegmentExceptTable[[#This Row],[Numbers]]/$BP$4","v":0.27378964941569284},{"$f":"SegmentExceptTable[[#This Row],[kW Boundary]]+(0.05*SegmentExceptTable[[#This Row],[kW Boundary]])","v":0.2874791318864775},{"$f":"$BP$6*SegmentExceptTable[[#This Row],[kW Boundary]]+$BP$7","v":0.37928282974745903},{"$f":"$BP$8*SegmentExceptTable[[#This Row],[kW Boundary]]+$BP$9","v":5.1689523829315243E-3},{"$f":"SegmentExceptTable[[#This Row],[Boundary S/M]]+(0.05*SegmentExceptTable[[#This Row],[Boundary S/M]])","v":5.4274000020781005E-3},{"$f":"IF(AND(AND(kwpeak_norm>SegmentExceptTable[[#This Row],[kW Boundary]],kwpeak_norm<SegmentExceptTable[[#This Row],[kW Exception]]),AND(kwhmo_norm>SegmentExceptTable[[#This Row],[Boundary S/M]],kwhmo_norm<SegmentExceptTable[[#This Row],[Exception S/M]])),1,0)","v":0},{"$f":"$BP$10*SegmentExceptTable[[#This Row],[kW Boundary]]+$BP$11","v":0.44848885679736838},{"$f":"$BP$12*SegmentExceptTable[[#This Row],[kW Boundary]]+$BP$13","v":0.44105996432291028},{"$f":"SegmentExceptTable[[#This Row],[Boundary M/L]]+(0.05*SegmentExceptTable[[#This Row],[Boundary M/L]])","v":0.46311296253905582},{"$f":"IF(AND(AND(kwpeak_norm>SegmentExceptTable[[#This Row],[kW Boundary]],kwpeak_norm<SegmentExceptTable[[#This Row],[kW Exception]]),AND(kwhmo_norm>SegmentExceptTable[[#This Row],[Boundary M/L]],kwhmo_norm<SegmentExceptTable[[#This Row],[Exception M/L]])),1,0)","v":0}]
[null,null,null,null,null,null,null,null,null,null,null,null,null,null,null,null,null,null,null,null,null,null,null,null,null,null,null,null,null,null,null,null,null,null,null,null,null,null,null,null,null,null,null,null,null,null,null,165,{"$f":"SegmentExceptTable[[#This Row],[Numbers]]/$BP$4","v":0.27545909849749584},{"$f":"SegmentExceptTable[[#This Row],[kW Boundary]]+(0.05*SegmentExceptTable[[#This Row],[kW Boundary]])","v":0.28923205342237063},{"$f":"$BP$6*SegmentExceptTable[[#This Row],[kW Boundary]]+$BP$7","v":0.38170966004282531},{"$f":"$BP$8*SegmentExceptTable[[#This Row],[kW Boundary]]+$BP$9","v":4.0205159875006391E-3},{"$f":"SegmentExceptTable[[#This Row],[Boundary S/M]]+(0.05*SegmentExceptTable[[#This Row],[Boundary S/M]])","v":4.2215417868756711E-3},{"$f":"IF(AND(AND(kwpeak_norm>SegmentExceptTable[[#This Row],[kW Boundary]],kwpeak_norm<SegmentExceptTable[[#This Row],[kW Exception]]),AND(kwhmo_norm>SegmentExceptTable[[#This Row],[Boundary S/M]],kwhmo_norm<SegmentExceptTable[[#This Row],[Exception S/M]])),1,0)","v":0},{"$f":"$BP$10*SegmentExceptTable[[#This Row],[kW Boundary]]+$BP$11","v":0.45201591043960698},{"$f":"$BP$12*SegmentExceptTable[[#This Row],[kW Boundary]]+$BP$13","v":0.44026976929912154},{"$f":"SegmentExceptTable[[#This Row],[Boundary M/L]]+(0.05*SegmentExceptTable[[#This Row],[Boundary M/L]])","v":0.46228325776407764},{"$f":"IF(AND(AND(kwpeak_norm>SegmentExceptTable[[#This Row],[kW Boundary]],kwpeak_norm<SegmentExceptTable[[#This Row],[kW Exception]]),AND(kwhmo_norm>SegmentExceptTable[[#This Row],[Boundary M/L]],kwhmo_norm<SegmentExceptTable[[#This Row],[Exception M/L]])),1,0)","v":0}]
[null,null,null,null,null,null,null,null,null,null,null,null,null,null,null,null,null,null,null,null,null,null,null,null,null,null,null,null,null,null,null,null,null,null,null,null,null,null,null,null,null,null,null,null,null,null,null,166,{"$f":"SegmentExceptTable[[#This Row],[Numbers]]/$BP$4","v":0.27712854757929883},{"$f":"SegmentExceptTable[[#This Row],[kW Boundary]]+(0.05*SegmentExceptTable[[#This Row],[kW Boundary]])","v":0.29098497495826375},{"$f":"$BP$6*SegmentExceptTable[[#This Row],[kW Boundary]]+$BP$7","v":0.38413649033819158},{"$f":"$BP$8*SegmentExceptTable[[#This Row],[kW Boundary]]+$BP$9","v":2.8720795920697817E-3},{"$f":"SegmentExceptTable[[#This Row],[Boundary S/M]]+(0.05*SegmentExceptTable[[#This Row],[Boundary S/M]])","v":3.0156835716732707E-3},{"$f":"IF(AND(AND(kwpeak_norm>SegmentExceptTable[[#This Row],[kW Boundary]],kwpeak_norm<SegmentExceptTable[[#This Row],[kW Exception]]),AND(kwhmo_norm>SegmentExceptTable[[#This Row],[Boundary S/M]],kwhmo_norm<SegmentExceptTable[[#This Row],[Exception S/M]])),1,0)","v":0},{"$f":"$BP$10*SegmentExceptTable[[#This Row],[kW Boundary]]+$BP$11","v":0.45554296408184547},{"$f":"$BP$12*SegmentExceptTable[[#This Row],[kW Boundary]]+$BP$13","v":0.4394795742753328},{"$f":"SegmentExceptTable[[#This Row],[Boundary M/L]]+(0.05*SegmentExceptTable[[#This Row],[Boundary M/L]])","v":0.46145355298909946},{"$f":"IF(AND(AND(kwpeak_norm>SegmentExceptTable[[#This Row],[kW Boundary]],kwpeak_norm<SegmentExceptTable[[#This Row],[kW Exception]]),AND(kwhmo_norm>SegmentExceptTable[[#This Row],[Boundary M/L]],kwhmo_norm<SegmentExceptTable[[#This Row],[Exception M/L]])),1,0)","v":0}]
[null,null,null,null,null,null,null,null,null,null,null,null,null,null,null,null,null,null,null,null,null,null,null,null,null,null,null,null,null,null,null,null,null,null,null,null,null,null,null,null,null,null,null,null,null,null,null,167,{"$f":"SegmentExceptTable[[#This Row],[Numbers]]/$BP$4","v":0.27879799666110183},{"$f":"SegmentExceptTable[[#This Row],[kW Boundary]]+(0.05*SegmentExceptTable[[#This Row],[kW Boundary]])","v":0.29273789649415694},{"$f":"$BP$6*SegmentExceptTable[[#This Row],[kW Boundary]]+$BP$7","v":0.38656332063355786},{"$f":"$BP$8*SegmentExceptTable[[#This Row],[kW Boundary]]+$BP$9","v":1.7236431966388965E-3},{"$f":"SegmentExceptTable[[#This Row],[Boundary S/M]]+(0.05*SegmentExceptTable[[#This Row],[Boundary S/M]])","v":1.8098253564708413E-3},{"$f":"IF(AND(AND(kwpeak_norm>SegmentExceptTable[[#This Row],[kW Boundary]],kwpeak_norm<SegmentExceptTable[[#This Row],[kW Exception]]),AND(kwhmo_norm>SegmentExceptTable[[#This Row],[Boundary S/M]],kwhmo_norm<SegmentExceptTable[[#This Row],[Exception S/M]])),1,0)","v":0},{"$f":"$BP$10*SegmentExceptTable[[#This Row],[kW Boundary]]+$BP$11","v":0.45907001772408396},{"$f":"$BP$12*SegmentExceptTable[[#This Row],[kW Boundary]]+$BP$13","v":0.43868937925154405},{"$f":"SegmentExceptTable[[#This Row],[Boundary M/L]]+(0.05*SegmentExceptTable[[#This Row],[Boundary M/L]])","v":0.46062384821412128},{"$f":"IF(AND(AND(kwpeak_norm>SegmentExceptTable[[#This Row],[kW Boundary]],kwpeak_norm<SegmentExceptTable[[#This Row],[kW Exception]]),AND(kwhmo_norm>SegmentExceptTable[[#This Row],[Boundary M/L]],kwhmo_norm<SegmentExceptTable[[#This Row],[Exception M/L]])),1,0)","v":0}]
[null,null,null,null,null,null,null,null,null,null,null,null,null,null,null,null,null,null,null,null,null,null,null,null,null,null,null,null,null,null,null,null,null,null,null,null,null,null,null,null,null,null,null,null,null,null,null,168,{"$f":"SegmentExceptTable[[#This Row],[Numbers]]/$BP$4","v":0.28046744574290483},{"$f":"SegmentExceptTable[[#This Row],[kW Boundary]]+(0.05*SegmentExceptTable[[#This Row],[kW Boundary]])","v":0.29449081803005006},{"$f":"$BP$6*SegmentExceptTable[[#This Row],[kW Boundary]]+$BP$7","v":0.38899015092892414},{"$f":"$BP$8*SegmentExceptTable[[#This Row],[kW Boundary]]+$BP$9","v":5.7520680120803913E-4},{"$f":"SegmentExceptTable[[#This Row],[Boundary S/M]]+(0.05*SegmentExceptTable[[#This Row],[Boundary S/M]])","v":6.0396714126844113E-4},{"$f":"IF(AND(AND(kwpeak_norm>SegmentExceptTable[[#This Row],[kW Boundary]],kwpeak_norm<SegmentExceptTable[[#This Row],[kW Exception]]),AND(kwhmo_norm>SegmentExceptTable[[#This Row],[Boundary S/M]],kwhmo_norm<SegmentExceptTable[[#This Row],[Exception S/M]])),1,0)","v":0},{"$f":"$BP$10*SegmentExceptTable[[#This Row],[kW Boundary]]+$BP$11","v":0.46259707136632244},{"$f":"$BP$12*SegmentExceptTable[[#This Row],[kW Boundary]]+$BP$13","v":0.43789918422775531},{"$f":"SegmentExceptTable[[#This Row],[Boundary M/L]]+(0.05*SegmentExceptTable[[#This Row],[Boundary M/L]])","v":0.4597941434391431},{"$f":"IF(AND(AND(kwpeak_norm>SegmentExceptTable[[#This Row],[kW Boundary]],kwpeak_norm<SegmentExceptTable[[#This Row],[kW Exception]]),AND(kwhmo_norm>SegmentExceptTable[[#This Row],[Boundary M/L]],kwhmo_norm<SegmentExceptTable[[#This Row],[Exception M/L]])),1,0)","v":0}]
[null,null,null,null,null,null,null,null,null,null,null,null,null,null,null,null,null,null,null,null,null,null,null,null,null,null,null,null,null,null,null,null,null,null,null,null,null,null,null,null,null,null,null,null,null,null,null,169,{"$f":"SegmentExceptTable[[#This Row],[Numbers]]/$BP$4","v":0.28213689482470783},{"$f":"SegmentExceptTable[[#This Row],[kW Boundary]]+(0.05*SegmentExceptTable[[#This Row],[kW Boundary]])","v":0.29624373956594324},{"$f":"$BP$6*SegmentExceptTable[[#This Row],[kW Boundary]]+$BP$7","v":0.39141698122429042},{"$f":"$BP$8*SegmentExceptTable[[#This Row],[kW Boundary]]+$BP$9","v":-5.7322959422284603E-4},{"$f":"SegmentExceptTable[[#This Row],[Boundary S/M]]+(0.05*SegmentExceptTable[[#This Row],[Boundary S/M]])","v":-6.0189107393398829E-4},{"$f":"IF(AND(AND(kwpeak_norm>SegmentExceptTable[[#This Row],[kW Boundary]],kwpeak_norm<SegmentExceptTable[[#This Row],[kW Exception]]),AND(kwhmo_norm>SegmentExceptTable[[#This Row],[Boundary S/M]],kwhmo_norm<SegmentExceptTable[[#This Row],[Exception S/M]])),1,0)","v":0},{"$f":"$BP$10*SegmentExceptTable[[#This Row],[kW Boundary]]+$BP$11","v":0.46612412500856104},{"$f":"$BP$12*SegmentExceptTable[[#This Row],[kW Boundary]]+$BP$13","v":0.43710898920396657},{"$f":"SegmentExceptTable[[#This Row],[Boundary M/L]]+(0.05*SegmentExceptTable[[#This Row],[Boundary M/L]])","v":0.45896443866416492},{"$f":"IF(AND(AND(kwpeak_norm>SegmentExceptTable[[#This Row],[kW Boundary]],kwpeak_norm<SegmentExceptTable[[#This Row],[kW Exception]]),AND(kwhmo_norm>SegmentExceptTable[[#This Row],[Boundary M/L]],kwhmo_norm<SegmentExceptTable[[#This Row],[Exception M/L]])),1,0)","v":0}]
[null,null,null,null,null,null,null,null,null,null,null,null,null,null,null,null,null,null,null,null,null,null,null,null,null,null,null,null,null,null,null,null,null,null,null,null,null,null,null,null,null,null,null,null,null,null,null,170,{"$f":"SegmentExceptTable[[#This Row],[Numbers]]/$BP$4","v":0.28380634390651083},{"$f":"SegmentExceptTable[[#This Row],[kW Boundary]]+(0.05*SegmentExceptTable[[#This Row],[kW Boundary]])","v":0.29799666110183637},{"$f":"$BP$6*SegmentExceptTable[[#This Row],[kW Boundary]]+$BP$7","v":0.39384381151965664},{"$f":"$BP$8*SegmentExceptTable[[#This Row],[kW Boundary]]+$BP$9","v":-1.7216659896537034E-3},{"$f":"SegmentExceptTable[[#This Row],[Boundary S/M]]+(0.05*SegmentExceptTable[[#This Row],[Boundary S/M]])","v":-1.8077492891363886E-3},{"$f":"IF(AND(AND(kwpeak_norm>SegmentExceptTable[[#This Row],[kW Boundary]],kwpeak_norm<SegmentExceptTable[[#This Row],[kW Exception]]),AND(kwhmo_norm>SegmentExceptTable[[#This Row],[Boundary S/M]],kwhmo_norm<SegmentExceptTable[[#This Row],[Exception S/M]])),1,0)","v":0},{"$f":"$BP$10*SegmentExceptTable[[#This Row],[kW Boundary]]+$BP$11","v":0.46965117865079953},{"$f":"$BP$12*SegmentExceptTable[[#This Row],[kW Boundary]]+$BP$13","v":0.43631879418017783},{"$f":"SegmentExceptTable[[#This Row],[Boundary M/L]]+(0.05*SegmentExceptTable[[#This Row],[Boundary M/L]])","v":0.45813473388918674},{"$f":"IF(AND(AND(kwpeak_norm>SegmentExceptTable[[#This Row],[kW Boundary]],kwpeak_norm<SegmentExceptTable[[#This Row],[kW Exception]]),AND(kwhmo_norm>SegmentExceptTable[[#This Row],[Boundary M/L]],kwhmo_norm<SegmentExceptTable[[#This Row],[Exception M/L]])),1,0)","v":0}]
[null,null,null,null,null,null,null,null,null,null,null,null,null,null,null,null,null,null,null,null,null,null,null,null,null,null,null,null,null,null,null,null,null,null,null,null,null,null,null,null,null,null,null,null,null,null,null,171,{"$f":"SegmentExceptTable[[#This Row],[Numbers]]/$BP$4","v":0.28547579298831388},{"$f":"SegmentExceptTable[[#This Row],[kW Boundary]]+(0.05*SegmentExceptTable[[#This Row],[kW Boundary]])","v":0.29974958263772955},{"$f":"$BP$6*SegmentExceptTable[[#This Row],[kW Boundary]]+$BP$7","v":0.39627064181502303},{"$f":"$BP$8*SegmentExceptTable[[#This Row],[kW Boundary]]+$BP$9","v":-2.8701023850846163E-3},{"$f":"SegmentExceptTable[[#This Row],[Boundary S/M]]+(0.05*SegmentExceptTable[[#This Row],[Boundary S/M]])","v":-3.0136075043388473E-3},{"$f":"IF(AND(AND(kwpeak_norm>SegmentExceptTable[[#This Row],[kW Boundary]],kwpeak_norm<SegmentExceptTable[[#This Row],[kW Exception]]),AND(kwhmo_norm>SegmentExceptTable[[#This Row],[Boundary S/M]],kwhmo_norm<SegmentExceptTable[[#This Row],[Exception S/M]])),1,0)","v":0},{"$f":"$BP$10*SegmentExceptTable[[#This Row],[kW Boundary]]+$BP$11","v":0.47317823229303813},{"$f":"$BP$12*SegmentExceptTable[[#This Row],[kW Boundary]]+$BP$13","v":0.43552859915638897},{"$f":"SegmentExceptTable[[#This Row],[Boundary M/L]]+(0.05*SegmentExceptTable[[#This Row],[Boundary M/L]])","v":0.45730502911420845},{"$f":"IF(AND(AND(kwpeak_norm>SegmentExceptTable[[#This Row],[kW Boundary]],kwpeak_norm<SegmentExceptTable[[#This Row],[kW Exception]]),AND(kwhmo_norm>SegmentExceptTable[[#This Row],[Boundary M/L]],kwhmo_norm<SegmentExceptTable[[#This Row],[Exception M/L]])),1,0)","v":0}]
[null,null,null,null,null,null,null,null,null,null,null,null,null,null,null,null,null,null,null,null,null,null,null,null,null,null,null,null,null,null,null,null,null,null,null,null,null,null,null,null,null,null,null,null,null,null,null,172,{"$f":"SegmentExceptTable[[#This Row],[Numbers]]/$BP$4","v":0.28714524207011688},{"$f":"SegmentExceptTable[[#This Row],[kW Boundary]]+(0.05*SegmentExceptTable[[#This Row],[kW Boundary]])","v":0.30150250417362273},{"$f":"$BP$6*SegmentExceptTable[[#This Row],[kW Boundary]]+$BP$7","v":0.39869747211038925},{"$f":"$BP$8*SegmentExceptTable[[#This Row],[kW Boundary]]+$BP$9","v":-4.0185387805155015E-3},{"$f":"SegmentExceptTable[[#This Row],[Boundary S/M]]+(0.05*SegmentExceptTable[[#This Row],[Boundary S/M]])","v":-4.2194657195412768E-3},{"$f":"IF(AND(AND(kwpeak_norm>SegmentExceptTable[[#This Row],[kW Boundary]],kwpeak_norm<SegmentExceptTable[[#This Row],[kW Exception]]),AND(kwhmo_norm>SegmentExceptTable[[#This Row],[Boundary S/M]],kwhmo_norm<SegmentExceptTable[[#This Row],[Exception S/M]])),1,0)","v":0},{"$f":"$BP$10*SegmentExceptTable[[#This Row],[kW Boundary]]+$BP$11","v":0.47670528593527661},{"$f":"$BP$12*SegmentExceptTable[[#This Row],[kW Boundary]]+$BP$13","v":0.43473840413260023},{"$f":"SegmentExceptTable[[#This Row],[Boundary M/L]]+(0.05*SegmentExceptTable[[#This Row],[Boundary M/L]])","v":0.45647532433923022},{"$f":"IF(AND(AND(kwpeak_norm>SegmentExceptTable[[#This Row],[kW Boundary]],kwpeak_norm<SegmentExceptTable[[#This Row],[kW Exception]]),AND(kwhmo_norm>SegmentExceptTable[[#This Row],[Boundary M/L]],kwhmo_norm<SegmentExceptTable[[#This Row],[Exception M/L]])),1,0)","v":0}]
[null,null,null,null,null,null,null,null,null,null,null,null,null,null,null,null,null,null,null,null,null,null,null,null,null,null,null,null,null,null,null,null,null,null,null,null,null,null,null,null,null,null,null,null,null,null,null,173,{"$f":"SegmentExceptTable[[#This Row],[Numbers]]/$BP$4","v":0.28881469115191988},{"$f":"SegmentExceptTable[[#This Row],[kW Boundary]]+(0.05*SegmentExceptTable[[#This Row],[kW Boundary]])","v":0.30325542570951586},{"$f":"$BP$6*SegmentExceptTable[[#This Row],[kW Boundary]]+$BP$7","v":0.40112430240575553},{"$f":"$BP$8*SegmentExceptTable[[#This Row],[kW Boundary]]+$BP$9","v":-5.1669751759463589E-3},{"$f":"SegmentExceptTable[[#This Row],[Boundary S/M]]+(0.05*SegmentExceptTable[[#This Row],[Boundary S/M]])","v":-5.4253239347436767E-3},{"$f":"IF(AND(AND(kwpeak_norm>SegmentExceptTable[[#This Row],[kW Boundary]],kwpeak_norm<SegmentExceptTable[[#This Row],[kW Exception]]),AND(kwhmo_norm>SegmentExceptTable[[#This Row],[Boundary S/M]],kwhmo_norm<SegmentExceptTable[[#This Row],[Exception S/M]])),1,0)","v":0},{"$f":"$BP$10*SegmentExceptTable[[#This Row],[kW Boundary]]+$BP$11","v":0.48023233957751521},{"$f":"$BP$12*SegmentExceptTable[[#This Row],[kW Boundary]]+$BP$13","v":0.43394820910881149},{"$f":"SegmentExceptTable[[#This Row],[Boundary M/L]]+(0.05*SegmentExceptTable[[#This Row],[Boundary M/L]])","v":0.45564561956425209},{"$f":"IF(AND(AND(kwpeak_norm>SegmentExceptTable[[#This Row],[kW Boundary]],kwpeak_norm<SegmentExceptTable[[#This Row],[kW Exception]]),AND(kwhmo_norm>SegmentExceptTable[[#This Row],[Boundary M/L]],kwhmo_norm<SegmentExceptTable[[#This Row],[Exception M/L]])),1,0)","v":0}]
[null,null,null,null,null,null,null,null,null,null,null,null,null,null,null,null,null,null,null,null,null,null,null,null,null,null,null,null,null,null,null,null,null,null,null,null,null,null,null,null,null,null,null,null,null,null,null,174,{"$f":"SegmentExceptTable[[#This Row],[Numbers]]/$BP$4","v":0.29048414023372288},{"$f":"SegmentExceptTable[[#This Row],[kW Boundary]]+(0.05*SegmentExceptTable[[#This Row],[kW Boundary]])","v":0.30500834724540904},{"$f":"$BP$6*SegmentExceptTable[[#This Row],[kW Boundary]]+$BP$7","v":0.40355113270112181},{"$f":"$BP$8*SegmentExceptTable[[#This Row],[kW Boundary]]+$BP$9","v":-6.3154115713772441E-3},{"$f":"SegmentExceptTable[[#This Row],[Boundary S/M]]+(0.05*SegmentExceptTable[[#This Row],[Boundary S/M]])","v":-6.6311821499461061E-3},{"$f":"IF(AND(AND(kwpeak_norm>SegmentExceptTable[[#This Row],[kW Boundary]],kwpeak_norm<SegmentExceptTable[[#This Row],[kW Exception]]),AND(kwhmo_norm>SegmentExceptTable[[#This Row],[Boundary S/M]],kwhmo_norm<SegmentExceptTable[[#This Row],[Exception S/M]])),1,0)","v":0},{"$f":"$BP$10*SegmentExceptTable[[#This Row],[kW Boundary]]+$BP$11","v":0.4837593932197537},{"$f":"$BP$12*SegmentExceptTable[[#This Row],[kW Boundary]]+$BP$13","v":0.43315801408502275},{"$f":"SegmentExceptTable[[#This Row],[Boundary M/L]]+(0.05*SegmentExceptTable[[#This Row],[Boundary M/L]])","v":0.45481591478927386},{"$f":"IF(AND(AND(kwpeak_norm>SegmentExceptTable[[#This Row],[kW Boundary]],kwpeak_norm<SegmentExceptTable[[#This Row],[kW Exception]]),AND(kwhmo_norm>SegmentExceptTable[[#This Row],[Boundary M/L]],kwhmo_norm<SegmentExceptTable[[#This Row],[Exception M/L]])),1,0)","v":0}]
[null,null,null,null,null,null,null,null,null,null,null,null,null,null,null,null,null,null,null,null,null,null,null,null,null,null,null,null,null,null,null,null,null,null,null,null,null,null,null,null,null,null,null,null,null,null,null,175,{"$f":"SegmentExceptTable[[#This Row],[Numbers]]/$BP$4","v":0.29215358931552587},{"$f":"SegmentExceptTable[[#This Row],[kW Boundary]]+(0.05*SegmentExceptTable[[#This Row],[kW Boundary]])","v":0.30676126878130217},{"$f":"$BP$6*SegmentExceptTable[[#This Row],[kW Boundary]]+$BP$7","v":0.40597796299648808},{"$f":"$BP$8*SegmentExceptTable[[#This Row],[kW Boundary]]+$BP$9","v":-7.4638479668081015E-3},{"$f":"SegmentExceptTable[[#This Row],[Boundary S/M]]+(0.05*SegmentExceptTable[[#This Row],[Boundary S/M]])","v":-7.8370403651485069E-3},{"$f":"IF(AND(AND(kwpeak_norm>SegmentExceptTable[[#This Row],[kW Boundary]],kwpeak_norm<SegmentExceptTable[[#This Row],[kW Exception]]),AND(kwhmo_norm>SegmentExceptTable[[#This Row],[Boundary S/M]],kwhmo_norm<SegmentExceptTable[[#This Row],[Exception S/M]])),1,0)","v":0},{"$f":"$BP$10*SegmentExceptTable[[#This Row],[kW Boundary]]+$BP$11","v":0.48728644686199218},{"$f":"$BP$12*SegmentExceptTable[[#This Row],[kW Boundary]]+$BP$13","v":0.432367819061234},{"$f":"SegmentExceptTable[[#This Row],[Boundary M/L]]+(0.05*SegmentExceptTable[[#This Row],[Boundary M/L]])","v":0.45398621001429573},{"$f":"IF(AND(AND(kwpeak_norm>SegmentExceptTable[[#This Row],[kW Boundary]],kwpeak_norm<SegmentExceptTable[[#This Row],[kW Exception]]),AND(kwhmo_norm>SegmentExceptTable[[#This Row],[Boundary M/L]],kwhmo_norm<SegmentExceptTable[[#This Row],[Exception M/L]])),1,0)","v":0}]
[null,null,null,null,null,null,null,null,null,null,null,null,null,null,null,null,null,null,null,null,null,null,null,null,null,null,null,null,null,null,null,null,null,null,null,null,null,null,null,null,null,null,null,null,null,null,null,176,{"$f":"SegmentExceptTable[[#This Row],[Numbers]]/$BP$4","v":0.29382303839732887},{"$f":"SegmentExceptTable[[#This Row],[kW Boundary]]+(0.05*SegmentExceptTable[[#This Row],[kW Boundary]])","v":0.30851419031719529},{"$f":"$BP$6*SegmentExceptTable[[#This Row],[kW Boundary]]+$BP$7","v":0.40840479329185436},{"$f":"$BP$8*SegmentExceptTable[[#This Row],[kW Boundary]]+$BP$9","v":-8.6122843622389866E-3},{"$f":"SegmentExceptTable[[#This Row],[Boundary S/M]]+(0.05*SegmentExceptTable[[#This Row],[Boundary S/M]])","v":-9.0428985803509363E-3},{"$f":"IF(AND(AND(kwpeak_norm>SegmentExceptTable[[#This Row],[kW Boundary]],kwpeak_norm<SegmentExceptTable[[#This Row],[kW Exception]]),AND(kwhmo_norm>SegmentExceptTable[[#This Row],[Boundary S/M]],kwhmo_norm<SegmentExceptTable[[#This Row],[Exception S/M]])),1,0)","v":0},{"$f":"$BP$10*SegmentExceptTable[[#This Row],[kW Boundary]]+$BP$11","v":0.49081350050423067},{"$f":"$BP$12*SegmentExceptTable[[#This Row],[kW Boundary]]+$BP$13","v":0.43157762403744526},{"$f":"SegmentExceptTable[[#This Row],[Boundary M/L]]+(0.05*SegmentExceptTable[[#This Row],[Boundary M/L]])","v":0.4531565052393175},{"$f":"IF(AND(AND(kwpeak_norm>SegmentExceptTable[[#This Row],[kW Boundary]],kwpeak_norm<SegmentExceptTable[[#This Row],[kW Exception]]),AND(kwhmo_norm>SegmentExceptTable[[#This Row],[Boundary M/L]],kwhmo_norm<SegmentExceptTable[[#This Row],[Exception M/L]])),1,0)","v":0}]
[null,null,null,null,null,null,null,null,null,null,null,null,null,null,null,null,null,null,null,null,null,null,null,null,null,null,null,null,null,null,null,null,null,null,null,null,null,null,null,null,null,null,null,null,null,null,null,177,{"$f":"SegmentExceptTable[[#This Row],[Numbers]]/$BP$4","v":0.29549248747913187},{"$f":"SegmentExceptTable[[#This Row],[kW Boundary]]+(0.05*SegmentExceptTable[[#This Row],[kW Boundary]])","v":0.31026711185308847},{"$f":"$BP$6*SegmentExceptTable[[#This Row],[kW Boundary]]+$BP$7","v":0.41083162358722064},{"$f":"$BP$8*SegmentExceptTable[[#This Row],[kW Boundary]]+$BP$9","v":-9.760720757669844E-3},{"$f":"SegmentExceptTable[[#This Row],[Boundary S/M]]+(0.05*SegmentExceptTable[[#This Row],[Boundary S/M]])","v":-1.0248756795553336E-2},{"$f":"IF(AND(AND(kwpeak_norm>SegmentExceptTable[[#This Row],[kW Boundary]],kwpeak_norm<SegmentExceptTable[[#This Row],[kW Exception]]),AND(kwhmo_norm>SegmentExceptTable[[#This Row],[Boundary S/M]],kwhmo_norm<SegmentExceptTable[[#This Row],[Exception S/M]])),1,0)","v":0},{"$f":"$BP$10*SegmentExceptTable[[#This Row],[kW Boundary]]+$BP$11","v":0.49434055414646927},{"$f":"$BP$12*SegmentExceptTable[[#This Row],[kW Boundary]]+$BP$13","v":0.43078742901365652},{"$f":"SegmentExceptTable[[#This Row],[Boundary M/L]]+(0.05*SegmentExceptTable[[#This Row],[Boundary M/L]])","v":0.45232680046433937},{"$f":"IF(AND(AND(kwpeak_norm>SegmentExceptTable[[#This Row],[kW Boundary]],kwpeak_norm<SegmentExceptTable[[#This Row],[kW Exception]]),AND(kwhmo_norm>SegmentExceptTable[[#This Row],[Boundary M/L]],kwhmo_norm<SegmentExceptTable[[#This Row],[Exception M/L]])),1,0)","v":0}]
[null,null,null,null,null,null,null,null,null,null,null,null,null,null,null,null,null,null,null,null,null,null,null,null,null,null,null,null,null,null,null,null,null,null,null,null,null,null,null,null,null,null,null,null,null,null,null,178,{"$f":"SegmentExceptTable[[#This Row],[Numbers]]/$BP$4","v":0.29716193656093487},{"$f":"SegmentExceptTable[[#This Row],[kW Boundary]]+(0.05*SegmentExceptTable[[#This Row],[kW Boundary]])","v":0.3120200333889816},{"$f":"$BP$6*SegmentExceptTable[[#This Row],[kW Boundary]]+$BP$7","v":0.41325845388258686},{"$f":"$BP$8*SegmentExceptTable[[#This Row],[kW Boundary]]+$BP$9","v":-1.0909157153100729E-2},{"$f":"SegmentExceptTable[[#This Row],[Boundary S/M]]+(0.05*SegmentExceptTable[[#This Row],[Boundary S/M]])","v":-1.1454615010755766E-2},{"$f":"IF(AND(AND(kwpeak_norm>SegmentExceptTable[[#This Row],[kW Boundary]],kwpeak_norm<SegmentExceptTable[[#This Row],[kW Exception]]),AND(kwhmo_norm>SegmentExceptTable[[#This Row],[Boundary S/M]],kwhmo_norm<SegmentExceptTable[[#This Row],[Exception S/M]])),1,0)","v":0},{"$f":"$BP$10*SegmentExceptTable[[#This Row],[kW Boundary]]+$BP$11","v":0.49786760778870776},{"$f":"$BP$12*SegmentExceptTable[[#This Row],[kW Boundary]]+$BP$13","v":0.42999723398986772},{"$f":"SegmentExceptTable[[#This Row],[Boundary M/L]]+(0.05*SegmentExceptTable[[#This Row],[Boundary M/L]])","v":0.45149709568936114},{"$f":"IF(AND(AND(kwpeak_norm>SegmentExceptTable[[#This Row],[kW Boundary]],kwpeak_norm<SegmentExceptTable[[#This Row],[kW Exception]]),AND(kwhmo_norm>SegmentExceptTable[[#This Row],[Boundary M/L]],kwhmo_norm<SegmentExceptTable[[#This Row],[Exception M/L]])),1,0)","v":0}]
[null,null,null,null,null,null,null,null,null,null,null,null,null,null,null,null,null,null,null,null,null,null,null,null,null,null,null,null,null,null,null,null,null,null,null,null,null,null,null,null,null,null,null,null,null,null,null,179,{"$f":"SegmentExceptTable[[#This Row],[Numbers]]/$BP$4","v":0.29883138564273792},{"$f":"SegmentExceptTable[[#This Row],[kW Boundary]]+(0.05*SegmentExceptTable[[#This Row],[kW Boundary]])","v":0.31377295492487484},{"$f":"$BP$6*SegmentExceptTable[[#This Row],[kW Boundary]]+$BP$7","v":0.41568528417795325},{"$f":"$BP$8*SegmentExceptTable[[#This Row],[kW Boundary]]+$BP$9","v":-1.2057593548531614E-2},{"$f":"SegmentExceptTable[[#This Row],[Boundary S/M]]+(0.05*SegmentExceptTable[[#This Row],[Boundary S/M]])","v":-1.2660473225958195E-2},{"$f":"IF(AND(AND(kwpeak_norm>SegmentExceptTable[[#This Row],[kW Boundary]],kwpeak_norm<SegmentExceptTable[[#This Row],[kW Exception]]),AND(kwhmo_norm>SegmentExceptTable[[#This Row],[Boundary S/M]],kwhmo_norm<SegmentExceptTable[[#This Row],[Exception S/M]])),1,0)","v":0},{"$f":"$BP$10*SegmentExceptTable[[#This Row],[kW Boundary]]+$BP$11","v":0.50139466143094635},{"$f":"$BP$12*SegmentExceptTable[[#This Row],[kW Boundary]]+$BP$13","v":0.42920703896607892},{"$f":"SegmentExceptTable[[#This Row],[Boundary M/L]]+(0.05*SegmentExceptTable[[#This Row],[Boundary M/L]])","v":0.45066739091438285},{"$f":"IF(AND(AND(kwpeak_norm>SegmentExceptTable[[#This Row],[kW Boundary]],kwpeak_norm<SegmentExceptTable[[#This Row],[kW Exception]]),AND(kwhmo_norm>SegmentExceptTable[[#This Row],[Boundary M/L]],kwhmo_norm<SegmentExceptTable[[#This Row],[Exception M/L]])),1,0)","v":0}]
[null,null,null,null,null,null,null,null,null,null,null,null,null,null,null,null,null,null,null,null,null,null,null,null,null,null,null,null,null,null,null,null,null,null,null,null,null,null,null,null,null,null,null,null,null,null,null,180,{"$f":"SegmentExceptTable[[#This Row],[Numbers]]/$BP$4","v":0.30050083472454092},{"$f":"SegmentExceptTable[[#This Row],[kW Boundary]]+(0.05*SegmentExceptTable[[#This Row],[kW Boundary]])","v":0.31552587646076796},{"$f":"$BP$6*SegmentExceptTable[[#This Row],[kW Boundary]]+$BP$7","v":0.41811211447331953},{"$f":"$BP$8*SegmentExceptTable[[#This Row],[kW Boundary]]+$BP$9","v":-1.32060299439625E-2},{"$f":"SegmentExceptTable[[#This Row],[Boundary S/M]]+(0.05*SegmentExceptTable[[#This Row],[Boundary S/M]])","v":-1.3866331441160624E-2},{"$f":"IF(AND(AND(kwpeak_norm>SegmentExceptTable[[#This Row],[kW Boundary]],kwpeak_norm<SegmentExceptTable[[#This Row],[kW Exception]]),AND(kwhmo_norm>SegmentExceptTable[[#This Row],[Boundary S/M]],kwhmo_norm<SegmentExceptTable[[#This Row],[Exception S/M]])),1,0)","v":0},{"$f":"$BP$10*SegmentExceptTable[[#This Row],[kW Boundary]]+$BP$11","v":0.50492171507318484},{"$f":"$BP$12*SegmentExceptTable[[#This Row],[kW Boundary]]+$BP$13","v":0.42841684394229018},{"$f":"SegmentExceptTable[[#This Row],[Boundary M/L]]+(0.05*SegmentExceptTable[[#This Row],[Boundary M/L]])","v":0.44983768613940467},{"$f":"IF(AND(AND(kwpeak_norm>SegmentExceptTable[[#This Row],[kW Boundary]],kwpeak_norm<SegmentExceptTable[[#This Row],[kW Exception]]),AND(kwhmo_norm>SegmentExceptTable[[#This Row],[Boundary M/L]],kwhmo_norm<SegmentExceptTable[[#This Row],[Exception M/L]])),1,0)","v":0}]
[null,null,null,null,null,null,null,null,null,null,null,null,null,null,null,null,null,null,null,null,null,null,null,null,null,null,null,null,null,null,null,null,null,null,null,null,null,null,null,null,null,null,null,null,null,null,null,181,{"$f":"SegmentExceptTable[[#This Row],[Numbers]]/$BP$4","v":0.30217028380634392},{"$f":"SegmentExceptTable[[#This Row],[kW Boundary]]+(0.05*SegmentExceptTable[[#This Row],[kW Boundary]])","v":0.31727879799666114},{"$f":"$BP$6*SegmentExceptTable[[#This Row],[kW Boundary]]+$BP$7","v":0.42053894476868575},{"$f":"$BP$8*SegmentExceptTable[[#This Row],[kW Boundary]]+$BP$9","v":-1.4354466339393385E-2},{"$f":"SegmentExceptTable[[#This Row],[Boundary S/M]]+(0.05*SegmentExceptTable[[#This Row],[Boundary S/M]])","v":-1.5072189656363054E-2},{"$f":"IF(AND(AND(kwpeak_norm>SegmentExceptTable[[#This Row],[kW Boundary]],kwpeak_norm<SegmentExceptTable[[#This Row],[kW Exception]]),AND(kwhmo_norm>SegmentExceptTable[[#This Row],[Boundary S/M]],kwhmo_norm<SegmentExceptTable[[#This Row],[Exception S/M]])),1,0)","v":0},{"$f":"$BP$10*SegmentExceptTable[[#This Row],[kW Boundary]]+$BP$11","v":0.50844876871542344},{"$f":"$BP$12*SegmentExceptTable[[#This Row],[kW Boundary]]+$BP$13","v":0.42762664891850144},{"$f":"SegmentExceptTable[[#This Row],[Boundary M/L]]+(0.05*SegmentExceptTable[[#This Row],[Boundary M/L]])","v":0.44900798136442649},{"$f":"IF(AND(AND(kwpeak_norm>SegmentExceptTable[[#This Row],[kW Boundary]],kwpeak_norm<SegmentExceptTable[[#This Row],[kW Exception]]),AND(kwhmo_norm>SegmentExceptTable[[#This Row],[Boundary M/L]],kwhmo_norm<SegmentExceptTable[[#This Row],[Exception M/L]])),1,0)","v":0}]
[null,null,null,null,null,null,null,null,null,null,null,null,null,null,null,null,null,null,null,null,null,null,null,null,null,null,null,null,null,null,null,null,null,null,null,null,null,null,null,null,null,null,null,null,null,null,null,182,{"$f":"SegmentExceptTable[[#This Row],[Numbers]]/$BP$4","v":0.30383973288814692},{"$f":"SegmentExceptTable[[#This Row],[kW Boundary]]+(0.05*SegmentExceptTable[[#This Row],[kW Boundary]])","v":0.31903171953255427},{"$f":"$BP$6*SegmentExceptTable[[#This Row],[kW Boundary]]+$BP$7","v":0.42296577506405203},{"$f":"$BP$8*SegmentExceptTable[[#This Row],[kW Boundary]]+$BP$9","v":-1.5502902734824242E-2},{"$f":"SegmentExceptTable[[#This Row],[Boundary S/M]]+(0.05*SegmentExceptTable[[#This Row],[Boundary S/M]])","v":-1.6278047871565456E-2},{"$f":"IF(AND(AND(kwpeak_norm>SegmentExceptTable[[#This Row],[kW Boundary]],kwpeak_norm<SegmentExceptTable[[#This Row],[kW Exception]]),AND(kwhmo_norm>SegmentExceptTable[[#This Row],[Boundary S/M]],kwhmo_norm<SegmentExceptTable[[#This Row],[Exception S/M]])),1,0)","v":0},{"$f":"$BP$10*SegmentExceptTable[[#This Row],[kW Boundary]]+$BP$11","v":0.51197582235766192},{"$f":"$BP$12*SegmentExceptTable[[#This Row],[kW Boundary]]+$BP$13","v":0.4268364538947127},{"$f":"SegmentExceptTable[[#This Row],[Boundary M/L]]+(0.05*SegmentExceptTable[[#This Row],[Boundary M/L]])","v":0.44817827658944831},{"$f":"IF(AND(AND(kwpeak_norm>SegmentExceptTable[[#This Row],[kW Boundary]],kwpeak_norm<SegmentExceptTable[[#This Row],[kW Exception]]),AND(kwhmo_norm>SegmentExceptTable[[#This Row],[Boundary M/L]],kwhmo_norm<SegmentExceptTable[[#This Row],[Exception M/L]])),1,0)","v":0}]
[null,null,null,null,null,null,null,null,null,null,null,null,null,null,null,null,null,null,null,null,null,null,null,null,null,null,null,null,null,null,null,null,null,null,null,null,null,null,null,null,null,null,null,null,null,null,null,183,{"$f":"SegmentExceptTable[[#This Row],[Numbers]]/$BP$4","v":0.30550918196994992},{"$f":"SegmentExceptTable[[#This Row],[kW Boundary]]+(0.05*SegmentExceptTable[[#This Row],[kW Boundary]])","v":0.3207846410684474},{"$f":"$BP$6*SegmentExceptTable[[#This Row],[kW Boundary]]+$BP$7","v":0.42539260535941831},{"$f":"$BP$8*SegmentExceptTable[[#This Row],[kW Boundary]]+$BP$9","v":-1.6651339130255127E-2},{"$f":"SegmentExceptTable[[#This Row],[Boundary S/M]]+(0.05*SegmentExceptTable[[#This Row],[Boundary S/M]])","v":-1.7483906086767885E-2},{"$f":"IF(AND(AND(kwpeak_norm>SegmentExceptTable[[#This Row],[kW Boundary]],kwpeak_norm<SegmentExceptTable[[#This Row],[kW Exception]]),AND(kwhmo_norm>SegmentExceptTable[[#This Row],[Boundary S/M]],kwhmo_norm<SegmentExceptTable[[#This Row],[Exception S/M]])),1,0)","v":0},{"$f":"$BP$10*SegmentExceptTable[[#This Row],[kW Boundary]]+$BP$11","v":0.51550287599990041},{"$f":"$BP$12*SegmentExceptTable[[#This Row],[kW Boundary]]+$BP$13","v":0.42604625887092396},{"$f":"SegmentExceptTable[[#This Row],[Boundary M/L]]+(0.05*SegmentExceptTable[[#This Row],[Boundary M/L]])","v":0.44734857181447013},{"$f":"IF(AND(AND(kwpeak_norm>SegmentExceptTable[[#This Row],[kW Boundary]],kwpeak_norm<SegmentExceptTable[[#This Row],[kW Exception]]),AND(kwhmo_norm>SegmentExceptTable[[#This Row],[Boundary M/L]],kwhmo_norm<SegmentExceptTable[[#This Row],[Exception M/L]])),1,0)","v":0}]
[null,null,null,null,null,null,null,null,null,null,null,null,null,null,null,null,null,null,null,null,null,null,null,null,null,null,null,null,null,null,null,null,null,null,null,null,null,null,null,null,null,null,null,null,null,null,null,184,{"$f":"SegmentExceptTable[[#This Row],[Numbers]]/$BP$4","v":0.30717863105175292},{"$f":"SegmentExceptTable[[#This Row],[kW Boundary]]+(0.05*SegmentExceptTable[[#This Row],[kW Boundary]])","v":0.32253756260434058},{"$f":"$BP$6*SegmentExceptTable[[#This Row],[kW Boundary]]+$BP$7","v":0.42781943565478459},{"$f":"$BP$8*SegmentExceptTable[[#This Row],[kW Boundary]]+$BP$9","v":-1.7799775525685985E-2},{"$f":"SegmentExceptTable[[#This Row],[Boundary S/M]]+(0.05*SegmentExceptTable[[#This Row],[Boundary S/M]])","v":-1.8689764301970283E-2},{"$f":"IF(AND(AND(kwpeak_norm>SegmentExceptTable[[#This Row],[kW Boundary]],kwpeak_norm<SegmentExceptTable[[#This Row],[kW Exception]]),AND(kwhmo_norm>SegmentExceptTable[[#This Row],[Boundary S/M]],kwhmo_norm<SegmentExceptTable[[#This Row],[Exception S/M]])),1,0)","v":0},{"$f":"$BP$10*SegmentExceptTable[[#This Row],[kW Boundary]]+$BP$11","v":0.51902992964213901},{"$f":"$BP$12*SegmentExceptTable[[#This Row],[kW Boundary]]+$BP$13","v":0.42525606384713521},{"$f":"SegmentExceptTable[[#This Row],[Boundary M/L]]+(0.05*SegmentExceptTable[[#This Row],[Boundary M/L]])","v":0.44651886703949195},{"$f":"IF(AND(AND(kwpeak_norm>SegmentExceptTable[[#This Row],[kW Boundary]],kwpeak_norm<SegmentExceptTable[[#This Row],[kW Exception]]),AND(kwhmo_norm>SegmentExceptTable[[#This Row],[Boundary M/L]],kwhmo_norm<SegmentExceptTable[[#This Row],[Exception M/L]])),1,0)","v":0}]
[null,null,null,null,null,null,null,null,null,null,null,null,null,null,null,null,null,null,null,null,null,null,null,null,null,null,null,null,null,null,null,null,null,null,null,null,null,null,null,null,null,null,null,null,null,null,null,185,{"$f":"SegmentExceptTable[[#This Row],[Numbers]]/$BP$4","v":0.30884808013355591},{"$f":"SegmentExceptTable[[#This Row],[kW Boundary]]+(0.05*SegmentExceptTable[[#This Row],[kW Boundary]])","v":0.3242904841402337},{"$f":"$BP$6*SegmentExceptTable[[#This Row],[kW Boundary]]+$BP$7","v":0.43024626595015086},{"$f":"$BP$8*SegmentExceptTable[[#This Row],[kW Boundary]]+$BP$9","v":-1.894821192111687E-2},{"$f":"SegmentExceptTable[[#This Row],[Boundary S/M]]+(0.05*SegmentExceptTable[[#This Row],[Boundary S/M]])","v":-1.9895622517172713E-2},{"$f":"IF(AND(AND(kwpeak_norm>SegmentExceptTable[[#This Row],[kW Boundary]],kwpeak_norm<SegmentExceptTable[[#This Row],[kW Exception]]),AND(kwhmo_norm>SegmentExceptTable[[#This Row],[Boundary S/M]],kwhmo_norm<SegmentExceptTable[[#This Row],[Exception S/M]])),1,0)","v":0},{"$f":"$BP$10*SegmentExceptTable[[#This Row],[kW Boundary]]+$BP$11","v":0.5225569832843775},{"$f":"$BP$12*SegmentExceptTable[[#This Row],[kW Boundary]]+$BP$13","v":0.42446586882334647},{"$f":"SegmentExceptTable[[#This Row],[Boundary M/L]]+(0.05*SegmentExceptTable[[#This Row],[Boundary M/L]])","v":0.44568916226451377},{"$f":"IF(AND(AND(kwpeak_norm>SegmentExceptTable[[#This Row],[kW Boundary]],kwpeak_norm<SegmentExceptTable[[#This Row],[kW Exception]]),AND(kwhmo_norm>SegmentExceptTable[[#This Row],[Boundary M/L]],kwhmo_norm<SegmentExceptTable[[#This Row],[Exception M/L]])),1,0)","v":0}]
[null,null,null,null,null,null,null,null,null,null,null,null,null,null,null,null,null,null,null,null,null,null,null,null,null,null,null,null,null,null,null,null,null,null,null,null,null,null,null,null,null,null,null,null,null,null,null,186,{"$f":"SegmentExceptTable[[#This Row],[Numbers]]/$BP$4","v":0.31051752921535891},{"$f":"SegmentExceptTable[[#This Row],[kW Boundary]]+(0.05*SegmentExceptTable[[#This Row],[kW Boundary]])","v":0.32604340567612689},{"$f":"$BP$6*SegmentExceptTable[[#This Row],[kW Boundary]]+$BP$7","v":0.43267309624551709},{"$f":"$BP$8*SegmentExceptTable[[#This Row],[kW Boundary]]+$BP$9","v":-2.0096648316547727E-2},{"$f":"SegmentExceptTable[[#This Row],[Boundary S/M]]+(0.05*SegmentExceptTable[[#This Row],[Boundary S/M]])","v":-2.1101480732375114E-2},{"$f":"IF(AND(AND(kwpeak_norm>SegmentExceptTable[[#This Row],[kW Boundary]],kwpeak_norm<SegmentExceptTable[[#This Row],[kW Exception]]),AND(kwhmo_norm>SegmentExceptTable[[#This Row],[Boundary S/M]],kwhmo_norm<SegmentExceptTable[[#This Row],[Exception S/M]])),1,0)","v":0},{"$f":"$BP$10*SegmentExceptTable[[#This Row],[kW Boundary]]+$BP$11","v":0.52608403692661598},{"$f":"$BP$12*SegmentExceptTable[[#This Row],[kW Boundary]]+$BP$13","v":0.42367567379955767},{"$f":"SegmentExceptTable[[#This Row],[Boundary M/L]]+(0.05*SegmentExceptTable[[#This Row],[Boundary M/L]])","v":0.44485945748953554},{"$f":"IF(AND(AND(kwpeak_norm>SegmentExceptTable[[#This Row],[kW Boundary]],kwpeak_norm<SegmentExceptTable[[#This Row],[kW Exception]]),AND(kwhmo_norm>SegmentExceptTable[[#This Row],[Boundary M/L]],kwhmo_norm<SegmentExceptTable[[#This Row],[Exception M/L]])),1,0)","v":0}]
[null,null,null,null,null,null,null,null,null,null,null,null,null,null,null,null,null,null,null,null,null,null,null,null,null,null,null,null,null,null,null,null,null,null,null,null,null,null,null,null,null,null,null,null,null,null,null,187,{"$f":"SegmentExceptTable[[#This Row],[Numbers]]/$BP$4","v":0.31218697829716191},{"$f":"SegmentExceptTable[[#This Row],[kW Boundary]]+(0.05*SegmentExceptTable[[#This Row],[kW Boundary]])","v":0.32779632721202001},{"$f":"$BP$6*SegmentExceptTable[[#This Row],[kW Boundary]]+$BP$7","v":0.43509992654088336},{"$f":"$BP$8*SegmentExceptTable[[#This Row],[kW Boundary]]+$BP$9","v":-2.1245084711978612E-2},{"$f":"SegmentExceptTable[[#This Row],[Boundary S/M]]+(0.05*SegmentExceptTable[[#This Row],[Boundary S/M]])","v":-2.2307338947577544E-2},{"$f":"IF(AND(AND(kwpeak_norm>SegmentExceptTable[[#This Row],[kW Boundary]],kwpeak_norm<SegmentExceptTable[[#This Row],[kW Exception]]),AND(kwhmo_norm>SegmentExceptTable[[#This Row],[Boundary S/M]],kwhmo_norm<SegmentExceptTable[[#This Row],[Exception S/M]])),1,0)","v":0},{"$f":"$BP$10*SegmentExceptTable[[#This Row],[kW Boundary]]+$BP$11","v":0.52961109056885447},{"$f":"$BP$12*SegmentExceptTable[[#This Row],[kW Boundary]]+$BP$13","v":0.42288547877576893},{"$f":"SegmentExceptTable[[#This Row],[Boundary M/L]]+(0.05*SegmentExceptTable[[#This Row],[Boundary M/L]])","v":0.44402975271455736},{"$f":"IF(AND(AND(kwpeak_norm>SegmentExceptTable[[#This Row],[kW Boundary]],kwpeak_norm<SegmentExceptTable[[#This Row],[kW Exception]]),AND(kwhmo_norm>SegmentExceptTable[[#This Row],[Boundary M/L]],kwhmo_norm<SegmentExceptTable[[#This Row],[Exception M/L]])),1,0)","v":0}]
[null,null,null,null,null,null,null,null,null,null,null,null,null,null,null,null,null,null,null,null,null,null,null,null,null,null,null,null,null,null,null,null,null,null,null,null,null,null,null,null,null,null,null,null,null,null,null,188,{"$f":"SegmentExceptTable[[#This Row],[Numbers]]/$BP$4","v":0.31385642737896496},{"$f":"SegmentExceptTable[[#This Row],[kW Boundary]]+(0.05*SegmentExceptTable[[#This Row],[kW Boundary]])","v":0.32954924874791319},{"$f":"$BP$6*SegmentExceptTable[[#This Row],[kW Boundary]]+$BP$7","v":0.43752675683624975},{"$f":"$BP$8*SegmentExceptTable[[#This Row],[kW Boundary]]+$BP$9","v":-2.2393521107409498E-2},{"$f":"SegmentExceptTable[[#This Row],[Boundary S/M]]+(0.05*SegmentExceptTable[[#This Row],[Boundary S/M]])","v":-2.3513197162779973E-2},{"$f":"IF(AND(AND(kwpeak_norm>SegmentExceptTable[[#This Row],[kW Boundary]],kwpeak_norm<SegmentExceptTable[[#This Row],[kW Exception]]),AND(kwhmo_norm>SegmentExceptTable[[#This Row],[Boundary S/M]],kwhmo_norm<SegmentExceptTable[[#This Row],[Exception S/M]])),1,0)","v":0},{"$f":"$BP$10*SegmentExceptTable[[#This Row],[kW Boundary]]+$BP$11","v":0.53313814421109318},{"$f":"$BP$12*SegmentExceptTable[[#This Row],[kW Boundary]]+$BP$13","v":0.42209528375198013},{"$f":"SegmentExceptTable[[#This Row],[Boundary M/L]]+(0.05*SegmentExceptTable[[#This Row],[Boundary M/L]])","v":0.44320004793957912},{"$f":"IF(AND(AND(kwpeak_norm>SegmentExceptTable[[#This Row],[kW Boundary]],kwpeak_norm<SegmentExceptTable[[#This Row],[kW Exception]]),AND(kwhmo_norm>SegmentExceptTable[[#This Row],[Boundary M/L]],kwhmo_norm<SegmentExceptTable[[#This Row],[Exception M/L]])),1,0)","v":0}]
[null,null,null,null,null,null,null,null,null,null,null,null,null,null,null,null,null,null,null,null,null,null,null,null,null,null,null,null,null,null,null,null,null,null,null,null,null,null,null,null,null,null,null,null,null,null,null,189,{"$f":"SegmentExceptTable[[#This Row],[Numbers]]/$BP$4","v":0.31552587646076796},{"$f":"SegmentExceptTable[[#This Row],[kW Boundary]]+(0.05*SegmentExceptTable[[#This Row],[kW Boundary]])","v":0.33130217028380637},{"$f":"$BP$6*SegmentExceptTable[[#This Row],[kW Boundary]]+$BP$7","v":0.43995358713161598},{"$f":"$BP$8*SegmentExceptTable[[#This Row],[kW Boundary]]+$BP$9","v":-2.3541957502840383E-2},{"$f":"SegmentExceptTable[[#This Row],[Boundary S/M]]+(0.05*SegmentExceptTable[[#This Row],[Boundary S/M]])","v":-2.4719055377982403E-2},{"$f":"IF(AND(AND(kwpeak_norm>SegmentExceptTable[[#This Row],[kW Boundary]],kwpeak_norm<SegmentExceptTable[[#This Row],[kW Exception]]),AND(kwhmo_norm>SegmentExceptTable[[#This Row],[Boundary S/M]],kwhmo_norm<SegmentExceptTable[[#This Row],[Exception S/M]])),1,0)","v":0},{"$f":"$BP$10*SegmentExceptTable[[#This Row],[kW Boundary]]+$BP$11","v":0.53666519785333167},{"$f":"$BP$12*SegmentExceptTable[[#This Row],[kW Boundary]]+$BP$13","v":0.42130508872819139},{"$f":"SegmentExceptTable[[#This Row],[Boundary M/L]]+(0.05*SegmentExceptTable[[#This Row],[Boundary M/L]])","v":0.44237034316460094},{"$f":"IF(AND(AND(kwpeak_norm>SegmentExceptTable[[#This Row],[kW Boundary]],kwpeak_norm<SegmentExceptTable[[#This Row],[kW Exception]]),AND(kwhmo_norm>SegmentExceptTable[[#This Row],[Boundary M/L]],kwhmo_norm<SegmentExceptTable[[#This Row],[Exception M/L]])),1,0)","v":0}]
[null,null,null,null,null,null,null,null,null,null,null,null,null,null,null,null,null,null,null,null,null,null,null,null,null,null,null,null,null,null,null,null,null,null,null,null,null,null,null,null,null,null,null,null,null,null,null,190,{"$f":"SegmentExceptTable[[#This Row],[Numbers]]/$BP$4","v":0.31719532554257096},{"$f":"SegmentExceptTable[[#This Row],[kW Boundary]]+(0.05*SegmentExceptTable[[#This Row],[kW Boundary]])","v":0.3330550918196995},{"$f":"$BP$6*SegmentExceptTable[[#This Row],[kW Boundary]]+$BP$7","v":0.44238041742698225},{"$f":"$BP$8*SegmentExceptTable[[#This Row],[kW Boundary]]+$BP$9","v":-2.469039389827124E-2},{"$f":"SegmentExceptTable[[#This Row],[Boundary S/M]]+(0.05*SegmentExceptTable[[#This Row],[Boundary S/M]])","v":-2.5924913593184801E-2},{"$f":"IF(AND(AND(kwpeak_norm>SegmentExceptTable[[#This Row],[kW Boundary]],kwpeak_norm<SegmentExceptTable[[#This Row],[kW Exception]]),AND(kwhmo_norm>SegmentExceptTable[[#This Row],[Boundary S/M]],kwhmo_norm<SegmentExceptTable[[#This Row],[Exception S/M]])),1,0)","v":0},{"$f":"$BP$10*SegmentExceptTable[[#This Row],[kW Boundary]]+$BP$11","v":0.54019225149557015},{"$f":"$BP$12*SegmentExceptTable[[#This Row],[kW Boundary]]+$BP$13","v":0.42051489370440265},{"$f":"SegmentExceptTable[[#This Row],[Boundary M/L]]+(0.05*SegmentExceptTable[[#This Row],[Boundary M/L]])","v":0.44154063838962276},{"$f":"IF(AND(AND(kwpeak_norm>SegmentExceptTable[[#This Row],[kW Boundary]],kwpeak_norm<SegmentExceptTable[[#This Row],[kW Exception]]),AND(kwhmo_norm>SegmentExceptTable[[#This Row],[Boundary M/L]],kwhmo_norm<SegmentExceptTable[[#This Row],[Exception M/L]])),1,0)","v":0}]
[null,null,null,null,null,null,null,null,null,null,null,null,null,null,null,null,null,null,null,null,null,null,null,null,null,null,null,null,null,null,null,null,null,null,null,null,null,null,null,null,null,null,null,null,null,null,null,191,{"$f":"SegmentExceptTable[[#This Row],[Numbers]]/$BP$4","v":0.31886477462437396},{"$f":"SegmentExceptTable[[#This Row],[kW Boundary]]+(0.05*SegmentExceptTable[[#This Row],[kW Boundary]])","v":0.33480801335559268},{"$f":"$BP$6*SegmentExceptTable[[#This Row],[kW Boundary]]+$BP$7","v":0.44480724772234853},{"$f":"$BP$8*SegmentExceptTable[[#This Row],[kW Boundary]]+$BP$9","v":-2.5838830293702125E-2},{"$f":"SegmentExceptTable[[#This Row],[Boundary S/M]]+(0.05*SegmentExceptTable[[#This Row],[Boundary S/M]])","v":-2.713077180838723E-2},{"$f":"IF(AND(AND(kwpeak_norm>SegmentExceptTable[[#This Row],[kW Boundary]],kwpeak_norm<SegmentExceptTable[[#This Row],[kW Exception]]),AND(kwhmo_norm>SegmentExceptTable[[#This Row],[Boundary S/M]],kwhmo_norm<SegmentExceptTable[[#This Row],[Exception S/M]])),1,0)","v":0},{"$f":"$BP$10*SegmentExceptTable[[#This Row],[kW Boundary]]+$BP$11","v":0.54371930513780864},{"$f":"$BP$12*SegmentExceptTable[[#This Row],[kW Boundary]]+$BP$13","v":0.41972469868061391},{"$f":"SegmentExceptTable[[#This Row],[Boundary M/L]]+(0.05*SegmentExceptTable[[#This Row],[Boundary M/L]])","v":0.44071093361464458},{"$f":"IF(AND(AND(kwpeak_norm>SegmentExceptTable[[#This Row],[kW Boundary]],kwpeak_norm<SegmentExceptTable[[#This Row],[kW Exception]]),AND(kwhmo_norm>SegmentExceptTable[[#This Row],[Boundary M/L]],kwhmo_norm<SegmentExceptTable[[#This Row],[Exception M/L]])),1,0)","v":0}]
[null,null,null,null,null,null,null,null,null,null,null,null,null,null,null,null,null,null,null,null,null,null,null,null,null,null,null,null,null,null,null,null,null,null,null,null,null,null,null,null,null,null,null,null,null,null,null,192,{"$f":"SegmentExceptTable[[#This Row],[Numbers]]/$BP$4","v":0.32053422370617696},{"$f":"SegmentExceptTable[[#This Row],[kW Boundary]]+(0.05*SegmentExceptTable[[#This Row],[kW Boundary]])","v":0.33656093489148581},{"$f":"$BP$6*SegmentExceptTable[[#This Row],[kW Boundary]]+$BP$7","v":0.44723407801771481},{"$f":"$BP$8*SegmentExceptTable[[#This Row],[kW Boundary]]+$BP$9","v":-2.6987266689132983E-2},{"$f":"SegmentExceptTable[[#This Row],[Boundary S/M]]+(0.05*SegmentExceptTable[[#This Row],[Boundary S/M]])","v":-2.8336630023589632E-2},{"$f":"IF(AND(AND(kwpeak_norm>SegmentExceptTable[[#This Row],[kW Boundary]],kwpeak_norm<SegmentExceptTable[[#This Row],[kW Exception]]),AND(kwhmo_norm>SegmentExceptTable[[#This Row],[Boundary S/M]],kwhmo_norm<SegmentExceptTable[[#This Row],[Exception S/M]])),1,0)","v":0},{"$f":"$BP$10*SegmentExceptTable[[#This Row],[kW Boundary]]+$BP$11","v":0.54724635878004724},{"$f":"$BP$12*SegmentExceptTable[[#This Row],[kW Boundary]]+$BP$13","v":0.41893450365682516},{"$f":"SegmentExceptTable[[#This Row],[Boundary M/L]]+(0.05*SegmentExceptTable[[#This Row],[Boundary M/L]])","v":0.4398812288396664},{"$f":"IF(AND(AND(kwpeak_norm>SegmentExceptTable[[#This Row],[kW Boundary]],kwpeak_norm<SegmentExceptTable[[#This Row],[kW Exception]]),AND(kwhmo_norm>SegmentExceptTable[[#This Row],[Boundary M/L]],kwhmo_norm<SegmentExceptTable[[#This Row],[Exception M/L]])),1,0)","v":0}]
[null,null,null,null,null,null,null,null,null,null,null,null,null,null,null,null,null,null,null,null,null,null,null,null,null,null,null,null,null,null,null,null,null,null,null,null,null,null,null,null,null,null,null,null,null,null,null,193,{"$f":"SegmentExceptTable[[#This Row],[Numbers]]/$BP$4","v":0.32220367278797996},{"$f":"SegmentExceptTable[[#This Row],[kW Boundary]]+(0.05*SegmentExceptTable[[#This Row],[kW Boundary]])","v":0.33831385642737893},{"$f":"$BP$6*SegmentExceptTable[[#This Row],[kW Boundary]]+$BP$7","v":0.44966090831308109},{"$f":"$BP$8*SegmentExceptTable[[#This Row],[kW Boundary]]+$BP$9","v":-2.8135703084563868E-2},{"$f":"SegmentExceptTable[[#This Row],[Boundary S/M]]+(0.05*SegmentExceptTable[[#This Row],[Boundary S/M]])","v":-2.9542488238792061E-2},{"$f":"IF(AND(AND(kwpeak_norm>SegmentExceptTable[[#This Row],[kW Boundary]],kwpeak_norm<SegmentExceptTable[[#This Row],[kW Exception]]),AND(kwhmo_norm>SegmentExceptTable[[#This Row],[Boundary S/M]],kwhmo_norm<SegmentExceptTable[[#This Row],[Exception S/M]])),1,0)","v":0},{"$f":"$BP$10*SegmentExceptTable[[#This Row],[kW Boundary]]+$BP$11","v":0.55077341242228572},{"$f":"$BP$12*SegmentExceptTable[[#This Row],[kW Boundary]]+$BP$13","v":0.41814430863303637},{"$f":"SegmentExceptTable[[#This Row],[Boundary M/L]]+(0.05*SegmentExceptTable[[#This Row],[Boundary M/L]])","v":0.43905152406468817},{"$f":"IF(AND(AND(kwpeak_norm>SegmentExceptTable[[#This Row],[kW Boundary]],kwpeak_norm<SegmentExceptTable[[#This Row],[kW Exception]]),AND(kwhmo_norm>SegmentExceptTable[[#This Row],[Boundary M/L]],kwhmo_norm<SegmentExceptTable[[#This Row],[Exception M/L]])),1,0)","v":0}]
[null,null,null,null,null,null,null,null,null,null,null,null,null,null,null,null,null,null,null,null,null,null,null,null,null,null,null,null,null,null,null,null,null,null,null,null,null,null,null,null,null,null,null,null,null,null,null,194,{"$f":"SegmentExceptTable[[#This Row],[Numbers]]/$BP$4","v":0.32387312186978295},{"$f":"SegmentExceptTable[[#This Row],[kW Boundary]]+(0.05*SegmentExceptTable[[#This Row],[kW Boundary]])","v":0.34006677796327212},{"$f":"$BP$6*SegmentExceptTable[[#This Row],[kW Boundary]]+$BP$7","v":0.45208773860844736},{"$f":"$BP$8*SegmentExceptTable[[#This Row],[kW Boundary]]+$BP$9","v":-2.9284139479994725E-2},{"$f":"SegmentExceptTable[[#This Row],[Boundary S/M]]+(0.05*SegmentExceptTable[[#This Row],[Boundary S/M]])","v":-3.0748346453994463E-2},{"$f":"IF(AND(AND(kwpeak_norm>SegmentExceptTable[[#This Row],[kW Boundary]],kwpeak_norm<SegmentExceptTable[[#This Row],[kW Exception]]),AND(kwhmo_norm>SegmentExceptTable[[#This Row],[Boundary S/M]],kwhmo_norm<SegmentExceptTable[[#This Row],[Exception S/M]])),1,0)","v":0},{"$f":"$BP$10*SegmentExceptTable[[#This Row],[kW Boundary]]+$BP$11","v":0.55430046606452421},{"$f":"$BP$12*SegmentExceptTable[[#This Row],[kW Boundary]]+$BP$13","v":0.41735411360924762},{"$f":"SegmentExceptTable[[#This Row],[Boundary M/L]]+(0.05*SegmentExceptTable[[#This Row],[Boundary M/L]])","v":0.43822181928970999},{"$f":"IF(AND(AND(kwpeak_norm>SegmentExceptTable[[#This Row],[kW Boundary]],kwpeak_norm<SegmentExceptTable[[#This Row],[kW Exception]]),AND(kwhmo_norm>SegmentExceptTable[[#This Row],[Boundary M/L]],kwhmo_norm<SegmentExceptTable[[#This Row],[Exception M/L]])),1,0)","v":0}]
[null,null,null,null,null,null,null,null,null,null,null,null,null,null,null,null,null,null,null,null,null,null,null,null,null,null,null,null,null,null,null,null,null,null,null,null,null,null,null,null,null,null,null,null,null,null,null,195,{"$f":"SegmentExceptTable[[#This Row],[Numbers]]/$BP$4","v":0.32554257095158595},{"$f":"SegmentExceptTable[[#This Row],[kW Boundary]]+(0.05*SegmentExceptTable[[#This Row],[kW Boundary]])","v":0.34181969949916524},{"$f":"$BP$6*SegmentExceptTable[[#This Row],[kW Boundary]]+$BP$7","v":0.45451456890381359},{"$f":"$BP$8*SegmentExceptTable[[#This Row],[kW Boundary]]+$BP$9","v":-3.043257587542561E-2},{"$f":"SegmentExceptTable[[#This Row],[Boundary S/M]]+(0.05*SegmentExceptTable[[#This Row],[Boundary S/M]])","v":-3.1954204669196892E-2},{"$f":"IF(AND(AND(kwpeak_norm>SegmentExceptTable[[#This Row],[kW Boundary]],kwpeak_norm<SegmentExceptTable[[#This Row],[kW Exception]]),AND(kwhmo_norm>SegmentExceptTable[[#This Row],[Boundary S/M]],kwhmo_norm<SegmentExceptTable[[#This Row],[Exception S/M]])),1,0)","v":0},{"$f":"$BP$10*SegmentExceptTable[[#This Row],[kW Boundary]]+$BP$11","v":0.5578275197067627},{"$f":"$BP$12*SegmentExceptTable[[#This Row],[kW Boundary]]+$BP$13","v":0.41656391858545888},{"$f":"SegmentExceptTable[[#This Row],[Boundary M/L]]+(0.05*SegmentExceptTable[[#This Row],[Boundary M/L]])","v":0.43739211451473181},{"$f":"IF(AND(AND(kwpeak_norm>SegmentExceptTable[[#This Row],[kW Boundary]],kwpeak_norm<SegmentExceptTable[[#This Row],[kW Exception]]),AND(kwhmo_norm>SegmentExceptTable[[#This Row],[Boundary M/L]],kwhmo_norm<SegmentExceptTable[[#This Row],[Exception M/L]])),1,0)","v":0}]
[null,null,null,null,null,null,null,null,null,null,null,null,null,null,null,null,null,null,null,null,null,null,null,null,null,null,null,null,null,null,null,null,null,null,null,null,null,null,null,null,null,null,null,null,null,null,null,196,{"$f":"SegmentExceptTable[[#This Row],[Numbers]]/$BP$4","v":0.32721202003338901},{"$f":"SegmentExceptTable[[#This Row],[kW Boundary]]+(0.05*SegmentExceptTable[[#This Row],[kW Boundary]])","v":0.34357262103505848},{"$f":"$BP$6*SegmentExceptTable[[#This Row],[kW Boundary]]+$BP$7","v":0.45694139919917998},{"$f":"$BP$8*SegmentExceptTable[[#This Row],[kW Boundary]]+$BP$9","v":-3.1581012270856523E-2},{"$f":"SegmentExceptTable[[#This Row],[Boundary S/M]]+(0.05*SegmentExceptTable[[#This Row],[Boundary S/M]])","v":-3.3160062884399349E-2},{"$f":"IF(AND(AND(kwpeak_norm>SegmentExceptTable[[#This Row],[kW Boundary]],kwpeak_norm<SegmentExceptTable[[#This Row],[kW Exception]]),AND(kwhmo_norm>SegmentExceptTable[[#This Row],[Boundary S/M]],kwhmo_norm<SegmentExceptTable[[#This Row],[Exception S/M]])),1,0)","v":0},{"$f":"$BP$10*SegmentExceptTable[[#This Row],[kW Boundary]]+$BP$11","v":0.56135457334900141},{"$f":"$BP$12*SegmentExceptTable[[#This Row],[kW Boundary]]+$BP$13","v":0.41577372356167008},{"$f":"SegmentExceptTable[[#This Row],[Boundary M/L]]+(0.05*SegmentExceptTable[[#This Row],[Boundary M/L]])","v":0.43656240973975358},{"$f":"IF(AND(AND(kwpeak_norm>SegmentExceptTable[[#This Row],[kW Boundary]],kwpeak_norm<SegmentExceptTable[[#This Row],[kW Exception]]),AND(kwhmo_norm>SegmentExceptTable[[#This Row],[Boundary M/L]],kwhmo_norm<SegmentExceptTable[[#This Row],[Exception M/L]])),1,0)","v":0}]
[null,null,null,null,null,null,null,null,null,null,null,null,null,null,null,null,null,null,null,null,null,null,null,null,null,null,null,null,null,null,null,null,null,null,null,null,null,null,null,null,null,null,null,null,null,null,null,197,{"$f":"SegmentExceptTable[[#This Row],[Numbers]]/$BP$4","v":0.328881469115192},{"$f":"SegmentExceptTable[[#This Row],[kW Boundary]]+(0.05*SegmentExceptTable[[#This Row],[kW Boundary]])","v":0.3453255425709516},{"$f":"$BP$6*SegmentExceptTable[[#This Row],[kW Boundary]]+$BP$7","v":0.4593682294945462},{"$f":"$BP$8*SegmentExceptTable[[#This Row],[kW Boundary]]+$BP$9","v":-3.2729448666287381E-2},{"$f":"SegmentExceptTable[[#This Row],[Boundary S/M]]+(0.05*SegmentExceptTable[[#This Row],[Boundary S/M]])","v":-3.4365921099601751E-2},{"$f":"IF(AND(AND(kwpeak_norm>SegmentExceptTable[[#This Row],[kW Boundary]],kwpeak_norm<SegmentExceptTable[[#This Row],[kW Exception]]),AND(kwhmo_norm>SegmentExceptTable[[#This Row],[Boundary S/M]],kwhmo_norm<SegmentExceptTable[[#This Row],[Exception S/M]])),1,0)","v":0},{"$f":"$BP$10*SegmentExceptTable[[#This Row],[kW Boundary]]+$BP$11","v":0.56488162699123989},{"$f":"$BP$12*SegmentExceptTable[[#This Row],[kW Boundary]]+$BP$13","v":0.41498352853788134},{"$f":"SegmentExceptTable[[#This Row],[Boundary M/L]]+(0.05*SegmentExceptTable[[#This Row],[Boundary M/L]])","v":0.4357327049647754},{"$f":"IF(AND(AND(kwpeak_norm>SegmentExceptTable[[#This Row],[kW Boundary]],kwpeak_norm<SegmentExceptTable[[#This Row],[kW Exception]]),AND(kwhmo_norm>SegmentExceptTable[[#This Row],[Boundary M/L]],kwhmo_norm<SegmentExceptTable[[#This Row],[Exception M/L]])),1,0)","v":0}]
[null,null,null,null,null,null,null,null,null,null,null,null,null,null,null,null,null,null,null,null,null,null,null,null,null,null,null,null,null,null,null,null,null,null,null,null,null,null,null,null,null,null,null,null,null,null,null,198,{"$f":"SegmentExceptTable[[#This Row],[Numbers]]/$BP$4","v":0.330550918196995},{"$f":"SegmentExceptTable[[#This Row],[kW Boundary]]+(0.05*SegmentExceptTable[[#This Row],[kW Boundary]])","v":0.34707846410684473},{"$f":"$BP$6*SegmentExceptTable[[#This Row],[kW Boundary]]+$BP$7","v":0.46179505978991248},{"$f":"$BP$8*SegmentExceptTable[[#This Row],[kW Boundary]]+$BP$9","v":-3.3877885061718266E-2},{"$f":"SegmentExceptTable[[#This Row],[Boundary S/M]]+(0.05*SegmentExceptTable[[#This Row],[Boundary S/M]])","v":-3.5571779314804181E-2},{"$f":"IF(AND(AND(kwpeak_norm>SegmentExceptTable[[#This Row],[kW Boundary]],kwpeak_norm<SegmentExceptTable[[#This Row],[kW Exception]]),AND(kwhmo_norm>SegmentExceptTable[[#This Row],[Boundary S/M]],kwhmo_norm<SegmentExceptTable[[#This Row],[Exception S/M]])),1,0)","v":0},{"$f":"$BP$10*SegmentExceptTable[[#This Row],[kW Boundary]]+$BP$11","v":0.56840868063347838},{"$f":"$BP$12*SegmentExceptTable[[#This Row],[kW Boundary]]+$BP$13","v":0.4141933335140926},{"$f":"SegmentExceptTable[[#This Row],[Boundary M/L]]+(0.05*SegmentExceptTable[[#This Row],[Boundary M/L]])","v":0.43490300018979722},{"$f":"IF(AND(AND(kwpeak_norm>SegmentExceptTable[[#This Row],[kW Boundary]],kwpeak_norm<SegmentExceptTable[[#This Row],[kW Exception]]),AND(kwhmo_norm>SegmentExceptTable[[#This Row],[Boundary M/L]],kwhmo_norm<SegmentExceptTable[[#This Row],[Exception M/L]])),1,0)","v":0}]
[null,null,null,null,null,null,null,null,null,null,null,null,null,null,null,null,null,null,null,null,null,null,null,null,null,null,null,null,null,null,null,null,null,null,null,null,null,null,null,null,null,null,null,null,null,null,null,199,{"$f":"SegmentExceptTable[[#This Row],[Numbers]]/$BP$4","v":0.332220367278798},{"$f":"SegmentExceptTable[[#This Row],[kW Boundary]]+(0.05*SegmentExceptTable[[#This Row],[kW Boundary]])","v":0.34883138564273791},{"$f":"$BP$6*SegmentExceptTable[[#This Row],[kW Boundary]]+$BP$7","v":0.46422189008527875},{"$f":"$BP$8*SegmentExceptTable[[#This Row],[kW Boundary]]+$BP$9","v":-3.5026321457149123E-2},{"$f":"SegmentExceptTable[[#This Row],[Boundary S/M]]+(0.05*SegmentExceptTable[[#This Row],[Boundary S/M]])","v":-3.6777637530006582E-2},{"$f":"IF(AND(AND(kwpeak_norm>SegmentExceptTable[[#This Row],[kW Boundary]],kwpeak_norm<SegmentExceptTable[[#This Row],[kW Exception]]),AND(kwhmo_norm>SegmentExceptTable[[#This Row],[Boundary S/M]],kwhmo_norm<SegmentExceptTable[[#This Row],[Exception S/M]])),1,0)","v":0},{"$f":"$BP$10*SegmentExceptTable[[#This Row],[kW Boundary]]+$BP$11","v":0.57193573427571687},{"$f":"$BP$12*SegmentExceptTable[[#This Row],[kW Boundary]]+$BP$13","v":0.41340313849030386},{"$f":"SegmentExceptTable[[#This Row],[Boundary M/L]]+(0.05*SegmentExceptTable[[#This Row],[Boundary M/L]])","v":0.43407329541481904},{"$f":"IF(AND(AND(kwpeak_norm>SegmentExceptTable[[#This Row],[kW Boundary]],kwpeak_norm<SegmentExceptTable[[#This Row],[kW Exception]]),AND(kwhmo_norm>SegmentExceptTable[[#This Row],[Boundary M/L]],kwhmo_norm<SegmentExceptTable[[#This Row],[Exception M/L]])),1,0)","v":0}]
[null,null,null,null,null,null,null,null,null,null,null,null,null,null,null,null,null,null,null,null,null,null,null,null,null,null,null,null,null,null,null,null,null,null,null,null,null,null,null,null,null,null,null,null,null,null,null,200,{"$f":"SegmentExceptTable[[#This Row],[Numbers]]/$BP$4","v":0.333889816360601},{"$f":"SegmentExceptTable[[#This Row],[kW Boundary]]+(0.05*SegmentExceptTable[[#This Row],[kW Boundary]])","v":0.35058430717863104},{"$f":"$BP$6*SegmentExceptTable[[#This Row],[kW Boundary]]+$BP$7","v":0.46664872038064503},{"$f":"$BP$8*SegmentExceptTable[[#This Row],[kW Boundary]]+$BP$9","v":-3.6174757852580008E-2},{"$f":"SegmentExceptTable[[#This Row],[Boundary S/M]]+(0.05*SegmentExceptTable[[#This Row],[Boundary S/M]])","v":-3.7983495745209012E-2},{"$f":"IF(AND(AND(kwpeak_norm>SegmentExceptTable[[#This Row],[kW Boundary]],kwpeak_norm<SegmentExceptTable[[#This Row],[kW Exception]]),AND(kwhmo_norm>SegmentExceptTable[[#This Row],[Boundary S/M]],kwhmo_norm<SegmentExceptTable[[#This Row],[Exception S/M]])),1,0)","v":0},{"$f":"$BP$10*SegmentExceptTable[[#This Row],[kW Boundary]]+$BP$11","v":0.57546278791795547},{"$f":"$BP$12*SegmentExceptTable[[#This Row],[kW Boundary]]+$BP$13","v":0.41261294346651511},{"$f":"SegmentExceptTable[[#This Row],[Boundary M/L]]+(0.05*SegmentExceptTable[[#This Row],[Boundary M/L]])","v":0.43324359063984086},{"$f":"IF(AND(AND(kwpeak_norm>SegmentExceptTable[[#This Row],[kW Boundary]],kwpeak_norm<SegmentExceptTable[[#This Row],[kW Exception]]),AND(kwhmo_norm>SegmentExceptTable[[#This Row],[Boundary M/L]],kwhmo_norm<SegmentExceptTable[[#This Row],[Exception M/L]])),1,0)","v":0}]
[null,null,null,null,null,null,null,null,null,null,null,null,null,null,null,null,null,null,null,null,null,null,null,null,null,null,null,null,null,null,null,null,null,null,null,null,null,null,null,null,null,null,null,null,null,null,null,201,{"$f":"SegmentExceptTable[[#This Row],[Numbers]]/$BP$4","v":0.335559265442404},{"$f":"SegmentExceptTable[[#This Row],[kW Boundary]]+(0.05*SegmentExceptTable[[#This Row],[kW Boundary]])","v":0.35233722871452422},{"$f":"$BP$6*SegmentExceptTable[[#This Row],[kW Boundary]]+$BP$7","v":0.46907555067601131},{"$f":"$BP$8*SegmentExceptTable[[#This Row],[kW Boundary]]+$BP$9","v":-3.7323194248010866E-2},{"$f":"SegmentExceptTable[[#This Row],[Boundary S/M]]+(0.05*SegmentExceptTable[[#This Row],[Boundary S/M]])","v":-3.9189353960411406E-2},{"$f":"IF(AND(AND(kwpeak_norm>SegmentExceptTable[[#This Row],[kW Boundary]],kwpeak_norm<SegmentExceptTable[[#This Row],[kW Exception]]),AND(kwhmo_norm>SegmentExceptTable[[#This Row],[Boundary S/M]],kwhmo_norm<SegmentExceptTable[[#This Row],[Exception S/M]])),1,0)","v":0},{"$f":"$BP$10*SegmentExceptTable[[#This Row],[kW Boundary]]+$BP$11","v":0.57898984156019395},{"$f":"$BP$12*SegmentExceptTable[[#This Row],[kW Boundary]]+$BP$13","v":0.41182274844272632},{"$f":"SegmentExceptTable[[#This Row],[Boundary M/L]]+(0.05*SegmentExceptTable[[#This Row],[Boundary M/L]])","v":0.43241388586486262},{"$f":"IF(AND(AND(kwpeak_norm>SegmentExceptTable[[#This Row],[kW Boundary]],kwpeak_norm<SegmentExceptTable[[#This Row],[kW Exception]]),AND(kwhmo_norm>SegmentExceptTable[[#This Row],[Boundary M/L]],kwhmo_norm<SegmentExceptTable[[#This Row],[Exception M/L]])),1,0)","v":0}]
[null,null,null,null,null,null,null,null,null,null,null,null,null,null,null,null,null,null,null,null,null,null,null,null,null,null,null,null,null,null,null,null,null,null,null,null,null,null,null,null,null,null,null,null,null,null,null,202,{"$f":"SegmentExceptTable[[#This Row],[Numbers]]/$BP$4","v":0.337228714524207},{"$f":"SegmentExceptTable[[#This Row],[kW Boundary]]+(0.05*SegmentExceptTable[[#This Row],[kW Boundary]])","v":0.35409015025041735},{"$f":"$BP$6*SegmentExceptTable[[#This Row],[kW Boundary]]+$BP$7","v":0.47150238097137759},{"$f":"$BP$8*SegmentExceptTable[[#This Row],[kW Boundary]]+$BP$9","v":-3.8471630643441751E-2},{"$f":"SegmentExceptTable[[#This Row],[Boundary S/M]]+(0.05*SegmentExceptTable[[#This Row],[Boundary S/M]])","v":-4.0395212175613836E-2},{"$f":"IF(AND(AND(kwpeak_norm>SegmentExceptTable[[#This Row],[kW Boundary]],kwpeak_norm<SegmentExceptTable[[#This Row],[kW Exception]]),AND(kwhmo_norm>SegmentExceptTable[[#This Row],[Boundary S/M]],kwhmo_norm<SegmentExceptTable[[#This Row],[Exception S/M]])),1,0)","v":0},{"$f":"$BP$10*SegmentExceptTable[[#This Row],[kW Boundary]]+$BP$11","v":0.58251689520243244},{"$f":"$BP$12*SegmentExceptTable[[#This Row],[kW Boundary]]+$BP$13","v":0.41103255341893757},{"$f":"SegmentExceptTable[[#This Row],[Boundary M/L]]+(0.05*SegmentExceptTable[[#This Row],[Boundary M/L]])","v":0.43158418108988444},{"$f":"IF(AND(AND(kwpeak_norm>SegmentExceptTable[[#This Row],[kW Boundary]],kwpeak_norm<SegmentExceptTable[[#This Row],[kW Exception]]),AND(kwhmo_norm>SegmentExceptTable[[#This Row],[Boundary M/L]],kwhmo_norm<SegmentExceptTable[[#This Row],[Exception M/L]])),1,0)","v":0}]
[null,null,null,null,null,null,null,null,null,null,null,null,null,null,null,null,null,null,null,null,null,null,null,null,null,null,null,null,null,null,null,null,null,null,null,null,null,null,null,null,null,null,null,null,null,null,null,203,{"$f":"SegmentExceptTable[[#This Row],[Numbers]]/$BP$4","v":0.33889816360600999},{"$f":"SegmentExceptTable[[#This Row],[kW Boundary]]+(0.05*SegmentExceptTable[[#This Row],[kW Boundary]])","v":0.35584307178631047},{"$f":"$BP$6*SegmentExceptTable[[#This Row],[kW Boundary]]+$BP$7","v":0.47392921126674381},{"$f":"$BP$8*SegmentExceptTable[[#This Row],[kW Boundary]]+$BP$9","v":-3.9620067038872608E-2},{"$f":"SegmentExceptTable[[#This Row],[Boundary S/M]]+(0.05*SegmentExceptTable[[#This Row],[Boundary S/M]])","v":-4.1601070390816237E-2},{"$f":"IF(AND(AND(kwpeak_norm>SegmentExceptTable[[#This Row],[kW Boundary]],kwpeak_norm<SegmentExceptTable[[#This Row],[kW Exception]]),AND(kwhmo_norm>SegmentExceptTable[[#This Row],[Boundary S/M]],kwhmo_norm<SegmentExceptTable[[#This Row],[Exception S/M]])),1,0)","v":0},{"$f":"$BP$10*SegmentExceptTable[[#This Row],[kW Boundary]]+$BP$11","v":0.58604394884467104},{"$f":"$BP$12*SegmentExceptTable[[#This Row],[kW Boundary]]+$BP$13","v":0.41024235839514878},{"$f":"SegmentExceptTable[[#This Row],[Boundary M/L]]+(0.05*SegmentExceptTable[[#This Row],[Boundary M/L]])","v":0.43075447631490621},{"$f":"IF(AND(AND(kwpeak_norm>SegmentExceptTable[[#This Row],[kW Boundary]],kwpeak_norm<SegmentExceptTable[[#This Row],[kW Exception]]),AND(kwhmo_norm>SegmentExceptTable[[#This Row],[Boundary M/L]],kwhmo_norm<SegmentExceptTable[[#This Row],[Exception M/L]])),1,0)","v":0}]
[null,null,null,null,null,null,null,null,null,null,null,null,null,null,null,null,null,null,null,null,null,null,null,null,null,null,null,null,null,null,null,null,null,null,null,null,null,null,null,null,null,null,null,null,null,null,null,204,{"$f":"SegmentExceptTable[[#This Row],[Numbers]]/$BP$4","v":0.34056761268781305},{"$f":"SegmentExceptTable[[#This Row],[kW Boundary]]+(0.05*SegmentExceptTable[[#This Row],[kW Boundary]])","v":0.35759599332220371},{"$f":"$BP$6*SegmentExceptTable[[#This Row],[kW Boundary]]+$BP$7","v":0.4763560415621102},{"$f":"$BP$8*SegmentExceptTable[[#This Row],[kW Boundary]]+$BP$9","v":-4.0768503434303521E-2},{"$f":"SegmentExceptTable[[#This Row],[Boundary S/M]]+(0.05*SegmentExceptTable[[#This Row],[Boundary S/M]])","v":-4.2806928606018695E-2},{"$f":"IF(AND(AND(kwpeak_norm>SegmentExceptTable[[#This Row],[kW Boundary]],kwpeak_norm<SegmentExceptTable[[#This Row],[kW Exception]]),AND(kwhmo_norm>SegmentExceptTable[[#This Row],[Boundary S/M]],kwhmo_norm<SegmentExceptTable[[#This Row],[Exception S/M]])),1,0)","v":0},{"$f":"$BP$10*SegmentExceptTable[[#This Row],[kW Boundary]]+$BP$11","v":0.58957100248690963},{"$f":"$BP$12*SegmentExceptTable[[#This Row],[kW Boundary]]+$BP$13","v":0.40945216337136003},{"$f":"SegmentExceptTable[[#This Row],[Boundary M/L]]+(0.05*SegmentExceptTable[[#This Row],[Boundary M/L]])","v":0.42992477153992803},{"$f":"IF(AND(AND(kwpeak_norm>SegmentExceptTable[[#This Row],[kW Boundary]],kwpeak_norm<SegmentExceptTable[[#This Row],[kW Exception]]),AND(kwhmo_norm>SegmentExceptTable[[#This Row],[Boundary M/L]],kwhmo_norm<SegmentExceptTable[[#This Row],[Exception M/L]])),1,0)","v":0}]
[null,null,null,null,null,null,null,null,null,null,null,null,null,null,null,null,null,null,null,null,null,null,null,null,null,null,null,null,null,null,null,null,null,null,null,null,null,null,null,null,null,null,null,null,null,null,null,205,{"$f":"SegmentExceptTable[[#This Row],[Numbers]]/$BP$4","v":0.34223706176961605},{"$f":"SegmentExceptTable[[#This Row],[kW Boundary]]+(0.05*SegmentExceptTable[[#This Row],[kW Boundary]])","v":0.35934891485809684},{"$f":"$BP$6*SegmentExceptTable[[#This Row],[kW Boundary]]+$BP$7","v":0.47878287185747648},{"$f":"$BP$8*SegmentExceptTable[[#This Row],[kW Boundary]]+$BP$9","v":-4.1916939829734406E-2},{"$f":"SegmentExceptTable[[#This Row],[Boundary S/M]]+(0.05*SegmentExceptTable[[#This Row],[Boundary S/M]])","v":-4.4012786821221124E-2},{"$f":"IF(AND(AND(kwpeak_norm>SegmentExceptTable[[#This Row],[kW Boundary]],kwpeak_norm<SegmentExceptTable[[#This Row],[kW Exception]]),AND(kwhmo_norm>SegmentExceptTable[[#This Row],[Boundary S/M]],kwhmo_norm<SegmentExceptTable[[#This Row],[Exception S/M]])),1,0)","v":0},{"$f":"$BP$10*SegmentExceptTable[[#This Row],[kW Boundary]]+$BP$11","v":0.59309805612914812},{"$f":"$BP$12*SegmentExceptTable[[#This Row],[kW Boundary]]+$BP$13","v":0.40866196834757129},{"$f":"SegmentExceptTable[[#This Row],[Boundary M/L]]+(0.05*SegmentExceptTable[[#This Row],[Boundary M/L]])","v":0.42909506676494985},{"$f":"IF(AND(AND(kwpeak_norm>SegmentExceptTable[[#This Row],[kW Boundary]],kwpeak_norm<SegmentExceptTable[[#This Row],[kW Exception]]),AND(kwhmo_norm>SegmentExceptTable[[#This Row],[Boundary M/L]],kwhmo_norm<SegmentExceptTable[[#This Row],[Exception M/L]])),1,0)","v":0}]
[null,null,null,null,null,null,null,null,null,null,null,null,null,null,null,null,null,null,null,null,null,null,null,null,null,null,null,null,null,null,null,null,null,null,null,null,null,null,null,null,null,null,null,null,null,null,null,206,{"$f":"SegmentExceptTable[[#This Row],[Numbers]]/$BP$4","v":0.34390651085141904},{"$f":"SegmentExceptTable[[#This Row],[kW Boundary]]+(0.05*SegmentExceptTable[[#This Row],[kW Boundary]])","v":0.36110183639399002},{"$f":"$BP$6*SegmentExceptTable[[#This Row],[kW Boundary]]+$BP$7","v":0.4812097021528427},{"$f":"$BP$8*SegmentExceptTable[[#This Row],[kW Boundary]]+$BP$9","v":-4.3065376225165264E-2},{"$f":"SegmentExceptTable[[#This Row],[Boundary S/M]]+(0.05*SegmentExceptTable[[#This Row],[Boundary S/M]])","v":-4.5218645036423526E-2},{"$f":"IF(AND(AND(kwpeak_norm>SegmentExceptTable[[#This Row],[kW Boundary]],kwpeak_norm<SegmentExceptTable[[#This Row],[kW Exception]]),AND(kwhmo_norm>SegmentExceptTable[[#This Row],[Boundary S/M]],kwhmo_norm<SegmentExceptTable[[#This Row],[Exception S/M]])),1,0)","v":0},{"$f":"$BP$10*SegmentExceptTable[[#This Row],[kW Boundary]]+$BP$11","v":0.59662510977138661},{"$f":"$BP$12*SegmentExceptTable[[#This Row],[kW Boundary]]+$BP$13","v":0.40787177332378255},{"$f":"SegmentExceptTable[[#This Row],[Boundary M/L]]+(0.05*SegmentExceptTable[[#This Row],[Boundary M/L]])","v":0.42826536198997167},{"$f":"IF(AND(AND(kwpeak_norm>SegmentExceptTable[[#This Row],[kW Boundary]],kwpeak_norm<SegmentExceptTable[[#This Row],[kW Exception]]),AND(kwhmo_norm>SegmentExceptTable[[#This Row],[Boundary M/L]],kwhmo_norm<SegmentExceptTable[[#This Row],[Exception M/L]])),1,0)","v":0}]
[null,null,null,null,null,null,null,null,null,null,null,null,null,null,null,null,null,null,null,null,null,null,null,null,null,null,null,null,null,null,null,null,null,null,null,null,null,null,null,null,null,null,null,null,null,null,null,207,{"$f":"SegmentExceptTable[[#This Row],[Numbers]]/$BP$4","v":0.34557595993322204},{"$f":"SegmentExceptTable[[#This Row],[kW Boundary]]+(0.05*SegmentExceptTable[[#This Row],[kW Boundary]])","v":0.36285475792988314},{"$f":"$BP$6*SegmentExceptTable[[#This Row],[kW Boundary]]+$BP$7","v":0.48363653244820898},{"$f":"$BP$8*SegmentExceptTable[[#This Row],[kW Boundary]]+$BP$9","v":-4.4213812620596149E-2},{"$f":"SegmentExceptTable[[#This Row],[Boundary S/M]]+(0.05*SegmentExceptTable[[#This Row],[Boundary S/M]])","v":-4.6424503251625955E-2},{"$f":"IF(AND(AND(kwpeak_norm>SegmentExceptTable[[#This Row],[kW Boundary]],kwpeak_norm<SegmentExceptTable[[#This Row],[kW Exception]]),AND(kwhmo_norm>SegmentExceptTable[[#This Row],[Boundary S/M]],kwhmo_norm<SegmentExceptTable[[#This Row],[Exception S/M]])),1,0)","v":0},{"$f":"$BP$10*SegmentExceptTable[[#This Row],[kW Boundary]]+$BP$11","v":0.60015216341362521},{"$f":"$BP$12*SegmentExceptTable[[#This Row],[kW Boundary]]+$BP$13","v":0.40708157829999381},{"$f":"SegmentExceptTable[[#This Row],[Boundary M/L]]+(0.05*SegmentExceptTable[[#This Row],[Boundary M/L]])","v":0.42743565721499349},{"$f":"IF(AND(AND(kwpeak_norm>SegmentExceptTable[[#This Row],[kW Boundary]],kwpeak_norm<SegmentExceptTable[[#This Row],[kW Exception]]),AND(kwhmo_norm>SegmentExceptTable[[#This Row],[Boundary M/L]],kwhmo_norm<SegmentExceptTable[[#This Row],[Exception M/L]])),1,0)","v":0}]
[null,null,null,null,null,null,null,null,null,null,null,null,null,null,null,null,null,null,null,null,null,null,null,null,null,null,null,null,null,null,null,null,null,null,null,null,null,null,null,null,null,null,null,null,null,null,null,208,{"$f":"SegmentExceptTable[[#This Row],[Numbers]]/$BP$4","v":0.34724540901502504},{"$f":"SegmentExceptTable[[#This Row],[kW Boundary]]+(0.05*SegmentExceptTable[[#This Row],[kW Boundary]])","v":0.36460767946577627},{"$f":"$BP$6*SegmentExceptTable[[#This Row],[kW Boundary]]+$BP$7","v":0.48606336274357526},{"$f":"$BP$8*SegmentExceptTable[[#This Row],[kW Boundary]]+$BP$9","v":-4.5362249016027006E-2},{"$f":"SegmentExceptTable[[#This Row],[Boundary S/M]]+(0.05*SegmentExceptTable[[#This Row],[Boundary S/M]])","v":-4.7630361466828357E-2},{"$f":"IF(AND(AND(kwpeak_norm>SegmentExceptTable[[#This Row],[kW Boundary]],kwpeak_norm<SegmentExceptTable[[#This Row],[kW Exception]]),AND(kwhmo_norm>SegmentExceptTable[[#This Row],[Boundary S/M]],kwhmo_norm<SegmentExceptTable[[#This Row],[Exception S/M]])),1,0)","v":0},{"$f":"$BP$10*SegmentExceptTable[[#This Row],[kW Boundary]]+$BP$11","v":0.60367921705586369},{"$f":"$BP$12*SegmentExceptTable[[#This Row],[kW Boundary]]+$BP$13","v":0.40629138327620501},{"$f":"SegmentExceptTable[[#This Row],[Boundary M/L]]+(0.05*SegmentExceptTable[[#This Row],[Boundary M/L]])","v":0.42660595244001526},{"$f":"IF(AND(AND(kwpeak_norm>SegmentExceptTable[[#This Row],[kW Boundary]],kwpeak_norm<SegmentExceptTable[[#This Row],[kW Exception]]),AND(kwhmo_norm>SegmentExceptTable[[#This Row],[Boundary M/L]],kwhmo_norm<SegmentExceptTable[[#This Row],[Exception M/L]])),1,0)","v":0}]
[null,null,null,null,null,null,null,null,null,null,null,null,null,null,null,null,null,null,null,null,null,null,null,null,null,null,null,null,null,null,null,null,null,null,null,null,null,null,null,null,null,null,null,null,null,null,null,209,{"$f":"SegmentExceptTable[[#This Row],[Numbers]]/$BP$4","v":0.34891485809682804},{"$f":"SegmentExceptTable[[#This Row],[kW Boundary]]+(0.05*SegmentExceptTable[[#This Row],[kW Boundary]])","v":0.36636060100166945},{"$f":"$BP$6*SegmentExceptTable[[#This Row],[kW Boundary]]+$BP$7","v":0.48849019303894153},{"$f":"$BP$8*SegmentExceptTable[[#This Row],[kW Boundary]]+$BP$9","v":-4.6510685411457892E-2},{"$f":"SegmentExceptTable[[#This Row],[Boundary S/M]]+(0.05*SegmentExceptTable[[#This Row],[Boundary S/M]])","v":-4.8836219682030786E-2},{"$f":"IF(AND(AND(kwpeak_norm>SegmentExceptTable[[#This Row],[kW Boundary]],kwpeak_norm<SegmentExceptTable[[#This Row],[kW Exception]]),AND(kwhmo_norm>SegmentExceptTable[[#This Row],[Boundary S/M]],kwhmo_norm<SegmentExceptTable[[#This Row],[Exception S/M]])),1,0)","v":0},{"$f":"$BP$10*SegmentExceptTable[[#This Row],[kW Boundary]]+$BP$11","v":0.60720627069810218},{"$f":"$BP$12*SegmentExceptTable[[#This Row],[kW Boundary]]+$BP$13","v":0.40550118825241627},{"$f":"SegmentExceptTable[[#This Row],[Boundary M/L]]+(0.05*SegmentExceptTable[[#This Row],[Boundary M/L]])","v":0.42577624766503708},{"$f":"IF(AND(AND(kwpeak_norm>SegmentExceptTable[[#This Row],[kW Boundary]],kwpeak_norm<SegmentExceptTable[[#This Row],[kW Exception]]),AND(kwhmo_norm>SegmentExceptTable[[#This Row],[Boundary M/L]],kwhmo_norm<SegmentExceptTable[[#This Row],[Exception M/L]])),1,0)","v":0}]
[null,null,null,null,null,null,null,null,null,null,null,null,null,null,null,null,null,null,null,null,null,null,null,null,null,null,null,null,null,null,null,null,null,null,null,null,null,null,null,null,null,null,null,null,null,null,null,210,{"$f":"SegmentExceptTable[[#This Row],[Numbers]]/$BP$4","v":0.35058430717863104},{"$f":"SegmentExceptTable[[#This Row],[kW Boundary]]+(0.05*SegmentExceptTable[[#This Row],[kW Boundary]])","v":0.36811352253756258},{"$f":"$BP$6*SegmentExceptTable[[#This Row],[kW Boundary]]+$BP$7","v":0.49091702333430781},{"$f":"$BP$8*SegmentExceptTable[[#This Row],[kW Boundary]]+$BP$9","v":-4.7659121806888749E-2},{"$f":"SegmentExceptTable[[#This Row],[Boundary S/M]]+(0.05*SegmentExceptTable[[#This Row],[Boundary S/M]])","v":-5.0042077897233188E-2},{"$f":"IF(AND(AND(kwpeak_norm>SegmentExceptTable[[#This Row],[kW Boundary]],kwpeak_norm<SegmentExceptTable[[#This Row],[kW Exception]]),AND(kwhmo_norm>SegmentExceptTable[[#This Row],[Boundary S/M]],kwhmo_norm<SegmentExceptTable[[#This Row],[Exception S/M]])),1,0)","v":0},{"$f":"$BP$10*SegmentExceptTable[[#This Row],[kW Boundary]]+$BP$11","v":0.61073332434034067},{"$f":"$BP$12*SegmentExceptTable[[#This Row],[kW Boundary]]+$BP$13","v":0.40471099322862747},{"$f":"SegmentExceptTable[[#This Row],[Boundary M/L]]+(0.05*SegmentExceptTable[[#This Row],[Boundary M/L]])","v":0.42494654289005884},{"$f":"IF(AND(AND(kwpeak_norm>SegmentExceptTable[[#This Row],[kW Boundary]],kwpeak_norm<SegmentExceptTable[[#This Row],[kW Exception]]),AND(kwhmo_norm>SegmentExceptTable[[#This Row],[Boundary M/L]],kwhmo_norm<SegmentExceptTable[[#This Row],[Exception M/L]])),1,0)","v":0}]
[null,null,null,null,null,null,null,null,null,null,null,null,null,null,null,null,null,null,null,null,null,null,null,null,null,null,null,null,null,null,null,null,null,null,null,null,null,null,null,null,null,null,null,null,null,null,null,211,{"$f":"SegmentExceptTable[[#This Row],[Numbers]]/$BP$4","v":0.35225375626043404},{"$f":"SegmentExceptTable[[#This Row],[kW Boundary]]+(0.05*SegmentExceptTable[[#This Row],[kW Boundary]])","v":0.36986644407345576},{"$f":"$BP$6*SegmentExceptTable[[#This Row],[kW Boundary]]+$BP$7","v":0.49334385362967409},{"$f":"$BP$8*SegmentExceptTable[[#This Row],[kW Boundary]]+$BP$9","v":-4.8807558202319634E-2},{"$f":"SegmentExceptTable[[#This Row],[Boundary S/M]]+(0.05*SegmentExceptTable[[#This Row],[Boundary S/M]])","v":-5.1247936112435617E-2},{"$f":"IF(AND(AND(kwpeak_norm>SegmentExceptTable[[#This Row],[kW Boundary]],kwpeak_norm<SegmentExceptTable[[#This Row],[kW Exception]]),AND(kwhmo_norm>SegmentExceptTable[[#This Row],[Boundary S/M]],kwhmo_norm<SegmentExceptTable[[#This Row],[Exception S/M]])),1,0)","v":0},{"$f":"$BP$10*SegmentExceptTable[[#This Row],[kW Boundary]]+$BP$11","v":0.61426037798257926},{"$f":"$BP$12*SegmentExceptTable[[#This Row],[kW Boundary]]+$BP$13","v":0.40392079820483873},{"$f":"SegmentExceptTable[[#This Row],[Boundary M/L]]+(0.05*SegmentExceptTable[[#This Row],[Boundary M/L]])","v":0.42411683811508066},{"$f":"IF(AND(AND(kwpeak_norm>SegmentExceptTable[[#This Row],[kW Boundary]],kwpeak_norm<SegmentExceptTable[[#This Row],[kW Exception]]),AND(kwhmo_norm>SegmentExceptTable[[#This Row],[Boundary M/L]],kwhmo_norm<SegmentExceptTable[[#This Row],[Exception M/L]])),1,0)","v":0}]
[null,null,null,null,null,null,null,null,null,null,null,null,null,null,null,null,null,null,null,null,null,null,null,null,null,null,null,null,null,null,null,null,null,null,null,null,null,null,null,null,null,null,null,null,null,null,null,212,{"$f":"SegmentExceptTable[[#This Row],[Numbers]]/$BP$4","v":0.35392320534223703},{"$f":"SegmentExceptTable[[#This Row],[kW Boundary]]+(0.05*SegmentExceptTable[[#This Row],[kW Boundary]])","v":0.37161936560934888},{"$f":"$BP$6*SegmentExceptTable[[#This Row],[kW Boundary]]+$BP$7","v":0.49577068392504037},{"$f":"$BP$8*SegmentExceptTable[[#This Row],[kW Boundary]]+$BP$9","v":-4.9955994597750492E-2},{"$f":"SegmentExceptTable[[#This Row],[Boundary S/M]]+(0.05*SegmentExceptTable[[#This Row],[Boundary S/M]])","v":-5.2453794327638019E-2},{"$f":"IF(AND(AND(kwpeak_norm>SegmentExceptTable[[#This Row],[kW Boundary]],kwpeak_norm<SegmentExceptTable[[#This Row],[kW Exception]]),AND(kwhmo_norm>SegmentExceptTable[[#This Row],[Boundary S/M]],kwhmo_norm<SegmentExceptTable[[#This Row],[Exception S/M]])),1,0)","v":0},{"$f":"$BP$10*SegmentExceptTable[[#This Row],[kW Boundary]]+$BP$11","v":0.61778743162481775},{"$f":"$BP$12*SegmentExceptTable[[#This Row],[kW Boundary]]+$BP$13","v":0.40313060318104998},{"$f":"SegmentExceptTable[[#This Row],[Boundary M/L]]+(0.05*SegmentExceptTable[[#This Row],[Boundary M/L]])","v":0.42328713334010248},{"$f":"IF(AND(AND(kwpeak_norm>SegmentExceptTable[[#This Row],[kW Boundary]],kwpeak_norm<SegmentExceptTable[[#This Row],[kW Exception]]),AND(kwhmo_norm>SegmentExceptTable[[#This Row],[Boundary M/L]],kwhmo_norm<SegmentExceptTable[[#This Row],[Exception M/L]])),1,0)","v":0}]
[null,null,null,null,null,null,null,null,null,null,null,null,null,null,null,null,null,null,null,null,null,null,null,null,null,null,null,null,null,null,null,null,null,null,null,null,null,null,null,null,null,null,null,null,null,null,null,213,{"$f":"SegmentExceptTable[[#This Row],[Numbers]]/$BP$4","v":0.35559265442404009},{"$f":"SegmentExceptTable[[#This Row],[kW Boundary]]+(0.05*SegmentExceptTable[[#This Row],[kW Boundary]])","v":0.37337228714524207},{"$f":"$BP$6*SegmentExceptTable[[#This Row],[kW Boundary]]+$BP$7","v":0.49819751422040665},{"$f":"$BP$8*SegmentExceptTable[[#This Row],[kW Boundary]]+$BP$9","v":-5.1104430993181404E-2},{"$f":"SegmentExceptTable[[#This Row],[Boundary S/M]]+(0.05*SegmentExceptTable[[#This Row],[Boundary S/M]])","v":-5.3659652542840476E-2},{"$f":"IF(AND(AND(kwpeak_norm>SegmentExceptTable[[#This Row],[kW Boundary]],kwpeak_norm<SegmentExceptTable[[#This Row],[kW Exception]]),AND(kwhmo_norm>SegmentExceptTable[[#This Row],[Boundary S/M]],kwhmo_norm<SegmentExceptTable[[#This Row],[Exception S/M]])),1,0)","v":0},{"$f":"$BP$10*SegmentExceptTable[[#This Row],[kW Boundary]]+$BP$11","v":0.62131448526705635},{"$f":"$BP$12*SegmentExceptTable[[#This Row],[kW Boundary]]+$BP$13","v":0.40234040815726124},{"$f":"SegmentExceptTable[[#This Row],[Boundary M/L]]+(0.05*SegmentExceptTable[[#This Row],[Boundary M/L]])","v":0.4224574285651243},{"$f":"IF(AND(AND(kwpeak_norm>SegmentExceptTable[[#This Row],[kW Boundary]],kwpeak_norm<SegmentExceptTable[[#This Row],[kW Exception]]),AND(kwhmo_norm>SegmentExceptTable[[#This Row],[Boundary M/L]],kwhmo_norm<SegmentExceptTable[[#This Row],[Exception M/L]])),1,0)","v":0}]
[null,null,null,null,null,null,null,null,null,null,null,null,null,null,null,null,null,null,null,null,null,null,null,null,null,null,null,null,null,null,null,null,null,null,null,null,null,null,null,null,null,null,null,null,null,null,null,214,{"$f":"SegmentExceptTable[[#This Row],[Numbers]]/$BP$4","v":0.35726210350584309},{"$f":"SegmentExceptTable[[#This Row],[kW Boundary]]+(0.05*SegmentExceptTable[[#This Row],[kW Boundary]])","v":0.37512520868113525},{"$f":"$BP$6*SegmentExceptTable[[#This Row],[kW Boundary]]+$BP$7","v":0.50062434451577298},{"$f":"$BP$8*SegmentExceptTable[[#This Row],[kW Boundary]]+$BP$9","v":-5.225286738861229E-2},{"$f":"SegmentExceptTable[[#This Row],[Boundary S/M]]+(0.05*SegmentExceptTable[[#This Row],[Boundary S/M]])","v":-5.4865510758042906E-2},{"$f":"IF(AND(AND(kwpeak_norm>SegmentExceptTable[[#This Row],[kW Boundary]],kwpeak_norm<SegmentExceptTable[[#This Row],[kW Exception]]),AND(kwhmo_norm>SegmentExceptTable[[#This Row],[Boundary S/M]],kwhmo_norm<SegmentExceptTable[[#This Row],[Exception S/M]])),1,0)","v":0},{"$f":"$BP$10*SegmentExceptTable[[#This Row],[kW Boundary]]+$BP$11","v":0.62484153890929484},{"$f":"$BP$12*SegmentExceptTable[[#This Row],[kW Boundary]]+$BP$13","v":0.4015502131334725},{"$f":"SegmentExceptTable[[#This Row],[Boundary M/L]]+(0.05*SegmentExceptTable[[#This Row],[Boundary M/L]])","v":0.42162772379014613},{"$f":"IF(AND(AND(kwpeak_norm>SegmentExceptTable[[#This Row],[kW Boundary]],kwpeak_norm<SegmentExceptTable[[#This Row],[kW Exception]]),AND(kwhmo_norm>SegmentExceptTable[[#This Row],[Boundary M/L]],kwhmo_norm<SegmentExceptTable[[#This Row],[Exception M/L]])),1,0)","v":0}]
[null,null,null,null,null,null,null,null,null,null,null,null,null,null,null,null,null,null,null,null,null,null,null,null,null,null,null,null,null,null,null,null,null,null,null,null,null,null,null,null,null,null,null,null,null,null,null,215,{"$f":"SegmentExceptTable[[#This Row],[Numbers]]/$BP$4","v":0.35893155258764609},{"$f":"SegmentExceptTable[[#This Row],[kW Boundary]]+(0.05*SegmentExceptTable[[#This Row],[kW Boundary]])","v":0.37687813021702837},{"$f":"$BP$6*SegmentExceptTable[[#This Row],[kW Boundary]]+$BP$7","v":0.50305117481113926},{"$f":"$BP$8*SegmentExceptTable[[#This Row],[kW Boundary]]+$BP$9","v":-5.3401303784043147E-2},{"$f":"SegmentExceptTable[[#This Row],[Boundary S/M]]+(0.05*SegmentExceptTable[[#This Row],[Boundary S/M]])","v":-5.6071368973245307E-2},{"$f":"IF(AND(AND(kwpeak_norm>SegmentExceptTable[[#This Row],[kW Boundary]],kwpeak_norm<SegmentExceptTable[[#This Row],[kW Exception]]),AND(kwhmo_norm>SegmentExceptTable[[#This Row],[Boundary S/M]],kwhmo_norm<SegmentExceptTable[[#This Row],[Exception S/M]])),1,0)","v":0},{"$f":"$BP$10*SegmentExceptTable[[#This Row],[kW Boundary]]+$BP$11","v":0.62836859255153343},{"$f":"$BP$12*SegmentExceptTable[[#This Row],[kW Boundary]]+$BP$13","v":0.4007600181096837},{"$f":"SegmentExceptTable[[#This Row],[Boundary M/L]]+(0.05*SegmentExceptTable[[#This Row],[Boundary M/L]])","v":0.42079801901516789},{"$f":"IF(AND(AND(kwpeak_norm>SegmentExceptTable[[#This Row],[kW Boundary]],kwpeak_norm<SegmentExceptTable[[#This Row],[kW Exception]]),AND(kwhmo_norm>SegmentExceptTable[[#This Row],[Boundary M/L]],kwhmo_norm<SegmentExceptTable[[#This Row],[Exception M/L]])),1,0)","v":0}]
[null,null,null,null,null,null,null,null,null,null,null,null,null,null,null,null,null,null,null,null,null,null,null,null,null,null,null,null,null,null,null,null,null,null,null,null,null,null,null,null,null,null,null,null,null,null,null,216,{"$f":"SegmentExceptTable[[#This Row],[Numbers]]/$BP$4","v":0.36060100166944908},{"$f":"SegmentExceptTable[[#This Row],[kW Boundary]]+(0.05*SegmentExceptTable[[#This Row],[kW Boundary]])","v":0.37863105175292155},{"$f":"$BP$6*SegmentExceptTable[[#This Row],[kW Boundary]]+$BP$7","v":0.50547800510650553},{"$f":"$BP$8*SegmentExceptTable[[#This Row],[kW Boundary]]+$BP$9","v":-5.4549740179474032E-2},{"$f":"SegmentExceptTable[[#This Row],[Boundary S/M]]+(0.05*SegmentExceptTable[[#This Row],[Boundary S/M]])","v":-5.7277227188447737E-2},{"$f":"IF(AND(AND(kwpeak_norm>SegmentExceptTable[[#This Row],[kW Boundary]],kwpeak_norm<SegmentExceptTable[[#This Row],[kW Exception]]),AND(kwhmo_norm>SegmentExceptTable[[#This Row],[Boundary S/M]],kwhmo_norm<SegmentExceptTable[[#This Row],[Exception S/M]])),1,0)","v":0},{"$f":"$BP$10*SegmentExceptTable[[#This Row],[kW Boundary]]+$BP$11","v":0.63189564619377192},{"$f":"$BP$12*SegmentExceptTable[[#This Row],[kW Boundary]]+$BP$13","v":0.39996982308589496},{"$f":"SegmentExceptTable[[#This Row],[Boundary M/L]]+(0.05*SegmentExceptTable[[#This Row],[Boundary M/L]])","v":0.41996831424018971},{"$f":"IF(AND(AND(kwpeak_norm>SegmentExceptTable[[#This Row],[kW Boundary]],kwpeak_norm<SegmentExceptTable[[#This Row],[kW Exception]]),AND(kwhmo_norm>SegmentExceptTable[[#This Row],[Boundary M/L]],kwhmo_norm<SegmentExceptTable[[#This Row],[Exception M/L]])),1,0)","v":0}]
[null,null,null,null,null,null,null,null,null,null,null,null,null,null,null,null,null,null,null,null,null,null,null,null,null,null,null,null,null,null,null,null,null,null,null,null,null,null,null,null,null,null,null,null,null,null,null,217,{"$f":"SegmentExceptTable[[#This Row],[Numbers]]/$BP$4","v":0.36227045075125208},{"$f":"SegmentExceptTable[[#This Row],[kW Boundary]]+(0.05*SegmentExceptTable[[#This Row],[kW Boundary]])","v":0.38038397328881468},{"$f":"$BP$6*SegmentExceptTable[[#This Row],[kW Boundary]]+$BP$7","v":0.50790483540187181},{"$f":"$BP$8*SegmentExceptTable[[#This Row],[kW Boundary]]+$BP$9","v":-5.569817657490489E-2},{"$f":"SegmentExceptTable[[#This Row],[Boundary S/M]]+(0.05*SegmentExceptTable[[#This Row],[Boundary S/M]])","v":-5.8483085403650131E-2},{"$f":"IF(AND(AND(kwpeak_norm>SegmentExceptTable[[#This Row],[kW Boundary]],kwpeak_norm<SegmentExceptTable[[#This Row],[kW Exception]]),AND(kwhmo_norm>SegmentExceptTable[[#This Row],[Boundary S/M]],kwhmo_norm<SegmentExceptTable[[#This Row],[Exception S/M]])),1,0)","v":0},{"$f":"$BP$10*SegmentExceptTable[[#This Row],[kW Boundary]]+$BP$11","v":0.63542269983601041},{"$f":"$BP$12*SegmentExceptTable[[#This Row],[kW Boundary]]+$BP$13","v":0.39917962806210622},{"$f":"SegmentExceptTable[[#This Row],[Boundary M/L]]+(0.05*SegmentExceptTable[[#This Row],[Boundary M/L]])","v":0.41913860946521153},{"$f":"IF(AND(AND(kwpeak_norm>SegmentExceptTable[[#This Row],[kW Boundary]],kwpeak_norm<SegmentExceptTable[[#This Row],[kW Exception]]),AND(kwhmo_norm>SegmentExceptTable[[#This Row],[Boundary M/L]],kwhmo_norm<SegmentExceptTable[[#This Row],[Exception M/L]])),1,0)","v":0}]
[null,null,null,null,null,null,null,null,null,null,null,null,null,null,null,null,null,null,null,null,null,null,null,null,null,null,null,null,null,null,null,null,null,null,null,null,null,null,null,null,null,null,null,null,null,null,null,218,{"$f":"SegmentExceptTable[[#This Row],[Numbers]]/$BP$4","v":0.36393989983305508},{"$f":"SegmentExceptTable[[#This Row],[kW Boundary]]+(0.05*SegmentExceptTable[[#This Row],[kW Boundary]])","v":0.38213689482470781},{"$f":"$BP$6*SegmentExceptTable[[#This Row],[kW Boundary]]+$BP$7","v":0.51033166569723809},{"$f":"$BP$8*SegmentExceptTable[[#This Row],[kW Boundary]]+$BP$9","v":-5.6846612970335775E-2},{"$f":"SegmentExceptTable[[#This Row],[Boundary S/M]]+(0.05*SegmentExceptTable[[#This Row],[Boundary S/M]])","v":-5.9688943618852561E-2},{"$f":"IF(AND(AND(kwpeak_norm>SegmentExceptTable[[#This Row],[kW Boundary]],kwpeak_norm<SegmentExceptTable[[#This Row],[kW Exception]]),AND(kwhmo_norm>SegmentExceptTable[[#This Row],[Boundary S/M]],kwhmo_norm<SegmentExceptTable[[#This Row],[Exception S/M]])),1,0)","v":0},{"$f":"$BP$10*SegmentExceptTable[[#This Row],[kW Boundary]]+$BP$11","v":0.63894975347824889},{"$f":"$BP$12*SegmentExceptTable[[#This Row],[kW Boundary]]+$BP$13","v":0.39838943303831742},{"$f":"SegmentExceptTable[[#This Row],[Boundary M/L]]+(0.05*SegmentExceptTable[[#This Row],[Boundary M/L]])","v":0.4183089046902333},{"$f":"IF(AND(AND(kwpeak_norm>SegmentExceptTable[[#This Row],[kW Boundary]],kwpeak_norm<SegmentExceptTable[[#This Row],[kW Exception]]),AND(kwhmo_norm>SegmentExceptTable[[#This Row],[Boundary M/L]],kwhmo_norm<SegmentExceptTable[[#This Row],[Exception M/L]])),1,0)","v":0}]
[null,null,null,null,null,null,null,null,null,null,null,null,null,null,null,null,null,null,null,null,null,null,null,null,null,null,null,null,null,null,null,null,null,null,null,null,null,null,null,null,null,null,null,null,null,null,null,219,{"$f":"SegmentExceptTable[[#This Row],[Numbers]]/$BP$4","v":0.36560934891485808},{"$f":"SegmentExceptTable[[#This Row],[kW Boundary]]+(0.05*SegmentExceptTable[[#This Row],[kW Boundary]])","v":0.38388981636060099},{"$f":"$BP$6*SegmentExceptTable[[#This Row],[kW Boundary]]+$BP$7","v":0.51275849599260437},{"$f":"$BP$8*SegmentExceptTable[[#This Row],[kW Boundary]]+$BP$9","v":-5.799504936576666E-2},{"$f":"SegmentExceptTable[[#This Row],[Boundary S/M]]+(0.05*SegmentExceptTable[[#This Row],[Boundary S/M]])","v":-6.089480183405499E-2},{"$f":"IF(AND(AND(kwpeak_norm>SegmentExceptTable[[#This Row],[kW Boundary]],kwpeak_norm<SegmentExceptTable[[#This Row],[kW Exception]]),AND(kwhmo_norm>SegmentExceptTable[[#This Row],[Boundary S/M]],kwhmo_norm<SegmentExceptTable[[#This Row],[Exception S/M]])),1,0)","v":0},{"$f":"$BP$10*SegmentExceptTable[[#This Row],[kW Boundary]]+$BP$11","v":0.64247680712048749},{"$f":"$BP$12*SegmentExceptTable[[#This Row],[kW Boundary]]+$BP$13","v":0.39759923801452868},{"$f":"SegmentExceptTable[[#This Row],[Boundary M/L]]+(0.05*SegmentExceptTable[[#This Row],[Boundary M/L]])","v":0.41747919991525512},{"$f":"IF(AND(AND(kwpeak_norm>SegmentExceptTable[[#This Row],[kW Boundary]],kwpeak_norm<SegmentExceptTable[[#This Row],[kW Exception]]),AND(kwhmo_norm>SegmentExceptTable[[#This Row],[Boundary M/L]],kwhmo_norm<SegmentExceptTable[[#This Row],[Exception M/L]])),1,0)","v":0}]
[null,null,null,null,null,null,null,null,null,null,null,null,null,null,null,null,null,null,null,null,null,null,null,null,null,null,null,null,null,null,null,null,null,null,null,null,null,null,null,null,null,null,null,null,null,null,null,220,{"$f":"SegmentExceptTable[[#This Row],[Numbers]]/$BP$4","v":0.36727879799666108},{"$f":"SegmentExceptTable[[#This Row],[kW Boundary]]+(0.05*SegmentExceptTable[[#This Row],[kW Boundary]])","v":0.38564273789649411},{"$f":"$BP$6*SegmentExceptTable[[#This Row],[kW Boundary]]+$BP$7","v":0.51518532628797065},{"$f":"$BP$8*SegmentExceptTable[[#This Row],[kW Boundary]]+$BP$9","v":-5.914348576119749E-2},{"$f":"SegmentExceptTable[[#This Row],[Boundary S/M]]+(0.05*SegmentExceptTable[[#This Row],[Boundary S/M]])","v":-6.2100660049257364E-2},{"$f":"IF(AND(AND(kwpeak_norm>SegmentExceptTable[[#This Row],[kW Boundary]],kwpeak_norm<SegmentExceptTable[[#This Row],[kW Exception]]),AND(kwhmo_norm>SegmentExceptTable[[#This Row],[Boundary S/M]],kwhmo_norm<SegmentExceptTable[[#This Row],[Exception S/M]])),1,0)","v":0},{"$f":"$BP$10*SegmentExceptTable[[#This Row],[kW Boundary]]+$BP$11","v":0.64600386076272598},{"$f":"$BP$12*SegmentExceptTable[[#This Row],[kW Boundary]]+$BP$13","v":0.39680904299073994},{"$f":"SegmentExceptTable[[#This Row],[Boundary M/L]]+(0.05*SegmentExceptTable[[#This Row],[Boundary M/L]])","v":0.41664949514027694},{"$f":"IF(AND(AND(kwpeak_norm>SegmentExceptTable[[#This Row],[kW Boundary]],kwpeak_norm<SegmentExceptTable[[#This Row],[kW Exception]]),AND(kwhmo_norm>SegmentExceptTable[[#This Row],[Boundary M/L]],kwhmo_norm<SegmentExceptTable[[#This Row],[Exception M/L]])),1,0)","v":0}]
[null,null,null,null,null,null,null,null,null,null,null,null,null,null,null,null,null,null,null,null,null,null,null,null,null,null,null,null,null,null,null,null,null,null,null,null,null,null,null,null,null,null,null,null,null,null,null,221,{"$f":"SegmentExceptTable[[#This Row],[Numbers]]/$BP$4","v":0.36894824707846413},{"$f":"SegmentExceptTable[[#This Row],[kW Boundary]]+(0.05*SegmentExceptTable[[#This Row],[kW Boundary]])","v":0.38739565943238735},{"$f":"$BP$6*SegmentExceptTable[[#This Row],[kW Boundary]]+$BP$7","v":0.51761215658333692},{"$f":"$BP$8*SegmentExceptTable[[#This Row],[kW Boundary]]+$BP$9","v":-6.029192215662843E-2},{"$f":"SegmentExceptTable[[#This Row],[Boundary S/M]]+(0.05*SegmentExceptTable[[#This Row],[Boundary S/M]])","v":-6.3306518264459849E-2},{"$f":"IF(AND(AND(kwpeak_norm>SegmentExceptTable[[#This Row],[kW Boundary]],kwpeak_norm<SegmentExceptTable[[#This Row],[kW Exception]]),AND(kwhmo_norm>SegmentExceptTable[[#This Row],[Boundary S/M]],kwhmo_norm<SegmentExceptTable[[#This Row],[Exception S/M]])),1,0)","v":0},{"$f":"$BP$10*SegmentExceptTable[[#This Row],[kW Boundary]]+$BP$11","v":0.64953091440496458},{"$f":"$BP$12*SegmentExceptTable[[#This Row],[kW Boundary]]+$BP$13","v":0.39601884796695119},{"$f":"SegmentExceptTable[[#This Row],[Boundary M/L]]+(0.05*SegmentExceptTable[[#This Row],[Boundary M/L]])","v":0.41581979036529876},{"$f":"IF(AND(AND(kwpeak_norm>SegmentExceptTable[[#This Row],[kW Boundary]],kwpeak_norm<SegmentExceptTable[[#This Row],[kW Exception]]),AND(kwhmo_norm>SegmentExceptTable[[#This Row],[Boundary M/L]],kwhmo_norm<SegmentExceptTable[[#This Row],[Exception M/L]])),1,0)","v":0}]
[null,null,null,null,null,null,null,null,null,null,null,null,null,null,null,null,null,null,null,null,null,null,null,null,null,null,null,null,null,null,null,null,null,null,null,null,null,null,null,null,null,null,null,null,null,null,null,222,{"$f":"SegmentExceptTable[[#This Row],[Numbers]]/$BP$4","v":0.37061769616026713},{"$f":"SegmentExceptTable[[#This Row],[kW Boundary]]+(0.05*SegmentExceptTable[[#This Row],[kW Boundary]])","v":0.38914858096828048},{"$f":"$BP$6*SegmentExceptTable[[#This Row],[kW Boundary]]+$BP$7","v":0.5200389868787032},{"$f":"$BP$8*SegmentExceptTable[[#This Row],[kW Boundary]]+$BP$9","v":-6.1440358552059315E-2},{"$f":"SegmentExceptTable[[#This Row],[Boundary S/M]]+(0.05*SegmentExceptTable[[#This Row],[Boundary S/M]])","v":-6.4512376479662278E-2},{"$f":"IF(AND(AND(kwpeak_norm>SegmentExceptTable[[#This Row],[kW Boundary]],kwpeak_norm<SegmentExceptTable[[#This Row],[kW Exception]]),AND(kwhmo_norm>SegmentExceptTable[[#This Row],[Boundary S/M]],kwhmo_norm<SegmentExceptTable[[#This Row],[Exception S/M]])),1,0)","v":0},{"$f":"$BP$10*SegmentExceptTable[[#This Row],[kW Boundary]]+$BP$11","v":0.65305796804720317},{"$f":"$BP$12*SegmentExceptTable[[#This Row],[kW Boundary]]+$BP$13","v":0.39522865294316245},{"$f":"SegmentExceptTable[[#This Row],[Boundary M/L]]+(0.05*SegmentExceptTable[[#This Row],[Boundary M/L]])","v":0.41499008559032058},{"$f":"IF(AND(AND(kwpeak_norm>SegmentExceptTable[[#This Row],[kW Boundary]],kwpeak_norm<SegmentExceptTable[[#This Row],[kW Exception]]),AND(kwhmo_norm>SegmentExceptTable[[#This Row],[Boundary M/L]],kwhmo_norm<SegmentExceptTable[[#This Row],[Exception M/L]])),1,0)","v":0}]
[null,null,null,null,null,null,null,null,null,null,null,null,null,null,null,null,null,null,null,null,null,null,null,null,null,null,null,null,null,null,null,null,null,null,null,null,null,null,null,null,null,null,null,null,null,null,null,223,{"$f":"SegmentExceptTable[[#This Row],[Numbers]]/$BP$4","v":0.37228714524207013},{"$f":"SegmentExceptTable[[#This Row],[kW Boundary]]+(0.05*SegmentExceptTable[[#This Row],[kW Boundary]])","v":0.39090150250417366},{"$f":"$BP$6*SegmentExceptTable[[#This Row],[kW Boundary]]+$BP$7","v":0.52246581717406948},{"$f":"$BP$8*SegmentExceptTable[[#This Row],[kW Boundary]]+$BP$9","v":-6.2588794947490145E-2},{"$f":"SegmentExceptTable[[#This Row],[Boundary S/M]]+(0.05*SegmentExceptTable[[#This Row],[Boundary S/M]])","v":-6.5718234694864652E-2},{"$f":"IF(AND(AND(kwpeak_norm>SegmentExceptTable[[#This Row],[kW Boundary]],kwpeak_norm<SegmentExceptTable[[#This Row],[kW Exception]]),AND(kwhmo_norm>SegmentExceptTable[[#This Row],[Boundary S/M]],kwhmo_norm<SegmentExceptTable[[#This Row],[Exception S/M]])),1,0)","v":0},{"$f":"$BP$10*SegmentExceptTable[[#This Row],[kW Boundary]]+$BP$11","v":0.65658502168944166},{"$f":"$BP$12*SegmentExceptTable[[#This Row],[kW Boundary]]+$BP$13","v":0.39443845791937365},{"$f":"SegmentExceptTable[[#This Row],[Boundary M/L]]+(0.05*SegmentExceptTable[[#This Row],[Boundary M/L]])","v":0.41416038081534234},{"$f":"IF(AND(AND(kwpeak_norm>SegmentExceptTable[[#This Row],[kW Boundary]],kwpeak_norm<SegmentExceptTable[[#This Row],[kW Exception]]),AND(kwhmo_norm>SegmentExceptTable[[#This Row],[Boundary M/L]],kwhmo_norm<SegmentExceptTable[[#This Row],[Exception M/L]])),1,0)","v":0}]
[null,null,null,null,null,null,null,null,null,null,null,null,null,null,null,null,null,null,null,null,null,null,null,null,null,null,null,null,null,null,null,null,null,null,null,null,null,null,null,null,null,null,null,null,null,null,null,224,{"$f":"SegmentExceptTable[[#This Row],[Numbers]]/$BP$4","v":0.37395659432387313},{"$f":"SegmentExceptTable[[#This Row],[kW Boundary]]+(0.05*SegmentExceptTable[[#This Row],[kW Boundary]])","v":0.39265442404006679},{"$f":"$BP$6*SegmentExceptTable[[#This Row],[kW Boundary]]+$BP$7","v":0.52489264746943576},{"$f":"$BP$8*SegmentExceptTable[[#This Row],[kW Boundary]]+$BP$9","v":-6.373723134292103E-2},{"$f":"SegmentExceptTable[[#This Row],[Boundary S/M]]+(0.05*SegmentExceptTable[[#This Row],[Boundary S/M]])","v":-6.6924092910067082E-2},{"$f":"IF(AND(AND(kwpeak_norm>SegmentExceptTable[[#This Row],[kW Boundary]],kwpeak_norm<SegmentExceptTable[[#This Row],[kW Exception]]),AND(kwhmo_norm>SegmentExceptTable[[#This Row],[Boundary S/M]],kwhmo_norm<SegmentExceptTable[[#This Row],[Exception S/M]])),1,0)","v":0},{"$f":"$BP$10*SegmentExceptTable[[#This Row],[kW Boundary]]+$BP$11","v":0.66011207533168015},{"$f":"$BP$12*SegmentExceptTable[[#This Row],[kW Boundary]]+$BP$13","v":0.39364826289558491},{"$f":"SegmentExceptTable[[#This Row],[Boundary M/L]]+(0.05*SegmentExceptTable[[#This Row],[Boundary M/L]])","v":0.41333067604036416},{"$f":"IF(AND(AND(kwpeak_norm>SegmentExceptTable[[#This Row],[kW Boundary]],kwpeak_norm<SegmentExceptTable[[#This Row],[kW Exception]]),AND(kwhmo_norm>SegmentExceptTable[[#This Row],[Boundary M/L]],kwhmo_norm<SegmentExceptTable[[#This Row],[Exception M/L]])),1,0)","v":0}]
[null,null,null,null,null,null,null,null,null,null,null,null,null,null,null,null,null,null,null,null,null,null,null,null,null,null,null,null,null,null,null,null,null,null,null,null,null,null,null,null,null,null,null,null,null,null,null,225,{"$f":"SegmentExceptTable[[#This Row],[Numbers]]/$BP$4","v":0.37562604340567612},{"$f":"SegmentExceptTable[[#This Row],[kW Boundary]]+(0.05*SegmentExceptTable[[#This Row],[kW Boundary]])","v":0.39440734557595991},{"$f":"$BP$6*SegmentExceptTable[[#This Row],[kW Boundary]]+$BP$7","v":0.52731947776480204},{"$f":"$BP$8*SegmentExceptTable[[#This Row],[kW Boundary]]+$BP$9","v":-6.4885667738351915E-2},{"$f":"SegmentExceptTable[[#This Row],[Boundary S/M]]+(0.05*SegmentExceptTable[[#This Row],[Boundary S/M]])","v":-6.8129951125269511E-2},{"$f":"IF(AND(AND(kwpeak_norm>SegmentExceptTable[[#This Row],[kW Boundary]],kwpeak_norm<SegmentExceptTable[[#This Row],[kW Exception]]),AND(kwhmo_norm>SegmentExceptTable[[#This Row],[Boundary S/M]],kwhmo_norm<SegmentExceptTable[[#This Row],[Exception S/M]])),1,0)","v":0},{"$f":"$BP$10*SegmentExceptTable[[#This Row],[kW Boundary]]+$BP$11","v":0.66363912897391863},{"$f":"$BP$12*SegmentExceptTable[[#This Row],[kW Boundary]]+$BP$13","v":0.39285806787179611},{"$f":"SegmentExceptTable[[#This Row],[Boundary M/L]]+(0.05*SegmentExceptTable[[#This Row],[Boundary M/L]])","v":0.41250097126538593},{"$f":"IF(AND(AND(kwpeak_norm>SegmentExceptTable[[#This Row],[kW Boundary]],kwpeak_norm<SegmentExceptTable[[#This Row],[kW Exception]]),AND(kwhmo_norm>SegmentExceptTable[[#This Row],[Boundary M/L]],kwhmo_norm<SegmentExceptTable[[#This Row],[Exception M/L]])),1,0)","v":0}]
[null,null,null,null,null,null,null,null,null,null,null,null,null,null,null,null,null,null,null,null,null,null,null,null,null,null,null,null,null,null,null,null,null,null,null,null,null,null,null,null,null,null,null,null,null,null,null,226,{"$f":"SegmentExceptTable[[#This Row],[Numbers]]/$BP$4","v":0.37729549248747912},{"$f":"SegmentExceptTable[[#This Row],[kW Boundary]]+(0.05*SegmentExceptTable[[#This Row],[kW Boundary]])","v":0.39616026711185309},{"$f":"$BP$6*SegmentExceptTable[[#This Row],[kW Boundary]]+$BP$7","v":0.52974630806016831},{"$f":"$BP$8*SegmentExceptTable[[#This Row],[kW Boundary]]+$BP$9","v":-6.6034104133782801E-2},{"$f":"SegmentExceptTable[[#This Row],[Boundary S/M]]+(0.05*SegmentExceptTable[[#This Row],[Boundary S/M]])","v":-6.9335809340471941E-2},{"$f":"IF(AND(AND(kwpeak_norm>SegmentExceptTable[[#This Row],[kW Boundary]],kwpeak_norm<SegmentExceptTable[[#This Row],[kW Exception]]),AND(kwhmo_norm>SegmentExceptTable[[#This Row],[Boundary S/M]],kwhmo_norm<SegmentExceptTable[[#This Row],[Exception S/M]])),1,0)","v":0},{"$f":"$BP$10*SegmentExceptTable[[#This Row],[kW Boundary]]+$BP$11","v":0.66716618261615723},{"$f":"$BP$12*SegmentExceptTable[[#This Row],[kW Boundary]]+$BP$13","v":0.39206787284800737},{"$f":"SegmentExceptTable[[#This Row],[Boundary M/L]]+(0.05*SegmentExceptTable[[#This Row],[Boundary M/L]])","v":0.41167126649040775},{"$f":"IF(AND(AND(kwpeak_norm>SegmentExceptTable[[#This Row],[kW Boundary]],kwpeak_norm<SegmentExceptTable[[#This Row],[kW Exception]]),AND(kwhmo_norm>SegmentExceptTable[[#This Row],[Boundary M/L]],kwhmo_norm<SegmentExceptTable[[#This Row],[Exception M/L]])),1,0)","v":0}]
[null,null,null,null,null,null,null,null,null,null,null,null,null,null,null,null,null,null,null,null,null,null,null,null,null,null,null,null,null,null,null,null,null,null,null,null,null,null,null,null,null,null,null,null,null,null,null,227,{"$f":"SegmentExceptTable[[#This Row],[Numbers]]/$BP$4","v":0.37896494156928212},{"$f":"SegmentExceptTable[[#This Row],[kW Boundary]]+(0.05*SegmentExceptTable[[#This Row],[kW Boundary]])","v":0.39791318864774622},{"$f":"$BP$6*SegmentExceptTable[[#This Row],[kW Boundary]]+$BP$7","v":0.53217313835553459},{"$f":"$BP$8*SegmentExceptTable[[#This Row],[kW Boundary]]+$BP$9","v":-6.718254052921363E-2},{"$f":"SegmentExceptTable[[#This Row],[Boundary S/M]]+(0.05*SegmentExceptTable[[#This Row],[Boundary S/M]])","v":-7.0541667555674314E-2},{"$f":"IF(AND(AND(kwpeak_norm>SegmentExceptTable[[#This Row],[kW Boundary]],kwpeak_norm<SegmentExceptTable[[#This Row],[kW Exception]]),AND(kwhmo_norm>SegmentExceptTable[[#This Row],[Boundary S/M]],kwhmo_norm<SegmentExceptTable[[#This Row],[Exception S/M]])),1,0)","v":0},{"$f":"$BP$10*SegmentExceptTable[[#This Row],[kW Boundary]]+$BP$11","v":0.67069323625839572},{"$f":"$BP$12*SegmentExceptTable[[#This Row],[kW Boundary]]+$BP$13","v":0.39127767782421863},{"$f":"SegmentExceptTable[[#This Row],[Boundary M/L]]+(0.05*SegmentExceptTable[[#This Row],[Boundary M/L]])","v":0.41084156171542957},{"$f":"IF(AND(AND(kwpeak_norm>SegmentExceptTable[[#This Row],[kW Boundary]],kwpeak_norm<SegmentExceptTable[[#This Row],[kW Exception]]),AND(kwhmo_norm>SegmentExceptTable[[#This Row],[Boundary M/L]],kwhmo_norm<SegmentExceptTable[[#This Row],[Exception M/L]])),1,0)","v":0}]
[null,null,null,null,null,null,null,null,null,null,null,null,null,null,null,null,null,null,null,null,null,null,null,null,null,null,null,null,null,null,null,null,null,null,null,null,null,null,null,null,null,null,null,null,null,null,null,228,{"$f":"SegmentExceptTable[[#This Row],[Numbers]]/$BP$4","v":0.38063439065108512},{"$f":"SegmentExceptTable[[#This Row],[kW Boundary]]+(0.05*SegmentExceptTable[[#This Row],[kW Boundary]])","v":0.3996661101836394},{"$f":"$BP$6*SegmentExceptTable[[#This Row],[kW Boundary]]+$BP$7","v":0.53459996865090087},{"$f":"$BP$8*SegmentExceptTable[[#This Row],[kW Boundary]]+$BP$9","v":-6.8330976924644515E-2},{"$f":"SegmentExceptTable[[#This Row],[Boundary S/M]]+(0.05*SegmentExceptTable[[#This Row],[Boundary S/M]])","v":-7.1747525770876744E-2},{"$f":"IF(AND(AND(kwpeak_norm>SegmentExceptTable[[#This Row],[kW Boundary]],kwpeak_norm<SegmentExceptTable[[#This Row],[kW Exception]]),AND(kwhmo_norm>SegmentExceptTable[[#This Row],[Boundary S/M]],kwhmo_norm<SegmentExceptTable[[#This Row],[Exception S/M]])),1,0)","v":0},{"$f":"$BP$10*SegmentExceptTable[[#This Row],[kW Boundary]]+$BP$11","v":0.67422028990063421},{"$f":"$BP$12*SegmentExceptTable[[#This Row],[kW Boundary]]+$BP$13","v":0.39048748280042989},{"$f":"SegmentExceptTable[[#This Row],[Boundary M/L]]+(0.05*SegmentExceptTable[[#This Row],[Boundary M/L]])","v":0.41001185694045139},{"$f":"IF(AND(AND(kwpeak_norm>SegmentExceptTable[[#This Row],[kW Boundary]],kwpeak_norm<SegmentExceptTable[[#This Row],[kW Exception]]),AND(kwhmo_norm>SegmentExceptTable[[#This Row],[Boundary M/L]],kwhmo_norm<SegmentExceptTable[[#This Row],[Exception M/L]])),1,0)","v":0}]
[null,null,null,null,null,null,null,null,null,null,null,null,null,null,null,null,null,null,null,null,null,null,null,null,null,null,null,null,null,null,null,null,null,null,null,null,null,null,null,null,null,null,null,null,null,null,null,229,{"$f":"SegmentExceptTable[[#This Row],[Numbers]]/$BP$4","v":0.38230383973288817},{"$f":"SegmentExceptTable[[#This Row],[kW Boundary]]+(0.05*SegmentExceptTable[[#This Row],[kW Boundary]])","v":0.40141903171953258},{"$f":"$BP$6*SegmentExceptTable[[#This Row],[kW Boundary]]+$BP$7","v":0.53702679894626715},{"$f":"$BP$8*SegmentExceptTable[[#This Row],[kW Boundary]]+$BP$9","v":-6.94794133200754E-2},{"$f":"SegmentExceptTable[[#This Row],[Boundary S/M]]+(0.05*SegmentExceptTable[[#This Row],[Boundary S/M]])","v":-7.2953383986079173E-2},{"$f":"IF(AND(AND(kwpeak_norm>SegmentExceptTable[[#This Row],[kW Boundary]],kwpeak_norm<SegmentExceptTable[[#This Row],[kW Exception]]),AND(kwhmo_norm>SegmentExceptTable[[#This Row],[Boundary S/M]],kwhmo_norm<SegmentExceptTable[[#This Row],[Exception S/M]])),1,0)","v":0},{"$f":"$BP$10*SegmentExceptTable[[#This Row],[kW Boundary]]+$BP$11","v":0.6777473435428728},{"$f":"$BP$12*SegmentExceptTable[[#This Row],[kW Boundary]]+$BP$13","v":0.38969728777664114},{"$f":"SegmentExceptTable[[#This Row],[Boundary M/L]]+(0.05*SegmentExceptTable[[#This Row],[Boundary M/L]])","v":0.40918215216547321},{"$f":"IF(AND(AND(kwpeak_norm>SegmentExceptTable[[#This Row],[kW Boundary]],kwpeak_norm<SegmentExceptTable[[#This Row],[kW Exception]]),AND(kwhmo_norm>SegmentExceptTable[[#This Row],[Boundary M/L]],kwhmo_norm<SegmentExceptTable[[#This Row],[Exception M/L]])),1,0)","v":0}]
[null,null,null,null,null,null,null,null,null,null,null,null,null,null,null,null,null,null,null,null,null,null,null,null,null,null,null,null,null,null,null,null,null,null,null,null,null,null,null,null,null,null,null,null,null,null,null,230,{"$f":"SegmentExceptTable[[#This Row],[Numbers]]/$BP$4","v":0.38397328881469117},{"$f":"SegmentExceptTable[[#This Row],[kW Boundary]]+(0.05*SegmentExceptTable[[#This Row],[kW Boundary]])","v":0.40317195325542571},{"$f":"$BP$6*SegmentExceptTable[[#This Row],[kW Boundary]]+$BP$7","v":0.53945362924163343},{"$f":"$BP$8*SegmentExceptTable[[#This Row],[kW Boundary]]+$BP$9","v":-7.0627849715506286E-2},{"$f":"SegmentExceptTable[[#This Row],[Boundary S/M]]+(0.05*SegmentExceptTable[[#This Row],[Boundary S/M]])","v":-7.4159242201281603E-2},{"$f":"IF(AND(AND(kwpeak_norm>SegmentExceptTable[[#This Row],[kW Boundary]],kwpeak_norm<SegmentExceptTable[[#This Row],[kW Exception]]),AND(kwhmo_norm>SegmentExceptTable[[#This Row],[Boundary S/M]],kwhmo_norm<SegmentExceptTable[[#This Row],[Exception S/M]])),1,0)","v":0},{"$f":"$BP$10*SegmentExceptTable[[#This Row],[kW Boundary]]+$BP$11","v":0.6812743971851114},{"$f":"$BP$12*SegmentExceptTable[[#This Row],[kW Boundary]]+$BP$13","v":0.38890709275285235},{"$f":"SegmentExceptTable[[#This Row],[Boundary M/L]]+(0.05*SegmentExceptTable[[#This Row],[Boundary M/L]])","v":0.40835244739049498},{"$f":"IF(AND(AND(kwpeak_norm>SegmentExceptTable[[#This Row],[kW Boundary]],kwpeak_norm<SegmentExceptTable[[#This Row],[kW Exception]]),AND(kwhmo_norm>SegmentExceptTable[[#This Row],[Boundary M/L]],kwhmo_norm<SegmentExceptTable[[#This Row],[Exception M/L]])),1,0)","v":0}]
[null,null,null,null,null,null,null,null,null,null,null,null,null,null,null,null,null,null,null,null,null,null,null,null,null,null,null,null,null,null,null,null,null,null,null,null,null,null,null,null,null,null,null,null,null,null,null,231,{"$f":"SegmentExceptTable[[#This Row],[Numbers]]/$BP$4","v":0.38564273789649417},{"$f":"SegmentExceptTable[[#This Row],[kW Boundary]]+(0.05*SegmentExceptTable[[#This Row],[kW Boundary]])","v":0.40492487479131889},{"$f":"$BP$6*SegmentExceptTable[[#This Row],[kW Boundary]]+$BP$7","v":0.5418804595369997},{"$f":"$BP$8*SegmentExceptTable[[#This Row],[kW Boundary]]+$BP$9","v":-7.1776286110937171E-2},{"$f":"SegmentExceptTable[[#This Row],[Boundary S/M]]+(0.05*SegmentExceptTable[[#This Row],[Boundary S/M]])","v":-7.5365100416484032E-2},{"$f":"IF(AND(AND(kwpeak_norm>SegmentExceptTable[[#This Row],[kW Boundary]],kwpeak_norm<SegmentExceptTable[[#This Row],[kW Exception]]),AND(kwhmo_norm>SegmentExceptTable[[#This Row],[Boundary S/M]],kwhmo_norm<SegmentExceptTable[[#This Row],[Exception S/M]])),1,0)","v":0},{"$f":"$BP$10*SegmentExceptTable[[#This Row],[kW Boundary]]+$BP$11","v":0.68480145082734989},{"$f":"$BP$12*SegmentExceptTable[[#This Row],[kW Boundary]]+$BP$13","v":0.3881168977290636},{"$f":"SegmentExceptTable[[#This Row],[Boundary M/L]]+(0.05*SegmentExceptTable[[#This Row],[Boundary M/L]])","v":0.4075227426155168},{"$f":"IF(AND(AND(kwpeak_norm>SegmentExceptTable[[#This Row],[kW Boundary]],kwpeak_norm<SegmentExceptTable[[#This Row],[kW Exception]]),AND(kwhmo_norm>SegmentExceptTable[[#This Row],[Boundary M/L]],kwhmo_norm<SegmentExceptTable[[#This Row],[Exception M/L]])),1,0)","v":0}]
[null,null,null,null,null,null,null,null,null,null,null,null,null,null,null,null,null,null,null,null,null,null,null,null,null,null,null,null,null,null,null,null,null,null,null,null,null,null,null,null,null,null,null,null,null,null,null,232,{"$f":"SegmentExceptTable[[#This Row],[Numbers]]/$BP$4","v":0.38731218697829717},{"$f":"SegmentExceptTable[[#This Row],[kW Boundary]]+(0.05*SegmentExceptTable[[#This Row],[kW Boundary]])","v":0.40667779632721202},{"$f":"$BP$6*SegmentExceptTable[[#This Row],[kW Boundary]]+$BP$7","v":0.54430728983236598},{"$f":"$BP$8*SegmentExceptTable[[#This Row],[kW Boundary]]+$BP$9","v":-7.2924722506368056E-2},{"$f":"SegmentExceptTable[[#This Row],[Boundary S/M]]+(0.05*SegmentExceptTable[[#This Row],[Boundary S/M]])","v":-7.6570958631686462E-2},{"$f":"IF(AND(AND(kwpeak_norm>SegmentExceptTable[[#This Row],[kW Boundary]],kwpeak_norm<SegmentExceptTable[[#This Row],[kW Exception]]),AND(kwhmo_norm>SegmentExceptTable[[#This Row],[Boundary S/M]],kwhmo_norm<SegmentExceptTable[[#This Row],[Exception S/M]])),1,0)","v":0},{"$f":"$BP$10*SegmentExceptTable[[#This Row],[kW Boundary]]+$BP$11","v":0.68832850446958838},{"$f":"$BP$12*SegmentExceptTable[[#This Row],[kW Boundary]]+$BP$13","v":0.38732670270527486},{"$f":"SegmentExceptTable[[#This Row],[Boundary M/L]]+(0.05*SegmentExceptTable[[#This Row],[Boundary M/L]])","v":0.40669303784053862},{"$f":"IF(AND(AND(kwpeak_norm>SegmentExceptTable[[#This Row],[kW Boundary]],kwpeak_norm<SegmentExceptTable[[#This Row],[kW Exception]]),AND(kwhmo_norm>SegmentExceptTable[[#This Row],[Boundary M/L]],kwhmo_norm<SegmentExceptTable[[#This Row],[Exception M/L]])),1,0)","v":0}]
[null,null,null,null,null,null,null,null,null,null,null,null,null,null,null,null,null,null,null,null,null,null,null,null,null,null,null,null,null,null,null,null,null,null,null,null,null,null,null,null,null,null,null,null,null,null,null,233,{"$f":"SegmentExceptTable[[#This Row],[Numbers]]/$BP$4","v":0.38898163606010017},{"$f":"SegmentExceptTable[[#This Row],[kW Boundary]]+(0.05*SegmentExceptTable[[#This Row],[kW Boundary]])","v":0.4084307178631052},{"$f":"$BP$6*SegmentExceptTable[[#This Row],[kW Boundary]]+$BP$7","v":0.54673412012773226},{"$f":"$BP$8*SegmentExceptTable[[#This Row],[kW Boundary]]+$BP$9","v":-7.4073158901798886E-2},{"$f":"SegmentExceptTable[[#This Row],[Boundary S/M]]+(0.05*SegmentExceptTable[[#This Row],[Boundary S/M]])","v":-7.7776816846888835E-2},{"$f":"IF(AND(AND(kwpeak_norm>SegmentExceptTable[[#This Row],[kW Boundary]],kwpeak_norm<SegmentExceptTable[[#This Row],[kW Exception]]),AND(kwhmo_norm>SegmentExceptTable[[#This Row],[Boundary S/M]],kwhmo_norm<SegmentExceptTable[[#This Row],[Exception S/M]])),1,0)","v":0},{"$f":"$BP$10*SegmentExceptTable[[#This Row],[kW Boundary]]+$BP$11","v":0.69185555811182686},{"$f":"$BP$12*SegmentExceptTable[[#This Row],[kW Boundary]]+$BP$13","v":0.38653650768148606},{"$f":"SegmentExceptTable[[#This Row],[Boundary M/L]]+(0.05*SegmentExceptTable[[#This Row],[Boundary M/L]])","v":0.40586333306556038},{"$f":"IF(AND(AND(kwpeak_norm>SegmentExceptTable[[#This Row],[kW Boundary]],kwpeak_norm<SegmentExceptTable[[#This Row],[kW Exception]]),AND(kwhmo_norm>SegmentExceptTable[[#This Row],[Boundary M/L]],kwhmo_norm<SegmentExceptTable[[#This Row],[Exception M/L]])),1,0)","v":0}]
[null,null,null,null,null,null,null,null,null,null,null,null,null,null,null,null,null,null,null,null,null,null,null,null,null,null,null,null,null,null,null,null,null,null,null,null,null,null,null,null,null,null,null,null,null,null,null,234,{"$f":"SegmentExceptTable[[#This Row],[Numbers]]/$BP$4","v":0.39065108514190316},{"$f":"SegmentExceptTable[[#This Row],[kW Boundary]]+(0.05*SegmentExceptTable[[#This Row],[kW Boundary]])","v":0.41018363939899832},{"$f":"$BP$6*SegmentExceptTable[[#This Row],[kW Boundary]]+$BP$7","v":0.54916095042309854},{"$f":"$BP$8*SegmentExceptTable[[#This Row],[kW Boundary]]+$BP$9","v":-7.5221595297229771E-2},{"$f":"SegmentExceptTable[[#This Row],[Boundary S/M]]+(0.05*SegmentExceptTable[[#This Row],[Boundary S/M]])","v":-7.8982675062091265E-2},{"$f":"IF(AND(AND(kwpeak_norm>SegmentExceptTable[[#This Row],[kW Boundary]],kwpeak_norm<SegmentExceptTable[[#This Row],[kW Exception]]),AND(kwhmo_norm>SegmentExceptTable[[#This Row],[Boundary S/M]],kwhmo_norm<SegmentExceptTable[[#This Row],[Exception S/M]])),1,0)","v":0},{"$f":"$BP$10*SegmentExceptTable[[#This Row],[kW Boundary]]+$BP$11","v":0.69538261175406546},{"$f":"$BP$12*SegmentExceptTable[[#This Row],[kW Boundary]]+$BP$13","v":0.38574631265769732},{"$f":"SegmentExceptTable[[#This Row],[Boundary M/L]]+(0.05*SegmentExceptTable[[#This Row],[Boundary M/L]])","v":0.4050336282905822},{"$f":"IF(AND(AND(kwpeak_norm>SegmentExceptTable[[#This Row],[kW Boundary]],kwpeak_norm<SegmentExceptTable[[#This Row],[kW Exception]]),AND(kwhmo_norm>SegmentExceptTable[[#This Row],[Boundary M/L]],kwhmo_norm<SegmentExceptTable[[#This Row],[Exception M/L]])),1,0)","v":0}]
[null,null,null,null,null,null,null,null,null,null,null,null,null,null,null,null,null,null,null,null,null,null,null,null,null,null,null,null,null,null,null,null,null,null,null,null,null,null,null,null,null,null,null,null,null,null,null,235,{"$f":"SegmentExceptTable[[#This Row],[Numbers]]/$BP$4","v":0.39232053422370616},{"$f":"SegmentExceptTable[[#This Row],[kW Boundary]]+(0.05*SegmentExceptTable[[#This Row],[kW Boundary]])","v":0.41193656093489145},{"$f":"$BP$6*SegmentExceptTable[[#This Row],[kW Boundary]]+$BP$7","v":0.55158778071846482},{"$f":"$BP$8*SegmentExceptTable[[#This Row],[kW Boundary]]+$BP$9","v":-7.6370031692660656E-2},{"$f":"SegmentExceptTable[[#This Row],[Boundary S/M]]+(0.05*SegmentExceptTable[[#This Row],[Boundary S/M]])","v":-8.0188533277293694E-2},{"$f":"IF(AND(AND(kwpeak_norm>SegmentExceptTable[[#This Row],[kW Boundary]],kwpeak_norm<SegmentExceptTable[[#This Row],[kW Exception]]),AND(kwhmo_norm>SegmentExceptTable[[#This Row],[Boundary S/M]],kwhmo_norm<SegmentExceptTable[[#This Row],[Exception S/M]])),1,0)","v":0},{"$f":"$BP$10*SegmentExceptTable[[#This Row],[kW Boundary]]+$BP$11","v":0.69890966539630395},{"$f":"$BP$12*SegmentExceptTable[[#This Row],[kW Boundary]]+$BP$13","v":0.38495611763390858},{"$f":"SegmentExceptTable[[#This Row],[Boundary M/L]]+(0.05*SegmentExceptTable[[#This Row],[Boundary M/L]])","v":0.40420392351560402},{"$f":"IF(AND(AND(kwpeak_norm>SegmentExceptTable[[#This Row],[kW Boundary]],kwpeak_norm<SegmentExceptTable[[#This Row],[kW Exception]]),AND(kwhmo_norm>SegmentExceptTable[[#This Row],[Boundary M/L]],kwhmo_norm<SegmentExceptTable[[#This Row],[Exception M/L]])),1,0)","v":0}]
[null,null,null,null,null,null,null,null,null,null,null,null,null,null,null,null,null,null,null,null,null,null,null,null,null,null,null,null,null,null,null,null,null,null,null,null,null,null,null,null,null,null,null,null,null,null,null,236,{"$f":"SegmentExceptTable[[#This Row],[Numbers]]/$BP$4","v":0.39398998330550916},{"$f":"SegmentExceptTable[[#This Row],[kW Boundary]]+(0.05*SegmentExceptTable[[#This Row],[kW Boundary]])","v":0.41368948247078463},{"$f":"$BP$6*SegmentExceptTable[[#This Row],[kW Boundary]]+$BP$7","v":0.55401461101383109},{"$f":"$BP$8*SegmentExceptTable[[#This Row],[kW Boundary]]+$BP$9","v":-7.7518468088091541E-2},{"$f":"SegmentExceptTable[[#This Row],[Boundary S/M]]+(0.05*SegmentExceptTable[[#This Row],[Boundary S/M]])","v":-8.1394391492496124E-2},{"$f":"IF(AND(AND(kwpeak_norm>SegmentExceptTable[[#This Row],[kW Boundary]],kwpeak_norm<SegmentExceptTable[[#This Row],[kW Exception]]),AND(kwhmo_norm>SegmentExceptTable[[#This Row],[Boundary S/M]],kwhmo_norm<SegmentExceptTable[[#This Row],[Exception S/M]])),1,0)","v":0},{"$f":"$BP$10*SegmentExceptTable[[#This Row],[kW Boundary]]+$BP$11","v":0.70243671903854243},{"$f":"$BP$12*SegmentExceptTable[[#This Row],[kW Boundary]]+$BP$13","v":0.38416592261011984},{"$f":"SegmentExceptTable[[#This Row],[Boundary M/L]]+(0.05*SegmentExceptTable[[#This Row],[Boundary M/L]])","v":0.40337421874062585},{"$f":"IF(AND(AND(kwpeak_norm>SegmentExceptTable[[#This Row],[kW Boundary]],kwpeak_norm<SegmentExceptTable[[#This Row],[kW Exception]]),AND(kwhmo_norm>SegmentExceptTable[[#This Row],[Boundary M/L]],kwhmo_norm<SegmentExceptTable[[#This Row],[Exception M/L]])),1,0)","v":0}]
[null,null,null,null,null,null,null,null,null,null,null,null,null,null,null,null,null,null,null,null,null,null,null,null,null,null,null,null,null,null,null,null,null,null,null,null,null,null,null,null,null,null,null,null,null,null,null,237,{"$f":"SegmentExceptTable[[#This Row],[Numbers]]/$BP$4","v":0.39565943238731216},{"$f":"SegmentExceptTable[[#This Row],[kW Boundary]]+(0.05*SegmentExceptTable[[#This Row],[kW Boundary]])","v":0.41544240400667776},{"$f":"$BP$6*SegmentExceptTable[[#This Row],[kW Boundary]]+$BP$7","v":0.55644144130919737},{"$f":"$BP$8*SegmentExceptTable[[#This Row],[kW Boundary]]+$BP$9","v":-7.8666904483522371E-2},{"$f":"SegmentExceptTable[[#This Row],[Boundary S/M]]+(0.05*SegmentExceptTable[[#This Row],[Boundary S/M]])","v":-8.2600249707698484E-2},{"$f":"IF(AND(AND(kwpeak_norm>SegmentExceptTable[[#This Row],[kW Boundary]],kwpeak_norm<SegmentExceptTable[[#This Row],[kW Exception]]),AND(kwhmo_norm>SegmentExceptTable[[#This Row],[Boundary S/M]],kwhmo_norm<SegmentExceptTable[[#This Row],[Exception S/M]])),1,0)","v":0},{"$f":"$BP$10*SegmentExceptTable[[#This Row],[kW Boundary]]+$BP$11","v":0.70596377268078092},{"$f":"$BP$12*SegmentExceptTable[[#This Row],[kW Boundary]]+$BP$13","v":0.38337572758633109},{"$f":"SegmentExceptTable[[#This Row],[Boundary M/L]]+(0.05*SegmentExceptTable[[#This Row],[Boundary M/L]])","v":0.40254451396564767},{"$f":"IF(AND(AND(kwpeak_norm>SegmentExceptTable[[#This Row],[kW Boundary]],kwpeak_norm<SegmentExceptTable[[#This Row],[kW Exception]]),AND(kwhmo_norm>SegmentExceptTable[[#This Row],[Boundary M/L]],kwhmo_norm<SegmentExceptTable[[#This Row],[Exception M/L]])),1,0)","v":0}]
[null,null,null,null,null,null,null,null,null,null,null,null,null,null,null,null,null,null,null,null,null,null,null,null,null,null,null,null,null,null,null,null,null,null,null,null,null,null,null,null,null,null,null,null,null,null,null,238,{"$f":"SegmentExceptTable[[#This Row],[Numbers]]/$BP$4","v":0.39732888146911521},{"$f":"SegmentExceptTable[[#This Row],[kW Boundary]]+(0.05*SegmentExceptTable[[#This Row],[kW Boundary]])","v":0.41719532554257099},{"$f":"$BP$6*SegmentExceptTable[[#This Row],[kW Boundary]]+$BP$7","v":0.55886827160456365},{"$f":"$BP$8*SegmentExceptTable[[#This Row],[kW Boundary]]+$BP$9","v":-7.9815340878953311E-2},{"$f":"SegmentExceptTable[[#This Row],[Boundary S/M]]+(0.05*SegmentExceptTable[[#This Row],[Boundary S/M]])","v":-8.3806107922900983E-2},{"$f":"IF(AND(AND(kwpeak_norm>SegmentExceptTable[[#This Row],[kW Boundary]],kwpeak_norm<SegmentExceptTable[[#This Row],[kW Exception]]),AND(kwhmo_norm>SegmentExceptTable[[#This Row],[Boundary S/M]],kwhmo_norm<SegmentExceptTable[[#This Row],[Exception S/M]])),1,0)","v":0},{"$f":"$BP$10*SegmentExceptTable[[#This Row],[kW Boundary]]+$BP$11","v":0.70949082632301963},{"$f":"$BP$12*SegmentExceptTable[[#This Row],[kW Boundary]]+$BP$13","v":0.3825855325625423},{"$f":"SegmentExceptTable[[#This Row],[Boundary M/L]]+(0.05*SegmentExceptTable[[#This Row],[Boundary M/L]])","v":0.40171480919066943},{"$f":"IF(AND(AND(kwpeak_norm>SegmentExceptTable[[#This Row],[kW Boundary]],kwpeak_norm<SegmentExceptTable[[#This Row],[kW Exception]]),AND(kwhmo_norm>SegmentExceptTable[[#This Row],[Boundary M/L]],kwhmo_norm<SegmentExceptTable[[#This Row],[Exception M/L]])),1,0)","v":0}]
[null,null,null,null,null,null,null,null,null,null,null,null,null,null,null,null,null,null,null,null,null,null,null,null,null,null,null,null,null,null,null,null,null,null,null,null,null,null,null,null,null,null,null,null,null,null,null,239,{"$f":"SegmentExceptTable[[#This Row],[Numbers]]/$BP$4","v":0.39899833055091821},{"$f":"SegmentExceptTable[[#This Row],[kW Boundary]]+(0.05*SegmentExceptTable[[#This Row],[kW Boundary]])","v":0.41894824707846412},{"$f":"$BP$6*SegmentExceptTable[[#This Row],[kW Boundary]]+$BP$7","v":0.56129510189992993},{"$f":"$BP$8*SegmentExceptTable[[#This Row],[kW Boundary]]+$BP$9","v":-8.0963777274384197E-2},{"$f":"SegmentExceptTable[[#This Row],[Boundary S/M]]+(0.05*SegmentExceptTable[[#This Row],[Boundary S/M]])","v":-8.5011966138103412E-2},{"$f":"IF(AND(AND(kwpeak_norm>SegmentExceptTable[[#This Row],[kW Boundary]],kwpeak_norm<SegmentExceptTable[[#This Row],[kW Exception]]),AND(kwhmo_norm>SegmentExceptTable[[#This Row],[Boundary S/M]],kwhmo_norm<SegmentExceptTable[[#This Row],[Exception S/M]])),1,0)","v":0},{"$f":"$BP$10*SegmentExceptTable[[#This Row],[kW Boundary]]+$BP$11","v":0.71301787996525812},{"$f":"$BP$12*SegmentExceptTable[[#This Row],[kW Boundary]]+$BP$13","v":0.38179533753875355},{"$f":"SegmentExceptTable[[#This Row],[Boundary M/L]]+(0.05*SegmentExceptTable[[#This Row],[Boundary M/L]])","v":0.40088510441569125},{"$f":"IF(AND(AND(kwpeak_norm>SegmentExceptTable[[#This Row],[kW Boundary]],kwpeak_norm<SegmentExceptTable[[#This Row],[kW Exception]]),AND(kwhmo_norm>SegmentExceptTable[[#This Row],[Boundary M/L]],kwhmo_norm<SegmentExceptTable[[#This Row],[Exception M/L]])),1,0)","v":0}]
[null,null,null,null,null,null,null,null,null,null,null,null,null,null,null,null,null,null,null,null,null,null,null,null,null,null,null,null,null,null,null,null,null,null,null,null,null,null,null,null,null,null,null,null,null,null,null,240,{"$f":"SegmentExceptTable[[#This Row],[Numbers]]/$BP$4","v":0.40066777963272121},{"$f":"SegmentExceptTable[[#This Row],[kW Boundary]]+(0.05*SegmentExceptTable[[#This Row],[kW Boundary]])","v":0.42070116861435725},{"$f":"$BP$6*SegmentExceptTable[[#This Row],[kW Boundary]]+$BP$7","v":0.5637219321952962},{"$f":"$BP$8*SegmentExceptTable[[#This Row],[kW Boundary]]+$BP$9","v":-8.2112213669815026E-2},{"$f":"SegmentExceptTable[[#This Row],[Boundary S/M]]+(0.05*SegmentExceptTable[[#This Row],[Boundary S/M]])","v":-8.6217824353305772E-2},{"$f":"IF(AND(AND(kwpeak_norm>SegmentExceptTable[[#This Row],[kW Boundary]],kwpeak_norm<SegmentExceptTable[[#This Row],[kW Exception]]),AND(kwhmo_norm>SegmentExceptTable[[#This Row],[Boundary S/M]],kwhmo_norm<SegmentExceptTable[[#This Row],[Exception S/M]])),1,0)","v":0},{"$f":"$BP$10*SegmentExceptTable[[#This Row],[kW Boundary]]+$BP$11","v":0.7165449336074966},{"$f":"$BP$12*SegmentExceptTable[[#This Row],[kW Boundary]]+$BP$13","v":0.38100514251496476},{"$f":"SegmentExceptTable[[#This Row],[Boundary M/L]]+(0.05*SegmentExceptTable[[#This Row],[Boundary M/L]])","v":0.40005539964071302},{"$f":"IF(AND(AND(kwpeak_norm>SegmentExceptTable[[#This Row],[kW Boundary]],kwpeak_norm<SegmentExceptTable[[#This Row],[kW Exception]]),AND(kwhmo_norm>SegmentExceptTable[[#This Row],[Boundary M/L]],kwhmo_norm<SegmentExceptTable[[#This Row],[Exception M/L]])),1,0)","v":0}]
[null,null,null,null,null,null,null,null,null,null,null,null,null,null,null,null,null,null,null,null,null,null,null,null,null,null,null,null,null,null,null,null,null,null,null,null,null,null,null,null,null,null,null,null,null,null,null,241,{"$f":"SegmentExceptTable[[#This Row],[Numbers]]/$BP$4","v":0.40233722871452421},{"$f":"SegmentExceptTable[[#This Row],[kW Boundary]]+(0.05*SegmentExceptTable[[#This Row],[kW Boundary]])","v":0.42245409015025043},{"$f":"$BP$6*SegmentExceptTable[[#This Row],[kW Boundary]]+$BP$7","v":0.56614876249066248},{"$f":"$BP$8*SegmentExceptTable[[#This Row],[kW Boundary]]+$BP$9","v":-8.3260650065245911E-2},{"$f":"SegmentExceptTable[[#This Row],[Boundary S/M]]+(0.05*SegmentExceptTable[[#This Row],[Boundary S/M]])","v":-8.7423682568508201E-2},{"$f":"IF(AND(AND(kwpeak_norm>SegmentExceptTable[[#This Row],[kW Boundary]],kwpeak_norm<SegmentExceptTable[[#This Row],[kW Exception]]),AND(kwhmo_norm>SegmentExceptTable[[#This Row],[Boundary S/M]],kwhmo_norm<SegmentExceptTable[[#This Row],[Exception S/M]])),1,0)","v":0},{"$f":"$BP$10*SegmentExceptTable[[#This Row],[kW Boundary]]+$BP$11","v":0.7200719872497352},{"$f":"$BP$12*SegmentExceptTable[[#This Row],[kW Boundary]]+$BP$13","v":0.38021494749117601},{"$f":"SegmentExceptTable[[#This Row],[Boundary M/L]]+(0.05*SegmentExceptTable[[#This Row],[Boundary M/L]])","v":0.39922569486573484},{"$f":"IF(AND(AND(kwpeak_norm>SegmentExceptTable[[#This Row],[kW Boundary]],kwpeak_norm<SegmentExceptTable[[#This Row],[kW Exception]]),AND(kwhmo_norm>SegmentExceptTable[[#This Row],[Boundary M/L]],kwhmo_norm<SegmentExceptTable[[#This Row],[Exception M/L]])),1,0)","v":0}]
[null,null,null,null,null,null,null,null,null,null,null,null,null,null,null,null,null,null,null,null,null,null,null,null,null,null,null,null,null,null,null,null,null,null,null,null,null,null,null,null,null,null,null,null,null,null,null,242,{"$f":"SegmentExceptTable[[#This Row],[Numbers]]/$BP$4","v":0.40400667779632721},{"$f":"SegmentExceptTable[[#This Row],[kW Boundary]]+(0.05*SegmentExceptTable[[#This Row],[kW Boundary]])","v":0.42420701168614355},{"$f":"$BP$6*SegmentExceptTable[[#This Row],[kW Boundary]]+$BP$7","v":0.56857559278602876},{"$f":"$BP$8*SegmentExceptTable[[#This Row],[kW Boundary]]+$BP$9","v":-8.4409086460676797E-2},{"$f":"SegmentExceptTable[[#This Row],[Boundary S/M]]+(0.05*SegmentExceptTable[[#This Row],[Boundary S/M]])","v":-8.8629540783710631E-2},{"$f":"IF(AND(AND(kwpeak_norm>SegmentExceptTable[[#This Row],[kW Boundary]],kwpeak_norm<SegmentExceptTable[[#This Row],[kW Exception]]),AND(kwhmo_norm>SegmentExceptTable[[#This Row],[Boundary S/M]],kwhmo_norm<SegmentExceptTable[[#This Row],[Exception S/M]])),1,0)","v":0},{"$f":"$BP$10*SegmentExceptTable[[#This Row],[kW Boundary]]+$BP$11","v":0.72359904089197369},{"$f":"$BP$12*SegmentExceptTable[[#This Row],[kW Boundary]]+$BP$13","v":0.37942475246738727},{"$f":"SegmentExceptTable[[#This Row],[Boundary M/L]]+(0.05*SegmentExceptTable[[#This Row],[Boundary M/L]])","v":0.39839599009075666},{"$f":"IF(AND(AND(kwpeak_norm>SegmentExceptTable[[#This Row],[kW Boundary]],kwpeak_norm<SegmentExceptTable[[#This Row],[kW Exception]]),AND(kwhmo_norm>SegmentExceptTable[[#This Row],[Boundary M/L]],kwhmo_norm<SegmentExceptTable[[#This Row],[Exception M/L]])),1,0)","v":0}]
[null,null,null,null,null,null,null,null,null,null,null,null,null,null,null,null,null,null,null,null,null,null,null,null,null,null,null,null,null,null,null,null,null,null,null,null,null,null,null,null,null,null,null,null,null,null,null,243,{"$f":"SegmentExceptTable[[#This Row],[Numbers]]/$BP$4","v":0.40567612687813021},{"$f":"SegmentExceptTable[[#This Row],[kW Boundary]]+(0.05*SegmentExceptTable[[#This Row],[kW Boundary]])","v":0.42595993322203674},{"$f":"$BP$6*SegmentExceptTable[[#This Row],[kW Boundary]]+$BP$7","v":0.57100242308139504},{"$f":"$BP$8*SegmentExceptTable[[#This Row],[kW Boundary]]+$BP$9","v":-8.5557522856107682E-2},{"$f":"SegmentExceptTable[[#This Row],[Boundary S/M]]+(0.05*SegmentExceptTable[[#This Row],[Boundary S/M]])","v":-8.983539899891306E-2},{"$f":"IF(AND(AND(kwpeak_norm>SegmentExceptTable[[#This Row],[kW Boundary]],kwpeak_norm<SegmentExceptTable[[#This Row],[kW Exception]]),AND(kwhmo_norm>SegmentExceptTable[[#This Row],[Boundary S/M]],kwhmo_norm<SegmentExceptTable[[#This Row],[Exception S/M]])),1,0)","v":0},{"$f":"$BP$10*SegmentExceptTable[[#This Row],[kW Boundary]]+$BP$11","v":0.72712609453421218},{"$f":"$BP$12*SegmentExceptTable[[#This Row],[kW Boundary]]+$BP$13","v":0.37863455744359853},{"$f":"SegmentExceptTable[[#This Row],[Boundary M/L]]+(0.05*SegmentExceptTable[[#This Row],[Boundary M/L]])","v":0.39756628531577848},{"$f":"IF(AND(AND(kwpeak_norm>SegmentExceptTable[[#This Row],[kW Boundary]],kwpeak_norm<SegmentExceptTable[[#This Row],[kW Exception]]),AND(kwhmo_norm>SegmentExceptTable[[#This Row],[Boundary M/L]],kwhmo_norm<SegmentExceptTable[[#This Row],[Exception M/L]])),1,0)","v":0}]
[null,null,null,null,null,null,null,null,null,null,null,null,null,null,null,null,null,null,null,null,null,null,null,null,null,null,null,null,null,null,null,null,null,null,null,null,null,null,null,null,null,null,null,null,null,null,null,244,{"$f":"SegmentExceptTable[[#This Row],[Numbers]]/$BP$4","v":0.4073455759599332},{"$f":"SegmentExceptTable[[#This Row],[kW Boundary]]+(0.05*SegmentExceptTable[[#This Row],[kW Boundary]])","v":0.42771285475792986},{"$f":"$BP$6*SegmentExceptTable[[#This Row],[kW Boundary]]+$BP$7","v":0.57342925337676132},{"$f":"$BP$8*SegmentExceptTable[[#This Row],[kW Boundary]]+$BP$9","v":-8.6705959251538511E-2},{"$f":"SegmentExceptTable[[#This Row],[Boundary S/M]]+(0.05*SegmentExceptTable[[#This Row],[Boundary S/M]])","v":-9.1041257214115434E-2},{"$f":"IF(AND(AND(kwpeak_norm>SegmentExceptTable[[#This Row],[kW Boundary]],kwpeak_norm<SegmentExceptTable[[#This Row],[kW Exception]]),AND(kwhmo_norm>SegmentExceptTable[[#This Row],[Boundary S/M]],kwhmo_norm<SegmentExceptTable[[#This Row],[Exception S/M]])),1,0)","v":0},{"$f":"$BP$10*SegmentExceptTable[[#This Row],[kW Boundary]]+$BP$11","v":0.73065314817645066},{"$f":"$BP$12*SegmentExceptTable[[#This Row],[kW Boundary]]+$BP$13","v":0.37784436241980979},{"$f":"SegmentExceptTable[[#This Row],[Boundary M/L]]+(0.05*SegmentExceptTable[[#This Row],[Boundary M/L]])","v":0.3967365805408003},{"$f":"IF(AND(AND(kwpeak_norm>SegmentExceptTable[[#This Row],[kW Boundary]],kwpeak_norm<SegmentExceptTable[[#This Row],[kW Exception]]),AND(kwhmo_norm>SegmentExceptTable[[#This Row],[Boundary M/L]],kwhmo_norm<SegmentExceptTable[[#This Row],[Exception M/L]])),1,0)","v":0}]
[null,null,null,null,null,null,null,null,null,null,null,null,null,null,null,null,null,null,null,null,null,null,null,null,null,null,null,null,null,null,null,null,null,null,null,null,null,null,null,null,null,null,null,null,null,null,null,245,{"$f":"SegmentExceptTable[[#This Row],[Numbers]]/$BP$4","v":0.4090150250417362},{"$f":"SegmentExceptTable[[#This Row],[kW Boundary]]+(0.05*SegmentExceptTable[[#This Row],[kW Boundary]])","v":0.42946577629382299},{"$f":"$BP$6*SegmentExceptTable[[#This Row],[kW Boundary]]+$BP$7","v":0.57585608367212759},{"$f":"$BP$8*SegmentExceptTable[[#This Row],[kW Boundary]]+$BP$9","v":-8.7854395646969397E-2},{"$f":"SegmentExceptTable[[#This Row],[Boundary S/M]]+(0.05*SegmentExceptTable[[#This Row],[Boundary S/M]])","v":-9.2247115429317864E-2},{"$f":"IF(AND(AND(kwpeak_norm>SegmentExceptTable[[#This Row],[kW Boundary]],kwpeak_norm<SegmentExceptTable[[#This Row],[kW Exception]]),AND(kwhmo_norm>SegmentExceptTable[[#This Row],[Boundary S/M]],kwhmo_norm<SegmentExceptTable[[#This Row],[Exception S/M]])),1,0)","v":0},{"$f":"$BP$10*SegmentExceptTable[[#This Row],[kW Boundary]]+$BP$11","v":0.73418020181868926},{"$f":"$BP$12*SegmentExceptTable[[#This Row],[kW Boundary]]+$BP$13","v":0.37705416739602104},{"$f":"SegmentExceptTable[[#This Row],[Boundary M/L]]+(0.05*SegmentExceptTable[[#This Row],[Boundary M/L]])","v":0.39590687576582212},{"$f":"IF(AND(AND(kwpeak_norm>SegmentExceptTable[[#This Row],[kW Boundary]],kwpeak_norm<SegmentExceptTable[[#This Row],[kW Exception]]),AND(kwhmo_norm>SegmentExceptTable[[#This Row],[Boundary M/L]],kwhmo_norm<SegmentExceptTable[[#This Row],[Exception M/L]])),1,0)","v":0}]
[null,null,null,null,null,null,null,null,null,null,null,null,null,null,null,null,null,null,null,null,null,null,null,null,null,null,null,null,null,null,null,null,null,null,null,null,null,null,null,null,null,null,null,null,null,null,null,246,{"$f":"SegmentExceptTable[[#This Row],[Numbers]]/$BP$4","v":0.41068447412353926},{"$f":"SegmentExceptTable[[#This Row],[kW Boundary]]+(0.05*SegmentExceptTable[[#This Row],[kW Boundary]])","v":0.43121869782971622},{"$f":"$BP$6*SegmentExceptTable[[#This Row],[kW Boundary]]+$BP$7","v":0.57828291396749387},{"$f":"$BP$8*SegmentExceptTable[[#This Row],[kW Boundary]]+$BP$9","v":-8.9002832042400337E-2},{"$f":"SegmentExceptTable[[#This Row],[Boundary S/M]]+(0.05*SegmentExceptTable[[#This Row],[Boundary S/M]])","v":-9.3452973644520348E-2},{"$f":"IF(AND(AND(kwpeak_norm>SegmentExceptTable[[#This Row],[kW Boundary]],kwpeak_norm<SegmentExceptTable[[#This Row],[kW Exception]]),AND(kwhmo_norm>SegmentExceptTable[[#This Row],[Boundary S/M]],kwhmo_norm<SegmentExceptTable[[#This Row],[Exception S/M]])),1,0)","v":0},{"$f":"$BP$10*SegmentExceptTable[[#This Row],[kW Boundary]]+$BP$11","v":0.73770725546092786},{"$f":"$BP$12*SegmentExceptTable[[#This Row],[kW Boundary]]+$BP$13","v":0.37626397237223225},{"$f":"SegmentExceptTable[[#This Row],[Boundary M/L]]+(0.05*SegmentExceptTable[[#This Row],[Boundary M/L]])","v":0.39507717099084388},{"$f":"IF(AND(AND(kwpeak_norm>SegmentExceptTable[[#This Row],[kW Boundary]],kwpeak_norm<SegmentExceptTable[[#This Row],[kW Exception]]),AND(kwhmo_norm>SegmentExceptTable[[#This Row],[Boundary M/L]],kwhmo_norm<SegmentExceptTable[[#This Row],[Exception M/L]])),1,0)","v":0}]
[null,null,null,null,null,null,null,null,null,null,null,null,null,null,null,null,null,null,null,null,null,null,null,null,null,null,null,null,null,null,null,null,null,null,null,null,null,null,null,null,null,null,null,null,null,null,null,247,{"$f":"SegmentExceptTable[[#This Row],[Numbers]]/$BP$4","v":0.41235392320534225},{"$f":"SegmentExceptTable[[#This Row],[kW Boundary]]+(0.05*SegmentExceptTable[[#This Row],[kW Boundary]])","v":0.43297161936560935},{"$f":"$BP$6*SegmentExceptTable[[#This Row],[kW Boundary]]+$BP$7","v":0.58070974426286015},{"$f":"$BP$8*SegmentExceptTable[[#This Row],[kW Boundary]]+$BP$9","v":-9.0151268437831167E-2},{"$f":"SegmentExceptTable[[#This Row],[Boundary S/M]]+(0.05*SegmentExceptTable[[#This Row],[Boundary S/M]])","v":-9.4658831859722722E-2},{"$f":"IF(AND(AND(kwpeak_norm>SegmentExceptTable[[#This Row],[kW Boundary]],kwpeak_norm<SegmentExceptTable[[#This Row],[kW Exception]]),AND(kwhmo_norm>SegmentExceptTable[[#This Row],[Boundary S/M]],kwhmo_norm<SegmentExceptTable[[#This Row],[Exception S/M]])),1,0)","v":0},{"$f":"$BP$10*SegmentExceptTable[[#This Row],[kW Boundary]]+$BP$11","v":0.74123430910316634},{"$f":"$BP$12*SegmentExceptTable[[#This Row],[kW Boundary]]+$BP$13","v":0.37547377734844345},{"$f":"SegmentExceptTable[[#This Row],[Boundary M/L]]+(0.05*SegmentExceptTable[[#This Row],[Boundary M/L]])","v":0.39424746621586559},{"$f":"IF(AND(AND(kwpeak_norm>SegmentExceptTable[[#This Row],[kW Boundary]],kwpeak_norm<SegmentExceptTable[[#This Row],[kW Exception]]),AND(kwhmo_norm>SegmentExceptTable[[#This Row],[Boundary M/L]],kwhmo_norm<SegmentExceptTable[[#This Row],[Exception M/L]])),1,0)","v":0}]
[null,null,null,null,null,null,null,null,null,null,null,null,null,null,null,null,null,null,null,null,null,null,null,null,null,null,null,null,null,null,null,null,null,null,null,null,null,null,null,null,null,null,null,null,null,null,null,248,{"$f":"SegmentExceptTable[[#This Row],[Numbers]]/$BP$4","v":0.41402337228714525},{"$f":"SegmentExceptTable[[#This Row],[kW Boundary]]+(0.05*SegmentExceptTable[[#This Row],[kW Boundary]])","v":0.43472454090150253},{"$f":"$BP$6*SegmentExceptTable[[#This Row],[kW Boundary]]+$BP$7","v":0.58313657455822643},{"$f":"$BP$8*SegmentExceptTable[[#This Row],[kW Boundary]]+$BP$9","v":-9.1299704833262052E-2},{"$f":"SegmentExceptTable[[#This Row],[Boundary S/M]]+(0.05*SegmentExceptTable[[#This Row],[Boundary S/M]])","v":-9.5864690074925152E-2},{"$f":"IF(AND(AND(kwpeak_norm>SegmentExceptTable[[#This Row],[kW Boundary]],kwpeak_norm<SegmentExceptTable[[#This Row],[kW Exception]]),AND(kwhmo_norm>SegmentExceptTable[[#This Row],[Boundary S/M]],kwhmo_norm<SegmentExceptTable[[#This Row],[Exception S/M]])),1,0)","v":0},{"$f":"$BP$10*SegmentExceptTable[[#This Row],[kW Boundary]]+$BP$11","v":0.74476136274540483},{"$f":"$BP$12*SegmentExceptTable[[#This Row],[kW Boundary]]+$BP$13","v":0.37468358232465471},{"$f":"SegmentExceptTable[[#This Row],[Boundary M/L]]+(0.05*SegmentExceptTable[[#This Row],[Boundary M/L]])","v":0.39341776144088747},{"$f":"IF(AND(AND(kwpeak_norm>SegmentExceptTable[[#This Row],[kW Boundary]],kwpeak_norm<SegmentExceptTable[[#This Row],[kW Exception]]),AND(kwhmo_norm>SegmentExceptTable[[#This Row],[Boundary M/L]],kwhmo_norm<SegmentExceptTable[[#This Row],[Exception M/L]])),1,0)","v":0}]
[null,null,null,null,null,null,null,null,null,null,null,null,null,null,null,null,null,null,null,null,null,null,null,null,null,null,null,null,null,null,null,null,null,null,null,null,null,null,null,null,null,null,null,null,null,null,null,249,{"$f":"SegmentExceptTable[[#This Row],[Numbers]]/$BP$4","v":0.41569282136894825},{"$f":"SegmentExceptTable[[#This Row],[kW Boundary]]+(0.05*SegmentExceptTable[[#This Row],[kW Boundary]])","v":0.43647746243739566},{"$f":"$BP$6*SegmentExceptTable[[#This Row],[kW Boundary]]+$BP$7","v":0.58556340485359271},{"$f":"$BP$8*SegmentExceptTable[[#This Row],[kW Boundary]]+$BP$9","v":-9.2448141228692937E-2},{"$f":"SegmentExceptTable[[#This Row],[Boundary S/M]]+(0.05*SegmentExceptTable[[#This Row],[Boundary S/M]])","v":-9.7070548290127581E-2},{"$f":"IF(AND(AND(kwpeak_norm>SegmentExceptTable[[#This Row],[kW Boundary]],kwpeak_norm<SegmentExceptTable[[#This Row],[kW Exception]]),AND(kwhmo_norm>SegmentExceptTable[[#This Row],[Boundary S/M]],kwhmo_norm<SegmentExceptTable[[#This Row],[Exception S/M]])),1,0)","v":0},{"$f":"$BP$10*SegmentExceptTable[[#This Row],[kW Boundary]]+$BP$11","v":0.74828841638764343},{"$f":"$BP$12*SegmentExceptTable[[#This Row],[kW Boundary]]+$BP$13","v":0.37389338730086596},{"$f":"SegmentExceptTable[[#This Row],[Boundary M/L]]+(0.05*SegmentExceptTable[[#This Row],[Boundary M/L]])","v":0.39258805666590924},{"$f":"IF(AND(AND(kwpeak_norm>SegmentExceptTable[[#This Row],[kW Boundary]],kwpeak_norm<SegmentExceptTable[[#This Row],[kW Exception]]),AND(kwhmo_norm>SegmentExceptTable[[#This Row],[Boundary M/L]],kwhmo_norm<SegmentExceptTable[[#This Row],[Exception M/L]])),1,0)","v":0}]
[null,null,null,null,null,null,null,null,null,null,null,null,null,null,null,null,null,null,null,null,null,null,null,null,null,null,null,null,null,null,null,null,null,null,null,null,null,null,null,null,null,null,null,null,null,null,null,250,{"$f":"SegmentExceptTable[[#This Row],[Numbers]]/$BP$4","v":0.41736227045075125},{"$f":"SegmentExceptTable[[#This Row],[kW Boundary]]+(0.05*SegmentExceptTable[[#This Row],[kW Boundary]])","v":0.43823038397328884},{"$f":"$BP$6*SegmentExceptTable[[#This Row],[kW Boundary]]+$BP$7","v":0.58799023514895898},{"$f":"$BP$8*SegmentExceptTable[[#This Row],[kW Boundary]]+$BP$9","v":-9.3596577624123822E-2},{"$f":"SegmentExceptTable[[#This Row],[Boundary S/M]]+(0.05*SegmentExceptTable[[#This Row],[Boundary S/M]])","v":-9.8276406505330011E-2},{"$f":"IF(AND(AND(kwpeak_norm>SegmentExceptTable[[#This Row],[kW Boundary]],kwpeak_norm<SegmentExceptTable[[#This Row],[kW Exception]]),AND(kwhmo_norm>SegmentExceptTable[[#This Row],[Boundary S/M]],kwhmo_norm<SegmentExceptTable[[#This Row],[Exception S/M]])),1,0)","v":0},{"$f":"$BP$10*SegmentExceptTable[[#This Row],[kW Boundary]]+$BP$11","v":0.75181547002988192},{"$f":"$BP$12*SegmentExceptTable[[#This Row],[kW Boundary]]+$BP$13","v":0.37310319227707722},{"$f":"SegmentExceptTable[[#This Row],[Boundary M/L]]+(0.05*SegmentExceptTable[[#This Row],[Boundary M/L]])","v":0.39175835189093111},{"$f":"IF(AND(AND(kwpeak_norm>SegmentExceptTable[[#This Row],[kW Boundary]],kwpeak_norm<SegmentExceptTable[[#This Row],[kW Exception]]),AND(kwhmo_norm>SegmentExceptTable[[#This Row],[Boundary M/L]],kwhmo_norm<SegmentExceptTable[[#This Row],[Exception M/L]])),1,0)","v":0}]
[null,null,null,null,null,null,null,null,null,null,null,null,null,null,null,null,null,null,null,null,null,null,null,null,null,null,null,null,null,null,null,null,null,null,null,null,null,null,null,null,null,null,null,null,null,null,null,251,{"$f":"SegmentExceptTable[[#This Row],[Numbers]]/$BP$4","v":0.41903171953255425},{"$f":"SegmentExceptTable[[#This Row],[kW Boundary]]+(0.05*SegmentExceptTable[[#This Row],[kW Boundary]])","v":0.43998330550918197},{"$f":"$BP$6*SegmentExceptTable[[#This Row],[kW Boundary]]+$BP$7","v":0.59041706544432526},{"$f":"$BP$8*SegmentExceptTable[[#This Row],[kW Boundary]]+$BP$9","v":-9.4745014019554652E-2},{"$f":"SegmentExceptTable[[#This Row],[Boundary S/M]]+(0.05*SegmentExceptTable[[#This Row],[Boundary S/M]])","v":-9.9482264720532385E-2},{"$f":"IF(AND(AND(kwpeak_norm>SegmentExceptTable[[#This Row],[kW Boundary]],kwpeak_norm<SegmentExceptTable[[#This Row],[kW Exception]]),AND(kwhmo_norm>SegmentExceptTable[[#This Row],[Boundary S/M]],kwhmo_norm<SegmentExceptTable[[#This Row],[Exception S/M]])),1,0)","v":0},{"$f":"$BP$10*SegmentExceptTable[[#This Row],[kW Boundary]]+$BP$11","v":0.7553425236721204},{"$f":"$BP$12*SegmentExceptTable[[#This Row],[kW Boundary]]+$BP$13","v":0.37231299725328848},{"$f":"SegmentExceptTable[[#This Row],[Boundary M/L]]+(0.05*SegmentExceptTable[[#This Row],[Boundary M/L]])","v":0.39092864711595288},{"$f":"IF(AND(AND(kwpeak_norm>SegmentExceptTable[[#This Row],[kW Boundary]],kwpeak_norm<SegmentExceptTable[[#This Row],[kW Exception]]),AND(kwhmo_norm>SegmentExceptTable[[#This Row],[Boundary M/L]],kwhmo_norm<SegmentExceptTable[[#This Row],[Exception M/L]])),1,0)","v":0}]
[null,null,null,null,null,null,null,null,null,null,null,null,null,null,null,null,null,null,null,null,null,null,null,null,null,null,null,null,null,null,null,null,null,null,null,null,null,null,null,null,null,null,null,null,null,null,null,252,{"$f":"SegmentExceptTable[[#This Row],[Numbers]]/$BP$4","v":0.42070116861435725},{"$f":"SegmentExceptTable[[#This Row],[kW Boundary]]+(0.05*SegmentExceptTable[[#This Row],[kW Boundary]])","v":0.44173622704507509},{"$f":"$BP$6*SegmentExceptTable[[#This Row],[kW Boundary]]+$BP$7","v":0.59284389573969154},{"$f":"$BP$8*SegmentExceptTable[[#This Row],[kW Boundary]]+$BP$9","v":-9.5893450414985537E-2},{"$f":"SegmentExceptTable[[#This Row],[Boundary S/M]]+(0.05*SegmentExceptTable[[#This Row],[Boundary S/M]])","v":-0.10068812293573481},{"$f":"IF(AND(AND(kwpeak_norm>SegmentExceptTable[[#This Row],[kW Boundary]],kwpeak_norm<SegmentExceptTable[[#This Row],[kW Exception]]),AND(kwhmo_norm>SegmentExceptTable[[#This Row],[Boundary S/M]],kwhmo_norm<SegmentExceptTable[[#This Row],[Exception S/M]])),1,0)","v":0},{"$f":"$BP$10*SegmentExceptTable[[#This Row],[kW Boundary]]+$BP$11","v":0.75886957731435889},{"$f":"$BP$12*SegmentExceptTable[[#This Row],[kW Boundary]]+$BP$13","v":0.37152280222949974},{"$f":"SegmentExceptTable[[#This Row],[Boundary M/L]]+(0.05*SegmentExceptTable[[#This Row],[Boundary M/L]])","v":0.39009894234097475},{"$f":"IF(AND(AND(kwpeak_norm>SegmentExceptTable[[#This Row],[kW Boundary]],kwpeak_norm<SegmentExceptTable[[#This Row],[kW Exception]]),AND(kwhmo_norm>SegmentExceptTable[[#This Row],[Boundary M/L]],kwhmo_norm<SegmentExceptTable[[#This Row],[Exception M/L]])),1,0)","v":0}]
[null,null,null,null,null,null,null,null,null,null,null,null,null,null,null,null,null,null,null,null,null,null,null,null,null,null,null,null,null,null,null,null,null,null,null,null,null,null,null,null,null,null,null,null,null,null,null,253,{"$f":"SegmentExceptTable[[#This Row],[Numbers]]/$BP$4","v":0.42237061769616024},{"$f":"SegmentExceptTable[[#This Row],[kW Boundary]]+(0.05*SegmentExceptTable[[#This Row],[kW Boundary]])","v":0.44348914858096827},{"$f":"$BP$6*SegmentExceptTable[[#This Row],[kW Boundary]]+$BP$7","v":0.59527072603505782},{"$f":"$BP$8*SegmentExceptTable[[#This Row],[kW Boundary]]+$BP$9","v":-9.7041886810416422E-2},{"$f":"SegmentExceptTable[[#This Row],[Boundary S/M]]+(0.05*SegmentExceptTable[[#This Row],[Boundary S/M]])","v":-0.10189398115093724},{"$f":"IF(AND(AND(kwpeak_norm>SegmentExceptTable[[#This Row],[kW Boundary]],kwpeak_norm<SegmentExceptTable[[#This Row],[kW Exception]]),AND(kwhmo_norm>SegmentExceptTable[[#This Row],[Boundary S/M]],kwhmo_norm<SegmentExceptTable[[#This Row],[Exception S/M]])),1,0)","v":0},{"$f":"$BP$10*SegmentExceptTable[[#This Row],[kW Boundary]]+$BP$11","v":0.76239663095659749},{"$f":"$BP$12*SegmentExceptTable[[#This Row],[kW Boundary]]+$BP$13","v":0.370732607205711},{"$f":"SegmentExceptTable[[#This Row],[Boundary M/L]]+(0.05*SegmentExceptTable[[#This Row],[Boundary M/L]])","v":0.38926923756599652},{"$f":"IF(AND(AND(kwpeak_norm>SegmentExceptTable[[#This Row],[kW Boundary]],kwpeak_norm<SegmentExceptTable[[#This Row],[kW Exception]]),AND(kwhmo_norm>SegmentExceptTable[[#This Row],[Boundary M/L]],kwhmo_norm<SegmentExceptTable[[#This Row],[Exception M/L]])),1,0)","v":0}]
[null,null,null,null,null,null,null,null,null,null,null,null,null,null,null,null,null,null,null,null,null,null,null,null,null,null,null,null,null,null,null,null,null,null,null,null,null,null,null,null,null,null,null,null,null,null,null,254,{"$f":"SegmentExceptTable[[#This Row],[Numbers]]/$BP$4","v":0.4240400667779633},{"$f":"SegmentExceptTable[[#This Row],[kW Boundary]]+(0.05*SegmentExceptTable[[#This Row],[kW Boundary]])","v":0.44524207011686145},{"$f":"$BP$6*SegmentExceptTable[[#This Row],[kW Boundary]]+$BP$7","v":0.5976975563304241},{"$f":"$BP$8*SegmentExceptTable[[#This Row],[kW Boundary]]+$BP$9","v":-9.8190323205847307E-2},{"$f":"SegmentExceptTable[[#This Row],[Boundary S/M]]+(0.05*SegmentExceptTable[[#This Row],[Boundary S/M]])","v":-0.10309983936613967},{"$f":"IF(AND(AND(kwpeak_norm>SegmentExceptTable[[#This Row],[kW Boundary]],kwpeak_norm<SegmentExceptTable[[#This Row],[kW Exception]]),AND(kwhmo_norm>SegmentExceptTable[[#This Row],[Boundary S/M]],kwhmo_norm<SegmentExceptTable[[#This Row],[Exception S/M]])),1,0)","v":0},{"$f":"$BP$10*SegmentExceptTable[[#This Row],[kW Boundary]]+$BP$11","v":0.76592368459883609},{"$f":"$BP$12*SegmentExceptTable[[#This Row],[kW Boundary]]+$BP$13","v":0.3699424121819222},{"$f":"SegmentExceptTable[[#This Row],[Boundary M/L]]+(0.05*SegmentExceptTable[[#This Row],[Boundary M/L]])","v":0.38843953279101828},{"$f":"IF(AND(AND(kwpeak_norm>SegmentExceptTable[[#This Row],[kW Boundary]],kwpeak_norm<SegmentExceptTable[[#This Row],[kW Exception]]),AND(kwhmo_norm>SegmentExceptTable[[#This Row],[Boundary M/L]],kwhmo_norm<SegmentExceptTable[[#This Row],[Exception M/L]])),1,0)","v":0}]
[null,null,null,null,null,null,null,null,null,null,null,null,null,null,null,null,null,null,null,null,null,null,null,null,null,null,null,null,null,null,null,null,null,null,null,null,null,null,null,null,null,null,null,null,null,null,null,255,{"$f":"SegmentExceptTable[[#This Row],[Numbers]]/$BP$4","v":0.4257095158597663},{"$f":"SegmentExceptTable[[#This Row],[kW Boundary]]+(0.05*SegmentExceptTable[[#This Row],[kW Boundary]])","v":0.44699499165275464},{"$f":"$BP$6*SegmentExceptTable[[#This Row],[kW Boundary]]+$BP$7","v":0.60012438662579037},{"$f":"$BP$8*SegmentExceptTable[[#This Row],[kW Boundary]]+$BP$9","v":-9.9338759601278193E-2},{"$f":"SegmentExceptTable[[#This Row],[Boundary S/M]]+(0.05*SegmentExceptTable[[#This Row],[Boundary S/M]])","v":-0.1043056975813421},{"$f":"IF(AND(AND(kwpeak_norm>SegmentExceptTable[[#This Row],[kW Boundary]],kwpeak_norm<SegmentExceptTable[[#This Row],[kW Exception]]),AND(kwhmo_norm>SegmentExceptTable[[#This Row],[Boundary S/M]],kwhmo_norm<SegmentExceptTable[[#This Row],[Exception S/M]])),1,0)","v":0},{"$f":"$BP$10*SegmentExceptTable[[#This Row],[kW Boundary]]+$BP$11","v":0.76945073824107457},{"$f":"$BP$12*SegmentExceptTable[[#This Row],[kW Boundary]]+$BP$13","v":0.3691522171581334},{"$f":"SegmentExceptTable[[#This Row],[Boundary M/L]]+(0.05*SegmentExceptTable[[#This Row],[Boundary M/L]])","v":0.38760982801604005},{"$f":"IF(AND(AND(kwpeak_norm>SegmentExceptTable[[#This Row],[kW Boundary]],kwpeak_norm<SegmentExceptTable[[#This Row],[kW Exception]]),AND(kwhmo_norm>SegmentExceptTable[[#This Row],[Boundary M/L]],kwhmo_norm<SegmentExceptTable[[#This Row],[Exception M/L]])),1,0)","v":0}]
[null,null,null,null,null,null,null,null,null,null,null,null,null,null,null,null,null,null,null,null,null,null,null,null,null,null,null,null,null,null,null,null,null,null,null,null,null,null,null,null,null,null,null,null,null,null,null,256,{"$f":"SegmentExceptTable[[#This Row],[Numbers]]/$BP$4","v":0.42737896494156929},{"$f":"SegmentExceptTable[[#This Row],[kW Boundary]]+(0.05*SegmentExceptTable[[#This Row],[kW Boundary]])","v":0.44874791318864776},{"$f":"$BP$6*SegmentExceptTable[[#This Row],[kW Boundary]]+$BP$7","v":0.60255121692115665},{"$f":"$BP$8*SegmentExceptTable[[#This Row],[kW Boundary]]+$BP$9","v":-0.10048719599670908},{"$f":"SegmentExceptTable[[#This Row],[Boundary S/M]]+(0.05*SegmentExceptTable[[#This Row],[Boundary S/M]])","v":-0.10551155579654453},{"$f":"IF(AND(AND(kwpeak_norm>SegmentExceptTable[[#This Row],[kW Boundary]],kwpeak_norm<SegmentExceptTable[[#This Row],[kW Exception]]),AND(kwhmo_norm>SegmentExceptTable[[#This Row],[Boundary S/M]],kwhmo_norm<SegmentExceptTable[[#This Row],[Exception S/M]])),1,0)","v":0},{"$f":"$BP$10*SegmentExceptTable[[#This Row],[kW Boundary]]+$BP$11","v":0.77297779188331317},{"$f":"$BP$12*SegmentExceptTable[[#This Row],[kW Boundary]]+$BP$13","v":0.36836202213434466},{"$f":"SegmentExceptTable[[#This Row],[Boundary M/L]]+(0.05*SegmentExceptTable[[#This Row],[Boundary M/L]])","v":0.38678012324106187},{"$f":"IF(AND(AND(kwpeak_norm>SegmentExceptTable[[#This Row],[kW Boundary]],kwpeak_norm<SegmentExceptTable[[#This Row],[kW Exception]]),AND(kwhmo_norm>SegmentExceptTable[[#This Row],[Boundary M/L]],kwhmo_norm<SegmentExceptTable[[#This Row],[Exception M/L]])),1,0)","v":0}]
[null,null,null,null,null,null,null,null,null,null,null,null,null,null,null,null,null,null,null,null,null,null,null,null,null,null,null,null,null,null,null,null,null,null,null,null,null,null,null,null,null,null,null,null,null,null,null,257,{"$f":"SegmentExceptTable[[#This Row],[Numbers]]/$BP$4","v":0.42904841402337229},{"$f":"SegmentExceptTable[[#This Row],[kW Boundary]]+(0.05*SegmentExceptTable[[#This Row],[kW Boundary]])","v":0.45050083472454089},{"$f":"$BP$6*SegmentExceptTable[[#This Row],[kW Boundary]]+$BP$7","v":0.60497804721652293},{"$f":"$BP$8*SegmentExceptTable[[#This Row],[kW Boundary]]+$BP$9","v":-0.10163563239213996},{"$f":"SegmentExceptTable[[#This Row],[Boundary S/M]]+(0.05*SegmentExceptTable[[#This Row],[Boundary S/M]])","v":-0.10671741401174696},{"$f":"IF(AND(AND(kwpeak_norm>SegmentExceptTable[[#This Row],[kW Boundary]],kwpeak_norm<SegmentExceptTable[[#This Row],[kW Exception]]),AND(kwhmo_norm>SegmentExceptTable[[#This Row],[Boundary S/M]],kwhmo_norm<SegmentExceptTable[[#This Row],[Exception S/M]])),1,0)","v":0},{"$f":"$BP$10*SegmentExceptTable[[#This Row],[kW Boundary]]+$BP$11","v":0.77650484552555166},{"$f":"$BP$12*SegmentExceptTable[[#This Row],[kW Boundary]]+$BP$13","v":0.36757182711055592},{"$f":"SegmentExceptTable[[#This Row],[Boundary M/L]]+(0.05*SegmentExceptTable[[#This Row],[Boundary M/L]])","v":0.38595041846608369},{"$f":"IF(AND(AND(kwpeak_norm>SegmentExceptTable[[#This Row],[kW Boundary]],kwpeak_norm<SegmentExceptTable[[#This Row],[kW Exception]]),AND(kwhmo_norm>SegmentExceptTable[[#This Row],[Boundary M/L]],kwhmo_norm<SegmentExceptTable[[#This Row],[Exception M/L]])),1,0)","v":0}]
[null,null,null,null,null,null,null,null,null,null,null,null,null,null,null,null,null,null,null,null,null,null,null,null,null,null,null,null,null,null,null,null,null,null,null,null,null,null,null,null,null,null,null,null,null,null,null,258,{"$f":"SegmentExceptTable[[#This Row],[Numbers]]/$BP$4","v":0.43071786310517529},{"$f":"SegmentExceptTable[[#This Row],[kW Boundary]]+(0.05*SegmentExceptTable[[#This Row],[kW Boundary]])","v":0.45225375626043407},{"$f":"$BP$6*SegmentExceptTable[[#This Row],[kW Boundary]]+$BP$7","v":0.60740487751188921},{"$f":"$BP$8*SegmentExceptTable[[#This Row],[kW Boundary]]+$BP$9","v":-0.10278406878757079},{"$f":"SegmentExceptTable[[#This Row],[Boundary S/M]]+(0.05*SegmentExceptTable[[#This Row],[Boundary S/M]])","v":-0.10792327222694933},{"$f":"IF(AND(AND(kwpeak_norm>SegmentExceptTable[[#This Row],[kW Boundary]],kwpeak_norm<SegmentExceptTable[[#This Row],[kW Exception]]),AND(kwhmo_norm>SegmentExceptTable[[#This Row],[Boundary S/M]],kwhmo_norm<SegmentExceptTable[[#This Row],[Exception S/M]])),1,0)","v":0},{"$f":"$BP$10*SegmentExceptTable[[#This Row],[kW Boundary]]+$BP$11","v":0.78003189916779014},{"$f":"$BP$12*SegmentExceptTable[[#This Row],[kW Boundary]]+$BP$13","v":0.36678163208676717},{"$f":"SegmentExceptTable[[#This Row],[Boundary M/L]]+(0.05*SegmentExceptTable[[#This Row],[Boundary M/L]])","v":0.38512071369110551},{"$f":"IF(AND(AND(kwpeak_norm>SegmentExceptTable[[#This Row],[kW Boundary]],kwpeak_norm<SegmentExceptTable[[#This Row],[kW Exception]]),AND(kwhmo_norm>SegmentExceptTable[[#This Row],[Boundary M/L]],kwhmo_norm<SegmentExceptTable[[#This Row],[Exception M/L]])),1,0)","v":0}]
[null,null,null,null,null,null,null,null,null,null,null,null,null,null,null,null,null,null,null,null,null,null,null,null,null,null,null,null,null,null,null,null,null,null,null,null,null,null,null,null,null,null,null,null,null,null,null,259,{"$f":"SegmentExceptTable[[#This Row],[Numbers]]/$BP$4","v":0.43238731218697829},{"$f":"SegmentExceptTable[[#This Row],[kW Boundary]]+(0.05*SegmentExceptTable[[#This Row],[kW Boundary]])","v":0.4540066777963272},{"$f":"$BP$6*SegmentExceptTable[[#This Row],[kW Boundary]]+$BP$7","v":0.60983170780725549},{"$f":"$BP$8*SegmentExceptTable[[#This Row],[kW Boundary]]+$BP$9","v":-0.10393250518300168},{"$f":"SegmentExceptTable[[#This Row],[Boundary S/M]]+(0.05*SegmentExceptTable[[#This Row],[Boundary S/M]])","v":-0.10912913044215176},{"$f":"IF(AND(AND(kwpeak_norm>SegmentExceptTable[[#This Row],[kW Boundary]],kwpeak_norm<SegmentExceptTable[[#This Row],[kW Exception]]),AND(kwhmo_norm>SegmentExceptTable[[#This Row],[Boundary S/M]],kwhmo_norm<SegmentExceptTable[[#This Row],[Exception S/M]])),1,0)","v":0},{"$f":"$BP$10*SegmentExceptTable[[#This Row],[kW Boundary]]+$BP$11","v":0.78355895281002863},{"$f":"$BP$12*SegmentExceptTable[[#This Row],[kW Boundary]]+$BP$13","v":0.36599143706297843},{"$f":"SegmentExceptTable[[#This Row],[Boundary M/L]]+(0.05*SegmentExceptTable[[#This Row],[Boundary M/L]])","v":0.38429100891612733},{"$f":"IF(AND(AND(kwpeak_norm>SegmentExceptTable[[#This Row],[kW Boundary]],kwpeak_norm<SegmentExceptTable[[#This Row],[kW Exception]]),AND(kwhmo_norm>SegmentExceptTable[[#This Row],[Boundary M/L]],kwhmo_norm<SegmentExceptTable[[#This Row],[Exception M/L]])),1,0)","v":0}]
[null,null,null,null,null,null,null,null,null,null,null,null,null,null,null,null,null,null,null,null,null,null,null,null,null,null,null,null,null,null,null,null,null,null,null,null,null,null,null,null,null,null,null,null,null,null,null,2120,{"$f":"SegmentExceptTable[[#This Row],[Numbers]]/$BP$4","v":3.5392320534223707},{"$f":"SegmentExceptTable[[#This Row],[kW Boundary]]+(0.05*SegmentExceptTable[[#This Row],[kW Boundary]])","v":3.7161936560934894},{"$f":"$BP$6*SegmentExceptTable[[#This Row],[kW Boundary]]+$BP$7","v":5.1261628874838987},{"$f":"$BP$8*SegmentExceptTable[[#This Row],[kW Boundary]]+$BP$9","v":-2.2411726370798619},{"$f":"SegmentExceptTable[[#This Row],[Boundary S/M]]+(0.05*SegmentExceptTable[[#This Row],[Boundary S/M]])","v":-2.3532312689338548},{"$f":"IF(AND(AND(kwpeak_norm>SegmentExceptTable[[#This Row],[kW Boundary]],kwpeak_norm<SegmentExceptTable[[#This Row],[kW Exception]]),AND(kwhmo_norm>SegmentExceptTable[[#This Row],[Boundary S/M]],kwhmo_norm<SegmentExceptTable[[#This Row],[Exception S/M]])),1,0)","v":0},{"$f":"$BP$10*SegmentExceptTable[[#This Row],[kW Boundary]]+$BP$11","v":7.3474057810159321},{"$f":"$BP$12*SegmentExceptTable[[#This Row],[kW Boundary]]+$BP$13","v":-1.1045615022078983},{"$f":"SegmentExceptTable[[#This Row],[Boundary M/L]]+(0.05*SegmentExceptTable[[#This Row],[Boundary M/L]])","v":-1.1597895773182931},{"$f":"IF(AND(AND(kwpeak_norm>SegmentExceptTable[[#This Row],[kW Boundary]],kwpeak_norm<SegmentExceptTable[[#This Row],[kW Exception]]),AND(kwhmo_norm>SegmentExceptTable[[#This Row],[Boundary M/L]],kwhmo_norm<SegmentExceptTable[[#This Row],[Exception M/L]])),1,0)","v":0}]
[null,null,null,null,null,null,null,null,null,null,null,null,null,null,null,null,null,null,null,null,null,null,null,null,null,null,null,null,null,null,null,null,null,null,null,null,null,null,null,null,null,null,null,null,null,null,null,261,{"$f":"SegmentExceptTable[[#This Row],[Numbers]]/$BP$4","v":0.43572621035058429},{"$f":"SegmentExceptTable[[#This Row],[kW Boundary]]+(0.05*SegmentExceptTable[[#This Row],[kW Boundary]])","v":0.4575125208681135},{"$f":"$BP$6*SegmentExceptTable[[#This Row],[kW Boundary]]+$BP$7","v":0.61468536839798804},{"$f":"$BP$8*SegmentExceptTable[[#This Row],[kW Boundary]]+$BP$9","v":-0.10622937797386345},{"$f":"SegmentExceptTable[[#This Row],[Boundary S/M]]+(0.05*SegmentExceptTable[[#This Row],[Boundary S/M]])","v":-0.11154084687255662},{"$f":"IF(AND(AND(kwpeak_norm>SegmentExceptTable[[#This Row],[kW Boundary]],kwpeak_norm<SegmentExceptTable[[#This Row],[kW Exception]]),AND(kwhmo_norm>SegmentExceptTable[[#This Row],[Boundary S/M]],kwhmo_norm<SegmentExceptTable[[#This Row],[Exception S/M]])),1,0)","v":0},{"$f":"$BP$10*SegmentExceptTable[[#This Row],[kW Boundary]]+$BP$11","v":0.79061306009450572},{"$f":"$BP$12*SegmentExceptTable[[#This Row],[kW Boundary]]+$BP$13","v":0.36441104701540095},{"$f":"SegmentExceptTable[[#This Row],[Boundary M/L]]+(0.05*SegmentExceptTable[[#This Row],[Boundary M/L]])","v":0.38263159936617097},{"$f":"IF(AND(AND(kwpeak_norm>SegmentExceptTable[[#This Row],[kW Boundary]],kwpeak_norm<SegmentExceptTable[[#This Row],[kW Exception]]),AND(kwhmo_norm>SegmentExceptTable[[#This Row],[Boundary M/L]],kwhmo_norm<SegmentExceptTable[[#This Row],[Exception M/L]])),1,0)","v":0}]
[null,null,null,null,null,null,null,null,null,null,null,null,null,null,null,null,null,null,null,null,null,null,null,null,null,null,null,null,null,null,null,null,null,null,null,null,null,null,null,null,null,null,null,null,null,null,null,262,{"$f":"SegmentExceptTable[[#This Row],[Numbers]]/$BP$4","v":0.43739565943238728},{"$f":"SegmentExceptTable[[#This Row],[kW Boundary]]+(0.05*SegmentExceptTable[[#This Row],[kW Boundary]])","v":0.45926544240400663},{"$f":"$BP$6*SegmentExceptTable[[#This Row],[kW Boundary]]+$BP$7","v":0.61711219869335432},{"$f":"$BP$8*SegmentExceptTable[[#This Row],[kW Boundary]]+$BP$9","v":-0.10737781436929428},{"$f":"SegmentExceptTable[[#This Row],[Boundary S/M]]+(0.05*SegmentExceptTable[[#This Row],[Boundary S/M]])","v":-0.112746705087759},{"$f":"IF(AND(AND(kwpeak_norm>SegmentExceptTable[[#This Row],[kW Boundary]],kwpeak_norm<SegmentExceptTable[[#This Row],[kW Exception]]),AND(kwhmo_norm>SegmentExceptTable[[#This Row],[Boundary S/M]],kwhmo_norm<SegmentExceptTable[[#This Row],[Exception S/M]])),1,0)","v":0},{"$f":"$BP$10*SegmentExceptTable[[#This Row],[kW Boundary]]+$BP$11","v":0.7941401137367442},{"$f":"$BP$12*SegmentExceptTable[[#This Row],[kW Boundary]]+$BP$13","v":0.36362085199161215},{"$f":"SegmentExceptTable[[#This Row],[Boundary M/L]]+(0.05*SegmentExceptTable[[#This Row],[Boundary M/L]])","v":0.38180189459119274},{"$f":"IF(AND(AND(kwpeak_norm>SegmentExceptTable[[#This Row],[kW Boundary]],kwpeak_norm<SegmentExceptTable[[#This Row],[kW Exception]]),AND(kwhmo_norm>SegmentExceptTable[[#This Row],[Boundary M/L]],kwhmo_norm<SegmentExceptTable[[#This Row],[Exception M/L]])),1,0)","v":0}]
[null,null,null,null,null,null,null,null,null,null,null,null,null,null,null,null,null,null,null,null,null,null,null,null,null,null,null,null,null,null,null,null,null,null,null,null,null,null,null,null,null,null,null,null,null,null,null,263,{"$f":"SegmentExceptTable[[#This Row],[Numbers]]/$BP$4","v":0.43906510851419034},{"$f":"SegmentExceptTable[[#This Row],[kW Boundary]]+(0.05*SegmentExceptTable[[#This Row],[kW Boundary]])","v":0.46101836393989987},{"$f":"$BP$6*SegmentExceptTable[[#This Row],[kW Boundary]]+$BP$7","v":0.6195390289887206},{"$f":"$BP$8*SegmentExceptTable[[#This Row],[kW Boundary]]+$BP$9","v":-0.10852625076472522},{"$f":"SegmentExceptTable[[#This Row],[Boundary S/M]]+(0.05*SegmentExceptTable[[#This Row],[Boundary S/M]])","v":-0.11395256330296148},{"$f":"IF(AND(AND(kwpeak_norm>SegmentExceptTable[[#This Row],[kW Boundary]],kwpeak_norm<SegmentExceptTable[[#This Row],[kW Exception]]),AND(kwhmo_norm>SegmentExceptTable[[#This Row],[Boundary S/M]],kwhmo_norm<SegmentExceptTable[[#This Row],[Exception S/M]])),1,0)","v":0},{"$f":"$BP$10*SegmentExceptTable[[#This Row],[kW Boundary]]+$BP$11","v":0.7976671673789828},{"$f":"$BP$12*SegmentExceptTable[[#This Row],[kW Boundary]]+$BP$13","v":0.36283065696782335},{"$f":"SegmentExceptTable[[#This Row],[Boundary M/L]]+(0.05*SegmentExceptTable[[#This Row],[Boundary M/L]])","v":0.3809721898162145},{"$f":"IF(AND(AND(kwpeak_norm>SegmentExceptTable[[#This Row],[kW Boundary]],kwpeak_norm<SegmentExceptTable[[#This Row],[kW Exception]]),AND(kwhmo_norm>SegmentExceptTable[[#This Row],[Boundary M/L]],kwhmo_norm<SegmentExceptTable[[#This Row],[Exception M/L]])),1,0)","v":0}]
[null,null,null,null,null,null,null,null,null,null,null,null,null,null,null,null,null,null,null,null,null,null,null,null,null,null,null,null,null,null,null,null,null,null,null,null,null,null,null,null,null,null,null,null,null,null,null,264,{"$f":"SegmentExceptTable[[#This Row],[Numbers]]/$BP$4","v":0.44073455759599334},{"$f":"SegmentExceptTable[[#This Row],[kW Boundary]]+(0.05*SegmentExceptTable[[#This Row],[kW Boundary]])","v":0.46277128547579299},{"$f":"$BP$6*SegmentExceptTable[[#This Row],[kW Boundary]]+$BP$7","v":0.62196585928408687},{"$f":"$BP$8*SegmentExceptTable[[#This Row],[kW Boundary]]+$BP$9","v":-0.1096746871601561},{"$f":"SegmentExceptTable[[#This Row],[Boundary S/M]]+(0.05*SegmentExceptTable[[#This Row],[Boundary S/M]])","v":-0.11515842151816391},{"$f":"IF(AND(AND(kwpeak_norm>SegmentExceptTable[[#This Row],[kW Boundary]],kwpeak_norm<SegmentExceptTable[[#This Row],[kW Exception]]),AND(kwhmo_norm>SegmentExceptTable[[#This Row],[Boundary S/M]],kwhmo_norm<SegmentExceptTable[[#This Row],[Exception S/M]])),1,0)","v":0},{"$f":"$BP$10*SegmentExceptTable[[#This Row],[kW Boundary]]+$BP$11","v":0.8011942210212214},{"$f":"$BP$12*SegmentExceptTable[[#This Row],[kW Boundary]]+$BP$13","v":0.36204046194403461},{"$f":"SegmentExceptTable[[#This Row],[Boundary M/L]]+(0.05*SegmentExceptTable[[#This Row],[Boundary M/L]])","v":0.38014248504123632},{"$f":"IF(AND(AND(kwpeak_norm>SegmentExceptTable[[#This Row],[kW Boundary]],kwpeak_norm<SegmentExceptTable[[#This Row],[kW Exception]]),AND(kwhmo_norm>SegmentExceptTable[[#This Row],[Boundary M/L]],kwhmo_norm<SegmentExceptTable[[#This Row],[Exception M/L]])),1,0)","v":0}]
[null,null,null,null,null,null,null,null,null,null,null,null,null,null,null,null,null,null,null,null,null,null,null,null,null,null,null,null,null,null,null,null,null,null,null,null,null,null,null,null,null,null,null,null,null,null,null,265,{"$f":"SegmentExceptTable[[#This Row],[Numbers]]/$BP$4","v":0.44240400667779634},{"$f":"SegmentExceptTable[[#This Row],[kW Boundary]]+(0.05*SegmentExceptTable[[#This Row],[kW Boundary]])","v":0.46452420701168617},{"$f":"$BP$6*SegmentExceptTable[[#This Row],[kW Boundary]]+$BP$7","v":0.62439268957945315},{"$f":"$BP$8*SegmentExceptTable[[#This Row],[kW Boundary]]+$BP$9","v":-0.11082312355558693},{"$f":"SegmentExceptTable[[#This Row],[Boundary S/M]]+(0.05*SegmentExceptTable[[#This Row],[Boundary S/M]])","v":-0.11636427973336629},{"$f":"IF(AND(AND(kwpeak_norm>SegmentExceptTable[[#This Row],[kW Boundary]],kwpeak_norm<SegmentExceptTable[[#This Row],[kW Exception]]),AND(kwhmo_norm>SegmentExceptTable[[#This Row],[Boundary S/M]],kwhmo_norm<SegmentExceptTable[[#This Row],[Exception S/M]])),1,0)","v":0},{"$f":"$BP$10*SegmentExceptTable[[#This Row],[kW Boundary]]+$BP$11","v":0.80472127466345988},{"$f":"$BP$12*SegmentExceptTable[[#This Row],[kW Boundary]]+$BP$13","v":0.36125026692024587},{"$f":"SegmentExceptTable[[#This Row],[Boundary M/L]]+(0.05*SegmentExceptTable[[#This Row],[Boundary M/L]])","v":0.37931278026625814},{"$f":"IF(AND(AND(kwpeak_norm>SegmentExceptTable[[#This Row],[kW Boundary]],kwpeak_norm<SegmentExceptTable[[#This Row],[kW Exception]]),AND(kwhmo_norm>SegmentExceptTable[[#This Row],[Boundary M/L]],kwhmo_norm<SegmentExceptTable[[#This Row],[Exception M/L]])),1,0)","v":0}]
[null,null,null,null,null,null,null,null,null,null,null,null,null,null,null,null,null,null,null,null,null,null,null,null,null,null,null,null,null,null,null,null,null,null,null,null,null,null,null,null,null,null,null,null,null,null,null,266,{"$f":"SegmentExceptTable[[#This Row],[Numbers]]/$BP$4","v":0.44407345575959933},{"$f":"SegmentExceptTable[[#This Row],[kW Boundary]]+(0.05*SegmentExceptTable[[#This Row],[kW Boundary]])","v":0.4662771285475793},{"$f":"$BP$6*SegmentExceptTable[[#This Row],[kW Boundary]]+$BP$7","v":0.62681951987481943},{"$f":"$BP$8*SegmentExceptTable[[#This Row],[kW Boundary]]+$BP$9","v":-0.11197155995101782},{"$f":"SegmentExceptTable[[#This Row],[Boundary S/M]]+(0.05*SegmentExceptTable[[#This Row],[Boundary S/M]])","v":-0.11757013794856871},{"$f":"IF(AND(AND(kwpeak_norm>SegmentExceptTable[[#This Row],[kW Boundary]],kwpeak_norm<SegmentExceptTable[[#This Row],[kW Exception]]),AND(kwhmo_norm>SegmentExceptTable[[#This Row],[Boundary S/M]],kwhmo_norm<SegmentExceptTable[[#This Row],[Exception S/M]])),1,0)","v":0},{"$f":"$BP$10*SegmentExceptTable[[#This Row],[kW Boundary]]+$BP$11","v":0.80824832830569837},{"$f":"$BP$12*SegmentExceptTable[[#This Row],[kW Boundary]]+$BP$13","v":0.36046007189645712},{"$f":"SegmentExceptTable[[#This Row],[Boundary M/L]]+(0.05*SegmentExceptTable[[#This Row],[Boundary M/L]])","v":0.37848307549127996},{"$f":"IF(AND(AND(kwpeak_norm>SegmentExceptTable[[#This Row],[kW Boundary]],kwpeak_norm<SegmentExceptTable[[#This Row],[kW Exception]]),AND(kwhmo_norm>SegmentExceptTable[[#This Row],[Boundary M/L]],kwhmo_norm<SegmentExceptTable[[#This Row],[Exception M/L]])),1,0)","v":0}]
[null,null,null,null,null,null,null,null,null,null,null,null,null,null,null,null,null,null,null,null,null,null,null,null,null,null,null,null,null,null,null,null,null,null,null,null,null,null,null,null,null,null,null,null,null,null,null,267,{"$f":"SegmentExceptTable[[#This Row],[Numbers]]/$BP$4","v":0.44574290484140233},{"$f":"SegmentExceptTable[[#This Row],[kW Boundary]]+(0.05*SegmentExceptTable[[#This Row],[kW Boundary]])","v":0.46803005008347243},{"$f":"$BP$6*SegmentExceptTable[[#This Row],[kW Boundary]]+$BP$7","v":0.62924635017018571},{"$f":"$BP$8*SegmentExceptTable[[#This Row],[kW Boundary]]+$BP$9","v":-0.1131199963464487},{"$f":"SegmentExceptTable[[#This Row],[Boundary S/M]]+(0.05*SegmentExceptTable[[#This Row],[Boundary S/M]])","v":-0.11877599616377114},{"$f":"IF(AND(AND(kwpeak_norm>SegmentExceptTable[[#This Row],[kW Boundary]],kwpeak_norm<SegmentExceptTable[[#This Row],[kW Exception]]),AND(kwhmo_norm>SegmentExceptTable[[#This Row],[Boundary S/M]],kwhmo_norm<SegmentExceptTable[[#This Row],[Exception S/M]])),1,0)","v":0},{"$f":"$BP$10*SegmentExceptTable[[#This Row],[kW Boundary]]+$BP$11","v":0.81177538194793686},{"$f":"$BP$12*SegmentExceptTable[[#This Row],[kW Boundary]]+$BP$13","v":0.35966987687266838},{"$f":"SegmentExceptTable[[#This Row],[Boundary M/L]]+(0.05*SegmentExceptTable[[#This Row],[Boundary M/L]])","v":0.37765337071630178},{"$f":"IF(AND(AND(kwpeak_norm>SegmentExceptTable[[#This Row],[kW Boundary]],kwpeak_norm<SegmentExceptTable[[#This Row],[kW Exception]]),AND(kwhmo_norm>SegmentExceptTable[[#This Row],[Boundary M/L]],kwhmo_norm<SegmentExceptTable[[#This Row],[Exception M/L]])),1,0)","v":0}]
[null,null,null,null,null,null,null,null,null,null,null,null,null,null,null,null,null,null,null,null,null,null,null,null,null,null,null,null,null,null,null,null,null,null,null,null,null,null,null,null,null,null,null,null,null,null,null,268,{"$f":"SegmentExceptTable[[#This Row],[Numbers]]/$BP$4","v":0.44741235392320533},{"$f":"SegmentExceptTable[[#This Row],[kW Boundary]]+(0.05*SegmentExceptTable[[#This Row],[kW Boundary]])","v":0.46978297161936561},{"$f":"$BP$6*SegmentExceptTable[[#This Row],[kW Boundary]]+$BP$7","v":0.63167318046555199},{"$f":"$BP$8*SegmentExceptTable[[#This Row],[kW Boundary]]+$BP$9","v":-0.11426843274187959},{"$f":"SegmentExceptTable[[#This Row],[Boundary S/M]]+(0.05*SegmentExceptTable[[#This Row],[Boundary S/M]])","v":-0.11998185437897357},{"$f":"IF(AND(AND(kwpeak_norm>SegmentExceptTable[[#This Row],[kW Boundary]],kwpeak_norm<SegmentExceptTable[[#This Row],[kW Exception]]),AND(kwhmo_norm>SegmentExceptTable[[#This Row],[Boundary S/M]],kwhmo_norm<SegmentExceptTable[[#This Row],[Exception S/M]])),1,0)","v":0},{"$f":"$BP$10*SegmentExceptTable[[#This Row],[kW Boundary]]+$BP$11","v":0.81530243559017546},{"$f":"$BP$12*SegmentExceptTable[[#This Row],[kW Boundary]]+$BP$13","v":0.35887968184887964},{"$f":"SegmentExceptTable[[#This Row],[Boundary M/L]]+(0.05*SegmentExceptTable[[#This Row],[Boundary M/L]])","v":0.3768236659413236},{"$f":"IF(AND(AND(kwpeak_norm>SegmentExceptTable[[#This Row],[kW Boundary]],kwpeak_norm<SegmentExceptTable[[#This Row],[kW Exception]]),AND(kwhmo_norm>SegmentExceptTable[[#This Row],[Boundary M/L]],kwhmo_norm<SegmentExceptTable[[#This Row],[Exception M/L]])),1,0)","v":0}]
[null,null,null,null,null,null,null,null,null,null,null,null,null,null,null,null,null,null,null,null,null,null,null,null,null,null,null,null,null,null,null,null,null,null,null,null,null,null,null,null,null,null,null,null,null,null,null,269,{"$f":"SegmentExceptTable[[#This Row],[Numbers]]/$BP$4","v":0.44908180300500833},{"$f":"SegmentExceptTable[[#This Row],[kW Boundary]]+(0.05*SegmentExceptTable[[#This Row],[kW Boundary]])","v":0.47153589315525873},{"$f":"$BP$6*SegmentExceptTable[[#This Row],[kW Boundary]]+$BP$7","v":0.63410001076091826},{"$f":"$BP$8*SegmentExceptTable[[#This Row],[kW Boundary]]+$BP$9","v":-0.11541686913731042},{"$f":"SegmentExceptTable[[#This Row],[Boundary S/M]]+(0.05*SegmentExceptTable[[#This Row],[Boundary S/M]])","v":-0.12118771259417593},{"$f":"IF(AND(AND(kwpeak_norm>SegmentExceptTable[[#This Row],[kW Boundary]],kwpeak_norm<SegmentExceptTable[[#This Row],[kW Exception]]),AND(kwhmo_norm>SegmentExceptTable[[#This Row],[Boundary S/M]],kwhmo_norm<SegmentExceptTable[[#This Row],[Exception S/M]])),1,0)","v":0},{"$f":"$BP$10*SegmentExceptTable[[#This Row],[kW Boundary]]+$BP$11","v":0.81882948923241394},{"$f":"$BP$12*SegmentExceptTable[[#This Row],[kW Boundary]]+$BP$13","v":0.35808948682509084},{"$f":"SegmentExceptTable[[#This Row],[Boundary M/L]]+(0.05*SegmentExceptTable[[#This Row],[Boundary M/L]])","v":0.37599396116634537},{"$f":"IF(AND(AND(kwpeak_norm>SegmentExceptTable[[#This Row],[kW Boundary]],kwpeak_norm<SegmentExceptTable[[#This Row],[kW Exception]]),AND(kwhmo_norm>SegmentExceptTable[[#This Row],[Boundary M/L]],kwhmo_norm<SegmentExceptTable[[#This Row],[Exception M/L]])),1,0)","v":0}]
[null,null,null,null,null,null,null,null,null,null,null,null,null,null,null,null,null,null,null,null,null,null,null,null,null,null,null,null,null,null,null,null,null,null,null,null,null,null,null,null,null,null,null,null,null,null,null,270,{"$f":"SegmentExceptTable[[#This Row],[Numbers]]/$BP$4","v":0.45075125208681133},{"$f":"SegmentExceptTable[[#This Row],[kW Boundary]]+(0.05*SegmentExceptTable[[#This Row],[kW Boundary]])","v":0.47328881469115192},{"$f":"$BP$6*SegmentExceptTable[[#This Row],[kW Boundary]]+$BP$7","v":0.63652684105628454},{"$f":"$BP$8*SegmentExceptTable[[#This Row],[kW Boundary]]+$BP$9","v":-0.1165653055327413},{"$f":"SegmentExceptTable[[#This Row],[Boundary S/M]]+(0.05*SegmentExceptTable[[#This Row],[Boundary S/M]])","v":-0.12239357080937836},{"$f":"IF(AND(AND(kwpeak_norm>SegmentExceptTable[[#This Row],[kW Boundary]],kwpeak_norm<SegmentExceptTable[[#This Row],[kW Exception]]),AND(kwhmo_norm>SegmentExceptTable[[#This Row],[Boundary S/M]],kwhmo_norm<SegmentExceptTable[[#This Row],[Exception S/M]])),1,0)","v":0},{"$f":"$BP$10*SegmentExceptTable[[#This Row],[kW Boundary]]+$BP$11","v":0.82235654287465243},{"$f":"$BP$12*SegmentExceptTable[[#This Row],[kW Boundary]]+$BP$13","v":0.3572992918013021},{"$f":"SegmentExceptTable[[#This Row],[Boundary M/L]]+(0.05*SegmentExceptTable[[#This Row],[Boundary M/L]])","v":0.37516425639136719},{"$f":"IF(AND(AND(kwpeak_norm>SegmentExceptTable[[#This Row],[kW Boundary]],kwpeak_norm<SegmentExceptTable[[#This Row],[kW Exception]]),AND(kwhmo_norm>SegmentExceptTable[[#This Row],[Boundary M/L]],kwhmo_norm<SegmentExceptTable[[#This Row],[Exception M/L]])),1,0)","v":0}]
[null,null,null,null,null,null,null,null,null,null,null,null,null,null,null,null,null,null,null,null,null,null,null,null,null,null,null,null,null,null,null,null,null,null,null,null,null,null,null,null,null,null,null,null,null,null,null,271,{"$f":"SegmentExceptTable[[#This Row],[Numbers]]/$BP$4","v":0.45242070116861438},{"$f":"SegmentExceptTable[[#This Row],[kW Boundary]]+(0.05*SegmentExceptTable[[#This Row],[kW Boundary]])","v":0.4750417362270451},{"$f":"$BP$6*SegmentExceptTable[[#This Row],[kW Boundary]]+$BP$7","v":0.63895367135165082},{"$f":"$BP$8*SegmentExceptTable[[#This Row],[kW Boundary]]+$BP$9","v":-0.11771374192817224},{"$f":"SegmentExceptTable[[#This Row],[Boundary S/M]]+(0.05*SegmentExceptTable[[#This Row],[Boundary S/M]])","v":-0.12359942902458086},{"$f":"IF(AND(AND(kwpeak_norm>SegmentExceptTable[[#This Row],[kW Boundary]],kwpeak_norm<SegmentExceptTable[[#This Row],[kW Exception]]),AND(kwhmo_norm>SegmentExceptTable[[#This Row],[Boundary S/M]],kwhmo_norm<SegmentExceptTable[[#This Row],[Exception S/M]])),1,0)","v":0},{"$f":"$BP$10*SegmentExceptTable[[#This Row],[kW Boundary]]+$BP$11","v":0.82588359651689114},{"$f":"$BP$12*SegmentExceptTable[[#This Row],[kW Boundary]]+$BP$13","v":0.3565090967775133},{"$f":"SegmentExceptTable[[#This Row],[Boundary M/L]]+(0.05*SegmentExceptTable[[#This Row],[Boundary M/L]])","v":0.37433455161638896},{"$f":"IF(AND(AND(kwpeak_norm>SegmentExceptTable[[#This Row],[kW Boundary]],kwpeak_norm<SegmentExceptTable[[#This Row],[kW Exception]]),AND(kwhmo_norm>SegmentExceptTable[[#This Row],[Boundary M/L]],kwhmo_norm<SegmentExceptTable[[#This Row],[Exception M/L]])),1,0)","v":0}]
[null,null,null,null,null,null,null,null,null,null,null,null,null,null,null,null,null,null,null,null,null,null,null,null,null,null,null,null,null,null,null,null,null,null,null,null,null,null,null,null,null,null,null,null,null,null,null,272,{"$f":"SegmentExceptTable[[#This Row],[Numbers]]/$BP$4","v":0.45409015025041738},{"$f":"SegmentExceptTable[[#This Row],[kW Boundary]]+(0.05*SegmentExceptTable[[#This Row],[kW Boundary]])","v":0.47679465776293828},{"$f":"$BP$6*SegmentExceptTable[[#This Row],[kW Boundary]]+$BP$7","v":0.6413805016470171},{"$f":"$BP$8*SegmentExceptTable[[#This Row],[kW Boundary]]+$BP$9","v":-0.11886217832360307},{"$f":"SegmentExceptTable[[#This Row],[Boundary S/M]]+(0.05*SegmentExceptTable[[#This Row],[Boundary S/M]])","v":-0.12480528723978322},{"$f":"IF(AND(AND(kwpeak_norm>SegmentExceptTable[[#This Row],[kW Boundary]],kwpeak_norm<SegmentExceptTable[[#This Row],[kW Exception]]),AND(kwhmo_norm>SegmentExceptTable[[#This Row],[Boundary S/M]],kwhmo_norm<SegmentExceptTable[[#This Row],[Exception S/M]])),1,0)","v":0},{"$f":"$BP$10*SegmentExceptTable[[#This Row],[kW Boundary]]+$BP$11","v":0.82941065015912963},{"$f":"$BP$12*SegmentExceptTable[[#This Row],[kW Boundary]]+$BP$13","v":0.35571890175372456},{"$f":"SegmentExceptTable[[#This Row],[Boundary M/L]]+(0.05*SegmentExceptTable[[#This Row],[Boundary M/L]])","v":0.37350484684141078},{"$f":"IF(AND(AND(kwpeak_norm>SegmentExceptTable[[#This Row],[kW Boundary]],kwpeak_norm<SegmentExceptTable[[#This Row],[kW Exception]]),AND(kwhmo_norm>SegmentExceptTable[[#This Row],[Boundary M/L]],kwhmo_norm<SegmentExceptTable[[#This Row],[Exception M/L]])),1,0)","v":0}]
[null,null,null,null,null,null,null,null,null,null,null,null,null,null,null,null,null,null,null,null,null,null,null,null,null,null,null,null,null,null,null,null,null,null,null,null,null,null,null,null,null,null,null,null,null,null,null,273,{"$f":"SegmentExceptTable[[#This Row],[Numbers]]/$BP$4","v":0.45575959933222038},{"$f":"SegmentExceptTable[[#This Row],[kW Boundary]]+(0.05*SegmentExceptTable[[#This Row],[kW Boundary]])","v":0.4785475792988314},{"$f":"$BP$6*SegmentExceptTable[[#This Row],[kW Boundary]]+$BP$7","v":0.64380733194238338},{"$f":"$BP$8*SegmentExceptTable[[#This Row],[kW Boundary]]+$BP$9","v":-0.12001061471903396},{"$f":"SegmentExceptTable[[#This Row],[Boundary S/M]]+(0.05*SegmentExceptTable[[#This Row],[Boundary S/M]])","v":-0.12601114545498565},{"$f":"IF(AND(AND(kwpeak_norm>SegmentExceptTable[[#This Row],[kW Boundary]],kwpeak_norm<SegmentExceptTable[[#This Row],[kW Exception]]),AND(kwhmo_norm>SegmentExceptTable[[#This Row],[Boundary S/M]],kwhmo_norm<SegmentExceptTable[[#This Row],[Exception S/M]])),1,0)","v":0},{"$f":"$BP$10*SegmentExceptTable[[#This Row],[kW Boundary]]+$BP$11","v":0.83293770380136811},{"$f":"$BP$12*SegmentExceptTable[[#This Row],[kW Boundary]]+$BP$13","v":0.35492870672993582},{"$f":"SegmentExceptTable[[#This Row],[Boundary M/L]]+(0.05*SegmentExceptTable[[#This Row],[Boundary M/L]])","v":0.3726751420664326},{"$f":"IF(AND(AND(kwpeak_norm>SegmentExceptTable[[#This Row],[kW Boundary]],kwpeak_norm<SegmentExceptTable[[#This Row],[kW Exception]]),AND(kwhmo_norm>SegmentExceptTable[[#This Row],[Boundary M/L]],kwhmo_norm<SegmentExceptTable[[#This Row],[Exception M/L]])),1,0)","v":0}]
[null,null,null,null,null,null,null,null,null,null,null,null,null,null,null,null,null,null,null,null,null,null,null,null,null,null,null,null,null,null,null,null,null,null,null,null,null,null,null,null,null,null,null,null,null,null,null,274,{"$f":"SegmentExceptTable[[#This Row],[Numbers]]/$BP$4","v":0.45742904841402338},{"$f":"SegmentExceptTable[[#This Row],[kW Boundary]]+(0.05*SegmentExceptTable[[#This Row],[kW Boundary]])","v":0.48030050083472453},{"$f":"$BP$6*SegmentExceptTable[[#This Row],[kW Boundary]]+$BP$7","v":0.64623416223774965},{"$f":"$BP$8*SegmentExceptTable[[#This Row],[kW Boundary]]+$BP$9","v":-0.12115905111446484},{"$f":"SegmentExceptTable[[#This Row],[Boundary S/M]]+(0.05*SegmentExceptTable[[#This Row],[Boundary S/M]])","v":-0.12721700367018809},{"$f":"IF(AND(AND(kwpeak_norm>SegmentExceptTable[[#This Row],[kW Boundary]],kwpeak_norm<SegmentExceptTable[[#This Row],[kW Exception]]),AND(kwhmo_norm>SegmentExceptTable[[#This Row],[Boundary S/M]],kwhmo_norm<SegmentExceptTable[[#This Row],[Exception S/M]])),1,0)","v":0},{"$f":"$BP$10*SegmentExceptTable[[#This Row],[kW Boundary]]+$BP$11","v":0.8364647574436066},{"$f":"$BP$12*SegmentExceptTable[[#This Row],[kW Boundary]]+$BP$13","v":0.35413851170614707},{"$f":"SegmentExceptTable[[#This Row],[Boundary M/L]]+(0.05*SegmentExceptTable[[#This Row],[Boundary M/L]])","v":0.37184543729145442},{"$f":"IF(AND(AND(kwpeak_norm>SegmentExceptTable[[#This Row],[kW Boundary]],kwpeak_norm<SegmentExceptTable[[#This Row],[kW Exception]]),AND(kwhmo_norm>SegmentExceptTable[[#This Row],[Boundary M/L]],kwhmo_norm<SegmentExceptTable[[#This Row],[Exception M/L]])),1,0)","v":0}]
[null,null,null,null,null,null,null,null,null,null,null,null,null,null,null,null,null,null,null,null,null,null,null,null,null,null,null,null,null,null,null,null,null,null,null,null,null,null,null,null,null,null,null,null,null,null,null,275,{"$f":"SegmentExceptTable[[#This Row],[Numbers]]/$BP$4","v":0.45909849749582637},{"$f":"SegmentExceptTable[[#This Row],[kW Boundary]]+(0.05*SegmentExceptTable[[#This Row],[kW Boundary]])","v":0.48205342237061771},{"$f":"$BP$6*SegmentExceptTable[[#This Row],[kW Boundary]]+$BP$7","v":0.64866099253311593},{"$f":"$BP$8*SegmentExceptTable[[#This Row],[kW Boundary]]+$BP$9","v":-0.12230748750989573},{"$f":"SegmentExceptTable[[#This Row],[Boundary S/M]]+(0.05*SegmentExceptTable[[#This Row],[Boundary S/M]])","v":-0.12842286188539051},{"$f":"IF(AND(AND(kwpeak_norm>SegmentExceptTable[[#This Row],[kW Boundary]],kwpeak_norm<SegmentExceptTable[[#This Row],[kW Exception]]),AND(kwhmo_norm>SegmentExceptTable[[#This Row],[Boundary S/M]],kwhmo_norm<SegmentExceptTable[[#This Row],[Exception S/M]])),1,0)","v":0},{"$f":"$BP$10*SegmentExceptTable[[#This Row],[kW Boundary]]+$BP$11","v":0.8399918110858452},{"$f":"$BP$12*SegmentExceptTable[[#This Row],[kW Boundary]]+$BP$13","v":0.35334831668235833},{"$f":"SegmentExceptTable[[#This Row],[Boundary M/L]]+(0.05*SegmentExceptTable[[#This Row],[Boundary M/L]])","v":0.37101573251647624},{"$f":"IF(AND(AND(kwpeak_norm>SegmentExceptTable[[#This Row],[kW Boundary]],kwpeak_norm<SegmentExceptTable[[#This Row],[kW Exception]]),AND(kwhmo_norm>SegmentExceptTable[[#This Row],[Boundary M/L]],kwhmo_norm<SegmentExceptTable[[#This Row],[Exception M/L]])),1,0)","v":0}]
[null,null,null,null,null,null,null,null,null,null,null,null,null,null,null,null,null,null,null,null,null,null,null,null,null,null,null,null,null,null,null,null,null,null,null,null,null,null,null,null,null,null,null,null,null,null,null,276,{"$f":"SegmentExceptTable[[#This Row],[Numbers]]/$BP$4","v":0.46076794657762937},{"$f":"SegmentExceptTable[[#This Row],[kW Boundary]]+(0.05*SegmentExceptTable[[#This Row],[kW Boundary]])","v":0.48380634390651084},{"$f":"$BP$6*SegmentExceptTable[[#This Row],[kW Boundary]]+$BP$7","v":0.65108782282848221},{"$f":"$BP$8*SegmentExceptTable[[#This Row],[kW Boundary]]+$BP$9","v":-0.12345592390532656},{"$f":"SegmentExceptTable[[#This Row],[Boundary S/M]]+(0.05*SegmentExceptTable[[#This Row],[Boundary S/M]])","v":-0.1296287201005929},{"$f":"IF(AND(AND(kwpeak_norm>SegmentExceptTable[[#This Row],[kW Boundary]],kwpeak_norm<SegmentExceptTable[[#This Row],[kW Exception]]),AND(kwhmo_norm>SegmentExceptTable[[#This Row],[Boundary S/M]],kwhmo_norm<SegmentExceptTable[[#This Row],[Exception S/M]])),1,0)","v":0},{"$f":"$BP$10*SegmentExceptTable[[#This Row],[kW Boundary]]+$BP$11","v":0.84351886472808368},{"$f":"$BP$12*SegmentExceptTable[[#This Row],[kW Boundary]]+$BP$13","v":0.35255812165856959},{"$f":"SegmentExceptTable[[#This Row],[Boundary M/L]]+(0.05*SegmentExceptTable[[#This Row],[Boundary M/L]])","v":0.37018602774149806},{"$f":"IF(AND(AND(kwpeak_norm>SegmentExceptTable[[#This Row],[kW Boundary]],kwpeak_norm<SegmentExceptTable[[#This Row],[kW Exception]]),AND(kwhmo_norm>SegmentExceptTable[[#This Row],[Boundary M/L]],kwhmo_norm<SegmentExceptTable[[#This Row],[Exception M/L]])),1,0)","v":0}]
[null,null,null,null,null,null,null,null,null,null,null,null,null,null,null,null,null,null,null,null,null,null,null,null,null,null,null,null,null,null,null,null,null,null,null,null,null,null,null,null,null,null,null,null,null,null,null,277,{"$f":"SegmentExceptTable[[#This Row],[Numbers]]/$BP$4","v":0.46243739565943237},{"$f":"SegmentExceptTable[[#This Row],[kW Boundary]]+(0.05*SegmentExceptTable[[#This Row],[kW Boundary]])","v":0.48555926544240402},{"$f":"$BP$6*SegmentExceptTable[[#This Row],[kW Boundary]]+$BP$7","v":0.65351465312384849},{"$f":"$BP$8*SegmentExceptTable[[#This Row],[kW Boundary]]+$BP$9","v":-0.12460436030075744},{"$f":"SegmentExceptTable[[#This Row],[Boundary S/M]]+(0.05*SegmentExceptTable[[#This Row],[Boundary S/M]])","v":-0.13083457831579531},{"$f":"IF(AND(AND(kwpeak_norm>SegmentExceptTable[[#This Row],[kW Boundary]],kwpeak_norm<SegmentExceptTable[[#This Row],[kW Exception]]),AND(kwhmo_norm>SegmentExceptTable[[#This Row],[Boundary S/M]],kwhmo_norm<SegmentExceptTable[[#This Row],[Exception S/M]])),1,0)","v":0},{"$f":"$BP$10*SegmentExceptTable[[#This Row],[kW Boundary]]+$BP$11","v":0.84704591837032217},{"$f":"$BP$12*SegmentExceptTable[[#This Row],[kW Boundary]]+$BP$13","v":0.35176792663478079},{"$f":"SegmentExceptTable[[#This Row],[Boundary M/L]]+(0.05*SegmentExceptTable[[#This Row],[Boundary M/L]])","v":0.36935632296651982},{"$f":"IF(AND(AND(kwpeak_norm>SegmentExceptTable[[#This Row],[kW Boundary]],kwpeak_norm<SegmentExceptTable[[#This Row],[kW Exception]]),AND(kwhmo_norm>SegmentExceptTable[[#This Row],[Boundary M/L]],kwhmo_norm<SegmentExceptTable[[#This Row],[Exception M/L]])),1,0)","v":0}]
[null,null,null,null,null,null,null,null,null,null,null,null,null,null,null,null,null,null,null,null,null,null,null,null,null,null,null,null,null,null,null,null,null,null,null,null,null,null,null,null,null,null,null,null,null,null,null,278,{"$f":"SegmentExceptTable[[#This Row],[Numbers]]/$BP$4","v":0.46410684474123537},{"$f":"SegmentExceptTable[[#This Row],[kW Boundary]]+(0.05*SegmentExceptTable[[#This Row],[kW Boundary]])","v":0.48731218697829715},{"$f":"$BP$6*SegmentExceptTable[[#This Row],[kW Boundary]]+$BP$7","v":0.65594148341921477},{"$f":"$BP$8*SegmentExceptTable[[#This Row],[kW Boundary]]+$BP$9","v":-0.12575279669618833},{"$f":"SegmentExceptTable[[#This Row],[Boundary S/M]]+(0.05*SegmentExceptTable[[#This Row],[Boundary S/M]])","v":-0.13204043653099776},{"$f":"IF(AND(AND(kwpeak_norm>SegmentExceptTable[[#This Row],[kW Boundary]],kwpeak_norm<SegmentExceptTable[[#This Row],[kW Exception]]),AND(kwhmo_norm>SegmentExceptTable[[#This Row],[Boundary S/M]],kwhmo_norm<SegmentExceptTable[[#This Row],[Exception S/M]])),1,0)","v":0},{"$f":"$BP$10*SegmentExceptTable[[#This Row],[kW Boundary]]+$BP$11","v":0.85057297201256066},{"$f":"$BP$12*SegmentExceptTable[[#This Row],[kW Boundary]]+$BP$13","v":0.35097773161099205},{"$f":"SegmentExceptTable[[#This Row],[Boundary M/L]]+(0.05*SegmentExceptTable[[#This Row],[Boundary M/L]])","v":0.36852661819154164},{"$f":"IF(AND(AND(kwpeak_norm>SegmentExceptTable[[#This Row],[kW Boundary]],kwpeak_norm<SegmentExceptTable[[#This Row],[kW Exception]]),AND(kwhmo_norm>SegmentExceptTable[[#This Row],[Boundary M/L]],kwhmo_norm<SegmentExceptTable[[#This Row],[Exception M/L]])),1,0)","v":0}]
[null,null,null,null,null,null,null,null,null,null,null,null,null,null,null,null,null,null,null,null,null,null,null,null,null,null,null,null,null,null,null,null,null,null,null,null,null,null,null,null,null,null,null,null,null,null,null,279,{"$f":"SegmentExceptTable[[#This Row],[Numbers]]/$BP$4","v":0.46577629382303842},{"$f":"SegmentExceptTable[[#This Row],[kW Boundary]]+(0.05*SegmentExceptTable[[#This Row],[kW Boundary]])","v":0.48906510851419033},{"$f":"$BP$6*SegmentExceptTable[[#This Row],[kW Boundary]]+$BP$7","v":0.65836831371458104},{"$f":"$BP$8*SegmentExceptTable[[#This Row],[kW Boundary]]+$BP$9","v":-0.12690123309161921},{"$f":"SegmentExceptTable[[#This Row],[Boundary S/M]]+(0.05*SegmentExceptTable[[#This Row],[Boundary S/M]])","v":-0.13324629474620017},{"$f":"IF(AND(AND(kwpeak_norm>SegmentExceptTable[[#This Row],[kW Boundary]],kwpeak_norm<SegmentExceptTable[[#This Row],[kW Exception]]),AND(kwhmo_norm>SegmentExceptTable[[#This Row],[Boundary S/M]],kwhmo_norm<SegmentExceptTable[[#This Row],[Exception S/M]])),1,0)","v":0},{"$f":"$BP$10*SegmentExceptTable[[#This Row],[kW Boundary]]+$BP$11","v":0.85410002565479937},{"$f":"$BP$12*SegmentExceptTable[[#This Row],[kW Boundary]]+$BP$13","v":0.35018753658720325},{"$f":"SegmentExceptTable[[#This Row],[Boundary M/L]]+(0.05*SegmentExceptTable[[#This Row],[Boundary M/L]])","v":0.36769691341656341},{"$f":"IF(AND(AND(kwpeak_norm>SegmentExceptTable[[#This Row],[kW Boundary]],kwpeak_norm<SegmentExceptTable[[#This Row],[kW Exception]]),AND(kwhmo_norm>SegmentExceptTable[[#This Row],[Boundary M/L]],kwhmo_norm<SegmentExceptTable[[#This Row],[Exception M/L]])),1,0)","v":0}]
[null,null,null,null,null,null,null,null,null,null,null,null,null,null,null,null,null,null,null,null,null,null,null,null,null,null,null,null,null,null,null,null,null,null,null,null,null,null,null,null,null,null,null,null,null,null,null,280,{"$f":"SegmentExceptTable[[#This Row],[Numbers]]/$BP$4","v":0.46744574290484142},{"$f":"SegmentExceptTable[[#This Row],[kW Boundary]]+(0.05*SegmentExceptTable[[#This Row],[kW Boundary]])","v":0.49081803005008351},{"$f":"$BP$6*SegmentExceptTable[[#This Row],[kW Boundary]]+$BP$7","v":0.66079514400994732},{"$f":"$BP$8*SegmentExceptTable[[#This Row],[kW Boundary]]+$BP$9","v":-0.1280496694870501},{"$f":"SegmentExceptTable[[#This Row],[Boundary S/M]]+(0.05*SegmentExceptTable[[#This Row],[Boundary S/M]])","v":-0.13445215296140262},{"$f":"IF(AND(AND(kwpeak_norm>SegmentExceptTable[[#This Row],[kW Boundary]],kwpeak_norm<SegmentExceptTable[[#This Row],[kW Exception]]),AND(kwhmo_norm>SegmentExceptTable[[#This Row],[Boundary S/M]],kwhmo_norm<SegmentExceptTable[[#This Row],[Exception S/M]])),1,0)","v":0},{"$f":"$BP$10*SegmentExceptTable[[#This Row],[kW Boundary]]+$BP$11","v":0.85762707929703785},{"$f":"$BP$12*SegmentExceptTable[[#This Row],[kW Boundary]]+$BP$13","v":0.34939734156341451},{"$f":"SegmentExceptTable[[#This Row],[Boundary M/L]]+(0.05*SegmentExceptTable[[#This Row],[Boundary M/L]])","v":0.36686720864158523},{"$f":"IF(AND(AND(kwpeak_norm>SegmentExceptTable[[#This Row],[kW Boundary]],kwpeak_norm<SegmentExceptTable[[#This Row],[kW Exception]]),AND(kwhmo_norm>SegmentExceptTable[[#This Row],[Boundary M/L]],kwhmo_norm<SegmentExceptTable[[#This Row],[Exception M/L]])),1,0)","v":0}]
[null,null,null,null,null,null,null,null,null,null,null,null,null,null,null,null,null,null,null,null,null,null,null,null,null,null,null,null,null,null,null,null,null,null,null,null,null,null,null,null,null,null,null,null,null,null,null,281,{"$f":"SegmentExceptTable[[#This Row],[Numbers]]/$BP$4","v":0.46911519198664442},{"$f":"SegmentExceptTable[[#This Row],[kW Boundary]]+(0.05*SegmentExceptTable[[#This Row],[kW Boundary]])","v":0.49257095158597664},{"$f":"$BP$6*SegmentExceptTable[[#This Row],[kW Boundary]]+$BP$7","v":0.6632219743053136},{"$f":"$BP$8*SegmentExceptTable[[#This Row],[kW Boundary]]+$BP$9","v":-0.12919810588248098},{"$f":"SegmentExceptTable[[#This Row],[Boundary S/M]]+(0.05*SegmentExceptTable[[#This Row],[Boundary S/M]])","v":-0.13565801117660503},{"$f":"IF(AND(AND(kwpeak_norm>SegmentExceptTable[[#This Row],[kW Boundary]],kwpeak_norm<SegmentExceptTable[[#This Row],[kW Exception]]),AND(kwhmo_norm>SegmentExceptTable[[#This Row],[Boundary S/M]],kwhmo_norm<SegmentExceptTable[[#This Row],[Exception S/M]])),1,0)","v":0},{"$f":"$BP$10*SegmentExceptTable[[#This Row],[kW Boundary]]+$BP$11","v":0.86115413293927634},{"$f":"$BP$12*SegmentExceptTable[[#This Row],[kW Boundary]]+$BP$13","v":0.34860714653962577},{"$f":"SegmentExceptTable[[#This Row],[Boundary M/L]]+(0.05*SegmentExceptTable[[#This Row],[Boundary M/L]])","v":0.36603750386660705},{"$f":"IF(AND(AND(kwpeak_norm>SegmentExceptTable[[#This Row],[kW Boundary]],kwpeak_norm<SegmentExceptTable[[#This Row],[kW Exception]]),AND(kwhmo_norm>SegmentExceptTable[[#This Row],[Boundary M/L]],kwhmo_norm<SegmentExceptTable[[#This Row],[Exception M/L]])),1,0)","v":0}]
[null,null,null,null,null,null,null,null,null,null,null,null,null,null,null,null,null,null,null,null,null,null,null,null,null,null,null,null,null,null,null,null,null,null,null,null,null,null,null,null,null,null,null,null,null,null,null,282,{"$f":"SegmentExceptTable[[#This Row],[Numbers]]/$BP$4","v":0.47078464106844742},{"$f":"SegmentExceptTable[[#This Row],[kW Boundary]]+(0.05*SegmentExceptTable[[#This Row],[kW Boundary]])","v":0.49432387312186976},{"$f":"$BP$6*SegmentExceptTable[[#This Row],[kW Boundary]]+$BP$7","v":0.66564880460067988},{"$f":"$BP$8*SegmentExceptTable[[#This Row],[kW Boundary]]+$BP$9","v":-0.13034654227791181},{"$f":"SegmentExceptTable[[#This Row],[Boundary S/M]]+(0.05*SegmentExceptTable[[#This Row],[Boundary S/M]])","v":-0.13686386939180739},{"$f":"IF(AND(AND(kwpeak_norm>SegmentExceptTable[[#This Row],[kW Boundary]],kwpeak_norm<SegmentExceptTable[[#This Row],[kW Exception]]),AND(kwhmo_norm>SegmentExceptTable[[#This Row],[Boundary S/M]],kwhmo_norm<SegmentExceptTable[[#This Row],[Exception S/M]])),1,0)","v":0},{"$f":"$BP$10*SegmentExceptTable[[#This Row],[kW Boundary]]+$BP$11","v":0.86468118658151483},{"$f":"$BP$12*SegmentExceptTable[[#This Row],[kW Boundary]]+$BP$13","v":0.34781695151583703},{"$f":"SegmentExceptTable[[#This Row],[Boundary M/L]]+(0.05*SegmentExceptTable[[#This Row],[Boundary M/L]])","v":0.36520779909162887},{"$f":"IF(AND(AND(kwpeak_norm>SegmentExceptTable[[#This Row],[kW Boundary]],kwpeak_norm<SegmentExceptTable[[#This Row],[kW Exception]]),AND(kwhmo_norm>SegmentExceptTable[[#This Row],[Boundary M/L]],kwhmo_norm<SegmentExceptTable[[#This Row],[Exception M/L]])),1,0)","v":0}]
[null,null,null,null,null,null,null,null,null,null,null,null,null,null,null,null,null,null,null,null,null,null,null,null,null,null,null,null,null,null,null,null,null,null,null,null,null,null,null,null,null,null,null,null,null,null,null,283,{"$f":"SegmentExceptTable[[#This Row],[Numbers]]/$BP$4","v":0.47245409015025042},{"$f":"SegmentExceptTable[[#This Row],[kW Boundary]]+(0.05*SegmentExceptTable[[#This Row],[kW Boundary]])","v":0.49607679465776294},{"$f":"$BP$6*SegmentExceptTable[[#This Row],[kW Boundary]]+$BP$7","v":0.66807563489604616},{"$f":"$BP$8*SegmentExceptTable[[#This Row],[kW Boundary]]+$BP$9","v":-0.1314949786733427},{"$f":"SegmentExceptTable[[#This Row],[Boundary S/M]]+(0.05*SegmentExceptTable[[#This Row],[Boundary S/M]])","v":-0.13806972760700983},{"$f":"IF(AND(AND(kwpeak_norm>SegmentExceptTable[[#This Row],[kW Boundary]],kwpeak_norm<SegmentExceptTable[[#This Row],[kW Exception]]),AND(kwhmo_norm>SegmentExceptTable[[#This Row],[Boundary S/M]],kwhmo_norm<SegmentExceptTable[[#This Row],[Exception S/M]])),1,0)","v":0},{"$f":"$BP$10*SegmentExceptTable[[#This Row],[kW Boundary]]+$BP$11","v":0.86820824022375342},{"$f":"$BP$12*SegmentExceptTable[[#This Row],[kW Boundary]]+$BP$13","v":0.34702675649204828},{"$f":"SegmentExceptTable[[#This Row],[Boundary M/L]]+(0.05*SegmentExceptTable[[#This Row],[Boundary M/L]])","v":0.36437809431665069},{"$f":"IF(AND(AND(kwpeak_norm>SegmentExceptTable[[#This Row],[kW Boundary]],kwpeak_norm<SegmentExceptTable[[#This Row],[kW Exception]]),AND(kwhmo_norm>SegmentExceptTable[[#This Row],[Boundary M/L]],kwhmo_norm<SegmentExceptTable[[#This Row],[Exception M/L]])),1,0)","v":0}]
[null,null,null,null,null,null,null,null,null,null,null,null,null,null,null,null,null,null,null,null,null,null,null,null,null,null,null,null,null,null,null,null,null,null,null,null,null,null,null,null,null,null,null,null,null,null,null,284,{"$f":"SegmentExceptTable[[#This Row],[Numbers]]/$BP$4","v":0.47412353923205341},{"$f":"SegmentExceptTable[[#This Row],[kW Boundary]]+(0.05*SegmentExceptTable[[#This Row],[kW Boundary]])","v":0.49782971619365607},{"$f":"$BP$6*SegmentExceptTable[[#This Row],[kW Boundary]]+$BP$7","v":0.67050246519141243},{"$f":"$BP$8*SegmentExceptTable[[#This Row],[kW Boundary]]+$BP$9","v":-0.13264341506877358},{"$f":"SegmentExceptTable[[#This Row],[Boundary S/M]]+(0.05*SegmentExceptTable[[#This Row],[Boundary S/M]])","v":-0.13927558582221228},{"$f":"IF(AND(AND(kwpeak_norm>SegmentExceptTable[[#This Row],[kW Boundary]],kwpeak_norm<SegmentExceptTable[[#This Row],[kW Exception]]),AND(kwhmo_norm>SegmentExceptTable[[#This Row],[Boundary S/M]],kwhmo_norm<SegmentExceptTable[[#This Row],[Exception S/M]])),1,0)","v":0},{"$f":"$BP$10*SegmentExceptTable[[#This Row],[kW Boundary]]+$BP$11","v":0.8717352938659918},{"$f":"$BP$12*SegmentExceptTable[[#This Row],[kW Boundary]]+$BP$13","v":0.34623656146825948},{"$f":"SegmentExceptTable[[#This Row],[Boundary M/L]]+(0.05*SegmentExceptTable[[#This Row],[Boundary M/L]])","v":0.36354838954167246},{"$f":"IF(AND(AND(kwpeak_norm>SegmentExceptTable[[#This Row],[kW Boundary]],kwpeak_norm<SegmentExceptTable[[#This Row],[kW Exception]]),AND(kwhmo_norm>SegmentExceptTable[[#This Row],[Boundary M/L]],kwhmo_norm<SegmentExceptTable[[#This Row],[Exception M/L]])),1,0)","v":0}]
[null,null,null,null,null,null,null,null,null,null,null,null,null,null,null,null,null,null,null,null,null,null,null,null,null,null,null,null,null,null,null,null,null,null,null,null,null,null,null,null,null,null,null,null,null,null,null,285,{"$f":"SegmentExceptTable[[#This Row],[Numbers]]/$BP$4","v":0.47579298831385641},{"$f":"SegmentExceptTable[[#This Row],[kW Boundary]]+(0.05*SegmentExceptTable[[#This Row],[kW Boundary]])","v":0.49958263772954925},{"$f":"$BP$6*SegmentExceptTable[[#This Row],[kW Boundary]]+$BP$7","v":0.67292929548677871},{"$f":"$BP$8*SegmentExceptTable[[#This Row],[kW Boundary]]+$BP$9","v":-0.13379185146420447},{"$f":"SegmentExceptTable[[#This Row],[Boundary S/M]]+(0.05*SegmentExceptTable[[#This Row],[Boundary S/M]])","v":-0.14048144403741469},{"$f":"IF(AND(AND(kwpeak_norm>SegmentExceptTable[[#This Row],[kW Boundary]],kwpeak_norm<SegmentExceptTable[[#This Row],[kW Exception]]),AND(kwhmo_norm>SegmentExceptTable[[#This Row],[Boundary S/M]],kwhmo_norm<SegmentExceptTable[[#This Row],[Exception S/M]])),1,0)","v":0},{"$f":"$BP$10*SegmentExceptTable[[#This Row],[kW Boundary]]+$BP$11","v":0.87526234750823051},{"$f":"$BP$12*SegmentExceptTable[[#This Row],[kW Boundary]]+$BP$13","v":0.34544636644447074},{"$f":"SegmentExceptTable[[#This Row],[Boundary M/L]]+(0.05*SegmentExceptTable[[#This Row],[Boundary M/L]])","v":0.36271868476669428},{"$f":"IF(AND(AND(kwpeak_norm>SegmentExceptTable[[#This Row],[kW Boundary]],kwpeak_norm<SegmentExceptTable[[#This Row],[kW Exception]]),AND(kwhmo_norm>SegmentExceptTable[[#This Row],[Boundary M/L]],kwhmo_norm<SegmentExceptTable[[#This Row],[Exception M/L]])),1,0)","v":0}]
[null,null,null,null,null,null,null,null,null,null,null,null,null,null,null,null,null,null,null,null,null,null,null,null,null,null,null,null,null,null,null,null,null,null,null,null,null,null,null,null,null,null,null,null,null,null,null,286,{"$f":"SegmentExceptTable[[#This Row],[Numbers]]/$BP$4","v":0.47746243739565941},{"$f":"SegmentExceptTable[[#This Row],[kW Boundary]]+(0.05*SegmentExceptTable[[#This Row],[kW Boundary]])","v":0.50133555926544238},{"$f":"$BP$6*SegmentExceptTable[[#This Row],[kW Boundary]]+$BP$7","v":0.67535612578214499},{"$f":"$BP$8*SegmentExceptTable[[#This Row],[kW Boundary]]+$BP$9","v":-0.1349402878596353},{"$f":"SegmentExceptTable[[#This Row],[Boundary S/M]]+(0.05*SegmentExceptTable[[#This Row],[Boundary S/M]])","v":-0.14168730225261705},{"$f":"IF(AND(AND(kwpeak_norm>SegmentExceptTable[[#This Row],[kW Boundary]],kwpeak_norm<SegmentExceptTable[[#This Row],[kW Exception]]),AND(kwhmo_norm>SegmentExceptTable[[#This Row],[Boundary S/M]],kwhmo_norm<SegmentExceptTable[[#This Row],[Exception S/M]])),1,0)","v":0},{"$f":"$BP$10*SegmentExceptTable[[#This Row],[kW Boundary]]+$BP$11","v":0.878789401150469},{"$f":"$BP$12*SegmentExceptTable[[#This Row],[kW Boundary]]+$BP$13","v":0.34465617142068194},{"$f":"SegmentExceptTable[[#This Row],[Boundary M/L]]+(0.05*SegmentExceptTable[[#This Row],[Boundary M/L]])","v":0.36188897999171604},{"$f":"IF(AND(AND(kwpeak_norm>SegmentExceptTable[[#This Row],[kW Boundary]],kwpeak_norm<SegmentExceptTable[[#This Row],[kW Exception]]),AND(kwhmo_norm>SegmentExceptTable[[#This Row],[Boundary M/L]],kwhmo_norm<SegmentExceptTable[[#This Row],[Exception M/L]])),1,0)","v":0}]
[null,null,null,null,null,null,null,null,null,null,null,null,null,null,null,null,null,null,null,null,null,null,null,null,null,null,null,null,null,null,null,null,null,null,null,null,null,null,null,null,null,null,null,null,null,null,null,287,{"$f":"SegmentExceptTable[[#This Row],[Numbers]]/$BP$4","v":0.47913188647746241},{"$f":"SegmentExceptTable[[#This Row],[kW Boundary]]+(0.05*SegmentExceptTable[[#This Row],[kW Boundary]])","v":0.5030884808013355},{"$f":"$BP$6*SegmentExceptTable[[#This Row],[kW Boundary]]+$BP$7","v":0.67778295607751127},{"$f":"$BP$8*SegmentExceptTable[[#This Row],[kW Boundary]]+$BP$9","v":-0.13608872425506618},{"$f":"SegmentExceptTable[[#This Row],[Boundary S/M]]+(0.05*SegmentExceptTable[[#This Row],[Boundary S/M]])","v":-0.1428931604678195},{"$f":"IF(AND(AND(kwpeak_norm>SegmentExceptTable[[#This Row],[kW Boundary]],kwpeak_norm<SegmentExceptTable[[#This Row],[kW Exception]]),AND(kwhmo_norm>SegmentExceptTable[[#This Row],[Boundary S/M]],kwhmo_norm<SegmentExceptTable[[#This Row],[Exception S/M]])),1,0)","v":0},{"$f":"$BP$10*SegmentExceptTable[[#This Row],[kW Boundary]]+$BP$11","v":0.88231645479270748},{"$f":"$BP$12*SegmentExceptTable[[#This Row],[kW Boundary]]+$BP$13","v":0.3438659763968932},{"$f":"SegmentExceptTable[[#This Row],[Boundary M/L]]+(0.05*SegmentExceptTable[[#This Row],[Boundary M/L]])","v":0.36105927521673786},{"$f":"IF(AND(AND(kwpeak_norm>SegmentExceptTable[[#This Row],[kW Boundary]],kwpeak_norm<SegmentExceptTable[[#This Row],[kW Exception]]),AND(kwhmo_norm>SegmentExceptTable[[#This Row],[Boundary M/L]],kwhmo_norm<SegmentExceptTable[[#This Row],[Exception M/L]])),1,0)","v":0}]
[null,null,null,null,null,null,null,null,null,null,null,null,null,null,null,null,null,null,null,null,null,null,null,null,null,null,null,null,null,null,null,null,null,null,null,null,null,null,null,null,null,null,null,null,null,null,null,288,{"$f":"SegmentExceptTable[[#This Row],[Numbers]]/$BP$4","v":0.48080133555926546},{"$f":"SegmentExceptTable[[#This Row],[kW Boundary]]+(0.05*SegmentExceptTable[[#This Row],[kW Boundary]])","v":0.50484140233722874},{"$f":"$BP$6*SegmentExceptTable[[#This Row],[kW Boundary]]+$BP$7","v":0.68020978637287755},{"$f":"$BP$8*SegmentExceptTable[[#This Row],[kW Boundary]]+$BP$9","v":-0.13723716065049713},{"$f":"SegmentExceptTable[[#This Row],[Boundary S/M]]+(0.05*SegmentExceptTable[[#This Row],[Boundary S/M]])","v":-0.144099018683022},{"$f":"IF(AND(AND(kwpeak_norm>SegmentExceptTable[[#This Row],[kW Boundary]],kwpeak_norm<SegmentExceptTable[[#This Row],[kW Exception]]),AND(kwhmo_norm>SegmentExceptTable[[#This Row],[Boundary S/M]],kwhmo_norm<SegmentExceptTable[[#This Row],[Exception S/M]])),1,0)","v":0},{"$f":"$BP$10*SegmentExceptTable[[#This Row],[kW Boundary]]+$BP$11","v":0.88584350843494597},{"$f":"$BP$12*SegmentExceptTable[[#This Row],[kW Boundary]]+$BP$13","v":0.34307578137310446},{"$f":"SegmentExceptTable[[#This Row],[Boundary M/L]]+(0.05*SegmentExceptTable[[#This Row],[Boundary M/L]])","v":0.36022957044175968},{"$f":"IF(AND(AND(kwpeak_norm>SegmentExceptTable[[#This Row],[kW Boundary]],kwpeak_norm<SegmentExceptTable[[#This Row],[kW Exception]]),AND(kwhmo_norm>SegmentExceptTable[[#This Row],[Boundary M/L]],kwhmo_norm<SegmentExceptTable[[#This Row],[Exception M/L]])),1,0)","v":0}]
[null,null,null,null,null,null,null,null,null,null,null,null,null,null,null,null,null,null,null,null,null,null,null,null,null,null,null,null,null,null,null,null,null,null,null,null,null,null,null,null,null,null,null,null,null,null,null,289,{"$f":"SegmentExceptTable[[#This Row],[Numbers]]/$BP$4","v":0.48247078464106846},{"$f":"SegmentExceptTable[[#This Row],[kW Boundary]]+(0.05*SegmentExceptTable[[#This Row],[kW Boundary]])","v":0.50659432387312187},{"$f":"$BP$6*SegmentExceptTable[[#This Row],[kW Boundary]]+$BP$7","v":0.68263661666824382},{"$f":"$BP$8*SegmentExceptTable[[#This Row],[kW Boundary]]+$BP$9","v":-0.13838559704592795},{"$f":"SegmentExceptTable[[#This Row],[Boundary S/M]]+(0.05*SegmentExceptTable[[#This Row],[Boundary S/M]])","v":-0.14530487689822436},{"$f":"IF(AND(AND(kwpeak_norm>SegmentExceptTable[[#This Row],[kW Boundary]],kwpeak_norm<SegmentExceptTable[[#This Row],[kW Exception]]),AND(kwhmo_norm>SegmentExceptTable[[#This Row],[Boundary S/M]],kwhmo_norm<SegmentExceptTable[[#This Row],[Exception S/M]])),1,0)","v":0},{"$f":"$BP$10*SegmentExceptTable[[#This Row],[kW Boundary]]+$BP$11","v":0.88937056207718468},{"$f":"$BP$12*SegmentExceptTable[[#This Row],[kW Boundary]]+$BP$13","v":0.34228558634931572},{"$f":"SegmentExceptTable[[#This Row],[Boundary M/L]]+(0.05*SegmentExceptTable[[#This Row],[Boundary M/L]])","v":0.3593998656667815},{"$f":"IF(AND(AND(kwpeak_norm>SegmentExceptTable[[#This Row],[kW Boundary]],kwpeak_norm<SegmentExceptTable[[#This Row],[kW Exception]]),AND(kwhmo_norm>SegmentExceptTable[[#This Row],[Boundary M/L]],kwhmo_norm<SegmentExceptTable[[#This Row],[Exception M/L]])),1,0)","v":0}]
[null,null,null,null,null,null,null,null,null,null,null,null,null,null,null,null,null,null,null,null,null,null,null,null,null,null,null,null,null,null,null,null,null,null,null,null,null,null,null,null,null,null,null,null,null,null,null,290,{"$f":"SegmentExceptTable[[#This Row],[Numbers]]/$BP$4","v":0.48414023372287146},{"$f":"SegmentExceptTable[[#This Row],[kW Boundary]]+(0.05*SegmentExceptTable[[#This Row],[kW Boundary]])","v":0.50834724540901499},{"$f":"$BP$6*SegmentExceptTable[[#This Row],[kW Boundary]]+$BP$7","v":0.6850634469636101},{"$f":"$BP$8*SegmentExceptTable[[#This Row],[kW Boundary]]+$BP$9","v":-0.13953403344135884},{"$f":"SegmentExceptTable[[#This Row],[Boundary S/M]]+(0.05*SegmentExceptTable[[#This Row],[Boundary S/M]])","v":-0.14651073511342677},{"$f":"IF(AND(AND(kwpeak_norm>SegmentExceptTable[[#This Row],[kW Boundary]],kwpeak_norm<SegmentExceptTable[[#This Row],[kW Exception]]),AND(kwhmo_norm>SegmentExceptTable[[#This Row],[Boundary S/M]],kwhmo_norm<SegmentExceptTable[[#This Row],[Exception S/M]])),1,0)","v":0},{"$f":"$BP$10*SegmentExceptTable[[#This Row],[kW Boundary]]+$BP$11","v":0.89289761571942317},{"$f":"$BP$12*SegmentExceptTable[[#This Row],[kW Boundary]]+$BP$13","v":0.34149539132552698},{"$f":"SegmentExceptTable[[#This Row],[Boundary M/L]]+(0.05*SegmentExceptTable[[#This Row],[Boundary M/L]])","v":0.35857016089180332},{"$f":"IF(AND(AND(kwpeak_norm>SegmentExceptTable[[#This Row],[kW Boundary]],kwpeak_norm<SegmentExceptTable[[#This Row],[kW Exception]]),AND(kwhmo_norm>SegmentExceptTable[[#This Row],[Boundary M/L]],kwhmo_norm<SegmentExceptTable[[#This Row],[Exception M/L]])),1,0)","v":0}]
[null,null,null,null,null,null,null,null,null,null,null,null,null,null,null,null,null,null,null,null,null,null,null,null,null,null,null,null,null,null,null,null,null,null,null,null,null,null,null,null,null,null,null,null,null,null,null,291,{"$f":"SegmentExceptTable[[#This Row],[Numbers]]/$BP$4","v":0.48580968280467446},{"$f":"SegmentExceptTable[[#This Row],[kW Boundary]]+(0.05*SegmentExceptTable[[#This Row],[kW Boundary]])","v":0.51010016694490823},{"$f":"$BP$6*SegmentExceptTable[[#This Row],[kW Boundary]]+$BP$7","v":0.68749027725897638},{"$f":"$BP$8*SegmentExceptTable[[#This Row],[kW Boundary]]+$BP$9","v":-0.14068246983678973},{"$f":"SegmentExceptTable[[#This Row],[Boundary S/M]]+(0.05*SegmentExceptTable[[#This Row],[Boundary S/M]])","v":-0.14771659332862921},{"$f":"IF(AND(AND(kwpeak_norm>SegmentExceptTable[[#This Row],[kW Boundary]],kwpeak_norm<SegmentExceptTable[[#This Row],[kW Exception]]),AND(kwhmo_norm>SegmentExceptTable[[#This Row],[Boundary S/M]],kwhmo_norm<SegmentExceptTable[[#This Row],[Exception S/M]])),1,0)","v":0},{"$f":"$BP$10*SegmentExceptTable[[#This Row],[kW Boundary]]+$BP$11","v":0.89642466936166165},{"$f":"$BP$12*SegmentExceptTable[[#This Row],[kW Boundary]]+$BP$13","v":0.34070519630173818},{"$f":"SegmentExceptTable[[#This Row],[Boundary M/L]]+(0.05*SegmentExceptTable[[#This Row],[Boundary M/L]])","v":0.35774045611682509},{"$f":"IF(AND(AND(kwpeak_norm>SegmentExceptTable[[#This Row],[kW Boundary]],kwpeak_norm<SegmentExceptTable[[#This Row],[kW Exception]]),AND(kwhmo_norm>SegmentExceptTable[[#This Row],[Boundary M/L]],kwhmo_norm<SegmentExceptTable[[#This Row],[Exception M/L]])),1,0)","v":0}]
[null,null,null,null,null,null,null,null,null,null,null,null,null,null,null,null,null,null,null,null,null,null,null,null,null,null,null,null,null,null,null,null,null,null,null,null,null,null,null,null,null,null,null,null,null,null,null,292,{"$f":"SegmentExceptTable[[#This Row],[Numbers]]/$BP$4","v":0.48747913188647746},{"$f":"SegmentExceptTable[[#This Row],[kW Boundary]]+(0.05*SegmentExceptTable[[#This Row],[kW Boundary]])","v":0.51185308848080135},{"$f":"$BP$6*SegmentExceptTable[[#This Row],[kW Boundary]]+$BP$7","v":0.68991710755434266},{"$f":"$BP$8*SegmentExceptTable[[#This Row],[kW Boundary]]+$BP$9","v":-0.14183090623222061},{"$f":"SegmentExceptTable[[#This Row],[Boundary S/M]]+(0.05*SegmentExceptTable[[#This Row],[Boundary S/M]])","v":-0.14892245154383163},{"$f":"IF(AND(AND(kwpeak_norm>SegmentExceptTable[[#This Row],[kW Boundary]],kwpeak_norm<SegmentExceptTable[[#This Row],[kW Exception]]),AND(kwhmo_norm>SegmentExceptTable[[#This Row],[Boundary S/M]],kwhmo_norm<SegmentExceptTable[[#This Row],[Exception S/M]])),1,0)","v":0},{"$f":"$BP$10*SegmentExceptTable[[#This Row],[kW Boundary]]+$BP$11","v":0.89995172300390014},{"$f":"$BP$12*SegmentExceptTable[[#This Row],[kW Boundary]]+$BP$13","v":0.33991500127794944},{"$f":"SegmentExceptTable[[#This Row],[Boundary M/L]]+(0.05*SegmentExceptTable[[#This Row],[Boundary M/L]])","v":0.35691075134184691},{"$f":"IF(AND(AND(kwpeak_norm>SegmentExceptTable[[#This Row],[kW Boundary]],kwpeak_norm<SegmentExceptTable[[#This Row],[kW Exception]]),AND(kwhmo_norm>SegmentExceptTable[[#This Row],[Boundary M/L]],kwhmo_norm<SegmentExceptTable[[#This Row],[Exception M/L]])),1,0)","v":0}]
[null,null,null,null,null,null,null,null,null,null,null,null,null,null,null,null,null,null,null,null,null,null,null,null,null,null,null,null,null,null,null,null,null,null,null,null,null,null,null,null,null,null,null,null,null,null,null,293,{"$f":"SegmentExceptTable[[#This Row],[Numbers]]/$BP$4","v":0.48914858096828046},{"$f":"SegmentExceptTable[[#This Row],[kW Boundary]]+(0.05*SegmentExceptTable[[#This Row],[kW Boundary]])","v":0.51360601001669448},{"$f":"$BP$6*SegmentExceptTable[[#This Row],[kW Boundary]]+$BP$7","v":0.69234393784970893},{"$f":"$BP$8*SegmentExceptTable[[#This Row],[kW Boundary]]+$BP$9","v":-0.14297934262765144},{"$f":"SegmentExceptTable[[#This Row],[Boundary S/M]]+(0.05*SegmentExceptTable[[#This Row],[Boundary S/M]])","v":-0.15012830975903402},{"$f":"IF(AND(AND(kwpeak_norm>SegmentExceptTable[[#This Row],[kW Boundary]],kwpeak_norm<SegmentExceptTable[[#This Row],[kW Exception]]),AND(kwhmo_norm>SegmentExceptTable[[#This Row],[Boundary S/M]],kwhmo_norm<SegmentExceptTable[[#This Row],[Exception S/M]])),1,0)","v":0},{"$f":"$BP$10*SegmentExceptTable[[#This Row],[kW Boundary]]+$BP$11","v":0.90347877664613863},{"$f":"$BP$12*SegmentExceptTable[[#This Row],[kW Boundary]]+$BP$13","v":0.33912480625416069},{"$f":"SegmentExceptTable[[#This Row],[Boundary M/L]]+(0.05*SegmentExceptTable[[#This Row],[Boundary M/L]])","v":0.35608104656686873},{"$f":"IF(AND(AND(kwpeak_norm>SegmentExceptTable[[#This Row],[kW Boundary]],kwpeak_norm<SegmentExceptTable[[#This Row],[kW Exception]]),AND(kwhmo_norm>SegmentExceptTable[[#This Row],[Boundary M/L]],kwhmo_norm<SegmentExceptTable[[#This Row],[Exception M/L]])),1,0)","v":0}]
[null,null,null,null,null,null,null,null,null,null,null,null,null,null,null,null,null,null,null,null,null,null,null,null,null,null,null,null,null,null,null,null,null,null,null,null,null,null,null,null,null,null,null,null,null,null,null,294,{"$f":"SegmentExceptTable[[#This Row],[Numbers]]/$BP$4","v":0.49081803005008345},{"$f":"SegmentExceptTable[[#This Row],[kW Boundary]]+(0.05*SegmentExceptTable[[#This Row],[kW Boundary]])","v":0.51535893155258761},{"$f":"$BP$6*SegmentExceptTable[[#This Row],[kW Boundary]]+$BP$7","v":0.69477076814507521},{"$f":"$BP$8*SegmentExceptTable[[#This Row],[kW Boundary]]+$BP$9","v":-0.14412777902308233},{"$f":"SegmentExceptTable[[#This Row],[Boundary S/M]]+(0.05*SegmentExceptTable[[#This Row],[Boundary S/M]])","v":-0.15133416797423643},{"$f":"IF(AND(AND(kwpeak_norm>SegmentExceptTable[[#This Row],[kW Boundary]],kwpeak_norm<SegmentExceptTable[[#This Row],[kW Exception]]),AND(kwhmo_norm>SegmentExceptTable[[#This Row],[Boundary S/M]],kwhmo_norm<SegmentExceptTable[[#This Row],[Exception S/M]])),1,0)","v":0},{"$f":"$BP$10*SegmentExceptTable[[#This Row],[kW Boundary]]+$BP$11","v":0.90700583028837711},{"$f":"$BP$12*SegmentExceptTable[[#This Row],[kW Boundary]]+$BP$13","v":0.3383346112303719},{"$f":"SegmentExceptTable[[#This Row],[Boundary M/L]]+(0.05*SegmentExceptTable[[#This Row],[Boundary M/L]])","v":0.3552513417918905},{"$f":"IF(AND(AND(kwpeak_norm>SegmentExceptTable[[#This Row],[kW Boundary]],kwpeak_norm<SegmentExceptTable[[#This Row],[kW Exception]]),AND(kwhmo_norm>SegmentExceptTable[[#This Row],[Boundary M/L]],kwhmo_norm<SegmentExceptTable[[#This Row],[Exception M/L]])),1,0)","v":0}]
[null,null,null,null,null,null,null,null,null,null,null,null,null,null,null,null,null,null,null,null,null,null,null,null,null,null,null,null,null,null,null,null,null,null,null,null,null,null,null,null,null,null,null,null,null,null,null,295,{"$f":"SegmentExceptTable[[#This Row],[Numbers]]/$BP$4","v":0.49248747913188645},{"$f":"SegmentExceptTable[[#This Row],[kW Boundary]]+(0.05*SegmentExceptTable[[#This Row],[kW Boundary]])","v":0.51711185308848073},{"$f":"$BP$6*SegmentExceptTable[[#This Row],[kW Boundary]]+$BP$7","v":0.69719759844044149},{"$f":"$BP$8*SegmentExceptTable[[#This Row],[kW Boundary]]+$BP$9","v":-0.14527621541851321},{"$f":"SegmentExceptTable[[#This Row],[Boundary S/M]]+(0.05*SegmentExceptTable[[#This Row],[Boundary S/M]])","v":-0.15254002618943888},{"$f":"IF(AND(AND(kwpeak_norm>SegmentExceptTable[[#This Row],[kW Boundary]],kwpeak_norm<SegmentExceptTable[[#This Row],[kW Exception]]),AND(kwhmo_norm>SegmentExceptTable[[#This Row],[Boundary S/M]],kwhmo_norm<SegmentExceptTable[[#This Row],[Exception S/M]])),1,0)","v":0},{"$f":"$BP$10*SegmentExceptTable[[#This Row],[kW Boundary]]+$BP$11","v":0.9105328839306156},{"$f":"$BP$12*SegmentExceptTable[[#This Row],[kW Boundary]]+$BP$13","v":0.33754441620658315},{"$f":"SegmentExceptTable[[#This Row],[Boundary M/L]]+(0.05*SegmentExceptTable[[#This Row],[Boundary M/L]])","v":0.35442163701691232},{"$f":"IF(AND(AND(kwpeak_norm>SegmentExceptTable[[#This Row],[kW Boundary]],kwpeak_norm<SegmentExceptTable[[#This Row],[kW Exception]]),AND(kwhmo_norm>SegmentExceptTable[[#This Row],[Boundary M/L]],kwhmo_norm<SegmentExceptTable[[#This Row],[Exception M/L]])),1,0)","v":0}]
[null,null,null,null,null,null,null,null,null,null,null,null,null,null,null,null,null,null,null,null,null,null,null,null,null,null,null,null,null,null,null,null,null,null,null,null,null,null,null,null,null,null,null,null,null,null,null,296,{"$f":"SegmentExceptTable[[#This Row],[Numbers]]/$BP$4","v":0.49415692821368951},{"$f":"SegmentExceptTable[[#This Row],[kW Boundary]]+(0.05*SegmentExceptTable[[#This Row],[kW Boundary]])","v":0.51886477462437397},{"$f":"$BP$6*SegmentExceptTable[[#This Row],[kW Boundary]]+$BP$7","v":0.69962442873580777},{"$f":"$BP$8*SegmentExceptTable[[#This Row],[kW Boundary]]+$BP$9","v":-0.1464246518139441},{"$f":"SegmentExceptTable[[#This Row],[Boundary S/M]]+(0.05*SegmentExceptTable[[#This Row],[Boundary S/M]])","v":-0.15374588440464129},{"$f":"IF(AND(AND(kwpeak_norm>SegmentExceptTable[[#This Row],[kW Boundary]],kwpeak_norm<SegmentExceptTable[[#This Row],[kW Exception]]),AND(kwhmo_norm>SegmentExceptTable[[#This Row],[Boundary S/M]],kwhmo_norm<SegmentExceptTable[[#This Row],[Exception S/M]])),1,0)","v":0},{"$f":"$BP$10*SegmentExceptTable[[#This Row],[kW Boundary]]+$BP$11","v":0.91405993757285431},{"$f":"$BP$12*SegmentExceptTable[[#This Row],[kW Boundary]]+$BP$13","v":0.33675422118279441},{"$f":"SegmentExceptTable[[#This Row],[Boundary M/L]]+(0.05*SegmentExceptTable[[#This Row],[Boundary M/L]])","v":0.35359193224193414},{"$f":"IF(AND(AND(kwpeak_norm>SegmentExceptTable[[#This Row],[kW Boundary]],kwpeak_norm<SegmentExceptTable[[#This Row],[kW Exception]]),AND(kwhmo_norm>SegmentExceptTable[[#This Row],[Boundary M/L]],kwhmo_norm<SegmentExceptTable[[#This Row],[Exception M/L]])),1,0)","v":0}]
[null,null,null,null,null,null,null,null,null,null,null,null,null,null,null,null,null,null,null,null,null,null,null,null,null,null,null,null,null,null,null,null,null,null,null,null,null,null,null,null,null,null,null,null,null,null,null,297,{"$f":"SegmentExceptTable[[#This Row],[Numbers]]/$BP$4","v":0.4958263772954925},{"$f":"SegmentExceptTable[[#This Row],[kW Boundary]]+(0.05*SegmentExceptTable[[#This Row],[kW Boundary]])","v":0.5206176961602671},{"$f":"$BP$6*SegmentExceptTable[[#This Row],[kW Boundary]]+$BP$7","v":0.70205125903117405},{"$f":"$BP$8*SegmentExceptTable[[#This Row],[kW Boundary]]+$BP$9","v":-0.14757308820937498},{"$f":"SegmentExceptTable[[#This Row],[Boundary S/M]]+(0.05*SegmentExceptTable[[#This Row],[Boundary S/M]])","v":-0.15495174261984374},{"$f":"IF(AND(AND(kwpeak_norm>SegmentExceptTable[[#This Row],[kW Boundary]],kwpeak_norm<SegmentExceptTable[[#This Row],[kW Exception]]),AND(kwhmo_norm>SegmentExceptTable[[#This Row],[Boundary S/M]],kwhmo_norm<SegmentExceptTable[[#This Row],[Exception S/M]])),1,0)","v":0},{"$f":"$BP$10*SegmentExceptTable[[#This Row],[kW Boundary]]+$BP$11","v":0.9175869912150928},{"$f":"$BP$12*SegmentExceptTable[[#This Row],[kW Boundary]]+$BP$13","v":0.33596402615900567},{"$f":"SegmentExceptTable[[#This Row],[Boundary M/L]]+(0.05*SegmentExceptTable[[#This Row],[Boundary M/L]])","v":0.35276222746695596},{"$f":"IF(AND(AND(kwpeak_norm>SegmentExceptTable[[#This Row],[kW Boundary]],kwpeak_norm<SegmentExceptTable[[#This Row],[kW Exception]]),AND(kwhmo_norm>SegmentExceptTable[[#This Row],[Boundary M/L]],kwhmo_norm<SegmentExceptTable[[#This Row],[Exception M/L]])),1,0)","v":0}]
[null,null,null,null,null,null,null,null,null,null,null,null,null,null,null,null,null,null,null,null,null,null,null,null,null,null,null,null,null,null,null,null,null,null,null,null,null,null,null,null,null,null,null,null,null,null,null,298,{"$f":"SegmentExceptTable[[#This Row],[Numbers]]/$BP$4","v":0.4974958263772955},{"$f":"SegmentExceptTable[[#This Row],[kW Boundary]]+(0.05*SegmentExceptTable[[#This Row],[kW Boundary]])","v":0.52237061769616022},{"$f":"$BP$6*SegmentExceptTable[[#This Row],[kW Boundary]]+$BP$7","v":0.70447808932654032},{"$f":"$BP$8*SegmentExceptTable[[#This Row],[kW Boundary]]+$BP$9","v":-0.14872152460480587},{"$f":"SegmentExceptTable[[#This Row],[Boundary S/M]]+(0.05*SegmentExceptTable[[#This Row],[Boundary S/M]])","v":-0.15615760083504615},{"$f":"IF(AND(AND(kwpeak_norm>SegmentExceptTable[[#This Row],[kW Boundary]],kwpeak_norm<SegmentExceptTable[[#This Row],[kW Exception]]),AND(kwhmo_norm>SegmentExceptTable[[#This Row],[Boundary S/M]],kwhmo_norm<SegmentExceptTable[[#This Row],[Exception S/M]])),1,0)","v":0},{"$f":"$BP$10*SegmentExceptTable[[#This Row],[kW Boundary]]+$BP$11","v":0.92111404485733128},{"$f":"$BP$12*SegmentExceptTable[[#This Row],[kW Boundary]]+$BP$13","v":0.33517383113521693},{"$f":"SegmentExceptTable[[#This Row],[Boundary M/L]]+(0.05*SegmentExceptTable[[#This Row],[Boundary M/L]])","v":0.35193252269197778},{"$f":"IF(AND(AND(kwpeak_norm>SegmentExceptTable[[#This Row],[kW Boundary]],kwpeak_norm<SegmentExceptTable[[#This Row],[kW Exception]]),AND(kwhmo_norm>SegmentExceptTable[[#This Row],[Boundary M/L]],kwhmo_norm<SegmentExceptTable[[#This Row],[Exception M/L]])),1,0)","v":0}]
[null,null,null,null,null,null,null,null,null,null,null,null,null,null,null,null,null,null,null,null,null,null,null,null,null,null,null,null,null,null,null,null,null,null,null,null,null,null,null,null,null,null,null,null,null,null,null,299,{"$f":"SegmentExceptTable[[#This Row],[Numbers]]/$BP$4","v":0.4991652754590985},{"$f":"SegmentExceptTable[[#This Row],[kW Boundary]]+(0.05*SegmentExceptTable[[#This Row],[kW Boundary]])","v":0.52412353923205346},{"$f":"$BP$6*SegmentExceptTable[[#This Row],[kW Boundary]]+$BP$7","v":0.7069049196219066},{"$f":"$BP$8*SegmentExceptTable[[#This Row],[kW Boundary]]+$BP$9","v":-0.14986996100023675},{"$f":"SegmentExceptTable[[#This Row],[Boundary S/M]]+(0.05*SegmentExceptTable[[#This Row],[Boundary S/M]])","v":-0.15736345905024859},{"$f":"IF(AND(AND(kwpeak_norm>SegmentExceptTable[[#This Row],[kW Boundary]],kwpeak_norm<SegmentExceptTable[[#This Row],[kW Exception]]),AND(kwhmo_norm>SegmentExceptTable[[#This Row],[Boundary S/M]],kwhmo_norm<SegmentExceptTable[[#This Row],[Exception S/M]])),1,0)","v":0},{"$f":"$BP$10*SegmentExceptTable[[#This Row],[kW Boundary]]+$BP$11","v":0.92464109849956977},{"$f":"$BP$12*SegmentExceptTable[[#This Row],[kW Boundary]]+$BP$13","v":0.33438363611142813},{"$f":"SegmentExceptTable[[#This Row],[Boundary M/L]]+(0.05*SegmentExceptTable[[#This Row],[Boundary M/L]])","v":0.35110281791699954},{"$f":"IF(AND(AND(kwpeak_norm>SegmentExceptTable[[#This Row],[kW Boundary]],kwpeak_norm<SegmentExceptTable[[#This Row],[kW Exception]]),AND(kwhmo_norm>SegmentExceptTable[[#This Row],[Boundary M/L]],kwhmo_norm<SegmentExceptTable[[#This Row],[Exception M/L]])),1,0)","v":0}]
[null,null,null,null,null,null,null,null,null,null,null,null,null,null,null,null,null,null,null,null,null,null,null,null,null,null,null,null,null,null,null,null,null,null,null,null,null,null,null,null,null,null,null,null,null,null,null,300,{"$f":"SegmentExceptTable[[#This Row],[Numbers]]/$BP$4","v":0.5008347245409015},{"$f":"SegmentExceptTable[[#This Row],[kW Boundary]]+(0.05*SegmentExceptTable[[#This Row],[kW Boundary]])","v":0.52587646076794659},{"$f":"$BP$6*SegmentExceptTable[[#This Row],[kW Boundary]]+$BP$7","v":0.70933174991727288},{"$f":"$BP$8*SegmentExceptTable[[#This Row],[kW Boundary]]+$BP$9","v":-0.15101839739566758},{"$f":"SegmentExceptTable[[#This Row],[Boundary S/M]]+(0.05*SegmentExceptTable[[#This Row],[Boundary S/M]])","v":-0.15856931726545095},{"$f":"IF(AND(AND(kwpeak_norm>SegmentExceptTable[[#This Row],[kW Boundary]],kwpeak_norm<SegmentExceptTable[[#This Row],[kW Exception]]),AND(kwhmo_norm>SegmentExceptTable[[#This Row],[Boundary S/M]],kwhmo_norm<SegmentExceptTable[[#This Row],[Exception S/M]])),1,0)","v":0},{"$f":"$BP$10*SegmentExceptTable[[#This Row],[kW Boundary]]+$BP$11","v":0.92816815214180848},{"$f":"$BP$12*SegmentExceptTable[[#This Row],[kW Boundary]]+$BP$13","v":0.33359344108763939},{"$f":"SegmentExceptTable[[#This Row],[Boundary M/L]]+(0.05*SegmentExceptTable[[#This Row],[Boundary M/L]])","v":0.35027311314202136},{"$f":"IF(AND(AND(kwpeak_norm>SegmentExceptTable[[#This Row],[kW Boundary]],kwpeak_norm<SegmentExceptTable[[#This Row],[kW Exception]]),AND(kwhmo_norm>SegmentExceptTable[[#This Row],[Boundary M/L]],kwhmo_norm<SegmentExceptTable[[#This Row],[Exception M/L]])),1,0)","v":0}]
[null,null,null,null,null,null,null,null,null,null,null,null,null,null,null,null,null,null,null,null,null,null,null,null,null,null,null,null,null,null,null,null,null,null,null,null,null,null,null,null,null,null,null,null,null,null,null,301,{"$f":"SegmentExceptTable[[#This Row],[Numbers]]/$BP$4","v":0.5025041736227045},{"$f":"SegmentExceptTable[[#This Row],[kW Boundary]]+(0.05*SegmentExceptTable[[#This Row],[kW Boundary]])","v":0.52762938230383971},{"$f":"$BP$6*SegmentExceptTable[[#This Row],[kW Boundary]]+$BP$7","v":0.71175858021263916},{"$f":"$BP$8*SegmentExceptTable[[#This Row],[kW Boundary]]+$BP$9","v":-0.15216683379109847},{"$f":"SegmentExceptTable[[#This Row],[Boundary S/M]]+(0.05*SegmentExceptTable[[#This Row],[Boundary S/M]])","v":-0.1597751754806534},{"$f":"IF(AND(AND(kwpeak_norm>SegmentExceptTable[[#This Row],[kW Boundary]],kwpeak_norm<SegmentExceptTable[[#This Row],[kW Exception]]),AND(kwhmo_norm>SegmentExceptTable[[#This Row],[Boundary S/M]],kwhmo_norm<SegmentExceptTable[[#This Row],[Exception S/M]])),1,0)","v":0},{"$f":"$BP$10*SegmentExceptTable[[#This Row],[kW Boundary]]+$BP$11","v":0.93169520578404696},{"$f":"$BP$12*SegmentExceptTable[[#This Row],[kW Boundary]]+$BP$13","v":0.33280324606385059},{"$f":"SegmentExceptTable[[#This Row],[Boundary M/L]]+(0.05*SegmentExceptTable[[#This Row],[Boundary M/L]])","v":0.34944340836704313},{"$f":"IF(AND(AND(kwpeak_norm>SegmentExceptTable[[#This Row],[kW Boundary]],kwpeak_norm<SegmentExceptTable[[#This Row],[kW Exception]]),AND(kwhmo_norm>SegmentExceptTable[[#This Row],[Boundary M/L]],kwhmo_norm<SegmentExceptTable[[#This Row],[Exception M/L]])),1,0)","v":0}]
[null,null,null,null,null,null,null,null,null,null,null,null,null,null,null,null,null,null,null,null,null,null,null,null,null,null,null,null,null,null,null,null,null,null,null,null,null,null,null,null,null,null,null,null,null,null,null,302,{"$f":"SegmentExceptTable[[#This Row],[Numbers]]/$BP$4","v":0.5041736227045075},{"$f":"SegmentExceptTable[[#This Row],[kW Boundary]]+(0.05*SegmentExceptTable[[#This Row],[kW Boundary]])","v":0.52938230383973284},{"$f":"$BP$6*SegmentExceptTable[[#This Row],[kW Boundary]]+$BP$7","v":0.71418541050800544},{"$f":"$BP$8*SegmentExceptTable[[#This Row],[kW Boundary]]+$BP$9","v":-0.15331527018652935},{"$f":"SegmentExceptTable[[#This Row],[Boundary S/M]]+(0.05*SegmentExceptTable[[#This Row],[Boundary S/M]])","v":-0.16098103369585581},{"$f":"IF(AND(AND(kwpeak_norm>SegmentExceptTable[[#This Row],[kW Boundary]],kwpeak_norm<SegmentExceptTable[[#This Row],[kW Exception]]),AND(kwhmo_norm>SegmentExceptTable[[#This Row],[Boundary S/M]],kwhmo_norm<SegmentExceptTable[[#This Row],[Exception S/M]])),1,0)","v":0},{"$f":"$BP$10*SegmentExceptTable[[#This Row],[kW Boundary]]+$BP$11","v":0.93522225942628545},{"$f":"$BP$12*SegmentExceptTable[[#This Row],[kW Boundary]]+$BP$13","v":0.33201305104006185},{"$f":"SegmentExceptTable[[#This Row],[Boundary M/L]]+(0.05*SegmentExceptTable[[#This Row],[Boundary M/L]])","v":0.34861370359206495},{"$f":"IF(AND(AND(kwpeak_norm>SegmentExceptTable[[#This Row],[kW Boundary]],kwpeak_norm<SegmentExceptTable[[#This Row],[kW Exception]]),AND(kwhmo_norm>SegmentExceptTable[[#This Row],[Boundary M/L]],kwhmo_norm<SegmentExceptTable[[#This Row],[Exception M/L]])),1,0)","v":0}]
[null,null,null,null,null,null,null,null,null,null,null,null,null,null,null,null,null,null,null,null,null,null,null,null,null,null,null,null,null,null,null,null,null,null,null,null,null,null,null,null,null,null,null,null,null,null,null,303,{"$f":"SegmentExceptTable[[#This Row],[Numbers]]/$BP$4","v":0.50584307178631049},{"$f":"SegmentExceptTable[[#This Row],[kW Boundary]]+(0.05*SegmentExceptTable[[#This Row],[kW Boundary]])","v":0.53113522537562607},{"$f":"$BP$6*SegmentExceptTable[[#This Row],[kW Boundary]]+$BP$7","v":0.71661224080337171},{"$f":"$BP$8*SegmentExceptTable[[#This Row],[kW Boundary]]+$BP$9","v":-0.15446370658196024},{"$f":"SegmentExceptTable[[#This Row],[Boundary S/M]]+(0.05*SegmentExceptTable[[#This Row],[Boundary S/M]])","v":-0.16218689191105826},{"$f":"IF(AND(AND(kwpeak_norm>SegmentExceptTable[[#This Row],[kW Boundary]],kwpeak_norm<SegmentExceptTable[[#This Row],[kW Exception]]),AND(kwhmo_norm>SegmentExceptTable[[#This Row],[Boundary S/M]],kwhmo_norm<SegmentExceptTable[[#This Row],[Exception S/M]])),1,0)","v":0},{"$f":"$BP$10*SegmentExceptTable[[#This Row],[kW Boundary]]+$BP$11","v":0.93874931306852394},{"$f":"$BP$12*SegmentExceptTable[[#This Row],[kW Boundary]]+$BP$13","v":0.3312228560162731},{"$f":"SegmentExceptTable[[#This Row],[Boundary M/L]]+(0.05*SegmentExceptTable[[#This Row],[Boundary M/L]])","v":0.34778399881708677},{"$f":"IF(AND(AND(kwpeak_norm>SegmentExceptTable[[#This Row],[kW Boundary]],kwpeak_norm<SegmentExceptTable[[#This Row],[kW Exception]]),AND(kwhmo_norm>SegmentExceptTable[[#This Row],[Boundary M/L]],kwhmo_norm<SegmentExceptTable[[#This Row],[Exception M/L]])),1,0)","v":0}]
[null,null,null,null,null,null,null,null,null,null,null,null,null,null,null,null,null,null,null,null,null,null,null,null,null,null,null,null,null,null,null,null,null,null,null,null,null,null,null,null,null,null,null,null,null,null,null,304,{"$f":"SegmentExceptTable[[#This Row],[Numbers]]/$BP$4","v":0.50751252086811349},{"$f":"SegmentExceptTable[[#This Row],[kW Boundary]]+(0.05*SegmentExceptTable[[#This Row],[kW Boundary]])","v":0.5328881469115192},{"$f":"$BP$6*SegmentExceptTable[[#This Row],[kW Boundary]]+$BP$7","v":0.71903907109873799},{"$f":"$BP$8*SegmentExceptTable[[#This Row],[kW Boundary]]+$BP$9","v":-0.15561214297739107},{"$f":"SegmentExceptTable[[#This Row],[Boundary S/M]]+(0.05*SegmentExceptTable[[#This Row],[Boundary S/M]])","v":-0.16339275012626062},{"$f":"IF(AND(AND(kwpeak_norm>SegmentExceptTable[[#This Row],[kW Boundary]],kwpeak_norm<SegmentExceptTable[[#This Row],[kW Exception]]),AND(kwhmo_norm>SegmentExceptTable[[#This Row],[Boundary S/M]],kwhmo_norm<SegmentExceptTable[[#This Row],[Exception S/M]])),1,0)","v":0},{"$f":"$BP$10*SegmentExceptTable[[#This Row],[kW Boundary]]+$BP$11","v":0.94227636671076243},{"$f":"$BP$12*SegmentExceptTable[[#This Row],[kW Boundary]]+$BP$13","v":0.33043266099248436},{"$f":"SegmentExceptTable[[#This Row],[Boundary M/L]]+(0.05*SegmentExceptTable[[#This Row],[Boundary M/L]])","v":0.34695429404210859},{"$f":"IF(AND(AND(kwpeak_norm>SegmentExceptTable[[#This Row],[kW Boundary]],kwpeak_norm<SegmentExceptTable[[#This Row],[kW Exception]]),AND(kwhmo_norm>SegmentExceptTable[[#This Row],[Boundary M/L]],kwhmo_norm<SegmentExceptTable[[#This Row],[Exception M/L]])),1,0)","v":0}]
[null,null,null,null,null,null,null,null,null,null,null,null,null,null,null,null,null,null,null,null,null,null,null,null,null,null,null,null,null,null,null,null,null,null,null,null,null,null,null,null,null,null,null,null,null,null,null,305,{"$f":"SegmentExceptTable[[#This Row],[Numbers]]/$BP$4","v":0.50918196994991649},{"$f":"SegmentExceptTable[[#This Row],[kW Boundary]]+(0.05*SegmentExceptTable[[#This Row],[kW Boundary]])","v":0.53464106844741233},{"$f":"$BP$6*SegmentExceptTable[[#This Row],[kW Boundary]]+$BP$7","v":0.72146590139410427},{"$f":"$BP$8*SegmentExceptTable[[#This Row],[kW Boundary]]+$BP$9","v":-0.15676057937282195},{"$f":"SegmentExceptTable[[#This Row],[Boundary S/M]]+(0.05*SegmentExceptTable[[#This Row],[Boundary S/M]])","v":-0.16459860834146306},{"$f":"IF(AND(AND(kwpeak_norm>SegmentExceptTable[[#This Row],[kW Boundary]],kwpeak_norm<SegmentExceptTable[[#This Row],[kW Exception]]),AND(kwhmo_norm>SegmentExceptTable[[#This Row],[Boundary S/M]],kwhmo_norm<SegmentExceptTable[[#This Row],[Exception S/M]])),1,0)","v":0},{"$f":"$BP$10*SegmentExceptTable[[#This Row],[kW Boundary]]+$BP$11","v":0.94580342035300091},{"$f":"$BP$12*SegmentExceptTable[[#This Row],[kW Boundary]]+$BP$13","v":0.32964246596869562},{"$f":"SegmentExceptTable[[#This Row],[Boundary M/L]]+(0.05*SegmentExceptTable[[#This Row],[Boundary M/L]])","v":0.34612458926713041},{"$f":"IF(AND(AND(kwpeak_norm>SegmentExceptTable[[#This Row],[kW Boundary]],kwpeak_norm<SegmentExceptTable[[#This Row],[kW Exception]]),AND(kwhmo_norm>SegmentExceptTable[[#This Row],[Boundary M/L]],kwhmo_norm<SegmentExceptTable[[#This Row],[Exception M/L]])),1,0)","v":0}]
[null,null,null,null,null,null,null,null,null,null,null,null,null,null,null,null,null,null,null,null,null,null,null,null,null,null,null,null,null,null,null,null,null,null,null,null,null,null,null,null,null,null,null,null,null,null,null,306,{"$f":"SegmentExceptTable[[#This Row],[Numbers]]/$BP$4","v":0.51085141903171949},{"$f":"SegmentExceptTable[[#This Row],[kW Boundary]]+(0.05*SegmentExceptTable[[#This Row],[kW Boundary]])","v":0.53639398998330545},{"$f":"$BP$6*SegmentExceptTable[[#This Row],[kW Boundary]]+$BP$7","v":0.72389273168947044},{"$f":"$BP$8*SegmentExceptTable[[#This Row],[kW Boundary]]+$BP$9","v":-0.15790901576825284},{"$f":"SegmentExceptTable[[#This Row],[Boundary S/M]]+(0.05*SegmentExceptTable[[#This Row],[Boundary S/M]])","v":-0.16580446655666548},{"$f":"IF(AND(AND(kwpeak_norm>SegmentExceptTable[[#This Row],[kW Boundary]],kwpeak_norm<SegmentExceptTable[[#This Row],[kW Exception]]),AND(kwhmo_norm>SegmentExceptTable[[#This Row],[Boundary S/M]],kwhmo_norm<SegmentExceptTable[[#This Row],[Exception S/M]])),1,0)","v":0},{"$f":"$BP$10*SegmentExceptTable[[#This Row],[kW Boundary]]+$BP$11","v":0.9493304739952394},{"$f":"$BP$12*SegmentExceptTable[[#This Row],[kW Boundary]]+$BP$13","v":0.32885227094490688},{"$f":"SegmentExceptTable[[#This Row],[Boundary M/L]]+(0.05*SegmentExceptTable[[#This Row],[Boundary M/L]])","v":0.34529488449215223},{"$f":"IF(AND(AND(kwpeak_norm>SegmentExceptTable[[#This Row],[kW Boundary]],kwpeak_norm<SegmentExceptTable[[#This Row],[kW Exception]]),AND(kwhmo_norm>SegmentExceptTable[[#This Row],[Boundary M/L]],kwhmo_norm<SegmentExceptTable[[#This Row],[Exception M/L]])),1,0)","v":0}]
[null,null,null,null,null,null,null,null,null,null,null,null,null,null,null,null,null,null,null,null,null,null,null,null,null,null,null,null,null,null,null,null,null,null,null,null,null,null,null,null,null,null,null,null,null,null,null,307,{"$f":"SegmentExceptTable[[#This Row],[Numbers]]/$BP$4","v":0.51252086811352249},{"$f":"SegmentExceptTable[[#This Row],[kW Boundary]]+(0.05*SegmentExceptTable[[#This Row],[kW Boundary]])","v":0.53814691151919858},{"$f":"$BP$6*SegmentExceptTable[[#This Row],[kW Boundary]]+$BP$7","v":0.72631956198483671},{"$f":"$BP$8*SegmentExceptTable[[#This Row],[kW Boundary]]+$BP$9","v":-0.15905745216368372},{"$f":"SegmentExceptTable[[#This Row],[Boundary S/M]]+(0.05*SegmentExceptTable[[#This Row],[Boundary S/M]])","v":-0.16701032477186792},{"$f":"IF(AND(AND(kwpeak_norm>SegmentExceptTable[[#This Row],[kW Boundary]],kwpeak_norm<SegmentExceptTable[[#This Row],[kW Exception]]),AND(kwhmo_norm>SegmentExceptTable[[#This Row],[Boundary S/M]],kwhmo_norm<SegmentExceptTable[[#This Row],[Exception S/M]])),1,0)","v":0},{"$f":"$BP$10*SegmentExceptTable[[#This Row],[kW Boundary]]+$BP$11","v":0.95285752763747789},{"$f":"$BP$12*SegmentExceptTable[[#This Row],[kW Boundary]]+$BP$13","v":0.32806207592111813},{"$f":"SegmentExceptTable[[#This Row],[Boundary M/L]]+(0.05*SegmentExceptTable[[#This Row],[Boundary M/L]])","v":0.34446517971717405},{"$f":"IF(AND(AND(kwpeak_norm>SegmentExceptTable[[#This Row],[kW Boundary]],kwpeak_norm<SegmentExceptTable[[#This Row],[kW Exception]]),AND(kwhmo_norm>SegmentExceptTable[[#This Row],[Boundary M/L]],kwhmo_norm<SegmentExceptTable[[#This Row],[Exception M/L]])),1,0)","v":0}]
[null,null,null,null,null,null,null,null,null,null,null,null,null,null,null,null,null,null,null,null,null,null,null,null,null,null,null,null,null,null,null,null,null,null,null,null,null,null,null,null,null,null,null,null,null,null,null,308,{"$f":"SegmentExceptTable[[#This Row],[Numbers]]/$BP$4","v":0.5141903171953256},{"$f":"SegmentExceptTable[[#This Row],[kW Boundary]]+(0.05*SegmentExceptTable[[#This Row],[kW Boundary]])","v":0.53989983305509193},{"$f":"$BP$6*SegmentExceptTable[[#This Row],[kW Boundary]]+$BP$7","v":0.72874639228020321},{"$f":"$BP$8*SegmentExceptTable[[#This Row],[kW Boundary]]+$BP$9","v":-0.16020588855911466},{"$f":"SegmentExceptTable[[#This Row],[Boundary S/M]]+(0.05*SegmentExceptTable[[#This Row],[Boundary S/M]])","v":-0.16821618298707039},{"$f":"IF(AND(AND(kwpeak_norm>SegmentExceptTable[[#This Row],[kW Boundary]],kwpeak_norm<SegmentExceptTable[[#This Row],[kW Exception]]),AND(kwhmo_norm>SegmentExceptTable[[#This Row],[Boundary S/M]],kwhmo_norm<SegmentExceptTable[[#This Row],[Exception S/M]])),1,0)","v":0},{"$f":"$BP$10*SegmentExceptTable[[#This Row],[kW Boundary]]+$BP$11","v":0.95638458127971682},{"$f":"$BP$12*SegmentExceptTable[[#This Row],[kW Boundary]]+$BP$13","v":0.32727188089732928},{"$f":"SegmentExceptTable[[#This Row],[Boundary M/L]]+(0.05*SegmentExceptTable[[#This Row],[Boundary M/L]])","v":0.34363547494219576},{"$f":"IF(AND(AND(kwpeak_norm>SegmentExceptTable[[#This Row],[kW Boundary]],kwpeak_norm<SegmentExceptTable[[#This Row],[kW Exception]]),AND(kwhmo_norm>SegmentExceptTable[[#This Row],[Boundary M/L]],kwhmo_norm<SegmentExceptTable[[#This Row],[Exception M/L]])),1,0)","v":0}]
[null,null,null,null,null,null,null,null,null,null,null,null,null,null,null,null,null,null,null,null,null,null,null,null,null,null,null,null,null,null,null,null,null,null,null,null,null,null,null,null,null,null,null,null,null,null,null,309,{"$f":"SegmentExceptTable[[#This Row],[Numbers]]/$BP$4","v":0.5158597662771286},{"$f":"SegmentExceptTable[[#This Row],[kW Boundary]]+(0.05*SegmentExceptTable[[#This Row],[kW Boundary]])","v":0.54165275459098505},{"$f":"$BP$6*SegmentExceptTable[[#This Row],[kW Boundary]]+$BP$7","v":0.73117322257556949},{"$f":"$BP$8*SegmentExceptTable[[#This Row],[kW Boundary]]+$BP$9","v":-0.16135432495454555},{"$f":"SegmentExceptTable[[#This Row],[Boundary S/M]]+(0.05*SegmentExceptTable[[#This Row],[Boundary S/M]])","v":-0.16942204120227283},{"$f":"IF(AND(AND(kwpeak_norm>SegmentExceptTable[[#This Row],[kW Boundary]],kwpeak_norm<SegmentExceptTable[[#This Row],[kW Exception]]),AND(kwhmo_norm>SegmentExceptTable[[#This Row],[Boundary S/M]],kwhmo_norm<SegmentExceptTable[[#This Row],[Exception S/M]])),1,0)","v":0},{"$f":"$BP$10*SegmentExceptTable[[#This Row],[kW Boundary]]+$BP$11","v":0.9599116349219553},{"$f":"$BP$12*SegmentExceptTable[[#This Row],[kW Boundary]]+$BP$13","v":0.32648168587354054},{"$f":"SegmentExceptTable[[#This Row],[Boundary M/L]]+(0.05*SegmentExceptTable[[#This Row],[Boundary M/L]])","v":0.34280577016721758},{"$f":"IF(AND(AND(kwpeak_norm>SegmentExceptTable[[#This Row],[kW Boundary]],kwpeak_norm<SegmentExceptTable[[#This Row],[kW Exception]]),AND(kwhmo_norm>SegmentExceptTable[[#This Row],[Boundary M/L]],kwhmo_norm<SegmentExceptTable[[#This Row],[Exception M/L]])),1,0)","v":0}]
[null,null,null,null,null,null,null,null,null,null,null,null,null,null,null,null,null,null,null,null,null,null,null,null,null,null,null,null,null,null,null,null,null,null,null,null,null,null,null,null,null,null,null,null,null,null,null,310,{"$f":"SegmentExceptTable[[#This Row],[Numbers]]/$BP$4","v":0.51752921535893159},{"$f":"SegmentExceptTable[[#This Row],[kW Boundary]]+(0.05*SegmentExceptTable[[#This Row],[kW Boundary]])","v":0.54340567612687818},{"$f":"$BP$6*SegmentExceptTable[[#This Row],[kW Boundary]]+$BP$7","v":0.73360005287093577},{"$f":"$BP$8*SegmentExceptTable[[#This Row],[kW Boundary]]+$BP$9","v":-0.16250276134997638},{"$f":"SegmentExceptTable[[#This Row],[Boundary S/M]]+(0.05*SegmentExceptTable[[#This Row],[Boundary S/M]])","v":-0.17062789941747519},{"$f":"IF(AND(AND(kwpeak_norm>SegmentExceptTable[[#This Row],[kW Boundary]],kwpeak_norm<SegmentExceptTable[[#This Row],[kW Exception]]),AND(kwhmo_norm>SegmentExceptTable[[#This Row],[Boundary S/M]],kwhmo_norm<SegmentExceptTable[[#This Row],[Exception S/M]])),1,0)","v":0},{"$f":"$BP$10*SegmentExceptTable[[#This Row],[kW Boundary]]+$BP$11","v":0.96343868856419379},{"$f":"$BP$12*SegmentExceptTable[[#This Row],[kW Boundary]]+$BP$13","v":0.3256914908497518},{"$f":"SegmentExceptTable[[#This Row],[Boundary M/L]]+(0.05*SegmentExceptTable[[#This Row],[Boundary M/L]])","v":0.3419760653922394},{"$f":"IF(AND(AND(kwpeak_norm>SegmentExceptTable[[#This Row],[kW Boundary]],kwpeak_norm<SegmentExceptTable[[#This Row],[kW Exception]]),AND(kwhmo_norm>SegmentExceptTable[[#This Row],[Boundary M/L]],kwhmo_norm<SegmentExceptTable[[#This Row],[Exception M/L]])),1,0)","v":0}]
[null,null,null,null,null,null,null,null,null,null,null,null,null,null,null,null,null,null,null,null,null,null,null,null,null,null,null,null,null,null,null,null,null,null,null,null,null,null,null,null,null,null,null,null,null,null,null,311,{"$f":"SegmentExceptTable[[#This Row],[Numbers]]/$BP$4","v":0.51919866444073459},{"$f":"SegmentExceptTable[[#This Row],[kW Boundary]]+(0.05*SegmentExceptTable[[#This Row],[kW Boundary]])","v":0.5451585976627713},{"$f":"$BP$6*SegmentExceptTable[[#This Row],[kW Boundary]]+$BP$7","v":0.73602688316630194},{"$f":"$BP$8*SegmentExceptTable[[#This Row],[kW Boundary]]+$BP$9","v":-0.16365119774540726},{"$f":"SegmentExceptTable[[#This Row],[Boundary S/M]]+(0.05*SegmentExceptTable[[#This Row],[Boundary S/M]])","v":-0.17183375763267764},{"$f":"IF(AND(AND(kwpeak_norm>SegmentExceptTable[[#This Row],[kW Boundary]],kwpeak_norm<SegmentExceptTable[[#This Row],[kW Exception]]),AND(kwhmo_norm>SegmentExceptTable[[#This Row],[Boundary S/M]],kwhmo_norm<SegmentExceptTable[[#This Row],[Exception S/M]])),1,0)","v":0},{"$f":"$BP$10*SegmentExceptTable[[#This Row],[kW Boundary]]+$BP$11","v":0.96696574220643228},{"$f":"$BP$12*SegmentExceptTable[[#This Row],[kW Boundary]]+$BP$13","v":0.32490129582596305},{"$f":"SegmentExceptTable[[#This Row],[Boundary M/L]]+(0.05*SegmentExceptTable[[#This Row],[Boundary M/L]])","v":0.34114636061726122},{"$f":"IF(AND(AND(kwpeak_norm>SegmentExceptTable[[#This Row],[kW Boundary]],kwpeak_norm<SegmentExceptTable[[#This Row],[kW Exception]]),AND(kwhmo_norm>SegmentExceptTable[[#This Row],[Boundary M/L]],kwhmo_norm<SegmentExceptTable[[#This Row],[Exception M/L]])),1,0)","v":0}]
[null,null,null,null,null,null,null,null,null,null,null,null,null,null,null,null,null,null,null,null,null,null,null,null,null,null,null,null,null,null,null,null,null,null,null,null,null,null,null,null,null,null,null,null,null,null,null,312,{"$f":"SegmentExceptTable[[#This Row],[Numbers]]/$BP$4","v":0.52086811352253759},{"$f":"SegmentExceptTable[[#This Row],[kW Boundary]]+(0.05*SegmentExceptTable[[#This Row],[kW Boundary]])","v":0.54691151919866443},{"$f":"$BP$6*SegmentExceptTable[[#This Row],[kW Boundary]]+$BP$7","v":0.73845371346166822},{"$f":"$BP$8*SegmentExceptTable[[#This Row],[kW Boundary]]+$BP$9","v":-0.16479963414083815},{"$f":"SegmentExceptTable[[#This Row],[Boundary S/M]]+(0.05*SegmentExceptTable[[#This Row],[Boundary S/M]])","v":-0.17303961584788005},{"$f":"IF(AND(AND(kwpeak_norm>SegmentExceptTable[[#This Row],[kW Boundary]],kwpeak_norm<SegmentExceptTable[[#This Row],[kW Exception]]),AND(kwhmo_norm>SegmentExceptTable[[#This Row],[Boundary S/M]],kwhmo_norm<SegmentExceptTable[[#This Row],[Exception S/M]])),1,0)","v":0},{"$f":"$BP$10*SegmentExceptTable[[#This Row],[kW Boundary]]+$BP$11","v":0.97049279584867076},{"$f":"$BP$12*SegmentExceptTable[[#This Row],[kW Boundary]]+$BP$13","v":0.32411110080217431},{"$f":"SegmentExceptTable[[#This Row],[Boundary M/L]]+(0.05*SegmentExceptTable[[#This Row],[Boundary M/L]])","v":0.34031665584228304},{"$f":"IF(AND(AND(kwpeak_norm>SegmentExceptTable[[#This Row],[kW Boundary]],kwpeak_norm<SegmentExceptTable[[#This Row],[kW Exception]]),AND(kwhmo_norm>SegmentExceptTable[[#This Row],[Boundary M/L]],kwhmo_norm<SegmentExceptTable[[#This Row],[Exception M/L]])),1,0)","v":0}]
[null,null,null,null,null,null,null,null,null,null,null,null,null,null,null,null,null,null,null,null,null,null,null,null,null,null,null,null,null,null,null,null,null,null,null,null,null,null,null,null,null,null,null,null,null,null,null,313,{"$f":"SegmentExceptTable[[#This Row],[Numbers]]/$BP$4","v":0.52253756260434059},{"$f":"SegmentExceptTable[[#This Row],[kW Boundary]]+(0.05*SegmentExceptTable[[#This Row],[kW Boundary]])","v":0.54866444073455767},{"$f":"$BP$6*SegmentExceptTable[[#This Row],[kW Boundary]]+$BP$7","v":0.74088054375703449},{"$f":"$BP$8*SegmentExceptTable[[#This Row],[kW Boundary]]+$BP$9","v":-0.16594807053626903},{"$f":"SegmentExceptTable[[#This Row],[Boundary S/M]]+(0.05*SegmentExceptTable[[#This Row],[Boundary S/M]])","v":-0.17424547406308249},{"$f":"IF(AND(AND(kwpeak_norm>SegmentExceptTable[[#This Row],[kW Boundary]],kwpeak_norm<SegmentExceptTable[[#This Row],[kW Exception]]),AND(kwhmo_norm>SegmentExceptTable[[#This Row],[Boundary S/M]],kwhmo_norm<SegmentExceptTable[[#This Row],[Exception S/M]])),1,0)","v":0},{"$f":"$BP$10*SegmentExceptTable[[#This Row],[kW Boundary]]+$BP$11","v":0.97401984949090925},{"$f":"$BP$12*SegmentExceptTable[[#This Row],[kW Boundary]]+$BP$13","v":0.32332090577838557},{"$f":"SegmentExceptTable[[#This Row],[Boundary M/L]]+(0.05*SegmentExceptTable[[#This Row],[Boundary M/L]])","v":0.33948695106730487},{"$f":"IF(AND(AND(kwpeak_norm>SegmentExceptTable[[#This Row],[kW Boundary]],kwpeak_norm<SegmentExceptTable[[#This Row],[kW Exception]]),AND(kwhmo_norm>SegmentExceptTable[[#This Row],[Boundary M/L]],kwhmo_norm<SegmentExceptTable[[#This Row],[Exception M/L]])),1,0)","v":0}]
[null,null,null,null,null,null,null,null,null,null,null,null,null,null,null,null,null,null,null,null,null,null,null,null,null,null,null,null,null,null,null,null,null,null,null,null,null,null,null,null,null,null,null,null,null,null,null,314,{"$f":"SegmentExceptTable[[#This Row],[Numbers]]/$BP$4","v":0.52420701168614359},{"$f":"SegmentExceptTable[[#This Row],[kW Boundary]]+(0.05*SegmentExceptTable[[#This Row],[kW Boundary]])","v":0.55041736227045079},{"$f":"$BP$6*SegmentExceptTable[[#This Row],[kW Boundary]]+$BP$7","v":0.74330737405240077},{"$f":"$BP$8*SegmentExceptTable[[#This Row],[kW Boundary]]+$BP$9","v":-0.16709650693169986},{"$f":"SegmentExceptTable[[#This Row],[Boundary S/M]]+(0.05*SegmentExceptTable[[#This Row],[Boundary S/M]])","v":-0.17545133227828486},{"$f":"IF(AND(AND(kwpeak_norm>SegmentExceptTable[[#This Row],[kW Boundary]],kwpeak_norm<SegmentExceptTable[[#This Row],[kW Exception]]),AND(kwhmo_norm>SegmentExceptTable[[#This Row],[Boundary S/M]],kwhmo_norm<SegmentExceptTable[[#This Row],[Exception S/M]])),1,0)","v":0},{"$f":"$BP$10*SegmentExceptTable[[#This Row],[kW Boundary]]+$BP$11","v":0.97754690313314774},{"$f":"$BP$12*SegmentExceptTable[[#This Row],[kW Boundary]]+$BP$13","v":0.32253071075459677},{"$f":"SegmentExceptTable[[#This Row],[Boundary M/L]]+(0.05*SegmentExceptTable[[#This Row],[Boundary M/L]])","v":0.33865724629232663},{"$f":"IF(AND(AND(kwpeak_norm>SegmentExceptTable[[#This Row],[kW Boundary]],kwpeak_norm<SegmentExceptTable[[#This Row],[kW Exception]]),AND(kwhmo_norm>SegmentExceptTable[[#This Row],[Boundary M/L]],kwhmo_norm<SegmentExceptTable[[#This Row],[Exception M/L]])),1,0)","v":0}]
[null,null,null,null,null,null,null,null,null,null,null,null,null,null,null,null,null,null,null,null,null,null,null,null,null,null,null,null,null,null,null,null,null,null,null,null,null,null,null,null,null,null,null,null,null,null,null,315,{"$f":"SegmentExceptTable[[#This Row],[Numbers]]/$BP$4","v":0.52587646076794659},{"$f":"SegmentExceptTable[[#This Row],[kW Boundary]]+(0.05*SegmentExceptTable[[#This Row],[kW Boundary]])","v":0.55217028380634392},{"$f":"$BP$6*SegmentExceptTable[[#This Row],[kW Boundary]]+$BP$7","v":0.74573420434776705},{"$f":"$BP$8*SegmentExceptTable[[#This Row],[kW Boundary]]+$BP$9","v":-0.16824494332713075},{"$f":"SegmentExceptTable[[#This Row],[Boundary S/M]]+(0.05*SegmentExceptTable[[#This Row],[Boundary S/M]])","v":-0.17665719049348727},{"$f":"IF(AND(AND(kwpeak_norm>SegmentExceptTable[[#This Row],[kW Boundary]],kwpeak_norm<SegmentExceptTable[[#This Row],[kW Exception]]),AND(kwhmo_norm>SegmentExceptTable[[#This Row],[Boundary S/M]],kwhmo_norm<SegmentExceptTable[[#This Row],[Exception S/M]])),1,0)","v":0},{"$f":"$BP$10*SegmentExceptTable[[#This Row],[kW Boundary]]+$BP$11","v":0.98107395677538645},{"$f":"$BP$12*SegmentExceptTable[[#This Row],[kW Boundary]]+$BP$13","v":0.32174051573080803},{"$f":"SegmentExceptTable[[#This Row],[Boundary M/L]]+(0.05*SegmentExceptTable[[#This Row],[Boundary M/L]])","v":0.33782754151734845},{"$f":"IF(AND(AND(kwpeak_norm>SegmentExceptTable[[#This Row],[kW Boundary]],kwpeak_norm<SegmentExceptTable[[#This Row],[kW Exception]]),AND(kwhmo_norm>SegmentExceptTable[[#This Row],[Boundary M/L]],kwhmo_norm<SegmentExceptTable[[#This Row],[Exception M/L]])),1,0)","v":0}]
[null,null,null,null,null,null,null,null,null,null,null,null,null,null,null,null,null,null,null,null,null,null,null,null,null,null,null,null,null,null,null,null,null,null,null,null,null,null,null,null,null,null,null,null,null,null,null,316,{"$f":"SegmentExceptTable[[#This Row],[Numbers]]/$BP$4","v":0.52754590984974958},{"$f":"SegmentExceptTable[[#This Row],[kW Boundary]]+(0.05*SegmentExceptTable[[#This Row],[kW Boundary]])","v":0.55392320534223705},{"$f":"$BP$6*SegmentExceptTable[[#This Row],[kW Boundary]]+$BP$7","v":0.74816103464313333},{"$f":"$BP$8*SegmentExceptTable[[#This Row],[kW Boundary]]+$BP$9","v":-0.16939337972256163},{"$f":"SegmentExceptTable[[#This Row],[Boundary S/M]]+(0.05*SegmentExceptTable[[#This Row],[Boundary S/M]])","v":-0.17786304870868971},{"$f":"IF(AND(AND(kwpeak_norm>SegmentExceptTable[[#This Row],[kW Boundary]],kwpeak_norm<SegmentExceptTable[[#This Row],[kW Exception]]),AND(kwhmo_norm>SegmentExceptTable[[#This Row],[Boundary S/M]],kwhmo_norm<SegmentExceptTable[[#This Row],[Exception S/M]])),1,0)","v":0},{"$f":"$BP$10*SegmentExceptTable[[#This Row],[kW Boundary]]+$BP$11","v":0.98460101041762493},{"$f":"$BP$12*SegmentExceptTable[[#This Row],[kW Boundary]]+$BP$13","v":0.32095032070701923},{"$f":"SegmentExceptTable[[#This Row],[Boundary M/L]]+(0.05*SegmentExceptTable[[#This Row],[Boundary M/L]])","v":0.33699783674237022},{"$f":"IF(AND(AND(kwpeak_norm>SegmentExceptTable[[#This Row],[kW Boundary]],kwpeak_norm<SegmentExceptTable[[#This Row],[kW Exception]]),AND(kwhmo_norm>SegmentExceptTable[[#This Row],[Boundary M/L]],kwhmo_norm<SegmentExceptTable[[#This Row],[Exception M/L]])),1,0)","v":0}]
[null,null,null,null,null,null,null,null,null,null,null,null,null,null,null,null,null,null,null,null,null,null,null,null,null,null,null,null,null,null,null,null,null,null,null,null,null,null,null,null,null,null,null,null,null,null,null,317,{"$f":"SegmentExceptTable[[#This Row],[Numbers]]/$BP$4","v":0.52921535893155258},{"$f":"SegmentExceptTable[[#This Row],[kW Boundary]]+(0.05*SegmentExceptTable[[#This Row],[kW Boundary]])","v":0.55567612687813017},{"$f":"$BP$6*SegmentExceptTable[[#This Row],[kW Boundary]]+$BP$7","v":0.7505878649384996},{"$f":"$BP$8*SegmentExceptTable[[#This Row],[kW Boundary]]+$BP$9","v":-0.17054181611799252},{"$f":"SegmentExceptTable[[#This Row],[Boundary S/M]]+(0.05*SegmentExceptTable[[#This Row],[Boundary S/M]])","v":-0.17906890692389216},{"$f":"IF(AND(AND(kwpeak_norm>SegmentExceptTable[[#This Row],[kW Boundary]],kwpeak_norm<SegmentExceptTable[[#This Row],[kW Exception]]),AND(kwhmo_norm>SegmentExceptTable[[#This Row],[Boundary S/M]],kwhmo_norm<SegmentExceptTable[[#This Row],[Exception S/M]])),1,0)","v":0},{"$f":"$BP$10*SegmentExceptTable[[#This Row],[kW Boundary]]+$BP$11","v":0.98812806405986342},{"$f":"$BP$12*SegmentExceptTable[[#This Row],[kW Boundary]]+$BP$13","v":0.32016012568323049},{"$f":"SegmentExceptTable[[#This Row],[Boundary M/L]]+(0.05*SegmentExceptTable[[#This Row],[Boundary M/L]])","v":0.33616813196739204},{"$f":"IF(AND(AND(kwpeak_norm>SegmentExceptTable[[#This Row],[kW Boundary]],kwpeak_norm<SegmentExceptTable[[#This Row],[kW Exception]]),AND(kwhmo_norm>SegmentExceptTable[[#This Row],[Boundary M/L]],kwhmo_norm<SegmentExceptTable[[#This Row],[Exception M/L]])),1,0)","v":0}]
[null,null,null,null,null,null,null,null,null,null,null,null,null,null,null,null,null,null,null,null,null,null,null,null,null,null,null,null,null,null,null,null,null,null,null,null,null,null,null,null,null,null,null,null,null,null,null,318,{"$f":"SegmentExceptTable[[#This Row],[Numbers]]/$BP$4","v":0.53088480801335558},{"$f":"SegmentExceptTable[[#This Row],[kW Boundary]]+(0.05*SegmentExceptTable[[#This Row],[kW Boundary]])","v":0.55742904841402341},{"$f":"$BP$6*SegmentExceptTable[[#This Row],[kW Boundary]]+$BP$7","v":0.75301469523386588},{"$f":"$BP$8*SegmentExceptTable[[#This Row],[kW Boundary]]+$BP$9","v":-0.17169025251342335},{"$f":"SegmentExceptTable[[#This Row],[Boundary S/M]]+(0.05*SegmentExceptTable[[#This Row],[Boundary S/M]])","v":-0.18027476513909452},{"$f":"IF(AND(AND(kwpeak_norm>SegmentExceptTable[[#This Row],[kW Boundary]],kwpeak_norm<SegmentExceptTable[[#This Row],[kW Exception]]),AND(kwhmo_norm>SegmentExceptTable[[#This Row],[Boundary S/M]],kwhmo_norm<SegmentExceptTable[[#This Row],[Exception S/M]])),1,0)","v":0},{"$f":"$BP$10*SegmentExceptTable[[#This Row],[kW Boundary]]+$BP$11","v":0.99165511770210191},{"$f":"$BP$12*SegmentExceptTable[[#This Row],[kW Boundary]]+$BP$13","v":0.31936993065944175},{"$f":"SegmentExceptTable[[#This Row],[Boundary M/L]]+(0.05*SegmentExceptTable[[#This Row],[Boundary M/L]])","v":0.33533842719241386},{"$f":"IF(AND(AND(kwpeak_norm>SegmentExceptTable[[#This Row],[kW Boundary]],kwpeak_norm<SegmentExceptTable[[#This Row],[kW Exception]]),AND(kwhmo_norm>SegmentExceptTable[[#This Row],[Boundary M/L]],kwhmo_norm<SegmentExceptTable[[#This Row],[Exception M/L]])),1,0)","v":0}]
[null,null,null,null,null,null,null,null,null,null,null,null,null,null,null,null,null,null,null,null,null,null,null,null,null,null,null,null,null,null,null,null,null,null,null,null,null,null,null,null,null,null,null,null,null,null,null,319,{"$f":"SegmentExceptTable[[#This Row],[Numbers]]/$BP$4","v":0.53255425709515858},{"$f":"SegmentExceptTable[[#This Row],[kW Boundary]]+(0.05*SegmentExceptTable[[#This Row],[kW Boundary]])","v":0.55918196994991654},{"$f":"$BP$6*SegmentExceptTable[[#This Row],[kW Boundary]]+$BP$7","v":0.75544152552923216},{"$f":"$BP$8*SegmentExceptTable[[#This Row],[kW Boundary]]+$BP$9","v":-0.17283868890885423},{"$f":"SegmentExceptTable[[#This Row],[Boundary S/M]]+(0.05*SegmentExceptTable[[#This Row],[Boundary S/M]])","v":-0.18148062335429693},{"$f":"IF(AND(AND(kwpeak_norm>SegmentExceptTable[[#This Row],[kW Boundary]],kwpeak_norm<SegmentExceptTable[[#This Row],[kW Exception]]),AND(kwhmo_norm>SegmentExceptTable[[#This Row],[Boundary S/M]],kwhmo_norm<SegmentExceptTable[[#This Row],[Exception S/M]])),1,0)","v":0},{"$f":"$BP$10*SegmentExceptTable[[#This Row],[kW Boundary]]+$BP$11","v":0.99518217134434039},{"$f":"$BP$12*SegmentExceptTable[[#This Row],[kW Boundary]]+$BP$13","v":0.31857973563565301},{"$f":"SegmentExceptTable[[#This Row],[Boundary M/L]]+(0.05*SegmentExceptTable[[#This Row],[Boundary M/L]])","v":0.33450872241743568},{"$f":"IF(AND(AND(kwpeak_norm>SegmentExceptTable[[#This Row],[kW Boundary]],kwpeak_norm<SegmentExceptTable[[#This Row],[kW Exception]]),AND(kwhmo_norm>SegmentExceptTable[[#This Row],[Boundary M/L]],kwhmo_norm<SegmentExceptTable[[#This Row],[Exception M/L]])),1,0)","v":0}]
[null,null,null,null,null,null,null,null,null,null,null,null,null,null,null,null,null,null,null,null,null,null,null,null,null,null,null,null,null,null,null,null,null,null,null,null,null,null,null,null,null,null,null,null,null,null,null,320,{"$f":"SegmentExceptTable[[#This Row],[Numbers]]/$BP$4","v":0.53422370617696158},{"$f":"SegmentExceptTable[[#This Row],[kW Boundary]]+(0.05*SegmentExceptTable[[#This Row],[kW Boundary]])","v":0.56093489148580966},{"$f":"$BP$6*SegmentExceptTable[[#This Row],[kW Boundary]]+$BP$7","v":0.75786835582459844},{"$f":"$BP$8*SegmentExceptTable[[#This Row],[kW Boundary]]+$BP$9","v":-0.17398712530428512},{"$f":"SegmentExceptTable[[#This Row],[Boundary S/M]]+(0.05*SegmentExceptTable[[#This Row],[Boundary S/M]])","v":-0.18268648156949938},{"$f":"IF(AND(AND(kwpeak_norm>SegmentExceptTable[[#This Row],[kW Boundary]],kwpeak_norm<SegmentExceptTable[[#This Row],[kW Exception]]),AND(kwhmo_norm>SegmentExceptTable[[#This Row],[Boundary S/M]],kwhmo_norm<SegmentExceptTable[[#This Row],[Exception S/M]])),1,0)","v":0},{"$f":"$BP$10*SegmentExceptTable[[#This Row],[kW Boundary]]+$BP$11","v":0.99870922498657888},{"$f":"$BP$12*SegmentExceptTable[[#This Row],[kW Boundary]]+$BP$13","v":0.31778954061186426},{"$f":"SegmentExceptTable[[#This Row],[Boundary M/L]]+(0.05*SegmentExceptTable[[#This Row],[Boundary M/L]])","v":0.3336790176424575},{"$f":"IF(AND(AND(kwpeak_norm>SegmentExceptTable[[#This Row],[kW Boundary]],kwpeak_norm<SegmentExceptTable[[#This Row],[kW Exception]]),AND(kwhmo_norm>SegmentExceptTable[[#This Row],[Boundary M/L]],kwhmo_norm<SegmentExceptTable[[#This Row],[Exception M/L]])),1,0)","v":0}]
[null,null,null,null,null,null,null,null,null,null,null,null,null,null,null,null,null,null,null,null,null,null,null,null,null,null,null,null,null,null,null,null,null,null,null,null,null,null,null,null,null,null,null,null,null,null,null,321,{"$f":"SegmentExceptTable[[#This Row],[Numbers]]/$BP$4","v":0.53589315525876458},{"$f":"SegmentExceptTable[[#This Row],[kW Boundary]]+(0.05*SegmentExceptTable[[#This Row],[kW Boundary]])","v":0.56268781302170279},{"$f":"$BP$6*SegmentExceptTable[[#This Row],[kW Boundary]]+$BP$7","v":0.76029518611996472},{"$f":"$BP$8*SegmentExceptTable[[#This Row],[kW Boundary]]+$BP$9","v":-0.175135561699716},{"$f":"SegmentExceptTable[[#This Row],[Boundary S/M]]+(0.05*SegmentExceptTable[[#This Row],[Boundary S/M]])","v":-0.18389233978470179},{"$f":"IF(AND(AND(kwpeak_norm>SegmentExceptTable[[#This Row],[kW Boundary]],kwpeak_norm<SegmentExceptTable[[#This Row],[kW Exception]]),AND(kwhmo_norm>SegmentExceptTable[[#This Row],[Boundary S/M]],kwhmo_norm<SegmentExceptTable[[#This Row],[Exception S/M]])),1,0)","v":0},{"$f":"$BP$10*SegmentExceptTable[[#This Row],[kW Boundary]]+$BP$11","v":1.0022362786288173},{"$f":"$BP$12*SegmentExceptTable[[#This Row],[kW Boundary]]+$BP$13","v":0.31699934558807552},{"$f":"SegmentExceptTable[[#This Row],[Boundary M/L]]+(0.05*SegmentExceptTable[[#This Row],[Boundary M/L]])","v":0.33284931286747932},{"$f":"IF(AND(AND(kwpeak_norm>SegmentExceptTable[[#This Row],[kW Boundary]],kwpeak_norm<SegmentExceptTable[[#This Row],[kW Exception]]),AND(kwhmo_norm>SegmentExceptTable[[#This Row],[Boundary M/L]],kwhmo_norm<SegmentExceptTable[[#This Row],[Exception M/L]])),1,0)","v":0}]
[null,null,null,null,null,null,null,null,null,null,null,null,null,null,null,null,null,null,null,null,null,null,null,null,null,null,null,null,null,null,null,null,null,null,null,null,null,null,null,null,null,null,null,null,null,null,null,322,{"$f":"SegmentExceptTable[[#This Row],[Numbers]]/$BP$4","v":0.53756260434056757},{"$f":"SegmentExceptTable[[#This Row],[kW Boundary]]+(0.05*SegmentExceptTable[[#This Row],[kW Boundary]])","v":0.56444073455759591},{"$f":"$BP$6*SegmentExceptTable[[#This Row],[kW Boundary]]+$BP$7","v":0.76272201641533088},{"$f":"$BP$8*SegmentExceptTable[[#This Row],[kW Boundary]]+$BP$9","v":-0.17628399809514683},{"$f":"SegmentExceptTable[[#This Row],[Boundary S/M]]+(0.05*SegmentExceptTable[[#This Row],[Boundary S/M]])","v":-0.18509819799990418},{"$f":"IF(AND(AND(kwpeak_norm>SegmentExceptTable[[#This Row],[kW Boundary]],kwpeak_norm<SegmentExceptTable[[#This Row],[kW Exception]]),AND(kwhmo_norm>SegmentExceptTable[[#This Row],[Boundary S/M]],kwhmo_norm<SegmentExceptTable[[#This Row],[Exception S/M]])),1,0)","v":0},{"$f":"$BP$10*SegmentExceptTable[[#This Row],[kW Boundary]]+$BP$11","v":1.005763332271056},{"$f":"$BP$12*SegmentExceptTable[[#This Row],[kW Boundary]]+$BP$13","v":0.31620915056428672},{"$f":"SegmentExceptTable[[#This Row],[Boundary M/L]]+(0.05*SegmentExceptTable[[#This Row],[Boundary M/L]])","v":0.33201960809250108},{"$f":"IF(AND(AND(kwpeak_norm>SegmentExceptTable[[#This Row],[kW Boundary]],kwpeak_norm<SegmentExceptTable[[#This Row],[kW Exception]]),AND(kwhmo_norm>SegmentExceptTable[[#This Row],[Boundary M/L]],kwhmo_norm<SegmentExceptTable[[#This Row],[Exception M/L]])),1,0)","v":0}]
[null,null,null,null,null,null,null,null,null,null,null,null,null,null,null,null,null,null,null,null,null,null,null,null,null,null,null,null,null,null,null,null,null,null,null,null,null,null,null,null,null,null,null,null,null,null,null,323,{"$f":"SegmentExceptTable[[#This Row],[Numbers]]/$BP$4","v":0.53923205342237057},{"$f":"SegmentExceptTable[[#This Row],[kW Boundary]]+(0.05*SegmentExceptTable[[#This Row],[kW Boundary]])","v":0.56619365609348915},{"$f":"$BP$6*SegmentExceptTable[[#This Row],[kW Boundary]]+$BP$7","v":0.76514884671069716},{"$f":"$BP$8*SegmentExceptTable[[#This Row],[kW Boundary]]+$BP$9","v":-0.17743243449057772},{"$f":"SegmentExceptTable[[#This Row],[Boundary S/M]]+(0.05*SegmentExceptTable[[#This Row],[Boundary S/M]])","v":-0.18630405621510659},{"$f":"IF(AND(AND(kwpeak_norm>SegmentExceptTable[[#This Row],[kW Boundary]],kwpeak_norm<SegmentExceptTable[[#This Row],[kW Exception]]),AND(kwhmo_norm>SegmentExceptTable[[#This Row],[Boundary S/M]],kwhmo_norm<SegmentExceptTable[[#This Row],[Exception S/M]])),1,0)","v":0},{"$f":"$BP$10*SegmentExceptTable[[#This Row],[kW Boundary]]+$BP$11","v":1.0092903859132947},{"$f":"$BP$12*SegmentExceptTable[[#This Row],[kW Boundary]]+$BP$13","v":0.31541895554049798},{"$f":"SegmentExceptTable[[#This Row],[Boundary M/L]]+(0.05*SegmentExceptTable[[#This Row],[Boundary M/L]])","v":0.3311899033175229},{"$f":"IF(AND(AND(kwpeak_norm>SegmentExceptTable[[#This Row],[kW Boundary]],kwpeak_norm<SegmentExceptTable[[#This Row],[kW Exception]]),AND(kwhmo_norm>SegmentExceptTable[[#This Row],[Boundary M/L]],kwhmo_norm<SegmentExceptTable[[#This Row],[Exception M/L]])),1,0)","v":0}]
[null,null,null,null,null,null,null,null,null,null,null,null,null,null,null,null,null,null,null,null,null,null,null,null,null,null,null,null,null,null,null,null,null,null,null,null,null,null,null,null,null,null,null,null,null,null,null,324,{"$f":"SegmentExceptTable[[#This Row],[Numbers]]/$BP$4","v":0.54090150250417357},{"$f":"SegmentExceptTable[[#This Row],[kW Boundary]]+(0.05*SegmentExceptTable[[#This Row],[kW Boundary]])","v":0.56794657762938228},{"$f":"$BP$6*SegmentExceptTable[[#This Row],[kW Boundary]]+$BP$7","v":0.76757567700606344},{"$f":"$BP$8*SegmentExceptTable[[#This Row],[kW Boundary]]+$BP$9","v":-0.1785808708860086},{"$f":"SegmentExceptTable[[#This Row],[Boundary S/M]]+(0.05*SegmentExceptTable[[#This Row],[Boundary S/M]])","v":-0.18750991443030904},{"$f":"IF(AND(AND(kwpeak_norm>SegmentExceptTable[[#This Row],[kW Boundary]],kwpeak_norm<SegmentExceptTable[[#This Row],[kW Exception]]),AND(kwhmo_norm>SegmentExceptTable[[#This Row],[Boundary S/M]],kwhmo_norm<SegmentExceptTable[[#This Row],[Exception S/M]])),1,0)","v":0},{"$f":"$BP$10*SegmentExceptTable[[#This Row],[kW Boundary]]+$BP$11","v":1.0128174395555329},{"$f":"$BP$12*SegmentExceptTable[[#This Row],[kW Boundary]]+$BP$13","v":0.31462876051670924},{"$f":"SegmentExceptTable[[#This Row],[Boundary M/L]]+(0.05*SegmentExceptTable[[#This Row],[Boundary M/L]])","v":0.33036019854254473},{"$f":"IF(AND(AND(kwpeak_norm>SegmentExceptTable[[#This Row],[kW Boundary]],kwpeak_norm<SegmentExceptTable[[#This Row],[kW Exception]]),AND(kwhmo_norm>SegmentExceptTable[[#This Row],[Boundary M/L]],kwhmo_norm<SegmentExceptTable[[#This Row],[Exception M/L]])),1,0)","v":0}]
[null,null,null,null,null,null,null,null,null,null,null,null,null,null,null,null,null,null,null,null,null,null,null,null,null,null,null,null,null,null,null,null,null,null,null,null,null,null,null,null,null,null,null,null,null,null,null,325,{"$f":"SegmentExceptTable[[#This Row],[Numbers]]/$BP$4","v":0.54257095158597668},{"$f":"SegmentExceptTable[[#This Row],[kW Boundary]]+(0.05*SegmentExceptTable[[#This Row],[kW Boundary]])","v":0.56969949916527551},{"$f":"$BP$6*SegmentExceptTable[[#This Row],[kW Boundary]]+$BP$7","v":0.77000250730142994},{"$f":"$BP$8*SegmentExceptTable[[#This Row],[kW Boundary]]+$BP$9","v":-0.17972930728143954},{"$f":"SegmentExceptTable[[#This Row],[Boundary S/M]]+(0.05*SegmentExceptTable[[#This Row],[Boundary S/M]])","v":-0.18871577264551151},{"$f":"IF(AND(AND(kwpeak_norm>SegmentExceptTable[[#This Row],[kW Boundary]],kwpeak_norm<SegmentExceptTable[[#This Row],[kW Exception]]),AND(kwhmo_norm>SegmentExceptTable[[#This Row],[Boundary S/M]],kwhmo_norm<SegmentExceptTable[[#This Row],[Exception S/M]])),1,0)","v":0},{"$f":"$BP$10*SegmentExceptTable[[#This Row],[kW Boundary]]+$BP$11","v":1.0163444931977716},{"$f":"$BP$12*SegmentExceptTable[[#This Row],[kW Boundary]]+$BP$13","v":0.31383856549292044},{"$f":"SegmentExceptTable[[#This Row],[Boundary M/L]]+(0.05*SegmentExceptTable[[#This Row],[Boundary M/L]])","v":0.32953049376756649},{"$f":"IF(AND(AND(kwpeak_norm>SegmentExceptTable[[#This Row],[kW Boundary]],kwpeak_norm<SegmentExceptTable[[#This Row],[kW Exception]]),AND(kwhmo_norm>SegmentExceptTable[[#This Row],[Boundary M/L]],kwhmo_norm<SegmentExceptTable[[#This Row],[Exception M/L]])),1,0)","v":0}]
[null,null,null,null,null,null,null,null,null,null,null,null,null,null,null,null,null,null,null,null,null,null,null,null,null,null,null,null,null,null,null,null,null,null,null,null,null,null,null,null,null,null,null,null,null,null,null,326,{"$f":"SegmentExceptTable[[#This Row],[Numbers]]/$BP$4","v":0.54424040066777968},{"$f":"SegmentExceptTable[[#This Row],[kW Boundary]]+(0.05*SegmentExceptTable[[#This Row],[kW Boundary]])","v":0.57145242070116864},{"$f":"$BP$6*SegmentExceptTable[[#This Row],[kW Boundary]]+$BP$7","v":0.77242933759679622},{"$f":"$BP$8*SegmentExceptTable[[#This Row],[kW Boundary]]+$BP$9","v":-0.18087774367687043},{"$f":"SegmentExceptTable[[#This Row],[Boundary S/M]]+(0.05*SegmentExceptTable[[#This Row],[Boundary S/M]])","v":-0.18992163086071395},{"$f":"IF(AND(AND(kwpeak_norm>SegmentExceptTable[[#This Row],[kW Boundary]],kwpeak_norm<SegmentExceptTable[[#This Row],[kW Exception]]),AND(kwhmo_norm>SegmentExceptTable[[#This Row],[Boundary S/M]],kwhmo_norm<SegmentExceptTable[[#This Row],[Exception S/M]])),1,0)","v":0},{"$f":"$BP$10*SegmentExceptTable[[#This Row],[kW Boundary]]+$BP$11","v":1.0198715468400104},{"$f":"$BP$12*SegmentExceptTable[[#This Row],[kW Boundary]]+$BP$13","v":0.3130483704691317},{"$f":"SegmentExceptTable[[#This Row],[Boundary M/L]]+(0.05*SegmentExceptTable[[#This Row],[Boundary M/L]])","v":0.32870078899258826},{"$f":"IF(AND(AND(kwpeak_norm>SegmentExceptTable[[#This Row],[kW Boundary]],kwpeak_norm<SegmentExceptTable[[#This Row],[kW Exception]]),AND(kwhmo_norm>SegmentExceptTable[[#This Row],[Boundary M/L]],kwhmo_norm<SegmentExceptTable[[#This Row],[Exception M/L]])),1,0)","v":0}]
[null,null,null,null,null,null,null,null,null,null,null,null,null,null,null,null,null,null,null,null,null,null,null,null,null,null,null,null,null,null,null,null,null,null,null,null,null,null,null,null,null,null,null,null,null,null,null,327,{"$f":"SegmentExceptTable[[#This Row],[Numbers]]/$BP$4","v":0.54590984974958268},{"$f":"SegmentExceptTable[[#This Row],[kW Boundary]]+(0.05*SegmentExceptTable[[#This Row],[kW Boundary]])","v":0.57320534223706177},{"$f":"$BP$6*SegmentExceptTable[[#This Row],[kW Boundary]]+$BP$7","v":0.7748561678921625},{"$f":"$BP$8*SegmentExceptTable[[#This Row],[kW Boundary]]+$BP$9","v":-0.18202618007230126},{"$f":"SegmentExceptTable[[#This Row],[Boundary S/M]]+(0.05*SegmentExceptTable[[#This Row],[Boundary S/M]])","v":-0.19112748907591631},{"$f":"IF(AND(AND(kwpeak_norm>SegmentExceptTable[[#This Row],[kW Boundary]],kwpeak_norm<SegmentExceptTable[[#This Row],[kW Exception]]),AND(kwhmo_norm>SegmentExceptTable[[#This Row],[Boundary S/M]],kwhmo_norm<SegmentExceptTable[[#This Row],[Exception S/M]])),1,0)","v":0},{"$f":"$BP$10*SegmentExceptTable[[#This Row],[kW Boundary]]+$BP$11","v":1.0233986004822486},{"$f":"$BP$12*SegmentExceptTable[[#This Row],[kW Boundary]]+$BP$13","v":0.3122581754453429},{"$f":"SegmentExceptTable[[#This Row],[Boundary M/L]]+(0.05*SegmentExceptTable[[#This Row],[Boundary M/L]])","v":0.32787108421761002},{"$f":"IF(AND(AND(kwpeak_norm>SegmentExceptTable[[#This Row],[kW Boundary]],kwpeak_norm<SegmentExceptTable[[#This Row],[kW Exception]]),AND(kwhmo_norm>SegmentExceptTable[[#This Row],[Boundary M/L]],kwhmo_norm<SegmentExceptTable[[#This Row],[Exception M/L]])),1,0)","v":0}]
[null,null,null,null,null,null,null,null,null,null,null,null,null,null,null,null,null,null,null,null,null,null,null,null,null,null,null,null,null,null,null,null,null,null,null,null,null,null,null,null,null,null,null,null,null,null,null,328,{"$f":"SegmentExceptTable[[#This Row],[Numbers]]/$BP$4","v":0.54757929883138567},{"$f":"SegmentExceptTable[[#This Row],[kW Boundary]]+(0.05*SegmentExceptTable[[#This Row],[kW Boundary]])","v":0.574958263772955},{"$f":"$BP$6*SegmentExceptTable[[#This Row],[kW Boundary]]+$BP$7","v":0.77728299818752866},{"$f":"$BP$8*SegmentExceptTable[[#This Row],[kW Boundary]]+$BP$9","v":-0.18317461646773214},{"$f":"SegmentExceptTable[[#This Row],[Boundary S/M]]+(0.05*SegmentExceptTable[[#This Row],[Boundary S/M]])","v":-0.19233334729111876},{"$f":"IF(AND(AND(kwpeak_norm>SegmentExceptTable[[#This Row],[kW Boundary]],kwpeak_norm<SegmentExceptTable[[#This Row],[kW Exception]]),AND(kwhmo_norm>SegmentExceptTable[[#This Row],[Boundary S/M]],kwhmo_norm<SegmentExceptTable[[#This Row],[Exception S/M]])),1,0)","v":0},{"$f":"$BP$10*SegmentExceptTable[[#This Row],[kW Boundary]]+$BP$11","v":1.0269256541244873},{"$f":"$BP$12*SegmentExceptTable[[#This Row],[kW Boundary]]+$BP$13","v":0.31146798042155416},{"$f":"SegmentExceptTable[[#This Row],[Boundary M/L]]+(0.05*SegmentExceptTable[[#This Row],[Boundary M/L]])","v":0.32704137944263184},{"$f":"IF(AND(AND(kwpeak_norm>SegmentExceptTable[[#This Row],[kW Boundary]],kwpeak_norm<SegmentExceptTable[[#This Row],[kW Exception]]),AND(kwhmo_norm>SegmentExceptTable[[#This Row],[Boundary M/L]],kwhmo_norm<SegmentExceptTable[[#This Row],[Exception M/L]])),1,0)","v":0}]
[null,null,null,null,null,null,null,null,null,null,null,null,null,null,null,null,null,null,null,null,null,null,null,null,null,null,null,null,null,null,null,null,null,null,null,null,null,null,null,null,null,null,null,null,null,null,null,329,{"$f":"SegmentExceptTable[[#This Row],[Numbers]]/$BP$4","v":0.54924874791318867},{"$f":"SegmentExceptTable[[#This Row],[kW Boundary]]+(0.05*SegmentExceptTable[[#This Row],[kW Boundary]])","v":0.57671118530884813},{"$f":"$BP$6*SegmentExceptTable[[#This Row],[kW Boundary]]+$BP$7","v":0.77970982848289494},{"$f":"$BP$8*SegmentExceptTable[[#This Row],[kW Boundary]]+$BP$9","v":-0.18432305286316303},{"$f":"SegmentExceptTable[[#This Row],[Boundary S/M]]+(0.05*SegmentExceptTable[[#This Row],[Boundary S/M]])","v":-0.19353920550632117},{"$f":"IF(AND(AND(kwpeak_norm>SegmentExceptTable[[#This Row],[kW Boundary]],kwpeak_norm<SegmentExceptTable[[#This Row],[kW Exception]]),AND(kwhmo_norm>SegmentExceptTable[[#This Row],[Boundary S/M]],kwhmo_norm<SegmentExceptTable[[#This Row],[Exception S/M]])),1,0)","v":0},{"$f":"$BP$10*SegmentExceptTable[[#This Row],[kW Boundary]]+$BP$11","v":1.0304527077667256},{"$f":"$BP$12*SegmentExceptTable[[#This Row],[kW Boundary]]+$BP$13","v":0.31067778539776542},{"$f":"SegmentExceptTable[[#This Row],[Boundary M/L]]+(0.05*SegmentExceptTable[[#This Row],[Boundary M/L]])","v":0.32621167466765366},{"$f":"IF(AND(AND(kwpeak_norm>SegmentExceptTable[[#This Row],[kW Boundary]],kwpeak_norm<SegmentExceptTable[[#This Row],[kW Exception]]),AND(kwhmo_norm>SegmentExceptTable[[#This Row],[Boundary M/L]],kwhmo_norm<SegmentExceptTable[[#This Row],[Exception M/L]])),1,0)","v":0}]
[null,null,null,null,null,null,null,null,null,null,null,null,null,null,null,null,null,null,null,null,null,null,null,null,null,null,null,null,null,null,null,null,null,null,null,null,null,null,null,null,null,null,null,null,null,null,null,330,{"$f":"SegmentExceptTable[[#This Row],[Numbers]]/$BP$4","v":0.55091819699499167},{"$f":"SegmentExceptTable[[#This Row],[kW Boundary]]+(0.05*SegmentExceptTable[[#This Row],[kW Boundary]])","v":0.57846410684474125},{"$f":"$BP$6*SegmentExceptTable[[#This Row],[kW Boundary]]+$BP$7","v":0.78213665877826122},{"$f":"$BP$8*SegmentExceptTable[[#This Row],[kW Boundary]]+$BP$9","v":-0.18547148925859391},{"$f":"SegmentExceptTable[[#This Row],[Boundary S/M]]+(0.05*SegmentExceptTable[[#This Row],[Boundary S/M]])","v":-0.19474506372152361},{"$f":"IF(AND(AND(kwpeak_norm>SegmentExceptTable[[#This Row],[kW Boundary]],kwpeak_norm<SegmentExceptTable[[#This Row],[kW Exception]]),AND(kwhmo_norm>SegmentExceptTable[[#This Row],[Boundary S/M]],kwhmo_norm<SegmentExceptTable[[#This Row],[Exception S/M]])),1,0)","v":0},{"$f":"$BP$10*SegmentExceptTable[[#This Row],[kW Boundary]]+$BP$11","v":1.0339797614089643},{"$f":"$BP$12*SegmentExceptTable[[#This Row],[kW Boundary]]+$BP$13","v":0.30988759037397667},{"$f":"SegmentExceptTable[[#This Row],[Boundary M/L]]+(0.05*SegmentExceptTable[[#This Row],[Boundary M/L]])","v":0.32538196989267548},{"$f":"IF(AND(AND(kwpeak_norm>SegmentExceptTable[[#This Row],[kW Boundary]],kwpeak_norm<SegmentExceptTable[[#This Row],[kW Exception]]),AND(kwhmo_norm>SegmentExceptTable[[#This Row],[Boundary M/L]],kwhmo_norm<SegmentExceptTable[[#This Row],[Exception M/L]])),1,0)","v":0}]
[null,null,null,null,null,null,null,null,null,null,null,null,null,null,null,null,null,null,null,null,null,null,null,null,null,null,null,null,null,null,null,null,null,null,null,null,null,null,null,null,null,null,null,null,null,null,null,331,{"$f":"SegmentExceptTable[[#This Row],[Numbers]]/$BP$4","v":0.55258764607679467},{"$f":"SegmentExceptTable[[#This Row],[kW Boundary]]+(0.05*SegmentExceptTable[[#This Row],[kW Boundary]])","v":0.58021702838063438},{"$f":"$BP$6*SegmentExceptTable[[#This Row],[kW Boundary]]+$BP$7","v":0.7845634890736275},{"$f":"$BP$8*SegmentExceptTable[[#This Row],[kW Boundary]]+$BP$9","v":-0.18661992565402474},{"$f":"SegmentExceptTable[[#This Row],[Boundary S/M]]+(0.05*SegmentExceptTable[[#This Row],[Boundary S/M]])","v":-0.19595092193672597},{"$f":"IF(AND(AND(kwpeak_norm>SegmentExceptTable[[#This Row],[kW Boundary]],kwpeak_norm<SegmentExceptTable[[#This Row],[kW Exception]]),AND(kwhmo_norm>SegmentExceptTable[[#This Row],[Boundary S/M]],kwhmo_norm<SegmentExceptTable[[#This Row],[Exception S/M]])),1,0)","v":0},{"$f":"$BP$10*SegmentExceptTable[[#This Row],[kW Boundary]]+$BP$11","v":1.037506815051203},{"$f":"$BP$12*SegmentExceptTable[[#This Row],[kW Boundary]]+$BP$13","v":0.30909739535018793},{"$f":"SegmentExceptTable[[#This Row],[Boundary M/L]]+(0.05*SegmentExceptTable[[#This Row],[Boundary M/L]])","v":0.3245522651176973},{"$f":"IF(AND(AND(kwpeak_norm>SegmentExceptTable[[#This Row],[kW Boundary]],kwpeak_norm<SegmentExceptTable[[#This Row],[kW Exception]]),AND(kwhmo_norm>SegmentExceptTable[[#This Row],[Boundary M/L]],kwhmo_norm<SegmentExceptTable[[#This Row],[Exception M/L]])),1,0)","v":0}]
[null,null,null,null,null,null,null,null,null,null,null,null,null,null,null,null,null,null,null,null,null,null,null,null,null,null,null,null,null,null,null,null,null,null,null,null,null,null,null,null,null,null,null,null,null,null,null,332,{"$f":"SegmentExceptTable[[#This Row],[Numbers]]/$BP$4","v":0.55425709515859767},{"$f":"SegmentExceptTable[[#This Row],[kW Boundary]]+(0.05*SegmentExceptTable[[#This Row],[kW Boundary]])","v":0.58196994991652751},{"$f":"$BP$6*SegmentExceptTable[[#This Row],[kW Boundary]]+$BP$7","v":0.78699031936899377},{"$f":"$BP$8*SegmentExceptTable[[#This Row],[kW Boundary]]+$BP$9","v":-0.18776836204945563},{"$f":"SegmentExceptTable[[#This Row],[Boundary S/M]]+(0.05*SegmentExceptTable[[#This Row],[Boundary S/M]])","v":-0.19715678015192842},{"$f":"IF(AND(AND(kwpeak_norm>SegmentExceptTable[[#This Row],[kW Boundary]],kwpeak_norm<SegmentExceptTable[[#This Row],[kW Exception]]),AND(kwhmo_norm>SegmentExceptTable[[#This Row],[Boundary S/M]],kwhmo_norm<SegmentExceptTable[[#This Row],[Exception S/M]])),1,0)","v":0},{"$f":"$BP$10*SegmentExceptTable[[#This Row],[kW Boundary]]+$BP$11","v":1.0410338686934413},{"$f":"$BP$12*SegmentExceptTable[[#This Row],[kW Boundary]]+$BP$13","v":0.30830720032639913},{"$f":"SegmentExceptTable[[#This Row],[Boundary M/L]]+(0.05*SegmentExceptTable[[#This Row],[Boundary M/L]])","v":0.32372256034271907},{"$f":"IF(AND(AND(kwpeak_norm>SegmentExceptTable[[#This Row],[kW Boundary]],kwpeak_norm<SegmentExceptTable[[#This Row],[kW Exception]]),AND(kwhmo_norm>SegmentExceptTable[[#This Row],[Boundary M/L]],kwhmo_norm<SegmentExceptTable[[#This Row],[Exception M/L]])),1,0)","v":0}]
[null,null,null,null,null,null,null,null,null,null,null,null,null,null,null,null,null,null,null,null,null,null,null,null,null,null,null,null,null,null,null,null,null,null,null,null,null,null,null,null,null,null,null,null,null,null,null,333,{"$f":"SegmentExceptTable[[#This Row],[Numbers]]/$BP$4","v":0.55592654424040067},{"$f":"SegmentExceptTable[[#This Row],[kW Boundary]]+(0.05*SegmentExceptTable[[#This Row],[kW Boundary]])","v":0.58372287145242074},{"$f":"$BP$6*SegmentExceptTable[[#This Row],[kW Boundary]]+$BP$7","v":0.78941714966436005},{"$f":"$BP$8*SegmentExceptTable[[#This Row],[kW Boundary]]+$BP$9","v":-0.18891679844488651},{"$f":"SegmentExceptTable[[#This Row],[Boundary S/M]]+(0.05*SegmentExceptTable[[#This Row],[Boundary S/M]])","v":-0.19836263836713083},{"$f":"IF(AND(AND(kwpeak_norm>SegmentExceptTable[[#This Row],[kW Boundary]],kwpeak_norm<SegmentExceptTable[[#This Row],[kW Exception]]),AND(kwhmo_norm>SegmentExceptTable[[#This Row],[Boundary S/M]],kwhmo_norm<SegmentExceptTable[[#This Row],[Exception S/M]])),1,0)","v":0},{"$f":"$BP$10*SegmentExceptTable[[#This Row],[kW Boundary]]+$BP$11","v":1.04456092233568},{"$f":"$BP$12*SegmentExceptTable[[#This Row],[kW Boundary]]+$BP$13","v":0.30751700530261039},{"$f":"SegmentExceptTable[[#This Row],[Boundary M/L]]+(0.05*SegmentExceptTable[[#This Row],[Boundary M/L]])","v":0.32289285556774089},{"$f":"IF(AND(AND(kwpeak_norm>SegmentExceptTable[[#This Row],[kW Boundary]],kwpeak_norm<SegmentExceptTable[[#This Row],[kW Exception]]),AND(kwhmo_norm>SegmentExceptTable[[#This Row],[Boundary M/L]],kwhmo_norm<SegmentExceptTable[[#This Row],[Exception M/L]])),1,0)","v":0}]
[null,null,null,null,null,null,null,null,null,null,null,null,null,null,null,null,null,null,null,null,null,null,null,null,null,null,null,null,null,null,null,null,null,null,null,null,null,null,null,null,null,null,null,null,null,null,null,334,{"$f":"SegmentExceptTable[[#This Row],[Numbers]]/$BP$4","v":0.55759599332220366},{"$f":"SegmentExceptTable[[#This Row],[kW Boundary]]+(0.05*SegmentExceptTable[[#This Row],[kW Boundary]])","v":0.58547579298831387},{"$f":"$BP$6*SegmentExceptTable[[#This Row],[kW Boundary]]+$BP$7","v":0.79184397995972633},{"$f":"$BP$8*SegmentExceptTable[[#This Row],[kW Boundary]]+$BP$9","v":-0.1900652348403174},{"$f":"SegmentExceptTable[[#This Row],[Boundary S/M]]+(0.05*SegmentExceptTable[[#This Row],[Boundary S/M]])","v":-0.19956849658233328},{"$f":"IF(AND(AND(kwpeak_norm>SegmentExceptTable[[#This Row],[kW Boundary]],kwpeak_norm<SegmentExceptTable[[#This Row],[kW Exception]]),AND(kwhmo_norm>SegmentExceptTable[[#This Row],[Boundary S/M]],kwhmo_norm<SegmentExceptTable[[#This Row],[Exception S/M]])),1,0)","v":0},{"$f":"$BP$10*SegmentExceptTable[[#This Row],[kW Boundary]]+$BP$11","v":1.0480879759779183},{"$f":"$BP$12*SegmentExceptTable[[#This Row],[kW Boundary]]+$BP$13","v":0.30672681027882165},{"$f":"SegmentExceptTable[[#This Row],[Boundary M/L]]+(0.05*SegmentExceptTable[[#This Row],[Boundary M/L]])","v":0.32206315079276271},{"$f":"IF(AND(AND(kwpeak_norm>SegmentExceptTable[[#This Row],[kW Boundary]],kwpeak_norm<SegmentExceptTable[[#This Row],[kW Exception]]),AND(kwhmo_norm>SegmentExceptTable[[#This Row],[Boundary M/L]],kwhmo_norm<SegmentExceptTable[[#This Row],[Exception M/L]])),1,0)","v":0}]
[null,null,null,null,null,null,null,null,null,null,null,null,null,null,null,null,null,null,null,null,null,null,null,null,null,null,null,null,null,null,null,null,null,null,null,null,null,null,null,null,null,null,null,null,null,null,null,335,{"$f":"SegmentExceptTable[[#This Row],[Numbers]]/$BP$4","v":0.55926544240400666},{"$f":"SegmentExceptTable[[#This Row],[kW Boundary]]+(0.05*SegmentExceptTable[[#This Row],[kW Boundary]])","v":0.587228714524207},{"$f":"$BP$6*SegmentExceptTable[[#This Row],[kW Boundary]]+$BP$7","v":0.79427081025509261},{"$f":"$BP$8*SegmentExceptTable[[#This Row],[kW Boundary]]+$BP$9","v":-0.19121367123574823},{"$f":"SegmentExceptTable[[#This Row],[Boundary S/M]]+(0.05*SegmentExceptTable[[#This Row],[Boundary S/M]])","v":-0.20077435479753564},{"$f":"IF(AND(AND(kwpeak_norm>SegmentExceptTable[[#This Row],[kW Boundary]],kwpeak_norm<SegmentExceptTable[[#This Row],[kW Exception]]),AND(kwhmo_norm>SegmentExceptTable[[#This Row],[Boundary S/M]],kwhmo_norm<SegmentExceptTable[[#This Row],[Exception S/M]])),1,0)","v":0},{"$f":"$BP$10*SegmentExceptTable[[#This Row],[kW Boundary]]+$BP$11","v":1.051615029620157},{"$f":"$BP$12*SegmentExceptTable[[#This Row],[kW Boundary]]+$BP$13","v":0.30593661525503291},{"$f":"SegmentExceptTable[[#This Row],[Boundary M/L]]+(0.05*SegmentExceptTable[[#This Row],[Boundary M/L]])","v":0.32123344601778453},{"$f":"IF(AND(AND(kwpeak_norm>SegmentExceptTable[[#This Row],[kW Boundary]],kwpeak_norm<SegmentExceptTable[[#This Row],[kW Exception]]),AND(kwhmo_norm>SegmentExceptTable[[#This Row],[Boundary M/L]],kwhmo_norm<SegmentExceptTable[[#This Row],[Exception M/L]])),1,0)","v":0}]
[null,null,null,null,null,null,null,null,null,null,null,null,null,null,null,null,null,null,null,null,null,null,null,null,null,null,null,null,null,null,null,null,null,null,null,null,null,null,null,null,null,null,null,null,null,null,null,336,{"$f":"SegmentExceptTable[[#This Row],[Numbers]]/$BP$4","v":0.56093489148580966},{"$f":"SegmentExceptTable[[#This Row],[kW Boundary]]+(0.05*SegmentExceptTable[[#This Row],[kW Boundary]])","v":0.58898163606010012},{"$f":"$BP$6*SegmentExceptTable[[#This Row],[kW Boundary]]+$BP$7","v":0.79669764055045889},{"$f":"$BP$8*SegmentExceptTable[[#This Row],[kW Boundary]]+$BP$9","v":-0.19236210763117911},{"$f":"SegmentExceptTable[[#This Row],[Boundary S/M]]+(0.05*SegmentExceptTable[[#This Row],[Boundary S/M]])","v":-0.20198021301273808},{"$f":"IF(AND(AND(kwpeak_norm>SegmentExceptTable[[#This Row],[kW Boundary]],kwpeak_norm<SegmentExceptTable[[#This Row],[kW Exception]]),AND(kwhmo_norm>SegmentExceptTable[[#This Row],[Boundary S/M]],kwhmo_norm<SegmentExceptTable[[#This Row],[Exception S/M]])),1,0)","v":0},{"$f":"$BP$10*SegmentExceptTable[[#This Row],[kW Boundary]]+$BP$11","v":1.0551420832623952},{"$f":"$BP$12*SegmentExceptTable[[#This Row],[kW Boundary]]+$BP$13","v":0.30514642023124416},{"$f":"SegmentExceptTable[[#This Row],[Boundary M/L]]+(0.05*SegmentExceptTable[[#This Row],[Boundary M/L]])","v":0.32040374124280635},{"$f":"IF(AND(AND(kwpeak_norm>SegmentExceptTable[[#This Row],[kW Boundary]],kwpeak_norm<SegmentExceptTable[[#This Row],[kW Exception]]),AND(kwhmo_norm>SegmentExceptTable[[#This Row],[Boundary M/L]],kwhmo_norm<SegmentExceptTable[[#This Row],[Exception M/L]])),1,0)","v":0}]
[null,null,null,null,null,null,null,null,null,null,null,null,null,null,null,null,null,null,null,null,null,null,null,null,null,null,null,null,null,null,null,null,null,null,null,null,null,null,null,null,null,null,null,null,null,null,null,337,{"$f":"SegmentExceptTable[[#This Row],[Numbers]]/$BP$4","v":0.56260434056761266},{"$f":"SegmentExceptTable[[#This Row],[kW Boundary]]+(0.05*SegmentExceptTable[[#This Row],[kW Boundary]])","v":0.59073455759599325},{"$f":"$BP$6*SegmentExceptTable[[#This Row],[kW Boundary]]+$BP$7","v":0.79912447084582516},{"$f":"$BP$8*SegmentExceptTable[[#This Row],[kW Boundary]]+$BP$9","v":-0.19351054402661},{"$f":"SegmentExceptTable[[#This Row],[Boundary S/M]]+(0.05*SegmentExceptTable[[#This Row],[Boundary S/M]])","v":-0.2031860712279405},{"$f":"IF(AND(AND(kwpeak_norm>SegmentExceptTable[[#This Row],[kW Boundary]],kwpeak_norm<SegmentExceptTable[[#This Row],[kW Exception]]),AND(kwhmo_norm>SegmentExceptTable[[#This Row],[Boundary S/M]],kwhmo_norm<SegmentExceptTable[[#This Row],[Exception S/M]])),1,0)","v":0},{"$f":"$BP$10*SegmentExceptTable[[#This Row],[kW Boundary]]+$BP$11","v":1.0586691369046339},{"$f":"$BP$12*SegmentExceptTable[[#This Row],[kW Boundary]]+$BP$13","v":0.30435622520745537},{"$f":"SegmentExceptTable[[#This Row],[Boundary M/L]]+(0.05*SegmentExceptTable[[#This Row],[Boundary M/L]])","v":0.31957403646782812},{"$f":"IF(AND(AND(kwpeak_norm>SegmentExceptTable[[#This Row],[kW Boundary]],kwpeak_norm<SegmentExceptTable[[#This Row],[kW Exception]]),AND(kwhmo_norm>SegmentExceptTable[[#This Row],[Boundary M/L]],kwhmo_norm<SegmentExceptTable[[#This Row],[Exception M/L]])),1,0)","v":0}]
[null,null,null,null,null,null,null,null,null,null,null,null,null,null,null,null,null,null,null,null,null,null,null,null,null,null,null,null,null,null,null,null,null,null,null,null,null,null,null,null,null,null,null,null,null,null,null,338,{"$f":"SegmentExceptTable[[#This Row],[Numbers]]/$BP$4","v":0.56427378964941566},{"$f":"SegmentExceptTable[[#This Row],[kW Boundary]]+(0.05*SegmentExceptTable[[#This Row],[kW Boundary]])","v":0.59248747913188649},{"$f":"$BP$6*SegmentExceptTable[[#This Row],[kW Boundary]]+$BP$7","v":0.80155130114119144},{"$f":"$BP$8*SegmentExceptTable[[#This Row],[kW Boundary]]+$BP$9","v":-0.19465898042204088},{"$f":"SegmentExceptTable[[#This Row],[Boundary S/M]]+(0.05*SegmentExceptTable[[#This Row],[Boundary S/M]])","v":-0.20439192944314294},{"$f":"IF(AND(AND(kwpeak_norm>SegmentExceptTable[[#This Row],[kW Boundary]],kwpeak_norm<SegmentExceptTable[[#This Row],[kW Exception]]),AND(kwhmo_norm>SegmentExceptTable[[#This Row],[Boundary S/M]],kwhmo_norm<SegmentExceptTable[[#This Row],[Exception S/M]])),1,0)","v":0},{"$f":"$BP$10*SegmentExceptTable[[#This Row],[kW Boundary]]+$BP$11","v":1.0621961905468726},{"$f":"$BP$12*SegmentExceptTable[[#This Row],[kW Boundary]]+$BP$13","v":0.30356603018366662},{"$f":"SegmentExceptTable[[#This Row],[Boundary M/L]]+(0.05*SegmentExceptTable[[#This Row],[Boundary M/L]])","v":0.31874433169284994},{"$f":"IF(AND(AND(kwpeak_norm>SegmentExceptTable[[#This Row],[kW Boundary]],kwpeak_norm<SegmentExceptTable[[#This Row],[kW Exception]]),AND(kwhmo_norm>SegmentExceptTable[[#This Row],[Boundary M/L]],kwhmo_norm<SegmentExceptTable[[#This Row],[Exception M/L]])),1,0)","v":0}]
[null,null,null,null,null,null,null,null,null,null,null,null,null,null,null,null,null,null,null,null,null,null,null,null,null,null,null,null,null,null,null,null,null,null,null,null,null,null,null,null,null,null,null,null,null,null,null,339,{"$f":"SegmentExceptTable[[#This Row],[Numbers]]/$BP$4","v":0.56594323873121866},{"$f":"SegmentExceptTable[[#This Row],[kW Boundary]]+(0.05*SegmentExceptTable[[#This Row],[kW Boundary]])","v":0.59424040066777961},{"$f":"$BP$6*SegmentExceptTable[[#This Row],[kW Boundary]]+$BP$7","v":0.80397813143655761},{"$f":"$BP$8*SegmentExceptTable[[#This Row],[kW Boundary]]+$BP$9","v":-0.19580741681747171},{"$f":"SegmentExceptTable[[#This Row],[Boundary S/M]]+(0.05*SegmentExceptTable[[#This Row],[Boundary S/M]])","v":-0.2055977876583453},{"$f":"IF(AND(AND(kwpeak_norm>SegmentExceptTable[[#This Row],[kW Boundary]],kwpeak_norm<SegmentExceptTable[[#This Row],[kW Exception]]),AND(kwhmo_norm>SegmentExceptTable[[#This Row],[Boundary S/M]],kwhmo_norm<SegmentExceptTable[[#This Row],[Exception S/M]])),1,0)","v":0},{"$f":"$BP$10*SegmentExceptTable[[#This Row],[kW Boundary]]+$BP$11","v":1.0657232441891109},{"$f":"$BP$12*SegmentExceptTable[[#This Row],[kW Boundary]]+$BP$13","v":0.30277583515987788},{"$f":"SegmentExceptTable[[#This Row],[Boundary M/L]]+(0.05*SegmentExceptTable[[#This Row],[Boundary M/L]])","v":0.31791462691787176},{"$f":"IF(AND(AND(kwpeak_norm>SegmentExceptTable[[#This Row],[kW Boundary]],kwpeak_norm<SegmentExceptTable[[#This Row],[kW Exception]]),AND(kwhmo_norm>SegmentExceptTable[[#This Row],[Boundary M/L]],kwhmo_norm<SegmentExceptTable[[#This Row],[Exception M/L]])),1,0)","v":0}]
[null,null,null,null,null,null,null,null,null,null,null,null,null,null,null,null,null,null,null,null,null,null,null,null,null,null,null,null,null,null,null,null,null,null,null,null,null,null,null,null,null,null,null,null,null,null,null,340,{"$f":"SegmentExceptTable[[#This Row],[Numbers]]/$BP$4","v":0.56761268781302165},{"$f":"SegmentExceptTable[[#This Row],[kW Boundary]]+(0.05*SegmentExceptTable[[#This Row],[kW Boundary]])","v":0.59599332220367274},{"$f":"$BP$6*SegmentExceptTable[[#This Row],[kW Boundary]]+$BP$7","v":0.80640496173192389},{"$f":"$BP$8*SegmentExceptTable[[#This Row],[kW Boundary]]+$BP$9","v":-0.1969558532129026},{"$f":"SegmentExceptTable[[#This Row],[Boundary S/M]]+(0.05*SegmentExceptTable[[#This Row],[Boundary S/M]])","v":-0.20680364587354771},{"$f":"IF(AND(AND(kwpeak_norm>SegmentExceptTable[[#This Row],[kW Boundary]],kwpeak_norm<SegmentExceptTable[[#This Row],[kW Exception]]),AND(kwhmo_norm>SegmentExceptTable[[#This Row],[Boundary S/M]],kwhmo_norm<SegmentExceptTable[[#This Row],[Exception S/M]])),1,0)","v":0},{"$f":"$BP$10*SegmentExceptTable[[#This Row],[kW Boundary]]+$BP$11","v":1.0692502978313496},{"$f":"$BP$12*SegmentExceptTable[[#This Row],[kW Boundary]]+$BP$13","v":0.30198564013608914},{"$f":"SegmentExceptTable[[#This Row],[Boundary M/L]]+(0.05*SegmentExceptTable[[#This Row],[Boundary M/L]])","v":0.31708492214289358},{"$f":"IF(AND(AND(kwpeak_norm>SegmentExceptTable[[#This Row],[kW Boundary]],kwpeak_norm<SegmentExceptTable[[#This Row],[kW Exception]]),AND(kwhmo_norm>SegmentExceptTable[[#This Row],[Boundary M/L]],kwhmo_norm<SegmentExceptTable[[#This Row],[Exception M/L]])),1,0)","v":0}]
[null,null,null,null,null,null,null,null,null,null,null,null,null,null,null,null,null,null,null,null,null,null,null,null,null,null,null,null,null,null,null,null,null,null,null,null,null,null,null,null,null,null,null,null,null,null,null,341,{"$f":"SegmentExceptTable[[#This Row],[Numbers]]/$BP$4","v":0.56928213689482465},{"$f":"SegmentExceptTable[[#This Row],[kW Boundary]]+(0.05*SegmentExceptTable[[#This Row],[kW Boundary]])","v":0.59774624373956586},{"$f":"$BP$6*SegmentExceptTable[[#This Row],[kW Boundary]]+$BP$7","v":0.80883179202729016},{"$f":"$BP$8*SegmentExceptTable[[#This Row],[kW Boundary]]+$BP$9","v":-0.19810428960833348},{"$f":"SegmentExceptTable[[#This Row],[Boundary S/M]]+(0.05*SegmentExceptTable[[#This Row],[Boundary S/M]])","v":-0.20800950408875016},{"$f":"IF(AND(AND(kwpeak_norm>SegmentExceptTable[[#This Row],[kW Boundary]],kwpeak_norm<SegmentExceptTable[[#This Row],[kW Exception]]),AND(kwhmo_norm>SegmentExceptTable[[#This Row],[Boundary S/M]],kwhmo_norm<SegmentExceptTable[[#This Row],[Exception S/M]])),1,0)","v":0},{"$f":"$BP$10*SegmentExceptTable[[#This Row],[kW Boundary]]+$BP$11","v":1.0727773514735879},{"$f":"$BP$12*SegmentExceptTable[[#This Row],[kW Boundary]]+$BP$13","v":0.3011954451123004},{"$f":"SegmentExceptTable[[#This Row],[Boundary M/L]]+(0.05*SegmentExceptTable[[#This Row],[Boundary M/L]])","v":0.3162552173679154},{"$f":"IF(AND(AND(kwpeak_norm>SegmentExceptTable[[#This Row],[kW Boundary]],kwpeak_norm<SegmentExceptTable[[#This Row],[kW Exception]]),AND(kwhmo_norm>SegmentExceptTable[[#This Row],[Boundary M/L]],kwhmo_norm<SegmentExceptTable[[#This Row],[Exception M/L]])),1,0)","v":0}]
[null,null,null,null,null,null,null,null,null,null,null,null,null,null,null,null,null,null,null,null,null,null,null,null,null,null,null,null,null,null,null,null,null,null,null,null,null,null,null,null,null,null,null,null,null,null,null,342,{"$f":"SegmentExceptTable[[#This Row],[Numbers]]/$BP$4","v":0.57095158597662776},{"$f":"SegmentExceptTable[[#This Row],[kW Boundary]]+(0.05*SegmentExceptTable[[#This Row],[kW Boundary]])","v":0.5994991652754591},{"$f":"$BP$6*SegmentExceptTable[[#This Row],[kW Boundary]]+$BP$7","v":0.81125862232265666},{"$f":"$BP$8*SegmentExceptTable[[#This Row],[kW Boundary]]+$BP$9","v":-0.19925272600376442},{"$f":"SegmentExceptTable[[#This Row],[Boundary S/M]]+(0.05*SegmentExceptTable[[#This Row],[Boundary S/M]])","v":-0.20921536230395266},{"$f":"IF(AND(AND(kwpeak_norm>SegmentExceptTable[[#This Row],[kW Boundary]],kwpeak_norm<SegmentExceptTable[[#This Row],[kW Exception]]),AND(kwhmo_norm>SegmentExceptTable[[#This Row],[Boundary S/M]],kwhmo_norm<SegmentExceptTable[[#This Row],[Exception S/M]])),1,0)","v":0},{"$f":"$BP$10*SegmentExceptTable[[#This Row],[kW Boundary]]+$BP$11","v":1.0763044051158266},{"$f":"$BP$12*SegmentExceptTable[[#This Row],[kW Boundary]]+$BP$13","v":0.30040525008851154},{"$f":"SegmentExceptTable[[#This Row],[Boundary M/L]]+(0.05*SegmentExceptTable[[#This Row],[Boundary M/L]])","v":0.31542551259293711},{"$f":"IF(AND(AND(kwpeak_norm>SegmentExceptTable[[#This Row],[kW Boundary]],kwpeak_norm<SegmentExceptTable[[#This Row],[kW Exception]]),AND(kwhmo_norm>SegmentExceptTable[[#This Row],[Boundary M/L]],kwhmo_norm<SegmentExceptTable[[#This Row],[Exception M/L]])),1,0)","v":0}]
[null,null,null,null,null,null,null,null,null,null,null,null,null,null,null,null,null,null,null,null,null,null,null,null,null,null,null,null,null,null,null,null,null,null,null,null,null,null,null,null,null,null,null,null,null,null,null,343,{"$f":"SegmentExceptTable[[#This Row],[Numbers]]/$BP$4","v":0.57262103505843076},{"$f":"SegmentExceptTable[[#This Row],[kW Boundary]]+(0.05*SegmentExceptTable[[#This Row],[kW Boundary]])","v":0.60125208681135234},{"$f":"$BP$6*SegmentExceptTable[[#This Row],[kW Boundary]]+$BP$7","v":0.81368545261802294},{"$f":"$BP$8*SegmentExceptTable[[#This Row],[kW Boundary]]+$BP$9","v":-0.20040116239919531},{"$f":"SegmentExceptTable[[#This Row],[Boundary S/M]]+(0.05*SegmentExceptTable[[#This Row],[Boundary S/M]])","v":-0.21042122051915507},{"$f":"IF(AND(AND(kwpeak_norm>SegmentExceptTable[[#This Row],[kW Boundary]],kwpeak_norm<SegmentExceptTable[[#This Row],[kW Exception]]),AND(kwhmo_norm>SegmentExceptTable[[#This Row],[Boundary S/M]],kwhmo_norm<SegmentExceptTable[[#This Row],[Exception S/M]])),1,0)","v":0},{"$f":"$BP$10*SegmentExceptTable[[#This Row],[kW Boundary]]+$BP$11","v":1.0798314587580653},{"$f":"$BP$12*SegmentExceptTable[[#This Row],[kW Boundary]]+$BP$13","v":0.2996150550647228},{"$f":"SegmentExceptTable[[#This Row],[Boundary M/L]]+(0.05*SegmentExceptTable[[#This Row],[Boundary M/L]])","v":0.31459580781795893},{"$f":"IF(AND(AND(kwpeak_norm>SegmentExceptTable[[#This Row],[kW Boundary]],kwpeak_norm<SegmentExceptTable[[#This Row],[kW Exception]]),AND(kwhmo_norm>SegmentExceptTable[[#This Row],[Boundary M/L]],kwhmo_norm<SegmentExceptTable[[#This Row],[Exception M/L]])),1,0)","v":0}]
[null,null,null,null,null,null,null,null,null,null,null,null,null,null,null,null,null,null,null,null,null,null,null,null,null,null,null,null,null,null,null,null,null,null,null,null,null,null,null,null,null,null,null,null,null,null,null,344,{"$f":"SegmentExceptTable[[#This Row],[Numbers]]/$BP$4","v":0.57429048414023376},{"$f":"SegmentExceptTable[[#This Row],[kW Boundary]]+(0.05*SegmentExceptTable[[#This Row],[kW Boundary]])","v":0.60300500834724546},{"$f":"$BP$6*SegmentExceptTable[[#This Row],[kW Boundary]]+$BP$7","v":0.81611228291338911},{"$f":"$BP$8*SegmentExceptTable[[#This Row],[kW Boundary]]+$BP$9","v":-0.20154959879462619},{"$f":"SegmentExceptTable[[#This Row],[Boundary S/M]]+(0.05*SegmentExceptTable[[#This Row],[Boundary S/M]])","v":-0.21162707873435752},{"$f":"IF(AND(AND(kwpeak_norm>SegmentExceptTable[[#This Row],[kW Boundary]],kwpeak_norm<SegmentExceptTable[[#This Row],[kW Exception]]),AND(kwhmo_norm>SegmentExceptTable[[#This Row],[Boundary S/M]],kwhmo_norm<SegmentExceptTable[[#This Row],[Exception S/M]])),1,0)","v":0},{"$f":"$BP$10*SegmentExceptTable[[#This Row],[kW Boundary]]+$BP$11","v":1.0833585124003036},{"$f":"$BP$12*SegmentExceptTable[[#This Row],[kW Boundary]]+$BP$13","v":0.29882486004093406},{"$f":"SegmentExceptTable[[#This Row],[Boundary M/L]]+(0.05*SegmentExceptTable[[#This Row],[Boundary M/L]])","v":0.31376610304298075},{"$f":"IF(AND(AND(kwpeak_norm>SegmentExceptTable[[#This Row],[kW Boundary]],kwpeak_norm<SegmentExceptTable[[#This Row],[kW Exception]]),AND(kwhmo_norm>SegmentExceptTable[[#This Row],[Boundary M/L]],kwhmo_norm<SegmentExceptTable[[#This Row],[Exception M/L]])),1,0)","v":0}]
[null,null,null,null,null,null,null,null,null,null,null,null,null,null,null,null,null,null,null,null,null,null,null,null,null,null,null,null,null,null,null,null,null,null,null,null,null,null,null,null,null,null,null,null,null,null,null,345,{"$f":"SegmentExceptTable[[#This Row],[Numbers]]/$BP$4","v":0.57595993322203676},{"$f":"SegmentExceptTable[[#This Row],[kW Boundary]]+(0.05*SegmentExceptTable[[#This Row],[kW Boundary]])","v":0.60475792988313859},{"$f":"$BP$6*SegmentExceptTable[[#This Row],[kW Boundary]]+$BP$7","v":0.81853911320875539},{"$f":"$BP$8*SegmentExceptTable[[#This Row],[kW Boundary]]+$BP$9","v":-0.20269803519005702},{"$f":"SegmentExceptTable[[#This Row],[Boundary S/M]]+(0.05*SegmentExceptTable[[#This Row],[Boundary S/M]])","v":-0.21283293694955988},{"$f":"IF(AND(AND(kwpeak_norm>SegmentExceptTable[[#This Row],[kW Boundary]],kwpeak_norm<SegmentExceptTable[[#This Row],[kW Exception]]),AND(kwhmo_norm>SegmentExceptTable[[#This Row],[Boundary S/M]],kwhmo_norm<SegmentExceptTable[[#This Row],[Exception S/M]])),1,0)","v":0},{"$f":"$BP$10*SegmentExceptTable[[#This Row],[kW Boundary]]+$BP$11","v":1.0868855660425423},{"$f":"$BP$12*SegmentExceptTable[[#This Row],[kW Boundary]]+$BP$13","v":0.29803466501714532},{"$f":"SegmentExceptTable[[#This Row],[Boundary M/L]]+(0.05*SegmentExceptTable[[#This Row],[Boundary M/L]])","v":0.31293639826800257},{"$f":"IF(AND(AND(kwpeak_norm>SegmentExceptTable[[#This Row],[kW Boundary]],kwpeak_norm<SegmentExceptTable[[#This Row],[kW Exception]]),AND(kwhmo_norm>SegmentExceptTable[[#This Row],[Boundary M/L]],kwhmo_norm<SegmentExceptTable[[#This Row],[Exception M/L]])),1,0)","v":0}]
[null,null,null,null,null,null,null,null,null,null,null,null,null,null,null,null,null,null,null,null,null,null,null,null,null,null,null,null,null,null,null,null,null,null,null,null,null,null,null,null,null,null,null,null,null,null,null,346,{"$f":"SegmentExceptTable[[#This Row],[Numbers]]/$BP$4","v":0.57762938230383976},{"$f":"SegmentExceptTable[[#This Row],[kW Boundary]]+(0.05*SegmentExceptTable[[#This Row],[kW Boundary]])","v":0.60651085141903172},{"$f":"$BP$6*SegmentExceptTable[[#This Row],[kW Boundary]]+$BP$7","v":0.82096594350412166},{"$f":"$BP$8*SegmentExceptTable[[#This Row],[kW Boundary]]+$BP$9","v":-0.20384647158548791},{"$f":"SegmentExceptTable[[#This Row],[Boundary S/M]]+(0.05*SegmentExceptTable[[#This Row],[Boundary S/M]])","v":-0.21403879516476232},{"$f":"IF(AND(AND(kwpeak_norm>SegmentExceptTable[[#This Row],[kW Boundary]],kwpeak_norm<SegmentExceptTable[[#This Row],[kW Exception]]),AND(kwhmo_norm>SegmentExceptTable[[#This Row],[Boundary S/M]],kwhmo_norm<SegmentExceptTable[[#This Row],[Exception S/M]])),1,0)","v":0},{"$f":"$BP$10*SegmentExceptTable[[#This Row],[kW Boundary]]+$BP$11","v":1.090412619684781},{"$f":"$BP$12*SegmentExceptTable[[#This Row],[kW Boundary]]+$BP$13","v":0.29724446999335657},{"$f":"SegmentExceptTable[[#This Row],[Boundary M/L]]+(0.05*SegmentExceptTable[[#This Row],[Boundary M/L]])","v":0.31210669349302439},{"$f":"IF(AND(AND(kwpeak_norm>SegmentExceptTable[[#This Row],[kW Boundary]],kwpeak_norm<SegmentExceptTable[[#This Row],[kW Exception]]),AND(kwhmo_norm>SegmentExceptTable[[#This Row],[Boundary M/L]],kwhmo_norm<SegmentExceptTable[[#This Row],[Exception M/L]])),1,0)","v":0}]
[null,null,null,null,null,null,null,null,null,null,null,null,null,null,null,null,null,null,null,null,null,null,null,null,null,null,null,null,null,null,null,null,null,null,null,null,null,null,null,null,null,null,null,null,null,null,null,347,{"$f":"SegmentExceptTable[[#This Row],[Numbers]]/$BP$4","v":0.57929883138564275},{"$f":"SegmentExceptTable[[#This Row],[kW Boundary]]+(0.05*SegmentExceptTable[[#This Row],[kW Boundary]])","v":0.60826377295492484},{"$f":"$BP$6*SegmentExceptTable[[#This Row],[kW Boundary]]+$BP$7","v":0.82339277379948794},{"$f":"$BP$8*SegmentExceptTable[[#This Row],[kW Boundary]]+$BP$9","v":-0.20499490798091879},{"$f":"SegmentExceptTable[[#This Row],[Boundary S/M]]+(0.05*SegmentExceptTable[[#This Row],[Boundary S/M]])","v":-0.21524465337996473},{"$f":"IF(AND(AND(kwpeak_norm>SegmentExceptTable[[#This Row],[kW Boundary]],kwpeak_norm<SegmentExceptTable[[#This Row],[kW Exception]]),AND(kwhmo_norm>SegmentExceptTable[[#This Row],[Boundary S/M]],kwhmo_norm<SegmentExceptTable[[#This Row],[Exception S/M]])),1,0)","v":0},{"$f":"$BP$10*SegmentExceptTable[[#This Row],[kW Boundary]]+$BP$11","v":1.0939396733270192},{"$f":"$BP$12*SegmentExceptTable[[#This Row],[kW Boundary]]+$BP$13","v":0.29645427496956778},{"$f":"SegmentExceptTable[[#This Row],[Boundary M/L]]+(0.05*SegmentExceptTable[[#This Row],[Boundary M/L]])","v":0.31127698871804615},{"$f":"IF(AND(AND(kwpeak_norm>SegmentExceptTable[[#This Row],[kW Boundary]],kwpeak_norm<SegmentExceptTable[[#This Row],[kW Exception]]),AND(kwhmo_norm>SegmentExceptTable[[#This Row],[Boundary M/L]],kwhmo_norm<SegmentExceptTable[[#This Row],[Exception M/L]])),1,0)","v":0}]
[null,null,null,null,null,null,null,null,null,null,null,null,null,null,null,null,null,null,null,null,null,null,null,null,null,null,null,null,null,null,null,null,null,null,null,null,null,null,null,null,null,null,null,null,null,null,null,348,{"$f":"SegmentExceptTable[[#This Row],[Numbers]]/$BP$4","v":0.58096828046744575},{"$f":"SegmentExceptTable[[#This Row],[kW Boundary]]+(0.05*SegmentExceptTable[[#This Row],[kW Boundary]])","v":0.61001669449081808},{"$f":"$BP$6*SegmentExceptTable[[#This Row],[kW Boundary]]+$BP$7","v":0.82581960409485422},{"$f":"$BP$8*SegmentExceptTable[[#This Row],[kW Boundary]]+$BP$9","v":-0.20614334437634968},{"$f":"SegmentExceptTable[[#This Row],[Boundary S/M]]+(0.05*SegmentExceptTable[[#This Row],[Boundary S/M]])","v":-0.21645051159516715},{"$f":"IF(AND(AND(kwpeak_norm>SegmentExceptTable[[#This Row],[kW Boundary]],kwpeak_norm<SegmentExceptTable[[#This Row],[kW Exception]]),AND(kwhmo_norm>SegmentExceptTable[[#This Row],[Boundary S/M]],kwhmo_norm<SegmentExceptTable[[#This Row],[Exception S/M]])),1,0)","v":0},{"$f":"$BP$10*SegmentExceptTable[[#This Row],[kW Boundary]]+$BP$11","v":1.097466726969258},{"$f":"$BP$12*SegmentExceptTable[[#This Row],[kW Boundary]]+$BP$13","v":0.29566407994577903},{"$f":"SegmentExceptTable[[#This Row],[Boundary M/L]]+(0.05*SegmentExceptTable[[#This Row],[Boundary M/L]])","v":0.31044728394306798},{"$f":"IF(AND(AND(kwpeak_norm>SegmentExceptTable[[#This Row],[kW Boundary]],kwpeak_norm<SegmentExceptTable[[#This Row],[kW Exception]]),AND(kwhmo_norm>SegmentExceptTable[[#This Row],[Boundary M/L]],kwhmo_norm<SegmentExceptTable[[#This Row],[Exception M/L]])),1,0)","v":0}]
[null,null,null,null,null,null,null,null,null,null,null,null,null,null,null,null,null,null,null,null,null,null,null,null,null,null,null,null,null,null,null,null,null,null,null,null,null,null,null,null,null,null,null,null,null,null,null,349,{"$f":"SegmentExceptTable[[#This Row],[Numbers]]/$BP$4","v":0.58263772954924875},{"$f":"SegmentExceptTable[[#This Row],[kW Boundary]]+(0.05*SegmentExceptTable[[#This Row],[kW Boundary]])","v":0.6117696160267112},{"$f":"$BP$6*SegmentExceptTable[[#This Row],[kW Boundary]]+$BP$7","v":0.8282464343902205},{"$f":"$BP$8*SegmentExceptTable[[#This Row],[kW Boundary]]+$BP$9","v":-0.20729178077178051},{"$f":"SegmentExceptTable[[#This Row],[Boundary S/M]]+(0.05*SegmentExceptTable[[#This Row],[Boundary S/M]])","v":-0.21765636981036954},{"$f":"IF(AND(AND(kwpeak_norm>SegmentExceptTable[[#This Row],[kW Boundary]],kwpeak_norm<SegmentExceptTable[[#This Row],[kW Exception]]),AND(kwhmo_norm>SegmentExceptTable[[#This Row],[Boundary S/M]],kwhmo_norm<SegmentExceptTable[[#This Row],[Exception S/M]])),1,0)","v":0},{"$f":"$BP$10*SegmentExceptTable[[#This Row],[kW Boundary]]+$BP$11","v":1.1009937806114962},{"$f":"$BP$12*SegmentExceptTable[[#This Row],[kW Boundary]]+$BP$13","v":0.29487388492199029},{"$f":"SegmentExceptTable[[#This Row],[Boundary M/L]]+(0.05*SegmentExceptTable[[#This Row],[Boundary M/L]])","v":0.3096175791680898},{"$f":"IF(AND(AND(kwpeak_norm>SegmentExceptTable[[#This Row],[kW Boundary]],kwpeak_norm<SegmentExceptTable[[#This Row],[kW Exception]]),AND(kwhmo_norm>SegmentExceptTable[[#This Row],[Boundary M/L]],kwhmo_norm<SegmentExceptTable[[#This Row],[Exception M/L]])),1,0)","v":0}]
[null,null,null,null,null,null,null,null,null,null,null,null,null,null,null,null,null,null,null,null,null,null,null,null,null,null,null,null,null,null,null,null,null,null,null,null,null,null,null,null,null,null,null,null,null,null,null,350,{"$f":"SegmentExceptTable[[#This Row],[Numbers]]/$BP$4","v":0.58430717863105175},{"$f":"SegmentExceptTable[[#This Row],[kW Boundary]]+(0.05*SegmentExceptTable[[#This Row],[kW Boundary]])","v":0.61352253756260433},{"$f":"$BP$6*SegmentExceptTable[[#This Row],[kW Boundary]]+$BP$7","v":0.83067326468558678},{"$f":"$BP$8*SegmentExceptTable[[#This Row],[kW Boundary]]+$BP$9","v":-0.20844021716721139},{"$f":"SegmentExceptTable[[#This Row],[Boundary S/M]]+(0.05*SegmentExceptTable[[#This Row],[Boundary S/M]])","v":-0.21886222802557195},{"$f":"IF(AND(AND(kwpeak_norm>SegmentExceptTable[[#This Row],[kW Boundary]],kwpeak_norm<SegmentExceptTable[[#This Row],[kW Exception]]),AND(kwhmo_norm>SegmentExceptTable[[#This Row],[Boundary S/M]],kwhmo_norm<SegmentExceptTable[[#This Row],[Exception S/M]])),1,0)","v":0},{"$f":"$BP$10*SegmentExceptTable[[#This Row],[kW Boundary]]+$BP$11","v":1.1045208342537349},{"$f":"$BP$12*SegmentExceptTable[[#This Row],[kW Boundary]]+$BP$13","v":0.29408368989820155},{"$f":"SegmentExceptTable[[#This Row],[Boundary M/L]]+(0.05*SegmentExceptTable[[#This Row],[Boundary M/L]])","v":0.30878787439311162},{"$f":"IF(AND(AND(kwpeak_norm>SegmentExceptTable[[#This Row],[kW Boundary]],kwpeak_norm<SegmentExceptTable[[#This Row],[kW Exception]]),AND(kwhmo_norm>SegmentExceptTable[[#This Row],[Boundary M/L]],kwhmo_norm<SegmentExceptTable[[#This Row],[Exception M/L]])),1,0)","v":0}]
[null,null,null,null,null,null,null,null,null,null,null,null,null,null,null,null,null,null,null,null,null,null,null,null,null,null,null,null,null,null,null,null,null,null,null,null,null,null,null,null,null,null,null,null,null,null,null,351,{"$f":"SegmentExceptTable[[#This Row],[Numbers]]/$BP$4","v":0.58597662771285475},{"$f":"SegmentExceptTable[[#This Row],[kW Boundary]]+(0.05*SegmentExceptTable[[#This Row],[kW Boundary]])","v":0.61527545909849746},{"$f":"$BP$6*SegmentExceptTable[[#This Row],[kW Boundary]]+$BP$7","v":0.83310009498095305},{"$f":"$BP$8*SegmentExceptTable[[#This Row],[kW Boundary]]+$BP$9","v":-0.20958865356264228},{"$f":"SegmentExceptTable[[#This Row],[Boundary S/M]]+(0.05*SegmentExceptTable[[#This Row],[Boundary S/M]])","v":-0.2200680862407744},{"$f":"IF(AND(AND(kwpeak_norm>SegmentExceptTable[[#This Row],[kW Boundary]],kwpeak_norm<SegmentExceptTable[[#This Row],[kW Exception]]),AND(kwhmo_norm>SegmentExceptTable[[#This Row],[Boundary S/M]],kwhmo_norm<SegmentExceptTable[[#This Row],[Exception S/M]])),1,0)","v":0},{"$f":"$BP$10*SegmentExceptTable[[#This Row],[kW Boundary]]+$BP$11","v":1.1080478878959732},{"$f":"$BP$12*SegmentExceptTable[[#This Row],[kW Boundary]]+$BP$13","v":0.29329349487441281},{"$f":"SegmentExceptTable[[#This Row],[Boundary M/L]]+(0.05*SegmentExceptTable[[#This Row],[Boundary M/L]])","v":0.30795816961813344},{"$f":"IF(AND(AND(kwpeak_norm>SegmentExceptTable[[#This Row],[kW Boundary]],kwpeak_norm<SegmentExceptTable[[#This Row],[kW Exception]]),AND(kwhmo_norm>SegmentExceptTable[[#This Row],[Boundary M/L]],kwhmo_norm<SegmentExceptTable[[#This Row],[Exception M/L]])),1,0)","v":0}]
[null,null,null,null,null,null,null,null,null,null,null,null,null,null,null,null,null,null,null,null,null,null,null,null,null,null,null,null,null,null,null,null,null,null,null,null,null,null,null,null,null,null,null,null,null,null,null,352,{"$f":"SegmentExceptTable[[#This Row],[Numbers]]/$BP$4","v":0.58764607679465775},{"$f":"SegmentExceptTable[[#This Row],[kW Boundary]]+(0.05*SegmentExceptTable[[#This Row],[kW Boundary]])","v":0.61702838063439058},{"$f":"$BP$6*SegmentExceptTable[[#This Row],[kW Boundary]]+$BP$7","v":0.83552692527631933},{"$f":"$BP$8*SegmentExceptTable[[#This Row],[kW Boundary]]+$BP$9","v":-0.21073708995807316},{"$f":"SegmentExceptTable[[#This Row],[Boundary S/M]]+(0.05*SegmentExceptTable[[#This Row],[Boundary S/M]])","v":-0.22127394445597681},{"$f":"IF(AND(AND(kwpeak_norm>SegmentExceptTable[[#This Row],[kW Boundary]],kwpeak_norm<SegmentExceptTable[[#This Row],[kW Exception]]),AND(kwhmo_norm>SegmentExceptTable[[#This Row],[Boundary S/M]],kwhmo_norm<SegmentExceptTable[[#This Row],[Exception S/M]])),1,0)","v":0},{"$f":"$BP$10*SegmentExceptTable[[#This Row],[kW Boundary]]+$BP$11","v":1.1115749415382119},{"$f":"$BP$12*SegmentExceptTable[[#This Row],[kW Boundary]]+$BP$13","v":0.29250329985062401},{"$f":"SegmentExceptTable[[#This Row],[Boundary M/L]]+(0.05*SegmentExceptTable[[#This Row],[Boundary M/L]])","v":0.3071284648431552},{"$f":"IF(AND(AND(kwpeak_norm>SegmentExceptTable[[#This Row],[kW Boundary]],kwpeak_norm<SegmentExceptTable[[#This Row],[kW Exception]]),AND(kwhmo_norm>SegmentExceptTable[[#This Row],[Boundary M/L]],kwhmo_norm<SegmentExceptTable[[#This Row],[Exception M/L]])),1,0)","v":0}]
[null,null,null,null,null,null,null,null,null,null,null,null,null,null,null,null,null,null,null,null,null,null,null,null,null,null,null,null,null,null,null,null,null,null,null,null,null,null,null,null,null,null,null,null,null,null,null,353,{"$f":"SegmentExceptTable[[#This Row],[Numbers]]/$BP$4","v":0.58931552587646074},{"$f":"SegmentExceptTable[[#This Row],[kW Boundary]]+(0.05*SegmentExceptTable[[#This Row],[kW Boundary]])","v":0.61878130217028382},{"$f":"$BP$6*SegmentExceptTable[[#This Row],[kW Boundary]]+$BP$7","v":0.83795375557168561},{"$f":"$BP$8*SegmentExceptTable[[#This Row],[kW Boundary]]+$BP$9","v":-0.21188552635350399},{"$f":"SegmentExceptTable[[#This Row],[Boundary S/M]]+(0.05*SegmentExceptTable[[#This Row],[Boundary S/M]])","v":-0.2224798026711792},{"$f":"IF(AND(AND(kwpeak_norm>SegmentExceptTable[[#This Row],[kW Boundary]],kwpeak_norm<SegmentExceptTable[[#This Row],[kW Exception]]),AND(kwhmo_norm>SegmentExceptTable[[#This Row],[Boundary S/M]],kwhmo_norm<SegmentExceptTable[[#This Row],[Exception S/M]])),1,0)","v":0},{"$f":"$BP$10*SegmentExceptTable[[#This Row],[kW Boundary]]+$BP$11","v":1.1151019951804506},{"$f":"$BP$12*SegmentExceptTable[[#This Row],[kW Boundary]]+$BP$13","v":0.29171310482683527},{"$f":"SegmentExceptTable[[#This Row],[Boundary M/L]]+(0.05*SegmentExceptTable[[#This Row],[Boundary M/L]])","v":0.30629876006817702},{"$f":"IF(AND(AND(kwpeak_norm>SegmentExceptTable[[#This Row],[kW Boundary]],kwpeak_norm<SegmentExceptTable[[#This Row],[kW Exception]]),AND(kwhmo_norm>SegmentExceptTable[[#This Row],[Boundary M/L]],kwhmo_norm<SegmentExceptTable[[#This Row],[Exception M/L]])),1,0)","v":0}]
[null,null,null,null,null,null,null,null,null,null,null,null,null,null,null,null,null,null,null,null,null,null,null,null,null,null,null,null,null,null,null,null,null,null,null,null,null,null,null,null,null,null,null,null,null,null,null,354,{"$f":"SegmentExceptTable[[#This Row],[Numbers]]/$BP$4","v":0.59098497495826374},{"$f":"SegmentExceptTable[[#This Row],[kW Boundary]]+(0.05*SegmentExceptTable[[#This Row],[kW Boundary]])","v":0.62053422370617695},{"$f":"$BP$6*SegmentExceptTable[[#This Row],[kW Boundary]]+$BP$7","v":0.84038058586705189},{"$f":"$BP$8*SegmentExceptTable[[#This Row],[kW Boundary]]+$BP$9","v":-0.21303396274893488},{"$f":"SegmentExceptTable[[#This Row],[Boundary S/M]]+(0.05*SegmentExceptTable[[#This Row],[Boundary S/M]])","v":-0.22368566088638162},{"$f":"IF(AND(AND(kwpeak_norm>SegmentExceptTable[[#This Row],[kW Boundary]],kwpeak_norm<SegmentExceptTable[[#This Row],[kW Exception]]),AND(kwhmo_norm>SegmentExceptTable[[#This Row],[Boundary S/M]],kwhmo_norm<SegmentExceptTable[[#This Row],[Exception S/M]])),1,0)","v":0},{"$f":"$BP$10*SegmentExceptTable[[#This Row],[kW Boundary]]+$BP$11","v":1.1186290488226889},{"$f":"$BP$12*SegmentExceptTable[[#This Row],[kW Boundary]]+$BP$13","v":0.29092290980304653},{"$f":"SegmentExceptTable[[#This Row],[Boundary M/L]]+(0.05*SegmentExceptTable[[#This Row],[Boundary M/L]])","v":0.30546905529319884},{"$f":"IF(AND(AND(kwpeak_norm>SegmentExceptTable[[#This Row],[kW Boundary]],kwpeak_norm<SegmentExceptTable[[#This Row],[kW Exception]]),AND(kwhmo_norm>SegmentExceptTable[[#This Row],[Boundary M/L]],kwhmo_norm<SegmentExceptTable[[#This Row],[Exception M/L]])),1,0)","v":0}]
[null,null,null,null,null,null,null,null,null,null,null,null,null,null,null,null,null,null,null,null,null,null,null,null,null,null,null,null,null,null,null,null,null,null,null,null,null,null,null,null,null,null,null,null,null,null,null,355,{"$f":"SegmentExceptTable[[#This Row],[Numbers]]/$BP$4","v":0.59265442404006674},{"$f":"SegmentExceptTable[[#This Row],[kW Boundary]]+(0.05*SegmentExceptTable[[#This Row],[kW Boundary]])","v":0.62228714524207007},{"$f":"$BP$6*SegmentExceptTable[[#This Row],[kW Boundary]]+$BP$7","v":0.84280741616241817},{"$f":"$BP$8*SegmentExceptTable[[#This Row],[kW Boundary]]+$BP$9","v":-0.21418239914436576},{"$f":"SegmentExceptTable[[#This Row],[Boundary S/M]]+(0.05*SegmentExceptTable[[#This Row],[Boundary S/M]])","v":-0.22489151910158406},{"$f":"IF(AND(AND(kwpeak_norm>SegmentExceptTable[[#This Row],[kW Boundary]],kwpeak_norm<SegmentExceptTable[[#This Row],[kW Exception]]),AND(kwhmo_norm>SegmentExceptTable[[#This Row],[Boundary S/M]],kwhmo_norm<SegmentExceptTable[[#This Row],[Exception S/M]])),1,0)","v":0},{"$f":"$BP$10*SegmentExceptTable[[#This Row],[kW Boundary]]+$BP$11","v":1.1221561024649276},{"$f":"$BP$12*SegmentExceptTable[[#This Row],[kW Boundary]]+$BP$13","v":0.29013271477925778},{"$f":"SegmentExceptTable[[#This Row],[Boundary M/L]]+(0.05*SegmentExceptTable[[#This Row],[Boundary M/L]])","v":0.30463935051822066},{"$f":"IF(AND(AND(kwpeak_norm>SegmentExceptTable[[#This Row],[kW Boundary]],kwpeak_norm<SegmentExceptTable[[#This Row],[kW Exception]]),AND(kwhmo_norm>SegmentExceptTable[[#This Row],[Boundary M/L]],kwhmo_norm<SegmentExceptTable[[#This Row],[Exception M/L]])),1,0)","v":0}]
[null,null,null,null,null,null,null,null,null,null,null,null,null,null,null,null,null,null,null,null,null,null,null,null,null,null,null,null,null,null,null,null,null,null,null,null,null,null,null,null,null,null,null,null,null,null,null,356,{"$f":"SegmentExceptTable[[#This Row],[Numbers]]/$BP$4","v":0.59432387312186974},{"$f":"SegmentExceptTable[[#This Row],[kW Boundary]]+(0.05*SegmentExceptTable[[#This Row],[kW Boundary]])","v":0.6240400667779632},{"$f":"$BP$6*SegmentExceptTable[[#This Row],[kW Boundary]]+$BP$7","v":0.84523424645778433},{"$f":"$BP$8*SegmentExceptTable[[#This Row],[kW Boundary]]+$BP$9","v":-0.21533083553979665},{"$f":"SegmentExceptTable[[#This Row],[Boundary S/M]]+(0.05*SegmentExceptTable[[#This Row],[Boundary S/M]])","v":-0.22609737731678647},{"$f":"IF(AND(AND(kwpeak_norm>SegmentExceptTable[[#This Row],[kW Boundary]],kwpeak_norm<SegmentExceptTable[[#This Row],[kW Exception]]),AND(kwhmo_norm>SegmentExceptTable[[#This Row],[Boundary S/M]],kwhmo_norm<SegmentExceptTable[[#This Row],[Exception S/M]])),1,0)","v":0},{"$f":"$BP$10*SegmentExceptTable[[#This Row],[kW Boundary]]+$BP$11","v":1.1256831561071658},{"$f":"$BP$12*SegmentExceptTable[[#This Row],[kW Boundary]]+$BP$13","v":0.28934251975546899},{"$f":"SegmentExceptTable[[#This Row],[Boundary M/L]]+(0.05*SegmentExceptTable[[#This Row],[Boundary M/L]])","v":0.30380964574324243},{"$f":"IF(AND(AND(kwpeak_norm>SegmentExceptTable[[#This Row],[kW Boundary]],kwpeak_norm<SegmentExceptTable[[#This Row],[kW Exception]]),AND(kwhmo_norm>SegmentExceptTable[[#This Row],[Boundary M/L]],kwhmo_norm<SegmentExceptTable[[#This Row],[Exception M/L]])),1,0)","v":0}]
[null,null,null,null,null,null,null,null,null,null,null,null,null,null,null,null,null,null,null,null,null,null,null,null,null,null,null,null,null,null,null,null,null,null,null,null,null,null,null,null,null,null,null,null,null,null,null,357,{"$f":"SegmentExceptTable[[#This Row],[Numbers]]/$BP$4","v":0.59599332220367274},{"$f":"SegmentExceptTable[[#This Row],[kW Boundary]]+(0.05*SegmentExceptTable[[#This Row],[kW Boundary]])","v":0.62579298831385632},{"$f":"$BP$6*SegmentExceptTable[[#This Row],[kW Boundary]]+$BP$7","v":0.84766107675315061},{"$f":"$BP$8*SegmentExceptTable[[#This Row],[kW Boundary]]+$BP$9","v":-0.21647927193522748},{"$f":"SegmentExceptTable[[#This Row],[Boundary S/M]]+(0.05*SegmentExceptTable[[#This Row],[Boundary S/M]])","v":-0.22730323553198886},{"$f":"IF(AND(AND(kwpeak_norm>SegmentExceptTable[[#This Row],[kW Boundary]],kwpeak_norm<SegmentExceptTable[[#This Row],[kW Exception]]),AND(kwhmo_norm>SegmentExceptTable[[#This Row],[Boundary S/M]],kwhmo_norm<SegmentExceptTable[[#This Row],[Exception S/M]])),1,0)","v":0},{"$f":"$BP$10*SegmentExceptTable[[#This Row],[kW Boundary]]+$BP$11","v":1.1292102097494046},{"$f":"$BP$12*SegmentExceptTable[[#This Row],[kW Boundary]]+$BP$13","v":0.28855232473168024},{"$f":"SegmentExceptTable[[#This Row],[Boundary M/L]]+(0.05*SegmentExceptTable[[#This Row],[Boundary M/L]])","v":0.30297994096826425},{"$f":"IF(AND(AND(kwpeak_norm>SegmentExceptTable[[#This Row],[kW Boundary]],kwpeak_norm<SegmentExceptTable[[#This Row],[kW Exception]]),AND(kwhmo_norm>SegmentExceptTable[[#This Row],[Boundary M/L]],kwhmo_norm<SegmentExceptTable[[#This Row],[Exception M/L]])),1,0)","v":0}]
[null,null,null,null,null,null,null,null,null,null,null,null,null,null,null,null,null,null,null,null,null,null,null,null,null,null,null,null,null,null,null,null,null,null,null,null,null,null,null,null,null,null,null,null,null,null,null,358,{"$f":"SegmentExceptTable[[#This Row],[Numbers]]/$BP$4","v":0.59766277128547585},{"$f":"SegmentExceptTable[[#This Row],[kW Boundary]]+(0.05*SegmentExceptTable[[#This Row],[kW Boundary]])","v":0.62754590984974967},{"$f":"$BP$6*SegmentExceptTable[[#This Row],[kW Boundary]]+$BP$7","v":0.85008790704851711},{"$f":"$BP$8*SegmentExceptTable[[#This Row],[kW Boundary]]+$BP$9","v":-0.21762770833065842},{"$f":"SegmentExceptTable[[#This Row],[Boundary S/M]]+(0.05*SegmentExceptTable[[#This Row],[Boundary S/M]])","v":-0.22850909374719133},{"$f":"IF(AND(AND(kwpeak_norm>SegmentExceptTable[[#This Row],[kW Boundary]],kwpeak_norm<SegmentExceptTable[[#This Row],[kW Exception]]),AND(kwhmo_norm>SegmentExceptTable[[#This Row],[Boundary S/M]],kwhmo_norm<SegmentExceptTable[[#This Row],[Exception S/M]])),1,0)","v":0},{"$f":"$BP$10*SegmentExceptTable[[#This Row],[kW Boundary]]+$BP$11","v":1.1327372633916433},{"$f":"$BP$12*SegmentExceptTable[[#This Row],[kW Boundary]]+$BP$13","v":0.28776212970789145},{"$f":"SegmentExceptTable[[#This Row],[Boundary M/L]]+(0.05*SegmentExceptTable[[#This Row],[Boundary M/L]])","v":0.30215023619328601},{"$f":"IF(AND(AND(kwpeak_norm>SegmentExceptTable[[#This Row],[kW Boundary]],kwpeak_norm<SegmentExceptTable[[#This Row],[kW Exception]]),AND(kwhmo_norm>SegmentExceptTable[[#This Row],[Boundary M/L]],kwhmo_norm<SegmentExceptTable[[#This Row],[Exception M/L]])),1,0)","v":0}]
[null,null,null,null,null,null,null,null,null,null,null,null,null,null,null,null,null,null,null,null,null,null,null,null,null,null,null,null,null,null,null,null,null,null,null,null,null,null,null,null,null,null,null,null,null,null,null,359,{"$f":"SegmentExceptTable[[#This Row],[Numbers]]/$BP$4","v":0.59933222036727885},{"$f":"SegmentExceptTable[[#This Row],[kW Boundary]]+(0.05*SegmentExceptTable[[#This Row],[kW Boundary]])","v":0.6292988313856428},{"$f":"$BP$6*SegmentExceptTable[[#This Row],[kW Boundary]]+$BP$7","v":0.85251473734388339},{"$f":"$BP$8*SegmentExceptTable[[#This Row],[kW Boundary]]+$BP$9","v":-0.21877614472608931},{"$f":"SegmentExceptTable[[#This Row],[Boundary S/M]]+(0.05*SegmentExceptTable[[#This Row],[Boundary S/M]])","v":-0.22971495196239378},{"$f":"IF(AND(AND(kwpeak_norm>SegmentExceptTable[[#This Row],[kW Boundary]],kwpeak_norm<SegmentExceptTable[[#This Row],[kW Exception]]),AND(kwhmo_norm>SegmentExceptTable[[#This Row],[Boundary S/M]],kwhmo_norm<SegmentExceptTable[[#This Row],[Exception S/M]])),1,0)","v":0},{"$f":"$BP$10*SegmentExceptTable[[#This Row],[kW Boundary]]+$BP$11","v":1.1362643170338815},{"$f":"$BP$12*SegmentExceptTable[[#This Row],[kW Boundary]]+$BP$13","v":0.2869719346841027},{"$f":"SegmentExceptTable[[#This Row],[Boundary M/L]]+(0.05*SegmentExceptTable[[#This Row],[Boundary M/L]])","v":0.30132053141830784},{"$f":"IF(AND(AND(kwpeak_norm>SegmentExceptTable[[#This Row],[kW Boundary]],kwpeak_norm<SegmentExceptTable[[#This Row],[kW Exception]]),AND(kwhmo_norm>SegmentExceptTable[[#This Row],[Boundary M/L]],kwhmo_norm<SegmentExceptTable[[#This Row],[Exception M/L]])),1,0)","v":0}]
[null,null,null,null,null,null,null,null,null,null,null,null,null,null,null,null,null,null,null,null,null,null,null,null,null,null,null,null,null,null,null,null,null,null,null,null,null,null,null,null,null,null,null,null,null,null,null,3120,{"$f":"SegmentExceptTable[[#This Row],[Numbers]]/$BP$4","v":5.2086811352253752},{"$f":"SegmentExceptTable[[#This Row],[kW Boundary]]+(0.05*SegmentExceptTable[[#This Row],[kW Boundary]])","v":5.4691151919866439},{"$f":"$BP$6*SegmentExceptTable[[#This Row],[kW Boundary]]+$BP$7","v":7.5529931828501757},{"$f":"$BP$8*SegmentExceptTable[[#This Row],[kW Boundary]]+$BP$9","v":-3.3896090325107378},{"$f":"SegmentExceptTable[[#This Row],[Boundary S/M]]+(0.05*SegmentExceptTable[[#This Row],[Boundary S/M]])","v":-3.5590894841362748},{"$f":"IF(AND(AND(kwpeak_norm>SegmentExceptTable[[#This Row],[kW Boundary]],kwpeak_norm<SegmentExceptTable[[#This Row],[kW Exception]]),AND(kwhmo_norm>SegmentExceptTable[[#This Row],[Boundary S/M]],kwhmo_norm<SegmentExceptTable[[#This Row],[Exception S/M]])),1,0)","v":0},{"$f":"$BP$10*SegmentExceptTable[[#This Row],[kW Boundary]]+$BP$11","v":10.874459423254461},{"$f":"$BP$12*SegmentExceptTable[[#This Row],[kW Boundary]]+$BP$13","v":-1.8947565259966548},{"$f":"SegmentExceptTable[[#This Row],[Boundary M/L]]+(0.05*SegmentExceptTable[[#This Row],[Boundary M/L]])","v":-1.9894943522964876},{"$f":"IF(AND(AND(kwpeak_norm>SegmentExceptTable[[#This Row],[kW Boundary]],kwpeak_norm<SegmentExceptTable[[#This Row],[kW Exception]]),AND(kwhmo_norm>SegmentExceptTable[[#This Row],[Boundary M/L]],kwhmo_norm<SegmentExceptTable[[#This Row],[Exception M/L]])),1,0)","v":0}]
[null,null,null,null,null,null,null,null,null,null,null,null,null,null,null,null,null,null,null,null,null,null,null,null,null,null,null,null,null,null,null,null,null,null,null,null,null,null,null,null,null,null,null,null,null,null,null,361,{"$f":"SegmentExceptTable[[#This Row],[Numbers]]/$BP$4","v":0.60267111853088484},{"$f":"SegmentExceptTable[[#This Row],[kW Boundary]]+(0.05*SegmentExceptTable[[#This Row],[kW Boundary]])","v":0.63280467445742905},{"$f":"$BP$6*SegmentExceptTable[[#This Row],[kW Boundary]]+$BP$7","v":0.85736839793461583},{"$f":"$BP$8*SegmentExceptTable[[#This Row],[kW Boundary]]+$BP$9","v":-0.22107301751695108},{"$f":"SegmentExceptTable[[#This Row],[Boundary S/M]]+(0.05*SegmentExceptTable[[#This Row],[Boundary S/M]])","v":-0.23212666839279864},{"$f":"IF(AND(AND(kwpeak_norm>SegmentExceptTable[[#This Row],[kW Boundary]],kwpeak_norm<SegmentExceptTable[[#This Row],[kW Exception]]),AND(kwhmo_norm>SegmentExceptTable[[#This Row],[Boundary S/M]],kwhmo_norm<SegmentExceptTable[[#This Row],[Exception S/M]])),1,0)","v":0},{"$f":"$BP$10*SegmentExceptTable[[#This Row],[kW Boundary]]+$BP$11","v":1.143318424318359},{"$f":"$BP$12*SegmentExceptTable[[#This Row],[kW Boundary]]+$BP$13","v":0.28539154463652516},{"$f":"SegmentExceptTable[[#This Row],[Boundary M/L]]+(0.05*SegmentExceptTable[[#This Row],[Boundary M/L]])","v":0.29966112186835142},{"$f":"IF(AND(AND(kwpeak_norm>SegmentExceptTable[[#This Row],[kW Boundary]],kwpeak_norm<SegmentExceptTable[[#This Row],[kW Exception]]),AND(kwhmo_norm>SegmentExceptTable[[#This Row],[Boundary M/L]],kwhmo_norm<SegmentExceptTable[[#This Row],[Exception M/L]])),1,0)","v":0}]
[null,null,null,null,null,null,null,null,null,null,null,null,null,null,null,null,null,null,null,null,null,null,null,null,null,null,null,null,null,null,null,null,null,null,null,null,null,null,null,null,null,null,null,null,null,null,null,362,{"$f":"SegmentExceptTable[[#This Row],[Numbers]]/$BP$4","v":0.60434056761268784},{"$f":"SegmentExceptTable[[#This Row],[kW Boundary]]+(0.05*SegmentExceptTable[[#This Row],[kW Boundary]])","v":0.63455759599332229},{"$f":"$BP$6*SegmentExceptTable[[#This Row],[kW Boundary]]+$BP$7","v":0.85979522822998211},{"$f":"$BP$8*SegmentExceptTable[[#This Row],[kW Boundary]]+$BP$9","v":-0.22222145391238196},{"$f":"SegmentExceptTable[[#This Row],[Boundary S/M]]+(0.05*SegmentExceptTable[[#This Row],[Boundary S/M]])","v":-0.23333252660800105},{"$f":"IF(AND(AND(kwpeak_norm>SegmentExceptTable[[#This Row],[kW Boundary]],kwpeak_norm<SegmentExceptTable[[#This Row],[kW Exception]]),AND(kwhmo_norm>SegmentExceptTable[[#This Row],[Boundary S/M]],kwhmo_norm<SegmentExceptTable[[#This Row],[Exception S/M]])),1,0)","v":0},{"$f":"$BP$10*SegmentExceptTable[[#This Row],[kW Boundary]]+$BP$11","v":1.1468454779605972},{"$f":"$BP$12*SegmentExceptTable[[#This Row],[kW Boundary]]+$BP$13","v":0.28460134961273642},{"$f":"SegmentExceptTable[[#This Row],[Boundary M/L]]+(0.05*SegmentExceptTable[[#This Row],[Boundary M/L]])","v":0.29883141709337324},{"$f":"IF(AND(AND(kwpeak_norm>SegmentExceptTable[[#This Row],[kW Boundary]],kwpeak_norm<SegmentExceptTable[[#This Row],[kW Exception]]),AND(kwhmo_norm>SegmentExceptTable[[#This Row],[Boundary M/L]],kwhmo_norm<SegmentExceptTable[[#This Row],[Exception M/L]])),1,0)","v":0}]
[null,null,null,null,null,null,null,null,null,null,null,null,null,null,null,null,null,null,null,null,null,null,null,null,null,null,null,null,null,null,null,null,null,null,null,null,null,null,null,null,null,null,null,null,null,null,null,363,{"$f":"SegmentExceptTable[[#This Row],[Numbers]]/$BP$4","v":0.60601001669449084},{"$f":"SegmentExceptTable[[#This Row],[kW Boundary]]+(0.05*SegmentExceptTable[[#This Row],[kW Boundary]])","v":0.63631051752921541},{"$f":"$BP$6*SegmentExceptTable[[#This Row],[kW Boundary]]+$BP$7","v":0.86222205852534839},{"$f":"$BP$8*SegmentExceptTable[[#This Row],[kW Boundary]]+$BP$9","v":-0.22336989030781279},{"$f":"SegmentExceptTable[[#This Row],[Boundary S/M]]+(0.05*SegmentExceptTable[[#This Row],[Boundary S/M]])","v":-0.23453838482320344},{"$f":"IF(AND(AND(kwpeak_norm>SegmentExceptTable[[#This Row],[kW Boundary]],kwpeak_norm<SegmentExceptTable[[#This Row],[kW Exception]]),AND(kwhmo_norm>SegmentExceptTable[[#This Row],[Boundary S/M]],kwhmo_norm<SegmentExceptTable[[#This Row],[Exception S/M]])),1,0)","v":0},{"$f":"$BP$10*SegmentExceptTable[[#This Row],[kW Boundary]]+$BP$11","v":1.1503725316028359},{"$f":"$BP$12*SegmentExceptTable[[#This Row],[kW Boundary]]+$BP$13","v":0.28381115458894768},{"$f":"SegmentExceptTable[[#This Row],[Boundary M/L]]+(0.05*SegmentExceptTable[[#This Row],[Boundary M/L]])","v":0.29800171231839506},{"$f":"IF(AND(AND(kwpeak_norm>SegmentExceptTable[[#This Row],[kW Boundary]],kwpeak_norm<SegmentExceptTable[[#This Row],[kW Exception]]),AND(kwhmo_norm>SegmentExceptTable[[#This Row],[Boundary M/L]],kwhmo_norm<SegmentExceptTable[[#This Row],[Exception M/L]])),1,0)","v":0}]
[null,null,null,null,null,null,null,null,null,null,null,null,null,null,null,null,null,null,null,null,null,null,null,null,null,null,null,null,null,null,null,null,null,null,null,null,null,null,null,null,null,null,null,null,null,null,null,364,{"$f":"SegmentExceptTable[[#This Row],[Numbers]]/$BP$4","v":0.60767946577629384},{"$f":"SegmentExceptTable[[#This Row],[kW Boundary]]+(0.05*SegmentExceptTable[[#This Row],[kW Boundary]])","v":0.63806343906510854},{"$f":"$BP$6*SegmentExceptTable[[#This Row],[kW Boundary]]+$BP$7","v":0.86464888882071467},{"$f":"$BP$8*SegmentExceptTable[[#This Row],[kW Boundary]]+$BP$9","v":-0.22451832670324368},{"$f":"SegmentExceptTable[[#This Row],[Boundary S/M]]+(0.05*SegmentExceptTable[[#This Row],[Boundary S/M]])","v":-0.23574424303840585},{"$f":"IF(AND(AND(kwpeak_norm>SegmentExceptTable[[#This Row],[kW Boundary]],kwpeak_norm<SegmentExceptTable[[#This Row],[kW Exception]]),AND(kwhmo_norm>SegmentExceptTable[[#This Row],[Boundary S/M]],kwhmo_norm<SegmentExceptTable[[#This Row],[Exception S/M]])),1,0)","v":0},{"$f":"$BP$10*SegmentExceptTable[[#This Row],[kW Boundary]]+$BP$11","v":1.1538995852450742},{"$f":"$BP$12*SegmentExceptTable[[#This Row],[kW Boundary]]+$BP$13","v":0.28302095956515894},{"$f":"SegmentExceptTable[[#This Row],[Boundary M/L]]+(0.05*SegmentExceptTable[[#This Row],[Boundary M/L]])","v":0.29717200754341688},{"$f":"IF(AND(AND(kwpeak_norm>SegmentExceptTable[[#This Row],[kW Boundary]],kwpeak_norm<SegmentExceptTable[[#This Row],[kW Exception]]),AND(kwhmo_norm>SegmentExceptTable[[#This Row],[Boundary M/L]],kwhmo_norm<SegmentExceptTable[[#This Row],[Exception M/L]])),1,0)","v":0}]
[null,null,null,null,null,null,null,null,null,null,null,null,null,null,null,null,null,null,null,null,null,null,null,null,null,null,null,null,null,null,null,null,null,null,null,null,null,null,null,null,null,null,null,null,null,null,null,365,{"$f":"SegmentExceptTable[[#This Row],[Numbers]]/$BP$4","v":0.60934891485809684},{"$f":"SegmentExceptTable[[#This Row],[kW Boundary]]+(0.05*SegmentExceptTable[[#This Row],[kW Boundary]])","v":0.63981636060100167},{"$f":"$BP$6*SegmentExceptTable[[#This Row],[kW Boundary]]+$BP$7","v":0.86707571911608095},{"$f":"$BP$8*SegmentExceptTable[[#This Row],[kW Boundary]]+$BP$9","v":-0.22566676309867456},{"$f":"SegmentExceptTable[[#This Row],[Boundary S/M]]+(0.05*SegmentExceptTable[[#This Row],[Boundary S/M]])","v":-0.2369501012536083},{"$f":"IF(AND(AND(kwpeak_norm>SegmentExceptTable[[#This Row],[kW Boundary]],kwpeak_norm<SegmentExceptTable[[#This Row],[kW Exception]]),AND(kwhmo_norm>SegmentExceptTable[[#This Row],[Boundary S/M]],kwhmo_norm<SegmentExceptTable[[#This Row],[Exception S/M]])),1,0)","v":0},{"$f":"$BP$10*SegmentExceptTable[[#This Row],[kW Boundary]]+$BP$11","v":1.1574266388873129},{"$f":"$BP$12*SegmentExceptTable[[#This Row],[kW Boundary]]+$BP$13","v":0.28223076454137019},{"$f":"SegmentExceptTable[[#This Row],[Boundary M/L]]+(0.05*SegmentExceptTable[[#This Row],[Boundary M/L]])","v":0.2963423027684387},{"$f":"IF(AND(AND(kwpeak_norm>SegmentExceptTable[[#This Row],[kW Boundary]],kwpeak_norm<SegmentExceptTable[[#This Row],[kW Exception]]),AND(kwhmo_norm>SegmentExceptTable[[#This Row],[Boundary M/L]],kwhmo_norm<SegmentExceptTable[[#This Row],[Exception M/L]])),1,0)","v":0}]
[null,null,null,null,null,null,null,null,null,null,null,null,null,null,null,null,null,null,null,null,null,null,null,null,null,null,null,null,null,null,null,null,null,null,null,null,null,null,null,null,null,null,null,null,null,null,null,366,{"$f":"SegmentExceptTable[[#This Row],[Numbers]]/$BP$4","v":0.61101836393989983},{"$f":"SegmentExceptTable[[#This Row],[kW Boundary]]+(0.05*SegmentExceptTable[[#This Row],[kW Boundary]])","v":0.64156928213689479},{"$f":"$BP$6*SegmentExceptTable[[#This Row],[kW Boundary]]+$BP$7","v":0.86950254941144722},{"$f":"$BP$8*SegmentExceptTable[[#This Row],[kW Boundary]]+$BP$9","v":-0.22681519949410545},{"$f":"SegmentExceptTable[[#This Row],[Boundary S/M]]+(0.05*SegmentExceptTable[[#This Row],[Boundary S/M]])","v":-0.23815595946881071},{"$f":"IF(AND(AND(kwpeak_norm>SegmentExceptTable[[#This Row],[kW Boundary]],kwpeak_norm<SegmentExceptTable[[#This Row],[kW Exception]]),AND(kwhmo_norm>SegmentExceptTable[[#This Row],[Boundary S/M]],kwhmo_norm<SegmentExceptTable[[#This Row],[Exception S/M]])),1,0)","v":0},{"$f":"$BP$10*SegmentExceptTable[[#This Row],[kW Boundary]]+$BP$11","v":1.1609536925295512},{"$f":"$BP$12*SegmentExceptTable[[#This Row],[kW Boundary]]+$BP$13","v":0.2814405695175814},{"$f":"SegmentExceptTable[[#This Row],[Boundary M/L]]+(0.05*SegmentExceptTable[[#This Row],[Boundary M/L]])","v":0.29551259799346047},{"$f":"IF(AND(AND(kwpeak_norm>SegmentExceptTable[[#This Row],[kW Boundary]],kwpeak_norm<SegmentExceptTable[[#This Row],[kW Exception]]),AND(kwhmo_norm>SegmentExceptTable[[#This Row],[Boundary M/L]],kwhmo_norm<SegmentExceptTable[[#This Row],[Exception M/L]])),1,0)","v":0}]
[null,null,null,null,null,null,null,null,null,null,null,null,null,null,null,null,null,null,null,null,null,null,null,null,null,null,null,null,null,null,null,null,null,null,null,null,null,null,null,null,null,null,null,null,null,null,null,367,{"$f":"SegmentExceptTable[[#This Row],[Numbers]]/$BP$4","v":0.61268781302170283},{"$f":"SegmentExceptTable[[#This Row],[kW Boundary]]+(0.05*SegmentExceptTable[[#This Row],[kW Boundary]])","v":0.64332220367278792},{"$f":"$BP$6*SegmentExceptTable[[#This Row],[kW Boundary]]+$BP$7","v":0.8719293797068135},{"$f":"$BP$8*SegmentExceptTable[[#This Row],[kW Boundary]]+$BP$9","v":-0.22796363588953628},{"$f":"SegmentExceptTable[[#This Row],[Boundary S/M]]+(0.05*SegmentExceptTable[[#This Row],[Boundary S/M]])","v":-0.2393618176840131},{"$f":"IF(AND(AND(kwpeak_norm>SegmentExceptTable[[#This Row],[kW Boundary]],kwpeak_norm<SegmentExceptTable[[#This Row],[kW Exception]]),AND(kwhmo_norm>SegmentExceptTable[[#This Row],[Boundary S/M]],kwhmo_norm<SegmentExceptTable[[#This Row],[Exception S/M]])),1,0)","v":0},{"$f":"$BP$10*SegmentExceptTable[[#This Row],[kW Boundary]]+$BP$11","v":1.1644807461717899},{"$f":"$BP$12*SegmentExceptTable[[#This Row],[kW Boundary]]+$BP$13","v":0.28065037449379265},{"$f":"SegmentExceptTable[[#This Row],[Boundary M/L]]+(0.05*SegmentExceptTable[[#This Row],[Boundary M/L]])","v":0.29468289321848229},{"$f":"IF(AND(AND(kwpeak_norm>SegmentExceptTable[[#This Row],[kW Boundary]],kwpeak_norm<SegmentExceptTable[[#This Row],[kW Exception]]),AND(kwhmo_norm>SegmentExceptTable[[#This Row],[Boundary M/L]],kwhmo_norm<SegmentExceptTable[[#This Row],[Exception M/L]])),1,0)","v":0}]
[null,null,null,null,null,null,null,null,null,null,null,null,null,null,null,null,null,null,null,null,null,null,null,null,null,null,null,null,null,null,null,null,null,null,null,null,null,null,null,null,null,null,null,null,null,null,null,368,{"$f":"SegmentExceptTable[[#This Row],[Numbers]]/$BP$4","v":0.61435726210350583},{"$f":"SegmentExceptTable[[#This Row],[kW Boundary]]+(0.05*SegmentExceptTable[[#This Row],[kW Boundary]])","v":0.64507512520868115},{"$f":"$BP$6*SegmentExceptTable[[#This Row],[kW Boundary]]+$BP$7","v":0.87435621000217978},{"$f":"$BP$8*SegmentExceptTable[[#This Row],[kW Boundary]]+$BP$9","v":-0.22911207228496716},{"$f":"SegmentExceptTable[[#This Row],[Boundary S/M]]+(0.05*SegmentExceptTable[[#This Row],[Boundary S/M]])","v":-0.24056767589921552},{"$f":"IF(AND(AND(kwpeak_norm>SegmentExceptTable[[#This Row],[kW Boundary]],kwpeak_norm<SegmentExceptTable[[#This Row],[kW Exception]]),AND(kwhmo_norm>SegmentExceptTable[[#This Row],[Boundary S/M]],kwhmo_norm<SegmentExceptTable[[#This Row],[Exception S/M]])),1,0)","v":0},{"$f":"$BP$10*SegmentExceptTable[[#This Row],[kW Boundary]]+$BP$11","v":1.1680077998140286},{"$f":"$BP$12*SegmentExceptTable[[#This Row],[kW Boundary]]+$BP$13","v":0.27986017947000391},{"$f":"SegmentExceptTable[[#This Row],[Boundary M/L]]+(0.05*SegmentExceptTable[[#This Row],[Boundary M/L]])","v":0.29385318844350411},{"$f":"IF(AND(AND(kwpeak_norm>SegmentExceptTable[[#This Row],[kW Boundary]],kwpeak_norm<SegmentExceptTable[[#This Row],[kW Exception]]),AND(kwhmo_norm>SegmentExceptTable[[#This Row],[Boundary M/L]],kwhmo_norm<SegmentExceptTable[[#This Row],[Exception M/L]])),1,0)","v":0}]
[null,null,null,null,null,null,null,null,null,null,null,null,null,null,null,null,null,null,null,null,null,null,null,null,null,null,null,null,null,null,null,null,null,null,null,null,null,null,null,null,null,null,null,null,null,null,null,369,{"$f":"SegmentExceptTable[[#This Row],[Numbers]]/$BP$4","v":0.61602671118530883},{"$f":"SegmentExceptTable[[#This Row],[kW Boundary]]+(0.05*SegmentExceptTable[[#This Row],[kW Boundary]])","v":0.64682804674457428},{"$f":"$BP$6*SegmentExceptTable[[#This Row],[kW Boundary]]+$BP$7","v":0.87678304029754606},{"$f":"$BP$8*SegmentExceptTable[[#This Row],[kW Boundary]]+$BP$9","v":-0.23026050868039805},{"$f":"SegmentExceptTable[[#This Row],[Boundary S/M]]+(0.05*SegmentExceptTable[[#This Row],[Boundary S/M]])","v":-0.24177353411441796},{"$f":"IF(AND(AND(kwpeak_norm>SegmentExceptTable[[#This Row],[kW Boundary]],kwpeak_norm<SegmentExceptTable[[#This Row],[kW Exception]]),AND(kwhmo_norm>SegmentExceptTable[[#This Row],[Boundary S/M]],kwhmo_norm<SegmentExceptTable[[#This Row],[Exception S/M]])),1,0)","v":0},{"$f":"$BP$10*SegmentExceptTable[[#This Row],[kW Boundary]]+$BP$11","v":1.1715348534562668},{"$f":"$BP$12*SegmentExceptTable[[#This Row],[kW Boundary]]+$BP$13","v":0.27906998444621517},{"$f":"SegmentExceptTable[[#This Row],[Boundary M/L]]+(0.05*SegmentExceptTable[[#This Row],[Boundary M/L]])","v":0.29302348366852593},{"$f":"IF(AND(AND(kwpeak_norm>SegmentExceptTable[[#This Row],[kW Boundary]],kwpeak_norm<SegmentExceptTable[[#This Row],[kW Exception]]),AND(kwhmo_norm>SegmentExceptTable[[#This Row],[Boundary M/L]],kwhmo_norm<SegmentExceptTable[[#This Row],[Exception M/L]])),1,0)","v":0}]
[null,null,null,null,null,null,null,null,null,null,null,null,null,null,null,null,null,null,null,null,null,null,null,null,null,null,null,null,null,null,null,null,null,null,null,null,null,null,null,null,null,null,null,null,null,null,null,370,{"$f":"SegmentExceptTable[[#This Row],[Numbers]]/$BP$4","v":0.61769616026711183},{"$f":"SegmentExceptTable[[#This Row],[kW Boundary]]+(0.05*SegmentExceptTable[[#This Row],[kW Boundary]])","v":0.64858096828046741},{"$f":"$BP$6*SegmentExceptTable[[#This Row],[kW Boundary]]+$BP$7","v":0.87920987059291233},{"$f":"$BP$8*SegmentExceptTable[[#This Row],[kW Boundary]]+$BP$9","v":-0.23140894507582893},{"$f":"SegmentExceptTable[[#This Row],[Boundary S/M]]+(0.05*SegmentExceptTable[[#This Row],[Boundary S/M]])","v":-0.24297939232962038},{"$f":"IF(AND(AND(kwpeak_norm>SegmentExceptTable[[#This Row],[kW Boundary]],kwpeak_norm<SegmentExceptTable[[#This Row],[kW Exception]]),AND(kwhmo_norm>SegmentExceptTable[[#This Row],[Boundary S/M]],kwhmo_norm<SegmentExceptTable[[#This Row],[Exception S/M]])),1,0)","v":0},{"$f":"$BP$10*SegmentExceptTable[[#This Row],[kW Boundary]]+$BP$11","v":1.1750619070985056},{"$f":"$BP$12*SegmentExceptTable[[#This Row],[kW Boundary]]+$BP$13","v":0.27827978942242643},{"$f":"SegmentExceptTable[[#This Row],[Boundary M/L]]+(0.05*SegmentExceptTable[[#This Row],[Boundary M/L]])","v":0.29219377889354775},{"$f":"IF(AND(AND(kwpeak_norm>SegmentExceptTable[[#This Row],[kW Boundary]],kwpeak_norm<SegmentExceptTable[[#This Row],[kW Exception]]),AND(kwhmo_norm>SegmentExceptTable[[#This Row],[Boundary M/L]],kwhmo_norm<SegmentExceptTable[[#This Row],[Exception M/L]])),1,0)","v":0}]
[null,null,null,null,null,null,null,null,null,null,null,null,null,null,null,null,null,null,null,null,null,null,null,null,null,null,null,null,null,null,null,null,null,null,null,null,null,null,null,null,null,null,null,null,null,null,null,371,{"$f":"SegmentExceptTable[[#This Row],[Numbers]]/$BP$4","v":0.61936560934891483},{"$f":"SegmentExceptTable[[#This Row],[kW Boundary]]+(0.05*SegmentExceptTable[[#This Row],[kW Boundary]])","v":0.65033388981636053},{"$f":"$BP$6*SegmentExceptTable[[#This Row],[kW Boundary]]+$BP$7","v":0.88163670088827861},{"$f":"$BP$8*SegmentExceptTable[[#This Row],[kW Boundary]]+$BP$9","v":-0.23255738147125976},{"$f":"SegmentExceptTable[[#This Row],[Boundary S/M]]+(0.05*SegmentExceptTable[[#This Row],[Boundary S/M]])","v":-0.24418525054482276},{"$f":"IF(AND(AND(kwpeak_norm>SegmentExceptTable[[#This Row],[kW Boundary]],kwpeak_norm<SegmentExceptTable[[#This Row],[kW Exception]]),AND(kwhmo_norm>SegmentExceptTable[[#This Row],[Boundary S/M]],kwhmo_norm<SegmentExceptTable[[#This Row],[Exception S/M]])),1,0)","v":0},{"$f":"$BP$10*SegmentExceptTable[[#This Row],[kW Boundary]]+$BP$11","v":1.1785889607407438},{"$f":"$BP$12*SegmentExceptTable[[#This Row],[kW Boundary]]+$BP$13","v":0.27748959439863763},{"$f":"SegmentExceptTable[[#This Row],[Boundary M/L]]+(0.05*SegmentExceptTable[[#This Row],[Boundary M/L]])","v":0.29136407411856952},{"$f":"IF(AND(AND(kwpeak_norm>SegmentExceptTable[[#This Row],[kW Boundary]],kwpeak_norm<SegmentExceptTable[[#This Row],[kW Exception]]),AND(kwhmo_norm>SegmentExceptTable[[#This Row],[Boundary M/L]],kwhmo_norm<SegmentExceptTable[[#This Row],[Exception M/L]])),1,0)","v":0}]
[null,null,null,null,null,null,null,null,null,null,null,null,null,null,null,null,null,null,null,null,null,null,null,null,null,null,null,null,null,null,null,null,null,null,null,null,null,null,null,null,null,null,null,null,null,null,null,372,{"$f":"SegmentExceptTable[[#This Row],[Numbers]]/$BP$4","v":0.62103505843071782},{"$f":"SegmentExceptTable[[#This Row],[kW Boundary]]+(0.05*SegmentExceptTable[[#This Row],[kW Boundary]])","v":0.65208681135225377},{"$f":"$BP$6*SegmentExceptTable[[#This Row],[kW Boundary]]+$BP$7","v":0.88406353118364478},{"$f":"$BP$8*SegmentExceptTable[[#This Row],[kW Boundary]]+$BP$9","v":-0.23370581786669065},{"$f":"SegmentExceptTable[[#This Row],[Boundary S/M]]+(0.05*SegmentExceptTable[[#This Row],[Boundary S/M]])","v":-0.24539110876002518},{"$f":"IF(AND(AND(kwpeak_norm>SegmentExceptTable[[#This Row],[kW Boundary]],kwpeak_norm<SegmentExceptTable[[#This Row],[kW Exception]]),AND(kwhmo_norm>SegmentExceptTable[[#This Row],[Boundary S/M]],kwhmo_norm<SegmentExceptTable[[#This Row],[Exception S/M]])),1,0)","v":0},{"$f":"$BP$10*SegmentExceptTable[[#This Row],[kW Boundary]]+$BP$11","v":1.1821160143829825},{"$f":"$BP$12*SegmentExceptTable[[#This Row],[kW Boundary]]+$BP$13","v":0.27669939937484889},{"$f":"SegmentExceptTable[[#This Row],[Boundary M/L]]+(0.05*SegmentExceptTable[[#This Row],[Boundary M/L]])","v":0.29053436934359134},{"$f":"IF(AND(AND(kwpeak_norm>SegmentExceptTable[[#This Row],[kW Boundary]],kwpeak_norm<SegmentExceptTable[[#This Row],[kW Exception]]),AND(kwhmo_norm>SegmentExceptTable[[#This Row],[Boundary M/L]],kwhmo_norm<SegmentExceptTable[[#This Row],[Exception M/L]])),1,0)","v":0}]
[null,null,null,null,null,null,null,null,null,null,null,null,null,null,null,null,null,null,null,null,null,null,null,null,null,null,null,null,null,null,null,null,null,null,null,null,null,null,null,null,null,null,null,null,null,null,null,373,{"$f":"SegmentExceptTable[[#This Row],[Numbers]]/$BP$4","v":0.62270450751252082},{"$f":"SegmentExceptTable[[#This Row],[kW Boundary]]+(0.05*SegmentExceptTable[[#This Row],[kW Boundary]])","v":0.6538397328881469},{"$f":"$BP$6*SegmentExceptTable[[#This Row],[kW Boundary]]+$BP$7","v":0.88649036147901106},{"$f":"$BP$8*SegmentExceptTable[[#This Row],[kW Boundary]]+$BP$9","v":-0.23485425426212153},{"$f":"SegmentExceptTable[[#This Row],[Boundary S/M]]+(0.05*SegmentExceptTable[[#This Row],[Boundary S/M]])","v":-0.24659696697522759},{"$f":"IF(AND(AND(kwpeak_norm>SegmentExceptTable[[#This Row],[kW Boundary]],kwpeak_norm<SegmentExceptTable[[#This Row],[kW Exception]]),AND(kwhmo_norm>SegmentExceptTable[[#This Row],[Boundary S/M]],kwhmo_norm<SegmentExceptTable[[#This Row],[Exception S/M]])),1,0)","v":0},{"$f":"$BP$10*SegmentExceptTable[[#This Row],[kW Boundary]]+$BP$11","v":1.1856430680252208},{"$f":"$BP$12*SegmentExceptTable[[#This Row],[kW Boundary]]+$BP$13","v":0.27590920435106014},{"$f":"SegmentExceptTable[[#This Row],[Boundary M/L]]+(0.05*SegmentExceptTable[[#This Row],[Boundary M/L]])","v":0.28970466456861316},{"$f":"IF(AND(AND(kwpeak_norm>SegmentExceptTable[[#This Row],[kW Boundary]],kwpeak_norm<SegmentExceptTable[[#This Row],[kW Exception]]),AND(kwhmo_norm>SegmentExceptTable[[#This Row],[Boundary M/L]],kwhmo_norm<SegmentExceptTable[[#This Row],[Exception M/L]])),1,0)","v":0}]
[null,null,null,null,null,null,null,null,null,null,null,null,null,null,null,null,null,null,null,null,null,null,null,null,null,null,null,null,null,null,null,null,null,null,null,null,null,null,null,null,null,null,null,null,null,null,null,374,{"$f":"SegmentExceptTable[[#This Row],[Numbers]]/$BP$4","v":0.62437395659432382},{"$f":"SegmentExceptTable[[#This Row],[kW Boundary]]+(0.05*SegmentExceptTable[[#This Row],[kW Boundary]])","v":0.65559265442404002},{"$f":"$BP$6*SegmentExceptTable[[#This Row],[kW Boundary]]+$BP$7","v":0.88891719177437734},{"$f":"$BP$8*SegmentExceptTable[[#This Row],[kW Boundary]]+$BP$9","v":-0.23600269065755242},{"$f":"SegmentExceptTable[[#This Row],[Boundary S/M]]+(0.05*SegmentExceptTable[[#This Row],[Boundary S/M]])","v":-0.24780282519043004},{"$f":"IF(AND(AND(kwpeak_norm>SegmentExceptTable[[#This Row],[kW Boundary]],kwpeak_norm<SegmentExceptTable[[#This Row],[kW Exception]]),AND(kwhmo_norm>SegmentExceptTable[[#This Row],[Boundary S/M]],kwhmo_norm<SegmentExceptTable[[#This Row],[Exception S/M]])),1,0)","v":0},{"$f":"$BP$10*SegmentExceptTable[[#This Row],[kW Boundary]]+$BP$11","v":1.1891701216674595},{"$f":"$BP$12*SegmentExceptTable[[#This Row],[kW Boundary]]+$BP$13","v":0.2751190093272714},{"$f":"SegmentExceptTable[[#This Row],[Boundary M/L]]+(0.05*SegmentExceptTable[[#This Row],[Boundary M/L]])","v":0.28887495979363498},{"$f":"IF(AND(AND(kwpeak_norm>SegmentExceptTable[[#This Row],[kW Boundary]],kwpeak_norm<SegmentExceptTable[[#This Row],[kW Exception]]),AND(kwhmo_norm>SegmentExceptTable[[#This Row],[Boundary M/L]],kwhmo_norm<SegmentExceptTable[[#This Row],[Exception M/L]])),1,0)","v":0}]
[null,null,null,null,null,null,null,null,null,null,null,null,null,null,null,null,null,null,null,null,null,null,null,null,null,null,null,null,null,null,null,null,null,null,null,null,null,null,null,null,null,null,null,null,null,null,null,375,{"$f":"SegmentExceptTable[[#This Row],[Numbers]]/$BP$4","v":0.62604340567612693},{"$f":"SegmentExceptTable[[#This Row],[kW Boundary]]+(0.05*SegmentExceptTable[[#This Row],[kW Boundary]])","v":0.65734557595993326},{"$f":"$BP$6*SegmentExceptTable[[#This Row],[kW Boundary]]+$BP$7","v":0.89134402206974384},{"$f":"$BP$8*SegmentExceptTable[[#This Row],[kW Boundary]]+$BP$9","v":-0.23715112705298336},{"$f":"SegmentExceptTable[[#This Row],[Boundary S/M]]+(0.05*SegmentExceptTable[[#This Row],[Boundary S/M]])","v":-0.24900868340563254},{"$f":"IF(AND(AND(kwpeak_norm>SegmentExceptTable[[#This Row],[kW Boundary]],kwpeak_norm<SegmentExceptTable[[#This Row],[kW Exception]]),AND(kwhmo_norm>SegmentExceptTable[[#This Row],[Boundary S/M]],kwhmo_norm<SegmentExceptTable[[#This Row],[Exception S/M]])),1,0)","v":0},{"$f":"$BP$10*SegmentExceptTable[[#This Row],[kW Boundary]]+$BP$11","v":1.1926971753096982},{"$f":"$BP$12*SegmentExceptTable[[#This Row],[kW Boundary]]+$BP$13","v":0.2743288143034826},{"$f":"SegmentExceptTable[[#This Row],[Boundary M/L]]+(0.05*SegmentExceptTable[[#This Row],[Boundary M/L]])","v":0.28804525501865674},{"$f":"IF(AND(AND(kwpeak_norm>SegmentExceptTable[[#This Row],[kW Boundary]],kwpeak_norm<SegmentExceptTable[[#This Row],[kW Exception]]),AND(kwhmo_norm>SegmentExceptTable[[#This Row],[Boundary M/L]],kwhmo_norm<SegmentExceptTable[[#This Row],[Exception M/L]])),1,0)","v":0}]
[null,null,null,null,null,null,null,null,null,null,null,null,null,null,null,null,null,null,null,null,null,null,null,null,null,null,null,null,null,null,null,null,null,null,null,null,null,null,null,null,null,null,null,null,null,null,null,376,{"$f":"SegmentExceptTable[[#This Row],[Numbers]]/$BP$4","v":0.62771285475792993},{"$f":"SegmentExceptTable[[#This Row],[kW Boundary]]+(0.05*SegmentExceptTable[[#This Row],[kW Boundary]])","v":0.65909849749582639},{"$f":"$BP$6*SegmentExceptTable[[#This Row],[kW Boundary]]+$BP$7","v":0.89377085236511011},{"$f":"$BP$8*SegmentExceptTable[[#This Row],[kW Boundary]]+$BP$9","v":-0.23829956344841419},{"$f":"SegmentExceptTable[[#This Row],[Boundary S/M]]+(0.05*SegmentExceptTable[[#This Row],[Boundary S/M]])","v":-0.2502145416208349},{"$f":"IF(AND(AND(kwpeak_norm>SegmentExceptTable[[#This Row],[kW Boundary]],kwpeak_norm<SegmentExceptTable[[#This Row],[kW Exception]]),AND(kwhmo_norm>SegmentExceptTable[[#This Row],[Boundary S/M]],kwhmo_norm<SegmentExceptTable[[#This Row],[Exception S/M]])),1,0)","v":0},{"$f":"$BP$10*SegmentExceptTable[[#This Row],[kW Boundary]]+$BP$11","v":1.1962242289519369},{"$f":"$BP$12*SegmentExceptTable[[#This Row],[kW Boundary]]+$BP$13","v":0.27353861927969381},{"$f":"SegmentExceptTable[[#This Row],[Boundary M/L]]+(0.05*SegmentExceptTable[[#This Row],[Boundary M/L]])","v":0.28721555024367851},{"$f":"IF(AND(AND(kwpeak_norm>SegmentExceptTable[[#This Row],[kW Boundary]],kwpeak_norm<SegmentExceptTable[[#This Row],[kW Exception]]),AND(kwhmo_norm>SegmentExceptTable[[#This Row],[Boundary M/L]],kwhmo_norm<SegmentExceptTable[[#This Row],[Exception M/L]])),1,0)","v":0}]
[null,null,null,null,null,null,null,null,null,null,null,null,null,null,null,null,null,null,null,null,null,null,null,null,null,null,null,null,null,null,null,null,null,null,null,null,null,null,null,null,null,null,null,null,null,null,null,377,{"$f":"SegmentExceptTable[[#This Row],[Numbers]]/$BP$4","v":0.62938230383973293},{"$f":"SegmentExceptTable[[#This Row],[kW Boundary]]+(0.05*SegmentExceptTable[[#This Row],[kW Boundary]])","v":0.66085141903171962},{"$f":"$BP$6*SegmentExceptTable[[#This Row],[kW Boundary]]+$BP$7","v":0.89619768266047628},{"$f":"$BP$8*SegmentExceptTable[[#This Row],[kW Boundary]]+$BP$9","v":-0.23944799984384507},{"$f":"SegmentExceptTable[[#This Row],[Boundary S/M]]+(0.05*SegmentExceptTable[[#This Row],[Boundary S/M]])","v":-0.25142039983603731},{"$f":"IF(AND(AND(kwpeak_norm>SegmentExceptTable[[#This Row],[kW Boundary]],kwpeak_norm<SegmentExceptTable[[#This Row],[kW Exception]]),AND(kwhmo_norm>SegmentExceptTable[[#This Row],[Boundary S/M]],kwhmo_norm<SegmentExceptTable[[#This Row],[Exception S/M]])),1,0)","v":0},{"$f":"$BP$10*SegmentExceptTable[[#This Row],[kW Boundary]]+$BP$11","v":1.1997512825941752},{"$f":"$BP$12*SegmentExceptTable[[#This Row],[kW Boundary]]+$BP$13","v":0.27274842425590506},{"$f":"SegmentExceptTable[[#This Row],[Boundary M/L]]+(0.05*SegmentExceptTable[[#This Row],[Boundary M/L]])","v":0.28638584546870033},{"$f":"IF(AND(AND(kwpeak_norm>SegmentExceptTable[[#This Row],[kW Boundary]],kwpeak_norm<SegmentExceptTable[[#This Row],[kW Exception]]),AND(kwhmo_norm>SegmentExceptTable[[#This Row],[Boundary M/L]],kwhmo_norm<SegmentExceptTable[[#This Row],[Exception M/L]])),1,0)","v":0}]
[null,null,null,null,null,null,null,null,null,null,null,null,null,null,null,null,null,null,null,null,null,null,null,null,null,null,null,null,null,null,null,null,null,null,null,null,null,null,null,null,null,null,null,null,null,null,null,378,{"$f":"SegmentExceptTable[[#This Row],[Numbers]]/$BP$4","v":0.63105175292153592},{"$f":"SegmentExceptTable[[#This Row],[kW Boundary]]+(0.05*SegmentExceptTable[[#This Row],[kW Boundary]])","v":0.66260434056761275},{"$f":"$BP$6*SegmentExceptTable[[#This Row],[kW Boundary]]+$BP$7","v":0.89862451295584256},{"$f":"$BP$8*SegmentExceptTable[[#This Row],[kW Boundary]]+$BP$9","v":-0.24059643623927596},{"$f":"SegmentExceptTable[[#This Row],[Boundary S/M]]+(0.05*SegmentExceptTable[[#This Row],[Boundary S/M]])","v":-0.25262625805123973},{"$f":"IF(AND(AND(kwpeak_norm>SegmentExceptTable[[#This Row],[kW Boundary]],kwpeak_norm<SegmentExceptTable[[#This Row],[kW Exception]]),AND(kwhmo_norm>SegmentExceptTable[[#This Row],[Boundary S/M]],kwhmo_norm<SegmentExceptTable[[#This Row],[Exception S/M]])),1,0)","v":0},{"$f":"$BP$10*SegmentExceptTable[[#This Row],[kW Boundary]]+$BP$11","v":1.2032783362364139},{"$f":"$BP$12*SegmentExceptTable[[#This Row],[kW Boundary]]+$BP$13","v":0.27195822923211632},{"$f":"SegmentExceptTable[[#This Row],[Boundary M/L]]+(0.05*SegmentExceptTable[[#This Row],[Boundary M/L]])","v":0.28555614069372215},{"$f":"IF(AND(AND(kwpeak_norm>SegmentExceptTable[[#This Row],[kW Boundary]],kwpeak_norm<SegmentExceptTable[[#This Row],[kW Exception]]),AND(kwhmo_norm>SegmentExceptTable[[#This Row],[Boundary M/L]],kwhmo_norm<SegmentExceptTable[[#This Row],[Exception M/L]])),1,0)","v":0}]
[null,null,null,null,null,null,null,null,null,null,null,null,null,null,null,null,null,null,null,null,null,null,null,null,null,null,null,null,null,null,null,null,null,null,null,null,null,null,null,null,null,null,null,null,null,null,null,379,{"$f":"SegmentExceptTable[[#This Row],[Numbers]]/$BP$4","v":0.63272120200333892},{"$f":"SegmentExceptTable[[#This Row],[kW Boundary]]+(0.05*SegmentExceptTable[[#This Row],[kW Boundary]])","v":0.66435726210350587},{"$f":"$BP$6*SegmentExceptTable[[#This Row],[kW Boundary]]+$BP$7","v":0.90105134325120884},{"$f":"$BP$8*SegmentExceptTable[[#This Row],[kW Boundary]]+$BP$9","v":-0.24174487263470684},{"$f":"SegmentExceptTable[[#This Row],[Boundary S/M]]+(0.05*SegmentExceptTable[[#This Row],[Boundary S/M]])","v":-0.2538321162664422},{"$f":"IF(AND(AND(kwpeak_norm>SegmentExceptTable[[#This Row],[kW Boundary]],kwpeak_norm<SegmentExceptTable[[#This Row],[kW Exception]]),AND(kwhmo_norm>SegmentExceptTable[[#This Row],[Boundary S/M]],kwhmo_norm<SegmentExceptTable[[#This Row],[Exception S/M]])),1,0)","v":0},{"$f":"$BP$10*SegmentExceptTable[[#This Row],[kW Boundary]]+$BP$11","v":1.2068053898786522},{"$f":"$BP$12*SegmentExceptTable[[#This Row],[kW Boundary]]+$BP$13","v":0.27116803420832758},{"$f":"SegmentExceptTable[[#This Row],[Boundary M/L]]+(0.05*SegmentExceptTable[[#This Row],[Boundary M/L]])","v":0.28472643591874397},{"$f":"IF(AND(AND(kwpeak_norm>SegmentExceptTable[[#This Row],[kW Boundary]],kwpeak_norm<SegmentExceptTable[[#This Row],[kW Exception]]),AND(kwhmo_norm>SegmentExceptTable[[#This Row],[Boundary M/L]],kwhmo_norm<SegmentExceptTable[[#This Row],[Exception M/L]])),1,0)","v":0}]
[null,null,null,null,null,null,null,null,null,null,null,null,null,null,null,null,null,null,null,null,null,null,null,null,null,null,null,null,null,null,null,null,null,null,null,null,null,null,null,null,null,null,null,null,null,null,null,380,{"$f":"SegmentExceptTable[[#This Row],[Numbers]]/$BP$4","v":0.63439065108514192},{"$f":"SegmentExceptTable[[#This Row],[kW Boundary]]+(0.05*SegmentExceptTable[[#This Row],[kW Boundary]])","v":0.666110183639399},{"$f":"$BP$6*SegmentExceptTable[[#This Row],[kW Boundary]]+$BP$7","v":0.90347817354657511},{"$f":"$BP$8*SegmentExceptTable[[#This Row],[kW Boundary]]+$BP$9","v":-0.24289330903013767},{"$f":"SegmentExceptTable[[#This Row],[Boundary S/M]]+(0.05*SegmentExceptTable[[#This Row],[Boundary S/M]])","v":-0.25503797448164456},{"$f":"IF(AND(AND(kwpeak_norm>SegmentExceptTable[[#This Row],[kW Boundary]],kwpeak_norm<SegmentExceptTable[[#This Row],[kW Exception]]),AND(kwhmo_norm>SegmentExceptTable[[#This Row],[Boundary S/M]],kwhmo_norm<SegmentExceptTable[[#This Row],[Exception S/M]])),1,0)","v":0},{"$f":"$BP$10*SegmentExceptTable[[#This Row],[kW Boundary]]+$BP$11","v":1.2103324435208909},{"$f":"$BP$12*SegmentExceptTable[[#This Row],[kW Boundary]]+$BP$13","v":0.27037783918453884},{"$f":"SegmentExceptTable[[#This Row],[Boundary M/L]]+(0.05*SegmentExceptTable[[#This Row],[Boundary M/L]])","v":0.28389673114376579},{"$f":"IF(AND(AND(kwpeak_norm>SegmentExceptTable[[#This Row],[kW Boundary]],kwpeak_norm<SegmentExceptTable[[#This Row],[kW Exception]]),AND(kwhmo_norm>SegmentExceptTable[[#This Row],[Boundary M/L]],kwhmo_norm<SegmentExceptTable[[#This Row],[Exception M/L]])),1,0)","v":0}]
[null,null,null,null,null,null,null,null,null,null,null,null,null,null,null,null,null,null,null,null,null,null,null,null,null,null,null,null,null,null,null,null,null,null,null,null,null,null,null,null,null,null,null,null,null,null,null,381,{"$f":"SegmentExceptTable[[#This Row],[Numbers]]/$BP$4","v":0.63606010016694492},{"$f":"SegmentExceptTable[[#This Row],[kW Boundary]]+(0.05*SegmentExceptTable[[#This Row],[kW Boundary]])","v":0.66786310517529213},{"$f":"$BP$6*SegmentExceptTable[[#This Row],[kW Boundary]]+$BP$7","v":0.90590500384194139},{"$f":"$BP$8*SegmentExceptTable[[#This Row],[kW Boundary]]+$BP$9","v":-0.24404174542556856},{"$f":"SegmentExceptTable[[#This Row],[Boundary S/M]]+(0.05*SegmentExceptTable[[#This Row],[Boundary S/M]])","v":-0.25624383269684697},{"$f":"IF(AND(AND(kwpeak_norm>SegmentExceptTable[[#This Row],[kW Boundary]],kwpeak_norm<SegmentExceptTable[[#This Row],[kW Exception]]),AND(kwhmo_norm>SegmentExceptTable[[#This Row],[Boundary S/M]],kwhmo_norm<SegmentExceptTable[[#This Row],[Exception S/M]])),1,0)","v":0},{"$f":"$BP$10*SegmentExceptTable[[#This Row],[kW Boundary]]+$BP$11","v":1.2138594971631291},{"$f":"$BP$12*SegmentExceptTable[[#This Row],[kW Boundary]]+$BP$13","v":0.26958764416075004},{"$f":"SegmentExceptTable[[#This Row],[Boundary M/L]]+(0.05*SegmentExceptTable[[#This Row],[Boundary M/L]])","v":0.28306702636878756},{"$f":"IF(AND(AND(kwpeak_norm>SegmentExceptTable[[#This Row],[kW Boundary]],kwpeak_norm<SegmentExceptTable[[#This Row],[kW Exception]]),AND(kwhmo_norm>SegmentExceptTable[[#This Row],[Boundary M/L]],kwhmo_norm<SegmentExceptTable[[#This Row],[Exception M/L]])),1,0)","v":0}]
[null,null,null,null,null,null,null,null,null,null,null,null,null,null,null,null,null,null,null,null,null,null,null,null,null,null,null,null,null,null,null,null,null,null,null,null,null,null,null,null,null,null,null,null,null,null,null,382,{"$f":"SegmentExceptTable[[#This Row],[Numbers]]/$BP$4","v":0.63772954924874792},{"$f":"SegmentExceptTable[[#This Row],[kW Boundary]]+(0.05*SegmentExceptTable[[#This Row],[kW Boundary]])","v":0.66961602671118536},{"$f":"$BP$6*SegmentExceptTable[[#This Row],[kW Boundary]]+$BP$7","v":0.90833183413730767},{"$f":"$BP$8*SegmentExceptTable[[#This Row],[kW Boundary]]+$BP$9","v":-0.24519018182099944},{"$f":"SegmentExceptTable[[#This Row],[Boundary S/M]]+(0.05*SegmentExceptTable[[#This Row],[Boundary S/M]])","v":-0.25744969091204939},{"$f":"IF(AND(AND(kwpeak_norm>SegmentExceptTable[[#This Row],[kW Boundary]],kwpeak_norm<SegmentExceptTable[[#This Row],[kW Exception]]),AND(kwhmo_norm>SegmentExceptTable[[#This Row],[Boundary S/M]],kwhmo_norm<SegmentExceptTable[[#This Row],[Exception S/M]])),1,0)","v":0},{"$f":"$BP$10*SegmentExceptTable[[#This Row],[kW Boundary]]+$BP$11","v":1.2173865508053678},{"$f":"$BP$12*SegmentExceptTable[[#This Row],[kW Boundary]]+$BP$13","v":0.2687974491369613},{"$f":"SegmentExceptTable[[#This Row],[Boundary M/L]]+(0.05*SegmentExceptTable[[#This Row],[Boundary M/L]])","v":0.28223732159380938},{"$f":"IF(AND(AND(kwpeak_norm>SegmentExceptTable[[#This Row],[kW Boundary]],kwpeak_norm<SegmentExceptTable[[#This Row],[kW Exception]]),AND(kwhmo_norm>SegmentExceptTable[[#This Row],[Boundary M/L]],kwhmo_norm<SegmentExceptTable[[#This Row],[Exception M/L]])),1,0)","v":0}]
[null,null,null,null,null,null,null,null,null,null,null,null,null,null,null,null,null,null,null,null,null,null,null,null,null,null,null,null,null,null,null,null,null,null,null,null,null,null,null,null,null,null,null,null,null,null,null,383,{"$f":"SegmentExceptTable[[#This Row],[Numbers]]/$BP$4","v":0.63939899833055092},{"$f":"SegmentExceptTable[[#This Row],[kW Boundary]]+(0.05*SegmentExceptTable[[#This Row],[kW Boundary]])","v":0.67136894824707849},{"$f":"$BP$6*SegmentExceptTable[[#This Row],[kW Boundary]]+$BP$7","v":0.91075866443267395},{"$f":"$BP$8*SegmentExceptTable[[#This Row],[kW Boundary]]+$BP$9","v":-0.24633861821643033},{"$f":"SegmentExceptTable[[#This Row],[Boundary S/M]]+(0.05*SegmentExceptTable[[#This Row],[Boundary S/M]])","v":-0.25865554912725186},{"$f":"IF(AND(AND(kwpeak_norm>SegmentExceptTable[[#This Row],[kW Boundary]],kwpeak_norm<SegmentExceptTable[[#This Row],[kW Exception]]),AND(kwhmo_norm>SegmentExceptTable[[#This Row],[Boundary S/M]],kwhmo_norm<SegmentExceptTable[[#This Row],[Exception S/M]])),1,0)","v":0},{"$f":"$BP$10*SegmentExceptTable[[#This Row],[kW Boundary]]+$BP$11","v":1.2209136044476065},{"$f":"$BP$12*SegmentExceptTable[[#This Row],[kW Boundary]]+$BP$13","v":0.26800725411317255},{"$f":"SegmentExceptTable[[#This Row],[Boundary M/L]]+(0.05*SegmentExceptTable[[#This Row],[Boundary M/L]])","v":0.2814076168188312},{"$f":"IF(AND(AND(kwpeak_norm>SegmentExceptTable[[#This Row],[kW Boundary]],kwpeak_norm<SegmentExceptTable[[#This Row],[kW Exception]]),AND(kwhmo_norm>SegmentExceptTable[[#This Row],[Boundary M/L]],kwhmo_norm<SegmentExceptTable[[#This Row],[Exception M/L]])),1,0)","v":0}]
[null,null,null,null,null,null,null,null,null,null,null,null,null,null,null,null,null,null,null,null,null,null,null,null,null,null,null,null,null,null,null,null,null,null,null,null,null,null,null,null,null,null,null,null,null,null,null,384,{"$f":"SegmentExceptTable[[#This Row],[Numbers]]/$BP$4","v":0.64106844741235391},{"$f":"SegmentExceptTable[[#This Row],[kW Boundary]]+(0.05*SegmentExceptTable[[#This Row],[kW Boundary]])","v":0.67312186978297162},{"$f":"$BP$6*SegmentExceptTable[[#This Row],[kW Boundary]]+$BP$7","v":0.91318549472804023},{"$f":"$BP$8*SegmentExceptTable[[#This Row],[kW Boundary]]+$BP$9","v":-0.24748705461186116},{"$f":"SegmentExceptTable[[#This Row],[Boundary S/M]]+(0.05*SegmentExceptTable[[#This Row],[Boundary S/M]])","v":-0.25986140734245422},{"$f":"IF(AND(AND(kwpeak_norm>SegmentExceptTable[[#This Row],[kW Boundary]],kwpeak_norm<SegmentExceptTable[[#This Row],[kW Exception]]),AND(kwhmo_norm>SegmentExceptTable[[#This Row],[Boundary S/M]],kwhmo_norm<SegmentExceptTable[[#This Row],[Exception S/M]])),1,0)","v":0},{"$f":"$BP$10*SegmentExceptTable[[#This Row],[kW Boundary]]+$BP$11","v":1.2244406580898448},{"$f":"$BP$12*SegmentExceptTable[[#This Row],[kW Boundary]]+$BP$13","v":0.26721705908938381},{"$f":"SegmentExceptTable[[#This Row],[Boundary M/L]]+(0.05*SegmentExceptTable[[#This Row],[Boundary M/L]])","v":0.28057791204385302},{"$f":"IF(AND(AND(kwpeak_norm>SegmentExceptTable[[#This Row],[kW Boundary]],kwpeak_norm<SegmentExceptTable[[#This Row],[kW Exception]]),AND(kwhmo_norm>SegmentExceptTable[[#This Row],[Boundary M/L]],kwhmo_norm<SegmentExceptTable[[#This Row],[Exception M/L]])),1,0)","v":0}]
[null,null,null,null,null,null,null,null,null,null,null,null,null,null,null,null,null,null,null,null,null,null,null,null,null,null,null,null,null,null,null,null,null,null,null,null,null,null,null,null,null,null,null,null,null,null,null,385,{"$f":"SegmentExceptTable[[#This Row],[Numbers]]/$BP$4","v":0.64273789649415691},{"$f":"SegmentExceptTable[[#This Row],[kW Boundary]]+(0.05*SegmentExceptTable[[#This Row],[kW Boundary]])","v":0.67487479131886474},{"$f":"$BP$6*SegmentExceptTable[[#This Row],[kW Boundary]]+$BP$7","v":0.9156123250234065},{"$f":"$BP$8*SegmentExceptTable[[#This Row],[kW Boundary]]+$BP$9","v":-0.24863549100729204},{"$f":"SegmentExceptTable[[#This Row],[Boundary S/M]]+(0.05*SegmentExceptTable[[#This Row],[Boundary S/M]])","v":-0.26106726555765664},{"$f":"IF(AND(AND(kwpeak_norm>SegmentExceptTable[[#This Row],[kW Boundary]],kwpeak_norm<SegmentExceptTable[[#This Row],[kW Exception]]),AND(kwhmo_norm>SegmentExceptTable[[#This Row],[Boundary S/M]],kwhmo_norm<SegmentExceptTable[[#This Row],[Exception S/M]])),1,0)","v":0},{"$f":"$BP$10*SegmentExceptTable[[#This Row],[kW Boundary]]+$BP$11","v":1.2279677117320835},{"$f":"$BP$12*SegmentExceptTable[[#This Row],[kW Boundary]]+$BP$13","v":0.26642686406559507},{"$f":"SegmentExceptTable[[#This Row],[Boundary M/L]]+(0.05*SegmentExceptTable[[#This Row],[Boundary M/L]])","v":0.27974820726887484},{"$f":"IF(AND(AND(kwpeak_norm>SegmentExceptTable[[#This Row],[kW Boundary]],kwpeak_norm<SegmentExceptTable[[#This Row],[kW Exception]]),AND(kwhmo_norm>SegmentExceptTable[[#This Row],[Boundary M/L]],kwhmo_norm<SegmentExceptTable[[#This Row],[Exception M/L]])),1,0)","v":0}]
[null,null,null,null,null,null,null,null,null,null,null,null,null,null,null,null,null,null,null,null,null,null,null,null,null,null,null,null,null,null,null,null,null,null,null,null,null,null,null,null,null,null,null,null,null,null,null,386,{"$f":"SegmentExceptTable[[#This Row],[Numbers]]/$BP$4","v":0.64440734557595991},{"$f":"SegmentExceptTable[[#This Row],[kW Boundary]]+(0.05*SegmentExceptTable[[#This Row],[kW Boundary]])","v":0.67662771285475787},{"$f":"$BP$6*SegmentExceptTable[[#This Row],[kW Boundary]]+$BP$7","v":0.91803915531877278},{"$f":"$BP$8*SegmentExceptTable[[#This Row],[kW Boundary]]+$BP$9","v":-0.24978392740272293},{"$f":"SegmentExceptTable[[#This Row],[Boundary S/M]]+(0.05*SegmentExceptTable[[#This Row],[Boundary S/M]])","v":-0.26227312377285905},{"$f":"IF(AND(AND(kwpeak_norm>SegmentExceptTable[[#This Row],[kW Boundary]],kwpeak_norm<SegmentExceptTable[[#This Row],[kW Exception]]),AND(kwhmo_norm>SegmentExceptTable[[#This Row],[Boundary S/M]],kwhmo_norm<SegmentExceptTable[[#This Row],[Exception S/M]])),1,0)","v":0},{"$f":"$BP$10*SegmentExceptTable[[#This Row],[kW Boundary]]+$BP$11","v":1.2314947653743218},{"$f":"$BP$12*SegmentExceptTable[[#This Row],[kW Boundary]]+$BP$13","v":0.26563666904180627},{"$f":"SegmentExceptTable[[#This Row],[Boundary M/L]]+(0.05*SegmentExceptTable[[#This Row],[Boundary M/L]])","v":0.2789185024938966},{"$f":"IF(AND(AND(kwpeak_norm>SegmentExceptTable[[#This Row],[kW Boundary]],kwpeak_norm<SegmentExceptTable[[#This Row],[kW Exception]]),AND(kwhmo_norm>SegmentExceptTable[[#This Row],[Boundary M/L]],kwhmo_norm<SegmentExceptTable[[#This Row],[Exception M/L]])),1,0)","v":0}]
[null,null,null,null,null,null,null,null,null,null,null,null,null,null,null,null,null,null,null,null,null,null,null,null,null,null,null,null,null,null,null,null,null,null,null,null,null,null,null,null,null,null,null,null,null,null,null,387,{"$f":"SegmentExceptTable[[#This Row],[Numbers]]/$BP$4","v":0.64607679465776291},{"$f":"SegmentExceptTable[[#This Row],[kW Boundary]]+(0.05*SegmentExceptTable[[#This Row],[kW Boundary]])","v":0.6783806343906511},{"$f":"$BP$6*SegmentExceptTable[[#This Row],[kW Boundary]]+$BP$7","v":0.92046598561413906},{"$f":"$BP$8*SegmentExceptTable[[#This Row],[kW Boundary]]+$BP$9","v":-0.25093236379815381},{"$f":"SegmentExceptTable[[#This Row],[Boundary S/M]]+(0.05*SegmentExceptTable[[#This Row],[Boundary S/M]])","v":-0.26347898198806152},{"$f":"IF(AND(AND(kwpeak_norm>SegmentExceptTable[[#This Row],[kW Boundary]],kwpeak_norm<SegmentExceptTable[[#This Row],[kW Exception]]),AND(kwhmo_norm>SegmentExceptTable[[#This Row],[Boundary S/M]],kwhmo_norm<SegmentExceptTable[[#This Row],[Exception S/M]])),1,0)","v":0},{"$f":"$BP$10*SegmentExceptTable[[#This Row],[kW Boundary]]+$BP$11","v":1.2350218190165605},{"$f":"$BP$12*SegmentExceptTable[[#This Row],[kW Boundary]]+$BP$13","v":0.26484647401801753},{"$f":"SegmentExceptTable[[#This Row],[Boundary M/L]]+(0.05*SegmentExceptTable[[#This Row],[Boundary M/L]])","v":0.27808879771891842},{"$f":"IF(AND(AND(kwpeak_norm>SegmentExceptTable[[#This Row],[kW Boundary]],kwpeak_norm<SegmentExceptTable[[#This Row],[kW Exception]]),AND(kwhmo_norm>SegmentExceptTable[[#This Row],[Boundary M/L]],kwhmo_norm<SegmentExceptTable[[#This Row],[Exception M/L]])),1,0)","v":0}]
[null,null,null,null,null,null,null,null,null,null,null,null,null,null,null,null,null,null,null,null,null,null,null,null,null,null,null,null,null,null,null,null,null,null,null,null,null,null,null,null,null,null,null,null,null,null,null,388,{"$f":"SegmentExceptTable[[#This Row],[Numbers]]/$BP$4","v":0.64774624373956591},{"$f":"SegmentExceptTable[[#This Row],[kW Boundary]]+(0.05*SegmentExceptTable[[#This Row],[kW Boundary]])","v":0.68013355592654423},{"$f":"$BP$6*SegmentExceptTable[[#This Row],[kW Boundary]]+$BP$7","v":0.92289281590950534},{"$f":"$BP$8*SegmentExceptTable[[#This Row],[kW Boundary]]+$BP$9","v":-0.25208080019358464},{"$f":"SegmentExceptTable[[#This Row],[Boundary S/M]]+(0.05*SegmentExceptTable[[#This Row],[Boundary S/M]])","v":-0.26468484020326388},{"$f":"IF(AND(AND(kwpeak_norm>SegmentExceptTable[[#This Row],[kW Boundary]],kwpeak_norm<SegmentExceptTable[[#This Row],[kW Exception]]),AND(kwhmo_norm>SegmentExceptTable[[#This Row],[Boundary S/M]],kwhmo_norm<SegmentExceptTable[[#This Row],[Exception S/M]])),1,0)","v":0},{"$f":"$BP$10*SegmentExceptTable[[#This Row],[kW Boundary]]+$BP$11","v":1.2385488726587988},{"$f":"$BP$12*SegmentExceptTable[[#This Row],[kW Boundary]]+$BP$13","v":0.26405627899422879},{"$f":"SegmentExceptTable[[#This Row],[Boundary M/L]]+(0.05*SegmentExceptTable[[#This Row],[Boundary M/L]])","v":0.27725909294394024},{"$f":"IF(AND(AND(kwpeak_norm>SegmentExceptTable[[#This Row],[kW Boundary]],kwpeak_norm<SegmentExceptTable[[#This Row],[kW Exception]]),AND(kwhmo_norm>SegmentExceptTable[[#This Row],[Boundary M/L]],kwhmo_norm<SegmentExceptTable[[#This Row],[Exception M/L]])),1,0)","v":0}]
[null,null,null,null,null,null,null,null,null,null,null,null,null,null,null,null,null,null,null,null,null,null,null,null,null,null,null,null,null,null,null,null,null,null,null,null,null,null,null,null,null,null,null,null,null,null,null,389,{"$f":"SegmentExceptTable[[#This Row],[Numbers]]/$BP$4","v":0.64941569282136891},{"$f":"SegmentExceptTable[[#This Row],[kW Boundary]]+(0.05*SegmentExceptTable[[#This Row],[kW Boundary]])","v":0.68188647746243736},{"$f":"$BP$6*SegmentExceptTable[[#This Row],[kW Boundary]]+$BP$7","v":0.9253196462048715},{"$f":"$BP$8*SegmentExceptTable[[#This Row],[kW Boundary]]+$BP$9","v":-0.25322923658901553},{"$f":"SegmentExceptTable[[#This Row],[Boundary S/M]]+(0.05*SegmentExceptTable[[#This Row],[Boundary S/M]])","v":-0.2658906984184663},{"$f":"IF(AND(AND(kwpeak_norm>SegmentExceptTable[[#This Row],[kW Boundary]],kwpeak_norm<SegmentExceptTable[[#This Row],[kW Exception]]),AND(kwhmo_norm>SegmentExceptTable[[#This Row],[Boundary S/M]],kwhmo_norm<SegmentExceptTable[[#This Row],[Exception S/M]])),1,0)","v":0},{"$f":"$BP$10*SegmentExceptTable[[#This Row],[kW Boundary]]+$BP$11","v":1.2420759263010375},{"$f":"$BP$12*SegmentExceptTable[[#This Row],[kW Boundary]]+$BP$13","v":0.26326608397044005},{"$f":"SegmentExceptTable[[#This Row],[Boundary M/L]]+(0.05*SegmentExceptTable[[#This Row],[Boundary M/L]])","v":0.27642938816896206},{"$f":"IF(AND(AND(kwpeak_norm>SegmentExceptTable[[#This Row],[kW Boundary]],kwpeak_norm<SegmentExceptTable[[#This Row],[kW Exception]]),AND(kwhmo_norm>SegmentExceptTable[[#This Row],[Boundary M/L]],kwhmo_norm<SegmentExceptTable[[#This Row],[Exception M/L]])),1,0)","v":0}]
[null,null,null,null,null,null,null,null,null,null,null,null,null,null,null,null,null,null,null,null,null,null,null,null,null,null,null,null,null,null,null,null,null,null,null,null,null,null,null,null,null,null,null,null,null,null,null,390,{"$f":"SegmentExceptTable[[#This Row],[Numbers]]/$BP$4","v":0.6510851419031719},{"$f":"SegmentExceptTable[[#This Row],[kW Boundary]]+(0.05*SegmentExceptTable[[#This Row],[kW Boundary]])","v":0.68363939899833048},{"$f":"$BP$6*SegmentExceptTable[[#This Row],[kW Boundary]]+$BP$7","v":0.92774647650023778},{"$f":"$BP$8*SegmentExceptTable[[#This Row],[kW Boundary]]+$BP$9","v":-0.25437767298444641},{"$f":"SegmentExceptTable[[#This Row],[Boundary S/M]]+(0.05*SegmentExceptTable[[#This Row],[Boundary S/M]])","v":-0.26709655663366871},{"$f":"IF(AND(AND(kwpeak_norm>SegmentExceptTable[[#This Row],[kW Boundary]],kwpeak_norm<SegmentExceptTable[[#This Row],[kW Exception]]),AND(kwhmo_norm>SegmentExceptTable[[#This Row],[Boundary S/M]],kwhmo_norm<SegmentExceptTable[[#This Row],[Exception S/M]])),1,0)","v":0},{"$f":"$BP$10*SegmentExceptTable[[#This Row],[kW Boundary]]+$BP$11","v":1.2456029799432757},{"$f":"$BP$12*SegmentExceptTable[[#This Row],[kW Boundary]]+$BP$13","v":0.2624758889466513},{"$f":"SegmentExceptTable[[#This Row],[Boundary M/L]]+(0.05*SegmentExceptTable[[#This Row],[Boundary M/L]])","v":0.27559968339398389},{"$f":"IF(AND(AND(kwpeak_norm>SegmentExceptTable[[#This Row],[kW Boundary]],kwpeak_norm<SegmentExceptTable[[#This Row],[kW Exception]]),AND(kwhmo_norm>SegmentExceptTable[[#This Row],[Boundary M/L]],kwhmo_norm<SegmentExceptTable[[#This Row],[Exception M/L]])),1,0)","v":0}]
[null,null,null,null,null,null,null,null,null,null,null,null,null,null,null,null,null,null,null,null,null,null,null,null,null,null,null,null,null,null,null,null,null,null,null,null,null,null,null,null,null,null,null,null,null,null,null,391,{"$f":"SegmentExceptTable[[#This Row],[Numbers]]/$BP$4","v":0.6527545909849749},{"$f":"SegmentExceptTable[[#This Row],[kW Boundary]]+(0.05*SegmentExceptTable[[#This Row],[kW Boundary]])","v":0.68539232053422361},{"$f":"$BP$6*SegmentExceptTable[[#This Row],[kW Boundary]]+$BP$7","v":0.93017330679560406},{"$f":"$BP$8*SegmentExceptTable[[#This Row],[kW Boundary]]+$BP$9","v":-0.2555261093798773},{"$f":"SegmentExceptTable[[#This Row],[Boundary S/M]]+(0.05*SegmentExceptTable[[#This Row],[Boundary S/M]])","v":-0.26830241484887118},{"$f":"IF(AND(AND(kwpeak_norm>SegmentExceptTable[[#This Row],[kW Boundary]],kwpeak_norm<SegmentExceptTable[[#This Row],[kW Exception]]),AND(kwhmo_norm>SegmentExceptTable[[#This Row],[Boundary S/M]],kwhmo_norm<SegmentExceptTable[[#This Row],[Exception S/M]])),1,0)","v":0},{"$f":"$BP$10*SegmentExceptTable[[#This Row],[kW Boundary]]+$BP$11","v":1.2491300335855144},{"$f":"$BP$12*SegmentExceptTable[[#This Row],[kW Boundary]]+$BP$13","v":0.26168569392286251},{"$f":"SegmentExceptTable[[#This Row],[Boundary M/L]]+(0.05*SegmentExceptTable[[#This Row],[Boundary M/L]])","v":0.27476997861900565},{"$f":"IF(AND(AND(kwpeak_norm>SegmentExceptTable[[#This Row],[kW Boundary]],kwpeak_norm<SegmentExceptTable[[#This Row],[kW Exception]]),AND(kwhmo_norm>SegmentExceptTable[[#This Row],[Boundary M/L]],kwhmo_norm<SegmentExceptTable[[#This Row],[Exception M/L]])),1,0)","v":0}]
[null,null,null,null,null,null,null,null,null,null,null,null,null,null,null,null,null,null,null,null,null,null,null,null,null,null,null,null,null,null,null,null,null,null,null,null,null,null,null,null,null,null,null,null,null,null,null,392,{"$f":"SegmentExceptTable[[#This Row],[Numbers]]/$BP$4","v":0.65442404006677801},{"$f":"SegmentExceptTable[[#This Row],[kW Boundary]]+(0.05*SegmentExceptTable[[#This Row],[kW Boundary]])","v":0.68714524207011696},{"$f":"$BP$6*SegmentExceptTable[[#This Row],[kW Boundary]]+$BP$7","v":0.93260013709097056},{"$f":"$BP$8*SegmentExceptTable[[#This Row],[kW Boundary]]+$BP$9","v":-0.25667454577530824},{"$f":"SegmentExceptTable[[#This Row],[Boundary S/M]]+(0.05*SegmentExceptTable[[#This Row],[Boundary S/M]])","v":-0.26950827306407366},{"$f":"IF(AND(AND(kwpeak_norm>SegmentExceptTable[[#This Row],[kW Boundary]],kwpeak_norm<SegmentExceptTable[[#This Row],[kW Exception]]),AND(kwhmo_norm>SegmentExceptTable[[#This Row],[Boundary S/M]],kwhmo_norm<SegmentExceptTable[[#This Row],[Exception S/M]])),1,0)","v":0},{"$f":"$BP$10*SegmentExceptTable[[#This Row],[kW Boundary]]+$BP$11","v":1.2526570872277532},{"$f":"$BP$12*SegmentExceptTable[[#This Row],[kW Boundary]]+$BP$13","v":0.26089549889907371},{"$f":"SegmentExceptTable[[#This Row],[Boundary M/L]]+(0.05*SegmentExceptTable[[#This Row],[Boundary M/L]])","v":0.27394027384402742},{"$f":"IF(AND(AND(kwpeak_norm>SegmentExceptTable[[#This Row],[kW Boundary]],kwpeak_norm<SegmentExceptTable[[#This Row],[kW Exception]]),AND(kwhmo_norm>SegmentExceptTable[[#This Row],[Boundary M/L]],kwhmo_norm<SegmentExceptTable[[#This Row],[Exception M/L]])),1,0)","v":0}]
[null,null,null,null,null,null,null,null,null,null,null,null,null,null,null,null,null,null,null,null,null,null,null,null,null,null,null,null,null,null,null,null,null,null,null,null,null,null,null,null,null,null,null,null,null,null,null,393,{"$f":"SegmentExceptTable[[#This Row],[Numbers]]/$BP$4","v":0.65609348914858101},{"$f":"SegmentExceptTable[[#This Row],[kW Boundary]]+(0.05*SegmentExceptTable[[#This Row],[kW Boundary]])","v":0.68889816360601008},{"$f":"$BP$6*SegmentExceptTable[[#This Row],[kW Boundary]]+$BP$7","v":0.93502696738633684},{"$f":"$BP$8*SegmentExceptTable[[#This Row],[kW Boundary]]+$BP$9","v":-0.25782298217073912},{"$f":"SegmentExceptTable[[#This Row],[Boundary S/M]]+(0.05*SegmentExceptTable[[#This Row],[Boundary S/M]])","v":-0.27071413127927607},{"$f":"IF(AND(AND(kwpeak_norm>SegmentExceptTable[[#This Row],[kW Boundary]],kwpeak_norm<SegmentExceptTable[[#This Row],[kW Exception]]),AND(kwhmo_norm>SegmentExceptTable[[#This Row],[Boundary S/M]],kwhmo_norm<SegmentExceptTable[[#This Row],[Exception S/M]])),1,0)","v":0},{"$f":"$BP$10*SegmentExceptTable[[#This Row],[kW Boundary]]+$BP$11","v":1.2561841408699919},{"$f":"$BP$12*SegmentExceptTable[[#This Row],[kW Boundary]]+$BP$13","v":0.26010530387528497},{"$f":"SegmentExceptTable[[#This Row],[Boundary M/L]]+(0.05*SegmentExceptTable[[#This Row],[Boundary M/L]])","v":0.27311056906904924},{"$f":"IF(AND(AND(kwpeak_norm>SegmentExceptTable[[#This Row],[kW Boundary]],kwpeak_norm<SegmentExceptTable[[#This Row],[kW Exception]]),AND(kwhmo_norm>SegmentExceptTable[[#This Row],[Boundary M/L]],kwhmo_norm<SegmentExceptTable[[#This Row],[Exception M/L]])),1,0)","v":0}]
[null,null,null,null,null,null,null,null,null,null,null,null,null,null,null,null,null,null,null,null,null,null,null,null,null,null,null,null,null,null,null,null,null,null,null,null,null,null,null,null,null,null,null,null,null,null,null,394,{"$f":"SegmentExceptTable[[#This Row],[Numbers]]/$BP$4","v":0.65776293823038401},{"$f":"SegmentExceptTable[[#This Row],[kW Boundary]]+(0.05*SegmentExceptTable[[#This Row],[kW Boundary]])","v":0.69065108514190321},{"$f":"$BP$6*SegmentExceptTable[[#This Row],[kW Boundary]]+$BP$7","v":0.937453797681703},{"$f":"$BP$8*SegmentExceptTable[[#This Row],[kW Boundary]]+$BP$9","v":-0.25897141856616995},{"$f":"SegmentExceptTable[[#This Row],[Boundary S/M]]+(0.05*SegmentExceptTable[[#This Row],[Boundary S/M]])","v":-0.27191998949447843},{"$f":"IF(AND(AND(kwpeak_norm>SegmentExceptTable[[#This Row],[kW Boundary]],kwpeak_norm<SegmentExceptTable[[#This Row],[kW Exception]]),AND(kwhmo_norm>SegmentExceptTable[[#This Row],[Boundary S/M]],kwhmo_norm<SegmentExceptTable[[#This Row],[Exception S/M]])),1,0)","v":0},{"$f":"$BP$10*SegmentExceptTable[[#This Row],[kW Boundary]]+$BP$11","v":1.2597111945122301},{"$f":"$BP$12*SegmentExceptTable[[#This Row],[kW Boundary]]+$BP$13","v":0.25931510885149622},{"$f":"SegmentExceptTable[[#This Row],[Boundary M/L]]+(0.05*SegmentExceptTable[[#This Row],[Boundary M/L]])","v":0.27228086429407106},{"$f":"IF(AND(AND(kwpeak_norm>SegmentExceptTable[[#This Row],[kW Boundary]],kwpeak_norm<SegmentExceptTable[[#This Row],[kW Exception]]),AND(kwhmo_norm>SegmentExceptTable[[#This Row],[Boundary M/L]],kwhmo_norm<SegmentExceptTable[[#This Row],[Exception M/L]])),1,0)","v":0}]
[null,null,null,null,null,null,null,null,null,null,null,null,null,null,null,null,null,null,null,null,null,null,null,null,null,null,null,null,null,null,null,null,null,null,null,null,null,null,null,null,null,null,null,null,null,null,null,395,{"$f":"SegmentExceptTable[[#This Row],[Numbers]]/$BP$4","v":0.65943238731218701},{"$f":"SegmentExceptTable[[#This Row],[kW Boundary]]+(0.05*SegmentExceptTable[[#This Row],[kW Boundary]])","v":0.69240400667779634},{"$f":"$BP$6*SegmentExceptTable[[#This Row],[kW Boundary]]+$BP$7","v":0.93988062797706928},{"$f":"$BP$8*SegmentExceptTable[[#This Row],[kW Boundary]]+$BP$9","v":-0.26011985496160084},{"$f":"SegmentExceptTable[[#This Row],[Boundary S/M]]+(0.05*SegmentExceptTable[[#This Row],[Boundary S/M]])","v":-0.2731258477096809},{"$f":"IF(AND(AND(kwpeak_norm>SegmentExceptTable[[#This Row],[kW Boundary]],kwpeak_norm<SegmentExceptTable[[#This Row],[kW Exception]]),AND(kwhmo_norm>SegmentExceptTable[[#This Row],[Boundary S/M]],kwhmo_norm<SegmentExceptTable[[#This Row],[Exception S/M]])),1,0)","v":0},{"$f":"$BP$10*SegmentExceptTable[[#This Row],[kW Boundary]]+$BP$11","v":1.2632382481544688},{"$f":"$BP$12*SegmentExceptTable[[#This Row],[kW Boundary]]+$BP$13","v":0.25852491382770748},{"$f":"SegmentExceptTable[[#This Row],[Boundary M/L]]+(0.05*SegmentExceptTable[[#This Row],[Boundary M/L]])","v":0.27145115951909288},{"$f":"IF(AND(AND(kwpeak_norm>SegmentExceptTable[[#This Row],[kW Boundary]],kwpeak_norm<SegmentExceptTable[[#This Row],[kW Exception]]),AND(kwhmo_norm>SegmentExceptTable[[#This Row],[Boundary M/L]],kwhmo_norm<SegmentExceptTable[[#This Row],[Exception M/L]])),1,0)","v":0}]
[null,null,null,null,null,null,null,null,null,null,null,null,null,null,null,null,null,null,null,null,null,null,null,null,null,null,null,null,null,null,null,null,null,null,null,null,null,null,null,null,null,null,null,null,null,null,null,396,{"$f":"SegmentExceptTable[[#This Row],[Numbers]]/$BP$4","v":0.66110183639399001},{"$f":"SegmentExceptTable[[#This Row],[kW Boundary]]+(0.05*SegmentExceptTable[[#This Row],[kW Boundary]])","v":0.69415692821368946},{"$f":"$BP$6*SegmentExceptTable[[#This Row],[kW Boundary]]+$BP$7","v":0.94230745827243556},{"$f":"$BP$8*SegmentExceptTable[[#This Row],[kW Boundary]]+$BP$9","v":-0.26126829135703172},{"$f":"SegmentExceptTable[[#This Row],[Boundary S/M]]+(0.05*SegmentExceptTable[[#This Row],[Boundary S/M]])","v":-0.27433170592488332},{"$f":"IF(AND(AND(kwpeak_norm>SegmentExceptTable[[#This Row],[kW Boundary]],kwpeak_norm<SegmentExceptTable[[#This Row],[kW Exception]]),AND(kwhmo_norm>SegmentExceptTable[[#This Row],[Boundary S/M]],kwhmo_norm<SegmentExceptTable[[#This Row],[Exception S/M]])),1,0)","v":0},{"$f":"$BP$10*SegmentExceptTable[[#This Row],[kW Boundary]]+$BP$11","v":1.2667653017967071},{"$f":"$BP$12*SegmentExceptTable[[#This Row],[kW Boundary]]+$BP$13","v":0.25773471880391868},{"$f":"SegmentExceptTable[[#This Row],[Boundary M/L]]+(0.05*SegmentExceptTable[[#This Row],[Boundary M/L]])","v":0.27062145474411464},{"$f":"IF(AND(AND(kwpeak_norm>SegmentExceptTable[[#This Row],[kW Boundary]],kwpeak_norm<SegmentExceptTable[[#This Row],[kW Exception]]),AND(kwhmo_norm>SegmentExceptTable[[#This Row],[Boundary M/L]],kwhmo_norm<SegmentExceptTable[[#This Row],[Exception M/L]])),1,0)","v":0}]
[null,null,null,null,null,null,null,null,null,null,null,null,null,null,null,null,null,null,null,null,null,null,null,null,null,null,null,null,null,null,null,null,null,null,null,null,null,null,null,null,null,null,null,null,null,null,null,397,{"$f":"SegmentExceptTable[[#This Row],[Numbers]]/$BP$4","v":0.662771285475793},{"$f":"SegmentExceptTable[[#This Row],[kW Boundary]]+(0.05*SegmentExceptTable[[#This Row],[kW Boundary]])","v":0.6959098497495827},{"$f":"$BP$6*SegmentExceptTable[[#This Row],[kW Boundary]]+$BP$7","v":0.94473428856780184},{"$f":"$BP$8*SegmentExceptTable[[#This Row],[kW Boundary]]+$BP$9","v":-0.26241672775246261},{"$f":"SegmentExceptTable[[#This Row],[Boundary S/M]]+(0.05*SegmentExceptTable[[#This Row],[Boundary S/M]])","v":-0.27553756414008573},{"$f":"IF(AND(AND(kwpeak_norm>SegmentExceptTable[[#This Row],[kW Boundary]],kwpeak_norm<SegmentExceptTable[[#This Row],[kW Exception]]),AND(kwhmo_norm>SegmentExceptTable[[#This Row],[Boundary S/M]],kwhmo_norm<SegmentExceptTable[[#This Row],[Exception S/M]])),1,0)","v":0},{"$f":"$BP$10*SegmentExceptTable[[#This Row],[kW Boundary]]+$BP$11","v":1.2702923554389458},{"$f":"$BP$12*SegmentExceptTable[[#This Row],[kW Boundary]]+$BP$13","v":0.25694452378012994},{"$f":"SegmentExceptTable[[#This Row],[Boundary M/L]]+(0.05*SegmentExceptTable[[#This Row],[Boundary M/L]])","v":0.26979174996913646},{"$f":"IF(AND(AND(kwpeak_norm>SegmentExceptTable[[#This Row],[kW Boundary]],kwpeak_norm<SegmentExceptTable[[#This Row],[kW Exception]]),AND(kwhmo_norm>SegmentExceptTable[[#This Row],[Boundary M/L]],kwhmo_norm<SegmentExceptTable[[#This Row],[Exception M/L]])),1,0)","v":0}]
[null,null,null,null,null,null,null,null,null,null,null,null,null,null,null,null,null,null,null,null,null,null,null,null,null,null,null,null,null,null,null,null,null,null,null,null,null,null,null,null,null,null,null,null,null,null,null,398,{"$f":"SegmentExceptTable[[#This Row],[Numbers]]/$BP$4","v":0.664440734557596},{"$f":"SegmentExceptTable[[#This Row],[kW Boundary]]+(0.05*SegmentExceptTable[[#This Row],[kW Boundary]])","v":0.69766277128547582},{"$f":"$BP$6*SegmentExceptTable[[#This Row],[kW Boundary]]+$BP$7","v":0.94716111886316812},{"$f":"$BP$8*SegmentExceptTable[[#This Row],[kW Boundary]]+$BP$9","v":-0.26356516414789344},{"$f":"SegmentExceptTable[[#This Row],[Boundary S/M]]+(0.05*SegmentExceptTable[[#This Row],[Boundary S/M]])","v":-0.27674342235528809},{"$f":"IF(AND(AND(kwpeak_norm>SegmentExceptTable[[#This Row],[kW Boundary]],kwpeak_norm<SegmentExceptTable[[#This Row],[kW Exception]]),AND(kwhmo_norm>SegmentExceptTable[[#This Row],[Boundary S/M]],kwhmo_norm<SegmentExceptTable[[#This Row],[Exception S/M]])),1,0)","v":0},{"$f":"$BP$10*SegmentExceptTable[[#This Row],[kW Boundary]]+$BP$11","v":1.2738194090811841},{"$f":"$BP$12*SegmentExceptTable[[#This Row],[kW Boundary]]+$BP$13","v":0.2561543287563412},{"$f":"SegmentExceptTable[[#This Row],[Boundary M/L]]+(0.05*SegmentExceptTable[[#This Row],[Boundary M/L]])","v":0.26896204519415828},{"$f":"IF(AND(AND(kwpeak_norm>SegmentExceptTable[[#This Row],[kW Boundary]],kwpeak_norm<SegmentExceptTable[[#This Row],[kW Exception]]),AND(kwhmo_norm>SegmentExceptTable[[#This Row],[Boundary M/L]],kwhmo_norm<SegmentExceptTable[[#This Row],[Exception M/L]])),1,0)","v":0}]
[null,null,null,null,null,null,null,null,null,null,null,null,null,null,null,null,null,null,null,null,null,null,null,null,null,null,null,null,null,null,null,null,null,null,null,null,null,null,null,null,null,null,null,null,null,null,null,399,{"$f":"SegmentExceptTable[[#This Row],[Numbers]]/$BP$4","v":0.666110183639399},{"$f":"SegmentExceptTable[[#This Row],[kW Boundary]]+(0.05*SegmentExceptTable[[#This Row],[kW Boundary]])","v":0.69941569282136895},{"$f":"$BP$6*SegmentExceptTable[[#This Row],[kW Boundary]]+$BP$7","v":0.94958794915853439},{"$f":"$BP$8*SegmentExceptTable[[#This Row],[kW Boundary]]+$BP$9","v":-0.26471360054332432},{"$f":"SegmentExceptTable[[#This Row],[Boundary S/M]]+(0.05*SegmentExceptTable[[#This Row],[Boundary S/M]])","v":-0.27794928057049056},{"$f":"IF(AND(AND(kwpeak_norm>SegmentExceptTable[[#This Row],[kW Boundary]],kwpeak_norm<SegmentExceptTable[[#This Row],[kW Exception]]),AND(kwhmo_norm>SegmentExceptTable[[#This Row],[Boundary S/M]],kwhmo_norm<SegmentExceptTable[[#This Row],[Exception S/M]])),1,0)","v":0},{"$f":"$BP$10*SegmentExceptTable[[#This Row],[kW Boundary]]+$BP$11","v":1.2773464627234228},{"$f":"$BP$12*SegmentExceptTable[[#This Row],[kW Boundary]]+$BP$13","v":0.25536413373255246},{"$f":"SegmentExceptTable[[#This Row],[Boundary M/L]]+(0.05*SegmentExceptTable[[#This Row],[Boundary M/L]])","v":0.2681323404191801},{"$f":"IF(AND(AND(kwpeak_norm>SegmentExceptTable[[#This Row],[kW Boundary]],kwpeak_norm<SegmentExceptTable[[#This Row],[kW Exception]]),AND(kwhmo_norm>SegmentExceptTable[[#This Row],[Boundary M/L]],kwhmo_norm<SegmentExceptTable[[#This Row],[Exception M/L]])),1,0)","v":0}]
[null,null,null,null,null,null,null,null,null,null,null,null,null,null,null,null,null,null,null,null,null,null,null,null,null,null,null,null,null,null,null,null,null,null,null,null,null,null,null,null,null,null,null,null,null,null,null,400,{"$f":"SegmentExceptTable[[#This Row],[Numbers]]/$BP$4","v":0.667779632721202},{"$f":"SegmentExceptTable[[#This Row],[kW Boundary]]+(0.05*SegmentExceptTable[[#This Row],[kW Boundary]])","v":0.70116861435726208},{"$f":"$BP$6*SegmentExceptTable[[#This Row],[kW Boundary]]+$BP$7","v":0.95201477945390067},{"$f":"$BP$8*SegmentExceptTable[[#This Row],[kW Boundary]]+$BP$9","v":-0.26586203693875521},{"$f":"SegmentExceptTable[[#This Row],[Boundary S/M]]+(0.05*SegmentExceptTable[[#This Row],[Boundary S/M]])","v":-0.27915513878569298},{"$f":"IF(AND(AND(kwpeak_norm>SegmentExceptTable[[#This Row],[kW Boundary]],kwpeak_norm<SegmentExceptTable[[#This Row],[kW Exception]]),AND(kwhmo_norm>SegmentExceptTable[[#This Row],[Boundary S/M]],kwhmo_norm<SegmentExceptTable[[#This Row],[Exception S/M]])),1,0)","v":0},{"$f":"$BP$10*SegmentExceptTable[[#This Row],[kW Boundary]]+$BP$11","v":1.2808735163656615},{"$f":"$BP$12*SegmentExceptTable[[#This Row],[kW Boundary]]+$BP$13","v":0.25457393870876371},{"$f":"SegmentExceptTable[[#This Row],[Boundary M/L]]+(0.05*SegmentExceptTable[[#This Row],[Boundary M/L]])","v":0.26730263564420192},{"$f":"IF(AND(AND(kwpeak_norm>SegmentExceptTable[[#This Row],[kW Boundary]],kwpeak_norm<SegmentExceptTable[[#This Row],[kW Exception]]),AND(kwhmo_norm>SegmentExceptTable[[#This Row],[Boundary M/L]],kwhmo_norm<SegmentExceptTable[[#This Row],[Exception M/L]])),1,0)","v":0}]
[null,null,null,null,null,null,null,null,null,null,null,null,null,null,null,null,null,null,null,null,null,null,null,null,null,null,null,null,null,null,null,null,null,null,null,null,null,null,null,null,null,null,null,null,null,null,null,401,{"$f":"SegmentExceptTable[[#This Row],[Numbers]]/$BP$4","v":0.669449081803005},{"$f":"SegmentExceptTable[[#This Row],[kW Boundary]]+(0.05*SegmentExceptTable[[#This Row],[kW Boundary]])","v":0.7029215358931552},{"$f":"$BP$6*SegmentExceptTable[[#This Row],[kW Boundary]]+$BP$7","v":0.95444160974926695},{"$f":"$BP$8*SegmentExceptTable[[#This Row],[kW Boundary]]+$BP$9","v":-0.26701047333418609},{"$f":"SegmentExceptTable[[#This Row],[Boundary S/M]]+(0.05*SegmentExceptTable[[#This Row],[Boundary S/M]])","v":-0.2803609970008954},{"$f":"IF(AND(AND(kwpeak_norm>SegmentExceptTable[[#This Row],[kW Boundary]],kwpeak_norm<SegmentExceptTable[[#This Row],[kW Exception]]),AND(kwhmo_norm>SegmentExceptTable[[#This Row],[Boundary S/M]],kwhmo_norm<SegmentExceptTable[[#This Row],[Exception S/M]])),1,0)","v":0},{"$f":"$BP$10*SegmentExceptTable[[#This Row],[kW Boundary]]+$BP$11","v":1.2844005700078998},{"$f":"$BP$12*SegmentExceptTable[[#This Row],[kW Boundary]]+$BP$13","v":0.25378374368497492},{"$f":"SegmentExceptTable[[#This Row],[Boundary M/L]]+(0.05*SegmentExceptTable[[#This Row],[Boundary M/L]])","v":0.26647293086922363},{"$f":"IF(AND(AND(kwpeak_norm>SegmentExceptTable[[#This Row],[kW Boundary]],kwpeak_norm<SegmentExceptTable[[#This Row],[kW Exception]]),AND(kwhmo_norm>SegmentExceptTable[[#This Row],[Boundary M/L]],kwhmo_norm<SegmentExceptTable[[#This Row],[Exception M/L]])),1,0)","v":0}]
[null,null,null,null,null,null,null,null,null,null,null,null,null,null,null,null,null,null,null,null,null,null,null,null,null,null,null,null,null,null,null,null,null,null,null,null,null,null,null,null,null,null,null,null,null,null,null,402,{"$f":"SegmentExceptTable[[#This Row],[Numbers]]/$BP$4","v":0.671118530884808},{"$f":"SegmentExceptTable[[#This Row],[kW Boundary]]+(0.05*SegmentExceptTable[[#This Row],[kW Boundary]])","v":0.70467445742904844},{"$f":"$BP$6*SegmentExceptTable[[#This Row],[kW Boundary]]+$BP$7","v":0.95686844004463323},{"$f":"$BP$8*SegmentExceptTable[[#This Row],[kW Boundary]]+$BP$9","v":-0.26815890972961692},{"$f":"SegmentExceptTable[[#This Row],[Boundary S/M]]+(0.05*SegmentExceptTable[[#This Row],[Boundary S/M]])","v":-0.28156685521609776},{"$f":"IF(AND(AND(kwpeak_norm>SegmentExceptTable[[#This Row],[kW Boundary]],kwpeak_norm<SegmentExceptTable[[#This Row],[kW Exception]]),AND(kwhmo_norm>SegmentExceptTable[[#This Row],[Boundary S/M]],kwhmo_norm<SegmentExceptTable[[#This Row],[Exception S/M]])),1,0)","v":0},{"$f":"$BP$10*SegmentExceptTable[[#This Row],[kW Boundary]]+$BP$11","v":1.2879276236501385},{"$f":"$BP$12*SegmentExceptTable[[#This Row],[kW Boundary]]+$BP$13","v":0.25299354866118617},{"$f":"SegmentExceptTable[[#This Row],[Boundary M/L]]+(0.05*SegmentExceptTable[[#This Row],[Boundary M/L]])","v":0.26564322609424551},{"$f":"IF(AND(AND(kwpeak_norm>SegmentExceptTable[[#This Row],[kW Boundary]],kwpeak_norm<SegmentExceptTable[[#This Row],[kW Exception]]),AND(kwhmo_norm>SegmentExceptTable[[#This Row],[Boundary M/L]],kwhmo_norm<SegmentExceptTable[[#This Row],[Exception M/L]])),1,0)","v":0}]
[null,null,null,null,null,null,null,null,null,null,null,null,null,null,null,null,null,null,null,null,null,null,null,null,null,null,null,null,null,null,null,null,null,null,null,null,null,null,null,null,null,null,null,null,null,null,null,403,{"$f":"SegmentExceptTable[[#This Row],[Numbers]]/$BP$4","v":0.67278797996661099},{"$f":"SegmentExceptTable[[#This Row],[kW Boundary]]+(0.05*SegmentExceptTable[[#This Row],[kW Boundary]])","v":0.70642737896494157},{"$f":"$BP$6*SegmentExceptTable[[#This Row],[kW Boundary]]+$BP$7","v":0.95929527033999951},{"$f":"$BP$8*SegmentExceptTable[[#This Row],[kW Boundary]]+$BP$9","v":-0.26930734612504781},{"$f":"SegmentExceptTable[[#This Row],[Boundary S/M]]+(0.05*SegmentExceptTable[[#This Row],[Boundary S/M]])","v":-0.28277271343130017},{"$f":"IF(AND(AND(kwpeak_norm>SegmentExceptTable[[#This Row],[kW Boundary]],kwpeak_norm<SegmentExceptTable[[#This Row],[kW Exception]]),AND(kwhmo_norm>SegmentExceptTable[[#This Row],[Boundary S/M]],kwhmo_norm<SegmentExceptTable[[#This Row],[Exception S/M]])),1,0)","v":0},{"$f":"$BP$10*SegmentExceptTable[[#This Row],[kW Boundary]]+$BP$11","v":1.2914546772923767},{"$f":"$BP$12*SegmentExceptTable[[#This Row],[kW Boundary]]+$BP$13","v":0.25220335363739743},{"$f":"SegmentExceptTable[[#This Row],[Boundary M/L]]+(0.05*SegmentExceptTable[[#This Row],[Boundary M/L]])","v":0.26481352131926728},{"$f":"IF(AND(AND(kwpeak_norm>SegmentExceptTable[[#This Row],[kW Boundary]],kwpeak_norm<SegmentExceptTable[[#This Row],[kW Exception]]),AND(kwhmo_norm>SegmentExceptTable[[#This Row],[Boundary M/L]],kwhmo_norm<SegmentExceptTable[[#This Row],[Exception M/L]])),1,0)","v":0}]
[null,null,null,null,null,null,null,null,null,null,null,null,null,null,null,null,null,null,null,null,null,null,null,null,null,null,null,null,null,null,null,null,null,null,null,null,null,null,null,null,null,null,null,null,null,null,null,404,{"$f":"SegmentExceptTable[[#This Row],[Numbers]]/$BP$4","v":0.67445742904841399},{"$f":"SegmentExceptTable[[#This Row],[kW Boundary]]+(0.05*SegmentExceptTable[[#This Row],[kW Boundary]])","v":0.70818030050083469},{"$f":"$BP$6*SegmentExceptTable[[#This Row],[kW Boundary]]+$BP$7","v":0.96172210063536578},{"$f":"$BP$8*SegmentExceptTable[[#This Row],[kW Boundary]]+$BP$9","v":-0.27045578252047869},{"$f":"SegmentExceptTable[[#This Row],[Boundary S/M]]+(0.05*SegmentExceptTable[[#This Row],[Boundary S/M]])","v":-0.28397857164650264},{"$f":"IF(AND(AND(kwpeak_norm>SegmentExceptTable[[#This Row],[kW Boundary]],kwpeak_norm<SegmentExceptTable[[#This Row],[kW Exception]]),AND(kwhmo_norm>SegmentExceptTable[[#This Row],[Boundary S/M]],kwhmo_norm<SegmentExceptTable[[#This Row],[Exception S/M]])),1,0)","v":0},{"$f":"$BP$10*SegmentExceptTable[[#This Row],[kW Boundary]]+$BP$11","v":1.2949817309346154},{"$f":"$BP$12*SegmentExceptTable[[#This Row],[kW Boundary]]+$BP$13","v":0.25141315861360869},{"$f":"SegmentExceptTable[[#This Row],[Boundary M/L]]+(0.05*SegmentExceptTable[[#This Row],[Boundary M/L]])","v":0.26398381654428915},{"$f":"IF(AND(AND(kwpeak_norm>SegmentExceptTable[[#This Row],[kW Boundary]],kwpeak_norm<SegmentExceptTable[[#This Row],[kW Exception]]),AND(kwhmo_norm>SegmentExceptTable[[#This Row],[Boundary M/L]],kwhmo_norm<SegmentExceptTable[[#This Row],[Exception M/L]])),1,0)","v":0}]
[null,null,null,null,null,null,null,null,null,null,null,null,null,null,null,null,null,null,null,null,null,null,null,null,null,null,null,null,null,null,null,null,null,null,null,null,null,null,null,null,null,null,null,null,null,null,null,405,{"$f":"SegmentExceptTable[[#This Row],[Numbers]]/$BP$4","v":0.67612687813021699},{"$f":"SegmentExceptTable[[#This Row],[kW Boundary]]+(0.05*SegmentExceptTable[[#This Row],[kW Boundary]])","v":0.70993322203672782},{"$f":"$BP$6*SegmentExceptTable[[#This Row],[kW Boundary]]+$BP$7","v":0.96414893093073206},{"$f":"$BP$8*SegmentExceptTable[[#This Row],[kW Boundary]]+$BP$9","v":-0.27160421891590958},{"$f":"SegmentExceptTable[[#This Row],[Boundary S/M]]+(0.05*SegmentExceptTable[[#This Row],[Boundary S/M]])","v":-0.28518442986170506},{"$f":"IF(AND(AND(kwpeak_norm>SegmentExceptTable[[#This Row],[kW Boundary]],kwpeak_norm<SegmentExceptTable[[#This Row],[kW Exception]]),AND(kwhmo_norm>SegmentExceptTable[[#This Row],[Boundary S/M]],kwhmo_norm<SegmentExceptTable[[#This Row],[Exception S/M]])),1,0)","v":0},{"$f":"$BP$10*SegmentExceptTable[[#This Row],[kW Boundary]]+$BP$11","v":1.2985087845768537},{"$f":"$BP$12*SegmentExceptTable[[#This Row],[kW Boundary]]+$BP$13","v":0.25062296358981989},{"$f":"SegmentExceptTable[[#This Row],[Boundary M/L]]+(0.05*SegmentExceptTable[[#This Row],[Boundary M/L]])","v":0.26315411176931086},{"$f":"IF(AND(AND(kwpeak_norm>SegmentExceptTable[[#This Row],[kW Boundary]],kwpeak_norm<SegmentExceptTable[[#This Row],[kW Exception]]),AND(kwhmo_norm>SegmentExceptTable[[#This Row],[Boundary M/L]],kwhmo_norm<SegmentExceptTable[[#This Row],[Exception M/L]])),1,0)","v":0}]
[null,null,null,null,null,null,null,null,null,null,null,null,null,null,null,null,null,null,null,null,null,null,null,null,null,null,null,null,null,null,null,null,null,null,null,null,null,null,null,null,null,null,null,null,null,null,null,406,{"$f":"SegmentExceptTable[[#This Row],[Numbers]]/$BP$4","v":0.67779632721201999},{"$f":"SegmentExceptTable[[#This Row],[kW Boundary]]+(0.05*SegmentExceptTable[[#This Row],[kW Boundary]])","v":0.71168614357262094},{"$f":"$BP$6*SegmentExceptTable[[#This Row],[kW Boundary]]+$BP$7","v":0.96657576122609823},{"$f":"$BP$8*SegmentExceptTable[[#This Row],[kW Boundary]]+$BP$9","v":-0.27275265531134041},{"$f":"SegmentExceptTable[[#This Row],[Boundary S/M]]+(0.05*SegmentExceptTable[[#This Row],[Boundary S/M]])","v":-0.28639028807690742},{"$f":"IF(AND(AND(kwpeak_norm>SegmentExceptTable[[#This Row],[kW Boundary]],kwpeak_norm<SegmentExceptTable[[#This Row],[kW Exception]]),AND(kwhmo_norm>SegmentExceptTable[[#This Row],[Boundary S/M]],kwhmo_norm<SegmentExceptTable[[#This Row],[Exception S/M]])),1,0)","v":0},{"$f":"$BP$10*SegmentExceptTable[[#This Row],[kW Boundary]]+$BP$11","v":1.3020358382190924},{"$f":"$BP$12*SegmentExceptTable[[#This Row],[kW Boundary]]+$BP$13","v":0.24983276856603115},{"$f":"SegmentExceptTable[[#This Row],[Boundary M/L]]+(0.05*SegmentExceptTable[[#This Row],[Boundary M/L]])","v":0.26232440699433268},{"$f":"IF(AND(AND(kwpeak_norm>SegmentExceptTable[[#This Row],[kW Boundary]],kwpeak_norm<SegmentExceptTable[[#This Row],[kW Exception]]),AND(kwhmo_norm>SegmentExceptTable[[#This Row],[Boundary M/L]],kwhmo_norm<SegmentExceptTable[[#This Row],[Exception M/L]])),1,0)","v":0}]
[null,null,null,null,null,null,null,null,null,null,null,null,null,null,null,null,null,null,null,null,null,null,null,null,null,null,null,null,null,null,null,null,null,null,null,null,null,null,null,null,null,null,null,null,null,null,null,407,{"$f":"SegmentExceptTable[[#This Row],[Numbers]]/$BP$4","v":0.67946577629382299},{"$f":"SegmentExceptTable[[#This Row],[kW Boundary]]+(0.05*SegmentExceptTable[[#This Row],[kW Boundary]])","v":0.71343906510851418},{"$f":"$BP$6*SegmentExceptTable[[#This Row],[kW Boundary]]+$BP$7","v":0.96900259152146451},{"$f":"$BP$8*SegmentExceptTable[[#This Row],[kW Boundary]]+$BP$9","v":-0.27390109170677129},{"$f":"SegmentExceptTable[[#This Row],[Boundary S/M]]+(0.05*SegmentExceptTable[[#This Row],[Boundary S/M]])","v":-0.28759614629210983},{"$f":"IF(AND(AND(kwpeak_norm>SegmentExceptTable[[#This Row],[kW Boundary]],kwpeak_norm<SegmentExceptTable[[#This Row],[kW Exception]]),AND(kwhmo_norm>SegmentExceptTable[[#This Row],[Boundary S/M]],kwhmo_norm<SegmentExceptTable[[#This Row],[Exception S/M]])),1,0)","v":0},{"$f":"$BP$10*SegmentExceptTable[[#This Row],[kW Boundary]]+$BP$11","v":1.3055628918613311},{"$f":"$BP$12*SegmentExceptTable[[#This Row],[kW Boundary]]+$BP$13","v":0.24904257354224241},{"$f":"SegmentExceptTable[[#This Row],[Boundary M/L]]+(0.05*SegmentExceptTable[[#This Row],[Boundary M/L]])","v":0.2614947022193545},{"$f":"IF(AND(AND(kwpeak_norm>SegmentExceptTable[[#This Row],[kW Boundary]],kwpeak_norm<SegmentExceptTable[[#This Row],[kW Exception]]),AND(kwhmo_norm>SegmentExceptTable[[#This Row],[Boundary M/L]],kwhmo_norm<SegmentExceptTable[[#This Row],[Exception M/L]])),1,0)","v":0}]
[null,null,null,null,null,null,null,null,null,null,null,null,null,null,null,null,null,null,null,null,null,null,null,null,null,null,null,null,null,null,null,null,null,null,null,null,null,null,null,null,null,null,null,null,null,null,null,408,{"$f":"SegmentExceptTable[[#This Row],[Numbers]]/$BP$4","v":0.6811352253756261},{"$f":"SegmentExceptTable[[#This Row],[kW Boundary]]+(0.05*SegmentExceptTable[[#This Row],[kW Boundary]])","v":0.71519198664440742},{"$f":"$BP$6*SegmentExceptTable[[#This Row],[kW Boundary]]+$BP$7","v":0.97142942181683101},{"$f":"$BP$8*SegmentExceptTable[[#This Row],[kW Boundary]]+$BP$9","v":-0.27504952810220223},{"$f":"SegmentExceptTable[[#This Row],[Boundary S/M]]+(0.05*SegmentExceptTable[[#This Row],[Boundary S/M]])","v":-0.28880200450731236},{"$f":"IF(AND(AND(kwpeak_norm>SegmentExceptTable[[#This Row],[kW Boundary]],kwpeak_norm<SegmentExceptTable[[#This Row],[kW Exception]]),AND(kwhmo_norm>SegmentExceptTable[[#This Row],[Boundary S/M]],kwhmo_norm<SegmentExceptTable[[#This Row],[Exception S/M]])),1,0)","v":0},{"$f":"$BP$10*SegmentExceptTable[[#This Row],[kW Boundary]]+$BP$11","v":1.3090899455035698},{"$f":"$BP$12*SegmentExceptTable[[#This Row],[kW Boundary]]+$BP$13","v":0.24825237851845361},{"$f":"SegmentExceptTable[[#This Row],[Boundary M/L]]+(0.05*SegmentExceptTable[[#This Row],[Boundary M/L]])","v":0.26066499744437627},{"$f":"IF(AND(AND(kwpeak_norm>SegmentExceptTable[[#This Row],[kW Boundary]],kwpeak_norm<SegmentExceptTable[[#This Row],[kW Exception]]),AND(kwhmo_norm>SegmentExceptTable[[#This Row],[Boundary M/L]],kwhmo_norm<SegmentExceptTable[[#This Row],[Exception M/L]])),1,0)","v":0}]
[null,null,null,null,null,null,null,null,null,null,null,null,null,null,null,null,null,null,null,null,null,null,null,null,null,null,null,null,null,null,null,null,null,null,null,null,null,null,null,null,null,null,null,null,null,null,null,409,{"$f":"SegmentExceptTable[[#This Row],[Numbers]]/$BP$4","v":0.68280467445742909},{"$f":"SegmentExceptTable[[#This Row],[kW Boundary]]+(0.05*SegmentExceptTable[[#This Row],[kW Boundary]])","v":0.71694490818030054},{"$f":"$BP$6*SegmentExceptTable[[#This Row],[kW Boundary]]+$BP$7","v":0.97385625211219728},{"$f":"$BP$8*SegmentExceptTable[[#This Row],[kW Boundary]]+$BP$9","v":-0.27619796449763312},{"$f":"SegmentExceptTable[[#This Row],[Boundary S/M]]+(0.05*SegmentExceptTable[[#This Row],[Boundary S/M]])","v":-0.29000786272251478},{"$f":"IF(AND(AND(kwpeak_norm>SegmentExceptTable[[#This Row],[kW Boundary]],kwpeak_norm<SegmentExceptTable[[#This Row],[kW Exception]]),AND(kwhmo_norm>SegmentExceptTable[[#This Row],[Boundary S/M]],kwhmo_norm<SegmentExceptTable[[#This Row],[Exception S/M]])),1,0)","v":0},{"$f":"$BP$10*SegmentExceptTable[[#This Row],[kW Boundary]]+$BP$11","v":1.3126169991458081},{"$f":"$BP$12*SegmentExceptTable[[#This Row],[kW Boundary]]+$BP$13","v":0.24746218349466487},{"$f":"SegmentExceptTable[[#This Row],[Boundary M/L]]+(0.05*SegmentExceptTable[[#This Row],[Boundary M/L]])","v":0.25983529266939809},{"$f":"IF(AND(AND(kwpeak_norm>SegmentExceptTable[[#This Row],[kW Boundary]],kwpeak_norm<SegmentExceptTable[[#This Row],[kW Exception]]),AND(kwhmo_norm>SegmentExceptTable[[#This Row],[Boundary M/L]],kwhmo_norm<SegmentExceptTable[[#This Row],[Exception M/L]])),1,0)","v":0}]
[null,null,null,null,null,null,null,null,null,null,null,null,null,null,null,null,null,null,null,null,null,null,null,null,null,null,null,null,null,null,null,null,null,null,null,null,null,null,null,null,null,null,null,null,null,null,null,410,{"$f":"SegmentExceptTable[[#This Row],[Numbers]]/$BP$4","v":0.68447412353923209},{"$f":"SegmentExceptTable[[#This Row],[kW Boundary]]+(0.05*SegmentExceptTable[[#This Row],[kW Boundary]])","v":0.71869782971619367},{"$f":"$BP$6*SegmentExceptTable[[#This Row],[kW Boundary]]+$BP$7","v":0.97628308240756356},{"$f":"$BP$8*SegmentExceptTable[[#This Row],[kW Boundary]]+$BP$9","v":-0.277346400893064},{"$f":"SegmentExceptTable[[#This Row],[Boundary S/M]]+(0.05*SegmentExceptTable[[#This Row],[Boundary S/M]])","v":-0.29121372093771719},{"$f":"IF(AND(AND(kwpeak_norm>SegmentExceptTable[[#This Row],[kW Boundary]],kwpeak_norm<SegmentExceptTable[[#This Row],[kW Exception]]),AND(kwhmo_norm>SegmentExceptTable[[#This Row],[Boundary S/M]],kwhmo_norm<SegmentExceptTable[[#This Row],[Exception S/M]])),1,0)","v":0},{"$f":"$BP$10*SegmentExceptTable[[#This Row],[kW Boundary]]+$BP$11","v":1.3161440527880468},{"$f":"$BP$12*SegmentExceptTable[[#This Row],[kW Boundary]]+$BP$13","v":0.24667198847087612},{"$f":"SegmentExceptTable[[#This Row],[Boundary M/L]]+(0.05*SegmentExceptTable[[#This Row],[Boundary M/L]])","v":0.25900558789441991},{"$f":"IF(AND(AND(kwpeak_norm>SegmentExceptTable[[#This Row],[kW Boundary]],kwpeak_norm<SegmentExceptTable[[#This Row],[kW Exception]]),AND(kwhmo_norm>SegmentExceptTable[[#This Row],[Boundary M/L]],kwhmo_norm<SegmentExceptTable[[#This Row],[Exception M/L]])),1,0)","v":0}]
[null,null,null,null,null,null,null,null,null,null,null,null,null,null,null,null,null,null,null,null,null,null,null,null,null,null,null,null,null,null,null,null,null,null,null,null,null,null,null,null,null,null,null,null,null,null,null,411,{"$f":"SegmentExceptTable[[#This Row],[Numbers]]/$BP$4","v":0.68614357262103509},{"$f":"SegmentExceptTable[[#This Row],[kW Boundary]]+(0.05*SegmentExceptTable[[#This Row],[kW Boundary]])","v":0.7204507512520868},{"$f":"$BP$6*SegmentExceptTable[[#This Row],[kW Boundary]]+$BP$7","v":0.97870991270292973},{"$f":"$BP$8*SegmentExceptTable[[#This Row],[kW Boundary]]+$BP$9","v":-0.27849483728849483},{"$f":"SegmentExceptTable[[#This Row],[Boundary S/M]]+(0.05*SegmentExceptTable[[#This Row],[Boundary S/M]])","v":-0.29241957915291955},{"$f":"IF(AND(AND(kwpeak_norm>SegmentExceptTable[[#This Row],[kW Boundary]],kwpeak_norm<SegmentExceptTable[[#This Row],[kW Exception]]),AND(kwhmo_norm>SegmentExceptTable[[#This Row],[Boundary S/M]],kwhmo_norm<SegmentExceptTable[[#This Row],[Exception S/M]])),1,0)","v":0},{"$f":"$BP$10*SegmentExceptTable[[#This Row],[kW Boundary]]+$BP$11","v":1.3196711064302851},{"$f":"$BP$12*SegmentExceptTable[[#This Row],[kW Boundary]]+$BP$13","v":0.24588179344708733},{"$f":"SegmentExceptTable[[#This Row],[Boundary M/L]]+(0.05*SegmentExceptTable[[#This Row],[Boundary M/L]])","v":0.25817588311944167},{"$f":"IF(AND(AND(kwpeak_norm>SegmentExceptTable[[#This Row],[kW Boundary]],kwpeak_norm<SegmentExceptTable[[#This Row],[kW Exception]]),AND(kwhmo_norm>SegmentExceptTable[[#This Row],[Boundary M/L]],kwhmo_norm<SegmentExceptTable[[#This Row],[Exception M/L]])),1,0)","v":0}]
[null,null,null,null,null,null,null,null,null,null,null,null,null,null,null,null,null,null,null,null,null,null,null,null,null,null,null,null,null,null,null,null,null,null,null,null,null,null,null,null,null,null,null,null,null,null,null,412,{"$f":"SegmentExceptTable[[#This Row],[Numbers]]/$BP$4","v":0.68781302170283809},{"$f":"SegmentExceptTable[[#This Row],[kW Boundary]]+(0.05*SegmentExceptTable[[#This Row],[kW Boundary]])","v":0.72220367278798003},{"$f":"$BP$6*SegmentExceptTable[[#This Row],[kW Boundary]]+$BP$7","v":0.98113674299829601},{"$f":"$BP$8*SegmentExceptTable[[#This Row],[kW Boundary]]+$BP$9","v":-0.27964327368392572},{"$f":"SegmentExceptTable[[#This Row],[Boundary S/M]]+(0.05*SegmentExceptTable[[#This Row],[Boundary S/M]])","v":-0.29362543736812202},{"$f":"IF(AND(AND(kwpeak_norm>SegmentExceptTable[[#This Row],[kW Boundary]],kwpeak_norm<SegmentExceptTable[[#This Row],[kW Exception]]),AND(kwhmo_norm>SegmentExceptTable[[#This Row],[Boundary S/M]],kwhmo_norm<SegmentExceptTable[[#This Row],[Exception S/M]])),1,0)","v":0},{"$f":"$BP$10*SegmentExceptTable[[#This Row],[kW Boundary]]+$BP$11","v":1.3231981600725238},{"$f":"$BP$12*SegmentExceptTable[[#This Row],[kW Boundary]]+$BP$13","v":0.24509159842329858},{"$f":"SegmentExceptTable[[#This Row],[Boundary M/L]]+(0.05*SegmentExceptTable[[#This Row],[Boundary M/L]])","v":0.25734617834446349},{"$f":"IF(AND(AND(kwpeak_norm>SegmentExceptTable[[#This Row],[kW Boundary]],kwpeak_norm<SegmentExceptTable[[#This Row],[kW Exception]]),AND(kwhmo_norm>SegmentExceptTable[[#This Row],[Boundary M/L]],kwhmo_norm<SegmentExceptTable[[#This Row],[Exception M/L]])),1,0)","v":0}]
[null,null,null,null,null,null,null,null,null,null,null,null,null,null,null,null,null,null,null,null,null,null,null,null,null,null,null,null,null,null,null,null,null,null,null,null,null,null,null,null,null,null,null,null,null,null,null,413,{"$f":"SegmentExceptTable[[#This Row],[Numbers]]/$BP$4","v":0.68948247078464109},{"$f":"SegmentExceptTable[[#This Row],[kW Boundary]]+(0.05*SegmentExceptTable[[#This Row],[kW Boundary]])","v":0.72395659432387316},{"$f":"$BP$6*SegmentExceptTable[[#This Row],[kW Boundary]]+$BP$7","v":0.98356357329366229},{"$f":"$BP$8*SegmentExceptTable[[#This Row],[kW Boundary]]+$BP$9","v":-0.2807917100793566},{"$f":"SegmentExceptTable[[#This Row],[Boundary S/M]]+(0.05*SegmentExceptTable[[#This Row],[Boundary S/M]])","v":-0.29483129558332444},{"$f":"IF(AND(AND(kwpeak_norm>SegmentExceptTable[[#This Row],[kW Boundary]],kwpeak_norm<SegmentExceptTable[[#This Row],[kW Exception]]),AND(kwhmo_norm>SegmentExceptTable[[#This Row],[Boundary S/M]],kwhmo_norm<SegmentExceptTable[[#This Row],[Exception S/M]])),1,0)","v":0},{"$f":"$BP$10*SegmentExceptTable[[#This Row],[kW Boundary]]+$BP$11","v":1.326725213714762},{"$f":"$BP$12*SegmentExceptTable[[#This Row],[kW Boundary]]+$BP$13","v":0.24430140339950984},{"$f":"SegmentExceptTable[[#This Row],[Boundary M/L]]+(0.05*SegmentExceptTable[[#This Row],[Boundary M/L]])","v":0.25651647356948531},{"$f":"IF(AND(AND(kwpeak_norm>SegmentExceptTable[[#This Row],[kW Boundary]],kwpeak_norm<SegmentExceptTable[[#This Row],[kW Exception]]),AND(kwhmo_norm>SegmentExceptTable[[#This Row],[Boundary M/L]],kwhmo_norm<SegmentExceptTable[[#This Row],[Exception M/L]])),1,0)","v":0}]
[null,null,null,null,null,null,null,null,null,null,null,null,null,null,null,null,null,null,null,null,null,null,null,null,null,null,null,null,null,null,null,null,null,null,null,null,null,null,null,null,null,null,null,null,null,null,null,414,{"$f":"SegmentExceptTable[[#This Row],[Numbers]]/$BP$4","v":0.69115191986644409},{"$f":"SegmentExceptTable[[#This Row],[kW Boundary]]+(0.05*SegmentExceptTable[[#This Row],[kW Boundary]])","v":0.72570951585976629},{"$f":"$BP$6*SegmentExceptTable[[#This Row],[kW Boundary]]+$BP$7","v":0.98599040358902856},{"$f":"$BP$8*SegmentExceptTable[[#This Row],[kW Boundary]]+$BP$9","v":-0.28194014647478749},{"$f":"SegmentExceptTable[[#This Row],[Boundary S/M]]+(0.05*SegmentExceptTable[[#This Row],[Boundary S/M]])","v":-0.29603715379852685},{"$f":"IF(AND(AND(kwpeak_norm>SegmentExceptTable[[#This Row],[kW Boundary]],kwpeak_norm<SegmentExceptTable[[#This Row],[kW Exception]]),AND(kwhmo_norm>SegmentExceptTable[[#This Row],[Boundary S/M]],kwhmo_norm<SegmentExceptTable[[#This Row],[Exception S/M]])),1,0)","v":0},{"$f":"$BP$10*SegmentExceptTable[[#This Row],[kW Boundary]]+$BP$11","v":1.3302522673570008},{"$f":"$BP$12*SegmentExceptTable[[#This Row],[kW Boundary]]+$BP$13","v":0.2435112083757211},{"$f":"SegmentExceptTable[[#This Row],[Boundary M/L]]+(0.05*SegmentExceptTable[[#This Row],[Boundary M/L]])","v":0.25568676879450714},{"$f":"IF(AND(AND(kwpeak_norm>SegmentExceptTable[[#This Row],[kW Boundary]],kwpeak_norm<SegmentExceptTable[[#This Row],[kW Exception]]),AND(kwhmo_norm>SegmentExceptTable[[#This Row],[Boundary M/L]],kwhmo_norm<SegmentExceptTable[[#This Row],[Exception M/L]])),1,0)","v":0}]
[null,null,null,null,null,null,null,null,null,null,null,null,null,null,null,null,null,null,null,null,null,null,null,null,null,null,null,null,null,null,null,null,null,null,null,null,null,null,null,null,null,null,null,null,null,null,null,415,{"$f":"SegmentExceptTable[[#This Row],[Numbers]]/$BP$4","v":0.69282136894824708},{"$f":"SegmentExceptTable[[#This Row],[kW Boundary]]+(0.05*SegmentExceptTable[[#This Row],[kW Boundary]])","v":0.72746243739565941},{"$f":"$BP$6*SegmentExceptTable[[#This Row],[kW Boundary]]+$BP$7","v":0.98841723388439484},{"$f":"$BP$8*SegmentExceptTable[[#This Row],[kW Boundary]]+$BP$9","v":-0.28308858287021832},{"$f":"SegmentExceptTable[[#This Row],[Boundary S/M]]+(0.05*SegmentExceptTable[[#This Row],[Boundary S/M]])","v":-0.29724301201372921},{"$f":"IF(AND(AND(kwpeak_norm>SegmentExceptTable[[#This Row],[kW Boundary]],kwpeak_norm<SegmentExceptTable[[#This Row],[kW Exception]]),AND(kwhmo_norm>SegmentExceptTable[[#This Row],[Boundary S/M]],kwhmo_norm<SegmentExceptTable[[#This Row],[Exception S/M]])),1,0)","v":0},{"$f":"$BP$10*SegmentExceptTable[[#This Row],[kW Boundary]]+$BP$11","v":1.3337793209992395},{"$f":"$BP$12*SegmentExceptTable[[#This Row],[kW Boundary]]+$BP$13","v":0.2427210133519323},{"$f":"SegmentExceptTable[[#This Row],[Boundary M/L]]+(0.05*SegmentExceptTable[[#This Row],[Boundary M/L]])","v":0.2548570640195289},{"$f":"IF(AND(AND(kwpeak_norm>SegmentExceptTable[[#This Row],[kW Boundary]],kwpeak_norm<SegmentExceptTable[[#This Row],[kW Exception]]),AND(kwhmo_norm>SegmentExceptTable[[#This Row],[Boundary M/L]],kwhmo_norm<SegmentExceptTable[[#This Row],[Exception M/L]])),1,0)","v":0}]
[null,null,null,null,null,null,null,null,null,null,null,null,null,null,null,null,null,null,null,null,null,null,null,null,null,null,null,null,null,null,null,null,null,null,null,null,null,null,null,null,null,null,null,null,null,null,null,416,{"$f":"SegmentExceptTable[[#This Row],[Numbers]]/$BP$4","v":0.69449081803005008},{"$f":"SegmentExceptTable[[#This Row],[kW Boundary]]+(0.05*SegmentExceptTable[[#This Row],[kW Boundary]])","v":0.72921535893155254},{"$f":"$BP$6*SegmentExceptTable[[#This Row],[kW Boundary]]+$BP$7","v":0.99084406417976112},{"$f":"$BP$8*SegmentExceptTable[[#This Row],[kW Boundary]]+$BP$9","v":-0.2842370192656492},{"$f":"SegmentExceptTable[[#This Row],[Boundary S/M]]+(0.05*SegmentExceptTable[[#This Row],[Boundary S/M]])","v":-0.29844887022893168},{"$f":"IF(AND(AND(kwpeak_norm>SegmentExceptTable[[#This Row],[kW Boundary]],kwpeak_norm<SegmentExceptTable[[#This Row],[kW Exception]]),AND(kwhmo_norm>SegmentExceptTable[[#This Row],[Boundary S/M]],kwhmo_norm<SegmentExceptTable[[#This Row],[Exception S/M]])),1,0)","v":0},{"$f":"$BP$10*SegmentExceptTable[[#This Row],[kW Boundary]]+$BP$11","v":1.3373063746414777},{"$f":"$BP$12*SegmentExceptTable[[#This Row],[kW Boundary]]+$BP$13","v":0.24193081832814356},{"$f":"SegmentExceptTable[[#This Row],[Boundary M/L]]+(0.05*SegmentExceptTable[[#This Row],[Boundary M/L]])","v":0.25402735924455072},{"$f":"IF(AND(AND(kwpeak_norm>SegmentExceptTable[[#This Row],[kW Boundary]],kwpeak_norm<SegmentExceptTable[[#This Row],[kW Exception]]),AND(kwhmo_norm>SegmentExceptTable[[#This Row],[Boundary M/L]],kwhmo_norm<SegmentExceptTable[[#This Row],[Exception M/L]])),1,0)","v":0}]
[null,null,null,null,null,null,null,null,null,null,null,null,null,null,null,null,null,null,null,null,null,null,null,null,null,null,null,null,null,null,null,null,null,null,null,null,null,null,null,null,null,null,null,null,null,null,null,417,{"$f":"SegmentExceptTable[[#This Row],[Numbers]]/$BP$4","v":0.69616026711185308},{"$f":"SegmentExceptTable[[#This Row],[kW Boundary]]+(0.05*SegmentExceptTable[[#This Row],[kW Boundary]])","v":0.73096828046744577},{"$f":"$BP$6*SegmentExceptTable[[#This Row],[kW Boundary]]+$BP$7","v":0.9932708944751274},{"$f":"$BP$8*SegmentExceptTable[[#This Row],[kW Boundary]]+$BP$9","v":-0.28538545566108009},{"$f":"SegmentExceptTable[[#This Row],[Boundary S/M]]+(0.05*SegmentExceptTable[[#This Row],[Boundary S/M]])","v":-0.2996547284441341},{"$f":"IF(AND(AND(kwpeak_norm>SegmentExceptTable[[#This Row],[kW Boundary]],kwpeak_norm<SegmentExceptTable[[#This Row],[kW Exception]]),AND(kwhmo_norm>SegmentExceptTable[[#This Row],[Boundary S/M]],kwhmo_norm<SegmentExceptTable[[#This Row],[Exception S/M]])),1,0)","v":0},{"$f":"$BP$10*SegmentExceptTable[[#This Row],[kW Boundary]]+$BP$11","v":1.3408334282837164},{"$f":"$BP$12*SegmentExceptTable[[#This Row],[kW Boundary]]+$BP$13","v":0.24114062330435482},{"$f":"SegmentExceptTable[[#This Row],[Boundary M/L]]+(0.05*SegmentExceptTable[[#This Row],[Boundary M/L]])","v":0.25319765446957254},{"$f":"IF(AND(AND(kwpeak_norm>SegmentExceptTable[[#This Row],[kW Boundary]],kwpeak_norm<SegmentExceptTable[[#This Row],[kW Exception]]),AND(kwhmo_norm>SegmentExceptTable[[#This Row],[Boundary M/L]],kwhmo_norm<SegmentExceptTable[[#This Row],[Exception M/L]])),1,0)","v":0}]
[null,null,null,null,null,null,null,null,null,null,null,null,null,null,null,null,null,null,null,null,null,null,null,null,null,null,null,null,null,null,null,null,null,null,null,null,null,null,null,null,null,null,null,null,null,null,null,418,{"$f":"SegmentExceptTable[[#This Row],[Numbers]]/$BP$4","v":0.69782971619365608},{"$f":"SegmentExceptTable[[#This Row],[kW Boundary]]+(0.05*SegmentExceptTable[[#This Row],[kW Boundary]])","v":0.7327212020033389},{"$f":"$BP$6*SegmentExceptTable[[#This Row],[kW Boundary]]+$BP$7","v":0.99569772477049368},{"$f":"$BP$8*SegmentExceptTable[[#This Row],[kW Boundary]]+$BP$9","v":-0.28653389205651097},{"$f":"SegmentExceptTable[[#This Row],[Boundary S/M]]+(0.05*SegmentExceptTable[[#This Row],[Boundary S/M]])","v":-0.30086058665933652},{"$f":"IF(AND(AND(kwpeak_norm>SegmentExceptTable[[#This Row],[kW Boundary]],kwpeak_norm<SegmentExceptTable[[#This Row],[kW Exception]]),AND(kwhmo_norm>SegmentExceptTable[[#This Row],[Boundary S/M]],kwhmo_norm<SegmentExceptTable[[#This Row],[Exception S/M]])),1,0)","v":0},{"$f":"$BP$10*SegmentExceptTable[[#This Row],[kW Boundary]]+$BP$11","v":1.3443604819259547},{"$f":"$BP$12*SegmentExceptTable[[#This Row],[kW Boundary]]+$BP$13","v":0.24035042828056608},{"$f":"SegmentExceptTable[[#This Row],[Boundary M/L]]+(0.05*SegmentExceptTable[[#This Row],[Boundary M/L]])","v":0.25236794969459436},{"$f":"IF(AND(AND(kwpeak_norm>SegmentExceptTable[[#This Row],[kW Boundary]],kwpeak_norm<SegmentExceptTable[[#This Row],[kW Exception]]),AND(kwhmo_norm>SegmentExceptTable[[#This Row],[Boundary M/L]],kwhmo_norm<SegmentExceptTable[[#This Row],[Exception M/L]])),1,0)","v":0}]
[null,null,null,null,null,null,null,null,null,null,null,null,null,null,null,null,null,null,null,null,null,null,null,null,null,null,null,null,null,null,null,null,null,null,null,null,null,null,null,null,null,null,null,null,null,null,null,419,{"$f":"SegmentExceptTable[[#This Row],[Numbers]]/$BP$4","v":0.69949916527545908},{"$f":"SegmentExceptTable[[#This Row],[kW Boundary]]+(0.05*SegmentExceptTable[[#This Row],[kW Boundary]])","v":0.73447412353923203},{"$f":"$BP$6*SegmentExceptTable[[#This Row],[kW Boundary]]+$BP$7","v":0.99812455506585995},{"$f":"$BP$8*SegmentExceptTable[[#This Row],[kW Boundary]]+$BP$9","v":-0.2876823284519418},{"$f":"SegmentExceptTable[[#This Row],[Boundary S/M]]+(0.05*SegmentExceptTable[[#This Row],[Boundary S/M]])","v":-0.30206644487453888},{"$f":"IF(AND(AND(kwpeak_norm>SegmentExceptTable[[#This Row],[kW Boundary]],kwpeak_norm<SegmentExceptTable[[#This Row],[kW Exception]]),AND(kwhmo_norm>SegmentExceptTable[[#This Row],[Boundary S/M]],kwhmo_norm<SegmentExceptTable[[#This Row],[Exception S/M]])),1,0)","v":0},{"$f":"$BP$10*SegmentExceptTable[[#This Row],[kW Boundary]]+$BP$11","v":1.3478875355681934},{"$f":"$BP$12*SegmentExceptTable[[#This Row],[kW Boundary]]+$BP$13","v":0.23956023325677733},{"$f":"SegmentExceptTable[[#This Row],[Boundary M/L]]+(0.05*SegmentExceptTable[[#This Row],[Boundary M/L]])","v":0.25153824491961618},{"$f":"IF(AND(AND(kwpeak_norm>SegmentExceptTable[[#This Row],[kW Boundary]],kwpeak_norm<SegmentExceptTable[[#This Row],[kW Exception]]),AND(kwhmo_norm>SegmentExceptTable[[#This Row],[Boundary M/L]],kwhmo_norm<SegmentExceptTable[[#This Row],[Exception M/L]])),1,0)","v":0}]
[null,null,null,null,null,null,null,null,null,null,null,null,null,null,null,null,null,null,null,null,null,null,null,null,null,null,null,null,null,null,null,null,null,null,null,null,null,null,null,null,null,null,null,null,null,null,null,420,{"$f":"SegmentExceptTable[[#This Row],[Numbers]]/$BP$4","v":0.70116861435726208},{"$f":"SegmentExceptTable[[#This Row],[kW Boundary]]+(0.05*SegmentExceptTable[[#This Row],[kW Boundary]])","v":0.73622704507512515},{"$f":"$BP$6*SegmentExceptTable[[#This Row],[kW Boundary]]+$BP$7","v":1.0005513853612262},{"$f":"$BP$8*SegmentExceptTable[[#This Row],[kW Boundary]]+$BP$9","v":-0.28883076484737269},{"$f":"SegmentExceptTable[[#This Row],[Boundary S/M]]+(0.05*SegmentExceptTable[[#This Row],[Boundary S/M]])","v":-0.30327230308974135},{"$f":"IF(AND(AND(kwpeak_norm>SegmentExceptTable[[#This Row],[kW Boundary]],kwpeak_norm<SegmentExceptTable[[#This Row],[kW Exception]]),AND(kwhmo_norm>SegmentExceptTable[[#This Row],[Boundary S/M]],kwhmo_norm<SegmentExceptTable[[#This Row],[Exception S/M]])),1,0)","v":0},{"$f":"$BP$10*SegmentExceptTable[[#This Row],[kW Boundary]]+$BP$11","v":1.3514145892104317},{"$f":"$BP$12*SegmentExceptTable[[#This Row],[kW Boundary]]+$BP$13","v":0.23877003823298854},{"$f":"SegmentExceptTable[[#This Row],[Boundary M/L]]+(0.05*SegmentExceptTable[[#This Row],[Boundary M/L]])","v":0.25070854014463795},{"$f":"IF(AND(AND(kwpeak_norm>SegmentExceptTable[[#This Row],[kW Boundary]],kwpeak_norm<SegmentExceptTable[[#This Row],[kW Exception]]),AND(kwhmo_norm>SegmentExceptTable[[#This Row],[Boundary M/L]],kwhmo_norm<SegmentExceptTable[[#This Row],[Exception M/L]])),1,0)","v":0}]
[null,null,null,null,null,null,null,null,null,null,null,null,null,null,null,null,null,null,null,null,null,null,null,null,null,null,null,null,null,null,null,null,null,null,null,null,null,null,null,null,null,null,null,null,null,null,null,421,{"$f":"SegmentExceptTable[[#This Row],[Numbers]]/$BP$4","v":0.70283806343906507},{"$f":"SegmentExceptTable[[#This Row],[kW Boundary]]+(0.05*SegmentExceptTable[[#This Row],[kW Boundary]])","v":0.73797996661101828},{"$f":"$BP$6*SegmentExceptTable[[#This Row],[kW Boundary]]+$BP$7","v":1.0029782156565925},{"$f":"$BP$8*SegmentExceptTable[[#This Row],[kW Boundary]]+$BP$9","v":-0.28997920124280357},{"$f":"SegmentExceptTable[[#This Row],[Boundary S/M]]+(0.05*SegmentExceptTable[[#This Row],[Boundary S/M]])","v":-0.30447816130494376},{"$f":"IF(AND(AND(kwpeak_norm>SegmentExceptTable[[#This Row],[kW Boundary]],kwpeak_norm<SegmentExceptTable[[#This Row],[kW Exception]]),AND(kwhmo_norm>SegmentExceptTable[[#This Row],[Boundary S/M]],kwhmo_norm<SegmentExceptTable[[#This Row],[Exception S/M]])),1,0)","v":0},{"$f":"$BP$10*SegmentExceptTable[[#This Row],[kW Boundary]]+$BP$11","v":1.3549416428526704},{"$f":"$BP$12*SegmentExceptTable[[#This Row],[kW Boundary]]+$BP$13","v":0.23797984320919979},{"$f":"SegmentExceptTable[[#This Row],[Boundary M/L]]+(0.05*SegmentExceptTable[[#This Row],[Boundary M/L]])","v":0.24987883536965977},{"$f":"IF(AND(AND(kwpeak_norm>SegmentExceptTable[[#This Row],[kW Boundary]],kwpeak_norm<SegmentExceptTable[[#This Row],[kW Exception]]),AND(kwhmo_norm>SegmentExceptTable[[#This Row],[Boundary M/L]],kwhmo_norm<SegmentExceptTable[[#This Row],[Exception M/L]])),1,0)","v":0}]
[null,null,null,null,null,null,null,null,null,null,null,null,null,null,null,null,null,null,null,null,null,null,null,null,null,null,null,null,null,null,null,null,null,null,null,null,null,null,null,null,null,null,null,null,null,null,null,422,{"$f":"SegmentExceptTable[[#This Row],[Numbers]]/$BP$4","v":0.70450751252086807},{"$f":"SegmentExceptTable[[#This Row],[kW Boundary]]+(0.05*SegmentExceptTable[[#This Row],[kW Boundary]])","v":0.73973288814691152},{"$f":"$BP$6*SegmentExceptTable[[#This Row],[kW Boundary]]+$BP$7","v":1.0054050459519588},{"$f":"$BP$8*SegmentExceptTable[[#This Row],[kW Boundary]]+$BP$9","v":-0.29112763763823446},{"$f":"SegmentExceptTable[[#This Row],[Boundary S/M]]+(0.05*SegmentExceptTable[[#This Row],[Boundary S/M]])","v":-0.30568401952014618},{"$f":"IF(AND(AND(kwpeak_norm>SegmentExceptTable[[#This Row],[kW Boundary]],kwpeak_norm<SegmentExceptTable[[#This Row],[kW Exception]]),AND(kwhmo_norm>SegmentExceptTable[[#This Row],[Boundary S/M]],kwhmo_norm<SegmentExceptTable[[#This Row],[Exception S/M]])),1,0)","v":0},{"$f":"$BP$10*SegmentExceptTable[[#This Row],[kW Boundary]]+$BP$11","v":1.3584686964949091},{"$f":"$BP$12*SegmentExceptTable[[#This Row],[kW Boundary]]+$BP$13","v":0.23718964818541105},{"$f":"SegmentExceptTable[[#This Row],[Boundary M/L]]+(0.05*SegmentExceptTable[[#This Row],[Boundary M/L]])","v":0.24904913059468159},{"$f":"IF(AND(AND(kwpeak_norm>SegmentExceptTable[[#This Row],[kW Boundary]],kwpeak_norm<SegmentExceptTable[[#This Row],[kW Exception]]),AND(kwhmo_norm>SegmentExceptTable[[#This Row],[Boundary M/L]],kwhmo_norm<SegmentExceptTable[[#This Row],[Exception M/L]])),1,0)","v":0}]
[null,null,null,null,null,null,null,null,null,null,null,null,null,null,null,null,null,null,null,null,null,null,null,null,null,null,null,null,null,null,null,null,null,null,null,null,null,null,null,null,null,null,null,null,null,null,null,423,{"$f":"SegmentExceptTable[[#This Row],[Numbers]]/$BP$4","v":0.70617696160267107},{"$f":"SegmentExceptTable[[#This Row],[kW Boundary]]+(0.05*SegmentExceptTable[[#This Row],[kW Boundary]])","v":0.74148580968280464},{"$f":"$BP$6*SegmentExceptTable[[#This Row],[kW Boundary]]+$BP$7","v":1.0078318762473251},{"$f":"$BP$8*SegmentExceptTable[[#This Row],[kW Boundary]]+$BP$9","v":-0.29227607403366535},{"$f":"SegmentExceptTable[[#This Row],[Boundary S/M]]+(0.05*SegmentExceptTable[[#This Row],[Boundary S/M]])","v":-0.30688987773534859},{"$f":"IF(AND(AND(kwpeak_norm>SegmentExceptTable[[#This Row],[kW Boundary]],kwpeak_norm<SegmentExceptTable[[#This Row],[kW Exception]]),AND(kwhmo_norm>SegmentExceptTable[[#This Row],[Boundary S/M]],kwhmo_norm<SegmentExceptTable[[#This Row],[Exception S/M]])),1,0)","v":0},{"$f":"$BP$10*SegmentExceptTable[[#This Row],[kW Boundary]]+$BP$11","v":1.3619957501371474},{"$f":"$BP$12*SegmentExceptTable[[#This Row],[kW Boundary]]+$BP$13","v":0.23639945316162231},{"$f":"SegmentExceptTable[[#This Row],[Boundary M/L]]+(0.05*SegmentExceptTable[[#This Row],[Boundary M/L]])","v":0.24821942581970341},{"$f":"IF(AND(AND(kwpeak_norm>SegmentExceptTable[[#This Row],[kW Boundary]],kwpeak_norm<SegmentExceptTable[[#This Row],[kW Exception]]),AND(kwhmo_norm>SegmentExceptTable[[#This Row],[Boundary M/L]],kwhmo_norm<SegmentExceptTable[[#This Row],[Exception M/L]])),1,0)","v":0}]
[null,null,null,null,null,null,null,null,null,null,null,null,null,null,null,null,null,null,null,null,null,null,null,null,null,null,null,null,null,null,null,null,null,null,null,null,null,null,null,null,null,null,null,null,null,null,null,424,{"$f":"SegmentExceptTable[[#This Row],[Numbers]]/$BP$4","v":0.70784641068447407},{"$f":"SegmentExceptTable[[#This Row],[kW Boundary]]+(0.05*SegmentExceptTable[[#This Row],[kW Boundary]])","v":0.74323873121869777},{"$f":"$BP$6*SegmentExceptTable[[#This Row],[kW Boundary]]+$BP$7","v":1.0102587065426913},{"$f":"$BP$8*SegmentExceptTable[[#This Row],[kW Boundary]]+$BP$9","v":-0.29342451042909617},{"$f":"SegmentExceptTable[[#This Row],[Boundary S/M]]+(0.05*SegmentExceptTable[[#This Row],[Boundary S/M]])","v":-0.30809573595055101},{"$f":"IF(AND(AND(kwpeak_norm>SegmentExceptTable[[#This Row],[kW Boundary]],kwpeak_norm<SegmentExceptTable[[#This Row],[kW Exception]]),AND(kwhmo_norm>SegmentExceptTable[[#This Row],[Boundary S/M]],kwhmo_norm<SegmentExceptTable[[#This Row],[Exception S/M]])),1,0)","v":0},{"$f":"$BP$10*SegmentExceptTable[[#This Row],[kW Boundary]]+$BP$11","v":1.3655228037793861},{"$f":"$BP$12*SegmentExceptTable[[#This Row],[kW Boundary]]+$BP$13","v":0.23560925813783357},{"$f":"SegmentExceptTable[[#This Row],[Boundary M/L]]+(0.05*SegmentExceptTable[[#This Row],[Boundary M/L]])","v":0.24738972104472523},{"$f":"IF(AND(AND(kwpeak_norm>SegmentExceptTable[[#This Row],[kW Boundary]],kwpeak_norm<SegmentExceptTable[[#This Row],[kW Exception]]),AND(kwhmo_norm>SegmentExceptTable[[#This Row],[Boundary M/L]],kwhmo_norm<SegmentExceptTable[[#This Row],[Exception M/L]])),1,0)","v":0}]
[null,null,null,null,null,null,null,null,null,null,null,null,null,null,null,null,null,null,null,null,null,null,null,null,null,null,null,null,null,null,null,null,null,null,null,null,null,null,null,null,null,null,null,null,null,null,null,425,{"$f":"SegmentExceptTable[[#This Row],[Numbers]]/$BP$4","v":0.70951585976627718},{"$f":"SegmentExceptTable[[#This Row],[kW Boundary]]+(0.05*SegmentExceptTable[[#This Row],[kW Boundary]])","v":0.744991652754591},{"$f":"$BP$6*SegmentExceptTable[[#This Row],[kW Boundary]]+$BP$7","v":1.0126855368380576},{"$f":"$BP$8*SegmentExceptTable[[#This Row],[kW Boundary]]+$BP$9","v":-0.29457294682452712},{"$f":"SegmentExceptTable[[#This Row],[Boundary S/M]]+(0.05*SegmentExceptTable[[#This Row],[Boundary S/M]])","v":-0.30930159416575348},{"$f":"IF(AND(AND(kwpeak_norm>SegmentExceptTable[[#This Row],[kW Boundary]],kwpeak_norm<SegmentExceptTable[[#This Row],[kW Exception]]),AND(kwhmo_norm>SegmentExceptTable[[#This Row],[Boundary S/M]],kwhmo_norm<SegmentExceptTable[[#This Row],[Exception S/M]])),1,0)","v":0},{"$f":"$BP$10*SegmentExceptTable[[#This Row],[kW Boundary]]+$BP$11","v":1.3690498574216248},{"$f":"$BP$12*SegmentExceptTable[[#This Row],[kW Boundary]]+$BP$13","v":0.23481906311404471},{"$f":"SegmentExceptTable[[#This Row],[Boundary M/L]]+(0.05*SegmentExceptTable[[#This Row],[Boundary M/L]])","v":0.24656001626974694},{"$f":"IF(AND(AND(kwpeak_norm>SegmentExceptTable[[#This Row],[kW Boundary]],kwpeak_norm<SegmentExceptTable[[#This Row],[kW Exception]]),AND(kwhmo_norm>SegmentExceptTable[[#This Row],[Boundary M/L]],kwhmo_norm<SegmentExceptTable[[#This Row],[Exception M/L]])),1,0)","v":0}]
[null,null,null,null,null,null,null,null,null,null,null,null,null,null,null,null,null,null,null,null,null,null,null,null,null,null,null,null,null,null,null,null,null,null,null,null,null,null,null,null,null,null,null,null,null,null,null,426,{"$f":"SegmentExceptTable[[#This Row],[Numbers]]/$BP$4","v":0.71118530884808018},{"$f":"SegmentExceptTable[[#This Row],[kW Boundary]]+(0.05*SegmentExceptTable[[#This Row],[kW Boundary]])","v":0.74674457429048413},{"$f":"$BP$6*SegmentExceptTable[[#This Row],[kW Boundary]]+$BP$7","v":1.0151123671334239},{"$f":"$BP$8*SegmentExceptTable[[#This Row],[kW Boundary]]+$BP$9","v":-0.295721383219958},{"$f":"SegmentExceptTable[[#This Row],[Boundary S/M]]+(0.05*SegmentExceptTable[[#This Row],[Boundary S/M]])","v":-0.3105074523809559},{"$f":"IF(AND(AND(kwpeak_norm>SegmentExceptTable[[#This Row],[kW Boundary]],kwpeak_norm<SegmentExceptTable[[#This Row],[kW Exception]]),AND(kwhmo_norm>SegmentExceptTable[[#This Row],[Boundary S/M]],kwhmo_norm<SegmentExceptTable[[#This Row],[Exception S/M]])),1,0)","v":0},{"$f":"$BP$10*SegmentExceptTable[[#This Row],[kW Boundary]]+$BP$11","v":1.372576911063863},{"$f":"$BP$12*SegmentExceptTable[[#This Row],[kW Boundary]]+$BP$13","v":0.23402886809025597},{"$f":"SegmentExceptTable[[#This Row],[Boundary M/L]]+(0.05*SegmentExceptTable[[#This Row],[Boundary M/L]])","v":0.24573031149476876},{"$f":"IF(AND(AND(kwpeak_norm>SegmentExceptTable[[#This Row],[kW Boundary]],kwpeak_norm<SegmentExceptTable[[#This Row],[kW Exception]]),AND(kwhmo_norm>SegmentExceptTable[[#This Row],[Boundary M/L]],kwhmo_norm<SegmentExceptTable[[#This Row],[Exception M/L]])),1,0)","v":0}]
[null,null,null,null,null,null,null,null,null,null,null,null,null,null,null,null,null,null,null,null,null,null,null,null,null,null,null,null,null,null,null,null,null,null,null,null,null,null,null,null,null,null,null,null,null,null,null,427,{"$f":"SegmentExceptTable[[#This Row],[Numbers]]/$BP$4","v":0.71285475792988318},{"$f":"SegmentExceptTable[[#This Row],[kW Boundary]]+(0.05*SegmentExceptTable[[#This Row],[kW Boundary]])","v":0.74849749582637737},{"$f":"$BP$6*SegmentExceptTable[[#This Row],[kW Boundary]]+$BP$7","v":1.0175391974287902},{"$f":"$BP$8*SegmentExceptTable[[#This Row],[kW Boundary]]+$BP$9","v":-0.29686981961538889},{"$f":"SegmentExceptTable[[#This Row],[Boundary S/M]]+(0.05*SegmentExceptTable[[#This Row],[Boundary S/M]])","v":-0.31171331059615831},{"$f":"IF(AND(AND(kwpeak_norm>SegmentExceptTable[[#This Row],[kW Boundary]],kwpeak_norm<SegmentExceptTable[[#This Row],[kW Exception]]),AND(kwhmo_norm>SegmentExceptTable[[#This Row],[Boundary S/M]],kwhmo_norm<SegmentExceptTable[[#This Row],[Exception S/M]])),1,0)","v":0},{"$f":"$BP$10*SegmentExceptTable[[#This Row],[kW Boundary]]+$BP$11","v":1.3761039647061017},{"$f":"$BP$12*SegmentExceptTable[[#This Row],[kW Boundary]]+$BP$13","v":0.23323867306646723},{"$f":"SegmentExceptTable[[#This Row],[Boundary M/L]]+(0.05*SegmentExceptTable[[#This Row],[Boundary M/L]])","v":0.24490060671979058},{"$f":"IF(AND(AND(kwpeak_norm>SegmentExceptTable[[#This Row],[kW Boundary]],kwpeak_norm<SegmentExceptTable[[#This Row],[kW Exception]]),AND(kwhmo_norm>SegmentExceptTable[[#This Row],[Boundary M/L]],kwhmo_norm<SegmentExceptTable[[#This Row],[Exception M/L]])),1,0)","v":0}]
[null,null,null,null,null,null,null,null,null,null,null,null,null,null,null,null,null,null,null,null,null,null,null,null,null,null,null,null,null,null,null,null,null,null,null,null,null,null,null,null,null,null,null,null,null,null,null,428,{"$f":"SegmentExceptTable[[#This Row],[Numbers]]/$BP$4","v":0.71452420701168617},{"$f":"SegmentExceptTable[[#This Row],[kW Boundary]]+(0.05*SegmentExceptTable[[#This Row],[kW Boundary]])","v":0.75025041736227049},{"$f":"$BP$6*SegmentExceptTable[[#This Row],[kW Boundary]]+$BP$7","v":1.0199660277241565},{"$f":"$BP$8*SegmentExceptTable[[#This Row],[kW Boundary]]+$BP$9","v":-0.29801825601081977},{"$f":"SegmentExceptTable[[#This Row],[Boundary S/M]]+(0.05*SegmentExceptTable[[#This Row],[Boundary S/M]])","v":-0.31291916881136078},{"$f":"IF(AND(AND(kwpeak_norm>SegmentExceptTable[[#This Row],[kW Boundary]],kwpeak_norm<SegmentExceptTable[[#This Row],[kW Exception]]),AND(kwhmo_norm>SegmentExceptTable[[#This Row],[Boundary S/M]],kwhmo_norm<SegmentExceptTable[[#This Row],[Exception S/M]])),1,0)","v":0},{"$f":"$BP$10*SegmentExceptTable[[#This Row],[kW Boundary]]+$BP$11","v":1.37963101834834},{"$f":"$BP$12*SegmentExceptTable[[#This Row],[kW Boundary]]+$BP$13","v":0.23244847804267849},{"$f":"SegmentExceptTable[[#This Row],[Boundary M/L]]+(0.05*SegmentExceptTable[[#This Row],[Boundary M/L]])","v":0.2440709019448124},{"$f":"IF(AND(AND(kwpeak_norm>SegmentExceptTable[[#This Row],[kW Boundary]],kwpeak_norm<SegmentExceptTable[[#This Row],[kW Exception]]),AND(kwhmo_norm>SegmentExceptTable[[#This Row],[Boundary M/L]],kwhmo_norm<SegmentExceptTable[[#This Row],[Exception M/L]])),1,0)","v":0}]
[null,null,null,null,null,null,null,null,null,null,null,null,null,null,null,null,null,null,null,null,null,null,null,null,null,null,null,null,null,null,null,null,null,null,null,null,null,null,null,null,null,null,null,null,null,null,null,429,{"$f":"SegmentExceptTable[[#This Row],[Numbers]]/$BP$4","v":0.71619365609348917},{"$f":"SegmentExceptTable[[#This Row],[kW Boundary]]+(0.05*SegmentExceptTable[[#This Row],[kW Boundary]])","v":0.75200333889816362},{"$f":"$BP$6*SegmentExceptTable[[#This Row],[kW Boundary]]+$BP$7","v":1.0223928580195227},{"$f":"$BP$8*SegmentExceptTable[[#This Row],[kW Boundary]]+$BP$9","v":-0.2991666924062506},{"$f":"SegmentExceptTable[[#This Row],[Boundary S/M]]+(0.05*SegmentExceptTable[[#This Row],[Boundary S/M]])","v":-0.31412502702656314},{"$f":"IF(AND(AND(kwpeak_norm>SegmentExceptTable[[#This Row],[kW Boundary]],kwpeak_norm<SegmentExceptTable[[#This Row],[kW Exception]]),AND(kwhmo_norm>SegmentExceptTable[[#This Row],[Boundary S/M]],kwhmo_norm<SegmentExceptTable[[#This Row],[Exception S/M]])),1,0)","v":0},{"$f":"$BP$10*SegmentExceptTable[[#This Row],[kW Boundary]]+$BP$11","v":1.3831580719905787},{"$f":"$BP$12*SegmentExceptTable[[#This Row],[kW Boundary]]+$BP$13","v":0.23165828301888974},{"$f":"SegmentExceptTable[[#This Row],[Boundary M/L]]+(0.05*SegmentExceptTable[[#This Row],[Boundary M/L]])","v":0.24324119716983422},{"$f":"IF(AND(AND(kwpeak_norm>SegmentExceptTable[[#This Row],[kW Boundary]],kwpeak_norm<SegmentExceptTable[[#This Row],[kW Exception]]),AND(kwhmo_norm>SegmentExceptTable[[#This Row],[Boundary M/L]],kwhmo_norm<SegmentExceptTable[[#This Row],[Exception M/L]])),1,0)","v":0}]
[null,null,null,null,null,null,null,null,null,null,null,null,null,null,null,null,null,null,null,null,null,null,null,null,null,null,null,null,null,null,null,null,null,null,null,null,null,null,null,null,null,null,null,null,null,null,null,430,{"$f":"SegmentExceptTable[[#This Row],[Numbers]]/$BP$4","v":0.71786310517529217},{"$f":"SegmentExceptTable[[#This Row],[kW Boundary]]+(0.05*SegmentExceptTable[[#This Row],[kW Boundary]])","v":0.75375626043405675},{"$f":"$BP$6*SegmentExceptTable[[#This Row],[kW Boundary]]+$BP$7","v":1.024819688314889},{"$f":"$BP$8*SegmentExceptTable[[#This Row],[kW Boundary]]+$BP$9","v":-0.30031512880168149},{"$f":"SegmentExceptTable[[#This Row],[Boundary S/M]]+(0.05*SegmentExceptTable[[#This Row],[Boundary S/M]])","v":-0.31533088524176556},{"$f":"IF(AND(AND(kwpeak_norm>SegmentExceptTable[[#This Row],[kW Boundary]],kwpeak_norm<SegmentExceptTable[[#This Row],[kW Exception]]),AND(kwhmo_norm>SegmentExceptTable[[#This Row],[Boundary S/M]],kwhmo_norm<SegmentExceptTable[[#This Row],[Exception S/M]])),1,0)","v":0},{"$f":"$BP$10*SegmentExceptTable[[#This Row],[kW Boundary]]+$BP$11","v":1.3866851256328174},{"$f":"$BP$12*SegmentExceptTable[[#This Row],[kW Boundary]]+$BP$13","v":0.23086808799510095},{"$f":"SegmentExceptTable[[#This Row],[Boundary M/L]]+(0.05*SegmentExceptTable[[#This Row],[Boundary M/L]])","v":0.24241149239485599},{"$f":"IF(AND(AND(kwpeak_norm>SegmentExceptTable[[#This Row],[kW Boundary]],kwpeak_norm<SegmentExceptTable[[#This Row],[kW Exception]]),AND(kwhmo_norm>SegmentExceptTable[[#This Row],[Boundary M/L]],kwhmo_norm<SegmentExceptTable[[#This Row],[Exception M/L]])),1,0)","v":0}]
[null,null,null,null,null,null,null,null,null,null,null,null,null,null,null,null,null,null,null,null,null,null,null,null,null,null,null,null,null,null,null,null,null,null,null,null,null,null,null,null,null,null,null,null,null,null,null,431,{"$f":"SegmentExceptTable[[#This Row],[Numbers]]/$BP$4","v":0.71953255425709517},{"$f":"SegmentExceptTable[[#This Row],[kW Boundary]]+(0.05*SegmentExceptTable[[#This Row],[kW Boundary]])","v":0.75550918196994998},{"$f":"$BP$6*SegmentExceptTable[[#This Row],[kW Boundary]]+$BP$7","v":1.0272465186102553},{"$f":"$BP$8*SegmentExceptTable[[#This Row],[kW Boundary]]+$BP$9","v":-0.30146356519711237},{"$f":"SegmentExceptTable[[#This Row],[Boundary S/M]]+(0.05*SegmentExceptTable[[#This Row],[Boundary S/M]])","v":-0.31653674345696797},{"$f":"IF(AND(AND(kwpeak_norm>SegmentExceptTable[[#This Row],[kW Boundary]],kwpeak_norm<SegmentExceptTable[[#This Row],[kW Exception]]),AND(kwhmo_norm>SegmentExceptTable[[#This Row],[Boundary S/M]],kwhmo_norm<SegmentExceptTable[[#This Row],[Exception S/M]])),1,0)","v":0},{"$f":"$BP$10*SegmentExceptTable[[#This Row],[kW Boundary]]+$BP$11","v":1.3902121792750557},{"$f":"$BP$12*SegmentExceptTable[[#This Row],[kW Boundary]]+$BP$13","v":0.2300778929713122},{"$f":"SegmentExceptTable[[#This Row],[Boundary M/L]]+(0.05*SegmentExceptTable[[#This Row],[Boundary M/L]])","v":0.24158178761987781},{"$f":"IF(AND(AND(kwpeak_norm>SegmentExceptTable[[#This Row],[kW Boundary]],kwpeak_norm<SegmentExceptTable[[#This Row],[kW Exception]]),AND(kwhmo_norm>SegmentExceptTable[[#This Row],[Boundary M/L]],kwhmo_norm<SegmentExceptTable[[#This Row],[Exception M/L]])),1,0)","v":0}]
[null,null,null,null,null,null,null,null,null,null,null,null,null,null,null,null,null,null,null,null,null,null,null,null,null,null,null,null,null,null,null,null,null,null,null,null,null,null,null,null,null,null,null,null,null,null,null,432,{"$f":"SegmentExceptTable[[#This Row],[Numbers]]/$BP$4","v":0.72120200333889817},{"$f":"SegmentExceptTable[[#This Row],[kW Boundary]]+(0.05*SegmentExceptTable[[#This Row],[kW Boundary]])","v":0.75726210350584311},{"$f":"$BP$6*SegmentExceptTable[[#This Row],[kW Boundary]]+$BP$7","v":1.0296733489056216},{"$f":"$BP$8*SegmentExceptTable[[#This Row],[kW Boundary]]+$BP$9","v":-0.30261200159254326},{"$f":"SegmentExceptTable[[#This Row],[Boundary S/M]]+(0.05*SegmentExceptTable[[#This Row],[Boundary S/M]])","v":-0.31774260167217044},{"$f":"IF(AND(AND(kwpeak_norm>SegmentExceptTable[[#This Row],[kW Boundary]],kwpeak_norm<SegmentExceptTable[[#This Row],[kW Exception]]),AND(kwhmo_norm>SegmentExceptTable[[#This Row],[Boundary S/M]],kwhmo_norm<SegmentExceptTable[[#This Row],[Exception S/M]])),1,0)","v":0},{"$f":"$BP$10*SegmentExceptTable[[#This Row],[kW Boundary]]+$BP$11","v":1.3937392329172944},{"$f":"$BP$12*SegmentExceptTable[[#This Row],[kW Boundary]]+$BP$13","v":0.22928769794752346},{"$f":"SegmentExceptTable[[#This Row],[Boundary M/L]]+(0.05*SegmentExceptTable[[#This Row],[Boundary M/L]])","v":0.24075208284489963},{"$f":"IF(AND(AND(kwpeak_norm>SegmentExceptTable[[#This Row],[kW Boundary]],kwpeak_norm<SegmentExceptTable[[#This Row],[kW Exception]]),AND(kwhmo_norm>SegmentExceptTable[[#This Row],[Boundary M/L]],kwhmo_norm<SegmentExceptTable[[#This Row],[Exception M/L]])),1,0)","v":0}]
[null,null,null,null,null,null,null,null,null,null,null,null,null,null,null,null,null,null,null,null,null,null,null,null,null,null,null,null,null,null,null,null,null,null,null,null,null,null,null,null,null,null,null,null,null,null,null,433,{"$f":"SegmentExceptTable[[#This Row],[Numbers]]/$BP$4","v":0.72287145242070117},{"$f":"SegmentExceptTable[[#This Row],[kW Boundary]]+(0.05*SegmentExceptTable[[#This Row],[kW Boundary]])","v":0.75901502504173624},{"$f":"$BP$6*SegmentExceptTable[[#This Row],[kW Boundary]]+$BP$7","v":1.0321001792009878},{"$f":"$BP$8*SegmentExceptTable[[#This Row],[kW Boundary]]+$BP$9","v":-0.30376043798797409},{"$f":"SegmentExceptTable[[#This Row],[Boundary S/M]]+(0.05*SegmentExceptTable[[#This Row],[Boundary S/M]])","v":-0.3189484598873728},{"$f":"IF(AND(AND(kwpeak_norm>SegmentExceptTable[[#This Row],[kW Boundary]],kwpeak_norm<SegmentExceptTable[[#This Row],[kW Exception]]),AND(kwhmo_norm>SegmentExceptTable[[#This Row],[Boundary S/M]],kwhmo_norm<SegmentExceptTable[[#This Row],[Exception S/M]])),1,0)","v":0},{"$f":"$BP$10*SegmentExceptTable[[#This Row],[kW Boundary]]+$BP$11","v":1.3972662865595327},{"$f":"$BP$12*SegmentExceptTable[[#This Row],[kW Boundary]]+$BP$13","v":0.22849750292373472},{"$f":"SegmentExceptTable[[#This Row],[Boundary M/L]]+(0.05*SegmentExceptTable[[#This Row],[Boundary M/L]])","v":0.23992237806992145},{"$f":"IF(AND(AND(kwpeak_norm>SegmentExceptTable[[#This Row],[kW Boundary]],kwpeak_norm<SegmentExceptTable[[#This Row],[kW Exception]]),AND(kwhmo_norm>SegmentExceptTable[[#This Row],[Boundary M/L]],kwhmo_norm<SegmentExceptTable[[#This Row],[Exception M/L]])),1,0)","v":0}]
[null,null,null,null,null,null,null,null,null,null,null,null,null,null,null,null,null,null,null,null,null,null,null,null,null,null,null,null,null,null,null,null,null,null,null,null,null,null,null,null,null,null,null,null,null,null,null,434,{"$f":"SegmentExceptTable[[#This Row],[Numbers]]/$BP$4","v":0.72454090150250416},{"$f":"SegmentExceptTable[[#This Row],[kW Boundary]]+(0.05*SegmentExceptTable[[#This Row],[kW Boundary]])","v":0.76076794657762936},{"$f":"$BP$6*SegmentExceptTable[[#This Row],[kW Boundary]]+$BP$7","v":1.0345270094963541},{"$f":"$BP$8*SegmentExceptTable[[#This Row],[kW Boundary]]+$BP$9","v":-0.30490887438340497},{"$f":"SegmentExceptTable[[#This Row],[Boundary S/M]]+(0.05*SegmentExceptTable[[#This Row],[Boundary S/M]])","v":-0.32015431810257522},{"$f":"IF(AND(AND(kwpeak_norm>SegmentExceptTable[[#This Row],[kW Boundary]],kwpeak_norm<SegmentExceptTable[[#This Row],[kW Exception]]),AND(kwhmo_norm>SegmentExceptTable[[#This Row],[Boundary S/M]],kwhmo_norm<SegmentExceptTable[[#This Row],[Exception S/M]])),1,0)","v":0},{"$f":"$BP$10*SegmentExceptTable[[#This Row],[kW Boundary]]+$BP$11","v":1.4007933402017714},{"$f":"$BP$12*SegmentExceptTable[[#This Row],[kW Boundary]]+$BP$13","v":0.22770730789994598},{"$f":"SegmentExceptTable[[#This Row],[Boundary M/L]]+(0.05*SegmentExceptTable[[#This Row],[Boundary M/L]])","v":0.23909267329494327},{"$f":"IF(AND(AND(kwpeak_norm>SegmentExceptTable[[#This Row],[kW Boundary]],kwpeak_norm<SegmentExceptTable[[#This Row],[kW Exception]]),AND(kwhmo_norm>SegmentExceptTable[[#This Row],[Boundary M/L]],kwhmo_norm<SegmentExceptTable[[#This Row],[Exception M/L]])),1,0)","v":0}]
[null,null,null,null,null,null,null,null,null,null,null,null,null,null,null,null,null,null,null,null,null,null,null,null,null,null,null,null,null,null,null,null,null,null,null,null,null,null,null,null,null,null,null,null,null,null,null,435,{"$f":"SegmentExceptTable[[#This Row],[Numbers]]/$BP$4","v":0.72621035058430716},{"$f":"SegmentExceptTable[[#This Row],[kW Boundary]]+(0.05*SegmentExceptTable[[#This Row],[kW Boundary]])","v":0.76252086811352249},{"$f":"$BP$6*SegmentExceptTable[[#This Row],[kW Boundary]]+$BP$7","v":1.0369538397917204},{"$f":"$BP$8*SegmentExceptTable[[#This Row],[kW Boundary]]+$BP$9","v":-0.30605731077883586},{"$f":"SegmentExceptTable[[#This Row],[Boundary S/M]]+(0.05*SegmentExceptTable[[#This Row],[Boundary S/M]])","v":-0.32136017631777763},{"$f":"IF(AND(AND(kwpeak_norm>SegmentExceptTable[[#This Row],[kW Boundary]],kwpeak_norm<SegmentExceptTable[[#This Row],[kW Exception]]),AND(kwhmo_norm>SegmentExceptTable[[#This Row],[Boundary S/M]],kwhmo_norm<SegmentExceptTable[[#This Row],[Exception S/M]])),1,0)","v":0},{"$f":"$BP$10*SegmentExceptTable[[#This Row],[kW Boundary]]+$BP$11","v":1.4043203938440096},{"$f":"$BP$12*SegmentExceptTable[[#This Row],[kW Boundary]]+$BP$13","v":0.22691711287615718},{"$f":"SegmentExceptTable[[#This Row],[Boundary M/L]]+(0.05*SegmentExceptTable[[#This Row],[Boundary M/L]])","v":0.23826296851996503},{"$f":"IF(AND(AND(kwpeak_norm>SegmentExceptTable[[#This Row],[kW Boundary]],kwpeak_norm<SegmentExceptTable[[#This Row],[kW Exception]]),AND(kwhmo_norm>SegmentExceptTable[[#This Row],[Boundary M/L]],kwhmo_norm<SegmentExceptTable[[#This Row],[Exception M/L]])),1,0)","v":0}]
[null,null,null,null,null,null,null,null,null,null,null,null,null,null,null,null,null,null,null,null,null,null,null,null,null,null,null,null,null,null,null,null,null,null,null,null,null,null,null,null,null,null,null,null,null,null,null,436,{"$f":"SegmentExceptTable[[#This Row],[Numbers]]/$BP$4","v":0.72787979966611016},{"$f":"SegmentExceptTable[[#This Row],[kW Boundary]]+(0.05*SegmentExceptTable[[#This Row],[kW Boundary]])","v":0.76427378964941561},{"$f":"$BP$6*SegmentExceptTable[[#This Row],[kW Boundary]]+$BP$7","v":1.0393806700870867},{"$f":"$BP$8*SegmentExceptTable[[#This Row],[kW Boundary]]+$BP$9","v":-0.30720574717426674},{"$f":"SegmentExceptTable[[#This Row],[Boundary S/M]]+(0.05*SegmentExceptTable[[#This Row],[Boundary S/M]])","v":-0.32256603453298005},{"$f":"IF(AND(AND(kwpeak_norm>SegmentExceptTable[[#This Row],[kW Boundary]],kwpeak_norm<SegmentExceptTable[[#This Row],[kW Exception]]),AND(kwhmo_norm>SegmentExceptTable[[#This Row],[Boundary S/M]],kwhmo_norm<SegmentExceptTable[[#This Row],[Exception S/M]])),1,0)","v":0},{"$f":"$BP$10*SegmentExceptTable[[#This Row],[kW Boundary]]+$BP$11","v":1.4078474474862483},{"$f":"$BP$12*SegmentExceptTable[[#This Row],[kW Boundary]]+$BP$13","v":0.22612691785236844},{"$f":"SegmentExceptTable[[#This Row],[Boundary M/L]]+(0.05*SegmentExceptTable[[#This Row],[Boundary M/L]])","v":0.23743326374498686},{"$f":"IF(AND(AND(kwpeak_norm>SegmentExceptTable[[#This Row],[kW Boundary]],kwpeak_norm<SegmentExceptTable[[#This Row],[kW Exception]]),AND(kwhmo_norm>SegmentExceptTable[[#This Row],[Boundary M/L]],kwhmo_norm<SegmentExceptTable[[#This Row],[Exception M/L]])),1,0)","v":0}]
[null,null,null,null,null,null,null,null,null,null,null,null,null,null,null,null,null,null,null,null,null,null,null,null,null,null,null,null,null,null,null,null,null,null,null,null,null,null,null,null,null,null,null,null,null,null,null,437,{"$f":"SegmentExceptTable[[#This Row],[Numbers]]/$BP$4","v":0.72954924874791316},{"$f":"SegmentExceptTable[[#This Row],[kW Boundary]]+(0.05*SegmentExceptTable[[#This Row],[kW Boundary]])","v":0.76602671118530885},{"$f":"$BP$6*SegmentExceptTable[[#This Row],[kW Boundary]]+$BP$7","v":1.041807500382453},{"$f":"$BP$8*SegmentExceptTable[[#This Row],[kW Boundary]]+$BP$9","v":-0.30835418356969757},{"$f":"SegmentExceptTable[[#This Row],[Boundary S/M]]+(0.05*SegmentExceptTable[[#This Row],[Boundary S/M]])","v":-0.32377189274818247},{"$f":"IF(AND(AND(kwpeak_norm>SegmentExceptTable[[#This Row],[kW Boundary]],kwpeak_norm<SegmentExceptTable[[#This Row],[kW Exception]]),AND(kwhmo_norm>SegmentExceptTable[[#This Row],[Boundary S/M]],kwhmo_norm<SegmentExceptTable[[#This Row],[Exception S/M]])),1,0)","v":0},{"$f":"$BP$10*SegmentExceptTable[[#This Row],[kW Boundary]]+$BP$11","v":1.4113745011284871},{"$f":"$BP$12*SegmentExceptTable[[#This Row],[kW Boundary]]+$BP$13","v":0.22533672282857969},{"$f":"SegmentExceptTable[[#This Row],[Boundary M/L]]+(0.05*SegmentExceptTable[[#This Row],[Boundary M/L]])","v":0.23660355897000868},{"$f":"IF(AND(AND(kwpeak_norm>SegmentExceptTable[[#This Row],[kW Boundary]],kwpeak_norm<SegmentExceptTable[[#This Row],[kW Exception]]),AND(kwhmo_norm>SegmentExceptTable[[#This Row],[Boundary M/L]],kwhmo_norm<SegmentExceptTable[[#This Row],[Exception M/L]])),1,0)","v":0}]
[null,null,null,null,null,null,null,null,null,null,null,null,null,null,null,null,null,null,null,null,null,null,null,null,null,null,null,null,null,null,null,null,null,null,null,null,null,null,null,null,null,null,null,null,null,null,null,438,{"$f":"SegmentExceptTable[[#This Row],[Numbers]]/$BP$4","v":0.73121869782971616},{"$f":"SegmentExceptTable[[#This Row],[kW Boundary]]+(0.05*SegmentExceptTable[[#This Row],[kW Boundary]])","v":0.76777963272120198},{"$f":"$BP$6*SegmentExceptTable[[#This Row],[kW Boundary]]+$BP$7","v":1.0442343306778192},{"$f":"$BP$8*SegmentExceptTable[[#This Row],[kW Boundary]]+$BP$9","v":-0.30950261996512851},{"$f":"SegmentExceptTable[[#This Row],[Boundary S/M]]+(0.05*SegmentExceptTable[[#This Row],[Boundary S/M]])","v":-0.32497775096338494},{"$f":"IF(AND(AND(kwpeak_norm>SegmentExceptTable[[#This Row],[kW Boundary]],kwpeak_norm<SegmentExceptTable[[#This Row],[kW Exception]]),AND(kwhmo_norm>SegmentExceptTable[[#This Row],[Boundary S/M]],kwhmo_norm<SegmentExceptTable[[#This Row],[Exception S/M]])),1,0)","v":0},{"$f":"$BP$10*SegmentExceptTable[[#This Row],[kW Boundary]]+$BP$11","v":1.4149015547707253},{"$f":"$BP$12*SegmentExceptTable[[#This Row],[kW Boundary]]+$BP$13","v":0.22454652780479095},{"$f":"SegmentExceptTable[[#This Row],[Boundary M/L]]+(0.05*SegmentExceptTable[[#This Row],[Boundary M/L]])","v":0.2357738541950305},{"$f":"IF(AND(AND(kwpeak_norm>SegmentExceptTable[[#This Row],[kW Boundary]],kwpeak_norm<SegmentExceptTable[[#This Row],[kW Exception]]),AND(kwhmo_norm>SegmentExceptTable[[#This Row],[Boundary M/L]],kwhmo_norm<SegmentExceptTable[[#This Row],[Exception M/L]])),1,0)","v":0}]
[null,null,null,null,null,null,null,null,null,null,null,null,null,null,null,null,null,null,null,null,null,null,null,null,null,null,null,null,null,null,null,null,null,null,null,null,null,null,null,null,null,null,null,null,null,null,null,439,{"$f":"SegmentExceptTable[[#This Row],[Numbers]]/$BP$4","v":0.73288814691151916},{"$f":"SegmentExceptTable[[#This Row],[kW Boundary]]+(0.05*SegmentExceptTable[[#This Row],[kW Boundary]])","v":0.7695325542570951},{"$f":"$BP$6*SegmentExceptTable[[#This Row],[kW Boundary]]+$BP$7","v":1.0466611609731855},{"$f":"$BP$8*SegmentExceptTable[[#This Row],[kW Boundary]]+$BP$9","v":-0.31065105636055934},{"$f":"SegmentExceptTable[[#This Row],[Boundary S/M]]+(0.05*SegmentExceptTable[[#This Row],[Boundary S/M]])","v":-0.3261836091785873},{"$f":"IF(AND(AND(kwpeak_norm>SegmentExceptTable[[#This Row],[kW Boundary]],kwpeak_norm<SegmentExceptTable[[#This Row],[kW Exception]]),AND(kwhmo_norm>SegmentExceptTable[[#This Row],[Boundary S/M]],kwhmo_norm<SegmentExceptTable[[#This Row],[Exception S/M]])),1,0)","v":0},{"$f":"$BP$10*SegmentExceptTable[[#This Row],[kW Boundary]]+$BP$11","v":1.418428608412964},{"$f":"$BP$12*SegmentExceptTable[[#This Row],[kW Boundary]]+$BP$13","v":0.22375633278100221},{"$f":"SegmentExceptTable[[#This Row],[Boundary M/L]]+(0.05*SegmentExceptTable[[#This Row],[Boundary M/L]])","v":0.23494414942005232},{"$f":"IF(AND(AND(kwpeak_norm>SegmentExceptTable[[#This Row],[kW Boundary]],kwpeak_norm<SegmentExceptTable[[#This Row],[kW Exception]]),AND(kwhmo_norm>SegmentExceptTable[[#This Row],[Boundary M/L]],kwhmo_norm<SegmentExceptTable[[#This Row],[Exception M/L]])),1,0)","v":0}]
[null,null,null,null,null,null,null,null,null,null,null,null,null,null,null,null,null,null,null,null,null,null,null,null,null,null,null,null,null,null,null,null,null,null,null,null,null,null,null,null,null,null,null,null,null,null,null,440,{"$f":"SegmentExceptTable[[#This Row],[Numbers]]/$BP$4","v":0.73455759599332215},{"$f":"SegmentExceptTable[[#This Row],[kW Boundary]]+(0.05*SegmentExceptTable[[#This Row],[kW Boundary]])","v":0.77128547579298823},{"$f":"$BP$6*SegmentExceptTable[[#This Row],[kW Boundary]]+$BP$7","v":1.0490879912685518},{"$f":"$BP$8*SegmentExceptTable[[#This Row],[kW Boundary]]+$BP$9","v":-0.31179949275599017},{"$f":"SegmentExceptTable[[#This Row],[Boundary S/M]]+(0.05*SegmentExceptTable[[#This Row],[Boundary S/M]])","v":-0.32738946739378966},{"$f":"IF(AND(AND(kwpeak_norm>SegmentExceptTable[[#This Row],[kW Boundary]],kwpeak_norm<SegmentExceptTable[[#This Row],[kW Exception]]),AND(kwhmo_norm>SegmentExceptTable[[#This Row],[Boundary S/M]],kwhmo_norm<SegmentExceptTable[[#This Row],[Exception S/M]])),1,0)","v":0},{"$f":"$BP$10*SegmentExceptTable[[#This Row],[kW Boundary]]+$BP$11","v":1.4219556620552023},{"$f":"$BP$12*SegmentExceptTable[[#This Row],[kW Boundary]]+$BP$13","v":0.22296613775721341},{"$f":"SegmentExceptTable[[#This Row],[Boundary M/L]]+(0.05*SegmentExceptTable[[#This Row],[Boundary M/L]])","v":0.23411444464507408},{"$f":"IF(AND(AND(kwpeak_norm>SegmentExceptTable[[#This Row],[kW Boundary]],kwpeak_norm<SegmentExceptTable[[#This Row],[kW Exception]]),AND(kwhmo_norm>SegmentExceptTable[[#This Row],[Boundary M/L]],kwhmo_norm<SegmentExceptTable[[#This Row],[Exception M/L]])),1,0)","v":0}]
[null,null,null,null,null,null,null,null,null,null,null,null,null,null,null,null,null,null,null,null,null,null,null,null,null,null,null,null,null,null,null,null,null,null,null,null,null,null,null,null,null,null,null,null,null,null,null,441,{"$f":"SegmentExceptTable[[#This Row],[Numbers]]/$BP$4","v":0.73622704507512526},{"$f":"SegmentExceptTable[[#This Row],[kW Boundary]]+(0.05*SegmentExceptTable[[#This Row],[kW Boundary]])","v":0.77303839732888158},{"$f":"$BP$6*SegmentExceptTable[[#This Row],[kW Boundary]]+$BP$7","v":1.0515148215639181},{"$f":"$BP$8*SegmentExceptTable[[#This Row],[kW Boundary]]+$BP$9","v":-0.31294792915142111},{"$f":"SegmentExceptTable[[#This Row],[Boundary S/M]]+(0.05*SegmentExceptTable[[#This Row],[Boundary S/M]])","v":-0.32859532560899218},{"$f":"IF(AND(AND(kwpeak_norm>SegmentExceptTable[[#This Row],[kW Boundary]],kwpeak_norm<SegmentExceptTable[[#This Row],[kW Exception]]),AND(kwhmo_norm>SegmentExceptTable[[#This Row],[Boundary S/M]],kwhmo_norm<SegmentExceptTable[[#This Row],[Exception S/M]])),1,0)","v":0},{"$f":"$BP$10*SegmentExceptTable[[#This Row],[kW Boundary]]+$BP$11","v":1.425482715697441},{"$f":"$BP$12*SegmentExceptTable[[#This Row],[kW Boundary]]+$BP$13","v":0.22217594273342461},{"$f":"SegmentExceptTable[[#This Row],[Boundary M/L]]+(0.05*SegmentExceptTable[[#This Row],[Boundary M/L]])","v":0.23328473987009585},{"$f":"IF(AND(AND(kwpeak_norm>SegmentExceptTable[[#This Row],[kW Boundary]],kwpeak_norm<SegmentExceptTable[[#This Row],[kW Exception]]),AND(kwhmo_norm>SegmentExceptTable[[#This Row],[Boundary M/L]],kwhmo_norm<SegmentExceptTable[[#This Row],[Exception M/L]])),1,0)","v":0}]
[null,null,null,null,null,null,null,null,null,null,null,null,null,null,null,null,null,null,null,null,null,null,null,null,null,null,null,null,null,null,null,null,null,null,null,null,null,null,null,null,null,null,null,null,null,null,null,442,{"$f":"SegmentExceptTable[[#This Row],[Numbers]]/$BP$4","v":0.73789649415692826},{"$f":"SegmentExceptTable[[#This Row],[kW Boundary]]+(0.05*SegmentExceptTable[[#This Row],[kW Boundary]])","v":0.7747913188647747},{"$f":"$BP$6*SegmentExceptTable[[#This Row],[kW Boundary]]+$BP$7","v":1.0539416518592843},{"$f":"$BP$8*SegmentExceptTable[[#This Row],[kW Boundary]]+$BP$9","v":-0.31409636554685205},{"$f":"SegmentExceptTable[[#This Row],[Boundary S/M]]+(0.05*SegmentExceptTable[[#This Row],[Boundary S/M]])","v":-0.32980118382419465},{"$f":"IF(AND(AND(kwpeak_norm>SegmentExceptTable[[#This Row],[kW Boundary]],kwpeak_norm<SegmentExceptTable[[#This Row],[kW Exception]]),AND(kwhmo_norm>SegmentExceptTable[[#This Row],[Boundary S/M]],kwhmo_norm<SegmentExceptTable[[#This Row],[Exception S/M]])),1,0)","v":0},{"$f":"$BP$10*SegmentExceptTable[[#This Row],[kW Boundary]]+$BP$11","v":1.4290097693396797},{"$f":"$BP$12*SegmentExceptTable[[#This Row],[kW Boundary]]+$BP$13","v":0.22138574770963587},{"$f":"SegmentExceptTable[[#This Row],[Boundary M/L]]+(0.05*SegmentExceptTable[[#This Row],[Boundary M/L]])","v":0.23245503509511767},{"$f":"IF(AND(AND(kwpeak_norm>SegmentExceptTable[[#This Row],[kW Boundary]],kwpeak_norm<SegmentExceptTable[[#This Row],[kW Exception]]),AND(kwhmo_norm>SegmentExceptTable[[#This Row],[Boundary M/L]],kwhmo_norm<SegmentExceptTable[[#This Row],[Exception M/L]])),1,0)","v":0}]
[null,null,null,null,null,null,null,null,null,null,null,null,null,null,null,null,null,null,null,null,null,null,null,null,null,null,null,null,null,null,null,null,null,null,null,null,null,null,null,null,null,null,null,null,null,null,null,443,{"$f":"SegmentExceptTable[[#This Row],[Numbers]]/$BP$4","v":0.73956594323873126},{"$f":"SegmentExceptTable[[#This Row],[kW Boundary]]+(0.05*SegmentExceptTable[[#This Row],[kW Boundary]])","v":0.77654424040066783},{"$f":"$BP$6*SegmentExceptTable[[#This Row],[kW Boundary]]+$BP$7","v":1.0563684821546506},{"$f":"$BP$8*SegmentExceptTable[[#This Row],[kW Boundary]]+$BP$9","v":-0.31524480194228288},{"$f":"SegmentExceptTable[[#This Row],[Boundary S/M]]+(0.05*SegmentExceptTable[[#This Row],[Boundary S/M]])","v":-0.33100704203939701},{"$f":"IF(AND(AND(kwpeak_norm>SegmentExceptTable[[#This Row],[kW Boundary]],kwpeak_norm<SegmentExceptTable[[#This Row],[kW Exception]]),AND(kwhmo_norm>SegmentExceptTable[[#This Row],[Boundary S/M]],kwhmo_norm<SegmentExceptTable[[#This Row],[Exception S/M]])),1,0)","v":0},{"$f":"$BP$10*SegmentExceptTable[[#This Row],[kW Boundary]]+$BP$11","v":1.432536822981918},{"$f":"$BP$12*SegmentExceptTable[[#This Row],[kW Boundary]]+$BP$13","v":0.22059555268584713},{"$f":"SegmentExceptTable[[#This Row],[Boundary M/L]]+(0.05*SegmentExceptTable[[#This Row],[Boundary M/L]])","v":0.23162533032013949},{"$f":"IF(AND(AND(kwpeak_norm>SegmentExceptTable[[#This Row],[kW Boundary]],kwpeak_norm<SegmentExceptTable[[#This Row],[kW Exception]]),AND(kwhmo_norm>SegmentExceptTable[[#This Row],[Boundary M/L]],kwhmo_norm<SegmentExceptTable[[#This Row],[Exception M/L]])),1,0)","v":0}]
[null,null,null,null,null,null,null,null,null,null,null,null,null,null,null,null,null,null,null,null,null,null,null,null,null,null,null,null,null,null,null,null,null,null,null,null,null,null,null,null,null,null,null,null,null,null,null,444,{"$f":"SegmentExceptTable[[#This Row],[Numbers]]/$BP$4","v":0.74123539232053426},{"$f":"SegmentExceptTable[[#This Row],[kW Boundary]]+(0.05*SegmentExceptTable[[#This Row],[kW Boundary]])","v":0.77829716193656096},{"$f":"$BP$6*SegmentExceptTable[[#This Row],[kW Boundary]]+$BP$7","v":1.0587953124500169},{"$f":"$BP$8*SegmentExceptTable[[#This Row],[kW Boundary]]+$BP$9","v":-0.31639323833771382},{"$f":"SegmentExceptTable[[#This Row],[Boundary S/M]]+(0.05*SegmentExceptTable[[#This Row],[Boundary S/M]])","v":-0.33221290025459949},{"$f":"IF(AND(AND(kwpeak_norm>SegmentExceptTable[[#This Row],[kW Boundary]],kwpeak_norm<SegmentExceptTable[[#This Row],[kW Exception]]),AND(kwhmo_norm>SegmentExceptTable[[#This Row],[Boundary S/M]],kwhmo_norm<SegmentExceptTable[[#This Row],[Exception S/M]])),1,0)","v":0},{"$f":"$BP$10*SegmentExceptTable[[#This Row],[kW Boundary]]+$BP$11","v":1.4360638766241567},{"$f":"$BP$12*SegmentExceptTable[[#This Row],[kW Boundary]]+$BP$13","v":0.21980535766205839},{"$f":"SegmentExceptTable[[#This Row],[Boundary M/L]]+(0.05*SegmentExceptTable[[#This Row],[Boundary M/L]])","v":0.23079562554516131},{"$f":"IF(AND(AND(kwpeak_norm>SegmentExceptTable[[#This Row],[kW Boundary]],kwpeak_norm<SegmentExceptTable[[#This Row],[kW Exception]]),AND(kwhmo_norm>SegmentExceptTable[[#This Row],[Boundary M/L]],kwhmo_norm<SegmentExceptTable[[#This Row],[Exception M/L]])),1,0)","v":0}]
[null,null,null,null,null,null,null,null,null,null,null,null,null,null,null,null,null,null,null,null,null,null,null,null,null,null,null,null,null,null,null,null,null,null,null,null,null,null,null,null,null,null,null,null,null,null,null,445,{"$f":"SegmentExceptTable[[#This Row],[Numbers]]/$BP$4","v":0.74290484140233726},{"$f":"SegmentExceptTable[[#This Row],[kW Boundary]]+(0.05*SegmentExceptTable[[#This Row],[kW Boundary]])","v":0.78005008347245408},{"$f":"$BP$6*SegmentExceptTable[[#This Row],[kW Boundary]]+$BP$7","v":1.0612221427453832},{"$f":"$BP$8*SegmentExceptTable[[#This Row],[kW Boundary]]+$BP$9","v":-0.31754167473314465},{"$f":"SegmentExceptTable[[#This Row],[Boundary S/M]]+(0.05*SegmentExceptTable[[#This Row],[Boundary S/M]])","v":-0.3334187584698019},{"$f":"IF(AND(AND(kwpeak_norm>SegmentExceptTable[[#This Row],[kW Boundary]],kwpeak_norm<SegmentExceptTable[[#This Row],[kW Exception]]),AND(kwhmo_norm>SegmentExceptTable[[#This Row],[Boundary S/M]],kwhmo_norm<SegmentExceptTable[[#This Row],[Exception S/M]])),1,0)","v":0},{"$f":"$BP$10*SegmentExceptTable[[#This Row],[kW Boundary]]+$BP$11","v":1.4395909302663954},{"$f":"$BP$12*SegmentExceptTable[[#This Row],[kW Boundary]]+$BP$13","v":0.21901516263826959},{"$f":"SegmentExceptTable[[#This Row],[Boundary M/L]]+(0.05*SegmentExceptTable[[#This Row],[Boundary M/L]])","v":0.22996592077018307},{"$f":"IF(AND(AND(kwpeak_norm>SegmentExceptTable[[#This Row],[kW Boundary]],kwpeak_norm<SegmentExceptTable[[#This Row],[kW Exception]]),AND(kwhmo_norm>SegmentExceptTable[[#This Row],[Boundary M/L]],kwhmo_norm<SegmentExceptTable[[#This Row],[Exception M/L]])),1,0)","v":0}]
[null,null,null,null,null,null,null,null,null,null,null,null,null,null,null,null,null,null,null,null,null,null,null,null,null,null,null,null,null,null,null,null,null,null,null,null,null,null,null,null,null,null,null,null,null,null,null,446,{"$f":"SegmentExceptTable[[#This Row],[Numbers]]/$BP$4","v":0.74457429048414026},{"$f":"SegmentExceptTable[[#This Row],[kW Boundary]]+(0.05*SegmentExceptTable[[#This Row],[kW Boundary]])","v":0.78180300500834732},{"$f":"$BP$6*SegmentExceptTable[[#This Row],[kW Boundary]]+$BP$7","v":1.0636489730407495},{"$f":"$BP$8*SegmentExceptTable[[#This Row],[kW Boundary]]+$BP$9","v":-0.31869011112857548},{"$f":"SegmentExceptTable[[#This Row],[Boundary S/M]]+(0.05*SegmentExceptTable[[#This Row],[Boundary S/M]])","v":-0.33462461668500426},{"$f":"IF(AND(AND(kwpeak_norm>SegmentExceptTable[[#This Row],[kW Boundary]],kwpeak_norm<SegmentExceptTable[[#This Row],[kW Exception]]),AND(kwhmo_norm>SegmentExceptTable[[#This Row],[Boundary S/M]],kwhmo_norm<SegmentExceptTable[[#This Row],[Exception S/M]])),1,0)","v":0},{"$f":"$BP$10*SegmentExceptTable[[#This Row],[kW Boundary]]+$BP$11","v":1.4431179839086337},{"$f":"$BP$12*SegmentExceptTable[[#This Row],[kW Boundary]]+$BP$13","v":0.21822496761448085},{"$f":"SegmentExceptTable[[#This Row],[Boundary M/L]]+(0.05*SegmentExceptTable[[#This Row],[Boundary M/L]])","v":0.22913621599520489},{"$f":"IF(AND(AND(kwpeak_norm>SegmentExceptTable[[#This Row],[kW Boundary]],kwpeak_norm<SegmentExceptTable[[#This Row],[kW Exception]]),AND(kwhmo_norm>SegmentExceptTable[[#This Row],[Boundary M/L]],kwhmo_norm<SegmentExceptTable[[#This Row],[Exception M/L]])),1,0)","v":0}]
[null,null,null,null,null,null,null,null,null,null,null,null,null,null,null,null,null,null,null,null,null,null,null,null,null,null,null,null,null,null,null,null,null,null,null,null,null,null,null,null,null,null,null,null,null,null,null,447,{"$f":"SegmentExceptTable[[#This Row],[Numbers]]/$BP$4","v":0.74624373956594325},{"$f":"SegmentExceptTable[[#This Row],[kW Boundary]]+(0.05*SegmentExceptTable[[#This Row],[kW Boundary]])","v":0.78355592654424044},{"$f":"$BP$6*SegmentExceptTable[[#This Row],[kW Boundary]]+$BP$7","v":1.0660758033361157},{"$f":"$BP$8*SegmentExceptTable[[#This Row],[kW Boundary]]+$BP$9","v":-0.31983854752400642},{"$f":"SegmentExceptTable[[#This Row],[Boundary S/M]]+(0.05*SegmentExceptTable[[#This Row],[Boundary S/M]])","v":-0.33583047490020673},{"$f":"IF(AND(AND(kwpeak_norm>SegmentExceptTable[[#This Row],[kW Boundary]],kwpeak_norm<SegmentExceptTable[[#This Row],[kW Exception]]),AND(kwhmo_norm>SegmentExceptTable[[#This Row],[Boundary S/M]],kwhmo_norm<SegmentExceptTable[[#This Row],[Exception S/M]])),1,0)","v":0},{"$f":"$BP$10*SegmentExceptTable[[#This Row],[kW Boundary]]+$BP$11","v":1.4466450375508724},{"$f":"$BP$12*SegmentExceptTable[[#This Row],[kW Boundary]]+$BP$13","v":0.2174347725906921},{"$f":"SegmentExceptTable[[#This Row],[Boundary M/L]]+(0.05*SegmentExceptTable[[#This Row],[Boundary M/L]])","v":0.22830651122022672},{"$f":"IF(AND(AND(kwpeak_norm>SegmentExceptTable[[#This Row],[kW Boundary]],kwpeak_norm<SegmentExceptTable[[#This Row],[kW Exception]]),AND(kwhmo_norm>SegmentExceptTable[[#This Row],[Boundary M/L]],kwhmo_norm<SegmentExceptTable[[#This Row],[Exception M/L]])),1,0)","v":0}]
[null,null,null,null,null,null,null,null,null,null,null,null,null,null,null,null,null,null,null,null,null,null,null,null,null,null,null,null,null,null,null,null,null,null,null,null,null,null,null,null,null,null,null,null,null,null,null,448,{"$f":"SegmentExceptTable[[#This Row],[Numbers]]/$BP$4","v":0.74791318864774625},{"$f":"SegmentExceptTable[[#This Row],[kW Boundary]]+(0.05*SegmentExceptTable[[#This Row],[kW Boundary]])","v":0.78530884808013357},{"$f":"$BP$6*SegmentExceptTable[[#This Row],[kW Boundary]]+$BP$7","v":1.068502633631482},{"$f":"$BP$8*SegmentExceptTable[[#This Row],[kW Boundary]]+$BP$9","v":-0.32098698391943725},{"$f":"SegmentExceptTable[[#This Row],[Boundary S/M]]+(0.05*SegmentExceptTable[[#This Row],[Boundary S/M]])","v":-0.33703633311540909},{"$f":"IF(AND(AND(kwpeak_norm>SegmentExceptTable[[#This Row],[kW Boundary]],kwpeak_norm<SegmentExceptTable[[#This Row],[kW Exception]]),AND(kwhmo_norm>SegmentExceptTable[[#This Row],[Boundary S/M]],kwhmo_norm<SegmentExceptTable[[#This Row],[Exception S/M]])),1,0)","v":0},{"$f":"$BP$10*SegmentExceptTable[[#This Row],[kW Boundary]]+$BP$11","v":1.4501720911931106},{"$f":"$BP$12*SegmentExceptTable[[#This Row],[kW Boundary]]+$BP$13","v":0.21664457756690336},{"$f":"SegmentExceptTable[[#This Row],[Boundary M/L]]+(0.05*SegmentExceptTable[[#This Row],[Boundary M/L]])","v":0.22747680644524854},{"$f":"IF(AND(AND(kwpeak_norm>SegmentExceptTable[[#This Row],[kW Boundary]],kwpeak_norm<SegmentExceptTable[[#This Row],[kW Exception]]),AND(kwhmo_norm>SegmentExceptTable[[#This Row],[Boundary M/L]],kwhmo_norm<SegmentExceptTable[[#This Row],[Exception M/L]])),1,0)","v":0}]
[null,null,null,null,null,null,null,null,null,null,null,null,null,null,null,null,null,null,null,null,null,null,null,null,null,null,null,null,null,null,null,null,null,null,null,null,null,null,null,null,null,null,null,null,null,null,null,449,{"$f":"SegmentExceptTable[[#This Row],[Numbers]]/$BP$4","v":0.74958263772954925},{"$f":"SegmentExceptTable[[#This Row],[kW Boundary]]+(0.05*SegmentExceptTable[[#This Row],[kW Boundary]])","v":0.7870617696160267},{"$f":"$BP$6*SegmentExceptTable[[#This Row],[kW Boundary]]+$BP$7","v":1.0709294639268483},{"$f":"$BP$8*SegmentExceptTable[[#This Row],[kW Boundary]]+$BP$9","v":-0.32213542031486808},{"$f":"SegmentExceptTable[[#This Row],[Boundary S/M]]+(0.05*SegmentExceptTable[[#This Row],[Boundary S/M]])","v":-0.33824219133061151},{"$f":"IF(AND(AND(kwpeak_norm>SegmentExceptTable[[#This Row],[kW Boundary]],kwpeak_norm<SegmentExceptTable[[#This Row],[kW Exception]]),AND(kwhmo_norm>SegmentExceptTable[[#This Row],[Boundary S/M]],kwhmo_norm<SegmentExceptTable[[#This Row],[Exception S/M]])),1,0)","v":0},{"$f":"$BP$10*SegmentExceptTable[[#This Row],[kW Boundary]]+$BP$11","v":1.4536991448353493},{"$f":"$BP$12*SegmentExceptTable[[#This Row],[kW Boundary]]+$BP$13","v":0.21585438254311462},{"$f":"SegmentExceptTable[[#This Row],[Boundary M/L]]+(0.05*SegmentExceptTable[[#This Row],[Boundary M/L]])","v":0.22664710167027036},{"$f":"IF(AND(AND(kwpeak_norm>SegmentExceptTable[[#This Row],[kW Boundary]],kwpeak_norm<SegmentExceptTable[[#This Row],[kW Exception]]),AND(kwhmo_norm>SegmentExceptTable[[#This Row],[Boundary M/L]],kwhmo_norm<SegmentExceptTable[[#This Row],[Exception M/L]])),1,0)","v":0}]
[null,null,null,null,null,null,null,null,null,null,null,null,null,null,null,null,null,null,null,null,null,null,null,null,null,null,null,null,null,null,null,null,null,null,null,null,null,null,null,null,null,null,null,null,null,null,null,450,{"$f":"SegmentExceptTable[[#This Row],[Numbers]]/$BP$4","v":0.75125208681135225},{"$f":"SegmentExceptTable[[#This Row],[kW Boundary]]+(0.05*SegmentExceptTable[[#This Row],[kW Boundary]])","v":0.78881469115191982},{"$f":"$BP$6*SegmentExceptTable[[#This Row],[kW Boundary]]+$BP$7","v":1.0733562942222146},{"$f":"$BP$8*SegmentExceptTable[[#This Row],[kW Boundary]]+$BP$9","v":-0.32328385671029902},{"$f":"SegmentExceptTable[[#This Row],[Boundary S/M]]+(0.05*SegmentExceptTable[[#This Row],[Boundary S/M]])","v":-0.33944804954581398},{"$f":"IF(AND(AND(kwpeak_norm>SegmentExceptTable[[#This Row],[kW Boundary]],kwpeak_norm<SegmentExceptTable[[#This Row],[kW Exception]]),AND(kwhmo_norm>SegmentExceptTable[[#This Row],[Boundary S/M]],kwhmo_norm<SegmentExceptTable[[#This Row],[Exception S/M]])),1,0)","v":0},{"$f":"$BP$10*SegmentExceptTable[[#This Row],[kW Boundary]]+$BP$11","v":1.4572261984775876},{"$f":"$BP$12*SegmentExceptTable[[#This Row],[kW Boundary]]+$BP$13","v":0.21506418751932582},{"$f":"SegmentExceptTable[[#This Row],[Boundary M/L]]+(0.05*SegmentExceptTable[[#This Row],[Boundary M/L]])","v":0.22581739689529212},{"$f":"IF(AND(AND(kwpeak_norm>SegmentExceptTable[[#This Row],[kW Boundary]],kwpeak_norm<SegmentExceptTable[[#This Row],[kW Exception]]),AND(kwhmo_norm>SegmentExceptTable[[#This Row],[Boundary M/L]],kwhmo_norm<SegmentExceptTable[[#This Row],[Exception M/L]])),1,0)","v":0}]
[null,null,null,null,null,null,null,null,null,null,null,null,null,null,null,null,null,null,null,null,null,null,null,null,null,null,null,null,null,null,null,null,null,null,null,null,null,null,null,null,null,null,null,null,null,null,null,451,{"$f":"SegmentExceptTable[[#This Row],[Numbers]]/$BP$4","v":0.75292153589315525},{"$f":"SegmentExceptTable[[#This Row],[kW Boundary]]+(0.05*SegmentExceptTable[[#This Row],[kW Boundary]])","v":0.79056761268781306},{"$f":"$BP$6*SegmentExceptTable[[#This Row],[kW Boundary]]+$BP$7","v":1.0757831245175808},{"$f":"$BP$8*SegmentExceptTable[[#This Row],[kW Boundary]]+$BP$9","v":-0.32443229310572985},{"$f":"SegmentExceptTable[[#This Row],[Boundary S/M]]+(0.05*SegmentExceptTable[[#This Row],[Boundary S/M]])","v":-0.34065390776101634},{"$f":"IF(AND(AND(kwpeak_norm>SegmentExceptTable[[#This Row],[kW Boundary]],kwpeak_norm<SegmentExceptTable[[#This Row],[kW Exception]]),AND(kwhmo_norm>SegmentExceptTable[[#This Row],[Boundary S/M]],kwhmo_norm<SegmentExceptTable[[#This Row],[Exception S/M]])),1,0)","v":0},{"$f":"$BP$10*SegmentExceptTable[[#This Row],[kW Boundary]]+$BP$11","v":1.4607532521198263},{"$f":"$BP$12*SegmentExceptTable[[#This Row],[kW Boundary]]+$BP$13","v":0.21427399249553708},{"$f":"SegmentExceptTable[[#This Row],[Boundary M/L]]+(0.05*SegmentExceptTable[[#This Row],[Boundary M/L]])","v":0.22498769212031394},{"$f":"IF(AND(AND(kwpeak_norm>SegmentExceptTable[[#This Row],[kW Boundary]],kwpeak_norm<SegmentExceptTable[[#This Row],[kW Exception]]),AND(kwhmo_norm>SegmentExceptTable[[#This Row],[Boundary M/L]],kwhmo_norm<SegmentExceptTable[[#This Row],[Exception M/L]])),1,0)","v":0}]
[null,null,null,null,null,null,null,null,null,null,null,null,null,null,null,null,null,null,null,null,null,null,null,null,null,null,null,null,null,null,null,null,null,null,null,null,null,null,null,null,null,null,null,null,null,null,null,452,{"$f":"SegmentExceptTable[[#This Row],[Numbers]]/$BP$4","v":0.75459098497495825},{"$f":"SegmentExceptTable[[#This Row],[kW Boundary]]+(0.05*SegmentExceptTable[[#This Row],[kW Boundary]])","v":0.79232053422370619},{"$f":"$BP$6*SegmentExceptTable[[#This Row],[kW Boundary]]+$BP$7","v":1.0782099548129471},{"$f":"$BP$8*SegmentExceptTable[[#This Row],[kW Boundary]]+$BP$9","v":-0.32558072950116079},{"$f":"SegmentExceptTable[[#This Row],[Boundary S/M]]+(0.05*SegmentExceptTable[[#This Row],[Boundary S/M]])","v":-0.34185976597621881},{"$f":"IF(AND(AND(kwpeak_norm>SegmentExceptTable[[#This Row],[kW Boundary]],kwpeak_norm<SegmentExceptTable[[#This Row],[kW Exception]]),AND(kwhmo_norm>SegmentExceptTable[[#This Row],[Boundary S/M]],kwhmo_norm<SegmentExceptTable[[#This Row],[Exception S/M]])),1,0)","v":0},{"$f":"$BP$10*SegmentExceptTable[[#This Row],[kW Boundary]]+$BP$11","v":1.464280305762065},{"$f":"$BP$12*SegmentExceptTable[[#This Row],[kW Boundary]]+$BP$13","v":0.21348379747174834},{"$f":"SegmentExceptTable[[#This Row],[Boundary M/L]]+(0.05*SegmentExceptTable[[#This Row],[Boundary M/L]])","v":0.22415798734533576},{"$f":"IF(AND(AND(kwpeak_norm>SegmentExceptTable[[#This Row],[kW Boundary]],kwpeak_norm<SegmentExceptTable[[#This Row],[kW Exception]]),AND(kwhmo_norm>SegmentExceptTable[[#This Row],[Boundary M/L]],kwhmo_norm<SegmentExceptTable[[#This Row],[Exception M/L]])),1,0)","v":0}]
[null,null,null,null,null,null,null,null,null,null,null,null,null,null,null,null,null,null,null,null,null,null,null,null,null,null,null,null,null,null,null,null,null,null,null,null,null,null,null,null,null,null,null,null,null,null,null,453,{"$f":"SegmentExceptTable[[#This Row],[Numbers]]/$BP$4","v":0.75626043405676124},{"$f":"SegmentExceptTable[[#This Row],[kW Boundary]]+(0.05*SegmentExceptTable[[#This Row],[kW Boundary]])","v":0.79407345575959931},{"$f":"$BP$6*SegmentExceptTable[[#This Row],[kW Boundary]]+$BP$7","v":1.0806367851083134},{"$f":"$BP$8*SegmentExceptTable[[#This Row],[kW Boundary]]+$BP$9","v":-0.32672916589659162},{"$f":"SegmentExceptTable[[#This Row],[Boundary S/M]]+(0.05*SegmentExceptTable[[#This Row],[Boundary S/M]])","v":-0.34306562419142123},{"$f":"IF(AND(AND(kwpeak_norm>SegmentExceptTable[[#This Row],[kW Boundary]],kwpeak_norm<SegmentExceptTable[[#This Row],[kW Exception]]),AND(kwhmo_norm>SegmentExceptTable[[#This Row],[Boundary S/M]],kwhmo_norm<SegmentExceptTable[[#This Row],[Exception S/M]])),1,0)","v":0},{"$f":"$BP$10*SegmentExceptTable[[#This Row],[kW Boundary]]+$BP$11","v":1.4678073594043033},{"$f":"$BP$12*SegmentExceptTable[[#This Row],[kW Boundary]]+$BP$13","v":0.2126936024479596},{"$f":"SegmentExceptTable[[#This Row],[Boundary M/L]]+(0.05*SegmentExceptTable[[#This Row],[Boundary M/L]])","v":0.22332828257035758},{"$f":"IF(AND(AND(kwpeak_norm>SegmentExceptTable[[#This Row],[kW Boundary]],kwpeak_norm<SegmentExceptTable[[#This Row],[kW Exception]]),AND(kwhmo_norm>SegmentExceptTable[[#This Row],[Boundary M/L]],kwhmo_norm<SegmentExceptTable[[#This Row],[Exception M/L]])),1,0)","v":0}]
[null,null,null,null,null,null,null,null,null,null,null,null,null,null,null,null,null,null,null,null,null,null,null,null,null,null,null,null,null,null,null,null,null,null,null,null,null,null,null,null,null,null,null,null,null,null,null,454,{"$f":"SegmentExceptTable[[#This Row],[Numbers]]/$BP$4","v":0.75792988313856424},{"$f":"SegmentExceptTable[[#This Row],[kW Boundary]]+(0.05*SegmentExceptTable[[#This Row],[kW Boundary]])","v":0.79582637729549244},{"$f":"$BP$6*SegmentExceptTable[[#This Row],[kW Boundary]]+$BP$7","v":1.0830636154036797},{"$f":"$BP$8*SegmentExceptTable[[#This Row],[kW Boundary]]+$BP$9","v":-0.32787760229202245},{"$f":"SegmentExceptTable[[#This Row],[Boundary S/M]]+(0.05*SegmentExceptTable[[#This Row],[Boundary S/M]])","v":-0.34427148240662359},{"$f":"IF(AND(AND(kwpeak_norm>SegmentExceptTable[[#This Row],[kW Boundary]],kwpeak_norm<SegmentExceptTable[[#This Row],[kW Exception]]),AND(kwhmo_norm>SegmentExceptTable[[#This Row],[Boundary S/M]],kwhmo_norm<SegmentExceptTable[[#This Row],[Exception S/M]])),1,0)","v":0},{"$f":"$BP$10*SegmentExceptTable[[#This Row],[kW Boundary]]+$BP$11","v":1.471334413046542},{"$f":"$BP$12*SegmentExceptTable[[#This Row],[kW Boundary]]+$BP$13","v":0.21190340742417085},{"$f":"SegmentExceptTable[[#This Row],[Boundary M/L]]+(0.05*SegmentExceptTable[[#This Row],[Boundary M/L]])","v":0.2224985777953794},{"$f":"IF(AND(AND(kwpeak_norm>SegmentExceptTable[[#This Row],[kW Boundary]],kwpeak_norm<SegmentExceptTable[[#This Row],[kW Exception]]),AND(kwhmo_norm>SegmentExceptTable[[#This Row],[Boundary M/L]],kwhmo_norm<SegmentExceptTable[[#This Row],[Exception M/L]])),1,0)","v":0}]
[null,null,null,null,null,null,null,null,null,null,null,null,null,null,null,null,null,null,null,null,null,null,null,null,null,null,null,null,null,null,null,null,null,null,null,null,null,null,null,null,null,null,null,null,null,null,null,455,{"$f":"SegmentExceptTable[[#This Row],[Numbers]]/$BP$4","v":0.75959933222036724},{"$f":"SegmentExceptTable[[#This Row],[kW Boundary]]+(0.05*SegmentExceptTable[[#This Row],[kW Boundary]])","v":0.79757929883138556},{"$f":"$BP$6*SegmentExceptTable[[#This Row],[kW Boundary]]+$BP$7","v":1.085490445699046},{"$f":"$BP$8*SegmentExceptTable[[#This Row],[kW Boundary]]+$BP$9","v":-0.32902603868745339},{"$f":"SegmentExceptTable[[#This Row],[Boundary S/M]]+(0.05*SegmentExceptTable[[#This Row],[Boundary S/M]])","v":-0.34547734062182606},{"$f":"IF(AND(AND(kwpeak_norm>SegmentExceptTable[[#This Row],[kW Boundary]],kwpeak_norm<SegmentExceptTable[[#This Row],[kW Exception]]),AND(kwhmo_norm>SegmentExceptTable[[#This Row],[Boundary S/M]],kwhmo_norm<SegmentExceptTable[[#This Row],[Exception S/M]])),1,0)","v":0},{"$f":"$BP$10*SegmentExceptTable[[#This Row],[kW Boundary]]+$BP$11","v":1.4748614666887803},{"$f":"$BP$12*SegmentExceptTable[[#This Row],[kW Boundary]]+$BP$13","v":0.21111321240038206},{"$f":"SegmentExceptTable[[#This Row],[Boundary M/L]]+(0.05*SegmentExceptTable[[#This Row],[Boundary M/L]])","v":0.22166887302040117},{"$f":"IF(AND(AND(kwpeak_norm>SegmentExceptTable[[#This Row],[kW Boundary]],kwpeak_norm<SegmentExceptTable[[#This Row],[kW Exception]]),AND(kwhmo_norm>SegmentExceptTable[[#This Row],[Boundary M/L]],kwhmo_norm<SegmentExceptTable[[#This Row],[Exception M/L]])),1,0)","v":0}]
[null,null,null,null,null,null,null,null,null,null,null,null,null,null,null,null,null,null,null,null,null,null,null,null,null,null,null,null,null,null,null,null,null,null,null,null,null,null,null,null,null,null,null,null,null,null,null,456,{"$f":"SegmentExceptTable[[#This Row],[Numbers]]/$BP$4","v":0.76126878130217024},{"$f":"SegmentExceptTable[[#This Row],[kW Boundary]]+(0.05*SegmentExceptTable[[#This Row],[kW Boundary]])","v":0.7993322203672788},{"$f":"$BP$6*SegmentExceptTable[[#This Row],[kW Boundary]]+$BP$7","v":1.0879172759944122},{"$f":"$BP$8*SegmentExceptTable[[#This Row],[kW Boundary]]+$BP$9","v":-0.33017447508288422},{"$f":"SegmentExceptTable[[#This Row],[Boundary S/M]]+(0.05*SegmentExceptTable[[#This Row],[Boundary S/M]])","v":-0.34668319883702842},{"$f":"IF(AND(AND(kwpeak_norm>SegmentExceptTable[[#This Row],[kW Boundary]],kwpeak_norm<SegmentExceptTable[[#This Row],[kW Exception]]),AND(kwhmo_norm>SegmentExceptTable[[#This Row],[Boundary S/M]],kwhmo_norm<SegmentExceptTable[[#This Row],[Exception S/M]])),1,0)","v":0},{"$f":"$BP$10*SegmentExceptTable[[#This Row],[kW Boundary]]+$BP$11","v":1.478388520331019},{"$f":"$BP$12*SegmentExceptTable[[#This Row],[kW Boundary]]+$BP$13","v":0.21032301737659331},{"$f":"SegmentExceptTable[[#This Row],[Boundary M/L]]+(0.05*SegmentExceptTable[[#This Row],[Boundary M/L]])","v":0.22083916824542299},{"$f":"IF(AND(AND(kwpeak_norm>SegmentExceptTable[[#This Row],[kW Boundary]],kwpeak_norm<SegmentExceptTable[[#This Row],[kW Exception]]),AND(kwhmo_norm>SegmentExceptTable[[#This Row],[Boundary M/L]],kwhmo_norm<SegmentExceptTable[[#This Row],[Exception M/L]])),1,0)","v":0}]
[null,null,null,null,null,null,null,null,null,null,null,null,null,null,null,null,null,null,null,null,null,null,null,null,null,null,null,null,null,null,null,null,null,null,null,null,null,null,null,null,null,null,null,null,null,null,null,457,{"$f":"SegmentExceptTable[[#This Row],[Numbers]]/$BP$4","v":0.76293823038397324},{"$f":"SegmentExceptTable[[#This Row],[kW Boundary]]+(0.05*SegmentExceptTable[[#This Row],[kW Boundary]])","v":0.80108514190317193},{"$f":"$BP$6*SegmentExceptTable[[#This Row],[kW Boundary]]+$BP$7","v":1.0903441062897785},{"$f":"$BP$8*SegmentExceptTable[[#This Row],[kW Boundary]]+$BP$9","v":-0.33132291147831505},{"$f":"SegmentExceptTable[[#This Row],[Boundary S/M]]+(0.05*SegmentExceptTable[[#This Row],[Boundary S/M]])","v":-0.34788905705223083},{"$f":"IF(AND(AND(kwpeak_norm>SegmentExceptTable[[#This Row],[kW Boundary]],kwpeak_norm<SegmentExceptTable[[#This Row],[kW Exception]]),AND(kwhmo_norm>SegmentExceptTable[[#This Row],[Boundary S/M]],kwhmo_norm<SegmentExceptTable[[#This Row],[Exception S/M]])),1,0)","v":0},{"$f":"$BP$10*SegmentExceptTable[[#This Row],[kW Boundary]]+$BP$11","v":1.4819155739732572},{"$f":"$BP$12*SegmentExceptTable[[#This Row],[kW Boundary]]+$BP$13","v":0.20953282235280457},{"$f":"SegmentExceptTable[[#This Row],[Boundary M/L]]+(0.05*SegmentExceptTable[[#This Row],[Boundary M/L]])","v":0.22000946347044481},{"$f":"IF(AND(AND(kwpeak_norm>SegmentExceptTable[[#This Row],[kW Boundary]],kwpeak_norm<SegmentExceptTable[[#This Row],[kW Exception]]),AND(kwhmo_norm>SegmentExceptTable[[#This Row],[Boundary M/L]],kwhmo_norm<SegmentExceptTable[[#This Row],[Exception M/L]])),1,0)","v":0}]
[null,null,null,null,null,null,null,null,null,null,null,null,null,null,null,null,null,null,null,null,null,null,null,null,null,null,null,null,null,null,null,null,null,null,null,null,null,null,null,null,null,null,null,null,null,null,null,458,{"$f":"SegmentExceptTable[[#This Row],[Numbers]]/$BP$4","v":0.76460767946577635},{"$f":"SegmentExceptTable[[#This Row],[kW Boundary]]+(0.05*SegmentExceptTable[[#This Row],[kW Boundary]])","v":0.80283806343906516},{"$f":"$BP$6*SegmentExceptTable[[#This Row],[kW Boundary]]+$BP$7","v":1.0927709365851448},{"$f":"$BP$8*SegmentExceptTable[[#This Row],[kW Boundary]]+$BP$9","v":-0.33247134787374599},{"$f":"SegmentExceptTable[[#This Row],[Boundary S/M]]+(0.05*SegmentExceptTable[[#This Row],[Boundary S/M]])","v":-0.3490949152674333},{"$f":"IF(AND(AND(kwpeak_norm>SegmentExceptTable[[#This Row],[kW Boundary]],kwpeak_norm<SegmentExceptTable[[#This Row],[kW Exception]]),AND(kwhmo_norm>SegmentExceptTable[[#This Row],[Boundary S/M]],kwhmo_norm<SegmentExceptTable[[#This Row],[Exception S/M]])),1,0)","v":0},{"$f":"$BP$10*SegmentExceptTable[[#This Row],[kW Boundary]]+$BP$11","v":1.4854426276154959},{"$f":"$BP$12*SegmentExceptTable[[#This Row],[kW Boundary]]+$BP$13","v":0.20874262732901577},{"$f":"SegmentExceptTable[[#This Row],[Boundary M/L]]+(0.05*SegmentExceptTable[[#This Row],[Boundary M/L]])","v":0.21917975869546658},{"$f":"IF(AND(AND(kwpeak_norm>SegmentExceptTable[[#This Row],[kW Boundary]],kwpeak_norm<SegmentExceptTable[[#This Row],[kW Exception]]),AND(kwhmo_norm>SegmentExceptTable[[#This Row],[Boundary M/L]],kwhmo_norm<SegmentExceptTable[[#This Row],[Exception M/L]])),1,0)","v":0}]
[null,null,null,null,null,null,null,null,null,null,null,null,null,null,null,null,null,null,null,null,null,null,null,null,null,null,null,null,null,null,null,null,null,null,null,null,null,null,null,null,null,null,null,null,null,null,null,459,{"$f":"SegmentExceptTable[[#This Row],[Numbers]]/$BP$4","v":0.76627712854757934},{"$f":"SegmentExceptTable[[#This Row],[kW Boundary]]+(0.05*SegmentExceptTable[[#This Row],[kW Boundary]])","v":0.80459098497495829},{"$f":"$BP$6*SegmentExceptTable[[#This Row],[kW Boundary]]+$BP$7","v":1.0951977668805111},{"$f":"$BP$8*SegmentExceptTable[[#This Row],[kW Boundary]]+$BP$9","v":-0.33361978426917693},{"$f":"SegmentExceptTable[[#This Row],[Boundary S/M]]+(0.05*SegmentExceptTable[[#This Row],[Boundary S/M]])","v":-0.35030077348263577},{"$f":"IF(AND(AND(kwpeak_norm>SegmentExceptTable[[#This Row],[kW Boundary]],kwpeak_norm<SegmentExceptTable[[#This Row],[kW Exception]]),AND(kwhmo_norm>SegmentExceptTable[[#This Row],[Boundary S/M]],kwhmo_norm<SegmentExceptTable[[#This Row],[Exception S/M]])),1,0)","v":0},{"$f":"$BP$10*SegmentExceptTable[[#This Row],[kW Boundary]]+$BP$11","v":1.4889696812577347},{"$f":"$BP$12*SegmentExceptTable[[#This Row],[kW Boundary]]+$BP$13","v":0.20795243230522703},{"$f":"SegmentExceptTable[[#This Row],[Boundary M/L]]+(0.05*SegmentExceptTable[[#This Row],[Boundary M/L]])","v":0.2183500539204884},{"$f":"IF(AND(AND(kwpeak_norm>SegmentExceptTable[[#This Row],[kW Boundary]],kwpeak_norm<SegmentExceptTable[[#This Row],[kW Exception]]),AND(kwhmo_norm>SegmentExceptTable[[#This Row],[Boundary M/L]],kwhmo_norm<SegmentExceptTable[[#This Row],[Exception M/L]])),1,0)","v":0}]
[null,null,null,null,null,null,null,null,null,null,null,null,null,null,null,null,null,null,null,null,null,null,null,null,null,null,null,null,null,null,null,null,null,null,null,null,null,null,null,null,null,null,null,null,null,null,null,4120,{"$f":"SegmentExceptTable[[#This Row],[Numbers]]/$BP$4","v":6.8781302170283807},{"$f":"SegmentExceptTable[[#This Row],[kW Boundary]]+(0.05*SegmentExceptTable[[#This Row],[kW Boundary]])","v":7.2220367278798001},{"$f":"$BP$6*SegmentExceptTable[[#This Row],[kW Boundary]]+$BP$7","v":9.9798234782164545},{"$f":"$BP$8*SegmentExceptTable[[#This Row],[kW Boundary]]+$BP$9","v":-4.538045427941614},{"$f":"SegmentExceptTable[[#This Row],[Boundary S/M]]+(0.05*SegmentExceptTable[[#This Row],[Boundary S/M]])","v":-4.7649476993386948},{"$f":"IF(AND(AND(kwpeak_norm>SegmentExceptTable[[#This Row],[kW Boundary]],kwpeak_norm<SegmentExceptTable[[#This Row],[kW Exception]]),AND(kwhmo_norm>SegmentExceptTable[[#This Row],[Boundary S/M]],kwhmo_norm<SegmentExceptTable[[#This Row],[Exception S/M]])),1,0)","v":0},{"$f":"$BP$10*SegmentExceptTable[[#This Row],[kW Boundary]]+$BP$11","v":14.401513065492992},{"$f":"$BP$12*SegmentExceptTable[[#This Row],[kW Boundary]]+$BP$13","v":-2.6849515497854122},{"$f":"SegmentExceptTable[[#This Row],[Boundary M/L]]+(0.05*SegmentExceptTable[[#This Row],[Boundary M/L]])","v":-2.8191991272746826},{"$f":"IF(AND(AND(kwpeak_norm>SegmentExceptTable[[#This Row],[kW Boundary]],kwpeak_norm<SegmentExceptTable[[#This Row],[kW Exception]]),AND(kwhmo_norm>SegmentExceptTable[[#This Row],[Boundary M/L]],kwhmo_norm<SegmentExceptTable[[#This Row],[Exception M/L]])),1,0)","v":0}]
[null,null,null,null,null,null,null,null,null,null,null,null,null,null,null,null,null,null,null,null,null,null,null,null,null,null,null,null,null,null,null,null,null,null,null,null,null,null,null,null,null,null,null,null,null,null,null,461,{"$f":"SegmentExceptTable[[#This Row],[Numbers]]/$BP$4","v":0.76961602671118534},{"$f":"SegmentExceptTable[[#This Row],[kW Boundary]]+(0.05*SegmentExceptTable[[#This Row],[kW Boundary]])","v":0.80809682804674465},{"$f":"$BP$6*SegmentExceptTable[[#This Row],[kW Boundary]]+$BP$7","v":1.1000514274712436},{"$f":"$BP$8*SegmentExceptTable[[#This Row],[kW Boundary]]+$BP$9","v":-0.3359166570600387},{"$f":"SegmentExceptTable[[#This Row],[Boundary S/M]]+(0.05*SegmentExceptTable[[#This Row],[Boundary S/M]])","v":-0.35271248991304066},{"$f":"IF(AND(AND(kwpeak_norm>SegmentExceptTable[[#This Row],[kW Boundary]],kwpeak_norm<SegmentExceptTable[[#This Row],[kW Exception]]),AND(kwhmo_norm>SegmentExceptTable[[#This Row],[Boundary S/M]],kwhmo_norm<SegmentExceptTable[[#This Row],[Exception S/M]])),1,0)","v":0},{"$f":"$BP$10*SegmentExceptTable[[#This Row],[kW Boundary]]+$BP$11","v":1.4960237885422116},{"$f":"$BP$12*SegmentExceptTable[[#This Row],[kW Boundary]]+$BP$13","v":0.20637204225764949},{"$f":"SegmentExceptTable[[#This Row],[Boundary M/L]]+(0.05*SegmentExceptTable[[#This Row],[Boundary M/L]])","v":0.21669064437053195},{"$f":"IF(AND(AND(kwpeak_norm>SegmentExceptTable[[#This Row],[kW Boundary]],kwpeak_norm<SegmentExceptTable[[#This Row],[kW Exception]]),AND(kwhmo_norm>SegmentExceptTable[[#This Row],[Boundary M/L]],kwhmo_norm<SegmentExceptTable[[#This Row],[Exception M/L]])),1,0)","v":0}]
[null,null,null,null,null,null,null,null,null,null,null,null,null,null,null,null,null,null,null,null,null,null,null,null,null,null,null,null,null,null,null,null,null,null,null,null,null,null,null,null,null,null,null,null,null,null,null,462,{"$f":"SegmentExceptTable[[#This Row],[Numbers]]/$BP$4","v":0.77128547579298834},{"$f":"SegmentExceptTable[[#This Row],[kW Boundary]]+(0.05*SegmentExceptTable[[#This Row],[kW Boundary]])","v":0.80984974958263778},{"$f":"$BP$6*SegmentExceptTable[[#This Row],[kW Boundary]]+$BP$7","v":1.1024782577666099},{"$f":"$BP$8*SegmentExceptTable[[#This Row],[kW Boundary]]+$BP$9","v":-0.33706509345546953},{"$f":"SegmentExceptTable[[#This Row],[Boundary S/M]]+(0.05*SegmentExceptTable[[#This Row],[Boundary S/M]])","v":-0.35391834812824302},{"$f":"IF(AND(AND(kwpeak_norm>SegmentExceptTable[[#This Row],[kW Boundary]],kwpeak_norm<SegmentExceptTable[[#This Row],[kW Exception]]),AND(kwhmo_norm>SegmentExceptTable[[#This Row],[Boundary S/M]],kwhmo_norm<SegmentExceptTable[[#This Row],[Exception S/M]])),1,0)","v":0},{"$f":"$BP$10*SegmentExceptTable[[#This Row],[kW Boundary]]+$BP$11","v":1.4995508421844503},{"$f":"$BP$12*SegmentExceptTable[[#This Row],[kW Boundary]]+$BP$13","v":0.20558184723386075},{"$f":"SegmentExceptTable[[#This Row],[Boundary M/L]]+(0.05*SegmentExceptTable[[#This Row],[Boundary M/L]])","v":0.21586093959555377},{"$f":"IF(AND(AND(kwpeak_norm>SegmentExceptTable[[#This Row],[kW Boundary]],kwpeak_norm<SegmentExceptTable[[#This Row],[kW Exception]]),AND(kwhmo_norm>SegmentExceptTable[[#This Row],[Boundary M/L]],kwhmo_norm<SegmentExceptTable[[#This Row],[Exception M/L]])),1,0)","v":0}]
[null,null,null,null,null,null,null,null,null,null,null,null,null,null,null,null,null,null,null,null,null,null,null,null,null,null,null,null,null,null,null,null,null,null,null,null,null,null,null,null,null,null,null,null,null,null,null,463,{"$f":"SegmentExceptTable[[#This Row],[Numbers]]/$BP$4","v":0.77295492487479134},{"$f":"SegmentExceptTable[[#This Row],[kW Boundary]]+(0.05*SegmentExceptTable[[#This Row],[kW Boundary]])","v":0.81160267111853091},{"$f":"$BP$6*SegmentExceptTable[[#This Row],[kW Boundary]]+$BP$7","v":1.1049050880619762},{"$f":"$BP$8*SegmentExceptTable[[#This Row],[kW Boundary]]+$BP$9","v":-0.33821352985090036},{"$f":"SegmentExceptTable[[#This Row],[Boundary S/M]]+(0.05*SegmentExceptTable[[#This Row],[Boundary S/M]])","v":-0.35512420634344538},{"$f":"IF(AND(AND(kwpeak_norm>SegmentExceptTable[[#This Row],[kW Boundary]],kwpeak_norm<SegmentExceptTable[[#This Row],[kW Exception]]),AND(kwhmo_norm>SegmentExceptTable[[#This Row],[Boundary S/M]],kwhmo_norm<SegmentExceptTable[[#This Row],[Exception S/M]])),1,0)","v":0},{"$f":"$BP$10*SegmentExceptTable[[#This Row],[kW Boundary]]+$BP$11","v":1.5030778958266886},{"$f":"$BP$12*SegmentExceptTable[[#This Row],[kW Boundary]]+$BP$13","v":0.20479165221007201},{"$f":"SegmentExceptTable[[#This Row],[Boundary M/L]]+(0.05*SegmentExceptTable[[#This Row],[Boundary M/L]])","v":0.2150312348205756},{"$f":"IF(AND(AND(kwpeak_norm>SegmentExceptTable[[#This Row],[kW Boundary]],kwpeak_norm<SegmentExceptTable[[#This Row],[kW Exception]]),AND(kwhmo_norm>SegmentExceptTable[[#This Row],[Boundary M/L]],kwhmo_norm<SegmentExceptTable[[#This Row],[Exception M/L]])),1,0)","v":0}]
[null,null,null,null,null,null,null,null,null,null,null,null,null,null,null,null,null,null,null,null,null,null,null,null,null,null,null,null,null,null,null,null,null,null,null,null,null,null,null,null,null,null,null,null,null,null,null,464,{"$f":"SegmentExceptTable[[#This Row],[Numbers]]/$BP$4","v":0.77462437395659434},{"$f":"SegmentExceptTable[[#This Row],[kW Boundary]]+(0.05*SegmentExceptTable[[#This Row],[kW Boundary]])","v":0.81335559265442403},{"$f":"$BP$6*SegmentExceptTable[[#This Row],[kW Boundary]]+$BP$7","v":1.1073319183573425},{"$f":"$BP$8*SegmentExceptTable[[#This Row],[kW Boundary]]+$BP$9","v":-0.3393619662463313},{"$f":"SegmentExceptTable[[#This Row],[Boundary S/M]]+(0.05*SegmentExceptTable[[#This Row],[Boundary S/M]])","v":-0.35633006455864785},{"$f":"IF(AND(AND(kwpeak_norm>SegmentExceptTable[[#This Row],[kW Boundary]],kwpeak_norm<SegmentExceptTable[[#This Row],[kW Exception]]),AND(kwhmo_norm>SegmentExceptTable[[#This Row],[Boundary S/M]],kwhmo_norm<SegmentExceptTable[[#This Row],[Exception S/M]])),1,0)","v":0},{"$f":"$BP$10*SegmentExceptTable[[#This Row],[kW Boundary]]+$BP$11","v":1.5066049494689273},{"$f":"$BP$12*SegmentExceptTable[[#This Row],[kW Boundary]]+$BP$13","v":0.20400145718628326},{"$f":"SegmentExceptTable[[#This Row],[Boundary M/L]]+(0.05*SegmentExceptTable[[#This Row],[Boundary M/L]])","v":0.21420153004559742},{"$f":"IF(AND(AND(kwpeak_norm>SegmentExceptTable[[#This Row],[kW Boundary]],kwpeak_norm<SegmentExceptTable[[#This Row],[kW Exception]]),AND(kwhmo_norm>SegmentExceptTable[[#This Row],[Boundary M/L]],kwhmo_norm<SegmentExceptTable[[#This Row],[Exception M/L]])),1,0)","v":0}]
[null,null,null,null,null,null,null,null,null,null,null,null,null,null,null,null,null,null,null,null,null,null,null,null,null,null,null,null,null,null,null,null,null,null,null,null,null,null,null,null,null,null,null,null,null,null,null,465,{"$f":"SegmentExceptTable[[#This Row],[Numbers]]/$BP$4","v":0.77629382303839733},{"$f":"SegmentExceptTable[[#This Row],[kW Boundary]]+(0.05*SegmentExceptTable[[#This Row],[kW Boundary]])","v":0.81510851419031716},{"$f":"$BP$6*SegmentExceptTable[[#This Row],[kW Boundary]]+$BP$7","v":1.1097587486527087},{"$f":"$BP$8*SegmentExceptTable[[#This Row],[kW Boundary]]+$BP$9","v":-0.34051040264176213},{"$f":"SegmentExceptTable[[#This Row],[Boundary S/M]]+(0.05*SegmentExceptTable[[#This Row],[Boundary S/M]])","v":-0.35753592277385027},{"$f":"IF(AND(AND(kwpeak_norm>SegmentExceptTable[[#This Row],[kW Boundary]],kwpeak_norm<SegmentExceptTable[[#This Row],[kW Exception]]),AND(kwhmo_norm>SegmentExceptTable[[#This Row],[Boundary S/M]],kwhmo_norm<SegmentExceptTable[[#This Row],[Exception S/M]])),1,0)","v":0},{"$f":"$BP$10*SegmentExceptTable[[#This Row],[kW Boundary]]+$BP$11","v":1.5101320031111656},{"$f":"$BP$12*SegmentExceptTable[[#This Row],[kW Boundary]]+$BP$13","v":0.20321126216249447},{"$f":"SegmentExceptTable[[#This Row],[Boundary M/L]]+(0.05*SegmentExceptTable[[#This Row],[Boundary M/L]])","v":0.21337182527061918},{"$f":"IF(AND(AND(kwpeak_norm>SegmentExceptTable[[#This Row],[kW Boundary]],kwpeak_norm<SegmentExceptTable[[#This Row],[kW Exception]]),AND(kwhmo_norm>SegmentExceptTable[[#This Row],[Boundary M/L]],kwhmo_norm<SegmentExceptTable[[#This Row],[Exception M/L]])),1,0)","v":0}]
[null,null,null,null,null,null,null,null,null,null,null,null,null,null,null,null,null,null,null,null,null,null,null,null,null,null,null,null,null,null,null,null,null,null,null,null,null,null,null,null,null,null,null,null,null,null,null,466,{"$f":"SegmentExceptTable[[#This Row],[Numbers]]/$BP$4","v":0.77796327212020033},{"$f":"SegmentExceptTable[[#This Row],[kW Boundary]]+(0.05*SegmentExceptTable[[#This Row],[kW Boundary]])","v":0.81686143572621039},{"$f":"$BP$6*SegmentExceptTable[[#This Row],[kW Boundary]]+$BP$7","v":1.112185578948075},{"$f":"$BP$8*SegmentExceptTable[[#This Row],[kW Boundary]]+$BP$9","v":-0.34165883903719296},{"$f":"SegmentExceptTable[[#This Row],[Boundary S/M]]+(0.05*SegmentExceptTable[[#This Row],[Boundary S/M]])","v":-0.35874178098905263},{"$f":"IF(AND(AND(kwpeak_norm>SegmentExceptTable[[#This Row],[kW Boundary]],kwpeak_norm<SegmentExceptTable[[#This Row],[kW Exception]]),AND(kwhmo_norm>SegmentExceptTable[[#This Row],[Boundary S/M]],kwhmo_norm<SegmentExceptTable[[#This Row],[Exception S/M]])),1,0)","v":0},{"$f":"$BP$10*SegmentExceptTable[[#This Row],[kW Boundary]]+$BP$11","v":1.5136590567534043},{"$f":"$BP$12*SegmentExceptTable[[#This Row],[kW Boundary]]+$BP$13","v":0.20242106713870572},{"$f":"SegmentExceptTable[[#This Row],[Boundary M/L]]+(0.05*SegmentExceptTable[[#This Row],[Boundary M/L]])","v":0.212542120495641},{"$f":"IF(AND(AND(kwpeak_norm>SegmentExceptTable[[#This Row],[kW Boundary]],kwpeak_norm<SegmentExceptTable[[#This Row],[kW Exception]]),AND(kwhmo_norm>SegmentExceptTable[[#This Row],[Boundary M/L]],kwhmo_norm<SegmentExceptTable[[#This Row],[Exception M/L]])),1,0)","v":0}]
[null,null,null,null,null,null,null,null,null,null,null,null,null,null,null,null,null,null,null,null,null,null,null,null,null,null,null,null,null,null,null,null,null,null,null,null,null,null,null,null,null,null,null,null,null,null,null,467,{"$f":"SegmentExceptTable[[#This Row],[Numbers]]/$BP$4","v":0.77963272120200333},{"$f":"SegmentExceptTable[[#This Row],[kW Boundary]]+(0.05*SegmentExceptTable[[#This Row],[kW Boundary]])","v":0.81861435726210352},{"$f":"$BP$6*SegmentExceptTable[[#This Row],[kW Boundary]]+$BP$7","v":1.1146124092434413},{"$f":"$BP$8*SegmentExceptTable[[#This Row],[kW Boundary]]+$BP$9","v":-0.3428072754326239},{"$f":"SegmentExceptTable[[#This Row],[Boundary S/M]]+(0.05*SegmentExceptTable[[#This Row],[Boundary S/M]])","v":-0.3599476392042551},{"$f":"IF(AND(AND(kwpeak_norm>SegmentExceptTable[[#This Row],[kW Boundary]],kwpeak_norm<SegmentExceptTable[[#This Row],[kW Exception]]),AND(kwhmo_norm>SegmentExceptTable[[#This Row],[Boundary S/M]],kwhmo_norm<SegmentExceptTable[[#This Row],[Exception S/M]])),1,0)","v":0},{"$f":"$BP$10*SegmentExceptTable[[#This Row],[kW Boundary]]+$BP$11","v":1.517186110395643},{"$f":"$BP$12*SegmentExceptTable[[#This Row],[kW Boundary]]+$BP$13","v":0.20163087211491698},{"$f":"SegmentExceptTable[[#This Row],[Boundary M/L]]+(0.05*SegmentExceptTable[[#This Row],[Boundary M/L]])","v":0.21171241572066282},{"$f":"IF(AND(AND(kwpeak_norm>SegmentExceptTable[[#This Row],[kW Boundary]],kwpeak_norm<SegmentExceptTable[[#This Row],[kW Exception]]),AND(kwhmo_norm>SegmentExceptTable[[#This Row],[Boundary M/L]],kwhmo_norm<SegmentExceptTable[[#This Row],[Exception M/L]])),1,0)","v":0}]
[null,null,null,null,null,null,null,null,null,null,null,null,null,null,null,null,null,null,null,null,null,null,null,null,null,null,null,null,null,null,null,null,null,null,null,null,null,null,null,null,null,null,null,null,null,null,null,468,{"$f":"SegmentExceptTable[[#This Row],[Numbers]]/$BP$4","v":0.78130217028380633},{"$f":"SegmentExceptTable[[#This Row],[kW Boundary]]+(0.05*SegmentExceptTable[[#This Row],[kW Boundary]])","v":0.82036727879799665},{"$f":"$BP$6*SegmentExceptTable[[#This Row],[kW Boundary]]+$BP$7","v":1.1170392395388076},{"$f":"$BP$8*SegmentExceptTable[[#This Row],[kW Boundary]]+$BP$9","v":-0.34395571182805473},{"$f":"SegmentExceptTable[[#This Row],[Boundary S/M]]+(0.05*SegmentExceptTable[[#This Row],[Boundary S/M]])","v":-0.36115349741945746},{"$f":"IF(AND(AND(kwpeak_norm>SegmentExceptTable[[#This Row],[kW Boundary]],kwpeak_norm<SegmentExceptTable[[#This Row],[kW Exception]]),AND(kwhmo_norm>SegmentExceptTable[[#This Row],[Boundary S/M]],kwhmo_norm<SegmentExceptTable[[#This Row],[Exception S/M]])),1,0)","v":0},{"$f":"$BP$10*SegmentExceptTable[[#This Row],[kW Boundary]]+$BP$11","v":1.5207131640378813},{"$f":"$BP$12*SegmentExceptTable[[#This Row],[kW Boundary]]+$BP$13","v":0.20084067709112824},{"$f":"SegmentExceptTable[[#This Row],[Boundary M/L]]+(0.05*SegmentExceptTable[[#This Row],[Boundary M/L]])","v":0.21088271094568464},{"$f":"IF(AND(AND(kwpeak_norm>SegmentExceptTable[[#This Row],[kW Boundary]],kwpeak_norm<SegmentExceptTable[[#This Row],[kW Exception]]),AND(kwhmo_norm>SegmentExceptTable[[#This Row],[Boundary M/L]],kwhmo_norm<SegmentExceptTable[[#This Row],[Exception M/L]])),1,0)","v":0}]
[null,null,null,null,null,null,null,null,null,null,null,null,null,null,null,null,null,null,null,null,null,null,null,null,null,null,null,null,null,null,null,null,null,null,null,null,null,null,null,null,null,null,null,null,null,null,null,469,{"$f":"SegmentExceptTable[[#This Row],[Numbers]]/$BP$4","v":0.78297161936560933},{"$f":"SegmentExceptTable[[#This Row],[kW Boundary]]+(0.05*SegmentExceptTable[[#This Row],[kW Boundary]])","v":0.82212020033388977},{"$f":"$BP$6*SegmentExceptTable[[#This Row],[kW Boundary]]+$BP$7","v":1.1194660698341738},{"$f":"$BP$8*SegmentExceptTable[[#This Row],[kW Boundary]]+$BP$9","v":-0.34510414822348567},{"$f":"SegmentExceptTable[[#This Row],[Boundary S/M]]+(0.05*SegmentExceptTable[[#This Row],[Boundary S/M]])","v":-0.36235935563465993},{"$f":"IF(AND(AND(kwpeak_norm>SegmentExceptTable[[#This Row],[kW Boundary]],kwpeak_norm<SegmentExceptTable[[#This Row],[kW Exception]]),AND(kwhmo_norm>SegmentExceptTable[[#This Row],[Boundary S/M]],kwhmo_norm<SegmentExceptTable[[#This Row],[Exception S/M]])),1,0)","v":0},{"$f":"$BP$10*SegmentExceptTable[[#This Row],[kW Boundary]]+$BP$11","v":1.52424021768012},{"$f":"$BP$12*SegmentExceptTable[[#This Row],[kW Boundary]]+$BP$13","v":0.20005048206733944},{"$f":"SegmentExceptTable[[#This Row],[Boundary M/L]]+(0.05*SegmentExceptTable[[#This Row],[Boundary M/L]])","v":0.21005300617070641},{"$f":"IF(AND(AND(kwpeak_norm>SegmentExceptTable[[#This Row],[kW Boundary]],kwpeak_norm<SegmentExceptTable[[#This Row],[kW Exception]]),AND(kwhmo_norm>SegmentExceptTable[[#This Row],[Boundary M/L]],kwhmo_norm<SegmentExceptTable[[#This Row],[Exception M/L]])),1,0)","v":0}]
[null,null,null,null,null,null,null,null,null,null,null,null,null,null,null,null,null,null,null,null,null,null,null,null,null,null,null,null,null,null,null,null,null,null,null,null,null,null,null,null,null,null,null,null,null,null,null,470,{"$f":"SegmentExceptTable[[#This Row],[Numbers]]/$BP$4","v":0.78464106844741233},{"$f":"SegmentExceptTable[[#This Row],[kW Boundary]]+(0.05*SegmentExceptTable[[#This Row],[kW Boundary]])","v":0.8238731218697829},{"$f":"$BP$6*SegmentExceptTable[[#This Row],[kW Boundary]]+$BP$7","v":1.1218929001295401},{"$f":"$BP$8*SegmentExceptTable[[#This Row],[kW Boundary]]+$BP$9","v":-0.3462525846189165},{"$f":"SegmentExceptTable[[#This Row],[Boundary S/M]]+(0.05*SegmentExceptTable[[#This Row],[Boundary S/M]])","v":-0.36356521384986235},{"$f":"IF(AND(AND(kwpeak_norm>SegmentExceptTable[[#This Row],[kW Boundary]],kwpeak_norm<SegmentExceptTable[[#This Row],[kW Exception]]),AND(kwhmo_norm>SegmentExceptTable[[#This Row],[Boundary S/M]],kwhmo_norm<SegmentExceptTable[[#This Row],[Exception S/M]])),1,0)","v":0},{"$f":"$BP$10*SegmentExceptTable[[#This Row],[kW Boundary]]+$BP$11","v":1.5277672713223582},{"$f":"$BP$12*SegmentExceptTable[[#This Row],[kW Boundary]]+$BP$13","v":0.1992602870435507},{"$f":"SegmentExceptTable[[#This Row],[Boundary M/L]]+(0.05*SegmentExceptTable[[#This Row],[Boundary M/L]])","v":0.20922330139572823},{"$f":"IF(AND(AND(kwpeak_norm>SegmentExceptTable[[#This Row],[kW Boundary]],kwpeak_norm<SegmentExceptTable[[#This Row],[kW Exception]]),AND(kwhmo_norm>SegmentExceptTable[[#This Row],[Boundary M/L]],kwhmo_norm<SegmentExceptTable[[#This Row],[Exception M/L]])),1,0)","v":0}]
[null,null,null,null,null,null,null,null,null,null,null,null,null,null,null,null,null,null,null,null,null,null,null,null,null,null,null,null,null,null,null,null,null,null,null,null,null,null,null,null,null,null,null,null,null,null,null,471,{"$f":"SegmentExceptTable[[#This Row],[Numbers]]/$BP$4","v":0.78631051752921532},{"$f":"SegmentExceptTable[[#This Row],[kW Boundary]]+(0.05*SegmentExceptTable[[#This Row],[kW Boundary]])","v":0.82562604340567614},{"$f":"$BP$6*SegmentExceptTable[[#This Row],[kW Boundary]]+$BP$7","v":1.1243197304249064},{"$f":"$BP$8*SegmentExceptTable[[#This Row],[kW Boundary]]+$BP$9","v":-0.34740102101434733},{"$f":"SegmentExceptTable[[#This Row],[Boundary S/M]]+(0.05*SegmentExceptTable[[#This Row],[Boundary S/M]])","v":-0.36477107206506471},{"$f":"IF(AND(AND(kwpeak_norm>SegmentExceptTable[[#This Row],[kW Boundary]],kwpeak_norm<SegmentExceptTable[[#This Row],[kW Exception]]),AND(kwhmo_norm>SegmentExceptTable[[#This Row],[Boundary S/M]],kwhmo_norm<SegmentExceptTable[[#This Row],[Exception S/M]])),1,0)","v":0},{"$f":"$BP$10*SegmentExceptTable[[#This Row],[kW Boundary]]+$BP$11","v":1.5312943249645969},{"$f":"$BP$12*SegmentExceptTable[[#This Row],[kW Boundary]]+$BP$13","v":0.19847009201976196},{"$f":"SegmentExceptTable[[#This Row],[Boundary M/L]]+(0.05*SegmentExceptTable[[#This Row],[Boundary M/L]])","v":0.20839359662075005},{"$f":"IF(AND(AND(kwpeak_norm>SegmentExceptTable[[#This Row],[kW Boundary]],kwpeak_norm<SegmentExceptTable[[#This Row],[kW Exception]]),AND(kwhmo_norm>SegmentExceptTable[[#This Row],[Boundary M/L]],kwhmo_norm<SegmentExceptTable[[#This Row],[Exception M/L]])),1,0)","v":0}]
[null,null,null,null,null,null,null,null,null,null,null,null,null,null,null,null,null,null,null,null,null,null,null,null,null,null,null,null,null,null,null,null,null,null,null,null,null,null,null,null,null,null,null,null,null,null,null,472,{"$f":"SegmentExceptTable[[#This Row],[Numbers]]/$BP$4","v":0.78797996661101832},{"$f":"SegmentExceptTable[[#This Row],[kW Boundary]]+(0.05*SegmentExceptTable[[#This Row],[kW Boundary]])","v":0.82737896494156926},{"$f":"$BP$6*SegmentExceptTable[[#This Row],[kW Boundary]]+$BP$7","v":1.1267465607202727},{"$f":"$BP$8*SegmentExceptTable[[#This Row],[kW Boundary]]+$BP$9","v":-0.34854945740977827},{"$f":"SegmentExceptTable[[#This Row],[Boundary S/M]]+(0.05*SegmentExceptTable[[#This Row],[Boundary S/M]])","v":-0.36597693028026718},{"$f":"IF(AND(AND(kwpeak_norm>SegmentExceptTable[[#This Row],[kW Boundary]],kwpeak_norm<SegmentExceptTable[[#This Row],[kW Exception]]),AND(kwhmo_norm>SegmentExceptTable[[#This Row],[Boundary S/M]],kwhmo_norm<SegmentExceptTable[[#This Row],[Exception S/M]])),1,0)","v":0},{"$f":"$BP$10*SegmentExceptTable[[#This Row],[kW Boundary]]+$BP$11","v":1.5348213786068352},{"$f":"$BP$12*SegmentExceptTable[[#This Row],[kW Boundary]]+$BP$13","v":0.19767989699597321},{"$f":"SegmentExceptTable[[#This Row],[Boundary M/L]]+(0.05*SegmentExceptTable[[#This Row],[Boundary M/L]])","v":0.20756389184577187},{"$f":"IF(AND(AND(kwpeak_norm>SegmentExceptTable[[#This Row],[kW Boundary]],kwpeak_norm<SegmentExceptTable[[#This Row],[kW Exception]]),AND(kwhmo_norm>SegmentExceptTable[[#This Row],[Boundary M/L]],kwhmo_norm<SegmentExceptTable[[#This Row],[Exception M/L]])),1,0)","v":0}]
[null,null,null,null,null,null,null,null,null,null,null,null,null,null,null,null,null,null,null,null,null,null,null,null,null,null,null,null,null,null,null,null,null,null,null,null,null,null,null,null,null,null,null,null,null,null,null,473,{"$f":"SegmentExceptTable[[#This Row],[Numbers]]/$BP$4","v":0.78964941569282132},{"$f":"SegmentExceptTable[[#This Row],[kW Boundary]]+(0.05*SegmentExceptTable[[#This Row],[kW Boundary]])","v":0.82913188647746239},{"$f":"$BP$6*SegmentExceptTable[[#This Row],[kW Boundary]]+$BP$7","v":1.129173391015639},{"$f":"$BP$8*SegmentExceptTable[[#This Row],[kW Boundary]]+$BP$9","v":-0.3496978938052091},{"$f":"SegmentExceptTable[[#This Row],[Boundary S/M]]+(0.05*SegmentExceptTable[[#This Row],[Boundary S/M]])","v":-0.36718278849546954},{"$f":"IF(AND(AND(kwpeak_norm>SegmentExceptTable[[#This Row],[kW Boundary]],kwpeak_norm<SegmentExceptTable[[#This Row],[kW Exception]]),AND(kwhmo_norm>SegmentExceptTable[[#This Row],[Boundary S/M]],kwhmo_norm<SegmentExceptTable[[#This Row],[Exception S/M]])),1,0)","v":0},{"$f":"$BP$10*SegmentExceptTable[[#This Row],[kW Boundary]]+$BP$11","v":1.5383484322490739},{"$f":"$BP$12*SegmentExceptTable[[#This Row],[kW Boundary]]+$BP$13","v":0.19688970197218447},{"$f":"SegmentExceptTable[[#This Row],[Boundary M/L]]+(0.05*SegmentExceptTable[[#This Row],[Boundary M/L]])","v":0.20673418707079369},{"$f":"IF(AND(AND(kwpeak_norm>SegmentExceptTable[[#This Row],[kW Boundary]],kwpeak_norm<SegmentExceptTable[[#This Row],[kW Exception]]),AND(kwhmo_norm>SegmentExceptTable[[#This Row],[Boundary M/L]],kwhmo_norm<SegmentExceptTable[[#This Row],[Exception M/L]])),1,0)","v":0}]
[null,null,null,null,null,null,null,null,null,null,null,null,null,null,null,null,null,null,null,null,null,null,null,null,null,null,null,null,null,null,null,null,null,null,null,null,null,null,null,null,null,null,null,null,null,null,null,474,{"$f":"SegmentExceptTable[[#This Row],[Numbers]]/$BP$4","v":0.79131886477462432},{"$f":"SegmentExceptTable[[#This Row],[kW Boundary]]+(0.05*SegmentExceptTable[[#This Row],[kW Boundary]])","v":0.83088480801335551},{"$f":"$BP$6*SegmentExceptTable[[#This Row],[kW Boundary]]+$BP$7","v":1.1316002213110052},{"$f":"$BP$8*SegmentExceptTable[[#This Row],[kW Boundary]]+$BP$9","v":-0.35084633020063993},{"$f":"SegmentExceptTable[[#This Row],[Boundary S/M]]+(0.05*SegmentExceptTable[[#This Row],[Boundary S/M]])","v":-0.36838864671067195},{"$f":"IF(AND(AND(kwpeak_norm>SegmentExceptTable[[#This Row],[kW Boundary]],kwpeak_norm<SegmentExceptTable[[#This Row],[kW Exception]]),AND(kwhmo_norm>SegmentExceptTable[[#This Row],[Boundary S/M]],kwhmo_norm<SegmentExceptTable[[#This Row],[Exception S/M]])),1,0)","v":0},{"$f":"$BP$10*SegmentExceptTable[[#This Row],[kW Boundary]]+$BP$11","v":1.5418754858913122},{"$f":"$BP$12*SegmentExceptTable[[#This Row],[kW Boundary]]+$BP$13","v":0.19609950694839567},{"$f":"SegmentExceptTable[[#This Row],[Boundary M/L]]+(0.05*SegmentExceptTable[[#This Row],[Boundary M/L]])","v":0.20590448229581546},{"$f":"IF(AND(AND(kwpeak_norm>SegmentExceptTable[[#This Row],[kW Boundary]],kwpeak_norm<SegmentExceptTable[[#This Row],[kW Exception]]),AND(kwhmo_norm>SegmentExceptTable[[#This Row],[Boundary M/L]],kwhmo_norm<SegmentExceptTable[[#This Row],[Exception M/L]])),1,0)","v":0}]
[null,null,null,null,null,null,null,null,null,null,null,null,null,null,null,null,null,null,null,null,null,null,null,null,null,null,null,null,null,null,null,null,null,null,null,null,null,null,null,null,null,null,null,null,null,null,null,475,{"$f":"SegmentExceptTable[[#This Row],[Numbers]]/$BP$4","v":0.79298831385642743},{"$f":"SegmentExceptTable[[#This Row],[kW Boundary]]+(0.05*SegmentExceptTable[[#This Row],[kW Boundary]])","v":0.83263772954924886},{"$f":"$BP$6*SegmentExceptTable[[#This Row],[kW Boundary]]+$BP$7","v":1.1340270516063715},{"$f":"$BP$8*SegmentExceptTable[[#This Row],[kW Boundary]]+$BP$9","v":-0.35199476659607098},{"$f":"SegmentExceptTable[[#This Row],[Boundary S/M]]+(0.05*SegmentExceptTable[[#This Row],[Boundary S/M]])","v":-0.36959450492587453},{"$f":"IF(AND(AND(kwpeak_norm>SegmentExceptTable[[#This Row],[kW Boundary]],kwpeak_norm<SegmentExceptTable[[#This Row],[kW Exception]]),AND(kwhmo_norm>SegmentExceptTable[[#This Row],[Boundary S/M]],kwhmo_norm<SegmentExceptTable[[#This Row],[Exception S/M]])),1,0)","v":0},{"$f":"$BP$10*SegmentExceptTable[[#This Row],[kW Boundary]]+$BP$11","v":1.5454025395335513},{"$f":"$BP$12*SegmentExceptTable[[#This Row],[kW Boundary]]+$BP$13","v":0.19530931192460688},{"$f":"SegmentExceptTable[[#This Row],[Boundary M/L]]+(0.05*SegmentExceptTable[[#This Row],[Boundary M/L]])","v":0.20507477752083722},{"$f":"IF(AND(AND(kwpeak_norm>SegmentExceptTable[[#This Row],[kW Boundary]],kwpeak_norm<SegmentExceptTable[[#This Row],[kW Exception]]),AND(kwhmo_norm>SegmentExceptTable[[#This Row],[Boundary M/L]],kwhmo_norm<SegmentExceptTable[[#This Row],[Exception M/L]])),1,0)","v":0}]
[null,null,null,null,null,null,null,null,null,null,null,null,null,null,null,null,null,null,null,null,null,null,null,null,null,null,null,null,null,null,null,null,null,null,null,null,null,null,null,null,null,null,null,null,null,null,null,476,{"$f":"SegmentExceptTable[[#This Row],[Numbers]]/$BP$4","v":0.79465776293823043},{"$f":"SegmentExceptTable[[#This Row],[kW Boundary]]+(0.05*SegmentExceptTable[[#This Row],[kW Boundary]])","v":0.83439065108514199},{"$f":"$BP$6*SegmentExceptTable[[#This Row],[kW Boundary]]+$BP$7","v":1.1364538819017378},{"$f":"$BP$8*SegmentExceptTable[[#This Row],[kW Boundary]]+$BP$9","v":-0.35314320299150181},{"$f":"SegmentExceptTable[[#This Row],[Boundary S/M]]+(0.05*SegmentExceptTable[[#This Row],[Boundary S/M]])","v":-0.37080036314107689},{"$f":"IF(AND(AND(kwpeak_norm>SegmentExceptTable[[#This Row],[kW Boundary]],kwpeak_norm<SegmentExceptTable[[#This Row],[kW Exception]]),AND(kwhmo_norm>SegmentExceptTable[[#This Row],[Boundary S/M]],kwhmo_norm<SegmentExceptTable[[#This Row],[Exception S/M]])),1,0)","v":0},{"$f":"$BP$10*SegmentExceptTable[[#This Row],[kW Boundary]]+$BP$11","v":1.5489295931757896},{"$f":"$BP$12*SegmentExceptTable[[#This Row],[kW Boundary]]+$BP$13","v":0.19451911690081813},{"$f":"SegmentExceptTable[[#This Row],[Boundary M/L]]+(0.05*SegmentExceptTable[[#This Row],[Boundary M/L]])","v":0.20424507274585904},{"$f":"IF(AND(AND(kwpeak_norm>SegmentExceptTable[[#This Row],[kW Boundary]],kwpeak_norm<SegmentExceptTable[[#This Row],[kW Exception]]),AND(kwhmo_norm>SegmentExceptTable[[#This Row],[Boundary M/L]],kwhmo_norm<SegmentExceptTable[[#This Row],[Exception M/L]])),1,0)","v":0}]
[null,null,null,null,null,null,null,null,null,null,null,null,null,null,null,null,null,null,null,null,null,null,null,null,null,null,null,null,null,null,null,null,null,null,null,null,null,null,null,null,null,null,null,null,null,null,null,477,{"$f":"SegmentExceptTable[[#This Row],[Numbers]]/$BP$4","v":0.79632721202003343},{"$f":"SegmentExceptTable[[#This Row],[kW Boundary]]+(0.05*SegmentExceptTable[[#This Row],[kW Boundary]])","v":0.83614357262103511},{"$f":"$BP$6*SegmentExceptTable[[#This Row],[kW Boundary]]+$BP$7","v":1.1388807121971041},{"$f":"$BP$8*SegmentExceptTable[[#This Row],[kW Boundary]]+$BP$9","v":-0.35429163938693264},{"$f":"SegmentExceptTable[[#This Row],[Boundary S/M]]+(0.05*SegmentExceptTable[[#This Row],[Boundary S/M]])","v":-0.37200622135627925},{"$f":"IF(AND(AND(kwpeak_norm>SegmentExceptTable[[#This Row],[kW Boundary]],kwpeak_norm<SegmentExceptTable[[#This Row],[kW Exception]]),AND(kwhmo_norm>SegmentExceptTable[[#This Row],[Boundary S/M]],kwhmo_norm<SegmentExceptTable[[#This Row],[Exception S/M]])),1,0)","v":0},{"$f":"$BP$10*SegmentExceptTable[[#This Row],[kW Boundary]]+$BP$11","v":1.5524566468180283},{"$f":"$BP$12*SegmentExceptTable[[#This Row],[kW Boundary]]+$BP$13","v":0.19372892187702939},{"$f":"SegmentExceptTable[[#This Row],[Boundary M/L]]+(0.05*SegmentExceptTable[[#This Row],[Boundary M/L]])","v":0.20341536797088086},{"$f":"IF(AND(AND(kwpeak_norm>SegmentExceptTable[[#This Row],[kW Boundary]],kwpeak_norm<SegmentExceptTable[[#This Row],[kW Exception]]),AND(kwhmo_norm>SegmentExceptTable[[#This Row],[Boundary M/L]],kwhmo_norm<SegmentExceptTable[[#This Row],[Exception M/L]])),1,0)","v":0}]
[null,null,null,null,null,null,null,null,null,null,null,null,null,null,null,null,null,null,null,null,null,null,null,null,null,null,null,null,null,null,null,null,null,null,null,null,null,null,null,null,null,null,null,null,null,null,null,478,{"$f":"SegmentExceptTable[[#This Row],[Numbers]]/$BP$4","v":0.79799666110183642},{"$f":"SegmentExceptTable[[#This Row],[kW Boundary]]+(0.05*SegmentExceptTable[[#This Row],[kW Boundary]])","v":0.83789649415692824},{"$f":"$BP$6*SegmentExceptTable[[#This Row],[kW Boundary]]+$BP$7","v":1.1413075424924704},{"$f":"$BP$8*SegmentExceptTable[[#This Row],[kW Boundary]]+$BP$9","v":-0.35544007578236358},{"$f":"SegmentExceptTable[[#This Row],[Boundary S/M]]+(0.05*SegmentExceptTable[[#This Row],[Boundary S/M]])","v":-0.37321207957148178},{"$f":"IF(AND(AND(kwpeak_norm>SegmentExceptTable[[#This Row],[kW Boundary]],kwpeak_norm<SegmentExceptTable[[#This Row],[kW Exception]]),AND(kwhmo_norm>SegmentExceptTable[[#This Row],[Boundary S/M]],kwhmo_norm<SegmentExceptTable[[#This Row],[Exception S/M]])),1,0)","v":0},{"$f":"$BP$10*SegmentExceptTable[[#This Row],[kW Boundary]]+$BP$11","v":1.5559837004602666},{"$f":"$BP$12*SegmentExceptTable[[#This Row],[kW Boundary]]+$BP$13","v":0.19293872685324065},{"$f":"SegmentExceptTable[[#This Row],[Boundary M/L]]+(0.05*SegmentExceptTable[[#This Row],[Boundary M/L]])","v":0.20258566319590268},{"$f":"IF(AND(AND(kwpeak_norm>SegmentExceptTable[[#This Row],[kW Boundary]],kwpeak_norm<SegmentExceptTable[[#This Row],[kW Exception]]),AND(kwhmo_norm>SegmentExceptTable[[#This Row],[Boundary M/L]],kwhmo_norm<SegmentExceptTable[[#This Row],[Exception M/L]])),1,0)","v":0}]
[null,null,null,null,null,null,null,null,null,null,null,null,null,null,null,null,null,null,null,null,null,null,null,null,null,null,null,null,null,null,null,null,null,null,null,null,null,null,null,null,null,null,null,null,null,null,null,479,{"$f":"SegmentExceptTable[[#This Row],[Numbers]]/$BP$4","v":0.79966611018363942},{"$f":"SegmentExceptTable[[#This Row],[kW Boundary]]+(0.05*SegmentExceptTable[[#This Row],[kW Boundary]])","v":0.83964941569282137},{"$f":"$BP$6*SegmentExceptTable[[#This Row],[kW Boundary]]+$BP$7","v":1.1437343727878366},{"$f":"$BP$8*SegmentExceptTable[[#This Row],[kW Boundary]]+$BP$9","v":-0.35658851217779441},{"$f":"SegmentExceptTable[[#This Row],[Boundary S/M]]+(0.05*SegmentExceptTable[[#This Row],[Boundary S/M]])","v":-0.37441793778668414},{"$f":"IF(AND(AND(kwpeak_norm>SegmentExceptTable[[#This Row],[kW Boundary]],kwpeak_norm<SegmentExceptTable[[#This Row],[kW Exception]]),AND(kwhmo_norm>SegmentExceptTable[[#This Row],[Boundary S/M]],kwhmo_norm<SegmentExceptTable[[#This Row],[Exception S/M]])),1,0)","v":0},{"$f":"$BP$10*SegmentExceptTable[[#This Row],[kW Boundary]]+$BP$11","v":1.5595107541025053},{"$f":"$BP$12*SegmentExceptTable[[#This Row],[kW Boundary]]+$BP$13","v":0.19214853182945185},{"$f":"SegmentExceptTable[[#This Row],[Boundary M/L]]+(0.05*SegmentExceptTable[[#This Row],[Boundary M/L]])","v":0.20175595842092445},{"$f":"IF(AND(AND(kwpeak_norm>SegmentExceptTable[[#This Row],[kW Boundary]],kwpeak_norm<SegmentExceptTable[[#This Row],[kW Exception]]),AND(kwhmo_norm>SegmentExceptTable[[#This Row],[Boundary M/L]],kwhmo_norm<SegmentExceptTable[[#This Row],[Exception M/L]])),1,0)","v":0}]
[null,null,null,null,null,null,null,null,null,null,null,null,null,null,null,null,null,null,null,null,null,null,null,null,null,null,null,null,null,null,null,null,null,null,null,null,null,null,null,null,null,null,null,null,null,null,null,480,{"$f":"SegmentExceptTable[[#This Row],[Numbers]]/$BP$4","v":0.80133555926544242},{"$f":"SegmentExceptTable[[#This Row],[kW Boundary]]+(0.05*SegmentExceptTable[[#This Row],[kW Boundary]])","v":0.84140233722871449},{"$f":"$BP$6*SegmentExceptTable[[#This Row],[kW Boundary]]+$BP$7","v":1.1461612030832029},{"$f":"$BP$8*SegmentExceptTable[[#This Row],[kW Boundary]]+$BP$9","v":-0.35773694857322524},{"$f":"SegmentExceptTable[[#This Row],[Boundary S/M]]+(0.05*SegmentExceptTable[[#This Row],[Boundary S/M]])","v":-0.3756237960018865},{"$f":"IF(AND(AND(kwpeak_norm>SegmentExceptTable[[#This Row],[kW Boundary]],kwpeak_norm<SegmentExceptTable[[#This Row],[kW Exception]]),AND(kwhmo_norm>SegmentExceptTable[[#This Row],[Boundary S/M]],kwhmo_norm<SegmentExceptTable[[#This Row],[Exception S/M]])),1,0)","v":0},{"$f":"$BP$10*SegmentExceptTable[[#This Row],[kW Boundary]]+$BP$11","v":1.5630378077447435},{"$f":"$BP$12*SegmentExceptTable[[#This Row],[kW Boundary]]+$BP$13","v":0.19135833680566311},{"$f":"SegmentExceptTable[[#This Row],[Boundary M/L]]+(0.05*SegmentExceptTable[[#This Row],[Boundary M/L]])","v":0.20092625364594627},{"$f":"IF(AND(AND(kwpeak_norm>SegmentExceptTable[[#This Row],[kW Boundary]],kwpeak_norm<SegmentExceptTable[[#This Row],[kW Exception]]),AND(kwhmo_norm>SegmentExceptTable[[#This Row],[Boundary M/L]],kwhmo_norm<SegmentExceptTable[[#This Row],[Exception M/L]])),1,0)","v":0}]
[null,null,null,null,null,null,null,null,null,null,null,null,null,null,null,null,null,null,null,null,null,null,null,null,null,null,null,null,null,null,null,null,null,null,null,null,null,null,null,null,null,null,null,null,null,null,null,481,{"$f":"SegmentExceptTable[[#This Row],[Numbers]]/$BP$4","v":0.80300500834724542},{"$f":"SegmentExceptTable[[#This Row],[kW Boundary]]+(0.05*SegmentExceptTable[[#This Row],[kW Boundary]])","v":0.84315525876460773},{"$f":"$BP$6*SegmentExceptTable[[#This Row],[kW Boundary]]+$BP$7","v":1.1485880333785692},{"$f":"$BP$8*SegmentExceptTable[[#This Row],[kW Boundary]]+$BP$9","v":-0.35888538496865618},{"$f":"SegmentExceptTable[[#This Row],[Boundary S/M]]+(0.05*SegmentExceptTable[[#This Row],[Boundary S/M]])","v":-0.37682965421708897},{"$f":"IF(AND(AND(kwpeak_norm>SegmentExceptTable[[#This Row],[kW Boundary]],kwpeak_norm<SegmentExceptTable[[#This Row],[kW Exception]]),AND(kwhmo_norm>SegmentExceptTable[[#This Row],[Boundary S/M]],kwhmo_norm<SegmentExceptTable[[#This Row],[Exception S/M]])),1,0)","v":0},{"$f":"$BP$10*SegmentExceptTable[[#This Row],[kW Boundary]]+$BP$11","v":1.5665648613869823},{"$f":"$BP$12*SegmentExceptTable[[#This Row],[kW Boundary]]+$BP$13","v":0.19056814178187437},{"$f":"SegmentExceptTable[[#This Row],[Boundary M/L]]+(0.05*SegmentExceptTable[[#This Row],[Boundary M/L]])","v":0.20009654887096809},{"$f":"IF(AND(AND(kwpeak_norm>SegmentExceptTable[[#This Row],[kW Boundary]],kwpeak_norm<SegmentExceptTable[[#This Row],[kW Exception]]),AND(kwhmo_norm>SegmentExceptTable[[#This Row],[Boundary M/L]],kwhmo_norm<SegmentExceptTable[[#This Row],[Exception M/L]])),1,0)","v":0}]
[null,null,null,null,null,null,null,null,null,null,null,null,null,null,null,null,null,null,null,null,null,null,null,null,null,null,null,null,null,null,null,null,null,null,null,null,null,null,null,null,null,null,null,null,null,null,null,482,{"$f":"SegmentExceptTable[[#This Row],[Numbers]]/$BP$4","v":0.80467445742904842},{"$f":"SegmentExceptTable[[#This Row],[kW Boundary]]+(0.05*SegmentExceptTable[[#This Row],[kW Boundary]])","v":0.84490818030050086},{"$f":"$BP$6*SegmentExceptTable[[#This Row],[kW Boundary]]+$BP$7","v":1.1510148636739355},{"$f":"$BP$8*SegmentExceptTable[[#This Row],[kW Boundary]]+$BP$9","v":-0.36003382136408701},{"$f":"SegmentExceptTable[[#This Row],[Boundary S/M]]+(0.05*SegmentExceptTable[[#This Row],[Boundary S/M]])","v":-0.37803551243229139},{"$f":"IF(AND(AND(kwpeak_norm>SegmentExceptTable[[#This Row],[kW Boundary]],kwpeak_norm<SegmentExceptTable[[#This Row],[kW Exception]]),AND(kwhmo_norm>SegmentExceptTable[[#This Row],[Boundary S/M]],kwhmo_norm<SegmentExceptTable[[#This Row],[Exception S/M]])),1,0)","v":0},{"$f":"$BP$10*SegmentExceptTable[[#This Row],[kW Boundary]]+$BP$11","v":1.570091915029221},{"$f":"$BP$12*SegmentExceptTable[[#This Row],[kW Boundary]]+$BP$13","v":0.18977794675808562},{"$f":"SegmentExceptTable[[#This Row],[Boundary M/L]]+(0.05*SegmentExceptTable[[#This Row],[Boundary M/L]])","v":0.19926684409598991},{"$f":"IF(AND(AND(kwpeak_norm>SegmentExceptTable[[#This Row],[kW Boundary]],kwpeak_norm<SegmentExceptTable[[#This Row],[kW Exception]]),AND(kwhmo_norm>SegmentExceptTable[[#This Row],[Boundary M/L]],kwhmo_norm<SegmentExceptTable[[#This Row],[Exception M/L]])),1,0)","v":0}]
[null,null,null,null,null,null,null,null,null,null,null,null,null,null,null,null,null,null,null,null,null,null,null,null,null,null,null,null,null,null,null,null,null,null,null,null,null,null,null,null,null,null,null,null,null,null,null,483,{"$f":"SegmentExceptTable[[#This Row],[Numbers]]/$BP$4","v":0.80634390651085142},{"$f":"SegmentExceptTable[[#This Row],[kW Boundary]]+(0.05*SegmentExceptTable[[#This Row],[kW Boundary]])","v":0.84666110183639398},{"$f":"$BP$6*SegmentExceptTable[[#This Row],[kW Boundary]]+$BP$7","v":1.1534416939693017},{"$f":"$BP$8*SegmentExceptTable[[#This Row],[kW Boundary]]+$BP$9","v":-0.36118225775951796},{"$f":"SegmentExceptTable[[#This Row],[Boundary S/M]]+(0.05*SegmentExceptTable[[#This Row],[Boundary S/M]])","v":-0.37924137064749386},{"$f":"IF(AND(AND(kwpeak_norm>SegmentExceptTable[[#This Row],[kW Boundary]],kwpeak_norm<SegmentExceptTable[[#This Row],[kW Exception]]),AND(kwhmo_norm>SegmentExceptTable[[#This Row],[Boundary S/M]],kwhmo_norm<SegmentExceptTable[[#This Row],[Exception S/M]])),1,0)","v":0},{"$f":"$BP$10*SegmentExceptTable[[#This Row],[kW Boundary]]+$BP$11","v":1.5736189686714592},{"$f":"$BP$12*SegmentExceptTable[[#This Row],[kW Boundary]]+$BP$13","v":0.18898775173429688},{"$f":"SegmentExceptTable[[#This Row],[Boundary M/L]]+(0.05*SegmentExceptTable[[#This Row],[Boundary M/L]])","v":0.19843713932101173},{"$f":"IF(AND(AND(kwpeak_norm>SegmentExceptTable[[#This Row],[kW Boundary]],kwpeak_norm<SegmentExceptTable[[#This Row],[kW Exception]]),AND(kwhmo_norm>SegmentExceptTable[[#This Row],[Boundary M/L]],kwhmo_norm<SegmentExceptTable[[#This Row],[Exception M/L]])),1,0)","v":0}]
[null,null,null,null,null,null,null,null,null,null,null,null,null,null,null,null,null,null,null,null,null,null,null,null,null,null,null,null,null,null,null,null,null,null,null,null,null,null,null,null,null,null,null,null,null,null,null,484,{"$f":"SegmentExceptTable[[#This Row],[Numbers]]/$BP$4","v":0.80801335559265441},{"$f":"SegmentExceptTable[[#This Row],[kW Boundary]]+(0.05*SegmentExceptTable[[#This Row],[kW Boundary]])","v":0.84841402337228711},{"$f":"$BP$6*SegmentExceptTable[[#This Row],[kW Boundary]]+$BP$7","v":1.155868524264668},{"$f":"$BP$8*SegmentExceptTable[[#This Row],[kW Boundary]]+$BP$9","v":-0.36233069415494878},{"$f":"SegmentExceptTable[[#This Row],[Boundary S/M]]+(0.05*SegmentExceptTable[[#This Row],[Boundary S/M]])","v":-0.38044722886269622},{"$f":"IF(AND(AND(kwpeak_norm>SegmentExceptTable[[#This Row],[kW Boundary]],kwpeak_norm<SegmentExceptTable[[#This Row],[kW Exception]]),AND(kwhmo_norm>SegmentExceptTable[[#This Row],[Boundary S/M]],kwhmo_norm<SegmentExceptTable[[#This Row],[Exception S/M]])),1,0)","v":0},{"$f":"$BP$10*SegmentExceptTable[[#This Row],[kW Boundary]]+$BP$11","v":1.5771460223136979},{"$f":"$BP$12*SegmentExceptTable[[#This Row],[kW Boundary]]+$BP$13","v":0.18819755671050808},{"$f":"SegmentExceptTable[[#This Row],[Boundary M/L]]+(0.05*SegmentExceptTable[[#This Row],[Boundary M/L]])","v":0.19760743454603349},{"$f":"IF(AND(AND(kwpeak_norm>SegmentExceptTable[[#This Row],[kW Boundary]],kwpeak_norm<SegmentExceptTable[[#This Row],[kW Exception]]),AND(kwhmo_norm>SegmentExceptTable[[#This Row],[Boundary M/L]],kwhmo_norm<SegmentExceptTable[[#This Row],[Exception M/L]])),1,0)","v":0}]
[null,null,null,null,null,null,null,null,null,null,null,null,null,null,null,null,null,null,null,null,null,null,null,null,null,null,null,null,null,null,null,null,null,null,null,null,null,null,null,null,null,null,null,null,null,null,null,485,{"$f":"SegmentExceptTable[[#This Row],[Numbers]]/$BP$4","v":0.80968280467445741},{"$f":"SegmentExceptTable[[#This Row],[kW Boundary]]+(0.05*SegmentExceptTable[[#This Row],[kW Boundary]])","v":0.85016694490818034},{"$f":"$BP$6*SegmentExceptTable[[#This Row],[kW Boundary]]+$BP$7","v":1.1582953545600343},{"$f":"$BP$8*SegmentExceptTable[[#This Row],[kW Boundary]]+$BP$9","v":-0.36347913055037961},{"$f":"SegmentExceptTable[[#This Row],[Boundary S/M]]+(0.05*SegmentExceptTable[[#This Row],[Boundary S/M]])","v":-0.38165308707789858},{"$f":"IF(AND(AND(kwpeak_norm>SegmentExceptTable[[#This Row],[kW Boundary]],kwpeak_norm<SegmentExceptTable[[#This Row],[kW Exception]]),AND(kwhmo_norm>SegmentExceptTable[[#This Row],[Boundary S/M]],kwhmo_norm<SegmentExceptTable[[#This Row],[Exception S/M]])),1,0)","v":0},{"$f":"$BP$10*SegmentExceptTable[[#This Row],[kW Boundary]]+$BP$11","v":1.5806730759559362},{"$f":"$BP$12*SegmentExceptTable[[#This Row],[kW Boundary]]+$BP$13","v":0.18740736168671934},{"$f":"SegmentExceptTable[[#This Row],[Boundary M/L]]+(0.05*SegmentExceptTable[[#This Row],[Boundary M/L]])","v":0.19677772977105532},{"$f":"IF(AND(AND(kwpeak_norm>SegmentExceptTable[[#This Row],[kW Boundary]],kwpeak_norm<SegmentExceptTable[[#This Row],[kW Exception]]),AND(kwhmo_norm>SegmentExceptTable[[#This Row],[Boundary M/L]],kwhmo_norm<SegmentExceptTable[[#This Row],[Exception M/L]])),1,0)","v":0}]
[null,null,null,null,null,null,null,null,null,null,null,null,null,null,null,null,null,null,null,null,null,null,null,null,null,null,null,null,null,null,null,null,null,null,null,null,null,null,null,null,null,null,null,null,null,null,null,486,{"$f":"SegmentExceptTable[[#This Row],[Numbers]]/$BP$4","v":0.81135225375626041},{"$f":"SegmentExceptTable[[#This Row],[kW Boundary]]+(0.05*SegmentExceptTable[[#This Row],[kW Boundary]])","v":0.85191986644407347},{"$f":"$BP$6*SegmentExceptTable[[#This Row],[kW Boundary]]+$BP$7","v":1.1607221848554006},{"$f":"$BP$8*SegmentExceptTable[[#This Row],[kW Boundary]]+$BP$9","v":-0.36462756694581056},{"$f":"SegmentExceptTable[[#This Row],[Boundary S/M]]+(0.05*SegmentExceptTable[[#This Row],[Boundary S/M]])","v":-0.38285894529310111},{"$f":"IF(AND(AND(kwpeak_norm>SegmentExceptTable[[#This Row],[kW Boundary]],kwpeak_norm<SegmentExceptTable[[#This Row],[kW Exception]]),AND(kwhmo_norm>SegmentExceptTable[[#This Row],[Boundary S/M]],kwhmo_norm<SegmentExceptTable[[#This Row],[Exception S/M]])),1,0)","v":0},{"$f":"$BP$10*SegmentExceptTable[[#This Row],[kW Boundary]]+$BP$11","v":1.5842001295981749},{"$f":"$BP$12*SegmentExceptTable[[#This Row],[kW Boundary]]+$BP$13","v":0.1866171666629306},{"$f":"SegmentExceptTable[[#This Row],[Boundary M/L]]+(0.05*SegmentExceptTable[[#This Row],[Boundary M/L]])","v":0.19594802499607714},{"$f":"IF(AND(AND(kwpeak_norm>SegmentExceptTable[[#This Row],[kW Boundary]],kwpeak_norm<SegmentExceptTable[[#This Row],[kW Exception]]),AND(kwhmo_norm>SegmentExceptTable[[#This Row],[Boundary M/L]],kwhmo_norm<SegmentExceptTable[[#This Row],[Exception M/L]])),1,0)","v":0}]
[null,null,null,null,null,null,null,null,null,null,null,null,null,null,null,null,null,null,null,null,null,null,null,null,null,null,null,null,null,null,null,null,null,null,null,null,null,null,null,null,null,null,null,null,null,null,null,487,{"$f":"SegmentExceptTable[[#This Row],[Numbers]]/$BP$4","v":0.81302170283806341},{"$f":"SegmentExceptTable[[#This Row],[kW Boundary]]+(0.05*SegmentExceptTable[[#This Row],[kW Boundary]])","v":0.8536727879799666},{"$f":"$BP$6*SegmentExceptTable[[#This Row],[kW Boundary]]+$BP$7","v":1.1631490151507669},{"$f":"$BP$8*SegmentExceptTable[[#This Row],[kW Boundary]]+$BP$9","v":-0.36577600334124138},{"$f":"SegmentExceptTable[[#This Row],[Boundary S/M]]+(0.05*SegmentExceptTable[[#This Row],[Boundary S/M]])","v":-0.38406480350830347},{"$f":"IF(AND(AND(kwpeak_norm>SegmentExceptTable[[#This Row],[kW Boundary]],kwpeak_norm<SegmentExceptTable[[#This Row],[kW Exception]]),AND(kwhmo_norm>SegmentExceptTable[[#This Row],[Boundary S/M]],kwhmo_norm<SegmentExceptTable[[#This Row],[Exception S/M]])),1,0)","v":0},{"$f":"$BP$10*SegmentExceptTable[[#This Row],[kW Boundary]]+$BP$11","v":1.5877271832404132},{"$f":"$BP$12*SegmentExceptTable[[#This Row],[kW Boundary]]+$BP$13","v":0.18582697163914186},{"$f":"SegmentExceptTable[[#This Row],[Boundary M/L]]+(0.05*SegmentExceptTable[[#This Row],[Boundary M/L]])","v":0.19511832022109896},{"$f":"IF(AND(AND(kwpeak_norm>SegmentExceptTable[[#This Row],[kW Boundary]],kwpeak_norm<SegmentExceptTable[[#This Row],[kW Exception]]),AND(kwhmo_norm>SegmentExceptTable[[#This Row],[Boundary M/L]],kwhmo_norm<SegmentExceptTable[[#This Row],[Exception M/L]])),1,0)","v":0}]
[null,null,null,null,null,null,null,null,null,null,null,null,null,null,null,null,null,null,null,null,null,null,null,null,null,null,null,null,null,null,null,null,null,null,null,null,null,null,null,null,null,null,null,null,null,null,null,488,{"$f":"SegmentExceptTable[[#This Row],[Numbers]]/$BP$4","v":0.81469115191986641},{"$f":"SegmentExceptTable[[#This Row],[kW Boundary]]+(0.05*SegmentExceptTable[[#This Row],[kW Boundary]])","v":0.85542570951585972},{"$f":"$BP$6*SegmentExceptTable[[#This Row],[kW Boundary]]+$BP$7","v":1.1655758454461331},{"$f":"$BP$8*SegmentExceptTable[[#This Row],[kW Boundary]]+$BP$9","v":-0.36692443973667221},{"$f":"SegmentExceptTable[[#This Row],[Boundary S/M]]+(0.05*SegmentExceptTable[[#This Row],[Boundary S/M]])","v":-0.38527066172350583},{"$f":"IF(AND(AND(kwpeak_norm>SegmentExceptTable[[#This Row],[kW Boundary]],kwpeak_norm<SegmentExceptTable[[#This Row],[kW Exception]]),AND(kwhmo_norm>SegmentExceptTable[[#This Row],[Boundary S/M]],kwhmo_norm<SegmentExceptTable[[#This Row],[Exception S/M]])),1,0)","v":0},{"$f":"$BP$10*SegmentExceptTable[[#This Row],[kW Boundary]]+$BP$11","v":1.5912542368826519},{"$f":"$BP$12*SegmentExceptTable[[#This Row],[kW Boundary]]+$BP$13","v":0.18503677661535312},{"$f":"SegmentExceptTable[[#This Row],[Boundary M/L]]+(0.05*SegmentExceptTable[[#This Row],[Boundary M/L]])","v":0.19428861544612078},{"$f":"IF(AND(AND(kwpeak_norm>SegmentExceptTable[[#This Row],[kW Boundary]],kwpeak_norm<SegmentExceptTable[[#This Row],[kW Exception]]),AND(kwhmo_norm>SegmentExceptTable[[#This Row],[Boundary M/L]],kwhmo_norm<SegmentExceptTable[[#This Row],[Exception M/L]])),1,0)","v":0}]
[null,null,null,null,null,null,null,null,null,null,null,null,null,null,null,null,null,null,null,null,null,null,null,null,null,null,null,null,null,null,null,null,null,null,null,null,null,null,null,null,null,null,null,null,null,null,null,489,{"$f":"SegmentExceptTable[[#This Row],[Numbers]]/$BP$4","v":0.81636060100166941},{"$f":"SegmentExceptTable[[#This Row],[kW Boundary]]+(0.05*SegmentExceptTable[[#This Row],[kW Boundary]])","v":0.85717863105175285},{"$f":"$BP$6*SegmentExceptTable[[#This Row],[kW Boundary]]+$BP$7","v":1.1680026757414994},{"$f":"$BP$8*SegmentExceptTable[[#This Row],[kW Boundary]]+$BP$9","v":-0.36807287613210316},{"$f":"SegmentExceptTable[[#This Row],[Boundary S/M]]+(0.05*SegmentExceptTable[[#This Row],[Boundary S/M]])","v":-0.3864765199387083},{"$f":"IF(AND(AND(kwpeak_norm>SegmentExceptTable[[#This Row],[kW Boundary]],kwpeak_norm<SegmentExceptTable[[#This Row],[kW Exception]]),AND(kwhmo_norm>SegmentExceptTable[[#This Row],[Boundary S/M]],kwhmo_norm<SegmentExceptTable[[#This Row],[Exception S/M]])),1,0)","v":0},{"$f":"$BP$10*SegmentExceptTable[[#This Row],[kW Boundary]]+$BP$11","v":1.5947812905248901},{"$f":"$BP$12*SegmentExceptTable[[#This Row],[kW Boundary]]+$BP$13","v":0.18424658159156432},{"$f":"SegmentExceptTable[[#This Row],[Boundary M/L]]+(0.05*SegmentExceptTable[[#This Row],[Boundary M/L]])","v":0.19345891067114254},{"$f":"IF(AND(AND(kwpeak_norm>SegmentExceptTable[[#This Row],[kW Boundary]],kwpeak_norm<SegmentExceptTable[[#This Row],[kW Exception]]),AND(kwhmo_norm>SegmentExceptTable[[#This Row],[Boundary M/L]],kwhmo_norm<SegmentExceptTable[[#This Row],[Exception M/L]])),1,0)","v":0}]
[null,null,null,null,null,null,null,null,null,null,null,null,null,null,null,null,null,null,null,null,null,null,null,null,null,null,null,null,null,null,null,null,null,null,null,null,null,null,null,null,null,null,null,null,null,null,null,490,{"$f":"SegmentExceptTable[[#This Row],[Numbers]]/$BP$4","v":0.8180300500834724},{"$f":"SegmentExceptTable[[#This Row],[kW Boundary]]+(0.05*SegmentExceptTable[[#This Row],[kW Boundary]])","v":0.85893155258764597},{"$f":"$BP$6*SegmentExceptTable[[#This Row],[kW Boundary]]+$BP$7","v":1.1704295060368657},{"$f":"$BP$8*SegmentExceptTable[[#This Row],[kW Boundary]]+$BP$9","v":-0.36922131252753398},{"$f":"SegmentExceptTable[[#This Row],[Boundary S/M]]+(0.05*SegmentExceptTable[[#This Row],[Boundary S/M]])","v":-0.38768237815391071},{"$f":"IF(AND(AND(kwpeak_norm>SegmentExceptTable[[#This Row],[kW Boundary]],kwpeak_norm<SegmentExceptTable[[#This Row],[kW Exception]]),AND(kwhmo_norm>SegmentExceptTable[[#This Row],[Boundary S/M]],kwhmo_norm<SegmentExceptTable[[#This Row],[Exception S/M]])),1,0)","v":0},{"$f":"$BP$10*SegmentExceptTable[[#This Row],[kW Boundary]]+$BP$11","v":1.5983083441671289},{"$f":"$BP$12*SegmentExceptTable[[#This Row],[kW Boundary]]+$BP$13","v":0.18345638656777558},{"$f":"SegmentExceptTable[[#This Row],[Boundary M/L]]+(0.05*SegmentExceptTable[[#This Row],[Boundary M/L]])","v":0.19262920589616436},{"$f":"IF(AND(AND(kwpeak_norm>SegmentExceptTable[[#This Row],[kW Boundary]],kwpeak_norm<SegmentExceptTable[[#This Row],[kW Exception]]),AND(kwhmo_norm>SegmentExceptTable[[#This Row],[Boundary M/L]],kwhmo_norm<SegmentExceptTable[[#This Row],[Exception M/L]])),1,0)","v":0}]
[null,null,null,null,null,null,null,null,null,null,null,null,null,null,null,null,null,null,null,null,null,null,null,null,null,null,null,null,null,null,null,null,null,null,null,null,null,null,null,null,null,null,null,null,null,null,null,491,{"$f":"SegmentExceptTable[[#This Row],[Numbers]]/$BP$4","v":0.81969949916527551},{"$f":"SegmentExceptTable[[#This Row],[kW Boundary]]+(0.05*SegmentExceptTable[[#This Row],[kW Boundary]])","v":0.86068447412353932},{"$f":"$BP$6*SegmentExceptTable[[#This Row],[kW Boundary]]+$BP$7","v":1.172856336332232},{"$f":"$BP$8*SegmentExceptTable[[#This Row],[kW Boundary]]+$BP$9","v":-0.37036974892296493},{"$f":"SegmentExceptTable[[#This Row],[Boundary S/M]]+(0.05*SegmentExceptTable[[#This Row],[Boundary S/M]])","v":-0.38888823636911318},{"$f":"IF(AND(AND(kwpeak_norm>SegmentExceptTable[[#This Row],[kW Boundary]],kwpeak_norm<SegmentExceptTable[[#This Row],[kW Exception]]),AND(kwhmo_norm>SegmentExceptTable[[#This Row],[Boundary S/M]],kwhmo_norm<SegmentExceptTable[[#This Row],[Exception S/M]])),1,0)","v":0},{"$f":"$BP$10*SegmentExceptTable[[#This Row],[kW Boundary]]+$BP$11","v":1.6018353978093676},{"$f":"$BP$12*SegmentExceptTable[[#This Row],[kW Boundary]]+$BP$13","v":0.18266619154398678},{"$f":"SegmentExceptTable[[#This Row],[Boundary M/L]]+(0.05*SegmentExceptTable[[#This Row],[Boundary M/L]])","v":0.19179950112118613},{"$f":"IF(AND(AND(kwpeak_norm>SegmentExceptTable[[#This Row],[kW Boundary]],kwpeak_norm<SegmentExceptTable[[#This Row],[kW Exception]]),AND(kwhmo_norm>SegmentExceptTable[[#This Row],[Boundary M/L]],kwhmo_norm<SegmentExceptTable[[#This Row],[Exception M/L]])),1,0)","v":0}]
[null,null,null,null,null,null,null,null,null,null,null,null,null,null,null,null,null,null,null,null,null,null,null,null,null,null,null,null,null,null,null,null,null,null,null,null,null,null,null,null,null,null,null,null,null,null,null,492,{"$f":"SegmentExceptTable[[#This Row],[Numbers]]/$BP$4","v":0.82136894824707851},{"$f":"SegmentExceptTable[[#This Row],[kW Boundary]]+(0.05*SegmentExceptTable[[#This Row],[kW Boundary]])","v":0.86243739565943245},{"$f":"$BP$6*SegmentExceptTable[[#This Row],[kW Boundary]]+$BP$7","v":1.1752831666275982},{"$f":"$BP$8*SegmentExceptTable[[#This Row],[kW Boundary]]+$BP$9","v":-0.37151818531839587},{"$f":"SegmentExceptTable[[#This Row],[Boundary S/M]]+(0.05*SegmentExceptTable[[#This Row],[Boundary S/M]])","v":-0.39009409458431565},{"$f":"IF(AND(AND(kwpeak_norm>SegmentExceptTable[[#This Row],[kW Boundary]],kwpeak_norm<SegmentExceptTable[[#This Row],[kW Exception]]),AND(kwhmo_norm>SegmentExceptTable[[#This Row],[Boundary S/M]],kwhmo_norm<SegmentExceptTable[[#This Row],[Exception S/M]])),1,0)","v":0},{"$f":"$BP$10*SegmentExceptTable[[#This Row],[kW Boundary]]+$BP$11","v":1.6053624514516063},{"$f":"$BP$12*SegmentExceptTable[[#This Row],[kW Boundary]]+$BP$13","v":0.18187599652019804},{"$f":"SegmentExceptTable[[#This Row],[Boundary M/L]]+(0.05*SegmentExceptTable[[#This Row],[Boundary M/L]])","v":0.19096979634620795},{"$f":"IF(AND(AND(kwpeak_norm>SegmentExceptTable[[#This Row],[kW Boundary]],kwpeak_norm<SegmentExceptTable[[#This Row],[kW Exception]]),AND(kwhmo_norm>SegmentExceptTable[[#This Row],[Boundary M/L]],kwhmo_norm<SegmentExceptTable[[#This Row],[Exception M/L]])),1,0)","v":0}]
[null,null,null,null,null,null,null,null,null,null,null,null,null,null,null,null,null,null,null,null,null,null,null,null,null,null,null,null,null,null,null,null,null,null,null,null,null,null,null,null,null,null,null,null,null,null,null,493,{"$f":"SegmentExceptTable[[#This Row],[Numbers]]/$BP$4","v":0.82303839732888151},{"$f":"SegmentExceptTable[[#This Row],[kW Boundary]]+(0.05*SegmentExceptTable[[#This Row],[kW Boundary]])","v":0.86419031719532557},{"$f":"$BP$6*SegmentExceptTable[[#This Row],[kW Boundary]]+$BP$7","v":1.1777099969229645},{"$f":"$BP$8*SegmentExceptTable[[#This Row],[kW Boundary]]+$BP$9","v":-0.3726666217138267},{"$f":"SegmentExceptTable[[#This Row],[Boundary S/M]]+(0.05*SegmentExceptTable[[#This Row],[Boundary S/M]])","v":-0.39129995279951801},{"$f":"IF(AND(AND(kwpeak_norm>SegmentExceptTable[[#This Row],[kW Boundary]],kwpeak_norm<SegmentExceptTable[[#This Row],[kW Exception]]),AND(kwhmo_norm>SegmentExceptTable[[#This Row],[Boundary S/M]],kwhmo_norm<SegmentExceptTable[[#This Row],[Exception S/M]])),1,0)","v":0},{"$f":"$BP$10*SegmentExceptTable[[#This Row],[kW Boundary]]+$BP$11","v":1.6088895050938445},{"$f":"$BP$12*SegmentExceptTable[[#This Row],[kW Boundary]]+$BP$13","v":0.18108580149640929},{"$f":"SegmentExceptTable[[#This Row],[Boundary M/L]]+(0.05*SegmentExceptTable[[#This Row],[Boundary M/L]])","v":0.19014009157122977},{"$f":"IF(AND(AND(kwpeak_norm>SegmentExceptTable[[#This Row],[kW Boundary]],kwpeak_norm<SegmentExceptTable[[#This Row],[kW Exception]]),AND(kwhmo_norm>SegmentExceptTable[[#This Row],[Boundary M/L]],kwhmo_norm<SegmentExceptTable[[#This Row],[Exception M/L]])),1,0)","v":0}]
[null,null,null,null,null,null,null,null,null,null,null,null,null,null,null,null,null,null,null,null,null,null,null,null,null,null,null,null,null,null,null,null,null,null,null,null,null,null,null,null,null,null,null,null,null,null,null,494,{"$f":"SegmentExceptTable[[#This Row],[Numbers]]/$BP$4","v":0.82470784641068451},{"$f":"SegmentExceptTable[[#This Row],[kW Boundary]]+(0.05*SegmentExceptTable[[#This Row],[kW Boundary]])","v":0.8659432387312187},{"$f":"$BP$6*SegmentExceptTable[[#This Row],[kW Boundary]]+$BP$7","v":1.1801368272183308},{"$f":"$BP$8*SegmentExceptTable[[#This Row],[kW Boundary]]+$BP$9","v":-0.37381505810925753},{"$f":"SegmentExceptTable[[#This Row],[Boundary S/M]]+(0.05*SegmentExceptTable[[#This Row],[Boundary S/M]])","v":-0.39250581101472037},{"$f":"IF(AND(AND(kwpeak_norm>SegmentExceptTable[[#This Row],[kW Boundary]],kwpeak_norm<SegmentExceptTable[[#This Row],[kW Exception]]),AND(kwhmo_norm>SegmentExceptTable[[#This Row],[Boundary S/M]],kwhmo_norm<SegmentExceptTable[[#This Row],[Exception S/M]])),1,0)","v":0},{"$f":"$BP$10*SegmentExceptTable[[#This Row],[kW Boundary]]+$BP$11","v":1.6124165587360832},{"$f":"$BP$12*SegmentExceptTable[[#This Row],[kW Boundary]]+$BP$13","v":0.1802956064726205},{"$f":"SegmentExceptTable[[#This Row],[Boundary M/L]]+(0.05*SegmentExceptTable[[#This Row],[Boundary M/L]])","v":0.18931038679625151},{"$f":"IF(AND(AND(kwpeak_norm>SegmentExceptTable[[#This Row],[kW Boundary]],kwpeak_norm<SegmentExceptTable[[#This Row],[kW Exception]]),AND(kwhmo_norm>SegmentExceptTable[[#This Row],[Boundary M/L]],kwhmo_norm<SegmentExceptTable[[#This Row],[Exception M/L]])),1,0)","v":0}]
[null,null,null,null,null,null,null,null,null,null,null,null,null,null,null,null,null,null,null,null,null,null,null,null,null,null,null,null,null,null,null,null,null,null,null,null,null,null,null,null,null,null,null,null,null,null,null,495,{"$f":"SegmentExceptTable[[#This Row],[Numbers]]/$BP$4","v":0.82637729549248751},{"$f":"SegmentExceptTable[[#This Row],[kW Boundary]]+(0.05*SegmentExceptTable[[#This Row],[kW Boundary]])","v":0.86769616026711183},{"$f":"$BP$6*SegmentExceptTable[[#This Row],[kW Boundary]]+$BP$7","v":1.1825636575136971},{"$f":"$BP$8*SegmentExceptTable[[#This Row],[kW Boundary]]+$BP$9","v":-0.37496349450468847},{"$f":"SegmentExceptTable[[#This Row],[Boundary S/M]]+(0.05*SegmentExceptTable[[#This Row],[Boundary S/M]])","v":-0.3937116692299229},{"$f":"IF(AND(AND(kwpeak_norm>SegmentExceptTable[[#This Row],[kW Boundary]],kwpeak_norm<SegmentExceptTable[[#This Row],[kW Exception]]),AND(kwhmo_norm>SegmentExceptTable[[#This Row],[Boundary S/M]],kwhmo_norm<SegmentExceptTable[[#This Row],[Exception S/M]])),1,0)","v":0},{"$f":"$BP$10*SegmentExceptTable[[#This Row],[kW Boundary]]+$BP$11","v":1.6159436123783215},{"$f":"$BP$12*SegmentExceptTable[[#This Row],[kW Boundary]]+$BP$13","v":0.17950541144883175},{"$f":"SegmentExceptTable[[#This Row],[Boundary M/L]]+(0.05*SegmentExceptTable[[#This Row],[Boundary M/L]])","v":0.18848068202127333},{"$f":"IF(AND(AND(kwpeak_norm>SegmentExceptTable[[#This Row],[kW Boundary]],kwpeak_norm<SegmentExceptTable[[#This Row],[kW Exception]]),AND(kwhmo_norm>SegmentExceptTable[[#This Row],[Boundary M/L]],kwhmo_norm<SegmentExceptTable[[#This Row],[Exception M/L]])),1,0)","v":0}]
[null,null,null,null,null,null,null,null,null,null,null,null,null,null,null,null,null,null,null,null,null,null,null,null,null,null,null,null,null,null,null,null,null,null,null,null,null,null,null,null,null,null,null,null,null,null,null,496,{"$f":"SegmentExceptTable[[#This Row],[Numbers]]/$BP$4","v":0.82804674457429051},{"$f":"SegmentExceptTable[[#This Row],[kW Boundary]]+(0.05*SegmentExceptTable[[#This Row],[kW Boundary]])","v":0.86944908180300506},{"$f":"$BP$6*SegmentExceptTable[[#This Row],[kW Boundary]]+$BP$7","v":1.1849904878090634},{"$f":"$BP$8*SegmentExceptTable[[#This Row],[kW Boundary]]+$BP$9","v":-0.3761119309001193},{"$f":"SegmentExceptTable[[#This Row],[Boundary S/M]]+(0.05*SegmentExceptTable[[#This Row],[Boundary S/M]])","v":-0.39491752744512526},{"$f":"IF(AND(AND(kwpeak_norm>SegmentExceptTable[[#This Row],[kW Boundary]],kwpeak_norm<SegmentExceptTable[[#This Row],[kW Exception]]),AND(kwhmo_norm>SegmentExceptTable[[#This Row],[Boundary S/M]],kwhmo_norm<SegmentExceptTable[[#This Row],[Exception S/M]])),1,0)","v":0},{"$f":"$BP$10*SegmentExceptTable[[#This Row],[kW Boundary]]+$BP$11","v":1.6194706660205602},{"$f":"$BP$12*SegmentExceptTable[[#This Row],[kW Boundary]]+$BP$13","v":0.17871521642504301},{"$f":"SegmentExceptTable[[#This Row],[Boundary M/L]]+(0.05*SegmentExceptTable[[#This Row],[Boundary M/L]])","v":0.18765097724629515},{"$f":"IF(AND(AND(kwpeak_norm>SegmentExceptTable[[#This Row],[kW Boundary]],kwpeak_norm<SegmentExceptTable[[#This Row],[kW Exception]]),AND(kwhmo_norm>SegmentExceptTable[[#This Row],[Boundary M/L]],kwhmo_norm<SegmentExceptTable[[#This Row],[Exception M/L]])),1,0)","v":0}]
[null,null,null,null,null,null,null,null,null,null,null,null,null,null,null,null,null,null,null,null,null,null,null,null,null,null,null,null,null,null,null,null,null,null,null,null,null,null,null,null,null,null,null,null,null,null,null,497,{"$f":"SegmentExceptTable[[#This Row],[Numbers]]/$BP$4","v":0.8297161936560935},{"$f":"SegmentExceptTable[[#This Row],[kW Boundary]]+(0.05*SegmentExceptTable[[#This Row],[kW Boundary]])","v":0.87120200333889819},{"$f":"$BP$6*SegmentExceptTable[[#This Row],[kW Boundary]]+$BP$7","v":1.1874173181044296},{"$f":"$BP$8*SegmentExceptTable[[#This Row],[kW Boundary]]+$BP$9","v":-0.37726036729555024},{"$f":"SegmentExceptTable[[#This Row],[Boundary S/M]]+(0.05*SegmentExceptTable[[#This Row],[Boundary S/M]])","v":-0.39612338566032773},{"$f":"IF(AND(AND(kwpeak_norm>SegmentExceptTable[[#This Row],[kW Boundary]],kwpeak_norm<SegmentExceptTable[[#This Row],[kW Exception]]),AND(kwhmo_norm>SegmentExceptTable[[#This Row],[Boundary S/M]],kwhmo_norm<SegmentExceptTable[[#This Row],[Exception S/M]])),1,0)","v":0},{"$f":"$BP$10*SegmentExceptTable[[#This Row],[kW Boundary]]+$BP$11","v":1.6229977196627989},{"$f":"$BP$12*SegmentExceptTable[[#This Row],[kW Boundary]]+$BP$13","v":0.17792502140125427},{"$f":"SegmentExceptTable[[#This Row],[Boundary M/L]]+(0.05*SegmentExceptTable[[#This Row],[Boundary M/L]])","v":0.18682127247131697},{"$f":"IF(AND(AND(kwpeak_norm>SegmentExceptTable[[#This Row],[kW Boundary]],kwpeak_norm<SegmentExceptTable[[#This Row],[kW Exception]]),AND(kwhmo_norm>SegmentExceptTable[[#This Row],[Boundary M/L]],kwhmo_norm<SegmentExceptTable[[#This Row],[Exception M/L]])),1,0)","v":0}]
[null,null,null,null,null,null,null,null,null,null,null,null,null,null,null,null,null,null,null,null,null,null,null,null,null,null,null,null,null,null,null,null,null,null,null,null,null,null,null,null,null,null,null,null,null,null,null,498,{"$f":"SegmentExceptTable[[#This Row],[Numbers]]/$BP$4","v":0.8313856427378965},{"$f":"SegmentExceptTable[[#This Row],[kW Boundary]]+(0.05*SegmentExceptTable[[#This Row],[kW Boundary]])","v":0.87295492487479132},{"$f":"$BP$6*SegmentExceptTable[[#This Row],[kW Boundary]]+$BP$7","v":1.1898441483997959},{"$f":"$BP$8*SegmentExceptTable[[#This Row],[kW Boundary]]+$BP$9","v":-0.37840880369098107},{"$f":"SegmentExceptTable[[#This Row],[Boundary S/M]]+(0.05*SegmentExceptTable[[#This Row],[Boundary S/M]])","v":-0.39732924387553015},{"$f":"IF(AND(AND(kwpeak_norm>SegmentExceptTable[[#This Row],[kW Boundary]],kwpeak_norm<SegmentExceptTable[[#This Row],[kW Exception]]),AND(kwhmo_norm>SegmentExceptTable[[#This Row],[Boundary S/M]],kwhmo_norm<SegmentExceptTable[[#This Row],[Exception S/M]])),1,0)","v":0},{"$f":"$BP$10*SegmentExceptTable[[#This Row],[kW Boundary]]+$BP$11","v":1.6265247733050372},{"$f":"$BP$12*SegmentExceptTable[[#This Row],[kW Boundary]]+$BP$13","v":0.17713482637746553},{"$f":"SegmentExceptTable[[#This Row],[Boundary M/L]]+(0.05*SegmentExceptTable[[#This Row],[Boundary M/L]])","v":0.18599156769633879},{"$f":"IF(AND(AND(kwpeak_norm>SegmentExceptTable[[#This Row],[kW Boundary]],kwpeak_norm<SegmentExceptTable[[#This Row],[kW Exception]]),AND(kwhmo_norm>SegmentExceptTable[[#This Row],[Boundary M/L]],kwhmo_norm<SegmentExceptTable[[#This Row],[Exception M/L]])),1,0)","v":0}]
[null,null,null,null,null,null,null,null,null,null,null,null,null,null,null,null,null,null,null,null,null,null,null,null,null,null,null,null,null,null,null,null,null,null,null,null,null,null,null,null,null,null,null,null,null,null,null,499,{"$f":"SegmentExceptTable[[#This Row],[Numbers]]/$BP$4","v":0.8330550918196995},{"$f":"SegmentExceptTable[[#This Row],[kW Boundary]]+(0.05*SegmentExceptTable[[#This Row],[kW Boundary]])","v":0.87470784641068444},{"$f":"$BP$6*SegmentExceptTable[[#This Row],[kW Boundary]]+$BP$7","v":1.1922709786951622},{"$f":"$BP$8*SegmentExceptTable[[#This Row],[kW Boundary]]+$BP$9","v":-0.3795572400864119},{"$f":"SegmentExceptTable[[#This Row],[Boundary S/M]]+(0.05*SegmentExceptTable[[#This Row],[Boundary S/M]])","v":-0.39853510209073251},{"$f":"IF(AND(AND(kwpeak_norm>SegmentExceptTable[[#This Row],[kW Boundary]],kwpeak_norm<SegmentExceptTable[[#This Row],[kW Exception]]),AND(kwhmo_norm>SegmentExceptTable[[#This Row],[Boundary S/M]],kwhmo_norm<SegmentExceptTable[[#This Row],[Exception S/M]])),1,0)","v":0},{"$f":"$BP$10*SegmentExceptTable[[#This Row],[kW Boundary]]+$BP$11","v":1.6300518269472759},{"$f":"$BP$12*SegmentExceptTable[[#This Row],[kW Boundary]]+$BP$13","v":0.17634463135367673},{"$f":"SegmentExceptTable[[#This Row],[Boundary M/L]]+(0.05*SegmentExceptTable[[#This Row],[Boundary M/L]])","v":0.18516186292136055},{"$f":"IF(AND(AND(kwpeak_norm>SegmentExceptTable[[#This Row],[kW Boundary]],kwpeak_norm<SegmentExceptTable[[#This Row],[kW Exception]]),AND(kwhmo_norm>SegmentExceptTable[[#This Row],[Boundary M/L]],kwhmo_norm<SegmentExceptTable[[#This Row],[Exception M/L]])),1,0)","v":0}]
[null,null,null,null,null,null,null,null,null,null,null,null,null,null,null,null,null,null,null,null,null,null,null,null,null,null,null,null,null,null,null,null,null,null,null,null,null,null,null,null,null,null,null,null,null,null,null,500,{"$f":"SegmentExceptTable[[#This Row],[Numbers]]/$BP$4","v":0.8347245409015025},{"$f":"SegmentExceptTable[[#This Row],[kW Boundary]]+(0.05*SegmentExceptTable[[#This Row],[kW Boundary]])","v":0.87646076794657768},{"$f":"$BP$6*SegmentExceptTable[[#This Row],[kW Boundary]]+$BP$7","v":1.1946978089905285},{"$f":"$BP$8*SegmentExceptTable[[#This Row],[kW Boundary]]+$BP$9","v":-0.38070567648184284},{"$f":"SegmentExceptTable[[#This Row],[Boundary S/M]]+(0.05*SegmentExceptTable[[#This Row],[Boundary S/M]])","v":-0.39974096030593498},{"$f":"IF(AND(AND(kwpeak_norm>SegmentExceptTable[[#This Row],[kW Boundary]],kwpeak_norm<SegmentExceptTable[[#This Row],[kW Exception]]),AND(kwhmo_norm>SegmentExceptTable[[#This Row],[Boundary S/M]],kwhmo_norm<SegmentExceptTable[[#This Row],[Exception S/M]])),1,0)","v":0},{"$f":"$BP$10*SegmentExceptTable[[#This Row],[kW Boundary]]+$BP$11","v":1.6335788805895142},{"$f":"$BP$12*SegmentExceptTable[[#This Row],[kW Boundary]]+$BP$13","v":0.17555443632988799},{"$f":"SegmentExceptTable[[#This Row],[Boundary M/L]]+(0.05*SegmentExceptTable[[#This Row],[Boundary M/L]])","v":0.18433215814638237},{"$f":"IF(AND(AND(kwpeak_norm>SegmentExceptTable[[#This Row],[kW Boundary]],kwpeak_norm<SegmentExceptTable[[#This Row],[kW Exception]]),AND(kwhmo_norm>SegmentExceptTable[[#This Row],[Boundary M/L]],kwhmo_norm<SegmentExceptTable[[#This Row],[Exception M/L]])),1,0)","v":0}]
[null,null,null,null,null,null,null,null,null,null,null,null,null,null,null,null,null,null,null,null,null,null,null,null,null,null,null,null,null,null,null,null,null,null,null,null,null,null,null,null,null,null,null,null,null,null,null,501,{"$f":"SegmentExceptTable[[#This Row],[Numbers]]/$BP$4","v":0.8363939899833055},{"$f":"SegmentExceptTable[[#This Row],[kW Boundary]]+(0.05*SegmentExceptTable[[#This Row],[kW Boundary]])","v":0.87821368948247081},{"$f":"$BP$6*SegmentExceptTable[[#This Row],[kW Boundary]]+$BP$7","v":1.1971246392858947},{"$f":"$BP$8*SegmentExceptTable[[#This Row],[kW Boundary]]+$BP$9","v":-0.38185411287727367},{"$f":"SegmentExceptTable[[#This Row],[Boundary S/M]]+(0.05*SegmentExceptTable[[#This Row],[Boundary S/M]])","v":-0.40094681852113734},{"$f":"IF(AND(AND(kwpeak_norm>SegmentExceptTable[[#This Row],[kW Boundary]],kwpeak_norm<SegmentExceptTable[[#This Row],[kW Exception]]),AND(kwhmo_norm>SegmentExceptTable[[#This Row],[Boundary S/M]],kwhmo_norm<SegmentExceptTable[[#This Row],[Exception S/M]])),1,0)","v":0},{"$f":"$BP$10*SegmentExceptTable[[#This Row],[kW Boundary]]+$BP$11","v":1.6371059342317529},{"$f":"$BP$12*SegmentExceptTable[[#This Row],[kW Boundary]]+$BP$13","v":0.17476424130609924},{"$f":"SegmentExceptTable[[#This Row],[Boundary M/L]]+(0.05*SegmentExceptTable[[#This Row],[Boundary M/L]])","v":0.18350245337140419},{"$f":"IF(AND(AND(kwpeak_norm>SegmentExceptTable[[#This Row],[kW Boundary]],kwpeak_norm<SegmentExceptTable[[#This Row],[kW Exception]]),AND(kwhmo_norm>SegmentExceptTable[[#This Row],[Boundary M/L]],kwhmo_norm<SegmentExceptTable[[#This Row],[Exception M/L]])),1,0)","v":0}]
[null,null,null,null,null,null,null,null,null,null,null,null,null,null,null,null,null,null,null,null,null,null,null,null,null,null,null,null,null,null,null,null,null,null,null,null,null,null,null,null,null,null,null,null,null,null,null,502,{"$f":"SegmentExceptTable[[#This Row],[Numbers]]/$BP$4","v":0.8380634390651085},{"$f":"SegmentExceptTable[[#This Row],[kW Boundary]]+(0.05*SegmentExceptTable[[#This Row],[kW Boundary]])","v":0.87996661101836393},{"$f":"$BP$6*SegmentExceptTable[[#This Row],[kW Boundary]]+$BP$7","v":1.199551469581261},{"$f":"$BP$8*SegmentExceptTable[[#This Row],[kW Boundary]]+$BP$9","v":-0.3830025492727045},{"$f":"SegmentExceptTable[[#This Row],[Boundary S/M]]+(0.05*SegmentExceptTable[[#This Row],[Boundary S/M]])","v":-0.4021526767363397},{"$f":"IF(AND(AND(kwpeak_norm>SegmentExceptTable[[#This Row],[kW Boundary]],kwpeak_norm<SegmentExceptTable[[#This Row],[kW Exception]]),AND(kwhmo_norm>SegmentExceptTable[[#This Row],[Boundary S/M]],kwhmo_norm<SegmentExceptTable[[#This Row],[Exception S/M]])),1,0)","v":0},{"$f":"$BP$10*SegmentExceptTable[[#This Row],[kW Boundary]]+$BP$11","v":1.6406329878739911},{"$f":"$BP$12*SegmentExceptTable[[#This Row],[kW Boundary]]+$BP$13","v":0.1739740462823105},{"$f":"SegmentExceptTable[[#This Row],[Boundary M/L]]+(0.05*SegmentExceptTable[[#This Row],[Boundary M/L]])","v":0.18267274859642602},{"$f":"IF(AND(AND(kwpeak_norm>SegmentExceptTable[[#This Row],[kW Boundary]],kwpeak_norm<SegmentExceptTable[[#This Row],[kW Exception]]),AND(kwhmo_norm>SegmentExceptTable[[#This Row],[Boundary M/L]],kwhmo_norm<SegmentExceptTable[[#This Row],[Exception M/L]])),1,0)","v":0}]
[null,null,null,null,null,null,null,null,null,null,null,null,null,null,null,null,null,null,null,null,null,null,null,null,null,null,null,null,null,null,null,null,null,null,null,null,null,null,null,null,null,null,null,null,null,null,null,503,{"$f":"SegmentExceptTable[[#This Row],[Numbers]]/$BP$4","v":0.83973288814691149},{"$f":"SegmentExceptTable[[#This Row],[kW Boundary]]+(0.05*SegmentExceptTable[[#This Row],[kW Boundary]])","v":0.88171953255425706},{"$f":"$BP$6*SegmentExceptTable[[#This Row],[kW Boundary]]+$BP$7","v":1.2019782998766273},{"$f":"$BP$8*SegmentExceptTable[[#This Row],[kW Boundary]]+$BP$9","v":-0.38415098566813544},{"$f":"SegmentExceptTable[[#This Row],[Boundary S/M]]+(0.05*SegmentExceptTable[[#This Row],[Boundary S/M]])","v":-0.40335853495154222},{"$f":"IF(AND(AND(kwpeak_norm>SegmentExceptTable[[#This Row],[kW Boundary]],kwpeak_norm<SegmentExceptTable[[#This Row],[kW Exception]]),AND(kwhmo_norm>SegmentExceptTable[[#This Row],[Boundary S/M]],kwhmo_norm<SegmentExceptTable[[#This Row],[Exception S/M]])),1,0)","v":0},{"$f":"$BP$10*SegmentExceptTable[[#This Row],[kW Boundary]]+$BP$11","v":1.6441600415162299},{"$f":"$BP$12*SegmentExceptTable[[#This Row],[kW Boundary]]+$BP$13","v":0.17318385125852176},{"$f":"SegmentExceptTable[[#This Row],[Boundary M/L]]+(0.05*SegmentExceptTable[[#This Row],[Boundary M/L]])","v":0.18184304382144784},{"$f":"IF(AND(AND(kwpeak_norm>SegmentExceptTable[[#This Row],[kW Boundary]],kwpeak_norm<SegmentExceptTable[[#This Row],[kW Exception]]),AND(kwhmo_norm>SegmentExceptTable[[#This Row],[Boundary M/L]],kwhmo_norm<SegmentExceptTable[[#This Row],[Exception M/L]])),1,0)","v":0}]
[null,null,null,null,null,null,null,null,null,null,null,null,null,null,null,null,null,null,null,null,null,null,null,null,null,null,null,null,null,null,null,null,null,null,null,null,null,null,null,null,null,null,null,null,null,null,null,504,{"$f":"SegmentExceptTable[[#This Row],[Numbers]]/$BP$4","v":0.84140233722871449},{"$f":"SegmentExceptTable[[#This Row],[kW Boundary]]+(0.05*SegmentExceptTable[[#This Row],[kW Boundary]])","v":0.88347245409015018},{"$f":"$BP$6*SegmentExceptTable[[#This Row],[kW Boundary]]+$BP$7","v":1.2044051301719936},{"$f":"$BP$8*SegmentExceptTable[[#This Row],[kW Boundary]]+$BP$9","v":-0.38529942206356627},{"$f":"SegmentExceptTable[[#This Row],[Boundary S/M]]+(0.05*SegmentExceptTable[[#This Row],[Boundary S/M]])","v":-0.40456439316674458},{"$f":"IF(AND(AND(kwpeak_norm>SegmentExceptTable[[#This Row],[kW Boundary]],kwpeak_norm<SegmentExceptTable[[#This Row],[kW Exception]]),AND(kwhmo_norm>SegmentExceptTable[[#This Row],[Boundary S/M]],kwhmo_norm<SegmentExceptTable[[#This Row],[Exception S/M]])),1,0)","v":0},{"$f":"$BP$10*SegmentExceptTable[[#This Row],[kW Boundary]]+$BP$11","v":1.6476870951584681},{"$f":"$BP$12*SegmentExceptTable[[#This Row],[kW Boundary]]+$BP$13","v":0.17239365623473296},{"$f":"SegmentExceptTable[[#This Row],[Boundary M/L]]+(0.05*SegmentExceptTable[[#This Row],[Boundary M/L]])","v":0.1810133390464696},{"$f":"IF(AND(AND(kwpeak_norm>SegmentExceptTable[[#This Row],[kW Boundary]],kwpeak_norm<SegmentExceptTable[[#This Row],[kW Exception]]),AND(kwhmo_norm>SegmentExceptTable[[#This Row],[Boundary M/L]],kwhmo_norm<SegmentExceptTable[[#This Row],[Exception M/L]])),1,0)","v":0}]
[null,null,null,null,null,null,null,null,null,null,null,null,null,null,null,null,null,null,null,null,null,null,null,null,null,null,null,null,null,null,null,null,null,null,null,null,null,null,null,null,null,null,null,null,null,null,null,505,{"$f":"SegmentExceptTable[[#This Row],[Numbers]]/$BP$4","v":0.84307178631051749},{"$f":"SegmentExceptTable[[#This Row],[kW Boundary]]+(0.05*SegmentExceptTable[[#This Row],[kW Boundary]])","v":0.88522537562604331},{"$f":"$BP$6*SegmentExceptTable[[#This Row],[kW Boundary]]+$BP$7","v":1.2068319604673599},{"$f":"$BP$8*SegmentExceptTable[[#This Row],[kW Boundary]]+$BP$9","v":-0.38644785845899721},{"$f":"SegmentExceptTable[[#This Row],[Boundary S/M]]+(0.05*SegmentExceptTable[[#This Row],[Boundary S/M]])","v":-0.40577025138194706},{"$f":"IF(AND(AND(kwpeak_norm>SegmentExceptTable[[#This Row],[kW Boundary]],kwpeak_norm<SegmentExceptTable[[#This Row],[kW Exception]]),AND(kwhmo_norm>SegmentExceptTable[[#This Row],[Boundary S/M]],kwhmo_norm<SegmentExceptTable[[#This Row],[Exception S/M]])),1,0)","v":0},{"$f":"$BP$10*SegmentExceptTable[[#This Row],[kW Boundary]]+$BP$11","v":1.6512141488007068},{"$f":"$BP$12*SegmentExceptTable[[#This Row],[kW Boundary]]+$BP$13","v":0.17160346121094422},{"$f":"SegmentExceptTable[[#This Row],[Boundary M/L]]+(0.05*SegmentExceptTable[[#This Row],[Boundary M/L]])","v":0.18018363427149142},{"$f":"IF(AND(AND(kwpeak_norm>SegmentExceptTable[[#This Row],[kW Boundary]],kwpeak_norm<SegmentExceptTable[[#This Row],[kW Exception]]),AND(kwhmo_norm>SegmentExceptTable[[#This Row],[Boundary M/L]],kwhmo_norm<SegmentExceptTable[[#This Row],[Exception M/L]])),1,0)","v":0}]
[null,null,null,null,null,null,null,null,null,null,null,null,null,null,null,null,null,null,null,null,null,null,null,null,null,null,null,null,null,null,null,null,null,null,null,null,null,null,null,null,null,null,null,null,null,null,null,506,{"$f":"SegmentExceptTable[[#This Row],[Numbers]]/$BP$4","v":0.84474123539232049},{"$f":"SegmentExceptTable[[#This Row],[kW Boundary]]+(0.05*SegmentExceptTable[[#This Row],[kW Boundary]])","v":0.88697829716193655},{"$f":"$BP$6*SegmentExceptTable[[#This Row],[kW Boundary]]+$BP$7","v":1.2092587907627261},{"$f":"$BP$8*SegmentExceptTable[[#This Row],[kW Boundary]]+$BP$9","v":-0.38759629485442804},{"$f":"SegmentExceptTable[[#This Row],[Boundary S/M]]+(0.05*SegmentExceptTable[[#This Row],[Boundary S/M]])","v":-0.40697610959714942},{"$f":"IF(AND(AND(kwpeak_norm>SegmentExceptTable[[#This Row],[kW Boundary]],kwpeak_norm<SegmentExceptTable[[#This Row],[kW Exception]]),AND(kwhmo_norm>SegmentExceptTable[[#This Row],[Boundary S/M]],kwhmo_norm<SegmentExceptTable[[#This Row],[Exception S/M]])),1,0)","v":0},{"$f":"$BP$10*SegmentExceptTable[[#This Row],[kW Boundary]]+$BP$11","v":1.6547412024429455},{"$f":"$BP$12*SegmentExceptTable[[#This Row],[kW Boundary]]+$BP$13","v":0.17081326618715548},{"$f":"SegmentExceptTable[[#This Row],[Boundary M/L]]+(0.05*SegmentExceptTable[[#This Row],[Boundary M/L]])","v":0.17935392949651324},{"$f":"IF(AND(AND(kwpeak_norm>SegmentExceptTable[[#This Row],[kW Boundary]],kwpeak_norm<SegmentExceptTable[[#This Row],[kW Exception]]),AND(kwhmo_norm>SegmentExceptTable[[#This Row],[Boundary M/L]],kwhmo_norm<SegmentExceptTable[[#This Row],[Exception M/L]])),1,0)","v":0}]
[null,null,null,null,null,null,null,null,null,null,null,null,null,null,null,null,null,null,null,null,null,null,null,null,null,null,null,null,null,null,null,null,null,null,null,null,null,null,null,null,null,null,null,null,null,null,null,507,{"$f":"SegmentExceptTable[[#This Row],[Numbers]]/$BP$4","v":0.84641068447412349},{"$f":"SegmentExceptTable[[#This Row],[kW Boundary]]+(0.05*SegmentExceptTable[[#This Row],[kW Boundary]])","v":0.88873121869782967},{"$f":"$BP$6*SegmentExceptTable[[#This Row],[kW Boundary]]+$BP$7","v":1.2116856210580924},{"$f":"$BP$8*SegmentExceptTable[[#This Row],[kW Boundary]]+$BP$9","v":-0.38874473124985887},{"$f":"SegmentExceptTable[[#This Row],[Boundary S/M]]+(0.05*SegmentExceptTable[[#This Row],[Boundary S/M]])","v":-0.40818196781235183},{"$f":"IF(AND(AND(kwpeak_norm>SegmentExceptTable[[#This Row],[kW Boundary]],kwpeak_norm<SegmentExceptTable[[#This Row],[kW Exception]]),AND(kwhmo_norm>SegmentExceptTable[[#This Row],[Boundary S/M]],kwhmo_norm<SegmentExceptTable[[#This Row],[Exception S/M]])),1,0)","v":0},{"$f":"$BP$10*SegmentExceptTable[[#This Row],[kW Boundary]]+$BP$11","v":1.6582682560851838},{"$f":"$BP$12*SegmentExceptTable[[#This Row],[kW Boundary]]+$BP$13","v":0.17002307116336673},{"$f":"SegmentExceptTable[[#This Row],[Boundary M/L]]+(0.05*SegmentExceptTable[[#This Row],[Boundary M/L]])","v":0.17852422472153506},{"$f":"IF(AND(AND(kwpeak_norm>SegmentExceptTable[[#This Row],[kW Boundary]],kwpeak_norm<SegmentExceptTable[[#This Row],[kW Exception]]),AND(kwhmo_norm>SegmentExceptTable[[#This Row],[Boundary M/L]],kwhmo_norm<SegmentExceptTable[[#This Row],[Exception M/L]])),1,0)","v":0}]
[null,null,null,null,null,null,null,null,null,null,null,null,null,null,null,null,null,null,null,null,null,null,null,null,null,null,null,null,null,null,null,null,null,null,null,null,null,null,null,null,null,null,null,null,null,null,null,508,{"$f":"SegmentExceptTable[[#This Row],[Numbers]]/$BP$4","v":0.8480801335559266},{"$f":"SegmentExceptTable[[#This Row],[kW Boundary]]+(0.05*SegmentExceptTable[[#This Row],[kW Boundary]])","v":0.89048414023372291},{"$f":"$BP$6*SegmentExceptTable[[#This Row],[kW Boundary]]+$BP$7","v":1.2141124513534587},{"$f":"$BP$8*SegmentExceptTable[[#This Row],[kW Boundary]]+$BP$9","v":-0.38989316764528981},{"$f":"SegmentExceptTable[[#This Row],[Boundary S/M]]+(0.05*SegmentExceptTable[[#This Row],[Boundary S/M]])","v":-0.4093878260275543},{"$f":"IF(AND(AND(kwpeak_norm>SegmentExceptTable[[#This Row],[kW Boundary]],kwpeak_norm<SegmentExceptTable[[#This Row],[kW Exception]]),AND(kwhmo_norm>SegmentExceptTable[[#This Row],[Boundary S/M]],kwhmo_norm<SegmentExceptTable[[#This Row],[Exception S/M]])),1,0)","v":0},{"$f":"$BP$10*SegmentExceptTable[[#This Row],[kW Boundary]]+$BP$11","v":1.6617953097274225},{"$f":"$BP$12*SegmentExceptTable[[#This Row],[kW Boundary]]+$BP$13","v":0.16923287613957794},{"$f":"SegmentExceptTable[[#This Row],[Boundary M/L]]+(0.05*SegmentExceptTable[[#This Row],[Boundary M/L]])","v":0.17769451994655683},{"$f":"IF(AND(AND(kwpeak_norm>SegmentExceptTable[[#This Row],[kW Boundary]],kwpeak_norm<SegmentExceptTable[[#This Row],[kW Exception]]),AND(kwhmo_norm>SegmentExceptTable[[#This Row],[Boundary M/L]],kwhmo_norm<SegmentExceptTable[[#This Row],[Exception M/L]])),1,0)","v":0}]
[null,null,null,null,null,null,null,null,null,null,null,null,null,null,null,null,null,null,null,null,null,null,null,null,null,null,null,null,null,null,null,null,null,null,null,null,null,null,null,null,null,null,null,null,null,null,null,509,{"$f":"SegmentExceptTable[[#This Row],[Numbers]]/$BP$4","v":0.84974958263772959},{"$f":"SegmentExceptTable[[#This Row],[kW Boundary]]+(0.05*SegmentExceptTable[[#This Row],[kW Boundary]])","v":0.89223706176961604},{"$f":"$BP$6*SegmentExceptTable[[#This Row],[kW Boundary]]+$BP$7","v":1.216539281648825},{"$f":"$BP$8*SegmentExceptTable[[#This Row],[kW Boundary]]+$BP$9","v":-0.39104160404072075},{"$f":"SegmentExceptTable[[#This Row],[Boundary S/M]]+(0.05*SegmentExceptTable[[#This Row],[Boundary S/M]])","v":-0.41059368424275677},{"$f":"IF(AND(AND(kwpeak_norm>SegmentExceptTable[[#This Row],[kW Boundary]],kwpeak_norm<SegmentExceptTable[[#This Row],[kW Exception]]),AND(kwhmo_norm>SegmentExceptTable[[#This Row],[Boundary S/M]],kwhmo_norm<SegmentExceptTable[[#This Row],[Exception S/M]])),1,0)","v":0},{"$f":"$BP$10*SegmentExceptTable[[#This Row],[kW Boundary]]+$BP$11","v":1.6653223633696612},{"$f":"$BP$12*SegmentExceptTable[[#This Row],[kW Boundary]]+$BP$13","v":0.16844268111578914},{"$f":"SegmentExceptTable[[#This Row],[Boundary M/L]]+(0.05*SegmentExceptTable[[#This Row],[Boundary M/L]])","v":0.17686481517157859},{"$f":"IF(AND(AND(kwpeak_norm>SegmentExceptTable[[#This Row],[kW Boundary]],kwpeak_norm<SegmentExceptTable[[#This Row],[kW Exception]]),AND(kwhmo_norm>SegmentExceptTable[[#This Row],[Boundary M/L]],kwhmo_norm<SegmentExceptTable[[#This Row],[Exception M/L]])),1,0)","v":0}]
[null,null,null,null,null,null,null,null,null,null,null,null,null,null,null,null,null,null,null,null,null,null,null,null,null,null,null,null,null,null,null,null,null,null,null,null,null,null,null,null,null,null,null,null,null,null,null,510,{"$f":"SegmentExceptTable[[#This Row],[Numbers]]/$BP$4","v":0.85141903171953259},{"$f":"SegmentExceptTable[[#This Row],[kW Boundary]]+(0.05*SegmentExceptTable[[#This Row],[kW Boundary]])","v":0.89398998330550927},{"$f":"$BP$6*SegmentExceptTable[[#This Row],[kW Boundary]]+$BP$7","v":1.2189661119441912},{"$f":"$BP$8*SegmentExceptTable[[#This Row],[kW Boundary]]+$BP$9","v":-0.39219004043615158},{"$f":"SegmentExceptTable[[#This Row],[Boundary S/M]]+(0.05*SegmentExceptTable[[#This Row],[Boundary S/M]])","v":-0.41179954245795913},{"$f":"IF(AND(AND(kwpeak_norm>SegmentExceptTable[[#This Row],[kW Boundary]],kwpeak_norm<SegmentExceptTable[[#This Row],[kW Exception]]),AND(kwhmo_norm>SegmentExceptTable[[#This Row],[Boundary S/M]],kwhmo_norm<SegmentExceptTable[[#This Row],[Exception S/M]])),1,0)","v":0},{"$f":"$BP$10*SegmentExceptTable[[#This Row],[kW Boundary]]+$BP$11","v":1.6688494170118995},{"$f":"$BP$12*SegmentExceptTable[[#This Row],[kW Boundary]]+$BP$13","v":0.1676524860920004},{"$f":"SegmentExceptTable[[#This Row],[Boundary M/L]]+(0.05*SegmentExceptTable[[#This Row],[Boundary M/L]])","v":0.17603511039660041},{"$f":"IF(AND(AND(kwpeak_norm>SegmentExceptTable[[#This Row],[kW Boundary]],kwpeak_norm<SegmentExceptTable[[#This Row],[kW Exception]]),AND(kwhmo_norm>SegmentExceptTable[[#This Row],[Boundary M/L]],kwhmo_norm<SegmentExceptTable[[#This Row],[Exception M/L]])),1,0)","v":0}]
[null,null,null,null,null,null,null,null,null,null,null,null,null,null,null,null,null,null,null,null,null,null,null,null,null,null,null,null,null,null,null,null,null,null,null,null,null,null,null,null,null,null,null,null,null,null,null,511,{"$f":"SegmentExceptTable[[#This Row],[Numbers]]/$BP$4","v":0.85308848080133559},{"$f":"SegmentExceptTable[[#This Row],[kW Boundary]]+(0.05*SegmentExceptTable[[#This Row],[kW Boundary]])","v":0.8957429048414024},{"$f":"$BP$6*SegmentExceptTable[[#This Row],[kW Boundary]]+$BP$7","v":1.2213929422395575},{"$f":"$BP$8*SegmentExceptTable[[#This Row],[kW Boundary]]+$BP$9","v":-0.39333847683158241},{"$f":"SegmentExceptTable[[#This Row],[Boundary S/M]]+(0.05*SegmentExceptTable[[#This Row],[Boundary S/M]])","v":-0.41300540067316155},{"$f":"IF(AND(AND(kwpeak_norm>SegmentExceptTable[[#This Row],[kW Boundary]],kwpeak_norm<SegmentExceptTable[[#This Row],[kW Exception]]),AND(kwhmo_norm>SegmentExceptTable[[#This Row],[Boundary S/M]],kwhmo_norm<SegmentExceptTable[[#This Row],[Exception S/M]])),1,0)","v":0},{"$f":"$BP$10*SegmentExceptTable[[#This Row],[kW Boundary]]+$BP$11","v":1.6723764706541382},{"$f":"$BP$12*SegmentExceptTable[[#This Row],[kW Boundary]]+$BP$13","v":0.16686229106821165},{"$f":"SegmentExceptTable[[#This Row],[Boundary M/L]]+(0.05*SegmentExceptTable[[#This Row],[Boundary M/L]])","v":0.17520540562162223},{"$f":"IF(AND(AND(kwpeak_norm>SegmentExceptTable[[#This Row],[kW Boundary]],kwpeak_norm<SegmentExceptTable[[#This Row],[kW Exception]]),AND(kwhmo_norm>SegmentExceptTable[[#This Row],[Boundary M/L]],kwhmo_norm<SegmentExceptTable[[#This Row],[Exception M/L]])),1,0)","v":0}]
[null,null,null,null,null,null,null,null,null,null,null,null,null,null,null,null,null,null,null,null,null,null,null,null,null,null,null,null,null,null,null,null,null,null,null,null,null,null,null,null,null,null,null,null,null,null,null,512,{"$f":"SegmentExceptTable[[#This Row],[Numbers]]/$BP$4","v":0.85475792988313859},{"$f":"SegmentExceptTable[[#This Row],[kW Boundary]]+(0.05*SegmentExceptTable[[#This Row],[kW Boundary]])","v":0.89749582637729552},{"$f":"$BP$6*SegmentExceptTable[[#This Row],[kW Boundary]]+$BP$7","v":1.2238197725349238},{"$f":"$BP$8*SegmentExceptTable[[#This Row],[kW Boundary]]+$BP$9","v":-0.39448691322701335},{"$f":"SegmentExceptTable[[#This Row],[Boundary S/M]]+(0.05*SegmentExceptTable[[#This Row],[Boundary S/M]])","v":-0.41421125888836402},{"$f":"IF(AND(AND(kwpeak_norm>SegmentExceptTable[[#This Row],[kW Boundary]],kwpeak_norm<SegmentExceptTable[[#This Row],[kW Exception]]),AND(kwhmo_norm>SegmentExceptTable[[#This Row],[Boundary S/M]],kwhmo_norm<SegmentExceptTable[[#This Row],[Exception S/M]])),1,0)","v":0},{"$f":"$BP$10*SegmentExceptTable[[#This Row],[kW Boundary]]+$BP$11","v":1.6759035242963769},{"$f":"$BP$12*SegmentExceptTable[[#This Row],[kW Boundary]]+$BP$13","v":0.16607209604442291},{"$f":"SegmentExceptTable[[#This Row],[Boundary M/L]]+(0.05*SegmentExceptTable[[#This Row],[Boundary M/L]])","v":0.17437570084664406},{"$f":"IF(AND(AND(kwpeak_norm>SegmentExceptTable[[#This Row],[kW Boundary]],kwpeak_norm<SegmentExceptTable[[#This Row],[kW Exception]]),AND(kwhmo_norm>SegmentExceptTable[[#This Row],[Boundary M/L]],kwhmo_norm<SegmentExceptTable[[#This Row],[Exception M/L]])),1,0)","v":0}]
[null,null,null,null,null,null,null,null,null,null,null,null,null,null,null,null,null,null,null,null,null,null,null,null,null,null,null,null,null,null,null,null,null,null,null,null,null,null,null,null,null,null,null,null,null,null,null,513,{"$f":"SegmentExceptTable[[#This Row],[Numbers]]/$BP$4","v":0.85642737896494159},{"$f":"SegmentExceptTable[[#This Row],[kW Boundary]]+(0.05*SegmentExceptTable[[#This Row],[kW Boundary]])","v":0.89924874791318865},{"$f":"$BP$6*SegmentExceptTable[[#This Row],[kW Boundary]]+$BP$7","v":1.2262466028302901},{"$f":"$BP$8*SegmentExceptTable[[#This Row],[kW Boundary]]+$BP$9","v":-0.39563534962244418},{"$f":"SegmentExceptTable[[#This Row],[Boundary S/M]]+(0.05*SegmentExceptTable[[#This Row],[Boundary S/M]])","v":-0.41541711710356638},{"$f":"IF(AND(AND(kwpeak_norm>SegmentExceptTable[[#This Row],[kW Boundary]],kwpeak_norm<SegmentExceptTable[[#This Row],[kW Exception]]),AND(kwhmo_norm>SegmentExceptTable[[#This Row],[Boundary S/M]],kwhmo_norm<SegmentExceptTable[[#This Row],[Exception S/M]])),1,0)","v":0},{"$f":"$BP$10*SegmentExceptTable[[#This Row],[kW Boundary]]+$BP$11","v":1.6794305779386152},{"$f":"$BP$12*SegmentExceptTable[[#This Row],[kW Boundary]]+$BP$13","v":0.16528190102063417},{"$f":"SegmentExceptTable[[#This Row],[Boundary M/L]]+(0.05*SegmentExceptTable[[#This Row],[Boundary M/L]])","v":0.17354599607166588},{"$f":"IF(AND(AND(kwpeak_norm>SegmentExceptTable[[#This Row],[kW Boundary]],kwpeak_norm<SegmentExceptTable[[#This Row],[kW Exception]]),AND(kwhmo_norm>SegmentExceptTable[[#This Row],[Boundary M/L]],kwhmo_norm<SegmentExceptTable[[#This Row],[Exception M/L]])),1,0)","v":0}]
[null,null,null,null,null,null,null,null,null,null,null,null,null,null,null,null,null,null,null,null,null,null,null,null,null,null,null,null,null,null,null,null,null,null,null,null,null,null,null,null,null,null,null,null,null,null,null,514,{"$f":"SegmentExceptTable[[#This Row],[Numbers]]/$BP$4","v":0.85809682804674459},{"$f":"SegmentExceptTable[[#This Row],[kW Boundary]]+(0.05*SegmentExceptTable[[#This Row],[kW Boundary]])","v":0.90100166944908178},{"$f":"$BP$6*SegmentExceptTable[[#This Row],[kW Boundary]]+$BP$7","v":1.2286734331256564},{"$f":"$BP$8*SegmentExceptTable[[#This Row],[kW Boundary]]+$BP$9","v":-0.39678378601787512},{"$f":"SegmentExceptTable[[#This Row],[Boundary S/M]]+(0.05*SegmentExceptTable[[#This Row],[Boundary S/M]])","v":-0.41662297531876885},{"$f":"IF(AND(AND(kwpeak_norm>SegmentExceptTable[[#This Row],[kW Boundary]],kwpeak_norm<SegmentExceptTable[[#This Row],[kW Exception]]),AND(kwhmo_norm>SegmentExceptTable[[#This Row],[Boundary S/M]],kwhmo_norm<SegmentExceptTable[[#This Row],[Exception S/M]])),1,0)","v":0},{"$f":"$BP$10*SegmentExceptTable[[#This Row],[kW Boundary]]+$BP$11","v":1.6829576315808539},{"$f":"$BP$12*SegmentExceptTable[[#This Row],[kW Boundary]]+$BP$13","v":0.16449170599684537},{"$f":"SegmentExceptTable[[#This Row],[Boundary M/L]]+(0.05*SegmentExceptTable[[#This Row],[Boundary M/L]])","v":0.17271629129668764},{"$f":"IF(AND(AND(kwpeak_norm>SegmentExceptTable[[#This Row],[kW Boundary]],kwpeak_norm<SegmentExceptTable[[#This Row],[kW Exception]]),AND(kwhmo_norm>SegmentExceptTable[[#This Row],[Boundary M/L]],kwhmo_norm<SegmentExceptTable[[#This Row],[Exception M/L]])),1,0)","v":0}]
[null,null,null,null,null,null,null,null,null,null,null,null,null,null,null,null,null,null,null,null,null,null,null,null,null,null,null,null,null,null,null,null,null,null,null,null,null,null,null,null,null,null,null,null,null,null,null,515,{"$f":"SegmentExceptTable[[#This Row],[Numbers]]/$BP$4","v":0.85976627712854758},{"$f":"SegmentExceptTable[[#This Row],[kW Boundary]]+(0.05*SegmentExceptTable[[#This Row],[kW Boundary]])","v":0.90275459098497501},{"$f":"$BP$6*SegmentExceptTable[[#This Row],[kW Boundary]]+$BP$7","v":1.2311002634210226},{"$f":"$BP$8*SegmentExceptTable[[#This Row],[kW Boundary]]+$BP$9","v":-0.39793222241330595},{"$f":"SegmentExceptTable[[#This Row],[Boundary S/M]]+(0.05*SegmentExceptTable[[#This Row],[Boundary S/M]])","v":-0.41782883353397127},{"$f":"IF(AND(AND(kwpeak_norm>SegmentExceptTable[[#This Row],[kW Boundary]],kwpeak_norm<SegmentExceptTable[[#This Row],[kW Exception]]),AND(kwhmo_norm>SegmentExceptTable[[#This Row],[Boundary S/M]],kwhmo_norm<SegmentExceptTable[[#This Row],[Exception S/M]])),1,0)","v":0},{"$f":"$BP$10*SegmentExceptTable[[#This Row],[kW Boundary]]+$BP$11","v":1.6864846852230921},{"$f":"$BP$12*SegmentExceptTable[[#This Row],[kW Boundary]]+$BP$13","v":0.16370151097305663},{"$f":"SegmentExceptTable[[#This Row],[Boundary M/L]]+(0.05*SegmentExceptTable[[#This Row],[Boundary M/L]])","v":0.17188658652170946},{"$f":"IF(AND(AND(kwpeak_norm>SegmentExceptTable[[#This Row],[kW Boundary]],kwpeak_norm<SegmentExceptTable[[#This Row],[kW Exception]]),AND(kwhmo_norm>SegmentExceptTable[[#This Row],[Boundary M/L]],kwhmo_norm<SegmentExceptTable[[#This Row],[Exception M/L]])),1,0)","v":0}]
[null,null,null,null,null,null,null,null,null,null,null,null,null,null,null,null,null,null,null,null,null,null,null,null,null,null,null,null,null,null,null,null,null,null,null,null,null,null,null,null,null,null,null,null,null,null,null,516,{"$f":"SegmentExceptTable[[#This Row],[Numbers]]/$BP$4","v":0.86143572621035058},{"$f":"SegmentExceptTable[[#This Row],[kW Boundary]]+(0.05*SegmentExceptTable[[#This Row],[kW Boundary]])","v":0.90450751252086814},{"$f":"$BP$6*SegmentExceptTable[[#This Row],[kW Boundary]]+$BP$7","v":1.2335270937163889},{"$f":"$BP$8*SegmentExceptTable[[#This Row],[kW Boundary]]+$BP$9","v":-0.39908065880873678},{"$f":"SegmentExceptTable[[#This Row],[Boundary S/M]]+(0.05*SegmentExceptTable[[#This Row],[Boundary S/M]])","v":-0.41903469174917363},{"$f":"IF(AND(AND(kwpeak_norm>SegmentExceptTable[[#This Row],[kW Boundary]],kwpeak_norm<SegmentExceptTable[[#This Row],[kW Exception]]),AND(kwhmo_norm>SegmentExceptTable[[#This Row],[Boundary S/M]],kwhmo_norm<SegmentExceptTable[[#This Row],[Exception S/M]])),1,0)","v":0},{"$f":"$BP$10*SegmentExceptTable[[#This Row],[kW Boundary]]+$BP$11","v":1.6900117388653308},{"$f":"$BP$12*SegmentExceptTable[[#This Row],[kW Boundary]]+$BP$13","v":0.16291131594926789},{"$f":"SegmentExceptTable[[#This Row],[Boundary M/L]]+(0.05*SegmentExceptTable[[#This Row],[Boundary M/L]])","v":0.17105688174673128},{"$f":"IF(AND(AND(kwpeak_norm>SegmentExceptTable[[#This Row],[kW Boundary]],kwpeak_norm<SegmentExceptTable[[#This Row],[kW Exception]]),AND(kwhmo_norm>SegmentExceptTable[[#This Row],[Boundary M/L]],kwhmo_norm<SegmentExceptTable[[#This Row],[Exception M/L]])),1,0)","v":0}]
[null,null,null,null,null,null,null,null,null,null,null,null,null,null,null,null,null,null,null,null,null,null,null,null,null,null,null,null,null,null,null,null,null,null,null,null,null,null,null,null,null,null,null,null,null,null,null,517,{"$f":"SegmentExceptTable[[#This Row],[Numbers]]/$BP$4","v":0.86310517529215358},{"$f":"SegmentExceptTable[[#This Row],[kW Boundary]]+(0.05*SegmentExceptTable[[#This Row],[kW Boundary]])","v":0.90626043405676127},{"$f":"$BP$6*SegmentExceptTable[[#This Row],[kW Boundary]]+$BP$7","v":1.2359539240117552},{"$f":"$BP$8*SegmentExceptTable[[#This Row],[kW Boundary]]+$BP$9","v":-0.40022909520416772},{"$f":"SegmentExceptTable[[#This Row],[Boundary S/M]]+(0.05*SegmentExceptTable[[#This Row],[Boundary S/M]])","v":-0.4202405499643761},{"$f":"IF(AND(AND(kwpeak_norm>SegmentExceptTable[[#This Row],[kW Boundary]],kwpeak_norm<SegmentExceptTable[[#This Row],[kW Exception]]),AND(kwhmo_norm>SegmentExceptTable[[#This Row],[Boundary S/M]],kwhmo_norm<SegmentExceptTable[[#This Row],[Exception S/M]])),1,0)","v":0},{"$f":"$BP$10*SegmentExceptTable[[#This Row],[kW Boundary]]+$BP$11","v":1.6935387925075691},{"$f":"$BP$12*SegmentExceptTable[[#This Row],[kW Boundary]]+$BP$13","v":0.16212112092547915},{"$f":"SegmentExceptTable[[#This Row],[Boundary M/L]]+(0.05*SegmentExceptTable[[#This Row],[Boundary M/L]])","v":0.1702271769717531},{"$f":"IF(AND(AND(kwpeak_norm>SegmentExceptTable[[#This Row],[kW Boundary]],kwpeak_norm<SegmentExceptTable[[#This Row],[kW Exception]]),AND(kwhmo_norm>SegmentExceptTable[[#This Row],[Boundary M/L]],kwhmo_norm<SegmentExceptTable[[#This Row],[Exception M/L]])),1,0)","v":0}]
[null,null,null,null,null,null,null,null,null,null,null,null,null,null,null,null,null,null,null,null,null,null,null,null,null,null,null,null,null,null,null,null,null,null,null,null,null,null,null,null,null,null,null,null,null,null,null,518,{"$f":"SegmentExceptTable[[#This Row],[Numbers]]/$BP$4","v":0.86477462437395658},{"$f":"SegmentExceptTable[[#This Row],[kW Boundary]]+(0.05*SegmentExceptTable[[#This Row],[kW Boundary]])","v":0.90801335559265439},{"$f":"$BP$6*SegmentExceptTable[[#This Row],[kW Boundary]]+$BP$7","v":1.2383807543071215},{"$f":"$BP$8*SegmentExceptTable[[#This Row],[kW Boundary]]+$BP$9","v":-0.40137753159959855},{"$f":"SegmentExceptTable[[#This Row],[Boundary S/M]]+(0.05*SegmentExceptTable[[#This Row],[Boundary S/M]])","v":-0.42144640817957846},{"$f":"IF(AND(AND(kwpeak_norm>SegmentExceptTable[[#This Row],[kW Boundary]],kwpeak_norm<SegmentExceptTable[[#This Row],[kW Exception]]),AND(kwhmo_norm>SegmentExceptTable[[#This Row],[Boundary S/M]],kwhmo_norm<SegmentExceptTable[[#This Row],[Exception S/M]])),1,0)","v":0},{"$f":"$BP$10*SegmentExceptTable[[#This Row],[kW Boundary]]+$BP$11","v":1.6970658461498078},{"$f":"$BP$12*SegmentExceptTable[[#This Row],[kW Boundary]]+$BP$13","v":0.16133092590169035},{"$f":"SegmentExceptTable[[#This Row],[Boundary M/L]]+(0.05*SegmentExceptTable[[#This Row],[Boundary M/L]])","v":0.16939747219677487},{"$f":"IF(AND(AND(kwpeak_norm>SegmentExceptTable[[#This Row],[kW Boundary]],kwpeak_norm<SegmentExceptTable[[#This Row],[kW Exception]]),AND(kwhmo_norm>SegmentExceptTable[[#This Row],[Boundary M/L]],kwhmo_norm<SegmentExceptTable[[#This Row],[Exception M/L]])),1,0)","v":0}]
[null,null,null,null,null,null,null,null,null,null,null,null,null,null,null,null,null,null,null,null,null,null,null,null,null,null,null,null,null,null,null,null,null,null,null,null,null,null,null,null,null,null,null,null,null,null,null,519,{"$f":"SegmentExceptTable[[#This Row],[Numbers]]/$BP$4","v":0.86644407345575958},{"$f":"SegmentExceptTable[[#This Row],[kW Boundary]]+(0.05*SegmentExceptTable[[#This Row],[kW Boundary]])","v":0.90976627712854752},{"$f":"$BP$6*SegmentExceptTable[[#This Row],[kW Boundary]]+$BP$7","v":1.2408075846024877},{"$f":"$BP$8*SegmentExceptTable[[#This Row],[kW Boundary]]+$BP$9","v":-0.40252596799502938},{"$f":"SegmentExceptTable[[#This Row],[Boundary S/M]]+(0.05*SegmentExceptTable[[#This Row],[Boundary S/M]])","v":-0.42265226639478082},{"$f":"IF(AND(AND(kwpeak_norm>SegmentExceptTable[[#This Row],[kW Boundary]],kwpeak_norm<SegmentExceptTable[[#This Row],[kW Exception]]),AND(kwhmo_norm>SegmentExceptTable[[#This Row],[Boundary S/M]],kwhmo_norm<SegmentExceptTable[[#This Row],[Exception S/M]])),1,0)","v":0},{"$f":"$BP$10*SegmentExceptTable[[#This Row],[kW Boundary]]+$BP$11","v":1.7005928997920461},{"$f":"$BP$12*SegmentExceptTable[[#This Row],[kW Boundary]]+$BP$13","v":0.16054073087790161},{"$f":"SegmentExceptTable[[#This Row],[Boundary M/L]]+(0.05*SegmentExceptTable[[#This Row],[Boundary M/L]])","v":0.16856776742179669},{"$f":"IF(AND(AND(kwpeak_norm>SegmentExceptTable[[#This Row],[kW Boundary]],kwpeak_norm<SegmentExceptTable[[#This Row],[kW Exception]]),AND(kwhmo_norm>SegmentExceptTable[[#This Row],[Boundary M/L]],kwhmo_norm<SegmentExceptTable[[#This Row],[Exception M/L]])),1,0)","v":0}]
[null,null,null,null,null,null,null,null,null,null,null,null,null,null,null,null,null,null,null,null,null,null,null,null,null,null,null,null,null,null,null,null,null,null,null,null,null,null,null,null,null,null,null,null,null,null,null,520,{"$f":"SegmentExceptTable[[#This Row],[Numbers]]/$BP$4","v":0.86811352253756258},{"$f":"SegmentExceptTable[[#This Row],[kW Boundary]]+(0.05*SegmentExceptTable[[#This Row],[kW Boundary]])","v":0.91151919866444076},{"$f":"$BP$6*SegmentExceptTable[[#This Row],[kW Boundary]]+$BP$7","v":1.243234414897854},{"$f":"$BP$8*SegmentExceptTable[[#This Row],[kW Boundary]]+$BP$9","v":-0.40367440439046032},{"$f":"SegmentExceptTable[[#This Row],[Boundary S/M]]+(0.05*SegmentExceptTable[[#This Row],[Boundary S/M]])","v":-0.42385812460998334},{"$f":"IF(AND(AND(kwpeak_norm>SegmentExceptTable[[#This Row],[kW Boundary]],kwpeak_norm<SegmentExceptTable[[#This Row],[kW Exception]]),AND(kwhmo_norm>SegmentExceptTable[[#This Row],[Boundary S/M]],kwhmo_norm<SegmentExceptTable[[#This Row],[Exception S/M]])),1,0)","v":0},{"$f":"$BP$10*SegmentExceptTable[[#This Row],[kW Boundary]]+$BP$11","v":1.7041199534342848},{"$f":"$BP$12*SegmentExceptTable[[#This Row],[kW Boundary]]+$BP$13","v":0.15975053585411286},{"$f":"SegmentExceptTable[[#This Row],[Boundary M/L]]+(0.05*SegmentExceptTable[[#This Row],[Boundary M/L]])","v":0.16773806264681851},{"$f":"IF(AND(AND(kwpeak_norm>SegmentExceptTable[[#This Row],[kW Boundary]],kwpeak_norm<SegmentExceptTable[[#This Row],[kW Exception]]),AND(kwhmo_norm>SegmentExceptTable[[#This Row],[Boundary M/L]],kwhmo_norm<SegmentExceptTable[[#This Row],[Exception M/L]])),1,0)","v":0}]
[null,null,null,null,null,null,null,null,null,null,null,null,null,null,null,null,null,null,null,null,null,null,null,null,null,null,null,null,null,null,null,null,null,null,null,null,null,null,null,null,null,null,null,null,null,null,null,521,{"$f":"SegmentExceptTable[[#This Row],[Numbers]]/$BP$4","v":0.86978297161936557},{"$f":"SegmentExceptTable[[#This Row],[kW Boundary]]+(0.05*SegmentExceptTable[[#This Row],[kW Boundary]])","v":0.91327212020033388},{"$f":"$BP$6*SegmentExceptTable[[#This Row],[kW Boundary]]+$BP$7","v":1.2456612451932203},{"$f":"$BP$8*SegmentExceptTable[[#This Row],[kW Boundary]]+$BP$9","v":-0.40482284078589115},{"$f":"SegmentExceptTable[[#This Row],[Boundary S/M]]+(0.05*SegmentExceptTable[[#This Row],[Boundary S/M]])","v":-0.4250639828251857},{"$f":"IF(AND(AND(kwpeak_norm>SegmentExceptTable[[#This Row],[kW Boundary]],kwpeak_norm<SegmentExceptTable[[#This Row],[kW Exception]]),AND(kwhmo_norm>SegmentExceptTable[[#This Row],[Boundary S/M]],kwhmo_norm<SegmentExceptTable[[#This Row],[Exception S/M]])),1,0)","v":0},{"$f":"$BP$10*SegmentExceptTable[[#This Row],[kW Boundary]]+$BP$11","v":1.7076470070765235},{"$f":"$BP$12*SegmentExceptTable[[#This Row],[kW Boundary]]+$BP$13","v":0.15896034083032412},{"$f":"SegmentExceptTable[[#This Row],[Boundary M/L]]+(0.05*SegmentExceptTable[[#This Row],[Boundary M/L]])","v":0.16690835787184033},{"$f":"IF(AND(AND(kwpeak_norm>SegmentExceptTable[[#This Row],[kW Boundary]],kwpeak_norm<SegmentExceptTable[[#This Row],[kW Exception]]),AND(kwhmo_norm>SegmentExceptTable[[#This Row],[Boundary M/L]],kwhmo_norm<SegmentExceptTable[[#This Row],[Exception M/L]])),1,0)","v":0}]
[null,null,null,null,null,null,null,null,null,null,null,null,null,null,null,null,null,null,null,null,null,null,null,null,null,null,null,null,null,null,null,null,null,null,null,null,null,null,null,null,null,null,null,null,null,null,null,522,{"$f":"SegmentExceptTable[[#This Row],[Numbers]]/$BP$4","v":0.87145242070116857},{"$f":"SegmentExceptTable[[#This Row],[kW Boundary]]+(0.05*SegmentExceptTable[[#This Row],[kW Boundary]])","v":0.91502504173622701},{"$f":"$BP$6*SegmentExceptTable[[#This Row],[kW Boundary]]+$BP$7","v":1.2480880754885866},{"$f":"$BP$8*SegmentExceptTable[[#This Row],[kW Boundary]]+$BP$9","v":-0.40597127718132209},{"$f":"SegmentExceptTable[[#This Row],[Boundary S/M]]+(0.05*SegmentExceptTable[[#This Row],[Boundary S/M]])","v":-0.42626984104038818},{"$f":"IF(AND(AND(kwpeak_norm>SegmentExceptTable[[#This Row],[kW Boundary]],kwpeak_norm<SegmentExceptTable[[#This Row],[kW Exception]]),AND(kwhmo_norm>SegmentExceptTable[[#This Row],[Boundary S/M]],kwhmo_norm<SegmentExceptTable[[#This Row],[Exception S/M]])),1,0)","v":0},{"$f":"$BP$10*SegmentExceptTable[[#This Row],[kW Boundary]]+$BP$11","v":1.7111740607187618},{"$f":"$BP$12*SegmentExceptTable[[#This Row],[kW Boundary]]+$BP$13","v":0.15817014580653538},{"$f":"SegmentExceptTable[[#This Row],[Boundary M/L]]+(0.05*SegmentExceptTable[[#This Row],[Boundary M/L]])","v":0.16607865309686215},{"$f":"IF(AND(AND(kwpeak_norm>SegmentExceptTable[[#This Row],[kW Boundary]],kwpeak_norm<SegmentExceptTable[[#This Row],[kW Exception]]),AND(kwhmo_norm>SegmentExceptTable[[#This Row],[Boundary M/L]],kwhmo_norm<SegmentExceptTable[[#This Row],[Exception M/L]])),1,0)","v":0}]
[null,null,null,null,null,null,null,null,null,null,null,null,null,null,null,null,null,null,null,null,null,null,null,null,null,null,null,null,null,null,null,null,null,null,null,null,null,null,null,null,null,null,null,null,null,null,null,523,{"$f":"SegmentExceptTable[[#This Row],[Numbers]]/$BP$4","v":0.87312186978297157},{"$f":"SegmentExceptTable[[#This Row],[kW Boundary]]+(0.05*SegmentExceptTable[[#This Row],[kW Boundary]])","v":0.91677796327212013},{"$f":"$BP$6*SegmentExceptTable[[#This Row],[kW Boundary]]+$BP$7","v":1.2505149057839529},{"$f":"$BP$8*SegmentExceptTable[[#This Row],[kW Boundary]]+$BP$9","v":-0.40711971357675292},{"$f":"SegmentExceptTable[[#This Row],[Boundary S/M]]+(0.05*SegmentExceptTable[[#This Row],[Boundary S/M]])","v":-0.42747569925559059},{"$f":"IF(AND(AND(kwpeak_norm>SegmentExceptTable[[#This Row],[kW Boundary]],kwpeak_norm<SegmentExceptTable[[#This Row],[kW Exception]]),AND(kwhmo_norm>SegmentExceptTable[[#This Row],[Boundary S/M]],kwhmo_norm<SegmentExceptTable[[#This Row],[Exception S/M]])),1,0)","v":0},{"$f":"$BP$10*SegmentExceptTable[[#This Row],[kW Boundary]]+$BP$11","v":1.7147011143610005},{"$f":"$BP$12*SegmentExceptTable[[#This Row],[kW Boundary]]+$BP$13","v":0.15737995078274658},{"$f":"SegmentExceptTable[[#This Row],[Boundary M/L]]+(0.05*SegmentExceptTable[[#This Row],[Boundary M/L]])","v":0.16524894832188392},{"$f":"IF(AND(AND(kwpeak_norm>SegmentExceptTable[[#This Row],[kW Boundary]],kwpeak_norm<SegmentExceptTable[[#This Row],[kW Exception]]),AND(kwhmo_norm>SegmentExceptTable[[#This Row],[Boundary M/L]],kwhmo_norm<SegmentExceptTable[[#This Row],[Exception M/L]])),1,0)","v":0}]
[null,null,null,null,null,null,null,null,null,null,null,null,null,null,null,null,null,null,null,null,null,null,null,null,null,null,null,null,null,null,null,null,null,null,null,null,null,null,null,null,null,null,null,null,null,null,null,524,{"$f":"SegmentExceptTable[[#This Row],[Numbers]]/$BP$4","v":0.87479131886477457},{"$f":"SegmentExceptTable[[#This Row],[kW Boundary]]+(0.05*SegmentExceptTable[[#This Row],[kW Boundary]])","v":0.91853088480801326},{"$f":"$BP$6*SegmentExceptTable[[#This Row],[kW Boundary]]+$BP$7","v":1.2529417360793191},{"$f":"$BP$8*SegmentExceptTable[[#This Row],[kW Boundary]]+$BP$9","v":-0.40826814997218375},{"$f":"SegmentExceptTable[[#This Row],[Boundary S/M]]+(0.05*SegmentExceptTable[[#This Row],[Boundary S/M]])","v":-0.42868155747079295},{"$f":"IF(AND(AND(kwpeak_norm>SegmentExceptTable[[#This Row],[kW Boundary]],kwpeak_norm<SegmentExceptTable[[#This Row],[kW Exception]]),AND(kwhmo_norm>SegmentExceptTable[[#This Row],[Boundary S/M]],kwhmo_norm<SegmentExceptTable[[#This Row],[Exception S/M]])),1,0)","v":0},{"$f":"$BP$10*SegmentExceptTable[[#This Row],[kW Boundary]]+$BP$11","v":1.7182281680032387},{"$f":"$BP$12*SegmentExceptTable[[#This Row],[kW Boundary]]+$BP$13","v":0.15658975575895784},{"$f":"SegmentExceptTable[[#This Row],[Boundary M/L]]+(0.05*SegmentExceptTable[[#This Row],[Boundary M/L]])","v":0.16441924354690574},{"$f":"IF(AND(AND(kwpeak_norm>SegmentExceptTable[[#This Row],[kW Boundary]],kwpeak_norm<SegmentExceptTable[[#This Row],[kW Exception]]),AND(kwhmo_norm>SegmentExceptTable[[#This Row],[Boundary M/L]],kwhmo_norm<SegmentExceptTable[[#This Row],[Exception M/L]])),1,0)","v":0}]
[null,null,null,null,null,null,null,null,null,null,null,null,null,null,null,null,null,null,null,null,null,null,null,null,null,null,null,null,null,null,null,null,null,null,null,null,null,null,null,null,null,null,null,null,null,null,null,525,{"$f":"SegmentExceptTable[[#This Row],[Numbers]]/$BP$4","v":0.87646076794657768},{"$f":"SegmentExceptTable[[#This Row],[kW Boundary]]+(0.05*SegmentExceptTable[[#This Row],[kW Boundary]])","v":0.92028380634390661},{"$f":"$BP$6*SegmentExceptTable[[#This Row],[kW Boundary]]+$BP$7","v":1.2553685663746854},{"$f":"$BP$8*SegmentExceptTable[[#This Row],[kW Boundary]]+$BP$9","v":-0.40941658636761469},{"$f":"SegmentExceptTable[[#This Row],[Boundary S/M]]+(0.05*SegmentExceptTable[[#This Row],[Boundary S/M]])","v":-0.42988741568599542},{"$f":"IF(AND(AND(kwpeak_norm>SegmentExceptTable[[#This Row],[kW Boundary]],kwpeak_norm<SegmentExceptTable[[#This Row],[kW Exception]]),AND(kwhmo_norm>SegmentExceptTable[[#This Row],[Boundary S/M]],kwhmo_norm<SegmentExceptTable[[#This Row],[Exception S/M]])),1,0)","v":0},{"$f":"$BP$10*SegmentExceptTable[[#This Row],[kW Boundary]]+$BP$11","v":1.7217552216454775},{"$f":"$BP$12*SegmentExceptTable[[#This Row],[kW Boundary]]+$BP$13","v":0.15579956073516904},{"$f":"SegmentExceptTable[[#This Row],[Boundary M/L]]+(0.05*SegmentExceptTable[[#This Row],[Boundary M/L]])","v":0.1635895387719275},{"$f":"IF(AND(AND(kwpeak_norm>SegmentExceptTable[[#This Row],[kW Boundary]],kwpeak_norm<SegmentExceptTable[[#This Row],[kW Exception]]),AND(kwhmo_norm>SegmentExceptTable[[#This Row],[Boundary M/L]],kwhmo_norm<SegmentExceptTable[[#This Row],[Exception M/L]])),1,0)","v":0}]
[null,null,null,null,null,null,null,null,null,null,null,null,null,null,null,null,null,null,null,null,null,null,null,null,null,null,null,null,null,null,null,null,null,null,null,null,null,null,null,null,null,null,null,null,null,null,null,526,{"$f":"SegmentExceptTable[[#This Row],[Numbers]]/$BP$4","v":0.87813021702838068},{"$f":"SegmentExceptTable[[#This Row],[kW Boundary]]+(0.05*SegmentExceptTable[[#This Row],[kW Boundary]])","v":0.92203672787979973},{"$f":"$BP$6*SegmentExceptTable[[#This Row],[kW Boundary]]+$BP$7","v":1.2577953966700517},{"$f":"$BP$8*SegmentExceptTable[[#This Row],[kW Boundary]]+$BP$9","v":-0.41056502276304563},{"$f":"SegmentExceptTable[[#This Row],[Boundary S/M]]+(0.05*SegmentExceptTable[[#This Row],[Boundary S/M]])","v":-0.43109327390119789},{"$f":"IF(AND(AND(kwpeak_norm>SegmentExceptTable[[#This Row],[kW Boundary]],kwpeak_norm<SegmentExceptTable[[#This Row],[kW Exception]]),AND(kwhmo_norm>SegmentExceptTable[[#This Row],[Boundary S/M]],kwhmo_norm<SegmentExceptTable[[#This Row],[Exception S/M]])),1,0)","v":0},{"$f":"$BP$10*SegmentExceptTable[[#This Row],[kW Boundary]]+$BP$11","v":1.7252822752877162},{"$f":"$BP$12*SegmentExceptTable[[#This Row],[kW Boundary]]+$BP$13","v":0.1550093657113803},{"$f":"SegmentExceptTable[[#This Row],[Boundary M/L]]+(0.05*SegmentExceptTable[[#This Row],[Boundary M/L]])","v":0.16275983399694932},{"$f":"IF(AND(AND(kwpeak_norm>SegmentExceptTable[[#This Row],[kW Boundary]],kwpeak_norm<SegmentExceptTable[[#This Row],[kW Exception]]),AND(kwhmo_norm>SegmentExceptTable[[#This Row],[Boundary M/L]],kwhmo_norm<SegmentExceptTable[[#This Row],[Exception M/L]])),1,0)","v":0}]
[null,null,null,null,null,null,null,null,null,null,null,null,null,null,null,null,null,null,null,null,null,null,null,null,null,null,null,null,null,null,null,null,null,null,null,null,null,null,null,null,null,null,null,null,null,null,null,527,{"$f":"SegmentExceptTable[[#This Row],[Numbers]]/$BP$4","v":0.87979966611018368},{"$f":"SegmentExceptTable[[#This Row],[kW Boundary]]+(0.05*SegmentExceptTable[[#This Row],[kW Boundary]])","v":0.92378964941569286},{"$f":"$BP$6*SegmentExceptTable[[#This Row],[kW Boundary]]+$BP$7","v":1.260222226965418},{"$f":"$BP$8*SegmentExceptTable[[#This Row],[kW Boundary]]+$BP$9","v":-0.41171345915847646},{"$f":"SegmentExceptTable[[#This Row],[Boundary S/M]]+(0.05*SegmentExceptTable[[#This Row],[Boundary S/M]])","v":-0.43229913211640025},{"$f":"IF(AND(AND(kwpeak_norm>SegmentExceptTable[[#This Row],[kW Boundary]],kwpeak_norm<SegmentExceptTable[[#This Row],[kW Exception]]),AND(kwhmo_norm>SegmentExceptTable[[#This Row],[Boundary S/M]],kwhmo_norm<SegmentExceptTable[[#This Row],[Exception S/M]])),1,0)","v":0},{"$f":"$BP$10*SegmentExceptTable[[#This Row],[kW Boundary]]+$BP$11","v":1.7288093289299549},{"$f":"$BP$12*SegmentExceptTable[[#This Row],[kW Boundary]]+$BP$13","v":0.15421917068759156},{"$f":"SegmentExceptTable[[#This Row],[Boundary M/L]]+(0.05*SegmentExceptTable[[#This Row],[Boundary M/L]])","v":0.16193012922197114},{"$f":"IF(AND(AND(kwpeak_norm>SegmentExceptTable[[#This Row],[kW Boundary]],kwpeak_norm<SegmentExceptTable[[#This Row],[kW Exception]]),AND(kwhmo_norm>SegmentExceptTable[[#This Row],[Boundary M/L]],kwhmo_norm<SegmentExceptTable[[#This Row],[Exception M/L]])),1,0)","v":0}]
[null,null,null,null,null,null,null,null,null,null,null,null,null,null,null,null,null,null,null,null,null,null,null,null,null,null,null,null,null,null,null,null,null,null,null,null,null,null,null,null,null,null,null,null,null,null,null,528,{"$f":"SegmentExceptTable[[#This Row],[Numbers]]/$BP$4","v":0.88146911519198667},{"$f":"SegmentExceptTable[[#This Row],[kW Boundary]]+(0.05*SegmentExceptTable[[#This Row],[kW Boundary]])","v":0.92554257095158599},{"$f":"$BP$6*SegmentExceptTable[[#This Row],[kW Boundary]]+$BP$7","v":1.2626490572607842},{"$f":"$BP$8*SegmentExceptTable[[#This Row],[kW Boundary]]+$BP$9","v":-0.4128618955539074},{"$f":"SegmentExceptTable[[#This Row],[Boundary S/M]]+(0.05*SegmentExceptTable[[#This Row],[Boundary S/M]])","v":-0.43350499033160278},{"$f":"IF(AND(AND(kwpeak_norm>SegmentExceptTable[[#This Row],[kW Boundary]],kwpeak_norm<SegmentExceptTable[[#This Row],[kW Exception]]),AND(kwhmo_norm>SegmentExceptTable[[#This Row],[Boundary S/M]],kwhmo_norm<SegmentExceptTable[[#This Row],[Exception S/M]])),1,0)","v":0},{"$f":"$BP$10*SegmentExceptTable[[#This Row],[kW Boundary]]+$BP$11","v":1.7323363825721931},{"$f":"$BP$12*SegmentExceptTable[[#This Row],[kW Boundary]]+$BP$13","v":0.15342897566380276},{"$f":"SegmentExceptTable[[#This Row],[Boundary M/L]]+(0.05*SegmentExceptTable[[#This Row],[Boundary M/L]])","v":0.16110042444699291},{"$f":"IF(AND(AND(kwpeak_norm>SegmentExceptTable[[#This Row],[kW Boundary]],kwpeak_norm<SegmentExceptTable[[#This Row],[kW Exception]]),AND(kwhmo_norm>SegmentExceptTable[[#This Row],[Boundary M/L]],kwhmo_norm<SegmentExceptTable[[#This Row],[Exception M/L]])),1,0)","v":0}]
[null,null,null,null,null,null,null,null,null,null,null,null,null,null,null,null,null,null,null,null,null,null,null,null,null,null,null,null,null,null,null,null,null,null,null,null,null,null,null,null,null,null,null,null,null,null,null,529,{"$f":"SegmentExceptTable[[#This Row],[Numbers]]/$BP$4","v":0.88313856427378967},{"$f":"SegmentExceptTable[[#This Row],[kW Boundary]]+(0.05*SegmentExceptTable[[#This Row],[kW Boundary]])","v":0.92729549248747911},{"$f":"$BP$6*SegmentExceptTable[[#This Row],[kW Boundary]]+$BP$7","v":1.2650758875561505},{"$f":"$BP$8*SegmentExceptTable[[#This Row],[kW Boundary]]+$BP$9","v":-0.41401033194933823},{"$f":"SegmentExceptTable[[#This Row],[Boundary S/M]]+(0.05*SegmentExceptTable[[#This Row],[Boundary S/M]])","v":-0.43471084854680514},{"$f":"IF(AND(AND(kwpeak_norm>SegmentExceptTable[[#This Row],[kW Boundary]],kwpeak_norm<SegmentExceptTable[[#This Row],[kW Exception]]),AND(kwhmo_norm>SegmentExceptTable[[#This Row],[Boundary S/M]],kwhmo_norm<SegmentExceptTable[[#This Row],[Exception S/M]])),1,0)","v":0},{"$f":"$BP$10*SegmentExceptTable[[#This Row],[kW Boundary]]+$BP$11","v":1.7358634362144318},{"$f":"$BP$12*SegmentExceptTable[[#This Row],[kW Boundary]]+$BP$13","v":0.15263878064001402},{"$f":"SegmentExceptTable[[#This Row],[Boundary M/L]]+(0.05*SegmentExceptTable[[#This Row],[Boundary M/L]])","v":0.16027071967201473},{"$f":"IF(AND(AND(kwpeak_norm>SegmentExceptTable[[#This Row],[kW Boundary]],kwpeak_norm<SegmentExceptTable[[#This Row],[kW Exception]]),AND(kwhmo_norm>SegmentExceptTable[[#This Row],[Boundary M/L]],kwhmo_norm<SegmentExceptTable[[#This Row],[Exception M/L]])),1,0)","v":0}]
[null,null,null,null,null,null,null,null,null,null,null,null,null,null,null,null,null,null,null,null,null,null,null,null,null,null,null,null,null,null,null,null,null,null,null,null,null,null,null,null,null,null,null,null,null,null,null,530,{"$f":"SegmentExceptTable[[#This Row],[Numbers]]/$BP$4","v":0.88480801335559267},{"$f":"SegmentExceptTable[[#This Row],[kW Boundary]]+(0.05*SegmentExceptTable[[#This Row],[kW Boundary]])","v":0.92904841402337235},{"$f":"$BP$6*SegmentExceptTable[[#This Row],[kW Boundary]]+$BP$7","v":1.2675027178515168},{"$f":"$BP$8*SegmentExceptTable[[#This Row],[kW Boundary]]+$BP$9","v":-0.41515876834476906},{"$f":"SegmentExceptTable[[#This Row],[Boundary S/M]]+(0.05*SegmentExceptTable[[#This Row],[Boundary S/M]])","v":-0.4359167067620075},{"$f":"IF(AND(AND(kwpeak_norm>SegmentExceptTable[[#This Row],[kW Boundary]],kwpeak_norm<SegmentExceptTable[[#This Row],[kW Exception]]),AND(kwhmo_norm>SegmentExceptTable[[#This Row],[Boundary S/M]],kwhmo_norm<SegmentExceptTable[[#This Row],[Exception S/M]])),1,0)","v":0},{"$f":"$BP$10*SegmentExceptTable[[#This Row],[kW Boundary]]+$BP$11","v":1.7393904898566701},{"$f":"$BP$12*SegmentExceptTable[[#This Row],[kW Boundary]]+$BP$13","v":0.15184858561622527},{"$f":"SegmentExceptTable[[#This Row],[Boundary M/L]]+(0.05*SegmentExceptTable[[#This Row],[Boundary M/L]])","v":0.15944101489703655},{"$f":"IF(AND(AND(kwpeak_norm>SegmentExceptTable[[#This Row],[kW Boundary]],kwpeak_norm<SegmentExceptTable[[#This Row],[kW Exception]]),AND(kwhmo_norm>SegmentExceptTable[[#This Row],[Boundary M/L]],kwhmo_norm<SegmentExceptTable[[#This Row],[Exception M/L]])),1,0)","v":0}]
[null,null,null,null,null,null,null,null,null,null,null,null,null,null,null,null,null,null,null,null,null,null,null,null,null,null,null,null,null,null,null,null,null,null,null,null,null,null,null,null,null,null,null,null,null,null,null,531,{"$f":"SegmentExceptTable[[#This Row],[Numbers]]/$BP$4","v":0.88647746243739567},{"$f":"SegmentExceptTable[[#This Row],[kW Boundary]]+(0.05*SegmentExceptTable[[#This Row],[kW Boundary]])","v":0.93080133555926547},{"$f":"$BP$6*SegmentExceptTable[[#This Row],[kW Boundary]]+$BP$7","v":1.2699295481468831},{"$f":"$BP$8*SegmentExceptTable[[#This Row],[kW Boundary]]+$BP$9","v":-0.4163072047402},{"$f":"SegmentExceptTable[[#This Row],[Boundary S/M]]+(0.05*SegmentExceptTable[[#This Row],[Boundary S/M]])","v":-0.43712256497721003},{"$f":"IF(AND(AND(kwpeak_norm>SegmentExceptTable[[#This Row],[kW Boundary]],kwpeak_norm<SegmentExceptTable[[#This Row],[kW Exception]]),AND(kwhmo_norm>SegmentExceptTable[[#This Row],[Boundary S/M]],kwhmo_norm<SegmentExceptTable[[#This Row],[Exception S/M]])),1,0)","v":0},{"$f":"$BP$10*SegmentExceptTable[[#This Row],[kW Boundary]]+$BP$11","v":1.7429175434989088},{"$f":"$BP$12*SegmentExceptTable[[#This Row],[kW Boundary]]+$BP$13","v":0.15105839059243653},{"$f":"SegmentExceptTable[[#This Row],[Boundary M/L]]+(0.05*SegmentExceptTable[[#This Row],[Boundary M/L]])","v":0.15861131012205837},{"$f":"IF(AND(AND(kwpeak_norm>SegmentExceptTable[[#This Row],[kW Boundary]],kwpeak_norm<SegmentExceptTable[[#This Row],[kW Exception]]),AND(kwhmo_norm>SegmentExceptTable[[#This Row],[Boundary M/L]],kwhmo_norm<SegmentExceptTable[[#This Row],[Exception M/L]])),1,0)","v":0}]
[null,null,null,null,null,null,null,null,null,null,null,null,null,null,null,null,null,null,null,null,null,null,null,null,null,null,null,null,null,null,null,null,null,null,null,null,null,null,null,null,null,null,null,null,null,null,null,532,{"$f":"SegmentExceptTable[[#This Row],[Numbers]]/$BP$4","v":0.88814691151919867},{"$f":"SegmentExceptTable[[#This Row],[kW Boundary]]+(0.05*SegmentExceptTable[[#This Row],[kW Boundary]])","v":0.9325542570951586},{"$f":"$BP$6*SegmentExceptTable[[#This Row],[kW Boundary]]+$BP$7","v":1.2723563784422494},{"$f":"$BP$8*SegmentExceptTable[[#This Row],[kW Boundary]]+$BP$9","v":-0.41745564113563083},{"$f":"SegmentExceptTable[[#This Row],[Boundary S/M]]+(0.05*SegmentExceptTable[[#This Row],[Boundary S/M]])","v":-0.43832842319241239},{"$f":"IF(AND(AND(kwpeak_norm>SegmentExceptTable[[#This Row],[kW Boundary]],kwpeak_norm<SegmentExceptTable[[#This Row],[kW Exception]]),AND(kwhmo_norm>SegmentExceptTable[[#This Row],[Boundary S/M]],kwhmo_norm<SegmentExceptTable[[#This Row],[Exception S/M]])),1,0)","v":0},{"$f":"$BP$10*SegmentExceptTable[[#This Row],[kW Boundary]]+$BP$11","v":1.7464445971411471},{"$f":"$BP$12*SegmentExceptTable[[#This Row],[kW Boundary]]+$BP$13","v":0.15026819556864779},{"$f":"SegmentExceptTable[[#This Row],[Boundary M/L]]+(0.05*SegmentExceptTable[[#This Row],[Boundary M/L]])","v":0.15778160534708019},{"$f":"IF(AND(AND(kwpeak_norm>SegmentExceptTable[[#This Row],[kW Boundary]],kwpeak_norm<SegmentExceptTable[[#This Row],[kW Exception]]),AND(kwhmo_norm>SegmentExceptTable[[#This Row],[Boundary M/L]],kwhmo_norm<SegmentExceptTable[[#This Row],[Exception M/L]])),1,0)","v":0}]
[null,null,null,null,null,null,null,null,null,null,null,null,null,null,null,null,null,null,null,null,null,null,null,null,null,null,null,null,null,null,null,null,null,null,null,null,null,null,null,null,null,null,null,null,null,null,null,533,{"$f":"SegmentExceptTable[[#This Row],[Numbers]]/$BP$4","v":0.88981636060100167},{"$f":"SegmentExceptTable[[#This Row],[kW Boundary]]+(0.05*SegmentExceptTable[[#This Row],[kW Boundary]])","v":0.93430717863105173},{"$f":"$BP$6*SegmentExceptTable[[#This Row],[kW Boundary]]+$BP$7","v":1.2747832087376156},{"$f":"$BP$8*SegmentExceptTable[[#This Row],[kW Boundary]]+$BP$9","v":-0.41860407753106166},{"$f":"SegmentExceptTable[[#This Row],[Boundary S/M]]+(0.05*SegmentExceptTable[[#This Row],[Boundary S/M]])","v":-0.43953428140761475},{"$f":"IF(AND(AND(kwpeak_norm>SegmentExceptTable[[#This Row],[kW Boundary]],kwpeak_norm<SegmentExceptTable[[#This Row],[kW Exception]]),AND(kwhmo_norm>SegmentExceptTable[[#This Row],[Boundary S/M]],kwhmo_norm<SegmentExceptTable[[#This Row],[Exception S/M]])),1,0)","v":0},{"$f":"$BP$10*SegmentExceptTable[[#This Row],[kW Boundary]]+$BP$11","v":1.7499716507833858},{"$f":"$BP$12*SegmentExceptTable[[#This Row],[kW Boundary]]+$BP$13","v":0.14947800054485899},{"$f":"SegmentExceptTable[[#This Row],[Boundary M/L]]+(0.05*SegmentExceptTable[[#This Row],[Boundary M/L]])","v":0.15695190057210195},{"$f":"IF(AND(AND(kwpeak_norm>SegmentExceptTable[[#This Row],[kW Boundary]],kwpeak_norm<SegmentExceptTable[[#This Row],[kW Exception]]),AND(kwhmo_norm>SegmentExceptTable[[#This Row],[Boundary M/L]],kwhmo_norm<SegmentExceptTable[[#This Row],[Exception M/L]])),1,0)","v":0}]
[null,null,null,null,null,null,null,null,null,null,null,null,null,null,null,null,null,null,null,null,null,null,null,null,null,null,null,null,null,null,null,null,null,null,null,null,null,null,null,null,null,null,null,null,null,null,null,534,{"$f":"SegmentExceptTable[[#This Row],[Numbers]]/$BP$4","v":0.89148580968280466},{"$f":"SegmentExceptTable[[#This Row],[kW Boundary]]+(0.05*SegmentExceptTable[[#This Row],[kW Boundary]])","v":0.93606010016694485},{"$f":"$BP$6*SegmentExceptTable[[#This Row],[kW Boundary]]+$BP$7","v":1.2772100390329819},{"$f":"$BP$8*SegmentExceptTable[[#This Row],[kW Boundary]]+$BP$9","v":-0.4197525139264926},{"$f":"SegmentExceptTable[[#This Row],[Boundary S/M]]+(0.05*SegmentExceptTable[[#This Row],[Boundary S/M]])","v":-0.44074013962281722},{"$f":"IF(AND(AND(kwpeak_norm>SegmentExceptTable[[#This Row],[kW Boundary]],kwpeak_norm<SegmentExceptTable[[#This Row],[kW Exception]]),AND(kwhmo_norm>SegmentExceptTable[[#This Row],[Boundary S/M]],kwhmo_norm<SegmentExceptTable[[#This Row],[Exception S/M]])),1,0)","v":0},{"$f":"$BP$10*SegmentExceptTable[[#This Row],[kW Boundary]]+$BP$11","v":1.7534987044256241},{"$f":"$BP$12*SegmentExceptTable[[#This Row],[kW Boundary]]+$BP$13","v":0.14868780552107025},{"$f":"SegmentExceptTable[[#This Row],[Boundary M/L]]+(0.05*SegmentExceptTable[[#This Row],[Boundary M/L]])","v":0.15612219579712378},{"$f":"IF(AND(AND(kwpeak_norm>SegmentExceptTable[[#This Row],[kW Boundary]],kwpeak_norm<SegmentExceptTable[[#This Row],[kW Exception]]),AND(kwhmo_norm>SegmentExceptTable[[#This Row],[Boundary M/L]],kwhmo_norm<SegmentExceptTable[[#This Row],[Exception M/L]])),1,0)","v":0}]
[null,null,null,null,null,null,null,null,null,null,null,null,null,null,null,null,null,null,null,null,null,null,null,null,null,null,null,null,null,null,null,null,null,null,null,null,null,null,null,null,null,null,null,null,null,null,null,535,{"$f":"SegmentExceptTable[[#This Row],[Numbers]]/$BP$4","v":0.89315525876460766},{"$f":"SegmentExceptTable[[#This Row],[kW Boundary]]+(0.05*SegmentExceptTable[[#This Row],[kW Boundary]])","v":0.93781302170283809},{"$f":"$BP$6*SegmentExceptTable[[#This Row],[kW Boundary]]+$BP$7","v":1.2796368693283482},{"$f":"$BP$8*SegmentExceptTable[[#This Row],[kW Boundary]]+$BP$9","v":-0.42090095032192343},{"$f":"SegmentExceptTable[[#This Row],[Boundary S/M]]+(0.05*SegmentExceptTable[[#This Row],[Boundary S/M]])","v":-0.44194599783801958},{"$f":"IF(AND(AND(kwpeak_norm>SegmentExceptTable[[#This Row],[kW Boundary]],kwpeak_norm<SegmentExceptTable[[#This Row],[kW Exception]]),AND(kwhmo_norm>SegmentExceptTable[[#This Row],[Boundary S/M]],kwhmo_norm<SegmentExceptTable[[#This Row],[Exception S/M]])),1,0)","v":0},{"$f":"$BP$10*SegmentExceptTable[[#This Row],[kW Boundary]]+$BP$11","v":1.7570257580678628},{"$f":"$BP$12*SegmentExceptTable[[#This Row],[kW Boundary]]+$BP$13","v":0.14789761049728151},{"$f":"SegmentExceptTable[[#This Row],[Boundary M/L]]+(0.05*SegmentExceptTable[[#This Row],[Boundary M/L]])","v":0.1552924910221456},{"$f":"IF(AND(AND(kwpeak_norm>SegmentExceptTable[[#This Row],[kW Boundary]],kwpeak_norm<SegmentExceptTable[[#This Row],[kW Exception]]),AND(kwhmo_norm>SegmentExceptTable[[#This Row],[Boundary M/L]],kwhmo_norm<SegmentExceptTable[[#This Row],[Exception M/L]])),1,0)","v":0}]
[null,null,null,null,null,null,null,null,null,null,null,null,null,null,null,null,null,null,null,null,null,null,null,null,null,null,null,null,null,null,null,null,null,null,null,null,null,null,null,null,null,null,null,null,null,null,null,536,{"$f":"SegmentExceptTable[[#This Row],[Numbers]]/$BP$4","v":0.89482470784641066},{"$f":"SegmentExceptTable[[#This Row],[kW Boundary]]+(0.05*SegmentExceptTable[[#This Row],[kW Boundary]])","v":0.93956594323873122},{"$f":"$BP$6*SegmentExceptTable[[#This Row],[kW Boundary]]+$BP$7","v":1.2820636996237145},{"$f":"$BP$8*SegmentExceptTable[[#This Row],[kW Boundary]]+$BP$9","v":-0.42204938671735437},{"$f":"SegmentExceptTable[[#This Row],[Boundary S/M]]+(0.05*SegmentExceptTable[[#This Row],[Boundary S/M]])","v":-0.4431518560532221},{"$f":"IF(AND(AND(kwpeak_norm>SegmentExceptTable[[#This Row],[kW Boundary]],kwpeak_norm<SegmentExceptTable[[#This Row],[kW Exception]]),AND(kwhmo_norm>SegmentExceptTable[[#This Row],[Boundary S/M]],kwhmo_norm<SegmentExceptTable[[#This Row],[Exception S/M]])),1,0)","v":0},{"$f":"$BP$10*SegmentExceptTable[[#This Row],[kW Boundary]]+$BP$11","v":1.7605528117101015},{"$f":"$BP$12*SegmentExceptTable[[#This Row],[kW Boundary]]+$BP$13","v":0.14710741547349276},{"$f":"SegmentExceptTable[[#This Row],[Boundary M/L]]+(0.05*SegmentExceptTable[[#This Row],[Boundary M/L]])","v":0.15446278624716742},{"$f":"IF(AND(AND(kwpeak_norm>SegmentExceptTable[[#This Row],[kW Boundary]],kwpeak_norm<SegmentExceptTable[[#This Row],[kW Exception]]),AND(kwhmo_norm>SegmentExceptTable[[#This Row],[Boundary M/L]],kwhmo_norm<SegmentExceptTable[[#This Row],[Exception M/L]])),1,0)","v":0}]
[null,null,null,null,null,null,null,null,null,null,null,null,null,null,null,null,null,null,null,null,null,null,null,null,null,null,null,null,null,null,null,null,null,null,null,null,null,null,null,null,null,null,null,null,null,null,null,537,{"$f":"SegmentExceptTable[[#This Row],[Numbers]]/$BP$4","v":0.89649415692821366},{"$f":"SegmentExceptTable[[#This Row],[kW Boundary]]+(0.05*SegmentExceptTable[[#This Row],[kW Boundary]])","v":0.94131886477462434},{"$f":"$BP$6*SegmentExceptTable[[#This Row],[kW Boundary]]+$BP$7","v":1.2844905299190807},{"$f":"$BP$8*SegmentExceptTable[[#This Row],[kW Boundary]]+$BP$9","v":-0.4231978231127852},{"$f":"SegmentExceptTable[[#This Row],[Boundary S/M]]+(0.05*SegmentExceptTable[[#This Row],[Boundary S/M]])","v":-0.44435771426842446},{"$f":"IF(AND(AND(kwpeak_norm>SegmentExceptTable[[#This Row],[kW Boundary]],kwpeak_norm<SegmentExceptTable[[#This Row],[kW Exception]]),AND(kwhmo_norm>SegmentExceptTable[[#This Row],[Boundary S/M]],kwhmo_norm<SegmentExceptTable[[#This Row],[Exception S/M]])),1,0)","v":0},{"$f":"$BP$10*SegmentExceptTable[[#This Row],[kW Boundary]]+$BP$11","v":1.7640798653523397},{"$f":"$BP$12*SegmentExceptTable[[#This Row],[kW Boundary]]+$BP$13","v":0.14631722044970402},{"$f":"SegmentExceptTable[[#This Row],[Boundary M/L]]+(0.05*SegmentExceptTable[[#This Row],[Boundary M/L]])","v":0.15363308147218924},{"$f":"IF(AND(AND(kwpeak_norm>SegmentExceptTable[[#This Row],[kW Boundary]],kwpeak_norm<SegmentExceptTable[[#This Row],[kW Exception]]),AND(kwhmo_norm>SegmentExceptTable[[#This Row],[Boundary M/L]],kwhmo_norm<SegmentExceptTable[[#This Row],[Exception M/L]])),1,0)","v":0}]
[null,null,null,null,null,null,null,null,null,null,null,null,null,null,null,null,null,null,null,null,null,null,null,null,null,null,null,null,null,null,null,null,null,null,null,null,null,null,null,null,null,null,null,null,null,null,null,538,{"$f":"SegmentExceptTable[[#This Row],[Numbers]]/$BP$4","v":0.89816360601001666},{"$f":"SegmentExceptTable[[#This Row],[kW Boundary]]+(0.05*SegmentExceptTable[[#This Row],[kW Boundary]])","v":0.94307178631051747},{"$f":"$BP$6*SegmentExceptTable[[#This Row],[kW Boundary]]+$BP$7","v":1.286917360214447},{"$f":"$BP$8*SegmentExceptTable[[#This Row],[kW Boundary]]+$BP$9","v":-0.42434625950821603},{"$f":"SegmentExceptTable[[#This Row],[Boundary S/M]]+(0.05*SegmentExceptTable[[#This Row],[Boundary S/M]])","v":-0.44556357248362682},{"$f":"IF(AND(AND(kwpeak_norm>SegmentExceptTable[[#This Row],[kW Boundary]],kwpeak_norm<SegmentExceptTable[[#This Row],[kW Exception]]),AND(kwhmo_norm>SegmentExceptTable[[#This Row],[Boundary S/M]],kwhmo_norm<SegmentExceptTable[[#This Row],[Exception S/M]])),1,0)","v":0},{"$f":"$BP$10*SegmentExceptTable[[#This Row],[kW Boundary]]+$BP$11","v":1.7676069189945784},{"$f":"$BP$12*SegmentExceptTable[[#This Row],[kW Boundary]]+$BP$13","v":0.14552702542591522},{"$f":"SegmentExceptTable[[#This Row],[Boundary M/L]]+(0.05*SegmentExceptTable[[#This Row],[Boundary M/L]])","v":0.15280337669721097},{"$f":"IF(AND(AND(kwpeak_norm>SegmentExceptTable[[#This Row],[kW Boundary]],kwpeak_norm<SegmentExceptTable[[#This Row],[kW Exception]]),AND(kwhmo_norm>SegmentExceptTable[[#This Row],[Boundary M/L]],kwhmo_norm<SegmentExceptTable[[#This Row],[Exception M/L]])),1,0)","v":0}]
[null,null,null,null,null,null,null,null,null,null,null,null,null,null,null,null,null,null,null,null,null,null,null,null,null,null,null,null,null,null,null,null,null,null,null,null,null,null,null,null,null,null,null,null,null,null,null,539,{"$f":"SegmentExceptTable[[#This Row],[Numbers]]/$BP$4","v":0.89983305509181966},{"$f":"SegmentExceptTable[[#This Row],[kW Boundary]]+(0.05*SegmentExceptTable[[#This Row],[kW Boundary]])","v":0.94482470784641059},{"$f":"$BP$6*SegmentExceptTable[[#This Row],[kW Boundary]]+$BP$7","v":1.2893441905098133},{"$f":"$BP$8*SegmentExceptTable[[#This Row],[kW Boundary]]+$BP$9","v":-0.42549469590364697},{"$f":"SegmentExceptTable[[#This Row],[Boundary S/M]]+(0.05*SegmentExceptTable[[#This Row],[Boundary S/M]])","v":-0.4467694306988293},{"$f":"IF(AND(AND(kwpeak_norm>SegmentExceptTable[[#This Row],[kW Boundary]],kwpeak_norm<SegmentExceptTable[[#This Row],[kW Exception]]),AND(kwhmo_norm>SegmentExceptTable[[#This Row],[Boundary S/M]],kwhmo_norm<SegmentExceptTable[[#This Row],[Exception S/M]])),1,0)","v":0},{"$f":"$BP$10*SegmentExceptTable[[#This Row],[kW Boundary]]+$BP$11","v":1.7711339726368167},{"$f":"$BP$12*SegmentExceptTable[[#This Row],[kW Boundary]]+$BP$13","v":0.14473683040212648},{"$f":"SegmentExceptTable[[#This Row],[Boundary M/L]]+(0.05*SegmentExceptTable[[#This Row],[Boundary M/L]])","v":0.15197367192223279},{"$f":"IF(AND(AND(kwpeak_norm>SegmentExceptTable[[#This Row],[kW Boundary]],kwpeak_norm<SegmentExceptTable[[#This Row],[kW Exception]]),AND(kwhmo_norm>SegmentExceptTable[[#This Row],[Boundary M/L]],kwhmo_norm<SegmentExceptTable[[#This Row],[Exception M/L]])),1,0)","v":0}]
[null,null,null,null,null,null,null,null,null,null,null,null,null,null,null,null,null,null,null,null,null,null,null,null,null,null,null,null,null,null,null,null,null,null,null,null,null,null,null,null,null,null,null,null,null,null,null,540,{"$f":"SegmentExceptTable[[#This Row],[Numbers]]/$BP$4","v":0.90150250417362265},{"$f":"SegmentExceptTable[[#This Row],[kW Boundary]]+(0.05*SegmentExceptTable[[#This Row],[kW Boundary]])","v":0.94657762938230383},{"$f":"$BP$6*SegmentExceptTable[[#This Row],[kW Boundary]]+$BP$7","v":1.2917710208051796},{"$f":"$BP$8*SegmentExceptTable[[#This Row],[kW Boundary]]+$BP$9","v":-0.4266431322990778},{"$f":"SegmentExceptTable[[#This Row],[Boundary S/M]]+(0.05*SegmentExceptTable[[#This Row],[Boundary S/M]])","v":-0.44797528891403171},{"$f":"IF(AND(AND(kwpeak_norm>SegmentExceptTable[[#This Row],[kW Boundary]],kwpeak_norm<SegmentExceptTable[[#This Row],[kW Exception]]),AND(kwhmo_norm>SegmentExceptTable[[#This Row],[Boundary S/M]],kwhmo_norm<SegmentExceptTable[[#This Row],[Exception S/M]])),1,0)","v":0},{"$f":"$BP$10*SegmentExceptTable[[#This Row],[kW Boundary]]+$BP$11","v":1.7746610262790554},{"$f":"$BP$12*SegmentExceptTable[[#This Row],[kW Boundary]]+$BP$13","v":0.14394663537833774},{"$f":"SegmentExceptTable[[#This Row],[Boundary M/L]]+(0.05*SegmentExceptTable[[#This Row],[Boundary M/L]])","v":0.15114396714725462},{"$f":"IF(AND(AND(kwpeak_norm>SegmentExceptTable[[#This Row],[kW Boundary]],kwpeak_norm<SegmentExceptTable[[#This Row],[kW Exception]]),AND(kwhmo_norm>SegmentExceptTable[[#This Row],[Boundary M/L]],kwhmo_norm<SegmentExceptTable[[#This Row],[Exception M/L]])),1,0)","v":0}]
[null,null,null,null,null,null,null,null,null,null,null,null,null,null,null,null,null,null,null,null,null,null,null,null,null,null,null,null,null,null,null,null,null,null,null,null,null,null,null,null,null,null,null,null,null,null,null,541,{"$f":"SegmentExceptTable[[#This Row],[Numbers]]/$BP$4","v":0.90317195325542576},{"$f":"SegmentExceptTable[[#This Row],[kW Boundary]]+(0.05*SegmentExceptTable[[#This Row],[kW Boundary]])","v":0.94833055091819707},{"$f":"$BP$6*SegmentExceptTable[[#This Row],[kW Boundary]]+$BP$7","v":1.2941978511005459},{"$f":"$BP$8*SegmentExceptTable[[#This Row],[kW Boundary]]+$BP$9","v":-0.42779156869450874},{"$f":"SegmentExceptTable[[#This Row],[Boundary S/M]]+(0.05*SegmentExceptTable[[#This Row],[Boundary S/M]])","v":-0.44918114712923418},{"$f":"IF(AND(AND(kwpeak_norm>SegmentExceptTable[[#This Row],[kW Boundary]],kwpeak_norm<SegmentExceptTable[[#This Row],[kW Exception]]),AND(kwhmo_norm>SegmentExceptTable[[#This Row],[Boundary S/M]],kwhmo_norm<SegmentExceptTable[[#This Row],[Exception S/M]])),1,0)","v":0},{"$f":"$BP$10*SegmentExceptTable[[#This Row],[kW Boundary]]+$BP$11","v":1.7781880799212941},{"$f":"$BP$12*SegmentExceptTable[[#This Row],[kW Boundary]]+$BP$13","v":0.14315644035454894},{"$f":"SegmentExceptTable[[#This Row],[Boundary M/L]]+(0.05*SegmentExceptTable[[#This Row],[Boundary M/L]])","v":0.15031426237227638},{"$f":"IF(AND(AND(kwpeak_norm>SegmentExceptTable[[#This Row],[kW Boundary]],kwpeak_norm<SegmentExceptTable[[#This Row],[kW Exception]]),AND(kwhmo_norm>SegmentExceptTable[[#This Row],[Boundary M/L]],kwhmo_norm<SegmentExceptTable[[#This Row],[Exception M/L]])),1,0)","v":0}]
[null,null,null,null,null,null,null,null,null,null,null,null,null,null,null,null,null,null,null,null,null,null,null,null,null,null,null,null,null,null,null,null,null,null,null,null,null,null,null,null,null,null,null,null,null,null,null,542,{"$f":"SegmentExceptTable[[#This Row],[Numbers]]/$BP$4","v":0.90484140233722876},{"$f":"SegmentExceptTable[[#This Row],[kW Boundary]]+(0.05*SegmentExceptTable[[#This Row],[kW Boundary]])","v":0.95008347245409019},{"$f":"$BP$6*SegmentExceptTable[[#This Row],[kW Boundary]]+$BP$7","v":1.2966246813959121},{"$f":"$BP$8*SegmentExceptTable[[#This Row],[kW Boundary]]+$BP$9","v":-0.42894000508993968},{"$f":"SegmentExceptTable[[#This Row],[Boundary S/M]]+(0.05*SegmentExceptTable[[#This Row],[Boundary S/M]])","v":-0.45038700534443665},{"$f":"IF(AND(AND(kwpeak_norm>SegmentExceptTable[[#This Row],[kW Boundary]],kwpeak_norm<SegmentExceptTable[[#This Row],[kW Exception]]),AND(kwhmo_norm>SegmentExceptTable[[#This Row],[Boundary S/M]],kwhmo_norm<SegmentExceptTable[[#This Row],[Exception S/M]])),1,0)","v":0},{"$f":"$BP$10*SegmentExceptTable[[#This Row],[kW Boundary]]+$BP$11","v":1.7817151335635328},{"$f":"$BP$12*SegmentExceptTable[[#This Row],[kW Boundary]]+$BP$13","v":0.1423662453307602},{"$f":"SegmentExceptTable[[#This Row],[Boundary M/L]]+(0.05*SegmentExceptTable[[#This Row],[Boundary M/L]])","v":0.1494845575972982},{"$f":"IF(AND(AND(kwpeak_norm>SegmentExceptTable[[#This Row],[kW Boundary]],kwpeak_norm<SegmentExceptTable[[#This Row],[kW Exception]]),AND(kwhmo_norm>SegmentExceptTable[[#This Row],[Boundary M/L]],kwhmo_norm<SegmentExceptTable[[#This Row],[Exception M/L]])),1,0)","v":0}]
[null,null,null,null,null,null,null,null,null,null,null,null,null,null,null,null,null,null,null,null,null,null,null,null,null,null,null,null,null,null,null,null,null,null,null,null,null,null,null,null,null,null,null,null,null,null,null,543,{"$f":"SegmentExceptTable[[#This Row],[Numbers]]/$BP$4","v":0.90651085141903176},{"$f":"SegmentExceptTable[[#This Row],[kW Boundary]]+(0.05*SegmentExceptTable[[#This Row],[kW Boundary]])","v":0.95183639398998332},{"$f":"$BP$6*SegmentExceptTable[[#This Row],[kW Boundary]]+$BP$7","v":1.2990515116912784},{"$f":"$BP$8*SegmentExceptTable[[#This Row],[kW Boundary]]+$BP$9","v":-0.43008844148537051},{"$f":"SegmentExceptTable[[#This Row],[Boundary S/M]]+(0.05*SegmentExceptTable[[#This Row],[Boundary S/M]])","v":-0.45159286355963901},{"$f":"IF(AND(AND(kwpeak_norm>SegmentExceptTable[[#This Row],[kW Boundary]],kwpeak_norm<SegmentExceptTable[[#This Row],[kW Exception]]),AND(kwhmo_norm>SegmentExceptTable[[#This Row],[Boundary S/M]],kwhmo_norm<SegmentExceptTable[[#This Row],[Exception S/M]])),1,0)","v":0},{"$f":"$BP$10*SegmentExceptTable[[#This Row],[kW Boundary]]+$BP$11","v":1.7852421872057711},{"$f":"$BP$12*SegmentExceptTable[[#This Row],[kW Boundary]]+$BP$13","v":0.1415760503069714},{"$f":"SegmentExceptTable[[#This Row],[Boundary M/L]]+(0.05*SegmentExceptTable[[#This Row],[Boundary M/L]])","v":0.14865485282231997},{"$f":"IF(AND(AND(kwpeak_norm>SegmentExceptTable[[#This Row],[kW Boundary]],kwpeak_norm<SegmentExceptTable[[#This Row],[kW Exception]]),AND(kwhmo_norm>SegmentExceptTable[[#This Row],[Boundary M/L]],kwhmo_norm<SegmentExceptTable[[#This Row],[Exception M/L]])),1,0)","v":0}]
[null,null,null,null,null,null,null,null,null,null,null,null,null,null,null,null,null,null,null,null,null,null,null,null,null,null,null,null,null,null,null,null,null,null,null,null,null,null,null,null,null,null,null,null,null,null,null,544,{"$f":"SegmentExceptTable[[#This Row],[Numbers]]/$BP$4","v":0.90818030050083476},{"$f":"SegmentExceptTable[[#This Row],[kW Boundary]]+(0.05*SegmentExceptTable[[#This Row],[kW Boundary]])","v":0.95358931552587656},{"$f":"$BP$6*SegmentExceptTable[[#This Row],[kW Boundary]]+$BP$7","v":1.3014783419866447},{"$f":"$BP$8*SegmentExceptTable[[#This Row],[kW Boundary]]+$BP$9","v":-0.43123687788080134},{"$f":"SegmentExceptTable[[#This Row],[Boundary S/M]]+(0.05*SegmentExceptTable[[#This Row],[Boundary S/M]])","v":-0.45279872177484143},{"$f":"IF(AND(AND(kwpeak_norm>SegmentExceptTable[[#This Row],[kW Boundary]],kwpeak_norm<SegmentExceptTable[[#This Row],[kW Exception]]),AND(kwhmo_norm>SegmentExceptTable[[#This Row],[Boundary S/M]],kwhmo_norm<SegmentExceptTable[[#This Row],[Exception S/M]])),1,0)","v":0},{"$f":"$BP$10*SegmentExceptTable[[#This Row],[kW Boundary]]+$BP$11","v":1.7887692408480098},{"$f":"$BP$12*SegmentExceptTable[[#This Row],[kW Boundary]]+$BP$13","v":0.14078585528318266},{"$f":"SegmentExceptTable[[#This Row],[Boundary M/L]]+(0.05*SegmentExceptTable[[#This Row],[Boundary M/L]])","v":0.14782514804734179},{"$f":"IF(AND(AND(kwpeak_norm>SegmentExceptTable[[#This Row],[kW Boundary]],kwpeak_norm<SegmentExceptTable[[#This Row],[kW Exception]]),AND(kwhmo_norm>SegmentExceptTable[[#This Row],[Boundary M/L]],kwhmo_norm<SegmentExceptTable[[#This Row],[Exception M/L]])),1,0)","v":0}]
[null,null,null,null,null,null,null,null,null,null,null,null,null,null,null,null,null,null,null,null,null,null,null,null,null,null,null,null,null,null,null,null,null,null,null,null,null,null,null,null,null,null,null,null,null,null,null,545,{"$f":"SegmentExceptTable[[#This Row],[Numbers]]/$BP$4","v":0.90984974958263776},{"$f":"SegmentExceptTable[[#This Row],[kW Boundary]]+(0.05*SegmentExceptTable[[#This Row],[kW Boundary]])","v":0.95534223706176968},{"$f":"$BP$6*SegmentExceptTable[[#This Row],[kW Boundary]]+$BP$7","v":1.303905172282011},{"$f":"$BP$8*SegmentExceptTable[[#This Row],[kW Boundary]]+$BP$9","v":-0.43238531427623228},{"$f":"SegmentExceptTable[[#This Row],[Boundary S/M]]+(0.05*SegmentExceptTable[[#This Row],[Boundary S/M]])","v":-0.4540045799900439},{"$f":"IF(AND(AND(kwpeak_norm>SegmentExceptTable[[#This Row],[kW Boundary]],kwpeak_norm<SegmentExceptTable[[#This Row],[kW Exception]]),AND(kwhmo_norm>SegmentExceptTable[[#This Row],[Boundary S/M]],kwhmo_norm<SegmentExceptTable[[#This Row],[Exception S/M]])),1,0)","v":0},{"$f":"$BP$10*SegmentExceptTable[[#This Row],[kW Boundary]]+$BP$11","v":1.7922962944902481},{"$f":"$BP$12*SegmentExceptTable[[#This Row],[kW Boundary]]+$BP$13","v":0.13999566025939392},{"$f":"SegmentExceptTable[[#This Row],[Boundary M/L]]+(0.05*SegmentExceptTable[[#This Row],[Boundary M/L]])","v":0.14699544327236361},{"$f":"IF(AND(AND(kwpeak_norm>SegmentExceptTable[[#This Row],[kW Boundary]],kwpeak_norm<SegmentExceptTable[[#This Row],[kW Exception]]),AND(kwhmo_norm>SegmentExceptTable[[#This Row],[Boundary M/L]],kwhmo_norm<SegmentExceptTable[[#This Row],[Exception M/L]])),1,0)","v":0}]
[null,null,null,null,null,null,null,null,null,null,null,null,null,null,null,null,null,null,null,null,null,null,null,null,null,null,null,null,null,null,null,null,null,null,null,null,null,null,null,null,null,null,null,null,null,null,null,546,{"$f":"SegmentExceptTable[[#This Row],[Numbers]]/$BP$4","v":0.91151919866444076},{"$f":"SegmentExceptTable[[#This Row],[kW Boundary]]+(0.05*SegmentExceptTable[[#This Row],[kW Boundary]])","v":0.95709515859766281},{"$f":"$BP$6*SegmentExceptTable[[#This Row],[kW Boundary]]+$BP$7","v":1.3063320025773772},{"$f":"$BP$8*SegmentExceptTable[[#This Row],[kW Boundary]]+$BP$9","v":-0.43353375067166311},{"$f":"SegmentExceptTable[[#This Row],[Boundary S/M]]+(0.05*SegmentExceptTable[[#This Row],[Boundary S/M]])","v":-0.45521043820524626},{"$f":"IF(AND(AND(kwpeak_norm>SegmentExceptTable[[#This Row],[kW Boundary]],kwpeak_norm<SegmentExceptTable[[#This Row],[kW Exception]]),AND(kwhmo_norm>SegmentExceptTable[[#This Row],[Boundary S/M]],kwhmo_norm<SegmentExceptTable[[#This Row],[Exception S/M]])),1,0)","v":0},{"$f":"$BP$10*SegmentExceptTable[[#This Row],[kW Boundary]]+$BP$11","v":1.7958233481324868},{"$f":"$BP$12*SegmentExceptTable[[#This Row],[kW Boundary]]+$BP$13","v":0.13920546523560517},{"$f":"SegmentExceptTable[[#This Row],[Boundary M/L]]+(0.05*SegmentExceptTable[[#This Row],[Boundary M/L]])","v":0.14616573849738543},{"$f":"IF(AND(AND(kwpeak_norm>SegmentExceptTable[[#This Row],[kW Boundary]],kwpeak_norm<SegmentExceptTable[[#This Row],[kW Exception]]),AND(kwhmo_norm>SegmentExceptTable[[#This Row],[Boundary M/L]],kwhmo_norm<SegmentExceptTable[[#This Row],[Exception M/L]])),1,0)","v":0}]
[null,null,null,null,null,null,null,null,null,null,null,null,null,null,null,null,null,null,null,null,null,null,null,null,null,null,null,null,null,null,null,null,null,null,null,null,null,null,null,null,null,null,null,null,null,null,null,547,{"$f":"SegmentExceptTable[[#This Row],[Numbers]]/$BP$4","v":0.91318864774624375},{"$f":"SegmentExceptTable[[#This Row],[kW Boundary]]+(0.05*SegmentExceptTable[[#This Row],[kW Boundary]])","v":0.95884808013355594},{"$f":"$BP$6*SegmentExceptTable[[#This Row],[kW Boundary]]+$BP$7","v":1.3087588328727435},{"$f":"$BP$8*SegmentExceptTable[[#This Row],[kW Boundary]]+$BP$9","v":-0.43468218706709394},{"$f":"SegmentExceptTable[[#This Row],[Boundary S/M]]+(0.05*SegmentExceptTable[[#This Row],[Boundary S/M]])","v":-0.45641629642044862},{"$f":"IF(AND(AND(kwpeak_norm>SegmentExceptTable[[#This Row],[kW Boundary]],kwpeak_norm<SegmentExceptTable[[#This Row],[kW Exception]]),AND(kwhmo_norm>SegmentExceptTable[[#This Row],[Boundary S/M]],kwhmo_norm<SegmentExceptTable[[#This Row],[Exception S/M]])),1,0)","v":0},{"$f":"$BP$10*SegmentExceptTable[[#This Row],[kW Boundary]]+$BP$11","v":1.7993504017747251},{"$f":"$BP$12*SegmentExceptTable[[#This Row],[kW Boundary]]+$BP$13","v":0.13841527021181643},{"$f":"SegmentExceptTable[[#This Row],[Boundary M/L]]+(0.05*SegmentExceptTable[[#This Row],[Boundary M/L]])","v":0.14533603372240725},{"$f":"IF(AND(AND(kwpeak_norm>SegmentExceptTable[[#This Row],[kW Boundary]],kwpeak_norm<SegmentExceptTable[[#This Row],[kW Exception]]),AND(kwhmo_norm>SegmentExceptTable[[#This Row],[Boundary M/L]],kwhmo_norm<SegmentExceptTable[[#This Row],[Exception M/L]])),1,0)","v":0}]
[null,null,null,null,null,null,null,null,null,null,null,null,null,null,null,null,null,null,null,null,null,null,null,null,null,null,null,null,null,null,null,null,null,null,null,null,null,null,null,null,null,null,null,null,null,null,null,548,{"$f":"SegmentExceptTable[[#This Row],[Numbers]]/$BP$4","v":0.91485809682804675},{"$f":"SegmentExceptTable[[#This Row],[kW Boundary]]+(0.05*SegmentExceptTable[[#This Row],[kW Boundary]])","v":0.96060100166944906},{"$f":"$BP$6*SegmentExceptTable[[#This Row],[kW Boundary]]+$BP$7","v":1.3111856631681098},{"$f":"$BP$8*SegmentExceptTable[[#This Row],[kW Boundary]]+$BP$9","v":-0.43583062346252488},{"$f":"SegmentExceptTable[[#This Row],[Boundary S/M]]+(0.05*SegmentExceptTable[[#This Row],[Boundary S/M]])","v":-0.45762215463565115},{"$f":"IF(AND(AND(kwpeak_norm>SegmentExceptTable[[#This Row],[kW Boundary]],kwpeak_norm<SegmentExceptTable[[#This Row],[kW Exception]]),AND(kwhmo_norm>SegmentExceptTable[[#This Row],[Boundary S/M]],kwhmo_norm<SegmentExceptTable[[#This Row],[Exception S/M]])),1,0)","v":0},{"$f":"$BP$10*SegmentExceptTable[[#This Row],[kW Boundary]]+$BP$11","v":1.8028774554169638},{"$f":"$BP$12*SegmentExceptTable[[#This Row],[kW Boundary]]+$BP$13","v":0.13762507518802763},{"$f":"SegmentExceptTable[[#This Row],[Boundary M/L]]+(0.05*SegmentExceptTable[[#This Row],[Boundary M/L]])","v":0.14450632894742901},{"$f":"IF(AND(AND(kwpeak_norm>SegmentExceptTable[[#This Row],[kW Boundary]],kwpeak_norm<SegmentExceptTable[[#This Row],[kW Exception]]),AND(kwhmo_norm>SegmentExceptTable[[#This Row],[Boundary M/L]],kwhmo_norm<SegmentExceptTable[[#This Row],[Exception M/L]])),1,0)","v":0}]
[null,null,null,null,null,null,null,null,null,null,null,null,null,null,null,null,null,null,null,null,null,null,null,null,null,null,null,null,null,null,null,null,null,null,null,null,null,null,null,null,null,null,null,null,null,null,null,549,{"$f":"SegmentExceptTable[[#This Row],[Numbers]]/$BP$4","v":0.91652754590984975},{"$f":"SegmentExceptTable[[#This Row],[kW Boundary]]+(0.05*SegmentExceptTable[[#This Row],[kW Boundary]])","v":0.96235392320534219},{"$f":"$BP$6*SegmentExceptTable[[#This Row],[kW Boundary]]+$BP$7","v":1.3136124934634761},{"$f":"$BP$8*SegmentExceptTable[[#This Row],[kW Boundary]]+$BP$9","v":-0.43697905985795571},{"$f":"SegmentExceptTable[[#This Row],[Boundary S/M]]+(0.05*SegmentExceptTable[[#This Row],[Boundary S/M]])","v":-0.45882801285085351},{"$f":"IF(AND(AND(kwpeak_norm>SegmentExceptTable[[#This Row],[kW Boundary]],kwpeak_norm<SegmentExceptTable[[#This Row],[kW Exception]]),AND(kwhmo_norm>SegmentExceptTable[[#This Row],[Boundary S/M]],kwhmo_norm<SegmentExceptTable[[#This Row],[Exception S/M]])),1,0)","v":0},{"$f":"$BP$10*SegmentExceptTable[[#This Row],[kW Boundary]]+$BP$11","v":1.806404509059202},{"$f":"$BP$12*SegmentExceptTable[[#This Row],[kW Boundary]]+$BP$13","v":0.13683488016423889},{"$f":"SegmentExceptTable[[#This Row],[Boundary M/L]]+(0.05*SegmentExceptTable[[#This Row],[Boundary M/L]])","v":0.14367662417245083},{"$f":"IF(AND(AND(kwpeak_norm>SegmentExceptTable[[#This Row],[kW Boundary]],kwpeak_norm<SegmentExceptTable[[#This Row],[kW Exception]]),AND(kwhmo_norm>SegmentExceptTable[[#This Row],[Boundary M/L]],kwhmo_norm<SegmentExceptTable[[#This Row],[Exception M/L]])),1,0)","v":0}]
[null,null,null,null,null,null,null,null,null,null,null,null,null,null,null,null,null,null,null,null,null,null,null,null,null,null,null,null,null,null,null,null,null,null,null,null,null,null,null,null,null,null,null,null,null,null,null,550,{"$f":"SegmentExceptTable[[#This Row],[Numbers]]/$BP$4","v":0.91819699499165275},{"$f":"SegmentExceptTable[[#This Row],[kW Boundary]]+(0.05*SegmentExceptTable[[#This Row],[kW Boundary]])","v":0.96410684474123542},{"$f":"$BP$6*SegmentExceptTable[[#This Row],[kW Boundary]]+$BP$7","v":1.3160393237588424},{"$f":"$BP$8*SegmentExceptTable[[#This Row],[kW Boundary]]+$BP$9","v":-0.43812749625338665},{"$f":"SegmentExceptTable[[#This Row],[Boundary S/M]]+(0.05*SegmentExceptTable[[#This Row],[Boundary S/M]])","v":-0.46003387106605598},{"$f":"IF(AND(AND(kwpeak_norm>SegmentExceptTable[[#This Row],[kW Boundary]],kwpeak_norm<SegmentExceptTable[[#This Row],[kW Exception]]),AND(kwhmo_norm>SegmentExceptTable[[#This Row],[Boundary S/M]],kwhmo_norm<SegmentExceptTable[[#This Row],[Exception S/M]])),1,0)","v":0},{"$f":"$BP$10*SegmentExceptTable[[#This Row],[kW Boundary]]+$BP$11","v":1.8099315627014407},{"$f":"$BP$12*SegmentExceptTable[[#This Row],[kW Boundary]]+$BP$13","v":0.13604468514045015},{"$f":"SegmentExceptTable[[#This Row],[Boundary M/L]]+(0.05*SegmentExceptTable[[#This Row],[Boundary M/L]])","v":0.14284691939747265},{"$f":"IF(AND(AND(kwpeak_norm>SegmentExceptTable[[#This Row],[kW Boundary]],kwpeak_norm<SegmentExceptTable[[#This Row],[kW Exception]]),AND(kwhmo_norm>SegmentExceptTable[[#This Row],[Boundary M/L]],kwhmo_norm<SegmentExceptTable[[#This Row],[Exception M/L]])),1,0)","v":0}]
[null,null,null,null,null,null,null,null,null,null,null,null,null,null,null,null,null,null,null,null,null,null,null,null,null,null,null,null,null,null,null,null,null,null,null,null,null,null,null,null,null,null,null,null,null,null,null,551,{"$f":"SegmentExceptTable[[#This Row],[Numbers]]/$BP$4","v":0.91986644407345575},{"$f":"SegmentExceptTable[[#This Row],[kW Boundary]]+(0.05*SegmentExceptTable[[#This Row],[kW Boundary]])","v":0.96585976627712855},{"$f":"$BP$6*SegmentExceptTable[[#This Row],[kW Boundary]]+$BP$7","v":1.3184661540542086},{"$f":"$BP$8*SegmentExceptTable[[#This Row],[kW Boundary]]+$BP$9","v":-0.43927593264881748},{"$f":"SegmentExceptTable[[#This Row],[Boundary S/M]]+(0.05*SegmentExceptTable[[#This Row],[Boundary S/M]])","v":-0.46123972928125834},{"$f":"IF(AND(AND(kwpeak_norm>SegmentExceptTable[[#This Row],[kW Boundary]],kwpeak_norm<SegmentExceptTable[[#This Row],[kW Exception]]),AND(kwhmo_norm>SegmentExceptTable[[#This Row],[Boundary S/M]],kwhmo_norm<SegmentExceptTable[[#This Row],[Exception S/M]])),1,0)","v":0},{"$f":"$BP$10*SegmentExceptTable[[#This Row],[kW Boundary]]+$BP$11","v":1.8134586163436794},{"$f":"$BP$12*SegmentExceptTable[[#This Row],[kW Boundary]]+$BP$13","v":0.13525449011666141},{"$f":"SegmentExceptTable[[#This Row],[Boundary M/L]]+(0.05*SegmentExceptTable[[#This Row],[Boundary M/L]])","v":0.14201721462249448},{"$f":"IF(AND(AND(kwpeak_norm>SegmentExceptTable[[#This Row],[kW Boundary]],kwpeak_norm<SegmentExceptTable[[#This Row],[kW Exception]]),AND(kwhmo_norm>SegmentExceptTable[[#This Row],[Boundary M/L]],kwhmo_norm<SegmentExceptTable[[#This Row],[Exception M/L]])),1,0)","v":0}]
[null,null,null,null,null,null,null,null,null,null,null,null,null,null,null,null,null,null,null,null,null,null,null,null,null,null,null,null,null,null,null,null,null,null,null,null,null,null,null,null,null,null,null,null,null,null,null,552,{"$f":"SegmentExceptTable[[#This Row],[Numbers]]/$BP$4","v":0.92153589315525875},{"$f":"SegmentExceptTable[[#This Row],[kW Boundary]]+(0.05*SegmentExceptTable[[#This Row],[kW Boundary]])","v":0.96761268781302168},{"$f":"$BP$6*SegmentExceptTable[[#This Row],[kW Boundary]]+$BP$7","v":1.3208929843495749},{"$f":"$BP$8*SegmentExceptTable[[#This Row],[kW Boundary]]+$BP$9","v":-0.44042436904424831},{"$f":"SegmentExceptTable[[#This Row],[Boundary S/M]]+(0.05*SegmentExceptTable[[#This Row],[Boundary S/M]])","v":-0.4624455874964607},{"$f":"IF(AND(AND(kwpeak_norm>SegmentExceptTable[[#This Row],[kW Boundary]],kwpeak_norm<SegmentExceptTable[[#This Row],[kW Exception]]),AND(kwhmo_norm>SegmentExceptTable[[#This Row],[Boundary S/M]],kwhmo_norm<SegmentExceptTable[[#This Row],[Exception S/M]])),1,0)","v":0},{"$f":"$BP$10*SegmentExceptTable[[#This Row],[kW Boundary]]+$BP$11","v":1.8169856699859177},{"$f":"$BP$12*SegmentExceptTable[[#This Row],[kW Boundary]]+$BP$13","v":0.13446429509287267},{"$f":"SegmentExceptTable[[#This Row],[Boundary M/L]]+(0.05*SegmentExceptTable[[#This Row],[Boundary M/L]])","v":0.1411875098475163},{"$f":"IF(AND(AND(kwpeak_norm>SegmentExceptTable[[#This Row],[kW Boundary]],kwpeak_norm<SegmentExceptTable[[#This Row],[kW Exception]]),AND(kwhmo_norm>SegmentExceptTable[[#This Row],[Boundary M/L]],kwhmo_norm<SegmentExceptTable[[#This Row],[Exception M/L]])),1,0)","v":0}]
[null,null,null,null,null,null,null,null,null,null,null,null,null,null,null,null,null,null,null,null,null,null,null,null,null,null,null,null,null,null,null,null,null,null,null,null,null,null,null,null,null,null,null,null,null,null,null,553,{"$f":"SegmentExceptTable[[#This Row],[Numbers]]/$BP$4","v":0.92320534223706174},{"$f":"SegmentExceptTable[[#This Row],[kW Boundary]]+(0.05*SegmentExceptTable[[#This Row],[kW Boundary]])","v":0.9693656093489148},{"$f":"$BP$6*SegmentExceptTable[[#This Row],[kW Boundary]]+$BP$7","v":1.3233198146449412},{"$f":"$BP$8*SegmentExceptTable[[#This Row],[kW Boundary]]+$BP$9","v":-0.44157280543967925},{"$f":"SegmentExceptTable[[#This Row],[Boundary S/M]]+(0.05*SegmentExceptTable[[#This Row],[Boundary S/M]])","v":-0.46365144571166322},{"$f":"IF(AND(AND(kwpeak_norm>SegmentExceptTable[[#This Row],[kW Boundary]],kwpeak_norm<SegmentExceptTable[[#This Row],[kW Exception]]),AND(kwhmo_norm>SegmentExceptTable[[#This Row],[Boundary S/M]],kwhmo_norm<SegmentExceptTable[[#This Row],[Exception S/M]])),1,0)","v":0},{"$f":"$BP$10*SegmentExceptTable[[#This Row],[kW Boundary]]+$BP$11","v":1.8205127236281564},{"$f":"$BP$12*SegmentExceptTable[[#This Row],[kW Boundary]]+$BP$13","v":0.13367410006908387},{"$f":"SegmentExceptTable[[#This Row],[Boundary M/L]]+(0.05*SegmentExceptTable[[#This Row],[Boundary M/L]])","v":0.14035780507253806},{"$f":"IF(AND(AND(kwpeak_norm>SegmentExceptTable[[#This Row],[kW Boundary]],kwpeak_norm<SegmentExceptTable[[#This Row],[kW Exception]]),AND(kwhmo_norm>SegmentExceptTable[[#This Row],[Boundary M/L]],kwhmo_norm<SegmentExceptTable[[#This Row],[Exception M/L]])),1,0)","v":0}]
[null,null,null,null,null,null,null,null,null,null,null,null,null,null,null,null,null,null,null,null,null,null,null,null,null,null,null,null,null,null,null,null,null,null,null,null,null,null,null,null,null,null,null,null,null,null,null,554,{"$f":"SegmentExceptTable[[#This Row],[Numbers]]/$BP$4","v":0.92487479131886474},{"$f":"SegmentExceptTable[[#This Row],[kW Boundary]]+(0.05*SegmentExceptTable[[#This Row],[kW Boundary]])","v":0.97111853088480804},{"$f":"$BP$6*SegmentExceptTable[[#This Row],[kW Boundary]]+$BP$7","v":1.3257466449403075},{"$f":"$BP$8*SegmentExceptTable[[#This Row],[kW Boundary]]+$BP$9","v":-0.44272124183511008},{"$f":"SegmentExceptTable[[#This Row],[Boundary S/M]]+(0.05*SegmentExceptTable[[#This Row],[Boundary S/M]])","v":-0.46485730392686558},{"$f":"IF(AND(AND(kwpeak_norm>SegmentExceptTable[[#This Row],[kW Boundary]],kwpeak_norm<SegmentExceptTable[[#This Row],[kW Exception]]),AND(kwhmo_norm>SegmentExceptTable[[#This Row],[Boundary S/M]],kwhmo_norm<SegmentExceptTable[[#This Row],[Exception S/M]])),1,0)","v":0},{"$f":"$BP$10*SegmentExceptTable[[#This Row],[kW Boundary]]+$BP$11","v":1.8240397772703947},{"$f":"$BP$12*SegmentExceptTable[[#This Row],[kW Boundary]]+$BP$13","v":0.13288390504529513},{"$f":"SegmentExceptTable[[#This Row],[Boundary M/L]]+(0.05*SegmentExceptTable[[#This Row],[Boundary M/L]])","v":0.13952810029755988},{"$f":"IF(AND(AND(kwpeak_norm>SegmentExceptTable[[#This Row],[kW Boundary]],kwpeak_norm<SegmentExceptTable[[#This Row],[kW Exception]]),AND(kwhmo_norm>SegmentExceptTable[[#This Row],[Boundary M/L]],kwhmo_norm<SegmentExceptTable[[#This Row],[Exception M/L]])),1,0)","v":0}]
[null,null,null,null,null,null,null,null,null,null,null,null,null,null,null,null,null,null,null,null,null,null,null,null,null,null,null,null,null,null,null,null,null,null,null,null,null,null,null,null,null,null,null,null,null,null,null,555,{"$f":"SegmentExceptTable[[#This Row],[Numbers]]/$BP$4","v":0.92654424040066774},{"$f":"SegmentExceptTable[[#This Row],[kW Boundary]]+(0.05*SegmentExceptTable[[#This Row],[kW Boundary]])","v":0.97287145242070117},{"$f":"$BP$6*SegmentExceptTable[[#This Row],[kW Boundary]]+$BP$7","v":1.3281734752356738},{"$f":"$BP$8*SegmentExceptTable[[#This Row],[kW Boundary]]+$BP$9","v":-0.44386967823054091},{"$f":"SegmentExceptTable[[#This Row],[Boundary S/M]]+(0.05*SegmentExceptTable[[#This Row],[Boundary S/M]])","v":-0.46606316214206794},{"$f":"IF(AND(AND(kwpeak_norm>SegmentExceptTable[[#This Row],[kW Boundary]],kwpeak_norm<SegmentExceptTable[[#This Row],[kW Exception]]),AND(kwhmo_norm>SegmentExceptTable[[#This Row],[Boundary S/M]],kwhmo_norm<SegmentExceptTable[[#This Row],[Exception S/M]])),1,0)","v":0},{"$f":"$BP$10*SegmentExceptTable[[#This Row],[kW Boundary]]+$BP$11","v":1.8275668309126334},{"$f":"$BP$12*SegmentExceptTable[[#This Row],[kW Boundary]]+$BP$13","v":0.13209371002150638},{"$f":"SegmentExceptTable[[#This Row],[Boundary M/L]]+(0.05*SegmentExceptTable[[#This Row],[Boundary M/L]])","v":0.1386983955225817},{"$f":"IF(AND(AND(kwpeak_norm>SegmentExceptTable[[#This Row],[kW Boundary]],kwpeak_norm<SegmentExceptTable[[#This Row],[kW Exception]]),AND(kwhmo_norm>SegmentExceptTable[[#This Row],[Boundary M/L]],kwhmo_norm<SegmentExceptTable[[#This Row],[Exception M/L]])),1,0)","v":0}]
[null,null,null,null,null,null,null,null,null,null,null,null,null,null,null,null,null,null,null,null,null,null,null,null,null,null,null,null,null,null,null,null,null,null,null,null,null,null,null,null,null,null,null,null,null,null,null,556,{"$f":"SegmentExceptTable[[#This Row],[Numbers]]/$BP$4","v":0.92821368948247074},{"$f":"SegmentExceptTable[[#This Row],[kW Boundary]]+(0.05*SegmentExceptTable[[#This Row],[kW Boundary]])","v":0.97462437395659429},{"$f":"$BP$6*SegmentExceptTable[[#This Row],[kW Boundary]]+$BP$7","v":1.33060030553104},{"$f":"$BP$8*SegmentExceptTable[[#This Row],[kW Boundary]]+$BP$9","v":-0.44501811462597185},{"$f":"SegmentExceptTable[[#This Row],[Boundary S/M]]+(0.05*SegmentExceptTable[[#This Row],[Boundary S/M]])","v":-0.46726902035727047},{"$f":"IF(AND(AND(kwpeak_norm>SegmentExceptTable[[#This Row],[kW Boundary]],kwpeak_norm<SegmentExceptTable[[#This Row],[kW Exception]]),AND(kwhmo_norm>SegmentExceptTable[[#This Row],[Boundary S/M]],kwhmo_norm<SegmentExceptTable[[#This Row],[Exception S/M]])),1,0)","v":0},{"$f":"$BP$10*SegmentExceptTable[[#This Row],[kW Boundary]]+$BP$11","v":1.8310938845548717},{"$f":"$BP$12*SegmentExceptTable[[#This Row],[kW Boundary]]+$BP$13","v":0.13130351499771764},{"$f":"SegmentExceptTable[[#This Row],[Boundary M/L]]+(0.05*SegmentExceptTable[[#This Row],[Boundary M/L]])","v":0.13786869074760352},{"$f":"IF(AND(AND(kwpeak_norm>SegmentExceptTable[[#This Row],[kW Boundary]],kwpeak_norm<SegmentExceptTable[[#This Row],[kW Exception]]),AND(kwhmo_norm>SegmentExceptTable[[#This Row],[Boundary M/L]],kwhmo_norm<SegmentExceptTable[[#This Row],[Exception M/L]])),1,0)","v":0}]
[null,null,null,null,null,null,null,null,null,null,null,null,null,null,null,null,null,null,null,null,null,null,null,null,null,null,null,null,null,null,null,null,null,null,null,null,null,null,null,null,null,null,null,null,null,null,null,557,{"$f":"SegmentExceptTable[[#This Row],[Numbers]]/$BP$4","v":0.92988313856427374},{"$f":"SegmentExceptTable[[#This Row],[kW Boundary]]+(0.05*SegmentExceptTable[[#This Row],[kW Boundary]])","v":0.97637729549248742},{"$f":"$BP$6*SegmentExceptTable[[#This Row],[kW Boundary]]+$BP$7","v":1.3330271358264063},{"$f":"$BP$8*SegmentExceptTable[[#This Row],[kW Boundary]]+$BP$9","v":-0.44616655102140268},{"$f":"SegmentExceptTable[[#This Row],[Boundary S/M]]+(0.05*SegmentExceptTable[[#This Row],[Boundary S/M]])","v":-0.46847487857247283},{"$f":"IF(AND(AND(kwpeak_norm>SegmentExceptTable[[#This Row],[kW Boundary]],kwpeak_norm<SegmentExceptTable[[#This Row],[kW Exception]]),AND(kwhmo_norm>SegmentExceptTable[[#This Row],[Boundary S/M]],kwhmo_norm<SegmentExceptTable[[#This Row],[Exception S/M]])),1,0)","v":0},{"$f":"$BP$10*SegmentExceptTable[[#This Row],[kW Boundary]]+$BP$11","v":1.8346209381971104},{"$f":"$BP$12*SegmentExceptTable[[#This Row],[kW Boundary]]+$BP$13","v":0.1305133199739289},{"$f":"SegmentExceptTable[[#This Row],[Boundary M/L]]+(0.05*SegmentExceptTable[[#This Row],[Boundary M/L]])","v":0.13703898597262534},{"$f":"IF(AND(AND(kwpeak_norm>SegmentExceptTable[[#This Row],[kW Boundary]],kwpeak_norm<SegmentExceptTable[[#This Row],[kW Exception]]),AND(kwhmo_norm>SegmentExceptTable[[#This Row],[Boundary M/L]],kwhmo_norm<SegmentExceptTable[[#This Row],[Exception M/L]])),1,0)","v":0}]
[null,null,null,null,null,null,null,null,null,null,null,null,null,null,null,null,null,null,null,null,null,null,null,null,null,null,null,null,null,null,null,null,null,null,null,null,null,null,null,null,null,null,null,null,null,null,null,558,{"$f":"SegmentExceptTable[[#This Row],[Numbers]]/$BP$4","v":0.93155258764607685},{"$f":"SegmentExceptTable[[#This Row],[kW Boundary]]+(0.05*SegmentExceptTable[[#This Row],[kW Boundary]])","v":0.97813021702838066},{"$f":"$BP$6*SegmentExceptTable[[#This Row],[kW Boundary]]+$BP$7","v":1.3354539661217726},{"$f":"$BP$8*SegmentExceptTable[[#This Row],[kW Boundary]]+$BP$9","v":-0.44731498741683362},{"$f":"SegmentExceptTable[[#This Row],[Boundary S/M]]+(0.05*SegmentExceptTable[[#This Row],[Boundary S/M]])","v":-0.4696807367876753},{"$f":"IF(AND(AND(kwpeak_norm>SegmentExceptTable[[#This Row],[kW Boundary]],kwpeak_norm<SegmentExceptTable[[#This Row],[kW Exception]]),AND(kwhmo_norm>SegmentExceptTable[[#This Row],[Boundary S/M]],kwhmo_norm<SegmentExceptTable[[#This Row],[Exception S/M]])),1,0)","v":0},{"$f":"$BP$10*SegmentExceptTable[[#This Row],[kW Boundary]]+$BP$11","v":1.8381479918393491},{"$f":"$BP$12*SegmentExceptTable[[#This Row],[kW Boundary]]+$BP$13","v":0.12972312495014005},{"$f":"SegmentExceptTable[[#This Row],[Boundary M/L]]+(0.05*SegmentExceptTable[[#This Row],[Boundary M/L]])","v":0.13620928119764705},{"$f":"IF(AND(AND(kwpeak_norm>SegmentExceptTable[[#This Row],[kW Boundary]],kwpeak_norm<SegmentExceptTable[[#This Row],[kW Exception]]),AND(kwhmo_norm>SegmentExceptTable[[#This Row],[Boundary M/L]],kwhmo_norm<SegmentExceptTable[[#This Row],[Exception M/L]])),1,0)","v":0}]
[null,null,null,null,null,null,null,null,null,null,null,null,null,null,null,null,null,null,null,null,null,null,null,null,null,null,null,null,null,null,null,null,null,null,null,null,null,null,null,null,null,null,null,null,null,null,null,559,{"$f":"SegmentExceptTable[[#This Row],[Numbers]]/$BP$4","v":0.93322203672787984},{"$f":"SegmentExceptTable[[#This Row],[kW Boundary]]+(0.05*SegmentExceptTable[[#This Row],[kW Boundary]])","v":0.97988313856427389},{"$f":"$BP$6*SegmentExceptTable[[#This Row],[kW Boundary]]+$BP$7","v":1.3378807964171389},{"$f":"$BP$8*SegmentExceptTable[[#This Row],[kW Boundary]]+$BP$9","v":-0.44846342381226456},{"$f":"SegmentExceptTable[[#This Row],[Boundary S/M]]+(0.05*SegmentExceptTable[[#This Row],[Boundary S/M]])","v":-0.47088659500287777},{"$f":"IF(AND(AND(kwpeak_norm>SegmentExceptTable[[#This Row],[kW Boundary]],kwpeak_norm<SegmentExceptTable[[#This Row],[kW Exception]]),AND(kwhmo_norm>SegmentExceptTable[[#This Row],[Boundary S/M]],kwhmo_norm<SegmentExceptTable[[#This Row],[Exception S/M]])),1,0)","v":0},{"$f":"$BP$10*SegmentExceptTable[[#This Row],[kW Boundary]]+$BP$11","v":1.8416750454815878},{"$f":"$BP$12*SegmentExceptTable[[#This Row],[kW Boundary]]+$BP$13","v":0.1289329299263513},{"$f":"SegmentExceptTable[[#This Row],[Boundary M/L]]+(0.05*SegmentExceptTable[[#This Row],[Boundary M/L]])","v":0.13537957642266887},{"$f":"IF(AND(AND(kwpeak_norm>SegmentExceptTable[[#This Row],[kW Boundary]],kwpeak_norm<SegmentExceptTable[[#This Row],[kW Exception]]),AND(kwhmo_norm>SegmentExceptTable[[#This Row],[Boundary M/L]],kwhmo_norm<SegmentExceptTable[[#This Row],[Exception M/L]])),1,0)","v":0}]
[null,null,null,null,null,null,null,null,null,null,null,null,null,null,null,null,null,null,null,null,null,null,null,null,null,null,null,null,null,null,null,null,null,null,null,null,null,null,null,null,null,null,null,null,null,null,null,5120,{"$f":"SegmentExceptTable[[#This Row],[Numbers]]/$BP$4","v":8.5475792988313852},{"$f":"SegmentExceptTable[[#This Row],[kW Boundary]]+(0.05*SegmentExceptTable[[#This Row],[kW Boundary]])","v":8.9749582637729546},{"$f":"$BP$6*SegmentExceptTable[[#This Row],[kW Boundary]]+$BP$7","v":12.406653773582732},{"$f":"$BP$8*SegmentExceptTable[[#This Row],[kW Boundary]]+$BP$9","v":-5.6864818233724899},{"$f":"SegmentExceptTable[[#This Row],[Boundary S/M]]+(0.05*SegmentExceptTable[[#This Row],[Boundary S/M]])","v":-5.9708059145411143},{"$f":"IF(AND(AND(kwpeak_norm>SegmentExceptTable[[#This Row],[kW Boundary]],kwpeak_norm<SegmentExceptTable[[#This Row],[kW Exception]]),AND(kwhmo_norm>SegmentExceptTable[[#This Row],[Boundary S/M]],kwhmo_norm<SegmentExceptTable[[#This Row],[Exception S/M]])),1,0)","v":0},{"$f":"$BP$10*SegmentExceptTable[[#This Row],[kW Boundary]]+$BP$11","v":17.92856670773152},{"$f":"$BP$12*SegmentExceptTable[[#This Row],[kW Boundary]]+$BP$13","v":-3.4751465735741687},{"$f":"SegmentExceptTable[[#This Row],[Boundary M/L]]+(0.05*SegmentExceptTable[[#This Row],[Boundary M/L]])","v":-3.6489039022528771},{"$f":"IF(AND(AND(kwpeak_norm>SegmentExceptTable[[#This Row],[kW Boundary]],kwpeak_norm<SegmentExceptTable[[#This Row],[kW Exception]]),AND(kwhmo_norm>SegmentExceptTable[[#This Row],[Boundary M/L]],kwhmo_norm<SegmentExceptTable[[#This Row],[Exception M/L]])),1,0)","v":0}]
[null,null,null,null,null,null,null,null,null,null,null,null,null,null,null,null,null,null,null,null,null,null,null,null,null,null,null,null,null,null,null,null,null,null,null,null,null,null,null,null,null,null,null,null,null,null,null,561,{"$f":"SegmentExceptTable[[#This Row],[Numbers]]/$BP$4","v":0.93656093489148584},{"$f":"SegmentExceptTable[[#This Row],[kW Boundary]]+(0.05*SegmentExceptTable[[#This Row],[kW Boundary]])","v":0.98338898163606014},{"$f":"$BP$6*SegmentExceptTable[[#This Row],[kW Boundary]]+$BP$7","v":1.3427344570078714},{"$f":"$BP$8*SegmentExceptTable[[#This Row],[kW Boundary]]+$BP$9","v":-0.45076029660312622},{"$f":"SegmentExceptTable[[#This Row],[Boundary S/M]]+(0.05*SegmentExceptTable[[#This Row],[Boundary S/M]])","v":-0.47329831143328255},{"$f":"IF(AND(AND(kwpeak_norm>SegmentExceptTable[[#This Row],[kW Boundary]],kwpeak_norm<SegmentExceptTable[[#This Row],[kW Exception]]),AND(kwhmo_norm>SegmentExceptTable[[#This Row],[Boundary S/M]],kwhmo_norm<SegmentExceptTable[[#This Row],[Exception S/M]])),1,0)","v":0},{"$f":"$BP$10*SegmentExceptTable[[#This Row],[kW Boundary]]+$BP$11","v":1.8487291527660648},{"$f":"$BP$12*SegmentExceptTable[[#This Row],[kW Boundary]]+$BP$13","v":0.12735253987877382},{"$f":"SegmentExceptTable[[#This Row],[Boundary M/L]]+(0.05*SegmentExceptTable[[#This Row],[Boundary M/L]])","v":0.13372016687271251},{"$f":"IF(AND(AND(kwpeak_norm>SegmentExceptTable[[#This Row],[kW Boundary]],kwpeak_norm<SegmentExceptTable[[#This Row],[kW Exception]]),AND(kwhmo_norm>SegmentExceptTable[[#This Row],[Boundary M/L]],kwhmo_norm<SegmentExceptTable[[#This Row],[Exception M/L]])),1,0)","v":0}]
[null,null,null,null,null,null,null,null,null,null,null,null,null,null,null,null,null,null,null,null,null,null,null,null,null,null,null,null,null,null,null,null,null,null,null,null,null,null,null,null,null,null,null,null,null,null,null,562,{"$f":"SegmentExceptTable[[#This Row],[Numbers]]/$BP$4","v":0.93823038397328884},{"$f":"SegmentExceptTable[[#This Row],[kW Boundary]]+(0.05*SegmentExceptTable[[#This Row],[kW Boundary]])","v":0.98514190317195327},{"$f":"$BP$6*SegmentExceptTable[[#This Row],[kW Boundary]]+$BP$7","v":1.3451612873032377},{"$f":"$BP$8*SegmentExceptTable[[#This Row],[kW Boundary]]+$BP$9","v":-0.45190873299855716},{"$f":"SegmentExceptTable[[#This Row],[Boundary S/M]]+(0.05*SegmentExceptTable[[#This Row],[Boundary S/M]])","v":-0.47450416964848502},{"$f":"IF(AND(AND(kwpeak_norm>SegmentExceptTable[[#This Row],[kW Boundary]],kwpeak_norm<SegmentExceptTable[[#This Row],[kW Exception]]),AND(kwhmo_norm>SegmentExceptTable[[#This Row],[Boundary S/M]],kwhmo_norm<SegmentExceptTable[[#This Row],[Exception S/M]])),1,0)","v":0},{"$f":"$BP$10*SegmentExceptTable[[#This Row],[kW Boundary]]+$BP$11","v":1.852256206408303},{"$f":"$BP$12*SegmentExceptTable[[#This Row],[kW Boundary]]+$BP$13","v":0.12656234485498508},{"$f":"SegmentExceptTable[[#This Row],[Boundary M/L]]+(0.05*SegmentExceptTable[[#This Row],[Boundary M/L]])","v":0.13289046209773434},{"$f":"IF(AND(AND(kwpeak_norm>SegmentExceptTable[[#This Row],[kW Boundary]],kwpeak_norm<SegmentExceptTable[[#This Row],[kW Exception]]),AND(kwhmo_norm>SegmentExceptTable[[#This Row],[Boundary M/L]],kwhmo_norm<SegmentExceptTable[[#This Row],[Exception M/L]])),1,0)","v":0}]
[null,null,null,null,null,null,null,null,null,null,null,null,null,null,null,null,null,null,null,null,null,null,null,null,null,null,null,null,null,null,null,null,null,null,null,null,null,null,null,null,null,null,null,null,null,null,null,563,{"$f":"SegmentExceptTable[[#This Row],[Numbers]]/$BP$4","v":0.93989983305509184},{"$f":"SegmentExceptTable[[#This Row],[kW Boundary]]+(0.05*SegmentExceptTable[[#This Row],[kW Boundary]])","v":0.9868948247078464},{"$f":"$BP$6*SegmentExceptTable[[#This Row],[kW Boundary]]+$BP$7","v":1.347588117598604},{"$f":"$BP$8*SegmentExceptTable[[#This Row],[kW Boundary]]+$BP$9","v":-0.45305716939398799},{"$f":"SegmentExceptTable[[#This Row],[Boundary S/M]]+(0.05*SegmentExceptTable[[#This Row],[Boundary S/M]])","v":-0.47571002786368738},{"$f":"IF(AND(AND(kwpeak_norm>SegmentExceptTable[[#This Row],[kW Boundary]],kwpeak_norm<SegmentExceptTable[[#This Row],[kW Exception]]),AND(kwhmo_norm>SegmentExceptTable[[#This Row],[Boundary S/M]],kwhmo_norm<SegmentExceptTable[[#This Row],[Exception S/M]])),1,0)","v":0},{"$f":"$BP$10*SegmentExceptTable[[#This Row],[kW Boundary]]+$BP$11","v":1.8557832600505417},{"$f":"$BP$12*SegmentExceptTable[[#This Row],[kW Boundary]]+$BP$13","v":0.12577214983119628},{"$f":"SegmentExceptTable[[#This Row],[Boundary M/L]]+(0.05*SegmentExceptTable[[#This Row],[Boundary M/L]])","v":0.1320607573227561},{"$f":"IF(AND(AND(kwpeak_norm>SegmentExceptTable[[#This Row],[kW Boundary]],kwpeak_norm<SegmentExceptTable[[#This Row],[kW Exception]]),AND(kwhmo_norm>SegmentExceptTable[[#This Row],[Boundary M/L]],kwhmo_norm<SegmentExceptTable[[#This Row],[Exception M/L]])),1,0)","v":0}]
[null,null,null,null,null,null,null,null,null,null,null,null,null,null,null,null,null,null,null,null,null,null,null,null,null,null,null,null,null,null,null,null,null,null,null,null,null,null,null,null,null,null,null,null,null,null,null,564,{"$f":"SegmentExceptTable[[#This Row],[Numbers]]/$BP$4","v":0.94156928213689484},{"$f":"SegmentExceptTable[[#This Row],[kW Boundary]]+(0.05*SegmentExceptTable[[#This Row],[kW Boundary]])","v":0.98864774624373952},{"$f":"$BP$6*SegmentExceptTable[[#This Row],[kW Boundary]]+$BP$7","v":1.3500149478939703},{"$f":"$BP$8*SegmentExceptTable[[#This Row],[kW Boundary]]+$BP$9","v":-0.45420560578941882},{"$f":"SegmentExceptTable[[#This Row],[Boundary S/M]]+(0.05*SegmentExceptTable[[#This Row],[Boundary S/M]])","v":-0.47691588607888974},{"$f":"IF(AND(AND(kwpeak_norm>SegmentExceptTable[[#This Row],[kW Boundary]],kwpeak_norm<SegmentExceptTable[[#This Row],[kW Exception]]),AND(kwhmo_norm>SegmentExceptTable[[#This Row],[Boundary S/M]],kwhmo_norm<SegmentExceptTable[[#This Row],[Exception S/M]])),1,0)","v":0},{"$f":"$BP$10*SegmentExceptTable[[#This Row],[kW Boundary]]+$BP$11","v":1.85931031369278},{"$f":"$BP$12*SegmentExceptTable[[#This Row],[kW Boundary]]+$BP$13","v":0.12498195480740754},{"$f":"SegmentExceptTable[[#This Row],[Boundary M/L]]+(0.05*SegmentExceptTable[[#This Row],[Boundary M/L]])","v":0.13123105254777792},{"$f":"IF(AND(AND(kwpeak_norm>SegmentExceptTable[[#This Row],[kW Boundary]],kwpeak_norm<SegmentExceptTable[[#This Row],[kW Exception]]),AND(kwhmo_norm>SegmentExceptTable[[#This Row],[Boundary M/L]],kwhmo_norm<SegmentExceptTable[[#This Row],[Exception M/L]])),1,0)","v":0}]
[null,null,null,null,null,null,null,null,null,null,null,null,null,null,null,null,null,null,null,null,null,null,null,null,null,null,null,null,null,null,null,null,null,null,null,null,null,null,null,null,null,null,null,null,null,null,null,565,{"$f":"SegmentExceptTable[[#This Row],[Numbers]]/$BP$4","v":0.94323873121869783},{"$f":"SegmentExceptTable[[#This Row],[kW Boundary]]+(0.05*SegmentExceptTable[[#This Row],[kW Boundary]])","v":0.99040066777963276},{"$f":"$BP$6*SegmentExceptTable[[#This Row],[kW Boundary]]+$BP$7","v":1.3524417781893365},{"$f":"$BP$8*SegmentExceptTable[[#This Row],[kW Boundary]]+$BP$9","v":-0.45535404218484976},{"$f":"SegmentExceptTable[[#This Row],[Boundary S/M]]+(0.05*SegmentExceptTable[[#This Row],[Boundary S/M]])","v":-0.47812174429409227},{"$f":"IF(AND(AND(kwpeak_norm>SegmentExceptTable[[#This Row],[kW Boundary]],kwpeak_norm<SegmentExceptTable[[#This Row],[kW Exception]]),AND(kwhmo_norm>SegmentExceptTable[[#This Row],[Boundary S/M]],kwhmo_norm<SegmentExceptTable[[#This Row],[Exception S/M]])),1,0)","v":0},{"$f":"$BP$10*SegmentExceptTable[[#This Row],[kW Boundary]]+$BP$11","v":1.8628373673350187},{"$f":"$BP$12*SegmentExceptTable[[#This Row],[kW Boundary]]+$BP$13","v":0.12419175978361879},{"$f":"SegmentExceptTable[[#This Row],[Boundary M/L]]+(0.05*SegmentExceptTable[[#This Row],[Boundary M/L]])","v":0.13040134777279974},{"$f":"IF(AND(AND(kwpeak_norm>SegmentExceptTable[[#This Row],[kW Boundary]],kwpeak_norm<SegmentExceptTable[[#This Row],[kW Exception]]),AND(kwhmo_norm>SegmentExceptTable[[#This Row],[Boundary M/L]],kwhmo_norm<SegmentExceptTable[[#This Row],[Exception M/L]])),1,0)","v":0}]
[null,null,null,null,null,null,null,null,null,null,null,null,null,null,null,null,null,null,null,null,null,null,null,null,null,null,null,null,null,null,null,null,null,null,null,null,null,null,null,null,null,null,null,null,null,null,null,566,{"$f":"SegmentExceptTable[[#This Row],[Numbers]]/$BP$4","v":0.94490818030050083},{"$f":"SegmentExceptTable[[#This Row],[kW Boundary]]+(0.05*SegmentExceptTable[[#This Row],[kW Boundary]])","v":0.99215358931552589},{"$f":"$BP$6*SegmentExceptTable[[#This Row],[kW Boundary]]+$BP$7","v":1.3548686084847028},{"$f":"$BP$8*SegmentExceptTable[[#This Row],[kW Boundary]]+$BP$9","v":-0.45650247858028059},{"$f":"SegmentExceptTable[[#This Row],[Boundary S/M]]+(0.05*SegmentExceptTable[[#This Row],[Boundary S/M]])","v":-0.47932760250929463},{"$f":"IF(AND(AND(kwpeak_norm>SegmentExceptTable[[#This Row],[kW Boundary]],kwpeak_norm<SegmentExceptTable[[#This Row],[kW Exception]]),AND(kwhmo_norm>SegmentExceptTable[[#This Row],[Boundary S/M]],kwhmo_norm<SegmentExceptTable[[#This Row],[Exception S/M]])),1,0)","v":0},{"$f":"$BP$10*SegmentExceptTable[[#This Row],[kW Boundary]]+$BP$11","v":1.8663644209772574},{"$f":"$BP$12*SegmentExceptTable[[#This Row],[kW Boundary]]+$BP$13","v":0.12340156475983005},{"$f":"SegmentExceptTable[[#This Row],[Boundary M/L]]+(0.05*SegmentExceptTable[[#This Row],[Boundary M/L]])","v":0.12957164299782156},{"$f":"IF(AND(AND(kwpeak_norm>SegmentExceptTable[[#This Row],[kW Boundary]],kwpeak_norm<SegmentExceptTable[[#This Row],[kW Exception]]),AND(kwhmo_norm>SegmentExceptTable[[#This Row],[Boundary M/L]],kwhmo_norm<SegmentExceptTable[[#This Row],[Exception M/L]])),1,0)","v":0}]
[null,null,null,null,null,null,null,null,null,null,null,null,null,null,null,null,null,null,null,null,null,null,null,null,null,null,null,null,null,null,null,null,null,null,null,null,null,null,null,null,null,null,null,null,null,null,null,567,{"$f":"SegmentExceptTable[[#This Row],[Numbers]]/$BP$4","v":0.94657762938230383},{"$f":"SegmentExceptTable[[#This Row],[kW Boundary]]+(0.05*SegmentExceptTable[[#This Row],[kW Boundary]])","v":0.99390651085141901},{"$f":"$BP$6*SegmentExceptTable[[#This Row],[kW Boundary]]+$BP$7","v":1.3572954387800691},{"$f":"$BP$8*SegmentExceptTable[[#This Row],[kW Boundary]]+$BP$9","v":-0.45765091497571153},{"$f":"SegmentExceptTable[[#This Row],[Boundary S/M]]+(0.05*SegmentExceptTable[[#This Row],[Boundary S/M]])","v":-0.4805334607244971},{"$f":"IF(AND(AND(kwpeak_norm>SegmentExceptTable[[#This Row],[kW Boundary]],kwpeak_norm<SegmentExceptTable[[#This Row],[kW Exception]]),AND(kwhmo_norm>SegmentExceptTable[[#This Row],[Boundary S/M]],kwhmo_norm<SegmentExceptTable[[#This Row],[Exception S/M]])),1,0)","v":0},{"$f":"$BP$10*SegmentExceptTable[[#This Row],[kW Boundary]]+$BP$11","v":1.8698914746194957},{"$f":"$BP$12*SegmentExceptTable[[#This Row],[kW Boundary]]+$BP$13","v":0.12261136973604131},{"$f":"SegmentExceptTable[[#This Row],[Boundary M/L]]+(0.05*SegmentExceptTable[[#This Row],[Boundary M/L]])","v":0.12874193822284338},{"$f":"IF(AND(AND(kwpeak_norm>SegmentExceptTable[[#This Row],[kW Boundary]],kwpeak_norm<SegmentExceptTable[[#This Row],[kW Exception]]),AND(kwhmo_norm>SegmentExceptTable[[#This Row],[Boundary M/L]],kwhmo_norm<SegmentExceptTable[[#This Row],[Exception M/L]])),1,0)","v":0}]
[null,null,null,null,null,null,null,null,null,null,null,null,null,null,null,null,null,null,null,null,null,null,null,null,null,null,null,null,null,null,null,null,null,null,null,null,null,null,null,null,null,null,null,null,null,null,null,568,{"$f":"SegmentExceptTable[[#This Row],[Numbers]]/$BP$4","v":0.94824707846410683},{"$f":"SegmentExceptTable[[#This Row],[kW Boundary]]+(0.05*SegmentExceptTable[[#This Row],[kW Boundary]])","v":0.99565943238731214},{"$f":"$BP$6*SegmentExceptTable[[#This Row],[kW Boundary]]+$BP$7","v":1.3597222690754354},{"$f":"$BP$8*SegmentExceptTable[[#This Row],[kW Boundary]]+$BP$9","v":-0.45879935137114236},{"$f":"SegmentExceptTable[[#This Row],[Boundary S/M]]+(0.05*SegmentExceptTable[[#This Row],[Boundary S/M]])","v":-0.48173931893969946},{"$f":"IF(AND(AND(kwpeak_norm>SegmentExceptTable[[#This Row],[kW Boundary]],kwpeak_norm<SegmentExceptTable[[#This Row],[kW Exception]]),AND(kwhmo_norm>SegmentExceptTable[[#This Row],[Boundary S/M]],kwhmo_norm<SegmentExceptTable[[#This Row],[Exception S/M]])),1,0)","v":0},{"$f":"$BP$10*SegmentExceptTable[[#This Row],[kW Boundary]]+$BP$11","v":1.8734185282617339},{"$f":"$BP$12*SegmentExceptTable[[#This Row],[kW Boundary]]+$BP$13","v":0.12182117471225251},{"$f":"SegmentExceptTable[[#This Row],[Boundary M/L]]+(0.05*SegmentExceptTable[[#This Row],[Boundary M/L]])","v":0.12791223344786515},{"$f":"IF(AND(AND(kwpeak_norm>SegmentExceptTable[[#This Row],[kW Boundary]],kwpeak_norm<SegmentExceptTable[[#This Row],[kW Exception]]),AND(kwhmo_norm>SegmentExceptTable[[#This Row],[Boundary M/L]],kwhmo_norm<SegmentExceptTable[[#This Row],[Exception M/L]])),1,0)","v":0}]
[null,null,null,null,null,null,null,null,null,null,null,null,null,null,null,null,null,null,null,null,null,null,null,null,null,null,null,null,null,null,null,null,null,null,null,null,null,null,null,null,null,null,null,null,null,null,null,569,{"$f":"SegmentExceptTable[[#This Row],[Numbers]]/$BP$4","v":0.94991652754590983},{"$f":"SegmentExceptTable[[#This Row],[kW Boundary]]+(0.05*SegmentExceptTable[[#This Row],[kW Boundary]])","v":0.99741235392320537},{"$f":"$BP$6*SegmentExceptTable[[#This Row],[kW Boundary]]+$BP$7","v":1.3621490993708016},{"$f":"$BP$8*SegmentExceptTable[[#This Row],[kW Boundary]]+$BP$9","v":-0.45994778776657319},{"$f":"SegmentExceptTable[[#This Row],[Boundary S/M]]+(0.05*SegmentExceptTable[[#This Row],[Boundary S/M]])","v":-0.48294517715490187},{"$f":"IF(AND(AND(kwpeak_norm>SegmentExceptTable[[#This Row],[kW Boundary]],kwpeak_norm<SegmentExceptTable[[#This Row],[kW Exception]]),AND(kwhmo_norm>SegmentExceptTable[[#This Row],[Boundary S/M]],kwhmo_norm<SegmentExceptTable[[#This Row],[Exception S/M]])),1,0)","v":0},{"$f":"$BP$10*SegmentExceptTable[[#This Row],[kW Boundary]]+$BP$11","v":1.8769455819039726},{"$f":"$BP$12*SegmentExceptTable[[#This Row],[kW Boundary]]+$BP$13","v":0.12103097968846377},{"$f":"SegmentExceptTable[[#This Row],[Boundary M/L]]+(0.05*SegmentExceptTable[[#This Row],[Boundary M/L]])","v":0.12708252867288697},{"$f":"IF(AND(AND(kwpeak_norm>SegmentExceptTable[[#This Row],[kW Boundary]],kwpeak_norm<SegmentExceptTable[[#This Row],[kW Exception]]),AND(kwhmo_norm>SegmentExceptTable[[#This Row],[Boundary M/L]],kwhmo_norm<SegmentExceptTable[[#This Row],[Exception M/L]])),1,0)","v":0}]
[null,null,null,null,null,null,null,null,null,null,null,null,null,null,null,null,null,null,null,null,null,null,null,null,null,null,null,null,null,null,null,null,null,null,null,null,null,null,null,null,null,null,null,null,null,null,null,570,{"$f":"SegmentExceptTable[[#This Row],[Numbers]]/$BP$4","v":0.95158597662771283},{"$f":"SegmentExceptTable[[#This Row],[kW Boundary]]+(0.05*SegmentExceptTable[[#This Row],[kW Boundary]])","v":0.9991652754590985},{"$f":"$BP$6*SegmentExceptTable[[#This Row],[kW Boundary]]+$BP$7","v":1.3645759296661679},{"$f":"$BP$8*SegmentExceptTable[[#This Row],[kW Boundary]]+$BP$9","v":-0.46109622416200413},{"$f":"SegmentExceptTable[[#This Row],[Boundary S/M]]+(0.05*SegmentExceptTable[[#This Row],[Boundary S/M]])","v":-0.48415103537010434},{"$f":"IF(AND(AND(kwpeak_norm>SegmentExceptTable[[#This Row],[kW Boundary]],kwpeak_norm<SegmentExceptTable[[#This Row],[kW Exception]]),AND(kwhmo_norm>SegmentExceptTable[[#This Row],[Boundary S/M]],kwhmo_norm<SegmentExceptTable[[#This Row],[Exception S/M]])),1,0)","v":0},{"$f":"$BP$10*SegmentExceptTable[[#This Row],[kW Boundary]]+$BP$11","v":1.8804726355462114},{"$f":"$BP$12*SegmentExceptTable[[#This Row],[kW Boundary]]+$BP$13","v":0.12024078466467503},{"$f":"SegmentExceptTable[[#This Row],[Boundary M/L]]+(0.05*SegmentExceptTable[[#This Row],[Boundary M/L]])","v":0.12625282389790879},{"$f":"IF(AND(AND(kwpeak_norm>SegmentExceptTable[[#This Row],[kW Boundary]],kwpeak_norm<SegmentExceptTable[[#This Row],[kW Exception]]),AND(kwhmo_norm>SegmentExceptTable[[#This Row],[Boundary M/L]],kwhmo_norm<SegmentExceptTable[[#This Row],[Exception M/L]])),1,0)","v":0}]
[null,null,null,null,null,null,null,null,null,null,null,null,null,null,null,null,null,null,null,null,null,null,null,null,null,null,null,null,null,null,null,null,null,null,null,null,null,null,null,null,null,null,null,null,null,null,null,571,{"$f":"SegmentExceptTable[[#This Row],[Numbers]]/$BP$4","v":0.95325542570951582},{"$f":"SegmentExceptTable[[#This Row],[kW Boundary]]+(0.05*SegmentExceptTable[[#This Row],[kW Boundary]])","v":1.0009181969949916},{"$f":"$BP$6*SegmentExceptTable[[#This Row],[kW Boundary]]+$BP$7","v":1.3670027599615342},{"$f":"$BP$8*SegmentExceptTable[[#This Row],[kW Boundary]]+$BP$9","v":-0.46224466055743496},{"$f":"SegmentExceptTable[[#This Row],[Boundary S/M]]+(0.05*SegmentExceptTable[[#This Row],[Boundary S/M]])","v":-0.4853568935853067},{"$f":"IF(AND(AND(kwpeak_norm>SegmentExceptTable[[#This Row],[kW Boundary]],kwpeak_norm<SegmentExceptTable[[#This Row],[kW Exception]]),AND(kwhmo_norm>SegmentExceptTable[[#This Row],[Boundary S/M]],kwhmo_norm<SegmentExceptTable[[#This Row],[Exception S/M]])),1,0)","v":0},{"$f":"$BP$10*SegmentExceptTable[[#This Row],[kW Boundary]]+$BP$11","v":1.8839996891884496},{"$f":"$BP$12*SegmentExceptTable[[#This Row],[kW Boundary]]+$BP$13","v":0.11945058964088628},{"$f":"SegmentExceptTable[[#This Row],[Boundary M/L]]+(0.05*SegmentExceptTable[[#This Row],[Boundary M/L]])","v":0.12542311912293061},{"$f":"IF(AND(AND(kwpeak_norm>SegmentExceptTable[[#This Row],[kW Boundary]],kwpeak_norm<SegmentExceptTable[[#This Row],[kW Exception]]),AND(kwhmo_norm>SegmentExceptTable[[#This Row],[Boundary M/L]],kwhmo_norm<SegmentExceptTable[[#This Row],[Exception M/L]])),1,0)","v":0}]
[null,null,null,null,null,null,null,null,null,null,null,null,null,null,null,null,null,null,null,null,null,null,null,null,null,null,null,null,null,null,null,null,null,null,null,null,null,null,null,null,null,null,null,null,null,null,null,572,{"$f":"SegmentExceptTable[[#This Row],[Numbers]]/$BP$4","v":0.95492487479131882},{"$f":"SegmentExceptTable[[#This Row],[kW Boundary]]+(0.05*SegmentExceptTable[[#This Row],[kW Boundary]])","v":1.0026711185308848},{"$f":"$BP$6*SegmentExceptTable[[#This Row],[kW Boundary]]+$BP$7","v":1.3694295902569005},{"$f":"$BP$8*SegmentExceptTable[[#This Row],[kW Boundary]]+$BP$9","v":-0.46339309695286579},{"$f":"SegmentExceptTable[[#This Row],[Boundary S/M]]+(0.05*SegmentExceptTable[[#This Row],[Boundary S/M]])","v":-0.48656275180050906},{"$f":"IF(AND(AND(kwpeak_norm>SegmentExceptTable[[#This Row],[kW Boundary]],kwpeak_norm<SegmentExceptTable[[#This Row],[kW Exception]]),AND(kwhmo_norm>SegmentExceptTable[[#This Row],[Boundary S/M]],kwhmo_norm<SegmentExceptTable[[#This Row],[Exception S/M]])),1,0)","v":0},{"$f":"$BP$10*SegmentExceptTable[[#This Row],[kW Boundary]]+$BP$11","v":1.8875267428306883},{"$f":"$BP$12*SegmentExceptTable[[#This Row],[kW Boundary]]+$BP$13","v":0.11866039461709749},{"$f":"SegmentExceptTable[[#This Row],[Boundary M/L]]+(0.05*SegmentExceptTable[[#This Row],[Boundary M/L]])","v":0.12459341434795236},{"$f":"IF(AND(AND(kwpeak_norm>SegmentExceptTable[[#This Row],[kW Boundary]],kwpeak_norm<SegmentExceptTable[[#This Row],[kW Exception]]),AND(kwhmo_norm>SegmentExceptTable[[#This Row],[Boundary M/L]],kwhmo_norm<SegmentExceptTable[[#This Row],[Exception M/L]])),1,0)","v":0}]
[null,null,null,null,null,null,null,null,null,null,null,null,null,null,null,null,null,null,null,null,null,null,null,null,null,null,null,null,null,null,null,null,null,null,null,null,null,null,null,null,null,null,null,null,null,null,null,573,{"$f":"SegmentExceptTable[[#This Row],[Numbers]]/$BP$4","v":0.95659432387312182},{"$f":"SegmentExceptTable[[#This Row],[kW Boundary]]+(0.05*SegmentExceptTable[[#This Row],[kW Boundary]])","v":1.0044240400667779},{"$f":"$BP$6*SegmentExceptTable[[#This Row],[kW Boundary]]+$BP$7","v":1.3718564205522668},{"$f":"$BP$8*SegmentExceptTable[[#This Row],[kW Boundary]]+$BP$9","v":-0.46454153334829673},{"$f":"SegmentExceptTable[[#This Row],[Boundary S/M]]+(0.05*SegmentExceptTable[[#This Row],[Boundary S/M]])","v":-0.48776861001571159},{"$f":"IF(AND(AND(kwpeak_norm>SegmentExceptTable[[#This Row],[kW Boundary]],kwpeak_norm<SegmentExceptTable[[#This Row],[kW Exception]]),AND(kwhmo_norm>SegmentExceptTable[[#This Row],[Boundary S/M]],kwhmo_norm<SegmentExceptTable[[#This Row],[Exception S/M]])),1,0)","v":0},{"$f":"$BP$10*SegmentExceptTable[[#This Row],[kW Boundary]]+$BP$11","v":1.8910537964729266},{"$f":"$BP$12*SegmentExceptTable[[#This Row],[kW Boundary]]+$BP$13","v":0.11787019959330874},{"$f":"SegmentExceptTable[[#This Row],[Boundary M/L]]+(0.05*SegmentExceptTable[[#This Row],[Boundary M/L]])","v":0.12376370957297418},{"$f":"IF(AND(AND(kwpeak_norm>SegmentExceptTable[[#This Row],[kW Boundary]],kwpeak_norm<SegmentExceptTable[[#This Row],[kW Exception]]),AND(kwhmo_norm>SegmentExceptTable[[#This Row],[Boundary M/L]],kwhmo_norm<SegmentExceptTable[[#This Row],[Exception M/L]])),1,0)","v":0}]
[null,null,null,null,null,null,null,null,null,null,null,null,null,null,null,null,null,null,null,null,null,null,null,null,null,null,null,null,null,null,null,null,null,null,null,null,null,null,null,null,null,null,null,null,null,null,null,574,{"$f":"SegmentExceptTable[[#This Row],[Numbers]]/$BP$4","v":0.95826377295492482},{"$f":"SegmentExceptTable[[#This Row],[kW Boundary]]+(0.05*SegmentExceptTable[[#This Row],[kW Boundary]])","v":1.006176961602671},{"$f":"$BP$6*SegmentExceptTable[[#This Row],[kW Boundary]]+$BP$7","v":1.374283250847633},{"$f":"$BP$8*SegmentExceptTable[[#This Row],[kW Boundary]]+$BP$9","v":-0.46568996974372756},{"$f":"SegmentExceptTable[[#This Row],[Boundary S/M]]+(0.05*SegmentExceptTable[[#This Row],[Boundary S/M]])","v":-0.48897446823091395},{"$f":"IF(AND(AND(kwpeak_norm>SegmentExceptTable[[#This Row],[kW Boundary]],kwpeak_norm<SegmentExceptTable[[#This Row],[kW Exception]]),AND(kwhmo_norm>SegmentExceptTable[[#This Row],[Boundary S/M]],kwhmo_norm<SegmentExceptTable[[#This Row],[Exception S/M]])),1,0)","v":0},{"$f":"$BP$10*SegmentExceptTable[[#This Row],[kW Boundary]]+$BP$11","v":1.8945808501151653},{"$f":"$BP$12*SegmentExceptTable[[#This Row],[kW Boundary]]+$BP$13","v":0.11708000456952},{"$f":"SegmentExceptTable[[#This Row],[Boundary M/L]]+(0.05*SegmentExceptTable[[#This Row],[Boundary M/L]])","v":0.122934004797996},{"$f":"IF(AND(AND(kwpeak_norm>SegmentExceptTable[[#This Row],[kW Boundary]],kwpeak_norm<SegmentExceptTable[[#This Row],[kW Exception]]),AND(kwhmo_norm>SegmentExceptTable[[#This Row],[Boundary M/L]],kwhmo_norm<SegmentExceptTable[[#This Row],[Exception M/L]])),1,0)","v":0}]
[null,null,null,null,null,null,null,null,null,null,null,null,null,null,null,null,null,null,null,null,null,null,null,null,null,null,null,null,null,null,null,null,null,null,null,null,null,null,null,null,null,null,null,null,null,null,null,575,{"$f":"SegmentExceptTable[[#This Row],[Numbers]]/$BP$4","v":0.95993322203672793},{"$f":"SegmentExceptTable[[#This Row],[kW Boundary]]+(0.05*SegmentExceptTable[[#This Row],[kW Boundary]])","v":1.0079298831385644},{"$f":"$BP$6*SegmentExceptTable[[#This Row],[kW Boundary]]+$BP$7","v":1.3767100811429993},{"$f":"$BP$8*SegmentExceptTable[[#This Row],[kW Boundary]]+$BP$9","v":-0.4668384061391585},{"$f":"SegmentExceptTable[[#This Row],[Boundary S/M]]+(0.05*SegmentExceptTable[[#This Row],[Boundary S/M]])","v":-0.49018032644611642},{"$f":"IF(AND(AND(kwpeak_norm>SegmentExceptTable[[#This Row],[kW Boundary]],kwpeak_norm<SegmentExceptTable[[#This Row],[kW Exception]]),AND(kwhmo_norm>SegmentExceptTable[[#This Row],[Boundary S/M]],kwhmo_norm<SegmentExceptTable[[#This Row],[Exception S/M]])),1,0)","v":0},{"$f":"$BP$10*SegmentExceptTable[[#This Row],[kW Boundary]]+$BP$11","v":1.898107903757404},{"$f":"$BP$12*SegmentExceptTable[[#This Row],[kW Boundary]]+$BP$13","v":0.1162898095457312},{"$f":"SegmentExceptTable[[#This Row],[Boundary M/L]]+(0.05*SegmentExceptTable[[#This Row],[Boundary M/L]])","v":0.12210430002301777},{"$f":"IF(AND(AND(kwpeak_norm>SegmentExceptTable[[#This Row],[kW Boundary]],kwpeak_norm<SegmentExceptTable[[#This Row],[kW Exception]]),AND(kwhmo_norm>SegmentExceptTable[[#This Row],[Boundary M/L]],kwhmo_norm<SegmentExceptTable[[#This Row],[Exception M/L]])),1,0)","v":0}]
[null,null,null,null,null,null,null,null,null,null,null,null,null,null,null,null,null,null,null,null,null,null,null,null,null,null,null,null,null,null,null,null,null,null,null,null,null,null,null,null,null,null,null,null,null,null,null,576,{"$f":"SegmentExceptTable[[#This Row],[Numbers]]/$BP$4","v":0.96160267111853093},{"$f":"SegmentExceptTable[[#This Row],[kW Boundary]]+(0.05*SegmentExceptTable[[#This Row],[kW Boundary]])","v":1.0096828046744575},{"$f":"$BP$6*SegmentExceptTable[[#This Row],[kW Boundary]]+$BP$7","v":1.3791369114383656},{"$f":"$BP$8*SegmentExceptTable[[#This Row],[kW Boundary]]+$BP$9","v":-0.46798684253458944},{"$f":"SegmentExceptTable[[#This Row],[Boundary S/M]]+(0.05*SegmentExceptTable[[#This Row],[Boundary S/M]])","v":-0.49138618466131889},{"$f":"IF(AND(AND(kwpeak_norm>SegmentExceptTable[[#This Row],[kW Boundary]],kwpeak_norm<SegmentExceptTable[[#This Row],[kW Exception]]),AND(kwhmo_norm>SegmentExceptTable[[#This Row],[Boundary S/M]],kwhmo_norm<SegmentExceptTable[[#This Row],[Exception S/M]])),1,0)","v":0},{"$f":"$BP$10*SegmentExceptTable[[#This Row],[kW Boundary]]+$BP$11","v":1.9016349573996423},{"$f":"$BP$12*SegmentExceptTable[[#This Row],[kW Boundary]]+$BP$13","v":0.11549961452194246},{"$f":"SegmentExceptTable[[#This Row],[Boundary M/L]]+(0.05*SegmentExceptTable[[#This Row],[Boundary M/L]])","v":0.12127459524803959},{"$f":"IF(AND(AND(kwpeak_norm>SegmentExceptTable[[#This Row],[kW Boundary]],kwpeak_norm<SegmentExceptTable[[#This Row],[kW Exception]]),AND(kwhmo_norm>SegmentExceptTable[[#This Row],[Boundary M/L]],kwhmo_norm<SegmentExceptTable[[#This Row],[Exception M/L]])),1,0)","v":0}]
[null,null,null,null,null,null,null,null,null,null,null,null,null,null,null,null,null,null,null,null,null,null,null,null,null,null,null,null,null,null,null,null,null,null,null,null,null,null,null,null,null,null,null,null,null,null,null,577,{"$f":"SegmentExceptTable[[#This Row],[Numbers]]/$BP$4","v":0.96327212020033393},{"$f":"SegmentExceptTable[[#This Row],[kW Boundary]]+(0.05*SegmentExceptTable[[#This Row],[kW Boundary]])","v":1.0114357262103506},{"$f":"$BP$6*SegmentExceptTable[[#This Row],[kW Boundary]]+$BP$7","v":1.3815637417337319},{"$f":"$BP$8*SegmentExceptTable[[#This Row],[kW Boundary]]+$BP$9","v":-0.46913527893002027},{"$f":"SegmentExceptTable[[#This Row],[Boundary S/M]]+(0.05*SegmentExceptTable[[#This Row],[Boundary S/M]])","v":-0.49259204287652131},{"$f":"IF(AND(AND(kwpeak_norm>SegmentExceptTable[[#This Row],[kW Boundary]],kwpeak_norm<SegmentExceptTable[[#This Row],[kW Exception]]),AND(kwhmo_norm>SegmentExceptTable[[#This Row],[Boundary S/M]],kwhmo_norm<SegmentExceptTable[[#This Row],[Exception S/M]])),1,0)","v":0},{"$f":"$BP$10*SegmentExceptTable[[#This Row],[kW Boundary]]+$BP$11","v":1.905162011041881},{"$f":"$BP$12*SegmentExceptTable[[#This Row],[kW Boundary]]+$BP$13","v":0.11470941949815366},{"$f":"SegmentExceptTable[[#This Row],[Boundary M/L]]+(0.05*SegmentExceptTable[[#This Row],[Boundary M/L]])","v":0.12044489047306135},{"$f":"IF(AND(AND(kwpeak_norm>SegmentExceptTable[[#This Row],[kW Boundary]],kwpeak_norm<SegmentExceptTable[[#This Row],[kW Exception]]),AND(kwhmo_norm>SegmentExceptTable[[#This Row],[Boundary M/L]],kwhmo_norm<SegmentExceptTable[[#This Row],[Exception M/L]])),1,0)","v":0}]
[null,null,null,null,null,null,null,null,null,null,null,null,null,null,null,null,null,null,null,null,null,null,null,null,null,null,null,null,null,null,null,null,null,null,null,null,null,null,null,null,null,null,null,null,null,null,null,578,{"$f":"SegmentExceptTable[[#This Row],[Numbers]]/$BP$4","v":0.96494156928213692},{"$f":"SegmentExceptTable[[#This Row],[kW Boundary]]+(0.05*SegmentExceptTable[[#This Row],[kW Boundary]])","v":1.0131886477462437},{"$f":"$BP$6*SegmentExceptTable[[#This Row],[kW Boundary]]+$BP$7","v":1.3839905720290981},{"$f":"$BP$8*SegmentExceptTable[[#This Row],[kW Boundary]]+$BP$9","v":-0.4702837153254511},{"$f":"SegmentExceptTable[[#This Row],[Boundary S/M]]+(0.05*SegmentExceptTable[[#This Row],[Boundary S/M]])","v":-0.49379790109172367},{"$f":"IF(AND(AND(kwpeak_norm>SegmentExceptTable[[#This Row],[kW Boundary]],kwpeak_norm<SegmentExceptTable[[#This Row],[kW Exception]]),AND(kwhmo_norm>SegmentExceptTable[[#This Row],[Boundary S/M]],kwhmo_norm<SegmentExceptTable[[#This Row],[Exception S/M]])),1,0)","v":0},{"$f":"$BP$10*SegmentExceptTable[[#This Row],[kW Boundary]]+$BP$11","v":1.9086890646841197},{"$f":"$BP$12*SegmentExceptTable[[#This Row],[kW Boundary]]+$BP$13","v":0.11391922447436492},{"$f":"SegmentExceptTable[[#This Row],[Boundary M/L]]+(0.05*SegmentExceptTable[[#This Row],[Boundary M/L]])","v":0.11961518569808317},{"$f":"IF(AND(AND(kwpeak_norm>SegmentExceptTable[[#This Row],[kW Boundary]],kwpeak_norm<SegmentExceptTable[[#This Row],[kW Exception]]),AND(kwhmo_norm>SegmentExceptTable[[#This Row],[Boundary M/L]],kwhmo_norm<SegmentExceptTable[[#This Row],[Exception M/L]])),1,0)","v":0}]
[null,null,null,null,null,null,null,null,null,null,null,null,null,null,null,null,null,null,null,null,null,null,null,null,null,null,null,null,null,null,null,null,null,null,null,null,null,null,null,null,null,null,null,null,null,null,null,579,{"$f":"SegmentExceptTable[[#This Row],[Numbers]]/$BP$4","v":0.96661101836393992},{"$f":"SegmentExceptTable[[#This Row],[kW Boundary]]+(0.05*SegmentExceptTable[[#This Row],[kW Boundary]])","v":1.0149415692821369},{"$f":"$BP$6*SegmentExceptTable[[#This Row],[kW Boundary]]+$BP$7","v":1.3864174023244644},{"$f":"$BP$8*SegmentExceptTable[[#This Row],[kW Boundary]]+$BP$9","v":-0.47143215172088204},{"$f":"SegmentExceptTable[[#This Row],[Boundary S/M]]+(0.05*SegmentExceptTable[[#This Row],[Boundary S/M]])","v":-0.49500375930692614},{"$f":"IF(AND(AND(kwpeak_norm>SegmentExceptTable[[#This Row],[kW Boundary]],kwpeak_norm<SegmentExceptTable[[#This Row],[kW Exception]]),AND(kwhmo_norm>SegmentExceptTable[[#This Row],[Boundary S/M]],kwhmo_norm<SegmentExceptTable[[#This Row],[Exception S/M]])),1,0)","v":0},{"$f":"$BP$10*SegmentExceptTable[[#This Row],[kW Boundary]]+$BP$11","v":1.912216118326358},{"$f":"$BP$12*SegmentExceptTable[[#This Row],[kW Boundary]]+$BP$13","v":0.11312902945057618},{"$f":"SegmentExceptTable[[#This Row],[Boundary M/L]]+(0.05*SegmentExceptTable[[#This Row],[Boundary M/L]])","v":0.11878548092310499},{"$f":"IF(AND(AND(kwpeak_norm>SegmentExceptTable[[#This Row],[kW Boundary]],kwpeak_norm<SegmentExceptTable[[#This Row],[kW Exception]]),AND(kwhmo_norm>SegmentExceptTable[[#This Row],[Boundary M/L]],kwhmo_norm<SegmentExceptTable[[#This Row],[Exception M/L]])),1,0)","v":0}]
[null,null,null,null,null,null,null,null,null,null,null,null,null,null,null,null,null,null,null,null,null,null,null,null,null,null,null,null,null,null,null,null,null,null,null,null,null,null,null,null,null,null,null,null,null,null,null,580,{"$f":"SegmentExceptTable[[#This Row],[Numbers]]/$BP$4","v":0.96828046744574292},{"$f":"SegmentExceptTable[[#This Row],[kW Boundary]]+(0.05*SegmentExceptTable[[#This Row],[kW Boundary]])","v":1.01669449081803},{"$f":"$BP$6*SegmentExceptTable[[#This Row],[kW Boundary]]+$BP$7","v":1.3888442326198307},{"$f":"$BP$8*SegmentExceptTable[[#This Row],[kW Boundary]]+$BP$9","v":-0.47258058811631287},{"$f":"SegmentExceptTable[[#This Row],[Boundary S/M]]+(0.05*SegmentExceptTable[[#This Row],[Boundary S/M]])","v":-0.4962096175221285},{"$f":"IF(AND(AND(kwpeak_norm>SegmentExceptTable[[#This Row],[kW Boundary]],kwpeak_norm<SegmentExceptTable[[#This Row],[kW Exception]]),AND(kwhmo_norm>SegmentExceptTable[[#This Row],[Boundary S/M]],kwhmo_norm<SegmentExceptTable[[#This Row],[Exception S/M]])),1,0)","v":0},{"$f":"$BP$10*SegmentExceptTable[[#This Row],[kW Boundary]]+$BP$11","v":1.9157431719685967},{"$f":"$BP$12*SegmentExceptTable[[#This Row],[kW Boundary]]+$BP$13","v":0.11233883442678744},{"$f":"SegmentExceptTable[[#This Row],[Boundary M/L]]+(0.05*SegmentExceptTable[[#This Row],[Boundary M/L]])","v":0.11795577614812681},{"$f":"IF(AND(AND(kwpeak_norm>SegmentExceptTable[[#This Row],[kW Boundary]],kwpeak_norm<SegmentExceptTable[[#This Row],[kW Exception]]),AND(kwhmo_norm>SegmentExceptTable[[#This Row],[Boundary M/L]],kwhmo_norm<SegmentExceptTable[[#This Row],[Exception M/L]])),1,0)","v":0}]
[null,null,null,null,null,null,null,null,null,null,null,null,null,null,null,null,null,null,null,null,null,null,null,null,null,null,null,null,null,null,null,null,null,null,null,null,null,null,null,null,null,null,null,null,null,null,null,581,{"$f":"SegmentExceptTable[[#This Row],[Numbers]]/$BP$4","v":0.96994991652754592},{"$f":"SegmentExceptTable[[#This Row],[kW Boundary]]+(0.05*SegmentExceptTable[[#This Row],[kW Boundary]])","v":1.0184474123539231},{"$f":"$BP$6*SegmentExceptTable[[#This Row],[kW Boundary]]+$BP$7","v":1.391271062915197},{"$f":"$BP$8*SegmentExceptTable[[#This Row],[kW Boundary]]+$BP$9","v":-0.47372902451174381},{"$f":"SegmentExceptTable[[#This Row],[Boundary S/M]]+(0.05*SegmentExceptTable[[#This Row],[Boundary S/M]])","v":-0.49741547573733103},{"$f":"IF(AND(AND(kwpeak_norm>SegmentExceptTable[[#This Row],[kW Boundary]],kwpeak_norm<SegmentExceptTable[[#This Row],[kW Exception]]),AND(kwhmo_norm>SegmentExceptTable[[#This Row],[Boundary S/M]],kwhmo_norm<SegmentExceptTable[[#This Row],[Exception S/M]])),1,0)","v":0},{"$f":"$BP$10*SegmentExceptTable[[#This Row],[kW Boundary]]+$BP$11","v":1.9192702256108349},{"$f":"$BP$12*SegmentExceptTable[[#This Row],[kW Boundary]]+$BP$13","v":0.11154863940299869},{"$f":"SegmentExceptTable[[#This Row],[Boundary M/L]]+(0.05*SegmentExceptTable[[#This Row],[Boundary M/L]])","v":0.11712607137314864},{"$f":"IF(AND(AND(kwpeak_norm>SegmentExceptTable[[#This Row],[kW Boundary]],kwpeak_norm<SegmentExceptTable[[#This Row],[kW Exception]]),AND(kwhmo_norm>SegmentExceptTable[[#This Row],[Boundary M/L]],kwhmo_norm<SegmentExceptTable[[#This Row],[Exception M/L]])),1,0)","v":0}]
[null,null,null,null,null,null,null,null,null,null,null,null,null,null,null,null,null,null,null,null,null,null,null,null,null,null,null,null,null,null,null,null,null,null,null,null,null,null,null,null,null,null,null,null,null,null,null,582,{"$f":"SegmentExceptTable[[#This Row],[Numbers]]/$BP$4","v":0.97161936560934892},{"$f":"SegmentExceptTable[[#This Row],[kW Boundary]]+(0.05*SegmentExceptTable[[#This Row],[kW Boundary]])","v":1.0202003338898165},{"$f":"$BP$6*SegmentExceptTable[[#This Row],[kW Boundary]]+$BP$7","v":1.3936978932105633},{"$f":"$BP$8*SegmentExceptTable[[#This Row],[kW Boundary]]+$BP$9","v":-0.47487746090717464},{"$f":"SegmentExceptTable[[#This Row],[Boundary S/M]]+(0.05*SegmentExceptTable[[#This Row],[Boundary S/M]])","v":-0.49862133395253339},{"$f":"IF(AND(AND(kwpeak_norm>SegmentExceptTable[[#This Row],[kW Boundary]],kwpeak_norm<SegmentExceptTable[[#This Row],[kW Exception]]),AND(kwhmo_norm>SegmentExceptTable[[#This Row],[Boundary S/M]],kwhmo_norm<SegmentExceptTable[[#This Row],[Exception S/M]])),1,0)","v":0},{"$f":"$BP$10*SegmentExceptTable[[#This Row],[kW Boundary]]+$BP$11","v":1.9227972792530736},{"$f":"$BP$12*SegmentExceptTable[[#This Row],[kW Boundary]]+$BP$13","v":0.1107584443792099},{"$f":"SegmentExceptTable[[#This Row],[Boundary M/L]]+(0.05*SegmentExceptTable[[#This Row],[Boundary M/L]])","v":0.11629636659817039},{"$f":"IF(AND(AND(kwpeak_norm>SegmentExceptTable[[#This Row],[kW Boundary]],kwpeak_norm<SegmentExceptTable[[#This Row],[kW Exception]]),AND(kwhmo_norm>SegmentExceptTable[[#This Row],[Boundary M/L]],kwhmo_norm<SegmentExceptTable[[#This Row],[Exception M/L]])),1,0)","v":0}]
[null,null,null,null,null,null,null,null,null,null,null,null,null,null,null,null,null,null,null,null,null,null,null,null,null,null,null,null,null,null,null,null,null,null,null,null,null,null,null,null,null,null,null,null,null,null,null,583,{"$f":"SegmentExceptTable[[#This Row],[Numbers]]/$BP$4","v":0.97328881469115192},{"$f":"SegmentExceptTable[[#This Row],[kW Boundary]]+(0.05*SegmentExceptTable[[#This Row],[kW Boundary]])","v":1.0219532554257096},{"$f":"$BP$6*SegmentExceptTable[[#This Row],[kW Boundary]]+$BP$7","v":1.3961247235059295},{"$f":"$BP$8*SegmentExceptTable[[#This Row],[kW Boundary]]+$BP$9","v":-0.47602589730260547},{"$f":"SegmentExceptTable[[#This Row],[Boundary S/M]]+(0.05*SegmentExceptTable[[#This Row],[Boundary S/M]])","v":-0.49982719216773575},{"$f":"IF(AND(AND(kwpeak_norm>SegmentExceptTable[[#This Row],[kW Boundary]],kwpeak_norm<SegmentExceptTable[[#This Row],[kW Exception]]),AND(kwhmo_norm>SegmentExceptTable[[#This Row],[Boundary S/M]],kwhmo_norm<SegmentExceptTable[[#This Row],[Exception S/M]])),1,0)","v":0},{"$f":"$BP$10*SegmentExceptTable[[#This Row],[kW Boundary]]+$BP$11","v":1.9263243328953119},{"$f":"$BP$12*SegmentExceptTable[[#This Row],[kW Boundary]]+$BP$13","v":0.10996824935542115},{"$f":"SegmentExceptTable[[#This Row],[Boundary M/L]]+(0.05*SegmentExceptTable[[#This Row],[Boundary M/L]])","v":0.11546666182319221},{"$f":"IF(AND(AND(kwpeak_norm>SegmentExceptTable[[#This Row],[kW Boundary]],kwpeak_norm<SegmentExceptTable[[#This Row],[kW Exception]]),AND(kwhmo_norm>SegmentExceptTable[[#This Row],[Boundary M/L]],kwhmo_norm<SegmentExceptTable[[#This Row],[Exception M/L]])),1,0)","v":0}]
[null,null,null,null,null,null,null,null,null,null,null,null,null,null,null,null,null,null,null,null,null,null,null,null,null,null,null,null,null,null,null,null,null,null,null,null,null,null,null,null,null,null,null,null,null,null,null,584,{"$f":"SegmentExceptTable[[#This Row],[Numbers]]/$BP$4","v":0.97495826377295491},{"$f":"SegmentExceptTable[[#This Row],[kW Boundary]]+(0.05*SegmentExceptTable[[#This Row],[kW Boundary]])","v":1.0237061769616027},{"$f":"$BP$6*SegmentExceptTable[[#This Row],[kW Boundary]]+$BP$7","v":1.3985515538012958},{"$f":"$BP$8*SegmentExceptTable[[#This Row],[kW Boundary]]+$BP$9","v":-0.47717433369803641},{"$f":"SegmentExceptTable[[#This Row],[Boundary S/M]]+(0.05*SegmentExceptTable[[#This Row],[Boundary S/M]])","v":-0.50103305038293822},{"$f":"IF(AND(AND(kwpeak_norm>SegmentExceptTable[[#This Row],[kW Boundary]],kwpeak_norm<SegmentExceptTable[[#This Row],[kW Exception]]),AND(kwhmo_norm>SegmentExceptTable[[#This Row],[Boundary S/M]],kwhmo_norm<SegmentExceptTable[[#This Row],[Exception S/M]])),1,0)","v":0},{"$f":"$BP$10*SegmentExceptTable[[#This Row],[kW Boundary]]+$BP$11","v":1.9298513865375506},{"$f":"$BP$12*SegmentExceptTable[[#This Row],[kW Boundary]]+$BP$13","v":0.10917805433163241},{"$f":"SegmentExceptTable[[#This Row],[Boundary M/L]]+(0.05*SegmentExceptTable[[#This Row],[Boundary M/L]])","v":0.11463695704821403},{"$f":"IF(AND(AND(kwpeak_norm>SegmentExceptTable[[#This Row],[kW Boundary]],kwpeak_norm<SegmentExceptTable[[#This Row],[kW Exception]]),AND(kwhmo_norm>SegmentExceptTable[[#This Row],[Boundary M/L]],kwhmo_norm<SegmentExceptTable[[#This Row],[Exception M/L]])),1,0)","v":0}]
[null,null,null,null,null,null,null,null,null,null,null,null,null,null,null,null,null,null,null,null,null,null,null,null,null,null,null,null,null,null,null,null,null,null,null,null,null,null,null,null,null,null,null,null,null,null,null,585,{"$f":"SegmentExceptTable[[#This Row],[Numbers]]/$BP$4","v":0.97662771285475791},{"$f":"SegmentExceptTable[[#This Row],[kW Boundary]]+(0.05*SegmentExceptTable[[#This Row],[kW Boundary]])","v":1.0254590984974958},{"$f":"$BP$6*SegmentExceptTable[[#This Row],[kW Boundary]]+$BP$7","v":1.4009783840966621},{"$f":"$BP$8*SegmentExceptTable[[#This Row],[kW Boundary]]+$BP$9","v":-0.47832277009346724},{"$f":"SegmentExceptTable[[#This Row],[Boundary S/M]]+(0.05*SegmentExceptTable[[#This Row],[Boundary S/M]])","v":-0.50223890859814058},{"$f":"IF(AND(AND(kwpeak_norm>SegmentExceptTable[[#This Row],[kW Boundary]],kwpeak_norm<SegmentExceptTable[[#This Row],[kW Exception]]),AND(kwhmo_norm>SegmentExceptTable[[#This Row],[Boundary S/M]],kwhmo_norm<SegmentExceptTable[[#This Row],[Exception S/M]])),1,0)","v":0},{"$f":"$BP$10*SegmentExceptTable[[#This Row],[kW Boundary]]+$BP$11","v":1.9333784401797893},{"$f":"$BP$12*SegmentExceptTable[[#This Row],[kW Boundary]]+$BP$13","v":0.10838785930784367},{"$f":"SegmentExceptTable[[#This Row],[Boundary M/L]]+(0.05*SegmentExceptTable[[#This Row],[Boundary M/L]])","v":0.11380725227323585},{"$f":"IF(AND(AND(kwpeak_norm>SegmentExceptTable[[#This Row],[kW Boundary]],kwpeak_norm<SegmentExceptTable[[#This Row],[kW Exception]]),AND(kwhmo_norm>SegmentExceptTable[[#This Row],[Boundary M/L]],kwhmo_norm<SegmentExceptTable[[#This Row],[Exception M/L]])),1,0)","v":0}]
[null,null,null,null,null,null,null,null,null,null,null,null,null,null,null,null,null,null,null,null,null,null,null,null,null,null,null,null,null,null,null,null,null,null,null,null,null,null,null,null,null,null,null,null,null,null,null,586,{"$f":"SegmentExceptTable[[#This Row],[Numbers]]/$BP$4","v":0.97829716193656091},{"$f":"SegmentExceptTable[[#This Row],[kW Boundary]]+(0.05*SegmentExceptTable[[#This Row],[kW Boundary]])","v":1.027212020033389},{"$f":"$BP$6*SegmentExceptTable[[#This Row],[kW Boundary]]+$BP$7","v":1.4034052143920284},{"$f":"$BP$8*SegmentExceptTable[[#This Row],[kW Boundary]]+$BP$9","v":-0.47947120648889807},{"$f":"SegmentExceptTable[[#This Row],[Boundary S/M]]+(0.05*SegmentExceptTable[[#This Row],[Boundary S/M]])","v":-0.50344476681334294},{"$f":"IF(AND(AND(kwpeak_norm>SegmentExceptTable[[#This Row],[kW Boundary]],kwpeak_norm<SegmentExceptTable[[#This Row],[kW Exception]]),AND(kwhmo_norm>SegmentExceptTable[[#This Row],[Boundary S/M]],kwhmo_norm<SegmentExceptTable[[#This Row],[Exception S/M]])),1,0)","v":0},{"$f":"$BP$10*SegmentExceptTable[[#This Row],[kW Boundary]]+$BP$11","v":1.9369054938220276},{"$f":"$BP$12*SegmentExceptTable[[#This Row],[kW Boundary]]+$BP$13","v":0.10759766428405493},{"$f":"SegmentExceptTable[[#This Row],[Boundary M/L]]+(0.05*SegmentExceptTable[[#This Row],[Boundary M/L]])","v":0.11297754749825767},{"$f":"IF(AND(AND(kwpeak_norm>SegmentExceptTable[[#This Row],[kW Boundary]],kwpeak_norm<SegmentExceptTable[[#This Row],[kW Exception]]),AND(kwhmo_norm>SegmentExceptTable[[#This Row],[Boundary M/L]],kwhmo_norm<SegmentExceptTable[[#This Row],[Exception M/L]])),1,0)","v":0}]
[null,null,null,null,null,null,null,null,null,null,null,null,null,null,null,null,null,null,null,null,null,null,null,null,null,null,null,null,null,null,null,null,null,null,null,null,null,null,null,null,null,null,null,null,null,null,null,587,{"$f":"SegmentExceptTable[[#This Row],[Numbers]]/$BP$4","v":0.97996661101836391},{"$f":"SegmentExceptTable[[#This Row],[kW Boundary]]+(0.05*SegmentExceptTable[[#This Row],[kW Boundary]])","v":1.0289649415692821},{"$f":"$BP$6*SegmentExceptTable[[#This Row],[kW Boundary]]+$BP$7","v":1.4058320446873946},{"$f":"$BP$8*SegmentExceptTable[[#This Row],[kW Boundary]]+$BP$9","v":-0.48061964288432901},{"$f":"SegmentExceptTable[[#This Row],[Boundary S/M]]+(0.05*SegmentExceptTable[[#This Row],[Boundary S/M]])","v":-0.50465062502854541},{"$f":"IF(AND(AND(kwpeak_norm>SegmentExceptTable[[#This Row],[kW Boundary]],kwpeak_norm<SegmentExceptTable[[#This Row],[kW Exception]]),AND(kwhmo_norm>SegmentExceptTable[[#This Row],[Boundary S/M]],kwhmo_norm<SegmentExceptTable[[#This Row],[Exception S/M]])),1,0)","v":0},{"$f":"$BP$10*SegmentExceptTable[[#This Row],[kW Boundary]]+$BP$11","v":1.9404325474642663},{"$f":"$BP$12*SegmentExceptTable[[#This Row],[kW Boundary]]+$BP$13","v":0.10680746926026613},{"$f":"SegmentExceptTable[[#This Row],[Boundary M/L]]+(0.05*SegmentExceptTable[[#This Row],[Boundary M/L]])","v":0.11214784272327943},{"$f":"IF(AND(AND(kwpeak_norm>SegmentExceptTable[[#This Row],[kW Boundary]],kwpeak_norm<SegmentExceptTable[[#This Row],[kW Exception]]),AND(kwhmo_norm>SegmentExceptTable[[#This Row],[Boundary M/L]],kwhmo_norm<SegmentExceptTable[[#This Row],[Exception M/L]])),1,0)","v":0}]
[null,null,null,null,null,null,null,null,null,null,null,null,null,null,null,null,null,null,null,null,null,null,null,null,null,null,null,null,null,null,null,null,null,null,null,null,null,null,null,null,null,null,null,null,null,null,null,588,{"$f":"SegmentExceptTable[[#This Row],[Numbers]]/$BP$4","v":0.98163606010016691},{"$f":"SegmentExceptTable[[#This Row],[kW Boundary]]+(0.05*SegmentExceptTable[[#This Row],[kW Boundary]])","v":1.0307178631051752},{"$f":"$BP$6*SegmentExceptTable[[#This Row],[kW Boundary]]+$BP$7","v":1.4082588749827609},{"$f":"$BP$8*SegmentExceptTable[[#This Row],[kW Boundary]]+$BP$9","v":-0.48176807927975984},{"$f":"SegmentExceptTable[[#This Row],[Boundary S/M]]+(0.05*SegmentExceptTable[[#This Row],[Boundary S/M]])","v":-0.50585648324374788},{"$f":"IF(AND(AND(kwpeak_norm>SegmentExceptTable[[#This Row],[kW Boundary]],kwpeak_norm<SegmentExceptTable[[#This Row],[kW Exception]]),AND(kwhmo_norm>SegmentExceptTable[[#This Row],[Boundary S/M]],kwhmo_norm<SegmentExceptTable[[#This Row],[Exception S/M]])),1,0)","v":0},{"$f":"$BP$10*SegmentExceptTable[[#This Row],[kW Boundary]]+$BP$11","v":1.9439596011065046},{"$f":"$BP$12*SegmentExceptTable[[#This Row],[kW Boundary]]+$BP$13","v":0.10601727423647739},{"$f":"SegmentExceptTable[[#This Row],[Boundary M/L]]+(0.05*SegmentExceptTable[[#This Row],[Boundary M/L]])","v":0.11131813794830125},{"$f":"IF(AND(AND(kwpeak_norm>SegmentExceptTable[[#This Row],[kW Boundary]],kwpeak_norm<SegmentExceptTable[[#This Row],[kW Exception]]),AND(kwhmo_norm>SegmentExceptTable[[#This Row],[Boundary M/L]],kwhmo_norm<SegmentExceptTable[[#This Row],[Exception M/L]])),1,0)","v":0}]
[null,null,null,null,null,null,null,null,null,null,null,null,null,null,null,null,null,null,null,null,null,null,null,null,null,null,null,null,null,null,null,null,null,null,null,null,null,null,null,null,null,null,null,null,null,null,null,589,{"$f":"SegmentExceptTable[[#This Row],[Numbers]]/$BP$4","v":0.98330550918196991},{"$f":"SegmentExceptTable[[#This Row],[kW Boundary]]+(0.05*SegmentExceptTable[[#This Row],[kW Boundary]])","v":1.0324707846410683},{"$f":"$BP$6*SegmentExceptTable[[#This Row],[kW Boundary]]+$BP$7","v":1.4106857052781272},{"$f":"$BP$8*SegmentExceptTable[[#This Row],[kW Boundary]]+$BP$9","v":-0.48291651567519078},{"$f":"SegmentExceptTable[[#This Row],[Boundary S/M]]+(0.05*SegmentExceptTable[[#This Row],[Boundary S/M]])","v":-0.50706234145895035},{"$f":"IF(AND(AND(kwpeak_norm>SegmentExceptTable[[#This Row],[kW Boundary]],kwpeak_norm<SegmentExceptTable[[#This Row],[kW Exception]]),AND(kwhmo_norm>SegmentExceptTable[[#This Row],[Boundary S/M]],kwhmo_norm<SegmentExceptTable[[#This Row],[Exception S/M]])),1,0)","v":0},{"$f":"$BP$10*SegmentExceptTable[[#This Row],[kW Boundary]]+$BP$11","v":1.9474866547487433},{"$f":"$BP$12*SegmentExceptTable[[#This Row],[kW Boundary]]+$BP$13","v":0.10522707921268865},{"$f":"SegmentExceptTable[[#This Row],[Boundary M/L]]+(0.05*SegmentExceptTable[[#This Row],[Boundary M/L]])","v":0.11048843317332308},{"$f":"IF(AND(AND(kwpeak_norm>SegmentExceptTable[[#This Row],[kW Boundary]],kwpeak_norm<SegmentExceptTable[[#This Row],[kW Exception]]),AND(kwhmo_norm>SegmentExceptTable[[#This Row],[Boundary M/L]],kwhmo_norm<SegmentExceptTable[[#This Row],[Exception M/L]])),1,0)","v":0}]
[null,null,null,null,null,null,null,null,null,null,null,null,null,null,null,null,null,null,null,null,null,null,null,null,null,null,null,null,null,null,null,null,null,null,null,null,null,null,null,null,null,null,null,null,null,null,null,590,{"$f":"SegmentExceptTable[[#This Row],[Numbers]]/$BP$4","v":0.9849749582637729},{"$f":"SegmentExceptTable[[#This Row],[kW Boundary]]+(0.05*SegmentExceptTable[[#This Row],[kW Boundary]])","v":1.0342237061769615},{"$f":"$BP$6*SegmentExceptTable[[#This Row],[kW Boundary]]+$BP$7","v":1.4131125355734935},{"$f":"$BP$8*SegmentExceptTable[[#This Row],[kW Boundary]]+$BP$9","v":-0.48406495207062161},{"$f":"SegmentExceptTable[[#This Row],[Boundary S/M]]+(0.05*SegmentExceptTable[[#This Row],[Boundary S/M]])","v":-0.50826819967415271},{"$f":"IF(AND(AND(kwpeak_norm>SegmentExceptTable[[#This Row],[kW Boundary]],kwpeak_norm<SegmentExceptTable[[#This Row],[kW Exception]]),AND(kwhmo_norm>SegmentExceptTable[[#This Row],[Boundary S/M]],kwhmo_norm<SegmentExceptTable[[#This Row],[Exception S/M]])),1,0)","v":0},{"$f":"$BP$10*SegmentExceptTable[[#This Row],[kW Boundary]]+$BP$11","v":1.9510137083909815},{"$f":"$BP$12*SegmentExceptTable[[#This Row],[kW Boundary]]+$BP$13","v":0.1044368841888999},{"$f":"SegmentExceptTable[[#This Row],[Boundary M/L]]+(0.05*SegmentExceptTable[[#This Row],[Boundary M/L]])","v":0.1096587283983449},{"$f":"IF(AND(AND(kwpeak_norm>SegmentExceptTable[[#This Row],[kW Boundary]],kwpeak_norm<SegmentExceptTable[[#This Row],[kW Exception]]),AND(kwhmo_norm>SegmentExceptTable[[#This Row],[Boundary M/L]],kwhmo_norm<SegmentExceptTable[[#This Row],[Exception M/L]])),1,0)","v":0}]
[null,null,null,null,null,null,null,null,null,null,null,null,null,null,null,null,null,null,null,null,null,null,null,null,null,null,null,null,null,null,null,null,null,null,null,null,null,null,null,null,null,null,null,null,null,null,null,591,{"$f":"SegmentExceptTable[[#This Row],[Numbers]]/$BP$4","v":0.98664440734557601},{"$f":"SegmentExceptTable[[#This Row],[kW Boundary]]+(0.05*SegmentExceptTable[[#This Row],[kW Boundary]])","v":1.0359766277128548},{"$f":"$BP$6*SegmentExceptTable[[#This Row],[kW Boundary]]+$BP$7","v":1.4155393658688598},{"$f":"$BP$8*SegmentExceptTable[[#This Row],[kW Boundary]]+$BP$9","v":-0.48521338846605255},{"$f":"SegmentExceptTable[[#This Row],[Boundary S/M]]+(0.05*SegmentExceptTable[[#This Row],[Boundary S/M]])","v":-0.50947405788935518},{"$f":"IF(AND(AND(kwpeak_norm>SegmentExceptTable[[#This Row],[kW Boundary]],kwpeak_norm<SegmentExceptTable[[#This Row],[kW Exception]]),AND(kwhmo_norm>SegmentExceptTable[[#This Row],[Boundary S/M]],kwhmo_norm<SegmentExceptTable[[#This Row],[Exception S/M]])),1,0)","v":0},{"$f":"$BP$10*SegmentExceptTable[[#This Row],[kW Boundary]]+$BP$11","v":1.9545407620332202},{"$f":"$BP$12*SegmentExceptTable[[#This Row],[kW Boundary]]+$BP$13","v":0.10364668916511111},{"$f":"SegmentExceptTable[[#This Row],[Boundary M/L]]+(0.05*SegmentExceptTable[[#This Row],[Boundary M/L]])","v":0.10882902362336666},{"$f":"IF(AND(AND(kwpeak_norm>SegmentExceptTable[[#This Row],[kW Boundary]],kwpeak_norm<SegmentExceptTable[[#This Row],[kW Exception]]),AND(kwhmo_norm>SegmentExceptTable[[#This Row],[Boundary M/L]],kwhmo_norm<SegmentExceptTable[[#This Row],[Exception M/L]])),1,0)","v":0}]
[null,null,null,null,null,null,null,null,null,null,null,null,null,null,null,null,null,null,null,null,null,null,null,null,null,null,null,null,null,null,null,null,null,null,null,null,null,null,null,null,null,null,null,null,null,null,null,592,{"$f":"SegmentExceptTable[[#This Row],[Numbers]]/$BP$4","v":0.98831385642737901},{"$f":"SegmentExceptTable[[#This Row],[kW Boundary]]+(0.05*SegmentExceptTable[[#This Row],[kW Boundary]])","v":1.0377295492487479},{"$f":"$BP$6*SegmentExceptTable[[#This Row],[kW Boundary]]+$BP$7","v":1.417966196164226},{"$f":"$BP$8*SegmentExceptTable[[#This Row],[kW Boundary]]+$BP$9","v":-0.48636182486148338},{"$f":"SegmentExceptTable[[#This Row],[Boundary S/M]]+(0.05*SegmentExceptTable[[#This Row],[Boundary S/M]])","v":-0.51067991610455754},{"$f":"IF(AND(AND(kwpeak_norm>SegmentExceptTable[[#This Row],[kW Boundary]],kwpeak_norm<SegmentExceptTable[[#This Row],[kW Exception]]),AND(kwhmo_norm>SegmentExceptTable[[#This Row],[Boundary S/M]],kwhmo_norm<SegmentExceptTable[[#This Row],[Exception S/M]])),1,0)","v":0},{"$f":"$BP$10*SegmentExceptTable[[#This Row],[kW Boundary]]+$BP$11","v":1.958067815675459},{"$f":"$BP$12*SegmentExceptTable[[#This Row],[kW Boundary]]+$BP$13","v":0.10285649414132231},{"$f":"SegmentExceptTable[[#This Row],[Boundary M/L]]+(0.05*SegmentExceptTable[[#This Row],[Boundary M/L]])","v":0.10799931884838843},{"$f":"IF(AND(AND(kwpeak_norm>SegmentExceptTable[[#This Row],[kW Boundary]],kwpeak_norm<SegmentExceptTable[[#This Row],[kW Exception]]),AND(kwhmo_norm>SegmentExceptTable[[#This Row],[Boundary M/L]],kwhmo_norm<SegmentExceptTable[[#This Row],[Exception M/L]])),1,0)","v":0}]
[null,null,null,null,null,null,null,null,null,null,null,null,null,null,null,null,null,null,null,null,null,null,null,null,null,null,null,null,null,null,null,null,null,null,null,null,null,null,null,null,null,null,null,null,null,null,null,593,{"$f":"SegmentExceptTable[[#This Row],[Numbers]]/$BP$4","v":0.98998330550918201},{"$f":"SegmentExceptTable[[#This Row],[kW Boundary]]+(0.05*SegmentExceptTable[[#This Row],[kW Boundary]])","v":1.0394824707846411},{"$f":"$BP$6*SegmentExceptTable[[#This Row],[kW Boundary]]+$BP$7","v":1.4203930264595923},{"$f":"$BP$8*SegmentExceptTable[[#This Row],[kW Boundary]]+$BP$9","v":-0.48751026125691432},{"$f":"SegmentExceptTable[[#This Row],[Boundary S/M]]+(0.05*SegmentExceptTable[[#This Row],[Boundary S/M]])","v":-0.51188577431976001},{"$f":"IF(AND(AND(kwpeak_norm>SegmentExceptTable[[#This Row],[kW Boundary]],kwpeak_norm<SegmentExceptTable[[#This Row],[kW Exception]]),AND(kwhmo_norm>SegmentExceptTable[[#This Row],[Boundary S/M]],kwhmo_norm<SegmentExceptTable[[#This Row],[Exception S/M]])),1,0)","v":0},{"$f":"$BP$10*SegmentExceptTable[[#This Row],[kW Boundary]]+$BP$11","v":1.9615948693176977},{"$f":"$BP$12*SegmentExceptTable[[#This Row],[kW Boundary]]+$BP$13","v":0.10206629911753357},{"$f":"SegmentExceptTable[[#This Row],[Boundary M/L]]+(0.05*SegmentExceptTable[[#This Row],[Boundary M/L]])","v":0.10716961407341025},{"$f":"IF(AND(AND(kwpeak_norm>SegmentExceptTable[[#This Row],[kW Boundary]],kwpeak_norm<SegmentExceptTable[[#This Row],[kW Exception]]),AND(kwhmo_norm>SegmentExceptTable[[#This Row],[Boundary M/L]],kwhmo_norm<SegmentExceptTable[[#This Row],[Exception M/L]])),1,0)","v":0}]
[null,null,null,null,null,null,null,null,null,null,null,null,null,null,null,null,null,null,null,null,null,null,null,null,null,null,null,null,null,null,null,null,null,null,null,null,null,null,null,null,null,null,null,null,null,null,null,594,{"$f":"SegmentExceptTable[[#This Row],[Numbers]]/$BP$4","v":0.99165275459098501},{"$f":"SegmentExceptTable[[#This Row],[kW Boundary]]+(0.05*SegmentExceptTable[[#This Row],[kW Boundary]])","v":1.0412353923205342},{"$f":"$BP$6*SegmentExceptTable[[#This Row],[kW Boundary]]+$BP$7","v":1.4228198567549586},{"$f":"$BP$8*SegmentExceptTable[[#This Row],[kW Boundary]]+$BP$9","v":-0.48865869765234515},{"$f":"SegmentExceptTable[[#This Row],[Boundary S/M]]+(0.05*SegmentExceptTable[[#This Row],[Boundary S/M]])","v":-0.51309163253496237},{"$f":"IF(AND(AND(kwpeak_norm>SegmentExceptTable[[#This Row],[kW Boundary]],kwpeak_norm<SegmentExceptTable[[#This Row],[kW Exception]]),AND(kwhmo_norm>SegmentExceptTable[[#This Row],[Boundary S/M]],kwhmo_norm<SegmentExceptTable[[#This Row],[Exception S/M]])),1,0)","v":0},{"$f":"$BP$10*SegmentExceptTable[[#This Row],[kW Boundary]]+$BP$11","v":1.9651219229599359},{"$f":"$BP$12*SegmentExceptTable[[#This Row],[kW Boundary]]+$BP$13","v":0.10127610409374482},{"$f":"SegmentExceptTable[[#This Row],[Boundary M/L]]+(0.05*SegmentExceptTable[[#This Row],[Boundary M/L]])","v":0.10633990929843207},{"$f":"IF(AND(AND(kwpeak_norm>SegmentExceptTable[[#This Row],[kW Boundary]],kwpeak_norm<SegmentExceptTable[[#This Row],[kW Exception]]),AND(kwhmo_norm>SegmentExceptTable[[#This Row],[Boundary M/L]],kwhmo_norm<SegmentExceptTable[[#This Row],[Exception M/L]])),1,0)","v":0}]
[null,null,null,null,null,null,null,null,null,null,null,null,null,null,null,null,null,null,null,null,null,null,null,null,null,null,null,null,null,null,null,null,null,null,null,null,null,null,null,null,null,null,null,null,null,null,null,595,{"$f":"SegmentExceptTable[[#This Row],[Numbers]]/$BP$4","v":0.99332220367278801},{"$f":"SegmentExceptTable[[#This Row],[kW Boundary]]+(0.05*SegmentExceptTable[[#This Row],[kW Boundary]])","v":1.0429883138564273},{"$f":"$BP$6*SegmentExceptTable[[#This Row],[kW Boundary]]+$BP$7","v":1.4252466870503249},{"$f":"$BP$8*SegmentExceptTable[[#This Row],[kW Boundary]]+$BP$9","v":-0.48980713404777598},{"$f":"SegmentExceptTable[[#This Row],[Boundary S/M]]+(0.05*SegmentExceptTable[[#This Row],[Boundary S/M]])","v":-0.51429749075016473},{"$f":"IF(AND(AND(kwpeak_norm>SegmentExceptTable[[#This Row],[kW Boundary]],kwpeak_norm<SegmentExceptTable[[#This Row],[kW Exception]]),AND(kwhmo_norm>SegmentExceptTable[[#This Row],[Boundary S/M]],kwhmo_norm<SegmentExceptTable[[#This Row],[Exception S/M]])),1,0)","v":0},{"$f":"$BP$10*SegmentExceptTable[[#This Row],[kW Boundary]]+$BP$11","v":1.9686489766021746},{"$f":"$BP$12*SegmentExceptTable[[#This Row],[kW Boundary]]+$BP$13","v":0.10048590906995608},{"$f":"SegmentExceptTable[[#This Row],[Boundary M/L]]+(0.05*SegmentExceptTable[[#This Row],[Boundary M/L]])","v":0.10551020452345389},{"$f":"IF(AND(AND(kwpeak_norm>SegmentExceptTable[[#This Row],[kW Boundary]],kwpeak_norm<SegmentExceptTable[[#This Row],[kW Exception]]),AND(kwhmo_norm>SegmentExceptTable[[#This Row],[Boundary M/L]],kwhmo_norm<SegmentExceptTable[[#This Row],[Exception M/L]])),1,0)","v":0}]
[null,null,null,null,null,null,null,null,null,null,null,null,null,null,null,null,null,null,null,null,null,null,null,null,null,null,null,null,null,null,null,null,null,null,null,null,null,null,null,null,null,null,null,null,null,null,null,596,{"$f":"SegmentExceptTable[[#This Row],[Numbers]]/$BP$4","v":0.994991652754591},{"$f":"SegmentExceptTable[[#This Row],[kW Boundary]]+(0.05*SegmentExceptTable[[#This Row],[kW Boundary]])","v":1.0447412353923204},{"$f":"$BP$6*SegmentExceptTable[[#This Row],[kW Boundary]]+$BP$7","v":1.4276735173456911},{"$f":"$BP$8*SegmentExceptTable[[#This Row],[kW Boundary]]+$BP$9","v":-0.49095557044320692},{"$f":"SegmentExceptTable[[#This Row],[Boundary S/M]]+(0.05*SegmentExceptTable[[#This Row],[Boundary S/M]])","v":-0.51550334896536731},{"$f":"IF(AND(AND(kwpeak_norm>SegmentExceptTable[[#This Row],[kW Boundary]],kwpeak_norm<SegmentExceptTable[[#This Row],[kW Exception]]),AND(kwhmo_norm>SegmentExceptTable[[#This Row],[Boundary S/M]],kwhmo_norm<SegmentExceptTable[[#This Row],[Exception S/M]])),1,0)","v":0},{"$f":"$BP$10*SegmentExceptTable[[#This Row],[kW Boundary]]+$BP$11","v":1.9721760302444129},{"$f":"$BP$12*SegmentExceptTable[[#This Row],[kW Boundary]]+$BP$13","v":9.9695714046167339E-2},{"$f":"SegmentExceptTable[[#This Row],[Boundary M/L]]+(0.05*SegmentExceptTable[[#This Row],[Boundary M/L]])","v":0.10468049974847571},{"$f":"IF(AND(AND(kwpeak_norm>SegmentExceptTable[[#This Row],[kW Boundary]],kwpeak_norm<SegmentExceptTable[[#This Row],[kW Exception]]),AND(kwhmo_norm>SegmentExceptTable[[#This Row],[Boundary M/L]],kwhmo_norm<SegmentExceptTable[[#This Row],[Exception M/L]])),1,0)","v":0}]
[null,null,null,null,null,null,null,null,null,null,null,null,null,null,null,null,null,null,null,null,null,null,null,null,null,null,null,null,null,null,null,null,null,null,null,null,null,null,null,null,null,null,null,null,null,null,null,597,{"$f":"SegmentExceptTable[[#This Row],[Numbers]]/$BP$4","v":0.996661101836394},{"$f":"SegmentExceptTable[[#This Row],[kW Boundary]]+(0.05*SegmentExceptTable[[#This Row],[kW Boundary]])","v":1.0464941569282138},{"$f":"$BP$6*SegmentExceptTable[[#This Row],[kW Boundary]]+$BP$7","v":1.4301003476410574},{"$f":"$BP$8*SegmentExceptTable[[#This Row],[kW Boundary]]+$BP$9","v":-0.49210400683863775},{"$f":"SegmentExceptTable[[#This Row],[Boundary S/M]]+(0.05*SegmentExceptTable[[#This Row],[Boundary S/M]])","v":-0.51670920718056967},{"$f":"IF(AND(AND(kwpeak_norm>SegmentExceptTable[[#This Row],[kW Boundary]],kwpeak_norm<SegmentExceptTable[[#This Row],[kW Exception]]),AND(kwhmo_norm>SegmentExceptTable[[#This Row],[Boundary S/M]],kwhmo_norm<SegmentExceptTable[[#This Row],[Exception S/M]])),1,0)","v":0},{"$f":"$BP$10*SegmentExceptTable[[#This Row],[kW Boundary]]+$BP$11","v":1.9757030838866516},{"$f":"$BP$12*SegmentExceptTable[[#This Row],[kW Boundary]]+$BP$13","v":9.8905519022378541E-2},{"$f":"SegmentExceptTable[[#This Row],[Boundary M/L]]+(0.05*SegmentExceptTable[[#This Row],[Boundary M/L]])","v":0.10385079497349747},{"$f":"IF(AND(AND(kwpeak_norm>SegmentExceptTable[[#This Row],[kW Boundary]],kwpeak_norm<SegmentExceptTable[[#This Row],[kW Exception]]),AND(kwhmo_norm>SegmentExceptTable[[#This Row],[Boundary M/L]],kwhmo_norm<SegmentExceptTable[[#This Row],[Exception M/L]])),1,0)","v":0}]
[null,null,null,null,null,null,null,null,null,null,null,null,null,null,null,null,null,null,null,null,null,null,null,null,null,null,null,null,null,null,null,null,null,null,null,null,null,null,null,null,null,null,null,null,null,null,null,598,{"$f":"SegmentExceptTable[[#This Row],[Numbers]]/$BP$4","v":0.998330550918197},{"$f":"SegmentExceptTable[[#This Row],[kW Boundary]]+(0.05*SegmentExceptTable[[#This Row],[kW Boundary]])","v":1.0482470784641069},{"$f":"$BP$6*SegmentExceptTable[[#This Row],[kW Boundary]]+$BP$7","v":1.4325271779364237},{"$f":"$BP$8*SegmentExceptTable[[#This Row],[kW Boundary]]+$BP$9","v":-0.49325244323406869},{"$f":"SegmentExceptTable[[#This Row],[Boundary S/M]]+(0.05*SegmentExceptTable[[#This Row],[Boundary S/M]])","v":-0.51791506539577215},{"$f":"IF(AND(AND(kwpeak_norm>SegmentExceptTable[[#This Row],[kW Boundary]],kwpeak_norm<SegmentExceptTable[[#This Row],[kW Exception]]),AND(kwhmo_norm>SegmentExceptTable[[#This Row],[Boundary S/M]],kwhmo_norm<SegmentExceptTable[[#This Row],[Exception S/M]])),1,0)","v":0},{"$f":"$BP$10*SegmentExceptTable[[#This Row],[kW Boundary]]+$BP$11","v":1.9792301375288899},{"$f":"$BP$12*SegmentExceptTable[[#This Row],[kW Boundary]]+$BP$13","v":9.8115323998589798E-2},{"$f":"SegmentExceptTable[[#This Row],[Boundary M/L]]+(0.05*SegmentExceptTable[[#This Row],[Boundary M/L]])","v":0.10302109019851929},{"$f":"IF(AND(AND(kwpeak_norm>SegmentExceptTable[[#This Row],[kW Boundary]],kwpeak_norm<SegmentExceptTable[[#This Row],[kW Exception]]),AND(kwhmo_norm>SegmentExceptTable[[#This Row],[Boundary M/L]],kwhmo_norm<SegmentExceptTable[[#This Row],[Exception M/L]])),1,0)","v":0}]
[null,null,null,null,null,null,null,null,null,null,null,null,null,null,null,null,null,null,null,null,null,null,null,null,null,null,null,null,null,null,null,null,null,null,null,null,null,null,null,null,null,null,null,null,null,null,null,599,{"$f":"SegmentExceptTable[[#This Row],[Numbers]]/$BP$4","v":1},{"$f":"SegmentExceptTable[[#This Row],[kW Boundary]]+(0.05*SegmentExceptTable[[#This Row],[kW Boundary]])","v":1.05},{"$f":"$BP$6*SegmentExceptTable[[#This Row],[kW Boundary]]+$BP$7","v":1.43495400823179},{"$f":"$BP$8*SegmentExceptTable[[#This Row],[kW Boundary]]+$BP$9","v":-0.49440087962949952},{"$f":"SegmentExceptTable[[#This Row],[Boundary S/M]]+(0.05*SegmentExceptTable[[#This Row],[Boundary S/M]])","v":-0.51912092361097451},{"$f":"IF(AND(AND(kwpeak_norm>SegmentExceptTable[[#This Row],[kW Boundary]],kwpeak_norm<SegmentExceptTable[[#This Row],[kW Exception]]),AND(kwhmo_norm>SegmentExceptTable[[#This Row],[Boundary S/M]],kwhmo_norm<SegmentExceptTable[[#This Row],[Exception S/M]])),1,0)","v":0},{"$f":"$BP$10*SegmentExceptTable[[#This Row],[kW Boundary]]+$BP$11","v":1.9827571911711286},{"$f":"$BP$12*SegmentExceptTable[[#This Row],[kW Boundary]]+$BP$13","v":9.7325128974801056E-2},{"$f":"SegmentExceptTable[[#This Row],[Boundary M/L]]+(0.05*SegmentExceptTable[[#This Row],[Boundary M/L]])","v":0.10219138542354111},{"$f":"IF(AND(AND(kwpeak_norm>SegmentExceptTable[[#This Row],[kW Boundary]],kwpeak_norm<SegmentExceptTable[[#This Row],[kW Exception]]),AND(kwhmo_norm>SegmentExceptTable[[#This Row],[Boundary M/L]],kwhmo_norm<SegmentExceptTable[[#This Row],[Exception M/L]])),1,0)","v":0}]
[null,null,null,null,null,null,null,null,null,null,null,null,null,null,null,null,null,null,null,null,null,null,null,null,null,null,null,null,null,null,null,null,null,null,null,null,null,null,null,null,null,null,null,null,null,null,null,1200,{"$f":"SegmentExceptTable[[#This Row],[Numbers]]/$BP$4","v":2.003338898163606},{"$f":"SegmentExceptTable[[#This Row],[kW Boundary]]+(0.05*SegmentExceptTable[[#This Row],[kW Boundary]])","v":2.1035058430717863},{"$f":"$BP$6*SegmentExceptTable[[#This Row],[kW Boundary]]+$BP$7","v":2.893479015746923},{"$f":"$BP$8*SegmentExceptTable[[#This Row],[kW Boundary]]+$BP$9","v":-1.184611153283456},{"$f":"SegmentExceptTable[[#This Row],[Boundary S/M]]+(0.05*SegmentExceptTable[[#This Row],[Boundary S/M]])","v":-1.2438417109476287},{"$f":"IF(AND(AND(kwpeak_norm>SegmentExceptTable[[#This Row],[kW Boundary]],kwpeak_norm<SegmentExceptTable[[#This Row],[kW Exception]]),AND(kwhmo_norm>SegmentExceptTable[[#This Row],[Boundary S/M]],kwhmo_norm<SegmentExceptTable[[#This Row],[Exception S/M]])),1,0)","v":0},{"$f":"$BP$10*SegmentExceptTable[[#This Row],[kW Boundary]]+$BP$11","v":4.1025164301564851},{"$f":"$BP$12*SegmentExceptTable[[#This Row],[kW Boundary]]+$BP$13","v":-0.37758208032224183},{"$f":"SegmentExceptTable[[#This Row],[Boundary M/L]]+(0.05*SegmentExceptTable[[#This Row],[Boundary M/L]])","v":-0.39646118433835392},{"$f":"IF(AND(AND(kwpeak_norm>SegmentExceptTable[[#This Row],[kW Boundary]],kwpeak_norm<SegmentExceptTable[[#This Row],[kW Exception]]),AND(kwhmo_norm>SegmentExceptTable[[#This Row],[Boundary M/L]],kwhmo_norm<SegmentExceptTable[[#This Row],[Exception M/L]])),1,0)","v":0}]

{"sheet":"CodeTables","index":10,"n_rows":109,"n_cols":36,"rows_kept":109,"cut":false,"hidden":true,"merged":[]}
[null,"IDAHO",null,null,null,null,null,null,null,null,null,"UTAH",null,null,null,null,null,null,null,null,null,null,null,null,"WYOMING"]
[null,"ID - Whole Bldg - R/MR",null,null,null,null,"ID - Whole Bldg - NC",null,null,null,null,"UT - Whole Bldg - R/MR",null,null,null,null,null,null,null,"UT - Whole Bldg - NC",null,null,null,null,"WY - Whole Bldg - R/MR",null,null,null,null,"WY - Whole Bldg - NC"]
[null,"IECC 2018, Section 405, Table C405.3.2(1)",null,null,null,null,"IECC 2018, Section 406.3",null,null,null,null,"IECC 2021, Section 405",null,null,null,null,null,null,null,"IECC 2021, Section 406",null,null,null,null,"IECC 2009. Section 505",null,null,null,null,"IECC 2009, Section 506"]
[null,"Space Types","LPD","RTF Type","HVAC Factor",null,"Space Types","LPD","RTF Type","HVAC Factor",null,"Space Types","LPD","RTF Type","HVAC Factor","Sq Ft","Conf","Map",null,"Space Types","LPD","RTF Type","HVAC Factor",null,"Space Types","LPD","RTF Type","HVAC Factor",null,"Space Types","LPD","RTF Type","HVAC Factor"]
[null,"Automotive Facility",0.71,"Automotive Repair",-0.14000000000000001,null,"Automotive Facility",0.63900000000000001,"Automotive Repair",-0.14000000000000001,null,"Automotive Facility",0.75,"Automotive Repair",-0.14000000000000001,null,null,null,null,"Automotive Facility",0.67500000000000004,"Automotive Repair",-0.14000000000000001,null,"Automotive Facility",0.9,"Automotive Repair",-0.14000000000000001,null,"Automotive Facility",0.9,"Automotive Repair",-0.14000000000000001,null,null,{"$f":"MATCH(LPD_UT_Whole_NC_Table[[#This Row],[Space Types]],DDF_Table[Space Type],0)","v":4}]
[null,"Convention Center",0.76,"Assembly",0.05,null,"Convention Center",0.68400000000000005,"Assembly",0.05,null,"Convention Center",0.64,"Assembly",0.05,null,null,null,null,"Convention Center",0.57600000000000007,"Assembly",0.05,null,"Convention Center",1.2,"Assembly",0.05,null,"Convention Center",1.2,"Assembly",0.05,null,null,{"$f":"MATCH(LPD_UT_Whole_NC_Table[[#This Row],[Space Types]],DDF_Table[Space Type],0)","v":16}]
[null,"Courthouse",0.9,"Assembly",0.05,null,"Courthouse",0.81,"Assembly",0.05,null,"Courthouse",0.79,"Assembly",0.05,null,null,null,null,"Courthouse",0.71100000000000008,"Assembly",0.05,null,"Courthouse",1.2,"Assembly",0.05,null,"Courthouse",1.2,"Assembly",0.05,null,null,{"$f":"MATCH(LPD_UT_Whole_NC_Table[[#This Row],[Space Types]],DDF_Table[Space Type],0)","v":21}]
[null,"Dining: Bar Lounge/Leisure",0.9,"Restaurant",-0.05,null,"Dining: Bar Lounge/Leisure",0.81,"Restaurant",-0.05,null,"Dining: Bar Lounge/Leisure",0.8,"Restaurant",-0.05,5500,1,null,null,"Dining: Bar Lounge/Leisure",0.72000000000000008,"Restaurant",-0.05,null,"Dining: Bar Lounge/Leisure",1.3,"Restaurant",-0.05,null,"Dining: Bar Lounge/Leisure",1.3,"Restaurant",-0.05,null,null,{"$f":"MATCH(LPD_UT_Whole_NC_Table[[#This Row],[Space Types]],DDF_Table[Space Type],0)","v":24}]
[null,"Dining: Cafeteria/Fastfood",0.79,"Restaurant",-0.05,null,"Dining: Cafeteria/Fastfood",0.71100000000000008,"Restaurant",-0.05,null,"Dining: Cafeteria/Fastfood",0.76,"Restaurant",-0.05,2500,1,null,null,"Dining: Cafeteria/Fastfood",0.68400000000000005,"Restaurant",-0.05,null,"Dining: Cafeteria/Fastfood",1.4,"Restaurant",-0.05,null,"Dining: Cafeteria/Fastfood",1.4,"Restaurant",-0.05,null,null,{"$f":"MATCH(LPD_UT_Whole_NC_Table[[#This Row],[Space Types]],DDF_Table[Space Type],0)","v":25}]
[null,"Dining: Family",0.78,"Restaurant",-0.05,null,"Dining: Family",0.70200000000000007,"Restaurant",-0.05,null,"Dining: Family",0.71,"Restaurant",-0.05,5500,1,null,null,"Dining: Family",0.63900000000000001,"Restaurant",-0.05,null,"Dining: Family",1.6,"Restaurant",-0.05,null,"Dining: Family",1.6,"Restaurant",-0.05,null,null,{"$f":"MATCH(LPD_UT_Whole_NC_Table[[#This Row],[Space Types]],DDF_Table[Space Type],0)","v":26}]
[null,"Dormitory",0.61,"Lodging",-0.01,null,"Dormitory",0.54900000000000004,"Lodging",-0.01,null,"Dormitory",0.53,"Lodging",-0.01,33740,null,null,null,"Dormitory",0.47700000000000004,"Lodging",-0.01,null,"Dormitory",1,"Lodging",-0.01,null,"Dormitory",1,"Lodging",-0.01,null,null,{"$f":"MATCH(LPD_UT_Whole_NC_Table[[#This Row],[Space Types]],DDF_Table[Space Type],0)","v":27}]
[null,"Exercise Center",0.65,"Other",0.03,null,"Exercise Center",0.58500000000000008,"Other",0.03,null,"Exercise Center",0.72,"Other",0.03,null,null,null,null,"Exercise Center",0.64800000000000002,"Other",0.03,null,"Exercise Center",1,"Other",0.03,null,"Exercise Center",1,"Other",0.03,null,null,{"$f":"MATCH(LPD_UT_Whole_NC_Table[[#This Row],[Space Types]],DDF_Table[Space Type],0)","v":29}]
[null,"Fire Station",0.53,"Other",0.03,null,"Fire Station",0.47700000000000004,"Other",0.03,null,"Fire Station",0.56000000000000005,"Other",0.03,null,null,null,null,"Fire Station",0.50400000000000011,"Other",0.03,null,"Gymnasium",1.1000000000000001,"Assembly",0.05,null,"Gymnasium",1.1000000000000001,"Assembly",0.05,null,null,{"$f":"MATCH(LPD_UT_Whole_NC_Table[[#This Row],[Space Types]],DDF_Table[Space Type],0)","v":35}]
[null,"Gymnasium",0.68,"Assembly",0.05,null,"Gymnasium",0.6120000000000001,"Assembly",0.05,null,"Gymnasium",0.76,"Assembly",0.05,null,null,null,null,"Gymnasium",0.68400000000000005,"Assembly",0.05,null,"Health Care – Clinic",1,"Other Health, Nursing, Medical Clinic",0.16,null,"Health Care – Clinic",1,"Other Health, Nursing, Medical Clinic",0.16,null,null,{"$f":"MATCH(LPD_UT_Whole_NC_Table[[#This Row],[Space Types]],DDF_Table[Space Type],0)","v":46}]
[null,"Health Care – Clinic",0.82,"Other Health, Nursing, Medical Clinic",0.16,null,"Health Care – Clinic",0.73799999999999999,"Other Health, Nursing, Medical Clinic",0.16,null,"Health Care – Clinic",0.81,"Other Health, Nursing, Medical Clinic",0.16,null,null,null,null,"Health Care – Clinic",0.72900000000000009,"Other Health, Nursing, Medical Clinic",0.16,null,"Hospital",1.2,"Hospital",-0.12,null,"Hospital",1.2,"Hospital",-0.12,null,null,{"$f":"MATCH(LPD_UT_Whole_NC_Table[[#This Row],[Space Types]],DDF_Table[Space Type],0)","v":48}]
[null,"Hospital",1.05,"Hospital",-0.12,null,"Hospital",0.94500000000000006,"Hospital",-0.12,null,"Hospital",0.96,"Hospital",-0.12,null,null,null,null,"Hospital",0.86399999999999999,"Hospital",-0.12,null,"Hotel",1,"Lodging",-0.01,null,"Hotel",1,"Lodging",-0.01,null,null,{"$f":"MATCH(LPD_UT_Whole_NC_Table[[#This Row],[Space Types]],DDF_Table[Space Type],0)","v":59}]
[null,"Hotel/Motel",0.75,"Lodging",-0.01,null,"Hotel/Motel",0.67500000000000004,"Lodging",-0.01,null,"Hotel/Motel",0.56000000000000005,"Lodging",-0.01,null,null,null,null,"Hotel/Motel",0.50400000000000011,"Lodging",-0.01,null,"Library",1.3,"Library",7.0000000000000007E-2,null,"Library",1.3,"Library",7.0000000000000007E-2,null,null,{"$f":"MATCH(LPD_UT_Whole_NC_Table[[#This Row],[Space Types]],DDF_Table[Space Type],0)","v":64}]
[null,"Library",0.78,"Library",7.0000000000000007E-2,null,"Library",0.70200000000000007,"Library",7.0000000000000007E-2,null,"Library",0.83,"Library",7.0000000000000007E-2,null,null,null,null,"Library",0.747,"Library",7.0000000000000007E-2,null,"Manufacturing Facility",1.3,"Manufacturing",-0.1,null,"Manufacturing Facility",1.3,"Manufacturing",-0.1,null,null,{"$f":"MATCH(LPD_UT_Whole_NC_Table[[#This Row],[Space Types]],DDF_Table[Space Type],0)","v":74}]
[null,"Manufacturing Facility",0.9,"Manufacturing",-0.1,null,"Manufacturing Facility",0.81,"Manufacturing",-0.1,null,"Manufacturing Facility",0.82,"Manufacturing",-0.1,null,null,null,null,"Manufacturing Facility",0.73799999999999999,"Manufacturing",-0.1,null,"Motel",1,"Lodging",-0.01,null,"Motel",1,"Lodging",-0.01,null,null,{"$f":"MATCH(LPD_UT_Whole_NC_Table[[#This Row],[Space Types]],DDF_Table[Space Type],0)","v":86}]
[null,"Motion Picture Theater",0.83,"Assembly",0.05,null,"Motion Picture Theater",0.747,"Assembly",0.05,null,"Motion Picture Theater",0.44,"Assembly",0.05,null,null,null,null,"Motion Picture Theater",0.39600000000000002,"Assembly",0.05,null,"Motion Picture Theater",1.2,"Assembly",0.05,null,"Motion Picture Theater",1.2,"Assembly",0.05,null,null,{"$f":"MATCH(LPD_UT_Whole_NC_Table[[#This Row],[Space Types]],DDF_Table[Space Type],0)","v":93}]
[null,"Multifamily",0.68,"Lodging",-0.01,null,"Multifamily",0.6120000000000001,"Lodging",-0.01,null,"Multifamily",0.45,"Lodging",-0.01,null,null,null,null,"Multifamily",0.40500000000000003,"Lodging",-0.01,null,"Multifamily",0.7,"Lodging",-0.01,null,"Multifamily",0.7,"Lodging",-0.01,null,null,{"$f":"MATCH(LPD_UT_Whole_NC_Table[[#This Row],[Space Types]],DDF_Table[Space Type],0)","v":94}]
[null,"Museum",1.06,"Assembly",0.05,null,"Museum",0.95400000000000007,"Assembly",0.05,null,"Museum",0.55000000000000004,"Assembly",0.05,null,null,null,null,"Museum",0.49500000000000005,"Assembly",0.05,null,"Museum",1.1000000000000001,"Assembly",0.05,null,"Museum",1.1000000000000001,"Assembly",0.05,null,null,{"$f":"MATCH(LPD_UT_Whole_NC_Table[[#This Row],[Space Types]],DDF_Table[Space Type],0)","v":95}]
[null,"Office",0.79,"Office ",-0.06,null,"Office",0.71100000000000008,"Office ",-0.06,null,"Office",0.64,"Office ",-0.06,null,null,null,null,"Office",0.57600000000000007,"Office ",-0.06,null,"Office",1,"Office ",-0.06,null,"Office",1,"Office ",-0.06,null,null,{"$f":"MATCH(LPD_UT_Whole_NC_Table[[#This Row],[Space Types]],DDF_Table[Space Type],0)","v":96}]
[null,"Parking Garage",0.15,null,0,null,"Parking Garage",0.13500000000000001,null,null,null,"Parking Garage",0.18,null,0,null,null,null,null,"Parking Garage",0.16200000000000001,null,0,null,"Parking Garage",0.3,null,0,null,"Parking Garage",0.3,null,0,null,null,{"$f":"MATCH(LPD_UT_Whole_NC_Table[[#This Row],[Space Types]],DDF_Table[Space Type],0)","v":103}]
[null,"Penitentiary",0.75,"Lodging",-0.01,null,"Penitentiary",0.67500000000000004,"Lodging",-0.01,null,"Penitentiary",0.69,"Lodging",-0.01,null,null,null,null,"Penitentiary",0.621,"Lodging",-0.01,null,"Penitentiary",1,"Lodging",-0.01,null,"Penitentiary",1,"Lodging",-0.01,null,null,{"$f":"MATCH(LPD_UT_Whole_NC_Table[[#This Row],[Space Types]],DDF_Table[Space Type],0)","v":107}]
[null,"Performing Arts Theater",1.18,"Assembly",0.05,null,"Performing Arts Theater",1.0620000000000001,"Assembly",0.05,null,"Performing Arts Theater",0.84,"Assembly",0.05,null,null,null,null,"Performing Arts Theater",0.75600000000000001,"Assembly",0.05,null,"Performing Arts Theater",1.6,"Assembly",0.05,null,"Performing Arts Theater",1.6,"Assembly",0.05,null,null,{"$f":"MATCH(LPD_UT_Whole_NC_Table[[#This Row],[Space Types]],DDF_Table[Space Type],0)","v":112}]
[null,"Police",0.8,"Office ",-0.06,null,"Police",0.72000000000000008,"Office ",-0.06,null,"Police",0.66,"Office ",-0.06,null,null,null,null,"Police",0.59400000000000008,"Office ",-0.06,null,"Police",1,"Office ",-0.06,null,"Police",1,"Office ",-0.06,null,null,{"$f":"MATCH(LPD_UT_Whole_NC_Table[[#This Row],[Space Types]],DDF_Table[Space Type],0)","v":115}]
[null,"Post Office",0.67,"Retail",0.01,null,"Post Office",0.1203,"Retail",0.01,null,"Post Office",0.65,"Retail",0.01,null,null,null,null,"Post Office",0.58500000000000008,"Retail",0.01,null,"Post Office",1.1000000000000001,"Retail",0.01,null,"Post Office",1.1000000000000001,"Retail",0.01,null,null,{"$f":"MATCH(LPD_UT_Whole_NC_Table[[#This Row],[Space Types]],DDF_Table[Space Type],0)","v":116}]
[null,"Religious Building",0.94,"Assembly",0.05,null,"Religious Building",0.84599999999999997,"Assembly",0.05,null,"Religious Building",0.67,"Assembly",0.05,null,null,null,null,"Religious Building",0.1203,"Assembly",0.05,null,"Religious Building",1.3,"Assembly",0.05,null,"Religious Building",1.3,"Assembly",0.05,null,null,{"$f":"MATCH(LPD_UT_Whole_NC_Table[[#This Row],[Space Types]],DDF_Table[Space Type],0)","v":118}]
[null,"Retail",1.06,"Retail",0.01,null,"Retail",0.95400000000000007,"Retail",0.01,null,"Retail",0.84,"Retail",0.01,null,null,null,null,"Retail",0.75600000000000001,"Retail",0.01,null,"Retail",1.5,"Retail",0.01,null,"Retail",1.5,"Retail",0.01,null,null,{"$f":"MATCH(LPD_UT_Whole_NC_Table[[#This Row],[Space Types]],DDF_Table[Space Type],0)","v":122}]
[null,"School/University",0.81,"College or University",7.0000000000000007E-2,null,"School/University",0.72900000000000009,"College or University",7.0000000000000007E-2,null,"School/University",0.72,"College or University",7.0000000000000007E-2,null,null,null,null,"School/University",0.64800000000000002,"College or University",7.0000000000000007E-2,null,"School/University",1.2,"College or University",7.0000000000000007E-2,null,"School/University",1.2,"College or University",7.0000000000000007E-2,null,null,{"$f":"MATCH(LPD_UT_Whole_NC_Table[[#This Row],[Space Types]],DDF_Table[Space Type],0)","v":130}]
[null,"Sports Arena",0.87,"Assembly",0.05,null,"Sports Arena",0.78300000000000003,"Assembly",0.05,null,"Sports Arena",0.76,"Assembly",0.05,null,null,null,null,"Sports Arena",0.68400000000000005,"Assembly",0.05,null,"Sports Arena",1.1000000000000001,"Assembly",0.05,null,"Sports Arena",1.1000000000000001,"Assembly",0.05,null,null,{"$f":"MATCH(LPD_UT_Whole_NC_Table[[#This Row],[Space Types]],DDF_Table[Space Type],0)","v":131}]
[null,"Town Hall",0.8,"Assembly",0.05,null,"Town Hall",0.72000000000000008,"Assembly",0.05,null,"Town Hall",0.69,"Assembly",0.05,null,null,null,null,"Town Hall",0.621,"Assembly",0.05,null,"Town Hall",1.1000000000000001,"Assembly",0.05,null,"Town Hall",1.1000000000000001,"Assembly",0.05,null,null,{"$f":"MATCH(LPD_UT_Whole_NC_Table[[#This Row],[Space Types]],DDF_Table[Space Type],0)","v":142}]
[null,"Transportation",0.61,"Other",0.03,null,"Transportation",0.54900000000000004,"Other",0.03,null,"Transportation",0.5,"Other",0.03,null,null,null,null,"Transportation",0.45,"Other",0.03,null,"Transportation",1,"Other",0.03,null,"Transportation",1,"Other",0.03,null,null,{"$f":"MATCH(LPD_UT_Whole_NC_Table[[#This Row],[Space Types]],DDF_Table[Space Type],0)","v":143}]
[null,"Warehouse",0.48,"Warehouse",0.02,null,"Warehouse",0.432,"Warehouse",0.02,null,"Warehouse",0.45,"Warehouse",0.02,null,null,null,null,"Warehouse",0.40500000000000003,"Warehouse",0.02,null,"Warehouse",0.8,"Warehouse",0.02,null,"Warehouse",0.8,"Warehouse",0.02,null,null,{"$f":"MATCH(LPD_UT_Whole_NC_Table[[#This Row],[Space Types]],DDF_Table[Space Type],0)","v":150}]
[null,"Workshop",0.9,"Manufacturing",-0.1,null,"Workshop",0.81,"Manufacturing",-0.1,null,"Workshop",0.91,"Manufacturing",-0.1,null,null,null,null,"Workshop",0.81900000000000006,"Manufacturing",-0.1,null,"Workshop",1.4,"Manufacturing",-0.1,null,"Workshop",1.4,"Manufacturing",-0.1,null,null,{"$f":"MATCH(LPD_UT_Whole_NC_Table[[#This Row],[Space Types]],DDF_Table[Space Type],0)","v":155}]
[]
[]
[null,"ID - Multi Spaces - R/MR",null,null,null,null,"ID - Multi Spaces - NC",null,null,null,null,"UT - Multi Spaces - R/MR",null,null,null,null,null,null,null,"UT - Multi Spaces - NC",null,null,null,null,"WY - Multi Spaces - R/MR",null,null,null,null,"WY - Multi Spaces - NC"]
[null,"IECC 2018, Section 405, Table C405.3.2(1)",null,null,null,null,"IECC 2018, Section 406.3",null,null,null,null,"IECC 2021, Section 405",null,null,null,null,null,null,null,"IECC 2021, Section 406",null,null,null,null,"IECC 2009. Section 505",null,null,null,null,"IECC 2009, Section 506"]
[null,"Space Types","LPD","RTF Type","HVAC Factor",null,"Space Types","LPD","RTF Type","HVAC Factor",null,"Space Types","LPD","RTF Type","HVAC Factor",null,null,null,null,"Space Types","LPD","RTF Type","HVAC Factor",null,"Space Types","LPD","RTF Type","HVAC Factor",null,"Space Types","LPD","RTF Type","HVAC Factor"]
[null,"Automotive Facility",0.71,"Automotive Repair",-0.14000000000000001,null,"Automotive Facility",0.63900000000000001,"Automotive Repair",-0.14000000000000001,null,"Automotive Facility",0.75,"Automotive Repair",-0.14000000000000001,null,null,null,null,"Automotive Facility",0.67500000000000004,"Automotive Repair",-0.14000000000000001,null,"Automotive Facility",0.9,"Automotive Repair",-0.14000000000000001,null,"Automotive Facility",0.9,"Automotive Repair",-0.14000000000000001,null,null,{"$f":"MATCH(LPD_UT_Multi_NC_Table[[#This Row],[Space Types]],DDF_Table[Space Type],0)","v":4}]
[null,"Convention Center",0.76,"Assembly",0.05,null,"Convention Center",0.68400000000000005,"Assembly",0.05,null,"Convention Center",0.61,"Assembly",0.05,null,null,null,null,"Convention Center",0.54900000000000004,"Assembly",0.05,null,"Convention Center",1.2,"Assembly",0.05,null,"Convention Center",1.2,"Assembly",0.05,null,null,{"$f":"MATCH(LPD_UT_Multi_NC_Table[[#This Row],[Space Types]],DDF_Table[Space Type],0)","v":16}]
[null,"Courthouse",0.9,"Assembly",0.05,null,"Courthouse",0.81,"Assembly",0.05,null,"Courthouse",1.2,"Assembly",0.05,null,null,null,null,"Courthouse",1.08,"Assembly",0.05,null,"Courthouse",1.2,"Assembly",0.05,null,"Courthouse",1.2,"Assembly",0.05,null,null,{"$f":"MATCH(LPD_UT_Multi_NC_Table[[#This Row],[Space Types]],DDF_Table[Space Type],0)","v":21}]
[null,"Dining: Bar Lounge/Leisure",0.9,"Restaurant",-0.05,null,"Dining: Bar Lounge/Leisure",0.81,"Restaurant",-0.05,null,"Dining: Bar Lounge/Leisure",0.86,"Restaurant",-0.05,null,null,null,null,"Dining: Bar Lounge/Leisure",0.77400000000000002,"Restaurant",-0.05,null,"Dining: Bar Lounge/Leisure",1.3,"Restaurant",-0.05,null,"Dining: Bar Lounge/Leisure",1.3,"Restaurant",-0.05,null,null,{"$f":"MATCH(LPD_UT_Multi_NC_Table[[#This Row],[Space Types]],DDF_Table[Space Type],0)","v":24}]
[null,"Dining: Cafeteria/Fastfood",0.79,"Restaurant",-0.05,null,"Dining: Cafeteria/Fastfood",0.71100000000000008,"Restaurant",-0.05,null,"Dining: Cafeteria/Fastfood",0.4,"Restaurant",-0.05,null,null,null,null,"Dining: Cafeteria/Fastfood",0.36000000000000004,"Restaurant",-0.05,null,"Dining: Cafeteria/Fastfood",1.4,"Restaurant",-0.05,null,"Dining: Cafeteria/Fastfood",1.4,"Restaurant",-0.05,null,null,{"$f":"MATCH(LPD_UT_Multi_NC_Table[[#This Row],[Space Types]],DDF_Table[Space Type],0)","v":25}]
[null,"Dining: Family",0.78,"Restaurant",-0.05,null,"Dining: Family",0.70200000000000007,"Restaurant",-0.05,null,"Dining: Family",0.6,"Restaurant",-0.05,null,null,null,null,"Dining: Family",0.54,"Restaurant",-0.05,null,"Dining: Family",1.6,"Restaurant",-0.05,null,"Dining: Family",1.6,"Restaurant",-0.05,null,null,{"$f":"MATCH(LPD_UT_Multi_NC_Table[[#This Row],[Space Types]],DDF_Table[Space Type],0)","v":26}]
[null,"Dormitory",0.61,"Lodging",-0.01,null,"Dormitory",0.54900000000000004,"Lodging",-0.01,null,"Dormitory",0.5,"Lodging",-0.01,null,null,null,null,"Dormitory",0.45,"Lodging",-0.01,null,"Dormitory",1,"Lodging",-0.01,null,"Dormitory",1,"Lodging",-0.01,null,null,{"$f":"MATCH(LPD_UT_Multi_NC_Table[[#This Row],[Space Types]],DDF_Table[Space Type],0)","v":27}]
[null,"Exercise Center",0.65,"Other",0.03,null,"Exercise Center",0.58500000000000008,"Other",0.03,null,"Exercise Center",0.9,"Other",0.03,null,null,null,null,"Exercise Center",0.81,"Other",0.03,null,"Exercise Center",1,"Other",0.03,null,"Exercise Center",1,"Other",0.03,null,null,{"$f":"MATCH(LPD_UT_Multi_NC_Table[[#This Row],[Space Types]],DDF_Table[Space Type],0)","v":29}]
[null,"Fire Station",0.53,"Other",0.03,null,"Fire Station",0.47700000000000004,"Other",0.03,null,"Fire Station",0.56000000000000005,"Other",0.03,null,null,null,null,"Fire Station",0.50400000000000011,"Other",0.03,null,"Gymnasium",1.1000000000000001,"Assembly",0.05,null,"Gymnasium",1.1000000000000001,"Assembly",0.05,null,null,{"$f":"MATCH(LPD_UT_Multi_NC_Table[[#This Row],[Space Types]],DDF_Table[Space Type],0)","v":35}]
[null,"Gymnasium",0.68,"Assembly",0.05,null,"Gymnasium",0.6120000000000001,"Assembly",0.05,null,"Fire Station: Garage",0.52,"Other",0.03,null,null,null,null,"Fire Station: Garage",0.46800000000000003,"Other",0.03,null,"Health Care – Clinic",1,"Other Health, Nursing, Medical Clinic",0.16,null,"Health Care – Clinic",1,"Other Health, Nursing, Medical Clinic",0.16,null,null,{"$f":"MATCH(LPD_UT_Multi_NC_Table[[#This Row],[Space Types]],DDF_Table[Space Type],0)","v":36}]
[null,"Health Care – Clinic",0.82,"Other Health, Nursing, Medical Clinic",0.16,null,"Health Care – Clinic",0.73799999999999999,"Other Health, Nursing, Medical Clinic",0.16,null,"Fire Station: Sleeping Quarters",0.23,"Other",0.03,null,null,null,null,"Fire Station: Sleeping Quarters",0.20700000000000002,"Other",0.03,null,"Hospital",1.2,"Hospital",-0.12,null,"Hospital",1.2,"Hospital",-0.12,null,null,{"$f":"MATCH(LPD_UT_Multi_NC_Table[[#This Row],[Space Types]],DDF_Table[Space Type],0)","v":37}]
[null,"Hospital",1.05,"Hospital",-0.12,null,"Hospital",0.94500000000000006,"Hospital",-0.12,null,"Gymnasium",0.76,"Assembly",0.05,null,null,null,null,"Gymnasium",0.68400000000000005,"Assembly",0.05,null,"Hotel",1,"Lodging",-0.01,null,"Hotel",1,"Lodging",-0.01,null,null,{"$f":"MATCH(LPD_UT_Multi_NC_Table[[#This Row],[Space Types]],DDF_Table[Space Type],0)","v":46}]
[null,"Hotel/Motel",0.75,"Lodging",-0.01,null,"Hotel/Motel",0.67500000000000004,"Lodging",-0.01,null,"Health Care – Clinic",0.81,"Other Health, Nursing, Medical Clinic",0.16,null,null,null,null,"Health Care – Clinic",0.72900000000000009,"Other Health, Nursing, Medical Clinic",0.16,null,"Library",1.3,"Library",7.0000000000000007E-2,null,"Library",1.3,"Library",7.0000000000000007E-2,null,null,{"$f":"MATCH(LPD_UT_Multi_NC_Table[[#This Row],[Space Types]],DDF_Table[Space Type],0)","v":48}]
[null,"Library",0.78,"Library",7.0000000000000007E-2,null,"Library",0.70200000000000007,"Library",7.0000000000000007E-2,null,"Healthcare: Exam Room",1.4,"Other Health, Nursing, Medical Clinic",0.16,null,null,null,null,"Healthcare: Exam Room",1.26,"Other Health, Nursing, Medical Clinic",0.16,null,"Manufacturing Facility",1.3,"Manufacturing",-0.1,null,"Manufacturing Facility",1.3,"Manufacturing",-0.1,null,null,{"$f":"MATCH(LPD_UT_Multi_NC_Table[[#This Row],[Space Types]],DDF_Table[Space Type],0)","v":49}]
[null,"Manufacturing Facility",0.9,"Manufacturing",-0.1,null,"Manufacturing Facility",0.81,"Manufacturing",-0.1,null,"Healthcare: Imaging Room",0.94,"Other Health, Nursing, Medical Clinic",0.16,null,null,null,null,"Healthcare: Imaging Room",0.84599999999999997,"Other Health, Nursing, Medical Clinic",0.16,null,"Motel",1,"Lodging",-0.01,null,"Motel",1,"Lodging",-0.01,null,null,{"$f":"MATCH(LPD_UT_Multi_NC_Table[[#This Row],[Space Types]],DDF_Table[Space Type],0)","v":50}]
[null,"Motion Picture Theater",0.83,"Assembly",0.05,null,"Motion Picture Theater",0.747,"Assembly",0.05,null,"Healthcare: Lounge/Breakroom",0.42,"Other Health, Nursing, Medical Clinic",0.16,null,null,null,null,"Healthcare: Lounge/Breakroom",0.378,"Other Health, Nursing, Medical Clinic",0.16,null,"Motion Picture Theater",1.2,"Assembly",0.05,null,"Motion Picture Theater",1.2,"Assembly",0.05,null,null,{"$f":"MATCH(LPD_UT_Multi_NC_Table[[#This Row],[Space Types]],DDF_Table[Space Type],0)","v":51}]
[null,"Multifamily",0.68,"Lodging",-0.01,null,"Multifamily",0.6120000000000001,"Lodging",-0.01,null,"Healthcare: Nursery",0.92,"Other Health, Nursing, Medical Clinic",0.16,null,null,null,null,"Healthcare: Nursery",0.82800000000000007,"Other Health, Nursing, Medical Clinic",0.16,null,"Multifamily",0.7,"Lodging",-0.01,null,"Multifamily",0.7,"Lodging",-0.01,null,null,{"$f":"MATCH(LPD_UT_Multi_NC_Table[[#This Row],[Space Types]],DDF_Table[Space Type],0)","v":52}]
[null,"Museum",1.06,"Assembly",0.05,null,"Museum",0.95400000000000007,"Assembly",0.05,null,"Healthcare: Nurse Station",1.17,"Other Health, Nursing, Medical Clinic",0.16,null,null,null,null,"Healthcare: Nurse Station",1.0529999999999999,"Other Health, Nursing, Medical Clinic",0.16,null,"Museum",1.1000000000000001,"Assembly",0.05,null,"Museum",1.1000000000000001,"Assembly",0.05,null,null,{"$f":"MATCH(LPD_UT_Multi_NC_Table[[#This Row],[Space Types]],DDF_Table[Space Type],0)","v":53}]
[null,"Office",0.79,"Office ",-0.06,null,"Office",0.71100000000000008,"Office ",-0.06,null,"Healthcare: Operating Room",2.2599999999999998,"Other Health, Nursing, Medical Clinic",0.16,null,null,null,null,"Healthcare: Operating Room",2.0339999999999998,"Other Health, Nursing, Medical Clinic",0.16,null,"Office",1,"Office ",-0.06,null,"Office",1,"Office ",-0.06,null,null,{"$f":"MATCH(LPD_UT_Multi_NC_Table[[#This Row],[Space Types]],DDF_Table[Space Type],0)","v":54}]
[null,"Parking Garage",0.15,null,0,null,"Parking Garage",0.13500000000000001,null,null,null,"Healthcare: Patient Room",0.68,"Other Health, Nursing, Medical Clinic",0.16,null,null,null,null,"Healthcare: Patient Room",0.6120000000000001,"Other Health, Nursing, Medical Clinic",0.16,null,"Parking Garage",0.3,null,0,null,"Parking Garage",0.3,null,0,null,null,{"$f":"MATCH(LPD_UT_Multi_NC_Table[[#This Row],[Space Types]],DDF_Table[Space Type],0)","v":55}]
[null,"Penitentiary",0.75,"Lodging",-0.01,null,"Penitentiary",0.67500000000000004,"Lodging",-0.01,null,"Healthcare: Physical Therapy",0.91,"Other Health, Nursing, Medical Clinic",0.16,null,null,null,null,"Healthcare: Physical Therapy",0.81900000000000006,"Other Health, Nursing, Medical Clinic",0.16,null,"Penitentiary",1,"Lodging",-0.01,null,"Penitentiary",1,"Lodging",-0.01,null,null,{"$f":"MATCH(LPD_UT_Multi_NC_Table[[#This Row],[Space Types]],DDF_Table[Space Type],0)","v":56}]
[null,"Performing Arts Theater",1.18,"Assembly",0.05,null,"Performing Arts Theater",1.0620000000000001,"Assembly",0.05,null,"Healthcare: Recovery Room",1.25,"Other Health, Nursing, Medical Clinic",0.16,null,null,null,null,"Healthcare: Recovery Room",1.125,"Other Health, Nursing, Medical Clinic",0.16,null,"Performing Arts Theater",1.6,"Assembly",0.05,null,"Performing Arts Theater",1.6,"Assembly",0.05,null,null,{"$f":"MATCH(LPD_UT_Multi_NC_Table[[#This Row],[Space Types]],DDF_Table[Space Type],0)","v":57}]
[null,"Police",0.8,"Office ",-0.06,null,"Police",0.72000000000000008,"Office ",-0.06,null,"Healthcare: Supply Room",0.62,"Other Health, Nursing, Medical Clinic",0.16,null,null,null,null,"Healthcare: Supply Room",0.55800000000000005,"Other Health, Nursing, Medical Clinic",0.16,null,"Police",1,"Office ",-0.06,null,"Police",1,"Office ",-0.06,null,null,{"$f":"MATCH(LPD_UT_Multi_NC_Table[[#This Row],[Space Types]],DDF_Table[Space Type],0)","v":58}]
[null,"Post Office",0.67,"Retail",0.01,null,"Post Office",0.1203,"Retail",0.01,null,"Hospital",0.71,"Hospital",-0.12,null,null,null,null,"Hospital",0.63900000000000001,"Hospital",-0.12,null,"Post Office",1.1000000000000001,"Retail",0.01,null,"Post Office",1.1000000000000001,"Retail",0.01,null,null,{"$f":"MATCH(LPD_UT_Multi_NC_Table[[#This Row],[Space Types]],DDF_Table[Space Type],0)","v":59}]
[null,"Religious Building",0.94,"Assembly",0.05,null,"Religious Building",0.84599999999999997,"Assembly",0.05,null,"Hotel/Motel",0.51,"Lodging",-0.01,null,null,null,null,"Hotel/Motel",0.45900000000000002,"Lodging",-0.01,null,"Religious Building",1.3,"Assembly",0.05,null,"Religious Building",1.3,"Assembly",0.05,null,null,{"$f":"MATCH(LPD_UT_Multi_NC_Table[[#This Row],[Space Types]],DDF_Table[Space Type],0)","v":64}]
[null,"Retail",1.06,"Retail",0.01,null,"Retail",0.95400000000000007,"Retail",0.01,null,"Library",0.96,"Library",7.0000000000000007E-2,null,null,null,null,"Library",0.86399999999999999,"Library",7.0000000000000007E-2,null,"Retail",1.5,"Retail",0.01,null,"Retail",1.5,"Retail",0.01,null,null,{"$f":"MATCH(LPD_UT_Multi_NC_Table[[#This Row],[Space Types]],DDF_Table[Space Type],0)","v":74}]
[null,"School/University",0.81,"College or University",7.0000000000000007E-2,null,"School/University",0.72900000000000009,"College or University",7.0000000000000007E-2,null,"Detailed Manufacturing Area",0.8,"Manufacturing",-0.1,null,null,null,null,"Detailed Manufacturing Area",0.72000000000000008,"Manufacturing",-0.1,null,"School/University",1.2,"College or University",7.0000000000000007E-2,null,"School/University",1.2,"College or University",7.0000000000000007E-2,null,null,{"$f":"MATCH(LPD_UT_Multi_NC_Table[[#This Row],[Space Types]],DDF_Table[Space Type],0)","v":87}]
[null,"Sports Arena",0.87,"Assembly",0.05,null,"Sports Arena",0.78300000000000003,"Assembly",0.05,null,"Manufacturing Facility",0.82,"Manufacturing",-0.1,null,null,null,null,"Manufacturing Facility",0.73799999999999999,"Manufacturing",-0.1,null,"Sports Arena",1.1000000000000001,"Assembly",0.05,null,"Sports Arena",1.1000000000000001,"Assembly",0.05,null,null,{"$f":"MATCH(LPD_UT_Multi_NC_Table[[#This Row],[Space Types]],DDF_Table[Space Type],0)","v":86}]
[null,"Town Hall",0.8,"Assembly",0.05,null,"Town Hall",0.72000000000000008,"Assembly",0.05,null,"Manufacturing: Equipment Room",0.76,"Manufacturing",-0.1,null,null,null,null,"Manufacturing: Equipment Room",0.68400000000000005,"Manufacturing",-0.1,null,"Town Hall",1.1000000000000001,"Assembly",0.05,null,"Town Hall",1.1000000000000001,"Assembly",0.05,null,null,{"$f":"MATCH(LPD_UT_Multi_NC_Table[[#This Row],[Space Types]],DDF_Table[Space Type],0)","v":88}]
[null,"Transportation",0.61,"Other",0.03,null,"Transportation",0.54900000000000004,"Other",0.03,null,"Manufacturing: High Bay Area",1.24,"Manufacturing",-0.1,null,null,null,null,"Manufacturing: High Bay Area",1.1160000000000001,"Manufacturing",-0.1,null,"Transportation",1,"Other",0.03,null,"Transportation",1,"Other",0.03,null,null,{"$f":"MATCH(LPD_UT_Multi_NC_Table[[#This Row],[Space Types]],DDF_Table[Space Type],0)","v":89}]
[null,"Warehouse",0.48,"Warehouse",0.02,null,"Warehouse",0.432,"Warehouse",0.02,null,"Manufacturing: Low Bay Area",0.86,"Manufacturing",-0.1,null,null,null,null,"Manufacturing: Low Bay Area",0.77400000000000002,"Manufacturing",-0.1,null,"Warehouse",0.8,"Warehouse",0.02,null,"Warehouse",0.8,"Warehouse",0.02,null,null,{"$f":"MATCH(LPD_UT_Multi_NC_Table[[#This Row],[Space Types]],DDF_Table[Space Type],0)","v":90}]
[null,"Workshop",0.9,"Manufacturing",-0.1,null,"Workshop",0.81,"Manufacturing",-0.1,null,"Motion Picture Theater",0.27,"Assembly",0.05,null,null,null,null,"Motion Picture Theater",0.24300000000000002,"Assembly",0.05,null,"Workshop",1.4,"Manufacturing",-0.1,null,"Workshop",1.4,"Manufacturing",-0.1,null,null,{"$f":"MATCH(LPD_UT_Multi_NC_Table[[#This Row],[Space Types]],DDF_Table[Space Type],0)","v":93}]
[null,null,null,null,null,null,null,null,null,null,null,"Multifamily",0.45,"Lodging",-0.01,null,null,null,null,"Multifamily",0.40500000000000003,"Lodging",-0.01,null,null,null,null,null,null,null,null,null,null,null,null,{"$f":"MATCH(LPD_UT_Multi_NC_Table[[#This Row],[Space Types]],DDF_Table[Space Type],0)","v":94}]
[null,null,null,null,null,null,null,null,null,null,null,"Museum",0.31,"Assembly",0.05,null,null,null,null,"Museum",0.27900000000000003,"Assembly",0.05,null,null,null,null,null,null,null,null,null,null,null,null,{"$f":"MATCH(LPD_UT_Multi_NC_Table[[#This Row],[Space Types]],DDF_Table[Space Type],0)","v":95}]
[null,null,null,null,null,null,null,null,null,null,null,"Office",0.64,"Office ",-0.06,null,null,null,null,"Office",0.57600000000000007,"Office ",-0.06,null,null,null,null,null,null,null,null,null,null,null,null,{"$f":"MATCH(LPD_UT_Multi_NC_Table[[#This Row],[Space Types]],DDF_Table[Space Type],0)","v":96}]
[null,null,null,null,null,null,null,null,null,null,null,"Office: Open Plan",0.61,"Office ",-0.06,null,null,null,null,"Office: Open Plan",0.54900000000000004,"Office ",-0.06,null,null,null,null,null,null,null,null,null,null,null,null,{"$f":"MATCH(LPD_UT_Multi_NC_Table[[#This Row],[Space Types]],DDF_Table[Space Type],0)","v":100}]
[null,null,null,null,null,null,null,null,null,null,null,"Office: Enclosed Plan",0.74,"Office ",-0.06,null,null,null,null,"Office: Enclosed Plan",0.66600000000000004,"Office ",-0.06,null,null,null,null,null,null,null,null,null,null,null,null,{"$f":"MATCH(LPD_UT_Multi_NC_Table[[#This Row],[Space Types]],DDF_Table[Space Type],0)","v":101}]
[null,null,null,null,null,null,null,null,null,null,null,"Parking Garage",0.15,null,0,null,null,null,null,"Parking Garage",0.13500000000000001,null,0,null,null,null,null,null,null,null,null,null,null,null,null,{"$f":"MATCH(LPD_UT_Multi_NC_Table[[#This Row],[Space Types]],DDF_Table[Space Type],0)","v":103}]
[null,null,null,null,null,null,null,null,null,null,null,"Penitentiary",0.69,"Lodging",-0.01,null,null,null,null,"Penitentiary",0.621,"Lodging",-0.01,null,null,null,null,null,null,null,null,null,null,null,null,{"$f":"MATCH(LPD_UT_Multi_NC_Table[[#This Row],[Space Types]],DDF_Table[Space Type],0)","v":107}]
[null,null,null,null,null,null,null,null,null,null,null,"Penitentiary: Audience",0.67,"Lodging",-0.01,null,null,null,null,"Penitentiary: Audience",0.1203,"Lodging",-0.01,null,null,null,null,null,null,null,null,null,null,null,null,{"$f":"MATCH(LPD_UT_Multi_NC_Table[[#This Row],[Space Types]],DDF_Table[Space Type],0)","v":109}]
[null,null,null,null,null,null,null,null,null,null,null,"Penitentiary: Classroom/Training Room",0.89,"Lodging",-0.01,null,null,null,null,"Penitentiary: Classroom/Training Room",0.80100000000000005,"Lodging",-0.01,null,null,null,null,null,null,null,null,null,null,null,null,{"$f":"MATCH(LPD_UT_Multi_NC_Table[[#This Row],[Space Types]],DDF_Table[Space Type],0)","v":110}]
[null,null,null,null,null,null,null,null,null,null,null,"Penitentiary: Dining",0.42,"Restaurant",-0.05,null,null,null,null,"Penitentiary: Dining",0.378,"Restaurant",-0.05,null,null,null,null,null,null,null,null,null,null,null,null,{"$f":"MATCH(LPD_UT_Multi_NC_Table[[#This Row],[Space Types]],DDF_Table[Space Type],0)","v":111}]
[null,null,null,null,null,null,null,null,null,null,null,"Performing Arts Theater",1.1599999999999999,"Assembly",0.05,null,null,null,null,"Performing Arts Theater",1.044,"Assembly",0.05,null,null,null,null,null,null,null,null,null,null,null,null,{"$f":"MATCH(LPD_UT_Multi_NC_Table[[#This Row],[Space Types]],DDF_Table[Space Type],0)","v":112}]
[null,null,null,null,null,null,null,null,null,null,null,"Performing Arts Theater: Lobby",1.25,"Assembly",0.05,null,null,null,null,"Performing Arts Theater: Lobby",1.125,"Assembly",0.05,null,null,null,null,null,null,null,null,null,null,null,null,{"$f":"MATCH(LPD_UT_Multi_NC_Table[[#This Row],[Space Types]],DDF_Table[Space Type],0)","v":113}]
[null,null,null,null,null,null,null,null,null,null,null,"Performing Arts Theater: Dressing Room",0.41,"Assembly",0.05,null,null,null,null,"Performing Arts Theater: Dressing Room",0.36899999999999999,"Assembly",0.05,null,null,null,null,null,null,null,null,null,null,null,null,{"$f":"MATCH(LPD_UT_Multi_NC_Table[[#This Row],[Space Types]],DDF_Table[Space Type],0)","v":114}]
[null,null,null,null,null,null,null,null,null,null,null,"Police",0.66,"Office ",-0.06,null,null,null,null,"Police",0.59400000000000008,"Office ",-0.06,null,null,null,null,null,null,null,null,null,null,null,null,{"$f":"MATCH(LPD_UT_Multi_NC_Table[[#This Row],[Space Types]],DDF_Table[Space Type],0)","v":115}]
[null,null,null,null,null,null,null,null,null,null,null,"Post Office",0.65,"Retail",0.01,null,null,null,null,"Post Office",0.58500000000000008,"Retail",0.01,null,null,null,null,null,null,null,null,null,null,null,null,{"$f":"MATCH(LPD_UT_Multi_NC_Table[[#This Row],[Space Types]],DDF_Table[Space Type],0)","v":116}]
[null,null,null,null,null,null,null,null,null,null,null,"Post Office: Sorting Area",0.76,"Retail",0.01,null,null,null,null,"Post Office: Sorting Area",0.68400000000000005,"Retail",0.01,null,null,null,null,null,null,null,null,null,null,null,null,{"$f":"MATCH(LPD_UT_Multi_NC_Table[[#This Row],[Space Types]],DDF_Table[Space Type],0)","v":117}]
[null,null,null,null,null,null,null,null,null,null,null,"Religious Building",0.72,"Assembly",0.05,null,null,null,null,"Religious Building",0.64800000000000002,"Assembly",0.05,null,null,null,null,null,null,null,null,null,null,null,null,{"$f":"MATCH(LPD_UT_Multi_NC_Table[[#This Row],[Space Types]],DDF_Table[Space Type],0)","v":118}]
[null,null,null,null,null,null,null,null,null,null,null,"Retail",0.84,"Retail",0.01,null,null,null,null,"Retail",0.75600000000000001,"Retail",0.01,null,null,null,null,null,null,null,null,null,null,null,null,{"$f":"MATCH(LPD_UT_Multi_NC_Table[[#This Row],[Space Types]],DDF_Table[Space Type],0)","v":122}]
[null,null,null,null,null,null,null,null,null,null,null,"Retail: Dressing Room",0.51,"Retail",0.01,null,null,null,null,"Retail: Dressing Room",0.45900000000000002,"Retail",0.01,null,null,null,null,null,null,null,null,null,null,null,null,{"$f":"MATCH(LPD_UT_Multi_NC_Table[[#This Row],[Space Types]],DDF_Table[Space Type],0)","v":126}]
[null,null,null,null,null,null,null,null,null,null,null,"Retail: Mall Concourse",0.82,"Retail",0.01,null,null,null,null,"Retail: Mall Concourse",0.73799999999999999,"Retail",0.01,null,null,null,null,null,null,null,null,null,null,null,null,{"$f":"MATCH(LPD_UT_Multi_NC_Table[[#This Row],[Space Types]],DDF_Table[Space Type],0)","v":127}]
[null,null,null,null,null,null,null,null,null,null,null,"School/University",0.72,"College or University",7.0000000000000007E-2,null,null,null,null,"School/University",0.64800000000000002,"College or University",7.0000000000000007E-2,null,null,null,null,null,null,null,null,null,null,null,null,{"$f":"MATCH(LPD_UT_Multi_NC_Table[[#This Row],[Space Types]],DDF_Table[Space Type],0)","v":130}]
[null,null,null,null,null,null,null,null,null,null,null,"Sports Arena",0.76,"Assembly",0.05,null,null,null,null,"Sports Arena",0.68400000000000005,"Assembly",0.05,null,null,null,null,null,null,null,null,null,null,null,null,{"$f":"MATCH(LPD_UT_Multi_NC_Table[[#This Row],[Space Types]],DDF_Table[Space Type],0)","v":131}]
[null,null,null,null,null,null,null,null,null,null,null,"Sports Arena: Audience Seating",0.33,"Assembly",0.05,null,null,null,null,"Sports Arena: Audience Seating",0.29700000000000004,"Assembly",0.05,null,null,null,null,null,null,null,null,null,null,null,null,{"$f":"MATCH(LPD_UT_Multi_NC_Table[[#This Row],[Space Types]],DDF_Table[Space Type],0)","v":132}]
[null,null,null,null,null,null,null,null,null,null,null,"Sports Arena: Playing Area (Professional)",2.92,"Assembly",0.05,null,null,null,null,"Sports Arena: Playing Area (Professional)",2.6280000000000001,"Assembly",0.05,null,null,null,null,null,null,null,null,null,null,null,null,{"$f":"MATCH(LPD_UT_Multi_NC_Table[[#This Row],[Space Types]],DDF_Table[Space Type],0)","v":133}]
[null,null,null,null,null,null,null,null,null,null,null,"Sports Arena: Playing Area (Semi-Professional)",2.0099999999999998,"Assembly",0.05,null,null,null,null,"Sports Arena: Playing Area (Semi-Professional)",1.8089999999999999,"Assembly",0.05,null,null,null,null,null,null,null,null,null,null,null,null,{"$f":"MATCH(LPD_UT_Multi_NC_Table[[#This Row],[Space Types]],DDF_Table[Space Type],0)","v":134}]
[null,null,null,null,null,null,null,null,null,null,null,"Sports Arena: Playing Area (High School)",1.3,"Assembly",0.05,null,null,null,null,"Sports Arena: Playing Area (High School)",1.1700000000000002,"Assembly",0.05,null,null,null,null,null,null,null,null,null,null,null,null,{"$f":"MATCH(LPD_UT_Multi_NC_Table[[#This Row],[Space Types]],DDF_Table[Space Type],0)","v":135}]
[null,null,null,null,null,null,null,null,null,null,null,"Sports Arena: Playing Area (Recreational)",0.86,"Assembly",0.05,null,null,null,null,"Sports Arena: Playing Area (Recreational)",0.77400000000000002,"Assembly",0.05,null,null,null,null,null,null,null,null,null,null,null,null,{"$f":"MATCH(LPD_UT_Multi_NC_Table[[#This Row],[Space Types]],DDF_Table[Space Type],0)","v":136}]
[null,null,null,null,null,null,null,null,null,null,null,"Town Hall",0.69,"Assembly",0.05,null,null,null,null,"Town Hall",0.621,"Assembly",0.05,null,null,null,null,null,null,null,null,null,null,null,null,{"$f":"MATCH(LPD_UT_Multi_NC_Table[[#This Row],[Space Types]],DDF_Table[Space Type],0)","v":142}]
[null,null,null,null,null,null,null,null,null,null,null,"Transportation",0.5,"Other",0.03,null,null,null,null,"Transportation",0.45,"Other",0.03,null,null,null,null,null,null,null,null,null,null,null,null,{"$f":"MATCH(LPD_UT_Multi_NC_Table[[#This Row],[Space Types]],DDF_Table[Space Type],0)","v":143}]
[null,null,null,null,null,null,null,null,null,null,null,"Transportation: Baggage Area",0.39,"Other",0.03,null,null,null,null,"Transportation: Baggage Area",0.35100000000000003,"Other",0.03,null,null,null,null,null,null,null,null,null,null,null,null,{"$f":"MATCH(LPD_UT_Multi_NC_Table[[#This Row],[Space Types]],DDF_Table[Space Type],0)","v":145}]
[null,null,null,null,null,null,null,null,null,null,null,"Transportation: Airport Concourse",0.25,"Other",0.03,null,null,null,null,"Transportation: Airport Concourse",0.22500000000000001,"Other",0.03,null,null,null,null,null,null,null,null,null,null,null,null,{"$f":"MATCH(LPD_UT_Multi_NC_Table[[#This Row],[Space Types]],DDF_Table[Space Type],0)","v":146}]
[null,null,null,null,null,null,null,null,null,null,null,"Transportation:  Ticket Counter",0.51,"Other",0.03,null,null,null,null,"Transportation:  Ticket Counter",0.45900000000000002,"Other",0.03,null,null,null,null,null,null,null,null,null,null,null,null,{"$f":"MATCH(LPD_UT_Multi_NC_Table[[#This Row],[Space Types]],DDF_Table[Space Type],0)","v":147}]
[null,null,null,null,null,null,null,null,null,null,null,"Warehouse",0.45,"Warehouse",0.02,null,null,null,null,"Warehouse",0.40500000000000003,"Warehouse",0.02,null,null,null,null,null,null,null,null,null,null,null,null,{"$f":"MATCH(LPD_UT_Multi_NC_Table[[#This Row],[Space Types]],DDF_Table[Space Type],0)","v":150}]
[null,null,null,null,null,null,null,null,null,null,null,"Warehouse: Medium/Palletized Items",0.33,"Warehouse",0.02,null,null,null,null,"Warehouse: Medium/Palletized Items",0.29700000000000004,"Warehouse",0.02,null,null,null,null,null,null,null,null,null,null,null,null,{"$f":"MATCH(LPD_UT_Multi_NC_Table[[#This Row],[Space Types]],DDF_Table[Space Type],0)","v":152}]
[null,null,null,null,null,null,null,null,null,null,null,"Warehouse: Small Items",0.69,"Warehouse",0.02,null,null,null,null,"Warehouse: Small Items",0.621,"Warehouse",0.02,null,null,null,null,null,null,null,null,null,null,null,null,{"$f":"MATCH(LPD_UT_Multi_NC_Table[[#This Row],[Space Types]],DDF_Table[Space Type],0)","v":153}]
[null,null,null,null,null,null,null,null,null,null,null,"Workshop",0.91,"Manufacturing",-0.1,null,null,null,null,"Workshop",0.81900000000000006,"Manufacturing",-0.1,null,null,null,null,null,null,null,null,null,null,null,null,{"$f":"MATCH(LPD_UT_Multi_NC_Table[[#This Row],[Space Types]],DDF_Table[Space Type],0)","v":155}]

{"sheet":"MR Bldg Size","index":11,"n_rows":33,"n_cols":13,"rows_kept":33,"cut":false,"hidden":true,"merged":[]}
["Building Type","Foor Area","Number of floors","Source",null,null,"Space Types","Map","MATCH",null,null,"Sources"]
["Large Office",498588,12,"DOE",null,null,"Automotive Facility",null,null,null,null,"DOE","Commercial Reference Buildings | Department of Energy"]
["Medium Office",53628,3,"DOE",null,null,"Convention Center",null,null,null,null,"EIA","CBECS 2012: Building Stock Results (eia.gov)"]
["Small Office",5500,1,"DOE",null,null,"Courthouse"]
["Warehouse",52045,1,"DOE",null,null,"Dining: Bar Lounge/Leisure","Full Service Restaurant",1]
["Stand-alone Retail",24962,1,"DOE",null,null,"Dining: Cafeteria/Fastfood","Quick Service Restaurant",1]
["Strip Mall",22500,1,"DOE",null,null,"Dining: Family","Full Service Restaurant",1]
["Primary School",739120,1,"DOE",null,null,"Dormitory","Midrise Apartment",1]
["Secondary School",210887,2,"DOE",null,null,"Exercise Center"]
["Supermarket",45000,1,"DOE",null,null,"Fire Station"]
["Quick Service Restaurant",2500,1,"DOE",null,null,"Gymnasium"]
["Full Service Restaurant",5500,1,"DOE",null,null,"Health Care – Clinic","Outpatient Health Care",1]
["Hospital",241351,5,"DOE",null,null,"Hospital","Hospital",1]
["Outpatient Health Care",40946,3,"DOE",null,null,"Hotel/Motel","Small Hotel",0.8]
["Small Hotel",43200,4,"DOE",null,null,"Library","Public Assembly",0.8]
["Large Hotel",122120,6,"DOE",null,null,"Manufacturing Facility"]
["Midrise Apartment",33740,4,"DOE",null,null,"Motion Picture Theater"]
["Office",15952,null,"EIA",null,null,"Multifamily"]
["Public Assembly",5559,null,"EIA",null,null,"Museum"]
["Religious Worship",4557,null,"EIA",null,null,"Office"]
[null,null,null,null,null,null,"Parking Garage"]
[null,null,null,null,null,null,"Penitentiary"]
[null,null,null,null,null,null,"Performing Arts Theater"]
[null,null,null,null,null,null,"Police"]
[null,null,null,null,null,null,"Post Office"]
[null,null,null,null,null,null,"Religious Building"]
[null,null,null,null,null,null,"Retail"]
[null,null,null,null,null,null,"School/University"]
[null,null,null,null,null,null,"Sports Arena"]
[null,null,null,null,null,null,"Town Hall"]
[null,null,null,null,null,null,"Transportation"]
[null,null,null,null,null,null,"Warehouse"]
[null,null,null,null,null,null,"Workshop"]

{"sheet":"EquipmentLookups","index":12,"n_rows":58,"n_cols":52,"rows_kept":58,"cut":false,"hidden":true,"merged":[[0,0,0,1]]}
["Retrofit Baseline",null,null,"All",null,"T12",null,"T8",null,"T8 Replacements",null,"T5",null,"T5 Replacements",null,"CFL",null,"Induction",null,"HID",null,"Incandescent",null,"LED Fixture",null,"LED Retro Kit",null,"T8 TLED",null,"T5 TLED",null,"Relamp - LED",null,"LED Screw-In",null,"Case - Fluorescents",null,"Case - LED",null,"Exit Sign",null,"Signage - LED",null,"Signage - Neon",null,"Signage - Incandescent",null,"Signage - Fluorescent",null,"Controls Only",null,"NCMR Controls Only"]
["categoryBaseline","equipmentBaseline",null,"Att0 - Location",null,"Att1 - Lamp Quantity",null,"Att1 - Lamp Quantity",null,"Att1 - Lamp Quantity",null,"Att1 - Lamp Quantity",null,"Att1 - Lamp Quantity",null,"Att1 - Lamp Quantity",null,"Att1 - Lamp Quantity",null,"Att1 - Lamp Quantity",null,"Att1 - Lamp Quantity",null,"Att1 - Fixture Wattage",null,"Att1 - Fixture Wattage",null,"Att1 - Lamp Quantity",null,"Att1 - Lamp Quantity",null,"Att1 - Lamp Quantity",null,"Att1 - Lamp Quantity",null,"Att1 - Lamp Quantity",null,"Att1 - Linear Feet",null,"Att1 - Lamp Quantity",null,"Att1 - Linear Feet",null,"Att1 - Linear Feet",null,"Att1 - Lamp Quantity",null,"Att1 - Linear Feet",null,"Att1 - n/a",null,"Att1 - Fixture Wattage"]
["Fluorescents - Compact","CFL Pin-Based",null,"Interior"]
["Fluorescents - Compact","CFL Screw-In",null,"Exterior",null,"1L",null,"1L",null,"1L",null,"1L",null,"1L",null,"1L",null,"1L",null,"1L",null,"1L",null,"enter wattage",null,"enter wattage",null,"1L",null,"1L",null,"1L",null,"1L",null,"1L",null,"enter LF",null,"1L",null,"enter LF",null,"enter LF",null,"enter quantity",null,"enter LF",null,null,null,"enter wattage"]
["Fluorescents - Induction","Induction Fixture",null,"Seasonal Exterior",null,"2L",null,"2L",null,"2L",null,"2L",null,"2L",null,"2L",null,null,null,null,null,"2L",null,null,null,null,null,"2L",null,"2L",null,"2L",null,"2L",null,"2L",null,null,null,"2L"]
["Fluorescents - T12","FLT12 - 2 Ft",null,null,null,"3L",null,"3L",null,"3L",null,"3L",null,"3L",null,"3L",null,null,null,null,null,"3L",null,null,null,null,null,"3L",null,"3L",null,"3L",null,"3L",null,"3L",null,null,null,"enter quantity"]
["Fluorescents - T12","FLT12 - 3 Ft",null,null,null,"4L",null,"4L",null,"4L",null,"4L",null,"4L",null,"4L",null,null,0,null,null,"4L",null,"Att2 - n/a",null,"Att2 - n/a",null,"4L",null,"4L",null,"4L",null,"4L",null,"4L",null,"Att2 - Total Case Wattage",null,null,null,"Att2 - Total Sign Wattage",null,"Att2 - Total Sign Wattage",null,"Att2 - Lamp Wattage",null,"Att2 - Total Sign Wattage",null,"Att2 - n/a",null,"Att2 - n/a"]
["Fluorescents - T12","FLT12 - 4 Ft",null,"Existing Fixture Type",null,"5L",null,"5L",null,"5L",null,"5L",null,"5L",null,"5L",null,null,null,null,null,"5L",null,null,null,null,null,"5L",null,"5L",null,"5L",null,"5L",null,"enter quantity"]
["Fluorescents - T12","FLT12 - 6 Ft",null,"Bollard",null,"6L",null,"6L",null,"6L",null,"6L",null,"6L",null,"6L",null,null,null,null,null,"6L",null,null,null,null,null,"6L",null,"6L",null,"6L",null,"6L",null,null,null,"enter wattage",null,"Att2 - Lamp Wattage",null,"enter wattage",null,"enter wattage",null,"enter wattage",null,"enter wattage"]
["Fluorescents - T12","FLT12 - 8 Ft",null,"Direct/Indirect",null,"enter quantity",null,"enter quantity",null,"enter quantity",null,"enter quantity",null,"enter quantity",null,"enter quantity",null,null,null,null,null,"enter quantity",null,null,null,null,null,"enter quantity",null,"enter quantity",null,"enter quantity",null,"enter quantity"]
["Fluorescents - T12","FLT12HO - 8 Ft",null,"Downlight",null,null,null,null,null,null,null,null,null,null,null,null,null,null,null,null,null,null,null,"Att3 - n/a",null,"Att3 - n/a",null,null,null,null,null,null,null,null,null,"Att2 - Lamp Wattage",null,null,null,"1.5W"]
["Fluorescents - T12","FLT12VHO - 8 Ft",null,"Flood",null,null,null,null,null,null,null,null,null,null,null,null,null,"Att2 - Lamp Wattage",null,"Att2 - Lamp Wattage",null,null,null,null,null,null,null,null,null,null,null,null,null,null,null,null,null,"Att3 - n/a",null,"2W",null,"Att3 - n/a",null,"Att3 - n/a",null,"Att3 - n/a",null,"Att3 - n/a",null,"Att3 - n/a",null,"Att3 - n/a"]
["Fluorescents - T12","FUT12 - 2 Ft",null,"High/Low Bay",null,"Att2 - Lamp Wattage",null,"Att2 - Lamp Wattage",null,"Att2 - Lamp Wattage",null,"Att2 - Lamp Wattage",null,"Att2 - Lamp Wattage",null,"Att2 - Lamp Wattage",null,null,null,null,null,"Att2 - Lamp Wattage",null,null,null,null,null,"Att2 - Lamp Wattage",null,"Att2 - Lamp Wattage",null,"Att2 - Lamp Wattage",null,"Att2 - Lamp Wattage",null,"32W",null,null,null,"3W"]
["Fluorescents - T5","FLT5 - 2 Ft",null,"Integral Track Head",null,null,null,null,null,null,null,null,null,null,null,null,null,"enter wattage",null,"35W",null,null,null,null,null,null,null,null,null,null,null,null,null,null,null,"40W",null,null,null,"4W"]
["Fluorescents - T5","FLT5 - 4 Ft",null,"Pole Mount",null,"34W",null,"17W",null,"17W",null,"14W",null,"41W",null,"8W",null,null,null,"50W",null,"20W",null,"Att4 - Control",null,"Att4 - Control",null,"enter wattage",null,"enter wattage",null,"enter wattage",null,"enter wattage",null,"54W",null,null,null,"5W"]
["Fluorescents - T5","FLT5HO - 4 Ft",null,"Sconce/Wall Wash",null,"40W",null,"25W",null,"25W",null,"25W",null,"49W",null,"9W",null,null,null,"70W",null,"40W",null,null,null,null,null,null,null,null,null,null,null,null,null,"120W",null,null,null,"6W"]
["Fluorescents - T8","FLT8 - 2 Ft",null,"Strip/Wrap",null,"56W",null,"28W",null,"28W",null,"28W",null,"enter wattage",null,"10W",null,"Att3 - n/a",null,"100W",null,"50W",null,"Advanced networked",null,"Advanced networked",null,null,null,null,null,null,null,null,null,"75W",null,"Att4 - Control",null,"7W",null,"Att4 - Control",null,"Att4 - Control",null,"Att4 - Control",null,"Att4 - Control",null,"Att4 - n/a",null,"Att4 - n/a"]
["Fluorescents - T8","FLT8 - 3 Ft",null,"Surface Mount",null,"120W",null,"30W",null,"enter wattage",null,"41W",null,null,null,"11W",null,null,null,"150W",null,"120W",null,"Advanced networked reused",null,"Advanced networked reused",null,"Att3 - Ballast (if applicable)",null,"Att3 - Ballast (if applicable)",null,"Att3 - n/a",null,"Att3 - n/a",null,"85W",null,null,null,"8W"]
["Fluorescents - T8","FLT8 - 4 Ft",null,"Parking/Canopy",null,"75W",null,"32W",null,null,null,"49W",null,null,null,"12W",null,null,null,"175W",null,"65W",null,"Advanced networked exterior dimming",null,"Advanced networked exterior dimming",null,null,null,null,null,null,null,null,null,"110W",null,"Basic",null,"9W",null,"Advanced networked exterior dimming",null,"Advanced networked exterior dimming",null,"Advanced networked exterior dimming",null,"Advanced networked exterior dimming",null,"Advanced networked"]
["Fluorescents - T8","FLT8 - 8 Ft",null,"Troffer",null,"85W",null,"59W",null,null,null,"54W",null,"Att3 - Ballast",null,"13W",null,null,null,"250W",null,"75W",null,"Advanced networked exterior dimming reused",null,"Advanced networked exterior dimming reused",null,"IS L",null,"IS L",null,null,null,null,null,"enter wattage",null,"Basic reused",null,"13W",null,"Basic",null,"Basic",null,"Basic",null,"Basic",null,"Advanced networked reused"]
["Fluorescents - T8","FUT8 - 2 Ft",null,"Wall Pack",null,"90W",null,"enter wattage",null,"Att3 - Ballast",null,"enter wattage",null,null,null,"14W",null,"Att4 - Control",null,"320W",null,"90W",null,"Basic",null,"Basic",null,"IS N",null,"IS N",null,null,null,null,null,null,null,"Networked",null,"15W",null,"Basic exterior dimming",null,"Basic exterior dimming",null,"Basic exterior dimming",null,"Basic exterior dimming",null,"Advanced networked exterior dimming"]
["HID","High Pressure Sodium",null,"n/a",null,"95W",null,null,null,null,null,null,null,"IS L",null,"15W",null,null,null,"350W",null,"100W",null,"Basic reused",null,"Basic reused",null,"IS H",null,"IS H",null,null,null,null,null,null,null,"Networked reused",null,"25W",null,"Networked",null,"Networked",null,"Networked",null,"Networked",null,"Advanced networked exterior dimming reused"]
["HID","Mercury Vapor",null,null,null,"100W",null,null,null,"IS L",null,null,null,"IS N",null,"16W",null,"Advanced networked",null,"400W",null,"120W",null,"Basic exterior dimming",null,"Basic exterior dimming",null,"IS VH",null,"IS VH",null,null,null,null,null,"Att3 - Ballast",null,"Re-Commissioning",null,"enter wattage",null,"Re-Commissioning",null,"Re-Commissioning",null,"Re-Commissioning",null,"Re-Commissioning",null,"Basic"]
["HID","Metal Halide",null,null,null,"110W",null,"Att3 - Ballast",null,"IS N",null,"Att3 - Ballast",null,"IS H",null,"17W",null,"Advanced networked exterior dimming",null,"1000W",null,"150W",null,"Basic exterior dimming reused",null,"Basic exterior dimming reused",null,"RS/PRS L",null,"RS/PRS L",null,null,null,null,null,null,null,null,null,null,null,null,null,null,null,null,null,null,null,"Basic reused"]
["HID","Metal Halide - Ceramic",null,null,null,"enter wattage",null,null,null,"IS H",null,null,null,"IS VH",null,"18W",null,"Basic",null,"enter wattage",null,"200W",null,"Networked",null,"Networked",null,"RS/PRS N",null,"RS/PRS N",null,null,null,null,null,"Electronic",null,null,null,null,null,null,null,null,null,null,null,null,null,"Basic exterior dimming"]
["HID","Metal Halide - Pulse Start",null,null,null,null,null,"IS L",null,"IS VH",null,"IS L",null,"RS/PRS L",null,"19W",null,"Basic exterior dimming",null,null,null,"500W",null,"Networked reused",null,"Networked reused",null,"RS/PRS H",null,"RS/PRS H",null,null,null,null,null,"MG",null,null,null,"Att3 - n/a",null,null,null,null,null,null,null,null,null,"Basic exterior dimming reused"]
["Incandescents","Halogen",null,null,null,null,null,"IS N",null,"RS/PRS L",null,"IS N",null,"RS/PRS N",null,"20W",null,"Networked",null,null,null,"1000W",null,"Re-Commissioning",null,"Re-Commissioning",null,"RS/PRS VH",null,"RS/PRS VH",null,null,null,null,null,null,null,null,null,null,null,null,null,null,null,null,null,null,null,"Networked"]
["Incandescents","Incandescent",null,null,null,"Att3 - Ballast",null,"IS H",null,"RS/PRS N",null,"IS H",null,"RS/PRS H",null,"21W",null,"Re-Commissioning",null,"Att3 - Ballast",null,"1500W",null,"Plug and Play control ready",null,"Plug and Play control ready",null,"n/a",null,"n/a",null,"Att4 - Control",null,"Att4 - Control",null,null,null,null,null,null,null,null,null,null,null,null,null,null,null,"Networked reused"]
["LED","LED Fixture",null,null,null,null,null,"IS VH",null,"RS/PRS H",null,"IS VH",null,"RS/PRS VH",null,"22W",null,null,null,null,null,"enter wattage",null,null,null,null,null,null,null,null,null,null,null,null,null,"Att4 - Control",null,null,null,null,null,null,null,null,null,null,null,null,null,"Re-Commissioning"]
["LED","LED Fixture - Wall Pack < 50W",null,null,null,"IS N",null,"RS/PRS L",null,"RS/PRS VH",null,"RS/PRS L",null,null,null,"23W",null,null,null,"CWA",null,null,null,null,null,null,null,null,null,null,null,"Advanced networked",null,"Advanced networked",null,null,null,null,null,"Att4 - n/a"]
["LED","LED Fixture - Wall Pack >= 50W",null,null,null,"MG",null,"RS/PRS N",null,null,null,"RS/PRS N",null,null,null,"24W",null,null,null,"Electronic",null,null,null,null,null,null,null,"Att4 - Control",null,"Att4 - Control",null,"Advanced networked reused",null,"Advanced networked reused",null,"Basic"]
["LED","LED Exterior Fixture - Wall Pack - > 20 W and < 75 W",null,null,null,"RS/PRS N",null,"RS/PRS H",null,null,null,"RS/PRS H",null,"Att4 - Control",null,"25W",null,null,null,"n/a",null,"Att3 - n/a",null,null,null,null,null,null,null,null,null,"Advanced networked exterior dimming",null,"Advanced networked exterior dimming",null,"Basic reused"]
["LED","LED Exterior Fixture - Wall Pack - >= 75 W",null,null,null,null,null,"RS/PRS VH",null,"Att4 - Control",null,"RS/PRS VH",null,null,null,"26W",null,null,null,null,null,null,null,null,null,null,null,"Advanced networked",null,"Advanced networked",null,"Advanced networked exterior dimming reused",null,"Advanced networked exterior dimming reused",null,"Networked"]
["LED","LED MR16",null,null,null,null,null,null,null,null,null,null,null,"Advanced networked",null,"enter wattage",null,null,null,null,null,null,null,null,null,null,null,"Advanced networked reused",null,"Advanced networked reused",null,"Basic",null,"Basic",null,"Networked reused"]
["LED","LED Retrofit Kit - Downlight",null,null,null,"Att4 - Control",null,null,null,"Advanced networked",null,null,null,"Advanced networked reused",null,null,null,null,null,"Att4 - Control",null,null,null,null,null,null,null,"Advanced networked exterior dimming",null,"Advanced networked exterior dimming",null,"Basic reused",null,"Basic reused",null,"Re-Commissioning"]
["LED","LED Screw-In Lamp",null,null,null,null,null,"Att4 - Control",null,"Advanced networked reused",null,"Att4 - Control",null,"Advanced networked exterior dimming",null,null,null,null,null,null,null,"Att4 - Control",null,null,null,null,null,"Advanced networked exterior dimming reused",null,"Advanced networked exterior dimming reused",null,"Basic exterior dimming",null,"Basic exterior dimming"]
["LED","T5 TLED - 2 Ft",null,null,null,"Advanced networked",null,null,null,"Advanced networked exterior dimming",null,null,null,"Advanced networked exterior dimming reused",null,"Att3 - Ballast",null,null,null,"Advanced networked",null,null,null,null,null,null,null,"Basic",null,"Basic",null,"Basic exterior dimming reused",null,"Basic exterior dimming reused"]
["LED","T5 TLED - 4 Ft",null,null,null,"Advanced networked exterior dimming",null,"Advanced networked",null,"Advanced networked exterior dimming reused",null,"Advanced networked",null,"Basic",null,null,null,null,null,"Advanced networked exterior dimming",null,"Advanced networked",null,null,null,null,null,"Basic reused",null,"Basic reused",null,"Networked",null,"Networked"]
["LED","T8 TLED - 2 Ft",null,null,null,"Basic",null,"Advanced networked exterior dimming",null,"Basic",null,"Advanced networked exterior dimming",null,"Basic reused",null,"IS L",null,null,null,"Basic",null,"Advanced networked exterior dimming",null,null,null,null,null,"Basic exterior dimming",null,"Basic exterior dimming",null,"Networked reused",null,"Networked reused"]
["LED","T8 TLED - 4 Ft",null,null,null,"Basic exterior dimming",null,"Basic",null,"Basic reused",null,"Basic",null,"Basic exterior dimming",null,"IS N",null,null,null,"Basic exterior dimming",null,"Basic",null,null,null,null,null,"Basic exterior dimming reused",null,"Basic exterior dimming reused",null,"Re-Commissioning",null,"Re-Commissioning"]
["Non-General Illuminance","Fluorescent Case Lighting – Freezer Case",null,null,null,"Networked",null,"Basic exterior dimming",null,"Basic exterior dimming",null,"Basic exterior dimming",null,"Basic exterior dimming reused",null,"IS H",null,null,null,"Networked",null,"Basic exterior dimming",null,null,null,null,null,"Networked",null,"Networked"]
["Non-General Illuminance","Fluorescent Case Lighting – Refrigerated Case",null,null,null,"Re-Commissioning",null,"Networked",null,"Basic exterior dimming reused",null,"Networked",null,"Networked",null,"IS VH",null,null,null,"Re-Commissioning",null,"Networked",null,null,null,null,null,"Networked reused",null,"Networked reused"]
["Non-General Illuminance","Fluorescent Channel Letter Sign",null,null,null,null,null,"Re-Commissioning",null,"Networked",null,"Re-Commissioning",null,"Networked reused",null,"MG",null,null,null,null,null,"Re-Commissioning",null,null,null,null,null,"Re-Commissioning",null,"Re-Commissioning"]
["Non-General Illuminance","Fluorescent Exit Sign",null,null,null,null,null,null,null,"Networked reused",null,null,null,"Re-Commissioning",null,"RS/PRS L"]
["Non-General Illuminance","Fluorescent Marquee/Cabinet Sign",null,null,null,null,null,null,null,"Re-Commissioning",null,null,null,null,null,"RS/PRS N"]
["Non-General Illuminance","Fluorescent Message Center Sign",null,null,null,null,null,null,null,null,null,null,null,null,null,"RS/PRS H",null,null,null,null,null,null,null,null,null,null,null,"Att3 - UT Ballast (if applicable)",null,"Att3 - Ballast (if applicable)"]
["Non-General Illuminance","Incandescent Exit Sign",null,null,null,null,null,null,null,null,null,null,null,null,null,"RS/PRS VH"]
["Non-General Illuminance","Incandescent Message Center Sign",null,null,null,null,null,null,null,null,null,null,null,null,null,"n/a",null,null,null,null,null,null,null,null,null,null,null,"LED Driver",null,"LED Driver"]
["Non-General Illuminance","LED Exit Sign"]
["Non-General Illuminance","Neon Channel Letter Sign"]
[null,null,null,null,null,null,null,null,null,null,null,null,null,null,null,"Att4 - Control"]
[]
[null,null,null,null,null,null,null,null,null,null,null,null,null,null,null,"Advanced networked"]
[null,null,null,null,null,null,null,null,null,null,null,null,null,null,null,"Advanced networked exterior dimming"]
[null,null,null,null,null,null,null,null,null,null,null,null,null,null,null,"Basic"]
[null,null,null,null,null,null,null,null,null,null,null,null,null,null,null,"Basic exterior dimming"]
[null,null,null,null,null,null,null,null,null,null,null,null,null,null,null,"Networked"]
[null,null,null,null,null,null,null,null,null,null,null,null,null,null,null,"Re-Commissioning"]

{"sheet":"General Application","index":13,"n_rows":108,"n_cols":18,"rows_kept":108,"cut":false,"hidden":true,"merged":[[48,9,48,14],[48,16,48,17],[70,2,70,9],[71,2,80,2],[71,3,80,8],[93,10,103,17],[107,2,107,5],[107,8,107,11],[98,2,104,9],[106,2,106,9],[106,10,106,17],[53,10,64,17],[54,2,54,9],[61,3,69,8],[61,2,69,2],[55,3,60,8],[41,2,44,17],[46,2,46,7],[46,9,46,14],[46,16,46,17],[47,2,47,7],[47,9,47,14],[47,16,47,17],[93,2,97,9],[73,10,83,17],[88,10,92,17],[82,2,85,9],[84,10,87,17],[86,2,92,9],[65,10,72,17],[55,2,59,2],[49,2,49,7],[49,9,49,14],[49,16,49,17],[50,2,50,9],[50,10,50,17],[51,2,51,5],[51,8,51,11],[52,2,52,17],[48,2,48,7],[33,2,33,17],[29,2,29,7],[30,2,30,7],[34,2,34,17],[40,2,40,17],[35,2,35,10],[35,11,35,13],[35,14,35,15],[35,16,35,17],[32,2,32,17],[38,2,38,10],[38,11,38,17],[36,2,36,10],[37,2,37,10],[37,11,37,17],[36,11,36,13],[36,14,36,15],[36,16,36,17],[25,2,25,17],[23,2,24,7],[23,8,24,10],[23,11,23,17],[27,2,27,7],[27,8,30,17],[28,2,28,7],[26,2,26,3],[26,8,26,17],[21,2,21,10],[22,2,22,7],[22,8,22,13],[22,14,22,15],[22,16,22,17],[21,11,21,13],[21,14,21,15],[21,16,21,17],[24,11,24,17],[5,2,5,17],[6,2,6,17],[8,2,8,17],[7,10,7,11],[7,13,7,16],[9,2,9,17],[7,2,7,5],[10,14,10,15],[10,16,10,17],[10,2,10,10],[10,11,10,13],[11,14,11,15],[11,16,11,17],[11,2,11,10],[11,11,11,13],[13,2,13,10],[19,2,19,17],[20,2,20,10],[20,11,20,13],[20,14,20,15],[20,16,20,17],[13,11,13,17],[12,2,12,10],[12,11,12,17],[14,2,14,5],[14,6,14,10],[14,11,14,17],[17,2,17,17],[18,2,18,17],[15,2,15,5],[15,6,15,10],[15,11,15,17]]}
[]
[]
[]
[]
[null,null,"General Application"]
[null,null,"PARTICIPANT INFORMATION"]
[null,null," (Check will be issued to the participant business name and address listed below unless the payment release section below has been filled out)"]
[null,null," Participant is (check all that apply)",null,null,null,{"$f":"IF(Participant_Is_AccountHolder=TRUE, \"■\",\"□\")","v":"□"},"Customer",null,{"$f":"IF(Participant_Is_BuildingOwner=TRUE,\"■\",\"□\")","v":"□"},"Facility owner",null,{"$f":"IF(Participant_Is_ElectricUser=TRUE,\"■\",\"□\")","v":"□"},"Tenant/Electricity user"]
[null,null,"Participant business name (As shown on income tax return):"]
[null,null,{"$f":"IF(BusinessName=\"\",\"\",BusinessName)","v":""}]
[null,null,"Mailing address:",null,null,null,null,null,null,null,null,"City:",null,null,"State:",null,"Zip:"]
[null,null,{"$f":"IF(ParticipantAddress=\"\",\"\",ParticipantAddress)","v":""},null,null,null,null,null,null,null,null,{"$f":"IF(ParticipantCity=\"\",\"\",ParticipantCity)","v":""},null,null,{"$f":"IF(ParticipantState=\"\",\"\",ParticipantState)","v":""},null,{"$f":"IF(ParticipantZip=\"\",\"\",ParticipantZip)","v":""}]
[null,null,"Contact name:",null,null,null,null,null,null,null,null,"Contact title:"]
[null,null,{"$f":"IF(ParticipantContactName=\"\",\"\",ParticipantContactName)","v":""},null,null,null,null,null,null,null,null,{"$f":"IF(ParticipantContactTitle=\"\",\"\",ParticipantContactTitle)","v":""}]
[null,null,"Contact telephone number:",null,null,null,"Cell number:",null,null,null,null,"Contact email address:"]
[null,null,{"$f":"IF(ParticipantContactPhone=\"\",\"\",ParticipantContactPhone)","v":""},null,null,null,null,null,null,null,null,{"$f":"IF(ParticipantContactEmail=\"\",\"\",ParticipantContactEmail)","v":""}]
[]
[null,null,"PROJECT SITE INFORMATION  "]
[null,null,"Facility/Project name: "]
[null,null,{"$f":"IF(ProjectName=\"\",\"\",ProjectName)","v":""}]
[null,null,"Facility address:",null,null,null,null,null,null,null,null,"City:",null,null,"State:",null,"Zip:"]
[null,null,{"$f":"IF(InstallAddress=\"\",\"\",InstallAddress)","v":""},null,null,null,null,null,null,null,null,{"$f":"IF(InstallCity=\"\",\"\",InstallCity)","v":""},null,null,{"$f":"IF(ProjectState=\"\",\"\",ProjectState)","v":"ID"},null,{"$f":"IF(InstallZip=\"\",\"\",InstallZip)","v":""}]
[null,null,"Commercial/industrial electric account #:",null,null,null,null,null,{"$f":"IF(AccountNumber=\"\",\"\",AccountNumber)","v":""},null,null,null,null,null,"Rate Schedule:",null,{"$f":"IF(RateSchedule=\"\",\"\",RateSchedule)","v":""}]
[null,null,"Electric meter number – seven or eight digits:\n (If multiple meters at site only enter one)",null,null,null,null,null,{"$f":"IF(MeterNumber=\"\",\"\",MeterNumber)","v":""},null,null,"Customer name: (As shown on bill)"]
[]
[null,null,"Please provide a description of your project so we may better help you: "]
[null,null,"Lighting -",null,{"$f":"ProjectType","v":0},null,null,null,"Additional project information: (scope and schedule)"]
[null,null,"Listed Equipment Incentives"]
[null,null,"New Construction"]
[null,null,"Custom or Energy Management Incentives"]
[null,null,"Other:   "]
[]
[null,null,"INCENTIVE ASSIGNMENT (Complete only if incentive is to be assigned to someone other than participant above)"]
[null,null,"Check should be made out to:"]
[null,null,{"$f":"IF(OR(PayeeBusinessName=\"\",PayeeAssignment=\"Participant Address\"),\"\",PayeeBusinessName)","v":""}]
[null,null,"Mailing address:",null,null,null,null,null,null,null,null,"City:",null,null,"State:",null,"Zip:"]
[null,null,{"$f":"IF(OR(PayeeAddress=\"\",PayeeAssignment=\"Participant Address\"),\"\",PayeeAddress)","v":""},null,null,null,null,null,null,null,null,{"$f":"IF(OR(PayeeCity=\"\",PayeeAssignment=\"Participant Address\"),\"\",PayeeCity)","v":""},null,null,{"$f":"IF(OR(PayeeState=\"\",PayeeAssignment=\"Participant Address\"),\"\",PayeeState)","v":""},null,{"$f":"IF(OR(PayeeZip=\"\",PayeeAssignment=\"Participant Address\"),\"\",PayeeZip)","v":""}]
[null,null,"Contact name:",null,null,null,null,null,null,null,null,"Contact telephone:"]
[null,null,{"$f":"IF(OR(PayeeAttentionTo=\"\",PayeeAssignment=\"Participant Address\"),\"\",PayeeAttentionTo)","v":""},null,null,null,null,null,null,null,null,{"$f":"IF(OR(PayeeContactPhone=\"\",PayeeAssignment=\"Participant Address\"),\"\",PayeeContactPhone)","v":""}]
[]
[null,null,"APPLICATION ACKNOWLEDGEMENT"]
[null,null,"By my signature below, I certify that all information provided for participation will be accurate including but not limited to supplemental material and claims of participant and equipment information. I confirm I have read, understand and agree with the terms and conditions and agree to be bound by them. I authorize Rocky Mountain Power to provide my electric account information, this application and the attached W-9 to consultants associated with the Wattsmart Business program.\n\n"]
[]
[]
[]
[]
[]
[null,null,"Signatory name & title (please print)",null,null,null,null,null,null,"Participant signature",null,null,null,null,null,null,"Date"]
[]
[]
[null,null,"04/01/2025; ID/UT/WY",null,null,null,null,null,null,null,"Wattsmart is registered in U.S. Patent and Trademark Office."]
[null,null,{"$f":"\"Print Date: \" & TEXT(TODAY(),\"mm-dd-yyyy\")","v":"Print Date: 04-30-2026"},null,null,null,null,null,{"$f":" IF(ProjectName<>\"\",ProjectName,\"\")","v":""},null,null,null,null,null,null,null,null,"1 of 2"]
[null,null,"Terms and Conditions"]
[null,null,"How to participate:"]
[]
[]
[]
[]
[]
[]
[]
[]
[]
[]
[]
[]
[]
[]
[]
[]
[]
[]
[]
[]
[]
[]
[]
[]
[]
[]
[]
[]
[]
[]
[]
[]
[]
[]
[]
[]
[]
[]
[]
[]
[]
[]
[]
[]
[]
[]
[]
[]
[]
[]
[]
[]
[null,null,"04/01/2025; ID/UT/WY",null,null,null,null,null,null,null,"Wattsmart is registered in U.S. Patent and Trademark Office."]
[null,null,{"$f":"\"Print Date: \" & TEXT(TODAY(),\"mm-dd-yyyy\")","v":"Print Date: 04-30-2026"},null,null,null,null,null,{"$f":" IF(ProjectName<>\"\",ProjectName,\"\")","v":""},null,null,null,null,null,null,null,null,"2 of 2"]

{"sheet":"Incentive Offer Letter","index":14,"n_rows":33,"n_cols":22,"rows_kept":33,"cut":false,"hidden":true,"merged":[[23,3,23,14],[24,3,24,14],[32,3,32,14],[1,12,3,14],[19,5,19,14],[20,5,20,14],[11,3,11,14],[18,3,18,14],[21,5,21,14],[22,5,22,14],[13,10,13,14],[14,10,14,14],[16,10,16,14],[15,10,15,14]]}
[]
[null,null,null,null,null,null,null,null,null,null,null,null,null,null,null,null,null,null,"State"]
[null,null,null,null,null,null,null,null,null,null,null,null,null,null,null,null,null,null,{"$f":"ProjectState","v":"ID"}]
[]
[null,null,null,{"$f":"IF(ParticipantContactName=\"\", \"\", ParticipantContactName)","v":""}]
[null,null,null,{"$f":"IF(BusinessName=\"\", \"Participant:\", \"Participant: \" & BusinessName)","v":"Participant:"}]
[null,null,null,{"$f":"IF(InstallAddress=\"\", \"Project Site:\", \"Project Site: \" & InstallAddress)","v":"Project Site:"}]
[null,null,null,{"$f":"IF(ProjectID_DSMC=\"\", \"Project Number:\", \"Project Number: \" & ProjectID_DSMC)","v":"Project Number:"}]
[]
[null,null,null,{"$f":"IF(ProjectName&ProjectID_DSMC=\"\",\n   \"Re: Wattsmart Business Incentive Offer for - \",\n   \"Re: Wattsmart Business Incentive Offer for - \" &\n   IF(ProjectName=\"\", \"\", ProjectName) &\n   IF(AND(ProjectName<>\"\", ProjectID_DSMC<>\"\"), \" – \", \"\") &\n   IF(ProjectID_DSMC=\"\", \"\", ProjectID_DSMC)\n)","v":"Re: Wattsmart Business Incentive Offer for - "}]
[]
[null,null,null,"We are pleased to provide this incentive offer for the energy efficiency measures listed on the following page(s) as part of the project named above. The incentive amount shown here is an estimate. The incentive amount to be actually paid will be recalculated from verified energy savings based on the project as-installed, and after applying caps based on final eligible project costs and the project’s simple payback."]
[]
[null,null,null,null,null,null,null,null,null,"Issue Date:",{"$f":"IF(IOIssueDate=\"\", \"\", IOIssueDate)","v":""}]
[null,null,null,null,null,null,null,null,null,"Estimated Annual Savings:",{"$f":"IF(OR(kWhSavings_Total=\"\", kWhSavings_Total=0), \"\", TEXT(kWhSavings_Total, \"#,##0\") & \" kWh\")","v":""}]
[null,null,null,null,null,null,null,null,null,"Estimated Incentive:",{"$f":"IF(OR(Incentives_Total=\"\", Incentives_Total=0), \"\", \"$\" & TEXT(Incentives_Total, \"#,##0.00\"))","v":""}]
[null,null,null,null,null,null,null,null,null,"Completion Date:",{"$f":"IF(IOCompletionDate=\"\", \"\", IOCompletionDate)","v":""},null,null,null,null,null,null,null,"Dates"]
[null,null,null,null,null,null,null,null,null,null,null,null,null,null,null,null,null,null,"Original IO Issue Date","IO Issue Date","IO Sign By Date","Project Completion Date"]
[null,null,null,"For this offer to remain valid and to receive an incentive, it is your responsibility to: ",null,null,null,null,null,null,null,null,null,null,null,null,null,null,null,null,{"$f":"IF(IOIssueDate=\"\",\"\",IF(OR(ProjectState=\"UT\",ProjectState=\"ID\"),IOIssueDate+45,IOIssueDate+120))","v":""},{"$f":"IF(IOIssueDate=\"\",\"\",IOIssueDate+120)","v":""}]
[null,null,null,null,{"$f":"\"1.\"","v":"1."},"Implement the project by the Completion Date."]
[null,null,null,null,{"$f":"\"2.\"","v":"2."},"Notify your Rocky Mountain Power Project Manager of any changes that materially affect the implementation schedule, measure costs, or energy savings. "]
[null,null,null,null,{"$f":"\"3.\"","v":"3."},"Upon completion, notify your Rocky Mountain Power Project Manager via email. "]
[null,null,null,null,{"$f":"\"4.\"","v":"4."},"Provide all required documentation within 60 days of the Completion Date and participate in any required inspections. "]
[]
[null,null,null,"Thank you for your interest in energy efficiency and for participating in Wattsmart Business. \n"]
[]
[null,null,null,{"$f":"LightingCoordinator & \", Project Coordinator\"","v":"Camille Cooper, Project Coordinator"}]
[null,null,null,"Wattsmart Business "]
[null,null,null,"Rocky Mountain Power Program Delivery Contractor"]
[null,null,null,{"$f":"IF(\n    LightingCoordinator=\"\",\n    \"\",\n    IF(\n        AND(\n            _xlfn.XLOOKUP(LightingCoordinator, Coordinators_Table[Coordinator], Coordinators_Table[Email], \"\")<>\"\",\n            _xlfn.XLOOKUP(LightingCoordinator, Coordinators_Table[Coordinator], Coordinators_Table[Phone], \"\")<>\"\"\n        ),\n        _xlfn.XLOOKUP(LightingCoordinator, Coordinators_Table[Coordinator], Coordinators_Table[Email], \"\") & \", \" &\n        _xlfn.XLOOKUP(LightingCoordinator, Coordinators_Table[Coordinator], Coordinators_Table[Phone], \"\"),\n        _xlfn.XLOOKUP(LightingCoordinator, Coordinators_Table[Coordinator], Coordinators_Table[Email], \"\") &\n        _xlfn.XLOOKUP(LightingCoordinator, Coordinators_Table[Coordinator], Coordinators_Table[Phone], \"\")\n    )\n)","v":"Camille.Cooper@evergreen.energy, 208-830-0132"}]
[]
[null,null,null,"Participant Acknowledgement"]
[null,null,null,{"$f":"IF(ProjectState=\"\",\n\"Select a project state on the Customer Information sheet to view this section.\",\nIF(OR(ProjectState=\"ID\",ProjectState=\"UT\"),\n_xlfn._LONGTEXT(\"I understand: (1) my responsibilities listed above; (2) the incentive offer is an estimate; (3) the incentive paid will be based on verified electric energy savings and approved costs; and (4) if Participant terminates a material portion of its electric s\",\"ervice requirements or if a material portion of its electric service requirements is transferred from Rocky Mountain Power to a new electric service provider for Participant’s Facility within 60 months of the date of the final incentive payment, and the F\",\"acility remains in operation, Participant is obligated to repay the final incentive to Rocky Mountain Power within 30 days of written request. The repayment (“Repayment”) will be determined as follows: Repayment = final incentive x (60-Savings Delivery Te\",\"rm) / 60, where Savings Delivery Term = number of months between the month the Final Incentive payment was made and the month the Facility terminated a material portion of its electric service. For determining the Repayment, the dates will be the first da\",\"y of the month in which they occur.\"),\nIF(ProjectState=\"WY\",\n_xlfn._LONGTEXT(\"I understand: (1) my responsibilities listed above; (2) the incentive offer is an estimate; (3) the incentive paid will be based on verified electric energy savings and approved costs; and (4) if Participant terminates a material portion of its electric s\",\"ervice requirements or if a material portion of its electric service requirements is transferred from Rocky Mountain Power to a new electric service provider for Participant’s Facility within 120 months of the date of the final incentive payment, and the \",\"Facility remains in operation, Participant is obligated to repay the final incentive to Rocky Mountain Power within 30 days of written request. The repayment (“Repayment”) will be determined as follows: Repayment = final incentive x (120-Savings Delivery \",\"Term) / 120, where Savings Delivery Term = number of months between the month the Final Incentive payment was made and the month the Facility terminated a material portion of its electric service. For determining the Repayment, the dates will be the first\",\" day of the month in which they occur.\"),\n\"\")))","v":"I understand: (1) my responsibilities listed above; (2) the incentive offer is an estimate; (3) the incentive paid will be based on verified electric energy savings and approved costs; and (4) if Participant terminates a material portion of its electric service requirements or if a material portion of its electric service requirements is transferred from Rocky Mountain Power to a new electric service provider for Participant’s Facility within 60 months of the date of the final incentive payment, and the Facility remains in operation, Participant is obligated to repay the final incentive to Rocky Mountain Power within 30 days of written request. The repayment (“Repayment”) will be determined as follows: Repayment = final incentive x (60-Savings Delivery Term) / 60, where Savings Delivery Term = number of months between the month the Final Incentive payment was made and the month the Facility terminated a material portion of its electric service. For determining the Repayment, the dates will be the first day of the month in which they occur."}]

{"sheet":"Help & Notes","index":15,"n_rows":125,"n_cols":3,"rows_kept":125,"cut":false,"hidden":false,"merged":[[34,2,35,3],[120,2,122,3],[124,2,127,3],[75,2,76,3],[77,2,77,3],[78,2,80,3],[95,1,96,4],[98,2,102,3],[104,2,107,3],[109,2,112,3],[114,2,118,3],[83,2,83,3],[84,2,84,3],[85,2,85,3],[86,2,86,3],[87,2,87,3],[1,1,2,3],[7,2,8,3],[14,2,16,3],[22,2,23,3],[32,2,33,3],[27,2,28,2],[10,1,11,4],[17,2,17,3],[36,2,37,3],[42,2,43,3],[91,2,91,3],[92,2,92,3],[88,2,88,3],[71,1,72,4],[38,2,39,3],[40,2,41,3],[52,2,52,3],[89,2,89,3],[90,2,90,3],[82,2,82,3]]}
[]
[null,"Lighting Workbook Help & Notes"]
[]
[null,null,"yellow cells indicate input is required"]
[null,null,"light gray cells indicate auto-calculation based on other inputs"]
[null,null,"Red text or fields indicates an issue needing attention"]
[]
[null,null,"Macros must be enabled for the functions of the workbook to work properly. For further explanation, refer to the Microsoft Office Excel Help function."]
[]
[]
[null,"Customer Information Page"]
[]
[null,"Project & Participant Information"]
[]
[null,null,"Enter the specific details of the location for which the project is being performed. State and Rate Schedule are required to populate the project summary. Account information can be found on the customer utility bill as shown below. "]
[]
[]
[null,null,"Category: RMP defined size of the participants business energy usage profile. This category can also be determined from the site: "]
[null,null,"https://wattsmartbusiness.com/eligibility"]
[]
[null,"Payee Information"]
[]
[null,null,"Enter the payment recipient information. Incentive recipient can be the project's contact, the building owner or tenant, or a third-party trade ally."]
[]
[]
[null,"Vendor Information"]
[]
[null,null,"Enter the information for the vendor involved in the project."]
[]
[]
[null,"Construction Type"]
[]
[null,null,"Retrofit: Lighting equipment is installed in a pre-existing facility as an upgrade from an old lighting type to a newer more efficient lighting type."]
[]
[null,null,"New Construction:  Lighting equipment installed in a newly constructed facility or in newly constructed square footage added to an existing facility."]
[]
[null,null,"Major Renovation: Lighting equipment is installed in a facility use type where the existing system will not meet Owner/Customer projected requirements within existing facility square footage."]
[]
[null,null,"Exterior Only: Lighting equipment is installed in an exterior only application where interior LPD will not be affected."]
[]
[null,null,"Note: The lighting tool cannot be used to calculate savings or incentive for new construction or major renovation space types where energy code does not apply. Please contact your project coordinator for additional information."]
[]
[null,null,"Category: The lighting tool determines your category based on your energy usage profile for up to the past 12 active months. More information about the category and what it means can be found at https://verify.wattsmartbusiness.com/Customer"]
[]
[]
[null,"Coordinator"]
[]
[null,null,"Enter the information for the program administration personnel assigned to project coordination. efforts."]
[]
[null,"Project Costs (Must enter this information for tool to calculate pay-back)"]
[]
[null,null,"Material: Enter the costs of all installed lighting equipment (fixtures, lamps, ballasts, controls)."]
[null,null,"Labor: Enter the costs of all labor. If the project is self-installed, please provide hours of work performed and billing rate per hour. "]
[null,null,"Other: Enter all other applicable costs (sales tax, permit and disposal fees, equipment rentals)."]
[]
[null,"Space Type and Size"]
[]
[null,null,"Space Type: Enter the facility type for the project.  Up to five building types may be selected."]
[null,null,"SQFT: Enter the applicable square footage for each selected space type."]
[null,null,"LPD: Lighting Power Density is the allowed watts per square foot based on the state energy code."]
[]
[null,"Operation Schedule"]
[]
[null,null,"# Holidays Closed: This refers to nationally observed holidays during which federal institutions are closed. "]
[null,null,"Weeks per Year: Enter the weeks per year the facility is in operation. "]
[null,null,"Schedule 'X': Use this schedule for 24/7 emergency lighting (i.e. exit signs)."]
[null,null,"Schedule 'Y': Use this schedule for night only lighting."]
[null,null,"Schedule 'E': For major renovation projects, this is a default schedule based on the space type selection. It can be used if the"]
[null,null,"                     operating schedule is not known for the lighting equipment."]
[]
[]
[null,"Project Information Page"]
[]
[null,"Equipment Entry:"]
[]
[null,null,"Operation Schedule: For each line item, select from the schedules (A, B, C, D, E, S, X, or Y) that were input on the Customer Information tab."]
[]
[null,null,"Space Description: For each line item, provide a unique identifier for the specific location of the fixtures."]
[null,null,"Fixtures: For each line item, select an existing or proposed equipment field and then click the light bulb       icon in the column header. This will launch the fixture builder where you can select the applicable components, including controls, for the equipment you wish to add or update. Once you've added the equipment, enter the appropriate fixture quantity."]
[]
[]
[null,null,"Fixture Builder Glossary: The following is a brief description for many of the equipment codes found within the fixture builder"]
[null,null,"    Seasonal exterior:    location for lights that are outside of the facility and follow a seasonal schedule, like a sports stadium."]
[null,null,"    Basic:    standard automated lighting controls such as occupancy sensor controls."]
[null,null,"    Basic exterior dimming:    external dimming control allows exterior lights to dim automatically."]
[null,null,"    Control recommissioning:    control that is set up on lighting system after a lighting project has concluded."]
[null,null,"    Networked:    connecting fixtures to an existing building management system to control lighting levels."]
[null,null,"    Advanced networked:    advanced network control designed for use to facilitate large lighting systems efficiently."]
[null,null,"    Advanced networked exterior dimming:    external dimming control allows exterior lights to dim automatically."]
[null,null,"    Re-Commissioning:    Commissioning of existing lighting controls with networked capability to properly function as"]
[null,null,"                                    an advanced networked lighting control."]
[null,null,"    (MID):    midstream lighting instant incentive equipment for specific customers. This equipment must go through the mid-"]
[null,null,"                 stream process, including the LII application"]
[]
[]
[null,"Lighting Savings Methodology"]
[]
[null,"Lighting Energy Savings Calculations"]
[null,null,"For each line in the tool (generally indicative of an individual space in a building), annual lighting savings (kWh/yr) are calculated by subtracting the proposed space energy use  (proposed fixture wattage multiplied by the quantity of proposed fixtures, multiplied  by the annual operating hours, and then dividing by 1000) from the baseline space energy use (baseline fixture wattage multiplied by the quantity of baseline fixtures, multiplied  by the annual operating hours, and then dividing by 1000). This is then multiplied by an applicable heating/cooling factor based on region and space type selections."]
[]
[]
[]
[]
[null,"Lighting Demand Savings Calculations"]
[null,null,"For each line in the tool, demand savings (kW) are calculated by subtracting the proposed space wattage (proposed fixture wattage multiplied by the quantity of proposed fixtures, and then dividing by 1000) from the baseline space wattage consumption (baseline fixture wattage multiplied by the quantity of baseline fixtures, and then dividing by 1000). The resultant kW reduction is then multiplied by an appropriate demand diversity factor."]
[]
[]
[]
[null,"Baseline Wattage"]
[null,null,"The baseline wattage is generally the actual fixture wattage, except for fixtures/lamps that are regulated by federal efficacy standards, in which case the baseline wattage is a stipulated wattage consistent with a fixture/lamp that is minimally compliant with the efficacy standard.  A list of fixtures with stipulated wattages is located on the website."]
[]
[]
[]
[null,"Project Savings Calculations"]
[null,null,"The calculated lighting savings (kWh/yr) from each line in the tool are summed to determine the project savings.  Project savings are utilized with reported customer costs to determine the project simple payback and whether it complies with the 1 year simple payback cap.  The tool reports savings in cases where the project simple payback is less than one year, but ineligible for incentives because of the one year simple payback cap.  Project savings must be positive for the project to be eligible to receive incentives."]
[]
[]
[]
[]
[null,"Ineligible Fixture Savings Calculations"]
[null,null,"The savings calculation procedure is applied uniformly across all fixture combinations entered into the tool, regardless of whether the installed fixtures are eligible to receive incentives."]
[]
[]
[null,"Control Energy Savings Calculations"]
[null,null,"Control savings are calculated by multiplying the lighting consumption calculated above for existing or proposed fixtures by a fixed percentage based on the control type.  For lighting projects replacing existing controls, the net control savings are estimated by subtracting the existing control savings from the proposed control savings for each space/line item in the tool. No demand savings are calculated for lighting controls."]

{"sheet":"EquipmentTable_Retrofit_ID","index":16,"n_rows":68,"n_cols":21,"rows_kept":68,"cut":false,"hidden":true,"merged":[]}
["categoryProposed","equipmentProposed","controlMethod","measureRetrofit_Interior_None","measureRetrofit_Interior_Basic","measureRetrofit_Interior_Mid","measureRetrofit_Interior_Advanced","measureRetrofit_Interior_Plug","measureRetrofit_Exterior_None","measureRetrofit_Exterior_Mid","measureRetrofit_Exterior_Advanced","measureRetrofit_Street_None","measureRetrofit_Street_Mid","measureRetrofit_Street_Advanced","measureRetrofit_SBE"]
["Controls Only","Controls Only - Advanced networked",null,null,null,null,null,null,null,null,null,null,null,null,null,null,{"$f":"TEXT(COUNTIFS(MeasureTable_ID!G:G,EquipmentTable_Retrofit_ID[[#This Row],[measureRetrofit_Interior_None]],MeasureTable_ID!A:A,\"TRUE\"),\"0\") & \", \" &\nTEXT(COUNTIFS(MeasureTable_ID!G:G,EquipmentTable_Retrofit_ID[[#This Row],[measureRetrofit_Interior_Basic]],MeasureTable_ID!A:A,\"TRUE\"),\"0\") & \", \" &\nTEXT(COUNTIFS(MeasureTable_ID!G:G,EquipmentTable_Retrofit_ID[[#This Row],[measureRetrofit_Interior_Advanced]],MeasureTable_ID!A:A,\"TRUE\"),\"0\") & \", \" &\nTEXT(COUNTIFS(MeasureTable_ID!G:G,EquipmentTable_Retrofit_ID[[#This Row],[measureRetrofit_Exterior_None]],MeasureTable_ID!A:A,\"TRUE\"),\"0\") & \", \" &\nTEXT(COUNTIFS(MeasureTable_ID!G:G,EquipmentTable_Retrofit_ID[[#This Row],[measureRetrofit_Exterior_Advanced]],MeasureTable_ID!A:A,\"TRUE\"),\"0\") & \", \" &\nTEXT(COUNTIFS(MeasureTable_ID!G:G,EquipmentTable_Retrofit_ID[[#This Row],[measureRetrofit_Street_None]],MeasureTable_ID!A:A,\"TRUE\"),\"0\") & \", \" &\nTEXT(COUNTIFS(MeasureTable_ID!G:G,EquipmentTable_Retrofit_ID[[#This Row],[measureRetrofit_Street_Advanced]],MeasureTable_ID!A:A,\"TRUE\"),\"0\") & \", \" &\nTEXT(COUNTIFS(MeasureTable_ID!G:G,EquipmentTable_Retrofit_ID[[#This Row],[measureRetrofit_SBE]],MeasureTable_ID!A:A,\"TRUE\"),\"0\")","v":"0, 0, 0, 0, 0, 0, 0, 0"}]
["Controls Only","Controls Only - Advanced networked exterior dimming",null,null,null,null,null,null,null,null,null,null,null,null,null,null,{"$f":"TEXT(COUNTIFS(MeasureTable_ID!G:G,EquipmentTable_Retrofit_ID[[#This Row],[measureRetrofit_Interior_None]],MeasureTable_ID!A:A,\"TRUE\"),\"0\") & \", \" &\nTEXT(COUNTIFS(MeasureTable_ID!G:G,EquipmentTable_Retrofit_ID[[#This Row],[measureRetrofit_Interior_Basic]],MeasureTable_ID!A:A,\"TRUE\"),\"0\") & \", \" &\nTEXT(COUNTIFS(MeasureTable_ID!G:G,EquipmentTable_Retrofit_ID[[#This Row],[measureRetrofit_Interior_Advanced]],MeasureTable_ID!A:A,\"TRUE\"),\"0\") & \", \" &\nTEXT(COUNTIFS(MeasureTable_ID!G:G,EquipmentTable_Retrofit_ID[[#This Row],[measureRetrofit_Exterior_None]],MeasureTable_ID!A:A,\"TRUE\"),\"0\") & \", \" &\nTEXT(COUNTIFS(MeasureTable_ID!G:G,EquipmentTable_Retrofit_ID[[#This Row],[measureRetrofit_Exterior_Advanced]],MeasureTable_ID!A:A,\"TRUE\"),\"0\") & \", \" &\nTEXT(COUNTIFS(MeasureTable_ID!G:G,EquipmentTable_Retrofit_ID[[#This Row],[measureRetrofit_Street_None]],MeasureTable_ID!A:A,\"TRUE\"),\"0\") & \", \" &\nTEXT(COUNTIFS(MeasureTable_ID!G:G,EquipmentTable_Retrofit_ID[[#This Row],[measureRetrofit_Street_Advanced]],MeasureTable_ID!A:A,\"TRUE\"),\"0\") & \", \" &\nTEXT(COUNTIFS(MeasureTable_ID!G:G,EquipmentTable_Retrofit_ID[[#This Row],[measureRetrofit_SBE]],MeasureTable_ID!A:A,\"TRUE\"),\"0\")","v":"0, 0, 0, 0, 0, 0, 0, 0"}]
["Controls Only","Controls Only - Basic",null,null,null,null,null,null,null,null,null,null,null,null,null,null,{"$f":"TEXT(COUNTIFS(MeasureTable_ID!G:G,EquipmentTable_Retrofit_ID[[#This Row],[measureRetrofit_Interior_None]],MeasureTable_ID!A:A,\"TRUE\"),\"0\") & \", \" &\nTEXT(COUNTIFS(MeasureTable_ID!G:G,EquipmentTable_Retrofit_ID[[#This Row],[measureRetrofit_Interior_Basic]],MeasureTable_ID!A:A,\"TRUE\"),\"0\") & \", \" &\nTEXT(COUNTIFS(MeasureTable_ID!G:G,EquipmentTable_Retrofit_ID[[#This Row],[measureRetrofit_Interior_Advanced]],MeasureTable_ID!A:A,\"TRUE\"),\"0\") & \", \" &\nTEXT(COUNTIFS(MeasureTable_ID!G:G,EquipmentTable_Retrofit_ID[[#This Row],[measureRetrofit_Exterior_None]],MeasureTable_ID!A:A,\"TRUE\"),\"0\") & \", \" &\nTEXT(COUNTIFS(MeasureTable_ID!G:G,EquipmentTable_Retrofit_ID[[#This Row],[measureRetrofit_Exterior_Advanced]],MeasureTable_ID!A:A,\"TRUE\"),\"0\") & \", \" &\nTEXT(COUNTIFS(MeasureTable_ID!G:G,EquipmentTable_Retrofit_ID[[#This Row],[measureRetrofit_Street_None]],MeasureTable_ID!A:A,\"TRUE\"),\"0\") & \", \" &\nTEXT(COUNTIFS(MeasureTable_ID!G:G,EquipmentTable_Retrofit_ID[[#This Row],[measureRetrofit_Street_Advanced]],MeasureTable_ID!A:A,\"TRUE\"),\"0\") & \", \" &\nTEXT(COUNTIFS(MeasureTable_ID!G:G,EquipmentTable_Retrofit_ID[[#This Row],[measureRetrofit_SBE]],MeasureTable_ID!A:A,\"TRUE\"),\"0\")","v":"0, 0, 0, 0, 0, 0, 0, 0"}]
["Controls Only","Controls Only - Basic exterior dimming",null,null,null,null,null,null,null,null,null,null,null,null,null,null,{"$f":"TEXT(COUNTIFS(MeasureTable_ID!G:G,EquipmentTable_Retrofit_ID[[#This Row],[measureRetrofit_Interior_None]],MeasureTable_ID!A:A,\"TRUE\"),\"0\") & \", \" &\nTEXT(COUNTIFS(MeasureTable_ID!G:G,EquipmentTable_Retrofit_ID[[#This Row],[measureRetrofit_Interior_Basic]],MeasureTable_ID!A:A,\"TRUE\"),\"0\") & \", \" &\nTEXT(COUNTIFS(MeasureTable_ID!G:G,EquipmentTable_Retrofit_ID[[#This Row],[measureRetrofit_Interior_Advanced]],MeasureTable_ID!A:A,\"TRUE\"),\"0\") & \", \" &\nTEXT(COUNTIFS(MeasureTable_ID!G:G,EquipmentTable_Retrofit_ID[[#This Row],[measureRetrofit_Exterior_None]],MeasureTable_ID!A:A,\"TRUE\"),\"0\") & \", \" &\nTEXT(COUNTIFS(MeasureTable_ID!G:G,EquipmentTable_Retrofit_ID[[#This Row],[measureRetrofit_Exterior_Advanced]],MeasureTable_ID!A:A,\"TRUE\"),\"0\") & \", \" &\nTEXT(COUNTIFS(MeasureTable_ID!G:G,EquipmentTable_Retrofit_ID[[#This Row],[measureRetrofit_Street_None]],MeasureTable_ID!A:A,\"TRUE\"),\"0\") & \", \" &\nTEXT(COUNTIFS(MeasureTable_ID!G:G,EquipmentTable_Retrofit_ID[[#This Row],[measureRetrofit_Street_Advanced]],MeasureTable_ID!A:A,\"TRUE\"),\"0\") & \", \" &\nTEXT(COUNTIFS(MeasureTable_ID!G:G,EquipmentTable_Retrofit_ID[[#This Row],[measureRetrofit_SBE]],MeasureTable_ID!A:A,\"TRUE\"),\"0\")","v":"0, 0, 0, 0, 0, 0, 0, 0"}]
["Controls Only","Controls Only - Control recommissioning",null,null,null,null,null,null,null,null,null,null,null,null,null,null,{"$f":"TEXT(COUNTIFS(MeasureTable_ID!G:G,EquipmentTable_Retrofit_ID[[#This Row],[measureRetrofit_Interior_None]],MeasureTable_ID!A:A,\"TRUE\"),\"0\") & \", \" &\nTEXT(COUNTIFS(MeasureTable_ID!G:G,EquipmentTable_Retrofit_ID[[#This Row],[measureRetrofit_Interior_Basic]],MeasureTable_ID!A:A,\"TRUE\"),\"0\") & \", \" &\nTEXT(COUNTIFS(MeasureTable_ID!G:G,EquipmentTable_Retrofit_ID[[#This Row],[measureRetrofit_Interior_Advanced]],MeasureTable_ID!A:A,\"TRUE\"),\"0\") & \", \" &\nTEXT(COUNTIFS(MeasureTable_ID!G:G,EquipmentTable_Retrofit_ID[[#This Row],[measureRetrofit_Exterior_None]],MeasureTable_ID!A:A,\"TRUE\"),\"0\") & \", \" &\nTEXT(COUNTIFS(MeasureTable_ID!G:G,EquipmentTable_Retrofit_ID[[#This Row],[measureRetrofit_Exterior_Advanced]],MeasureTable_ID!A:A,\"TRUE\"),\"0\") & \", \" &\nTEXT(COUNTIFS(MeasureTable_ID!G:G,EquipmentTable_Retrofit_ID[[#This Row],[measureRetrofit_Street_None]],MeasureTable_ID!A:A,\"TRUE\"),\"0\") & \", \" &\nTEXT(COUNTIFS(MeasureTable_ID!G:G,EquipmentTable_Retrofit_ID[[#This Row],[measureRetrofit_Street_Advanced]],MeasureTable_ID!A:A,\"TRUE\"),\"0\") & \", \" &\nTEXT(COUNTIFS(MeasureTable_ID!G:G,EquipmentTable_Retrofit_ID[[#This Row],[measureRetrofit_SBE]],MeasureTable_ID!A:A,\"TRUE\"),\"0\")","v":"0, 0, 0, 0, 0, 0, 0, 0"}]
["Controls Only","Controls Only - Networked",null,null,null,null,null,null,null,null,null,null,null,null,null,null,{"$f":"TEXT(COUNTIFS(MeasureTable_ID!G:G,EquipmentTable_Retrofit_ID[[#This Row],[measureRetrofit_Interior_None]],MeasureTable_ID!A:A,\"TRUE\"),\"0\") & \", \" &\nTEXT(COUNTIFS(MeasureTable_ID!G:G,EquipmentTable_Retrofit_ID[[#This Row],[measureRetrofit_Interior_Basic]],MeasureTable_ID!A:A,\"TRUE\"),\"0\") & \", \" &\nTEXT(COUNTIFS(MeasureTable_ID!G:G,EquipmentTable_Retrofit_ID[[#This Row],[measureRetrofit_Interior_Advanced]],MeasureTable_ID!A:A,\"TRUE\"),\"0\") & \", \" &\nTEXT(COUNTIFS(MeasureTable_ID!G:G,EquipmentTable_Retrofit_ID[[#This Row],[measureRetrofit_Exterior_None]],MeasureTable_ID!A:A,\"TRUE\"),\"0\") & \", \" &\nTEXT(COUNTIFS(MeasureTable_ID!G:G,EquipmentTable_Retrofit_ID[[#This Row],[measureRetrofit_Exterior_Advanced]],MeasureTable_ID!A:A,\"TRUE\"),\"0\") & \", \" &\nTEXT(COUNTIFS(MeasureTable_ID!G:G,EquipmentTable_Retrofit_ID[[#This Row],[measureRetrofit_Street_None]],MeasureTable_ID!A:A,\"TRUE\"),\"0\") & \", \" &\nTEXT(COUNTIFS(MeasureTable_ID!G:G,EquipmentTable_Retrofit_ID[[#This Row],[measureRetrofit_Street_Advanced]],MeasureTable_ID!A:A,\"TRUE\"),\"0\") & \", \" &\nTEXT(COUNTIFS(MeasureTable_ID!G:G,EquipmentTable_Retrofit_ID[[#This Row],[measureRetrofit_SBE]],MeasureTable_ID!A:A,\"TRUE\"),\"0\")","v":"0, 0, 0, 0, 0, 0, 0, 0"}]
["Non-General Illumination","LED Case Lighting – Freezer Case","separate","Interior Lighting - Custom - Non-General - Retrofit - v3 - ID","Interior Lighting - Custom - Non-General - Retrofit - v3 - ID","Interior Lighting - Custom - Non-General - Retrofit - v3 - ID","Interior Lighting - Custom - Non-General - Retrofit - v3 - ID","Interior Lighting - Custom - Non-General - Retrofit - v3 - ID","Interior Lighting - Custom - Non-General - Retrofit - v3 - ID","Interior Lighting - Custom - Non-General - Retrofit - v3 - ID","Interior Lighting - Custom - Non-General - Retrofit - v3 - ID","Non-eligible fixture - Retrofit - ID","Non-eligible fixture - Retrofit - ID","Non-eligible fixture - Retrofit - ID",null,null,{"$f":"TEXT(COUNTIFS(MeasureTable_ID!G:G,EquipmentTable_Retrofit_ID[[#This Row],[measureRetrofit_Interior_None]],MeasureTable_ID!A:A,\"TRUE\"),\"0\") & \", \" &\nTEXT(COUNTIFS(MeasureTable_ID!G:G,EquipmentTable_Retrofit_ID[[#This Row],[measureRetrofit_Interior_Basic]],MeasureTable_ID!A:A,\"TRUE\"),\"0\") & \", \" &\nTEXT(COUNTIFS(MeasureTable_ID!G:G,EquipmentTable_Retrofit_ID[[#This Row],[measureRetrofit_Interior_Advanced]],MeasureTable_ID!A:A,\"TRUE\"),\"0\") & \", \" &\nTEXT(COUNTIFS(MeasureTable_ID!G:G,EquipmentTable_Retrofit_ID[[#This Row],[measureRetrofit_Exterior_None]],MeasureTable_ID!A:A,\"TRUE\"),\"0\") & \", \" &\nTEXT(COUNTIFS(MeasureTable_ID!G:G,EquipmentTable_Retrofit_ID[[#This Row],[measureRetrofit_Exterior_Advanced]],MeasureTable_ID!A:A,\"TRUE\"),\"0\") & \", \" &\nTEXT(COUNTIFS(MeasureTable_ID!G:G,EquipmentTable_Retrofit_ID[[#This Row],[measureRetrofit_Street_None]],MeasureTable_ID!A:A,\"TRUE\"),\"0\") & \", \" &\nTEXT(COUNTIFS(MeasureTable_ID!G:G,EquipmentTable_Retrofit_ID[[#This Row],[measureRetrofit_Street_Advanced]],MeasureTable_ID!A:A,\"TRUE\"),\"0\") & \", \" &\nTEXT(COUNTIFS(MeasureTable_ID!G:G,EquipmentTable_Retrofit_ID[[#This Row],[measureRetrofit_SBE]],MeasureTable_ID!A:A,\"TRUE\"),\"0\")","v":"0, 0, 0, 0, 0, 0, 0, 0"}]
["Non-General Illumination","LED Case Lighting – Refrigerated Case","separate","Interior Lighting - Custom - Non-General - Retrofit - v3 - ID","Interior Lighting - Custom - Non-General - Retrofit - v3 - ID","Interior Lighting - Custom - Non-General - Retrofit - v3 - ID","Interior Lighting - Custom - Non-General - Retrofit - v3 - ID","Interior Lighting - Custom - Non-General - Retrofit - v3 - ID","Interior Lighting - Custom - Non-General - Retrofit - v3 - ID","Interior Lighting - Custom - Non-General - Retrofit - v3 - ID","Interior Lighting - Custom - Non-General - Retrofit - v3 - ID","Non-eligible fixture - Retrofit - ID","Non-eligible fixture - Retrofit - ID","Non-eligible fixture - Retrofit - ID",null,null,{"$f":"TEXT(COUNTIFS(MeasureTable_ID!G:G,EquipmentTable_Retrofit_ID[[#This Row],[measureRetrofit_Interior_None]],MeasureTable_ID!A:A,\"TRUE\"),\"0\") & \", \" &\nTEXT(COUNTIFS(MeasureTable_ID!G:G,EquipmentTable_Retrofit_ID[[#This Row],[measureRetrofit_Interior_Basic]],MeasureTable_ID!A:A,\"TRUE\"),\"0\") & \", \" &\nTEXT(COUNTIFS(MeasureTable_ID!G:G,EquipmentTable_Retrofit_ID[[#This Row],[measureRetrofit_Interior_Advanced]],MeasureTable_ID!A:A,\"TRUE\"),\"0\") & \", \" &\nTEXT(COUNTIFS(MeasureTable_ID!G:G,EquipmentTable_Retrofit_ID[[#This Row],[measureRetrofit_Exterior_None]],MeasureTable_ID!A:A,\"TRUE\"),\"0\") & \", \" &\nTEXT(COUNTIFS(MeasureTable_ID!G:G,EquipmentTable_Retrofit_ID[[#This Row],[measureRetrofit_Exterior_Advanced]],MeasureTable_ID!A:A,\"TRUE\"),\"0\") & \", \" &\nTEXT(COUNTIFS(MeasureTable_ID!G:G,EquipmentTable_Retrofit_ID[[#This Row],[measureRetrofit_Street_None]],MeasureTable_ID!A:A,\"TRUE\"),\"0\") & \", \" &\nTEXT(COUNTIFS(MeasureTable_ID!G:G,EquipmentTable_Retrofit_ID[[#This Row],[measureRetrofit_Street_Advanced]],MeasureTable_ID!A:A,\"TRUE\"),\"0\") & \", \" &\nTEXT(COUNTIFS(MeasureTable_ID!G:G,EquipmentTable_Retrofit_ID[[#This Row],[measureRetrofit_SBE]],MeasureTable_ID!A:A,\"TRUE\"),\"0\")","v":"0, 0, 0, 0, 0, 0, 0, 0"}]
["Non-General Illumination","LED Exit Sign","separate","Interior Lighting - Custom - Non-General - Retrofit - v3 - ID","Interior Lighting - Custom - Non-General - Retrofit - v3 - ID","Interior Lighting - Custom - Non-General - Retrofit - v3 - ID","Interior Lighting - Custom - Non-General - Retrofit - v3 - ID","Interior Lighting - Custom - Non-General - Retrofit - v3 - ID","Interior Lighting - Custom - Non-General - Retrofit - v3 - ID","Interior Lighting - Custom - Non-General - Retrofit - v3 - ID","Interior Lighting - Custom - Non-General - Retrofit - v3 - ID","Non-eligible fixture - Retrofit - ID","Non-eligible fixture - Retrofit - ID","Non-eligible fixture - Retrofit - ID",null,null,{"$f":"TEXT(COUNTIFS(MeasureTable_ID!G:G,EquipmentTable_Retrofit_ID[[#This Row],[measureRetrofit_Interior_None]],MeasureTable_ID!A:A,\"TRUE\"),\"0\") & \", \" &\nTEXT(COUNTIFS(MeasureTable_ID!G:G,EquipmentTable_Retrofit_ID[[#This Row],[measureRetrofit_Interior_Basic]],MeasureTable_ID!A:A,\"TRUE\"),\"0\") & \", \" &\nTEXT(COUNTIFS(MeasureTable_ID!G:G,EquipmentTable_Retrofit_ID[[#This Row],[measureRetrofit_Interior_Advanced]],MeasureTable_ID!A:A,\"TRUE\"),\"0\") & \", \" &\nTEXT(COUNTIFS(MeasureTable_ID!G:G,EquipmentTable_Retrofit_ID[[#This Row],[measureRetrofit_Exterior_None]],MeasureTable_ID!A:A,\"TRUE\"),\"0\") & \", \" &\nTEXT(COUNTIFS(MeasureTable_ID!G:G,EquipmentTable_Retrofit_ID[[#This Row],[measureRetrofit_Exterior_Advanced]],MeasureTable_ID!A:A,\"TRUE\"),\"0\") & \", \" &\nTEXT(COUNTIFS(MeasureTable_ID!G:G,EquipmentTable_Retrofit_ID[[#This Row],[measureRetrofit_Street_None]],MeasureTable_ID!A:A,\"TRUE\"),\"0\") & \", \" &\nTEXT(COUNTIFS(MeasureTable_ID!G:G,EquipmentTable_Retrofit_ID[[#This Row],[measureRetrofit_Street_Advanced]],MeasureTable_ID!A:A,\"TRUE\"),\"0\") & \", \" &\nTEXT(COUNTIFS(MeasureTable_ID!G:G,EquipmentTable_Retrofit_ID[[#This Row],[measureRetrofit_SBE]],MeasureTable_ID!A:A,\"TRUE\"),\"0\")","v":"0, 0, 0, 0, 0, 0, 0, 0"}]
["Non-General Illumination","LED Sign - Channel Letter","separate","Interior Lighting - Custom - Non-General - Retrofit - v3 - ID","Interior Lighting - Custom - Non-General - Retrofit - v3 - ID","Interior Lighting - Custom - Non-General - Retrofit - v3 - ID","Interior Lighting - Custom - Non-General - Retrofit - v3 - ID","Interior Lighting - Custom - Non-General - Retrofit - v3 - ID","Interior Lighting - Custom - Non-General - Retrofit - v3 - ID","Interior Lighting - Custom - Non-General - Retrofit - v3 - ID","Interior Lighting - Custom - Non-General - Retrofit - v3 - ID","Non-eligible fixture - Retrofit - ID","Non-eligible fixture - Retrofit - ID","Non-eligible fixture - Retrofit - ID",null,null,{"$f":"TEXT(COUNTIFS(MeasureTable_ID!G:G,EquipmentTable_Retrofit_ID[[#This Row],[measureRetrofit_Interior_None]],MeasureTable_ID!A:A,\"TRUE\"),\"0\") & \", \" &\nTEXT(COUNTIFS(MeasureTable_ID!G:G,EquipmentTable_Retrofit_ID[[#This Row],[measureRetrofit_Interior_Basic]],MeasureTable_ID!A:A,\"TRUE\"),\"0\") & \", \" &\nTEXT(COUNTIFS(MeasureTable_ID!G:G,EquipmentTable_Retrofit_ID[[#This Row],[measureRetrofit_Interior_Advanced]],MeasureTable_ID!A:A,\"TRUE\"),\"0\") & \", \" &\nTEXT(COUNTIFS(MeasureTable_ID!G:G,EquipmentTable_Retrofit_ID[[#This Row],[measureRetrofit_Exterior_None]],MeasureTable_ID!A:A,\"TRUE\"),\"0\") & \", \" &\nTEXT(COUNTIFS(MeasureTable_ID!G:G,EquipmentTable_Retrofit_ID[[#This Row],[measureRetrofit_Exterior_Advanced]],MeasureTable_ID!A:A,\"TRUE\"),\"0\") & \", \" &\nTEXT(COUNTIFS(MeasureTable_ID!G:G,EquipmentTable_Retrofit_ID[[#This Row],[measureRetrofit_Street_None]],MeasureTable_ID!A:A,\"TRUE\"),\"0\") & \", \" &\nTEXT(COUNTIFS(MeasureTable_ID!G:G,EquipmentTable_Retrofit_ID[[#This Row],[measureRetrofit_Street_Advanced]],MeasureTable_ID!A:A,\"TRUE\"),\"0\") & \", \" &\nTEXT(COUNTIFS(MeasureTable_ID!G:G,EquipmentTable_Retrofit_ID[[#This Row],[measureRetrofit_SBE]],MeasureTable_ID!A:A,\"TRUE\"),\"0\")","v":"0, 0, 0, 0, 0, 0, 0, 0"}]
["Non-General Illumination","LED Sign - Marquee/Cabinet","separate","Interior Lighting - Custom - Non-General - Retrofit - v3 - ID","Interior Lighting - Custom - Non-General - Retrofit - v3 - ID","Interior Lighting - Custom - Non-General - Retrofit - v3 - ID","Interior Lighting - Custom - Non-General - Retrofit - v3 - ID","Interior Lighting - Custom - Non-General - Retrofit - v3 - ID","Interior Lighting - Custom - Non-General - Retrofit - v3 - ID","Interior Lighting - Custom - Non-General - Retrofit - v3 - ID","Interior Lighting - Custom - Non-General - Retrofit - v3 - ID","Non-eligible fixture - Retrofit - ID","Non-eligible fixture - Retrofit - ID","Non-eligible fixture - Retrofit - ID",null,null,{"$f":"TEXT(COUNTIFS(MeasureTable_ID!G:G,EquipmentTable_Retrofit_ID[[#This Row],[measureRetrofit_Interior_None]],MeasureTable_ID!A:A,\"TRUE\"),\"0\") & \", \" &\nTEXT(COUNTIFS(MeasureTable_ID!G:G,EquipmentTable_Retrofit_ID[[#This Row],[measureRetrofit_Interior_Basic]],MeasureTable_ID!A:A,\"TRUE\"),\"0\") & \", \" &\nTEXT(COUNTIFS(MeasureTable_ID!G:G,EquipmentTable_Retrofit_ID[[#This Row],[measureRetrofit_Interior_Advanced]],MeasureTable_ID!A:A,\"TRUE\"),\"0\") & \", \" &\nTEXT(COUNTIFS(MeasureTable_ID!G:G,EquipmentTable_Retrofit_ID[[#This Row],[measureRetrofit_Exterior_None]],MeasureTable_ID!A:A,\"TRUE\"),\"0\") & \", \" &\nTEXT(COUNTIFS(MeasureTable_ID!G:G,EquipmentTable_Retrofit_ID[[#This Row],[measureRetrofit_Exterior_Advanced]],MeasureTable_ID!A:A,\"TRUE\"),\"0\") & \", \" &\nTEXT(COUNTIFS(MeasureTable_ID!G:G,EquipmentTable_Retrofit_ID[[#This Row],[measureRetrofit_Street_None]],MeasureTable_ID!A:A,\"TRUE\"),\"0\") & \", \" &\nTEXT(COUNTIFS(MeasureTable_ID!G:G,EquipmentTable_Retrofit_ID[[#This Row],[measureRetrofit_Street_Advanced]],MeasureTable_ID!A:A,\"TRUE\"),\"0\") & \", \" &\nTEXT(COUNTIFS(MeasureTable_ID!G:G,EquipmentTable_Retrofit_ID[[#This Row],[measureRetrofit_SBE]],MeasureTable_ID!A:A,\"TRUE\"),\"0\")","v":"0, 0, 0, 0, 0, 0, 0, 0"}]
["New Fixture","LED Fixture - Bollard",null,"Interior Fixture Replacement - w/out Controls - Retrofit - v2 - ID","Interior Fixture Replacement - w/ Basic Controls - Retrofit - v2 - ID","Interior Fixture Replacement - w/ Networked Lighting Controls - Retrofit - ID","Interior Fixture Replacement - w/ Advanced Networked Lighting Controls/LLLCs - Retrofit - v4 - ID","Interior Fixture Replacement - w/ Plug and Play Control Ready - Retrofit - ID","Exterior Fixture Replacement - w/ No Controls - Retrofit - ID","Exterior Fixture Replacement - w/ Basic Dimming Controls - Retrofit - ID","Exterior Fixture Replacement - w/Advanced Networked Dimming - Retrofit - ID","Exterior Fixture Replacement - w/ No Controls - Retrofit - ID","Exterior Fixture Replacement - w/ Basic Dimming Controls - Retrofit - ID","Exterior Fixture Replacement - w/Advanced Networked Dimming - Retrofit - ID",null,null,{"$f":"TEXT(COUNTIFS(MeasureTable_ID!G:G,EquipmentTable_Retrofit_ID[[#This Row],[measureRetrofit_Interior_None]],MeasureTable_ID!A:A,\"TRUE\"),\"0\") & \", \" &\nTEXT(COUNTIFS(MeasureTable_ID!G:G,EquipmentTable_Retrofit_ID[[#This Row],[measureRetrofit_Interior_Basic]],MeasureTable_ID!A:A,\"TRUE\"),\"0\") & \", \" &\nTEXT(COUNTIFS(MeasureTable_ID!G:G,EquipmentTable_Retrofit_ID[[#This Row],[measureRetrofit_Interior_Advanced]],MeasureTable_ID!A:A,\"TRUE\"),\"0\") & \", \" &\nTEXT(COUNTIFS(MeasureTable_ID!G:G,EquipmentTable_Retrofit_ID[[#This Row],[measureRetrofit_Exterior_None]],MeasureTable_ID!A:A,\"TRUE\"),\"0\") & \", \" &\nTEXT(COUNTIFS(MeasureTable_ID!G:G,EquipmentTable_Retrofit_ID[[#This Row],[measureRetrofit_Exterior_Advanced]],MeasureTable_ID!A:A,\"TRUE\"),\"0\") & \", \" &\nTEXT(COUNTIFS(MeasureTable_ID!G:G,EquipmentTable_Retrofit_ID[[#This Row],[measureRetrofit_Street_None]],MeasureTable_ID!A:A,\"TRUE\"),\"0\") & \", \" &\nTEXT(COUNTIFS(MeasureTable_ID!G:G,EquipmentTable_Retrofit_ID[[#This Row],[measureRetrofit_Street_Advanced]],MeasureTable_ID!A:A,\"TRUE\"),\"0\") & \", \" &\nTEXT(COUNTIFS(MeasureTable_ID!G:G,EquipmentTable_Retrofit_ID[[#This Row],[measureRetrofit_SBE]],MeasureTable_ID!A:A,\"TRUE\"),\"0\")","v":"0, 0, 0, 0, 0, 0, 0, 0"}]
["New Fixture","LED Fixture - Direct/Indirect",null,"Interior Fixture Replacement - w/out Controls - Retrofit - v2 - ID","Interior Fixture Replacement - w/ Basic Controls - Retrofit - v2 - ID","Interior Fixture Replacement - w/ Networked Lighting Controls - Retrofit - ID","Interior Fixture Replacement - w/ Advanced Networked Lighting Controls/LLLCs - Retrofit - v4 - ID","Interior Fixture Replacement - w/ Plug and Play Control Ready - Retrofit - ID","Exterior Fixture Replacement - w/ No Controls - Retrofit - ID","Exterior Fixture Replacement - w/ Basic Dimming Controls - Retrofit - ID","Exterior Fixture Replacement - w/Advanced Networked Dimming - Retrofit - ID","Exterior Fixture Replacement - w/ No Controls - Retrofit - ID","Exterior Fixture Replacement - w/ Basic Dimming Controls - Retrofit - ID","Exterior Fixture Replacement - w/Advanced Networked Dimming - Retrofit - ID",null,null,{"$f":"TEXT(COUNTIFS(MeasureTable_ID!G:G,EquipmentTable_Retrofit_ID[[#This Row],[measureRetrofit_Interior_None]],MeasureTable_ID!A:A,\"TRUE\"),\"0\") & \", \" &\nTEXT(COUNTIFS(MeasureTable_ID!G:G,EquipmentTable_Retrofit_ID[[#This Row],[measureRetrofit_Interior_Basic]],MeasureTable_ID!A:A,\"TRUE\"),\"0\") & \", \" &\nTEXT(COUNTIFS(MeasureTable_ID!G:G,EquipmentTable_Retrofit_ID[[#This Row],[measureRetrofit_Interior_Advanced]],MeasureTable_ID!A:A,\"TRUE\"),\"0\") & \", \" &\nTEXT(COUNTIFS(MeasureTable_ID!G:G,EquipmentTable_Retrofit_ID[[#This Row],[measureRetrofit_Exterior_None]],MeasureTable_ID!A:A,\"TRUE\"),\"0\") & \", \" &\nTEXT(COUNTIFS(MeasureTable_ID!G:G,EquipmentTable_Retrofit_ID[[#This Row],[measureRetrofit_Exterior_Advanced]],MeasureTable_ID!A:A,\"TRUE\"),\"0\") & \", \" &\nTEXT(COUNTIFS(MeasureTable_ID!G:G,EquipmentTable_Retrofit_ID[[#This Row],[measureRetrofit_Street_None]],MeasureTable_ID!A:A,\"TRUE\"),\"0\") & \", \" &\nTEXT(COUNTIFS(MeasureTable_ID!G:G,EquipmentTable_Retrofit_ID[[#This Row],[measureRetrofit_Street_Advanced]],MeasureTable_ID!A:A,\"TRUE\"),\"0\") & \", \" &\nTEXT(COUNTIFS(MeasureTable_ID!G:G,EquipmentTable_Retrofit_ID[[#This Row],[measureRetrofit_SBE]],MeasureTable_ID!A:A,\"TRUE\"),\"0\")","v":"0, 0, 0, 0, 0, 0, 0, 0"}]
["New Fixture","LED Fixture - Downlight",null,"Non-eligible fixture - Retrofit - ID","Non-eligible fixture - Retrofit - ID","Non-eligible fixture - Retrofit - ID","Non-eligible fixture - Retrofit - ID","Non-eligible fixture - Retrofit - ID","Non-eligible fixture - Retrofit - ID","Non-eligible fixture - Retrofit - ID","Non-eligible fixture - Retrofit - ID","Non-eligible fixture - Retrofit - ID","Non-eligible fixture - Retrofit - ID","Non-eligible fixture - Retrofit - ID",null,null,{"$f":"TEXT(COUNTIFS(MeasureTable_ID!G:G,EquipmentTable_Retrofit_ID[[#This Row],[measureRetrofit_Interior_None]],MeasureTable_ID!A:A,\"TRUE\"),\"0\") & \", \" &\nTEXT(COUNTIFS(MeasureTable_ID!G:G,EquipmentTable_Retrofit_ID[[#This Row],[measureRetrofit_Interior_Basic]],MeasureTable_ID!A:A,\"TRUE\"),\"0\") & \", \" &\nTEXT(COUNTIFS(MeasureTable_ID!G:G,EquipmentTable_Retrofit_ID[[#This Row],[measureRetrofit_Interior_Advanced]],MeasureTable_ID!A:A,\"TRUE\"),\"0\") & \", \" &\nTEXT(COUNTIFS(MeasureTable_ID!G:G,EquipmentTable_Retrofit_ID[[#This Row],[measureRetrofit_Exterior_None]],MeasureTable_ID!A:A,\"TRUE\"),\"0\") & \", \" &\nTEXT(COUNTIFS(MeasureTable_ID!G:G,EquipmentTable_Retrofit_ID[[#This Row],[measureRetrofit_Exterior_Advanced]],MeasureTable_ID!A:A,\"TRUE\"),\"0\") & \", \" &\nTEXT(COUNTIFS(MeasureTable_ID!G:G,EquipmentTable_Retrofit_ID[[#This Row],[measureRetrofit_Street_None]],MeasureTable_ID!A:A,\"TRUE\"),\"0\") & \", \" &\nTEXT(COUNTIFS(MeasureTable_ID!G:G,EquipmentTable_Retrofit_ID[[#This Row],[measureRetrofit_Street_Advanced]],MeasureTable_ID!A:A,\"TRUE\"),\"0\") & \", \" &\nTEXT(COUNTIFS(MeasureTable_ID!G:G,EquipmentTable_Retrofit_ID[[#This Row],[measureRetrofit_SBE]],MeasureTable_ID!A:A,\"TRUE\"),\"0\")","v":"0, 0, 0, 0, 0, 0, 0, 0"}]
["New Fixture","LED Fixture - Flood",null,"Interior Fixture Replacement - w/out Controls - Retrofit - v2 - ID","Interior Fixture Replacement - w/ Basic Controls - Retrofit - v2 - ID","Interior Fixture Replacement - w/ Networked Lighting Controls - Retrofit - ID","Interior Fixture Replacement - w/ Advanced Networked Lighting Controls/LLLCs - Retrofit - v4 - ID","Interior Fixture Replacement - w/ Plug and Play Control Ready - Retrofit - ID","Exterior Fixture Replacement - w/ No Controls - Retrofit - ID","Exterior Fixture Replacement - w/ Basic Dimming Controls - Retrofit - ID","Exterior Fixture Replacement - w/Advanced Networked Dimming - Retrofit - ID","Exterior Fixture Replacement - w/ No Controls - Retrofit - ID","Exterior Fixture Replacement - w/ Basic Dimming Controls - Retrofit - ID","Exterior Fixture Replacement - w/Advanced Networked Dimming - Retrofit - ID",null,null,{"$f":"TEXT(COUNTIFS(MeasureTable_ID!G:G,EquipmentTable_Retrofit_ID[[#This Row],[measureRetrofit_Interior_None]],MeasureTable_ID!A:A,\"TRUE\"),\"0\") & \", \" &\nTEXT(COUNTIFS(MeasureTable_ID!G:G,EquipmentTable_Retrofit_ID[[#This Row],[measureRetrofit_Interior_Basic]],MeasureTable_ID!A:A,\"TRUE\"),\"0\") & \", \" &\nTEXT(COUNTIFS(MeasureTable_ID!G:G,EquipmentTable_Retrofit_ID[[#This Row],[measureRetrofit_Interior_Advanced]],MeasureTable_ID!A:A,\"TRUE\"),\"0\") & \", \" &\nTEXT(COUNTIFS(MeasureTable_ID!G:G,EquipmentTable_Retrofit_ID[[#This Row],[measureRetrofit_Exterior_None]],MeasureTable_ID!A:A,\"TRUE\"),\"0\") & \", \" &\nTEXT(COUNTIFS(MeasureTable_ID!G:G,EquipmentTable_Retrofit_ID[[#This Row],[measureRetrofit_Exterior_Advanced]],MeasureTable_ID!A:A,\"TRUE\"),\"0\") & \", \" &\nTEXT(COUNTIFS(MeasureTable_ID!G:G,EquipmentTable_Retrofit_ID[[#This Row],[measureRetrofit_Street_None]],MeasureTable_ID!A:A,\"TRUE\"),\"0\") & \", \" &\nTEXT(COUNTIFS(MeasureTable_ID!G:G,EquipmentTable_Retrofit_ID[[#This Row],[measureRetrofit_Street_Advanced]],MeasureTable_ID!A:A,\"TRUE\"),\"0\") & \", \" &\nTEXT(COUNTIFS(MeasureTable_ID!G:G,EquipmentTable_Retrofit_ID[[#This Row],[measureRetrofit_SBE]],MeasureTable_ID!A:A,\"TRUE\"),\"0\")","v":"0, 0, 0, 0, 0, 0, 0, 0"}]
["New Fixture","LED Fixture - High/Low Bay",null,"Interior Fixture Replacement - w/out Controls - Retrofit - v2 - ID","Interior Fixture Replacement - w/ Basic Controls - Retrofit - v2 - ID","Interior Fixture Replacement - w/ Networked Lighting Controls - Retrofit - ID","Interior Fixture Replacement - w/ Advanced Networked Lighting Controls/LLLCs - Retrofit - v4 - ID","Interior Fixture Replacement - w/ Plug and Play Control Ready - Retrofit - ID","Exterior Fixture Replacement - w/ No Controls - Retrofit - ID","Exterior Fixture Replacement - w/ Basic Dimming Controls - Retrofit - ID","Exterior Fixture Replacement - w/Advanced Networked Dimming - Retrofit - ID","Exterior Fixture Replacement - w/ No Controls - Retrofit - ID","Exterior Fixture Replacement - w/ Basic Dimming Controls - Retrofit - ID","Exterior Fixture Replacement - w/Advanced Networked Dimming - Retrofit - ID",null,null,{"$f":"TEXT(COUNTIFS(MeasureTable_ID!G:G,EquipmentTable_Retrofit_ID[[#This Row],[measureRetrofit_Interior_None]],MeasureTable_ID!A:A,\"TRUE\"),\"0\") & \", \" &\nTEXT(COUNTIFS(MeasureTable_ID!G:G,EquipmentTable_Retrofit_ID[[#This Row],[measureRetrofit_Interior_Basic]],MeasureTable_ID!A:A,\"TRUE\"),\"0\") & \", \" &\nTEXT(COUNTIFS(MeasureTable_ID!G:G,EquipmentTable_Retrofit_ID[[#This Row],[measureRetrofit_Interior_Advanced]],MeasureTable_ID!A:A,\"TRUE\"),\"0\") & \", \" &\nTEXT(COUNTIFS(MeasureTable_ID!G:G,EquipmentTable_Retrofit_ID[[#This Row],[measureRetrofit_Exterior_None]],MeasureTable_ID!A:A,\"TRUE\"),\"0\") & \", \" &\nTEXT(COUNTIFS(MeasureTable_ID!G:G,EquipmentTable_Retrofit_ID[[#This Row],[measureRetrofit_Exterior_Advanced]],MeasureTable_ID!A:A,\"TRUE\"),\"0\") & \", \" &\nTEXT(COUNTIFS(MeasureTable_ID!G:G,EquipmentTable_Retrofit_ID[[#This Row],[measureRetrofit_Street_None]],MeasureTable_ID!A:A,\"TRUE\"),\"0\") & \", \" &\nTEXT(COUNTIFS(MeasureTable_ID!G:G,EquipmentTable_Retrofit_ID[[#This Row],[measureRetrofit_Street_Advanced]],MeasureTable_ID!A:A,\"TRUE\"),\"0\") & \", \" &\nTEXT(COUNTIFS(MeasureTable_ID!G:G,EquipmentTable_Retrofit_ID[[#This Row],[measureRetrofit_SBE]],MeasureTable_ID!A:A,\"TRUE\"),\"0\")","v":"0, 0, 0, 0, 0, 0, 0, 0"}]
["New Fixture","LED Fixture - Integral Track Head",null,"Interior Fixture Replacement - w/out Controls - Retrofit - v2 - ID","Interior Fixture Replacement - w/ Basic Controls - Retrofit - v2 - ID","Interior Fixture Replacement - w/ Networked Lighting Controls - Retrofit - ID","Interior Fixture Replacement - w/ Advanced Networked Lighting Controls/LLLCs - Retrofit - v4 - ID","Interior Fixture Replacement - w/ Plug and Play Control Ready - Retrofit - ID","Exterior Fixture Replacement - w/ No Controls - Retrofit - ID","Exterior Fixture Replacement - w/ Basic Dimming Controls - Retrofit - ID","Exterior Fixture Replacement - w/Advanced Networked Dimming - Retrofit - ID","Exterior Fixture Replacement - w/ No Controls - Retrofit - ID","Exterior Fixture Replacement - w/ Basic Dimming Controls - Retrofit - ID","Exterior Fixture Replacement - w/Advanced Networked Dimming - Retrofit - ID",null,null,{"$f":"TEXT(COUNTIFS(MeasureTable_ID!G:G,EquipmentTable_Retrofit_ID[[#This Row],[measureRetrofit_Interior_None]],MeasureTable_ID!A:A,\"TRUE\"),\"0\") & \", \" &\nTEXT(COUNTIFS(MeasureTable_ID!G:G,EquipmentTable_Retrofit_ID[[#This Row],[measureRetrofit_Interior_Basic]],MeasureTable_ID!A:A,\"TRUE\"),\"0\") & \", \" &\nTEXT(COUNTIFS(MeasureTable_ID!G:G,EquipmentTable_Retrofit_ID[[#This Row],[measureRetrofit_Interior_Advanced]],MeasureTable_ID!A:A,\"TRUE\"),\"0\") & \", \" &\nTEXT(COUNTIFS(MeasureTable_ID!G:G,EquipmentTable_Retrofit_ID[[#This Row],[measureRetrofit_Exterior_None]],MeasureTable_ID!A:A,\"TRUE\"),\"0\") & \", \" &\nTEXT(COUNTIFS(MeasureTable_ID!G:G,EquipmentTable_Retrofit_ID[[#This Row],[measureRetrofit_Exterior_Advanced]],MeasureTable_ID!A:A,\"TRUE\"),\"0\") & \", \" &\nTEXT(COUNTIFS(MeasureTable_ID!G:G,EquipmentTable_Retrofit_ID[[#This Row],[measureRetrofit_Street_None]],MeasureTable_ID!A:A,\"TRUE\"),\"0\") & \", \" &\nTEXT(COUNTIFS(MeasureTable_ID!G:G,EquipmentTable_Retrofit_ID[[#This Row],[measureRetrofit_Street_Advanced]],MeasureTable_ID!A:A,\"TRUE\"),\"0\") & \", \" &\nTEXT(COUNTIFS(MeasureTable_ID!G:G,EquipmentTable_Retrofit_ID[[#This Row],[measureRetrofit_SBE]],MeasureTable_ID!A:A,\"TRUE\"),\"0\")","v":"0, 0, 0, 0, 0, 0, 0, 0"}]
["New Fixture","LED Fixture - Parking/Canopy",null,"Interior Fixture Replacement - w/out Controls - Retrofit - v2 - ID","Interior Fixture Replacement - w/ Basic Controls - Retrofit - v2 - ID","Interior Fixture Replacement - w/ Networked Lighting Controls - Retrofit - ID","Interior Fixture Replacement - w/ Advanced Networked Lighting Controls/LLLCs - Retrofit - v4 - ID","Interior Fixture Replacement - w/ Plug and Play Control Ready - Retrofit - ID","Exterior Fixture Replacement - w/ No Controls - Retrofit - ID","Exterior Fixture Replacement - w/ Basic Dimming Controls - Retrofit - ID","Exterior Fixture Replacement - w/Advanced Networked Dimming - Retrofit - ID","Exterior Fixture Replacement - w/ No Controls - Retrofit - ID","Exterior Fixture Replacement - w/ Basic Dimming Controls - Retrofit - ID","Exterior Fixture Replacement - w/Advanced Networked Dimming - Retrofit - ID",null,null,{"$f":"TEXT(COUNTIFS(MeasureTable_ID!G:G,EquipmentTable_Retrofit_ID[[#This Row],[measureRetrofit_Interior_None]],MeasureTable_ID!A:A,\"TRUE\"),\"0\") & \", \" &\nTEXT(COUNTIFS(MeasureTable_ID!G:G,EquipmentTable_Retrofit_ID[[#This Row],[measureRetrofit_Interior_Basic]],MeasureTable_ID!A:A,\"TRUE\"),\"0\") & \", \" &\nTEXT(COUNTIFS(MeasureTable_ID!G:G,EquipmentTable_Retrofit_ID[[#This Row],[measureRetrofit_Interior_Advanced]],MeasureTable_ID!A:A,\"TRUE\"),\"0\") & \", \" &\nTEXT(COUNTIFS(MeasureTable_ID!G:G,EquipmentTable_Retrofit_ID[[#This Row],[measureRetrofit_Exterior_None]],MeasureTable_ID!A:A,\"TRUE\"),\"0\") & \", \" &\nTEXT(COUNTIFS(MeasureTable_ID!G:G,EquipmentTable_Retrofit_ID[[#This Row],[measureRetrofit_Exterior_Advanced]],MeasureTable_ID!A:A,\"TRUE\"),\"0\") & \", \" &\nTEXT(COUNTIFS(MeasureTable_ID!G:G,EquipmentTable_Retrofit_ID[[#This Row],[measureRetrofit_Street_None]],MeasureTable_ID!A:A,\"TRUE\"),\"0\") & \", \" &\nTEXT(COUNTIFS(MeasureTable_ID!G:G,EquipmentTable_Retrofit_ID[[#This Row],[measureRetrofit_Street_Advanced]],MeasureTable_ID!A:A,\"TRUE\"),\"0\") & \", \" &\nTEXT(COUNTIFS(MeasureTable_ID!G:G,EquipmentTable_Retrofit_ID[[#This Row],[measureRetrofit_SBE]],MeasureTable_ID!A:A,\"TRUE\"),\"0\")","v":"0, 0, 0, 0, 0, 0, 0, 0"}]
["New Fixture","LED Fixture - Pole Mount",null,"Interior Fixture Replacement - w/out Controls - Retrofit - v2 - ID","Interior Fixture Replacement - w/ Basic Controls - Retrofit - v2 - ID","Interior Fixture Replacement - w/ Networked Lighting Controls - Retrofit - ID","Interior Fixture Replacement - w/ Advanced Networked Lighting Controls/LLLCs - Retrofit - v4 - ID","Interior Fixture Replacement - w/ Plug and Play Control Ready - Retrofit - ID","Exterior Fixture Replacement - w/ No Controls - Retrofit - ID","Exterior Fixture Replacement - w/ Basic Dimming Controls - Retrofit - ID","Exterior Fixture Replacement - w/Advanced Networked Dimming - Retrofit - ID","Exterior Fixture Replacement - w/ No Controls - Retrofit - ID","Exterior Fixture Replacement - w/ Basic Dimming Controls - Retrofit - ID","Exterior Fixture Replacement - w/Advanced Networked Dimming - Retrofit - ID",null,null,{"$f":"TEXT(COUNTIFS(MeasureTable_ID!G:G,EquipmentTable_Retrofit_ID[[#This Row],[measureRetrofit_Interior_None]],MeasureTable_ID!A:A,\"TRUE\"),\"0\") & \", \" &\nTEXT(COUNTIFS(MeasureTable_ID!G:G,EquipmentTable_Retrofit_ID[[#This Row],[measureRetrofit_Interior_Basic]],MeasureTable_ID!A:A,\"TRUE\"),\"0\") & \", \" &\nTEXT(COUNTIFS(MeasureTable_ID!G:G,EquipmentTable_Retrofit_ID[[#This Row],[measureRetrofit_Interior_Advanced]],MeasureTable_ID!A:A,\"TRUE\"),\"0\") & \", \" &\nTEXT(COUNTIFS(MeasureTable_ID!G:G,EquipmentTable_Retrofit_ID[[#This Row],[measureRetrofit_Exterior_None]],MeasureTable_ID!A:A,\"TRUE\"),\"0\") & \", \" &\nTEXT(COUNTIFS(MeasureTable_ID!G:G,EquipmentTable_Retrofit_ID[[#This Row],[measureRetrofit_Exterior_Advanced]],MeasureTable_ID!A:A,\"TRUE\"),\"0\") & \", \" &\nTEXT(COUNTIFS(MeasureTable_ID!G:G,EquipmentTable_Retrofit_ID[[#This Row],[measureRetrofit_Street_None]],MeasureTable_ID!A:A,\"TRUE\"),\"0\") & \", \" &\nTEXT(COUNTIFS(MeasureTable_ID!G:G,EquipmentTable_Retrofit_ID[[#This Row],[measureRetrofit_Street_Advanced]],MeasureTable_ID!A:A,\"TRUE\"),\"0\") & \", \" &\nTEXT(COUNTIFS(MeasureTable_ID!G:G,EquipmentTable_Retrofit_ID[[#This Row],[measureRetrofit_SBE]],MeasureTable_ID!A:A,\"TRUE\"),\"0\")","v":"0, 0, 0, 0, 0, 0, 0, 0"}]
["New Fixture","LED Fixture - Sconce/Wall Wash",null,"Interior Fixture Replacement - w/out Controls - Retrofit - v2 - ID","Interior Fixture Replacement - w/ Basic Controls - Retrofit - v2 - ID","Interior Fixture Replacement - w/ Networked Lighting Controls - Retrofit - ID","Interior Fixture Replacement - w/ Advanced Networked Lighting Controls/LLLCs - Retrofit - v4 - ID","Interior Fixture Replacement - w/ Plug and Play Control Ready - Retrofit - ID","Exterior Fixture Replacement - w/ No Controls - Retrofit - ID","Exterior Fixture Replacement - w/ Basic Dimming Controls - Retrofit - ID","Exterior Fixture Replacement - w/Advanced Networked Dimming - Retrofit - ID","Exterior Fixture Replacement - w/ No Controls - Retrofit - ID","Exterior Fixture Replacement - w/ Basic Dimming Controls - Retrofit - ID","Exterior Fixture Replacement - w/Advanced Networked Dimming - Retrofit - ID",null,null,{"$f":"TEXT(COUNTIFS(MeasureTable_ID!G:G,EquipmentTable_Retrofit_ID[[#This Row],[measureRetrofit_Interior_None]],MeasureTable_ID!A:A,\"TRUE\"),\"0\") & \", \" &\nTEXT(COUNTIFS(MeasureTable_ID!G:G,EquipmentTable_Retrofit_ID[[#This Row],[measureRetrofit_Interior_Basic]],MeasureTable_ID!A:A,\"TRUE\"),\"0\") & \", \" &\nTEXT(COUNTIFS(MeasureTable_ID!G:G,EquipmentTable_Retrofit_ID[[#This Row],[measureRetrofit_Interior_Advanced]],MeasureTable_ID!A:A,\"TRUE\"),\"0\") & \", \" &\nTEXT(COUNTIFS(MeasureTable_ID!G:G,EquipmentTable_Retrofit_ID[[#This Row],[measureRetrofit_Exterior_None]],MeasureTable_ID!A:A,\"TRUE\"),\"0\") & \", \" &\nTEXT(COUNTIFS(MeasureTable_ID!G:G,EquipmentTable_Retrofit_ID[[#This Row],[measureRetrofit_Exterior_Advanced]],MeasureTable_ID!A:A,\"TRUE\"),\"0\") & \", \" &\nTEXT(COUNTIFS(MeasureTable_ID!G:G,EquipmentTable_Retrofit_ID[[#This Row],[measureRetrofit_Street_None]],MeasureTable_ID!A:A,\"TRUE\"),\"0\") & \", \" &\nTEXT(COUNTIFS(MeasureTable_ID!G:G,EquipmentTable_Retrofit_ID[[#This Row],[measureRetrofit_Street_Advanced]],MeasureTable_ID!A:A,\"TRUE\"),\"0\") & \", \" &\nTEXT(COUNTIFS(MeasureTable_ID!G:G,EquipmentTable_Retrofit_ID[[#This Row],[measureRetrofit_SBE]],MeasureTable_ID!A:A,\"TRUE\"),\"0\")","v":"0, 0, 0, 0, 0, 0, 0, 0"}]
["New Fixture","LED Fixture - Strip/Wrap",null,"Interior Fixture Replacement - w/out Controls - Retrofit - v2 - ID","Interior Fixture Replacement - w/ Basic Controls - Retrofit - v2 - ID","Interior Fixture Replacement - w/ Networked Lighting Controls - Retrofit - ID","Interior Fixture Replacement - w/ Advanced Networked Lighting Controls/LLLCs - Retrofit - v4 - ID","Interior Fixture Replacement - w/ Plug and Play Control Ready - Retrofit - ID","Exterior Fixture Replacement - w/ No Controls - Retrofit - ID","Exterior Fixture Replacement - w/ Basic Dimming Controls - Retrofit - ID","Exterior Fixture Replacement - w/Advanced Networked Dimming - Retrofit - ID","Exterior Fixture Replacement - w/ No Controls - Retrofit - ID","Exterior Fixture Replacement - w/ Basic Dimming Controls - Retrofit - ID","Exterior Fixture Replacement - w/Advanced Networked Dimming - Retrofit - ID",null,null,{"$f":"TEXT(COUNTIFS(MeasureTable_ID!G:G,EquipmentTable_Retrofit_ID[[#This Row],[measureRetrofit_Interior_None]],MeasureTable_ID!A:A,\"TRUE\"),\"0\") & \", \" &\nTEXT(COUNTIFS(MeasureTable_ID!G:G,EquipmentTable_Retrofit_ID[[#This Row],[measureRetrofit_Interior_Basic]],MeasureTable_ID!A:A,\"TRUE\"),\"0\") & \", \" &\nTEXT(COUNTIFS(MeasureTable_ID!G:G,EquipmentTable_Retrofit_ID[[#This Row],[measureRetrofit_Interior_Advanced]],MeasureTable_ID!A:A,\"TRUE\"),\"0\") & \", \" &\nTEXT(COUNTIFS(MeasureTable_ID!G:G,EquipmentTable_Retrofit_ID[[#This Row],[measureRetrofit_Exterior_None]],MeasureTable_ID!A:A,\"TRUE\"),\"0\") & \", \" &\nTEXT(COUNTIFS(MeasureTable_ID!G:G,EquipmentTable_Retrofit_ID[[#This Row],[measureRetrofit_Exterior_Advanced]],MeasureTable_ID!A:A,\"TRUE\"),\"0\") & \", \" &\nTEXT(COUNTIFS(MeasureTable_ID!G:G,EquipmentTable_Retrofit_ID[[#This Row],[measureRetrofit_Street_None]],MeasureTable_ID!A:A,\"TRUE\"),\"0\") & \", \" &\nTEXT(COUNTIFS(MeasureTable_ID!G:G,EquipmentTable_Retrofit_ID[[#This Row],[measureRetrofit_Street_Advanced]],MeasureTable_ID!A:A,\"TRUE\"),\"0\") & \", \" &\nTEXT(COUNTIFS(MeasureTable_ID!G:G,EquipmentTable_Retrofit_ID[[#This Row],[measureRetrofit_SBE]],MeasureTable_ID!A:A,\"TRUE\"),\"0\")","v":"0, 0, 0, 0, 0, 0, 0, 0"}]
["New Fixture","LED Fixture - Surface Mount",null,"Interior Fixture Replacement - w/out Controls - Retrofit - v2 - ID","Interior Fixture Replacement - w/ Basic Controls - Retrofit - v2 - ID","Interior Fixture Replacement - w/ Networked Lighting Controls - Retrofit - ID","Interior Fixture Replacement - w/ Advanced Networked Lighting Controls/LLLCs - Retrofit - v4 - ID","Interior Fixture Replacement - w/ Plug and Play Control Ready - Retrofit - ID","Exterior Fixture Replacement - w/ No Controls - Retrofit - ID","Exterior Fixture Replacement - w/ Basic Dimming Controls - Retrofit - ID","Exterior Fixture Replacement - w/Advanced Networked Dimming - Retrofit - ID","Exterior Fixture Replacement - w/ No Controls - Retrofit - ID","Exterior Fixture Replacement - w/ Basic Dimming Controls - Retrofit - ID","Exterior Fixture Replacement - w/Advanced Networked Dimming - Retrofit - ID",null,null,{"$f":"TEXT(COUNTIFS(MeasureTable_ID!G:G,EquipmentTable_Retrofit_ID[[#This Row],[measureRetrofit_Interior_None]],MeasureTable_ID!A:A,\"TRUE\"),\"0\") & \", \" &\nTEXT(COUNTIFS(MeasureTable_ID!G:G,EquipmentTable_Retrofit_ID[[#This Row],[measureRetrofit_Interior_Basic]],MeasureTable_ID!A:A,\"TRUE\"),\"0\") & \", \" &\nTEXT(COUNTIFS(MeasureTable_ID!G:G,EquipmentTable_Retrofit_ID[[#This Row],[measureRetrofit_Interior_Advanced]],MeasureTable_ID!A:A,\"TRUE\"),\"0\") & \", \" &\nTEXT(COUNTIFS(MeasureTable_ID!G:G,EquipmentTable_Retrofit_ID[[#This Row],[measureRetrofit_Exterior_None]],MeasureTable_ID!A:A,\"TRUE\"),\"0\") & \", \" &\nTEXT(COUNTIFS(MeasureTable_ID!G:G,EquipmentTable_Retrofit_ID[[#This Row],[measureRetrofit_Exterior_Advanced]],MeasureTable_ID!A:A,\"TRUE\"),\"0\") & \", \" &\nTEXT(COUNTIFS(MeasureTable_ID!G:G,EquipmentTable_Retrofit_ID[[#This Row],[measureRetrofit_Street_None]],MeasureTable_ID!A:A,\"TRUE\"),\"0\") & \", \" &\nTEXT(COUNTIFS(MeasureTable_ID!G:G,EquipmentTable_Retrofit_ID[[#This Row],[measureRetrofit_Street_Advanced]],MeasureTable_ID!A:A,\"TRUE\"),\"0\") & \", \" &\nTEXT(COUNTIFS(MeasureTable_ID!G:G,EquipmentTable_Retrofit_ID[[#This Row],[measureRetrofit_SBE]],MeasureTable_ID!A:A,\"TRUE\"),\"0\")","v":"0, 0, 0, 0, 0, 0, 0, 0"}]
["New Fixture","LED Fixture - Troffer",null,"Interior Fixture Replacement - w/out Controls - Retrofit - v2 - ID","Interior Fixture Replacement - w/ Basic Controls - Retrofit - v2 - ID","Interior Fixture Replacement - w/ Networked Lighting Controls - Retrofit - ID","Interior Fixture Replacement - w/ Advanced Networked Lighting Controls/LLLCs - Retrofit - v4 - ID","Interior Fixture Replacement - w/ Plug and Play Control Ready - Retrofit - ID","Exterior Fixture Replacement - w/ No Controls - Retrofit - ID","Exterior Fixture Replacement - w/ Basic Dimming Controls - Retrofit - ID","Exterior Fixture Replacement - w/Advanced Networked Dimming - Retrofit - ID","Exterior Fixture Replacement - w/ No Controls - Retrofit - ID","Exterior Fixture Replacement - w/ Basic Dimming Controls - Retrofit - ID","Exterior Fixture Replacement - w/Advanced Networked Dimming - Retrofit - ID",null,null,{"$f":"TEXT(COUNTIFS(MeasureTable_ID!G:G,EquipmentTable_Retrofit_ID[[#This Row],[measureRetrofit_Interior_None]],MeasureTable_ID!A:A,\"TRUE\"),\"0\") & \", \" &\nTEXT(COUNTIFS(MeasureTable_ID!G:G,EquipmentTable_Retrofit_ID[[#This Row],[measureRetrofit_Interior_Basic]],MeasureTable_ID!A:A,\"TRUE\"),\"0\") & \", \" &\nTEXT(COUNTIFS(MeasureTable_ID!G:G,EquipmentTable_Retrofit_ID[[#This Row],[measureRetrofit_Interior_Advanced]],MeasureTable_ID!A:A,\"TRUE\"),\"0\") & \", \" &\nTEXT(COUNTIFS(MeasureTable_ID!G:G,EquipmentTable_Retrofit_ID[[#This Row],[measureRetrofit_Exterior_None]],MeasureTable_ID!A:A,\"TRUE\"),\"0\") & \", \" &\nTEXT(COUNTIFS(MeasureTable_ID!G:G,EquipmentTable_Retrofit_ID[[#This Row],[measureRetrofit_Exterior_Advanced]],MeasureTable_ID!A:A,\"TRUE\"),\"0\") & \", \" &\nTEXT(COUNTIFS(MeasureTable_ID!G:G,EquipmentTable_Retrofit_ID[[#This Row],[measureRetrofit_Street_None]],MeasureTable_ID!A:A,\"TRUE\"),\"0\") & \", \" &\nTEXT(COUNTIFS(MeasureTable_ID!G:G,EquipmentTable_Retrofit_ID[[#This Row],[measureRetrofit_Street_Advanced]],MeasureTable_ID!A:A,\"TRUE\"),\"0\") & \", \" &\nTEXT(COUNTIFS(MeasureTable_ID!G:G,EquipmentTable_Retrofit_ID[[#This Row],[measureRetrofit_SBE]],MeasureTable_ID!A:A,\"TRUE\"),\"0\")","v":"0, 0, 0, 0, 0, 0, 0, 0"}]
["New Fixture","LED Fixture - Wall Pack < 50W",null,"Interior Fixture Replacement - w/out Controls - Retrofit - v2 - ID","Interior Fixture Replacement - w/ Basic Controls - Retrofit - v2 - ID","Interior Fixture Replacement - w/ Networked Lighting Controls - Retrofit - ID","Interior Fixture Replacement - w/ Advanced Networked Lighting Controls/LLLCs - Retrofit - v4 - ID","Interior Fixture Replacement - w/ Plug and Play Control Ready - Retrofit - ID","Exterior Fixture Replacement - w/ No Controls - Retrofit - ID","Exterior Fixture Replacement - w/ Basic Dimming Controls - Retrofit - ID","Exterior Fixture Replacement - w/Advanced Networked Dimming - Retrofit - ID","Exterior Fixture Replacement - w/ No Controls - Retrofit - ID","Exterior Fixture Replacement - w/ Basic Dimming Controls - Retrofit - ID","Exterior Fixture Replacement - w/Advanced Networked Dimming - Retrofit - ID",null,null,{"$f":"TEXT(COUNTIFS(MeasureTable_ID!G:G,EquipmentTable_Retrofit_ID[[#This Row],[measureRetrofit_Interior_None]],MeasureTable_ID!A:A,\"TRUE\"),\"0\") & \", \" &\nTEXT(COUNTIFS(MeasureTable_ID!G:G,EquipmentTable_Retrofit_ID[[#This Row],[measureRetrofit_Interior_Basic]],MeasureTable_ID!A:A,\"TRUE\"),\"0\") & \", \" &\nTEXT(COUNTIFS(MeasureTable_ID!G:G,EquipmentTable_Retrofit_ID[[#This Row],[measureRetrofit_Interior_Advanced]],MeasureTable_ID!A:A,\"TRUE\"),\"0\") & \", \" &\nTEXT(COUNTIFS(MeasureTable_ID!G:G,EquipmentTable_Retrofit_ID[[#This Row],[measureRetrofit_Exterior_None]],MeasureTable_ID!A:A,\"TRUE\"),\"0\") & \", \" &\nTEXT(COUNTIFS(MeasureTable_ID!G:G,EquipmentTable_Retrofit_ID[[#This Row],[measureRetrofit_Exterior_Advanced]],MeasureTable_ID!A:A,\"TRUE\"),\"0\") & \", \" &\nTEXT(COUNTIFS(MeasureTable_ID!G:G,EquipmentTable_Retrofit_ID[[#This Row],[measureRetrofit_Street_None]],MeasureTable_ID!A:A,\"TRUE\"),\"0\") & \", \" &\nTEXT(COUNTIFS(MeasureTable_ID!G:G,EquipmentTable_Retrofit_ID[[#This Row],[measureRetrofit_Street_Advanced]],MeasureTable_ID!A:A,\"TRUE\"),\"0\") & \", \" &\nTEXT(COUNTIFS(MeasureTable_ID!G:G,EquipmentTable_Retrofit_ID[[#This Row],[measureRetrofit_SBE]],MeasureTable_ID!A:A,\"TRUE\"),\"0\")","v":"0, 0, 0, 0, 0, 0, 0, 0"}]
["New Fixture","LED Fixture - Wall Pack >= 50W",null,"Interior Fixture Replacement - w/out Controls - Retrofit - v2 - ID","Interior Fixture Replacement - w/ Basic Controls - Retrofit - v2 - ID","Interior Fixture Replacement - w/ Networked Lighting Controls - Retrofit - ID","Interior Fixture Replacement - w/ Advanced Networked Lighting Controls/LLLCs - Retrofit - v4 - ID","Interior Fixture Replacement - w/ Plug and Play Control Ready - Retrofit - ID","Exterior Fixture Replacement - w/ No Controls - Retrofit - ID","Exterior Fixture Replacement - w/ Basic Dimming Controls - Retrofit - ID","Exterior Fixture Replacement - w/Advanced Networked Dimming - Retrofit - ID","Exterior Fixture Replacement - w/ No Controls - Retrofit - ID","Exterior Fixture Replacement - w/ Basic Dimming Controls - Retrofit - ID","Exterior Fixture Replacement - w/Advanced Networked Dimming - Retrofit - ID",null,null,{"$f":"TEXT(COUNTIFS(MeasureTable_ID!G:G,EquipmentTable_Retrofit_ID[[#This Row],[measureRetrofit_Interior_None]],MeasureTable_ID!A:A,\"TRUE\"),\"0\") & \", \" &\nTEXT(COUNTIFS(MeasureTable_ID!G:G,EquipmentTable_Retrofit_ID[[#This Row],[measureRetrofit_Interior_Basic]],MeasureTable_ID!A:A,\"TRUE\"),\"0\") & \", \" &\nTEXT(COUNTIFS(MeasureTable_ID!G:G,EquipmentTable_Retrofit_ID[[#This Row],[measureRetrofit_Interior_Advanced]],MeasureTable_ID!A:A,\"TRUE\"),\"0\") & \", \" &\nTEXT(COUNTIFS(MeasureTable_ID!G:G,EquipmentTable_Retrofit_ID[[#This Row],[measureRetrofit_Exterior_None]],MeasureTable_ID!A:A,\"TRUE\"),\"0\") & \", \" &\nTEXT(COUNTIFS(MeasureTable_ID!G:G,EquipmentTable_Retrofit_ID[[#This Row],[measureRetrofit_Exterior_Advanced]],MeasureTable_ID!A:A,\"TRUE\"),\"0\") & \", \" &\nTEXT(COUNTIFS(MeasureTable_ID!G:G,EquipmentTable_Retrofit_ID[[#This Row],[measureRetrofit_Street_None]],MeasureTable_ID!A:A,\"TRUE\"),\"0\") & \", \" &\nTEXT(COUNTIFS(MeasureTable_ID!G:G,EquipmentTable_Retrofit_ID[[#This Row],[measureRetrofit_Street_Advanced]],MeasureTable_ID!A:A,\"TRUE\"),\"0\") & \", \" &\nTEXT(COUNTIFS(MeasureTable_ID!G:G,EquipmentTable_Retrofit_ID[[#This Row],[measureRetrofit_SBE]],MeasureTable_ID!A:A,\"TRUE\"),\"0\")","v":"0, 0, 0, 0, 0, 0, 0, 0"}]
["Retrofit Kit","LED Retrofit Kit - Bollard",null,"Interior Fixture Retrofit Kit - w/out Controls - Retrofit - v2 - ID","Interior Fixture Retrofit Kit - w/ Basic Controls - Retrofit - ID","Interior Fixture Retrofit Kit - w/ Networked Lighting Controls - Retrofit - ID","Interior Fixture Retrofit Kit - w/ Advanced Networked Lighting Controls/LLLCs - Retrofit - v2 - ID","Interior Fixture Retrofit Kit - w/ Plug and Play Control Ready - Retrofit - ID","Exterior Fixture Retrofit Kit - w/ No Controls - Retrofit - ID","Exterior Fixture Retrofit Kit - w/ Basic Dimming Controls - Retrofit - ID","Exterior Fixture Retrofit Kit - w/Advanced Networked Dimming - Retrofit - ID","Exterior Fixture Retrofit Kit - w/ No Controls - Retrofit - ID","Exterior Fixture Retrofit Kit - w/ Basic Dimming Controls - Retrofit - ID","Exterior Fixture Retrofit Kit - w/Advanced Networked Dimming - Retrofit - ID",null,null,{"$f":"TEXT(COUNTIFS(MeasureTable_ID!G:G,EquipmentTable_Retrofit_ID[[#This Row],[measureRetrofit_Interior_None]],MeasureTable_ID!A:A,\"TRUE\"),\"0\") & \", \" &\nTEXT(COUNTIFS(MeasureTable_ID!G:G,EquipmentTable_Retrofit_ID[[#This Row],[measureRetrofit_Interior_Basic]],MeasureTable_ID!A:A,\"TRUE\"),\"0\") & \", \" &\nTEXT(COUNTIFS(MeasureTable_ID!G:G,EquipmentTable_Retrofit_ID[[#This Row],[measureRetrofit_Interior_Advanced]],MeasureTable_ID!A:A,\"TRUE\"),\"0\") & \", \" &\nTEXT(COUNTIFS(MeasureTable_ID!G:G,EquipmentTable_Retrofit_ID[[#This Row],[measureRetrofit_Exterior_None]],MeasureTable_ID!A:A,\"TRUE\"),\"0\") & \", \" &\nTEXT(COUNTIFS(MeasureTable_ID!G:G,EquipmentTable_Retrofit_ID[[#This Row],[measureRetrofit_Exterior_Advanced]],MeasureTable_ID!A:A,\"TRUE\"),\"0\") & \", \" &\nTEXT(COUNTIFS(MeasureTable_ID!G:G,EquipmentTable_Retrofit_ID[[#This Row],[measureRetrofit_Street_None]],MeasureTable_ID!A:A,\"TRUE\"),\"0\") & \", \" &\nTEXT(COUNTIFS(MeasureTable_ID!G:G,EquipmentTable_Retrofit_ID[[#This Row],[measureRetrofit_Street_Advanced]],MeasureTable_ID!A:A,\"TRUE\"),\"0\") & \", \" &\nTEXT(COUNTIFS(MeasureTable_ID!G:G,EquipmentTable_Retrofit_ID[[#This Row],[measureRetrofit_SBE]],MeasureTable_ID!A:A,\"TRUE\"),\"0\")","v":"0, 0, 0, 0, 0, 0, 0, 0"}]
["Retrofit Kit","LED Retrofit Kit - Direct/Indirect",null,"Interior Fixture Retrofit Kit - w/out Controls - Retrofit - v2 - ID","Interior Fixture Retrofit Kit - w/ Basic Controls - Retrofit - ID","Interior Fixture Retrofit Kit - w/ Networked Lighting Controls - Retrofit - ID","Interior Fixture Retrofit Kit - w/ Advanced Networked Lighting Controls/LLLCs - Retrofit - v2 - ID","Interior Fixture Retrofit Kit - w/ Plug and Play Control Ready - Retrofit - ID","Exterior Fixture Retrofit Kit - w/ No Controls - Retrofit - ID","Exterior Fixture Retrofit Kit - w/ Basic Dimming Controls - Retrofit - ID","Exterior Fixture Retrofit Kit - w/Advanced Networked Dimming - Retrofit - ID","Exterior Fixture Retrofit Kit - w/ No Controls - Retrofit - ID","Exterior Fixture Retrofit Kit - w/ Basic Dimming Controls - Retrofit - ID","Exterior Fixture Retrofit Kit - w/Advanced Networked Dimming - Retrofit - ID",null,null,{"$f":"TEXT(COUNTIFS(MeasureTable_ID!G:G,EquipmentTable_Retrofit_ID[[#This Row],[measureRetrofit_Interior_None]],MeasureTable_ID!A:A,\"TRUE\"),\"0\") & \", \" &\nTEXT(COUNTIFS(MeasureTable_ID!G:G,EquipmentTable_Retrofit_ID[[#This Row],[measureRetrofit_Interior_Basic]],MeasureTable_ID!A:A,\"TRUE\"),\"0\") & \", \" &\nTEXT(COUNTIFS(MeasureTable_ID!G:G,EquipmentTable_Retrofit_ID[[#This Row],[measureRetrofit_Interior_Advanced]],MeasureTable_ID!A:A,\"TRUE\"),\"0\") & \", \" &\nTEXT(COUNTIFS(MeasureTable_ID!G:G,EquipmentTable_Retrofit_ID[[#This Row],[measureRetrofit_Exterior_None]],MeasureTable_ID!A:A,\"TRUE\"),\"0\") & \", \" &\nTEXT(COUNTIFS(MeasureTable_ID!G:G,EquipmentTable_Retrofit_ID[[#This Row],[measureRetrofit_Exterior_Advanced]],MeasureTable_ID!A:A,\"TRUE\"),\"0\") & \", \" &\nTEXT(COUNTIFS(MeasureTable_ID!G:G,EquipmentTable_Retrofit_ID[[#This Row],[measureRetrofit_Street_None]],MeasureTable_ID!A:A,\"TRUE\"),\"0\") & \", \" &\nTEXT(COUNTIFS(MeasureTable_ID!G:G,EquipmentTable_Retrofit_ID[[#This Row],[measureRetrofit_Street_Advanced]],MeasureTable_ID!A:A,\"TRUE\"),\"0\") & \", \" &\nTEXT(COUNTIFS(MeasureTable_ID!G:G,EquipmentTable_Retrofit_ID[[#This Row],[measureRetrofit_SBE]],MeasureTable_ID!A:A,\"TRUE\"),\"0\")","v":"0, 0, 0, 0, 0, 0, 0, 0"}]
["Retrofit Kit","LED Retrofit Kit - Downlight",null,"Non-eligible fixture - Retrofit - ID","Non-eligible fixture - Retrofit - ID","Non-eligible fixture - Retrofit - ID","Non-eligible fixture - Retrofit - ID","Non-eligible fixture - Retrofit - ID","Non-eligible fixture - Retrofit - ID","Non-eligible fixture - Retrofit - ID","Non-eligible fixture - Retrofit - ID","Non-eligible fixture - Retrofit - ID","Non-eligible fixture - Retrofit - ID","Non-eligible fixture - Retrofit - ID",null,null,{"$f":"TEXT(COUNTIFS(MeasureTable_ID!G:G,EquipmentTable_Retrofit_ID[[#This Row],[measureRetrofit_Interior_None]],MeasureTable_ID!A:A,\"TRUE\"),\"0\") & \", \" &\nTEXT(COUNTIFS(MeasureTable_ID!G:G,EquipmentTable_Retrofit_ID[[#This Row],[measureRetrofit_Interior_Basic]],MeasureTable_ID!A:A,\"TRUE\"),\"0\") & \", \" &\nTEXT(COUNTIFS(MeasureTable_ID!G:G,EquipmentTable_Retrofit_ID[[#This Row],[measureRetrofit_Interior_Advanced]],MeasureTable_ID!A:A,\"TRUE\"),\"0\") & \", \" &\nTEXT(COUNTIFS(MeasureTable_ID!G:G,EquipmentTable_Retrofit_ID[[#This Row],[measureRetrofit_Exterior_None]],MeasureTable_ID!A:A,\"TRUE\"),\"0\") & \", \" &\nTEXT(COUNTIFS(MeasureTable_ID!G:G,EquipmentTable_Retrofit_ID[[#This Row],[measureRetrofit_Exterior_Advanced]],MeasureTable_ID!A:A,\"TRUE\"),\"0\") & \", \" &\nTEXT(COUNTIFS(MeasureTable_ID!G:G,EquipmentTable_Retrofit_ID[[#This Row],[measureRetrofit_Street_None]],MeasureTable_ID!A:A,\"TRUE\"),\"0\") & \", \" &\nTEXT(COUNTIFS(MeasureTable_ID!G:G,EquipmentTable_Retrofit_ID[[#This Row],[measureRetrofit_Street_Advanced]],MeasureTable_ID!A:A,\"TRUE\"),\"0\") & \", \" &\nTEXT(COUNTIFS(MeasureTable_ID!G:G,EquipmentTable_Retrofit_ID[[#This Row],[measureRetrofit_SBE]],MeasureTable_ID!A:A,\"TRUE\"),\"0\")","v":"0, 0, 0, 0, 0, 0, 0, 0"}]
["Retrofit Kit","LED Retrofit Kit - Flood",null,"Interior Fixture Retrofit Kit - w/out Controls - Retrofit - v2 - ID","Interior Fixture Retrofit Kit - w/ Basic Controls - Retrofit - ID","Interior Fixture Retrofit Kit - w/ Networked Lighting Controls - Retrofit - ID","Interior Fixture Retrofit Kit - w/ Advanced Networked Lighting Controls/LLLCs - Retrofit - v2 - ID","Interior Fixture Retrofit Kit - w/ Plug and Play Control Ready - Retrofit - ID","Exterior Fixture Retrofit Kit - w/ No Controls - Retrofit - ID","Exterior Fixture Retrofit Kit - w/ Basic Dimming Controls - Retrofit - ID","Exterior Fixture Retrofit Kit - w/Advanced Networked Dimming - Retrofit - ID","Exterior Fixture Retrofit Kit - w/ No Controls - Retrofit - ID","Exterior Fixture Retrofit Kit - w/ Basic Dimming Controls - Retrofit - ID","Exterior Fixture Retrofit Kit - w/Advanced Networked Dimming - Retrofit - ID",null,null,{"$f":"TEXT(COUNTIFS(MeasureTable_ID!G:G,EquipmentTable_Retrofit_ID[[#This Row],[measureRetrofit_Interior_None]],MeasureTable_ID!A:A,\"TRUE\"),\"0\") & \", \" &\nTEXT(COUNTIFS(MeasureTable_ID!G:G,EquipmentTable_Retrofit_ID[[#This Row],[measureRetrofit_Interior_Basic]],MeasureTable_ID!A:A,\"TRUE\"),\"0\") & \", \" &\nTEXT(COUNTIFS(MeasureTable_ID!G:G,EquipmentTable_Retrofit_ID[[#This Row],[measureRetrofit_Interior_Advanced]],MeasureTable_ID!A:A,\"TRUE\"),\"0\") & \", \" &\nTEXT(COUNTIFS(MeasureTable_ID!G:G,EquipmentTable_Retrofit_ID[[#This Row],[measureRetrofit_Exterior_None]],MeasureTable_ID!A:A,\"TRUE\"),\"0\") & \", \" &\nTEXT(COUNTIFS(MeasureTable_ID!G:G,EquipmentTable_Retrofit_ID[[#This Row],[measureRetrofit_Exterior_Advanced]],MeasureTable_ID!A:A,\"TRUE\"),\"0\") & \", \" &\nTEXT(COUNTIFS(MeasureTable_ID!G:G,EquipmentTable_Retrofit_ID[[#This Row],[measureRetrofit_Street_None]],MeasureTable_ID!A:A,\"TRUE\"),\"0\") & \", \" &\nTEXT(COUNTIFS(MeasureTable_ID!G:G,EquipmentTable_Retrofit_ID[[#This Row],[measureRetrofit_Street_Advanced]],MeasureTable_ID!A:A,\"TRUE\"),\"0\") & \", \" &\nTEXT(COUNTIFS(MeasureTable_ID!G:G,EquipmentTable_Retrofit_ID[[#This Row],[measureRetrofit_SBE]],MeasureTable_ID!A:A,\"TRUE\"),\"0\")","v":"0, 0, 0, 0, 0, 0, 0, 0"}]
["Retrofit Kit","LED Retrofit Kit - High/Low Bay",null,"Interior Fixture Retrofit Kit - w/out Controls - Retrofit - v2 - ID","Interior Fixture Retrofit Kit - w/ Basic Controls - Retrofit - ID","Interior Fixture Retrofit Kit - w/ Networked Lighting Controls - Retrofit - ID","Interior Fixture Retrofit Kit - w/ Advanced Networked Lighting Controls/LLLCs - Retrofit - v2 - ID","Interior Fixture Retrofit Kit - w/ Plug and Play Control Ready - Retrofit - ID","Exterior Fixture Retrofit Kit - w/ No Controls - Retrofit - ID","Exterior Fixture Retrofit Kit - w/ Basic Dimming Controls - Retrofit - ID","Exterior Fixture Retrofit Kit - w/Advanced Networked Dimming - Retrofit - ID","Exterior Fixture Retrofit Kit - w/ No Controls - Retrofit - ID","Exterior Fixture Retrofit Kit - w/ Basic Dimming Controls - Retrofit - ID","Exterior Fixture Retrofit Kit - w/Advanced Networked Dimming - Retrofit - ID",null,null,{"$f":"TEXT(COUNTIFS(MeasureTable_ID!G:G,EquipmentTable_Retrofit_ID[[#This Row],[measureRetrofit_Interior_None]],MeasureTable_ID!A:A,\"TRUE\"),\"0\") & \", \" &\nTEXT(COUNTIFS(MeasureTable_ID!G:G,EquipmentTable_Retrofit_ID[[#This Row],[measureRetrofit_Interior_Basic]],MeasureTable_ID!A:A,\"TRUE\"),\"0\") & \", \" &\nTEXT(COUNTIFS(MeasureTable_ID!G:G,EquipmentTable_Retrofit_ID[[#This Row],[measureRetrofit_Interior_Advanced]],MeasureTable_ID!A:A,\"TRUE\"),\"0\") & \", \" &\nTEXT(COUNTIFS(MeasureTable_ID!G:G,EquipmentTable_Retrofit_ID[[#This Row],[measureRetrofit_Exterior_None]],MeasureTable_ID!A:A,\"TRUE\"),\"0\") & \", \" &\nTEXT(COUNTIFS(MeasureTable_ID!G:G,EquipmentTable_Retrofit_ID[[#This Row],[measureRetrofit_Exterior_Advanced]],MeasureTable_ID!A:A,\"TRUE\"),\"0\") & \", \" &\nTEXT(COUNTIFS(MeasureTable_ID!G:G,EquipmentTable_Retrofit_ID[[#This Row],[measureRetrofit_Street_None]],MeasureTable_ID!A:A,\"TRUE\"),\"0\") & \", \" &\nTEXT(COUNTIFS(MeasureTable_ID!G:G,EquipmentTable_Retrofit_ID[[#This Row],[measureRetrofit_Street_Advanced]],MeasureTable_ID!A:A,\"TRUE\"),\"0\") & \", \" &\nTEXT(COUNTIFS(MeasureTable_ID!G:G,EquipmentTable_Retrofit_ID[[#This Row],[measureRetrofit_SBE]],MeasureTable_ID!A:A,\"TRUE\"),\"0\")","v":"0, 0, 0, 0, 0, 0, 0, 0"},null,null,null,"LED Linear Fixture - Troffer Kit - 4' Lamp 48\" - Retrofit - SBDI - v2 - ID"]
["Retrofit Kit","LED Retrofit Kit - Integral Track Head",null,"Interior Fixture Retrofit Kit - w/out Controls - Retrofit - v2 - ID","Interior Fixture Retrofit Kit - w/ Basic Controls - Retrofit - ID","Interior Fixture Retrofit Kit - w/ Networked Lighting Controls - Retrofit - ID","Interior Fixture Retrofit Kit - w/ Advanced Networked Lighting Controls/LLLCs - Retrofit - v2 - ID","Interior Fixture Retrofit Kit - w/ Plug and Play Control Ready - Retrofit - ID","Exterior Fixture Retrofit Kit - w/ No Controls - Retrofit - ID","Exterior Fixture Retrofit Kit - w/ Basic Dimming Controls - Retrofit - ID","Exterior Fixture Retrofit Kit - w/Advanced Networked Dimming - Retrofit - ID","Exterior Fixture Retrofit Kit - w/ No Controls - Retrofit - ID","Exterior Fixture Retrofit Kit - w/ Basic Dimming Controls - Retrofit - ID","Exterior Fixture Retrofit Kit - w/Advanced Networked Dimming - Retrofit - ID",null,null,{"$f":"TEXT(COUNTIFS(MeasureTable_ID!G:G,EquipmentTable_Retrofit_ID[[#This Row],[measureRetrofit_Interior_None]],MeasureTable_ID!A:A,\"TRUE\"),\"0\") & \", \" &\nTEXT(COUNTIFS(MeasureTable_ID!G:G,EquipmentTable_Retrofit_ID[[#This Row],[measureRetrofit_Interior_Basic]],MeasureTable_ID!A:A,\"TRUE\"),\"0\") & \", \" &\nTEXT(COUNTIFS(MeasureTable_ID!G:G,EquipmentTable_Retrofit_ID[[#This Row],[measureRetrofit_Interior_Advanced]],MeasureTable_ID!A:A,\"TRUE\"),\"0\") & \", \" &\nTEXT(COUNTIFS(MeasureTable_ID!G:G,EquipmentTable_Retrofit_ID[[#This Row],[measureRetrofit_Exterior_None]],MeasureTable_ID!A:A,\"TRUE\"),\"0\") & \", \" &\nTEXT(COUNTIFS(MeasureTable_ID!G:G,EquipmentTable_Retrofit_ID[[#This Row],[measureRetrofit_Exterior_Advanced]],MeasureTable_ID!A:A,\"TRUE\"),\"0\") & \", \" &\nTEXT(COUNTIFS(MeasureTable_ID!G:G,EquipmentTable_Retrofit_ID[[#This Row],[measureRetrofit_Street_None]],MeasureTable_ID!A:A,\"TRUE\"),\"0\") & \", \" &\nTEXT(COUNTIFS(MeasureTable_ID!G:G,EquipmentTable_Retrofit_ID[[#This Row],[measureRetrofit_Street_Advanced]],MeasureTable_ID!A:A,\"TRUE\"),\"0\") & \", \" &\nTEXT(COUNTIFS(MeasureTable_ID!G:G,EquipmentTable_Retrofit_ID[[#This Row],[measureRetrofit_SBE]],MeasureTable_ID!A:A,\"TRUE\"),\"0\")","v":"0, 0, 0, 0, 0, 0, 0, 0"},null,null,null,"LED Linear Fixture - Troffer Kit - 4' Lamp 48\" - Retrofit - SBDI - v2 - ID"]
["Retrofit Kit","LED Retrofit Kit - Parking/Canopy",null,"Interior Fixture Retrofit Kit - w/out Controls - Retrofit - v2 - ID","Interior Fixture Retrofit Kit - w/ Basic Controls - Retrofit - ID","Interior Fixture Retrofit Kit - w/ Networked Lighting Controls - Retrofit - ID","Interior Fixture Retrofit Kit - w/ Advanced Networked Lighting Controls/LLLCs - Retrofit - v2 - ID","Interior Fixture Retrofit Kit - w/ Plug and Play Control Ready - Retrofit - ID","Exterior Fixture Retrofit Kit - w/ No Controls - Retrofit - ID","Exterior Fixture Retrofit Kit - w/ Basic Dimming Controls - Retrofit - ID","Exterior Fixture Retrofit Kit - w/Advanced Networked Dimming - Retrofit - ID","Exterior Fixture Retrofit Kit - w/ No Controls - Retrofit - ID","Exterior Fixture Retrofit Kit - w/ Basic Dimming Controls - Retrofit - ID","Exterior Fixture Retrofit Kit - w/Advanced Networked Dimming - Retrofit - ID",null,null,{"$f":"TEXT(COUNTIFS(MeasureTable_ID!G:G,EquipmentTable_Retrofit_ID[[#This Row],[measureRetrofit_Interior_None]],MeasureTable_ID!A:A,\"TRUE\"),\"0\") & \", \" &\nTEXT(COUNTIFS(MeasureTable_ID!G:G,EquipmentTable_Retrofit_ID[[#This Row],[measureRetrofit_Interior_Basic]],MeasureTable_ID!A:A,\"TRUE\"),\"0\") & \", \" &\nTEXT(COUNTIFS(MeasureTable_ID!G:G,EquipmentTable_Retrofit_ID[[#This Row],[measureRetrofit_Interior_Advanced]],MeasureTable_ID!A:A,\"TRUE\"),\"0\") & \", \" &\nTEXT(COUNTIFS(MeasureTable_ID!G:G,EquipmentTable_Retrofit_ID[[#This Row],[measureRetrofit_Exterior_None]],MeasureTable_ID!A:A,\"TRUE\"),\"0\") & \", \" &\nTEXT(COUNTIFS(MeasureTable_ID!G:G,EquipmentTable_Retrofit_ID[[#This Row],[measureRetrofit_Exterior_Advanced]],MeasureTable_ID!A:A,\"TRUE\"),\"0\") & \", \" &\nTEXT(COUNTIFS(MeasureTable_ID!G:G,EquipmentTable_Retrofit_ID[[#This Row],[measureRetrofit_Street_None]],MeasureTable_ID!A:A,\"TRUE\"),\"0\") & \", \" &\nTEXT(COUNTIFS(MeasureTable_ID!G:G,EquipmentTable_Retrofit_ID[[#This Row],[measureRetrofit_Street_Advanced]],MeasureTable_ID!A:A,\"TRUE\"),\"0\") & \", \" &\nTEXT(COUNTIFS(MeasureTable_ID!G:G,EquipmentTable_Retrofit_ID[[#This Row],[measureRetrofit_SBE]],MeasureTable_ID!A:A,\"TRUE\"),\"0\")","v":"0, 0, 0, 0, 0, 0, 0, 0"}]
["Retrofit Kit","LED Retrofit Kit - Pole Mount",null,"Interior Fixture Retrofit Kit - w/out Controls - Retrofit - v2 - ID","Interior Fixture Retrofit Kit - w/ Basic Controls - Retrofit - ID","Interior Fixture Retrofit Kit - w/ Networked Lighting Controls - Retrofit - ID","Interior Fixture Retrofit Kit - w/ Advanced Networked Lighting Controls/LLLCs - Retrofit - v2 - ID","Interior Fixture Retrofit Kit - w/ Plug and Play Control Ready - Retrofit - ID","Exterior Fixture Retrofit Kit - w/ No Controls - Retrofit - ID","Exterior Fixture Retrofit Kit - w/ Basic Dimming Controls - Retrofit - ID","Exterior Fixture Retrofit Kit - w/Advanced Networked Dimming - Retrofit - ID","Exterior Fixture Retrofit Kit - w/ No Controls - Retrofit - ID","Exterior Fixture Retrofit Kit - w/ Basic Dimming Controls - Retrofit - ID","Exterior Fixture Retrofit Kit - w/Advanced Networked Dimming - Retrofit - ID",null,null,{"$f":"TEXT(COUNTIFS(MeasureTable_ID!G:G,EquipmentTable_Retrofit_ID[[#This Row],[measureRetrofit_Interior_None]],MeasureTable_ID!A:A,\"TRUE\"),\"0\") & \", \" &\nTEXT(COUNTIFS(MeasureTable_ID!G:G,EquipmentTable_Retrofit_ID[[#This Row],[measureRetrofit_Interior_Basic]],MeasureTable_ID!A:A,\"TRUE\"),\"0\") & \", \" &\nTEXT(COUNTIFS(MeasureTable_ID!G:G,EquipmentTable_Retrofit_ID[[#This Row],[measureRetrofit_Interior_Advanced]],MeasureTable_ID!A:A,\"TRUE\"),\"0\") & \", \" &\nTEXT(COUNTIFS(MeasureTable_ID!G:G,EquipmentTable_Retrofit_ID[[#This Row],[measureRetrofit_Exterior_None]],MeasureTable_ID!A:A,\"TRUE\"),\"0\") & \", \" &\nTEXT(COUNTIFS(MeasureTable_ID!G:G,EquipmentTable_Retrofit_ID[[#This Row],[measureRetrofit_Exterior_Advanced]],MeasureTable_ID!A:A,\"TRUE\"),\"0\") & \", \" &\nTEXT(COUNTIFS(MeasureTable_ID!G:G,EquipmentTable_Retrofit_ID[[#This Row],[measureRetrofit_Street_None]],MeasureTable_ID!A:A,\"TRUE\"),\"0\") & \", \" &\nTEXT(COUNTIFS(MeasureTable_ID!G:G,EquipmentTable_Retrofit_ID[[#This Row],[measureRetrofit_Street_Advanced]],MeasureTable_ID!A:A,\"TRUE\"),\"0\") & \", \" &\nTEXT(COUNTIFS(MeasureTable_ID!G:G,EquipmentTable_Retrofit_ID[[#This Row],[measureRetrofit_SBE]],MeasureTable_ID!A:A,\"TRUE\"),\"0\")","v":"0, 0, 0, 0, 0, 0, 0, 0"}]
["Retrofit Kit","LED Retrofit Kit - Sconce/Wall Wash",null,"Interior Fixture Retrofit Kit - w/out Controls - Retrofit - v2 - ID","Interior Fixture Retrofit Kit - w/ Basic Controls - Retrofit - ID","Interior Fixture Retrofit Kit - w/ Networked Lighting Controls - Retrofit - ID","Interior Fixture Retrofit Kit - w/ Advanced Networked Lighting Controls/LLLCs - Retrofit - v2 - ID","Interior Fixture Retrofit Kit - w/ Plug and Play Control Ready - Retrofit - ID","Exterior Fixture Retrofit Kit - w/ No Controls - Retrofit - ID","Exterior Fixture Retrofit Kit - w/ Basic Dimming Controls - Retrofit - ID","Exterior Fixture Retrofit Kit - w/Advanced Networked Dimming - Retrofit - ID","Exterior Fixture Retrofit Kit - w/ No Controls - Retrofit - ID","Exterior Fixture Retrofit Kit - w/ Basic Dimming Controls - Retrofit - ID","Exterior Fixture Retrofit Kit - w/Advanced Networked Dimming - Retrofit - ID",null,null,{"$f":"TEXT(COUNTIFS(MeasureTable_ID!G:G,EquipmentTable_Retrofit_ID[[#This Row],[measureRetrofit_Interior_None]],MeasureTable_ID!A:A,\"TRUE\"),\"0\") & \", \" &\nTEXT(COUNTIFS(MeasureTable_ID!G:G,EquipmentTable_Retrofit_ID[[#This Row],[measureRetrofit_Interior_Basic]],MeasureTable_ID!A:A,\"TRUE\"),\"0\") & \", \" &\nTEXT(COUNTIFS(MeasureTable_ID!G:G,EquipmentTable_Retrofit_ID[[#This Row],[measureRetrofit_Interior_Advanced]],MeasureTable_ID!A:A,\"TRUE\"),\"0\") & \", \" &\nTEXT(COUNTIFS(MeasureTable_ID!G:G,EquipmentTable_Retrofit_ID[[#This Row],[measureRetrofit_Exterior_None]],MeasureTable_ID!A:A,\"TRUE\"),\"0\") & \", \" &\nTEXT(COUNTIFS(MeasureTable_ID!G:G,EquipmentTable_Retrofit_ID[[#This Row],[measureRetrofit_Exterior_Advanced]],MeasureTable_ID!A:A,\"TRUE\"),\"0\") & \", \" &\nTEXT(COUNTIFS(MeasureTable_ID!G:G,EquipmentTable_Retrofit_ID[[#This Row],[measureRetrofit_Street_None]],MeasureTable_ID!A:A,\"TRUE\"),\"0\") & \", \" &\nTEXT(COUNTIFS(MeasureTable_ID!G:G,EquipmentTable_Retrofit_ID[[#This Row],[measureRetrofit_Street_Advanced]],MeasureTable_ID!A:A,\"TRUE\"),\"0\") & \", \" &\nTEXT(COUNTIFS(MeasureTable_ID!G:G,EquipmentTable_Retrofit_ID[[#This Row],[measureRetrofit_SBE]],MeasureTable_ID!A:A,\"TRUE\"),\"0\")","v":"0, 0, 0, 0, 0, 0, 0, 0"}]
["Retrofit Kit","LED Retrofit Kit - Strip/Wrap",null,"Interior Fixture Retrofit Kit - w/out Controls - Retrofit - v2 - ID","Interior Fixture Retrofit Kit - w/ Basic Controls - Retrofit - ID","Interior Fixture Retrofit Kit - w/ Networked Lighting Controls - Retrofit - ID","Interior Fixture Retrofit Kit - w/ Advanced Networked Lighting Controls/LLLCs - Retrofit - v2 - ID","Interior Fixture Retrofit Kit - w/ Plug and Play Control Ready - Retrofit - ID","Exterior Fixture Retrofit Kit - w/ No Controls - Retrofit - ID","Exterior Fixture Retrofit Kit - w/ Basic Dimming Controls - Retrofit - ID","Exterior Fixture Retrofit Kit - w/Advanced Networked Dimming - Retrofit - ID","Exterior Fixture Retrofit Kit - w/ No Controls - Retrofit - ID","Exterior Fixture Retrofit Kit - w/ Basic Dimming Controls - Retrofit - ID","Exterior Fixture Retrofit Kit - w/Advanced Networked Dimming - Retrofit - ID",null,null,{"$f":"TEXT(COUNTIFS(MeasureTable_ID!G:G,EquipmentTable_Retrofit_ID[[#This Row],[measureRetrofit_Interior_None]],MeasureTable_ID!A:A,\"TRUE\"),\"0\") & \", \" &\nTEXT(COUNTIFS(MeasureTable_ID!G:G,EquipmentTable_Retrofit_ID[[#This Row],[measureRetrofit_Interior_Basic]],MeasureTable_ID!A:A,\"TRUE\"),\"0\") & \", \" &\nTEXT(COUNTIFS(MeasureTable_ID!G:G,EquipmentTable_Retrofit_ID[[#This Row],[measureRetrofit_Interior_Advanced]],MeasureTable_ID!A:A,\"TRUE\"),\"0\") & \", \" &\nTEXT(COUNTIFS(MeasureTable_ID!G:G,EquipmentTable_Retrofit_ID[[#This Row],[measureRetrofit_Exterior_None]],MeasureTable_ID!A:A,\"TRUE\"),\"0\") & \", \" &\nTEXT(COUNTIFS(MeasureTable_ID!G:G,EquipmentTable_Retrofit_ID[[#This Row],[measureRetrofit_Exterior_Advanced]],MeasureTable_ID!A:A,\"TRUE\"),\"0\") & \", \" &\nTEXT(COUNTIFS(MeasureTable_ID!G:G,EquipmentTable_Retrofit_ID[[#This Row],[measureRetrofit_Street_None]],MeasureTable_ID!A:A,\"TRUE\"),\"0\") & \", \" &\nTEXT(COUNTIFS(MeasureTable_ID!G:G,EquipmentTable_Retrofit_ID[[#This Row],[measureRetrofit_Street_Advanced]],MeasureTable_ID!A:A,\"TRUE\"),\"0\") & \", \" &\nTEXT(COUNTIFS(MeasureTable_ID!G:G,EquipmentTable_Retrofit_ID[[#This Row],[measureRetrofit_SBE]],MeasureTable_ID!A:A,\"TRUE\"),\"0\")","v":"0, 0, 0, 0, 0, 0, 0, 0"}]
["Retrofit Kit","LED Retrofit Kit - Surface Mount",null,"Interior Fixture Retrofit Kit - w/out Controls - Retrofit - v2 - ID","Interior Fixture Retrofit Kit - w/ Basic Controls - Retrofit - ID","Interior Fixture Retrofit Kit - w/ Networked Lighting Controls - Retrofit - ID","Interior Fixture Retrofit Kit - w/ Advanced Networked Lighting Controls/LLLCs - Retrofit - v2 - ID","Interior Fixture Retrofit Kit - w/ Plug and Play Control Ready - Retrofit - ID","Exterior Fixture Retrofit Kit - w/ No Controls - Retrofit - ID","Exterior Fixture Retrofit Kit - w/ Basic Dimming Controls - Retrofit - ID","Exterior Fixture Retrofit Kit - w/Advanced Networked Dimming - Retrofit - ID","Exterior Fixture Retrofit Kit - w/ No Controls - Retrofit - ID","Exterior Fixture Retrofit Kit - w/ Basic Dimming Controls - Retrofit - ID","Exterior Fixture Retrofit Kit - w/Advanced Networked Dimming - Retrofit - ID",null,null,{"$f":"TEXT(COUNTIFS(MeasureTable_ID!G:G,EquipmentTable_Retrofit_ID[[#This Row],[measureRetrofit_Interior_None]],MeasureTable_ID!A:A,\"TRUE\"),\"0\") & \", \" &\nTEXT(COUNTIFS(MeasureTable_ID!G:G,EquipmentTable_Retrofit_ID[[#This Row],[measureRetrofit_Interior_Basic]],MeasureTable_ID!A:A,\"TRUE\"),\"0\") & \", \" &\nTEXT(COUNTIFS(MeasureTable_ID!G:G,EquipmentTable_Retrofit_ID[[#This Row],[measureRetrofit_Interior_Advanced]],MeasureTable_ID!A:A,\"TRUE\"),\"0\") & \", \" &\nTEXT(COUNTIFS(MeasureTable_ID!G:G,EquipmentTable_Retrofit_ID[[#This Row],[measureRetrofit_Exterior_None]],MeasureTable_ID!A:A,\"TRUE\"),\"0\") & \", \" &\nTEXT(COUNTIFS(MeasureTable_ID!G:G,EquipmentTable_Retrofit_ID[[#This Row],[measureRetrofit_Exterior_Advanced]],MeasureTable_ID!A:A,\"TRUE\"),\"0\") & \", \" &\nTEXT(COUNTIFS(MeasureTable_ID!G:G,EquipmentTable_Retrofit_ID[[#This Row],[measureRetrofit_Street_None]],MeasureTable_ID!A:A,\"TRUE\"),\"0\") & \", \" &\nTEXT(COUNTIFS(MeasureTable_ID!G:G,EquipmentTable_Retrofit_ID[[#This Row],[measureRetrofit_Street_Advanced]],MeasureTable_ID!A:A,\"TRUE\"),\"0\") & \", \" &\nTEXT(COUNTIFS(MeasureTable_ID!G:G,EquipmentTable_Retrofit_ID[[#This Row],[measureRetrofit_SBE]],MeasureTable_ID!A:A,\"TRUE\"),\"0\")","v":"0, 0, 0, 0, 0, 0, 0, 0"}]
["Retrofit Kit","LED Retrofit Kit - Troffer",null,"Interior Fixture Retrofit Kit - w/out Controls - Retrofit - v2 - ID","Interior Fixture Retrofit Kit - w/ Basic Controls - Retrofit - ID","Interior Fixture Retrofit Kit - w/ Networked Lighting Controls - Retrofit - ID","Interior Fixture Retrofit Kit - w/ Advanced Networked Lighting Controls/LLLCs - Retrofit - v2 - ID","Interior Fixture Retrofit Kit - w/ Plug and Play Control Ready - Retrofit - ID","Exterior Fixture Retrofit Kit - w/ No Controls - Retrofit - ID","Exterior Fixture Retrofit Kit - w/ Basic Dimming Controls - Retrofit - ID","Exterior Fixture Retrofit Kit - w/Advanced Networked Dimming - Retrofit - ID","Exterior Fixture Retrofit Kit - w/ No Controls - Retrofit - ID","Exterior Fixture Retrofit Kit - w/ Basic Dimming Controls - Retrofit - ID","Exterior Fixture Retrofit Kit - w/Advanced Networked Dimming - Retrofit - ID",null,null,{"$f":"TEXT(COUNTIFS(MeasureTable_ID!G:G,EquipmentTable_Retrofit_ID[[#This Row],[measureRetrofit_Interior_None]],MeasureTable_ID!A:A,\"TRUE\"),\"0\") & \", \" &\nTEXT(COUNTIFS(MeasureTable_ID!G:G,EquipmentTable_Retrofit_ID[[#This Row],[measureRetrofit_Interior_Basic]],MeasureTable_ID!A:A,\"TRUE\"),\"0\") & \", \" &\nTEXT(COUNTIFS(MeasureTable_ID!G:G,EquipmentTable_Retrofit_ID[[#This Row],[measureRetrofit_Interior_Advanced]],MeasureTable_ID!A:A,\"TRUE\"),\"0\") & \", \" &\nTEXT(COUNTIFS(MeasureTable_ID!G:G,EquipmentTable_Retrofit_ID[[#This Row],[measureRetrofit_Exterior_None]],MeasureTable_ID!A:A,\"TRUE\"),\"0\") & \", \" &\nTEXT(COUNTIFS(MeasureTable_ID!G:G,EquipmentTable_Retrofit_ID[[#This Row],[measureRetrofit_Exterior_Advanced]],MeasureTable_ID!A:A,\"TRUE\"),\"0\") & \", \" &\nTEXT(COUNTIFS(MeasureTable_ID!G:G,EquipmentTable_Retrofit_ID[[#This Row],[measureRetrofit_Street_None]],MeasureTable_ID!A:A,\"TRUE\"),\"0\") & \", \" &\nTEXT(COUNTIFS(MeasureTable_ID!G:G,EquipmentTable_Retrofit_ID[[#This Row],[measureRetrofit_Street_Advanced]],MeasureTable_ID!A:A,\"TRUE\"),\"0\") & \", \" &\nTEXT(COUNTIFS(MeasureTable_ID!G:G,EquipmentTable_Retrofit_ID[[#This Row],[measureRetrofit_SBE]],MeasureTable_ID!A:A,\"TRUE\"),\"0\")","v":"0, 0, 0, 0, 0, 0, 0, 0"}]
["Retrofit Kit","LED Retrofit Kit - Troffer Volumetric Kit",null,"Interior Fixture Retrofit Kit - w/out Controls - Retrofit - v2 - ID","Interior Fixture Retrofit Kit - w/ Basic Controls - Retrofit - ID","Interior Fixture Retrofit Kit - w/ Networked Lighting Controls - Retrofit - ID","Interior Fixture Retrofit Kit - w/ Advanced Networked Lighting Controls/LLLCs - Retrofit - v2 - ID","Interior Fixture Retrofit Kit - w/ Plug and Play Control Ready - Retrofit - ID","Exterior Fixture Retrofit Kit - w/ No Controls - Retrofit - ID","Exterior Fixture Retrofit Kit - w/ Basic Dimming Controls - Retrofit - ID","Exterior Fixture Retrofit Kit - w/Advanced Networked Dimming - Retrofit - ID","Exterior Fixture Retrofit Kit - w/ No Controls - Retrofit - ID","Exterior Fixture Retrofit Kit - w/ Basic Dimming Controls - Retrofit - ID","Exterior Fixture Retrofit Kit - w/Advanced Networked Dimming - Retrofit - ID",null,null,{"$f":"TEXT(COUNTIFS(MeasureTable_ID!G:G,EquipmentTable_Retrofit_ID[[#This Row],[measureRetrofit_Interior_None]],MeasureTable_ID!A:A,\"TRUE\"),\"0\") & \", \" &\nTEXT(COUNTIFS(MeasureTable_ID!G:G,EquipmentTable_Retrofit_ID[[#This Row],[measureRetrofit_Interior_Basic]],MeasureTable_ID!A:A,\"TRUE\"),\"0\") & \", \" &\nTEXT(COUNTIFS(MeasureTable_ID!G:G,EquipmentTable_Retrofit_ID[[#This Row],[measureRetrofit_Interior_Advanced]],MeasureTable_ID!A:A,\"TRUE\"),\"0\") & \", \" &\nTEXT(COUNTIFS(MeasureTable_ID!G:G,EquipmentTable_Retrofit_ID[[#This Row],[measureRetrofit_Exterior_None]],MeasureTable_ID!A:A,\"TRUE\"),\"0\") & \", \" &\nTEXT(COUNTIFS(MeasureTable_ID!G:G,EquipmentTable_Retrofit_ID[[#This Row],[measureRetrofit_Exterior_Advanced]],MeasureTable_ID!A:A,\"TRUE\"),\"0\") & \", \" &\nTEXT(COUNTIFS(MeasureTable_ID!G:G,EquipmentTable_Retrofit_ID[[#This Row],[measureRetrofit_Street_None]],MeasureTable_ID!A:A,\"TRUE\"),\"0\") & \", \" &\nTEXT(COUNTIFS(MeasureTable_ID!G:G,EquipmentTable_Retrofit_ID[[#This Row],[measureRetrofit_Street_Advanced]],MeasureTable_ID!A:A,\"TRUE\"),\"0\") & \", \" &\nTEXT(COUNTIFS(MeasureTable_ID!G:G,EquipmentTable_Retrofit_ID[[#This Row],[measureRetrofit_SBE]],MeasureTable_ID!A:A,\"TRUE\"),\"0\")","v":"0, 0, 0, 0, 0, 0, 0, 0"}]
["Retrofit Kit","LED Retrofit Kit - Wall Pack",null,"Interior Fixture Retrofit Kit - w/out Controls - Retrofit - v2 - ID","Interior Fixture Retrofit Kit - w/ Basic Controls - Retrofit - ID","Interior Fixture Retrofit Kit - w/ Networked Lighting Controls - Retrofit - ID","Interior Fixture Retrofit Kit - w/ Advanced Networked Lighting Controls/LLLCs - Retrofit - v2 - ID","Interior Fixture Retrofit Kit - w/ Plug and Play Control Ready - Retrofit - ID","Exterior Fixture Retrofit Kit - w/ No Controls - Retrofit - ID","Exterior Fixture Retrofit Kit - w/ Basic Dimming Controls - Retrofit - ID","Exterior Fixture Retrofit Kit - w/Advanced Networked Dimming - Retrofit - ID","Exterior Fixture Retrofit Kit - w/ No Controls - Retrofit - ID","Exterior Fixture Retrofit Kit - w/ Basic Dimming Controls - Retrofit - ID","Exterior Fixture Retrofit Kit - w/Advanced Networked Dimming - Retrofit - ID",null,null,{"$f":"TEXT(COUNTIFS(MeasureTable_ID!G:G,EquipmentTable_Retrofit_ID[[#This Row],[measureRetrofit_Interior_None]],MeasureTable_ID!A:A,\"TRUE\"),\"0\") & \", \" &\nTEXT(COUNTIFS(MeasureTable_ID!G:G,EquipmentTable_Retrofit_ID[[#This Row],[measureRetrofit_Interior_Basic]],MeasureTable_ID!A:A,\"TRUE\"),\"0\") & \", \" &\nTEXT(COUNTIFS(MeasureTable_ID!G:G,EquipmentTable_Retrofit_ID[[#This Row],[measureRetrofit_Interior_Advanced]],MeasureTable_ID!A:A,\"TRUE\"),\"0\") & \", \" &\nTEXT(COUNTIFS(MeasureTable_ID!G:G,EquipmentTable_Retrofit_ID[[#This Row],[measureRetrofit_Exterior_None]],MeasureTable_ID!A:A,\"TRUE\"),\"0\") & \", \" &\nTEXT(COUNTIFS(MeasureTable_ID!G:G,EquipmentTable_Retrofit_ID[[#This Row],[measureRetrofit_Exterior_Advanced]],MeasureTable_ID!A:A,\"TRUE\"),\"0\") & \", \" &\nTEXT(COUNTIFS(MeasureTable_ID!G:G,EquipmentTable_Retrofit_ID[[#This Row],[measureRetrofit_Street_None]],MeasureTable_ID!A:A,\"TRUE\"),\"0\") & \", \" &\nTEXT(COUNTIFS(MeasureTable_ID!G:G,EquipmentTable_Retrofit_ID[[#This Row],[measureRetrofit_Street_Advanced]],MeasureTable_ID!A:A,\"TRUE\"),\"0\") & \", \" &\nTEXT(COUNTIFS(MeasureTable_ID!G:G,EquipmentTable_Retrofit_ID[[#This Row],[measureRetrofit_SBE]],MeasureTable_ID!A:A,\"TRUE\"),\"0\")","v":"0, 0, 0, 0, 0, 0, 0, 0"}]
["Lamp Replacement","Relamp - Halogen","separate","Non-eligible fixture - Retrofit - ID","Non-eligible fixture - Retrofit - ID","Non-eligible fixture - Retrofit - ID","Non-eligible fixture - Retrofit - ID","Non-eligible fixture - Retrofit - ID","Non-eligible fixture - Retrofit - ID","Non-eligible fixture - Retrofit - ID","Non-eligible fixture - Retrofit - ID","Non-eligible fixture - Retrofit - ID","Non-eligible fixture - Retrofit - ID","Non-eligible fixture - Retrofit - ID",null,null,{"$f":"TEXT(COUNTIFS(MeasureTable_ID!G:G,EquipmentTable_Retrofit_ID[[#This Row],[measureRetrofit_Interior_None]],MeasureTable_ID!A:A,\"TRUE\"),\"0\") & \", \" &\nTEXT(COUNTIFS(MeasureTable_ID!G:G,EquipmentTable_Retrofit_ID[[#This Row],[measureRetrofit_Interior_Basic]],MeasureTable_ID!A:A,\"TRUE\"),\"0\") & \", \" &\nTEXT(COUNTIFS(MeasureTable_ID!G:G,EquipmentTable_Retrofit_ID[[#This Row],[measureRetrofit_Interior_Advanced]],MeasureTable_ID!A:A,\"TRUE\"),\"0\") & \", \" &\nTEXT(COUNTIFS(MeasureTable_ID!G:G,EquipmentTable_Retrofit_ID[[#This Row],[measureRetrofit_Exterior_None]],MeasureTable_ID!A:A,\"TRUE\"),\"0\") & \", \" &\nTEXT(COUNTIFS(MeasureTable_ID!G:G,EquipmentTable_Retrofit_ID[[#This Row],[measureRetrofit_Exterior_Advanced]],MeasureTable_ID!A:A,\"TRUE\"),\"0\") & \", \" &\nTEXT(COUNTIFS(MeasureTable_ID!G:G,EquipmentTable_Retrofit_ID[[#This Row],[measureRetrofit_Street_None]],MeasureTable_ID!A:A,\"TRUE\"),\"0\") & \", \" &\nTEXT(COUNTIFS(MeasureTable_ID!G:G,EquipmentTable_Retrofit_ID[[#This Row],[measureRetrofit_Street_Advanced]],MeasureTable_ID!A:A,\"TRUE\"),\"0\") & \", \" &\nTEXT(COUNTIFS(MeasureTable_ID!G:G,EquipmentTable_Retrofit_ID[[#This Row],[measureRetrofit_SBE]],MeasureTable_ID!A:A,\"TRUE\"),\"0\")","v":"0, 0, 0, 0, 0, 0, 0, 0"}]
["Lamp Replacement","Relamp - Incandescent","separate","Non-eligible fixture - Retrofit - ID","Non-eligible fixture - Retrofit - ID","Non-eligible fixture - Retrofit - ID","Non-eligible fixture - Retrofit - ID","Non-eligible fixture - Retrofit - ID","Non-eligible fixture - Retrofit - ID","Non-eligible fixture - Retrofit - ID","Non-eligible fixture - Retrofit - ID","Non-eligible fixture - Retrofit - ID","Non-eligible fixture - Retrofit - ID","Non-eligible fixture - Retrofit - ID",null,null,{"$f":"TEXT(COUNTIFS(MeasureTable_ID!G:G,EquipmentTable_Retrofit_ID[[#This Row],[measureRetrofit_Interior_None]],MeasureTable_ID!A:A,\"TRUE\"),\"0\") & \", \" &\nTEXT(COUNTIFS(MeasureTable_ID!G:G,EquipmentTable_Retrofit_ID[[#This Row],[measureRetrofit_Interior_Basic]],MeasureTable_ID!A:A,\"TRUE\"),\"0\") & \", \" &\nTEXT(COUNTIFS(MeasureTable_ID!G:G,EquipmentTable_Retrofit_ID[[#This Row],[measureRetrofit_Interior_Advanced]],MeasureTable_ID!A:A,\"TRUE\"),\"0\") & \", \" &\nTEXT(COUNTIFS(MeasureTable_ID!G:G,EquipmentTable_Retrofit_ID[[#This Row],[measureRetrofit_Exterior_None]],MeasureTable_ID!A:A,\"TRUE\"),\"0\") & \", \" &\nTEXT(COUNTIFS(MeasureTable_ID!G:G,EquipmentTable_Retrofit_ID[[#This Row],[measureRetrofit_Exterior_Advanced]],MeasureTable_ID!A:A,\"TRUE\"),\"0\") & \", \" &\nTEXT(COUNTIFS(MeasureTable_ID!G:G,EquipmentTable_Retrofit_ID[[#This Row],[measureRetrofit_Street_None]],MeasureTable_ID!A:A,\"TRUE\"),\"0\") & \", \" &\nTEXT(COUNTIFS(MeasureTable_ID!G:G,EquipmentTable_Retrofit_ID[[#This Row],[measureRetrofit_Street_Advanced]],MeasureTable_ID!A:A,\"TRUE\"),\"0\") & \", \" &\nTEXT(COUNTIFS(MeasureTable_ID!G:G,EquipmentTable_Retrofit_ID[[#This Row],[measureRetrofit_SBE]],MeasureTable_ID!A:A,\"TRUE\"),\"0\")","v":"0, 0, 0, 0, 0, 0, 0, 0"}]
["Lamp Replacement","Relamp - LED A-19 < 8 W, Medium Base","separate","Non-eligible fixture - Retrofit - ID","Non-eligible fixture - Retrofit - ID","Non-eligible fixture - Retrofit - ID","Non-eligible fixture - Retrofit - ID","Non-eligible fixture - Retrofit - ID","Non-eligible fixture - Retrofit - ID","Non-eligible fixture - Retrofit - ID","Non-eligible fixture - Retrofit - ID","Non-eligible fixture - Retrofit - ID","Non-eligible fixture - Retrofit - ID","Non-eligible fixture - Retrofit - ID",null,null,{"$f":"TEXT(COUNTIFS(MeasureTable_ID!G:G,EquipmentTable_Retrofit_ID[[#This Row],[measureRetrofit_Interior_None]],MeasureTable_ID!A:A,\"TRUE\"),\"0\") & \", \" &\nTEXT(COUNTIFS(MeasureTable_ID!G:G,EquipmentTable_Retrofit_ID[[#This Row],[measureRetrofit_Interior_Basic]],MeasureTable_ID!A:A,\"TRUE\"),\"0\") & \", \" &\nTEXT(COUNTIFS(MeasureTable_ID!G:G,EquipmentTable_Retrofit_ID[[#This Row],[measureRetrofit_Interior_Advanced]],MeasureTable_ID!A:A,\"TRUE\"),\"0\") & \", \" &\nTEXT(COUNTIFS(MeasureTable_ID!G:G,EquipmentTable_Retrofit_ID[[#This Row],[measureRetrofit_Exterior_None]],MeasureTable_ID!A:A,\"TRUE\"),\"0\") & \", \" &\nTEXT(COUNTIFS(MeasureTable_ID!G:G,EquipmentTable_Retrofit_ID[[#This Row],[measureRetrofit_Exterior_Advanced]],MeasureTable_ID!A:A,\"TRUE\"),\"0\") & \", \" &\nTEXT(COUNTIFS(MeasureTable_ID!G:G,EquipmentTable_Retrofit_ID[[#This Row],[measureRetrofit_Street_None]],MeasureTable_ID!A:A,\"TRUE\"),\"0\") & \", \" &\nTEXT(COUNTIFS(MeasureTable_ID!G:G,EquipmentTable_Retrofit_ID[[#This Row],[measureRetrofit_Street_Advanced]],MeasureTable_ID!A:A,\"TRUE\"),\"0\") & \", \" &\nTEXT(COUNTIFS(MeasureTable_ID!G:G,EquipmentTable_Retrofit_ID[[#This Row],[measureRetrofit_SBE]],MeasureTable_ID!A:A,\"TRUE\"),\"0\")","v":"0, 0, 0, 0, 0, 0, 0, 0"}]
["Lamp Replacement","Relamp - LED A-19 >= 8 W, Medium Base","separate","Non-eligible fixture - Retrofit - ID","Non-eligible fixture - Retrofit - ID","Non-eligible fixture - Retrofit - ID","Non-eligible fixture - Retrofit - ID","Non-eligible fixture - Retrofit - ID","Non-eligible fixture - Retrofit - ID","Non-eligible fixture - Retrofit - ID","Non-eligible fixture - Retrofit - ID","Non-eligible fixture - Retrofit - ID","Non-eligible fixture - Retrofit - ID","Non-eligible fixture - Retrofit - ID",null,null,{"$f":"TEXT(COUNTIFS(MeasureTable_ID!G:G,EquipmentTable_Retrofit_ID[[#This Row],[measureRetrofit_Interior_None]],MeasureTable_ID!A:A,\"TRUE\"),\"0\") & \", \" &\nTEXT(COUNTIFS(MeasureTable_ID!G:G,EquipmentTable_Retrofit_ID[[#This Row],[measureRetrofit_Interior_Basic]],MeasureTable_ID!A:A,\"TRUE\"),\"0\") & \", \" &\nTEXT(COUNTIFS(MeasureTable_ID!G:G,EquipmentTable_Retrofit_ID[[#This Row],[measureRetrofit_Interior_Advanced]],MeasureTable_ID!A:A,\"TRUE\"),\"0\") & \", \" &\nTEXT(COUNTIFS(MeasureTable_ID!G:G,EquipmentTable_Retrofit_ID[[#This Row],[measureRetrofit_Exterior_None]],MeasureTable_ID!A:A,\"TRUE\"),\"0\") & \", \" &\nTEXT(COUNTIFS(MeasureTable_ID!G:G,EquipmentTable_Retrofit_ID[[#This Row],[measureRetrofit_Exterior_Advanced]],MeasureTable_ID!A:A,\"TRUE\"),\"0\") & \", \" &\nTEXT(COUNTIFS(MeasureTable_ID!G:G,EquipmentTable_Retrofit_ID[[#This Row],[measureRetrofit_Street_None]],MeasureTable_ID!A:A,\"TRUE\"),\"0\") & \", \" &\nTEXT(COUNTIFS(MeasureTable_ID!G:G,EquipmentTable_Retrofit_ID[[#This Row],[measureRetrofit_Street_Advanced]],MeasureTable_ID!A:A,\"TRUE\"),\"0\") & \", \" &\nTEXT(COUNTIFS(MeasureTable_ID!G:G,EquipmentTable_Retrofit_ID[[#This Row],[measureRetrofit_SBE]],MeasureTable_ID!A:A,\"TRUE\"),\"0\")","v":"0, 0, 0, 0, 0, 0, 0, 0"}]
["Lamp Replacement","Relamp - LED A-21 >= 12 W, Medium Base","separate","Non-eligible fixture - Retrofit - ID","Non-eligible fixture - Retrofit - ID","Non-eligible fixture - Retrofit - ID","Non-eligible fixture - Retrofit - ID","Non-eligible fixture - Retrofit - ID","Non-eligible fixture - Retrofit - ID","Non-eligible fixture - Retrofit - ID","Non-eligible fixture - Retrofit - ID","Non-eligible fixture - Retrofit - ID","Non-eligible fixture - Retrofit - ID","Non-eligible fixture - Retrofit - ID",null,null,{"$f":"TEXT(COUNTIFS(MeasureTable_ID!G:G,EquipmentTable_Retrofit_ID[[#This Row],[measureRetrofit_Interior_None]],MeasureTable_ID!A:A,\"TRUE\"),\"0\") & \", \" &\nTEXT(COUNTIFS(MeasureTable_ID!G:G,EquipmentTable_Retrofit_ID[[#This Row],[measureRetrofit_Interior_Basic]],MeasureTable_ID!A:A,\"TRUE\"),\"0\") & \", \" &\nTEXT(COUNTIFS(MeasureTable_ID!G:G,EquipmentTable_Retrofit_ID[[#This Row],[measureRetrofit_Interior_Advanced]],MeasureTable_ID!A:A,\"TRUE\"),\"0\") & \", \" &\nTEXT(COUNTIFS(MeasureTable_ID!G:G,EquipmentTable_Retrofit_ID[[#This Row],[measureRetrofit_Exterior_None]],MeasureTable_ID!A:A,\"TRUE\"),\"0\") & \", \" &\nTEXT(COUNTIFS(MeasureTable_ID!G:G,EquipmentTable_Retrofit_ID[[#This Row],[measureRetrofit_Exterior_Advanced]],MeasureTable_ID!A:A,\"TRUE\"),\"0\") & \", \" &\nTEXT(COUNTIFS(MeasureTable_ID!G:G,EquipmentTable_Retrofit_ID[[#This Row],[measureRetrofit_Street_None]],MeasureTable_ID!A:A,\"TRUE\"),\"0\") & \", \" &\nTEXT(COUNTIFS(MeasureTable_ID!G:G,EquipmentTable_Retrofit_ID[[#This Row],[measureRetrofit_Street_Advanced]],MeasureTable_ID!A:A,\"TRUE\"),\"0\") & \", \" &\nTEXT(COUNTIFS(MeasureTable_ID!G:G,EquipmentTable_Retrofit_ID[[#This Row],[measureRetrofit_SBE]],MeasureTable_ID!A:A,\"TRUE\"),\"0\")","v":"0, 0, 0, 0, 0, 0, 0, 0"}]
["Lamp Replacement","Relamp - LED BR Reflector","separate","Non-eligible fixture - Retrofit - ID","Non-eligible fixture - Retrofit - ID","Non-eligible fixture - Retrofit - ID","Non-eligible fixture - Retrofit - ID","Non-eligible fixture - Retrofit - ID","Non-eligible fixture - Retrofit - ID","Non-eligible fixture - Retrofit - ID","Non-eligible fixture - Retrofit - ID","Non-eligible fixture - Retrofit - ID","Non-eligible fixture - Retrofit - ID","Non-eligible fixture - Retrofit - ID",null,null,{"$f":"TEXT(COUNTIFS(MeasureTable_ID!G:G,EquipmentTable_Retrofit_ID[[#This Row],[measureRetrofit_Interior_None]],MeasureTable_ID!A:A,\"TRUE\"),\"0\") & \", \" &\nTEXT(COUNTIFS(MeasureTable_ID!G:G,EquipmentTable_Retrofit_ID[[#This Row],[measureRetrofit_Interior_Basic]],MeasureTable_ID!A:A,\"TRUE\"),\"0\") & \", \" &\nTEXT(COUNTIFS(MeasureTable_ID!G:G,EquipmentTable_Retrofit_ID[[#This Row],[measureRetrofit_Interior_Advanced]],MeasureTable_ID!A:A,\"TRUE\"),\"0\") & \", \" &\nTEXT(COUNTIFS(MeasureTable_ID!G:G,EquipmentTable_Retrofit_ID[[#This Row],[measureRetrofit_Exterior_None]],MeasureTable_ID!A:A,\"TRUE\"),\"0\") & \", \" &\nTEXT(COUNTIFS(MeasureTable_ID!G:G,EquipmentTable_Retrofit_ID[[#This Row],[measureRetrofit_Exterior_Advanced]],MeasureTable_ID!A:A,\"TRUE\"),\"0\") & \", \" &\nTEXT(COUNTIFS(MeasureTable_ID!G:G,EquipmentTable_Retrofit_ID[[#This Row],[measureRetrofit_Street_None]],MeasureTable_ID!A:A,\"TRUE\"),\"0\") & \", \" &\nTEXT(COUNTIFS(MeasureTable_ID!G:G,EquipmentTable_Retrofit_ID[[#This Row],[measureRetrofit_Street_Advanced]],MeasureTable_ID!A:A,\"TRUE\"),\"0\") & \", \" &\nTEXT(COUNTIFS(MeasureTable_ID!G:G,EquipmentTable_Retrofit_ID[[#This Row],[measureRetrofit_SBE]],MeasureTable_ID!A:A,\"TRUE\"),\"0\")","v":"0, 0, 0, 0, 0, 0, 0, 0"}]
["Lamp Replacement","Relamp - LED Decorative","separate","Non-eligible fixture - Retrofit - ID","Non-eligible fixture - Retrofit - ID","Non-eligible fixture - Retrofit - ID","Non-eligible fixture - Retrofit - ID","Non-eligible fixture - Retrofit - ID","Non-eligible fixture - Retrofit - ID","Non-eligible fixture - Retrofit - ID","Non-eligible fixture - Retrofit - ID","Non-eligible fixture - Retrofit - ID","Non-eligible fixture - Retrofit - ID","Non-eligible fixture - Retrofit - ID",null,null,{"$f":"TEXT(COUNTIFS(MeasureTable_ID!G:G,EquipmentTable_Retrofit_ID[[#This Row],[measureRetrofit_Interior_None]],MeasureTable_ID!A:A,\"TRUE\"),\"0\") & \", \" &\nTEXT(COUNTIFS(MeasureTable_ID!G:G,EquipmentTable_Retrofit_ID[[#This Row],[measureRetrofit_Interior_Basic]],MeasureTable_ID!A:A,\"TRUE\"),\"0\") & \", \" &\nTEXT(COUNTIFS(MeasureTable_ID!G:G,EquipmentTable_Retrofit_ID[[#This Row],[measureRetrofit_Interior_Advanced]],MeasureTable_ID!A:A,\"TRUE\"),\"0\") & \", \" &\nTEXT(COUNTIFS(MeasureTable_ID!G:G,EquipmentTable_Retrofit_ID[[#This Row],[measureRetrofit_Exterior_None]],MeasureTable_ID!A:A,\"TRUE\"),\"0\") & \", \" &\nTEXT(COUNTIFS(MeasureTable_ID!G:G,EquipmentTable_Retrofit_ID[[#This Row],[measureRetrofit_Exterior_Advanced]],MeasureTable_ID!A:A,\"TRUE\"),\"0\") & \", \" &\nTEXT(COUNTIFS(MeasureTable_ID!G:G,EquipmentTable_Retrofit_ID[[#This Row],[measureRetrofit_Street_None]],MeasureTable_ID!A:A,\"TRUE\"),\"0\") & \", \" &\nTEXT(COUNTIFS(MeasureTable_ID!G:G,EquipmentTable_Retrofit_ID[[#This Row],[measureRetrofit_Street_Advanced]],MeasureTable_ID!A:A,\"TRUE\"),\"0\") & \", \" &\nTEXT(COUNTIFS(MeasureTable_ID!G:G,EquipmentTable_Retrofit_ID[[#This Row],[measureRetrofit_SBE]],MeasureTable_ID!A:A,\"TRUE\"),\"0\")","v":"0, 0, 0, 0, 0, 0, 0, 0"}]
["Lamp Replacement","Relamp - LED HID Replacement < 40W","separate","Non-eligible fixture - Retrofit - ID","Non-eligible fixture - Retrofit - ID","Non-eligible fixture - Retrofit - ID","Non-eligible fixture - Retrofit - ID","Non-eligible fixture - Retrofit - ID","Non-eligible fixture - Retrofit - ID","Non-eligible fixture - Retrofit - ID","Non-eligible fixture - Retrofit - ID","Non-eligible fixture - Retrofit - ID","Non-eligible fixture - Retrofit - ID","Non-eligible fixture - Retrofit - ID",null,null,{"$f":"TEXT(COUNTIFS(MeasureTable_ID!G:G,EquipmentTable_Retrofit_ID[[#This Row],[measureRetrofit_Interior_None]],MeasureTable_ID!A:A,\"TRUE\"),\"0\") & \", \" &\nTEXT(COUNTIFS(MeasureTable_ID!G:G,EquipmentTable_Retrofit_ID[[#This Row],[measureRetrofit_Interior_Basic]],MeasureTable_ID!A:A,\"TRUE\"),\"0\") & \", \" &\nTEXT(COUNTIFS(MeasureTable_ID!G:G,EquipmentTable_Retrofit_ID[[#This Row],[measureRetrofit_Interior_Advanced]],MeasureTable_ID!A:A,\"TRUE\"),\"0\") & \", \" &\nTEXT(COUNTIFS(MeasureTable_ID!G:G,EquipmentTable_Retrofit_ID[[#This Row],[measureRetrofit_Exterior_None]],MeasureTable_ID!A:A,\"TRUE\"),\"0\") & \", \" &\nTEXT(COUNTIFS(MeasureTable_ID!G:G,EquipmentTable_Retrofit_ID[[#This Row],[measureRetrofit_Exterior_Advanced]],MeasureTable_ID!A:A,\"TRUE\"),\"0\") & \", \" &\nTEXT(COUNTIFS(MeasureTable_ID!G:G,EquipmentTable_Retrofit_ID[[#This Row],[measureRetrofit_Street_None]],MeasureTable_ID!A:A,\"TRUE\"),\"0\") & \", \" &\nTEXT(COUNTIFS(MeasureTable_ID!G:G,EquipmentTable_Retrofit_ID[[#This Row],[measureRetrofit_Street_Advanced]],MeasureTable_ID!A:A,\"TRUE\"),\"0\") & \", \" &\nTEXT(COUNTIFS(MeasureTable_ID!G:G,EquipmentTable_Retrofit_ID[[#This Row],[measureRetrofit_SBE]],MeasureTable_ID!A:A,\"TRUE\"),\"0\")","v":"0, 0, 0, 0, 0, 0, 0, 0"}]
["Lamp Replacement","Relamp - LED HID Replacement >= 140W","separate","Non-eligible fixture - Retrofit - ID","Non-eligible fixture - Retrofit - ID","Non-eligible fixture - Retrofit - ID","Non-eligible fixture - Retrofit - ID","Non-eligible fixture - Retrofit - ID","Non-eligible fixture - Retrofit - ID","Non-eligible fixture - Retrofit - ID","Non-eligible fixture - Retrofit - ID","Non-eligible fixture - Retrofit - ID","Non-eligible fixture - Retrofit - ID","Non-eligible fixture - Retrofit - ID",null,null,{"$f":"TEXT(COUNTIFS(MeasureTable_ID!G:G,EquipmentTable_Retrofit_ID[[#This Row],[measureRetrofit_Interior_None]],MeasureTable_ID!A:A,\"TRUE\"),\"0\") & \", \" &\nTEXT(COUNTIFS(MeasureTable_ID!G:G,EquipmentTable_Retrofit_ID[[#This Row],[measureRetrofit_Interior_Basic]],MeasureTable_ID!A:A,\"TRUE\"),\"0\") & \", \" &\nTEXT(COUNTIFS(MeasureTable_ID!G:G,EquipmentTable_Retrofit_ID[[#This Row],[measureRetrofit_Interior_Advanced]],MeasureTable_ID!A:A,\"TRUE\"),\"0\") & \", \" &\nTEXT(COUNTIFS(MeasureTable_ID!G:G,EquipmentTable_Retrofit_ID[[#This Row],[measureRetrofit_Exterior_None]],MeasureTable_ID!A:A,\"TRUE\"),\"0\") & \", \" &\nTEXT(COUNTIFS(MeasureTable_ID!G:G,EquipmentTable_Retrofit_ID[[#This Row],[measureRetrofit_Exterior_Advanced]],MeasureTable_ID!A:A,\"TRUE\"),\"0\") & \", \" &\nTEXT(COUNTIFS(MeasureTable_ID!G:G,EquipmentTable_Retrofit_ID[[#This Row],[measureRetrofit_Street_None]],MeasureTable_ID!A:A,\"TRUE\"),\"0\") & \", \" &\nTEXT(COUNTIFS(MeasureTable_ID!G:G,EquipmentTable_Retrofit_ID[[#This Row],[measureRetrofit_Street_Advanced]],MeasureTable_ID!A:A,\"TRUE\"),\"0\") & \", \" &\nTEXT(COUNTIFS(MeasureTable_ID!G:G,EquipmentTable_Retrofit_ID[[#This Row],[measureRetrofit_SBE]],MeasureTable_ID!A:A,\"TRUE\"),\"0\")","v":"0, 0, 0, 0, 0, 0, 0, 0"}]
["Lamp Replacement","Relamp - LED HID Replacement >= 40 and < 70W","separate","Non-eligible fixture - Retrofit - ID","Non-eligible fixture - Retrofit - ID","Non-eligible fixture - Retrofit - ID","Non-eligible fixture - Retrofit - ID","Non-eligible fixture - Retrofit - ID","Non-eligible fixture - Retrofit - ID","Non-eligible fixture - Retrofit - ID","Non-eligible fixture - Retrofit - ID","Non-eligible fixture - Retrofit - ID","Non-eligible fixture - Retrofit - ID","Non-eligible fixture - Retrofit - ID",null,null,{"$f":"TEXT(COUNTIFS(MeasureTable_ID!G:G,EquipmentTable_Retrofit_ID[[#This Row],[measureRetrofit_Interior_None]],MeasureTable_ID!A:A,\"TRUE\"),\"0\") & \", \" &\nTEXT(COUNTIFS(MeasureTable_ID!G:G,EquipmentTable_Retrofit_ID[[#This Row],[measureRetrofit_Interior_Basic]],MeasureTable_ID!A:A,\"TRUE\"),\"0\") & \", \" &\nTEXT(COUNTIFS(MeasureTable_ID!G:G,EquipmentTable_Retrofit_ID[[#This Row],[measureRetrofit_Interior_Advanced]],MeasureTable_ID!A:A,\"TRUE\"),\"0\") & \", \" &\nTEXT(COUNTIFS(MeasureTable_ID!G:G,EquipmentTable_Retrofit_ID[[#This Row],[measureRetrofit_Exterior_None]],MeasureTable_ID!A:A,\"TRUE\"),\"0\") & \", \" &\nTEXT(COUNTIFS(MeasureTable_ID!G:G,EquipmentTable_Retrofit_ID[[#This Row],[measureRetrofit_Exterior_Advanced]],MeasureTable_ID!A:A,\"TRUE\"),\"0\") & \", \" &\nTEXT(COUNTIFS(MeasureTable_ID!G:G,EquipmentTable_Retrofit_ID[[#This Row],[measureRetrofit_Street_None]],MeasureTable_ID!A:A,\"TRUE\"),\"0\") & \", \" &\nTEXT(COUNTIFS(MeasureTable_ID!G:G,EquipmentTable_Retrofit_ID[[#This Row],[measureRetrofit_Street_Advanced]],MeasureTable_ID!A:A,\"TRUE\"),\"0\") & \", \" &\nTEXT(COUNTIFS(MeasureTable_ID!G:G,EquipmentTable_Retrofit_ID[[#This Row],[measureRetrofit_SBE]],MeasureTable_ID!A:A,\"TRUE\"),\"0\")","v":"0, 0, 0, 0, 0, 0, 0, 0"}]
["Lamp Replacement","Relamp - LED HID Replacement >= 70 and < 140W","separate","Non-eligible fixture - Retrofit - ID","Non-eligible fixture - Retrofit - ID","Non-eligible fixture - Retrofit - ID","Non-eligible fixture - Retrofit - ID","Non-eligible fixture - Retrofit - ID","Non-eligible fixture - Retrofit - ID","Non-eligible fixture - Retrofit - ID","Non-eligible fixture - Retrofit - ID","Non-eligible fixture - Retrofit - ID","Non-eligible fixture - Retrofit - ID","Non-eligible fixture - Retrofit - ID",null,null,{"$f":"TEXT(COUNTIFS(MeasureTable_ID!G:G,EquipmentTable_Retrofit_ID[[#This Row],[measureRetrofit_Interior_None]],MeasureTable_ID!A:A,\"TRUE\"),\"0\") & \", \" &\nTEXT(COUNTIFS(MeasureTable_ID!G:G,EquipmentTable_Retrofit_ID[[#This Row],[measureRetrofit_Interior_Basic]],MeasureTable_ID!A:A,\"TRUE\"),\"0\") & \", \" &\nTEXT(COUNTIFS(MeasureTable_ID!G:G,EquipmentTable_Retrofit_ID[[#This Row],[measureRetrofit_Interior_Advanced]],MeasureTable_ID!A:A,\"TRUE\"),\"0\") & \", \" &\nTEXT(COUNTIFS(MeasureTable_ID!G:G,EquipmentTable_Retrofit_ID[[#This Row],[measureRetrofit_Exterior_None]],MeasureTable_ID!A:A,\"TRUE\"),\"0\") & \", \" &\nTEXT(COUNTIFS(MeasureTable_ID!G:G,EquipmentTable_Retrofit_ID[[#This Row],[measureRetrofit_Exterior_Advanced]],MeasureTable_ID!A:A,\"TRUE\"),\"0\") & \", \" &\nTEXT(COUNTIFS(MeasureTable_ID!G:G,EquipmentTable_Retrofit_ID[[#This Row],[measureRetrofit_Street_None]],MeasureTable_ID!A:A,\"TRUE\"),\"0\") & \", \" &\nTEXT(COUNTIFS(MeasureTable_ID!G:G,EquipmentTable_Retrofit_ID[[#This Row],[measureRetrofit_Street_Advanced]],MeasureTable_ID!A:A,\"TRUE\"),\"0\") & \", \" &\nTEXT(COUNTIFS(MeasureTable_ID!G:G,EquipmentTable_Retrofit_ID[[#This Row],[measureRetrofit_SBE]],MeasureTable_ID!A:A,\"TRUE\"),\"0\")","v":"0, 0, 0, 0, 0, 0, 0, 0"}]
["Lamp Replacement","Relamp - LED Message Center Lamps","separate","Non-eligible fixture - Retrofit - ID","Non-eligible fixture - Retrofit - ID","Non-eligible fixture - Retrofit - ID","Non-eligible fixture - Retrofit - ID","Non-eligible fixture - Retrofit - ID","Non-eligible fixture - Retrofit - ID","Non-eligible fixture - Retrofit - ID","Non-eligible fixture - Retrofit - ID","Non-eligible fixture - Retrofit - ID","Non-eligible fixture - Retrofit - ID","Non-eligible fixture - Retrofit - ID",null,null,{"$f":"TEXT(COUNTIFS(MeasureTable_ID!G:G,EquipmentTable_Retrofit_ID[[#This Row],[measureRetrofit_Interior_None]],MeasureTable_ID!A:A,\"TRUE\"),\"0\") & \", \" &\nTEXT(COUNTIFS(MeasureTable_ID!G:G,EquipmentTable_Retrofit_ID[[#This Row],[measureRetrofit_Interior_Basic]],MeasureTable_ID!A:A,\"TRUE\"),\"0\") & \", \" &\nTEXT(COUNTIFS(MeasureTable_ID!G:G,EquipmentTable_Retrofit_ID[[#This Row],[measureRetrofit_Interior_Advanced]],MeasureTable_ID!A:A,\"TRUE\"),\"0\") & \", \" &\nTEXT(COUNTIFS(MeasureTable_ID!G:G,EquipmentTable_Retrofit_ID[[#This Row],[measureRetrofit_Exterior_None]],MeasureTable_ID!A:A,\"TRUE\"),\"0\") & \", \" &\nTEXT(COUNTIFS(MeasureTable_ID!G:G,EquipmentTable_Retrofit_ID[[#This Row],[measureRetrofit_Exterior_Advanced]],MeasureTable_ID!A:A,\"TRUE\"),\"0\") & \", \" &\nTEXT(COUNTIFS(MeasureTable_ID!G:G,EquipmentTable_Retrofit_ID[[#This Row],[measureRetrofit_Street_None]],MeasureTable_ID!A:A,\"TRUE\"),\"0\") & \", \" &\nTEXT(COUNTIFS(MeasureTable_ID!G:G,EquipmentTable_Retrofit_ID[[#This Row],[measureRetrofit_Street_Advanced]],MeasureTable_ID!A:A,\"TRUE\"),\"0\") & \", \" &\nTEXT(COUNTIFS(MeasureTable_ID!G:G,EquipmentTable_Retrofit_ID[[#This Row],[measureRetrofit_SBE]],MeasureTable_ID!A:A,\"TRUE\"),\"0\")","v":"0, 0, 0, 0, 0, 0, 0, 0"}]
["Lamp Replacement","Relamp - LED MR16 Reflector","separate","Non-eligible fixture - Retrofit - ID","Non-eligible fixture - Retrofit - ID","Non-eligible fixture - Retrofit - ID","Non-eligible fixture - Retrofit - ID","Non-eligible fixture - Retrofit - ID","Non-eligible fixture - Retrofit - ID","Non-eligible fixture - Retrofit - ID","Non-eligible fixture - Retrofit - ID","Non-eligible fixture - Retrofit - ID","Non-eligible fixture - Retrofit - ID","Non-eligible fixture - Retrofit - ID",null,null,{"$f":"TEXT(COUNTIFS(MeasureTable_ID!G:G,EquipmentTable_Retrofit_ID[[#This Row],[measureRetrofit_Interior_None]],MeasureTable_ID!A:A,\"TRUE\"),\"0\") & \", \" &\nTEXT(COUNTIFS(MeasureTable_ID!G:G,EquipmentTable_Retrofit_ID[[#This Row],[measureRetrofit_Interior_Basic]],MeasureTable_ID!A:A,\"TRUE\"),\"0\") & \", \" &\nTEXT(COUNTIFS(MeasureTable_ID!G:G,EquipmentTable_Retrofit_ID[[#This Row],[measureRetrofit_Interior_Advanced]],MeasureTable_ID!A:A,\"TRUE\"),\"0\") & \", \" &\nTEXT(COUNTIFS(MeasureTable_ID!G:G,EquipmentTable_Retrofit_ID[[#This Row],[measureRetrofit_Exterior_None]],MeasureTable_ID!A:A,\"TRUE\"),\"0\") & \", \" &\nTEXT(COUNTIFS(MeasureTable_ID!G:G,EquipmentTable_Retrofit_ID[[#This Row],[measureRetrofit_Exterior_Advanced]],MeasureTable_ID!A:A,\"TRUE\"),\"0\") & \", \" &\nTEXT(COUNTIFS(MeasureTable_ID!G:G,EquipmentTable_Retrofit_ID[[#This Row],[measureRetrofit_Street_None]],MeasureTable_ID!A:A,\"TRUE\"),\"0\") & \", \" &\nTEXT(COUNTIFS(MeasureTable_ID!G:G,EquipmentTable_Retrofit_ID[[#This Row],[measureRetrofit_Street_Advanced]],MeasureTable_ID!A:A,\"TRUE\"),\"0\") & \", \" &\nTEXT(COUNTIFS(MeasureTable_ID!G:G,EquipmentTable_Retrofit_ID[[#This Row],[measureRetrofit_SBE]],MeasureTable_ID!A:A,\"TRUE\"),\"0\")","v":"0, 0, 0, 0, 0, 0, 0, 0"}]
["Lamp Replacement","Relamp - LED PAR Reflector","separate","Non-eligible fixture - Retrofit - ID","Non-eligible fixture - Retrofit - ID","Non-eligible fixture - Retrofit - ID","Non-eligible fixture - Retrofit - ID","Non-eligible fixture - Retrofit - ID","Non-eligible fixture - Retrofit - ID","Non-eligible fixture - Retrofit - ID","Non-eligible fixture - Retrofit - ID","Non-eligible fixture - Retrofit - ID","Non-eligible fixture - Retrofit - ID","Non-eligible fixture - Retrofit - ID",null,null,{"$f":"TEXT(COUNTIFS(MeasureTable_ID!G:G,EquipmentTable_Retrofit_ID[[#This Row],[measureRetrofit_Interior_None]],MeasureTable_ID!A:A,\"TRUE\"),\"0\") & \", \" &\nTEXT(COUNTIFS(MeasureTable_ID!G:G,EquipmentTable_Retrofit_ID[[#This Row],[measureRetrofit_Interior_Basic]],MeasureTable_ID!A:A,\"TRUE\"),\"0\") & \", \" &\nTEXT(COUNTIFS(MeasureTable_ID!G:G,EquipmentTable_Retrofit_ID[[#This Row],[measureRetrofit_Interior_Advanced]],MeasureTable_ID!A:A,\"TRUE\"),\"0\") & \", \" &\nTEXT(COUNTIFS(MeasureTable_ID!G:G,EquipmentTable_Retrofit_ID[[#This Row],[measureRetrofit_Exterior_None]],MeasureTable_ID!A:A,\"TRUE\"),\"0\") & \", \" &\nTEXT(COUNTIFS(MeasureTable_ID!G:G,EquipmentTable_Retrofit_ID[[#This Row],[measureRetrofit_Exterior_Advanced]],MeasureTable_ID!A:A,\"TRUE\"),\"0\") & \", \" &\nTEXT(COUNTIFS(MeasureTable_ID!G:G,EquipmentTable_Retrofit_ID[[#This Row],[measureRetrofit_Street_None]],MeasureTable_ID!A:A,\"TRUE\"),\"0\") & \", \" &\nTEXT(COUNTIFS(MeasureTable_ID!G:G,EquipmentTable_Retrofit_ID[[#This Row],[measureRetrofit_Street_Advanced]],MeasureTable_ID!A:A,\"TRUE\"),\"0\") & \", \" &\nTEXT(COUNTIFS(MeasureTable_ID!G:G,EquipmentTable_Retrofit_ID[[#This Row],[measureRetrofit_SBE]],MeasureTable_ID!A:A,\"TRUE\"),\"0\")","v":"0, 0, 0, 0, 0, 0, 0, 0"}]
["Lamp Replacement","Relamp - LED PLC Pin-based < 10W","separate","Non-eligible fixture - Retrofit - ID","Non-eligible fixture - Retrofit - ID","Non-eligible fixture - Retrofit - ID","Non-eligible fixture - Retrofit - ID","Non-eligible fixture - Retrofit - ID","Non-eligible fixture - Retrofit - ID","Non-eligible fixture - Retrofit - ID","Non-eligible fixture - Retrofit - ID","Non-eligible fixture - Retrofit - ID","Non-eligible fixture - Retrofit - ID","Non-eligible fixture - Retrofit - ID",null,null,{"$f":"TEXT(COUNTIFS(MeasureTable_ID!G:G,EquipmentTable_Retrofit_ID[[#This Row],[measureRetrofit_Interior_None]],MeasureTable_ID!A:A,\"TRUE\"),\"0\") & \", \" &\nTEXT(COUNTIFS(MeasureTable_ID!G:G,EquipmentTable_Retrofit_ID[[#This Row],[measureRetrofit_Interior_Basic]],MeasureTable_ID!A:A,\"TRUE\"),\"0\") & \", \" &\nTEXT(COUNTIFS(MeasureTable_ID!G:G,EquipmentTable_Retrofit_ID[[#This Row],[measureRetrofit_Interior_Advanced]],MeasureTable_ID!A:A,\"TRUE\"),\"0\") & \", \" &\nTEXT(COUNTIFS(MeasureTable_ID!G:G,EquipmentTable_Retrofit_ID[[#This Row],[measureRetrofit_Exterior_None]],MeasureTable_ID!A:A,\"TRUE\"),\"0\") & \", \" &\nTEXT(COUNTIFS(MeasureTable_ID!G:G,EquipmentTable_Retrofit_ID[[#This Row],[measureRetrofit_Exterior_Advanced]],MeasureTable_ID!A:A,\"TRUE\"),\"0\") & \", \" &\nTEXT(COUNTIFS(MeasureTable_ID!G:G,EquipmentTable_Retrofit_ID[[#This Row],[measureRetrofit_Street_None]],MeasureTable_ID!A:A,\"TRUE\"),\"0\") & \", \" &\nTEXT(COUNTIFS(MeasureTable_ID!G:G,EquipmentTable_Retrofit_ID[[#This Row],[measureRetrofit_Street_Advanced]],MeasureTable_ID!A:A,\"TRUE\"),\"0\") & \", \" &\nTEXT(COUNTIFS(MeasureTable_ID!G:G,EquipmentTable_Retrofit_ID[[#This Row],[measureRetrofit_SBE]],MeasureTable_ID!A:A,\"TRUE\"),\"0\")","v":"0, 0, 0, 0, 0, 0, 0, 0"}]
["Lamp Replacement","Relamp - LED PLC Pin-based >= 10W","separate","Non-eligible fixture - Retrofit - ID","Non-eligible fixture - Retrofit - ID","Non-eligible fixture - Retrofit - ID","Non-eligible fixture - Retrofit - ID","Non-eligible fixture - Retrofit - ID","Non-eligible fixture - Retrofit - ID","Non-eligible fixture - Retrofit - ID","Non-eligible fixture - Retrofit - ID","Non-eligible fixture - Retrofit - ID","Non-eligible fixture - Retrofit - ID","Non-eligible fixture - Retrofit - ID",null,null,{"$f":"TEXT(COUNTIFS(MeasureTable_ID!G:G,EquipmentTable_Retrofit_ID[[#This Row],[measureRetrofit_Interior_None]],MeasureTable_ID!A:A,\"TRUE\"),\"0\") & \", \" &\nTEXT(COUNTIFS(MeasureTable_ID!G:G,EquipmentTable_Retrofit_ID[[#This Row],[measureRetrofit_Interior_Basic]],MeasureTable_ID!A:A,\"TRUE\"),\"0\") & \", \" &\nTEXT(COUNTIFS(MeasureTable_ID!G:G,EquipmentTable_Retrofit_ID[[#This Row],[measureRetrofit_Interior_Advanced]],MeasureTable_ID!A:A,\"TRUE\"),\"0\") & \", \" &\nTEXT(COUNTIFS(MeasureTable_ID!G:G,EquipmentTable_Retrofit_ID[[#This Row],[measureRetrofit_Exterior_None]],MeasureTable_ID!A:A,\"TRUE\"),\"0\") & \", \" &\nTEXT(COUNTIFS(MeasureTable_ID!G:G,EquipmentTable_Retrofit_ID[[#This Row],[measureRetrofit_Exterior_Advanced]],MeasureTable_ID!A:A,\"TRUE\"),\"0\") & \", \" &\nTEXT(COUNTIFS(MeasureTable_ID!G:G,EquipmentTable_Retrofit_ID[[#This Row],[measureRetrofit_Street_None]],MeasureTable_ID!A:A,\"TRUE\"),\"0\") & \", \" &\nTEXT(COUNTIFS(MeasureTable_ID!G:G,EquipmentTable_Retrofit_ID[[#This Row],[measureRetrofit_Street_Advanced]],MeasureTable_ID!A:A,\"TRUE\"),\"0\") & \", \" &\nTEXT(COUNTIFS(MeasureTable_ID!G:G,EquipmentTable_Retrofit_ID[[#This Row],[measureRetrofit_SBE]],MeasureTable_ID!A:A,\"TRUE\"),\"0\")","v":"0, 0, 0, 0, 0, 0, 0, 0"}]
["Lamp Replacement","Relamp - LED PLL Pin-based","separate","Non-eligible fixture - Retrofit - ID","Non-eligible fixture - Retrofit - ID","Non-eligible fixture - Retrofit - ID","Non-eligible fixture - Retrofit - ID","Non-eligible fixture - Retrofit - ID","Non-eligible fixture - Retrofit - ID","Non-eligible fixture - Retrofit - ID","Non-eligible fixture - Retrofit - ID","Non-eligible fixture - Retrofit - ID","Non-eligible fixture - Retrofit - ID","Non-eligible fixture - Retrofit - ID",null,null,{"$f":"TEXT(COUNTIFS(MeasureTable_ID!G:G,EquipmentTable_Retrofit_ID[[#This Row],[measureRetrofit_Interior_None]],MeasureTable_ID!A:A,\"TRUE\"),\"0\") & \", \" &\nTEXT(COUNTIFS(MeasureTable_ID!G:G,EquipmentTable_Retrofit_ID[[#This Row],[measureRetrofit_Interior_Basic]],MeasureTable_ID!A:A,\"TRUE\"),\"0\") & \", \" &\nTEXT(COUNTIFS(MeasureTable_ID!G:G,EquipmentTable_Retrofit_ID[[#This Row],[measureRetrofit_Interior_Advanced]],MeasureTable_ID!A:A,\"TRUE\"),\"0\") & \", \" &\nTEXT(COUNTIFS(MeasureTable_ID!G:G,EquipmentTable_Retrofit_ID[[#This Row],[measureRetrofit_Exterior_None]],MeasureTable_ID!A:A,\"TRUE\"),\"0\") & \", \" &\nTEXT(COUNTIFS(MeasureTable_ID!G:G,EquipmentTable_Retrofit_ID[[#This Row],[measureRetrofit_Exterior_Advanced]],MeasureTable_ID!A:A,\"TRUE\"),\"0\") & \", \" &\nTEXT(COUNTIFS(MeasureTable_ID!G:G,EquipmentTable_Retrofit_ID[[#This Row],[measureRetrofit_Street_None]],MeasureTable_ID!A:A,\"TRUE\"),\"0\") & \", \" &\nTEXT(COUNTIFS(MeasureTable_ID!G:G,EquipmentTable_Retrofit_ID[[#This Row],[measureRetrofit_Street_Advanced]],MeasureTable_ID!A:A,\"TRUE\"),\"0\") & \", \" &\nTEXT(COUNTIFS(MeasureTable_ID!G:G,EquipmentTable_Retrofit_ID[[#This Row],[measureRetrofit_SBE]],MeasureTable_ID!A:A,\"TRUE\"),\"0\")","v":"0, 0, 0, 0, 0, 0, 0, 0"}]
["Lamp Replacement","Relamp - T5 TLED - Type A, A/B Dual Mode","separate","Non-eligible fixture - Retrofit - ID","Non-eligible fixture - Retrofit - ID","Non-eligible fixture - Retrofit - ID","Non-eligible fixture - Retrofit - ID","Non-eligible fixture - Retrofit - ID","Non-eligible fixture - Retrofit - ID","Non-eligible fixture - Retrofit - ID","Non-eligible fixture - Retrofit - ID","Non-eligible fixture - Retrofit - ID","Non-eligible fixture - Retrofit - ID","Non-eligible fixture - Retrofit - ID",null,null,{"$f":"TEXT(COUNTIFS(MeasureTable_ID!G:G,EquipmentTable_Retrofit_ID[[#This Row],[measureRetrofit_Interior_None]],MeasureTable_ID!A:A,\"TRUE\"),\"0\") & \", \" &\nTEXT(COUNTIFS(MeasureTable_ID!G:G,EquipmentTable_Retrofit_ID[[#This Row],[measureRetrofit_Interior_Basic]],MeasureTable_ID!A:A,\"TRUE\"),\"0\") & \", \" &\nTEXT(COUNTIFS(MeasureTable_ID!G:G,EquipmentTable_Retrofit_ID[[#This Row],[measureRetrofit_Interior_Advanced]],MeasureTable_ID!A:A,\"TRUE\"),\"0\") & \", \" &\nTEXT(COUNTIFS(MeasureTable_ID!G:G,EquipmentTable_Retrofit_ID[[#This Row],[measureRetrofit_Exterior_None]],MeasureTable_ID!A:A,\"TRUE\"),\"0\") & \", \" &\nTEXT(COUNTIFS(MeasureTable_ID!G:G,EquipmentTable_Retrofit_ID[[#This Row],[measureRetrofit_Exterior_Advanced]],MeasureTable_ID!A:A,\"TRUE\"),\"0\") & \", \" &\nTEXT(COUNTIFS(MeasureTable_ID!G:G,EquipmentTable_Retrofit_ID[[#This Row],[measureRetrofit_Street_None]],MeasureTable_ID!A:A,\"TRUE\"),\"0\") & \", \" &\nTEXT(COUNTIFS(MeasureTable_ID!G:G,EquipmentTable_Retrofit_ID[[#This Row],[measureRetrofit_Street_Advanced]],MeasureTable_ID!A:A,\"TRUE\"),\"0\") & \", \" &\nTEXT(COUNTIFS(MeasureTable_ID!G:G,EquipmentTable_Retrofit_ID[[#This Row],[measureRetrofit_SBE]],MeasureTable_ID!A:A,\"TRUE\"),\"0\")","v":"0, 0, 0, 0, 0, 0, 0, 0"}]
["Lamp Replacement","Relamp - T5 TLED - Type B","separate","Non-eligible fixture - Retrofit - ID","Non-eligible fixture - Retrofit - ID","Non-eligible fixture - Retrofit - ID","Non-eligible fixture - Retrofit - ID","Non-eligible fixture - Retrofit - ID","Non-eligible fixture - Retrofit - ID","Non-eligible fixture - Retrofit - ID","Non-eligible fixture - Retrofit - ID","Non-eligible fixture - Retrofit - ID","Non-eligible fixture - Retrofit - ID","Non-eligible fixture - Retrofit - ID",null,null,{"$f":"TEXT(COUNTIFS(MeasureTable_ID!G:G,EquipmentTable_Retrofit_ID[[#This Row],[measureRetrofit_Interior_None]],MeasureTable_ID!A:A,\"TRUE\"),\"0\") & \", \" &\nTEXT(COUNTIFS(MeasureTable_ID!G:G,EquipmentTable_Retrofit_ID[[#This Row],[measureRetrofit_Interior_Basic]],MeasureTable_ID!A:A,\"TRUE\"),\"0\") & \", \" &\nTEXT(COUNTIFS(MeasureTable_ID!G:G,EquipmentTable_Retrofit_ID[[#This Row],[measureRetrofit_Interior_Advanced]],MeasureTable_ID!A:A,\"TRUE\"),\"0\") & \", \" &\nTEXT(COUNTIFS(MeasureTable_ID!G:G,EquipmentTable_Retrofit_ID[[#This Row],[measureRetrofit_Exterior_None]],MeasureTable_ID!A:A,\"TRUE\"),\"0\") & \", \" &\nTEXT(COUNTIFS(MeasureTable_ID!G:G,EquipmentTable_Retrofit_ID[[#This Row],[measureRetrofit_Exterior_Advanced]],MeasureTable_ID!A:A,\"TRUE\"),\"0\") & \", \" &\nTEXT(COUNTIFS(MeasureTable_ID!G:G,EquipmentTable_Retrofit_ID[[#This Row],[measureRetrofit_Street_None]],MeasureTable_ID!A:A,\"TRUE\"),\"0\") & \", \" &\nTEXT(COUNTIFS(MeasureTable_ID!G:G,EquipmentTable_Retrofit_ID[[#This Row],[measureRetrofit_Street_Advanced]],MeasureTable_ID!A:A,\"TRUE\"),\"0\") & \", \" &\nTEXT(COUNTIFS(MeasureTable_ID!G:G,EquipmentTable_Retrofit_ID[[#This Row],[measureRetrofit_SBE]],MeasureTable_ID!A:A,\"TRUE\"),\"0\")","v":"0, 0, 0, 0, 0, 0, 0, 0"}]
["Lamp Replacement","Relamp - T5 TLED - Type C","separate","Non-eligible fixture - Retrofit - ID","Non-eligible fixture - Retrofit - ID","Non-eligible fixture - Retrofit - ID","Non-eligible fixture - Retrofit - ID","Non-eligible fixture - Retrofit - ID","Non-eligible fixture - Retrofit - ID","Non-eligible fixture - Retrofit - ID","Non-eligible fixture - Retrofit - ID","Non-eligible fixture - Retrofit - ID","Non-eligible fixture - Retrofit - ID","Non-eligible fixture - Retrofit - ID",null,null,{"$f":"TEXT(COUNTIFS(MeasureTable_ID!G:G,EquipmentTable_Retrofit_ID[[#This Row],[measureRetrofit_Interior_None]],MeasureTable_ID!A:A,\"TRUE\"),\"0\") & \", \" &\nTEXT(COUNTIFS(MeasureTable_ID!G:G,EquipmentTable_Retrofit_ID[[#This Row],[measureRetrofit_Interior_Basic]],MeasureTable_ID!A:A,\"TRUE\"),\"0\") & \", \" &\nTEXT(COUNTIFS(MeasureTable_ID!G:G,EquipmentTable_Retrofit_ID[[#This Row],[measureRetrofit_Interior_Advanced]],MeasureTable_ID!A:A,\"TRUE\"),\"0\") & \", \" &\nTEXT(COUNTIFS(MeasureTable_ID!G:G,EquipmentTable_Retrofit_ID[[#This Row],[measureRetrofit_Exterior_None]],MeasureTable_ID!A:A,\"TRUE\"),\"0\") & \", \" &\nTEXT(COUNTIFS(MeasureTable_ID!G:G,EquipmentTable_Retrofit_ID[[#This Row],[measureRetrofit_Exterior_Advanced]],MeasureTable_ID!A:A,\"TRUE\"),\"0\") & \", \" &\nTEXT(COUNTIFS(MeasureTable_ID!G:G,EquipmentTable_Retrofit_ID[[#This Row],[measureRetrofit_Street_None]],MeasureTable_ID!A:A,\"TRUE\"),\"0\") & \", \" &\nTEXT(COUNTIFS(MeasureTable_ID!G:G,EquipmentTable_Retrofit_ID[[#This Row],[measureRetrofit_Street_Advanced]],MeasureTable_ID!A:A,\"TRUE\"),\"0\") & \", \" &\nTEXT(COUNTIFS(MeasureTable_ID!G:G,EquipmentTable_Retrofit_ID[[#This Row],[measureRetrofit_SBE]],MeasureTable_ID!A:A,\"TRUE\"),\"0\")","v":"0, 0, 0, 0, 0, 0, 0, 0"}]
["Lamp Replacement","Relamp - T8 TLED - Type A, A/B Dual Mode","separate","Non-eligible fixture - Retrofit - ID","Non-eligible fixture - Retrofit - ID","Non-eligible fixture - Retrofit - ID","Non-eligible fixture - Retrofit - ID","Non-eligible fixture - Retrofit - ID","Non-eligible fixture - Retrofit - ID","Non-eligible fixture - Retrofit - ID","Non-eligible fixture - Retrofit - ID","Non-eligible fixture - Retrofit - ID","Non-eligible fixture - Retrofit - ID","Non-eligible fixture - Retrofit - ID",null,null,{"$f":"TEXT(COUNTIFS(MeasureTable_ID!G:G,EquipmentTable_Retrofit_ID[[#This Row],[measureRetrofit_Interior_None]],MeasureTable_ID!A:A,\"TRUE\"),\"0\") & \", \" &\nTEXT(COUNTIFS(MeasureTable_ID!G:G,EquipmentTable_Retrofit_ID[[#This Row],[measureRetrofit_Interior_Basic]],MeasureTable_ID!A:A,\"TRUE\"),\"0\") & \", \" &\nTEXT(COUNTIFS(MeasureTable_ID!G:G,EquipmentTable_Retrofit_ID[[#This Row],[measureRetrofit_Interior_Advanced]],MeasureTable_ID!A:A,\"TRUE\"),\"0\") & \", \" &\nTEXT(COUNTIFS(MeasureTable_ID!G:G,EquipmentTable_Retrofit_ID[[#This Row],[measureRetrofit_Exterior_None]],MeasureTable_ID!A:A,\"TRUE\"),\"0\") & \", \" &\nTEXT(COUNTIFS(MeasureTable_ID!G:G,EquipmentTable_Retrofit_ID[[#This Row],[measureRetrofit_Exterior_Advanced]],MeasureTable_ID!A:A,\"TRUE\"),\"0\") & \", \" &\nTEXT(COUNTIFS(MeasureTable_ID!G:G,EquipmentTable_Retrofit_ID[[#This Row],[measureRetrofit_Street_None]],MeasureTable_ID!A:A,\"TRUE\"),\"0\") & \", \" &\nTEXT(COUNTIFS(MeasureTable_ID!G:G,EquipmentTable_Retrofit_ID[[#This Row],[measureRetrofit_Street_Advanced]],MeasureTable_ID!A:A,\"TRUE\"),\"0\") & \", \" &\nTEXT(COUNTIFS(MeasureTable_ID!G:G,EquipmentTable_Retrofit_ID[[#This Row],[measureRetrofit_SBE]],MeasureTable_ID!A:A,\"TRUE\"),\"0\")","v":"0, 0, 0, 0, 0, 0, 0, 0"}]
["Lamp Replacement","Relamp - T8 TLED - Type B","separate","Non-eligible fixture - Retrofit - ID","Non-eligible fixture - Retrofit - ID","Non-eligible fixture - Retrofit - ID","Non-eligible fixture - Retrofit - ID","Non-eligible fixture - Retrofit - ID","Non-eligible fixture - Retrofit - ID","Non-eligible fixture - Retrofit - ID","Non-eligible fixture - Retrofit - ID","Non-eligible fixture - Retrofit - ID","Non-eligible fixture - Retrofit - ID","Non-eligible fixture - Retrofit - ID",null,null,{"$f":"TEXT(COUNTIFS(MeasureTable_ID!G:G,EquipmentTable_Retrofit_ID[[#This Row],[measureRetrofit_Interior_None]],MeasureTable_ID!A:A,\"TRUE\"),\"0\") & \", \" &\nTEXT(COUNTIFS(MeasureTable_ID!G:G,EquipmentTable_Retrofit_ID[[#This Row],[measureRetrofit_Interior_Basic]],MeasureTable_ID!A:A,\"TRUE\"),\"0\") & \", \" &\nTEXT(COUNTIFS(MeasureTable_ID!G:G,EquipmentTable_Retrofit_ID[[#This Row],[measureRetrofit_Interior_Advanced]],MeasureTable_ID!A:A,\"TRUE\"),\"0\") & \", \" &\nTEXT(COUNTIFS(MeasureTable_ID!G:G,EquipmentTable_Retrofit_ID[[#This Row],[measureRetrofit_Exterior_None]],MeasureTable_ID!A:A,\"TRUE\"),\"0\") & \", \" &\nTEXT(COUNTIFS(MeasureTable_ID!G:G,EquipmentTable_Retrofit_ID[[#This Row],[measureRetrofit_Exterior_Advanced]],MeasureTable_ID!A:A,\"TRUE\"),\"0\") & \", \" &\nTEXT(COUNTIFS(MeasureTable_ID!G:G,EquipmentTable_Retrofit_ID[[#This Row],[measureRetrofit_Street_None]],MeasureTable_ID!A:A,\"TRUE\"),\"0\") & \", \" &\nTEXT(COUNTIFS(MeasureTable_ID!G:G,EquipmentTable_Retrofit_ID[[#This Row],[measureRetrofit_Street_Advanced]],MeasureTable_ID!A:A,\"TRUE\"),\"0\") & \", \" &\nTEXT(COUNTIFS(MeasureTable_ID!G:G,EquipmentTable_Retrofit_ID[[#This Row],[measureRetrofit_SBE]],MeasureTable_ID!A:A,\"TRUE\"),\"0\")","v":"0, 0, 0, 0, 0, 0, 0, 0"}]
["Lamp Replacement","Relamp - T8 TLED - Type C","separate","Non-eligible fixture - Retrofit - ID","Non-eligible fixture - Retrofit - ID","Non-eligible fixture - Retrofit - ID","Non-eligible fixture - Retrofit - ID","Non-eligible fixture - Retrofit - ID","Non-eligible fixture - Retrofit - ID","Non-eligible fixture - Retrofit - ID","Non-eligible fixture - Retrofit - ID","Non-eligible fixture - Retrofit - ID","Non-eligible fixture - Retrofit - ID","Non-eligible fixture - Retrofit - ID",null,null,{"$f":"TEXT(COUNTIFS(MeasureTable_ID!G:G,EquipmentTable_Retrofit_ID[[#This Row],[measureRetrofit_Interior_None]],MeasureTable_ID!A:A,\"TRUE\"),\"0\") & \", \" &\nTEXT(COUNTIFS(MeasureTable_ID!G:G,EquipmentTable_Retrofit_ID[[#This Row],[measureRetrofit_Interior_Basic]],MeasureTable_ID!A:A,\"TRUE\"),\"0\") & \", \" &\nTEXT(COUNTIFS(MeasureTable_ID!G:G,EquipmentTable_Retrofit_ID[[#This Row],[measureRetrofit_Interior_Advanced]],MeasureTable_ID!A:A,\"TRUE\"),\"0\") & \", \" &\nTEXT(COUNTIFS(MeasureTable_ID!G:G,EquipmentTable_Retrofit_ID[[#This Row],[measureRetrofit_Exterior_None]],MeasureTable_ID!A:A,\"TRUE\"),\"0\") & \", \" &\nTEXT(COUNTIFS(MeasureTable_ID!G:G,EquipmentTable_Retrofit_ID[[#This Row],[measureRetrofit_Exterior_Advanced]],MeasureTable_ID!A:A,\"TRUE\"),\"0\") & \", \" &\nTEXT(COUNTIFS(MeasureTable_ID!G:G,EquipmentTable_Retrofit_ID[[#This Row],[measureRetrofit_Street_None]],MeasureTable_ID!A:A,\"TRUE\"),\"0\") & \", \" &\nTEXT(COUNTIFS(MeasureTable_ID!G:G,EquipmentTable_Retrofit_ID[[#This Row],[measureRetrofit_Street_Advanced]],MeasureTable_ID!A:A,\"TRUE\"),\"0\") & \", \" &\nTEXT(COUNTIFS(MeasureTable_ID!G:G,EquipmentTable_Retrofit_ID[[#This Row],[measureRetrofit_SBE]],MeasureTable_ID!A:A,\"TRUE\"),\"0\")","v":"0, 0, 0, 0, 0, 0, 0, 0"}]
["Admin","Relamp - LED HID Replacement < 40W","separate","Non-eligible fixture - Retrofit - ID","Non-eligible fixture - Retrofit - ID","Non-eligible fixture - Retrofit - ID","Non-eligible fixture - Retrofit - ID","Non-eligible fixture - Retrofit - ID","Non-eligible fixture - Retrofit - ID","Non-eligible fixture - Retrofit - ID","Non-eligible fixture - Retrofit - ID","Non-eligible fixture - Retrofit - ID","Non-eligible fixture - Retrofit - ID","Non-eligible fixture - Retrofit - ID"]
["Admin","Relamp - LED HID Replacement >= 150W","separate","Non-eligible fixture - Retrofit - ID","Non-eligible fixture - Retrofit - ID","Non-eligible fixture - Retrofit - ID","Non-eligible fixture - Retrofit - ID","Non-eligible fixture - Retrofit - ID","Non-eligible fixture - Retrofit - ID","Non-eligible fixture - Retrofit - ID","Non-eligible fixture - Retrofit - ID","Non-eligible fixture - Retrofit - ID","Non-eligible fixture - Retrofit - ID","Non-eligible fixture - Retrofit - ID"]
["Admin","Relamp - LED HID Replacement >= 40 and < 80W","separate","Non-eligible fixture - Retrofit - ID","Non-eligible fixture - Retrofit - ID","Non-eligible fixture - Retrofit - ID","Non-eligible fixture - Retrofit - ID","Non-eligible fixture - Retrofit - ID","Non-eligible fixture - Retrofit - ID","Non-eligible fixture - Retrofit - ID","Non-eligible fixture - Retrofit - ID","Non-eligible fixture - Retrofit - ID","Non-eligible fixture - Retrofit - ID","Non-eligible fixture - Retrofit - ID"]
["Admin","Relamp - LED HID Replacement >= 80 and < 150W","separate","Non-eligible fixture - Retrofit - ID","Non-eligible fixture - Retrofit - ID","Non-eligible fixture - Retrofit - ID","Non-eligible fixture - Retrofit - ID","Non-eligible fixture - Retrofit - ID","Non-eligible fixture - Retrofit - ID","Non-eligible fixture - Retrofit - ID","Non-eligible fixture - Retrofit - ID","Non-eligible fixture - Retrofit - ID","Non-eligible fixture - Retrofit - ID","Non-eligible fixture - Retrofit - ID"]
["CUSTOM","CUSTOM",null,"Interior Lighting - Custom - Retrofit - v2 - ID","Interior Lighting - Custom - Retrofit - v2 - ID","Interior Lighting - Custom - Retrofit - v2 - ID","Interior Lighting - Custom - Retrofit - v2 - ID","Interior Lighting - Custom - Retrofit - v2 - ID","Interior Lighting - Custom - Retrofit - v2 - ID","Interior Lighting - Custom - Retrofit - v2 - ID","Interior Lighting - Custom - Retrofit - v2 - ID"]

{"sheet":"EquipmentTable_NCMR_ID","index":17,"n_rows":53,"n_cols":12,"rows_kept":53,"cut":false,"hidden":true,"merged":[]}
["categoryProposed","equipmentProposed","measureNCMR_Interior_None","measureNCMR_Interior_Basic","measureNCMR_Interior_Mid","measureNCMR_Interior_Advanced","measureNCMR_Exterior_None","measureNCMR_Exterior_Mid","measureNCMR_Exterior_Advanced","measureNCMR_Street_None","measureNCMR_Street_Mid","measureNCMR_Street_Advanced"]
["Fluorescents - Compact","CFL Pin-Based","Interior Lighting - Ineligible - NCMR - v2 - ID","Interior Lighting - Ineligible - NCMR - v2 - ID","Interior Lighting - Ineligible - NCMR - v2 - ID","Interior Lighting - Ineligible - NCMR - v2 - ID","Non-eligible fixture - New Construction/ Major Renovation - ID","Non-eligible fixture - New Construction/ Major Renovation - ID","Non-eligible fixture - New Construction/ Major Renovation - ID","Non-eligible fixture - New Construction/ Major Renovation - ID","Non-eligible fixture - New Construction/ Major Renovation - ID","Non-eligible fixture - New Construction/ Major Renovation - ID"]
["Fluorescents - Compact","CFL Screw-In","Interior Lighting - Ineligible - NCMR - v2 - ID","Interior Lighting - Ineligible - NCMR - v2 - ID","Interior Lighting - Ineligible - NCMR - v2 - ID","Interior Lighting - Ineligible - NCMR - v2 - ID","Non-eligible fixture - New Construction/ Major Renovation - ID","Non-eligible fixture - New Construction/ Major Renovation - ID","Non-eligible fixture - New Construction/ Major Renovation - ID","Non-eligible fixture - New Construction/ Major Renovation - ID","Non-eligible fixture - New Construction/ Major Renovation - ID","Non-eligible fixture - New Construction/ Major Renovation - ID"]
["Fluorescents - Compact","CFL Wall Pack","Interior Lighting - Ineligible - NCMR - v2 - ID","Interior Lighting - Ineligible - NCMR - v2 - ID","Interior Lighting - Ineligible - NCMR - v2 - ID","Interior Lighting - Ineligible - NCMR - v2 - ID","Non-eligible fixture - New Construction/ Major Renovation - ID","Non-eligible fixture - New Construction/ Major Renovation - ID","Non-eligible fixture - New Construction/ Major Renovation - ID","Non-eligible fixture - New Construction/ Major Renovation - ID","Non-eligible fixture - New Construction/ Major Renovation - ID","Non-eligible fixture - New Construction/ Major Renovation - ID"]
["Fluorescents - Induction","Induction Fixture","Interior Lighting - Ineligible - NCMR - v2 - ID","Interior Lighting - Ineligible - NCMR - v2 - ID","Interior Lighting - Ineligible - NCMR - v2 - ID","Interior Lighting - Ineligible - NCMR - v2 - ID","Non-eligible fixture - New Construction/ Major Renovation - ID","Non-eligible fixture - New Construction/ Major Renovation - ID","Non-eligible fixture - New Construction/ Major Renovation - ID","Non-eligible fixture - New Construction/ Major Renovation - ID","Non-eligible fixture - New Construction/ Major Renovation - ID","Non-eligible fixture - New Construction/ Major Renovation - ID"]
["Fluorescents - T12","FLT12 - 2 Ft","Interior Lighting - Ineligible - NCMR - v2 - ID","Interior Lighting - Ineligible - NCMR - v2 - ID","Interior Lighting - Ineligible - NCMR - v2 - ID","Interior Lighting - Ineligible - NCMR - v2 - ID","Non-eligible fixture - New Construction/ Major Renovation - ID","Non-eligible fixture - New Construction/ Major Renovation - ID","Non-eligible fixture - New Construction/ Major Renovation - ID","Non-eligible fixture - New Construction/ Major Renovation - ID","Non-eligible fixture - New Construction/ Major Renovation - ID","Non-eligible fixture - New Construction/ Major Renovation - ID"]
["Fluorescents - T12","FLT12 - 3 Ft","Interior Lighting - Ineligible - NCMR - v2 - ID","Interior Lighting - Ineligible - NCMR - v2 - ID","Interior Lighting - Ineligible - NCMR - v2 - ID","Interior Lighting - Ineligible - NCMR - v2 - ID","Non-eligible fixture - New Construction/ Major Renovation - ID","Non-eligible fixture - New Construction/ Major Renovation - ID","Non-eligible fixture - New Construction/ Major Renovation - ID","Non-eligible fixture - New Construction/ Major Renovation - ID","Non-eligible fixture - New Construction/ Major Renovation - ID","Non-eligible fixture - New Construction/ Major Renovation - ID"]
["Fluorescents - T12","FLT12 - 4 Ft","Interior Lighting - Ineligible - NCMR - v2 - ID","Interior Lighting - Ineligible - NCMR - v2 - ID","Interior Lighting - Ineligible - NCMR - v2 - ID","Interior Lighting - Ineligible - NCMR - v2 - ID","Non-eligible fixture - New Construction/ Major Renovation - ID","Non-eligible fixture - New Construction/ Major Renovation - ID","Non-eligible fixture - New Construction/ Major Renovation - ID","Non-eligible fixture - New Construction/ Major Renovation - ID","Non-eligible fixture - New Construction/ Major Renovation - ID","Non-eligible fixture - New Construction/ Major Renovation - ID"]
["Fluorescents - T12","FLT12 - 6 Ft","Interior Lighting - Ineligible - NCMR - v2 - ID","Interior Lighting - Ineligible - NCMR - v2 - ID","Interior Lighting - Ineligible - NCMR - v2 - ID","Interior Lighting - Ineligible - NCMR - v2 - ID","Non-eligible fixture - New Construction/ Major Renovation - ID","Non-eligible fixture - New Construction/ Major Renovation - ID","Non-eligible fixture - New Construction/ Major Renovation - ID","Non-eligible fixture - New Construction/ Major Renovation - ID","Non-eligible fixture - New Construction/ Major Renovation - ID","Non-eligible fixture - New Construction/ Major Renovation - ID"]
["Fluorescents - T12","FLT12 - 8 Ft","Interior Lighting - Ineligible - NCMR - v2 - ID","Interior Lighting - Ineligible - NCMR - v2 - ID","Interior Lighting - Ineligible - NCMR - v2 - ID","Interior Lighting - Ineligible - NCMR - v2 - ID","Non-eligible fixture - New Construction/ Major Renovation - ID","Non-eligible fixture - New Construction/ Major Renovation - ID","Non-eligible fixture - New Construction/ Major Renovation - ID","Non-eligible fixture - New Construction/ Major Renovation - ID","Non-eligible fixture - New Construction/ Major Renovation - ID","Non-eligible fixture - New Construction/ Major Renovation - ID"]
["Fluorescents - T12","FLT12HO - 8 Ft","Interior Lighting - Ineligible - NCMR - v2 - ID","Interior Lighting - Ineligible - NCMR - v2 - ID","Interior Lighting - Ineligible - NCMR - v2 - ID","Interior Lighting - Ineligible - NCMR - v2 - ID","Non-eligible fixture - New Construction/ Major Renovation - ID","Non-eligible fixture - New Construction/ Major Renovation - ID","Non-eligible fixture - New Construction/ Major Renovation - ID","Non-eligible fixture - New Construction/ Major Renovation - ID","Non-eligible fixture - New Construction/ Major Renovation - ID","Non-eligible fixture - New Construction/ Major Renovation - ID"]
["Fluorescents - T12","FUT12 - 2 Ft","Interior Lighting - Ineligible - NCMR - v2 - ID","Interior Lighting - Ineligible - NCMR - v2 - ID","Interior Lighting - Ineligible - NCMR - v2 - ID","Interior Lighting - Ineligible - NCMR - v2 - ID","Non-eligible fixture - New Construction/ Major Renovation - ID","Non-eligible fixture - New Construction/ Major Renovation - ID","Non-eligible fixture - New Construction/ Major Renovation - ID","Non-eligible fixture - New Construction/ Major Renovation - ID","Non-eligible fixture - New Construction/ Major Renovation - ID","Non-eligible fixture - New Construction/ Major Renovation - ID"]
["Fluorescents - T5","FLT5 - 2 Ft","Interior Lighting - Ineligible - NCMR - v2 - ID","Interior Lighting - Ineligible - NCMR - v2 - ID","Interior Lighting - Ineligible - NCMR - v2 - ID","Interior Lighting - Ineligible - NCMR - v2 - ID","Non-eligible fixture - New Construction/ Major Renovation - ID","Non-eligible fixture - New Construction/ Major Renovation - ID","Non-eligible fixture - New Construction/ Major Renovation - ID","Non-eligible fixture - New Construction/ Major Renovation - ID","Non-eligible fixture - New Construction/ Major Renovation - ID","Non-eligible fixture - New Construction/ Major Renovation - ID"]
["Fluorescents - T5","FLT5 - 4 Ft","Interior Lighting - Ineligible - NCMR - v2 - ID","Interior Lighting - Ineligible - NCMR - v2 - ID","Interior Lighting - Ineligible - NCMR - v2 - ID","Interior Lighting - Ineligible - NCMR - v2 - ID","Non-eligible fixture - New Construction/ Major Renovation - ID","Non-eligible fixture - New Construction/ Major Renovation - ID","Non-eligible fixture - New Construction/ Major Renovation - ID","Non-eligible fixture - New Construction/ Major Renovation - ID","Non-eligible fixture - New Construction/ Major Renovation - ID","Non-eligible fixture - New Construction/ Major Renovation - ID"]
["Fluorescents - T5","FLT5HO - 4 Ft","Interior Lighting - Ineligible - NCMR - v2 - ID","Interior Lighting - Ineligible - NCMR - v2 - ID","Interior Lighting - Ineligible - NCMR - v2 - ID","Interior Lighting - Ineligible - NCMR - v2 - ID","Non-eligible fixture - New Construction/ Major Renovation - ID","Non-eligible fixture - New Construction/ Major Renovation - ID","Non-eligible fixture - New Construction/ Major Renovation - ID","Non-eligible fixture - New Construction/ Major Renovation - ID","Non-eligible fixture - New Construction/ Major Renovation - ID","Non-eligible fixture - New Construction/ Major Renovation - ID"]
["Fluorescents - T8","FLT8 - 2 Ft","Interior Lighting - Ineligible - NCMR - v2 - ID","Interior Lighting - Ineligible - NCMR - v2 - ID","Interior Lighting - Ineligible - NCMR - v2 - ID","Interior Lighting - Ineligible - NCMR - v2 - ID","Non-eligible fixture - New Construction/ Major Renovation - ID","Non-eligible fixture - New Construction/ Major Renovation - ID","Non-eligible fixture - New Construction/ Major Renovation - ID","Non-eligible fixture - New Construction/ Major Renovation - ID","Non-eligible fixture - New Construction/ Major Renovation - ID","Non-eligible fixture - New Construction/ Major Renovation - ID"]
["Fluorescents - T8","FLT8 - 3 Ft","Interior Lighting - Ineligible - NCMR - v2 - ID","Interior Lighting - Ineligible - NCMR - v2 - ID","Interior Lighting - Ineligible - NCMR - v2 - ID","Interior Lighting - Ineligible - NCMR - v2 - ID","Non-eligible fixture - New Construction/ Major Renovation - ID","Non-eligible fixture - New Construction/ Major Renovation - ID","Non-eligible fixture - New Construction/ Major Renovation - ID","Non-eligible fixture - New Construction/ Major Renovation - ID","Non-eligible fixture - New Construction/ Major Renovation - ID","Non-eligible fixture - New Construction/ Major Renovation - ID"]
["Fluorescents - T8","FLT8 - 4 Ft","Interior Lighting - Ineligible - NCMR - v2 - ID","Interior Lighting - Ineligible - NCMR - v2 - ID","Interior Lighting - Ineligible - NCMR - v2 - ID","Interior Lighting - Ineligible - NCMR - v2 - ID","Non-eligible fixture - New Construction/ Major Renovation - ID","Non-eligible fixture - New Construction/ Major Renovation - ID","Non-eligible fixture - New Construction/ Major Renovation - ID","Non-eligible fixture - New Construction/ Major Renovation - ID","Non-eligible fixture - New Construction/ Major Renovation - ID","Non-eligible fixture - New Construction/ Major Renovation - ID"]
["Fluorescents - T8","FLT8 - 8 Ft","Interior Lighting - Ineligible - NCMR - v2 - ID","Interior Lighting - Ineligible - NCMR - v2 - ID","Interior Lighting - Ineligible - NCMR - v2 - ID","Interior Lighting - Ineligible - NCMR - v2 - ID","Non-eligible fixture - New Construction/ Major Renovation - ID","Non-eligible fixture - New Construction/ Major Renovation - ID","Non-eligible fixture - New Construction/ Major Renovation - ID","Non-eligible fixture - New Construction/ Major Renovation - ID","Non-eligible fixture - New Construction/ Major Renovation - ID","Non-eligible fixture - New Construction/ Major Renovation - ID"]
["Fluorescents - T8","FUT8 - 2 Ft","Interior Lighting - Ineligible - NCMR - v2 - ID","Interior Lighting - Ineligible - NCMR - v2 - ID","Interior Lighting - Ineligible - NCMR - v2 - ID","Interior Lighting - Ineligible - NCMR - v2 - ID","Non-eligible fixture - New Construction/ Major Renovation - ID","Non-eligible fixture - New Construction/ Major Renovation - ID","Non-eligible fixture - New Construction/ Major Renovation - ID","Non-eligible fixture - New Construction/ Major Renovation - ID","Non-eligible fixture - New Construction/ Major Renovation - ID","Non-eligible fixture - New Construction/ Major Renovation - ID"]
["HID","High Pressure Sodium","Interior Lighting - Ineligible - NCMR - v2 - ID","Interior Lighting - Ineligible - NCMR - v2 - ID","Interior Lighting - Ineligible - NCMR - v2 - ID","Interior Lighting - Ineligible - NCMR - v2 - ID","Non-eligible fixture - New Construction/ Major Renovation - ID","Non-eligible fixture - New Construction/ Major Renovation - ID","Non-eligible fixture - New Construction/ Major Renovation - ID","Non-eligible fixture - New Construction/ Major Renovation - ID","Non-eligible fixture - New Construction/ Major Renovation - ID","Non-eligible fixture - New Construction/ Major Renovation - ID"]
["HID","Mercury Vapor","Interior Lighting - Ineligible - NCMR - v2 - ID","Interior Lighting - Ineligible - NCMR - v2 - ID","Interior Lighting - Ineligible - NCMR - v2 - ID","Interior Lighting - Ineligible - NCMR - v2 - ID","Non-eligible fixture - New Construction/ Major Renovation - ID","Non-eligible fixture - New Construction/ Major Renovation - ID","Non-eligible fixture - New Construction/ Major Renovation - ID","Non-eligible fixture - New Construction/ Major Renovation - ID","Non-eligible fixture - New Construction/ Major Renovation - ID","Non-eligible fixture - New Construction/ Major Renovation - ID"]
["HID","Metal Halide","Interior Lighting - Ineligible - NCMR - v2 - ID","Interior Lighting - Ineligible - NCMR - v2 - ID","Interior Lighting - Ineligible - NCMR - v2 - ID","Interior Lighting - Ineligible - NCMR - v2 - ID","Non-eligible fixture - New Construction/ Major Renovation - ID","Non-eligible fixture - New Construction/ Major Renovation - ID","Non-eligible fixture - New Construction/ Major Renovation - ID","Non-eligible fixture - New Construction/ Major Renovation - ID","Non-eligible fixture - New Construction/ Major Renovation - ID","Non-eligible fixture - New Construction/ Major Renovation - ID"]
["HID","Metal Halide - Ceramic","Interior Lighting - Ineligible - NCMR - v2 - ID","Interior Lighting - Ineligible - NCMR - v2 - ID","Interior Lighting - Ineligible - NCMR - v2 - ID","Interior Lighting - Ineligible - NCMR - v2 - ID","Non-eligible fixture - New Construction/ Major Renovation - ID","Non-eligible fixture - New Construction/ Major Renovation - ID","Non-eligible fixture - New Construction/ Major Renovation - ID","Non-eligible fixture - New Construction/ Major Renovation - ID","Non-eligible fixture - New Construction/ Major Renovation - ID","Non-eligible fixture - New Construction/ Major Renovation - ID"]
["HID","Metal Halide - Pulse Start","Interior Lighting - Ineligible - NCMR - v2 - ID","Interior Lighting - Ineligible - NCMR - v2 - ID","Interior Lighting - Ineligible - NCMR - v2 - ID","Interior Lighting - Ineligible - NCMR - v2 - ID","Non-eligible fixture - New Construction/ Major Renovation - ID","Non-eligible fixture - New Construction/ Major Renovation - ID","Non-eligible fixture - New Construction/ Major Renovation - ID","Non-eligible fixture - New Construction/ Major Renovation - ID","Non-eligible fixture - New Construction/ Major Renovation - ID","Non-eligible fixture - New Construction/ Major Renovation - ID"]
["Incandescents","Halogen","Interior Lighting - Ineligible - NCMR - v2 - ID","Interior Lighting - Ineligible - NCMR - v2 - ID","Interior Lighting - Ineligible - NCMR - v2 - ID","Interior Lighting - Ineligible - NCMR - v2 - ID","Non-eligible fixture - New Construction/ Major Renovation - ID","Non-eligible fixture - New Construction/ Major Renovation - ID","Non-eligible fixture - New Construction/ Major Renovation - ID","Non-eligible fixture - New Construction/ Major Renovation - ID","Non-eligible fixture - New Construction/ Major Renovation - ID","Non-eligible fixture - New Construction/ Major Renovation - ID"]
["Incandescents","Incandescent","Interior Lighting - Ineligible - NCMR - v2 - ID","Interior Lighting - Ineligible - NCMR - v2 - ID","Interior Lighting - Ineligible - NCMR - v2 - ID","Interior Lighting - Ineligible - NCMR - v2 - ID","Non-eligible fixture - New Construction/ Major Renovation - ID","Non-eligible fixture - New Construction/ Major Renovation - ID","Non-eligible fixture - New Construction/ Major Renovation - ID","Non-eligible fixture - New Construction/ Major Renovation - ID","Non-eligible fixture - New Construction/ Major Renovation - ID","Non-eligible fixture - New Construction/ Major Renovation - ID"]
["LED","LED MR16","Interior Lighting - Ineligible - NCMR - v2 - ID","Interior Lighting - Ineligible - NCMR - v2 - ID","Interior Lighting - Ineligible - NCMR - v2 - ID","Interior Lighting - Ineligible - NCMR - v2 - ID","Non-eligible fixture - New Construction/ Major Renovation - ID","Non-eligible fixture - New Construction/ Major Renovation - ID","Non-eligible fixture - New Construction/ Major Renovation - ID","Non-eligible fixture - New Construction/ Major Renovation - ID","Non-eligible fixture - New Construction/ Major Renovation - ID","Non-eligible fixture - New Construction/ Major Renovation - ID"]
["LED","LED Retrofit Kit - Downlight","Interior Lighting - Ineligible - NCMR - v2 - ID","Interior Lighting - Ineligible - NCMR - v2 - ID","Interior Lighting - Ineligible - NCMR - v2 - ID","Interior Lighting - Ineligible - NCMR - v2 - ID","Non-eligible fixture - New Construction/ Major Renovation - ID","Non-eligible fixture - New Construction/ Major Renovation - ID","Non-eligible fixture - New Construction/ Major Renovation - ID","Non-eligible fixture - New Construction/ Major Renovation - ID","Non-eligible fixture - New Construction/ Major Renovation - ID","Non-eligible fixture - New Construction/ Major Renovation - ID"]
["LED","LED Screw-In Lamp","Interior Lighting - Ineligible - NCMR - v2 - ID","Interior Lighting - Ineligible - NCMR - v2 - ID","Interior Lighting - Ineligible - NCMR - v2 - ID","Interior Lighting - Ineligible - NCMR - v2 - ID","Non-eligible fixture - New Construction/ Major Renovation - ID","Non-eligible fixture - New Construction/ Major Renovation - ID","Non-eligible fixture - New Construction/ Major Renovation - ID","Non-eligible fixture - New Construction/ Major Renovation - ID","Non-eligible fixture - New Construction/ Major Renovation - ID","Non-eligible fixture - New Construction/ Major Renovation - ID"]
["LED","LED Fixture - Bollard","Interior Lighting - w/out Controls - NCMR - ID","Interior Lighting - w/out Controls - NCMR - ID","Interior Lighting - w/ Networked Lighting Controls - NCMR - ID","Interior Lighting - w/ Advanced Networked Lighting Controls - NCMR - ID","Non-eligible fixture - New Construction/ Major Renovation - ID","Non-eligible fixture - New Construction/ Major Renovation - ID","Non-eligible fixture - New Construction/ Major Renovation - ID","Non-eligible fixture - New Construction/ Major Renovation - ID","Non-eligible fixture - New Construction/ Major Renovation - ID","Non-eligible fixture - New Construction/ Major Renovation - ID"]
["LED","LED Fixture - Canopy/Soffit","Interior Lighting - w/out Controls - NCMR - ID","Interior Lighting - w/out Controls - NCMR - ID","Interior Lighting - w/ Networked Lighting Controls - NCMR - ID","Interior Lighting - w/ Advanced Networked Lighting Controls - NCMR - ID","contact us for the NCMR Exterior tool","contact us for the NCMR Exterior tool","contact us for the NCMR Exterior tool","Non-eligible fixture - New Construction/ Major Renovation - ID","Non-eligible fixture - New Construction/ Major Renovation - ID","Non-eligible fixture - New Construction/ Major Renovation - ID"]
["LED","LED Fixture - Direct/Indirect","Interior Lighting - w/out Controls - NCMR - ID","Interior Lighting - w/out Controls - NCMR - ID","Interior Lighting - w/ Networked Lighting Controls - NCMR - ID","Interior Lighting - w/ Advanced Networked Lighting Controls - NCMR - ID","Non-eligible fixture - New Construction/ Major Renovation - ID","Non-eligible fixture - New Construction/ Major Renovation - ID","Non-eligible fixture - New Construction/ Major Renovation - ID","Non-eligible fixture - New Construction/ Major Renovation - ID","Non-eligible fixture - New Construction/ Major Renovation - ID","Non-eligible fixture - New Construction/ Major Renovation - ID"]
["LED","LED Fixture - Downlight","Interior Lighting - w/out Controls - NCMR - ID","Interior Lighting - w/out Controls - NCMR - ID","Interior Lighting - w/ Networked Lighting Controls - NCMR - ID","Interior Lighting - w/ Advanced Networked Lighting Controls - NCMR - ID","Non-eligible fixture - New Construction/ Major Renovation - ID","Non-eligible fixture - New Construction/ Major Renovation - ID","Non-eligible fixture - New Construction/ Major Renovation - ID","Non-eligible fixture - New Construction/ Major Renovation - ID","Non-eligible fixture - New Construction/ Major Renovation - ID","Non-eligible fixture - New Construction/ Major Renovation - ID"]
["LED","LED Fixture - Flood < 100W","Interior Lighting - w/out Controls - NCMR - ID","Interior Lighting - w/out Controls - NCMR - ID","Interior Lighting - w/ Networked Lighting Controls - NCMR - ID","Interior Lighting - w/ Advanced Networked Lighting Controls - NCMR - ID","contact us for the NCMR Exterior tool","contact us for the NCMR Exterior tool","contact us for the NCMR Exterior tool","Non-eligible fixture - New Construction/ Major Renovation - ID","Non-eligible fixture - New Construction/ Major Renovation - ID","Non-eligible fixture - New Construction/ Major Renovation - ID"]
["LED","LED Fixture - Flood >= 100W","Interior Lighting - w/out Controls - NCMR - ID","Interior Lighting - w/out Controls - NCMR - ID","Interior Lighting - w/ Networked Lighting Controls - NCMR - ID","Interior Lighting - w/ Advanced Networked Lighting Controls - NCMR - ID","contact us for the NCMR Exterior tool","contact us for the NCMR Exterior tool","contact us for the NCMR Exterior tool","Non-eligible fixture - New Construction/ Major Renovation - ID","Non-eligible fixture - New Construction/ Major Renovation - ID","Non-eligible fixture - New Construction/ Major Renovation - ID"]
["LED","LED Fixture - High/Low Bay","Interior Lighting - w/out Controls - NCMR - ID","Interior Lighting - w/out Controls - NCMR - ID","Interior Lighting - w/ Networked Lighting Controls - NCMR - ID","Interior Lighting - w/ Advanced Networked Lighting Controls - NCMR - ID","Non-eligible fixture - New Construction/ Major Renovation - ID","Non-eligible fixture - New Construction/ Major Renovation - ID","Non-eligible fixture - New Construction/ Major Renovation - ID","Non-eligible fixture - New Construction/ Major Renovation - ID","Non-eligible fixture - New Construction/ Major Renovation - ID","Non-eligible fixture - New Construction/ Major Renovation - ID"]
["LED","LED Fixture - Integral Track Head","Interior Lighting - w/out Controls - NCMR - ID","Interior Lighting - w/out Controls - NCMR - ID","Interior Lighting - w/ Networked Lighting Controls - NCMR - ID","Interior Lighting - w/ Advanced Networked Lighting Controls - NCMR - ID","Non-eligible fixture - New Construction/ Major Renovation - ID","Non-eligible fixture - New Construction/ Major Renovation - ID","Non-eligible fixture - New Construction/ Major Renovation - ID","Non-eligible fixture - New Construction/ Major Renovation - ID","Non-eligible fixture - New Construction/ Major Renovation - ID","Non-eligible fixture - New Construction/ Major Renovation - ID"]
["LED","LED Fixture - Pole Mount <= 200W","Interior Lighting - w/out Controls - NCMR - ID","Interior Lighting - w/out Controls - NCMR - ID","Interior Lighting - w/ Networked Lighting Controls - NCMR - ID","Interior Lighting - w/ Advanced Networked Lighting Controls - NCMR - ID","contact us for the NCMR Exterior tool","contact us for the NCMR Exterior tool","contact us for the NCMR Exterior tool","contact us for the NCMR Exterior tool","contact us for the NCMR Exterior tool","contact us for the NCMR Exterior tool"]
["LED","LED Fixture - Pole Mount > 200W","Interior Lighting - w/out Controls - NCMR - ID","Interior Lighting - w/out Controls - NCMR - ID","Interior Lighting - w/ Networked Lighting Controls - NCMR - ID","Interior Lighting - w/ Advanced Networked Lighting Controls - NCMR - ID","contact us for the NCMR Exterior tool","contact us for the NCMR Exterior tool","contact us for the NCMR Exterior tool","contact us for the NCMR Exterior tool","contact us for the NCMR Exterior tool","contact us for the NCMR Exterior tool"]
["LED","LED Fixture - Pole Mount Decorative < 75W","Interior Lighting - w/out Controls - NCMR - ID","Interior Lighting - w/out Controls - NCMR - ID","Interior Lighting - w/ Networked Lighting Controls - NCMR - ID","Interior Lighting - w/ Advanced Networked Lighting Controls - NCMR - ID","contact us for the NCMR Exterior tool","contact us for the NCMR Exterior tool","contact us for the NCMR Exterior tool","contact us for the NCMR Exterior tool","contact us for the NCMR Exterior tool","contact us for the NCMR Exterior tool"]
["LED","LED Fixture - Sconce/Wall Wash","Interior Lighting - w/out Controls - NCMR - ID","Interior Lighting - w/out Controls - NCMR - ID","Interior Lighting - w/ Networked Lighting Controls - NCMR - ID","Interior Lighting - w/ Advanced Networked Lighting Controls - NCMR - ID","Non-eligible fixture - New Construction/ Major Renovation - ID","Non-eligible fixture - New Construction/ Major Renovation - ID","Non-eligible fixture - New Construction/ Major Renovation - ID","Non-eligible fixture - New Construction/ Major Renovation - ID","Non-eligible fixture - New Construction/ Major Renovation - ID","Non-eligible fixture - New Construction/ Major Renovation - ID"]
["LED","LED Fixture - Strip/Wrap","Interior Lighting - w/out Controls - NCMR - ID","Interior Lighting - w/out Controls - NCMR - ID","Interior Lighting - w/ Networked Lighting Controls - NCMR - ID","Interior Lighting - w/ Advanced Networked Lighting Controls - NCMR - ID","Non-eligible fixture - New Construction/ Major Renovation - ID","Non-eligible fixture - New Construction/ Major Renovation - ID","Non-eligible fixture - New Construction/ Major Renovation - ID","Non-eligible fixture - New Construction/ Major Renovation - ID","Non-eligible fixture - New Construction/ Major Renovation - ID","Non-eligible fixture - New Construction/ Major Renovation - ID"]
["LED","LED Fixture - Surface Mount","Interior Lighting - w/out Controls - NCMR - ID","Interior Lighting - w/out Controls - NCMR - ID","Interior Lighting - w/ Networked Lighting Controls - NCMR - ID","Interior Lighting - w/ Advanced Networked Lighting Controls - NCMR - ID","Non-eligible fixture - New Construction/ Major Renovation - ID","Non-eligible fixture - New Construction/ Major Renovation - ID","Non-eligible fixture - New Construction/ Major Renovation - ID","Non-eligible fixture - New Construction/ Major Renovation - ID","Non-eligible fixture - New Construction/ Major Renovation - ID","Non-eligible fixture - New Construction/ Major Renovation - ID"]
["LED","LED Fixture - Troffer","Interior Lighting - w/out Controls - NCMR - ID","Interior Lighting - w/out Controls - NCMR - ID","Interior Lighting - w/ Networked Lighting Controls - NCMR - ID","Interior Lighting - w/ Advanced Networked Lighting Controls - NCMR - ID","Non-eligible fixture - New Construction/ Major Renovation - ID","Non-eligible fixture - New Construction/ Major Renovation - ID","Non-eligible fixture - New Construction/ Major Renovation - ID","Non-eligible fixture - New Construction/ Major Renovation - ID","Non-eligible fixture - New Construction/ Major Renovation - ID","Non-eligible fixture - New Construction/ Major Renovation - ID"]
["LED","LED Fixture - Wall Pack < 50W","Interior Lighting - w/out Controls - NCMR - ID","Interior Lighting - w/out Controls - NCMR - ID","Interior Lighting - w/ Networked Lighting Controls - NCMR - ID","Interior Lighting - w/ Advanced Networked Lighting Controls - NCMR - ID","contact us for the NCMR Exterior tool","contact us for the NCMR Exterior tool","contact us for the NCMR Exterior tool","Non-eligible fixture - New Construction/ Major Renovation - ID","Non-eligible fixture - New Construction/ Major Renovation - ID","Non-eligible fixture - New Construction/ Major Renovation - ID"]
["LED","LED Fixture - Wall Pack >= 50W","Interior Lighting - w/out Controls - NCMR - ID","Interior Lighting - w/out Controls - NCMR - ID","Interior Lighting - w/ Networked Lighting Controls - NCMR - ID","Interior Lighting - w/ Advanced Networked Lighting Controls - NCMR - ID","contact us for the NCMR Exterior tool","contact us for the NCMR Exterior tool","contact us for the NCMR Exterior tool","Non-eligible fixture - New Construction/ Major Renovation - ID","Non-eligible fixture - New Construction/ Major Renovation - ID","Non-eligible fixture - New Construction/ Major Renovation - ID"]
["LED","LED Fixture - Wall Pack w/ occ sensor- < 50W","Interior Lighting - w/out Controls - NCMR - ID","Interior Lighting - w/out Controls - NCMR - ID","Interior Lighting - w/ Networked Lighting Controls - NCMR - ID","Interior Lighting - w/ Advanced Networked Lighting Controls - NCMR - ID","contact us for the NCMR Exterior tool","contact us for the NCMR Exterior tool","contact us for the NCMR Exterior tool","Non-eligible fixture - New Construction/ Major Renovation - ID","Non-eligible fixture - New Construction/ Major Renovation - ID","Non-eligible fixture - New Construction/ Major Renovation - ID"]
["LED","LED Fixture - Wall Pack w/ occ sensor- >= 50W","Interior Lighting - w/out Controls - NCMR - ID","Interior Lighting - w/out Controls - NCMR - ID","Interior Lighting - w/ Networked Lighting Controls - NCMR - ID","Interior Lighting - w/ Advanced Networked Lighting Controls - NCMR - ID","contact us for the NCMR Exterior tool","contact us for the NCMR Exterior tool","contact us for the NCMR Exterior tool","Non-eligible fixture - New Construction/ Major Renovation - ID","Non-eligible fixture - New Construction/ Major Renovation - ID","Non-eligible fixture - New Construction/ Major Renovation - ID"]
["LED","T5 TLED - 2 Ft","Interior Lighting - Ineligible - NCMR - v2 - ID","Interior Lighting - Ineligible - NCMR - v2 - ID","Interior Lighting - Ineligible - NCMR - v2 - ID","Interior Lighting - Ineligible - NCMR - v2 - ID","Non-eligible fixture - New Construction/ Major Renovation - ID","Non-eligible fixture - New Construction/ Major Renovation - ID","Non-eligible fixture - New Construction/ Major Renovation - ID","Non-eligible fixture - New Construction/ Major Renovation - ID","Non-eligible fixture - New Construction/ Major Renovation - ID","Non-eligible fixture - New Construction/ Major Renovation - ID"]
["LED","T5 TLED - 4 Ft","Interior Lighting - Ineligible - NCMR - v2 - ID","Interior Lighting - Ineligible - NCMR - v2 - ID","Interior Lighting - Ineligible - NCMR - v2 - ID","Interior Lighting - Ineligible - NCMR - v2 - ID","Non-eligible fixture - New Construction/ Major Renovation - ID","Non-eligible fixture - New Construction/ Major Renovation - ID","Non-eligible fixture - New Construction/ Major Renovation - ID","Non-eligible fixture - New Construction/ Major Renovation - ID","Non-eligible fixture - New Construction/ Major Renovation - ID","Non-eligible fixture - New Construction/ Major Renovation - ID"]
["LED","T8 TLED - 2 Ft","Interior Lighting - Ineligible - NCMR - v2 - ID","Interior Lighting - Ineligible - NCMR - v2 - ID","Interior Lighting - Ineligible - NCMR - v2 - ID","Interior Lighting - Ineligible - NCMR - v2 - ID","Non-eligible fixture - New Construction/ Major Renovation - ID","Non-eligible fixture - New Construction/ Major Renovation - ID","Non-eligible fixture - New Construction/ Major Renovation - ID","Non-eligible fixture - New Construction/ Major Renovation - ID","Non-eligible fixture - New Construction/ Major Renovation - ID","Non-eligible fixture - New Construction/ Major Renovation - ID"]
["LED","T8 TLED - 4 Ft","Interior Lighting - Ineligible - NCMR - v2 - ID","Interior Lighting - Ineligible - NCMR - v2 - ID","Interior Lighting - Ineligible - NCMR - v2 - ID","Interior Lighting - Ineligible - NCMR - v2 - ID","Non-eligible fixture - New Construction/ Major Renovation - ID","Non-eligible fixture - New Construction/ Major Renovation - ID","Non-eligible fixture - New Construction/ Major Renovation - ID","Non-eligible fixture - New Construction/ Major Renovation - ID","Non-eligible fixture - New Construction/ Major Renovation - ID","Non-eligible fixture - New Construction/ Major Renovation - ID"]

{"sheet":"MeasureTable_ID","index":18,"n_rows":39,"n_cols":55,"rows_kept":39,"cut":false,"hidden":true,"merged":[]}
[]
["Eligible Measure","MeasureEligibleConcatenate","State","Measure Reference Number","Measure Name","Measure Category","Measure Type","Measure Sub Type","Measure Description","Version Number","Active Indicator","Effective Start Date","Effective End Date","Baseline description","Baseline Value","Baseline Value Unit","Efficiency requirement description","Efficient Case Value","Efficient Case Unit","Eligibility Case Description","Gross incremental annual electric savings unit","GrossIncrementalAnnualElectricSavings","GrossAverageMonthlyDemandReduction","GrossIncrementalAnnualGasSavings_MMBtu per yr","Savings attribute notes","IncrementalCostDollarUnit","IncrementalMeasureCost","CustomerIncentiveDollarPerUnit","Partner(Contractor)Incentive($/unit)","Unit","Cost attribute notes","MeasureLife","NonEnergyBenefitsWater_DollarsPerYear","NonEnergyBenefitsOther_DollarsPerYear","Units for NEB Other","General attribute notes","Energy savings calculation method","Demand savings calculation method","Program Type","DSM Resource Class","Applicability","Review Date","Project Cap","ProjectCapPercent","CustomerIncentiveperkW($/kW)","SiteSpecificCalculation","MeasureCap%","MaximumCustomerIncentive","MaximumPartner/ContractorIncentive","Planned Realization Rate","Planned Net to Gross Ratio","Planned Realization or NTG Notes","Evaluated Realization Rate","Evaluated Net to Gross Ratio","Evaluated Realization or NTG Notes"]
[{"$f":"IF(AND(MeasureEffectiveDate>=MeasureTable_ID[[#This Row],[Effective Start Date]],MeasureTable_ID[[#This Row],[Effective Start Date]]<>\"\"),IF(MeasureTable_ID[[#This Row],[Effective End Date]]=\"\",TRUE,IF(MeasureEffectiveDate<=MeasureTable_ID[[#This Row],[Effective End Date]],TRUE,FALSE)))","v":false},{"$f":"MeasureTable_ID[[#This Row],[Measure Name]]&\" | \"&MeasureTable_ID[[#This Row],[Eligible Measure]]","v":"Exterior Advanced Lighting Controls - Advanced Networked Dimming Controls - NCMR - ID | FALSE"},"ID","03132023-033","Exterior Advanced Lighting Controls - Advanced Networked Dimming Controls - NCMR - ID","Lighting","Controls","Exterior Lighting Control","Exterior lighting system in New Construction/Major Renovation with advanced networked dimming controls only.",2,"Active","2025-11-17","3000-12-31","Non-LED exterior fixture. The baseline wattage for EEMs is the lesser of: a) Wattage of the existing equipment, or b) Wattage of deemed baseline equipment on the energy efficiency program section of the Rocky Mountain Power website. ",null,null,"Must control LED tech in an ext light application. Control must be DLC listed, continuously dimming, and use an app or computer program to control fixtures. Must result in at minimum 45% energy savings. ",null,null,"All LED equipment must be listed as qualified on the Rocky Mountain Power website; this includes products on DesignLights Consortium (DLC). Fixtures must be controlled using advanced networked dimming controls.","Site-Specific","Site-Specific","Site-Specific",null,null,"Site-Specific","Site-Specific","0.07",null,"kWh",null,"8",null,null,null,null,"RMP Calculation","RMP Calculation","Prescriptive","2","New Construction/Major Renovation","2025-10-30","false",null,null,"true",null,"0.07",null,"0.98","0.87","2022-2023 Idaho wattsmart Business Evaluation"]
[{"$f":"IF(AND(MeasureEffectiveDate>=MeasureTable_ID[[#This Row],[Effective Start Date]],MeasureTable_ID[[#This Row],[Effective Start Date]]<>\"\"),IF(MeasureTable_ID[[#This Row],[Effective End Date]]=\"\",TRUE,IF(MeasureEffectiveDate<=MeasureTable_ID[[#This Row],[Effective End Date]],TRUE,FALSE)))","v":false},{"$f":"MeasureTable_ID[[#This Row],[Measure Name]]&\" | \"&MeasureTable_ID[[#This Row],[Eligible Measure]]","v":"Exterior Advanced Lighting Controls - Advanced Networked Dimming Controls - Retrofit - ID | FALSE"},"ID","03132023-035","Exterior Advanced Lighting Controls - Advanced Networked Dimming Controls - Retrofit - ID","Lighting","Controls","Exterior Lighting Control","Exterior lighting system upgrades, advanced networked dimming controls only. Controls must be connected, continuously dimming, and result in at least 45% energy savings.",2,"Active","2025-11-17","3000-12-31","Non-LED exterior fixture. The baseline wattage for EEMs is the lesser of: a) Wattage of the existing equipment, or b) Wattage of deemed baseline equipment on the energy efficiency program section of the Rocky Mountain Power website. ",null,null,"Must control LED tech in an ext light application. Control must be DLC listed, continuously dimming, and use an app or computer program to control fixtures. Must result in at minimum 45% energy savings. ",null,null,"All LED equipment must be listed as qualified on the Rocky Mountain Power website; this includes products on the DesignLights Consortium (DLC) Retrofit Kit product lists. Fixtures must be controlled using advanced dimming controls.","Site-Specific","Site-Specific","Site-Specific",null,null,"Site-Specific","Site-Specific","0.6",null,"Watt Controlled",null,"8",null,null,null,null,"RMP Calculation","RMP Calculation","Prescriptive","2","Retrofit","2025-10-30","true","0.7",null,"true",null,"0.75",null,"0.98","0.87","2022-2023 Idaho wattsmart Business Evaluation"]
[{"$f":"IF(AND(MeasureEffectiveDate>=MeasureTable_ID[[#This Row],[Effective Start Date]],MeasureTable_ID[[#This Row],[Effective Start Date]]<>\"\"),IF(MeasureTable_ID[[#This Row],[Effective End Date]]=\"\",TRUE,IF(MeasureEffectiveDate<=MeasureTable_ID[[#This Row],[Effective End Date]],TRUE,FALSE)))","v":false},{"$f":"MeasureTable_ID[[#This Row],[Measure Name]]&\" | \"&MeasureTable_ID[[#This Row],[Eligible Measure]]","v":"Exterior Advanced Lighting Controls - Basic Dimming Controls - NCMR - ID | FALSE"},"ID","03132023-032","Exterior Advanced Lighting Controls - Basic Dimming Controls - NCMR - ID","Lighting","Controls","Exterior Lighting Control","Exterior lighting system in New Construction/Major Renovation with basic dimming controls only.",2,"Active","2025-11-17","3000-12-31","Non-LED exterior fixture. The baseline wattage for EEMs is the lesser of: a) Wattage of the existing equipment, or b) Wattage of deemed baseline equipment on the energy efficiency program section of the Rocky Mountain Power website. ",null,null,"Must control LED tech in an ext light application. Control can be occupancy or schedule-based, and result in minimum of 35% energy savings. Networking not required.",null,null,"All LED equipment must be listed as qualified on the Rocky Mountain Power website; this includes products on DesignLights Consortium (DLC). Fixtures must be controlled using basic dimming controls.","Site-Specific","Site-Specific","Site-Specific",null,null,"Site-Specific","Site-Specific","0.05",null,"kWh",null,"8",null,null,null,null,"RMP Calculation","RMP Calculation","Prescriptive","2","New Construction/Major Renovation","2025-10-30","false",null,null,"true",null,"0.07",null,"0.98","0.87","2022-2023 Idaho wattsmart Business Evaluation"]
[{"$f":"IF(AND(MeasureEffectiveDate>=MeasureTable_ID[[#This Row],[Effective Start Date]],MeasureTable_ID[[#This Row],[Effective Start Date]]<>\"\"),IF(MeasureTable_ID[[#This Row],[Effective End Date]]=\"\",TRUE,IF(MeasureEffectiveDate<=MeasureTable_ID[[#This Row],[Effective End Date]],TRUE,FALSE)))","v":false},{"$f":"MeasureTable_ID[[#This Row],[Measure Name]]&\" | \"&MeasureTable_ID[[#This Row],[Eligible Measure]]","v":"Exterior Advanced Lighting Controls - Basic Dimming Controls - Retrofit - ID | FALSE"},"ID","03132023-034","Exterior Advanced Lighting Controls - Basic Dimming Controls - Retrofit - ID","Lighting","Controls","Exterior Lighting Control","Exterior lighting system upgrades with basic dimming controls only.",2,"Active","2025-11-17","3000-12-31","Non-LED exterior fixture. The baseline wattage for EEMs is the lesser of: a) Wattage of the existing equipment, or b) Wattage of deemed baseline equipment on the energy efficiency program section of the Rocky Mountain Power website. ",null,null,"Must control LED tech in an ext light application. Control can be occupancy or schedule-based, and result in minimum of 35% energy savings. Networking not required.",null,null,"All LED equipment must be listed as qualified on the Rocky Mountain Power website; this includes products on DesignLights Consortium (DLC). Fixtures must be controlled using basic dimming controls.","Site-Specific","Site-Specific","Site-Specific",null,null,"Site-Specific","Site-Specific","0.35",null,"Watt Controlled",null,"8",null,null,null,null,"RMP Calculation","RMP Calculation","Prescriptive","2","Retrofit","2025-10-30","true","0.7",null,"true",null,"0.75",null,"0.98","0.87","2022-2023 Idaho wattsmart Business Evaluation"]
[{"$f":"IF(AND(MeasureEffectiveDate>=MeasureTable_ID[[#This Row],[Effective Start Date]],MeasureTable_ID[[#This Row],[Effective Start Date]]<>\"\"),IF(MeasureTable_ID[[#This Row],[Effective End Date]]=\"\",TRUE,IF(MeasureEffectiveDate<=MeasureTable_ID[[#This Row],[Effective End Date]],TRUE,FALSE)))","v":false},{"$f":"MeasureTable_ID[[#This Row],[Measure Name]]&\" | \"&MeasureTable_ID[[#This Row],[Eligible Measure]]","v":"Exterior Fixture Replacement - w/ Basic Dimming Controls - Retrofit - ID | FALSE"},"ID","11172025-191","Exterior Fixture Replacement - w/ Basic Dimming Controls - Retrofit - ID","Lighting","Exterior Lighting","Fixture Retrofit/Replacement","Exterior lighting upgrades, with basic dimming controls. LED must be listed on qualified equipment lists. Entire existing fixture must be removed and a new fixture installed.",1,"Active","2025-11-17","3000-12-31","Non-LED exterior fixture. The baseline wattage for EEMs is the lesser of: a) Wattage of the existing equipment, or b) Wattage of deemed baseline equipment on the energy efficiency program section of the Rocky Mountain Power website. ",null,null,"Full fixture replacement with LED fixture on the Rocky Mountain Power qualified list (DLC qualified) along with advanced dimming controls",null,null,"All LED equipment must be listed as qualified on the Rocky Mountain Power website; this includes products on the DesignLights Consortium (DLC) Retrofit Kit product lists. Fixtures must be controlled using advanced dimming controls.","Site-Specific","Site-Specific","Site-Specific",null,null,"Site-Specific","Site-Specific","0.5",null,"Watt Reduced",null,"15",null,null,null,null,"RMP Calculation","RMP Calculation","Prescriptive","2","Retrofit","2025-10-30","true","0.7",null,"true",null,"1",null,"0.98","0.87","2022-2023 Idaho wattsmart Business Evaluation"]
[{"$f":"IF(AND(MeasureEffectiveDate>=MeasureTable_ID[[#This Row],[Effective Start Date]],MeasureTable_ID[[#This Row],[Effective Start Date]]<>\"\"),IF(MeasureTable_ID[[#This Row],[Effective End Date]]=\"\",TRUE,IF(MeasureEffectiveDate<=MeasureTable_ID[[#This Row],[Effective End Date]],TRUE,FALSE)))","v":false},{"$f":"MeasureTable_ID[[#This Row],[Measure Name]]&\" | \"&MeasureTable_ID[[#This Row],[Eligible Measure]]","v":"Exterior Fixture Replacement - w/ No Controls - Retrofit - ID | FALSE"},"ID","11172025-185","Exterior Fixture Replacement - w/ No Controls - Retrofit - ID","Lighting","Exterior Lighting","Fixture Retrofit/Replacement","Exterior lighting upgrade. LED must be listed on qualified equipment list. ",1,"Active","2025-11-17","3000-12-31","Non-LED exterior fixture. The baseline wattage for EEMs is the lesser of: a) Wattage of the existing equipment, or b) Wattage of deemed baseline equipment on the energy efficiency program section of the Rocky Mountain Power website. ",null,null,"To be eligible for incentive, the new lighting system must use less energy than the existing/baseline lighting system. ",null,null,"All LED equipment must be listed as qualified on the Rocky Mountain Power website; this includes products on DesignLights Consortium (DLC).","Site-Specific","Site-Specific","Site-Specific",null,null,"Site-Specific","Site-Specific","0.35",null,"Watt Reduced",null,"15",null,null,null,null,"RMP Calculation","RMP Calculation","Prescriptive","2","Retrofit","2025-10-30","true","0.7",null,"true",null,"1",null,"0.98","0.87","2022-2023 Idaho wattsmart Business Evaluation"]
[{"$f":"IF(AND(MeasureEffectiveDate>=MeasureTable_ID[[#This Row],[Effective Start Date]],MeasureTable_ID[[#This Row],[Effective Start Date]]<>\"\"),IF(MeasureTable_ID[[#This Row],[Effective End Date]]=\"\",TRUE,IF(MeasureEffectiveDate<=MeasureTable_ID[[#This Row],[Effective End Date]],TRUE,FALSE)))","v":false},{"$f":"MeasureTable_ID[[#This Row],[Measure Name]]&\" | \"&MeasureTable_ID[[#This Row],[Eligible Measure]]","v":"Exterior Fixture Replacement - w/Advanced Networked Dimming - Retrofit - ID | FALSE"},"ID","11172025-186","Exterior Fixture Replacement - w/Advanced Networked Dimming - Retrofit - ID","Lighting","Exterior Lighting","Fixture Retrofit/Replacement","Exterior lighting upgrade, with advanced networked dimming controls. Must be on qualified equipment list. ",1,"Active","2025-11-17","3000-12-31","Non-LED exterior fixture. The baseline wattage for EEMs is the lesser of: a) Wattage of the existing equipment, or b) Wattage of deemed baseline equipment on the energy efficiency program section of the Rocky Mountain Power website. ",null,null,"Full fixture replacement with LED fixture on the Rocky Mountain Power qualified list (DLC qualified) along with advanced networked dimming controls",null,null,"All LED equipment must be listed as qualified on the Rocky Mountain Power website; this includes products on DesignLights Consortium (DLC). Fixtures must be controlled using advanced dimming controls.","Site-Specific","Site-Specific","Site-Specific",null,null,"Site-Specific","Site-Specific","0.7",null,"Watt Reduced",null,"15",null,null,null,null,"RMP Calculation","RMP Calculation","Prescriptive","2","Retrofit","2025-10-30","true","0.7",null,"true",null,"1",null,"0.98","0.87","2022-2023 Idaho wattsmart Business Evaluation"]
[{"$f":"IF(AND(MeasureEffectiveDate>=MeasureTable_ID[[#This Row],[Effective Start Date]],MeasureTable_ID[[#This Row],[Effective Start Date]]<>\"\"),IF(MeasureTable_ID[[#This Row],[Effective End Date]]=\"\",TRUE,IF(MeasureEffectiveDate<=MeasureTable_ID[[#This Row],[Effective End Date]],TRUE,FALSE)))","v":false},{"$f":"MeasureTable_ID[[#This Row],[Measure Name]]&\" | \"&MeasureTable_ID[[#This Row],[Eligible Measure]]","v":"Exterior Fixture Retrofit Kit - w/ Basic Dimming Controls - Retrofit - ID | FALSE"},"ID","11172025-190","Exterior Fixture Retrofit Kit - w/ Basic Dimming Controls - Retrofit - ID","Lighting","Exterior Lighting","Fixture Retrofit/Replacement","Exterior lighting upgrade via fixture retrofit kit, with advanced dimming controls. Keeps existing fixture housing and modifies fixture components to incorporate new lighting equipment. Must be on qualified equipment list.",1,"Active","2025-11-17","3000-12-31","Non-LED exterior fixture. The baseline wattage for EEMs is the lesser of: a) Wattage of the existing equipment, or b) Wattage of deemed baseline equipment on the energy efficiency program section of the Rocky Mountain Power website. ",null,null,"LED retrofit kit on the Rocky Mountain Power qualified list (DLC) along with advanced dimming controls",null,null,"All LED equipment must be listed as qualified on the Rocky Mountain Power website; this includes products on the DesignLights Consortium (DLC) Retrofit Kit product lists. Fixtures must be controlled using advanced dimming controls.","Site-Specific","Site-Specific","Site-Specific",null,null,"Site-Specific","Site-Specific","0.5",null,"Watt Reduced",null,"15",null,null,null,null,"RMP Calculation","RMP Calculation","Prescriptive","2","Retrofit","2025-10-30","true","0.7",null,"true",null,"1",null,"0.98","0.87","2022-2023 Idaho wattsmart Business Evaluation"]
[{"$f":"IF(AND(MeasureEffectiveDate>=MeasureTable_ID[[#This Row],[Effective Start Date]],MeasureTable_ID[[#This Row],[Effective Start Date]]<>\"\"),IF(MeasureTable_ID[[#This Row],[Effective End Date]]=\"\",TRUE,IF(MeasureEffectiveDate<=MeasureTable_ID[[#This Row],[Effective End Date]],TRUE,FALSE)))","v":false},{"$f":"MeasureTable_ID[[#This Row],[Measure Name]]&\" | \"&MeasureTable_ID[[#This Row],[Eligible Measure]]","v":"Exterior Fixture Retrofit Kit - w/ No Controls - Retrofit - ID | FALSE"},"ID","11172025-187","Exterior Fixture Retrofit Kit - w/ No Controls - Retrofit - ID","Lighting","Exterior Lighting","Fixture Retrofit/Replacement","Exterior lighting upgrade. LED must be listed on qualified equipment list. ",1,"Active","2025-11-17","3000-12-31","Non-LED exterior fixture. The baseline wattage for EEMs is the lesser of: a) Wattage of the existing equipment, or b) Wattage of deemed baseline equipment on the energy efficiency program section of the Rocky Mountain Power website. ",null,null,"To be eligible for incentive, the new lighting system must use less energy than the existing/baseline lighting system. ",null,null,"All LED equipment must be listed as qualified on the Rocky Mountain Power website; this includes products on DesignLights Consortium (DLC).","Site-Specific","Site-Specific","Site-Specific",null,null,"Site-Specific","Site-Specific","0.35",null,"Watt Reduced",null,"15",null,null,null,null,"RMP Calculation","RMP Calculation","Prescriptive","2","Retrofit","2025-10-30","true","0.7",null,"true",null,"1",null,"0.98","0.87","2022-2023 Idaho wattsmart Business Evaluation"]
[{"$f":"IF(AND(MeasureEffectiveDate>=MeasureTable_ID[[#This Row],[Effective Start Date]],MeasureTable_ID[[#This Row],[Effective Start Date]]<>\"\"),IF(MeasureTable_ID[[#This Row],[Effective End Date]]=\"\",TRUE,IF(MeasureEffectiveDate<=MeasureTable_ID[[#This Row],[Effective End Date]],TRUE,FALSE)))","v":false},{"$f":"MeasureTable_ID[[#This Row],[Measure Name]]&\" | \"&MeasureTable_ID[[#This Row],[Eligible Measure]]","v":"Exterior Fixture Retrofit Kit - w/Advanced Networked Dimming - Retrofit - ID | FALSE"},"ID","11172025-188","Exterior Fixture Retrofit Kit - w/Advanced Networked Dimming - Retrofit - ID","Lighting","Exterior Lighting","Fixture Retrofit/Replacement","Exterior lighting upgrade, with advanced networked dimming controls. Must be on qualified equipment list. ",1,"Active","2025-11-17","3000-12-31","Non-LED exterior fixture. The baseline wattage for EEMs is the lesser of: a) Wattage of the existing equipment, or b) Wattage of deemed baseline equipment on the energy efficiency program section of the Rocky Mountain Power website. ",null,null,"LED retrofit kit on the Rocky Mountain Power qualified list (DLC) along with advanced networked dimming controls",null,null,"All LED equipment must be listed as qualified on the Rocky Mountain Power website; this includes products on DesignLights Consortium (DLC). Fixtures must be controlled using advanced dimming controls.","Site-Specific","Site-Specific","Site-Specific",null,null,"Site-Specific","Site-Specific","0.7",null,"Watt Reduced",null,"15",null,null,null,null,"RMP Calculation","RMP Calculation","Prescriptive","2","Retrofit","2025-10-30","true","0.7",null,"true",null,"1",null,"0.98","0.87","2022-2023 Idaho wattsmart Business Evaluation"]
[{"$f":"IF(AND(MeasureEffectiveDate>=MeasureTable_ID[[#This Row],[Effective Start Date]],MeasureTable_ID[[#This Row],[Effective Start Date]]<>\"\"),IF(MeasureTable_ID[[#This Row],[Effective End Date]]=\"\",TRUE,IF(MeasureEffectiveDate<=MeasureTable_ID[[#This Row],[Effective End Date]],TRUE,FALSE)))","v":false},{"$f":"MeasureTable_ID[[#This Row],[Measure Name]]&\" | \"&MeasureTable_ID[[#This Row],[Eligible Measure]]","v":"Exterior Lighting - Custom - NCMR - v2 - ID | FALSE"},"ID","01302014-003_v2","Exterior Lighting - Custom - NCMR - v2 - ID","Lighting","Custom","Exterior Lighting","Custom exterior lighting installation. Installed in a new construction application or major renovation.",2,"Active","2025-11-17","3000-12-31","Non-LED exterior fixture. The baseline wattage for EEMs is the lesser of: a) Wattage of the existing equipment, or b) Wattage of deemed baseline equipment on the energy efficiency program section of the Rocky Mountain Power website. ",null,null,"To be eligible for incentive, the new lighting system must use less energy than the existing/baseline lighting system. ",null,null,"All LED equipment must be listed as qualified on the Rocky Mountain Power website; this includes products on DesignLights Consortium (DLC).","Site-Specific","Site-Specific","Site-Specific",null,null,"Site-Specific","Site-Specific","0.08",null,"kWh",null,"15",null,null,null,null,"RMP Calculation","RMP Calculation","Prescriptive/Custom","2","New Construction/Major Renovation","2025-10-30","false",null,null,"true",null,"0.08",null,"0.98","0.87","2022-2023 Idaho wattsmart Business Evaluation"]
[{"$f":"IF(AND(MeasureEffectiveDate>=MeasureTable_ID[[#This Row],[Effective Start Date]],MeasureTable_ID[[#This Row],[Effective Start Date]]<>\"\"),IF(MeasureTable_ID[[#This Row],[Effective End Date]]=\"\",TRUE,IF(MeasureEffectiveDate<=MeasureTable_ID[[#This Row],[Effective End Date]],TRUE,FALSE)))","v":false},{"$f":"MeasureTable_ID[[#This Row],[Measure Name]]&\" | \"&MeasureTable_ID[[#This Row],[Eligible Measure]]","v":"Interior Advanced Networked Lighting Controls/LLLCs - Retrofit - v4 - ID | FALSE"},"ID","02062018-017_v4","Interior Advanced Networked Lighting Controls/LLLCs - Retrofit - v4 - ID","Lighting","Controls","Interior Lighting Controls","Interior advanced networked lighting controls/lllcs. Installed in a retrofit application. ",1,"Active","2025-11-17","3000-12-31","Baseline wattage for all retrofit lighting EEMs is the lesser of: a) Wattage of the existing equipment, or b) Wattage of deemed baseline equipment as determined by Rocky Mountain Power.",null,null,"To be eligible for the incentives listed, the new lighting system must use less energy than the existing lighting system replaced or the baseline lighting system as determined by Rocky Mountain Power.",null,null,"Installed lighting equipment (and controls, if applicable) must be eligible as defined in the qualified equipment lists posted on the Rocky Mountain Power website.","Site-Specific","Site-Specific","Site-Specific",null,null,"Site-Specific","Site-Specific","0.75",null,"Watt Controlled",null,"8",null,null,null,null,"RMP Calculation","RMP Calculation","Prescriptive","2","Retrofit","2025-10-30","true","0.7",null,"true",null,"0.75",null,"0.98","0.87","2022-2023 Idaho wattsmart Business Evaluation"]
[{"$f":"IF(AND(MeasureEffectiveDate>=MeasureTable_ID[[#This Row],[Effective Start Date]],MeasureTable_ID[[#This Row],[Effective Start Date]]<>\"\"),IF(MeasureTable_ID[[#This Row],[Effective End Date]]=\"\",TRUE,IF(MeasureEffectiveDate<=MeasureTable_ID[[#This Row],[Effective End Date]],TRUE,FALSE)))","v":false},{"$f":"MeasureTable_ID[[#This Row],[Measure Name]]&\" | \"&MeasureTable_ID[[#This Row],[Eligible Measure]]","v":"Interior Fixture Replacement - w/ Advanced Networked Lighting Controls/LLLCs - Retrofit - v4 - ID | FALSE"},"ID","02062018-022_v4","Interior Fixture Replacement - w/ Advanced Networked Lighting Controls/LLLCs - Retrofit - v4 - ID","Lighting","Interior Lighting","Fixture Retrofit/Replacement","Interior fixture replacement with advanced networked lighting controls, as defined on RMP Website. Installed in a retrofit application. ",1,"Active","2025-11-17","3000-12-31","Baseline wattage for all retrofit lighting EEMs is the lesser of: a) Wattage of the existing equipment, or b) Wattage of deemed baseline equipment as determined by Rocky Mountain Power.",null,null,"To be eligible for the incentives listed, the new lighting system must use less energy than the existing lighting system replaced or the baseline lighting system as determined by Rocky Mountain Power.",null,null,"Installed lighting equipment (and controls, if applicable) must be eligible as defined in the qualified equipment lists posted on the Rocky Mountain Power website.","Site-Specific","Site-Specific","Site-Specific",null,null,"Site-Specific","Site-Specific","1.2",null,"Watt Reduced",null,"15",null,null,null,null,"RMP Calculation","RMP Calculation","Prescriptive","2","Retrofit","2025-10-30","true","0.7",null,"true",null,"1.5",null,"0.98","0.87","2022-2023 Idaho wattsmart Business Evaluation"]
[{"$f":"IF(AND(MeasureEffectiveDate>=MeasureTable_ID[[#This Row],[Effective Start Date]],MeasureTable_ID[[#This Row],[Effective Start Date]]<>\"\"),IF(MeasureTable_ID[[#This Row],[Effective End Date]]=\"\",TRUE,IF(MeasureEffectiveDate<=MeasureTable_ID[[#This Row],[Effective End Date]],TRUE,FALSE)))","v":false},{"$f":"MeasureTable_ID[[#This Row],[Measure Name]]&\" | \"&MeasureTable_ID[[#This Row],[Eligible Measure]]","v":"Interior Fixture Replacement - w/ Basic Controls - Retrofit - v2 - ID | FALSE"},"ID","02062018-023_v2","Interior Fixture Replacement - w/ Basic Controls - Retrofit - v2 - ID","Lighting","Interior Lighting","Fixture Retrofit/Replacement","Interior fixture replacement with basic controls, as defined on RMP website. Installed in a retrofit application. ",3,"Active","2025-11-17","3000-12-31","Baseline wattage for all retrofit lighting EEMs is the lesser of: a) Wattage of the existing equipment, or b) Wattage of deemed baseline equipment as determined by Rocky Mountain Power.",null,null,"To be eligible for the incentives listed, the new lighting system must use less energy than the existing lighting system replaced or the baseline lighting system as determined by Rocky Mountain Power.",null,null,"Installed lighting equipment (and controls, if applicable) must be eligible as defined in the qualified equipment lists posted on the Rocky Mountain Power website.","Site-Specific","Site-Specific","Site-Specific",null,null,"Site-Specific","Site-Specific","0.6",null,"Watt Reduced",null,"15",null,null,null,null,"RMP Calculation","RMP Calculation","Prescriptive","2","Retrofit","2025-10-30","true","0.7",null,"true",null,"1.5",null,"0.98","0.87","2022-2023 Idaho wattsmart Business Evaluation"]
[{"$f":"IF(AND(MeasureEffectiveDate>=MeasureTable_ID[[#This Row],[Effective Start Date]],MeasureTable_ID[[#This Row],[Effective Start Date]]<>\"\"),IF(MeasureTable_ID[[#This Row],[Effective End Date]]=\"\",TRUE,IF(MeasureEffectiveDate<=MeasureTable_ID[[#This Row],[Effective End Date]],TRUE,FALSE)))","v":false},{"$f":"MeasureTable_ID[[#This Row],[Measure Name]]&\" | \"&MeasureTable_ID[[#This Row],[Eligible Measure]]","v":"Interior Fixture Replacement - w/ Networked Lighting Controls - Retrofit - ID | FALSE"},"ID","03132023-041","Interior Fixture Replacement - w/ Networked Lighting Controls - Retrofit - ID","Lighting","Interior Lighting","Fixture Retrofit/Replacement","Interior fixture replacement with networked lighting controls, as defined on RMP Website. Installed in a retrofit application. ",2,"Active","2025-11-17","3000-12-31","Baseline wattage for all retrofit lighting EEMs is the lesser of: a) Wattage of the existing equipment, or b) Wattage of deemed baseline equipment as determined by Rocky Mountain Power.",null,null,"To be eligible for the incentives listed, the new lighting system must use less energy than the existing lighting system replaced or the baseline lighting system as determined by Rocky Mountain Power.",null,null,"Installed lighting equipment (and controls, if applicable) must be eligible as defined in the qualified equipment lists posted on the Rocky Mountain Power website.","Site-Specific","Site-Specific","Site-Specific",null,null,"Site-Specific","Site-Specific","1",null,"Watt Reduced",null,"15",null,null,null,null,"RMP Calculation","RMP Calculation","Prescriptive","2","Retrofit","2025-10-30","true","0.7",null,"true",null,"1.5",null,"0.98","0.87","2022-2023 Idaho wattsmart Business Evaluation"]
[{"$f":"IF(AND(MeasureEffectiveDate>=MeasureTable_ID[[#This Row],[Effective Start Date]],MeasureTable_ID[[#This Row],[Effective Start Date]]<>\"\"),IF(MeasureTable_ID[[#This Row],[Effective End Date]]=\"\",TRUE,IF(MeasureEffectiveDate<=MeasureTable_ID[[#This Row],[Effective End Date]],TRUE,FALSE)))","v":false},{"$f":"MeasureTable_ID[[#This Row],[Measure Name]]&\" | \"&MeasureTable_ID[[#This Row],[Eligible Measure]]","v":"Interior Fixture Replacement - w/ Plug and Play Control Ready - Retrofit - ID | FALSE"},"ID","11172025-193","Interior Fixture Replacement - w/ Plug and Play Control Ready - Retrofit - ID","Lighting","Interior Lighting","Fixture Retrofit/Replacement","Interior fixture replacement with plug and play control ready, as defined on RMP Website. Installed in a retrofit application ",1,"Active","2025-11-17","3000-12-31","Baseline wattage for all retrofit lighting EEMs is the lesser of: a) Wattage of the existing equipment, or b) Wattage of deemed baseline equipment as determined by Rocky Mountain Power.",null,null,"To be eligible for the incentives listed, the new lighting system must use less energy than the existing lighting system replaced or the baseline lighting system as determined by Rocky Mountain Power.",null,null,"Installed lighting equipment (and controls, if applicable) must be eligible as defined in the qualified equipment lists posted on the Rocky Mountain Power website.","Site-Specific","Site-Specific","Site-Specific",null,null,"Site-Specific","Site-Specific","0.8",null,"Watt Reduced",null,"15",null,null,null,null,"RMP Calculation","RMP Calculation","Prescriptive","2","Retrofit","2025-10-30","true","0.7",null,"true",null,"1.5",null,"0.98","0.87","2022-2023 Idaho wattsmart Business Evaluation"]
[{"$f":"IF(AND(MeasureEffectiveDate>=MeasureTable_ID[[#This Row],[Effective Start Date]],MeasureTable_ID[[#This Row],[Effective Start Date]]<>\"\"),IF(MeasureTable_ID[[#This Row],[Effective End Date]]=\"\",TRUE,IF(MeasureEffectiveDate<=MeasureTable_ID[[#This Row],[Effective End Date]],TRUE,FALSE)))","v":false},{"$f":"MeasureTable_ID[[#This Row],[Measure Name]]&\" | \"&MeasureTable_ID[[#This Row],[Eligible Measure]]","v":"Interior Fixture Replacement - w/out Controls - Retrofit - v2 - ID | FALSE"},"ID","02062018-021_v2","Interior Fixture Replacement - w/out Controls - Retrofit - v2 - ID","Lighting","Interior Lighting","Fixture Retrofit/Replacement","Interior fixture replacement without controls. Installed in a retrofit application. ",2,"Active","2025-11-17","3000-12-31","Baseline wattage for all retrofit lighting EEMs is the lesser of: a) Wattage of the existing equipment, or b) Wattage of deemed baseline equipment as determined by Rocky Mountain Power.",null,null,"To be eligible for the incentives listed, the new lighting system must use less energy than the existing lighting system replaced or the baseline lighting system as determined by Rocky Mountain Power.",null,null,"Installed lighting equipment (and controls, if applicable) must be eligible as defined in the qualified equipment lists posted on the Rocky Mountain Power website.","Site-Specific","Site-Specific","Site-Specific",null,null,"Site-Specific","Site-Specific","0.6",null,"Watt Reduced",null,"15",null,null,null,null,"RMP Calculation","RMP Calculation","Prescriptive","2","Retrofit","2025-10-30","true","0.7",null,"true",null,"1.5",null,"0.98","0.87","2022-2023 Idaho wattsmart Business Evaluation"]
[{"$f":"IF(AND(MeasureEffectiveDate>=MeasureTable_ID[[#This Row],[Effective Start Date]],MeasureTable_ID[[#This Row],[Effective Start Date]]<>\"\"),IF(MeasureTable_ID[[#This Row],[Effective End Date]]=\"\",TRUE,IF(MeasureEffectiveDate<=MeasureTable_ID[[#This Row],[Effective End Date]],TRUE,FALSE)))","v":false},{"$f":"MeasureTable_ID[[#This Row],[Measure Name]]&\" | \"&MeasureTable_ID[[#This Row],[Eligible Measure]]","v":"Interior Fixture Retrofit Kit - w/ Advanced Networked Lighting Controls/LLLCs - Retrofit - v2 - ID | FALSE"},"ID","03132023-038_v2","Interior Fixture Retrofit Kit - w/ Advanced Networked Lighting Controls/LLLCs - Retrofit - v2 - ID","Lighting","Interior Lighting","Fixture Retrofit/Replacement","Interior fixture replacement with advanced networked lighting controls, as defined on RMP website. Installed in a retrofit application. ",1,"Active","2025-11-17","3000-12-31","Baseline wattage for all retrofit lighting EEMs is the lesser of: a) Wattage of the existing equipment, or b) Wattage of deemed baseline equipment as determined by Rocky Mountain Power.",null,null,"To be eligible for the incentives listed, the new lighting system must use less energy than the existing lighting system replaced or the baseline lighting system as determined by Rocky Mountain Power.",null,null,"Installed lighting equipment (and controls, if applicable) must be eligible as defined in the qualified equipment lists posted on the Rocky Mountain Power website.","Site-Specific","Site-Specific","Site-Specific",null,null,"Site-Specific","Site-Specific","1.2",null,"Watt Reduced",null,"15",null,null,null,null,"RMP Calculation","RMP Calculation","Prescriptive","2","Retrofit","2025-10-30","true","0.7",null,"true",null,"1.5",null,"0.98","0.87","2022-2023 Idaho wattsmart Business Evaluation"]
[{"$f":"IF(AND(MeasureEffectiveDate>=MeasureTable_ID[[#This Row],[Effective Start Date]],MeasureTable_ID[[#This Row],[Effective Start Date]]<>\"\"),IF(MeasureTable_ID[[#This Row],[Effective End Date]]=\"\",TRUE,IF(MeasureEffectiveDate<=MeasureTable_ID[[#This Row],[Effective End Date]],TRUE,FALSE)))","v":false},{"$f":"MeasureTable_ID[[#This Row],[Measure Name]]&\" | \"&MeasureTable_ID[[#This Row],[Eligible Measure]]","v":"Interior Fixture Retrofit Kit - w/ Basic Controls - Retrofit - ID | FALSE"},"ID","03132023-036","Interior Fixture Retrofit Kit - w/ Basic Controls - Retrofit - ID","Lighting","Interior Lighting","Fixture Retrofit/Replacement","Interior fixture retrofit kit with basic lighting controls, as defined on RMP Website. Installed in a retrofit application ",2,"Active","2025-11-17","3000-12-31","Baseline wattage for all retrofit lighting EEMs is the lesser of: a) Wattage of the existing equipment, or b) Wattage of deemed baseline equipment as determined by Rocky Mountain Power.",null,null,"To be eligible for the incentives listed, the new lighting system must use less energy than the existing lighting system replaced or the baseline lighting system as determined by Rocky Mountain Power.",null,null,"Installed lighting equipment (and controls, if applicable) must be eligible as defined in the qualified equipment lists posted on the Rocky Mountain Power website.","Site-Specific","Site-Specific","Site-Specific",null,null,"Site-Specific","Site-Specific","0.6",null,"Watt Reduced",null,"15",null,null,null,null,"RMP Calculation","RMP Calculation","Prescriptive","2","Retrofit","2025-10-30","true","0.7",null,"true",null,"1.5",null,"0.98","0.87","2022-2023 Idaho wattsmart Business Evaluation"]
[{"$f":"IF(AND(MeasureEffectiveDate>=MeasureTable_ID[[#This Row],[Effective Start Date]],MeasureTable_ID[[#This Row],[Effective Start Date]]<>\"\"),IF(MeasureTable_ID[[#This Row],[Effective End Date]]=\"\",TRUE,IF(MeasureEffectiveDate<=MeasureTable_ID[[#This Row],[Effective End Date]],TRUE,FALSE)))","v":false},{"$f":"MeasureTable_ID[[#This Row],[Measure Name]]&\" | \"&MeasureTable_ID[[#This Row],[Eligible Measure]]","v":"Interior Fixture Retrofit Kit - w/ Networked Lighting Controls - Retrofit - ID | FALSE"},"ID","03132023-037","Interior Fixture Retrofit Kit - w/ Networked Lighting Controls - Retrofit - ID","Lighting","Interior Lighting","Fixture Retrofit/Replacement","Interior fixture retrofit kit with networked lighting controls, as defined on RMP Website. Installed in a retrofit application ",2,"Active","2025-11-17","3000-12-31","Baseline wattage for all retrofit lighting EEMs is the lesser of: a) Wattage of the existing equipment, or b) Wattage of deemed baseline equipment as determined by Rocky Mountain Power.",null,null,"To be eligible for the incentives listed, the new lighting system must use less energy than the existing lighting system replaced or the baseline lighting system as determined by Rocky Mountain Power.",null,null,"Installed lighting equipment (and controls, if applicable) must be eligible as defined in the qualified equipment lists posted on the Rocky Mountain Power website.","Site-Specific","Site-Specific","Site-Specific",null,null,"Site-Specific","Site-Specific","1",null,"Watt Reduced",null,"15",null,null,null,null,"RMP Calculation","RMP Calculation","Prescriptive","2","Retrofit","2025-10-30","true","0.7",null,"true",null,"1.5",null,"0.98","0.87","2022-2023 Idaho wattsmart Business Evaluation"]
[{"$f":"IF(AND(MeasureEffectiveDate>=MeasureTable_ID[[#This Row],[Effective Start Date]],MeasureTable_ID[[#This Row],[Effective Start Date]]<>\"\"),IF(MeasureTable_ID[[#This Row],[Effective End Date]]=\"\",TRUE,IF(MeasureEffectiveDate<=MeasureTable_ID[[#This Row],[Effective End Date]],TRUE,FALSE)))","v":false},{"$f":"MeasureTable_ID[[#This Row],[Measure Name]]&\" | \"&MeasureTable_ID[[#This Row],[Eligible Measure]]","v":"Interior Fixture Retrofit Kit - w/ Plug and Play Control Ready - Retrofit - ID | FALSE"},"ID","11172025-192","Interior Fixture Retrofit Kit - w/ Plug and Play Control Ready - Retrofit - ID","Lighting","Interior Lighting","Fixture Retrofit/Replacement","Interior fixture retrofit kit with plug and play control ready, as defined on RMP Website. Installed in a retrofit application ",1,"Active","2025-11-17","3000-12-31","Baseline wattage for all retrofit lighting EEMs is the lesser of: a) Wattage of the existing equipment, or b) Wattage of deemed baseline equipment as determined by Rocky Mountain Power.",null,null,"To be eligible for the incentives listed, the new lighting system must use less energy than the existing lighting system replaced or the baseline lighting system as determined by Rocky Mountain Power.",null,null,"Installed lighting equipment (and controls, if applicable) must be eligible as defined in the qualified equipment lists posted on the Rocky Mountain Power website.","Site-Specific","Site-Specific","Site-Specific",null,null,"Site-Specific","Site-Specific","0.8",null,"Watt Reduced",null,"15",null,null,null,null,"RMP Calculation","RMP Calculation","Prescriptive","2","Retrofit","2025-10-30","true","0.7",null,"true",null,"1.5",null,"0.98","0.87","2022-2023 Idaho wattsmart Business Evaluation"]
[{"$f":"IF(AND(MeasureEffectiveDate>=MeasureTable_ID[[#This Row],[Effective Start Date]],MeasureTable_ID[[#This Row],[Effective Start Date]]<>\"\"),IF(MeasureTable_ID[[#This Row],[Effective End Date]]=\"\",TRUE,IF(MeasureEffectiveDate<=MeasureTable_ID[[#This Row],[Effective End Date]],TRUE,FALSE)))","v":false},{"$f":"MeasureTable_ID[[#This Row],[Measure Name]]&\" | \"&MeasureTable_ID[[#This Row],[Eligible Measure]]","v":"Interior Fixture Retrofit Kit - w/out Controls - Retrofit - v2 - ID | FALSE"},"ID","02062018-020_v2","Interior Fixture Retrofit Kit - w/out Controls - Retrofit - v2 - ID","Lighting","Interior Lighting","Fixture Retrofit/Replacement","Interior fixture retrofit kit without controls. Installed in a retrofit application. ",2,"Active","2025-11-17","3000-12-31","Baseline wattage for all retrofit lighting EEMs is the lesser of: a) Wattage of the existing equipment, or b) Wattage of deemed baseline equipment as determined by Rocky Mountain Power.",null,null,"To be eligible for the incentives listed, the new lighting system must use less energy than the existing lighting system replaced or the baseline lighting system as determined by Rocky Mountain Power.",null,null,"Installed lighting equipment (and controls, if applicable) must be eligible as defined in the qualified equipment lists posted on the Rocky Mountain Power website.","Site-Specific","Site-Specific","Site-Specific",null,null,"Site-Specific","Site-Specific","0.6",null,"Watt Reduced",null,"15",null,null,null,null,"RMP Calculation","RMP Calculation","Prescriptive","2","Retrofit","2025-10-30","true","0.7",null,"true",null,"1.5",null,"0.98","0.87","2022-2023 Idaho wattsmart Business Evaluation"]
[{"$f":"IF(AND(MeasureEffectiveDate>=MeasureTable_ID[[#This Row],[Effective Start Date]],MeasureTable_ID[[#This Row],[Effective Start Date]]<>\"\"),IF(MeasureTable_ID[[#This Row],[Effective End Date]]=\"\",TRUE,IF(MeasureEffectiveDate<=MeasureTable_ID[[#This Row],[Effective End Date]],TRUE,FALSE)))","v":false},{"$f":"MeasureTable_ID[[#This Row],[Measure Name]]&\" | \"&MeasureTable_ID[[#This Row],[Eligible Measure]]","v":"Interior Lighting - Custom - NCMR - v2 - ID | FALSE"},"ID","7062015_v2","Interior Lighting - Custom - NCMR - v2 - ID","Lighting","Custom","Interior Lighting","Custom interior lighting installation. Installed in new construction/major renovation application. ",2,"Active","2025-11-17","3000-12-31","The baseline wattage for custom new construction/major renovation exterior lighting EEMs is the lesser of: a) energy code required LPD, or b) Wattage of deemed baseline equipment as determined by Rocky Mountain Power",null,null,"To be eligible for the incentives listed, the new lighting system must use less energy than the existing lighting system replaced or the baseline lighting system as determined by Rocky Mountain Power.",null,null,"Installed lighting equipment (and controls, if applicable) must be eligible as defined in the qualified equipment lists posted on the Rocky Mountain Power website.","Site-Specific","Site-Specific","Site-Specific",null,null,"Site-Specific","Site-Specific","0.08",null,"kWh",null,"15",null,null,null,null,"RMP Calculation","RMP Calculation","Custom","2","New Construction/Major Renovation","2025-10-30","false",null,null,"true",null,"0.08",null,"0.98","0.87","2022-2023 Idaho wattsmart Business Evaluation"]
[{"$f":"IF(AND(MeasureEffectiveDate>=MeasureTable_ID[[#This Row],[Effective Start Date]],MeasureTable_ID[[#This Row],[Effective Start Date]]<>\"\"),IF(MeasureTable_ID[[#This Row],[Effective End Date]]=\"\",TRUE,IF(MeasureEffectiveDate<=MeasureTable_ID[[#This Row],[Effective End Date]],TRUE,FALSE)))","v":false},{"$f":"MeasureTable_ID[[#This Row],[Measure Name]]&\" | \"&MeasureTable_ID[[#This Row],[Eligible Measure]]","v":"Interior Lighting - Custom - Non-General - Retrofit - v3 - ID | FALSE"},"ID","01302014-037_v3","Interior Lighting - Custom - Non-General - Retrofit - v3 - ID","Lighting","Custom","Interior Lighting","Custom interior lighting installation for non-general lighting (fixture or lamp not listed in tariff incentive tables). Installed in a retrofit application.",1,"Active","2021-11-01","3000-12-31","Baseline wattage for all retrofit lighting EEMs is the lesser of: a) Wattage of the existing equipment, or b) Wattage of deemed baseline equipment as determined by Rocky Mountain Power..",null,null,"Custom retrofit with a non-general illumination lighting installation; fixture or lamp not listed in tariff incentive tables.",null,null,"Custom retrofit with a non-general illumination lighting installation; fixture or lamp not listed in tariff incentive tables.","Site-Specific","Site-Specific","Site-Specific",null,null,"Site-Specific","Site-Specific","0.1","0","kWh",null,"15",null,null,null,null,"RMP Calculation","RMP Calculation","Prescriptive/Custom","2","Retrofit","2021-01-22","true","0.7",null,"true",null,"0.15",null,"0.94","0.89","2016-17 Idaho wattsmart Business Evaluation"]
[{"$f":"IF(AND(MeasureEffectiveDate>=MeasureTable_ID[[#This Row],[Effective Start Date]],MeasureTable_ID[[#This Row],[Effective Start Date]]<>\"\"),IF(MeasureTable_ID[[#This Row],[Effective End Date]]=\"\",TRUE,IF(MeasureEffectiveDate<=MeasureTable_ID[[#This Row],[Effective End Date]],TRUE,FALSE)))","v":false},{"$f":"MeasureTable_ID[[#This Row],[Measure Name]]&\" | \"&MeasureTable_ID[[#This Row],[Eligible Measure]]","v":"Interior Lighting - Custom - Retrofit - v2 - ID | FALSE"},"ID","02062018-005_v2","Interior Lighting - Custom - Retrofit - v2 - ID","Lighting","Custom","Interior Lighting","Custom interior lighting installation. Installed in a retrofit application. ",2,"Active","2025-11-17","3000-12-31","Baseline wattage for all retrofit lighting EEMs is the lesser of: a) Wattage of the existing equipment, or b) Wattage of deemed baseline equipment as determined by Rocky Mountain Power.",null,null,"Custom retrofit with a non-general illumination lighting installation; fixture or lamp not listed in tariff incentive tables.",null,null,"Custom retrofit with a non-general illumination lighting installation; fixture or lamp not listed in tariff incentive tables.","Site-Specific","Site-Specific","Site-Specific",null,null,"Site-Specific","Site-Specific","0.1",null,"kWh",null,"15",null,null,null,null,"RMP Calculation","RMP Calculation","Custom","2","Retrofit","2025-10-30","true","0.7",null,"true",null,"0.15",null,"0.98","0.87","2022-2023 Idaho wattsmart Business Evaluation"]
[{"$f":"IF(AND(MeasureEffectiveDate>=MeasureTable_ID[[#This Row],[Effective Start Date]],MeasureTable_ID[[#This Row],[Effective Start Date]]<>\"\"),IF(MeasureTable_ID[[#This Row],[Effective End Date]]=\"\",TRUE,IF(MeasureEffectiveDate<=MeasureTable_ID[[#This Row],[Effective End Date]],TRUE,FALSE)))","v":false},{"$f":"MeasureTable_ID[[#This Row],[Measure Name]]&\" | \"&MeasureTable_ID[[#This Row],[Eligible Measure]]","v":"Interior Lighting - Ineligible - NCMR - v2 - ID | FALSE"},"ID","03062018-001_v2","Interior Lighting - Ineligible - NCMR - v2 - ID","Lighting","Interior Lighting","Interior Lighting","Ineligible interior lighting installation. Installed in new construction/major renovation application. Covers any installed fixture that is not eligible for incentives but contributes to reported project savings.",1,"Active","2021-11-01","3000-12-31","The baseline wattage for custom new construction/major renovation exterior lighting EEMs is the lesser of: a) energy code required LPD, or b) Wattage of deemed baseline equipment as determined by Rocky Mountain Power",null,null,"Any installed fixture that is not eligible for incentives but contributes to reported project savings.",null,null,"Installed fixture must be ineligible for other measures.","Site-Specific","Site-Specific","Site-Specific",null,null,"Site-Specific","Site-Specific","0","0","Measure",null,"15",null,null,null,null,"RMP Calculation","RMP Calculation","Prescriptive/Custom","2","New Construction/ Major Renovation","2021-01-22","true","0.7",null,"true",null,null,null,"0.94","0.89","2016-17 Idaho wattsmart Business Evaluation"]
[{"$f":"IF(AND(MeasureEffectiveDate>=MeasureTable_ID[[#This Row],[Effective Start Date]],MeasureTable_ID[[#This Row],[Effective Start Date]]<>\"\"),IF(MeasureTable_ID[[#This Row],[Effective End Date]]=\"\",TRUE,IF(MeasureEffectiveDate<=MeasureTable_ID[[#This Row],[Effective End Date]],TRUE,FALSE)))","v":false},{"$f":"MeasureTable_ID[[#This Row],[Measure Name]]&\" | \"&MeasureTable_ID[[#This Row],[Eligible Measure]]","v":"Interior Lighting - Ineligible - Retrofit - v2 - ID | FALSE"},"ID","02102014-007_v2","Interior Lighting - Ineligible - Retrofit - v2 - ID","Lighting","Interior Lighting","Interior Lighting","Ineligible interior lighting installation. Installed in a retrofit application. Covers any installed fixture that is not eligible for incentives but contributes to reported project savings.",1,"Active","2021-11-01","3000-12-31","Baseline wattage for all retrofit lighting EEMs is the lesser of: a) Wattage of the existing equipment, or b) Wattage of deemed baseline equipment as determined by Rocky Mountain Power..",null,null,"Any installed fixture that is not eligible for incentives but contributes to reported project savings.",null,null,"Installed fixture must be ineligible for other measures.","Site-Specific","Site-Specific","Site-Specific",null,null,"Site-Specific","Site-Specific","0","0","Measure",null,"15",null,null,null,null,"RMP Calculation","RMP Calculation","Prescriptive/Custom","2","Retrofit","2021-01-22","true","0.7",null,"true",null,"0",null,"0.94","0.89","2016-17 Idaho wattsmart Business Evaluation"]
[{"$f":"IF(AND(MeasureEffectiveDate>=MeasureTable_ID[[#This Row],[Effective Start Date]],MeasureTable_ID[[#This Row],[Effective Start Date]]<>\"\"),IF(MeasureTable_ID[[#This Row],[Effective End Date]]=\"\",TRUE,IF(MeasureEffectiveDate<=MeasureTable_ID[[#This Row],[Effective End Date]],TRUE,FALSE)))","v":false},{"$f":"MeasureTable_ID[[#This Row],[Measure Name]]&\" | \"&MeasureTable_ID[[#This Row],[Eligible Measure]]","v":"Interior Lighting - w/ Advanced Networked Lighting Controls - NCMR - ID | FALSE"},"ID","11172025-196","Interior Lighting - w/ Advanced Networked Lighting Controls - NCMR - ID","Lighting","Interior Lighting","Interior Lighting","Interior lighting installation with advanced networked lighting controls. Installed in new construction/major renovation application.",1,"Active","2025-11-17","3000-12-31","Baseline wattage for all NCMR lighting EEMs is the lesser of: a) Wattage of the standard practice equipment, or b) Wattage of deemed baseline equipment as determined by Rocky Mountain Power.",null,null,"To be eligible for the incentives listed, the new lighting system must use less energy than the existing lighting system replaced or the baseline lighting system as determined by Rocky Mountain Power.",null,null,"Installed lighting equipment (and controls, if applicable) must be eligible as defined in the qualified equipment lists posted on the Rocky Mountain Power website.","Site-Specific","Site-Specific","Site-Specific",null,null,"Site-Specific","Site-Specific","0.12",null,"kWh",null,"15",null,null,null,null,"RMP Calculation","RMP Calculation","Prescriptive","2","New Construction/Major Renovation","2025-10-30","false",null,null,"true",null,"0.12",null,"0.98","0.87","2022-2023 Idaho wattsmart Business Evaluation"]
[{"$f":"IF(AND(MeasureEffectiveDate>=MeasureTable_ID[[#This Row],[Effective Start Date]],MeasureTable_ID[[#This Row],[Effective Start Date]]<>\"\"),IF(MeasureTable_ID[[#This Row],[Effective End Date]]=\"\",TRUE,IF(MeasureEffectiveDate<=MeasureTable_ID[[#This Row],[Effective End Date]],TRUE,FALSE)))","v":false},{"$f":"MeasureTable_ID[[#This Row],[Measure Name]]&\" | \"&MeasureTable_ID[[#This Row],[Eligible Measure]]","v":"Interior Lighting - w/ Networked Lighting Controls - NCMR - ID | FALSE"},"ID","11172025-195","Interior Lighting - w/ Networked Lighting Controls - NCMR - ID","Lighting","Interior Lighting","Interior Lighting","Interior lighting installation with networked lighting controls. Installed in new construction/major renovation application.",1,"Active","2025-11-17","3000-12-31","Baseline wattage for all NCMR lighting EEMs is the lesser of: a) Wattage of the standard practice equipment, or b) Wattage of deemed baseline equipment as determined by Rocky Mountain Power.",null,null,"To be eligible for the incentives listed, the new lighting system must use less energy than the existing lighting system replaced or the baseline lighting system as determined by Rocky Mountain Power.",null,null,"Installed lighting equipment (and controls, if applicable) must be eligible as defined in the qualified equipment lists posted on the Rocky Mountain Power website.","Site-Specific","Site-Specific","Site-Specific",null,null,"Site-Specific","Site-Specific","0.1",null,"kWh",null,"15",null,null,null,null,"RMP Calculation","RMP Calculation","Prescriptive","2","New Construction/Major Renovation","2025-10-30","false",null,null,"true",null,"0.12",null,"0.98","0.87","2022-2023 Idaho wattsmart Business Evaluation"]
[{"$f":"IF(AND(MeasureEffectiveDate>=MeasureTable_ID[[#This Row],[Effective Start Date]],MeasureTable_ID[[#This Row],[Effective Start Date]]<>\"\"),IF(MeasureTable_ID[[#This Row],[Effective End Date]]=\"\",TRUE,IF(MeasureEffectiveDate<=MeasureTable_ID[[#This Row],[Effective End Date]],TRUE,FALSE)))","v":false},{"$f":"MeasureTable_ID[[#This Row],[Measure Name]]&\" | \"&MeasureTable_ID[[#This Row],[Eligible Measure]]","v":"Interior Lighting - w/out Controls - NCMR - ID | FALSE"},"ID","11172025-194","Interior Lighting - w/out Controls - NCMR - ID","Lighting","Interior Lighting","Interior Lighting","Interior lighting installation without controls. Installed in new construction/major renovation application.",1,"Active","2025-11-17","3000-12-31","Baseline wattage for all NCMR lighting EEMs is the lesser of: a) Wattage of the standard practice equipment, or b) Wattage of deemed baseline equipment as determined by Rocky Mountain Power.",null,null,"To be eligible for the incentives listed, the new lighting system must use less energy than the existing lighting system replaced or the baseline lighting system as determined by Rocky Mountain Power.",null,null,"Installed lighting equipment (and controls, if applicable) must be eligible as defined in the qualified equipment lists posted on the Rocky Mountain Power website.","Site-Specific","Site-Specific","Site-Specific",null,null,"Site-Specific","Site-Specific","0.08",null,"kWh",null,"15",null,null,null,null,"RMP Calculation","RMP Calculation","Prescriptive","2","New Construction/Major Renovation","2025-10-30","false",null,null,"true",null,"0.08",null,"0.98","0.87","2022-2023 Idaho wattsmart Business Evaluation"]
[{"$f":"IF(AND(MeasureEffectiveDate>=MeasureTable_ID[[#This Row],[Effective Start Date]],MeasureTable_ID[[#This Row],[Effective Start Date]]<>\"\"),IF(MeasureTable_ID[[#This Row],[Effective End Date]]=\"\",TRUE,IF(MeasureEffectiveDate<=MeasureTable_ID[[#This Row],[Effective End Date]],TRUE,FALSE)))","v":false},{"$f":"MeasureTable_ID[[#This Row],[Measure Name]]&\" | \"&MeasureTable_ID[[#This Row],[Eligible Measure]]","v":"Interior Networked Lighting Controls - Retrofit - ID | FALSE"},"ID","03132023-040","Interior Networked Lighting Controls - Retrofit - ID","Lighting","Controls","Interior Lighting Controls","Interior networked lighting controls. Installed in a retrofit application",2,"Active","2025-11-17","3000-12-31","Baseline wattage for all retrofit lighting EEMs is the lesser of: a) Wattage of the existing equipment, or b) Wattage of deemed baseline equipment as determined by Rocky Mountain Power.",null,null,"To be eligible for the incentives listed, the new lighting system must use less energy than the existing lighting system replaced or the baseline lighting system as determined by Rocky Mountain Power.",null,null,"Installed lighting equipment (and controls, if applicable) must be eligible as defined in the qualified equipment lists posted on the Rocky Mountain Power website.","Site-Specific","Site-Specific","Site-Specific",null,null,"Site-Specific","Site-Specific","0.6",null,"Watt Controlled",null,"8",null,null,null,null,"RMP Calculation","RMP Calculation","Prescriptive","2","Retrofit","2025-10-30","true","0.7",null,"true",null,"0.75",null,"0.98","0.87","2022-2023 Idaho wattsmart Business Evaluation"]
[{"$f":"IF(AND(MeasureEffectiveDate>=MeasureTable_ID[[#This Row],[Effective Start Date]],MeasureTable_ID[[#This Row],[Effective Start Date]]<>\"\"),IF(MeasureTable_ID[[#This Row],[Effective End Date]]=\"\",TRUE,IF(MeasureEffectiveDate<=MeasureTable_ID[[#This Row],[Effective End Date]],TRUE,FALSE)))","v":false},{"$f":"MeasureTable_ID[[#This Row],[Measure Name]]&\" | \"&MeasureTable_ID[[#This Row],[Eligible Measure]]","v":"LED Exterior Fixture - No Controls - NCMR - ID | FALSE"},"ID","11172025-189","LED Exterior Fixture - No Controls - NCMR - ID","Lighting","Exterior Lighting","Fixture Retrofit/Replacement","New construction/major renovation installation of an exterior LEDs with no controls",1,"Active","2025-11-17","3000-12-31","Non-LED exterior fixture. The baseline wattage for EEMs is the lesser of: a) Wattage of the existing equipment, or b) Wattage of deemed baseline equipment on the energy efficiency program section of the Rocky Mountain Power website. ",null,null,"To be eligible for incentive, the new lighting system must use less energy than the existing/baseline lighting system. ",null,null,"All LED equipment must be listed as qualified on the Rocky Mountain Power website; this includes products on DesignLights Consortium (DLC).","Site-Specific","Site-Specific","Site-Specific",null,null,"Site-Specific","Site-Specific","0.04",null,"kWh",null,"15",null,null,null,null,"RMP Calculation","RMP Calculation","Prescriptive","2","New Construction/Major Renovation","2025-10-30","false",null,null,"true",null,"0.04",null,"0.98","0.87","2022-2023 Idaho wattsmart Business Evaluation"]
[{"$f":"IF(AND(MeasureEffectiveDate>=MeasureTable_ID[[#This Row],[Effective Start Date]],MeasureTable_ID[[#This Row],[Effective Start Date]]<>\"\"),IF(MeasureTable_ID[[#This Row],[Effective End Date]]=\"\",TRUE,IF(MeasureEffectiveDate<=MeasureTable_ID[[#This Row],[Effective End Date]],TRUE,FALSE)))","v":false},{"$f":"MeasureTable_ID[[#This Row],[Measure Name]]&\" | \"&MeasureTable_ID[[#This Row],[Eligible Measure]]","v":"LED Exterior Fixture - Wall Pack - SBDI - v2 - ID | FALSE"},"ID","01112017-028_v2","LED Exterior Fixture - Wall Pack - SBDI - v2 - ID","Lighting","Exterior Lighting","Area Lighting","Wall pack LED fixture installed through Small Business Direct Install. Site-specific energy impact and cost calculations.",2,"Active","2023-03-15","3000-12-31","The baseline for this retrofit measure is assumed as an existing HID (HPS or Metal Halide) wall pack.",null,null,"LED wall pack fixture listed on qualified list",null,null,"All LED equipment must be listed as qualified on the Rocky Mountain Power website; this includes products on the DesignLights Consortium (DLC) Retrofit Kit product lists.","Site-Specific","Site-Specific","Site-Specific",null,null,"Site-Specific","Site-Specific",null,null,"Site-Specific",null,"15",null,null,null,null,"RMP Calculation","RMP Calculation","Prescriptive/Custom","2","Retrofit","2023-01-23","false",null,null,"true",null,null,null,"1","0.95","2021 Idaho wattsmart Business Evaluation"]
[{"$f":"IF(AND(MeasureEffectiveDate>=MeasureTable_ID[[#This Row],[Effective Start Date]],MeasureTable_ID[[#This Row],[Effective Start Date]]<>\"\"),IF(MeasureTable_ID[[#This Row],[Effective End Date]]=\"\",TRUE,IF(MeasureEffectiveDate<=MeasureTable_ID[[#This Row],[Effective End Date]],TRUE,FALSE)))","v":false},{"$f":"MeasureTable_ID[[#This Row],[Measure Name]]&\" | \"&MeasureTable_ID[[#This Row],[Eligible Measure]]","v":"LED High/Low Bay - HO and VHO Fixture Kit - SBDI - v2 - ID | FALSE"},"ID","01112017-025_v2","LED High/Low Bay - HO and VHO Fixture Kit - SBDI - v2 - ID","Lighting","Interior/Exterior Lighting","High and Low Bay","High/low bay LED HO and VHO Fixture Kit. Small Business Direct Install delivery.",2,"Active","2023-03-15","3000-12-31","Existing linear fluorescent HO/VHO fixture",null,null,"High/low bay LED HO and VHO Fixture Kit.",null,null,"All LED equipment must be listed on the qualified equipment list available on the Rocky Mountain Power website (DLC or ENERGY STAR qualification required).","Site-Specific","Site-Specific","Site-Specific",null,null,"Site-Specific","Site-Specific",null,null,"Site-Specific",null,"15",null,null,null,null,"RMP Calculation","RMP Calculation","Prescriptive/Custom","2","Retrofit","2023-01-23","false",null,null,"true",null,null,null,"1","0.95","2021 Idaho wattsmart Business Evaluation"]
[{"$f":"IF(AND(MeasureEffectiveDate>=MeasureTable_ID[[#This Row],[Effective Start Date]],MeasureTable_ID[[#This Row],[Effective Start Date]]<>\"\"),IF(MeasureTable_ID[[#This Row],[Effective End Date]]=\"\",TRUE,IF(MeasureEffectiveDate<=MeasureTable_ID[[#This Row],[Effective End Date]],TRUE,FALSE)))","v":false},{"$f":"MeasureTable_ID[[#This Row],[Measure Name]]&\" | \"&MeasureTable_ID[[#This Row],[Eligible Measure]]","v":"LED High/Low Bay - Retrofit - SBDI - v2 - ID | FALSE"},"ID","01112017-023_v2","LED High/Low Bay - Retrofit - SBDI - v2 - ID","Lighting","Interior/Exterior Lighting","High and Low Bay","High/low bay LED . Installed in a retrofit application with Small Business Direct Install delivery.",2,"Active","2023-03-15","3000-12-31","Existing HID fixture",null,null,"High/low bay LED fixture",null,null,"All LED equipment must be listed on the qualified equipment list available on the Rocky Mountain Power website (DLC or ENERGY STAR qualification required).","Site-Specific","Site-Specific","Site-Specific",null,null,"Site-Specific","Site-Specific",null,null,"Site-Specific",null,"15",null,null,null,null,"RMP Calculation","RMP Calculation","Prescriptive/Custom","2","Retrofit","2023-01-23","false",null,null,"true",null,null,null,"1","0.95","2021 Idaho wattsmart Business Evaluation"]
[{"$f":"IF(AND(MeasureEffectiveDate>=MeasureTable_ID[[#This Row],[Effective Start Date]],MeasureTable_ID[[#This Row],[Effective Start Date]]<>\"\"),IF(MeasureTable_ID[[#This Row],[Effective End Date]]=\"\",TRUE,IF(MeasureEffectiveDate<=MeasureTable_ID[[#This Row],[Effective End Date]],TRUE,FALSE)))","v":false},{"$f":"MeasureTable_ID[[#This Row],[Measure Name]]&\" | \"&MeasureTable_ID[[#This Row],[Eligible Measure]]","v":"Package Lighting - NCMR - v2 - ID | FALSE"},"ID","02102014-002_v2","Package Lighting - NCMR - v2 - ID","Lighting","Interior Lighting","Interior Lighting","Package lighting. Installed in new construction/major renovation application.",1,"Active","2021-11-01","3000-12-31","The baseline wattage for custom new construction/major renovation exterior lighting EEMs is the lesser of: a) energy code required LPD, or b) Wattage of deemed baseline equipment as determined by Rocky Mountain Power",null,null,"The total connected interior lighting power for new construction/major renovation projects must be at least 10% lower than the interior lighting power allowance calculated under the applicable version of the state energy code.",null,null,"Installed lighting equipment (and controls, if applicable) must be eligible as defined in the qualified equipment lists posted on the Rocky Mountain Power website.","Site-Specific","Site-Specific","Site-Specific",null,null,"Site-Specific","Site-Specific","Site-Specific",null,"Site-Specific",null,"15",null,null,null,null,"RMP Calculation","RMP Calculation","Prescriptive/Custom","2","New Construction","2021-01-22","false",null,null,"true",null,null,null,"0.94","0.89","2016-17 Idaho wattsmart Business Evaluation"]
[{"$f":"IF(AND(MeasureEffectiveDate>=MeasureTable_ID[[#This Row],[Effective Start Date]],MeasureTable_ID[[#This Row],[Effective Start Date]]<>\"\"),IF(MeasureTable_ID[[#This Row],[Effective End Date]]=\"\",TRUE,IF(MeasureEffectiveDate<=MeasureTable_ID[[#This Row],[Effective End Date]],TRUE,FALSE)))","v":false},{"$f":"MeasureTable_ID[[#This Row],[Measure Name]]&\" | \"&MeasureTable_ID[[#This Row],[Eligible Measure]]","v":"Package Lighting - Retrofit - v2 - ID | FALSE"},"ID","01092013-006_v2","Package Lighting - Retrofit - v2 - ID","Lighting","Interior Lighting","Interior Lighting","Package lighting. Installed in a retrofit application.",1,"Active","2021-11-01","3000-12-31","Baseline wattage for all retrofit lighting EEMs is the lesser of: a) Wattage of the existing equipment, or b) Wattage of deemed baseline equipment as determined by Rocky Mountain Power..",null,null,"To be eligible for the incentives listed, the new lighting system must use less energy than the existing lighting system replaced or the baseline lighting system as determined by Rocky Mountain Power.",null,null,"Installed lighting equipment (and controls, if applicable) must be eligible as defined in the qualified equipment lists posted on the Rocky Mountain Power website.","Site-Specific","Site-Specific","Site-Specific",null,null,"Site-Specific","Site-Specific","Site-Specific",null,"Site-Specific",null,"15",null,null,null,null,"RMP Calculation","RMP Calculation","Prescriptive/Custom","2","Retrofit","2021-01-22","false",null,null,"true",null,null,null,"0.94","0.89","2016-17 Idaho wattsmart Business Evaluation"]

{"sheet":"EquipmentTable_Retrofit_UT","index":19,"n_rows":131,"n_cols":22,"rows_kept":131,"cut":false,"hidden":true,"merged":[]}
["categoryProposed","equipmentProposed","equipmentProposedSegment","controlMethod","measureRetrofit_Interior_None","measureRetrofit_Interior_Basic","measureRetrofit_Interior_Mid","measureRetrofit_Interior_Advanced","measureRetrofit_Interior_Plug","measureRetrofit_Exterior_None","measureRetrofit_Exterior_Mid","measureRetrofit_Exterior_Advanced","measureRetrofit_Seasonal Exterior_None","measureRetrofit_Seasonal Exterior_Mid","measureRetrofit_Seasonal Exterior_Advanced","measureRetrofit_Street_None","measureRetrofit_Street_Mid","measureRetrofit_Street_Advanced","measureRetrofit_SBL",null,null,"0, 0, 0, 0, 0, 0, 0, 0"]
["Controls Only","Controls Only - Advanced networked",{"$f":"CONCATENATE(\"{L}\",EquipmentTable_Retrofit_UT[[#This Row],[equipmentProposed]])","v":"{L}Controls Only - Advanced networked"}]
["Controls Only","Controls Only - Advanced networked exterior dimming",{"$f":"CONCATENATE(\"{L}\",EquipmentTable_Retrofit_UT[[#This Row],[equipmentProposed]])","v":"{L}Controls Only - Advanced networked exterior dimming"}]
["Controls Only","Controls Only - Basic",{"$f":"CONCATENATE(\"{L}\",EquipmentTable_Retrofit_UT[[#This Row],[equipmentProposed]])","v":"{L}Controls Only - Basic"},null,null,null,null,null,null,null,null,null,null,null,null,null,null,null,null,null,null,"0, 0, 0, 0, 0, 0, 0, 0"]
["Controls Only","Controls Only - Basic exterior dimming",{"$f":"CONCATENATE(\"{L}\",EquipmentTable_Retrofit_UT[[#This Row],[equipmentProposed]])","v":"{L}Controls Only - Basic exterior dimming"},null,null,null,null,null,null,null,null,null,null,null,null,null,null,null,null,null,null,"0, 0, 0, 0, 0, 0, 0, 0"]
["Controls Only","Controls Only - Networked",{"$f":"CONCATENATE(\"{L}\",EquipmentTable_Retrofit_UT[[#This Row],[equipmentProposed]])","v":"{L}Controls Only - Networked"}]
["Controls Only","Controls Only - Re-Commissioning",{"$f":"CONCATENATE(\"{L}\",EquipmentTable_Retrofit_UT[[#This Row],[equipmentProposed]])","v":"{L}Controls Only - Re-Commissioning"},null,null,null,null,null,null,null,null,null,null,null,null,null,null,null,null,null,null,"0, 0, 0, 0, 0, 0, 0, 0"]
["New Fixture","LED Fixture - Bollard",{"$f":"CONCATENATE(\"{L}\",EquipmentTable_Retrofit_UT[[#This Row],[equipmentProposed]])","v":"{L}LED Fixture - Bollard"},"combined","Interior Fixture Replacement - Retrofit - UT","Interior Fixture Replacement - w/ Basic Controls - Retrofit - UT","Interior Fixture Replacement - w/ Networked Lighting Controls - Retrofit - UT","Interior Fixture Replacement - w/ Advanced Networked Lighting Controls - Retrofit - UT","Interior Fixture Retrofit Kit - Plug and Play Control Ready - Retrofit - UT","Exterior Fixture Replacement - Retrofit - UT","Exterior Fixture Replacement - w/ Basic Dimming Controls - Retrofit - UT","Exterior Fixture Replacement - w/ Advanced Networked Dimming Controls - Retrofit - UT","Exterior Fixture Replacement - Seasonal - Retrofit - Large - UT","Exterior Fixture Replacement - w/ Basic Dimming Controls - Seasonal - Retrofit - Large - UT","Exterior Fixture Replacement - w/ Advanced Networked Dimming Controls - Seasonal - Retrofit - Large - UT","Non-eligible fixture - Retrofit - UT","Non-eligible fixture - Retrofit - UT","Non-eligible fixture - Retrofit - UT",null,null,null,"1, 1, 1, 1, 1, 0, 1, 0"]
["New Fixture","LED Fixture - Direct/Indirect",{"$f":"CONCATENATE(\"{L}\",EquipmentTable_Retrofit_UT[[#This Row],[equipmentProposed]])","v":"{L}LED Fixture - Direct/Indirect"},"combined","Interior Fixture Replacement - Retrofit - UT","Interior Fixture Replacement - w/ Basic Controls - Retrofit - UT","Interior Fixture Replacement - w/ Networked Lighting Controls - Retrofit - UT","Interior Fixture Replacement - w/ Advanced Networked Lighting Controls - Retrofit - UT","Interior Fixture Retrofit Kit - Plug and Play Control Ready - Retrofit - UT","Exterior Fixture Replacement - Retrofit - UT","Exterior Fixture Replacement - w/ Basic Dimming Controls - Retrofit - UT","Exterior Fixture Replacement - w/ Advanced Networked Dimming Controls - Retrofit - UT","Exterior Fixture Replacement - Seasonal - Retrofit - Large - UT","Exterior Fixture Replacement - w/ Basic Dimming Controls - Seasonal - Retrofit - Large - UT","Exterior Fixture Replacement - w/ Advanced Networked Dimming Controls - Seasonal - Retrofit - Large - UT","Non-eligible fixture - Retrofit - UT","Non-eligible fixture - Retrofit - UT","Non-eligible fixture - Retrofit - UT"]
["New Fixture","LED Fixture - Downlight",{"$f":"CONCATENATE(\"{L}\",EquipmentTable_Retrofit_UT[[#This Row],[equipmentProposed]])","v":"{L}LED Fixture - Downlight"},"combined","Non-eligible fixture - Retrofit - UT","Non-eligible fixture - Retrofit - UT","Non-eligible fixture - Retrofit - UT","Non-eligible fixture - Retrofit - UT","Non-eligible fixture - Retrofit - UT","Non-eligible fixture - Retrofit - UT","Non-eligible fixture - Retrofit - UT","Non-eligible fixture - Retrofit - UT","Non-eligible fixture - Retrofit - UT","Non-eligible fixture - Retrofit - UT","Non-eligible fixture - Retrofit - UT","Non-eligible fixture - Retrofit - UT","Non-eligible fixture - Retrofit - UT","Non-eligible fixture - Retrofit - UT",null,null,null,"0, 0, 0, 0, 0, 0, 0, 0"]
["New Fixture","LED Fixture - Flood",{"$f":"CONCATENATE(\"{L}\",EquipmentTable_Retrofit_UT[[#This Row],[equipmentProposed]])","v":"{L}LED Fixture - Flood"},"combined","Interior Fixture Replacement - Retrofit - UT","Interior Fixture Replacement - w/ Basic Controls - Retrofit - UT","Interior Fixture Replacement - w/ Networked Lighting Controls - Retrofit - UT","Interior Fixture Replacement - w/ Advanced Networked Lighting Controls - Retrofit - UT","Interior Fixture Retrofit Kit - Plug and Play Control Ready - Retrofit - UT","Exterior Fixture Replacement - Retrofit - UT","Exterior Fixture Replacement - w/ Basic Dimming Controls - Retrofit - UT","Exterior Fixture Replacement - w/ Advanced Networked Dimming Controls - Retrofit - UT","Exterior Fixture Replacement - Seasonal - Retrofit - Large - UT","Exterior Fixture Replacement - w/ Basic Dimming Controls - Seasonal - Retrofit - Large - UT","Exterior Fixture Replacement - w/ Advanced Networked Dimming Controls - Seasonal - Retrofit - Large - UT","Non-eligible fixture - Retrofit - UT","Streetlighting - w/ Basic Dimming Controls - Retrofit - Large - v3 - UT","Streetlighting - w/ Advanced Networked Dimming Controls - Retrofit - Large - UT",null,null,null,"1, 1, 1, 1, 1, 0, 1, 0"]
["New Fixture","LED Fixture - High/Low Bay",{"$f":"CONCATENATE(\"{L}\",EquipmentTable_Retrofit_UT[[#This Row],[equipmentProposed]])","v":"{L}LED Fixture - High/Low Bay"},"combined","Interior Fixture Replacement - Retrofit - UT","Interior Fixture Replacement - w/ Basic Controls - Retrofit - UT","Interior Fixture Replacement - w/ Networked Lighting Controls - Retrofit - UT","Interior Fixture Replacement - w/ Advanced Networked Lighting Controls - Retrofit - UT","Interior Fixture Retrofit Kit - Plug and Play Control Ready - Retrofit - UT","Exterior Fixture Replacement - Retrofit - UT","Exterior Fixture Replacement - w/ Basic Dimming Controls - Retrofit - UT","Exterior Fixture Replacement - w/ Advanced Networked Dimming Controls - Retrofit - UT","Exterior Fixture Replacement - Seasonal - Retrofit - Large - UT","Exterior Fixture Replacement - w/ Basic Dimming Controls - Seasonal - Retrofit - Large - UT","Exterior Fixture Replacement - w/ Advanced Networked Dimming Controls - Seasonal - Retrofit - Large - UT","Non-eligible fixture - Retrofit - UT","Non-eligible fixture - Retrofit - UT","Non-eligible fixture - Retrofit - UT",null,null,null,"1, 1, 1, 1, 1, 0, 1, 0"]
["New Fixture","LED Fixture - Integral Track Head",{"$f":"CONCATENATE(\"{L}\",EquipmentTable_Retrofit_UT[[#This Row],[equipmentProposed]])","v":"{L}LED Fixture - Integral Track Head"},"combined","Interior Fixture Replacement - Retrofit - UT","Interior Fixture Replacement - w/ Basic Controls - Retrofit - UT","Interior Fixture Replacement - w/ Networked Lighting Controls - Retrofit - UT","Interior Fixture Replacement - w/ Advanced Networked Lighting Controls - Retrofit - UT","Interior Fixture Retrofit Kit - Plug and Play Control Ready - Retrofit - UT","Exterior Fixture Replacement - Retrofit - UT","Exterior Fixture Replacement - w/ Basic Dimming Controls - Retrofit - UT","Exterior Fixture Replacement - w/ Advanced Networked Dimming Controls - Retrofit - UT","Exterior Fixture Replacement - Seasonal - Retrofit - Large - UT","Exterior Fixture Replacement - w/ Basic Dimming Controls - Seasonal - Retrofit - Large - UT","Exterior Fixture Replacement - w/ Advanced Networked Dimming Controls - Seasonal - Retrofit - Large - UT","Non-eligible fixture - Retrofit - UT","Non-eligible fixture - Retrofit - UT","Non-eligible fixture - Retrofit - UT",null,null,null,"1, 1, 1, 1, 1, 0, 1, 0"]
["New Fixture","LED Fixture - Parking/Canopy",{"$f":"CONCATENATE(\"{L}\",EquipmentTable_Retrofit_UT[[#This Row],[equipmentProposed]])","v":"{L}LED Fixture - Parking/Canopy"},"combined","Interior Fixture Replacement - Retrofit - UT","Interior Fixture Replacement - w/ Basic Controls - Retrofit - UT","Interior Fixture Replacement - w/ Networked Lighting Controls - Retrofit - UT","Interior Fixture Replacement - w/ Advanced Networked Lighting Controls - Retrofit - UT","Interior Fixture Retrofit Kit - Plug and Play Control Ready - Retrofit - UT","Exterior Fixture Replacement - Retrofit - UT","Exterior Fixture Replacement - w/ Basic Dimming Controls - Retrofit - UT","Exterior Fixture Replacement - w/ Advanced Networked Dimming Controls - Retrofit - UT","Exterior Fixture Replacement - Seasonal - Retrofit - Large - UT","Exterior Fixture Replacement - w/ Basic Dimming Controls - Seasonal - Retrofit - Large - UT","Exterior Fixture Replacement - w/ Advanced Networked Dimming Controls - Seasonal - Retrofit - Large - UT","Non-eligible fixture - Retrofit - UT","Streetlighting - w/ Basic Dimming Controls - Retrofit - Large - v3 - UT","Streetlighting - w/ Advanced Networked Dimming Controls - Retrofit - Large - UT",null,null,null,"1, 1, 1, 1, 1, 0, 1, 0"]
["New Fixture","LED Fixture - Pole Mount",{"$f":"CONCATENATE(\"{L}\",EquipmentTable_Retrofit_UT[[#This Row],[equipmentProposed]])","v":"{L}LED Fixture - Pole Mount"},"combined","Interior Fixture Replacement - Retrofit - UT","Interior Fixture Replacement - w/ Basic Controls - Retrofit - UT","Interior Fixture Replacement - w/ Networked Lighting Controls - Retrofit - UT","Interior Fixture Replacement - w/ Advanced Networked Lighting Controls - Retrofit - UT","Interior Fixture Retrofit Kit - Plug and Play Control Ready - Retrofit - UT","Exterior Fixture Replacement - Retrofit - UT","Exterior Fixture Replacement - w/ Basic Dimming Controls - Retrofit - UT","Exterior Fixture Replacement - w/ Advanced Networked Dimming Controls - Retrofit - UT","Exterior Fixture Replacement - Seasonal - Retrofit - Large - UT","Exterior Fixture Replacement - w/ Basic Dimming Controls - Seasonal - Retrofit - Large - UT","Exterior Fixture Replacement - w/ Advanced Networked Dimming Controls - Seasonal - Retrofit - Large - UT","Non-eligible fixture - Retrofit - UT","Streetlighting - w/ Basic Dimming Controls - Retrofit - Large - v3 - UT","Streetlighting - w/ Advanced Networked Dimming Controls - Retrofit - Large - UT",null,null,null,"1, 1, 1, 1, 1, 0, 1, 0"]
["New Fixture","LED Fixture - Sconce/Wall Wash",{"$f":"CONCATENATE(\"{L}\",EquipmentTable_Retrofit_UT[[#This Row],[equipmentProposed]])","v":"{L}LED Fixture - Sconce/Wall Wash"},"combined","Interior Fixture Replacement - Retrofit - UT","Interior Fixture Replacement - w/ Basic Controls - Retrofit - UT","Interior Fixture Replacement - w/ Networked Lighting Controls - Retrofit - UT","Interior Fixture Replacement - w/ Advanced Networked Lighting Controls - Retrofit - UT","Interior Fixture Retrofit Kit - Plug and Play Control Ready - Retrofit - UT","Exterior Fixture Replacement - Retrofit - UT","Exterior Fixture Replacement - w/ Basic Dimming Controls - Retrofit - UT","Exterior Fixture Replacement - w/ Advanced Networked Dimming Controls - Retrofit - UT","Exterior Fixture Replacement - Seasonal - Retrofit - Large - UT","Exterior Fixture Replacement - w/ Basic Dimming Controls - Seasonal - Retrofit - Large - UT","Exterior Fixture Replacement - w/ Advanced Networked Dimming Controls - Seasonal - Retrofit - Large - UT","Non-eligible fixture - Retrofit - UT","Non-eligible fixture - Retrofit - UT","Non-eligible fixture - Retrofit - UT",null,null,null,"1, 1, 1, 1, 1, 0, 1, 0"]
["New Fixture","LED Fixture - Strip/Wrap",{"$f":"CONCATENATE(\"{L}\",EquipmentTable_Retrofit_UT[[#This Row],[equipmentProposed]])","v":"{L}LED Fixture - Strip/Wrap"},"combined","Interior Fixture Replacement - Retrofit - UT","Interior Fixture Replacement - w/ Basic Controls - Retrofit - UT","Interior Fixture Replacement - w/ Networked Lighting Controls - Retrofit - UT","Interior Fixture Replacement - w/ Advanced Networked Lighting Controls - Retrofit - UT","Interior Fixture Retrofit Kit - Plug and Play Control Ready - Retrofit - UT","Exterior Fixture Replacement - Retrofit - UT","Exterior Fixture Replacement - w/ Basic Dimming Controls - Retrofit - UT","Exterior Fixture Replacement - w/ Advanced Networked Dimming Controls - Retrofit - UT","Exterior Fixture Replacement - Seasonal - Retrofit - Large - UT","Exterior Fixture Replacement - w/ Basic Dimming Controls - Seasonal - Retrofit - Large - UT","Exterior Fixture Replacement - w/ Advanced Networked Dimming Controls - Seasonal - Retrofit - Large - UT","Non-eligible fixture - Retrofit - UT","Non-eligible fixture - Retrofit - UT","Non-eligible fixture - Retrofit - UT",null,null,null,"1, 1, 1, 1, 1, 0, 1, 0"]
["New Fixture","LED Fixture - Surface Mount",{"$f":"CONCATENATE(\"{L}\",EquipmentTable_Retrofit_UT[[#This Row],[equipmentProposed]])","v":"{L}LED Fixture - Surface Mount"},"combined","Interior Fixture Replacement - Retrofit - UT","Interior Fixture Replacement - w/ Basic Controls - Retrofit - UT","Interior Fixture Replacement - w/ Networked Lighting Controls - Retrofit - UT","Interior Fixture Replacement - w/ Advanced Networked Lighting Controls - Retrofit - UT","Interior Fixture Retrofit Kit - Plug and Play Control Ready - Retrofit - UT","Exterior Fixture Replacement - Retrofit - UT","Exterior Fixture Replacement - w/ Basic Dimming Controls - Retrofit - UT","Exterior Fixture Replacement - w/ Advanced Networked Dimming Controls - Retrofit - UT","Exterior Fixture Replacement - Seasonal - Retrofit - Large - UT","Exterior Fixture Replacement - w/ Basic Dimming Controls - Seasonal - Retrofit - Large - UT","Exterior Fixture Replacement - w/ Advanced Networked Dimming Controls - Seasonal - Retrofit - Large - UT","Non-eligible fixture - Retrofit - UT","Non-eligible fixture - Retrofit - UT","Non-eligible fixture - Retrofit - UT",null,null,null,"1, 1, 1, 1, 1, 0, 1, 0"]
["New Fixture","LED Fixture - Troffer",{"$f":"CONCATENATE(\"{L}\",EquipmentTable_Retrofit_UT[[#This Row],[equipmentProposed]])","v":"{L}LED Fixture - Troffer"},"combined","Interior Fixture Replacement - Retrofit - UT","Interior Fixture Replacement - w/ Basic Controls - Retrofit - UT","Interior Fixture Replacement - w/ Networked Lighting Controls - Retrofit - UT","Interior Fixture Replacement - w/ Advanced Networked Lighting Controls - Retrofit - UT","Interior Fixture Retrofit Kit - Plug and Play Control Ready - Retrofit - UT","Exterior Fixture Replacement - Retrofit - UT","Exterior Fixture Replacement - w/ Basic Dimming Controls - Retrofit - UT","Exterior Fixture Replacement - w/ Advanced Networked Dimming Controls - Retrofit - UT","Exterior Fixture Replacement - Seasonal - Retrofit - Large - UT","Exterior Fixture Replacement - w/ Basic Dimming Controls - Seasonal - Retrofit - Large - UT","Exterior Fixture Replacement - w/ Advanced Networked Dimming Controls - Seasonal - Retrofit - Large - UT","Non-eligible fixture - Retrofit - UT","Non-eligible fixture - Retrofit - UT","Non-eligible fixture - Retrofit - UT",null,null,null,"1, 1, 1, 1, 1, 0, 1, 0"]
["New Fixture","LED Fixture - Wall Pack >= 75W",{"$f":"CONCATENATE(\"{L}\",EquipmentTable_Retrofit_UT[[#This Row],[equipmentProposed]])","v":"{L}LED Fixture - Wall Pack >= 75W"},"combined","Non-eligible fixture - Retrofit - UT","Non-eligible fixture - Retrofit - UT","Non-eligible fixture - Retrofit - UT","Non-eligible fixture - Retrofit - UT","Non-eligible fixture - Retrofit - UT","Exterior Fixture Replacement - Retrofit - UT","Exterior Fixture Replacement - w/ Basic Dimming Controls - Retrofit - UT","Exterior Fixture Replacement - w/ Advanced Networked Dimming Controls - Retrofit - UT","Exterior Fixture Replacement - Seasonal - Retrofit - Large - UT","Exterior Fixture Replacement - w/ Basic Dimming Controls - Seasonal - Retrofit - Large - UT","Exterior Fixture Replacement - w/ Advanced Networked Dimming Controls - Seasonal - Retrofit - Large - UT","Non-eligible fixture - Retrofit - UT","Non-eligible fixture - Retrofit - UT","Non-eligible fixture - Retrofit - UT",null,null,null,"0, 0, 0, 1, 1, 1, 1, 0"]
["New Fixture","LED Fixture - Wall Pack > 20 W and < 75 W",{"$f":"CONCATENATE(\"{L}\",EquipmentTable_Retrofit_UT[[#This Row],[equipmentProposed]])","v":"{L}LED Fixture - Wall Pack > 20 W and < 75 W"},"combined","Non-eligible fixture - Retrofit - UT","Non-eligible fixture - Retrofit - UT","Non-eligible fixture - Retrofit - UT","Non-eligible fixture - Retrofit - UT","Non-eligible fixture - Retrofit - UT","Exterior Fixture Replacement - Retrofit - UT","Exterior Fixture Replacement - w/ Basic Dimming Controls - Retrofit - UT","Exterior Fixture Replacement - w/ Advanced Networked Dimming Controls - Retrofit - UT","Exterior Fixture Replacement - Seasonal - Retrofit - Large - UT","Exterior Fixture Replacement - w/ Basic Dimming Controls - Seasonal - Retrofit - Large - UT","Exterior Fixture Replacement - w/ Advanced Networked Dimming Controls - Seasonal - Retrofit - Large - UT","Non-eligible fixture - Retrofit - UT","Non-eligible fixture - Retrofit - UT","Non-eligible fixture - Retrofit - UT",null,null,null,"0, 0, 0, 1, 1, 1, 1, 0"]
["New Fixture (Alt)","LED Fixture - Bollard (Alt)",{"$f":"CONCATENATE(\"{L}\",EquipmentTable_Retrofit_UT[[#This Row],[equipmentProposed]])","v":"{L}LED Fixture - Bollard (Alt)"},"combined",null,null,null,null,null,null,null,null,null,null,null,null,null,null,null,null,null,"1, 1, 1, 1, 0, 0, 1, 0"]
["New Fixture (Alt)","LED Fixture - Direct/Indirect (Alt)",{"$f":"CONCATENATE(\"{L}\",EquipmentTable_Retrofit_UT[[#This Row],[equipmentProposed]])","v":"{L}LED Fixture - Direct/Indirect (Alt)"},"combined",null,null,null,null,null,null,null,null,null,null,null,null,null,null,null,null,null,"1, 1, 1, 1, 0, 0, 1, 0"]
["New Fixture (Alt)","LED Fixture - Downlight (Alt)",{"$f":"CONCATENATE(\"{L}\",EquipmentTable_Retrofit_UT[[#This Row],[equipmentProposed]])","v":"{L}LED Fixture - Downlight (Alt)"},"combined",null,null,null,null,null,null,null,null,null,null,null,null,null,null,null,null,null,"0, 0, 0, 0, 0, 0, 0, 0"]
["New Fixture (Alt)","LED Fixture - Flood (Alt)",{"$f":"CONCATENATE(\"{L}\",EquipmentTable_Retrofit_UT[[#This Row],[equipmentProposed]])","v":"{L}LED Fixture - Flood (Alt)"},"combined",null,null,null,null,null,null,null,null,null,null,null,null,null,null,null,null,null,"1, 1, 1, 1, 0, 0, 1, 0"]
["New Fixture (Alt)","LED Fixture - High/Low Bay (Alt)",{"$f":"CONCATENATE(\"{L}\",EquipmentTable_Retrofit_UT[[#This Row],[equipmentProposed]])","v":"{L}LED Fixture - High/Low Bay (Alt)"},"combined",null,null,null,null,null,null,null,null,null,null,null,null,null,null,null,null,null,"1, 1, 1, 1, 0, 0, 1, 0"]
["New Fixture (Alt)","LED Fixture - Integral Track Head (Alt)",{"$f":"CONCATENATE(\"{L}\",EquipmentTable_Retrofit_UT[[#This Row],[equipmentProposed]])","v":"{L}LED Fixture - Integral Track Head (Alt)"},"combined",null,null,null,null,null,null,null,null,null,null,null,null,null,null,null,null,null,"1, 1, 1, 1, 0, 0, 1, 0"]
["New Fixture (Alt)","LED Fixture - Parking/Canopy (Alt)",{"$f":"CONCATENATE(\"{L}\",EquipmentTable_Retrofit_UT[[#This Row],[equipmentProposed]])","v":"{L}LED Fixture - Parking/Canopy (Alt)"},"combined",null,null,null,null,null,null,null,null,null,null,null,null,null,null,null,null,null,"1, 1, 1, 1, 0, 0, 1, 0"]
["New Fixture (Alt)","LED Fixture - Pole Mount (Alt)",{"$f":"CONCATENATE(\"{L}\",EquipmentTable_Retrofit_UT[[#This Row],[equipmentProposed]])","v":"{L}LED Fixture - Pole Mount (Alt)"},"combined",null,null,null,null,null,null,null,null,null,null,null,null,null,null,null,null,null,"1, 1, 1, 1, 0, 0, 1, 0"]
["New Fixture (Alt)","LED Fixture - Sconce/Wall Wash (Alt)",{"$f":"CONCATENATE(\"{L}\",EquipmentTable_Retrofit_UT[[#This Row],[equipmentProposed]])","v":"{L}LED Fixture - Sconce/Wall Wash (Alt)"},"combined",null,null,null,null,null,null,null,null,null,null,null,null,null,null,null,null,null,"1, 1, 1, 1, 0, 0, 1, 0"]
["New Fixture (Alt)","LED Fixture - Strip/Wrap (Alt)",{"$f":"CONCATENATE(\"{L}\",EquipmentTable_Retrofit_UT[[#This Row],[equipmentProposed]])","v":"{L}LED Fixture - Strip/Wrap (Alt)"},"combined",null,null,null,null,null,null,null,null,null,null,null,null,null,null,null,null,null,"1, 1, 1, 1, 0, 0, 1, 0"]
["New Fixture (Alt)","LED Fixture - Surface Mount (Alt)",{"$f":"CONCATENATE(\"{L}\",EquipmentTable_Retrofit_UT[[#This Row],[equipmentProposed]])","v":"{L}LED Fixture - Surface Mount (Alt)"},"combined",null,null,null,null,null,null,null,null,null,null,null,null,null,null,null,null,null,"1, 1, 1, 1, 0, 0, 1, 0"]
["New Fixture (Alt)","LED Fixture - Troffer (Alt)",{"$f":"CONCATENATE(\"{L}\",EquipmentTable_Retrofit_UT[[#This Row],[equipmentProposed]])","v":"{L}LED Fixture - Troffer (Alt)"},"combined",null,null,null,null,null,null,null,null,null,null,null,null,null,null,null,null,null,"1, 1, 1, 1, 0, 0, 1, 0"]
["Retrofit Kit","LED Retrofit Kit - Bollard",{"$f":"CONCATENATE(\"{L}\",EquipmentTable_Retrofit_UT[[#This Row],[equipmentProposed]])","v":"{L}LED Retrofit Kit - Bollard"},"combined","Interior Fixture Retrofit Kit - Retrofit - UT","Interior Fixture Retrofit Kit - w/ Basic Controls - Retrofit - UT","Interior Fixture Retrofit Kit - w/ Networked Lighting Controls - Retrofit - UT","Interior Fixture Retrofit Kit - w/ Advanced Networked Lighting Controls - Retrofit - UT","Interior Fixture Retrofit Kit - Plug and Play Control Ready - Retrofit - UT","Exterior Fixture Retrofit Kit - Retrofit - UT","Exterior Fixture Retrofit Kit - w/ Basic Dimming Controls - Retrofit - UT","Exterior Fixture Retrofit Kit - w/ Advanced Networked Dimming Controls - Retrofit - UT","Exterior Fixture Retrofit Kit - Seasonal - Retrofit - Large - UT","Exterior Fixture Retrofit Kit - w/ Basic Dimming Controls - Seasonal - Retrofit - Large - UT","Exterior Fixture Retrofit Kit - w/ Advanced Networked Dimming Controls - Seasonal - Retrofit - Large - UT","Non-eligible fixture - Retrofit - UT","Non-eligible fixture - Retrofit - UT","Non-eligible fixture - Retrofit - UT",null,null,null,"1, 1, 1, 1, 1, 0, 1, 0"]
["Retrofit Kit","LED Retrofit Kit - Direct/Indirect",{"$f":"CONCATENATE(\"{L}\",EquipmentTable_Retrofit_UT[[#This Row],[equipmentProposed]])","v":"{L}LED Retrofit Kit - Direct/Indirect"},"combined","Interior Fixture Retrofit Kit - Retrofit - UT","Interior Fixture Retrofit Kit - w/ Basic Controls - Retrofit - UT","Interior Fixture Retrofit Kit - w/ Networked Lighting Controls - Retrofit - UT","Interior Fixture Retrofit Kit - w/ Advanced Networked Lighting Controls - Retrofit - UT","Interior Fixture Retrofit Kit - Plug and Play Control Ready - Retrofit - UT","Exterior Fixture Retrofit Kit - Retrofit - UT","Exterior Fixture Retrofit Kit - w/ Basic Dimming Controls - Retrofit - UT","Exterior Fixture Retrofit Kit - w/ Advanced Networked Dimming Controls - Retrofit - UT","Exterior Fixture Retrofit Kit - Seasonal - Retrofit - Large - UT","Exterior Fixture Retrofit Kit - w/ Basic Dimming Controls - Seasonal - Retrofit - Large - UT","Exterior Fixture Retrofit Kit - w/ Advanced Networked Dimming Controls - Seasonal - Retrofit - Large - UT","Non-eligible fixture - Retrofit - UT","Non-eligible fixture - Retrofit - UT","Non-eligible fixture - Retrofit - UT",null,null,null,"1, 1, 1, 1, 1, 1, 1, 0"]
["Retrofit Kit","LED Retrofit Kit - Downlight",{"$f":"CONCATENATE(\"{L}\",EquipmentTable_Retrofit_UT[[#This Row],[equipmentProposed]])","v":"{L}LED Retrofit Kit - Downlight"},"combined","Non-eligible fixture - Retrofit - UT","Non-eligible fixture - Retrofit - UT","Non-eligible fixture - Retrofit - UT","Non-eligible fixture - Retrofit - UT","Non-eligible fixture - Retrofit - UT","Non-eligible fixture - Retrofit - UT","Non-eligible fixture - Retrofit - UT","Non-eligible fixture - Retrofit - UT","Non-eligible fixture - Retrofit - UT","Non-eligible fixture - Retrofit - UT","Non-eligible fixture - Retrofit - UT","Non-eligible fixture - Retrofit - UT","Non-eligible fixture - Retrofit - UT","Non-eligible fixture - Retrofit - UT",null,null,null,"0, 0, 0, 0, 0, 0, 0, 0"]
["Retrofit Kit","LED Retrofit Kit - Flood",{"$f":"CONCATENATE(\"{L}\",EquipmentTable_Retrofit_UT[[#This Row],[equipmentProposed]])","v":"{L}LED Retrofit Kit - Flood"},"combined","Interior Fixture Retrofit Kit - Retrofit - UT","Interior Fixture Retrofit Kit - w/ Basic Controls - Retrofit - UT","Interior Fixture Retrofit Kit - w/ Networked Lighting Controls - Retrofit - UT","Interior Fixture Retrofit Kit - w/ Advanced Networked Lighting Controls - Retrofit - UT","Interior Fixture Retrofit Kit - Plug and Play Control Ready - Retrofit - UT","Exterior Fixture Retrofit Kit - Retrofit - UT","Exterior Fixture Retrofit Kit - w/ Basic Dimming Controls - Retrofit - UT","Exterior Fixture Retrofit Kit - w/ Advanced Networked Dimming Controls - Retrofit - UT","Exterior Fixture Retrofit Kit - Seasonal - Retrofit - Large - UT","Exterior Fixture Retrofit Kit - w/ Basic Dimming Controls - Seasonal - Retrofit - Large - UT","Exterior Fixture Retrofit Kit - w/ Advanced Networked Dimming Controls - Seasonal - Retrofit - Large - UT","Non-eligible fixture - Retrofit - UT","Streetlighting - w/ Basic Dimming Controls - Retrofit - Large - v3 - UT","Streetlighting - w/ Advanced Networked Dimming Controls - Retrofit - Large - UT",null,null,null,"1, 1, 1, 1, 1, 0, 1, 0"]
["Retrofit Kit","LED Retrofit Kit - High/Low Bay",{"$f":"CONCATENATE(\"{L}\",EquipmentTable_Retrofit_UT[[#This Row],[equipmentProposed]])","v":"{L}LED Retrofit Kit - High/Low Bay"},"combined","Interior Fixture Retrofit Kit - Retrofit - UT","Interior Fixture Retrofit Kit - w/ Basic Controls - Retrofit - UT","Interior Fixture Retrofit Kit - w/ Networked Lighting Controls - Retrofit - UT","Interior Fixture Retrofit Kit - w/ Advanced Networked Lighting Controls - Retrofit - UT","Interior Fixture Retrofit Kit - Plug and Play Control Ready - Retrofit - UT","Exterior Fixture Retrofit Kit - Retrofit - UT","Exterior Fixture Retrofit Kit - w/ Basic Dimming Controls - Retrofit - UT","Exterior Fixture Retrofit Kit - w/ Advanced Networked Dimming Controls - Retrofit - UT","Exterior Fixture Retrofit Kit - Seasonal - Retrofit - Large - UT","Exterior Fixture Retrofit Kit - w/ Basic Dimming Controls - Seasonal - Retrofit - Large - UT","Exterior Fixture Retrofit Kit - w/ Advanced Networked Dimming Controls - Seasonal - Retrofit - Large - UT","Non-eligible fixture - Retrofit - UT","Non-eligible fixture - Retrofit - UT","Non-eligible fixture - Retrofit - UT",null,null,null,"1, 1, 1, 1, 1, 0, 1, 0"]
["Retrofit Kit","LED Retrofit Kit - Integral Track Head",{"$f":"CONCATENATE(\"{L}\",EquipmentTable_Retrofit_UT[[#This Row],[equipmentProposed]])","v":"{L}LED Retrofit Kit - Integral Track Head"},"combined","Interior Fixture Retrofit Kit - Retrofit - UT","Interior Fixture Retrofit Kit - w/ Basic Controls - Retrofit - UT","Interior Fixture Retrofit Kit - w/ Networked Lighting Controls - Retrofit - UT","Interior Fixture Retrofit Kit - w/ Advanced Networked Lighting Controls - Retrofit - UT","Interior Fixture Retrofit Kit - Plug and Play Control Ready - Retrofit - UT","Exterior Fixture Retrofit Kit - Retrofit - UT","Exterior Fixture Retrofit Kit - w/ Basic Dimming Controls - Retrofit - UT","Exterior Fixture Retrofit Kit - w/ Advanced Networked Dimming Controls - Retrofit - UT","Exterior Fixture Retrofit Kit - Seasonal - Retrofit - Large - UT","Exterior Fixture Retrofit Kit - w/ Basic Dimming Controls - Seasonal - Retrofit - Large - UT","Exterior Fixture Retrofit Kit - w/ Advanced Networked Dimming Controls - Seasonal - Retrofit - Large - UT","Non-eligible fixture - Retrofit - UT","Non-eligible fixture - Retrofit - UT","Non-eligible fixture - Retrofit - UT",null,null,null,"1, 1, 1, 1, 1, 0, 1, 0"]
["Retrofit Kit","LED Retrofit Kit - Linear Ambient",{"$f":"CONCATENATE(\"{L}\",EquipmentTable_Retrofit_UT[[#This Row],[equipmentProposed]])","v":"{L}LED Retrofit Kit - Linear Ambient"},"combined","Interior Fixture Retrofit Kit - Retrofit - UT","Interior Fixture Retrofit Kit - w/ Basic Controls - Retrofit - UT","Interior Fixture Retrofit Kit - w/ Networked Lighting Controls - Retrofit - UT","Interior Fixture Retrofit Kit - w/ Advanced Networked Lighting Controls - Retrofit - UT","Interior Fixture Retrofit Kit - Plug and Play Control Ready - Retrofit - UT","Exterior Fixture Retrofit Kit - Retrofit - UT","Exterior Fixture Retrofit Kit - w/ Basic Dimming Controls - Retrofit - UT","Exterior Fixture Retrofit Kit - w/ Advanced Networked Dimming Controls - Retrofit - UT","Exterior Fixture Retrofit Kit - Seasonal - Retrofit - Large - UT","Exterior Fixture Retrofit Kit - w/ Basic Dimming Controls - Seasonal - Retrofit - Large - UT","Exterior Fixture Retrofit Kit - w/ Advanced Networked Dimming Controls - Seasonal - Retrofit - Large - UT","Non-eligible fixture - Retrofit - UT","Non-eligible fixture - Retrofit - UT","Non-eligible fixture - Retrofit - UT",null,null,null,"1, 1, 1, 1, 1, 1, 1, 0"]
["Retrofit Kit","LED Retrofit Kit - Parking/Canopy",{"$f":"CONCATENATE(\"{L}\",EquipmentTable_Retrofit_UT[[#This Row],[equipmentProposed]])","v":"{L}LED Retrofit Kit - Parking/Canopy"},"combined","Interior Fixture Retrofit Kit - Retrofit - UT","Interior Fixture Retrofit Kit - w/ Basic Controls - Retrofit - UT","Interior Fixture Retrofit Kit - w/ Networked Lighting Controls - Retrofit - UT","Interior Fixture Retrofit Kit - w/ Advanced Networked Lighting Controls - Retrofit - UT","Interior Fixture Retrofit Kit - Plug and Play Control Ready - Retrofit - UT","Exterior Fixture Retrofit Kit - Retrofit - UT","Exterior Fixture Retrofit Kit - w/ Basic Dimming Controls - Retrofit - UT","Exterior Fixture Retrofit Kit - w/ Advanced Networked Dimming Controls - Retrofit - UT","Exterior Fixture Retrofit Kit - Seasonal - Retrofit - Large - UT","Exterior Fixture Retrofit Kit - w/ Basic Dimming Controls - Seasonal - Retrofit - Large - UT","Exterior Fixture Retrofit Kit - w/ Advanced Networked Dimming Controls - Seasonal - Retrofit - Large - UT","Non-eligible fixture - Retrofit - UT","Streetlighting - w/ Basic Dimming Controls - Retrofit - Large - v3 - UT","Streetlighting - w/ Advanced Networked Dimming Controls - Retrofit - Large - UT",null,null,null,"1, 1, 1, 1, 1, 0, 1, 0"]
["Retrofit Kit","LED Retrofit Kit - Pole Mount",{"$f":"CONCATENATE(\"{L}\",EquipmentTable_Retrofit_UT[[#This Row],[equipmentProposed]])","v":"{L}LED Retrofit Kit - Pole Mount"},"combined","Interior Fixture Retrofit Kit - Retrofit - UT","Interior Fixture Retrofit Kit - w/ Basic Controls - Retrofit - UT","Interior Fixture Retrofit Kit - w/ Networked Lighting Controls - Retrofit - UT","Interior Fixture Retrofit Kit - w/ Advanced Networked Lighting Controls - Retrofit - UT","Interior Fixture Retrofit Kit - Plug and Play Control Ready - Retrofit - UT","Exterior Fixture Retrofit Kit - Retrofit - UT","Exterior Fixture Retrofit Kit - w/ Basic Dimming Controls - Retrofit - UT","Exterior Fixture Retrofit Kit - w/ Advanced Networked Dimming Controls - Retrofit - UT","Exterior Fixture Retrofit Kit - Seasonal - Retrofit - Large - UT","Exterior Fixture Retrofit Kit - w/ Basic Dimming Controls - Seasonal - Retrofit - Large - UT","Exterior Fixture Retrofit Kit - w/ Advanced Networked Dimming Controls - Seasonal - Retrofit - Large - UT","Non-eligible fixture - Retrofit - UT","Streetlighting - w/ Basic Dimming Controls - Retrofit - Large - v3 - UT","Streetlighting - w/ Advanced Networked Dimming Controls - Retrofit - Large - UT",null,null,null,"1, 1, 1, 1, 1, 0, 1, 0"]
["Retrofit Kit","LED Retrofit Kit - Sconce/Wall Wash",{"$f":"CONCATENATE(\"{L}\",EquipmentTable_Retrofit_UT[[#This Row],[equipmentProposed]])","v":"{L}LED Retrofit Kit - Sconce/Wall Wash"},"combined","Interior Fixture Retrofit Kit - Retrofit - UT","Interior Fixture Retrofit Kit - w/ Basic Controls - Retrofit - UT","Interior Fixture Retrofit Kit - w/ Networked Lighting Controls - Retrofit - UT","Interior Fixture Retrofit Kit - w/ Advanced Networked Lighting Controls - Retrofit - UT","Interior Fixture Retrofit Kit - Plug and Play Control Ready - Retrofit - UT","Exterior Fixture Retrofit Kit - Retrofit - UT","Exterior Fixture Retrofit Kit - w/ Basic Dimming Controls - Retrofit - UT","Exterior Fixture Retrofit Kit - w/ Advanced Networked Dimming Controls - Retrofit - UT","Exterior Fixture Retrofit Kit - Seasonal - Retrofit - Large - UT","Exterior Fixture Retrofit Kit - w/ Basic Dimming Controls - Seasonal - Retrofit - Large - UT","Exterior Fixture Retrofit Kit - w/ Advanced Networked Dimming Controls - Seasonal - Retrofit - Large - UT","Non-eligible fixture - Retrofit - UT","Non-eligible fixture - Retrofit - UT","Non-eligible fixture - Retrofit - UT",null,null,null,"1, 1, 1, 1, 1, 0, 1, 0"]
["Retrofit Kit","LED Retrofit Kit - Strip/Wrap",{"$f":"CONCATENATE(\"{L}\",EquipmentTable_Retrofit_UT[[#This Row],[equipmentProposed]])","v":"{L}LED Retrofit Kit - Strip/Wrap"},"combined","Interior Fixture Retrofit Kit - Retrofit - UT","Interior Fixture Retrofit Kit - w/ Basic Controls - Retrofit - UT","Interior Fixture Retrofit Kit - w/ Networked Lighting Controls - Retrofit - UT","Interior Fixture Retrofit Kit - w/ Advanced Networked Lighting Controls - Retrofit - UT","Interior Fixture Retrofit Kit - Plug and Play Control Ready - Retrofit - UT","Exterior Fixture Retrofit Kit - Retrofit - UT","Exterior Fixture Retrofit Kit - w/ Basic Dimming Controls - Retrofit - UT","Exterior Fixture Retrofit Kit - w/ Advanced Networked Dimming Controls - Retrofit - UT","Exterior Fixture Retrofit Kit - Seasonal - Retrofit - Large - UT","Exterior Fixture Retrofit Kit - w/ Basic Dimming Controls - Seasonal - Retrofit - Large - UT","Exterior Fixture Retrofit Kit - w/ Advanced Networked Dimming Controls - Seasonal - Retrofit - Large - UT","Non-eligible fixture - Retrofit - UT","Non-eligible fixture - Retrofit - UT","Non-eligible fixture - Retrofit - UT",null,null,null,"1, 1, 1, 1, 1, 1, 1, 0"]
["Retrofit Kit","LED Retrofit Kit - Surface Mount",{"$f":"CONCATENATE(\"{L}\",EquipmentTable_Retrofit_UT[[#This Row],[equipmentProposed]])","v":"{L}LED Retrofit Kit - Surface Mount"},"combined","Interior Fixture Retrofit Kit - Retrofit - UT","Interior Fixture Retrofit Kit - w/ Basic Controls - Retrofit - UT","Interior Fixture Retrofit Kit - w/ Networked Lighting Controls - Retrofit - UT","Interior Fixture Retrofit Kit - w/ Advanced Networked Lighting Controls - Retrofit - UT","Interior Fixture Retrofit Kit - Plug and Play Control Ready - Retrofit - UT","Exterior Fixture Retrofit Kit - Retrofit - UT","Exterior Fixture Retrofit Kit - w/ Basic Dimming Controls - Retrofit - UT","Exterior Fixture Retrofit Kit - w/ Advanced Networked Dimming Controls - Retrofit - UT","Exterior Fixture Retrofit Kit - Seasonal - Retrofit - Large - UT","Exterior Fixture Retrofit Kit - w/ Basic Dimming Controls - Seasonal - Retrofit - Large - UT","Exterior Fixture Retrofit Kit - w/ Advanced Networked Dimming Controls - Seasonal - Retrofit - Large - UT","Non-eligible fixture - Retrofit - UT","Non-eligible fixture - Retrofit - UT","Non-eligible fixture - Retrofit - UT",null,null,null,"1, 1, 1, 1, 1, 1, 1, 0"]
["Retrofit Kit","LED Retrofit Kit - Troffer",{"$f":"CONCATENATE(\"{L}\",EquipmentTable_Retrofit_UT[[#This Row],[equipmentProposed]])","v":"{L}LED Retrofit Kit - Troffer"},"combined","Interior Fixture Retrofit Kit - Retrofit - UT","Interior Fixture Retrofit Kit - w/ Basic Controls - Retrofit - UT","Interior Fixture Retrofit Kit - w/ Networked Lighting Controls - Retrofit - UT","Interior Fixture Retrofit Kit - w/ Advanced Networked Lighting Controls - Retrofit - UT","Interior Fixture Retrofit Kit - Plug and Play Control Ready - Retrofit - UT","Exterior Fixture Retrofit Kit - Retrofit - UT","Exterior Fixture Retrofit Kit - w/ Basic Dimming Controls - Retrofit - UT","Exterior Fixture Retrofit Kit - w/ Advanced Networked Dimming Controls - Retrofit - UT","Exterior Fixture Retrofit Kit - Seasonal - Retrofit - Large - UT","Exterior Fixture Retrofit Kit - w/ Basic Dimming Controls - Seasonal - Retrofit - Large - UT","Exterior Fixture Retrofit Kit - w/ Advanced Networked Dimming Controls - Seasonal - Retrofit - Large - UT","Non-eligible fixture - Retrofit - UT","Non-eligible fixture - Retrofit - UT","Non-eligible fixture - Retrofit - UT",null,null,null,"1, 1, 1, 1, 1, 1, 1, 0"]
["Retrofit Kit","LED Retrofit Kit - Troffer Volumetric Kit",{"$f":"CONCATENATE(\"{L}\",EquipmentTable_Retrofit_UT[[#This Row],[equipmentProposed]])","v":"{L}LED Retrofit Kit - Troffer Volumetric Kit"},"combined","Interior Fixture Retrofit Kit - Retrofit - UT","Interior Fixture Retrofit Kit - w/ Basic Controls - Retrofit - UT","Interior Fixture Retrofit Kit - w/ Networked Lighting Controls - Retrofit - UT","Interior Fixture Retrofit Kit - w/ Advanced Networked Lighting Controls - Retrofit - UT","Interior Fixture Retrofit Kit - Plug and Play Control Ready - Retrofit - UT","Exterior Fixture Retrofit Kit - Retrofit - UT","Exterior Fixture Retrofit Kit - w/ Basic Dimming Controls - Retrofit - UT","Exterior Fixture Retrofit Kit - w/ Advanced Networked Dimming Controls - Retrofit - UT","Exterior Fixture Retrofit Kit - Seasonal - Retrofit - Large - UT","Exterior Fixture Retrofit Kit - w/ Basic Dimming Controls - Seasonal - Retrofit - Large - UT","Exterior Fixture Retrofit Kit - w/ Advanced Networked Dimming Controls - Seasonal - Retrofit - Large - UT","Non-eligible fixture - Retrofit - UT","Non-eligible fixture - Retrofit - UT","Non-eligible fixture - Retrofit - UT",null,null,null,"1, 1, 1, 1, 1, 1, 1, 0"]
["Retrofit Kit","LED Retrofit Kit - Wall Pack",{"$f":"CONCATENATE(\"{L}\",EquipmentTable_Retrofit_UT[[#This Row],[equipmentProposed]])","v":"{L}LED Retrofit Kit - Wall Pack"},"combined","Non-eligible fixture - Retrofit - UT","Non-eligible fixture - Retrofit - UT","Non-eligible fixture - Retrofit - UT","Non-eligible fixture - Retrofit - UT","Non-eligible fixture - Retrofit - UT","Exterior Fixture Retrofit Kit - Retrofit - UT","Exterior Fixture Retrofit Kit - w/ Basic Dimming Controls - Retrofit - UT","Exterior Fixture Retrofit Kit - w/ Advanced Networked Dimming Controls - Retrofit - UT","Exterior Fixture Retrofit Kit - Seasonal - Retrofit - Large - UT","Exterior Fixture Retrofit Kit - w/ Basic Dimming Controls - Seasonal - Retrofit - Large - UT","Exterior Fixture Retrofit Kit - w/ Advanced Networked Dimming Controls - Seasonal - Retrofit - Large - UT","Non-eligible fixture - Retrofit - UT","Non-eligible fixture - Retrofit - UT","Non-eligible fixture - Retrofit - UT",null,null,null,"1, 1, 1, 1, 1, 0, 1, 0"]
["Non-General Illumination","LED Sign - Channel Letter",{"$f":"CONCATENATE(\"{L}\",EquipmentTable_Retrofit_UT[[#This Row],[equipmentProposed]])","v":"{L}LED Sign - Channel Letter"},"combined","Interior Lighting - Custom - Retrofit - UT","Interior Lighting - Custom - w/ Basic Controls - Retrofit - UT","Interior Lighting - Custom - w/ Networked Lighting Controls - Retrofit - UT","Interior Lighting - Custom - w/ Advanced Networked Lighting Controls - Retrofit - UT","Non-eligible fixture - Retrofit - UT","Exterior Lighting - Custom - Retrofit - UT","Exterior Lighting - Custom - w/ Basic Dimming Controls - Retrofit - UT","Exterior Lighting - Custom - w/ Basic Dimming Controls - Retrofit - UT","Exterior Lighting - Custom - Retrofit - UT","Exterior Lighting - Custom - w/ Basic Dimming Controls - Retrofit - UT","Exterior Lighting - Custom - w/ Basic Dimming Controls - Retrofit - UT","Non-eligible fixture - Retrofit - UT","Non-eligible fixture - Retrofit - UT","Non-eligible fixture - Retrofit - UT",null,null,null,"1, 1, 2, 1, 1, 0, 0, 0"]
["Non-General Illumination","LED Sign - Marquee/Cabinet",{"$f":"CONCATENATE(\"{L}\",EquipmentTable_Retrofit_UT[[#This Row],[equipmentProposed]])","v":"{L}LED Sign - Marquee/Cabinet"},"combined","Interior Lighting - Custom - Retrofit - UT","Interior Lighting - Custom - w/ Basic Controls - Retrofit - UT","Interior Lighting - Custom - w/ Networked Lighting Controls - Retrofit - UT","Interior Lighting - Custom - w/ Advanced Networked Lighting Controls - Retrofit - UT","Non-eligible fixture - Retrofit - UT","Exterior Lighting - Custom - Retrofit - UT","Exterior Lighting - Custom - w/ Basic Dimming Controls - Retrofit - UT","Exterior Lighting - Custom - w/ Basic Dimming Controls - Retrofit - UT","Exterior Lighting - Custom - Retrofit - UT","Exterior Lighting - Custom - w/ Basic Dimming Controls - Retrofit - UT","Exterior Lighting - Custom - w/ Basic Dimming Controls - Retrofit - UT","Non-eligible fixture - Retrofit - UT","Non-eligible fixture - Retrofit - UT","Non-eligible fixture - Retrofit - UT",null,null,null,"1, 1, 2, 1, 1, 0, 0, 0"]
["Non-General Illumination","LED Sign - LED Message Center Lamps",{"$f":"CONCATENATE(\"{L}\",EquipmentTable_Retrofit_UT[[#This Row],[equipmentProposed]])","v":"{L}LED Sign - LED Message Center Lamps"},"combined","Interior Lighting - Custom - Retrofit - UT","Interior Lighting - Custom - w/ Basic Controls - Retrofit - UT","Interior Lighting - Custom - w/ Networked Lighting Controls - Retrofit - UT","Interior Lighting - Custom - w/ Advanced Networked Lighting Controls - Retrofit - UT","Non-eligible fixture - Retrofit - UT","Exterior Lighting - Custom - Retrofit - UT","Exterior Lighting - Custom - w/ Basic Dimming Controls - Retrofit - UT","Exterior Lighting - Custom - w/ Basic Dimming Controls - Retrofit - UT","Exterior Lighting - Custom - Retrofit - UT","Exterior Lighting - Custom - w/ Basic Dimming Controls - Retrofit - UT","Exterior Lighting - Custom - w/ Basic Dimming Controls - Retrofit - UT","Non-eligible fixture - Retrofit - UT","Non-eligible fixture - Retrofit - UT","Non-eligible fixture - Retrofit - UT",null,null,null,"1, 1, 2, 1, 1, 0, 0, 0"]
["Non-General Illumination","LED Case Lighting – Freezer Case",{"$f":"CONCATENATE(\"{L}\",EquipmentTable_Retrofit_UT[[#This Row],[equipmentProposed]])","v":"{L}LED Case Lighting – Freezer Case"},"combined","Interior Lighting - Custom - Retrofit - UT","Interior Lighting - Custom - w/ Basic Controls - Retrofit - UT","Interior Lighting - Custom - w/ Networked Lighting Controls - Retrofit - UT","Interior Lighting - Custom - w/ Advanced Networked Lighting Controls - Retrofit - UT","Non-eligible fixture - Retrofit - UT","Non-eligible fixture - Retrofit - UT","Non-eligible fixture - Retrofit - UT","Non-eligible fixture - Retrofit - UT","Non-eligible fixture - Retrofit - UT","Non-eligible fixture - Retrofit - UT","Non-eligible fixture - Retrofit - UT","Non-eligible fixture - Retrofit - UT","Non-eligible fixture - Retrofit - UT","Non-eligible fixture - Retrofit - UT",null,null,null,"1, 1, 2, 1, 1, 0, 0, 0"]
["Non-General Illumination","LED Case Lighting – Refrigerated Case",{"$f":"CONCATENATE(\"{L}\",EquipmentTable_Retrofit_UT[[#This Row],[equipmentProposed]])","v":"{L}LED Case Lighting – Refrigerated Case"},"combined","Interior Lighting - Custom - Retrofit - UT","Interior Lighting - Custom - w/ Basic Controls - Retrofit - UT","Interior Lighting - Custom - w/ Networked Lighting Controls - Retrofit - UT","Interior Lighting - Custom - w/ Advanced Networked Lighting Controls - Retrofit - UT","Non-eligible fixture - Retrofit - UT","Non-eligible fixture - Retrofit - UT","Non-eligible fixture - Retrofit - UT","Non-eligible fixture - Retrofit - UT","Non-eligible fixture - Retrofit - UT","Non-eligible fixture - Retrofit - UT","Non-eligible fixture - Retrofit - UT","Non-eligible fixture - Retrofit - UT","Non-eligible fixture - Retrofit - UT","Non-eligible fixture - Retrofit - UT",null,null,null,"1, 1, 2, 1, 1, 0, 0, 0"]
["Non-General Illumination","LED Exit Sign",{"$f":"CONCATENATE(\"{L}\",EquipmentTable_Retrofit_UT[[#This Row],[equipmentProposed]])","v":"{L}LED Exit Sign"},"combined","Non-eligible fixture - Retrofit - UT","Non-eligible fixture - Retrofit - UT","Non-eligible fixture - Retrofit - UT","Non-eligible fixture - Retrofit - UT","Non-eligible fixture - Retrofit - UT","Non-eligible fixture - Retrofit - UT","Non-eligible fixture - Retrofit - UT","Non-eligible fixture - Retrofit - UT","Non-eligible fixture - Retrofit - UT","Non-eligible fixture - Retrofit - UT","Non-eligible fixture - Retrofit - UT","Non-eligible fixture - Retrofit - UT","Non-eligible fixture - Retrofit - UT","Non-eligible fixture - Retrofit - UT",null,null,null,"0, 0, 0, 0, 0, 0, 0, 0"]
["Non-General Illumination (Alt)","LED Sign - Channel Letter (Alt)",{"$f":"CONCATENATE(\"{L}\",EquipmentTable_Retrofit_UT[[#This Row],[equipmentProposed]])","v":"{L}LED Sign - Channel Letter (Alt)"},"combined",null,null,null,null,null,null,null,null,null,null,null,null,null,null,null,null,null,"1, 1, 2, 1, 0, 0, 0, 0"]
["Non-General Illumination (Alt)","LED Sign - Marquee/Cabinet (Alt)",{"$f":"CONCATENATE(\"{L}\",EquipmentTable_Retrofit_UT[[#This Row],[equipmentProposed]])","v":"{L}LED Sign - Marquee/Cabinet (Alt)"},"combined",null,null,null,null,null,null,null,null,null,null,null,null,null,null,null,null,null,"1, 1, 2, 1, 0, 0, 0, 0"]
["Non-General Illumination (Alt)","LED Sign - LED Message Center Lamps (Alt)",{"$f":"CONCATENATE(\"{L}\",EquipmentTable_Retrofit_UT[[#This Row],[equipmentProposed]])","v":"{L}LED Sign - LED Message Center Lamps (Alt)"},"combined",null,null,null,null,null,null,null,null,null,null,null,null,null,null,null,null,null,"1, 1, 2, 1, 0, 0, 0, 0"]
["Non-General Illumination (Alt)","LED Case Lighting – Freezer Case (Alt)",{"$f":"CONCATENATE(\"{L}\",EquipmentTable_Retrofit_UT[[#This Row],[equipmentProposed]])","v":"{L}LED Case Lighting – Freezer Case (Alt)"},"combined",null,null,null,null,null,null,null,null,null,null,null,null,null,null,null,null,null,"1, 1, 2, 1, 0, 0, 0, 0"]
["Non-General Illumination (Alt)","LED Case Lighting – Refrigerated Case (Alt)",{"$f":"CONCATENATE(\"{L}\",EquipmentTable_Retrofit_UT[[#This Row],[equipmentProposed]])","v":"{L}LED Case Lighting – Refrigerated Case (Alt)"},"combined",null,null,null,null,null,null,null,null,null,null,null,null,null,null,null,null,null,"1, 1, 2, 1, 0, 0, 0, 0"]
["Lamp Replacement","Relamp - Halogen",{"$f":"CONCATENATE(\"{L}\",EquipmentTable_Retrofit_UT[[#This Row],[equipmentProposed]])","v":"{L}Relamp - Halogen"},"separate","Non-eligible fixture - Retrofit - UT","Non-eligible fixture - Retrofit - UT","Non-eligible fixture - Retrofit - UT","Non-eligible fixture - Retrofit - UT","Non-eligible fixture - Retrofit - UT","Non-eligible fixture - Retrofit - UT","Non-eligible fixture - Retrofit - UT","Non-eligible fixture - Retrofit - UT","Non-eligible fixture - Retrofit - UT","Non-eligible fixture - Retrofit - UT","Non-eligible fixture - Retrofit - UT","Non-eligible fixture - Retrofit - UT","Non-eligible fixture - Retrofit - UT","Non-eligible fixture - Retrofit - UT",null,null,null,"0, 0, 0, 0, 0, 0, 0, 0"]
["Lamp Replacement","Relamp - Incandescent",{"$f":"CONCATENATE(\"{L}\",EquipmentTable_Retrofit_UT[[#This Row],[equipmentProposed]])","v":"{L}Relamp - Incandescent"},"separate","Non-eligible fixture - Retrofit - UT","Non-eligible fixture - Retrofit - UT","Non-eligible fixture - Retrofit - UT","Non-eligible fixture - Retrofit - UT","Non-eligible fixture - Retrofit - UT","Non-eligible fixture - Retrofit - UT","Non-eligible fixture - Retrofit - UT","Non-eligible fixture - Retrofit - UT","Non-eligible fixture - Retrofit - UT","Non-eligible fixture - Retrofit - UT","Non-eligible fixture - Retrofit - UT","Non-eligible fixture - Retrofit - UT","Non-eligible fixture - Retrofit - UT","Non-eligible fixture - Retrofit - UT",null,null,null,"0, 0, 0, 0, 0, 0, 0, 0"]
["Lamp Replacement","Relamp - LED A-19 < 8 W, Medium Base",{"$f":"CONCATENATE(\"{L}\",EquipmentTable_Retrofit_UT[[#This Row],[equipmentProposed]])","v":"{L}Relamp - LED A-19 < 8 W, Medium Base"},"separate","Non-eligible fixture - Retrofit - UT","Non-eligible fixture - Retrofit - UT","Non-eligible fixture - Retrofit - UT","Non-eligible fixture - Retrofit - UT","Non-eligible fixture - Retrofit - UT","Non-eligible fixture - Retrofit - UT","Non-eligible fixture - Retrofit - UT","Non-eligible fixture - Retrofit - UT","Non-eligible fixture - Retrofit - UT","Non-eligible fixture - Retrofit - UT","Non-eligible fixture - Retrofit - UT","Non-eligible fixture - Retrofit - UT","Non-eligible fixture - Retrofit - UT","Non-eligible fixture - Retrofit - UT",null,null,null,"0, 0, 0, 0, 0, 0, 0, 0"]
["Lamp Replacement","Relamp - LED A-19 >= 8 W, Medium Base",{"$f":"CONCATENATE(\"{L}\",EquipmentTable_Retrofit_UT[[#This Row],[equipmentProposed]])","v":"{L}Relamp - LED A-19 >= 8 W, Medium Base"},"separate","Non-eligible fixture - Retrofit - UT","Non-eligible fixture - Retrofit - UT","Non-eligible fixture - Retrofit - UT","Non-eligible fixture - Retrofit - UT","Non-eligible fixture - Retrofit - UT","Non-eligible fixture - Retrofit - UT","Non-eligible fixture - Retrofit - UT","Non-eligible fixture - Retrofit - UT","Non-eligible fixture - Retrofit - UT","Non-eligible fixture - Retrofit - UT","Non-eligible fixture - Retrofit - UT","Non-eligible fixture - Retrofit - UT","Non-eligible fixture - Retrofit - UT","Non-eligible fixture - Retrofit - UT",null,null,null,"0, 0, 0, 0, 0, 0, 0, 0"]
["Lamp Replacement","Relamp - LED A-21 >= 12 W, Medium Base",{"$f":"CONCATENATE(\"{L}\",EquipmentTable_Retrofit_UT[[#This Row],[equipmentProposed]])","v":"{L}Relamp - LED A-21 >= 12 W, Medium Base"},"separate","Non-eligible fixture - Retrofit - UT","Non-eligible fixture - Retrofit - UT","Non-eligible fixture - Retrofit - UT","Non-eligible fixture - Retrofit - UT","Non-eligible fixture - Retrofit - UT","Non-eligible fixture - Retrofit - UT","Non-eligible fixture - Retrofit - UT","Non-eligible fixture - Retrofit - UT","Non-eligible fixture - Retrofit - UT","Non-eligible fixture - Retrofit - UT","Non-eligible fixture - Retrofit - UT","Non-eligible fixture - Retrofit - UT","Non-eligible fixture - Retrofit - UT","Non-eligible fixture - Retrofit - UT",null,null,null,"0, 0, 0, 0, 0, 0, 0, 0"]
["Lamp Replacement","Relamp - LED BR Reflector",{"$f":"CONCATENATE(\"{L}\",EquipmentTable_Retrofit_UT[[#This Row],[equipmentProposed]])","v":"{L}Relamp - LED BR Reflector"},"separate","Non-eligible fixture - Retrofit - UT","Non-eligible fixture - Retrofit - UT","Non-eligible fixture - Retrofit - UT","Non-eligible fixture - Retrofit - UT","Non-eligible fixture - Retrofit - UT","Non-eligible fixture - Retrofit - UT","Non-eligible fixture - Retrofit - UT","Non-eligible fixture - Retrofit - UT","Non-eligible fixture - Retrofit - UT","Non-eligible fixture - Retrofit - UT","Non-eligible fixture - Retrofit - UT","Non-eligible fixture - Retrofit - UT","Non-eligible fixture - Retrofit - UT","Non-eligible fixture - Retrofit - UT",null,null,null,"0, 0, 0, 0, 0, 0, 0, 0"]
["Lamp Replacement","Relamp - LED Decorative",{"$f":"CONCATENATE(\"{L}\",EquipmentTable_Retrofit_UT[[#This Row],[equipmentProposed]])","v":"{L}Relamp - LED Decorative"},"separate","Non-eligible fixture - Retrofit - UT","Non-eligible fixture - Retrofit - UT","Non-eligible fixture - Retrofit - UT","Non-eligible fixture - Retrofit - UT","Non-eligible fixture - Retrofit - UT","Non-eligible fixture - Retrofit - UT","Non-eligible fixture - Retrofit - UT","Non-eligible fixture - Retrofit - UT","Non-eligible fixture - Retrofit - UT","Non-eligible fixture - Retrofit - UT","Non-eligible fixture - Retrofit - UT","Non-eligible fixture - Retrofit - UT","Non-eligible fixture - Retrofit - UT","Non-eligible fixture - Retrofit - UT",null,null,null,"0, 0, 0, 0, 0, 0, 0, 0"]
["Lamp Replacement","Relamp - LED HID Replacement < 40W",{"$f":"CONCATENATE(\"{L}\",EquipmentTable_Retrofit_UT[[#This Row],[equipmentProposed]])","v":"{L}Relamp - LED HID Replacement < 40W"},"separate","Non-eligible fixture - Retrofit - UT","Non-eligible fixture - Retrofit - UT","Non-eligible fixture - Retrofit - UT","Non-eligible fixture - Retrofit - UT","Non-eligible fixture - Retrofit - UT","Non-eligible fixture - Retrofit - UT","Non-eligible fixture - Retrofit - UT","Non-eligible fixture - Retrofit - UT","Non-eligible fixture - Retrofit - UT","Non-eligible fixture - Retrofit - UT","Non-eligible fixture - Retrofit - UT","Non-eligible fixture - Retrofit - UT","Non-eligible fixture - Retrofit - UT","Non-eligible fixture - Retrofit - UT",null,null,null,"1, 1, 1, 1, 1, 1, 1, 0"]
["Lamp Replacement","Relamp - LED HID Replacement >= 40 and < 70W",{"$f":"CONCATENATE(\"{L}\",EquipmentTable_Retrofit_UT[[#This Row],[equipmentProposed]])","v":"{L}Relamp - LED HID Replacement >= 40 and < 70W"},"separate","Non-eligible fixture - Retrofit - UT","Non-eligible fixture - Retrofit - UT","Non-eligible fixture - Retrofit - UT","Non-eligible fixture - Retrofit - UT","Non-eligible fixture - Retrofit - UT","Non-eligible fixture - Retrofit - UT","Non-eligible fixture - Retrofit - UT","Non-eligible fixture - Retrofit - UT","Non-eligible fixture - Retrofit - UT","Non-eligible fixture - Retrofit - UT","Non-eligible fixture - Retrofit - UT","Non-eligible fixture - Retrofit - UT","Non-eligible fixture - Retrofit - UT","Non-eligible fixture - Retrofit - UT",null,null,null,"1, 1, 1, 1, 1, 1, 1, 0"]
["Lamp Replacement","Relamp - LED HID Replacement >= 70 and < 140W",{"$f":"CONCATENATE(\"{L}\",EquipmentTable_Retrofit_UT[[#This Row],[equipmentProposed]])","v":"{L}Relamp - LED HID Replacement >= 70 and < 140W"},"separate","Non-eligible fixture - Retrofit - UT","Non-eligible fixture - Retrofit - UT","Non-eligible fixture - Retrofit - UT","Non-eligible fixture - Retrofit - UT","Non-eligible fixture - Retrofit - UT","Non-eligible fixture - Retrofit - UT","Non-eligible fixture - Retrofit - UT","Non-eligible fixture - Retrofit - UT","Non-eligible fixture - Retrofit - UT","Non-eligible fixture - Retrofit - UT","Non-eligible fixture - Retrofit - UT","Non-eligible fixture - Retrofit - UT","Non-eligible fixture - Retrofit - UT","Non-eligible fixture - Retrofit - UT",null,null,null,"1, 1, 1, 1, 1, 1, 1, 0"]
["Lamp Replacement","Relamp - LED HID Replacement >= 140W",{"$f":"CONCATENATE(\"{L}\",EquipmentTable_Retrofit_UT[[#This Row],[equipmentProposed]])","v":"{L}Relamp - LED HID Replacement >= 140W"},"separate","Non-eligible fixture - Retrofit - UT","Non-eligible fixture - Retrofit - UT","Non-eligible fixture - Retrofit - UT","Non-eligible fixture - Retrofit - UT","Non-eligible fixture - Retrofit - UT","Non-eligible fixture - Retrofit - UT","Non-eligible fixture - Retrofit - UT","Non-eligible fixture - Retrofit - UT","Non-eligible fixture - Retrofit - UT","Non-eligible fixture - Retrofit - UT","Non-eligible fixture - Retrofit - UT","Non-eligible fixture - Retrofit - UT","Non-eligible fixture - Retrofit - UT","Non-eligible fixture - Retrofit - UT",null,null,null,"1, 1, 1, 1, 1, 1, 1, 0"]
["Lamp Replacement","Relamp - LED MR16 Reflector",{"$f":"CONCATENATE(\"{L}\",EquipmentTable_Retrofit_UT[[#This Row],[equipmentProposed]])","v":"{L}Relamp - LED MR16 Reflector"},"separate","Non-eligible fixture - Retrofit - UT","Non-eligible fixture - Retrofit - UT","Non-eligible fixture - Retrofit - UT","Non-eligible fixture - Retrofit - UT","Non-eligible fixture - Retrofit - UT","Non-eligible fixture - Retrofit - UT","Non-eligible fixture - Retrofit - UT","Non-eligible fixture - Retrofit - UT","Non-eligible fixture - Retrofit - UT","Non-eligible fixture - Retrofit - UT","Non-eligible fixture - Retrofit - UT","Non-eligible fixture - Retrofit - UT","Non-eligible fixture - Retrofit - UT","Non-eligible fixture - Retrofit - UT",null,null,null,"1, 1, 1, 1, 1, 1, 1, 0"]
["Lamp Replacement","Relamp - LED PAR Reflector",{"$f":"CONCATENATE(\"{L}\",EquipmentTable_Retrofit_UT[[#This Row],[equipmentProposed]])","v":"{L}Relamp - LED PAR Reflector"},"separate","Non-eligible fixture - Retrofit - UT","Non-eligible fixture - Retrofit - UT","Non-eligible fixture - Retrofit - UT","Non-eligible fixture - Retrofit - UT","Non-eligible fixture - Retrofit - UT","Non-eligible fixture - Retrofit - UT","Non-eligible fixture - Retrofit - UT","Non-eligible fixture - Retrofit - UT","Non-eligible fixture - Retrofit - UT","Non-eligible fixture - Retrofit - UT","Non-eligible fixture - Retrofit - UT","Non-eligible fixture - Retrofit - UT","Non-eligible fixture - Retrofit - UT","Non-eligible fixture - Retrofit - UT",null,null,null,"0, 0, 0, 0, 0, 0, 0, 0"]
["Lamp Replacement","Relamp - LED PLC Pin-based < 10W",{"$f":"CONCATENATE(\"{L}\",EquipmentTable_Retrofit_UT[[#This Row],[equipmentProposed]])","v":"{L}Relamp - LED PLC Pin-based < 10W"},"separate","Non-eligible fixture - Retrofit - UT","Non-eligible fixture - Retrofit - UT","Non-eligible fixture - Retrofit - UT","Non-eligible fixture - Retrofit - UT","Non-eligible fixture - Retrofit - UT","Non-eligible fixture - Retrofit - UT","Non-eligible fixture - Retrofit - UT","Non-eligible fixture - Retrofit - UT","Non-eligible fixture - Retrofit - UT","Non-eligible fixture - Retrofit - UT","Non-eligible fixture - Retrofit - UT","Non-eligible fixture - Retrofit - UT","Non-eligible fixture - Retrofit - UT","Non-eligible fixture - Retrofit - UT",null,null,null,"1, 1, 1, 1, 1, 1, 1, 0"]
["Lamp Replacement","Relamp - LED PLC Pin-based >= 10W",{"$f":"CONCATENATE(\"{L}\",EquipmentTable_Retrofit_UT[[#This Row],[equipmentProposed]])","v":"{L}Relamp - LED PLC Pin-based >= 10W"},"separate","Non-eligible fixture - Retrofit - UT","Non-eligible fixture - Retrofit - UT","Non-eligible fixture - Retrofit - UT","Non-eligible fixture - Retrofit - UT","Non-eligible fixture - Retrofit - UT","Non-eligible fixture - Retrofit - UT","Non-eligible fixture - Retrofit - UT","Non-eligible fixture - Retrofit - UT","Non-eligible fixture - Retrofit - UT","Non-eligible fixture - Retrofit - UT","Non-eligible fixture - Retrofit - UT","Non-eligible fixture - Retrofit - UT","Non-eligible fixture - Retrofit - UT","Non-eligible fixture - Retrofit - UT",null,null,null,"1, 1, 1, 1, 1, 1, 1, 0"]
["Lamp Replacement","Relamp - LED PLL Pin-based",{"$f":"CONCATENATE(\"{L}\",EquipmentTable_Retrofit_UT[[#This Row],[equipmentProposed]])","v":"{L}Relamp - LED PLL Pin-based"},"separate","Non-eligible fixture - Retrofit - UT","Non-eligible fixture - Retrofit - UT","Non-eligible fixture - Retrofit - UT","Non-eligible fixture - Retrofit - UT","Non-eligible fixture - Retrofit - UT","Non-eligible fixture - Retrofit - UT","Non-eligible fixture - Retrofit - UT","Non-eligible fixture - Retrofit - UT","Non-eligible fixture - Retrofit - UT","Non-eligible fixture - Retrofit - UT","Non-eligible fixture - Retrofit - UT","Non-eligible fixture - Retrofit - UT","Non-eligible fixture - Retrofit - UT","Non-eligible fixture - Retrofit - UT",null,null,null,"1, 1, 1, 1, 1, 1, 1, 0"]
["Lamp Replacement","Relamp - T5 TLED - Type A",{"$f":"CONCATENATE(\"{L}\",EquipmentTable_Retrofit_UT[[#This Row],[equipmentProposed]])","v":"{L}Relamp - T5 TLED - Type A"},"separate","Non-eligible fixture - Retrofit - UT","Non-eligible fixture - Retrofit - UT","Non-eligible fixture - Retrofit - UT","Non-eligible fixture - Retrofit - UT","Non-eligible fixture - Retrofit - UT","Non-eligible fixture - Retrofit - UT","Non-eligible fixture - Retrofit - UT","Non-eligible fixture - Retrofit - UT","Non-eligible fixture - Retrofit - UT","Non-eligible fixture - Retrofit - UT","Non-eligible fixture - Retrofit - UT","Non-eligible fixture - Retrofit - UT","Non-eligible fixture - Retrofit - UT","Non-eligible fixture - Retrofit - UT",null,null,null,"0, 0, 0, 0, 0, 0, 0, 0"]
["Lamp Replacement","Relamp - T5 TLED - Type A/B Dual Mode",{"$f":"CONCATENATE(\"{L}\",EquipmentTable_Retrofit_UT[[#This Row],[equipmentProposed]])","v":"{L}Relamp - T5 TLED - Type A/B Dual Mode"},"separate","Non-eligible fixture - Retrofit - UT","Non-eligible fixture - Retrofit - UT","Non-eligible fixture - Retrofit - UT","Non-eligible fixture - Retrofit - UT","Non-eligible fixture - Retrofit - UT","Non-eligible fixture - Retrofit - UT","Non-eligible fixture - Retrofit - UT","Non-eligible fixture - Retrofit - UT","Non-eligible fixture - Retrofit - UT","Non-eligible fixture - Retrofit - UT","Non-eligible fixture - Retrofit - UT","Non-eligible fixture - Retrofit - UT","Non-eligible fixture - Retrofit - UT","Non-eligible fixture - Retrofit - UT",null,null,null,"0, 0, 0, 0, 0, 0, 0, 0"]
["Lamp Replacement","Relamp - T5 TLED - Type B",{"$f":"CONCATENATE(\"{L}\",EquipmentTable_Retrofit_UT[[#This Row],[equipmentProposed]])","v":"{L}Relamp - T5 TLED - Type B"},"separate","Non-eligible fixture - Retrofit - UT","Non-eligible fixture - Retrofit - UT","Non-eligible fixture - Retrofit - UT","Non-eligible fixture - Retrofit - UT","Non-eligible fixture - Retrofit - UT","Non-eligible fixture - Retrofit - UT","Non-eligible fixture - Retrofit - UT","Non-eligible fixture - Retrofit - UT","Non-eligible fixture - Retrofit - UT","Non-eligible fixture - Retrofit - UT","Non-eligible fixture - Retrofit - UT","Non-eligible fixture - Retrofit - UT","Non-eligible fixture - Retrofit - UT","Non-eligible fixture - Retrofit - UT",null,null,null,"0, 0, 0, 0, 0, 0, 0, 0"]
["Lamp Replacement","Relamp - T5 TLED - Type C",{"$f":"CONCATENATE(\"{L}\",EquipmentTable_Retrofit_UT[[#This Row],[equipmentProposed]])","v":"{L}Relamp - T5 TLED - Type C"},"separate","Non-eligible fixture - Retrofit - UT","Non-eligible fixture - Retrofit - UT","Non-eligible fixture - Retrofit - UT","Non-eligible fixture - Retrofit - UT","Non-eligible fixture - Retrofit - UT","Non-eligible fixture - Retrofit - UT","Non-eligible fixture - Retrofit - UT","Non-eligible fixture - Retrofit - UT","Non-eligible fixture - Retrofit - UT","Non-eligible fixture - Retrofit - UT","Non-eligible fixture - Retrofit - UT","Non-eligible fixture - Retrofit - UT","Non-eligible fixture - Retrofit - UT","Non-eligible fixture - Retrofit - UT",null,null,null,"0, 0, 0, 0, 0, 0, 0, 0"]
["Lamp Replacement","Relamp - T5 TLED - Type C Continuous Dimming",{"$f":"CONCATENATE(\"{L}\",EquipmentTable_Retrofit_UT[[#This Row],[equipmentProposed]])","v":"{L}Relamp - T5 TLED - Type C Continuous Dimming"},"separate","Non-eligible fixture - Retrofit - UT","Non-eligible fixture - Retrofit - UT","Non-eligible fixture - Retrofit - UT","Non-eligible fixture - Retrofit - UT","Non-eligible fixture - Retrofit - UT","Non-eligible fixture - Retrofit - UT","Non-eligible fixture - Retrofit - UT","Non-eligible fixture - Retrofit - UT","Non-eligible fixture - Retrofit - UT","Non-eligible fixture - Retrofit - UT","Non-eligible fixture - Retrofit - UT","Non-eligible fixture - Retrofit - UT","Non-eligible fixture - Retrofit - UT","Non-eligible fixture - Retrofit - UT",null,null,null,"0, 0, 0, 0, 0, 0, 0, 0"]
["Lamp Replacement","Relamp - T8 TLED - Type A",{"$f":"CONCATENATE(\"{L}\",EquipmentTable_Retrofit_UT[[#This Row],[equipmentProposed]])","v":"{L}Relamp - T8 TLED - Type A"},"separate","Non-eligible fixture - Retrofit - UT","Non-eligible fixture - Retrofit - UT","Non-eligible fixture - Retrofit - UT","Non-eligible fixture - Retrofit - UT","Non-eligible fixture - Retrofit - UT","Non-eligible fixture - Retrofit - UT","Non-eligible fixture - Retrofit - UT","Non-eligible fixture - Retrofit - UT","Non-eligible fixture - Retrofit - UT","Non-eligible fixture - Retrofit - UT","Non-eligible fixture - Retrofit - UT","Non-eligible fixture - Retrofit - UT","Non-eligible fixture - Retrofit - UT","Non-eligible fixture - Retrofit - UT",null,null,null,"0, 0, 0, 0, 0, 0, 0, 0"]
["Lamp Replacement","Relamp - T8 TLED - Type A/B Dual Mode",{"$f":"CONCATENATE(\"{L}\",EquipmentTable_Retrofit_UT[[#This Row],[equipmentProposed]])","v":"{L}Relamp - T8 TLED - Type A/B Dual Mode"},"separate","Non-eligible fixture - Retrofit - UT","Non-eligible fixture - Retrofit - UT","Non-eligible fixture - Retrofit - UT","Non-eligible fixture - Retrofit - UT","Non-eligible fixture - Retrofit - UT","Non-eligible fixture - Retrofit - UT","Non-eligible fixture - Retrofit - UT","Non-eligible fixture - Retrofit - UT","Non-eligible fixture - Retrofit - UT","Non-eligible fixture - Retrofit - UT","Non-eligible fixture - Retrofit - UT","Non-eligible fixture - Retrofit - UT","Non-eligible fixture - Retrofit - UT","Non-eligible fixture - Retrofit - UT",null,null,null,"0, 0, 0, 0, 0, 0, 0, 0"]
["Lamp Replacement","Relamp - T8 TLED - Type B",{"$f":"CONCATENATE(\"{L}\",EquipmentTable_Retrofit_UT[[#This Row],[equipmentProposed]])","v":"{L}Relamp - T8 TLED - Type B"},"separate","Non-eligible fixture - Retrofit - UT","Non-eligible fixture - Retrofit - UT","Non-eligible fixture - Retrofit - UT","Non-eligible fixture - Retrofit - UT","Non-eligible fixture - Retrofit - UT","Non-eligible fixture - Retrofit - UT","Non-eligible fixture - Retrofit - UT","Non-eligible fixture - Retrofit - UT","Non-eligible fixture - Retrofit - UT","Non-eligible fixture - Retrofit - UT","Non-eligible fixture - Retrofit - UT","Non-eligible fixture - Retrofit - UT","Non-eligible fixture - Retrofit - UT","Non-eligible fixture - Retrofit - UT",null,null,null,"0, 0, 0, 0, 0, 0, 0, 0"]
["Lamp Replacement","Relamp - T8 TLED - Type C",{"$f":"CONCATENATE(\"{L}\",EquipmentTable_Retrofit_UT[[#This Row],[equipmentProposed]])","v":"{L}Relamp - T8 TLED - Type C"},"separate","Non-eligible fixture - Retrofit - UT","Non-eligible fixture - Retrofit - UT","Non-eligible fixture - Retrofit - UT","Non-eligible fixture - Retrofit - UT","Non-eligible fixture - Retrofit - UT","Non-eligible fixture - Retrofit - UT","Non-eligible fixture - Retrofit - UT","Non-eligible fixture - Retrofit - UT","Non-eligible fixture - Retrofit - UT","Non-eligible fixture - Retrofit - UT","Non-eligible fixture - Retrofit - UT","Non-eligible fixture - Retrofit - UT","Non-eligible fixture - Retrofit - UT","Non-eligible fixture - Retrofit - UT",null,null,null,"0, 0, 0, 0, 0, 0, 0, 0"]
["Lamp Replacement","Relamp - T8 TLED - Type C Continuous Dimming",{"$f":"CONCATENATE(\"{L}\",EquipmentTable_Retrofit_UT[[#This Row],[equipmentProposed]])","v":"{L}Relamp - T8 TLED - Type C Continuous Dimming"},"separate","Non-eligible fixture - Retrofit - UT","Non-eligible fixture - Retrofit - UT","Non-eligible fixture - Retrofit - UT","Non-eligible fixture - Retrofit - UT","Non-eligible fixture - Retrofit - UT","Non-eligible fixture - Retrofit - UT","Non-eligible fixture - Retrofit - UT","Non-eligible fixture - Retrofit - UT","Non-eligible fixture - Retrofit - UT","Non-eligible fixture - Retrofit - UT","Non-eligible fixture - Retrofit - UT","Non-eligible fixture - Retrofit - UT","Non-eligible fixture - Retrofit - UT","Non-eligible fixture - Retrofit - UT",null,null,null,"0, 0, 0, 0, 0, 0, 0, 0"]
["Indoor Agriculture Fixture","CEA - LED Fixture - Bollard",{"$f":"CONCATENATE(\"{L}\",EquipmentTable_Retrofit_UT[[#This Row],[equipmentProposed]])","v":"{L}CEA - LED Fixture - Bollard"},"combined","Controlled Environment Agriculture Lighting - Custom - Fixtures - Retrofit - Large - UT","Controlled Environment Agriculture Lighting - Custom - Fixtures - Retrofit - Large - UT","Controlled Environment Agriculture Lighting - Custom - Fixtures - Retrofit - Large - UT","Controlled Environment Agriculture Lighting - Custom - Fixtures - Retrofit - Large - UT","Non-eligible fixture - Retrofit - UT","Non-eligible fixture - Retrofit - UT","Non-eligible fixture - Retrofit - UT","Non-eligible fixture - Retrofit - UT","Non-eligible fixture - Retrofit - UT","Non-eligible fixture - Retrofit - UT","Non-eligible fixture - Retrofit - UT","Non-eligible fixture - Retrofit - UT","Non-eligible fixture - Retrofit - UT","Non-eligible fixture - Retrofit - UT",null,null,null,"1, 1, 1, 0, 0, 0, 0, 0"]
["Indoor Agriculture Fixture","CEA - LED Fixture - Direct/Indirect",{"$f":"CONCATENATE(\"{L}\",EquipmentTable_Retrofit_UT[[#This Row],[equipmentProposed]])","v":"{L}CEA - LED Fixture - Direct/Indirect"},"combined","Controlled Environment Agriculture Lighting - Custom - Fixtures - Retrofit - Large - UT","Controlled Environment Agriculture Lighting - Custom - Fixtures - Retrofit - Large - UT","Controlled Environment Agriculture Lighting - Custom - Fixtures - Retrofit - Large - UT","Controlled Environment Agriculture Lighting - Custom - Fixtures - Retrofit - Large - UT","Non-eligible fixture - Retrofit - UT","Non-eligible fixture - Retrofit - UT","Non-eligible fixture - Retrofit - UT","Non-eligible fixture - Retrofit - UT","Non-eligible fixture - Retrofit - UT","Non-eligible fixture - Retrofit - UT","Non-eligible fixture - Retrofit - UT","Non-eligible fixture - Retrofit - UT","Non-eligible fixture - Retrofit - UT","Non-eligible fixture - Retrofit - UT",null,null,null,"1, 1, 1, 0, 0, 0, 0, 0"]
["Indoor Agriculture Fixture","CEA - LED Fixture - Downlight",{"$f":"CONCATENATE(\"{L}\",EquipmentTable_Retrofit_UT[[#This Row],[equipmentProposed]])","v":"{L}CEA - LED Fixture - Downlight"},"combined","Non-eligible fixture - Retrofit - UT","Non-eligible fixture - Retrofit - UT","Non-eligible fixture - Retrofit - UT","Non-eligible fixture - Retrofit - UT","Non-eligible fixture - Retrofit - UT","Non-eligible fixture - Retrofit - UT","Non-eligible fixture - Retrofit - UT","Non-eligible fixture - Retrofit - UT","Non-eligible fixture - Retrofit - UT","Non-eligible fixture - Retrofit - UT","Non-eligible fixture - Retrofit - UT","Non-eligible fixture - Retrofit - UT","Non-eligible fixture - Retrofit - UT","Non-eligible fixture - Retrofit - UT",null,null,null,"0, 0, 0, 0, 0, 0, 0, 0"]
["Indoor Agriculture Fixture","CEA - LED Fixture - Flood",{"$f":"CONCATENATE(\"{L}\",EquipmentTable_Retrofit_UT[[#This Row],[equipmentProposed]])","v":"{L}CEA - LED Fixture - Flood"},"combined","Controlled Environment Agriculture Lighting - Custom - Fixtures - Retrofit - Large - UT","Controlled Environment Agriculture Lighting - Custom - Fixtures - Retrofit - Large - UT","Controlled Environment Agriculture Lighting - Custom - Fixtures - Retrofit - Large - UT","Controlled Environment Agriculture Lighting - Custom - Fixtures - Retrofit - Large - UT","Non-eligible fixture - Retrofit - UT","Non-eligible fixture - Retrofit - UT","Non-eligible fixture - Retrofit - UT","Non-eligible fixture - Retrofit - UT","Non-eligible fixture - Retrofit - UT","Non-eligible fixture - Retrofit - UT","Non-eligible fixture - Retrofit - UT","Non-eligible fixture - Retrofit - UT","Non-eligible fixture - Retrofit - UT","Non-eligible fixture - Retrofit - UT",null,null,null,"1, 1, 1, 0, 0, 0, 0, 0"]
["Indoor Agriculture Fixture","CEA - LED Fixture - High/Low Bay",{"$f":"CONCATENATE(\"{L}\",EquipmentTable_Retrofit_UT[[#This Row],[equipmentProposed]])","v":"{L}CEA - LED Fixture - High/Low Bay"},"combined","Controlled Environment Agriculture Lighting - Custom - Fixtures - Retrofit - Large - UT","Controlled Environment Agriculture Lighting - Custom - Fixtures - Retrofit - Large - UT","Controlled Environment Agriculture Lighting - Custom - Fixtures - Retrofit - Large - UT","Controlled Environment Agriculture Lighting - Custom - Fixtures - Retrofit - Large - UT","Non-eligible fixture - Retrofit - UT","Non-eligible fixture - Retrofit - UT","Non-eligible fixture - Retrofit - UT","Non-eligible fixture - Retrofit - UT","Non-eligible fixture - Retrofit - UT","Non-eligible fixture - Retrofit - UT","Non-eligible fixture - Retrofit - UT","Non-eligible fixture - Retrofit - UT","Non-eligible fixture - Retrofit - UT","Non-eligible fixture - Retrofit - UT",null,null,null,"1, 1, 1, 0, 0, 0, 0, 0"]
["Indoor Agriculture Fixture","CEA - LED Fixture - Integral Track Head",{"$f":"CONCATENATE(\"{L}\",EquipmentTable_Retrofit_UT[[#This Row],[equipmentProposed]])","v":"{L}CEA - LED Fixture - Integral Track Head"},"combined","Controlled Environment Agriculture Lighting - Custom - Fixtures - Retrofit - Large - UT","Controlled Environment Agriculture Lighting - Custom - Fixtures - Retrofit - Large - UT","Controlled Environment Agriculture Lighting - Custom - Fixtures - Retrofit - Large - UT","Controlled Environment Agriculture Lighting - Custom - Fixtures - Retrofit - Large - UT","Non-eligible fixture - Retrofit - UT","Non-eligible fixture - Retrofit - UT","Non-eligible fixture - Retrofit - UT","Non-eligible fixture - Retrofit - UT","Non-eligible fixture - Retrofit - UT","Non-eligible fixture - Retrofit - UT","Non-eligible fixture - Retrofit - UT","Non-eligible fixture - Retrofit - UT","Non-eligible fixture - Retrofit - UT","Non-eligible fixture - Retrofit - UT",null,null,null,"1, 1, 1, 0, 0, 0, 0, 0"]
["Indoor Agriculture Fixture","CEA - LED Fixture - Parking/Canopy",{"$f":"CONCATENATE(\"{L}\",EquipmentTable_Retrofit_UT[[#This Row],[equipmentProposed]])","v":"{L}CEA - LED Fixture - Parking/Canopy"},"combined","Controlled Environment Agriculture Lighting - Custom - Fixtures - Retrofit - Large - UT","Controlled Environment Agriculture Lighting - Custom - Fixtures - Retrofit - Large - UT","Controlled Environment Agriculture Lighting - Custom - Fixtures - Retrofit - Large - UT","Controlled Environment Agriculture Lighting - Custom - Fixtures - Retrofit - Large - UT","Non-eligible fixture - Retrofit - UT","Non-eligible fixture - Retrofit - UT","Non-eligible fixture - Retrofit - UT","Non-eligible fixture - Retrofit - UT","Non-eligible fixture - Retrofit - UT","Non-eligible fixture - Retrofit - UT","Non-eligible fixture - Retrofit - UT","Non-eligible fixture - Retrofit - UT","Non-eligible fixture - Retrofit - UT","Non-eligible fixture - Retrofit - UT",null,null,null,"1, 1, 1, 0, 0, 0, 0, 0"]
["Indoor Agriculture Fixture","CEA - LED Fixture - Pole Mount",{"$f":"CONCATENATE(\"{L}\",EquipmentTable_Retrofit_UT[[#This Row],[equipmentProposed]])","v":"{L}CEA - LED Fixture - Pole Mount"},"combined","Controlled Environment Agriculture Lighting - Custom - Fixtures - Retrofit - Large - UT","Controlled Environment Agriculture Lighting - Custom - Fixtures - Retrofit - Large - UT","Controlled Environment Agriculture Lighting - Custom - Fixtures - Retrofit - Large - UT","Controlled Environment Agriculture Lighting - Custom - Fixtures - Retrofit - Large - UT","Non-eligible fixture - Retrofit - UT","Non-eligible fixture - Retrofit - UT","Non-eligible fixture - Retrofit - UT","Non-eligible fixture - Retrofit - UT","Non-eligible fixture - Retrofit - UT","Non-eligible fixture - Retrofit - UT","Non-eligible fixture - Retrofit - UT","Non-eligible fixture - Retrofit - UT","Non-eligible fixture - Retrofit - UT","Non-eligible fixture - Retrofit - UT",null,null,null,"1, 1, 1, 0, 0, 0, 0, 0"]
["Indoor Agriculture Fixture","CEA - LED Fixture - Sconce/Wall Wash",{"$f":"CONCATENATE(\"{L}\",EquipmentTable_Retrofit_UT[[#This Row],[equipmentProposed]])","v":"{L}CEA - LED Fixture - Sconce/Wall Wash"},"combined","Controlled Environment Agriculture Lighting - Custom - Fixtures - Retrofit - Large - UT","Controlled Environment Agriculture Lighting - Custom - Fixtures - Retrofit - Large - UT","Controlled Environment Agriculture Lighting - Custom - Fixtures - Retrofit - Large - UT","Controlled Environment Agriculture Lighting - Custom - Fixtures - Retrofit - Large - UT","Non-eligible fixture - Retrofit - UT","Non-eligible fixture - Retrofit - UT","Non-eligible fixture - Retrofit - UT","Non-eligible fixture - Retrofit - UT","Non-eligible fixture - Retrofit - UT","Non-eligible fixture - Retrofit - UT","Non-eligible fixture - Retrofit - UT","Non-eligible fixture - Retrofit - UT","Non-eligible fixture - Retrofit - UT","Non-eligible fixture - Retrofit - UT",null,null,null,"1, 1, 1, 0, 0, 0, 0, 0"]
["Indoor Agriculture Fixture","CEA - LED Fixture - Strip/Wrap",{"$f":"CONCATENATE(\"{L}\",EquipmentTable_Retrofit_UT[[#This Row],[equipmentProposed]])","v":"{L}CEA - LED Fixture - Strip/Wrap"},"combined","Controlled Environment Agriculture Lighting - Custom - Fixtures - Retrofit - Large - UT","Controlled Environment Agriculture Lighting - Custom - Fixtures - Retrofit - Large - UT","Controlled Environment Agriculture Lighting - Custom - Fixtures - Retrofit - Large - UT","Controlled Environment Agriculture Lighting - Custom - Fixtures - Retrofit - Large - UT","Non-eligible fixture - Retrofit - UT","Non-eligible fixture - Retrofit - UT","Non-eligible fixture - Retrofit - UT","Non-eligible fixture - Retrofit - UT","Non-eligible fixture - Retrofit - UT","Non-eligible fixture - Retrofit - UT","Non-eligible fixture - Retrofit - UT","Non-eligible fixture - Retrofit - UT","Non-eligible fixture - Retrofit - UT","Non-eligible fixture - Retrofit - UT",null,null,null,"1, 1, 1, 0, 0, 0, 0, 0"]
["Indoor Agriculture Fixture","CEA - LED Fixture - Surface Mount",{"$f":"CONCATENATE(\"{L}\",EquipmentTable_Retrofit_UT[[#This Row],[equipmentProposed]])","v":"{L}CEA - LED Fixture - Surface Mount"},"combined","Controlled Environment Agriculture Lighting - Custom - Fixtures - Retrofit - Large - UT","Controlled Environment Agriculture Lighting - Custom - Fixtures - Retrofit - Large - UT","Controlled Environment Agriculture Lighting - Custom - Fixtures - Retrofit - Large - UT","Controlled Environment Agriculture Lighting - Custom - Fixtures - Retrofit - Large - UT","Non-eligible fixture - Retrofit - UT","Non-eligible fixture - Retrofit - UT","Non-eligible fixture - Retrofit - UT","Non-eligible fixture - Retrofit - UT","Non-eligible fixture - Retrofit - UT","Non-eligible fixture - Retrofit - UT","Non-eligible fixture - Retrofit - UT","Non-eligible fixture - Retrofit - UT","Non-eligible fixture - Retrofit - UT","Non-eligible fixture - Retrofit - UT",null,null,null,"1, 1, 1, 0, 0, 0, 0, 0"]
["Indoor Agriculture Fixture","CEA - LED Fixture - Troffer",{"$f":"CONCATENATE(\"{L}\",EquipmentTable_Retrofit_UT[[#This Row],[equipmentProposed]])","v":"{L}CEA - LED Fixture - Troffer"},"combined","Controlled Environment Agriculture Lighting - Custom - Fixtures - Retrofit - Large - UT","Controlled Environment Agriculture Lighting - Custom - Fixtures - Retrofit - Large - UT","Controlled Environment Agriculture Lighting - Custom - Fixtures - Retrofit - Large - UT","Controlled Environment Agriculture Lighting - Custom - Fixtures - Retrofit - Large - UT","Non-eligible fixture - Retrofit - UT","Non-eligible fixture - Retrofit - UT","Non-eligible fixture - Retrofit - UT","Non-eligible fixture - Retrofit - UT","Non-eligible fixture - Retrofit - UT","Non-eligible fixture - Retrofit - UT","Non-eligible fixture - Retrofit - UT","Non-eligible fixture - Retrofit - UT","Non-eligible fixture - Retrofit - UT","Non-eligible fixture - Retrofit - UT",null,null,null,"1, 1, 1, 0, 0, 0, 0, 0"]
["Indoor Agriculture Fixture","CEA - LED Fixture - Wall Pack >= 75W",{"$f":"CONCATENATE(\"{L}\",EquipmentTable_Retrofit_UT[[#This Row],[equipmentProposed]])","v":"{L}CEA - LED Fixture - Wall Pack >= 75W"},"combined","Controlled Environment Agriculture Lighting - Custom - Fixtures - Retrofit - Large - UT","Controlled Environment Agriculture Lighting - Custom - Fixtures - Retrofit - Large - UT","Controlled Environment Agriculture Lighting - Custom - Fixtures - Retrofit - Large - UT","Controlled Environment Agriculture Lighting - Custom - Fixtures - Retrofit - Large - UT","Non-eligible fixture - Retrofit - UT","Non-eligible fixture - Retrofit - UT","Non-eligible fixture - Retrofit - UT","Non-eligible fixture - Retrofit - UT","Non-eligible fixture - Retrofit - UT","Non-eligible fixture - Retrofit - UT","Non-eligible fixture - Retrofit - UT","Non-eligible fixture - Retrofit - UT","Non-eligible fixture - Retrofit - UT","Non-eligible fixture - Retrofit - UT",null,null,null,"1, 1, 1, 0, 0, 0, 0, 0"]
["Indoor Agriculture Fixture","CEA - LED Fixture - Wall Pack > 20 W and < 75 W",{"$f":"CONCATENATE(\"{L}\",EquipmentTable_Retrofit_UT[[#This Row],[equipmentProposed]])","v":"{L}CEA - LED Fixture - Wall Pack > 20 W and < 75 W"},"combined","Controlled Environment Agriculture Lighting - Custom - Fixtures - Retrofit - Large - UT","Controlled Environment Agriculture Lighting - Custom - Fixtures - Retrofit - Large - UT","Controlled Environment Agriculture Lighting - Custom - Fixtures - Retrofit - Large - UT","Controlled Environment Agriculture Lighting - Custom - Fixtures - Retrofit - Large - UT","Non-eligible fixture - Retrofit - UT","Non-eligible fixture - Retrofit - UT","Non-eligible fixture - Retrofit - UT","Non-eligible fixture - Retrofit - UT","Non-eligible fixture - Retrofit - UT","Non-eligible fixture - Retrofit - UT","Non-eligible fixture - Retrofit - UT","Non-eligible fixture - Retrofit - UT","Non-eligible fixture - Retrofit - UT","Non-eligible fixture - Retrofit - UT",null,null,null,"1, 1, 1, 0, 0, 0, 0, 0"]
["Indoor Agriculture Lamp Replacement","CEA - Relamp - LED A-19 < 8 W, Medium Base",{"$f":"CONCATENATE(\"{L}\",EquipmentTable_Retrofit_UT[[#This Row],[equipmentProposed]])","v":"{L}CEA - Relamp - LED A-19 < 8 W, Medium Base"},"combined","Non-eligible fixture - Retrofit - UT","Non-eligible fixture - Retrofit - UT","Non-eligible fixture - Retrofit - UT","Non-eligible fixture - Retrofit - UT","Non-eligible fixture - Retrofit - UT","Non-eligible fixture - Retrofit - UT","Non-eligible fixture - Retrofit - UT","Non-eligible fixture - Retrofit - UT","Non-eligible fixture - Retrofit - UT","Non-eligible fixture - Retrofit - UT","Non-eligible fixture - Retrofit - UT","Non-eligible fixture - Retrofit - UT","Non-eligible fixture - Retrofit - UT","Non-eligible fixture - Retrofit - UT",null,null,null,"0, 0, 0, 0, 0, 0, 0, 0"]
["Indoor Agriculture Lamp Replacement","CEA - Relamp - LED A-19 >= 8 W, Medium Base",{"$f":"CONCATENATE(\"{L}\",EquipmentTable_Retrofit_UT[[#This Row],[equipmentProposed]])","v":"{L}CEA - Relamp - LED A-19 >= 8 W, Medium Base"},"combined","Non-eligible fixture - Retrofit - UT","Non-eligible fixture - Retrofit - UT","Non-eligible fixture - Retrofit - UT","Non-eligible fixture - Retrofit - UT","Non-eligible fixture - Retrofit - UT","Non-eligible fixture - Retrofit - UT","Non-eligible fixture - Retrofit - UT","Non-eligible fixture - Retrofit - UT","Non-eligible fixture - Retrofit - UT","Non-eligible fixture - Retrofit - UT","Non-eligible fixture - Retrofit - UT","Non-eligible fixture - Retrofit - UT","Non-eligible fixture - Retrofit - UT","Non-eligible fixture - Retrofit - UT",null,null,null,"0, 0, 0, 0, 0, 0, 0, 0"]
["Indoor Agriculture Lamp Replacement","CEA - Relamp - LED A-21 >= 12 W, Medium Base",{"$f":"CONCATENATE(\"{L}\",EquipmentTable_Retrofit_UT[[#This Row],[equipmentProposed]])","v":"{L}CEA - Relamp - LED A-21 >= 12 W, Medium Base"},"combined","Non-eligible fixture - Retrofit - UT","Non-eligible fixture - Retrofit - UT","Non-eligible fixture - Retrofit - UT","Non-eligible fixture - Retrofit - UT","Non-eligible fixture - Retrofit - UT","Non-eligible fixture - Retrofit - UT","Non-eligible fixture - Retrofit - UT","Non-eligible fixture - Retrofit - UT","Non-eligible fixture - Retrofit - UT","Non-eligible fixture - Retrofit - UT","Non-eligible fixture - Retrofit - UT","Non-eligible fixture - Retrofit - UT","Non-eligible fixture - Retrofit - UT","Non-eligible fixture - Retrofit - UT",null,null,null,"0, 0, 0, 0, 0, 0, 0, 0"]
["Indoor Agriculture Lamp Replacement","CEA - Relamp - LED BR Reflector",{"$f":"CONCATENATE(\"{L}\",EquipmentTable_Retrofit_UT[[#This Row],[equipmentProposed]])","v":"{L}CEA - Relamp - LED BR Reflector"},"combined","Non-eligible fixture - Retrofit - UT","Non-eligible fixture - Retrofit - UT","Non-eligible fixture - Retrofit - UT","Non-eligible fixture - Retrofit - UT","Non-eligible fixture - Retrofit - UT","Non-eligible fixture - Retrofit - UT","Non-eligible fixture - Retrofit - UT","Non-eligible fixture - Retrofit - UT","Non-eligible fixture - Retrofit - UT","Non-eligible fixture - Retrofit - UT","Non-eligible fixture - Retrofit - UT","Non-eligible fixture - Retrofit - UT","Non-eligible fixture - Retrofit - UT","Non-eligible fixture - Retrofit - UT",null,null,null,"0, 0, 0, 0, 0, 0, 0, 0"]
["Indoor Agriculture Lamp Replacement","CEA - Relamp - LED Decorative",{"$f":"CONCATENATE(\"{L}\",EquipmentTable_Retrofit_UT[[#This Row],[equipmentProposed]])","v":"{L}CEA - Relamp - LED Decorative"},"combined","Non-eligible fixture - Retrofit - UT","Non-eligible fixture - Retrofit - UT","Non-eligible fixture - Retrofit - UT","Non-eligible fixture - Retrofit - UT","Non-eligible fixture - Retrofit - UT","Non-eligible fixture - Retrofit - UT","Non-eligible fixture - Retrofit - UT","Non-eligible fixture - Retrofit - UT","Non-eligible fixture - Retrofit - UT","Non-eligible fixture - Retrofit - UT","Non-eligible fixture - Retrofit - UT","Non-eligible fixture - Retrofit - UT","Non-eligible fixture - Retrofit - UT","Non-eligible fixture - Retrofit - UT",null,null,null,"0, 0, 0, 0, 0, 0, 0, 0"]
["Indoor Agriculture Lamp Replacement","CEA - Relamp - LED HID Replacement < 40W",{"$f":"CONCATENATE(\"{L}\",EquipmentTable_Retrofit_UT[[#This Row],[equipmentProposed]])","v":"{L}CEA - Relamp - LED HID Replacement < 40W"},"combined","Non-eligible fixture - Retrofit - UT","Non-eligible fixture - Retrofit - UT","Non-eligible fixture - Retrofit - UT","Non-eligible fixture - Retrofit - UT","Non-eligible fixture - Retrofit - UT","Non-eligible fixture - Retrofit - UT","Non-eligible fixture - Retrofit - UT","Non-eligible fixture - Retrofit - UT","Non-eligible fixture - Retrofit - UT","Non-eligible fixture - Retrofit - UT","Non-eligible fixture - Retrofit - UT","Non-eligible fixture - Retrofit - UT","Non-eligible fixture - Retrofit - UT","Non-eligible fixture - Retrofit - UT",null,null,null,"1, 1, 1, 0, 0, 0, 0, 0"]
["Indoor Agriculture Lamp Replacement","CEA - Relamp - LED HID Replacement >= 40 and < 70W",{"$f":"CONCATENATE(\"{L}\",EquipmentTable_Retrofit_UT[[#This Row],[equipmentProposed]])","v":"{L}CEA - Relamp - LED HID Replacement >= 40 and < 70W"},"combined","Non-eligible fixture - Retrofit - UT","Non-eligible fixture - Retrofit - UT","Non-eligible fixture - Retrofit - UT","Non-eligible fixture - Retrofit - UT","Non-eligible fixture - Retrofit - UT","Non-eligible fixture - Retrofit - UT","Non-eligible fixture - Retrofit - UT","Non-eligible fixture - Retrofit - UT","Non-eligible fixture - Retrofit - UT","Non-eligible fixture - Retrofit - UT","Non-eligible fixture - Retrofit - UT","Non-eligible fixture - Retrofit - UT","Non-eligible fixture - Retrofit - UT","Non-eligible fixture - Retrofit - UT",null,null,null,"1, 1, 1, 0, 0, 0, 0, 0"]
["Indoor Agriculture Lamp Replacement","CEA - Relamp - LED HID Replacement >= 70 and < 140W",{"$f":"CONCATENATE(\"{L}\",EquipmentTable_Retrofit_UT[[#This Row],[equipmentProposed]])","v":"{L}CEA - Relamp - LED HID Replacement >= 70 and < 140W"},"combined","Non-eligible fixture - Retrofit - UT","Non-eligible fixture - Retrofit - UT","Non-eligible fixture - Retrofit - UT","Non-eligible fixture - Retrofit - UT","Non-eligible fixture - Retrofit - UT","Non-eligible fixture - Retrofit - UT","Non-eligible fixture - Retrofit - UT","Non-eligible fixture - Retrofit - UT","Non-eligible fixture - Retrofit - UT","Non-eligible fixture - Retrofit - UT","Non-eligible fixture - Retrofit - UT","Non-eligible fixture - Retrofit - UT","Non-eligible fixture - Retrofit - UT","Non-eligible fixture - Retrofit - UT",null,null,null,"1, 1, 1, 0, 0, 0, 0, 0"]
["Indoor Agriculture Lamp Replacement","CEA - Relamp - LED HID Replacement >= 140W",{"$f":"CONCATENATE(\"{L}\",EquipmentTable_Retrofit_UT[[#This Row],[equipmentProposed]])","v":"{L}CEA - Relamp - LED HID Replacement >= 140W"},"combined","Non-eligible fixture - Retrofit - UT","Non-eligible fixture - Retrofit - UT","Non-eligible fixture - Retrofit - UT","Non-eligible fixture - Retrofit - UT","Non-eligible fixture - Retrofit - UT","Non-eligible fixture - Retrofit - UT","Non-eligible fixture - Retrofit - UT","Non-eligible fixture - Retrofit - UT","Non-eligible fixture - Retrofit - UT","Non-eligible fixture - Retrofit - UT","Non-eligible fixture - Retrofit - UT","Non-eligible fixture - Retrofit - UT","Non-eligible fixture - Retrofit - UT","Non-eligible fixture - Retrofit - UT",null,null,null,"1, 1, 1, 0, 0, 0, 0, 0"]
["Indoor Agriculture Lamp Replacement","CEA - Relamp - LED MR16 Reflector",{"$f":"CONCATENATE(\"{L}\",EquipmentTable_Retrofit_UT[[#This Row],[equipmentProposed]])","v":"{L}CEA - Relamp - LED MR16 Reflector"},"combined","Non-eligible fixture - Retrofit - UT","Non-eligible fixture - Retrofit - UT","Non-eligible fixture - Retrofit - UT","Non-eligible fixture - Retrofit - UT","Non-eligible fixture - Retrofit - UT","Non-eligible fixture - Retrofit - UT","Non-eligible fixture - Retrofit - UT","Non-eligible fixture - Retrofit - UT","Non-eligible fixture - Retrofit - UT","Non-eligible fixture - Retrofit - UT","Non-eligible fixture - Retrofit - UT","Non-eligible fixture - Retrofit - UT","Non-eligible fixture - Retrofit - UT","Non-eligible fixture - Retrofit - UT",null,null,null,"1, 1, 1, 0, 0, 0, 0, 0"]
["Indoor Agriculture Lamp Replacement","CEA - Relamp - LED PAR Reflector",{"$f":"CONCATENATE(\"{L}\",EquipmentTable_Retrofit_UT[[#This Row],[equipmentProposed]])","v":"{L}CEA - Relamp - LED PAR Reflector"},"combined","Non-eligible fixture - Retrofit - UT","Non-eligible fixture - Retrofit - UT","Non-eligible fixture - Retrofit - UT","Non-eligible fixture - Retrofit - UT","Non-eligible fixture - Retrofit - UT","Non-eligible fixture - Retrofit - UT","Non-eligible fixture - Retrofit - UT","Non-eligible fixture - Retrofit - UT","Non-eligible fixture - Retrofit - UT","Non-eligible fixture - Retrofit - UT","Non-eligible fixture - Retrofit - UT","Non-eligible fixture - Retrofit - UT","Non-eligible fixture - Retrofit - UT","Non-eligible fixture - Retrofit - UT",null,null,null,"0, 0, 0, 0, 0, 0, 0, 0"]
["Indoor Agriculture Lamp Replacement","CEA - Relamp - LED PLC Pin-based < 10W",{"$f":"CONCATENATE(\"{L}\",EquipmentTable_Retrofit_UT[[#This Row],[equipmentProposed]])","v":"{L}CEA - Relamp - LED PLC Pin-based < 10W"},"combined","Non-eligible fixture - Retrofit - UT","Non-eligible fixture - Retrofit - UT","Non-eligible fixture - Retrofit - UT","Non-eligible fixture - Retrofit - UT","Non-eligible fixture - Retrofit - UT","Non-eligible fixture - Retrofit - UT","Non-eligible fixture - Retrofit - UT","Non-eligible fixture - Retrofit - UT","Non-eligible fixture - Retrofit - UT","Non-eligible fixture - Retrofit - UT","Non-eligible fixture - Retrofit - UT","Non-eligible fixture - Retrofit - UT","Non-eligible fixture - Retrofit - UT","Non-eligible fixture - Retrofit - UT",null,null,null,"1, 1, 1, 0, 0, 0, 0, 0"]
["Indoor Agriculture Lamp Replacement","CEA - Relamp - LED PLC Pin-based >= 10W",{"$f":"CONCATENATE(\"{L}\",EquipmentTable_Retrofit_UT[[#This Row],[equipmentProposed]])","v":"{L}CEA - Relamp - LED PLC Pin-based >= 10W"},"combined","Non-eligible fixture - Retrofit - UT","Non-eligible fixture - Retrofit - UT","Non-eligible fixture - Retrofit - UT","Non-eligible fixture - Retrofit - UT","Non-eligible fixture - Retrofit - UT","Non-eligible fixture - Retrofit - UT","Non-eligible fixture - Retrofit - UT","Non-eligible fixture - Retrofit - UT","Non-eligible fixture - Retrofit - UT","Non-eligible fixture - Retrofit - UT","Non-eligible fixture - Retrofit - UT","Non-eligible fixture - Retrofit - UT","Non-eligible fixture - Retrofit - UT","Non-eligible fixture - Retrofit - UT",null,null,null,"1, 1, 1, 0, 0, 0, 0, 0"]
["Indoor Agriculture Lamp Replacement","CEA - Relamp - LED PLL Pin-based",{"$f":"CONCATENATE(\"{L}\",EquipmentTable_Retrofit_UT[[#This Row],[equipmentProposed]])","v":"{L}CEA - Relamp - LED PLL Pin-based"},"combined","Non-eligible fixture - Retrofit - UT","Non-eligible fixture - Retrofit - UT","Non-eligible fixture - Retrofit - UT","Non-eligible fixture - Retrofit - UT","Non-eligible fixture - Retrofit - UT","Non-eligible fixture - Retrofit - UT","Non-eligible fixture - Retrofit - UT","Non-eligible fixture - Retrofit - UT","Non-eligible fixture - Retrofit - UT","Non-eligible fixture - Retrofit - UT","Non-eligible fixture - Retrofit - UT","Non-eligible fixture - Retrofit - UT","Non-eligible fixture - Retrofit - UT","Non-eligible fixture - Retrofit - UT",null,null,null,"1, 1, 1, 0, 0, 0, 0, 0"]
["Indoor Agriculture Lamp Replacement","CEA - Relamp - T5 TLED - Type A",{"$f":"CONCATENATE(\"{L}\",EquipmentTable_Retrofit_UT[[#This Row],[equipmentProposed]])","v":"{L}CEA - Relamp - T5 TLED - Type A"},"combined","Controlled Environment Agriculture Lighting - Custom - Lamps - Retrofit - Large - UT","Controlled Environment Agriculture Lighting - Custom - Lamps - Retrofit - Large - UT","Controlled Environment Agriculture Lighting - Custom - Lamps - Retrofit - Large - UT","Controlled Environment Agriculture Lighting - Custom - Lamps - Retrofit - Large - UT","Non-eligible fixture - Retrofit - UT","Non-eligible fixture - Retrofit - UT","Non-eligible fixture - Retrofit - UT","Non-eligible fixture - Retrofit - UT","Non-eligible fixture - Retrofit - UT","Non-eligible fixture - Retrofit - UT","Non-eligible fixture - Retrofit - UT","Non-eligible fixture - Retrofit - UT","Non-eligible fixture - Retrofit - UT","Non-eligible fixture - Retrofit - UT",null,null,null,"1, 1, 1, 0, 0, 0, 0, 0"]
["Indoor Agriculture Lamp Replacement","CEA - Relamp - T5 TLED - Type A/B Dual Mode",{"$f":"CONCATENATE(\"{L}\",EquipmentTable_Retrofit_UT[[#This Row],[equipmentProposed]])","v":"{L}CEA - Relamp - T5 TLED - Type A/B Dual Mode"},"combined","Controlled Environment Agriculture Lighting - Custom - Lamps - Retrofit - Large - UT","Controlled Environment Agriculture Lighting - Custom - Lamps - Retrofit - Large - UT","Controlled Environment Agriculture Lighting - Custom - Lamps - Retrofit - Large - UT","Controlled Environment Agriculture Lighting - Custom - Lamps - Retrofit - Large - UT","Non-eligible fixture - Retrofit - UT","Non-eligible fixture - Retrofit - UT","Non-eligible fixture - Retrofit - UT","Non-eligible fixture - Retrofit - UT","Non-eligible fixture - Retrofit - UT","Non-eligible fixture - Retrofit - UT","Non-eligible fixture - Retrofit - UT","Non-eligible fixture - Retrofit - UT","Non-eligible fixture - Retrofit - UT","Non-eligible fixture - Retrofit - UT",null,null,null,"1, 1, 1, 0, 0, 0, 0, 0"]
["Indoor Agriculture Lamp Replacement","CEA - Relamp - T5 TLED - Type B",{"$f":"CONCATENATE(\"{L}\",EquipmentTable_Retrofit_UT[[#This Row],[equipmentProposed]])","v":"{L}CEA - Relamp - T5 TLED - Type B"},"combined","Controlled Environment Agriculture Lighting - Custom - Lamps - Retrofit - Large - UT","Controlled Environment Agriculture Lighting - Custom - Lamps - Retrofit - Large - UT","Controlled Environment Agriculture Lighting - Custom - Lamps - Retrofit - Large - UT","Controlled Environment Agriculture Lighting - Custom - Lamps - Retrofit - Large - UT","Non-eligible fixture - Retrofit - UT","Non-eligible fixture - Retrofit - UT","Non-eligible fixture - Retrofit - UT","Non-eligible fixture - Retrofit - UT","Non-eligible fixture - Retrofit - UT","Non-eligible fixture - Retrofit - UT","Non-eligible fixture - Retrofit - UT","Non-eligible fixture - Retrofit - UT","Non-eligible fixture - Retrofit - UT","Non-eligible fixture - Retrofit - UT",null,null,null,"1, 1, 1, 0, 0, 0, 0, 0"]
["Indoor Agriculture Lamp Replacement","CEA - Relamp - T5 TLED - Type C",{"$f":"CONCATENATE(\"{L}\",EquipmentTable_Retrofit_UT[[#This Row],[equipmentProposed]])","v":"{L}CEA - Relamp - T5 TLED - Type C"},"combined","Controlled Environment Agriculture Lighting - Custom - Lamps - Retrofit - Large - UT","Controlled Environment Agriculture Lighting - Custom - Lamps - Retrofit - Large - UT","Controlled Environment Agriculture Lighting - Custom - Lamps - Retrofit - Large - UT","Controlled Environment Agriculture Lighting - Custom - Lamps - Retrofit - Large - UT","Non-eligible fixture - Retrofit - UT","Non-eligible fixture - Retrofit - UT","Non-eligible fixture - Retrofit - UT","Non-eligible fixture - Retrofit - UT","Non-eligible fixture - Retrofit - UT","Non-eligible fixture - Retrofit - UT","Non-eligible fixture - Retrofit - UT","Non-eligible fixture - Retrofit - UT","Non-eligible fixture - Retrofit - UT","Non-eligible fixture - Retrofit - UT",null,null,null,"1, 1, 1, 0, 0, 0, 0, 0"]
["Indoor Agriculture Lamp Replacement","CEA - Relamp - T5 TLED - Type C Continuous Dimming",{"$f":"CONCATENATE(\"{L}\",EquipmentTable_Retrofit_UT[[#This Row],[equipmentProposed]])","v":"{L}CEA - Relamp - T5 TLED - Type C Continuous Dimming"},"combined","Controlled Environment Agriculture Lighting - Custom - Lamps - Retrofit - Large - UT","Controlled Environment Agriculture Lighting - Custom - Lamps - Retrofit - Large - UT","Controlled Environment Agriculture Lighting - Custom - Lamps - Retrofit - Large - UT","Controlled Environment Agriculture Lighting - Custom - Lamps - Retrofit - Large - UT","Non-eligible fixture - Retrofit - UT","Non-eligible fixture - Retrofit - UT","Non-eligible fixture - Retrofit - UT","Non-eligible fixture - Retrofit - UT","Non-eligible fixture - Retrofit - UT","Non-eligible fixture - Retrofit - UT","Non-eligible fixture - Retrofit - UT","Non-eligible fixture - Retrofit - UT","Non-eligible fixture - Retrofit - UT","Non-eligible fixture - Retrofit - UT",null,null,null,"1, 1, 1, 0, 0, 0, 0, 0"]
["Indoor Agriculture Lamp Replacement","CEA - Relamp - T8 TLED - Type A",{"$f":"CONCATENATE(\"{L}\",EquipmentTable_Retrofit_UT[[#This Row],[equipmentProposed]])","v":"{L}CEA - Relamp - T8 TLED - Type A"},"combined","Controlled Environment Agriculture Lighting - Custom - Lamps - Retrofit - Large - UT","Controlled Environment Agriculture Lighting - Custom - Lamps - Retrofit - Large - UT","Controlled Environment Agriculture Lighting - Custom - Lamps - Retrofit - Large - UT","Controlled Environment Agriculture Lighting - Custom - Lamps - Retrofit - Large - UT","Non-eligible fixture - Retrofit - UT","Non-eligible fixture - Retrofit - UT","Non-eligible fixture - Retrofit - UT","Non-eligible fixture - Retrofit - UT","Non-eligible fixture - Retrofit - UT","Non-eligible fixture - Retrofit - UT","Non-eligible fixture - Retrofit - UT","Non-eligible fixture - Retrofit - UT","Non-eligible fixture - Retrofit - UT","Non-eligible fixture - Retrofit - UT",null,null,null,"1, 1, 1, 0, 0, 0, 0, 0"]
["Indoor Agriculture Lamp Replacement","CEA - Relamp - T8 TLED - Type A/B Dual Mode",{"$f":"CONCATENATE(\"{L}\",EquipmentTable_Retrofit_UT[[#This Row],[equipmentProposed]])","v":"{L}CEA - Relamp - T8 TLED - Type A/B Dual Mode"},"combined","Controlled Environment Agriculture Lighting - Custom - Lamps - Retrofit - Large - UT","Controlled Environment Agriculture Lighting - Custom - Lamps - Retrofit - Large - UT","Controlled Environment Agriculture Lighting - Custom - Lamps - Retrofit - Large - UT","Controlled Environment Agriculture Lighting - Custom - Lamps - Retrofit - Large - UT","Non-eligible fixture - Retrofit - UT","Non-eligible fixture - Retrofit - UT","Non-eligible fixture - Retrofit - UT","Non-eligible fixture - Retrofit - UT","Non-eligible fixture - Retrofit - UT","Non-eligible fixture - Retrofit - UT","Non-eligible fixture - Retrofit - UT","Non-eligible fixture - Retrofit - UT","Non-eligible fixture - Retrofit - UT","Non-eligible fixture - Retrofit - UT",null,null,null,"1, 1, 1, 0, 0, 0, 0, 0"]
["Indoor Agriculture Lamp Replacement","CEA - Relamp - T8 TLED - Type B",{"$f":"CONCATENATE(\"{L}\",EquipmentTable_Retrofit_UT[[#This Row],[equipmentProposed]])","v":"{L}CEA - Relamp - T8 TLED - Type B"},"combined","Controlled Environment Agriculture Lighting - Custom - Lamps - Retrofit - Large - UT","Controlled Environment Agriculture Lighting - Custom - Lamps - Retrofit - Large - UT","Controlled Environment Agriculture Lighting - Custom - Lamps - Retrofit - Large - UT","Controlled Environment Agriculture Lighting - Custom - Lamps - Retrofit - Large - UT","Non-eligible fixture - Retrofit - UT","Non-eligible fixture - Retrofit - UT","Non-eligible fixture - Retrofit - UT","Non-eligible fixture - Retrofit - UT","Non-eligible fixture - Retrofit - UT","Non-eligible fixture - Retrofit - UT","Non-eligible fixture - Retrofit - UT","Non-eligible fixture - Retrofit - UT","Non-eligible fixture - Retrofit - UT","Non-eligible fixture - Retrofit - UT",null,null,null,"1, 1, 1, 0, 0, 0, 0, 0"]
["Indoor Agriculture Lamp Replacement","CEA - Relamp - T8 TLED - Type C",{"$f":"CONCATENATE(\"{L}\",EquipmentTable_Retrofit_UT[[#This Row],[equipmentProposed]])","v":"{L}CEA - Relamp - T8 TLED - Type C"},"combined","Controlled Environment Agriculture Lighting - Custom - Lamps - Retrofit - Large - UT","Controlled Environment Agriculture Lighting - Custom - Lamps - Retrofit - Large - UT","Controlled Environment Agriculture Lighting - Custom - Lamps - Retrofit - Large - UT","Controlled Environment Agriculture Lighting - Custom - Lamps - Retrofit - Large - UT","Non-eligible fixture - Retrofit - UT","Non-eligible fixture - Retrofit - UT","Non-eligible fixture - Retrofit - UT","Non-eligible fixture - Retrofit - UT","Non-eligible fixture - Retrofit - UT","Non-eligible fixture - Retrofit - UT","Non-eligible fixture - Retrofit - UT","Non-eligible fixture - Retrofit - UT","Non-eligible fixture - Retrofit - UT","Non-eligible fixture - Retrofit - UT",null,null,null,"1, 1, 1, 0, 0, 0, 0, 0"]
["Indoor Agriculture Lamp Replacement","CEA - Relamp - T8 TLED - Type C Continuous Dimming",{"$f":"CONCATENATE(\"{L}\",EquipmentTable_Retrofit_UT[[#This Row],[equipmentProposed]])","v":"{L}CEA - Relamp - T8 TLED - Type C Continuous Dimming"},"combined","Controlled Environment Agriculture Lighting - Custom - Lamps - Retrofit - Large - UT","Controlled Environment Agriculture Lighting - Custom - Lamps - Retrofit - Large - UT","Controlled Environment Agriculture Lighting - Custom - Lamps - Retrofit - Large - UT","Controlled Environment Agriculture Lighting - Custom - Lamps - Retrofit - Large - UT","Non-eligible fixture - Retrofit - UT","Non-eligible fixture - Retrofit - UT","Non-eligible fixture - Retrofit - UT","Non-eligible fixture - Retrofit - UT","Non-eligible fixture - Retrofit - UT","Non-eligible fixture - Retrofit - UT","Non-eligible fixture - Retrofit - UT","Non-eligible fixture - Retrofit - UT","Non-eligible fixture - Retrofit - UT","Non-eligible fixture - Retrofit - UT",null,null,null,"1, 1, 1, 0, 0, 0, 0, 0"]
[]
[]
[]
[]
[]
[null,null,null,null,null,null,null,null,null,null,null,null,null,null,null,null,null,{"$error":"#VALUE!"}]
[null,null,null,null,null,null,null,null,null,null,null,null,null,null,null,null,null,{"$error":"#VALUE!"}]
[null,null,null,null,null,null,null,null,null,null,null,null,null,null,null,null,null,{"$error":"#VALUE!"}]

{"sheet":"EquipmentTable_NCMR_UT","index":20,"n_rows":53,"n_cols":12,"rows_kept":53,"cut":false,"hidden":true,"merged":[]}
["categoryProposed","equipmentProposed","measureNCMR_Interior_None","measureNCMR_Interior_Basic","measureNCMR_Interior_Mid","measureNCMR_Interior_Advanced","measureNCMR_Exterior_None","measureNCMR_Exterior_Mid","measureNCMR_Exterior_Advanced","measureNCMR_Street_None","measureNCMR_Street_Mid","measureNCMR_Street_Advanced"]
["Fluorescents - Compact","CFL Pin-Based","Interior Lighting - Ineligible - NCMR - v2 - UT","Interior Lighting - Ineligible - NCMR - v2 - UT","Interior Lighting - Ineligible - NCMR - v2 - UT","Interior Lighting - Ineligible - NCMR - v2 - UT","Non-eligible fixture - Major Renovation - UT","Non-eligible fixture - Major Renovation - UT","Non-eligible fixture - Major Renovation - UT","Non-eligible fixture - Major Renovation - UT","Non-eligible fixture - Major Renovation - UT","Non-eligible fixture - Major Renovation - UT"]
["Fluorescents - Compact","CFL Screw-In","Interior Lighting - Ineligible - NCMR - v2 - UT","Interior Lighting - Ineligible - NCMR - v2 - UT","Interior Lighting - Ineligible - NCMR - v2 - UT","Interior Lighting - Ineligible - NCMR - v2 - UT","Non-eligible fixture - Major Renovation - UT","Non-eligible fixture - Major Renovation - UT","Non-eligible fixture - Major Renovation - UT","Non-eligible fixture - Major Renovation - UT","Non-eligible fixture - Major Renovation - UT","Non-eligible fixture - Major Renovation - UT"]
["Fluorescents - T12","FLT12 - 2 Ft","Interior Lighting - Ineligible - NCMR - v2 - UT","Interior Lighting - Ineligible - NCMR - v2 - UT","Interior Lighting - Ineligible - NCMR - v2 - UT","Interior Lighting - Ineligible - NCMR - v2 - UT","Non-eligible fixture - Major Renovation - UT","Non-eligible fixture - Major Renovation - UT","Non-eligible fixture - Major Renovation - UT","Non-eligible fixture - Major Renovation - UT","Non-eligible fixture - Major Renovation - UT","Non-eligible fixture - Major Renovation - UT"]
["Fluorescents - T12","FLT12 - 3 Ft","Interior Lighting - Ineligible - NCMR - v2 - UT","Interior Lighting - Ineligible - NCMR - v2 - UT","Interior Lighting - Ineligible - NCMR - v2 - UT","Interior Lighting - Ineligible - NCMR - v2 - UT","Non-eligible fixture - Major Renovation - UT","Non-eligible fixture - Major Renovation - UT","Non-eligible fixture - Major Renovation - UT","Non-eligible fixture - Major Renovation - UT","Non-eligible fixture - Major Renovation - UT","Non-eligible fixture - Major Renovation - UT"]
["Fluorescents - T12","FLT12 - 4 Ft","Interior Lighting - Ineligible - NCMR - v2 - UT","Interior Lighting - Ineligible - NCMR - v2 - UT","Interior Lighting - Ineligible - NCMR - v2 - UT","Interior Lighting - Ineligible - NCMR - v2 - UT","Non-eligible fixture - Major Renovation - UT","Non-eligible fixture - Major Renovation - UT","Non-eligible fixture - Major Renovation - UT","Non-eligible fixture - Major Renovation - UT","Non-eligible fixture - Major Renovation - UT","Non-eligible fixture - Major Renovation - UT"]
["Fluorescents - T12","FLT12 - 6 Ft","Interior Lighting - Ineligible - NCMR - v2 - UT","Interior Lighting - Ineligible - NCMR - v2 - UT","Interior Lighting - Ineligible - NCMR - v2 - UT","Interior Lighting - Ineligible - NCMR - v2 - UT","Non-eligible fixture - Major Renovation - UT","Non-eligible fixture - Major Renovation - UT","Non-eligible fixture - Major Renovation - UT","Non-eligible fixture - Major Renovation - UT","Non-eligible fixture - Major Renovation - UT","Non-eligible fixture - Major Renovation - UT"]
["Fluorescents - T12","FLT12 - 8 Ft","Interior Lighting - Ineligible - NCMR - v2 - UT","Interior Lighting - Ineligible - NCMR - v2 - UT","Interior Lighting - Ineligible - NCMR - v2 - UT","Interior Lighting - Ineligible - NCMR - v2 - UT","Non-eligible fixture - Major Renovation - UT","Non-eligible fixture - Major Renovation - UT","Non-eligible fixture - Major Renovation - UT","Non-eligible fixture - Major Renovation - UT","Non-eligible fixture - Major Renovation - UT","Non-eligible fixture - Major Renovation - UT"]
["Fluorescents - T12","FLT12HO - 8 Ft","Interior Lighting - Ineligible - NCMR - v2 - UT","Interior Lighting - Ineligible - NCMR - v2 - UT","Interior Lighting - Ineligible - NCMR - v2 - UT","Interior Lighting - Ineligible - NCMR - v2 - UT","Non-eligible fixture - Major Renovation - UT","Non-eligible fixture - Major Renovation - UT","Non-eligible fixture - Major Renovation - UT","Non-eligible fixture - Major Renovation - UT","Non-eligible fixture - Major Renovation - UT","Non-eligible fixture - Major Renovation - UT"]
["Fluorescents - T12","FUT12 - 2 Ft","Interior Lighting - Ineligible - NCMR - v2 - UT","Interior Lighting - Ineligible - NCMR - v2 - UT","Interior Lighting - Ineligible - NCMR - v2 - UT","Interior Lighting - Ineligible - NCMR - v2 - UT","Non-eligible fixture - Major Renovation - UT","Non-eligible fixture - Major Renovation - UT","Non-eligible fixture - Major Renovation - UT","Non-eligible fixture - Major Renovation - UT","Non-eligible fixture - Major Renovation - UT","Non-eligible fixture - Major Renovation - UT"]
["Fluorescents - T5","FLT5 - 2 Ft","Interior Lighting - Ineligible - NCMR - v2 - UT","Interior Lighting - Ineligible - NCMR - v2 - UT","Interior Lighting - Ineligible - NCMR - v2 - UT","Interior Lighting - Ineligible - NCMR - v2 - UT","Non-eligible fixture - Major Renovation - UT","Non-eligible fixture - Major Renovation - UT","Non-eligible fixture - Major Renovation - UT","Non-eligible fixture - Major Renovation - UT","Non-eligible fixture - Major Renovation - UT","Non-eligible fixture - Major Renovation - UT"]
["Fluorescents - T5","FLT5 - 4 Ft","Interior Lighting - Ineligible - NCMR - v2 - UT","Interior Lighting - Ineligible - NCMR - v2 - UT","Interior Lighting - Ineligible - NCMR - v2 - UT","Interior Lighting - Ineligible - NCMR - v2 - UT","Non-eligible fixture - Major Renovation - UT","Non-eligible fixture - Major Renovation - UT","Non-eligible fixture - Major Renovation - UT","Non-eligible fixture - Major Renovation - UT","Non-eligible fixture - Major Renovation - UT","Non-eligible fixture - Major Renovation - UT"]
["Fluorescents - T5","FLT5HO - 4 Ft","Interior Lighting - Ineligible - NCMR - v2 - UT","Interior Lighting - Ineligible - NCMR - v2 - UT","Interior Lighting - Ineligible - NCMR - v2 - UT","Interior Lighting - Ineligible - NCMR - v2 - UT","Non-eligible fixture - Major Renovation - UT","Non-eligible fixture - Major Renovation - UT","Non-eligible fixture - Major Renovation - UT","Non-eligible fixture - Major Renovation - UT","Non-eligible fixture - Major Renovation - UT","Non-eligible fixture - Major Renovation - UT"]
["Fluorescents - T8","FLT8 - 2 Ft","Interior Lighting - Ineligible - NCMR - v2 - UT","Interior Lighting - Ineligible - NCMR - v2 - UT","Interior Lighting - Ineligible - NCMR - v2 - UT","Interior Lighting - Ineligible - NCMR - v2 - UT","Non-eligible fixture - Major Renovation - UT","Non-eligible fixture - Major Renovation - UT","Non-eligible fixture - Major Renovation - UT","Non-eligible fixture - Major Renovation - UT","Non-eligible fixture - Major Renovation - UT","Non-eligible fixture - Major Renovation - UT"]
["Fluorescents - T8","FLT8 - 3 Ft","Interior Lighting - Ineligible - NCMR - v2 - UT","Interior Lighting - Ineligible - NCMR - v2 - UT","Interior Lighting - Ineligible - NCMR - v2 - UT","Interior Lighting - Ineligible - NCMR - v2 - UT","Non-eligible fixture - Major Renovation - UT","Non-eligible fixture - Major Renovation - UT","Non-eligible fixture - Major Renovation - UT","Non-eligible fixture - Major Renovation - UT","Non-eligible fixture - Major Renovation - UT","Non-eligible fixture - Major Renovation - UT"]
["Fluorescents - T8","FLT8 - 4 Ft","Interior Lighting - Ineligible - NCMR - v2 - UT","Interior Lighting - Ineligible - NCMR - v2 - UT","Interior Lighting - Ineligible - NCMR - v2 - UT","Interior Lighting - Ineligible - NCMR - v2 - UT","Non-eligible fixture - Major Renovation - UT","Non-eligible fixture - Major Renovation - UT","Non-eligible fixture - Major Renovation - UT","Non-eligible fixture - Major Renovation - UT","Non-eligible fixture - Major Renovation - UT","Non-eligible fixture - Major Renovation - UT"]
["Fluorescents - T8","FLT8 - 8 Ft","Interior Lighting - Ineligible - NCMR - v2 - UT","Interior Lighting - Ineligible - NCMR - v2 - UT","Interior Lighting - Ineligible - NCMR - v2 - UT","Interior Lighting - Ineligible - NCMR - v2 - UT","Non-eligible fixture - Major Renovation - UT","Non-eligible fixture - Major Renovation - UT","Non-eligible fixture - Major Renovation - UT","Non-eligible fixture - Major Renovation - UT","Non-eligible fixture - Major Renovation - UT","Non-eligible fixture - Major Renovation - UT"]
["Fluorescents - T8","FUT8 - 2 Ft","Interior Lighting - Ineligible - NCMR - v2 - UT","Interior Lighting - Ineligible - NCMR - v2 - UT","Interior Lighting - Ineligible - NCMR - v2 - UT","Interior Lighting - Ineligible - NCMR - v2 - UT","Non-eligible fixture - Major Renovation - UT","Non-eligible fixture - Major Renovation - UT","Non-eligible fixture - Major Renovation - UT","Non-eligible fixture - Major Renovation - UT","Non-eligible fixture - Major Renovation - UT","Non-eligible fixture - Major Renovation - UT"]
["HID","High Pressure Sodium","Interior Lighting - Ineligible - NCMR - v2 - UT","Interior Lighting - Ineligible - NCMR - v2 - UT","Interior Lighting - Ineligible - NCMR - v2 - UT","Interior Lighting - Ineligible - NCMR - v2 - UT","Non-eligible fixture - Major Renovation - UT","Non-eligible fixture - Major Renovation - UT","Non-eligible fixture - Major Renovation - UT","Non-eligible fixture - Major Renovation - UT","Non-eligible fixture - Major Renovation - UT","Non-eligible fixture - Major Renovation - UT"]
["HID","Mercury Vapor","Interior Lighting - Ineligible - NCMR - v2 - UT","Interior Lighting - Ineligible - NCMR - v2 - UT","Interior Lighting - Ineligible - NCMR - v2 - UT","Interior Lighting - Ineligible - NCMR - v2 - UT","Non-eligible fixture - Major Renovation - UT","Non-eligible fixture - Major Renovation - UT","Non-eligible fixture - Major Renovation - UT","Non-eligible fixture - Major Renovation - UT","Non-eligible fixture - Major Renovation - UT","Non-eligible fixture - Major Renovation - UT"]
["HID","Metal Halide","Interior Lighting - Ineligible - NCMR - v2 - UT","Interior Lighting - Ineligible - NCMR - v2 - UT","Interior Lighting - Ineligible - NCMR - v2 - UT","Interior Lighting - Ineligible - NCMR - v2 - UT","Non-eligible fixture - Major Renovation - UT","Non-eligible fixture - Major Renovation - UT","Non-eligible fixture - Major Renovation - UT","Non-eligible fixture - Major Renovation - UT","Non-eligible fixture - Major Renovation - UT","Non-eligible fixture - Major Renovation - UT"]
["HID","Metal Halide - Ceramic","Interior Lighting - Ineligible - NCMR - v2 - UT","Interior Lighting - Ineligible - NCMR - v2 - UT","Interior Lighting - Ineligible - NCMR - v2 - UT","Interior Lighting - Ineligible - NCMR - v2 - UT","Non-eligible fixture - Major Renovation - UT","Non-eligible fixture - Major Renovation - UT","Non-eligible fixture - Major Renovation - UT","Non-eligible fixture - Major Renovation - UT","Non-eligible fixture - Major Renovation - UT","Non-eligible fixture - Major Renovation - UT"]
["HID","Metal Halide - Pulse Start","Interior Lighting - Ineligible - NCMR - v2 - UT","Interior Lighting - Ineligible - NCMR - v2 - UT","Interior Lighting - Ineligible - NCMR - v2 - UT","Interior Lighting - Ineligible - NCMR - v2 - UT","Non-eligible fixture - Major Renovation - UT","Non-eligible fixture - Major Renovation - UT","Non-eligible fixture - Major Renovation - UT","Non-eligible fixture - Major Renovation - UT","Non-eligible fixture - Major Renovation - UT","Non-eligible fixture - Major Renovation - UT"]
["Incandescents","Halogen","Interior Lighting - Ineligible - NCMR - v2 - UT","Interior Lighting - Ineligible - NCMR - v2 - UT","Interior Lighting - Ineligible - NCMR - v2 - UT","Interior Lighting - Ineligible - NCMR - v2 - UT","Non-eligible fixture - Major Renovation - UT","Non-eligible fixture - Major Renovation - UT","Non-eligible fixture - Major Renovation - UT","Non-eligible fixture - Major Renovation - UT","Non-eligible fixture - Major Renovation - UT","Non-eligible fixture - Major Renovation - UT"]
["Incandescents","Incandescent","Interior Lighting - Ineligible - NCMR - v2 - UT","Interior Lighting - Ineligible - NCMR - v2 - UT","Interior Lighting - Ineligible - NCMR - v2 - UT","Interior Lighting - Ineligible - NCMR - v2 - UT","Non-eligible fixture - Major Renovation - UT","Non-eligible fixture - Major Renovation - UT","Non-eligible fixture - Major Renovation - UT","Non-eligible fixture - Major Renovation - UT","Non-eligible fixture - Major Renovation - UT","Non-eligible fixture - Major Renovation - UT"]
["LED","LED Fixture - Bollard","Interior Lighting - No Controls - MR wCode - UT","Interior Lighting - No Controls - MR wCode - UT","Interior Networked Lighting Controls - MR wCode - UT","Interior Advanced Networked Lighting Controls - MR wCode - v2 - UT","Non-eligible fixture - Major Renovation - UT","Non-eligible fixture - Major Renovation - UT","Non-eligible fixture - Major Renovation - UT","Non-eligible fixture - Major Renovation - UT","Non-eligible fixture - Major Renovation - UT","Non-eligible fixture - Major Renovation - UT"]
["LED","LED Fixture - Canopy/Soffit","Interior Lighting - No Controls - MR wCode - UT","Interior Lighting - No Controls - MR wCode - UT","Interior Networked Lighting Controls - MR wCode - UT","Interior Advanced Networked Lighting Controls - MR wCode - v2 - UT","contact us for the NCMR Exterior tool","contact us for the NCMR Exterior tool","contact us for the NCMR Exterior tool","contact us for the NCMR Exterior tool","contact us for the NCMR Exterior tool","contact us for the NCMR Exterior tool"]
["LED","LED Fixture - Direct/Indirect","Interior Lighting - No Controls - MR wCode - UT","Interior Lighting - No Controls - MR wCode - UT","Interior Networked Lighting Controls - MR wCode - UT","Interior Advanced Networked Lighting Controls - MR wCode - v2 - UT","contact us for the NCMR Exterior tool","contact us for the NCMR Exterior tool","contact us for the NCMR Exterior tool","contact us for the NCMR Exterior tool","contact us for the NCMR Exterior tool","contact us for the NCMR Exterior tool"]
["LED","LED Fixture - Downlight","Interior Lighting - Ineligible - NCMR - v2 - UT","Interior Lighting - Ineligible - NCMR - v2 - UT","Interior Lighting - Ineligible - NCMR - v2 - UT","Interior Lighting - Ineligible - NCMR - v2 - UT","Non-eligible fixture - Major Renovation - UT","Non-eligible fixture - Major Renovation - UT","Non-eligible fixture - Major Renovation - UT","Non-eligible fixture - Major Renovation - UT","Non-eligible fixture - Major Renovation - UT","Non-eligible fixture - Major Renovation - UT"]
["LED","LED Fixture - Flood < 100W","Interior Lighting - No Controls - MR wCode - UT","Interior Lighting - No Controls - MR wCode - UT","Interior Networked Lighting Controls - MR wCode - UT","Interior Advanced Networked Lighting Controls - MR wCode - v2 - UT","contact us for the NCMR Exterior tool","contact us for the NCMR Exterior tool","contact us for the NCMR Exterior tool","contact us for the NCMR Exterior tool","contact us for the NCMR Exterior tool","contact us for the NCMR Exterior tool"]
["LED","LED Fixture - Flood >= 100W","Interior Lighting - No Controls - MR wCode - UT","Interior Lighting - No Controls - MR wCode - UT","Interior Networked Lighting Controls - MR wCode - UT","Interior Advanced Networked Lighting Controls - MR wCode - v2 - UT","contact us for the NCMR Exterior tool","contact us for the NCMR Exterior tool","contact us for the NCMR Exterior tool","contact us for the NCMR Exterior tool","contact us for the NCMR Exterior tool","contact us for the NCMR Exterior tool"]
["LED","LED Fixture - High/Low Bay","Interior Lighting - No Controls - MR wCode - UT","Interior Lighting - No Controls - MR wCode - UT","Interior Networked Lighting Controls - MR wCode - UT","Interior Advanced Networked Lighting Controls - MR wCode - v2 - UT","contact us for the NCMR Exterior tool","contact us for the NCMR Exterior tool","contact us for the NCMR Exterior tool","contact us for the NCMR Exterior tool","contact us for the NCMR Exterior tool","contact us for the NCMR Exterior tool"]
["LED","LED Fixture - Integral Track Head","Interior Lighting - No Controls - MR wCode - UT","Interior Lighting - No Controls - MR wCode - UT","Interior Networked Lighting Controls - MR wCode - UT","Interior Advanced Networked Lighting Controls - MR wCode - v2 - UT","Non-eligible fixture - Major Renovation - UT","Non-eligible fixture - Major Renovation - UT","Non-eligible fixture - Major Renovation - UT","Non-eligible fixture - Major Renovation - UT","Non-eligible fixture - Major Renovation - UT","Non-eligible fixture - Major Renovation - UT"]
["LED","LED Fixture - Pole Mount <= 200W","Interior Lighting - No Controls - MR wCode - UT","Interior Lighting - No Controls - MR wCode - UT","Interior Networked Lighting Controls - MR wCode - UT","Interior Advanced Networked Lighting Controls - MR wCode - v2 - UT","contact us for the NCMR Exterior tool","contact us for the NCMR Exterior tool","contact us for the NCMR Exterior tool","contact us for the NCMR Exterior tool","contact us for the NCMR Exterior tool","contact us for the NCMR Exterior tool"]
["LED","LED Fixture - Pole Mount > 200W","Interior Lighting - No Controls - MR wCode - UT","Interior Lighting - No Controls - MR wCode - UT","Interior Networked Lighting Controls - MR wCode - UT","Interior Advanced Networked Lighting Controls - MR wCode - v2 - UT","contact us for the NCMR Exterior tool","contact us for the NCMR Exterior tool","contact us for the NCMR Exterior tool","contact us for the NCMR Exterior tool","contact us for the NCMR Exterior tool","contact us for the NCMR Exterior tool"]
["LED","LED Fixture - Pole Mount Decorative < 75W","Interior Lighting - No Controls - MR wCode - UT","Interior Lighting - No Controls - MR wCode - UT","Interior Networked Lighting Controls - MR wCode - UT","Interior Advanced Networked Lighting Controls - MR wCode - v2 - UT","contact us for the NCMR Exterior tool","contact us for the NCMR Exterior tool","contact us for the NCMR Exterior tool","contact us for the NCMR Exterior tool","contact us for the NCMR Exterior tool","contact us for the NCMR Exterior tool"]
["LED","LED Fixture - Sconce/Wall Wash","Interior Lighting - No Controls - MR wCode - UT","Interior Lighting - No Controls - MR wCode - UT","Interior Networked Lighting Controls - MR wCode - UT","Interior Advanced Networked Lighting Controls - MR wCode - v2 - UT","contact us for the NCMR Exterior tool","contact us for the NCMR Exterior tool","contact us for the NCMR Exterior tool","contact us for the NCMR Exterior tool","contact us for the NCMR Exterior tool","contact us for the NCMR Exterior tool"]
["LED","LED Fixture - Strip/Wrap","Interior Lighting - No Controls - MR wCode - UT","Interior Lighting - No Controls - MR wCode - UT","Interior Networked Lighting Controls - MR wCode - UT","Interior Advanced Networked Lighting Controls - MR wCode - v2 - UT","Non-eligible fixture - Major Renovation - UT","Non-eligible fixture - Major Renovation - UT","Non-eligible fixture - Major Renovation - UT","Non-eligible fixture - Major Renovation - UT","Non-eligible fixture - Major Renovation - UT","Non-eligible fixture - Major Renovation - UT"]
["LED","LED Fixture - Surface Mount","Interior Lighting - No Controls - MR wCode - UT","Interior Lighting - No Controls - MR wCode - UT","Interior Networked Lighting Controls - MR wCode - UT","Interior Advanced Networked Lighting Controls - MR wCode - v2 - UT","contact us for the NCMR Exterior tool","contact us for the NCMR Exterior tool","contact us for the NCMR Exterior tool","contact us for the NCMR Exterior tool","contact us for the NCMR Exterior tool","contact us for the NCMR Exterior tool"]
["LED","LED Fixture - Troffer","Interior Lighting - No Controls - MR wCode - UT","Interior Lighting - No Controls - MR wCode - UT","Interior Networked Lighting Controls - MR wCode - UT","Interior Advanced Networked Lighting Controls - MR wCode - v2 - UT","Non-eligible fixture - Major Renovation - UT","Non-eligible fixture - Major Renovation - UT","Non-eligible fixture - Major Renovation - UT","Non-eligible fixture - Major Renovation - UT","Non-eligible fixture - Major Renovation - UT","Non-eligible fixture - Major Renovation - UT"]
["LED","LED Fixture - Wall Pack < 50W","Interior Lighting - No Controls - MR wCode - UT","Interior Lighting - No Controls - MR wCode - UT","Interior Networked Lighting Controls - MR wCode - UT","Interior Advanced Networked Lighting Controls - MR wCode - v2 - UT","contact us for the NCMR Exterior tool","contact us for the NCMR Exterior tool","contact us for the NCMR Exterior tool","contact us for the NCMR Exterior tool","contact us for the NCMR Exterior tool","contact us for the NCMR Exterior tool"]
["LED","LED Fixture - Wall Pack >= 50W","Interior Lighting - No Controls - MR wCode - UT","Interior Lighting - No Controls - MR wCode - UT","Interior Networked Lighting Controls - MR wCode - UT","Interior Advanced Networked Lighting Controls - MR wCode - v2 - UT","contact us for the NCMR Exterior tool","contact us for the NCMR Exterior tool","contact us for the NCMR Exterior tool","contact us for the NCMR Exterior tool","contact us for the NCMR Exterior tool","contact us for the NCMR Exterior tool"]
["LED","LED Fixture - Wall Pack w/ occ sensor- < 50W","Interior Lighting - No Controls - MR wCode - UT","Interior Lighting - No Controls - MR wCode - UT","Interior Networked Lighting Controls - MR wCode - UT","Interior Advanced Networked Lighting Controls - MR wCode - v2 - UT","contact us for the NCMR Exterior tool","contact us for the NCMR Exterior tool","contact us for the NCMR Exterior tool","contact us for the NCMR Exterior tool","contact us for the NCMR Exterior tool","contact us for the NCMR Exterior tool"]
["LED","LED Fixture - Wall Pack w/ occ sensor- >= 50W","Interior Lighting - No Controls - MR wCode - UT","Interior Lighting - No Controls - MR wCode - UT","Interior Networked Lighting Controls - MR wCode - UT","Interior Advanced Networked Lighting Controls - MR wCode - v2 - UT","contact us for the NCMR Exterior tool","contact us for the NCMR Exterior tool","contact us for the NCMR Exterior tool","contact us for the NCMR Exterior tool","contact us for the NCMR Exterior tool","contact us for the NCMR Exterior tool"]
["LED","LED MR16","Interior Lighting - Ineligible - NCMR - v2 - UT","Interior Lighting - Ineligible - NCMR - v2 - UT","Interior Lighting - Ineligible - NCMR - v2 - UT","Interior Lighting - Ineligible - NCMR - v2 - UT","Non-eligible fixture - Major Renovation - UT","Non-eligible fixture - Major Renovation - UT","Non-eligible fixture - Major Renovation - UT","Non-eligible fixture - Major Renovation - UT","Non-eligible fixture - Major Renovation - UT","Non-eligible fixture - Major Renovation - UT"]
["LED","LED Retrofit Kit - Downlight","Interior Lighting - Ineligible - NCMR - v2 - UT","Interior Lighting - Ineligible - NCMR - v2 - UT","Interior Lighting - Ineligible - NCMR - v2 - UT","Interior Lighting - Ineligible - NCMR - v2 - UT","Non-eligible fixture - Major Renovation - UT","Non-eligible fixture - Major Renovation - UT","Non-eligible fixture - Major Renovation - UT","Non-eligible fixture - Major Renovation - UT","Non-eligible fixture - Major Renovation - UT","Non-eligible fixture - Major Renovation - UT"]
["LED","LED Screw-In Lamp","Interior Lighting - Ineligible - NCMR - v2 - UT","Interior Lighting - Ineligible - NCMR - v2 - UT","Interior Lighting - Ineligible - NCMR - v2 - UT","Interior Lighting - Ineligible - NCMR - v2 - UT","Non-eligible fixture - Major Renovation - UT","Non-eligible fixture - Major Renovation - UT","Non-eligible fixture - Major Renovation - UT","Non-eligible fixture - Major Renovation - UT","Non-eligible fixture - Major Renovation - UT","Non-eligible fixture - Major Renovation - UT"]
["LED","T5 TLED - 2 Ft","Interior Lighting - Ineligible - NCMR - v2 - UT","Interior Lighting - Ineligible - NCMR - v2 - UT","Interior Lighting - Ineligible - NCMR - v2 - UT","Interior Lighting - Ineligible - NCMR - v2 - UT","Non-eligible fixture - Major Renovation - UT","Non-eligible fixture - Major Renovation - UT","Non-eligible fixture - Major Renovation - UT","Non-eligible fixture - Major Renovation - UT","Non-eligible fixture - Major Renovation - UT","Non-eligible fixture - Major Renovation - UT"]
["LED","T5 TLED - 4 Ft","Interior Lighting - Ineligible - NCMR - v2 - UT","Interior Lighting - Ineligible - NCMR - v2 - UT","Interior Lighting - Ineligible - NCMR - v2 - UT","Interior Lighting - Ineligible - NCMR - v2 - UT","Non-eligible fixture - Major Renovation - UT","Non-eligible fixture - Major Renovation - UT","Non-eligible fixture - Major Renovation - UT","Non-eligible fixture - Major Renovation - UT","Non-eligible fixture - Major Renovation - UT","Non-eligible fixture - Major Renovation - UT"]
["LED","T8 TLED - 2 Ft","Interior Lighting - Ineligible - NCMR - v2 - UT","Interior Lighting - Ineligible - NCMR - v2 - UT","Interior Lighting - Ineligible - NCMR - v2 - UT","Interior Lighting - Ineligible - NCMR - v2 - UT","Non-eligible fixture - Major Renovation - UT","Non-eligible fixture - Major Renovation - UT","Non-eligible fixture - Major Renovation - UT","Non-eligible fixture - Major Renovation - UT","Non-eligible fixture - Major Renovation - UT","Non-eligible fixture - Major Renovation - UT"]
["LED","T8 TLED - 4 Ft","Interior Lighting - Ineligible - NCMR - v2 - UT","Interior Lighting - Ineligible - NCMR - v2 - UT","Interior Lighting - Ineligible - NCMR - v2 - UT","Interior Lighting - Ineligible - NCMR - v2 - UT","Non-eligible fixture - Major Renovation - UT","Non-eligible fixture - Major Renovation - UT","Non-eligible fixture - Major Renovation - UT","Non-eligible fixture - Major Renovation - UT","Non-eligible fixture - Major Renovation - UT","Non-eligible fixture - Major Renovation - UT"]
["CEA","CEA LED Fixture","Controlled Environment Agriculture Lighting - Custom - Fixtures - NCMR woCode - UT","Controlled Environment Agriculture Lighting - Custom - Fixtures - NCMR woCode - UT","Controlled Environment Agriculture Lighting - Custom - Fixtures - NCMR woCode - UT","Controlled Environment Agriculture Lighting - Custom - Fixtures - NCMR woCode - UT","Non-eligible fixture - Major Renovation - UT","Non-eligible fixture - Major Renovation - UT","Non-eligible fixture - Major Renovation - UT","Non-eligible fixture - Major Renovation - UT","Non-eligible fixture - Major Renovation - UT","Non-eligible fixture - Major Renovation - UT"]
["CEA","CEA LED Lamp","Controlled Environment Agriculture Lighting - Custom - Lamps - NCMR woCode - UT","Controlled Environment Agriculture Lighting - Custom - Lamps - NCMR woCode - UT","Controlled Environment Agriculture Lighting - Custom - Lamps - NCMR woCode - UT","Controlled Environment Agriculture Lighting - Custom - Lamps - NCMR woCode - UT","Non-eligible fixture - Major Renovation - UT","Non-eligible fixture - Major Renovation - UT","Non-eligible fixture - Major Renovation - UT","Non-eligible fixture - Major Renovation - UT","Non-eligible fixture - Major Renovation - UT","Non-eligible fixture - Major Renovation - UT"]

{"sheet":"MeasureTable_UT","index":21,"n_rows":83,"n_cols":55,"rows_kept":83,"cut":false,"hidden":true,"merged":[]}
[]
["Eligible Measure","MeasureEligibleConcatenate","State","Measure Reference Number","Measure Name","Measure Category","Measure Type","Measure Sub Type","Measure Description","Version Number","Active Indicator","Effective Start Date","Effective End Date","Baseline description","Baseline Value","Baseline Value Unit","Efficiency requirement description","Efficient Case Value","Efficient Case Unit","Eligibility Case Description","Gross incremental annual electric savings unit","GrossIncrementalAnnualElectricSavings","GrossAverageMonthlyDemandReduction","GrossIncrementalAnnualGasSavings_MMBtu per yr","Savings attribute notes","IncrementalCostDollarUnit","IncrementalMeasureCost","CustomerIncentiveDollarPerUnit","Partner(Contractor)Incentive($/unit)","Unit","Cost attribute notes","MeasureLife","NonEnergyBenefitsWater_DollarsPerYear","NonEnergyBenefitsOther_DollarsPerYear","Units for NEB Other","General attribute notes","Energy savings calculation method","Demand savings calculation method","Program Type","DSM Resource Class","Applicability","Review Date","Project Cap","ProjectCapPercent","CustomerIncentiveperkW($/kW)","SiteSpecificCalculation","MeasureCap%","MaximumCustomerIncentive","MaximumPartner/ContractorIncentive","Planned Realization Rate","Planned Net to Gross Ratio","Planned Realization or NTG Notes","Evaluated Realization Rate","Evaluated Net to Gross Ratio","Evaluated Realization or NTG Notes"]
[{"$f":"IF(AND(MeasureEffectiveDate>=MeasureTable_UT[[#This Row],[Effective Start Date]],MeasureTable_UT[[#This Row],[Effective Start Date]]<>\"\"),IF(MeasureTable_UT[[#This Row],[Effective End Date]]=\"\",TRUE,IF(MeasureEffectiveDate<=MeasureTable_UT[[#This Row],[Effective End Date]],TRUE,FALSE)))","v":false},{"$f":"MeasureTable_UT[[#This Row],[Measure Name]]&\" | \"&MeasureTable_UT[[#This Row],[Eligible Measure]]","v":"Exterior Advanced Lighting Controls - Advanced Networked Dimming Controls - MR wCode - UT | FALSE"},"UT","07072025-204","Exterior Advanced Lighting Controls - Advanced Networked Dimming Controls - MR wCode - UT","Lighting","Controls","Exterior Lighting Control","Exterior lighting system upgrades inMajor Renovation application, advanced networked dimming controls only. Controls must be connected, continuously dimming, and result in at least 45% energy savings.",1,"Active","2025-07-11","3000-12-31","Non-LED exterior fixture. The baseline wattage for EEMs is the lesser of: a) Wattage of the existing equipment, or b) Wattage of deemed baseline equipment on the energy efficiency program section of the Rocky Mountain Power website. ",null,null,"Must control LED tech in an ext light application. Control must be DLC listed, continuously dimming, and use an app or computer program to control fixtures. Must result in at minimum 45% energy savings. ",null,null,"All LED equipment must be listed as qualified on the Rocky Mountain Power website; this includes products on the DesignLights Consortium (DLC) Retrofit Kit product lists. Fixtures must be controlled using advanced dimming controls.","Site-Specific","Site-Specific","Site-Specific",null,null,"Site-Specific","Site-Specific",7.0000000000000007E-2,null,"kWh",null,"8",null,null,null,null,"RMP Deemed","RMP Deemed","Prescriptive","2","Equipment Upgrades",null,"false",null,null,null,null,"0.07",null,"1","0.73","UT_WSB_Program_Evaluation_2022-2023"]
[{"$f":"IF(AND(MeasureEffectiveDate>=MeasureTable_UT[[#This Row],[Effective Start Date]],MeasureTable_UT[[#This Row],[Effective Start Date]]<>\"\"),IF(MeasureTable_UT[[#This Row],[Effective End Date]]=\"\",TRUE,IF(MeasureEffectiveDate<=MeasureTable_UT[[#This Row],[Effective End Date]],TRUE,FALSE)))","v":false},{"$f":"MeasureTable_UT[[#This Row],[Measure Name]]&\" | \"&MeasureTable_UT[[#This Row],[Eligible Measure]]","v":"Exterior Advanced Lighting Controls - Advanced Networked Dimming Controls - MR woCode - UT | FALSE"},"UT","07072025-205","Exterior Advanced Lighting Controls - Advanced Networked Dimming Controls - MR woCode - UT","Lighting","Controls","Exterior Lighting Control","Exterior lighting system upgrades inMajor Renovation application, advanced networked dimming controls only. Controls must be connected, continuously dimming, and result in at least 45% energy savings.",1,"Active","2025-07-11","3000-12-31","Non-LED exterior fixture. The baseline wattage for EEMs is the lesser of: a) Wattage of the existing equipment, or b) Wattage of deemed baseline equipment on the energy efficiency program section of the Rocky Mountain Power website. ",null,null,"Must control LED tech in an ext light application. Control must be DLC listed, continuously dimming, and use an app or computer program to control fixtures. Must result in at minimum 45% energy savings. ",null,null,"All LED equipment must be listed as qualified on the Rocky Mountain Power website; this includes products on the DesignLights Consortium (DLC) Retrofit Kit product lists. Fixtures must be controlled using advanced dimming controls.","Site-Specific","Site-Specific","Site-Specific",null,null,"Site-Specific","Site-Specific",7.0000000000000007E-2,null,"kWh",null,"8",null,null,null,null,"RMP Deemed","RMP Deemed","Prescriptive","2","Equipment Upgrades",null,"true",0.7,null,null,null,"0.07",null,"1","0.73","UT_WSB_Program_Evaluation_2022-2023"]
[{"$f":"IF(AND(MeasureEffectiveDate>=MeasureTable_UT[[#This Row],[Effective Start Date]],MeasureTable_UT[[#This Row],[Effective Start Date]]<>\"\"),IF(MeasureTable_UT[[#This Row],[Effective End Date]]=\"\",TRUE,IF(MeasureEffectiveDate<=MeasureTable_UT[[#This Row],[Effective End Date]],TRUE,FALSE)))","v":false},{"$f":"MeasureTable_UT[[#This Row],[Measure Name]]&\" | \"&MeasureTable_UT[[#This Row],[Eligible Measure]]","v":"Exterior Advanced Lighting Controls - Advanced Networked Dimming Controls - Retrofit - UT | FALSE"},"UT","07072025-192","Exterior Advanced Lighting Controls - Advanced Networked Dimming Controls - Retrofit - UT","Lighting","Controls","Exterior Lighting Control","Exterior lighting system upgrades with advanced networked dimming controls only.",1,"Active","2025-07-11","3000-12-31","Non-LED exterior fixture. The baseline wattage for EEMs is the lesser of: a) Wattage of the existing equipment, or b) Wattage of deemed baseline equipment on the energy efficiency program section of the Rocky Mountain Power website. ",null,null,"Must control LED tech in an ext light application. Control must be DLC listed, continuously dimming, and use an app or computer program to control fixtures. Must result in at minimum 45% energy savings. ",null,null,"All LED equipment must be listed as qualified on the Rocky Mountain Power website; this includes products on the DesignLights Consortium (DLC) Retrofit Kit product lists. Fixtures must be controlled using advanced networked dimming controls.","Site-Specific","Site-Specific","Site-Specific",null,null,"Site-Specific","Site-Specific",0.6,null,"Watt Controlled",null,"8",null,null,null,null,"RMP Deemed",null,"Prescriptive","2","Retrofit",null,"true",0.7,null,null,null,"0.8","0","1","0.73","UT_WSB_Program_Evaluation_2022-2023"]
[{"$f":"IF(AND(MeasureEffectiveDate>=MeasureTable_UT[[#This Row],[Effective Start Date]],MeasureTable_UT[[#This Row],[Effective Start Date]]<>\"\"),IF(MeasureTable_UT[[#This Row],[Effective End Date]]=\"\",TRUE,IF(MeasureEffectiveDate<=MeasureTable_UT[[#This Row],[Effective End Date]],TRUE,FALSE)))","v":false},{"$f":"MeasureTable_UT[[#This Row],[Measure Name]]&\" | \"&MeasureTable_UT[[#This Row],[Eligible Measure]]","v":"Exterior Advanced Lighting Controls - Basic Dimming Controls - MR wCode - v2 - UT | FALSE"},"UT","02082023-018","Exterior Advanced Lighting Controls - Basic Dimming Controls - MR wCode - v2 - UT","Lighting","Controls","Exterior Lighting Control","Exterior lighting upgrades for Major Renovation (with Code) application with basic dimming controls only",4,"Active","2025-07-11","3000-12-31","Non-LED exterior fixture. The baseline wattage for EEMs is the lesser of: a) Wattage of the existing equipment, or b) Wattage of deemed baseline equipment on the energy efficiency program section of the Rocky Mountain Power website. ",null,null,"Must control LED tech in an ext light application. Control can be occupancy or schedule-based, and result in minimum of 35% energy savings. Networking not required.",null,null,"All LED equipment must be listed as qualified on the Rocky Mountain Power website; this includes products on the DesignLights Consortium (DLC) Retrofit Kit product lists. Fixtures must be controlled using basic dimming controls.","Site-Specific","Site-Specific","Site-Specific",null,null,"Site-Specific","Site-Specific",0.05,null,"kWh",null,"8",null,null,null,null,"RMP Deemed","RMP Deemed","Prescriptive","2","Equipment Upgrades",null,"false",null,null,"true",null,"0.05",null,"1","0.73","UT_WSB_Program_Evaluation_2022-2023"]
[{"$f":"IF(AND(MeasureEffectiveDate>=MeasureTable_UT[[#This Row],[Effective Start Date]],MeasureTable_UT[[#This Row],[Effective Start Date]]<>\"\"),IF(MeasureTable_UT[[#This Row],[Effective End Date]]=\"\",TRUE,IF(MeasureEffectiveDate<=MeasureTable_UT[[#This Row],[Effective End Date]],TRUE,FALSE)))","v":false},{"$f":"MeasureTable_UT[[#This Row],[Measure Name]]&\" | \"&MeasureTable_UT[[#This Row],[Eligible Measure]]","v":"Exterior Advanced Lighting Controls - Basic Dimming Controls - MR woCode - v2 - UT | FALSE"},"UT","02082023-019","Exterior Advanced Lighting Controls - Basic Dimming Controls - MR woCode - v2 - UT","Lighting","Controls","Exterior Lighting Control","Exterior lighting upgrades for Major Renovation (without Code) application with basic dimming controls only",4,"Active","2025-07-11","3000-12-31","Non-LED exterior fixture. The baseline wattage for EEMs is the lesser of: a) Wattage of the existing equipment, or b) Wattage of deemed baseline equipment on the energy efficiency program section of the Rocky Mountain Power website. ",null,null,"Must control LED tech in an ext light application. Control can be occupancy or schedule-based, and result in minimum of 35% energy savings. Networking not required.",null,null,"All LED equipment must be listed as qualified on the Rocky Mountain Power website; this includes products on the DesignLights Consortium (DLC) Retrofit Kit product lists. Fixtures must be controlled using basic dimming controls.","Site-Specific","Site-Specific","Site-Specific",null,null,"Site-Specific","Site-Specific",0.05,null,"kWh",null,"8",null,null,null,null,"RMP Deemed","RMP Deemed","Prescriptive","2","Equipment Upgrades",null,"true",0.7,null,"true",null,"0.05",null,"1","0.73","UT_WSB_Program_Evaluation_2022-2023"]
[{"$f":"IF(AND(MeasureEffectiveDate>=MeasureTable_UT[[#This Row],[Effective Start Date]],MeasureTable_UT[[#This Row],[Effective Start Date]]<>\"\"),IF(MeasureTable_UT[[#This Row],[Effective End Date]]=\"\",TRUE,IF(MeasureEffectiveDate<=MeasureTable_UT[[#This Row],[Effective End Date]],TRUE,FALSE)))","v":false},{"$f":"MeasureTable_UT[[#This Row],[Measure Name]]&\" | \"&MeasureTable_UT[[#This Row],[Eligible Measure]]","v":"Exterior Advanced Lighting Controls - Basic Dimming Controls - Retrofit - UT | FALSE"},"UT","07072025-193","Exterior Advanced Lighting Controls - Basic Dimming Controls - Retrofit - UT","Lighting","Controls","Exterior Lighting Control","Exterior lighting system upgrades with basic dimming controls only.",1,"Active","2025-07-11","3000-12-31","Non-LED exterior fixture. The baseline wattage for EEMs is the lesser of: a) Wattage of the existing equipment, or b) Wattage of deemed baseline equipment on the energy efficiency program section of the Rocky Mountain Power website. ",null,null,"Must control LED tech in an ext light application. Control can be occupancy or schedule-based, and result in minimum of 35% energy savings. Networking not required.",null,null,"All LED equipment must be listed as qualified on the Rocky Mountain Power website; this includes products on the DesignLights Consortium (DLC) Retrofit Kit product lists. Fixtures must be controlled using basic dimming controls.","Site-Specific","Site-Specific","Site-Specific",null,null,"Site-Specific","Site-Specific",0.35,null,"Watt Controlled",null,"8",null,null,null,null,"RMP Deemed",null,"Prescriptive",2,"Retrofit",null,"true",0.7,null,null,null,"0.8","0","1","0.73","UT_WSB_Program_Evaluation_2022-2023"]
[{"$f":"IF(AND(MeasureEffectiveDate>=MeasureTable_UT[[#This Row],[Effective Start Date]],MeasureTable_UT[[#This Row],[Effective Start Date]]<>\"\"),IF(MeasureTable_UT[[#This Row],[Effective End Date]]=\"\",TRUE,IF(MeasureEffectiveDate<=MeasureTable_UT[[#This Row],[Effective End Date]],TRUE,FALSE)))","v":false},{"$f":"MeasureTable_UT[[#This Row],[Measure Name]]&\" | \"&MeasureTable_UT[[#This Row],[Eligible Measure]]","v":"Exterior Fixture Replacement - Retrofit - UT | FALSE"},"UT","07072025-194","Exterior Fixture Replacement - Retrofit - UT","Lighting","Exterior Lighting","Fixture Retrofit/Replacement","Exterior lighting upgrades, fixture replacement only. LED must be listed on qualified equipment lists. Entire existing fixture must be removed and a new fixture installed. ",1,"Active","2025-07-11","3000-12-31","Existing non-LED exterior fixture. The baseline wattage for EEMs is the lesser of: a) Wattage of the existing equipment, or b) Wattage of deemed baseline equipment on the energy efficiency program section of the Rocky Mountain Power website. ",null,null,"Full fixture replacement with LED fixture on the Rocky Mountain Power qualified list (DLC or ENERGY STAR qualified)",null,null,"All LED equipment must be listed as qualified on the Rocky Mountain Power website; this includes products on the DesignLights Consortium (DLC) Retrofit Kit product lists.","Site-Specific","Site-Specific","Site-Specific",null,null,"Site-Specific","Site-Specific",0.35,null,"Watt Reduced",null,"15",null,null,null,null,"RMP Deemed",null,"Prescriptive",2,"Retrofit",null,"true",0.7,null,null,null,"0.8","0","1","0.73","UT_WSB_Program_Evaluation_2022-2023"]
[{"$f":"IF(AND(MeasureEffectiveDate>=MeasureTable_UT[[#This Row],[Effective Start Date]],MeasureTable_UT[[#This Row],[Effective Start Date]]<>\"\"),IF(MeasureTable_UT[[#This Row],[Effective End Date]]=\"\",TRUE,IF(MeasureEffectiveDate<=MeasureTable_UT[[#This Row],[Effective End Date]],TRUE,FALSE)))","v":false},{"$f":"MeasureTable_UT[[#This Row],[Measure Name]]&\" | \"&MeasureTable_UT[[#This Row],[Eligible Measure]]","v":"Exterior Fixture Replacement - w/ Advanced Networked Dimming Controls - Retrofit - UT | FALSE"},"UT","07072025-195","Exterior Fixture Replacement - w/ Advanced Networked Dimming Controls - Retrofit - UT","Lighting","Exterior Lighting","Fixture Retrofit/Replacement","Exterior lighting upgrades, fixture replacement only. Entire existing fixture must be removed and a new fixture installed. Replacements must include advanced networked dimming controls. ",1,"Active","2025-07-11","3000-12-31","Existing non-LED exterior fixture. The baseline wattage for EEMs is the lesser of: a) Wattage of the existing equipment, or b) Wattage of deemed baseline equipment on the energy efficiency program section of the Rocky Mountain Power website. ",null,null,"Full fixture replacement with LED fixture on the Rocky Mountain Power qualified list (DLC or ENERGY STAR qualified) along with advanced networked dimming controls",null,null,"All LED equipment must be listed as qualified on the Rocky Mountain Power website; this includes products on the DesignLights Consortium (DLC) Retrofit Kit product lists. Fixtures must be controlled using advanced networked dimming controls.","Site-Specific","Site-Specific","Site-Specific",null,null,"Site-Specific","Site-Specific",0.7,null,"Watt Reduced",null,"15",null,null,null,null,"RMP Deemed",null,"Prescriptive",2,"Retrofit",null,"true",0.7,null,null,null,"0.8","0","1","0.73","UT_WSB_Program_Evaluation_2022-2023"]
[{"$f":"IF(AND(MeasureEffectiveDate>=MeasureTable_UT[[#This Row],[Effective Start Date]],MeasureTable_UT[[#This Row],[Effective Start Date]]<>\"\"),IF(MeasureTable_UT[[#This Row],[Effective End Date]]=\"\",TRUE,IF(MeasureEffectiveDate<=MeasureTable_UT[[#This Row],[Effective End Date]],TRUE,FALSE)))","v":false},{"$f":"MeasureTable_UT[[#This Row],[Measure Name]]&\" | \"&MeasureTable_UT[[#This Row],[Eligible Measure]]","v":"Exterior Fixture Replacement - w/ Basic Dimming Controls - Retrofit - UT | FALSE"},"UT","07072025-196","Exterior Fixture Replacement - w/ Basic Dimming Controls - Retrofit - UT","Lighting","Exterior Lighting","Fixture Retrofit/Replacement","Exterior lighting upgrades, with basic dimming controls. LED must be listed on qualified equipment lists. Entire existing fixture must be removed and a new fixture installed.",1,"Active","2025-07-11","3000-12-31","Existing non-LED exterior fixture. The baseline wattage for EEMs is the lesser of: a) Wattage of the existing equipment, or b) Wattage of deemed baseline equipment on the energy efficiency program section of the Rocky Mountain Power website. ",null,null,"Full fixture replacement with LED fixture on the Rocky Mountain Power qualified list (DLC or ENERGY STAR qualified) along with advanced dimming controls",null,null,"All LED equipment must be listed as qualified on the Rocky Mountain Power website; this includes products on the DesignLights Consortium (DLC) Retrofit Kit product lists. Fixtures must be controlled using advanced dimming controls.","Site-Specific","Site-Specific","Site-Specific",null,null,"Site-Specific","Site-Specific",0.5,null,"Watt Reduced",null,"15",null,null,null,null,"RMP Deemed",null,"Prescriptive",2,"Retrofit",null,"true",0.7,null,null,null,"0.8","0","1","0.73","UT_WSB_Program_Evaluation_2022-2023"]
[{"$f":"IF(AND(MeasureEffectiveDate>=MeasureTable_UT[[#This Row],[Effective Start Date]],MeasureTable_UT[[#This Row],[Effective Start Date]]<>\"\"),IF(MeasureTable_UT[[#This Row],[Effective End Date]]=\"\",TRUE,IF(MeasureEffectiveDate<=MeasureTable_UT[[#This Row],[Effective End Date]],TRUE,FALSE)))","v":false},{"$f":"MeasureTable_UT[[#This Row],[Measure Name]]&\" | \"&MeasureTable_UT[[#This Row],[Eligible Measure]]","v":"Exterior Fixture Retrofit Kit - Retrofit - UT | FALSE"},"UT","07072025-197","Exterior Fixture Retrofit Kit - Retrofit - UT","Lighting","Exterior Lighting","Fixture Retrofit/Replacement","Exterior lighting upgrade via fixture retrofit kit. Keeps existing fixture housing and modifies fixture components to incorporate new lighting equipment. LED must be listed on qualified equipment list. ",1,"Active","2025-07-11","3000-12-31","Existing non-LED exterior fixture. The baseline wattage for EEMs is the lesser of: a) Wattage of the existing equipment, or b) Wattage of deemed baseline equipment on the energy efficiency program section of the Rocky Mountain Power website. ",null,null,"LED retrofit kit on the Rocky Mountain Power qualified list (DLC)",null,null,"All LED equipment must be listed as qualified on the Rocky Mountain Power website; this includes products on the DesignLights Consortium (DLC) Retrofit Kit product lists.","Site-Specific","Site-Specific","Site-Specific",null,null,"Site-Specific","Site-Specific",0.35,null,"Watt Reduced",null,"15",null,null,null,null,"RMP Deemed",null,"Prescriptive",2,"Retrofit",null,"true",0.7,null,null,null,"0.8","0","1","0.73","UT_WSB_Program_Evaluation_2022-2023"]
[{"$f":"IF(AND(MeasureEffectiveDate>=MeasureTable_UT[[#This Row],[Effective Start Date]],MeasureTable_UT[[#This Row],[Effective Start Date]]<>\"\"),IF(MeasureTable_UT[[#This Row],[Effective End Date]]=\"\",TRUE,IF(MeasureEffectiveDate<=MeasureTable_UT[[#This Row],[Effective End Date]],TRUE,FALSE)))","v":false},{"$f":"MeasureTable_UT[[#This Row],[Measure Name]]&\" | \"&MeasureTable_UT[[#This Row],[Eligible Measure]]","v":"Exterior Fixture Retrofit Kit - w/ Advanced Networked Dimming Controls - Retrofit - UT | FALSE"},"UT","07072025-198","Exterior Fixture Retrofit Kit - w/ Advanced Networked Dimming Controls - Retrofit - UT","Lighting","Exterior Lighting","Fixture Retrofit/Replacement","Exterior fixture retrofit kit, with advanced networked dimming controls. Keeps existing fixture housing and modifies fixture components to incorporate new lighting equipment. Must be on qualified equipment list. ",1,"Active","2025-07-11","3000-12-31","Existing non-LED exterior fixture. The baseline wattage for EEMs is the lesser of: a) Wattage of the existing equipment, or b) Wattage of deemed baseline equipment on the energy efficiency program section of the Rocky Mountain Power website. ",null,null,"LED retrofit kit on the Rocky Mountain Power qualified list (DLC) along with advanced networked dimming controls",null,null,"All LED equipment must be listed as qualified on the Rocky Mountain Power website; this includes products on the DesignLights Consortium (DLC) Retrofit Kit product lists. Fixtures must be controlled using advanced dimming controls.","Site-Specific","Site-Specific","Site-Specific",null,null,"Site-Specific","Site-Specific",0.7,null,"Watt Reduced",null,"15",null,null,null,null,"RMP Deemed",null,"Prescriptive",2,"Retrofit",null,"true",0.7,null,null,null,"0.8","0","1","0.73","UT_WSB_Program_Evaluation_2022-2023"]
[{"$f":"IF(AND(MeasureEffectiveDate>=MeasureTable_UT[[#This Row],[Effective Start Date]],MeasureTable_UT[[#This Row],[Effective Start Date]]<>\"\"),IF(MeasureTable_UT[[#This Row],[Effective End Date]]=\"\",TRUE,IF(MeasureEffectiveDate<=MeasureTable_UT[[#This Row],[Effective End Date]],TRUE,FALSE)))","v":false},{"$f":"MeasureTable_UT[[#This Row],[Measure Name]]&\" | \"&MeasureTable_UT[[#This Row],[Eligible Measure]]","v":"Exterior Fixture Retrofit Kit - w/ Basic Dimming Controls - Retrofit - UT | FALSE"},"UT","07072025-199","Exterior Fixture Retrofit Kit - w/ Basic Dimming Controls - Retrofit - UT","Lighting","Exterior Lighting","Fixture Retrofit/Replacement","Exterior lighting upgrade via fixture retrofit kit, with advanced dimming controls. Keeps existing fixture housing and modifies fixture components to incorporate new lighting equipment. Must be on qualified equipment list.",1,"Active","2025-07-11","3000-12-31","Existing non-LED exterior fixture. The baseline wattage for EEMs is the lesser of: a) Wattage of the existing equipment, or b) Wattage of deemed baseline equipment on the energy efficiency program section of the Rocky Mountain Power website. ",null,null,"LED retrofit kit on the Rocky Mountain Power qualified list (DLC) along with advanced dimming controls",null,null,"All LED equipment must be listed as qualified on the Rocky Mountain Power website; this includes products on the DesignLights Consortium (DLC) Retrofit Kit product lists. Fixtures must be controlled using advanced dimming controls.","Site-Specific","Site-Specific","Site-Specific",null,null,"Site-Specific","Site-Specific",0.5,null,"Watt Reduced",null,"15",null,null,null,null,"RMP Deemed",null,"Prescriptive",2,"Retrofit",null,"true",0.7,null,null,null,"0.8","0","1","0.73","UT_WSB_Program_Evaluation_2022-2023"]
[{"$f":"IF(AND(MeasureEffectiveDate>=MeasureTable_UT[[#This Row],[Effective Start Date]],MeasureTable_UT[[#This Row],[Effective Start Date]]<>\"\"),IF(MeasureTable_UT[[#This Row],[Effective End Date]]=\"\",TRUE,IF(MeasureEffectiveDate<=MeasureTable_UT[[#This Row],[Effective End Date]],TRUE,FALSE)))","v":false},{"$f":"MeasureTable_UT[[#This Row],[Measure Name]]&\" | \"&MeasureTable_UT[[#This Row],[Eligible Measure]]","v":"Exterior Lighting - Custom - Retrofit - UT | FALSE"},"UT","07072025-200","Exterior Lighting - Custom - Retrofit - UT","Lighting","Custom","Exterior Lighting","Custom exterior lighting system retrofit. ",1,"Active","2025-07-11","3000-12-31","Existing non-LED exterior fixture. The baseline wattage for EEMs is the lesser of: a) Wattage of the existing equipment, or b) Wattage of deemed baseline equipment on the energy efficiency program section of the Rocky Mountain Power website. ",null,null,"To be eligible for incentive, the new lighting system must use less energy than the existing/baseline lighting system. ",null,null,"All LED equipment must be listed as qualified on the Rocky Mountain Power website; this includes products on the DesignLights Consortium (DLC) Retrofit Kit product lists.","Site-Specific","Site-Specific","Site-Specific",null,null,"Site-Specific","Site-Specific",0.1,null,"Watt Reduced",null,"15",null,null,null,null,"RMP Deemed",null,"Prescriptive",2,"Retrofit",null,"true",0.7,null,null,null,"0.8","0","1","0.73","UT_WSB_Program_Evaluation_2022-2023"]
[{"$f":"IF(AND(MeasureEffectiveDate>=MeasureTable_UT[[#This Row],[Effective Start Date]],MeasureTable_UT[[#This Row],[Effective Start Date]]<>\"\"),IF(MeasureTable_UT[[#This Row],[Effective End Date]]=\"\",TRUE,IF(MeasureEffectiveDate<=MeasureTable_UT[[#This Row],[Effective End Date]],TRUE,FALSE)))","v":false},{"$f":"MeasureTable_UT[[#This Row],[Measure Name]]&\" | \"&MeasureTable_UT[[#This Row],[Eligible Measure]]","v":"Exterior Lighting - Custom - w/ Basic Dimming Controls - Retrofit - UT | FALSE"},"UT","07072025-201","Exterior Lighting - Custom - w/ Basic Dimming Controls - Retrofit - UT","Lighting","Custom","Exterior Lighting","Custom exterior lighting system retrofit with basic dimming controls. Small Customer Category.",1,"Active","2025-07-11","3000-12-31","Existing non-LED exterior fixture. The baseline wattage for EEMs is the lesser of: a) Wattage of the existing equipment, or b) Wattage of deemed baseline equipment on the energy efficiency program section of the Rocky Mountain Power website. ",null,null,"To be eligible for incentive, the new lighting system must use less energy than the existing/baseline lighting system. ",null,null,"All LED equipment must be listed as qualified on the Rocky Mountain Power website; this includes products on the DesignLights Consortium (DLC) Retrofit Kit product lists. Fixtures must be controlled using basic dimming controls.","Site-Specific","Site-Specific","Site-Specific",null,null,"Site-Specific","Site-Specific",0.3,null,"Watt Reduced",null,"15",null,null,null,null,"RMP Deemed",null,"Prescriptive",2,"Retrofit",null,"true",0.7,null,null,null,"0.8","0","1","0.73","UT_WSB_Program_Evaluation_2022-2023"]
[{"$f":"IF(AND(MeasureEffectiveDate>=MeasureTable_UT[[#This Row],[Effective Start Date]],MeasureTable_UT[[#This Row],[Effective Start Date]]<>\"\"),IF(MeasureTable_UT[[#This Row],[Effective End Date]]=\"\",TRUE,IF(MeasureEffectiveDate<=MeasureTable_UT[[#This Row],[Effective End Date]],TRUE,FALSE)))","v":false},{"$f":"MeasureTable_UT[[#This Row],[Measure Name]]&\" | \"&MeasureTable_UT[[#This Row],[Eligible Measure]]","v":"Exterior Lighting - No Controls - MR wCode - UT | FALSE"},"UT","07072025-202","Exterior Lighting - No Controls - MR wCode - UT","Lighting","Exterior Lighting","Fixture Retrofit/Replacement","Exterior lighting upgrades for Major Renovation (with Code) application",1,"Active","2025-07-11","3000-12-31","Non-LED exterior fixture. The baseline wattage for EEMs is the lesser of: a) Wattage of the existing equipment, or b) Wattage of deemed baseline equipment on the energy efficiency program section of the Rocky Mountain Power website. ",null,null,"To be eligible for incentive, the new lighting system must use less energy than the existing/baseline lighting system. ",null,null,"All LED equipment must be listed as qualified on the Rocky Mountain Power website; this includes products on the DesignLights Consortium (DLC) Retrofit Kit product lists.","Site-Specific","Site-Specific","Site-Specific",null,null,"Site-Specific","Site-Specific",0.04,null,"kWh",null,"15",null,null,null,null,"RMP Deemed",null,"Prescriptive","2","Retrofit",null,"true",null,null,null,null,"0.04","0","1","0.73","UT_WSB_Program_Evaluation_2022-2023"]
[{"$f":"IF(AND(MeasureEffectiveDate>=MeasureTable_UT[[#This Row],[Effective Start Date]],MeasureTable_UT[[#This Row],[Effective Start Date]]<>\"\"),IF(MeasureTable_UT[[#This Row],[Effective End Date]]=\"\",TRUE,IF(MeasureEffectiveDate<=MeasureTable_UT[[#This Row],[Effective End Date]],TRUE,FALSE)))","v":false},{"$f":"MeasureTable_UT[[#This Row],[Measure Name]]&\" | \"&MeasureTable_UT[[#This Row],[Eligible Measure]]","v":"Exterior Lighting - No Controls - MR woCode - UT | FALSE"},"UT","07072025-203","Exterior Lighting - No Controls - MR woCode - UT","Lighting","Exterior Lighting","Fixture Retrofit/Replacement","Exterior lighting upgrades for Major Renovation (without Code) application",1,"Active","2025-07-11","3000-12-31","Non-LED exterior fixture. The baseline wattage for EEMs is the lesser of: a) Wattage of the existing equipment, or b) Wattage of deemed baseline equipment on the energy efficiency program section of the Rocky Mountain Power website. ",null,null,"To be eligible for incentive, the new lighting system must use less energy than the existing/baseline lighting system. ",null,null,"All LED equipment must be listed as qualified on the Rocky Mountain Power website; this includes products on the DesignLights Consortium (DLC) Retrofit Kit product lists.","Site-Specific","Site-Specific","Site-Specific",null,null,"Site-Specific","Site-Specific",0.04,null,"kWh",null,"15",null,null,null,null,"RMP Deemed",null,"Prescriptive","2","Retrofit",null,"true",0.7,null,null,null,"0.04","0","1","0.73","UT_WSB_Program_Evaluation_2022-2023"]
[{"$f":"IF(AND(MeasureEffectiveDate>=MeasureTable_UT[[#This Row],[Effective Start Date]],MeasureTable_UT[[#This Row],[Effective Start Date]]<>\"\"),IF(MeasureTable_UT[[#This Row],[Effective End Date]]=\"\",TRUE,IF(MeasureEffectiveDate<=MeasureTable_UT[[#This Row],[Effective End Date]],TRUE,FALSE)))","v":false},{"$f":"MeasureTable_UT[[#This Row],[Measure Name]]&\" | \"&MeasureTable_UT[[#This Row],[Eligible Measure]]","v":"Interior Advanced Networked Lighting Controls - Commissioning Only - Retrofit - UT | FALSE"},"UT","07072025-206","Interior Advanced Networked Lighting Controls - Commissioning Only - Retrofit - UT","Lighting","Controls","Interior Lighting Controls","Commissioning of existing lighting controls with networked capability to properly function as advanced networked lighting control",1,"Active","2025-07-11","3000-12-31","Lighting equipment with capability to function as advanced networked lighting controls",null,null,"Lighting equipment properly set up with advanced networked lighting controls. Controls must meet same qualifications as NLC and be tied to a sensor and be individually addressable or have smaller controlled zones.",null,null,"A 3-year waiting period exists for any system that previously received an incentive as ANLC. Waiting period can be waived for systems previously classified as Basic, Networked, or if the installed control system has not previously received an incentive.","Site-Specific","Site-Specific","Site-Specific",null,null,"Site-Specific","Site-Specific",0.15,null,"Watt Controlled",null,"8",null,null,null,null,"RMP Calculation","RMP Calculation","Prescriptive","2","Retrofit",null,"true",1,null,"true",null,"0.17",null,"1","0.73","UT_WSB_Program_Evaluation_2022-2023"]
[{"$f":"IF(AND(MeasureEffectiveDate>=MeasureTable_UT[[#This Row],[Effective Start Date]],MeasureTable_UT[[#This Row],[Effective Start Date]]<>\"\"),IF(MeasureTable_UT[[#This Row],[Effective End Date]]=\"\",TRUE,IF(MeasureEffectiveDate<=MeasureTable_UT[[#This Row],[Effective End Date]],TRUE,FALSE)))","v":false},{"$f":"MeasureTable_UT[[#This Row],[Measure Name]]&\" | \"&MeasureTable_UT[[#This Row],[Eligible Measure]]","v":"Interior Advanced Networked Lighting Controls - Commissioning w/ Lighting Upgrade - Retrofit - UT | FALSE"},"UT","07072025-207","Interior Advanced Networked Lighting Controls - Commissioning w/ Lighting Upgrade - Retrofit - UT","Lighting","Controls","Interior Lighting Controls","Commissioning of existing lighting controls with networked capability to properly function as advanced networked lighting control",1,"Active","2025-07-11","3000-12-31","Lighting equipment with capability to function as advanced networked lighting controls",null,null,"Lighting equipment properly set up with advanced networked lighting controls. Controls must meet same qualifications as NLC and be tied to a sensor and be individually addressable or have smaller controlled zones.",null,null,"A 3-year waiting period exists for any system that previously received an incentive as ANLC. Waiting period can be waived for systems previously classified as Basic, Networked, or if the installed control system has not previously received an incentive.","Site-Specific","Site-Specific","Site-Specific",null,null,"Site-Specific","Site-Specific",0.15,null,"Watt Controlled",null,"8",null,null,null,null,"RMP Calculation","RMP Calculation","Prescriptive","2","Retrofit",null,"true",0.7,null,"true",null,"0.17",null,"1","0.73","UT_WSB_Program_Evaluation_2022-2023"]
[{"$f":"IF(AND(MeasureEffectiveDate>=MeasureTable_UT[[#This Row],[Effective Start Date]],MeasureTable_UT[[#This Row],[Effective Start Date]]<>\"\"),IF(MeasureTable_UT[[#This Row],[Effective End Date]]=\"\",TRUE,IF(MeasureEffectiveDate<=MeasureTable_UT[[#This Row],[Effective End Date]],TRUE,FALSE)))","v":false},{"$f":"MeasureTable_UT[[#This Row],[Measure Name]]&\" | \"&MeasureTable_UT[[#This Row],[Eligible Measure]]","v":"Interior Advanced Networked Lighting Controls - MR wCode - v2 - UT | FALSE"},"UT","02082023-057","Interior Advanced Networked Lighting Controls - MR wCode - v2 - UT","Lighting","Controls","Interior Lighting Controls","Major lighting renovation Utah Interior Advanced Networked Lighting Controls",3,"Active","2025-07-11","3000-12-31","The baseline wattage for MR with Code lighting EEMs is the lesser of: a) Wattage of the standard practice/federal standard equipment, or b) Wattage of deemed baseline equipment as determined by Rocky Mountain Power.",null,null,"To be eligible for the incentives listed, the new lighting system must use less energy than the existing lighting system replaced or the baseline lighting system as determined by Rocky Mountain Power.",null,null,"Eligible retrofit lighting equipment is defined in qualified equipment lists posted on the Utah energy efficiency program section of the Rocky Mountain Power website ","Site-Specific","Site-Specific","Site-Specific",null,null,"Site-Specific","Site-Specific",0.14000000000000001,null,"kWh",null,"8",null,null,null,null,"RMP Calculation","RMP Calculation","Prescriptive","2","Equipment Upgrades",null,"false",null,null,"true",null,"0.14",null,"1","0.73","UT_WSB_Program_Evaluation_2022-2023"]
[{"$f":"IF(AND(MeasureEffectiveDate>=MeasureTable_UT[[#This Row],[Effective Start Date]],MeasureTable_UT[[#This Row],[Effective Start Date]]<>\"\"),IF(MeasureTable_UT[[#This Row],[Effective End Date]]=\"\",TRUE,IF(MeasureEffectiveDate<=MeasureTable_UT[[#This Row],[Effective End Date]],TRUE,FALSE)))","v":false},{"$f":"MeasureTable_UT[[#This Row],[Measure Name]]&\" | \"&MeasureTable_UT[[#This Row],[Eligible Measure]]","v":"Interior Advanced Networked Lighting Controls - MR woCode - v2 - UT | FALSE"},"UT","02082023-058","Interior Advanced Networked Lighting Controls - MR woCode - v2 - UT","Lighting","Controls","Interior Lighting Controls","Major lighting renovation Utah Interior Advanced Networked Lighting Controls - 70 percent purchase transaction level cost project caps apply to NCMR projects that are not subject to state energy code.",3,"Active","2025-07-11","3000-12-31","The baseline wattage for MR without Code lighting EEMs is the lesser of: a) Wattage of the standard practice/federal standard equipment, or b) Wattage of deemed baseline equipment as determined by Rocky Mountain Power.",null,null,"To be eligible for the incentives listed, the new lighting system must use less energy than the existing lighting system replaced or the baseline lighting system as determined by Rocky Mountain Power.",null,null,"Eligible retrofit lighting equipment is defined in qualified equipment lists posted on the Utah energy efficiency program section of the Rocky Mountain Power website ","Site-Specific","Site-Specific","Site-Specific",null,null,"Site-Specific","Site-Specific",0.14000000000000001,null,"kWh",null,"8",null,null,null,null,"RMP Calculation","RMP Calculation","Prescriptive","2","Equipment Upgrades",null,"true",0.7,null,"true",null,"0.14",null,"1","0.73","UT_WSB_Program_Evaluation_2022-2023"]
[{"$f":"IF(AND(MeasureEffectiveDate>=MeasureTable_UT[[#This Row],[Effective Start Date]],MeasureTable_UT[[#This Row],[Effective Start Date]]<>\"\"),IF(MeasureTable_UT[[#This Row],[Effective End Date]]=\"\",TRUE,IF(MeasureEffectiveDate<=MeasureTable_UT[[#This Row],[Effective End Date]],TRUE,FALSE)))","v":false},{"$f":"MeasureTable_UT[[#This Row],[Measure Name]]&\" | \"&MeasureTable_UT[[#This Row],[Eligible Measure]]","v":"Interior Advanced Networked Lighting Controls - Retrofit - UT | FALSE"},"UT","07072025-208","Interior Advanced Networked Lighting Controls - Retrofit - UT","Lighting","Controls","Interior Lighting Controls","Interior advanced networked lighting controls. Installed in a retrofit application. ",1,"Active","2025-07-11","3000-12-31","Baseline wattage for all retrofit lighting EEMs is the lesser of: a) Wattage of the existing equipment, or b) Wattage of deemed baseline equipment as determined by Rocky Mountain Power.",null,null,"Advanced networked lighting controls on interior lighting equipment.",null,null,"Installed lighting equipment (and controls, if applicable) must be eligible as defined in the qualified equipment lists posted on the Rocky Mountain Power website.","Site-Specific","Site-Specific","Site-Specific",null,null,"Site-Specific","Site-Specific",0.75,null,"Watt Controlled",null,"8",null,null,null,null,"RMP Calculation","RMP Calculation","Prescriptive","2","Retrofit",null,"true",0.7,null,"true",null,"1.5",null,"1","0.73","UT_WSB_Program_Evaluation_2022-2023"]
[{"$f":"IF(AND(MeasureEffectiveDate>=MeasureTable_UT[[#This Row],[Effective Start Date]],MeasureTable_UT[[#This Row],[Effective Start Date]]<>\"\"),IF(MeasureTable_UT[[#This Row],[Effective End Date]]=\"\",TRUE,IF(MeasureEffectiveDate<=MeasureTable_UT[[#This Row],[Effective End Date]],TRUE,FALSE)))","v":false},{"$f":"MeasureTable_UT[[#This Row],[Measure Name]]&\" | \"&MeasureTable_UT[[#This Row],[Eligible Measure]]","v":"Interior Basic Lighting Controls - Retrofit - UT | FALSE"},"UT","07072025-209","Interior Basic Lighting Controls - Retrofit - UT","Lighting","Controls","Interior Lighting Controls","Interior basic lighting controls. Installed in a retrofit application. ",1,"Active","2025-07-11","3000-12-31","Baseline wattage for all retrofit lighting EEMs is the lesser of: a) Wattage of the existing equipment, or b) Wattage of deemed baseline equipment as determined by Rocky Mountain Power.",null,null,"Basic lighting controls on interior lighting equipment.",null,null,"Installed lighting equipment (and controls, if applicable) must be eligible as defined in the qualified equipment lists posted on the Rocky Mountain Power website.","Site-Specific","Site-Specific","Site-Specific",null,null,"Site-Specific","Site-Specific",0.45,null,"Watt Controlled",null,"8",null,null,null,null,"RMP Calculation","RMP Calculation","Prescriptive","2","Retrofit",null,"true",0.7,null,"true",null,"1.5",null,"1","0.73","UT_WSB_Program_Evaluation_2022-2023"]
[{"$f":"IF(AND(MeasureEffectiveDate>=MeasureTable_UT[[#This Row],[Effective Start Date]],MeasureTable_UT[[#This Row],[Effective Start Date]]<>\"\"),IF(MeasureTable_UT[[#This Row],[Effective End Date]]=\"\",TRUE,IF(MeasureEffectiveDate<=MeasureTable_UT[[#This Row],[Effective End Date]],TRUE,FALSE)))","v":false},{"$f":"MeasureTable_UT[[#This Row],[Measure Name]]&\" | \"&MeasureTable_UT[[#This Row],[Eligible Measure]]","v":"Interior Fixture Replacement - Retrofit - UT | FALSE"},"UT","07072025-210","Interior Fixture Replacement - Retrofit - UT","Lighting","Interior Lighting","Fixture Retrofit/Replacement","Interior Fixture replacement. Installed in a retrofit application",1,"Active","2025-07-11","3000-12-31","Baseline wattage for all retrofit lighting EEMs is the lesser of: a) Wattage of the existing equipment, or b) Wattage of deemed baseline equipment as determined by Rocky Mountain Power.",null,null,"To be eligible for the incentives listed, the new lighting system must use less energy than the existing lighting system replaced or the baseline lighting system as determined by Rocky Mountain Power.",null,null,"Installed lighting equipment (and controls, if applicable) must be eligible as defined in the qualified equipment lists posted on the Rocky Mountain Power website.","Site-Specific","Site-Specific","Site-Specific",null,null,"Site-Specific","Site-Specific",0.6,null,"Watt Reduced",null,"15",null,null,null,null,"RMP Calculation","RMP Calculation","Prescriptive","2","Retrofit",null,"true",0.7,null,"true",null,"1.5",null,"1","0.73","UT_WSB_Program_Evaluation_2022-2023"]
[{"$f":"IF(AND(MeasureEffectiveDate>=MeasureTable_UT[[#This Row],[Effective Start Date]],MeasureTable_UT[[#This Row],[Effective Start Date]]<>\"\"),IF(MeasureTable_UT[[#This Row],[Effective End Date]]=\"\",TRUE,IF(MeasureEffectiveDate<=MeasureTable_UT[[#This Row],[Effective End Date]],TRUE,FALSE)))","v":false},{"$f":"MeasureTable_UT[[#This Row],[Measure Name]]&\" | \"&MeasureTable_UT[[#This Row],[Eligible Measure]]","v":"Interior Fixture Replacement - w/ Advanced Networked Lighting Controls - Retrofit - UT | FALSE"},"UT","07072025-211","Interior Fixture Replacement - w/ Advanced Networked Lighting Controls - Retrofit - UT","Lighting","Interior Lighting","Fixture Retrofit/Replacement","Interior fixture replacement with advanced networked lighting controls, as defined on RMP Website. Installed in a retrofit application. ",1,"Active","2025-07-11","3000-12-31","Baseline wattage for all retrofit lighting EEMs is the lesser of: a) Wattage of the existing equipment, or b) Wattage of deemed baseline equipment as determined by Rocky Mountain Power.",null,null,"To be eligible for the incentives listed, the new lighting system must use less energy than the existing lighting system replaced or the baseline lighting system as determined by Rocky Mountain Power.",null,null,"Installed lighting equipment (and controls, if applicable) must be eligible as defined in the qualified equipment lists posted on the Rocky Mountain Power website.","Site-Specific","Site-Specific","Site-Specific",null,null,"Site-Specific","Site-Specific",1.2,null,"Watt Reduced",null,"15",null,null,null,null,"RMP Calculation","RMP Calculation","Prescriptive","2","Retrofit",null,"true",0.7,null,"true",null,"1.5",null,"1","0.73","UT_WSB_Program_Evaluation_2022-2023"]
[{"$f":"IF(AND(MeasureEffectiveDate>=MeasureTable_UT[[#This Row],[Effective Start Date]],MeasureTable_UT[[#This Row],[Effective Start Date]]<>\"\"),IF(MeasureTable_UT[[#This Row],[Effective End Date]]=\"\",TRUE,IF(MeasureEffectiveDate<=MeasureTable_UT[[#This Row],[Effective End Date]],TRUE,FALSE)))","v":false},{"$f":"MeasureTable_UT[[#This Row],[Measure Name]]&\" | \"&MeasureTable_UT[[#This Row],[Eligible Measure]]","v":"Interior Fixture Replacement - w/ Basic Controls - Retrofit - UT | FALSE"},"UT","07072025-212","Interior Fixture Replacement - w/ Basic Controls - Retrofit - UT","Lighting","Interior Lighting","Fixture Retrofit/Replacement","Interior fixture replacement with basic controls, as defined on RMP website. Installed in a retrofit application. ",1,"Active","2025-07-11","3000-12-31","Baseline wattage for all retrofit lighting EEMs is the lesser of: a) Wattage of the existing equipment, or b) Wattage of deemed baseline equipment as determined by Rocky Mountain Power.",null,null,"To be eligible for the incentives listed, the new lighting system must use less energy than the existing lighting system replaced or the baseline lighting system as determined by Rocky Mountain Power.",null,null,"Installed lighting equipment (and controls, if applicable) must be eligible as defined in the qualified equipment lists posted on the Rocky Mountain Power website.","Site-Specific","Site-Specific","Site-Specific",null,null,"Site-Specific","Site-Specific",0.6,null,"Watt Reduced",null,"15",null,null,null,null,"RMP Calculation","RMP Calculation","Prescriptive","2","Retrofit",null,"true",0.7,null,"true",null,"1.5",null,"1","0.73","UT_WSB_Program_Evaluation_2022-2023"]
[{"$f":"IF(AND(MeasureEffectiveDate>=MeasureTable_UT[[#This Row],[Effective Start Date]],MeasureTable_UT[[#This Row],[Effective Start Date]]<>\"\"),IF(MeasureTable_UT[[#This Row],[Effective End Date]]=\"\",TRUE,IF(MeasureEffectiveDate<=MeasureTable_UT[[#This Row],[Effective End Date]],TRUE,FALSE)))","v":false},{"$f":"MeasureTable_UT[[#This Row],[Measure Name]]&\" | \"&MeasureTable_UT[[#This Row],[Eligible Measure]]","v":"Interior Fixture Replacement - w/ Networked Lighting Controls - Retrofit - UT | FALSE"},"UT","07072025-213","Interior Fixture Replacement - w/ Networked Lighting Controls - Retrofit - UT","Lighting","Interior Lighting","Fixture Retrofit/Replacement","Interior fixture replacement with networked lighting controls, as defined on RMP Website. Installed in a retrofit application. ",1,"Active","2025-07-11","3000-12-31","Baseline wattage for all retrofit lighting EEMs is the lesser of: a) Wattage of the existing equipment, or b) Wattage of deemed baseline equipment as determined by Rocky Mountain Power.",null,null,"To be eligible for the incentives listed, the new lighting system must use less energy than the existing lighting system replaced or the baseline lighting system as determined by Rocky Mountain Power.",null,null,"Installed lighting equipment (and controls, if applicable) must be eligible as defined in the qualified equipment lists posted on the Rocky Mountain Power website.","Site-Specific","Site-Specific","Site-Specific",null,null,"Site-Specific","Site-Specific",1,null,"Watt Reduced",null,"15",null,null,null,null,"RMP Calculation","RMP Calculation","Prescriptive","2","Retrofit",null,"true",0.7,null,"true",null,"1.5",null,"1","0.73","UT_WSB_Program_Evaluation_2022-2023"]
[{"$f":"IF(AND(MeasureEffectiveDate>=MeasureTable_UT[[#This Row],[Effective Start Date]],MeasureTable_UT[[#This Row],[Effective Start Date]]<>\"\"),IF(MeasureTable_UT[[#This Row],[Effective End Date]]=\"\",TRUE,IF(MeasureEffectiveDate<=MeasureTable_UT[[#This Row],[Effective End Date]],TRUE,FALSE)))","v":false},{"$f":"MeasureTable_UT[[#This Row],[Measure Name]]&\" | \"&MeasureTable_UT[[#This Row],[Eligible Measure]]","v":"Interior Fixture Retrofit Kit - Plug and Play Control Ready - Retrofit - UT | FALSE"},"UT","07072025-224","Interior Fixture Retrofit Kit - Plug and Play Control Ready - Retrofit - UT","Lighting","Interior Lighting","Fixture Retrofit/Replacement","Interior fixture retrofit kit with Plug and Play Control Ready capabilility. Installed in a retrofit application",1,"Active","2025-07-11","3000-12-31","Baseline wattage for all retrofit lighting EEMs is the lesser of: a) Wattage of the existing equipment, or b) Wattage of deemed baseline equipment as determined by Rocky Mountain Power.",null,null,"To be eligible for the incentives listed, the new lighting system must use less energy than the existing lighting system replaced or the baseline lighting system as determined by Rocky Mountain Power.",null,null,"Installed lighting equipment (and controls, if applicable) must be eligible as defined in the qualified equipment lists posted on the Rocky Mountain Power website.","Site-Specific","Site-Specific","Site-Specific",null,null,"Site-Specific","Site-Specific",0.8,null,"Watt Reduced",null,"15",null,null,null,null,"RMP Calculation","RMP Calculation","Prescriptive","2","Retrofit",null,"true",0.7,null,"true",null,"1.5",null,"1","0.73","UT_WSB_Program_Evaluation_2022-2023"]
[{"$f":"IF(AND(MeasureEffectiveDate>=MeasureTable_UT[[#This Row],[Effective Start Date]],MeasureTable_UT[[#This Row],[Effective Start Date]]<>\"\"),IF(MeasureTable_UT[[#This Row],[Effective End Date]]=\"\",TRUE,IF(MeasureEffectiveDate<=MeasureTable_UT[[#This Row],[Effective End Date]],TRUE,FALSE)))","v":false},{"$f":"MeasureTable_UT[[#This Row],[Measure Name]]&\" | \"&MeasureTable_UT[[#This Row],[Eligible Measure]]","v":"Interior Fixture Retrofit Kit - Retrofit - UT | FALSE"},"UT","07072025-214","Interior Fixture Retrofit Kit - Retrofit - UT","Lighting","Interior Lighting","Fixture Retrofit/Replacement","Interior fixture retrofit kit. Installed in a retrofit application",1,"Active","2025-07-11","3000-12-31","Baseline wattage for all retrofit lighting EEMs is the lesser of: a) Wattage of the existing equipment, or b) Wattage of deemed baseline equipment as determined by Rocky Mountain Power.",null,null,"To be eligible for the incentives listed, the new lighting system must use less energy than the existing lighting system replaced or the baseline lighting system as determined by Rocky Mountain Power.",null,null,"Installed lighting equipment (and controls, if applicable) must be eligible as defined in the qualified equipment lists posted on the Rocky Mountain Power website.","Site-Specific","Site-Specific","Site-Specific",null,null,"Site-Specific","Site-Specific",0.6,null,"Watt Reduced",null,"15",null,null,null,null,"RMP Calculation","RMP Calculation","Prescriptive","2","Retrofit",null,"true",0.7,null,"true",null,"1.5",null,"1","0.73","UT_WSB_Program_Evaluation_2022-2023"]
[{"$f":"IF(AND(MeasureEffectiveDate>=MeasureTable_UT[[#This Row],[Effective Start Date]],MeasureTable_UT[[#This Row],[Effective Start Date]]<>\"\"),IF(MeasureTable_UT[[#This Row],[Effective End Date]]=\"\",TRUE,IF(MeasureEffectiveDate<=MeasureTable_UT[[#This Row],[Effective End Date]],TRUE,FALSE)))","v":false},{"$f":"MeasureTable_UT[[#This Row],[Measure Name]]&\" | \"&MeasureTable_UT[[#This Row],[Eligible Measure]]","v":"Interior Fixture Retrofit Kit - w/ Advanced Networked Lighting Controls - Retrofit - UT | FALSE"},"UT","07072025-215","Interior Fixture Retrofit Kit - w/ Advanced Networked Lighting Controls - Retrofit - UT","Lighting","Interior Lighting","Fixture Retrofit/Replacement","Interior fixture replacement with advanced networked lighting controls, as defined on RMP website. Installed in a retrofit application. ",1,"Active","2025-07-11","3000-12-31","Baseline wattage for all retrofit lighting EEMs is the lesser of: a) Wattage of the existing equipment, or b) Wattage of deemed baseline equipment as determined by Rocky Mountain Power.",null,null,"To be eligible for the incentives listed, the new lighting system must use less energy than the existing lighting system replaced or the baseline lighting system as determined by Rocky Mountain Power.",null,null,"Installed lighting equipment (and controls, if applicable) must be eligible as defined in the qualified equipment lists posted on the Rocky Mountain Power website.","Site-Specific","Site-Specific","Site-Specific",null,null,"Site-Specific","Site-Specific",1.2,null,"Watt Reduced",null,"15",null,null,null,null,"RMP Calculation","RMP Calculation","Prescriptive","2","Retrofit",null,"true",0.7,null,"true",null,"1.5",null,"1","0.73","UT_WSB_Program_Evaluation_2022-2023"]
[{"$f":"IF(AND(MeasureEffectiveDate>=MeasureTable_UT[[#This Row],[Effective Start Date]],MeasureTable_UT[[#This Row],[Effective Start Date]]<>\"\"),IF(MeasureTable_UT[[#This Row],[Effective End Date]]=\"\",TRUE,IF(MeasureEffectiveDate<=MeasureTable_UT[[#This Row],[Effective End Date]],TRUE,FALSE)))","v":false},{"$f":"MeasureTable_UT[[#This Row],[Measure Name]]&\" | \"&MeasureTable_UT[[#This Row],[Eligible Measure]]","v":"Interior Fixture Retrofit Kit - w/ Basic Controls - Retrofit - UT | FALSE"},"UT","07072025-216","Interior Fixture Retrofit Kit - w/ Basic Controls - Retrofit - UT","Lighting","Interior Lighting","Fixture Retrofit/Replacement","Interior fixture replacement with basic controls, as defined on RMP website. Installed in a retrofit application. ",1,"Active","2025-07-11","3000-12-31","Baseline wattage for all retrofit lighting EEMs is the lesser of: a) Wattage of the existing equipment, or b) Wattage of deemed baseline equipment as determined by Rocky Mountain Power.",null,null,"To be eligible for the incentives listed, the new lighting system must use less energy than the existing lighting system replaced or the baseline lighting system as determined by Rocky Mountain Power.",null,null,"Installed lighting equipment (and controls, if applicable) must be eligible as defined in the qualified equipment lists posted on the Rocky Mountain Power website.","Site-Specific","Site-Specific","Site-Specific",null,null,"Site-Specific","Site-Specific",0.6,null,"Watt Reduced",null,"15",null,null,null,null,"RMP Calculation","RMP Calculation","Prescriptive","2","Retrofit",null,"true",0.7,null,"true",null,"1.5",null,"1","0.73","UT_WSB_Program_Evaluation_2022-2023"]
[{"$f":"IF(AND(MeasureEffectiveDate>=MeasureTable_UT[[#This Row],[Effective Start Date]],MeasureTable_UT[[#This Row],[Effective Start Date]]<>\"\"),IF(MeasureTable_UT[[#This Row],[Effective End Date]]=\"\",TRUE,IF(MeasureEffectiveDate<=MeasureTable_UT[[#This Row],[Effective End Date]],TRUE,FALSE)))","v":false},{"$f":"MeasureTable_UT[[#This Row],[Measure Name]]&\" | \"&MeasureTable_UT[[#This Row],[Eligible Measure]]","v":"Interior Fixture Retrofit Kit - w/ Networked Lighting Controls - Retrofit - UT | FALSE"},"UT","07072025-217","Interior Fixture Retrofit Kit - w/ Networked Lighting Controls - Retrofit - UT","Lighting","Interior Lighting","Fixture Retrofit/Replacement","Interior fixture retefit kit with networked lighting controls, as defined on RMP Website. Installed in a retrofit application ",1,"Active","2025-07-11","3000-12-31","Baseline wattage for all retrofit lighting EEMs is the lesser of: a) Wattage of the existing equipment, or b) Wattage of deemed baseline equipment as determined by Rocky Mountain Power.",null,null,"To be eligible for the incentives listed, the new lighting system must use less energy than the existing lighting system replaced or the baseline lighting system as determined by Rocky Mountain Power.",null,null,"Installed lighting equipment (and controls, if applicable) must be eligible as defined in the qualified equipment lists posted on the Rocky Mountain Power website.","Site-Specific","Site-Specific","Site-Specific",null,null,"Site-Specific","Site-Specific",1,null,"Watt Reduced",null,"15",null,null,null,null,"RMP Calculation","RMP Calculation","Prescriptive","2","Retrofit",null,"true",0.7,null,"true",null,"1.5",null,"1","0.73","UT_WSB_Program_Evaluation_2022-2023"]
[{"$f":"IF(AND(MeasureEffectiveDate>=MeasureTable_UT[[#This Row],[Effective Start Date]],MeasureTable_UT[[#This Row],[Effective Start Date]]<>\"\"),IF(MeasureTable_UT[[#This Row],[Effective End Date]]=\"\",TRUE,IF(MeasureEffectiveDate<=MeasureTable_UT[[#This Row],[Effective End Date]],TRUE,FALSE)))","v":false},{"$f":"MeasureTable_UT[[#This Row],[Measure Name]]&\" | \"&MeasureTable_UT[[#This Row],[Eligible Measure]]","v":"Interior Lighting - Custom - Retrofit - UT | FALSE"},"UT","07072025-218","Interior Lighting - Custom - Retrofit - UT","Lighting","Custom","Interior Lighting","Custom interior lighting installation. Installed in a retrofit application. ",1,"Active","2025-07-11","3000-12-31","Baseline wattage for all retrofit lighting EEMs is the lesser of: a) Wattage of the existing equipment, or b) Wattage of deemed baseline equipment as determined by Rocky Mountain Power.",null,null,"Custom retrofit with a non-general illumination lighting installation; fixture or lamp not listed in tariff incentive tables.",null,null,"Custom retrofit with a non-general illumination lighting installation; fixture or lamp not listed in tariff incentive tables.","Site-Specific","Site-Specific","Site-Specific",null,null,"Site-Specific","Site-Specific",0.15,null,"Watt Reduced",null,"15",null,null,null,null,"RMP Calculation","RMP Calculation","Prescriptive","2","Retrofit",null,"true",0.7,null,"true",null,"0.85",null,"1","0.73","UT_WSB_Program_Evaluation_2022-2023"]
[{"$f":"IF(AND(MeasureEffectiveDate>=MeasureTable_UT[[#This Row],[Effective Start Date]],MeasureTable_UT[[#This Row],[Effective Start Date]]<>\"\"),IF(MeasureTable_UT[[#This Row],[Effective End Date]]=\"\",TRUE,IF(MeasureEffectiveDate<=MeasureTable_UT[[#This Row],[Effective End Date]],TRUE,FALSE)))","v":false},{"$f":"MeasureTable_UT[[#This Row],[Measure Name]]&\" | \"&MeasureTable_UT[[#This Row],[Eligible Measure]]","v":"Interior Lighting - Custom - w/ Advanced Controls - Retrofit - UT | FALSE"},"UT","07072025-219","Interior Lighting - Custom - w/ Advanced Controls - Retrofit - UT","Lighting","Custom","Interior Lighting","Custom interior lighting installation with networked lighting controls, as defined on RMP Website. Installed in a retrofit application",1,"Active","2025-07-11","3000-12-31","Baseline wattage for all advanced networked lighting controls retrofit lighting EEMs is the lesser of: a) Wattage of the existing equipment, or b) Wattage of deemed baseline equipment as determined by Rocky Mountain Power.",null,null,"To be eligible for the incentives listed, the advanced networked lighting controls system must use less energy than the existing lighting system replaced or the baseline lighting system as determined by Rocky Mountain Power.",null,null,"Installed lighting equipment (and controls, if applicable) must be eligible as defined in the qualified equipment lists posted on the Rocky Mountain Power website.","Site-Specific","Site-Specific","Site-Specific",null,null,"Site-Specific","Site-Specific",0.85,null,"Watt Reduced",null,"15",null,null,null,null,"RMP Calculation","RMP Calculation","Prescriptive","2","Retrofit",null,"true",0.7,null,"true",null,"0.85",null,"1","0.73","UT_WSB_Program_Evaluation_2022-2023"]
[{"$f":"IF(AND(MeasureEffectiveDate>=MeasureTable_UT[[#This Row],[Effective Start Date]],MeasureTable_UT[[#This Row],[Effective Start Date]]<>\"\"),IF(MeasureTable_UT[[#This Row],[Effective End Date]]=\"\",TRUE,IF(MeasureEffectiveDate<=MeasureTable_UT[[#This Row],[Effective End Date]],TRUE,FALSE)))","v":false},{"$f":"MeasureTable_UT[[#This Row],[Measure Name]]&\" | \"&MeasureTable_UT[[#This Row],[Eligible Measure]]","v":"Interior Lighting - Custom - w/ Advanced Networked Lighting Controls - Retrofit - UT | FALSE"},"UT","07072025-220","Interior Lighting - Custom - w/ Advanced Networked Lighting Controls - Retrofit - UT","Lighting","Custom","Interior Lighting","Custom interior lighting installation with advanced networked lighting controls, as defined on RMP Website. Installed in a retrofit application",1,"Active","2025-07-11","3000-12-31","Baseline wattage for all advanced networked lighting controls retrofit lighting EEMs is the lesser of: a) Wattage of the existing equipment, or b) Wattage of deemed baseline equipment as determined by Rocky Mountain Power.",null,null,"To be eligible for the incentives listed, the advanced networked lighting controls system must use less energy than the existing lighting system replaced or the baseline lighting system as determined by Rocky Mountain Power.",null,null,"Installed lighting equipment (and controls, if applicable) must be eligible as defined in the qualified equipment lists posted on the Rocky Mountain Power website.","Site-Specific","Site-Specific","Site-Specific",null,null,"Site-Specific","Site-Specific",0.85,null,"Watt Reduced",null,"15",null,null,null,null,"RMP Calculation","RMP Calculation","Prescriptive","2","Retrofit",null,"true",0.7,null,"true",null,"0.85",null,"1","0.73","UT_WSB_Program_Evaluation_2022-2023"]
[{"$f":"IF(AND(MeasureEffectiveDate>=MeasureTable_UT[[#This Row],[Effective Start Date]],MeasureTable_UT[[#This Row],[Effective Start Date]]<>\"\"),IF(MeasureTable_UT[[#This Row],[Effective End Date]]=\"\",TRUE,IF(MeasureEffectiveDate<=MeasureTable_UT[[#This Row],[Effective End Date]],TRUE,FALSE)))","v":false},{"$f":"MeasureTable_UT[[#This Row],[Measure Name]]&\" | \"&MeasureTable_UT[[#This Row],[Eligible Measure]]","v":"Interior Lighting - Custom - w/ Basic Controls - Retrofit - UT | FALSE"},"UT","07072025-221","Interior Lighting - Custom - w/ Basic Controls - Retrofit - UT","Lighting","Custom","Interior Lighting","Custom interior lighting installation with basic lighting controls, as defined on RMP Website. Installed in a retrofit application",1,"Active","2025-07-11","3000-12-31","Baseline wattage for all advanced networked lighting controls retrofit lighting EEMs is the lesser of: a) Wattage of the existing equipment, or b) Wattage of deemed baseline equipment as determined by Rocky Mountain Power.",null,null,"To be eligible for the incentives listed, the advanced networked lighting controls system must use less energy than the existing lighting system replaced or the baseline lighting system as determined by Rocky Mountain Power.",null,null,"Installed lighting equipment (and controls, if applicable) must be eligible as defined in the qualified equipment lists posted on the Rocky Mountain Power website.","Site-Specific","Site-Specific","Site-Specific",null,null,"Site-Specific","Site-Specific",0.3,null,"Watt Reduced",null,"15",null,null,null,null,"RMP Calculation","RMP Calculation","Prescriptive","2","Retrofit",null,"true",0.7,null,"true",null,"0.85",null,"1","0.73","UT_WSB_Program_Evaluation_2022-2023"]
[{"$f":"IF(AND(MeasureEffectiveDate>=MeasureTable_UT[[#This Row],[Effective Start Date]],MeasureTable_UT[[#This Row],[Effective Start Date]]<>\"\"),IF(MeasureTable_UT[[#This Row],[Effective End Date]]=\"\",TRUE,IF(MeasureEffectiveDate<=MeasureTable_UT[[#This Row],[Effective End Date]],TRUE,FALSE)))","v":false},{"$f":"MeasureTable_UT[[#This Row],[Measure Name]]&\" | \"&MeasureTable_UT[[#This Row],[Eligible Measure]]","v":"Interior Lighting - Custom - w/ Networked Lighting Controls - Retrofit - UT | FALSE"},"UT","07072025-222","Interior Lighting - Custom - w/ Networked Lighting Controls - Retrofit - UT","Lighting","Custom","Interior Lighting","Custom interior lighting installation with networked lighting controls, as defined on RMP Website. Installed in a retrofit application",1,"Active","2025-07-11","3000-12-31","Baseline wattage for all advanced networked lighting controls retrofit lighting EEMs is the lesser of: a) Wattage of the existing equipment, or b) Wattage of deemed baseline equipment as determined by Rocky Mountain Power.",null,null,"To be eligible for the incentives listed, the advanced networked lighting controls system must use less energy than the existing lighting system replaced or the baseline lighting system as determined by Rocky Mountain Power.",null,null,"Installed lighting equipment (and controls, if applicable) must be eligible as defined in the qualified equipment lists posted on the Rocky Mountain Power website.","Site-Specific","Site-Specific","Site-Specific",null,null,"Site-Specific","Site-Specific",0.3,null,"Watt Reduced",null,"15",null,null,null,null,"RMP Calculation","RMP Calculation","Prescriptive","2","Retrofit",null,"true",0.7,null,"true",null,"0.85",null,"1","0.73","UT_WSB_Program_Evaluation_2022-2023"]
[{"$f":"IF(AND(MeasureEffectiveDate>=MeasureTable_UT[[#This Row],[Effective Start Date]],MeasureTable_UT[[#This Row],[Effective Start Date]]<>\"\"),IF(MeasureTable_UT[[#This Row],[Effective End Date]]=\"\",TRUE,IF(MeasureEffectiveDate<=MeasureTable_UT[[#This Row],[Effective End Date]],TRUE,FALSE)))","v":false},{"$f":"MeasureTable_UT[[#This Row],[Measure Name]]&\" | \"&MeasureTable_UT[[#This Row],[Eligible Measure]]","v":"Interior Lighting - No Controls - MR wCode - UT | FALSE"},"UT","07072025-225","Interior Lighting - No Controls - MR wCode - UT","Lighting","Interior Lighting","Fixture Retrofit/Replacement","Major lighting renovation (w/code) with no controls",1,"Active","2025-07-11","3000-12-31","The baseline wattage for MR with Code lighting EEMs is the lesser of: a) Wattage of the standard practice/federal standard equipment, or b) Wattage of deemed baseline equipment as determined by Rocky Mountain Power.",null,null,"To be eligible for the incentives listed, the new lighting system must use less energy than the existing lighting system replaced or the baseline lighting system as determined by Rocky Mountain Power.",null,null,"Eligible retrofit lighting equipment is defined in qualified equipment lists posted on the Utah energy efficiency program section of the Rocky Mountain Power website ","Site-Specific","Site-Specific","Site-Specific",null,null,"Site-Specific","Site-Specific",0.08,null,"kWh",null,"15",null,null,null,null,"RMP Calculation","RMP Calculation","Prescriptive","2","Equipment Upgrades",null,"false",null,null,"true",null,"0.08",null,"1","0.73","UT_WSB_Program_Evaluation_2022-2023"]
[{"$f":"IF(AND(MeasureEffectiveDate>=MeasureTable_UT[[#This Row],[Effective Start Date]],MeasureTable_UT[[#This Row],[Effective Start Date]]<>\"\"),IF(MeasureTable_UT[[#This Row],[Effective End Date]]=\"\",TRUE,IF(MeasureEffectiveDate<=MeasureTable_UT[[#This Row],[Effective End Date]],TRUE,FALSE)))","v":false},{"$f":"MeasureTable_UT[[#This Row],[Measure Name]]&\" | \"&MeasureTable_UT[[#This Row],[Eligible Measure]]","v":"Interior Lighting - No Controls - MR woCode - UT | FALSE"},"UT","07072025-226","Interior Lighting - No Controls - MR woCode - UT","Lighting","Interior Lighting","Fixture Retrofit/Replacement","Major lighting renovation (w/o code) with no controls",1,"Active","2025-07-11","3000-12-31","The baseline wattage for MR without Code lighting EEMs is the lesser of: a) Wattage of the standard practice/federal standard equipment, or b) Wattage of deemed baseline equipment as determined by Rocky Mountain Power.",null,null,"To be eligible for the incentives listed, the new lighting system must use less energy than the existing lighting system replaced or the baseline lighting system as determined by Rocky Mountain Power.",null,null,"Eligible retrofit lighting equipment is defined in qualified equipment lists posted on the Utah energy efficiency program section of the Rocky Mountain Power website ","Site-Specific","Site-Specific","Site-Specific",null,null,"Site-Specific","Site-Specific",0.08,null,"kWh",null,"15",null,null,null,null,"RMP Calculation","RMP Calculation","Prescriptive","2","Equipment Upgrades",null,"true",0.7,null,"true",null,"0.08",null,"1","0.73","UT_WSB_Program_Evaluation_2022-2023"]
[{"$f":"IF(AND(MeasureEffectiveDate>=MeasureTable_UT[[#This Row],[Effective Start Date]],MeasureTable_UT[[#This Row],[Effective Start Date]]<>\"\"),IF(MeasureTable_UT[[#This Row],[Effective End Date]]=\"\",TRUE,IF(MeasureEffectiveDate<=MeasureTable_UT[[#This Row],[Effective End Date]],TRUE,FALSE)))","v":false},{"$f":"MeasureTable_UT[[#This Row],[Measure Name]]&\" | \"&MeasureTable_UT[[#This Row],[Eligible Measure]]","v":"Interior Networked Lighting Controls - MR wCode - UT | FALSE"},"UT","07072025-227","Interior Networked Lighting Controls - MR wCode - UT","Lighting","Controls","Interior Lighting Controls","Major lighting renovation (w/code) with Networked Lighting Controls",1,"Active","2025-07-11","3000-12-31","The baseline wattage for MR with Code lighting EEMs is the lesser of: a) Wattage of the standard practice/federal standard equipment, or b) Wattage of deemed baseline equipment as determined by Rocky Mountain Power.",null,null,"To be eligible for the incentives listed, the new lighting system must use less energy than the existing lighting system replaced or the baseline lighting system as determined by Rocky Mountain Power.",null,null,"Eligible retrofit lighting equipment is defined in qualified equipment lists posted on the Utah energy efficiency program section of the Rocky Mountain Power website ","Site-Specific","Site-Specific","Site-Specific",null,null,"Site-Specific","Site-Specific",0.1,null,"kWh",null,"8",null,null,null,null,"RMP Calculation","RMP Calculation","Prescriptive","2","Equipment Upgrades",null,"false",null,null,"true",null,"0.1",null,"1","0.73","UT_WSB_Program_Evaluation_2022-2023"]
[{"$f":"IF(AND(MeasureEffectiveDate>=MeasureTable_UT[[#This Row],[Effective Start Date]],MeasureTable_UT[[#This Row],[Effective Start Date]]<>\"\"),IF(MeasureTable_UT[[#This Row],[Effective End Date]]=\"\",TRUE,IF(MeasureEffectiveDate<=MeasureTable_UT[[#This Row],[Effective End Date]],TRUE,FALSE)))","v":false},{"$f":"MeasureTable_UT[[#This Row],[Measure Name]]&\" | \"&MeasureTable_UT[[#This Row],[Eligible Measure]]","v":"Interior Networked Lighting Controls - MR woCode - UT | FALSE"},"UT","07072025-228","Interior Networked Lighting Controls - MR woCode - UT","Lighting","Controls","Interior Lighting Controls","Major lighting renovation (w/o code) with Networked Lighting Controls",1,"Active","2025-07-11","3000-12-31","The baseline wattage for MR without Code lighting EEMs is the lesser of: a) Wattage of the standard practice/federal standard equipment, or b) Wattage of deemed baseline equipment as determined by Rocky Mountain Power.",null,null,"To be eligible for the incentives listed, the new lighting system must use less energy than the existing lighting system replaced or the baseline lighting system as determined by Rocky Mountain Power.",null,null,"Eligible retrofit lighting equipment is defined in qualified equipment lists posted on the Utah energy efficiency program section of the Rocky Mountain Power website ","Site-Specific","Site-Specific","Site-Specific",null,null,"Site-Specific","Site-Specific",0.1,null,"kWh",null,"8",null,null,null,null,"RMP Calculation","RMP Calculation","Prescriptive","2","Equipment Upgrades",null,"true",0.7,null,"true",null,"0.1",null,"1","0.73","UT_WSB_Program_Evaluation_2022-2023"]
[{"$f":"IF(AND(MeasureEffectiveDate>=MeasureTable_UT[[#This Row],[Effective Start Date]],MeasureTable_UT[[#This Row],[Effective Start Date]]<>\"\"),IF(MeasureTable_UT[[#This Row],[Effective End Date]]=\"\",TRUE,IF(MeasureEffectiveDate<=MeasureTable_UT[[#This Row],[Effective End Date]],TRUE,FALSE)))","v":false},{"$f":"MeasureTable_UT[[#This Row],[Measure Name]]&\" | \"&MeasureTable_UT[[#This Row],[Eligible Measure]]","v":"Interior Networked Lighting Controls - Retrofit - UT | FALSE"},"UT","07072025-223","Interior Networked Lighting Controls - Retrofit - UT","Lighting","Controls","Interior Lighting Controls","Interior networked lighting controls. Installed in a retrofit application",1,"Active","2025-07-11","3000-12-31","Baseline wattage for all retrofit lighting EEMs is the lesser of: a) Wattage of the existing equipment, or b) Wattage of deemed baseline equipment as determined by Rocky Mountain Power.",null,null,"To be eligible for the incentives listed, the new lighting system must use less energy than the existing lighting system replaced or the baseline lighting system as determined by Rocky Mountain Power.",null,null,"Installed lighting equipment (and controls, if applicable) must be eligible as defined in the qualified equipment lists posted on the Rocky Mountain Power website.","Site-Specific","Site-Specific","Site-Specific",null,null,"Site-Specific","Site-Specific",0.6,null,"Watt Controlled",null,"8",null,null,null,null,"RMP Calculation","RMP Calculation","Prescriptive","2","Retrofit",null,"true",0.7,null,"true",null,"1.5",null,"1","0.73","UT_WSB_Program_Evaluation_2022-2023"]
[{"$f":"IF(AND(MeasureEffectiveDate>=MeasureTable_UT[[#This Row],[Effective Start Date]],MeasureTable_UT[[#This Row],[Effective Start Date]]<>\"\"),IF(MeasureTable_UT[[#This Row],[Effective End Date]]=\"\",TRUE,IF(MeasureEffectiveDate<=MeasureTable_UT[[#This Row],[Effective End Date]],TRUE,FALSE)))","v":false},{"$f":"MeasureTable_UT[[#This Row],[Measure Name]]&\" | \"&MeasureTable_UT[[#This Row],[Eligible Measure]]","v":"Controlled Environment Agriculture Lighting - Custom - Fixtures - NCMR wCode - UT | FALSE"},"UT","01052022-080","Controlled Environment Agriculture Lighting - Custom - Fixtures - NCMR wCode - UT","Lighting","Custom","Interior Lighting","Controlled environment agriculture lighting. Installed in an NCMR application. ",1,"Active","2022-01-01","3000-12-31","The baseline wattage for custom new construction/major renovation lighting EEMs is the lesser of: a) energy code required LPD, or b) Wattage of deemed baseline equipment as determined by Rocky Mountain Power",null,null,"To be eligible for the incentives listed, the new lighting system must use less energy than the baseline lighting system as determined by Rocky Mountain Power.",null,null,"Installed lighting equipment (and controls, if applicable) must be listed on the DesignLights Consortium Horticultural qualified equipment list. ","Site-Specific","Site-Specific","Site-Specific",null,null,"Site-Specific","Site-Specific",0.05,null,"kWh",null,"15",null,null,null,null,"RMP Calculation","RMP Calculation","Prescriptive/Custom","2","New Construction",null,false,null,null,"true",null,"0.05",null,"1","0.87","2018-2019 Utah WSB Evaluation"]
[{"$f":"IF(AND(MeasureEffectiveDate>=MeasureTable_UT[[#This Row],[Effective Start Date]],MeasureTable_UT[[#This Row],[Effective Start Date]]<>\"\"),IF(MeasureTable_UT[[#This Row],[Effective End Date]]=\"\",TRUE,IF(MeasureEffectiveDate<=MeasureTable_UT[[#This Row],[Effective End Date]],TRUE,FALSE)))","v":false},{"$f":"MeasureTable_UT[[#This Row],[Measure Name]]&\" | \"&MeasureTable_UT[[#This Row],[Eligible Measure]]","v":"Controlled Environment Agriculture Lighting - Custom - Fixtures - NCMR woCode - UT | FALSE"},"UT","01052022-082","Controlled Environment Agriculture Lighting - Custom - Fixtures - NCMR woCode - UT","Lighting","Custom","Interior Lighting","Controlled environment agriculture lighting. Installed in an NCMR application. NCMR CEA projects that are not subject to state energy code have an incentives cap at 70 percent of purchase transaction-level costs. ",1,"Active","2022-01-01","3000-12-31","The baseline wattage for custom new construction/major renovation lighting EEMs is the lesser of: a) energy code required LPD, or b) Wattage of deemed baseline equipment as determined by Rocky Mountain Power",null,null,"To be eligible for the incentives listed, the new lighting system must use less energy than the baseline lighting system as determined by Rocky Mountain Power.",null,null,"Installed lighting equipment (and controls, if applicable) must be listed on the DesignLights Consortium Horticultural qualified equipment list. ","Site-Specific","Site-Specific","Site-Specific",null,null,"Site-Specific","Site-Specific",0.05,null,"kWh",null,"15",null,null,null,null,"RMP Calculation","RMP Calculation","Prescriptive/Custom","2","New Construction",null,"true",0.7,null,"true",null,"0.05",null,"1","0.87","2018-2019 Utah WSB Evaluation"]
[{"$f":"IF(AND(MeasureEffectiveDate>=MeasureTable_UT[[#This Row],[Effective Start Date]],MeasureTable_UT[[#This Row],[Effective Start Date]]<>\"\"),IF(MeasureTable_UT[[#This Row],[Effective End Date]]=\"\",TRUE,IF(MeasureEffectiveDate<=MeasureTable_UT[[#This Row],[Effective End Date]],TRUE,FALSE)))","v":false},{"$f":"MeasureTable_UT[[#This Row],[Measure Name]]&\" | \"&MeasureTable_UT[[#This Row],[Eligible Measure]]","v":"Controlled Environment Agriculture Lighting - Custom - Lamps - NCMR wCode - UT | FALSE"},"UT","01052022-081","Controlled Environment Agriculture Lighting - Custom - Lamps - NCMR wCode - UT","Lighting","Custom","Interior Lighting","Controlled environment agriculture lighting. Installed in an NCMR application. ",1,"Active","2022-01-01","3000-12-31","The baseline wattage for custom new construction/major renovation lighting EEMs is the lesser of: a) energy code required LPD, or b) Wattage of deemed baseline equipment as determined by Rocky Mountain Power",null,null,"To be eligible for the incentives listed, the new lighting system must use less energy than the baseline lighting system as determined by Rocky Mountain Power.",null,null,"Installed lighting equipment (and controls, if applicable) must be listed on the DesignLights Consortium Horticultural qualified equipment list. ","Site-Specific","Site-Specific","Site-Specific",null,null,"Site-Specific","Site-Specific",0.03,null,"kWh",null,"8",null,null,null,null,"RMP Calculation","RMP Calculation","Prescriptive/Custom","2","New Construction",null,false,null,null,"true",null,"0.03",null,"1","0.87","2018-2019 Utah WSB Evaluation"]
[{"$f":"IF(AND(MeasureEffectiveDate>=MeasureTable_UT[[#This Row],[Effective Start Date]],MeasureTable_UT[[#This Row],[Effective Start Date]]<>\"\"),IF(MeasureTable_UT[[#This Row],[Effective End Date]]=\"\",TRUE,IF(MeasureEffectiveDate<=MeasureTable_UT[[#This Row],[Effective End Date]],TRUE,FALSE)))","v":false},{"$f":"MeasureTable_UT[[#This Row],[Measure Name]]&\" | \"&MeasureTable_UT[[#This Row],[Eligible Measure]]","v":"Controlled Environment Agriculture Lighting - Custom - Lamps - NCMR woCode - UT | FALSE"},"UT","01052022-083","Controlled Environment Agriculture Lighting - Custom - Lamps - NCMR woCode - UT","Lighting","Custom","Interior Lighting","Controlled environment agriculture lighting. Installed in an NCMR application. NCMR CEA projects that are not subject to state energy code have an incentives cap at 70 percent of purchase transaction-level costs. ",1,"Active","2022-01-01","3000-12-31","The baseline wattage for custom new construction/major renovation lighting EEMs is the lesser of: a) energy code required LPD, or b) Wattage of deemed baseline equipment as determined by Rocky Mountain Power",null,null,"To be eligible for the incentives listed, the new lighting system must use less energy than the baseline lighting system as determined by Rocky Mountain Power.",null,null,"Installed lighting equipment (and controls, if applicable) must be listed on the DesignLights Consortium Horticultural qualified equipment list. ","Site-Specific","Site-Specific","Site-Specific",null,null,"Site-Specific","Site-Specific",0.03,null,"kWh",null,"8",null,null,null,null,"RMP Calculation","RMP Calculation","Prescriptive/Custom","2","New Construction",null,"true",0.7,null,"true",null,"0.03",null,"1","0.87","2018-2019 Utah WSB Evaluation"]
[{"$f":"IF(AND(MeasureEffectiveDate>=MeasureTable_UT[[#This Row],[Effective Start Date]],MeasureTable_UT[[#This Row],[Effective Start Date]]<>\"\"),IF(MeasureTable_UT[[#This Row],[Effective End Date]]=\"\",TRUE,IF(MeasureEffectiveDate<=MeasureTable_UT[[#This Row],[Effective End Date]],TRUE,FALSE)))","v":false},{"$f":"MeasureTable_UT[[#This Row],[Measure Name]]&\" | \"&MeasureTable_UT[[#This Row],[Eligible Measure]]","v":"Controlled Environment Agriculture Lighting - Custom - Fixtures - Retrofit - Large - UT | FALSE"},"UT","01052022-078","Controlled Environment Agriculture Lighting - Custom - Fixtures - Retrofit - Large - UT","Lighting","Custom","Interior Lighting","Controlled environment agriculture lighting. Installed in a retrofit application for Utah Large Customer Category. ",1,"Active","2022-01-01","3000-12-31","Baseline wattage for all retrofit lighting EEMs is the lesser of: a) Wattage of the existing equipment, or b) Wattage of deemed baseline equipment as determined by Rocky Mountain Power..",null,null,"To be eligible for the incentives listed, the new lighting system must use less energy than the existing lighting system replaced or the baseline lighting system as determined by Rocky Mountain Power.",null,null,"Installed lighting equipment (and controls, if applicable) must be listed on the DesignLights Consortium Horticultural qualified equipment list. ","Site-Specific","Site-Specific","Site-Specific","Site-Specific",null,"Site-Specific","Site-Specific",0.05,null,"kWh",null,"15",null,null,null,null,"RMP Calculation","RMP Calculation","Prescriptive/Custom","2","Retrofit",null,"true",0.7,null,"true",null,"0.05",null,"1","0.87","2018-2019 Utah WSB Evaluation"]
[{"$f":"IF(AND(MeasureEffectiveDate>=MeasureTable_UT[[#This Row],[Effective Start Date]],MeasureTable_UT[[#This Row],[Effective Start Date]]<>\"\"),IF(MeasureTable_UT[[#This Row],[Effective End Date]]=\"\",TRUE,IF(MeasureEffectiveDate<=MeasureTable_UT[[#This Row],[Effective End Date]],TRUE,FALSE)))","v":false},{"$f":"MeasureTable_UT[[#This Row],[Measure Name]]&\" | \"&MeasureTable_UT[[#This Row],[Eligible Measure]]","v":"Controlled Environment Agriculture Lighting - Custom - Fixtures - Retrofit - Medium - UT | FALSE"},"UT","01052022-076","Controlled Environment Agriculture Lighting - Custom - Fixtures - Retrofit - Medium - UT","Lighting","Custom","Interior Lighting","Controlled environment agriculture lighting. Installed in a retrofit application for Utah Medium Customer Category. ",1,"Active","2022-01-01","3000-12-31","Baseline wattage for all retrofit lighting EEMs is the lesser of: a) Wattage of the existing equipment, or b) Wattage of deemed baseline equipment as determined by Rocky Mountain Power..",null,null,"To be eligible for the incentives listed, the new lighting system must use less energy than the existing lighting system replaced or the baseline lighting system as determined by Rocky Mountain Power.",null,null,"Installed lighting equipment (and controls, if applicable) must be listed on the DesignLights Consortium Horticultural qualified equipment list. ","Site-Specific","Site-Specific","Site-Specific","Site-Specific",null,"Site-Specific","Site-Specific",0.05,null,"kWh",null,"15",null,null,null,null,"RMP Calculation","RMP Calculation","Prescriptive/Custom","2","Retrofit",null,"true",0.7,null,"true",null,"0.05",null,"1","0.87","2018-2019 Utah WSB Evaluation"]
[{"$f":"IF(AND(MeasureEffectiveDate>=MeasureTable_UT[[#This Row],[Effective Start Date]],MeasureTable_UT[[#This Row],[Effective Start Date]]<>\"\"),IF(MeasureTable_UT[[#This Row],[Effective End Date]]=\"\",TRUE,IF(MeasureEffectiveDate<=MeasureTable_UT[[#This Row],[Effective End Date]],TRUE,FALSE)))","v":false},{"$f":"MeasureTable_UT[[#This Row],[Measure Name]]&\" | \"&MeasureTable_UT[[#This Row],[Eligible Measure]]","v":"Controlled Environment Agriculture Lighting - Custom - Fixtures - Retrofit - Small - UT | FALSE"},"UT","01052022-074","Controlled Environment Agriculture Lighting - Custom - Fixtures - Retrofit - Small - UT","Lighting","Custom","Interior Lighting","Controlled environment agriculture lighting. Installed in a retrofit application for Utah Small Customer Category. ",1,"Active","2022-01-01","3000-12-31","Baseline wattage for all retrofit lighting EEMs is the lesser of: a) Wattage of the existing equipment, or b) Wattage of deemed baseline equipment as determined by Rocky Mountain Power..",null,null,"To be eligible for the incentives listed, the new lighting system must use less energy than the existing lighting system replaced or the baseline lighting system as determined by Rocky Mountain Power.",null,null,"Installed lighting equipment (and controls, if applicable) must be listed on the DesignLights Consortium Horticultural qualified equipment list. ","Site-Specific","Site-Specific","Site-Specific","Site-Specific",null,"Site-Specific","Site-Specific",0.05,null,"kWh",null,"15",null,null,null,null,"RMP Calculation","RMP Calculation","Prescriptive/Custom","2","Retrofit",null,"true",0.7,null,"true",null,"0.05",null,"1","0.87","2018-2019 Utah WSB Evaluation"]
[{"$f":"IF(AND(MeasureEffectiveDate>=MeasureTable_UT[[#This Row],[Effective Start Date]],MeasureTable_UT[[#This Row],[Effective Start Date]]<>\"\"),IF(MeasureTable_UT[[#This Row],[Effective End Date]]=\"\",TRUE,IF(MeasureEffectiveDate<=MeasureTable_UT[[#This Row],[Effective End Date]],TRUE,FALSE)))","v":false},{"$f":"MeasureTable_UT[[#This Row],[Measure Name]]&\" | \"&MeasureTable_UT[[#This Row],[Eligible Measure]]","v":"Controlled Environment Agriculture Lighting - Custom - Lamps - Retrofit - Large - UT | FALSE"},"UT","01052022-079","Controlled Environment Agriculture Lighting - Custom - Lamps - Retrofit - Large - UT","Lighting","Custom","Interior Lighting","Controlled environment agriculture lighting. Installed in a retrofit application for Utah Large Customer Category. ",1,"Active","2022-01-01","3000-12-31","Baseline wattage for all retrofit lighting EEMs is the lesser of: a) Wattage of the existing equipment, or b) Wattage of deemed baseline equipment as determined by Rocky Mountain Power..",null,null,"To be eligible for the incentives listed, the new lighting system must use less energy than the existing lighting system replaced or the baseline lighting system as determined by Rocky Mountain Power.",null,null,"Installed lighting equipment (and controls, if applicable) must be listed on the DesignLights Consortium Horticultural qualified equipment list. ","Site-Specific","Site-Specific","Site-Specific","Site-Specific",null,"Site-Specific","Site-Specific",0.03,null,"kWh",null,"8",null,null,null,null,"RMP Calculation","RMP Calculation","Prescriptive/Custom","2","Retrofit",null,"true",0.7,null,"true",null,"0.03",null,"1","0.87","2018-2019 Utah WSB Evaluation"]
[{"$f":"IF(AND(MeasureEffectiveDate>=MeasureTable_UT[[#This Row],[Effective Start Date]],MeasureTable_UT[[#This Row],[Effective Start Date]]<>\"\"),IF(MeasureTable_UT[[#This Row],[Effective End Date]]=\"\",TRUE,IF(MeasureEffectiveDate<=MeasureTable_UT[[#This Row],[Effective End Date]],TRUE,FALSE)))","v":false},{"$f":"MeasureTable_UT[[#This Row],[Measure Name]]&\" | \"&MeasureTable_UT[[#This Row],[Eligible Measure]]","v":"Controlled Environment Agriculture Lighting - Custom - Lamps - Retrofit - Medium - UT | FALSE"},"UT","01052022-077","Controlled Environment Agriculture Lighting - Custom - Lamps - Retrofit - Medium - UT","Lighting","Custom","Interior Lighting","Controlled environment agriculture lighting. Installed in a retrofit application for Utah Medium Customer Category. ",1,"Active","2022-01-01","3000-12-31","Baseline wattage for all retrofit lighting EEMs is the lesser of: a) Wattage of the existing equipment, or b) Wattage of deemed baseline equipment as determined by Rocky Mountain Power..",null,null,"To be eligible for the incentives listed, the new lighting system must use less energy than the existing lighting system replaced or the baseline lighting system as determined by Rocky Mountain Power.",null,null,"Installed lighting equipment (and controls, if applicable) must be listed on the DesignLights Consortium Horticultural qualified equipment list. ","Site-Specific","Site-Specific","Site-Specific","Site-Specific",null,"Site-Specific","Site-Specific",0.03,null,"kWh",null,"8",null,null,null,null,"RMP Calculation","RMP Calculation","Prescriptive/Custom","2","Retrofit",null,"true",0.7,null,"true",null,"0.03",null,"1","0.87","2018-2019 Utah WSB Evaluation"]
[{"$f":"IF(AND(MeasureEffectiveDate>=MeasureTable_UT[[#This Row],[Effective Start Date]],MeasureTable_UT[[#This Row],[Effective Start Date]]<>\"\"),IF(MeasureTable_UT[[#This Row],[Effective End Date]]=\"\",TRUE,IF(MeasureEffectiveDate<=MeasureTable_UT[[#This Row],[Effective End Date]],TRUE,FALSE)))","v":false},{"$f":"MeasureTable_UT[[#This Row],[Measure Name]]&\" | \"&MeasureTable_UT[[#This Row],[Eligible Measure]]","v":"Controlled Environment Agriculture Lighting - Custom - Lamps - Retrofit - Small - UT | FALSE"},"UT","01052022-075","Controlled Environment Agriculture Lighting - Custom - Lamps - Retrofit - Small - UT","Lighting","Custom","Interior Lighting","Controlled environment agriculture lighting. Installed in a retrofit application for Utah Small Customer Category. ",1,"Active","2022-01-01","3000-12-31","Baseline wattage for all retrofit lighting EEMs is the lesser of: a) Wattage of the existing equipment, or b) Wattage of deemed baseline equipment as determined by Rocky Mountain Power..",null,null,"To be eligible for the incentives listed, the new lighting system must use less energy than the existing lighting system replaced or the baseline lighting system as determined by Rocky Mountain Power.",null,null,"Installed lighting equipment (and controls, if applicable) must be listed on the DesignLights Consortium Horticultural qualified equipment list. ","Site-Specific","Site-Specific","Site-Specific","Site-Specific",null,"Site-Specific","Site-Specific",0.03,null,"kWh",null,"8",null,null,null,null,"RMP Calculation","RMP Calculation","Prescriptive/Custom","2","Retrofit",null,"true",0.7,null,"true",null,"0.03",null,"1","0.87","2018-2019 Utah WSB Evaluation"]
[{"$f":"IF(AND(MeasureEffectiveDate>=MeasureTable_UT[[#This Row],[Effective Start Date]],MeasureTable_UT[[#This Row],[Effective Start Date]]<>\"\"),IF(MeasureTable_UT[[#This Row],[Effective End Date]]=\"\",TRUE,IF(MeasureEffectiveDate<=MeasureTable_UT[[#This Row],[Effective End Date]],TRUE,FALSE)))","v":false},{"$f":"MeasureTable_UT[[#This Row],[Measure Name]]&\" | \"&MeasureTable_UT[[#This Row],[Eligible Measure]]","v":"Streetlighting - w/ Advanced Networked Dimming Controls - Retrofit - Large - UT | FALSE"},"UT","11282023-043","Streetlighting - w/ Advanced Networked Dimming Controls - Retrofit - Large - UT","Lighting","Exterior Lighting","Area Lighting","Streetlighting retrofit to LED with advanced networked dimming controls. LED must be listed on qualified equipment list. Large Customer Category.",1,"Active","2023-02-01","3000-12-31","The baseline for this retrofit measure is assumed as an existing non-LED streetlighting fixture, most likely HID, without dimming controls. ",null,null,"LED streetlight fixture or retrofit kit listed on the Rocky Mountain Power qualified list, with advanced networked dimming controls",null,null,"All LED equipment must be listed as qualified on the Rocky Mountain Power website; this includes products on the DesignLights Consortium (DLC) product lists. Fixtures must be controlled using advanced networked dimming controls.","Site-Specific","Site-Specific","Site-Specific","Site-Specific",null,"Site-Specific","Site-Specific",0.35,null,"Watt Reduced",null,"15",null,null,null,null,"RMP Calculation","RMP Calculation","Prescriptive","2","Retrofit",null,"true",0.7,null,"true",null,"0.8",null,"0.978","1","2021 Utah wattsmart Business Evaluation"]
[{"$f":"IF(AND(MeasureEffectiveDate>=MeasureTable_UT[[#This Row],[Effective Start Date]],MeasureTable_UT[[#This Row],[Effective Start Date]]<>\"\"),IF(MeasureTable_UT[[#This Row],[Effective End Date]]=\"\",TRUE,IF(MeasureEffectiveDate<=MeasureTable_UT[[#This Row],[Effective End Date]],TRUE,FALSE)))","v":false},{"$f":"MeasureTable_UT[[#This Row],[Measure Name]]&\" | \"&MeasureTable_UT[[#This Row],[Eligible Measure]]","v":"Streetlighting - w/ Advanced Networked Dimming Controls - Retrofit - Medium - UT | FALSE"},"UT","11282023-044","Streetlighting - w/ Advanced Networked Dimming Controls - Retrofit - Medium - UT","Lighting","Exterior Lighting","Area Lighting","Streetlighting retrofit to LED with advanced networked dimming controls. LED must be listed on qualified equipment list. Medium Customer Category.",1,"Active","2023-02-01","3000-12-31","The baseline for this retrofit measure is assumed as an existing non-LED streetlighting fixture, most likely HID, without dimming controls. ",null,null,"LED streetlight fixture or retrofit kit listed on the Rocky Mountain Power qualified list, with advanced networked dimming controls",null,null,"All LED equipment must be listed as qualified on the Rocky Mountain Power website; this includes products on the DesignLights Consortium (DLC) product lists. Fixtures must be controlled using advanced networked dimming controls.","Site-Specific","Site-Specific","Site-Specific","Site-Specific",null,"Site-Specific","Site-Specific",0.35,null,"Watt Reduced",null,"15",null,null,null,null,"RMP Calculation","RMP Calculation","Prescriptive","2","Retrofit",null,"true",0.7,null,"true",null,"0.8",null,"0.978","1","2021 Utah wattsmart Business Evaluation"]
[{"$f":"IF(AND(MeasureEffectiveDate>=MeasureTable_UT[[#This Row],[Effective Start Date]],MeasureTable_UT[[#This Row],[Effective Start Date]]<>\"\"),IF(MeasureTable_UT[[#This Row],[Effective End Date]]=\"\",TRUE,IF(MeasureEffectiveDate<=MeasureTable_UT[[#This Row],[Effective End Date]],TRUE,FALSE)))","v":false},{"$f":"MeasureTable_UT[[#This Row],[Measure Name]]&\" | \"&MeasureTable_UT[[#This Row],[Eligible Measure]]","v":"Streetlighting - w/ Advanced Networked Dimming Controls - Retrofit - Small - UT | FALSE"},"UT","11282023-045","Streetlighting - w/ Advanced Networked Dimming Controls - Retrofit - Small - UT","Lighting","Exterior Lighting","Area Lighting","Streetlighting retrofit to LED with advanced networked dimming controls. LED must be listed on qualified equipment list. Small Customer Category.",1,"Active","2023-02-01","3000-12-31","The baseline for this retrofit measure is assumed as an existing non-LED streetlighting fixture, most likely HID, without dimming controls. ",null,null,"LED streetlight fixture or retrofit kit listed on the Rocky Mountain Power qualified list, with advanced networked dimming controls",null,null,"All LED equipment must be listed as qualified on the Rocky Mountain Power website; this includes products on the DesignLights Consortium (DLC) product lists. Fixtures must be controlled using advanced networked dimming controls.","Site-Specific","Site-Specific","Site-Specific","Site-Specific",null,"Site-Specific","Site-Specific",0.35,null,"Watt Reduced",null,"15",null,null,null,null,"RMP Calculation","RMP Calculation","Prescriptive","2","Retrofit",null,"true",0.7,null,"true",null,"0.8",null,"0.978","1","2021 Utah wattsmart Business Evaluation"]
[{"$f":"IF(AND(MeasureEffectiveDate>=MeasureTable_UT[[#This Row],[Effective Start Date]],MeasureTable_UT[[#This Row],[Effective Start Date]]<>\"\"),IF(MeasureTable_UT[[#This Row],[Effective End Date]]=\"\",TRUE,IF(MeasureEffectiveDate<=MeasureTable_UT[[#This Row],[Effective End Date]],TRUE,FALSE)))","v":false},{"$f":"MeasureTable_UT[[#This Row],[Measure Name]]&\" | \"&MeasureTable_UT[[#This Row],[Eligible Measure]]","v":"Streetlighting - w/ Basic Dimming Controls - Retrofit - Large - v3 - UT | FALSE"},"UT","02082023-073","Streetlighting - w/ Basic Dimming Controls - Retrofit - Large - v3 - UT","Lighting","Exterior Lighting","Area Lighting","Streetlighting retrofit to LED with basic dimming controls. LED must be listed on qualified equipment list. Large Customer Category.",1,"Active","2023-02-01","3000-12-31","The baseline for this retrofit measure is assumed as an existing non-LED streetlighting fixture, most likely HID, without dimming controls. ",null,null,"LED streetlight fixture or retrofit kit listed on the Rocky Mountain Power qualified list, with basic dimming controls",null,null,"All LED equipment must be listed as qualified on the Rocky Mountain Power website; this includes products on the DesignLights Consortium (DLC) Retrofit Kit product lists. Fixtures must be controlled using advanced dimming controls.","Site-Specific","Site-Specific","Site-Specific","Site-Specific",null,"Site-Specific","Site-Specific",0.35,null,"Watt Reduced",null,"15",null,null,null,null,"RMP Calculation","RMP Deemed","Prescriptive","2","Retrofit",null,"true",0.7,null,"true",null,"0.8",null,"0.961","1","2020 Utah wattsmart Business Evaluation"]
[{"$f":"IF(AND(MeasureEffectiveDate>=MeasureTable_UT[[#This Row],[Effective Start Date]],MeasureTable_UT[[#This Row],[Effective Start Date]]<>\"\"),IF(MeasureTable_UT[[#This Row],[Effective End Date]]=\"\",TRUE,IF(MeasureEffectiveDate<=MeasureTable_UT[[#This Row],[Effective End Date]],TRUE,FALSE)))","v":false},{"$f":"MeasureTable_UT[[#This Row],[Measure Name]]&\" | \"&MeasureTable_UT[[#This Row],[Eligible Measure]]","v":"Streetlighting - w/ Basic Dimming Controls - Retrofit - Medium - v3 - UT | FALSE"},"UT","02082023-074","Streetlighting - w/ Basic Dimming Controls - Retrofit - Medium - v3 - UT","Lighting","Exterior Lighting","Area Lighting","Streetlighting retrofit to LED with basic dimming controls. LED must be listed on qualified equipment list. Medium Customer Category.",1,"Active","2023-02-01","3000-12-31","The baseline for this retrofit measure is assumed as an existing non-LED streetlighting fixture, most likely HID, without dimming controls. ",null,null,"LED streetlight fixture or retrofit kit listed on the Rocky Mountain Power qualified list, with basic dimming controls",null,null,"All LED equipment must be listed as qualified on the Rocky Mountain Power website; this includes products on the DesignLights Consortium (DLC) Retrofit Kit product lists. Fixtures must be controlled using advanced dimming controls.","Site-Specific","Site-Specific","Site-Specific","Site-Specific",null,"Site-Specific","Site-Specific",0.35,null,"Watt Reduced",null,"15",null,null,null,null,"RMP Calculation","RMP Deemed","Prescriptive","2","Retrofit",null,"true",0.7,null,"true",null,"0.8",null,"0.961","1","2020 Utah wattsmart Business Evaluation"]
[{"$f":"IF(AND(MeasureEffectiveDate>=MeasureTable_UT[[#This Row],[Effective Start Date]],MeasureTable_UT[[#This Row],[Effective Start Date]]<>\"\"),IF(MeasureTable_UT[[#This Row],[Effective End Date]]=\"\",TRUE,IF(MeasureEffectiveDate<=MeasureTable_UT[[#This Row],[Effective End Date]],TRUE,FALSE)))","v":false},{"$f":"MeasureTable_UT[[#This Row],[Measure Name]]&\" | \"&MeasureTable_UT[[#This Row],[Eligible Measure]]","v":"Streetlighting - w/ Basic Dimming Controls - Retrofit - Small - v3 - UT | FALSE"},"UT","02082023-075","Streetlighting - w/ Basic Dimming Controls - Retrofit - Small - v3 - UT","Lighting","Exterior Lighting","Area Lighting","Streetlighting retrofit to LED with basic dimming controls. LED must be listed on qualified equipment list. Small Customer Category.",1,"Active","2023-02-01","3000-12-31","The baseline for this retrofit measure is assumed as an existing non-LED streetlighting fixture, most likely HID, without dimming controls. ",null,null,"LED streetlight fixture or retrofit kit listed on the Rocky Mountain Power qualified list, with basic dimming controls",null,null,"All LED equipment must be listed as qualified on the Rocky Mountain Power website; this includes products on the DesignLights Consortium (DLC) Retrofit Kit product lists. Fixtures must be controlled using advanced dimming controls.","Site-Specific","Site-Specific","Site-Specific","Site-Specific",null,"Site-Specific","Site-Specific",0.35,null,"Watt Reduced",null,"15",null,null,null,null,"RMP Calculation","RMP Deemed","Prescriptive","2","Retrofit",null,"true",0.7,null,"true",null,"0.8",null,"0.961","1","2020 Utah wattsmart Business Evaluation"]
[{"$f":"IF(AND(MeasureEffectiveDate>=MeasureTable_UT[[#This Row],[Effective Start Date]],MeasureTable_UT[[#This Row],[Effective Start Date]]<>\"\"),IF(MeasureTable_UT[[#This Row],[Effective End Date]]=\"\",TRUE,IF(MeasureEffectiveDate<=MeasureTable_UT[[#This Row],[Effective End Date]],TRUE,FALSE)))","v":false},{"$f":"MeasureTable_UT[[#This Row],[Measure Name]]&\" | \"&MeasureTable_UT[[#This Row],[Eligible Measure]]","v":"Exterior Advanced Lighting Controls - Advanced Networked Dimming Controls - Seasonal - Retrofit - Large - UT | FALSE"},"UT","11282023-001","Exterior Advanced Lighting Controls - Advanced Networked Dimming Controls - Seasonal - Retrofit - Large - UT","Lighting","Controls","Exterior Lighting Control","Exterior lighting system upgrades with advanced networked dimming controls only. Large Customer Category. Seasonal lighting illuminates spaces for large outdoor events on a seasonal schedule or daily schedule that is less than dusk-to-dawn. ",1,"Active","2023-11-15","3000-12-31","Non-LED exterior fixture. The baseline wattage for EEMs is the lesser of: a) Wattage of the existing equipment, or b) Wattage of deemed baseline equipment on the energy efficiency program section of the Rocky Mountain Power website. ",null,null,"Must control LED tech in an ext light application. Control must be DLC listed, continuously dimming, and use an app or computer program to control fixtures. Must result in at minimum 45% energy savings. ",null,null,"All LED equipment must be listed as qualified on the Rocky Mountain Power website; this includes products on the DesignLights Consortium (DLC) product lists. Fixtures must be controlled using advanced networked dimming controls.","Watt Controlled","Site-Specific","Site-Specific",null,null,"Site-Specific","Site-Specific",0.3,null,"Watt Controlled",null,"8",null,null,null,null,"RMP Calculation","RMP Calculation","Prescriptive","2","Retrofit",null,"true",0.7,null,"true",null,"0.8",null,"0.978","1","2021 Utah wattsmart Business Evaluation"]
[{"$f":"IF(AND(MeasureEffectiveDate>=MeasureTable_UT[[#This Row],[Effective Start Date]],MeasureTable_UT[[#This Row],[Effective Start Date]]<>\"\"),IF(MeasureTable_UT[[#This Row],[Effective End Date]]=\"\",TRUE,IF(MeasureEffectiveDate<=MeasureTable_UT[[#This Row],[Effective End Date]],TRUE,FALSE)))","v":false},{"$f":"MeasureTable_UT[[#This Row],[Measure Name]]&\" | \"&MeasureTable_UT[[#This Row],[Eligible Measure]]","v":"Exterior Advanced Lighting Controls - Advanced Networked Dimming Controls - Seasonal - Retrofit - Medium - UT | FALSE"},"UT","11282023-002","Exterior Advanced Lighting Controls - Advanced Networked Dimming Controls - Seasonal - Retrofit - Medium - UT","Lighting","Controls","Exterior Lighting Control","Exterior lighting system upgrades with advanced networked dimming controls only. Medium Customer Category. Seasonal lighting illuminates spaces for large outdoor events on a seasonal schedule or daily schedule that is less than dusk-to-dawn. ",1,"Active","2023-11-15","3000-12-31","Non-LED exterior fixture. The baseline wattage for EEMs is the lesser of: a) Wattage of the existing equipment, or b) Wattage of deemed baseline equipment on the energy efficiency program section of the Rocky Mountain Power website. ",null,null,"Must control LED tech in an ext light application. Control must be DLC listed, continuously dimming, and use an app or computer program to control fixtures. Must result in at minimum 45% energy savings. ",null,null,"All LED equipment must be listed as qualified on the Rocky Mountain Power website; this includes products on the DesignLights Consortium (DLC) product lists. Fixtures must be controlled using advanced networked dimming controls.","Watt Controlled","Site-Specific","Site-Specific",null,null,"Site-Specific","Site-Specific",0.33,null,"Watt Controlled",null,"8",null,null,null,null,"RMP Calculation","RMP Calculation","Prescriptive","2","Retrofit",null,"true",0.7,null,"true",null,"0.8",null,"0.978","1","2021 Utah wattsmart Business Evaluation"]
[{"$f":"IF(AND(MeasureEffectiveDate>=MeasureTable_UT[[#This Row],[Effective Start Date]],MeasureTable_UT[[#This Row],[Effective Start Date]]<>\"\"),IF(MeasureTable_UT[[#This Row],[Effective End Date]]=\"\",TRUE,IF(MeasureEffectiveDate<=MeasureTable_UT[[#This Row],[Effective End Date]],TRUE,FALSE)))","v":false},{"$f":"MeasureTable_UT[[#This Row],[Measure Name]]&\" | \"&MeasureTable_UT[[#This Row],[Eligible Measure]]","v":"Exterior Advanced Lighting Controls - Advanced Networked Dimming Controls - Seasonal - Retrofit - Small - UT | FALSE"},"UT","11282023-003","Exterior Advanced Lighting Controls - Advanced Networked Dimming Controls - Seasonal - Retrofit - Small - UT","Lighting","Controls","Exterior Lighting Control","Exterior lighting system upgrades with advanced networked dimming controls only. Small Customer Category. Seasonal lighting illuminates spaces for large outdoor events on a seasonal schedule or daily schedule that is less than dusk-to-dawn. ",1,"Active","2023-11-15","3000-12-31","Non-LED exterior fixture. The baseline wattage for EEMs is the lesser of: a) Wattage of the existing equipment, or b) Wattage of deemed baseline equipment on the energy efficiency program section of the Rocky Mountain Power website. ",null,null,"Must control LED tech in an ext light application. Control must be DLC listed, continuously dimming, and use an app or computer program to control fixtures. Must result in at minimum 45% energy savings. ",null,null,"All LED equipment must be listed as qualified on the Rocky Mountain Power website; this includes products on the DesignLights Consortium (DLC) product lists. Fixtures must be controlled using advanced networked dimming controls.","Watt Controlled","Site-Specific","Site-Specific",null,null,"Site-Specific","Site-Specific",0.33,null,"Watt Controlled",null,"8",null,null,null,null,"RMP Calculation","RMP Calculation","Prescriptive","2","Retrofit",null,"true",0.7,null,"true",null,"0.8",null,"0.978","1","2021 Utah wattsmart Business Evaluation"]
[{"$f":"IF(AND(MeasureEffectiveDate>=MeasureTable_UT[[#This Row],[Effective Start Date]],MeasureTable_UT[[#This Row],[Effective Start Date]]<>\"\"),IF(MeasureTable_UT[[#This Row],[Effective End Date]]=\"\",TRUE,IF(MeasureEffectiveDate<=MeasureTable_UT[[#This Row],[Effective End Date]],TRUE,FALSE)))","v":false},{"$f":"MeasureTable_UT[[#This Row],[Measure Name]]&\" | \"&MeasureTable_UT[[#This Row],[Eligible Measure]]","v":"Exterior Advanced Lighting Controls - Basic Dimming Controls - Seasonal - Retrofit - Large - UT | FALSE"},"UT","11282023-004","Exterior Advanced Lighting Controls - Basic Dimming Controls - Seasonal - Retrofit - Large - UT","Lighting","Controls","Exterior Lighting Control","Exterior lighting system upgrades with basic dimming controls only. Large Customer Category. Seasonal lighting illuminates spaces for large outdoor events that are lit on a seasonal schedule or on a daily schedule that is less than dusk-to-dawn. ",1,"Active","2023-11-15","3000-12-31","Non-LED exterior fixture. The baseline wattage for EEMs is the lesser of: a) Wattage of the existing equipment, or b) Wattage of deemed baseline equipment on the energy efficiency program section of the Rocky Mountain Power website. ",null,null,"Must control LED tech in an ext light application. Control must can be occupancy or schedule-based, and result in minimum of 35% energy savings. Networking not required.",null,null,"All LED equipment must be listed as qualified on the Rocky Mountain Power website; this includes products on the DesignLights Consortium (DLC) product lists. Fixtures must be controlled using basic dimming controls.","Watt Controlled","Site-Specific","Site-Specific",null,null,"Site-Specific","Site-Specific",0.18,null,"Watt Controlled",null,"8",null,null,null,null,"RMP Calculation","RMP Calculation","Prescriptive","2","Retrofit",null,"true",0.7,null,"true",null,"0.8",null,"0.978","1","2021 Utah wattsmart Business Evaluation"]
[{"$f":"IF(AND(MeasureEffectiveDate>=MeasureTable_UT[[#This Row],[Effective Start Date]],MeasureTable_UT[[#This Row],[Effective Start Date]]<>\"\"),IF(MeasureTable_UT[[#This Row],[Effective End Date]]=\"\",TRUE,IF(MeasureEffectiveDate<=MeasureTable_UT[[#This Row],[Effective End Date]],TRUE,FALSE)))","v":false},{"$f":"MeasureTable_UT[[#This Row],[Measure Name]]&\" | \"&MeasureTable_UT[[#This Row],[Eligible Measure]]","v":"Exterior Advanced Lighting Controls - Basic Dimming Controls - Seasonal - Retrofit - Medium - UT | FALSE"},"UT","11282023-005","Exterior Advanced Lighting Controls - Basic Dimming Controls - Seasonal - Retrofit - Medium - UT","Lighting","Controls","Exterior Lighting Control","Exterior lighting system upgrades with basic dimming controls only. Medium Customer Category. Seasonal lighting illuminates spaces for large outdoor events that are lit on a seasonal schedule or on a daily schedule that is less than dusk-to-dawn. ",1,"Active","2023-11-15","3000-12-31","Non-LED exterior fixture. The baseline wattage for EEMs is the lesser of: a) Wattage of the existing equipment, or b) Wattage of deemed baseline equipment on the energy efficiency program section of the Rocky Mountain Power website. ",null,null,"Must control LED tech in an ext light application. Control must can be occupancy or schedule-based, and result in minimum of 35% energy savings. Networking not required.",null,null,"All LED equipment must be listed as qualified on the Rocky Mountain Power website; this includes products on the DesignLights Consortium (DLC) product lists. Fixtures must be controlled using basic dimming controls.","Watt Controlled","Site-Specific","Site-Specific",null,null,"Site-Specific","Site-Specific",0.2,null,"Watt Controlled",null,"8",null,null,null,null,"RMP Calculation","RMP Calculation","Prescriptive","2","Retrofit",null,"true",0.7,null,"true",null,"0.8",null,"0.978","1","2021 Utah wattsmart Business Evaluation"]
[{"$f":"IF(AND(MeasureEffectiveDate>=MeasureTable_UT[[#This Row],[Effective Start Date]],MeasureTable_UT[[#This Row],[Effective Start Date]]<>\"\"),IF(MeasureTable_UT[[#This Row],[Effective End Date]]=\"\",TRUE,IF(MeasureEffectiveDate<=MeasureTable_UT[[#This Row],[Effective End Date]],TRUE,FALSE)))","v":false},{"$f":"MeasureTable_UT[[#This Row],[Measure Name]]&\" | \"&MeasureTable_UT[[#This Row],[Eligible Measure]]","v":"Exterior Advanced Lighting Controls - Basic Dimming Controls - Seasonal - Retrofit - Small - UT | FALSE"},"UT","11282023-006","Exterior Advanced Lighting Controls - Basic Dimming Controls - Seasonal - Retrofit - Small - UT","Lighting","Controls","Exterior Lighting Control","Exterior lighting system upgrades with basic dimming controls only. Small Customer Category. Seasonal lighting illuminates spaces for large outdoor events that are lit on a seasonal schedule or on a daily schedule that is less than dusk-to-dawn. ",1,"Active","2023-11-15","3000-12-31","Non-LED exterior fixture. The baseline wattage for EEMs is the lesser of: a) Wattage of the existing equipment, or b) Wattage of deemed baseline equipment on the energy efficiency program section of the Rocky Mountain Power website. ",null,null,"Must control LED tech in an ext light application. Control must can be occupancy or schedule-based, and result in minimum of 35% energy savings. Networking not required.",null,null,"All LED equipment must be listed as qualified on the Rocky Mountain Power website; this includes products on the DesignLights Consortium (DLC) product lists. Fixtures must be controlled using basic dimming controls.","Watt Controlled","Site-Specific","Site-Specific",null,null,"Site-Specific","Site-Specific",0.2,null,"Watt Controlled",null,"8",null,null,null,null,"RMP Calculation","RMP Calculation","Prescriptive","2","Retrofit",null,"true",0.7,null,"true",null,"0.8",null,"0.978","1","2021 Utah wattsmart Business Evaluation"]
[{"$f":"IF(AND(MeasureEffectiveDate>=MeasureTable_UT[[#This Row],[Effective Start Date]],MeasureTable_UT[[#This Row],[Effective Start Date]]<>\"\"),IF(MeasureTable_UT[[#This Row],[Effective End Date]]=\"\",TRUE,IF(MeasureEffectiveDate<=MeasureTable_UT[[#This Row],[Effective End Date]],TRUE,FALSE)))","v":false},{"$f":"MeasureTable_UT[[#This Row],[Measure Name]]&\" | \"&MeasureTable_UT[[#This Row],[Eligible Measure]]","v":"Exterior Fixture Replacement - Seasonal - Retrofit - Large - UT | FALSE"},"UT","11282023-007","Exterior Fixture Replacement - Seasonal - Retrofit - Large - UT","Lighting","Exterior Lighting","Fixture Retrofit/Replacement","Temporary pathway for large customers to replace fixtures but not install controls, without alternative DSM project. Seasonal lighting illuminates spaces for large outdoor events that are lit on a seasonal or daily schedule that is less than dusk-to-dawn.",1,"Active","2023-11-15","3000-12-31","Existing non-LED exterior fixture. The baseline wattage for EEMs is the lesser of: a) Wattage of the existing equipment, or b) Wattage of deemed baseline equipment on the energy efficiency program section of the Rocky Mountain Power website. ",null,null,"Full fixture replacement with LED fixture on the Rocky Mountain Power qualified list (DLC or ENERGY STAR qualified)",null,null,"Eligible retrofit lighting equipment is defined in qualified equipment lists posted on the Utah energy efficiency program section of the Rocky Mountain Power website. Entire existing fixture must be removed and a new fixture installed. ","Site-Specific","Site-Specific","Site-Specific",null,null,"Site-Specific","Site-Specific",0.18,null,"Watt Reduced",null,"15",null,null,null,null,"RMP Calculation","RMP Calculation","Prescriptive","2","Retrofit",null,"true",0.7,null,"true",null,"0.8",null,"0.978","1","2021 Utah wattsmart Business Evaluation"]
[{"$f":"IF(AND(MeasureEffectiveDate>=MeasureTable_UT[[#This Row],[Effective Start Date]],MeasureTable_UT[[#This Row],[Effective Start Date]]<>\"\"),IF(MeasureTable_UT[[#This Row],[Effective End Date]]=\"\",TRUE,IF(MeasureEffectiveDate<=MeasureTable_UT[[#This Row],[Effective End Date]],TRUE,FALSE)))","v":false},{"$f":"MeasureTable_UT[[#This Row],[Measure Name]]&\" | \"&MeasureTable_UT[[#This Row],[Eligible Measure]]","v":"Exterior Fixture Replacement - Seasonal - Retrofit - Medium - UT | FALSE"},"UT","11282023-008","Exterior Fixture Replacement - Seasonal - Retrofit - Medium - UT","Lighting","Exterior Lighting","Fixture Retrofit/Replacement","Exterior lighting upgrades, fixture replacement only. Medium Customer Category. Seasonal lighting illuminates spaces for large outdoor events that are lit on a seasonal schedule or on a daily schedule that is less than dusk-to-dawn.",1,"Active","2023-11-15","3000-12-31","Existing non-LED exterior fixture. The baseline wattage for EEMs is the lesser of: a) Wattage of the existing equipment, or b) Wattage of deemed baseline equipment on the energy efficiency program section of the Rocky Mountain Power website. ",null,null,"Full fixture replacement with LED fixture on the Rocky Mountain Power qualified list (DLC or ENERGY STAR qualified)",null,null,"All LED equipment must be listed as qualified on the Rocky Mountain Power website; this includes products on the DesignLights Consortium (DLC) product lists. Entire existing fixture must be removed and a new fixture installed. ","Site-Specific","Site-Specific","Site-Specific",null,null,"Site-Specific","Site-Specific",0.2,null,"Watt Reduced",null,"15",null,null,null,null,"RMP Calculation","RMP Calculation","Prescriptive","2","Retrofit",null,"true",0.7,null,"true",null,"0.8",null,"0.978","1","2021 Utah wattsmart Business Evaluation"]
[{"$f":"IF(AND(MeasureEffectiveDate>=MeasureTable_UT[[#This Row],[Effective Start Date]],MeasureTable_UT[[#This Row],[Effective Start Date]]<>\"\"),IF(MeasureTable_UT[[#This Row],[Effective End Date]]=\"\",TRUE,IF(MeasureEffectiveDate<=MeasureTable_UT[[#This Row],[Effective End Date]],TRUE,FALSE)))","v":false},{"$f":"MeasureTable_UT[[#This Row],[Measure Name]]&\" | \"&MeasureTable_UT[[#This Row],[Eligible Measure]]","v":"Exterior Fixture Replacement - Seasonal - Retrofit - Small - UT | FALSE"},"UT","11282023-009","Exterior Fixture Replacement - Seasonal - Retrofit - Small - UT","Lighting","Exterior Lighting","Fixture Retrofit/Replacement","Exterior lighting upgrades, fixture replacement only. Small Customer Category. Seasonal lighting illuminates spaces for large outdoor events that are lit on a seasonal schedule or on a daily schedule that is less than dusk-to-dawn.",1,"Active","2023-11-15","3000-12-31","Existing non-LED exterior fixture. The baseline wattage for EEMs is the lesser of: a) Wattage of the existing equipment, or b) Wattage of deemed baseline equipment on the energy efficiency program section of the Rocky Mountain Power website. ",null,null,"Full fixture replacement with LED fixture on the Rocky Mountain Power qualified list (DLC or ENERGY STAR qualified)",null,null,"All LED equipment must be listed as qualified on the Rocky Mountain Power website; this includes products on the DesignLights Consortium (DLC) product lists. Entire existing fixture must be removed and a new fixture installed. ","Site-Specific","Site-Specific","Site-Specific",null,null,"Site-Specific","Site-Specific",0.2,null,"Watt Reduced",null,"15",null,null,null,null,"RMP Calculation","RMP Calculation","Prescriptive","2","Retrofit",null,"true",0.7,null,"true",null,"0.8",null,"0.978","1","2021 Utah wattsmart Business Evaluation"]
[{"$f":"IF(AND(MeasureEffectiveDate>=MeasureTable_UT[[#This Row],[Effective Start Date]],MeasureTable_UT[[#This Row],[Effective Start Date]]<>\"\"),IF(MeasureTable_UT[[#This Row],[Effective End Date]]=\"\",TRUE,IF(MeasureEffectiveDate<=MeasureTable_UT[[#This Row],[Effective End Date]],TRUE,FALSE)))","v":false},{"$f":"MeasureTable_UT[[#This Row],[Measure Name]]&\" | \"&MeasureTable_UT[[#This Row],[Eligible Measure]]","v":"Exterior Fixture Replacement - w/ Advanced Networked Dimming Controls - Seasonal - Retrofit - Large - UT | FALSE"},"UT","11282023-010","Exterior Fixture Replacement - w/ Advanced Networked Dimming Controls - Seasonal - Retrofit - Large - UT","Lighting","Exterior Lighting","Fixture Retrofit/Replacement","Exterior fixture replacement, with advanced networked dimming controls. Large Customer Category. Seasonal lighting illuminates spaces for large outdoor events that are lit on a seasonal schedule or on a daily schedule that is less than dusk-to-dawn.",1,"Active","2023-11-15","3000-12-31","Existing non-LED exterior fixture. The baseline wattage for EEMs is the lesser of: a) Wattage of the existing equipment, or b) Wattage of deemed baseline equipment on the energy efficiency program section of the Rocky Mountain Power website. ",null,null,"Full fixture replacement with LED fixture on the Rocky Mountain Power qualified list (DLC or ENERGY STAR qualified) along with advanced networked dimming controls",null,null,"All LED equipment must be listed as qualified on the Rocky Mountain Power website; this includes products on the DesignLights Consortium (DLC) product lists. Full fixture replacement required, with advanced networked dimming controls.","Site-Specific","Site-Specific","Site-Specific",null,null,"Site-Specific","Site-Specific",0.35,null,"Watt Reduced",null,"15",null,null,null,null,"RMP Calculation","RMP Calculation","Prescriptive","2","Retrofit",null,"true",0.7,null,"true",null,"0.8",null,"0.978","1","2021 Utah wattsmart Business Evaluation"]
[{"$f":"IF(AND(MeasureEffectiveDate>=MeasureTable_UT[[#This Row],[Effective Start Date]],MeasureTable_UT[[#This Row],[Effective Start Date]]<>\"\"),IF(MeasureTable_UT[[#This Row],[Effective End Date]]=\"\",TRUE,IF(MeasureEffectiveDate<=MeasureTable_UT[[#This Row],[Effective End Date]],TRUE,FALSE)))","v":false},{"$f":"MeasureTable_UT[[#This Row],[Measure Name]]&\" | \"&MeasureTable_UT[[#This Row],[Eligible Measure]]","v":"Exterior Fixture Replacement - w/ Advanced Networked Dimming Controls - Seasonal - Retrofit - Medium - UT | FALSE"},"UT","11282023-011","Exterior Fixture Replacement - w/ Advanced Networked Dimming Controls - Seasonal - Retrofit - Medium - UT","Lighting","Exterior Lighting","Fixture Retrofit/Replacement","Exterior fixture replacement, with advanced networked dimming controls. Medium Customer Category. Seasonal lighting illuminates spaces for large outdoor events that are lit on a seasonal schedule or on a daily schedule that is less than dusk-to-dawn.",1,"Active","2023-11-15","3000-12-31","Existing non-LED exterior fixture. The baseline wattage for EEMs is the lesser of: a) Wattage of the existing equipment, or b) Wattage of deemed baseline equipment on the energy efficiency program section of the Rocky Mountain Power website. ",null,null,"Full fixture replacement with LED fixture on the Rocky Mountain Power qualified list (DLC or ENERGY STAR qualified) along with advanced networked dimming controls",null,null,"All LED equipment must be listed as qualified on the Rocky Mountain Power website; this includes products on the DesignLights Consortium (DLC) product lists. Full fixture replacement required, with advanced networked dimming controls.","Site-Specific","Site-Specific","Site-Specific",null,null,"Site-Specific","Site-Specific",0.39,null,"Watt Reduced",null,"15",null,null,null,null,"RMP Calculation","RMP Calculation","Prescriptive","2","Retrofit",null,"true",0.7,null,"true",null,"0.8",null,"0.978","1","2021 Utah wattsmart Business Evaluation"]
[{"$f":"IF(AND(MeasureEffectiveDate>=MeasureTable_UT[[#This Row],[Effective Start Date]],MeasureTable_UT[[#This Row],[Effective Start Date]]<>\"\"),IF(MeasureTable_UT[[#This Row],[Effective End Date]]=\"\",TRUE,IF(MeasureEffectiveDate<=MeasureTable_UT[[#This Row],[Effective End Date]],TRUE,FALSE)))","v":false},{"$f":"MeasureTable_UT[[#This Row],[Measure Name]]&\" | \"&MeasureTable_UT[[#This Row],[Eligible Measure]]","v":"Exterior Fixture Replacement - w/ Advanced Networked Dimming Controls - Seasonal - Retrofit - Small - UT | FALSE"},"UT","11282023-012","Exterior Fixture Replacement - w/ Advanced Networked Dimming Controls - Seasonal - Retrofit - Small - UT","Lighting","Exterior Lighting","Fixture Retrofit/Replacement","Exterior fixture replacement, with advanced networked dimming controls. Small Customer Category. Seasonal lighting illuminates spaces for large outdoor events that are lit on a seasonal schedule or on a daily schedule that is less than dusk-to-dawn.",1,"Active","2023-11-15","3000-12-31","Existing non-LED exterior fixture. The baseline wattage for EEMs is the lesser of: a) Wattage of the existing equipment, or b) Wattage of deemed baseline equipment on the energy efficiency program section of the Rocky Mountain Power website. ",null,null,"Full fixture replacement with LED fixture on the Rocky Mountain Power qualified list (DLC or ENERGY STAR qualified) along with advanced networked dimming controls",null,null,"All LED equipment must be listed as qualified on the Rocky Mountain Power website; this includes products on the DesignLights Consortium (DLC) product lists. Full fixture replacement required, with advanced networked dimming controls.","Site-Specific","Site-Specific","Site-Specific",null,null,"Site-Specific","Site-Specific",0.39,null,"Watt Reduced",null,"15",null,null,null,null,"RMP Calculation","RMP Calculation","Prescriptive","2","Retrofit",null,"true",0.7,null,"true",null,"0.8",null,"0.978","1","2021 Utah wattsmart Business Evaluation"]
[{"$f":"IF(AND(MeasureEffectiveDate>=MeasureTable_UT[[#This Row],[Effective Start Date]],MeasureTable_UT[[#This Row],[Effective Start Date]]<>\"\"),IF(MeasureTable_UT[[#This Row],[Effective End Date]]=\"\",TRUE,IF(MeasureEffectiveDate<=MeasureTable_UT[[#This Row],[Effective End Date]],TRUE,FALSE)))","v":false},{"$f":"MeasureTable_UT[[#This Row],[Measure Name]]&\" | \"&MeasureTable_UT[[#This Row],[Eligible Measure]]","v":"Exterior Fixture Replacement - w/ Basic Dimming Controls - Seasonal - Retrofit - Large - UT | FALSE"},"UT","11282023-013","Exterior Fixture Replacement - w/ Basic Dimming Controls - Seasonal - Retrofit - Large - UT","Lighting","Exterior Lighting","Fixture Retrofit/Replacement","Exterior fixture replacement, with basic dimming controls. Large Customer Category. Seasonal lighting illuminates spaces for large outdoor events that are lit on a seasonal schedule or on a daily schedule that is less than dusk-to-dawn.",1,"Active","2023-11-15","3000-12-31","Existing non-LED exterior fixture. The baseline wattage for EEMs is the lesser of: a) Wattage of the existing equipment, or b) Wattage of deemed baseline equipment on the energy efficiency program section of the Rocky Mountain Power website. ",null,null,"Full fixture replacement with LED fixture on the Rocky Mountain Power qualified list (DLC or ENERGY STAR qualified) along with Basic Dimming controls",null,null,"All LED equipment must be listed as qualified on the Rocky Mountain Power website; this includes products on the DesignLights Consortium (DLC) product lists. Full fixture replacement, with Basic Dimming controls.","Site-Specific","Site-Specific","Site-Specific",null,null,"Site-Specific","Site-Specific",0.25,null,"Watt Reduced",null,"15",null,null,null,null,"RMP Calculation","RMP Calculation","Prescriptive","2","Retrofit",null,"true",0.7,null,"true",null,"0.8",null,"0.978","1","2021 Utah wattsmart Business Evaluation"]
[{"$f":"IF(AND(MeasureEffectiveDate>=MeasureTable_UT[[#This Row],[Effective Start Date]],MeasureTable_UT[[#This Row],[Effective Start Date]]<>\"\"),IF(MeasureTable_UT[[#This Row],[Effective End Date]]=\"\",TRUE,IF(MeasureEffectiveDate<=MeasureTable_UT[[#This Row],[Effective End Date]],TRUE,FALSE)))","v":false},{"$f":"MeasureTable_UT[[#This Row],[Measure Name]]&\" | \"&MeasureTable_UT[[#This Row],[Eligible Measure]]","v":"Exterior Fixture Replacement - w/ Basic Dimming Controls - Seasonal - Retrofit - Medium - UT | FALSE"},"UT","11282023-014","Exterior Fixture Replacement - w/ Basic Dimming Controls - Seasonal - Retrofit - Medium - UT","Lighting","Exterior Lighting","Fixture Retrofit/Replacement","Exterior fixture replacement, with basic dimming controls. Medium Customer Category. Seasonal lighting illuminates spaces for large outdoor events that are lit on a seasonal schedule or on a daily schedule that is less than dusk-to-dawn.",1,"Active","2023-11-15","3000-12-31","Existing non-LED exterior fixture. The baseline wattage for EEMs is the lesser of: a) Wattage of the existing equipment, or b) Wattage of deemed baseline equipment on the energy efficiency program section of the Rocky Mountain Power website. ",null,null,"Full fixture replacement with LED fixture on the Rocky Mountain Power qualified list (DLC or ENERGY STAR qualified) along with Basic Dimming controls",null,null,"All LED equipment must be listed as qualified on the Rocky Mountain Power website; this includes products on the DesignLights Consortium (DLC) product lists. Full fixture replacement, with Basic Dimming controls.","Site-Specific","Site-Specific","Site-Specific",null,null,"Site-Specific","Site-Specific",0.28000000000000003,null,"Watt Reduced",null,"15",null,null,null,null,"RMP Calculation","RMP Calculation","Prescriptive","2","Retrofit",null,"true",0.7,null,"true",null,"0.8",null,"0.978","1","2021 Utah wattsmart Business Evaluation"]
[{"$f":"IF(AND(MeasureEffectiveDate>=MeasureTable_UT[[#This Row],[Effective Start Date]],MeasureTable_UT[[#This Row],[Effective Start Date]]<>\"\"),IF(MeasureTable_UT[[#This Row],[Effective End Date]]=\"\",TRUE,IF(MeasureEffectiveDate<=MeasureTable_UT[[#This Row],[Effective End Date]],TRUE,FALSE)))","v":false},{"$f":"MeasureTable_UT[[#This Row],[Measure Name]]&\" | \"&MeasureTable_UT[[#This Row],[Eligible Measure]]","v":"Exterior Fixture Replacement - w/ Basic Dimming Controls - Seasonal - Retrofit - Small - UT | FALSE"},"UT","11282023-015","Exterior Fixture Replacement - w/ Basic Dimming Controls - Seasonal - Retrofit - Small - UT","Lighting","Exterior Lighting","Fixture Retrofit/Replacement","Exterior fixture replacement, with basic dimming controls. Small Customer Category. Seasonal lighting illuminates spaces for large outdoor events that are lit on a seasonal schedule or on a daily schedule that is less than dusk-to-dawn.",1,"Active","2023-11-15","3000-12-31","Existing non-LED exterior fixture. The baseline wattage for EEMs is the lesser of: a) Wattage of the existing equipment, or b) Wattage of deemed baseline equipment on the energy efficiency program section of the Rocky Mountain Power website. ",null,null,"Full fixture replacement with LED fixture on the Rocky Mountain Power qualified list (DLC or ENERGY STAR qualified) along with Basic Dimming controls",null,null,"All LED equipment must be listed as qualified on the Rocky Mountain Power website; this includes products on the DesignLights Consortium (DLC) product lists. Full fixture replacement, with Basic Dimming controls.","Site-Specific","Site-Specific","Site-Specific",null,null,"Site-Specific","Site-Specific",0.28000000000000003,null,"Watt Reduced",null,"15",null,null,null,null,"RMP Calculation","RMP Calculation","Prescriptive","2","Retrofit",null,"true",0.7,null,"true",null,"0.8",null,"0.978","1","2021 Utah wattsmart Business Evaluation"]
[{"$f":"IF(AND(MeasureEffectiveDate>=MeasureTable_UT[[#This Row],[Effective Start Date]],MeasureTable_UT[[#This Row],[Effective Start Date]]<>\"\"),IF(MeasureTable_UT[[#This Row],[Effective End Date]]=\"\",TRUE,IF(MeasureEffectiveDate<=MeasureTable_UT[[#This Row],[Effective End Date]],TRUE,FALSE)))","v":false},{"$f":"MeasureTable_UT[[#This Row],[Measure Name]]&\" | \"&MeasureTable_UT[[#This Row],[Eligible Measure]]","v":"Exterior Fixture Retrofit Kit - Seasonal - Retrofit - Large - UT | FALSE"},"UT","11282023-016","Exterior Fixture Retrofit Kit - Seasonal - Retrofit - Large - UT","Lighting","Exterior Lighting","Fixture Retrofit/Replacement","Temporary pathway for large customers to install retrofit kits but not install controls, without alternative DSM project. Seasonal lighting illuminates spaces for large outdoor events lit on a seasonal or daily schedule that is less than dusk-to-dawn.",1,"Active","2023-11-15","3000-12-31","Existing non-LED exterior fixture. The baseline wattage for EEMs is the lesser of: a) Wattage of the existing equipment, or b) Wattage of deemed baseline equipment on the energy efficiency program section of the Rocky Mountain Power website. ",null,null,"LED retrofit kit on the Rocky Mountain Power qualified list (DLC). Keeps existing fixture housing and modifies fixture components to incorporate new lighting equipment. ",null,null,"All LED equipment must be listed as qualified on the Rocky Mountain Power website; this includes products on the DesignLights Consortium (DLC) product lists.","Site-Specific","Site-Specific","Site-Specific",null,null,"Site-Specific","Site-Specific",0.18,null,"Watt Reduced",null,"15",null,null,null,null,"RMP Calculation","RMP Calculation","Prescriptive","2","Retrofit",null,"true",0.7,null,"true",null,"0.8",null,"0.978","1","2021 Utah wattsmart Business Evaluation"]
[{"$f":"IF(AND(MeasureEffectiveDate>=MeasureTable_UT[[#This Row],[Effective Start Date]],MeasureTable_UT[[#This Row],[Effective Start Date]]<>\"\"),IF(MeasureTable_UT[[#This Row],[Effective End Date]]=\"\",TRUE,IF(MeasureEffectiveDate<=MeasureTable_UT[[#This Row],[Effective End Date]],TRUE,FALSE)))","v":false},{"$f":"MeasureTable_UT[[#This Row],[Measure Name]]&\" | \"&MeasureTable_UT[[#This Row],[Eligible Measure]]","v":"Exterior Fixture Retrofit Kit - Seasonal - Retrofit - Medium - UT | FALSE"},"UT","11282023-017","Exterior Fixture Retrofit Kit - Seasonal - Retrofit - Medium - UT","Lighting","Exterior Lighting","Fixture Retrofit/Replacement","Exterior lighting upgrade via fixture retrofit kit. Medium Customer Category. Seasonal lighting illuminates spaces for large outdoor events lit on a seasonal or daily schedule that is less than dusk-to-dawn.",1,"Active","2023-11-15","3000-12-31","Existing non-LED exterior fixture. The baseline wattage for EEMs is the lesser of: a) Wattage of the existing equipment, or b) Wattage of deemed baseline equipment on the energy efficiency program section of the Rocky Mountain Power website. ",null,null,"LED retrofit kit on the Rocky Mountain Power qualified list (DLC). Keeps existing fixture housing and modifies fixture components to incorporate new lighting equipment. ",null,null,"All LED equipment must be listed as qualified on the Rocky Mountain Power website; this includes products on the DesignLights Consortium (DLC) product lists.","Site-Specific","Site-Specific","Site-Specific",null,null,"Site-Specific","Site-Specific",0.2,null,"Watt Reduced",null,"15",null,null,null,null,"RMP Calculation","RMP Calculation","Prescriptive","2","Retrofit",null,"true",0.7,null,"true",null,"0.8",null,"0.978","1","2021 Utah wattsmart Business Evaluation"]
[{"$f":"IF(AND(MeasureEffectiveDate>=MeasureTable_UT[[#This Row],[Effective Start Date]],MeasureTable_UT[[#This Row],[Effective Start Date]]<>\"\"),IF(MeasureTable_UT[[#This Row],[Effective End Date]]=\"\",TRUE,IF(MeasureEffectiveDate<=MeasureTable_UT[[#This Row],[Effective End Date]],TRUE,FALSE)))","v":false},{"$f":"MeasureTable_UT[[#This Row],[Measure Name]]&\" | \"&MeasureTable_UT[[#This Row],[Eligible Measure]]","v":"Exterior Fixture Retrofit Kit - Seasonal - Retrofit - Small - UT | FALSE"},"UT","11282023-018","Exterior Fixture Retrofit Kit - Seasonal - Retrofit - Small - UT","Lighting","Exterior Lighting","Fixture Retrofit/Replacement","Exterior lighting upgrade via fixture retrofit kit. Small Customer Category. Seasonal lighting illuminates spaces for large outdoor events lit on a seasonal or daily schedule that is less than dusk-to-dawn.",1,"Active","2023-11-15","3000-12-31","Existing non-LED exterior fixture. The baseline wattage for EEMs is the lesser of: a) Wattage of the existing equipment, or b) Wattage of deemed baseline equipment on the energy efficiency program section of the Rocky Mountain Power website. ",null,null,"LED retrofit kit on the Rocky Mountain Power qualified list (DLC). Keeps existing fixture housing and modifies fixture components to incorporate new lighting equipment. ",null,null,"All LED equipment must be listed as qualified on the Rocky Mountain Power website; this includes products on the DesignLights Consortium (DLC) product lists.","Site-Specific","Site-Specific","Site-Specific",null,null,"Site-Specific","Site-Specific",0.2,null,"Watt Reduced",null,"15",null,null,null,null,"RMP Calculation","RMP Calculation","Prescriptive","2","Retrofit",null,"true",0.7,null,"true",null,"0.8",null,"0.978","1","2021 Utah wattsmart Business Evaluation"]
[{"$f":"IF(AND(MeasureEffectiveDate>=MeasureTable_UT[[#This Row],[Effective Start Date]],MeasureTable_UT[[#This Row],[Effective Start Date]]<>\"\"),IF(MeasureTable_UT[[#This Row],[Effective End Date]]=\"\",TRUE,IF(MeasureEffectiveDate<=MeasureTable_UT[[#This Row],[Effective End Date]],TRUE,FALSE)))","v":false},{"$f":"MeasureTable_UT[[#This Row],[Measure Name]]&\" | \"&MeasureTable_UT[[#This Row],[Eligible Measure]]","v":"Exterior Fixture Retrofit Kit - w/ Advanced Networked Dimming Controls - Seasonal - Retrofit - Large - UT | FALSE"},"UT","11282023-019","Exterior Fixture Retrofit Kit - w/ Advanced Networked Dimming Controls - Seasonal - Retrofit - Large - UT","Lighting","Exterior Lighting","Fixture Retrofit/Replacement","Exterior lighting upgrade via fixture retrofit kit, with advanced networked dimming controls. Large Customer Category. Seasonal lighting illuminates spaces for large outdoor events lit on a seasonal or daily schedule that is less than dusk-to-dawn.",1,"Active","2023-11-15","3000-12-31","Existing non-LED exterior fixture. The baseline wattage for EEMs is the lesser of: a) Wattage of the existing equipment, or b) Wattage of deemed baseline equipment on the energy efficiency program section of the Rocky Mountain Power website. ",null,null,"LED retrofit kit on the Rocky Mountain Power qualified list (DLC) along with advanced networked dimming controls. Keeps existing fixture housing and modifies fixture components to incorporate new lighting equipment. ",null,null,"All LED equipment must be listed as qualified on the Rocky Mountain Power website; this includes products on the DesignLights Consortium (DLC) product lists. Fixtures must be controlled using advanced networked dimming controls.","Site-Specific","Site-Specific","Site-Specific",null,null,"Site-Specific","Site-Specific",0.35,null,"Watt Reduced",null,"15",null,null,null,null,"RMP Calculation","RMP Calculation","Prescriptive","2","Retrofit",null,"true",0.7,null,"true",null,"0.8",null,"0.978","1","2021 Utah wattsmart Business Evaluation"]
[{"$f":"IF(AND(MeasureEffectiveDate>=MeasureTable_UT[[#This Row],[Effective Start Date]],MeasureTable_UT[[#This Row],[Effective Start Date]]<>\"\"),IF(MeasureTable_UT[[#This Row],[Effective End Date]]=\"\",TRUE,IF(MeasureEffectiveDate<=MeasureTable_UT[[#This Row],[Effective End Date]],TRUE,FALSE)))","v":false},{"$f":"MeasureTable_UT[[#This Row],[Measure Name]]&\" | \"&MeasureTable_UT[[#This Row],[Eligible Measure]]","v":"Exterior Fixture Retrofit Kit - w/ Advanced Networked Dimming Controls - Seasonal - Retrofit - Medium - UT | FALSE"},"UT","11282023-020","Exterior Fixture Retrofit Kit - w/ Advanced Networked Dimming Controls - Seasonal - Retrofit - Medium - UT","Lighting","Exterior Lighting","Fixture Retrofit/Replacement","Exterior lighting upgrade via fixture retrofit kit, with advanced networked dimming controls. Medium Customer Category. Seasonal lighting illuminates spaces for large outdoor events lit on a seasonal or daily schedule that is less than dusk-to-dawn.",1,"Active","2023-11-15","3000-12-31","Existing non-LED exterior fixture. The baseline wattage for EEMs is the lesser of: a) Wattage of the existing equipment, or b) Wattage of deemed baseline equipment on the energy efficiency program section of the Rocky Mountain Power website. ",null,null,"LED retrofit kit on the Rocky Mountain Power qualified list (DLC) along with advanced networked dimming controls. Keeps existing fixture housing and modifies fixture components to incorporate new lighting equipment. ",null,null,"All LED equipment must be listed as qualified on the Rocky Mountain Power website; this includes products on the DesignLights Consortium (DLC) product lists. Fixtures must be controlled using advanced networked dimming controls.","Site-Specific","Site-Specific","Site-Specific",null,null,"Site-Specific","Site-Specific",0.39,null,"Watt Reduced",null,"15",null,null,null,null,"RMP Calculation","RMP Calculation","Prescriptive","2","Retrofit",null,"true",0.7,null,"true",null,"0.8",null,"0.978","1","2021 Utah wattsmart Business Evaluation"]
[{"$f":"IF(AND(MeasureEffectiveDate>=MeasureTable_UT[[#This Row],[Effective Start Date]],MeasureTable_UT[[#This Row],[Effective Start Date]]<>\"\"),IF(MeasureTable_UT[[#This Row],[Effective End Date]]=\"\",TRUE,IF(MeasureEffectiveDate<=MeasureTable_UT[[#This Row],[Effective End Date]],TRUE,FALSE)))","v":false},{"$f":"MeasureTable_UT[[#This Row],[Measure Name]]&\" | \"&MeasureTable_UT[[#This Row],[Eligible Measure]]","v":"Exterior Fixture Retrofit Kit - w/ Advanced Networked Dimming Controls - Seasonal - Retrofit - Small - UT | FALSE"},"UT","11282023-021","Exterior Fixture Retrofit Kit - w/ Advanced Networked Dimming Controls - Seasonal - Retrofit - Small - UT","Lighting","Exterior Lighting","Fixture Retrofit/Replacement","Exterior lighting upgrade via fixture retrofit kit, with advanced networked dimming controls. Smal Customer Category. Seasonal lighting illuminates spaces for large outdoor events lit on a seasonal or daily schedule that is less than dusk-to-dawn.",1,"Active","2023-11-15","3000-12-31","Existing non-LED exterior fixture. The baseline wattage for EEMs is the lesser of: a) Wattage of the existing equipment, or b) Wattage of deemed baseline equipment on the energy efficiency program section of the Rocky Mountain Power website. ",null,null,"LED retrofit kit on the Rocky Mountain Power qualified list (DLC) along with advanced networked dimming controls. Keeps existing fixture housing and modifies fixture components to incorporate new lighting equipment. ",null,null,"All LED equipment must be listed as qualified on the Rocky Mountain Power website; this includes products on the DesignLights Consortium (DLC) product lists. Fixtures must be controlled using advanced networked dimming controls.","Site-Specific","Site-Specific","Site-Specific",null,null,"Site-Specific","Site-Specific",0.39,null,"Watt Reduced",null,"15",null,null,null,null,"RMP Calculation","RMP Calculation","Prescriptive","2","Retrofit",null,"true",0.7,null,"true",null,"0.8",null,"0.978","1","2021 Utah wattsmart Business Evaluation"]
[{"$f":"IF(AND(MeasureEffectiveDate>=MeasureTable_UT[[#This Row],[Effective Start Date]],MeasureTable_UT[[#This Row],[Effective Start Date]]<>\"\"),IF(MeasureTable_UT[[#This Row],[Effective End Date]]=\"\",TRUE,IF(MeasureEffectiveDate<=MeasureTable_UT[[#This Row],[Effective End Date]],TRUE,FALSE)))","v":false},{"$f":"MeasureTable_UT[[#This Row],[Measure Name]]&\" | \"&MeasureTable_UT[[#This Row],[Eligible Measure]]","v":"Exterior Fixture Retrofit Kit - w/ Basic Dimming Controls - Seasonal - Retrofit - Large - UT | FALSE"},"UT","11282023-022","Exterior Fixture Retrofit Kit - w/ Basic Dimming Controls - Seasonal - Retrofit - Large - UT","Lighting","Exterior Lighting","Fixture Retrofit/Replacement","Exterior lighting upgrade via fixture retrofit kit, with basic dimming controls. Large Customer Category. Seasonal lighting illuminates spaces for large outdoor events lit on a seasonal or daily schedule that is less than dusk-to-dawn.",1,"Active","2023-11-15","3000-12-31","Existing non-LED exterior fixture. The baseline wattage for EEMs is the lesser of: a) Wattage of the existing equipment, or b) Wattage of deemed baseline equipment on the energy efficiency program section of the Rocky Mountain Power website. ",null,null,"LED retrofit kit on the Rocky Mountain Power qualified list (DLC) along with basic dimming controls. Keeps existing fixture housing and modifies fixture components to incorporate new lighting equipment. ",null,null,"All LED equipment must be listed as qualified on the Rocky Mountain Power website; this includes products on the DesignLights Consortium (DLC) product lists. Fixtures must be controlled using Basic Dimming controls.","Site-Specific","Site-Specific","Site-Specific",null,null,"Site-Specific","Site-Specific",0.25,null,"Watt Reduced",null,"15",null,null,null,null,"RMP Calculation","RMP Calculation","Prescriptive","2","Retrofit",null,"true",0.7,null,"true",null,"0.8",null,"0.978","1","2021 Utah wattsmart Business Evaluation"]
[{"$f":"IF(AND(MeasureEffectiveDate>=MeasureTable_UT[[#This Row],[Effective Start Date]],MeasureTable_UT[[#This Row],[Effective Start Date]]<>\"\"),IF(MeasureTable_UT[[#This Row],[Effective End Date]]=\"\",TRUE,IF(MeasureEffectiveDate<=MeasureTable_UT[[#This Row],[Effective End Date]],TRUE,FALSE)))","v":false},{"$f":"MeasureTable_UT[[#This Row],[Measure Name]]&\" | \"&MeasureTable_UT[[#This Row],[Eligible Measure]]","v":"Exterior Fixture Retrofit Kit - w/ Basic Dimming Controls - Seasonal - Retrofit - Medium - UT | FALSE"},"UT","11282023-023","Exterior Fixture Retrofit Kit - w/ Basic Dimming Controls - Seasonal - Retrofit - Medium - UT","Lighting","Exterior Lighting","Fixture Retrofit/Replacement","Exterior lighting upgrade via fixture retrofit kit, with basic dimming controls. Medium Customer Category. Seasonal lighting illuminates spaces for large outdoor events lit on a seasonal or daily schedule that is less than dusk-to-dawn.",1,"Active","2023-11-15","3000-12-31","Existing non-LED exterior fixture. The baseline wattage for EEMs is the lesser of: a) Wattage of the existing equipment, or b) Wattage of deemed baseline equipment on the energy efficiency program section of the Rocky Mountain Power website. ",null,null,"LED retrofit kit on the Rocky Mountain Power qualified list (DLC) along with basic dimming controls. Keeps existing fixture housing and modifies fixture components to incorporate new lighting equipment. ",null,null,"All LED equipment must be listed as qualified on the Rocky Mountain Power website; this includes products on the DesignLights Consortium (DLC) product lists. Fixtures must be controlled using Basic Dimming controls.","Site-Specific","Site-Specific","Site-Specific",null,null,"Site-Specific","Site-Specific",0.28000000000000003,null,"Watt Reduced",null,"15",null,null,null,null,"RMP Calculation","RMP Calculation","Prescriptive","2","Retrofit",null,"true",0.7,null,"true",null,"0.8",null,"0.978","1","2021 Utah wattsmart Business Evaluation"]
[{"$f":"IF(AND(MeasureEffectiveDate>=MeasureTable_UT[[#This Row],[Effective Start Date]],MeasureTable_UT[[#This Row],[Effective Start Date]]<>\"\"),IF(MeasureTable_UT[[#This Row],[Effective End Date]]=\"\",TRUE,IF(MeasureEffectiveDate<=MeasureTable_UT[[#This Row],[Effective End Date]],TRUE,FALSE)))","v":false},{"$f":"MeasureTable_UT[[#This Row],[Measure Name]]&\" | \"&MeasureTable_UT[[#This Row],[Eligible Measure]]","v":"Exterior Fixture Retrofit Kit - w/ Basic Dimming Controls - Seasonal - Retrofit - Small - UT | FALSE"},"UT","11282023-024","Exterior Fixture Retrofit Kit - w/ Basic Dimming Controls - Seasonal - Retrofit - Small - UT","Lighting","Exterior Lighting","Fixture Retrofit/Replacement","Exterior lighting upgrade via fixture retrofit kit, with basic dimming controls. Small Customer Category. Seasonal lighting illuminates spaces for large outdoor events lit on a seasonal or daily schedule that is less than dusk-to-dawn.",1,"Active","2023-11-15","3000-12-31","Existing non-LED exterior fixture. The baseline wattage for EEMs is the lesser of: a) Wattage of the existing equipment, or b) Wattage of deemed baseline equipment on the energy efficiency program section of the Rocky Mountain Power website. ",null,null,"LED retrofit kit on the Rocky Mountain Power qualified list (DLC) along with basic dimming controls. Keeps existing fixture housing and modifies fixture components to incorporate new lighting equipment. ",null,null,"All LED equipment must be listed as qualified on the Rocky Mountain Power website; this includes products on the DesignLights Consortium (DLC) product lists. Fixtures must be controlled using Basic Dimming controls.","Site-Specific","Site-Specific","Site-Specific",null,null,"Site-Specific","Site-Specific",0.28000000000000003,null,"Watt Reduced",null,"15",null,null,null,null,"RMP Calculation","RMP Calculation","Prescriptive","2","Retrofit",null,"true",0.7,null,"true",null,"0.8",null,"0.978","1","2021 Utah wattsmart Business Evaluation"]

{"sheet":"EquipmentTable_Retrofit_WY","index":22,"n_rows":73,"n_cols":28,"rows_kept":73,"cut":false,"hidden":true,"merged":[]}
["categoryProposed","equipmentProposed","controlMethod","measureRetrofit_Interior_None","measureRetrofit_Interior_Basic","measureRetrofit_Interior_Mid","measureRetrofit_Interior_Advanced","measureRetrofit_Interior_Plug","measureRetrofit_Exterior_None","measureRetrofit_Exterior_Mid","measureRetrofit_Exterior_Advanced","measureRetrofit_Street_None","measureRetrofit_Street_Mid","measureRetrofit_Street_Advanced","measureRetrofit_SBE"]
["Controls Only","Controls Only - Advanced networked",null,null,null,null,null,null,null,null,null,null,null,null,null,null,{"$f":"TEXT(COUNTIFS(MeasureTable_WY!G:G,EquipmentTable_Retrofit_WY[[#This Row],[measureRetrofit_Interior_None]],MeasureTable_WY!A:A,\"TRUE\"),\"0\") & \", \" &\nTEXT(COUNTIFS(MeasureTable_WY!G:G,EquipmentTable_Retrofit_WY[[#This Row],[measureRetrofit_Interior_Basic]],MeasureTable_WY!A:A,\"TRUE\"),\"0\") & \", \" &\nTEXT(COUNTIFS(MeasureTable_WY!G:G,EquipmentTable_Retrofit_WY[[#This Row],[measureRetrofit_Interior_Advanced]],MeasureTable_WY!A:A,\"TRUE\"),\"0\") & \", \" &\nTEXT(COUNTIFS(MeasureTable_WY!G:G,EquipmentTable_Retrofit_WY[[#This Row],[measureRetrofit_Exterior_None]],MeasureTable_WY!A:A,\"TRUE\"),\"0\") & \", \" &\nTEXT(COUNTIFS(MeasureTable_WY!G:G,EquipmentTable_Retrofit_WY[[#This Row],[measureRetrofit_Exterior_Advanced]],MeasureTable_WY!A:A,\"TRUE\"),\"0\") & \", \" &\nTEXT(COUNTIFS(MeasureTable_WY!G:G,EquipmentTable_Retrofit_WY[[#This Row],[measureRetrofit_Street_None]],MeasureTable_WY!A:A,\"TRUE\"),\"0\") & \", \" &\nTEXT(COUNTIFS(MeasureTable_WY!G:G,EquipmentTable_Retrofit_WY[[#This Row],[measureRetrofit_Street_Advanced]],MeasureTable_WY!A:A,\"TRUE\"),\"0\") & \", \" &\nTEXT(COUNTIFS(MeasureTable_WY!G:G,EquipmentTable_Retrofit_WY[[#This Row],[measureRetrofit_SBE]],MeasureTable_WY!A:A,\"TRUE\"),\"0\")","v":"0, 0, 0, 0, 0, 0, 0, 0"},null,null,null,"To be Ended","In Mapping",{"$f":"SUM(V3:V22)","v":0},null,"Revised Names","In Mapping","Old Name"]
["Controls Only","Controls Only - Advanced networked exterior dimming",null,null,null,null,null,null,null,null,null,null,null,null,null,null,{"$f":"TEXT(COUNTIFS(MeasureTable_WY!G:G,EquipmentTable_Retrofit_WY[[#This Row],[measureRetrofit_Interior_None]],MeasureTable_WY!A:A,\"TRUE\"),\"0\") & \", \" &\nTEXT(COUNTIFS(MeasureTable_WY!G:G,EquipmentTable_Retrofit_WY[[#This Row],[measureRetrofit_Interior_Basic]],MeasureTable_WY!A:A,\"TRUE\"),\"0\") & \", \" &\nTEXT(COUNTIFS(MeasureTable_WY!G:G,EquipmentTable_Retrofit_WY[[#This Row],[measureRetrofit_Interior_Advanced]],MeasureTable_WY!A:A,\"TRUE\"),\"0\") & \", \" &\nTEXT(COUNTIFS(MeasureTable_WY!G:G,EquipmentTable_Retrofit_WY[[#This Row],[measureRetrofit_Exterior_None]],MeasureTable_WY!A:A,\"TRUE\"),\"0\") & \", \" &\nTEXT(COUNTIFS(MeasureTable_WY!G:G,EquipmentTable_Retrofit_WY[[#This Row],[measureRetrofit_Exterior_Advanced]],MeasureTable_WY!A:A,\"TRUE\"),\"0\") & \", \" &\nTEXT(COUNTIFS(MeasureTable_WY!G:G,EquipmentTable_Retrofit_WY[[#This Row],[measureRetrofit_Street_None]],MeasureTable_WY!A:A,\"TRUE\"),\"0\") & \", \" &\nTEXT(COUNTIFS(MeasureTable_WY!G:G,EquipmentTable_Retrofit_WY[[#This Row],[measureRetrofit_Street_Advanced]],MeasureTable_WY!A:A,\"TRUE\"),\"0\") & \", \" &\nTEXT(COUNTIFS(MeasureTable_WY!G:G,EquipmentTable_Retrofit_WY[[#This Row],[measureRetrofit_SBE]],MeasureTable_WY!A:A,\"TRUE\"),\"0\")","v":"0, 0, 0, 0, 0, 0, 0, 0"},null,null,null,"Induction Fixture - New Construction/Major Renovation - WY",{"$f":"COUNTIF(EquipmentTable_Retrofit_WY[[measureRetrofit_Interior_None]:[measureRetrofit_SBE]],U3)","v":0},null,null,"Interior Lighting - Non-General - Custom - Retrofit - WY",{"$f":"COUNTIF(EquipmentTable_Retrofit_WY[[measureRetrofit_Interior_None]:[measureRetrofit_SBE]],Y3)","v":0},"Non General Illuminance Lighting - Retrofit - Custom - WY",{"$f":"COUNTIF(EquipmentTable_Retrofit_WY[[measureRetrofit_Interior_None]:[measureRetrofit_SBE]],AA3)","v":0}]
["Controls Only","Controls Only - Basic",null,null,null,null,null,null,null,null,null,null,null,null,null,null,{"$f":"TEXT(COUNTIFS(MeasureTable_WY!G:G,EquipmentTable_Retrofit_WY[[#This Row],[measureRetrofit_Interior_None]],MeasureTable_WY!A:A,\"TRUE\"),\"0\") & \", \" &\nTEXT(COUNTIFS(MeasureTable_WY!G:G,EquipmentTable_Retrofit_WY[[#This Row],[measureRetrofit_Interior_Basic]],MeasureTable_WY!A:A,\"TRUE\"),\"0\") & \", \" &\nTEXT(COUNTIFS(MeasureTable_WY!G:G,EquipmentTable_Retrofit_WY[[#This Row],[measureRetrofit_Interior_Advanced]],MeasureTable_WY!A:A,\"TRUE\"),\"0\") & \", \" &\nTEXT(COUNTIFS(MeasureTable_WY!G:G,EquipmentTable_Retrofit_WY[[#This Row],[measureRetrofit_Exterior_None]],MeasureTable_WY!A:A,\"TRUE\"),\"0\") & \", \" &\nTEXT(COUNTIFS(MeasureTable_WY!G:G,EquipmentTable_Retrofit_WY[[#This Row],[measureRetrofit_Exterior_Advanced]],MeasureTable_WY!A:A,\"TRUE\"),\"0\") & \", \" &\nTEXT(COUNTIFS(MeasureTable_WY!G:G,EquipmentTable_Retrofit_WY[[#This Row],[measureRetrofit_Street_None]],MeasureTable_WY!A:A,\"TRUE\"),\"0\") & \", \" &\nTEXT(COUNTIFS(MeasureTable_WY!G:G,EquipmentTable_Retrofit_WY[[#This Row],[measureRetrofit_Street_Advanced]],MeasureTable_WY!A:A,\"TRUE\"),\"0\") & \", \" &\nTEXT(COUNTIFS(MeasureTable_WY!G:G,EquipmentTable_Retrofit_WY[[#This Row],[measureRetrofit_SBE]],MeasureTable_WY!A:A,\"TRUE\"),\"0\")","v":"0, 0, 0, 0, 0, 0, 0, 0"},null,null,null,"Exterior Dimming Control - Retrofit - WY",{"$f":"COUNTIF(EquipmentTable_Retrofit_WY[[measureRetrofit_Interior_None]:[measureRetrofit_SBE]],U4)","v":0},null,null,"LED Omnidirectional - A-Lamp - A-19 - < 8 W - Midstream - WY",{"$f":"COUNTIF(EquipmentTable_Retrofit_WY[[measureRetrofit_Interior_None]:[measureRetrofit_SBE]],Y4)","v":0},"LED A-19 Lamp < 8 W, Medium Base - MID - WY",{"$f":"COUNTIF(EquipmentTable_Retrofit_WY[[measureRetrofit_Interior_None]:[measureRetrofit_SBE]],AA4)","v":0}]
["Controls Only","Controls Only - Basic exterior dimming",null,null,null,null,null,null,null,null,null,null,null,null,null,null,{"$f":"TEXT(COUNTIFS(MeasureTable_WY!G:G,EquipmentTable_Retrofit_WY[[#This Row],[measureRetrofit_Interior_None]],MeasureTable_WY!A:A,\"TRUE\"),\"0\") & \", \" &\nTEXT(COUNTIFS(MeasureTable_WY!G:G,EquipmentTable_Retrofit_WY[[#This Row],[measureRetrofit_Interior_Basic]],MeasureTable_WY!A:A,\"TRUE\"),\"0\") & \", \" &\nTEXT(COUNTIFS(MeasureTable_WY!G:G,EquipmentTable_Retrofit_WY[[#This Row],[measureRetrofit_Interior_Advanced]],MeasureTable_WY!A:A,\"TRUE\"),\"0\") & \", \" &\nTEXT(COUNTIFS(MeasureTable_WY!G:G,EquipmentTable_Retrofit_WY[[#This Row],[measureRetrofit_Exterior_None]],MeasureTable_WY!A:A,\"TRUE\"),\"0\") & \", \" &\nTEXT(COUNTIFS(MeasureTable_WY!G:G,EquipmentTable_Retrofit_WY[[#This Row],[measureRetrofit_Exterior_Advanced]],MeasureTable_WY!A:A,\"TRUE\"),\"0\") & \", \" &\nTEXT(COUNTIFS(MeasureTable_WY!G:G,EquipmentTable_Retrofit_WY[[#This Row],[measureRetrofit_Street_None]],MeasureTable_WY!A:A,\"TRUE\"),\"0\") & \", \" &\nTEXT(COUNTIFS(MeasureTable_WY!G:G,EquipmentTable_Retrofit_WY[[#This Row],[measureRetrofit_Street_Advanced]],MeasureTable_WY!A:A,\"TRUE\"),\"0\") & \", \" &\nTEXT(COUNTIFS(MeasureTable_WY!G:G,EquipmentTable_Retrofit_WY[[#This Row],[measureRetrofit_SBE]],MeasureTable_WY!A:A,\"TRUE\"),\"0\")","v":"0, 0, 0, 0, 0, 0, 0, 0"},null,null,null,"Advanced Daylighting Control - Retrofit - WY",{"$f":"COUNTIF(EquipmentTable_Retrofit_WY[[measureRetrofit_Interior_None]:[measureRetrofit_SBE]],U5)","v":0},null,null,"LED Omnidirectional - A-Lamp - A-19 - >= 8 W - Midstream - WY",{"$f":"COUNTIF(EquipmentTable_Retrofit_WY[[measureRetrofit_Interior_None]:[measureRetrofit_SBE]],Y5)","v":0},"LED A-19 Lamp >= 8 W, Medium Base - MID - WY",{"$f":"COUNTIF(EquipmentTable_Retrofit_WY[[measureRetrofit_Interior_None]:[measureRetrofit_SBE]],AA5)","v":0}]
["Controls Only","Controls Only - Control recommissioning",null,null,null,null,null,null,null,null,null,null,null,null,null,null,{"$f":"TEXT(COUNTIFS(MeasureTable_WY!G:G,EquipmentTable_Retrofit_WY[[#This Row],[measureRetrofit_Interior_None]],MeasureTable_WY!A:A,\"TRUE\"),\"0\") & \", \" &\nTEXT(COUNTIFS(MeasureTable_WY!G:G,EquipmentTable_Retrofit_WY[[#This Row],[measureRetrofit_Interior_Basic]],MeasureTable_WY!A:A,\"TRUE\"),\"0\") & \", \" &\nTEXT(COUNTIFS(MeasureTable_WY!G:G,EquipmentTable_Retrofit_WY[[#This Row],[measureRetrofit_Interior_Advanced]],MeasureTable_WY!A:A,\"TRUE\"),\"0\") & \", \" &\nTEXT(COUNTIFS(MeasureTable_WY!G:G,EquipmentTable_Retrofit_WY[[#This Row],[measureRetrofit_Exterior_None]],MeasureTable_WY!A:A,\"TRUE\"),\"0\") & \", \" &\nTEXT(COUNTIFS(MeasureTable_WY!G:G,EquipmentTable_Retrofit_WY[[#This Row],[measureRetrofit_Exterior_Advanced]],MeasureTable_WY!A:A,\"TRUE\"),\"0\") & \", \" &\nTEXT(COUNTIFS(MeasureTable_WY!G:G,EquipmentTable_Retrofit_WY[[#This Row],[measureRetrofit_Street_None]],MeasureTable_WY!A:A,\"TRUE\"),\"0\") & \", \" &\nTEXT(COUNTIFS(MeasureTable_WY!G:G,EquipmentTable_Retrofit_WY[[#This Row],[measureRetrofit_Street_Advanced]],MeasureTable_WY!A:A,\"TRUE\"),\"0\") & \", \" &\nTEXT(COUNTIFS(MeasureTable_WY!G:G,EquipmentTable_Retrofit_WY[[#This Row],[measureRetrofit_SBE]],MeasureTable_WY!A:A,\"TRUE\"),\"0\")","v":"0, 0, 0, 0, 0, 0, 0, 0"},null,null,null,"Daylighing Control - Retrofit - WY",{"$f":"COUNTIF(EquipmentTable_Retrofit_WY[[measureRetrofit_Interior_None]:[measureRetrofit_SBE]],U6)","v":0},null,null,"LED Omnidirectional - A-Lamp - A-21 - >= 12 W - Midstream - WY",{"$f":"COUNTIF(EquipmentTable_Retrofit_WY[[measureRetrofit_Interior_None]:[measureRetrofit_SBE]],Y6)","v":0},"LED A-21 Lamp >= 12 W, Medium Base - MID - WY",{"$f":"COUNTIF(EquipmentTable_Retrofit_WY[[measureRetrofit_Interior_None]:[measureRetrofit_SBE]],AA6)","v":0}]
["Controls Only","Controls Only - Networked",null,null,null,null,null,null,null,null,null,null,null,null,null,null,{"$f":"TEXT(COUNTIFS(MeasureTable_WY!G:G,EquipmentTable_Retrofit_WY[[#This Row],[measureRetrofit_Interior_None]],MeasureTable_WY!A:A,\"TRUE\"),\"0\") & \", \" &\nTEXT(COUNTIFS(MeasureTable_WY!G:G,EquipmentTable_Retrofit_WY[[#This Row],[measureRetrofit_Interior_Basic]],MeasureTable_WY!A:A,\"TRUE\"),\"0\") & \", \" &\nTEXT(COUNTIFS(MeasureTable_WY!G:G,EquipmentTable_Retrofit_WY[[#This Row],[measureRetrofit_Interior_Advanced]],MeasureTable_WY!A:A,\"TRUE\"),\"0\") & \", \" &\nTEXT(COUNTIFS(MeasureTable_WY!G:G,EquipmentTable_Retrofit_WY[[#This Row],[measureRetrofit_Exterior_None]],MeasureTable_WY!A:A,\"TRUE\"),\"0\") & \", \" &\nTEXT(COUNTIFS(MeasureTable_WY!G:G,EquipmentTable_Retrofit_WY[[#This Row],[measureRetrofit_Exterior_Advanced]],MeasureTable_WY!A:A,\"TRUE\"),\"0\") & \", \" &\nTEXT(COUNTIFS(MeasureTable_WY!G:G,EquipmentTable_Retrofit_WY[[#This Row],[measureRetrofit_Street_None]],MeasureTable_WY!A:A,\"TRUE\"),\"0\") & \", \" &\nTEXT(COUNTIFS(MeasureTable_WY!G:G,EquipmentTable_Retrofit_WY[[#This Row],[measureRetrofit_Street_Advanced]],MeasureTable_WY!A:A,\"TRUE\"),\"0\") & \", \" &\nTEXT(COUNTIFS(MeasureTable_WY!G:G,EquipmentTable_Retrofit_WY[[#This Row],[measureRetrofit_SBE]],MeasureTable_WY!A:A,\"TRUE\"),\"0\")","v":"0, 0, 0, 0, 0, 0, 0, 0"},null,null,null,"Occupancy Control - Retrofit - Integral - WY",{"$f":"COUNTIF(EquipmentTable_Retrofit_WY[[measureRetrofit_Interior_None]:[measureRetrofit_SBE]],U7)","v":0},null,null,"LED Directional - Reflector - PAR - Midstream - WY",{"$f":"COUNTIF(EquipmentTable_Retrofit_WY[[measureRetrofit_Interior_None]:[measureRetrofit_SBE]],Y7)","v":0},"LED PAR - Reflector Lamp - MID - WY",{"$f":"COUNTIF(EquipmentTable_Retrofit_WY[[measureRetrofit_Interior_None]:[measureRetrofit_SBE]],AA7)","v":0}]
["Non-General Illumination","CFL - Hardwired Only","separate","Non-eligible fixture - Retrofit - WY","Non-eligible fixture - Retrofit - WY","Non-eligible fixture - Retrofit - WY","Non-eligible fixture - Retrofit - WY","Non-eligible fixture - Retrofit - WY","Non-eligible fixture - Retrofit - WY","Non-eligible fixture - Retrofit - WY","Non-eligible fixture - Retrofit - WY","Non-eligible fixture - Retrofit - WY","Non-eligible fixture - Retrofit - WY","Non-eligible fixture - Retrofit - WY",null,null,{"$f":"TEXT(COUNTIFS(MeasureTable_WY!G:G,EquipmentTable_Retrofit_WY[[#This Row],[measureRetrofit_Interior_None]],MeasureTable_WY!A:A,\"TRUE\"),\"0\") & \", \" &\nTEXT(COUNTIFS(MeasureTable_WY!G:G,EquipmentTable_Retrofit_WY[[#This Row],[measureRetrofit_Interior_Basic]],MeasureTable_WY!A:A,\"TRUE\"),\"0\") & \", \" &\nTEXT(COUNTIFS(MeasureTable_WY!G:G,EquipmentTable_Retrofit_WY[[#This Row],[measureRetrofit_Interior_Advanced]],MeasureTable_WY!A:A,\"TRUE\"),\"0\") & \", \" &\nTEXT(COUNTIFS(MeasureTable_WY!G:G,EquipmentTable_Retrofit_WY[[#This Row],[measureRetrofit_Exterior_None]],MeasureTable_WY!A:A,\"TRUE\"),\"0\") & \", \" &\nTEXT(COUNTIFS(MeasureTable_WY!G:G,EquipmentTable_Retrofit_WY[[#This Row],[measureRetrofit_Exterior_Advanced]],MeasureTable_WY!A:A,\"TRUE\"),\"0\") & \", \" &\nTEXT(COUNTIFS(MeasureTable_WY!G:G,EquipmentTable_Retrofit_WY[[#This Row],[measureRetrofit_Street_None]],MeasureTable_WY!A:A,\"TRUE\"),\"0\") & \", \" &\nTEXT(COUNTIFS(MeasureTable_WY!G:G,EquipmentTable_Retrofit_WY[[#This Row],[measureRetrofit_Street_Advanced]],MeasureTable_WY!A:A,\"TRUE\"),\"0\") & \", \" &\nTEXT(COUNTIFS(MeasureTable_WY!G:G,EquipmentTable_Retrofit_WY[[#This Row],[measureRetrofit_SBE]],MeasureTable_WY!A:A,\"TRUE\"),\"0\")","v":"0, 0, 0, 0, 0, 0, 0, 0"},null,null,null,"T8 Fluorescent Lamp - Retrofit - Relamp - WY",{"$f":"COUNTIF(EquipmentTable_Retrofit_WY[[measureRetrofit_Interior_None]:[measureRetrofit_SBE]],U8)","v":0},null,null,"LED Omnidirectional - Pin-Based - PLC - < 10 W - Midstream - WY",{"$f":"COUNTIF(EquipmentTable_Retrofit_WY[[measureRetrofit_Interior_None]:[measureRetrofit_SBE]],Y8)","v":0},"LED PLC Pin-based Lamp < 10 W - MID - WY",{"$f":"COUNTIF(EquipmentTable_Retrofit_WY[[measureRetrofit_Interior_None]:[measureRetrofit_SBE]],AA8)","v":0}]
["Non-General Illumination","Induction Fixture - New Fixture Only","separate","Non-eligible fixture - Retrofit - WY","Non-eligible fixture - Retrofit - WY","Non-eligible fixture - Retrofit - WY","Non-eligible fixture - Retrofit - WY","Non-eligible fixture - Retrofit - WY","Non-eligible fixture - Retrofit - WY","Non-eligible fixture - Retrofit - WY","Non-eligible fixture - Retrofit - WY","Non-eligible fixture - Retrofit - WY","Non-eligible fixture - Retrofit - WY","Non-eligible fixture - Retrofit - WY",null,null,{"$f":"TEXT(COUNTIFS(MeasureTable_WY!G:G,EquipmentTable_Retrofit_WY[[#This Row],[measureRetrofit_Interior_None]],MeasureTable_WY!A:A,\"TRUE\"),\"0\") & \", \" &\nTEXT(COUNTIFS(MeasureTable_WY!G:G,EquipmentTable_Retrofit_WY[[#This Row],[measureRetrofit_Interior_Basic]],MeasureTable_WY!A:A,\"TRUE\"),\"0\") & \", \" &\nTEXT(COUNTIFS(MeasureTable_WY!G:G,EquipmentTable_Retrofit_WY[[#This Row],[measureRetrofit_Interior_Advanced]],MeasureTable_WY!A:A,\"TRUE\"),\"0\") & \", \" &\nTEXT(COUNTIFS(MeasureTable_WY!G:G,EquipmentTable_Retrofit_WY[[#This Row],[measureRetrofit_Exterior_None]],MeasureTable_WY!A:A,\"TRUE\"),\"0\") & \", \" &\nTEXT(COUNTIFS(MeasureTable_WY!G:G,EquipmentTable_Retrofit_WY[[#This Row],[measureRetrofit_Exterior_Advanced]],MeasureTable_WY!A:A,\"TRUE\"),\"0\") & \", \" &\nTEXT(COUNTIFS(MeasureTable_WY!G:G,EquipmentTable_Retrofit_WY[[#This Row],[measureRetrofit_Street_None]],MeasureTable_WY!A:A,\"TRUE\"),\"0\") & \", \" &\nTEXT(COUNTIFS(MeasureTable_WY!G:G,EquipmentTable_Retrofit_WY[[#This Row],[measureRetrofit_Street_Advanced]],MeasureTable_WY!A:A,\"TRUE\"),\"0\") & \", \" &\nTEXT(COUNTIFS(MeasureTable_WY!G:G,EquipmentTable_Retrofit_WY[[#This Row],[measureRetrofit_SBE]],MeasureTable_WY!A:A,\"TRUE\"),\"0\")","v":"0, 0, 0, 0, 0, 0, 0, 0"},null,null,null,"General Illumination Lighting Control - Retrofit - Custom - WY",{"$f":"COUNTIF(EquipmentTable_Retrofit_WY[[measureRetrofit_Interior_None]:[measureRetrofit_SBE]],U9)","v":0},null,null,"LED Omnidirectional - Pin-Based - PLC - >= 10 W - Midstream - WY",{"$f":"COUNTIF(EquipmentTable_Retrofit_WY[[measureRetrofit_Interior_None]:[measureRetrofit_SBE]],Y9)","v":0},"LED PLC Pin-based Lamp >= 10 W - MID - WY",{"$f":"COUNTIF(EquipmentTable_Retrofit_WY[[measureRetrofit_Interior_None]:[measureRetrofit_SBE]],AA9)","v":0}]
["Non-General Illumination","LED Case Lighting – Open Case","separate","Interior Lighting - Custom - Retrofit - v2 - WY","Interior Lighting - Custom - Retrofit - v2 - WY","Interior Lighting - Custom - Retrofit - v2 - WY","Interior Lighting - Custom - Retrofit - v2 - WY","Interior Lighting - Custom - Retrofit - v2 - WY","Non-eligible fixture - Retrofit - WY","Non-eligible fixture - Retrofit - WY","Non-eligible fixture - Retrofit - WY","Non-eligible fixture - Retrofit - WY","Non-eligible fixture - Retrofit - WY","Non-eligible fixture - Retrofit - WY",null,null,{"$f":"TEXT(COUNTIFS(MeasureTable_WY!G:G,EquipmentTable_Retrofit_WY[[#This Row],[measureRetrofit_Interior_None]],MeasureTable_WY!A:A,\"TRUE\"),\"0\") & \", \" &\nTEXT(COUNTIFS(MeasureTable_WY!G:G,EquipmentTable_Retrofit_WY[[#This Row],[measureRetrofit_Interior_Basic]],MeasureTable_WY!A:A,\"TRUE\"),\"0\") & \", \" &\nTEXT(COUNTIFS(MeasureTable_WY!G:G,EquipmentTable_Retrofit_WY[[#This Row],[measureRetrofit_Interior_Advanced]],MeasureTable_WY!A:A,\"TRUE\"),\"0\") & \", \" &\nTEXT(COUNTIFS(MeasureTable_WY!G:G,EquipmentTable_Retrofit_WY[[#This Row],[measureRetrofit_Exterior_None]],MeasureTable_WY!A:A,\"TRUE\"),\"0\") & \", \" &\nTEXT(COUNTIFS(MeasureTable_WY!G:G,EquipmentTable_Retrofit_WY[[#This Row],[measureRetrofit_Exterior_Advanced]],MeasureTable_WY!A:A,\"TRUE\"),\"0\") & \", \" &\nTEXT(COUNTIFS(MeasureTable_WY!G:G,EquipmentTable_Retrofit_WY[[#This Row],[measureRetrofit_Street_None]],MeasureTable_WY!A:A,\"TRUE\"),\"0\") & \", \" &\nTEXT(COUNTIFS(MeasureTable_WY!G:G,EquipmentTable_Retrofit_WY[[#This Row],[measureRetrofit_Street_Advanced]],MeasureTable_WY!A:A,\"TRUE\"),\"0\") & \", \" &\nTEXT(COUNTIFS(MeasureTable_WY!G:G,EquipmentTable_Retrofit_WY[[#This Row],[measureRetrofit_SBE]],MeasureTable_WY!A:A,\"TRUE\"),\"0\")","v":"0, 0, 0, 0, 0, 0, 0, 0"},null,null,null,"Interior Lighting Retrofits - WY",{"$f":"COUNTIF(EquipmentTable_Retrofit_WY[[measureRetrofit_Interior_None]:[measureRetrofit_SBE]],U10)","v":0},null,null,"LED Omnidirectional - Pin-Based - PLL - Midstream - WY",{"$f":"COUNTIF(EquipmentTable_Retrofit_WY[[measureRetrofit_Interior_None]:[measureRetrofit_SBE]],Y10)","v":0},"LED PLL Pin-based Lamp - MID - WY",{"$f":"COUNTIF(EquipmentTable_Retrofit_WY[[measureRetrofit_Interior_None]:[measureRetrofit_SBE]],AA10)","v":0}]
["Non-General Illumination","LED Case Lighting – Reach-in Case","separate","Interior Lighting - Custom - Retrofit - v2 - WY","Interior Lighting - Custom - Retrofit - v2 - WY","Interior Lighting - Custom - Retrofit - v2 - WY","Interior Lighting - Custom - Retrofit - v2 - WY","Interior Lighting - Custom - Retrofit - v2 - WY","Non-eligible fixture - Retrofit - WY","Non-eligible fixture - Retrofit - WY","Non-eligible fixture - Retrofit - WY","Non-eligible fixture - Retrofit - WY","Non-eligible fixture - Retrofit - WY","Non-eligible fixture - Retrofit - WY",null,null,{"$f":"TEXT(COUNTIFS(MeasureTable_WY!G:G,EquipmentTable_Retrofit_WY[[#This Row],[measureRetrofit_Interior_None]],MeasureTable_WY!A:A,\"TRUE\"),\"0\") & \", \" &\nTEXT(COUNTIFS(MeasureTable_WY!G:G,EquipmentTable_Retrofit_WY[[#This Row],[measureRetrofit_Interior_Basic]],MeasureTable_WY!A:A,\"TRUE\"),\"0\") & \", \" &\nTEXT(COUNTIFS(MeasureTable_WY!G:G,EquipmentTable_Retrofit_WY[[#This Row],[measureRetrofit_Interior_Advanced]],MeasureTable_WY!A:A,\"TRUE\"),\"0\") & \", \" &\nTEXT(COUNTIFS(MeasureTable_WY!G:G,EquipmentTable_Retrofit_WY[[#This Row],[measureRetrofit_Exterior_None]],MeasureTable_WY!A:A,\"TRUE\"),\"0\") & \", \" &\nTEXT(COUNTIFS(MeasureTable_WY!G:G,EquipmentTable_Retrofit_WY[[#This Row],[measureRetrofit_Exterior_Advanced]],MeasureTable_WY!A:A,\"TRUE\"),\"0\") & \", \" &\nTEXT(COUNTIFS(MeasureTable_WY!G:G,EquipmentTable_Retrofit_WY[[#This Row],[measureRetrofit_Street_None]],MeasureTable_WY!A:A,\"TRUE\"),\"0\") & \", \" &\nTEXT(COUNTIFS(MeasureTable_WY!G:G,EquipmentTable_Retrofit_WY[[#This Row],[measureRetrofit_Street_Advanced]],MeasureTable_WY!A:A,\"TRUE\"),\"0\") & \", \" &\nTEXT(COUNTIFS(MeasureTable_WY!G:G,EquipmentTable_Retrofit_WY[[#This Row],[measureRetrofit_SBE]],MeasureTable_WY!A:A,\"TRUE\"),\"0\")","v":"0, 0, 0, 0, 0, 0, 0, 0"},null,null,null,"Exterior Lighting Retrofits - WY",{"$f":"COUNTIF(EquipmentTable_Retrofit_WY[[measureRetrofit_Interior_None]:[measureRetrofit_SBE]],U11)","v":0},null,null,"LED Decorative - Midstream - WY",{"$f":"COUNTIF(EquipmentTable_Retrofit_WY[[measureRetrofit_Interior_None]:[measureRetrofit_SBE]],Y11)","v":0},"LED Decorative Lamp (Candelabra/Globe) - MID - WY",{"$f":"COUNTIF(EquipmentTable_Retrofit_WY[[measureRetrofit_Interior_None]:[measureRetrofit_SBE]],AA11)","v":0}]
["Non-General Illumination","LED Exit Sign","separate","Interior Lighting - Custom - Retrofit - v2 - WY","Interior Lighting - Custom - Retrofit - v2 - WY","Interior Lighting - Custom - Retrofit - v2 - WY","Interior Lighting - Custom - Retrofit - v2 - WY","Interior Lighting - Custom - Retrofit - v2 - WY","Non-eligible fixture - Retrofit - WY","Non-eligible fixture - Retrofit - WY","Non-eligible fixture - Retrofit - WY","Non-eligible fixture - Retrofit - WY","Non-eligible fixture - Retrofit - WY","Non-eligible fixture - Retrofit - WY",null,null,{"$f":"TEXT(COUNTIFS(MeasureTable_WY!G:G,EquipmentTable_Retrofit_WY[[#This Row],[measureRetrofit_Interior_None]],MeasureTable_WY!A:A,\"TRUE\"),\"0\") & \", \" &\nTEXT(COUNTIFS(MeasureTable_WY!G:G,EquipmentTable_Retrofit_WY[[#This Row],[measureRetrofit_Interior_Basic]],MeasureTable_WY!A:A,\"TRUE\"),\"0\") & \", \" &\nTEXT(COUNTIFS(MeasureTable_WY!G:G,EquipmentTable_Retrofit_WY[[#This Row],[measureRetrofit_Interior_Advanced]],MeasureTable_WY!A:A,\"TRUE\"),\"0\") & \", \" &\nTEXT(COUNTIFS(MeasureTable_WY!G:G,EquipmentTable_Retrofit_WY[[#This Row],[measureRetrofit_Exterior_None]],MeasureTable_WY!A:A,\"TRUE\"),\"0\") & \", \" &\nTEXT(COUNTIFS(MeasureTable_WY!G:G,EquipmentTable_Retrofit_WY[[#This Row],[measureRetrofit_Exterior_Advanced]],MeasureTable_WY!A:A,\"TRUE\"),\"0\") & \", \" &\nTEXT(COUNTIFS(MeasureTable_WY!G:G,EquipmentTable_Retrofit_WY[[#This Row],[measureRetrofit_Street_None]],MeasureTable_WY!A:A,\"TRUE\"),\"0\") & \", \" &\nTEXT(COUNTIFS(MeasureTable_WY!G:G,EquipmentTable_Retrofit_WY[[#This Row],[measureRetrofit_Street_Advanced]],MeasureTable_WY!A:A,\"TRUE\"),\"0\") & \", \" &\nTEXT(COUNTIFS(MeasureTable_WY!G:G,EquipmentTable_Retrofit_WY[[#This Row],[measureRetrofit_SBE]],MeasureTable_WY!A:A,\"TRUE\"),\"0\")","v":"0, 0, 0, 0, 0, 0, 0, 0"},null,null,null,"Street/Pole - WY",{"$f":"COUNTIF(EquipmentTable_Retrofit_WY[[measureRetrofit_Interior_None]:[measureRetrofit_SBE]],U12)","v":0},null,null,"LED Kit - Recessed Downlight - Midstream - WY",{"$f":"COUNTIF(EquipmentTable_Retrofit_WY[[measureRetrofit_Interior_None]:[measureRetrofit_SBE]],Y12)","v":0},"LED Recessed Downlight Kit - MID - WY",{"$f":"COUNTIF(EquipmentTable_Retrofit_WY[[measureRetrofit_Interior_None]:[measureRetrofit_SBE]],AA12)","v":0}]
["Non-General Illumination","LED Sign - Channel Letter","separate","Interior Lighting - Custom - Retrofit - v2 - WY","Interior Lighting - Custom - Retrofit - v2 - WY","Interior Lighting - Custom - Retrofit - v2 - WY","Interior Lighting - Custom - Retrofit - v2 - WY","Interior Lighting - Custom - Retrofit - v2 - WY","Interior Lighting - Custom - Retrofit - v2 - WY","Interior Lighting - Custom - Retrofit - v2 - WY","Interior Lighting - Custom - Retrofit - v2 - WY","Non-eligible fixture - Retrofit - WY","Non-eligible fixture - Retrofit - WY","Non-eligible fixture - Retrofit - WY",null,null,{"$f":"TEXT(COUNTIFS(MeasureTable_WY!G:G,EquipmentTable_Retrofit_WY[[#This Row],[measureRetrofit_Interior_None]],MeasureTable_WY!A:A,\"TRUE\"),\"0\") & \", \" &\nTEXT(COUNTIFS(MeasureTable_WY!G:G,EquipmentTable_Retrofit_WY[[#This Row],[measureRetrofit_Interior_Basic]],MeasureTable_WY!A:A,\"TRUE\"),\"0\") & \", \" &\nTEXT(COUNTIFS(MeasureTable_WY!G:G,EquipmentTable_Retrofit_WY[[#This Row],[measureRetrofit_Interior_Advanced]],MeasureTable_WY!A:A,\"TRUE\"),\"0\") & \", \" &\nTEXT(COUNTIFS(MeasureTable_WY!G:G,EquipmentTable_Retrofit_WY[[#This Row],[measureRetrofit_Exterior_None]],MeasureTable_WY!A:A,\"TRUE\"),\"0\") & \", \" &\nTEXT(COUNTIFS(MeasureTable_WY!G:G,EquipmentTable_Retrofit_WY[[#This Row],[measureRetrofit_Exterior_Advanced]],MeasureTable_WY!A:A,\"TRUE\"),\"0\") & \", \" &\nTEXT(COUNTIFS(MeasureTable_WY!G:G,EquipmentTable_Retrofit_WY[[#This Row],[measureRetrofit_Street_None]],MeasureTable_WY!A:A,\"TRUE\"),\"0\") & \", \" &\nTEXT(COUNTIFS(MeasureTable_WY!G:G,EquipmentTable_Retrofit_WY[[#This Row],[measureRetrofit_Street_Advanced]],MeasureTable_WY!A:A,\"TRUE\"),\"0\") & \", \" &\nTEXT(COUNTIFS(MeasureTable_WY!G:G,EquipmentTable_Retrofit_WY[[#This Row],[measureRetrofit_SBE]],MeasureTable_WY!A:A,\"TRUE\"),\"0\")","v":"0, 0, 0, 0, 0, 0, 0, 0"},null,null,null,"CFL Wall Pack - New Construction/Major Renovation - WY",{"$f":"COUNTIF(EquipmentTable_Retrofit_WY[[measureRetrofit_Interior_None]:[measureRetrofit_SBE]],U13)","v":0},null,null,"LED Linear Lamp - TLED T5 - Type A/B Dual Mode - Midstream - WY",{"$f":"COUNTIF(EquipmentTable_Retrofit_WY[[measureRetrofit_Interior_None]:[measureRetrofit_SBE]],Y13)","v":0},"T5 TLED Lamp - Type A, A/B Dual Mode - MID - WY",{"$f":"COUNTIF(EquipmentTable_Retrofit_WY[[measureRetrofit_Interior_None]:[measureRetrofit_SBE]],AA13)","v":0}]
["Non-General Illumination","LED Sign - Marquee/Cabinet","separate","Interior Lighting - Custom - Retrofit - v2 - WY","Interior Lighting - Custom - Retrofit - v2 - WY","Interior Lighting - Custom - Retrofit - v2 - WY","Interior Lighting - Custom - Retrofit - v2 - WY","Interior Lighting - Custom - Retrofit - v2 - WY","Interior Lighting - Custom - Retrofit - v2 - WY","Interior Lighting - Custom - Retrofit - v2 - WY","Interior Lighting - Custom - Retrofit - v2 - WY","Non-eligible fixture - Retrofit - WY","Non-eligible fixture - Retrofit - WY","Non-eligible fixture - Retrofit - WY",null,null,{"$f":"TEXT(COUNTIFS(MeasureTable_WY!G:G,EquipmentTable_Retrofit_WY[[#This Row],[measureRetrofit_Interior_None]],MeasureTable_WY!A:A,\"TRUE\"),\"0\") & \", \" &\nTEXT(COUNTIFS(MeasureTable_WY!G:G,EquipmentTable_Retrofit_WY[[#This Row],[measureRetrofit_Interior_Basic]],MeasureTable_WY!A:A,\"TRUE\"),\"0\") & \", \" &\nTEXT(COUNTIFS(MeasureTable_WY!G:G,EquipmentTable_Retrofit_WY[[#This Row],[measureRetrofit_Interior_Advanced]],MeasureTable_WY!A:A,\"TRUE\"),\"0\") & \", \" &\nTEXT(COUNTIFS(MeasureTable_WY!G:G,EquipmentTable_Retrofit_WY[[#This Row],[measureRetrofit_Exterior_None]],MeasureTable_WY!A:A,\"TRUE\"),\"0\") & \", \" &\nTEXT(COUNTIFS(MeasureTable_WY!G:G,EquipmentTable_Retrofit_WY[[#This Row],[measureRetrofit_Exterior_Advanced]],MeasureTable_WY!A:A,\"TRUE\"),\"0\") & \", \" &\nTEXT(COUNTIFS(MeasureTable_WY!G:G,EquipmentTable_Retrofit_WY[[#This Row],[measureRetrofit_Street_None]],MeasureTable_WY!A:A,\"TRUE\"),\"0\") & \", \" &\nTEXT(COUNTIFS(MeasureTable_WY!G:G,EquipmentTable_Retrofit_WY[[#This Row],[measureRetrofit_Street_Advanced]],MeasureTable_WY!A:A,\"TRUE\"),\"0\") & \", \" &\nTEXT(COUNTIFS(MeasureTable_WY!G:G,EquipmentTable_Retrofit_WY[[#This Row],[measureRetrofit_SBE]],MeasureTable_WY!A:A,\"TRUE\"),\"0\")","v":"0, 0, 0, 0, 0, 0, 0, 0"},null,null,null,"LED Wall Pack Fixture < 50 W with Occupancy Sensor - MID - WY",{"$f":"COUNTIF(EquipmentTable_Retrofit_WY[[measureRetrofit_Interior_None]:[measureRetrofit_SBE]],U14)","v":0},null,null,"LED Linear Lamp - TLED T8 - Type A/B Dual Mode - Midstream - WY",{"$f":"COUNTIF(EquipmentTable_Retrofit_WY[[measureRetrofit_Interior_None]:[measureRetrofit_SBE]],Y14)","v":0},"T8 TLED Lamp - Type A, A/B Dual Mode - MID - WY",{"$f":"COUNTIF(EquipmentTable_Retrofit_WY[[measureRetrofit_Interior_None]:[measureRetrofit_SBE]],AA14)","v":0}]
["Non-General Illumination","LED Sign - Message Center","separate","Non-eligible fixture - Retrofit - WY","Non-eligible fixture - Retrofit - WY","Non-eligible fixture - Retrofit - WY","Non-eligible fixture - Retrofit - WY","Non-eligible fixture - Retrofit - WY","Non-eligible fixture - Retrofit - WY","Non-eligible fixture - Retrofit - WY","Non-eligible fixture - Retrofit - WY","Non-eligible fixture - Retrofit - WY","Non-eligible fixture - Retrofit - WY","Non-eligible fixture - Retrofit - WY",null,null,{"$f":"TEXT(COUNTIFS(MeasureTable_WY!G:G,EquipmentTable_Retrofit_WY[[#This Row],[measureRetrofit_Interior_None]],MeasureTable_WY!A:A,\"TRUE\"),\"0\") & \", \" &\nTEXT(COUNTIFS(MeasureTable_WY!G:G,EquipmentTable_Retrofit_WY[[#This Row],[measureRetrofit_Interior_Basic]],MeasureTable_WY!A:A,\"TRUE\"),\"0\") & \", \" &\nTEXT(COUNTIFS(MeasureTable_WY!G:G,EquipmentTable_Retrofit_WY[[#This Row],[measureRetrofit_Interior_Advanced]],MeasureTable_WY!A:A,\"TRUE\"),\"0\") & \", \" &\nTEXT(COUNTIFS(MeasureTable_WY!G:G,EquipmentTable_Retrofit_WY[[#This Row],[measureRetrofit_Exterior_None]],MeasureTable_WY!A:A,\"TRUE\"),\"0\") & \", \" &\nTEXT(COUNTIFS(MeasureTable_WY!G:G,EquipmentTable_Retrofit_WY[[#This Row],[measureRetrofit_Exterior_Advanced]],MeasureTable_WY!A:A,\"TRUE\"),\"0\") & \", \" &\nTEXT(COUNTIFS(MeasureTable_WY!G:G,EquipmentTable_Retrofit_WY[[#This Row],[measureRetrofit_Street_None]],MeasureTable_WY!A:A,\"TRUE\"),\"0\") & \", \" &\nTEXT(COUNTIFS(MeasureTable_WY!G:G,EquipmentTable_Retrofit_WY[[#This Row],[measureRetrofit_Street_Advanced]],MeasureTable_WY!A:A,\"TRUE\"),\"0\") & \", \" &\nTEXT(COUNTIFS(MeasureTable_WY!G:G,EquipmentTable_Retrofit_WY[[#This Row],[measureRetrofit_SBE]],MeasureTable_WY!A:A,\"TRUE\"),\"0\")","v":"0, 0, 0, 0, 0, 0, 0, 0"},null,null,null,"LED Wall Pack Fixture < 50 W with Occupancy Sensor - Retrofit - WY",{"$f":"COUNTIF(EquipmentTable_Retrofit_WY[[measureRetrofit_Interior_None]:[measureRetrofit_SBE]],U15)","v":0},null,null,"LED Linear Lamp - TLED - Type B - Midstream - WY",{"$f":"COUNTIF(EquipmentTable_Retrofit_WY[[measureRetrofit_Interior_None]:[measureRetrofit_SBE]],Y15)","v":0},"T8 TLED Lamp - Type B - MID - WY",{"$f":"COUNTIF(EquipmentTable_Retrofit_WY[[measureRetrofit_Interior_None]:[measureRetrofit_SBE]],AA15)","v":0}]
["New Fixture","LED Fixture - Bollard",null,"Interior Fixture Replacement - w/out Controls - Retrofit - v2 - WY","Interior Fixture Replacement - w/ Basic Controls - Retrofit - v2 - WY","Interior Fixture Replacement - w/ Networked Lighting Controls - Retrofit - WY","Interior Fixture Replacement - w/ Advanced Networked Lighting Controls/LLLCs - Retrofit - v4 - WY","Interior Fixture Replacement - w/ Plug and Play Control Ready - Retrofit - WY","Exterior Fixture Replacement - w/ No Controls - Retrofit - WY","Exterior Fixture Replacement - w/Basic Dimming - Retrofit - WY","Exterior Fixture Replacement - w/Advanced Networked Dimming - Retrofit - WY","Streetlighting - Retrofit - v2 - WY","Streetlighting - Retrofit - v2 - WY","Streetlighting - w/ Advanced Dimming Controls - Retrofit - v2 - WY",null,null,{"$f":"TEXT(COUNTIFS(MeasureTable_WY!G:G,EquipmentTable_Retrofit_WY[[#This Row],[measureRetrofit_Interior_None]],MeasureTable_WY!A:A,\"TRUE\"),\"0\") & \", \" &\nTEXT(COUNTIFS(MeasureTable_WY!G:G,EquipmentTable_Retrofit_WY[[#This Row],[measureRetrofit_Interior_Basic]],MeasureTable_WY!A:A,\"TRUE\"),\"0\") & \", \" &\nTEXT(COUNTIFS(MeasureTable_WY!G:G,EquipmentTable_Retrofit_WY[[#This Row],[measureRetrofit_Interior_Advanced]],MeasureTable_WY!A:A,\"TRUE\"),\"0\") & \", \" &\nTEXT(COUNTIFS(MeasureTable_WY!G:G,EquipmentTable_Retrofit_WY[[#This Row],[measureRetrofit_Exterior_None]],MeasureTable_WY!A:A,\"TRUE\"),\"0\") & \", \" &\nTEXT(COUNTIFS(MeasureTable_WY!G:G,EquipmentTable_Retrofit_WY[[#This Row],[measureRetrofit_Exterior_Advanced]],MeasureTable_WY!A:A,\"TRUE\"),\"0\") & \", \" &\nTEXT(COUNTIFS(MeasureTable_WY!G:G,EquipmentTable_Retrofit_WY[[#This Row],[measureRetrofit_Street_None]],MeasureTable_WY!A:A,\"TRUE\"),\"0\") & \", \" &\nTEXT(COUNTIFS(MeasureTable_WY!G:G,EquipmentTable_Retrofit_WY[[#This Row],[measureRetrofit_Street_Advanced]],MeasureTable_WY!A:A,\"TRUE\"),\"0\") & \", \" &\nTEXT(COUNTIFS(MeasureTable_WY!G:G,EquipmentTable_Retrofit_WY[[#This Row],[measureRetrofit_SBE]],MeasureTable_WY!A:A,\"TRUE\"),\"0\")","v":"0, 0, 0, 0, 0, 0, 0, 0"},null,null,null,"LED Wall Pack Fixture >= 50 W with Occupancy Sensor - MID - WY",{"$f":"COUNTIF(EquipmentTable_Retrofit_WY[[measureRetrofit_Interior_None]:[measureRetrofit_SBE]],U16)","v":0},null,null,"LED Linear Lamp - TLED - Type C - Midstream - WY",{"$f":"COUNTIF(EquipmentTable_Retrofit_WY[[measureRetrofit_Interior_None]:[measureRetrofit_SBE]],Y16)","v":0},"T8 TLED Lamp - Type C - MID - WY",{"$f":"COUNTIF(EquipmentTable_Retrofit_WY[[measureRetrofit_Interior_None]:[measureRetrofit_SBE]],AA16)","v":0}]
["New Fixture","LED Fixture - Direct/Indirect",null,"Interior Fixture Replacement - w/out Controls - Retrofit - v2 - WY","Interior Fixture Replacement - w/ Basic Controls - Retrofit - v2 - WY","Interior Fixture Replacement - w/ Networked Lighting Controls - Retrofit - WY","Interior Fixture Replacement - w/ Advanced Networked Lighting Controls/LLLCs - Retrofit - v4 - WY","Interior Fixture Replacement - w/ Plug and Play Control Ready - Retrofit - WY","Exterior Fixture Replacement - w/ No Controls - Retrofit - WY","Exterior Fixture Replacement - w/Basic Dimming - Retrofit - WY","Exterior Fixture Replacement - w/Advanced Networked Dimming - Retrofit - WY","Streetlighting - Retrofit - v2 - WY","Streetlighting - Retrofit - v2 - WY","Streetlighting - w/ Advanced Dimming Controls - Retrofit - v2 - WY",null,null,{"$f":"TEXT(COUNTIFS(MeasureTable_WY!G:G,EquipmentTable_Retrofit_WY[[#This Row],[measureRetrofit_Interior_None]],MeasureTable_WY!A:A,\"TRUE\"),\"0\") & \", \" &\nTEXT(COUNTIFS(MeasureTable_WY!G:G,EquipmentTable_Retrofit_WY[[#This Row],[measureRetrofit_Interior_Basic]],MeasureTable_WY!A:A,\"TRUE\"),\"0\") & \", \" &\nTEXT(COUNTIFS(MeasureTable_WY!G:G,EquipmentTable_Retrofit_WY[[#This Row],[measureRetrofit_Interior_Advanced]],MeasureTable_WY!A:A,\"TRUE\"),\"0\") & \", \" &\nTEXT(COUNTIFS(MeasureTable_WY!G:G,EquipmentTable_Retrofit_WY[[#This Row],[measureRetrofit_Exterior_None]],MeasureTable_WY!A:A,\"TRUE\"),\"0\") & \", \" &\nTEXT(COUNTIFS(MeasureTable_WY!G:G,EquipmentTable_Retrofit_WY[[#This Row],[measureRetrofit_Exterior_Advanced]],MeasureTable_WY!A:A,\"TRUE\"),\"0\") & \", \" &\nTEXT(COUNTIFS(MeasureTable_WY!G:G,EquipmentTable_Retrofit_WY[[#This Row],[measureRetrofit_Street_None]],MeasureTable_WY!A:A,\"TRUE\"),\"0\") & \", \" &\nTEXT(COUNTIFS(MeasureTable_WY!G:G,EquipmentTable_Retrofit_WY[[#This Row],[measureRetrofit_Street_Advanced]],MeasureTable_WY!A:A,\"TRUE\"),\"0\") & \", \" &\nTEXT(COUNTIFS(MeasureTable_WY!G:G,EquipmentTable_Retrofit_WY[[#This Row],[measureRetrofit_SBE]],MeasureTable_WY!A:A,\"TRUE\"),\"0\")","v":"0, 0, 0, 0, 0, 0, 0, 0"},null,null,null,"LED Wall Pack Fixture >= 50 W with Occupancy Sensor - Retrofit - WY",{"$f":"COUNTIF(EquipmentTable_Retrofit_WY[[measureRetrofit_Interior_None]:[measureRetrofit_SBE]],U17)","v":0},null,null,"LED Exterior Fixture - Wall Pack - > 20 W and < 75 W - Midstream - WY",{"$f":"COUNTIF(EquipmentTable_Retrofit_WY[[measureRetrofit_Interior_None]:[measureRetrofit_SBE]],Y17)","v":0},"LED Wall Pack Fixture < 50 W - MID - WY",{"$f":"COUNTIF(EquipmentTable_Retrofit_WY[[measureRetrofit_Interior_None]:[measureRetrofit_SBE]],AA17)","v":0}]
["New Fixture","LED Fixture - Downlight",null,"Non-eligible fixture - Retrofit - WY","Non-eligible fixture - Retrofit - WY","Non-eligible fixture - Retrofit - WY","Non-eligible fixture - Retrofit - WY","Non-eligible fixture - Retrofit - WY","Non-eligible fixture - Retrofit - WY",null,"Non-eligible fixture - Retrofit - WY","Non-eligible fixture - Retrofit - WY",null,"Non-eligible fixture - Retrofit - WY",null,null,{"$f":"TEXT(COUNTIFS(MeasureTable_WY!G:G,EquipmentTable_Retrofit_WY[[#This Row],[measureRetrofit_Interior_None]],MeasureTable_WY!A:A,\"TRUE\"),\"0\") & \", \" &\nTEXT(COUNTIFS(MeasureTable_WY!G:G,EquipmentTable_Retrofit_WY[[#This Row],[measureRetrofit_Interior_Basic]],MeasureTable_WY!A:A,\"TRUE\"),\"0\") & \", \" &\nTEXT(COUNTIFS(MeasureTable_WY!G:G,EquipmentTable_Retrofit_WY[[#This Row],[measureRetrofit_Interior_Advanced]],MeasureTable_WY!A:A,\"TRUE\"),\"0\") & \", \" &\nTEXT(COUNTIFS(MeasureTable_WY!G:G,EquipmentTable_Retrofit_WY[[#This Row],[measureRetrofit_Exterior_None]],MeasureTable_WY!A:A,\"TRUE\"),\"0\") & \", \" &\nTEXT(COUNTIFS(MeasureTable_WY!G:G,EquipmentTable_Retrofit_WY[[#This Row],[measureRetrofit_Exterior_Advanced]],MeasureTable_WY!A:A,\"TRUE\"),\"0\") & \", \" &\nTEXT(COUNTIFS(MeasureTable_WY!G:G,EquipmentTable_Retrofit_WY[[#This Row],[measureRetrofit_Street_None]],MeasureTable_WY!A:A,\"TRUE\"),\"0\") & \", \" &\nTEXT(COUNTIFS(MeasureTable_WY!G:G,EquipmentTable_Retrofit_WY[[#This Row],[measureRetrofit_Street_Advanced]],MeasureTable_WY!A:A,\"TRUE\"),\"0\") & \", \" &\nTEXT(COUNTIFS(MeasureTable_WY!G:G,EquipmentTable_Retrofit_WY[[#This Row],[measureRetrofit_SBE]],MeasureTable_WY!A:A,\"TRUE\"),\"0\")","v":"0, 0, 0, 0, 0, 0, 0, 0"},null,null,null,"T5 HO Fluorescent Lamp - MID - Reduced Wattage - WY",{"$f":"COUNTIF(EquipmentTable_Retrofit_WY[[measureRetrofit_Interior_None]:[measureRetrofit_SBE]],U18)","v":0},null,null,"LED Exterior Fixture - Wall Pack - >= 75 W - Midstream - WY",{"$f":"COUNTIF(EquipmentTable_Retrofit_WY[[measureRetrofit_Interior_None]:[measureRetrofit_SBE]],Y18)","v":0},"LED Wall Pack Fixture >= 50 W - MID - WY",{"$f":"COUNTIF(EquipmentTable_Retrofit_WY[[measureRetrofit_Interior_None]:[measureRetrofit_SBE]],AA18)","v":0}]
["New Fixture","LED Fixture - Flood",null,"Interior Fixture Replacement - w/out Controls - Retrofit - v2 - WY","Interior Fixture Replacement - w/ Basic Controls - Retrofit - v2 - WY","Interior Fixture Replacement - w/ Networked Lighting Controls - Retrofit - WY","Interior Fixture Replacement - w/ Advanced Networked Lighting Controls/LLLCs - Retrofit - v4 - WY","Interior Fixture Replacement - w/ Plug and Play Control Ready - Retrofit - WY","Exterior Fixture Replacement - w/ No Controls - Retrofit - WY","Exterior Fixture Replacement - w/Basic Dimming - Retrofit - WY","Exterior Fixture Replacement - w/Advanced Networked Dimming - Retrofit - WY","Streetlighting - Retrofit - v2 - WY","Streetlighting - Retrofit - v2 - WY","Streetlighting - w/ Advanced Dimming Controls - Retrofit - v2 - WY",null,null,{"$f":"TEXT(COUNTIFS(MeasureTable_WY!G:G,EquipmentTable_Retrofit_WY[[#This Row],[measureRetrofit_Interior_None]],MeasureTable_WY!A:A,\"TRUE\"),\"0\") & \", \" &\nTEXT(COUNTIFS(MeasureTable_WY!G:G,EquipmentTable_Retrofit_WY[[#This Row],[measureRetrofit_Interior_Basic]],MeasureTable_WY!A:A,\"TRUE\"),\"0\") & \", \" &\nTEXT(COUNTIFS(MeasureTable_WY!G:G,EquipmentTable_Retrofit_WY[[#This Row],[measureRetrofit_Interior_Advanced]],MeasureTable_WY!A:A,\"TRUE\"),\"0\") & \", \" &\nTEXT(COUNTIFS(MeasureTable_WY!G:G,EquipmentTable_Retrofit_WY[[#This Row],[measureRetrofit_Exterior_None]],MeasureTable_WY!A:A,\"TRUE\"),\"0\") & \", \" &\nTEXT(COUNTIFS(MeasureTable_WY!G:G,EquipmentTable_Retrofit_WY[[#This Row],[measureRetrofit_Exterior_Advanced]],MeasureTable_WY!A:A,\"TRUE\"),\"0\") & \", \" &\nTEXT(COUNTIFS(MeasureTable_WY!G:G,EquipmentTable_Retrofit_WY[[#This Row],[measureRetrofit_Street_None]],MeasureTable_WY!A:A,\"TRUE\"),\"0\") & \", \" &\nTEXT(COUNTIFS(MeasureTable_WY!G:G,EquipmentTable_Retrofit_WY[[#This Row],[measureRetrofit_Street_Advanced]],MeasureTable_WY!A:A,\"TRUE\"),\"0\") & \", \" &\nTEXT(COUNTIFS(MeasureTable_WY!G:G,EquipmentTable_Retrofit_WY[[#This Row],[measureRetrofit_SBE]],MeasureTable_WY!A:A,\"TRUE\"),\"0\")","v":"0, 0, 0, 0, 0, 0, 0, 0"},null,null,null,"T5 HO Fluorescent Lamp - Retrofit - Reduced Wattage - WY",{"$f":"COUNTIF(EquipmentTable_Retrofit_WY[[measureRetrofit_Interior_None]:[measureRetrofit_SBE]],U19)","v":0},null,null,"HID High/Low Bay - HID Replacement Lamp - < 40 W - Midstream - WY",{"$f":"COUNTIF(EquipmentTable_Retrofit_WY[[measureRetrofit_Interior_None]:[measureRetrofit_SBE]],Y19)","v":0},"LED HID Replacement Lamp < 40 W - MID - WY",{"$f":"COUNTIF(EquipmentTable_Retrofit_WY[[measureRetrofit_Interior_None]:[measureRetrofit_SBE]],AA19)","v":0}]
["New Fixture","LED Fixture - High/Low Bay",null,"Interior Fixture Replacement - w/out Controls - Retrofit - v2 - WY","Interior Fixture Replacement - w/ Basic Controls - Retrofit - v2 - WY","Interior Fixture Replacement - w/ Networked Lighting Controls - Retrofit - WY","Interior Fixture Replacement - w/ Advanced Networked Lighting Controls/LLLCs - Retrofit - v4 - WY","Interior Fixture Replacement - w/ Plug and Play Control Ready - Retrofit - WY","Exterior Fixture Replacement - w/ No Controls - Retrofit - WY","Exterior Fixture Replacement - w/Basic Dimming - Retrofit - WY","Exterior Fixture Replacement - w/Advanced Networked Dimming - Retrofit - WY","Streetlighting - Retrofit - v2 - WY","Streetlighting - Retrofit - v2 - WY","Streetlighting - w/ Advanced Dimming Controls - Retrofit - v2 - WY",null,null,{"$f":"TEXT(COUNTIFS(MeasureTable_WY!G:G,EquipmentTable_Retrofit_WY[[#This Row],[measureRetrofit_Interior_None]],MeasureTable_WY!A:A,\"TRUE\"),\"0\") & \", \" &\nTEXT(COUNTIFS(MeasureTable_WY!G:G,EquipmentTable_Retrofit_WY[[#This Row],[measureRetrofit_Interior_Basic]],MeasureTable_WY!A:A,\"TRUE\"),\"0\") & \", \" &\nTEXT(COUNTIFS(MeasureTable_WY!G:G,EquipmentTable_Retrofit_WY[[#This Row],[measureRetrofit_Interior_Advanced]],MeasureTable_WY!A:A,\"TRUE\"),\"0\") & \", \" &\nTEXT(COUNTIFS(MeasureTable_WY!G:G,EquipmentTable_Retrofit_WY[[#This Row],[measureRetrofit_Exterior_None]],MeasureTable_WY!A:A,\"TRUE\"),\"0\") & \", \" &\nTEXT(COUNTIFS(MeasureTable_WY!G:G,EquipmentTable_Retrofit_WY[[#This Row],[measureRetrofit_Exterior_Advanced]],MeasureTable_WY!A:A,\"TRUE\"),\"0\") & \", \" &\nTEXT(COUNTIFS(MeasureTable_WY!G:G,EquipmentTable_Retrofit_WY[[#This Row],[measureRetrofit_Street_None]],MeasureTable_WY!A:A,\"TRUE\"),\"0\") & \", \" &\nTEXT(COUNTIFS(MeasureTable_WY!G:G,EquipmentTable_Retrofit_WY[[#This Row],[measureRetrofit_Street_Advanced]],MeasureTable_WY!A:A,\"TRUE\"),\"0\") & \", \" &\nTEXT(COUNTIFS(MeasureTable_WY!G:G,EquipmentTable_Retrofit_WY[[#This Row],[measureRetrofit_SBE]],MeasureTable_WY!A:A,\"TRUE\"),\"0\")","v":"0, 0, 0, 0, 0, 0, 0, 0"},null,null,null,"T8 Fluorescent Lamp - MID - Reduced Wattage - WY",{"$f":"COUNTIF(EquipmentTable_Retrofit_WY[[measureRetrofit_Interior_None]:[measureRetrofit_SBE]],U20)","v":0},null,null,"HID High/Low Bay - HID Replacement Lamp - >= 40 W and < 80 W - Midstream - WY",{"$f":"COUNTIF(EquipmentTable_Retrofit_WY[[measureRetrofit_Interior_None]:[measureRetrofit_SBE]],Y20)","v":0},"LED HID Replacement Lamp >= 40 and < 80 W - MID - WY",{"$f":"COUNTIF(EquipmentTable_Retrofit_WY[[measureRetrofit_Interior_None]:[measureRetrofit_SBE]],AA20)","v":0}]
["New Fixture","LED Fixture - Integral Track Head",null,"Interior Fixture Replacement - w/out Controls - Retrofit - v2 - WY","Interior Fixture Replacement - w/ Basic Controls - Retrofit - v2 - WY","Interior Fixture Replacement - w/ Networked Lighting Controls - Retrofit - WY","Interior Fixture Replacement - w/ Advanced Networked Lighting Controls/LLLCs - Retrofit - v4 - WY","Interior Fixture Replacement - w/ Plug and Play Control Ready - Retrofit - WY","Exterior Fixture Replacement - w/ No Controls - Retrofit - WY","Exterior Fixture Replacement - w/Basic Dimming - Retrofit - WY","Exterior Fixture Replacement - w/Advanced Networked Dimming - Retrofit - WY","Streetlighting - Retrofit - v2 - WY","Streetlighting - Retrofit - v2 - WY","Streetlighting - w/ Advanced Dimming Controls - Retrofit - v2 - WY",null,null,{"$f":"TEXT(COUNTIFS(MeasureTable_WY!G:G,EquipmentTable_Retrofit_WY[[#This Row],[measureRetrofit_Interior_None]],MeasureTable_WY!A:A,\"TRUE\"),\"0\") & \", \" &\nTEXT(COUNTIFS(MeasureTable_WY!G:G,EquipmentTable_Retrofit_WY[[#This Row],[measureRetrofit_Interior_Basic]],MeasureTable_WY!A:A,\"TRUE\"),\"0\") & \", \" &\nTEXT(COUNTIFS(MeasureTable_WY!G:G,EquipmentTable_Retrofit_WY[[#This Row],[measureRetrofit_Interior_Advanced]],MeasureTable_WY!A:A,\"TRUE\"),\"0\") & \", \" &\nTEXT(COUNTIFS(MeasureTable_WY!G:G,EquipmentTable_Retrofit_WY[[#This Row],[measureRetrofit_Exterior_None]],MeasureTable_WY!A:A,\"TRUE\"),\"0\") & \", \" &\nTEXT(COUNTIFS(MeasureTable_WY!G:G,EquipmentTable_Retrofit_WY[[#This Row],[measureRetrofit_Exterior_Advanced]],MeasureTable_WY!A:A,\"TRUE\"),\"0\") & \", \" &\nTEXT(COUNTIFS(MeasureTable_WY!G:G,EquipmentTable_Retrofit_WY[[#This Row],[measureRetrofit_Street_None]],MeasureTable_WY!A:A,\"TRUE\"),\"0\") & \", \" &\nTEXT(COUNTIFS(MeasureTable_WY!G:G,EquipmentTable_Retrofit_WY[[#This Row],[measureRetrofit_Street_Advanced]],MeasureTable_WY!A:A,\"TRUE\"),\"0\") & \", \" &\nTEXT(COUNTIFS(MeasureTable_WY!G:G,EquipmentTable_Retrofit_WY[[#This Row],[measureRetrofit_SBE]],MeasureTable_WY!A:A,\"TRUE\"),\"0\")","v":"0, 0, 0, 0, 0, 0, 0, 0"},null,null,null,"T8 Fluorescent Lamp - Retrofit - Reduced Wattage - WY",{"$f":"COUNTIF(EquipmentTable_Retrofit_WY[[measureRetrofit_Interior_None]:[measureRetrofit_SBE]],U21)","v":0},null,null,"HID High/Low Bay - HID Replacement Lamp - >= 80 W and < 150 W - Midstream - WY",{"$f":"COUNTIF(EquipmentTable_Retrofit_WY[[measureRetrofit_Interior_None]:[measureRetrofit_SBE]],Y21)","v":0},"LED HID Replacement Lamp >= 80 and < 150 W - MID - WY",{"$f":"COUNTIF(EquipmentTable_Retrofit_WY[[measureRetrofit_Interior_None]:[measureRetrofit_SBE]],AA21)","v":0}]
["New Fixture","LED Fixture - Parking/Canopy",null,"Interior Fixture Replacement - w/out Controls - Retrofit - v2 - WY","Interior Fixture Replacement - w/ Basic Controls - Retrofit - v2 - WY","Interior Fixture Replacement - w/ Networked Lighting Controls - Retrofit - WY","Interior Fixture Replacement - w/ Advanced Networked Lighting Controls/LLLCs - Retrofit - v4 - WY","Interior Fixture Replacement - w/ Plug and Play Control Ready - Retrofit - WY","Exterior Fixture Replacement - w/ No Controls - Retrofit - WY","Exterior Fixture Replacement - w/Basic Dimming - Retrofit - WY","Exterior Fixture Replacement - w/Advanced Networked Dimming - Retrofit - WY","Streetlighting - Retrofit - v2 - WY","Streetlighting - Retrofit - v2 - WY","Streetlighting - w/ Advanced Dimming Controls - Retrofit - v2 - WY",null,null,{"$f":"TEXT(COUNTIFS(MeasureTable_WY!G:G,EquipmentTable_Retrofit_WY[[#This Row],[measureRetrofit_Interior_None]],MeasureTable_WY!A:A,\"TRUE\"),\"0\") & \", \" &\nTEXT(COUNTIFS(MeasureTable_WY!G:G,EquipmentTable_Retrofit_WY[[#This Row],[measureRetrofit_Interior_Basic]],MeasureTable_WY!A:A,\"TRUE\"),\"0\") & \", \" &\nTEXT(COUNTIFS(MeasureTable_WY!G:G,EquipmentTable_Retrofit_WY[[#This Row],[measureRetrofit_Interior_Advanced]],MeasureTable_WY!A:A,\"TRUE\"),\"0\") & \", \" &\nTEXT(COUNTIFS(MeasureTable_WY!G:G,EquipmentTable_Retrofit_WY[[#This Row],[measureRetrofit_Exterior_None]],MeasureTable_WY!A:A,\"TRUE\"),\"0\") & \", \" &\nTEXT(COUNTIFS(MeasureTable_WY!G:G,EquipmentTable_Retrofit_WY[[#This Row],[measureRetrofit_Exterior_Advanced]],MeasureTable_WY!A:A,\"TRUE\"),\"0\") & \", \" &\nTEXT(COUNTIFS(MeasureTable_WY!G:G,EquipmentTable_Retrofit_WY[[#This Row],[measureRetrofit_Street_None]],MeasureTable_WY!A:A,\"TRUE\"),\"0\") & \", \" &\nTEXT(COUNTIFS(MeasureTable_WY!G:G,EquipmentTable_Retrofit_WY[[#This Row],[measureRetrofit_Street_Advanced]],MeasureTable_WY!A:A,\"TRUE\"),\"0\") & \", \" &\nTEXT(COUNTIFS(MeasureTable_WY!G:G,EquipmentTable_Retrofit_WY[[#This Row],[measureRetrofit_SBE]],MeasureTable_WY!A:A,\"TRUE\"),\"0\")","v":"0, 0, 0, 0, 0, 0, 0, 0"},null,null,null,"Exterior Dimming Control - New Construction/Major Renovation - WY",{"$f":"COUNTIF(EquipmentTable_Retrofit_WY[[measureRetrofit_Interior_None]:[measureRetrofit_SBE]],U22)","v":0},null,null,"HID High/Low Bay - HID Replacement Lamp - >= 150 W - Midstream - WY",{"$f":"COUNTIF(EquipmentTable_Retrofit_WY[[measureRetrofit_Interior_None]:[measureRetrofit_SBE]],Y22)","v":0},"LED HID Replacement Lamp >= 150 W - MID - WY",{"$f":"COUNTIF(EquipmentTable_Retrofit_WY[[measureRetrofit_Interior_None]:[measureRetrofit_SBE]],AA22)","v":0}]
["New Fixture","LED Fixture - Pole Mount",null,"Interior Fixture Replacement - w/out Controls - Retrofit - v2 - WY","Interior Fixture Replacement - w/ Basic Controls - Retrofit - v2 - WY","Interior Fixture Replacement - w/ Networked Lighting Controls - Retrofit - WY","Interior Fixture Replacement - w/ Advanced Networked Lighting Controls/LLLCs - Retrofit - v4 - WY","Interior Fixture Replacement - w/ Plug and Play Control Ready - Retrofit - WY","Exterior Fixture Replacement - w/ No Controls - Retrofit - WY","Exterior Fixture Replacement - w/Basic Dimming - Retrofit - WY","Exterior Fixture Replacement - w/Advanced Networked Dimming - Retrofit - WY","Streetlighting - Retrofit - v2 - WY","Streetlighting - Retrofit - v2 - WY","Streetlighting - w/ Advanced Dimming Controls - Retrofit - v2 - WY",null,null,{"$f":"TEXT(COUNTIFS(MeasureTable_WY!G:G,EquipmentTable_Retrofit_WY[[#This Row],[measureRetrofit_Interior_None]],MeasureTable_WY!A:A,\"TRUE\"),\"0\") & \", \" &\nTEXT(COUNTIFS(MeasureTable_WY!G:G,EquipmentTable_Retrofit_WY[[#This Row],[measureRetrofit_Interior_Basic]],MeasureTable_WY!A:A,\"TRUE\"),\"0\") & \", \" &\nTEXT(COUNTIFS(MeasureTable_WY!G:G,EquipmentTable_Retrofit_WY[[#This Row],[measureRetrofit_Interior_Advanced]],MeasureTable_WY!A:A,\"TRUE\"),\"0\") & \", \" &\nTEXT(COUNTIFS(MeasureTable_WY!G:G,EquipmentTable_Retrofit_WY[[#This Row],[measureRetrofit_Exterior_None]],MeasureTable_WY!A:A,\"TRUE\"),\"0\") & \", \" &\nTEXT(COUNTIFS(MeasureTable_WY!G:G,EquipmentTable_Retrofit_WY[[#This Row],[measureRetrofit_Exterior_Advanced]],MeasureTable_WY!A:A,\"TRUE\"),\"0\") & \", \" &\nTEXT(COUNTIFS(MeasureTable_WY!G:G,EquipmentTable_Retrofit_WY[[#This Row],[measureRetrofit_Street_None]],MeasureTable_WY!A:A,\"TRUE\"),\"0\") & \", \" &\nTEXT(COUNTIFS(MeasureTable_WY!G:G,EquipmentTable_Retrofit_WY[[#This Row],[measureRetrofit_Street_Advanced]],MeasureTable_WY!A:A,\"TRUE\"),\"0\") & \", \" &\nTEXT(COUNTIFS(MeasureTable_WY!G:G,EquipmentTable_Retrofit_WY[[#This Row],[measureRetrofit_SBE]],MeasureTable_WY!A:A,\"TRUE\"),\"0\")","v":"0, 0, 0, 0, 0, 0, 0, 0"}]
["New Fixture","LED Fixture - Sconce/Wall Wash",null,"Interior Fixture Replacement - w/out Controls - Retrofit - v2 - WY","Interior Fixture Replacement - w/ Basic Controls - Retrofit - v2 - WY","Interior Fixture Replacement - w/ Networked Lighting Controls - Retrofit - WY","Interior Fixture Replacement - w/ Advanced Networked Lighting Controls/LLLCs - Retrofit - v4 - WY","Interior Fixture Replacement - w/ Plug and Play Control Ready - Retrofit - WY","Exterior Fixture Replacement - w/ No Controls - Retrofit - WY","Exterior Fixture Replacement - w/Basic Dimming - Retrofit - WY","Exterior Fixture Replacement - w/Advanced Networked Dimming - Retrofit - WY","Streetlighting - Retrofit - v2 - WY","Streetlighting - Retrofit - v2 - WY","Streetlighting - w/ Advanced Dimming Controls - Retrofit - v2 - WY",null,null,{"$f":"TEXT(COUNTIFS(MeasureTable_WY!G:G,EquipmentTable_Retrofit_WY[[#This Row],[measureRetrofit_Interior_None]],MeasureTable_WY!A:A,\"TRUE\"),\"0\") & \", \" &\nTEXT(COUNTIFS(MeasureTable_WY!G:G,EquipmentTable_Retrofit_WY[[#This Row],[measureRetrofit_Interior_Basic]],MeasureTable_WY!A:A,\"TRUE\"),\"0\") & \", \" &\nTEXT(COUNTIFS(MeasureTable_WY!G:G,EquipmentTable_Retrofit_WY[[#This Row],[measureRetrofit_Interior_Advanced]],MeasureTable_WY!A:A,\"TRUE\"),\"0\") & \", \" &\nTEXT(COUNTIFS(MeasureTable_WY!G:G,EquipmentTable_Retrofit_WY[[#This Row],[measureRetrofit_Exterior_None]],MeasureTable_WY!A:A,\"TRUE\"),\"0\") & \", \" &\nTEXT(COUNTIFS(MeasureTable_WY!G:G,EquipmentTable_Retrofit_WY[[#This Row],[measureRetrofit_Exterior_Advanced]],MeasureTable_WY!A:A,\"TRUE\"),\"0\") & \", \" &\nTEXT(COUNTIFS(MeasureTable_WY!G:G,EquipmentTable_Retrofit_WY[[#This Row],[measureRetrofit_Street_None]],MeasureTable_WY!A:A,\"TRUE\"),\"0\") & \", \" &\nTEXT(COUNTIFS(MeasureTable_WY!G:G,EquipmentTable_Retrofit_WY[[#This Row],[measureRetrofit_Street_Advanced]],MeasureTable_WY!A:A,\"TRUE\"),\"0\") & \", \" &\nTEXT(COUNTIFS(MeasureTable_WY!G:G,EquipmentTable_Retrofit_WY[[#This Row],[measureRetrofit_SBE]],MeasureTable_WY!A:A,\"TRUE\"),\"0\")","v":"0, 0, 0, 0, 0, 0, 0, 0"}]
["New Fixture","LED Fixture - Strip/Wrap",null,"Interior Fixture Replacement - w/out Controls - Retrofit - v2 - WY","Interior Fixture Replacement - w/ Basic Controls - Retrofit - v2 - WY","Interior Fixture Replacement - w/ Networked Lighting Controls - Retrofit - WY","Interior Fixture Replacement - w/ Advanced Networked Lighting Controls/LLLCs - Retrofit - v4 - WY","Interior Fixture Replacement - w/ Plug and Play Control Ready - Retrofit - WY","Exterior Fixture Replacement - w/ No Controls - Retrofit - WY","Exterior Fixture Replacement - w/Basic Dimming - Retrofit - WY","Exterior Fixture Replacement - w/Advanced Networked Dimming - Retrofit - WY","Streetlighting - Retrofit - v2 - WY","Streetlighting - Retrofit - v2 - WY","Streetlighting - w/ Advanced Dimming Controls - Retrofit - v2 - WY",null,null,{"$f":"TEXT(COUNTIFS(MeasureTable_WY!G:G,EquipmentTable_Retrofit_WY[[#This Row],[measureRetrofit_Interior_None]],MeasureTable_WY!A:A,\"TRUE\"),\"0\") & \", \" &\nTEXT(COUNTIFS(MeasureTable_WY!G:G,EquipmentTable_Retrofit_WY[[#This Row],[measureRetrofit_Interior_Basic]],MeasureTable_WY!A:A,\"TRUE\"),\"0\") & \", \" &\nTEXT(COUNTIFS(MeasureTable_WY!G:G,EquipmentTable_Retrofit_WY[[#This Row],[measureRetrofit_Interior_Advanced]],MeasureTable_WY!A:A,\"TRUE\"),\"0\") & \", \" &\nTEXT(COUNTIFS(MeasureTable_WY!G:G,EquipmentTable_Retrofit_WY[[#This Row],[measureRetrofit_Exterior_None]],MeasureTable_WY!A:A,\"TRUE\"),\"0\") & \", \" &\nTEXT(COUNTIFS(MeasureTable_WY!G:G,EquipmentTable_Retrofit_WY[[#This Row],[measureRetrofit_Exterior_Advanced]],MeasureTable_WY!A:A,\"TRUE\"),\"0\") & \", \" &\nTEXT(COUNTIFS(MeasureTable_WY!G:G,EquipmentTable_Retrofit_WY[[#This Row],[measureRetrofit_Street_None]],MeasureTable_WY!A:A,\"TRUE\"),\"0\") & \", \" &\nTEXT(COUNTIFS(MeasureTable_WY!G:G,EquipmentTable_Retrofit_WY[[#This Row],[measureRetrofit_Street_Advanced]],MeasureTable_WY!A:A,\"TRUE\"),\"0\") & \", \" &\nTEXT(COUNTIFS(MeasureTable_WY!G:G,EquipmentTable_Retrofit_WY[[#This Row],[measureRetrofit_SBE]],MeasureTable_WY!A:A,\"TRUE\"),\"0\")","v":"0, 0, 0, 0, 0, 0, 0, 0"}]
["New Fixture","LED Fixture - Surface Mount",null,"Interior Fixture Replacement - w/out Controls - Retrofit - v2 - WY","Interior Fixture Replacement - w/ Basic Controls - Retrofit - v2 - WY","Interior Fixture Replacement - w/ Networked Lighting Controls - Retrofit - WY","Interior Fixture Replacement - w/ Advanced Networked Lighting Controls/LLLCs - Retrofit - v4 - WY","Interior Fixture Replacement - w/ Plug and Play Control Ready - Retrofit - WY","Exterior Fixture Replacement - w/ No Controls - Retrofit - WY","Exterior Fixture Replacement - w/Basic Dimming - Retrofit - WY","Exterior Fixture Replacement - w/Advanced Networked Dimming - Retrofit - WY","Streetlighting - Retrofit - v2 - WY","Streetlighting - Retrofit - v2 - WY","Streetlighting - w/ Advanced Dimming Controls - Retrofit - v2 - WY",null,null,{"$f":"TEXT(COUNTIFS(MeasureTable_WY!G:G,EquipmentTable_Retrofit_WY[[#This Row],[measureRetrofit_Interior_None]],MeasureTable_WY!A:A,\"TRUE\"),\"0\") & \", \" &\nTEXT(COUNTIFS(MeasureTable_WY!G:G,EquipmentTable_Retrofit_WY[[#This Row],[measureRetrofit_Interior_Basic]],MeasureTable_WY!A:A,\"TRUE\"),\"0\") & \", \" &\nTEXT(COUNTIFS(MeasureTable_WY!G:G,EquipmentTable_Retrofit_WY[[#This Row],[measureRetrofit_Interior_Advanced]],MeasureTable_WY!A:A,\"TRUE\"),\"0\") & \", \" &\nTEXT(COUNTIFS(MeasureTable_WY!G:G,EquipmentTable_Retrofit_WY[[#This Row],[measureRetrofit_Exterior_None]],MeasureTable_WY!A:A,\"TRUE\"),\"0\") & \", \" &\nTEXT(COUNTIFS(MeasureTable_WY!G:G,EquipmentTable_Retrofit_WY[[#This Row],[measureRetrofit_Exterior_Advanced]],MeasureTable_WY!A:A,\"TRUE\"),\"0\") & \", \" &\nTEXT(COUNTIFS(MeasureTable_WY!G:G,EquipmentTable_Retrofit_WY[[#This Row],[measureRetrofit_Street_None]],MeasureTable_WY!A:A,\"TRUE\"),\"0\") & \", \" &\nTEXT(COUNTIFS(MeasureTable_WY!G:G,EquipmentTable_Retrofit_WY[[#This Row],[measureRetrofit_Street_Advanced]],MeasureTable_WY!A:A,\"TRUE\"),\"0\") & \", \" &\nTEXT(COUNTIFS(MeasureTable_WY!G:G,EquipmentTable_Retrofit_WY[[#This Row],[measureRetrofit_SBE]],MeasureTable_WY!A:A,\"TRUE\"),\"0\")","v":"0, 0, 0, 0, 0, 0, 0, 0"}]
["New Fixture","LED Fixture - Troffer",null,"Interior Fixture Replacement - w/out Controls - Retrofit - v2 - WY","Interior Fixture Replacement - w/ Basic Controls - Retrofit - v2 - WY","Interior Fixture Replacement - w/ Networked Lighting Controls - Retrofit - WY","Interior Fixture Replacement - w/ Advanced Networked Lighting Controls/LLLCs - Retrofit - v4 - WY","Interior Fixture Replacement - w/ Plug and Play Control Ready - Retrofit - WY","Exterior Fixture Replacement - w/ No Controls - Retrofit - WY","Exterior Fixture Replacement - w/Basic Dimming - Retrofit - WY","Exterior Fixture Replacement - w/Advanced Networked Dimming - Retrofit - WY","Streetlighting - Retrofit - v2 - WY","Streetlighting - Retrofit - v2 - WY","Streetlighting - w/ Advanced Dimming Controls - Retrofit - v2 - WY",null,null,{"$f":"TEXT(COUNTIFS(MeasureTable_WY!G:G,EquipmentTable_Retrofit_WY[[#This Row],[measureRetrofit_Interior_None]],MeasureTable_WY!A:A,\"TRUE\"),\"0\") & \", \" &\nTEXT(COUNTIFS(MeasureTable_WY!G:G,EquipmentTable_Retrofit_WY[[#This Row],[measureRetrofit_Interior_Basic]],MeasureTable_WY!A:A,\"TRUE\"),\"0\") & \", \" &\nTEXT(COUNTIFS(MeasureTable_WY!G:G,EquipmentTable_Retrofit_WY[[#This Row],[measureRetrofit_Interior_Advanced]],MeasureTable_WY!A:A,\"TRUE\"),\"0\") & \", \" &\nTEXT(COUNTIFS(MeasureTable_WY!G:G,EquipmentTable_Retrofit_WY[[#This Row],[measureRetrofit_Exterior_None]],MeasureTable_WY!A:A,\"TRUE\"),\"0\") & \", \" &\nTEXT(COUNTIFS(MeasureTable_WY!G:G,EquipmentTable_Retrofit_WY[[#This Row],[measureRetrofit_Exterior_Advanced]],MeasureTable_WY!A:A,\"TRUE\"),\"0\") & \", \" &\nTEXT(COUNTIFS(MeasureTable_WY!G:G,EquipmentTable_Retrofit_WY[[#This Row],[measureRetrofit_Street_None]],MeasureTable_WY!A:A,\"TRUE\"),\"0\") & \", \" &\nTEXT(COUNTIFS(MeasureTable_WY!G:G,EquipmentTable_Retrofit_WY[[#This Row],[measureRetrofit_Street_Advanced]],MeasureTable_WY!A:A,\"TRUE\"),\"0\") & \", \" &\nTEXT(COUNTIFS(MeasureTable_WY!G:G,EquipmentTable_Retrofit_WY[[#This Row],[measureRetrofit_SBE]],MeasureTable_WY!A:A,\"TRUE\"),\"0\")","v":"0, 0, 0, 0, 0, 0, 0, 0"}]
["New Fixture","LED Fixture - Wall Pack < 50W",null,"Interior Fixture Replacement - w/out Controls - Retrofit - v2 - WY","Interior Fixture Replacement - w/ Basic Controls - Retrofit - v2 - WY","Interior Fixture Replacement - w/ Networked Lighting Controls - Retrofit - WY","Interior Fixture Replacement - w/ Advanced Networked Lighting Controls/LLLCs - Retrofit - v4 - WY","Interior Fixture Replacement - w/ Plug and Play Control Ready - Retrofit - WY","Exterior Fixture Replacement - w/ No Controls - Retrofit - WY","Exterior Fixture Replacement - w/Basic Dimming - Retrofit - WY","Exterior Fixture Replacement - w/Advanced Networked Dimming - Retrofit - WY","Streetlighting - Retrofit - v2 - WY","Streetlighting - Retrofit - v2 - WY","Streetlighting - w/ Advanced Dimming Controls - Retrofit - v2 - WY",null,null,{"$f":"TEXT(COUNTIFS(MeasureTable_WY!G:G,EquipmentTable_Retrofit_WY[[#This Row],[measureRetrofit_Interior_None]],MeasureTable_WY!A:A,\"TRUE\"),\"0\") & \", \" &\nTEXT(COUNTIFS(MeasureTable_WY!G:G,EquipmentTable_Retrofit_WY[[#This Row],[measureRetrofit_Interior_Basic]],MeasureTable_WY!A:A,\"TRUE\"),\"0\") & \", \" &\nTEXT(COUNTIFS(MeasureTable_WY!G:G,EquipmentTable_Retrofit_WY[[#This Row],[measureRetrofit_Interior_Advanced]],MeasureTable_WY!A:A,\"TRUE\"),\"0\") & \", \" &\nTEXT(COUNTIFS(MeasureTable_WY!G:G,EquipmentTable_Retrofit_WY[[#This Row],[measureRetrofit_Exterior_None]],MeasureTable_WY!A:A,\"TRUE\"),\"0\") & \", \" &\nTEXT(COUNTIFS(MeasureTable_WY!G:G,EquipmentTable_Retrofit_WY[[#This Row],[measureRetrofit_Exterior_Advanced]],MeasureTable_WY!A:A,\"TRUE\"),\"0\") & \", \" &\nTEXT(COUNTIFS(MeasureTable_WY!G:G,EquipmentTable_Retrofit_WY[[#This Row],[measureRetrofit_Street_None]],MeasureTable_WY!A:A,\"TRUE\"),\"0\") & \", \" &\nTEXT(COUNTIFS(MeasureTable_WY!G:G,EquipmentTable_Retrofit_WY[[#This Row],[measureRetrofit_Street_Advanced]],MeasureTable_WY!A:A,\"TRUE\"),\"0\") & \", \" &\nTEXT(COUNTIFS(MeasureTable_WY!G:G,EquipmentTable_Retrofit_WY[[#This Row],[measureRetrofit_SBE]],MeasureTable_WY!A:A,\"TRUE\"),\"0\")","v":"0, 0, 0, 0, 0, 0, 0, 0"}]
["New Fixture","LED Fixture - Wall Pack >= 50W",null,"Interior Fixture Replacement - w/out Controls - Retrofit - v2 - WY","Interior Fixture Replacement - w/ Basic Controls - Retrofit - v2 - WY","Interior Fixture Replacement - w/ Networked Lighting Controls - Retrofit - WY","Interior Fixture Replacement - w/ Advanced Networked Lighting Controls/LLLCs - Retrofit - v4 - WY","Interior Fixture Replacement - w/ Plug and Play Control Ready - Retrofit - WY","Exterior Fixture Replacement - w/ No Controls - Retrofit - WY","Exterior Fixture Replacement - w/Basic Dimming - Retrofit - WY","Exterior Fixture Replacement - w/Advanced Networked Dimming - Retrofit - WY","Streetlighting - Retrofit - v2 - WY","Streetlighting - Retrofit - v2 - WY","Streetlighting - w/ Advanced Dimming Controls - Retrofit - v2 - WY",null,null,{"$f":"TEXT(COUNTIFS(MeasureTable_WY!G:G,EquipmentTable_Retrofit_WY[[#This Row],[measureRetrofit_Interior_None]],MeasureTable_WY!A:A,\"TRUE\"),\"0\") & \", \" &\nTEXT(COUNTIFS(MeasureTable_WY!G:G,EquipmentTable_Retrofit_WY[[#This Row],[measureRetrofit_Interior_Basic]],MeasureTable_WY!A:A,\"TRUE\"),\"0\") & \", \" &\nTEXT(COUNTIFS(MeasureTable_WY!G:G,EquipmentTable_Retrofit_WY[[#This Row],[measureRetrofit_Interior_Advanced]],MeasureTable_WY!A:A,\"TRUE\"),\"0\") & \", \" &\nTEXT(COUNTIFS(MeasureTable_WY!G:G,EquipmentTable_Retrofit_WY[[#This Row],[measureRetrofit_Exterior_None]],MeasureTable_WY!A:A,\"TRUE\"),\"0\") & \", \" &\nTEXT(COUNTIFS(MeasureTable_WY!G:G,EquipmentTable_Retrofit_WY[[#This Row],[measureRetrofit_Exterior_Advanced]],MeasureTable_WY!A:A,\"TRUE\"),\"0\") & \", \" &\nTEXT(COUNTIFS(MeasureTable_WY!G:G,EquipmentTable_Retrofit_WY[[#This Row],[measureRetrofit_Street_None]],MeasureTable_WY!A:A,\"TRUE\"),\"0\") & \", \" &\nTEXT(COUNTIFS(MeasureTable_WY!G:G,EquipmentTable_Retrofit_WY[[#This Row],[measureRetrofit_Street_Advanced]],MeasureTable_WY!A:A,\"TRUE\"),\"0\") & \", \" &\nTEXT(COUNTIFS(MeasureTable_WY!G:G,EquipmentTable_Retrofit_WY[[#This Row],[measureRetrofit_SBE]],MeasureTable_WY!A:A,\"TRUE\"),\"0\")","v":"0, 0, 0, 0, 0, 0, 0, 0"}]
["Retrofit Kit","LED Retrofit Kit - Bollard",null,"Interior Fixture Retrofit Kit - w/out Controls - Retrofit - v2 - WY","Interior Fixture Retrofit Kit - w/ Basic Controls - Retrofit - WY","Interior Fixture Retrofit Kit - w/ Networked Lighting Controls - Retrofit - WY","Interior Fixture Retrofit Kit - w/ Advanced Networked Lighting Controls/LLLCs - Retrofit - v2 - WY","Interior Fixture Retrofit Kit - w/ Plug and Play Control Ready - Retrofit - WY","Exterior Fixture Retrofit Kit - w/ No Controls - Retrofit - WY","Exterior Fixture Retrofit Kit - w/Basic Dimming - Retrofit - WY","Exterior Fixture Retrofit Kit - w/Advanced Networked Dimming - Retrofit - WY","Streetlighting - Retrofit - v2 - WY","Streetlighting - Retrofit - v2 - WY","Streetlighting - w/ Advanced Dimming Controls - Retrofit - v2 - WY",null,null,{"$f":"TEXT(COUNTIFS(MeasureTable_WY!G:G,EquipmentTable_Retrofit_WY[[#This Row],[measureRetrofit_Interior_None]],MeasureTable_WY!A:A,\"TRUE\"),\"0\") & \", \" &\nTEXT(COUNTIFS(MeasureTable_WY!G:G,EquipmentTable_Retrofit_WY[[#This Row],[measureRetrofit_Interior_Basic]],MeasureTable_WY!A:A,\"TRUE\"),\"0\") & \", \" &\nTEXT(COUNTIFS(MeasureTable_WY!G:G,EquipmentTable_Retrofit_WY[[#This Row],[measureRetrofit_Interior_Advanced]],MeasureTable_WY!A:A,\"TRUE\"),\"0\") & \", \" &\nTEXT(COUNTIFS(MeasureTable_WY!G:G,EquipmentTable_Retrofit_WY[[#This Row],[measureRetrofit_Exterior_None]],MeasureTable_WY!A:A,\"TRUE\"),\"0\") & \", \" &\nTEXT(COUNTIFS(MeasureTable_WY!G:G,EquipmentTable_Retrofit_WY[[#This Row],[measureRetrofit_Exterior_Advanced]],MeasureTable_WY!A:A,\"TRUE\"),\"0\") & \", \" &\nTEXT(COUNTIFS(MeasureTable_WY!G:G,EquipmentTable_Retrofit_WY[[#This Row],[measureRetrofit_Street_None]],MeasureTable_WY!A:A,\"TRUE\"),\"0\") & \", \" &\nTEXT(COUNTIFS(MeasureTable_WY!G:G,EquipmentTable_Retrofit_WY[[#This Row],[measureRetrofit_Street_Advanced]],MeasureTable_WY!A:A,\"TRUE\"),\"0\") & \", \" &\nTEXT(COUNTIFS(MeasureTable_WY!G:G,EquipmentTable_Retrofit_WY[[#This Row],[measureRetrofit_SBE]],MeasureTable_WY!A:A,\"TRUE\"),\"0\")","v":"0, 0, 0, 0, 0, 0, 0, 0"}]
["Retrofit Kit","LED Retrofit Kit - Direct/Indirect",null,"Interior Fixture Retrofit Kit - w/out Controls - Retrofit - v2 - WY","Interior Fixture Retrofit Kit - w/ Basic Controls - Retrofit - WY","Interior Fixture Retrofit Kit - w/ Networked Lighting Controls - Retrofit - WY","Interior Fixture Retrofit Kit - w/ Advanced Networked Lighting Controls/LLLCs - Retrofit - v2 - WY","Interior Fixture Retrofit Kit - w/ Plug and Play Control Ready - Retrofit - WY","Exterior Fixture Replacement - w/ No Controls - Retrofit - WY","Exterior Fixture Replacement - w/Basic Dimming - Retrofit - WY","Exterior Fixture Replacement - w/Advanced Networked Dimming - Retrofit - WY","Streetlighting - Retrofit - v2 - WY","Streetlighting - Retrofit - v2 - WY","Streetlighting - w/ Advanced Dimming Controls - Retrofit - v2 - WY",null,null,{"$f":"TEXT(COUNTIFS(MeasureTable_WY!G:G,EquipmentTable_Retrofit_WY[[#This Row],[measureRetrofit_Interior_None]],MeasureTable_WY!A:A,\"TRUE\"),\"0\") & \", \" &\nTEXT(COUNTIFS(MeasureTable_WY!G:G,EquipmentTable_Retrofit_WY[[#This Row],[measureRetrofit_Interior_Basic]],MeasureTable_WY!A:A,\"TRUE\"),\"0\") & \", \" &\nTEXT(COUNTIFS(MeasureTable_WY!G:G,EquipmentTable_Retrofit_WY[[#This Row],[measureRetrofit_Interior_Advanced]],MeasureTable_WY!A:A,\"TRUE\"),\"0\") & \", \" &\nTEXT(COUNTIFS(MeasureTable_WY!G:G,EquipmentTable_Retrofit_WY[[#This Row],[measureRetrofit_Exterior_None]],MeasureTable_WY!A:A,\"TRUE\"),\"0\") & \", \" &\nTEXT(COUNTIFS(MeasureTable_WY!G:G,EquipmentTable_Retrofit_WY[[#This Row],[measureRetrofit_Exterior_Advanced]],MeasureTable_WY!A:A,\"TRUE\"),\"0\") & \", \" &\nTEXT(COUNTIFS(MeasureTable_WY!G:G,EquipmentTable_Retrofit_WY[[#This Row],[measureRetrofit_Street_None]],MeasureTable_WY!A:A,\"TRUE\"),\"0\") & \", \" &\nTEXT(COUNTIFS(MeasureTable_WY!G:G,EquipmentTable_Retrofit_WY[[#This Row],[measureRetrofit_Street_Advanced]],MeasureTable_WY!A:A,\"TRUE\"),\"0\") & \", \" &\nTEXT(COUNTIFS(MeasureTable_WY!G:G,EquipmentTable_Retrofit_WY[[#This Row],[measureRetrofit_SBE]],MeasureTable_WY!A:A,\"TRUE\"),\"0\")","v":"0, 0, 0, 0, 0, 0, 0, 0"}]
["Retrofit Kit","LED Retrofit Kit - Downlight",null,"Non-eligible fixture - Retrofit - WY","Non-eligible fixture - Retrofit - WY","Non-eligible fixture - Retrofit - WY","Non-eligible fixture - Retrofit - WY","Non-eligible fixture - Retrofit - WY","Non-eligible fixture - Retrofit - WY","Non-eligible fixture - Retrofit - WY","Non-eligible fixture - Retrofit - WY","Streetlighting - Retrofit - v2 - WY","Streetlighting - Retrofit - v2 - WY","Streetlighting - w/ Advanced Dimming Controls - Retrofit - v2 - WY",null,null,{"$f":"TEXT(COUNTIFS(MeasureTable_WY!G:G,EquipmentTable_Retrofit_WY[[#This Row],[measureRetrofit_Interior_None]],MeasureTable_WY!A:A,\"TRUE\"),\"0\") & \", \" &\nTEXT(COUNTIFS(MeasureTable_WY!G:G,EquipmentTable_Retrofit_WY[[#This Row],[measureRetrofit_Interior_Basic]],MeasureTable_WY!A:A,\"TRUE\"),\"0\") & \", \" &\nTEXT(COUNTIFS(MeasureTable_WY!G:G,EquipmentTable_Retrofit_WY[[#This Row],[measureRetrofit_Interior_Advanced]],MeasureTable_WY!A:A,\"TRUE\"),\"0\") & \", \" &\nTEXT(COUNTIFS(MeasureTable_WY!G:G,EquipmentTable_Retrofit_WY[[#This Row],[measureRetrofit_Exterior_None]],MeasureTable_WY!A:A,\"TRUE\"),\"0\") & \", \" &\nTEXT(COUNTIFS(MeasureTable_WY!G:G,EquipmentTable_Retrofit_WY[[#This Row],[measureRetrofit_Exterior_Advanced]],MeasureTable_WY!A:A,\"TRUE\"),\"0\") & \", \" &\nTEXT(COUNTIFS(MeasureTable_WY!G:G,EquipmentTable_Retrofit_WY[[#This Row],[measureRetrofit_Street_None]],MeasureTable_WY!A:A,\"TRUE\"),\"0\") & \", \" &\nTEXT(COUNTIFS(MeasureTable_WY!G:G,EquipmentTable_Retrofit_WY[[#This Row],[measureRetrofit_Street_Advanced]],MeasureTable_WY!A:A,\"TRUE\"),\"0\") & \", \" &\nTEXT(COUNTIFS(MeasureTable_WY!G:G,EquipmentTable_Retrofit_WY[[#This Row],[measureRetrofit_SBE]],MeasureTable_WY!A:A,\"TRUE\"),\"0\")","v":"0, 0, 0, 0, 0, 0, 0, 0"}]
["Retrofit Kit","LED Retrofit Kit - Flood",null,"Interior Fixture Retrofit Kit - w/out Controls - Retrofit - v2 - WY","Interior Fixture Retrofit Kit - w/ Basic Controls - Retrofit - WY","Interior Fixture Retrofit Kit - w/ Networked Lighting Controls - Retrofit - WY","Interior Fixture Retrofit Kit - w/ Advanced Networked Lighting Controls/LLLCs - Retrofit - v2 - WY","Interior Fixture Retrofit Kit - w/ Plug and Play Control Ready - Retrofit - WY","Exterior Fixture Replacement - w/ No Controls - Retrofit - WY","Exterior Fixture Replacement - w/Basic Dimming - Retrofit - WY","Exterior Fixture Replacement - w/Advanced Networked Dimming - Retrofit - WY","Streetlighting - Retrofit - v2 - WY","Streetlighting - Retrofit - v2 - WY","Streetlighting - w/ Advanced Dimming Controls - Retrofit - v2 - WY",null,null,{"$f":"TEXT(COUNTIFS(MeasureTable_WY!G:G,EquipmentTable_Retrofit_WY[[#This Row],[measureRetrofit_Interior_None]],MeasureTable_WY!A:A,\"TRUE\"),\"0\") & \", \" &\nTEXT(COUNTIFS(MeasureTable_WY!G:G,EquipmentTable_Retrofit_WY[[#This Row],[measureRetrofit_Interior_Basic]],MeasureTable_WY!A:A,\"TRUE\"),\"0\") & \", \" &\nTEXT(COUNTIFS(MeasureTable_WY!G:G,EquipmentTable_Retrofit_WY[[#This Row],[measureRetrofit_Interior_Advanced]],MeasureTable_WY!A:A,\"TRUE\"),\"0\") & \", \" &\nTEXT(COUNTIFS(MeasureTable_WY!G:G,EquipmentTable_Retrofit_WY[[#This Row],[measureRetrofit_Exterior_None]],MeasureTable_WY!A:A,\"TRUE\"),\"0\") & \", \" &\nTEXT(COUNTIFS(MeasureTable_WY!G:G,EquipmentTable_Retrofit_WY[[#This Row],[measureRetrofit_Exterior_Advanced]],MeasureTable_WY!A:A,\"TRUE\"),\"0\") & \", \" &\nTEXT(COUNTIFS(MeasureTable_WY!G:G,EquipmentTable_Retrofit_WY[[#This Row],[measureRetrofit_Street_None]],MeasureTable_WY!A:A,\"TRUE\"),\"0\") & \", \" &\nTEXT(COUNTIFS(MeasureTable_WY!G:G,EquipmentTable_Retrofit_WY[[#This Row],[measureRetrofit_Street_Advanced]],MeasureTable_WY!A:A,\"TRUE\"),\"0\") & \", \" &\nTEXT(COUNTIFS(MeasureTable_WY!G:G,EquipmentTable_Retrofit_WY[[#This Row],[measureRetrofit_SBE]],MeasureTable_WY!A:A,\"TRUE\"),\"0\")","v":"0, 0, 0, 0, 0, 0, 0, 0"}]
["Retrofit Kit","LED Retrofit Kit - High/Low Bay",null,"Interior Fixture Retrofit Kit - w/out Controls - Retrofit - v2 - WY","Interior Fixture Retrofit Kit - w/ Basic Controls - Retrofit - WY","Interior Fixture Retrofit Kit - w/ Networked Lighting Controls - Retrofit - WY","Interior Fixture Retrofit Kit - w/ Advanced Networked Lighting Controls/LLLCs - Retrofit - v2 - WY","Interior Fixture Retrofit Kit - w/ Plug and Play Control Ready - Retrofit - WY","Exterior Fixture Replacement - w/ No Controls - Retrofit - WY","Exterior Fixture Replacement - w/Basic Dimming - Retrofit - WY","Exterior Fixture Replacement - w/Advanced Networked Dimming - Retrofit - WY","Streetlighting - Retrofit - v2 - WY","Streetlighting - Retrofit - v2 - WY","Streetlighting - w/ Advanced Dimming Controls - Retrofit - v2 - WY",null,null,{"$f":"TEXT(COUNTIFS(MeasureTable_WY!G:G,EquipmentTable_Retrofit_WY[[#This Row],[measureRetrofit_Interior_None]],MeasureTable_WY!A:A,\"TRUE\"),\"0\") & \", \" &\nTEXT(COUNTIFS(MeasureTable_WY!G:G,EquipmentTable_Retrofit_WY[[#This Row],[measureRetrofit_Interior_Basic]],MeasureTable_WY!A:A,\"TRUE\"),\"0\") & \", \" &\nTEXT(COUNTIFS(MeasureTable_WY!G:G,EquipmentTable_Retrofit_WY[[#This Row],[measureRetrofit_Interior_Advanced]],MeasureTable_WY!A:A,\"TRUE\"),\"0\") & \", \" &\nTEXT(COUNTIFS(MeasureTable_WY!G:G,EquipmentTable_Retrofit_WY[[#This Row],[measureRetrofit_Exterior_None]],MeasureTable_WY!A:A,\"TRUE\"),\"0\") & \", \" &\nTEXT(COUNTIFS(MeasureTable_WY!G:G,EquipmentTable_Retrofit_WY[[#This Row],[measureRetrofit_Exterior_Advanced]],MeasureTable_WY!A:A,\"TRUE\"),\"0\") & \", \" &\nTEXT(COUNTIFS(MeasureTable_WY!G:G,EquipmentTable_Retrofit_WY[[#This Row],[measureRetrofit_Street_None]],MeasureTable_WY!A:A,\"TRUE\"),\"0\") & \", \" &\nTEXT(COUNTIFS(MeasureTable_WY!G:G,EquipmentTable_Retrofit_WY[[#This Row],[measureRetrofit_Street_Advanced]],MeasureTable_WY!A:A,\"TRUE\"),\"0\") & \", \" &\nTEXT(COUNTIFS(MeasureTable_WY!G:G,EquipmentTable_Retrofit_WY[[#This Row],[measureRetrofit_SBE]],MeasureTable_WY!A:A,\"TRUE\"),\"0\")","v":"0, 0, 0, 0, 0, 0, 0, 0"}]
["Retrofit Kit","LED Retrofit Kit - Integral Track Head",null,"Interior Fixture Retrofit Kit - w/out Controls - Retrofit - v2 - WY","Interior Fixture Retrofit Kit - w/ Basic Controls - Retrofit - WY","Interior Fixture Retrofit Kit - w/ Networked Lighting Controls - Retrofit - WY","Interior Fixture Retrofit Kit - w/ Advanced Networked Lighting Controls/LLLCs - Retrofit - v2 - WY","Interior Fixture Retrofit Kit - w/ Plug and Play Control Ready - Retrofit - WY","Exterior Fixture Replacement - w/ No Controls - Retrofit - WY","Exterior Fixture Replacement - w/Basic Dimming - Retrofit - WY","Exterior Fixture Replacement - w/Advanced Networked Dimming - Retrofit - WY","Streetlighting - Retrofit - v2 - WY","Streetlighting - Retrofit - v2 - WY","Streetlighting - w/ Advanced Dimming Controls - Retrofit - v2 - WY",null,null,{"$f":"TEXT(COUNTIFS(MeasureTable_WY!G:G,EquipmentTable_Retrofit_WY[[#This Row],[measureRetrofit_Interior_None]],MeasureTable_WY!A:A,\"TRUE\"),\"0\") & \", \" &\nTEXT(COUNTIFS(MeasureTable_WY!G:G,EquipmentTable_Retrofit_WY[[#This Row],[measureRetrofit_Interior_Basic]],MeasureTable_WY!A:A,\"TRUE\"),\"0\") & \", \" &\nTEXT(COUNTIFS(MeasureTable_WY!G:G,EquipmentTable_Retrofit_WY[[#This Row],[measureRetrofit_Interior_Advanced]],MeasureTable_WY!A:A,\"TRUE\"),\"0\") & \", \" &\nTEXT(COUNTIFS(MeasureTable_WY!G:G,EquipmentTable_Retrofit_WY[[#This Row],[measureRetrofit_Exterior_None]],MeasureTable_WY!A:A,\"TRUE\"),\"0\") & \", \" &\nTEXT(COUNTIFS(MeasureTable_WY!G:G,EquipmentTable_Retrofit_WY[[#This Row],[measureRetrofit_Exterior_Advanced]],MeasureTable_WY!A:A,\"TRUE\"),\"0\") & \", \" &\nTEXT(COUNTIFS(MeasureTable_WY!G:G,EquipmentTable_Retrofit_WY[[#This Row],[measureRetrofit_Street_None]],MeasureTable_WY!A:A,\"TRUE\"),\"0\") & \", \" &\nTEXT(COUNTIFS(MeasureTable_WY!G:G,EquipmentTable_Retrofit_WY[[#This Row],[measureRetrofit_Street_Advanced]],MeasureTable_WY!A:A,\"TRUE\"),\"0\") & \", \" &\nTEXT(COUNTIFS(MeasureTable_WY!G:G,EquipmentTable_Retrofit_WY[[#This Row],[measureRetrofit_SBE]],MeasureTable_WY!A:A,\"TRUE\"),\"0\")","v":"0, 0, 0, 0, 0, 0, 0, 0"}]
["Retrofit Kit","LED Retrofit Kit - Parking/Canopy",null,"Interior Fixture Retrofit Kit - w/out Controls - Retrofit - v2 - WY","Interior Fixture Retrofit Kit - w/ Basic Controls - Retrofit - WY","Interior Fixture Retrofit Kit - w/ Networked Lighting Controls - Retrofit - WY","Interior Fixture Retrofit Kit - w/ Advanced Networked Lighting Controls/LLLCs - Retrofit - v2 - WY","Interior Fixture Retrofit Kit - w/ Plug and Play Control Ready - Retrofit - WY","Exterior Fixture Replacement - w/ No Controls - Retrofit - WY","Exterior Fixture Replacement - w/Basic Dimming - Retrofit - WY","Exterior Fixture Replacement - w/Advanced Networked Dimming - Retrofit - WY","Streetlighting - Retrofit - v2 - WY","Streetlighting - Retrofit - v2 - WY","Streetlighting - w/ Advanced Dimming Controls - Retrofit - v2 - WY",null,null,{"$f":"TEXT(COUNTIFS(MeasureTable_WY!G:G,EquipmentTable_Retrofit_WY[[#This Row],[measureRetrofit_Interior_None]],MeasureTable_WY!A:A,\"TRUE\"),\"0\") & \", \" &\nTEXT(COUNTIFS(MeasureTable_WY!G:G,EquipmentTable_Retrofit_WY[[#This Row],[measureRetrofit_Interior_Basic]],MeasureTable_WY!A:A,\"TRUE\"),\"0\") & \", \" &\nTEXT(COUNTIFS(MeasureTable_WY!G:G,EquipmentTable_Retrofit_WY[[#This Row],[measureRetrofit_Interior_Advanced]],MeasureTable_WY!A:A,\"TRUE\"),\"0\") & \", \" &\nTEXT(COUNTIFS(MeasureTable_WY!G:G,EquipmentTable_Retrofit_WY[[#This Row],[measureRetrofit_Exterior_None]],MeasureTable_WY!A:A,\"TRUE\"),\"0\") & \", \" &\nTEXT(COUNTIFS(MeasureTable_WY!G:G,EquipmentTable_Retrofit_WY[[#This Row],[measureRetrofit_Exterior_Advanced]],MeasureTable_WY!A:A,\"TRUE\"),\"0\") & \", \" &\nTEXT(COUNTIFS(MeasureTable_WY!G:G,EquipmentTable_Retrofit_WY[[#This Row],[measureRetrofit_Street_None]],MeasureTable_WY!A:A,\"TRUE\"),\"0\") & \", \" &\nTEXT(COUNTIFS(MeasureTable_WY!G:G,EquipmentTable_Retrofit_WY[[#This Row],[measureRetrofit_Street_Advanced]],MeasureTable_WY!A:A,\"TRUE\"),\"0\") & \", \" &\nTEXT(COUNTIFS(MeasureTable_WY!G:G,EquipmentTable_Retrofit_WY[[#This Row],[measureRetrofit_SBE]],MeasureTable_WY!A:A,\"TRUE\"),\"0\")","v":"0, 0, 0, 0, 0, 0, 0, 0"}]
["Retrofit Kit","LED Retrofit Kit - Pole Mount",null,"Interior Fixture Retrofit Kit - w/out Controls - Retrofit - v2 - WY","Interior Fixture Retrofit Kit - w/ Basic Controls - Retrofit - WY","Interior Fixture Retrofit Kit - w/ Networked Lighting Controls - Retrofit - WY","Interior Fixture Retrofit Kit - w/ Advanced Networked Lighting Controls/LLLCs - Retrofit - v2 - WY","Interior Fixture Retrofit Kit - w/ Plug and Play Control Ready - Retrofit - WY","Exterior Fixture Replacement - w/ No Controls - Retrofit - WY","Exterior Fixture Replacement - w/Basic Dimming - Retrofit - WY","Exterior Fixture Replacement - w/Advanced Networked Dimming - Retrofit - WY","Streetlighting - Retrofit - v2 - WY","Streetlighting - Retrofit - v2 - WY","Streetlighting - w/ Advanced Dimming Controls - Retrofit - v2 - WY",null,null,{"$f":"TEXT(COUNTIFS(MeasureTable_WY!G:G,EquipmentTable_Retrofit_WY[[#This Row],[measureRetrofit_Interior_None]],MeasureTable_WY!A:A,\"TRUE\"),\"0\") & \", \" &\nTEXT(COUNTIFS(MeasureTable_WY!G:G,EquipmentTable_Retrofit_WY[[#This Row],[measureRetrofit_Interior_Basic]],MeasureTable_WY!A:A,\"TRUE\"),\"0\") & \", \" &\nTEXT(COUNTIFS(MeasureTable_WY!G:G,EquipmentTable_Retrofit_WY[[#This Row],[measureRetrofit_Interior_Advanced]],MeasureTable_WY!A:A,\"TRUE\"),\"0\") & \", \" &\nTEXT(COUNTIFS(MeasureTable_WY!G:G,EquipmentTable_Retrofit_WY[[#This Row],[measureRetrofit_Exterior_None]],MeasureTable_WY!A:A,\"TRUE\"),\"0\") & \", \" &\nTEXT(COUNTIFS(MeasureTable_WY!G:G,EquipmentTable_Retrofit_WY[[#This Row],[measureRetrofit_Exterior_Advanced]],MeasureTable_WY!A:A,\"TRUE\"),\"0\") & \", \" &\nTEXT(COUNTIFS(MeasureTable_WY!G:G,EquipmentTable_Retrofit_WY[[#This Row],[measureRetrofit_Street_None]],MeasureTable_WY!A:A,\"TRUE\"),\"0\") & \", \" &\nTEXT(COUNTIFS(MeasureTable_WY!G:G,EquipmentTable_Retrofit_WY[[#This Row],[measureRetrofit_Street_Advanced]],MeasureTable_WY!A:A,\"TRUE\"),\"0\") & \", \" &\nTEXT(COUNTIFS(MeasureTable_WY!G:G,EquipmentTable_Retrofit_WY[[#This Row],[measureRetrofit_SBE]],MeasureTable_WY!A:A,\"TRUE\"),\"0\")","v":"0, 0, 0, 0, 0, 0, 0, 0"}]
["Retrofit Kit","LED Retrofit Kit - Sconce/Wall Wash",null,"Interior Fixture Retrofit Kit - w/out Controls - Retrofit - v2 - WY","Interior Fixture Retrofit Kit - w/ Basic Controls - Retrofit - WY","Interior Fixture Retrofit Kit - w/ Networked Lighting Controls - Retrofit - WY","Interior Fixture Retrofit Kit - w/ Advanced Networked Lighting Controls/LLLCs - Retrofit - v2 - WY","Interior Fixture Retrofit Kit - w/ Plug and Play Control Ready - Retrofit - WY","Exterior Fixture Replacement - w/ No Controls - Retrofit - WY","Exterior Fixture Replacement - w/Basic Dimming - Retrofit - WY","Exterior Fixture Replacement - w/Advanced Networked Dimming - Retrofit - WY","Streetlighting - Retrofit - v2 - WY","Streetlighting - Retrofit - v2 - WY","Streetlighting - w/ Advanced Dimming Controls - Retrofit - v2 - WY",null,null,{"$f":"TEXT(COUNTIFS(MeasureTable_WY!G:G,EquipmentTable_Retrofit_WY[[#This Row],[measureRetrofit_Interior_None]],MeasureTable_WY!A:A,\"TRUE\"),\"0\") & \", \" &\nTEXT(COUNTIFS(MeasureTable_WY!G:G,EquipmentTable_Retrofit_WY[[#This Row],[measureRetrofit_Interior_Basic]],MeasureTable_WY!A:A,\"TRUE\"),\"0\") & \", \" &\nTEXT(COUNTIFS(MeasureTable_WY!G:G,EquipmentTable_Retrofit_WY[[#This Row],[measureRetrofit_Interior_Advanced]],MeasureTable_WY!A:A,\"TRUE\"),\"0\") & \", \" &\nTEXT(COUNTIFS(MeasureTable_WY!G:G,EquipmentTable_Retrofit_WY[[#This Row],[measureRetrofit_Exterior_None]],MeasureTable_WY!A:A,\"TRUE\"),\"0\") & \", \" &\nTEXT(COUNTIFS(MeasureTable_WY!G:G,EquipmentTable_Retrofit_WY[[#This Row],[measureRetrofit_Exterior_Advanced]],MeasureTable_WY!A:A,\"TRUE\"),\"0\") & \", \" &\nTEXT(COUNTIFS(MeasureTable_WY!G:G,EquipmentTable_Retrofit_WY[[#This Row],[measureRetrofit_Street_None]],MeasureTable_WY!A:A,\"TRUE\"),\"0\") & \", \" &\nTEXT(COUNTIFS(MeasureTable_WY!G:G,EquipmentTable_Retrofit_WY[[#This Row],[measureRetrofit_Street_Advanced]],MeasureTable_WY!A:A,\"TRUE\"),\"0\") & \", \" &\nTEXT(COUNTIFS(MeasureTable_WY!G:G,EquipmentTable_Retrofit_WY[[#This Row],[measureRetrofit_SBE]],MeasureTable_WY!A:A,\"TRUE\"),\"0\")","v":"0, 0, 0, 0, 0, 0, 0, 0"}]
["Retrofit Kit","LED Retrofit Kit - Strip/Wrap",null,"Interior Fixture Retrofit Kit - w/out Controls - Retrofit - v2 - WY","Interior Fixture Retrofit Kit - w/ Basic Controls - Retrofit - WY","Interior Fixture Retrofit Kit - w/ Networked Lighting Controls - Retrofit - WY","Interior Fixture Retrofit Kit - w/ Advanced Networked Lighting Controls/LLLCs - Retrofit - v2 - WY","Interior Fixture Retrofit Kit - w/ Plug and Play Control Ready - Retrofit - WY","Exterior Fixture Replacement - w/ No Controls - Retrofit - WY","Exterior Fixture Replacement - w/Basic Dimming - Retrofit - WY","Exterior Fixture Replacement - w/Advanced Networked Dimming - Retrofit - WY","Streetlighting - Retrofit - v2 - WY","Streetlighting - Retrofit - v2 - WY","Streetlighting - w/ Advanced Dimming Controls - Retrofit - v2 - WY",null,null,{"$f":"TEXT(COUNTIFS(MeasureTable_WY!G:G,EquipmentTable_Retrofit_WY[[#This Row],[measureRetrofit_Interior_None]],MeasureTable_WY!A:A,\"TRUE\"),\"0\") & \", \" &\nTEXT(COUNTIFS(MeasureTable_WY!G:G,EquipmentTable_Retrofit_WY[[#This Row],[measureRetrofit_Interior_Basic]],MeasureTable_WY!A:A,\"TRUE\"),\"0\") & \", \" &\nTEXT(COUNTIFS(MeasureTable_WY!G:G,EquipmentTable_Retrofit_WY[[#This Row],[measureRetrofit_Interior_Advanced]],MeasureTable_WY!A:A,\"TRUE\"),\"0\") & \", \" &\nTEXT(COUNTIFS(MeasureTable_WY!G:G,EquipmentTable_Retrofit_WY[[#This Row],[measureRetrofit_Exterior_None]],MeasureTable_WY!A:A,\"TRUE\"),\"0\") & \", \" &\nTEXT(COUNTIFS(MeasureTable_WY!G:G,EquipmentTable_Retrofit_WY[[#This Row],[measureRetrofit_Exterior_Advanced]],MeasureTable_WY!A:A,\"TRUE\"),\"0\") & \", \" &\nTEXT(COUNTIFS(MeasureTable_WY!G:G,EquipmentTable_Retrofit_WY[[#This Row],[measureRetrofit_Street_None]],MeasureTable_WY!A:A,\"TRUE\"),\"0\") & \", \" &\nTEXT(COUNTIFS(MeasureTable_WY!G:G,EquipmentTable_Retrofit_WY[[#This Row],[measureRetrofit_Street_Advanced]],MeasureTable_WY!A:A,\"TRUE\"),\"0\") & \", \" &\nTEXT(COUNTIFS(MeasureTable_WY!G:G,EquipmentTable_Retrofit_WY[[#This Row],[measureRetrofit_SBE]],MeasureTable_WY!A:A,\"TRUE\"),\"0\")","v":"0, 0, 0, 0, 0, 0, 0, 0"}]
["Retrofit Kit","LED Retrofit Kit - Surface Mount",null,"Interior Fixture Retrofit Kit - w/out Controls - Retrofit - v2 - WY","Interior Fixture Retrofit Kit - w/ Basic Controls - Retrofit - WY","Interior Fixture Retrofit Kit - w/ Networked Lighting Controls - Retrofit - WY","Interior Fixture Retrofit Kit - w/ Advanced Networked Lighting Controls/LLLCs - Retrofit - v2 - WY","Interior Fixture Retrofit Kit - w/ Plug and Play Control Ready - Retrofit - WY","Exterior Fixture Replacement - w/ No Controls - Retrofit - WY","Exterior Fixture Replacement - w/Basic Dimming - Retrofit - WY","Exterior Fixture Replacement - w/Advanced Networked Dimming - Retrofit - WY","Streetlighting - Retrofit - v2 - WY","Streetlighting - Retrofit - v2 - WY","Streetlighting - w/ Advanced Dimming Controls - Retrofit - v2 - WY",null,null,{"$f":"TEXT(COUNTIFS(MeasureTable_WY!G:G,EquipmentTable_Retrofit_WY[[#This Row],[measureRetrofit_Interior_None]],MeasureTable_WY!A:A,\"TRUE\"),\"0\") & \", \" &\nTEXT(COUNTIFS(MeasureTable_WY!G:G,EquipmentTable_Retrofit_WY[[#This Row],[measureRetrofit_Interior_Basic]],MeasureTable_WY!A:A,\"TRUE\"),\"0\") & \", \" &\nTEXT(COUNTIFS(MeasureTable_WY!G:G,EquipmentTable_Retrofit_WY[[#This Row],[measureRetrofit_Interior_Advanced]],MeasureTable_WY!A:A,\"TRUE\"),\"0\") & \", \" &\nTEXT(COUNTIFS(MeasureTable_WY!G:G,EquipmentTable_Retrofit_WY[[#This Row],[measureRetrofit_Exterior_None]],MeasureTable_WY!A:A,\"TRUE\"),\"0\") & \", \" &\nTEXT(COUNTIFS(MeasureTable_WY!G:G,EquipmentTable_Retrofit_WY[[#This Row],[measureRetrofit_Exterior_Advanced]],MeasureTable_WY!A:A,\"TRUE\"),\"0\") & \", \" &\nTEXT(COUNTIFS(MeasureTable_WY!G:G,EquipmentTable_Retrofit_WY[[#This Row],[measureRetrofit_Street_None]],MeasureTable_WY!A:A,\"TRUE\"),\"0\") & \", \" &\nTEXT(COUNTIFS(MeasureTable_WY!G:G,EquipmentTable_Retrofit_WY[[#This Row],[measureRetrofit_Street_Advanced]],MeasureTable_WY!A:A,\"TRUE\"),\"0\") & \", \" &\nTEXT(COUNTIFS(MeasureTable_WY!G:G,EquipmentTable_Retrofit_WY[[#This Row],[measureRetrofit_SBE]],MeasureTable_WY!A:A,\"TRUE\"),\"0\")","v":"0, 0, 0, 0, 0, 0, 0, 0"}]
["Retrofit Kit","LED Retrofit Kit - Troffer",null,"Interior Fixture Retrofit Kit - w/out Controls - Retrofit - v2 - WY","Interior Fixture Retrofit Kit - w/ Basic Controls - Retrofit - WY","Interior Fixture Retrofit Kit - w/ Networked Lighting Controls - Retrofit - WY","Interior Fixture Retrofit Kit - w/ Advanced Networked Lighting Controls/LLLCs - Retrofit - v2 - WY","Interior Fixture Retrofit Kit - w/ Plug and Play Control Ready - Retrofit - WY","Exterior Fixture Replacement - w/ No Controls - Retrofit - WY","Exterior Fixture Replacement - w/Basic Dimming - Retrofit - WY","Exterior Fixture Replacement - w/Advanced Networked Dimming - Retrofit - WY","Streetlighting - Retrofit - v2 - WY","Streetlighting - Retrofit - v2 - WY","Streetlighting - w/ Advanced Dimming Controls - Retrofit - v2 - WY",null,null,{"$f":"TEXT(COUNTIFS(MeasureTable_WY!G:G,EquipmentTable_Retrofit_WY[[#This Row],[measureRetrofit_Interior_None]],MeasureTable_WY!A:A,\"TRUE\"),\"0\") & \", \" &\nTEXT(COUNTIFS(MeasureTable_WY!G:G,EquipmentTable_Retrofit_WY[[#This Row],[measureRetrofit_Interior_Basic]],MeasureTable_WY!A:A,\"TRUE\"),\"0\") & \", \" &\nTEXT(COUNTIFS(MeasureTable_WY!G:G,EquipmentTable_Retrofit_WY[[#This Row],[measureRetrofit_Interior_Advanced]],MeasureTable_WY!A:A,\"TRUE\"),\"0\") & \", \" &\nTEXT(COUNTIFS(MeasureTable_WY!G:G,EquipmentTable_Retrofit_WY[[#This Row],[measureRetrofit_Exterior_None]],MeasureTable_WY!A:A,\"TRUE\"),\"0\") & \", \" &\nTEXT(COUNTIFS(MeasureTable_WY!G:G,EquipmentTable_Retrofit_WY[[#This Row],[measureRetrofit_Exterior_Advanced]],MeasureTable_WY!A:A,\"TRUE\"),\"0\") & \", \" &\nTEXT(COUNTIFS(MeasureTable_WY!G:G,EquipmentTable_Retrofit_WY[[#This Row],[measureRetrofit_Street_None]],MeasureTable_WY!A:A,\"TRUE\"),\"0\") & \", \" &\nTEXT(COUNTIFS(MeasureTable_WY!G:G,EquipmentTable_Retrofit_WY[[#This Row],[measureRetrofit_Street_Advanced]],MeasureTable_WY!A:A,\"TRUE\"),\"0\") & \", \" &\nTEXT(COUNTIFS(MeasureTable_WY!G:G,EquipmentTable_Retrofit_WY[[#This Row],[measureRetrofit_SBE]],MeasureTable_WY!A:A,\"TRUE\"),\"0\")","v":"0, 0, 0, 0, 0, 0, 0, 0"}]
["Retrofit Kit","LED Retrofit Kit - Troffer Volumetric Kit",null,"Interior Fixture Retrofit Kit - w/out Controls - Retrofit - v2 - WY","Interior Fixture Retrofit Kit - w/ Basic Controls - Retrofit - WY","Interior Fixture Retrofit Kit - w/ Networked Lighting Controls - Retrofit - WY","Interior Fixture Retrofit Kit - w/ Advanced Networked Lighting Controls/LLLCs - Retrofit - v2 - WY","Interior Fixture Retrofit Kit - w/ Plug and Play Control Ready - Retrofit - WY","Exterior Fixture Replacement - w/ No Controls - Retrofit - WY","Exterior Fixture Replacement - w/Basic Dimming - Retrofit - WY","Exterior Fixture Replacement - w/Advanced Networked Dimming - Retrofit - WY","Streetlighting - Retrofit - v2 - WY","Streetlighting - Retrofit - v2 - WY","Streetlighting - w/ Advanced Dimming Controls - Retrofit - v2 - WY",null,null,{"$f":"TEXT(COUNTIFS(MeasureTable_WY!G:G,EquipmentTable_Retrofit_WY[[#This Row],[measureRetrofit_Interior_None]],MeasureTable_WY!A:A,\"TRUE\"),\"0\") & \", \" &\nTEXT(COUNTIFS(MeasureTable_WY!G:G,EquipmentTable_Retrofit_WY[[#This Row],[measureRetrofit_Interior_Basic]],MeasureTable_WY!A:A,\"TRUE\"),\"0\") & \", \" &\nTEXT(COUNTIFS(MeasureTable_WY!G:G,EquipmentTable_Retrofit_WY[[#This Row],[measureRetrofit_Interior_Advanced]],MeasureTable_WY!A:A,\"TRUE\"),\"0\") & \", \" &\nTEXT(COUNTIFS(MeasureTable_WY!G:G,EquipmentTable_Retrofit_WY[[#This Row],[measureRetrofit_Exterior_None]],MeasureTable_WY!A:A,\"TRUE\"),\"0\") & \", \" &\nTEXT(COUNTIFS(MeasureTable_WY!G:G,EquipmentTable_Retrofit_WY[[#This Row],[measureRetrofit_Exterior_Advanced]],MeasureTable_WY!A:A,\"TRUE\"),\"0\") & \", \" &\nTEXT(COUNTIFS(MeasureTable_WY!G:G,EquipmentTable_Retrofit_WY[[#This Row],[measureRetrofit_Street_None]],MeasureTable_WY!A:A,\"TRUE\"),\"0\") & \", \" &\nTEXT(COUNTIFS(MeasureTable_WY!G:G,EquipmentTable_Retrofit_WY[[#This Row],[measureRetrofit_Street_Advanced]],MeasureTable_WY!A:A,\"TRUE\"),\"0\") & \", \" &\nTEXT(COUNTIFS(MeasureTable_WY!G:G,EquipmentTable_Retrofit_WY[[#This Row],[measureRetrofit_SBE]],MeasureTable_WY!A:A,\"TRUE\"),\"0\")","v":"0, 0, 0, 0, 0, 0, 0, 0"}]
["Retrofit Kit","LED Retrofit Kit - Wall Pack",null,"Interior Fixture Retrofit Kit - w/out Controls - Retrofit - v2 - WY","Interior Fixture Retrofit Kit - w/ Basic Controls - Retrofit - WY","Interior Fixture Retrofit Kit - w/ Networked Lighting Controls - Retrofit - WY","Interior Fixture Retrofit Kit - w/ Advanced Networked Lighting Controls/LLLCs - Retrofit - v2 - WY","Interior Fixture Retrofit Kit - w/ Plug and Play Control Ready - Retrofit - WY","Exterior Fixture Replacement - w/ No Controls - Retrofit - WY","Exterior Fixture Replacement - w/Basic Dimming - Retrofit - WY","Exterior Fixture Replacement - w/Advanced Networked Dimming - Retrofit - WY","Streetlighting - Retrofit - v2 - WY","Streetlighting - Retrofit - v2 - WY","Streetlighting - w/ Advanced Dimming Controls - Retrofit - v2 - WY",null,null,{"$f":"TEXT(COUNTIFS(MeasureTable_WY!G:G,EquipmentTable_Retrofit_WY[[#This Row],[measureRetrofit_Interior_None]],MeasureTable_WY!A:A,\"TRUE\"),\"0\") & \", \" &\nTEXT(COUNTIFS(MeasureTable_WY!G:G,EquipmentTable_Retrofit_WY[[#This Row],[measureRetrofit_Interior_Basic]],MeasureTable_WY!A:A,\"TRUE\"),\"0\") & \", \" &\nTEXT(COUNTIFS(MeasureTable_WY!G:G,EquipmentTable_Retrofit_WY[[#This Row],[measureRetrofit_Interior_Advanced]],MeasureTable_WY!A:A,\"TRUE\"),\"0\") & \", \" &\nTEXT(COUNTIFS(MeasureTable_WY!G:G,EquipmentTable_Retrofit_WY[[#This Row],[measureRetrofit_Exterior_None]],MeasureTable_WY!A:A,\"TRUE\"),\"0\") & \", \" &\nTEXT(COUNTIFS(MeasureTable_WY!G:G,EquipmentTable_Retrofit_WY[[#This Row],[measureRetrofit_Exterior_Advanced]],MeasureTable_WY!A:A,\"TRUE\"),\"0\") & \", \" &\nTEXT(COUNTIFS(MeasureTable_WY!G:G,EquipmentTable_Retrofit_WY[[#This Row],[measureRetrofit_Street_None]],MeasureTable_WY!A:A,\"TRUE\"),\"0\") & \", \" &\nTEXT(COUNTIFS(MeasureTable_WY!G:G,EquipmentTable_Retrofit_WY[[#This Row],[measureRetrofit_Street_Advanced]],MeasureTable_WY!A:A,\"TRUE\"),\"0\") & \", \" &\nTEXT(COUNTIFS(MeasureTable_WY!G:G,EquipmentTable_Retrofit_WY[[#This Row],[measureRetrofit_SBE]],MeasureTable_WY!A:A,\"TRUE\"),\"0\")","v":"0, 0, 0, 0, 0, 0, 0, 0"}]
["Lamp Replacement","Relamp - Halogen","separate","Non-eligible fixture - Retrofit - WY","Non-eligible fixture - Retrofit - WY","Non-eligible fixture - Retrofit - WY","Non-eligible fixture - Retrofit - WY","Non-eligible fixture - Retrofit - WY","Non-eligible fixture - Retrofit - WY","Non-eligible fixture - Retrofit - WY","Non-eligible fixture - Retrofit - WY","Non-eligible fixture - Retrofit - WY","Non-eligible fixture - Retrofit - WY","Non-eligible fixture - Retrofit - WY",null,null,{"$f":"TEXT(COUNTIFS(MeasureTable_WY!G:G,EquipmentTable_Retrofit_WY[[#This Row],[measureRetrofit_Interior_None]],MeasureTable_WY!A:A,\"TRUE\"),\"0\") & \", \" &\nTEXT(COUNTIFS(MeasureTable_WY!G:G,EquipmentTable_Retrofit_WY[[#This Row],[measureRetrofit_Interior_Basic]],MeasureTable_WY!A:A,\"TRUE\"),\"0\") & \", \" &\nTEXT(COUNTIFS(MeasureTable_WY!G:G,EquipmentTable_Retrofit_WY[[#This Row],[measureRetrofit_Interior_Advanced]],MeasureTable_WY!A:A,\"TRUE\"),\"0\") & \", \" &\nTEXT(COUNTIFS(MeasureTable_WY!G:G,EquipmentTable_Retrofit_WY[[#This Row],[measureRetrofit_Exterior_None]],MeasureTable_WY!A:A,\"TRUE\"),\"0\") & \", \" &\nTEXT(COUNTIFS(MeasureTable_WY!G:G,EquipmentTable_Retrofit_WY[[#This Row],[measureRetrofit_Exterior_Advanced]],MeasureTable_WY!A:A,\"TRUE\"),\"0\") & \", \" &\nTEXT(COUNTIFS(MeasureTable_WY!G:G,EquipmentTable_Retrofit_WY[[#This Row],[measureRetrofit_Street_None]],MeasureTable_WY!A:A,\"TRUE\"),\"0\") & \", \" &\nTEXT(COUNTIFS(MeasureTable_WY!G:G,EquipmentTable_Retrofit_WY[[#This Row],[measureRetrofit_Street_Advanced]],MeasureTable_WY!A:A,\"TRUE\"),\"0\") & \", \" &\nTEXT(COUNTIFS(MeasureTable_WY!G:G,EquipmentTable_Retrofit_WY[[#This Row],[measureRetrofit_SBE]],MeasureTable_WY!A:A,\"TRUE\"),\"0\")","v":"0, 0, 0, 0, 0, 0, 0, 0"}]
["Lamp Replacement","Relamp - Incandescent","separate","Non-eligible fixture - Retrofit - WY","Non-eligible fixture - Retrofit - WY","Non-eligible fixture - Retrofit - WY","Non-eligible fixture - Retrofit - WY","Non-eligible fixture - Retrofit - WY","Non-eligible fixture - Retrofit - WY","Non-eligible fixture - Retrofit - WY","Non-eligible fixture - Retrofit - WY","Non-eligible fixture - Retrofit - WY","Non-eligible fixture - Retrofit - WY","Non-eligible fixture - Retrofit - WY",null,null,{"$f":"TEXT(COUNTIFS(MeasureTable_WY!G:G,EquipmentTable_Retrofit_WY[[#This Row],[measureRetrofit_Interior_None]],MeasureTable_WY!A:A,\"TRUE\"),\"0\") & \", \" &\nTEXT(COUNTIFS(MeasureTable_WY!G:G,EquipmentTable_Retrofit_WY[[#This Row],[measureRetrofit_Interior_Basic]],MeasureTable_WY!A:A,\"TRUE\"),\"0\") & \", \" &\nTEXT(COUNTIFS(MeasureTable_WY!G:G,EquipmentTable_Retrofit_WY[[#This Row],[measureRetrofit_Interior_Advanced]],MeasureTable_WY!A:A,\"TRUE\"),\"0\") & \", \" &\nTEXT(COUNTIFS(MeasureTable_WY!G:G,EquipmentTable_Retrofit_WY[[#This Row],[measureRetrofit_Exterior_None]],MeasureTable_WY!A:A,\"TRUE\"),\"0\") & \", \" &\nTEXT(COUNTIFS(MeasureTable_WY!G:G,EquipmentTable_Retrofit_WY[[#This Row],[measureRetrofit_Exterior_Advanced]],MeasureTable_WY!A:A,\"TRUE\"),\"0\") & \", \" &\nTEXT(COUNTIFS(MeasureTable_WY!G:G,EquipmentTable_Retrofit_WY[[#This Row],[measureRetrofit_Street_None]],MeasureTable_WY!A:A,\"TRUE\"),\"0\") & \", \" &\nTEXT(COUNTIFS(MeasureTable_WY!G:G,EquipmentTable_Retrofit_WY[[#This Row],[measureRetrofit_Street_Advanced]],MeasureTable_WY!A:A,\"TRUE\"),\"0\") & \", \" &\nTEXT(COUNTIFS(MeasureTable_WY!G:G,EquipmentTable_Retrofit_WY[[#This Row],[measureRetrofit_SBE]],MeasureTable_WY!A:A,\"TRUE\"),\"0\")","v":"0, 0, 0, 0, 0, 0, 0, 0"}]
["Lamp Replacement","Relamp - LED A-19 < 8 W, Medium Base","separate","Non-eligible fixture - Retrofit - WY","Non-eligible fixture - Retrofit - WY","Non-eligible fixture - Retrofit - WY","Non-eligible fixture - Retrofit - WY","Non-eligible fixture - Retrofit - WY","Non-eligible fixture - Retrofit - WY","Non-eligible fixture - Retrofit - WY","Non-eligible fixture - Retrofit - WY","Non-eligible fixture - Retrofit - WY","Non-eligible fixture - Retrofit - WY","Non-eligible fixture - Retrofit - WY",null,null,{"$f":"TEXT(COUNTIFS(MeasureTable_WY!G:G,EquipmentTable_Retrofit_WY[[#This Row],[measureRetrofit_Interior_None]],MeasureTable_WY!A:A,\"TRUE\"),\"0\") & \", \" &\nTEXT(COUNTIFS(MeasureTable_WY!G:G,EquipmentTable_Retrofit_WY[[#This Row],[measureRetrofit_Interior_Basic]],MeasureTable_WY!A:A,\"TRUE\"),\"0\") & \", \" &\nTEXT(COUNTIFS(MeasureTable_WY!G:G,EquipmentTable_Retrofit_WY[[#This Row],[measureRetrofit_Interior_Advanced]],MeasureTable_WY!A:A,\"TRUE\"),\"0\") & \", \" &\nTEXT(COUNTIFS(MeasureTable_WY!G:G,EquipmentTable_Retrofit_WY[[#This Row],[measureRetrofit_Exterior_None]],MeasureTable_WY!A:A,\"TRUE\"),\"0\") & \", \" &\nTEXT(COUNTIFS(MeasureTable_WY!G:G,EquipmentTable_Retrofit_WY[[#This Row],[measureRetrofit_Exterior_Advanced]],MeasureTable_WY!A:A,\"TRUE\"),\"0\") & \", \" &\nTEXT(COUNTIFS(MeasureTable_WY!G:G,EquipmentTable_Retrofit_WY[[#This Row],[measureRetrofit_Street_None]],MeasureTable_WY!A:A,\"TRUE\"),\"0\") & \", \" &\nTEXT(COUNTIFS(MeasureTable_WY!G:G,EquipmentTable_Retrofit_WY[[#This Row],[measureRetrofit_Street_Advanced]],MeasureTable_WY!A:A,\"TRUE\"),\"0\") & \", \" &\nTEXT(COUNTIFS(MeasureTable_WY!G:G,EquipmentTable_Retrofit_WY[[#This Row],[measureRetrofit_SBE]],MeasureTable_WY!A:A,\"TRUE\"),\"0\")","v":"0, 0, 0, 0, 0, 0, 0, 0"}]
["Lamp Replacement","Relamp - LED A-19 >= 8 W, Medium Base","separate","Non-eligible fixture - Retrofit - WY","Non-eligible fixture - Retrofit - WY","Non-eligible fixture - Retrofit - WY","Non-eligible fixture - Retrofit - WY","Non-eligible fixture - Retrofit - WY","Non-eligible fixture - Retrofit - WY","Non-eligible fixture - Retrofit - WY","Non-eligible fixture - Retrofit - WY","Non-eligible fixture - Retrofit - WY","Non-eligible fixture - Retrofit - WY","Non-eligible fixture - Retrofit - WY",null,null,{"$f":"TEXT(COUNTIFS(MeasureTable_WY!G:G,EquipmentTable_Retrofit_WY[[#This Row],[measureRetrofit_Interior_None]],MeasureTable_WY!A:A,\"TRUE\"),\"0\") & \", \" &\nTEXT(COUNTIFS(MeasureTable_WY!G:G,EquipmentTable_Retrofit_WY[[#This Row],[measureRetrofit_Interior_Basic]],MeasureTable_WY!A:A,\"TRUE\"),\"0\") & \", \" &\nTEXT(COUNTIFS(MeasureTable_WY!G:G,EquipmentTable_Retrofit_WY[[#This Row],[measureRetrofit_Interior_Advanced]],MeasureTable_WY!A:A,\"TRUE\"),\"0\") & \", \" &\nTEXT(COUNTIFS(MeasureTable_WY!G:G,EquipmentTable_Retrofit_WY[[#This Row],[measureRetrofit_Exterior_None]],MeasureTable_WY!A:A,\"TRUE\"),\"0\") & \", \" &\nTEXT(COUNTIFS(MeasureTable_WY!G:G,EquipmentTable_Retrofit_WY[[#This Row],[measureRetrofit_Exterior_Advanced]],MeasureTable_WY!A:A,\"TRUE\"),\"0\") & \", \" &\nTEXT(COUNTIFS(MeasureTable_WY!G:G,EquipmentTable_Retrofit_WY[[#This Row],[measureRetrofit_Street_None]],MeasureTable_WY!A:A,\"TRUE\"),\"0\") & \", \" &\nTEXT(COUNTIFS(MeasureTable_WY!G:G,EquipmentTable_Retrofit_WY[[#This Row],[measureRetrofit_Street_Advanced]],MeasureTable_WY!A:A,\"TRUE\"),\"0\") & \", \" &\nTEXT(COUNTIFS(MeasureTable_WY!G:G,EquipmentTable_Retrofit_WY[[#This Row],[measureRetrofit_SBE]],MeasureTable_WY!A:A,\"TRUE\"),\"0\")","v":"0, 0, 0, 0, 0, 0, 0, 0"}]
["Lamp Replacement","Relamp - LED A-21 >= 12 W, Medium Base","separate","Non-eligible fixture - Retrofit - WY","Non-eligible fixture - Retrofit - WY","Non-eligible fixture - Retrofit - WY","Non-eligible fixture - Retrofit - WY","Non-eligible fixture - Retrofit - WY","Non-eligible fixture - Retrofit - WY","Non-eligible fixture - Retrofit - WY","Non-eligible fixture - Retrofit - WY","Non-eligible fixture - Retrofit - WY","Non-eligible fixture - Retrofit - WY","Non-eligible fixture - Retrofit - WY",null,null,{"$f":"TEXT(COUNTIFS(MeasureTable_WY!G:G,EquipmentTable_Retrofit_WY[[#This Row],[measureRetrofit_Interior_None]],MeasureTable_WY!A:A,\"TRUE\"),\"0\") & \", \" &\nTEXT(COUNTIFS(MeasureTable_WY!G:G,EquipmentTable_Retrofit_WY[[#This Row],[measureRetrofit_Interior_Basic]],MeasureTable_WY!A:A,\"TRUE\"),\"0\") & \", \" &\nTEXT(COUNTIFS(MeasureTable_WY!G:G,EquipmentTable_Retrofit_WY[[#This Row],[measureRetrofit_Interior_Advanced]],MeasureTable_WY!A:A,\"TRUE\"),\"0\") & \", \" &\nTEXT(COUNTIFS(MeasureTable_WY!G:G,EquipmentTable_Retrofit_WY[[#This Row],[measureRetrofit_Exterior_None]],MeasureTable_WY!A:A,\"TRUE\"),\"0\") & \", \" &\nTEXT(COUNTIFS(MeasureTable_WY!G:G,EquipmentTable_Retrofit_WY[[#This Row],[measureRetrofit_Exterior_Advanced]],MeasureTable_WY!A:A,\"TRUE\"),\"0\") & \", \" &\nTEXT(COUNTIFS(MeasureTable_WY!G:G,EquipmentTable_Retrofit_WY[[#This Row],[measureRetrofit_Street_None]],MeasureTable_WY!A:A,\"TRUE\"),\"0\") & \", \" &\nTEXT(COUNTIFS(MeasureTable_WY!G:G,EquipmentTable_Retrofit_WY[[#This Row],[measureRetrofit_Street_Advanced]],MeasureTable_WY!A:A,\"TRUE\"),\"0\") & \", \" &\nTEXT(COUNTIFS(MeasureTable_WY!G:G,EquipmentTable_Retrofit_WY[[#This Row],[measureRetrofit_SBE]],MeasureTable_WY!A:A,\"TRUE\"),\"0\")","v":"0, 0, 0, 0, 0, 0, 0, 0"}]
["Lamp Replacement","Relamp - LED BR Reflector","separate","Non-eligible fixture - Retrofit - WY","Non-eligible fixture - Retrofit - WY","Non-eligible fixture - Retrofit - WY","Non-eligible fixture - Retrofit - WY","Non-eligible fixture - Retrofit - WY","Non-eligible fixture - Retrofit - WY","Non-eligible fixture - Retrofit - WY","Non-eligible fixture - Retrofit - WY","Non-eligible fixture - Retrofit - WY","Non-eligible fixture - Retrofit - WY","Non-eligible fixture - Retrofit - WY",null,null,{"$f":"TEXT(COUNTIFS(MeasureTable_WY!G:G,EquipmentTable_Retrofit_WY[[#This Row],[measureRetrofit_Interior_None]],MeasureTable_WY!A:A,\"TRUE\"),\"0\") & \", \" &\nTEXT(COUNTIFS(MeasureTable_WY!G:G,EquipmentTable_Retrofit_WY[[#This Row],[measureRetrofit_Interior_Basic]],MeasureTable_WY!A:A,\"TRUE\"),\"0\") & \", \" &\nTEXT(COUNTIFS(MeasureTable_WY!G:G,EquipmentTable_Retrofit_WY[[#This Row],[measureRetrofit_Interior_Advanced]],MeasureTable_WY!A:A,\"TRUE\"),\"0\") & \", \" &\nTEXT(COUNTIFS(MeasureTable_WY!G:G,EquipmentTable_Retrofit_WY[[#This Row],[measureRetrofit_Exterior_None]],MeasureTable_WY!A:A,\"TRUE\"),\"0\") & \", \" &\nTEXT(COUNTIFS(MeasureTable_WY!G:G,EquipmentTable_Retrofit_WY[[#This Row],[measureRetrofit_Exterior_Advanced]],MeasureTable_WY!A:A,\"TRUE\"),\"0\") & \", \" &\nTEXT(COUNTIFS(MeasureTable_WY!G:G,EquipmentTable_Retrofit_WY[[#This Row],[measureRetrofit_Street_None]],MeasureTable_WY!A:A,\"TRUE\"),\"0\") & \", \" &\nTEXT(COUNTIFS(MeasureTable_WY!G:G,EquipmentTable_Retrofit_WY[[#This Row],[measureRetrofit_Street_Advanced]],MeasureTable_WY!A:A,\"TRUE\"),\"0\") & \", \" &\nTEXT(COUNTIFS(MeasureTable_WY!G:G,EquipmentTable_Retrofit_WY[[#This Row],[measureRetrofit_SBE]],MeasureTable_WY!A:A,\"TRUE\"),\"0\")","v":"0, 0, 0, 0, 0, 0, 0, 0"}]
["Lamp Replacement","Relamp - LED Decorative","separate","Non-eligible fixture - Retrofit - WY","Non-eligible fixture - Retrofit - WY","Non-eligible fixture - Retrofit - WY","Non-eligible fixture - Retrofit - WY","Non-eligible fixture - Retrofit - WY","Non-eligible fixture - Retrofit - WY","Non-eligible fixture - Retrofit - WY","Non-eligible fixture - Retrofit - WY","Non-eligible fixture - Retrofit - WY","Non-eligible fixture - Retrofit - WY","Non-eligible fixture - Retrofit - WY",null,null,{"$f":"TEXT(COUNTIFS(MeasureTable_WY!G:G,EquipmentTable_Retrofit_WY[[#This Row],[measureRetrofit_Interior_None]],MeasureTable_WY!A:A,\"TRUE\"),\"0\") & \", \" &\nTEXT(COUNTIFS(MeasureTable_WY!G:G,EquipmentTable_Retrofit_WY[[#This Row],[measureRetrofit_Interior_Basic]],MeasureTable_WY!A:A,\"TRUE\"),\"0\") & \", \" &\nTEXT(COUNTIFS(MeasureTable_WY!G:G,EquipmentTable_Retrofit_WY[[#This Row],[measureRetrofit_Interior_Advanced]],MeasureTable_WY!A:A,\"TRUE\"),\"0\") & \", \" &\nTEXT(COUNTIFS(MeasureTable_WY!G:G,EquipmentTable_Retrofit_WY[[#This Row],[measureRetrofit_Exterior_None]],MeasureTable_WY!A:A,\"TRUE\"),\"0\") & \", \" &\nTEXT(COUNTIFS(MeasureTable_WY!G:G,EquipmentTable_Retrofit_WY[[#This Row],[measureRetrofit_Exterior_Advanced]],MeasureTable_WY!A:A,\"TRUE\"),\"0\") & \", \" &\nTEXT(COUNTIFS(MeasureTable_WY!G:G,EquipmentTable_Retrofit_WY[[#This Row],[measureRetrofit_Street_None]],MeasureTable_WY!A:A,\"TRUE\"),\"0\") & \", \" &\nTEXT(COUNTIFS(MeasureTable_WY!G:G,EquipmentTable_Retrofit_WY[[#This Row],[measureRetrofit_Street_Advanced]],MeasureTable_WY!A:A,\"TRUE\"),\"0\") & \", \" &\nTEXT(COUNTIFS(MeasureTable_WY!G:G,EquipmentTable_Retrofit_WY[[#This Row],[measureRetrofit_SBE]],MeasureTable_WY!A:A,\"TRUE\"),\"0\")","v":"0, 0, 0, 0, 0, 0, 0, 0"}]
["Lamp Replacement","Relamp - LED HID Replacement < 40W","separate","Non-eligible fixture - Retrofit - WY","Non-eligible fixture - Retrofit - WY","Non-eligible fixture - Retrofit - WY","Non-eligible fixture - Retrofit - WY","Non-eligible fixture - Retrofit - WY","Non-eligible fixture - Retrofit - WY","Non-eligible fixture - Retrofit - WY","Non-eligible fixture - Retrofit - WY","Non-eligible fixture - Retrofit - WY","Non-eligible fixture - Retrofit - WY","Non-eligible fixture - Retrofit - WY",null,null,{"$f":"TEXT(COUNTIFS(MeasureTable_WY!G:G,EquipmentTable_Retrofit_WY[[#This Row],[measureRetrofit_Interior_None]],MeasureTable_WY!A:A,\"TRUE\"),\"0\") & \", \" &\nTEXT(COUNTIFS(MeasureTable_WY!G:G,EquipmentTable_Retrofit_WY[[#This Row],[measureRetrofit_Interior_Basic]],MeasureTable_WY!A:A,\"TRUE\"),\"0\") & \", \" &\nTEXT(COUNTIFS(MeasureTable_WY!G:G,EquipmentTable_Retrofit_WY[[#This Row],[measureRetrofit_Interior_Advanced]],MeasureTable_WY!A:A,\"TRUE\"),\"0\") & \", \" &\nTEXT(COUNTIFS(MeasureTable_WY!G:G,EquipmentTable_Retrofit_WY[[#This Row],[measureRetrofit_Exterior_None]],MeasureTable_WY!A:A,\"TRUE\"),\"0\") & \", \" &\nTEXT(COUNTIFS(MeasureTable_WY!G:G,EquipmentTable_Retrofit_WY[[#This Row],[measureRetrofit_Exterior_Advanced]],MeasureTable_WY!A:A,\"TRUE\"),\"0\") & \", \" &\nTEXT(COUNTIFS(MeasureTable_WY!G:G,EquipmentTable_Retrofit_WY[[#This Row],[measureRetrofit_Street_None]],MeasureTable_WY!A:A,\"TRUE\"),\"0\") & \", \" &\nTEXT(COUNTIFS(MeasureTable_WY!G:G,EquipmentTable_Retrofit_WY[[#This Row],[measureRetrofit_Street_Advanced]],MeasureTable_WY!A:A,\"TRUE\"),\"0\") & \", \" &\nTEXT(COUNTIFS(MeasureTable_WY!G:G,EquipmentTable_Retrofit_WY[[#This Row],[measureRetrofit_SBE]],MeasureTable_WY!A:A,\"TRUE\"),\"0\")","v":"0, 0, 0, 0, 0, 0, 0, 0"}]
["Lamp Replacement","Relamp - LED HID Replacement >= 140W","separate","Non-eligible fixture - Retrofit - WY","Non-eligible fixture - Retrofit - WY","Non-eligible fixture - Retrofit - WY","Non-eligible fixture - Retrofit - WY","Non-eligible fixture - Retrofit - WY","Non-eligible fixture - Retrofit - WY","Non-eligible fixture - Retrofit - WY","Non-eligible fixture - Retrofit - WY","Non-eligible fixture - Retrofit - WY","Non-eligible fixture - Retrofit - WY","Non-eligible fixture - Retrofit - WY",null,null,{"$f":"TEXT(COUNTIFS(MeasureTable_WY!G:G,EquipmentTable_Retrofit_WY[[#This Row],[measureRetrofit_Interior_None]],MeasureTable_WY!A:A,\"TRUE\"),\"0\") & \", \" &\nTEXT(COUNTIFS(MeasureTable_WY!G:G,EquipmentTable_Retrofit_WY[[#This Row],[measureRetrofit_Interior_Basic]],MeasureTable_WY!A:A,\"TRUE\"),\"0\") & \", \" &\nTEXT(COUNTIFS(MeasureTable_WY!G:G,EquipmentTable_Retrofit_WY[[#This Row],[measureRetrofit_Interior_Advanced]],MeasureTable_WY!A:A,\"TRUE\"),\"0\") & \", \" &\nTEXT(COUNTIFS(MeasureTable_WY!G:G,EquipmentTable_Retrofit_WY[[#This Row],[measureRetrofit_Exterior_None]],MeasureTable_WY!A:A,\"TRUE\"),\"0\") & \", \" &\nTEXT(COUNTIFS(MeasureTable_WY!G:G,EquipmentTable_Retrofit_WY[[#This Row],[measureRetrofit_Exterior_Advanced]],MeasureTable_WY!A:A,\"TRUE\"),\"0\") & \", \" &\nTEXT(COUNTIFS(MeasureTable_WY!G:G,EquipmentTable_Retrofit_WY[[#This Row],[measureRetrofit_Street_None]],MeasureTable_WY!A:A,\"TRUE\"),\"0\") & \", \" &\nTEXT(COUNTIFS(MeasureTable_WY!G:G,EquipmentTable_Retrofit_WY[[#This Row],[measureRetrofit_Street_Advanced]],MeasureTable_WY!A:A,\"TRUE\"),\"0\") & \", \" &\nTEXT(COUNTIFS(MeasureTable_WY!G:G,EquipmentTable_Retrofit_WY[[#This Row],[measureRetrofit_SBE]],MeasureTable_WY!A:A,\"TRUE\"),\"0\")","v":"0, 0, 0, 0, 0, 0, 0, 0"}]
["Lamp Replacement","Relamp - LED HID Replacement >= 40 and < 70W","separate","Non-eligible fixture - Retrofit - WY","Non-eligible fixture - Retrofit - WY","Non-eligible fixture - Retrofit - WY","Non-eligible fixture - Retrofit - WY","Non-eligible fixture - Retrofit - WY","Non-eligible fixture - Retrofit - WY","Non-eligible fixture - Retrofit - WY","Non-eligible fixture - Retrofit - WY","Non-eligible fixture - Retrofit - WY","Non-eligible fixture - Retrofit - WY","Non-eligible fixture - Retrofit - WY",null,null,{"$f":"TEXT(COUNTIFS(MeasureTable_WY!G:G,EquipmentTable_Retrofit_WY[[#This Row],[measureRetrofit_Interior_None]],MeasureTable_WY!A:A,\"TRUE\"),\"0\") & \", \" &\nTEXT(COUNTIFS(MeasureTable_WY!G:G,EquipmentTable_Retrofit_WY[[#This Row],[measureRetrofit_Interior_Basic]],MeasureTable_WY!A:A,\"TRUE\"),\"0\") & \", \" &\nTEXT(COUNTIFS(MeasureTable_WY!G:G,EquipmentTable_Retrofit_WY[[#This Row],[measureRetrofit_Interior_Advanced]],MeasureTable_WY!A:A,\"TRUE\"),\"0\") & \", \" &\nTEXT(COUNTIFS(MeasureTable_WY!G:G,EquipmentTable_Retrofit_WY[[#This Row],[measureRetrofit_Exterior_None]],MeasureTable_WY!A:A,\"TRUE\"),\"0\") & \", \" &\nTEXT(COUNTIFS(MeasureTable_WY!G:G,EquipmentTable_Retrofit_WY[[#This Row],[measureRetrofit_Exterior_Advanced]],MeasureTable_WY!A:A,\"TRUE\"),\"0\") & \", \" &\nTEXT(COUNTIFS(MeasureTable_WY!G:G,EquipmentTable_Retrofit_WY[[#This Row],[measureRetrofit_Street_None]],MeasureTable_WY!A:A,\"TRUE\"),\"0\") & \", \" &\nTEXT(COUNTIFS(MeasureTable_WY!G:G,EquipmentTable_Retrofit_WY[[#This Row],[measureRetrofit_Street_Advanced]],MeasureTable_WY!A:A,\"TRUE\"),\"0\") & \", \" &\nTEXT(COUNTIFS(MeasureTable_WY!G:G,EquipmentTable_Retrofit_WY[[#This Row],[measureRetrofit_SBE]],MeasureTable_WY!A:A,\"TRUE\"),\"0\")","v":"0, 0, 0, 0, 0, 0, 0, 0"}]
["Lamp Replacement","Relamp - LED HID Replacement >= 70 and < 140W","separate","Non-eligible fixture - Retrofit - WY","Non-eligible fixture - Retrofit - WY","Non-eligible fixture - Retrofit - WY","Non-eligible fixture - Retrofit - WY","Non-eligible fixture - Retrofit - WY","Non-eligible fixture - Retrofit - WY","Non-eligible fixture - Retrofit - WY","Non-eligible fixture - Retrofit - WY","Non-eligible fixture - Retrofit - WY","Non-eligible fixture - Retrofit - WY","Non-eligible fixture - Retrofit - WY",null,null,{"$f":"TEXT(COUNTIFS(MeasureTable_WY!G:G,EquipmentTable_Retrofit_WY[[#This Row],[measureRetrofit_Interior_None]],MeasureTable_WY!A:A,\"TRUE\"),\"0\") & \", \" &\nTEXT(COUNTIFS(MeasureTable_WY!G:G,EquipmentTable_Retrofit_WY[[#This Row],[measureRetrofit_Interior_Basic]],MeasureTable_WY!A:A,\"TRUE\"),\"0\") & \", \" &\nTEXT(COUNTIFS(MeasureTable_WY!G:G,EquipmentTable_Retrofit_WY[[#This Row],[measureRetrofit_Interior_Advanced]],MeasureTable_WY!A:A,\"TRUE\"),\"0\") & \", \" &\nTEXT(COUNTIFS(MeasureTable_WY!G:G,EquipmentTable_Retrofit_WY[[#This Row],[measureRetrofit_Exterior_None]],MeasureTable_WY!A:A,\"TRUE\"),\"0\") & \", \" &\nTEXT(COUNTIFS(MeasureTable_WY!G:G,EquipmentTable_Retrofit_WY[[#This Row],[measureRetrofit_Exterior_Advanced]],MeasureTable_WY!A:A,\"TRUE\"),\"0\") & \", \" &\nTEXT(COUNTIFS(MeasureTable_WY!G:G,EquipmentTable_Retrofit_WY[[#This Row],[measureRetrofit_Street_None]],MeasureTable_WY!A:A,\"TRUE\"),\"0\") & \", \" &\nTEXT(COUNTIFS(MeasureTable_WY!G:G,EquipmentTable_Retrofit_WY[[#This Row],[measureRetrofit_Street_Advanced]],MeasureTable_WY!A:A,\"TRUE\"),\"0\") & \", \" &\nTEXT(COUNTIFS(MeasureTable_WY!G:G,EquipmentTable_Retrofit_WY[[#This Row],[measureRetrofit_SBE]],MeasureTable_WY!A:A,\"TRUE\"),\"0\")","v":"0, 0, 0, 0, 0, 0, 0, 0"}]
["Lamp Replacement","Relamp - LED Message Center Lamps","separate","Non-eligible fixture - Retrofit - WY","Non-eligible fixture - Retrofit - WY","Non-eligible fixture - Retrofit - WY","Non-eligible fixture - Retrofit - WY","Non-eligible fixture - Retrofit - WY","Non-eligible fixture - Retrofit - WY","Non-eligible fixture - Retrofit - WY","Non-eligible fixture - Retrofit - WY","Non-eligible fixture - Retrofit - WY","Non-eligible fixture - Retrofit - WY","Non-eligible fixture - Retrofit - WY",null,null,{"$f":"TEXT(COUNTIFS(MeasureTable_WY!G:G,EquipmentTable_Retrofit_WY[[#This Row],[measureRetrofit_Interior_None]],MeasureTable_WY!A:A,\"TRUE\"),\"0\") & \", \" &\nTEXT(COUNTIFS(MeasureTable_WY!G:G,EquipmentTable_Retrofit_WY[[#This Row],[measureRetrofit_Interior_Basic]],MeasureTable_WY!A:A,\"TRUE\"),\"0\") & \", \" &\nTEXT(COUNTIFS(MeasureTable_WY!G:G,EquipmentTable_Retrofit_WY[[#This Row],[measureRetrofit_Interior_Advanced]],MeasureTable_WY!A:A,\"TRUE\"),\"0\") & \", \" &\nTEXT(COUNTIFS(MeasureTable_WY!G:G,EquipmentTable_Retrofit_WY[[#This Row],[measureRetrofit_Exterior_None]],MeasureTable_WY!A:A,\"TRUE\"),\"0\") & \", \" &\nTEXT(COUNTIFS(MeasureTable_WY!G:G,EquipmentTable_Retrofit_WY[[#This Row],[measureRetrofit_Exterior_Advanced]],MeasureTable_WY!A:A,\"TRUE\"),\"0\") & \", \" &\nTEXT(COUNTIFS(MeasureTable_WY!G:G,EquipmentTable_Retrofit_WY[[#This Row],[measureRetrofit_Street_None]],MeasureTable_WY!A:A,\"TRUE\"),\"0\") & \", \" &\nTEXT(COUNTIFS(MeasureTable_WY!G:G,EquipmentTable_Retrofit_WY[[#This Row],[measureRetrofit_Street_Advanced]],MeasureTable_WY!A:A,\"TRUE\"),\"0\") & \", \" &\nTEXT(COUNTIFS(MeasureTable_WY!G:G,EquipmentTable_Retrofit_WY[[#This Row],[measureRetrofit_SBE]],MeasureTable_WY!A:A,\"TRUE\"),\"0\")","v":"0, 0, 0, 0, 0, 0, 0, 0"}]
["Lamp Replacement","Relamp - LED MR16 Reflector","separate","Non-eligible fixture - Retrofit - WY","Non-eligible fixture - Retrofit - WY","Non-eligible fixture - Retrofit - WY","Non-eligible fixture - Retrofit - WY","Non-eligible fixture - Retrofit - WY","Non-eligible fixture - Retrofit - WY","Non-eligible fixture - Retrofit - WY","Non-eligible fixture - Retrofit - WY","Non-eligible fixture - Retrofit - WY","Non-eligible fixture - Retrofit - WY","Non-eligible fixture - Retrofit - WY",null,null,{"$f":"TEXT(COUNTIFS(MeasureTable_WY!G:G,EquipmentTable_Retrofit_WY[[#This Row],[measureRetrofit_Interior_None]],MeasureTable_WY!A:A,\"TRUE\"),\"0\") & \", \" &\nTEXT(COUNTIFS(MeasureTable_WY!G:G,EquipmentTable_Retrofit_WY[[#This Row],[measureRetrofit_Interior_Basic]],MeasureTable_WY!A:A,\"TRUE\"),\"0\") & \", \" &\nTEXT(COUNTIFS(MeasureTable_WY!G:G,EquipmentTable_Retrofit_WY[[#This Row],[measureRetrofit_Interior_Advanced]],MeasureTable_WY!A:A,\"TRUE\"),\"0\") & \", \" &\nTEXT(COUNTIFS(MeasureTable_WY!G:G,EquipmentTable_Retrofit_WY[[#This Row],[measureRetrofit_Exterior_None]],MeasureTable_WY!A:A,\"TRUE\"),\"0\") & \", \" &\nTEXT(COUNTIFS(MeasureTable_WY!G:G,EquipmentTable_Retrofit_WY[[#This Row],[measureRetrofit_Exterior_Advanced]],MeasureTable_WY!A:A,\"TRUE\"),\"0\") & \", \" &\nTEXT(COUNTIFS(MeasureTable_WY!G:G,EquipmentTable_Retrofit_WY[[#This Row],[measureRetrofit_Street_None]],MeasureTable_WY!A:A,\"TRUE\"),\"0\") & \", \" &\nTEXT(COUNTIFS(MeasureTable_WY!G:G,EquipmentTable_Retrofit_WY[[#This Row],[measureRetrofit_Street_Advanced]],MeasureTable_WY!A:A,\"TRUE\"),\"0\") & \", \" &\nTEXT(COUNTIFS(MeasureTable_WY!G:G,EquipmentTable_Retrofit_WY[[#This Row],[measureRetrofit_SBE]],MeasureTable_WY!A:A,\"TRUE\"),\"0\")","v":"0, 0, 0, 0, 0, 0, 0, 0"}]
["Lamp Replacement","Relamp - LED PAR Reflector","separate","Non-eligible fixture - Retrofit - WY","Non-eligible fixture - Retrofit - WY","Non-eligible fixture - Retrofit - WY","Non-eligible fixture - Retrofit - WY","Non-eligible fixture - Retrofit - WY","Non-eligible fixture - Retrofit - WY","Non-eligible fixture - Retrofit - WY","Non-eligible fixture - Retrofit - WY","Non-eligible fixture - Retrofit - WY","Non-eligible fixture - Retrofit - WY","Non-eligible fixture - Retrofit - WY",null,null,{"$f":"TEXT(COUNTIFS(MeasureTable_WY!G:G,EquipmentTable_Retrofit_WY[[#This Row],[measureRetrofit_Interior_None]],MeasureTable_WY!A:A,\"TRUE\"),\"0\") & \", \" &\nTEXT(COUNTIFS(MeasureTable_WY!G:G,EquipmentTable_Retrofit_WY[[#This Row],[measureRetrofit_Interior_Basic]],MeasureTable_WY!A:A,\"TRUE\"),\"0\") & \", \" &\nTEXT(COUNTIFS(MeasureTable_WY!G:G,EquipmentTable_Retrofit_WY[[#This Row],[measureRetrofit_Interior_Advanced]],MeasureTable_WY!A:A,\"TRUE\"),\"0\") & \", \" &\nTEXT(COUNTIFS(MeasureTable_WY!G:G,EquipmentTable_Retrofit_WY[[#This Row],[measureRetrofit_Exterior_None]],MeasureTable_WY!A:A,\"TRUE\"),\"0\") & \", \" &\nTEXT(COUNTIFS(MeasureTable_WY!G:G,EquipmentTable_Retrofit_WY[[#This Row],[measureRetrofit_Exterior_Advanced]],MeasureTable_WY!A:A,\"TRUE\"),\"0\") & \", \" &\nTEXT(COUNTIFS(MeasureTable_WY!G:G,EquipmentTable_Retrofit_WY[[#This Row],[measureRetrofit_Street_None]],MeasureTable_WY!A:A,\"TRUE\"),\"0\") & \", \" &\nTEXT(COUNTIFS(MeasureTable_WY!G:G,EquipmentTable_Retrofit_WY[[#This Row],[measureRetrofit_Street_Advanced]],MeasureTable_WY!A:A,\"TRUE\"),\"0\") & \", \" &\nTEXT(COUNTIFS(MeasureTable_WY!G:G,EquipmentTable_Retrofit_WY[[#This Row],[measureRetrofit_SBE]],MeasureTable_WY!A:A,\"TRUE\"),\"0\")","v":"0, 0, 0, 0, 0, 0, 0, 0"}]
["Lamp Replacement","Relamp - LED PLC Pin-based < 10W","separate","Non-eligible fixture - Retrofit - WY","Non-eligible fixture - Retrofit - WY","Non-eligible fixture - Retrofit - WY","Non-eligible fixture - Retrofit - WY","Non-eligible fixture - Retrofit - WY","Non-eligible fixture - Retrofit - WY","Non-eligible fixture - Retrofit - WY","Non-eligible fixture - Retrofit - WY","Non-eligible fixture - Retrofit - WY","Non-eligible fixture - Retrofit - WY","Non-eligible fixture - Retrofit - WY",null,null,{"$f":"TEXT(COUNTIFS(MeasureTable_WY!G:G,EquipmentTable_Retrofit_WY[[#This Row],[measureRetrofit_Interior_None]],MeasureTable_WY!A:A,\"TRUE\"),\"0\") & \", \" &\nTEXT(COUNTIFS(MeasureTable_WY!G:G,EquipmentTable_Retrofit_WY[[#This Row],[measureRetrofit_Interior_Basic]],MeasureTable_WY!A:A,\"TRUE\"),\"0\") & \", \" &\nTEXT(COUNTIFS(MeasureTable_WY!G:G,EquipmentTable_Retrofit_WY[[#This Row],[measureRetrofit_Interior_Advanced]],MeasureTable_WY!A:A,\"TRUE\"),\"0\") & \", \" &\nTEXT(COUNTIFS(MeasureTable_WY!G:G,EquipmentTable_Retrofit_WY[[#This Row],[measureRetrofit_Exterior_None]],MeasureTable_WY!A:A,\"TRUE\"),\"0\") & \", \" &\nTEXT(COUNTIFS(MeasureTable_WY!G:G,EquipmentTable_Retrofit_WY[[#This Row],[measureRetrofit_Exterior_Advanced]],MeasureTable_WY!A:A,\"TRUE\"),\"0\") & \", \" &\nTEXT(COUNTIFS(MeasureTable_WY!G:G,EquipmentTable_Retrofit_WY[[#This Row],[measureRetrofit_Street_None]],MeasureTable_WY!A:A,\"TRUE\"),\"0\") & \", \" &\nTEXT(COUNTIFS(MeasureTable_WY!G:G,EquipmentTable_Retrofit_WY[[#This Row],[measureRetrofit_Street_Advanced]],MeasureTable_WY!A:A,\"TRUE\"),\"0\") & \", \" &\nTEXT(COUNTIFS(MeasureTable_WY!G:G,EquipmentTable_Retrofit_WY[[#This Row],[measureRetrofit_SBE]],MeasureTable_WY!A:A,\"TRUE\"),\"0\")","v":"0, 0, 0, 0, 0, 0, 0, 0"}]
["Lamp Replacement","Relamp - LED PLC Pin-based >= 10W","separate","Non-eligible fixture - Retrofit - WY","Non-eligible fixture - Retrofit - WY","Non-eligible fixture - Retrofit - WY","Non-eligible fixture - Retrofit - WY","Non-eligible fixture - Retrofit - WY","Non-eligible fixture - Retrofit - WY","Non-eligible fixture - Retrofit - WY","Non-eligible fixture - Retrofit - WY","Non-eligible fixture - Retrofit - WY","Non-eligible fixture - Retrofit - WY","Non-eligible fixture - Retrofit - WY",null,null,{"$f":"TEXT(COUNTIFS(MeasureTable_WY!G:G,EquipmentTable_Retrofit_WY[[#This Row],[measureRetrofit_Interior_None]],MeasureTable_WY!A:A,\"TRUE\"),\"0\") & \", \" &\nTEXT(COUNTIFS(MeasureTable_WY!G:G,EquipmentTable_Retrofit_WY[[#This Row],[measureRetrofit_Interior_Basic]],MeasureTable_WY!A:A,\"TRUE\"),\"0\") & \", \" &\nTEXT(COUNTIFS(MeasureTable_WY!G:G,EquipmentTable_Retrofit_WY[[#This Row],[measureRetrofit_Interior_Advanced]],MeasureTable_WY!A:A,\"TRUE\"),\"0\") & \", \" &\nTEXT(COUNTIFS(MeasureTable_WY!G:G,EquipmentTable_Retrofit_WY[[#This Row],[measureRetrofit_Exterior_None]],MeasureTable_WY!A:A,\"TRUE\"),\"0\") & \", \" &\nTEXT(COUNTIFS(MeasureTable_WY!G:G,EquipmentTable_Retrofit_WY[[#This Row],[measureRetrofit_Exterior_Advanced]],MeasureTable_WY!A:A,\"TRUE\"),\"0\") & \", \" &\nTEXT(COUNTIFS(MeasureTable_WY!G:G,EquipmentTable_Retrofit_WY[[#This Row],[measureRetrofit_Street_None]],MeasureTable_WY!A:A,\"TRUE\"),\"0\") & \", \" &\nTEXT(COUNTIFS(MeasureTable_WY!G:G,EquipmentTable_Retrofit_WY[[#This Row],[measureRetrofit_Street_Advanced]],MeasureTable_WY!A:A,\"TRUE\"),\"0\") & \", \" &\nTEXT(COUNTIFS(MeasureTable_WY!G:G,EquipmentTable_Retrofit_WY[[#This Row],[measureRetrofit_SBE]],MeasureTable_WY!A:A,\"TRUE\"),\"0\")","v":"0, 0, 0, 0, 0, 0, 0, 0"}]
["Lamp Replacement","Relamp - LED PLL Pin-based","separate","Non-eligible fixture - Retrofit - WY","Non-eligible fixture - Retrofit - WY","Non-eligible fixture - Retrofit - WY","Non-eligible fixture - Retrofit - WY","Non-eligible fixture - Retrofit - WY","Non-eligible fixture - Retrofit - WY","Non-eligible fixture - Retrofit - WY","Non-eligible fixture - Retrofit - WY","Non-eligible fixture - Retrofit - WY","Non-eligible fixture - Retrofit - WY","Non-eligible fixture - Retrofit - WY",null,null,{"$f":"TEXT(COUNTIFS(MeasureTable_WY!G:G,EquipmentTable_Retrofit_WY[[#This Row],[measureRetrofit_Interior_None]],MeasureTable_WY!A:A,\"TRUE\"),\"0\") & \", \" &\nTEXT(COUNTIFS(MeasureTable_WY!G:G,EquipmentTable_Retrofit_WY[[#This Row],[measureRetrofit_Interior_Basic]],MeasureTable_WY!A:A,\"TRUE\"),\"0\") & \", \" &\nTEXT(COUNTIFS(MeasureTable_WY!G:G,EquipmentTable_Retrofit_WY[[#This Row],[measureRetrofit_Interior_Advanced]],MeasureTable_WY!A:A,\"TRUE\"),\"0\") & \", \" &\nTEXT(COUNTIFS(MeasureTable_WY!G:G,EquipmentTable_Retrofit_WY[[#This Row],[measureRetrofit_Exterior_None]],MeasureTable_WY!A:A,\"TRUE\"),\"0\") & \", \" &\nTEXT(COUNTIFS(MeasureTable_WY!G:G,EquipmentTable_Retrofit_WY[[#This Row],[measureRetrofit_Exterior_Advanced]],MeasureTable_WY!A:A,\"TRUE\"),\"0\") & \", \" &\nTEXT(COUNTIFS(MeasureTable_WY!G:G,EquipmentTable_Retrofit_WY[[#This Row],[measureRetrofit_Street_None]],MeasureTable_WY!A:A,\"TRUE\"),\"0\") & \", \" &\nTEXT(COUNTIFS(MeasureTable_WY!G:G,EquipmentTable_Retrofit_WY[[#This Row],[measureRetrofit_Street_Advanced]],MeasureTable_WY!A:A,\"TRUE\"),\"0\") & \", \" &\nTEXT(COUNTIFS(MeasureTable_WY!G:G,EquipmentTable_Retrofit_WY[[#This Row],[measureRetrofit_SBE]],MeasureTable_WY!A:A,\"TRUE\"),\"0\")","v":"0, 0, 0, 0, 0, 0, 0, 0"}]
["Lamp Replacement","Relamp - T5 TLED - Type A, A/B Dual Mode","separate","Non-eligible fixture - Retrofit - WY","Non-eligible fixture - Retrofit - WY","Non-eligible fixture - Retrofit - WY","Non-eligible fixture - Retrofit - WY","Non-eligible fixture - Retrofit - WY","Non-eligible fixture - Retrofit - WY","Non-eligible fixture - Retrofit - WY","Non-eligible fixture - Retrofit - WY","Non-eligible fixture - Retrofit - WY","Non-eligible fixture - Retrofit - WY","Non-eligible fixture - Retrofit - WY",null,null,{"$f":"TEXT(COUNTIFS(MeasureTable_WY!G:G,EquipmentTable_Retrofit_WY[[#This Row],[measureRetrofit_Interior_None]],MeasureTable_WY!A:A,\"TRUE\"),\"0\") & \", \" &\nTEXT(COUNTIFS(MeasureTable_WY!G:G,EquipmentTable_Retrofit_WY[[#This Row],[measureRetrofit_Interior_Basic]],MeasureTable_WY!A:A,\"TRUE\"),\"0\") & \", \" &\nTEXT(COUNTIFS(MeasureTable_WY!G:G,EquipmentTable_Retrofit_WY[[#This Row],[measureRetrofit_Interior_Advanced]],MeasureTable_WY!A:A,\"TRUE\"),\"0\") & \", \" &\nTEXT(COUNTIFS(MeasureTable_WY!G:G,EquipmentTable_Retrofit_WY[[#This Row],[measureRetrofit_Exterior_None]],MeasureTable_WY!A:A,\"TRUE\"),\"0\") & \", \" &\nTEXT(COUNTIFS(MeasureTable_WY!G:G,EquipmentTable_Retrofit_WY[[#This Row],[measureRetrofit_Exterior_Advanced]],MeasureTable_WY!A:A,\"TRUE\"),\"0\") & \", \" &\nTEXT(COUNTIFS(MeasureTable_WY!G:G,EquipmentTable_Retrofit_WY[[#This Row],[measureRetrofit_Street_None]],MeasureTable_WY!A:A,\"TRUE\"),\"0\") & \", \" &\nTEXT(COUNTIFS(MeasureTable_WY!G:G,EquipmentTable_Retrofit_WY[[#This Row],[measureRetrofit_Street_Advanced]],MeasureTable_WY!A:A,\"TRUE\"),\"0\") & \", \" &\nTEXT(COUNTIFS(MeasureTable_WY!G:G,EquipmentTable_Retrofit_WY[[#This Row],[measureRetrofit_SBE]],MeasureTable_WY!A:A,\"TRUE\"),\"0\")","v":"0, 0, 0, 0, 0, 0, 0, 0"}]
["Lamp Replacement","Relamp - T5 TLED - Type B","separate","Non-eligible fixture - Retrofit - WY","Non-eligible fixture - Retrofit - WY","Non-eligible fixture - Retrofit - WY","Non-eligible fixture - Retrofit - WY","Non-eligible fixture - Retrofit - WY","Non-eligible fixture - Retrofit - WY","Non-eligible fixture - Retrofit - WY","Non-eligible fixture - Retrofit - WY","Non-eligible fixture - Retrofit - WY","Non-eligible fixture - Retrofit - WY","Non-eligible fixture - Retrofit - WY",null,null,{"$f":"TEXT(COUNTIFS(MeasureTable_WY!G:G,EquipmentTable_Retrofit_WY[[#This Row],[measureRetrofit_Interior_None]],MeasureTable_WY!A:A,\"TRUE\"),\"0\") & \", \" &\nTEXT(COUNTIFS(MeasureTable_WY!G:G,EquipmentTable_Retrofit_WY[[#This Row],[measureRetrofit_Interior_Basic]],MeasureTable_WY!A:A,\"TRUE\"),\"0\") & \", \" &\nTEXT(COUNTIFS(MeasureTable_WY!G:G,EquipmentTable_Retrofit_WY[[#This Row],[measureRetrofit_Interior_Advanced]],MeasureTable_WY!A:A,\"TRUE\"),\"0\") & \", \" &\nTEXT(COUNTIFS(MeasureTable_WY!G:G,EquipmentTable_Retrofit_WY[[#This Row],[measureRetrofit_Exterior_None]],MeasureTable_WY!A:A,\"TRUE\"),\"0\") & \", \" &\nTEXT(COUNTIFS(MeasureTable_WY!G:G,EquipmentTable_Retrofit_WY[[#This Row],[measureRetrofit_Exterior_Advanced]],MeasureTable_WY!A:A,\"TRUE\"),\"0\") & \", \" &\nTEXT(COUNTIFS(MeasureTable_WY!G:G,EquipmentTable_Retrofit_WY[[#This Row],[measureRetrofit_Street_None]],MeasureTable_WY!A:A,\"TRUE\"),\"0\") & \", \" &\nTEXT(COUNTIFS(MeasureTable_WY!G:G,EquipmentTable_Retrofit_WY[[#This Row],[measureRetrofit_Street_Advanced]],MeasureTable_WY!A:A,\"TRUE\"),\"0\") & \", \" &\nTEXT(COUNTIFS(MeasureTable_WY!G:G,EquipmentTable_Retrofit_WY[[#This Row],[measureRetrofit_SBE]],MeasureTable_WY!A:A,\"TRUE\"),\"0\")","v":"0, 0, 0, 0, 0, 0, 0, 0"}]
["Lamp Replacement","Relamp - T5 TLED - Type C","separate","Non-eligible fixture - Retrofit - WY","Non-eligible fixture - Retrofit - WY","Non-eligible fixture - Retrofit - WY","Non-eligible fixture - Retrofit - WY","Non-eligible fixture - Retrofit - WY","Non-eligible fixture - Retrofit - WY","Non-eligible fixture - Retrofit - WY","Non-eligible fixture - Retrofit - WY","Non-eligible fixture - Retrofit - WY","Non-eligible fixture - Retrofit - WY","Non-eligible fixture - Retrofit - WY",null,null,{"$f":"TEXT(COUNTIFS(MeasureTable_WY!G:G,EquipmentTable_Retrofit_WY[[#This Row],[measureRetrofit_Interior_None]],MeasureTable_WY!A:A,\"TRUE\"),\"0\") & \", \" &\nTEXT(COUNTIFS(MeasureTable_WY!G:G,EquipmentTable_Retrofit_WY[[#This Row],[measureRetrofit_Interior_Basic]],MeasureTable_WY!A:A,\"TRUE\"),\"0\") & \", \" &\nTEXT(COUNTIFS(MeasureTable_WY!G:G,EquipmentTable_Retrofit_WY[[#This Row],[measureRetrofit_Interior_Advanced]],MeasureTable_WY!A:A,\"TRUE\"),\"0\") & \", \" &\nTEXT(COUNTIFS(MeasureTable_WY!G:G,EquipmentTable_Retrofit_WY[[#This Row],[measureRetrofit_Exterior_None]],MeasureTable_WY!A:A,\"TRUE\"),\"0\") & \", \" &\nTEXT(COUNTIFS(MeasureTable_WY!G:G,EquipmentTable_Retrofit_WY[[#This Row],[measureRetrofit_Exterior_Advanced]],MeasureTable_WY!A:A,\"TRUE\"),\"0\") & \", \" &\nTEXT(COUNTIFS(MeasureTable_WY!G:G,EquipmentTable_Retrofit_WY[[#This Row],[measureRetrofit_Street_None]],MeasureTable_WY!A:A,\"TRUE\"),\"0\") & \", \" &\nTEXT(COUNTIFS(MeasureTable_WY!G:G,EquipmentTable_Retrofit_WY[[#This Row],[measureRetrofit_Street_Advanced]],MeasureTable_WY!A:A,\"TRUE\"),\"0\") & \", \" &\nTEXT(COUNTIFS(MeasureTable_WY!G:G,EquipmentTable_Retrofit_WY[[#This Row],[measureRetrofit_SBE]],MeasureTable_WY!A:A,\"TRUE\"),\"0\")","v":"0, 0, 0, 0, 0, 0, 0, 0"}]
["Lamp Replacement","Relamp - T5HO Fluor. Linear <= 51W","separate","Non-eligible fixture - Retrofit - WY","Non-eligible fixture - Retrofit - WY","Non-eligible fixture - Retrofit - WY","Non-eligible fixture - Retrofit - WY","Non-eligible fixture - Retrofit - WY","Non-eligible fixture - Retrofit - WY","Non-eligible fixture - Retrofit - WY","Non-eligible fixture - Retrofit - WY","Non-eligible fixture - Retrofit - WY","Non-eligible fixture - Retrofit - WY","Non-eligible fixture - Retrofit - WY",null,null,{"$f":"TEXT(COUNTIFS(MeasureTable_WY!G:G,EquipmentTable_Retrofit_WY[[#This Row],[measureRetrofit_Interior_None]],MeasureTable_WY!A:A,\"TRUE\"),\"0\") & \", \" &\nTEXT(COUNTIFS(MeasureTable_WY!G:G,EquipmentTable_Retrofit_WY[[#This Row],[measureRetrofit_Interior_Basic]],MeasureTable_WY!A:A,\"TRUE\"),\"0\") & \", \" &\nTEXT(COUNTIFS(MeasureTable_WY!G:G,EquipmentTable_Retrofit_WY[[#This Row],[measureRetrofit_Interior_Advanced]],MeasureTable_WY!A:A,\"TRUE\"),\"0\") & \", \" &\nTEXT(COUNTIFS(MeasureTable_WY!G:G,EquipmentTable_Retrofit_WY[[#This Row],[measureRetrofit_Exterior_None]],MeasureTable_WY!A:A,\"TRUE\"),\"0\") & \", \" &\nTEXT(COUNTIFS(MeasureTable_WY!G:G,EquipmentTable_Retrofit_WY[[#This Row],[measureRetrofit_Exterior_Advanced]],MeasureTable_WY!A:A,\"TRUE\"),\"0\") & \", \" &\nTEXT(COUNTIFS(MeasureTable_WY!G:G,EquipmentTable_Retrofit_WY[[#This Row],[measureRetrofit_Street_None]],MeasureTable_WY!A:A,\"TRUE\"),\"0\") & \", \" &\nTEXT(COUNTIFS(MeasureTable_WY!G:G,EquipmentTable_Retrofit_WY[[#This Row],[measureRetrofit_Street_Advanced]],MeasureTable_WY!A:A,\"TRUE\"),\"0\") & \", \" &\nTEXT(COUNTIFS(MeasureTable_WY!G:G,EquipmentTable_Retrofit_WY[[#This Row],[measureRetrofit_SBE]],MeasureTable_WY!A:A,\"TRUE\"),\"0\")","v":"0, 0, 0, 0, 0, 0, 0, 0"}]
["Lamp Replacement","Relamp - T8 TLED - Type A, A/B Dual Mode","separate","Non-eligible fixture - Retrofit - WY","Non-eligible fixture - Retrofit - WY","Non-eligible fixture - Retrofit - WY","Non-eligible fixture - Retrofit - WY","Non-eligible fixture - Retrofit - WY","Non-eligible fixture - Retrofit - WY","Non-eligible fixture - Retrofit - WY","Non-eligible fixture - Retrofit - WY","Non-eligible fixture - Retrofit - WY","Non-eligible fixture - Retrofit - WY","Non-eligible fixture - Retrofit - WY",null,null,{"$f":"TEXT(COUNTIFS(MeasureTable_WY!G:G,EquipmentTable_Retrofit_WY[[#This Row],[measureRetrofit_Interior_None]],MeasureTable_WY!A:A,\"TRUE\"),\"0\") & \", \" &\nTEXT(COUNTIFS(MeasureTable_WY!G:G,EquipmentTable_Retrofit_WY[[#This Row],[measureRetrofit_Interior_Basic]],MeasureTable_WY!A:A,\"TRUE\"),\"0\") & \", \" &\nTEXT(COUNTIFS(MeasureTable_WY!G:G,EquipmentTable_Retrofit_WY[[#This Row],[measureRetrofit_Interior_Advanced]],MeasureTable_WY!A:A,\"TRUE\"),\"0\") & \", \" &\nTEXT(COUNTIFS(MeasureTable_WY!G:G,EquipmentTable_Retrofit_WY[[#This Row],[measureRetrofit_Exterior_None]],MeasureTable_WY!A:A,\"TRUE\"),\"0\") & \", \" &\nTEXT(COUNTIFS(MeasureTable_WY!G:G,EquipmentTable_Retrofit_WY[[#This Row],[measureRetrofit_Exterior_Advanced]],MeasureTable_WY!A:A,\"TRUE\"),\"0\") & \", \" &\nTEXT(COUNTIFS(MeasureTable_WY!G:G,EquipmentTable_Retrofit_WY[[#This Row],[measureRetrofit_Street_None]],MeasureTable_WY!A:A,\"TRUE\"),\"0\") & \", \" &\nTEXT(COUNTIFS(MeasureTable_WY!G:G,EquipmentTable_Retrofit_WY[[#This Row],[measureRetrofit_Street_Advanced]],MeasureTable_WY!A:A,\"TRUE\"),\"0\") & \", \" &\nTEXT(COUNTIFS(MeasureTable_WY!G:G,EquipmentTable_Retrofit_WY[[#This Row],[measureRetrofit_SBE]],MeasureTable_WY!A:A,\"TRUE\"),\"0\")","v":"0, 0, 0, 0, 0, 0, 0, 0"}]
["Lamp Replacement","Relamp - T8 TLED - Type A","separate","Non-eligible fixture - Retrofit - WY","Non-eligible fixture - Retrofit - WY","Non-eligible fixture - Retrofit - WY","Non-eligible fixture - Retrofit - WY","Non-eligible fixture - Retrofit - WY","Non-eligible fixture - Retrofit - WY","Non-eligible fixture - Retrofit - WY","Non-eligible fixture - Retrofit - WY","Non-eligible fixture - Retrofit - WY","Non-eligible fixture - Retrofit - WY","Non-eligible fixture - Retrofit - WY",null,null,{"$f":"TEXT(COUNTIFS(MeasureTable_WY!G:G,EquipmentTable_Retrofit_WY[[#This Row],[measureRetrofit_Interior_None]],MeasureTable_WY!A:A,\"TRUE\"),\"0\") & \", \" &\nTEXT(COUNTIFS(MeasureTable_WY!G:G,EquipmentTable_Retrofit_WY[[#This Row],[measureRetrofit_Interior_Basic]],MeasureTable_WY!A:A,\"TRUE\"),\"0\") & \", \" &\nTEXT(COUNTIFS(MeasureTable_WY!G:G,EquipmentTable_Retrofit_WY[[#This Row],[measureRetrofit_Interior_Advanced]],MeasureTable_WY!A:A,\"TRUE\"),\"0\") & \", \" &\nTEXT(COUNTIFS(MeasureTable_WY!G:G,EquipmentTable_Retrofit_WY[[#This Row],[measureRetrofit_Exterior_None]],MeasureTable_WY!A:A,\"TRUE\"),\"0\") & \", \" &\nTEXT(COUNTIFS(MeasureTable_WY!G:G,EquipmentTable_Retrofit_WY[[#This Row],[measureRetrofit_Exterior_Advanced]],MeasureTable_WY!A:A,\"TRUE\"),\"0\") & \", \" &\nTEXT(COUNTIFS(MeasureTable_WY!G:G,EquipmentTable_Retrofit_WY[[#This Row],[measureRetrofit_Street_None]],MeasureTable_WY!A:A,\"TRUE\"),\"0\") & \", \" &\nTEXT(COUNTIFS(MeasureTable_WY!G:G,EquipmentTable_Retrofit_WY[[#This Row],[measureRetrofit_Street_Advanced]],MeasureTable_WY!A:A,\"TRUE\"),\"0\") & \", \" &\nTEXT(COUNTIFS(MeasureTable_WY!G:G,EquipmentTable_Retrofit_WY[[#This Row],[measureRetrofit_SBE]],MeasureTable_WY!A:A,\"TRUE\"),\"0\")","v":"0, 0, 0, 0, 0, 0, 0, 0"}]
["Lamp Replacement","Relamp - T8 TLED - Type B","separate","Non-eligible fixture - Retrofit - WY","Non-eligible fixture - Retrofit - WY","Non-eligible fixture - Retrofit - WY","Non-eligible fixture - Retrofit - WY","Non-eligible fixture - Retrofit - WY","Non-eligible fixture - Retrofit - WY","Non-eligible fixture - Retrofit - WY","Non-eligible fixture - Retrofit - WY","Non-eligible fixture - Retrofit - WY","Non-eligible fixture - Retrofit - WY","Non-eligible fixture - Retrofit - WY",null,null,{"$f":"TEXT(COUNTIFS(MeasureTable_WY!G:G,EquipmentTable_Retrofit_WY[[#This Row],[measureRetrofit_Interior_None]],MeasureTable_WY!A:A,\"TRUE\"),\"0\") & \", \" &\nTEXT(COUNTIFS(MeasureTable_WY!G:G,EquipmentTable_Retrofit_WY[[#This Row],[measureRetrofit_Interior_Basic]],MeasureTable_WY!A:A,\"TRUE\"),\"0\") & \", \" &\nTEXT(COUNTIFS(MeasureTable_WY!G:G,EquipmentTable_Retrofit_WY[[#This Row],[measureRetrofit_Interior_Advanced]],MeasureTable_WY!A:A,\"TRUE\"),\"0\") & \", \" &\nTEXT(COUNTIFS(MeasureTable_WY!G:G,EquipmentTable_Retrofit_WY[[#This Row],[measureRetrofit_Exterior_None]],MeasureTable_WY!A:A,\"TRUE\"),\"0\") & \", \" &\nTEXT(COUNTIFS(MeasureTable_WY!G:G,EquipmentTable_Retrofit_WY[[#This Row],[measureRetrofit_Exterior_Advanced]],MeasureTable_WY!A:A,\"TRUE\"),\"0\") & \", \" &\nTEXT(COUNTIFS(MeasureTable_WY!G:G,EquipmentTable_Retrofit_WY[[#This Row],[measureRetrofit_Street_None]],MeasureTable_WY!A:A,\"TRUE\"),\"0\") & \", \" &\nTEXT(COUNTIFS(MeasureTable_WY!G:G,EquipmentTable_Retrofit_WY[[#This Row],[measureRetrofit_Street_Advanced]],MeasureTable_WY!A:A,\"TRUE\"),\"0\") & \", \" &\nTEXT(COUNTIFS(MeasureTable_WY!G:G,EquipmentTable_Retrofit_WY[[#This Row],[measureRetrofit_SBE]],MeasureTable_WY!A:A,\"TRUE\"),\"0\")","v":"0, 0, 0, 0, 0, 0, 0, 0"}]
["Lamp Replacement","Relamp - T8 TLED - Type C","separate","Non-eligible fixture - Retrofit - WY","Non-eligible fixture - Retrofit - WY","Non-eligible fixture - Retrofit - WY","Non-eligible fixture - Retrofit - WY","Non-eligible fixture - Retrofit - WY","Non-eligible fixture - Retrofit - WY","Non-eligible fixture - Retrofit - WY","Non-eligible fixture - Retrofit - WY","Non-eligible fixture - Retrofit - WY","Non-eligible fixture - Retrofit - WY","Non-eligible fixture - Retrofit - WY",null,null,{"$f":"TEXT(COUNTIFS(MeasureTable_WY!G:G,EquipmentTable_Retrofit_WY[[#This Row],[measureRetrofit_Interior_None]],MeasureTable_WY!A:A,\"TRUE\"),\"0\") & \", \" &\nTEXT(COUNTIFS(MeasureTable_WY!G:G,EquipmentTable_Retrofit_WY[[#This Row],[measureRetrofit_Interior_Basic]],MeasureTable_WY!A:A,\"TRUE\"),\"0\") & \", \" &\nTEXT(COUNTIFS(MeasureTable_WY!G:G,EquipmentTable_Retrofit_WY[[#This Row],[measureRetrofit_Interior_Advanced]],MeasureTable_WY!A:A,\"TRUE\"),\"0\") & \", \" &\nTEXT(COUNTIFS(MeasureTable_WY!G:G,EquipmentTable_Retrofit_WY[[#This Row],[measureRetrofit_Exterior_None]],MeasureTable_WY!A:A,\"TRUE\"),\"0\") & \", \" &\nTEXT(COUNTIFS(MeasureTable_WY!G:G,EquipmentTable_Retrofit_WY[[#This Row],[measureRetrofit_Exterior_Advanced]],MeasureTable_WY!A:A,\"TRUE\"),\"0\") & \", \" &\nTEXT(COUNTIFS(MeasureTable_WY!G:G,EquipmentTable_Retrofit_WY[[#This Row],[measureRetrofit_Street_None]],MeasureTable_WY!A:A,\"TRUE\"),\"0\") & \", \" &\nTEXT(COUNTIFS(MeasureTable_WY!G:G,EquipmentTable_Retrofit_WY[[#This Row],[measureRetrofit_Street_Advanced]],MeasureTable_WY!A:A,\"TRUE\"),\"0\") & \", \" &\nTEXT(COUNTIFS(MeasureTable_WY!G:G,EquipmentTable_Retrofit_WY[[#This Row],[measureRetrofit_SBE]],MeasureTable_WY!A:A,\"TRUE\"),\"0\")","v":"0, 0, 0, 0, 0, 0, 0, 0"}]
["Lamp Replacement","Relamp - Recessed Downlight Kit","separate","Non-eligible fixture - Retrofit - WY","Non-eligible fixture - Retrofit - WY","Non-eligible fixture - Retrofit - WY","Non-eligible fixture - Retrofit - WY","Non-eligible fixture - Retrofit - WY","Non-eligible fixture - Retrofit - WY","Non-eligible fixture - Retrofit - WY","Non-eligible fixture - Retrofit - WY","Non-eligible fixture - Retrofit - WY","Non-eligible fixture - Retrofit - WY","Non-eligible fixture - Retrofit - WY",null,null,{"$f":"TEXT(COUNTIFS(MeasureTable_WY!G:G,EquipmentTable_Retrofit_WY[[#This Row],[measureRetrofit_Interior_None]],MeasureTable_WY!A:A,\"TRUE\"),\"0\") & \", \" &\nTEXT(COUNTIFS(MeasureTable_WY!G:G,EquipmentTable_Retrofit_WY[[#This Row],[measureRetrofit_Interior_Basic]],MeasureTable_WY!A:A,\"TRUE\"),\"0\") & \", \" &\nTEXT(COUNTIFS(MeasureTable_WY!G:G,EquipmentTable_Retrofit_WY[[#This Row],[measureRetrofit_Interior_Advanced]],MeasureTable_WY!A:A,\"TRUE\"),\"0\") & \", \" &\nTEXT(COUNTIFS(MeasureTable_WY!G:G,EquipmentTable_Retrofit_WY[[#This Row],[measureRetrofit_Exterior_None]],MeasureTable_WY!A:A,\"TRUE\"),\"0\") & \", \" &\nTEXT(COUNTIFS(MeasureTable_WY!G:G,EquipmentTable_Retrofit_WY[[#This Row],[measureRetrofit_Exterior_Advanced]],MeasureTable_WY!A:A,\"TRUE\"),\"0\") & \", \" &\nTEXT(COUNTIFS(MeasureTable_WY!G:G,EquipmentTable_Retrofit_WY[[#This Row],[measureRetrofit_Street_None]],MeasureTable_WY!A:A,\"TRUE\"),\"0\") & \", \" &\nTEXT(COUNTIFS(MeasureTable_WY!G:G,EquipmentTable_Retrofit_WY[[#This Row],[measureRetrofit_Street_Advanced]],MeasureTable_WY!A:A,\"TRUE\"),\"0\") & \", \" &\nTEXT(COUNTIFS(MeasureTable_WY!G:G,EquipmentTable_Retrofit_WY[[#This Row],[measureRetrofit_SBE]],MeasureTable_WY!A:A,\"TRUE\"),\"0\")","v":"0, 0, 0, 0, 0, 0, 0, 0"}]
["Admin","Relamp - LED HID Replacement < 40W","separate","Non-eligible fixture - Retrofit - WY","Non-eligible fixture - Retrofit - WY","Non-eligible fixture - Retrofit - WY","Non-eligible fixture - Retrofit - WY","Non-eligible fixture - Retrofit - WY","Non-eligible fixture - Retrofit - WY","Non-eligible fixture - Retrofit - WY","Non-eligible fixture - Retrofit - WY","Non-eligible fixture - Retrofit - WY","Non-eligible fixture - Retrofit - WY","Non-eligible fixture - Retrofit - WY"]
["Admin","Relamp - LED HID Replacement >= 150W","separate","Non-eligible fixture - Retrofit - WY","Non-eligible fixture - Retrofit - WY","Non-eligible fixture - Retrofit - WY","Non-eligible fixture - Retrofit - WY","Non-eligible fixture - Retrofit - WY","Non-eligible fixture - Retrofit - WY","Non-eligible fixture - Retrofit - WY","Non-eligible fixture - Retrofit - WY","Non-eligible fixture - Retrofit - WY","Non-eligible fixture - Retrofit - WY","Non-eligible fixture - Retrofit - WY"]
["Admin","Relamp - LED HID Replacement >= 40 and < 80W","separate","Non-eligible fixture - Retrofit - WY","Non-eligible fixture - Retrofit - WY","Non-eligible fixture - Retrofit - WY","Non-eligible fixture - Retrofit - WY","Non-eligible fixture - Retrofit - WY","Non-eligible fixture - Retrofit - WY","Non-eligible fixture - Retrofit - WY","Non-eligible fixture - Retrofit - WY","Non-eligible fixture - Retrofit - WY","Non-eligible fixture - Retrofit - WY","Non-eligible fixture - Retrofit - WY"]
["Admin","Relamp - LED HID Replacement >= 80 and < 150W","separate","Non-eligible fixture - Retrofit - WY","Non-eligible fixture - Retrofit - WY","Non-eligible fixture - Retrofit - WY","Non-eligible fixture - Retrofit - WY","Non-eligible fixture - Retrofit - WY","Non-eligible fixture - Retrofit - WY","Non-eligible fixture - Retrofit - WY","Non-eligible fixture - Retrofit - WY","Non-eligible fixture - Retrofit - WY","Non-eligible fixture - Retrofit - WY","Non-eligible fixture - Retrofit - WY"]

{"sheet":"EquipmentTable_NCMR_WY","index":23,"n_rows":53,"n_cols":17,"rows_kept":53,"cut":false,"hidden":true,"merged":[]}
["categoryProposed","equipmentProposed","measureNCMR_Interior_None","measureNCMR_Interior_Basic","measureNCMR_Interior_Mid","measureNCMR_Interior_Advanced","measureNCMR_Exterior_None","measureNCMR_Exterior_Mid","measureNCMR_Exterior_Advanced","measureNCMR_Street_None","measureNCMR_Street_Mid","measureNCMR_Street_Advanced"]
["Fluorescents - Compact","CFL Pin-Based","Interior Lighting - Ineligible - Retrofit - v2 - WY","Interior Lighting - Ineligible - Retrofit - v2 - WY","Interior Lighting - Ineligible - Retrofit - v2 - WY","Interior Lighting - Ineligible - Retrofit - v2 - WY","Non-eligible fixture - New Construction/Major Renovation - WY","Non-eligible fixture - New Construction/Major Renovation - WY","Non-eligible fixture - New Construction/Major Renovation - WY","Non-eligible fixture - New Construction/Major Renovation - WY","Non-eligible fixture - New Construction/Major Renovation - WY","Non-eligible fixture - New Construction/Major Renovation - WY",null,{"$f":"TEXT(COUNTIFS(MeasureTable_WY!G:G,EquipmentTable_NCMR_WY[[#This Row],[measureNCMR_Interior_None]],MeasureTable_WY!A:A,\"TRUE\"),\"0\") & \", \" &\nTEXT(COUNTIFS(MeasureTable_WY!G:G,EquipmentTable_NCMR_WY[[#This Row],[measureNCMR_Exterior_None]],MeasureTable_WY!A:A,\"TRUE\"),\"0\") & \", \" &\nTEXT(COUNTIFS(MeasureTable_WY!G:G,EquipmentTable_NCMR_WY[[#This Row],[measureNCMR_Street_None]],MeasureTable_WY!A:A,\"TRUE\"),\"0\")","v":"0, 0, 0"},"To be Ended","In Mapping",{"$f":"SUM(P3:P24)","v":0}]
["Fluorescents - Compact","CFL Screw-In","Interior Lighting - Ineligible - Retrofit - v2 - WY","Interior Lighting - Ineligible - Retrofit - v2 - WY","Interior Lighting - Ineligible - Retrofit - v2 - WY","Interior Lighting - Ineligible - Retrofit - v2 - WY","Non-eligible fixture - New Construction/Major Renovation - WY","Non-eligible fixture - New Construction/Major Renovation - WY","Non-eligible fixture - New Construction/Major Renovation - WY","Non-eligible fixture - New Construction/Major Renovation - WY","Non-eligible fixture - New Construction/Major Renovation - WY","Non-eligible fixture - New Construction/Major Renovation - WY",null,{"$f":"TEXT(COUNTIFS(MeasureTable_WY!G:G,EquipmentTable_NCMR_WY[[#This Row],[measureNCMR_Interior_None]],MeasureTable_WY!A:A,\"TRUE\"),\"0\") & \", \" &\nTEXT(COUNTIFS(MeasureTable_WY!G:G,EquipmentTable_NCMR_WY[[#This Row],[measureNCMR_Exterior_None]],MeasureTable_WY!A:A,\"TRUE\"),\"0\") & \", \" &\nTEXT(COUNTIFS(MeasureTable_WY!G:G,EquipmentTable_NCMR_WY[[#This Row],[measureNCMR_Street_None]],MeasureTable_WY!A:A,\"TRUE\"),\"0\")","v":"0, 0, 0"},"Induction Fixture - New Construction/Major Renovation - WY",{"$f":"COUNTIF(EquipmentTable_NCMR_WY[[measureNCMR_Interior_None]:[measureNCMR_Street_None]],O3)","v":0}]
["Fluorescents - T12","FLT12 - 2 Ft","Interior Lighting - Ineligible - Retrofit - v2 - WY","Interior Lighting - Ineligible - Retrofit - v2 - WY","Interior Lighting - Ineligible - Retrofit - v2 - WY","Interior Lighting - Ineligible - Retrofit - v2 - WY","Non-eligible fixture - New Construction/Major Renovation - WY","Non-eligible fixture - New Construction/Major Renovation - WY","Non-eligible fixture - New Construction/Major Renovation - WY","Non-eligible fixture - New Construction/Major Renovation - WY","Non-eligible fixture - New Construction/Major Renovation - WY","Non-eligible fixture - New Construction/Major Renovation - WY",null,{"$f":"TEXT(COUNTIFS(MeasureTable_WY!G:G,EquipmentTable_NCMR_WY[[#This Row],[measureNCMR_Interior_None]],MeasureTable_WY!A:A,\"TRUE\"),\"0\") & \", \" &\nTEXT(COUNTIFS(MeasureTable_WY!G:G,EquipmentTable_NCMR_WY[[#This Row],[measureNCMR_Exterior_None]],MeasureTable_WY!A:A,\"TRUE\"),\"0\") & \", \" &\nTEXT(COUNTIFS(MeasureTable_WY!G:G,EquipmentTable_NCMR_WY[[#This Row],[measureNCMR_Street_None]],MeasureTable_WY!A:A,\"TRUE\"),\"0\")","v":"0, 0, 0"},"Exterior Dimming Control - Retrofit - WY",{"$f":"COUNTIF(EquipmentTable_NCMR_WY[[measureNCMR_Interior_None]:[measureNCMR_Street_None]],O4)","v":0}]
["Fluorescents - T12","FLT12 - 3 Ft","Interior Lighting - Ineligible - Retrofit - v2 - WY","Interior Lighting - Ineligible - Retrofit - v2 - WY","Interior Lighting - Ineligible - Retrofit - v2 - WY","Interior Lighting - Ineligible - Retrofit - v2 - WY","Non-eligible fixture - New Construction/Major Renovation - WY","Non-eligible fixture - New Construction/Major Renovation - WY","Non-eligible fixture - New Construction/Major Renovation - WY","Non-eligible fixture - New Construction/Major Renovation - WY","Non-eligible fixture - New Construction/Major Renovation - WY","Non-eligible fixture - New Construction/Major Renovation - WY",null,{"$f":"TEXT(COUNTIFS(MeasureTable_WY!G:G,EquipmentTable_NCMR_WY[[#This Row],[measureNCMR_Interior_None]],MeasureTable_WY!A:A,\"TRUE\"),\"0\") & \", \" &\nTEXT(COUNTIFS(MeasureTable_WY!G:G,EquipmentTable_NCMR_WY[[#This Row],[measureNCMR_Exterior_None]],MeasureTable_WY!A:A,\"TRUE\"),\"0\") & \", \" &\nTEXT(COUNTIFS(MeasureTable_WY!G:G,EquipmentTable_NCMR_WY[[#This Row],[measureNCMR_Street_None]],MeasureTable_WY!A:A,\"TRUE\"),\"0\")","v":"0, 0, 0"},"Advanced Daylighting Control - Retrofit - WY",{"$f":"COUNTIF(EquipmentTable_NCMR_WY[[measureNCMR_Interior_None]:[measureNCMR_Street_None]],O5)","v":0}]
["Fluorescents - T12","FLT12 - 4 Ft","Interior Lighting - Ineligible - Retrofit - v2 - WY","Interior Lighting - Ineligible - Retrofit - v2 - WY","Interior Lighting - Ineligible - Retrofit - v2 - WY","Interior Lighting - Ineligible - Retrofit - v2 - WY","Non-eligible fixture - New Construction/Major Renovation - WY","Non-eligible fixture - New Construction/Major Renovation - WY","Non-eligible fixture - New Construction/Major Renovation - WY","Non-eligible fixture - New Construction/Major Renovation - WY","Non-eligible fixture - New Construction/Major Renovation - WY","Non-eligible fixture - New Construction/Major Renovation - WY",null,{"$f":"TEXT(COUNTIFS(MeasureTable_WY!G:G,EquipmentTable_NCMR_WY[[#This Row],[measureNCMR_Interior_None]],MeasureTable_WY!A:A,\"TRUE\"),\"0\") & \", \" &\nTEXT(COUNTIFS(MeasureTable_WY!G:G,EquipmentTable_NCMR_WY[[#This Row],[measureNCMR_Exterior_None]],MeasureTable_WY!A:A,\"TRUE\"),\"0\") & \", \" &\nTEXT(COUNTIFS(MeasureTable_WY!G:G,EquipmentTable_NCMR_WY[[#This Row],[measureNCMR_Street_None]],MeasureTable_WY!A:A,\"TRUE\"),\"0\")","v":"0, 0, 0"},"Daylighing Control - Retrofit - WY",{"$f":"COUNTIF(EquipmentTable_NCMR_WY[[measureNCMR_Interior_None]:[measureNCMR_Street_None]],O6)","v":0}]
["Fluorescents - T12","FLT12 - 6 Ft","Interior Lighting - Ineligible - Retrofit - v2 - WY","Interior Lighting - Ineligible - Retrofit - v2 - WY","Interior Lighting - Ineligible - Retrofit - v2 - WY","Interior Lighting - Ineligible - Retrofit - v2 - WY","Non-eligible fixture - New Construction/Major Renovation - WY","Non-eligible fixture - New Construction/Major Renovation - WY","Non-eligible fixture - New Construction/Major Renovation - WY","Non-eligible fixture - New Construction/Major Renovation - WY","Non-eligible fixture - New Construction/Major Renovation - WY","Non-eligible fixture - New Construction/Major Renovation - WY",null,{"$f":"TEXT(COUNTIFS(MeasureTable_WY!G:G,EquipmentTable_NCMR_WY[[#This Row],[measureNCMR_Interior_None]],MeasureTable_WY!A:A,\"TRUE\"),\"0\") & \", \" &\nTEXT(COUNTIFS(MeasureTable_WY!G:G,EquipmentTable_NCMR_WY[[#This Row],[measureNCMR_Exterior_None]],MeasureTable_WY!A:A,\"TRUE\"),\"0\") & \", \" &\nTEXT(COUNTIFS(MeasureTable_WY!G:G,EquipmentTable_NCMR_WY[[#This Row],[measureNCMR_Street_None]],MeasureTable_WY!A:A,\"TRUE\"),\"0\")","v":"0, 0, 0"},"Occupancy Control - Retrofit - Integral - WY",{"$f":"COUNTIF(EquipmentTable_NCMR_WY[[measureNCMR_Interior_None]:[measureNCMR_Street_None]],O7)","v":0}]
["Fluorescents - T12","FLT12 - 8 Ft","Interior Lighting - Ineligible - Retrofit - v2 - WY","Interior Lighting - Ineligible - Retrofit - v2 - WY","Interior Lighting - Ineligible - Retrofit - v2 - WY","Interior Lighting - Ineligible - Retrofit - v2 - WY","Non-eligible fixture - New Construction/Major Renovation - WY","Non-eligible fixture - New Construction/Major Renovation - WY","Non-eligible fixture - New Construction/Major Renovation - WY","Non-eligible fixture - New Construction/Major Renovation - WY","Non-eligible fixture - New Construction/Major Renovation - WY","Non-eligible fixture - New Construction/Major Renovation - WY",null,{"$f":"TEXT(COUNTIFS(MeasureTable_WY!G:G,EquipmentTable_NCMR_WY[[#This Row],[measureNCMR_Interior_None]],MeasureTable_WY!A:A,\"TRUE\"),\"0\") & \", \" &\nTEXT(COUNTIFS(MeasureTable_WY!G:G,EquipmentTable_NCMR_WY[[#This Row],[measureNCMR_Exterior_None]],MeasureTable_WY!A:A,\"TRUE\"),\"0\") & \", \" &\nTEXT(COUNTIFS(MeasureTable_WY!G:G,EquipmentTable_NCMR_WY[[#This Row],[measureNCMR_Street_None]],MeasureTable_WY!A:A,\"TRUE\"),\"0\")","v":"0, 0, 0"},"Occupancy Control - Retrofit - PIR and Dual Tech - WY",{"$f":"COUNTIF(EquipmentTable_NCMR_WY[[measureNCMR_Interior_None]:[measureNCMR_Street_None]],O8)","v":0}]
["Fluorescents - T12","FLT12HO - 8 Ft","Interior Lighting - Ineligible - Retrofit - v2 - WY","Interior Lighting - Ineligible - Retrofit - v2 - WY","Interior Lighting - Ineligible - Retrofit - v2 - WY","Interior Lighting - Ineligible - Retrofit - v2 - WY","Non-eligible fixture - New Construction/Major Renovation - WY","Non-eligible fixture - New Construction/Major Renovation - WY","Non-eligible fixture - New Construction/Major Renovation - WY","Non-eligible fixture - New Construction/Major Renovation - WY","Non-eligible fixture - New Construction/Major Renovation - WY","Non-eligible fixture - New Construction/Major Renovation - WY",null,{"$f":"TEXT(COUNTIFS(MeasureTable_WY!G:G,EquipmentTable_NCMR_WY[[#This Row],[measureNCMR_Interior_None]],MeasureTable_WY!A:A,\"TRUE\"),\"0\") & \", \" &\nTEXT(COUNTIFS(MeasureTable_WY!G:G,EquipmentTable_NCMR_WY[[#This Row],[measureNCMR_Exterior_None]],MeasureTable_WY!A:A,\"TRUE\"),\"0\") & \", \" &\nTEXT(COUNTIFS(MeasureTable_WY!G:G,EquipmentTable_NCMR_WY[[#This Row],[measureNCMR_Street_None]],MeasureTable_WY!A:A,\"TRUE\"),\"0\")","v":"0, 0, 0"},"T5 Fluorescent Lamp - Retrofit - Relamp - WY",{"$f":"COUNTIF(EquipmentTable_NCMR_WY[[measureNCMR_Interior_None]:[measureNCMR_Street_None]],O9)","v":0}]
["Fluorescents - T12","FUT12 - 2 Ft","Interior Lighting - Ineligible - Retrofit - v2 - WY","Interior Lighting - Ineligible - Retrofit - v2 - WY","Interior Lighting - Ineligible - Retrofit - v2 - WY","Interior Lighting - Ineligible - Retrofit - v2 - WY","Non-eligible fixture - New Construction/Major Renovation - WY","Non-eligible fixture - New Construction/Major Renovation - WY","Non-eligible fixture - New Construction/Major Renovation - WY","Non-eligible fixture - New Construction/Major Renovation - WY","Non-eligible fixture - New Construction/Major Renovation - WY","Non-eligible fixture - New Construction/Major Renovation - WY",null,{"$f":"TEXT(COUNTIFS(MeasureTable_WY!G:G,EquipmentTable_NCMR_WY[[#This Row],[measureNCMR_Interior_None]],MeasureTable_WY!A:A,\"TRUE\"),\"0\") & \", \" &\nTEXT(COUNTIFS(MeasureTable_WY!G:G,EquipmentTable_NCMR_WY[[#This Row],[measureNCMR_Exterior_None]],MeasureTable_WY!A:A,\"TRUE\"),\"0\") & \", \" &\nTEXT(COUNTIFS(MeasureTable_WY!G:G,EquipmentTable_NCMR_WY[[#This Row],[measureNCMR_Street_None]],MeasureTable_WY!A:A,\"TRUE\"),\"0\")","v":"0, 0, 0"},"T8 Fluorescent Lamp - Retrofit - Relamp - WY",{"$f":"COUNTIF(EquipmentTable_NCMR_WY[[measureNCMR_Interior_None]:[measureNCMR_Street_None]],O10)","v":0}]
["Fluorescents - T5","FLT5 - 2 Ft","Interior Lighting - Ineligible - Retrofit - v2 - WY","Interior Lighting - Ineligible - Retrofit - v2 - WY","Interior Lighting - Ineligible - Retrofit - v2 - WY","Interior Lighting - Ineligible - Retrofit - v2 - WY","Non-eligible fixture - New Construction/Major Renovation - WY","Non-eligible fixture - New Construction/Major Renovation - WY","Non-eligible fixture - New Construction/Major Renovation - WY","Non-eligible fixture - New Construction/Major Renovation - WY","Non-eligible fixture - New Construction/Major Renovation - WY","Non-eligible fixture - New Construction/Major Renovation - WY",null,{"$f":"TEXT(COUNTIFS(MeasureTable_WY!G:G,EquipmentTable_NCMR_WY[[#This Row],[measureNCMR_Interior_None]],MeasureTable_WY!A:A,\"TRUE\"),\"0\") & \", \" &\nTEXT(COUNTIFS(MeasureTable_WY!G:G,EquipmentTable_NCMR_WY[[#This Row],[measureNCMR_Exterior_None]],MeasureTable_WY!A:A,\"TRUE\"),\"0\") & \", \" &\nTEXT(COUNTIFS(MeasureTable_WY!G:G,EquipmentTable_NCMR_WY[[#This Row],[measureNCMR_Street_None]],MeasureTable_WY!A:A,\"TRUE\"),\"0\")","v":"0, 0, 0"},"General Illumination Lighting Control - Retrofit - Custom - WY",{"$f":"COUNTIF(EquipmentTable_NCMR_WY[[measureNCMR_Interior_None]:[measureNCMR_Street_None]],O11)","v":0}]
["Fluorescents - T5","FLT5 - 4 Ft","Interior Lighting - Ineligible - Retrofit - v2 - WY","Interior Lighting - Ineligible - Retrofit - v2 - WY","Interior Lighting - Ineligible - Retrofit - v2 - WY","Interior Lighting - Ineligible - Retrofit - v2 - WY","Non-eligible fixture - New Construction/Major Renovation - WY","Non-eligible fixture - New Construction/Major Renovation - WY","Non-eligible fixture - New Construction/Major Renovation - WY","Non-eligible fixture - New Construction/Major Renovation - WY","Non-eligible fixture - New Construction/Major Renovation - WY","Non-eligible fixture - New Construction/Major Renovation - WY",null,{"$f":"TEXT(COUNTIFS(MeasureTable_WY!G:G,EquipmentTable_NCMR_WY[[#This Row],[measureNCMR_Interior_None]],MeasureTable_WY!A:A,\"TRUE\"),\"0\") & \", \" &\nTEXT(COUNTIFS(MeasureTable_WY!G:G,EquipmentTable_NCMR_WY[[#This Row],[measureNCMR_Exterior_None]],MeasureTable_WY!A:A,\"TRUE\"),\"0\") & \", \" &\nTEXT(COUNTIFS(MeasureTable_WY!G:G,EquipmentTable_NCMR_WY[[#This Row],[measureNCMR_Street_None]],MeasureTable_WY!A:A,\"TRUE\"),\"0\")","v":"0, 0, 0"},"Interior Lighting Retrofits - WY",{"$f":"COUNTIF(EquipmentTable_NCMR_WY[[measureNCMR_Interior_None]:[measureNCMR_Street_None]],O12)","v":0}]
["Fluorescents - T5","FLT5HO - 4 Ft","Interior Lighting - Ineligible - Retrofit - v2 - WY","Interior Lighting - Ineligible - Retrofit - v2 - WY","Interior Lighting - Ineligible - Retrofit - v2 - WY","Interior Lighting - Ineligible - Retrofit - v2 - WY","Non-eligible fixture - New Construction/Major Renovation - WY","Non-eligible fixture - New Construction/Major Renovation - WY","Non-eligible fixture - New Construction/Major Renovation - WY","Non-eligible fixture - New Construction/Major Renovation - WY","Non-eligible fixture - New Construction/Major Renovation - WY","Non-eligible fixture - New Construction/Major Renovation - WY",null,{"$f":"TEXT(COUNTIFS(MeasureTable_WY!G:G,EquipmentTable_NCMR_WY[[#This Row],[measureNCMR_Interior_None]],MeasureTable_WY!A:A,\"TRUE\"),\"0\") & \", \" &\nTEXT(COUNTIFS(MeasureTable_WY!G:G,EquipmentTable_NCMR_WY[[#This Row],[measureNCMR_Exterior_None]],MeasureTable_WY!A:A,\"TRUE\"),\"0\") & \", \" &\nTEXT(COUNTIFS(MeasureTable_WY!G:G,EquipmentTable_NCMR_WY[[#This Row],[measureNCMR_Street_None]],MeasureTable_WY!A:A,\"TRUE\"),\"0\")","v":"0, 0, 0"},"Exterior Lighting Retrofits - WY",{"$f":"COUNTIF(EquipmentTable_NCMR_WY[[measureNCMR_Interior_None]:[measureNCMR_Street_None]],O13)","v":0}]
["Fluorescents - T8","FLT8 - 2 Ft","Interior Lighting - Ineligible - Retrofit - v2 - WY","Interior Lighting - Ineligible - Retrofit - v2 - WY","Interior Lighting - Ineligible - Retrofit - v2 - WY","Interior Lighting - Ineligible - Retrofit - v2 - WY","Non-eligible fixture - New Construction/Major Renovation - WY","Non-eligible fixture - New Construction/Major Renovation - WY","Non-eligible fixture - New Construction/Major Renovation - WY","Non-eligible fixture - New Construction/Major Renovation - WY","Non-eligible fixture - New Construction/Major Renovation - WY","Non-eligible fixture - New Construction/Major Renovation - WY",null,{"$f":"TEXT(COUNTIFS(MeasureTable_WY!G:G,EquipmentTable_NCMR_WY[[#This Row],[measureNCMR_Interior_None]],MeasureTable_WY!A:A,\"TRUE\"),\"0\") & \", \" &\nTEXT(COUNTIFS(MeasureTable_WY!G:G,EquipmentTable_NCMR_WY[[#This Row],[measureNCMR_Exterior_None]],MeasureTable_WY!A:A,\"TRUE\"),\"0\") & \", \" &\nTEXT(COUNTIFS(MeasureTable_WY!G:G,EquipmentTable_NCMR_WY[[#This Row],[measureNCMR_Street_None]],MeasureTable_WY!A:A,\"TRUE\"),\"0\")","v":"0, 0, 0"},"Street/Pole - WY",{"$f":"COUNTIF(EquipmentTable_NCMR_WY[[measureNCMR_Interior_None]:[measureNCMR_Street_None]],O14)","v":0}]
["Fluorescents - T8","FLT8 - 3 Ft","Interior Lighting - Ineligible - Retrofit - v2 - WY","Interior Lighting - Ineligible - Retrofit - v2 - WY","Interior Lighting - Ineligible - Retrofit - v2 - WY","Interior Lighting - Ineligible - Retrofit - v2 - WY","Non-eligible fixture - New Construction/Major Renovation - WY","Non-eligible fixture - New Construction/Major Renovation - WY","Non-eligible fixture - New Construction/Major Renovation - WY","Non-eligible fixture - New Construction/Major Renovation - WY","Non-eligible fixture - New Construction/Major Renovation - WY","Non-eligible fixture - New Construction/Major Renovation - WY",null,{"$f":"TEXT(COUNTIFS(MeasureTable_WY!G:G,EquipmentTable_NCMR_WY[[#This Row],[measureNCMR_Interior_None]],MeasureTable_WY!A:A,\"TRUE\"),\"0\") & \", \" &\nTEXT(COUNTIFS(MeasureTable_WY!G:G,EquipmentTable_NCMR_WY[[#This Row],[measureNCMR_Exterior_None]],MeasureTable_WY!A:A,\"TRUE\"),\"0\") & \", \" &\nTEXT(COUNTIFS(MeasureTable_WY!G:G,EquipmentTable_NCMR_WY[[#This Row],[measureNCMR_Street_None]],MeasureTable_WY!A:A,\"TRUE\"),\"0\")","v":"0, 0, 0"},"CFL Wall Pack - New Construction/Major Renovation - WY",{"$f":"COUNTIF(EquipmentTable_NCMR_WY[[measureNCMR_Interior_None]:[measureNCMR_Street_None]],O15)","v":0}]
["Fluorescents - T8","FLT8 - 4 Ft","Interior Lighting - Ineligible - Retrofit - v2 - WY","Interior Lighting - Ineligible - Retrofit - v2 - WY","Interior Lighting - Ineligible - Retrofit - v2 - WY","Interior Lighting - Ineligible - Retrofit - v2 - WY","Non-eligible fixture - New Construction/Major Renovation - WY","Non-eligible fixture - New Construction/Major Renovation - WY","Non-eligible fixture - New Construction/Major Renovation - WY","Non-eligible fixture - New Construction/Major Renovation - WY","Non-eligible fixture - New Construction/Major Renovation - WY","Non-eligible fixture - New Construction/Major Renovation - WY",null,{"$f":"TEXT(COUNTIFS(MeasureTable_WY!G:G,EquipmentTable_NCMR_WY[[#This Row],[measureNCMR_Interior_None]],MeasureTable_WY!A:A,\"TRUE\"),\"0\") & \", \" &\nTEXT(COUNTIFS(MeasureTable_WY!G:G,EquipmentTable_NCMR_WY[[#This Row],[measureNCMR_Exterior_None]],MeasureTable_WY!A:A,\"TRUE\"),\"0\") & \", \" &\nTEXT(COUNTIFS(MeasureTable_WY!G:G,EquipmentTable_NCMR_WY[[#This Row],[measureNCMR_Street_None]],MeasureTable_WY!A:A,\"TRUE\"),\"0\")","v":"0, 0, 0"},"LED Wall Pack Fixture < 50 W with Occupancy Sensor - MID - WY",{"$f":"COUNTIF(EquipmentTable_NCMR_WY[[measureNCMR_Interior_None]:[measureNCMR_Street_None]],O16)","v":0}]
["Fluorescents - T8","FLT8 - 8 Ft","Interior Lighting - Ineligible - Retrofit - v2 - WY","Interior Lighting - Ineligible - Retrofit - v2 - WY","Interior Lighting - Ineligible - Retrofit - v2 - WY","Interior Lighting - Ineligible - Retrofit - v2 - WY","Non-eligible fixture - New Construction/Major Renovation - WY","Non-eligible fixture - New Construction/Major Renovation - WY","Non-eligible fixture - New Construction/Major Renovation - WY","Non-eligible fixture - New Construction/Major Renovation - WY","Non-eligible fixture - New Construction/Major Renovation - WY","Non-eligible fixture - New Construction/Major Renovation - WY",null,{"$f":"TEXT(COUNTIFS(MeasureTable_WY!G:G,EquipmentTable_NCMR_WY[[#This Row],[measureNCMR_Interior_None]],MeasureTable_WY!A:A,\"TRUE\"),\"0\") & \", \" &\nTEXT(COUNTIFS(MeasureTable_WY!G:G,EquipmentTable_NCMR_WY[[#This Row],[measureNCMR_Exterior_None]],MeasureTable_WY!A:A,\"TRUE\"),\"0\") & \", \" &\nTEXT(COUNTIFS(MeasureTable_WY!G:G,EquipmentTable_NCMR_WY[[#This Row],[measureNCMR_Street_None]],MeasureTable_WY!A:A,\"TRUE\"),\"0\")","v":"0, 0, 0"},"LED Wall Pack Fixture < 50 W with Occupancy Sensor - Retrofit - WY",{"$f":"COUNTIF(EquipmentTable_NCMR_WY[[measureNCMR_Interior_None]:[measureNCMR_Street_None]],O17)","v":0}]
["Fluorescents - T8","FUT8 - 2 Ft","Interior Lighting - Ineligible - Retrofit - v2 - WY","Interior Lighting - Ineligible - Retrofit - v2 - WY","Interior Lighting - Ineligible - Retrofit - v2 - WY","Interior Lighting - Ineligible - Retrofit - v2 - WY","Non-eligible fixture - New Construction/Major Renovation - WY","Non-eligible fixture - New Construction/Major Renovation - WY","Non-eligible fixture - New Construction/Major Renovation - WY","Non-eligible fixture - New Construction/Major Renovation - WY","Non-eligible fixture - New Construction/Major Renovation - WY","Non-eligible fixture - New Construction/Major Renovation - WY",null,{"$f":"TEXT(COUNTIFS(MeasureTable_WY!G:G,EquipmentTable_NCMR_WY[[#This Row],[measureNCMR_Interior_None]],MeasureTable_WY!A:A,\"TRUE\"),\"0\") & \", \" &\nTEXT(COUNTIFS(MeasureTable_WY!G:G,EquipmentTable_NCMR_WY[[#This Row],[measureNCMR_Exterior_None]],MeasureTable_WY!A:A,\"TRUE\"),\"0\") & \", \" &\nTEXT(COUNTIFS(MeasureTable_WY!G:G,EquipmentTable_NCMR_WY[[#This Row],[measureNCMR_Street_None]],MeasureTable_WY!A:A,\"TRUE\"),\"0\")","v":"0, 0, 0"},"LED Wall Pack Fixture >= 50 W with Occupancy Sensor - MID - WY",{"$f":"COUNTIF(EquipmentTable_NCMR_WY[[measureNCMR_Interior_None]:[measureNCMR_Street_None]],O18)","v":0}]
["HID","High Pressure Sodium","Non-eligible fixture - New Construction/Major Renovation - WY","Non-eligible fixture - New Construction/Major Renovation - WY","Non-eligible fixture - New Construction/Major Renovation - WY","Non-eligible fixture - New Construction/Major Renovation - WY","Non-eligible fixture - New Construction/Major Renovation - WY","Non-eligible fixture - New Construction/Major Renovation - WY","Non-eligible fixture - New Construction/Major Renovation - WY","Non-eligible fixture - New Construction/Major Renovation - WY","Non-eligible fixture - New Construction/Major Renovation - WY","Non-eligible fixture - New Construction/Major Renovation - WY",null,{"$f":"TEXT(COUNTIFS(MeasureTable_WY!G:G,EquipmentTable_NCMR_WY[[#This Row],[measureNCMR_Interior_None]],MeasureTable_WY!A:A,\"TRUE\"),\"0\") & \", \" &\nTEXT(COUNTIFS(MeasureTable_WY!G:G,EquipmentTable_NCMR_WY[[#This Row],[measureNCMR_Exterior_None]],MeasureTable_WY!A:A,\"TRUE\"),\"0\") & \", \" &\nTEXT(COUNTIFS(MeasureTable_WY!G:G,EquipmentTable_NCMR_WY[[#This Row],[measureNCMR_Street_None]],MeasureTable_WY!A:A,\"TRUE\"),\"0\")","v":"0, 0, 0"},"LED Wall Pack Fixture >= 50 W with Occupancy Sensor - Retrofit - WY",{"$f":"COUNTIF(EquipmentTable_NCMR_WY[[measureNCMR_Interior_None]:[measureNCMR_Street_None]],O19)","v":0}]
["HID","Mercury Vapor","Non-eligible fixture - New Construction/Major Renovation - WY","Non-eligible fixture - New Construction/Major Renovation - WY","Non-eligible fixture - New Construction/Major Renovation - WY","Non-eligible fixture - New Construction/Major Renovation - WY","Non-eligible fixture - New Construction/Major Renovation - WY","Non-eligible fixture - New Construction/Major Renovation - WY","Non-eligible fixture - New Construction/Major Renovation - WY","Non-eligible fixture - New Construction/Major Renovation - WY","Non-eligible fixture - New Construction/Major Renovation - WY","Non-eligible fixture - New Construction/Major Renovation - WY",null,{"$f":"TEXT(COUNTIFS(MeasureTable_WY!G:G,EquipmentTable_NCMR_WY[[#This Row],[measureNCMR_Interior_None]],MeasureTable_WY!A:A,\"TRUE\"),\"0\") & \", \" &\nTEXT(COUNTIFS(MeasureTable_WY!G:G,EquipmentTable_NCMR_WY[[#This Row],[measureNCMR_Exterior_None]],MeasureTable_WY!A:A,\"TRUE\"),\"0\") & \", \" &\nTEXT(COUNTIFS(MeasureTable_WY!G:G,EquipmentTable_NCMR_WY[[#This Row],[measureNCMR_Street_None]],MeasureTable_WY!A:A,\"TRUE\"),\"0\")","v":"0, 0, 0"},"T5 HO Fluorescent Lamp - MID - Reduced Wattage - WY",{"$f":"COUNTIF(EquipmentTable_NCMR_WY[[measureNCMR_Interior_None]:[measureNCMR_Street_None]],O20)","v":0}]
["HID","Metal Halide","Non-eligible fixture - New Construction/Major Renovation - WY","Non-eligible fixture - New Construction/Major Renovation - WY","Non-eligible fixture - New Construction/Major Renovation - WY","Non-eligible fixture - New Construction/Major Renovation - WY","Non-eligible fixture - New Construction/Major Renovation - WY","Non-eligible fixture - New Construction/Major Renovation - WY","Non-eligible fixture - New Construction/Major Renovation - WY","Non-eligible fixture - New Construction/Major Renovation - WY","Non-eligible fixture - New Construction/Major Renovation - WY","Non-eligible fixture - New Construction/Major Renovation - WY",null,{"$f":"TEXT(COUNTIFS(MeasureTable_WY!G:G,EquipmentTable_NCMR_WY[[#This Row],[measureNCMR_Interior_None]],MeasureTable_WY!A:A,\"TRUE\"),\"0\") & \", \" &\nTEXT(COUNTIFS(MeasureTable_WY!G:G,EquipmentTable_NCMR_WY[[#This Row],[measureNCMR_Exterior_None]],MeasureTable_WY!A:A,\"TRUE\"),\"0\") & \", \" &\nTEXT(COUNTIFS(MeasureTable_WY!G:G,EquipmentTable_NCMR_WY[[#This Row],[measureNCMR_Street_None]],MeasureTable_WY!A:A,\"TRUE\"),\"0\")","v":"0, 0, 0"},"T5 HO Fluorescent Lamp - Retrofit - Reduced Wattage - WY",{"$f":"COUNTIF(EquipmentTable_NCMR_WY[[measureNCMR_Interior_None]:[measureNCMR_Street_None]],O21)","v":0}]
["HID","Metal Halide - Ceramic","Non-eligible fixture - New Construction/Major Renovation - WY","Non-eligible fixture - New Construction/Major Renovation - WY","Non-eligible fixture - New Construction/Major Renovation - WY","Non-eligible fixture - New Construction/Major Renovation - WY","Non-eligible fixture - New Construction/Major Renovation - WY","Non-eligible fixture - New Construction/Major Renovation - WY","Non-eligible fixture - New Construction/Major Renovation - WY","Non-eligible fixture - New Construction/Major Renovation - WY","Non-eligible fixture - New Construction/Major Renovation - WY","Non-eligible fixture - New Construction/Major Renovation - WY",null,{"$f":"TEXT(COUNTIFS(MeasureTable_WY!G:G,EquipmentTable_NCMR_WY[[#This Row],[measureNCMR_Interior_None]],MeasureTable_WY!A:A,\"TRUE\"),\"0\") & \", \" &\nTEXT(COUNTIFS(MeasureTable_WY!G:G,EquipmentTable_NCMR_WY[[#This Row],[measureNCMR_Exterior_None]],MeasureTable_WY!A:A,\"TRUE\"),\"0\") & \", \" &\nTEXT(COUNTIFS(MeasureTable_WY!G:G,EquipmentTable_NCMR_WY[[#This Row],[measureNCMR_Street_None]],MeasureTable_WY!A:A,\"TRUE\"),\"0\")","v":"0, 0, 0"},"T8 Fluorescent Lamp - MID - Reduced Wattage - WY",{"$f":"COUNTIF(EquipmentTable_NCMR_WY[[measureNCMR_Interior_None]:[measureNCMR_Street_None]],O22)","v":0}]
["HID","Metal Halide - Pulse Start","Non-eligible fixture - New Construction/Major Renovation - WY","Non-eligible fixture - New Construction/Major Renovation - WY","Non-eligible fixture - New Construction/Major Renovation - WY","Non-eligible fixture - New Construction/Major Renovation - WY","Non-eligible fixture - New Construction/Major Renovation - WY","Non-eligible fixture - New Construction/Major Renovation - WY","Non-eligible fixture - New Construction/Major Renovation - WY","Non-eligible fixture - New Construction/Major Renovation - WY","Non-eligible fixture - New Construction/Major Renovation - WY","Non-eligible fixture - New Construction/Major Renovation - WY",null,{"$f":"TEXT(COUNTIFS(MeasureTable_WY!G:G,EquipmentTable_NCMR_WY[[#This Row],[measureNCMR_Interior_None]],MeasureTable_WY!A:A,\"TRUE\"),\"0\") & \", \" &\nTEXT(COUNTIFS(MeasureTable_WY!G:G,EquipmentTable_NCMR_WY[[#This Row],[measureNCMR_Exterior_None]],MeasureTable_WY!A:A,\"TRUE\"),\"0\") & \", \" &\nTEXT(COUNTIFS(MeasureTable_WY!G:G,EquipmentTable_NCMR_WY[[#This Row],[measureNCMR_Street_None]],MeasureTable_WY!A:A,\"TRUE\"),\"0\")","v":"0, 0, 0"},"T8 Fluorescent Lamp - Retrofit - Reduced Wattage - WY",{"$f":"COUNTIF(EquipmentTable_NCMR_WY[[measureNCMR_Interior_None]:[measureNCMR_Street_None]],O23)","v":0}]
["Incandescents","Halogen","Non-eligible fixture - New Construction/Major Renovation - WY","Non-eligible fixture - New Construction/Major Renovation - WY","Non-eligible fixture - New Construction/Major Renovation - WY","Non-eligible fixture - New Construction/Major Renovation - WY","Non-eligible fixture - New Construction/Major Renovation - WY","Non-eligible fixture - New Construction/Major Renovation - WY","Non-eligible fixture - New Construction/Major Renovation - WY","Non-eligible fixture - New Construction/Major Renovation - WY","Non-eligible fixture - New Construction/Major Renovation - WY","Non-eligible fixture - New Construction/Major Renovation - WY",null,{"$f":"TEXT(COUNTIFS(MeasureTable_WY!G:G,EquipmentTable_NCMR_WY[[#This Row],[measureNCMR_Interior_None]],MeasureTable_WY!A:A,\"TRUE\"),\"0\") & \", \" &\nTEXT(COUNTIFS(MeasureTable_WY!G:G,EquipmentTable_NCMR_WY[[#This Row],[measureNCMR_Exterior_None]],MeasureTable_WY!A:A,\"TRUE\"),\"0\") & \", \" &\nTEXT(COUNTIFS(MeasureTable_WY!G:G,EquipmentTable_NCMR_WY[[#This Row],[measureNCMR_Street_None]],MeasureTable_WY!A:A,\"TRUE\"),\"0\")","v":"0, 0, 0"},"Exterior Dimming Control - New Construction/Major Renovation - WY",{"$f":"COUNTIF(EquipmentTable_NCMR_WY[[measureNCMR_Interior_None]:[measureNCMR_Street_None]],O24)","v":0}]
["Incandescents","Incandescent","Non-eligible fixture - New Construction/Major Renovation - WY","Non-eligible fixture - New Construction/Major Renovation - WY","Non-eligible fixture - New Construction/Major Renovation - WY","Non-eligible fixture - New Construction/Major Renovation - WY","Non-eligible fixture - New Construction/Major Renovation - WY","Non-eligible fixture - New Construction/Major Renovation - WY","Non-eligible fixture - New Construction/Major Renovation - WY","Non-eligible fixture - New Construction/Major Renovation - WY","Non-eligible fixture - New Construction/Major Renovation - WY","Non-eligible fixture - New Construction/Major Renovation - WY",null,{"$f":"TEXT(COUNTIFS(MeasureTable_WY!G:G,EquipmentTable_NCMR_WY[[#This Row],[measureNCMR_Interior_None]],MeasureTable_WY!A:A,\"TRUE\"),\"0\") & \", \" &\nTEXT(COUNTIFS(MeasureTable_WY!G:G,EquipmentTable_NCMR_WY[[#This Row],[measureNCMR_Exterior_None]],MeasureTable_WY!A:A,\"TRUE\"),\"0\") & \", \" &\nTEXT(COUNTIFS(MeasureTable_WY!G:G,EquipmentTable_NCMR_WY[[#This Row],[measureNCMR_Street_None]],MeasureTable_WY!A:A,\"TRUE\"),\"0\")","v":"0, 0, 0"}]
["LED","LED Fixture - Bollard","Interior Lighting - w/out Controls - NCMR - WY","Interior Lighting - w/ Basic Controls - NCMR - WY","Interior Lighting - w/ Networked Lighting Controls - NCMR - WY","Interior Lighting - w/ Advanced Networked Lighting Controls - NCMR - WY","Non-eligible fixture - New Construction/Major Renovation - WY","Non-eligible fixture - New Construction/Major Renovation - WY","Non-eligible fixture - New Construction/Major Renovation - WY","Non-eligible fixture - New Construction/Major Renovation - WY","Non-eligible fixture - New Construction/Major Renovation - WY","Non-eligible fixture - New Construction/Major Renovation - WY",null,{"$f":"TEXT(COUNTIFS(MeasureTable_WY!G:G,EquipmentTable_NCMR_WY[[#This Row],[measureNCMR_Interior_None]],MeasureTable_WY!A:A,\"TRUE\"),\"0\") & \", \" &\nTEXT(COUNTIFS(MeasureTable_WY!G:G,EquipmentTable_NCMR_WY[[#This Row],[measureNCMR_Exterior_None]],MeasureTable_WY!A:A,\"TRUE\"),\"0\") & \", \" &\nTEXT(COUNTIFS(MeasureTable_WY!G:G,EquipmentTable_NCMR_WY[[#This Row],[measureNCMR_Street_None]],MeasureTable_WY!A:A,\"TRUE\"),\"0\")","v":"0, 0, 0"}]
["LED","LED Fixture - Canopy/Soffit","Interior Lighting - w/out Controls - NCMR - WY","Interior Lighting - w/ Basic Controls - NCMR - WY","Interior Lighting - w/ Networked Lighting Controls - NCMR - WY","Interior Lighting - w/ Advanced Networked Lighting Controls - NCMR - WY","contact us for the NCMR Exterior tool","contact us for the NCMR Exterior tool","contact us for the NCMR Exterior tool","Non-eligible fixture - New Construction/Major Renovation - WY","Non-eligible fixture - New Construction/Major Renovation - WY","Non-eligible fixture - New Construction/Major Renovation - WY",null,{"$f":"TEXT(COUNTIFS(MeasureTable_WY!G:G,EquipmentTable_NCMR_WY[[#This Row],[measureNCMR_Interior_None]],MeasureTable_WY!A:A,\"TRUE\"),\"0\") & \", \" &\nTEXT(COUNTIFS(MeasureTable_WY!G:G,EquipmentTable_NCMR_WY[[#This Row],[measureNCMR_Exterior_None]],MeasureTable_WY!A:A,\"TRUE\"),\"0\") & \", \" &\nTEXT(COUNTIFS(MeasureTable_WY!G:G,EquipmentTable_NCMR_WY[[#This Row],[measureNCMR_Street_None]],MeasureTable_WY!A:A,\"TRUE\"),\"0\")","v":"0, 0, 0"}]
["LED","LED Fixture - Direct/Indirect","Interior Lighting - w/out Controls - NCMR - WY","Interior Lighting - w/ Basic Controls - NCMR - WY","Interior Lighting - w/ Networked Lighting Controls - NCMR - WY","Interior Lighting - w/ Advanced Networked Lighting Controls - NCMR - WY","Non-eligible fixture - New Construction/Major Renovation - WY","Non-eligible fixture - New Construction/Major Renovation - WY","Non-eligible fixture - New Construction/Major Renovation - WY","Non-eligible fixture - New Construction/Major Renovation - WY","Non-eligible fixture - New Construction/Major Renovation - WY","Non-eligible fixture - New Construction/Major Renovation - WY",null,{"$f":"TEXT(COUNTIFS(MeasureTable_WY!G:G,EquipmentTable_NCMR_WY[[#This Row],[measureNCMR_Interior_None]],MeasureTable_WY!A:A,\"TRUE\"),\"0\") & \", \" &\nTEXT(COUNTIFS(MeasureTable_WY!G:G,EquipmentTable_NCMR_WY[[#This Row],[measureNCMR_Exterior_None]],MeasureTable_WY!A:A,\"TRUE\"),\"0\") & \", \" &\nTEXT(COUNTIFS(MeasureTable_WY!G:G,EquipmentTable_NCMR_WY[[#This Row],[measureNCMR_Street_None]],MeasureTable_WY!A:A,\"TRUE\"),\"0\")","v":"0, 0, 0"}]
["LED","LED Fixture - Downlight","Interior Lighting - w/out Controls - NCMR - WY","Interior Lighting - w/ Basic Controls - NCMR - WY","Interior Lighting - w/ Networked Lighting Controls - NCMR - WY","Interior Lighting - w/ Advanced Networked Lighting Controls - NCMR - WY","Non-eligible fixture - New Construction/Major Renovation - WY","Non-eligible fixture - New Construction/Major Renovation - WY","Non-eligible fixture - New Construction/Major Renovation - WY","Non-eligible fixture - New Construction/Major Renovation - WY","Non-eligible fixture - New Construction/Major Renovation - WY","Non-eligible fixture - New Construction/Major Renovation - WY",null,{"$f":"TEXT(COUNTIFS(MeasureTable_WY!G:G,EquipmentTable_NCMR_WY[[#This Row],[measureNCMR_Interior_None]],MeasureTable_WY!A:A,\"TRUE\"),\"0\") & \", \" &\nTEXT(COUNTIFS(MeasureTable_WY!G:G,EquipmentTable_NCMR_WY[[#This Row],[measureNCMR_Exterior_None]],MeasureTable_WY!A:A,\"TRUE\"),\"0\") & \", \" &\nTEXT(COUNTIFS(MeasureTable_WY!G:G,EquipmentTable_NCMR_WY[[#This Row],[measureNCMR_Street_None]],MeasureTable_WY!A:A,\"TRUE\"),\"0\")","v":"0, 0, 0"}]
["LED","LED Fixture - Flood < 100W","Interior Lighting - w/out Controls - NCMR - WY","Interior Lighting - w/ Basic Controls - NCMR - WY","Interior Lighting - w/ Networked Lighting Controls - NCMR - WY","Interior Lighting - w/ Advanced Networked Lighting Controls - NCMR - WY","contact us for the NCMR Exterior tool","contact us for the NCMR Exterior tool","contact us for the NCMR Exterior tool","Non-eligible fixture - New Construction/Major Renovation - WY","Non-eligible fixture - New Construction/Major Renovation - WY","Non-eligible fixture - New Construction/Major Renovation - WY",null,{"$f":"TEXT(COUNTIFS(MeasureTable_WY!G:G,EquipmentTable_NCMR_WY[[#This Row],[measureNCMR_Interior_None]],MeasureTable_WY!A:A,\"TRUE\"),\"0\") & \", \" &\nTEXT(COUNTIFS(MeasureTable_WY!G:G,EquipmentTable_NCMR_WY[[#This Row],[measureNCMR_Exterior_None]],MeasureTable_WY!A:A,\"TRUE\"),\"0\") & \", \" &\nTEXT(COUNTIFS(MeasureTable_WY!G:G,EquipmentTable_NCMR_WY[[#This Row],[measureNCMR_Street_None]],MeasureTable_WY!A:A,\"TRUE\"),\"0\")","v":"0, 0, 0"}]
["LED","LED Fixture - Flood >= 100W","Interior Lighting - w/out Controls - NCMR - WY","Interior Lighting - w/ Basic Controls - NCMR - WY","Interior Lighting - w/ Networked Lighting Controls - NCMR - WY","Interior Lighting - w/ Advanced Networked Lighting Controls - NCMR - WY","contact us for the NCMR Exterior tool","contact us for the NCMR Exterior tool","contact us for the NCMR Exterior tool","Non-eligible fixture - New Construction/Major Renovation - WY","Non-eligible fixture - New Construction/Major Renovation - WY","Non-eligible fixture - New Construction/Major Renovation - WY",null,{"$f":"TEXT(COUNTIFS(MeasureTable_WY!G:G,EquipmentTable_NCMR_WY[[#This Row],[measureNCMR_Interior_None]],MeasureTable_WY!A:A,\"TRUE\"),\"0\") & \", \" &\nTEXT(COUNTIFS(MeasureTable_WY!G:G,EquipmentTable_NCMR_WY[[#This Row],[measureNCMR_Exterior_None]],MeasureTable_WY!A:A,\"TRUE\"),\"0\") & \", \" &\nTEXT(COUNTIFS(MeasureTable_WY!G:G,EquipmentTable_NCMR_WY[[#This Row],[measureNCMR_Street_None]],MeasureTable_WY!A:A,\"TRUE\"),\"0\")","v":"0, 0, 0"}]
["LED","LED Fixture - High/Low Bay","Interior Lighting - w/out Controls - NCMR - WY","Interior Lighting - w/ Basic Controls - NCMR - WY","Interior Lighting - w/ Networked Lighting Controls - NCMR - WY","Interior Lighting - w/ Advanced Networked Lighting Controls - NCMR - WY","Non-eligible fixture - New Construction/Major Renovation - WY","Non-eligible fixture - New Construction/Major Renovation - WY","Non-eligible fixture - New Construction/Major Renovation - WY","Non-eligible fixture - New Construction/Major Renovation - WY","Non-eligible fixture - New Construction/Major Renovation - WY","Non-eligible fixture - New Construction/Major Renovation - WY",null,{"$f":"TEXT(COUNTIFS(MeasureTable_WY!G:G,EquipmentTable_NCMR_WY[[#This Row],[measureNCMR_Interior_None]],MeasureTable_WY!A:A,\"TRUE\"),\"0\") & \", \" &\nTEXT(COUNTIFS(MeasureTable_WY!G:G,EquipmentTable_NCMR_WY[[#This Row],[measureNCMR_Exterior_None]],MeasureTable_WY!A:A,\"TRUE\"),\"0\") & \", \" &\nTEXT(COUNTIFS(MeasureTable_WY!G:G,EquipmentTable_NCMR_WY[[#This Row],[measureNCMR_Street_None]],MeasureTable_WY!A:A,\"TRUE\"),\"0\")","v":"0, 0, 0"}]
["LED","LED Fixture - Integral Track Head","Interior Lighting - w/out Controls - NCMR - WY","Interior Lighting - w/ Basic Controls - NCMR - WY","Interior Lighting - w/ Networked Lighting Controls - NCMR - WY","Interior Lighting - w/ Advanced Networked Lighting Controls - NCMR - WY","Non-eligible fixture - New Construction/Major Renovation - WY","Non-eligible fixture - New Construction/Major Renovation - WY","Non-eligible fixture - New Construction/Major Renovation - WY","Non-eligible fixture - New Construction/Major Renovation - WY","Non-eligible fixture - New Construction/Major Renovation - WY","Non-eligible fixture - New Construction/Major Renovation - WY",null,{"$f":"TEXT(COUNTIFS(MeasureTable_WY!G:G,EquipmentTable_NCMR_WY[[#This Row],[measureNCMR_Interior_None]],MeasureTable_WY!A:A,\"TRUE\"),\"0\") & \", \" &\nTEXT(COUNTIFS(MeasureTable_WY!G:G,EquipmentTable_NCMR_WY[[#This Row],[measureNCMR_Exterior_None]],MeasureTable_WY!A:A,\"TRUE\"),\"0\") & \", \" &\nTEXT(COUNTIFS(MeasureTable_WY!G:G,EquipmentTable_NCMR_WY[[#This Row],[measureNCMR_Street_None]],MeasureTable_WY!A:A,\"TRUE\"),\"0\")","v":"0, 0, 0"}]
["LED","LED Fixture - Pole Mount <= 200W","Interior Lighting - w/out Controls - NCMR - WY","Interior Lighting - w/ Basic Controls - NCMR - WY","Interior Lighting - w/ Networked Lighting Controls - NCMR - WY","Interior Lighting - w/ Advanced Networked Lighting Controls - NCMR - WY","contact us for the NCMR Exterior tool","contact us for the NCMR Exterior tool","contact us for the NCMR Exterior tool","contact us for the NCMR Exterior tool","contact us for the NCMR Exterior tool","contact us for the NCMR Exterior tool",null,{"$f":"TEXT(COUNTIFS(MeasureTable_WY!G:G,EquipmentTable_NCMR_WY[[#This Row],[measureNCMR_Interior_None]],MeasureTable_WY!A:A,\"TRUE\"),\"0\") & \", \" &\nTEXT(COUNTIFS(MeasureTable_WY!G:G,EquipmentTable_NCMR_WY[[#This Row],[measureNCMR_Exterior_None]],MeasureTable_WY!A:A,\"TRUE\"),\"0\") & \", \" &\nTEXT(COUNTIFS(MeasureTable_WY!G:G,EquipmentTable_NCMR_WY[[#This Row],[measureNCMR_Street_None]],MeasureTable_WY!A:A,\"TRUE\"),\"0\")","v":"0, 0, 0"}]
["LED","LED Fixture - Pole Mount > 200W","Interior Lighting - w/out Controls - NCMR - WY","Interior Lighting - w/ Basic Controls - NCMR - WY","Interior Lighting - w/ Networked Lighting Controls - NCMR - WY","Interior Lighting - w/ Advanced Networked Lighting Controls - NCMR - WY","contact us for the NCMR Exterior tool","contact us for the NCMR Exterior tool","contact us for the NCMR Exterior tool","contact us for the NCMR Exterior tool","contact us for the NCMR Exterior tool","contact us for the NCMR Exterior tool",null,{"$f":"TEXT(COUNTIFS(MeasureTable_WY!G:G,EquipmentTable_NCMR_WY[[#This Row],[measureNCMR_Interior_None]],MeasureTable_WY!A:A,\"TRUE\"),\"0\") & \", \" &\nTEXT(COUNTIFS(MeasureTable_WY!G:G,EquipmentTable_NCMR_WY[[#This Row],[measureNCMR_Exterior_None]],MeasureTable_WY!A:A,\"TRUE\"),\"0\") & \", \" &\nTEXT(COUNTIFS(MeasureTable_WY!G:G,EquipmentTable_NCMR_WY[[#This Row],[measureNCMR_Street_None]],MeasureTable_WY!A:A,\"TRUE\"),\"0\")","v":"0, 0, 0"}]
["LED","LED Fixture - Pole Mount Decorative < 75W","Interior Lighting - w/out Controls - NCMR - WY","Interior Lighting - w/ Basic Controls - NCMR - WY","Interior Lighting - w/ Networked Lighting Controls - NCMR - WY","Interior Lighting - w/ Advanced Networked Lighting Controls - NCMR - WY","contact us for the NCMR Exterior tool","contact us for the NCMR Exterior tool","contact us for the NCMR Exterior tool","contact us for the NCMR Exterior tool","contact us for the NCMR Exterior tool","contact us for the NCMR Exterior tool",null,{"$f":"TEXT(COUNTIFS(MeasureTable_WY!G:G,EquipmentTable_NCMR_WY[[#This Row],[measureNCMR_Interior_None]],MeasureTable_WY!A:A,\"TRUE\"),\"0\") & \", \" &\nTEXT(COUNTIFS(MeasureTable_WY!G:G,EquipmentTable_NCMR_WY[[#This Row],[measureNCMR_Exterior_None]],MeasureTable_WY!A:A,\"TRUE\"),\"0\") & \", \" &\nTEXT(COUNTIFS(MeasureTable_WY!G:G,EquipmentTable_NCMR_WY[[#This Row],[measureNCMR_Street_None]],MeasureTable_WY!A:A,\"TRUE\"),\"0\")","v":"0, 0, 0"}]
["LED","LED Fixture - Sconce/Wall Wash","Interior Lighting - w/out Controls - NCMR - WY","Interior Lighting - w/ Basic Controls - NCMR - WY","Interior Lighting - w/ Networked Lighting Controls - NCMR - WY","Interior Lighting - w/ Advanced Networked Lighting Controls - NCMR - WY","Non-eligible fixture - New Construction/Major Renovation - WY","Non-eligible fixture - New Construction/Major Renovation - WY","Non-eligible fixture - New Construction/Major Renovation - WY","Non-eligible fixture - New Construction/Major Renovation - WY","Non-eligible fixture - New Construction/Major Renovation - WY","Non-eligible fixture - New Construction/Major Renovation - WY",null,{"$f":"TEXT(COUNTIFS(MeasureTable_WY!G:G,EquipmentTable_NCMR_WY[[#This Row],[measureNCMR_Interior_None]],MeasureTable_WY!A:A,\"TRUE\"),\"0\") & \", \" &\nTEXT(COUNTIFS(MeasureTable_WY!G:G,EquipmentTable_NCMR_WY[[#This Row],[measureNCMR_Exterior_None]],MeasureTable_WY!A:A,\"TRUE\"),\"0\") & \", \" &\nTEXT(COUNTIFS(MeasureTable_WY!G:G,EquipmentTable_NCMR_WY[[#This Row],[measureNCMR_Street_None]],MeasureTable_WY!A:A,\"TRUE\"),\"0\")","v":"0, 0, 0"}]
["LED","LED Fixture - Strip/Wrap","Interior Lighting - w/out Controls - NCMR - WY","Interior Lighting - w/ Basic Controls - NCMR - WY","Interior Lighting - w/ Networked Lighting Controls - NCMR - WY","Interior Lighting - w/ Advanced Networked Lighting Controls - NCMR - WY","Non-eligible fixture - New Construction/Major Renovation - WY","Non-eligible fixture - New Construction/Major Renovation - WY","Non-eligible fixture - New Construction/Major Renovation - WY","Non-eligible fixture - New Construction/Major Renovation - WY","Non-eligible fixture - New Construction/Major Renovation - WY","Non-eligible fixture - New Construction/Major Renovation - WY",null,{"$f":"TEXT(COUNTIFS(MeasureTable_WY!G:G,EquipmentTable_NCMR_WY[[#This Row],[measureNCMR_Interior_None]],MeasureTable_WY!A:A,\"TRUE\"),\"0\") & \", \" &\nTEXT(COUNTIFS(MeasureTable_WY!G:G,EquipmentTable_NCMR_WY[[#This Row],[measureNCMR_Exterior_None]],MeasureTable_WY!A:A,\"TRUE\"),\"0\") & \", \" &\nTEXT(COUNTIFS(MeasureTable_WY!G:G,EquipmentTable_NCMR_WY[[#This Row],[measureNCMR_Street_None]],MeasureTable_WY!A:A,\"TRUE\"),\"0\")","v":"0, 0, 0"}]
["LED","LED Fixture - Surface Mount","Interior Lighting - w/out Controls - NCMR - WY","Interior Lighting - w/ Basic Controls - NCMR - WY","Interior Lighting - w/ Networked Lighting Controls - NCMR - WY","Interior Lighting - w/ Advanced Networked Lighting Controls - NCMR - WY","Non-eligible fixture - New Construction/Major Renovation - WY","Non-eligible fixture - New Construction/Major Renovation - WY","Non-eligible fixture - New Construction/Major Renovation - WY","Non-eligible fixture - New Construction/Major Renovation - WY","Non-eligible fixture - New Construction/Major Renovation - WY","Non-eligible fixture - New Construction/Major Renovation - WY",null,{"$f":"TEXT(COUNTIFS(MeasureTable_WY!G:G,EquipmentTable_NCMR_WY[[#This Row],[measureNCMR_Interior_None]],MeasureTable_WY!A:A,\"TRUE\"),\"0\") & \", \" &\nTEXT(COUNTIFS(MeasureTable_WY!G:G,EquipmentTable_NCMR_WY[[#This Row],[measureNCMR_Exterior_None]],MeasureTable_WY!A:A,\"TRUE\"),\"0\") & \", \" &\nTEXT(COUNTIFS(MeasureTable_WY!G:G,EquipmentTable_NCMR_WY[[#This Row],[measureNCMR_Street_None]],MeasureTable_WY!A:A,\"TRUE\"),\"0\")","v":"0, 0, 0"}]
["LED","LED Fixture - Troffer","Interior Lighting - w/out Controls - NCMR - WY","Interior Lighting - w/ Basic Controls - NCMR - WY","Interior Lighting - w/ Networked Lighting Controls - NCMR - WY","Interior Lighting - w/ Advanced Networked Lighting Controls - NCMR - WY","Non-eligible fixture - New Construction/Major Renovation - WY","Non-eligible fixture - New Construction/Major Renovation - WY","Non-eligible fixture - New Construction/Major Renovation - WY","Non-eligible fixture - New Construction/Major Renovation - WY","Non-eligible fixture - New Construction/Major Renovation - WY","Non-eligible fixture - New Construction/Major Renovation - WY",null,{"$f":"TEXT(COUNTIFS(MeasureTable_WY!G:G,EquipmentTable_NCMR_WY[[#This Row],[measureNCMR_Interior_None]],MeasureTable_WY!A:A,\"TRUE\"),\"0\") & \", \" &\nTEXT(COUNTIFS(MeasureTable_WY!G:G,EquipmentTable_NCMR_WY[[#This Row],[measureNCMR_Exterior_None]],MeasureTable_WY!A:A,\"TRUE\"),\"0\") & \", \" &\nTEXT(COUNTIFS(MeasureTable_WY!G:G,EquipmentTable_NCMR_WY[[#This Row],[measureNCMR_Street_None]],MeasureTable_WY!A:A,\"TRUE\"),\"0\")","v":"0, 0, 0"}]
["LED","LED Fixture - Wall Pack < 50W","Interior Lighting - w/out Controls - NCMR - WY","Interior Lighting - w/ Basic Controls - NCMR - WY","Interior Lighting - w/ Networked Lighting Controls - NCMR - WY","Interior Lighting - w/ Advanced Networked Lighting Controls - NCMR - WY","contact us for the NCMR Exterior tool","contact us for the NCMR Exterior tool","contact us for the NCMR Exterior tool","Non-eligible fixture - New Construction/Major Renovation - WY","Non-eligible fixture - New Construction/Major Renovation - WY","Non-eligible fixture - New Construction/Major Renovation - WY",null,{"$f":"TEXT(COUNTIFS(MeasureTable_WY!G:G,EquipmentTable_NCMR_WY[[#This Row],[measureNCMR_Interior_None]],MeasureTable_WY!A:A,\"TRUE\"),\"0\") & \", \" &\nTEXT(COUNTIFS(MeasureTable_WY!G:G,EquipmentTable_NCMR_WY[[#This Row],[measureNCMR_Exterior_None]],MeasureTable_WY!A:A,\"TRUE\"),\"0\") & \", \" &\nTEXT(COUNTIFS(MeasureTable_WY!G:G,EquipmentTable_NCMR_WY[[#This Row],[measureNCMR_Street_None]],MeasureTable_WY!A:A,\"TRUE\"),\"0\")","v":"0, 0, 0"}]
["LED","LED Fixture - Wall Pack >= 50W","Interior Lighting - w/out Controls - NCMR - WY","Interior Lighting - w/ Basic Controls - NCMR - WY","Interior Lighting - w/ Networked Lighting Controls - NCMR - WY","Interior Lighting - w/ Advanced Networked Lighting Controls - NCMR - WY","contact us for the NCMR Exterior tool","contact us for the NCMR Exterior tool","contact us for the NCMR Exterior tool","Non-eligible fixture - New Construction/Major Renovation - WY","Non-eligible fixture - New Construction/Major Renovation - WY","Non-eligible fixture - New Construction/Major Renovation - WY",null,{"$f":"TEXT(COUNTIFS(MeasureTable_WY!G:G,EquipmentTable_NCMR_WY[[#This Row],[measureNCMR_Interior_None]],MeasureTable_WY!A:A,\"TRUE\"),\"0\") & \", \" &\nTEXT(COUNTIFS(MeasureTable_WY!G:G,EquipmentTable_NCMR_WY[[#This Row],[measureNCMR_Exterior_None]],MeasureTable_WY!A:A,\"TRUE\"),\"0\") & \", \" &\nTEXT(COUNTIFS(MeasureTable_WY!G:G,EquipmentTable_NCMR_WY[[#This Row],[measureNCMR_Street_None]],MeasureTable_WY!A:A,\"TRUE\"),\"0\")","v":"0, 0, 0"}]
["LED","LED Fixture - Wall Pack w/ occ sensor- < 50W","Interior Lighting - w/out Controls - NCMR - WY","Interior Lighting - w/ Basic Controls - NCMR - WY","Interior Lighting - w/ Networked Lighting Controls - NCMR - WY","Interior Lighting - w/ Advanced Networked Lighting Controls - NCMR - WY","contact us for the NCMR Exterior tool","contact us for the NCMR Exterior tool","contact us for the NCMR Exterior tool","Non-eligible fixture - New Construction/Major Renovation - WY","Non-eligible fixture - New Construction/Major Renovation - WY","Non-eligible fixture - New Construction/Major Renovation - WY",null,{"$f":"TEXT(COUNTIFS(MeasureTable_WY!G:G,EquipmentTable_NCMR_WY[[#This Row],[measureNCMR_Interior_None]],MeasureTable_WY!A:A,\"TRUE\"),\"0\") & \", \" &\nTEXT(COUNTIFS(MeasureTable_WY!G:G,EquipmentTable_NCMR_WY[[#This Row],[measureNCMR_Exterior_None]],MeasureTable_WY!A:A,\"TRUE\"),\"0\") & \", \" &\nTEXT(COUNTIFS(MeasureTable_WY!G:G,EquipmentTable_NCMR_WY[[#This Row],[measureNCMR_Street_None]],MeasureTable_WY!A:A,\"TRUE\"),\"0\")","v":"0, 0, 0"}]
["LED","LED Fixture - Wall Pack w/ occ sensor- >= 50W","Interior Lighting - w/out Controls - NCMR - WY","Interior Lighting - w/ Basic Controls - NCMR - WY","Interior Lighting - w/ Networked Lighting Controls - NCMR - WY","Interior Lighting - w/ Advanced Networked Lighting Controls - NCMR - WY","contact us for the NCMR Exterior tool","contact us for the NCMR Exterior tool","contact us for the NCMR Exterior tool","Non-eligible fixture - New Construction/Major Renovation - WY","Non-eligible fixture - New Construction/Major Renovation - WY","Non-eligible fixture - New Construction/Major Renovation - WY",null,{"$f":"TEXT(COUNTIFS(MeasureTable_WY!G:G,EquipmentTable_NCMR_WY[[#This Row],[measureNCMR_Interior_None]],MeasureTable_WY!A:A,\"TRUE\"),\"0\") & \", \" &\nTEXT(COUNTIFS(MeasureTable_WY!G:G,EquipmentTable_NCMR_WY[[#This Row],[measureNCMR_Exterior_None]],MeasureTable_WY!A:A,\"TRUE\"),\"0\") & \", \" &\nTEXT(COUNTIFS(MeasureTable_WY!G:G,EquipmentTable_NCMR_WY[[#This Row],[measureNCMR_Street_None]],MeasureTable_WY!A:A,\"TRUE\"),\"0\")","v":"0, 0, 0"}]
["LED","LED MR16","Interior Lighting - Ineligible - Retrofit - v2 - WY","Interior Lighting - Ineligible - Retrofit - v2 - WY","Interior Lighting - Ineligible - Retrofit - v2 - WY","Interior Lighting - Ineligible - Retrofit - v2 - WY","Non-eligible fixture - New Construction/Major Renovation - WY","Non-eligible fixture - New Construction/Major Renovation - WY","Non-eligible fixture - New Construction/Major Renovation - WY","Non-eligible fixture - New Construction/Major Renovation - WY","Non-eligible fixture - New Construction/Major Renovation - WY","Non-eligible fixture - New Construction/Major Renovation - WY",null,{"$f":"TEXT(COUNTIFS(MeasureTable_WY!G:G,EquipmentTable_NCMR_WY[[#This Row],[measureNCMR_Interior_None]],MeasureTable_WY!A:A,\"TRUE\"),\"0\") & \", \" &\nTEXT(COUNTIFS(MeasureTable_WY!G:G,EquipmentTable_NCMR_WY[[#This Row],[measureNCMR_Exterior_None]],MeasureTable_WY!A:A,\"TRUE\"),\"0\") & \", \" &\nTEXT(COUNTIFS(MeasureTable_WY!G:G,EquipmentTable_NCMR_WY[[#This Row],[measureNCMR_Street_None]],MeasureTable_WY!A:A,\"TRUE\"),\"0\")","v":"0, 0, 0"}]
["LED","LED Retrofit Kit - Downlight","Interior Lighting - Ineligible - Retrofit - v2 - WY","Interior Lighting - Ineligible - Retrofit - v2 - WY","Interior Lighting - Ineligible - Retrofit - v2 - WY","Interior Lighting - Ineligible - Retrofit - v2 - WY","Non-eligible fixture - New Construction/Major Renovation - WY","Non-eligible fixture - New Construction/Major Renovation - WY","Non-eligible fixture - New Construction/Major Renovation - WY","Non-eligible fixture - New Construction/Major Renovation - WY","Non-eligible fixture - New Construction/Major Renovation - WY","Non-eligible fixture - New Construction/Major Renovation - WY",null,{"$f":"TEXT(COUNTIFS(MeasureTable_WY!G:G,EquipmentTable_NCMR_WY[[#This Row],[measureNCMR_Interior_None]],MeasureTable_WY!A:A,\"TRUE\"),\"0\") & \", \" &\nTEXT(COUNTIFS(MeasureTable_WY!G:G,EquipmentTable_NCMR_WY[[#This Row],[measureNCMR_Exterior_None]],MeasureTable_WY!A:A,\"TRUE\"),\"0\") & \", \" &\nTEXT(COUNTIFS(MeasureTable_WY!G:G,EquipmentTable_NCMR_WY[[#This Row],[measureNCMR_Street_None]],MeasureTable_WY!A:A,\"TRUE\"),\"0\")","v":"0, 0, 0"}]
["LED","LED Screw-In Lamp","Interior Lighting - Ineligible - Retrofit - v2 - WY","Interior Lighting - Ineligible - Retrofit - v2 - WY","Interior Lighting - Ineligible - Retrofit - v2 - WY","Interior Lighting - Ineligible - Retrofit - v2 - WY","Non-eligible fixture - New Construction/Major Renovation - WY","Non-eligible fixture - New Construction/Major Renovation - WY","Non-eligible fixture - New Construction/Major Renovation - WY","Non-eligible fixture - New Construction/Major Renovation - WY","Non-eligible fixture - New Construction/Major Renovation - WY","Non-eligible fixture - New Construction/Major Renovation - WY",null,{"$f":"TEXT(COUNTIFS(MeasureTable_WY!G:G,EquipmentTable_NCMR_WY[[#This Row],[measureNCMR_Interior_None]],MeasureTable_WY!A:A,\"TRUE\"),\"0\") & \", \" &\nTEXT(COUNTIFS(MeasureTable_WY!G:G,EquipmentTable_NCMR_WY[[#This Row],[measureNCMR_Exterior_None]],MeasureTable_WY!A:A,\"TRUE\"),\"0\") & \", \" &\nTEXT(COUNTIFS(MeasureTable_WY!G:G,EquipmentTable_NCMR_WY[[#This Row],[measureNCMR_Street_None]],MeasureTable_WY!A:A,\"TRUE\"),\"0\")","v":"0, 0, 0"}]
["LED","T5 TLED - 2 Ft","Interior Lighting - Ineligible - Retrofit - v2 - WY","Interior Lighting - Ineligible - Retrofit - v2 - WY","Interior Lighting - Ineligible - Retrofit - v2 - WY","Interior Lighting - Ineligible - Retrofit - v2 - WY","Non-eligible fixture - New Construction/Major Renovation - WY","Non-eligible fixture - New Construction/Major Renovation - WY","Non-eligible fixture - New Construction/Major Renovation - WY","Non-eligible fixture - New Construction/Major Renovation - WY","Non-eligible fixture - New Construction/Major Renovation - WY","Non-eligible fixture - New Construction/Major Renovation - WY",null,{"$f":"TEXT(COUNTIFS(MeasureTable_WY!G:G,EquipmentTable_NCMR_WY[[#This Row],[measureNCMR_Interior_None]],MeasureTable_WY!A:A,\"TRUE\"),\"0\") & \", \" &\nTEXT(COUNTIFS(MeasureTable_WY!G:G,EquipmentTable_NCMR_WY[[#This Row],[measureNCMR_Exterior_None]],MeasureTable_WY!A:A,\"TRUE\"),\"0\") & \", \" &\nTEXT(COUNTIFS(MeasureTable_WY!G:G,EquipmentTable_NCMR_WY[[#This Row],[measureNCMR_Street_None]],MeasureTable_WY!A:A,\"TRUE\"),\"0\")","v":"0, 0, 0"}]
["LED","T5 TLED - 4 Ft","Interior Lighting - Ineligible - Retrofit - v2 - WY","Interior Lighting - Ineligible - Retrofit - v2 - WY","Interior Lighting - Ineligible - Retrofit - v2 - WY","Interior Lighting - Ineligible - Retrofit - v2 - WY","Non-eligible fixture - New Construction/Major Renovation - WY","Non-eligible fixture - New Construction/Major Renovation - WY","Non-eligible fixture - New Construction/Major Renovation - WY","Non-eligible fixture - New Construction/Major Renovation - WY","Non-eligible fixture - New Construction/Major Renovation - WY","Non-eligible fixture - New Construction/Major Renovation - WY",null,{"$f":"TEXT(COUNTIFS(MeasureTable_WY!G:G,EquipmentTable_NCMR_WY[[#This Row],[measureNCMR_Interior_None]],MeasureTable_WY!A:A,\"TRUE\"),\"0\") & \", \" &\nTEXT(COUNTIFS(MeasureTable_WY!G:G,EquipmentTable_NCMR_WY[[#This Row],[measureNCMR_Exterior_None]],MeasureTable_WY!A:A,\"TRUE\"),\"0\") & \", \" &\nTEXT(COUNTIFS(MeasureTable_WY!G:G,EquipmentTable_NCMR_WY[[#This Row],[measureNCMR_Street_None]],MeasureTable_WY!A:A,\"TRUE\"),\"0\")","v":"0, 0, 0"}]
["LED","T8 TLED - 2 Ft","Interior Lighting - Ineligible - Retrofit - v2 - WY","Interior Lighting - Ineligible - Retrofit - v2 - WY","Interior Lighting - Ineligible - Retrofit - v2 - WY","Interior Lighting - Ineligible - Retrofit - v2 - WY","Non-eligible fixture - New Construction/Major Renovation - WY","Non-eligible fixture - New Construction/Major Renovation - WY","Non-eligible fixture - New Construction/Major Renovation - WY","Non-eligible fixture - New Construction/Major Renovation - WY","Non-eligible fixture - New Construction/Major Renovation - WY","Non-eligible fixture - New Construction/Major Renovation - WY",null,{"$f":"TEXT(COUNTIFS(MeasureTable_WY!G:G,EquipmentTable_NCMR_WY[[#This Row],[measureNCMR_Interior_None]],MeasureTable_WY!A:A,\"TRUE\"),\"0\") & \", \" &\nTEXT(COUNTIFS(MeasureTable_WY!G:G,EquipmentTable_NCMR_WY[[#This Row],[measureNCMR_Exterior_None]],MeasureTable_WY!A:A,\"TRUE\"),\"0\") & \", \" &\nTEXT(COUNTIFS(MeasureTable_WY!G:G,EquipmentTable_NCMR_WY[[#This Row],[measureNCMR_Street_None]],MeasureTable_WY!A:A,\"TRUE\"),\"0\")","v":"0, 0, 0"}]
["LED","T8 TLED - 4 Ft","Interior Lighting - Ineligible - Retrofit - v2 - WY","Interior Lighting - Ineligible - Retrofit - v2 - WY","Interior Lighting - Ineligible - Retrofit - v2 - WY","Interior Lighting - Ineligible - Retrofit - v2 - WY","Non-eligible fixture - New Construction/Major Renovation - WY","Non-eligible fixture - New Construction/Major Renovation - WY","Non-eligible fixture - New Construction/Major Renovation - WY","Non-eligible fixture - New Construction/Major Renovation - WY","Non-eligible fixture - New Construction/Major Renovation - WY","Non-eligible fixture - New Construction/Major Renovation - WY",null,{"$f":"TEXT(COUNTIFS(MeasureTable_WY!G:G,EquipmentTable_NCMR_WY[[#This Row],[measureNCMR_Interior_None]],MeasureTable_WY!A:A,\"TRUE\"),\"0\") & \", \" &\nTEXT(COUNTIFS(MeasureTable_WY!G:G,EquipmentTable_NCMR_WY[[#This Row],[measureNCMR_Exterior_None]],MeasureTable_WY!A:A,\"TRUE\"),\"0\") & \", \" &\nTEXT(COUNTIFS(MeasureTable_WY!G:G,EquipmentTable_NCMR_WY[[#This Row],[measureNCMR_Street_None]],MeasureTable_WY!A:A,\"TRUE\"),\"0\")","v":"0, 0, 0"}]
[null,null,null,null,null,null,null,null,null,null,null,null,null,{"$f":"TEXT(COUNTIFS(MeasureTable_WY!G:G,EquipmentTable_NCMR_WY[[#This Row],[measureNCMR_Interior_None]],MeasureTable_WY!A:A,\"TRUE\"),\"0\") & \", \" &\nTEXT(COUNTIFS(MeasureTable_WY!G:G,EquipmentTable_NCMR_WY[[#This Row],[measureNCMR_Exterior_None]],MeasureTable_WY!A:A,\"TRUE\"),\"0\") & \", \" &\nTEXT(COUNTIFS(MeasureTable_WY!G:G,EquipmentTable_NCMR_WY[[#This Row],[measureNCMR_Street_None]],MeasureTable_WY!A:A,\"TRUE\"),\"0\")","v":"0, 0, 0"}]
[null,null,null,null,null,null,null,null,null,null,null,null,null,{"$f":"TEXT(COUNTIFS(MeasureTable_WY!G:G,EquipmentTable_NCMR_WY[[#This Row],[measureNCMR_Interior_None]],MeasureTable_WY!A:A,\"TRUE\"),\"0\") & \", \" &\nTEXT(COUNTIFS(MeasureTable_WY!G:G,EquipmentTable_NCMR_WY[[#This Row],[measureNCMR_Exterior_None]],MeasureTable_WY!A:A,\"TRUE\"),\"0\") & \", \" &\nTEXT(COUNTIFS(MeasureTable_WY!G:G,EquipmentTable_NCMR_WY[[#This Row],[measureNCMR_Street_None]],MeasureTable_WY!A:A,\"TRUE\"),\"0\")","v":"0, 0, 0"}]

{"sheet":"MeasureTable_WY","index":24,"n_rows":112,"n_cols":55,"rows_kept":112,"cut":false,"hidden":true,"merged":[]}
[]
["Eligible Measure","MeasureEligibleConcatenate","State","Measure Reference Number","Measure Name","Measure Category","Measure Type","Measure Sub Type","Measure Description","Version Number","Active Indicator","Effective Start Date","Effective End Date","Baseline description","Baseline Value","Baseline Value Unit","Efficiency requirement description","Efficient Case Value","Efficient Case Unit","Eligibility Case Description","Gross incremental annual electric savings unit","GrossIncrementalAnnualElectricSavings","GrossAverageMonthlyDemandReduction","GrossIncrementalAnnualGasSavings_MMBtu per yr","Savings attribute notes","IncrementalCostDollarUnit","IncrementalMeasureCost","CustomerIncentiveDollarPerUnit","Partner(Contractor)Incentive($/unit)","Unit","Cost attribute notes","MeasureLife","NonEnergyBenefitsWater_DollarsPerYear","NonEnergyBenefitsOther_DollarsPerYear","Units for NEB Other","General attribute notes","Energy savings calculation method","Demand savings calculation method","Program Type","DSM Resource Class","Applicability","Review Date","Project Cap","ProjectCapPercent","CustomerIncentiveperkW($/kW)","SiteSpecificCalculation","MeasureCap%","MaximumCustomerIncentive","MaximumPartner/ContractorIncentive","Planned Realization Rate","Planned Net to Gross Ratio","Planned Realization or NTG Notes","Evaluated Realization Rate","Evaluated Net to Gross Ratio","Evaluated Realization or NTG Notes"]
[{"$f":"IF(AND(MeasureEffectiveDate>=MeasureTable_WY[[#This Row],[Effective Start Date]],MeasureTable_WY[[#This Row],[Effective Start Date]]<>\"\"),IF(MeasureTable_WY[[#This Row],[Effective End Date]]=\"\",TRUE,IF(MeasureEffectiveDate<=MeasureTable_WY[[#This Row],[Effective End Date]],TRUE,FALSE)))","v":false},{"$f":"MeasureTable_WY[[#This Row],[Measure Name]]&\" | \"&MeasureTable_WY[[#This Row],[Eligible Measure]]","v":"Exterior Advanced Lighting Controls - Advanced Networked Dimming Controls - NCMR - WY | FALSE"},"WY","03152023-016","Exterior Advanced Lighting Controls - Advanced Networked Dimming Controls - NCMR - WY","Lighting","Controls","Exterior Lighting Control","Exterior lighting system in New Construction/Major Renovation with advanced networked dimming controls only.",2,"Active","2025-10-24","3000-12-31","Non-LED exterior fixture. The baseline wattage for EEMs is the lesser of: a) Wattage of the existing equipment, or b) Wattage of deemed baseline equipment on the energy efficiency program section of the Rocky Mountain Power website. ",null,null,"Must control LED tech in an ext light application. Control must be DLC listed, continuously dimming, and use an app or computer program to control fixtures. Must result in at minimum 45% energy savings. ",null,null,"All LED equipment must be listed as qualified on the Rocky Mountain Power website; this includes products on DesignLights Consortium (DLC). Fixtures must be controlled using advanced networked dimming controls.","Site-Specific","Site-Specific","Site-Specific",null,null,"Site-Specific","Site-Specific",7.0000000000000007E-2,null,"kWh",null,"8",null,null,null,null,"RMP Calculation","RMP Calculation","Prescriptive","2","New Construction/Major Renovation",45936,null,null,null,"true",null,"0.07",null,"1","0.85","2022-2023 Wyoming wattsmart Business Evaluation, RR set to 1.0 for all RR's above 1.0 for planning purposes"]
[{"$f":"IF(AND(MeasureEffectiveDate>=MeasureTable_WY[[#This Row],[Effective Start Date]],MeasureTable_WY[[#This Row],[Effective Start Date]]<>\"\"),IF(MeasureTable_WY[[#This Row],[Effective End Date]]=\"\",TRUE,IF(MeasureEffectiveDate<=MeasureTable_WY[[#This Row],[Effective End Date]],TRUE,FALSE)))","v":false},{"$f":"MeasureTable_WY[[#This Row],[Measure Name]]&\" | \"&MeasureTable_WY[[#This Row],[Eligible Measure]]","v":"Exterior Advanced Lighting Controls - Advanced Networked Dimming Controls - Retrofit - WY | FALSE"},"WY","03152023-014","Exterior Advanced Lighting Controls - Advanced Networked Dimming Controls - Retrofit - WY","Lighting","Controls","Exterior Lighting Control","Exterior lighting system upgrades with advanced networked dimming controls only.",2,"Active","2025-10-24","3000-12-31","Non-LED exterior fixture. The baseline wattage for EEMs is the lesser of: a) Wattage of the existing equipment, or b) Wattage of deemed baseline equipment on the energy efficiency program section of the Rocky Mountain Power website. ",null,null,"Must control LED tech in an ext light application. Control must be DLC listed, continuously dimming, and use an app or computer program to control fixtures. Must result in at minimum 45% energy savings. ",null,null,"All LED equipment must be listed as qualified on the Rocky Mountain Power website; this includes products on DesignLights Consortium (DLC). Fixtures must be controlled using advanced networked dimming controls.","Site-Specific","Site-Specific","Site-Specific",null,null,"Site-Specific","Site-Specific",0.6,null,"Watt Controlled",null,"8",null,null,null,null,"RMP Calculation","RMP Calculation","Prescriptive","2","Retrofit",45936,"true","0.7",null,"true",null,"0.75",null,"1","0.85","2022-2023 Wyoming wattsmart Business Evaluation, RR set to 1.0 for all RR's above 1.0 for planning purposes"]
[{"$f":"IF(AND(MeasureEffectiveDate>=MeasureTable_WY[[#This Row],[Effective Start Date]],MeasureTable_WY[[#This Row],[Effective Start Date]]<>\"\"),IF(MeasureTable_WY[[#This Row],[Effective End Date]]=\"\",TRUE,IF(MeasureEffectiveDate<=MeasureTable_WY[[#This Row],[Effective End Date]],TRUE,FALSE)))","v":false},{"$f":"MeasureTable_WY[[#This Row],[Measure Name]]&\" | \"&MeasureTable_WY[[#This Row],[Eligible Measure]]","v":"Exterior Advanced Lighting Controls - Basic Dimming Controls - NCMR - WY | FALSE"},"WY","03152023-015","Exterior Advanced Lighting Controls - Basic Dimming Controls - NCMR - WY","Lighting","Controls","Exterior Lighting Control","Exterior lighting system in New Construction/Major Renovation with basic dimming controls only.",2,"Active","2025-10-24","3000-12-31","Non-LED exterior fixture. The baseline wattage for EEMs is the lesser of: a) Wattage of the existing equipment, or b) Wattage of deemed baseline equipment on the energy efficiency program section of the Rocky Mountain Power website. ",null,null,"Must control LED tech in an ext light application. Control can be occupancy or schedule-based, and result in minimum of 35% energy savings. Networking not required.",null,null,"All LED equipment must be listed as qualified on the Rocky Mountain Power website; this includes products on DesignLights Consortium (DLC). Fixtures must be controlled using basic dimming controls.","Site-Specific","Site-Specific","Site-Specific",null,null,"Site-Specific","Site-Specific",0.05,null,"kWh",null,"8",null,null,null,null,"RMP Calculation","RMP Calculation","Prescriptive","2","New Construction/Major Renovation",45936,null,null,null,"true",null,"0.07",null,"1","0.85","2022-2023 Wyoming wattsmart Business Evaluation, RR set to 1.0 for all RR's above 1.0 for planning purposes"]
[{"$f":"IF(AND(MeasureEffectiveDate>=MeasureTable_WY[[#This Row],[Effective Start Date]],MeasureTable_WY[[#This Row],[Effective Start Date]]<>\"\"),IF(MeasureTable_WY[[#This Row],[Effective End Date]]=\"\",TRUE,IF(MeasureEffectiveDate<=MeasureTable_WY[[#This Row],[Effective End Date]],TRUE,FALSE)))","v":false},{"$f":"MeasureTable_WY[[#This Row],[Measure Name]]&\" | \"&MeasureTable_WY[[#This Row],[Eligible Measure]]","v":"Exterior Advanced Lighting Controls - Basic Dimming Controls - Retrofit - WY | FALSE"},"WY","03152023-013","Exterior Advanced Lighting Controls - Basic Dimming Controls - Retrofit - WY","Lighting","Controls","Exterior Lighting Control","Exterior lighting system upgrades with basic dimming controls only.",2,"Active","2025-10-24","3000-12-31","Non-LED exterior fixture. The baseline wattage for EEMs is the lesser of: a) Wattage of the existing equipment, or b) Wattage of deemed baseline equipment on the energy efficiency program section of the Rocky Mountain Power website. ",null,null,"Must control LED tech in an ext light application. Control can be occupancy or schedule-based, and result in minimum of 35% energy savings. Networking not required.",null,null,"All LED equipment must be listed as qualified on the Rocky Mountain Power website; this includes products on DesignLights Consortium (DLC). Fixtures must be controlled using basic dimming controls.","Site-Specific","Site-Specific","Site-Specific",null,null,"Site-Specific","Site-Specific",0.35,null,"Watt Controlled",null,"8",null,null,null,null,"RMP Calculation","RMP Calculation","Prescriptive","2","Retrofit",45936,"true","0.7",null,"true",null,"0.75",null,"1","0.85","2022-2023 Wyoming wattsmart Business Evaluation, RR set to 1.0 for all RR's above 1.0 for planning purposes"]
[{"$f":"IF(AND(MeasureEffectiveDate>=MeasureTable_WY[[#This Row],[Effective Start Date]],MeasureTable_WY[[#This Row],[Effective Start Date]]<>\"\"),IF(MeasureTable_WY[[#This Row],[Effective End Date]]=\"\",TRUE,IF(MeasureEffectiveDate<=MeasureTable_WY[[#This Row],[Effective End Date]],TRUE,FALSE)))","v":false},{"$f":"MeasureTable_WY[[#This Row],[Measure Name]]&\" | \"&MeasureTable_WY[[#This Row],[Eligible Measure]]","v":"Exterior Fixture Replacement - w/ No Controls - Retrofit - WY | FALSE"},"WY","10242025-185","Exterior Fixture Replacement - w/ No Controls - Retrofit - WY","Lighting","Exterior Lighting","Fixture Retrofit/Replacement","Exterior lighting upgrade. LED must be listed on qualified equipment list. ",1,"Active","2025-10-24","3000-12-31","Existing non-LED exterior fixture. The baseline wattage for EEMs is the lesser of: a) Wattage of the existing equipment, or b) Wattage of deemed baseline equipment on the energy efficiency program section of the Rocky Mountain Power website. ",null,null,"To be eligible for incentive, the new lighting system must use less energy than the existing/baseline lighting system. ",null,null,"All LED equipment must be listed as qualified on the Rocky Mountain Power website; this includes products on DesignLights Consortium (DLC).","Site-Specific","Site-Specific","Site-Specific",null,null,"Site-Specific","Site-Specific",0.35,null,"Watt Reduced",null,"15",null,null,null,"Maximum Incentive level(s) noted are non-prescriptive maximum incentives.","RMP Calculation","RMP Calculation","Prescriptive","2","Retrofit",45936,"true","0.7",null,"true",null,"1",null,"1","0.85","2022-2023 Wyoming wattsmart Business Evaluation, RR set to 1.0 for all RR's above 1.0 for planning purposes"]
[{"$f":"IF(AND(MeasureEffectiveDate>=MeasureTable_WY[[#This Row],[Effective Start Date]],MeasureTable_WY[[#This Row],[Effective Start Date]]<>\"\"),IF(MeasureTable_WY[[#This Row],[Effective End Date]]=\"\",TRUE,IF(MeasureEffectiveDate<=MeasureTable_WY[[#This Row],[Effective End Date]],TRUE,FALSE)))","v":false},{"$f":"MeasureTable_WY[[#This Row],[Measure Name]]&\" | \"&MeasureTable_WY[[#This Row],[Eligible Measure]]","v":"Exterior Fixture Replacement - w/Advanced Networked Dimming - Retrofit - WY | FALSE"},"WY","10242025-187","Exterior Fixture Replacement - w/Advanced Networked Dimming - Retrofit - WY","Lighting","Exterior Lighting","Fixture Retrofit/Replacement","Exterior lighting upgrade, with advanced networked dimming controls. Must be on qualified equipment list. ",1,"Active","2025-10-24","3000-12-31","Existing non-LED exterior fixture. The baseline wattage for EEMs is the lesser of: a) Wattage of the existing equipment, or b) Wattage of deemed baseline equipment on the energy efficiency program section of the Rocky Mountain Power website. ",null,null,"Full fixture replacement with LED fixture on the Rocky Mountain Power qualified list (DLC qualified) along with advanced networked dimming controls",null,null,"All LED equipment must be listed as qualified on the Rocky Mountain Power website; this includes products on DesignLights Consortium (DLC). Fixtures must be controlled using advanced dimming controls.","Site-Specific","Site-Specific","Site-Specific",null,null,"Site-Specific","Site-Specific",0.7,null,"Watt Reduced",null,"15",null,null,null,"Maximum Incentive level(s) noted are non-prescriptive maximum incentives.","RMP Calculation","RMP Calculation","Prescriptive","2","Retrofit",45936,"true","0.7",null,"true",null,"1",null,"1","0.85","2022-2023 Wyoming wattsmart Business Evaluation, RR set to 1.0 for all RR's above 1.0 for planning purposes"]
[{"$f":"IF(AND(MeasureEffectiveDate>=MeasureTable_WY[[#This Row],[Effective Start Date]],MeasureTable_WY[[#This Row],[Effective Start Date]]<>\"\"),IF(MeasureTable_WY[[#This Row],[Effective End Date]]=\"\",TRUE,IF(MeasureEffectiveDate<=MeasureTable_WY[[#This Row],[Effective End Date]],TRUE,FALSE)))","v":false},{"$f":"MeasureTable_WY[[#This Row],[Measure Name]]&\" | \"&MeasureTable_WY[[#This Row],[Eligible Measure]]","v":"Exterior Fixture Replacement - w/Basic Dimming - Retrofit - WY | FALSE"},"WY","10242025-186","Exterior Fixture Replacement - w/Basic Dimming - Retrofit - WY","Lighting","Exterior Lighting","Fixture Retrofit/Replacement","Exterior lighting upgrade, with basic dimming controls. Must be on qualified equipment list. ",1,"Active","2025-10-24","3000-12-31","Existing non-LED exterior fixture. The baseline wattage for EEMs is the lesser of: a) Wattage of the existing equipment, or b) Wattage of deemed baseline equipment on the energy efficiency program section of the Rocky Mountain Power website. ",null,null,"Full fixture replacement with LED fixture on the Rocky Mountain Power qualified list (DLC qualified) along with basic exterior dimming controls",null,null,"All LED equipment must be listed as qualified on the Rocky Mountain Power website; this includes products on DesignLights Consortium (DLC). Fixtures must be controlled using basic dimming controls.","Site-Specific","Site-Specific","Site-Specific",null,null,"Site-Specific","Site-Specific",0.5,null,"Watt Reduced",null,"15",null,null,null,"Maximum Incentive level(s) noted are non-prescriptive maximum incentives.","RMP Calculation","RMP Calculation","Prescriptive","2","Retrofit",45936,"true","0.7",null,"true",null,"1",null,"1","0.85","2022-2023 Wyoming wattsmart Business Evaluation, RR set to 1.0 for all RR's above 1.0 for planning purposes"]
[{"$f":"IF(AND(MeasureEffectiveDate>=MeasureTable_WY[[#This Row],[Effective Start Date]],MeasureTable_WY[[#This Row],[Effective Start Date]]<>\"\"),IF(MeasureTable_WY[[#This Row],[Effective End Date]]=\"\",TRUE,IF(MeasureEffectiveDate<=MeasureTable_WY[[#This Row],[Effective End Date]],TRUE,FALSE)))","v":false},{"$f":"MeasureTable_WY[[#This Row],[Measure Name]]&\" | \"&MeasureTable_WY[[#This Row],[Eligible Measure]]","v":"Exterior Fixture Retrofit Kit - w/ No Controls - Retrofit - WY | FALSE"},"WY","10242025-189","Exterior Fixture Retrofit Kit - w/ No Controls - Retrofit - WY","Lighting","Exterior Lighting","Fixture Retrofit/Replacement","Exterior lighting upgrade. LED must be listed on qualified equipment list. ",1,"Active","2025-10-24","3000-12-31","Existing non-LED exterior fixture. The baseline wattage for EEMs is the lesser of: a) Wattage of the existing equipment, or b) Wattage of deemed baseline equipment on the energy efficiency program section of the Rocky Mountain Power website. ",null,null,"To be eligible for incentive, the new lighting system must use less energy than the existing/baseline lighting system. ",null,null,"All LED equipment must be listed as qualified on the Rocky Mountain Power website; this includes products on DesignLights Consortium (DLC).","Site-Specific","Site-Specific","Site-Specific",null,null,"Site-Specific","Site-Specific",0.35,null,"Watt Reduced",null,"15",null,null,null,"Maximum Incentive level(s) noted are non-prescriptive maximum incentives.","RMP Calculation","RMP Calculation","Prescriptive","2","Retrofit",45936,"true","0.7",null,"true",null,"1",null,"1","0.85","2022-2023 Wyoming wattsmart Business Evaluation, RR set to 1.0 for all RR's above 1.0 for planning purposes"]
[{"$f":"IF(AND(MeasureEffectiveDate>=MeasureTable_WY[[#This Row],[Effective Start Date]],MeasureTable_WY[[#This Row],[Effective Start Date]]<>\"\"),IF(MeasureTable_WY[[#This Row],[Effective End Date]]=\"\",TRUE,IF(MeasureEffectiveDate<=MeasureTable_WY[[#This Row],[Effective End Date]],TRUE,FALSE)))","v":false},{"$f":"MeasureTable_WY[[#This Row],[Measure Name]]&\" | \"&MeasureTable_WY[[#This Row],[Eligible Measure]]","v":"Exterior Fixture Retrofit Kit - w/Advanced Networked Dimming - Retrofit - WY | FALSE"},"WY","10242025-191","Exterior Fixture Retrofit Kit - w/Advanced Networked Dimming - Retrofit - WY","Lighting","Exterior Lighting","Fixture Retrofit/Replacement","Exterior lighting upgrade, with advanced networked dimming controls. Must be on qualified equipment list. ",1,"Active","2025-10-24","3000-12-31","Existing non-LED exterior fixture. The baseline wattage for EEMs is the lesser of: a) Wattage of the existing equipment, or b) Wattage of deemed baseline equipment on the energy efficiency program section of the Rocky Mountain Power website. ",null,null,"LED retrofit kit on the Rocky Mountain Power qualified list (DLC) along with advanced networked dimming controls",null,null,"All LED equipment must be listed as qualified on the Rocky Mountain Power website; this includes products on DesignLights Consortium (DLC). Fixtures must be controlled using advanced dimming controls.","Site-Specific","Site-Specific","Site-Specific",null,null,"Site-Specific","Site-Specific",0.7,null,"Watt Reduced",null,"15",null,null,null,"Maximum Incentive level(s) noted are non-prescriptive maximum incentives.","RMP Calculation","RMP Calculation","Prescriptive","2","Retrofit",45936,"true","0.7",null,"true",null,"1",null,"1","0.85","2022-2023 Wyoming wattsmart Business Evaluation, RR set to 1.0 for all RR's above 1.0 for planning purposes"]
[{"$f":"IF(AND(MeasureEffectiveDate>=MeasureTable_WY[[#This Row],[Effective Start Date]],MeasureTable_WY[[#This Row],[Effective Start Date]]<>\"\"),IF(MeasureTable_WY[[#This Row],[Effective End Date]]=\"\",TRUE,IF(MeasureEffectiveDate<=MeasureTable_WY[[#This Row],[Effective End Date]],TRUE,FALSE)))","v":false},{"$f":"MeasureTable_WY[[#This Row],[Measure Name]]&\" | \"&MeasureTable_WY[[#This Row],[Eligible Measure]]","v":"Exterior Fixture Retrofit Kit - w/Basic Dimming - Retrofit - WY | FALSE"},"WY","10242025-190","Exterior Fixture Retrofit Kit - w/Basic Dimming - Retrofit - WY","Lighting","Exterior Lighting","Fixture Retrofit/Replacement","Exterior lighting upgrade, with basic dimming controls. Must be on qualified equipment list. ",1,"Active","2025-10-24","3000-12-31","Existing non-LED exterior fixture. The baseline wattage for EEMs is the lesser of: a) Wattage of the existing equipment, or b) Wattage of deemed baseline equipment on the energy efficiency program section of the Rocky Mountain Power website. ",null,null,"LED retrofit kit on the Rocky Mountain Power qualified list (DLC) along with basic exterior dimming controls",null,null,"All LED equipment must be listed as qualified on the Rocky Mountain Power website; this includes products on DesignLights Consortium (DLC). Fixtures must be controlled using basic dimming controls.","Site-Specific","Site-Specific","Site-Specific",null,null,"Site-Specific","Site-Specific",0.5,null,"Watt Reduced",null,"15",null,null,null,"Maximum Incentive level(s) noted are non-prescriptive maximum incentives.","RMP Calculation","RMP Calculation","Prescriptive","2","Retrofit",45936,"true","0.7",null,"true",null,"1",null,"1","0.85","2022-2023 Wyoming wattsmart Business Evaluation, RR set to 1.0 for all RR's above 1.0 for planning purposes"]
[{"$f":"IF(AND(MeasureEffectiveDate>=MeasureTable_WY[[#This Row],[Effective Start Date]],MeasureTable_WY[[#This Row],[Effective Start Date]]<>\"\"),IF(MeasureTable_WY[[#This Row],[Effective End Date]]=\"\",TRUE,IF(MeasureEffectiveDate<=MeasureTable_WY[[#This Row],[Effective End Date]],TRUE,FALSE)))","v":false},{"$f":"MeasureTable_WY[[#This Row],[Measure Name]]&\" | \"&MeasureTable_WY[[#This Row],[Eligible Measure]]","v":"Exterior Lighting - Custom - NCMR - v2 - WY | FALSE"},"WY","01302014-004_v2","Exterior Lighting - Custom - NCMR - v2 - WY","Lighting","Custom","Exterior Lighting","Site-specific exterior lighting system installation in a new construction setting.",2,"Active","2025-10-24","3000-12-31","Non-LED exterior fixture. The baseline wattage for EEMs is the lesser of: a) Wattage of the existing equipment, or b) Wattage of deemed baseline equipment on the energy efficiency program section of the Rocky Mountain Power website. ",null,null,"To be eligible for incentive, the new lighting system must use less energy than the existing/baseline lighting system. ",null,null,"All LED equipment must be listed as qualified on the Rocky Mountain Power website; this includes products on DesignLights Consortium (DLC).","Site-Specific","Site-Specific","Site-Specific",null,null,"Site-Specific","Site-Specific",0.04,null,"kWh",null,"15",null,null,null,null,"RMP Calculation","RMP Calculation","Prescriptive","2","New Construction/Major Renovation",45936,null,null,null,"true",null,"0.04",null,"1","0.85","2022-2023 Wyoming wattsmart Business Evaluation, RR set to 1.0 for all RR's above 1.0 for planning purposes"]
[{"$f":"IF(AND(MeasureEffectiveDate>=MeasureTable_WY[[#This Row],[Effective Start Date]],MeasureTable_WY[[#This Row],[Effective Start Date]]<>\"\"),IF(MeasureTable_WY[[#This Row],[Effective End Date]]=\"\",TRUE,IF(MeasureEffectiveDate<=MeasureTable_WY[[#This Row],[Effective End Date]],TRUE,FALSE)))","v":false},{"$f":"MeasureTable_WY[[#This Row],[Measure Name]]&\" | \"&MeasureTable_WY[[#This Row],[Eligible Measure]]","v":"Exterior Lighting - Custom - Retrofit - WY | FALSE"},"WY","10242025-194","Exterior Lighting - Custom - Retrofit - WY","Lighting","Custom","Exterior Lighting","Custom exterior lighting installation. Installed in a retrofit application",1,"Active","2025-10-24","3000-12-31","Existing non-LED exterior fixture. The baseline wattage for EEMs is the lesser of: a) Wattage of the existing equipment, or b) Wattage of deemed baseline equipment on the energy efficiency program section of the Rocky Mountain Power website. ",null,null,"To be eligible for incentive, the new lighting system must use less energy than the existing/baseline lighting system. ",null,null,"All LED equipment must be listed as qualified on the Rocky Mountain Power website; this includes products on DesignLights Consortium (DLC).","Site-Specific","Site-Specific","Site-Specific",null,null,"Site-Specific","Site-Specific",0.1,null,"kWh",null,"15",null,null,null,"Maximum Incentive level(s) noted are non-prescriptive maximum incentives.","RMP Calculation","RMP Calculation","Prescriptive","2","Retrofit",45936,"true","0.7",null,"true",null,"0.15",null,"1","0.85","2022-2023 Wyoming wattsmart Business Evaluation, RR set to 1.0 for all RR's above 1.0 for planning purposes"]
[{"$f":"IF(AND(MeasureEffectiveDate>=MeasureTable_WY[[#This Row],[Effective Start Date]],MeasureTable_WY[[#This Row],[Effective Start Date]]<>\"\"),IF(MeasureTable_WY[[#This Row],[Effective End Date]]=\"\",TRUE,IF(MeasureEffectiveDate<=MeasureTable_WY[[#This Row],[Effective End Date]],TRUE,FALSE)))","v":false},{"$f":"MeasureTable_WY[[#This Row],[Measure Name]]&\" | \"&MeasureTable_WY[[#This Row],[Eligible Measure]]","v":"Interior Advanced Networked Lighting Controls/LLLCs - Retrofit - v4 - WY | FALSE"},"WY","12312018-008_v4","Interior Advanced Networked Lighting Controls/LLLCs - Retrofit - v4 - WY","Lighting","Controls","Interior Lighting Controls","Interior advanced networked lighting controls/lllcs. Installed in a retrofit application. ",1,"Active","2025-10-24","3000-12-31","Baseline wattage for all retrofit lighting EEMs is the lesser of: a) Wattage of the existing equipment, or b) Wattage of deemed baseline equipment as determined by Rocky Mountain Power.",null,null,"To be eligible for the incentives listed, the new lighting system must use less energy than the existing lighting system replaced or the baseline lighting system as determined by Rocky Mountain Power.",null,null,"Installed lighting equipment (and controls, if applicable) must be eligible as defined in the qualified equipment lists posted on the Rocky Mountain Power website.","Site-Specific","Site-Specific","Site-Specific",null,null,"Site-Specific","Site-Specific",0.75,null,"Watt Controlled",null,"8",null,null,null,"Maximum Incentive level(s) noted are non-prescriptive maximum incentives.","RMP Calculation","RMP Calculation","Prescriptive","2","Retrofit",45936,"true","0.7",null,"true",null,"0.75",null,"1","0.85","2022-2023 Wyoming wattsmart Business Evaluation, RR's above 1.0 are reset to 1.0 for planning purposes"]
[{"$f":"IF(AND(MeasureEffectiveDate>=MeasureTable_WY[[#This Row],[Effective Start Date]],MeasureTable_WY[[#This Row],[Effective Start Date]]<>\"\"),IF(MeasureTable_WY[[#This Row],[Effective End Date]]=\"\",TRUE,IF(MeasureEffectiveDate<=MeasureTable_WY[[#This Row],[Effective End Date]],TRUE,FALSE)))","v":false},{"$f":"MeasureTable_WY[[#This Row],[Measure Name]]&\" | \"&MeasureTable_WY[[#This Row],[Eligible Measure]]","v":"Interior Basic Lighting Controls - Retrofit - v3 - WY | FALSE"},"WY","12312018-009_v3","Interior Basic Lighting Controls - Retrofit - v3 - WY","Lighting","Controls","Interior Lighting Controls","Interior basic lighting controls. Installed in a retrofit application.",1,"Active","2023-03-15","3000-12-31","Baseline wattage for all retrofit lighting EEMs is the lesser of: a) Wattage of the existing equipment, or b) Wattage of deemed baseline equipment as determined by Rocky Mountain Power.",null,null,"Basic lighting controls on interior lighting equipment.",null,null,"Installed lighting equipment (and controls, if applicable) must be eligible as defined in the qualified equipment lists posted on the Rocky Mountain Power website.","Site-Specific","Site-Specific","Site-Specific",null,null,"Site-Specific","Site-Specific",0.18,null,"kWh",null,"8",null,null,null,null,"RMP Calculation","RMP Calculation","Prescriptive","2","Retrofit",44936,"true","0.7",null,"true",null,"0.22",null,"1","0.67","2021 Wyoming wattsmart Business Evaluation"]
[{"$f":"IF(AND(MeasureEffectiveDate>=MeasureTable_WY[[#This Row],[Effective Start Date]],MeasureTable_WY[[#This Row],[Effective Start Date]]<>\"\"),IF(MeasureTable_WY[[#This Row],[Effective End Date]]=\"\",TRUE,IF(MeasureEffectiveDate<=MeasureTable_WY[[#This Row],[Effective End Date]],TRUE,FALSE)))","v":false},{"$f":"MeasureTable_WY[[#This Row],[Measure Name]]&\" | \"&MeasureTable_WY[[#This Row],[Eligible Measure]]","v":"Interior Fixture Replacement - w/ Advanced Networked Lighting Controls/LLLCs - Retrofit - v4 - WY | FALSE"},"WY","12312018-012_v4","Interior Fixture Replacement - w/ Advanced Networked Lighting Controls/LLLCs - Retrofit - v4 - WY","Lighting","Interior Lighting","Fixture Retrofit/Replacement","Interior fixture replacement with advanced networked lighting controls, as defined on RMP Website. Installed in a retrofit application. ",1,"Active","2025-10-24","3000-12-31","Baseline wattage for all retrofit lighting EEMs is the lesser of: a) Wattage of the existing equipment, or b) Wattage of deemed baseline equipment as determined by Rocky Mountain Power.",null,null,"To be eligible for the incentives listed, the new lighting system must use less energy than the existing lighting system replaced or the baseline lighting system as determined by Rocky Mountain Power.",null,null,"Installed lighting equipment (and controls, if applicable) must be eligible as defined in the qualified equipment lists posted on the Rocky Mountain Power website.","Site-Specific","Site-Specific","Site-Specific",null,null,"Site-Specific","Site-Specific",1.2,null,"Watt Reduced",null,"15",null,null,null,"Maximum Incentive level(s) noted are non-prescriptive maximum incentives.","RMP Calculation","RMP Calculation","Prescriptive","2","Retrofit",45936,"true","0.7",null,"true",null,"1.5",null,"1","0.85","2022-2023 Wyoming wattsmart Business Evaluation, RR's above 1.0 are reset to 1.0 for planning purposes"]
[{"$f":"IF(AND(MeasureEffectiveDate>=MeasureTable_WY[[#This Row],[Effective Start Date]],MeasureTable_WY[[#This Row],[Effective Start Date]]<>\"\"),IF(MeasureTable_WY[[#This Row],[Effective End Date]]=\"\",TRUE,IF(MeasureEffectiveDate<=MeasureTable_WY[[#This Row],[Effective End Date]],TRUE,FALSE)))","v":false},{"$f":"MeasureTable_WY[[#This Row],[Measure Name]]&\" | \"&MeasureTable_WY[[#This Row],[Eligible Measure]]","v":"Interior Fixture Replacement - w/ Basic Controls - Retrofit - v2 - WY | FALSE"},"WY","12312018-013_v2","Interior Fixture Replacement - w/ Basic Controls - Retrofit - v2 - WY","Lighting","Interior Lighting","Fixture Retrofit/Replacement","Interior fixture replacement with basic controls, as defined on RMP website. Installed in a retrofit application. ",3,"Active","2025-10-24","3000-12-31","Baseline wattage for all retrofit lighting EEMs is the lesser of: a) Wattage of the existing equipment, or b) Wattage of deemed baseline equipment as determined by Rocky Mountain Power.",null,null,"To be eligible for the incentives listed, the new lighting system must use less energy than the existing lighting system replaced or the baseline lighting system as determined by Rocky Mountain Power.",null,null,"Installed lighting equipment (and controls, if applicable) must be eligible as defined in the qualified equipment lists posted on the Rocky Mountain Power website.","Site-Specific","Site-Specific","Site-Specific",null,null,"Site-Specific","Site-Specific",0.6,null,"Watt Reduced",null,"15",null,null,null,"Maximum Incentive level(s) noted are non-prescriptive maximum incentives.","RMP Calculation","RMP Calculation","Prescriptive","2","Retrofit",45936,"true","0.7",null,"true",null,"1.5",null,"1","0.85","2022-2023 Wyoming wattsmart Business Evaluation, RR's above 1.0 are reset to 1.0 for planning purposes"]
[{"$f":"IF(AND(MeasureEffectiveDate>=MeasureTable_WY[[#This Row],[Effective Start Date]],MeasureTable_WY[[#This Row],[Effective Start Date]]<>\"\"),IF(MeasureTable_WY[[#This Row],[Effective End Date]]=\"\",TRUE,IF(MeasureEffectiveDate<=MeasureTable_WY[[#This Row],[Effective End Date]],TRUE,FALSE)))","v":false},{"$f":"MeasureTable_WY[[#This Row],[Measure Name]]&\" | \"&MeasureTable_WY[[#This Row],[Eligible Measure]]","v":"Interior Fixture Replacement - w/ Networked Lighting Controls - Retrofit - WY | FALSE"},"WY","03152023-025","Interior Fixture Replacement - w/ Networked Lighting Controls - Retrofit - WY","Lighting","Interior Lighting","Fixture Retrofit/Replacement","Interior fixture replacement with networked lighting controls, as defined on RMP Website. Installed in a retrofit application. ",2,"Active","2025-10-24","3000-12-31","Baseline wattage for all retrofit lighting EEMs is the lesser of: a) Wattage of the existing equipment, or b) Wattage of deemed baseline equipment as determined by Rocky Mountain Power.",null,null,"To be eligible for the incentives listed, the new lighting system must use less energy than the existing lighting system replaced or the baseline lighting system as determined by Rocky Mountain Power.",null,null,"Installed lighting equipment (and controls, if applicable) must be eligible as defined in the qualified equipment lists posted on the Rocky Mountain Power website.","Site-Specific","Site-Specific","Site-Specific",null,null,"Site-Specific","Site-Specific",1,null,"Watt Reduced",null,"15",null,null,null,"Maximum Incentive level(s) noted are non-prescriptive maximum incentives.","RMP Calculation","RMP Calculation","Prescriptive","2","Retrofit",45936,"true","0.7",null,"true",null,"1.5",null,"1","0.85","2022-2023 Wyoming wattsmart Business Evaluation, RR's above 1.0 are reset to 1.0 for planning purposes"]
[{"$f":"IF(AND(MeasureEffectiveDate>=MeasureTable_WY[[#This Row],[Effective Start Date]],MeasureTable_WY[[#This Row],[Effective Start Date]]<>\"\"),IF(MeasureTable_WY[[#This Row],[Effective End Date]]=\"\",TRUE,IF(MeasureEffectiveDate<=MeasureTable_WY[[#This Row],[Effective End Date]],TRUE,FALSE)))","v":false},{"$f":"MeasureTable_WY[[#This Row],[Measure Name]]&\" | \"&MeasureTable_WY[[#This Row],[Eligible Measure]]","v":"Interior Fixture Replacement - w/ Plug and Play Control Ready - Retrofit - WY | FALSE"},"WY","10242025-193","Interior Fixture Replacement - w/ Plug and Play Control Ready - Retrofit - WY","Lighting","Interior Lighting","Fixture Retrofit/Replacement","Interior fixture replacement with plug and play control ready, as defined on RMP Website. Installed in a retrofit application ",1,"Active","2025-10-24","3000-12-31","Baseline wattage for all retrofit lighting EEMs is the lesser of: a) Wattage of the existing equipment, or b) Wattage of deemed baseline equipment as determined by Rocky Mountain Power.",null,null,"To be eligible for the incentives listed, the new lighting system must use less energy than the existing lighting system replaced or the baseline lighting system as determined by Rocky Mountain Power.",null,null,"Installed lighting equipment (and controls, if applicable) must be eligible as defined in the qualified equipment lists posted on the Rocky Mountain Power website.","Site-Specific","Site-Specific","Site-Specific",null,null,"Site-Specific","Site-Specific",0.8,null,"Watt Reduced",null,"15",null,null,null,"Maximum Incentive level(s) noted are non-prescriptive maximum incentives.","RMP Calculation","RMP Calculation","Prescriptive","2","Retrofit",45936,"true","0.7",null,"true",null,"1.5",null,"1","0.85","2022-2023 Wyoming wattsmart Business Evaluation, RR's above 1.0 are reset to 1.0 for planning purposes"]
[{"$f":"IF(AND(MeasureEffectiveDate>=MeasureTable_WY[[#This Row],[Effective Start Date]],MeasureTable_WY[[#This Row],[Effective Start Date]]<>\"\"),IF(MeasureTable_WY[[#This Row],[Effective End Date]]=\"\",TRUE,IF(MeasureEffectiveDate<=MeasureTable_WY[[#This Row],[Effective End Date]],TRUE,FALSE)))","v":false},{"$f":"MeasureTable_WY[[#This Row],[Measure Name]]&\" | \"&MeasureTable_WY[[#This Row],[Eligible Measure]]","v":"Interior Fixture Replacement - w/out Controls - Retrofit - v2 - WY | FALSE"},"WY","12312018-014_v2","Interior Fixture Replacement - w/out Controls - Retrofit - v2 - WY","Lighting","Interior Lighting","Fixture Retrofit/Replacement","Interior fixture replacement without controls. Installed in a retrofit application. ",2,"Active","2025-10-24","3000-12-31","Baseline wattage for all retrofit lighting EEMs is the lesser of: a) Wattage of the existing equipment, or b) Wattage of deemed baseline equipment as determined by Rocky Mountain Power.",null,null,"To be eligible for the incentives listed, the new lighting system must use less energy than the existing lighting system replaced or the baseline lighting system as determined by Rocky Mountain Power.",null,null,"Installed lighting equipment (and controls, if applicable) must be eligible as defined in the qualified equipment lists posted on the Rocky Mountain Power website.","Site-Specific","Site-Specific","Site-Specific",null,null,"Site-Specific","Site-Specific",0.6,null,"Watt Reduced",null,"15",null,null,null,"Maximum Incentive level(s) noted are non-prescriptive maximum incentives.","RMP Calculation","RMP Calculation","Prescriptive","2","Retrofit",45936,"true","0.7",null,"true",null,"1.5",null,"1","0.85","2022-2023 Wyoming wattsmart Business Evaluation, RR's above 1.0 are reset to 1.0 for planning purposes"]
[{"$f":"IF(AND(MeasureEffectiveDate>=MeasureTable_WY[[#This Row],[Effective Start Date]],MeasureTable_WY[[#This Row],[Effective Start Date]]<>\"\"),IF(MeasureTable_WY[[#This Row],[Effective End Date]]=\"\",TRUE,IF(MeasureEffectiveDate<=MeasureTable_WY[[#This Row],[Effective End Date]],TRUE,FALSE)))","v":false},{"$f":"MeasureTable_WY[[#This Row],[Measure Name]]&\" | \"&MeasureTable_WY[[#This Row],[Eligible Measure]]","v":"Interior Fixture Retrofit Kit - w/ Advanced Networked Lighting Controls/LLLCs - Retrofit - v2 - WY | FALSE"},"WY","03152023-023_v2","Interior Fixture Retrofit Kit - w/ Advanced Networked Lighting Controls/LLLCs - Retrofit - v2 - WY","Lighting","Interior Lighting","Fixture Retrofit/Replacement","Interior fixture replacement with advanced networked lighting controls, as defined on RMP website. Installed in a retrofit application. ",1,"Active","2025-10-24","3000-12-31","Baseline wattage for all retrofit lighting EEMs is the lesser of: a) Wattage of the existing equipment, or b) Wattage of deemed baseline equipment as determined by Rocky Mountain Power.",null,null,"To be eligible for the incentives listed, the new lighting system must use less energy than the existing lighting system replaced or the baseline lighting system as determined by Rocky Mountain Power.",null,null,"Installed lighting equipment (and controls, if applicable) must be eligible as defined in the qualified equipment lists posted on the Rocky Mountain Power website.","Site-Specific","Site-Specific","Site-Specific",null,null,"Site-Specific","Site-Specific",1.2,null,"Watt Reduced",null,"15",null,null,null,"Maximum Incentive level(s) noted are non-prescriptive maximum incentives.","RMP Calculation","RMP Calculation","Prescriptive","2","Retrofit",45936,"true","0.7",null,"true",null,"1.5",null,"1","0.85","2022-2023 Wyoming wattsmart Business Evaluation, RR's above 1.0 are reset to 1.0 for planning purposes"]
[{"$f":"IF(AND(MeasureEffectiveDate>=MeasureTable_WY[[#This Row],[Effective Start Date]],MeasureTable_WY[[#This Row],[Effective Start Date]]<>\"\"),IF(MeasureTable_WY[[#This Row],[Effective End Date]]=\"\",TRUE,IF(MeasureEffectiveDate<=MeasureTable_WY[[#This Row],[Effective End Date]],TRUE,FALSE)))","v":false},{"$f":"MeasureTable_WY[[#This Row],[Measure Name]]&\" | \"&MeasureTable_WY[[#This Row],[Eligible Measure]]","v":"Interior Fixture Retrofit Kit - w/ Basic Controls - Retrofit - WY | FALSE"},"WY","03152023-021","Interior Fixture Retrofit Kit - w/ Basic Controls - Retrofit - WY","Lighting","Interior Lighting","Fixture Retrofit/Replacement","Interior fixture retrofit kit with basic lighting controls, as defined on RMP Website. Installed in a retrofit application ",2,"Active","2025-10-24","3000-12-31","Baseline wattage for all retrofit lighting EEMs is the lesser of: a) Wattage of the existing equipment, or b) Wattage of deemed baseline equipment as determined by Rocky Mountain Power.",null,null,"To be eligible for the incentives listed, the new lighting system must use less energy than the existing lighting system replaced or the baseline lighting system as determined by Rocky Mountain Power.",null,null,"Installed lighting equipment (and controls, if applicable) must be eligible as defined in the qualified equipment lists posted on the Rocky Mountain Power website.","Site-Specific","Site-Specific","Site-Specific",null,null,"Site-Specific","Site-Specific",0.6,null,"Watt Reduced",null,"15",null,null,null,"Maximum Incentive level(s) noted are non-prescriptive maximum incentives.","RMP Calculation","RMP Calculation","Prescriptive","2","Retrofit",45936,"true","0.7",null,"true",null,"1.5",null,"1","0.85","2022-2023 Wyoming wattsmart Business Evaluation, RR's above 1.0 are reset to 1.0 for planning purposes"]
[{"$f":"IF(AND(MeasureEffectiveDate>=MeasureTable_WY[[#This Row],[Effective Start Date]],MeasureTable_WY[[#This Row],[Effective Start Date]]<>\"\"),IF(MeasureTable_WY[[#This Row],[Effective End Date]]=\"\",TRUE,IF(MeasureEffectiveDate<=MeasureTable_WY[[#This Row],[Effective End Date]],TRUE,FALSE)))","v":false},{"$f":"MeasureTable_WY[[#This Row],[Measure Name]]&\" | \"&MeasureTable_WY[[#This Row],[Eligible Measure]]","v":"Interior Fixture Retrofit Kit - w/ Networked Lighting Controls - Retrofit - WY | FALSE"},"WY","03152023-022","Interior Fixture Retrofit Kit - w/ Networked Lighting Controls - Retrofit - WY","Lighting","Interior Lighting","Fixture Retrofit/Replacement","Interior fixture retrofit kit with networked lighting controls, as defined on RMP Website. Installed in a retrofit application ",2,"Active","2025-10-24","3000-12-31","Baseline wattage for all retrofit lighting EEMs is the lesser of: a) Wattage of the existing equipment, or b) Wattage of deemed baseline equipment as determined by Rocky Mountain Power.",null,null,"To be eligible for the incentives listed, the new lighting system must use less energy than the existing lighting system replaced or the baseline lighting system as determined by Rocky Mountain Power.",null,null,"Installed lighting equipment (and controls, if applicable) must be eligible as defined in the qualified equipment lists posted on the Rocky Mountain Power website.","Site-Specific","Site-Specific","Site-Specific",null,null,"Site-Specific","Site-Specific",1,null,"Watt Reduced",null,"15",null,null,null,"Maximum Incentive level(s) noted are non-prescriptive maximum incentives.","RMP Calculation","RMP Calculation","Prescriptive","2","Retrofit",45936,"true","0.7",null,"true",null,"1.5",null,"1","0.85","2022-2023 Wyoming wattsmart Business Evaluation, RR's above 1.0 are reset to 1.0 for planning purposes"]
[{"$f":"IF(AND(MeasureEffectiveDate>=MeasureTable_WY[[#This Row],[Effective Start Date]],MeasureTable_WY[[#This Row],[Effective Start Date]]<>\"\"),IF(MeasureTable_WY[[#This Row],[Effective End Date]]=\"\",TRUE,IF(MeasureEffectiveDate<=MeasureTable_WY[[#This Row],[Effective End Date]],TRUE,FALSE)))","v":false},{"$f":"MeasureTable_WY[[#This Row],[Measure Name]]&\" | \"&MeasureTable_WY[[#This Row],[Eligible Measure]]","v":"Interior Fixture Retrofit Kit - w/ Plug and Play Control Ready - Retrofit - WY | FALSE"},"WY","10242025-192","Interior Fixture Retrofit Kit - w/ Plug and Play Control Ready - Retrofit - WY","Lighting","Interior Lighting","Fixture Retrofit/Replacement","Interior fixture retrofit kit with plug and play control ready, as defined on RMP Website. Installed in a retrofit application ",1,"Active","2025-10-24","3000-12-31","Baseline wattage for all retrofit lighting EEMs is the lesser of: a) Wattage of the existing equipment, or b) Wattage of deemed baseline equipment as determined by Rocky Mountain Power.",null,null,"To be eligible for the incentives listed, the new lighting system must use less energy than the existing lighting system replaced or the baseline lighting system as determined by Rocky Mountain Power.",null,null,"Installed lighting equipment (and controls, if applicable) must be eligible as defined in the qualified equipment lists posted on the Rocky Mountain Power website.","Site-Specific","Site-Specific","Site-Specific",null,null,"Site-Specific","Site-Specific",0.8,null,"Watt Reduced",null,"15",null,null,null,"Maximum Incentive level(s) noted are non-prescriptive maximum incentives.","RMP Calculation","RMP Calculation","Prescriptive","2","Retrofit",45936,"true","0.7",null,"true",null,"1.5",null,"1","0.85","2022-2023 Wyoming wattsmart Business Evaluation, RR's above 1.0 are reset to 1.0 for planning purposes"]
[{"$f":"IF(AND(MeasureEffectiveDate>=MeasureTable_WY[[#This Row],[Effective Start Date]],MeasureTable_WY[[#This Row],[Effective Start Date]]<>\"\"),IF(MeasureTable_WY[[#This Row],[Effective End Date]]=\"\",TRUE,IF(MeasureEffectiveDate<=MeasureTable_WY[[#This Row],[Effective End Date]],TRUE,FALSE)))","v":false},{"$f":"MeasureTable_WY[[#This Row],[Measure Name]]&\" | \"&MeasureTable_WY[[#This Row],[Eligible Measure]]","v":"Interior Fixture Retrofit Kit - w/out Controls - Retrofit - v2 - WY | FALSE"},"WY","12312018-011_v2","Interior Fixture Retrofit Kit - w/out Controls - Retrofit - v2 - WY","Lighting","Interior Lighting","Fixture Retrofit/Replacement","Interior fixture retrofit kit without controls. Installed in a retrofit application. ",2,"Active","2025-10-24","3000-12-31","Baseline wattage for all retrofit lighting EEMs is the lesser of: a) Wattage of the existing equipment, or b) Wattage of deemed baseline equipment as determined by Rocky Mountain Power.",null,null,"To be eligible for the incentives listed, the new lighting system must use less energy than the existing lighting system replaced or the baseline lighting system as determined by Rocky Mountain Power.",null,null,"Installed lighting equipment (and controls, if applicable) must be eligible as defined in the qualified equipment lists posted on the Rocky Mountain Power website.","Site-Specific","Site-Specific","Site-Specific",null,null,"Site-Specific","Site-Specific",0.6,null,"Watt Reduced",null,"15",null,null,null,"Maximum Incentive level(s) noted are non-prescriptive maximum incentives.","RMP Calculation","RMP Calculation","Prescriptive","2","Retrofit",45936,"true","0.7",null,"true",null,"1.5",null,"1","0.85","2022-2023 Wyoming wattsmart Business Evaluation, RR's above 1.0 are reset to 1.0 for planning purposes"]
[{"$f":"IF(AND(MeasureEffectiveDate>=MeasureTable_WY[[#This Row],[Effective Start Date]],MeasureTable_WY[[#This Row],[Effective Start Date]]<>\"\"),IF(MeasureTable_WY[[#This Row],[Effective End Date]]=\"\",TRUE,IF(MeasureEffectiveDate<=MeasureTable_WY[[#This Row],[Effective End Date]],TRUE,FALSE)))","v":false},{"$f":"MeasureTable_WY[[#This Row],[Measure Name]]&\" | \"&MeasureTable_WY[[#This Row],[Eligible Measure]]","v":"Interior Lighting - Custom - Non-General - Retrofit - v2 - WY | FALSE"},"WY","01302014-038_v2","Interior Lighting - Custom - Non-General - Retrofit - v2 - WY","Lighting","Custom","Interior Lighting","Custom interior lighting installation for non-general lighting (fixture or lamp not listed in tariff incentive tables). Installed in a retrofit application.",1,"Active","2021-08-23","3000-12-31","Baseline wattage for all retrofit lighting EEMs is the lesser of: a) Wattage of the existing equipment, or b) Wattage of deemed baseline equipment as determined by Rocky Mountain Power..",null,null,"Custom retrofit with a non-general illumination lighting installation; fixture or lamp not listed in tariff incentive tables.",null,null,"Custom retrofit with a non-general illumination lighting installation; fixture or lamp not listed in tariff incentive tables.","Site-Specific","Site-Specific","Site-Specific",null,null,"Site-Specific","Site-Specific",0.1,null,null,null,"15",null,null,null,null,"RMP Calculation","RMP Calculation","Prescriptive/Custom","2","Retrofit",44218,"true",".7",null,"true",null,"0.15",null,"1","0.76","2018-2019 Wyoming wattsmart Business Evaluation"]
[{"$f":"IF(AND(MeasureEffectiveDate>=MeasureTable_WY[[#This Row],[Effective Start Date]],MeasureTable_WY[[#This Row],[Effective Start Date]]<>\"\"),IF(MeasureTable_WY[[#This Row],[Effective End Date]]=\"\",TRUE,IF(MeasureEffectiveDate<=MeasureTable_WY[[#This Row],[Effective End Date]],TRUE,FALSE)))","v":false},{"$f":"MeasureTable_WY[[#This Row],[Measure Name]]&\" | \"&MeasureTable_WY[[#This Row],[Eligible Measure]]","v":"Interior Lighting - Custom - Retrofit - v2 - WY | FALSE"},"WY","12312018-061_v2","Interior Lighting - Custom - Retrofit - v2 - WY","Lighting","Custom","Interior Lighting","Custom interior lighting installation. Installed in a retrofit application. ",2,"Active","2025-10-24","3000-12-31","Baseline wattage for all retrofit lighting EEMs is the lesser of: a) Wattage of the existing equipment, or b) Wattage of deemed baseline equipment as determined by Rocky Mountain Power.",null,null,"Custom retrofit with a non-general illumination lighting installation; fixture or lamp not listed in tariff incentive tables.",null,null,"Custom retrofit with a non-general illumination lighting installation; fixture or lamp not listed in tariff incentive tables.","Site-Specific","Site-Specific","Site-Specific",null,null,"Site-Specific","Site-Specific",0.1,null,"kWh",null,"15",null,null,null,"Maximum Incentive level(s) noted are non-prescriptive maximum incentives.","RMP Calculation","RMP Calculation","Prescriptive","2","Retrofit",45936,"true","0.7",null,"true",null,"0.15",null,"1","0.85","2022-2023 Wyoming wattsmart Business Evaluation, RR's above 1.0 are reset to 1.0 for planning purposes"]
[{"$f":"IF(AND(MeasureEffectiveDate>=MeasureTable_WY[[#This Row],[Effective Start Date]],MeasureTable_WY[[#This Row],[Effective Start Date]]<>\"\"),IF(MeasureTable_WY[[#This Row],[Effective End Date]]=\"\",TRUE,IF(MeasureEffectiveDate<=MeasureTable_WY[[#This Row],[Effective End Date]],TRUE,FALSE)))","v":false},{"$f":"MeasureTable_WY[[#This Row],[Measure Name]]&\" | \"&MeasureTable_WY[[#This Row],[Eligible Measure]]","v":"Interior Lighting - w/ Advanced Networked Lighting Controls - NCMR - WY | FALSE"},"WY","03152023-020","Interior Lighting - w/ Advanced Networked Lighting Controls - NCMR - WY","Lighting","Interior Lighting","Interior Lighting","Interior lighting installation with advanced networked lighting controls. Installed in new construction/major renovation application.",1,"Active","2023-03-15","3000-12-31","The baseline wattage for custom new construction/major renovation exterior lighting EEMs is the lesser of: a) energy code required LPD, or b) Wattage of deemed baseline equipment as determined by Rocky Mountain Power",null,null,"To be eligible for the incentives listed, the new lighting system must use less energy than the existing lighting system replaced or the baseline lighting system as determined by Rocky Mountain Power.",null,null,"Installed lighting equipment (and controls, if applicable) must be eligible as defined in the qualified equipment lists posted on the Rocky Mountain Power website.","Site-Specific","Site-Specific","Site-Specific",null,null,"Site-Specific","Site-Specific",0.14000000000000001,null,"kWh",null,"15",null,null,null,null,"RMP Calculation","RMP Calculation","Prescriptive","2","New Construction/Major Renovation",null,"false",null,null,"true",null,"0.14",null,"1","0.67","2021 Wyoming wattsmart Business Evaluation"]
[{"$f":"IF(AND(MeasureEffectiveDate>=MeasureTable_WY[[#This Row],[Effective Start Date]],MeasureTable_WY[[#This Row],[Effective Start Date]]<>\"\"),IF(MeasureTable_WY[[#This Row],[Effective End Date]]=\"\",TRUE,IF(MeasureEffectiveDate<=MeasureTable_WY[[#This Row],[Effective End Date]],TRUE,FALSE)))","v":false},{"$f":"MeasureTable_WY[[#This Row],[Measure Name]]&\" | \"&MeasureTable_WY[[#This Row],[Eligible Measure]]","v":"Interior Lighting - w/ Basic Controls - NCMR - WY | FALSE"},"WY","03152023-018","Interior Lighting - w/ Basic Controls - NCMR - WY","Lighting","Interior Lighting","Interior Lighting","Interior lighting installation with basic controls. Installed in new construction/major renovation application.",1,"Active","2023-03-15","3000-12-31","The baseline wattage for custom new construction/major renovation exterior lighting EEMs is the lesser of: a) energy code required LPD, or b) Wattage of deemed baseline equipment as determined by Rocky Mountain Power",null,null,"To be eligible for the incentives listed, the new lighting system must use less energy than the existing lighting system replaced or the baseline lighting system as determined by Rocky Mountain Power.",null,null,"Installed lighting equipment (and controls, if applicable) must be eligible as defined in the qualified equipment lists posted on the Rocky Mountain Power website.","Site-Specific","Site-Specific","Site-Specific",null,null,"Site-Specific","Site-Specific",0.1,null,"kWh",null,"15",null,null,null,null,"RMP Calculation","RMP Calculation","Prescriptive","2","New Construction/Major Renovation",null,"false",null,null,"true",null,"0.14",null,"1","0.67","2021 Wyoming wattsmart Business Evaluation"]
[{"$f":"IF(AND(MeasureEffectiveDate>=MeasureTable_WY[[#This Row],[Effective Start Date]],MeasureTable_WY[[#This Row],[Effective Start Date]]<>\"\"),IF(MeasureTable_WY[[#This Row],[Effective End Date]]=\"\",TRUE,IF(MeasureEffectiveDate<=MeasureTable_WY[[#This Row],[Effective End Date]],TRUE,FALSE)))","v":false},{"$f":"MeasureTable_WY[[#This Row],[Measure Name]]&\" | \"&MeasureTable_WY[[#This Row],[Eligible Measure]]","v":"Interior Lighting - w/ Networked Lighting Controls - NCMR - WY | FALSE"},"WY","03152023-019","Interior Lighting - w/ Networked Lighting Controls - NCMR - WY","Lighting","Interior Lighting","Interior Lighting","Interior networked lighting controls in New Construction/Major Renovation.",1,"Active","2023-03-15","3000-12-31","Baseline wattage for all retrofit lighting EEMs is the lesser of: a) Wattage of the existing equipment, or b) Wattage of deemed baseline equipment as determined by Rocky Mountain Power.",null,null,"To be eligible for the incentives listed, the new lighting system must use less energy than the existing lighting system replaced or the baseline lighting system as determined by Rocky Mountain Power.",null,null,"Installed lighting equipment (and controls, if applicable) must be eligible as defined in the qualified equipment lists posted on the Rocky Mountain Power website.","Site-Specific","Site-Specific","Site-Specific",null,null,"Site-Specific","Site-Specific",0.1,null,"kWh",null,"15",null,null,null,null,"RMP Calculation","RMP Calculation","Prescriptive","2","New Construction/Major Renovation",null,"false",null,null,"true",null,"0.14",null,"1","0.67","2021 Wyoming wattsmart Business Evaluation"]
[{"$f":"IF(AND(MeasureEffectiveDate>=MeasureTable_WY[[#This Row],[Effective Start Date]],MeasureTable_WY[[#This Row],[Effective Start Date]]<>\"\"),IF(MeasureTable_WY[[#This Row],[Effective End Date]]=\"\",TRUE,IF(MeasureEffectiveDate<=MeasureTable_WY[[#This Row],[Effective End Date]],TRUE,FALSE)))","v":false},{"$f":"MeasureTable_WY[[#This Row],[Measure Name]]&\" | \"&MeasureTable_WY[[#This Row],[Eligible Measure]]","v":"Interior Lighting - w/out Controls - NCMR - WY | FALSE"},"WY","03152023-017","Interior Lighting - w/out Controls - NCMR - WY","Lighting","Interior Lighting","Interior Lighting","Interior lighting installation without controls. Installed in new construction/major renovation application.",2,"Active","2025-10-24","3000-12-31","Baseline wattage for all NCMR lighting EEMs is the lesser of: a) Wattage of the standard practice equipment, or b) Wattage of deemed baseline equipment as determined by Rocky Mountain Power.",null,null,"To be eligible for the incentives listed, the new lighting system must use less energy than the existing lighting system replaced or the baseline lighting system as determined by Rocky Mountain Power.",null,null,"Installed lighting equipment (and controls, if applicable) must be eligible as defined in the qualified equipment lists posted on the Rocky Mountain Power website.","Site-Specific","Site-Specific","Site-Specific",null,null,"Site-Specific","Site-Specific",0.08,null,"kWh",null,"15",null,null,null,null,"RMP Calculation","RMP Calculation","Prescriptive","2","New Construction/Major Renovation",45936,"false",null,null,"true",null,"0.08",null,"1","0.85","2022-2023 Wyoming wattsmart Business Evaluation, RR's above 1.0 are reset to 1.0 for planning purposes"]
[{"$f":"IF(AND(MeasureEffectiveDate>=MeasureTable_WY[[#This Row],[Effective Start Date]],MeasureTable_WY[[#This Row],[Effective Start Date]]<>\"\"),IF(MeasureTable_WY[[#This Row],[Effective End Date]]=\"\",TRUE,IF(MeasureEffectiveDate<=MeasureTable_WY[[#This Row],[Effective End Date]],TRUE,FALSE)))","v":false},{"$f":"MeasureTable_WY[[#This Row],[Measure Name]]&\" | \"&MeasureTable_WY[[#This Row],[Eligible Measure]]","v":"Interior Networked Lighting Controls - Retrofit - WY | FALSE"},"WY","03152023-024","Interior Networked Lighting Controls - Retrofit - WY","Lighting","Controls","Interior Lighting Controls","Interior networked lighting controls. Installed in a retrofit application",2,"Active","2025-10-24","3000-12-31","Baseline wattage for all retrofit lighting EEMs is the lesser of: a) Wattage of the existing equipment, or b) Wattage of deemed baseline equipment as determined by Rocky Mountain Power.",null,null,"To be eligible for the incentives listed, the new lighting system must use less energy than the existing lighting system replaced or the baseline lighting system as determined by Rocky Mountain Power.",null,null,"Installed lighting equipment (and controls, if applicable) must be eligible as defined in the qualified equipment lists posted on the Rocky Mountain Power website.","Site-Specific","Site-Specific","Site-Specific",null,null,"Site-Specific","Site-Specific",0.6,null,"Watt Controlled",null,"8",null,null,null,"Maximum Incentive level(s) noted are non-prescriptive maximum incentives.","RMP Calculation","RMP Calculation","Prescriptive","2","Retrofit",45936,"true","0.7",null,"true",null,"0.75",null,"1","0.85","2022-2023 Wyoming wattsmart Business Evaluation, RR's above 1.0 are reset to 1.0 for planning purposes"]
[{"$f":"IF(AND(MeasureEffectiveDate>=MeasureTable_WY[[#This Row],[Effective Start Date]],MeasureTable_WY[[#This Row],[Effective Start Date]]<>\"\"),IF(MeasureTable_WY[[#This Row],[Effective End Date]]=\"\",TRUE,IF(MeasureEffectiveDate<=MeasureTable_WY[[#This Row],[Effective End Date]],TRUE,FALSE)))","v":false},{"$f":"MeasureTable_WY[[#This Row],[Measure Name]]&\" | \"&MeasureTable_WY[[#This Row],[Eligible Measure]]","v":"LED Exterior Fixture - No Controls - NCMR - WY | FALSE"},"WY","10242025-188","LED Exterior Fixture - No Controls - NCMR - WY","Lighting","Exterior Lighting","Fixture Retrofit/Replacement","New construction/major renovation installation of an exterior LEDs with no controls",1,"Active","2025-10-24","3000-12-31","Non-LED exterior fixture. The baseline wattage for EEMs is the lesser of: a) Wattage of the existing equipment, or b) Wattage of deemed baseline equipment on the energy efficiency program section of the Rocky Mountain Power website. ",null,null,"To be eligible for incentive, the new lighting system must use less energy than the existing/baseline lighting system. ",null,null,"All LED equipment must be listed as qualified on the Rocky Mountain Power website; this includes products on DesignLights Consortium (DLC).","Site-Specific","Site-Specific","Site-Specific",null,null,"Site-Specific","Site-Specific",0.04,null,"kWh",null,"15",null,null,null,"Maximum Incentive level(s) noted are non-prescriptive maximum incentives.","RMP Calculation","RMP Calculation","Prescriptive","2","New Construction/Major Renovation",45936,"false",null,null,"true",null,"0.04",null,"1","0.85","2022-2023 Wyoming wattsmart Business Evaluation, RR set to 1.0 for all RR's above 1.0 for planning purposes"]
[{"$f":"IF(AND(MeasureEffectiveDate>=MeasureTable_WY[[#This Row],[Effective Start Date]],MeasureTable_WY[[#This Row],[Effective Start Date]]<>\"\"),IF(MeasureTable_WY[[#This Row],[Effective End Date]]=\"\",TRUE,IF(MeasureEffectiveDate<=MeasureTable_WY[[#This Row],[Effective End Date]],TRUE,FALSE)))","v":false},{"$f":"MeasureTable_WY[[#This Row],[Measure Name]]&\" | \"&MeasureTable_WY[[#This Row],[Eligible Measure]]","v":"Streetlighting - Retrofit - v2 - WY | FALSE"},"WY","12312018-007_v2","Streetlighting - Retrofit - v2 - WY","Lighting","Exterior Lighting","Area Lighting","Streetlighting retrofit to LED. LED must be listed on qualified equipment list.",1,"Active","2021-08-23","3000-12-31","The baseline for this retrofit measure is assumed as an existing non-LED streetlighting fixture, most likely HID. ",null,null,"LED streetlight fixture or retrofit kit listed on the Rocky Mountain Power qualified list",null,null,"All LED equipment must be listed as qualified on the Rocky Mountain Power website; this includes products on the DesignLights Consortium (DLC) Retrofit Kit product lists.","Site-Specific","Site-Specific","Site-Specific",null,null,"Site-Specific","Site-Specific",0.08,null,"kWh",null,"15",null,null,null,null,"RMP Calculation","RMP Deemed","Prescriptive/Custom","2","Retrofit",null,"true","0.7",null,"true",null,null,null,"1","0.76","2018-2019 Wyoming wattsmart Business Evaluation"]
[{"$f":"IF(AND(MeasureEffectiveDate>=MeasureTable_WY[[#This Row],[Effective Start Date]],MeasureTable_WY[[#This Row],[Effective Start Date]]<>\"\"),IF(MeasureTable_WY[[#This Row],[Effective End Date]]=\"\",TRUE,IF(MeasureEffectiveDate<=MeasureTable_WY[[#This Row],[Effective End Date]],TRUE,FALSE)))","v":false},{"$f":"MeasureTable_WY[[#This Row],[Measure Name]]&\" | \"&MeasureTable_WY[[#This Row],[Eligible Measure]]","v":"Streetlighting - w/ Advanced Dimming Controls - Retrofit - v2 - WY | FALSE"},"WY","12312018-006_v2","Streetlighting - w/ Advanced Dimming Controls - Retrofit - v2 - WY","Lighting","Exterior Lighting","Area Lighting","Streetlighting retrofit to LED with advanced dimming controls. LED must be listed on qualified equipment list.",1,"Active","2021-08-23","3000-12-31","The baseline for this retrofit measure is assumed as an existing non-LED streetlighting fixture, most likely HID, without advanced dimming controls. ",null,null,"LED streetlight fixture or retrofit kit listed on the Rocky Mountain Power qualified list, with advanced dimming controls",null,null,"All LED equipment must be listed as qualified on the Rocky Mountain Power website; this includes products on the DesignLights Consortium (DLC) Retrofit Kit product lists. Fixtures must be controlled using advanced dimming controls.","Site-Specific","Site-Specific","Site-Specific",null,null,"Site-Specific","Site-Specific",0.12,null,"kWh",null,"15",null,null,null,null,"RMP Calculation","RMP Deemed","Prescriptive","2","Retrofit",null,"true","0.7",null,"true",null,null,null,"1","0.76","2018-2019 Wyoming wattsmart Business Evaluation"]
[{"$f":"IF(AND(MeasureEffectiveDate>=MeasureTable_WY[[#This Row],[Effective Start Date]],MeasureTable_WY[[#This Row],[Effective Start Date]]<>\"\"),IF(MeasureTable_WY[[#This Row],[Effective End Date]]=\"\",TRUE,IF(MeasureEffectiveDate<=MeasureTable_WY[[#This Row],[Effective End Date]],TRUE,FALSE)))","v":false},{"$f":"MeasureTable_WY[[#This Row],[Measure Name]]&\" | \"&MeasureTable_WY[[#This Row],[Eligible Measure]]","v":" | FALSE"}]
[{"$f":"IF(AND(MeasureEffectiveDate>=MeasureTable_WY[[#This Row],[Effective Start Date]],MeasureTable_WY[[#This Row],[Effective Start Date]]<>\"\"),IF(MeasureTable_WY[[#This Row],[Effective End Date]]=\"\",TRUE,IF(MeasureEffectiveDate<=MeasureTable_WY[[#This Row],[Effective End Date]],TRUE,FALSE)))","v":false},{"$f":"MeasureTable_WY[[#This Row],[Measure Name]]&\" | \"&MeasureTable_WY[[#This Row],[Eligible Measure]]","v":" | FALSE"}]
[{"$f":"IF(AND(MeasureEffectiveDate>=MeasureTable_WY[[#This Row],[Effective Start Date]],MeasureTable_WY[[#This Row],[Effective Start Date]]<>\"\"),IF(MeasureTable_WY[[#This Row],[Effective End Date]]=\"\",TRUE,IF(MeasureEffectiveDate<=MeasureTable_WY[[#This Row],[Effective End Date]],TRUE,FALSE)))","v":false},{"$f":"MeasureTable_WY[[#This Row],[Measure Name]]&\" | \"&MeasureTable_WY[[#This Row],[Eligible Measure]]","v":" | FALSE"}]
[{"$f":"IF(AND(MeasureEffectiveDate>=MeasureTable_WY[[#This Row],[Effective Start Date]],MeasureTable_WY[[#This Row],[Effective Start Date]]<>\"\"),IF(MeasureTable_WY[[#This Row],[Effective End Date]]=\"\",TRUE,IF(MeasureEffectiveDate<=MeasureTable_WY[[#This Row],[Effective End Date]],TRUE,FALSE)))","v":false},{"$f":"MeasureTable_WY[[#This Row],[Measure Name]]&\" | \"&MeasureTable_WY[[#This Row],[Eligible Measure]]","v":" | FALSE"}]
[{"$f":"IF(AND(MeasureEffectiveDate>=MeasureTable_WY[[#This Row],[Effective Start Date]],MeasureTable_WY[[#This Row],[Effective Start Date]]<>\"\"),IF(MeasureTable_WY[[#This Row],[Effective End Date]]=\"\",TRUE,IF(MeasureEffectiveDate<=MeasureTable_WY[[#This Row],[Effective End Date]],TRUE,FALSE)))","v":false},{"$f":"MeasureTable_WY[[#This Row],[Measure Name]]&\" | \"&MeasureTable_WY[[#This Row],[Eligible Measure]]","v":" | FALSE"}]
[{"$f":"IF(AND(MeasureEffectiveDate>=MeasureTable_WY[[#This Row],[Effective Start Date]],MeasureTable_WY[[#This Row],[Effective Start Date]]<>\"\"),IF(MeasureTable_WY[[#This Row],[Effective End Date]]=\"\",TRUE,IF(MeasureEffectiveDate<=MeasureTable_WY[[#This Row],[Effective End Date]],TRUE,FALSE)))","v":false},{"$f":"MeasureTable_WY[[#This Row],[Measure Name]]&\" | \"&MeasureTable_WY[[#This Row],[Eligible Measure]]","v":" | FALSE"}]
[{"$f":"IF(AND(MeasureEffectiveDate>=MeasureTable_WY[[#This Row],[Effective Start Date]],MeasureTable_WY[[#This Row],[Effective Start Date]]<>\"\"),IF(MeasureTable_WY[[#This Row],[Effective End Date]]=\"\",TRUE,IF(MeasureEffectiveDate<=MeasureTable_WY[[#This Row],[Effective End Date]],TRUE,FALSE)))","v":false},{"$f":"MeasureTable_WY[[#This Row],[Measure Name]]&\" | \"&MeasureTable_WY[[#This Row],[Eligible Measure]]","v":" | FALSE"}]
[{"$f":"IF(AND(MeasureEffectiveDate>=MeasureTable_WY[[#This Row],[Effective Start Date]],MeasureTable_WY[[#This Row],[Effective Start Date]]<>\"\"),IF(MeasureTable_WY[[#This Row],[Effective End Date]]=\"\",TRUE,IF(MeasureEffectiveDate<=MeasureTable_WY[[#This Row],[Effective End Date]],TRUE,FALSE)))","v":false},{"$f":"MeasureTable_WY[[#This Row],[Measure Name]]&\" | \"&MeasureTable_WY[[#This Row],[Eligible Measure]]","v":" | FALSE"}]
[{"$f":"IF(AND(MeasureEffectiveDate>=MeasureTable_WY[[#This Row],[Effective Start Date]],MeasureTable_WY[[#This Row],[Effective Start Date]]<>\"\"),IF(MeasureTable_WY[[#This Row],[Effective End Date]]=\"\",TRUE,IF(MeasureEffectiveDate<=MeasureTable_WY[[#This Row],[Effective End Date]],TRUE,FALSE)))","v":false},{"$f":"MeasureTable_WY[[#This Row],[Measure Name]]&\" | \"&MeasureTable_WY[[#This Row],[Eligible Measure]]","v":" | FALSE"}]
[{"$f":"IF(AND(MeasureEffectiveDate>=MeasureTable_WY[[#This Row],[Effective Start Date]],MeasureTable_WY[[#This Row],[Effective Start Date]]<>\"\"),IF(MeasureTable_WY[[#This Row],[Effective End Date]]=\"\",TRUE,IF(MeasureEffectiveDate<=MeasureTable_WY[[#This Row],[Effective End Date]],TRUE,FALSE)))","v":false},{"$f":"MeasureTable_WY[[#This Row],[Measure Name]]&\" | \"&MeasureTable_WY[[#This Row],[Eligible Measure]]","v":" | FALSE"}]
[{"$f":"IF(AND(MeasureEffectiveDate>=MeasureTable_WY[[#This Row],[Effective Start Date]],MeasureTable_WY[[#This Row],[Effective Start Date]]<>\"\"),IF(MeasureTable_WY[[#This Row],[Effective End Date]]=\"\",TRUE,IF(MeasureEffectiveDate<=MeasureTable_WY[[#This Row],[Effective End Date]],TRUE,FALSE)))","v":false},{"$f":"MeasureTable_WY[[#This Row],[Measure Name]]&\" | \"&MeasureTable_WY[[#This Row],[Eligible Measure]]","v":" | FALSE"}]
[{"$f":"IF(AND(MeasureEffectiveDate>=MeasureTable_WY[[#This Row],[Effective Start Date]],MeasureTable_WY[[#This Row],[Effective Start Date]]<>\"\"),IF(MeasureTable_WY[[#This Row],[Effective End Date]]=\"\",TRUE,IF(MeasureEffectiveDate<=MeasureTable_WY[[#This Row],[Effective End Date]],TRUE,FALSE)))","v":false},{"$f":"MeasureTable_WY[[#This Row],[Measure Name]]&\" | \"&MeasureTable_WY[[#This Row],[Eligible Measure]]","v":" | FALSE"}]
[{"$f":"IF(AND(MeasureEffectiveDate>=MeasureTable_WY[[#This Row],[Effective Start Date]],MeasureTable_WY[[#This Row],[Effective Start Date]]<>\"\"),IF(MeasureTable_WY[[#This Row],[Effective End Date]]=\"\",TRUE,IF(MeasureEffectiveDate<=MeasureTable_WY[[#This Row],[Effective End Date]],TRUE,FALSE)))","v":false},{"$f":"MeasureTable_WY[[#This Row],[Measure Name]]&\" | \"&MeasureTable_WY[[#This Row],[Eligible Measure]]","v":" | FALSE"}]
[{"$f":"IF(AND(MeasureEffectiveDate>=MeasureTable_WY[[#This Row],[Effective Start Date]],MeasureTable_WY[[#This Row],[Effective Start Date]]<>\"\"),IF(MeasureTable_WY[[#This Row],[Effective End Date]]=\"\",TRUE,IF(MeasureEffectiveDate<=MeasureTable_WY[[#This Row],[Effective End Date]],TRUE,FALSE)))","v":false},{"$f":"MeasureTable_WY[[#This Row],[Measure Name]]&\" | \"&MeasureTable_WY[[#This Row],[Eligible Measure]]","v":" | FALSE"}]
[{"$f":"IF(AND(MeasureEffectiveDate>=MeasureTable_WY[[#This Row],[Effective Start Date]],MeasureTable_WY[[#This Row],[Effective Start Date]]<>\"\"),IF(MeasureTable_WY[[#This Row],[Effective End Date]]=\"\",TRUE,IF(MeasureEffectiveDate<=MeasureTable_WY[[#This Row],[Effective End Date]],TRUE,FALSE)))","v":false},{"$f":"MeasureTable_WY[[#This Row],[Measure Name]]&\" | \"&MeasureTable_WY[[#This Row],[Eligible Measure]]","v":" | FALSE"}]
[{"$f":"IF(AND(MeasureEffectiveDate>=MeasureTable_WY[[#This Row],[Effective Start Date]],MeasureTable_WY[[#This Row],[Effective Start Date]]<>\"\"),IF(MeasureTable_WY[[#This Row],[Effective End Date]]=\"\",TRUE,IF(MeasureEffectiveDate<=MeasureTable_WY[[#This Row],[Effective End Date]],TRUE,FALSE)))","v":false},{"$f":"MeasureTable_WY[[#This Row],[Measure Name]]&\" | \"&MeasureTable_WY[[#This Row],[Eligible Measure]]","v":" | FALSE"}]
[{"$f":"IF(AND(MeasureEffectiveDate>=MeasureTable_WY[[#This Row],[Effective Start Date]],MeasureTable_WY[[#This Row],[Effective Start Date]]<>\"\"),IF(MeasureTable_WY[[#This Row],[Effective End Date]]=\"\",TRUE,IF(MeasureEffectiveDate<=MeasureTable_WY[[#This Row],[Effective End Date]],TRUE,FALSE)))","v":false},{"$f":"MeasureTable_WY[[#This Row],[Measure Name]]&\" | \"&MeasureTable_WY[[#This Row],[Eligible Measure]]","v":" | FALSE"}]
[{"$f":"IF(AND(MeasureEffectiveDate>=MeasureTable_WY[[#This Row],[Effective Start Date]],MeasureTable_WY[[#This Row],[Effective Start Date]]<>\"\"),IF(MeasureTable_WY[[#This Row],[Effective End Date]]=\"\",TRUE,IF(MeasureEffectiveDate<=MeasureTable_WY[[#This Row],[Effective End Date]],TRUE,FALSE)))","v":false},{"$f":"MeasureTable_WY[[#This Row],[Measure Name]]&\" | \"&MeasureTable_WY[[#This Row],[Eligible Measure]]","v":" | FALSE"}]
[{"$f":"IF(AND(MeasureEffectiveDate>=MeasureTable_WY[[#This Row],[Effective Start Date]],MeasureTable_WY[[#This Row],[Effective Start Date]]<>\"\"),IF(MeasureTable_WY[[#This Row],[Effective End Date]]=\"\",TRUE,IF(MeasureEffectiveDate<=MeasureTable_WY[[#This Row],[Effective End Date]],TRUE,FALSE)))","v":false},{"$f":"MeasureTable_WY[[#This Row],[Measure Name]]&\" | \"&MeasureTable_WY[[#This Row],[Eligible Measure]]","v":" | FALSE"}]
[{"$f":"IF(AND(MeasureEffectiveDate>=MeasureTable_WY[[#This Row],[Effective Start Date]],MeasureTable_WY[[#This Row],[Effective Start Date]]<>\"\"),IF(MeasureTable_WY[[#This Row],[Effective End Date]]=\"\",TRUE,IF(MeasureEffectiveDate<=MeasureTable_WY[[#This Row],[Effective End Date]],TRUE,FALSE)))","v":false},{"$f":"MeasureTable_WY[[#This Row],[Measure Name]]&\" | \"&MeasureTable_WY[[#This Row],[Eligible Measure]]","v":" | FALSE"}]
[{"$f":"IF(AND(MeasureEffectiveDate>=MeasureTable_WY[[#This Row],[Effective Start Date]],MeasureTable_WY[[#This Row],[Effective Start Date]]<>\"\"),IF(MeasureTable_WY[[#This Row],[Effective End Date]]=\"\",TRUE,IF(MeasureEffectiveDate<=MeasureTable_WY[[#This Row],[Effective End Date]],TRUE,FALSE)))","v":false},{"$f":"MeasureTable_WY[[#This Row],[Measure Name]]&\" | \"&MeasureTable_WY[[#This Row],[Eligible Measure]]","v":" | FALSE"}]
[{"$f":"IF(AND(MeasureEffectiveDate>=MeasureTable_WY[[#This Row],[Effective Start Date]],MeasureTable_WY[[#This Row],[Effective Start Date]]<>\"\"),IF(MeasureTable_WY[[#This Row],[Effective End Date]]=\"\",TRUE,IF(MeasureEffectiveDate<=MeasureTable_WY[[#This Row],[Effective End Date]],TRUE,FALSE)))","v":false},{"$f":"MeasureTable_WY[[#This Row],[Measure Name]]&\" | \"&MeasureTable_WY[[#This Row],[Eligible Measure]]","v":" | FALSE"}]
[{"$f":"IF(AND(MeasureEffectiveDate>=MeasureTable_WY[[#This Row],[Effective Start Date]],MeasureTable_WY[[#This Row],[Effective Start Date]]<>\"\"),IF(MeasureTable_WY[[#This Row],[Effective End Date]]=\"\",TRUE,IF(MeasureEffectiveDate<=MeasureTable_WY[[#This Row],[Effective End Date]],TRUE,FALSE)))","v":false},{"$f":"MeasureTable_WY[[#This Row],[Measure Name]]&\" | \"&MeasureTable_WY[[#This Row],[Eligible Measure]]","v":" | FALSE"}]
[{"$f":"IF(AND(MeasureEffectiveDate>=MeasureTable_WY[[#This Row],[Effective Start Date]],MeasureTable_WY[[#This Row],[Effective Start Date]]<>\"\"),IF(MeasureTable_WY[[#This Row],[Effective End Date]]=\"\",TRUE,IF(MeasureEffectiveDate<=MeasureTable_WY[[#This Row],[Effective End Date]],TRUE,FALSE)))","v":false},{"$f":"MeasureTable_WY[[#This Row],[Measure Name]]&\" | \"&MeasureTable_WY[[#This Row],[Eligible Measure]]","v":" | FALSE"}]
[{"$f":"IF(AND(MeasureEffectiveDate>=MeasureTable_WY[[#This Row],[Effective Start Date]],MeasureTable_WY[[#This Row],[Effective Start Date]]<>\"\"),IF(MeasureTable_WY[[#This Row],[Effective End Date]]=\"\",TRUE,IF(MeasureEffectiveDate<=MeasureTable_WY[[#This Row],[Effective End Date]],TRUE,FALSE)))","v":false},{"$f":"MeasureTable_WY[[#This Row],[Measure Name]]&\" | \"&MeasureTable_WY[[#This Row],[Eligible Measure]]","v":" | FALSE"}]
[{"$f":"IF(AND(MeasureEffectiveDate>=MeasureTable_WY[[#This Row],[Effective Start Date]],MeasureTable_WY[[#This Row],[Effective Start Date]]<>\"\"),IF(MeasureTable_WY[[#This Row],[Effective End Date]]=\"\",TRUE,IF(MeasureEffectiveDate<=MeasureTable_WY[[#This Row],[Effective End Date]],TRUE,FALSE)))","v":false},{"$f":"MeasureTable_WY[[#This Row],[Measure Name]]&\" | \"&MeasureTable_WY[[#This Row],[Eligible Measure]]","v":" | FALSE"}]
[{"$f":"IF(AND(MeasureEffectiveDate>=MeasureTable_WY[[#This Row],[Effective Start Date]],MeasureTable_WY[[#This Row],[Effective Start Date]]<>\"\"),IF(MeasureTable_WY[[#This Row],[Effective End Date]]=\"\",TRUE,IF(MeasureEffectiveDate<=MeasureTable_WY[[#This Row],[Effective End Date]],TRUE,FALSE)))","v":false},{"$f":"MeasureTable_WY[[#This Row],[Measure Name]]&\" | \"&MeasureTable_WY[[#This Row],[Eligible Measure]]","v":" | FALSE"}]
[{"$f":"IF(AND(MeasureEffectiveDate>=MeasureTable_WY[[#This Row],[Effective Start Date]],MeasureTable_WY[[#This Row],[Effective Start Date]]<>\"\"),IF(MeasureTable_WY[[#This Row],[Effective End Date]]=\"\",TRUE,IF(MeasureEffectiveDate<=MeasureTable_WY[[#This Row],[Effective End Date]],TRUE,FALSE)))","v":false},{"$f":"MeasureTable_WY[[#This Row],[Measure Name]]&\" | \"&MeasureTable_WY[[#This Row],[Eligible Measure]]","v":" | FALSE"}]
[{"$f":"IF(AND(MeasureEffectiveDate>=MeasureTable_WY[[#This Row],[Effective Start Date]],MeasureTable_WY[[#This Row],[Effective Start Date]]<>\"\"),IF(MeasureTable_WY[[#This Row],[Effective End Date]]=\"\",TRUE,IF(MeasureEffectiveDate<=MeasureTable_WY[[#This Row],[Effective End Date]],TRUE,FALSE)))","v":false},{"$f":"MeasureTable_WY[[#This Row],[Measure Name]]&\" | \"&MeasureTable_WY[[#This Row],[Eligible Measure]]","v":" | FALSE"}]
[{"$f":"IF(AND(MeasureEffectiveDate>=MeasureTable_WY[[#This Row],[Effective Start Date]],MeasureTable_WY[[#This Row],[Effective Start Date]]<>\"\"),IF(MeasureTable_WY[[#This Row],[Effective End Date]]=\"\",TRUE,IF(MeasureEffectiveDate<=MeasureTable_WY[[#This Row],[Effective End Date]],TRUE,FALSE)))","v":false},{"$f":"MeasureTable_WY[[#This Row],[Measure Name]]&\" | \"&MeasureTable_WY[[#This Row],[Eligible Measure]]","v":" | FALSE"}]
[{"$f":"IF(AND(MeasureEffectiveDate>=MeasureTable_WY[[#This Row],[Effective Start Date]],MeasureTable_WY[[#This Row],[Effective Start Date]]<>\"\"),IF(MeasureTable_WY[[#This Row],[Effective End Date]]=\"\",TRUE,IF(MeasureEffectiveDate<=MeasureTable_WY[[#This Row],[Effective End Date]],TRUE,FALSE)))","v":false},{"$f":"MeasureTable_WY[[#This Row],[Measure Name]]&\" | \"&MeasureTable_WY[[#This Row],[Eligible Measure]]","v":" | FALSE"}]
[{"$f":"IF(AND(MeasureEffectiveDate>=MeasureTable_WY[[#This Row],[Effective Start Date]],MeasureTable_WY[[#This Row],[Effective Start Date]]<>\"\"),IF(MeasureTable_WY[[#This Row],[Effective End Date]]=\"\",TRUE,IF(MeasureEffectiveDate<=MeasureTable_WY[[#This Row],[Effective End Date]],TRUE,FALSE)))","v":false},{"$f":"MeasureTable_WY[[#This Row],[Measure Name]]&\" | \"&MeasureTable_WY[[#This Row],[Eligible Measure]]","v":" | FALSE"}]
[{"$f":"IF(AND(MeasureEffectiveDate>=MeasureTable_WY[[#This Row],[Effective Start Date]],MeasureTable_WY[[#This Row],[Effective Start Date]]<>\"\"),IF(MeasureTable_WY[[#This Row],[Effective End Date]]=\"\",TRUE,IF(MeasureEffectiveDate<=MeasureTable_WY[[#This Row],[Effective End Date]],TRUE,FALSE)))","v":false},{"$f":"MeasureTable_WY[[#This Row],[Measure Name]]&\" | \"&MeasureTable_WY[[#This Row],[Eligible Measure]]","v":" | FALSE"}]
[{"$f":"IF(AND(MeasureEffectiveDate>=MeasureTable_WY[[#This Row],[Effective Start Date]],MeasureTable_WY[[#This Row],[Effective Start Date]]<>\"\"),IF(MeasureTable_WY[[#This Row],[Effective End Date]]=\"\",TRUE,IF(MeasureEffectiveDate<=MeasureTable_WY[[#This Row],[Effective End Date]],TRUE,FALSE)))","v":false},{"$f":"MeasureTable_WY[[#This Row],[Measure Name]]&\" | \"&MeasureTable_WY[[#This Row],[Eligible Measure]]","v":" | FALSE"}]
[{"$f":"IF(AND(MeasureEffectiveDate>=MeasureTable_WY[[#This Row],[Effective Start Date]],MeasureTable_WY[[#This Row],[Effective Start Date]]<>\"\"),IF(MeasureTable_WY[[#This Row],[Effective End Date]]=\"\",TRUE,IF(MeasureEffectiveDate<=MeasureTable_WY[[#This Row],[Effective End Date]],TRUE,FALSE)))","v":false},{"$f":"MeasureTable_WY[[#This Row],[Measure Name]]&\" | \"&MeasureTable_WY[[#This Row],[Eligible Measure]]","v":" | FALSE"}]
[{"$f":"IF(AND(MeasureEffectiveDate>=MeasureTable_WY[[#This Row],[Effective Start Date]],MeasureTable_WY[[#This Row],[Effective Start Date]]<>\"\"),IF(MeasureTable_WY[[#This Row],[Effective End Date]]=\"\",TRUE,IF(MeasureEffectiveDate<=MeasureTable_WY[[#This Row],[Effective End Date]],TRUE,FALSE)))","v":false},{"$f":"MeasureTable_WY[[#This Row],[Measure Name]]&\" | \"&MeasureTable_WY[[#This Row],[Eligible Measure]]","v":" | FALSE"}]
[{"$f":"IF(AND(MeasureEffectiveDate>=MeasureTable_WY[[#This Row],[Effective Start Date]],MeasureTable_WY[[#This Row],[Effective Start Date]]<>\"\"),IF(MeasureTable_WY[[#This Row],[Effective End Date]]=\"\",TRUE,IF(MeasureEffectiveDate<=MeasureTable_WY[[#This Row],[Effective End Date]],TRUE,FALSE)))","v":false},{"$f":"MeasureTable_WY[[#This Row],[Measure Name]]&\" | \"&MeasureTable_WY[[#This Row],[Eligible Measure]]","v":" | FALSE"}]
[{"$f":"IF(AND(MeasureEffectiveDate>=MeasureTable_WY[[#This Row],[Effective Start Date]],MeasureTable_WY[[#This Row],[Effective Start Date]]<>\"\"),IF(MeasureTable_WY[[#This Row],[Effective End Date]]=\"\",TRUE,IF(MeasureEffectiveDate<=MeasureTable_WY[[#This Row],[Effective End Date]],TRUE,FALSE)))","v":false},{"$f":"MeasureTable_WY[[#This Row],[Measure Name]]&\" | \"&MeasureTable_WY[[#This Row],[Eligible Measure]]","v":" | FALSE"}]
[{"$f":"IF(AND(MeasureEffectiveDate>=MeasureTable_WY[[#This Row],[Effective Start Date]],MeasureTable_WY[[#This Row],[Effective Start Date]]<>\"\"),IF(MeasureTable_WY[[#This Row],[Effective End Date]]=\"\",TRUE,IF(MeasureEffectiveDate<=MeasureTable_WY[[#This Row],[Effective End Date]],TRUE,FALSE)))","v":false},{"$f":"MeasureTable_WY[[#This Row],[Measure Name]]&\" | \"&MeasureTable_WY[[#This Row],[Eligible Measure]]","v":" | FALSE"}]
[{"$f":"IF(AND(MeasureEffectiveDate>=MeasureTable_WY[[#This Row],[Effective Start Date]],MeasureTable_WY[[#This Row],[Effective Start Date]]<>\"\"),IF(MeasureTable_WY[[#This Row],[Effective End Date]]=\"\",TRUE,IF(MeasureEffectiveDate<=MeasureTable_WY[[#This Row],[Effective End Date]],TRUE,FALSE)))","v":false},{"$f":"MeasureTable_WY[[#This Row],[Measure Name]]&\" | \"&MeasureTable_WY[[#This Row],[Eligible Measure]]","v":" | FALSE"}]
[{"$f":"IF(AND(MeasureEffectiveDate>=MeasureTable_WY[[#This Row],[Effective Start Date]],MeasureTable_WY[[#This Row],[Effective Start Date]]<>\"\"),IF(MeasureTable_WY[[#This Row],[Effective End Date]]=\"\",TRUE,IF(MeasureEffectiveDate<=MeasureTable_WY[[#This Row],[Effective End Date]],TRUE,FALSE)))","v":false},{"$f":"MeasureTable_WY[[#This Row],[Measure Name]]&\" | \"&MeasureTable_WY[[#This Row],[Eligible Measure]]","v":" | FALSE"}]
[{"$f":"IF(AND(MeasureEffectiveDate>=MeasureTable_WY[[#This Row],[Effective Start Date]],MeasureTable_WY[[#This Row],[Effective Start Date]]<>\"\"),IF(MeasureTable_WY[[#This Row],[Effective End Date]]=\"\",TRUE,IF(MeasureEffectiveDate<=MeasureTable_WY[[#This Row],[Effective End Date]],TRUE,FALSE)))","v":false},{"$f":"MeasureTable_WY[[#This Row],[Measure Name]]&\" | \"&MeasureTable_WY[[#This Row],[Eligible Measure]]","v":" | FALSE"}]
[{"$f":"IF(AND(MeasureEffectiveDate>=MeasureTable_WY[[#This Row],[Effective Start Date]],MeasureTable_WY[[#This Row],[Effective Start Date]]<>\"\"),IF(MeasureTable_WY[[#This Row],[Effective End Date]]=\"\",TRUE,IF(MeasureEffectiveDate<=MeasureTable_WY[[#This Row],[Effective End Date]],TRUE,FALSE)))","v":false},{"$f":"MeasureTable_WY[[#This Row],[Measure Name]]&\" | \"&MeasureTable_WY[[#This Row],[Eligible Measure]]","v":" | FALSE"}]
[{"$f":"IF(AND(MeasureEffectiveDate>=MeasureTable_WY[[#This Row],[Effective Start Date]],MeasureTable_WY[[#This Row],[Effective Start Date]]<>\"\"),IF(MeasureTable_WY[[#This Row],[Effective End Date]]=\"\",TRUE,IF(MeasureEffectiveDate<=MeasureTable_WY[[#This Row],[Effective End Date]],TRUE,FALSE)))","v":false},{"$f":"MeasureTable_WY[[#This Row],[Measure Name]]&\" | \"&MeasureTable_WY[[#This Row],[Eligible Measure]]","v":" | FALSE"}]
[{"$f":"IF(AND(MeasureEffectiveDate>=MeasureTable_WY[[#This Row],[Effective Start Date]],MeasureTable_WY[[#This Row],[Effective Start Date]]<>\"\"),IF(MeasureTable_WY[[#This Row],[Effective End Date]]=\"\",TRUE,IF(MeasureEffectiveDate<=MeasureTable_WY[[#This Row],[Effective End Date]],TRUE,FALSE)))","v":false},{"$f":"MeasureTable_WY[[#This Row],[Measure Name]]&\" | \"&MeasureTable_WY[[#This Row],[Eligible Measure]]","v":" | FALSE"}]
[{"$f":"IF(AND(MeasureEffectiveDate>=MeasureTable_WY[[#This Row],[Effective Start Date]],MeasureTable_WY[[#This Row],[Effective Start Date]]<>\"\"),IF(MeasureTable_WY[[#This Row],[Effective End Date]]=\"\",TRUE,IF(MeasureEffectiveDate<=MeasureTable_WY[[#This Row],[Effective End Date]],TRUE,FALSE)))","v":false},{"$f":"MeasureTable_WY[[#This Row],[Measure Name]]&\" | \"&MeasureTable_WY[[#This Row],[Eligible Measure]]","v":" | FALSE"}]
[{"$f":"IF(AND(MeasureEffectiveDate>=MeasureTable_WY[[#This Row],[Effective Start Date]],MeasureTable_WY[[#This Row],[Effective Start Date]]<>\"\"),IF(MeasureTable_WY[[#This Row],[Effective End Date]]=\"\",TRUE,IF(MeasureEffectiveDate<=MeasureTable_WY[[#This Row],[Effective End Date]],TRUE,FALSE)))","v":false},{"$f":"MeasureTable_WY[[#This Row],[Measure Name]]&\" | \"&MeasureTable_WY[[#This Row],[Eligible Measure]]","v":" | FALSE"}]
[{"$f":"IF(AND(MeasureEffectiveDate>=MeasureTable_WY[[#This Row],[Effective Start Date]],MeasureTable_WY[[#This Row],[Effective Start Date]]<>\"\"),IF(MeasureTable_WY[[#This Row],[Effective End Date]]=\"\",TRUE,IF(MeasureEffectiveDate<=MeasureTable_WY[[#This Row],[Effective End Date]],TRUE,FALSE)))","v":false},{"$f":"MeasureTable_WY[[#This Row],[Measure Name]]&\" | \"&MeasureTable_WY[[#This Row],[Eligible Measure]]","v":" | FALSE"}]
[{"$f":"IF(AND(MeasureEffectiveDate>=MeasureTable_WY[[#This Row],[Effective Start Date]],MeasureTable_WY[[#This Row],[Effective Start Date]]<>\"\"),IF(MeasureTable_WY[[#This Row],[Effective End Date]]=\"\",TRUE,IF(MeasureEffectiveDate<=MeasureTable_WY[[#This Row],[Effective End Date]],TRUE,FALSE)))","v":false},{"$f":"MeasureTable_WY[[#This Row],[Measure Name]]&\" | \"&MeasureTable_WY[[#This Row],[Eligible Measure]]","v":" | FALSE"}]
[{"$f":"IF(AND(MeasureEffectiveDate>=MeasureTable_WY[[#This Row],[Effective Start Date]],MeasureTable_WY[[#This Row],[Effective Start Date]]<>\"\"),IF(MeasureTable_WY[[#This Row],[Effective End Date]]=\"\",TRUE,IF(MeasureEffectiveDate<=MeasureTable_WY[[#This Row],[Effective End Date]],TRUE,FALSE)))","v":false},{"$f":"MeasureTable_WY[[#This Row],[Measure Name]]&\" | \"&MeasureTable_WY[[#This Row],[Eligible Measure]]","v":" | FALSE"}]
[{"$f":"IF(AND(MeasureEffectiveDate>=MeasureTable_WY[[#This Row],[Effective Start Date]],MeasureTable_WY[[#This Row],[Effective Start Date]]<>\"\"),IF(MeasureTable_WY[[#This Row],[Effective End Date]]=\"\",TRUE,IF(MeasureEffectiveDate<=MeasureTable_WY[[#This Row],[Effective End Date]],TRUE,FALSE)))","v":false},{"$f":"MeasureTable_WY[[#This Row],[Measure Name]]&\" | \"&MeasureTable_WY[[#This Row],[Eligible Measure]]","v":" | FALSE"}]
[{"$f":"IF(AND(MeasureEffectiveDate>=MeasureTable_WY[[#This Row],[Effective Start Date]],MeasureTable_WY[[#This Row],[Effective Start Date]]<>\"\"),IF(MeasureTable_WY[[#This Row],[Effective End Date]]=\"\",TRUE,IF(MeasureEffectiveDate<=MeasureTable_WY[[#This Row],[Effective End Date]],TRUE,FALSE)))","v":false},{"$f":"MeasureTable_WY[[#This Row],[Measure Name]]&\" | \"&MeasureTable_WY[[#This Row],[Eligible Measure]]","v":" | FALSE"}]
[{"$f":"IF(AND(MeasureEffectiveDate>=MeasureTable_WY[[#This Row],[Effective Start Date]],MeasureTable_WY[[#This Row],[Effective Start Date]]<>\"\"),IF(MeasureTable_WY[[#This Row],[Effective End Date]]=\"\",TRUE,IF(MeasureEffectiveDate<=MeasureTable_WY[[#This Row],[Effective End Date]],TRUE,FALSE)))","v":false},{"$f":"MeasureTable_WY[[#This Row],[Measure Name]]&\" | \"&MeasureTable_WY[[#This Row],[Eligible Measure]]","v":" | FALSE"}]
[{"$f":"IF(AND(MeasureEffectiveDate>=MeasureTable_WY[[#This Row],[Effective Start Date]],MeasureTable_WY[[#This Row],[Effective Start Date]]<>\"\"),IF(MeasureTable_WY[[#This Row],[Effective End Date]]=\"\",TRUE,IF(MeasureEffectiveDate<=MeasureTable_WY[[#This Row],[Effective End Date]],TRUE,FALSE)))","v":false},{"$f":"MeasureTable_WY[[#This Row],[Measure Name]]&\" | \"&MeasureTable_WY[[#This Row],[Eligible Measure]]","v":" | FALSE"}]
[{"$f":"IF(AND(MeasureEffectiveDate>=MeasureTable_WY[[#This Row],[Effective Start Date]],MeasureTable_WY[[#This Row],[Effective Start Date]]<>\"\"),IF(MeasureTable_WY[[#This Row],[Effective End Date]]=\"\",TRUE,IF(MeasureEffectiveDate<=MeasureTable_WY[[#This Row],[Effective End Date]],TRUE,FALSE)))","v":false},{"$f":"MeasureTable_WY[[#This Row],[Measure Name]]&\" | \"&MeasureTable_WY[[#This Row],[Eligible Measure]]","v":" | FALSE"}]
[{"$f":"IF(AND(MeasureEffectiveDate>=MeasureTable_WY[[#This Row],[Effective Start Date]],MeasureTable_WY[[#This Row],[Effective Start Date]]<>\"\"),IF(MeasureTable_WY[[#This Row],[Effective End Date]]=\"\",TRUE,IF(MeasureEffectiveDate<=MeasureTable_WY[[#This Row],[Effective End Date]],TRUE,FALSE)))","v":false},{"$f":"MeasureTable_WY[[#This Row],[Measure Name]]&\" | \"&MeasureTable_WY[[#This Row],[Eligible Measure]]","v":" | FALSE"}]
[{"$f":"IF(AND(MeasureEffectiveDate>=MeasureTable_WY[[#This Row],[Effective Start Date]],MeasureTable_WY[[#This Row],[Effective Start Date]]<>\"\"),IF(MeasureTable_WY[[#This Row],[Effective End Date]]=\"\",TRUE,IF(MeasureEffectiveDate<=MeasureTable_WY[[#This Row],[Effective End Date]],TRUE,FALSE)))","v":false},{"$f":"MeasureTable_WY[[#This Row],[Measure Name]]&\" | \"&MeasureTable_WY[[#This Row],[Eligible Measure]]","v":" | FALSE"}]
[{"$f":"IF(AND(MeasureEffectiveDate>=MeasureTable_WY[[#This Row],[Effective Start Date]],MeasureTable_WY[[#This Row],[Effective Start Date]]<>\"\"),IF(MeasureTable_WY[[#This Row],[Effective End Date]]=\"\",TRUE,IF(MeasureEffectiveDate<=MeasureTable_WY[[#This Row],[Effective End Date]],TRUE,FALSE)))","v":false},{"$f":"MeasureTable_WY[[#This Row],[Measure Name]]&\" | \"&MeasureTable_WY[[#This Row],[Eligible Measure]]","v":" | FALSE"}]
[{"$f":"IF(AND(MeasureEffectiveDate>=MeasureTable_WY[[#This Row],[Effective Start Date]],MeasureTable_WY[[#This Row],[Effective Start Date]]<>\"\"),IF(MeasureTable_WY[[#This Row],[Effective End Date]]=\"\",TRUE,IF(MeasureEffectiveDate<=MeasureTable_WY[[#This Row],[Effective End Date]],TRUE,FALSE)))","v":false},{"$f":"MeasureTable_WY[[#This Row],[Measure Name]]&\" | \"&MeasureTable_WY[[#This Row],[Eligible Measure]]","v":" | FALSE"}]
[{"$f":"IF(AND(MeasureEffectiveDate>=MeasureTable_WY[[#This Row],[Effective Start Date]],MeasureTable_WY[[#This Row],[Effective Start Date]]<>\"\"),IF(MeasureTable_WY[[#This Row],[Effective End Date]]=\"\",TRUE,IF(MeasureEffectiveDate<=MeasureTable_WY[[#This Row],[Effective End Date]],TRUE,FALSE)))","v":false},{"$f":"MeasureTable_WY[[#This Row],[Measure Name]]&\" | \"&MeasureTable_WY[[#This Row],[Eligible Measure]]","v":" | FALSE"}]
[{"$f":"IF(AND(MeasureEffectiveDate>=MeasureTable_WY[[#This Row],[Effective Start Date]],MeasureTable_WY[[#This Row],[Effective Start Date]]<>\"\"),IF(MeasureTable_WY[[#This Row],[Effective End Date]]=\"\",TRUE,IF(MeasureEffectiveDate<=MeasureTable_WY[[#This Row],[Effective End Date]],TRUE,FALSE)))","v":false},{"$f":"MeasureTable_WY[[#This Row],[Measure Name]]&\" | \"&MeasureTable_WY[[#This Row],[Eligible Measure]]","v":" | FALSE"}]
[{"$f":"IF(AND(MeasureEffectiveDate>=MeasureTable_WY[[#This Row],[Effective Start Date]],MeasureTable_WY[[#This Row],[Effective Start Date]]<>\"\"),IF(MeasureTable_WY[[#This Row],[Effective End Date]]=\"\",TRUE,IF(MeasureEffectiveDate<=MeasureTable_WY[[#This Row],[Effective End Date]],TRUE,FALSE)))","v":false},{"$f":"MeasureTable_WY[[#This Row],[Measure Name]]&\" | \"&MeasureTable_WY[[#This Row],[Eligible Measure]]","v":" | FALSE"}]
[{"$f":"IF(AND(MeasureEffectiveDate>=MeasureTable_WY[[#This Row],[Effective Start Date]],MeasureTable_WY[[#This Row],[Effective Start Date]]<>\"\"),IF(MeasureTable_WY[[#This Row],[Effective End Date]]=\"\",TRUE,IF(MeasureEffectiveDate<=MeasureTable_WY[[#This Row],[Effective End Date]],TRUE,FALSE)))","v":false},{"$f":"MeasureTable_WY[[#This Row],[Measure Name]]&\" | \"&MeasureTable_WY[[#This Row],[Eligible Measure]]","v":" | FALSE"}]
[{"$f":"IF(AND(MeasureEffectiveDate>=MeasureTable_WY[[#This Row],[Effective Start Date]],MeasureTable_WY[[#This Row],[Effective Start Date]]<>\"\"),IF(MeasureTable_WY[[#This Row],[Effective End Date]]=\"\",TRUE,IF(MeasureEffectiveDate<=MeasureTable_WY[[#This Row],[Effective End Date]],TRUE,FALSE)))","v":false},{"$f":"MeasureTable_WY[[#This Row],[Measure Name]]&\" | \"&MeasureTable_WY[[#This Row],[Eligible Measure]]","v":" | FALSE"}]
[{"$f":"IF(AND(MeasureEffectiveDate>=MeasureTable_WY[[#This Row],[Effective Start Date]],MeasureTable_WY[[#This Row],[Effective Start Date]]<>\"\"),IF(MeasureTable_WY[[#This Row],[Effective End Date]]=\"\",TRUE,IF(MeasureEffectiveDate<=MeasureTable_WY[[#This Row],[Effective End Date]],TRUE,FALSE)))","v":false},{"$f":"MeasureTable_WY[[#This Row],[Measure Name]]&\" | \"&MeasureTable_WY[[#This Row],[Eligible Measure]]","v":" | FALSE"}]
[{"$f":"IF(AND(MeasureEffectiveDate>=MeasureTable_WY[[#This Row],[Effective Start Date]],MeasureTable_WY[[#This Row],[Effective Start Date]]<>\"\"),IF(MeasureTable_WY[[#This Row],[Effective End Date]]=\"\",TRUE,IF(MeasureEffectiveDate<=MeasureTable_WY[[#This Row],[Effective End Date]],TRUE,FALSE)))","v":false},{"$f":"MeasureTable_WY[[#This Row],[Measure Name]]&\" | \"&MeasureTable_WY[[#This Row],[Eligible Measure]]","v":" | FALSE"}]
[{"$f":"IF(AND(MeasureEffectiveDate>=MeasureTable_WY[[#This Row],[Effective Start Date]],MeasureTable_WY[[#This Row],[Effective Start Date]]<>\"\"),IF(MeasureTable_WY[[#This Row],[Effective End Date]]=\"\",TRUE,IF(MeasureEffectiveDate<=MeasureTable_WY[[#This Row],[Effective End Date]],TRUE,FALSE)))","v":false},{"$f":"MeasureTable_WY[[#This Row],[Measure Name]]&\" | \"&MeasureTable_WY[[#This Row],[Eligible Measure]]","v":" | FALSE"}]
[{"$f":"IF(AND(MeasureEffectiveDate>=MeasureTable_WY[[#This Row],[Effective Start Date]],MeasureTable_WY[[#This Row],[Effective Start Date]]<>\"\"),IF(MeasureTable_WY[[#This Row],[Effective End Date]]=\"\",TRUE,IF(MeasureEffectiveDate<=MeasureTable_WY[[#This Row],[Effective End Date]],TRUE,FALSE)))","v":false},{"$f":"MeasureTable_WY[[#This Row],[Measure Name]]&\" | \"&MeasureTable_WY[[#This Row],[Eligible Measure]]","v":" | FALSE"}]
[{"$f":"IF(AND(MeasureEffectiveDate>=MeasureTable_WY[[#This Row],[Effective Start Date]],MeasureTable_WY[[#This Row],[Effective Start Date]]<>\"\"),IF(MeasureTable_WY[[#This Row],[Effective End Date]]=\"\",TRUE,IF(MeasureEffectiveDate<=MeasureTable_WY[[#This Row],[Effective End Date]],TRUE,FALSE)))","v":false},{"$f":"MeasureTable_WY[[#This Row],[Measure Name]]&\" | \"&MeasureTable_WY[[#This Row],[Eligible Measure]]","v":" | FALSE"}]
[{"$f":"IF(AND(MeasureEffectiveDate>=MeasureTable_WY[[#This Row],[Effective Start Date]],MeasureTable_WY[[#This Row],[Effective Start Date]]<>\"\"),IF(MeasureTable_WY[[#This Row],[Effective End Date]]=\"\",TRUE,IF(MeasureEffectiveDate<=MeasureTable_WY[[#This Row],[Effective End Date]],TRUE,FALSE)))","v":false},{"$f":"MeasureTable_WY[[#This Row],[Measure Name]]&\" | \"&MeasureTable_WY[[#This Row],[Eligible Measure]]","v":" | FALSE"}]
[{"$f":"IF(AND(MeasureEffectiveDate>=MeasureTable_WY[[#This Row],[Effective Start Date]],MeasureTable_WY[[#This Row],[Effective Start Date]]<>\"\"),IF(MeasureTable_WY[[#This Row],[Effective End Date]]=\"\",TRUE,IF(MeasureEffectiveDate<=MeasureTable_WY[[#This Row],[Effective End Date]],TRUE,FALSE)))","v":false},{"$f":"MeasureTable_WY[[#This Row],[Measure Name]]&\" | \"&MeasureTable_WY[[#This Row],[Eligible Measure]]","v":" | FALSE"}]
[{"$f":"IF(AND(MeasureEffectiveDate>=MeasureTable_WY[[#This Row],[Effective Start Date]],MeasureTable_WY[[#This Row],[Effective Start Date]]<>\"\"),IF(MeasureTable_WY[[#This Row],[Effective End Date]]=\"\",TRUE,IF(MeasureEffectiveDate<=MeasureTable_WY[[#This Row],[Effective End Date]],TRUE,FALSE)))","v":false},{"$f":"MeasureTable_WY[[#This Row],[Measure Name]]&\" | \"&MeasureTable_WY[[#This Row],[Eligible Measure]]","v":" | FALSE"}]
[{"$f":"IF(AND(MeasureEffectiveDate>=MeasureTable_WY[[#This Row],[Effective Start Date]],MeasureTable_WY[[#This Row],[Effective Start Date]]<>\"\"),IF(MeasureTable_WY[[#This Row],[Effective End Date]]=\"\",TRUE,IF(MeasureEffectiveDate<=MeasureTable_WY[[#This Row],[Effective End Date]],TRUE,FALSE)))","v":false},{"$f":"MeasureTable_WY[[#This Row],[Measure Name]]&\" | \"&MeasureTable_WY[[#This Row],[Eligible Measure]]","v":" | FALSE"}]
[{"$f":"IF(AND(MeasureEffectiveDate>=MeasureTable_WY[[#This Row],[Effective Start Date]],MeasureTable_WY[[#This Row],[Effective Start Date]]<>\"\"),IF(MeasureTable_WY[[#This Row],[Effective End Date]]=\"\",TRUE,IF(MeasureEffectiveDate<=MeasureTable_WY[[#This Row],[Effective End Date]],TRUE,FALSE)))","v":false},{"$f":"MeasureTable_WY[[#This Row],[Measure Name]]&\" | \"&MeasureTable_WY[[#This Row],[Eligible Measure]]","v":" | FALSE"}]
[{"$f":"IF(AND(MeasureEffectiveDate>=MeasureTable_WY[[#This Row],[Effective Start Date]],MeasureTable_WY[[#This Row],[Effective Start Date]]<>\"\"),IF(MeasureTable_WY[[#This Row],[Effective End Date]]=\"\",TRUE,IF(MeasureEffectiveDate<=MeasureTable_WY[[#This Row],[Effective End Date]],TRUE,FALSE)))","v":false},{"$f":"MeasureTable_WY[[#This Row],[Measure Name]]&\" | \"&MeasureTable_WY[[#This Row],[Eligible Measure]]","v":" | FALSE"}]
[{"$f":"IF(AND(MeasureEffectiveDate>=MeasureTable_WY[[#This Row],[Effective Start Date]],MeasureTable_WY[[#This Row],[Effective Start Date]]<>\"\"),IF(MeasureTable_WY[[#This Row],[Effective End Date]]=\"\",TRUE,IF(MeasureEffectiveDate<=MeasureTable_WY[[#This Row],[Effective End Date]],TRUE,FALSE)))","v":false},{"$f":"MeasureTable_WY[[#This Row],[Measure Name]]&\" | \"&MeasureTable_WY[[#This Row],[Eligible Measure]]","v":" | FALSE"}]